{"text_format":"1","workbook":"xlsx","n_sheets":20,"sheets":["Analysis","AmazonAds","myAccountAccess","Adcenter","MagentoInventory","Magento","Facebook","Analytics","AmazonInventory","AmazonSales","Amazon","adWords","Inventory","Paypal","Umpqua","OldSchoolData","OldSchoolJustValues","Cool Graph","Data1","Stats"],"not_rendered":{"charts":1,"images":0,"macros":1,"external_links":10,"defined_names":14,"comments":3,"pivot_tables":0},"unopened":[],"bounds":{"document_bytes":16777216,"sheet_cells":100000,"rows_first":2000,"rows_last":500,"rows_between":2000,"halvings":0,"cell_chars":16384,"cell_head_chars":4096},"cells_cut":0,"cells_raw":0,"read":"whole","date_system":"1900"}

{"sheet":"Analysis","index":0,"n_rows":5,"n_cols":70,"rows_kept":5,"cut":false,"hidden":false,"merged":[]}
["Date","Facebook Spend","Amazon Ads Spend","adWords Search Spend","Adwords Display Spend","Adcenter Spend","Total Ad Spend","Facebook Conv.","Amazon Ads Conv.","Lava Conv.","adWords Search Conv.","adwords display Conv.","adwords display view-through conv.","Adcenter Conv.","Adwords Content Spend","Adwords Content Conv.","Adwords Content View Through","Adwords Retargeting Spend","Adwords Retargeting Conv.","Amazon iPods Sold","Amazon Pyle Sold","Amazon Aquavibe Sold","Amazon Discovery Sold","Magento iPods Sold","Magento Pyle Sold","Magento Aquavibe Sold","Magento Discovery Sold","Total iPods sold","Amazon Revenue","Magento Revenue","Total Revenue","Estimated Profit","Paypal Amount Sent","Amazon Amount Sent","myAccountAccess Amount Sent","Umpqua Balance","myAccountAccess Balance","Amazon Balance","Total Balance","Actual Balance","iPod inventory","Pyle","Aquavibe","Discovery","Amazon iPod","Amazon Pyle","Amazon Aquavibe","Amazon Discovery","=IFERROR(VLOOKUP($A266,'1861740736.csv'!$A$11:$J$251,10,FALSE),0)","iPods Umpqua","iPods End of Year","headphones End of Year","Pyle myaccountaccess","iPods myaccountaccess","Yield Loss","Aquavibe purchased","Discovery Purchased","Missing iPods","Paypal Balance","Paypal Amount Sent before","Paypal Calculated stuff","Amazon Amount","Amazon Calculated Stuff","MyAccountAccess",null,"SwimBuds Inventory","Savings Balance","Estimated Profit (new way)",{"$f":"OFFSET(A1,0,'Cool Graph'!$H$1)","v":"Facebook Spend"},{"$f":"OFFSET(A1,0,'Cool Graph'!$I$1)","v":"Estimated Profit (new way)"}]
["2012-03-22",null,null,null,null,null,null,null,null,null,null,null,null,null,null,null,null,null,null,null,null,null,null,null,null,null,null,null,null,null,null,null,null,null,null,null,null,null,null,null,124,300,100,42]
["2012-03-31",86.19,74.08,140.69999999999999,79.650000000000006,6.2,{"$f":"SUM(B3:E3)","v":380.62},null,null,null,3,0,0,0,72.680000000000007,0,0,6.97,0,2,0,0,null,8,6,2,0,null,333.99,1435,null,null,9288.11,0,0,18841.82,-16505.98,null,null,null,150,200,150,150,null,null,null,null,null,null,null,null,0,0,null,0]
["2012-04-01",null,null,null,null,null,null,{"$f":"H5+H6","v":0},0,0]
["2012-04-02",null,null,null,null,null,null,null,null,null,null,null,null,null,null,null,null,null,null,null,null,null,null,null,null,null,null,null,null,null,null,null,null,null,null,null,null,7190.4,null,null,null,null,null,null,175,86,227]

{"sheet":"AmazonAds","index":1,"n_rows":68,"n_cols":10,"rows_kept":68,"cut":false,"hidden":false,"merged":[]}
["www.amazon.com"]
["HOME | HELP | LOGOUT"]
["PRODUCTS"]
[]
["Upload Product Ads "]
["View Products "]
["Download Product Report "]
["Use FTP "]
["ADVERTISING"]
[]
["Manage Bids "]
["Daily Budget "]
["REPORTS"]
[]
["Payments "]
["Ad Performance "]
["SETTINGS"]
[]
["Account Info "]
["Notification Preferences "]
["Login Settings "]
["Shipping Settings "]
["User Permissions "]
[]
[]
[]
["Close Panel"]
[]
["Ad Performance"]
["Use this page to access reports about your advertising performance including impressions, clicks and spend."]
["Performance Over Time  |  Performance By Category  |  Performance By SKU"]
[]
["This report summarizes your clicks and spend over a specified time period. Use this form to modify the date range and categories included in your report. Learn more."]
[]
["Show:"]
["Between:",null,null,null,"   ","and   ",null,null,null,"   "]
[]
["Category:","All Categories (Change)"]
[]
["Performance By Category and Performance Over Time reports by selected categories are not available for dates prior to October 1, 2010. To access performance data for dates prior to October 1, 2010, use \"All Categories\" or Performance By SKU reports. Learn more."]
[]
[null,"Update"]
[null,"Update"]
["Performance Over Time by day between March 26, 2012 and April 2, 2012 for All Categories","   ","Print this report | Download this data"]
["Date","Clicks","Average Cost-per-click","Total Spend"]
[]
["2012-04-02",50,0.8,40.19]
["2012-04-01",108,0.66,71.260000000000005]
["2012-03-31",118,0.63,74.08]
["2012-03-30",53,0.71,37.82]
["2012-03-29",45,0.8,35.81]
["2012-03-28",54,0.84,45.48]
["2012-03-27",70,0.79,55.16]
["2012-03-26",85,0.75,63.76]
[]
[]
[]
[]
["While Amazon Services has made every effort to ensure that this information is up-to-date and accurate, it is provided on an \"as is\" basis without warranties of any kind, either express or implied, as to its accuracy or reliability."]
[]
[]
[]
[]
[]
[]
[]
["Rate this page   |   Contact Seller Support"]
["Underwater Audio LLC © 1999-2012, Amazon.com, Inc. or its affiliates "]

{"sheet":"myAccountAccess","index":2,"n_rows":82,"n_cols":6,"rows_kept":82,"cut":false,"hidden":false,"merged":[]}
["Welcome, TODD E WALKER Monday, April 02, 2012 "]
["View online statementsView online"]
["Transactions ","Help","Click on column headings to re-sort","Next"]
["Transaction Details"]
["Transaction Details"]
["Transaction Details"]
["Transaction","Posting","Description","Credit","Charge"]
["Trancore E OProd2A"]
["The creditor, issuer and service provider of your Credit Card is Elan Financial Services."]
["statements"]
["Select date range","Start Date","Popup Calendar for Start Date mm/dd/yyyy"]
["Secure Messages "]
["Rewards Center"]
["Refine Transactions"]
["Privacy Policy and Terms of Use  "]
["Printer-friendly Format","Return to Top","Next"]
["Online Statements"]
["Manage PaymentsManage Payments"]
["Manage Payments"]
["Manage Account"]
["Logout"]
["Last Statement Balance:  -$12,929.13"]
["HelpNext Payment Due:  04/17/2012"]
["HelpMinimum Payment Due:  $0.00"]
["Help$16,505.98","Help$4,974.00"]
["Download Transactions"]
["Download transaction dataDownload transaction data for this account"]
["Date","Date"]
["Current Balance","Available Credit"]
["Credit Card Accounts"]
["Cardmember Service"]
["Alerts"]
["Account Details | Rewards Center | Rewards Center"]
["Account - ACCOUNTS PAYABLE - Ending in 8082",null,null,null,null,16505.98]
["2012-03-30","2012-03-30","FACEBOOK.COM*LEDT322YR www.fb.me/cc CA  more",null,176.95,{"$f":"F34-E35+D35","v":16329.029999999999}]
["2012-03-29","2012-03-30","VZWRLSS*IVR VW 800-922-0204 NJ  more",null,112.9,{"$f":"F35-E36+D36","v":16216.13}]
["2012-03-29","2012-03-30","AMAZON MKTPLACE PMTS AMZN.COM/BILL WA  more",null,28.94,16187.189999999999]
["2012-03-29","2012-03-30","GOOGLE*9929058275 CC@GOOGLE.COM CA  more",null,500,15687.189999999999]
["2012-03-29","2012-03-30","B & H PHOTO-VIDEO.COM 800-9479950 NY  more",null,920,14767.189999999999]
["2012-03-29","2012-03-30","STAPLS9226595254000 800-3333330 CA  more",null,48.93,14718.259999999998]
["2012-03-29","2012-03-29","FACEBOOK.COM*CHAT322YR www.fb.me/cc CA  more",null,302.83,14415.429999999998]
["2012-03-28","2012-03-30","W W GRAINGER 916 877-2022594 IL  more",null,306.11,14109.319999999998]
["2012-03-28","2012-03-29","AMAZON MKTPLACE PMTS AMZN.COM/BILL WA  more",null,4.3499999999999996,14104.969999999998]
["2012-03-28","2012-03-29","STAMPS.COM 888-434-0055 CA  more",null,37.32,14067.649999999998]
["2012-03-28","2012-03-29","Amazon.com AMZN.COM/BILL WA  more",null,4.92,14062.729999999998]
["2012-03-28","2012-03-29","Amazon.com AMZN.COM/BILL WA  more",null,7.94,14054.789999999997]
["2012-03-28","2012-03-29","AMAZON MKTPLACE PMTS AMZN.COM/BILL WA  more",null,21,14033.789999999997]
["2012-03-28","2012-03-29","GOOGLE*9929058275 CC@GOOGLE.COM CA  more",null,500,13533.789999999997]
["2012-03-28","2012-03-29","AMAZON MKTPLACE PMTS AMZN.COM/BILL WA  more",null,29.99,13503.799999999997]
["2012-03-28","2012-03-29","OSU BEAVER STORE MAIN CORVALLIS OR  more",null,17346,-3842.2000000000025]
["2012-03-28","2012-03-28","FACEBOOK.COM*MG7T322YR www.fb.me/cc CA  more",null,359.44,-4201.6400000000021]
["2012-03-28","2012-03-28","Amazon.com AMZN.COM/BILL WA  more",null,12.82,-4214.4600000000019]
["2012-03-27","2012-03-29","BYU PMPC WSC MAIL PROVO UT  more",null,2.79,-4217.2500000000018]
["2012-03-27","2012-03-28","B & H PHOTO-VIDEO.COM 800-9479950 NY  more",null,3821.95,-8039.2000000000016]
["2012-03-27","2012-03-28","WALMART.COM 8009666546 8009666546 AR  more",null,2818.2,-10857.400000000001]
["2012-03-27","2012-03-28","USPS POSTAGE(STAMPS.CO 888-434-0055 CA  more",null,210,-11067.400000000001]
["2012-03-27","2012-03-28","Amazon.com AMZN.COM/BILL WA  more",null,3.49,-11070.890000000001]
["2012-03-27","2012-03-28","REYNOLDS ADVANCEED MAT 818-358-6000 CA  more",null,42.89,-11113.78]
["2012-03-27","2012-03-27","INTERNET PAYMENT THANK YOU ",7868.93,null,-3244.8500000000004]
["2012-03-27","2012-03-27","INTERNET PAYMENT THANK YOU ",7868.93,null,4624.08]
["2012-03-27","2012-03-27","INTERNET PAYMENT THANK YOU ",7868.93,null,12493.01]
["2012-03-27","2012-03-27","FACEBOOK.COM*WH4T322YR www.fb.me/cc CA  more",null,227.4,12265.61]
["2012-03-26","2012-03-27","AMAZON MKTPLACE PMTS AMZN.COM/BILL WA  more",null,29.74,12235.87]
["2012-03-26","2012-03-27","Amazon.com AMZN.COM/BILL WA  more",null,44.99,12190.880000000001]
[]
[]
[]
[]
[]
[]
[]
[]
[null,"End Date","Popup Calendar for End Date mm/dd/yyyy","View"]
[]
[]
[]
[]
["Build: trancore.012.02_Build_17"]
[]
["Security Standards © 2012 Elan Financial Services "]
["Trancore E OProd2A"]
["Build: trancore.012.02_Build_17"]

{"sheet":"Adcenter","index":3,"n_rows":112,"n_cols":39,"rows_kept":112,"cut":false,"hidden":false,"merged":[]}
["User: underwateraudio","|","Sign out","|","My settings","|","Help "]
["Home"]
["Campaigns"]
["Opportunities"]
["Accounts & Billing"]
["Tools"]
["Reports"]
["Customer: Underwater Audio"]
["Account: Underwater Audio"]
[]
["Use the old version"]
["? This month:4/1/2012 - 4/2/2012 "]
["? - "]
["Yesterday: 4/1/2012 "]
["Last 7 days: 3/26/2012 - 4/1/2012 "]
["Today: 4/2/2012 "]
["This month: 4/1/2012 - 4/2/2012 "]
["Last month: 3/1/2012 - 3/31/2012 "]
["Last 3 months: 1/1/2012 - 3/31/2012 "]
["Last 6 months: 10/1/2011 - 3/31/2012 "]
["This year: 1/1/2012 - 4/2/2012 "]
["Last year: 1/1/2011 - 12/31/2011 "]
["Entire time: 4/2/2010 - 4/2/2012 "]
["Custom range"]
["Account selected: "]
["Status: Active | Import your campaigns | Manage your business locations | Manage your analytics settings"]
["Account performance trend "]
["X"]
[]
["Campaigns"]
["Ad Groups"]
["Ads"]
["Keywords"]
[]
["Add new filter"]
["Apply saved filters"]
["Select a campaign"]
["Add another"]
[]
[null,null,"Pause",null,null,null,"Add or remove columns",null,"Page"]
[null,null,"Pause",null,null,null,null,"Campaign","of  "]
[null,null,"Resume"]
[null,null,"Resume",null,null,null,null,"Delivery"]
[null,null,"Delete"]
[null,null,"Delete",null,null,null,null,"Status"]
[]
[null,null,null,null,null,null,null,"Ad groups"]
[]
[null,null,null,null,null,null,null,"Budget"]
[]
[null,null,null,null,null,null,null,"Budget type"]
[]
[null,null,null,null,null,null,null,"Spend"]
[]
[null,null,null,null,null,null,null,"Clicks"]
[]
[null,null,null,null,null,null,null,"Impr."]
[]
[null,null,null,null,null,null,null,"CTR (%)"]
[]
[null,null,null,null,null,null,null,"Avg. pos."]
[]
[null,null,null,null,null,null,null,"Avg. CPC"]
[]
[null,null,null,null,null,null,null,"Avg. CPM"]
[]
[null,null,null,null,null,null,null,"CPA"]
[]
[null,null,null,null,null,null,null,"Conv."]
[]
[null,null,null,null,null,null,null,"Neg. keywords"]
[]
[null,"Campaign",null,null,null,null,null,null,"Delivery",null,"Status",null,"Ad groups",null,"Budget",null,"Budget type",null,"Budget type",null,"Spend",null,"Clicks",null,"Impr.",null,"CTR (%)",null,"Avg. pos.",null,"Avg. CPC",null,"Avg. CPM",null,"CPA",null,"Conv.",null,"Neg. keywords"]
[null,"Search>Mid Tail>Exact",null,null,null,null,null,null,null,null,"Active ",null,31,null,150,null,"Daily",null,6,null,3.85,null,8,null,268,null,2.99,null,2.1800000000000002,null,0.48,null,14.37,null,"-",null,0,null,5]
[null,null,null,null,null,null,null,null,"Eligible"]
[null,"Search>Core>Exact",null,null,null,null,null,null,null,null,"Active ",null,76,null,400,null,"Daily",null,6,null,1.88,null,6,null,88,null,6.82,null,1.03,null,0.31,null,21.36,null,"-",null,0,null,5]
[null,null,null,null,null,null,null,null,"Eligible"]
[null,"Search>Long Tail>Exact",null,null,null,null,null,null,null,null,"Active ",null,55,null,150,null,"Daily",null,6,null,0.47,null,2,null,464,null,0.43,null,4.5599999999999996,null,0.24,null,1.01,null,"-",null,0,null,"None"]
[null,null,null,null,null,null,null,null,"Eligible"]
[null,"Search>UnderwaterAudio",null,null,null,null,null,null,"Campaign paused",null,"Paused ",null,96,null,50,null,"Daily",null,6,null,"-",null,"-",null,"-",null,"-",null,"-",null,"-",null,"-",null,"-",null,"-",null,"None"]
[null,"Search total",null,null,null,null,null,null,"-",null,"-",null,"-",null,"-",null,"-",null,"-",null,6.2,null,16,null,820,null,1.95,null,3.4,null,0.39,null,7.56,null,"-",null,0,null,"-"]
[null,"Content total",null,null,null,null,null,null,"-",null,"-",null,"-",null,"-",null,"-",null,"-",null,"-",null,"-",null,"-",null,"-",null,"-",null,"-",null,"-",null,"-",null,"-",null,"-"]
[null,"Deleted items total",null,null,null,null,null,null,"-",null,"-",null,"-",null,"-",null,"-",null,"-",null,0,null,0,null,0,null,"-",null,"-",null,"-",null,"-",null,"-",null,0,null,"-"]
[null,"Overall total - 4 campaigns",null,null,null,null,null,null,"-",null,"-",null,"-",null,"-",null,"-",null,"-",null,6.2,null,16,null,820,null,1.95,null,3.4,null,0.39,null,7.56,null,"-",null,0,null,"-"]
["loading..."]
["There are no campaigns available in this account."]
["Clicks and impressions received in the last three hours may not be included here."]
[]
[]
["Did this help you?"]
["   2012 Microsoft | Legal | Privacy | Microsoft Advertising | Support | Community | Feedback"]
["%>"]
["Loading..."]
["Loading..."]
[]
["Import your Yahoo! account and campaign data"]
[]
["One or more of your accounts has over 100,000 keywords, which exceeds the limit for importing directly into adCenter. You can use the adCenter Desktop tool to quickly import your campaigns and upload them to adCenter. To import your Yahoo! campaigns into adCenter, follow these steps:"]
[]
["1. Download and install the adCenter Desktop tool."]
[]
["2. Use your adCenter user name and password to sign in to adCenter Desktop."]
[]
["3. On the Home tab, click Import, and then click Import from Yahoo!."]
[]
["4. Follow the onscreen instructions to import your campaigns into Desktop."]
[]
["5. In the Manager pane, fix any errors."]
[]
["6. Click Sync Changes to upload your campaigns to adCenter."]
[]
["7. Repeat steps 3 to 6 for each account you want to import."]

{"sheet":"MagentoInventory","index":4,"n_rows":151,"n_cols":3,"rows_kept":151,"cut":false,"hidden":false,"merged":[]}
["Magento Logo"]
[]
["Logged in as underwateradmin|Monday, April 2, 2012|Try Magento Go for Free|Log Out"]
["SearchLoading... "]
[]
["Dashboard"]
["Sales"]
["Orders"]
["Invoices"]
["Shipments"]
["Credit Memos"]
["Transactions"]
["Recurring Profiles (beta)"]
["Billing Agreements"]
["Terms and conditions"]
["Tax"]
["Manage Tax Rules"]
["Manage Tax Zones & Rates"]
["Import / Export Tax Rates"]
["Customer Tax Classes"]
["Product Tax Classes"]
["Catalog"]
["Manage Products"]
["TheFind feed"]
["Manage attributes"]
["Manage items"]
["Manage Categories"]
["Attributes"]
["Manage Attributes"]
["Manage Attribute Sets"]
["URL Rewrite Management"]
["Search Terms"]
["Reviews and Ratings"]
["Customer Reviews"]
["Pending Reviews"]
["All Reviews"]
["Manage Ratings"]
["Tags"]
["All Tags"]
["Pending Tags"]
["Google Sitemap"]
["Mobile"]
["Manage Apps"]
["Submission History"]
["Message Templates"]
["Message Queue"]
["Customers"]
["Manage Customers"]
["Customer Groups"]
["Online Customers"]
["Promotions"]
["Catalog Price Rules"]
["Shopping Cart Price Rules"]
["Newsletter"]
["Newsletter Templates"]
["Newsletter Queue"]
["Newsletter Subscribers"]
["Newsletter Problem Reports"]
["CMS"]
["Pages"]
["Static Blocks"]
["Widgets"]
["Polls"]
["Reports"]
["Sales"]
["Orders"]
["Tax"]
["Invoiced"]
["Shipping"]
["Refunds"]
["Coupons"]
["PayPal Settlement Reports"]
["Shopping Cart"]
["Products in carts"]
["Abandoned carts"]
["Products"]
["Bestsellers"]
["Products Ordered"]
["Most Viewed"]
["Low stock"]
["Downloads"]
["Customers"]
["New Accounts"]
["Customers by orders total"]
["Customers by number of orders"]
["Tags"]
["Customers"]
["Products"]
["Popular"]
["Reviews"]
["Customers Reviews"]
["Products Reviews"]
["Search Terms"]
["Refresh Statistics"]
["System"]
["Magestore Extensions"]
["License Keys"]
["Extension Feedbacks"]
["My Account"]
["Notifications"]
["Tools"]
["Backups"]
["Compilation"]
["Web Services"]
["Users"]
["Roles"]
["Design"]
["Import/Export"]
["Import"]
["Export"]
["Dataflow - Profiles"]
["Dataflow - Advanced Profiles"]
["Manage Currency Rates"]
["Transactional Emails"]
["Custom Variables"]
["Permissions"]
["Users"]
["Roles"]
["Magento Connect"]
["Magento Connect Manager"]
["Package Extensions"]
["Cache Management"]
["Index Management"]
["Manage Stores"]
["Order Statuses"]
["Configuration"]
[]
["Get help for this page"]
["You have 2 critical, 4 major, 19 minor and 46 notice unread message(s). Go to messages inbox Latest Message: Magento Community Preview Version CE 1.7.0.0-RC1 has been released! Read details"]
["Products Ordered"]
["From:  Select Date  ","  Export to:"]
["To:  Select Date  ","Export"]
["Show By:"]
["Refresh"]
["Period","Product Name","Quantity Ordered"]
["2012-03-31","Waterproof iPod + Pyle Headphones",6]
[null,"Waterproof iPod + Aquavibe Headphones",2]
["Total",null,8]
[]
["Help Us Keep Magento Healthy - Report All Bugs"]
["Interface Locale:"]
[]
["Connect with the Magento Community"]
["   Magento is a trademark of Magento Inc."]
["Copyright 2012 Magento Inc."]
[]
["Magento ver. 1.6.0.0"]
["Products Ordered"]
[]
["Loading..."]
["Please wait..."]

{"sheet":"Magento","index":5,"n_rows":163,"n_cols":10,"rows_kept":163,"cut":false,"hidden":false,"merged":[]}
["Magento Logo"]
[]
["Logged in as underwateradmin|Monday, April 2, 2012|Try Magento Go for Free|Log Out"]
["SearchLoading... "]
[]
["Dashboard"]
["Sales"]
["Orders"]
["Invoices"]
["Shipments"]
["Credit Memos"]
["Transactions"]
["Recurring Profiles (beta)"]
["Billing Agreements"]
["Terms and conditions"]
["Tax"]
["Manage Tax Rules"]
["Manage Tax Zones & Rates"]
["Import / Export Tax Rates"]
["Customer Tax Classes"]
["Product Tax Classes"]
["Catalog"]
["Manage Products"]
["TheFind feed"]
["Manage attributes"]
["Manage items"]
["Manage Categories"]
["Attributes"]
["Manage Attributes"]
["Manage Attribute Sets"]
["URL Rewrite Management"]
["Search Terms"]
["Reviews and Ratings"]
["Customer Reviews"]
["Pending Reviews"]
["All Reviews"]
["Manage Ratings"]
["Tags"]
["All Tags"]
["Pending Tags"]
["Google Sitemap"]
["Mobile"]
["Manage Apps"]
["Submission History"]
["Message Templates"]
["Message Queue"]
["Customers"]
["Manage Customers"]
["Customer Groups"]
["Online Customers"]
["Promotions"]
["Catalog Price Rules"]
["Shopping Cart Price Rules"]
["Newsletter"]
["Newsletter Templates"]
["Newsletter Queue"]
["Newsletter Subscribers"]
["Newsletter Problem Reports"]
["CMS"]
["Pages"]
["Static Blocks"]
["Widgets"]
["Polls"]
["Reports"]
["Sales"]
["Orders"]
["Tax"]
["Invoiced"]
["Shipping"]
["Refunds"]
["Coupons"]
["PayPal Settlement Reports"]
["Shopping Cart"]
["Products in carts"]
["Abandoned carts"]
["Products"]
["Bestsellers"]
["Products Ordered"]
["Most Viewed"]
["Low stock"]
["Downloads"]
["Customers"]
["New Accounts"]
["Customers by orders total"]
["Customers by number of orders"]
["Tags"]
["Customers"]
["Products"]
["Popular"]
["Reviews"]
["Customers Reviews"]
["Products Reviews"]
["Search Terms"]
["Refresh Statistics"]
["System"]
["Magestore Extensions"]
["License Keys"]
["Extension Feedbacks"]
["My Account"]
["Notifications"]
["Tools"]
["Backups"]
["Compilation"]
["Web Services"]
["Users"]
["Roles"]
["Design"]
["Import/Export"]
["Import"]
["Export"]
["Dataflow - Profiles"]
["Dataflow - Advanced Profiles"]
["Manage Currency Rates"]
["Transactional Emails"]
["Custom Variables"]
["Permissions"]
["Users"]
["Roles"]
["Magento Connect"]
["Magento Connect Manager"]
["Package Extensions"]
["Cache Management"]
["Index Management"]
["Manage Stores"]
["Order Statuses"]
["Configuration"]
[]
["Get help for this page"]
["You have 2 critical, 4 major, 19 minor and 46 notice unread message(s). Go to messages inbox Latest Message: Magento Community Preview Version CE 1.7.0.0-RC1 has been released! Read details"]
[]
[]
["This report depends on timezone configuration. Once timezone is changed, the lifetime statistics need to be refreshed."]
["Last updated: Apr 2, 2012 1:13:00 PM. To refresh last day's statistics, click here."]
[]
["Total Ordered Report","Show Report"]
["Filter"]
[]
["Match Period To","Order Updated Date report is real-time, does not need statistics refreshing."]
["Period"]
["From *"]
["To *"]
["Order Status","Applies to Any of the Specified Order Statuses"]
[]
["Empty Rows"]
["Show Actual Values"]
["  Export to:"]
["Export"]
["Period","Orders","Sales Items","Sales Total","Invoiced","Refunded","Sales Tax","Sales Shipping","Sales Discount","Canceled"]
["Total ",8,8,1435,1435,0,0,45,0,0]
["2012-03-31",8,8,1435,1435,0,0,45,0,0]
[]
["Help Us Keep Magento Healthy - Report All Bugs"]
["Interface Locale:"]
[]
["Connect with the Magento Community"]
["   Magento is a trademark of Magento Inc."]
["Copyright 2012 Magento Inc."]
[]
["Magento ver. 1.6.0.0"]
["Total Ordered Report","Show Report"]
[]
["Loading..."]
["Please wait..."]

{"sheet":"Facebook","index":6,"n_rows":106,"n_cols":8,"rows_kept":106,"cut":false,"hidden":false,"merged":[]}
[0]
[0]
[0]
["Find Friends"]
["Friend Requests"]
["No new requests"]
["See All Friend Requests"]
["Send a New Message"]
["Messages"]
["See All Messages"]
[]
["Notifications"]
["Melora Aj likes your link."]
["about an hour ago"]
["Devin Layne Kunz sent you a request in Are You Smarter Than A 5th Grader?"]
["about an hour ago"]
["Brett Hafen, Jordan Elmer and 4 others posted in Provo YSA 229th Neighborhood."]
["about an hour ago"]
["Michelle Walker invited you to Camille Walker's event Camille Needs a Favor."]
["2 hours ago"]
[]
["See All Notifications"]
["Search"]
["Scott Walker"]
["Home"]
["Account Settings"]
[]
["Use Facebook as:"]
[1]
["Underwater Audio"]
["Account Settings"]
["Privacy Settings"]
["Help"]
["Ads and Pages"]
["Account"]
["Underwater Audio"]
["All Accounts"]
["304118787 (Scott Walker, USD)"]
["11988765 (Underwater Audio, USD)"]
["Campaigns & Ads (0)"]
[]
["All Ads (0)"]
["Pages (0)"]
["Reports (0)"]
[]
["Scheduled Reports (0)"]
["Settings (0)"]
["Billing (0)"]
[]
["Funding Source (0)"]
["Creative Library (0)"]
[]
["New Creative (0)"]
["Power Editor (0)"]
["Learn More (0)"]
["Have a Question for the Facebook Global Marketing Solutions Team?"]
["We're here to support your business goals. Let us know if you have any questions about your campaign. We'll reply within 1 business day."]
["Contact Us"]
["Create an Ad"]
["All Campaigns"]
["Notifications"]
["2012-03-28"]
[]
["3 ads were approved."]
["6 ads were approved."]
["2012-03-27"]
[]
["The ad Page Post|Most Recent Post was approved."]
["Daily Spend"]
["Today","$82.63 USD"]
["2012-04-01","$224.31 USD"]
["2012-03-31","$86.19 USD"]
["2012-03-30","$62.92 USD"]
["2012-03-29","$107.99 USD"]
["Lifetime stats"]
["3/26/2012 4/2/2012"]
[]
["Sun","Mon","Tue","Wed","Thu","Fri","Sat"]
[]
["to"]
[]
["Sun","Mon","Tue","Wed","Thu","Fri","Sat"]
[]
["No end date"]
["All Except Deleted"]
["Select rows to editSaveCancelFull Report4 results"]
[null,"Campaign?CampaignA campaign is a group of ads that you've created in this account.","Status?StatusEach campaign may be running, paused, completed or deleted.","Start Date?Start DateThe date a campaign is eligible to start running. Campaigns can run continuously or be limited with specific dates.","End Date?End DateThe date a campaign is scheduled to stop. Campaigns can run continuously or be limited with specific dates.","Budget?BudgetThe maximum amount you're willing to spend on each campaign, per day or in the lifetime of the campaign.","Remaining?RemainingThe amount still available in this campaign's daily or lifetime budget.","Spent?SpentThe amount you've spent on your campaign during the dates selected."]
[null,"New Year","Active","2011-12-29","Ongoing",500,483.14,5931.91]
[null,null,"Active","1:42am",null,"Daily","Today"]
[null,null,"Paused"]
[null,null,"Deleted"]
[null,"Sponsored Stories","Active","2012-01-11","Ongoing",300,234.23,2535.84]
[null,null,"Active","4:04pm",null,"Daily","Today"]
[null,null,"Paused"]
[null,null,"Deleted"]
[null,"Underwater Audio Holiday 2011","Paused","2011-11-22","Ongoing",100,100,1619.05]
[null,null,"Paused","11:36am",null,"Daily","Today"]
[null,null,"Active"]
[null,null,"Deleted"]
[null,"UnderwaterAudio Generic","Paused","2011-09-28","Ongoing",500,500,1399.48]
[null,null,"Paused","9:40am",null,"Daily","Today"]
[null,null,"Active"]
[null,null,"Deleted"]
["4 results"]
["Facebook 2012 English (US)"]
["About Advertising Create a Page Developers Careers Privacy Terms Help"]

{"sheet":"Analytics","index":7,"n_rows":897,"n_cols":36,"rows_kept":897,"cut":false,"hidden":false,"merged":[]}
["."]
[]
["Old versioninfo@underwateraudio.comSettingsMy","AccountSign","out"]
["Admin"]
["Help"]
[]
["http://underwateraudio.com","-","http://underwateraudio.com"]
[]
["underwateraudio.com [DEFAULT]"]
[]
[]
["ACCOUNTS LIST"]
[]
[]
["underwateraudio.com"]
[]
["1 Properties"]
[]
[]
[]
["http://underwateraudio.com","-","http://underwateraudio.com"]
[]
[]
["UA-24608686-1"]
[]
[]
["underwateraudio.com [DEFAULT]"]
[]
["Home"]
[]
["Standard Reporting"]
[]
["Custom Reporting"]
[]
["Audience",null,"Loading"]
[]
["Overview"]
[]
["Demographics"]
[null,null,"Loading..."]
[]
["Location",null,"Apr 1, 2012- Apr 1, 2012"]
[null,null,"Compare to: Apr 1, 2012-","Apr","1,",2012]
["Language"]
[null,null,null,"2012-02-01",null,null,null,null,null,null,null,"2012-03-01",null,null,null,null,null,null,null,"2012-04-01",null,null,null,null,null,null,null,null,"Date Range:"]
["Custom Variables",null,null,null,"S","M","T","W","T","F","S",null,"S","M","T","W","T","F","S",null,"S","M","T","W","T","F","S",null,"-"]
[null,null,null,null,null,null,null,1,2,3,4,null,null,null,null,null,1,2,3,null,1,2,3,4,5,6,7,null,"Compare to past"]
["User Defined",null,null,null,5,6,7,8,9,10,11,null,4,5,6,7,8,9,10,null,8,9,10,11,12,13,14,null,"-"]
[null,null,null,null,12,13,14,15,16,17,18,null,11,12,13,14,15,16,17,null,15,16,17,18,19,20,21]
["Behavior",null,null,null,19,20,21,22,23,24,25,null,18,19,20,21,22,23,24,null,22,23,24,25,26,27,28,null,"cancel"]
[null,null,null,null,26,27,28,29,null,null,null,null,25,26,27,28,29,30,31,null,29,30]
[]
["New","vs","Returning","Today",null,null,null,null,null,"None",null,"Today",null,null,null,null,null,"None",null,"Today",null,null,null,null,null,"None"]
[null,null,"All Traffic"]
["Frequency","&","Recency"]
[null,null,"Advanced SegmentsEmail BETAExport"]
["Engagement",null,"Add to Dashboard"]
[]
["Technology",null,"Select up to four segments by which to filter your report ?"]
[]
[]
["Browser","&","OS"]
[]
["Network"]
[]
["Social",null,"All Visits"]
[]
[]
["Engagement"]
[null,null,"New Visitors"]
["Action"]
[]
["Pages"]
[null,null,"Returning Visitors"]
["Mobile"]
[]
[]
["Overview",null,"Paid Search Traffic"]
[]
["Devices"]
[]
["Visitors Flow",null,"Non-paid Search Traffic"]
[]
[]
[]
[null,null,"Search Traffic"]
["Advertising"]
[]
["AdWords"]
[null,null,"Direct Traffic"]
[]
["Campaigns"]
[]
["Keywords",null,"Referral Traffic"]
[]
["Matched","Search","Queries"]
[]
["Day Parts",null,"Visits with Conversions"]
[]
["Destination URLs"]
[]
["Placements",null,"Visits with Transactions"]
[]
["Keyword Positions"]
[]
["TV Ads",null,"Mobile Traffic"]
[]
[]
[]
[null,null,"Non-bounce Visits"]
["Traffic Sources"]
[null,null,"Custom Segments"]
["Overview"]
[]
["Sources",null,"Applycancel"]
[]
[]
["All Traffic",null,"+ New Custom Segment"]
[]
["Direct",null,"CSV"]
[]
["Referrals",null,"TSV"]
[]
["Search",null,"TSV for Excel"]
[]
[null,null,"PDF BETA"]
["Overview"]
[]
["Organic",null,"Report name",null,null,null,null,null,null,null,null,null,null,null,null,null,null,null,null,null,null,null,null,null,null,null,null,null,"The report name is required."]
[]
["Paid"]
[null,null,"Email Report: All Traffic"]
["Campaigns"]
[]
["Search","Engine","Optimization",null,null,null,null,null,null,null,null,null,null,null,null,null,null,null,null,null,null,null,null,null,null,null,null,null,"info@underwateraudio.com"]
[null,null,"To",null,null,null,null,null,null,null,null,null,null,null,null,null,null,null,null,null,null,null,null,null,null,null,null,null,"Must be a valid email address."]
[]
["Queries",null,"Subject",null,null,null,null,null,null,null,null,null,null,null,null,null,null,null,null,null,null,null,null,null,null,null,null,null,"The subject is required."]
[]
["Landing Pages",null,"Attachments",null,null,null,null,null,null,null,null,null,null,null,null,null,null,null,null,null,null,null,null,null,null,null,null,null,"CSV"]
[null,null,null,null,null,null,null,null,null,null,null,null,null,null,null,null,null,null,null,null,null,null,null,null,null,null,null,null,"CSV"]
["Geographical Summary"]
[null,null,null,null,null,null,null,null,null,null,null,null,null,null,null,null,null,null,null,null,null,null,null,null,null,null,null,null,"TSV"]
[]
[null,null,null,null,null,null,null,null,null,null,null,null,null,null,null,null,null,null,null,null,null,null,null,null,null,null,null,null,"TSV for Excel"]
[]
["Content",null,null,null,null,null,null,null,null,null,null,null,null,null,null,null,null,null,null,null,null,null,null,null,null,null,null,null,"PDF"]
[]
["Overview",null,null,null,null,null,null,null,null,null,null,null,null,null,null,null,null,null,null,null,null,null,null,null,null,null,null,null,"All Traffic"]
[null,null,"Frequency",null,null,null,null,null,null,null,null,null,null,null,null,null,null,null,null,null,null,null,null,null,null,null,null,null,"Weekly"]
["Site Content",null,null,null,null,null,null,null,null,null,null,null,null,null,null,null,null,null,null,null,null,null,null,null,null,null,null,null,"Once"]
[]
[null,null,null,null,null,null,null,null,null,null,null,null,null,null,null,null,null,null,null,null,null,null,null,null,null,null,null,null,"Daily"]
["Pages"]
[null,null,null,null,null,null,null,null,null,null,null,null,null,null,null,null,null,null,null,null,null,null,null,null,null,null,null,null,"Weekly"]
["Content Drilldown"]
[null,null,null,null,null,null,null,null,null,null,null,null,null,null,null,null,null,null,null,null,null,null,null,null,null,null,null,null,"Monthly"]
["Landing Pages"]
[null,null,null,null,null,null,null,null,null,null,null,null,null,null,null,null,null,null,null,null,null,null,null,null,null,null,null,null,"Quarterly"]
["Exit Pages",null,null,null,null,null,null,null,null,null,null,null,null,null,null,null,null,null,null,null,null,null,null,null,null,null,null,null,"Day of Month:1st"]
[null,null,null,null,null,null,null,null,null,null,null,null,null,null,null,null,null,null,null,null,null,null,null,null,null,null,null,null,"1st"]
["Site Speed"]
[null,null,null,null,null,null,null,null,null,null,null,null,null,null,null,null,null,null,null,null,null,null,null,null,null,null,null,null,"2nd"]
[]
["Overview",null,null,null,null,null,null,null,null,null,null,null,null,null,null,null,null,null,null,null,null,null,null,null,null,null,null,null,"3rd"]
[]
["Page Timings",null,null,null,null,null,null,null,null,null,null,null,null,null,null,null,null,null,null,null,null,null,null,null,null,null,null,null,"4th"]
[]
["Site Search",null,null,null,null,null,null,null,null,null,null,null,null,null,null,null,null,null,null,null,null,null,null,null,null,null,null,null,"5th"]
[]
[null,null,null,null,null,null,null,null,null,null,null,null,null,null,null,null,null,null,null,null,null,null,null,null,null,null,null,null,"6th"]
["Overview"]
[null,null,null,null,null,null,null,null,null,null,null,null,null,null,null,null,null,null,null,null,null,null,null,null,null,null,null,null,"7th"]
["Usage"]
[null,null,null,null,null,null,null,null,null,null,null,null,null,null,null,null,null,null,null,null,null,null,null,null,null,null,null,null,"8th"]
["Search Terms"]
[null,null,null,null,null,null,null,null,null,null,null,null,null,null,null,null,null,null,null,null,null,null,null,null,null,null,null,null,"9th"]
["Pages"]
[null,null,null,null,null,null,null,null,null,null,null,null,null,null,null,null,null,null,null,null,null,null,null,null,null,null,null,null,"10th"]
["Events"]
[null,null,null,null,null,null,null,null,null,null,null,null,null,null,null,null,null,null,null,null,null,null,null,null,null,null,null,null,"11th"]
[]
["Overview",null,null,null,null,null,null,null,null,null,null,null,null,null,null,null,null,null,null,null,null,null,null,null,null,null,null,null,"12th"]
[]
["Top Events",null,null,null,null,null,null,null,null,null,null,null,null,null,null,null,null,null,null,null,null,null,null,null,null,null,null,null,"13th"]
[]
["Pages",null,null,null,null,null,null,null,null,null,null,null,null,null,null,null,null,null,null,null,null,null,null,null,null,null,null,null,"14th"]
[]
["Events Flow",null,null,null,null,null,null,null,null,null,null,null,null,null,null,null,null,null,null,null,null,null,null,null,null,null,null,null,"15th"]
[]
["AdSense",null,null,null,null,null,null,null,null,null,null,null,null,null,null,null,null,null,null,null,null,null,null,null,null,null,null,null,"16th"]
[]
[null,null,null,null,null,null,null,null,null,null,null,null,null,null,null,null,null,null,null,null,null,null,null,null,null,null,null,null,"17th"]
["Overview"]
[null,null,null,null,null,null,null,null,null,null,null,null,null,null,null,null,null,null,null,null,null,null,null,null,null,null,null,null,"18th"]
["AdSense Pages"]
[null,null,null,null,null,null,null,null,null,null,null,null,null,null,null,null,null,null,null,null,null,null,null,null,null,null,null,null,"19th"]
["AdSense Referrers"]
[null,null,null,null,null,null,null,null,null,null,null,null,null,null,null,null,null,null,null,null,null,null,null,null,null,null,null,null,"20th"]
["In-Page Analytics"]
[null,null,null,null,null,null,null,null,null,null,null,null,null,null,null,null,null,null,null,null,null,null,null,null,null,null,null,null,"21th"]
[]
[null,null,null,null,null,null,null,null,null,null,null,null,null,null,null,null,null,null,null,null,null,null,null,null,null,null,null,null,"22th"]
[]
["Conversions",null,null,null,null,null,null,null,null,null,null,null,null,null,null,null,null,null,null,null,null,null,null,null,null,null,null,null,"23th"]
[]
["Goals",null,null,null,null,null,null,null,null,null,null,null,null,null,null,null,null,null,null,null,null,null,null,null,null,null,null,null,"24th"]
[]
[null,null,null,null,null,null,null,null,null,null,null,null,null,null,null,null,null,null,null,null,null,null,null,null,null,null,null,null,"25th"]
["Overview"]
[null,null,null,null,null,null,null,null,null,null,null,null,null,null,null,null,null,null,null,null,null,null,null,null,null,null,null,null,"26th"]
["Goal URLs"]
[null,null,null,null,null,null,null,null,null,null,null,null,null,null,null,null,null,null,null,null,null,null,null,null,null,null,null,null,"27th"]
["Reverse","Goal","Path"]
[null,null,null,null,null,null,null,null,null,null,null,null,null,null,null,null,null,null,null,null,null,null,null,null,null,null,null,null,"28th"]
["Funnel Visualization"]
[null,null,null,null,null,null,null,null,null,null,null,null,null,null,null,null,null,null,null,null,null,null,null,null,null,null,null,null,"Last Day"]
["Goal Flow",null,null,null,null,null,null,null,null,null,null,null,null,null,null,null,null,null,null,null,null,null,null,null,null,null,null,null,"Day of Week:"]
[null,null,null,null,null,null,null,null,null,null,null,null,null,null,null,null,null,null,null,null,null,null,null,null,null,null,null,null,"S"]
["Ecommerce"]
[null,null,null,null,null,null,null,null,null,null,null,null,null,null,null,null,null,null,null,null,null,null,null,null,null,null,null,null,"M"]
[]
["Overview",null,null,null,null,null,null,null,null,null,null,null,null,null,null,null,null,null,null,null,null,null,null,null,null,null,null,null,"T"]
[]
["Product Performance",null,null,null,null,null,null,null,null,null,null,null,null,null,null,null,null,null,null,null,null,null,null,null,null,null,null,null,"W"]
[]
["Sales Performance",null,null,null,null,null,null,null,null,null,null,null,null,null,null,null,null,null,null,null,null,null,null,null,null,null,null,null,"T"]
[]
["Transactions",null,null,null,null,null,null,null,null,null,null,null,null,null,null,null,null,null,null,null,null,null,null,null,null,null,null,null,"F"]
[]
["Time","to","Purchase",null,null,null,null,null,null,null,null,null,null,null,null,null,null,null,null,null,null,null,null,null,null,null,null,null,"S"]
[null,null,"Advanced Options"]
["Multi-Channel Funnels",null," Active for 6 months"]
[null,null,"1 month"]
[]
["Overview",null,"2 months"]
[]
["Assisted Conversions",null,"3 months"]
[]
["Top","Conversion","Paths"]
[]
["Time Lag",null,"5 months"]
[]
["Path Length",null,"6 months"]
[]
[null,null,"7 months"]
[]
[null,null,"8 months"]
[]
["Help",null,"9 months"]
[]
[null,null,"10 months"]
["The","All","Traffic","Report"]
[null,null,"11 months"]
["Viewing Metrics"]
[null,null,"12 months"]
["Find","Your","Old","Reports","in","the","New","Interface"]
[]
[null,null,"Email body is missing, please drop a line."]
[]
[]
[null,null,"Cancel"]
["Help center"]
[null,null,"Add To An Existing Email: All Traffic"]
[]
[]
["Get Help",null,"Daily Emails (0)"]
[null,null,"Weekly Emails (0)"]
[null,null,"Monthly Emails (0)"]
[null,null,"Quarterly Emails (0)"]
[]
[]
[null,null,"Create a new email"]
[null,null,"Cancel"]
[]
[null,null,"Control the number of visits used to calculate this report:"]
[]
[]
[]
[]
[null,null,"Faster Processing"]
[]
[null,null,"Higher Precision"]
[]
[null,null,"Learn More"]
[]
[null,null,"This report is based on 0 visits (NaN% of visits)."]
[]
[null,null,null,null,null,null,null,null,null,null,null,null,null,null,null,null,null,null,null,null,null,null,null,null,null,null,null,null,"100.00% of total visits"]
[]
[null,null,"Explorer"]
[]
[null,null,"Site UsageGoal Set 1Ecommerce"]
[]
[]
[]
[]
[]
[]
[null,null,"Day"]
[]
[null,null,"Week"]
[]
[null,null,"Month"]
[]
[null,null,"Visits"]
[]
[]
[]
[]
[null,null,"Site Usage"]
[]
[null,null,"Visits"]
[]
[]
[null,null,"Pages/Visit"]
[]
[]
[null,null,"Avg. Visit Duration"]
[]
[]
[null,null,"% New Visits"]
[]
[]
[null,null,"Bounce Rate"]
[]
[]
[null,null,"Goal Set 1"]
[]
[null,null,"Visits"]
[]
[]
[null,null,"Goal Conversion Rate"]
[]
[]
[null,null,"Per Visit Goal Value"]
[]
[]
[null,null,"Conversion (Goal1 Conversion Rate)"]
[]
[]
[null,null,"Ecommerce"]
[]
[null,null,"Visits"]
[]
[]
[null,null,"Revenue"]
[]
[]
[null,null,"Transactions"]
[]
[]
[null,null,"Average Value"]
[]
[]
[null,null,"Ecommerce Conversion Rate"]
[]
[]
[null,null,"Per Visit Value"]
[]
[]
[null,null,"Display as alphabetical list"]
[]
[null,null," vs. "]
[]
[null,null,"Select a metric"]
[]
[]
[]
[]
[null,null,"Site Usage"]
[]
[null,null,"Visits"]
[]
[]
[null,null,"Pages/Visit"]
[]
[]
[null,null,"Avg. Visit Duration"]
[]
[]
[null,null,"% New Visits"]
[]
[]
[null,null,"Bounce Rate"]
[]
[]
[null,null,"Goal Set 1"]
[]
[null,null,"Visits"]
[]
[]
[null,null,"Goal Conversion Rate"]
[]
[]
[null,null,"Per Visit Goal Value"]
[]
[]
[null,null,"Conversion (Goal1 Conversion Rate)"]
[]
[]
[null,null,"Ecommerce"]
[]
[null,null,"Visits"]
[]
[]
[null,null,"Revenue"]
[]
[]
[null,null,"Transactions"]
[]
[]
[null,null,"Average Value"]
[]
[]
[null,null,"Ecommerce Conversion Rate"]
[]
[]
[null,null,"Per Visit Value"]
[]
[]
[null,null,"Display as alphabetical list"]
[]
[]
[null,null," Visits"]
[]
[]
[]
[null,null,"Show: All | Starred",null,null,null,null,null,null,null,null,null,null,null,null,null,null,null,null,null,null,null,null,null,null,null,null,null,"+ Create new annotation"]
[]
[null,null,null,null,null,null,null,null,null,null,null,null,null,null,null,null,null,null,null,null,null,null,null,null,null,null,null,null,null,"private","edit"]
[]
[null,null,null,null,null,null,null,null,null,null,null,null,null,null,null,null,null,null,null,"/160",null,null,null,null,null,null,null,"Visibility:","Shared","Save"]
[null,null,null,null,null,null,null,null,null,null,null,null,null,null,null,null,null,null,null,null,null,null,null,null,null,null,null,null,null,"|"]
[null,null,null,null,null,null,null,null,null,null,null,null,null,null,null,null,null,null,null,null,null,null,null,null,null,null,null,null,"Private","Cancel"]
[null,null,null,null,null,null,null,null,null,null,null,null,null,null,null,null,null,null,null,null,null,null,null,null,null,null,null,null,null,"|"]
[null,null,null,null,null,null,null,null,null,null,null,null,null,null,null,null,null,null,null,null,null,null,null,null,null,null,null,null,null,"Delete"]
[null,null,"An error occured. Please refresh your page and try again."]
[]
[]
[null,null,"Visits",null,null,null,null,null,null,null,null,null,null,null,null,null,null,null,null,null,null,null,null,null,null,null,null,null,"Revenue","Transactions","Average Value","Ecommerce Conversion Rate","Per Visit Value"]
[null,null,654,null,null,null,null,null,null,null,null,null,null,null,null,null,null,null,null,null,null,null,null,null,null,null,null,null,1285,9,142.78,1.38E-2,1.96]
[]
[null,null,"% of Total:",null,null,null,null,null,null,null,null,null,null,null,null,null,null,null,null,null,null,null,null,null,null,null,null,null,"% of Total:","% of Total:","Site Avg:","Site Avg:","Site Avg:"]
[]
[null,null,1,null,null,null,null,null,null,null,null,null,null,null,null,null,null,null,null,null,null,null,null,null,null,null,null,null,1,1,142.78,1.38E-2,1.96]
[]
[null,null,-654,null,null,null,null,null,null,null,null,null,null,null,null,null,null,null,null,null,null,null,null,null,null,null,null,null,-1285,-9,0,0,0]
[]
[]
[null,null,"Primary Dimension:"]
[]
[null,null,"Source/Medium"]
[]
[null,null,"Source"]
[]
[null,null,"Medium"]
[]
[null,null,"Other"]
[]
[]
[]
[null,null,"Visitors"]
[]
[null,null,"Language"]
[]
[]
[null,null,"Continent"]
[]
[]
[null,null,"Sub Continent Region"]
[]
[]
[null,null,"Country/Territory"]
[]
[]
[null,null,"Region"]
[]
[]
[null,null,"City"]
[]
[]
[null,null,"Technology"]
[]
[null,null,"Browser"]
[]
[]
[null,null,"Browser Version"]
[]
[]
[null,null,"Operating System"]
[]
[]
[null,null,"Domain"]
[]
[]
[null,null,"Screen Colors"]
[]
[]
[null,null,"Screen Resolution"]
[]
[]
[null,null,"Flash Version"]
[]
[]
[null,null,"Java Support"]
[]
[]
[null,null,"Traffic Sources"]
[]
[null,null,"Source"]
[]
[]
[null,null,"Medium"]
[]
[]
[null,null,"Keyword"]
[]
[]
[null,null,"Campaign"]
[]
[]
[null,null,"Ad Content"]
[]
[]
[null,null,"Visitor Type"]
[]
[]
[null,null,"Landing Page"]
[]
[]
[null,null,"Content"]
[]
[null,null,"Hostname"]
[]
[]
[null,null,"User Defined Value"]
[]
[]
[null,null,"Display as alphabetical list"]
[]
[]
[]
[]
[]
[]
[]
[]
[]
[]
[]
[]
[null,null,"advanced"]
[]
[null,null,"Plot Rows"]
[]
[null,null,"Secondary dimension"]
[]
[]
[null,null,"Default"]
[]
[null,null,"Absolute Change"]
[]
[null,null,"Weighted"]
[null,null,"Sort Type: "]
[]
[]
[null,null,"Default"]
[]
[]
[null,null,"+ Add a dimension or metric"]
[]
[]
[]
[null,null,"Dimensions"]
[]
[null,null,"Source/Medium"]
[]
[]
[null,null,"Site Usage"]
[]
[null,null,"Visits"]
[]
[]
[null,null,"Pages/Visit"]
[]
[]
[null,null,"Avg. Visit Duration"]
[]
[]
[null,null,"% New Visits"]
[]
[]
[null,null,"Bounce Rate"]
[]
[]
[null,null,"Goal Set 1"]
[]
[null,null,"Visits"]
[]
[]
[null,null,"Goal Conversion Rate"]
[]
[]
[null,null,"Per Visit Goal Value"]
[]
[]
[null,null,"Conversion (Goal1 Conversion Rate)"]
[]
[]
[null,null,"Ecommerce"]
[]
[null,null,"Visits"]
[]
[]
[null,null,"Revenue"]
[]
[]
[null,null,"Transactions"]
[]
[]
[null,null,"Average Value"]
[]
[]
[null,null,"Ecommerce Conversion Rate"]
[]
[]
[null,null,"Per Visit Value"]
[]
[]
[null,null,"Display as alphabetical list"]
[]
[null,null,"Include"]
[]
[null,null,"Exclude"]
[]
[null,null,"Exactly matching"]
[]
[null,null,"Matching RegExp"]
[]
[null,null,"Begins With"]
[]
[null,null,"Ends With"]
[]
[null,null,"Containing"]
[]
[null,null,"Less than"]
[]
[null,null,"Greater than"]
[]
[null,null,"Equals"]
[]
[null,null,"Less than"]
[]
[null,null,"Greater than"]
[]
[null,null,"Apply cancel"]
[]
[]
[]
[null,null,"Visitors"]
[]
[null,null,"Language"]
[]
[]
[null,null,"Continent"]
[]
[]
[null,null,"Sub Continent Region"]
[]
[]
[null,null,"Country/Territory"]
[]
[]
[null,null,"Region"]
[]
[]
[null,null,"City"]
[]
[]
[null,null,"Technology"]
[]
[null,null,"Browser"]
[]
[]
[null,null,"Browser Version"]
[]
[]
[null,null,"Operating System"]
[]
[]
[null,null,"Domain"]
[]
[]
[null,null,"Screen Colors"]
[]
[]
[null,null,"Screen Resolution"]
[]
[]
[null,null,"Flash Version"]
[]
[]
[null,null,"Java Support"]
[]
[]
[null,null,"Traffic Sources"]
[]
[null,null,"Source"]
[]
[]
[null,null,"Medium"]
[]
[]
[null,null,"Keyword"]
[]
[]
[null,null,"Campaign"]
[]
[]
[null,null,"Ad Content"]
[]
[]
[null,null,"Visitor Type"]
[]
[]
[null,null,"Landing Page"]
[]
[]
[null,null,"Content"]
[]
[null,null,"Hostname"]
[]
[]
[null,null,"User Defined Value"]
[]
[]
[null,null,"Display as alphabetical list"]
[]
[null,null,null,null,null,null,null,null,null,null,null,null,null,null,null,null,null,null,null,null,null,null,null,null,null,null,null,null,null,"Source/Medium","Visits","Revenue","Transactions","Average Value","Ecommerce Conversion Rate","Per Visit Value"]
[null,null,null,null,null,null,null,null,null,null,null,null,null,null,null,null,null,null,null,null,null,null,null,null,null,null,null,null,1,"google / organic",172,565,4,141.25,2.3300000000000001E-2,3.28]
[null,null,null,null,null,null,null,null,null,null,null,null,null,null,null,null,null,null,null,null,null,null,null,null,null,null,null,null,2,"aol / organic",5,20,1,20,0.2,4]
[null,null,null,null,null,null,null,null,null,null,null,null,null,null,null,null,null,null,null,null,null,null,null,null,null,null,null,null,3,"bing / organic",7,175,1,175,0.1429,25]
[null,null,null,null,null,null,null,null,null,null,null,null,null,null,null,null,null,null,null,null,null,null,null,null,null,null,null,null,4,"google / cpc",157,175,1,175,6.4000000000000003E-3,1.1100000000000001]
[null,null,null,null,null,null,null,null,null,null,null,null,null,null,null,null,null,null,null,null,null,null,null,null,null,null,null,null,5,"newrichmond-news.com / referral",2,175,1,175,0.5,87.5]
[null,null,null,null,null,null,null,null,null,null,null,null,null,null,null,null,null,null,null,null,null,null,null,null,null,null,null,null,6,"timberhillac.com / referral",2,175,1,175,0.5,87.5]
[null,null,null,null,null,null,null,null,null,null,null,null,null,null,null,null,null,null,null,null,null,null,null,null,null,null,null,null,7,"(direct) / (none)",46,0,0,0,0,0]
[null,null,null,null,null,null,null,null,null,null,null,null,null,null,null,null,null,null,null,null,null,null,null,null,null,null,null,null,8,"amazon.com / referral",93,0,0,0,0,0]
[null,null,null,null,null,null,null,null,null,null,null,null,null,null,null,null,null,null,null,null,null,null,null,null,null,null,null,null,9,"avg / organic",1,0,0,0,0,0]
[null,null,null,null,null,null,null,null,null,null,null,null,null,null,null,null,null,null,null,null,null,null,null,null,null,null,null,null,10,"bestbuy.com / referral",2,0,0,0,0,0]
[null,null,null,null,null,null,null,null,null,null,null,null,null,null,null,null,null,null,null,null,null,null,null,null,null,null,null,null,11,"blekko.com / referral",1,0,0,0,0,0]
[null,null,null,null,null,null,null,null,null,null,null,null,null,null,null,null,null,null,null,null,null,null,null,null,null,null,null,null,12,"bwp.cnet.com / referral",1,0,0,0,0,0]
[null,null,null,null,null,null,null,null,null,null,null,null,null,null,null,null,null,null,null,null,null,null,null,null,null,null,null,null,13,"comcast / organic",1,0,0,0,0,0]
[null,null,null,null,null,null,null,null,null,null,null,null,null,null,null,null,null,null,null,null,null,null,null,null,null,null,null,null,14,"dogpile.com / referral",1,0,0,0,0,0]
[null,null,null,null,null,null,null,null,null,null,null,null,null,null,null,null,null,null,null,null,null,null,null,null,null,null,null,null,15,"dtzd2s.com / referral",1,0,0,0,0,0]
[null,null,null,null,null,null,null,null,null,null,null,null,null,null,null,null,null,null,null,null,null,null,null,null,null,null,null,null,16,"ebay.com / referral",1,0,0,0,0,0]
[null,null,null,null,null,null,null,null,null,null,null,null,null,null,null,null,null,null,null,null,null,null,null,null,null,null,null,null,17,"ehow.com / referral",2,0,0,0,0,0]
[null,null,null,null,null,null,null,null,null,null,null,null,null,null,null,null,null,null,null,null,null,null,null,null,null,null,null,null,18,"facebook.com / referral",54,0,0,0,0,0]
[null,null,null,null,null,null,null,null,null,null,null,null,null,null,null,null,null,null,null,null,null,null,null,null,null,null,null,null,19,"forum.slowtwitch.com / referral",1,0,0,0,0,0]
[null,null,null,null,null,null,null,null,null,null,null,null,null,null,null,null,null,null,null,null,null,null,null,null,null,null,null,null,20,"googleads.g.doubleclick.net / referral",57,0,0,0,0,0]
[null,null,null,null,null,null,null,null,null,null,null,null,null,null,null,null,null,null,null,null,null,null,null,null,null,null,null,null,21,"ifixit.com / referral",2,0,0,0,0,0]
[null,null,null,null,null,null,null,null,null,null,null,null,null,null,null,null,null,null,null,null,null,null,null,null,null,null,null,null,22,"interesting.cc / referral",1,0,0,0,0,0]
[null,null,null,null,null,null,null,null,null,null,null,null,null,null,null,null,null,null,null,null,null,null,null,null,null,null,null,null,23,"lavamagazine.com / referral",21,0,0,0,0,0]
[null,null,null,null,null,null,null,null,null,null,null,null,null,null,null,null,null,null,null,null,null,null,null,null,null,null,null,null,24,"livestrong.com / referral",1,0,0,0,0,0]
[null,null,null,null,null,null,null,null,null,null,null,null,null,null,null,null,null,null,null,null,null,null,null,null,null,null,null,null,25,"menshealth.com / referral",1,0,0,0,0,0]
[null,null,null,null,null,null,null,null,null,null,null,null,null,null,null,null,null,null,null,null,null,null,null,null,null,null,null,null,26,"portal.wowway.net / referral",1,0,0,0,0,0]
[null,null,null,null,null,null,null,null,null,null,null,null,null,null,null,null,null,null,null,null,null,null,null,null,null,null,null,null,27,"productads-manualpolicing.amazon.com / referral",1,0,0,0,0,0]
[null,null,null,null,null,null,null,null,null,null,null,null,null,null,null,null,null,null,null,null,null,null,null,null,null,null,null,null,28,"s.ytimg.com / referral",1,0,0,0,0,0]
[null,null,null,null,null,null,null,null,null,null,null,null,null,null,null,null,null,null,null,null,null,null,null,null,null,null,null,null,29,"search-results / organic",1,0,0,0,0,0]
[null,null,null,null,null,null,null,null,null,null,null,null,null,null,null,null,null,null,null,null,null,null,null,null,null,null,null,null,30,"search.alot.com / referral",2,0,0,0,0,0]
[null,null,null,null,null,null,null,null,null,null,null,null,null,null,null,null,null,null,null,null,null,null,null,null,null,null,null,null,31,"searchmobileonline.com / referral",2,0,0,0,0,0]
[null,null,null,null,null,null,null,null,null,null,null,null,null,null,null,null,null,null,null,null,null,null,null,null,null,null,null,null,32,"t.co / referral",1,0,0,0,0,0]
[null,null,null,null,null,null,null,null,null,null,null,null,null,null,null,null,null,null,null,null,null,null,null,null,null,null,null,null,33,"ww2.cox.com / referral",1,0,0,0,0,0]
[null,null,null,null,null,null,null,null,null,null,null,null,null,null,null,null,null,null,null,null,null,null,null,null,null,null,null,null,34,"yahoo / organic",11,0,0,0,0,0]
[]
[null,null,"Show rows:"]
[null,null,"Go to:1 - 34 of 34"]
[]
[]
[]
[]
[]
[null,null,"This report was generated on 4/2/12 at 8:11 PM - Refresh Report"]
[]
[]
[]
["2012 Google | Analytics Home | Terms of Service | Privacy Policy | Contact us | Send Feedback"]
[]
["Loading ..."]
[]
[]
[]
[]
[]
[]
[]
[]
[]
[]
[]
[]
[]
[]
[]
[]
[]
[]
[]
[]
[]
[]
[]
[]
[]
[]
[]
[]
[]
[]
[]
[]
[]
[]
[]
[]
[]
[]
[]
[]
[]
[]
[]
[]
[]
[]
[]
[]
[]
[]
[]
[]
[]
[]
[]
[]
[]
[]
[]
[]
[]
[]
[]
[]
[]
[]
[]
[]
[]
[]
[]
[]
[]
[]
[]
[]
[]
[]
[]
[]
[]
[]
[]
[]
[]
[]
[]
[]
[]
[]
[]
[]
[]
[]
[]
[]
[]
[]
[]
[]
[]
[]
[]
["Data Export API Requests"]
[]
["Use the URLs below with the Google Analytics Data Export API."]
[]
["OKCancel"]

{"sheet":"AmazonInventory","index":8,"n_rows":149,"n_cols":10,"rows_kept":149,"cut":false,"hidden":false,"merged":[]}
["www.amazon.com"]
["HOME | MESSAGES | HELP | LOGOUT"]
["INVENTORY"]
[]
["Manage Inventory "]
["Manage FBA Inventory "]
["Add a Product "]
["Upload Products & Inventory "]
["Download Inventory File "]
["Manage Promotions "]
["Manage FBA Shipments "]
["ORDERS"]
[]
["Manage Orders "]
["Order Reports "]
["Upload Order Related Files "]
["Manage Returns "]
["REPORTS"]
[]
["Payments "]
["Amazon Selling Coach "]
["Business Reports "]
["Fulfillment "]
["Tax Document Library "]
["PERFORMANCE"]
[]
["Customer Metrics "]
["Feedback "]
["A-to-z Guarantee Claims "]
["Chargeback Claims "]
["Performance Notifications "]
["SETTINGS"]
[]
["Account Info "]
["Notification Preferences "]
["Login Settings "]
["Manage Returns Settings "]
["Gift Options "]
["Shipping Settings "]
["Tax Settings "]
["User Permissions "]
["Your Info & Policies "]
["Fulfillment by Amazon "]
["All Inventory View  |  Inventory Amazon Fulfills  |  Shipping Queue"]
["Amazon-Fulfilled Inventory","Sign up for International Shipping"]
["Learn more","Now you can sell your Media items internationally through FBA Export."]
[null,"Sign up for FBA Export"]
[]
[null,"E.g.: \"harry potter\", \"harry\", \"B000122SSP\", \"your-merchant-sku\"","Search"]
[null,"Min: Max:"]
[]
["Storage Monitor"]
[]
["What's this?"]
[]
["Standard-Size"]
[]
[445]
["5000 units"]
[]
["Approaching Inventory Storage Limit."]
[]
["At risk of reaching Inventory Storage Limit."]
[]
["Inventory Storage Limit reached."]
[]
["Oversize"]
[]
[0]
["500 units"]
[]
["Approaching Inventory Storage Limit."]
[]
["At risk of reaching Inventory Storage Limit."]
[]
["Inventory Storage Limit reached."]
[]
["You have exceeded 75% of your Inventory Storage Limit for Standard-Size Units. Learn more"]
["You have exceeded 90% of your Inventory Storage Limit for Standard-Size Units. Learn more"]
["You have reached your Inventory Storage Limit for Standard-Size Units. You will be unable to send additional Units of this type to an Amazon fulfillment center until your inventory level decreases below your Inventory Storage Limit. Learn more"]
["You have exceeded 75% of your Inventory Storage Limit for Oversize Units. Learn more"]
["You have exceeded 90% of your Inventory Storage Limit for Oversize Units. Learn more"]
["You have reached your Inventory Storage Limit for Oversize Units. You will be unable to send additional Units of this type to an Amazon fulfillment center until your inventory level decreases below your Inventory Storage Limit. Learn more"]
[]
["Listings last updated on: April 2, 2012 12:23:58 PM PDT"]
[]
[]
["Please Note:"]
["All Items (1 to 10 of 10 Items)","Include Archived Items What are archived items?Show ASIN/FNSKU","Page 1"]
[null,"Apply to 0 Selected Item(s):"," Go to the Manage FBA Inventory Report","Reset prices  Submit prices"]
[null," Go"]
[null,"Merchant SKU","Title","Condition","Price","Inbound","Fulfillable","Unfulfillable","Reserved","Unit Volume"]
[null,"Merchant SKUYour listing identifier",null,"ConditionItem's physical condition","PriceListing's current price","InboundQuantity inbound to Amazon","FulfillableQuantity available for shipment from Amazon","UnfulfillableQuantity damaged or otherwise unfit for shipment from Amazon","ReservedQuantity set aside for a pending order or item verification","(cubic feet)"]
[null,null,null,null,null,null,null,null,null,"Unit VolumePer-unit volume (including packaging)"]
[null,"AVIDWP966","Waterproof Digital Earbuds","New","$ ",0,0,0,0,1.4999999999999999E-2]
[null,null,"EAN: 0628586849617 ASIN: B003UVI8ZK FNSKU: X0009XPQA3 "]
[null,"AquatuneLW","Nautilus 100% waterproof headphones (standard cord length, white)","New","$ ",0,0,0,0,2.1000000000000001E-2]
[null,null,"EAN: 0628586849679 ASIN: B006IJU9F8 FNSKU: X0009PWGXL "]
[null,"AqutuneLB","Nautilus 100% waterproof headphones (standard cord length, black)","New","$ ",0,0,0,0,2.1000000000000001E-2]
[null,null,"EAN: 0628586849693 ASIN: B006IF8292 FNSKU: X0009PWGX1 "]
[null,"IX-PN5X-1QKN","Waterproof iPod Shuffle SILVER (4th Gen 2GB) by Underwater Audio (New waterproof headphone promotions coming soon!) (More Colors Available! Click 'Underwater Audio' by the title for availability)","New","$ ",27,2,"3 2 1",7,3.0000000000000001E-3]
[null,null,"EAN: 0628586849600 ASIN: B005FA38SG FNSKU: X0008CWEZP "]
[null,"QP-92DO-2XBL","Pyle PWPE10W Marine Sport Waterproof In-Ear Earbud Stereo Headphones for iPod/iPhone/MP3 Player (White)","New","$ ",0,86,0,1,2.4E-2]
[null,null,"EAN: 0068888900201 ASIN: B0037Z1FRM FNSKU: X0008OKEC3 "]
[null,"WIpodPink","Waterproof iPod Shuffle PINK (4th Gen 2GB) by Underwater Audio (New waterproof headphone promotions coming soon!) (More Colors Available! Click 'Underwater Audio' by the title for availability)","New","$ ",24,0,"1 1",1,7.0000000000000001E-3]
[null,null,"EAN: 0628586849655 ASIN: B006WN65VC FNSKU: X000A6H0E9 "]
[null,"WiPodBlue","Waterproof iPod Shuffle BLUE (4th Gen 2GB) by Underwater Audio (New waterproof headphone promotions coming soon!) (More Colors Available! Click 'Underwater Audio' by the title for availability)","New","$ ",19,2,"1 1",1,8.9999999999999993E-3]
[null,null,"EAN: 0628586849624 ASIN: B00749YS30 FNSKU: X000AGZEG5 "]
[null,"WiPodGreen","Waterproof iPod Shuffle GREEN (4th Gen 2GB) by Underwater Audio (New waterproof headphone promotions coming soon!) (More Colors Available! Click 'Underwater Audio' by the title for availability)","New","$ ",8,3,0,0,8.9999999999999993E-3]
[null,null,"EAN: 0628586849648 ASIN: B0074A4LRW FNSKU: X000AGZP19 "]
[null,"WiPodOrange","Waterproof iPod Shuffle ORANGE (4th Gen 2GB) by Underwater Audio (New waterproof headphone promotions coming soon!) (More Colors Available! Click 'Underwater Audio' by the title for availability)","New","$ ",11,19,0,1,8.0000000000000002E-3]
[null,null,"EAN: 0628586849631 ASIN: B0074A38L2 FNSKU: X000AGZJVP "]
[null,"iHip-Aquavibe","iHip AquaVibe Underwater Earbuds Durable and Lightweight Down to 25 Meters","New","$ ",96,131,0,0,8.9999999999999993E-3]
[null,null,"EAN: 0187016639674 ASIN: B005T4J2LA FNSKU: X000A5452P "]
[null,"Apply to 0 Selected Item(s):","Reset prices  Submit prices"]
[null," Go"]
["1 to 10 of 10 Items","Page 1"]
["Prices for the following MSKU(s) could not be updated:"]
[]
["Reason","Merchant SKU"]
["STATUS","MSKU"]
["Please wait..."]
["Why are my items unfulfillable?"]
[]
["Items are designated as unfulfillable when they are damaged or otherwise unfit for sale or shipment. Learn more"]
[]
["Disposition","Units"]
["Carrier Damaged"]
["Customer Damaged"]
["Defective"]
["Distributor Damaged"]
["Expired"]
["Warehouse Damaged"]
["Create a removal order for:"]
["This Item"]
["All Unfulfillable Inventory"]
["Submit"]
["We are making changes to the download version of this report to better support sellers with large inventories and provide a more consistent download experience. The old CSV version will be removed soon. Please migrate any dependencies you may have on this report to the new tab-delimited \"Manage FBA Inventory\" report on the Amazon Fulfillment Reports page by the end of January 2012."]
[]
["Continue"]
[]
[]
[]
[]
[]
[]
[]
["Rate this page   |   Contact Seller Support"]
["Underwater Audio © 1999-2012, Amazon.com, Inc. or its affiliates "]

{"sheet":"AmazonSales","index":9,"n_rows":205,"n_cols":9,"rows_kept":205,"cut":false,"hidden":false,"merged":[]}
["www.amazon.com"]
["HOME | MESSAGES | HELP | LOGOUT"]
["INVENTORY"]
[]
["Manage Inventory "]
["Manage FBA Inventory "]
["Add a Product "]
["Upload Products & Inventory "]
["Download Inventory File "]
["Manage Promotions "]
["Manage FBA Shipments "]
["ORDERS"]
[]
["Manage Orders "]
["Order Reports "]
["Upload Order Related Files "]
["Manage Returns "]
["REPORTS"]
[]
["Payments "]
["Amazon Selling Coach "]
["Business Reports "]
["Fulfillment "]
["Tax Document Library "]
["PERFORMANCE"]
[]
["Customer Metrics "]
["Feedback "]
["A-to-z Guarantee Claims "]
["Chargeback Claims "]
["Performance Notifications "]
["SETTINGS"]
[]
["Account Info "]
["Notification Preferences "]
["Login Settings "]
["Manage Returns Settings "]
["Gift Options "]
["Shipping Settings "]
["Tax Settings "]
["User Permissions "]
["Your Info & Policies "]
["Fulfillment by Amazon "]
["You are participating in New Site Metrics and Reports. Feedback | Exit Beta "]
["CancelTry it now"]
[]
["We would appreciate any feedback or suggestions regarding this Beta experience."]
[]
[1]
[2]
[3]
[4]
[5]
[6]
[7]
[8]
[9]
[10]
["Poor Good"]
[1]
[2]
[3]
[4]
[5]
[6]
[7]
[8]
[9]
[10]
["Poor Good"]
[]
["Is there anything else you would like us to know?"]
[]
["CancelSubmit"]
[]
["Clicking \"Exit discovery\" will revert this page back to the original experience. New Site Metrics and Reports."]
[]
["How would you rate the overall experience?"]
[]
[1]
[2]
[3]
[4]
[5]
[6]
[7]
[8]
[9]
[10]
["Poor Good"]
[]
["Is there anything else you would like us to know?"]
[]
["Remain in BetaExit Beta"]
["Columns"]
[]
["Columns"]
["Show/Hide Fields:"]
["(Parent) ASIN"]
["Title"]
["Sessions"]
["Session Percentage"]
["Page Views"]
["Page Views Percentage"]
["Buy Box Percentage"]
["Units Ordered"]
["Unit Session Percentage"]
["Ordered Product Sales"]
["Orders Placed"]
[]
["Reports"]
[]
["Business Reports"]
["By Date"]
["Sales and Traffic"]
["Detail Page Sales and Traffic"]
["Seller Performance"]
["By ASIN"]
["Detail Page Sales and Traffic"]
["Detail Page Sales and Traffic by Parent Item"]
["Detail Page Sales and Traffic by Child Item"]
["Other"]
["Sales and Orders by Month"]
["Listings with Missing Information"]
["Amazon Selling Coach"]
[]
["Low or Out-of-Stock Items"]
["ASIN Merge Notification"]
["Fulfillment Opportunities"]
["Low Price Opportunities"]
["Product Opportunities"]
[]
["Display: "]
[]
["Detail Page Sales and Traffic by Parent Item"]
[]
["Learn more"]
[]
["View:"]
[]
["By Day"]
["By Week"]
["By Month"]
[]
["From:To:"]
["Zoom:"]
[]
["7D"]
["1M"]
["3M"]
["6M"]
["1Y"]
["2Y"]
[]
["Download"]
[]
["CSV"]
[]
["Pivot"]
[]
["SKU Performance"]
[]
["Return to Date Report"]
[null,"(Parent) ASIN","Title","Page Views","Page Views Percentage","Buy Box Percentage","Units Ordered","Ordered Product Sales","Orders Placed"]
[]
[null,"Sort Descending","Remove Column","Sort Descending","Sort Descending","Sort Descending","Sort Descending","Sort Descending","Sort Descending"]
[null,"Sort Ascending",null,"Sort Ascending","Sort Ascending","Sort Ascending","Sort Ascending","Sort Ascending","Sort Ascending"]
[null,"Remove Column","What's this?","Remove Column","Remove Column","Remove Column","Remove Column","Remove Column","Remove Column"]
[null,null,"Title or name of the product"]
[null,"What's this?",null,"What's this?","What's this?","What's this?","What's this?","What's this?","What's this?"]
[null,"A parent product appears in our catalog as a non-buyable, generic identifier for a product that has buyable variations (child products)",null,"Hits in your Amazon.com presence for the selected time period","Percentage of page views that a particular SKU/ASIN receives relative to the total number of page views for all products","This is the percentage of page views where the buy box (the add to shopping cart link) appeared on the page for customers to add your product to their cart","Number of units ordered","The amount of product order, calculated by multiplying the price of products and the number of units sold for the selected time period","Number of orders placed"]
[]
[null,"(Parent) ASIN","Title","Page Views","Page Views Percentage","Buy Box Percentage","Units Ordered","Ordered Product Sales","Orders Placed"]
[]
[null,"B005T4J2LA","iHip AquaVibe Underwater Earbuds Durable and Lightweight Down to 25 Meters",12,3.7699999999999997E-2,0,0,0,0]
[null,"B006O64JH4","Pyle Marine Sport Waterproof In-Ear Earbud Stereo Headphones for iPod/iPhone/MP3 Player",214,0.67300000000000004,0,0,0,0]
[null,"B00749YS30","Waterproof iPod Shuffle BLUE (4th Gen 2GB) by Underwater Audio (New waterproof headphone promotions coming soon!) (More Colors Available! Click 'Underwater Audio' by the title for availability)",10,3.1399999999999997E-2,1,0,0,0]
[null,"B0074A38L2","Waterproof iPod Shuffle ORANGE (4th Gen 2GB) by Underwater Audio (New waterproof headphone promotions coming soon!) (More Colors Available! Click 'Underwater Audio' by the title for availability)",1,3.0999999999999999E-3,1,0,0,0]
[null,"B0074A4LRW","Waterproof iPod Shuffle GREEN (4th Gen 2GB) by Underwater Audio (New waterproof headphone promotions coming soon!) (More Colors Available! Click 'Underwater Audio' by the title for availability)",6,1.89E-2,1,0,0,0]
[null,"B005FA38SG","Waterproof iPod Shuffle SILVER (4th Gen 2GB) by Underwater Audio (New waterproof headphone promotions coming soon!) (More Colors Available! Click 'Underwater Audio' by the title for availability)",58,0.18240000000000001,0.91,1,165,1]
[null,"B006WN65VC","Waterproof iPod Shuffle PINK (4th Gen 2GB) by Underwater Audio (New waterproof headphone promotions coming soon!) (More Colors Available! Click 'Underwater Audio' by the title for availability)",17,5.3499999999999999E-2,1,1,168.99,1]
["Retrieving more data..."]
[]
["Creating graph"]
["Date:"]
[]
["Pivot"]
["SKU Performance"]
[]
[]
[]
[]
[]
[]
[]
["Rate this page   |   Contact Seller Support"]
["Underwater Audio © 1999-2012, Amazon.com, Inc. or its affiliates "]
["< PrevNext >"]
["2012-03-01"]
["Su","Mo","Tu","We","Th","Fr","Sa"]
[null,null,null,null,1,2,3]
[4,5,6,7,8,9,10]
[11,12,13,14,15,16,17]
[18,19,20,21,22,23,24]
[25,26,27,28,29,30,31]

{"sheet":"Amazon","index":10,"n_rows":264,"n_cols":4,"rows_kept":264,"cut":false,"hidden":false,"merged":[]}
["www.amazon.com"]
["HOME | MESSAGES | HELP | LOGOUT"]
["INVENTORY"]
[]
["Manage Inventory "]
["Manage FBA Inventory "]
["Add a Product "]
["Upload Products & Inventory "]
["Download Inventory File "]
["Manage Promotions "]
["Manage FBA Shipments "]
["ORDERS"]
[]
["Manage Orders "]
["Order Reports "]
["Upload Order Related Files "]
["Manage Returns "]
["REPORTS"]
[]
["Payments "]
["Amazon Selling Coach "]
["Business Reports "]
["Fulfillment "]
["Tax Document Library "]
["PERFORMANCE"]
[]
["Customer Metrics "]
["Feedback "]
["A-to-z Guarantee Claims "]
["Chargeback Claims "]
["Performance Notifications "]
["SETTINGS"]
[]
["Account Info "]
["Notification Preferences "]
["Login Settings "]
["Manage Returns Settings "]
["Gift Options "]
["Shipping Settings "]
["Tax Settings "]
["User Permissions "]
["Your Info & Policies "]
["Fulfillment by Amazon "]
["Amazon Selling Coach (NEW)"]
[]
["1. 3"]
["Low or Out-of-Stock Items"]
["Update your inventory to continue selling these items without interruption. Last updated: 03/31/2012"]
["Show "]
["Download Report"]
["SKU"]
["Current Inventory"]
["WiPodBlue"]
[3]
["IX-PN5X-1QKN"]
[8]
["WiPodGreen"]
[4]
["View all 3 items"]
["2. 1"]
["Low Price Opportunities"]
["Compare my listings to similar offers with lower prices. Last updated: 03/31/2012"]
["Show "]
["Download Report"]
["SKU"]
["Lowest Price + Shipping ($)"]
["QP-92DO-2XBL"]
[13.18]
["View all 1 items"]
["Business Reports Tell us what you think of this new feature "]
["Headlines"]
["(see all) "]
["New Option for Contacting Buyers about Feedback"]
["2012-03-30"]
["We've added a \"Resolve\" feedback button to Feedback Manager that allows you to e-mail a buyer directly and begin resolving any problems with an order. Learn more "]
["Advertisement "]
["More Selling Tools"]
["Fulfillment by Amazon Revenue Calculator"]
["2011-10-27"]
["Check out the cost benefits of using Fulfillment by Amazon with the FBA Revenue Calculator. Learn more "]
["Amazon Marketplace Shipping Service Now Available"]
["2010-09-30"]
["Buy United States Postal Service® postage on Seller Central to save time and money. Learn more"]
["Recent product recalls"]
["Recent product recalls"]
[]
["Seller Discussions (NEW)"]
[]
[]
[]
["Seller Forums"]
["Seller Support Blog"]
[]
["Your Orders (Amazon.com)"]
[]
[]
[]
["Seller Fulfilled"]
[]
[]
["0 In last day:"]
["0 In last 7 days:"]
["0 Pending:"]
["0 Unshipped:"]
["0 Return requests:"]
[]
["Fulfilled by Amazon"]
[]
[]
["2 In last day:"]
["28 In last 7 days:"]
["View your Orders"]
[]
["Feedback Rating"]
[]
[]
["4.8 stars over the past 12 months (29 ratings)"]
["Feedback","30 days","90 days","365 days"]
["Positive",0.8,0.95,0.97]
["Neutral",0,0,0]
["Negative",0.2,0.05,0.03]
["Count",5,19,29]
[]
["View your Ratings and Feedback "]
[]
["Other Amazon Links"]
[]
[]
[]
["Amazon.com Home Page"]
["Your Buyer Account"]
["Your Trade-In Account"]
["Amazon Associates"]
["Kindle Direct Publishing"]
[]
["Site Map"]
[]
[]
["Inventory"]
["• Manage Inventory"]
["• Manage FBA Inventory"]
["• Add a Product"]
["• Upload Products & Inventory"]
["• Download Inventory File"]
["• Manage Promotions"]
["• Manage FBA Shipments"]
[]
["Orders"]
["• Manage Orders"]
["• Order Reports"]
["• Upload Order Related Files"]
["• Manage Returns"]
[]
["Reports"]
["• Payments"]
["• Amazon Selling Coach"]
["• Business Reports"]
["• Fulfillment"]
["• Tax Document Library"]
[]
["Performance"]
["• Customer Metrics"]
["• Feedback"]
["• A-to-z Guarantee Claims"]
["• Chargeback Claims"]
["• Performance Notifications"]
[]
["Settings"]
["• Account Info"]
["• Notification Preferences"]
["• Login Settings"]
["• Manage Returns Settings"]
["• Gift Options"]
["• Shipping Settings"]
["• Tax Settings"]
["• User Permissions"]
["• Your Info & Policies"]
["• Fulfillment by Amazon"]
[]
["Reset to default view"]
[]
["Low Inventory"]
[]
[]
[3]
["Low or Out-of-Stock Items"]
["Based on your recent inventory and sales data (as of 03/31/2012)"]
["Download Report"]
["SKU Current Inventory"]
[]
[3]
["WiPodBlue"]
[8]
["IX-PN5X-1QKN"]
[4]
["WiPodGreen"]
["View all 3 items"]
[]
["Amazon Selling Coach"]
[]
[]
["Complete your listings "]
["4 of your active or inactive listings are missing crucial product information such as an image or description."]
["› View all suggestions "]
[]
["Seller Performance"]
[]
[]
["Good"]
["View Details "]
[]
["Payments Summary"]
[]
[]
["Recent Payment"]
["Mar 24, 2012  –  $9,231.13"]
["Disbursed to your bank account ending in 6349"]
[]
["Balance"]
[]
[7190.4]
[]
["Buyer Messages"]
[]
[]
[]
["0 Messages without a response:"]
["4 All messages received:"]
["In the last 7 days "]
["View your messages"]
[]
["Manage Your Case Log"]
[]
[]
["View your case log "]
[]
["Buyer Claims"]
[]
[]
["A-to-z Guarantee claims:",0]
["Chargeback claims:",0]
["Claims requiring action"]
[]
["Sales Summary"]
[]
[]
["loading"]
["View more seller metrics"]
[]
["Unshipped Orders"]
[]
[]
[]
["0 Amazon.com:"]
["0 All:"]
[]
[]
[]
[]
[]
[]
[]
["Rate this page   |   Contact Seller Support"]
["Underwater Audio © 1999-2012, Amazon.com, Inc. or its affiliates "]

{"sheet":"adWords","index":11,"n_rows":285,"n_cols":39,"rows_kept":285,"cut":false,"hidden":false,"merged":[]}
[null,null,null,null,null,null,null,null,null,null,null,null,null,null,null,null,null,null,null,null,null,null,null,null,null,null,null,null,null,"info@underwateraudio.com",null,"Announcements (1)","Help","Sign out"]
[null,null,null,null,null,null,null,null,null,null,null,null,null,null,null,null,null,null,null,null,null,null,null,null,null,null,null,null,null,"Customer ID: 992-905-8275"]
["Home",null,null,null,null,null,null,null,null,null,null,null,null,null,null,null,null,null,null,null,null,null,null,null,null,null,null,null,null,"Campaigns",null,null,null,null,"Opportunities","Tools and Analysis  ","Billing","My account  "]
[null,null,null,null,null,null,null,null,null,null,null,null,null,null,null,null,null,null,null,null,null,null,null,null,null,null,null,null,null,null,null,null,null,null,null,null,null,null,"Loading..."]
[null,null,null,null,null,null,null,null,null,null,null,null,null,null,null,null,null,null,null,null,null,null,null,null,null,null,null,null,null,null,null,null,null,null,null,null,null,null,"Search"]
[]
["All online campaigns"]
["Content>Image"]
["Content>Text"]
["Content>UnderwaterAudio"]
["Interest>Image"]
["Retargeting>Image"]
["Retargeting>Text"]
["Search>Core>Broad"]
["Search>Core>Exact"]
["Search>Core>Phrase"]
["Search>Long Tail>Exact"]
["Search>Mid Tail>Exact"]
["Search>UnderwaterAudio>Broad"]
["Search>UnderwaterAudio>Phrase"]
["Shared library"]
[]
["Reports"]
[]
["Automated rules"]
[]
["Custom alerts"]
[]
["Help"]
["Help Center"]
[]
["Go"]
["Get Help"]
[]
["PreviousPrevious| NextNext"]
["All online campaigns"]
[]
[]
["Save"]
[]
["Cancel"]
["Ads disapproved (2)Ads disapproved (2)View|",null,null,null,null,null,null,null,null,null,null,null,null,null,null,null,null,null,null,null,null,null,null,null,null,null,null,null,null,null,null,null,null,null,null,null,null,null,"Dismiss|"]
["Please review our Advertising Policies and edit your ads to resubmit for review. Learn more."]
["Set for: "]
["Campaigns eligible to use Conversion Optimizer (2)Campaigns eligible to use Conversion Optimizer (2)View|",null,null,null,null,null,null,null,null,null,null,null,null,null,null,null,null,null,null,null,null,null,null,null,null,null,null,null,null,null,null,null,null,null,null,null,null,null,"Dismiss|"]
["Conversion Optimizer uses your conversion tracking data to get you more conversions at a lower cost. To turn it on, edit your Bidding option on the Settings tab. Learn more."]
["Set for: "]
["Increase traffic with new keywords (311)Increase traffic with new keywords (311)View|",null,null,null,null,null,null,null,null,null,null,null,null,null,null,null,null,null,null,null,null,null,null,null,null,null,null,null,null,null,null,null,null,null,null,null,null,null,"Dismiss|"]
["Set for: "]
["Show 0 more alerts"]
[null,null,null,null,null,null,null,null,null,null,null,null,null,null,null,null,"Campaigns","Ad groups","Settings","Ads","Keywords","Networks","Audiences","Ad extensions","Auto targets","Dimensions","Topics"]
[]
[]
[]
[]
[]
["All but deleted campaigns"]
[]
[]
[]
[]
[]
[]
[]
["Segment"]
[]
[]
[]
[]
[]
[]
[]
["Filter"]
[]
[]
[]
[]
[]
[]
[]
["Columns"]
[]
[]
[]
[]
[]
[]
[]
[]
[]
[]
[]
[]
[]
[]
[]
[]
[]
[]
[]
[]
[]
[]
[]
["Search"]
[]
[]
[]
["Graph options Show graph"]
["Primary metric"]
[]
["Conv. (1-per-click)"]
["Compare to"]
[]
["Metric"]
[]
["CTR"]
[]
["Custom date range"]
["1 days starting on"]
[]
["Go"]
["Please select a shorter date range.  "]
[]
[]
[]
[]
[]
[]
[]
["Close"]
["View Change History"]
[]
[]
[]
["Automated rules can save you time by making changes to your account based on criteria you specify. Learn how to create rules, and see examples of popular rules."]
[]
[]
[]
["Rules aren't guaranteed to run in some cases, so we recommend regularly monitoring the rules you set up. Learn more"]
[]
[]
[]
[]
[]
[]
[]
["Save"]
[]
[]
[]
[]
[]
[]
[]
["Cancel"]
[]
[]
[]
[]
[]
[]
[]
["New campaign"]
[]
[]
[]
[]
[]
[]
[]
[]
[]
[]
[]
[]
[]
[]
[]
[]
["Change status..."]
[]
[]
[]
[]
[]
[]
[]
["Alerts"]
[]
[]
[]
[]
[]
[]
[]
["Automate"]
[]
[]
[]
[null,null,"Campaign","Budget","Status","Clicks","Impr.","CTR","Avg. CPC","Cost","Avg. Pos.","Conv. (1-per-click)","Cost / conv. (1-per-click)","Conv. rate (1-per-click)","View-through Conv.","Impr. share"]
[]
[]
[]
[]
[]
[]
[]
[null,null,"Campaign","Budget","Status","Clicks","Impr.","CTR","Avg. CPC","Cost","Avg. Pos.","Conv. (1-per-click)","Cost / conv. (1-per-click)","Conv. rate (1-per-click)","View-through Conv.","Impr. share"]
[]
[]
[]
[null,null,"Total - all but deleted campaigns",null,null,338,56785,6.0000000000000001E-3,0.65,220.35,1.4,3,73.45,8.8999999999999999E-3,0,"< 10%"]
[null,null,"Total - Search",null,null,143,9109,1.5699999999999999E-2,0.98,140.69999999999999,2.2999999999999998,3,46.9,2.1000000000000001E-2,0,0.37459999999999999]
[null,null,"Total - Display Network",null,null,195,47676,4.1000000000000003E-3,0.41,79.650000000000006,1.2,0,0,0,0,"< 10%"]
[null,null,"Total - all campaigns","$1,610.00/day",null,338,56785,6.0000000000000001E-3,0.65,220.35,1.4,3,73.45,8.8999999999999999E-3,0,"< 10%"]
[null,null,"Content>Image","$400.00/day","Eligible",173,39436,4.4000000000000003E-3,0.4,68.8,1,0,0,0,0,"< 10%"]
[]
[]
[]
[null,null,"Search>Core>Exact","$400.00/day","Eligible",49,811,6.0400000000000002E-2,1.4,68.489999999999995,1.4,2,34.24,4.0800000000000003E-2,0,1]
[]
[]
[]
[null,null,"Search>Core>Phrase","$150.00/day","Eligible",32,1816,1.7600000000000001E-2,1.1200000000000001,35.979999999999997,1.3,0,0,0,0,0.95279999999999998]
[]
[]
[]
[null,null,"Search>Core>Broad","$150.00/day","Eligible",37,4404,8.3999999999999995E-3,0.73,27.02,2.6,1,27.02,2.7E-2,0,0.2823]
[]
[]
[]
[null,null,"Search>Mid Tail>Exact","$150.00/day","Eligible",15,1319,1.14E-2,0.54,8.06,3,0,0,0,0,0.69089999999999996]
[]
[]
[]
[null,null,"Retargeting>Image","$100.00/day","Eligible",17,2369,7.1999999999999998E-3,0.41,6.97,1,0,0,0,0,"< 10%"]
[]
[]
[]
[null,null,"Content>Text","$90.00/day","Eligible",5,5831,8.9999999999999998E-4,0.78,3.88,2.8,0,0,0,0,"< 10%"]
[]
[]
[]
[null,null,"Search>Long Tail>Exact","$150.00/day","Eligible",10,759,1.32E-2,0.12,1.1499999999999999,3.6,0,0,0,0,0.18559999999999999]
[]
[]
[]
[null,null,"Content>UnderwaterAudio","$20.00/day","Paused",0,0,0,0,0,0,0,0,0,0,"--"]
[]
[]
[]
[null,null,"Search>UnderwaterAudio>Phrase","$150.00/day","Paused",0,0,0,0,0,0,0,0,0,0,"--"]
[]
[]
[]
[null,null,"Search>UnderwaterAudio>Broad","$150.00/day","Paused",0,0,0,0,0,0,0,0,0,0,"--"]
[]
[]
[]
[null,null,"Retargeting>Text","$20.00/day","Eligible",0,40,0,0,0,2.5,0,0,0,0,"< 10%"]
[]
[]
[]
[null,null,"Interest>Image","$200.00/day","Paused",0,0,0,0,0,0,0,0,0,0,"--"]
[]
[]
[]
[]
["Go to page: Show rows: "]
[]
[]
[]
["1 - 13 of 13"]
[]
["Custom date range"]
["-"]
[]
["Go"]
["2012-03-31"]
[]
["Reporting is not real-time. Clicks and impressions received in the last three hours may not be included here."]
["There is a 24-hour delay in conversion tracking reporting. Time zone for all dates and times: (GMT-08:00) Pacific Time. Learn more"]
[]
["2012 Google | AdWords Home| Editorial Guidelines | Privacy Policy | Contact Us "]

{"sheet":"Inventory","index":12,"n_rows":16,"n_cols":8,"rows_kept":16,"cut":false,"hidden":false,"merged":[]}
["Daily Inventory : Sheet1 Go to spreadsheet view Hide colors","Rows per page:"]
[null,"1-7 of 7"]
[]
["Row?",null,"Timestamp","Date","iPods","Pyle","Aquavibe","Discovery"]
[]
["Add new"]
[]
[1,"Edit","2012-03-22T11:00:15","2012-03-22",150,200,150,150]
[2,"Edit","2012-03-22T14:43:43","2012-03-20",124,300,100,42]
[3,"Edit","2012-03-22T17:02:01","2012-03-20",124,300,100,42]
[4,"Edit","2012-04-02T14:21:10","2012-03-31",635.35108695652195,85,7,80]
[5,"Edit"]
[6,"Edit",null,"2012-03-22",2,2,2,2]
[7,"Edit",null,"2012-03-21",3,3,3,3]
["Go to spreadsheet view Hide colors Powered by Google Docs Report Abuse ","Rows per page:"]
[null,"1-7 of 7"]

{"sheet":"Paypal","index":13,"n_rows":156,"n_cols":12,"rows_kept":156,"cut":false,"hidden":false,"merged":[]}
["PayPal"]
[]
["Search PayPalSearch"]
["Skip to main content"]
[]
["Log Out"]
["Help"]
["Security and Protection"]
[]
["My Account"]
["Overview"]
["Add Money"]
["Add Money from Bank Account"]
["Balance Manager"]
["Add Money from MoneyPak"]
["Withdraw"]
["Transfer to Bank Account"]
["Request a Check"]
["PayPal Debit MasterCard"]
["History"]
["Basic Search"]
["Advanced Search"]
["Download History"]
["Tax Documents"]
["Reports"]
["IPN History"]
["Resolution Center"]
["View Open Cases"]
["Tutorials"]
["Profile"]
["Add or Edit Email"]
["Add or Edit Bank Account"]
["Add or Edit Credit Card"]
["Add or Edit Street Address"]
["Add or Edit Phone Number"]
["More Options"]
["Send Money"]
["Request Money"]
["Merchant Services"]
["Products & Services"]
[]
["Resolution Center: Open cases (2)"]
[]
["History"]
[]
["Recent ActivitySee your most recent transactions, transfers, and more."]
["All activity"]
["Find a transactionSearch all of your transactions."]
[]
["Search"]
[]
["Timeperiod"]
[]
["Transactionoption"]
[]
["SelectDateRange"]
[]
["From"]
[]
["to"]
[]
["To"]
[]
["View demo"]
[]
["more"]
["Managing Transactions"]
["History"]
["Refunds"]
["Shipping and holds"]
[]
["Filters"]
[]
["Money withdrawn"]
["More filters"]
["Financial products and services"]
["Money added and withdrawn"]
["Payment Received to"]
["Payment Received via"]
["Shipping"]
["Subscriptions and agreements"]
["Pay list"]
["Recurring payments"]
["Reserves"]
["Payment Holds"]
["Payment Review Transaction"]
[]
["In"]
[]
["Money withdrawn - Mar 3, 2012 to Apr 2, 2012"]
[]
["Print"]
[]
["Displaying 20 results per page"]
[]
["Next"]
[]
["What's thisTransactions you Unarchive will be moved to your Recent Activity list.Payment status glossary"]
["checkboxSelect all recent","Date",null,"flag columnWhen an icon appears next to one of your transactions, it means there is more information available or a note attached. Move your cursor over the icon to learn more about the transaction.","Type","Name/Email","Payment status","Details","Order status/Actions","Gross","Fee","Net amount"]
[null,null,null,"When an icon appears next to one of your transactions, it means there is more information available or a note attached. Move your cursor over the icon to learn more about the transaction."]
["Select record 0",null,"2012-04-01",null,"Transfer To","Bank Account","PendingYou made a request to transfer money from your PayPal account to your bank account. The transfer will complete in 3-4 days.","Details Transfer To Bank Account 8EB786162W3785526",null,-1274.3399999999999,0,"-$1,274.34 USD"]
[null,null,null,null,null,null,"You made a request to transfer money from your PayPal account to your bank account. The transfer will complete in 3-4 days."]
["Select record 1",null,"2012-03-31",null,"Transfer To","Bank Account","Completed","Details Transfer To Bank Account 00D42774B2055420D",null,-1401.03,0,"-$1,401.03 USD"]
["Select record 2",null,"2012-03-30",null,"Transfer To","Bank Account","Completed","Details Transfer To Bank Account 2GG50815BS1448948",null,-2182.52,0,"-$2,182.52 USD"]
["Select record 3",null,"2012-03-29",null,"Transfer To","Bank Account","Completed","Details Transfer To Bank Account 8WR396523H705135S",null,-2514.96,0,"-$2,514.96 USD"]
["Select record 4",null,"2012-03-28",null,"Transfer To","Bank Account","Completed","Details Transfer To Bank Account 0M200228K4922273H",null,-1788.75,0,"-$1,788.75 USD"]
["Select record 5",null,"2012-03-27",null,"Transfer To","Bank Account","Completed","Details Transfer To Bank Account 0TF636989C625444N",null,-1054.6199999999999,0,"-$1,054.62 USD"]
["Select record 6",null,"2012-03-26",null,"Transfer To","Bank Account","Completed","Details Transfer To Bank Account 2DE04423D52989135",null,-1224.22,0,"-$1,224.22 USD"]
["Select record 7",null,"2012-03-25",null,"Transfer To","Bank Account","Completed","Details Transfer To Bank Account 7C977007GV2956234",null,-2216.7600000000002,0,"-$2,216.76 USD"]
["Select record 8",null,"2012-03-24",null,"Transfer To","Bank Account","Completed","Details Transfer To Bank Account 86X94393G85420825",null,-858.05,0,"-$858.05 USD"]
["Select record 9",null,"2012-03-23",null,"Transfer To","Bank Account","Completed","Details Transfer To Bank Account 09864430P5479535W",null,-2235.7399999999998,0,"-$2,235.74 USD"]
["Select record 10",null,"2012-03-22",null,"Transfer To","Bank Account","Completed","Details Transfer To Bank Account 5RD08159PU591664M",null,-2047.23,0,"-$2,047.23 USD"]
["Select record 11",null,"2012-03-21",null,"Transfer To","Bank Account","Completed","Details Transfer To Bank Account 298366178M380664X",null,-3637.2,0,"-$3,637.20 USD"]
["Select record 12",null,"2012-03-20",null,"Transfer To","Bank Account","Completed","Details Transfer To Bank Account 1C381835AT820421U",null,-1428.66,0,"-$1,428.66 USD"]
["Select record 13",null,"2012-03-19",null,"Transfer To","Bank Account","Completed","Details Transfer To Bank Account 96R07906EA487010M",null,-2484.9699999999998,0,"-$2,484.97 USD"]
["Select record 14",null,"2012-03-18",null,"Transfer To","Bank Account","Completed","Details Transfer To Bank Account 9T7099145U654792Y",null,-1894.96,0,"-$1,894.96 USD"]
["Select record 15",null,"2012-03-17",null,"Transfer To","Bank Account","Completed","Details Transfer To Bank Account 0J235083WJ8245204",null,-1203.75,0,"-$1,203.75 USD"]
["Select record 16",null,"2012-03-17",null,"Transfer To","Bank Account","Completed","Details Transfer To Bank Account 65J452934G611162A",null,-1837.58,0,"-$1,837.58 USD"]
["Select record 17",null,"2012-03-16",null,"Transfer To","Bank Account","Completed","Details Transfer To Bank Account 2U371458LN084380T",null,-857.54,0,"-$857.54 USD"]
["Select record 18",null,"2012-03-14",null,"Transfer To","Bank Account","Completed","Details Transfer To Bank Account 084085230L833132A",null,-543.16999999999996,0,"-$543.17 USD"]
["Select record 19",null,"2012-03-13",null,"Transfer To","Bank Account","Completed","Details Transfer To Bank Account 0BE853011E962142K",null,-2321.9499999999998,0,"-$2,321.95 USD"]
["What's thisTransactions you Unarchive will be moved to your Recent Activity list."]
[]
["Displaying 20 results per page"]
[]
["Next"]
[]
["The most common payment statusesView more status types"]
[]
["Canceled:"]
["The sender canceled this payment."]
["Completed (referring to a bank withdrawal):"]
["Money is being transferred to your bank account. Allow up to 7 days for this transfer to complete."]
["Completed (referring to a payment):"]
["Money has been successfully sent to the recipient."]
["Denied:"]
["The recipient chose not to accept this payment."]
["Held:"]
["Money is being temporarily held. The sender may be disputing this payment, or the payment may be under review by PayPal."]
[]
["Pending:"]
["This payment is being processed. Allow up to 4 days for it to complete."]
["Returned:"]
["Money was returned to the sender because the payment was unclaimed for 30 days."]
["Unclaimed:"]
["The recipient hasn't yet accepted this payment."]
[]
["About Us"]
["Contact Us"]
["Legal Agreements"]
["Privacy"]
["Fees"]
["Site Feedback Site Feedback"]
[]
["Copyright 1999-2012 PayPal. All rights reserved."]
["Information about FDIC pass-through insurance"]

{"sheet":"Umpqua","index":14,"n_rows":119,"n_cols":12,"rows_kept":119,"cut":false,"hidden":false,"merged":[]}
["Umpqua Bank","Locations & ATMs"]
[null,"Help"]
[null,"LOGOUT"]
[]
[]
["Accounts","Account Activity",null,null,null,null,null,null,null,null,null,"Related Tasks & Links"]
[]
["Overview","Warning! Your Online Banking session will expire in 1075 seconds.",null,null,null,null,null,null,null,null,null,"Download Transaction History"]
["Summary",null,null,null,null,null,null,null,null,null,null,"Contact Us"]
["Account Activity","Continue Banking Online  |  Logout",null,null,null,null,null,null,null,null,null,"Enroll in Paperless Statements"]
["Download",null,null,null,null,null,null,null,null,null,null,"Print Account Activity"]
["Statements","Signing out...",null,null,null,null,null,null,null,null,null,"Help with this Page"]
[null,null,null,null,null,null,null,null,null,null,null,"View Session Summary"]
[null,"The pop-up window used to extend your session was blocked."]
[null,"Click here for information regarding pop-up blocking software, or copy and paste the following link into a new browser:"]
[null,"http://www.microsoft.com/windowsxp/using/web/sp2_popupblocker.mspx"]
[]
[null,"Use the options below to select the transactions you want to see. You can sort by any column by clicking on the heading, such as Date or Credit.","BUSINESS CHECKING"]
[null,null,"Account Name:","BUSINESS CHECKING"]
[null,"Click on a check number to view the image, if applicable for the account type.","Account Number:","xxx6349"]
[null,null,"As of Date:","2012-04-02"]
[null,"Click on a transaction description if you want to assign a spending/income category or a descriptive memo for your records.","Interest Rate:",0]
[null,null,"Interest Paid YTD:",0]
[null,null,"Available Balance:",24945.4]
[null,null,"Current Balance:",19047.95]
[]
[]
[]
[null,"Account:",null,null,"Type:","Category:","From:","To:"]
[]
[null,"Search For:"]
[]
[]
[null,"Pending Transactions (Pending amounts may not represent final transaction amount)"]
[]
[null,"Date",null,null,"No.","Type","Description","Category","Debit","Credit","Inquiry"]
[null,"2012-04-02",null,null,null,"Credit","PROCESSING: PAYPAL TRANSFER 42Q225RCVHE9Y",null,null,2182.52,{"$f":"D24+I37-J37","v":22762.880000000001}]
[null,"2012-04-02",null,null,null,"Credit","PROCESSING: PAYPAL TRANSFER 42Q225R6VZGTG",null,null,1788.75,{"$f":"K37+I38-J38","v":20974.13}]
[null,"2012-04-02",null,null,null,"Credit","PROCESSING: PAYPAL TRANSFER 42Q225R9YHF66",null,null,2514.96,{"$f":"K38+I39-J39","v":18459.170000000002}]
[null,"2012-04-02",null,null,null,"Debit","PROCESSING: AMERICAN EXPRESS ELEC REMIT 120331052917266",null,142.97999999999999,null,18602.150000000001]
[null,"2012-04-01",null,null,null,"Debit","PROCESSING: 4842 DDA PURCHASE UPS*1Z37393F0794649056 800-811-1648 GA UPS*1Z37393",null,47.12,null,18649.27]
[null,"2012-04-01",null,null,null,"Debit","PROCESSING: 4975 DDA PURCHASE UPS*1Z37393F0791387264 800-811-1648 GA UPS*1Z37393",null,98.56,null,18747.830000000002]
[null,"2012-03-31",null,null,null,"Debit","PROCESSING: 24104 DDA PREAUTH UPS*INTERNETSHIPWAYBIL 800-811-1648 GA UPS*INTERNE",null,93.99,null,18841.820000000003]
[null,"2012-03-31",null,null,null,"Debit","PROCESSING: 8726 DDA PURCHASE 1780 NE FOUR ACRE P CORVALLIS OR THE HOME DEPOT #",null,116.44,null,18958.260000000002]
[null,"2012-03-31",null,null,null,"Debit","PROCESSING: 10020 DDA PURCHASE Staples Inc. CORVALLIS OR Staples Inc.",null,20.99,null,18979.250000000004]
[null,"2012-03-31",null,null,null,"Debit","PROCESSING: 19639 DDA PREAUTH UPS*INTERNETSHIPWAYBIL 800-811-1648 GA UPS*INTERNE",null,32.659999999999997,null,19011.910000000003]
[null,"2012-03-31",null,null,null,"Debit","PROCESSING: 24927 DDA PREAUTH UPS*INTERNETSHIPWAYBIL 800-811-1648 GA UPS*INTERNE",null,16.84,null,19028.750000000004]
[null,"2012-03-31",null,null,null,"Debit","PROCESSING: 31022 DDA PURCHASE VZWRLSS*IVR VW 800-922-0204 NJ VZWRLSS*IVR VW",null,19.2,null,19047.950000000004]
[]
[]
[null,"Posted Transactions"]
[]
[null,"Date",null,null,"No.","Type","Description","Category","Debit","Credit","CurrentBalance","Inquiry"]
[null,"2012-03-30",null,null,null,"Other","PAYPAL ECHECK 42Q225R6XZ6WA",null,168.88,null,19047.95]
[null,"2012-03-30",null,null,null,"Direct Deposit","PAYPAL TRANSFER 42Q225R3TFVCA",null,null,1054.6199999999999,19216.830000000002]
[null,"2012-03-30",null,null,null,"Transfer In","701367138 ONLINE TRANSFER FROM BUSINESS S 972566525 3/30 13:09",null,null,7000,18162.21]
[null,"2012-03-29",null,null,1124,"Check","Check",null,150,null,11162.21]
[null,"2012-03-29",null,null,null,"Other","CAPITAL PREMIUM INS. PMNT CAP-165348",null,88.37,null,11312.21]
[null,"2012-03-29",null,null,null,"Direct Deposit","PAYPAL TRANSFER 42Q225QYPVSF6",null,null,1224.22,11400.58]
[null,"2012-03-29",null,null,null,"Direct Deposit","Cash Back Reward Redemption OD3174895",null,null,475,10176.36]
[null,"2012-03-28",null,null,1099,"Check","Check",null,75,null,9701.36]
[null,"2012-03-28",null,null,1098,"Check","Check",null,628.75,null,9776.36]
[null,"2012-03-28",null,null,null,"Other","CARDMEMBER SERV WEB PYMT 479851004580808",null,7868.93,null,10405.11]
[null,"2012-03-28",null,null,null,"Other","CARDMEMBER SERV WEB PYMT 479851004580808",null,7868.93,null,18274.04]
[null,"2012-03-28",null,null,null,"Other","CARDMEMBER SERV WEB PYMT 479851004580808",null,7868.93,null,26142.97]
[null,"2012-03-28",null,null,null,"Direct Deposit","PAYPAL TRANSFER 42Q225QVAFXDU",null,null,2216.7600000000002,34011.9]
[null,"2012-03-27",null,null,null,"Direct Deposit","AMAZON.COM payments.amazon.com ID#W5MWXO2UD89DXY6",null,null,9231.1299999999992,31795.14]
[null,"2012-03-27",null,null,null,"Direct Deposit","PAYPAL TRANSFER 42Q225QSUXY4U",null,null,858.05,22564.01]
[null,"2012-03-26",null,null,null,"Direct Deposit","PAYPAL TRANSFER 42Q225QJX8ZP6",null,null,3637.2,21705.96]
[null,"2012-03-26",null,null,null,"Direct Deposit","PAYPAL TRANSFER 42Q225QQTLXN8",null,null,2235.7399999999998,18068.759999999998]
[null,"2012-03-26",null,null,null,"Direct Deposit","PAYPAL TRANSFER 42Q225QMYXUA4",null,null,2047.23,15833.02]
[null,"2012-03-23",null,null,1125,"Check","Check",null,547.5,null,13785.79]
[null,"2012-03-23",null,null,null,"Payment","ANDERTON ENTERPR ACH XFER",null,963.98,null,14333.29]
[null,"2012-03-23",null,null,null,"Point of Sale","POS 03/23/12 08:00 0253 FRED MEYER CORVALLIS OR 076755 KFM07076",null,867.82,null,15297.27]
[null,"2012-03-23",null,null,null,"Point of Sale","POS 03/23/12 04:46 0253 AMERICAN DREAM AMERICAN D CORVALLIS OR 158142 30010342",null,80.25,null,16165.09]
[null,"2012-03-23",null,null,null,"Direct Deposit","PAYPAL TRANSFER 42Q225QFQFZTC",null,null,1428.66,16245.34]
[null,"2012-03-22",null,null,null,"Direct Deposit","PAYPAL TRANSFER 42Q225QCHFLJY",null,null,2484.9699999999998,14816.68]
[null,"2012-03-21",null,null,null,"Payment","CARDMEMBER SERV WEB PYMT 479851004580808",null,7065.97,null,12331.71]
[null,"2012-03-21",null,null,null,"Payment","CARDMEMBER SERV WEB PYMT 479851004580808",null,4745.9799999999996,null,19397.68]
[null,"2012-03-21",null,null,null,"Payment","CARDMEMBER SERV WEB PYMT 479851004580808",null,4745.9799999999996,null,24143.66]
[null,"2012-03-21",null,null,null,"Payment","CARDMEMBER SERV WEB PYMT 479851004580808",null,4745.9799999999996,null,28889.64]
[null,"2012-03-21",null,null,null,"Direct Deposit","PAYPAL TRANSFER 42Q225Q8X6H9C",null,null,1894.96,33635.620000000003]
[null,"2012-03-20",null,null,null,"Direct Deposit","PAYPAL TRANSFER 42Q225Q6C8MKE",null,null,1203.75,31740.66]
[null,"2012-03-19",null,null,1089,"Check","Check",null,90,null,30536.91]
[null,"2012-03-19",null,null,null,"Point of Sale","POS 03/18/12 16:51 0253 UPS*1Z37393F449UPS*1Z3739 800-811-1648 GA 000639 6660570",null,95.66,null,30626.91]
[null,"2012-03-19",null,null,null,"Point of Sale","POS 03/18/12 16:51 0253 UPS*1Z37393F139UPS*1Z3739 800-811-1648 GA 000639 6660570",null,69.56,null,30722.57]
[null,"2012-03-19",null,null,null,"Point of Sale","POS 03/18/12 16:50 0253 UPS*1Z37393F129UPS*1Z3739 800-811-1648 GA 000639 6660570",null,51.37,null,30792.13]
[null,"2012-03-19",null,null,null,"Direct Deposit","PAYPAL TRANSFER 42Q225Q4F6ZG6",null,null,1837.58,30843.5]
[null,"2012-03-19",null,null,null,"Direct Deposit","PAYPAL TRANSFER 42Q225PZLZ7A8",null,null,857.54,29005.919999999998]
[null,"2012-03-19",null,null,null,"Direct Deposit","PAYPAL TRANSFER 42Q225PW6HB7Q",null,null,543.16999999999996,28148.38]
[null,"2012-03-16",null,null,null,"Direct Deposit","PAYPAL TRANSFER 42Q225PSZPYC8",null,null,2321.9499999999998,27605.21]
[null,"2012-03-15",null,null,1091,"Check","Check",null,25.47,null,25283.26]
[null,"2012-03-15",null,null,null,"Direct Deposit","PAYPAL TRANSFER 42Q225PPTM3JC",null,null,1720.46,25308.73]
[null,"2012-03-14",null,null,1123,"Check","Check",null,597.5,null,23588.27]
[null,"2012-03-14",null,null,null,"Payment","CARDMEMBER SERV WEB PYMT 479851004580808",null,11258.65,null,24185.77]
[null,"2012-03-14",null,null,null,"Payment","CARDMEMBER SERV WEB PYMT 479851004580808",null,9850.2199999999993,null,35444.42]
[null,"2012-03-14",null,null,null,"Direct Deposit","PAYPAL TRANSFER 42Q225PL8BAF4",null,null,1442.54,45294.64]
[null,"2012-03-13",null,null,1162,"Check","Check",null,148.53,null,43852.1]
[null,"2012-03-13",null,null,null,"Direct Deposit","AMAZON.COM payments.amazon.com ID#RB1VRKNYDS0VXHS",null,null,15621.86,44000.63]
[null,"2012-03-13",null,null,null,"Direct Deposit","PAYPAL TRANSFER 42Q225PHRFZDA",null,null,1203.82,28378.77]
[null,"2012-03-12",null,null,null,"Direct Deposit","PAYPAL TRANSFER 42Q225PFM9M3U",null,null,2037.14,27174.95]
[null,"2012-03-12",null,null,null,"Direct Deposit","PAYPAL TRANSFER 42Q225PCPBYWJ",null,null,1909.57,25137.81]
[null,"2012-03-12",null,null,null,"Direct Deposit","PAYPAL TRANSFER 42Q225P9G85VW",null,null,1785.22,23228.240000000002]
[null,"2012-03-09",null,null,null,"Payment","CARDMEMBER SERV WEB PYMT 479851004580808",null,3199.08,null,21443.02]
[null,"2012-03-09",null,null,null,"Direct Deposit","PAYPAL TRANSFER 42Q225P65Q3EC",null,null,829.26,24642.1]
[null,"2012-03-08",null,null,null,"Point of Sale","POS 03/07/12 22:15 0253 THE HOME DEPOT # CORVALLIS OR 662726 00000058",null,9.6300000000000008,null,23812.84]
[null,"2012-03-08",null,null,null,"Direct Deposit","PAYPAL TRANSFER 42Q225P2QANJG",null,null,2303.23,23822.47]
[null,"2012-03-07",null,null,null,"Direct Deposit","PAYPAL TRANSFER 42Q225NWVFD28",null,null,1711.41,21519.24]
[null,"2012-03-06",null,null,null,"Service Charge","USD-INTL WIRE FEE DDA9-201206600640",null,50,null,19807.830000000002]
[null,"2012-03-06",null,null,null,"Direct Debit","WIRE/OUT-201206600640;BNF EASTERN POWER (HK) LIMITED;OBI CONTACT HENRY SHUEXCELE",null,7576.25,null,19857.830000000002]
[null,"2012-03-06",null,null,null,"Direct Deposit","PAYPAL TRANSFER 42Q225NU2LJR6",null,null,539.52,27434.080000000002]
[null,"2012-03-05",null,null,null,"Payment","ANDERTON ENTERPR ACH XFER",null,6945.85,null,26894.560000000001]
[null,"2012-03-05",null,null,null,"Point of Sale","POS 03/04/12 15:38 0253 UPS*1Z37393F449UPS*1Z3739 800-811-1648 GA 000811 6660570",null,87.24,null,33840.410000000003]
[null,"2012-03-05",null,null,null,"Point of Sale","POS 03/04/12 15:38 0253 UPS*1Z37393F139UPS*1Z3739 800-811-1648 GA 000811 6660570",null,57.53,null,33927.65]
[null,"2012-03-05",null,null,null,"Point of Sale","POS 03/04/12 15:37 0253 UPS*1Z66A471022UPS*1Z66A4 800-811-1648 GA 000808 6646150",null,5,null,33985.18]
[null,"2012-03-05",null,null,null,"Direct Deposit","PAYPAL TRANSFER 42Q225NNKF66E",null,null,2090.25,33990.18]
[null,"2012-03-05",null,null,null,"Direct Deposit","PAYPAL TRANSFER 42Q225NRPTFX8",null,null,1001.28,31899.93]
[null,"2012-03-05",null,null,null,"Direct Deposit","PAYPAL TRANSFER 42Q225NK8F76S",null,null,886.14,30898.65]
["1-866-4UMPQUA(1-866-486-7782)   www.umpquabank.com   Privacy Policy   Member FDIC   Equal Housing Lender    SBA Preferred Lender"]

{"sheet":"OldSchoolData","index":15,"n_rows":286,"n_cols":71,"rows_kept":286,"cut":false,"hidden":false,"merged":[]}
["Date","Facebook Spend","Amazon Ads Spend","adWords Search Spend","Adwords Display Spend","Adcenter Spend","Total Ad Spend","Facebook Conv.","Amazon Ads Conv.","Lava Conv.","adWords Search Conv.","adwords display Conv.","adwords display view-through conv.","Adcenter Conv.","Adwords Content Spend","Adwords Content Conv.","Adwords Content View Through","Adwords Retargeting Spend","Adwords Retargeting Conv.","Amazon iPods Sold","Amazon Pyle Sold","Amazon Aquavibe Sold","Amazon Discovery Sold","Magento iPods Sold","Magento Pyle Sold","Magento Aquavibe Sold","Magento Discovery Sold","Total iPods sold","Amazon Revenue","Magento Revenue","Total Revenue","Estimated Profit","Paypal Amount Sent","Amazon Amount Sent","myAccountAccess Amount Sent","Umpqua Balance","myAccountAccess Balance","Amazon Balance","Total Balance","Actual Balance","iPod inventory","Pyle","Aquavibe","Discovery","Amazon iPod","Amazon Pyle","Amazon Aquavibe","Amazon Discovery","=IFERROR(VLOOKUP($A266,'1861740736.csv'!$A$11:$J$251,10,FALSE),0)","iPods Umpqua","iPods End of Year","headphones End of Year","headphones myaccountaccess","iPods myaccountaccess","Yield Loss","Aquavibe purchased","Discovery Purchased","Missing iPods","Paypal Balance","Paypal Amount Sent before","Paypal Calculated stuff","Amazon Amount","Amazon Calculated Stuff","MyAccountAccess",null,"SwimBuds Inventory","Savings Balance","Estimated Profit (new way)",{"$f":"OFFSET(A1,0,'Cool Graph'!$H$1)","v":"Facebook Spend"},{"$f":"OFFSET(A1,0,'Cool Graph'!$I$1)","v":"Estimated Profit (new way)"}]
["2011-07-01",0,0,0,0,0,0,0,0,0,0,0,0,0,0,0,0,0,0,0,0,0,0,0,0,0,0,{"$f":"SUM(X2,T2)","v":0},0,{"$f":"IFERROR(VLOOKUP($A2,[1]Sheet1!$A$4:$B$219,2,FALSE),0)","v":0},{"$f":"SUM(AC2,AD2)","v":0},{"$f":"0","v":0},0,0,0,{"$f":"IFERROR(VLOOKUP($A2,'[2]export-1'!$A$2:$F$441,6,FALSE),0)","v":0},0,{"$f":"IFERROR(VLOOKUP($A2,'[3]TexttoColumn Amazon Balance'!$A$14:$B$30,2,FALSE),IF(AL3>0,AL3-50,0))","v":0},{"$f":"AL2+AK2+AJ2-AI2+AH2+AG2+BG2","v":0},{"$f":"AM2+(AO2*49)+(AP2*9.5)+(AQ2*5.25)+(AR2*7)+(AS2*49)+(AT2*9.5)+(AU2*5.25)+BO2","v":490},10,0,{"$f":"BD2-V2-Z2","v":0},{"$f":"BE2-W2-AA2","v":0},null,null,null,null,38260.25,{"$f":"IFERROR(VLOOKUP($A2,'[2]export-1'!$A$446:$G$451,7,FALSE),0)","v":0},{"$f":"IFERROR(VLOOKUP($A2,[3]Sheet4!$A$4:$B$56,2,FALSE),0)","v":0},{"$f":"IFERROR(VLOOKUP($A2,'[3]headphones purchased'!$A$2:$G$27,6,FALSE),0)","v":0},{"$f":"ROUND(IFERROR(VLOOKUP($A2,'[4]download-1'!$A$471:$F$474,5,FALSE)/-9.5,0),0)","v":0},{"$f":"ROUND(IFERROR(VLOOKUP($A2,'[4]download-1'!$A$467:$F$469,5,FALSE)/-49,0),0)","v":0},{"$f":"IFERROR(VLOOKUP($A2,[5]Sheet8!$A$4:$B$89,2,FALSE),0)","v":0},null,null,0,{"$f":"IFERROR(VLOOKUP($A2,[3]Paypal!$A$2:$AA$1843,25,FALSE),0)-BH2","v":0},{"$f":"IFERROR(VLOOKUP($A2,'[3]Paypal Money Sent Pivot'!$A$4:$B$97,2,FALSE),0)","v":0},0,{"$f":"IFERROR(VLOOKUP($A1,'[3]TexttoColumn Amazon Balance'!$A$14:$B$30,2,FALSE),0)","v":0},0,{"$f":"IFERROR(VLOOKUP($A2,'[4]Payment Pivot'!$A$4:$B$29,2,FALSE),0)","v":0},0,null,{"$f":"IFERROR(VLOOKUP($A2,'[6]export-2'!$A$2:$F$15,6,FALSE),0)","v":0},{"$f":"($AG$286*AE2)-G2","v":0},{"$f":"OFFSET(A2,0,'Cool Graph'!$H$1)","v":0},{"$f":"OFFSET(A2,0,'Cool Graph'!$I$1)","v":0}]
["2011-07-02",0,0,0,0,0,0,0,0,0,0,0,0,0,0,0,0,0,0,0,0,0,0,0,0,0,0,{"$f":"SUM(X3,T3)","v":0},0,{"$f":"IFERROR(VLOOKUP($A3,[1]Sheet1!$A$4:$B$219,2,FALSE),0)","v":0},{"$f":"SUM(AC3,AD3)","v":0},{"$f":"AN3-AN2","v":49},{"$f":"$BH3+$BI2-IFERROR(VLOOKUP($A3,[2]Sheet2!$A$4:$B$82,2,FALSE),0)","v":0},{"$f":"$BJ2+$BK2-IFERROR(VLOOKUP($A3,[2]Amazon!$A$2:$F$17,5,FALSE),0)","v":0},{"$f":"$BL3+$BM2-IFERROR(VLOOKUP($A3,'[2]Myaccountaccess Pivot'!$A$4:$B$31,2,FALSE),0)","v":0},{"$f":"IFERROR(VLOOKUP($A3,'[2]export-1'!$A$2:$F$441,6,FALSE),AJ2)","v":0},{"$f":"IFERROR(VLOOKUP($A3,'[7]download-1'!$A$2:$F$513,6,FALSE),AK2)","v":0},{"$f":"IFERROR(VLOOKUP($A3,'[3]TexttoColumn Amazon Balance'!$A$14:$B$30,2,FALSE),IF(AL4>0,AL4-50,0))","v":0},{"$f":"AL3+AK3+AJ3-AI3+AH3+AG3+BG3","v":0},{"$f":"AM3+(AO3*49)+(AP3*9.5)+(AQ3*5.25)+(AR3*7)+(AS3*49)+(AT3*9.5)+(AU3*5.25)+BO3","v":539},{"$f":"AX3+AY3+AO2-AB3+BB3-BC3-AS3+BF3","v":11},{"$f":"AP2+AZ3+BA3-Y3-U3","v":0},{"$f":"BD3-V3-Z3+AQ2-AU3","v":0},{"$f":"BE3-W3-AA3+AR2","v":0},null,null,null,null,null,{"$f":"IFERROR(VLOOKUP($A3,'[2]export-1'!$A$446:$G$451,7,FALSE),0)","v":0},{"$f":"IFERROR(VLOOKUP($A3,[3]Sheet4!$A$4:$B$56,2,FALSE),0)","v":0},{"$f":"IFERROR(VLOOKUP($A3,'[3]headphones purchased'!$A$2:$G$27,6,FALSE),0)","v":0},{"$f":"ROUND(IFERROR(VLOOKUP($A3,'[4]download-1'!$A$471:$F$474,5,FALSE)/-9.5,0),0)","v":0},{"$f":"ROUND(IFERROR(VLOOKUP($A3,'[4]download-1'!$A$467:$F$469,5,FALSE)/-49,0),0)","v":0},{"$f":"IFERROR(VLOOKUP($A3,[5]Sheet8!$A$4:$B$89,2,FALSE),0)","v":0},null,null,1,{"$f":"IFERROR(VLOOKUP($A3,[3]Paypal!$A$2:$AA$1843,25,FALSE),0)-BH3","v":0},{"$f":"IFERROR(VLOOKUP($A3,'[3]Paypal Money Sent Pivot'!$A$4:$B$97,2,FALSE),0)","v":0},{"$f":"$BH3+$BI2-IFERROR(VLOOKUP($A3,[2]Sheet2!$A$4:$B$82,2,FALSE),0)","v":0},{"$f":"IFERROR(VLOOKUP($A3,'[3]TexttoColumn Amazon Balance'!$A$14:$B$30,2,FALSE),0)","v":0},{"$f":"$BJ2+$BK2-IFERROR(VLOOKUP($A3,[2]Amazon!$A$2:$F$17,5,FALSE),0)","v":0},{"$f":"IFERROR(VLOOKUP($A3,'[4]Payment Pivot'!$A$4:$B$29,2,FALSE),0)","v":0},{"$f":"$BL3+$BM2-IFERROR(VLOOKUP($A3,'[2]Myaccountaccess Pivot'!$A$4:$B$31,2,FALSE),0)","v":0},null,{"$f":"IFERROR(VLOOKUP($A3,'[6]export-2'!$A$2:$F$15,6,FALSE),BO2)","v":0},0,{"$f":"OFFSET(A3,0,'Cool Graph'!$H$1)","v":0},{"$f":"OFFSET(A3,0,'Cool Graph'!$I$1)","v":0}]
["2011-07-03",0,0,0,0,0,0,0,0,0,0,0,0,0,0,0,0,0,0,0,0,0,0,0,0,0,0,0,0,{"$f":"IFERROR(VLOOKUP($A4,[1]Sheet1!$A$4:$B$219,2,FALSE),0)","v":0},0,{"$f":"AN4-AN3","v":0},{"$f":"$BH4+$BI3-IFERROR(VLOOKUP($A4,[2]Sheet2!$A$4:$B$82,2,FALSE),0)","v":0},{"$f":"$BJ3+$BK3-IFERROR(VLOOKUP($A4,[2]Amazon!$A$2:$F$17,5,FALSE),0)","v":0},{"$f":"$BL4+$BM3-IFERROR(VLOOKUP($A4,'[2]Myaccountaccess Pivot'!$A$4:$B$31,2,FALSE),0)","v":0},{"$f":"IFERROR(VLOOKUP($A4,'[2]export-1'!$A$2:$F$441,6,FALSE),AJ3)","v":0},{"$f":"IFERROR(VLOOKUP($A4,'[7]download-1'!$A$2:$F$513,6,FALSE),AK3)","v":0},{"$f":"IFERROR(VLOOKUP($A4,'[3]TexttoColumn Amazon Balance'!$A$14:$B$30,2,FALSE),IF(AL5>0,AL5-50,0))","v":0},0,539,{"$f":"AX4+AY4+AO3-AB4+BB4-BC4-AS4+BF4","v":11},{"$f":"AP3+AZ4+BA4-Y4-U4","v":0},{"$f":"BD4-V4-Z4+AQ3-AU4","v":0},{"$f":"BE4-W4-AA4+AR3","v":0},null,null,null,null,null,{"$f":"IFERROR(VLOOKUP($A4,'[2]export-1'!$A$446:$G$451,7,FALSE),0)","v":0},{"$f":"IFERROR(VLOOKUP($A4,[3]Sheet4!$A$4:$B$56,2,FALSE),0)","v":0},{"$f":"IFERROR(VLOOKUP($A4,'[3]headphones purchased'!$A$2:$G$27,6,FALSE),0)","v":0},{"$f":"ROUND(IFERROR(VLOOKUP($A4,'[4]download-1'!$A$471:$F$474,5,FALSE)/-9.5,0),0)","v":0},{"$f":"ROUND(IFERROR(VLOOKUP($A4,'[4]download-1'!$A$467:$F$469,5,FALSE)/-49,0),0)","v":0},{"$f":"IFERROR(VLOOKUP($A4,[5]Sheet8!$A$4:$B$89,2,FALSE),0)","v":0},null,null,0,{"$f":"IFERROR(VLOOKUP($A4,[3]Paypal!$A$2:$AA$1843,25,FALSE),0)-BH4","v":0},{"$f":"IFERROR(VLOOKUP($A4,'[3]Paypal Money Sent Pivot'!$A$4:$B$97,2,FALSE),0)","v":0},{"$f":"$BH4+$BI3-IFERROR(VLOOKUP($A4,[2]Sheet2!$A$4:$B$82,2,FALSE),0)","v":0},{"$f":"IFERROR(VLOOKUP($A4,'[3]TexttoColumn Amazon Balance'!$A$14:$B$30,2,FALSE),0)","v":0},{"$f":"$BJ3+$BK3-IFERROR(VLOOKUP($A4,[2]Amazon!$A$2:$F$17,5,FALSE),0)","v":0},{"$f":"IFERROR(VLOOKUP($A4,'[4]Payment Pivot'!$A$4:$B$29,2,FALSE),0)","v":0},{"$f":"$BL4+$BM3-IFERROR(VLOOKUP($A4,'[2]Myaccountaccess Pivot'!$A$4:$B$31,2,FALSE),0)","v":0},null,{"$f":"IFERROR(VLOOKUP($A4,'[6]export-2'!$A$2:$F$15,6,FALSE),BO3)","v":0},0,{"$f":"OFFSET(A4,0,'Cool Graph'!$H$1)","v":0},{"$f":"OFFSET(A4,0,'Cool Graph'!$I$1)","v":0}]
["2011-07-04",0,0,0,0,0,0,0,0,0,0,0,0,0,0,0,0,0,0,0,0,0,0,0,0,0,0,0,0,{"$f":"IFERROR(VLOOKUP($A5,[1]Sheet1!$A$4:$B$219,2,FALSE),0)","v":0},0,49,{"$f":"$BH5+$BI4-IFERROR(VLOOKUP($A5,[2]Sheet2!$A$4:$B$82,2,FALSE),0)","v":0},{"$f":"$BJ4+$BK4-IFERROR(VLOOKUP($A5,[2]Amazon!$A$2:$F$17,5,FALSE),0)","v":0},{"$f":"$BL5+$BM4-IFERROR(VLOOKUP($A5,'[2]Myaccountaccess Pivot'!$A$4:$B$31,2,FALSE),0)","v":0},{"$f":"IFERROR(VLOOKUP($A5,'[2]export-1'!$A$2:$F$441,6,FALSE),AJ4)","v":0},{"$f":"IFERROR(VLOOKUP($A5,'[7]download-1'!$A$2:$F$513,6,FALSE),AK4)","v":0},{"$f":"IFERROR(VLOOKUP($A5,'[3]TexttoColumn Amazon Balance'!$A$14:$B$30,2,FALSE),IF(AL6>0,AL6-50,0))","v":0},0,588,12,{"$f":"AP4+AZ5+BA5-Y5-U5-AT5","v":0},0,0,null,null,null,null,null,{"$f":"IFERROR(VLOOKUP($A5,'[2]export-1'!$A$446:$G$451,7,FALSE),0)","v":0},{"$f":"IFERROR(VLOOKUP($A5,[3]Sheet4!$A$4:$B$56,2,FALSE),0)","v":0},{"$f":"IFERROR(VLOOKUP($A5,'[3]headphones purchased'!$A$2:$G$27,6,FALSE),0)","v":0},{"$f":"ROUND(IFERROR(VLOOKUP($A5,'[4]download-1'!$A$471:$F$474,5,FALSE)/-9.5,0),0)","v":0},{"$f":"ROUND(IFERROR(VLOOKUP($A5,'[4]download-1'!$A$467:$F$469,5,FALSE)/-49,0),0)","v":0},{"$f":"IFERROR(VLOOKUP($A5,[5]Sheet8!$A$4:$B$89,2,FALSE),0)","v":0},null,null,1,{"$f":"IFERROR(VLOOKUP($A5,[3]Paypal!$A$2:$AA$1843,25,FALSE),0)-BH5","v":0},{"$f":"IFERROR(VLOOKUP($A5,'[3]Paypal Money Sent Pivot'!$A$4:$B$97,2,FALSE),0)","v":0},{"$f":"$BH5+$BI4-IFERROR(VLOOKUP($A5,[2]Sheet2!$A$4:$B$82,2,FALSE),0)","v":0},{"$f":"IFERROR(VLOOKUP($A5,'[3]TexttoColumn Amazon Balance'!$A$14:$B$30,2,FALSE),0)","v":0},{"$f":"$BJ4+$BK4-IFERROR(VLOOKUP($A5,[2]Amazon!$A$2:$F$17,5,FALSE),0)","v":0},{"$f":"IFERROR(VLOOKUP($A5,'[4]Payment Pivot'!$A$4:$B$29,2,FALSE),0)","v":0},{"$f":"$BL5+$BM4-IFERROR(VLOOKUP($A5,'[2]Myaccountaccess Pivot'!$A$4:$B$31,2,FALSE),0)","v":0},null,{"$f":"IFERROR(VLOOKUP($A5,'[6]export-2'!$A$2:$F$15,6,FALSE),BO4)","v":0},0,{"$f":"OFFSET(A5,0,'Cool Graph'!$H$1)","v":0},{"$f":"OFFSET(A5,0,'Cool Graph'!$I$1)","v":0}]
["2011-07-05",0,0,0,0,0,0,0,0,0,0,0,0,0,0,0,0,0,0,0,0,0,0,0,0,0,0,0,0,{"$f":"IFERROR(VLOOKUP($A6,[1]Sheet1!$A$4:$B$219,2,FALSE),0)","v":0},0,123.5,{"$f":"$BH6+$BI5-IFERROR(VLOOKUP($A6,[2]Sheet2!$A$4:$B$82,2,FALSE),0)","v":0},{"$f":"$BJ5+$BK5-IFERROR(VLOOKUP($A6,[2]Amazon!$A$2:$F$17,5,FALSE),0)","v":0},{"$f":"$BL6+$BM5-IFERROR(VLOOKUP($A6,'[2]Myaccountaccess Pivot'!$A$4:$B$31,2,FALSE),0)","v":0},{"$f":"IFERROR(VLOOKUP($A6,'[2]export-1'!$A$2:$F$441,6,FALSE),AJ5)","v":0},{"$f":"IFERROR(VLOOKUP($A6,'[7]download-1'!$A$2:$F$513,6,FALSE),AK5)","v":0},{"$f":"IFERROR(VLOOKUP($A6,'[3]TexttoColumn Amazon Balance'!$A$14:$B$30,2,FALSE),IF(AL7>0,AL7-50,0))","v":0},0,711.5,12,{"$f":"AP5+AZ6+BA6-Y6-U6-AT6","v":13},0,0,null,null,null,null,null,{"$f":"IFERROR(VLOOKUP($A6,'[2]export-1'!$A$446:$G$451,7,FALSE),0)","v":0},{"$f":"IFERROR(VLOOKUP($A6,[3]Sheet4!$A$4:$B$56,2,FALSE),0)","v":0},{"$f":"IFERROR(VLOOKUP($A6,'[3]headphones purchased'!$A$2:$G$27,6,FALSE),0)","v":13},{"$f":"ROUND(IFERROR(VLOOKUP($A6,'[4]download-1'!$A$471:$F$474,5,FALSE)/-9.5,0),0)","v":0},{"$f":"ROUND(IFERROR(VLOOKUP($A6,'[4]download-1'!$A$467:$F$469,5,FALSE)/-49,0),0)","v":0},{"$f":"IFERROR(VLOOKUP($A6,[5]Sheet8!$A$4:$B$89,2,FALSE),0)","v":0},null,null,0,{"$f":"IFERROR(VLOOKUP($A6,[3]Paypal!$A$2:$AA$1843,25,FALSE),0)-BH6","v":0},{"$f":"IFERROR(VLOOKUP($A6,'[3]Paypal Money Sent Pivot'!$A$4:$B$97,2,FALSE),0)","v":0},{"$f":"$BH6+$BI5-IFERROR(VLOOKUP($A6,[2]Sheet2!$A$4:$B$82,2,FALSE),0)","v":0},{"$f":"IFERROR(VLOOKUP($A6,'[3]TexttoColumn Amazon Balance'!$A$14:$B$30,2,FALSE),0)","v":0},{"$f":"$BJ5+$BK5-IFERROR(VLOOKUP($A6,[2]Amazon!$A$2:$F$17,5,FALSE),0)","v":0},{"$f":"IFERROR(VLOOKUP($A6,'[4]Payment Pivot'!$A$4:$B$29,2,FALSE),0)","v":0},{"$f":"$BL6+$BM5-IFERROR(VLOOKUP($A6,'[2]Myaccountaccess Pivot'!$A$4:$B$31,2,FALSE),0)","v":0},null,{"$f":"IFERROR(VLOOKUP($A6,'[6]export-2'!$A$2:$F$15,6,FALSE),BO5)","v":0},0,{"$f":"OFFSET(A6,0,'Cool Graph'!$H$1)","v":0},{"$f":"OFFSET(A6,0,'Cool Graph'!$I$1)","v":0}]
["2011-07-06",0,0,0,0,0,0,0,0,0,0,0,0,0,0,0,0,0,0,0,0,0,0,0,0,0,0,0,0,{"$f":"IFERROR(VLOOKUP($A7,[1]Sheet1!$A$4:$B$219,2,FALSE),0)","v":0},0,2549,{"$f":"$BH7+$BI6-IFERROR(VLOOKUP($A7,[2]Sheet2!$A$4:$B$82,2,FALSE),0)","v":0},{"$f":"$BJ6+$BK6-IFERROR(VLOOKUP($A7,[2]Amazon!$A$2:$F$17,5,FALSE),0)","v":0},{"$f":"$BL7+$BM6-IFERROR(VLOOKUP($A7,'[2]Myaccountaccess Pivot'!$A$4:$B$31,2,FALSE),0)","v":0},{"$f":"IFERROR(VLOOKUP($A7,'[2]export-1'!$A$2:$F$441,6,FALSE),AJ6)","v":2500},{"$f":"IFERROR(VLOOKUP($A7,'[7]download-1'!$A$2:$F$513,6,FALSE),AK6)","v":0},{"$f":"IFERROR(VLOOKUP($A7,'[3]TexttoColumn Amazon Balance'!$A$14:$B$30,2,FALSE),IF(AL8>0,AL8-50,0))","v":0},2500,3260.5,13,13,0,0,null,null,null,null,null,{"$f":"IFERROR(VLOOKUP($A7,'[2]export-1'!$A$446:$G$451,7,FALSE),0)","v":0},{"$f":"IFERROR(VLOOKUP($A7,[3]Sheet4!$A$4:$B$56,2,FALSE),0)","v":0},{"$f":"IFERROR(VLOOKUP($A7,'[3]headphones purchased'!$A$2:$G$27,6,FALSE),0)","v":0},{"$f":"ROUND(IFERROR(VLOOKUP($A7,'[4]download-1'!$A$471:$F$474,5,FALSE)/-9.5,0),0)","v":0},{"$f":"ROUND(IFERROR(VLOOKUP($A7,'[4]download-1'!$A$467:$F$469,5,FALSE)/-49,0),0)","v":0},{"$f":"IFERROR(VLOOKUP($A7,[5]Sheet8!$A$4:$B$89,2,FALSE),0)","v":0},null,null,1,{"$f":"IFERROR(VLOOKUP($A7,[3]Paypal!$A$2:$AA$1843,25,FALSE),0)-BH7","v":0},{"$f":"IFERROR(VLOOKUP($A7,'[3]Paypal Money Sent Pivot'!$A$4:$B$97,2,FALSE),0)","v":0},{"$f":"$BH7+$BI6-IFERROR(VLOOKUP($A7,[2]Sheet2!$A$4:$B$82,2,FALSE),0)","v":0},{"$f":"IFERROR(VLOOKUP($A7,'[3]TexttoColumn Amazon Balance'!$A$14:$B$30,2,FALSE),0)","v":0},{"$f":"$BJ6+$BK6-IFERROR(VLOOKUP($A7,[2]Amazon!$A$2:$F$17,5,FALSE),0)","v":0},{"$f":"IFERROR(VLOOKUP($A7,'[4]Payment Pivot'!$A$4:$B$29,2,FALSE),0)","v":0},{"$f":"$BL7+$BM6-IFERROR(VLOOKUP($A7,'[2]Myaccountaccess Pivot'!$A$4:$B$31,2,FALSE),0)","v":0},null,{"$f":"IFERROR(VLOOKUP($A7,'[6]export-2'!$A$2:$F$15,6,FALSE),BO6)","v":0},0,{"$f":"OFFSET(A7,0,'Cool Graph'!$H$1)","v":0},{"$f":"OFFSET(A7,0,'Cool Graph'!$I$1)","v":0}]
["2011-07-07",0,0,0,0,0,0,0,0,0,0,0,0,0,0,0,0,0,0,0,0,0,0,0,0,0,0,0,0,{"$f":"IFERROR(VLOOKUP($A8,[1]Sheet1!$A$4:$B$219,2,FALSE),0)","v":0},0,0,{"$f":"$BH8+$BI7-IFERROR(VLOOKUP($A8,[2]Sheet2!$A$4:$B$82,2,FALSE),0)","v":0},{"$f":"$BJ7+$BK7-IFERROR(VLOOKUP($A8,[2]Amazon!$A$2:$F$17,5,FALSE),0)","v":0},{"$f":"$BL8+$BM7-IFERROR(VLOOKUP($A8,'[2]Myaccountaccess Pivot'!$A$4:$B$31,2,FALSE),0)","v":0},{"$f":"IFERROR(VLOOKUP($A8,'[2]export-1'!$A$2:$F$441,6,FALSE),AJ7)","v":2500},{"$f":"IFERROR(VLOOKUP($A8,'[7]download-1'!$A$2:$F$513,6,FALSE),AK7)","v":0},{"$f":"IFERROR(VLOOKUP($A8,'[3]TexttoColumn Amazon Balance'!$A$14:$B$30,2,FALSE),IF(AL9>0,AL9-50,0))","v":0},2500,3260.5,13,13,0,0,null,null,null,null,null,{"$f":"IFERROR(VLOOKUP($A8,'[2]export-1'!$A$446:$G$451,7,FALSE),0)","v":0},{"$f":"IFERROR(VLOOKUP($A8,[3]Sheet4!$A$4:$B$56,2,FALSE),0)","v":0},{"$f":"IFERROR(VLOOKUP($A8,'[3]headphones purchased'!$A$2:$G$27,6,FALSE),0)","v":0},{"$f":"ROUND(IFERROR(VLOOKUP($A8,'[4]download-1'!$A$471:$F$474,5,FALSE)/-9.5,0),0)","v":0},{"$f":"ROUND(IFERROR(VLOOKUP($A8,'[4]download-1'!$A$467:$F$469,5,FALSE)/-49,0),0)","v":0},{"$f":"IFERROR(VLOOKUP($A8,[5]Sheet8!$A$4:$B$89,2,FALSE),0)","v":0},null,null,0,{"$f":"IFERROR(VLOOKUP($A8,[3]Paypal!$A$2:$AA$1843,25,FALSE),0)-BH8","v":0},{"$f":"IFERROR(VLOOKUP($A8,'[3]Paypal Money Sent Pivot'!$A$4:$B$97,2,FALSE),0)","v":0},{"$f":"$BH8+$BI7-IFERROR(VLOOKUP($A8,[2]Sheet2!$A$4:$B$82,2,FALSE),0)","v":0},{"$f":"IFERROR(VLOOKUP($A8,'[3]TexttoColumn Amazon Balance'!$A$14:$B$30,2,FALSE),0)","v":0},{"$f":"$BJ7+$BK7-IFERROR(VLOOKUP($A8,[2]Amazon!$A$2:$F$17,5,FALSE),0)","v":0},{"$f":"IFERROR(VLOOKUP($A8,'[4]Payment Pivot'!$A$4:$B$29,2,FALSE),0)","v":0},{"$f":"$BL8+$BM7-IFERROR(VLOOKUP($A8,'[2]Myaccountaccess Pivot'!$A$4:$B$31,2,FALSE),0)","v":0},null,{"$f":"IFERROR(VLOOKUP($A8,'[6]export-2'!$A$2:$F$15,6,FALSE),BO7)","v":0},0,{"$f":"OFFSET(A8,0,'Cool Graph'!$H$1)","v":0},{"$f":"OFFSET(A8,0,'Cool Graph'!$I$1)","v":0}]
["2011-07-08",0,0,0,0,0,0,0,0,0,0,0,0,0,0,0,0,0,0,0,0,0,0,0,0,0,0,0,0,{"$f":"IFERROR(VLOOKUP($A9,[1]Sheet1!$A$4:$B$219,2,FALSE),0)","v":0},0,0,{"$f":"$BH9+$BI8-IFERROR(VLOOKUP($A9,[2]Sheet2!$A$4:$B$82,2,FALSE),0)","v":0},{"$f":"$BJ8+$BK8-IFERROR(VLOOKUP($A9,[2]Amazon!$A$2:$F$17,5,FALSE),0)","v":0},{"$f":"$BL9+$BM8-IFERROR(VLOOKUP($A9,'[2]Myaccountaccess Pivot'!$A$4:$B$31,2,FALSE),0)","v":0},{"$f":"IFERROR(VLOOKUP($A9,'[2]export-1'!$A$2:$F$441,6,FALSE),AJ8)","v":2500},{"$f":"IFERROR(VLOOKUP($A9,'[7]download-1'!$A$2:$F$513,6,FALSE),AK8)","v":0},{"$f":"IFERROR(VLOOKUP($A9,'[3]TexttoColumn Amazon Balance'!$A$14:$B$30,2,FALSE),IF(AL10>0,AL10-50,0))","v":0},2500,3260.5,13,13,0,0,null,null,null,null,null,{"$f":"IFERROR(VLOOKUP($A9,'[2]export-1'!$A$446:$G$451,7,FALSE),0)","v":0},{"$f":"IFERROR(VLOOKUP($A9,[3]Sheet4!$A$4:$B$56,2,FALSE),0)","v":0},{"$f":"IFERROR(VLOOKUP($A9,'[3]headphones purchased'!$A$2:$G$27,6,FALSE),0)","v":0},{"$f":"ROUND(IFERROR(VLOOKUP($A9,'[4]download-1'!$A$471:$F$474,5,FALSE)/-9.5,0),0)","v":0},{"$f":"ROUND(IFERROR(VLOOKUP($A9,'[4]download-1'!$A$467:$F$469,5,FALSE)/-49,0),0)","v":0},{"$f":"IFERROR(VLOOKUP($A9,[5]Sheet8!$A$4:$B$89,2,FALSE),0)","v":1},null,null,1,{"$f":"IFERROR(VLOOKUP($A9,[3]Paypal!$A$2:$AA$1843,25,FALSE),0)-BH9","v":0},{"$f":"IFERROR(VLOOKUP($A9,'[3]Paypal Money Sent Pivot'!$A$4:$B$97,2,FALSE),0)","v":0},{"$f":"$BH9+$BI8-IFERROR(VLOOKUP($A9,[2]Sheet2!$A$4:$B$82,2,FALSE),0)","v":0},{"$f":"IFERROR(VLOOKUP($A9,'[3]TexttoColumn Amazon Balance'!$A$14:$B$30,2,FALSE),0)","v":0},{"$f":"$BJ8+$BK8-IFERROR(VLOOKUP($A9,[2]Amazon!$A$2:$F$17,5,FALSE),0)","v":0},{"$f":"IFERROR(VLOOKUP($A9,'[4]Payment Pivot'!$A$4:$B$29,2,FALSE),0)","v":0},{"$f":"$BL9+$BM8-IFERROR(VLOOKUP($A9,'[2]Myaccountaccess Pivot'!$A$4:$B$31,2,FALSE),0)","v":0},null,{"$f":"IFERROR(VLOOKUP($A9,'[6]export-2'!$A$2:$F$15,6,FALSE),BO8)","v":0},0,{"$f":"OFFSET(A9,0,'Cool Graph'!$H$1)","v":0},{"$f":"OFFSET(A9,0,'Cool Graph'!$I$1)","v":0}]
["2011-07-09",0,0,0,0,0,0,0,0,0,0,0,0,0,0,0,0,0,0,0,0,0,0,0,0,0,0,0,0,{"$f":"IFERROR(VLOOKUP($A10,[1]Sheet1!$A$4:$B$219,2,FALSE),0)","v":0},0,0,{"$f":"$BH10+$BI9-IFERROR(VLOOKUP($A10,[2]Sheet2!$A$4:$B$82,2,FALSE),0)","v":0},{"$f":"$BJ9+$BK9-IFERROR(VLOOKUP($A10,[2]Amazon!$A$2:$F$17,5,FALSE),0)","v":0},{"$f":"$BL10+$BM9-IFERROR(VLOOKUP($A10,'[2]Myaccountaccess Pivot'!$A$4:$B$31,2,FALSE),0)","v":0},{"$f":"IFERROR(VLOOKUP($A10,'[2]export-1'!$A$2:$F$441,6,FALSE),AJ9)","v":2500},{"$f":"IFERROR(VLOOKUP($A10,'[7]download-1'!$A$2:$F$513,6,FALSE),AK9)","v":0},{"$f":"IFERROR(VLOOKUP($A10,'[3]TexttoColumn Amazon Balance'!$A$14:$B$30,2,FALSE),IF(AL11>0,AL11-50,0))","v":0},2500,3260.5,13,13,0,0,null,null,null,null,null,{"$f":"IFERROR(VLOOKUP($A10,'[2]export-1'!$A$446:$G$451,7,FALSE),0)","v":0},{"$f":"IFERROR(VLOOKUP($A10,[3]Sheet4!$A$4:$B$56,2,FALSE),0)","v":0},{"$f":"IFERROR(VLOOKUP($A10,'[3]headphones purchased'!$A$2:$G$27,6,FALSE),0)","v":0},{"$f":"ROUND(IFERROR(VLOOKUP($A10,'[4]download-1'!$A$471:$F$474,5,FALSE)/-9.5,0),0)","v":0},{"$f":"ROUND(IFERROR(VLOOKUP($A10,'[4]download-1'!$A$467:$F$469,5,FALSE)/-49,0),0)","v":0},{"$f":"IFERROR(VLOOKUP($A10,[5]Sheet8!$A$4:$B$89,2,FALSE),0)","v":0},null,null,0,{"$f":"IFERROR(VLOOKUP($A10,[3]Paypal!$A$2:$AA$1843,25,FALSE),0)-BH10","v":0},{"$f":"IFERROR(VLOOKUP($A10,'[3]Paypal Money Sent Pivot'!$A$4:$B$97,2,FALSE),0)","v":0},{"$f":"$BH10+$BI9-IFERROR(VLOOKUP($A10,[2]Sheet2!$A$4:$B$82,2,FALSE),0)","v":0},{"$f":"IFERROR(VLOOKUP($A10,'[3]TexttoColumn Amazon Balance'!$A$14:$B$30,2,FALSE),0)","v":0},{"$f":"$BJ9+$BK9-IFERROR(VLOOKUP($A10,[2]Amazon!$A$2:$F$17,5,FALSE),0)","v":0},{"$f":"IFERROR(VLOOKUP($A10,'[4]Payment Pivot'!$A$4:$B$29,2,FALSE),0)","v":0},{"$f":"$BL10+$BM9-IFERROR(VLOOKUP($A10,'[2]Myaccountaccess Pivot'!$A$4:$B$31,2,FALSE),0)","v":0},null,{"$f":"IFERROR(VLOOKUP($A10,'[6]export-2'!$A$2:$F$15,6,FALSE),BO9)","v":0},0,{"$f":"OFFSET(A10,0,'Cool Graph'!$H$1)","v":0},{"$f":"OFFSET(A10,0,'Cool Graph'!$I$1)","v":0}]
["2011-07-10",0,0,0,0,0,0,0,0,0,0,0,0,0,0,0,0,0,0,0,0,0,0,0,0,0,0,0,0,{"$f":"IFERROR(VLOOKUP($A11,[1]Sheet1!$A$4:$B$219,2,FALSE),0)","v":0},0,49,{"$f":"$BH11+$BI10-IFERROR(VLOOKUP($A11,[2]Sheet2!$A$4:$B$82,2,FALSE),0)","v":0},{"$f":"$BJ10+$BK10-IFERROR(VLOOKUP($A11,[2]Amazon!$A$2:$F$17,5,FALSE),0)","v":0},{"$f":"$BL11+$BM10-IFERROR(VLOOKUP($A11,'[2]Myaccountaccess Pivot'!$A$4:$B$31,2,FALSE),0)","v":0},{"$f":"IFERROR(VLOOKUP($A11,'[2]export-1'!$A$2:$F$441,6,FALSE),AJ10)","v":2500},{"$f":"IFERROR(VLOOKUP($A11,'[7]download-1'!$A$2:$F$513,6,FALSE),AK10)","v":0},{"$f":"IFERROR(VLOOKUP($A11,'[3]TexttoColumn Amazon Balance'!$A$14:$B$30,2,FALSE),IF(AL12>0,AL12-50,0))","v":0},2500,3309.5,14,13,0,0,null,null,null,null,null,{"$f":"IFERROR(VLOOKUP($A11,'[2]export-1'!$A$446:$G$451,7,FALSE),0)","v":0},{"$f":"IFERROR(VLOOKUP($A11,[3]Sheet4!$A$4:$B$56,2,FALSE),0)","v":0},{"$f":"IFERROR(VLOOKUP($A11,'[3]headphones purchased'!$A$2:$G$27,6,FALSE),0)","v":0},{"$f":"ROUND(IFERROR(VLOOKUP($A11,'[4]download-1'!$A$471:$F$474,5,FALSE)/-9.5,0),0)","v":0},{"$f":"ROUND(IFERROR(VLOOKUP($A11,'[4]download-1'!$A$467:$F$469,5,FALSE)/-49,0),0)","v":0},{"$f":"IFERROR(VLOOKUP($A11,[5]Sheet8!$A$4:$B$89,2,FALSE),0)","v":0},null,null,1,{"$f":"IFERROR(VLOOKUP($A11,[3]Paypal!$A$2:$AA$1843,25,FALSE),0)-BH11","v":0},{"$f":"IFERROR(VLOOKUP($A11,'[3]Paypal Money Sent Pivot'!$A$4:$B$97,2,FALSE),0)","v":0},{"$f":"$BH11+$BI10-IFERROR(VLOOKUP($A11,[2]Sheet2!$A$4:$B$82,2,FALSE),0)","v":0},{"$f":"IFERROR(VLOOKUP($A11,'[3]TexttoColumn Amazon Balance'!$A$14:$B$30,2,FALSE),0)","v":0},{"$f":"$BJ10+$BK10-IFERROR(VLOOKUP($A11,[2]Amazon!$A$2:$F$17,5,FALSE),0)","v":0},{"$f":"IFERROR(VLOOKUP($A11,'[4]Payment Pivot'!$A$4:$B$29,2,FALSE),0)","v":0},{"$f":"$BL11+$BM10-IFERROR(VLOOKUP($A11,'[2]Myaccountaccess Pivot'!$A$4:$B$31,2,FALSE),0)","v":0},null,{"$f":"IFERROR(VLOOKUP($A11,'[6]export-2'!$A$2:$F$15,6,FALSE),BO10)","v":0},0,{"$f":"OFFSET(A11,0,'Cool Graph'!$H$1)","v":0},{"$f":"OFFSET(A11,0,'Cool Graph'!$I$1)","v":0}]
["2011-07-11",0,0,0,0,0,0,0,0,0,0,0,0,0,0,0,0,0,0,0,0,0,0,0,0,0,0,0,0,{"$f":"IFERROR(VLOOKUP($A12,[1]Sheet1!$A$4:$B$219,2,FALSE),0)","v":0},0,0,{"$f":"$BH12+$BI11-IFERROR(VLOOKUP($A12,[2]Sheet2!$A$4:$B$82,2,FALSE),0)","v":0},{"$f":"$BJ11+$BK11-IFERROR(VLOOKUP($A12,[2]Amazon!$A$2:$F$17,5,FALSE),0)","v":0},{"$f":"$BL12+$BM11-IFERROR(VLOOKUP($A12,'[2]Myaccountaccess Pivot'!$A$4:$B$31,2,FALSE),0)","v":0},{"$f":"IFERROR(VLOOKUP($A12,'[2]export-1'!$A$2:$F$441,6,FALSE),AJ11)","v":2500},{"$f":"IFERROR(VLOOKUP($A12,'[7]download-1'!$A$2:$F$513,6,FALSE),AK11)","v":0},{"$f":"IFERROR(VLOOKUP($A12,'[3]TexttoColumn Amazon Balance'!$A$14:$B$30,2,FALSE),IF(AL13>0,AL13-50,0))","v":0},2500,3309.5,14,13,0,0,null,null,null,null,null,{"$f":"IFERROR(VLOOKUP($A12,'[2]export-1'!$A$446:$G$451,7,FALSE),0)","v":0},{"$f":"IFERROR(VLOOKUP($A12,[3]Sheet4!$A$4:$B$56,2,FALSE),0)","v":0},{"$f":"IFERROR(VLOOKUP($A12,'[3]headphones purchased'!$A$2:$G$27,6,FALSE),0)","v":0},{"$f":"ROUND(IFERROR(VLOOKUP($A12,'[4]download-1'!$A$471:$F$474,5,FALSE)/-9.5,0),0)","v":0},{"$f":"ROUND(IFERROR(VLOOKUP($A12,'[4]download-1'!$A$467:$F$469,5,FALSE)/-49,0),0)","v":0},{"$f":"IFERROR(VLOOKUP($A12,[5]Sheet8!$A$4:$B$89,2,FALSE),0)","v":0},null,null,0,{"$f":"IFERROR(VLOOKUP($A12,[3]Paypal!$A$2:$AA$1843,25,FALSE),0)-BH12","v":0},{"$f":"IFERROR(VLOOKUP($A12,'[3]Paypal Money Sent Pivot'!$A$4:$B$97,2,FALSE),0)","v":0},{"$f":"$BH12+$BI11-IFERROR(VLOOKUP($A12,[2]Sheet2!$A$4:$B$82,2,FALSE),0)","v":0},{"$f":"IFERROR(VLOOKUP($A12,'[3]TexttoColumn Amazon Balance'!$A$14:$B$30,2,FALSE),0)","v":0},{"$f":"$BJ11+$BK11-IFERROR(VLOOKUP($A12,[2]Amazon!$A$2:$F$17,5,FALSE),0)","v":0},{"$f":"IFERROR(VLOOKUP($A12,'[4]Payment Pivot'!$A$4:$B$29,2,FALSE),0)","v":0},{"$f":"$BL12+$BM11-IFERROR(VLOOKUP($A12,'[2]Myaccountaccess Pivot'!$A$4:$B$31,2,FALSE),0)","v":0},null,{"$f":"IFERROR(VLOOKUP($A12,'[6]export-2'!$A$2:$F$15,6,FALSE),BO11)","v":0},0,{"$f":"OFFSET(A12,0,'Cool Graph'!$H$1)","v":0},{"$f":"OFFSET(A12,0,'Cool Graph'!$I$1)","v":0}]
["2011-07-12",0,0,0,0,0,0,0,0,0,0,0,0,0,0,0,0,0,0,0,0,0,0,0,0,0,0,0,0,{"$f":"IFERROR(VLOOKUP($A13,[1]Sheet1!$A$4:$B$219,2,FALSE),0)","v":0},0,-147,{"$f":"$BH13+$BI12-IFERROR(VLOOKUP($A13,[2]Sheet2!$A$4:$B$82,2,FALSE),0)","v":0},{"$f":"$BJ12+$BK12-IFERROR(VLOOKUP($A13,[2]Amazon!$A$2:$F$17,5,FALSE),0)","v":0},{"$f":"$BL13+$BM12-IFERROR(VLOOKUP($A13,'[2]Myaccountaccess Pivot'!$A$4:$B$31,2,FALSE),0)","v":0},{"$f":"IFERROR(VLOOKUP($A13,'[2]export-1'!$A$2:$F$441,6,FALSE),AJ12)","v":2304},{"$f":"IFERROR(VLOOKUP($A13,'[7]download-1'!$A$2:$F$513,6,FALSE),AK12)","v":0},{"$f":"IFERROR(VLOOKUP($A13,'[3]TexttoColumn Amazon Balance'!$A$14:$B$30,2,FALSE),IF(AL14>0,AL14-50,0))","v":0},2304,3162.5,15,13,0,0,null,null,null,null,null,{"$f":"IFERROR(VLOOKUP($A13,'[2]export-1'!$A$446:$G$451,7,FALSE),0)","v":0},{"$f":"IFERROR(VLOOKUP($A13,[3]Sheet4!$A$4:$B$56,2,FALSE),0)","v":0},{"$f":"IFERROR(VLOOKUP($A13,'[3]headphones purchased'!$A$2:$G$27,6,FALSE),0)","v":0},{"$f":"ROUND(IFERROR(VLOOKUP($A13,'[4]download-1'!$A$471:$F$474,5,FALSE)/-9.5,0),0)","v":0},{"$f":"ROUND(IFERROR(VLOOKUP($A13,'[4]download-1'!$A$467:$F$469,5,FALSE)/-49,0),0)","v":0},{"$f":"IFERROR(VLOOKUP($A13,[5]Sheet8!$A$4:$B$89,2,FALSE),0)","v":0},null,null,1,{"$f":"IFERROR(VLOOKUP($A13,[3]Paypal!$A$2:$AA$1843,25,FALSE),0)-BH13","v":0},{"$f":"IFERROR(VLOOKUP($A13,'[3]Paypal Money Sent Pivot'!$A$4:$B$97,2,FALSE),0)","v":0},{"$f":"$BH13+$BI12-IFERROR(VLOOKUP($A13,[2]Sheet2!$A$4:$B$82,2,FALSE),0)","v":0},{"$f":"IFERROR(VLOOKUP($A13,'[3]TexttoColumn Amazon Balance'!$A$14:$B$30,2,FALSE),0)","v":0},{"$f":"$BJ12+$BK12-IFERROR(VLOOKUP($A13,[2]Amazon!$A$2:$F$17,5,FALSE),0)","v":0},{"$f":"IFERROR(VLOOKUP($A13,'[4]Payment Pivot'!$A$4:$B$29,2,FALSE),0)","v":0},{"$f":"$BL13+$BM12-IFERROR(VLOOKUP($A13,'[2]Myaccountaccess Pivot'!$A$4:$B$31,2,FALSE),0)","v":0},null,{"$f":"IFERROR(VLOOKUP($A13,'[6]export-2'!$A$2:$F$15,6,FALSE),BO12)","v":0},0,{"$f":"OFFSET(A13,0,'Cool Graph'!$H$1)","v":0},{"$f":"OFFSET(A13,0,'Cool Graph'!$I$1)","v":0}]
["2011-07-13",0,0,0,0,0,0,0,0,0,0,0,0,0,0,0,0,0,0,0,0,0,0,0,0,0,0,0,0,{"$f":"IFERROR(VLOOKUP($A14,[1]Sheet1!$A$4:$B$219,2,FALSE),0)","v":0},0,0,{"$f":"$BH14+$BI13-IFERROR(VLOOKUP($A14,[2]Sheet2!$A$4:$B$82,2,FALSE),0)","v":0},{"$f":"$BJ13+$BK13-IFERROR(VLOOKUP($A14,[2]Amazon!$A$2:$F$17,5,FALSE),0)","v":0},{"$f":"$BL14+$BM13-IFERROR(VLOOKUP($A14,'[2]Myaccountaccess Pivot'!$A$4:$B$31,2,FALSE),0)","v":0},{"$f":"IFERROR(VLOOKUP($A14,'[2]export-1'!$A$2:$F$441,6,FALSE),AJ13)","v":2304},{"$f":"IFERROR(VLOOKUP($A14,'[7]download-1'!$A$2:$F$513,6,FALSE),AK13)","v":0},{"$f":"IFERROR(VLOOKUP($A14,'[3]TexttoColumn Amazon Balance'!$A$14:$B$30,2,FALSE),IF(AL15>0,AL15-50,0))","v":0},2304,3162.5,15,13,0,0,null,null,null,null,null,{"$f":"IFERROR(VLOOKUP($A14,'[2]export-1'!$A$446:$G$451,7,FALSE),0)","v":0},{"$f":"IFERROR(VLOOKUP($A14,[3]Sheet4!$A$4:$B$56,2,FALSE),0)","v":0},{"$f":"IFERROR(VLOOKUP($A14,'[3]headphones purchased'!$A$2:$G$27,6,FALSE),0)","v":0},{"$f":"ROUND(IFERROR(VLOOKUP($A14,'[4]download-1'!$A$471:$F$474,5,FALSE)/-9.5,0),0)","v":0},{"$f":"ROUND(IFERROR(VLOOKUP($A14,'[4]download-1'!$A$467:$F$469,5,FALSE)/-49,0),0)","v":0},{"$f":"IFERROR(VLOOKUP($A14,[5]Sheet8!$A$4:$B$89,2,FALSE),0)","v":0},null,null,0,{"$f":"IFERROR(VLOOKUP($A14,[3]Paypal!$A$2:$AA$1843,25,FALSE),0)-BH14","v":0},{"$f":"IFERROR(VLOOKUP($A14,'[3]Paypal Money Sent Pivot'!$A$4:$B$97,2,FALSE),0)","v":0},{"$f":"$BH14+$BI13-IFERROR(VLOOKUP($A14,[2]Sheet2!$A$4:$B$82,2,FALSE),0)","v":0},{"$f":"IFERROR(VLOOKUP($A14,'[3]TexttoColumn Amazon Balance'!$A$14:$B$30,2,FALSE),0)","v":0},{"$f":"$BJ13+$BK13-IFERROR(VLOOKUP($A14,[2]Amazon!$A$2:$F$17,5,FALSE),0)","v":0},{"$f":"IFERROR(VLOOKUP($A14,'[4]Payment Pivot'!$A$4:$B$29,2,FALSE),0)","v":0},{"$f":"$BL14+$BM13-IFERROR(VLOOKUP($A14,'[2]Myaccountaccess Pivot'!$A$4:$B$31,2,FALSE),0)","v":0},null,{"$f":"IFERROR(VLOOKUP($A14,'[6]export-2'!$A$2:$F$15,6,FALSE),BO13)","v":0},0,{"$f":"OFFSET(A14,0,'Cool Graph'!$H$1)","v":0},{"$f":"OFFSET(A14,0,'Cool Graph'!$I$1)","v":0}]
["2011-07-14",0,0,0,0,0,0,0,0,0,0,0,0,0,0,0,0,0,0,0,0,0,0,0,0,0,0,0,0,{"$f":"IFERROR(VLOOKUP($A15,[1]Sheet1!$A$4:$B$219,2,FALSE),0)","v":0},0,-120,{"$f":"$BH15+$BI14-IFERROR(VLOOKUP($A15,[2]Sheet2!$A$4:$B$82,2,FALSE),0)","v":-0.18},{"$f":"$BJ14+$BK14-IFERROR(VLOOKUP($A15,[2]Amazon!$A$2:$F$17,5,FALSE),0)","v":0},{"$f":"$BL15+$BM14-IFERROR(VLOOKUP($A15,'[2]Myaccountaccess Pivot'!$A$4:$B$31,2,FALSE),0)","v":0},{"$f":"IFERROR(VLOOKUP($A15,'[2]export-1'!$A$2:$F$441,6,FALSE),AJ14)","v":2135.1799999999998},{"$f":"IFERROR(VLOOKUP($A15,'[7]download-1'!$A$2:$F$513,6,FALSE),AK14)","v":0},{"$f":"IFERROR(VLOOKUP($A15,'[3]TexttoColumn Amazon Balance'!$A$14:$B$30,2,FALSE),IF(AL16>0,AL16-50,0))","v":0},2135,3042.5,16,13,0,0,null,null,null,null,null,{"$f":"IFERROR(VLOOKUP($A15,'[2]export-1'!$A$446:$G$451,7,FALSE),0)","v":0},{"$f":"IFERROR(VLOOKUP($A15,[3]Sheet4!$A$4:$B$56,2,FALSE),0)","v":0},{"$f":"IFERROR(VLOOKUP($A15,'[3]headphones purchased'!$A$2:$G$27,6,FALSE),0)","v":0},{"$f":"ROUND(IFERROR(VLOOKUP($A15,'[4]download-1'!$A$471:$F$474,5,FALSE)/-9.5,0),0)","v":0},{"$f":"ROUND(IFERROR(VLOOKUP($A15,'[4]download-1'!$A$467:$F$469,5,FALSE)/-49,0),0)","v":0},{"$f":"IFERROR(VLOOKUP($A15,[5]Sheet8!$A$4:$B$89,2,FALSE),0)","v":0},null,null,1,{"$f":"IFERROR(VLOOKUP($A15,[3]Paypal!$A$2:$AA$1843,25,FALSE),0)-BH15","v":0},{"$f":"IFERROR(VLOOKUP($A15,'[3]Paypal Money Sent Pivot'!$A$4:$B$97,2,FALSE),0)","v":0},{"$f":"$BH15+$BI14-IFERROR(VLOOKUP($A15,[2]Sheet2!$A$4:$B$82,2,FALSE),0)","v":-0.18},{"$f":"IFERROR(VLOOKUP($A15,'[3]TexttoColumn Amazon Balance'!$A$14:$B$30,2,FALSE),0)","v":0},{"$f":"$BJ14+$BK14-IFERROR(VLOOKUP($A15,[2]Amazon!$A$2:$F$17,5,FALSE),0)","v":0},{"$f":"IFERROR(VLOOKUP($A15,'[4]Payment Pivot'!$A$4:$B$29,2,FALSE),0)","v":0},{"$f":"$BL15+$BM14-IFERROR(VLOOKUP($A15,'[2]Myaccountaccess Pivot'!$A$4:$B$31,2,FALSE),0)","v":0},null,{"$f":"IFERROR(VLOOKUP($A15,'[6]export-2'!$A$2:$F$15,6,FALSE),BO14)","v":0},0,{"$f":"OFFSET(A15,0,'Cool Graph'!$H$1)","v":0},{"$f":"OFFSET(A15,0,'Cool Graph'!$I$1)","v":0}]
["2011-07-15",0,0,0,0,0,0,0,0,0,0,0,0,0,0,0,0,0,0,0,0,0,0,0,0,0,0,0,0,{"$f":"IFERROR(VLOOKUP($A16,[1]Sheet1!$A$4:$B$219,2,FALSE),0)","v":0},0,0.11000000000012733,{"$f":"$BH16+$BI15-IFERROR(VLOOKUP($A16,[2]Sheet2!$A$4:$B$82,2,FALSE),0)","v":-0.18},{"$f":"$BJ15+$BK15-IFERROR(VLOOKUP($A16,[2]Amazon!$A$2:$F$17,5,FALSE),0)","v":0},{"$f":"$BL16+$BM15-IFERROR(VLOOKUP($A16,'[2]Myaccountaccess Pivot'!$A$4:$B$31,2,FALSE),0)","v":0},{"$f":"IFERROR(VLOOKUP($A16,'[2]export-1'!$A$2:$F$441,6,FALSE),AJ15)","v":2135.29},{"$f":"IFERROR(VLOOKUP($A16,'[7]download-1'!$A$2:$F$513,6,FALSE),AK15)","v":0},{"$f":"IFERROR(VLOOKUP($A16,'[3]TexttoColumn Amazon Balance'!$A$14:$B$30,2,FALSE),IF(AL17>0,AL17-50,0))","v":0},2135.11,3042.61,16,13,0,0,null,null,null,null,null,{"$f":"IFERROR(VLOOKUP($A16,'[2]export-1'!$A$446:$G$451,7,FALSE),0)","v":0},{"$f":"IFERROR(VLOOKUP($A16,[3]Sheet4!$A$4:$B$56,2,FALSE),0)","v":0},{"$f":"IFERROR(VLOOKUP($A16,'[3]headphones purchased'!$A$2:$G$27,6,FALSE),0)","v":0},{"$f":"ROUND(IFERROR(VLOOKUP($A16,'[4]download-1'!$A$471:$F$474,5,FALSE)/-9.5,0),0)","v":0},{"$f":"ROUND(IFERROR(VLOOKUP($A16,'[4]download-1'!$A$467:$F$469,5,FALSE)/-49,0),0)","v":0},{"$f":"IFERROR(VLOOKUP($A16,[5]Sheet8!$A$4:$B$89,2,FALSE),0)","v":0},null,null,0,{"$f":"IFERROR(VLOOKUP($A16,[3]Paypal!$A$2:$AA$1843,25,FALSE),0)-BH16","v":0},{"$f":"IFERROR(VLOOKUP($A16,'[3]Paypal Money Sent Pivot'!$A$4:$B$97,2,FALSE),0)","v":0},{"$f":"$BH16+$BI15-IFERROR(VLOOKUP($A16,[2]Sheet2!$A$4:$B$82,2,FALSE),0)","v":-0.18},{"$f":"IFERROR(VLOOKUP($A16,'[3]TexttoColumn Amazon Balance'!$A$14:$B$30,2,FALSE),0)","v":0},{"$f":"$BJ15+$BK15-IFERROR(VLOOKUP($A16,[2]Amazon!$A$2:$F$17,5,FALSE),0)","v":0},{"$f":"IFERROR(VLOOKUP($A16,'[4]Payment Pivot'!$A$4:$B$29,2,FALSE),0)","v":0},{"$f":"$BL16+$BM15-IFERROR(VLOOKUP($A16,'[2]Myaccountaccess Pivot'!$A$4:$B$31,2,FALSE),0)","v":0},null,{"$f":"IFERROR(VLOOKUP($A16,'[6]export-2'!$A$2:$F$15,6,FALSE),BO15)","v":0},0,{"$f":"OFFSET(A16,0,'Cool Graph'!$H$1)","v":0},{"$f":"OFFSET(A16,0,'Cool Graph'!$I$1)","v":0}]
["2011-07-16",0,0,54.46,0,0,54.46,0,0,0,2,0,0,0,0,0,0,0,0,0,0,0,0,0,0,0,0,0,0,{"$f":"IFERROR(VLOOKUP($A17,[1]Sheet1!$A$4:$B$219,2,FALSE),0)","v":0},0,48.699999999999818,{"$f":"$BH17+$BI16-IFERROR(VLOOKUP($A17,[2]Sheet2!$A$4:$B$82,2,FALSE),0)","v":-0.18},{"$f":"$BJ16+$BK16-IFERROR(VLOOKUP($A17,[2]Amazon!$A$2:$F$17,5,FALSE),0)","v":0},{"$f":"$BL17+$BM16-IFERROR(VLOOKUP($A17,'[2]Myaccountaccess Pivot'!$A$4:$B$31,2,FALSE),0)","v":0},{"$f":"IFERROR(VLOOKUP($A17,'[2]export-1'!$A$2:$F$441,6,FALSE),AJ16)","v":2135.29},{"$f":"IFERROR(VLOOKUP($A17,'[7]download-1'!$A$2:$F$513,6,FALSE),AK16)","v":0},{"$f":"IFERROR(VLOOKUP($A17,'[3]TexttoColumn Amazon Balance'!$A$14:$B$30,2,FALSE),IF(AL18>0,AL18-50,0))","v":0},2134.81,3091.31,17,13,0,0,null,null,null,null,null,{"$f":"IFERROR(VLOOKUP($A17,'[2]export-1'!$A$446:$G$451,7,FALSE),0)","v":0},{"$f":"IFERROR(VLOOKUP($A17,[3]Sheet4!$A$4:$B$56,2,FALSE),0)","v":0},{"$f":"IFERROR(VLOOKUP($A17,'[3]headphones purchased'!$A$2:$G$27,6,FALSE),0)","v":0},{"$f":"ROUND(IFERROR(VLOOKUP($A17,'[4]download-1'!$A$471:$F$474,5,FALSE)/-9.5,0),0)","v":0},{"$f":"ROUND(IFERROR(VLOOKUP($A17,'[4]download-1'!$A$467:$F$469,5,FALSE)/-49,0),0)","v":0},{"$f":"IFERROR(VLOOKUP($A17,[5]Sheet8!$A$4:$B$89,2,FALSE),0)","v":0},null,null,1,{"$f":"IFERROR(VLOOKUP($A17,[3]Paypal!$A$2:$AA$1843,25,FALSE),0)-BH17","v":-0.3},{"$f":"IFERROR(VLOOKUP($A17,'[3]Paypal Money Sent Pivot'!$A$4:$B$97,2,FALSE),0)","v":0},{"$f":"$BH17+$BI16-IFERROR(VLOOKUP($A17,[2]Sheet2!$A$4:$B$82,2,FALSE),0)","v":-0.18},{"$f":"IFERROR(VLOOKUP($A17,'[3]TexttoColumn Amazon Balance'!$A$14:$B$30,2,FALSE),0)","v":0},{"$f":"$BJ16+$BK16-IFERROR(VLOOKUP($A17,[2]Amazon!$A$2:$F$17,5,FALSE),0)","v":0},{"$f":"IFERROR(VLOOKUP($A17,'[4]Payment Pivot'!$A$4:$B$29,2,FALSE),0)","v":0},{"$f":"$BL17+$BM16-IFERROR(VLOOKUP($A17,'[2]Myaccountaccess Pivot'!$A$4:$B$31,2,FALSE),0)","v":0},null,{"$f":"IFERROR(VLOOKUP($A17,'[6]export-2'!$A$2:$F$15,6,FALSE),BO16)","v":0},-54.46,{"$f":"OFFSET(A17,0,'Cool Graph'!$H$1)","v":0},{"$f":"OFFSET(A17,0,'Cool Graph'!$I$1)","v":-54.46}]
["2011-07-17",0,0,24.31,0,0,24.31,0,0,0,0,0,0,0,0,0,0,0,0,0,0,0,0,0,0,0,0,0,0,{"$f":"IFERROR(VLOOKUP($A18,[1]Sheet1!$A$4:$B$219,2,FALSE),0)","v":0},0,0.3000000000001819,{"$f":"$BH18+$BI17-IFERROR(VLOOKUP($A18,[2]Sheet2!$A$4:$B$82,2,FALSE),0)","v":-0.18},{"$f":"$BJ17+$BK17-IFERROR(VLOOKUP($A18,[2]Amazon!$A$2:$F$17,5,FALSE),0)","v":0},{"$f":"$BL18+$BM17-IFERROR(VLOOKUP($A18,'[2]Myaccountaccess Pivot'!$A$4:$B$31,2,FALSE),0)","v":0},{"$f":"IFERROR(VLOOKUP($A18,'[2]export-1'!$A$2:$F$441,6,FALSE),AJ17)","v":2135.29},{"$f":"IFERROR(VLOOKUP($A18,'[7]download-1'!$A$2:$F$513,6,FALSE),AK17)","v":0},{"$f":"IFERROR(VLOOKUP($A18,'[3]TexttoColumn Amazon Balance'!$A$14:$B$30,2,FALSE),IF(AL19>0,AL19-50,0))","v":0},2135.11,3091.61,17,13,0,0,null,null,null,null,null,{"$f":"IFERROR(VLOOKUP($A18,'[2]export-1'!$A$446:$G$451,7,FALSE),0)","v":0},{"$f":"IFERROR(VLOOKUP($A18,[3]Sheet4!$A$4:$B$56,2,FALSE),0)","v":0},{"$f":"IFERROR(VLOOKUP($A18,'[3]headphones purchased'!$A$2:$G$27,6,FALSE),0)","v":0},{"$f":"ROUND(IFERROR(VLOOKUP($A18,'[4]download-1'!$A$471:$F$474,5,FALSE)/-9.5,0),0)","v":0},{"$f":"ROUND(IFERROR(VLOOKUP($A18,'[4]download-1'!$A$467:$F$469,5,FALSE)/-49,0),0)","v":0},{"$f":"IFERROR(VLOOKUP($A18,[5]Sheet8!$A$4:$B$89,2,FALSE),0)","v":0},null,null,0,{"$f":"IFERROR(VLOOKUP($A18,[3]Paypal!$A$2:$AA$1843,25,FALSE),0)-BH18","v":0},{"$f":"IFERROR(VLOOKUP($A18,'[3]Paypal Money Sent Pivot'!$A$4:$B$97,2,FALSE),0)","v":0},{"$f":"$BH18+$BI17-IFERROR(VLOOKUP($A18,[2]Sheet2!$A$4:$B$82,2,FALSE),0)","v":-0.18},{"$f":"IFERROR(VLOOKUP($A18,'[3]TexttoColumn Amazon Balance'!$A$14:$B$30,2,FALSE),0)","v":0},{"$f":"$BJ17+$BK17-IFERROR(VLOOKUP($A18,[2]Amazon!$A$2:$F$17,5,FALSE),0)","v":0},{"$f":"IFERROR(VLOOKUP($A18,'[4]Payment Pivot'!$A$4:$B$29,2,FALSE),0)","v":0},{"$f":"$BL18+$BM17-IFERROR(VLOOKUP($A18,'[2]Myaccountaccess Pivot'!$A$4:$B$31,2,FALSE),0)","v":0},null,{"$f":"IFERROR(VLOOKUP($A18,'[6]export-2'!$A$2:$F$15,6,FALSE),BO17)","v":0},-24.31,{"$f":"OFFSET(A18,0,'Cool Graph'!$H$1)","v":0},{"$f":"OFFSET(A18,0,'Cool Graph'!$I$1)","v":-24.31}]
["2011-07-18",0,0,93.06,21.35,0,114.41,0,0,0,0,2,0,0,21.35,2,0,0,0,0,0,0,0,1,1,0,0,1,0,{"$f":"IFERROR(VLOOKUP($A19,[1]Sheet1!$A$4:$B$219,2,FALSE),0)","v":165},165,114.97000000000025,{"$f":"$BH19+$BI18-IFERROR(VLOOKUP($A19,[2]Sheet2!$A$4:$B$82,2,FALSE),0)","v":-0.18},{"$f":"$BJ18+$BK18-IFERROR(VLOOKUP($A19,[2]Amazon!$A$2:$F$17,5,FALSE),0)","v":0},{"$f":"$BL19+$BM18-IFERROR(VLOOKUP($A19,'[2]Myaccountaccess Pivot'!$A$4:$B$31,2,FALSE),0)","v":0},{"$f":"IFERROR(VLOOKUP($A19,'[2]export-1'!$A$2:$F$441,6,FALSE),AJ18)","v":2105.98},{"$f":"IFERROR(VLOOKUP($A19,'[7]download-1'!$A$2:$F$513,6,FALSE),AK18)","v":0},{"$f":"IFERROR(VLOOKUP($A19,'[3]TexttoColumn Amazon Balance'!$A$14:$B$30,2,FALSE),IF(AL20>0,AL20-50,0))","v":0},2259.5800000000004,3206.5800000000004,17,12,0,0,null,null,null,null,null,{"$f":"IFERROR(VLOOKUP($A19,'[2]export-1'!$A$446:$G$451,7,FALSE),0)","v":0},{"$f":"IFERROR(VLOOKUP($A19,[3]Sheet4!$A$4:$B$56,2,FALSE),0)","v":0},{"$f":"IFERROR(VLOOKUP($A19,'[3]headphones purchased'!$A$2:$G$27,6,FALSE),0)","v":0},{"$f":"ROUND(IFERROR(VLOOKUP($A19,'[4]download-1'!$A$471:$F$474,5,FALSE)/-9.5,0),0)","v":0},{"$f":"ROUND(IFERROR(VLOOKUP($A19,'[4]download-1'!$A$467:$F$469,5,FALSE)/-49,0),0)","v":0},{"$f":"IFERROR(VLOOKUP($A19,[5]Sheet8!$A$4:$B$89,2,FALSE),0)","v":0},null,null,1,{"$f":"IFERROR(VLOOKUP($A19,[3]Paypal!$A$2:$AA$1843,25,FALSE),0)-BH19","v":153.78},{"$f":"IFERROR(VLOOKUP($A19,'[3]Paypal Money Sent Pivot'!$A$4:$B$97,2,FALSE),0)","v":0},{"$f":"$BH19+$BI18-IFERROR(VLOOKUP($A19,[2]Sheet2!$A$4:$B$82,2,FALSE),0)","v":-0.18},{"$f":"IFERROR(VLOOKUP($A19,'[3]TexttoColumn Amazon Balance'!$A$14:$B$30,2,FALSE),0)","v":0},{"$f":"$BJ18+$BK18-IFERROR(VLOOKUP($A19,[2]Amazon!$A$2:$F$17,5,FALSE),0)","v":0},{"$f":"IFERROR(VLOOKUP($A19,'[4]Payment Pivot'!$A$4:$B$29,2,FALSE),0)","v":0},{"$f":"$BL19+$BM18-IFERROR(VLOOKUP($A19,'[2]Myaccountaccess Pivot'!$A$4:$B$31,2,FALSE),0)","v":0},null,{"$f":"IFERROR(VLOOKUP($A19,'[6]export-2'!$A$2:$F$15,6,FALSE),BO18)","v":0},-44.540063082809439,{"$f":"OFFSET(A19,0,'Cool Graph'!$H$1)","v":0},{"$f":"OFFSET(A19,0,'Cool Graph'!$I$1)","v":-44.540063082809439}]
["2011-07-19",0,0,57.19,3.64,0,60.83,0,0,0,2,0,0,0,3.64,0,0,0,0,0,0,0,0,3,3,0,0,3,0,{"$f":"IFERROR(VLOOKUP($A20,[1]Sheet1!$A$4:$B$219,2,FALSE),0)","v":495},495,304.23,{"$f":"$BH20+$BI19-IFERROR(VLOOKUP($A20,[2]Sheet2!$A$4:$B$82,2,FALSE),0)","v":-0.18},{"$f":"$BJ19+$BK19-IFERROR(VLOOKUP($A20,[2]Amazon!$A$2:$F$17,5,FALSE),0)","v":0},{"$f":"$BL20+$BM19-IFERROR(VLOOKUP($A20,'[2]Myaccountaccess Pivot'!$A$4:$B$31,2,FALSE),0)","v":0},{"$f":"IFERROR(VLOOKUP($A20,'[2]export-1'!$A$2:$F$441,6,FALSE),AJ19)","v":2105.98},{"$f":"IFERROR(VLOOKUP($A20,'[7]download-1'!$A$2:$F$513,6,FALSE),AK19)","v":0},{"$f":"IFERROR(VLOOKUP($A20,'[3]TexttoColumn Amazon Balance'!$A$14:$B$30,2,FALSE),IF(AL21>0,AL21-50,0))","v":0},2739.3100000000004,3510.8100000000004,14,9,0,0,null,null,null,null,null,{"$f":"IFERROR(VLOOKUP($A20,'[2]export-1'!$A$446:$G$451,7,FALSE),0)","v":0},{"$f":"IFERROR(VLOOKUP($A20,[3]Sheet4!$A$4:$B$56,2,FALSE),0)","v":0},{"$f":"IFERROR(VLOOKUP($A20,'[3]headphones purchased'!$A$2:$G$27,6,FALSE),0)","v":0},{"$f":"ROUND(IFERROR(VLOOKUP($A20,'[4]download-1'!$A$471:$F$474,5,FALSE)/-9.5,0),0)","v":0},{"$f":"ROUND(IFERROR(VLOOKUP($A20,'[4]download-1'!$A$467:$F$469,5,FALSE)/-49,0),0)","v":0},{"$f":"IFERROR(VLOOKUP($A20,[5]Sheet8!$A$4:$B$89,2,FALSE),0)","v":0},null,null,0,{"$f":"IFERROR(VLOOKUP($A20,[3]Paypal!$A$2:$AA$1843,25,FALSE),0)-BH20","v":633.51},{"$f":"IFERROR(VLOOKUP($A20,'[3]Paypal Money Sent Pivot'!$A$4:$B$97,2,FALSE),0)","v":0},{"$f":"$BH20+$BI19-IFERROR(VLOOKUP($A20,[2]Sheet2!$A$4:$B$82,2,FALSE),0)","v":-0.18},{"$f":"IFERROR(VLOOKUP($A20,'[3]TexttoColumn Amazon Balance'!$A$14:$B$30,2,FALSE),0)","v":0},{"$f":"$BJ19+$BK19-IFERROR(VLOOKUP($A20,[2]Amazon!$A$2:$F$17,5,FALSE),0)","v":0},{"$f":"IFERROR(VLOOKUP($A20,'[4]Payment Pivot'!$A$4:$B$29,2,FALSE),0)","v":0},{"$f":"$BL20+$BM19-IFERROR(VLOOKUP($A20,'[2]Myaccountaccess Pivot'!$A$4:$B$31,2,FALSE),0)","v":0},null,{"$f":"IFERROR(VLOOKUP($A20,'[6]export-2'!$A$2:$F$15,6,FALSE),BO19)","v":0},148.77981075157169,{"$f":"OFFSET(A20,0,'Cool Graph'!$H$1)","v":0},{"$f":"OFFSET(A20,0,'Cool Graph'!$I$1)","v":148.77981075157169}]
["2011-07-20",0,0,55.79,7.29,0,63.08,0,0,0,1,0,0,0,7.29,0,0,0,0,0,0,0,0,0,0,0,0,0,0,{"$f":"IFERROR(VLOOKUP($A21,[1]Sheet1!$A$4:$B$219,2,FALSE),0)","v":0},0,72.359999999998308,{"$f":"$BH21+$BI20-IFERROR(VLOOKUP($A21,[2]Sheet2!$A$4:$B$82,2,FALSE),0)","v":-0.18},{"$f":"$BJ20+$BK20-IFERROR(VLOOKUP($A21,[2]Amazon!$A$2:$F$17,5,FALSE),0)","v":0},{"$f":"$BL21+$BM20-IFERROR(VLOOKUP($A21,'[2]Myaccountaccess Pivot'!$A$4:$B$31,2,FALSE),0)","v":0},{"$f":"IFERROR(VLOOKUP($A21,'[2]export-1'!$A$2:$F$441,6,FALSE),AJ20)","v":2081.7800000000002},{"$f":"IFERROR(VLOOKUP($A21,'[7]download-1'!$A$2:$F$513,6,FALSE),AK20)","v":-50.000000000001592},{"$f":"IFERROR(VLOOKUP($A21,'[3]TexttoColumn Amazon Balance'!$A$14:$B$30,2,FALSE),IF(AL22>0,AL22-50,0))","v":0},2664.6699999999987,3583.1699999999987,17,9,0,0,null,null,null,null,null,{"$f":"IFERROR(VLOOKUP($A21,'[2]export-1'!$A$446:$G$451,7,FALSE),0)","v":0},{"$f":"IFERROR(VLOOKUP($A21,[3]Sheet4!$A$4:$B$56,2,FALSE),0)","v":3},{"$f":"IFERROR(VLOOKUP($A21,'[3]headphones purchased'!$A$2:$G$27,6,FALSE),0)","v":0},{"$f":"ROUND(IFERROR(VLOOKUP($A21,'[4]download-1'!$A$471:$F$474,5,FALSE)/-9.5,0),0)","v":0},{"$f":"ROUND(IFERROR(VLOOKUP($A21,'[4]download-1'!$A$467:$F$469,5,FALSE)/-49,0),0)","v":0},{"$f":"IFERROR(VLOOKUP($A21,[5]Sheet8!$A$4:$B$89,2,FALSE),0)","v":1},null,null,1,{"$f":"IFERROR(VLOOKUP($A21,[3]Paypal!$A$2:$AA$1843,25,FALSE),0)-BH21","v":633.07000000000005},{"$f":"IFERROR(VLOOKUP($A21,'[3]Paypal Money Sent Pivot'!$A$4:$B$97,2,FALSE),0)","v":0},{"$f":"$BH21+$BI20-IFERROR(VLOOKUP($A21,[2]Sheet2!$A$4:$B$82,2,FALSE),0)","v":-0.18},{"$f":"IFERROR(VLOOKUP($A21,'[3]TexttoColumn Amazon Balance'!$A$14:$B$30,2,FALSE),0)","v":0},{"$f":"$BJ20+$BK20-IFERROR(VLOOKUP($A21,[2]Amazon!$A$2:$F$17,5,FALSE),0)","v":0},{"$f":"IFERROR(VLOOKUP($A21,'[4]Payment Pivot'!$A$4:$B$29,2,FALSE),0)","v":0},{"$f":"$BL21+$BM20-IFERROR(VLOOKUP($A21,'[2]Myaccountaccess Pivot'!$A$4:$B$31,2,FALSE),0)","v":0},null,{"$f":"IFERROR(VLOOKUP($A21,'[6]export-2'!$A$2:$F$15,6,FALSE),BO20)","v":0},-63.08,{"$f":"OFFSET(A21,0,'Cool Graph'!$H$1)","v":0},{"$f":"OFFSET(A21,0,'Cool Graph'!$I$1)","v":-63.08}]
["2011-07-21",0,0,44.32,0,0,44.32,0,0,0,0,0,0,0,0,0,0,0,0,0,0,0,0,0,0,0,0,0,0,{"$f":"IFERROR(VLOOKUP($A22,[1]Sheet1!$A$4:$B$219,2,FALSE),0)","v":0},0,-927.06,{"$f":"$BH22+$BI21-IFERROR(VLOOKUP($A22,[2]Sheet2!$A$4:$B$82,2,FALSE),0)","v":-0.18},{"$f":"$BJ21+$BK21-IFERROR(VLOOKUP($A22,[2]Amazon!$A$2:$F$17,5,FALSE),0)","v":0},{"$f":"$BL22+$BM21-IFERROR(VLOOKUP($A22,'[2]Myaccountaccess Pivot'!$A$4:$B$31,2,FALSE),0)","v":0},{"$f":"IFERROR(VLOOKUP($A22,'[2]export-1'!$A$2:$F$441,6,FALSE),AJ21)","v":1787.7900000000002},{"$f":"IFERROR(VLOOKUP($A22,'[7]download-1'!$A$2:$F$513,6,FALSE),AK21)","v":-50.000000000001592},{"$f":"IFERROR(VLOOKUP($A22,'[3]TexttoColumn Amazon Balance'!$A$14:$B$30,2,FALSE),IF(AL23>0,AL23-50,0))","v":0},1737.6099999999985,2656.1099999999988,17,9,0,0,null,null,null,null,null,{"$f":"IFERROR(VLOOKUP($A22,'[2]export-1'!$A$446:$G$451,7,FALSE),0)","v":0},{"$f":"IFERROR(VLOOKUP($A22,[3]Sheet4!$A$4:$B$56,2,FALSE),0)","v":0},{"$f":"IFERROR(VLOOKUP($A22,'[3]headphones purchased'!$A$2:$G$27,6,FALSE),0)","v":0},{"$f":"ROUND(IFERROR(VLOOKUP($A22,'[4]download-1'!$A$471:$F$474,5,FALSE)/-9.5,0),0)","v":0},{"$f":"ROUND(IFERROR(VLOOKUP($A22,'[4]download-1'!$A$467:$F$469,5,FALSE)/-49,0),0)","v":0},{"$f":"IFERROR(VLOOKUP($A22,[5]Sheet8!$A$4:$B$89,2,FALSE),0)","v":0},null,null,0,{"$f":"IFERROR(VLOOKUP($A22,[3]Paypal!$A$2:$AA$1843,25,FALSE),0)-BH22","v":0},{"$f":"IFERROR(VLOOKUP($A22,'[3]Paypal Money Sent Pivot'!$A$4:$B$97,2,FALSE),0)","v":0},{"$f":"$BH22+$BI21-IFERROR(VLOOKUP($A22,[2]Sheet2!$A$4:$B$82,2,FALSE),0)","v":-0.18},{"$f":"IFERROR(VLOOKUP($A22,'[3]TexttoColumn Amazon Balance'!$A$14:$B$30,2,FALSE),0)","v":0},{"$f":"$BJ21+$BK21-IFERROR(VLOOKUP($A22,[2]Amazon!$A$2:$F$17,5,FALSE),0)","v":0},{"$f":"IFERROR(VLOOKUP($A22,'[4]Payment Pivot'!$A$4:$B$29,2,FALSE),0)","v":0},{"$f":"$BL22+$BM21-IFERROR(VLOOKUP($A22,'[2]Myaccountaccess Pivot'!$A$4:$B$31,2,FALSE),0)","v":0},null,{"$f":"IFERROR(VLOOKUP($A22,'[6]export-2'!$A$2:$F$15,6,FALSE),BO21)","v":0},-44.32,{"$f":"OFFSET(A22,0,'Cool Graph'!$H$1)","v":0},{"$f":"OFFSET(A22,0,'Cool Graph'!$I$1)","v":-44.32}]
["2011-07-22",0,0,70.02,0,0,70.02,0,0,0,2,0,0,0,0,0,0,0,0,0,0,0,0,3,3,0,0,3,0,{"$f":"IFERROR(VLOOKUP($A23,[1]Sheet1!$A$4:$B$219,2,FALSE),0)","v":495},495,825.56999999999971,{"$f":"$BH23+$BI22-IFERROR(VLOOKUP($A23,[2]Sheet2!$A$4:$B$82,2,FALSE),0)","v":-0.18},{"$f":"$BJ22+$BK22-IFERROR(VLOOKUP($A23,[2]Amazon!$A$2:$F$17,5,FALSE),0)","v":0},{"$f":"$BL23+$BM22-IFERROR(VLOOKUP($A23,'[2]Myaccountaccess Pivot'!$A$4:$B$31,2,FALSE),0)","v":0},{"$f":"IFERROR(VLOOKUP($A23,'[2]export-1'!$A$2:$F$441,6,FALSE),AJ22)","v":1787.7900000000002},{"$f":"IFERROR(VLOOKUP($A23,'[7]download-1'!$A$2:$F$513,6,FALSE),AK22)","v":-50.000000000001592},{"$f":"IFERROR(VLOOKUP($A23,'[3]TexttoColumn Amazon Balance'!$A$14:$B$30,2,FALSE),IF(AL24>0,AL24-50,0))","v":0},2591.6799999999985,3481.6799999999985,17,6,0,0,null,null,null,null,null,{"$f":"IFERROR(VLOOKUP($A23,'[2]export-1'!$A$446:$G$451,7,FALSE),0)","v":0},{"$f":"IFERROR(VLOOKUP($A23,[3]Sheet4!$A$4:$B$56,2,FALSE),0)","v":3},{"$f":"IFERROR(VLOOKUP($A23,'[3]headphones purchased'!$A$2:$G$27,6,FALSE),0)","v":0},{"$f":"ROUND(IFERROR(VLOOKUP($A23,'[4]download-1'!$A$471:$F$474,5,FALSE)/-9.5,0),0)","v":0},{"$f":"ROUND(IFERROR(VLOOKUP($A23,'[4]download-1'!$A$467:$F$469,5,FALSE)/-49,0),0)","v":0},{"$f":"IFERROR(VLOOKUP($A23,[5]Sheet8!$A$4:$B$89,2,FALSE),0)","v":1},null,null,1,{"$f":"IFERROR(VLOOKUP($A23,[3]Paypal!$A$2:$AA$1843,25,FALSE),0)-BH23","v":854.07},{"$f":"IFERROR(VLOOKUP($A23,'[3]Paypal Money Sent Pivot'!$A$4:$B$97,2,FALSE),0)","v":0},{"$f":"$BH23+$BI22-IFERROR(VLOOKUP($A23,[2]Sheet2!$A$4:$B$82,2,FALSE),0)","v":-0.18},{"$f":"IFERROR(VLOOKUP($A23,'[3]TexttoColumn Amazon Balance'!$A$14:$B$30,2,FALSE),0)","v":0},{"$f":"$BJ22+$BK22-IFERROR(VLOOKUP($A23,[2]Amazon!$A$2:$F$17,5,FALSE),0)","v":0},{"$f":"IFERROR(VLOOKUP($A23,'[4]Payment Pivot'!$A$4:$B$29,2,FALSE),0)","v":0},{"$f":"$BL23+$BM22-IFERROR(VLOOKUP($A23,'[2]Myaccountaccess Pivot'!$A$4:$B$31,2,FALSE),0)","v":0},null,{"$f":"IFERROR(VLOOKUP($A23,'[6]export-2'!$A$2:$F$15,6,FALSE),BO22)","v":0},139.58981075157169,{"$f":"OFFSET(A23,0,'Cool Graph'!$H$1)","v":0},{"$f":"OFFSET(A23,0,'Cool Graph'!$I$1)","v":139.58981075157169}]
["2011-07-23",0,0,51.29,0,0,51.29,0,0,0,0,0,0,0,0,0,0,0,0,0,0,0,0,0,0,0,0,0,0,{"$f":"IFERROR(VLOOKUP($A24,[1]Sheet1!$A$4:$B$219,2,FALSE),0)","v":0},0,-903.06999999999971,{"$f":"$BH24+$BI23-IFERROR(VLOOKUP($A24,[2]Sheet2!$A$4:$B$82,2,FALSE),0)","v":-0.18},{"$f":"$BJ23+$BK23-IFERROR(VLOOKUP($A24,[2]Amazon!$A$2:$F$17,5,FALSE),0)","v":0},{"$f":"$BL24+$BM23-IFERROR(VLOOKUP($A24,'[2]Myaccountaccess Pivot'!$A$4:$B$31,2,FALSE),0)","v":0},{"$f":"IFERROR(VLOOKUP($A24,'[2]export-1'!$A$2:$F$441,6,FALSE),AJ23)","v":1787.7900000000002},{"$f":"IFERROR(VLOOKUP($A24,'[7]download-1'!$A$2:$F$513,6,FALSE),AK23)","v":-50.000000000001592},{"$f":"IFERROR(VLOOKUP($A24,'[3]TexttoColumn Amazon Balance'!$A$14:$B$30,2,FALSE),IF(AL25>0,AL25-50,0))","v":0},1737.6099999999985,2578.6099999999988,16,6,0,0,null,null,null,null,null,{"$f":"IFERROR(VLOOKUP($A24,'[2]export-1'!$A$446:$G$451,7,FALSE),0)","v":0},{"$f":"IFERROR(VLOOKUP($A24,[3]Sheet4!$A$4:$B$56,2,FALSE),0)","v":0},{"$f":"IFERROR(VLOOKUP($A24,'[3]headphones purchased'!$A$2:$G$27,6,FALSE),0)","v":0},{"$f":"ROUND(IFERROR(VLOOKUP($A24,'[4]download-1'!$A$471:$F$474,5,FALSE)/-9.5,0),0)","v":0},{"$f":"ROUND(IFERROR(VLOOKUP($A24,'[4]download-1'!$A$467:$F$469,5,FALSE)/-49,0),0)","v":0},{"$f":"IFERROR(VLOOKUP($A24,[5]Sheet8!$A$4:$B$89,2,FALSE),0)","v":1},null,null,0,{"$f":"IFERROR(VLOOKUP($A24,[3]Paypal!$A$2:$AA$1843,25,FALSE),0)-BH24","v":0},{"$f":"IFERROR(VLOOKUP($A24,'[3]Paypal Money Sent Pivot'!$A$4:$B$97,2,FALSE),0)","v":0},{"$f":"$BH24+$BI23-IFERROR(VLOOKUP($A24,[2]Sheet2!$A$4:$B$82,2,FALSE),0)","v":-0.18},{"$f":"IFERROR(VLOOKUP($A24,'[3]TexttoColumn Amazon Balance'!$A$14:$B$30,2,FALSE),0)","v":0},{"$f":"$BJ23+$BK23-IFERROR(VLOOKUP($A24,[2]Amazon!$A$2:$F$17,5,FALSE),0)","v":0},{"$f":"IFERROR(VLOOKUP($A24,'[4]Payment Pivot'!$A$4:$B$29,2,FALSE),0)","v":0},{"$f":"$BL24+$BM23-IFERROR(VLOOKUP($A24,'[2]Myaccountaccess Pivot'!$A$4:$B$31,2,FALSE),0)","v":0},null,{"$f":"IFERROR(VLOOKUP($A24,'[6]export-2'!$A$2:$F$15,6,FALSE),BO23)","v":0},-51.29,{"$f":"OFFSET(A24,0,'Cool Graph'!$H$1)","v":0},{"$f":"OFFSET(A24,0,'Cool Graph'!$I$1)","v":-51.29}]
["2011-07-24",0,0,21.55,0,0,21.55,0,0,0,0,0,0,0,0,0,0,0,0,0,0,0,0,0,0,0,0,0,0,{"$f":"IFERROR(VLOOKUP($A25,[1]Sheet1!$A$4:$B$219,2,FALSE),0)","v":0},0,49,{"$f":"$BH25+$BI24-IFERROR(VLOOKUP($A25,[2]Sheet2!$A$4:$B$82,2,FALSE),0)","v":-0.18},{"$f":"$BJ24+$BK24-IFERROR(VLOOKUP($A25,[2]Amazon!$A$2:$F$17,5,FALSE),0)","v":0},{"$f":"$BL25+$BM24-IFERROR(VLOOKUP($A25,'[2]Myaccountaccess Pivot'!$A$4:$B$31,2,FALSE),0)","v":0},{"$f":"IFERROR(VLOOKUP($A25,'[2]export-1'!$A$2:$F$441,6,FALSE),AJ24)","v":1787.7900000000002},{"$f":"IFERROR(VLOOKUP($A25,'[7]download-1'!$A$2:$F$513,6,FALSE),AK24)","v":-50.000000000001592},{"$f":"IFERROR(VLOOKUP($A25,'[3]TexttoColumn Amazon Balance'!$A$14:$B$30,2,FALSE),IF(AL26>0,AL26-50,0))","v":0},1737.6099999999985,2627.6099999999988,17,6,0,0,null,null,null,null,null,{"$f":"IFERROR(VLOOKUP($A25,'[2]export-1'!$A$446:$G$451,7,FALSE),0)","v":0},{"$f":"IFERROR(VLOOKUP($A25,[3]Sheet4!$A$4:$B$56,2,FALSE),0)","v":0},{"$f":"IFERROR(VLOOKUP($A25,'[3]headphones purchased'!$A$2:$G$27,6,FALSE),0)","v":0},{"$f":"ROUND(IFERROR(VLOOKUP($A25,'[4]download-1'!$A$471:$F$474,5,FALSE)/-9.5,0),0)","v":0},{"$f":"ROUND(IFERROR(VLOOKUP($A25,'[4]download-1'!$A$467:$F$469,5,FALSE)/-49,0),0)","v":0},{"$f":"IFERROR(VLOOKUP($A25,[5]Sheet8!$A$4:$B$89,2,FALSE),0)","v":0},null,null,1,{"$f":"IFERROR(VLOOKUP($A25,[3]Paypal!$A$2:$AA$1843,25,FALSE),0)-BH25","v":0},{"$f":"IFERROR(VLOOKUP($A25,'[3]Paypal Money Sent Pivot'!$A$4:$B$97,2,FALSE),0)","v":0},{"$f":"$BH25+$BI24-IFERROR(VLOOKUP($A25,[2]Sheet2!$A$4:$B$82,2,FALSE),0)","v":-0.18},{"$f":"IFERROR(VLOOKUP($A25,'[3]TexttoColumn Amazon Balance'!$A$14:$B$30,2,FALSE),0)","v":0},{"$f":"$BJ24+$BK24-IFERROR(VLOOKUP($A25,[2]Amazon!$A$2:$F$17,5,FALSE),0)","v":0},{"$f":"IFERROR(VLOOKUP($A25,'[4]Payment Pivot'!$A$4:$B$29,2,FALSE),0)","v":0},{"$f":"$BL25+$BM24-IFERROR(VLOOKUP($A25,'[2]Myaccountaccess Pivot'!$A$4:$B$31,2,FALSE),0)","v":0},null,{"$f":"IFERROR(VLOOKUP($A25,'[6]export-2'!$A$2:$F$15,6,FALSE),BO24)","v":0},-21.55,{"$f":"OFFSET(A25,0,'Cool Graph'!$H$1)","v":0},{"$f":"OFFSET(A25,0,'Cool Graph'!$I$1)","v":-21.55}]
["2011-07-25",0,0,113.04,0,0.3,113.34,0,0,0,1,0,0,0,0,0,0,0,0,0,0,0,0,0,0,0,0,0,0,{"$f":"IFERROR(VLOOKUP($A26,[1]Sheet1!$A$4:$B$219,2,FALSE),0)","v":0},0,-275,{"$f":"$BH26+$BI25-IFERROR(VLOOKUP($A26,[2]Sheet2!$A$4:$B$82,2,FALSE),0)","v":-0.18},{"$f":"$BJ25+$BK25-IFERROR(VLOOKUP($A26,[2]Amazon!$A$2:$F$17,5,FALSE),0)","v":0},{"$f":"$BL26+$BM25-IFERROR(VLOOKUP($A26,'[2]Myaccountaccess Pivot'!$A$4:$B$31,2,FALSE),0)","v":0},{"$f":"IFERROR(VLOOKUP($A26,'[2]export-1'!$A$2:$F$441,6,FALSE),AJ25)","v":1787.7900000000002},{"$f":"IFERROR(VLOOKUP($A26,'[7]download-1'!$A$2:$F$513,6,FALSE),AK25)","v":-325.00000000000159},{"$f":"IFERROR(VLOOKUP($A26,'[3]TexttoColumn Amazon Balance'!$A$14:$B$30,2,FALSE),IF(AL27>0,AL27-50,0))","v":0},1462.6099999999985,2352.6099999999988,17,6,0,0,null,null,null,null,null,{"$f":"IFERROR(VLOOKUP($A26,'[2]export-1'!$A$446:$G$451,7,FALSE),0)","v":0},{"$f":"IFERROR(VLOOKUP($A26,[3]Sheet4!$A$4:$B$56,2,FALSE),0)","v":0},{"$f":"IFERROR(VLOOKUP($A26,'[3]headphones purchased'!$A$2:$G$27,6,FALSE),0)","v":0},{"$f":"ROUND(IFERROR(VLOOKUP($A26,'[4]download-1'!$A$471:$F$474,5,FALSE)/-9.5,0),0)","v":0},{"$f":"ROUND(IFERROR(VLOOKUP($A26,'[4]download-1'!$A$467:$F$469,5,FALSE)/-49,0),0)","v":0},{"$f":"IFERROR(VLOOKUP($A26,[5]Sheet8!$A$4:$B$89,2,FALSE),0)","v":0},null,null,0,{"$f":"IFERROR(VLOOKUP($A26,[3]Paypal!$A$2:$AA$1843,25,FALSE),0)-BH26","v":0},{"$f":"IFERROR(VLOOKUP($A26,'[3]Paypal Money Sent Pivot'!$A$4:$B$97,2,FALSE),0)","v":0},{"$f":"$BH26+$BI25-IFERROR(VLOOKUP($A26,[2]Sheet2!$A$4:$B$82,2,FALSE),0)","v":-0.18},{"$f":"IFERROR(VLOOKUP($A26,'[3]TexttoColumn Amazon Balance'!$A$14:$B$30,2,FALSE),0)","v":0},{"$f":"$BJ25+$BK25-IFERROR(VLOOKUP($A26,[2]Amazon!$A$2:$F$17,5,FALSE),0)","v":0},{"$f":"IFERROR(VLOOKUP($A26,'[4]Payment Pivot'!$A$4:$B$29,2,FALSE),0)","v":0},{"$f":"$BL26+$BM25-IFERROR(VLOOKUP($A26,'[2]Myaccountaccess Pivot'!$A$4:$B$31,2,FALSE),0)","v":0},null,{"$f":"IFERROR(VLOOKUP($A26,'[6]export-2'!$A$2:$F$15,6,FALSE),BO25)","v":0},-113.34,{"$f":"OFFSET(A26,0,'Cool Graph'!$H$1)","v":0},{"$f":"OFFSET(A26,0,'Cool Graph'!$I$1)","v":-113.34}]
["2011-07-26",0,0,72.34,0,4.46,76.8,0,0,0,2,0,0,0,0,0,0,0,0,0,0,0,0,2,2,0,0,2,0,{"$f":"IFERROR(VLOOKUP($A27,[1]Sheet1!$A$4:$B$219,2,FALSE),0)","v":330},330,1126.96,{"$f":"$BH27+$BI26-IFERROR(VLOOKUP($A27,[2]Sheet2!$A$4:$B$82,2,FALSE),0)","v":-0.18},{"$f":"$BJ26+$BK26-IFERROR(VLOOKUP($A27,[2]Amazon!$A$2:$F$17,5,FALSE),0)","v":0},{"$f":"$BL27+$BM26-IFERROR(VLOOKUP($A27,'[2]Myaccountaccess Pivot'!$A$4:$B$31,2,FALSE),0)","v":0},{"$f":"IFERROR(VLOOKUP($A27,'[2]export-1'!$A$2:$F$441,6,FALSE),AJ26)","v":1537.8000000000002},{"$f":"IFERROR(VLOOKUP($A27,'[7]download-1'!$A$2:$F$513,6,FALSE),AK26)","v":-325.00000000000159},{"$f":"IFERROR(VLOOKUP($A27,'[3]TexttoColumn Amazon Balance'!$A$14:$B$30,2,FALSE),IF(AL28>0,AL28-50,0))","v":0},2314.5699999999988,3479.5699999999988,23,4,0,0,null,null,null,null,null,{"$f":"IFERROR(VLOOKUP($A27,'[2]export-1'!$A$446:$G$451,7,FALSE),0)","v":0},{"$f":"IFERROR(VLOOKUP($A27,[3]Sheet4!$A$4:$B$56,2,FALSE),0)","v":7},{"$f":"IFERROR(VLOOKUP($A27,'[3]headphones purchased'!$A$2:$G$27,6,FALSE),0)","v":0},{"$f":"ROUND(IFERROR(VLOOKUP($A27,'[4]download-1'!$A$471:$F$474,5,FALSE)/-9.5,0),0)","v":0},{"$f":"ROUND(IFERROR(VLOOKUP($A27,'[4]download-1'!$A$467:$F$469,5,FALSE)/-49,0),0)","v":0},{"$f":"IFERROR(VLOOKUP($A27,[5]Sheet8!$A$4:$B$89,2,FALSE),0)","v":0},null,null,1,{"$f":"IFERROR(VLOOKUP($A27,[3]Paypal!$A$2:$AA$1843,25,FALSE),0)-BH27","v":1101.95},{"$f":"IFERROR(VLOOKUP($A27,'[3]Paypal Money Sent Pivot'!$A$4:$B$97,2,FALSE),0)","v":0},{"$f":"$BH27+$BI26-IFERROR(VLOOKUP($A27,[2]Sheet2!$A$4:$B$82,2,FALSE),0)","v":-0.18},{"$f":"IFERROR(VLOOKUP($A27,'[3]TexttoColumn Amazon Balance'!$A$14:$B$30,2,FALSE),0)","v":0},{"$f":"$BJ26+$BK26-IFERROR(VLOOKUP($A27,[2]Amazon!$A$2:$F$17,5,FALSE),0)","v":0},{"$f":"IFERROR(VLOOKUP($A27,'[4]Payment Pivot'!$A$4:$B$39,2,FALSE),0)","v":0},{"$f":"$BL27+$BM26-IFERROR(VLOOKUP($A27,'[2]Myaccountaccess Pivot'!$A$4:$B$31,2,FALSE),0)","v":0},null,{"$f":"IFERROR(VLOOKUP($A27,'[6]export-2'!$A$2:$F$15,6,FALSE),BO26)","v":0},62.939873834381117,{"$f":"OFFSET(A27,0,'Cool Graph'!$H$1)","v":0},{"$f":"OFFSET(A27,0,'Cool Graph'!$I$1)","v":62.939873834381117}]
["2011-07-27",0,0,54.28,0,3.99,58.27,0,0,0,0,0,0,0,0,0,0,0,0,0,0,0,0,0,0,0,0,0,0,{"$f":"IFERROR(VLOOKUP($A28,[1]Sheet1!$A$4:$B$219,2,FALSE),0)","v":0},0,-21.0300000000002,{"$f":"$BH28+$BI27-IFERROR(VLOOKUP($A28,[2]Sheet2!$A$4:$B$82,2,FALSE),0)","v":799.82},{"$f":"$BJ27+$BK27-IFERROR(VLOOKUP($A28,[2]Amazon!$A$2:$F$17,5,FALSE),0)","v":0},{"$f":"$BL28+$BM27-IFERROR(VLOOKUP($A28,'[2]Myaccountaccess Pivot'!$A$4:$B$31,2,FALSE),0)","v":0},{"$f":"IFERROR(VLOOKUP($A28,'[2]export-1'!$A$2:$F$441,6,FALSE),AJ27)","v":1537.8000000000002},{"$f":"IFERROR(VLOOKUP($A28,'[7]download-1'!$A$2:$F$513,6,FALSE),AK27)","v":-325.00000000000159},{"$f":"IFERROR(VLOOKUP($A28,'[3]TexttoColumn Amazon Balance'!$A$14:$B$30,2,FALSE),IF(AL29>0,AL29-50,0))","v":0},2293.5399999999986,3458.5399999999986,23,4,0,0,null,null,null,null,null,{"$f":"IFERROR(VLOOKUP($A28,'[2]export-1'!$A$446:$G$451,7,FALSE),0)","v":0},{"$f":"IFERROR(VLOOKUP($A28,[3]Sheet4!$A$4:$B$56,2,FALSE),0)","v":0},{"$f":"IFERROR(VLOOKUP($A28,'[3]headphones purchased'!$A$2:$G$27,6,FALSE),0)","v":0},{"$f":"ROUND(IFERROR(VLOOKUP($A28,'[4]download-1'!$A$471:$F$474,5,FALSE)/-9.5,0),0)","v":0},{"$f":"ROUND(IFERROR(VLOOKUP($A28,'[4]download-1'!$A$467:$F$469,5,FALSE)/-49,0),0)","v":0},{"$f":"IFERROR(VLOOKUP($A28,[5]Sheet8!$A$4:$B$89,2,FALSE),0)","v":0},null,null,0,{"$f":"IFERROR(VLOOKUP($A28,[3]Paypal!$A$2:$AA$1843,25,FALSE),0)","v":280.92},{"$f":"IFERROR(VLOOKUP($A28,'[3]Paypal Money Sent Pivot'!$A$4:$B$97,2,FALSE),0)","v":800},{"$f":"$BH28+$BI27-IFERROR(VLOOKUP($A28,[2]Sheet2!$A$4:$B$82,2,FALSE),0)","v":799.82},{"$f":"IFERROR(VLOOKUP($A28,'[3]TexttoColumn Amazon Balance'!$A$14:$B$30,2,FALSE),0)","v":0},{"$f":"$BJ27+$BK27-IFERROR(VLOOKUP($A28,[2]Amazon!$A$2:$F$17,5,FALSE),0)","v":0},{"$f":"IFERROR(VLOOKUP($A28,'[4]Payment Pivot'!$A$4:$B$39,2,FALSE),0)","v":0},{"$f":"$BL28+$BM27-IFERROR(VLOOKUP($A28,'[2]Myaccountaccess Pivot'!$A$4:$B$31,2,FALSE),0)","v":0},null,{"$f":"IFERROR(VLOOKUP($A28,'[6]export-2'!$A$2:$F$15,6,FALSE),BO27)","v":0},-58.27,{"$f":"OFFSET(A28,0,'Cool Graph'!$H$1)","v":0},{"$f":"OFFSET(A28,0,'Cool Graph'!$I$1)","v":-58.27}]
["2011-07-28",0,0,100.48,0,3.75,104.23,0,0,0,0,0,0,0,0,0,0,0,0,0,0,0,0,0,0,0,0,0,0,{"$f":"IFERROR(VLOOKUP($A29,[1]Sheet1!$A$4:$B$219,2,FALSE),0)","v":0},0,-305.9699999999998,{"$f":"$BH29+$BI28-IFERROR(VLOOKUP($A29,[2]Sheet2!$A$4:$B$82,2,FALSE),0)","v":799.82},{"$f":"$BJ28+$BK28-IFERROR(VLOOKUP($A29,[2]Amazon!$A$2:$F$17,5,FALSE),0)","v":0},{"$f":"$BL29+$BM28-IFERROR(VLOOKUP($A29,'[2]Myaccountaccess Pivot'!$A$4:$B$31,2,FALSE),0)","v":0},{"$f":"IFERROR(VLOOKUP($A29,'[2]export-1'!$A$2:$F$441,6,FALSE),AJ28)","v":1199.9300000000003},{"$f":"IFERROR(VLOOKUP($A29,'[7]download-1'!$A$2:$F$513,6,FALSE),AK28)","v":-675.00000000000159},{"$f":"IFERROR(VLOOKUP($A29,'[3]TexttoColumn Amazon Balance'!$A$14:$B$30,2,FALSE),IF(AL30>0,AL30-50,0))","v":0},1449.5699999999986,3152.5699999999988,27,40,0,0,null,null,null,null,null,{"$f":"IFERROR(VLOOKUP($A29,'[2]export-1'!$A$446:$G$451,7,FALSE),0)","v":0},{"$f":"IFERROR(VLOOKUP($A29,[3]Sheet4!$A$4:$B$56,2,FALSE),0)","v":3},{"$f":"IFERROR(VLOOKUP($A29,'[3]headphones purchased'!$A$2:$G$27,6,FALSE),0)","v":36},{"$f":"ROUND(IFERROR(VLOOKUP($A29,'[4]download-1'!$A$471:$F$474,5,FALSE)/-9.5,0),0)","v":0},{"$f":"ROUND(IFERROR(VLOOKUP($A29,'[4]download-1'!$A$467:$F$469,5,FALSE)/-49,0),0)","v":0},{"$f":"IFERROR(VLOOKUP($A29,[5]Sheet8!$A$4:$B$89,2,FALSE),0)","v":0},null,null,1,{"$f":"IFERROR(VLOOKUP($A29,[3]Paypal!$A$2:$AA$1843,25,FALSE),0)-BH29","v":124.82},{"$f":"IFERROR(VLOOKUP($A29,'[3]Paypal Money Sent Pivot'!$A$4:$B$97,2,FALSE),0)","v":0},{"$f":"$BH29+$BI28-IFERROR(VLOOKUP($A29,[2]Sheet2!$A$4:$B$82,2,FALSE),0)","v":799.82},{"$f":"IFERROR(VLOOKUP($A29,'[3]TexttoColumn Amazon Balance'!$A$14:$B$30,2,FALSE),0)","v":0},{"$f":"$BJ28+$BK28-IFERROR(VLOOKUP($A29,[2]Amazon!$A$2:$F$17,5,FALSE),0)","v":0},{"$f":"IFERROR(VLOOKUP($A29,'[4]Payment Pivot'!$A$4:$B$39,2,FALSE),0)","v":0},{"$f":"$BL29+$BM28-IFERROR(VLOOKUP($A29,'[2]Myaccountaccess Pivot'!$A$4:$B$31,2,FALSE),0)","v":0},null,{"$f":"IFERROR(VLOOKUP($A29,'[6]export-2'!$A$2:$F$15,6,FALSE),BO28)","v":0},-104.23,{"$f":"OFFSET(A29,0,'Cool Graph'!$H$1)","v":0},{"$f":"OFFSET(A29,0,'Cool Graph'!$I$1)","v":-104.23}]
["2011-07-29",0,0,73.44,0,4.5599999999999996,78,0,0,0,0,0,0,0,0,0,0,0,0,0,0,0,0,3,3,0,0,3,0,{"$f":"IFERROR(VLOOKUP($A30,[1]Sheet1!$A$4:$B$219,2,FALSE),0)","v":495},495,293.21000000000004,{"$f":"$BH30+$BI29-IFERROR(VLOOKUP($A30,[2]Sheet2!$A$4:$B$82,2,FALSE),0)","v":-0.17999999999994998},{"$f":"$BJ29+$BK29-IFERROR(VLOOKUP($A30,[2]Amazon!$A$2:$F$17,5,FALSE),0)","v":0},{"$f":"$BL30+$BM29-IFERROR(VLOOKUP($A30,'[2]Myaccountaccess Pivot'!$A$4:$B$31,2,FALSE),0)","v":0},{"$f":"IFERROR(VLOOKUP($A30,'[2]export-1'!$A$2:$F$441,6,FALSE),AJ29)","v":1999.9300000000003},{"$f":"IFERROR(VLOOKUP($A30,'[7]download-1'!$A$2:$F$513,6,FALSE),AK29)","v":-675.00000000000159},{"$f":"IFERROR(VLOOKUP($A30,'[3]TexttoColumn Amazon Balance'!$A$14:$B$30,2,FALSE),IF(AL31>0,AL31-50,0))","v":0},1918.2799999999986,3445.7799999999988,24,37,0,0,null,null,null,null,null,{"$f":"IFERROR(VLOOKUP($A30,'[2]export-1'!$A$446:$G$451,7,FALSE),0)","v":0},{"$f":"IFERROR(VLOOKUP($A30,[3]Sheet4!$A$4:$B$56,2,FALSE),0)","v":0},{"$f":"IFERROR(VLOOKUP($A30,'[3]headphones purchased'!$A$2:$G$27,6,FALSE),0)","v":0},{"$f":"ROUND(IFERROR(VLOOKUP($A30,'[4]download-1'!$A$471:$F$474,5,FALSE)/-9.5,0),0)","v":0},{"$f":"ROUND(IFERROR(VLOOKUP($A30,'[4]download-1'!$A$467:$F$469,5,FALSE)/-49,0),0)","v":0},{"$f":"IFERROR(VLOOKUP($A30,[5]Sheet8!$A$4:$B$89,2,FALSE),0)","v":0},null,null,0,{"$f":"IFERROR(VLOOKUP($A30,[3]Paypal!$A$2:$AA$1843,25,FALSE),0)","v":593.53},{"$f":"IFERROR(VLOOKUP($A30,'[3]Paypal Money Sent Pivot'!$A$4:$B$97,2,FALSE),0)","v":0},{"$f":"$BH30+$BI29-IFERROR(VLOOKUP($A30,[2]Sheet2!$A$4:$B$82,2,FALSE),0)","v":-0.17999999999994998},{"$f":"IFERROR(VLOOKUP($A30,'[3]TexttoColumn Amazon Balance'!$A$14:$B$30,2,FALSE),0)","v":0},{"$f":"$BJ29+$BK29-IFERROR(VLOOKUP($A30,[2]Amazon!$A$2:$F$17,5,FALSE),0)","v":0},{"$f":"IFERROR(VLOOKUP($A30,'[4]Payment Pivot'!$A$4:$B$39,2,FALSE),0)","v":0},{"$f":"$BL30+$BM29-IFERROR(VLOOKUP($A30,'[2]Myaccountaccess Pivot'!$A$4:$B$31,2,FALSE),0)","v":0},null,{"$f":"IFERROR(VLOOKUP($A30,'[6]export-2'!$A$2:$F$15,6,FALSE),BO29)","v":0},131.60981075157167,{"$f":"OFFSET(A30,0,'Cool Graph'!$H$1)","v":0},{"$f":"OFFSET(A30,0,'Cool Graph'!$I$1)","v":131.60981075157167}]
["2011-07-30",0,0,54.06,0,3.86,57.92,0,0,0,1,0,0,0,0,0,0,0,0,2,0,0,0,0,0,0,0,2,339.24,{"$f":"IFERROR(VLOOKUP($A31,[1]Sheet1!$A$4:$B$219,2,FALSE),0)","v":0},339.24,105.07999999999993,{"$f":"$BH31+$BI30-IFERROR(VLOOKUP($A31,[2]Sheet2!$A$4:$B$82,2,FALSE),0)","v":-0.17999999999994998},{"$f":"$BJ30+$BK30-IFERROR(VLOOKUP($A31,[2]Amazon!$A$2:$F$17,5,FALSE),0)","v":0},{"$f":"$BL31+$BM30-IFERROR(VLOOKUP($A31,'[2]Myaccountaccess Pivot'!$A$4:$B$31,2,FALSE),0)","v":0},{"$f":"IFERROR(VLOOKUP($A31,'[2]export-1'!$A$2:$F$441,6,FALSE),AJ30)","v":1999.9300000000003},{"$f":"IFERROR(VLOOKUP($A31,'[7]download-1'!$A$2:$F$513,6,FALSE),AK30)","v":-675.00000000000159},{"$f":"IFERROR(VLOOKUP($A31,'[3]TexttoColumn Amazon Balance'!$A$14:$B$30,2,FALSE),IF(AL32>0,AL32-50,0))","v":0},2072.3599999999988,3550.8599999999988,23,37,0,0,null,null,null,null,null,{"$f":"IFERROR(VLOOKUP($A31,'[2]export-1'!$A$446:$G$451,7,FALSE),0)","v":0},{"$f":"IFERROR(VLOOKUP($A31,[3]Sheet4!$A$4:$B$56,2,FALSE),0)","v":0},{"$f":"IFERROR(VLOOKUP($A31,'[3]headphones purchased'!$A$2:$G$27,6,FALSE),0)","v":0},{"$f":"ROUND(IFERROR(VLOOKUP($A31,'[4]download-1'!$A$471:$F$474,5,FALSE)/-9.5,0),0)","v":0},{"$f":"ROUND(IFERROR(VLOOKUP($A31,'[4]download-1'!$A$467:$F$469,5,FALSE)/-49,0),0)","v":0},{"$f":"IFERROR(VLOOKUP($A31,[5]Sheet8!$A$4:$B$89,2,FALSE),0)","v":0},null,null,1,{"$f":"IFERROR(VLOOKUP($A31,[3]Paypal!$A$2:$AA$1843,25,FALSE),0)","v":747.61},{"$f":"IFERROR(VLOOKUP($A31,'[3]Paypal Money Sent Pivot'!$A$4:$B$97,2,FALSE),0)","v":0},{"$f":"$BH31+$BI30-IFERROR(VLOOKUP($A31,[2]Sheet2!$A$4:$B$82,2,FALSE),0)","v":-0.17999999999994998},{"$f":"IFERROR(VLOOKUP($A31,'[3]TexttoColumn Amazon Balance'!$A$14:$B$30,2,FALSE),0)","v":0},{"$f":"$BJ30+$BK30-IFERROR(VLOOKUP($A31,[2]Amazon!$A$2:$F$17,5,FALSE),0)","v":0},{"$f":"IFERROR(VLOOKUP($A31,'[4]Payment Pivot'!$A$4:$B$39,2,FALSE),0)","v":0},{"$f":"$BL31+$BM30-IFERROR(VLOOKUP($A31,'[2]Myaccountaccess Pivot'!$A$4:$B$31,2,FALSE),0)","v":0},null,{"$f":"IFERROR(VLOOKUP($A31,'[6]export-2'!$A$2:$F$15,6,FALSE),BO30)","v":0},85.732590301743798,{"$f":"OFFSET(A31,0,'Cool Graph'!$H$1)","v":0},{"$f":"OFFSET(A31,0,'Cool Graph'!$I$1)","v":85.732590301743798}]
["2011-07-31",0,0,50.42,0,0,50.42,0,0,0,0,0,0,0,0,0,0,0,0,0,0,0,0,4,4,0,0,4,0,{"$f":"IFERROR(VLOOKUP($A32,[1]Sheet1!$A$4:$B$219,2,FALSE),0)","v":660},660,365.18000000000029,{"$f":"$BH32+$BI31-IFERROR(VLOOKUP($A32,[2]Sheet2!$A$4:$B$82,2,FALSE),0)","v":-0.17999999999994998},{"$f":"$BJ31+$BK31-IFERROR(VLOOKUP($A32,[2]Amazon!$A$2:$F$17,5,FALSE),0)","v":0},{"$f":"$BL32+$BM31-IFERROR(VLOOKUP($A32,'[2]Myaccountaccess Pivot'!$A$4:$B$31,2,FALSE),0)","v":0},{"$f":"IFERROR(VLOOKUP($A32,'[2]export-1'!$A$2:$F$441,6,FALSE),AJ31)","v":1999.9300000000003},{"$f":"IFERROR(VLOOKUP($A32,'[7]download-1'!$A$2:$F$513,6,FALSE),AK31)","v":-675.00000000000159},{"$f":"IFERROR(VLOOKUP($A32,'[3]TexttoColumn Amazon Balance'!$A$14:$B$30,2,FALSE),IF(AL33>0,AL33-50,0))","v":-41.07000000000005},2671.5399999999991,3916.0399999999991,19,33,0,0,null,null,null,null,null,{"$f":"IFERROR(VLOOKUP($A32,'[2]export-1'!$A$446:$G$451,7,FALSE),0)","v":0},{"$f":"IFERROR(VLOOKUP($A32,[3]Sheet4!$A$4:$B$56,2,FALSE),0)","v":0},{"$f":"IFERROR(VLOOKUP($A32,'[3]headphones purchased'!$A$2:$G$27,6,FALSE),0)","v":0},{"$f":"ROUND(IFERROR(VLOOKUP($A32,'[4]download-1'!$A$471:$F$474,5,FALSE)/-9.5,0),0)","v":0},{"$f":"ROUND(IFERROR(VLOOKUP($A32,'[4]download-1'!$A$467:$F$469,5,FALSE)/-49,0),0)","v":0},{"$f":"IFERROR(VLOOKUP($A32,[5]Sheet8!$A$4:$B$89,2,FALSE),0)","v":0},null,null,0,{"$f":"IFERROR(VLOOKUP($A32,[3]Paypal!$A$2:$AA$1843,25,FALSE),0)","v":1387.86},{"$f":"IFERROR(VLOOKUP($A32,'[3]Paypal Money Sent Pivot'!$A$4:$B$97,2,FALSE),0)","v":0},{"$f":"$BH32+$BI31-IFERROR(VLOOKUP($A32,[2]Sheet2!$A$4:$B$82,2,FALSE),0)","v":-0.17999999999994998},{"$f":"IFERROR(VLOOKUP($A32,'[3]TexttoColumn Amazon Balance'!$A$14:$B$30,2,FALSE),0)","v":0},{"$f":"$BJ31+$BK31-IFERROR(VLOOKUP($A32,[2]Amazon!$A$2:$F$17,5,FALSE),0)","v":0},{"$f":"IFERROR(VLOOKUP($A32,'[4]Payment Pivot'!$A$4:$B$39,2,FALSE),0)","v":0},{"$f":"$BL32+$BM31-IFERROR(VLOOKUP($A32,'[2]Myaccountaccess Pivot'!$A$4:$B$31,2,FALSE),0)","v":0},null,{"$f":"IFERROR(VLOOKUP($A32,'[6]export-2'!$A$2:$F$15,6,FALSE),BO31)","v":0},229.05974766876221,{"$f":"OFFSET(A32,0,'Cool Graph'!$H$1)","v":0},{"$f":"OFFSET(A32,0,'Cool Graph'!$I$1)","v":229.05974766876221}]
["2011-08-01",0,0,99.45,0,0.14000000000000001,99.59,0,0,0,0,0,0,0,0,0,0,0,0,0,0,0,0,0,0,0,0,0,0,{"$f":"IFERROR(VLOOKUP($A33,[1]Sheet1!$A$4:$B$219,2,FALSE),0)","v":0},0,-127.92000000000053,{"$f":"$BH33+$BI32-IFERROR(VLOOKUP($A33,[2]Sheet2!$A$4:$B$82,2,FALSE),0)","v":-0.17999999999994998},{"$f":"$BJ32+$BK32-IFERROR(VLOOKUP($A33,[2]Amazon!$A$2:$F$17,5,FALSE),0)","v":0},{"$f":"$BL33+$BM32-IFERROR(VLOOKUP($A33,'[2]Myaccountaccess Pivot'!$A$4:$B$31,2,FALSE),0)","v":625},{"$f":"IFERROR(VLOOKUP($A33,'[2]export-1'!$A$2:$F$441,6,FALSE),AJ32)","v":1899.9500000000003},{"$f":"IFERROR(VLOOKUP($A33,'[7]download-1'!$A$2:$F$513,6,FALSE),AK32)","v":-70.290000000001598},{"$f":"IFERROR(VLOOKUP($A33,'[3]TexttoColumn Amazon Balance'!$A$14:$B$30,2,FALSE),IF(AL34>0,AL34-50,0))","v":8.92999999999995},2102.6199999999985,3788.1199999999985,28,33,0,0,null,null,null,null,null,{"$f":"IFERROR(VLOOKUP($A33,'[2]export-1'!$A$446:$G$451,7,FALSE),0)","v":0},{"$f":"IFERROR(VLOOKUP($A33,[3]Sheet4!$A$4:$B$56,2,FALSE),0)","v":10},{"$f":"IFERROR(VLOOKUP($A33,'[3]headphones purchased'!$A$2:$G$27,6,FALSE),0)","v":0},{"$f":"ROUND(IFERROR(VLOOKUP($A33,'[4]download-1'!$A$471:$F$474,5,FALSE)/-9.5,0),0)","v":0},{"$f":"ROUND(IFERROR(VLOOKUP($A33,'[4]download-1'!$A$467:$F$469,5,FALSE)/-49,0),0)","v":0},{"$f":"IFERROR(VLOOKUP($A33,[5]Sheet8!$A$4:$B$89,2,FALSE),0)","v":2},null,null,1,{"$f":"IFERROR(VLOOKUP($A33,[3]Paypal!$A$2:$AA$1843,25,FALSE),0)","v":889.21},{"$f":"IFERROR(VLOOKUP($A33,'[3]Paypal Money Sent Pivot'!$A$4:$B$97,2,FALSE),0)","v":0},{"$f":"$BH33+$BI32-IFERROR(VLOOKUP($A33,[2]Sheet2!$A$4:$B$82,2,FALSE),0)","v":-0.17999999999994998},{"$f":"IFERROR(VLOOKUP($A33,'[3]TexttoColumn Amazon Balance'!$A$14:$B$30,2,FALSE),0)","v":0},{"$f":"$BJ32+$BK32-IFERROR(VLOOKUP($A33,[2]Amazon!$A$2:$F$17,5,FALSE),0)","v":0},{"$f":"IFERROR(VLOOKUP($A33,'[4]Payment Pivot'!$A$4:$B$39,2,FALSE),0)","v":625},{"$f":"$BL33+$BM32-IFERROR(VLOOKUP($A33,'[2]Myaccountaccess Pivot'!$A$4:$B$31,2,FALSE),0)","v":625},null,{"$f":"IFERROR(VLOOKUP($A33,'[6]export-2'!$A$2:$F$15,6,FALSE),BO32)","v":0},-99.59,{"$f":"OFFSET(A33,0,'Cool Graph'!$H$1)","v":0},{"$f":"OFFSET(A33,0,'Cool Graph'!$I$1)","v":-99.59}]
["2011-08-02",0,0.55000000000000004,111.41,0,6.92,118.88,0,0,0,0,0,0,0,0,0,0,0,0,1,0,0,0,0,0,0,0,1,169.62,{"$f":"IFERROR(VLOOKUP($A34,[1]Sheet1!$A$4:$B$219,2,FALSE),0)","v":0},169.62,-437.23,{"$f":"$BH34+$BI33-IFERROR(VLOOKUP($A34,[2]Sheet2!$A$4:$B$82,2,FALSE),0)","v":-0.17999999999994998},{"$f":"$BJ33+$BK33-IFERROR(VLOOKUP($A34,[2]Amazon!$A$2:$F$17,5,FALSE),0)","v":0},{"$f":"$BL34+$BM33-IFERROR(VLOOKUP($A34,'[2]Myaccountaccess Pivot'!$A$4:$B$31,2,FALSE),0)","v":0},{"$f":"IFERROR(VLOOKUP($A34,'[2]export-1'!$A$2:$F$441,6,FALSE),AJ33)","v":1009.2000000000003},{"$f":"IFERROR(VLOOKUP($A34,'[7]download-1'!$A$2:$F$513,6,FALSE),AK33)","v":-70.290000000001598},{"$f":"IFERROR(VLOOKUP($A34,'[3]TexttoColumn Amazon Balance'!$A$14:$B$30,2,FALSE),IF(AL35>0,AL35-50,0))","v":58.92999999999995},1714.3899999999987,3350.8899999999985,27,33,0,0,null,null,null,null,null,{"$f":"IFERROR(VLOOKUP($A34,'[2]export-1'!$A$446:$G$451,7,FALSE),0)","v":0},{"$f":"IFERROR(VLOOKUP($A34,[3]Sheet4!$A$4:$B$56,2,FALSE),0)","v":0},{"$f":"IFERROR(VLOOKUP($A34,'[3]headphones purchased'!$A$2:$G$27,6,FALSE),0)","v":0},{"$f":"ROUND(IFERROR(VLOOKUP($A34,'[4]download-1'!$A$471:$F$474,5,FALSE)/-9.5,0),0)","v":0},{"$f":"ROUND(IFERROR(VLOOKUP($A34,'[4]download-1'!$A$467:$F$469,5,FALSE)/-49,0),0)","v":0},{"$f":"IFERROR(VLOOKUP($A34,[5]Sheet8!$A$4:$B$89,2,FALSE),0)","v":0},null,null,0,{"$f":"IFERROR(VLOOKUP($A34,[3]Paypal!$A$2:$AA$1843,25,FALSE),0)","v":716.73},{"$f":"IFERROR(VLOOKUP($A34,'[3]Paypal Money Sent Pivot'!$A$4:$B$97,2,FALSE),0)","v":0},{"$f":"$BH34+$BI33-IFERROR(VLOOKUP($A34,[2]Sheet2!$A$4:$B$82,2,FALSE),0)","v":-0.17999999999994998},{"$f":"IFERROR(VLOOKUP($A34,'[3]TexttoColumn Amazon Balance'!$A$14:$B$30,2,FALSE),0)","v":0},{"$f":"$BJ33+$BK33-IFERROR(VLOOKUP($A34,[2]Amazon!$A$2:$F$17,5,FALSE),0)","v":0},{"$f":"IFERROR(VLOOKUP($A34,'[4]Payment Pivot'!$A$4:$B$39,2,FALSE),0)","v":0},{"$f":"$BL34+$BM33-IFERROR(VLOOKUP($A34,'[2]Myaccountaccess Pivot'!$A$4:$B$31,2,FALSE),0)","v":0},null,{"$f":"IFERROR(VLOOKUP($A34,'[6]export-2'!$A$2:$F$15,6,FALSE),BO33)","v":0},-47.053704849128096,{"$f":"OFFSET(A34,0,'Cool Graph'!$H$1)","v":0},{"$f":"OFFSET(A34,0,'Cool Graph'!$I$1)","v":-47.053704849128096}]
["2011-08-03",0,4.17,83.23,0,6.05,93.45,0,0,0,1,0,0,0,0,0,0,0,0,0,0,0,0,6,6,0,0,6,0,{"$f":"IFERROR(VLOOKUP($A35,[1]Sheet1!$A$4:$B$219,2,FALSE),0)","v":990},990,207.22000000000025,{"$f":"$BH35+$BI34-IFERROR(VLOOKUP($A35,[2]Sheet2!$A$4:$B$82,2,FALSE),0)","v":-0.17999999999994998},{"$f":"$BJ34+$BK34-IFERROR(VLOOKUP($A35,[2]Amazon!$A$2:$F$17,5,FALSE),0)","v":0},{"$f":"$BL35+$BM34-IFERROR(VLOOKUP($A35,'[2]Myaccountaccess Pivot'!$A$4:$B$31,2,FALSE),0)","v":0},{"$f":"IFERROR(VLOOKUP($A35,'[2]export-1'!$A$2:$F$441,6,FALSE),AJ34)","v":1009.2000000000003},{"$f":"IFERROR(VLOOKUP($A35,'[7]download-1'!$A$2:$F$513,6,FALSE),AK34)","v":-70.290000000001598},{"$f":"IFERROR(VLOOKUP($A35,'[3]TexttoColumn Amazon Balance'!$A$14:$B$30,2,FALSE),IF(AL36>0,AL36-50,0))","v":108.92999999999995},1635.6099999999985,3558.1099999999988,34,27,0,0,null,null,null,null,null,{"$f":"IFERROR(VLOOKUP($A35,'[2]export-1'!$A$446:$G$451,7,FALSE),0)","v":0},{"$f":"IFERROR(VLOOKUP($A35,[3]Sheet4!$A$4:$B$56,2,FALSE),0)","v":12},{"$f":"IFERROR(VLOOKUP($A35,'[3]headphones purchased'!$A$2:$G$27,6,FALSE),0)","v":0},{"$f":"ROUND(IFERROR(VLOOKUP($A35,'[4]download-1'!$A$471:$F$474,5,FALSE)/-9.5,0),0)","v":0},{"$f":"ROUND(IFERROR(VLOOKUP($A35,'[4]download-1'!$A$467:$F$469,5,FALSE)/-49,0),0)","v":0},{"$f":"IFERROR(VLOOKUP($A35,[5]Sheet8!$A$4:$B$89,2,FALSE),0)","v":0},null,null,1,{"$f":"IFERROR(VLOOKUP($A35,[3]Paypal!$A$2:$AA$1843,25,FALSE),0)","v":587.95000000000005},{"$f":"IFERROR(VLOOKUP($A35,'[3]Paypal Money Sent Pivot'!$A$4:$B$97,2,FALSE),0)","v":0},{"$f":"$BH35+$BI34-IFERROR(VLOOKUP($A35,[2]Sheet2!$A$4:$B$82,2,FALSE),0)","v":-0.17999999999994998},{"$f":"IFERROR(VLOOKUP($A35,'[3]TexttoColumn Amazon Balance'!$A$14:$B$30,2,FALSE),0)","v":0},{"$f":"$BJ34+$BK34-IFERROR(VLOOKUP($A35,[2]Amazon!$A$2:$F$17,5,FALSE),0)","v":0},{"$f":"IFERROR(VLOOKUP($A35,'[4]Payment Pivot'!$A$4:$B$39,2,FALSE),0)","v":0},{"$f":"$BL35+$BM34-IFERROR(VLOOKUP($A35,'[2]Myaccountaccess Pivot'!$A$4:$B$31,2,FALSE),0)","v":0},null,{"$f":"IFERROR(VLOOKUP($A35,'[6]export-2'!$A$2:$F$15,6,FALSE),BO34)","v":0},325.76962150314336,{"$f":"OFFSET(A35,0,'Cool Graph'!$H$1)","v":0},{"$f":"OFFSET(A35,0,'Cool Graph'!$I$1)","v":325.76962150314336}]
["2011-08-04",0,7.41,58.4,0,6.63,72.44,0,0,0,1,0,0,0,0,0,0,0,0,0,0,0,0,1,1,0,0,1,0,{"$f":"IFERROR(VLOOKUP($A36,[1]Sheet1!$A$4:$B$219,2,FALSE),0)","v":165},165,-609.74000000000024,{"$f":"$BH36+$BI35-IFERROR(VLOOKUP($A36,[2]Sheet2!$A$4:$B$82,2,FALSE),0)","v":-0.17999999999994998},{"$f":"$BJ35+$BK35-IFERROR(VLOOKUP($A36,[2]Amazon!$A$2:$F$17,5,FALSE),0)","v":0},{"$f":"$BL36+$BM35-IFERROR(VLOOKUP($A36,'[2]Myaccountaccess Pivot'!$A$4:$B$31,2,FALSE),0)","v":0},{"$f":"IFERROR(VLOOKUP($A36,'[2]export-1'!$A$2:$F$441,6,FALSE),AJ35)","v":926.57000000000028},{"$f":"IFERROR(VLOOKUP($A36,'[7]download-1'!$A$2:$F$513,6,FALSE),AK35)","v":-571.75000000000159},{"$f":"IFERROR(VLOOKUP($A36,'[3]TexttoColumn Amazon Balance'!$A$14:$B$30,2,FALSE),IF(AL37>0,AL37-50,0))","v":158.92999999999995},1084.3699999999985,2948.3699999999985,33,26,0,0,null,null,null,null,null,{"$f":"IFERROR(VLOOKUP($A36,'[2]export-1'!$A$446:$G$451,7,FALSE),0)","v":0},{"$f":"IFERROR(VLOOKUP($A36,[3]Sheet4!$A$4:$B$56,2,FALSE),0)","v":0},{"$f":"IFERROR(VLOOKUP($A36,'[3]headphones purchased'!$A$2:$G$27,6,FALSE),0)","v":0},{"$f":"ROUND(IFERROR(VLOOKUP($A36,'[4]download-1'!$A$471:$F$474,5,FALSE)/-9.5,0),0)","v":0},{"$f":"ROUND(IFERROR(VLOOKUP($A36,'[4]download-1'!$A$467:$F$469,5,FALSE)/-49,0),0)","v":0},{"$f":"IFERROR(VLOOKUP($A36,[5]Sheet8!$A$4:$B$89,2,FALSE),0)","v":0},null,null,0,{"$f":"IFERROR(VLOOKUP($A36,[3]Paypal!$A$2:$AA$1843,25,FALSE),0)","v":570.79999999999995},{"$f":"IFERROR(VLOOKUP($A36,'[3]Paypal Money Sent Pivot'!$A$4:$B$97,2,FALSE),0)","v":0},{"$f":"$BH36+$BI35-IFERROR(VLOOKUP($A36,[2]Sheet2!$A$4:$B$82,2,FALSE),0)","v":-0.17999999999994998},{"$f":"IFERROR(VLOOKUP($A36,'[3]TexttoColumn Amazon Balance'!$A$14:$B$30,2,FALSE),0)","v":0},{"$f":"$BJ35+$BK35-IFERROR(VLOOKUP($A36,[2]Amazon!$A$2:$F$17,5,FALSE),0)","v":0},{"$f":"IFERROR(VLOOKUP($A36,'[4]Payment Pivot'!$A$4:$B$39,2,FALSE),0)","v":0},{"$f":"$BL36+$BM35-IFERROR(VLOOKUP($A36,'[2]Myaccountaccess Pivot'!$A$4:$B$31,2,FALSE),0)","v":0},null,{"$f":"IFERROR(VLOOKUP($A36,'[6]export-2'!$A$2:$F$15,6,FALSE),BO35)","v":0},-2.5700630828094404,{"$f":"OFFSET(A36,0,'Cool Graph'!$H$1)","v":0},{"$f":"OFFSET(A36,0,'Cool Graph'!$I$1)","v":-2.5700630828094404}]
["2011-08-05",0,6.3,45.02,0,5.69,57.01,0,0,0,2,0,0,0,0,0,0,0,0,1,0,0,0,0,0,0,0,1,165,{"$f":"IFERROR(VLOOKUP($A37,[1]Sheet1!$A$4:$B$219,2,FALSE),0)","v":0},165,209.91000000000031,{"$f":"$BH37+$BI36-IFERROR(VLOOKUP($A37,[2]Sheet2!$A$4:$B$82,2,FALSE),0)","v":-0.17999999999994998},{"$f":"$BJ36+$BK36-IFERROR(VLOOKUP($A37,[2]Amazon!$A$2:$F$17,5,FALSE),0)","v":0},{"$f":"$BL37+$BM36-IFERROR(VLOOKUP($A37,'[2]Myaccountaccess Pivot'!$A$4:$B$31,2,FALSE),0)","v":0},{"$f":"IFERROR(VLOOKUP($A37,'[2]export-1'!$A$2:$F$441,6,FALSE),AJ36)","v":926.57000000000028},{"$f":"IFERROR(VLOOKUP($A37,'[7]download-1'!$A$2:$F$513,6,FALSE),AK36)","v":-571.75000000000159},{"$f":"IFERROR(VLOOKUP($A37,'[3]TexttoColumn Amazon Balance'!$A$14:$B$30,2,FALSE),IF(AL38>0,AL38-50,0))","v":208.92999999999995},1294.2799999999988,3158.2799999999988,33,26,0,0,null,null,null,null,null,{"$f":"IFERROR(VLOOKUP($A37,'[2]export-1'!$A$446:$G$451,7,FALSE),0)","v":0},{"$f":"IFERROR(VLOOKUP($A37,[3]Sheet4!$A$4:$B$56,2,FALSE),0)","v":0},{"$f":"IFERROR(VLOOKUP($A37,'[3]headphones purchased'!$A$2:$G$27,6,FALSE),0)","v":0},{"$f":"ROUND(IFERROR(VLOOKUP($A37,'[4]download-1'!$A$471:$F$474,5,FALSE)/-9.5,0),0)","v":0},{"$f":"ROUND(IFERROR(VLOOKUP($A37,'[4]download-1'!$A$467:$F$469,5,FALSE)/-49,0),0)","v":0},{"$f":"IFERROR(VLOOKUP($A37,[5]Sheet8!$A$4:$B$89,2,FALSE),0)","v":0},null,null,1,{"$f":"IFERROR(VLOOKUP($A37,[3]Paypal!$A$2:$AA$1843,25,FALSE),0)","v":730.71},{"$f":"IFERROR(VLOOKUP($A37,'[3]Paypal Money Sent Pivot'!$A$4:$B$97,2,FALSE),0)","v":0},{"$f":"$BH37+$BI36-IFERROR(VLOOKUP($A37,[2]Sheet2!$A$4:$B$82,2,FALSE),0)","v":-0.17999999999994998},{"$f":"IFERROR(VLOOKUP($A37,'[3]TexttoColumn Amazon Balance'!$A$14:$B$30,2,FALSE),0)","v":0},{"$f":"$BJ36+$BK36-IFERROR(VLOOKUP($A37,[2]Amazon!$A$2:$F$17,5,FALSE),0)","v":0},{"$f":"IFERROR(VLOOKUP($A37,'[4]Payment Pivot'!$A$4:$B$39,2,FALSE),0)","v":0},{"$f":"$BL37+$BM36-IFERROR(VLOOKUP($A37,'[2]Myaccountaccess Pivot'!$A$4:$B$31,2,FALSE),0)","v":0},null,{"$f":"IFERROR(VLOOKUP($A37,'[6]export-2'!$A$2:$F$15,6,FALSE),BO36)","v":0},12.859936917190559,{"$f":"OFFSET(A37,0,'Cool Graph'!$H$1)","v":0},{"$f":"OFFSET(A37,0,'Cool Graph'!$I$1)","v":12.859936917190559}]
["2011-08-06",0,3.37,44.28,0,1.99,49.64,0,0,0,0,0,0,0,0,0,0,0,0,0,0,0,0,2,2,0,0,2,0,{"$f":"IFERROR(VLOOKUP($A38,[1]Sheet1!$A$4:$B$219,2,FALSE),0)","v":330},330,237.92999999999984,{"$f":"$BH38+$BI37-IFERROR(VLOOKUP($A38,[2]Sheet2!$A$4:$B$82,2,FALSE),0)","v":-0.17999999999994998},{"$f":"$BJ37+$BK37-IFERROR(VLOOKUP($A38,[2]Amazon!$A$2:$F$17,5,FALSE),0)","v":0},{"$f":"$BL38+$BM37-IFERROR(VLOOKUP($A38,'[2]Myaccountaccess Pivot'!$A$4:$B$31,2,FALSE),0)","v":0},{"$f":"IFERROR(VLOOKUP($A38,'[2]export-1'!$A$2:$F$441,6,FALSE),AJ37)","v":926.57000000000028},{"$f":"IFERROR(VLOOKUP($A38,'[7]download-1'!$A$2:$F$513,6,FALSE),AK37)","v":-571.75000000000159},{"$f":"IFERROR(VLOOKUP($A38,'[3]TexttoColumn Amazon Balance'!$A$14:$B$30,2,FALSE),IF(AL39>0,AL39-50,0))","v":258.92999999999995},1649.2099999999987,3396.2099999999987,31,24,0,0,null,null,null,null,null,{"$f":"IFERROR(VLOOKUP($A38,'[2]export-1'!$A$446:$G$451,7,FALSE),0)","v":0},{"$f":"IFERROR(VLOOKUP($A38,[3]Sheet4!$A$4:$B$56,2,FALSE),0)","v":0},{"$f":"IFERROR(VLOOKUP($A38,'[3]headphones purchased'!$A$2:$G$27,6,FALSE),0)","v":0},{"$f":"ROUND(IFERROR(VLOOKUP($A38,'[4]download-1'!$A$471:$F$474,5,FALSE)/-9.5,0),0)","v":0},{"$f":"ROUND(IFERROR(VLOOKUP($A38,'[4]download-1'!$A$467:$F$469,5,FALSE)/-49,0),0)","v":0},{"$f":"IFERROR(VLOOKUP($A38,[5]Sheet8!$A$4:$B$89,2,FALSE),0)","v":0},null,null,0,{"$f":"IFERROR(VLOOKUP($A38,[3]Paypal!$A$2:$AA$1843,25,FALSE),0)","v":1035.6400000000001},{"$f":"IFERROR(VLOOKUP($A38,'[3]Paypal Money Sent Pivot'!$A$4:$B$97,2,FALSE),0)","v":0},{"$f":"$BH38+$BI37-IFERROR(VLOOKUP($A38,[2]Sheet2!$A$4:$B$82,2,FALSE),0)","v":-0.17999999999994998},{"$f":"IFERROR(VLOOKUP($A38,'[3]TexttoColumn Amazon Balance'!$A$14:$B$30,2,FALSE),0)","v":0},{"$f":"$BJ37+$BK37-IFERROR(VLOOKUP($A38,[2]Amazon!$A$2:$F$17,5,FALSE),0)","v":0},{"$f":"IFERROR(VLOOKUP($A38,'[4]Payment Pivot'!$A$4:$B$39,2,FALSE),0)","v":0},{"$f":"$BL38+$BM37-IFERROR(VLOOKUP($A38,'[2]Myaccountaccess Pivot'!$A$4:$B$31,2,FALSE),0)","v":0},null,{"$f":"IFERROR(VLOOKUP($A38,'[6]export-2'!$A$2:$F$15,6,FALSE),BO37)","v":0},90.099873834381114,{"$f":"OFFSET(A38,0,'Cool Graph'!$H$1)","v":0},{"$f":"OFFSET(A38,0,'Cool Graph'!$I$1)","v":90.099873834381114}]
["2011-08-07",0,8.42,75.05,0,0,83.47,0,0,0,1,0,0,0,0,0,0,0,0,0,0,0,0,1,1,0,0,1,0,{"$f":"IFERROR(VLOOKUP($A39,[1]Sheet1!$A$4:$B$219,2,FALSE),0)","v":165},165,520.23,{"$f":"$BH39+$BI38-IFERROR(VLOOKUP($A39,[2]Sheet2!$A$4:$B$82,2,FALSE),0)","v":-0.17999999999994998},{"$f":"$BJ38+$BK38-IFERROR(VLOOKUP($A39,[2]Amazon!$A$2:$F$17,5,FALSE),0)","v":0},{"$f":"$BL39+$BM38-IFERROR(VLOOKUP($A39,'[2]Myaccountaccess Pivot'!$A$4:$B$31,2,FALSE),0)","v":0},{"$f":"IFERROR(VLOOKUP($A39,'[2]export-1'!$A$2:$F$441,6,FALSE),AJ38)","v":926.57000000000028},{"$f":"IFERROR(VLOOKUP($A39,'[7]download-1'!$A$2:$F$513,6,FALSE),AK38)","v":-571.75000000000159},{"$f":"IFERROR(VLOOKUP($A39,'[3]TexttoColumn Amazon Balance'!$A$14:$B$30,2,FALSE),IF(AL40>0,AL40-50,0))","v":308.92999999999995},2178.9399999999987,3916.4399999999987,31,23,0,0,null,null,null,null,null,{"$f":"IFERROR(VLOOKUP($A39,'[2]export-1'!$A$446:$G$451,7,FALSE),0)","v":0},{"$f":"IFERROR(VLOOKUP($A39,[3]Sheet4!$A$4:$B$56,2,FALSE),0)","v":0},{"$f":"IFERROR(VLOOKUP($A39,'[3]headphones purchased'!$A$2:$G$27,6,FALSE),0)","v":0},{"$f":"ROUND(IFERROR(VLOOKUP($A39,'[4]download-1'!$A$471:$F$474,5,FALSE)/-9.5,0),0)","v":0},{"$f":"ROUND(IFERROR(VLOOKUP($A39,'[4]download-1'!$A$467:$F$469,5,FALSE)/-49,0),0)","v":0},{"$f":"IFERROR(VLOOKUP($A39,[5]Sheet8!$A$4:$B$89,2,FALSE),0)","v":0},null,null,1,{"$f":"IFERROR(VLOOKUP($A39,[3]Paypal!$A$2:$AA$1843,25,FALSE),0)","v":1515.37},{"$f":"IFERROR(VLOOKUP($A39,'[3]Paypal Money Sent Pivot'!$A$4:$B$97,2,FALSE),0)","v":0},{"$f":"$BH39+$BI38-IFERROR(VLOOKUP($A39,[2]Sheet2!$A$4:$B$82,2,FALSE),0)","v":-0.17999999999994998},{"$f":"IFERROR(VLOOKUP($A39,'[3]TexttoColumn Amazon Balance'!$A$14:$B$30,2,FALSE),0)","v":0},{"$f":"$BJ38+$BK38-IFERROR(VLOOKUP($A39,[2]Amazon!$A$2:$F$17,5,FALSE),0)","v":0},{"$f":"IFERROR(VLOOKUP($A39,'[4]Payment Pivot'!$A$4:$B$39,2,FALSE),0)","v":0},{"$f":"$BL39+$BM38-IFERROR(VLOOKUP($A39,'[2]Myaccountaccess Pivot'!$A$4:$B$31,2,FALSE),0)","v":0},null,{"$f":"IFERROR(VLOOKUP($A39,'[6]export-2'!$A$2:$F$15,6,FALSE),BO38)","v":0},-13.600063082809442,{"$f":"OFFSET(A39,0,'Cool Graph'!$H$1)","v":0},{"$f":"OFFSET(A39,0,'Cool Graph'!$I$1)","v":-13.600063082809442}]
["2011-08-08",0,3.85,73.22,0,0,77.069999999999993,0,0,0,3,0,0,0,0,0,0,0,0,0,0,0,0,3,3,0,0,3,0,{"$f":"IFERROR(VLOOKUP($A40,[1]Sheet1!$A$4:$B$219,2,FALSE),0)","v":495},495,358.22999999999956,{"$f":"$BH40+$BI39-IFERROR(VLOOKUP($A40,[2]Sheet2!$A$4:$B$82,2,FALSE),0)","v":-0.17999999999994998},{"$f":"$BJ39+$BK39-IFERROR(VLOOKUP($A40,[2]Amazon!$A$2:$F$17,5,FALSE),0)","v":0},{"$f":"$BL40+$BM39-IFERROR(VLOOKUP($A40,'[2]Myaccountaccess Pivot'!$A$4:$B$31,2,FALSE),0)","v":0},{"$f":"IFERROR(VLOOKUP($A40,'[2]export-1'!$A$2:$F$441,6,FALSE),AJ39)","v":793.52000000000021},{"$f":"IFERROR(VLOOKUP($A40,'[7]download-1'!$A$2:$F$513,6,FALSE),AK39)","v":-571.75000000000159},{"$f":"IFERROR(VLOOKUP($A40,'[3]TexttoColumn Amazon Balance'!$A$14:$B$30,2,FALSE),IF(AL41>0,AL41-50,0))","v":358.92999999999995},2418.6699999999987,4274.6699999999983,34,20,0,0,null,null,null,null,null,{"$f":"IFERROR(VLOOKUP($A40,'[2]export-1'!$A$446:$G$451,7,FALSE),0)","v":0},{"$f":"IFERROR(VLOOKUP($A40,[3]Sheet4!$A$4:$B$56,2,FALSE),0)","v":6},{"$f":"IFERROR(VLOOKUP($A40,'[3]headphones purchased'!$A$2:$G$27,6,FALSE),0)","v":0},{"$f":"ROUND(IFERROR(VLOOKUP($A40,'[4]download-1'!$A$471:$F$474,5,FALSE)/-9.5,0),0)","v":0},{"$f":"ROUND(IFERROR(VLOOKUP($A40,'[4]download-1'!$A$467:$F$469,5,FALSE)/-49,0),0)","v":0},{"$f":"IFERROR(VLOOKUP($A40,[5]Sheet8!$A$4:$B$89,2,FALSE),0)","v":0},null,null,0,{"$f":"IFERROR(VLOOKUP($A40,[3]Paypal!$A$2:$AA$1843,25,FALSE),0)","v":1838.15},{"$f":"IFERROR(VLOOKUP($A40,'[3]Paypal Money Sent Pivot'!$A$4:$B$97,2,FALSE),0)","v":0},{"$f":"$BH40+$BI39-IFERROR(VLOOKUP($A40,[2]Sheet2!$A$4:$B$82,2,FALSE),0)","v":-0.17999999999994998},{"$f":"IFERROR(VLOOKUP($A40,'[3]TexttoColumn Amazon Balance'!$A$14:$B$30,2,FALSE),0)","v":0},{"$f":"$BJ39+$BK39-IFERROR(VLOOKUP($A40,[2]Amazon!$A$2:$F$17,5,FALSE),0)","v":0},{"$f":"IFERROR(VLOOKUP($A40,'[4]Payment Pivot'!$A$4:$B$39,2,FALSE),0)","v":0},{"$f":"$BL40+$BM39-IFERROR(VLOOKUP($A40,'[2]Myaccountaccess Pivot'!$A$4:$B$31,2,FALSE),0)","v":0},null,{"$f":"IFERROR(VLOOKUP($A40,'[6]export-2'!$A$2:$F$15,6,FALSE),BO39)","v":0},132.53981075157168,{"$f":"OFFSET(A40,0,'Cool Graph'!$H$1)","v":0},{"$f":"OFFSET(A40,0,'Cool Graph'!$I$1)","v":132.53981075157168}]
["2011-08-09",0,9.61,75.989999999999995,0,4.7,90.3,0,0,0,1,0,0,0,0,0,0,0,0,0,0,0,0,6,6,0,0,6,0,{"$f":"IFERROR(VLOOKUP($A41,[1]Sheet1!$A$4:$B$219,2,FALSE),0)","v":990},990,376.6200000000008,{"$f":"$BH41+$BI40-IFERROR(VLOOKUP($A41,[2]Sheet2!$A$4:$B$82,2,FALSE),0)","v":-0.17999999999994998},{"$f":"$BJ40+$BK40-IFERROR(VLOOKUP($A41,[2]Amazon!$A$2:$F$17,5,FALSE),0)","v":0},{"$f":"$BL41+$BM40-IFERROR(VLOOKUP($A41,'[2]Myaccountaccess Pivot'!$A$4:$B$31,2,FALSE),0)","v":0},{"$f":"IFERROR(VLOOKUP($A41,'[2]export-1'!$A$2:$F$441,6,FALSE),AJ40)","v":793.52000000000021},{"$f":"IFERROR(VLOOKUP($A41,'[7]download-1'!$A$2:$F$513,6,FALSE),AK40)","v":-571.75000000000159},{"$f":"IFERROR(VLOOKUP($A41,'[3]TexttoColumn Amazon Balance'!$A$14:$B$30,2,FALSE),IF(AL42>0,AL42-50,0))","v":408.92999999999995},3097.2899999999986,4651.2899999999991,29,14,0,0,null,null,null,null,null,{"$f":"IFERROR(VLOOKUP($A41,'[2]export-1'!$A$446:$G$451,7,FALSE),0)","v":0},{"$f":"IFERROR(VLOOKUP($A41,[3]Sheet4!$A$4:$B$56,2,FALSE),0)","v":0},{"$f":"IFERROR(VLOOKUP($A41,'[3]headphones purchased'!$A$2:$G$27,6,FALSE),0)","v":0},{"$f":"ROUND(IFERROR(VLOOKUP($A41,'[4]download-1'!$A$471:$F$474,5,FALSE)/-9.5,0),0)","v":0},{"$f":"ROUND(IFERROR(VLOOKUP($A41,'[4]download-1'!$A$467:$F$469,5,FALSE)/-49,0),0)","v":0},{"$f":"IFERROR(VLOOKUP($A41,[5]Sheet8!$A$4:$B$89,2,FALSE),0)","v":0},null,null,1,{"$f":"IFERROR(VLOOKUP($A41,[3]Paypal!$A$2:$AA$1843,25,FALSE),0)","v":2466.77},{"$f":"IFERROR(VLOOKUP($A41,'[3]Paypal Money Sent Pivot'!$A$4:$B$97,2,FALSE),0)","v":0},{"$f":"$BH41+$BI40-IFERROR(VLOOKUP($A41,[2]Sheet2!$A$4:$B$82,2,FALSE),0)","v":-0.17999999999994998},{"$f":"IFERROR(VLOOKUP($A41,'[3]TexttoColumn Amazon Balance'!$A$14:$B$30,2,FALSE),0)","v":0},{"$f":"$BJ40+$BK40-IFERROR(VLOOKUP($A41,[2]Amazon!$A$2:$F$17,5,FALSE),0)","v":0},{"$f":"IFERROR(VLOOKUP($A41,'[4]Payment Pivot'!$A$4:$B$39,2,FALSE),0)","v":0},{"$f":"$BL41+$BM40-IFERROR(VLOOKUP($A41,'[2]Myaccountaccess Pivot'!$A$4:$B$31,2,FALSE),0)","v":0},null,{"$f":"IFERROR(VLOOKUP($A41,'[6]export-2'!$A$2:$F$15,6,FALSE),BO40)","v":0},328.91962150314333,{"$f":"OFFSET(A41,0,'Cool Graph'!$H$1)","v":0},{"$f":"OFFSET(A41,0,'Cool Graph'!$I$1)","v":328.91962150314333}]
["2011-08-10",0,6.79,82.63,0,3.79,93.210000000000008,0,0,0,2,0,0,0,0,0,0,0,0,0,0,0,0,1,1,0,0,1,0,{"$f":"IFERROR(VLOOKUP($A42,[1]Sheet1!$A$4:$B$219,2,FALSE),0)","v":165},165,222.46999999999935,{"$f":"$BH42+$BI41-IFERROR(VLOOKUP($A42,[2]Sheet2!$A$4:$B$82,2,FALSE),0)","v":-0.17999999999994998},{"$f":"$BJ41+$BK41-IFERROR(VLOOKUP($A42,[2]Amazon!$A$2:$F$17,5,FALSE),0)","v":0},{"$f":"$BL42+$BM41-IFERROR(VLOOKUP($A42,'[2]Myaccountaccess Pivot'!$A$4:$B$31,2,FALSE),0)","v":0},{"$f":"IFERROR(VLOOKUP($A42,'[2]export-1'!$A$2:$F$441,6,FALSE),AJ41)","v":573.52000000000021},{"$f":"IFERROR(VLOOKUP($A42,'[7]download-1'!$A$2:$F$513,6,FALSE),AK41)","v":-571.75000000000159},{"$f":"IFERROR(VLOOKUP($A42,'[3]TexttoColumn Amazon Balance'!$A$14:$B$30,2,FALSE),IF(AL43>0,AL43-50,0))","v":458.92999999999995},2643.2599999999984,4873.7599999999984,43,13,0,0,null,null,null,null,null,{"$f":"IFERROR(VLOOKUP($A42,'[2]export-1'!$A$446:$G$451,7,FALSE),0)","v":0},{"$f":"IFERROR(VLOOKUP($A42,[3]Sheet4!$A$4:$B$56,2,FALSE),0)","v":15},{"$f":"IFERROR(VLOOKUP($A42,'[3]headphones purchased'!$A$2:$G$27,6,FALSE),0)","v":0},{"$f":"ROUND(IFERROR(VLOOKUP($A42,'[4]download-1'!$A$471:$F$474,5,FALSE)/-9.5,0),0)","v":0},{"$f":"ROUND(IFERROR(VLOOKUP($A42,'[4]download-1'!$A$467:$F$469,5,FALSE)/-49,0),0)","v":0},{"$f":"IFERROR(VLOOKUP($A42,[5]Sheet8!$A$4:$B$89,2,FALSE),0)","v":0},null,null,0,{"$f":"IFERROR(VLOOKUP($A42,[3]Paypal!$A$2:$AA$1843,25,FALSE),0)","v":2182.7399999999998},{"$f":"IFERROR(VLOOKUP($A42,'[3]Paypal Money Sent Pivot'!$A$4:$B$97,2,FALSE),0)","v":0},{"$f":"$BH42+$BI41-IFERROR(VLOOKUP($A42,[2]Sheet2!$A$4:$B$82,2,FALSE),0)","v":-0.17999999999994998},{"$f":"IFERROR(VLOOKUP($A42,'[3]TexttoColumn Amazon Balance'!$A$14:$B$30,2,FALSE),0)","v":0},{"$f":"$BJ41+$BK41-IFERROR(VLOOKUP($A42,[2]Amazon!$A$2:$F$17,5,FALSE),0)","v":0},{"$f":"IFERROR(VLOOKUP($A42,'[4]Payment Pivot'!$A$4:$B$39,2,FALSE),0)","v":0},{"$f":"$BL42+$BM41-IFERROR(VLOOKUP($A42,'[2]Myaccountaccess Pivot'!$A$4:$B$31,2,FALSE),0)","v":0},null,{"$f":"IFERROR(VLOOKUP($A42,'[6]export-2'!$A$2:$F$15,6,FALSE),BO41)","v":0},-23.340063082809451,{"$f":"OFFSET(A42,0,'Cool Graph'!$H$1)","v":0},{"$f":"OFFSET(A42,0,'Cool Graph'!$I$1)","v":-23.340063082809451}]
["2011-08-11",0,7.38,62.85,0,1.62,71.850000000000009,0,0,0,0,0,0,1,0,0,0,0,0,0,0,0,0,1,1,0,0,1,0,{"$f":"IFERROR(VLOOKUP($A43,[1]Sheet1!$A$4:$B$219,2,FALSE),0)","v":165},165,-315.94999999999982,{"$f":"$BH43+$BI42-IFERROR(VLOOKUP($A43,[2]Sheet2!$A$4:$B$82,2,FALSE),0)","v":-0.17999999999994998},{"$f":"$BJ42+$BK42-IFERROR(VLOOKUP($A43,[2]Amazon!$A$2:$F$17,5,FALSE),0)","v":0},{"$f":"$BL43+$BM42-IFERROR(VLOOKUP($A43,'[2]Myaccountaccess Pivot'!$A$4:$B$31,2,FALSE),0)","v":0},{"$f":"IFERROR(VLOOKUP($A43,'[2]export-1'!$A$2:$F$441,6,FALSE),AJ42)","v":573.52000000000021},{"$f":"IFERROR(VLOOKUP($A43,'[7]download-1'!$A$2:$F$513,6,FALSE),AK42)","v":-1071.7500000000016},{"$f":"IFERROR(VLOOKUP($A43,'[3]TexttoColumn Amazon Balance'!$A$14:$B$30,2,FALSE),IF(AL44>0,AL44-50,0))","v":508.92999999999995},2336.8099999999986,4557.8099999999986,43,12,0,0,null,null,null,null,null,{"$f":"IFERROR(VLOOKUP($A43,'[2]export-1'!$A$446:$G$451,7,FALSE),0)","v":0},{"$f":"IFERROR(VLOOKUP($A43,[3]Sheet4!$A$4:$B$56,2,FALSE),0)","v":0},{"$f":"IFERROR(VLOOKUP($A43,'[3]headphones purchased'!$A$2:$G$27,6,FALSE),0)","v":0},{"$f":"ROUND(IFERROR(VLOOKUP($A43,'[4]download-1'!$A$471:$F$474,5,FALSE)/-9.5,0),0)","v":0},{"$f":"ROUND(IFERROR(VLOOKUP($A43,'[4]download-1'!$A$467:$F$469,5,FALSE)/-49,0),0)","v":0},{"$f":"IFERROR(VLOOKUP($A43,[5]Sheet8!$A$4:$B$89,2,FALSE),0)","v":0},null,null,1,{"$f":"IFERROR(VLOOKUP($A43,[3]Paypal!$A$2:$AA$1843,25,FALSE),0)","v":2326.29},{"$f":"IFERROR(VLOOKUP($A43,'[3]Paypal Money Sent Pivot'!$A$4:$B$97,2,FALSE),0)","v":0},{"$f":"$BH43+$BI42-IFERROR(VLOOKUP($A43,[2]Sheet2!$A$4:$B$82,2,FALSE),0)","v":-0.17999999999994998},{"$f":"IFERROR(VLOOKUP($A43,'[3]TexttoColumn Amazon Balance'!$A$14:$B$30,2,FALSE),0)","v":0},{"$f":"$BJ42+$BK42-IFERROR(VLOOKUP($A43,[2]Amazon!$A$2:$F$17,5,FALSE),0)","v":0},{"$f":"IFERROR(VLOOKUP($A43,'[4]Payment Pivot'!$A$4:$B$39,2,FALSE),0)","v":0},{"$f":"$BL43+$BM42-IFERROR(VLOOKUP($A43,'[2]Myaccountaccess Pivot'!$A$4:$B$31,2,FALSE),0)","v":0},null,{"$f":"IFERROR(VLOOKUP($A43,'[6]export-2'!$A$2:$F$15,6,FALSE),BO42)","v":0},-1.9800630828094512,{"$f":"OFFSET(A43,0,'Cool Graph'!$H$1)","v":0},{"$f":"OFFSET(A43,0,'Cool Graph'!$I$1)","v":-1.9800630828094512}]
["2011-08-12",0,5.59,73.69,12.42,4.25,95.95,0,0,0,2,0,0,0,12.42,0,0,0,0,0,0,0,0,3,3,0,0,3,0,{"$f":"IFERROR(VLOOKUP($A44,[1]Sheet1!$A$4:$B$219,2,FALSE),0)","v":495},495,785.55000000000018,{"$f":"$BH44+$BI43-IFERROR(VLOOKUP($A44,[2]Sheet2!$A$4:$B$82,2,FALSE),0)","v":999.82},{"$f":"$BJ43+$BK43-IFERROR(VLOOKUP($A44,[2]Amazon!$A$2:$F$17,5,FALSE),0)","v":0},{"$f":"$BL44+$BM43-IFERROR(VLOOKUP($A44,'[2]Myaccountaccess Pivot'!$A$4:$B$31,2,FALSE),0)","v":0},{"$f":"IFERROR(VLOOKUP($A44,'[2]export-1'!$A$2:$F$441,6,FALSE),AJ43)","v":494.49000000000024},{"$f":"IFERROR(VLOOKUP($A44,'[7]download-1'!$A$2:$F$513,6,FALSE),AK43)","v":-1071.7500000000016},{"$f":"IFERROR(VLOOKUP($A44,'[3]TexttoColumn Amazon Balance'!$A$14:$B$30,2,FALSE),IF(AL45>0,AL45-50,0))","v":558.92999999999995},2765.8599999999988,5343.3599999999988,40,65,0,0,null,null,null,null,null,{"$f":"IFERROR(VLOOKUP($A44,'[2]export-1'!$A$446:$G$451,7,FALSE),0)","v":0},{"$f":"IFERROR(VLOOKUP($A44,[3]Sheet4!$A$4:$B$56,2,FALSE),0)","v":0},{"$f":"IFERROR(VLOOKUP($A44,'[3]headphones purchased'!$A$2:$G$27,6,FALSE),0)","v":56},{"$f":"ROUND(IFERROR(VLOOKUP($A44,'[4]download-1'!$A$471:$F$474,5,FALSE)/-9.5,0),0)","v":0},{"$f":"ROUND(IFERROR(VLOOKUP($A44,'[4]download-1'!$A$467:$F$469,5,FALSE)/-49,0),0)","v":0},{"$f":"IFERROR(VLOOKUP($A44,[5]Sheet8!$A$4:$B$89,2,FALSE),0)","v":0},null,null,0,{"$f":"IFERROR(VLOOKUP($A44,[3]Paypal!$A$2:$AA$1843,25,FALSE),0)","v":1784.37},{"$f":"IFERROR(VLOOKUP($A44,'[3]Paypal Money Sent Pivot'!$A$4:$B$97,2,FALSE),0)","v":1000},{"$f":"$BH44+$BI43-IFERROR(VLOOKUP($A44,[2]Sheet2!$A$4:$B$82,2,FALSE),0)","v":999.82},{"$f":"IFERROR(VLOOKUP($A44,'[3]TexttoColumn Amazon Balance'!$A$14:$B$30,2,FALSE),0)","v":0},{"$f":"$BJ43+$BK43-IFERROR(VLOOKUP($A44,[2]Amazon!$A$2:$F$17,5,FALSE),0)","v":0},{"$f":"IFERROR(VLOOKUP($A44,'[4]Payment Pivot'!$A$4:$B$39,2,FALSE),0)","v":0},{"$f":"$BL44+$BM43-IFERROR(VLOOKUP($A44,'[2]Myaccountaccess Pivot'!$A$4:$B$31,2,FALSE),0)","v":0},null,{"$f":"IFERROR(VLOOKUP($A44,'[6]export-2'!$A$2:$F$15,6,FALSE),BO43)","v":0},113.65981075157167,{"$f":"OFFSET(A44,0,'Cool Graph'!$H$1)","v":0},{"$f":"OFFSET(A44,0,'Cool Graph'!$I$1)","v":113.65981075157167}]
["2011-08-13",0,6.5,39.65,18.87,5.63,70.649999999999991,0,0,0,1,0,0,0,18.87,0,0,0,0,1,0,0,0,1,1,0,0,2,165,{"$f":"IFERROR(VLOOKUP($A45,[1]Sheet1!$A$4:$B$219,2,FALSE),0)","v":165},330,151.40999999999985,{"$f":"$BH45+$BI44-IFERROR(VLOOKUP($A45,[2]Sheet2!$A$4:$B$82,2,FALSE),0)","v":999.82},{"$f":"$BJ44+$BK44-IFERROR(VLOOKUP($A45,[2]Amazon!$A$2:$F$17,5,FALSE),0)","v":0},{"$f":"$BL45+$BM44-IFERROR(VLOOKUP($A45,'[2]Myaccountaccess Pivot'!$A$4:$B$31,2,FALSE),0)","v":0},{"$f":"IFERROR(VLOOKUP($A45,'[2]export-1'!$A$2:$F$441,6,FALSE),AJ44)","v":494.49000000000024},{"$f":"IFERROR(VLOOKUP($A45,'[7]download-1'!$A$2:$F$513,6,FALSE),AK44)","v":-1071.7500000000016},{"$f":"IFERROR(VLOOKUP($A45,'[3]TexttoColumn Amazon Balance'!$A$14:$B$30,2,FALSE),IF(AL46>0,AL46-50,0))","v":608.92999999999995},2975.7699999999986,5494.7699999999986,39,64,0,0,null,null,null,null,null,{"$f":"IFERROR(VLOOKUP($A45,'[2]export-1'!$A$446:$G$451,7,FALSE),0)","v":0},{"$f":"IFERROR(VLOOKUP($A45,[3]Sheet4!$A$4:$B$56,2,FALSE),0)","v":0},{"$f":"IFERROR(VLOOKUP($A45,'[3]headphones purchased'!$A$2:$G$27,6,FALSE),0)","v":0},{"$f":"ROUND(IFERROR(VLOOKUP($A45,'[4]download-1'!$A$471:$F$474,5,FALSE)/-9.5,0),0)","v":0},{"$f":"ROUND(IFERROR(VLOOKUP($A45,'[4]download-1'!$A$467:$F$469,5,FALSE)/-49,0),0)","v":0},{"$f":"IFERROR(VLOOKUP($A45,[5]Sheet8!$A$4:$B$89,2,FALSE),0)","v":0},null,null,1,{"$f":"IFERROR(VLOOKUP($A45,[3]Paypal!$A$2:$AA$1843,25,FALSE),0)","v":1944.28},{"$f":"IFERROR(VLOOKUP($A45,'[3]Paypal Money Sent Pivot'!$A$4:$B$97,2,FALSE),0)","v":0},{"$f":"$BH45+$BI44-IFERROR(VLOOKUP($A45,[2]Sheet2!$A$4:$B$82,2,FALSE),0)","v":999.82},{"$f":"IFERROR(VLOOKUP($A45,'[3]TexttoColumn Amazon Balance'!$A$14:$B$30,2,FALSE),0)","v":608.92999999999995},{"$f":"$BJ44+$BK44-IFERROR(VLOOKUP($A45,[2]Amazon!$A$2:$F$17,5,FALSE),0)","v":0},{"$f":"IFERROR(VLOOKUP($A45,'[4]Payment Pivot'!$A$4:$B$39,2,FALSE),0)","v":0},{"$f":"$BL45+$BM44-IFERROR(VLOOKUP($A45,'[2]Myaccountaccess Pivot'!$A$4:$B$31,2,FALSE),0)","v":0},null,{"$f":"IFERROR(VLOOKUP($A45,'[6]export-2'!$A$2:$F$15,6,FALSE),BO44)","v":0},69.089873834381123,{"$f":"OFFSET(A45,0,'Cool Graph'!$H$1)","v":0},{"$f":"OFFSET(A45,0,'Cool Graph'!$I$1)","v":69.089873834381123}]
["2011-08-14",0,10.48,64.149999999999991,4.54,0,79.17,0,0,0,1,0,0,0,4.54,0,0,0,0,1,0,0,0,1,1,0,0,2,165,{"$f":"IFERROR(VLOOKUP($A46,[1]Sheet1!$A$4:$B$219,2,FALSE),0)","v":165},330,1177.4399999999996,{"$f":"$BH46+$BI45-IFERROR(VLOOKUP($A46,[2]Sheet2!$A$4:$B$82,2,FALSE),0)","v":999.82},{"$f":"$BJ45+$BK45-IFERROR(VLOOKUP($A46,[2]Amazon!$A$2:$F$17,5,FALSE),0)","v":608.92999999999995},{"$f":"$BL46+$BM45-IFERROR(VLOOKUP($A46,'[2]Myaccountaccess Pivot'!$A$4:$B$31,2,FALSE),0)","v":0},{"$f":"IFERROR(VLOOKUP($A46,'[2]export-1'!$A$2:$F$441,6,FALSE),AJ45)","v":494.49000000000024},{"$f":"IFERROR(VLOOKUP($A46,'[7]download-1'!$A$2:$F$513,6,FALSE),AK45)","v":-1071.7500000000016},{"$f":"IFERROR(VLOOKUP($A46,'[3]TexttoColumn Amazon Balance'!$A$14:$B$30,2,FALSE),IF(AL47>0,AL47-50,0))","v":965.11999999999989},4260.7099999999982,6672.2099999999982,37,63,0,0,null,null,null,null,null,{"$f":"IFERROR(VLOOKUP($A46,'[2]export-1'!$A$446:$G$451,7,FALSE),0)","v":0},{"$f":"IFERROR(VLOOKUP($A46,[3]Sheet4!$A$4:$B$56,2,FALSE),0)","v":0},{"$f":"IFERROR(VLOOKUP($A46,'[3]headphones purchased'!$A$2:$G$27,6,FALSE),0)","v":0},{"$f":"ROUND(IFERROR(VLOOKUP($A46,'[4]download-1'!$A$471:$F$474,5,FALSE)/-9.5,0),0)","v":0},{"$f":"ROUND(IFERROR(VLOOKUP($A46,'[4]download-1'!$A$467:$F$469,5,FALSE)/-49,0),0)","v":0},{"$f":"IFERROR(VLOOKUP($A46,[5]Sheet8!$A$4:$B$89,2,FALSE),0)","v":0},null,null,0,{"$f":"IFERROR(VLOOKUP($A46,[3]Paypal!$A$2:$AA$1843,25,FALSE),0)","v":2264.1},{"$f":"IFERROR(VLOOKUP($A46,'[3]Paypal Money Sent Pivot'!$A$4:$B$97,2,FALSE),0)","v":0},{"$f":"$BH46+$BI45-IFERROR(VLOOKUP($A46,[2]Sheet2!$A$4:$B$82,2,FALSE),0)","v":999.82},{"$f":"IFERROR(VLOOKUP($A46,'[3]TexttoColumn Amazon Balance'!$A$14:$B$30,2,FALSE),0)","v":0},{"$f":"$BJ45+$BK45-IFERROR(VLOOKUP($A46,[2]Amazon!$A$2:$F$17,5,FALSE),0)","v":608.92999999999995},{"$f":"IFERROR(VLOOKUP($A46,'[4]Payment Pivot'!$A$4:$B$39,2,FALSE),0)","v":0},{"$f":"$BL46+$BM45-IFERROR(VLOOKUP($A46,'[2]Myaccountaccess Pivot'!$A$4:$B$31,2,FALSE),0)","v":0},null,{"$f":"IFERROR(VLOOKUP($A46,'[6]export-2'!$A$2:$F$15,6,FALSE),BO45)","v":0},60.569873834381113,{"$f":"OFFSET(A46,0,'Cool Graph'!$H$1)","v":0},{"$f":"OFFSET(A46,0,'Cool Graph'!$I$1)","v":60.569873834381113}]
["2011-08-15",0,8.4700000000000006,66.88,3.87,0,79.22,0,0,0,1,0,0,0,3.87,0,0,0,0,1,0,0,0,1,1,0,0,2,165,{"$f":"IFERROR(VLOOKUP($A47,[1]Sheet1!$A$4:$B$219,2,FALSE),0)","v":165},330,-182.35999999999967,{"$f":"$BH47+$BI46-IFERROR(VLOOKUP($A47,[2]Sheet2!$A$4:$B$82,2,FALSE),0)","v":-0.17999999999994998},{"$f":"$BJ46+$BK46-IFERROR(VLOOKUP($A47,[2]Amazon!$A$2:$F$17,5,FALSE),0)","v":608.92999999999995},{"$f":"$BL47+$BM46-IFERROR(VLOOKUP($A47,'[2]Myaccountaccess Pivot'!$A$4:$B$31,2,FALSE),0)","v":0},{"$f":"IFERROR(VLOOKUP($A47,'[2]export-1'!$A$2:$F$441,6,FALSE),AJ46)","v":1173.7000000000003},{"$f":"IFERROR(VLOOKUP($A47,'[7]download-1'!$A$2:$F$513,6,FALSE),AK46)","v":-1083.7000000000016},{"$f":"IFERROR(VLOOKUP($A47,'[3]TexttoColumn Amazon Balance'!$A$14:$B$30,2,FALSE),IF(AL48>0,AL48-50,0))","v":1015.1199999999999},3548.8499999999985,6489.8499999999985,48,62,0,0,null,null,null,null,null,{"$f":"IFERROR(VLOOKUP($A47,'[2]export-1'!$A$446:$G$451,7,FALSE),0)","v":0},{"$f":"IFERROR(VLOOKUP($A47,[3]Sheet4!$A$4:$B$56,2,FALSE),0)","v":12},{"$f":"IFERROR(VLOOKUP($A47,'[3]headphones purchased'!$A$2:$G$27,6,FALSE),0)","v":0},{"$f":"ROUND(IFERROR(VLOOKUP($A47,'[4]download-1'!$A$471:$F$474,5,FALSE)/-9.5,0),0)","v":0},{"$f":"ROUND(IFERROR(VLOOKUP($A47,'[4]download-1'!$A$467:$F$469,5,FALSE)/-49,0),0)","v":0},{"$f":"IFERROR(VLOOKUP($A47,[5]Sheet8!$A$4:$B$89,2,FALSE),0)","v":0},null,null,1,{"$f":"IFERROR(VLOOKUP($A47,[3]Paypal!$A$2:$AA$1843,25,FALSE),0)","v":1834.98},{"$f":"IFERROR(VLOOKUP($A47,'[3]Paypal Money Sent Pivot'!$A$4:$B$97,2,FALSE),0)","v":0},{"$f":"$BH47+$BI46-IFERROR(VLOOKUP($A47,[2]Sheet2!$A$4:$B$82,2,FALSE),0)","v":-0.17999999999994998},{"$f":"IFERROR(VLOOKUP($A47,'[3]TexttoColumn Amazon Balance'!$A$14:$B$30,2,FALSE),0)","v":0},{"$f":"$BJ46+$BK46-IFERROR(VLOOKUP($A47,[2]Amazon!$A$2:$F$17,5,FALSE),0)","v":608.92999999999995},{"$f":"IFERROR(VLOOKUP($A47,'[4]Payment Pivot'!$A$4:$B$39,2,FALSE),0)","v":0},{"$f":"$BL47+$BM46-IFERROR(VLOOKUP($A47,'[2]Myaccountaccess Pivot'!$A$4:$B$31,2,FALSE),0)","v":0},null,{"$f":"IFERROR(VLOOKUP($A47,'[6]export-2'!$A$2:$F$15,6,FALSE),BO46)","v":0},60.519873834381116,{"$f":"OFFSET(A47,0,'Cool Graph'!$H$1)","v":0},{"$f":"OFFSET(A47,0,'Cool Graph'!$I$1)","v":60.519873834381116}]
["2011-08-16",0,4.5599999999999996,76.72999999999999,4.3600000000000003,4.71,90.359999999999985,0,0,0,0,0,0,0,4.3600000000000003,0,0,0,0,0,0,0,0,1,1,0,0,1,0,{"$f":"IFERROR(VLOOKUP($A48,[1]Sheet1!$A$4:$B$219,2,FALSE),0)","v":165},165,250.52999999999975,{"$f":"$BH48+$BI47-IFERROR(VLOOKUP($A48,[2]Sheet2!$A$4:$B$82,2,FALSE),0)","v":-0.17999999999994998},{"$f":"$BJ47+$BK47-IFERROR(VLOOKUP($A48,[2]Amazon!$A$2:$F$17,5,FALSE),0)","v":0},{"$f":"$BL48+$BM47-IFERROR(VLOOKUP($A48,'[2]Myaccountaccess Pivot'!$A$4:$B$31,2,FALSE),0)","v":0},{"$f":"IFERROR(VLOOKUP($A48,'[2]export-1'!$A$2:$F$441,6,FALSE),AJ47)","v":1782.63},{"$f":"IFERROR(VLOOKUP($A48,'[7]download-1'!$A$2:$F$513,6,FALSE),AK47)","v":-1083.7000000000016},{"$f":"IFERROR(VLOOKUP($A48,'[3]TexttoColumn Amazon Balance'!$A$14:$B$30,2,FALSE),IF(AL49>0,AL49-50,0))","v":1065.1199999999999},3612.8799999999983,6740.3799999999983,52,61,0,0,null,null,null,null,null,{"$f":"IFERROR(VLOOKUP($A48,'[2]export-1'!$A$446:$G$451,7,FALSE),0)","v":0},{"$f":"IFERROR(VLOOKUP($A48,[3]Sheet4!$A$4:$B$56,2,FALSE),0)","v":6},{"$f":"IFERROR(VLOOKUP($A48,'[3]headphones purchased'!$A$2:$G$27,6,FALSE),0)","v":0},{"$f":"ROUND(IFERROR(VLOOKUP($A48,'[4]download-1'!$A$471:$F$474,5,FALSE)/-9.5,0),0)","v":0},{"$f":"ROUND(IFERROR(VLOOKUP($A48,'[4]download-1'!$A$467:$F$469,5,FALSE)/-49,0),0)","v":0},{"$f":"IFERROR(VLOOKUP($A48,[5]Sheet8!$A$4:$B$89,2,FALSE),0)","v":1},null,null,0,{"$f":"IFERROR(VLOOKUP($A48,[3]Paypal!$A$2:$AA$1843,25,FALSE),0)","v":1849.01},{"$f":"IFERROR(VLOOKUP($A48,'[3]Paypal Money Sent Pivot'!$A$4:$B$97,2,FALSE),0)","v":0},{"$f":"$BH48+$BI47-IFERROR(VLOOKUP($A48,[2]Sheet2!$A$4:$B$82,2,FALSE),0)","v":-0.17999999999994998},{"$f":"IFERROR(VLOOKUP($A48,'[3]TexttoColumn Amazon Balance'!$A$14:$B$30,2,FALSE),0)","v":0},{"$f":"$BJ47+$BK47-IFERROR(VLOOKUP($A48,[2]Amazon!$A$2:$F$17,5,FALSE),0)","v":0},{"$f":"IFERROR(VLOOKUP($A48,'[4]Payment Pivot'!$A$4:$B$39,2,FALSE),0)","v":0},{"$f":"$BL48+$BM47-IFERROR(VLOOKUP($A48,'[2]Myaccountaccess Pivot'!$A$4:$B$31,2,FALSE),0)","v":0},null,{"$f":"IFERROR(VLOOKUP($A48,'[6]export-2'!$A$2:$F$15,6,FALSE),BO47)","v":0},-20.490063082809428,{"$f":"OFFSET(A48,0,'Cool Graph'!$H$1)","v":0},{"$f":"OFFSET(A48,0,'Cool Graph'!$I$1)","v":-20.490063082809428}]
["2011-08-17",0,12.62,67.03,4.08,2.34,86.070000000000007,0,0,0,0,0,0,0,4.08,0,0,0,0,0,0,0,0,0,0,0,0,0,0,{"$f":"IFERROR(VLOOKUP($A49,[1]Sheet1!$A$4:$B$219,2,FALSE),0)","v":0},0,-1617.5500000000002,{"$f":"$BH49+$BI48-IFERROR(VLOOKUP($A49,[2]Sheet2!$A$4:$B$82,2,FALSE),0)","v":-0.17999999999994998},{"$f":"$BJ48+$BK48-IFERROR(VLOOKUP($A49,[2]Amazon!$A$2:$F$17,5,FALSE),0)","v":0},{"$f":"$BL49+$BM48-IFERROR(VLOOKUP($A49,'[2]Myaccountaccess Pivot'!$A$4:$B$31,2,FALSE),0)","v":0},{"$f":"IFERROR(VLOOKUP($A49,'[2]export-1'!$A$2:$F$441,6,FALSE),AJ48)","v":1682.63},{"$f":"IFERROR(VLOOKUP($A49,'[7]download-1'!$A$2:$F$513,6,FALSE),AK48)","v":-1133.8600000000017},{"$f":"IFERROR(VLOOKUP($A49,'[3]TexttoColumn Amazon Balance'!$A$14:$B$30,2,FALSE),IF(AL50>0,AL50-50,0))","v":1115.1199999999999},1995.3299999999981,5122.8299999999981,52,61,0,0,null,null,null,null,null,{"$f":"IFERROR(VLOOKUP($A49,'[2]export-1'!$A$446:$G$451,7,FALSE),0)","v":0},{"$f":"IFERROR(VLOOKUP($A49,[3]Sheet4!$A$4:$B$56,2,FALSE),0)","v":0},{"$f":"IFERROR(VLOOKUP($A49,'[3]headphones purchased'!$A$2:$G$27,6,FALSE),0)","v":0},{"$f":"ROUND(IFERROR(VLOOKUP($A49,'[4]download-1'!$A$471:$F$474,5,FALSE)/-9.5,0),0)","v":0},{"$f":"ROUND(IFERROR(VLOOKUP($A49,'[4]download-1'!$A$467:$F$469,5,FALSE)/-49,0),0)","v":0},{"$f":"IFERROR(VLOOKUP($A49,[5]Sheet8!$A$4:$B$89,2,FALSE),0)","v":1},null,null,1,{"$f":"IFERROR(VLOOKUP($A49,[3]Paypal!$A$2:$AA$1843,25,FALSE),0)","v":331.62},{"$f":"IFERROR(VLOOKUP($A49,'[3]Paypal Money Sent Pivot'!$A$4:$B$97,2,FALSE),0)","v":0},{"$f":"$BH49+$BI48-IFERROR(VLOOKUP($A49,[2]Sheet2!$A$4:$B$82,2,FALSE),0)","v":-0.17999999999994998},{"$f":"IFERROR(VLOOKUP($A49,'[3]TexttoColumn Amazon Balance'!$A$14:$B$30,2,FALSE),0)","v":0},{"$f":"$BJ48+$BK48-IFERROR(VLOOKUP($A49,[2]Amazon!$A$2:$F$17,5,FALSE),0)","v":0},{"$f":"IFERROR(VLOOKUP($A49,'[4]Payment Pivot'!$A$4:$B$39,2,FALSE),0)","v":0},{"$f":"$BL49+$BM48-IFERROR(VLOOKUP($A49,'[2]Myaccountaccess Pivot'!$A$4:$B$31,2,FALSE),0)","v":0},null,{"$f":"IFERROR(VLOOKUP($A49,'[6]export-2'!$A$2:$F$15,6,FALSE),BO48)","v":0},-86.070000000000007,{"$f":"OFFSET(A49,0,'Cool Graph'!$H$1)","v":0},{"$f":"OFFSET(A49,0,'Cool Graph'!$I$1)","v":-86.070000000000007}]
["2011-08-18",0,9.11,77.89,3.34,2.85,93.19,0,0,0,2,0,0,0,3.34,0,0,0,0,4,0,0,0,0,0,0,0,4,660,{"$f":"IFERROR(VLOOKUP($A50,[1]Sheet1!$A$4:$B$219,2,FALSE),0)","v":0},660,778.51000000000022,{"$f":"$BH50+$BI49-IFERROR(VLOOKUP($A50,[2]Sheet2!$A$4:$B$82,2,FALSE),0)","v":1489.8200000000002},{"$f":"$BJ49+$BK49-IFERROR(VLOOKUP($A50,[2]Amazon!$A$2:$F$17,5,FALSE),0)","v":0},{"$f":"$BL50+$BM49-IFERROR(VLOOKUP($A50,'[2]Myaccountaccess Pivot'!$A$4:$B$31,2,FALSE),0)","v":0},{"$f":"IFERROR(VLOOKUP($A50,'[2]export-1'!$A$2:$F$441,6,FALSE),AJ49)","v":1622.63},{"$f":"IFERROR(VLOOKUP($A50,'[7]download-1'!$A$2:$F$513,6,FALSE),AK49)","v":-1633.8600000000017},{"$f":"IFERROR(VLOOKUP($A50,'[3]TexttoColumn Amazon Balance'!$A$14:$B$30,2,FALSE),IF(AL51>0,AL51-50,0))","v":1165.1199999999999},2969.8399999999983,5901.3399999999983,48,61,0,0,null,null,null,null,null,{"$f":"IFERROR(VLOOKUP($A50,'[2]export-1'!$A$446:$G$451,7,FALSE),0)","v":0},{"$f":"IFERROR(VLOOKUP($A50,[3]Sheet4!$A$4:$B$56,2,FALSE),0)","v":0},{"$f":"IFERROR(VLOOKUP($A50,'[3]headphones purchased'!$A$2:$G$27,6,FALSE),0)","v":0},{"$f":"ROUND(IFERROR(VLOOKUP($A50,'[4]download-1'!$A$471:$F$474,5,FALSE)/-9.5,0),0)","v":0},{"$f":"ROUND(IFERROR(VLOOKUP($A50,'[4]download-1'!$A$467:$F$469,5,FALSE)/-49,0),0)","v":0},{"$f":"IFERROR(VLOOKUP($A50,[5]Sheet8!$A$4:$B$89,2,FALSE),0)","v":0},null,null,0,{"$f":"IFERROR(VLOOKUP($A50,[3]Paypal!$A$2:$AA$1843,25,FALSE),0)","v":326.13},{"$f":"IFERROR(VLOOKUP($A50,'[3]Paypal Money Sent Pivot'!$A$4:$B$97,2,FALSE),0)","v":1490},{"$f":"$BH50+$BI49-IFERROR(VLOOKUP($A50,[2]Sheet2!$A$4:$B$82,2,FALSE),0)","v":1489.8200000000002},{"$f":"IFERROR(VLOOKUP($A50,'[3]TexttoColumn Amazon Balance'!$A$14:$B$30,2,FALSE),0)","v":0},{"$f":"$BJ49+$BK49-IFERROR(VLOOKUP($A50,[2]Amazon!$A$2:$F$17,5,FALSE),0)","v":0},{"$f":"IFERROR(VLOOKUP($A50,'[4]Payment Pivot'!$A$4:$B$39,2,FALSE),0)","v":0},{"$f":"$BL50+$BM49-IFERROR(VLOOKUP($A50,'[2]Myaccountaccess Pivot'!$A$4:$B$31,2,FALSE),0)","v":0},null,{"$f":"IFERROR(VLOOKUP($A50,'[6]export-2'!$A$2:$F$15,6,FALSE),BO49)","v":0},186.28974766876223,{"$f":"OFFSET(A50,0,'Cool Graph'!$H$1)","v":0},{"$f":"OFFSET(A50,0,'Cool Graph'!$I$1)","v":186.28974766876223}]
["2011-08-19",0,9.1199999999999992,43.87,2.68,2.85,58.519999999999996,0,1,0,1,0,0,0,2.68,0,0,0,0,2,0,0,0,6,6,0,0,8,330,{"$f":"IFERROR(VLOOKUP($A51,[1]Sheet1!$A$4:$B$219,2,FALSE),0)","v":990},1320,437.30000000000018,{"$f":"$BH51+$BI50-IFERROR(VLOOKUP($A51,[2]Sheet2!$A$4:$B$82,2,FALSE),0)","v":1489.8200000000002},{"$f":"$BJ50+$BK50-IFERROR(VLOOKUP($A51,[2]Amazon!$A$2:$F$17,5,FALSE),0)","v":0},{"$f":"$BL51+$BM50-IFERROR(VLOOKUP($A51,'[2]Myaccountaccess Pivot'!$A$4:$B$31,2,FALSE),0)","v":0},{"$f":"IFERROR(VLOOKUP($A51,'[2]export-1'!$A$2:$F$441,6,FALSE),AJ50)","v":1622.63},{"$f":"IFERROR(VLOOKUP($A51,'[7]download-1'!$A$2:$F$513,6,FALSE),AK50)","v":-1633.8600000000017},{"$f":"IFERROR(VLOOKUP($A51,'[3]TexttoColumn Amazon Balance'!$A$14:$B$30,2,FALSE),IF(AL52>0,AL52-50,0))","v":1215.1199999999999},3807.1399999999985,6338.6399999999985,41,55,0,0,null,null,null,null,null,{"$f":"IFERROR(VLOOKUP($A51,'[2]export-1'!$A$446:$G$451,7,FALSE),0)","v":0},{"$f":"IFERROR(VLOOKUP($A51,[3]Sheet4!$A$4:$B$56,2,FALSE),0)","v":0},{"$f":"IFERROR(VLOOKUP($A51,'[3]headphones purchased'!$A$2:$G$27,6,FALSE),0)","v":0},{"$f":"ROUND(IFERROR(VLOOKUP($A51,'[4]download-1'!$A$471:$F$474,5,FALSE)/-9.5,0),0)","v":0},{"$f":"ROUND(IFERROR(VLOOKUP($A51,'[4]download-1'!$A$467:$F$469,5,FALSE)/-49,0),0)","v":0},{"$f":"IFERROR(VLOOKUP($A51,[5]Sheet8!$A$4:$B$89,2,FALSE),0)","v":0},null,null,1,{"$f":"IFERROR(VLOOKUP($A51,[3]Paypal!$A$2:$AA$1843,25,FALSE),0)","v":1113.43},{"$f":"IFERROR(VLOOKUP($A51,'[3]Paypal Money Sent Pivot'!$A$4:$B$97,2,FALSE),0)","v":0},{"$f":"$BH51+$BI50-IFERROR(VLOOKUP($A51,[2]Sheet2!$A$4:$B$82,2,FALSE),0)","v":1489.8200000000002},{"$f":"IFERROR(VLOOKUP($A51,'[3]TexttoColumn Amazon Balance'!$A$14:$B$30,2,FALSE),0)","v":0},{"$f":"$BJ50+$BK50-IFERROR(VLOOKUP($A51,[2]Amazon!$A$2:$F$17,5,FALSE),0)","v":0},{"$f":"IFERROR(VLOOKUP($A51,'[4]Payment Pivot'!$A$4:$B$39,2,FALSE),0)","v":0},{"$f":"$BL51+$BM50-IFERROR(VLOOKUP($A51,'[2]Myaccountaccess Pivot'!$A$4:$B$31,2,FALSE),0)","v":0},null,{"$f":"IFERROR(VLOOKUP($A51,'[6]export-2'!$A$2:$F$15,6,FALSE),BO50)","v":0},500.43949533752448,{"$f":"OFFSET(A51,0,'Cool Graph'!$H$1)","v":0},{"$f":"OFFSET(A51,0,'Cool Graph'!$I$1)","v":500.43949533752448}]
["2011-08-20",0,4.38,59.42,3,2.4300000000000002,69.230000000000018,0,0,0,2,0,0,0,3,0,0,0,0,0,0,0,0,2,2,0,0,2,0,{"$f":"IFERROR(VLOOKUP($A52,[1]Sheet1!$A$4:$B$219,2,FALSE),0)","v":330},330,252.51999999999953,{"$f":"$BH52+$BI51-IFERROR(VLOOKUP($A52,[2]Sheet2!$A$4:$B$82,2,FALSE),0)","v":1489.8200000000002},{"$f":"$BJ51+$BK51-IFERROR(VLOOKUP($A52,[2]Amazon!$A$2:$F$17,5,FALSE),0)","v":0},{"$f":"$BL52+$BM51-IFERROR(VLOOKUP($A52,'[2]Myaccountaccess Pivot'!$A$4:$B$31,2,FALSE),0)","v":0},{"$f":"IFERROR(VLOOKUP($A52,'[2]export-1'!$A$2:$F$441,6,FALSE),AJ51)","v":1622.63},{"$f":"IFERROR(VLOOKUP($A52,'[7]download-1'!$A$2:$F$513,6,FALSE),AK51)","v":-1633.8600000000017},{"$f":"IFERROR(VLOOKUP($A52,'[3]TexttoColumn Amazon Balance'!$A$14:$B$30,2,FALSE),IF(AL53>0,AL53-50,0))","v":1265.1199999999999},4176.659999999998,6591.159999999998,39,53,0,0,null,null,null,null,null,{"$f":"IFERROR(VLOOKUP($A52,'[2]export-1'!$A$446:$G$451,7,FALSE),0)","v":0},{"$f":"IFERROR(VLOOKUP($A52,[3]Sheet4!$A$4:$B$56,2,FALSE),0)","v":0},{"$f":"IFERROR(VLOOKUP($A52,'[3]headphones purchased'!$A$2:$G$27,6,FALSE),0)","v":0},{"$f":"ROUND(IFERROR(VLOOKUP($A52,'[4]download-1'!$A$471:$F$474,5,FALSE)/-9.5,0),0)","v":0},{"$f":"ROUND(IFERROR(VLOOKUP($A52,'[4]download-1'!$A$467:$F$469,5,FALSE)/-49,0),0)","v":0},{"$f":"IFERROR(VLOOKUP($A52,[5]Sheet8!$A$4:$B$89,2,FALSE),0)","v":0},null,null,0,{"$f":"IFERROR(VLOOKUP($A52,[3]Paypal!$A$2:$AA$1843,25,FALSE),0)","v":1432.95},{"$f":"IFERROR(VLOOKUP($A52,'[3]Paypal Money Sent Pivot'!$A$4:$B$97,2,FALSE),0)","v":0},{"$f":"$BH52+$BI51-IFERROR(VLOOKUP($A52,[2]Sheet2!$A$4:$B$82,2,FALSE),0)","v":1489.8200000000002},{"$f":"IFERROR(VLOOKUP($A52,'[3]TexttoColumn Amazon Balance'!$A$14:$B$30,2,FALSE),0)","v":0},{"$f":"$BJ51+$BK51-IFERROR(VLOOKUP($A52,[2]Amazon!$A$2:$F$17,5,FALSE),0)","v":0},{"$f":"IFERROR(VLOOKUP($A52,'[4]Payment Pivot'!$A$4:$B$39,2,FALSE),0)","v":0},{"$f":"$BL52+$BM51-IFERROR(VLOOKUP($A52,'[2]Myaccountaccess Pivot'!$A$4:$B$31,2,FALSE),0)","v":0},null,{"$f":"IFERROR(VLOOKUP($A52,'[6]export-2'!$A$2:$F$15,6,FALSE),BO51)","v":0},70.509873834381096,{"$f":"OFFSET(A52,0,'Cool Graph'!$H$1)","v":0},{"$f":"OFFSET(A52,0,'Cool Graph'!$I$1)","v":70.509873834381096}]
["2011-08-21",0,15.39,93,1.51,0,109.9,0,0,0,3,0,0,0,1.51,0,0,0,0,0,0,0,0,3,3,0,0,3,0,{"$f":"IFERROR(VLOOKUP($A53,[1]Sheet1!$A$4:$B$219,2,FALSE),0)","v":495},495,402.28999999999996,{"$f":"$BH53+$BI52-IFERROR(VLOOKUP($A53,[2]Sheet2!$A$4:$B$82,2,FALSE),0)","v":2589.8200000000002},{"$f":"$BJ52+$BK52-IFERROR(VLOOKUP($A53,[2]Amazon!$A$2:$F$17,5,FALSE),0)","v":0},{"$f":"$BL53+$BM52-IFERROR(VLOOKUP($A53,'[2]Myaccountaccess Pivot'!$A$4:$B$31,2,FALSE),0)","v":0},{"$f":"IFERROR(VLOOKUP($A53,'[2]export-1'!$A$2:$F$441,6,FALSE),AJ52)","v":1622.63},{"$f":"IFERROR(VLOOKUP($A53,'[7]download-1'!$A$2:$F$513,6,FALSE),AK52)","v":-1633.8600000000017},{"$f":"IFERROR(VLOOKUP($A53,'[3]TexttoColumn Amazon Balance'!$A$14:$B$30,2,FALSE),IF(AL54>0,AL54-50,0))","v":1315.12},4411.449999999998,6993.449999999998,43,50,0,0,null,null,null,null,null,{"$f":"IFERROR(VLOOKUP($A53,'[2]export-1'!$A$446:$G$451,7,FALSE),0)","v":0},{"$f":"IFERROR(VLOOKUP($A53,[3]Sheet4!$A$4:$B$56,2,FALSE),0)","v":6},{"$f":"IFERROR(VLOOKUP($A53,'[3]headphones purchased'!$A$2:$G$27,6,FALSE),0)","v":0},{"$f":"ROUND(IFERROR(VLOOKUP($A53,'[4]download-1'!$A$471:$F$474,5,FALSE)/-9.5,0),0)","v":0},{"$f":"ROUND(IFERROR(VLOOKUP($A53,'[4]download-1'!$A$467:$F$469,5,FALSE)/-49,0),0)","v":0},{"$f":"IFERROR(VLOOKUP($A53,[5]Sheet8!$A$4:$B$89,2,FALSE),0)","v":0},null,null,1,{"$f":"IFERROR(VLOOKUP($A53,[3]Paypal!$A$2:$AA$1843,25,FALSE),0)","v":517.74},{"$f":"IFERROR(VLOOKUP($A53,'[3]Paypal Money Sent Pivot'!$A$4:$B$97,2,FALSE),0)","v":1100},{"$f":"$BH53+$BI52-IFERROR(VLOOKUP($A53,[2]Sheet2!$A$4:$B$82,2,FALSE),0)","v":2589.8200000000002},{"$f":"IFERROR(VLOOKUP($A53,'[3]TexttoColumn Amazon Balance'!$A$14:$B$30,2,FALSE),0)","v":0},{"$f":"$BJ52+$BK52-IFERROR(VLOOKUP($A53,[2]Amazon!$A$2:$F$17,5,FALSE),0)","v":0},{"$f":"IFERROR(VLOOKUP($A53,'[4]Payment Pivot'!$A$4:$B$39,2,FALSE),0)","v":0},{"$f":"$BL53+$BM52-IFERROR(VLOOKUP($A53,'[2]Myaccountaccess Pivot'!$A$4:$B$31,2,FALSE),0)","v":0},null,{"$f":"IFERROR(VLOOKUP($A53,'[6]export-2'!$A$2:$F$15,6,FALSE),BO52)","v":0},99.709810751571666,{"$f":"OFFSET(A53,0,'Cool Graph'!$H$1)","v":0},{"$f":"OFFSET(A53,0,'Cool Graph'!$I$1)","v":99.709810751571666}]
["2011-08-22",0,24,69.56,2.09,0.23,95.88000000000001,0,0,0,4,0,0,0,2.09,0,0,0,0,0,0,0,0,2,2,0,0,2,0,{"$f":"IFERROR(VLOOKUP($A54,[1]Sheet1!$A$4:$B$219,2,FALSE),0)","v":330},330,174.22000000000025,{"$f":"$BH54+$BI53-IFERROR(VLOOKUP($A54,[2]Sheet2!$A$4:$B$82,2,FALSE),0)","v":1099.8200000000002},{"$f":"$BJ53+$BK53-IFERROR(VLOOKUP($A54,[2]Amazon!$A$2:$F$17,5,FALSE),0)","v":0},{"$f":"$BL54+$BM53-IFERROR(VLOOKUP($A54,'[2]Myaccountaccess Pivot'!$A$4:$B$31,2,FALSE),0)","v":0},{"$f":"IFERROR(VLOOKUP($A54,'[2]export-1'!$A$2:$F$441,6,FALSE),AJ53)","v":3112.63},{"$f":"IFERROR(VLOOKUP($A54,'[7]download-1'!$A$2:$F$513,6,FALSE),AK53)","v":-1684.4100000000017},{"$f":"IFERROR(VLOOKUP($A54,'[3]TexttoColumn Amazon Balance'!$A$14:$B$30,2,FALSE),IF(AL55>0,AL55-50,0))","v":1365.12},4408.6699999999983,7167.6699999999983,47,48,0,0,null,null,null,null,null,{"$f":"IFERROR(VLOOKUP($A54,'[2]export-1'!$A$446:$G$451,7,FALSE),0)","v":0},{"$f":"IFERROR(VLOOKUP($A54,[3]Sheet4!$A$4:$B$56,2,FALSE),0)","v":6},{"$f":"IFERROR(VLOOKUP($A54,'[3]headphones purchased'!$A$2:$G$27,6,FALSE),0)","v":0},{"$f":"ROUND(IFERROR(VLOOKUP($A54,'[4]download-1'!$A$471:$F$474,5,FALSE)/-9.5,0),0)","v":0},{"$f":"ROUND(IFERROR(VLOOKUP($A54,'[4]download-1'!$A$467:$F$469,5,FALSE)/-49,0),0)","v":0},{"$f":"IFERROR(VLOOKUP($A54,[5]Sheet8!$A$4:$B$89,2,FALSE),0)","v":0},null,null,0,{"$f":"IFERROR(VLOOKUP($A54,[3]Paypal!$A$2:$AA$1843,25,FALSE),0)","v":515.51},{"$f":"IFERROR(VLOOKUP($A54,'[3]Paypal Money Sent Pivot'!$A$4:$B$97,2,FALSE),0)","v":0},{"$f":"$BH54+$BI53-IFERROR(VLOOKUP($A54,[2]Sheet2!$A$4:$B$82,2,FALSE),0)","v":1099.8200000000002},{"$f":"IFERROR(VLOOKUP($A54,'[3]TexttoColumn Amazon Balance'!$A$14:$B$30,2,FALSE),0)","v":0},{"$f":"$BJ53+$BK53-IFERROR(VLOOKUP($A54,[2]Amazon!$A$2:$F$17,5,FALSE),0)","v":0},{"$f":"IFERROR(VLOOKUP($A54,'[4]Payment Pivot'!$A$4:$B$39,2,FALSE),0)","v":0},{"$f":"$BL54+$BM53-IFERROR(VLOOKUP($A54,'[2]Myaccountaccess Pivot'!$A$4:$B$31,2,FALSE),0)","v":0},null,{"$f":"IFERROR(VLOOKUP($A54,'[6]export-2'!$A$2:$F$15,6,FALSE),BO53)","v":0},43.859873834381105,{"$f":"OFFSET(A54,0,'Cool Graph'!$H$1)","v":0},{"$f":"OFFSET(A54,0,'Cool Graph'!$I$1)","v":43.859873834381105}]
["2011-08-23",0,6.19,57.04,2.99,4.83,71.05,0,0,0,2,0,0,0,2.99,0,0,0,0,1,1,0,0,2,2,0,0,3,330,{"$f":"IFERROR(VLOOKUP($A55,[1]Sheet1!$A$4:$B$219,2,FALSE),0)","v":348.87},678.87,142.92000000000007,{"$f":"$BH55+$BI54-IFERROR(VLOOKUP($A55,[2]Sheet2!$A$4:$B$82,2,FALSE),0)","v":-0.17999999999983629},{"$f":"$BJ54+$BK54-IFERROR(VLOOKUP($A55,[2]Amazon!$A$2:$F$17,5,FALSE),0)","v":0},{"$f":"$BL55+$BM54-IFERROR(VLOOKUP($A55,'[2]Myaccountaccess Pivot'!$A$4:$B$31,2,FALSE),0)","v":0},{"$f":"IFERROR(VLOOKUP($A55,'[2]export-1'!$A$2:$F$441,6,FALSE),AJ54)","v":4139.37},{"$f":"IFERROR(VLOOKUP($A55,'[7]download-1'!$A$2:$F$513,6,FALSE),AK54)","v":-1684.4100000000017},{"$f":"IFERROR(VLOOKUP($A55,'[3]TexttoColumn Amazon Balance'!$A$14:$B$30,2,FALSE),IF(AL56>0,AL56-50,0))","v":1415.12},4090.0899999999983,7310.5899999999983,57,45,0,0,null,null,null,null,null,{"$f":"IFERROR(VLOOKUP($A55,'[2]export-1'!$A$446:$G$451,7,FALSE),0)","v":0},{"$f":"IFERROR(VLOOKUP($A55,[3]Sheet4!$A$4:$B$56,2,FALSE),0)","v":12},{"$f":"IFERROR(VLOOKUP($A55,'[3]headphones purchased'!$A$2:$G$27,6,FALSE),0)","v":0},{"$f":"ROUND(IFERROR(VLOOKUP($A55,'[4]download-1'!$A$471:$F$474,5,FALSE)/-9.5,0),0)","v":0},{"$f":"ROUND(IFERROR(VLOOKUP($A55,'[4]download-1'!$A$467:$F$469,5,FALSE)/-49,0),0)","v":0},{"$f":"IFERROR(VLOOKUP($A55,[5]Sheet8!$A$4:$B$89,2,FALSE),0)","v":0},null,null,1,{"$f":"IFERROR(VLOOKUP($A55,[3]Paypal!$A$2:$AA$1843,25,FALSE),0)","v":220.19},{"$f":"IFERROR(VLOOKUP($A55,'[3]Paypal Money Sent Pivot'!$A$4:$B$97,2,FALSE),0)","v":0},{"$f":"$BH55+$BI54-IFERROR(VLOOKUP($A55,[2]Sheet2!$A$4:$B$82,2,FALSE),0)","v":-0.17999999999983629},{"$f":"IFERROR(VLOOKUP($A55,'[3]TexttoColumn Amazon Balance'!$A$14:$B$30,2,FALSE),0)","v":0},{"$f":"$BJ54+$BK54-IFERROR(VLOOKUP($A55,[2]Amazon!$A$2:$F$17,5,FALSE),0)","v":0},{"$f":"IFERROR(VLOOKUP($A55,'[4]Payment Pivot'!$A$4:$B$39,2,FALSE),0)","v":0},{"$f":"$BL55+$BM54-IFERROR(VLOOKUP($A55,'[2]Myaccountaccess Pivot'!$A$4:$B$31,2,FALSE),0)","v":0},null,{"$f":"IFERROR(VLOOKUP($A55,'[6]export-2'!$A$2:$F$15,6,FALSE),BO54)","v":0},216.42032772711002,{"$f":"OFFSET(A55,0,'Cool Graph'!$H$1)","v":0},{"$f":"OFFSET(A55,0,'Cool Graph'!$I$1)","v":216.42032772711002}]
["2011-08-24",0,0,69.12,3.83,1.75,74.7,0,0,0,2,1,0,0,3.83,1,0,0,0,0,0,0,0,5,5,0,0,5,0,{"$f":"IFERROR(VLOOKUP($A56,[1]Sheet1!$A$4:$B$219,2,FALSE),0)","v":825},825,-203.64999999999964,{"$f":"$BH56+$BI55-IFERROR(VLOOKUP($A56,[2]Sheet2!$A$4:$B$82,2,FALSE),0)","v":-0.17999999999983629},{"$f":"$BJ55+$BK55-IFERROR(VLOOKUP($A56,[2]Amazon!$A$2:$F$17,5,FALSE),0)","v":0},{"$f":"$BL56+$BM55-IFERROR(VLOOKUP($A56,'[2]Myaccountaccess Pivot'!$A$4:$B$31,2,FALSE),0)","v":0},{"$f":"IFERROR(VLOOKUP($A56,'[2]export-1'!$A$2:$F$441,6,FALSE),AJ55)","v":3411.58},{"$f":"IFERROR(VLOOKUP($A56,'[7]download-1'!$A$2:$F$513,6,FALSE),AK55)","v":-1684.4100000000017},{"$f":"IFERROR(VLOOKUP($A56,'[3]TexttoColumn Amazon Balance'!$A$14:$B$30,2,FALSE),IF(AL57>0,AL57-50,0))","v":1465.12},3296.9399999999982,7106.9399999999987,70,40,0,0,null,null,null,null,null,{"$f":"IFERROR(VLOOKUP($A56,'[2]export-1'!$A$446:$G$451,7,FALSE),0)","v":0},{"$f":"IFERROR(VLOOKUP($A56,[3]Sheet4!$A$4:$B$56,2,FALSE),0)","v":18},{"$f":"IFERROR(VLOOKUP($A56,'[3]headphones purchased'!$A$2:$G$27,6,FALSE),0)","v":0},{"$f":"ROUND(IFERROR(VLOOKUP($A56,'[4]download-1'!$A$471:$F$474,5,FALSE)/-9.5,0),0)","v":0},{"$f":"ROUND(IFERROR(VLOOKUP($A56,'[4]download-1'!$A$467:$F$469,5,FALSE)/-49,0),0)","v":0},{"$f":"IFERROR(VLOOKUP($A56,[5]Sheet8!$A$4:$B$89,2,FALSE),0)","v":0},null,null,0,{"$f":"IFERROR(VLOOKUP($A56,[3]Paypal!$A$2:$AA$1843,25,FALSE),0)","v":104.83},{"$f":"IFERROR(VLOOKUP($A56,'[3]Paypal Money Sent Pivot'!$A$4:$B$97,2,FALSE),0)","v":0},{"$f":"$BH56+$BI55-IFERROR(VLOOKUP($A56,[2]Sheet2!$A$4:$B$82,2,FALSE),0)","v":-0.17999999999983629},{"$f":"IFERROR(VLOOKUP($A56,'[3]TexttoColumn Amazon Balance'!$A$14:$B$30,2,FALSE),0)","v":0},{"$f":"$BJ55+$BK55-IFERROR(VLOOKUP($A56,[2]Amazon!$A$2:$F$17,5,FALSE),0)","v":0},{"$f":"IFERROR(VLOOKUP($A56,'[4]Payment Pivot'!$A$4:$B$39,2,FALSE),0)","v":0},{"$f":"$BL56+$BM55-IFERROR(VLOOKUP($A56,'[2]Myaccountaccess Pivot'!$A$4:$B$31,2,FALSE),0)","v":0},null,{"$f":"IFERROR(VLOOKUP($A56,'[6]export-2'!$A$2:$F$15,6,FALSE),BO55)","v":0},274.6496845859528,{"$f":"OFFSET(A56,0,'Cool Graph'!$H$1)","v":0},{"$f":"OFFSET(A56,0,'Cool Graph'!$I$1)","v":274.6496845859528}]
["2011-08-25",0,3.2,68.22999999999999,2.2400000000000002,2.84,76.509999999999991,0,0,0,1,0,0,0,2.2400000000000002,0,0,0,0,0,0,0,0,1,1,0,0,1,0,{"$f":"IFERROR(VLOOKUP($A57,[1]Sheet1!$A$4:$B$219,2,FALSE),0)","v":165},165,-303.6200000000008,{"$f":"$BH57+$BI56-IFERROR(VLOOKUP($A57,[2]Sheet2!$A$4:$B$82,2,FALSE),0)","v":-0.17999999999983629},{"$f":"$BJ56+$BK56-IFERROR(VLOOKUP($A57,[2]Amazon!$A$2:$F$17,5,FALSE),0)","v":0},{"$f":"$BL57+$BM56-IFERROR(VLOOKUP($A57,'[2]Myaccountaccess Pivot'!$A$4:$B$31,2,FALSE),0)","v":0},{"$f":"IFERROR(VLOOKUP($A57,'[2]export-1'!$A$2:$F$441,6,FALSE),AJ56)","v":3411.58},{"$f":"IFERROR(VLOOKUP($A57,'[7]download-1'!$A$2:$F$513,6,FALSE),AK56)","v":-2184.4100000000017},{"$f":"IFERROR(VLOOKUP($A57,'[3]TexttoColumn Amazon Balance'!$A$14:$B$30,2,FALSE),IF(AL58>0,AL58-50,0))","v":1515.12},2974.3199999999983,6803.3199999999979,70,42,0,0,null,null,null,null,null,{"$f":"IFERROR(VLOOKUP($A57,'[2]export-1'!$A$446:$G$451,7,FALSE),0)","v":0},{"$f":"IFERROR(VLOOKUP($A57,[3]Sheet4!$A$4:$B$56,2,FALSE),0)","v":0},{"$f":"IFERROR(VLOOKUP($A57,'[3]headphones purchased'!$A$2:$G$27,6,FALSE),0)","v":3},{"$f":"ROUND(IFERROR(VLOOKUP($A57,'[4]download-1'!$A$471:$F$474,5,FALSE)/-9.5,0),0)","v":0},{"$f":"ROUND(IFERROR(VLOOKUP($A57,'[4]download-1'!$A$467:$F$469,5,FALSE)/-49,0),0)","v":0},{"$f":"IFERROR(VLOOKUP($A57,[5]Sheet8!$A$4:$B$89,2,FALSE),0)","v":0},null,null,1,{"$f":"IFERROR(VLOOKUP($A57,[3]Paypal!$A$2:$AA$1843,25,FALSE),0)","v":232.21},{"$f":"IFERROR(VLOOKUP($A57,'[3]Paypal Money Sent Pivot'!$A$4:$B$97,2,FALSE),0)","v":0},{"$f":"$BH57+$BI56-IFERROR(VLOOKUP($A57,[2]Sheet2!$A$4:$B$82,2,FALSE),0)","v":-0.17999999999983629},{"$f":"IFERROR(VLOOKUP($A57,'[3]TexttoColumn Amazon Balance'!$A$14:$B$30,2,FALSE),0)","v":0},{"$f":"$BJ56+$BK56-IFERROR(VLOOKUP($A57,[2]Amazon!$A$2:$F$17,5,FALSE),0)","v":0},{"$f":"IFERROR(VLOOKUP($A57,'[4]Payment Pivot'!$A$4:$B$39,2,FALSE),0)","v":0},{"$f":"$BL57+$BM56-IFERROR(VLOOKUP($A57,'[2]Myaccountaccess Pivot'!$A$4:$B$31,2,FALSE),0)","v":0},null,{"$f":"IFERROR(VLOOKUP($A57,'[6]export-2'!$A$2:$F$15,6,FALSE),BO56)","v":0},-6.6400630828094336,{"$f":"OFFSET(A57,0,'Cool Graph'!$H$1)","v":0},{"$f":"OFFSET(A57,0,'Cool Graph'!$I$1)","v":-6.6400630828094336}]
["2011-08-26",0,9.6,44.62,0.67,1.58,56.47,0,0,0,1,0,0,0,0.67,0,0,0,0,0,0,0,0,3,3,0,0,3,0,{"$f":"IFERROR(VLOOKUP($A58,[1]Sheet1!$A$4:$B$219,2,FALSE),0)","v":495},495,246.40000000000055,{"$f":"$BH58+$BI57-IFERROR(VLOOKUP($A58,[2]Sheet2!$A$4:$B$82,2,FALSE),0)","v":-0.17999999999983629},{"$f":"$BJ57+$BK57-IFERROR(VLOOKUP($A58,[2]Amazon!$A$2:$F$17,5,FALSE),0)","v":0},{"$f":"$BL58+$BM57-IFERROR(VLOOKUP($A58,'[2]Myaccountaccess Pivot'!$A$4:$B$31,2,FALSE),0)","v":0},{"$f":"IFERROR(VLOOKUP($A58,'[2]export-1'!$A$2:$F$441,6,FALSE),AJ57)","v":1882.5500000000002},{"$f":"IFERROR(VLOOKUP($A58,'[7]download-1'!$A$2:$F$513,6,FALSE),AK57)","v":-2264.4100000000017},{"$f":"IFERROR(VLOOKUP($A58,'[3]TexttoColumn Amazon Balance'!$A$14:$B$30,2,FALSE),IF(AL59>0,AL59-50,0))","v":1565.12},1864.2199999999984,7049.7199999999984,67,95,0,0,null,null,null,null,null,{"$f":"IFERROR(VLOOKUP($A58,'[2]export-1'!$A$446:$G$451,7,FALSE),0)","v":0},{"$f":"IFERROR(VLOOKUP($A58,[3]Sheet4!$A$4:$B$56,2,FALSE),0)","v":0},{"$f":"IFERROR(VLOOKUP($A58,'[3]headphones purchased'!$A$2:$G$27,6,FALSE),0)","v":56},{"$f":"ROUND(IFERROR(VLOOKUP($A58,'[4]download-1'!$A$471:$F$474,5,FALSE)/-9.5,0),0)","v":0},{"$f":"ROUND(IFERROR(VLOOKUP($A58,'[4]download-1'!$A$467:$F$469,5,FALSE)/-49,0),0)","v":0},{"$f":"IFERROR(VLOOKUP($A58,[5]Sheet8!$A$4:$B$89,2,FALSE),0)","v":0},null,null,0,{"$f":"IFERROR(VLOOKUP($A58,[3]Paypal!$A$2:$AA$1843,25,FALSE),0)","v":681.14},{"$f":"IFERROR(VLOOKUP($A58,'[3]Paypal Money Sent Pivot'!$A$4:$B$97,2,FALSE),0)","v":0},{"$f":"$BH58+$BI57-IFERROR(VLOOKUP($A58,[2]Sheet2!$A$4:$B$82,2,FALSE),0)","v":-0.17999999999983629},{"$f":"IFERROR(VLOOKUP($A58,'[3]TexttoColumn Amazon Balance'!$A$14:$B$30,2,FALSE),0)","v":0},{"$f":"$BJ57+$BK57-IFERROR(VLOOKUP($A58,[2]Amazon!$A$2:$F$17,5,FALSE),0)","v":0},{"$f":"IFERROR(VLOOKUP($A58,'[4]Payment Pivot'!$A$4:$B$39,2,FALSE),0)","v":0},{"$f":"$BL58+$BM57-IFERROR(VLOOKUP($A58,'[2]Myaccountaccess Pivot'!$A$4:$B$31,2,FALSE),0)","v":0},null,{"$f":"IFERROR(VLOOKUP($A58,'[6]export-2'!$A$2:$F$15,6,FALSE),BO57)","v":1000},153.13981075157167,{"$f":"OFFSET(A58,0,'Cool Graph'!$H$1)","v":0},{"$f":"OFFSET(A58,0,'Cool Graph'!$I$1)","v":153.13981075157167}]
["2011-08-27",0,13.6,52.629999999999995,2.59,3.5,72.319999999999993,0,0,0,1,0,0,0,2.59,0,0,0,0,0,0,0,0,1,1,0,0,1,0,{"$f":"IFERROR(VLOOKUP($A59,[1]Sheet1!$A$4:$B$219,2,FALSE),0)","v":165},165,200.40999999999985,{"$f":"$BH59+$BI58-IFERROR(VLOOKUP($A59,[2]Sheet2!$A$4:$B$82,2,FALSE),0)","v":-0.17999999999983629},{"$f":"$BJ58+$BK58-IFERROR(VLOOKUP($A59,[2]Amazon!$A$2:$F$17,5,FALSE),0)","v":0},{"$f":"$BL59+$BM58-IFERROR(VLOOKUP($A59,'[2]Myaccountaccess Pivot'!$A$4:$B$31,2,FALSE),0)","v":0},{"$f":"IFERROR(VLOOKUP($A59,'[2]export-1'!$A$2:$F$441,6,FALSE),AJ58)","v":1882.5500000000002},{"$f":"IFERROR(VLOOKUP($A59,'[7]download-1'!$A$2:$F$513,6,FALSE),AK58)","v":-2264.4100000000017},{"$f":"IFERROR(VLOOKUP($A59,'[3]TexttoColumn Amazon Balance'!$A$14:$B$30,2,FALSE),IF(AL60>0,AL60-50,0))","v":1615.12},2074.1299999999983,7250.1299999999983,67,94,0,0,null,null,null,null,null,{"$f":"IFERROR(VLOOKUP($A59,'[2]export-1'!$A$446:$G$451,7,FALSE),0)","v":0},{"$f":"IFERROR(VLOOKUP($A59,[3]Sheet4!$A$4:$B$56,2,FALSE),0)","v":0},{"$f":"IFERROR(VLOOKUP($A59,'[3]headphones purchased'!$A$2:$G$27,6,FALSE),0)","v":0},{"$f":"ROUND(IFERROR(VLOOKUP($A59,'[4]download-1'!$A$471:$F$474,5,FALSE)/-9.5,0),0)","v":0},{"$f":"ROUND(IFERROR(VLOOKUP($A59,'[4]download-1'!$A$467:$F$469,5,FALSE)/-49,0),0)","v":0},{"$f":"IFERROR(VLOOKUP($A59,[5]Sheet8!$A$4:$B$89,2,FALSE),0)","v":0},null,null,1,{"$f":"IFERROR(VLOOKUP($A59,[3]Paypal!$A$2:$AA$1843,25,FALSE),0)","v":841.05},{"$f":"IFERROR(VLOOKUP($A59,'[3]Paypal Money Sent Pivot'!$A$4:$B$97,2,FALSE),0)","v":0},{"$f":"$BH59+$BI58-IFERROR(VLOOKUP($A59,[2]Sheet2!$A$4:$B$82,2,FALSE),0)","v":-0.17999999999983629},{"$f":"IFERROR(VLOOKUP($A59,'[3]TexttoColumn Amazon Balance'!$A$14:$B$30,2,FALSE),0)","v":1615.12},{"$f":"$BJ58+$BK58-IFERROR(VLOOKUP($A59,[2]Amazon!$A$2:$F$17,5,FALSE),0)","v":0},{"$f":"IFERROR(VLOOKUP($A59,'[4]Payment Pivot'!$A$4:$B$39,2,FALSE),0)","v":0},{"$f":"$BL59+$BM58-IFERROR(VLOOKUP($A59,'[2]Myaccountaccess Pivot'!$A$4:$B$31,2,FALSE),0)","v":0},null,{"$f":"IFERROR(VLOOKUP($A59,'[6]export-2'!$A$2:$F$15,6,FALSE),BO58)","v":1000},-2.4500630828094359,{"$f":"OFFSET(A59,0,'Cool Graph'!$H$1)","v":0},{"$f":"OFFSET(A59,0,'Cool Graph'!$I$1)","v":-2.4500630828094359}]
["2011-08-28",0,14.4,57.97,3.51,0,75.88000000000001,0,0,0,0,0,0,0,3.51,0,0,0,0,0,0,0,0,0,0,0,0,0,0,{"$f":"IFERROR(VLOOKUP($A60,[1]Sheet1!$A$4:$B$219,2,FALSE),0)","v":0},0,-218.35999999999967,{"$f":"$BH60+$BI59-IFERROR(VLOOKUP($A60,[2]Sheet2!$A$4:$B$82,2,FALSE),0)","v":-0.17999999999983629},{"$f":"$BJ59+$BK59-IFERROR(VLOOKUP($A60,[2]Amazon!$A$2:$F$17,5,FALSE),0)","v":1615.12},{"$f":"$BL60+$BM59-IFERROR(VLOOKUP($A60,'[2]Myaccountaccess Pivot'!$A$4:$B$31,2,FALSE),0)","v":0},{"$f":"IFERROR(VLOOKUP($A60,'[2]export-1'!$A$2:$F$441,6,FALSE),AJ59)","v":1882.5500000000002},{"$f":"IFERROR(VLOOKUP($A60,'[7]download-1'!$A$2:$F$513,6,FALSE),AK59)","v":-2264.4100000000017},{"$f":"IFERROR(VLOOKUP($A60,'[3]TexttoColumn Amazon Balance'!$A$14:$B$30,2,FALSE),IF(AL61>0,AL61-50,0))","v":622.69000000000005},1855.7699999999986,7031.7699999999986,67,94,0,0,null,null,null,null,null,{"$f":"IFERROR(VLOOKUP($A60,'[2]export-1'!$A$446:$G$451,7,FALSE),0)","v":0},{"$f":"IFERROR(VLOOKUP($A60,[3]Sheet4!$A$4:$B$56,2,FALSE),0)","v":0},{"$f":"IFERROR(VLOOKUP($A60,'[3]headphones purchased'!$A$2:$G$27,6,FALSE),0)","v":0},{"$f":"ROUND(IFERROR(VLOOKUP($A60,'[4]download-1'!$A$471:$F$474,5,FALSE)/-9.5,0),0)","v":0},{"$f":"ROUND(IFERROR(VLOOKUP($A60,'[4]download-1'!$A$467:$F$469,5,FALSE)/-49,0),0)","v":0},{"$f":"IFERROR(VLOOKUP($A60,[5]Sheet8!$A$4:$B$89,2,FALSE),0)","v":0},null,null,0,{"$f":"IFERROR(VLOOKUP($A60,[3]Paypal!$A$2:$AA$1843,25,FALSE),0)","v":0},{"$f":"IFERROR(VLOOKUP($A60,'[3]Paypal Money Sent Pivot'!$A$4:$B$97,2,FALSE),0)","v":0},{"$f":"$BH60+$BI59-IFERROR(VLOOKUP($A60,[2]Sheet2!$A$4:$B$82,2,FALSE),0)","v":-0.17999999999983629},{"$f":"IFERROR(VLOOKUP($A60,'[3]TexttoColumn Amazon Balance'!$A$14:$B$30,2,FALSE),0)","v":0},{"$f":"$BJ59+$BK59-IFERROR(VLOOKUP($A60,[2]Amazon!$A$2:$F$17,5,FALSE),0)","v":1615.12},{"$f":"IFERROR(VLOOKUP($A60,'[4]Payment Pivot'!$A$4:$B$39,2,FALSE),0)","v":0},{"$f":"$BL60+$BM59-IFERROR(VLOOKUP($A60,'[2]Myaccountaccess Pivot'!$A$4:$B$31,2,FALSE),0)","v":0},null,{"$f":"IFERROR(VLOOKUP($A60,'[6]export-2'!$A$2:$F$15,6,FALSE),BO59)","v":1000},-75.88000000000001,{"$f":"OFFSET(A60,0,'Cool Graph'!$H$1)","v":0},{"$f":"OFFSET(A60,0,'Cool Graph'!$I$1)","v":-75.88000000000001}]
["2011-08-29",0,34.4,71.61,4.01,0,110.02,0,0,0,2,0,0,0,4.01,0,0,0,0,0,0,0,0,2,2,0,0,2,0,{"$f":"IFERROR(VLOOKUP($A61,[1]Sheet1!$A$4:$B$219,2,FALSE),0)","v":330},330,59.779999999999745,{"$f":"$BH61+$BI60-IFERROR(VLOOKUP($A61,[2]Sheet2!$A$4:$B$82,2,FALSE),0)","v":-0.17999999999983629},{"$f":"$BJ60+$BK60-IFERROR(VLOOKUP($A61,[2]Amazon!$A$2:$F$17,5,FALSE),0)","v":1615.12},{"$f":"$BL61+$BM60-IFERROR(VLOOKUP($A61,'[2]Myaccountaccess Pivot'!$A$4:$B$31,2,FALSE),0)","v":500},{"$f":"IFERROR(VLOOKUP($A61,'[2]export-1'!$A$2:$F$441,6,FALSE),AJ60)","v":1036.7900000000002},{"$f":"IFERROR(VLOOKUP($A61,'[7]download-1'!$A$2:$F$513,6,FALSE),AK60)","v":-1764.4100000000019},{"$f":"IFERROR(VLOOKUP($A61,'[3]TexttoColumn Amazon Balance'!$A$14:$B$30,2,FALSE),IF(AL62>0,AL62-50,0))","v":672.69},1444.5499999999984,7091.5499999999984,77,92,0,0,null,null,null,null,null,{"$f":"IFERROR(VLOOKUP($A61,'[2]export-1'!$A$446:$G$451,7,FALSE),0)","v":0},{"$f":"IFERROR(VLOOKUP($A61,[3]Sheet4!$A$4:$B$56,2,FALSE),0)","v":12},{"$f":"IFERROR(VLOOKUP($A61,'[3]headphones purchased'!$A$2:$G$27,6,FALSE),0)","v":0},{"$f":"ROUND(IFERROR(VLOOKUP($A61,'[4]download-1'!$A$471:$F$474,5,FALSE)/-9.5,0),0)","v":0},{"$f":"ROUND(IFERROR(VLOOKUP($A61,'[4]download-1'!$A$467:$F$469,5,FALSE)/-49,0),0)","v":0},{"$f":"IFERROR(VLOOKUP($A61,[5]Sheet8!$A$4:$B$89,2,FALSE),0)","v":1},null,null,1,{"$f":"IFERROR(VLOOKUP($A61,[3]Paypal!$A$2:$AA$1843,25,FALSE),0)","v":384.54},{"$f":"IFERROR(VLOOKUP($A61,'[3]Paypal Money Sent Pivot'!$A$4:$B$97,2,FALSE),0)","v":0},{"$f":"$BH61+$BI60-IFERROR(VLOOKUP($A61,[2]Sheet2!$A$4:$B$82,2,FALSE),0)","v":-0.17999999999983629},{"$f":"IFERROR(VLOOKUP($A61,'[3]TexttoColumn Amazon Balance'!$A$14:$B$30,2,FALSE),0)","v":0},{"$f":"$BJ60+$BK60-IFERROR(VLOOKUP($A61,[2]Amazon!$A$2:$F$17,5,FALSE),0)","v":1615.12},{"$f":"IFERROR(VLOOKUP($A61,'[4]Payment Pivot'!$A$4:$B$39,2,FALSE),0)","v":500},{"$f":"$BL61+$BM60-IFERROR(VLOOKUP($A61,'[2]Myaccountaccess Pivot'!$A$4:$B$31,2,FALSE),0)","v":500},null,{"$f":"IFERROR(VLOOKUP($A61,'[6]export-2'!$A$2:$F$15,6,FALSE),BO60)","v":1000},29.719873834381119,{"$f":"OFFSET(A61,0,'Cool Graph'!$H$1)","v":0},{"$f":"OFFSET(A61,0,'Cool Graph'!$I$1)","v":29.719873834381119}]
["2011-08-30",0,17.600000000000001,52.89,2.92,5.61,79.02000000000001,1,0,0,0,0,0,0,2.92,0,0,0,0,0,0,0,0,2,2,0,0,2,0,{"$f":"IFERROR(VLOOKUP($A62,[1]Sheet1!$A$4:$B$219,2,FALSE),0)","v":330},330,351.71000000000004,{"$f":"$BH62+$BI61-IFERROR(VLOOKUP($A62,[2]Sheet2!$A$4:$B$82,2,FALSE),0)","v":-0.17999999999983629},{"$f":"$BJ61+$BK61-IFERROR(VLOOKUP($A62,[2]Amazon!$A$2:$F$17,5,FALSE),0)","v":0},{"$f":"$BL62+$BM61-IFERROR(VLOOKUP($A62,'[2]Myaccountaccess Pivot'!$A$4:$B$31,2,FALSE),0)","v":0},{"$f":"IFERROR(VLOOKUP($A62,'[2]export-1'!$A$2:$F$441,6,FALSE),AJ61)","v":2101.91},{"$f":"IFERROR(VLOOKUP($A62,'[7]download-1'!$A$2:$F$513,6,FALSE),AK61)","v":-1764.4100000000019},{"$f":"IFERROR(VLOOKUP($A62,'[3]TexttoColumn Amazon Balance'!$A$14:$B$30,2,FALSE),IF(AL63>0,AL63-50,0))","v":722.69},1913.2599999999982,7443.2599999999984,75,90,0,0,null,null,null,null,null,{"$f":"IFERROR(VLOOKUP($A62,'[2]export-1'!$A$446:$G$451,7,FALSE),0)","v":0},{"$f":"IFERROR(VLOOKUP($A62,[3]Sheet4!$A$4:$B$56,2,FALSE),0)","v":0},{"$f":"IFERROR(VLOOKUP($A62,'[3]headphones purchased'!$A$2:$G$27,6,FALSE),0)","v":0},{"$f":"ROUND(IFERROR(VLOOKUP($A62,'[4]download-1'!$A$471:$F$474,5,FALSE)/-9.5,0),0)","v":0},{"$f":"ROUND(IFERROR(VLOOKUP($A62,'[4]download-1'!$A$467:$F$469,5,FALSE)/-49,0),0)","v":0},{"$f":"IFERROR(VLOOKUP($A62,[5]Sheet8!$A$4:$B$89,2,FALSE),0)","v":0},null,null,0,{"$f":"IFERROR(VLOOKUP($A62,[3]Paypal!$A$2:$AA$1843,25,FALSE),0)","v":853.25},{"$f":"IFERROR(VLOOKUP($A62,'[3]Paypal Money Sent Pivot'!$A$4:$B$97,2,FALSE),0)","v":0},{"$f":"$BH62+$BI61-IFERROR(VLOOKUP($A62,[2]Sheet2!$A$4:$B$82,2,FALSE),0)","v":-0.17999999999983629},{"$f":"IFERROR(VLOOKUP($A62,'[3]TexttoColumn Amazon Balance'!$A$14:$B$30,2,FALSE),0)","v":0},{"$f":"$BJ61+$BK61-IFERROR(VLOOKUP($A62,[2]Amazon!$A$2:$F$17,5,FALSE),0)","v":0},{"$f":"IFERROR(VLOOKUP($A62,'[4]Payment Pivot'!$A$4:$B$39,2,FALSE),0)","v":0},{"$f":"$BL62+$BM61-IFERROR(VLOOKUP($A62,'[2]Myaccountaccess Pivot'!$A$4:$B$31,2,FALSE),0)","v":0},null,{"$f":"IFERROR(VLOOKUP($A62,'[6]export-2'!$A$2:$F$15,6,FALSE),BO61)","v":1000},60.719873834381104,{"$f":"OFFSET(A62,0,'Cool Graph'!$H$1)","v":0},{"$f":"OFFSET(A62,0,'Cool Graph'!$I$1)","v":60.719873834381104}]
["2011-08-31",0,16,48.830000000000005,2.5099999999999998,4.6100000000000003,71.950000000000017,0,0,0,1,0,0,0,2.5099999999999998,0,0,0,0,1,0,0,0,2,2,0,0,3,165,{"$f":"IFERROR(VLOOKUP($A63,[1]Sheet1!$A$4:$B$219,2,FALSE),0)","v":330},495,124.23999999999978,{"$f":"$BH63+$BI62-IFERROR(VLOOKUP($A63,[2]Sheet2!$A$4:$B$82,2,FALSE),0)","v":-0.17999999999983629},{"$f":"$BJ62+$BK62-IFERROR(VLOOKUP($A63,[2]Amazon!$A$2:$F$17,5,FALSE),0)","v":0},{"$f":"$BL63+$BM62-IFERROR(VLOOKUP($A63,'[2]Myaccountaccess Pivot'!$A$4:$B$31,2,FALSE),0)","v":0},{"$f":"IFERROR(VLOOKUP($A63,'[2]export-1'!$A$2:$F$441,6,FALSE),AJ62)","v":1996.9099999999999},{"$f":"IFERROR(VLOOKUP($A63,'[7]download-1'!$A$2:$F$513,6,FALSE),AK62)","v":-1764.4100000000019},{"$f":"IFERROR(VLOOKUP($A63,'[3]TexttoColumn Amazon Balance'!$A$14:$B$30,2,FALSE),IF(AL64>0,AL64-50,0))","v":772.69},2154.4999999999982,7567.4999999999982,73,88,0,0,null,null,null,null,null,{"$f":"IFERROR(VLOOKUP($A63,'[2]export-1'!$A$446:$G$451,7,FALSE),0)","v":0},{"$f":"IFERROR(VLOOKUP($A63,[3]Sheet4!$A$4:$B$56,2,FALSE),0)","v":0},{"$f":"IFERROR(VLOOKUP($A63,'[3]headphones purchased'!$A$2:$G$27,6,FALSE),0)","v":0},{"$f":"ROUND(IFERROR(VLOOKUP($A63,'[4]download-1'!$A$471:$F$474,5,FALSE)/-9.5,0),0)","v":0},{"$f":"ROUND(IFERROR(VLOOKUP($A63,'[4]download-1'!$A$467:$F$469,5,FALSE)/-49,0),0)","v":0},{"$f":"IFERROR(VLOOKUP($A63,[5]Sheet8!$A$4:$B$89,2,FALSE),0)","v":0},null,null,1,{"$f":"IFERROR(VLOOKUP($A63,[3]Paypal!$A$2:$AA$1843,25,FALSE),0)","v":1149.49},{"$f":"IFERROR(VLOOKUP($A63,'[3]Paypal Money Sent Pivot'!$A$4:$B$97,2,FALSE),0)","v":0},{"$f":"$BH63+$BI62-IFERROR(VLOOKUP($A63,[2]Sheet2!$A$4:$B$82,2,FALSE),0)","v":-0.17999999999983629},{"$f":"IFERROR(VLOOKUP($A63,'[3]TexttoColumn Amazon Balance'!$A$14:$B$30,2,FALSE),0)","v":0},{"$f":"$BJ62+$BK62-IFERROR(VLOOKUP($A63,[2]Amazon!$A$2:$F$17,5,FALSE),0)","v":0},{"$f":"IFERROR(VLOOKUP($A63,'[4]Payment Pivot'!$A$4:$B$39,2,FALSE),0)","v":0},{"$f":"$BL63+$BM62-IFERROR(VLOOKUP($A63,'[2]Myaccountaccess Pivot'!$A$4:$B$31,2,FALSE),0)","v":0},null,{"$f":"IFERROR(VLOOKUP($A63,'[6]export-2'!$A$2:$F$15,6,FALSE),BO62)","v":1000},137.65981075157165,{"$f":"OFFSET(A63,0,'Cool Graph'!$H$1)","v":0},{"$f":"OFFSET(A63,0,'Cool Graph'!$I$1)","v":137.65981075157165}]
["2011-09-01",0,10.15,44.49,2.69,4.57,61.9,0,1,0,0,0,0,0,2.69,0,0,0,0,0,0,0,0,1,1,0,0,1,0,{"$f":"IFERROR(VLOOKUP($A64,[1]Sheet1!$A$4:$B$219,2,FALSE),0)","v":165},165,-10.699999999999818,{"$f":"$BH64+$BI63-IFERROR(VLOOKUP($A64,[2]Sheet2!$A$4:$B$82,2,FALSE),0)","v":-0.17999999999983629},{"$f":"$BJ63+$BK63-IFERROR(VLOOKUP($A64,[2]Amazon!$A$2:$F$17,5,FALSE),0)","v":0},{"$f":"$BL64+$BM63-IFERROR(VLOOKUP($A64,'[2]Myaccountaccess Pivot'!$A$4:$B$31,2,FALSE),0)","v":0},{"$f":"IFERROR(VLOOKUP($A64,'[2]export-1'!$A$2:$F$441,6,FALSE),AJ63)","v":1846.4599999999998},{"$f":"IFERROR(VLOOKUP($A64,'[7]download-1'!$A$2:$F$513,6,FALSE),AK63)","v":-1764.4100000000019},{"$f":"IFERROR(VLOOKUP($A64,'[3]TexttoColumn Amazon Balance'!$A$14:$B$30,2,FALSE),IF(AL65>0,AL65-50,0))","v":822.69},2202.2999999999984,7556.7999999999984,72,87,0,0,null,null,null,null,null,{"$f":"IFERROR(VLOOKUP($A64,'[2]export-1'!$A$446:$G$451,7,FALSE),0)","v":0},{"$f":"IFERROR(VLOOKUP($A64,[3]Sheet4!$A$4:$B$56,2,FALSE),0)","v":0},{"$f":"IFERROR(VLOOKUP($A64,'[3]headphones purchased'!$A$2:$G$27,6,FALSE),0)","v":0},{"$f":"ROUND(IFERROR(VLOOKUP($A64,'[4]download-1'!$A$471:$F$474,5,FALSE)/-9.5,0),0)","v":0},{"$f":"ROUND(IFERROR(VLOOKUP($A64,'[4]download-1'!$A$467:$F$469,5,FALSE)/-49,0),0)","v":0},{"$f":"IFERROR(VLOOKUP($A64,[5]Sheet8!$A$4:$B$89,2,FALSE),0)","v":0},null,null,0,{"$f":"IFERROR(VLOOKUP($A64,[3]Paypal!$A$2:$AA$1843,25,FALSE),0)","v":1297.74},{"$f":"IFERROR(VLOOKUP($A64,'[3]Paypal Money Sent Pivot'!$A$4:$B$97,2,FALSE),0)","v":0},{"$f":"$BH64+$BI63-IFERROR(VLOOKUP($A64,[2]Sheet2!$A$4:$B$82,2,FALSE),0)","v":-0.17999999999983629},{"$f":"IFERROR(VLOOKUP($A64,'[3]TexttoColumn Amazon Balance'!$A$14:$B$30,2,FALSE),0)","v":0},{"$f":"$BJ63+$BK63-IFERROR(VLOOKUP($A64,[2]Amazon!$A$2:$F$17,5,FALSE),0)","v":0},{"$f":"IFERROR(VLOOKUP($A64,'[4]Payment Pivot'!$A$4:$B$39,2,FALSE),0)","v":0},{"$f":"$BL64+$BM63-IFERROR(VLOOKUP($A64,'[2]Myaccountaccess Pivot'!$A$4:$B$31,2,FALSE),0)","v":0},null,{"$f":"IFERROR(VLOOKUP($A64,'[6]export-2'!$A$2:$F$15,6,FALSE),BO63)","v":1000},7.9699369171905587,{"$f":"OFFSET(A64,0,'Cool Graph'!$H$1)","v":0},{"$f":"OFFSET(A64,0,'Cool Graph'!$I$1)","v":7.9699369171905587}]
["2011-09-02",0,13.6,37.49,7.55,5.4,64.040000000000006,0,0,0,1,0,0,0,3.45,0,0,4.0999999999999996,0,0,0,0,0,5,5,0,0,5,0,{"$f":"IFERROR(VLOOKUP($A65,[1]Sheet1!$A$4:$B$219,2,FALSE),0)","v":825},825,612.0600000000004,{"$f":"$BH65+$BI64-IFERROR(VLOOKUP($A65,[2]Sheet2!$A$4:$B$82,2,FALSE),0)","v":999.82000000000016},{"$f":"$BJ64+$BK64-IFERROR(VLOOKUP($A65,[2]Amazon!$A$2:$F$17,5,FALSE),0)","v":0},{"$f":"$BL65+$BM64-IFERROR(VLOOKUP($A65,'[2]Myaccountaccess Pivot'!$A$4:$B$31,2,FALSE),0)","v":0},{"$f":"IFERROR(VLOOKUP($A65,'[2]export-1'!$A$2:$F$441,6,FALSE),AJ64)","v":767.05},{"$f":"IFERROR(VLOOKUP($A65,'[7]download-1'!$A$2:$F$513,6,FALSE),AK64)","v":-1.8758328224066645E-12},{"$f":"IFERROR(VLOOKUP($A65,'[3]TexttoColumn Amazon Balance'!$A$14:$B$30,2,FALSE),IF(AL66>0,AL66-50,0))","v":872.69},2975.8599999999988,8168.8599999999988,86,82,0,0,null,null,null,null,null,{"$f":"IFERROR(VLOOKUP($A65,'[2]export-1'!$A$446:$G$451,7,FALSE),0)","v":0},{"$f":"IFERROR(VLOOKUP($A65,[3]Sheet4!$A$4:$B$56,2,FALSE),0)","v":18},{"$f":"IFERROR(VLOOKUP($A65,'[3]headphones purchased'!$A$2:$G$27,6,FALSE),0)","v":0},{"$f":"ROUND(IFERROR(VLOOKUP($A65,'[4]download-1'!$A$471:$F$474,5,FALSE)/-9.5,0),0)","v":0},{"$f":"ROUND(IFERROR(VLOOKUP($A65,'[4]download-1'!$A$467:$F$469,5,FALSE)/-49,0),0)","v":0},{"$f":"IFERROR(VLOOKUP($A65,[5]Sheet8!$A$4:$B$89,2,FALSE),0)","v":0},null,null,1,{"$f":"IFERROR(VLOOKUP($A65,[3]Paypal!$A$2:$AA$1843,25,FALSE),0)","v":336.3},{"$f":"IFERROR(VLOOKUP($A65,'[3]Paypal Money Sent Pivot'!$A$4:$B$97,2,FALSE),0)","v":1000},{"$f":"$BH65+$BI64-IFERROR(VLOOKUP($A65,[2]Sheet2!$A$4:$B$82,2,FALSE),0)","v":999.82000000000016},{"$f":"IFERROR(VLOOKUP($A65,'[3]TexttoColumn Amazon Balance'!$A$14:$B$30,2,FALSE),0)","v":0},{"$f":"$BJ64+$BK64-IFERROR(VLOOKUP($A65,[2]Amazon!$A$2:$F$17,5,FALSE),0)","v":0},{"$f":"IFERROR(VLOOKUP($A65,'[4]Payment Pivot'!$A$4:$B$39,2,FALSE),0)","v":1764.41},{"$f":"$BL65+$BM64-IFERROR(VLOOKUP($A65,'[2]Myaccountaccess Pivot'!$A$4:$B$31,2,FALSE),0)","v":0},null,{"$f":"IFERROR(VLOOKUP($A65,'[6]export-2'!$A$2:$F$15,6,FALSE),BO64)","v":200},285.30968458595277,{"$f":"OFFSET(A65,0,'Cool Graph'!$H$1)","v":0},{"$f":"OFFSET(A65,0,'Cool Graph'!$I$1)","v":285.30968458595277}]
["2011-09-03",0,1.6,68.039999999999992,11.73,1.51,82.88,0,0,0,1,0,0,0,3.06,0,0,8.67,0,1,0,0,0,2,2,0,0,3,165.06,{"$f":"IFERROR(VLOOKUP($A66,[1]Sheet1!$A$4:$B$219,2,FALSE),0)","v":330},495.06,192.15999999999985,{"$f":"$BH66+$BI65-IFERROR(VLOOKUP($A66,[2]Sheet2!$A$4:$B$82,2,FALSE),0)","v":999.82000000000016},{"$f":"$BJ65+$BK65-IFERROR(VLOOKUP($A66,[2]Amazon!$A$2:$F$17,5,FALSE),0)","v":0},{"$f":"$BL66+$BM65-IFERROR(VLOOKUP($A66,'[2]Myaccountaccess Pivot'!$A$4:$B$31,2,FALSE),0)","v":0},{"$f":"IFERROR(VLOOKUP($A66,'[2]export-1'!$A$2:$F$441,6,FALSE),AJ65)","v":767.05},{"$f":"IFERROR(VLOOKUP($A66,'[7]download-1'!$A$2:$F$513,6,FALSE),AK65)","v":-1.8758328224066645E-12},{"$f":"IFERROR(VLOOKUP($A66,'[3]TexttoColumn Amazon Balance'!$A$14:$B$30,2,FALSE),IF(AL67>0,AL67-50,0))","v":922.69},3334.0199999999986,8361.0199999999986,83,80,0,0,null,null,null,null,null,{"$f":"IFERROR(VLOOKUP($A66,'[2]export-1'!$A$446:$G$451,7,FALSE),0)","v":0},{"$f":"IFERROR(VLOOKUP($A66,[3]Sheet4!$A$4:$B$56,2,FALSE),0)","v":0},{"$f":"IFERROR(VLOOKUP($A66,'[3]headphones purchased'!$A$2:$G$27,6,FALSE),0)","v":0},{"$f":"ROUND(IFERROR(VLOOKUP($A66,'[4]download-1'!$A$471:$F$474,5,FALSE)/-9.5,0),0)","v":0},{"$f":"ROUND(IFERROR(VLOOKUP($A66,'[4]download-1'!$A$467:$F$469,5,FALSE)/-49,0),0)","v":0},{"$f":"IFERROR(VLOOKUP($A66,[5]Sheet8!$A$4:$B$89,2,FALSE),0)","v":0},null,null,0,{"$f":"IFERROR(VLOOKUP($A66,[3]Paypal!$A$2:$AA$1843,25,FALSE),0)","v":644.46},{"$f":"IFERROR(VLOOKUP($A66,'[3]Paypal Money Sent Pivot'!$A$4:$B$97,2,FALSE),0)","v":0},{"$f":"$BH66+$BI65-IFERROR(VLOOKUP($A66,[2]Sheet2!$A$4:$B$82,2,FALSE),0)","v":999.82000000000016},{"$f":"IFERROR(VLOOKUP($A66,'[3]TexttoColumn Amazon Balance'!$A$14:$B$30,2,FALSE),0)","v":0},{"$f":"$BJ65+$BK65-IFERROR(VLOOKUP($A66,[2]Amazon!$A$2:$F$17,5,FALSE),0)","v":0},{"$f":"IFERROR(VLOOKUP($A66,'[4]Payment Pivot'!$A$4:$B$39,2,FALSE),0)","v":0},{"$f":"$BL66+$BM65-IFERROR(VLOOKUP($A66,'[2]Myaccountaccess Pivot'!$A$4:$B$31,2,FALSE),0)","v":0},null,{"$f":"IFERROR(VLOOKUP($A66,'[6]export-2'!$A$2:$F$15,6,FALSE),BO65)","v":200},{"$f":"($AG$286*AE66)-G66","v":126.75521800135976},{"$f":"OFFSET(A66,0,'Cool Graph'!$H$1)","v":0},{"$f":"OFFSET(A66,0,'Cool Graph'!$I$1)","v":126.75521800135976}]
["2011-09-04",0,0,48.32,24.630000000000003,0,72.95,0,0,0,0,0,0,0,9.5500000000000007,0,0,15.08,0,0,0,0,0,2,2,0,0,{"$f":"SUM(X67,T67)","v":2},0,{"$f":"IFERROR(VLOOKUP($A67,[1]Sheet1!$A$4:$B$219,2,FALSE),0)","v":330},{"$f":"SUM(AC67,AD67)","v":330},461.72999999999956,{"$f":"$BH67+$BI66-IFERROR(VLOOKUP($A67,[2]Sheet2!$A$4:$B$82,2,FALSE),0)","v":999.82000000000016},{"$f":"$BJ66+$BK66-IFERROR(VLOOKUP($A67,[2]Amazon!$A$2:$F$17,5,FALSE),0)","v":0},{"$f":"$BL67+$BM66-IFERROR(VLOOKUP($A67,'[2]Myaccountaccess Pivot'!$A$4:$B$31,2,FALSE),0)","v":0},{"$f":"IFERROR(VLOOKUP($A67,'[2]export-1'!$A$2:$F$441,6,FALSE),AJ66)","v":767.05},{"$f":"IFERROR(VLOOKUP($A67,'[7]download-1'!$A$2:$F$513,6,FALSE),AK66)","v":-1.8758328224066645E-12},{"$f":"IFERROR(VLOOKUP($A67,'[3]TexttoColumn Amazon Balance'!$A$14:$B$30,2,FALSE),IF(AL68>0,AL68-50,0))","v":972.69},{"$f":"AL67+AK67+AJ67-AI67+AH67+AG67+BG67","v":3863.7499999999986},{"$f":"AM67+(AO67*49)+(AP67*9.5)+(AQ67*5.25)+(AR67*7)+(AS67*49)+(AT67*9.5)+(AU67*5.25)+BO67","v":8822.7499999999982},82,78,0,0,null,null,null,null,null,{"$f":"IFERROR(VLOOKUP($A67,'[2]export-1'!$A$446:$G$451,7,FALSE),0)","v":0},{"$f":"IFERROR(VLOOKUP($A67,[3]Sheet4!$A$4:$B$56,2,FALSE),0)","v":0},{"$f":"IFERROR(VLOOKUP($A67,'[3]headphones purchased'!$A$2:$G$27,6,FALSE),0)","v":0},{"$f":"ROUND(IFERROR(VLOOKUP($A67,'[4]download-1'!$A$471:$F$474,5,FALSE)/-9.5,0),0)","v":0},{"$f":"ROUND(IFERROR(VLOOKUP($A67,'[4]download-1'!$A$467:$F$469,5,FALSE)/-49,0),0)","v":0},{"$f":"IFERROR(VLOOKUP($A67,[5]Sheet8!$A$4:$B$89,2,FALSE),0)","v":0},null,null,1,{"$f":"IFERROR(VLOOKUP($A67,[3]Paypal!$A$2:$AA$1843,25,FALSE),0)","v":1124.19},{"$f":"IFERROR(VLOOKUP($A67,'[3]Paypal Money Sent Pivot'!$A$4:$B$97,2,FALSE),0)","v":0},{"$f":"$BH67+$BI66-IFERROR(VLOOKUP($A67,[2]Sheet2!$A$4:$B$82,2,FALSE),0)","v":999.82000000000016},{"$f":"IFERROR(VLOOKUP($A67,'[3]TexttoColumn Amazon Balance'!$A$14:$B$30,2,FALSE),0)","v":0},{"$f":"$BJ66+$BK66-IFERROR(VLOOKUP($A67,[2]Amazon!$A$2:$F$17,5,FALSE),0)","v":0},{"$f":"IFERROR(VLOOKUP($A67,'[4]Payment Pivot'!$A$4:$B$39,2,FALSE),0)","v":0},{"$f":"$BL67+$BM66-IFERROR(VLOOKUP($A67,'[2]Myaccountaccess Pivot'!$A$4:$B$31,2,FALSE),0)","v":0},null,{"$f":"IFERROR(VLOOKUP($A67,'[6]export-2'!$A$2:$F$15,6,FALSE),BO66)","v":200},66.789873834381112,{"$f":"OFFSET(A67,0,'Cool Graph'!$H$1)","v":0},{"$f":"OFFSET(A67,0,'Cool Graph'!$I$1)","v":66.789873834381112}]
["2011-09-05",0,0,65.63,44.89,0,110.52,0,0,0,2,0,0,0,22.5,0,0,22.39,0,0,0,0,0,4,4,0,0,4,0,{"$f":"IFERROR(VLOOKUP($A68,[1]Sheet1!$A$4:$B$219,2,FALSE),0)","v":660},660,{"$f":"AN68-AN67","v":401.73999999999978},{"$f":"$BH68+$BI67-IFERROR(VLOOKUP($A68,[2]Sheet2!$A$4:$B$82,2,FALSE),0)","v":1799.8200000000002},{"$f":"$BJ67+$BK67-IFERROR(VLOOKUP($A68,[2]Amazon!$A$2:$F$17,5,FALSE),0)","v":0},{"$f":"$BL68+$BM67-IFERROR(VLOOKUP($A68,'[2]Myaccountaccess Pivot'!$A$4:$B$31,2,FALSE),0)","v":0},{"$f":"IFERROR(VLOOKUP($A68,'[2]export-1'!$A$2:$F$441,6,FALSE),AJ67)","v":767.05},{"$f":"IFERROR(VLOOKUP($A68,'[7]download-1'!$A$2:$F$513,6,FALSE),AK67)","v":-1.8758328224066645E-12},{"$f":"IFERROR(VLOOKUP($A68,'[3]TexttoColumn Amazon Balance'!$A$14:$B$30,2,FALSE),IF(AL69>0,AL69-50,0))","v":1022.69},3617.4899999999984,9224.489999999998,{"$f":"AX68+AY68+AO67-AB68+BB68-BC68-AS68+BF68","v":96},74,{"$f":"BD68-V68-Z68+AQ67-AU68","v":0},{"$f":"BE68-W68-AA68+AR67","v":0},null,null,null,null,null,{"$f":"IFERROR(VLOOKUP($A68,'[2]export-1'!$A$446:$G$451,7,FALSE),0)","v":0},{"$f":"IFERROR(VLOOKUP($A68,[3]Sheet4!$A$4:$B$56,2,FALSE),0)","v":18},{"$f":"IFERROR(VLOOKUP($A68,'[3]headphones purchased'!$A$2:$G$27,6,FALSE),0)","v":0},{"$f":"ROUND(IFERROR(VLOOKUP($A68,'[4]download-1'!$A$471:$F$474,5,FALSE)/-9.5,0),0)","v":0},{"$f":"ROUND(IFERROR(VLOOKUP($A68,'[4]download-1'!$A$467:$F$469,5,FALSE)/-49,0),0)","v":0},{"$f":"IFERROR(VLOOKUP($A68,[5]Sheet8!$A$4:$B$89,2,FALSE),0)","v":0},null,null,0,{"$f":"IFERROR(VLOOKUP($A68,[3]Paypal!$A$2:$AA$1843,25,FALSE),0)","v":27.93},{"$f":"IFERROR(VLOOKUP($A68,'[3]Paypal Money Sent Pivot'!$A$4:$B$97,2,FALSE),0)","v":800},{"$f":"$BH68+$BI67-IFERROR(VLOOKUP($A68,[2]Sheet2!$A$4:$B$82,2,FALSE),0)","v":1799.8200000000002},{"$f":"IFERROR(VLOOKUP($A68,'[3]TexttoColumn Amazon Balance'!$A$14:$B$30,2,FALSE),0)","v":0},{"$f":"$BJ67+$BK67-IFERROR(VLOOKUP($A68,[2]Amazon!$A$2:$F$17,5,FALSE),0)","v":0},{"$f":"IFERROR(VLOOKUP($A68,'[4]Payment Pivot'!$A$4:$B$39,2,FALSE),0)","v":0},{"$f":"$BL68+$BM67-IFERROR(VLOOKUP($A68,'[2]Myaccountaccess Pivot'!$A$4:$B$31,2,FALSE),0)","v":0},null,{"$f":"IFERROR(VLOOKUP($A68,'[6]export-2'!$A$2:$F$15,6,FALSE),BO67)","v":200},168.95974766876225,{"$f":"OFFSET(A68,0,'Cool Graph'!$H$1)","v":0},{"$f":"OFFSET(A68,0,'Cool Graph'!$I$1)","v":168.95974766876225}]
["2011-09-06",0,3.86,68.3,22.67,2.82,97.649999999999991,0,0,0,4,1,1,0,16.920000000000002,1,0,5.75,0,1,0,0,0,4,4,0,0,5,163.99,{"$f":"IFERROR(VLOOKUP($A69,[1]Sheet1!$A$4:$B$219,2,FALSE),0)","v":660},823.99,-292.90999999999985,{"$f":"$BH69+$BI68-IFERROR(VLOOKUP($A69,[2]Sheet2!$A$4:$B$82,2,FALSE),0)","v":799.82000000000016},{"$f":"$BJ68+$BK68-IFERROR(VLOOKUP($A69,[2]Amazon!$A$2:$F$17,5,FALSE),0)","v":0},{"$f":"$BL69+$BM68-IFERROR(VLOOKUP($A69,'[2]Myaccountaccess Pivot'!$A$4:$B$31,2,FALSE),0)","v":0},{"$f":"IFERROR(VLOOKUP($A69,'[2]export-1'!$A$2:$F$441,6,FALSE),AJ68)","v":1037.74},{"$f":"IFERROR(VLOOKUP($A69,'[7]download-1'!$A$2:$F$513,6,FALSE),AK68)","v":-200.00000000000188},{"$f":"IFERROR(VLOOKUP($A69,'[3]TexttoColumn Amazon Balance'!$A$14:$B$30,2,FALSE),IF(AL70>0,AL70-50,0))","v":1072.69},3520.5799999999981,8931.5799999999981,92,74,0,0,null,null,null,null,null,{"$f":"IFERROR(VLOOKUP($A69,'[2]export-1'!$A$446:$G$451,7,FALSE),0)","v":0},{"$f":"IFERROR(VLOOKUP($A69,[3]Sheet4!$A$4:$B$56,2,FALSE),0)","v":0},{"$f":"IFERROR(VLOOKUP($A69,'[3]headphones purchased'!$A$2:$G$27,6,FALSE),0)","v":4},{"$f":"ROUND(IFERROR(VLOOKUP($A69,'[4]download-1'!$A$471:$F$474,5,FALSE)/-9.5,0),0)","v":0},{"$f":"ROUND(IFERROR(VLOOKUP($A69,'[4]download-1'!$A$467:$F$469,5,FALSE)/-49,0),0)","v":0},{"$f":"IFERROR(VLOOKUP($A69,[5]Sheet8!$A$4:$B$89,2,FALSE),0)","v":0},null,null,1,{"$f":"IFERROR(VLOOKUP($A69,[3]Paypal!$A$2:$AA$1843,25,FALSE),0)","v":810.33},{"$f":"IFERROR(VLOOKUP($A69,'[3]Paypal Money Sent Pivot'!$A$4:$B$97,2,FALSE),0)","v":0},{"$f":"$BH69+$BI68-IFERROR(VLOOKUP($A69,[2]Sheet2!$A$4:$B$82,2,FALSE),0)","v":799.82000000000016},{"$f":"IFERROR(VLOOKUP($A69,'[3]TexttoColumn Amazon Balance'!$A$14:$B$30,2,FALSE),0)","v":0},{"$f":"$BJ68+$BK68-IFERROR(VLOOKUP($A69,[2]Amazon!$A$2:$F$17,5,FALSE),0)","v":0},{"$f":"IFERROR(VLOOKUP($A69,'[4]Payment Pivot'!$A$4:$B$39,2,FALSE),0)","v":0},{"$f":"$BL69+$BM68-IFERROR(VLOOKUP($A69,'[2]Myaccountaccess Pivot'!$A$4:$B$31,2,FALSE),0)","v":0},null,{"$f":"IFERROR(VLOOKUP($A69,'[6]export-2'!$A$2:$F$15,6,FALSE),BO68)","v":200},251.27199588118702,{"$f":"OFFSET(A69,0,'Cool Graph'!$H$1)","v":0},{"$f":"OFFSET(A69,0,'Cool Graph'!$I$1)","v":251.27199588118702}]
["2011-09-07",0,8.69,47.9,15.129999999999999,5.59,77.31,0,0,0,2,0,0,0,8.4499999999999993,0,0,6.68,0,0,0,0,0,2,2,0,0,2,0,{"$f":"IFERROR(VLOOKUP($A70,[1]Sheet1!$A$4:$B$219,2,FALSE),0)","v":330},330,147.80999999999949,{"$f":"$BH70+$BI69-IFERROR(VLOOKUP($A70,[2]Sheet2!$A$4:$B$82,2,FALSE),0)","v":1599.8200000000002},{"$f":"$BJ69+$BK69-IFERROR(VLOOKUP($A70,[2]Amazon!$A$2:$F$17,5,FALSE),0)","v":0},{"$f":"$BL70+$BM69-IFERROR(VLOOKUP($A70,'[2]Myaccountaccess Pivot'!$A$4:$B$31,2,FALSE),0)","v":0},{"$f":"IFERROR(VLOOKUP($A70,'[2]export-1'!$A$2:$F$441,6,FALSE),AJ69)","v":1017.74},{"$f":"IFERROR(VLOOKUP($A70,'[7]download-1'!$A$2:$F$513,6,FALSE),AK69)","v":-250.67000000000189},{"$f":"IFERROR(VLOOKUP($A70,'[3]TexttoColumn Amazon Balance'!$A$14:$B$30,2,FALSE),IF(AL71>0,AL71-50,0))","v":1122.69},3785.3899999999981,9079.3899999999976,90,{"$f":"AP69+AZ70+BA70-Y70-U70-AT70","v":72},0,0,null,null,null,null,null,{"$f":"IFERROR(VLOOKUP($A70,'[2]export-1'!$A$446:$G$451,7,FALSE),0)","v":0},{"$f":"IFERROR(VLOOKUP($A70,[3]Sheet4!$A$4:$B$56,2,FALSE),0)","v":0},{"$f":"IFERROR(VLOOKUP($A70,'[3]headphones purchased'!$A$2:$G$27,6,FALSE),0)","v":0},{"$f":"ROUND(IFERROR(VLOOKUP($A70,'[4]download-1'!$A$471:$F$474,5,FALSE)/-9.5,0),0)","v":0},{"$f":"ROUND(IFERROR(VLOOKUP($A70,'[4]download-1'!$A$467:$F$469,5,FALSE)/-49,0),0)","v":0},{"$f":"IFERROR(VLOOKUP($A70,[5]Sheet8!$A$4:$B$89,2,FALSE),0)","v":0},null,null,0,{"$f":"IFERROR(VLOOKUP($A70,[3]Paypal!$A$2:$AA$1843,25,FALSE),0)","v":295.81},{"$f":"IFERROR(VLOOKUP($A70,'[3]Paypal Money Sent Pivot'!$A$4:$B$97,2,FALSE),0)","v":800},{"$f":"$BH70+$BI69-IFERROR(VLOOKUP($A70,[2]Sheet2!$A$4:$B$82,2,FALSE),0)","v":1599.8200000000002},{"$f":"IFERROR(VLOOKUP($A70,'[3]TexttoColumn Amazon Balance'!$A$14:$B$30,2,FALSE),0)","v":0},{"$f":"$BJ69+$BK69-IFERROR(VLOOKUP($A70,[2]Amazon!$A$2:$F$17,5,FALSE),0)","v":0},{"$f":"IFERROR(VLOOKUP($A70,'[4]Payment Pivot'!$A$4:$B$39,2,FALSE),0)","v":0},{"$f":"$BL70+$BM69-IFERROR(VLOOKUP($A70,'[2]Myaccountaccess Pivot'!$A$4:$B$31,2,FALSE),0)","v":0},null,{"$f":"IFERROR(VLOOKUP($A70,'[6]export-2'!$A$2:$F$15,6,FALSE),BO69)","v":200},62.429873834381112,{"$f":"OFFSET(A70,0,'Cool Graph'!$H$1)","v":0},{"$f":"OFFSET(A70,0,'Cool Graph'!$I$1)","v":62.429873834381112}]
["2011-09-08",0,11.16,54.05,15.149999999999999,1.42,81.779999999999987,0,1,0,1,0,0,0,10.01,0,0,5.14,0,4,2,0,0,8,8,0,0,12,985.43,{"$f":"IFERROR(VLOOKUP($A71,[1]Sheet1!$A$4:$B$219,2,FALSE),0)","v":1320},2305.4299999999998,-512.18999999999869,{"$f":"$BH71+$BI70-IFERROR(VLOOKUP($A71,[2]Sheet2!$A$4:$B$82,2,FALSE),0)","v":1389.8200000000002},{"$f":"$BJ70+$BK70-IFERROR(VLOOKUP($A71,[2]Amazon!$A$2:$F$17,5,FALSE),0)","v":0},{"$f":"$BL71+$BM70-IFERROR(VLOOKUP($A71,'[2]Myaccountaccess Pivot'!$A$4:$B$31,2,FALSE),0)","v":0},{"$f":"IFERROR(VLOOKUP($A71,'[2]export-1'!$A$2:$F$441,6,FALSE),AJ70)","v":1279.24},{"$f":"IFERROR(VLOOKUP($A71,'[7]download-1'!$A$2:$F$513,6,FALSE),AK70)","v":-250.67000000000189},{"$f":"IFERROR(VLOOKUP($A71,'[3]TexttoColumn Amazon Balance'!$A$14:$B$30,2,FALSE),IF(AL72>0,AL72-50,0))","v":1172.69},3613.1999999999985,8567.1999999999989,85,62,0,0,null,null,null,null,null,{"$f":"IFERROR(VLOOKUP($A71,'[2]export-1'!$A$446:$G$451,7,FALSE),0)","v":0},{"$f":"IFERROR(VLOOKUP($A71,[3]Sheet4!$A$4:$B$56,2,FALSE),0)","v":6},{"$f":"IFERROR(VLOOKUP($A71,'[3]headphones purchased'!$A$2:$G$27,6,FALSE),0)","v":0},{"$f":"ROUND(IFERROR(VLOOKUP($A71,'[4]download-1'!$A$471:$F$474,5,FALSE)/-9.5,0),0)","v":0},{"$f":"ROUND(IFERROR(VLOOKUP($A71,'[4]download-1'!$A$467:$F$469,5,FALSE)/-49,0),0)","v":0},{"$f":"IFERROR(VLOOKUP($A71,[5]Sheet8!$A$4:$B$89,2,FALSE),0)","v":0},null,null,1,{"$f":"IFERROR(VLOOKUP($A71,[3]Paypal!$A$2:$AA$1843,25,FALSE),0)","v":22.12},{"$f":"IFERROR(VLOOKUP($A71,'[3]Paypal Money Sent Pivot'!$A$4:$B$97,2,FALSE),0)","v":590},{"$f":"$BH71+$BI70-IFERROR(VLOOKUP($A71,[2]Sheet2!$A$4:$B$82,2,FALSE),0)","v":1389.8200000000002},{"$f":"IFERROR(VLOOKUP($A71,'[3]TexttoColumn Amazon Balance'!$A$14:$B$30,2,FALSE),0)","v":0},{"$f":"$BJ70+$BK70-IFERROR(VLOOKUP($A71,[2]Amazon!$A$2:$F$17,5,FALSE),0)","v":0},{"$f":"IFERROR(VLOOKUP($A71,'[4]Payment Pivot'!$A$4:$B$39,2,FALSE),0)","v":0},{"$f":"$BL71+$BM70-IFERROR(VLOOKUP($A71,'[2]Myaccountaccess Pivot'!$A$4:$B$31,2,FALSE),0)","v":0},null,{"$f":"IFERROR(VLOOKUP($A71,'[6]export-2'!$A$2:$F$15,6,FALSE),BO70)","v":200},894.46393131514321,{"$f":"OFFSET(A71,0,'Cool Graph'!$H$1)","v":0},{"$f":"OFFSET(A71,0,'Cool Graph'!$I$1)","v":894.46393131514321}]
["2011-09-09",0,18.53,41.220000000000006,14.290000000000001,6.69,80.73,0,0,0,2,1,0,0,11.38,1,0,2.91,0,1,0,0,0,3,3,0,0,4,160,{"$f":"IFERROR(VLOOKUP($A72,[1]Sheet1!$A$4:$B$219,2,FALSE),0)","v":495},655,177.43999999999869,{"$f":"$BH72+$BI71-IFERROR(VLOOKUP($A72,[2]Sheet2!$A$4:$B$82,2,FALSE),0)","v":589.82000000000016},{"$f":"$BJ71+$BK71-IFERROR(VLOOKUP($A72,[2]Amazon!$A$2:$F$17,5,FALSE),0)","v":0},{"$f":"$BL72+$BM71-IFERROR(VLOOKUP($A72,'[2]Myaccountaccess Pivot'!$A$4:$B$31,2,FALSE),0)","v":0},{"$f":"IFERROR(VLOOKUP($A72,'[2]export-1'!$A$2:$F$441,6,FALSE),AJ71)","v":2079.2399999999998},{"$f":"IFERROR(VLOOKUP($A72,'[7]download-1'!$A$2:$F$513,6,FALSE),AK71)","v":-899.63000000000193},{"$f":"IFERROR(VLOOKUP($A72,'[3]TexttoColumn Amazon Balance'!$A$14:$B$30,2,FALSE),IF(AL73>0,AL73-50,0))","v":1222.69},3483.1399999999981,8744.6399999999976,81,115,0,0,null,null,null,null,null,{"$f":"IFERROR(VLOOKUP($A72,'[2]export-1'!$A$446:$G$451,7,FALSE),0)","v":0},{"$f":"IFERROR(VLOOKUP($A72,[3]Sheet4!$A$4:$B$56,2,FALSE),0)","v":0},{"$f":"IFERROR(VLOOKUP($A72,'[3]headphones purchased'!$A$2:$G$27,6,FALSE),0)","v":56},{"$f":"ROUND(IFERROR(VLOOKUP($A72,'[4]download-1'!$A$471:$F$474,5,FALSE)/-9.5,0),0)","v":0},{"$f":"ROUND(IFERROR(VLOOKUP($A72,'[4]download-1'!$A$467:$F$469,5,FALSE)/-49,0),0)","v":0},{"$f":"IFERROR(VLOOKUP($A72,[5]Sheet8!$A$4:$B$89,2,FALSE),0)","v":0},null,null,0,{"$f":"IFERROR(VLOOKUP($A72,[3]Paypal!$A$2:$AA$1843,25,FALSE),0)","v":491.02},{"$f":"IFERROR(VLOOKUP($A72,'[3]Paypal Money Sent Pivot'!$A$4:$B$97,2,FALSE),0)","v":0},{"$f":"$BH72+$BI71-IFERROR(VLOOKUP($A72,[2]Sheet2!$A$4:$B$82,2,FALSE),0)","v":589.82000000000016},{"$f":"IFERROR(VLOOKUP($A72,'[3]TexttoColumn Amazon Balance'!$A$14:$B$30,2,FALSE),0)","v":0},{"$f":"$BJ71+$BK71-IFERROR(VLOOKUP($A72,[2]Amazon!$A$2:$F$17,5,FALSE),0)","v":0},{"$f":"IFERROR(VLOOKUP($A72,'[4]Payment Pivot'!$A$4:$B$39,2,FALSE),0)","v":0},{"$f":"$BL72+$BM71-IFERROR(VLOOKUP($A72,'[2]Myaccountaccess Pivot'!$A$4:$B$31,2,FALSE),0)","v":0},null,{"$f":"IFERROR(VLOOKUP($A72,'[6]export-2'!$A$2:$F$15,6,FALSE),BO71)","v":200},196.63247685308977,{"$f":"OFFSET(A72,0,'Cool Graph'!$H$1)","v":0},{"$f":"OFFSET(A72,0,'Cool Graph'!$I$1)","v":196.63247685308977}]
["2011-09-10",0,10.7,32.239999999999995,24.439999999999998,5.15,72.53,0,0,0,0,0,0,0,22.22,0,0,2.2200000000000002,0,2,0,0,0,0,0,0,0,2,339.11,{"$f":"IFERROR(VLOOKUP($A73,[1]Sheet1!$A$4:$B$219,2,FALSE),0)","v":0},339.11,-490.01999999999862,{"$f":"$BH73+$BI72-IFERROR(VLOOKUP($A73,[2]Sheet2!$A$4:$B$82,2,FALSE),0)","v":589.82000000000016},{"$f":"$BJ72+$BK72-IFERROR(VLOOKUP($A73,[2]Amazon!$A$2:$F$17,5,FALSE),0)","v":0},{"$f":"$BL73+$BM72-IFERROR(VLOOKUP($A73,'[2]Myaccountaccess Pivot'!$A$4:$B$31,2,FALSE),0)","v":0},{"$f":"IFERROR(VLOOKUP($A73,'[2]export-1'!$A$2:$F$441,6,FALSE),AJ72)","v":2079.2399999999998},{"$f":"IFERROR(VLOOKUP($A73,'[7]download-1'!$A$2:$F$513,6,FALSE),AK72)","v":-899.63000000000193},{"$f":"IFERROR(VLOOKUP($A73,'[3]TexttoColumn Amazon Balance'!$A$14:$B$30,2,FALSE),IF(AL74>0,AL74-50,0))","v":1272.69},3042.1199999999981,8254.619999999999,80,115,0,0,null,null,null,null,null,{"$f":"IFERROR(VLOOKUP($A73,'[2]export-1'!$A$446:$G$451,7,FALSE),0)","v":0},{"$f":"IFERROR(VLOOKUP($A73,[3]Sheet4!$A$4:$B$56,2,FALSE),0)","v":0},{"$f":"IFERROR(VLOOKUP($A73,'[3]headphones purchased'!$A$2:$G$27,6,FALSE),0)","v":0},{"$f":"ROUND(IFERROR(VLOOKUP($A73,'[4]download-1'!$A$471:$F$474,5,FALSE)/-9.5,0),0)","v":0},{"$f":"ROUND(IFERROR(VLOOKUP($A73,'[4]download-1'!$A$467:$F$469,5,FALSE)/-49,0),0)","v":0},{"$f":"IFERROR(VLOOKUP($A73,[5]Sheet8!$A$4:$B$89,2,FALSE),0)","v":0},null,null,1,{"$f":"IFERROR(VLOOKUP($A73,[3]Paypal!$A$2:$AA$1843,25,FALSE),0)","v":0},{"$f":"IFERROR(VLOOKUP($A73,'[3]Paypal Money Sent Pivot'!$A$4:$B$97,2,FALSE),0)","v":0},{"$f":"$BH73+$BI72-IFERROR(VLOOKUP($A73,[2]Sheet2!$A$4:$B$82,2,FALSE),0)","v":589.82000000000016},{"$f":"IFERROR(VLOOKUP($A73,'[3]TexttoColumn Amazon Balance'!$A$14:$B$30,2,FALSE),0)","v":1272.69},{"$f":"$BJ72+$BK72-IFERROR(VLOOKUP($A73,[2]Amazon!$A$2:$F$17,5,FALSE),0)","v":0},{"$f":"IFERROR(VLOOKUP($A73,'[4]Payment Pivot'!$A$4:$B$39,2,FALSE),0)","v":0},{"$f":"$BL73+$BM72-IFERROR(VLOOKUP($A73,'[2]Myaccountaccess Pivot'!$A$4:$B$31,2,FALSE),0)","v":0},null,{"$f":"IFERROR(VLOOKUP($A73,'[6]export-2'!$A$2:$F$15,6,FALSE),BO72)","v":200},71.067541260536302,{"$f":"OFFSET(A73,0,'Cool Graph'!$H$1)","v":0},{"$f":"OFFSET(A73,0,'Cool Graph'!$I$1)","v":71.067541260536302}]
["2011-09-11",0,20.54,46.77,7.26,0,74.570000000000007,0,1,0,0,0,0,0,5.47,0,0,1.79,0,2,0,0,0,3,3,0,0,5,329.05,{"$f":"IFERROR(VLOOKUP($A74,[1]Sheet1!$A$4:$B$219,2,FALSE),0)","v":495},824.05,767.70999999999913,{"$f":"$BH74+$BI73-IFERROR(VLOOKUP($A74,[2]Sheet2!$A$4:$B$82,2,FALSE),0)","v":589.82000000000016},{"$f":"$BJ73+$BK73-IFERROR(VLOOKUP($A74,[2]Amazon!$A$2:$F$17,5,FALSE),0)","v":1272.69},{"$f":"$BL74+$BM73-IFERROR(VLOOKUP($A74,'[2]Myaccountaccess Pivot'!$A$4:$B$31,2,FALSE),0)","v":0},{"$f":"IFERROR(VLOOKUP($A74,'[2]export-1'!$A$2:$F$441,6,FALSE),AJ73)","v":2079.2399999999998},{"$f":"IFERROR(VLOOKUP($A74,'[7]download-1'!$A$2:$F$513,6,FALSE),AK73)","v":-899.63000000000193},{"$f":"IFERROR(VLOOKUP($A74,'[3]TexttoColumn Amazon Balance'!$A$14:$B$30,2,FALSE),IF(AL75>0,AL75-50,0))","v":70.460000000000036},4083.3299999999981,9022.3299999999981,75,112,0,0,null,null,null,null,null,{"$f":"IFERROR(VLOOKUP($A74,'[2]export-1'!$A$446:$G$451,7,FALSE),0)","v":0},{"$f":"IFERROR(VLOOKUP($A74,[3]Sheet4!$A$4:$B$56,2,FALSE),0)","v":0},{"$f":"IFERROR(VLOOKUP($A74,'[3]headphones purchased'!$A$2:$G$27,6,FALSE),0)","v":0},{"$f":"ROUND(IFERROR(VLOOKUP($A74,'[4]download-1'!$A$471:$F$474,5,FALSE)/-9.5,0),0)","v":0},{"$f":"ROUND(IFERROR(VLOOKUP($A74,'[4]download-1'!$A$467:$F$469,5,FALSE)/-49,0),0)","v":0},{"$f":"IFERROR(VLOOKUP($A74,[5]Sheet8!$A$4:$B$89,2,FALSE),0)","v":0},null,null,0,{"$f":"IFERROR(VLOOKUP($A74,[3]Paypal!$A$2:$AA$1843,25,FALSE),0)","v":970.75},{"$f":"IFERROR(VLOOKUP($A74,'[3]Paypal Money Sent Pivot'!$A$4:$B$97,2,FALSE),0)","v":0},{"$f":"$BH74+$BI73-IFERROR(VLOOKUP($A74,[2]Sheet2!$A$4:$B$82,2,FALSE),0)","v":589.82000000000016},{"$f":"IFERROR(VLOOKUP($A74,'[3]TexttoColumn Amazon Balance'!$A$14:$B$30,2,FALSE),0)","v":0},{"$f":"$BJ73+$BK73-IFERROR(VLOOKUP($A74,[2]Amazon!$A$2:$F$17,5,FALSE),0)","v":1272.69},{"$f":"IFERROR(VLOOKUP($A74,'[4]Payment Pivot'!$A$4:$B$39,2,FALSE),0)","v":0},{"$f":"$BL74+$BM73-IFERROR(VLOOKUP($A74,'[2]Myaccountaccess Pivot'!$A$4:$B$31,2,FALSE),0)","v":0},null,{"$f":"IFERROR(VLOOKUP($A74,'[6]export-2'!$A$2:$F$15,6,FALSE),BO73)","v":200},274.37740313097504,{"$f":"OFFSET(A74,0,'Cool Graph'!$H$1)","v":0},{"$f":"OFFSET(A74,0,'Cool Graph'!$I$1)","v":274.37740313097504}]
["2011-09-12",0,15.52,40.119999999999997,6.0200000000000005,0,61.660000000000004,0,0,0,2,0,0,0,4.6900000000000004,0,0,1.33,0,2,0,0,0,4,4,0,0,6,330.06,{"$f":"IFERROR(VLOOKUP($A75,[1]Sheet1!$A$4:$B$219,2,FALSE),0)","v":660},990.06,545.43000000000029,{"$f":"$BH75+$BI74-IFERROR(VLOOKUP($A75,[2]Sheet2!$A$4:$B$82,2,FALSE),0)","v":-0.17999999999983629},{"$f":"$BJ74+$BK74-IFERROR(VLOOKUP($A75,[2]Amazon!$A$2:$F$17,5,FALSE),0)","v":1272.69},{"$f":"$BL75+$BM74-IFERROR(VLOOKUP($A75,'[2]Myaccountaccess Pivot'!$A$4:$B$31,2,FALSE),0)","v":0},{"$f":"IFERROR(VLOOKUP($A75,'[2]export-1'!$A$2:$F$441,6,FALSE),AJ74)","v":2669.24},{"$f":"IFERROR(VLOOKUP($A75,'[7]download-1'!$A$2:$F$513,6,FALSE),AK74)","v":-899.63000000000193},{"$f":"IFERROR(VLOOKUP($A75,'[3]TexttoColumn Amazon Balance'!$A$14:$B$30,2,FALSE),IF(AL76>0,AL76-50,0))","v":120.46000000000004},4911.7599999999984,9567.7599999999984,70,108,0,0,null,null,null,null,null,{"$f":"IFERROR(VLOOKUP($A75,'[2]export-1'!$A$446:$G$451,7,FALSE),0)","v":0},{"$f":"IFERROR(VLOOKUP($A75,[3]Sheet4!$A$4:$B$56,2,FALSE),0)","v":0},{"$f":"IFERROR(VLOOKUP($A75,'[3]headphones purchased'!$A$2:$G$27,6,FALSE),0)","v":0},{"$f":"ROUND(IFERROR(VLOOKUP($A75,'[4]download-1'!$A$471:$F$474,5,FALSE)/-9.5,0),0)","v":0},{"$f":"ROUND(IFERROR(VLOOKUP($A75,'[4]download-1'!$A$467:$F$469,5,FALSE)/-49,0),0)","v":0},{"$f":"IFERROR(VLOOKUP($A75,[5]Sheet8!$A$4:$B$89,2,FALSE),0)","v":0},null,null,1,{"$f":"IFERROR(VLOOKUP($A75,[3]Paypal!$A$2:$AA$1843,25,FALSE),0)","v":1749.18},{"$f":"IFERROR(VLOOKUP($A75,'[3]Paypal Money Sent Pivot'!$A$4:$B$97,2,FALSE),0)","v":0},{"$f":"$BH75+$BI74-IFERROR(VLOOKUP($A75,[2]Sheet2!$A$4:$B$82,2,FALSE),0)","v":-0.17999999999983629},{"$f":"IFERROR(VLOOKUP($A75,'[3]TexttoColumn Amazon Balance'!$A$14:$B$30,2,FALSE),0)","v":0},{"$f":"$BJ74+$BK74-IFERROR(VLOOKUP($A75,[2]Amazon!$A$2:$F$17,5,FALSE),0)","v":1272.69},{"$f":"IFERROR(VLOOKUP($A75,'[4]Payment Pivot'!$A$4:$B$39,2,FALSE),0)","v":0},{"$f":"$BL75+$BM74-IFERROR(VLOOKUP($A75,'[2]Myaccountaccess Pivot'!$A$4:$B$31,2,FALSE),0)","v":0},null,{"$f":"IFERROR(VLOOKUP($A75,'[6]export-2'!$A$2:$F$15,6,FALSE),BO74)","v":200},357.58502875293141,{"$f":"OFFSET(A75,0,'Cool Graph'!$H$1)","v":0},{"$f":"OFFSET(A75,0,'Cool Graph'!$I$1)","v":357.58502875293141}]
["2011-09-13",0,13.97,51.980000000000004,7.35,2.56,75.86,0,0,0,0,1,0,0,5.05,0,0,2.2999999999999998,1,0,0,0,0,2,2,0,0,2,0,{"$f":"IFERROR(VLOOKUP($A76,[1]Sheet1!$A$4:$B$219,2,FALSE),0)","v":330},330,182.44999999999891,{"$f":"$BH76+$BI75-IFERROR(VLOOKUP($A76,[2]Sheet2!$A$4:$B$82,2,FALSE),0)","v":-0.17999999999983629},{"$f":"$BJ75+$BK75-IFERROR(VLOOKUP($A76,[2]Amazon!$A$2:$F$17,5,FALSE),0)","v":0},{"$f":"$BL76+$BM75-IFERROR(VLOOKUP($A76,'[2]Myaccountaccess Pivot'!$A$4:$B$31,2,FALSE),0)","v":0},{"$f":"IFERROR(VLOOKUP($A76,'[2]export-1'!$A$2:$F$441,6,FALSE),AJ75)","v":3897.1299999999997},{"$f":"IFERROR(VLOOKUP($A76,'[7]download-1'!$A$2:$F$513,6,FALSE),AK75)","v":-899.63000000000193},{"$f":"IFERROR(VLOOKUP($A76,'[3]TexttoColumn Amazon Balance'!$A$14:$B$30,2,FALSE),IF(AL77>0,AL77-50,0))","v":170.46000000000004},3447.2099999999978,9750.2099999999973,104,106,0,0,null,null,null,null,null,{"$f":"IFERROR(VLOOKUP($A76,'[2]export-1'!$A$446:$G$451,7,FALSE),0)","v":0},{"$f":"IFERROR(VLOOKUP($A76,[3]Sheet4!$A$4:$B$56,2,FALSE),0)","v":36},{"$f":"IFERROR(VLOOKUP($A76,'[3]headphones purchased'!$A$2:$G$27,6,FALSE),0)","v":0},{"$f":"ROUND(IFERROR(VLOOKUP($A76,'[4]download-1'!$A$471:$F$474,5,FALSE)/-9.5,0),0)","v":0},{"$f":"ROUND(IFERROR(VLOOKUP($A76,'[4]download-1'!$A$467:$F$469,5,FALSE)/-49,0),0)","v":0},{"$f":"IFERROR(VLOOKUP($A76,[5]Sheet8!$A$4:$B$89,2,FALSE),0)","v":0},null,null,0,{"$f":"IFERROR(VLOOKUP($A76,[3]Paypal!$A$2:$AA$1843,25,FALSE),0)","v":279.43},{"$f":"IFERROR(VLOOKUP($A76,'[3]Paypal Money Sent Pivot'!$A$4:$B$97,2,FALSE),0)","v":0},{"$f":"$BH76+$BI75-IFERROR(VLOOKUP($A76,[2]Sheet2!$A$4:$B$82,2,FALSE),0)","v":-0.17999999999983629},{"$f":"IFERROR(VLOOKUP($A76,'[3]TexttoColumn Amazon Balance'!$A$14:$B$30,2,FALSE),0)","v":0},{"$f":"$BJ75+$BK75-IFERROR(VLOOKUP($A76,[2]Amazon!$A$2:$F$17,5,FALSE),0)","v":0},{"$f":"IFERROR(VLOOKUP($A76,'[4]Payment Pivot'!$A$4:$B$39,2,FALSE),0)","v":0},{"$f":"$BL76+$BM75-IFERROR(VLOOKUP($A76,'[2]Myaccountaccess Pivot'!$A$4:$B$31,2,FALSE),0)","v":0},null,{"$f":"IFERROR(VLOOKUP($A76,'[6]export-2'!$A$2:$F$15,6,FALSE),BO75)","v":200},63.879873834381115,{"$f":"OFFSET(A76,0,'Cool Graph'!$H$1)","v":0},{"$f":"OFFSET(A76,0,'Cool Graph'!$I$1)","v":63.879873834381115}]
["2011-09-14",0,9.32,43.54,10.24,2.56,65.66,0,0,0,3,0,0,0,8.65,0,0,1.59,0,0,0,0,0,5,5,0,0,5,0,{"$f":"IFERROR(VLOOKUP($A77,[1]Sheet1!$A$4:$B$219,2,FALSE),0)","v":825},825,706.32000000000153,{"$f":"$BH77+$BI76-IFERROR(VLOOKUP($A77,[2]Sheet2!$A$4:$B$82,2,FALSE),0)","v":999.82000000000016},{"$f":"$BJ76+$BK76-IFERROR(VLOOKUP($A77,[2]Amazon!$A$2:$F$17,5,FALSE),0)","v":0},{"$f":"$BL77+$BM76-IFERROR(VLOOKUP($A77,'[2]Myaccountaccess Pivot'!$A$4:$B$31,2,FALSE),0)","v":0},{"$f":"IFERROR(VLOOKUP($A77,'[2]export-1'!$A$2:$F$441,6,FALSE),AJ76)","v":3897.1299999999997},{"$f":"IFERROR(VLOOKUP($A77,'[7]download-1'!$A$2:$F$513,6,FALSE),AK76)","v":-911.58000000000197},{"$f":"IFERROR(VLOOKUP($A77,'[3]TexttoColumn Amazon Balance'!$A$14:$B$30,2,FALSE),IF(AL78>0,AL78-50,0))","v":220.46000000000004},4397.0299999999979,10456.529999999999,100,101,0,0,null,null,null,null,null,{"$f":"IFERROR(VLOOKUP($A77,'[2]export-1'!$A$446:$G$451,7,FALSE),0)","v":0},{"$f":"IFERROR(VLOOKUP($A77,[3]Sheet4!$A$4:$B$56,2,FALSE),0)","v":0},{"$f":"IFERROR(VLOOKUP($A77,'[3]headphones purchased'!$A$2:$G$27,6,FALSE),0)","v":0},{"$f":"ROUND(IFERROR(VLOOKUP($A77,'[4]download-1'!$A$471:$F$474,5,FALSE)/-9.5,0),0)","v":0},{"$f":"ROUND(IFERROR(VLOOKUP($A77,'[4]download-1'!$A$467:$F$469,5,FALSE)/-49,0),0)","v":0},{"$f":"IFERROR(VLOOKUP($A77,[5]Sheet8!$A$4:$B$89,2,FALSE),0)","v":0},null,null,1,{"$f":"IFERROR(VLOOKUP($A77,[3]Paypal!$A$2:$AA$1843,25,FALSE),0)","v":191.2},{"$f":"IFERROR(VLOOKUP($A77,'[3]Paypal Money Sent Pivot'!$A$4:$B$97,2,FALSE),0)","v":1000},{"$f":"$BH77+$BI76-IFERROR(VLOOKUP($A77,[2]Sheet2!$A$4:$B$82,2,FALSE),0)","v":999.82000000000016},{"$f":"IFERROR(VLOOKUP($A77,'[3]TexttoColumn Amazon Balance'!$A$14:$B$30,2,FALSE),0)","v":0},{"$f":"$BJ76+$BK76-IFERROR(VLOOKUP($A77,[2]Amazon!$A$2:$F$17,5,FALSE),0)","v":0},{"$f":"IFERROR(VLOOKUP($A77,'[4]Payment Pivot'!$A$4:$B$39,2,FALSE),0)","v":0},{"$f":"$BL77+$BM76-IFERROR(VLOOKUP($A77,'[2]Myaccountaccess Pivot'!$A$4:$B$31,2,FALSE),0)","v":0},null,{"$f":"IFERROR(VLOOKUP($A77,'[6]export-2'!$A$2:$F$15,6,FALSE),BO76)","v":200},283.68968458595282,{"$f":"OFFSET(A77,0,'Cool Graph'!$H$1)","v":0},{"$f":"OFFSET(A77,0,'Cool Graph'!$I$1)","v":283.68968458595282}]
["2011-09-15",0,21.62,28.740000000000002,11.93,2.09,64.38,0,0,0,0,0,0,0,10.79,0,0,1.1399999999999999,0,0,0,0,0,3,3,0,0,3,0,{"$f":"IFERROR(VLOOKUP($A78,[1]Sheet1!$A$4:$B$219,2,FALSE),0)","v":495},495,-74.580000000001746,{"$f":"$BH78+$BI77-IFERROR(VLOOKUP($A78,[2]Sheet2!$A$4:$B$82,2,FALSE),0)","v":999.82000000000016},{"$f":"$BJ77+$BK77-IFERROR(VLOOKUP($A78,[2]Amazon!$A$2:$F$17,5,FALSE),0)","v":0},{"$f":"$BL78+$BM77-IFERROR(VLOOKUP($A78,'[2]Myaccountaccess Pivot'!$A$4:$B$31,2,FALSE),0)","v":899.63},{"$f":"IFERROR(VLOOKUP($A78,'[2]export-1'!$A$2:$F$441,6,FALSE),AJ77)","v":2727.1299999999997},{"$f":"IFERROR(VLOOKUP($A78,'[7]download-1'!$A$2:$F$513,6,FALSE),AK77)","v":-11.950000000001932},{"$f":"IFERROR(VLOOKUP($A78,'[3]TexttoColumn Amazon Balance'!$A$14:$B$30,2,FALSE),IF(AL79>0,AL79-50,0))","v":270.46000000000004},3697.9499999999975,10381.949999999997,97,98,0,0,null,null,null,null,null,{"$f":"IFERROR(VLOOKUP($A78,'[2]export-1'!$A$446:$G$451,7,FALSE),0)","v":0},{"$f":"IFERROR(VLOOKUP($A78,[3]Sheet4!$A$4:$B$56,2,FALSE),0)","v":0},{"$f":"IFERROR(VLOOKUP($A78,'[3]headphones purchased'!$A$2:$G$27,6,FALSE),0)","v":0},{"$f":"ROUND(IFERROR(VLOOKUP($A78,'[4]download-1'!$A$471:$F$474,5,FALSE)/-9.5,0),0)","v":0},{"$f":"ROUND(IFERROR(VLOOKUP($A78,'[4]download-1'!$A$467:$F$469,5,FALSE)/-49,0),0)","v":0},{"$f":"IFERROR(VLOOKUP($A78,[5]Sheet8!$A$4:$B$89,2,FALSE),0)","v":0},null,null,0,{"$f":"IFERROR(VLOOKUP($A78,[3]Paypal!$A$2:$AA$1843,25,FALSE),0)","v":612.12},{"$f":"IFERROR(VLOOKUP($A78,'[3]Paypal Money Sent Pivot'!$A$4:$B$97,2,FALSE),0)","v":0},{"$f":"$BH78+$BI77-IFERROR(VLOOKUP($A78,[2]Sheet2!$A$4:$B$82,2,FALSE),0)","v":999.82000000000016},{"$f":"IFERROR(VLOOKUP($A78,'[3]TexttoColumn Amazon Balance'!$A$14:$B$30,2,FALSE),0)","v":0},{"$f":"$BJ77+$BK77-IFERROR(VLOOKUP($A78,[2]Amazon!$A$2:$F$17,5,FALSE),0)","v":0},{"$f":"IFERROR(VLOOKUP($A78,'[4]Payment Pivot'!$A$4:$B$39,2,FALSE),0)","v":899.63},{"$f":"$BL78+$BM77-IFERROR(VLOOKUP($A78,'[2]Myaccountaccess Pivot'!$A$4:$B$31,2,FALSE),0)","v":899.63},null,{"$f":"IFERROR(VLOOKUP($A78,'[6]export-2'!$A$2:$F$15,6,FALSE),BO77)","v":1000},145.22981075157168,{"$f":"OFFSET(A78,0,'Cool Graph'!$H$1)","v":0},{"$f":"OFFSET(A78,0,'Cool Graph'!$I$1)","v":145.22981075157168}]
["2011-09-16",0,31.5,32.510000000000005,11.33,5.61,80.95,0,2,0,1,0,0,0,10.3,0,0,1.03,0,0,0,0,0,6,6,0,0,6,0,{"$f":"IFERROR(VLOOKUP($A79,[1]Sheet1!$A$4:$B$219,2,FALSE),0)","v":990},990,326.56000000000131,{"$f":"$BH79+$BI78-IFERROR(VLOOKUP($A79,[2]Sheet2!$A$4:$B$82,2,FALSE),0)","v":1069.8200000000002},{"$f":"$BJ78+$BK78-IFERROR(VLOOKUP($A79,[2]Amazon!$A$2:$F$17,5,FALSE),0)","v":0},{"$f":"$BL79+$BM78-IFERROR(VLOOKUP($A79,'[2]Myaccountaccess Pivot'!$A$4:$B$31,2,FALSE),0)","v":0},{"$f":"IFERROR(VLOOKUP($A79,'[2]export-1'!$A$2:$F$441,6,FALSE),AJ78)","v":1474.5899999999997},{"$f":"IFERROR(VLOOKUP($A79,'[7]download-1'!$A$2:$F$513,6,FALSE),AK78)","v":-11.950000000001932},{"$f":"IFERROR(VLOOKUP($A79,'[3]TexttoColumn Amazon Balance'!$A$14:$B$30,2,FALSE),IF(AL80>0,AL80-50,0))","v":320.46000000000004},3631.0099999999984,10708.509999999998,106,93,0,0,null,null,null,null,null,{"$f":"IFERROR(VLOOKUP($A79,'[2]export-1'!$A$446:$G$451,7,FALSE),0)","v":0},{"$f":"IFERROR(VLOOKUP($A79,[3]Sheet4!$A$4:$B$56,2,FALSE),0)","v":14},{"$f":"IFERROR(VLOOKUP($A79,'[3]headphones purchased'!$A$2:$G$27,6,FALSE),0)","v":1},{"$f":"ROUND(IFERROR(VLOOKUP($A79,'[4]download-1'!$A$471:$F$474,5,FALSE)/-9.5,0),0)","v":0},{"$f":"ROUND(IFERROR(VLOOKUP($A79,'[4]download-1'!$A$467:$F$469,5,FALSE)/-49,0),0)","v":0},{"$f":"IFERROR(VLOOKUP($A79,[5]Sheet8!$A$4:$B$89,2,FALSE),0)","v":0},null,null,1,{"$f":"IFERROR(VLOOKUP($A79,[3]Paypal!$A$2:$AA$1843,25,FALSE),0)","v":778.09},{"$f":"IFERROR(VLOOKUP($A79,'[3]Paypal Money Sent Pivot'!$A$4:$B$97,2,FALSE),0)","v":70},{"$f":"$BH79+$BI78-IFERROR(VLOOKUP($A79,[2]Sheet2!$A$4:$B$82,2,FALSE),0)","v":1069.8200000000002},{"$f":"IFERROR(VLOOKUP($A79,'[3]TexttoColumn Amazon Balance'!$A$14:$B$30,2,FALSE),0)","v":0},{"$f":"$BJ78+$BK78-IFERROR(VLOOKUP($A79,[2]Amazon!$A$2:$F$17,5,FALSE),0)","v":0},{"$f":"IFERROR(VLOOKUP($A79,'[4]Payment Pivot'!$A$4:$B$39,2,FALSE),0)","v":0},{"$f":"$BL79+$BM78-IFERROR(VLOOKUP($A79,'[2]Myaccountaccess Pivot'!$A$4:$B$31,2,FALSE),0)","v":0},null,{"$f":"IFERROR(VLOOKUP($A79,'[6]export-2'!$A$2:$F$15,6,FALSE),BO78)","v":1000},338.26962150314336,{"$f":"OFFSET(A79,0,'Cool Graph'!$H$1)","v":0},{"$f":"OFFSET(A79,0,'Cool Graph'!$I$1)","v":338.26962150314336}]
["2011-09-17",0,28.76,37.79,5.41,1.1499999999999999,73.11,0,0,0,0,1,0,0,4.29,1,0,1.1200000000000001,0,0,0,0,0,2,2,0,0,2,0,{"$f":"IFERROR(VLOOKUP($A80,[1]Sheet1!$A$4:$B$219,2,FALSE),0)","v":330},330,252.81999999999971,{"$f":"$BH80+$BI79-IFERROR(VLOOKUP($A80,[2]Sheet2!$A$4:$B$82,2,FALSE),0)","v":1069.8200000000002},{"$f":"$BJ79+$BK79-IFERROR(VLOOKUP($A80,[2]Amazon!$A$2:$F$17,5,FALSE),0)","v":0},{"$f":"$BL80+$BM79-IFERROR(VLOOKUP($A80,'[2]Myaccountaccess Pivot'!$A$4:$B$31,2,FALSE),0)","v":0},{"$f":"IFERROR(VLOOKUP($A80,'[2]export-1'!$A$2:$F$441,6,FALSE),AJ79)","v":1474.5899999999997},{"$f":"IFERROR(VLOOKUP($A80,'[7]download-1'!$A$2:$F$513,6,FALSE),AK79)","v":-11.950000000001932},{"$f":"IFERROR(VLOOKUP($A80,'[3]TexttoColumn Amazon Balance'!$A$14:$B$30,2,FALSE),IF(AL81>0,AL81-50,0))","v":370.46000000000004},4000.8299999999981,10961.329999999998,104,91,0,0,null,null,null,null,null,{"$f":"IFERROR(VLOOKUP($A80,'[2]export-1'!$A$446:$G$451,7,FALSE),0)","v":0},{"$f":"IFERROR(VLOOKUP($A80,[3]Sheet4!$A$4:$B$56,2,FALSE),0)","v":0},{"$f":"IFERROR(VLOOKUP($A80,'[3]headphones purchased'!$A$2:$G$27,6,FALSE),0)","v":0},{"$f":"ROUND(IFERROR(VLOOKUP($A80,'[4]download-1'!$A$471:$F$474,5,FALSE)/-9.5,0),0)","v":0},{"$f":"ROUND(IFERROR(VLOOKUP($A80,'[4]download-1'!$A$467:$F$469,5,FALSE)/-49,0),0)","v":0},{"$f":"IFERROR(VLOOKUP($A80,[5]Sheet8!$A$4:$B$89,2,FALSE),0)","v":0},null,null,0,{"$f":"IFERROR(VLOOKUP($A80,[3]Paypal!$A$2:$AA$1843,25,FALSE),0)","v":1097.9100000000001},{"$f":"IFERROR(VLOOKUP($A80,'[3]Paypal Money Sent Pivot'!$A$4:$B$97,2,FALSE),0)","v":0},{"$f":"$BH80+$BI79-IFERROR(VLOOKUP($A80,[2]Sheet2!$A$4:$B$82,2,FALSE),0)","v":1069.8200000000002},{"$f":"IFERROR(VLOOKUP($A80,'[3]TexttoColumn Amazon Balance'!$A$14:$B$30,2,FALSE),0)","v":0},{"$f":"$BJ79+$BK79-IFERROR(VLOOKUP($A80,[2]Amazon!$A$2:$F$17,5,FALSE),0)","v":0},{"$f":"IFERROR(VLOOKUP($A80,'[4]Payment Pivot'!$A$4:$B$39,2,FALSE),0)","v":0},{"$f":"$BL80+$BM79-IFERROR(VLOOKUP($A80,'[2]Myaccountaccess Pivot'!$A$4:$B$31,2,FALSE),0)","v":0},null,{"$f":"IFERROR(VLOOKUP($A80,'[6]export-2'!$A$2:$F$15,6,FALSE),BO79)","v":1000},66.629873834381115,{"$f":"OFFSET(A80,0,'Cool Graph'!$H$1)","v":0},{"$f":"OFFSET(A80,0,'Cool Graph'!$I$1)","v":66.629873834381115}]
["2011-09-18",0,21.15,46.18,8.73,0,76.06,0,0,0,2,1,0,0,5.49,0,0,3.24,1,0,0,0,0,6,6,0,0,6,0,{"$f":"IFERROR(VLOOKUP($A81,[1]Sheet1!$A$4:$B$219,2,FALSE),0)","v":990},990,707.45999999999913,{"$f":"$BH81+$BI80-IFERROR(VLOOKUP($A81,[2]Sheet2!$A$4:$B$82,2,FALSE),0)","v":1069.8200000000002},{"$f":"$BJ80+$BK80-IFERROR(VLOOKUP($A81,[2]Amazon!$A$2:$F$17,5,FALSE),0)","v":0},{"$f":"$BL81+$BM80-IFERROR(VLOOKUP($A81,'[2]Myaccountaccess Pivot'!$A$4:$B$31,2,FALSE),0)","v":0},{"$f":"IFERROR(VLOOKUP($A81,'[2]export-1'!$A$2:$F$441,6,FALSE),AJ80)","v":1474.5899999999997},{"$f":"IFERROR(VLOOKUP($A81,'[7]download-1'!$A$2:$F$513,6,FALSE),AK80)","v":-11.950000000001932},{"$f":"IFERROR(VLOOKUP($A81,'[3]TexttoColumn Amazon Balance'!$A$14:$B$30,2,FALSE),IF(AL82>0,AL82-50,0))","v":420.46000000000004},5010.2899999999981,11668.789999999997,99,85,0,0,null,null,null,null,null,{"$f":"IFERROR(VLOOKUP($A81,'[2]export-1'!$A$446:$G$451,7,FALSE),0)","v":0},{"$f":"IFERROR(VLOOKUP($A81,[3]Sheet4!$A$4:$B$56,2,FALSE),0)","v":0},{"$f":"IFERROR(VLOOKUP($A81,'[3]headphones purchased'!$A$2:$G$27,6,FALSE),0)","v":0},{"$f":"ROUND(IFERROR(VLOOKUP($A81,'[4]download-1'!$A$471:$F$474,5,FALSE)/-9.5,0),0)","v":0},{"$f":"ROUND(IFERROR(VLOOKUP($A81,'[4]download-1'!$A$467:$F$469,5,FALSE)/-49,0),0)","v":0},{"$f":"IFERROR(VLOOKUP($A81,[5]Sheet8!$A$4:$B$89,2,FALSE),0)","v":0},null,null,1,{"$f":"IFERROR(VLOOKUP($A81,[3]Paypal!$A$2:$AA$1843,25,FALSE),0)","v":2057.37},{"$f":"IFERROR(VLOOKUP($A81,'[3]Paypal Money Sent Pivot'!$A$4:$B$97,2,FALSE),0)","v":0},{"$f":"$BH81+$BI80-IFERROR(VLOOKUP($A81,[2]Sheet2!$A$4:$B$82,2,FALSE),0)","v":1069.8200000000002},{"$f":"IFERROR(VLOOKUP($A81,'[3]TexttoColumn Amazon Balance'!$A$14:$B$30,2,FALSE),0)","v":0},{"$f":"$BJ80+$BK80-IFERROR(VLOOKUP($A81,[2]Amazon!$A$2:$F$17,5,FALSE),0)","v":0},{"$f":"IFERROR(VLOOKUP($A81,'[4]Payment Pivot'!$A$4:$B$39,2,FALSE),0)","v":0},{"$f":"$BL81+$BM80-IFERROR(VLOOKUP($A81,'[2]Myaccountaccess Pivot'!$A$4:$B$31,2,FALSE),0)","v":0},null,{"$f":"IFERROR(VLOOKUP($A81,'[6]export-2'!$A$2:$F$15,6,FALSE),BO80)","v":1000},343.15962150314334,{"$f":"OFFSET(A81,0,'Cool Graph'!$H$1)","v":0},{"$f":"OFFSET(A81,0,'Cool Graph'!$I$1)","v":343.15962150314334}]
["2011-09-19",0,29.98,46.889999999999993,11.99,0,88.859999999999985,0,1,0,2,0,0,0,7.57,0,0,4.42,0,0,0,0,0,7,7,0,0,7,0,{"$f":"IFERROR(VLOOKUP($A82,[1]Sheet1!$A$4:$B$219,2,FALSE),0)","v":1155},1155,-139.53999999999905,{"$f":"$BH82+$BI81-IFERROR(VLOOKUP($A82,[2]Sheet2!$A$4:$B$82,2,FALSE),0)","v":999.82000000000016},{"$f":"$BJ81+$BK81-IFERROR(VLOOKUP($A82,[2]Amazon!$A$2:$F$17,5,FALSE),0)","v":0},{"$f":"$BL82+$BM81-IFERROR(VLOOKUP($A82,'[2]Myaccountaccess Pivot'!$A$4:$B$31,2,FALSE),0)","v":11.95},{"$f":"IFERROR(VLOOKUP($A82,'[2]export-1'!$A$2:$F$441,6,FALSE),AJ81)","v":2267.9399999999996},{"$f":"IFERROR(VLOOKUP($A82,'[7]download-1'!$A$2:$F$513,6,FALSE),AK81)","v":-1099.4900000000021},{"$f":"IFERROR(VLOOKUP($A82,'[3]TexttoColumn Amazon Balance'!$A$14:$B$30,2,FALSE),IF(AL83>0,AL83-50,0))","v":470.46000000000004},2965.2499999999982,11529.249999999998,128,136,0,0,null,null,null,null,null,{"$f":"IFERROR(VLOOKUP($A82,'[2]export-1'!$A$446:$G$451,7,FALSE),0)","v":0},{"$f":"IFERROR(VLOOKUP($A82,[3]Sheet4!$A$4:$B$56,2,FALSE),0)","v":36},{"$f":"IFERROR(VLOOKUP($A82,'[3]headphones purchased'!$A$2:$G$27,6,FALSE),0)","v":58},{"$f":"ROUND(IFERROR(VLOOKUP($A82,'[4]download-1'!$A$471:$F$474,5,FALSE)/-9.5,0),0)","v":0},{"$f":"ROUND(IFERROR(VLOOKUP($A82,'[4]download-1'!$A$467:$F$469,5,FALSE)/-49,0),0)","v":0},{"$f":"IFERROR(VLOOKUP($A82,[5]Sheet8!$A$4:$B$89,2,FALSE),0)","v":0},null,null,0,{"$f":"IFERROR(VLOOKUP($A82,[3]Paypal!$A$2:$AA$1843,25,FALSE),0)","v":338.47},{"$f":"IFERROR(VLOOKUP($A82,'[3]Paypal Money Sent Pivot'!$A$4:$B$97,2,FALSE),0)","v":1000},{"$f":"$BH82+$BI81-IFERROR(VLOOKUP($A82,[2]Sheet2!$A$4:$B$82,2,FALSE),0)","v":999.82000000000016},{"$f":"IFERROR(VLOOKUP($A82,'[3]TexttoColumn Amazon Balance'!$A$14:$B$30,2,FALSE),0)","v":0},{"$f":"$BJ81+$BK81-IFERROR(VLOOKUP($A82,[2]Amazon!$A$2:$F$17,5,FALSE),0)","v":0},{"$f":"IFERROR(VLOOKUP($A82,'[4]Payment Pivot'!$A$4:$B$39,2,FALSE),0)","v":11.95},{"$f":"$BL82+$BM81-IFERROR(VLOOKUP($A82,'[2]Myaccountaccess Pivot'!$A$4:$B$31,2,FALSE),0)","v":11.95},null,{"$f":"IFERROR(VLOOKUP($A82,'[6]export-2'!$A$2:$F$15,6,FALSE),BO81)","v":1000},400.22955842033389,{"$f":"OFFSET(A82,0,'Cool Graph'!$H$1)","v":0},{"$f":"OFFSET(A82,0,'Cool Graph'!$I$1)","v":400.22955842033389}]
["2011-09-20",0,20,46.900000000000006,6.42,2.33,75.650000000000006,0,0,0,3,0,1,0,3.57,0,0,2.85,0,0,0,0,0,6,6,0,0,6,0,{"$f":"IFERROR(VLOOKUP($A83,[1]Sheet1!$A$4:$B$219,2,FALSE),0)","v":990},990,539.5,{"$f":"$BH83+$BI82-IFERROR(VLOOKUP($A83,[2]Sheet2!$A$4:$B$82,2,FALSE),0)","v":2099.8200000000002},{"$f":"$BJ82+$BK82-IFERROR(VLOOKUP($A83,[2]Amazon!$A$2:$F$17,5,FALSE),0)","v":0},{"$f":"$BL83+$BM82-IFERROR(VLOOKUP($A83,'[2]Myaccountaccess Pivot'!$A$4:$B$31,2,FALSE),0)","v":0},{"$f":"IFERROR(VLOOKUP($A83,'[2]export-1'!$A$2:$F$441,6,FALSE),AJ82)","v":1950.7999999999997},{"$f":"IFERROR(VLOOKUP($A83,'[7]download-1'!$A$2:$F$513,6,FALSE),AK82)","v":-1099.4900000000021},{"$f":"IFERROR(VLOOKUP($A83,'[3]TexttoColumn Amazon Balance'!$A$14:$B$30,2,FALSE),IF(AL84>0,AL84-50,0))","v":520.46},3806.7499999999977,12068.749999999998,123,130,0,0,null,null,null,null,null,{"$f":"IFERROR(VLOOKUP($A83,'[2]export-1'!$A$446:$G$451,7,FALSE),0)","v":0},{"$f":"IFERROR(VLOOKUP($A83,[3]Sheet4!$A$4:$B$56,2,FALSE),0)","v":0},{"$f":"IFERROR(VLOOKUP($A83,'[3]headphones purchased'!$A$2:$G$27,6,FALSE),0)","v":0},{"$f":"ROUND(IFERROR(VLOOKUP($A83,'[4]download-1'!$A$471:$F$474,5,FALSE)/-9.5,0),0)","v":0},{"$f":"ROUND(IFERROR(VLOOKUP($A83,'[4]download-1'!$A$467:$F$469,5,FALSE)/-49,0),0)","v":0},{"$f":"IFERROR(VLOOKUP($A83,[5]Sheet8!$A$4:$B$89,2,FALSE),0)","v":0},null,null,1,{"$f":"IFERROR(VLOOKUP($A83,[3]Paypal!$A$2:$AA$1843,25,FALSE),0)","v":335.16},{"$f":"IFERROR(VLOOKUP($A83,'[3]Paypal Money Sent Pivot'!$A$4:$B$97,2,FALSE),0)","v":1100},{"$f":"$BH83+$BI82-IFERROR(VLOOKUP($A83,[2]Sheet2!$A$4:$B$82,2,FALSE),0)","v":2099.8200000000002},{"$f":"IFERROR(VLOOKUP($A83,'[3]TexttoColumn Amazon Balance'!$A$14:$B$30,2,FALSE),0)","v":0},{"$f":"$BJ82+$BK82-IFERROR(VLOOKUP($A83,[2]Amazon!$A$2:$F$17,5,FALSE),0)","v":0},{"$f":"IFERROR(VLOOKUP($A83,'[4]Payment Pivot'!$A$4:$B$39,2,FALSE),0)","v":0},{"$f":"$BL83+$BM82-IFERROR(VLOOKUP($A83,'[2]Myaccountaccess Pivot'!$A$4:$B$31,2,FALSE),0)","v":0},null,{"$f":"IFERROR(VLOOKUP($A83,'[6]export-2'!$A$2:$F$15,6,FALSE),BO82)","v":1000},343.56962150314337,{"$f":"OFFSET(A83,0,'Cool Graph'!$H$1)","v":0},{"$f":"OFFSET(A83,0,'Cool Graph'!$I$1)","v":343.56962150314337}]
["2011-09-21",0,19.34,39.86,7.12,4.18,70.5,0,0,0,2,0,0,0,4.88,0,0,2.2400000000000002,0,0,0,0,0,4,4,0,0,4,0,{"$f":"IFERROR(VLOOKUP($A84,[1]Sheet1!$A$4:$B$219,2,FALSE),0)","v":660},660,428.46999999999935,{"$f":"$BH84+$BI83-IFERROR(VLOOKUP($A84,[2]Sheet2!$A$4:$B$82,2,FALSE),0)","v":1099.8200000000002},{"$f":"$BJ83+$BK83-IFERROR(VLOOKUP($A84,[2]Amazon!$A$2:$F$17,5,FALSE),0)","v":0},{"$f":"$BL84+$BM83-IFERROR(VLOOKUP($A84,'[2]Myaccountaccess Pivot'!$A$4:$B$31,2,FALSE),0)","v":0},{"$f":"IFERROR(VLOOKUP($A84,'[2]export-1'!$A$2:$F$441,6,FALSE),AJ83)","v":2910.7999999999997},{"$f":"IFERROR(VLOOKUP($A84,'[7]download-1'!$A$2:$F$513,6,FALSE),AK83)","v":-1099.4900000000021},{"$f":"IFERROR(VLOOKUP($A84,'[3]TexttoColumn Amazon Balance'!$A$14:$B$30,2,FALSE),IF(AL85>0,AL85-50,0))","v":570.46},4420.2199999999975,12497.219999999998,120,126,0,0,null,null,null,null,null,{"$f":"IFERROR(VLOOKUP($A84,'[2]export-1'!$A$446:$G$451,7,FALSE),0)","v":0},{"$f":"IFERROR(VLOOKUP($A84,[3]Sheet4!$A$4:$B$56,2,FALSE),0)","v":3},{"$f":"IFERROR(VLOOKUP($A84,'[3]headphones purchased'!$A$2:$G$27,6,FALSE),0)","v":0},{"$f":"ROUND(IFERROR(VLOOKUP($A84,'[4]download-1'!$A$471:$F$474,5,FALSE)/-9.5,0),0)","v":0},{"$f":"ROUND(IFERROR(VLOOKUP($A84,'[4]download-1'!$A$467:$F$469,5,FALSE)/-49,0),0)","v":0},{"$f":"IFERROR(VLOOKUP($A84,[5]Sheet8!$A$4:$B$89,2,FALSE),0)","v":2},null,null,0,{"$f":"IFERROR(VLOOKUP($A84,[3]Paypal!$A$2:$AA$1843,25,FALSE),0)","v":938.63},{"$f":"IFERROR(VLOOKUP($A84,'[3]Paypal Money Sent Pivot'!$A$4:$B$97,2,FALSE),0)","v":0},{"$f":"$BH84+$BI83-IFERROR(VLOOKUP($A84,[2]Sheet2!$A$4:$B$82,2,FALSE),0)","v":1099.8200000000002},{"$f":"IFERROR(VLOOKUP($A84,'[3]TexttoColumn Amazon Balance'!$A$14:$B$30,2,FALSE),0)","v":0},{"$f":"$BJ83+$BK83-IFERROR(VLOOKUP($A84,[2]Amazon!$A$2:$F$17,5,FALSE),0)","v":0},{"$f":"IFERROR(VLOOKUP($A84,'[4]Payment Pivot'!$A$4:$B$39,2,FALSE),0)","v":0},{"$f":"$BL84+$BM83-IFERROR(VLOOKUP($A84,'[2]Myaccountaccess Pivot'!$A$4:$B$31,2,FALSE),0)","v":0},null,{"$f":"IFERROR(VLOOKUP($A84,'[6]export-2'!$A$2:$F$15,6,FALSE),BO83)","v":1000},208.97974766876223,{"$f":"OFFSET(A84,0,'Cool Graph'!$H$1)","v":0},{"$f":"OFFSET(A84,0,'Cool Graph'!$I$1)","v":208.97974766876223}]
["2011-09-22",0,16.73,37.039999999999992,6.46,2.39,62.62,0,0,0,0,0,0,0,5.16,0,0,1.3,0,0,0,0,0,6,6,0,0,6,0,{"$f":"IFERROR(VLOOKUP($A85,[1]Sheet1!$A$4:$B$219,2,FALSE),0)","v":990},990,566.86000000000058,{"$f":"$BH85+$BI84-IFERROR(VLOOKUP($A85,[2]Sheet2!$A$4:$B$82,2,FALSE),0)","v":-0.17999999999983629},{"$f":"$BJ84+$BK84-IFERROR(VLOOKUP($A85,[2]Amazon!$A$2:$F$17,5,FALSE),0)","v":0},{"$f":"$BL85+$BM84-IFERROR(VLOOKUP($A85,'[2]Myaccountaccess Pivot'!$A$4:$B$31,2,FALSE),0)","v":0},{"$f":"IFERROR(VLOOKUP($A85,'[2]export-1'!$A$2:$F$441,6,FALSE),AJ84)","v":3968.2},{"$f":"IFERROR(VLOOKUP($A85,'[7]download-1'!$A$2:$F$513,6,FALSE),AK84)","v":-1099.4900000000021},{"$f":"IFERROR(VLOOKUP($A85,'[3]TexttoColumn Amazon Balance'!$A$14:$B$30,2,FALSE),IF(AL86>0,AL86-50,0))","v":620.46},4015.0799999999981,13064.079999999998,141,120,0,0,null,null,null,null,null,{"$f":"IFERROR(VLOOKUP($A85,'[2]export-1'!$A$446:$G$451,7,FALSE),0)","v":0},{"$f":"IFERROR(VLOOKUP($A85,[3]Sheet4!$A$4:$B$56,2,FALSE),0)","v":27},{"$f":"IFERROR(VLOOKUP($A85,'[3]headphones purchased'!$A$2:$G$27,6,FALSE),0)","v":0},{"$f":"ROUND(IFERROR(VLOOKUP($A85,'[4]download-1'!$A$471:$F$474,5,FALSE)/-9.5,0),0)","v":0},{"$f":"ROUND(IFERROR(VLOOKUP($A85,'[4]download-1'!$A$467:$F$469,5,FALSE)/-49,0),0)","v":0},{"$f":"IFERROR(VLOOKUP($A85,[5]Sheet8!$A$4:$B$89,2,FALSE),0)","v":1},null,null,1,{"$f":"IFERROR(VLOOKUP($A85,[3]Paypal!$A$2:$AA$1843,25,FALSE),0)","v":526.09},{"$f":"IFERROR(VLOOKUP($A85,'[3]Paypal Money Sent Pivot'!$A$4:$B$97,2,FALSE),0)","v":0},{"$f":"$BH85+$BI84-IFERROR(VLOOKUP($A85,[2]Sheet2!$A$4:$B$82,2,FALSE),0)","v":-0.17999999999983629},{"$f":"IFERROR(VLOOKUP($A85,'[3]TexttoColumn Amazon Balance'!$A$14:$B$30,2,FALSE),0)","v":0},{"$f":"$BJ84+$BK84-IFERROR(VLOOKUP($A85,[2]Amazon!$A$2:$F$17,5,FALSE),0)","v":0},{"$f":"IFERROR(VLOOKUP($A85,'[4]Payment Pivot'!$A$4:$B$39,2,FALSE),0)","v":0},{"$f":"$BL85+$BM84-IFERROR(VLOOKUP($A85,'[2]Myaccountaccess Pivot'!$A$4:$B$31,2,FALSE),0)","v":0},null,{"$f":"IFERROR(VLOOKUP($A85,'[6]export-2'!$A$2:$F$15,6,FALSE),BO84)","v":1000},356.59962150314334,{"$f":"OFFSET(A85,0,'Cool Graph'!$H$1)","v":0},{"$f":"OFFSET(A85,0,'Cool Graph'!$I$1)","v":356.59962150314334}]
["2011-09-23",0,20.010000000000002,40.93,8.75,1.55,71.239999999999995,0,0,0,1,0,1,0,6.15,0,0,2.6,0,0,0,0,0,3,3,0,0,3,0,{"$f":"IFERROR(VLOOKUP($A86,[1]Sheet1!$A$4:$B$219,2,FALSE),0)","v":495},495,100.13000000000102,{"$f":"$BH86+$BI85-IFERROR(VLOOKUP($A86,[2]Sheet2!$A$4:$B$82,2,FALSE),0)","v":-0.17999999999983629},{"$f":"$BJ85+$BK85-IFERROR(VLOOKUP($A86,[2]Amazon!$A$2:$F$17,5,FALSE),0)","v":0},{"$f":"$BL86+$BM85-IFERROR(VLOOKUP($A86,'[2]Myaccountaccess Pivot'!$A$4:$B$31,2,FALSE),0)","v":0},{"$f":"IFERROR(VLOOKUP($A86,'[2]export-1'!$A$2:$F$441,6,FALSE),AJ85)","v":3962.25},{"$f":"IFERROR(VLOOKUP($A86,'[7]download-1'!$A$2:$F$513,6,FALSE),AK85)","v":-1099.4900000000021},{"$f":"IFERROR(VLOOKUP($A86,'[3]TexttoColumn Amazon Balance'!$A$14:$B$30,2,FALSE),IF(AL87>0,AL87-50,0))","v":670.46},4339.7099999999982,13164.21,137,117,0,0,null,null,null,null,null,{"$f":"IFERROR(VLOOKUP($A86,'[2]export-1'!$A$446:$G$451,7,FALSE),0)","v":0},{"$f":"IFERROR(VLOOKUP($A86,[3]Sheet4!$A$4:$B$56,2,FALSE),0)","v":0},{"$f":"IFERROR(VLOOKUP($A86,'[3]headphones purchased'!$A$2:$G$27,6,FALSE),0)","v":0},{"$f":"ROUND(IFERROR(VLOOKUP($A86,'[4]download-1'!$A$471:$F$474,5,FALSE)/-9.5,0),0)","v":0},{"$f":"ROUND(IFERROR(VLOOKUP($A86,'[4]download-1'!$A$467:$F$469,5,FALSE)/-49,0),0)","v":0},{"$f":"IFERROR(VLOOKUP($A86,[5]Sheet8!$A$4:$B$89,2,FALSE),0)","v":1},null,null,0,{"$f":"IFERROR(VLOOKUP($A86,[3]Paypal!$A$2:$AA$1843,25,FALSE),0)","v":806.67},{"$f":"IFERROR(VLOOKUP($A86,'[3]Paypal Money Sent Pivot'!$A$4:$B$97,2,FALSE),0)","v":0},{"$f":"$BH86+$BI85-IFERROR(VLOOKUP($A86,[2]Sheet2!$A$4:$B$82,2,FALSE),0)","v":-0.17999999999983629},{"$f":"IFERROR(VLOOKUP($A86,'[3]TexttoColumn Amazon Balance'!$A$14:$B$30,2,FALSE),0)","v":0},{"$f":"$BJ85+$BK85-IFERROR(VLOOKUP($A86,[2]Amazon!$A$2:$F$17,5,FALSE),0)","v":0},{"$f":"IFERROR(VLOOKUP($A86,'[4]Payment Pivot'!$A$4:$B$39,2,FALSE),0)","v":0},{"$f":"$BL86+$BM85-IFERROR(VLOOKUP($A86,'[2]Myaccountaccess Pivot'!$A$4:$B$31,2,FALSE),0)","v":0},null,{"$f":"IFERROR(VLOOKUP($A86,'[6]export-2'!$A$2:$F$15,6,FALSE),BO85)","v":1000},138.36981075157166,{"$f":"OFFSET(A86,0,'Cool Graph'!$H$1)","v":0},{"$f":"OFFSET(A86,0,'Cool Graph'!$I$1)","v":138.36981075157166}]
["2011-09-24",0,13.6,37.019999999999996,12.5,3.25,66.37,0,0,0,1,0,0,0,10.039999999999999,0,0,2.46,0,0,0,0,0,2,2,0,0,2,0,{"$f":"IFERROR(VLOOKUP($A87,[1]Sheet1!$A$4:$B$219,2,FALSE),0)","v":330},330,296.47999999999956,{"$f":"$BH87+$BI86-IFERROR(VLOOKUP($A87,[2]Sheet2!$A$4:$B$82,2,FALSE),0)","v":-0.17999999999983629},{"$f":"$BJ86+$BK86-IFERROR(VLOOKUP($A87,[2]Amazon!$A$2:$F$17,5,FALSE),0)","v":0},{"$f":"$BL87+$BM86-IFERROR(VLOOKUP($A87,'[2]Myaccountaccess Pivot'!$A$4:$B$31,2,FALSE),0)","v":0},{"$f":"IFERROR(VLOOKUP($A87,'[2]export-1'!$A$2:$F$441,6,FALSE),AJ86)","v":3962.25},{"$f":"IFERROR(VLOOKUP($A87,'[7]download-1'!$A$2:$F$513,6,FALSE),AK86)","v":-1099.4900000000021},{"$f":"IFERROR(VLOOKUP($A87,'[3]TexttoColumn Amazon Balance'!$A$14:$B$30,2,FALSE),IF(AL88>0,AL88-50,0))","v":720.46},4704.1899999999987,13460.689999999999,136,115,0,0,null,null,null,null,null,{"$f":"IFERROR(VLOOKUP($A87,'[2]export-1'!$A$446:$G$451,7,FALSE),0)","v":0},{"$f":"IFERROR(VLOOKUP($A87,[3]Sheet4!$A$4:$B$56,2,FALSE),0)","v":0},{"$f":"IFERROR(VLOOKUP($A87,'[3]headphones purchased'!$A$2:$G$27,6,FALSE),0)","v":0},{"$f":"ROUND(IFERROR(VLOOKUP($A87,'[4]download-1'!$A$471:$F$474,5,FALSE)/-9.5,0),0)","v":0},{"$f":"ROUND(IFERROR(VLOOKUP($A87,'[4]download-1'!$A$467:$F$469,5,FALSE)/-49,0),0)","v":0},{"$f":"IFERROR(VLOOKUP($A87,[5]Sheet8!$A$4:$B$89,2,FALSE),0)","v":0},null,null,1,{"$f":"IFERROR(VLOOKUP($A87,[3]Paypal!$A$2:$AA$1843,25,FALSE),0)","v":1121.1500000000001},{"$f":"IFERROR(VLOOKUP($A87,'[3]Paypal Money Sent Pivot'!$A$4:$B$97,2,FALSE),0)","v":0},{"$f":"$BH87+$BI86-IFERROR(VLOOKUP($A87,[2]Sheet2!$A$4:$B$82,2,FALSE),0)","v":-0.17999999999983629},{"$f":"IFERROR(VLOOKUP($A87,'[3]TexttoColumn Amazon Balance'!$A$14:$B$30,2,FALSE),0)","v":720.46},{"$f":"$BJ86+$BK86-IFERROR(VLOOKUP($A87,[2]Amazon!$A$2:$F$17,5,FALSE),0)","v":0},{"$f":"IFERROR(VLOOKUP($A87,'[4]Payment Pivot'!$A$4:$B$39,2,FALSE),0)","v":0},{"$f":"$BL87+$BM86-IFERROR(VLOOKUP($A87,'[2]Myaccountaccess Pivot'!$A$4:$B$31,2,FALSE),0)","v":0},null,{"$f":"IFERROR(VLOOKUP($A87,'[6]export-2'!$A$2:$F$15,6,FALSE),BO86)","v":1000},73.36987383438111,{"$f":"OFFSET(A87,0,'Cool Graph'!$H$1)","v":0},{"$f":"OFFSET(A87,0,'Cool Graph'!$I$1)","v":73.36987383438111}]
["2011-09-25",0,18.91,48.45,33.89,0,101.25,0,0,0,2,1,1,0,26.7,0,1,7.19,1,0,0,0,0,5,5,0,0,5,0,{"$f":"IFERROR(VLOOKUP($A88,[1]Sheet1!$A$4:$B$219,2,FALSE),0)","v":825},825,3651.7999999999993,{"$f":"$BH88+$BI87-IFERROR(VLOOKUP($A88,[2]Sheet2!$A$4:$B$82,2,FALSE),0)","v":-0.17999999999983629},{"$f":"$BJ87+$BK87-IFERROR(VLOOKUP($A88,[2]Amazon!$A$2:$F$17,5,FALSE),0)","v":720.46},{"$f":"$BL88+$BM87-IFERROR(VLOOKUP($A88,'[2]Myaccountaccess Pivot'!$A$4:$B$31,2,FALSE),0)","v":0},{"$f":"IFERROR(VLOOKUP($A88,'[2]export-1'!$A$2:$F$441,6,FALSE),AJ87)","v":3962.25},{"$f":"IFERROR(VLOOKUP($A88,'[7]download-1'!$A$2:$F$513,6,FALSE),AK87)","v":-1099.4900000000021},{"$f":"IFERROR(VLOOKUP($A88,'[3]TexttoColumn Amazon Balance'!$A$14:$B$30,2,FALSE),IF(AL89>0,AL89-50,0))","v":3144.75},8648.49,17112.489999999998,131,110,0,0,null,null,null,null,null,{"$f":"IFERROR(VLOOKUP($A88,'[2]export-1'!$A$446:$G$451,7,FALSE),0)","v":0},{"$f":"IFERROR(VLOOKUP($A88,[3]Sheet4!$A$4:$B$56,2,FALSE),0)","v":0},{"$f":"IFERROR(VLOOKUP($A88,'[3]headphones purchased'!$A$2:$G$27,6,FALSE),0)","v":0},{"$f":"ROUND(IFERROR(VLOOKUP($A88,'[4]download-1'!$A$471:$F$474,5,FALSE)/-9.5,0),0)","v":0},{"$f":"ROUND(IFERROR(VLOOKUP($A88,'[4]download-1'!$A$467:$F$469,5,FALSE)/-49,0),0)","v":0},{"$f":"IFERROR(VLOOKUP($A88,[5]Sheet8!$A$4:$B$89,2,FALSE),0)","v":0},null,null,0,{"$f":"IFERROR(VLOOKUP($A88,[3]Paypal!$A$2:$AA$1843,25,FALSE),0)","v":1920.7},{"$f":"IFERROR(VLOOKUP($A88,'[3]Paypal Money Sent Pivot'!$A$4:$B$97,2,FALSE),0)","v":0},{"$f":"$BH88+$BI87-IFERROR(VLOOKUP($A88,[2]Sheet2!$A$4:$B$82,2,FALSE),0)","v":-0.17999999999983629},{"$f":"IFERROR(VLOOKUP($A88,'[3]TexttoColumn Amazon Balance'!$A$14:$B$30,2,FALSE),0)","v":0},{"$f":"$BJ87+$BK87-IFERROR(VLOOKUP($A88,[2]Amazon!$A$2:$F$17,5,FALSE),0)","v":720.46},{"$f":"IFERROR(VLOOKUP($A88,'[4]Payment Pivot'!$A$4:$B$39,2,FALSE),0)","v":0},{"$f":"$BL88+$BM87-IFERROR(VLOOKUP($A88,'[2]Myaccountaccess Pivot'!$A$4:$B$31,2,FALSE),0)","v":0},null,{"$f":"IFERROR(VLOOKUP($A88,'[6]export-2'!$A$2:$F$15,6,FALSE),BO87)","v":1000},248.09968458595279,{"$f":"OFFSET(A88,0,'Cool Graph'!$H$1)","v":0},{"$f":"OFFSET(A88,0,'Cool Graph'!$I$1)","v":248.09968458595279}]
["2011-09-26",0,15.32,64.110000000000014,21.669999999999998,0,101.10000000000001,0,0,0,0,0,0,0,16.189999999999998,0,0,5.48,0,1,1,0,0,3,3,0,0,4,335.13,{"$f":"IFERROR(VLOOKUP($A89,[1]Sheet1!$A$4:$B$219,2,FALSE),0)","v":495},830.13,-487.27999999999884,{"$f":"$BH89+$BI88-IFERROR(VLOOKUP($A89,[2]Sheet2!$A$4:$B$82,2,FALSE),0)","v":999.82000000000016},{"$f":"$BJ88+$BK88-IFERROR(VLOOKUP($A89,[2]Amazon!$A$2:$F$17,5,FALSE),0)","v":720.46},{"$f":"$BL89+$BM88-IFERROR(VLOOKUP($A89,'[2]Myaccountaccess Pivot'!$A$4:$B$31,2,FALSE),0)","v":1099.49},{"$f":"IFERROR(VLOOKUP($A89,'[2]export-1'!$A$2:$F$441,6,FALSE),AJ88)","v":3252.25},{"$f":"IFERROR(VLOOKUP($A89,'[7]download-1'!$A$2:$F$513,6,FALSE),AK88)","v":-40.200000000001978},{"$f":"IFERROR(VLOOKUP($A89,'[3]TexttoColumn Amazon Balance'!$A$14:$B$30,2,FALSE),IF(AL90>0,AL90-50,0))","v":3194.75},7366.2099999999982,16625.21,148,106,0,0,null,null,null,null,null,{"$f":"IFERROR(VLOOKUP($A89,'[2]export-1'!$A$446:$G$451,7,FALSE),0)","v":0},{"$f":"IFERROR(VLOOKUP($A89,[3]Sheet4!$A$4:$B$56,2,FALSE),0)","v":21},{"$f":"IFERROR(VLOOKUP($A89,'[3]headphones purchased'!$A$2:$G$27,6,FALSE),0)","v":0},{"$f":"ROUND(IFERROR(VLOOKUP($A89,'[4]download-1'!$A$471:$F$474,5,FALSE)/-9.5,0),0)","v":0},{"$f":"ROUND(IFERROR(VLOOKUP($A89,'[4]download-1'!$A$467:$F$469,5,FALSE)/-49,0),0)","v":0},{"$f":"IFERROR(VLOOKUP($A89,[5]Sheet8!$A$4:$B$89,2,FALSE),0)","v":1},null,null,1,{"$f":"IFERROR(VLOOKUP($A89,[3]Paypal!$A$2:$AA$1843,25,FALSE),0)","v":338.62},{"$f":"IFERROR(VLOOKUP($A89,'[3]Paypal Money Sent Pivot'!$A$4:$B$97,2,FALSE),0)","v":1000},{"$f":"$BH89+$BI88-IFERROR(VLOOKUP($A89,[2]Sheet2!$A$4:$B$82,2,FALSE),0)","v":999.82000000000016},{"$f":"IFERROR(VLOOKUP($A89,'[3]TexttoColumn Amazon Balance'!$A$14:$B$30,2,FALSE),0)","v":0},{"$f":"$BJ88+$BK88-IFERROR(VLOOKUP($A89,[2]Amazon!$A$2:$F$17,5,FALSE),0)","v":720.46},{"$f":"IFERROR(VLOOKUP($A89,'[4]Payment Pivot'!$A$4:$B$39,2,FALSE),0)","v":1099.49},{"$f":"$BL89+$BM88-IFERROR(VLOOKUP($A89,'[2]Myaccountaccess Pivot'!$A$4:$B$31,2,FALSE),0)","v":1099.49},null,{"$f":"IFERROR(VLOOKUP($A89,'[6]export-2'!$A$2:$F$15,6,FALSE),BO88)","v":1000},250.4220044428327,{"$f":"OFFSET(A89,0,'Cool Graph'!$H$1)","v":0},{"$f":"OFFSET(A89,0,'Cool Graph'!$I$1)","v":250.4220044428327}]
["2011-09-27",0,22.22,82.21,31.26,3.38,139.07,0,0,0,1,0,0,0,28.32,0,0,2.94,0,2,1,0,0,4,4,0,0,6,366.92,{"$f":"IFERROR(VLOOKUP($A90,[1]Sheet1!$A$4:$B$219,2,FALSE),0)","v":660},1026.92,322.31999999999971,{"$f":"$BH90+$BI89-IFERROR(VLOOKUP($A90,[2]Sheet2!$A$4:$B$82,2,FALSE),0)","v":999.82000000000016},{"$f":"$BJ89+$BK89-IFERROR(VLOOKUP($A90,[2]Amazon!$A$2:$F$17,5,FALSE),0)","v":0},{"$f":"$BL90+$BM89-IFERROR(VLOOKUP($A90,'[2]Myaccountaccess Pivot'!$A$4:$B$31,2,FALSE),0)","v":0},{"$f":"IFERROR(VLOOKUP($A90,'[2]export-1'!$A$2:$F$441,6,FALSE),AJ89)","v":2873.2200000000003},{"$f":"IFERROR(VLOOKUP($A90,'[7]download-1'!$A$2:$F$513,6,FALSE),AK89)","v":-40.200000000001978},{"$f":"IFERROR(VLOOKUP($A90,'[3]TexttoColumn Amazon Balance'!$A$14:$B$30,2,FALSE),IF(AL91>0,AL91-50,0))","v":3244.75},8030.0299999999988,16947.53,142,101,0,0,null,null,null,null,null,{"$f":"IFERROR(VLOOKUP($A90,'[2]export-1'!$A$446:$G$451,7,FALSE),0)","v":0},{"$f":"IFERROR(VLOOKUP($A90,[3]Sheet4!$A$4:$B$56,2,FALSE),0)","v":0},{"$f":"IFERROR(VLOOKUP($A90,'[3]headphones purchased'!$A$2:$G$27,6,FALSE),0)","v":0},{"$f":"ROUND(IFERROR(VLOOKUP($A90,'[4]download-1'!$A$471:$F$474,5,FALSE)/-9.5,0),0)","v":0},{"$f":"ROUND(IFERROR(VLOOKUP($A90,'[4]download-1'!$A$467:$F$469,5,FALSE)/-49,0),0)","v":0},{"$f":"IFERROR(VLOOKUP($A90,[5]Sheet8!$A$4:$B$89,2,FALSE),0)","v":0},null,null,0,{"$f":"IFERROR(VLOOKUP($A90,[3]Paypal!$A$2:$AA$1843,25,FALSE),0)","v":952.44},{"$f":"IFERROR(VLOOKUP($A90,'[3]Paypal Money Sent Pivot'!$A$4:$B$97,2,FALSE),0)","v":0},{"$f":"$BH90+$BI89-IFERROR(VLOOKUP($A90,[2]Sheet2!$A$4:$B$82,2,FALSE),0)","v":999.82000000000016},{"$f":"IFERROR(VLOOKUP($A90,'[3]TexttoColumn Amazon Balance'!$A$14:$B$30,2,FALSE),0)","v":0},{"$f":"$BJ89+$BK89-IFERROR(VLOOKUP($A90,[2]Amazon!$A$2:$F$17,5,FALSE),0)","v":0},{"$f":"IFERROR(VLOOKUP($A90,'[4]Payment Pivot'!$A$4:$B$39,2,FALSE),0)","v":0},{"$f":"$BL90+$BM89-IFERROR(VLOOKUP($A90,'[2]Myaccountaccess Pivot'!$A$4:$B$31,2,FALSE),0)","v":0},null,{"$f":"IFERROR(VLOOKUP($A90,'[6]export-2'!$A$2:$F$15,6,FALSE),BO89)","v":1000},295.7835492060687,{"$f":"OFFSET(A90,0,'Cool Graph'!$H$1)","v":0},{"$f":"OFFSET(A90,0,'Cool Graph'!$I$1)","v":295.7835492060687}]
["2011-09-28",30,15.32,71.760000000000005,49.86,6.94,173.88,0,0,0,2,0,0,0,45.680000000000007,0,0,4.18,0,2,0,0,0,10,10,0,0,12,337.27,{"$f":"IFERROR(VLOOKUP($A91,[1]Sheet1!$A$4:$B$219,2,FALSE),0)","v":1650},1987.27,422.02999999999884,{"$f":"$BH91+$BI90-IFERROR(VLOOKUP($A91,[2]Sheet2!$A$4:$B$82,2,FALSE),0)","v":999.82000000000016},{"$f":"$BJ90+$BK90-IFERROR(VLOOKUP($A91,[2]Amazon!$A$2:$F$17,5,FALSE),0)","v":0},{"$f":"$BL91+$BM90-IFERROR(VLOOKUP($A91,'[2]Myaccountaccess Pivot'!$A$4:$B$31,2,FALSE),0)","v":0},{"$f":"IFERROR(VLOOKUP($A91,'[2]export-1'!$A$2:$F$441,6,FALSE),AJ90)","v":2873.2200000000003},{"$f":"IFERROR(VLOOKUP($A91,'[7]download-1'!$A$2:$F$513,6,FALSE),AK90)","v":-540.20000000000198},{"$f":"IFERROR(VLOOKUP($A91,'[3]TexttoColumn Amazon Balance'!$A$14:$B$30,2,FALSE),IF(AL92>0,AL92-50,0))","v":3294.75},9135.0599999999977,17369.559999999998,130,91,0,0,null,null,null,null,null,{"$f":"IFERROR(VLOOKUP($A91,'[2]export-1'!$A$446:$G$451,7,FALSE),0)","v":0},{"$f":"IFERROR(VLOOKUP($A91,[3]Sheet4!$A$4:$B$56,2,FALSE),0)","v":0},{"$f":"IFERROR(VLOOKUP($A91,'[3]headphones purchased'!$A$2:$G$27,6,FALSE),0)","v":0},{"$f":"ROUND(IFERROR(VLOOKUP($A91,'[4]download-1'!$A$471:$F$474,5,FALSE)/-9.5,0),0)","v":0},{"$f":"ROUND(IFERROR(VLOOKUP($A91,'[4]download-1'!$A$467:$F$469,5,FALSE)/-49,0),0)","v":0},{"$f":"IFERROR(VLOOKUP($A91,[5]Sheet8!$A$4:$B$89,2,FALSE),0)","v":1},null,null,1,{"$f":"IFERROR(VLOOKUP($A91,[3]Paypal!$A$2:$AA$1843,25,FALSE),0)","v":2507.4699999999998},{"$f":"IFERROR(VLOOKUP($A91,'[3]Paypal Money Sent Pivot'!$A$4:$B$97,2,FALSE),0)","v":0},{"$f":"$BH91+$BI90-IFERROR(VLOOKUP($A91,[2]Sheet2!$A$4:$B$82,2,FALSE),0)","v":999.82000000000016},{"$f":"IFERROR(VLOOKUP($A91,'[3]TexttoColumn Amazon Balance'!$A$14:$B$30,2,FALSE),0)","v":0},{"$f":"$BJ90+$BK90-IFERROR(VLOOKUP($A91,[2]Amazon!$A$2:$F$17,5,FALSE),0)","v":0},{"$f":"IFERROR(VLOOKUP($A91,'[4]Payment Pivot'!$A$4:$B$39,2,FALSE),0)","v":0},{"$f":"$BL91+$BM90-IFERROR(VLOOKUP($A91,'[2]Myaccountaccess Pivot'!$A$4:$B$31,2,FALSE),0)","v":0},null,{"$f":"IFERROR(VLOOKUP($A91,'[6]export-2'!$A$2:$F$15,6,FALSE),BO90)","v":1000},667.63775477227443,{"$f":"OFFSET(A91,0,'Cool Graph'!$H$1)","v":30},{"$f":"OFFSET(A91,0,'Cool Graph'!$I$1)","v":667.63775477227443}]
["2011-09-29",30,0,63.08,71.540000000000006,4.0599999999999996,168.68,0,0,0,3,0,1,0,65.81,0,0,5.73,0,7,3,0,0,8,8,0,0,15,1256.05,{"$f":"IFERROR(VLOOKUP($A92,[1]Sheet1!$A$4:$B$219,2,FALSE),0)","v":1320},2576.0500000000002,45.010000000002037,{"$f":"$BH92+$BI91-IFERROR(VLOOKUP($A92,[2]Sheet2!$A$4:$B$82,2,FALSE),0)","v":-0.17999999999983629},{"$f":"$BJ91+$BK91-IFERROR(VLOOKUP($A92,[2]Amazon!$A$2:$F$17,5,FALSE),0)","v":0},{"$f":"$BL92+$BM91-IFERROR(VLOOKUP($A92,'[2]Myaccountaccess Pivot'!$A$4:$B$31,2,FALSE),0)","v":540.20000000000005},{"$f":"IFERROR(VLOOKUP($A92,'[2]export-1'!$A$2:$F$441,6,FALSE),AJ91)","v":3469.4700000000003},{"$f":"IFERROR(VLOOKUP($A92,'[7]download-1'!$A$2:$F$513,6,FALSE),AK91)","v":-1.9326762412674725E-12},{"$f":"IFERROR(VLOOKUP($A92,'[3]TexttoColumn Amazon Balance'!$A$14:$B$30,2,FALSE),IF(AL93>0,AL93-50,0))","v":3344.75},10019.569999999998,17414.57,115,80,0,0,null,null,null,null,null,{"$f":"IFERROR(VLOOKUP($A92,'[2]export-1'!$A$446:$G$451,7,FALSE),0)","v":0},{"$f":"IFERROR(VLOOKUP($A92,[3]Sheet4!$A$4:$B$56,2,FALSE),0)","v":0},{"$f":"IFERROR(VLOOKUP($A92,'[3]headphones purchased'!$A$2:$G$27,6,FALSE),0)","v":0},{"$f":"ROUND(IFERROR(VLOOKUP($A92,'[4]download-1'!$A$471:$F$474,5,FALSE)/-9.5,0),0)","v":0},{"$f":"ROUND(IFERROR(VLOOKUP($A92,'[4]download-1'!$A$467:$F$469,5,FALSE)/-49,0),0)","v":0},{"$f":"IFERROR(VLOOKUP($A92,[5]Sheet8!$A$4:$B$89,2,FALSE),0)","v":0},null,null,0,{"$f":"IFERROR(VLOOKUP($A92,[3]Paypal!$A$2:$AA$1843,25,FALSE),0)","v":3745.73},{"$f":"IFERROR(VLOOKUP($A92,'[3]Paypal Money Sent Pivot'!$A$4:$B$97,2,FALSE),0)","v":0},{"$f":"$BH92+$BI91-IFERROR(VLOOKUP($A92,[2]Sheet2!$A$4:$B$82,2,FALSE),0)","v":-0.17999999999983629},{"$f":"IFERROR(VLOOKUP($A92,'[3]TexttoColumn Amazon Balance'!$A$14:$B$30,2,FALSE),0)","v":0},{"$f":"$BJ91+$BK91-IFERROR(VLOOKUP($A92,[2]Amazon!$A$2:$F$17,5,FALSE),0)","v":0},{"$f":"IFERROR(VLOOKUP($A92,'[4]Payment Pivot'!$A$4:$B$39,2,FALSE),0)","v":540.20000000000005},{"$f":"$BL92+$BM91-IFERROR(VLOOKUP($A92,'[2]Myaccountaccess Pivot'!$A$4:$B$31,2,FALSE),0)","v":540.20000000000005},null,{"$f":"IFERROR(VLOOKUP($A92,'[6]export-2'!$A$2:$F$15,6,FALSE),BO91)","v":1000},922.15909694259835,{"$f":"OFFSET(A92,0,'Cool Graph'!$H$1)","v":30},{"$f":"OFFSET(A92,0,'Cool Graph'!$I$1)","v":922.15909694259835}]
["2011-09-30",30,14.11,58.15,136.94999999999999,1.04,240.24999999999997,1,0,0,4,1,1,0,131.19999999999999,0,0,5.75,1,1,0,0,0,7,7,0,0,8,165,{"$f":"IFERROR(VLOOKUP($A93,[1]Sheet1!$A$4:$B$219,2,FALSE),0)","v":1155},1320,480.98999999999796,{"$f":"$BH93+$BI92-IFERROR(VLOOKUP($A93,[2]Sheet2!$A$4:$B$82,2,FALSE),0)","v":-0.17999999999983629},{"$f":"$BJ92+$BK92-IFERROR(VLOOKUP($A93,[2]Amazon!$A$2:$F$17,5,FALSE),0)","v":0},{"$f":"$BL93+$BM92-IFERROR(VLOOKUP($A93,'[2]Myaccountaccess Pivot'!$A$4:$B$31,2,FALSE),0)","v":0},{"$f":"IFERROR(VLOOKUP($A93,'[2]export-1'!$A$2:$F$441,6,FALSE),AJ92)","v":2713.2700000000004},{"$f":"IFERROR(VLOOKUP($A93,'[7]download-1'!$A$2:$F$513,6,FALSE),AK92)","v":-1.9326762412674725E-12},{"$f":"IFERROR(VLOOKUP($A93,'[3]TexttoColumn Amazon Balance'!$A$14:$B$30,2,FALSE),IF(AL94>0,AL94-50,0))","v":3394.75},10910.019999999999,17895.559999999998,108,73,0,0,null,null,null,null,null,{"$f":"IFERROR(VLOOKUP($A93,'[2]export-1'!$A$446:$G$451,7,FALSE),0)","v":0},{"$f":"IFERROR(VLOOKUP($A93,[3]Sheet4!$A$4:$B$56,2,FALSE),0)","v":0},{"$f":"IFERROR(VLOOKUP($A93,'[3]headphones purchased'!$A$2:$G$27,6,FALSE),0)","v":0},{"$f":"ROUND(IFERROR(VLOOKUP($A93,'[4]download-1'!$A$471:$F$474,5,FALSE)/-9.5,0),0)","v":0},{"$f":"ROUND(IFERROR(VLOOKUP($A93,'[4]download-1'!$A$467:$F$469,5,FALSE)/-49,0),0)","v":0},{"$f":"IFERROR(VLOOKUP($A93,[5]Sheet8!$A$4:$B$89,2,FALSE),0)","v":0},null,null,1,{"$f":"IFERROR(VLOOKUP($A93,[3]Paypal!$A$2:$AA$1843,25,FALSE),0)","v":4802.18},{"$f":"IFERROR(VLOOKUP($A93,'[3]Paypal Money Sent Pivot'!$A$4:$B$97,2,FALSE),0)","v":0},{"$f":"$BH93+$BI92-IFERROR(VLOOKUP($A93,[2]Sheet2!$A$4:$B$82,2,FALSE),0)","v":-0.17999999999983629},{"$f":"IFERROR(VLOOKUP($A93,'[3]TexttoColumn Amazon Balance'!$A$14:$B$30,2,FALSE),0)","v":0},{"$f":"$BJ92+$BK92-IFERROR(VLOOKUP($A93,[2]Amazon!$A$2:$F$17,5,FALSE),0)","v":0},{"$f":"IFERROR(VLOOKUP($A93,'[4]Payment Pivot'!$A$4:$B$39,2,FALSE),0)","v":0},{"$f":"$BL93+$BM92-IFERROR(VLOOKUP($A93,'[2]Myaccountaccess Pivot'!$A$4:$B$31,2,FALSE),0)","v":0},null,{"$f":"IFERROR(VLOOKUP($A93,'[6]export-2'!$A$2:$F$15,6,FALSE),BO92)","v":1000.04},318.70949533752446,{"$f":"OFFSET(A93,0,'Cool Graph'!$H$1)","v":30},{"$f":"OFFSET(A93,0,'Cool Graph'!$I$1)","v":318.70949533752446}]
["2011-10-01",30,15.02,53.090000000000011,133.18,0.69,231.98000000000002,0,0,0,2,1,0,0,123.88,1,0,9.3000000000000007,0,0,0,0,0,3,3,0,0,3,0,{"$f":"IFERROR(VLOOKUP($A94,[1]Sheet1!$A$4:$B$219,2,FALSE),0)","v":495},495,324.2300000000032,{"$f":"$BH94+$BI93-IFERROR(VLOOKUP($A94,[2]Sheet2!$A$4:$B$82,2,FALSE),0)","v":-0.17999999999983629},{"$f":"$BJ93+$BK93-IFERROR(VLOOKUP($A94,[2]Amazon!$A$2:$F$17,5,FALSE),0)","v":0},{"$f":"$BL94+$BM93-IFERROR(VLOOKUP($A94,'[2]Myaccountaccess Pivot'!$A$4:$B$31,2,FALSE),0)","v":0},{"$f":"IFERROR(VLOOKUP($A94,'[2]export-1'!$A$2:$F$441,6,FALSE),AJ93)","v":2713.2700000000004},{"$f":"IFERROR(VLOOKUP($A94,'[7]download-1'!$A$2:$F$513,6,FALSE),AK93)","v":-1.9326762412674725E-12},{"$f":"IFERROR(VLOOKUP($A94,'[3]TexttoColumn Amazon Balance'!$A$14:$B$30,2,FALSE),IF(AL95>0,AL95-50,0))","v":3444.75},11409.749999999998,18219.79,105,70,0,0,null,null,null,null,null,{"$f":"IFERROR(VLOOKUP($A94,'[2]export-1'!$A$446:$G$451,7,FALSE),0)","v":0},{"$f":"IFERROR(VLOOKUP($A94,[3]Sheet4!$A$4:$B$56,2,FALSE),0)","v":0},{"$f":"IFERROR(VLOOKUP($A94,'[3]headphones purchased'!$A$2:$G$27,6,FALSE),0)","v":0},{"$f":"ROUND(IFERROR(VLOOKUP($A94,'[4]download-1'!$A$471:$F$474,5,FALSE)/-9.5,0),0)","v":0},{"$f":"ROUND(IFERROR(VLOOKUP($A94,'[4]download-1'!$A$467:$F$469,5,FALSE)/-49,0),0)","v":0},{"$f":"IFERROR(VLOOKUP($A94,[5]Sheet8!$A$4:$B$89,2,FALSE),0)","v":0},null,null,0,{"$f":"IFERROR(VLOOKUP($A94,[3]Paypal!$A$2:$AA$1843,25,FALSE),0)","v":5251.91},{"$f":"IFERROR(VLOOKUP($A94,'[3]Paypal Money Sent Pivot'!$A$4:$B$97,2,FALSE),0)","v":0},{"$f":"$BH94+$BI93-IFERROR(VLOOKUP($A94,[2]Sheet2!$A$4:$B$82,2,FALSE),0)","v":-0.17999999999983629},{"$f":"IFERROR(VLOOKUP($A94,'[3]TexttoColumn Amazon Balance'!$A$14:$B$30,2,FALSE),0)","v":0},{"$f":"$BJ93+$BK93-IFERROR(VLOOKUP($A94,[2]Amazon!$A$2:$F$17,5,FALSE),0)","v":0},{"$f":"IFERROR(VLOOKUP($A94,'[4]Payment Pivot'!$A$4:$B$39,2,FALSE),0)","v":0},{"$f":"$BL94+$BM93-IFERROR(VLOOKUP($A94,'[2]Myaccountaccess Pivot'!$A$4:$B$31,2,FALSE),0)","v":0},null,{"$f":"IFERROR(VLOOKUP($A94,'[6]export-2'!$A$2:$F$15,6,FALSE),BO93)","v":1000.04},-22.370189248428346,{"$f":"OFFSET(A94,0,'Cool Graph'!$H$1)","v":30},{"$f":"OFFSET(A94,0,'Cool Graph'!$I$1)","v":-22.370189248428346}]
["2011-10-02",30,14.33,52.75,104.99,1.7,203.76999999999998,1,0,0,2,1,2,0,96.289999999999992,1,0,8.6999999999999993,0,4,0,0,0,7,7,0,0,11,660,{"$f":"IFERROR(VLOOKUP($A95,[1]Sheet1!$A$4:$B$219,2,FALSE),0)","v":1155},1815,742.77999999999884,{"$f":"$BH95+$BI94-IFERROR(VLOOKUP($A95,[2]Sheet2!$A$4:$B$82,2,FALSE),0)","v":-0.17999999999983629},{"$f":"$BJ94+$BK94-IFERROR(VLOOKUP($A95,[2]Amazon!$A$2:$F$17,5,FALSE),0)","v":0},{"$f":"$BL95+$BM94-IFERROR(VLOOKUP($A95,'[2]Myaccountaccess Pivot'!$A$4:$B$31,2,FALSE),0)","v":0},{"$f":"IFERROR(VLOOKUP($A95,'[2]export-1'!$A$2:$F$441,6,FALSE),AJ94)","v":2713.2700000000004},{"$f":"IFERROR(VLOOKUP($A95,'[7]download-1'!$A$2:$F$513,6,FALSE),AK94)","v":-1.9326762412674725E-12},{"$f":"IFERROR(VLOOKUP($A95,'[3]TexttoColumn Amazon Balance'!$A$14:$B$30,2,FALSE),IF(AL96>0,AL96-50,0))","v":3494.75},12709.029999999999,18962.57,95,63,0,0,null,null,null,null,null,{"$f":"IFERROR(VLOOKUP($A95,'[2]export-1'!$A$446:$G$451,7,FALSE),0)","v":0},{"$f":"IFERROR(VLOOKUP($A95,[3]Sheet4!$A$4:$B$56,2,FALSE),0)","v":0},{"$f":"IFERROR(VLOOKUP($A95,'[3]headphones purchased'!$A$2:$G$27,6,FALSE),0)","v":0},{"$f":"ROUND(IFERROR(VLOOKUP($A95,'[4]download-1'!$A$471:$F$474,5,FALSE)/-9.5,0),0)","v":0},{"$f":"ROUND(IFERROR(VLOOKUP($A95,'[4]download-1'!$A$467:$F$469,5,FALSE)/-49,0),0)","v":0},{"$f":"IFERROR(VLOOKUP($A95,[5]Sheet8!$A$4:$B$89,2,FALSE),0)","v":0},null,null,1,{"$f":"IFERROR(VLOOKUP($A95,[3]Paypal!$A$2:$AA$1843,25,FALSE),0)","v":6501.19},{"$f":"IFERROR(VLOOKUP($A95,'[3]Paypal Money Sent Pivot'!$A$4:$B$97,2,FALSE),0)","v":0},{"$f":"$BH95+$BI94-IFERROR(VLOOKUP($A95,[2]Sheet2!$A$4:$B$82,2,FALSE),0)","v":-0.17999999999983629},{"$f":"IFERROR(VLOOKUP($A95,'[3]TexttoColumn Amazon Balance'!$A$14:$B$30,2,FALSE),0)","v":0},{"$f":"$BJ94+$BK94-IFERROR(VLOOKUP($A95,[2]Amazon!$A$2:$F$17,5,FALSE),0)","v":0},{"$f":"IFERROR(VLOOKUP($A95,'[4]Payment Pivot'!$A$4:$B$39,2,FALSE),0)","v":0},{"$f":"$BL95+$BM94-IFERROR(VLOOKUP($A95,'[2]Myaccountaccess Pivot'!$A$4:$B$31,2,FALSE),0)","v":0},null,{"$f":"IFERROR(VLOOKUP($A95,'[6]export-2'!$A$2:$F$15,6,FALSE),BO94)","v":1000.04},564.79930608909615,{"$f":"OFFSET(A95,0,'Cool Graph'!$H$1)","v":30},{"$f":"OFFSET(A95,0,'Cool Graph'!$I$1)","v":564.79930608909615}]
["2011-10-03",60,17.440000000000001,47.660000000000004,179.63999999999996,2.36,307.09999999999997,0,0,0,3,1,5,0,170.24999999999997,1,3,9.39,0,1,0,0,0,4,4,0,0,5,165,{"$f":"IFERROR(VLOOKUP($A96,[1]Sheet1!$A$4:$B$219,2,FALSE),0)","v":660},825,4.5299999999988358,{"$f":"$BH96+$BI95-IFERROR(VLOOKUP($A96,[2]Sheet2!$A$4:$B$82,2,FALSE),0)","v":-0.17999999999983629},{"$f":"$BJ95+$BK95-IFERROR(VLOOKUP($A96,[2]Amazon!$A$2:$F$17,5,FALSE),0)","v":0},{"$f":"$BL96+$BM95-IFERROR(VLOOKUP($A96,'[2]Myaccountaccess Pivot'!$A$4:$B$31,2,FALSE),0)","v":0},{"$f":"IFERROR(VLOOKUP($A96,'[2]export-1'!$A$2:$F$441,6,FALSE),AJ95)","v":2713.2700000000004},{"$f":"IFERROR(VLOOKUP($A96,'[7]download-1'!$A$2:$F$513,6,FALSE),AK95)","v":-500.00000000000193},{"$f":"IFERROR(VLOOKUP($A96,'[3]TexttoColumn Amazon Balance'!$A$14:$B$30,2,FALSE),IF(AL97>0,AL97-50,0))","v":3544.75},12310.559999999998,18967.099999999999,104,59,0,0,null,null,null,null,null,{"$f":"IFERROR(VLOOKUP($A96,'[2]export-1'!$A$446:$G$451,7,FALSE),0)","v":0},{"$f":"IFERROR(VLOOKUP($A96,[3]Sheet4!$A$4:$B$56,2,FALSE),0)","v":15},{"$f":"IFERROR(VLOOKUP($A96,'[3]headphones purchased'!$A$2:$G$27,6,FALSE),0)","v":0},{"$f":"ROUND(IFERROR(VLOOKUP($A96,'[4]download-1'!$A$471:$F$474,5,FALSE)/-9.5,0),0)","v":0},{"$f":"ROUND(IFERROR(VLOOKUP($A96,'[4]download-1'!$A$467:$F$469,5,FALSE)/-49,0),0)","v":0},{"$f":"IFERROR(VLOOKUP($A96,[5]Sheet8!$A$4:$B$89,2,FALSE),0)","v":1},null,null,0,{"$f":"IFERROR(VLOOKUP($A96,[3]Paypal!$A$2:$AA$1843,25,FALSE),0)","v":6552.72},{"$f":"IFERROR(VLOOKUP($A96,'[3]Paypal Money Sent Pivot'!$A$4:$B$97,2,FALSE),0)","v":0},{"$f":"$BH96+$BI95-IFERROR(VLOOKUP($A96,[2]Sheet2!$A$4:$B$82,2,FALSE),0)","v":-0.17999999999983629},{"$f":"IFERROR(VLOOKUP($A96,'[3]TexttoColumn Amazon Balance'!$A$14:$B$30,2,FALSE),0)","v":0},{"$f":"$BJ95+$BK95-IFERROR(VLOOKUP($A96,[2]Amazon!$A$2:$F$17,5,FALSE),0)","v":0},{"$f":"IFERROR(VLOOKUP($A96,'[4]Payment Pivot'!$A$4:$B$39,2,FALSE),0)","v":0},{"$f":"$BL96+$BM95-IFERROR(VLOOKUP($A96,'[2]Myaccountaccess Pivot'!$A$4:$B$31,2,FALSE),0)","v":0},null,{"$f":"IFERROR(VLOOKUP($A96,'[6]export-2'!$A$2:$F$15,6,FALSE),BO95)","v":1000.04},42.249684585952821,{"$f":"OFFSET(A96,0,'Cool Graph'!$H$1)","v":60},{"$f":"OFFSET(A96,0,'Cool Graph'!$I$1)","v":42.249684585952821}]
["2011-10-04",250,18.440000000000001,84.830000000000013,259.40000000000003,1.84,614.5100000000001,1,0,0,0,1,0,0,250.85,0,0,8.5500000000000007,1,1,0,0,0,6,6,0,0,7,165,{"$f":"IFERROR(VLOOKUP($A97,[1]Sheet1!$A$4:$B$219,2,FALSE),0)","v":990},1155,107.56000000000131,{"$f":"$BH97+$BI96-IFERROR(VLOOKUP($A97,[2]Sheet2!$A$4:$B$82,2,FALSE),0)","v":-0.17999999999983629},{"$f":"$BJ96+$BK96-IFERROR(VLOOKUP($A97,[2]Amazon!$A$2:$F$17,5,FALSE),0)","v":0},{"$f":"$BL97+$BM96-IFERROR(VLOOKUP($A97,'[2]Myaccountaccess Pivot'!$A$4:$B$31,2,FALSE),0)","v":0},{"$f":"IFERROR(VLOOKUP($A97,'[2]export-1'!$A$2:$F$441,6,FALSE),AJ96)","v":2461.3100000000004},{"$f":"IFERROR(VLOOKUP($A97,'[7]download-1'!$A$2:$F$513,6,FALSE),AK96)","v":-548.63000000000193},{"$f":"IFERROR(VLOOKUP($A97,'[3]TexttoColumn Amazon Balance'!$A$14:$B$30,2,FALSE),IF(AL98>0,AL98-50,0))","v":3594.75},10466.119999999999,19074.66,145,53,0,0,null,null,null,null,null,{"$f":"IFERROR(VLOOKUP($A97,'[2]export-1'!$A$446:$G$451,7,FALSE),0)","v":0},{"$f":"IFERROR(VLOOKUP($A97,[3]Sheet4!$A$4:$B$56,2,FALSE),0)","v":48},{"$f":"IFERROR(VLOOKUP($A97,'[3]headphones purchased'!$A$2:$G$27,6,FALSE),0)","v":0},{"$f":"ROUND(IFERROR(VLOOKUP($A97,'[4]download-1'!$A$471:$F$474,5,FALSE)/-9.5,0),0)","v":0},{"$f":"ROUND(IFERROR(VLOOKUP($A97,'[4]download-1'!$A$467:$F$469,5,FALSE)/-49,0),0)","v":0},{"$f":"IFERROR(VLOOKUP($A97,[5]Sheet8!$A$4:$B$89,2,FALSE),0)","v":1},null,null,1,{"$f":"IFERROR(VLOOKUP($A97,[3]Paypal!$A$2:$AA$1843,25,FALSE),0)","v":4958.87},{"$f":"IFERROR(VLOOKUP($A97,'[3]Paypal Money Sent Pivot'!$A$4:$B$97,2,FALSE),0)","v":0},{"$f":"$BH97+$BI96-IFERROR(VLOOKUP($A97,[2]Sheet2!$A$4:$B$82,2,FALSE),0)","v":-0.17999999999983629},{"$f":"IFERROR(VLOOKUP($A97,'[3]TexttoColumn Amazon Balance'!$A$14:$B$30,2,FALSE),0)","v":0},{"$f":"$BJ96+$BK96-IFERROR(VLOOKUP($A97,[2]Amazon!$A$2:$F$17,5,FALSE),0)","v":0},{"$f":"IFERROR(VLOOKUP($A97,'[4]Payment Pivot'!$A$4:$B$39,2,FALSE),0)","v":0},{"$f":"$BL97+$BM96-IFERROR(VLOOKUP($A97,'[2]Myaccountaccess Pivot'!$A$4:$B$31,2,FALSE),0)","v":0},null,{"$f":"IFERROR(VLOOKUP($A97,'[6]export-2'!$A$2:$F$15,6,FALSE),BO96)","v":1000.04},-125.4204415796662,{"$f":"OFFSET(A97,0,'Cool Graph'!$H$1)","v":250},{"$f":"OFFSET(A97,0,'Cool Graph'!$I$1)","v":-125.4204415796662}]
["2011-10-05",250,14.65,131.12,233.75000000000003,5.41,634.92999999999995,1,0,0,5,1,0,0,229.01000000000002,1,0,4.74,0,1,0,0,0,15,15,0,0,16,160,{"$f":"IFERROR(VLOOKUP($A98,[1]Sheet1!$A$4:$B$219,2,FALSE),0)","v":2475},2635,418.65999999999985,{"$f":"$BH98+$BI97-IFERROR(VLOOKUP($A98,[2]Sheet2!$A$4:$B$82,2,FALSE),0)","v":4499.82},{"$f":"$BJ97+$BK97-IFERROR(VLOOKUP($A98,[2]Amazon!$A$2:$F$17,5,FALSE),0)","v":0},{"$f":"$BL98+$BM97-IFERROR(VLOOKUP($A98,'[2]Myaccountaccess Pivot'!$A$4:$B$31,2,FALSE),0)","v":0},{"$f":"IFERROR(VLOOKUP($A98,'[2]export-1'!$A$2:$F$441,6,FALSE),AJ97)","v":2110.34},{"$f":"IFERROR(VLOOKUP($A98,'[7]download-1'!$A$2:$F$513,6,FALSE),AK97)","v":-1648.260000000002},{"$f":"IFERROR(VLOOKUP($A98,'[3]TexttoColumn Amazon Balance'!$A$14:$B$30,2,FALSE),IF(AL99>0,AL99-50,0))","v":3644.75},9448.779999999997,19493.32,165,101,0,0,null,null,null,null,null,{"$f":"IFERROR(VLOOKUP($A98,'[2]export-1'!$A$446:$G$451,7,FALSE),0)","v":0},{"$f":"IFERROR(VLOOKUP($A98,[3]Sheet4!$A$4:$B$56,2,FALSE),0)","v":36},{"$f":"IFERROR(VLOOKUP($A98,'[3]headphones purchased'!$A$2:$G$27,6,FALSE),0)","v":63},{"$f":"ROUND(IFERROR(VLOOKUP($A98,'[4]download-1'!$A$471:$F$474,5,FALSE)/-9.5,0),0)","v":0},{"$f":"ROUND(IFERROR(VLOOKUP($A98,'[4]download-1'!$A$467:$F$469,5,FALSE)/-49,0),0)","v":0},{"$f":"IFERROR(VLOOKUP($A98,[5]Sheet8!$A$4:$B$89,2,FALSE),0)","v":0},null,null,0,{"$f":"IFERROR(VLOOKUP($A98,[3]Paypal!$A$2:$AA$1843,25,FALSE),0)","v":842.13},{"$f":"IFERROR(VLOOKUP($A98,'[3]Paypal Money Sent Pivot'!$A$4:$B$97,2,FALSE),0)","v":4500},{"$f":"$BH98+$BI97-IFERROR(VLOOKUP($A98,[2]Sheet2!$A$4:$B$82,2,FALSE),0)","v":4499.82},{"$f":"IFERROR(VLOOKUP($A98,'[3]TexttoColumn Amazon Balance'!$A$14:$B$30,2,FALSE),0)","v":0},{"$f":"$BJ97+$BK97-IFERROR(VLOOKUP($A98,[2]Amazon!$A$2:$F$17,5,FALSE),0)","v":0},{"$f":"IFERROR(VLOOKUP($A98,'[4]Payment Pivot'!$A$4:$B$39,2,FALSE),0)","v":0},{"$f":"$BL98+$BM97-IFERROR(VLOOKUP($A98,'[2]Myaccountaccess Pivot'!$A$4:$B$31,2,FALSE),0)","v":0},null,{"$f":"IFERROR(VLOOKUP($A98,'[6]export-2'!$A$2:$F$15,6,FALSE),BO97)","v":1000.04},480.87171985937664,{"$f":"OFFSET(A98,0,'Cool Graph'!$H$1)","v":250},{"$f":"OFFSET(A98,0,'Cool Graph'!$I$1)","v":480.87171985937664}]
["2011-10-06",250,12.88,105.41999999999999,200.66000000000003,2.77,571.73,1,0,0,2,2,1,0,195.61,2,1,5.05,0,10,0,0,0,11,11,0,0,21,249.5,{"$f":"IFERROR(VLOOKUP($A99,[1]Sheet1!$A$4:$B$219,2,FALSE),0)","v":1815},2064.5,310.07999999999811,{"$f":"$BH99+$BI98-IFERROR(VLOOKUP($A99,[2]Sheet2!$A$4:$B$82,2,FALSE),0)","v":4499.82},{"$f":"$BJ98+$BK98-IFERROR(VLOOKUP($A99,[2]Amazon!$A$2:$F$17,5,FALSE),0)","v":0},{"$f":"$BL99+$BM98-IFERROR(VLOOKUP($A99,'[2]Myaccountaccess Pivot'!$A$4:$B$31,2,FALSE),0)","v":0},{"$f":"IFERROR(VLOOKUP($A99,'[2]export-1'!$A$2:$F$441,6,FALSE),AJ98)","v":2070.34},{"$f":"IFERROR(VLOOKUP($A99,'[7]download-1'!$A$2:$F$513,6,FALSE),AK98)","v":-2148.260000000002},{"$f":"IFERROR(VLOOKUP($A99,'[3]TexttoColumn Amazon Balance'!$A$14:$B$30,2,FALSE),IF(AL100>0,AL100-50,0))","v":3694.75},10843.359999999997,19803.399999999998,145,90,0,0,null,null,null,null,null,{"$f":"IFERROR(VLOOKUP($A99,'[2]export-1'!$A$446:$G$451,7,FALSE),0)","v":0},{"$f":"IFERROR(VLOOKUP($A99,[3]Sheet4!$A$4:$B$56,2,FALSE),0)","v":0},{"$f":"IFERROR(VLOOKUP($A99,'[3]headphones purchased'!$A$2:$G$27,6,FALSE),0)","v":0},{"$f":"ROUND(IFERROR(VLOOKUP($A99,'[4]download-1'!$A$471:$F$474,5,FALSE)/-9.5,0),0)","v":0},{"$f":"ROUND(IFERROR(VLOOKUP($A99,'[4]download-1'!$A$467:$F$469,5,FALSE)/-49,0),0)","v":0},{"$f":"IFERROR(VLOOKUP($A99,[5]Sheet8!$A$4:$B$89,2,FALSE),0)","v":0},null,null,1,{"$f":"IFERROR(VLOOKUP($A99,[3]Paypal!$A$2:$AA$1843,25,FALSE),0)","v":2726.71},{"$f":"IFERROR(VLOOKUP($A99,'[3]Paypal Money Sent Pivot'!$A$4:$B$97,2,FALSE),0)","v":0},{"$f":"$BH99+$BI98-IFERROR(VLOOKUP($A99,[2]Sheet2!$A$4:$B$82,2,FALSE),0)","v":4499.82},{"$f":"IFERROR(VLOOKUP($A99,'[3]TexttoColumn Amazon Balance'!$A$14:$B$30,2,FALSE),0)","v":0},{"$f":"$BJ98+$BK98-IFERROR(VLOOKUP($A99,[2]Amazon!$A$2:$F$17,5,FALSE),0)","v":0},{"$f":"IFERROR(VLOOKUP($A99,'[4]Payment Pivot'!$A$4:$B$39,2,FALSE),0)","v":0},{"$f":"$BL99+$BM98-IFERROR(VLOOKUP($A99,'[2]Myaccountaccess Pivot'!$A$4:$B$31,2,FALSE),0)","v":0},null,{"$f":"IFERROR(VLOOKUP($A99,'[6]export-2'!$A$2:$F$15,6,FALSE),BO98)","v":1000.04},302.49111979115094,{"$f":"OFFSET(A99,0,'Cool Graph'!$H$1)","v":250},{"$f":"OFFSET(A99,0,'Cool Graph'!$I$1)","v":302.49111979115094}]
["2011-10-07",62.16,6.17,85.029999999999987,181.43,4.6100000000000003,339.4,0,0,0,1,3,0,0,170.94,3,0,10.49,0,1,0,0,0,16,16,0,0,17,165,{"$f":"IFERROR(VLOOKUP($A100,[1]Sheet1!$A$4:$B$219,2,FALSE),0)","v":2640},2805,617.83000000000175,{"$f":"$BH100+$BI99-IFERROR(VLOOKUP($A100,[2]Sheet2!$A$4:$B$82,2,FALSE),0)","v":4499.82},{"$f":"$BJ99+$BK99-IFERROR(VLOOKUP($A100,[2]Amazon!$A$2:$F$17,5,FALSE),0)","v":0},{"$f":"$BL100+$BM99-IFERROR(VLOOKUP($A100,'[2]Myaccountaccess Pivot'!$A$4:$B$31,2,FALSE),0)","v":0},{"$f":"IFERROR(VLOOKUP($A100,'[2]export-1'!$A$2:$F$441,6,FALSE),AJ99)","v":1991.0000000000002},{"$f":"IFERROR(VLOOKUP($A100,'[7]download-1'!$A$2:$F$513,6,FALSE),AK99)","v":-2372.8100000000004},{"$f":"IFERROR(VLOOKUP($A100,'[3]TexttoColumn Amazon Balance'!$A$14:$B$30,2,FALSE),IF(AL101>0,AL101-50,0))","v":3744.75},9619.1899999999987,20421.23,176,124,0,0,null,null,null,null,null,{"$f":"IFERROR(VLOOKUP($A100,'[2]export-1'!$A$446:$G$451,7,FALSE),0)","v":0},{"$f":"IFERROR(VLOOKUP($A100,[3]Sheet4!$A$4:$B$56,2,FALSE),0)","v":48},{"$f":"IFERROR(VLOOKUP($A100,'[3]headphones purchased'!$A$2:$G$27,6,FALSE),0)","v":50},{"$f":"ROUND(IFERROR(VLOOKUP($A100,'[4]download-1'!$A$471:$F$474,5,FALSE)/-9.5,0),0)","v":0},{"$f":"ROUND(IFERROR(VLOOKUP($A100,'[4]download-1'!$A$467:$F$469,5,FALSE)/-49,0),0)","v":0},{"$f":"IFERROR(VLOOKUP($A100,[5]Sheet8!$A$4:$B$89,2,FALSE),0)","v":0},null,null,0,{"$f":"IFERROR(VLOOKUP($A100,[3]Paypal!$A$2:$AA$1843,25,FALSE),0)","v":1756.43},{"$f":"IFERROR(VLOOKUP($A100,'[3]Paypal Money Sent Pivot'!$A$4:$B$97,2,FALSE),0)","v":0},{"$f":"$BH100+$BI99-IFERROR(VLOOKUP($A100,[2]Sheet2!$A$4:$B$82,2,FALSE),0)","v":4499.82},{"$f":"IFERROR(VLOOKUP($A100,'[3]TexttoColumn Amazon Balance'!$A$14:$B$30,2,FALSE),0)","v":0},{"$f":"$BJ99+$BK99-IFERROR(VLOOKUP($A100,[2]Amazon!$A$2:$F$17,5,FALSE),0)","v":0},{"$f":"IFERROR(VLOOKUP($A100,'[4]Payment Pivot'!$A$4:$B$39,2,FALSE),0)","v":0},{"$f":"$BL100+$BM99-IFERROR(VLOOKUP($A100,'[2]Myaccountaccess Pivot'!$A$4:$B$31,2,FALSE),0)","v":0},null,{"$f":"IFERROR(VLOOKUP($A100,'[6]export-2'!$A$2:$F$15,6,FALSE),BO99)","v":1000.04},848.38892759223961,{"$f":"OFFSET(A100,0,'Cool Graph'!$H$1)","v":62.16},{"$f":"OFFSET(A100,0,'Cool Graph'!$I$1)","v":848.38892759223961}]
["2011-10-08",17.72,8.74,93.100000000000009,171.55,2.58,293.69,0,0,0,0,1,1,0,160.94999999999999,1,1,10.6,0,0,0,0,0,4,4,0,0,4,0,{"$f":"IFERROR(VLOOKUP($A101,[1]Sheet1!$A$4:$B$219,2,FALSE),0)","v":660},660,464.2599999999984,{"$f":"$BH101+$BI100-IFERROR(VLOOKUP($A101,[2]Sheet2!$A$4:$B$82,2,FALSE),0)","v":4499.82},{"$f":"$BJ100+$BK100-IFERROR(VLOOKUP($A101,[2]Amazon!$A$2:$F$17,5,FALSE),0)","v":0},{"$f":"$BL101+$BM100-IFERROR(VLOOKUP($A101,'[2]Myaccountaccess Pivot'!$A$4:$B$31,2,FALSE),0)","v":0},{"$f":"IFERROR(VLOOKUP($A101,'[2]export-1'!$A$2:$F$441,6,FALSE),AJ100)","v":1991.0000000000002},{"$f":"IFERROR(VLOOKUP($A101,'[7]download-1'!$A$2:$F$513,6,FALSE),AK100)","v":-2372.8100000000004},{"$f":"IFERROR(VLOOKUP($A101,'[3]TexttoColumn Amazon Balance'!$A$14:$B$30,2,FALSE),IF(AL102>0,AL102-50,0))","v":3794.75},8210.4499999999989,20885.489999999998,215,120,0,0,null,null,null,null,null,{"$f":"IFERROR(VLOOKUP($A101,'[2]export-1'!$A$446:$G$451,7,FALSE),0)","v":0},{"$f":"IFERROR(VLOOKUP($A101,[3]Sheet4!$A$4:$B$56,2,FALSE),0)","v":42},{"$f":"IFERROR(VLOOKUP($A101,'[3]headphones purchased'!$A$2:$G$27,6,FALSE),0)","v":0},{"$f":"ROUND(IFERROR(VLOOKUP($A101,'[4]download-1'!$A$471:$F$474,5,FALSE)/-9.5,0),0)","v":0},{"$f":"ROUND(IFERROR(VLOOKUP($A101,'[4]download-1'!$A$467:$F$469,5,FALSE)/-49,0),0)","v":0},{"$f":"IFERROR(VLOOKUP($A101,[5]Sheet8!$A$4:$B$89,2,FALSE),0)","v":0},null,null,1,{"$f":"IFERROR(VLOOKUP($A101,[3]Paypal!$A$2:$AA$1843,25,FALSE),0)","v":297.69},{"$f":"IFERROR(VLOOKUP($A101,'[3]Paypal Money Sent Pivot'!$A$4:$B$97,2,FALSE),0)","v":0},{"$f":"$BH101+$BI100-IFERROR(VLOOKUP($A101,[2]Sheet2!$A$4:$B$82,2,FALSE),0)","v":4499.82},{"$f":"IFERROR(VLOOKUP($A101,'[3]TexttoColumn Amazon Balance'!$A$14:$B$30,2,FALSE),0)","v":3794.75},{"$f":"$BJ100+$BK100-IFERROR(VLOOKUP($A101,[2]Amazon!$A$2:$F$17,5,FALSE),0)","v":0},{"$f":"IFERROR(VLOOKUP($A101,'[4]Payment Pivot'!$A$4:$B$39,2,FALSE),0)","v":0},{"$f":"$BL101+$BM100-IFERROR(VLOOKUP($A101,'[2]Myaccountaccess Pivot'!$A$4:$B$31,2,FALSE),0)","v":0},null,{"$f":"IFERROR(VLOOKUP($A101,'[6]export-2'!$A$2:$F$15,6,FALSE),BO100)","v":1000.04},-14.210252331237768,{"$f":"OFFSET(A101,0,'Cool Graph'!$H$1)","v":17.72},{"$f":"OFFSET(A101,0,'Cool Graph'!$I$1)","v":-14.210252331237768}]
["2011-10-09",36.869999999999997,6.75,95.99,135.27000000000001,1.88,276.76,0,0,0,2,0,0,0,124,0,0,11.27,0,1,0,0,0,8,8,0,0,9,160,{"$f":"IFERROR(VLOOKUP($A102,[1]Sheet1!$A$4:$B$219,2,FALSE),0)","v":1320},1480,1130.7400000000016,{"$f":"$BH102+$BI101-IFERROR(VLOOKUP($A102,[2]Sheet2!$A$4:$B$82,2,FALSE),0)","v":4499.82},{"$f":"$BJ101+$BK101-IFERROR(VLOOKUP($A102,[2]Amazon!$A$2:$F$17,5,FALSE),0)","v":3794.75},{"$f":"$BL102+$BM101-IFERROR(VLOOKUP($A102,'[2]Myaccountaccess Pivot'!$A$4:$B$31,2,FALSE),0)","v":0},{"$f":"IFERROR(VLOOKUP($A102,'[2]export-1'!$A$2:$F$441,6,FALSE),AJ101)","v":1991.0000000000002},{"$f":"IFERROR(VLOOKUP($A102,'[7]download-1'!$A$2:$F$513,6,FALSE),AK101)","v":-2372.8100000000004},{"$f":"IFERROR(VLOOKUP($A102,'[3]TexttoColumn Amazon Balance'!$A$14:$B$30,2,FALSE),IF(AL103>0,AL103-50,0))","v":208.54999999999995},9858.1899999999987,22016.23,206,112,0,0,null,null,null,null,null,{"$f":"IFERROR(VLOOKUP($A102,'[2]export-1'!$A$446:$G$451,7,FALSE),0)","v":0},{"$f":"IFERROR(VLOOKUP($A102,[3]Sheet4!$A$4:$B$56,2,FALSE),0)","v":0},{"$f":"IFERROR(VLOOKUP($A102,'[3]headphones purchased'!$A$2:$G$27,6,FALSE),0)","v":0},{"$f":"ROUND(IFERROR(VLOOKUP($A102,'[4]download-1'!$A$471:$F$474,5,FALSE)/-9.5,0),0)","v":0},{"$f":"ROUND(IFERROR(VLOOKUP($A102,'[4]download-1'!$A$467:$F$469,5,FALSE)/-49,0),0)","v":0},{"$f":"IFERROR(VLOOKUP($A102,[5]Sheet8!$A$4:$B$89,2,FALSE),0)","v":0},null,null,0,{"$f":"IFERROR(VLOOKUP($A102,[3]Paypal!$A$2:$AA$1843,25,FALSE),0)","v":1736.88},{"$f":"IFERROR(VLOOKUP($A102,'[3]Paypal Money Sent Pivot'!$A$4:$B$97,2,FALSE),0)","v":0},{"$f":"$BH102+$BI101-IFERROR(VLOOKUP($A102,[2]Sheet2!$A$4:$B$82,2,FALSE),0)","v":4499.82},{"$f":"IFERROR(VLOOKUP($A102,'[3]TexttoColumn Amazon Balance'!$A$14:$B$30,2,FALSE),0)","v":0},{"$f":"$BJ101+$BK101-IFERROR(VLOOKUP($A102,[2]Amazon!$A$2:$F$17,5,FALSE),0)","v":3794.75},{"$f":"IFERROR(VLOOKUP($A102,'[4]Payment Pivot'!$A$4:$B$39,2,FALSE),0)","v":0},{"$f":"$BL102+$BM101-IFERROR(VLOOKUP($A102,'[2]Myaccountaccess Pivot'!$A$4:$B$31,2,FALSE),0)","v":0},null,{"$f":"IFERROR(VLOOKUP($A102,'[6]export-2'!$A$2:$F$15,6,FALSE),BO101)","v":1000.04},349.95216143904258,{"$f":"OFFSET(A102,0,'Cool Graph'!$H$1)","v":36.869999999999997},{"$f":"OFFSET(A102,0,'Cool Graph'!$I$1)","v":349.95216143904258}]
["2011-10-10",245.04,10.75,113.08000000000001,134.49,3.25,506.61,1,0,0,6,3,0,0,120.55000000000001,2,0,13.94,1,0,0,0,0,11,11,0,0,11,0,{"$f":"IFERROR(VLOOKUP($A103,[1]Sheet1!$A$4:$B$219,2,FALSE),0)","v":1815},1815,1496.1000000000022,{"$f":"$BH103+$BI102-IFERROR(VLOOKUP($A103,[2]Sheet2!$A$4:$B$82,2,FALSE),0)","v":4499.82},{"$f":"$BJ102+$BK102-IFERROR(VLOOKUP($A103,[2]Amazon!$A$2:$F$17,5,FALSE),0)","v":3794.75},{"$f":"$BL103+$BM102-IFERROR(VLOOKUP($A103,'[2]Myaccountaccess Pivot'!$A$4:$B$31,2,FALSE),0)","v":0},{"$f":"IFERROR(VLOOKUP($A103,'[2]export-1'!$A$2:$F$441,6,FALSE),AJ102)","v":1991.0000000000002},{"$f":"IFERROR(VLOOKUP($A103,'[7]download-1'!$A$2:$F$513,6,FALSE),AK102)","v":-2372.8100000000004},{"$f":"IFERROR(VLOOKUP($A103,'[3]TexttoColumn Amazon Balance'!$A$14:$B$30,2,FALSE),IF(AL104>0,AL104-50,0))","v":258.54999999999995},11948.789999999999,23512.33,196,101,0,0,null,null,null,null,null,{"$f":"IFERROR(VLOOKUP($A103,'[2]export-1'!$A$446:$G$451,7,FALSE),0)","v":0},{"$f":"IFERROR(VLOOKUP($A103,[3]Sheet4!$A$4:$B$56,2,FALSE),0)","v":0},{"$f":"IFERROR(VLOOKUP($A103,'[3]headphones purchased'!$A$2:$G$27,6,FALSE),0)","v":0},{"$f":"ROUND(IFERROR(VLOOKUP($A103,'[4]download-1'!$A$471:$F$474,5,FALSE)/-9.5,0),0)","v":0},{"$f":"ROUND(IFERROR(VLOOKUP($A103,'[4]download-1'!$A$467:$F$469,5,FALSE)/-49,0),0)","v":0},{"$f":"IFERROR(VLOOKUP($A103,[5]Sheet8!$A$4:$B$89,2,FALSE),0)","v":0},null,null,1,{"$f":"IFERROR(VLOOKUP($A103,[3]Paypal!$A$2:$AA$1843,25,FALSE),0)","v":3777.48},{"$f":"IFERROR(VLOOKUP($A103,'[3]Paypal Money Sent Pivot'!$A$4:$B$97,2,FALSE),0)","v":0},{"$f":"$BH103+$BI102-IFERROR(VLOOKUP($A103,[2]Sheet2!$A$4:$B$82,2,FALSE),0)","v":4499.82},{"$f":"IFERROR(VLOOKUP($A103,'[3]TexttoColumn Amazon Balance'!$A$14:$B$30,2,FALSE),0)","v":0},{"$f":"$BJ102+$BK102-IFERROR(VLOOKUP($A103,[2]Amazon!$A$2:$F$17,5,FALSE),0)","v":3794.75},{"$f":"IFERROR(VLOOKUP($A103,'[4]Payment Pivot'!$A$4:$B$39,2,FALSE),0)","v":0},{"$f":"$BL103+$BM102-IFERROR(VLOOKUP($A103,'[2]Myaccountaccess Pivot'!$A$4:$B$31,2,FALSE),0)","v":0},null,{"$f":"IFERROR(VLOOKUP($A103,'[6]export-2'!$A$2:$F$15,6,FALSE),BO102)","v":1000.04},261.95930608909612,{"$f":"OFFSET(A103,0,'Cool Graph'!$H$1)","v":245.04},{"$f":"OFFSET(A103,0,'Cool Graph'!$I$1)","v":261.95930608909612}]
["2011-10-11",73.53,3.05,82.5,123.39000000000001,4.0599999999999996,286.53000000000003,0,0,0,2,1,1,0,108.5,1,0,14.89,0,0,0,0,0,6,6,0,0,6,0,{"$f":"IFERROR(VLOOKUP($A104,[1]Sheet1!$A$4:$B$219,2,FALSE),0)","v":990},990,-1055.8300000000017,{"$f":"$BH104+$BI103-IFERROR(VLOOKUP($A104,[2]Sheet2!$A$4:$B$82,2,FALSE),0)","v":-0.18000000000029104},{"$f":"$BJ103+$BK103-IFERROR(VLOOKUP($A104,[2]Amazon!$A$2:$F$17,5,FALSE),0)","v":0},{"$f":"$BL104+$BM103-IFERROR(VLOOKUP($A104,'[2]Myaccountaccess Pivot'!$A$4:$B$31,2,FALSE),0)","v":2372.81},{"$f":"IFERROR(VLOOKUP($A104,'[2]export-1'!$A$2:$F$441,6,FALSE),AJ103)","v":9939.51},{"$f":"IFERROR(VLOOKUP($A104,'[7]download-1'!$A$2:$F$513,6,FALSE),AK103)","v":-1740.9500000000005},{"$f":"IFERROR(VLOOKUP($A104,'[3]TexttoColumn Amazon Balance'!$A$14:$B$30,2,FALSE),IF(AL105>0,AL105-50,0))","v":308.54999999999995},8891.9600000000009,22456.5,238,95,0,0,null,null,null,null,null,{"$f":"IFERROR(VLOOKUP($A104,'[2]export-1'!$A$446:$G$451,7,FALSE),0)","v":0},{"$f":"IFERROR(VLOOKUP($A104,[3]Sheet4!$A$4:$B$56,2,FALSE),0)","v":48},{"$f":"IFERROR(VLOOKUP($A104,'[3]headphones purchased'!$A$2:$G$27,6,FALSE),0)","v":0},{"$f":"ROUND(IFERROR(VLOOKUP($A104,'[4]download-1'!$A$471:$F$474,5,FALSE)/-9.5,0),0)","v":0},{"$f":"ROUND(IFERROR(VLOOKUP($A104,'[4]download-1'!$A$467:$F$469,5,FALSE)/-49,0),0)","v":0},{"$f":"IFERROR(VLOOKUP($A104,[5]Sheet8!$A$4:$B$89,2,FALSE),0)","v":0},null,null,0,{"$f":"IFERROR(VLOOKUP($A104,[3]Paypal!$A$2:$AA$1843,25,FALSE),0)","v":2757.84},{"$f":"IFERROR(VLOOKUP($A104,'[3]Paypal Money Sent Pivot'!$A$4:$B$97,2,FALSE),0)","v":0},{"$f":"$BH104+$BI103-IFERROR(VLOOKUP($A104,[2]Sheet2!$A$4:$B$82,2,FALSE),0)","v":-0.18000000000029104},{"$f":"IFERROR(VLOOKUP($A104,'[3]TexttoColumn Amazon Balance'!$A$14:$B$30,2,FALSE),0)","v":0},{"$f":"$BJ103+$BK103-IFERROR(VLOOKUP($A104,[2]Amazon!$A$2:$F$17,5,FALSE),0)","v":0},{"$f":"IFERROR(VLOOKUP($A104,'[4]Payment Pivot'!$A$4:$B$39,2,FALSE),0)","v":2372.81},{"$f":"$BL104+$BM103-IFERROR(VLOOKUP($A104,'[2]Myaccountaccess Pivot'!$A$4:$B$31,2,FALSE),0)","v":2372.81},null,{"$f":"IFERROR(VLOOKUP($A104,'[6]export-2'!$A$2:$F$15,6,FALSE),BO103)","v":1000.04},132.68962150314331,{"$f":"OFFSET(A104,0,'Cool Graph'!$H$1)","v":73.53},{"$f":"OFFSET(A104,0,'Cool Graph'!$I$1)","v":132.68962150314331}]
["2011-10-12",4.16,5.01,66.53,80.13,3.03,158.85999999999999,0,0,0,2,2,0,0,65.58,2,0,14.55,0,0,0,0,0,11,11,0,0,11,0,{"$f":"IFERROR(VLOOKUP($A105,[1]Sheet1!$A$4:$B$219,2,FALSE),0)","v":1815},1815,528.30000000000291,{"$f":"$BH105+$BI104-IFERROR(VLOOKUP($A105,[2]Sheet2!$A$4:$B$82,2,FALSE),0)","v":-0.18000000000029104},{"$f":"$BJ104+$BK104-IFERROR(VLOOKUP($A105,[2]Amazon!$A$2:$F$17,5,FALSE),0)","v":0},{"$f":"$BL105+$BM104-IFERROR(VLOOKUP($A105,'[2]Myaccountaccess Pivot'!$A$4:$B$31,2,FALSE),0)","v":0},{"$f":"IFERROR(VLOOKUP($A105,'[2]export-1'!$A$2:$F$441,6,FALSE),AJ104)","v":7561.7000000000007},{"$f":"IFERROR(VLOOKUP($A105,'[7]download-1'!$A$2:$F$513,6,FALSE),AK104)","v":-2345.6600000000003},{"$f":"IFERROR(VLOOKUP($A105,'[3]TexttoColumn Amazon Balance'!$A$14:$B$30,2,FALSE),IF(AL106>0,AL106-50,0))","v":358.54999999999995},10014.76,22984.800000000003,228,84,0,0,null,null,null,null,null,{"$f":"IFERROR(VLOOKUP($A105,'[2]export-1'!$A$446:$G$451,7,FALSE),0)","v":0},{"$f":"IFERROR(VLOOKUP($A105,[3]Sheet4!$A$4:$B$56,2,FALSE),0)","v":0},{"$f":"IFERROR(VLOOKUP($A105,'[3]headphones purchased'!$A$2:$G$27,6,FALSE),0)","v":0},{"$f":"ROUND(IFERROR(VLOOKUP($A105,'[4]download-1'!$A$471:$F$474,5,FALSE)/-9.5,0),0)","v":0},{"$f":"ROUND(IFERROR(VLOOKUP($A105,'[4]download-1'!$A$467:$F$469,5,FALSE)/-49,0),0)","v":0},{"$f":"IFERROR(VLOOKUP($A105,[5]Sheet8!$A$4:$B$89,2,FALSE),0)","v":0},null,null,1,{"$f":"IFERROR(VLOOKUP($A105,[3]Paypal!$A$2:$AA$1843,25,FALSE),0)","v":4440.3500000000004},{"$f":"IFERROR(VLOOKUP($A105,'[3]Paypal Money Sent Pivot'!$A$4:$B$97,2,FALSE),0)","v":0},{"$f":"$BH105+$BI104-IFERROR(VLOOKUP($A105,[2]Sheet2!$A$4:$B$82,2,FALSE),0)","v":-0.18000000000029104},{"$f":"IFERROR(VLOOKUP($A105,'[3]TexttoColumn Amazon Balance'!$A$14:$B$30,2,FALSE),0)","v":0},{"$f":"$BJ104+$BK104-IFERROR(VLOOKUP($A105,[2]Amazon!$A$2:$F$17,5,FALSE),0)","v":0},{"$f":"IFERROR(VLOOKUP($A105,'[4]Payment Pivot'!$A$4:$B$39,2,FALSE),0)","v":0},{"$f":"$BL105+$BM104-IFERROR(VLOOKUP($A105,'[2]Myaccountaccess Pivot'!$A$4:$B$31,2,FALSE),0)","v":0},null,{"$f":"IFERROR(VLOOKUP($A105,'[6]export-2'!$A$2:$F$15,6,FALSE),BO104)","v":1000.04},609.70930608909612,{"$f":"OFFSET(A105,0,'Cool Graph'!$H$1)","v":4.16},{"$f":"OFFSET(A105,0,'Cool Graph'!$I$1)","v":609.70930608909612}]
["2011-10-13",0,3.85,64.63,67.169999999999987,2.75,138.39999999999998,0,0,0,2,0,0,0,56.349999999999994,0,0,10.82,0,0,0,0,0,0,0,0,0,0,0,{"$f":"IFERROR(VLOOKUP($A106,[1]Sheet1!$A$4:$B$219,2,FALSE),0)","v":0},0,-93.970000000001164,{"$f":"$BH106+$BI105-IFERROR(VLOOKUP($A106,[2]Sheet2!$A$4:$B$82,2,FALSE),0)","v":-0.18000000000029104},{"$f":"$BJ105+$BK105-IFERROR(VLOOKUP($A106,[2]Amazon!$A$2:$F$17,5,FALSE),0)","v":0},{"$f":"$BL106+$BM105-IFERROR(VLOOKUP($A106,'[2]Myaccountaccess Pivot'!$A$4:$B$31,2,FALSE),0)","v":1740.95},{"$f":"IFERROR(VLOOKUP($A106,'[2]export-1'!$A$2:$F$441,6,FALSE),AJ105)","v":7554.0000000000009},{"$f":"IFERROR(VLOOKUP($A106,'[7]download-1'!$A$2:$F$513,6,FALSE),AK105)","v":-861.70000000000027},{"$f":"IFERROR(VLOOKUP($A106,'[3]TexttoColumn Amazon Balance'!$A$14:$B$30,2,FALSE),IF(AL107>0,AL107-50,0))","v":408.54999999999995},9920.7900000000009,22890.83,228,84,0,0,null,null,null,null,null,{"$f":"IFERROR(VLOOKUP($A106,'[2]export-1'!$A$446:$G$451,7,FALSE),0)","v":0},{"$f":"IFERROR(VLOOKUP($A106,[3]Sheet4!$A$4:$B$56,2,FALSE),0)","v":0},{"$f":"IFERROR(VLOOKUP($A106,'[3]headphones purchased'!$A$2:$G$27,6,FALSE),0)","v":0},{"$f":"ROUND(IFERROR(VLOOKUP($A106,'[4]download-1'!$A$471:$F$474,5,FALSE)/-9.5,0),0)","v":0},{"$f":"ROUND(IFERROR(VLOOKUP($A106,'[4]download-1'!$A$467:$F$469,5,FALSE)/-49,0),0)","v":0},{"$f":"IFERROR(VLOOKUP($A106,[5]Sheet8!$A$4:$B$89,2,FALSE),0)","v":0},null,null,0,{"$f":"IFERROR(VLOOKUP($A106,[3]Paypal!$A$2:$AA$1843,25,FALSE),0)","v":4561.07},{"$f":"IFERROR(VLOOKUP($A106,'[3]Paypal Money Sent Pivot'!$A$4:$B$97,2,FALSE),0)","v":0},{"$f":"$BH106+$BI105-IFERROR(VLOOKUP($A106,[2]Sheet2!$A$4:$B$82,2,FALSE),0)","v":-0.18000000000029104},{"$f":"IFERROR(VLOOKUP($A106,'[3]TexttoColumn Amazon Balance'!$A$14:$B$30,2,FALSE),0)","v":0},{"$f":"$BJ105+$BK105-IFERROR(VLOOKUP($A106,[2]Amazon!$A$2:$F$17,5,FALSE),0)","v":0},{"$f":"IFERROR(VLOOKUP($A106,'[4]Payment Pivot'!$A$4:$B$39,2,FALSE),0)","v":1740.95},{"$f":"$BL106+$BM105-IFERROR(VLOOKUP($A106,'[2]Myaccountaccess Pivot'!$A$4:$B$31,2,FALSE),0)","v":1740.95},null,{"$f":"IFERROR(VLOOKUP($A106,'[6]export-2'!$A$2:$F$15,6,FALSE),BO105)","v":1000.04},-138.39999999999998,{"$f":"OFFSET(A106,0,'Cool Graph'!$H$1)","v":0},{"$f":"OFFSET(A106,0,'Cool Graph'!$I$1)","v":-138.39999999999998}]
["2011-10-14",0,4.95,59.99,66.11,3.11,134.16000000000003,1,0,0,2,0,2,0,57.03,0,0,9.08,0,0,0,0,0,4,4,0,0,4,0,{"$f":"IFERROR(VLOOKUP($A107,[1]Sheet1!$A$4:$B$219,2,FALSE),0)","v":660},660,-1089.5400000000009,{"$f":"$BH107+$BI106-IFERROR(VLOOKUP($A107,[2]Sheet2!$A$4:$B$82,2,FALSE),0)","v":-0.18000000000029104},{"$f":"$BJ106+$BK106-IFERROR(VLOOKUP($A107,[2]Amazon!$A$2:$F$17,5,FALSE),0)","v":0},{"$f":"$BL107+$BM106-IFERROR(VLOOKUP($A107,'[2]Myaccountaccess Pivot'!$A$4:$B$31,2,FALSE),0)","v":0},{"$f":"IFERROR(VLOOKUP($A107,'[2]export-1'!$A$2:$F$441,6,FALSE),AJ106)","v":4349.380000000001},{"$f":"IFERROR(VLOOKUP($A107,'[7]download-1'!$A$2:$F$513,6,FALSE),AK106)","v":-935.23000000000025},{"$f":"IFERROR(VLOOKUP($A107,'[3]TexttoColumn Amazon Balance'!$A$14:$B$30,2,FALSE),IF(AL108>0,AL108-50,0))","v":458.54999999999995},9016.25,21801.29,225,80,0,0,null,null,null,null,null,{"$f":"IFERROR(VLOOKUP($A107,'[2]export-1'!$A$446:$G$451,7,FALSE),0)","v":0},{"$f":"IFERROR(VLOOKUP($A107,[3]Sheet4!$A$4:$B$56,2,FALSE),0)","v":0},{"$f":"IFERROR(VLOOKUP($A107,'[3]headphones purchased'!$A$2:$G$27,6,FALSE),0)","v":0},{"$f":"ROUND(IFERROR(VLOOKUP($A107,'[4]download-1'!$A$471:$F$474,5,FALSE)/-9.5,0),0)","v":0},{"$f":"ROUND(IFERROR(VLOOKUP($A107,'[4]download-1'!$A$467:$F$469,5,FALSE)/-49,0),0)","v":0},{"$f":"IFERROR(VLOOKUP($A107,[5]Sheet8!$A$4:$B$89,2,FALSE),0)","v":0},null,null,1,{"$f":"IFERROR(VLOOKUP($A107,[3]Paypal!$A$2:$AA$1843,25,FALSE),0)","v":5143.7299999999996},{"$f":"IFERROR(VLOOKUP($A107,'[3]Paypal Money Sent Pivot'!$A$4:$B$97,2,FALSE),0)","v":0},{"$f":"$BH107+$BI106-IFERROR(VLOOKUP($A107,[2]Sheet2!$A$4:$B$82,2,FALSE),0)","v":-0.18000000000029104},{"$f":"IFERROR(VLOOKUP($A107,'[3]TexttoColumn Amazon Balance'!$A$14:$B$30,2,FALSE),0)","v":0},{"$f":"$BJ106+$BK106-IFERROR(VLOOKUP($A107,[2]Amazon!$A$2:$F$17,5,FALSE),0)","v":0},{"$f":"IFERROR(VLOOKUP($A107,'[4]Payment Pivot'!$A$4:$B$39,2,FALSE),0)","v":0},{"$f":"$BL107+$BM106-IFERROR(VLOOKUP($A107,'[2]Myaccountaccess Pivot'!$A$4:$B$31,2,FALSE),0)","v":0},null,{"$f":"IFERROR(VLOOKUP($A107,'[6]export-2'!$A$2:$F$15,6,FALSE),BO106)","v":1000.04},145.3197476687622,{"$f":"OFFSET(A107,0,'Cool Graph'!$H$1)","v":0},{"$f":"OFFSET(A107,0,'Cool Graph'!$I$1)","v":145.3197476687622}]
["2011-10-15",0,10.5,51.47,54.58,2.02,118.57,0,1,0,3,0,0,0,45.88,0,0,8.6999999999999993,0,1,0,0,0,5,5,0,0,6,160,{"$f":"IFERROR(VLOOKUP($A108,[1]Sheet1!$A$4:$B$219,2,FALSE),0)","v":825},985,453.27000000000044,{"$f":"$BH108+$BI107-IFERROR(VLOOKUP($A108,[2]Sheet2!$A$4:$B$82,2,FALSE),0)","v":-0.18000000000029104},{"$f":"$BJ107+$BK107-IFERROR(VLOOKUP($A108,[2]Amazon!$A$2:$F$17,5,FALSE),0)","v":0},{"$f":"$BL108+$BM107-IFERROR(VLOOKUP($A108,'[2]Myaccountaccess Pivot'!$A$4:$B$31,2,FALSE),0)","v":0},{"$f":"IFERROR(VLOOKUP($A108,'[2]export-1'!$A$2:$F$441,6,FALSE),AJ107)","v":4349.380000000001},{"$f":"IFERROR(VLOOKUP($A108,'[7]download-1'!$A$2:$F$513,6,FALSE),AK107)","v":-935.23000000000025},{"$f":"IFERROR(VLOOKUP($A108,'[3]TexttoColumn Amazon Balance'!$A$14:$B$30,2,FALSE),IF(AL109>0,AL109-50,0))","v":508.54999999999995},9811.02,22254.560000000001,219,75,0,0,null,null,null,null,null,{"$f":"IFERROR(VLOOKUP($A108,'[2]export-1'!$A$446:$G$451,7,FALSE),0)","v":0},{"$f":"IFERROR(VLOOKUP($A108,[3]Sheet4!$A$4:$B$56,2,FALSE),0)","v":0},{"$f":"IFERROR(VLOOKUP($A108,'[3]headphones purchased'!$A$2:$G$27,6,FALSE),0)","v":0},{"$f":"ROUND(IFERROR(VLOOKUP($A108,'[4]download-1'!$A$471:$F$474,5,FALSE)/-9.5,0),0)","v":0},{"$f":"ROUND(IFERROR(VLOOKUP($A108,'[4]download-1'!$A$467:$F$469,5,FALSE)/-49,0),0)","v":0},{"$f":"IFERROR(VLOOKUP($A108,[5]Sheet8!$A$4:$B$89,2,FALSE),0)","v":0},null,null,0,{"$f":"IFERROR(VLOOKUP($A108,[3]Paypal!$A$2:$AA$1843,25,FALSE),0)","v":5888.5},{"$f":"IFERROR(VLOOKUP($A108,'[3]Paypal Money Sent Pivot'!$A$4:$B$97,2,FALSE),0)","v":0},{"$f":"$BH108+$BI107-IFERROR(VLOOKUP($A108,[2]Sheet2!$A$4:$B$82,2,FALSE),0)","v":-0.18000000000029104},{"$f":"IFERROR(VLOOKUP($A108,'[3]TexttoColumn Amazon Balance'!$A$14:$B$30,2,FALSE),0)","v":0},{"$f":"$BJ107+$BK107-IFERROR(VLOOKUP($A108,[2]Amazon!$A$2:$F$17,5,FALSE),0)","v":0},{"$f":"IFERROR(VLOOKUP($A108,'[4]Payment Pivot'!$A$4:$B$39,2,FALSE),0)","v":0},{"$f":"$BL108+$BM107-IFERROR(VLOOKUP($A108,'[2]Myaccountaccess Pivot'!$A$4:$B$31,2,FALSE),0)","v":0},null,{"$f":"IFERROR(VLOOKUP($A108,'[6]export-2'!$A$2:$F$15,6,FALSE),BO107)","v":1000.04},298.53235068747091,{"$f":"OFFSET(A108,0,'Cool Graph'!$H$1)","v":0},{"$f":"OFFSET(A108,0,'Cool Graph'!$I$1)","v":298.53235068747091}]
["2011-10-16",0,11.16,76.5,65.460000000000008,2.2200000000000002,155.34,0,0,0,3,0,0,0,52.83,0,0,12.63,0,0,0,0,0,6,6,0,0,6,0,{"$f":"IFERROR(VLOOKUP($A109,[1]Sheet1!$A$4:$B$219,2,FALSE),0)","v":990},990,867.36999999999898,{"$f":"$BH109+$BI108-IFERROR(VLOOKUP($A109,[2]Sheet2!$A$4:$B$82,2,FALSE),0)","v":-0.18000000000029104},{"$f":"$BJ108+$BK108-IFERROR(VLOOKUP($A109,[2]Amazon!$A$2:$F$17,5,FALSE),0)","v":0},{"$f":"$BL109+$BM108-IFERROR(VLOOKUP($A109,'[2]Myaccountaccess Pivot'!$A$4:$B$31,2,FALSE),0)","v":0},{"$f":"IFERROR(VLOOKUP($A109,'[2]export-1'!$A$2:$F$441,6,FALSE),AJ108)","v":4349.380000000001},{"$f":"IFERROR(VLOOKUP($A109,'[7]download-1'!$A$2:$F$513,6,FALSE),AK108)","v":-935.23000000000025},{"$f":"IFERROR(VLOOKUP($A109,'[3]TexttoColumn Amazon Balance'!$A$14:$B$30,2,FALSE),IF(AL110>0,AL110-50,0))","v":558.54999999999995},10980.39,23121.93,214,69,0,0,null,null,null,null,null,{"$f":"IFERROR(VLOOKUP($A109,'[2]export-1'!$A$446:$G$451,7,FALSE),0)","v":0},{"$f":"IFERROR(VLOOKUP($A109,[3]Sheet4!$A$4:$B$56,2,FALSE),0)","v":0},{"$f":"IFERROR(VLOOKUP($A109,'[3]headphones purchased'!$A$2:$G$27,6,FALSE),0)","v":0},{"$f":"ROUND(IFERROR(VLOOKUP($A109,'[4]download-1'!$A$471:$F$474,5,FALSE)/-9.5,0),0)","v":0},{"$f":"ROUND(IFERROR(VLOOKUP($A109,'[4]download-1'!$A$467:$F$469,5,FALSE)/-49,0),0)","v":0},{"$f":"IFERROR(VLOOKUP($A109,[5]Sheet8!$A$4:$B$89,2,FALSE),0)","v":0},null,null,1,{"$f":"IFERROR(VLOOKUP($A109,[3]Paypal!$A$2:$AA$1843,25,FALSE),0)","v":7007.87},{"$f":"IFERROR(VLOOKUP($A109,'[3]Paypal Money Sent Pivot'!$A$4:$B$97,2,FALSE),0)","v":0},{"$f":"$BH109+$BI108-IFERROR(VLOOKUP($A109,[2]Sheet2!$A$4:$B$82,2,FALSE),0)","v":-0.18000000000029104},{"$f":"IFERROR(VLOOKUP($A109,'[3]TexttoColumn Amazon Balance'!$A$14:$B$30,2,FALSE),0)","v":0},{"$f":"$BJ108+$BK108-IFERROR(VLOOKUP($A109,[2]Amazon!$A$2:$F$17,5,FALSE),0)","v":0},{"$f":"IFERROR(VLOOKUP($A109,'[4]Payment Pivot'!$A$4:$B$39,2,FALSE),0)","v":0},{"$f":"$BL109+$BM108-IFERROR(VLOOKUP($A109,'[2]Myaccountaccess Pivot'!$A$4:$B$31,2,FALSE),0)","v":0},null,{"$f":"IFERROR(VLOOKUP($A109,'[6]export-2'!$A$2:$F$15,6,FALSE),BO108)","v":1000.04},263.87962150314331,{"$f":"OFFSET(A109,0,'Cool Graph'!$H$1)","v":0},{"$f":"OFFSET(A109,0,'Cool Graph'!$I$1)","v":263.87962150314331}]
["2011-10-17",0,6.69,73.78,80.31,2.5299999999999998,163.31,0,0,0,4,0,1,0,69.97,0,0,10.34,0,0,0,0,0,7,7,0,0,7,0,{"$f":"IFERROR(VLOOKUP($A110,[1]Sheet1!$A$4:$B$219,2,FALSE),0)","v":1155},1155,-2123.2900000000009,{"$f":"$BH110+$BI109-IFERROR(VLOOKUP($A110,[2]Sheet2!$A$4:$B$82,2,FALSE),0)","v":4499.82},{"$f":"$BJ109+$BK109-IFERROR(VLOOKUP($A110,[2]Amazon!$A$2:$F$17,5,FALSE),0)","v":0},{"$f":"$BL110+$BM109-IFERROR(VLOOKUP($A110,'[2]Myaccountaccess Pivot'!$A$4:$B$31,2,FALSE),0)","v":0},{"$f":"IFERROR(VLOOKUP($A110,'[2]export-1'!$A$2:$F$441,6,FALSE),AJ109)","v":1655.3900000000012},{"$f":"IFERROR(VLOOKUP($A110,'[7]download-1'!$A$2:$F$513,6,FALSE),AK109)","v":-1505.2300000000002},{"$f":"IFERROR(VLOOKUP($A110,'[3]TexttoColumn Amazon Balance'!$A$14:$B$30,2,FALSE),IF(AL111>0,AL111-50,0))","v":608.54999999999995},9315.6,20998.639999999999,206,62,0,0,null,null,null,null,null,{"$f":"IFERROR(VLOOKUP($A110,'[2]export-1'!$A$446:$G$451,7,FALSE),0)","v":0},{"$f":"IFERROR(VLOOKUP($A110,[3]Sheet4!$A$4:$B$56,2,FALSE),0)","v":0},{"$f":"IFERROR(VLOOKUP($A110,'[3]headphones purchased'!$A$2:$G$27,6,FALSE),0)","v":0},{"$f":"ROUND(IFERROR(VLOOKUP($A110,'[4]download-1'!$A$471:$F$474,5,FALSE)/-9.5,0),0)","v":0},{"$f":"ROUND(IFERROR(VLOOKUP($A110,'[4]download-1'!$A$467:$F$469,5,FALSE)/-49,0),0)","v":0},{"$f":"IFERROR(VLOOKUP($A110,[5]Sheet8!$A$4:$B$89,2,FALSE),0)","v":1},null,null,0,{"$f":"IFERROR(VLOOKUP($A110,[3]Paypal!$A$2:$AA$1843,25,FALSE),0)","v":4057.07},{"$f":"IFERROR(VLOOKUP($A110,'[3]Paypal Money Sent Pivot'!$A$4:$B$97,2,FALSE),0)","v":4500},{"$f":"$BH110+$BI109-IFERROR(VLOOKUP($A110,[2]Sheet2!$A$4:$B$82,2,FALSE),0)","v":4499.82},{"$f":"IFERROR(VLOOKUP($A110,'[3]TexttoColumn Amazon Balance'!$A$14:$B$30,2,FALSE),0)","v":0},{"$f":"$BJ109+$BK109-IFERROR(VLOOKUP($A110,[2]Amazon!$A$2:$F$17,5,FALSE),0)","v":0},{"$f":"IFERROR(VLOOKUP($A110,'[4]Payment Pivot'!$A$4:$B$39,2,FALSE),0)","v":0},{"$f":"$BL110+$BM109-IFERROR(VLOOKUP($A110,'[2]Myaccountaccess Pivot'!$A$4:$B$31,2,FALSE),0)","v":0},null,{"$f":"IFERROR(VLOOKUP($A110,'[6]export-2'!$A$2:$F$15,6,FALSE),BO109)","v":1000.04},325.7795584203339,{"$f":"OFFSET(A110,0,'Cool Graph'!$H$1)","v":0},{"$f":"OFFSET(A110,0,'Cool Graph'!$I$1)","v":325.7795584203339}]
["2011-10-18",0,6.42,117.96,89.960000000000008,2.2000000000000002,216.54,0,0,0,5,0,1,0,78.95,0,1,11.01,0,1,0,0,0,10,10,0,0,11,160,{"$f":"IFERROR(VLOOKUP($A111,[1]Sheet1!$A$4:$B$219,2,FALSE),0)","v":1650},1810,1501.0200000000041,{"$f":"$BH111+$BI110-IFERROR(VLOOKUP($A111,[2]Sheet2!$A$4:$B$82,2,FALSE),0)","v":4499.82},{"$f":"$BJ110+$BK110-IFERROR(VLOOKUP($A111,[2]Amazon!$A$2:$F$17,5,FALSE),0)","v":0},{"$f":"$BL111+$BM110-IFERROR(VLOOKUP($A111,'[2]Myaccountaccess Pivot'!$A$4:$B$31,2,FALSE),0)","v":0},{"$f":"IFERROR(VLOOKUP($A111,'[2]export-1'!$A$2:$F$441,6,FALSE),AJ110)","v":1650.3900000000012},{"$f":"IFERROR(VLOOKUP($A111,'[7]download-1'!$A$2:$F$513,6,FALSE),AK110)","v":-1505.2300000000002},{"$f":"IFERROR(VLOOKUP($A111,'[3]TexttoColumn Amazon Balance'!$A$14:$B$30,2,FALSE),IF(AL112>0,AL112-50,0))","v":658.55},11080.12,22499.660000000003,195,91,0,0,null,null,null,null,null,{"$f":"IFERROR(VLOOKUP($A111,'[2]export-1'!$A$446:$G$451,7,FALSE),0)","v":0},{"$f":"IFERROR(VLOOKUP($A111,[3]Sheet4!$A$4:$B$56,2,FALSE),0)","v":0},{"$f":"IFERROR(VLOOKUP($A111,'[3]headphones purchased'!$A$2:$G$27,6,FALSE),0)","v":39},{"$f":"ROUND(IFERROR(VLOOKUP($A111,'[4]download-1'!$A$471:$F$474,5,FALSE)/-9.5,0),0)","v":0},{"$f":"ROUND(IFERROR(VLOOKUP($A111,'[4]download-1'!$A$467:$F$469,5,FALSE)/-49,0),0)","v":0},{"$f":"IFERROR(VLOOKUP($A111,[5]Sheet8!$A$4:$B$89,2,FALSE),0)","v":1},null,null,1,{"$f":"IFERROR(VLOOKUP($A111,[3]Paypal!$A$2:$AA$1843,25,FALSE),0)","v":5776.59},{"$f":"IFERROR(VLOOKUP($A111,'[3]Paypal Money Sent Pivot'!$A$4:$B$97,2,FALSE),0)","v":0},{"$f":"$BH111+$BI110-IFERROR(VLOOKUP($A111,[2]Sheet2!$A$4:$B$82,2,FALSE),0)","v":4499.82},{"$f":"IFERROR(VLOOKUP($A111,'[3]TexttoColumn Amazon Balance'!$A$14:$B$30,2,FALSE),0)","v":0},{"$f":"$BJ110+$BK110-IFERROR(VLOOKUP($A111,[2]Amazon!$A$2:$F$17,5,FALSE),0)","v":0},{"$f":"IFERROR(VLOOKUP($A111,'[4]Payment Pivot'!$A$4:$B$39,2,FALSE),0)","v":0},{"$f":"$BL111+$BM110-IFERROR(VLOOKUP($A111,'[2]Myaccountaccess Pivot'!$A$4:$B$31,2,FALSE),0)","v":0},null,{"$f":"IFERROR(VLOOKUP($A111,'[6]export-2'!$A$2:$F$15,6,FALSE),BO110)","v":1000.04},549.91203527342373,{"$f":"OFFSET(A111,0,'Cool Graph'!$H$1)","v":0},{"$f":"OFFSET(A111,0,'Cool Graph'!$I$1)","v":549.91203527342373}]
["2011-10-19",0,3.33,96.65,98.429999999999993,3.5,201.91,0,1,0,6,1,0,0,91.22,1,0,7.21,0,1,0,0,0,13,13,0,0,14,165,{"$f":"IFERROR(VLOOKUP($A112,[1]Sheet1!$A$4:$B$219,2,FALSE),0)","v":2145},2310,722.5099999999984,{"$f":"$BH112+$BI111-IFERROR(VLOOKUP($A112,[2]Sheet2!$A$4:$B$82,2,FALSE),0)","v":6999.82},{"$f":"$BJ111+$BK111-IFERROR(VLOOKUP($A112,[2]Amazon!$A$2:$F$17,5,FALSE),0)","v":0},{"$f":"$BL112+$BM111-IFERROR(VLOOKUP($A112,'[2]Myaccountaccess Pivot'!$A$4:$B$31,2,FALSE),0)","v":0},{"$f":"IFERROR(VLOOKUP($A112,'[2]export-1'!$A$2:$F$441,6,FALSE),AJ111)","v":6135.8900000000012},{"$f":"IFERROR(VLOOKUP($A112,'[7]download-1'!$A$2:$F$513,6,FALSE),AK111)","v":-2093.2200000000003},{"$f":"IFERROR(VLOOKUP($A112,'[3]TexttoColumn Amazon Balance'!$A$14:$B$30,2,FALSE),IF(AL113>0,AL113-50,0))","v":708.55},12710.130000000001,23222.170000000002,179,78,0,0,null,null,null,null,null,{"$f":"IFERROR(VLOOKUP($A112,'[2]export-1'!$A$446:$G$451,7,FALSE),0)","v":0},{"$f":"IFERROR(VLOOKUP($A112,[3]Sheet4!$A$4:$B$56,2,FALSE),0)","v":0},{"$f":"IFERROR(VLOOKUP($A112,'[3]headphones purchased'!$A$2:$G$27,6,FALSE),0)","v":0},{"$f":"ROUND(IFERROR(VLOOKUP($A112,'[4]download-1'!$A$471:$F$474,5,FALSE)/-9.5,0),0)","v":0},{"$f":"ROUND(IFERROR(VLOOKUP($A112,'[4]download-1'!$A$467:$F$469,5,FALSE)/-49,0),0)","v":0},{"$f":"IFERROR(VLOOKUP($A112,[5]Sheet8!$A$4:$B$89,2,FALSE),0)","v":2},null,null,0,{"$f":"IFERROR(VLOOKUP($A112,[3]Paypal!$A$2:$AA$1843,25,FALSE),0)","v":959.09},{"$f":"IFERROR(VLOOKUP($A112,'[3]Paypal Money Sent Pivot'!$A$4:$B$97,2,FALSE),0)","v":7000},{"$f":"$BH112+$BI111-IFERROR(VLOOKUP($A112,[2]Sheet2!$A$4:$B$82,2,FALSE),0)","v":6999.82},{"$f":"IFERROR(VLOOKUP($A112,'[3]TexttoColumn Amazon Balance'!$A$14:$B$30,2,FALSE),0)","v":0},{"$f":"$BJ111+$BK111-IFERROR(VLOOKUP($A112,[2]Amazon!$A$2:$F$17,5,FALSE),0)","v":0},{"$f":"IFERROR(VLOOKUP($A112,'[4]Payment Pivot'!$A$4:$B$39,2,FALSE),0)","v":0},{"$f":"$BL112+$BM111-IFERROR(VLOOKUP($A112,'[2]Myaccountaccess Pivot'!$A$4:$B$31,2,FALSE),0)","v":0},null,{"$f":"IFERROR(VLOOKUP($A112,'[6]export-2'!$A$2:$F$15,6,FALSE),BO111)","v":1000.04},776.26911684066783,{"$f":"OFFSET(A112,0,'Cool Graph'!$H$1)","v":0},{"$f":"OFFSET(A112,0,'Cool Graph'!$I$1)","v":776.26911684066783}]
["2011-10-20",0,2.33,80.72999999999999,97.83,1.75,182.64,0,0,0,7,0,0,0,88.78,0,0,9.0500000000000007,0,1,0,0,0,12,12,0,0,13,165,{"$f":"IFERROR(VLOOKUP($A113,[1]Sheet1!$A$4:$B$219,2,FALSE),0)","v":2015},2180,1357.9599999999991,{"$f":"$BH113+$BI112-IFERROR(VLOOKUP($A113,[2]Sheet2!$A$4:$B$82,2,FALSE),0)","v":6999.82},{"$f":"$BJ112+$BK112-IFERROR(VLOOKUP($A113,[2]Amazon!$A$2:$F$17,5,FALSE),0)","v":0},{"$f":"$BL113+$BM112-IFERROR(VLOOKUP($A113,'[2]Myaccountaccess Pivot'!$A$4:$B$31,2,FALSE),0)","v":1505.23},{"$f":"IFERROR(VLOOKUP($A113,'[2]export-1'!$A$2:$F$441,6,FALSE),AJ112)","v":2615.3400000000011},{"$f":"IFERROR(VLOOKUP($A113,'[7]download-1'!$A$2:$F$513,6,FALSE),AK112)","v":-587.99000000000035},{"$f":"IFERROR(VLOOKUP($A113,'[3]TexttoColumn Amazon Balance'!$A$14:$B$30,2,FALSE),IF(AL114>0,AL114-50,0))","v":758.55},11270.09,24580.13,167,66,0,0,null,null,null,null,null,{"$f":"IFERROR(VLOOKUP($A113,'[2]export-1'!$A$446:$G$451,7,FALSE),0)","v":0},{"$f":"IFERROR(VLOOKUP($A113,[3]Sheet4!$A$4:$B$56,2,FALSE),0)","v":0},{"$f":"IFERROR(VLOOKUP($A113,'[3]headphones purchased'!$A$2:$G$27,6,FALSE),0)","v":0},{"$f":"ROUND(IFERROR(VLOOKUP($A113,'[4]download-1'!$A$471:$F$474,5,FALSE)/-9.5,0),0)","v":0},{"$f":"ROUND(IFERROR(VLOOKUP($A113,'[4]download-1'!$A$467:$F$469,5,FALSE)/-49,0),0)","v":0},{"$f":"IFERROR(VLOOKUP($A113,[5]Sheet8!$A$4:$B$89,2,FALSE),0)","v":0},null,null,1,{"$f":"IFERROR(VLOOKUP($A113,[3]Paypal!$A$2:$AA$1843,25,FALSE),0)","v":2989.6},{"$f":"IFERROR(VLOOKUP($A113,'[3]Paypal Money Sent Pivot'!$A$4:$B$97,2,FALSE),0)","v":0},{"$f":"$BH113+$BI112-IFERROR(VLOOKUP($A113,[2]Sheet2!$A$4:$B$82,2,FALSE),0)","v":6999.82},{"$f":"IFERROR(VLOOKUP($A113,'[3]TexttoColumn Amazon Balance'!$A$14:$B$30,2,FALSE),0)","v":0},{"$f":"$BJ112+$BK112-IFERROR(VLOOKUP($A113,[2]Amazon!$A$2:$F$17,5,FALSE),0)","v":0},{"$f":"IFERROR(VLOOKUP($A113,'[4]Payment Pivot'!$A$4:$B$39,2,FALSE),0)","v":1505.23},{"$f":"$BL113+$BM112-IFERROR(VLOOKUP($A113,'[2]Myaccountaccess Pivot'!$A$4:$B$31,2,FALSE),0)","v":1505.23},null,{"$f":"IFERROR(VLOOKUP($A113,'[6]export-2'!$A$2:$F$15,6,FALSE),BO112)","v":4500.04},740.49007563318435,{"$f":"OFFSET(A113,0,'Cool Graph'!$H$1)","v":0},{"$f":"OFFSET(A113,0,'Cool Graph'!$I$1)","v":740.49007563318435}]
["2011-10-21",0,3.62,107.16000000000001,88.38,1.46,200.62000000000003,0,0,0,4,1,1,0,76.02,1,1,12.36,0,0,0,0,0,11,11,0,0,11,0,{"$f":"IFERROR(VLOOKUP($A114,[1]Sheet1!$A$4:$B$219,2,FALSE),0)","v":1815},1815,722.22999999999956,{"$f":"$BH114+$BI113-IFERROR(VLOOKUP($A114,[2]Sheet2!$A$4:$B$82,2,FALSE),0)","v":6999.82},{"$f":"$BJ113+$BK113-IFERROR(VLOOKUP($A114,[2]Amazon!$A$2:$F$17,5,FALSE),0)","v":0},{"$f":"$BL114+$BM113-IFERROR(VLOOKUP($A114,'[2]Myaccountaccess Pivot'!$A$4:$B$31,2,FALSE),0)","v":0},{"$f":"IFERROR(VLOOKUP($A114,'[2]export-1'!$A$2:$F$441,6,FALSE),AJ113)","v":819.79000000000087},{"$f":"IFERROR(VLOOKUP($A114,'[7]download-1'!$A$2:$F$513,6,FALSE),AK113)","v":-592.15000000000032},{"$f":"IFERROR(VLOOKUP($A114,'[3]TexttoColumn Amazon Balance'!$A$14:$B$30,2,FALSE),IF(AL115>0,AL115-50,0))","v":808.55},12635.82,25302.36,156,55,0,0,null,null,null,null,null,{"$f":"IFERROR(VLOOKUP($A114,'[2]export-1'!$A$446:$G$451,7,FALSE),0)","v":0},{"$f":"IFERROR(VLOOKUP($A114,[3]Sheet4!$A$4:$B$56,2,FALSE),0)","v":0},{"$f":"IFERROR(VLOOKUP($A114,'[3]headphones purchased'!$A$2:$G$27,6,FALSE),0)","v":0},{"$f":"ROUND(IFERROR(VLOOKUP($A114,'[4]download-1'!$A$471:$F$474,5,FALSE)/-9.5,0),0)","v":0},{"$f":"ROUND(IFERROR(VLOOKUP($A114,'[4]download-1'!$A$467:$F$469,5,FALSE)/-49,0),0)","v":0},{"$f":"IFERROR(VLOOKUP($A114,[5]Sheet8!$A$4:$B$89,2,FALSE),0)","v":0},null,null,0,{"$f":"IFERROR(VLOOKUP($A114,[3]Paypal!$A$2:$AA$1843,25,FALSE),0)","v":4599.8100000000004},{"$f":"IFERROR(VLOOKUP($A114,'[3]Paypal Money Sent Pivot'!$A$4:$B$97,2,FALSE),0)","v":0},{"$f":"$BH114+$BI113-IFERROR(VLOOKUP($A114,[2]Sheet2!$A$4:$B$82,2,FALSE),0)","v":6999.82},{"$f":"IFERROR(VLOOKUP($A114,'[3]TexttoColumn Amazon Balance'!$A$14:$B$30,2,FALSE),0)","v":0},{"$f":"$BJ113+$BK113-IFERROR(VLOOKUP($A114,[2]Amazon!$A$2:$F$17,5,FALSE),0)","v":0},{"$f":"IFERROR(VLOOKUP($A114,'[4]Payment Pivot'!$A$4:$B$39,2,FALSE),0)","v":0},{"$f":"$BL114+$BM113-IFERROR(VLOOKUP($A114,'[2]Myaccountaccess Pivot'!$A$4:$B$31,2,FALSE),0)","v":0},null,{"$f":"IFERROR(VLOOKUP($A114,'[6]export-2'!$A$2:$F$15,6,FALSE),BO113)","v":4500.04},567.94930608909613,{"$f":"OFFSET(A114,0,'Cool Graph'!$H$1)","v":0},{"$f":"OFFSET(A114,0,'Cool Graph'!$I$1)","v":567.94930608909613}]
["2011-10-22",0,6.03,104.46000000000001,84.570000000000007,5.17,200.23,0,0,0,2,0,0,0,74.760000000000005,0,0,9.81,0,0,0,0,0,4,4,0,0,4,0,{"$f":"IFERROR(VLOOKUP($A115,[1]Sheet1!$A$4:$B$219,2,FALSE),0)","v":660},660,498.81000000000131,{"$f":"$BH115+$BI114-IFERROR(VLOOKUP($A115,[2]Sheet2!$A$4:$B$82,2,FALSE),0)","v":6999.82},{"$f":"$BJ114+$BK114-IFERROR(VLOOKUP($A115,[2]Amazon!$A$2:$F$17,5,FALSE),0)","v":0},{"$f":"$BL115+$BM114-IFERROR(VLOOKUP($A115,'[2]Myaccountaccess Pivot'!$A$4:$B$31,2,FALSE),0)","v":0},{"$f":"IFERROR(VLOOKUP($A115,'[2]export-1'!$A$2:$F$441,6,FALSE),AJ114)","v":819.79000000000087},{"$f":"IFERROR(VLOOKUP($A115,'[7]download-1'!$A$2:$F$513,6,FALSE),AK114)","v":-592.15000000000032},{"$f":"IFERROR(VLOOKUP($A115,'[3]TexttoColumn Amazon Balance'!$A$14:$B$30,2,FALSE),IF(AL116>0,AL116-50,0))","v":858.55},13319.630000000001,25801.170000000002,153,51,0,0,null,null,null,null,null,{"$f":"IFERROR(VLOOKUP($A115,'[2]export-1'!$A$446:$G$451,7,FALSE),0)","v":0},{"$f":"IFERROR(VLOOKUP($A115,[3]Sheet4!$A$4:$B$56,2,FALSE),0)","v":0},{"$f":"IFERROR(VLOOKUP($A115,'[3]headphones purchased'!$A$2:$G$27,6,FALSE),0)","v":0},{"$f":"ROUND(IFERROR(VLOOKUP($A115,'[4]download-1'!$A$471:$F$474,5,FALSE)/-9.5,0),0)","v":0},{"$f":"ROUND(IFERROR(VLOOKUP($A115,'[4]download-1'!$A$467:$F$469,5,FALSE)/-49,0),0)","v":0},{"$f":"IFERROR(VLOOKUP($A115,[5]Sheet8!$A$4:$B$89,2,FALSE),0)","v":0},null,null,1,{"$f":"IFERROR(VLOOKUP($A115,[3]Paypal!$A$2:$AA$1843,25,FALSE),0)","v":5233.62},{"$f":"IFERROR(VLOOKUP($A115,'[3]Paypal Money Sent Pivot'!$A$4:$B$97,2,FALSE),0)","v":0},{"$f":"$BH115+$BI114-IFERROR(VLOOKUP($A115,[2]Sheet2!$A$4:$B$82,2,FALSE),0)","v":6999.82},{"$f":"IFERROR(VLOOKUP($A115,'[3]TexttoColumn Amazon Balance'!$A$14:$B$30,2,FALSE),0)","v":858.55},{"$f":"$BJ114+$BK114-IFERROR(VLOOKUP($A115,[2]Amazon!$A$2:$F$17,5,FALSE),0)","v":0},{"$f":"IFERROR(VLOOKUP($A115,'[4]Payment Pivot'!$A$4:$B$39,2,FALSE),0)","v":0},{"$f":"$BL115+$BM114-IFERROR(VLOOKUP($A115,'[2]Myaccountaccess Pivot'!$A$4:$B$31,2,FALSE),0)","v":0},null,{"$f":"IFERROR(VLOOKUP($A115,'[6]export-2'!$A$2:$F$15,6,FALSE),BO114)","v":4500.04},79.24974766876224,{"$f":"OFFSET(A115,0,'Cool Graph'!$H$1)","v":0},{"$f":"OFFSET(A115,0,'Cool Graph'!$I$1)","v":79.24974766876224}]
["2011-10-23",0,7.58,120.91,105.63999999999999,0.96,235.09,0,0,0,4,1,0,0,92.429999999999993,0,0,13.21,1,1,0,0,0,12,12,0,0,13,165,{"$f":"IFERROR(VLOOKUP($A116,[1]Sheet1!$A$4:$B$219,2,FALSE),0)","v":1980},2145,1884.25,{"$f":"$BH116+$BI115-IFERROR(VLOOKUP($A116,[2]Sheet2!$A$4:$B$82,2,FALSE),0)","v":6999.82},{"$f":"$BJ115+$BK115-IFERROR(VLOOKUP($A116,[2]Amazon!$A$2:$F$17,5,FALSE),0)","v":858.55},{"$f":"$BL116+$BM115-IFERROR(VLOOKUP($A116,'[2]Myaccountaccess Pivot'!$A$4:$B$31,2,FALSE),0)","v":0},{"$f":"IFERROR(VLOOKUP($A116,'[2]export-1'!$A$2:$F$441,6,FALSE),AJ115)","v":819.79000000000087},{"$f":"IFERROR(VLOOKUP($A116,'[7]download-1'!$A$2:$F$513,6,FALSE),AK115)","v":-592.15000000000032},{"$f":"IFERROR(VLOOKUP($A116,'[3]TexttoColumn Amazon Balance'!$A$14:$B$30,2,FALSE),IF(AL117>0,AL117-100,0))","v":396.51},15954.880000000001,27685.420000000002,140,39,0,0,null,null,null,null,null,{"$f":"IFERROR(VLOOKUP($A116,'[2]export-1'!$A$446:$G$451,7,FALSE),0)","v":0},{"$f":"IFERROR(VLOOKUP($A116,[3]Sheet4!$A$4:$B$56,2,FALSE),0)","v":0},{"$f":"IFERROR(VLOOKUP($A116,'[3]headphones purchased'!$A$2:$G$27,6,FALSE),0)","v":0},{"$f":"ROUND(IFERROR(VLOOKUP($A116,'[4]download-1'!$A$471:$F$474,5,FALSE)/-9.5,0),0)","v":0},{"$f":"ROUND(IFERROR(VLOOKUP($A116,'[4]download-1'!$A$467:$F$469,5,FALSE)/-49,0),0)","v":0},{"$f":"IFERROR(VLOOKUP($A116,[5]Sheet8!$A$4:$B$89,2,FALSE),0)","v":0},null,null,0,{"$f":"IFERROR(VLOOKUP($A116,[3]Paypal!$A$2:$AA$1843,25,FALSE),0)","v":7472.36},{"$f":"IFERROR(VLOOKUP($A116,'[3]Paypal Money Sent Pivot'!$A$4:$B$97,2,FALSE),0)","v":0},{"$f":"$BH116+$BI115-IFERROR(VLOOKUP($A116,[2]Sheet2!$A$4:$B$82,2,FALSE),0)","v":6999.82},{"$f":"IFERROR(VLOOKUP($A116,'[3]TexttoColumn Amazon Balance'!$A$14:$B$30,2,FALSE),0)","v":0},{"$f":"$BJ115+$BK115-IFERROR(VLOOKUP($A116,[2]Amazon!$A$2:$F$17,5,FALSE),0)","v":858.55},{"$f":"IFERROR(VLOOKUP($A116,'[4]Payment Pivot'!$A$4:$B$39,2,FALSE),0)","v":0},{"$f":"$BL116+$BM115-IFERROR(VLOOKUP($A116,'[2]Myaccountaccess Pivot'!$A$4:$B$31,2,FALSE),0)","v":0},null,{"$f":"IFERROR(VLOOKUP($A116,'[6]export-2'!$A$2:$F$15,6,FALSE),BO115)","v":4500.04},673.21917992347721,{"$f":"OFFSET(A116,0,'Cool Graph'!$H$1)","v":0},{"$f":"OFFSET(A116,0,'Cool Graph'!$I$1)","v":673.21917992347721}]
["2011-10-24",0,5.86,115.85,121.72,3.6,247.03,0,0,0,2,1,1,0,109.59,1,0,12.13,0,5,1,0,0,5,5,0,0,10,170.05,{"$f":"IFERROR(VLOOKUP($A117,[1]Sheet1!$A$4:$B$219,2,FALSE),0)","v":825},995.05,-1343.3899999999994,{"$f":"$BH117+$BI116-IFERROR(VLOOKUP($A117,[2]Sheet2!$A$4:$B$82,2,FALSE),0)","v":-0.18000000000029104},{"$f":"$BJ116+$BK116-IFERROR(VLOOKUP($A117,[2]Amazon!$A$2:$F$17,5,FALSE),0)","v":858.55},{"$f":"$BL117+$BM116-IFERROR(VLOOKUP($A117,'[2]Myaccountaccess Pivot'!$A$4:$B$31,2,FALSE),0)","v":592.15},{"$f":"IFERROR(VLOOKUP($A117,'[2]export-1'!$A$2:$F$441,6,FALSE),AJ116)","v":7631.1200000000008},{"$f":"IFERROR(VLOOKUP($A117,'[7]download-1'!$A$2:$F$513,6,FALSE),AK116)","v":-1030.4000000000003},{"$f":"IFERROR(VLOOKUP($A117,'[3]TexttoColumn Amazon Balance'!$A$14:$B$30,2,FALSE),IF(AL118>0,AL118-100,0))","v":496.51},13548.490000000002,26342.030000000002,170,33,0,0,null,null,null,null,null,{"$f":"IFERROR(VLOOKUP($A117,'[2]export-1'!$A$446:$G$451,7,FALSE),0)","v":0},{"$f":"IFERROR(VLOOKUP($A117,[3]Sheet4!$A$4:$B$56,2,FALSE),0)","v":42},{"$f":"IFERROR(VLOOKUP($A117,'[3]headphones purchased'!$A$2:$G$27,6,FALSE),0)","v":0},{"$f":"ROUND(IFERROR(VLOOKUP($A117,'[4]download-1'!$A$471:$F$474,5,FALSE)/-9.5,0),0)","v":0},{"$f":"ROUND(IFERROR(VLOOKUP($A117,'[4]download-1'!$A$467:$F$469,5,FALSE)/-49,0),0)","v":0},{"$f":"IFERROR(VLOOKUP($A117,[5]Sheet8!$A$4:$B$89,2,FALSE),0)","v":3},null,null,1,{"$f":"IFERROR(VLOOKUP($A117,[3]Paypal!$A$2:$AA$1843,25,FALSE),0)","v":6185.04},{"$f":"IFERROR(VLOOKUP($A117,'[3]Paypal Money Sent Pivot'!$A$4:$B$97,2,FALSE),0)","v":0},{"$f":"$BH117+$BI116-IFERROR(VLOOKUP($A117,[2]Sheet2!$A$4:$B$82,2,FALSE),0)","v":-0.18000000000029104},{"$f":"IFERROR(VLOOKUP($A117,'[3]TexttoColumn Amazon Balance'!$A$14:$B$30,2,FALSE),0)","v":0},{"$f":"$BJ116+$BK116-IFERROR(VLOOKUP($A117,[2]Amazon!$A$2:$F$17,5,FALSE),0)","v":858.55},{"$f":"IFERROR(VLOOKUP($A117,'[4]Payment Pivot'!$A$4:$B$39,2,FALSE),0)","v":592.15},{"$f":"$BL117+$BM116-IFERROR(VLOOKUP($A117,'[2]Myaccountaccess Pivot'!$A$4:$B$31,2,FALSE),0)","v":592.15},null,{"$f":"IFERROR(VLOOKUP($A117,'[6]export-2'!$A$2:$F$15,6,FALSE),BO116)","v":4150.04},174.3280650269725,{"$f":"OFFSET(A117,0,'Cool Graph'!$H$1)","v":0},{"$f":"OFFSET(A117,0,'Cool Graph'!$I$1)","v":174.3280650269725}]
["2011-10-25",0,3.78,127.49000000000001,117.95,2.27,251.49000000000004,0,1,0,4,0,4,0,105,0,3,12.95,0,0,0,0,0,5,5,0,0,5,0,{"$f":"IFERROR(VLOOKUP($A118,[1]Sheet1!$A$4:$B$219,2,FALSE),0)","v":825},825,-2341.16,{"$f":"$BH118+$BI117-IFERROR(VLOOKUP($A118,[2]Sheet2!$A$4:$B$82,2,FALSE),0)","v":-0.18000000000029104},{"$f":"$BJ117+$BK117-IFERROR(VLOOKUP($A118,[2]Amazon!$A$2:$F$17,5,FALSE),0)","v":0},{"$f":"$BL118+$BM117-IFERROR(VLOOKUP($A118,'[2]Myaccountaccess Pivot'!$A$4:$B$31,2,FALSE),0)","v":0},{"$f":"IFERROR(VLOOKUP($A118,'[2]export-1'!$A$2:$F$441,6,FALSE),AJ117)","v":7860.6200000000008},{"$f":"IFERROR(VLOOKUP($A118,'[7]download-1'!$A$2:$F$513,6,FALSE),AK117)","v":-1030.4000000000003},{"$f":"IFERROR(VLOOKUP($A118,'[3]TexttoColumn Amazon Balance'!$A$14:$B$30,2,FALSE),IF(AL119>0,AL119-100,0))","v":596.51},9406.83,24000.870000000003,205,42,0,0,null,null,null,null,null,{"$f":"IFERROR(VLOOKUP($A118,'[2]export-1'!$A$446:$G$451,7,FALSE),0)","v":0},{"$f":"IFERROR(VLOOKUP($A118,[3]Sheet4!$A$4:$B$56,2,FALSE),0)","v":42},{"$f":"IFERROR(VLOOKUP($A118,'[3]headphones purchased'!$A$2:$G$27,6,FALSE),0)","v":14},{"$f":"ROUND(IFERROR(VLOOKUP($A118,'[4]download-1'!$A$471:$F$474,5,FALSE)/-9.5,0),0)","v":0},{"$f":"ROUND(IFERROR(VLOOKUP($A118,'[4]download-1'!$A$467:$F$469,5,FALSE)/-49,0),0)","v":0},{"$f":"IFERROR(VLOOKUP($A118,[5]Sheet8!$A$4:$B$89,2,FALSE),0)","v":2},null,null,0,{"$f":"IFERROR(VLOOKUP($A118,[3]Paypal!$A$2:$AA$1843,25,FALSE),0)","v":1980.28},{"$f":"IFERROR(VLOOKUP($A118,'[3]Paypal Money Sent Pivot'!$A$4:$B$97,2,FALSE),0)","v":0},{"$f":"$BH118+$BI117-IFERROR(VLOOKUP($A118,[2]Sheet2!$A$4:$B$82,2,FALSE),0)","v":-0.18000000000029104},{"$f":"IFERROR(VLOOKUP($A118,'[3]TexttoColumn Amazon Balance'!$A$14:$B$30,2,FALSE),0)","v":0},{"$f":"$BJ117+$BK117-IFERROR(VLOOKUP($A118,[2]Amazon!$A$2:$F$17,5,FALSE),0)","v":0},{"$f":"IFERROR(VLOOKUP($A118,'[4]Payment Pivot'!$A$4:$B$39,2,FALSE),0)","v":0},{"$f":"$BL118+$BM117-IFERROR(VLOOKUP($A118,'[2]Myaccountaccess Pivot'!$A$4:$B$31,2,FALSE),0)","v":0},null,{"$f":"IFERROR(VLOOKUP($A118,'[6]export-2'!$A$2:$F$15,6,FALSE),BO117)","v":4150.04},97.859684585952749,{"$f":"OFFSET(A118,0,'Cool Graph'!$H$1)","v":0},{"$f":"OFFSET(A118,0,'Cool Graph'!$I$1)","v":97.859684585952749}]
["2011-10-26",0,3.33,112.52,95.57,2.5099999999999998,213.92999999999998,0,0,0,3,1,2,0,80.77,1,0,14.8,0,0,0,0,0,5,5,0,0,5,0,{"$f":"IFERROR(VLOOKUP($A119,[1]Sheet1!$A$4:$B$219,2,FALSE),0)","v":825},825,-680.2300000000032,{"$f":"$BH119+$BI118-IFERROR(VLOOKUP($A119,[2]Sheet2!$A$4:$B$82,2,FALSE),0)","v":-0.18000000000029104},{"$f":"$BJ118+$BK118-IFERROR(VLOOKUP($A119,[2]Amazon!$A$2:$F$17,5,FALSE),0)","v":0},{"$f":"$BL119+$BM118-IFERROR(VLOOKUP($A119,'[2]Myaccountaccess Pivot'!$A$4:$B$31,2,FALSE),0)","v":0},{"$f":"IFERROR(VLOOKUP($A119,'[2]export-1'!$A$2:$F$441,6,FALSE),AJ118)","v":7128.880000000001},{"$f":"IFERROR(VLOOKUP($A119,'[7]download-1'!$A$2:$F$513,6,FALSE),AK118)","v":-1530.4000000000003},{"$f":"IFERROR(VLOOKUP($A119,'[3]TexttoColumn Amazon Balance'!$A$14:$B$30,2,FALSE),IF(AL120>0,AL120-100,0))","v":696.51},9019.1,23320.639999999999,200,37,0,0,null,null,null,null,null,{"$f":"IFERROR(VLOOKUP($A119,'[2]export-1'!$A$446:$G$451,7,FALSE),0)","v":0},{"$f":"IFERROR(VLOOKUP($A119,[3]Sheet4!$A$4:$B$56,2,FALSE),0)","v":0},{"$f":"IFERROR(VLOOKUP($A119,'[3]headphones purchased'!$A$2:$G$27,6,FALSE),0)","v":0},{"$f":"ROUND(IFERROR(VLOOKUP($A119,'[4]download-1'!$A$471:$F$474,5,FALSE)/-9.5,0),0)","v":0},{"$f":"ROUND(IFERROR(VLOOKUP($A119,'[4]download-1'!$A$467:$F$469,5,FALSE)/-49,0),0)","v":0},{"$f":"IFERROR(VLOOKUP($A119,[5]Sheet8!$A$4:$B$89,2,FALSE),0)","v":1},null,null,1,{"$f":"IFERROR(VLOOKUP($A119,[3]Paypal!$A$2:$AA$1843,25,FALSE),0)","v":2724.29},{"$f":"IFERROR(VLOOKUP($A119,'[3]Paypal Money Sent Pivot'!$A$4:$B$97,2,FALSE),0)","v":0},{"$f":"$BH119+$BI118-IFERROR(VLOOKUP($A119,[2]Sheet2!$A$4:$B$82,2,FALSE),0)","v":-0.18000000000029104},{"$f":"IFERROR(VLOOKUP($A119,'[3]TexttoColumn Amazon Balance'!$A$14:$B$30,2,FALSE),0)","v":0},{"$f":"$BJ118+$BK118-IFERROR(VLOOKUP($A119,[2]Amazon!$A$2:$F$17,5,FALSE),0)","v":0},{"$f":"IFERROR(VLOOKUP($A119,'[4]Payment Pivot'!$A$4:$B$39,2,FALSE),0)","v":0},{"$f":"$BL119+$BM118-IFERROR(VLOOKUP($A119,'[2]Myaccountaccess Pivot'!$A$4:$B$31,2,FALSE),0)","v":0},null,{"$f":"IFERROR(VLOOKUP($A119,'[6]export-2'!$A$2:$F$15,6,FALSE),BO118)","v":4150.04},135.41968458595281,{"$f":"OFFSET(A119,0,'Cool Graph'!$H$1)","v":0},{"$f":"OFFSET(A119,0,'Cool Graph'!$I$1)","v":135.41968458595281}]
["2011-10-27",0,1.1000000000000001,89.71,92.64,2.99,186.44,0,0,0,6,0,2,0,79.739999999999995,0,0,12.9,0,2,0,0,0,9,9,0,0,11,330,{"$f":"IFERROR(VLOOKUP($A120,[1]Sheet1!$A$4:$B$219,2,FALSE),0)","v":1485},1815,109.4800000000032,{"$f":"$BH120+$BI119-IFERROR(VLOOKUP($A120,[2]Sheet2!$A$4:$B$82,2,FALSE),0)","v":999.81999999999971},{"$f":"$BJ119+$BK119-IFERROR(VLOOKUP($A120,[2]Amazon!$A$2:$F$17,5,FALSE),0)","v":0},{"$f":"$BL120+$BM119-IFERROR(VLOOKUP($A120,'[2]Myaccountaccess Pivot'!$A$4:$B$31,2,FALSE),0)","v":0},{"$f":"IFERROR(VLOOKUP($A120,'[2]export-1'!$A$2:$F$441,6,FALSE),AJ119)","v":6428.8500000000013},{"$f":"IFERROR(VLOOKUP($A120,'[7]download-1'!$A$2:$F$513,6,FALSE),AK119)","v":-1530.4000000000003},{"$f":"IFERROR(VLOOKUP($A120,'[3]TexttoColumn Amazon Balance'!$A$14:$B$30,2,FALSE),IF(AL121>0,AL121-100,0))","v":796.51},7695.0800000000008,23430.120000000003,231,28,0,0,null,null,null,null,null,{"$f":"IFERROR(VLOOKUP($A120,'[2]export-1'!$A$446:$G$451,7,FALSE),0)","v":0},{"$f":"IFERROR(VLOOKUP($A120,[3]Sheet4!$A$4:$B$56,2,FALSE),0)","v":42},{"$f":"IFERROR(VLOOKUP($A120,'[3]headphones purchased'!$A$2:$G$27,6,FALSE),0)","v":0},{"$f":"ROUND(IFERROR(VLOOKUP($A120,'[4]download-1'!$A$471:$F$474,5,FALSE)/-9.5,0),0)","v":0},{"$f":"ROUND(IFERROR(VLOOKUP($A120,'[4]download-1'!$A$467:$F$469,5,FALSE)/-49,0),0)","v":0},{"$f":"IFERROR(VLOOKUP($A120,[5]Sheet8!$A$4:$B$89,2,FALSE),0)","v":0},null,null,0,{"$f":"IFERROR(VLOOKUP($A120,[3]Paypal!$A$2:$AA$1843,25,FALSE),0)","v":1000.3},{"$f":"IFERROR(VLOOKUP($A120,'[3]Paypal Money Sent Pivot'!$A$4:$B$97,2,FALSE),0)","v":1000},{"$f":"$BH120+$BI119-IFERROR(VLOOKUP($A120,[2]Sheet2!$A$4:$B$82,2,FALSE),0)","v":999.81999999999971},{"$f":"IFERROR(VLOOKUP($A120,'[3]TexttoColumn Amazon Balance'!$A$14:$B$30,2,FALSE),0)","v":0},{"$f":"$BJ119+$BK119-IFERROR(VLOOKUP($A120,[2]Amazon!$A$2:$F$17,5,FALSE),0)","v":0},{"$f":"IFERROR(VLOOKUP($A120,'[4]Payment Pivot'!$A$4:$B$39,2,FALSE),0)","v":0},{"$f":"$BL120+$BM119-IFERROR(VLOOKUP($A120,'[2]Myaccountaccess Pivot'!$A$4:$B$31,2,FALSE),0)","v":0},null,{"$f":"IFERROR(VLOOKUP($A120,'[6]export-2'!$A$2:$F$15,6,FALSE),BO119)","v":4150.04},582.12930608909619,{"$f":"OFFSET(A120,0,'Cool Graph'!$H$1)","v":0},{"$f":"OFFSET(A120,0,'Cool Graph'!$I$1)","v":582.12930608909619}]
["2011-10-28",0,4.33,85.610000000000014,84.080000000000013,2.1,176.12000000000003,0,1,0,2,1,0,0,69.12,1,0,14.96,0,0,0,0,0,6,6,0,0,6,0,{"$f":"IFERROR(VLOOKUP($A121,[1]Sheet1!$A$4:$B$219,2,FALSE),0)","v":990},990,577.68000000000029,{"$f":"$BH121+$BI120-IFERROR(VLOOKUP($A121,[2]Sheet2!$A$4:$B$82,2,FALSE),0)","v":999.81999999999971},{"$f":"$BJ120+$BK120-IFERROR(VLOOKUP($A121,[2]Amazon!$A$2:$F$17,5,FALSE),0)","v":0},{"$f":"$BL121+$BM120-IFERROR(VLOOKUP($A121,'[2]Myaccountaccess Pivot'!$A$4:$B$31,2,FALSE),0)","v":0},{"$f":"IFERROR(VLOOKUP($A121,'[2]export-1'!$A$2:$F$441,6,FALSE),AJ120)","v":6197.630000000001},{"$f":"IFERROR(VLOOKUP($A121,'[7]download-1'!$A$2:$F$513,6,FALSE),AK120)","v":-1530.4000000000003},{"$f":"IFERROR(VLOOKUP($A121,'[3]TexttoColumn Amazon Balance'!$A$14:$B$30,2,FALSE),IF(AL122>0,AL122-100,0))","v":896.51},8574.76,24007.800000000003,226,22,0,0,null,null,null,null,null,{"$f":"IFERROR(VLOOKUP($A121,'[2]export-1'!$A$446:$G$451,7,FALSE),0)","v":0},{"$f":"IFERROR(VLOOKUP($A121,[3]Sheet4!$A$4:$B$56,2,FALSE),0)","v":0},{"$f":"IFERROR(VLOOKUP($A121,'[3]headphones purchased'!$A$2:$G$27,6,FALSE),0)","v":0},{"$f":"ROUND(IFERROR(VLOOKUP($A121,'[4]download-1'!$A$471:$F$474,5,FALSE)/-9.5,0),0)","v":0},{"$f":"ROUND(IFERROR(VLOOKUP($A121,'[4]download-1'!$A$467:$F$469,5,FALSE)/-49,0),0)","v":0},{"$f":"IFERROR(VLOOKUP($A121,[5]Sheet8!$A$4:$B$89,2,FALSE),0)","v":0},null,null,1,{"$f":"IFERROR(VLOOKUP($A121,[3]Paypal!$A$2:$AA$1843,25,FALSE),0)","v":2011.2},{"$f":"IFERROR(VLOOKUP($A121,'[3]Paypal Money Sent Pivot'!$A$4:$B$97,2,FALSE),0)","v":0},{"$f":"$BH121+$BI120-IFERROR(VLOOKUP($A121,[2]Sheet2!$A$4:$B$82,2,FALSE),0)","v":999.81999999999971},{"$f":"IFERROR(VLOOKUP($A121,'[3]TexttoColumn Amazon Balance'!$A$14:$B$30,2,FALSE),0)","v":0},{"$f":"$BJ120+$BK120-IFERROR(VLOOKUP($A121,[2]Amazon!$A$2:$F$17,5,FALSE),0)","v":0},{"$f":"IFERROR(VLOOKUP($A121,'[4]Payment Pivot'!$A$4:$B$39,2,FALSE),0)","v":0},{"$f":"$BL121+$BM120-IFERROR(VLOOKUP($A121,'[2]Myaccountaccess Pivot'!$A$4:$B$31,2,FALSE),0)","v":0},null,{"$f":"IFERROR(VLOOKUP($A121,'[6]export-2'!$A$2:$F$15,6,FALSE),BO120)","v":4150.04},243.09962150314331,{"$f":"OFFSET(A121,0,'Cool Graph'!$H$1)","v":0},{"$f":"OFFSET(A121,0,'Cool Graph'!$I$1)","v":243.09962150314331}]
["2011-10-29",0,2.9,70.3,89.86,2.4,165.46,0,0,0,1,0,0,0,79.459999999999994,0,0,10.4,0,1,0,0,0,4,4,0,0,5,165,{"$f":"IFERROR(VLOOKUP($A122,[1]Sheet1!$A$4:$B$219,2,FALSE),0)","v":660},825,251.79999999999927,{"$f":"$BH122+$BI121-IFERROR(VLOOKUP($A122,[2]Sheet2!$A$4:$B$82,2,FALSE),0)","v":2999.8199999999997},{"$f":"$BJ121+$BK121-IFERROR(VLOOKUP($A122,[2]Amazon!$A$2:$F$17,5,FALSE),0)","v":0},{"$f":"$BL122+$BM121-IFERROR(VLOOKUP($A122,'[2]Myaccountaccess Pivot'!$A$4:$B$31,2,FALSE),0)","v":0},{"$f":"IFERROR(VLOOKUP($A122,'[2]export-1'!$A$2:$F$441,6,FALSE),AJ121)","v":6197.630000000001},{"$f":"IFERROR(VLOOKUP($A122,'[7]download-1'!$A$2:$F$513,6,FALSE),AK121)","v":-1530.4000000000003},{"$f":"IFERROR(VLOOKUP($A122,'[3]TexttoColumn Amazon Balance'!$A$14:$B$30,2,FALSE),IF(AL123>0,AL123-100,0))","v":996.51},9109.5600000000013,24259.600000000002,221,18,0,0,null,null,null,null,null,{"$f":"IFERROR(VLOOKUP($A122,'[2]export-1'!$A$446:$G$451,7,FALSE),0)","v":0},{"$f":"IFERROR(VLOOKUP($A122,[3]Sheet4!$A$4:$B$56,2,FALSE),0)","v":0},{"$f":"IFERROR(VLOOKUP($A122,'[3]headphones purchased'!$A$2:$G$27,6,FALSE),0)","v":0},{"$f":"ROUND(IFERROR(VLOOKUP($A122,'[4]download-1'!$A$471:$F$474,5,FALSE)/-9.5,0),0)","v":0},{"$f":"ROUND(IFERROR(VLOOKUP($A122,'[4]download-1'!$A$467:$F$469,5,FALSE)/-49,0),0)","v":0},{"$f":"IFERROR(VLOOKUP($A122,[5]Sheet8!$A$4:$B$89,2,FALSE),0)","v":0},null,null,0,{"$f":"IFERROR(VLOOKUP($A122,[3]Paypal!$A$2:$AA$1843,25,FALSE),0)","v":446},{"$f":"IFERROR(VLOOKUP($A122,'[3]Paypal Money Sent Pivot'!$A$4:$B$97,2,FALSE),0)","v":2000},{"$f":"$BH122+$BI121-IFERROR(VLOOKUP($A122,[2]Sheet2!$A$4:$B$82,2,FALSE),0)","v":2999.8199999999997},{"$f":"IFERROR(VLOOKUP($A122,'[3]TexttoColumn Amazon Balance'!$A$14:$B$30,2,FALSE),0)","v":0},{"$f":"$BJ121+$BK121-IFERROR(VLOOKUP($A122,[2]Amazon!$A$2:$F$17,5,FALSE),0)","v":0},{"$f":"IFERROR(VLOOKUP($A122,'[4]Payment Pivot'!$A$4:$B$39,2,FALSE),0)","v":0},{"$f":"$BL122+$BM121-IFERROR(VLOOKUP($A122,'[2]Myaccountaccess Pivot'!$A$4:$B$31,2,FALSE),0)","v":0},null,{"$f":"IFERROR(VLOOKUP($A122,'[6]export-2'!$A$2:$F$15,6,FALSE),BO121)","v":4150.04},183.88968458595278,{"$f":"OFFSET(A122,0,'Cool Graph'!$H$1)","v":0},{"$f":"OFFSET(A122,0,'Cool Graph'!$I$1)","v":183.88968458595278}]
["2011-10-30",0,5.91,90.95,127.87,4.33,229.06000000000003,0,0,0,4,1,0,0,114.26,0,0,13.61,1,1,0,0,0,5,5,0,0,6,165,{"$f":"IFERROR(VLOOKUP($A123,[1]Sheet1!$A$4:$B$219,2,FALSE),0)","v":825},990,766.95999999999913,{"$f":"$BH123+$BI122-IFERROR(VLOOKUP($A123,[2]Sheet2!$A$4:$B$82,2,FALSE),0)","v":2999.8199999999997},{"$f":"$BJ122+$BK122-IFERROR(VLOOKUP($A123,[2]Amazon!$A$2:$F$17,5,FALSE),0)","v":0},{"$f":"$BL123+$BM122-IFERROR(VLOOKUP($A123,'[2]Myaccountaccess Pivot'!$A$4:$B$31,2,FALSE),0)","v":0},{"$f":"IFERROR(VLOOKUP($A123,'[2]export-1'!$A$2:$F$441,6,FALSE),AJ122)","v":6197.630000000001},{"$f":"IFERROR(VLOOKUP($A123,'[7]download-1'!$A$2:$F$513,6,FALSE),AK122)","v":-1530.4000000000003},{"$f":"IFERROR(VLOOKUP($A123,'[3]TexttoColumn Amazon Balance'!$A$14:$B$30,2,FALSE),IF(AL124>0,AL124-100,0))","v":1096.51},10169.02,25026.560000000001,216,13,0,0,null,null,null,null,null,{"$f":"IFERROR(VLOOKUP($A123,'[2]export-1'!$A$446:$G$451,7,FALSE),0)","v":0},{"$f":"IFERROR(VLOOKUP($A123,[3]Sheet4!$A$4:$B$56,2,FALSE),0)","v":0},{"$f":"IFERROR(VLOOKUP($A123,'[3]headphones purchased'!$A$2:$G$27,6,FALSE),0)","v":0},{"$f":"ROUND(IFERROR(VLOOKUP($A123,'[4]download-1'!$A$471:$F$474,5,FALSE)/-9.5,0),0)","v":0},{"$f":"ROUND(IFERROR(VLOOKUP($A123,'[4]download-1'!$A$467:$F$469,5,FALSE)/-49,0),0)","v":0},{"$f":"IFERROR(VLOOKUP($A123,[5]Sheet8!$A$4:$B$89,2,FALSE),0)","v":0},null,null,1,{"$f":"IFERROR(VLOOKUP($A123,[3]Paypal!$A$2:$AA$1843,25,FALSE),0)","v":1405.46},{"$f":"IFERROR(VLOOKUP($A123,'[3]Paypal Money Sent Pivot'!$A$4:$B$97,2,FALSE),0)","v":0},{"$f":"$BH123+$BI122-IFERROR(VLOOKUP($A123,[2]Sheet2!$A$4:$B$82,2,FALSE),0)","v":2999.8199999999997},{"$f":"IFERROR(VLOOKUP($A123,'[3]TexttoColumn Amazon Balance'!$A$14:$B$30,2,FALSE),0)","v":0},{"$f":"$BJ122+$BK122-IFERROR(VLOOKUP($A123,[2]Amazon!$A$2:$F$17,5,FALSE),0)","v":0},{"$f":"IFERROR(VLOOKUP($A123,'[4]Payment Pivot'!$A$4:$B$39,2,FALSE),0)","v":0},{"$f":"$BL123+$BM122-IFERROR(VLOOKUP($A123,'[2]Myaccountaccess Pivot'!$A$4:$B$31,2,FALSE),0)","v":0},null,{"$f":"IFERROR(VLOOKUP($A123,'[6]export-2'!$A$2:$F$15,6,FALSE),BO122)","v":4150.04},190.15962150314331,{"$f":"OFFSET(A123,0,'Cool Graph'!$H$1)","v":0},{"$f":"OFFSET(A123,0,'Cool Graph'!$I$1)","v":190.15962150314331}]
["2011-10-31",0,0.55000000000000004,96.61999999999999,101.97,2.62,201.76,0,0,0,2,0,1,0,88.6,0,0,13.37,0,3,0,0,0,1,1,0,0,4,495,{"$f":"IFERROR(VLOOKUP($A124,[1]Sheet1!$A$4:$B$219,2,FALSE),0)","v":165},660,-394.22999999999956,{"$f":"$BH124+$BI123-IFERROR(VLOOKUP($A124,[2]Sheet2!$A$4:$B$82,2,FALSE),0)","v":1999.8199999999997},{"$f":"$BJ123+$BK123-IFERROR(VLOOKUP($A124,[2]Amazon!$A$2:$F$17,5,FALSE),0)","v":0},{"$f":"$BL124+$BM123-IFERROR(VLOOKUP($A124,'[2]Myaccountaccess Pivot'!$A$4:$B$31,2,FALSE),0)","v":0},{"$f":"IFERROR(VLOOKUP($A124,'[2]export-1'!$A$2:$F$441,6,FALSE),AJ123)","v":7257.1400000000012},{"$f":"IFERROR(VLOOKUP($A124,'[7]download-1'!$A$2:$F$513,6,FALSE),AK123)","v":-2317.09},{"$f":"IFERROR(VLOOKUP($A124,'[3]TexttoColumn Amazon Balance'!$A$14:$B$30,2,FALSE),IF(AL125>0,AL125-100,0))","v":1196.51},10176.290000000001,24632.33,208,12,0,0,null,null,null,null,null,{"$f":"IFERROR(VLOOKUP($A124,'[2]export-1'!$A$446:$G$451,7,FALSE),0)","v":0},{"$f":"IFERROR(VLOOKUP($A124,[3]Sheet4!$A$4:$B$56,2,FALSE),0)","v":0},{"$f":"IFERROR(VLOOKUP($A124,'[3]headphones purchased'!$A$2:$G$27,6,FALSE),0)","v":0},{"$f":"ROUND(IFERROR(VLOOKUP($A124,'[4]download-1'!$A$471:$F$474,5,FALSE)/-9.5,0),0)","v":0},{"$f":"ROUND(IFERROR(VLOOKUP($A124,'[4]download-1'!$A$467:$F$469,5,FALSE)/-49,0),0)","v":0},{"$f":"IFERROR(VLOOKUP($A124,[5]Sheet8!$A$4:$B$89,2,FALSE),0)","v":4},null,null,0,{"$f":"IFERROR(VLOOKUP($A124,[3]Paypal!$A$2:$AA$1843,25,FALSE),0)","v":2039.91},{"$f":"IFERROR(VLOOKUP($A124,'[3]Paypal Money Sent Pivot'!$A$4:$B$97,2,FALSE),0)","v":0},{"$f":"$BH124+$BI123-IFERROR(VLOOKUP($A124,[2]Sheet2!$A$4:$B$82,2,FALSE),0)","v":1999.8199999999997},{"$f":"IFERROR(VLOOKUP($A124,'[3]TexttoColumn Amazon Balance'!$A$14:$B$30,2,FALSE),0)","v":0},{"$f":"$BJ123+$BK123-IFERROR(VLOOKUP($A124,[2]Amazon!$A$2:$F$17,5,FALSE),0)","v":0},{"$f":"IFERROR(VLOOKUP($A124,'[4]Payment Pivot'!$A$4:$B$39,2,FALSE),0)","v":0},{"$f":"$BL124+$BM123-IFERROR(VLOOKUP($A124,'[2]Myaccountaccess Pivot'!$A$4:$B$31,2,FALSE),0)","v":0},null,{"$f":"IFERROR(VLOOKUP($A124,'[6]export-2'!$A$2:$F$15,6,FALSE),BO123)","v":4150.04},77.719747668762238,{"$f":"OFFSET(A124,0,'Cool Graph'!$H$1)","v":0},{"$f":"OFFSET(A124,0,'Cool Graph'!$I$1)","v":77.719747668762238}]
["2011-11-01",0,3.65,106.69,133.87,0.89,245.1,0,0,0,4,1,2,0,120.95,0,2,12.92,1,0,0,0,0,6,6,0,0,6,0,{"$f":"IFERROR(VLOOKUP($A125,[1]Sheet1!$A$4:$B$219,2,FALSE),0)","v":990},990,577.27999999999884,{"$f":"$BH125+$BI124-IFERROR(VLOOKUP($A125,[2]Sheet2!$A$4:$B$82,2,FALSE),0)","v":999.81999999999971},{"$f":"$BJ124+$BK124-IFERROR(VLOOKUP($A125,[2]Amazon!$A$2:$F$17,5,FALSE),0)","v":0},{"$f":"$BL125+$BM124-IFERROR(VLOOKUP($A125,'[2]Myaccountaccess Pivot'!$A$4:$B$31,2,FALSE),0)","v":0},{"$f":"IFERROR(VLOOKUP($A125,'[2]export-1'!$A$2:$F$441,6,FALSE),AJ124)","v":9257.1400000000012},{"$f":"IFERROR(VLOOKUP($A125,'[7]download-1'!$A$2:$F$513,6,FALSE),AK124)","v":-2817.09},{"$f":"IFERROR(VLOOKUP($A125,'[3]TexttoColumn Amazon Balance'!$A$14:$B$30,2,FALSE),IF(AL126>0,AL126-100,0))","v":1296.51},11055.570000000002,25209.61,203,6,0,0,null,null,null,null,null,{"$f":"IFERROR(VLOOKUP($A125,'[2]export-1'!$A$446:$G$451,7,FALSE),0)","v":0},{"$f":"IFERROR(VLOOKUP($A125,[3]Sheet4!$A$4:$B$56,2,FALSE),0)","v":0},{"$f":"IFERROR(VLOOKUP($A125,'[3]headphones purchased'!$A$2:$G$27,6,FALSE),0)","v":0},{"$f":"ROUND(IFERROR(VLOOKUP($A125,'[4]download-1'!$A$471:$F$474,5,FALSE)/-9.5,0),0)","v":0},{"$f":"ROUND(IFERROR(VLOOKUP($A125,'[4]download-1'!$A$467:$F$469,5,FALSE)/-49,0),0)","v":0},{"$f":"IFERROR(VLOOKUP($A125,[5]Sheet8!$A$4:$B$89,2,FALSE),0)","v":0},null,null,1,{"$f":"IFERROR(VLOOKUP($A125,[3]Paypal!$A$2:$AA$1843,25,FALSE),0)","v":2319.19},{"$f":"IFERROR(VLOOKUP($A125,'[3]Paypal Money Sent Pivot'!$A$4:$B$97,2,FALSE),0)","v":1000},{"$f":"$BH125+$BI124-IFERROR(VLOOKUP($A125,[2]Sheet2!$A$4:$B$82,2,FALSE),0)","v":999.81999999999971},{"$f":"IFERROR(VLOOKUP($A125,'[3]TexttoColumn Amazon Balance'!$A$14:$B$30,2,FALSE),0)","v":0},{"$f":"$BJ124+$BK124-IFERROR(VLOOKUP($A125,[2]Amazon!$A$2:$F$17,5,FALSE),0)","v":0},{"$f":"IFERROR(VLOOKUP($A125,'[4]Payment Pivot'!$A$4:$B$39,2,FALSE),0)","v":0},{"$f":"$BL125+$BM124-IFERROR(VLOOKUP($A125,'[2]Myaccountaccess Pivot'!$A$4:$B$31,2,FALSE),0)","v":0},null,{"$f":"IFERROR(VLOOKUP($A125,'[6]export-2'!$A$2:$F$15,6,FALSE),BO124)","v":4150.04},174.11962150314335,{"$f":"OFFSET(A125,0,'Cool Graph'!$H$1)","v":0},{"$f":"OFFSET(A125,0,'Cool Graph'!$I$1)","v":174.11962150314335}]
["2011-11-02",0,1.7,113.47,157.19,2.33,274.69,0,0,0,7,0,1,0,142.54999999999998,0,1,14.64,0,2,0,0,0,11,11,0,0,13,330,{"$f":"IFERROR(VLOOKUP($A126,[1]Sheet1!$A$4:$B$219,2,FALSE),0)","v":1790},2120,479.03000000000247,{"$f":"$BH126+$BI125-IFERROR(VLOOKUP($A126,[2]Sheet2!$A$4:$B$82,2,FALSE),0)","v":1999.8199999999997},{"$f":"$BJ125+$BK125-IFERROR(VLOOKUP($A126,[2]Amazon!$A$2:$F$17,5,FALSE),0)","v":0},{"$f":"$BL126+$BM125-IFERROR(VLOOKUP($A126,'[2]Myaccountaccess Pivot'!$A$4:$B$31,2,FALSE),0)","v":1500},{"$f":"IFERROR(VLOOKUP($A126,'[2]export-1'!$A$2:$F$441,6,FALSE),AJ125)","v":8840.4100000000017},{"$f":"IFERROR(VLOOKUP($A126,'[7]download-1'!$A$2:$F$513,6,FALSE),AK125)","v":-1317.09},{"$f":"IFERROR(VLOOKUP($A126,'[3]TexttoColumn Amazon Balance'!$A$14:$B$30,2,FALSE),IF(AL127>0,AL127-100,0))","v":1396.51},10414.100000000002,25688.640000000003,228,-5,0,0,null,null,null,null,null,{"$f":"IFERROR(VLOOKUP($A126,'[2]export-1'!$A$446:$G$451,7,FALSE),0)","v":0},{"$f":"IFERROR(VLOOKUP($A126,[3]Sheet4!$A$4:$B$56,2,FALSE),0)","v":42},{"$f":"IFERROR(VLOOKUP($A126,'[3]headphones purchased'!$A$2:$G$27,6,FALSE),0)","v":0},{"$f":"ROUND(IFERROR(VLOOKUP($A126,'[4]download-1'!$A$471:$F$474,5,FALSE)/-9.5,0),0)","v":0},{"$f":"ROUND(IFERROR(VLOOKUP($A126,'[4]download-1'!$A$467:$F$469,5,FALSE)/-49,0),0)","v":0},{"$f":"IFERROR(VLOOKUP($A126,[5]Sheet8!$A$4:$B$89,2,FALSE),0)","v":4},null,null,0,{"$f":"IFERROR(VLOOKUP($A126,[3]Paypal!$A$2:$AA$1843,25,FALSE),0)","v":994.45},{"$f":"IFERROR(VLOOKUP($A126,'[3]Paypal Money Sent Pivot'!$A$4:$B$97,2,FALSE),0)","v":1000},{"$f":"$BH126+$BI125-IFERROR(VLOOKUP($A126,[2]Sheet2!$A$4:$B$82,2,FALSE),0)","v":1999.8199999999997},{"$f":"IFERROR(VLOOKUP($A126,'[3]TexttoColumn Amazon Balance'!$A$14:$B$30,2,FALSE),0)","v":0},{"$f":"$BJ125+$BK125-IFERROR(VLOOKUP($A126,[2]Amazon!$A$2:$F$17,5,FALSE),0)","v":0},{"$f":"IFERROR(VLOOKUP($A126,'[4]Payment Pivot'!$A$4:$B$39,2,FALSE),0)","v":1500},{"$f":"$BL126+$BM125-IFERROR(VLOOKUP($A126,'[2]Myaccountaccess Pivot'!$A$4:$B$31,2,FALSE),0)","v":1500},null,{"$f":"IFERROR(VLOOKUP($A126,'[6]export-2'!$A$2:$F$15,6,FALSE),BO125)","v":4150.04},623.03282584511498,{"$f":"OFFSET(A126,0,'Cool Graph'!$H$1)","v":0},{"$f":"OFFSET(A126,0,'Cool Graph'!$I$1)","v":623.03282584511498}]
["2011-11-03",0,6.07,112.08000000000001,153.38999999999999,2.3199999999999998,273.85999999999996,0,0,0,3,2,0,0,136.1,1,0,17.29,1,1,0,0,0,9,9,0,0,10,165,{"$f":"IFERROR(VLOOKUP($A127,[1]Sheet1!$A$4:$B$219,2,FALSE),0)","v":1505},1670,426.88000000000102,{"$f":"$BH127+$BI126-IFERROR(VLOOKUP($A127,[2]Sheet2!$A$4:$B$82,2,FALSE),0)","v":1999.8199999999997},{"$f":"$BJ126+$BK126-IFERROR(VLOOKUP($A127,[2]Amazon!$A$2:$F$17,5,FALSE),0)","v":0},{"$f":"$BL127+$BM126-IFERROR(VLOOKUP($A127,'[2]Myaccountaccess Pivot'!$A$4:$B$31,2,FALSE),0)","v":0},{"$f":"IFERROR(VLOOKUP($A127,'[2]export-1'!$A$2:$F$441,6,FALSE),AJ126)","v":6659.090000000002},{"$f":"IFERROR(VLOOKUP($A127,'[7]download-1'!$A$2:$F$513,6,FALSE),AK126)","v":-1317.09},{"$f":"IFERROR(VLOOKUP($A127,'[3]TexttoColumn Amazon Balance'!$A$14:$B$30,2,FALSE),IF(AL128>0,AL128-100,0))","v":1496.51},11367.480000000001,26115.520000000004,219,-14,0,0,null,null,null,null,null,{"$f":"IFERROR(VLOOKUP($A127,'[2]export-1'!$A$446:$G$451,7,FALSE),0)","v":0},{"$f":"IFERROR(VLOOKUP($A127,[3]Sheet4!$A$4:$B$56,2,FALSE),0)","v":0},{"$f":"IFERROR(VLOOKUP($A127,'[3]headphones purchased'!$A$2:$G$27,6,FALSE),0)","v":0},{"$f":"ROUND(IFERROR(VLOOKUP($A127,'[4]download-1'!$A$471:$F$474,5,FALSE)/-9.5,0),0)","v":0},{"$f":"ROUND(IFERROR(VLOOKUP($A127,'[4]download-1'!$A$467:$F$469,5,FALSE)/-49,0),0)","v":0},{"$f":"IFERROR(VLOOKUP($A127,[5]Sheet8!$A$4:$B$89,2,FALSE),0)","v":0},null,null,1,{"$f":"IFERROR(VLOOKUP($A127,[3]Paypal!$A$2:$AA$1843,25,FALSE),0)","v":2529.15},{"$f":"IFERROR(VLOOKUP($A127,'[3]Paypal Money Sent Pivot'!$A$4:$B$97,2,FALSE),0)","v":0},{"$f":"$BH127+$BI126-IFERROR(VLOOKUP($A127,[2]Sheet2!$A$4:$B$82,2,FALSE),0)","v":1999.8199999999997},{"$f":"IFERROR(VLOOKUP($A127,'[3]TexttoColumn Amazon Balance'!$A$14:$B$30,2,FALSE),0)","v":0},{"$f":"$BJ126+$BK126-IFERROR(VLOOKUP($A127,[2]Amazon!$A$2:$F$17,5,FALSE),0)","v":0},{"$f":"IFERROR(VLOOKUP($A127,'[4]Payment Pivot'!$A$4:$B$39,2,FALSE),0)","v":0},{"$f":"$BL127+$BM126-IFERROR(VLOOKUP($A127,'[2]Myaccountaccess Pivot'!$A$4:$B$31,2,FALSE),0)","v":0},null,{"$f":"IFERROR(VLOOKUP($A127,'[6]export-2'!$A$2:$F$15,6,FALSE),BO126)","v":4150.04},433.30845243459538,{"$f":"OFFSET(A127,0,'Cool Graph'!$H$1)","v":0},{"$f":"OFFSET(A127,0,'Cool Graph'!$I$1)","v":433.30845243459538}]
["2011-11-04",0,2.34,116.05,231.67999999999998,2.75,352.82,0,0,0,3,1,1,0,220.51,1,1,11.17,0,2,0,0,0,8,8,0,0,10,330,{"$f":"IFERROR(VLOOKUP($A128,[1]Sheet1!$A$4:$B$219,2,FALSE),0)","v":1320},1650,368.58000000000175,{"$f":"$BH128+$BI127-IFERROR(VLOOKUP($A128,[2]Sheet2!$A$4:$B$82,2,FALSE),0)","v":4399.82},{"$f":"$BJ127+$BK127-IFERROR(VLOOKUP($A128,[2]Amazon!$A$2:$F$17,5,FALSE),0)","v":0},{"$f":"$BL128+$BM127-IFERROR(VLOOKUP($A128,'[2]Myaccountaccess Pivot'!$A$4:$B$31,2,FALSE),0)","v":0},{"$f":"IFERROR(VLOOKUP($A128,'[2]export-1'!$A$2:$F$441,6,FALSE),AJ127)","v":7621.1500000000024},{"$f":"IFERROR(VLOOKUP($A128,'[7]download-1'!$A$2:$F$513,6,FALSE),AK127)","v":-1817.09},{"$f":"IFERROR(VLOOKUP($A128,'[3]TexttoColumn Amazon Balance'!$A$14:$B$30,2,FALSE),IF(AL129>0,AL129-100,0))","v":1596.51},12302.060000000003,26484.100000000006,209,-22,0,0,null,null,null,null,null,{"$f":"IFERROR(VLOOKUP($A128,'[2]export-1'!$A$446:$G$451,7,FALSE),0)","v":0},{"$f":"IFERROR(VLOOKUP($A128,[3]Sheet4!$A$4:$B$56,2,FALSE),0)","v":0},{"$f":"IFERROR(VLOOKUP($A128,'[3]headphones purchased'!$A$2:$G$27,6,FALSE),0)","v":0},{"$f":"ROUND(IFERROR(VLOOKUP($A128,'[4]download-1'!$A$471:$F$474,5,FALSE)/-9.5,0),0)","v":0},{"$f":"ROUND(IFERROR(VLOOKUP($A128,'[4]download-1'!$A$467:$F$469,5,FALSE)/-49,0),0)","v":0},{"$f":"IFERROR(VLOOKUP($A128,[5]Sheet8!$A$4:$B$89,2,FALSE),0)","v":0},null,null,0,{"$f":"IFERROR(VLOOKUP($A128,[3]Paypal!$A$2:$AA$1843,25,FALSE),0)","v":501.67},{"$f":"IFERROR(VLOOKUP($A128,'[3]Paypal Money Sent Pivot'!$A$4:$B$97,2,FALSE),0)","v":3400},{"$f":"$BH128+$BI127-IFERROR(VLOOKUP($A128,[2]Sheet2!$A$4:$B$82,2,FALSE),0)","v":4399.82},{"$f":"IFERROR(VLOOKUP($A128,'[3]TexttoColumn Amazon Balance'!$A$14:$B$30,2,FALSE),0)","v":0},{"$f":"$BJ127+$BK127-IFERROR(VLOOKUP($A128,[2]Amazon!$A$2:$F$17,5,FALSE),0)","v":0},{"$f":"IFERROR(VLOOKUP($A128,'[4]Payment Pivot'!$A$4:$B$39,2,FALSE),0)","v":0},{"$f":"$BL128+$BM127-IFERROR(VLOOKUP($A128,'[2]Myaccountaccess Pivot'!$A$4:$B$31,2,FALSE),0)","v":0},null,{"$f":"IFERROR(VLOOKUP($A128,'[6]export-2'!$A$2:$F$15,6,FALSE),BO127)","v":4150.04},345.87936917190558,{"$f":"OFFSET(A128,0,'Cool Graph'!$H$1)","v":0},{"$f":"OFFSET(A128,0,'Cool Graph'!$I$1)","v":345.87936917190558}]
["2011-11-05",0,6.87,114.87,116.99999999999999,4.05,242.79000000000002,0,0,0,2,1,0,0,106.58999999999999,1,0,10.41,0,0,0,0,0,4,4,0,0,4,0,{"$f":"IFERROR(VLOOKUP($A129,[1]Sheet1!$A$4:$B$219,2,FALSE),0)","v":660},660,664.18999999999869,{"$f":"$BH129+$BI128-IFERROR(VLOOKUP($A129,[2]Sheet2!$A$4:$B$82,2,FALSE),0)","v":4399.82},{"$f":"$BJ128+$BK128-IFERROR(VLOOKUP($A129,[2]Amazon!$A$2:$F$17,5,FALSE),0)","v":0},{"$f":"$BL129+$BM128-IFERROR(VLOOKUP($A129,'[2]Myaccountaccess Pivot'!$A$4:$B$31,2,FALSE),0)","v":0},{"$f":"IFERROR(VLOOKUP($A129,'[2]export-1'!$A$2:$F$441,6,FALSE),AJ128)","v":7621.1500000000024},{"$f":"IFERROR(VLOOKUP($A129,'[7]download-1'!$A$2:$F$513,6,FALSE),AK128)","v":-1817.09},{"$f":"IFERROR(VLOOKUP($A129,'[3]TexttoColumn Amazon Balance'!$A$14:$B$30,2,FALSE),IF(AL130>0,AL130-100,0))","v":1696.51},13151.250000000004,27148.290000000005,206,-26,0,0,null,null,null,null,null,{"$f":"IFERROR(VLOOKUP($A129,'[2]export-1'!$A$446:$G$451,7,FALSE),0)","v":0},{"$f":"IFERROR(VLOOKUP($A129,[3]Sheet4!$A$4:$B$56,2,FALSE),0)","v":0},{"$f":"IFERROR(VLOOKUP($A129,'[3]headphones purchased'!$A$2:$G$27,6,FALSE),0)","v":0},{"$f":"ROUND(IFERROR(VLOOKUP($A129,'[4]download-1'!$A$471:$F$474,5,FALSE)/-9.5,0),0)","v":0},{"$f":"ROUND(IFERROR(VLOOKUP($A129,'[4]download-1'!$A$467:$F$469,5,FALSE)/-49,0),0)","v":0},{"$f":"IFERROR(VLOOKUP($A129,[5]Sheet8!$A$4:$B$89,2,FALSE),0)","v":0},null,null,1,{"$f":"IFERROR(VLOOKUP($A129,[3]Paypal!$A$2:$AA$1843,25,FALSE),0)","v":1250.8599999999999},{"$f":"IFERROR(VLOOKUP($A129,'[3]Paypal Money Sent Pivot'!$A$4:$B$97,2,FALSE),0)","v":0},{"$f":"$BH129+$BI128-IFERROR(VLOOKUP($A129,[2]Sheet2!$A$4:$B$82,2,FALSE),0)","v":4399.82},{"$f":"IFERROR(VLOOKUP($A129,'[3]TexttoColumn Amazon Balance'!$A$14:$B$30,2,FALSE),0)","v":1696.51},{"$f":"$BJ128+$BK128-IFERROR(VLOOKUP($A129,[2]Amazon!$A$2:$F$17,5,FALSE),0)","v":0},{"$f":"IFERROR(VLOOKUP($A129,'[4]Payment Pivot'!$A$4:$B$39,2,FALSE),0)","v":0},{"$f":"$BL129+$BM128-IFERROR(VLOOKUP($A129,'[2]Myaccountaccess Pivot'!$A$4:$B$31,2,FALSE),0)","v":0},null,{"$f":"IFERROR(VLOOKUP($A129,'[6]export-2'!$A$2:$F$15,6,FALSE),BO128)","v":4150.04},36.689747668762209,{"$f":"OFFSET(A129,0,'Cool Graph'!$H$1)","v":0},{"$f":"OFFSET(A129,0,'Cool Graph'!$I$1)","v":36.689747668762209}]
["2011-11-06",0,2,140.97,171.1,3.24,317.31,0,0,0,6,0,1,0,154.38,0,1,16.72,0,1,0,0,0,12,12,0,0,13,165,{"$f":"IFERROR(VLOOKUP($A130,[1]Sheet1!$A$4:$B$219,2,FALSE),0)","v":1980},2145,804.22999999999956,{"$f":"$BH130+$BI129-IFERROR(VLOOKUP($A130,[2]Sheet2!$A$4:$B$82,2,FALSE),0)","v":4399.82},{"$f":"$BJ129+$BK129-IFERROR(VLOOKUP($A130,[2]Amazon!$A$2:$F$17,5,FALSE),0)","v":1696.51},{"$f":"$BL130+$BM129-IFERROR(VLOOKUP($A130,'[2]Myaccountaccess Pivot'!$A$4:$B$31,2,FALSE),0)","v":0},{"$f":"IFERROR(VLOOKUP($A130,'[2]export-1'!$A$2:$F$441,6,FALSE),AJ129)","v":7621.1500000000024},{"$f":"IFERROR(VLOOKUP($A130,'[7]download-1'!$A$2:$F$513,6,FALSE),AK129)","v":-1817.09},{"$f":"IFERROR(VLOOKUP($A130,'[3]TexttoColumn Amazon Balance'!$A$14:$B$30,2,FALSE),IF(AL131>0,AL131-100,0))","v":595.77},14706.480000000003,27952.520000000004,193,-38,0,0,null,null,null,null,null,{"$f":"IFERROR(VLOOKUP($A130,'[2]export-1'!$A$446:$G$451,7,FALSE),0)","v":0},{"$f":"IFERROR(VLOOKUP($A130,[3]Sheet4!$A$4:$B$56,2,FALSE),0)","v":0},{"$f":"IFERROR(VLOOKUP($A130,'[3]headphones purchased'!$A$2:$G$27,6,FALSE),0)","v":0},{"$f":"ROUND(IFERROR(VLOOKUP($A130,'[4]download-1'!$A$471:$F$474,5,FALSE)/-9.5,0),0)","v":0},{"$f":"ROUND(IFERROR(VLOOKUP($A130,'[4]download-1'!$A$467:$F$469,5,FALSE)/-49,0),0)","v":0},{"$f":"IFERROR(VLOOKUP($A130,[5]Sheet8!$A$4:$B$89,2,FALSE),0)","v":0},null,null,0,{"$f":"IFERROR(VLOOKUP($A130,[3]Paypal!$A$2:$AA$1843,25,FALSE),0)","v":2210.3200000000002},{"$f":"IFERROR(VLOOKUP($A130,'[3]Paypal Money Sent Pivot'!$A$4:$B$97,2,FALSE),0)","v":0},{"$f":"$BH130+$BI129-IFERROR(VLOOKUP($A130,[2]Sheet2!$A$4:$B$82,2,FALSE),0)","v":4399.82},{"$f":"IFERROR(VLOOKUP($A130,'[3]TexttoColumn Amazon Balance'!$A$14:$B$30,2,FALSE),0)","v":0},{"$f":"$BJ129+$BK129-IFERROR(VLOOKUP($A130,[2]Amazon!$A$2:$F$17,5,FALSE),0)","v":1696.51},{"$f":"IFERROR(VLOOKUP($A130,'[4]Payment Pivot'!$A$4:$B$39,2,FALSE),0)","v":0},{"$f":"$BL130+$BM129-IFERROR(VLOOKUP($A130,'[2]Myaccountaccess Pivot'!$A$4:$B$31,2,FALSE),0)","v":0},null,{"$f":"IFERROR(VLOOKUP($A130,'[6]export-2'!$A$2:$F$15,6,FALSE),BO129)","v":4150.04},{"$f":"($AG$286*AE130)-G130","v":590.99917992347719},{"$f":"OFFSET(A130,0,'Cool Graph'!$H$1)","v":0},{"$f":"OFFSET(A130,0,'Cool Graph'!$I$1)","v":590.99917992347719}]
["2011-11-07",0,3.76,177.98,158.4,4.97,345.11,0,0,0,4,0,1,0,146.92000000000002,0,0,11.48,0,3,0,0,0,8,8,0,0,{"$f":"SUM(X131,T131)","v":11},495,{"$f":"IFERROR(VLOOKUP($A131,[1]Sheet1!$A$4:$B$219,2,FALSE),0)","v":1340},{"$f":"SUM(AC131,AD131)","v":1835},-303.68000000000029,{"$f":"$BH131+$BI130-IFERROR(VLOOKUP($A131,[2]Sheet2!$A$4:$B$82,2,FALSE),0)","v":-0.18000000000029104},{"$f":"$BJ130+$BK130-IFERROR(VLOOKUP($A131,[2]Amazon!$A$2:$F$17,5,FALSE),0)","v":1696.51},{"$f":"$BL131+$BM130-IFERROR(VLOOKUP($A131,'[2]Myaccountaccess Pivot'!$A$4:$B$31,2,FALSE),0)","v":1817.09},{"$f":"IFERROR(VLOOKUP($A131,'[2]export-1'!$A$2:$F$441,6,FALSE),AJ130)","v":11991.070000000002},{"$f":"IFERROR(VLOOKUP($A131,'[7]download-1'!$A$2:$F$513,6,FALSE),AK130)","v":-1000.0000000000002},{"$f":"IFERROR(VLOOKUP($A131,'[3]TexttoColumn Amazon Balance'!$A$14:$B$30,2,FALSE),IF(AL132>0,AL132-100,0))","v":695.77},{"$f":"AL131+AK131+AJ131-AI131+AH131+AG131+BG131","v":12616.800000000001},{"$f":"AM131+(AO131*49)+(AP131*9.5)+(AQ131*5.25)+(AR131*7)+(AS131*49)+(AT131*9.5)+(AU131*5.25)+BO131","v":27648.840000000004},231,-46,0,0,null,null,null,null,null,{"$f":"IFERROR(VLOOKUP($A131,'[2]export-1'!$A$446:$G$451,7,FALSE),0)","v":0},{"$f":"IFERROR(VLOOKUP($A131,[3]Sheet4!$A$4:$B$56,2,FALSE),0)","v":48},{"$f":"IFERROR(VLOOKUP($A131,'[3]headphones purchased'!$A$2:$G$27,6,FALSE),0)","v":0},{"$f":"ROUND(IFERROR(VLOOKUP($A131,'[4]download-1'!$A$471:$F$474,5,FALSE)/-9.5,0),0)","v":0},{"$f":"ROUND(IFERROR(VLOOKUP($A131,'[4]download-1'!$A$467:$F$469,5,FALSE)/-49,0),0)","v":0},{"$f":"IFERROR(VLOOKUP($A131,[5]Sheet8!$A$4:$B$89,2,FALSE),0)","v":0},null,null,1,{"$f":"IFERROR(VLOOKUP($A131,[3]Paypal!$A$2:$AA$1843,25,FALSE),0)","v":1050.72},{"$f":"IFERROR(VLOOKUP($A131,'[3]Paypal Money Sent Pivot'!$A$4:$B$97,2,FALSE),0)","v":0},{"$f":"$BH131+$BI130-IFERROR(VLOOKUP($A131,[2]Sheet2!$A$4:$B$82,2,FALSE),0)","v":-0.18000000000029104},{"$f":"IFERROR(VLOOKUP($A131,'[3]TexttoColumn Amazon Balance'!$A$14:$B$30,2,FALSE),0)","v":0},{"$f":"$BJ130+$BK130-IFERROR(VLOOKUP($A131,[2]Amazon!$A$2:$F$17,5,FALSE),0)","v":1696.51},{"$f":"IFERROR(VLOOKUP($A131,'[4]Payment Pivot'!$A$4:$B$39,2,FALSE),0)","v":1817.09},{"$f":"$BL131+$BM130-IFERROR(VLOOKUP($A131,'[2]Myaccountaccess Pivot'!$A$4:$B$31,2,FALSE),0)","v":1817.09},null,{"$f":"IFERROR(VLOOKUP($A131,'[6]export-2'!$A$2:$F$15,6,FALSE),BO130)","v":4150.04},431.92838935178588,{"$f":"OFFSET(A131,0,'Cool Graph'!$H$1)","v":0},{"$f":"OFFSET(A131,0,'Cool Graph'!$I$1)","v":431.92838935178588}]
["2011-11-08",0,6.77,124.24999999999999,128.41,3.7,263.12999999999994,0,1,0,1,2,0,0,118.55,2,0,9.86,0,3,1,0,0,9,9,0,0,12,660,{"$f":"IFERROR(VLOOKUP($A132,[1]Sheet1!$A$4:$B$219,2,FALSE),0)","v":1485},2145,{"$f":"AN132-AN131","v":359},{"$f":"$BH132+$BI131-IFERROR(VLOOKUP($A132,[2]Sheet2!$A$4:$B$82,2,FALSE),0)","v":-0.18000000000029104},{"$f":"$BJ131+$BK131-IFERROR(VLOOKUP($A132,[2]Amazon!$A$2:$F$17,5,FALSE),0)","v":0},{"$f":"$BL132+$BM131-IFERROR(VLOOKUP($A132,'[2]Myaccountaccess Pivot'!$A$4:$B$31,2,FALSE),0)","v":0},{"$f":"IFERROR(VLOOKUP($A132,'[2]export-1'!$A$2:$F$441,6,FALSE),AJ131)","v":10882.520000000002},{"$f":"IFERROR(VLOOKUP($A132,'[7]download-1'!$A$2:$F$513,6,FALSE),AK131)","v":-1500.0000000000002},{"$f":"IFERROR(VLOOKUP($A132,'[3]TexttoColumn Amazon Balance'!$A$14:$B$30,2,FALSE),IF(AL133>0,AL133-100,0))","v":795.77},12757.800000000003,28007.840000000004,{"$f":"AX132+AY132+AO131-AB132+BB132-BC132-AS132+BF132","v":218},44,{"$f":"BD132-V132-Z132+AQ131-AU132","v":0},{"$f":"BE132-W132-AA132+AR131","v":0},null,null,null,null,null,{"$f":"IFERROR(VLOOKUP($A132,'[2]export-1'!$A$446:$G$451,7,FALSE),0)","v":0},{"$f":"IFERROR(VLOOKUP($A132,[3]Sheet4!$A$4:$B$56,2,FALSE),0)","v":0},{"$f":"IFERROR(VLOOKUP($A132,'[3]headphones purchased'!$A$2:$G$27,6,FALSE),0)","v":100},{"$f":"ROUND(IFERROR(VLOOKUP($A132,'[4]download-1'!$A$471:$F$474,5,FALSE)/-9.5,0),0)","v":0},{"$f":"ROUND(IFERROR(VLOOKUP($A132,'[4]download-1'!$A$467:$F$469,5,FALSE)/-49,0),0)","v":0},{"$f":"IFERROR(VLOOKUP($A132,[5]Sheet8!$A$4:$B$89,2,FALSE),0)","v":1},null,null,0,{"$f":"IFERROR(VLOOKUP($A132,[3]Paypal!$A$2:$AA$1843,25,FALSE),0)","v":2579.69},{"$f":"IFERROR(VLOOKUP($A132,'[3]Paypal Money Sent Pivot'!$A$4:$B$97,2,FALSE),0)","v":0},{"$f":"$BH132+$BI131-IFERROR(VLOOKUP($A132,[2]Sheet2!$A$4:$B$82,2,FALSE),0)","v":-0.18000000000029104},{"$f":"IFERROR(VLOOKUP($A132,'[3]TexttoColumn Amazon Balance'!$A$14:$B$30,2,FALSE),0)","v":0},{"$f":"$BJ131+$BK131-IFERROR(VLOOKUP($A132,[2]Amazon!$A$2:$F$17,5,FALSE),0)","v":0},{"$f":"IFERROR(VLOOKUP($A132,'[4]Payment Pivot'!$A$4:$B$39,2,FALSE),0)","v":0},{"$f":"$BL132+$BM131-IFERROR(VLOOKUP($A132,'[2]Myaccountaccess Pivot'!$A$4:$B$31,2,FALSE),0)","v":0},null,{"$f":"IFERROR(VLOOKUP($A132,'[6]export-2'!$A$2:$F$15,6,FALSE),BO131)","v":4150.04},645.17917992347725,{"$f":"OFFSET(A132,0,'Cool Graph'!$H$1)","v":0},{"$f":"OFFSET(A132,0,'Cool Graph'!$I$1)","v":645.17917992347725}]
["2011-11-09",0,14.26,85.05,109.47,3.04,211.82,0,0,0,3,1,0,0,94.41,1,0,15.06,0,1,0,0,0,9,9,0,0,10,165,{"$f":"IFERROR(VLOOKUP($A133,[1]Sheet1!$A$4:$B$219,2,FALSE),0)","v":1485},1650,-158.44000000000233,{"$f":"$BH133+$BI132-IFERROR(VLOOKUP($A133,[2]Sheet2!$A$4:$B$82,2,FALSE),0)","v":-0.18000000000029104},{"$f":"$BJ132+$BK132-IFERROR(VLOOKUP($A133,[2]Amazon!$A$2:$F$17,5,FALSE),0)","v":0},{"$f":"$BL133+$BM132-IFERROR(VLOOKUP($A133,'[2]Myaccountaccess Pivot'!$A$4:$B$31,2,FALSE),0)","v":0},{"$f":"IFERROR(VLOOKUP($A133,'[2]export-1'!$A$2:$F$441,6,FALSE),AJ132)","v":10169.770000000002},{"$f":"IFERROR(VLOOKUP($A133,'[7]download-1'!$A$2:$F$513,6,FALSE),AK132)","v":-1677.63},{"$f":"IFERROR(VLOOKUP($A133,'[3]TexttoColumn Amazon Balance'!$A$14:$B$30,2,FALSE),IF(AL134>0,AL134-100,0))","v":895.77},11116.86,27849.4,250,35,0,0,null,null,null,null,null,{"$f":"IFERROR(VLOOKUP($A133,'[2]export-1'!$A$446:$G$451,7,FALSE),0)","v":0},{"$f":"IFERROR(VLOOKUP($A133,[3]Sheet4!$A$4:$B$56,2,FALSE),0)","v":42},{"$f":"IFERROR(VLOOKUP($A133,'[3]headphones purchased'!$A$2:$G$27,6,FALSE),0)","v":0},{"$f":"ROUND(IFERROR(VLOOKUP($A133,'[4]download-1'!$A$471:$F$474,5,FALSE)/-9.5,0),0)","v":0},{"$f":"ROUND(IFERROR(VLOOKUP($A133,'[4]download-1'!$A$467:$F$469,5,FALSE)/-49,0),0)","v":0},{"$f":"IFERROR(VLOOKUP($A133,[5]Sheet8!$A$4:$B$89,2,FALSE),0)","v":1},null,null,1,{"$f":"IFERROR(VLOOKUP($A133,[3]Paypal!$A$2:$AA$1843,25,FALSE),0)","v":1729.13},{"$f":"IFERROR(VLOOKUP($A133,'[3]Paypal Money Sent Pivot'!$A$4:$B$97,2,FALSE),0)","v":0},{"$f":"$BH133+$BI132-IFERROR(VLOOKUP($A133,[2]Sheet2!$A$4:$B$82,2,FALSE),0)","v":-0.18000000000029104},{"$f":"IFERROR(VLOOKUP($A133,'[3]TexttoColumn Amazon Balance'!$A$14:$B$30,2,FALSE),0)","v":0},{"$f":"$BJ132+$BK132-IFERROR(VLOOKUP($A133,[2]Amazon!$A$2:$F$17,5,FALSE),0)","v":0},{"$f":"IFERROR(VLOOKUP($A133,'[4]Payment Pivot'!$A$4:$B$39,2,FALSE),0)","v":0},{"$f":"$BL133+$BM132-IFERROR(VLOOKUP($A133,'[2]Myaccountaccess Pivot'!$A$4:$B$31,2,FALSE),0)","v":0},null,{"$f":"IFERROR(VLOOKUP($A133,'[6]export-2'!$A$2:$F$15,6,FALSE),BO132)","v":4150.04},486.87936917190558,{"$f":"OFFSET(A133,0,'Cool Graph'!$H$1)","v":0},{"$f":"OFFSET(A133,0,'Cool Graph'!$I$1)","v":486.87936917190558}]
["2011-11-10",0,14.94,83.669999999999987,88.65,2.79,190.04999999999998,0,0,0,2,4,0,0,76.84,3,0,11.81,1,0,0,0,0,4,4,0,0,4,0,{"$f":"IFERROR(VLOOKUP($A134,[1]Sheet1!$A$4:$B$219,2,FALSE),0)","v":660},660,1680.5200000000004,{"$f":"$BH134+$BI133-IFERROR(VLOOKUP($A134,[2]Sheet2!$A$4:$B$82,2,FALSE),0)","v":-0.18000000000029104},{"$f":"$BJ133+$BK133-IFERROR(VLOOKUP($A134,[2]Amazon!$A$2:$F$17,5,FALSE),0)","v":0},{"$f":"$BL134+$BM133-IFERROR(VLOOKUP($A134,'[2]Myaccountaccess Pivot'!$A$4:$B$31,2,FALSE),0)","v":1677.63},{"$f":"IFERROR(VLOOKUP($A134,'[2]export-1'!$A$2:$F$441,6,FALSE),AJ133)","v":5063.4800000000023},{"$f":"IFERROR(VLOOKUP($A134,'[7]download-1'!$A$2:$F$513,6,FALSE),AK133)","v":-500.00000000000006},{"$f":"IFERROR(VLOOKUP($A134,'[3]TexttoColumn Amazon Balance'!$A$14:$B$30,2,FALSE),IF(AL135>0,AL135-100,0))","v":995.77},6150.380000000001,29529.920000000002,246,{"$f":"AP133+AZ134+BA134-Y134-U134-AT134","v":229},0,0,null,null,null,null,null,{"$f":"IFERROR(VLOOKUP($A134,'[2]export-1'!$A$446:$G$451,7,FALSE),0)","v":0},{"$f":"IFERROR(VLOOKUP($A134,[3]Sheet4!$A$4:$B$56,2,FALSE),0)","v":0},{"$f":"IFERROR(VLOOKUP($A134,'[3]headphones purchased'!$A$2:$G$27,6,FALSE),0)","v":198},{"$f":"ROUND(IFERROR(VLOOKUP($A134,'[4]download-1'!$A$471:$F$474,5,FALSE)/-9.5,0),0)","v":0},{"$f":"ROUND(IFERROR(VLOOKUP($A134,'[4]download-1'!$A$467:$F$469,5,FALSE)/-49,0),0)","v":0},{"$f":"IFERROR(VLOOKUP($A134,[5]Sheet8!$A$4:$B$89,2,FALSE),0)","v":0},null,null,0,{"$f":"IFERROR(VLOOKUP($A134,[3]Paypal!$A$2:$AA$1843,25,FALSE),0)","v":2268.94},{"$f":"IFERROR(VLOOKUP($A134,'[3]Paypal Money Sent Pivot'!$A$4:$B$97,2,FALSE),0)","v":0},{"$f":"$BH134+$BI133-IFERROR(VLOOKUP($A134,[2]Sheet2!$A$4:$B$82,2,FALSE),0)","v":-0.18000000000029104},{"$f":"IFERROR(VLOOKUP($A134,'[3]TexttoColumn Amazon Balance'!$A$14:$B$30,2,FALSE),0)","v":0},{"$f":"$BJ133+$BK133-IFERROR(VLOOKUP($A134,[2]Amazon!$A$2:$F$17,5,FALSE),0)","v":0},{"$f":"IFERROR(VLOOKUP($A134,'[4]Payment Pivot'!$A$4:$B$39,2,FALSE),0)","v":1677.63},{"$f":"$BL134+$BM133-IFERROR(VLOOKUP($A134,'[2]Myaccountaccess Pivot'!$A$4:$B$31,2,FALSE),0)","v":1677.63},null,{"$f":"IFERROR(VLOOKUP($A134,'[6]export-2'!$A$2:$F$15,6,FALSE),BO133)","v":9150.0400000000009},89.429747668762246,{"$f":"OFFSET(A134,0,'Cool Graph'!$H$1)","v":0},{"$f":"OFFSET(A134,0,'Cool Graph'!$I$1)","v":89.429747668762246}]
["2011-11-11",0,9.9600000000000009,95.71,76.88,6.83,189.38,0,0,0,4,0,1,0,64.75,0,0,12.13,0,0,0,0,0,5,5,0,0,5,0,{"$f":"IFERROR(VLOOKUP($A135,[1]Sheet1!$A$4:$B$219,2,FALSE),0)","v":825},825,515.22999999999956,{"$f":"$BH135+$BI134-IFERROR(VLOOKUP($A135,[2]Sheet2!$A$4:$B$82,2,FALSE),0)","v":-0.18000000000029104},{"$f":"$BJ134+$BK134-IFERROR(VLOOKUP($A135,[2]Amazon!$A$2:$F$17,5,FALSE),0)","v":0},{"$f":"$BL135+$BM134-IFERROR(VLOOKUP($A135,'[2]Myaccountaccess Pivot'!$A$4:$B$31,2,FALSE),0)","v":1677.63},{"$f":"IFERROR(VLOOKUP($A135,'[2]export-1'!$A$2:$F$441,6,FALSE),AJ134)","v":5063.4800000000023},{"$f":"IFERROR(VLOOKUP($A135,'[7]download-1'!$A$2:$F$513,6,FALSE),AK134)","v":-500.00000000000006},{"$f":"IFERROR(VLOOKUP($A135,'[3]TexttoColumn Amazon Balance'!$A$14:$B$30,2,FALSE),IF(AL136>0,AL136-100,0))","v":1095.77},6958.1100000000015,30045.15,241,224,0,0,null,null,null,null,null,{"$f":"IFERROR(VLOOKUP($A135,'[2]export-1'!$A$446:$G$451,7,FALSE),0)","v":0},{"$f":"IFERROR(VLOOKUP($A135,[3]Sheet4!$A$4:$B$56,2,FALSE),0)","v":0},{"$f":"IFERROR(VLOOKUP($A135,'[3]headphones purchased'!$A$2:$G$27,6,FALSE),0)","v":0},{"$f":"ROUND(IFERROR(VLOOKUP($A135,'[4]download-1'!$A$471:$F$474,5,FALSE)/-9.5,0),0)","v":0},{"$f":"ROUND(IFERROR(VLOOKUP($A135,'[4]download-1'!$A$467:$F$469,5,FALSE)/-49,0),0)","v":0},{"$f":"IFERROR(VLOOKUP($A135,[5]Sheet8!$A$4:$B$89,2,FALSE),0)","v":1},null,null,1,{"$f":"IFERROR(VLOOKUP($A135,[3]Paypal!$A$2:$AA$1843,25,FALSE),0)","v":2976.67},{"$f":"IFERROR(VLOOKUP($A135,'[3]Paypal Money Sent Pivot'!$A$4:$B$97,2,FALSE),0)","v":0},{"$f":"$BH135+$BI134-IFERROR(VLOOKUP($A135,[2]Sheet2!$A$4:$B$82,2,FALSE),0)","v":-0.18000000000029104},{"$f":"IFERROR(VLOOKUP($A135,'[3]TexttoColumn Amazon Balance'!$A$14:$B$30,2,FALSE),0)","v":0},{"$f":"$BJ134+$BK134-IFERROR(VLOOKUP($A135,[2]Amazon!$A$2:$F$17,5,FALSE),0)","v":0},{"$f":"IFERROR(VLOOKUP($A135,'[4]Payment Pivot'!$A$4:$B$39,2,FALSE),0)","v":0},{"$f":"$BL135+$BM134-IFERROR(VLOOKUP($A135,'[2]Myaccountaccess Pivot'!$A$4:$B$31,2,FALSE),0)","v":1677.63},null,{"$f":"IFERROR(VLOOKUP($A135,'[6]export-2'!$A$2:$F$15,6,FALSE),BO134)","v":9150.0400000000009},159.96968458595279,{"$f":"OFFSET(A135,0,'Cool Graph'!$H$1)","v":0},{"$f":"OFFSET(A135,0,'Cool Graph'!$I$1)","v":159.96968458595279}]
["2011-11-12",0,14.75,65.22,51.94,4.26,136.16999999999999,0,0,0,0,0,0,0,41.01,0,0,10.93,0,0,0,0,0,2,2,0,0,2,0,{"$f":"IFERROR(VLOOKUP($A136,[1]Sheet1!$A$4:$B$219,2,FALSE),0)","v":330},330,456.90000000000146,{"$f":"$BH136+$BI135-IFERROR(VLOOKUP($A136,[2]Sheet2!$A$4:$B$82,2,FALSE),0)","v":-0.18000000000029104},{"$f":"$BJ135+$BK135-IFERROR(VLOOKUP($A136,[2]Amazon!$A$2:$F$17,5,FALSE),0)","v":0},{"$f":"$BL136+$BM135-IFERROR(VLOOKUP($A136,'[2]Myaccountaccess Pivot'!$A$4:$B$31,2,FALSE),0)","v":1677.63},{"$f":"IFERROR(VLOOKUP($A136,'[2]export-1'!$A$2:$F$441,6,FALSE),AJ135)","v":5063.4800000000023},{"$f":"IFERROR(VLOOKUP($A136,'[7]download-1'!$A$2:$F$513,6,FALSE),AK135)","v":-500.00000000000006},{"$f":"IFERROR(VLOOKUP($A136,'[3]TexttoColumn Amazon Balance'!$A$14:$B$30,2,FALSE),IF(AL137>0,AL137-100,0))","v":1195.77},7532.010000000002,30502.050000000003,239,222,0,0,null,null,null,null,null,{"$f":"IFERROR(VLOOKUP($A136,'[2]export-1'!$A$446:$G$451,7,FALSE),0)","v":0},{"$f":"IFERROR(VLOOKUP($A136,[3]Sheet4!$A$4:$B$56,2,FALSE),0)","v":0},{"$f":"IFERROR(VLOOKUP($A136,'[3]headphones purchased'!$A$2:$G$27,6,FALSE),0)","v":0},{"$f":"ROUND(IFERROR(VLOOKUP($A136,'[4]download-1'!$A$471:$F$474,5,FALSE)/-9.5,0),0)","v":0},{"$f":"ROUND(IFERROR(VLOOKUP($A136,'[4]download-1'!$A$467:$F$469,5,FALSE)/-49,0),0)","v":0},{"$f":"IFERROR(VLOOKUP($A136,[5]Sheet8!$A$4:$B$89,2,FALSE),0)","v":0},null,null,0,{"$f":"IFERROR(VLOOKUP($A136,[3]Paypal!$A$2:$AA$1843,25,FALSE),0)","v":3450.57},{"$f":"IFERROR(VLOOKUP($A136,'[3]Paypal Money Sent Pivot'!$A$4:$B$97,2,FALSE),0)","v":0},{"$f":"$BH136+$BI135-IFERROR(VLOOKUP($A136,[2]Sheet2!$A$4:$B$82,2,FALSE),0)","v":-0.18000000000029104},{"$f":"IFERROR(VLOOKUP($A136,'[3]TexttoColumn Amazon Balance'!$A$14:$B$30,2,FALSE),0)","v":0},{"$f":"$BJ135+$BK135-IFERROR(VLOOKUP($A136,[2]Amazon!$A$2:$F$17,5,FALSE),0)","v":0},{"$f":"IFERROR(VLOOKUP($A136,'[4]Payment Pivot'!$A$4:$B$39,2,FALSE),0)","v":0},{"$f":"$BL136+$BM135-IFERROR(VLOOKUP($A136,'[2]Myaccountaccess Pivot'!$A$4:$B$31,2,FALSE),0)","v":1677.63},null,{"$f":"IFERROR(VLOOKUP($A136,'[6]export-2'!$A$2:$F$15,6,FALSE),BO135)","v":9150.0400000000009},3.5698738343811272,{"$f":"OFFSET(A136,0,'Cool Graph'!$H$1)","v":0},{"$f":"OFFSET(A136,0,'Cool Graph'!$I$1)","v":3.5698738343811272}]
["2011-11-13",0,12.02,107.52000000000001,77.47,5.09,202.1,0,0,0,2,3,0,0,58.9,3,0,18.57,0,0,0,0,0,5,5,0,0,5,0,{"$f":"IFERROR(VLOOKUP($A137,[1]Sheet1!$A$4:$B$219,2,FALSE),0)","v":825},825,656.04999999999927,{"$f":"$BH137+$BI136-IFERROR(VLOOKUP($A137,[2]Sheet2!$A$4:$B$82,2,FALSE),0)","v":-0.18000000000029104},{"$f":"$BJ136+$BK136-IFERROR(VLOOKUP($A137,[2]Amazon!$A$2:$F$17,5,FALSE),0)","v":0},{"$f":"$BL137+$BM136-IFERROR(VLOOKUP($A137,'[2]Myaccountaccess Pivot'!$A$4:$B$31,2,FALSE),0)","v":1677.63},{"$f":"IFERROR(VLOOKUP($A137,'[2]export-1'!$A$2:$F$441,6,FALSE),AJ136)","v":5063.4800000000023},{"$f":"IFERROR(VLOOKUP($A137,'[7]download-1'!$A$2:$F$513,6,FALSE),AK136)","v":-500.00000000000006},{"$f":"IFERROR(VLOOKUP($A137,'[3]TexttoColumn Amazon Balance'!$A$14:$B$30,2,FALSE),IF(AL138>0,AL138-100,0))","v":1295.77},8431.5600000000013,31158.100000000002,235,217,0,0,null,null,null,null,null,{"$f":"IFERROR(VLOOKUP($A137,'[2]export-1'!$A$446:$G$451,7,FALSE),0)","v":0},{"$f":"IFERROR(VLOOKUP($A137,[3]Sheet4!$A$4:$B$56,2,FALSE),0)","v":0},{"$f":"IFERROR(VLOOKUP($A137,'[3]headphones purchased'!$A$2:$G$27,6,FALSE),0)","v":0},{"$f":"ROUND(IFERROR(VLOOKUP($A137,'[4]download-1'!$A$471:$F$474,5,FALSE)/-9.5,0),0)","v":0},{"$f":"ROUND(IFERROR(VLOOKUP($A137,'[4]download-1'!$A$467:$F$469,5,FALSE)/-49,0),0)","v":0},{"$f":"IFERROR(VLOOKUP($A137,[5]Sheet8!$A$4:$B$89,2,FALSE),0)","v":0},null,null,1,{"$f":"IFERROR(VLOOKUP($A137,[3]Paypal!$A$2:$AA$1843,25,FALSE),0)","v":4250.12},{"$f":"IFERROR(VLOOKUP($A137,'[3]Paypal Money Sent Pivot'!$A$4:$B$97,2,FALSE),0)","v":0},{"$f":"$BH137+$BI136-IFERROR(VLOOKUP($A137,[2]Sheet2!$A$4:$B$82,2,FALSE),0)","v":-0.18000000000029104},{"$f":"IFERROR(VLOOKUP($A137,'[3]TexttoColumn Amazon Balance'!$A$14:$B$30,2,FALSE),0)","v":0},{"$f":"$BJ136+$BK136-IFERROR(VLOOKUP($A137,[2]Amazon!$A$2:$F$17,5,FALSE),0)","v":0},{"$f":"IFERROR(VLOOKUP($A137,'[4]Payment Pivot'!$A$4:$B$39,2,FALSE),0)","v":0},{"$f":"$BL137+$BM136-IFERROR(VLOOKUP($A137,'[2]Myaccountaccess Pivot'!$A$4:$B$31,2,FALSE),0)","v":1677.63},null,{"$f":"IFERROR(VLOOKUP($A137,'[6]export-2'!$A$2:$F$15,6,FALSE),BO136)","v":9150.0400000000009},147.24968458595279,{"$f":"OFFSET(A137,0,'Cool Graph'!$H$1)","v":0},{"$f":"OFFSET(A137,0,'Cool Graph'!$I$1)","v":147.24968458595279}]
["2011-11-14",0,18.11,137.35999999999999,51.93,4.7300000000000004,212.12999999999997,0,0,0,3,0,0,0,43.04,0,0,8.89,0,0,0,0,0,8,8,0,0,8,0,{"$f":"IFERROR(VLOOKUP($A138,[1]Sheet1!$A$4:$B$219,2,FALSE),0)","v":1320},1320,-44.609999999996944,{"$f":"$BH138+$BI137-IFERROR(VLOOKUP($A138,[2]Sheet2!$A$4:$B$82,2,FALSE),0)","v":999.81999999999971},{"$f":"$BJ137+$BK137-IFERROR(VLOOKUP($A138,[2]Amazon!$A$2:$F$17,5,FALSE),0)","v":0},{"$f":"$BL138+$BM137-IFERROR(VLOOKUP($A138,'[2]Myaccountaccess Pivot'!$A$4:$B$31,2,FALSE),0)","v":0},{"$f":"IFERROR(VLOOKUP($A138,'[2]export-1'!$A$2:$F$441,6,FALSE),AJ137)","v":2940.9600000000028},{"$f":"IFERROR(VLOOKUP($A138,'[7]download-1'!$A$2:$F$513,6,FALSE),AK137)","v":-1060.18},{"$f":"IFERROR(VLOOKUP($A138,'[3]TexttoColumn Amazon Balance'!$A$14:$B$30,2,FALSE),IF(AL139>0,AL139-100,0))","v":1395.77},6551.9500000000025,31113.490000000005,274,209,0,0,null,null,null,null,null,{"$f":"IFERROR(VLOOKUP($A138,'[2]export-1'!$A$446:$G$451,7,FALSE),0)","v":0},{"$f":"IFERROR(VLOOKUP($A138,[3]Sheet4!$A$4:$B$56,2,FALSE),0)","v":48},{"$f":"IFERROR(VLOOKUP($A138,'[3]headphones purchased'!$A$2:$G$27,6,FALSE),0)","v":0},{"$f":"ROUND(IFERROR(VLOOKUP($A138,'[4]download-1'!$A$471:$F$474,5,FALSE)/-9.5,0),0)","v":0},{"$f":"ROUND(IFERROR(VLOOKUP($A138,'[4]download-1'!$A$467:$F$469,5,FALSE)/-49,0),0)","v":0},{"$f":"IFERROR(VLOOKUP($A138,[5]Sheet8!$A$4:$B$89,2,FALSE),0)","v":1},null,null,0,{"$f":"IFERROR(VLOOKUP($A138,[3]Paypal!$A$2:$AA$1843,25,FALSE),0)","v":2275.58},{"$f":"IFERROR(VLOOKUP($A138,'[3]Paypal Money Sent Pivot'!$A$4:$B$97,2,FALSE),0)","v":1000},{"$f":"$BH138+$BI137-IFERROR(VLOOKUP($A138,[2]Sheet2!$A$4:$B$82,2,FALSE),0)","v":999.81999999999971},{"$f":"IFERROR(VLOOKUP($A138,'[3]TexttoColumn Amazon Balance'!$A$14:$B$30,2,FALSE),0)","v":0},{"$f":"$BJ137+$BK137-IFERROR(VLOOKUP($A138,[2]Amazon!$A$2:$F$17,5,FALSE),0)","v":0},{"$f":"IFERROR(VLOOKUP($A138,'[4]Payment Pivot'!$A$4:$B$39,2,FALSE),0)","v":0},{"$f":"$BL138+$BM137-IFERROR(VLOOKUP($A138,'[2]Myaccountaccess Pivot'!$A$4:$B$31,2,FALSE),0)","v":0},null,{"$f":"IFERROR(VLOOKUP($A138,'[6]export-2'!$A$2:$F$15,6,FALSE),BO137)","v":9150.0400000000009},346.82949533752446,{"$f":"OFFSET(A138,0,'Cool Graph'!$H$1)","v":0},{"$f":"OFFSET(A138,0,'Cool Graph'!$I$1)","v":346.82949533752446}]
["2011-11-15",0,8.0500000000000007,101.25000000000001,64.349999999999994,7.27,180.92000000000002,0,0,0,4,0,1,0,56.730000000000004,0,1,7.62,0,0,0,0,0,9,9,0,0,9,0,{"$f":"IFERROR(VLOOKUP($A139,[1]Sheet1!$A$4:$B$219,2,FALSE),0)","v":1485},1485,1204.9300000000003,{"$f":"$BH139+$BI138-IFERROR(VLOOKUP($A139,[2]Sheet2!$A$4:$B$82,2,FALSE),0)","v":999.81999999999971},{"$f":"$BJ138+$BK138-IFERROR(VLOOKUP($A139,[2]Amazon!$A$2:$F$17,5,FALSE),0)","v":0},{"$f":"$BL139+$BM138-IFERROR(VLOOKUP($A139,'[2]Myaccountaccess Pivot'!$A$4:$B$31,2,FALSE),0)","v":1060.18},{"$f":"IFERROR(VLOOKUP($A139,'[2]export-1'!$A$2:$F$441,6,FALSE),AJ138)","v":2842.0000000000032},{"$f":"IFERROR(VLOOKUP($A139,'[7]download-1'!$A$2:$F$513,6,FALSE),AK138)","v":0},{"$f":"IFERROR(VLOOKUP($A139,'[3]TexttoColumn Amazon Balance'!$A$14:$B$30,2,FALSE),IF(AL140>0,AL140-100,0))","v":1495.77},5882.3800000000028,32318.420000000006,314,200,0,0,null,null,null,null,null,{"$f":"IFERROR(VLOOKUP($A139,'[2]export-1'!$A$446:$G$451,7,FALSE),0)","v":0},{"$f":"IFERROR(VLOOKUP($A139,[3]Sheet4!$A$4:$B$56,2,FALSE),0)","v":48},{"$f":"IFERROR(VLOOKUP($A139,'[3]headphones purchased'!$A$2:$G$27,6,FALSE),0)","v":0},{"$f":"ROUND(IFERROR(VLOOKUP($A139,'[4]download-1'!$A$471:$F$474,5,FALSE)/-9.5,0),0)","v":0},{"$f":"ROUND(IFERROR(VLOOKUP($A139,'[4]download-1'!$A$467:$F$469,5,FALSE)/-49,0),0)","v":0},{"$f":"IFERROR(VLOOKUP($A139,[5]Sheet8!$A$4:$B$89,2,FALSE),0)","v":0},null,null,1,{"$f":"IFERROR(VLOOKUP($A139,[3]Paypal!$A$2:$AA$1843,25,FALSE),0)","v":1604.97},{"$f":"IFERROR(VLOOKUP($A139,'[3]Paypal Money Sent Pivot'!$A$4:$B$97,2,FALSE),0)","v":0},{"$f":"$BH139+$BI138-IFERROR(VLOOKUP($A139,[2]Sheet2!$A$4:$B$82,2,FALSE),0)","v":999.81999999999971},{"$f":"IFERROR(VLOOKUP($A139,'[3]TexttoColumn Amazon Balance'!$A$14:$B$30,2,FALSE),0)","v":0},{"$f":"$BJ138+$BK138-IFERROR(VLOOKUP($A139,[2]Amazon!$A$2:$F$17,5,FALSE),0)","v":0},{"$f":"IFERROR(VLOOKUP($A139,'[4]Payment Pivot'!$A$4:$B$39,2,FALSE),0)","v":1060.18},{"$f":"$BL139+$BM138-IFERROR(VLOOKUP($A139,'[2]Myaccountaccess Pivot'!$A$4:$B$31,2,FALSE),0)","v":1060.18},null,{"$f":"IFERROR(VLOOKUP($A139,'[6]export-2'!$A$2:$F$15,6,FALSE),BO138)","v":9150.0400000000009},447.909432254715,{"$f":"OFFSET(A139,0,'Cool Graph'!$H$1)","v":0},{"$f":"OFFSET(A139,0,'Cool Graph'!$I$1)","v":447.909432254715}]
["2011-11-16",0,12.62,124.46000000000001,78.22,7.57,222.87,0,1,0,0,1,2,0,61.32,1,1,16.899999999999999,0,1,0,0,0,8,8,0,0,9,160,{"$f":"IFERROR(VLOOKUP($A140,[1]Sheet1!$A$4:$B$219,2,FALSE),0)","v":1320},1480,-250.06999999999971,{"$f":"$BH140+$BI139-IFERROR(VLOOKUP($A140,[2]Sheet2!$A$4:$B$82,2,FALSE),0)","v":999.81999999999971},{"$f":"$BJ139+$BK139-IFERROR(VLOOKUP($A140,[2]Amazon!$A$2:$F$17,5,FALSE),0)","v":0},{"$f":"$BL140+$BM139-IFERROR(VLOOKUP($A140,'[2]Myaccountaccess Pivot'!$A$4:$B$31,2,FALSE),0)","v":0},{"$f":"IFERROR(VLOOKUP($A140,'[2]export-1'!$A$2:$F$441,6,FALSE),AJ139)","v":2399.3200000000033},{"$f":"IFERROR(VLOOKUP($A140,'[7]download-1'!$A$2:$F$513,6,FALSE),AK139)","v":-544.91999999999996},{"$f":"IFERROR(VLOOKUP($A140,'[3]TexttoColumn Amazon Balance'!$A$14:$B$30,2,FALSE),IF(AL141>0,AL141-100,0))","v":1595.77},6247.3100000000031,32068.350000000006,303,192,0,0,null,null,null,null,null,{"$f":"IFERROR(VLOOKUP($A140,'[2]export-1'!$A$446:$G$451,7,FALSE),0)","v":0},{"$f":"IFERROR(VLOOKUP($A140,[3]Sheet4!$A$4:$B$56,2,FALSE),0)","v":0},{"$f":"IFERROR(VLOOKUP($A140,'[3]headphones purchased'!$A$2:$G$27,6,FALSE),0)","v":0},{"$f":"ROUND(IFERROR(VLOOKUP($A140,'[4]download-1'!$A$471:$F$474,5,FALSE)/-9.5,0),0)","v":0},{"$f":"ROUND(IFERROR(VLOOKUP($A140,'[4]download-1'!$A$467:$F$469,5,FALSE)/-49,0),0)","v":0},{"$f":"IFERROR(VLOOKUP($A140,[5]Sheet8!$A$4:$B$89,2,FALSE),0)","v":2},null,null,0,{"$f":"IFERROR(VLOOKUP($A140,[3]Paypal!$A$2:$AA$1843,25,FALSE),0)","v":1797.32},{"$f":"IFERROR(VLOOKUP($A140,'[3]Paypal Money Sent Pivot'!$A$4:$B$97,2,FALSE),0)","v":1000},{"$f":"$BH140+$BI139-IFERROR(VLOOKUP($A140,[2]Sheet2!$A$4:$B$82,2,FALSE),0)","v":999.81999999999971},{"$f":"IFERROR(VLOOKUP($A140,'[3]TexttoColumn Amazon Balance'!$A$14:$B$30,2,FALSE),0)","v":0},{"$f":"$BJ139+$BK139-IFERROR(VLOOKUP($A140,[2]Amazon!$A$2:$F$17,5,FALSE),0)","v":0},{"$f":"IFERROR(VLOOKUP($A140,'[4]Payment Pivot'!$A$4:$B$39,2,FALSE),0)","v":0},{"$f":"$BL140+$BM139-IFERROR(VLOOKUP($A140,'[2]Myaccountaccess Pivot'!$A$4:$B$31,2,FALSE),0)","v":0},null,{"$f":"IFERROR(VLOOKUP($A140,'[6]export-2'!$A$2:$F$15,6,FALSE),BO139)","v":9150.0400000000009},403.84216143904257,{"$f":"OFFSET(A140,0,'Cool Graph'!$H$1)","v":0},{"$f":"OFFSET(A140,0,'Cool Graph'!$I$1)","v":403.84216143904257}]
["2011-11-17",0,3.3,108.3,69.87,4.18,185.65,0,0,0,3,1,0,0,50.69,1,0,19.18,0,0,0,0,0,11,11,0,0,11,0,{"$f":"IFERROR(VLOOKUP($A141,[1]Sheet1!$A$4:$B$219,2,FALSE),0)","v":1815},1815,1038.2999999999956,{"$f":"$BH141+$BI140-IFERROR(VLOOKUP($A141,[2]Sheet2!$A$4:$B$82,2,FALSE),0)","v":1999.8199999999997},{"$f":"$BJ140+$BK140-IFERROR(VLOOKUP($A141,[2]Amazon!$A$2:$F$17,5,FALSE),0)","v":0},{"$f":"$BL141+$BM140-IFERROR(VLOOKUP($A141,'[2]Myaccountaccess Pivot'!$A$4:$B$31,2,FALSE),0)","v":0},{"$f":"IFERROR(VLOOKUP($A141,'[2]export-1'!$A$2:$F$441,6,FALSE),AJ140)","v":2236.2200000000034},{"$f":"IFERROR(VLOOKUP($A141,'[7]download-1'!$A$2:$F$513,6,FALSE),AK140)","v":-544.91999999999996},{"$f":"IFERROR(VLOOKUP($A141,'[3]TexttoColumn Amazon Balance'!$A$14:$B$30,2,FALSE),IF(AL142>0,AL142-100,0))","v":1695.77},7880.1100000000024,33106.65,293,181,0,0,null,null,null,null,null,{"$f":"IFERROR(VLOOKUP($A141,'[2]export-1'!$A$446:$G$451,7,FALSE),0)","v":0},{"$f":"IFERROR(VLOOKUP($A141,[3]Sheet4!$A$4:$B$56,2,FALSE),0)","v":0},{"$f":"IFERROR(VLOOKUP($A141,'[3]headphones purchased'!$A$2:$G$27,6,FALSE),0)","v":0},{"$f":"ROUND(IFERROR(VLOOKUP($A141,'[4]download-1'!$A$471:$F$474,5,FALSE)/-9.5,0),0)","v":0},{"$f":"ROUND(IFERROR(VLOOKUP($A141,'[4]download-1'!$A$467:$F$469,5,FALSE)/-49,0),0)","v":0},{"$f":"IFERROR(VLOOKUP($A141,[5]Sheet8!$A$4:$B$89,2,FALSE),0)","v":0},null,null,1,{"$f":"IFERROR(VLOOKUP($A141,[3]Paypal!$A$2:$AA$1843,25,FALSE),0)","v":2493.2199999999998},{"$f":"IFERROR(VLOOKUP($A141,'[3]Paypal Money Sent Pivot'!$A$4:$B$97,2,FALSE),0)","v":1000},{"$f":"$BH141+$BI140-IFERROR(VLOOKUP($A141,[2]Sheet2!$A$4:$B$82,2,FALSE),0)","v":1999.8199999999997},{"$f":"IFERROR(VLOOKUP($A141,'[3]TexttoColumn Amazon Balance'!$A$14:$B$30,2,FALSE),0)","v":0},{"$f":"$BJ140+$BK140-IFERROR(VLOOKUP($A141,[2]Amazon!$A$2:$F$17,5,FALSE),0)","v":0},{"$f":"IFERROR(VLOOKUP($A141,'[4]Payment Pivot'!$A$4:$B$39,2,FALSE),0)","v":0},{"$f":"$BL141+$BM140-IFERROR(VLOOKUP($A141,'[2]Myaccountaccess Pivot'!$A$4:$B$31,2,FALSE),0)","v":0},null,{"$f":"IFERROR(VLOOKUP($A141,'[6]export-2'!$A$2:$F$15,6,FALSE),BO140)","v":9150.0400000000009},582.91930608909615,{"$f":"OFFSET(A141,0,'Cool Graph'!$H$1)","v":0},{"$f":"OFFSET(A141,0,'Cool Graph'!$I$1)","v":582.91930608909615}]
["2011-11-18",0,0.55000000000000004,95.83,38.839999999999996,12.88,148.1,0,1,0,2,0,0,0,30.189999999999998,0,0,8.65,0,1,0,0,0,6,6,0,0,7,160,{"$f":"IFERROR(VLOOKUP($A142,[1]Sheet1!$A$4:$B$219,2,FALSE),0)","v":990},1150,120.06999999999971,{"$f":"$BH142+$BI141-IFERROR(VLOOKUP($A142,[2]Sheet2!$A$4:$B$82,2,FALSE),0)","v":999.81999999999971},{"$f":"$BJ141+$BK141-IFERROR(VLOOKUP($A142,[2]Amazon!$A$2:$F$17,5,FALSE),0)","v":0},{"$f":"$BL142+$BM141-IFERROR(VLOOKUP($A142,'[2]Myaccountaccess Pivot'!$A$4:$B$31,2,FALSE),0)","v":0},{"$f":"IFERROR(VLOOKUP($A142,'[2]export-1'!$A$2:$F$441,6,FALSE),AJ141)","v":3236.2200000000034},{"$f":"IFERROR(VLOOKUP($A142,'[7]download-1'!$A$2:$F$513,6,FALSE),AK141)","v":-1096.54},{"$f":"IFERROR(VLOOKUP($A142,'[3]TexttoColumn Amazon Balance'!$A$14:$B$30,2,FALSE),IF(AL143>0,AL143-100,0))","v":1795.77},6097.180000000003,33226.720000000001,333,175,0,0,null,null,null,null,null,{"$f":"IFERROR(VLOOKUP($A142,'[2]export-1'!$A$446:$G$451,7,FALSE),0)","v":0},{"$f":"IFERROR(VLOOKUP($A142,[3]Sheet4!$A$4:$B$56,2,FALSE),0)","v":48},{"$f":"IFERROR(VLOOKUP($A142,'[3]headphones purchased'!$A$2:$G$27,6,FALSE),0)","v":0},{"$f":"ROUND(IFERROR(VLOOKUP($A142,'[4]download-1'!$A$471:$F$474,5,FALSE)/-9.5,0),0)","v":0},{"$f":"ROUND(IFERROR(VLOOKUP($A142,'[4]download-1'!$A$467:$F$469,5,FALSE)/-49,0),0)","v":0},{"$f":"IFERROR(VLOOKUP($A142,[5]Sheet8!$A$4:$B$89,2,FALSE),0)","v":1},null,null,0,{"$f":"IFERROR(VLOOKUP($A142,[3]Paypal!$A$2:$AA$1843,25,FALSE),0)","v":1161.9100000000001},{"$f":"IFERROR(VLOOKUP($A142,'[3]Paypal Money Sent Pivot'!$A$4:$B$97,2,FALSE),0)","v":0},{"$f":"$BH142+$BI141-IFERROR(VLOOKUP($A142,[2]Sheet2!$A$4:$B$82,2,FALSE),0)","v":999.81999999999971},{"$f":"IFERROR(VLOOKUP($A142,'[3]TexttoColumn Amazon Balance'!$A$14:$B$30,2,FALSE),0)","v":0},{"$f":"$BJ141+$BK141-IFERROR(VLOOKUP($A142,[2]Amazon!$A$2:$F$17,5,FALSE),0)","v":0},{"$f":"IFERROR(VLOOKUP($A142,'[4]Payment Pivot'!$A$4:$B$39,2,FALSE),0)","v":0},{"$f":"$BL142+$BM141-IFERROR(VLOOKUP($A142,'[2]Myaccountaccess Pivot'!$A$4:$B$31,2,FALSE),0)","v":0},null,{"$f":"IFERROR(VLOOKUP($A142,'[6]export-2'!$A$2:$F$15,6,FALSE),BO141)","v":9150.0400000000009},338.87228760466144,{"$f":"OFFSET(A142,0,'Cool Graph'!$H$1)","v":0},{"$f":"OFFSET(A142,0,'Cool Graph'!$I$1)","v":338.87228760466144}]
["2011-11-19",0,1.54,84.08,58.44,13.55,157.61000000000001,0,0,0,0,1,1,0,42.11,0,0,16.329999999999998,1,1,0,0,0,5,5,0,0,6,160,{"$f":"IFERROR(VLOOKUP($A143,[1]Sheet1!$A$4:$B$219,2,FALSE),0)","v":825},985,553.05000000000291,{"$f":"$BH143+$BI142-IFERROR(VLOOKUP($A143,[2]Sheet2!$A$4:$B$82,2,FALSE),0)","v":999.81999999999971},{"$f":"$BJ142+$BK142-IFERROR(VLOOKUP($A143,[2]Amazon!$A$2:$F$17,5,FALSE),0)","v":0},{"$f":"$BL143+$BM142-IFERROR(VLOOKUP($A143,'[2]Myaccountaccess Pivot'!$A$4:$B$31,2,FALSE),0)","v":0},{"$f":"IFERROR(VLOOKUP($A143,'[2]export-1'!$A$2:$F$441,6,FALSE),AJ142)","v":3236.2200000000034},{"$f":"IFERROR(VLOOKUP($A143,'[7]download-1'!$A$2:$F$513,6,FALSE),AK142)","v":-1096.54},{"$f":"IFERROR(VLOOKUP($A143,'[3]TexttoColumn Amazon Balance'!$A$14:$B$30,2,FALSE),IF(AL144>0,AL144-100,0))","v":1895.77},6991.7300000000032,33779.770000000004,327,170,0,0,null,null,null,null,null,{"$f":"IFERROR(VLOOKUP($A143,'[2]export-1'!$A$446:$G$451,7,FALSE),0)","v":0},{"$f":"IFERROR(VLOOKUP($A143,[3]Sheet4!$A$4:$B$56,2,FALSE),0)","v":0},{"$f":"IFERROR(VLOOKUP($A143,'[3]headphones purchased'!$A$2:$G$27,6,FALSE),0)","v":0},{"$f":"ROUND(IFERROR(VLOOKUP($A143,'[4]download-1'!$A$471:$F$474,5,FALSE)/-9.5,0),0)","v":0},{"$f":"ROUND(IFERROR(VLOOKUP($A143,'[4]download-1'!$A$467:$F$469,5,FALSE)/-49,0),0)","v":0},{"$f":"IFERROR(VLOOKUP($A143,[5]Sheet8!$A$4:$B$89,2,FALSE),0)","v":1},null,null,1,{"$f":"IFERROR(VLOOKUP($A143,[3]Paypal!$A$2:$AA$1843,25,FALSE),0)","v":1956.46},{"$f":"IFERROR(VLOOKUP($A143,'[3]Paypal Money Sent Pivot'!$A$4:$B$97,2,FALSE),0)","v":0},{"$f":"$BH143+$BI142-IFERROR(VLOOKUP($A143,[2]Sheet2!$A$4:$B$82,2,FALSE),0)","v":999.81999999999971},{"$f":"IFERROR(VLOOKUP($A143,'[3]TexttoColumn Amazon Balance'!$A$14:$B$30,2,FALSE),0)","v":1895.77},{"$f":"$BJ142+$BK142-IFERROR(VLOOKUP($A143,[2]Amazon!$A$2:$F$17,5,FALSE),0)","v":0},{"$f":"IFERROR(VLOOKUP($A143,'[4]Payment Pivot'!$A$4:$B$39,2,FALSE),0)","v":0},{"$f":"$BL143+$BM142-IFERROR(VLOOKUP($A143,'[2]Myaccountaccess Pivot'!$A$4:$B$31,2,FALSE),0)","v":0},null,{"$f":"IFERROR(VLOOKUP($A143,'[6]export-2'!$A$2:$F$15,6,FALSE),BO142)","v":9150.0400000000009},259.49235068747089,{"$f":"OFFSET(A143,0,'Cool Graph'!$H$1)","v":0},{"$f":"OFFSET(A143,0,'Cool Graph'!$I$1)","v":259.49235068747089}]
["2011-11-20",0,2.76,127.65,71.52,9.81,211.74,0,0,0,2,2,3,0,49.16,0,0,22.36,2,0,0,0,0,11,11,0,0,11,0,{"$f":"IFERROR(VLOOKUP($A144,[1]Sheet1!$A$4:$B$219,2,FALSE),0)","v":1815},1815,1896.760000000002,{"$f":"$BH144+$BI143-IFERROR(VLOOKUP($A144,[2]Sheet2!$A$4:$B$82,2,FALSE),0)","v":999.81999999999971},{"$f":"$BJ143+$BK143-IFERROR(VLOOKUP($A144,[2]Amazon!$A$2:$F$17,5,FALSE),0)","v":1895.77},{"$f":"$BL144+$BM143-IFERROR(VLOOKUP($A144,'[2]Myaccountaccess Pivot'!$A$4:$B$31,2,FALSE),0)","v":0},{"$f":"IFERROR(VLOOKUP($A144,'[2]export-1'!$A$2:$F$441,6,FALSE),AJ143)","v":3236.2200000000034},{"$f":"IFERROR(VLOOKUP($A144,'[7]download-1'!$A$2:$F$513,6,FALSE),AK143)","v":-1096.54},{"$f":"IFERROR(VLOOKUP($A144,'[3]TexttoColumn Amazon Balance'!$A$14:$B$30,2,FALSE),IF(AL145>0,AL145-100,0))","v":781.25},9531.9900000000034,35676.530000000006,316,159,0,0,null,null,null,null,null,{"$f":"IFERROR(VLOOKUP($A144,'[2]export-1'!$A$446:$G$451,7,FALSE),0)","v":0},{"$f":"IFERROR(VLOOKUP($A144,[3]Sheet4!$A$4:$B$56,2,FALSE),0)","v":0},{"$f":"IFERROR(VLOOKUP($A144,'[3]headphones purchased'!$A$2:$G$27,6,FALSE),0)","v":0},{"$f":"ROUND(IFERROR(VLOOKUP($A144,'[4]download-1'!$A$471:$F$474,5,FALSE)/-9.5,0),0)","v":0},{"$f":"ROUND(IFERROR(VLOOKUP($A144,'[4]download-1'!$A$467:$F$469,5,FALSE)/-49,0),0)","v":0},{"$f":"IFERROR(VLOOKUP($A144,[5]Sheet8!$A$4:$B$89,2,FALSE),0)","v":0},null,null,0,{"$f":"IFERROR(VLOOKUP($A144,[3]Paypal!$A$2:$AA$1843,25,FALSE),0)","v":3715.47},{"$f":"IFERROR(VLOOKUP($A144,'[3]Paypal Money Sent Pivot'!$A$4:$B$97,2,FALSE),0)","v":0},{"$f":"$BH144+$BI143-IFERROR(VLOOKUP($A144,[2]Sheet2!$A$4:$B$82,2,FALSE),0)","v":999.81999999999971},{"$f":"IFERROR(VLOOKUP($A144,'[3]TexttoColumn Amazon Balance'!$A$14:$B$30,2,FALSE),0)","v":0},{"$f":"$BJ143+$BK143-IFERROR(VLOOKUP($A144,[2]Amazon!$A$2:$F$17,5,FALSE),0)","v":1895.77},{"$f":"IFERROR(VLOOKUP($A144,'[4]Payment Pivot'!$A$4:$B$39,2,FALSE),0)","v":0},{"$f":"$BL144+$BM143-IFERROR(VLOOKUP($A144,'[2]Myaccountaccess Pivot'!$A$4:$B$31,2,FALSE),0)","v":0},null,{"$f":"IFERROR(VLOOKUP($A144,'[6]export-2'!$A$2:$F$15,6,FALSE),BO143)","v":9150.0400000000009},556.82930608909612,{"$f":"OFFSET(A144,0,'Cool Graph'!$H$1)","v":0},{"$f":"OFFSET(A144,0,'Cool Graph'!$I$1)","v":556.82930608909612}]
["2011-11-21",0,2.2000000000000002,148.03,171.56,10.97,332.76,0,0,0,8,0,0,0,152.86000000000001,0,0,18.7,0,1,0,0,0,13,13,0,0,14,160,{"$f":"IFERROR(VLOOKUP($A145,[1]Sheet1!$A$4:$B$219,2,FALSE),0)","v":2145},2305,1489.8999999999942,{"$f":"$BH145+$BI144-IFERROR(VLOOKUP($A145,[2]Sheet2!$A$4:$B$82,2,FALSE),0)","v":999.81999999999971},{"$f":"$BJ144+$BK144-IFERROR(VLOOKUP($A145,[2]Amazon!$A$2:$F$17,5,FALSE),0)","v":1895.77},{"$f":"$BL145+$BM144-IFERROR(VLOOKUP($A145,'[2]Myaccountaccess Pivot'!$A$4:$B$31,2,FALSE),0)","v":0},{"$f":"IFERROR(VLOOKUP($A145,'[2]export-1'!$A$2:$F$441,6,FALSE),AJ144)","v":4164.6100000000024},{"$f":"IFERROR(VLOOKUP($A145,'[7]download-1'!$A$2:$F$513,6,FALSE),AK144)","v":-1141.46},{"$f":"IFERROR(VLOOKUP($A145,'[3]TexttoColumn Amazon Balance'!$A$14:$B$30,2,FALSE),IF(AL146>0,AL146-100,0))","v":881.25},9528.3900000000012,37166.43,349,146,0,0,null,null,null,null,null,{"$f":"IFERROR(VLOOKUP($A145,'[2]export-1'!$A$446:$G$451,7,FALSE),0)","v":0},{"$f":"IFERROR(VLOOKUP($A145,[3]Sheet4!$A$4:$B$56,2,FALSE),0)","v":48},{"$f":"IFERROR(VLOOKUP($A145,'[3]headphones purchased'!$A$2:$G$27,6,FALSE),0)","v":0},{"$f":"ROUND(IFERROR(VLOOKUP($A145,'[4]download-1'!$A$471:$F$474,5,FALSE)/-9.5,0),0)","v":0},{"$f":"ROUND(IFERROR(VLOOKUP($A145,'[4]download-1'!$A$467:$F$469,5,FALSE)/-49,0),0)","v":0},{"$f":"IFERROR(VLOOKUP($A145,[5]Sheet8!$A$4:$B$89,2,FALSE),0)","v":2},null,null,1,{"$f":"IFERROR(VLOOKUP($A145,[3]Paypal!$A$2:$AA$1843,25,FALSE),0)","v":2728.4},{"$f":"IFERROR(VLOOKUP($A145,'[3]Paypal Money Sent Pivot'!$A$4:$B$97,2,FALSE),0)","v":1000},{"$f":"$BH145+$BI144-IFERROR(VLOOKUP($A145,[2]Sheet2!$A$4:$B$82,2,FALSE),0)","v":999.81999999999971},{"$f":"IFERROR(VLOOKUP($A145,'[3]TexttoColumn Amazon Balance'!$A$14:$B$30,2,FALSE),0)","v":0},{"$f":"$BJ144+$BK144-IFERROR(VLOOKUP($A145,[2]Amazon!$A$2:$F$17,5,FALSE),0)","v":1895.77},{"$f":"IFERROR(VLOOKUP($A145,'[4]Payment Pivot'!$A$4:$B$39,2,FALSE),0)","v":0},{"$f":"$BL145+$BM144-IFERROR(VLOOKUP($A145,'[2]Myaccountaccess Pivot'!$A$4:$B$31,2,FALSE),0)","v":0},null,{"$f":"IFERROR(VLOOKUP($A145,'[6]export-2'!$A$2:$F$15,6,FALSE),BO144)","v":9150.0400000000009},643.30184602499537,{"$f":"OFFSET(A145,0,'Cool Graph'!$H$1)","v":0},{"$f":"OFFSET(A145,0,'Cool Graph'!$I$1)","v":643.30184602499537}]
["2011-11-22",100,4.4000000000000004,145.68,72.489999999999995,23.74,346.31,0,0,0,4,0,3,0,52.95,0,2,19.54,0,0,0,0,0,10,10,0,0,10,0,{"$f":"IFERROR(VLOOKUP($A146,[1]Sheet1!$A$4:$B$219,2,FALSE),0)","v":1650},1650,695.10000000000582,{"$f":"$BH146+$BI145-IFERROR(VLOOKUP($A146,[2]Sheet2!$A$4:$B$82,2,FALSE),0)","v":3999.8199999999997},{"$f":"$BJ145+$BK145-IFERROR(VLOOKUP($A146,[2]Amazon!$A$2:$F$17,5,FALSE),0)","v":0},{"$f":"$BL146+$BM145-IFERROR(VLOOKUP($A146,'[2]Myaccountaccess Pivot'!$A$4:$B$31,2,FALSE),0)","v":0},{"$f":"IFERROR(VLOOKUP($A146,'[2]export-1'!$A$2:$F$441,6,FALSE),AJ145)","v":5811.6100000000033},{"$f":"IFERROR(VLOOKUP($A146,'[7]download-1'!$A$2:$F$513,6,FALSE),AK145)","v":-1692.69},{"$f":"IFERROR(VLOOKUP($A146,'[3]TexttoColumn Amazon Balance'!$A$14:$B$30,2,FALSE),IF(AL147>0,AL147-100,0))","v":981.25},10382.490000000003,37861.530000000006,338,186,0,0,null,null,null,null,null,{"$f":"IFERROR(VLOOKUP($A146,'[2]export-1'!$A$446:$G$451,7,FALSE),0)","v":0},{"$f":"IFERROR(VLOOKUP($A146,[3]Sheet4!$A$4:$B$56,2,FALSE),0)","v":0},{"$f":"IFERROR(VLOOKUP($A146,'[3]headphones purchased'!$A$2:$G$27,6,FALSE),0)","v":50},{"$f":"ROUND(IFERROR(VLOOKUP($A146,'[4]download-1'!$A$471:$F$474,5,FALSE)/-9.5,0),0)","v":0},{"$f":"ROUND(IFERROR(VLOOKUP($A146,'[4]download-1'!$A$467:$F$469,5,FALSE)/-49,0),0)","v":0},{"$f":"IFERROR(VLOOKUP($A146,[5]Sheet8!$A$4:$B$89,2,FALSE),0)","v":1},null,null,0,{"$f":"IFERROR(VLOOKUP($A146,[3]Paypal!$A$2:$AA$1843,25,FALSE),0)","v":1282.5},{"$f":"IFERROR(VLOOKUP($A146,'[3]Paypal Money Sent Pivot'!$A$4:$B$97,2,FALSE),0)","v":3000},{"$f":"$BH146+$BI145-IFERROR(VLOOKUP($A146,[2]Sheet2!$A$4:$B$82,2,FALSE),0)","v":3999.8199999999997},{"$f":"IFERROR(VLOOKUP($A146,'[3]TexttoColumn Amazon Balance'!$A$14:$B$30,2,FALSE),0)","v":0},{"$f":"$BJ145+$BK145-IFERROR(VLOOKUP($A146,[2]Amazon!$A$2:$F$17,5,FALSE),0)","v":0},{"$f":"IFERROR(VLOOKUP($A146,'[4]Payment Pivot'!$A$4:$B$39,2,FALSE),0)","v":0},{"$f":"$BL146+$BM145-IFERROR(VLOOKUP($A146,'[2]Myaccountaccess Pivot'!$A$4:$B$31,2,FALSE),0)","v":0},null,{"$f":"IFERROR(VLOOKUP($A146,'[6]export-2'!$A$2:$F$15,6,FALSE),BO145)","v":9150.0400000000009},352.38936917190557,{"$f":"OFFSET(A146,0,'Cool Graph'!$H$1)","v":100},{"$f":"OFFSET(A146,0,'Cool Graph'!$I$1)","v":352.38936917190557}]
["2011-11-23",99.96,2.35,151.52000000000001,47.91,26.99,328.73,0,0,0,3,2,1,0,36.519999999999996,1,0,11.39,1,1,0,0,0,12,12,0,0,13,160,{"$f":"IFERROR(VLOOKUP($A147,[1]Sheet1!$A$4:$B$219,2,FALSE),0)","v":1980},2140,438.48999999999796,{"$f":"$BH147+$BI146-IFERROR(VLOOKUP($A147,[2]Sheet2!$A$4:$B$82,2,FALSE),0)","v":2999.8199999999997},{"$f":"$BJ146+$BK146-IFERROR(VLOOKUP($A147,[2]Amazon!$A$2:$F$17,5,FALSE),0)","v":0},{"$f":"$BL147+$BM146-IFERROR(VLOOKUP($A147,'[2]Myaccountaccess Pivot'!$A$4:$B$31,2,FALSE),0)","v":0},{"$f":"IFERROR(VLOOKUP($A147,'[2]export-1'!$A$2:$F$441,6,FALSE),AJ146)","v":6698.3200000000033},{"$f":"IFERROR(VLOOKUP($A147,'[7]download-1'!$A$2:$F$513,6,FALSE),AK146)","v":-2192.69},{"$f":"IFERROR(VLOOKUP($A147,'[3]TexttoColumn Amazon Balance'!$A$14:$B$30,2,FALSE),IF(AL148>0,AL148-100,0))","v":1081.25},9170.9800000000032,38300.020000000004,374,174,0,0,null,null,null,null,null,{"$f":"IFERROR(VLOOKUP($A147,'[2]export-1'!$A$446:$G$451,7,FALSE),0)","v":0},{"$f":"IFERROR(VLOOKUP($A147,[3]Sheet4!$A$4:$B$56,2,FALSE),0)","v":48},{"$f":"IFERROR(VLOOKUP($A147,'[3]headphones purchased'!$A$2:$G$27,6,FALSE),0)","v":0},{"$f":"ROUND(IFERROR(VLOOKUP($A147,'[4]download-1'!$A$471:$F$474,5,FALSE)/-9.5,0),0)","v":0},{"$f":"ROUND(IFERROR(VLOOKUP($A147,'[4]download-1'!$A$467:$F$469,5,FALSE)/-49,0),0)","v":0},{"$f":"IFERROR(VLOOKUP($A147,[5]Sheet8!$A$4:$B$89,2,FALSE),0)","v":0},null,null,1,{"$f":"IFERROR(VLOOKUP($A147,[3]Paypal!$A$2:$AA$1843,25,FALSE),0)","v":584.28},{"$f":"IFERROR(VLOOKUP($A147,'[3]Paypal Money Sent Pivot'!$A$4:$B$97,2,FALSE),0)","v":0},{"$f":"$BH147+$BI146-IFERROR(VLOOKUP($A147,[2]Sheet2!$A$4:$B$82,2,FALSE),0)","v":2999.8199999999997},{"$f":"IFERROR(VLOOKUP($A147,'[3]TexttoColumn Amazon Balance'!$A$14:$B$30,2,FALSE),0)","v":0},{"$f":"$BJ146+$BK146-IFERROR(VLOOKUP($A147,[2]Amazon!$A$2:$F$17,5,FALSE),0)","v":0},{"$f":"IFERROR(VLOOKUP($A147,'[4]Payment Pivot'!$A$4:$B$39,2,FALSE),0)","v":0},{"$f":"$BL147+$BM146-IFERROR(VLOOKUP($A147,'[2]Myaccountaccess Pivot'!$A$4:$B$31,2,FALSE),0)","v":0},null,{"$f":"IFERROR(VLOOKUP($A147,'[6]export-2'!$A$2:$F$15,6,FALSE),BO146)","v":9150.0400000000009},577.46190910780479,{"$f":"OFFSET(A147,0,'Cool Graph'!$H$1)","v":99.96},{"$f":"OFFSET(A147,0,'Cool Graph'!$I$1)","v":577.46190910780479}]
["2011-11-24",100,5.5,144.67999999999998,41.110000000000007,13.57,304.85999999999996,0,0,0,6,0,0,0,34.25,0,0,6.86,0,0,0,0,0,11,11,0,0,11,0,{"$f":"IFERROR(VLOOKUP($A148,[1]Sheet1!$A$4:$B$219,2,FALSE),0)","v":1815},1815,1167.1199999999953,{"$f":"$BH148+$BI147-IFERROR(VLOOKUP($A148,[2]Sheet2!$A$4:$B$82,2,FALSE),0)","v":2999.8199999999997},{"$f":"$BJ147+$BK147-IFERROR(VLOOKUP($A148,[2]Amazon!$A$2:$F$17,5,FALSE),0)","v":0},{"$f":"$BL148+$BM147-IFERROR(VLOOKUP($A148,'[2]Myaccountaccess Pivot'!$A$4:$B$31,2,FALSE),0)","v":0},{"$f":"IFERROR(VLOOKUP($A148,'[2]export-1'!$A$2:$F$441,6,FALSE),AJ147)","v":6698.3200000000033},{"$f":"IFERROR(VLOOKUP($A148,'[7]download-1'!$A$2:$F$513,6,FALSE),AK147)","v":-2192.69},{"$f":"IFERROR(VLOOKUP($A148,'[3]TexttoColumn Amazon Balance'!$A$14:$B$30,2,FALSE),IF(AL149>0,AL149-100,0))","v":1181.25},11030.600000000002,39467.14,362,163,0,0,null,null,null,null,null,{"$f":"IFERROR(VLOOKUP($A148,'[2]export-1'!$A$446:$G$451,7,FALSE),0)","v":0},{"$f":"IFERROR(VLOOKUP($A148,[3]Sheet4!$A$4:$B$56,2,FALSE),0)","v":0},{"$f":"IFERROR(VLOOKUP($A148,'[3]headphones purchased'!$A$2:$G$27,6,FALSE),0)","v":0},{"$f":"ROUND(IFERROR(VLOOKUP($A148,'[4]download-1'!$A$471:$F$474,5,FALSE)/-9.5,0),0)","v":0},{"$f":"ROUND(IFERROR(VLOOKUP($A148,'[4]download-1'!$A$467:$F$469,5,FALSE)/-49,0),0)","v":0},{"$f":"IFERROR(VLOOKUP($A148,[5]Sheet8!$A$4:$B$89,2,FALSE),0)","v":1},null,null,0,{"$f":"IFERROR(VLOOKUP($A148,[3]Paypal!$A$2:$AA$1843,25,FALSE),0)","v":2343.9},{"$f":"IFERROR(VLOOKUP($A148,'[3]Paypal Money Sent Pivot'!$A$4:$B$97,2,FALSE),0)","v":0},{"$f":"$BH148+$BI147-IFERROR(VLOOKUP($A148,[2]Sheet2!$A$4:$B$82,2,FALSE),0)","v":2999.8199999999997},{"$f":"IFERROR(VLOOKUP($A148,'[3]TexttoColumn Amazon Balance'!$A$14:$B$30,2,FALSE),0)","v":0},{"$f":"$BJ147+$BK147-IFERROR(VLOOKUP($A148,[2]Amazon!$A$2:$F$17,5,FALSE),0)","v":0},{"$f":"IFERROR(VLOOKUP($A148,'[4]Payment Pivot'!$A$4:$B$39,2,FALSE),0)","v":0},{"$f":"$BL148+$BM147-IFERROR(VLOOKUP($A148,'[2]Myaccountaccess Pivot'!$A$4:$B$31,2,FALSE),0)","v":0},null,{"$f":"IFERROR(VLOOKUP($A148,'[6]export-2'!$A$2:$F$15,6,FALSE),BO147)","v":9150.0400000000009},463.70930608909617,{"$f":"OFFSET(A148,0,'Cool Graph'!$H$1)","v":100},{"$f":"OFFSET(A148,0,'Cool Graph'!$I$1)","v":463.70930608909617}]
["2011-11-25",100,6.19,289.42,42.84,24.89,463.34000000000003,0,0,0,7,0,1,0,30.08,0,1,12.76,0,1,0,0,0,25,25,0,0,26,160,{"$f":"IFERROR(VLOOKUP($A149,[1]Sheet1!$A$4:$B$219,2,FALSE),0)","v":4125},4285,2283.0600000000049,{"$f":"$BH149+$BI148-IFERROR(VLOOKUP($A149,[2]Sheet2!$A$4:$B$82,2,FALSE),0)","v":4999.82},{"$f":"$BJ148+$BK148-IFERROR(VLOOKUP($A149,[2]Amazon!$A$2:$F$17,5,FALSE),0)","v":0},{"$f":"$BL149+$BM148-IFERROR(VLOOKUP($A149,'[2]Myaccountaccess Pivot'!$A$4:$B$31,2,FALSE),0)","v":0},{"$f":"IFERROR(VLOOKUP($A149,'[2]export-1'!$A$2:$F$441,6,FALSE),AJ148)","v":9378.7500000000036},{"$f":"IFERROR(VLOOKUP($A149,'[7]download-1'!$A$2:$F$513,6,FALSE),AK148)","v":-2292.69},{"$f":"IFERROR(VLOOKUP($A149,'[3]TexttoColumn Amazon Balance'!$A$14:$B$30,2,FALSE),IF(AL150>0,AL150-100,0))","v":1281.25},14825.160000000003,41750.200000000004,336,138,0,0,null,null,null,null,null,{"$f":"IFERROR(VLOOKUP($A149,'[2]export-1'!$A$446:$G$451,7,FALSE),0)","v":0},{"$f":"IFERROR(VLOOKUP($A149,[3]Sheet4!$A$4:$B$56,2,FALSE),0)","v":0},{"$f":"IFERROR(VLOOKUP($A149,'[3]headphones purchased'!$A$2:$G$27,6,FALSE),0)","v":0},{"$f":"ROUND(IFERROR(VLOOKUP($A149,'[4]download-1'!$A$471:$F$474,5,FALSE)/-9.5,0),0)","v":0},{"$f":"ROUND(IFERROR(VLOOKUP($A149,'[4]download-1'!$A$467:$F$469,5,FALSE)/-49,0),0)","v":0},{"$f":"IFERROR(VLOOKUP($A149,[5]Sheet8!$A$4:$B$89,2,FALSE),0)","v":1},null,null,1,{"$f":"IFERROR(VLOOKUP($A149,[3]Paypal!$A$2:$AA$1843,25,FALSE),0)","v":1458.03},{"$f":"IFERROR(VLOOKUP($A149,'[3]Paypal Money Sent Pivot'!$A$4:$B$97,2,FALSE),0)","v":5000},{"$f":"$BH149+$BI148-IFERROR(VLOOKUP($A149,[2]Sheet2!$A$4:$B$82,2,FALSE),0)","v":4999.82},{"$f":"IFERROR(VLOOKUP($A149,'[3]TexttoColumn Amazon Balance'!$A$14:$B$30,2,FALSE),0)","v":0},{"$f":"$BJ148+$BK148-IFERROR(VLOOKUP($A149,[2]Amazon!$A$2:$F$17,5,FALSE),0)","v":0},{"$f":"IFERROR(VLOOKUP($A149,'[4]Payment Pivot'!$A$4:$B$39,2,FALSE),0)","v":0},{"$f":"$BL149+$BM148-IFERROR(VLOOKUP($A149,'[2]Myaccountaccess Pivot'!$A$4:$B$31,2,FALSE),0)","v":0},null,{"$f":"IFERROR(VLOOKUP($A149,'[6]export-2'!$A$2:$F$15,6,FALSE),BO148)","v":9150.0400000000009},1351.1610890312822,{"$f":"OFFSET(A149,0,'Cool Graph'!$H$1)","v":100},{"$f":"OFFSET(A149,0,'Cool Graph'!$I$1)","v":1351.1610890312822}]
["2011-11-26",100,4.92,190.70999999999998,49.18,30.17,374.98,0,0,0,4,1,0,0,35.86,0,0,13.32,1,1,1,0,0,14,14,0,0,15,320,{"$f":"IFERROR(VLOOKUP($A150,[1]Sheet1!$A$4:$B$219,2,FALSE),0)","v":2310},2630,1265.1199999999953,{"$f":"$BH150+$BI149-IFERROR(VLOOKUP($A150,[2]Sheet2!$A$4:$B$82,2,FALSE),0)","v":5999.82},{"$f":"$BJ149+$BK149-IFERROR(VLOOKUP($A150,[2]Amazon!$A$2:$F$17,5,FALSE),0)","v":0},{"$f":"$BL150+$BM149-IFERROR(VLOOKUP($A150,'[2]Myaccountaccess Pivot'!$A$4:$B$31,2,FALSE),0)","v":0},{"$f":"IFERROR(VLOOKUP($A150,'[2]export-1'!$A$2:$F$441,6,FALSE),AJ149)","v":9378.7500000000036},{"$f":"IFERROR(VLOOKUP($A150,'[7]download-1'!$A$2:$F$513,6,FALSE),AK149)","v":-2292.69},{"$f":"IFERROR(VLOOKUP($A150,'[3]TexttoColumn Amazon Balance'!$A$14:$B$30,2,FALSE),IF(AL151>0,AL151-100,0))","v":1381.25},14615.780000000002,43015.32,369,123,0,0,null,null,null,null,null,{"$f":"IFERROR(VLOOKUP($A150,'[2]export-1'!$A$446:$G$451,7,FALSE),0)","v":0},{"$f":"IFERROR(VLOOKUP($A150,[3]Sheet4!$A$4:$B$56,2,FALSE),0)","v":48},{"$f":"IFERROR(VLOOKUP($A150,'[3]headphones purchased'!$A$2:$G$27,6,FALSE),0)","v":0},{"$f":"ROUND(IFERROR(VLOOKUP($A150,'[4]download-1'!$A$471:$F$474,5,FALSE)/-9.5,0),0)","v":0},{"$f":"ROUND(IFERROR(VLOOKUP($A150,'[4]download-1'!$A$467:$F$469,5,FALSE)/-49,0),0)","v":0},{"$f":"IFERROR(VLOOKUP($A150,[5]Sheet8!$A$4:$B$89,2,FALSE),0)","v":0},null,null,0,{"$f":"IFERROR(VLOOKUP($A150,[3]Paypal!$A$2:$AA$1843,25,FALSE),0)","v":148.65},{"$f":"IFERROR(VLOOKUP($A150,'[3]Paypal Money Sent Pivot'!$A$4:$B$97,2,FALSE),0)","v":1000},{"$f":"$BH150+$BI149-IFERROR(VLOOKUP($A150,[2]Sheet2!$A$4:$B$82,2,FALSE),0)","v":5999.82},{"$f":"IFERROR(VLOOKUP($A150,'[3]TexttoColumn Amazon Balance'!$A$14:$B$30,2,FALSE),0)","v":0},{"$f":"$BJ149+$BK149-IFERROR(VLOOKUP($A150,[2]Amazon!$A$2:$F$17,5,FALSE),0)","v":0},{"$f":"IFERROR(VLOOKUP($A150,'[4]Payment Pivot'!$A$4:$B$39,2,FALSE),0)","v":0},{"$f":"$BL150+$BM149-IFERROR(VLOOKUP($A150,'[2]Myaccountaccess Pivot'!$A$4:$B$31,2,FALSE),0)","v":0},null,{"$f":"IFERROR(VLOOKUP($A150,'[6]export-2'!$A$2:$F$15,6,FALSE),BO149)","v":9150.0400000000009},738.70444904370402,{"$f":"OFFSET(A150,0,'Cool Graph'!$H$1)","v":100},{"$f":"OFFSET(A150,0,'Cool Graph'!$I$1)","v":738.70444904370402}]
["2011-11-27",100,7.8,240.76,60.46,17.05,426.07,0,0,0,9,0,7,0,37.54,0,2,22.92,0,2,0,0,0,12,12,0,0,14,320,{"$f":"IFERROR(VLOOKUP($A151,[1]Sheet1!$A$4:$B$219,2,FALSE),0)","v":1980},2300,1427.8300000000017,{"$f":"$BH151+$BI150-IFERROR(VLOOKUP($A151,[2]Sheet2!$A$4:$B$82,2,FALSE),0)","v":5999.82},{"$f":"$BJ150+$BK150-IFERROR(VLOOKUP($A151,[2]Amazon!$A$2:$F$17,5,FALSE),0)","v":0},{"$f":"$BL151+$BM150-IFERROR(VLOOKUP($A151,'[2]Myaccountaccess Pivot'!$A$4:$B$31,2,FALSE),0)","v":0},{"$f":"IFERROR(VLOOKUP($A151,'[2]export-1'!$A$2:$F$441,6,FALSE),AJ150)","v":9378.7500000000036},{"$f":"IFERROR(VLOOKUP($A151,'[7]download-1'!$A$2:$F$513,6,FALSE),AK150)","v":-2292.69},{"$f":"IFERROR(VLOOKUP($A151,'[3]TexttoColumn Amazon Balance'!$A$14:$B$30,2,FALSE),IF(AL152>0,AL152-100,0))","v":1481.25},16794.610000000004,44443.15,356,111,0,0,null,null,null,null,null,{"$f":"IFERROR(VLOOKUP($A151,'[2]export-1'!$A$446:$G$451,7,FALSE),0)","v":0},{"$f":"IFERROR(VLOOKUP($A151,[3]Sheet4!$A$4:$B$56,2,FALSE),0)","v":0},{"$f":"IFERROR(VLOOKUP($A151,'[3]headphones purchased'!$A$2:$G$27,6,FALSE),0)","v":0},{"$f":"ROUND(IFERROR(VLOOKUP($A151,'[4]download-1'!$A$471:$F$474,5,FALSE)/-9.5,0),0)","v":0},{"$f":"ROUND(IFERROR(VLOOKUP($A151,'[4]download-1'!$A$467:$F$469,5,FALSE)/-49,0),0)","v":0},{"$f":"IFERROR(VLOOKUP($A151,[5]Sheet8!$A$4:$B$89,2,FALSE),0)","v":0},null,null,1,{"$f":"IFERROR(VLOOKUP($A151,[3]Paypal!$A$2:$AA$1843,25,FALSE),0)","v":2227.48},{"$f":"IFERROR(VLOOKUP($A151,'[3]Paypal Money Sent Pivot'!$A$4:$B$97,2,FALSE),0)","v":0},{"$f":"$BH151+$BI150-IFERROR(VLOOKUP($A151,[2]Sheet2!$A$4:$B$82,2,FALSE),0)","v":5999.82},{"$f":"IFERROR(VLOOKUP($A151,'[3]TexttoColumn Amazon Balance'!$A$14:$B$30,2,FALSE),0)","v":0},{"$f":"$BJ150+$BK150-IFERROR(VLOOKUP($A151,[2]Amazon!$A$2:$F$17,5,FALSE),0)","v":0},{"$f":"IFERROR(VLOOKUP($A151,'[4]Payment Pivot'!$A$4:$B$39,2,FALSE),0)","v":0},{"$f":"$BL151+$BM150-IFERROR(VLOOKUP($A151,'[2]Myaccountaccess Pivot'!$A$4:$B$31,2,FALSE),0)","v":0},null,{"$f":"IFERROR(VLOOKUP($A151,'[6]export-2'!$A$2:$F$15,6,FALSE),BO150)","v":9150.0400000000009},547.87457520932298,{"$f":"OFFSET(A151,0,'Cool Graph'!$H$1)","v":100},{"$f":"OFFSET(A151,0,'Cool Graph'!$I$1)","v":547.87457520932298}]
["2011-11-28",20.16,4.93,344.94,59.53,14.91,444.46999999999997,0,0,0,14,0,3,0,49.14,0,0,10.39,0,2,0,0,0,30,30,0,0,32,320,{"$f":"IFERROR(VLOOKUP($A152,[1]Sheet1!$A$4:$B$219,2,FALSE),0)","v":4950},5270,755.41999999999825,{"$f":"$BH152+$BI151-IFERROR(VLOOKUP($A152,[2]Sheet2!$A$4:$B$82,2,FALSE),0)","v":7999.82},{"$f":"$BJ151+$BK151-IFERROR(VLOOKUP($A152,[2]Amazon!$A$2:$F$17,5,FALSE),0)","v":0},{"$f":"$BL152+$BM151-IFERROR(VLOOKUP($A152,'[2]Myaccountaccess Pivot'!$A$4:$B$31,2,FALSE),0)","v":2292.69},{"$f":"IFERROR(VLOOKUP($A152,'[2]export-1'!$A$2:$F$441,6,FALSE),AJ151)","v":13352.290000000005},{"$f":"IFERROR(VLOOKUP($A152,'[7]download-1'!$A$2:$F$513,6,FALSE),AK151)","v":-1402.3999999999999},{"$f":"IFERROR(VLOOKUP($A152,'[3]TexttoColumn Amazon Balance'!$A$14:$B$30,2,FALSE),IF(AL153>0,AL153-100,0))","v":1581.25},19501.030000000002,45198.57,322,81,0,0,null,null,null,null,null,{"$f":"IFERROR(VLOOKUP($A152,'[2]export-1'!$A$446:$G$451,7,FALSE),0)","v":0},{"$f":"IFERROR(VLOOKUP($A152,[3]Sheet4!$A$4:$B$56,2,FALSE),0)","v":0},{"$f":"IFERROR(VLOOKUP($A152,'[3]headphones purchased'!$A$2:$G$27,6,FALSE),0)","v":0},{"$f":"ROUND(IFERROR(VLOOKUP($A152,'[4]download-1'!$A$471:$F$474,5,FALSE)/-9.5,0),0)","v":0},{"$f":"ROUND(IFERROR(VLOOKUP($A152,'[4]download-1'!$A$467:$F$469,5,FALSE)/-49,0),0)","v":0},{"$f":"IFERROR(VLOOKUP($A152,[5]Sheet8!$A$4:$B$89,2,FALSE),0)","v":2},null,null,0,{"$f":"IFERROR(VLOOKUP($A152,[3]Paypal!$A$2:$AA$1843,25,FALSE),0)","v":262.76},{"$f":"IFERROR(VLOOKUP($A152,'[3]Paypal Money Sent Pivot'!$A$4:$B$97,2,FALSE),0)","v":7000},{"$f":"$BH152+$BI151-IFERROR(VLOOKUP($A152,[2]Sheet2!$A$4:$B$82,2,FALSE),0)","v":7999.82},{"$f":"IFERROR(VLOOKUP($A152,'[3]TexttoColumn Amazon Balance'!$A$14:$B$30,2,FALSE),0)","v":0},{"$f":"$BJ151+$BK151-IFERROR(VLOOKUP($A152,[2]Amazon!$A$2:$F$17,5,FALSE),0)","v":0},{"$f":"IFERROR(VLOOKUP($A152,'[4]Payment Pivot'!$A$4:$B$39,2,FALSE),0)","v":2292.69},{"$f":"$BL152+$BM151-IFERROR(VLOOKUP($A152,'[2]Myaccountaccess Pivot'!$A$4:$B$31,2,FALSE),0)","v":2292.69},null,{"$f":"IFERROR(VLOOKUP($A152,'[6]export-2'!$A$2:$F$15,6,FALSE),BO151)","v":9150.0400000000009},1787.1334397187532,{"$f":"OFFSET(A152,0,'Cool Graph'!$H$1)","v":20.16},{"$f":"OFFSET(A152,0,'Cool Graph'!$I$1)","v":1787.1334397187532}]
["2011-11-29",0,7.35,99.649999999999991,46.75,29.06,182.81,1,0,0,0,1,1,0,32.43,0,1,14.32,1,3,0,0,0,13,13,0,0,16,480,{"$f":"IFERROR(VLOOKUP($A153,[1]Sheet1!$A$4:$B$219,2,FALSE),0)","v":2265},2745,2690.9500000000044,{"$f":"$BH153+$BI152-IFERROR(VLOOKUP($A153,[2]Sheet2!$A$4:$B$82,2,FALSE),0)","v":6999.82},{"$f":"$BJ152+$BK152-IFERROR(VLOOKUP($A153,[2]Amazon!$A$2:$F$17,5,FALSE),0)","v":0},{"$f":"$BL153+$BM152-IFERROR(VLOOKUP($A153,'[2]Myaccountaccess Pivot'!$A$4:$B$31,2,FALSE),0)","v":2292.69},{"$f":"IFERROR(VLOOKUP($A153,'[2]export-1'!$A$2:$F$441,6,FALSE),AJ152)","v":11934.870000000004},{"$f":"IFERROR(VLOOKUP($A153,'[7]download-1'!$A$2:$F$513,6,FALSE),AK152)","v":272.2300000000003},{"$f":"IFERROR(VLOOKUP($A153,'[3]TexttoColumn Amazon Balance'!$A$14:$B$30,2,FALSE),IF(AL154>0,AL154-100,0))","v":1681.25},21169.480000000003,47889.520000000004,307,266,0,0,null,null,null,null,null,{"$f":"IFERROR(VLOOKUP($A153,'[2]export-1'!$A$446:$G$451,7,FALSE),0)","v":0},{"$f":"IFERROR(VLOOKUP($A153,[3]Sheet4!$A$4:$B$56,2,FALSE),0)","v":0},{"$f":"IFERROR(VLOOKUP($A153,'[3]headphones purchased'!$A$2:$G$27,6,FALSE),0)","v":198},{"$f":"ROUND(IFERROR(VLOOKUP($A153,'[4]download-1'!$A$471:$F$474,5,FALSE)/-9.5,0),0)","v":0},{"$f":"ROUND(IFERROR(VLOOKUP($A153,'[4]download-1'!$A$467:$F$469,5,FALSE)/-49,0),0)","v":0},{"$f":"IFERROR(VLOOKUP($A153,[5]Sheet8!$A$4:$B$89,2,FALSE),0)","v":0},null,null,1,{"$f":"IFERROR(VLOOKUP($A153,[3]Paypal!$A$2:$AA$1843,25,FALSE),0)","v":2574},{"$f":"IFERROR(VLOOKUP($A153,'[3]Paypal Money Sent Pivot'!$A$4:$B$97,2,FALSE),0)","v":0},{"$f":"$BH153+$BI152-IFERROR(VLOOKUP($A153,[2]Sheet2!$A$4:$B$82,2,FALSE),0)","v":6999.82},{"$f":"IFERROR(VLOOKUP($A153,'[3]TexttoColumn Amazon Balance'!$A$14:$B$30,2,FALSE),0)","v":0},{"$f":"$BJ152+$BK152-IFERROR(VLOOKUP($A153,[2]Amazon!$A$2:$F$17,5,FALSE),0)","v":0},{"$f":"IFERROR(VLOOKUP($A153,'[4]Payment Pivot'!$A$4:$B$39,2,FALSE),0)","v":2292.69},{"$f":"$BL153+$BM152-IFERROR(VLOOKUP($A153,'[2]Myaccountaccess Pivot'!$A$4:$B$31,2,FALSE),0)","v":2292.69},null,{"$f":"IFERROR(VLOOKUP($A153,'[6]export-2'!$A$2:$F$15,6,FALSE),BO152)","v":9150.0400000000009},979.57167780417035,{"$f":"OFFSET(A153,0,'Cool Graph'!$H$1)","v":0},{"$f":"OFFSET(A153,0,'Cool Graph'!$I$1)","v":979.57167780417035}]
["2011-11-30",0.09,12.84,257.70999999999998,84.02000000000001,18.04,372.7,0,0,0,5,0,1,0,65.87,0,0,18.149999999999999,0,1,0,0,0,7,7,0,0,8,160,{"$f":"IFERROR(VLOOKUP($A154,[1]Sheet1!$A$4:$B$219,2,FALSE),0)","v":1260},1420,441.13999999999942,{"$f":"$BH154+$BI153-IFERROR(VLOOKUP($A154,[2]Sheet2!$A$4:$B$82,2,FALSE),0)","v":6999.82},{"$f":"$BJ153+$BK153-IFERROR(VLOOKUP($A154,[2]Amazon!$A$2:$F$17,5,FALSE),0)","v":0},{"$f":"$BL154+$BM153-IFERROR(VLOOKUP($A154,'[2]Myaccountaccess Pivot'!$A$4:$B$31,2,FALSE),0)","v":0},{"$f":"IFERROR(VLOOKUP($A154,'[2]export-1'!$A$2:$F$441,6,FALSE),AJ153)","v":9548.6500000000033},{"$f":"IFERROR(VLOOKUP($A154,'[7]download-1'!$A$2:$F$513,6,FALSE),AK153)","v":172.2300000000003},{"$f":"IFERROR(VLOOKUP($A154,'[3]TexttoColumn Amazon Balance'!$A$14:$B$30,2,FALSE),IF(AL155>0,AL155-100,0))","v":1781.25},19854.620000000003,48330.66,344,260,0,0,null,null,null,null,null,{"$f":"IFERROR(VLOOKUP($A154,'[2]export-1'!$A$446:$G$451,7,FALSE),0)","v":0},{"$f":"IFERROR(VLOOKUP($A154,[3]Sheet4!$A$4:$B$56,2,FALSE),0)","v":46},{"$f":"IFERROR(VLOOKUP($A154,'[3]headphones purchased'!$A$2:$G$27,6,FALSE),0)","v":1},{"$f":"ROUND(IFERROR(VLOOKUP($A154,'[4]download-1'!$A$471:$F$474,5,FALSE)/-9.5,0),0)","v":0},{"$f":"ROUND(IFERROR(VLOOKUP($A154,'[4]download-1'!$A$467:$F$469,5,FALSE)/-49,0),0)","v":0},{"$f":"IFERROR(VLOOKUP($A154,[5]Sheet8!$A$4:$B$89,2,FALSE),0)","v":1},null,null,0,{"$f":"IFERROR(VLOOKUP($A154,[3]Paypal!$A$2:$AA$1843,25,FALSE),0)","v":1352.67},{"$f":"IFERROR(VLOOKUP($A154,'[3]Paypal Money Sent Pivot'!$A$4:$B$97,2,FALSE),0)","v":0},{"$f":"$BH154+$BI153-IFERROR(VLOOKUP($A154,[2]Sheet2!$A$4:$B$82,2,FALSE),0)","v":6999.82},{"$f":"IFERROR(VLOOKUP($A154,'[3]TexttoColumn Amazon Balance'!$A$14:$B$30,2,FALSE),0)","v":0},{"$f":"$BJ153+$BK153-IFERROR(VLOOKUP($A154,[2]Amazon!$A$2:$F$17,5,FALSE),0)","v":0},{"$f":"IFERROR(VLOOKUP($A154,'[4]Payment Pivot'!$A$4:$B$39,2,FALSE),0)","v":0},{"$f":"$BL154+$BM153-IFERROR(VLOOKUP($A154,'[2]Myaccountaccess Pivot'!$A$4:$B$31,2,FALSE),0)","v":0},null,{"$f":"IFERROR(VLOOKUP($A154,'[6]export-2'!$A$2:$F$15,6,FALSE),BO153)","v":9150.0400000000009},228.60491165097329,{"$f":"OFFSET(A154,0,'Cool Graph'!$H$1)","v":0.09},{"$f":"OFFSET(A154,0,'Cool Graph'!$I$1)","v":228.60491165097329}]
["2011-12-01",1.5,18.600000000000001,196.04,58.640000000000008,22.72,297.5,0,0,0,4,0,1,0,40.380000000000003,0,0,18.260000000000002,0,1,0,0,0,6,6,0,0,7,160,{"$f":"IFERROR(VLOOKUP($A155,[1]Sheet1!$A$4:$B$219,2,FALSE),0)","v":1080},1240,-31.360000000000582,{"$f":"$BH155+$BI154-IFERROR(VLOOKUP($A155,[2]Sheet2!$A$4:$B$82,2,FALSE),0)","v":-0.18000000000029104},{"$f":"$BJ154+$BK154-IFERROR(VLOOKUP($A155,[2]Amazon!$A$2:$F$17,5,FALSE),0)","v":0},{"$f":"$BL155+$BM154-IFERROR(VLOOKUP($A155,'[2]Myaccountaccess Pivot'!$A$4:$B$31,2,FALSE),0)","v":0},{"$f":"IFERROR(VLOOKUP($A155,'[2]export-1'!$A$2:$F$441,6,FALSE),AJ154)","v":16511.150000000001},{"$f":"IFERROR(VLOOKUP($A155,'[7]download-1'!$A$2:$F$513,6,FALSE),AK154)","v":-430.33999999999969},{"$f":"IFERROR(VLOOKUP($A155,'[3]TexttoColumn Amazon Balance'!$A$14:$B$30,2,FALSE),IF(AL156>0,AL156-100,0))","v":1881.25},20321.260000000002,48299.3,335,254,0,0,null,null,null,null,null,{"$f":"IFERROR(VLOOKUP($A155,'[2]export-1'!$A$446:$G$451,7,FALSE),0)","v":0},{"$f":"IFERROR(VLOOKUP($A155,[3]Sheet4!$A$4:$B$56,2,FALSE),0)","v":0},{"$f":"IFERROR(VLOOKUP($A155,'[3]headphones purchased'!$A$2:$G$27,6,FALSE),0)","v":0},{"$f":"ROUND(IFERROR(VLOOKUP($A155,'[4]download-1'!$A$471:$F$474,5,FALSE)/-9.5,0),0)","v":0},{"$f":"ROUND(IFERROR(VLOOKUP($A155,'[4]download-1'!$A$467:$F$469,5,FALSE)/-49,0),0)","v":0},{"$f":"IFERROR(VLOOKUP($A155,[5]Sheet8!$A$4:$B$89,2,FALSE),0)","v":3},null,null,1,{"$f":"IFERROR(VLOOKUP($A155,[3]Paypal!$A$2:$AA$1843,25,FALSE),0)","v":2359.38},{"$f":"IFERROR(VLOOKUP($A155,'[3]Paypal Money Sent Pivot'!$A$4:$B$97,2,FALSE),0)","v":0},{"$f":"$BH155+$BI154-IFERROR(VLOOKUP($A155,[2]Sheet2!$A$4:$B$82,2,FALSE),0)","v":-0.18000000000029104},{"$f":"IFERROR(VLOOKUP($A155,'[3]TexttoColumn Amazon Balance'!$A$14:$B$30,2,FALSE),0)","v":0},{"$f":"$BJ154+$BK154-IFERROR(VLOOKUP($A155,[2]Amazon!$A$2:$F$17,5,FALSE),0)","v":0},{"$f":"IFERROR(VLOOKUP($A155,'[4]Payment Pivot'!$A$4:$B$39,2,FALSE),0)","v":0},{"$f":"$BL155+$BM154-IFERROR(VLOOKUP($A155,'[2]Myaccountaccess Pivot'!$A$4:$B$31,2,FALSE),0)","v":0},null,{"$f":"IFERROR(VLOOKUP($A155,'[6]export-2'!$A$2:$F$15,6,FALSE),BO154)","v":9150.0400000000009},227.5831622867654,{"$f":"OFFSET(A155,0,'Cool Graph'!$H$1)","v":1.5},{"$f":"OFFSET(A155,0,'Cool Graph'!$I$1)","v":227.5831622867654}]
["2011-12-02",1.51,21.39,86.62,39.619999999999997,20.69,169.83,0,1,0,2,1,0,0,30.72,0,0,8.9,1,1,0,0,0,4,4,0,0,5,160,{"$f":"IFERROR(VLOOKUP($A156,[1]Sheet1!$A$4:$B$219,2,FALSE),0)","v":700},860,94.019999999996799,{"$f":"$BH156+$BI155-IFERROR(VLOOKUP($A156,[2]Sheet2!$A$4:$B$82,2,FALSE),0)","v":-0.18000000000029104},{"$f":"$BJ155+$BK155-IFERROR(VLOOKUP($A156,[2]Amazon!$A$2:$F$17,5,FALSE),0)","v":0},{"$f":"$BL156+$BM155-IFERROR(VLOOKUP($A156,'[2]Myaccountaccess Pivot'!$A$4:$B$31,2,FALSE),0)","v":0},{"$f":"IFERROR(VLOOKUP($A156,'[2]export-1'!$A$2:$F$441,6,FALSE),AJ155)","v":16029.050000000001},{"$f":"IFERROR(VLOOKUP($A156,'[7]download-1'!$A$2:$F$513,6,FALSE),AK155)","v":-430.33999999999969},{"$f":"IFERROR(VLOOKUP($A156,'[3]TexttoColumn Amazon Balance'!$A$14:$B$30,2,FALSE),IF(AL157>0,AL157-100,0))","v":1981.25},20747.280000000002,48393.32,329,250,0,0,null,null,null,null,null,{"$f":"IFERROR(VLOOKUP($A156,'[2]export-1'!$A$446:$G$451,7,FALSE),0)","v":0},{"$f":"IFERROR(VLOOKUP($A156,[3]Sheet4!$A$4:$B$56,2,FALSE),0)","v":0},{"$f":"IFERROR(VLOOKUP($A156,'[3]headphones purchased'!$A$2:$G$27,6,FALSE),0)","v":0},{"$f":"ROUND(IFERROR(VLOOKUP($A156,'[4]download-1'!$A$471:$F$474,5,FALSE)/-9.5,0),0)","v":0},{"$f":"ROUND(IFERROR(VLOOKUP($A156,'[4]download-1'!$A$467:$F$469,5,FALSE)/-49,0),0)","v":0},{"$f":"IFERROR(VLOOKUP($A156,[5]Sheet8!$A$4:$B$89,2,FALSE),0)","v":1},null,null,0,{"$f":"IFERROR(VLOOKUP($A156,[3]Paypal!$A$2:$AA$1843,25,FALSE),0)","v":3167.5},{"$f":"IFERROR(VLOOKUP($A156,'[3]Paypal Money Sent Pivot'!$A$4:$B$97,2,FALSE),0)","v":0},{"$f":"$BH156+$BI155-IFERROR(VLOOKUP($A156,[2]Sheet2!$A$4:$B$82,2,FALSE),0)","v":-0.18000000000029104},{"$f":"IFERROR(VLOOKUP($A156,'[3]TexttoColumn Amazon Balance'!$A$14:$B$30,2,FALSE),0)","v":0},{"$f":"$BJ155+$BK155-IFERROR(VLOOKUP($A156,[2]Amazon!$A$2:$F$17,5,FALSE),0)","v":0},{"$f":"IFERROR(VLOOKUP($A156,'[4]Payment Pivot'!$A$4:$B$39,2,FALSE),0)","v":0},{"$f":"$BL156+$BM155-IFERROR(VLOOKUP($A156,'[2]Myaccountaccess Pivot'!$A$4:$B$31,2,FALSE),0)","v":0},null,{"$f":"IFERROR(VLOOKUP($A156,'[6]export-2'!$A$2:$F$15,6,FALSE),BO155)","v":9150.0400000000009},194.34058029565986,{"$f":"OFFSET(A156,0,'Cool Graph'!$H$1)","v":1.51},{"$f":"OFFSET(A156,0,'Cool Graph'!$I$1)","v":194.34058029565986}]
["2011-12-03",33,28.27,233.24999999999997,37.57,17.68,349.77,0,0,0,5,0,4,0,30.220000000000002,0,1,7.35,0,1,0,0,0,12,12,0,0,13,160,{"$f":"IFERROR(VLOOKUP($A157,[1]Sheet1!$A$4:$B$219,2,FALSE),0)","v":2100},2260,1343.2900000000081,{"$f":"$BH157+$BI156-IFERROR(VLOOKUP($A157,[2]Sheet2!$A$4:$B$82,2,FALSE),0)","v":-0.18000000000029104},{"$f":"$BJ156+$BK156-IFERROR(VLOOKUP($A157,[2]Amazon!$A$2:$F$17,5,FALSE),0)","v":0},{"$f":"$BL157+$BM156-IFERROR(VLOOKUP($A157,'[2]Myaccountaccess Pivot'!$A$4:$B$31,2,FALSE),0)","v":0},{"$f":"IFERROR(VLOOKUP($A157,'[2]export-1'!$A$2:$F$441,6,FALSE),AJ156)","v":16029.050000000001},{"$f":"IFERROR(VLOOKUP($A157,'[7]download-1'!$A$2:$F$513,6,FALSE),AK156)","v":-430.33999999999969},{"$f":"IFERROR(VLOOKUP($A157,'[3]TexttoColumn Amazon Balance'!$A$14:$B$30,2,FALSE),IF(AL158>0,AL158-100,0))","v":2081.25},19313.570000000003,49736.610000000008,388,238,0,0,null,null,null,null,null,{"$f":"IFERROR(VLOOKUP($A157,'[2]export-1'!$A$446:$G$451,7,FALSE),0)","v":0},{"$f":"IFERROR(VLOOKUP($A157,[3]Sheet4!$A$4:$B$56,2,FALSE),0)","v":74},{"$f":"IFERROR(VLOOKUP($A157,'[3]headphones purchased'!$A$2:$G$27,6,FALSE),0)","v":0},{"$f":"ROUND(IFERROR(VLOOKUP($A157,'[4]download-1'!$A$471:$F$474,5,FALSE)/-9.5,0),0)","v":0},{"$f":"ROUND(IFERROR(VLOOKUP($A157,'[4]download-1'!$A$467:$F$469,5,FALSE)/-49,0),0)","v":0},{"$f":"IFERROR(VLOOKUP($A157,[5]Sheet8!$A$4:$B$89,2,FALSE),0)","v":3},null,null,1,{"$f":"IFERROR(VLOOKUP($A157,[3]Paypal!$A$2:$AA$1843,25,FALSE),0)","v":1633.79},{"$f":"IFERROR(VLOOKUP($A157,'[3]Paypal Money Sent Pivot'!$A$4:$B$97,2,FALSE),0)","v":0},{"$f":"$BH157+$BI156-IFERROR(VLOOKUP($A157,[2]Sheet2!$A$4:$B$82,2,FALSE),0)","v":-0.18000000000029104},{"$f":"IFERROR(VLOOKUP($A157,'[3]TexttoColumn Amazon Balance'!$A$14:$B$30,2,FALSE),0)","v":2081.25},{"$f":"$BJ156+$BK156-IFERROR(VLOOKUP($A157,[2]Amazon!$A$2:$F$17,5,FALSE),0)","v":0},{"$f":"IFERROR(VLOOKUP($A157,'[4]Payment Pivot'!$A$4:$B$39,2,FALSE),0)","v":0},{"$f":"$BL157+$BM156-IFERROR(VLOOKUP($A157,'[2]Myaccountaccess Pivot'!$A$4:$B$31,2,FALSE),0)","v":0},null,{"$f":"IFERROR(VLOOKUP($A157,'[6]export-2'!$A$2:$F$15,6,FALSE),BO156)","v":9150.0400000000009},607.23640868394341,{"$f":"OFFSET(A157,0,'Cool Graph'!$H$1)","v":33},{"$f":"OFFSET(A157,0,'Cool Graph'!$I$1)","v":607.23640868394341}]
["2011-12-04",88.16,25.03,280.36,73.239999999999995,20.36,487.15000000000003,0,0,0,8,2,3,0,59.68,2,2,13.56,0,2,0,0,0,21,21,0,0,23,320,{"$f":"IFERROR(VLOOKUP($A158,[1]Sheet1!$A$4:$B$219,2,FALSE),0)","v":3675},3995,4088.7699999999968,{"$f":"$BH158+$BI157-IFERROR(VLOOKUP($A158,[2]Sheet2!$A$4:$B$82,2,FALSE),0)","v":-0.18000000000029104},{"$f":"$BJ157+$BK157-IFERROR(VLOOKUP($A158,[2]Amazon!$A$2:$F$17,5,FALSE),0)","v":2081.25},{"$f":"$BL158+$BM157-IFERROR(VLOOKUP($A158,'[2]Myaccountaccess Pivot'!$A$4:$B$31,2,FALSE),0)","v":0},{"$f":"IFERROR(VLOOKUP($A158,'[2]export-1'!$A$2:$F$441,6,FALSE),AJ157)","v":16029.050000000001},{"$f":"IFERROR(VLOOKUP($A158,'[7]download-1'!$A$2:$F$513,6,FALSE),AK157)","v":-430.33999999999969},{"$f":"IFERROR(VLOOKUP($A158,'[3]TexttoColumn Amazon Balance'!$A$14:$B$30,2,FALSE),IF(AL159>0,AL159-100,0))","v":1683.3200000000002},24728.840000000004,53825.380000000005,365,217,0,0,null,null,null,null,null,{"$f":"IFERROR(VLOOKUP($A158,'[2]export-1'!$A$446:$G$451,7,FALSE),0)","v":0},{"$f":"IFERROR(VLOOKUP($A158,[3]Sheet4!$A$4:$B$56,2,FALSE),0)","v":0},{"$f":"IFERROR(VLOOKUP($A158,'[3]headphones purchased'!$A$2:$G$27,6,FALSE),0)","v":0},{"$f":"ROUND(IFERROR(VLOOKUP($A158,'[4]download-1'!$A$471:$F$474,5,FALSE)/-9.5,0),0)","v":0},{"$f":"ROUND(IFERROR(VLOOKUP($A158,'[4]download-1'!$A$467:$F$469,5,FALSE)/-49,0),0)","v":0},{"$f":"IFERROR(VLOOKUP($A158,[5]Sheet8!$A$4:$B$89,2,FALSE),0)","v":0},null,null,0,{"$f":"IFERROR(VLOOKUP($A158,[3]Paypal!$A$2:$AA$1843,25,FALSE),0)","v":5365.74},{"$f":"IFERROR(VLOOKUP($A158,'[3]Paypal Money Sent Pivot'!$A$4:$B$97,2,FALSE),0)","v":0},{"$f":"$BH158+$BI157-IFERROR(VLOOKUP($A158,[2]Sheet2!$A$4:$B$82,2,FALSE),0)","v":-0.18000000000029104},{"$f":"IFERROR(VLOOKUP($A158,'[3]TexttoColumn Amazon Balance'!$A$14:$B$30,2,FALSE),0)","v":0},{"$f":"$BJ157+$BK157-IFERROR(VLOOKUP($A158,[2]Amazon!$A$2:$F$17,5,FALSE),0)","v":2081.25},{"$f":"IFERROR(VLOOKUP($A158,'[4]Payment Pivot'!$A$4:$B$39,2,FALSE),0)","v":0},{"$f":"$BL158+$BM157-IFERROR(VLOOKUP($A158,'[2]Myaccountaccess Pivot'!$A$4:$B$31,2,FALSE),0)","v":0},null,{"$f":"IFERROR(VLOOKUP($A158,'[6]export-2'!$A$2:$F$15,6,FALSE),BO157)","v":9150.0400000000009},1204.5493817222805,{"$f":"OFFSET(A158,0,'Cool Graph'!$H$1)","v":88.16},{"$f":"OFFSET(A158,0,'Cool Graph'!$I$1)","v":1204.5493817222805}]
["2011-12-05",8.5399999999999991,23.66,293.92999999999995,79.88,21.69,427.69999999999993,0,0,0,5,0,1,0,69.97,0,0,9.91,0,4,0,0,0,36,36,0,0,40,640,{"$f":"IFERROR(VLOOKUP($A159,[1]Sheet1!$A$4:$B$219,2,FALSE),0)","v":6300},6940,-551.34000000000378,{"$f":"$BH159+$BI158-IFERROR(VLOOKUP($A159,[2]Sheet2!$A$4:$B$82,2,FALSE),0)","v":1999.8199999999997},{"$f":"$BJ158+$BK158-IFERROR(VLOOKUP($A159,[2]Amazon!$A$2:$F$17,5,FALSE),0)","v":2081.25},{"$f":"$BL159+$BM158-IFERROR(VLOOKUP($A159,'[2]Myaccountaccess Pivot'!$A$4:$B$31,2,FALSE),0)","v":0},{"$f":"IFERROR(VLOOKUP($A159,'[2]export-1'!$A$2:$F$441,6,FALSE),AJ158)","v":15738.41},{"$f":"IFERROR(VLOOKUP($A159,'[7]download-1'!$A$2:$F$513,6,FALSE),AK158)","v":-1518.3299999999997},{"$f":"IFERROR(VLOOKUP($A159,'[3]TexttoColumn Amazon Balance'!$A$14:$B$30,2,FALSE),IF(AL160>0,AL160-100,0))","v":1783.3200000000002},20109.5,53274.04,455,181,0,0,null,null,null,null,null,{"$f":"IFERROR(VLOOKUP($A159,'[2]export-1'!$A$446:$G$451,7,FALSE),0)","v":0},{"$f":"IFERROR(VLOOKUP($A159,[3]Sheet4!$A$4:$B$56,2,FALSE),0)","v":130},{"$f":"IFERROR(VLOOKUP($A159,'[3]headphones purchased'!$A$2:$G$27,6,FALSE),0)","v":0},{"$f":"ROUND(IFERROR(VLOOKUP($A159,'[4]download-1'!$A$471:$F$474,5,FALSE)/-9.5,0),0)","v":0},{"$f":"ROUND(IFERROR(VLOOKUP($A159,'[4]download-1'!$A$467:$F$469,5,FALSE)/-49,0),0)","v":0},{"$f":"IFERROR(VLOOKUP($A159,[5]Sheet8!$A$4:$B$89,2,FALSE),0)","v":1},null,null,1,{"$f":"IFERROR(VLOOKUP($A159,[3]Paypal!$A$2:$AA$1843,25,FALSE),0)","v":25.03},{"$f":"IFERROR(VLOOKUP($A159,'[3]Paypal Money Sent Pivot'!$A$4:$B$97,2,FALSE),0)","v":2000},{"$f":"$BH159+$BI158-IFERROR(VLOOKUP($A159,[2]Sheet2!$A$4:$B$82,2,FALSE),0)","v":1999.8199999999997},{"$f":"IFERROR(VLOOKUP($A159,'[3]TexttoColumn Amazon Balance'!$A$14:$B$30,2,FALSE),0)","v":0},{"$f":"$BJ158+$BK158-IFERROR(VLOOKUP($A159,[2]Amazon!$A$2:$F$17,5,FALSE),0)","v":2081.25},{"$f":"IFERROR(VLOOKUP($A159,'[4]Payment Pivot'!$A$4:$B$39,2,FALSE),0)","v":0},{"$f":"$BL159+$BM158-IFERROR(VLOOKUP($A159,'[2]Myaccountaccess Pivot'!$A$4:$B$31,2,FALSE),0)","v":0},null,{"$f":"IFERROR(VLOOKUP($A159,'[6]export-2'!$A$2:$F$15,6,FALSE),BO158)","v":9150.0400000000009},2511.0718921533485,{"$f":"OFFSET(A159,0,'Cool Graph'!$H$1)","v":8.5399999999999991},{"$f":"OFFSET(A159,0,'Cool Graph'!$I$1)","v":2511.0718921533485}]
["2011-12-06",1.21,28.47,277.91000000000003,98.440000000000012,29.34,435.37,0,0,0,9,0,1,0,89.11,0,0,9.33,0,0,0,0,0,25,25,0,0,25,0,{"$f":"IFERROR(VLOOKUP($A160,[1]Sheet1!$A$4:$B$219,2,FALSE),0)","v":4375},4375,1527.739999999998,{"$f":"$BH160+$BI159-IFERROR(VLOOKUP($A160,[2]Sheet2!$A$4:$B$82,2,FALSE),0)","v":1999.8199999999997},{"$f":"$BJ159+$BK159-IFERROR(VLOOKUP($A160,[2]Amazon!$A$2:$F$17,5,FALSE),0)","v":0},{"$f":"$BL160+$BM159-IFERROR(VLOOKUP($A160,'[2]Myaccountaccess Pivot'!$A$4:$B$31,2,FALSE),0)","v":430.34},{"$f":"IFERROR(VLOOKUP($A160,'[2]export-1'!$A$2:$F$441,6,FALSE),AJ159)","v":10909.59},{"$f":"IFERROR(VLOOKUP($A160,'[7]download-1'!$A$2:$F$513,6,FALSE),AK159)","v":-1244.8999999999999},{"$f":"IFERROR(VLOOKUP($A160,'[3]TexttoColumn Amazon Balance'!$A$14:$B$30,2,FALSE),IF(AL161>0,AL161-100,0))","v":1883.3200000000002},17148.739999999998,54801.78,429,156,0,0,null,null,null,null,null,{"$f":"IFERROR(VLOOKUP($A160,'[2]export-1'!$A$446:$G$451,7,FALSE),0)","v":0},{"$f":"IFERROR(VLOOKUP($A160,[3]Sheet4!$A$4:$B$56,2,FALSE),0)","v":0},{"$f":"IFERROR(VLOOKUP($A160,'[3]headphones purchased'!$A$2:$G$27,6,FALSE),0)","v":0},{"$f":"ROUND(IFERROR(VLOOKUP($A160,'[4]download-1'!$A$471:$F$474,5,FALSE)/-9.5,0),0)","v":0},{"$f":"ROUND(IFERROR(VLOOKUP($A160,'[4]download-1'!$A$467:$F$469,5,FALSE)/-49,0),0)","v":0},{"$f":"IFERROR(VLOOKUP($A160,[5]Sheet8!$A$4:$B$89,2,FALSE),0)","v":1},null,null,0,{"$f":"IFERROR(VLOOKUP($A160,[3]Paypal!$A$2:$AA$1843,25,FALSE),0)","v":4031.25},{"$f":"IFERROR(VLOOKUP($A160,'[3]Paypal Money Sent Pivot'!$A$4:$B$97,2,FALSE),0)","v":0},{"$f":"$BH160+$BI159-IFERROR(VLOOKUP($A160,[2]Sheet2!$A$4:$B$82,2,FALSE),0)","v":1999.8199999999997},{"$f":"IFERROR(VLOOKUP($A160,'[3]TexttoColumn Amazon Balance'!$A$14:$B$30,2,FALSE),0)","v":0},{"$f":"$BJ159+$BK159-IFERROR(VLOOKUP($A160,[2]Amazon!$A$2:$F$17,5,FALSE),0)","v":0},{"$f":"IFERROR(VLOOKUP($A160,'[4]Payment Pivot'!$A$4:$B$39,2,FALSE),0)","v":430.34},{"$f":"$BL160+$BM159-IFERROR(VLOOKUP($A160,'[2]Myaccountaccess Pivot'!$A$4:$B$31,2,FALSE),0)","v":430.34},null,{"$f":"IFERROR(VLOOKUP($A160,'[6]export-2'!$A$2:$F$15,6,FALSE),BO159)","v":15150.04},1417.2419637133862,{"$f":"OFFSET(A160,0,'Cool Graph'!$H$1)","v":1.21},{"$f":"OFFSET(A160,0,'Cool Graph'!$I$1)","v":1417.2419637133862}]
["2011-12-07",88.83,20.41,372.03000000000003,95.5,25.37,602.14,0,0,0,5,0,1,0,83.64,0,0,11.86,0,0,0,0,0,15,15,0,0,15,0,{"$f":"IFERROR(VLOOKUP($A161,[1]Sheet1!$A$4:$B$219,2,FALSE),0)","v":2625},2625,637.89000000000669,{"$f":"$BH161+$BI160-IFERROR(VLOOKUP($A161,[2]Sheet2!$A$4:$B$82,2,FALSE),0)","v":1999.8199999999997},{"$f":"$BJ160+$BK160-IFERROR(VLOOKUP($A161,[2]Amazon!$A$2:$F$17,5,FALSE),0)","v":0},{"$f":"$BL161+$BM160-IFERROR(VLOOKUP($A161,'[2]Myaccountaccess Pivot'!$A$4:$B$31,2,FALSE),0)","v":0},{"$f":"IFERROR(VLOOKUP($A161,'[2]export-1'!$A$2:$F$441,6,FALSE),AJ160)","v":9480.93},{"$f":"IFERROR(VLOOKUP($A161,'[7]download-1'!$A$2:$F$513,6,FALSE),AK160)","v":-1833.06},{"$f":"IFERROR(VLOOKUP($A161,'[3]TexttoColumn Amazon Balance'!$A$14:$B$30,2,FALSE),IF(AL162>0,AL162-100,0))","v":1983.3200000000002},18523.13,55439.670000000006,413,161,0,0,null,null,null,null,null,{"$f":"IFERROR(VLOOKUP($A161,'[2]export-1'!$A$446:$G$451,7,FALSE),0)","v":0},{"$f":"IFERROR(VLOOKUP($A161,[3]Sheet4!$A$4:$B$56,2,FALSE),0)","v":0},{"$f":"IFERROR(VLOOKUP($A161,'[3]headphones purchased'!$A$2:$G$27,6,FALSE),0)","v":20},{"$f":"ROUND(IFERROR(VLOOKUP($A161,'[4]download-1'!$A$471:$F$474,5,FALSE)/-9.5,0),0)","v":0},{"$f":"ROUND(IFERROR(VLOOKUP($A161,'[4]download-1'!$A$467:$F$469,5,FALSE)/-49,0),0)","v":0},{"$f":"IFERROR(VLOOKUP($A161,[5]Sheet8!$A$4:$B$89,2,FALSE),0)","v":2},null,null,1,{"$f":"IFERROR(VLOOKUP($A161,[3]Paypal!$A$2:$AA$1843,25,FALSE),0)","v":6892.12},{"$f":"IFERROR(VLOOKUP($A161,'[3]Paypal Money Sent Pivot'!$A$4:$B$97,2,FALSE),0)","v":0},{"$f":"$BH161+$BI160-IFERROR(VLOOKUP($A161,[2]Sheet2!$A$4:$B$82,2,FALSE),0)","v":1999.8199999999997},{"$f":"IFERROR(VLOOKUP($A161,'[3]TexttoColumn Amazon Balance'!$A$14:$B$30,2,FALSE),0)","v":0},{"$f":"$BJ160+$BK160-IFERROR(VLOOKUP($A161,[2]Amazon!$A$2:$F$17,5,FALSE),0)","v":0},{"$f":"IFERROR(VLOOKUP($A161,'[4]Payment Pivot'!$A$4:$B$39,2,FALSE),0)","v":0},{"$f":"$BL161+$BM160-IFERROR(VLOOKUP($A161,'[2]Myaccountaccess Pivot'!$A$4:$B$31,2,FALSE),0)","v":0},null,{"$f":"IFERROR(VLOOKUP($A161,'[6]export-2'!$A$2:$F$15,6,FALSE),BO160)","v":15150.04},509.42717822803172,{"$f":"OFFSET(A161,0,'Cool Graph'!$H$1)","v":88.83},{"$f":"OFFSET(A161,0,'Cool Graph'!$I$1)","v":509.42717822803172}]
["2011-12-08",50.45,33.49,281.27000000000004,55.22,17.13,437.56000000000006,0,1,0,6,0,2,0,49.150000000000006,0,1,6.07,0,1,0,0,0,13,13,0,0,14,160,{"$f":"IFERROR(VLOOKUP($A162,[1]Sheet1!$A$4:$B$219,2,FALSE),0)","v":2275},2435,938.46999999999389,{"$f":"$BH162+$BI161-IFERROR(VLOOKUP($A162,[2]Sheet2!$A$4:$B$82,2,FALSE),0)","v":-0.18000000000029104},{"$f":"$BJ161+$BK161-IFERROR(VLOOKUP($A162,[2]Amazon!$A$2:$F$17,5,FALSE),0)","v":0},{"$f":"$BL162+$BM161-IFERROR(VLOOKUP($A162,'[2]Myaccountaccess Pivot'!$A$4:$B$31,2,FALSE),0)","v":1244.9000000000001},{"$f":"IFERROR(VLOOKUP($A162,'[2]export-1'!$A$2:$F$441,6,FALSE),AJ161)","v":11478.91},{"$f":"IFERROR(VLOOKUP($A162,'[7]download-1'!$A$2:$F$513,6,FALSE),AK161)","v":-1088.1599999999999},{"$f":"IFERROR(VLOOKUP($A162,'[3]TexttoColumn Amazon Balance'!$A$14:$B$30,2,FALSE),IF(AL163>0,AL163-100,0))","v":2083.3200000000002},13215.1,56378.14,543,148,0,0,null,null,null,null,null,{"$f":"IFERROR(VLOOKUP($A162,'[2]export-1'!$A$446:$G$451,7,FALSE),0)","v":0},{"$f":"IFERROR(VLOOKUP($A162,[3]Sheet4!$A$4:$B$56,2,FALSE),0)","v":144},{"$f":"IFERROR(VLOOKUP($A162,'[3]headphones purchased'!$A$2:$G$27,6,FALSE),0)","v":0},{"$f":"ROUND(IFERROR(VLOOKUP($A162,'[4]download-1'!$A$471:$F$474,5,FALSE)/-9.5,0),0)","v":0},{"$f":"ROUND(IFERROR(VLOOKUP($A162,'[4]download-1'!$A$467:$F$469,5,FALSE)/-49,0),0)","v":0},{"$f":"IFERROR(VLOOKUP($A162,[5]Sheet8!$A$4:$B$89,2,FALSE),0)","v":0},null,null,0,{"$f":"IFERROR(VLOOKUP($A162,[3]Paypal!$A$2:$AA$1843,25,FALSE),0)","v":1986.11},{"$f":"IFERROR(VLOOKUP($A162,'[3]Paypal Money Sent Pivot'!$A$4:$B$97,2,FALSE),0)","v":0},{"$f":"$BH162+$BI161-IFERROR(VLOOKUP($A162,[2]Sheet2!$A$4:$B$82,2,FALSE),0)","v":-0.18000000000029104},{"$f":"IFERROR(VLOOKUP($A162,'[3]TexttoColumn Amazon Balance'!$A$14:$B$30,2,FALSE),0)","v":0},{"$f":"$BJ161+$BK161-IFERROR(VLOOKUP($A162,[2]Amazon!$A$2:$F$17,5,FALSE),0)","v":0},{"$f":"IFERROR(VLOOKUP($A162,'[4]Payment Pivot'!$A$4:$B$39,2,FALSE),0)","v":1244.9000000000001},{"$f":"$BL162+$BM161-IFERROR(VLOOKUP($A162,'[2]Myaccountaccess Pivot'!$A$4:$B$31,2,FALSE),0)","v":1244.9000000000001},null,{"$f":"IFERROR(VLOOKUP($A162,'[6]export-2'!$A$2:$F$15,6,FALSE),BO161)","v":15150.04},593.55088723247889,{"$f":"OFFSET(A162,0,'Cool Graph'!$H$1)","v":50.45},{"$f":"OFFSET(A162,0,'Cool Graph'!$I$1)","v":593.55088723247889}]
["2011-12-09",99.68,15.05,336.96,79.41,24.34,555.44000000000005,0,0,0,8,1,1,0,67.14,1,1,12.27,0,1,0,0,0,17,17,0,0,18,160,{"$f":"IFERROR(VLOOKUP($A163,[1]Sheet1!$A$4:$B$219,2,FALSE),0)","v":2975},3135,-1912.6899999999951,{"$f":"$BH163+$BI162-IFERROR(VLOOKUP($A163,[2]Sheet2!$A$4:$B$82,2,FALSE),0)","v":-0.18000000000029104},{"$f":"$BJ162+$BK162-IFERROR(VLOOKUP($A163,[2]Amazon!$A$2:$F$17,5,FALSE),0)","v":0},{"$f":"$BL163+$BM162-IFERROR(VLOOKUP($A163,'[2]Myaccountaccess Pivot'!$A$4:$B$31,2,FALSE),0)","v":0},{"$f":"IFERROR(VLOOKUP($A163,'[2]export-1'!$A$2:$F$441,6,FALSE),AJ162)","v":7405.24},{"$f":"IFERROR(VLOOKUP($A163,'[7]download-1'!$A$2:$F$513,6,FALSE),AK162)","v":-1957.51},{"$f":"IFERROR(VLOOKUP($A163,'[3]TexttoColumn Amazon Balance'!$A$14:$B$30,2,FALSE),IF(AL164>0,AL164-100,0))","v":2183.3200000000002},12394.91,54465.450000000004,524,131,0,0,null,null,null,null,null,{"$f":"IFERROR(VLOOKUP($A163,'[2]export-1'!$A$446:$G$451,7,FALSE),0)","v":0},{"$f":"IFERROR(VLOOKUP($A163,[3]Sheet4!$A$4:$B$56,2,FALSE),0)","v":0},{"$f":"IFERROR(VLOOKUP($A163,'[3]headphones purchased'!$A$2:$G$27,6,FALSE),0)","v":0},{"$f":"ROUND(IFERROR(VLOOKUP($A163,'[4]download-1'!$A$471:$F$474,5,FALSE)/-9.5,0),0)","v":0},{"$f":"ROUND(IFERROR(VLOOKUP($A163,'[4]download-1'!$A$467:$F$469,5,FALSE)/-49,0),0)","v":0},{"$f":"IFERROR(VLOOKUP($A163,[5]Sheet8!$A$4:$B$89,2,FALSE),0)","v":2},null,null,1,{"$f":"IFERROR(VLOOKUP($A163,[3]Paypal!$A$2:$AA$1843,25,FALSE),0)","v":4764.04},{"$f":"IFERROR(VLOOKUP($A163,'[3]Paypal Money Sent Pivot'!$A$4:$B$97,2,FALSE),0)","v":0},{"$f":"$BH163+$BI162-IFERROR(VLOOKUP($A163,[2]Sheet2!$A$4:$B$82,2,FALSE),0)","v":-0.18000000000029104},{"$f":"IFERROR(VLOOKUP($A163,'[3]TexttoColumn Amazon Balance'!$A$14:$B$30,2,FALSE),0)","v":0},{"$f":"$BJ162+$BK162-IFERROR(VLOOKUP($A163,[2]Amazon!$A$2:$F$17,5,FALSE),0)","v":0},{"$f":"IFERROR(VLOOKUP($A163,'[4]Payment Pivot'!$A$4:$B$39,2,FALSE),0)","v":0},{"$f":"$BL163+$BM162-IFERROR(VLOOKUP($A163,'[2]Myaccountaccess Pivot'!$A$4:$B$31,2,FALSE),0)","v":0},null,{"$f":"IFERROR(VLOOKUP($A163,'[6]export-2'!$A$2:$F$15,6,FALSE),BO162)","v":15150.04},772.08880142662065,{"$f":"OFFSET(A163,0,'Cool Graph'!$H$1)","v":99.68},{"$f":"OFFSET(A163,0,'Cool Graph'!$I$1)","v":772.08880142662065}]
["2011-12-10",100,27.55,388.18,82.43,17.29,615.45000000000005,1,0,0,5,0,1,0,68.56,0,0,13.87,0,3,1,0,0,19,19,0,0,22,640,{"$f":"IFERROR(VLOOKUP($A164,[1]Sheet1!$A$4:$B$219,2,FALSE),0)","v":3325},3965,2085.5599999999977,{"$f":"$BH164+$BI163-IFERROR(VLOOKUP($A164,[2]Sheet2!$A$4:$B$82,2,FALSE),0)","v":-0.18000000000029104},{"$f":"$BJ163+$BK163-IFERROR(VLOOKUP($A164,[2]Amazon!$A$2:$F$17,5,FALSE),0)","v":0},{"$f":"$BL164+$BM163-IFERROR(VLOOKUP($A164,'[2]Myaccountaccess Pivot'!$A$4:$B$31,2,FALSE),0)","v":0},{"$f":"IFERROR(VLOOKUP($A164,'[2]export-1'!$A$2:$F$441,6,FALSE),AJ163)","v":7405.24},{"$f":"IFERROR(VLOOKUP($A164,'[7]download-1'!$A$2:$F$513,6,FALSE),AK163)","v":-1957.51},{"$f":"IFERROR(VLOOKUP($A164,'[3]TexttoColumn Amazon Balance'!$A$14:$B$30,2,FALSE),IF(AL165>0,AL165-100,0))","v":2283.3200000000002},15748.470000000001,56551.01,502,111,0,0,null,null,null,null,null,{"$f":"IFERROR(VLOOKUP($A164,'[2]export-1'!$A$446:$G$451,7,FALSE),0)","v":0},{"$f":"IFERROR(VLOOKUP($A164,[3]Sheet4!$A$4:$B$56,2,FALSE),0)","v":0},{"$f":"IFERROR(VLOOKUP($A164,'[3]headphones purchased'!$A$2:$G$27,6,FALSE),0)","v":0},{"$f":"ROUND(IFERROR(VLOOKUP($A164,'[4]download-1'!$A$471:$F$474,5,FALSE)/-9.5,0),0)","v":0},{"$f":"ROUND(IFERROR(VLOOKUP($A164,'[4]download-1'!$A$467:$F$469,5,FALSE)/-49,0),0)","v":0},{"$f":"IFERROR(VLOOKUP($A164,[5]Sheet8!$A$4:$B$89,2,FALSE),0)","v":0},null,null,0,{"$f":"IFERROR(VLOOKUP($A164,[3]Paypal!$A$2:$AA$1843,25,FALSE),0)","v":8017.6},{"$f":"IFERROR(VLOOKUP($A164,'[3]Paypal Money Sent Pivot'!$A$4:$B$97,2,FALSE),0)","v":0},{"$f":"$BH164+$BI163-IFERROR(VLOOKUP($A164,[2]Sheet2!$A$4:$B$82,2,FALSE),0)","v":-0.18000000000029104},{"$f":"IFERROR(VLOOKUP($A164,'[3]TexttoColumn Amazon Balance'!$A$14:$B$30,2,FALSE),0)","v":0},{"$f":"$BJ163+$BK163-IFERROR(VLOOKUP($A164,[2]Amazon!$A$2:$F$17,5,FALSE),0)","v":0},{"$f":"IFERROR(VLOOKUP($A164,'[4]Payment Pivot'!$A$4:$B$39,2,FALSE),0)","v":0},{"$f":"$BL164+$BM163-IFERROR(VLOOKUP($A164,'[2]Myaccountaccess Pivot'!$A$4:$B$31,2,FALSE),0)","v":0},null,{"$f":"IFERROR(VLOOKUP($A164,'[6]export-2'!$A$2:$F$15,6,FALSE),BO163)","v":15150.04},1063.5457568282459,{"$f":"OFFSET(A164,0,'Cool Graph'!$H$1)","v":100},{"$f":"OFFSET(A164,0,'Cool Graph'!$I$1)","v":1063.5457568282459}]
["2011-12-11",100,31.61,436.90000000000003,112.27000000000001,18.5,699.28,0,0,0,7,0,3,0,91.93,0,0,20.34,0,2,0,0,0,25,25,0,0,27,320,{"$f":"IFERROR(VLOOKUP($A165,[1]Sheet1!$A$4:$B$219,2,FALSE),0)","v":4375},4695,2829.3099999999977,{"$f":"$BH165+$BI164-IFERROR(VLOOKUP($A165,[2]Sheet2!$A$4:$B$82,2,FALSE),0)","v":-0.18000000000029104},{"$f":"$BJ164+$BK164-IFERROR(VLOOKUP($A165,[2]Amazon!$A$2:$F$17,5,FALSE),0)","v":0},{"$f":"$BL165+$BM164-IFERROR(VLOOKUP($A165,'[2]Myaccountaccess Pivot'!$A$4:$B$31,2,FALSE),0)","v":0},{"$f":"IFERROR(VLOOKUP($A165,'[2]export-1'!$A$2:$F$441,6,FALSE),AJ164)","v":7405.24},{"$f":"IFERROR(VLOOKUP($A165,'[7]download-1'!$A$2:$F$513,6,FALSE),AK164)","v":-1957.51},{"$f":"IFERROR(VLOOKUP($A165,'[3]TexttoColumn Amazon Balance'!$A$14:$B$30,2,FALSE),IF(AL166>0,AL166-100,0))","v":2383.3200000000002},20089.28,59380.32,476,86,0,0,null,null,null,null,null,{"$f":"IFERROR(VLOOKUP($A165,'[2]export-1'!$A$446:$G$451,7,FALSE),0)","v":0},{"$f":"IFERROR(VLOOKUP($A165,[3]Sheet4!$A$4:$B$56,2,FALSE),0)","v":0},{"$f":"IFERROR(VLOOKUP($A165,'[3]headphones purchased'!$A$2:$G$27,6,FALSE),0)","v":0},{"$f":"ROUND(IFERROR(VLOOKUP($A165,'[4]download-1'!$A$471:$F$474,5,FALSE)/-9.5,0),0)","v":0},{"$f":"ROUND(IFERROR(VLOOKUP($A165,'[4]download-1'!$A$467:$F$469,5,FALSE)/-49,0),0)","v":0},{"$f":"IFERROR(VLOOKUP($A165,[5]Sheet8!$A$4:$B$89,2,FALSE),0)","v":0},null,null,1,{"$f":"IFERROR(VLOOKUP($A165,[3]Paypal!$A$2:$AA$1843,25,FALSE),0)","v":12258.41},{"$f":"IFERROR(VLOOKUP($A165,'[3]Paypal Money Sent Pivot'!$A$4:$B$97,2,FALSE),0)","v":0},{"$f":"$BH165+$BI164-IFERROR(VLOOKUP($A165,[2]Sheet2!$A$4:$B$82,2,FALSE),0)","v":-0.18000000000029104},{"$f":"IFERROR(VLOOKUP($A165,'[3]TexttoColumn Amazon Balance'!$A$14:$B$30,2,FALSE),0)","v":0},{"$f":"$BJ164+$BK164-IFERROR(VLOOKUP($A165,[2]Amazon!$A$2:$F$17,5,FALSE),0)","v":0},{"$f":"IFERROR(VLOOKUP($A165,'[4]Payment Pivot'!$A$4:$B$39,2,FALSE),0)","v":0},{"$f":"$BL165+$BM164-IFERROR(VLOOKUP($A165,'[2]Myaccountaccess Pivot'!$A$4:$B$31,2,FALSE),0)","v":0},null,{"$f":"IFERROR(VLOOKUP($A165,'[6]export-2'!$A$2:$F$15,6,FALSE),BO164)","v":15150.04},1288.8372959164224,{"$f":"OFFSET(A165,0,'Cool Graph'!$H$1)","v":100},{"$f":"OFFSET(A165,0,'Cool Graph'!$I$1)","v":1288.8372959164224}]
["2011-12-12",100,30.03,467.08,104.1,28.34,729.55000000000007,0,1,0,6,0,3,0,84.55,0,0,19.55,0,0,0,0,0,24,24,0,0,24,0,{"$f":"IFERROR(VLOOKUP($A166,[1]Sheet1!$A$4:$B$219,2,FALSE),0)","v":4200},4200,1230.5500000000029,{"$f":"$BH166+$BI165-IFERROR(VLOOKUP($A166,[2]Sheet2!$A$4:$B$82,2,FALSE),0)","v":-0.18000000000029104},{"$f":"$BJ165+$BK165-IFERROR(VLOOKUP($A166,[2]Amazon!$A$2:$F$17,5,FALSE),0)","v":0},{"$f":"$BL166+$BM165-IFERROR(VLOOKUP($A166,'[2]Myaccountaccess Pivot'!$A$4:$B$31,2,FALSE),0)","v":3915.02},{"$f":"IFERROR(VLOOKUP($A166,'[2]export-1'!$A$2:$F$441,6,FALSE),AJ165)","v":7400.24},{"$f":"IFERROR(VLOOKUP($A166,'[7]download-1'!$A$2:$F$513,6,FALSE),AK165)","v":631.0599999999996},{"$f":"IFERROR(VLOOKUP($A166,'[3]TexttoColumn Amazon Balance'!$A$14:$B$30,2,FALSE),IF(AL167>0,AL167-100,0))","v":2483.3200000000002},13021.829999999998,60610.87,650,62,0,0,null,null,null,null,null,{"$f":"IFERROR(VLOOKUP($A166,'[2]export-1'!$A$446:$G$451,7,FALSE),0)","v":0},{"$f":"IFERROR(VLOOKUP($A166,[3]Sheet4!$A$4:$B$56,2,FALSE),0)","v":200},{"$f":"IFERROR(VLOOKUP($A166,'[3]headphones purchased'!$A$2:$G$27,6,FALSE),0)","v":0},{"$f":"ROUND(IFERROR(VLOOKUP($A166,'[4]download-1'!$A$471:$F$474,5,FALSE)/-9.5,0),0)","v":0},{"$f":"ROUND(IFERROR(VLOOKUP($A166,'[4]download-1'!$A$467:$F$469,5,FALSE)/-49,0),0)","v":0},{"$f":"IFERROR(VLOOKUP($A166,[5]Sheet8!$A$4:$B$89,2,FALSE),0)","v":2},null,null,0,{"$f":"IFERROR(VLOOKUP($A166,[3]Paypal!$A$2:$AA$1843,25,FALSE),0)","v":6422.41},{"$f":"IFERROR(VLOOKUP($A166,'[3]Paypal Money Sent Pivot'!$A$4:$B$97,2,FALSE),0)","v":0},{"$f":"$BH166+$BI165-IFERROR(VLOOKUP($A166,[2]Sheet2!$A$4:$B$82,2,FALSE),0)","v":-0.18000000000029104},{"$f":"IFERROR(VLOOKUP($A166,'[3]TexttoColumn Amazon Balance'!$A$14:$B$30,2,FALSE),0)","v":0},{"$f":"$BJ165+$BK165-IFERROR(VLOOKUP($A166,[2]Amazon!$A$2:$F$17,5,FALSE),0)","v":0},{"$f":"IFERROR(VLOOKUP($A166,'[4]Payment Pivot'!$A$4:$B$39,2,FALSE),0)","v":3915.02},{"$f":"$BL166+$BM165-IFERROR(VLOOKUP($A166,'[2]Myaccountaccess Pivot'!$A$4:$B$31,2,FALSE),0)","v":3915.02},null,{"$f":"IFERROR(VLOOKUP($A166,'[6]export-2'!$A$2:$F$15,6,FALSE),BO165)","v":15150.04},1048.9574851648504,{"$f":"OFFSET(A166,0,'Cool Graph'!$H$1)","v":100},{"$f":"OFFSET(A166,0,'Cool Graph'!$I$1)","v":1048.9574851648504}]
["2011-12-13",100,27.26,321.20999999999998,89.740000000000009,34.22,572.43000000000006,0,0,0,12,1,3,0,68.790000000000006,0,1,20.95,1,1,0,0,0,47,47,0,0,48,160,{"$f":"IFERROR(VLOOKUP($A167,[1]Sheet1!$A$4:$B$219,2,FALSE),0)","v":8225},8385,3900.0299999999988,{"$f":"$BH167+$BI166-IFERROR(VLOOKUP($A167,[2]Sheet2!$A$4:$B$82,2,FALSE),0)","v":-0.18000000000029104},{"$f":"$BJ166+$BK166-IFERROR(VLOOKUP($A167,[2]Amazon!$A$2:$F$17,5,FALSE),0)","v":0},{"$f":"$BL167+$BM166-IFERROR(VLOOKUP($A167,'[2]Myaccountaccess Pivot'!$A$4:$B$31,2,FALSE),0)","v":0},{"$f":"IFERROR(VLOOKUP($A167,'[2]export-1'!$A$2:$F$441,6,FALSE),AJ166)","v":3485.2199999999993},{"$f":"IFERROR(VLOOKUP($A167,'[7]download-1'!$A$2:$F$513,6,FALSE),AK166)","v":-508.22000000000048},{"$f":"IFERROR(VLOOKUP($A167,'[3]TexttoColumn Amazon Balance'!$A$14:$B$30,2,FALSE),IF(AL168>0,AL168-100,0))","v":2583.3200000000002},17270.359999999997,64510.9,652,15,0,0,null,null,null,null,null,{"$f":"IFERROR(VLOOKUP($A167,'[2]export-1'!$A$446:$G$451,7,FALSE),0)","v":0},{"$f":"IFERROR(VLOOKUP($A167,[3]Sheet4!$A$4:$B$56,2,FALSE),0)","v":50},{"$f":"IFERROR(VLOOKUP($A167,'[3]headphones purchased'!$A$2:$G$27,6,FALSE),0)","v":0},{"$f":"ROUND(IFERROR(VLOOKUP($A167,'[4]download-1'!$A$471:$F$474,5,FALSE)/-9.5,0),0)","v":0},{"$f":"ROUND(IFERROR(VLOOKUP($A167,'[4]download-1'!$A$467:$F$469,5,FALSE)/-49,0),0)","v":0},{"$f":"IFERROR(VLOOKUP($A167,[5]Sheet8!$A$4:$B$89,2,FALSE),0)","v":1},null,null,1,{"$f":"IFERROR(VLOOKUP($A167,[3]Paypal!$A$2:$AA$1843,25,FALSE),0)","v":11710.22},{"$f":"IFERROR(VLOOKUP($A167,'[3]Paypal Money Sent Pivot'!$A$4:$B$97,2,FALSE),0)","v":0},{"$f":"$BH167+$BI166-IFERROR(VLOOKUP($A167,[2]Sheet2!$A$4:$B$82,2,FALSE),0)","v":-0.18000000000029104},{"$f":"IFERROR(VLOOKUP($A167,'[3]TexttoColumn Amazon Balance'!$A$14:$B$30,2,FALSE),0)","v":0},{"$f":"$BJ166+$BK166-IFERROR(VLOOKUP($A167,[2]Amazon!$A$2:$F$17,5,FALSE),0)","v":0},{"$f":"IFERROR(VLOOKUP($A167,'[4]Payment Pivot'!$A$4:$B$39,2,FALSE),0)","v":0},{"$f":"$BL167+$BM166-IFERROR(VLOOKUP($A167,'[2]Myaccountaccess Pivot'!$A$4:$B$31,2,FALSE),0)","v":0},null,{"$f":"IFERROR(VLOOKUP($A167,'[6]export-2'!$A$2:$F$15,6,FALSE),BO166)","v":15150.04},2978.2331578826843,{"$f":"OFFSET(A167,0,'Cool Graph'!$H$1)","v":100},{"$f":"OFFSET(A167,0,'Cool Graph'!$I$1)","v":2978.2331578826843}]
["2011-12-14",99.74,45.58,354.17,66.570000000000007,27.89,593.95000000000005,0,0,0,8,0,3,0,49.010000000000005,0,1,17.559999999999999,0,3,0,0,0,22,22,0,0,25,480,{"$f":"IFERROR(VLOOKUP($A168,[1]Sheet1!$A$4:$B$219,2,FALSE),0)","v":3850},4330,-1460.0900000000038,{"$f":"$BH168+$BI167-IFERROR(VLOOKUP($A168,[2]Sheet2!$A$4:$B$82,2,FALSE),0)","v":-0.18000000000029104},{"$f":"$BJ167+$BK167-IFERROR(VLOOKUP($A168,[2]Amazon!$A$2:$F$17,5,FALSE),0)","v":0},{"$f":"$BL168+$BM167-IFERROR(VLOOKUP($A168,'[2]Myaccountaccess Pivot'!$A$4:$B$31,2,FALSE),0)","v":0},{"$f":"IFERROR(VLOOKUP($A168,'[2]export-1'!$A$2:$F$441,6,FALSE),AJ167)","v":3454.9799999999996},{"$f":"IFERROR(VLOOKUP($A168,'[7]download-1'!$A$2:$F$513,6,FALSE),AK167)","v":-2493.8100000000004},{"$f":"IFERROR(VLOOKUP($A168,'[3]TexttoColumn Amazon Balance'!$A$14:$B$30,2,FALSE),IF(AL169>0,AL169-100,0))","v":2683.32},9189.2699999999986,63050.81,753,191,0,0,null,null,null,null,null,{"$f":"IFERROR(VLOOKUP($A168,'[2]export-1'!$A$446:$G$451,7,FALSE),0)","v":0},{"$f":"IFERROR(VLOOKUP($A168,[3]Sheet4!$A$4:$B$56,2,FALSE),0)","v":126},{"$f":"IFERROR(VLOOKUP($A168,'[3]headphones purchased'!$A$2:$G$27,6,FALSE),0)","v":198},{"$f":"ROUND(IFERROR(VLOOKUP($A168,'[4]download-1'!$A$471:$F$474,5,FALSE)/-9.5,0),0)","v":0},{"$f":"ROUND(IFERROR(VLOOKUP($A168,'[4]download-1'!$A$467:$F$469,5,FALSE)/-49,0),0)","v":0},{"$f":"IFERROR(VLOOKUP($A168,[5]Sheet8!$A$4:$B$89,2,FALSE),0)","v":0},null,null,0,{"$f":"IFERROR(VLOOKUP($A168,[3]Paypal!$A$2:$AA$1843,25,FALSE),0)","v":5544.96},{"$f":"IFERROR(VLOOKUP($A168,'[3]Paypal Money Sent Pivot'!$A$4:$B$97,2,FALSE),0)","v":0},{"$f":"$BH168+$BI167-IFERROR(VLOOKUP($A168,[2]Sheet2!$A$4:$B$82,2,FALSE),0)","v":-0.18000000000029104},{"$f":"IFERROR(VLOOKUP($A168,'[3]TexttoColumn Amazon Balance'!$A$14:$B$30,2,FALSE),0)","v":0},{"$f":"$BJ167+$BK167-IFERROR(VLOOKUP($A168,[2]Amazon!$A$2:$F$17,5,FALSE),0)","v":0},{"$f":"IFERROR(VLOOKUP($A168,'[4]Payment Pivot'!$A$4:$B$39,2,FALSE),0)","v":0},{"$f":"$BL168+$BM167-IFERROR(VLOOKUP($A168,'[2]Myaccountaccess Pivot'!$A$4:$B$31,2,FALSE),0)","v":0},null,{"$f":"IFERROR(VLOOKUP($A168,'[6]export-2'!$A$2:$F$15,6,FALSE),BO167)","v":15150.04},1239.606526372334,{"$f":"OFFSET(A168,0,'Cool Graph'!$H$1)","v":99.74},{"$f":"OFFSET(A168,0,'Cool Graph'!$I$1)","v":1239.606526372334}]
["2011-12-15",31.18,15.3,376.27,62.96,33.840000000000003,519.54999999999995,0,0,0,10,1,5,0,45.06,0,1,17.899999999999999,1,2,0,0,0,37,37,0,0,39,320,{"$f":"IFERROR(VLOOKUP($A169,[1]Sheet1!$A$4:$B$219,2,FALSE),0)","v":6475},6795,3355.7099999999919,{"$f":"$BH169+$BI168-IFERROR(VLOOKUP($A169,[2]Sheet2!$A$4:$B$82,2,FALSE),0)","v":5999.82},{"$f":"$BJ168+$BK168-IFERROR(VLOOKUP($A169,[2]Amazon!$A$2:$F$17,5,FALSE),0)","v":0},{"$f":"$BL169+$BM168-IFERROR(VLOOKUP($A169,'[2]Myaccountaccess Pivot'!$A$4:$B$31,2,FALSE),0)","v":508.22},{"$f":"IFERROR(VLOOKUP($A169,'[2]export-1'!$A$2:$F$441,6,FALSE),AJ168)","v":3358.0899999999992},{"$f":"IFERROR(VLOOKUP($A169,'[7]download-1'!$A$2:$F$513,6,FALSE),AK168)","v":-2655.4500000000007},{"$f":"IFERROR(VLOOKUP($A169,'[3]TexttoColumn Amazon Balance'!$A$14:$B$30,2,FALSE),IF(AL170>0,AL170-100,0))","v":2783.32},10348.479999999998,66406.51999999999,805,154,0,0,null,null,null,null,null,{"$f":"IFERROR(VLOOKUP($A169,'[2]export-1'!$A$446:$G$451,7,FALSE),0)","v":0},{"$f":"IFERROR(VLOOKUP($A169,[3]Sheet4!$A$4:$B$56,2,FALSE),0)","v":91},{"$f":"IFERROR(VLOOKUP($A169,'[3]headphones purchased'!$A$2:$G$27,6,FALSE),0)","v":0},{"$f":"ROUND(IFERROR(VLOOKUP($A169,'[4]download-1'!$A$471:$F$474,5,FALSE)/-9.5,0),0)","v":0},{"$f":"ROUND(IFERROR(VLOOKUP($A169,'[4]download-1'!$A$467:$F$469,5,FALSE)/-49,0),0)","v":0},{"$f":"IFERROR(VLOOKUP($A169,[5]Sheet8!$A$4:$B$89,2,FALSE),0)","v":1},null,null,1,{"$f":"IFERROR(VLOOKUP($A169,[3]Paypal!$A$2:$AA$1843,25,FALSE),0)","v":1370.92},{"$f":"IFERROR(VLOOKUP($A169,'[3]Paypal Money Sent Pivot'!$A$4:$B$97,2,FALSE),0)","v":6000},{"$f":"$BH169+$BI168-IFERROR(VLOOKUP($A169,[2]Sheet2!$A$4:$B$82,2,FALSE),0)","v":5999.82},{"$f":"IFERROR(VLOOKUP($A169,'[3]TexttoColumn Amazon Balance'!$A$14:$B$30,2,FALSE),0)","v":0},{"$f":"$BJ168+$BK168-IFERROR(VLOOKUP($A169,[2]Amazon!$A$2:$F$17,5,FALSE),0)","v":0},{"$f":"IFERROR(VLOOKUP($A169,'[4]Payment Pivot'!$A$4:$B$39,2,FALSE),0)","v":508.22},{"$f":"$BL169+$BM168-IFERROR(VLOOKUP($A169,'[2]Myaccountaccess Pivot'!$A$4:$B$31,2,FALSE),0)","v":508.22},null,{"$f":"IFERROR(VLOOKUP($A169,'[6]export-2'!$A$2:$F$15,6,FALSE),BO168)","v":15150.04},2357.8210384988479,{"$f":"OFFSET(A169,0,'Cool Graph'!$H$1)","v":31.18},{"$f":"OFFSET(A169,0,'Cool Graph'!$I$1)","v":2357.8210384988479}]
["2011-12-16",30.43,19.84,279.43,38.9,18.149999999999999,386.74999999999994,0,0,0,8,0,0,0,25.369999999999997,0,0,13.53,0,0,0,0,0,15,15,0,0,15,0,{"$f":"IFERROR(VLOOKUP($A170,[1]Sheet1!$A$4:$B$219,2,FALSE),0)","v":2765},2765,967.94000000000233,{"$f":"$BH170+$BI169-IFERROR(VLOOKUP($A170,[2]Sheet2!$A$4:$B$82,2,FALSE),0)","v":5999.82},{"$f":"$BJ169+$BK169-IFERROR(VLOOKUP($A170,[2]Amazon!$A$2:$F$17,5,FALSE),0)","v":0},{"$f":"$BL170+$BM169-IFERROR(VLOOKUP($A170,'[2]Myaccountaccess Pivot'!$A$4:$B$31,2,FALSE),0)","v":0},{"$f":"IFERROR(VLOOKUP($A170,'[2]export-1'!$A$2:$F$441,6,FALSE),AJ169)","v":2391.0999999999995},{"$f":"IFERROR(VLOOKUP($A170,'[7]download-1'!$A$2:$F$513,6,FALSE),AK169)","v":-3255.4500000000007},{"$f":"IFERROR(VLOOKUP($A170,'[3]TexttoColumn Amazon Balance'!$A$14:$B$30,2,FALSE),IF(AL171>0,AL171-100,0))","v":2883.32},11703.919999999998,67374.459999999992,800,139,0,0,null,null,null,null,null,{"$f":"IFERROR(VLOOKUP($A170,'[2]export-1'!$A$446:$G$451,7,FALSE),0)","v":0},{"$f":"IFERROR(VLOOKUP($A170,[3]Sheet4!$A$4:$B$56,2,FALSE),0)","v":10},{"$f":"IFERROR(VLOOKUP($A170,'[3]headphones purchased'!$A$2:$G$27,6,FALSE),0)","v":0},{"$f":"ROUND(IFERROR(VLOOKUP($A170,'[4]download-1'!$A$471:$F$474,5,FALSE)/-9.5,0),0)","v":0},{"$f":"ROUND(IFERROR(VLOOKUP($A170,'[4]download-1'!$A$467:$F$469,5,FALSE)/-49,0),0)","v":0},{"$f":"IFERROR(VLOOKUP($A170,[5]Sheet8!$A$4:$B$89,2,FALSE),0)","v":0},null,null,0,{"$f":"IFERROR(VLOOKUP($A170,[3]Paypal!$A$2:$AA$1843,25,FALSE),0)","v":3685.13},{"$f":"IFERROR(VLOOKUP($A170,'[3]Paypal Money Sent Pivot'!$A$4:$B$97,2,FALSE),0)","v":0},{"$f":"$BH170+$BI169-IFERROR(VLOOKUP($A170,[2]Sheet2!$A$4:$B$82,2,FALSE),0)","v":5999.82},{"$f":"IFERROR(VLOOKUP($A170,'[3]TexttoColumn Amazon Balance'!$A$14:$B$30,2,FALSE),0)","v":0},{"$f":"$BJ169+$BK169-IFERROR(VLOOKUP($A170,[2]Amazon!$A$2:$F$17,5,FALSE),0)","v":0},{"$f":"IFERROR(VLOOKUP($A170,'[4]Payment Pivot'!$A$4:$B$39,2,FALSE),0)","v":0},{"$f":"$BL170+$BM169-IFERROR(VLOOKUP($A170,'[2]Myaccountaccess Pivot'!$A$4:$B$31,2,FALSE),0)","v":0},null,{"$f":"IFERROR(VLOOKUP($A170,'[6]export-2'!$A$2:$F$15,6,FALSE),BO169)","v":15150.04},784.10076106686006,{"$f":"OFFSET(A170,0,'Cool Graph'!$H$1)","v":30.43},{"$f":"OFFSET(A170,0,'Cool Graph'!$I$1)","v":784.10076106686006}]
["2011-12-17",61.98,20.91,265.94,41.150000000000006,17.95,407.93,0,0,0,5,0,1,0,28.19,0,1,12.96,0,2,0,0,0,8,8,0,0,10,320,{"$f":"IFERROR(VLOOKUP($A171,[1]Sheet1!$A$4:$B$219,2,FALSE),0)","v":1460},1780,1113.1300000000047,{"$f":"$BH171+$BI170-IFERROR(VLOOKUP($A171,[2]Sheet2!$A$4:$B$82,2,FALSE),0)","v":5999.82},{"$f":"$BJ170+$BK170-IFERROR(VLOOKUP($A171,[2]Amazon!$A$2:$F$17,5,FALSE),0)","v":0},{"$f":"$BL171+$BM170-IFERROR(VLOOKUP($A171,'[2]Myaccountaccess Pivot'!$A$4:$B$31,2,FALSE),0)","v":0},{"$f":"IFERROR(VLOOKUP($A171,'[2]export-1'!$A$2:$F$441,6,FALSE),AJ170)","v":2391.0999999999995},{"$f":"IFERROR(VLOOKUP($A171,'[7]download-1'!$A$2:$F$513,6,FALSE),AK170)","v":-3255.4500000000007},{"$f":"IFERROR(VLOOKUP($A171,'[3]TexttoColumn Amazon Balance'!$A$14:$B$30,2,FALSE),IF(AL172>0,AL172-100,0))","v":2983.32},13481.05,68487.59,788,131,0,0,null,null,null,null,null,{"$f":"IFERROR(VLOOKUP($A171,'[2]export-1'!$A$446:$G$451,7,FALSE),0)","v":0},{"$f":"IFERROR(VLOOKUP($A171,[3]Sheet4!$A$4:$B$56,2,FALSE),0)","v":0},{"$f":"IFERROR(VLOOKUP($A171,'[3]headphones purchased'!$A$2:$G$27,6,FALSE),0)","v":0},{"$f":"ROUND(IFERROR(VLOOKUP($A171,'[4]download-1'!$A$471:$F$474,5,FALSE)/-9.5,0),0)","v":0},{"$f":"ROUND(IFERROR(VLOOKUP($A171,'[4]download-1'!$A$467:$F$469,5,FALSE)/-49,0),0)","v":0},{"$f":"IFERROR(VLOOKUP($A171,[5]Sheet8!$A$4:$B$89,2,FALSE),0)","v":3},null,null,1,{"$f":"IFERROR(VLOOKUP($A171,[3]Paypal!$A$2:$AA$1843,25,FALSE),0)","v":5362.26},{"$f":"IFERROR(VLOOKUP($A171,'[3]Paypal Money Sent Pivot'!$A$4:$B$97,2,FALSE),0)","v":0},{"$f":"$BH171+$BI170-IFERROR(VLOOKUP($A171,[2]Sheet2!$A$4:$B$82,2,FALSE),0)","v":5999.82},{"$f":"IFERROR(VLOOKUP($A171,'[3]TexttoColumn Amazon Balance'!$A$14:$B$30,2,FALSE),0)","v":2983.32},{"$f":"$BJ170+$BK170-IFERROR(VLOOKUP($A171,[2]Amazon!$A$2:$F$17,5,FALSE),0)","v":0},{"$f":"IFERROR(VLOOKUP($A171,'[4]Payment Pivot'!$A$4:$B$39,2,FALSE),0)","v":0},{"$f":"$BL171+$BM170-IFERROR(VLOOKUP($A171,'[2]Myaccountaccess Pivot'!$A$4:$B$31,2,FALSE),0)","v":0},null,{"$f":"IFERROR(VLOOKUP($A171,'[6]export-2'!$A$2:$F$15,6,FALSE),BO170)","v":15150.04},345.81841037938904,{"$f":"OFFSET(A171,0,'Cool Graph'!$H$1)","v":61.98},{"$f":"OFFSET(A171,0,'Cool Graph'!$I$1)","v":345.81841037938904}]
["2011-12-18",2.63,22.13,307.87,57.94,16.14,406.71,0,0,0,4,1,0,0,42.16,1,0,15.780000000000001,0,0,0,0,0,12,12,0,0,12,0,{"$f":"IFERROR(VLOOKUP($A172,[1]Sheet1!$A$4:$B$219,2,FALSE),0)","v":2460},2460,1852.6199999999953,{"$f":"$BH172+$BI171-IFERROR(VLOOKUP($A172,[2]Sheet2!$A$4:$B$82,2,FALSE),0)","v":5999.82},{"$f":"$BJ171+$BK171-IFERROR(VLOOKUP($A172,[2]Amazon!$A$2:$F$17,5,FALSE),0)","v":2983.32},{"$f":"$BL172+$BM171-IFERROR(VLOOKUP($A172,'[2]Myaccountaccess Pivot'!$A$4:$B$31,2,FALSE),0)","v":0},{"$f":"IFERROR(VLOOKUP($A172,'[2]export-1'!$A$2:$F$441,6,FALSE),AJ171)","v":2391.0999999999995},{"$f":"IFERROR(VLOOKUP($A172,'[7]download-1'!$A$2:$F$513,6,FALSE),AK171)","v":-3255.4500000000007},{"$f":"IFERROR(VLOOKUP($A172,'[3]TexttoColumn Amazon Balance'!$A$14:$B$30,2,FALSE),IF(AL173>0,AL173-200,0))","v":0},16035.669999999998,70340.209999999992,776,119,0,0,null,null,null,null,null,{"$f":"IFERROR(VLOOKUP($A172,'[2]export-1'!$A$446:$G$451,7,FALSE),0)","v":0},{"$f":"IFERROR(VLOOKUP($A172,[3]Sheet4!$A$4:$B$56,2,FALSE),0)","v":0},{"$f":"IFERROR(VLOOKUP($A172,'[3]headphones purchased'!$A$2:$G$27,6,FALSE),0)","v":0},{"$f":"ROUND(IFERROR(VLOOKUP($A172,'[4]download-1'!$A$471:$F$474,5,FALSE)/-9.5,0),0)","v":0},{"$f":"ROUND(IFERROR(VLOOKUP($A172,'[4]download-1'!$A$467:$F$469,5,FALSE)/-49,0),0)","v":0},{"$f":"IFERROR(VLOOKUP($A172,[5]Sheet8!$A$4:$B$89,2,FALSE),0)","v":0},null,null,0,{"$f":"IFERROR(VLOOKUP($A172,[3]Paypal!$A$2:$AA$1843,25,FALSE),0)","v":7916.88},{"$f":"IFERROR(VLOOKUP($A172,'[3]Paypal Money Sent Pivot'!$A$4:$B$97,2,FALSE),0)","v":0},{"$f":"$BH172+$BI171-IFERROR(VLOOKUP($A172,[2]Sheet2!$A$4:$B$82,2,FALSE),0)","v":5999.82},{"$f":"IFERROR(VLOOKUP($A172,'[3]TexttoColumn Amazon Balance'!$A$14:$B$30,2,FALSE),0)","v":0},{"$f":"$BJ171+$BK171-IFERROR(VLOOKUP($A172,[2]Amazon!$A$2:$F$17,5,FALSE),0)","v":2983.32},{"$f":"IFERROR(VLOOKUP($A172,'[4]Payment Pivot'!$A$4:$B$39,2,FALSE),0)","v":0},{"$f":"$BL172+$BM171-IFERROR(VLOOKUP($A172,'[2]Myaccountaccess Pivot'!$A$4:$B$31,2,FALSE),0)","v":0},null,{"$f":"IFERROR(VLOOKUP($A172,'[6]export-2'!$A$2:$F$15,6,FALSE),BO171)","v":15150.04},634.987241310841,{"$f":"OFFSET(A172,0,'Cool Graph'!$H$1)","v":2.63},{"$f":"OFFSET(A172,0,'Cool Graph'!$I$1)","v":634.987241310841}]
["2011-12-19",0,34.78,291.06000000000006,62.440000000000005,20.91,409.19000000000005,0,0,0,2,0,0,0,43.970000000000006,0,0,18.47,0,0,0,0,0,20,20,0,0,20,0,{"$f":"IFERROR(VLOOKUP($A173,[1]Sheet1!$A$4:$B$219,2,FALSE),0)","v":4160},4160,1414.7700000000186,{"$f":"$BH173+$BI172-IFERROR(VLOOKUP($A173,[2]Sheet2!$A$4:$B$82,2,FALSE),0)","v":9999.82},{"$f":"$BJ172+$BK172-IFERROR(VLOOKUP($A173,[2]Amazon!$A$2:$F$17,5,FALSE),0)","v":2983.32},{"$f":"$BL173+$BM172-IFERROR(VLOOKUP($A173,'[2]Myaccountaccess Pivot'!$A$4:$B$31,2,FALSE),0)","v":0},{"$f":"IFERROR(VLOOKUP($A173,'[2]export-1'!$A$2:$F$441,6,FALSE),AJ172)","v":8361.0199999999986},{"$f":"IFERROR(VLOOKUP($A173,'[7]download-1'!$A$2:$F$513,6,FALSE),AK172)","v":-4498.7700000000004},{"$f":"IFERROR(VLOOKUP($A173,'[3]TexttoColumn Amazon Balance'!$A$14:$B$30,2,FALSE),IF(AL174>0,AL174-200,0))","v":0},18179.439999999999,71754.98000000001,765,99,0,0,null,null,null,null,null,{"$f":"IFERROR(VLOOKUP($A173,'[2]export-1'!$A$446:$G$451,7,FALSE),0)","v":0},{"$f":"IFERROR(VLOOKUP($A173,[3]Sheet4!$A$4:$B$56,2,FALSE),0)","v":10},{"$f":"IFERROR(VLOOKUP($A173,'[3]headphones purchased'!$A$2:$G$27,6,FALSE),0)","v":0},{"$f":"ROUND(IFERROR(VLOOKUP($A173,'[4]download-1'!$A$471:$F$474,5,FALSE)/-9.5,0),0)","v":0},{"$f":"ROUND(IFERROR(VLOOKUP($A173,'[4]download-1'!$A$467:$F$469,5,FALSE)/-49,0),0)","v":0},{"$f":"IFERROR(VLOOKUP($A173,[5]Sheet8!$A$4:$B$89,2,FALSE),0)","v":2},null,null,1,{"$f":"IFERROR(VLOOKUP($A173,[3]Paypal!$A$2:$AA$1843,25,FALSE),0)","v":1334.05},{"$f":"IFERROR(VLOOKUP($A173,'[3]Paypal Money Sent Pivot'!$A$4:$B$97,2,FALSE),0)","v":10000},{"$f":"$BH173+$BI172-IFERROR(VLOOKUP($A173,[2]Sheet2!$A$4:$B$82,2,FALSE),0)","v":9999.82},{"$f":"IFERROR(VLOOKUP($A173,'[3]TexttoColumn Amazon Balance'!$A$14:$B$30,2,FALSE),0)","v":0},{"$f":"$BJ172+$BK172-IFERROR(VLOOKUP($A173,[2]Amazon!$A$2:$F$17,5,FALSE),0)","v":2983.32},{"$f":"IFERROR(VLOOKUP($A173,'[4]Payment Pivot'!$A$4:$B$39,2,FALSE),0)","v":0},{"$f":"$BL173+$BM172-IFERROR(VLOOKUP($A173,'[2]Myaccountaccess Pivot'!$A$4:$B$31,2,FALSE),0)","v":0},null,{"$f":"IFERROR(VLOOKUP($A173,'[6]export-2'!$A$2:$F$15,6,FALSE),BO172)","v":15150.04},1352.379318639471,{"$f":"OFFSET(A173,0,'Cool Graph'!$H$1)","v":0},{"$f":"OFFSET(A173,0,'Cool Graph'!$I$1)","v":1352.379318639471}]
["2011-12-20",0,25.34,316.42,56.47,24.3,422.53000000000003,0,0,0,2,0,0,0,41.239999999999995,0,0,15.23,0,0,0,0,0,5,5,0,0,5,0,{"$f":"IFERROR(VLOOKUP($A174,[1]Sheet1!$A$4:$B$219,2,FALSE),0)","v":935},935,-565.97000000000116,{"$f":"$BH174+$BI173-IFERROR(VLOOKUP($A174,[2]Sheet2!$A$4:$B$82,2,FALSE),0)","v":9999.82},{"$f":"$BJ173+$BK173-IFERROR(VLOOKUP($A174,[2]Amazon!$A$2:$F$17,5,FALSE),0)","v":0},{"$f":"$BL174+$BM173-IFERROR(VLOOKUP($A174,'[2]Myaccountaccess Pivot'!$A$4:$B$31,2,FALSE),0)","v":3255.45},{"$f":"IFERROR(VLOOKUP($A174,'[2]export-1'!$A$2:$F$441,6,FALSE),AJ173)","v":11127.049999999997},{"$f":"IFERROR(VLOOKUP($A174,'[7]download-1'!$A$2:$F$513,6,FALSE),AK173)","v":-1901.3400000000001},{"$f":"IFERROR(VLOOKUP($A174,'[3]TexttoColumn Amazon Balance'!$A$14:$B$30,2,FALSE),IF(AL175>0,AL175-200,0))","v":0},17954.969999999998,71189.010000000009,759,94,0,0,null,null,null,null,null,{"$f":"IFERROR(VLOOKUP($A174,'[2]export-1'!$A$446:$G$451,7,FALSE),0)","v":0},{"$f":"IFERROR(VLOOKUP($A174,[3]Sheet4!$A$4:$B$56,2,FALSE),0)","v":0},{"$f":"IFERROR(VLOOKUP($A174,'[3]headphones purchased'!$A$2:$G$27,6,FALSE),0)","v":0},{"$f":"ROUND(IFERROR(VLOOKUP($A174,'[4]download-1'!$A$471:$F$474,5,FALSE)/-9.5,0),0)","v":0},{"$f":"ROUND(IFERROR(VLOOKUP($A174,'[4]download-1'!$A$467:$F$469,5,FALSE)/-49,0),0)","v":0},{"$f":"IFERROR(VLOOKUP($A174,[5]Sheet8!$A$4:$B$89,2,FALSE),0)","v":1},null,null,0,{"$f":"IFERROR(VLOOKUP($A174,[3]Paypal!$A$2:$AA$1843,25,FALSE),0)","v":1984.89},{"$f":"IFERROR(VLOOKUP($A174,'[3]Paypal Money Sent Pivot'!$A$4:$B$97,2,FALSE),0)","v":0},{"$f":"$BH174+$BI173-IFERROR(VLOOKUP($A174,[2]Sheet2!$A$4:$B$82,2,FALSE),0)","v":9999.82},{"$f":"IFERROR(VLOOKUP($A174,'[3]TexttoColumn Amazon Balance'!$A$14:$B$30,2,FALSE),0)","v":0},{"$f":"$BJ173+$BK173-IFERROR(VLOOKUP($A174,[2]Amazon!$A$2:$F$17,5,FALSE),0)","v":0},{"$f":"IFERROR(VLOOKUP($A174,'[4]Payment Pivot'!$A$4:$B$39,2,FALSE),0)","v":3255.45},{"$f":"$BL174+$BM173-IFERROR(VLOOKUP($A174,'[2]Myaccountaccess Pivot'!$A$4:$B$31,2,FALSE),0)","v":3255.45},null,{"$f":"IFERROR(VLOOKUP($A174,'[6]export-2'!$A$2:$F$15,6,FALSE),BO173)","v":15150.04},-26.600357469253538,{"$f":"OFFSET(A174,0,'Cool Graph'!$H$1)","v":0},{"$f":"OFFSET(A174,0,'Cool Graph'!$I$1)","v":-26.600357469253538}]
["2011-12-21",0,19.12,235.74,74.760000000000005,18.12,347.74,0,0,0,0,0,0,0,54.86,0,0,19.899999999999999,0,1,0,0,0,8,8,0,0,9,160,{"$f":"IFERROR(VLOOKUP($A175,[1]Sheet1!$A$4:$B$219,2,FALSE),0)","v":1460},1620,-628.39000000001397,{"$f":"$BH175+$BI174-IFERROR(VLOOKUP($A175,[2]Sheet2!$A$4:$B$82,2,FALSE),0)","v":2551.83},{"$f":"$BJ174+$BK174-IFERROR(VLOOKUP($A175,[2]Amazon!$A$2:$F$17,5,FALSE),0)","v":0},{"$f":"$BL175+$BM174-IFERROR(VLOOKUP($A175,'[2]Myaccountaccess Pivot'!$A$4:$B$31,2,FALSE),0)","v":0},{"$f":"IFERROR(VLOOKUP($A175,'[2]export-1'!$A$2:$F$441,6,FALSE),AJ174)","v":17138.919999999995},{"$f":"IFERROR(VLOOKUP($A175,'[7]download-1'!$A$2:$F$513,6,FALSE),AK174)","v":-2401.34},{"$f":"IFERROR(VLOOKUP($A175,'[3]TexttoColumn Amazon Balance'!$A$14:$B$30,2,FALSE),IF(AL176>0,AL176-200,0))","v":-3.6900000000000546},17794.579999999994,70560.62,751,86,0,0,null,null,null,null,null,{"$f":"IFERROR(VLOOKUP($A175,'[2]export-1'!$A$446:$G$451,7,FALSE),0)","v":0},{"$f":"IFERROR(VLOOKUP($A175,[3]Sheet4!$A$4:$B$56,2,FALSE),0)","v":0},{"$f":"IFERROR(VLOOKUP($A175,'[3]headphones purchased'!$A$2:$G$27,6,FALSE),0)","v":0},{"$f":"ROUND(IFERROR(VLOOKUP($A175,'[4]download-1'!$A$471:$F$474,5,FALSE)/-9.5,0),0)","v":0},{"$f":"ROUND(IFERROR(VLOOKUP($A175,'[4]download-1'!$A$467:$F$469,5,FALSE)/-49,0),0)","v":0},{"$f":"IFERROR(VLOOKUP($A175,[5]Sheet8!$A$4:$B$89,2,FALSE),0)","v":0},null,null,1,{"$f":"IFERROR(VLOOKUP($A175,[3]Paypal!$A$2:$AA$1843,25,FALSE),0)","v":508.86},{"$f":"IFERROR(VLOOKUP($A175,'[3]Paypal Money Sent Pivot'!$A$4:$B$97,2,FALSE),0)","v":2552.0100000000002},{"$f":"$BH175+$BI174-IFERROR(VLOOKUP($A175,[2]Sheet2!$A$4:$B$82,2,FALSE),0)","v":2551.83},{"$f":"IFERROR(VLOOKUP($A175,'[3]TexttoColumn Amazon Balance'!$A$14:$B$30,2,FALSE),0)","v":0},{"$f":"$BJ174+$BK174-IFERROR(VLOOKUP($A175,[2]Amazon!$A$2:$F$17,5,FALSE),0)","v":0},{"$f":"IFERROR(VLOOKUP($A175,'[4]Payment Pivot'!$A$4:$B$39,2,FALSE),0)","v":0},{"$f":"$BL175+$BM174-IFERROR(VLOOKUP($A175,'[2]Myaccountaccess Pivot'!$A$4:$B$31,2,FALSE),0)","v":0},null,{"$f":"IFERROR(VLOOKUP($A175,'[6]export-2'!$A$2:$F$15,6,FALSE),BO174)","v":15150.04},338.25574427787092,{"$f":"OFFSET(A175,0,'Cool Graph'!$H$1)","v":0},{"$f":"OFFSET(A175,0,'Cool Graph'!$I$1)","v":338.25574427787092}]
["2011-12-22",0,20.58,220.1,57.550000000000004,20.13,318.36,0,0,0,0,0,0,0,44.800000000000004,0,0,12.75,0,2,1,0,0,4,4,0,0,6,340,{"$f":"IFERROR(VLOOKUP($A176,[1]Sheet1!$A$4:$B$219,2,FALSE),0)","v":700},1040,-430.76000000000931,{"$f":"$BH176+$BI175-IFERROR(VLOOKUP($A176,[2]Sheet2!$A$4:$B$82,2,FALSE),0)","v":2551.83},{"$f":"$BJ175+$BK175-IFERROR(VLOOKUP($A176,[2]Amazon!$A$2:$F$17,5,FALSE),0)","v":0},{"$f":"$BL176+$BM175-IFERROR(VLOOKUP($A176,'[2]Myaccountaccess Pivot'!$A$4:$B$31,2,FALSE),0)","v":0},{"$f":"IFERROR(VLOOKUP($A176,'[2]export-1'!$A$2:$F$441,6,FALSE),AJ175)","v":7003.3999999999942},{"$f":"IFERROR(VLOOKUP($A176,'[7]download-1'!$A$2:$F$513,6,FALSE),AK175)","v":-2662.88},{"$f":"IFERROR(VLOOKUP($A176,'[3]TexttoColumn Amazon Balance'!$A$14:$B$30,2,FALSE),IF(AL177>0,AL177-200,0))","v":196.30999999999995},7852.3199999999943,70129.859999999986,742,81,0,0,null,null,null,null,null,{"$f":"IFERROR(VLOOKUP($A176,'[2]export-1'!$A$446:$G$451,7,FALSE),0)","v":0},{"$f":"IFERROR(VLOOKUP($A176,[3]Sheet4!$A$4:$B$56,2,FALSE),0)","v":0},{"$f":"IFERROR(VLOOKUP($A176,'[3]headphones purchased'!$A$2:$G$27,6,FALSE),0)","v":0},{"$f":"ROUND(IFERROR(VLOOKUP($A176,'[4]download-1'!$A$471:$F$474,5,FALSE)/-9.5,0),0)","v":0},{"$f":"ROUND(IFERROR(VLOOKUP($A176,'[4]download-1'!$A$467:$F$469,5,FALSE)/-49,0),0)","v":0},{"$f":"IFERROR(VLOOKUP($A176,[5]Sheet8!$A$4:$B$89,2,FALSE),0)","v":3},null,null,0,{"$f":"IFERROR(VLOOKUP($A176,[3]Paypal!$A$2:$AA$1843,25,FALSE),0)","v":763.66},{"$f":"IFERROR(VLOOKUP($A176,'[3]Paypal Money Sent Pivot'!$A$4:$B$97,2,FALSE),0)","v":0},{"$f":"$BH176+$BI175-IFERROR(VLOOKUP($A176,[2]Sheet2!$A$4:$B$82,2,FALSE),0)","v":2551.83},{"$f":"IFERROR(VLOOKUP($A176,'[3]TexttoColumn Amazon Balance'!$A$14:$B$30,2,FALSE),0)","v":0},{"$f":"$BJ175+$BK175-IFERROR(VLOOKUP($A176,[2]Amazon!$A$2:$F$17,5,FALSE),0)","v":0},{"$f":"IFERROR(VLOOKUP($A176,'[4]Payment Pivot'!$A$4:$B$39,2,FALSE),0)","v":0},{"$f":"$BL176+$BM175-IFERROR(VLOOKUP($A176,'[2]Myaccountaccess Pivot'!$A$4:$B$31,2,FALSE),0)","v":0},null,{"$f":"IFERROR(VLOOKUP($A176,'[6]export-2'!$A$2:$F$15,6,FALSE),BO175)","v":25150.04},122.03232965986774,{"$f":"OFFSET(A176,0,'Cool Graph'!$H$1)","v":0},{"$f":"OFFSET(A176,0,'Cool Graph'!$I$1)","v":122.03232965986774}]
["2011-12-23",0,9.91,197.39,48.83,13.55,269.68,0,0,0,4,0,2,0,36.72,0,0,12.11,0,0,0,0,0,8,8,0,0,8,0,{"$f":"IFERROR(VLOOKUP($A177,[1]Sheet1!$A$4:$B$219,2,FALSE),0)","v":1400},1400,-1336.6899999999878,{"$f":"$BH177+$BI176-IFERROR(VLOOKUP($A177,[2]Sheet2!$A$4:$B$82,2,FALSE),0)","v":-0.18000000000029104},{"$f":"$BJ176+$BK176-IFERROR(VLOOKUP($A177,[2]Amazon!$A$2:$F$17,5,FALSE),0)","v":0},{"$f":"$BL177+$BM176-IFERROR(VLOOKUP($A177,'[2]Myaccountaccess Pivot'!$A$4:$B$31,2,FALSE),0)","v":0},{"$f":"IFERROR(VLOOKUP($A177,'[2]export-1'!$A$2:$F$441,6,FALSE),AJ176)","v":7790.4099999999944},{"$f":"IFERROR(VLOOKUP($A177,'[7]download-1'!$A$2:$F$513,6,FALSE),AK176)","v":-3360.87},{"$f":"IFERROR(VLOOKUP($A177,'[3]TexttoColumn Amazon Balance'!$A$14:$B$30,2,FALSE),IF(AL178>0,AL178-200,0))","v":396.30999999999995},6934.6299999999947,68793.17,735,73,0,0,null,null,null,null,null,{"$f":"IFERROR(VLOOKUP($A177,'[2]export-1'!$A$446:$G$451,7,FALSE),0)","v":0},{"$f":"IFERROR(VLOOKUP($A177,[3]Sheet4!$A$4:$B$56,2,FALSE),0)","v":0},{"$f":"IFERROR(VLOOKUP($A177,'[3]headphones purchased'!$A$2:$G$27,6,FALSE),0)","v":0},{"$f":"ROUND(IFERROR(VLOOKUP($A177,'[4]download-1'!$A$471:$F$474,5,FALSE)/-9.5,0),0)","v":0},{"$f":"ROUND(IFERROR(VLOOKUP($A177,'[4]download-1'!$A$467:$F$469,5,FALSE)/-49,0),0)","v":0},{"$f":"IFERROR(VLOOKUP($A177,[5]Sheet8!$A$4:$B$89,2,FALSE),0)","v":0},null,null,1,{"$f":"IFERROR(VLOOKUP($A177,[3]Paypal!$A$2:$AA$1843,25,FALSE),0)","v":2108.96},{"$f":"IFERROR(VLOOKUP($A177,'[3]Paypal Money Sent Pivot'!$A$4:$B$97,2,FALSE),0)","v":0},{"$f":"$BH177+$BI176-IFERROR(VLOOKUP($A177,[2]Sheet2!$A$4:$B$82,2,FALSE),0)","v":-0.18000000000029104},{"$f":"IFERROR(VLOOKUP($A177,'[3]TexttoColumn Amazon Balance'!$A$14:$B$30,2,FALSE),0)","v":0},{"$f":"$BJ176+$BK176-IFERROR(VLOOKUP($A177,[2]Amazon!$A$2:$F$17,5,FALSE),0)","v":0},{"$f":"IFERROR(VLOOKUP($A177,'[4]Payment Pivot'!$A$4:$B$39,2,FALSE),0)","v":0},{"$f":"$BL177+$BM176-IFERROR(VLOOKUP($A177,'[2]Myaccountaccess Pivot'!$A$4:$B$31,2,FALSE),0)","v":0},null,{"$f":"IFERROR(VLOOKUP($A177,'[6]export-2'!$A$2:$F$15,6,FALSE),BO176)","v":25150.04},323.15582838828351,{"$f":"OFFSET(A177,0,'Cool Graph'!$H$1)","v":0},{"$f":"OFFSET(A177,0,'Cool Graph'!$I$1)","v":323.15582838828351}]
["2011-12-24",0,9.6999999999999993,141.82000000000002,38.36,16.329999999999998,206.20999999999998,0,0,0,1,2,1,0,28.01,2,0,10.35,0,0,0,0,0,7,7,0,0,7,0,{"$f":"IFERROR(VLOOKUP($A178,[1]Sheet1!$A$4:$B$219,2,FALSE),0)","v":1225},1225,1147.4600000000064,{"$f":"$BH178+$BI177-IFERROR(VLOOKUP($A178,[2]Sheet2!$A$4:$B$82,2,FALSE),0)","v":2999.8199999999997},{"$f":"$BJ177+$BK177-IFERROR(VLOOKUP($A178,[2]Amazon!$A$2:$F$17,5,FALSE),0)","v":0},{"$f":"$BL178+$BM177-IFERROR(VLOOKUP($A178,'[2]Myaccountaccess Pivot'!$A$4:$B$31,2,FALSE),0)","v":0},{"$f":"IFERROR(VLOOKUP($A178,'[2]export-1'!$A$2:$F$441,6,FALSE),AJ177)","v":7790.4099999999944},{"$f":"IFERROR(VLOOKUP($A178,'[7]download-1'!$A$2:$F$513,6,FALSE),AK177)","v":-3360.87},{"$f":"IFERROR(VLOOKUP($A178,'[3]TexttoColumn Amazon Balance'!$A$14:$B$30,2,FALSE),IF(AL179>0,AL179-200,0))","v":596.30999999999995},8491.5899999999947,69940.63,728,66,0,0,null,null,null,null,null,{"$f":"IFERROR(VLOOKUP($A178,'[2]export-1'!$A$446:$G$451,7,FALSE),0)","v":0},{"$f":"IFERROR(VLOOKUP($A178,[3]Sheet4!$A$4:$B$56,2,FALSE),0)","v":0},{"$f":"IFERROR(VLOOKUP($A178,'[3]headphones purchased'!$A$2:$G$27,6,FALSE),0)","v":0},{"$f":"ROUND(IFERROR(VLOOKUP($A178,'[4]download-1'!$A$471:$F$474,5,FALSE)/-9.5,0),0)","v":0},{"$f":"ROUND(IFERROR(VLOOKUP($A178,'[4]download-1'!$A$467:$F$469,5,FALSE)/-49,0),0)","v":0},{"$f":"IFERROR(VLOOKUP($A178,[5]Sheet8!$A$4:$B$89,2,FALSE),0)","v":0},null,null,0,{"$f":"IFERROR(VLOOKUP($A178,[3]Paypal!$A$2:$AA$1843,25,FALSE),0)","v":465.92},{"$f":"IFERROR(VLOOKUP($A178,'[3]Paypal Money Sent Pivot'!$A$4:$B$97,2,FALSE),0)","v":3000},{"$f":"$BH178+$BI177-IFERROR(VLOOKUP($A178,[2]Sheet2!$A$4:$B$82,2,FALSE),0)","v":2999.8199999999997},{"$f":"IFERROR(VLOOKUP($A178,'[3]TexttoColumn Amazon Balance'!$A$14:$B$30,2,FALSE),0)","v":0},{"$f":"$BJ177+$BK177-IFERROR(VLOOKUP($A178,[2]Amazon!$A$2:$F$17,5,FALSE),0)","v":0},{"$f":"IFERROR(VLOOKUP($A178,'[4]Payment Pivot'!$A$4:$B$39,2,FALSE),0)","v":0},{"$f":"$BL178+$BM177-IFERROR(VLOOKUP($A178,'[2]Myaccountaccess Pivot'!$A$4:$B$31,2,FALSE),0)","v":0},null,{"$f":"IFERROR(VLOOKUP($A178,'[6]export-2'!$A$2:$F$15,6,FALSE),BO177)","v":25150.04},312.5213498397481,{"$f":"OFFSET(A178,0,'Cool Graph'!$H$1)","v":0},{"$f":"OFFSET(A178,0,'Cool Graph'!$I$1)","v":312.5213498397481}]
["2011-12-25",0,4.1399999999999997,208.71999999999997,35.18,7.76,255.79999999999995,0,0,0,1,0,0,0,24.68,0,0,10.5,0,0,0,0,0,7,7,0,0,7,0,{"$f":"IFERROR(VLOOKUP($A179,[1]Sheet1!$A$4:$B$219,2,FALSE),0)","v":1225},1225,1026.8399999999965,{"$f":"$BH179+$BI178-IFERROR(VLOOKUP($A179,[2]Sheet2!$A$4:$B$82,2,FALSE),0)","v":2999.8199999999997},{"$f":"$BJ178+$BK178-IFERROR(VLOOKUP($A179,[2]Amazon!$A$2:$F$17,5,FALSE),0)","v":0},{"$f":"$BL179+$BM178-IFERROR(VLOOKUP($A179,'[2]Myaccountaccess Pivot'!$A$4:$B$31,2,FALSE),0)","v":0},{"$f":"IFERROR(VLOOKUP($A179,'[2]export-1'!$A$2:$F$441,6,FALSE),AJ178)","v":7790.4099999999944},{"$f":"IFERROR(VLOOKUP($A179,'[7]download-1'!$A$2:$F$513,6,FALSE),AK178)","v":-3360.87},{"$f":"IFERROR(VLOOKUP($A179,'[3]TexttoColumn Amazon Balance'!$A$14:$B$30,2,FALSE),IF(AL180>0,AL180-200,0))","v":796.31},9878.9299999999948,70967.47,722,59,0,0,null,null,null,null,null,{"$f":"IFERROR(VLOOKUP($A179,'[2]export-1'!$A$446:$G$451,7,FALSE),0)","v":0},{"$f":"IFERROR(VLOOKUP($A179,[3]Sheet4!$A$4:$B$56,2,FALSE),0)","v":0},{"$f":"IFERROR(VLOOKUP($A179,'[3]headphones purchased'!$A$2:$G$27,6,FALSE),0)","v":0},{"$f":"ROUND(IFERROR(VLOOKUP($A179,'[4]download-1'!$A$471:$F$474,5,FALSE)/-9.5,0),0)","v":0},{"$f":"ROUND(IFERROR(VLOOKUP($A179,'[4]download-1'!$A$467:$F$469,5,FALSE)/-49,0),0)","v":0},{"$f":"IFERROR(VLOOKUP($A179,[5]Sheet8!$A$4:$B$89,2,FALSE),0)","v":0},null,null,1,{"$f":"IFERROR(VLOOKUP($A179,[3]Paypal!$A$2:$AA$1843,25,FALSE),0)","v":1653.26},{"$f":"IFERROR(VLOOKUP($A179,'[3]Paypal Money Sent Pivot'!$A$4:$B$97,2,FALSE),0)","v":0},{"$f":"$BH179+$BI178-IFERROR(VLOOKUP($A179,[2]Sheet2!$A$4:$B$82,2,FALSE),0)","v":2999.8199999999997},{"$f":"IFERROR(VLOOKUP($A179,'[3]TexttoColumn Amazon Balance'!$A$14:$B$30,2,FALSE),0)","v":0},{"$f":"$BJ178+$BK178-IFERROR(VLOOKUP($A179,[2]Amazon!$A$2:$F$17,5,FALSE),0)","v":0},{"$f":"IFERROR(VLOOKUP($A179,'[4]Payment Pivot'!$A$4:$B$39,2,FALSE),0)","v":0},{"$f":"$BL179+$BM178-IFERROR(VLOOKUP($A179,'[2]Myaccountaccess Pivot'!$A$4:$B$31,2,FALSE),0)","v":0},null,{"$f":"IFERROR(VLOOKUP($A179,'[6]export-2'!$A$2:$F$15,6,FALSE),BO178)","v":25150.04},262.93134983974812,{"$f":"OFFSET(A179,0,'Cool Graph'!$H$1)","v":0},{"$f":"OFFSET(A179,0,'Cool Graph'!$I$1)","v":262.93134983974812}]
["2011-12-26",0,6.5,221.85,80.88,8.8000000000000007,318.03000000000003,0,0,0,1,0,2,0,63.66,0,0,17.22,0,1,0,0,0,2,2,0,0,3,160,{"$f":"IFERROR(VLOOKUP($A180,[1]Sheet1!$A$4:$B$219,2,FALSE),0)","v":350},510,105.61999999999534,{"$f":"$BH180+$BI179-IFERROR(VLOOKUP($A180,[2]Sheet2!$A$4:$B$82,2,FALSE),0)","v":2999.8199999999997},{"$f":"$BJ179+$BK179-IFERROR(VLOOKUP($A180,[2]Amazon!$A$2:$F$17,5,FALSE),0)","v":0},{"$f":"$BL180+$BM179-IFERROR(VLOOKUP($A180,'[2]Myaccountaccess Pivot'!$A$4:$B$31,2,FALSE),0)","v":0},{"$f":"IFERROR(VLOOKUP($A180,'[2]export-1'!$A$2:$F$441,6,FALSE),AJ179)","v":7790.4099999999944},{"$f":"IFERROR(VLOOKUP($A180,'[7]download-1'!$A$2:$F$513,6,FALSE),AK179)","v":-3360.87},{"$f":"IFERROR(VLOOKUP($A180,'[3]TexttoColumn Amazon Balance'!$A$14:$B$30,2,FALSE),IF(AL181>0,AL181-200,0))","v":996.31},10248.549999999996,71073.09,717,57,0,0,null,null,null,null,null,{"$f":"IFERROR(VLOOKUP($A180,'[2]export-1'!$A$446:$G$451,7,FALSE),0)","v":0},{"$f":"IFERROR(VLOOKUP($A180,[3]Sheet4!$A$4:$B$56,2,FALSE),0)","v":0},{"$f":"IFERROR(VLOOKUP($A180,'[3]headphones purchased'!$A$2:$G$27,6,FALSE),0)","v":0},{"$f":"ROUND(IFERROR(VLOOKUP($A180,'[4]download-1'!$A$471:$F$474,5,FALSE)/-9.5,0),0)","v":0},{"$f":"ROUND(IFERROR(VLOOKUP($A180,'[4]download-1'!$A$467:$F$469,5,FALSE)/-49,0),0)","v":0},{"$f":"IFERROR(VLOOKUP($A180,[5]Sheet8!$A$4:$B$89,2,FALSE),0)","v":2},null,null,0,{"$f":"IFERROR(VLOOKUP($A180,[3]Paypal!$A$2:$AA$1843,25,FALSE),0)","v":1822.88},{"$f":"IFERROR(VLOOKUP($A180,'[3]Paypal Money Sent Pivot'!$A$4:$B$97,2,FALSE),0)","v":0},{"$f":"$BH180+$BI179-IFERROR(VLOOKUP($A180,[2]Sheet2!$A$4:$B$82,2,FALSE),0)","v":2999.8199999999997},{"$f":"IFERROR(VLOOKUP($A180,'[3]TexttoColumn Amazon Balance'!$A$14:$B$30,2,FALSE),0)","v":0},{"$f":"$BJ179+$BK179-IFERROR(VLOOKUP($A180,[2]Amazon!$A$2:$F$17,5,FALSE),0)","v":0},{"$f":"IFERROR(VLOOKUP($A180,'[4]Payment Pivot'!$A$4:$B$39,2,FALSE),0)","v":0},{"$f":"$BL180+$BM179-IFERROR(VLOOKUP($A180,'[2]Myaccountaccess Pivot'!$A$4:$B$31,2,FALSE),0)","v":0},null,{"$f":"IFERROR(VLOOKUP($A180,'[6]export-2'!$A$2:$F$15,6,FALSE),BO179)","v":25150.04},-102.06837680141103,{"$f":"OFFSET(A180,0,'Cool Graph'!$H$1)","v":0},{"$f":"OFFSET(A180,0,'Cool Graph'!$I$1)","v":-102.06837680141103}]
["2011-12-27",0,4.51,171.3,106.21000000000001,17.66,299.68,0,0,0,2,1,2,0,90.18,0,2,16.03,1,3,0,0,0,5,5,0,0,8,480,{"$f":"IFERROR(VLOOKUP($A181,[1]Sheet1!$A$4:$B$219,2,FALSE),0)","v":875},1355,-1614.6700000000128,{"$f":"$BH181+$BI180-IFERROR(VLOOKUP($A181,[2]Sheet2!$A$4:$B$82,2,FALSE),0)","v":-0.18000000000029104},{"$f":"$BJ180+$BK180-IFERROR(VLOOKUP($A181,[2]Amazon!$A$2:$F$17,5,FALSE),0)","v":0},{"$f":"$BL181+$BM180-IFERROR(VLOOKUP($A181,'[2]Myaccountaccess Pivot'!$A$4:$B$31,2,FALSE),0)","v":0},{"$f":"IFERROR(VLOOKUP($A181,'[2]export-1'!$A$2:$F$441,6,FALSE),AJ180)","v":10794.189999999995},{"$f":"IFERROR(VLOOKUP($A181,'[7]download-1'!$A$2:$F$513,6,FALSE),AK180)","v":-4776.9799999999996},{"$f":"IFERROR(VLOOKUP($A181,'[3]TexttoColumn Amazon Balance'!$A$14:$B$30,2,FALSE),IF(AL182>0,AL182-200,0))","v":1196.31},9367.3799999999937,69458.419999999984,703,52,0,0,null,null,null,null,null,{"$f":"IFERROR(VLOOKUP($A181,'[2]export-1'!$A$446:$G$451,7,FALSE),0)","v":0},{"$f":"IFERROR(VLOOKUP($A181,[3]Sheet4!$A$4:$B$56,2,FALSE),0)","v":0},{"$f":"IFERROR(VLOOKUP($A181,'[3]headphones purchased'!$A$2:$G$27,6,FALSE),0)","v":0},{"$f":"ROUND(IFERROR(VLOOKUP($A181,'[4]download-1'!$A$471:$F$474,5,FALSE)/-9.5,0),0)","v":0},{"$f":"ROUND(IFERROR(VLOOKUP($A181,'[4]download-1'!$A$467:$F$469,5,FALSE)/-49,0),0)","v":0},{"$f":"IFERROR(VLOOKUP($A181,[5]Sheet8!$A$4:$B$89,2,FALSE),0)","v":7},null,null,1,{"$f":"IFERROR(VLOOKUP($A181,'[8]DHR-1'!$A$9:$AS$451,37,FALSE),0)","v":2154.04},{"$f":"IFERROR(VLOOKUP($A181,'[3]Paypal Money Sent Pivot'!$A$4:$B$97,2,FALSE),0)","v":0},{"$f":"$BH181+$BI180-IFERROR(VLOOKUP($A181,[2]Sheet2!$A$4:$B$82,2,FALSE),0)","v":-0.18000000000029104},{"$f":"IFERROR(VLOOKUP($A181,'[3]TexttoColumn Amazon Balance'!$A$14:$B$30,2,FALSE),0)","v":0},{"$f":"$BJ180+$BK180-IFERROR(VLOOKUP($A181,[2]Amazon!$A$2:$F$17,5,FALSE),0)","v":0},{"$f":"IFERROR(VLOOKUP($A181,'[4]Payment Pivot'!$A$4:$B$39,2,FALSE),0)","v":0},{"$f":"$BL181+$BM180-IFERROR(VLOOKUP($A181,'[2]Myaccountaccess Pivot'!$A$4:$B$31,2,FALSE),0)","v":0},null,{"$f":"IFERROR(VLOOKUP($A181,'[6]export-2'!$A$2:$F$15,6,FALSE),BO180)","v":25150.04},274.10039104723154,{"$f":"OFFSET(A181,0,'Cool Graph'!$H$1)","v":0},{"$f":"OFFSET(A181,0,'Cool Graph'!$I$1)","v":274.10039104723154}]
["2011-12-28",0,6.3,164.07,87.31,14.4,272.08,0,0,0,3,1,1,0,72.89,1,0,14.42,0,2,1,0,0,12,12,0,0,14,340,{"$f":"IFERROR(VLOOKUP($A182,[1]Sheet1!$A$4:$B$219,2,FALSE),0)","v":2100},2440,-460.54999999998836,{"$f":"$BH182+$BI181-IFERROR(VLOOKUP($A182,[2]Sheet2!$A$4:$B$82,2,FALSE),0)","v":-0.18000000000029104},{"$f":"$BJ181+$BK181-IFERROR(VLOOKUP($A182,[2]Amazon!$A$2:$F$17,5,FALSE),0)","v":0},{"$f":"$BL182+$BM181-IFERROR(VLOOKUP($A182,'[2]Myaccountaccess Pivot'!$A$4:$B$31,2,FALSE),0)","v":4776.9799999999996},{"$f":"IFERROR(VLOOKUP($A182,'[2]export-1'!$A$2:$F$441,6,FALSE),AJ181)","v":10794.189999999995},{"$f":"IFERROR(VLOOKUP($A182,'[7]download-1'!$A$2:$F$513,6,FALSE),AK181)","v":-2385.579999999999},{"$f":"IFERROR(VLOOKUP($A182,'[3]TexttoColumn Amazon Balance'!$A$14:$B$30,2,FALSE),IF(AL183>0,AL183-200,0))","v":1396.31},7884.3299999999963,68997.87,688,237,0,0,null,null,null,null,null,{"$f":"IFERROR(VLOOKUP($A182,'[2]export-1'!$A$446:$G$451,7,FALSE),0)","v":0},{"$f":"IFERROR(VLOOKUP($A182,[3]Sheet4!$A$4:$B$56,2,FALSE),0)","v":0},{"$f":"IFERROR(VLOOKUP($A182,'[3]headphones purchased'!$A$2:$G$27,6,FALSE),0)","v":0},{"$f":"ROUND(IFERROR(VLOOKUP($A182,'[4]download-1'!$A$471:$F$474,5,FALSE)/-9.5,0),0)","v":198},{"$f":"ROUND(IFERROR(VLOOKUP($A182,'[4]download-1'!$A$467:$F$469,5,FALSE)/-49,0),0)","v":0},{"$f":"IFERROR(VLOOKUP($A182,[5]Sheet8!$A$4:$B$89,2,FALSE),0)","v":1},null,null,0,{"$f":"IFERROR(VLOOKUP($A182,'[8]DHR-1'!$A$9:$AS$451,37,FALSE),0)","v":2856.57},{"$f":"IFERROR(VLOOKUP($A182,'[3]Paypal Money Sent Pivot'!$A$4:$B$97,2,FALSE),0)","v":0},{"$f":"$BH182+$BI181-IFERROR(VLOOKUP($A182,[2]Sheet2!$A$4:$B$82,2,FALSE),0)","v":-0.18000000000029104},{"$f":"IFERROR(VLOOKUP($A182,'[3]TexttoColumn Amazon Balance'!$A$14:$B$30,2,FALSE),0)","v":0},{"$f":"$BJ181+$BK181-IFERROR(VLOOKUP($A182,[2]Amazon!$A$2:$F$17,5,FALSE),0)","v":0},{"$f":"IFERROR(VLOOKUP($A182,'[4]Payment Pivot'!$A$4:$B$39,2,FALSE),0)","v":4776.9799999999996},{"$f":"$BL182+$BM181-IFERROR(VLOOKUP($A182,'[2]Myaccountaccess Pivot'!$A$4:$B$31,2,FALSE),0)","v":4776.9799999999996},null,{"$f":"IFERROR(VLOOKUP($A182,'[6]export-2'!$A$2:$F$15,6,FALSE),BO181)","v":25150.04},761.14815804815134,{"$f":"OFFSET(A182,0,'Cool Graph'!$H$1)","v":0},{"$f":"OFFSET(A182,0,'Cool Graph'!$I$1)","v":761.14815804815134}]
["2011-12-29",41.34,8.08,136.85,89.42,14.64,290.33,0,0,0,0,0,1,0,72.41,0,1,17.010000000000002,0,0,0,0,0,4,4,0,0,4,0,{"$f":"IFERROR(VLOOKUP($A183,[1]Sheet1!$A$4:$B$219,2,FALSE),0)","v":700},700,5285.3000000000029,{"$f":"$BH183+$BI182-IFERROR(VLOOKUP($A183,[2]Sheet2!$A$4:$B$82,2,FALSE),0)","v":-0.18000000000029104},{"$f":"$BJ182+$BK182-IFERROR(VLOOKUP($A183,[2]Amazon!$A$2:$F$17,5,FALSE),0)","v":0},{"$f":"$BL183+$BM182-IFERROR(VLOOKUP($A183,'[2]Myaccountaccess Pivot'!$A$4:$B$31,2,FALSE),0)","v":0},{"$f":"IFERROR(VLOOKUP($A183,'[2]export-1'!$A$2:$F$441,6,FALSE),AJ182)","v":5787.3099999999959},{"$f":"IFERROR(VLOOKUP($A183,'[7]download-1'!$A$2:$F$513,6,FALSE),AK182)","v":-2401.5699999999988},{"$f":"IFERROR(VLOOKUP($A183,'[3]TexttoColumn Amazon Balance'!$A$14:$B$30,2,FALSE),IF(AL184>0,AL184-200,0))","v":1596.31},13599.629999999997,74283.17,680,233,0,0,null,null,null,null,null,{"$f":"IFERROR(VLOOKUP($A183,'[2]export-1'!$A$446:$G$451,7,FALSE),0)","v":0},{"$f":"IFERROR(VLOOKUP($A183,[3]Sheet4!$A$4:$B$56,2,FALSE),0)","v":0},{"$f":"IFERROR(VLOOKUP($A183,'[3]headphones purchased'!$A$2:$G$27,6,FALSE),0)","v":0},{"$f":"ROUND(IFERROR(VLOOKUP($A183,'[4]download-1'!$A$471:$F$474,5,FALSE)/-9.5,0),0)","v":0},{"$f":"ROUND(IFERROR(VLOOKUP($A183,'[4]download-1'!$A$467:$F$469,5,FALSE)/-49,0),0)","v":0},{"$f":"IFERROR(VLOOKUP($A183,[5]Sheet8!$A$4:$B$89,2,FALSE),0)","v":5},null,null,1,{"$f":"IFERROR(VLOOKUP($A183,'[8]DHR-1'!$A$9:$AS$451,37,FALSE),0)","v":8617.76},{"$f":"IFERROR(VLOOKUP($A183,'[3]Paypal Money Sent Pivot'!$A$4:$B$97,2,FALSE),0)","v":0},{"$f":"$BH183+$BI182-IFERROR(VLOOKUP($A183,[2]Sheet2!$A$4:$B$82,2,FALSE),0)","v":-0.18000000000029104},{"$f":"IFERROR(VLOOKUP($A183,'[3]TexttoColumn Amazon Balance'!$A$14:$B$30,2,FALSE),0)","v":0},{"$f":"$BJ182+$BK182-IFERROR(VLOOKUP($A183,[2]Amazon!$A$2:$F$17,5,FALSE),0)","v":0},{"$f":"IFERROR(VLOOKUP($A183,'[4]Payment Pivot'!$A$4:$B$39,2,FALSE),0)","v":0},{"$f":"$BL183+$BM182-IFERROR(VLOOKUP($A183,'[2]Myaccountaccess Pivot'!$A$4:$B$31,2,FALSE),0)","v":0},null,{"$f":"IFERROR(VLOOKUP($A183,'[6]export-2'!$A$2:$F$15,6,FALSE),BO182)","v":25150.04},6.0879141941417743,{"$f":"OFFSET(A183,0,'Cool Graph'!$H$1)","v":41.34},{"$f":"OFFSET(A183,0,'Cool Graph'!$I$1)","v":6.0879141941417743}]
["2011-12-30",11.86,8.61,152.85999999999999,102.41999999999999,15.03,290.77999999999997,0,0,0,2,1,1,0,90.96,0,0,11.46,1,4,0,0,0,8,8,0,0,12,645,{"$f":"IFERROR(VLOOKUP($A184,[1]Sheet1!$A$4:$B$219,2,FALSE),0)","v":1400},2045,-479.00999999999476,{"$f":"$BH184+$BI183-IFERROR(VLOOKUP($A184,[2]Sheet2!$A$4:$B$82,2,FALSE),0)","v":-0.18000000000029104},{"$f":"$BJ183+$BK183-IFERROR(VLOOKUP($A184,[2]Amazon!$A$2:$F$17,5,FALSE),0)","v":0},{"$f":"$BL184+$BM183-IFERROR(VLOOKUP($A184,'[2]Myaccountaccess Pivot'!$A$4:$B$31,2,FALSE),0)","v":0},{"$f":"IFERROR(VLOOKUP($A184,'[2]export-1'!$A$2:$F$441,6,FALSE),AJ183)","v":5787.3099999999959},{"$f":"IFERROR(VLOOKUP($A184,'[7]download-1'!$A$2:$F$513,6,FALSE),AK183)","v":-2901.5699999999988},{"$f":"IFERROR(VLOOKUP($A184,'[3]TexttoColumn Amazon Balance'!$A$14:$B$30,2,FALSE),IF(AL185>0,AL185-200,0))","v":1796.31},14077.469999999998,73804.160000000003,662,225,0,0,null,null,null,null,null,{"$f":"IFERROR(VLOOKUP($A184,'[2]export-1'!$A$446:$G$451,7,FALSE),0)","v":0},{"$f":"IFERROR(VLOOKUP($A184,[3]Sheet4!$A$4:$B$56,2,FALSE),0)","v":0},{"$f":"IFERROR(VLOOKUP($A184,'[3]headphones purchased'!$A$2:$G$27,6,FALSE),0)","v":0},{"$f":"ROUND(IFERROR(VLOOKUP($A184,'[4]download-1'!$A$471:$F$474,5,FALSE)/-9.5,0),0)","v":0},{"$f":"ROUND(IFERROR(VLOOKUP($A184,'[4]download-1'!$A$467:$F$469,5,FALSE)/-49,0),0)","v":0},{"$f":"IFERROR(VLOOKUP($A184,[5]Sheet8!$A$4:$B$89,2,FALSE),0)","v":6},null,null,0,{"$f":"IFERROR(VLOOKUP($A184,'[8]DHR-1'!$A$9:$AS$451,37,FALSE),0)","v":9395.6},{"$f":"IFERROR(VLOOKUP($A184,'[3]Paypal Money Sent Pivot'!$A$4:$B$97,2,FALSE),0)","v":0},{"$f":"$BH184+$BI183-IFERROR(VLOOKUP($A184,[2]Sheet2!$A$4:$B$82,2,FALSE),0)","v":-0.18000000000029104},{"$f":"IFERROR(VLOOKUP($A184,'[3]TexttoColumn Amazon Balance'!$A$14:$B$30,2,FALSE),0)","v":0},{"$f":"$BJ183+$BK183-IFERROR(VLOOKUP($A184,[2]Amazon!$A$2:$F$17,5,FALSE),0)","v":0},{"$f":"IFERROR(VLOOKUP($A184,'[4]Payment Pivot'!$A$4:$B$39,2,FALSE),0)","v":0},{"$f":"$BL184+$BM183-IFERROR(VLOOKUP($A184,'[2]Myaccountaccess Pivot'!$A$4:$B$31,2,FALSE),0)","v":0},null,{"$f":"IFERROR(VLOOKUP($A184,'[6]export-2'!$A$2:$F$15,6,FALSE),BO183)","v":25151.190000000002},575.18376361002845,{"$f":"OFFSET(A184,0,'Cool Graph'!$H$1)","v":11.86},{"$f":"OFFSET(A184,0,'Cool Graph'!$I$1)","v":575.18376361002845}]
["2011-12-31",17.36,4.09,114.99,95.22,11.13,242.79,0,0,0,2,0,2,0,81.89,0,1,13.33,0,3,0,0,0,5,5,0,0,8,502.14,{"$f":"IFERROR(VLOOKUP($A185,[1]Sheet1!$A$4:$B$219,2,FALSE),0)","v":875},1377.1399999999999,11095.229999999996,{"$f":"$BH185+$BI184-IFERROR(VLOOKUP($A185,[2]Sheet2!$A$4:$B$82,2,FALSE),0)","v":9999.82},{"$f":"$BJ184+$BK184-IFERROR(VLOOKUP($A185,[2]Amazon!$A$2:$F$17,5,FALSE),0)","v":0},{"$f":"$BL185+$BM184-IFERROR(VLOOKUP($A185,'[2]Myaccountaccess Pivot'!$A$4:$B$31,2,FALSE),0)","v":0},{"$f":"IFERROR(VLOOKUP($A185,'[2]export-1'!$A$2:$F$441,6,FALSE),AJ184)","v":5787.3099999999959},{"$f":"IFERROR(VLOOKUP($A185,'[7]download-1'!$A$2:$F$513,6,FALSE),AK184)","v":-2901.5699999999988},{"$f":"IFERROR(VLOOKUP($A185,'[3]TexttoColumn Amazon Balance'!$A$14:$B$30,2,FALSE),IF(AL186>0,AL186-200,0))","v":1996.31},25563.199999999997,84899.39,655,220,0,0,null,null,null,null,null,{"$f":"IFERROR(VLOOKUP($A185,'[2]export-1'!$A$446:$G$451,7,FALSE),0)","v":0},{"$f":"IFERROR(VLOOKUP($A185,[3]Sheet4!$A$4:$B$56,2,FALSE),0)","v":0},{"$f":"IFERROR(VLOOKUP($A185,'[3]headphones purchased'!$A$2:$G$27,6,FALSE),0)","v":0},{"$f":"ROUND(IFERROR(VLOOKUP($A185,'[4]download-1'!$A$471:$F$474,5,FALSE)/-9.5,0),0)","v":0},{"$f":"ROUND(IFERROR(VLOOKUP($A185,'[4]download-1'!$A$467:$F$469,5,FALSE)/-49,0),0)","v":0},{"$f":"IFERROR(VLOOKUP($A185,[5]Sheet8!$A$4:$B$89,2,FALSE),0)","v":0},null,null,1,{"$f":"IFERROR(VLOOKUP($A185,'[8]DHR-1'!$A$9:$AS$451,37,FALSE),0)","v":10681.33},{"$f":"IFERROR(VLOOKUP($A185,'[3]Paypal Money Sent Pivot'!$A$4:$B$97,2,FALSE),0)","v":10000},{"$f":"$BH185+$BI184-IFERROR(VLOOKUP($A185,[2]Sheet2!$A$4:$B$82,2,FALSE),0)","v":9999.82},{"$f":"IFERROR(VLOOKUP($A185,'[3]TexttoColumn Amazon Balance'!$A$14:$B$30,2,FALSE),0)","v":1996.31},{"$f":"$BJ184+$BK184-IFERROR(VLOOKUP($A185,[2]Amazon!$A$2:$F$17,5,FALSE),0)","v":0},{"$f":"IFERROR(VLOOKUP($A185,'[4]Payment Pivot'!$A$4:$B$39,2,FALSE),0)","v":0},{"$f":"$BL185+$BM184-IFERROR(VLOOKUP($A185,'[2]Myaccountaccess Pivot'!$A$4:$B$31,2,FALSE),0)","v":0},null,{"$f":"IFERROR(VLOOKUP($A185,'[6]export-2'!$A$2:$F$15,6,FALSE),BO184)","v":25151.190000000002},340.36566621902909,{"$f":"OFFSET(A185,0,'Cool Graph'!$H$1)","v":17.36},{"$f":"OFFSET(A185,0,'Cool Graph'!$I$1)","v":340.36566621902909}]
["2012-01-01",36.1,9.48,117.3,170.85000000000002,15.6,349.33000000000004,0,0,0,4,0,1,0,149.71,0,0,21.14,0,4,2,0,0,6,6,0,0,10,711.95,{"$f":"IFERROR(VLOOKUP($A186,[1]Sheet1!$A$4:$B$219,2,FALSE),0)","v":1050},1761.95,-9295.3000000000029,{"$f":"$BH186+$BI185-IFERROR(VLOOKUP($A186,[2]Sheet2!$A$4:$B$82,2,FALSE),0)","v":9999.82},{"$f":"$BJ185+$BK185-IFERROR(VLOOKUP($A186,[2]Amazon!$A$2:$F$17,5,FALSE),0)","v":1996.31},{"$f":"$BL186+$BM185-IFERROR(VLOOKUP($A186,'[2]Myaccountaccess Pivot'!$A$4:$B$31,2,FALSE),0)","v":0},{"$f":"IFERROR(VLOOKUP($A186,'[2]export-1'!$A$2:$F$441,6,FALSE),AJ185)","v":5787.3099999999959},{"$f":"IFERROR(VLOOKUP($A186,'[7]download-1'!$A$2:$F$513,6,FALSE),AK185)","v":-2901.5699999999988},{"$f":"IFERROR(VLOOKUP($A186,'[3]TexttoColumn Amazon Balance'!$A$14:$B$30,2,FALSE),IF(AL187>0,AL187-600,0))","v":462.57999999999993},16833.899999999998,75604.09,645,212,0,0,null,null,null,null,null,{"$f":"IFERROR(VLOOKUP($A186,'[2]export-1'!$A$446:$G$451,7,FALSE),0)","v":0},{"$f":"IFERROR(VLOOKUP($A186,[3]Sheet4!$A$4:$B$56,2,FALSE),0)","v":0},{"$f":"IFERROR(VLOOKUP($A186,'[3]headphones purchased'!$A$2:$G$27,6,FALSE),0)","v":0},{"$f":"ROUND(IFERROR(VLOOKUP($A186,'[4]download-1'!$A$471:$F$474,5,FALSE)/-9.5,0),0)","v":0},{"$f":"ROUND(IFERROR(VLOOKUP($A186,'[4]download-1'!$A$467:$F$469,5,FALSE)/-49,0),0)","v":0},{"$f":"IFERROR(VLOOKUP($A186,[5]Sheet8!$A$4:$B$89,2,FALSE),0)","v":0},null,null,0,{"$f":"IFERROR(VLOOKUP($A186,'[8]DHR-1'!$A$9:$AS$451,37,FALSE),0)","v":1489.45},{"$f":"IFERROR(VLOOKUP($A186,'[3]Paypal Money Sent Pivot'!$A$4:$B$97,2,FALSE),0)","v":0},{"$f":"$BH186+$BI185-IFERROR(VLOOKUP($A186,[2]Sheet2!$A$4:$B$82,2,FALSE),0)","v":9999.82},{"$f":"IFERROR(VLOOKUP($A186,'[3]TexttoColumn Amazon Balance'!$A$14:$B$30,2,FALSE),0)","v":0},{"$f":"$BJ185+$BK185-IFERROR(VLOOKUP($A186,[2]Amazon!$A$2:$F$17,5,FALSE),0)","v":1996.31},{"$f":"IFERROR(VLOOKUP($A186,'[4]Payment Pivot'!$A$4:$B$39,2,FALSE),0)","v":0},{"$f":"$BL186+$BM185-IFERROR(VLOOKUP($A186,'[2]Myaccountaccess Pivot'!$A$4:$B$31,2,FALSE),0)","v":0},null,{"$f":"IFERROR(VLOOKUP($A186,'[6]export-2'!$A$2:$F$15,6,FALSE),BO185)","v":25151.190000000002},396.77506273481151,{"$f":"OFFSET(A186,0,'Cool Graph'!$H$1)","v":36.1},{"$f":"OFFSET(A186,0,'Cool Graph'!$I$1)","v":396.77506273481151}]
["2012-01-02",18.57,22.09,160.02000000000001,215.04999999999998,12.44,428.17,0,0,0,3,1,0,0,201.14999999999998,1,0,13.9,0,2,1,0,0,11,11,0,0,13,501.74,{"$f":"IFERROR(VLOOKUP($A187,[1]Sheet1!$A$4:$B$219,2,FALSE),0)","v":1925},2426.7399999999998,1036.3399999999965,{"$f":"$BH187+$BI186-IFERROR(VLOOKUP($A187,[2]Sheet2!$A$4:$B$82,2,FALSE),0)","v":9999.82},{"$f":"$BJ186+$BK186-IFERROR(VLOOKUP($A187,[2]Amazon!$A$2:$F$17,5,FALSE),0)","v":1996.31},{"$f":"$BL187+$BM186-IFERROR(VLOOKUP($A187,'[2]Myaccountaccess Pivot'!$A$4:$B$31,2,FALSE),0)","v":0},{"$f":"IFERROR(VLOOKUP($A187,'[2]export-1'!$A$2:$F$441,6,FALSE),AJ186)","v":5787.3099999999959},{"$f":"IFERROR(VLOOKUP($A187,'[7]download-1'!$A$2:$F$513,6,FALSE),AK186)","v":-2901.5699999999988},{"$f":"IFERROR(VLOOKUP($A187,'[3]TexttoColumn Amazon Balance'!$A$14:$B$30,2,FALSE),IF(AL188>0,AL188-600,0))","v":1062.58},18621.239999999998,76640.429999999993,632,200,0,0,null,null,null,null,null,{"$f":"IFERROR(VLOOKUP($A187,'[2]export-1'!$A$446:$G$451,7,FALSE),0)","v":0},{"$f":"IFERROR(VLOOKUP($A187,[3]Sheet4!$A$4:$B$56,2,FALSE),0)","v":0},{"$f":"IFERROR(VLOOKUP($A187,'[3]headphones purchased'!$A$2:$G$27,6,FALSE),0)","v":0},{"$f":"ROUND(IFERROR(VLOOKUP($A187,'[4]download-1'!$A$471:$F$474,5,FALSE)/-9.5,0),0)","v":0},{"$f":"ROUND(IFERROR(VLOOKUP($A187,'[4]download-1'!$A$467:$F$469,5,FALSE)/-49,0),0)","v":0},{"$f":"IFERROR(VLOOKUP($A187,[5]Sheet8!$A$4:$B$89,2,FALSE),0)","v":1},null,null,1,{"$f":"IFERROR(VLOOKUP($A187,'[8]DHR-1'!$A$9:$AS$451,37,FALSE),0)","v":2676.79},{"$f":"IFERROR(VLOOKUP($A187,'[3]Paypal Money Sent Pivot'!$A$4:$B$97,2,FALSE),0)","v":0},{"$f":"$BH187+$BI186-IFERROR(VLOOKUP($A187,[2]Sheet2!$A$4:$B$82,2,FALSE),0)","v":9999.82},{"$f":"IFERROR(VLOOKUP($A187,'[3]TexttoColumn Amazon Balance'!$A$14:$B$30,2,FALSE),0)","v":0},{"$f":"$BJ186+$BK186-IFERROR(VLOOKUP($A187,[2]Amazon!$A$2:$F$17,5,FALSE),0)","v":1996.31},{"$f":"IFERROR(VLOOKUP($A187,'[4]Payment Pivot'!$A$4:$B$39,2,FALSE),0)","v":0},{"$f":"$BL187+$BM186-IFERROR(VLOOKUP($A187,'[2]Myaccountaccess Pivot'!$A$4:$B$31,2,FALSE),0)","v":0},null,{"$f":"IFERROR(VLOOKUP($A187,'[6]export-2'!$A$2:$F$15,6,FALSE),BO186)","v":25151.190000000002},599.44315584498781,{"$f":"OFFSET(A187,0,'Cool Graph'!$H$1)","v":18.57},{"$f":"OFFSET(A187,0,'Cool Graph'!$I$1)","v":599.44315584498781}]
["2012-01-03",0.64,33.770000000000003,143.58999999999997,262.25,11.64,451.89,0,0,0,2,1,0,0,250.71,1,0,11.54,0,0,0,0,0,7,7,0,0,7,0,{"$f":"IFERROR(VLOOKUP($A188,[1]Sheet1!$A$4:$B$219,2,FALSE),0)","v":1225},1225,-13033.099999999991,{"$f":"$BH188+$BI187-IFERROR(VLOOKUP($A188,[2]Sheet2!$A$4:$B$82,2,FALSE),0)","v":-0.18000000000029104},{"$f":"$BJ187+$BK187-IFERROR(VLOOKUP($A188,[2]Amazon!$A$2:$F$17,5,FALSE),0)","v":0},{"$f":"$BL188+$BM187-IFERROR(VLOOKUP($A188,'[2]Myaccountaccess Pivot'!$A$4:$B$31,2,FALSE),0)","v":0},{"$f":"IFERROR(VLOOKUP($A188,'[2]export-1'!$A$2:$F$441,6,FALSE),AJ187)","v":10995.959999999995},{"$f":"IFERROR(VLOOKUP($A188,'[7]download-1'!$A$2:$F$513,6,FALSE),AK187)","v":-4203.9399999999996},{"$f":"IFERROR(VLOOKUP($A188,'[3]TexttoColumn Amazon Balance'!$A$14:$B$30,2,FALSE),IF(AL189>0,AL189-600,0))","v":1662.58},{"$f":"AL188+AK188+AJ188-AI188+AH188+AG188+BG188","v":12997.639999999996},63607.33,625,193,0,0,null,null,null,null,null,{"$f":"IFERROR(VLOOKUP($A188,'[2]export-1'!$A$446:$G$451,7,FALSE),0)","v":0},{"$f":"IFERROR(VLOOKUP($A188,[3]Sheet4!$A$4:$B$56,2,FALSE),0)","v":0},{"$f":"IFERROR(VLOOKUP($A188,'[3]headphones purchased'!$A$2:$G$27,6,FALSE),0)","v":0},{"$f":"ROUND(IFERROR(VLOOKUP($A188,'[4]download-1'!$A$471:$F$474,5,FALSE)/-9.5,0),0)","v":0},{"$f":"ROUND(IFERROR(VLOOKUP($A188,'[4]download-1'!$A$467:$F$469,5,FALSE)/-49,0),0)","v":0},{"$f":"IFERROR(VLOOKUP($A188,[5]Sheet8!$A$4:$B$89,2,FALSE),0)","v":0},null,null,0,{"$f":"IFERROR(VLOOKUP($A188,'[8]DHR-1'!$A$9:$AS$451,37,FALSE),0)","v":4543.22},{"$f":"IFERROR(VLOOKUP($A188,'[3]Paypal Money Sent Pivot'!$A$4:$B$97,2,FALSE),0)","v":0},{"$f":"$BH188+$BI187-IFERROR(VLOOKUP($A188,[2]Sheet2!$A$4:$B$82,2,FALSE),0)","v":-0.18000000000029104},{"$f":"IFERROR(VLOOKUP($A188,'[3]TexttoColumn Amazon Balance'!$A$14:$B$30,2,FALSE),0)","v":0},{"$f":"$BJ187+$BK187-IFERROR(VLOOKUP($A188,[2]Amazon!$A$2:$F$17,5,FALSE),0)","v":0},{"$f":"IFERROR(VLOOKUP($A188,'[4]Payment Pivot'!$A$4:$B$39,2,FALSE),0)","v":0},{"$f":"$BL188+$BM187-IFERROR(VLOOKUP($A188,'[2]Myaccountaccess Pivot'!$A$4:$B$31,2,FALSE),0)","v":0},null,{"$f":"IFERROR(VLOOKUP($A188,'[6]export-2'!$A$2:$F$15,6,FALSE),BO187)","v":18151.190000000002},66.841349839748091,{"$f":"OFFSET(A188,0,'Cool Graph'!$H$1)","v":0.64},{"$f":"OFFSET(A188,0,'Cool Graph'!$I$1)","v":66.841349839748091}]
["2012-01-04",8.83,27.8,164.06,204.18,11.64,416.51,0,1,0,3,1,1,0,192.8,1,0,11.38,0,2,0,0,0,14,14,0,0,16,332.08,{"$f":"IFERROR(VLOOKUP($A189,[1]Sheet1!$A$4:$B$219,2,FALSE),0)","v":2450},2782.08,-1211.4400000000023,{"$f":"$BH189+$BI188-IFERROR(VLOOKUP($A189,[2]Sheet2!$A$4:$B$82,2,FALSE),0)","v":-0.18000000000029104},{"$f":"$BJ188+$BK188-IFERROR(VLOOKUP($A189,[2]Amazon!$A$2:$F$17,5,FALSE),0)","v":0},{"$f":"$BL189+$BM188-IFERROR(VLOOKUP($A189,'[2]Myaccountaccess Pivot'!$A$4:$B$31,2,FALSE),0)","v":0},{"$f":"IFERROR(VLOOKUP($A189,'[2]export-1'!$A$2:$F$441,6,FALSE),AJ188)","v":7275.4599999999955},{"$f":"IFERROR(VLOOKUP($A189,'[7]download-1'!$A$2:$F$513,6,FALSE),AK188)","v":-5149.84},{"$f":"IFERROR(VLOOKUP($A189,'[3]TexttoColumn Amazon Balance'!$A$14:$B$30,2,FALSE),IF(AL190>0,AL190-600,0))","v":2262.58},10008.199999999995,62395.89,664,179,0,0,null,null,null,null,null,{"$f":"IFERROR(VLOOKUP($A189,'[2]export-1'!$A$446:$G$451,7,FALSE),0)","v":54},{"$f":"IFERROR(VLOOKUP($A189,[3]Sheet4!$A$4:$B$56,2,FALSE),0)","v":0},{"$f":"IFERROR(VLOOKUP($A189,'[3]headphones purchased'!$A$2:$G$27,6,FALSE),0)","v":0},{"$f":"ROUND(IFERROR(VLOOKUP($A189,'[4]download-1'!$A$471:$F$474,5,FALSE)/-9.5,0),0)","v":0},{"$f":"ROUND(IFERROR(VLOOKUP($A189,'[4]download-1'!$A$467:$F$469,5,FALSE)/-49,0),0)","v":0},{"$f":"IFERROR(VLOOKUP($A189,[5]Sheet8!$A$4:$B$89,2,FALSE),0)","v":0},null,null,1,{"$f":"IFERROR(VLOOKUP($A189,'[8]DHR-1'!$A$9:$AS$451,37,FALSE),0)","v":5620.18},{"$f":"IFERROR(VLOOKUP($A189,'[3]Paypal Money Sent Pivot'!$A$4:$B$97,2,FALSE),0)","v":0},{"$f":"$BH189+$BI188-IFERROR(VLOOKUP($A189,[2]Sheet2!$A$4:$B$82,2,FALSE),0)","v":-0.18000000000029104},{"$f":"IFERROR(VLOOKUP($A189,'[3]TexttoColumn Amazon Balance'!$A$14:$B$30,2,FALSE),0)","v":0},{"$f":"$BJ188+$BK188-IFERROR(VLOOKUP($A189,[2]Amazon!$A$2:$F$17,5,FALSE),0)","v":0},{"$f":"IFERROR(VLOOKUP($A189,'[4]Payment Pivot'!$A$4:$B$39,2,FALSE),0)","v":0},{"$f":"$BL189+$BM188-IFERROR(VLOOKUP($A189,'[2]Myaccountaccess Pivot'!$A$4:$B$31,2,FALSE),0)","v":0},null,{"$f":"IFERROR(VLOOKUP($A189,'[6]export-2'!$A$2:$F$15,6,FALSE),BO188)","v":18151.190000000002},761.57335817319699,{"$f":"OFFSET(A189,0,'Cool Graph'!$H$1)","v":8.83},{"$f":"OFFSET(A189,0,'Cool Graph'!$I$1)","v":761.57335817319699}]
["2012-01-05",105.88,42.63,111.34,187.76,10.33,457.94,0,1,0,5,0,1,0,168.35999999999999,0,0,19.399999999999999,0,2,0,0,0,14,14,0,0,16,333.99,{"$f":"IFERROR(VLOOKUP($A190,[1]Sheet1!$A$4:$B$219,2,FALSE),0)","v":2450},2783.99,-707.52999999999884,{"$f":"$BH190+$BI189-IFERROR(VLOOKUP($A190,[2]Sheet2!$A$4:$B$82,2,FALSE),0)","v":-0.18000000000029104},{"$f":"$BJ189+$BK189-IFERROR(VLOOKUP($A190,[2]Amazon!$A$2:$F$17,5,FALSE),0)","v":0},{"$f":"$BL190+$BM189-IFERROR(VLOOKUP($A190,'[2]Myaccountaccess Pivot'!$A$4:$B$31,2,FALSE),0)","v":0},{"$f":"IFERROR(VLOOKUP($A190,'[2]export-1'!$A$2:$F$441,6,FALSE),AJ189)","v":6625.5999999999958},{"$f":"IFERROR(VLOOKUP($A190,'[7]download-1'!$A$2:$F$513,6,FALSE),AK189)","v":-5677.8},{"$f":"IFERROR(VLOOKUP($A190,'[3]TexttoColumn Amazon Balance'!$A$14:$B$30,2,FALSE),IF(AL191>0,AL191-600,0))","v":2862.58},10217.669999999995,61688.36,648,165,0,0,null,null,null,null,null,{"$f":"IFERROR(VLOOKUP($A190,'[2]export-1'!$A$446:$G$451,7,FALSE),0)","v":0},{"$f":"IFERROR(VLOOKUP($A190,[3]Sheet4!$A$4:$B$56,2,FALSE),0)","v":0},{"$f":"IFERROR(VLOOKUP($A190,'[3]headphones purchased'!$A$2:$G$27,6,FALSE),0)","v":0},{"$f":"ROUND(IFERROR(VLOOKUP($A190,'[4]download-1'!$A$471:$F$474,5,FALSE)/-9.5,0),0)","v":0},{"$f":"ROUND(IFERROR(VLOOKUP($A190,'[4]download-1'!$A$467:$F$469,5,FALSE)/-49,0),0)","v":0},{"$f":"IFERROR(VLOOKUP($A190,[5]Sheet8!$A$4:$B$89,2,FALSE),0)","v":0},null,null,0,{"$f":"IFERROR(VLOOKUP($A190,'[8]DHR-1'!$A$9:$AS$451,37,FALSE),0)","v":6407.47},{"$f":"IFERROR(VLOOKUP($A190,'[3]Paypal Money Sent Pivot'!$A$4:$B$97,2,FALSE),0)","v":0},{"$f":"$BH190+$BI189-IFERROR(VLOOKUP($A190,[2]Sheet2!$A$4:$B$82,2,FALSE),0)","v":-0.18000000000029104},{"$f":"IFERROR(VLOOKUP($A190,'[3]TexttoColumn Amazon Balance'!$A$14:$B$30,2,FALSE),0)","v":0},{"$f":"$BJ189+$BK189-IFERROR(VLOOKUP($A190,[2]Amazon!$A$2:$F$17,5,FALSE),0)","v":0},{"$f":"IFERROR(VLOOKUP($A190,'[4]Payment Pivot'!$A$4:$B$39,2,FALSE),0)","v":0},{"$f":"$BL190+$BM189-IFERROR(VLOOKUP($A190,'[2]Myaccountaccess Pivot'!$A$4:$B$31,2,FALSE),0)","v":0},null,{"$f":"IFERROR(VLOOKUP($A190,'[6]export-2'!$A$2:$F$15,6,FALSE),BO189)","v":18151.190000000002},720.9521556247837,{"$f":"OFFSET(A190,0,'Cool Graph'!$H$1)","v":105.88},{"$f":"OFFSET(A190,0,'Cool Graph'!$I$1)","v":720.9521556247837}]
["2012-01-06",102.12,18.440000000000001,128.78,145.60000000000002,15.25,410.19000000000005,1,0,0,1,0,1,0,125.32,0,0,20.28,0,3,2,0,0,3,3,0,0,6,541.24,{"$f":"IFERROR(VLOOKUP($A191,[1]Sheet1!$A$4:$B$219,2,FALSE),0)","v":525},1066.24,7818.2799999999988,{"$f":"$BH191+$BI190-IFERROR(VLOOKUP($A191,[2]Sheet2!$A$4:$B$82,2,FALSE),0)","v":5999.82},{"$f":"$BJ190+$BK190-IFERROR(VLOOKUP($A191,[2]Amazon!$A$2:$F$17,5,FALSE),0)","v":0},{"$f":"$BL191+$BM190-IFERROR(VLOOKUP($A191,'[2]Myaccountaccess Pivot'!$A$4:$B$31,2,FALSE),0)","v":0},{"$f":"IFERROR(VLOOKUP($A191,'[2]export-1'!$A$2:$F$441,6,FALSE),AJ190)","v":6620.5999999999958},{"$f":"IFERROR(VLOOKUP($A191,'[7]download-1'!$A$2:$F$513,6,FALSE),AK190)","v":-6416.3099999999995},{"$f":"IFERROR(VLOOKUP($A191,'[3]TexttoColumn Amazon Balance'!$A$14:$B$30,2,FALSE),IF(AL192>0,AL192-600,0))","v":3462.58},18377.449999999997,69506.64,642,160,0,0,null,null,null,null,null,{"$f":"IFERROR(VLOOKUP($A191,'[2]export-1'!$A$446:$G$451,7,FALSE),0)","v":0},{"$f":"IFERROR(VLOOKUP($A191,[3]Sheet4!$A$4:$B$56,2,FALSE),0)","v":0},{"$f":"IFERROR(VLOOKUP($A191,'[3]headphones purchased'!$A$2:$G$27,6,FALSE),0)","v":0},{"$f":"ROUND(IFERROR(VLOOKUP($A191,'[4]download-1'!$A$471:$F$474,5,FALSE)/-9.5,0),0)","v":0},{"$f":"ROUND(IFERROR(VLOOKUP($A191,'[4]download-1'!$A$467:$F$469,5,FALSE)/-49,0),0)","v":0},{"$f":"IFERROR(VLOOKUP($A191,[5]Sheet8!$A$4:$B$89,2,FALSE),0)","v":1},null,null,1,{"$f":"IFERROR(VLOOKUP($A191,'[8]DHR-1'!$A$9:$AS$451,37,FALSE),0)","v":8710.76},{"$f":"IFERROR(VLOOKUP($A191,'[3]Paypal Money Sent Pivot'!$A$4:$B$97,2,FALSE),0)","v":6000},{"$f":"$BH191+$BI190-IFERROR(VLOOKUP($A191,[2]Sheet2!$A$4:$B$82,2,FALSE),0)","v":5999.82},{"$f":"IFERROR(VLOOKUP($A191,'[3]TexttoColumn Amazon Balance'!$A$14:$B$30,2,FALSE),0)","v":0},{"$f":"$BJ190+$BK190-IFERROR(VLOOKUP($A191,[2]Amazon!$A$2:$F$17,5,FALSE),0)","v":0},{"$f":"IFERROR(VLOOKUP($A191,'[4]Payment Pivot'!$A$4:$B$39,2,FALSE),0)","v":0},{"$f":"$BL191+$BM190-IFERROR(VLOOKUP($A191,'[2]Myaccountaccess Pivot'!$A$4:$B$31,2,FALSE),0)","v":0},null,{"$f":"IFERROR(VLOOKUP($A191,'[6]export-2'!$A$2:$F$15,6,FALSE),BO190)","v":18151.190000000002},41.313766900516725,{"$f":"OFFSET(A191,0,'Cool Graph'!$H$1)","v":102.12},{"$f":"OFFSET(A191,0,'Cool Graph'!$I$1)","v":41.313766900516725}]
["2012-01-07",98.17,25.48,113.17,139.28,13.5,389.6,0,0,0,6,1,4,0,117.35000000000001,1,3,21.93,0,5,5,0,0,12,12,0,0,17,1079.3599999999999,{"$f":"IFERROR(VLOOKUP($A192,[1]Sheet1!$A$4:$B$219,2,FALSE),0)","v":2100},3179.3599999999997,-6101.2100000000064,{"$f":"$BH192+$BI191-IFERROR(VLOOKUP($A192,[2]Sheet2!$A$4:$B$82,2,FALSE),0)","v":5999.82},{"$f":"$BJ191+$BK191-IFERROR(VLOOKUP($A192,[2]Amazon!$A$2:$F$17,5,FALSE),0)","v":0},{"$f":"$BL192+$BM191-IFERROR(VLOOKUP($A192,'[2]Myaccountaccess Pivot'!$A$4:$B$31,2,FALSE),0)","v":0},{"$f":"IFERROR(VLOOKUP($A192,'[2]export-1'!$A$2:$F$441,6,FALSE),AJ191)","v":6620.5999999999958},{"$f":"IFERROR(VLOOKUP($A192,'[7]download-1'!$A$2:$F$513,6,FALSE),AK191)","v":-6416.3099999999995},{"$f":"IFERROR(VLOOKUP($A192,'[3]TexttoColumn Amazon Balance'!$A$14:$B$30,2,FALSE),IF(AL193>0,AL193-600,0))","v":4062.58},13270.739999999994,63405.429999999993,625,143,0,0,null,null,null,null,null,{"$f":"IFERROR(VLOOKUP($A192,'[2]export-1'!$A$446:$G$451,7,FALSE),0)","v":0},{"$f":"IFERROR(VLOOKUP($A192,[3]Sheet4!$A$4:$B$56,2,FALSE),0)","v":0},{"$f":"IFERROR(VLOOKUP($A192,'[3]headphones purchased'!$A$2:$G$27,6,FALSE),0)","v":0},{"$f":"ROUND(IFERROR(VLOOKUP($A192,'[4]download-1'!$A$471:$F$474,5,FALSE)/-9.5,0),0)","v":0},{"$f":"ROUND(IFERROR(VLOOKUP($A192,'[4]download-1'!$A$467:$F$469,5,FALSE)/-49,0),0)","v":0},{"$f":"IFERROR(VLOOKUP($A192,[5]Sheet8!$A$4:$B$89,2,FALSE),0)","v":0},null,null,0,{"$f":"IFERROR(VLOOKUP($A192,'[8]DHR-1'!$A$9:$AS$451,37,FALSE),0)","v":3004.05},{"$f":"IFERROR(VLOOKUP($A192,'[3]Paypal Money Sent Pivot'!$A$4:$B$97,2,FALSE),0)","v":0},{"$f":"$BH192+$BI191-IFERROR(VLOOKUP($A192,[2]Sheet2!$A$4:$B$82,2,FALSE),0)","v":5999.82},{"$f":"IFERROR(VLOOKUP($A192,'[3]TexttoColumn Amazon Balance'!$A$14:$B$30,2,FALSE),0)","v":0},{"$f":"$BJ191+$BK191-IFERROR(VLOOKUP($A192,[2]Amazon!$A$2:$F$17,5,FALSE),0)","v":0},{"$f":"IFERROR(VLOOKUP($A192,'[4]Payment Pivot'!$A$4:$B$39,2,FALSE),0)","v":0},{"$f":"$BL192+$BM191-IFERROR(VLOOKUP($A192,'[2]Myaccountaccess Pivot'!$A$4:$B$31,2,FALSE),0)","v":0},null,{"$f":"IFERROR(VLOOKUP($A192,'[6]export-2'!$A$2:$F$15,6,FALSE),BO191)","v":18151.190000000002},956.71322810326649,{"$f":"OFFSET(A192,0,'Cool Graph'!$H$1)","v":98.17},{"$f":"OFFSET(A192,0,'Cool Graph'!$I$1)","v":956.71322810326649}]
["2012-01-08",77.209999999999994,37.14,141.71,161.03,8.3800000000000008,425.47,0,0,0,1,1,0,0,141.91,1,0,19.12,0,3,2,0,0,6,6,0,0,9,544.07000000000005,{"$f":"IFERROR(VLOOKUP($A193,[1]Sheet1!$A$4:$B$219,2,FALSE),0)","v":1050},1594.0700000000002,2133.9300000000076,{"$f":"$BH193+$BI192-IFERROR(VLOOKUP($A193,[2]Sheet2!$A$4:$B$82,2,FALSE),0)","v":5999.82},{"$f":"$BJ192+$BK192-IFERROR(VLOOKUP($A193,[2]Amazon!$A$2:$F$17,5,FALSE),0)","v":0},{"$f":"$BL193+$BM192-IFERROR(VLOOKUP($A193,'[2]Myaccountaccess Pivot'!$A$4:$B$31,2,FALSE),0)","v":0},{"$f":"IFERROR(VLOOKUP($A193,'[2]export-1'!$A$2:$F$441,6,FALSE),AJ192)","v":6620.5999999999958},{"$f":"IFERROR(VLOOKUP($A193,'[7]download-1'!$A$2:$F$513,6,FALSE),AK192)","v":-6416.3099999999995},{"$f":"IFERROR(VLOOKUP($A193,'[3]TexttoColumn Amazon Balance'!$A$14:$B$30,2,FALSE),IF(AL194>0,AL194-600,0))","v":4662.58},15872.669999999995,65539.360000000001,617,135,0,0,null,null,null,null,null,{"$f":"IFERROR(VLOOKUP($A193,'[2]export-1'!$A$446:$G$451,7,FALSE),0)","v":0},{"$f":"IFERROR(VLOOKUP($A193,[3]Sheet4!$A$4:$B$56,2,FALSE),0)","v":0},{"$f":"IFERROR(VLOOKUP($A193,'[3]headphones purchased'!$A$2:$G$27,6,FALSE),0)","v":0},{"$f":"ROUND(IFERROR(VLOOKUP($A193,'[4]download-1'!$A$471:$F$474,5,FALSE)/-9.5,0),0)","v":0},{"$f":"ROUND(IFERROR(VLOOKUP($A193,'[4]download-1'!$A$467:$F$469,5,FALSE)/-49,0),0)","v":0},{"$f":"IFERROR(VLOOKUP($A193,[5]Sheet8!$A$4:$B$89,2,FALSE),0)","v":0},null,null,1,{"$f":"IFERROR(VLOOKUP($A193,'[8]DHR-1'!$A$9:$AS$451,37,FALSE),0)","v":5005.9799999999996},{"$f":"IFERROR(VLOOKUP($A193,'[3]Paypal Money Sent Pivot'!$A$4:$B$97,2,FALSE),0)","v":0},{"$f":"$BH193+$BI192-IFERROR(VLOOKUP($A193,[2]Sheet2!$A$4:$B$82,2,FALSE),0)","v":5999.82},{"$f":"IFERROR(VLOOKUP($A193,'[3]TexttoColumn Amazon Balance'!$A$14:$B$30,2,FALSE),0)","v":0},{"$f":"$BJ192+$BK192-IFERROR(VLOOKUP($A193,[2]Amazon!$A$2:$F$17,5,FALSE),0)","v":0},{"$f":"IFERROR(VLOOKUP($A193,'[4]Payment Pivot'!$A$4:$B$39,2,FALSE),0)","v":0},{"$f":"$BL193+$BM192-IFERROR(VLOOKUP($A193,'[2]Myaccountaccess Pivot'!$A$4:$B$31,2,FALSE),0)","v":0},null,{"$f":"IFERROR(VLOOKUP($A193,'[6]export-2'!$A$2:$F$15,6,FALSE),BO192)","v":18151.190000000002},249.54557782779375,{"$f":"OFFSET(A193,0,'Cool Graph'!$H$1)","v":77.209999999999994},{"$f":"OFFSET(A193,0,'Cool Graph'!$I$1)","v":249.54557782779375}]
["2012-01-09",41.13,35.04,177.20999999999998,143.66,18.71,415.74999999999994,0,0,0,4,1,3,0,126.56,1,0,17.100000000000001,0,6,6,0,0,9,9,0,0,15,1150,{"$f":"IFERROR(VLOOKUP($A194,[1]Sheet1!$A$4:$B$219,2,FALSE),0)","v":1575},2725,-436.49000000000524,{"$f":"$BH194+$BI193-IFERROR(VLOOKUP($A194,[2]Sheet2!$A$4:$B$82,2,FALSE),0)","v":-0.18000000000029104},{"$f":"$BJ193+$BK193-IFERROR(VLOOKUP($A194,[2]Amazon!$A$2:$F$17,5,FALSE),0)","v":0},{"$f":"$BL194+$BM193-IFERROR(VLOOKUP($A194,'[2]Myaccountaccess Pivot'!$A$4:$B$31,2,FALSE),0)","v":0},{"$f":"IFERROR(VLOOKUP($A194,'[2]export-1'!$A$2:$F$441,6,FALSE),AJ193)","v":12637.549999999996},{"$f":"IFERROR(VLOOKUP($A194,'[7]download-1'!$A$2:$F$513,6,FALSE),AK193)","v":-7779.5899999999992},{"$f":"IFERROR(VLOOKUP($A194,'[3]TexttoColumn Amazon Balance'!$A$14:$B$30,2,FALSE),IF(AL195>0,AL195-600,0))","v":5262.58},16313.679999999997,65102.869999999995,602,120,0,0,null,null,null,null,null,{"$f":"IFERROR(VLOOKUP($A194,'[2]export-1'!$A$446:$G$451,7,FALSE),0)","v":0},{"$f":"IFERROR(VLOOKUP($A194,[3]Sheet4!$A$4:$B$56,2,FALSE),0)","v":0},{"$f":"IFERROR(VLOOKUP($A194,'[3]headphones purchased'!$A$2:$G$27,6,FALSE),0)","v":0},{"$f":"ROUND(IFERROR(VLOOKUP($A194,'[4]download-1'!$A$471:$F$474,5,FALSE)/-9.5,0),0)","v":0},{"$f":"ROUND(IFERROR(VLOOKUP($A194,'[4]download-1'!$A$467:$F$469,5,FALSE)/-49,0),0)","v":0},{"$f":"IFERROR(VLOOKUP($A194,[5]Sheet8!$A$4:$B$89,2,FALSE),0)","v":0},null,null,0,{"$f":"IFERROR(VLOOKUP($A194,'[8]DHR-1'!$A$9:$AS$451,37,FALSE),0)","v":6193.32},{"$f":"IFERROR(VLOOKUP($A194,'[3]Paypal Money Sent Pivot'!$A$4:$B$97,2,FALSE),0)","v":0},{"$f":"$BH194+$BI193-IFERROR(VLOOKUP($A194,[2]Sheet2!$A$4:$B$82,2,FALSE),0)","v":-0.18000000000029104},{"$f":"IFERROR(VLOOKUP($A194,'[3]TexttoColumn Amazon Balance'!$A$14:$B$30,2,FALSE),0)","v":0},{"$f":"$BJ193+$BK193-IFERROR(VLOOKUP($A194,[2]Amazon!$A$2:$F$17,5,FALSE),0)","v":0},{"$f":"IFERROR(VLOOKUP($A194,'[4]Payment Pivot'!$A$4:$B$39,2,FALSE),0)","v":0},{"$f":"$BL194+$BM193-IFERROR(VLOOKUP($A194,'[2]Myaccountaccess Pivot'!$A$4:$B$31,2,FALSE),0)","v":0},null,{"$f":"IFERROR(VLOOKUP($A194,'[6]export-2'!$A$2:$F$15,6,FALSE),BO193)","v":18151.190000000002},{"$f":"($AG$286*AE194)-G194","v":738.16259454148053},{"$f":"OFFSET(A194,0,'Cool Graph'!$H$1)","v":41.13},{"$f":"OFFSET(A194,0,'Cool Graph'!$I$1)","v":738.16259454148053}]
["2012-01-10",32.159999999999997,35.36,136.13,133.44999999999999,15.96,353.05999999999995,0,0,0,4,1,0,0,114.3,1,0,19.149999999999999,0,9,4,0,0,9,9,0,0,{"$f":"SUM(X195,T195)","v":18},1607.01,{"$f":"IFERROR(VLOOKUP($A195,[1]Sheet1!$A$4:$B$219,2,FALSE),0)","v":1575},{"$f":"SUM(AC195,AD195)","v":3182.01},1206.140000000014,{"$f":"$BH195+$BI194-IFERROR(VLOOKUP($A195,[2]Sheet2!$A$4:$B$82,2,FALSE),0)","v":5999.82},{"$f":"$BJ194+$BK194-IFERROR(VLOOKUP($A195,[2]Amazon!$A$2:$F$17,5,FALSE),0)","v":0},{"$f":"$BL195+$BM194-IFERROR(VLOOKUP($A195,'[2]Myaccountaccess Pivot'!$A$4:$B$31,2,FALSE),0)","v":0},{"$f":"IFERROR(VLOOKUP($A195,'[2]export-1'!$A$2:$F$441,6,FALSE),AJ194)","v":10263.829999999996},{"$f":"IFERROR(VLOOKUP($A195,'[7]download-1'!$A$2:$F$513,6,FALSE),AK194)","v":-7877.7599999999993},{"$f":"IFERROR(VLOOKUP($A195,'[3]TexttoColumn Amazon Balance'!$A$14:$B$30,2,FALSE),IF(AL196>0,AL196-600,0))","v":5862.58},{"$f":"AL195+AK195+AJ195-AI195+AH195+AG195+BG195","v":21721.32},{"$f":"AM195+(AO195*49)+(AP195*9.5)+(AQ195*5.25)+(AR195*7)+(AS195*49)+(AT195*9.5)+(AU195*5.25)+BO195","v":66309.010000000009},580,107,0,0,null,null,null,null,null,{"$f":"IFERROR(VLOOKUP($A195,'[2]export-1'!$A$446:$G$451,7,FALSE),0)","v":0},{"$f":"IFERROR(VLOOKUP($A195,[3]Sheet4!$A$4:$B$56,2,FALSE),0)","v":0},{"$f":"IFERROR(VLOOKUP($A195,'[3]headphones purchased'!$A$2:$G$27,6,FALSE),0)","v":0},{"$f":"ROUND(IFERROR(VLOOKUP($A195,'[4]download-1'!$A$471:$F$474,5,FALSE)/-9.5,0),0)","v":0},{"$f":"ROUND(IFERROR(VLOOKUP($A195,'[4]download-1'!$A$467:$F$469,5,FALSE)/-49,0),0)","v":0},{"$f":"IFERROR(VLOOKUP($A195,[5]Sheet8!$A$4:$B$89,2,FALSE),0)","v":5},null,null,1,{"$f":"IFERROR(VLOOKUP($A195,'[8]DHR-1'!$A$9:$AS$451,37,FALSE),0)","v":7472.85},{"$f":"IFERROR(VLOOKUP($A195,'[3]Paypal Money Sent Pivot'!$A$4:$B$97,2,FALSE),0)","v":6000},{"$f":"$BH195+$BI194-IFERROR(VLOOKUP($A195,[2]Sheet2!$A$4:$B$82,2,FALSE),0)","v":5999.82},{"$f":"IFERROR(VLOOKUP($A195,'[3]TexttoColumn Amazon Balance'!$A$14:$B$30,2,FALSE),0)","v":0},{"$f":"$BJ194+$BK194-IFERROR(VLOOKUP($A195,[2]Amazon!$A$2:$F$17,5,FALSE),0)","v":0},{"$f":"IFERROR(VLOOKUP($A195,'[4]Payment Pivot'!$A$4:$B$39,2,FALSE),0)","v":0},{"$f":"$BL195+$BM194-IFERROR(VLOOKUP($A195,'[2]Myaccountaccess Pivot'!$A$4:$B$31,2,FALSE),0)","v":0},null,{"$f":"IFERROR(VLOOKUP($A195,'[6]export-2'!$A$2:$F$15,6,FALSE),BO194)","v":15151.190000000002},994.37538163557315,{"$f":"OFFSET(A195,0,'Cool Graph'!$H$1)","v":32.159999999999997},{"$f":"OFFSET(A195,0,'Cool Graph'!$I$1)","v":994.37538163557315}]
["2012-01-11",162.06,29.77,163.32,117.05,8.15,480.34999999999997,0,1,0,5,1,0,0,99.96,1,0,17.09,0,2,0,0,0,12,12,0,0,14,337.98,{"$f":"IFERROR(VLOOKUP($A196,[1]Sheet1!$A$4:$B$219,2,FALSE),0)","v":2100},2437.98,{"$f":"AN196-AN195","v":-3462.6900000000096},{"$f":"$BH196+$BI195-IFERROR(VLOOKUP($A196,[2]Sheet2!$A$4:$B$82,2,FALSE),0)","v":7999.82},{"$f":"$BJ195+$BK195-IFERROR(VLOOKUP($A196,[2]Amazon!$A$2:$F$17,5,FALSE),0)","v":0},{"$f":"$BL196+$BM195-IFERROR(VLOOKUP($A196,'[2]Myaccountaccess Pivot'!$A$4:$B$31,2,FALSE),0)","v":0},{"$f":"IFERROR(VLOOKUP($A196,'[2]export-1'!$A$2:$F$441,6,FALSE),AJ195)","v":10176.979999999996},{"$f":"IFERROR(VLOOKUP($A196,'[7]download-1'!$A$2:$F$513,6,FALSE),AK195)","v":-8454.9699999999993},{"$f":"IFERROR(VLOOKUP($A196,'[3]TexttoColumn Amazon Balance'!$A$14:$B$30,2,FALSE),IF(AL197>0,AL197-600,0))","v":6462.58},19254.629999999997,62846.32,{"$f":"AX196+AY196+AO195-AB196+BB196-BC196-AS196+BF196","v":562},95,{"$f":"BD196-V196-Z196+AQ195-AU196","v":0},{"$f":"BE196-W196-AA196+AR195","v":0},null,null,null,null,null,{"$f":"IFERROR(VLOOKUP($A196,'[2]export-1'!$A$446:$G$451,7,FALSE),0)","v":0},{"$f":"IFERROR(VLOOKUP($A196,[3]Sheet4!$A$4:$B$56,2,FALSE),0)","v":0},{"$f":"IFERROR(VLOOKUP($A196,'[3]headphones purchased'!$A$2:$G$27,6,FALSE),0)","v":0},{"$f":"ROUND(IFERROR(VLOOKUP($A196,'[4]download-1'!$A$471:$F$474,5,FALSE)/-9.5,0),0)","v":0},{"$f":"ROUND(IFERROR(VLOOKUP($A196,'[4]download-1'!$A$467:$F$469,5,FALSE)/-49,0),0)","v":0},{"$f":"IFERROR(VLOOKUP($A196,[5]Sheet8!$A$4:$B$89,2,FALSE),0)","v":4},null,null,0,{"$f":"IFERROR(VLOOKUP($A196,'[8]DHR-1'!$A$9:$AS$451,37,FALSE),0)","v":3070.22},{"$f":"IFERROR(VLOOKUP($A196,'[3]Paypal Money Sent Pivot'!$A$4:$B$97,2,FALSE),0)","v":2000},{"$f":"$BH196+$BI195-IFERROR(VLOOKUP($A196,[2]Sheet2!$A$4:$B$82,2,FALSE),0)","v":7999.82},{"$f":"IFERROR(VLOOKUP($A196,'[3]TexttoColumn Amazon Balance'!$A$14:$B$30,2,FALSE),0)","v":0},{"$f":"$BJ195+$BK195-IFERROR(VLOOKUP($A196,[2]Amazon!$A$2:$F$17,5,FALSE),0)","v":0},{"$f":"IFERROR(VLOOKUP($A196,'[4]Payment Pivot'!$A$4:$B$39,2,FALSE),0)","v":0},{"$f":"$BL196+$BM195-IFERROR(VLOOKUP($A196,'[2]Myaccountaccess Pivot'!$A$4:$B$31,2,FALSE),0)","v":0},null,{"$f":"IFERROR(VLOOKUP($A196,'[6]export-2'!$A$2:$F$15,6,FALSE),BO195)","v":15151.190000000002},552.02278063861968,{"$f":"OFFSET(A196,0,'Cool Graph'!$H$1)","v":162.06},{"$f":"OFFSET(A196,0,'Cool Graph'!$I$1)","v":552.02278063861968}]
["2012-01-12",84.35,39.75,109.46000000000001,95.73,11.78,341.07,0,0,0,1,0,2,0,74.64,0,0,21.09,0,5,6,0,0,3,3,0,0,8,1338.34,{"$f":"IFERROR(VLOOKUP($A197,[1]Sheet1!$A$4:$B$219,2,FALSE),0)","v":525},1863.34,72.42000000000553,{"$f":"$BH197+$BI196-IFERROR(VLOOKUP($A197,[2]Sheet2!$A$4:$B$82,2,FALSE),0)","v":1999.8199999999997},{"$f":"$BJ196+$BK196-IFERROR(VLOOKUP($A197,[2]Amazon!$A$2:$F$17,5,FALSE),0)","v":0},{"$f":"$BL197+$BM196-IFERROR(VLOOKUP($A197,'[2]Myaccountaccess Pivot'!$A$4:$B$31,2,FALSE),0)","v":0},{"$f":"IFERROR(VLOOKUP($A197,'[2]export-1'!$A$2:$F$441,6,FALSE),AJ196)","v":16176.979999999996},{"$f":"IFERROR(VLOOKUP($A197,'[7]download-1'!$A$2:$F$513,6,FALSE),AK196)","v":-8496.0999999999985},{"$f":"IFERROR(VLOOKUP($A197,'[3]TexttoColumn Amazon Balance'!$A$14:$B$30,2,FALSE),IF(AL198>0,AL198-600,0))","v":7062.58},19804.55,62918.740000000005,554,86,0,0,null,null,null,null,null,{"$f":"IFERROR(VLOOKUP($A197,'[2]export-1'!$A$446:$G$451,7,FALSE),0)","v":0},{"$f":"IFERROR(VLOOKUP($A197,[3]Sheet4!$A$4:$B$56,2,FALSE),0)","v":0},{"$f":"IFERROR(VLOOKUP($A197,'[3]headphones purchased'!$A$2:$G$27,6,FALSE),0)","v":0},{"$f":"ROUND(IFERROR(VLOOKUP($A197,'[4]download-1'!$A$471:$F$474,5,FALSE)/-9.5,0),0)","v":0},{"$f":"ROUND(IFERROR(VLOOKUP($A197,'[4]download-1'!$A$467:$F$469,5,FALSE)/-49,0),0)","v":0},{"$f":"IFERROR(VLOOKUP($A197,[5]Sheet8!$A$4:$B$89,2,FALSE),0)","v":1},null,null,1,{"$f":"IFERROR(VLOOKUP($A197,'[8]DHR-1'!$A$9:$AS$451,37,FALSE),0)","v":3061.27},{"$f":"IFERROR(VLOOKUP($A197,'[3]Paypal Money Sent Pivot'!$A$4:$B$97,2,FALSE),0)","v":0},{"$f":"$BH197+$BI196-IFERROR(VLOOKUP($A197,[2]Sheet2!$A$4:$B$82,2,FALSE),0)","v":1999.8199999999997},{"$f":"IFERROR(VLOOKUP($A197,'[3]TexttoColumn Amazon Balance'!$A$14:$B$30,2,FALSE),0)","v":0},{"$f":"$BJ196+$BK196-IFERROR(VLOOKUP($A197,[2]Amazon!$A$2:$F$17,5,FALSE),0)","v":0},{"$f":"IFERROR(VLOOKUP($A197,'[4]Payment Pivot'!$A$4:$B$39,2,FALSE),0)","v":0},{"$f":"$BL197+$BM196-IFERROR(VLOOKUP($A197,'[2]Myaccountaccess Pivot'!$A$4:$B$31,2,FALSE),0)","v":0},null,{"$f":"IFERROR(VLOOKUP($A197,'[6]export-2'!$A$2:$F$15,6,FALSE),BO196)","v":15151.190000000002},447.96908033501728,{"$f":"OFFSET(A197,0,'Cool Graph'!$H$1)","v":84.35},{"$f":"OFFSET(A197,0,'Cool Graph'!$I$1)","v":447.96908033501728}]
["2012-01-13",79.14,5.25,125.73999999999998,101.89,9.9499999999999993,321.96999999999997,0,0,0,0,0,0,0,84.850000000000009,0,0,17.04,0,7,5,0,0,6,6,0,0,13,1514.69,{"$f":"IFERROR(VLOOKUP($A198,[1]Sheet1!$A$4:$B$219,2,FALSE),0)","v":1035},2549.69,-280.87000000000262,{"$f":"$BH198+$BI197-IFERROR(VLOOKUP($A198,[2]Sheet2!$A$4:$B$82,2,FALSE),0)","v":-0.18000000000029104},{"$f":"$BJ197+$BK197-IFERROR(VLOOKUP($A198,[2]Amazon!$A$2:$F$17,5,FALSE),0)","v":0},{"$f":"$BL198+$BM197-IFERROR(VLOOKUP($A198,'[2]Myaccountaccess Pivot'!$A$4:$B$31,2,FALSE),0)","v":0},{"$f":"IFERROR(VLOOKUP($A198,'[2]export-1'!$A$2:$F$441,6,FALSE),AJ197)","v":18176.979999999996},{"$f":"IFERROR(VLOOKUP($A198,'[7]download-1'!$A$2:$F$513,6,FALSE),AK197)","v":-9040.2099999999991},{"$f":"IFERROR(VLOOKUP($A198,'[3]TexttoColumn Amazon Balance'!$A$14:$B$30,2,FALSE),IF(AL199>0,AL199-600,0))","v":7662.58},20314.18,62637.87,540,{"$f":"AP197+AZ198+BA198-Y198-U198-AT198","v":75},0,0,null,null,null,null,null,{"$f":"IFERROR(VLOOKUP($A198,'[2]export-1'!$A$446:$G$451,7,FALSE),0)","v":0},{"$f":"IFERROR(VLOOKUP($A198,[3]Sheet4!$A$4:$B$56,2,FALSE),0)","v":0},{"$f":"IFERROR(VLOOKUP($A198,'[3]headphones purchased'!$A$2:$G$27,6,FALSE),0)","v":0},{"$f":"ROUND(IFERROR(VLOOKUP($A198,'[4]download-1'!$A$471:$F$474,5,FALSE)/-9.5,0),0)","v":0},{"$f":"ROUND(IFERROR(VLOOKUP($A198,'[4]download-1'!$A$467:$F$469,5,FALSE)/-49,0),0)","v":0},{"$f":"IFERROR(VLOOKUP($A198,[5]Sheet8!$A$4:$B$89,2,FALSE),0)","v":1},null,null,0,{"$f":"IFERROR(VLOOKUP($A198,'[8]DHR-1'!$A$9:$AS$451,37,FALSE),0)","v":3515.01},{"$f":"IFERROR(VLOOKUP($A198,'[3]Paypal Money Sent Pivot'!$A$4:$B$97,2,FALSE),0)","v":0},{"$f":"$BH198+$BI197-IFERROR(VLOOKUP($A198,[2]Sheet2!$A$4:$B$82,2,FALSE),0)","v":-0.18000000000029104},{"$f":"IFERROR(VLOOKUP($A198,'[3]TexttoColumn Amazon Balance'!$A$14:$B$30,2,FALSE),0)","v":0},{"$f":"$BJ197+$BK197-IFERROR(VLOOKUP($A198,[2]Amazon!$A$2:$F$17,5,FALSE),0)","v":0},{"$f":"IFERROR(VLOOKUP($A198,'[4]Payment Pivot'!$A$4:$B$39,2,FALSE),0)","v":0},{"$f":"$BL198+$BM197-IFERROR(VLOOKUP($A198,'[2]Myaccountaccess Pivot'!$A$4:$B$31,2,FALSE),0)","v":0},null,{"$f":"IFERROR(VLOOKUP($A198,'[6]export-2'!$A$2:$F$15,6,FALSE),BO197)","v":15151.190000000002},757.70684520237342,{"$f":"OFFSET(A198,0,'Cool Graph'!$H$1)","v":79.14},{"$f":"OFFSET(A198,0,'Cool Graph'!$I$1)","v":757.70684520237342}]
["2012-01-14",0.03,9.9499999999999993,118.08999999999999,86.84,10.79,225.7,0,0,0,1,0,0,0,67.959999999999994,0,0,18.88,0,3,1,0,0,6,6,0,0,9,547.89,{"$f":"IFERROR(VLOOKUP($A199,[1]Sheet1!$A$4:$B$219,2,FALSE),0)","v":1050},1597.8899999999999,876.84999999999854,{"$f":"$BH199+$BI198-IFERROR(VLOOKUP($A199,[2]Sheet2!$A$4:$B$82,2,FALSE),0)","v":-0.18000000000029104},{"$f":"$BJ198+$BK198-IFERROR(VLOOKUP($A199,[2]Amazon!$A$2:$F$17,5,FALSE),0)","v":0},{"$f":"$BL199+$BM198-IFERROR(VLOOKUP($A199,'[2]Myaccountaccess Pivot'!$A$4:$B$31,2,FALSE),0)","v":0},{"$f":"IFERROR(VLOOKUP($A199,'[2]export-1'!$A$2:$F$441,6,FALSE),AJ198)","v":18176.979999999996},{"$f":"IFERROR(VLOOKUP($A199,'[7]download-1'!$A$2:$F$513,6,FALSE),AK198)","v":-9040.2099999999991},{"$f":"IFERROR(VLOOKUP($A199,'[3]TexttoColumn Amazon Balance'!$A$14:$B$30,2,FALSE),IF(AL200>0,AL200-600,0))","v":8262.58},21698.53,63514.720000000001,531,68,0,0,null,null,null,null,null,{"$f":"IFERROR(VLOOKUP($A199,'[2]export-1'!$A$446:$G$451,7,FALSE),0)","v":0},{"$f":"IFERROR(VLOOKUP($A199,[3]Sheet4!$A$4:$B$56,2,FALSE),0)","v":0},{"$f":"IFERROR(VLOOKUP($A199,'[3]headphones purchased'!$A$2:$G$27,6,FALSE),0)","v":0},{"$f":"ROUND(IFERROR(VLOOKUP($A199,'[4]download-1'!$A$471:$F$474,5,FALSE)/-9.5,0),0)","v":0},{"$f":"ROUND(IFERROR(VLOOKUP($A199,'[4]download-1'!$A$467:$F$469,5,FALSE)/-49,0),0)","v":0},{"$f":"IFERROR(VLOOKUP($A199,[5]Sheet8!$A$4:$B$89,2,FALSE),0)","v":1},null,null,1,{"$f":"IFERROR(VLOOKUP($A199,'[8]DHR-1'!$A$9:$AS$451,37,FALSE),0)","v":4299.3599999999997},{"$f":"IFERROR(VLOOKUP($A199,'[3]Paypal Money Sent Pivot'!$A$4:$B$97,2,FALSE),0)","v":0},{"$f":"$BH199+$BI198-IFERROR(VLOOKUP($A199,[2]Sheet2!$A$4:$B$82,2,FALSE),0)","v":-0.18000000000029104},{"$f":"IFERROR(VLOOKUP($A199,'[3]TexttoColumn Amazon Balance'!$A$14:$B$30,2,FALSE),0)","v":8262.58},{"$f":"$BJ198+$BK198-IFERROR(VLOOKUP($A199,[2]Amazon!$A$2:$F$17,5,FALSE),0)","v":0},{"$f":"IFERROR(VLOOKUP($A199,'[4]Payment Pivot'!$A$4:$B$39,2,FALSE),0)","v":0},{"$f":"$BL199+$BM198-IFERROR(VLOOKUP($A199,'[2]Myaccountaccess Pivot'!$A$4:$B$31,2,FALSE),0)","v":0},null,{"$f":"IFERROR(VLOOKUP($A199,'[6]export-2'!$A$2:$F$15,6,FALSE),BO198)","v":15151.190000000002},450.93317273096733,{"$f":"OFFSET(A199,0,'Cool Graph'!$H$1)","v":0.03},{"$f":"OFFSET(A199,0,'Cool Graph'!$I$1)","v":450.93317273096733}]
["2012-01-15",0,44.28,114.34,156.85,14.6,330.07000000000005,0,1,0,3,2,0,0,132.10999999999999,2,0,24.74,0,3,0,0,0,7,7,0,0,10,515.66,{"$f":"IFERROR(VLOOKUP($A200,[1]Sheet1!$A$4:$B$219,2,FALSE),0)","v":1225},1740.6599999999999,2453.7699999999895,{"$f":"$BH200+$BI199-IFERROR(VLOOKUP($A200,[2]Sheet2!$A$4:$B$82,2,FALSE),0)","v":-0.18000000000029104},{"$f":"$BJ199+$BK199-IFERROR(VLOOKUP($A200,[2]Amazon!$A$2:$F$17,5,FALSE),0)","v":8262.58},{"$f":"$BL200+$BM199-IFERROR(VLOOKUP($A200,'[2]Myaccountaccess Pivot'!$A$4:$B$31,2,FALSE),0)","v":0},{"$f":"IFERROR(VLOOKUP($A200,'[2]export-1'!$A$2:$F$441,6,FALSE),AJ199)","v":18176.979999999996},{"$f":"IFERROR(VLOOKUP($A200,'[7]download-1'!$A$2:$F$513,6,FALSE),AK199)","v":-9040.2099999999991},{"$f":"IFERROR(VLOOKUP($A200,'[3]TexttoColumn Amazon Balance'!$A$14:$B$30,2,FALSE),IF(AL201>0,AL201-600,0))","v":2025.7199999999993},24708.799999999996,65968.489999999991,521,61,0,0,null,null,null,null,null,{"$f":"IFERROR(VLOOKUP($A200,'[2]export-1'!$A$446:$G$451,7,FALSE),0)","v":0},{"$f":"IFERROR(VLOOKUP($A200,[3]Sheet4!$A$4:$B$56,2,FALSE),0)","v":0},{"$f":"IFERROR(VLOOKUP($A200,'[3]headphones purchased'!$A$2:$G$27,6,FALSE),0)","v":0},{"$f":"ROUND(IFERROR(VLOOKUP($A200,'[4]download-1'!$A$471:$F$474,5,FALSE)/-9.5,0),0)","v":0},{"$f":"ROUND(IFERROR(VLOOKUP($A200,'[4]download-1'!$A$467:$F$469,5,FALSE)/-49,0),0)","v":0},{"$f":"IFERROR(VLOOKUP($A200,[5]Sheet8!$A$4:$B$89,2,FALSE),0)","v":0},null,null,0,{"$f":"IFERROR(VLOOKUP($A200,'[8]DHR-1'!$A$9:$AS$451,37,FALSE),0)","v":5283.91},{"$f":"IFERROR(VLOOKUP($A200,'[3]Paypal Money Sent Pivot'!$A$4:$B$97,2,FALSE),0)","v":0},{"$f":"$BH200+$BI199-IFERROR(VLOOKUP($A200,[2]Sheet2!$A$4:$B$82,2,FALSE),0)","v":-0.18000000000029104},{"$f":"IFERROR(VLOOKUP($A200,'[3]TexttoColumn Amazon Balance'!$A$14:$B$30,2,FALSE),0)","v":0},{"$f":"$BJ199+$BK199-IFERROR(VLOOKUP($A200,[2]Amazon!$A$2:$F$17,5,FALSE),0)","v":8262.58},{"$f":"IFERROR(VLOOKUP($A200,'[4]Payment Pivot'!$A$4:$B$39,2,FALSE),0)","v":0},{"$f":"$BL200+$BM199-IFERROR(VLOOKUP($A200,'[2]Myaccountaccess Pivot'!$A$4:$B$31,2,FALSE),0)","v":0},null,{"$f":"IFERROR(VLOOKUP($A200,'[6]export-2'!$A$2:$F$15,6,FALSE),BO199)","v":15151.190000000002},407.01972360167815,{"$f":"OFFSET(A200,0,'Cool Graph'!$H$1)","v":0},{"$f":"OFFSET(A200,0,'Cool Graph'!$I$1)","v":407.01972360167815}]
["2012-01-16",0,46.67,148.03,143.81,8.07,346.58,0,0,0,3,0,1,0,121.63,0,0,22.18,0,1,0,0,0,6,6,1,0,7,173.99,{"$f":"IFERROR(VLOOKUP($A201,[1]Sheet1!$A$4:$B$219,2,FALSE),0)","v":1085},1258.99,2283.2100000000064,{"$f":"$BH201+$BI200-IFERROR(VLOOKUP($A201,[2]Sheet2!$A$4:$B$82,2,FALSE),0)","v":-0.18000000000029104},{"$f":"$BJ200+$BK200-IFERROR(VLOOKUP($A201,[2]Amazon!$A$2:$F$17,5,FALSE),0)","v":8262.58},{"$f":"$BL201+$BM200-IFERROR(VLOOKUP($A201,'[2]Myaccountaccess Pivot'!$A$4:$B$31,2,FALSE),0)","v":0},{"$f":"IFERROR(VLOOKUP($A201,'[2]export-1'!$A$2:$F$441,6,FALSE),AJ200)","v":18176.979999999996},{"$f":"IFERROR(VLOOKUP($A201,'[7]download-1'!$A$2:$F$513,6,FALSE),AK200)","v":-9040.2099999999991},{"$f":"IFERROR(VLOOKUP($A201,'[3]TexttoColumn Amazon Balance'!$A$14:$B$30,2,FALSE),IF(AL202>0,AL202-600,0))","v":2625.7199999999993},26665.759999999995,68251.7,515,55,129,0,null,null,null,null,null,{"$f":"IFERROR(VLOOKUP($A201,'[2]export-1'!$A$446:$G$451,7,FALSE),0)","v":0},{"$f":"IFERROR(VLOOKUP($A201,[3]Sheet4!$A$4:$B$56,2,FALSE),0)","v":0},{"$f":"IFERROR(VLOOKUP($A201,'[3]headphones purchased'!$A$2:$G$27,6,FALSE),0)","v":0},{"$f":"ROUND(IFERROR(VLOOKUP($A201,'[4]download-1'!$A$471:$F$474,5,FALSE)/-9.5,0),0)","v":0},{"$f":"ROUND(IFERROR(VLOOKUP($A201,'[4]download-1'!$A$467:$F$469,5,FALSE)/-49,0),0)","v":0},{"$f":"IFERROR(VLOOKUP($A201,[5]Sheet8!$A$4:$B$89,2,FALSE),0)","v":0},130,null,1,{"$f":"IFERROR(VLOOKUP($A201,'[8]DHR-1'!$A$9:$AS$451,37,FALSE),0)","v":6640.87},{"$f":"IFERROR(VLOOKUP($A201,'[3]Paypal Money Sent Pivot'!$A$4:$B$97,2,FALSE),0)","v":0},{"$f":"$BH201+$BI200-IFERROR(VLOOKUP($A201,[2]Sheet2!$A$4:$B$82,2,FALSE),0)","v":-0.18000000000029104},{"$f":"IFERROR(VLOOKUP($A201,'[3]TexttoColumn Amazon Balance'!$A$14:$B$30,2,FALSE),0)","v":0},{"$f":"$BJ200+$BK200-IFERROR(VLOOKUP($A201,[2]Amazon!$A$2:$F$17,5,FALSE),0)","v":8262.58},{"$f":"IFERROR(VLOOKUP($A201,'[4]Payment Pivot'!$A$4:$B$39,2,FALSE),0)","v":0},{"$f":"$BL201+$BM200-IFERROR(VLOOKUP($A201,'[2]Myaccountaccess Pivot'!$A$4:$B$31,2,FALSE),0)","v":0},null,{"$f":"IFERROR(VLOOKUP($A201,'[6]export-2'!$A$2:$F$15,6,FALSE),BO200)","v":15151.190000000002},186.54455684468934,{"$f":"OFFSET(A201,0,'Cool Graph'!$H$1)","v":0},{"$f":"OFFSET(A201,0,'Cool Graph'!$I$1)","v":186.54455684468934}]
["2012-01-17",229.19,14.88,121.72,125.14,15.07,505.99999999999994,0,0,0,3,0,3,0,103.4,0,0,21.74,0,5,3,0,0,6,6,0,0,11,958.13,1104.44,2062.5700000000002,-242.05000000000291,{"$f":"$BH202+$BI201-IFERROR(VLOOKUP($A202,[2]Sheet2!$A$4:$B$82,2,FALSE),0)","v":-0.18000000000029104},{"$f":"$BJ201+$BK201-IFERROR(VLOOKUP($A202,[2]Amazon!$A$2:$F$17,5,FALSE),0)","v":0},{"$f":"$BL202+$BM201-IFERROR(VLOOKUP($A202,'[2]Myaccountaccess Pivot'!$A$4:$B$31,2,FALSE),0)","v":0},{"$f":"IFERROR(VLOOKUP($A202,'[2]export-1'!$A$2:$F$441,6,FALSE),AJ201)","v":22029.559999999998},{"$f":"IFERROR(VLOOKUP($A202,'[7]download-1'!$A$2:$F$513,6,FALSE),AK201)","v":-10379.709999999999},{"$f":"IFERROR(VLOOKUP($A202,'[3]TexttoColumn Amazon Balance'!$A$14:$B$30,2,FALSE),IF(AL203>0,AL203-600,0))","v":3225.7199999999993},22736.21,68009.649999999994,592,46,129,0,null,null,null,null,null,{"$f":"IFERROR(VLOOKUP($A202,'[2]export-1'!$A$446:$G$451,7,FALSE),0)","v":90},{"$f":"IFERROR(VLOOKUP($A202,[3]Sheet4!$A$4:$B$56,2,FALSE),0)","v":0},{"$f":"IFERROR(VLOOKUP($A202,'[3]headphones purchased'!$A$2:$G$27,6,FALSE),0)","v":0},{"$f":"ROUND(IFERROR(VLOOKUP($A202,'[4]download-1'!$A$471:$F$474,5,FALSE)/-9.5,0),0)","v":0},{"$f":"ROUND(IFERROR(VLOOKUP($A202,'[4]download-1'!$A$467:$F$469,5,FALSE)/-49,0),0)","v":0},{"$f":"IFERROR(VLOOKUP($A202,[5]Sheet8!$A$4:$B$89,2,FALSE),0)","v":2},null,null,0,{"$f":"IFERROR(VLOOKUP($A202,'[8]DHR-1'!$A$9:$AS$451,37,FALSE),0)","v":7860.82},{"$f":"IFERROR(VLOOKUP($A202,'[3]Paypal Money Sent Pivot'!$A$4:$B$97,2,FALSE),0)","v":0},{"$f":"$BH202+$BI201-IFERROR(VLOOKUP($A202,[2]Sheet2!$A$4:$B$82,2,FALSE),0)","v":-0.18000000000029104},{"$f":"IFERROR(VLOOKUP($A202,'[3]TexttoColumn Amazon Balance'!$A$14:$B$30,2,FALSE),0)","v":0},{"$f":"$BJ201+$BK201-IFERROR(VLOOKUP($A202,[2]Amazon!$A$2:$F$17,5,FALSE),0)","v":0},{"$f":"IFERROR(VLOOKUP($A202,'[4]Payment Pivot'!$A$4:$B$39,2,FALSE),0)","v":0},{"$f":"$BL202+$BM201-IFERROR(VLOOKUP($A202,'[2]Myaccountaccess Pivot'!$A$4:$B$31,2,FALSE),0)","v":0},null,{"$f":"IFERROR(VLOOKUP($A202,'[6]export-2'!$A$2:$F$15,6,FALSE),BO201)","v":15151.190000000002},367.4038532563016,{"$f":"OFFSET(A202,0,'Cool Graph'!$H$1)","v":229.19},{"$f":"OFFSET(A202,0,'Cool Graph'!$I$1)","v":367.4038532563016}]
["2012-01-18",110.83,18.27,119.25,102.28,23.22,373.85,0,0,0,8,0,5,0,87,0,1,15.28,0,3,1,0,0,11,10,0,0,14,549.04999999999995,1950,2499.0500000000002,3728.1000000000058,{"$f":"$BH203+$BI202-IFERROR(VLOOKUP($A203,[2]Sheet2!$A$4:$B$82,2,FALSE),0)","v":-0.18000000000029104},{"$f":"$BJ202+$BK202-IFERROR(VLOOKUP($A203,[2]Amazon!$A$2:$F$17,5,FALSE),0)","v":0},{"$f":"$BL203+$BM202-IFERROR(VLOOKUP($A203,'[2]Myaccountaccess Pivot'!$A$4:$B$31,2,FALSE),0)","v":0},{"$f":"IFERROR(VLOOKUP($A203,'[2]export-1'!$A$2:$F$441,6,FALSE),AJ202)","v":22029.559999999998},{"$f":"IFERROR(VLOOKUP($A203,'[7]download-1'!$A$2:$F$513,6,FALSE),AK202)","v":-10379.709999999999},{"$f":"IFERROR(VLOOKUP($A203,'[3]TexttoColumn Amazon Balance'!$A$14:$B$30,2,FALSE),IF(AL204>0,AL204-600,0))","v":3825.7199999999993},27205.809999999998,71737.75,579,35,129,0,null,null,null,null,null,{"$f":"IFERROR(VLOOKUP($A203,'[2]export-1'!$A$446:$G$451,7,FALSE),0)","v":0},{"$f":"IFERROR(VLOOKUP($A203,[3]Sheet4!$A$4:$B$56,2,FALSE),0)","v":0},{"$f":"IFERROR(VLOOKUP($A203,'[3]headphones purchased'!$A$2:$G$27,6,FALSE),0)","v":0},{"$f":"ROUND(IFERROR(VLOOKUP($A203,'[4]download-1'!$A$471:$F$474,5,FALSE)/-9.5,0),0)","v":0},{"$f":"ROUND(IFERROR(VLOOKUP($A203,'[4]download-1'!$A$467:$F$469,5,FALSE)/-49,0),0)","v":0},{"$f":"IFERROR(VLOOKUP($A203,[5]Sheet8!$A$4:$B$89,2,FALSE),0)","v":0},null,null,1,{"$f":"IFERROR(VLOOKUP($A203,'[8]DHR-1'!$A$9:$AS$451,37,FALSE),0)","v":11730.42},{"$f":"IFERROR(VLOOKUP($A203,'[3]Paypal Money Sent Pivot'!$A$4:$B$97,2,FALSE),0)","v":0},{"$f":"$BH203+$BI202-IFERROR(VLOOKUP($A203,[2]Sheet2!$A$4:$B$82,2,FALSE),0)","v":-0.18000000000029104},{"$f":"IFERROR(VLOOKUP($A203,'[3]TexttoColumn Amazon Balance'!$A$14:$B$30,2,FALSE),0)","v":0},{"$f":"$BJ202+$BK202-IFERROR(VLOOKUP($A203,[2]Amazon!$A$2:$F$17,5,FALSE),0)","v":0},{"$f":"IFERROR(VLOOKUP($A203,'[4]Payment Pivot'!$A$4:$B$39,2,FALSE),0)","v":0},{"$f":"$BL203+$BM202-IFERROR(VLOOKUP($A203,'[2]Myaccountaccess Pivot'!$A$4:$B$31,2,FALSE),0)","v":0},null,{"$f":"IFERROR(VLOOKUP($A203,'[6]export-2'!$A$2:$F$15,6,FALSE),BO202)","v":15151.190000000002},684.38312638124296,{"$f":"OFFSET(A203,0,'Cool Graph'!$H$1)","v":110.83},{"$f":"OFFSET(A203,0,'Cool Graph'!$I$1)","v":684.38312638124296}]
["2012-01-19",61.26,25.89,103.17999999999998,127.00000000000001,16.39,333.71999999999997,1,0,0,2,4,3,0,104.46000000000001,2,0,22.54,2,4,4,0,0,13,15,0,0,17,819.3,2375,3194.3,-1909.3399999999965,{"$f":"$BH204+$BI203-IFERROR(VLOOKUP($A204,[2]Sheet2!$A$4:$B$82,2,FALSE),0)","v":-0.18000000000029104},{"$f":"$BJ203+$BK203-IFERROR(VLOOKUP($A204,[2]Amazon!$A$2:$F$17,5,FALSE),0)","v":0},{"$f":"$BL204+$BM203-IFERROR(VLOOKUP($A204,'[2]Myaccountaccess Pivot'!$A$4:$B$31,2,FALSE),0)","v":0},{"$f":"IFERROR(VLOOKUP($A204,'[2]export-1'!$A$2:$F$441,6,FALSE),AJ203)","v":21271.57},{"$f":"IFERROR(VLOOKUP($A204,'[7]download-1'!$A$2:$F$513,6,FALSE),AK203)","v":-14312.92},{"$f":"IFERROR(VLOOKUP($A204,'[3]TexttoColumn Amazon Balance'!$A$14:$B$30,2,FALSE),IF(AL205>0,AL205-600,0))","v":4425.7199999999993},24992.47,69828.41,560,165,129,0,null,null,null,null,null,{"$f":"IFERROR(VLOOKUP($A204,'[2]export-1'!$A$446:$G$451,7,FALSE),0)","v":0},{"$f":"IFERROR(VLOOKUP($A204,[3]Sheet4!$A$4:$B$56,2,FALSE),0)","v":0},{"$f":"IFERROR(VLOOKUP($A204,'[3]headphones purchased'!$A$2:$G$27,6,FALSE),0)","v":0},{"$f":"ROUND(IFERROR(VLOOKUP($A204,'[4]download-1'!$A$471:$F$474,5,FALSE)/-9.5,0),0)","v":149},{"$f":"ROUND(IFERROR(VLOOKUP($A204,'[4]download-1'!$A$467:$F$469,5,FALSE)/-49,0),0)","v":0},{"$f":"IFERROR(VLOOKUP($A204,[5]Sheet8!$A$4:$B$89,2,FALSE),0)","v":2},null,null,0,{"$f":"IFERROR(VLOOKUP($A204,'[8]DHR-1'!$A$9:$AS$451,37,FALSE),0)","v":13608.28},{"$f":"IFERROR(VLOOKUP($A204,'[3]Paypal Money Sent Pivot'!$A$4:$B$97,2,FALSE),0)","v":0},{"$f":"$BH204+$BI203-IFERROR(VLOOKUP($A204,[2]Sheet2!$A$4:$B$82,2,FALSE),0)","v":-0.18000000000029104},{"$f":"IFERROR(VLOOKUP($A204,'[3]TexttoColumn Amazon Balance'!$A$14:$B$30,2,FALSE),0)","v":0},{"$f":"$BJ203+$BK203-IFERROR(VLOOKUP($A204,[2]Amazon!$A$2:$F$17,5,FALSE),0)","v":0},{"$f":"IFERROR(VLOOKUP($A204,'[4]Payment Pivot'!$A$4:$B$39,2,FALSE),0)","v":0},{"$f":"$BL204+$BM203-IFERROR(VLOOKUP($A204,'[2]Myaccountaccess Pivot'!$A$4:$B$31,2,FALSE),0)","v":0},null,{"$f":"IFERROR(VLOOKUP($A204,'[6]export-2'!$A$2:$F$15,6,FALSE),BO203)","v":15151.190000000002},1018.9196333004959,{"$f":"OFFSET(A204,0,'Cool Graph'!$H$1)","v":61.26},{"$f":"OFFSET(A204,0,'Cool Graph'!$I$1)","v":1018.9196333004959}]
["2012-01-20",24.42,30.54,111.28,125.33,12.14,303.70999999999998,0,1,0,6,1,0,0,106.61,0,0,18.72,1,7,3,0,0,6,7,0,0,13,1013.1,1075,2088.1,454.80999999999767,{"$f":"$BH205+$BI204-IFERROR(VLOOKUP($A205,[2]Sheet2!$A$4:$B$82,2,FALSE),0)","v":15464.71},{"$f":"$BJ204+$BK204-IFERROR(VLOOKUP($A205,[2]Amazon!$A$2:$F$17,5,FALSE),0)","v":0},{"$f":"$BL205+$BM204-IFERROR(VLOOKUP($A205,'[2]Myaccountaccess Pivot'!$A$4:$B$31,2,FALSE),0)","v":0},{"$f":"IFERROR(VLOOKUP($A205,'[2]export-1'!$A$2:$F$441,6,FALSE),AJ204)","v":21271.57},{"$f":"IFERROR(VLOOKUP($A205,'[7]download-1'!$A$2:$F$513,6,FALSE),AK204)","v":-15141.72},{"$f":"IFERROR(VLOOKUP($A205,'[3]TexttoColumn Amazon Balance'!$A$14:$B$30,2,FALSE),IF(AL206>0,AL206-600,0))","v":5025.7199999999993},{"$f":"AL205+AK205+AJ205-AI205+AH205+AG205+BG205","v":26620.28},70283.22,538,155,129,0,null,null,null,null,null,{"$f":"IFERROR(VLOOKUP($A205,'[2]export-1'!$A$446:$G$451,7,FALSE),0)","v":0},{"$f":"IFERROR(VLOOKUP($A205,[3]Sheet4!$A$4:$B$56,2,FALSE),0)","v":0},{"$f":"IFERROR(VLOOKUP($A205,'[3]headphones purchased'!$A$2:$G$27,6,FALSE),0)","v":0},{"$f":"ROUND(IFERROR(VLOOKUP($A205,'[4]download-1'!$A$471:$F$474,5,FALSE)/-9.5,0),0)","v":0},{"$f":"ROUND(IFERROR(VLOOKUP($A205,'[4]download-1'!$A$467:$F$469,5,FALSE)/-49,0),0)","v":0},{"$f":"IFERROR(VLOOKUP($A205,[5]Sheet8!$A$4:$B$89,2,FALSE),0)","v":10},null,null,1,0,{"$f":"IFERROR(VLOOKUP($A205,'[3]Paypal Money Sent Pivot'!$A$4:$B$97,2,FALSE),0)","v":15464.89},{"$f":"$BH205+$BI204-IFERROR(VLOOKUP($A205,[2]Sheet2!$A$4:$B$82,2,FALSE),0)","v":15464.71},{"$f":"IFERROR(VLOOKUP($A205,'[3]TexttoColumn Amazon Balance'!$A$14:$B$30,2,FALSE),0)","v":0},{"$f":"$BJ204+$BK204-IFERROR(VLOOKUP($A205,[2]Amazon!$A$2:$F$17,5,FALSE),0)","v":0},{"$f":"IFERROR(VLOOKUP($A205,'[4]Payment Pivot'!$A$4:$B$39,2,FALSE),0)","v":0},{"$f":"$BL205+$BM204-IFERROR(VLOOKUP($A205,'[2]Myaccountaccess Pivot'!$A$4:$B$31,2,FALSE),0)","v":0},null,{"$f":"IFERROR(VLOOKUP($A205,'[6]export-2'!$A$2:$F$15,6,FALSE),BO204)","v":15151.190000000002},580.50463804112496,{"$f":"OFFSET(A205,0,'Cool Graph'!$H$1)","v":24.42},{"$f":"OFFSET(A205,0,'Cool Graph'!$I$1)","v":580.50463804112496}]
["2012-01-21",124.82,35.9,102.72,151.38000000000002,11.5,426.32000000000005,0,0,0,2,1,1,0,129.28,0,0,22.1,1,5,3,0,0,2,2,1,0,7,963.76,365,1328.76,2374.1100000000006,{"$f":"$BH206+$BI205-IFERROR(VLOOKUP($A206,[2]Sheet2!$A$4:$B$82,2,FALSE),0)","v":16506.41},{"$f":"$BJ205+$BK205-IFERROR(VLOOKUP($A206,[2]Amazon!$A$2:$F$17,5,FALSE),0)","v":0},{"$f":"$BL206+$BM205-IFERROR(VLOOKUP($A206,'[2]Myaccountaccess Pivot'!$A$4:$B$31,2,FALSE),0)","v":0},{"$f":"IFERROR(VLOOKUP($A206,'[2]export-1'!$A$2:$F$441,6,FALSE),AJ205)","v":21271.57},{"$f":"IFERROR(VLOOKUP($A206,'[7]download-1'!$A$2:$F$513,6,FALSE),AK205)","v":-15141.72},{"$f":"IFERROR(VLOOKUP($A206,'[3]TexttoColumn Amazon Balance'!$A$14:$B$30,2,FALSE),IF(AL207>0,AL207-600,0))","v":5625.7199999999993},29635.14,72657.33,526,150,128,0,null,null,null,null,null,{"$f":"IFERROR(VLOOKUP($A206,'[2]export-1'!$A$446:$G$451,7,FALSE),0)","v":0},{"$f":"IFERROR(VLOOKUP($A206,[3]Sheet4!$A$4:$B$56,2,FALSE),0)","v":0},{"$f":"IFERROR(VLOOKUP($A206,'[3]headphones purchased'!$A$2:$G$27,6,FALSE),0)","v":0},{"$f":"ROUND(IFERROR(VLOOKUP($A206,'[4]download-1'!$A$471:$F$474,5,FALSE)/-9.5,0),0)","v":0},{"$f":"ROUND(IFERROR(VLOOKUP($A206,'[4]download-1'!$A$467:$F$469,5,FALSE)/-49,0),0)","v":0},{"$f":"IFERROR(VLOOKUP($A206,[5]Sheet8!$A$4:$B$89,2,FALSE),0)","v":5},null,null,0,{"$f":"IFERROR(VLOOKUP($A206,'[8]DHR-1'!$A$9:$AS$451,37,FALSE),0)","v":1373.16},{"$f":"IFERROR(VLOOKUP($A206,'[3]Paypal Money Sent Pivot'!$A$4:$B$97,2,FALSE),0)","v":1041.7},{"$f":"$BH206+$BI205-IFERROR(VLOOKUP($A206,[2]Sheet2!$A$4:$B$82,2,FALSE),0)","v":16506.41},{"$f":"IFERROR(VLOOKUP($A206,'[3]TexttoColumn Amazon Balance'!$A$14:$B$30,2,FALSE),0)","v":0},{"$f":"$BJ205+$BK205-IFERROR(VLOOKUP($A206,[2]Amazon!$A$2:$F$17,5,FALSE),0)","v":0},{"$f":"IFERROR(VLOOKUP($A206,'[4]Payment Pivot'!$A$4:$B$39,2,FALSE),0)","v":0},{"$f":"$BL206+$BM205-IFERROR(VLOOKUP($A206,'[2]Myaccountaccess Pivot'!$A$4:$B$31,2,FALSE),0)","v":0},null,{"$f":"IFERROR(VLOOKUP($A206,'[6]export-2'!$A$2:$F$15,6,FALSE),BO205)","v":15151.190000000002},136.34895380658259,{"$f":"OFFSET(A206,0,'Cool Graph'!$H$1)","v":124.82},{"$f":"OFFSET(A206,0,'Cool Graph'!$I$1)","v":136.34895380658259}]
["2012-01-22",46.06,28.71,139.48999999999998,149.79999999999998,11.92,375.97999999999996,1,1,0,6,6,3,0,129.91,5,1,19.89,1,3,1,0,0,12,13,0,0,15,553.36,2315,2868.36,142.10000000000582,{"$f":"$BH207+$BI206-IFERROR(VLOOKUP($A207,[2]Sheet2!$A$4:$B$82,2,FALSE),0)","v":17207.810000000001},{"$f":"$BJ206+$BK206-IFERROR(VLOOKUP($A207,[2]Amazon!$A$2:$F$17,5,FALSE),0)","v":0},{"$f":"$BL207+$BM206-IFERROR(VLOOKUP($A207,'[2]Myaccountaccess Pivot'!$A$4:$B$31,2,FALSE),0)","v":0},{"$f":"IFERROR(VLOOKUP($A207,'[2]export-1'!$A$2:$F$441,6,FALSE),AJ206)","v":21271.57},{"$f":"IFERROR(VLOOKUP($A207,'[7]download-1'!$A$2:$F$513,6,FALSE),AK206)","v":-15141.72},{"$f":"IFERROR(VLOOKUP($A207,'[3]TexttoColumn Amazon Balance'!$A$14:$B$30,2,FALSE),IF(AL208>0,AL208-600,0))","v":6225.7199999999993},30596.240000000002,72799.430000000008,512,136,128,0,null,null,null,null,null,{"$f":"IFERROR(VLOOKUP($A207,'[2]export-1'!$A$446:$G$451,7,FALSE),0)","v":0},{"$f":"IFERROR(VLOOKUP($A207,[3]Sheet4!$A$4:$B$56,2,FALSE),0)","v":0},{"$f":"IFERROR(VLOOKUP($A207,'[3]headphones purchased'!$A$2:$G$27,6,FALSE),0)","v":0},{"$f":"ROUND(IFERROR(VLOOKUP($A207,'[4]download-1'!$A$471:$F$474,5,FALSE)/-9.5,0),0)","v":0},{"$f":"ROUND(IFERROR(VLOOKUP($A207,'[4]download-1'!$A$467:$F$469,5,FALSE)/-49,0),0)","v":0},{"$f":"IFERROR(VLOOKUP($A207,[5]Sheet8!$A$4:$B$89,2,FALSE),0)","v":0},null,null,1,{"$f":"IFERROR(VLOOKUP($A207,'[8]DHR-1'!$A$9:$AS$451,37,FALSE),0)","v":1032.8599999999999},{"$f":"IFERROR(VLOOKUP($A207,'[3]Paypal Money Sent Pivot'!$A$4:$B$97,2,FALSE),0)","v":701.4},{"$f":"$BH207+$BI206-IFERROR(VLOOKUP($A207,[2]Sheet2!$A$4:$B$82,2,FALSE),0)","v":17207.810000000001},{"$f":"IFERROR(VLOOKUP($A207,'[3]TexttoColumn Amazon Balance'!$A$14:$B$30,2,FALSE),0)","v":0},{"$f":"$BJ206+$BK206-IFERROR(VLOOKUP($A207,[2]Amazon!$A$2:$F$17,5,FALSE),0)","v":0},{"$f":"IFERROR(VLOOKUP($A207,'[4]Payment Pivot'!$A$4:$B$39,2,FALSE),0)","v":0},{"$f":"$BL207+$BM206-IFERROR(VLOOKUP($A207,'[2]Myaccountaccess Pivot'!$A$4:$B$31,2,FALSE),0)","v":0},null,{"$f":"IFERROR(VLOOKUP($A207,'[6]export-2'!$A$2:$F$15,6,FALSE),BO206)","v":15151.190000000002},838.63898336844068,{"$f":"OFFSET(A207,0,'Cool Graph'!$H$1)","v":46.06},{"$f":"OFFSET(A207,0,'Cool Graph'!$I$1)","v":838.63898336844068}]
["2012-01-23",37.79,18.86,136.69999999999999,103.17000000000002,19.149999999999999,315.66999999999996,0,0,5,4,0,0,1,92.580000000000013,0,0,10.59,0,6,5,0,0,14,14,0,0,20,1192.1300000000001,2525,3717.13,1180.6699999999983,{"$f":"$BH208+$BI207-IFERROR(VLOOKUP($A208,[2]Sheet2!$A$4:$B$82,2,FALSE),0)","v":2945.1400000000031},{"$f":"$BJ207+$BK207-IFERROR(VLOOKUP($A208,[2]Amazon!$A$2:$F$17,5,FALSE),0)","v":0},{"$f":"$BL208+$BM207-IFERROR(VLOOKUP($A208,'[2]Myaccountaccess Pivot'!$A$4:$B$31,2,FALSE),0)","v":0},{"$f":"IFERROR(VLOOKUP($A208,'[2]export-1'!$A$2:$F$441,6,FALSE),AJ207)","v":22778.160000000003},{"$f":"IFERROR(VLOOKUP($A208,'[7]download-1'!$A$2:$F$513,6,FALSE),AK207)","v":-16549.989999999998},{"$f":"IFERROR(VLOOKUP($A208,'[3]TexttoColumn Amazon Balance'!$A$14:$B$30,2,FALSE),IF(AL209>0,AL209-600,0))","v":6825.7199999999993},18574.410000000007,{"$f":"AM208+(AO208*49)+(AP208*9.5)+(AQ208*5.25)+(AR208*7)+(AS208*49)+(AT208*9.5)+(AU208*5.25)+BO208+(BN208*4)","v":73980.100000000006},479,117,128,0,null,null,null,null,null,{"$f":"IFERROR(VLOOKUP($A208,'[2]export-1'!$A$446:$G$451,7,FALSE),0)","v":0},{"$f":"IFERROR(VLOOKUP($A208,[3]Sheet4!$A$4:$B$56,2,FALSE),0)","v":0},{"$f":"IFERROR(VLOOKUP($A208,'[3]headphones purchased'!$A$2:$G$27,6,FALSE),0)","v":0},{"$f":"ROUND(IFERROR(VLOOKUP($A208,'[4]download-1'!$A$471:$F$474,5,FALSE)/-9.5,0),0)","v":0},{"$f":"ROUND(IFERROR(VLOOKUP($A208,'[4]download-1'!$A$467:$F$469,5,FALSE)/-49,0),0)","v":0},{"$f":"IFERROR(VLOOKUP($A208,[5]Sheet8!$A$4:$B$89,2,FALSE),0)","v":13},null,null,0,{"$f":"IFERROR(VLOOKUP($A208,'[8]DHR-1'!$A$9:$AS$451,37,FALSE),0)","v":2575.38},{"$f":"IFERROR(VLOOKUP($A208,'[3]Paypal Money Sent Pivot'!$A$4:$B$97,2,FALSE),0)","v":2243.92},{"$f":"$BH208+$BI207-IFERROR(VLOOKUP($A208,[2]Sheet2!$A$4:$B$82,2,FALSE),0)","v":2945.1400000000031},{"$f":"IFERROR(VLOOKUP($A208,'[3]TexttoColumn Amazon Balance'!$A$14:$B$30,2,FALSE),0)","v":0},{"$f":"$BJ207+$BK207-IFERROR(VLOOKUP($A208,[2]Amazon!$A$2:$F$17,5,FALSE),0)","v":0},{"$f":"IFERROR(VLOOKUP($A208,'[4]Payment Pivot'!$A$4:$B$39,2,FALSE),0)","v":0},{"$f":"$BL208+$BM207-IFERROR(VLOOKUP($A208,'[2]Myaccountaccess Pivot'!$A$4:$B$31,2,FALSE),0)","v":0},null,{"$f":"IFERROR(VLOOKUP($A208,'[6]export-2'!$A$2:$F$15,6,FALSE),BO207)","v":30151.190000000002},1258.3641734121002,{"$f":"OFFSET(A208,0,'Cool Graph'!$H$1)","v":37.79},{"$f":"OFFSET(A208,0,'Cool Graph'!$I$1)","v":1258.3641734121002}]
["2012-01-24",15.02,21.28,145.38,126.12,9.39,317.19,0,0,1,5,3,2,2,116.4,2,0,9.7200000000000006,1,6,6,0,0,9,9,0,0,15,1225.48,1585,2810.48,1542.3999999999942,{"$f":"$BH209+$BI208-IFERROR(VLOOKUP($A209,[2]Sheet2!$A$4:$B$82,2,FALSE),0)","v":4689.1100000000033},{"$f":"$BJ208+$BK208-IFERROR(VLOOKUP($A209,[2]Amazon!$A$2:$F$17,5,FALSE),0)","v":0},{"$f":"$BL209+$BM208-IFERROR(VLOOKUP($A209,'[2]Myaccountaccess Pivot'!$A$4:$B$31,2,FALSE),0)","v":0},{"$f":"IFERROR(VLOOKUP($A209,'[2]export-1'!$A$2:$F$441,6,FALSE),AJ208)","v":23459.560000000005},{"$f":"IFERROR(VLOOKUP($A209,'[7]download-1'!$A$2:$F$513,6,FALSE),AK208)","v":-17111.91},{"$f":"IFERROR(VLOOKUP($A209,'[3]TexttoColumn Amazon Balance'!$A$14:$B$30,2,FALSE),IF(AL210>0,AL210-600,0))","v":7425.7199999999993},21239.310000000005,{"$f":"AM209+(AO209*49)+(AP209*9.5)+(AQ209*5.25)+(AR209*7)+(AS209*49)+(AT209*9.5)+(AU209*5.25)+BO209+(BN209*4)","v":75522.5},459,102,128,0,null,null,null,null,null,{"$f":"IFERROR(VLOOKUP($A209,'[2]export-1'!$A$446:$G$451,7,FALSE),0)","v":0},{"$f":"IFERROR(VLOOKUP($A209,[3]Sheet4!$A$4:$B$56,2,FALSE),0)","v":0},{"$f":"IFERROR(VLOOKUP($A209,'[3]headphones purchased'!$A$2:$G$27,6,FALSE),0)","v":0},{"$f":"ROUND(IFERROR(VLOOKUP($A209,'[4]download-1'!$A$471:$F$474,5,FALSE)/-9.5,0),0)","v":0},{"$f":"ROUND(IFERROR(VLOOKUP($A209,'[4]download-1'!$A$467:$F$469,5,FALSE)/-49,0),0)","v":0},{"$f":"IFERROR(VLOOKUP($A209,[5]Sheet8!$A$4:$B$89,2,FALSE),0)","v":6},null,null,1,{"$f":"IFERROR(VLOOKUP($A209,'[8]DHR-1'!$A$9:$AS$451,37,FALSE),0)","v":2776.83},{"$f":"IFERROR(VLOOKUP($A209,'[3]Paypal Money Sent Pivot'!$A$4:$B$97,2,FALSE),0)","v":2445.37},{"$f":"$BH209+$BI208-IFERROR(VLOOKUP($A209,[2]Sheet2!$A$4:$B$82,2,FALSE),0)","v":4689.1100000000033},{"$f":"IFERROR(VLOOKUP($A209,'[3]TexttoColumn Amazon Balance'!$A$14:$B$30,2,FALSE),0)","v":0},{"$f":"$BJ208+$BK208-IFERROR(VLOOKUP($A209,[2]Amazon!$A$2:$F$17,5,FALSE),0)","v":0},{"$f":"IFERROR(VLOOKUP($A209,'[4]Payment Pivot'!$A$4:$B$39,2,FALSE),0)","v":0},{"$f":"$BL209+$BM208-IFERROR(VLOOKUP($A209,'[2]Myaccountaccess Pivot'!$A$4:$B$31,2,FALSE),0)","v":0},null,{"$f":"IFERROR(VLOOKUP($A209,'[6]export-2'!$A$2:$F$15,6,FALSE),BO208)","v":30151.190000000002},872.91945640621657,{"$f":"OFFSET(A209,0,'Cool Graph'!$H$1)","v":15.02},{"$f":"OFFSET(A209,0,'Cool Graph'!$I$1)","v":872.91945640621657}]
["2012-01-25",31.59,23.7,146.47999999999999,126.47999999999999,17.79,346.04,0,1,1,3,1,3,0,108.44999999999999,0,0,18.03,1,9,8,0,0,12,12,0,0,21,1811.34,2110,3921.34,-389.88999999999942,{"$f":"$BH210+$BI209-IFERROR(VLOOKUP($A210,[2]Sheet2!$A$4:$B$82,2,FALSE),0)","v":3979.9600000000028},{"$f":"$BJ209+$BK209-IFERROR(VLOOKUP($A210,[2]Amazon!$A$2:$F$17,5,FALSE),0)","v":0},{"$f":"$BL210+$BM209-IFERROR(VLOOKUP($A210,'[2]Myaccountaccess Pivot'!$A$4:$B$31,2,FALSE),0)","v":0},{"$f":"IFERROR(VLOOKUP($A210,'[2]export-1'!$A$2:$F$441,6,FALSE),AJ209)","v":26003.480000000003},{"$f":"IFERROR(VLOOKUP($A210,'[7]download-1'!$A$2:$F$513,6,FALSE),AK209)","v":-17757.97},{"$f":"IFERROR(VLOOKUP($A210,'[3]TexttoColumn Amazon Balance'!$A$14:$B$30,2,FALSE),IF(AL211>0,AL211-600,0))","v":8025.7199999999993},22117.420000000002,75132.61,437,82,128,0,null,null,null,null,null,{"$f":"IFERROR(VLOOKUP($A210,'[2]export-1'!$A$446:$G$451,7,FALSE),0)","v":0},{"$f":"IFERROR(VLOOKUP($A210,[3]Sheet4!$A$4:$B$56,2,FALSE),0)","v":0},{"$f":"IFERROR(VLOOKUP($A210,'[3]headphones purchased'!$A$2:$G$27,6,FALSE),0)","v":0},{"$f":"ROUND(IFERROR(VLOOKUP($A210,'[4]download-1'!$A$471:$F$474,5,FALSE)/-9.5,0),0)","v":0},{"$f":"ROUND(IFERROR(VLOOKUP($A210,'[4]download-1'!$A$467:$F$469,5,FALSE)/-49,0),0)","v":0},{"$f":"IFERROR(VLOOKUP($A210,[5]Sheet8!$A$4:$B$89,2,FALSE),0)","v":1},null,null,0,{"$f":"IFERROR(VLOOKUP($A210,'[8]DHR-1'!$A$9:$AS$451,37,FALSE),0)","v":1866.23},{"$f":"IFERROR(VLOOKUP($A210,'[3]Paypal Money Sent Pivot'!$A$4:$B$97,2,FALSE),0)","v":1534.77},{"$f":"$BH210+$BI209-IFERROR(VLOOKUP($A210,[2]Sheet2!$A$4:$B$82,2,FALSE),0)","v":3979.9600000000028},{"$f":"IFERROR(VLOOKUP($A210,'[3]TexttoColumn Amazon Balance'!$A$14:$B$30,2,FALSE),0)","v":0},{"$f":"$BJ209+$BK209-IFERROR(VLOOKUP($A210,[2]Amazon!$A$2:$F$17,5,FALSE),0)","v":0},{"$f":"IFERROR(VLOOKUP($A210,'[4]Payment Pivot'!$A$4:$B$39,2,FALSE),0)","v":0},{"$f":"$BL210+$BM209-IFERROR(VLOOKUP($A210,'[2]Myaccountaccess Pivot'!$A$4:$B$31,2,FALSE),0)","v":0},null,{"$f":"IFERROR(VLOOKUP($A210,'[6]export-2'!$A$2:$F$15,6,FALSE),BO209)","v":30151.190000000002},1314.4677480657942,{"$f":"OFFSET(A210,0,'Cool Graph'!$H$1)","v":31.59},{"$f":"OFFSET(A210,0,'Cool Graph'!$I$1)","v":1314.4677480657942}]
["2012-01-26",34.69,30.63,180.57,154.13,25.91,425.93,1,0,0,10,1,1,1,135.30000000000001,1,0,18.829999999999998,0,6,2,0,0,15,13,0,0,21,1065.1099999999999,2765,3830.1099999999997,-511.71999999998661,{"$f":"$BH211+$BI210-IFERROR(VLOOKUP($A211,[2]Sheet2!$A$4:$B$82,2,FALSE),0)","v":1534.5900000000029},{"$f":"$BJ210+$BK210-IFERROR(VLOOKUP($A211,[2]Amazon!$A$2:$F$17,5,FALSE),0)","v":0},{"$f":"$BL211+$BM210-IFERROR(VLOOKUP($A211,'[2]Myaccountaccess Pivot'!$A$4:$B$31,2,FALSE),0)","v":0},{"$f":"IFERROR(VLOOKUP($A211,'[2]export-1'!$A$2:$F$441,6,FALSE),AJ210)","v":11898.86},{"$f":"IFERROR(VLOOKUP($A211,'[7]download-1'!$A$2:$F$513,6,FALSE),AK210)","v":-1388.7200000000005},{"$f":"IFERROR(VLOOKUP($A211,'[3]TexttoColumn Amazon Balance'!$A$14:$B$30,2,FALSE),IF(AL212>0,AL212-600,0))","v":8625.7199999999993},22875.200000000004,74620.890000000014,414,67,128,0,null,null,null,null,null,{"$f":"IFERROR(VLOOKUP($A211,'[2]export-1'!$A$446:$G$451,7,FALSE),0)","v":0},{"$f":"IFERROR(VLOOKUP($A211,[3]Sheet4!$A$4:$B$56,2,FALSE),0)","v":0},{"$f":"IFERROR(VLOOKUP($A211,'[3]headphones purchased'!$A$2:$G$27,6,FALSE),0)","v":0},{"$f":"ROUND(IFERROR(VLOOKUP($A211,'[4]download-1'!$A$471:$F$474,5,FALSE)/-9.5,0),0)","v":0},{"$f":"ROUND(IFERROR(VLOOKUP($A211,'[4]download-1'!$A$467:$F$469,5,FALSE)/-49,0),0)","v":0},{"$f":"IFERROR(VLOOKUP($A211,[5]Sheet8!$A$4:$B$89,2,FALSE),0)","v":3},null,null,1,{"$f":"IFERROR(VLOOKUP($A211,'[8]DHR-1'!$A$9:$AS$451,37,FALSE),0)","v":2204.75},{"$f":"IFERROR(VLOOKUP($A211,'[3]Paypal Money Sent Pivot'!$A$4:$B$97,2,FALSE),0)","v":0},{"$f":"$BH211+$BI210-IFERROR(VLOOKUP($A211,[2]Sheet2!$A$4:$B$82,2,FALSE),0)","v":1534.5900000000029},{"$f":"IFERROR(VLOOKUP($A211,'[3]TexttoColumn Amazon Balance'!$A$14:$B$30,2,FALSE),0)","v":0},{"$f":"$BJ210+$BK210-IFERROR(VLOOKUP($A211,[2]Amazon!$A$2:$F$17,5,FALSE),0)","v":0},{"$f":"IFERROR(VLOOKUP($A211,'[4]Payment Pivot'!$A$4:$B$39,2,FALSE),0)","v":16549.990000000002},{"$f":"$BL211+$BM210-IFERROR(VLOOKUP($A211,'[2]Myaccountaccess Pivot'!$A$4:$B$31,2,FALSE),0)","v":0},null,{"$f":"IFERROR(VLOOKUP($A211,'[6]export-2'!$A$2:$F$15,6,FALSE),BO210)","v":30151.190000000002},1195.9460247630345,{"$f":"OFFSET(A211,0,'Cool Graph'!$H$1)","v":34.69},{"$f":"OFFSET(A211,0,'Cool Graph'!$I$1)","v":1195.9460247630345}]
["2012-01-27",20.7,26.09,162.61000000000001,116.9,11.54,337.84000000000003,0,0,0,2,3,2,0,98.820000000000007,1,1,18.079999999999998,2,4,3,0,0,5,6,0,0,9,743.64,905,1648.6399999999999,1232.8299999999872,{"$f":"$BH212+$BI211-IFERROR(VLOOKUP($A212,[2]Sheet2!$A$4:$B$82,2,FALSE),0)","v":2153.8600000000029},{"$f":"$BJ211+$BK211-IFERROR(VLOOKUP($A212,[2]Amazon!$A$2:$F$17,5,FALSE),0)","v":0},{"$f":"$BL212+$BM211-IFERROR(VLOOKUP($A212,'[2]Myaccountaccess Pivot'!$A$4:$B$31,2,FALSE),0)","v":0},{"$f":"IFERROR(VLOOKUP($A212,'[2]export-1'!$A$2:$F$441,6,FALSE),AJ211)","v":13357.670000000002},{"$f":"IFERROR(VLOOKUP($A212,'[7]download-1'!$A$2:$F$513,6,FALSE),AK211)","v":-1988.7200000000005},{"$f":"IFERROR(VLOOKUP($A212,'[3]TexttoColumn Amazon Balance'!$A$14:$B$30,2,FALSE),IF(AL213>0,AL213-600,0))","v":9225.7199999999993},22748.530000000006,75853.72,402,272,128,0,null,null,null,null,null,{"$f":"IFERROR(VLOOKUP($A212,'[2]export-1'!$A$446:$G$451,7,FALSE),0)","v":0},{"$f":"IFERROR(VLOOKUP($A212,[3]Sheet4!$A$4:$B$56,2,FALSE),0)","v":0},{"$f":"238-24","v":214},{"$f":"ROUND(IFERROR(VLOOKUP($A212,'[4]download-1'!$A$471:$F$474,5,FALSE)/-9.5,0),0)","v":0},{"$f":"ROUND(IFERROR(VLOOKUP($A212,'[4]download-1'!$A$467:$F$469,5,FALSE)/-49,0),0)","v":0},{"$f":"IFERROR(VLOOKUP($A212,[5]Sheet8!$A$4:$B$89,2,FALSE),0)","v":3},null,null,0,{"$f":"IFERROR(VLOOKUP($A212,'[9]DHR-3'!$A$9:$AS$407,37,FALSE),0)","v":0},{"$f":"IFERROR(VLOOKUP($A212,'[3]Paypal Money Sent Pivot'!$A$4:$B$97,2,FALSE),0)","v":2154.04},{"$f":"$BH212+$BI211-IFERROR(VLOOKUP($A212,[2]Sheet2!$A$4:$B$82,2,FALSE),0)","v":2153.8600000000029},{"$f":"IFERROR(VLOOKUP($A212,'[3]TexttoColumn Amazon Balance'!$A$14:$B$30,2,FALSE),0)","v":0},{"$f":"$BJ211+$BK211-IFERROR(VLOOKUP($A212,[2]Amazon!$A$2:$F$17,5,FALSE),0)","v":0},{"$f":"IFERROR(VLOOKUP($A212,'[4]Payment Pivot'!$A$4:$B$39,2,FALSE),0)","v":0},{"$f":"$BL212+$BM211-IFERROR(VLOOKUP($A212,'[2]Myaccountaccess Pivot'!$A$4:$B$31,2,FALSE),0)","v":0},null,{"$f":"IFERROR(VLOOKUP($A212,'[6]export-2'!$A$2:$F$15,6,FALSE),BO211)","v":30151.190000000002},360.28347151004266,{"$f":"OFFSET(A212,0,'Cool Graph'!$H$1)","v":20.7},{"$f":"OFFSET(A212,0,'Cool Graph'!$I$1)","v":360.28347151004266}]
["2012-01-28",16.059999999999999,22.66,130.84,100.85000000000001,15.96,286.37,0,1,0,7,1,2,2,85.68,0,0,15.17,1,4,1,0,0,6,7,0,0,10,679.11,1115,1794.1100000000001,963.41000000000349,{"$f":"$BH213+$BI212-IFERROR(VLOOKUP($A213,[2]Sheet2!$A$4:$B$82,2,FALSE),0)","v":3034.2700000000027},{"$f":"$BJ212+$BK212-IFERROR(VLOOKUP($A213,[2]Amazon!$A$2:$F$17,5,FALSE),0)","v":0},{"$f":"$BL213+$BM212-IFERROR(VLOOKUP($A213,'[2]Myaccountaccess Pivot'!$A$4:$B$31,2,FALSE),0)","v":0},{"$f":"IFERROR(VLOOKUP($A213,'[2]export-1'!$A$2:$F$441,6,FALSE),AJ212)","v":13357.670000000002},{"$f":"IFERROR(VLOOKUP($A213,'[7]download-1'!$A$2:$F$513,6,FALSE),AK212)","v":-1988.7200000000005},{"$f":"IFERROR(VLOOKUP($A213,'[3]TexttoColumn Amazon Balance'!$A$14:$B$30,2,FALSE),IF(AL214>0,AL214-600,0))","v":9825.7199999999993},24228.940000000006,76817.13,393,264,128,0,null,null,null,null,null,{"$f":"IFERROR(VLOOKUP($A213,'[2]export-1'!$A$446:$G$451,7,FALSE),0)","v":0},{"$f":"IFERROR(VLOOKUP($A213,[3]Sheet4!$A$4:$B$56,2,FALSE),0)","v":0},{"$f":"IFERROR(VLOOKUP($A213,'[3]headphones purchased'!$A$2:$G$27,6,FALSE),0)","v":0},{"$f":"ROUND(IFERROR(VLOOKUP($A213,'[4]download-1'!$A$471:$F$474,5,FALSE)/-9.5,0),0)","v":0},{"$f":"ROUND(IFERROR(VLOOKUP($A213,'[4]download-1'!$A$467:$F$469,5,FALSE)/-49,0),0)","v":0},{"$f":"IFERROR(VLOOKUP($A213,[5]Sheet8!$A$4:$B$89,2,FALSE),0)","v":0},null,null,1,null,{"$f":"IFERROR(VLOOKUP($A213,'[3]Paypal Money Sent Pivot'!$A$4:$B$97,2,FALSE),0)","v":880.41},{"$f":"$BH213+$BI212-IFERROR(VLOOKUP($A213,[2]Sheet2!$A$4:$B$82,2,FALSE),0)","v":3034.2700000000027},{"$f":"IFERROR(VLOOKUP($A213,'[3]TexttoColumn Amazon Balance'!$A$14:$B$30,2,FALSE),0)","v":9825.7199999999993},{"$f":"$BJ212+$BK212-IFERROR(VLOOKUP($A213,[2]Amazon!$A$2:$F$17,5,FALSE),0)","v":0},{"$f":"IFERROR(VLOOKUP($A213,'[4]Payment Pivot'!$A$4:$B$39,2,FALSE),0)","v":0},{"$f":"$BL213+$BM212-IFERROR(VLOOKUP($A213,'[2]Myaccountaccess Pivot'!$A$4:$B$31,2,FALSE),0)","v":0},null,{"$f":"IFERROR(VLOOKUP($A213,'[6]export-2'!$A$2:$F$15,6,FALSE),BO212)","v":30151.190000000002},473.35334862121681,{"$f":"OFFSET(A213,0,'Cool Graph'!$H$1)","v":16.059999999999999},{"$f":"OFFSET(A213,0,'Cool Graph'!$I$1)","v":473.35334862121681}]
["2012-01-29",10.58,27.56,113.60000000000001,123.3,14.99,290.03000000000003,0,0,0,4,2,1,0,107.3,2,0,16,0,13,4,0,0,10,11,1,0,23,2225.44,1840,4065.44,1101.1900000000023,{"$f":"$BH214+$BI213-IFERROR(VLOOKUP($A214,[2]Sheet2!$A$4:$B$82,2,FALSE),0)","v":4114.7100000000028},{"$f":"$BJ213+$BK213-IFERROR(VLOOKUP($A214,[2]Amazon!$A$2:$F$17,5,FALSE),0)","v":9825.7199999999993},{"$f":"$BL214+$BM213-IFERROR(VLOOKUP($A214,'[2]Myaccountaccess Pivot'!$A$4:$B$31,2,FALSE),0)","v":0},{"$f":"IFERROR(VLOOKUP($A214,'[2]export-1'!$A$2:$F$441,6,FALSE),AJ213)","v":13357.670000000002},{"$f":"IFERROR(VLOOKUP($A214,'[7]download-1'!$A$2:$F$513,6,FALSE),AK213)","v":-1988.7200000000005},{"$f":"IFERROR(VLOOKUP($A214,'[3]TexttoColumn Amazon Balance'!$A$14:$B$30,2,FALSE),IF(AL215>0,AL215-600,0))","v":1295.5},26604.880000000001,77918.320000000007,370,249,127,0,null,null,null,null,null,{"$f":"IFERROR(VLOOKUP($A214,'[2]export-1'!$A$446:$G$451,7,FALSE),0)","v":0},{"$f":"IFERROR(VLOOKUP($A214,[3]Sheet4!$A$4:$B$56,2,FALSE),0)","v":0},{"$f":"IFERROR(VLOOKUP($A214,'[3]headphones purchased'!$A$2:$G$27,6,FALSE),0)","v":0},{"$f":"ROUND(IFERROR(VLOOKUP($A214,'[4]download-1'!$A$471:$F$474,5,FALSE)/-9.5,0),0)","v":0},{"$f":"ROUND(IFERROR(VLOOKUP($A214,'[4]download-1'!$A$467:$F$469,5,FALSE)/-49,0),0)","v":0},{"$f":"IFERROR(VLOOKUP($A214,[5]Sheet8!$A$4:$B$89,2,FALSE),0)","v":0},null,null,0,null,{"$f":"IFERROR(VLOOKUP($A214,'[3]Paypal Money Sent Pivot'!$A$4:$B$97,2,FALSE),0)","v":1080.44},{"$f":"$BH214+$BI213-IFERROR(VLOOKUP($A214,[2]Sheet2!$A$4:$B$82,2,FALSE),0)","v":4114.7100000000028},{"$f":"IFERROR(VLOOKUP($A214,'[3]TexttoColumn Amazon Balance'!$A$14:$B$30,2,FALSE),0)","v":0},{"$f":"$BJ213+$BK213-IFERROR(VLOOKUP($A214,[2]Amazon!$A$2:$F$17,5,FALSE),0)","v":9825.7199999999993},{"$f":"IFERROR(VLOOKUP($A214,'[4]Payment Pivot'!$A$4:$B$39,2,FALSE),0)","v":0},{"$f":"$BL214+$BM213-IFERROR(VLOOKUP($A214,'[2]Myaccountaccess Pivot'!$A$4:$B$31,2,FALSE),0)","v":0},null,{"$f":"IFERROR(VLOOKUP($A214,'[6]export-2'!$A$2:$F$15,6,FALSE),BO213)","v":30151.190000000002},1431.497492973474,{"$f":"OFFSET(A214,0,'Cool Graph'!$H$1)","v":10.58},{"$f":"OFFSET(A214,0,'Cool Graph'!$I$1)","v":1431.497492973474}]
["2012-01-30",9.7799999999999994,21.06,189.29,128.13,25.74,374,0,0,0,6,0,1,2,113.57000000000001,0,1,14.56,0,4,3,0,0,7,7,0,0,11,765.48,1240,2005.48,-1313.0599999999977,{"$f":"$BH215+$BI214-IFERROR(VLOOKUP($A215,[2]Sheet2!$A$4:$B$82,2,FALSE),0)","v":2863.4100000000026},{"$f":"$BJ214+$BK214-IFERROR(VLOOKUP($A215,[2]Amazon!$A$2:$F$17,5,FALSE),0)","v":9825.7199999999993},{"$f":"$BL215+$BM214-IFERROR(VLOOKUP($A215,'[2]Myaccountaccess Pivot'!$A$4:$B$31,2,FALSE),0)","v":0},{"$f":"IFERROR(VLOOKUP($A215,'[2]export-1'!$A$2:$F$441,6,FALSE),AJ214)","v":31124.530000000002},{"$f":"IFERROR(VLOOKUP($A215,'[7]download-1'!$A$2:$F$513,6,FALSE),AK214)","v":-4820.09},{"$f":"IFERROR(VLOOKUP($A215,'[3]TexttoColumn Amazon Balance'!$A$14:$B$30,2,FALSE),IF(AL216>0,AL216-600,0))","v":1895.5},40889.070000000007,76605.260000000009,359,239,134,0,null,null,null,null,null,{"$f":"IFERROR(VLOOKUP($A215,'[2]export-1'!$A$446:$G$451,7,FALSE),0)","v":0},{"$f":"IFERROR(VLOOKUP($A215,[3]Sheet4!$A$4:$B$56,2,FALSE),0)","v":0},{"$f":"IFERROR(VLOOKUP($A215,'[3]headphones purchased'!$A$2:$G$27,6,FALSE),0)","v":0},{"$f":"ROUND(IFERROR(VLOOKUP($A215,'[4]download-1'!$A$471:$F$474,5,FALSE)/-9.5,0),0)","v":0},{"$f":"ROUND(IFERROR(VLOOKUP($A215,'[4]download-1'!$A$467:$F$469,5,FALSE)/-49,0),0)","v":0},{"$f":"IFERROR(VLOOKUP($A215,[5]Sheet8!$A$4:$B$89,2,FALSE),0)","v":1},{"$f":"ROUND('[4]download-1'!$E$266/-5.25,0)","v":7},null,1,null,{"$f":"IFERROR(VLOOKUP($A215,'[3]Paypal Money Sent Pivot'!$A$4:$B$97,2,FALSE),0)","v":1783.15},{"$f":"$BH215+$BI214-IFERROR(VLOOKUP($A215,[2]Sheet2!$A$4:$B$82,2,FALSE),0)","v":2863.4100000000026},{"$f":"IFERROR(VLOOKUP($A215,'[3]TexttoColumn Amazon Balance'!$A$14:$B$30,2,FALSE),0)","v":0},{"$f":"$BJ214+$BK214-IFERROR(VLOOKUP($A215,[2]Amazon!$A$2:$F$17,5,FALSE),0)","v":9825.7199999999993},{"$f":"IFERROR(VLOOKUP($A215,'[4]Payment Pivot'!$A$4:$B$39,2,FALSE),0)","v":0},{"$f":"$BL215+$BM214-IFERROR(VLOOKUP($A215,'[2]Myaccountaccess Pivot'!$A$4:$B$31,2,FALSE),0)","v":0},null,{"$f":"IFERROR(VLOOKUP($A215,'[6]export-2'!$A$2:$F$15,6,FALSE),BO214)","v":15151.190000000002},475.22885508295349,{"$f":"OFFSET(A215,0,'Cool Graph'!$H$1)","v":9.7799999999999994},{"$f":"OFFSET(A215,0,'Cool Graph'!$I$1)","v":475.22885508295349}]
["2012-01-31",14.3,17.72,207.94,117.85999999999999,15.62,373.43999999999994,1,0,0,4,0,3,1,101.53,0,1,16.329999999999998,0,3,0,0,0,7,9,0,0,10,510,1280,1790,-684.55000000000291,{"$f":"$BH216+$BI215-IFERROR(VLOOKUP($A216,[2]Sheet2!$A$4:$B$82,2,FALSE),0)","v":1782.9700000000025},{"$f":"$BJ215+$BK215-IFERROR(VLOOKUP($A216,[2]Amazon!$A$2:$F$17,5,FALSE),0)","v":0},{"$f":"$BL216+$BM215-IFERROR(VLOOKUP($A216,'[2]Myaccountaccess Pivot'!$A$4:$B$31,2,FALSE),0)","v":0},{"$f":"IFERROR(VLOOKUP($A216,'[2]export-1'!$A$2:$F$441,6,FALSE),AJ215)","v":37007.4},{"$f":"IFERROR(VLOOKUP($A216,'[7]download-1'!$A$2:$F$513,6,FALSE),AK215)","v":-5356.85},{"$f":"IFERROR(VLOOKUP($A216,'[3]TexttoColumn Amazon Balance'!$A$14:$B$30,2,FALSE),IF(AL217>0,AL217-600,0))","v":2495.5},35929.020000000004,75920.710000000006,448,230,134,0,null,null,null,null,null,{"$f":"IFERROR(VLOOKUP($A216,'[2]export-1'!$A$446:$G$451,7,FALSE),0)","v":102},{"$f":"IFERROR(VLOOKUP($A216,[3]Sheet4!$A$4:$B$56,2,FALSE),0)","v":0},{"$f":"IFERROR(VLOOKUP($A216,'[3]headphones purchased'!$A$2:$G$27,6,FALSE),0)","v":0},{"$f":"ROUND(IFERROR(VLOOKUP($A216,'[4]download-1'!$A$471:$F$474,5,FALSE)/-9.5,0),0)","v":0},{"$f":"ROUND(IFERROR(VLOOKUP($A216,'[4]download-1'!$A$467:$F$469,5,FALSE)/-49,0),0)","v":0},{"$f":"IFERROR(VLOOKUP($A216,[5]Sheet8!$A$4:$B$89,2,FALSE),0)","v":3},null,null,0,null,{"$f":"IFERROR(VLOOKUP($A216,'[3]Paypal Money Sent Pivot'!$A$4:$B$97,2,FALSE),0)","v":0},{"$f":"$BH216+$BI215-IFERROR(VLOOKUP($A216,[2]Sheet2!$A$4:$B$82,2,FALSE),0)","v":1782.9700000000025},{"$f":"IFERROR(VLOOKUP($A216,'[3]TexttoColumn Amazon Balance'!$A$14:$B$30,2,FALSE),0)","v":0},{"$f":"$BJ215+$BK215-IFERROR(VLOOKUP($A216,[2]Amazon!$A$2:$F$17,5,FALSE),0)","v":0},{"$f":"IFERROR(VLOOKUP($A216,'[4]Payment Pivot'!$A$4:$B$39,2,FALSE),0)","v":0},{"$f":"$BL216+$BM215-IFERROR(VLOOKUP($A216,'[2]Myaccountaccess Pivot'!$A$4:$B$31,2,FALSE),0)","v":0},null,{"$f":"IFERROR(VLOOKUP($A216,'[6]export-2'!$A$2:$F$15,6,FALSE),BO215)","v":15151.190000000002},384.54295201073398,{"$f":"OFFSET(A216,0,'Cool Graph'!$H$1)","v":14.3},{"$f":"OFFSET(A216,0,'Cool Graph'!$I$1)","v":384.54295201073398}]
["2012-02-01",8.81,8.23,149.98000000000002,86.94,16.8,270.76,0,0,0,3,0,1,0,71.28,0,1,15.66,0,2,1,0,0,6,6,0,0,8,384.87,1060,1444.87,-1353.2400000000052,{"$f":"$BH217+$BI216-IFERROR(VLOOKUP($A217,[2]Sheet2!$A$4:$B$82,2,FALSE),0)","v":-0.17999999999756255},{"$f":"$BJ216+$BK216-IFERROR(VLOOKUP($A217,[2]Amazon!$A$2:$F$17,5,FALSE),0)","v":0},{"$f":"$BL217+$BM216-IFERROR(VLOOKUP($A217,'[2]Myaccountaccess Pivot'!$A$4:$B$31,2,FALSE),0)","v":0},{"$f":"IFERROR(VLOOKUP($A217,'[2]export-1'!$A$2:$F$441,6,FALSE),AJ216)","v":37865.050000000003},{"$f":"IFERROR(VLOOKUP($A217,'[7]download-1'!$A$2:$F$513,6,FALSE),AK216)","v":-5877.09},{"$f":"IFERROR(VLOOKUP($A217,'[3]TexttoColumn Amazon Balance'!$A$14:$B$30,2,FALSE),IF(AL218>0,AL218-600,0))","v":3095.5},35083.280000000006,74567.47,439,223,134,0,null,null,null,null,null,{"$f":"IFERROR(VLOOKUP($A217,'[2]export-1'!$A$446:$G$451,7,FALSE),0)","v":0},{"$f":"IFERROR(VLOOKUP($A217,[3]Sheet4!$A$4:$B$56,2,FALSE),0)","v":0},{"$f":"IFERROR(VLOOKUP($A217,'[3]headphones purchased'!$A$2:$G$27,6,FALSE),0)","v":0},{"$f":"ROUND(IFERROR(VLOOKUP($A217,'[4]download-1'!$A$471:$F$474,5,FALSE)/-9.5,0),0)","v":0},{"$f":"ROUND(IFERROR(VLOOKUP($A217,'[4]download-1'!$A$467:$F$469,5,FALSE)/-49,0),0)","v":0},{"$f":"IFERROR(VLOOKUP($A217,[5]Sheet8!$A$4:$B$89,2,FALSE),0)","v":2},null,null,1,null,{"$f":"IFERROR(VLOOKUP($A217,'[3]Paypal Money Sent Pivot'!$A$4:$B$97,2,FALSE),0)","v":0},{"$f":"$BH217+$BI216-IFERROR(VLOOKUP($A217,[2]Sheet2!$A$4:$B$82,2,FALSE),0)","v":-0.17999999999756255},{"$f":"IFERROR(VLOOKUP($A217,'[3]TexttoColumn Amazon Balance'!$A$14:$B$30,2,FALSE),0)","v":0},{"$f":"$BJ216+$BK216-IFERROR(VLOOKUP($A217,[2]Amazon!$A$2:$F$17,5,FALSE),0)","v":0},{"$f":"IFERROR(VLOOKUP($A217,'[4]Payment Pivot'!$A$4:$B$39,2,FALSE),0)","v":0},{"$f":"$BL217+$BM216-IFERROR(VLOOKUP($A217,'[2]Myaccountaccess Pivot'!$A$4:$B$31,2,FALSE),0)","v":0},null,{"$f":"IFERROR(VLOOKUP($A217,'[6]export-2'!$A$2:$F$15,6,FALSE),BO216)","v":15151.190000000002},341.07621668812794,{"$f":"OFFSET(A217,0,'Cool Graph'!$H$1)","v":8.81},{"$f":"OFFSET(A217,0,'Cool Graph'!$I$1)","v":341.07621668812794}]
["2012-02-02",79.209999999999994,11.64,146.59,119.64,7.59,364.66999999999996,2,0,1,4,3,1,0,102.35000000000001,0,0,17.29,3,5,0,0,0,13,12,0,0,18,869.82,2330,3199.82,-1572.4400000000023,{"$f":"$BH218+$BI217-IFERROR(VLOOKUP($A218,[2]Sheet2!$A$4:$B$82,2,FALSE),0)","v":-0.17999999999756255},{"$f":"$BJ217+$BK217-IFERROR(VLOOKUP($A218,[2]Amazon!$A$2:$F$17,5,FALSE),0)","v":0},{"$f":"$BL218+$BM217-IFERROR(VLOOKUP($A218,'[2]Myaccountaccess Pivot'!$A$4:$B$31,2,FALSE),0)","v":0},{"$f":"IFERROR(VLOOKUP($A218,'[2]export-1'!$A$2:$F$441,6,FALSE),AJ217)","v":37865.050000000003},{"$f":"IFERROR(VLOOKUP($A218,'[7]download-1'!$A$2:$F$513,6,FALSE),AK217)","v":-7537.1100000000006},{"$f":"IFERROR(VLOOKUP($A218,'[3]TexttoColumn Amazon Balance'!$A$14:$B$30,2,FALSE),IF(AL219>0,AL219-600,0))","v":3695.5},34604.840000000004,72995.03,419,211,134,0,null,null,null,null,null,{"$f":"IFERROR(VLOOKUP($A218,'[2]export-1'!$A$446:$G$451,7,FALSE),0)","v":0},{"$f":"IFERROR(VLOOKUP($A218,[3]Sheet4!$A$4:$B$56,2,FALSE),0)","v":0},{"$f":"IFERROR(VLOOKUP($A218,'[3]headphones purchased'!$A$2:$G$27,6,FALSE),0)","v":0},{"$f":"ROUND(IFERROR(VLOOKUP($A218,'[4]download-1'!$A$471:$F$474,5,FALSE)/-9.5,0),0)","v":0},{"$f":"ROUND(IFERROR(VLOOKUP($A218,'[4]download-1'!$A$467:$F$469,5,FALSE)/-49,0),0)","v":0},{"$f":"IFERROR(VLOOKUP($A218,[5]Sheet8!$A$4:$B$89,2,FALSE),0)","v":2},null,null,0,{"$f":"IFERROR(VLOOKUP($A218,'[9]DHR-3'!$A$9:$AS$407,37,FALSE),0)","v":581.58000000000004},{"$f":"IFERROR(VLOOKUP($A218,'[3]Paypal Money Sent Pivot'!$A$4:$B$97,2,FALSE),0)","v":0},{"$f":"$BH218+$BI217-IFERROR(VLOOKUP($A218,[2]Sheet2!$A$4:$B$82,2,FALSE),0)","v":-0.17999999999756255},{"$f":"IFERROR(VLOOKUP($A218,'[3]TexttoColumn Amazon Balance'!$A$14:$B$30,2,FALSE),0)","v":0},{"$f":"$BJ217+$BK217-IFERROR(VLOOKUP($A218,[2]Amazon!$A$2:$F$17,5,FALSE),0)","v":0},{"$f":"IFERROR(VLOOKUP($A218,'[4]Payment Pivot'!$A$4:$B$39,2,FALSE),0)","v":0},{"$f":"$BL218+$BM217-IFERROR(VLOOKUP($A218,'[2]Myaccountaccess Pivot'!$A$4:$B$31,2,FALSE),0)","v":0},null,{"$f":"IFERROR(VLOOKUP($A218,'[6]export-2'!$A$2:$F$15,6,FALSE),BO217)","v":15151.190000000002},990.30710028099827,{"$f":"OFFSET(A218,0,'Cool Graph'!$H$1)","v":79.209999999999994},{"$f":"OFFSET(A218,0,'Cool Graph'!$I$1)","v":990.30710028099827}]
["2012-02-03",55.81,7.32,168.15,137.80000000000001,16.55,385.63000000000005,0,0,0,6,0,0,1,119.87,0,0,17.93,0,1,0,0,0,8,8,0,0,9,160,1400,1560,-4837.6899999999878,{"$f":"$BH219+$BI218-IFERROR(VLOOKUP($A219,[2]Sheet2!$A$4:$B$82,2,FALSE),0)","v":-0.17999999999756255},{"$f":"$BJ218+$BK218-IFERROR(VLOOKUP($A219,[2]Amazon!$A$2:$F$17,5,FALSE),0)","v":0},{"$f":"$BL219+$BM218-IFERROR(VLOOKUP($A219,'[2]Myaccountaccess Pivot'!$A$4:$B$31,2,FALSE),0)","v":0},{"$f":"IFERROR(VLOOKUP($A219,'[2]export-1'!$A$2:$F$441,6,FALSE),AJ218)","v":31232.040000000005},{"$f":"IFERROR(VLOOKUP($A219,'[7]download-1'!$A$2:$F$513,6,FALSE),AK218)","v":-7609.55},{"$f":"IFERROR(VLOOKUP($A219,'[3]TexttoColumn Amazon Balance'!$A$14:$B$30,2,FALSE),IF(AL220>0,AL220-600,0))","v":4295.5},30431.150000000009,68157.340000000011,407,203,134,0,null,null,null,null,null,{"$f":"IFERROR(VLOOKUP($A219,'[2]export-1'!$A$446:$G$451,7,FALSE),0)","v":0},{"$f":"IFERROR(VLOOKUP($A219,[3]Sheet4!$A$4:$B$56,2,FALSE),0)","v":0},{"$f":"IFERROR(VLOOKUP($A219,'[3]headphones purchased'!$A$2:$G$27,6,FALSE),0)","v":0},{"$f":"ROUND(IFERROR(VLOOKUP($A219,'[4]download-1'!$A$471:$F$474,5,FALSE)/-9.5,0),0)","v":0},{"$f":"ROUND(IFERROR(VLOOKUP($A219,'[4]download-1'!$A$467:$F$469,5,FALSE)/-49,0),0)","v":0},{"$f":"IFERROR(VLOOKUP($A219,[5]Sheet8!$A$4:$B$89,2,FALSE),0)","v":4},null,null,1,{"$f":"IFERROR(VLOOKUP($A219,'[9]DHR-3'!$A$9:$AS$407,37,FALSE),0)","v":2513.34},{"$f":"IFERROR(VLOOKUP($A219,'[3]Paypal Money Sent Pivot'!$A$4:$B$97,2,FALSE),0)","v":0},{"$f":"$BH219+$BI218-IFERROR(VLOOKUP($A219,[2]Sheet2!$A$4:$B$82,2,FALSE),0)","v":-0.17999999999756255},{"$f":"IFERROR(VLOOKUP($A219,'[3]TexttoColumn Amazon Balance'!$A$14:$B$30,2,FALSE),0)","v":0},{"$f":"$BJ218+$BK218-IFERROR(VLOOKUP($A219,[2]Amazon!$A$2:$F$17,5,FALSE),0)","v":0},{"$f":"IFERROR(VLOOKUP($A219,'[4]Payment Pivot'!$A$4:$B$39,2,FALSE),0)","v":0},{"$f":"$BL219+$BM218-IFERROR(VLOOKUP($A219,'[2]Myaccountaccess Pivot'!$A$4:$B$31,2,FALSE),0)","v":0},null,{"$f":"IFERROR(VLOOKUP($A219,'[6]export-2'!$A$2:$F$15,6,FALSE),BO218)","v":15151.190000000002},274.95849448980158,{"$f":"OFFSET(A219,0,'Cool Graph'!$H$1)","v":55.81},{"$f":"OFFSET(A219,0,'Cool Graph'!$I$1)","v":274.95849448980158}]
["2012-02-04",110.47,4.5599999999999996,148.6,126.25,12.83,402.71,1,0,0,4,0,1,0,104.53,0,0,21.72,0,6,0,0,0,8,9,0,0,14,841.26,1430,2271.2600000000002,6193.6199999999953,{"$f":"$BH220+$BI219-IFERROR(VLOOKUP($A220,[2]Sheet2!$A$4:$B$82,2,FALSE),0)","v":4999.8200000000024},{"$f":"$BJ219+$BK219-IFERROR(VLOOKUP($A220,[2]Amazon!$A$2:$F$17,5,FALSE),0)","v":0},{"$f":"$BL220+$BM219-IFERROR(VLOOKUP($A220,'[2]Myaccountaccess Pivot'!$A$4:$B$31,2,FALSE),0)","v":0},{"$f":"IFERROR(VLOOKUP($A220,'[2]export-1'!$A$2:$F$441,6,FALSE),AJ219)","v":31232.040000000005},{"$f":"IFERROR(VLOOKUP($A220,'[7]download-1'!$A$2:$F$513,6,FALSE),AK219)","v":-7609.55},{"$f":"IFERROR(VLOOKUP($A220,'[3]TexttoColumn Amazon Balance'!$A$14:$B$30,2,FALSE),IF(AL221>0,AL221-600,0))","v":4895.5},37396.270000000004,74350.960000000006,393,194,134,0,null,null,null,null,null,{"$f":"IFERROR(VLOOKUP($A220,'[2]export-1'!$A$446:$G$451,7,FALSE),0)","v":0},{"$f":"IFERROR(VLOOKUP($A220,[3]Sheet4!$A$4:$B$56,2,FALSE),0)","v":0},{"$f":"IFERROR(VLOOKUP($A220,'[3]headphones purchased'!$A$2:$G$27,6,FALSE),0)","v":0},{"$f":"ROUND(IFERROR(VLOOKUP($A220,'[4]download-1'!$A$471:$F$474,5,FALSE)/-9.5,0),0)","v":0},{"$f":"ROUND(IFERROR(VLOOKUP($A220,'[4]download-1'!$A$467:$F$469,5,FALSE)/-49,0),0)","v":0},{"$f":"IFERROR(VLOOKUP($A220,[5]Sheet8!$A$4:$B$89,2,FALSE),0)","v":0},null,null,0,{"$f":"IFERROR(VLOOKUP($A220,'[9]DHR-3'!$A$9:$AS$407,37,FALSE),0)","v":3878.46},{"$f":"IFERROR(VLOOKUP($A220,'[3]Paypal Money Sent Pivot'!$A$4:$B$97,2,FALSE),0)","v":5000},{"$f":"$BH220+$BI219-IFERROR(VLOOKUP($A220,[2]Sheet2!$A$4:$B$82,2,FALSE),0)","v":4999.8200000000024},{"$f":"IFERROR(VLOOKUP($A220,'[3]TexttoColumn Amazon Balance'!$A$14:$B$30,2,FALSE),0)","v":0},{"$f":"$BJ219+$BK219-IFERROR(VLOOKUP($A220,[2]Amazon!$A$2:$F$17,5,FALSE),0)","v":0},{"$f":"IFERROR(VLOOKUP($A220,'[4]Payment Pivot'!$A$4:$B$39,2,FALSE),0)","v":0},{"$f":"$BL220+$BM219-IFERROR(VLOOKUP($A220,'[2]Myaccountaccess Pivot'!$A$4:$B$31,2,FALSE),0)","v":0},null,{"$f":"IFERROR(VLOOKUP($A220,'[6]export-2'!$A$2:$F$15,6,FALSE),BO219)","v":15151.190000000002},559.06450256083781,{"$f":"OFFSET(A220,0,'Cool Graph'!$H$1)","v":110.47},{"$f":"OFFSET(A220,0,'Cool Graph'!$I$1)","v":559.06450256083781}]
["2012-02-05",85.93,7.17,138.07,101.29,5.16,337.62000000000006,0,2,0,7,0,2,2,86.2,0,1,15.09,0,3,0,0,0,12,11,1,0,15,494.1,2120,2614.1,-3799.9099999999889,{"$f":"$BH221+$BI220-IFERROR(VLOOKUP($A221,[2]Sheet2!$A$4:$B$82,2,FALSE),0)","v":4999.8200000000024},{"$f":"$BJ220+$BK220-IFERROR(VLOOKUP($A221,[2]Amazon!$A$2:$F$17,5,FALSE),0)","v":0},{"$f":"$BL221+$BM220-IFERROR(VLOOKUP($A221,'[2]Myaccountaccess Pivot'!$A$4:$B$31,2,FALSE),0)","v":0},{"$f":"IFERROR(VLOOKUP($A221,'[2]export-1'!$A$2:$F$441,6,FALSE),AJ220)","v":31232.040000000005},{"$f":"IFERROR(VLOOKUP($A221,'[7]download-1'!$A$2:$F$513,6,FALSE),AK220)","v":-7609.55},{"$f":"IFERROR(VLOOKUP($A221,'[3]TexttoColumn Amazon Balance'!$A$14:$B$30,2,FALSE),IF(AL222>0,AL222-600,0))","v":5495.5},34392.110000000008,70551.050000000017,379,183,133,0,null,null,null,null,null,{"$f":"IFERROR(VLOOKUP($A221,'[2]export-1'!$A$446:$G$451,7,FALSE),0)","v":0},{"$f":"IFERROR(VLOOKUP($A221,[3]Sheet4!$A$4:$B$56,2,FALSE),0)","v":0},{"$f":"IFERROR(VLOOKUP($A221,'[3]headphones purchased'!$A$2:$G$27,6,FALSE),0)","v":0},{"$f":"ROUND(IFERROR(VLOOKUP($A221,'[4]download-1'!$A$471:$F$474,5,FALSE)/-9.5,0),0)","v":0},{"$f":"ROUND(IFERROR(VLOOKUP($A221,'[4]download-1'!$A$467:$F$469,5,FALSE)/-49,0),0)","v":0},{"$f":"IFERROR(VLOOKUP($A221,[5]Sheet8!$A$4:$B$89,2,FALSE),0)","v":0},null,null,1,{"$f":"IFERROR(VLOOKUP($A221,'[9]DHR-3'!$A$9:$AS$407,37,FALSE),0)","v":274.3},{"$f":"IFERROR(VLOOKUP($A221,'[3]Paypal Money Sent Pivot'!$A$4:$B$97,2,FALSE),0)","v":0},{"$f":"$BH221+$BI220-IFERROR(VLOOKUP($A221,[2]Sheet2!$A$4:$B$82,2,FALSE),0)","v":4999.8200000000024},{"$f":"IFERROR(VLOOKUP($A221,'[3]TexttoColumn Amazon Balance'!$A$14:$B$30,2,FALSE),0)","v":0},{"$f":"$BJ220+$BK220-IFERROR(VLOOKUP($A221,[2]Amazon!$A$2:$F$17,5,FALSE),0)","v":0},{"$f":"IFERROR(VLOOKUP($A221,'[4]Payment Pivot'!$A$4:$B$39,2,FALSE),0)","v":0},{"$f":"$BL221+$BM220-IFERROR(VLOOKUP($A221,'[2]Myaccountaccess Pivot'!$A$4:$B$31,2,FALSE),0)","v":0},null,{"$f":"IFERROR(VLOOKUP($A221,'[6]export-2'!$A$2:$F$15,6,FALSE),BO220)","v":15151.190000000002},769.33152784986555,{"$f":"OFFSET(A221,0,'Cool Graph'!$H$1)","v":85.93},{"$f":"OFFSET(A221,0,'Cool Graph'!$I$1)","v":769.33152784986555}]
["2012-02-06",45.73,10.17,175.83,139.46,20.91,392.10000000000008,0,0,0,5,1,2,2,124.31,0,1,15.15,1,5,3,0,0,8,6,0,0,13,924.53,1400,2324.5299999999997,355.67999999999302,{"$f":"$BH222+$BI221-IFERROR(VLOOKUP($A222,[2]Sheet2!$A$4:$B$82,2,FALSE),0)","v":6026.5300000000025},{"$f":"$BJ221+$BK221-IFERROR(VLOOKUP($A222,[2]Amazon!$A$2:$F$17,5,FALSE),0)","v":0},{"$f":"$BL222+$BM221-IFERROR(VLOOKUP($A222,'[2]Myaccountaccess Pivot'!$A$4:$B$31,2,FALSE),0)","v":0},{"$f":"IFERROR(VLOOKUP($A222,'[2]export-1'!$A$2:$F$441,6,FALSE),AJ221)","v":32033.640000000007},{"$f":"IFERROR(VLOOKUP($A222,'[7]download-1'!$A$2:$F$513,6,FALSE),AK221)","v":-11025.35},{"$f":"IFERROR(VLOOKUP($A222,'[3]TexttoColumn Amazon Balance'!$A$14:$B$30,2,FALSE),IF(AL223>0,AL223-600,0))","v":6095.5},35470.290000000008,70906.73000000001,366,174,133,0,null,null,null,null,null,{"$f":"IFERROR(VLOOKUP($A222,'[2]export-1'!$A$446:$G$451,7,FALSE),0)","v":0},{"$f":"IFERROR(VLOOKUP($A222,[3]Sheet4!$A$4:$B$56,2,FALSE),0)","v":0},{"$f":"IFERROR(VLOOKUP($A222,'[3]headphones purchased'!$A$2:$G$27,6,FALSE),0)","v":0},{"$f":"ROUND(IFERROR(VLOOKUP($A222,'[4]download-1'!$A$471:$F$474,5,FALSE)/-9.5,0),0)","v":0},{"$f":"ROUND(IFERROR(VLOOKUP($A222,'[4]download-1'!$A$467:$F$469,5,FALSE)/-49,0),0)","v":0},{"$f":"IFERROR(VLOOKUP($A222,[5]Sheet8!$A$4:$B$89,2,FALSE),0)","v":0},null,null,0,{"$f":"IFERROR(VLOOKUP($A222,'[9]DHR-3'!$A$9:$AS$407,37,FALSE),0)","v":2339.9699999999998},{"$f":"IFERROR(VLOOKUP($A222,'[3]Paypal Money Sent Pivot'!$A$4:$B$97,2,FALSE),0)","v":6026.71},{"$f":"$BH222+$BI221-IFERROR(VLOOKUP($A222,[2]Sheet2!$A$4:$B$82,2,FALSE),0)","v":6026.5300000000025},{"$f":"IFERROR(VLOOKUP($A222,'[3]TexttoColumn Amazon Balance'!$A$14:$B$30,2,FALSE),0)","v":0},{"$f":"$BJ221+$BK221-IFERROR(VLOOKUP($A222,[2]Amazon!$A$2:$F$17,5,FALSE),0)","v":0},{"$f":"IFERROR(VLOOKUP($A222,'[4]Payment Pivot'!$A$4:$B$39,2,FALSE),0)","v":0},{"$f":"$BL222+$BM221-IFERROR(VLOOKUP($A222,'[2]Myaccountaccess Pivot'!$A$4:$B$31,2,FALSE),0)","v":0},null,{"$f":"IFERROR(VLOOKUP($A222,'[6]export-2'!$A$2:$F$15,6,FALSE),BO221)","v":15151.190000000002},592.23190583101177,{"$f":"OFFSET(A222,0,'Cool Graph'!$H$1)","v":45.73},{"$f":"OFFSET(A222,0,'Cool Graph'!$I$1)","v":592.23190583101177}]
["2012-02-07",38.43,4.4000000000000004,159.19999999999999,133.79,9.4,345.21999999999991,1,2,0,7,3,0,0,121.58999999999999,1,0,12.2,2,11,3,0,0,14,13,0,0,25,1876.08,2495,4371.08,-433.41000000000349,{"$f":"$BH223+$BI222-IFERROR(VLOOKUP($A223,[2]Sheet2!$A$4:$B$82,2,FALSE),0)","v":9303.3200000000033},{"$f":"$BJ222+$BK222-IFERROR(VLOOKUP($A223,[2]Amazon!$A$2:$F$17,5,FALSE),0)","v":0},{"$f":"$BL223+$BM222-IFERROR(VLOOKUP($A223,'[2]Myaccountaccess Pivot'!$A$4:$B$31,2,FALSE),0)","v":0},{"$f":"IFERROR(VLOOKUP($A223,'[2]export-1'!$A$2:$F$441,6,FALSE),AJ222)","v":32033.640000000007},{"$f":"IFERROR(VLOOKUP($A223,'[7]download-1'!$A$2:$F$513,6,FALSE),AK222)","v":-11667.58},{"$f":"IFERROR(VLOOKUP($A223,'[3]TexttoColumn Amazon Balance'!$A$14:$B$30,2,FALSE),IF(AL224>0,AL224-600,0))","v":6695.5},36364.880000000005,70473.320000000007,342,158,133,0,null,null,null,null,null,{"$f":"IFERROR(VLOOKUP($A223,'[2]export-1'!$A$446:$G$451,7,FALSE),0)","v":0},{"$f":"IFERROR(VLOOKUP($A223,[3]Sheet4!$A$4:$B$56,2,FALSE),0)","v":0},{"$f":"IFERROR(VLOOKUP($A223,'[3]headphones purchased'!$A$2:$G$27,6,FALSE),0)","v":0},{"$f":"ROUND(IFERROR(VLOOKUP($A223,'[4]download-1'!$A$471:$F$474,5,FALSE)/-9.5,0),0)","v":0},{"$f":"ROUND(IFERROR(VLOOKUP($A223,'[4]download-1'!$A$467:$F$469,5,FALSE)/-49,0),0)","v":0},{"$f":"IFERROR(VLOOKUP($A223,[5]Sheet8!$A$4:$B$89,2,FALSE),0)","v":0},null,null,1,0,{"$f":"IFERROR(VLOOKUP($A223,'[3]Paypal Money Sent Pivot'!$A$4:$B$97,2,FALSE),0)","v":3276.79},{"$f":"$BH223+$BI222-IFERROR(VLOOKUP($A223,[2]Sheet2!$A$4:$B$82,2,FALSE),0)","v":9303.3200000000033},{"$f":"IFERROR(VLOOKUP($A223,'[3]TexttoColumn Amazon Balance'!$A$14:$B$30,2,FALSE),0)","v":0},{"$f":"$BJ222+$BK222-IFERROR(VLOOKUP($A223,[2]Amazon!$A$2:$F$17,5,FALSE),0)","v":0},{"$f":"IFERROR(VLOOKUP($A223,'[4]Payment Pivot'!$A$4:$B$39,2,FALSE),0)","v":0},{"$f":"$BL223+$BM222-IFERROR(VLOOKUP($A223,'[2]Myaccountaccess Pivot'!$A$4:$B$31,2,FALSE),0)","v":0},null,{"$f":"IFERROR(VLOOKUP($A223,'[6]export-2'!$A$2:$F$15,6,FALSE),BO222)","v":15151.190000000002},1505.732023393899,{"$f":"OFFSET(A223,0,'Cool Graph'!$H$1)","v":38.43},{"$f":"OFFSET(A223,0,'Cool Graph'!$I$1)","v":1505.732023393899}]
["2012-02-08",23.99,8.69,121.55000000000001,138.84,12.06,305.13000000000005,0,1,0,6,1,1,1,125.58,1,0,13.26,0,4,1,0,0,8,9,0,0,12,681.73,1440,2121.73,906.66999999999825,{"$f":"$BH224+$BI223-IFERROR(VLOOKUP($A224,[2]Sheet2!$A$4:$B$82,2,FALSE),0)","v":5713.5300000000025},{"$f":"$BJ223+$BK223-IFERROR(VLOOKUP($A224,[2]Amazon!$A$2:$F$17,5,FALSE),0)","v":0},{"$f":"$BL224+$BM223-IFERROR(VLOOKUP($A224,'[2]Myaccountaccess Pivot'!$A$4:$B$31,2,FALSE),0)","v":0},{"$f":"IFERROR(VLOOKUP($A224,'[2]export-1'!$A$2:$F$441,6,FALSE),AJ223)","v":36990.640000000007},{"$f":"IFERROR(VLOOKUP($A224,'[7]download-1'!$A$2:$F$513,6,FALSE),AK223)","v":-12045.12},{"$f":"IFERROR(VLOOKUP($A224,'[3]TexttoColumn Amazon Balance'!$A$14:$B$30,2,FALSE),IF(AL225>0,AL225-600,0))","v":7295.5},37954.550000000003,71379.990000000005,330,148,133,0,null,null,null,null,null,{"$f":"IFERROR(VLOOKUP($A224,'[2]export-1'!$A$446:$G$451,7,FALSE),0)","v":0},{"$f":"IFERROR(VLOOKUP($A224,[3]Sheet4!$A$4:$B$56,2,FALSE),0)","v":0},{"$f":"IFERROR(VLOOKUP($A224,'[3]headphones purchased'!$A$2:$G$27,6,FALSE),0)","v":0},{"$f":"ROUND(IFERROR(VLOOKUP($A224,'[4]download-1'!$A$471:$F$474,5,FALSE)/-9.5,0),0)","v":0},{"$f":"ROUND(IFERROR(VLOOKUP($A224,'[4]download-1'!$A$467:$F$469,5,FALSE)/-49,0),0)","v":0},{"$f":"IFERROR(VLOOKUP($A224,[5]Sheet8!$A$4:$B$89,2,FALSE),0)","v":0},null,null,0,0,{"$f":"IFERROR(VLOOKUP($A224,'[3]Paypal Money Sent Pivot'!$A$4:$B$97,2,FALSE),0)","v":1410.21},{"$f":"$BH224+$BI223-IFERROR(VLOOKUP($A224,[2]Sheet2!$A$4:$B$82,2,FALSE),0)","v":5713.5300000000025},{"$f":"IFERROR(VLOOKUP($A224,'[3]TexttoColumn Amazon Balance'!$A$14:$B$30,2,FALSE),0)","v":0},{"$f":"$BJ223+$BK223-IFERROR(VLOOKUP($A224,[2]Amazon!$A$2:$F$17,5,FALSE),0)","v":0},{"$f":"IFERROR(VLOOKUP($A224,'[4]Payment Pivot'!$A$4:$B$39,2,FALSE),0)","v":0},{"$f":"$BL224+$BM223-IFERROR(VLOOKUP($A224,'[2]Myaccountaccess Pivot'!$A$4:$B$31,2,FALSE),0)","v":0},null,{"$f":"IFERROR(VLOOKUP($A224,'[6]export-2'!$A$2:$F$15,6,FALSE),BO223)","v":15151.190000000002},593.32540154733761,{"$f":"OFFSET(A224,0,'Cool Graph'!$H$1)","v":23.99},{"$f":"OFFSET(A224,0,'Cool Graph'!$I$1)","v":593.32540154733761}]
["2012-02-09",7.16,11.69,140.66,128.24,7.87,295.62,0,0,0,7,0,0,0,116.07000000000001,0,0,12.17,0,3,2,0,0,13,14,0,0,16,548.5,2380,2928.5,789.80000000000291,{"$f":"$BH225+$BI224-IFERROR(VLOOKUP($A225,[2]Sheet2!$A$4:$B$82,2,FALSE),0)","v":6634.9100000000026},{"$f":"$BJ224+$BK224-IFERROR(VLOOKUP($A225,[2]Amazon!$A$2:$F$17,5,FALSE),0)","v":0},{"$f":"$BL225+$BM224-IFERROR(VLOOKUP($A225,'[2]Myaccountaccess Pivot'!$A$4:$B$31,2,FALSE),0)","v":0},{"$f":"IFERROR(VLOOKUP($A225,'[2]export-1'!$A$2:$F$441,6,FALSE),AJ224)","v":37941.590000000004},{"$f":"IFERROR(VLOOKUP($A225,'[7]download-1'!$A$2:$F$513,6,FALSE),AK224)","v":-12840.65},{"$f":"IFERROR(VLOOKUP($A225,'[3]TexttoColumn Amazon Balance'!$A$14:$B$30,2,FALSE),IF(AL226>0,AL226-600,0))","v":7895.5},39631.350000000006,72169.790000000008,315,132,133,0,null,null,null,null,null,{"$f":"IFERROR(VLOOKUP($A225,'[2]export-1'!$A$446:$G$451,7,FALSE),0)","v":0},{"$f":"IFERROR(VLOOKUP($A225,[3]Sheet4!$A$4:$B$56,2,FALSE),0)","v":0},{"$f":"IFERROR(VLOOKUP($A225,'[3]headphones purchased'!$A$2:$G$27,6,FALSE),0)","v":0},{"$f":"ROUND(IFERROR(VLOOKUP($A225,'[4]download-1'!$A$471:$F$474,5,FALSE)/-9.5,0),0)","v":0},{"$f":"ROUND(IFERROR(VLOOKUP($A225,'[4]download-1'!$A$467:$F$469,5,FALSE)/-49,0),0)","v":0},{"$f":"IFERROR(VLOOKUP($A225,[5]Sheet8!$A$4:$B$89,2,FALSE),0)","v":0},null,null,1,{"$f":"IFERROR(VLOOKUP($A225,[3]Paypal!$A$2:$AA$1843,25,FALSE),0)","v":0},{"$f":"IFERROR(VLOOKUP($A225,'[3]Paypal Money Sent Pivot'!$A$4:$B$97,2,FALSE),0)","v":1948.09},{"$f":"$BH225+$BI224-IFERROR(VLOOKUP($A225,[2]Sheet2!$A$4:$B$82,2,FALSE),0)","v":6634.9100000000026},{"$f":"IFERROR(VLOOKUP($A225,'[3]TexttoColumn Amazon Balance'!$A$14:$B$30,2,FALSE),0)","v":0},{"$f":"$BJ224+$BK224-IFERROR(VLOOKUP($A225,[2]Amazon!$A$2:$F$17,5,FALSE),0)","v":0},{"$f":"IFERROR(VLOOKUP($A225,'[4]Payment Pivot'!$A$4:$B$39,2,FALSE),0)","v":0},{"$f":"$BL225+$BM224-IFERROR(VLOOKUP($A225,'[2]Myaccountaccess Pivot'!$A$4:$B$31,2,FALSE),0)","v":0},null,{"$f":"IFERROR(VLOOKUP($A225,'[6]export-2'!$A$2:$F$15,6,FALSE),BO224)","v":15151.190000000002},944.4655167393488,{"$f":"OFFSET(A225,0,'Cool Graph'!$H$1)","v":7.16},{"$f":"OFFSET(A225,0,'Cool Graph'!$I$1)","v":944.4655167393488}]
["2012-02-10",12.5,9.77,148.55999999999997,143.26,23.76,337.84999999999997,1,2,0,8,2,1,0,129.13,2,0,14.13,0,6,3,0,0,13,12,0,0,19,1063.82,2335,3398.8199999999997,1967.9899999999907,{"$f":"$BH226+$BI225-IFERROR(VLOOKUP($A226,[2]Sheet2!$A$4:$B$82,2,FALSE),0)","v":5838.0400000000018},{"$f":"$BJ225+$BK225-IFERROR(VLOOKUP($A226,[2]Amazon!$A$2:$F$17,5,FALSE),0)","v":0},{"$f":"$BL226+$BM225-IFERROR(VLOOKUP($A226,'[2]Myaccountaccess Pivot'!$A$4:$B$31,2,FALSE),0)","v":0},{"$f":"IFERROR(VLOOKUP($A226,'[2]export-1'!$A$2:$F$441,6,FALSE),AJ225)","v":41218.380000000005},{"$f":"IFERROR(VLOOKUP($A226,'[7]download-1'!$A$2:$F$513,6,FALSE),AK225)","v":-12879.08},{"$f":"IFERROR(VLOOKUP($A226,'[3]TexttoColumn Amazon Balance'!$A$14:$B$30,2,FALSE),IF(AL227>0,AL227-600,0))","v":8495.5},42672.840000000004,74137.78,296,117,133,0,null,null,null,null,null,{"$f":"IFERROR(VLOOKUP($A226,'[2]export-1'!$A$446:$G$451,7,FALSE),0)","v":0},{"$f":"IFERROR(VLOOKUP($A226,[3]Sheet4!$A$4:$B$56,2,FALSE),0)","v":0},{"$f":"IFERROR(VLOOKUP($A226,'[3]headphones purchased'!$A$2:$G$27,6,FALSE),0)","v":0},{"$f":"ROUND(IFERROR(VLOOKUP($A226,'[4]download-1'!$A$471:$F$474,5,FALSE)/-9.5,0),0)","v":0},{"$f":"ROUND(IFERROR(VLOOKUP($A226,'[4]download-1'!$A$467:$F$469,5,FALSE)/-49,0),0)","v":0},{"$f":"IFERROR(VLOOKUP($A226,[5]Sheet8!$A$4:$B$89,2,FALSE),0)","v":0},null,null,0,{"$f":"IFERROR(VLOOKUP($A226,[3]Paypal!$A$2:$AA$1843,25,FALSE),0)","v":0},{"$f":"IFERROR(VLOOKUP($A226,'[3]Paypal Money Sent Pivot'!$A$4:$B$97,2,FALSE),0)","v":2479.92},{"$f":"$BH226+$BI225-IFERROR(VLOOKUP($A226,[2]Sheet2!$A$4:$B$82,2,FALSE),0)","v":5838.0400000000018},{"$f":"IFERROR(VLOOKUP($A226,'[3]TexttoColumn Amazon Balance'!$A$14:$B$30,2,FALSE),0)","v":0},{"$f":"$BJ225+$BK225-IFERROR(VLOOKUP($A226,[2]Amazon!$A$2:$F$17,5,FALSE),0)","v":0},{"$f":"IFERROR(VLOOKUP($A226,'[4]Payment Pivot'!$A$4:$B$39,2,FALSE),0)","v":0},{"$f":"$BL226+$BM225-IFERROR(VLOOKUP($A226,'[2]Myaccountaccess Pivot'!$A$4:$B$31,2,FALSE),0)","v":0},null,{"$f":"IFERROR(VLOOKUP($A226,'[6]export-2'!$A$2:$F$15,6,FALSE),BO225)","v":15151.190000000002},1101.3944787447613,{"$f":"OFFSET(A226,0,'Cool Graph'!$H$1)","v":12.5},{"$f":"OFFSET(A226,0,'Cool Graph'!$I$1)","v":1101.3944787447613}]
["2012-02-11",91.98,9.08,162.35000000000002,127,11.95,402.36,0,1,0,7,1,1,1,110.91,1,1,16.09,0,3,2,0,0,11,10,0,0,14,561.03,1960,2521.0299999999997,1758.640000000014,{"$f":"$BH227+$BI226-IFERROR(VLOOKUP($A227,[2]Sheet2!$A$4:$B$82,2,FALSE),0)","v":7747.6800000000021},{"$f":"$BJ226+$BK226-IFERROR(VLOOKUP($A227,[2]Amazon!$A$2:$F$17,5,FALSE),0)","v":0},{"$f":"$BL227+$BM226-IFERROR(VLOOKUP($A227,'[2]Myaccountaccess Pivot'!$A$4:$B$31,2,FALSE),0)","v":0},{"$f":"IFERROR(VLOOKUP($A227,'[2]export-1'!$A$2:$F$441,6,FALSE),AJ226)","v":41218.380000000005},{"$f":"IFERROR(VLOOKUP($A227,'[7]download-1'!$A$2:$F$513,6,FALSE),AK226)","v":-12879.08},{"$f":"IFERROR(VLOOKUP($A227,'[3]TexttoColumn Amazon Balance'!$A$14:$B$30,2,FALSE),IF(AL228>0,AL228-600,0))","v":9095.5},45182.48,75896.420000000013,283,105,133,0,null,null,null,null,null,{"$f":"IFERROR(VLOOKUP($A227,'[2]export-1'!$A$446:$G$451,7,FALSE),0)","v":0},{"$f":"IFERROR(VLOOKUP($A227,[3]Sheet4!$A$4:$B$56,2,FALSE),0)","v":0},{"$f":"IFERROR(VLOOKUP($A227,'[3]headphones purchased'!$A$2:$G$27,6,FALSE),0)","v":0},{"$f":"ROUND(IFERROR(VLOOKUP($A227,'[4]download-1'!$A$471:$F$474,5,FALSE)/-9.5,0),0)","v":0},{"$f":"ROUND(IFERROR(VLOOKUP($A227,'[4]download-1'!$A$467:$F$469,5,FALSE)/-49,0),0)","v":0},{"$f":"IFERROR(VLOOKUP($A227,[5]Sheet8!$A$4:$B$89,2,FALSE),0)","v":0},null,null,1,{"$f":"IFERROR(VLOOKUP($A227,[3]Paypal!$A$2:$AA$1843,25,FALSE),0)","v":0},{"$f":"IFERROR(VLOOKUP($A227,'[3]Paypal Money Sent Pivot'!$A$4:$B$97,2,FALSE),0)","v":1909.64},{"$f":"$BH227+$BI226-IFERROR(VLOOKUP($A227,[2]Sheet2!$A$4:$B$82,2,FALSE),0)","v":7747.6800000000021},{"$f":"IFERROR(VLOOKUP($A227,'[3]TexttoColumn Amazon Balance'!$A$14:$B$30,2,FALSE),0)","v":9095.5},{"$f":"$BJ226+$BK226-IFERROR(VLOOKUP($A227,[2]Amazon!$A$2:$F$17,5,FALSE),0)","v":0},{"$f":"IFERROR(VLOOKUP($A227,'[4]Payment Pivot'!$A$4:$B$39,2,FALSE),0)","v":0},{"$f":"$BL227+$BM226-IFERROR(VLOOKUP($A227,'[2]Myaccountaccess Pivot'!$A$4:$B$31,2,FALSE),0)","v":0},null,{"$f":"IFERROR(VLOOKUP($A227,'[6]export-2'!$A$2:$F$15,6,FALSE),BO226)","v":15151.190000000002},665.18064888693868,{"$f":"OFFSET(A227,0,'Cool Graph'!$H$1)","v":91.98},{"$f":"OFFSET(A227,0,'Cool Graph'!$I$1)","v":665.18064888693868},{"$f":"BP227-AF227","v":-1093.4593511130752}]
["2012-02-12",115.7,0,141.97,107.24000000000001,16.64,381.55,0,0,0,5,1,2,0,88.25,1,1,18.990000000000002,0,5,1,0,0,8,8,0,0,13,854.6,1415,2269.6,10182.039999999994,{"$f":"$BH228+$BI227-IFERROR(VLOOKUP($A228,[2]Sheet2!$A$4:$B$82,2,FALSE),0)","v":9297.9600000000028},{"$f":"$BJ227+$BK227-IFERROR(VLOOKUP($A228,[2]Amazon!$A$2:$F$17,5,FALSE),0)","v":9095.5},{"$f":"$BL228+$BM227-IFERROR(VLOOKUP($A228,'[2]Myaccountaccess Pivot'!$A$4:$B$31,2,FALSE),0)","v":0},{"$f":"IFERROR(VLOOKUP($A228,'[2]export-1'!$A$2:$F$441,6,FALSE),AJ227)","v":41218.380000000005},{"$f":"IFERROR(VLOOKUP($A228,'[7]download-1'!$A$2:$F$513,6,FALSE),AK227)","v":-12879.08},{"$f":"IFERROR(VLOOKUP($A228,'[3]TexttoColumn Amazon Balance'!$A$14:$B$30,2,FALSE),IF(AL229>0,AL229-600,0))","v":9354.2599999999984},56087.020000000004,86078.46,270,96,133,0,null,null,null,null,null,{"$f":"IFERROR(VLOOKUP($A228,'[2]export-1'!$A$446:$G$451,7,FALSE),0)","v":0},{"$f":"IFERROR(VLOOKUP($A228,[3]Sheet4!$A$4:$B$56,2,FALSE),0)","v":0},{"$f":"IFERROR(VLOOKUP($A228,'[3]headphones purchased'!$A$2:$G$27,6,FALSE),0)","v":0},{"$f":"ROUND(IFERROR(VLOOKUP($A228,'[4]download-1'!$A$471:$F$474,5,FALSE)/-9.5,0),0)","v":0},{"$f":"ROUND(IFERROR(VLOOKUP($A228,'[4]download-1'!$A$467:$F$469,5,FALSE)/-49,0),0)","v":0},{"$f":"IFERROR(VLOOKUP($A228,[5]Sheet8!$A$4:$B$89,2,FALSE),0)","v":0},null,null,0,{"$f":"IFERROR(VLOOKUP($A228,[3]Paypal!$A$2:$AA$1843,25,FALSE),0)","v":0},{"$f":"IFERROR(VLOOKUP($A228,'[3]Paypal Money Sent Pivot'!$A$4:$B$97,2,FALSE),0)","v":1550.28},{"$f":"$BH228+$BI227-IFERROR(VLOOKUP($A228,[2]Sheet2!$A$4:$B$82,2,FALSE),0)","v":9297.9600000000028},{"$f":"IFERROR(VLOOKUP($A228,'[3]TexttoColumn Amazon Balance'!$A$14:$B$30,2,FALSE),0)","v":0},{"$f":"$BJ227+$BK227-IFERROR(VLOOKUP($A228,[2]Amazon!$A$2:$F$17,5,FALSE),0)","v":9095.5},{"$f":"IFERROR(VLOOKUP($A228,'[4]Payment Pivot'!$A$4:$B$39,2,FALSE),0)","v":0},{"$f":"$BL228+$BM227-IFERROR(VLOOKUP($A228,'[2]Myaccountaccess Pivot'!$A$4:$B$31,2,FALSE),0)","v":0},null,{"$f":"IFERROR(VLOOKUP($A228,'[6]export-2'!$A$2:$F$15,6,FALSE),BO227)","v":15151.190000000002},579.5215686500344,{"$f":"OFFSET(A228,0,'Cool Graph'!$H$1)","v":115.7},{"$f":"OFFSET(A228,0,'Cool Graph'!$I$1)","v":579.5215686500344},-9602.5184313499594]
["2012-02-13",70.78,4.8899999999999997,169.39000000000001,144.62,10.029999999999999,399.71,0,1,0,6,2,2,0,131.44,0,1,13.18,2,4,0,0,0,8,7,1,0,12,649.03,1415,2064.0299999999997,-6.0000000012223609E-2,{"$f":"$BH229+$BI228-IFERROR(VLOOKUP($A229,[2]Sheet2!$A$4:$B$82,2,FALSE),0)","v":4837.550000000002},{"$f":"$BJ228+$BK228-IFERROR(VLOOKUP($A229,[2]Amazon!$A$2:$F$17,5,FALSE),0)","v":9095.5},{"$f":"$BL229+$BM228-IFERROR(VLOOKUP($A229,'[2]Myaccountaccess Pivot'!$A$4:$B$31,2,FALSE),0)","v":0},{"$f":"IFERROR(VLOOKUP($A229,'[2]export-1'!$A$2:$F$441,6,FALSE),AJ228)","v":46970.63},{"$f":"IFERROR(VLOOKUP($A229,'[7]download-1'!$A$2:$F$513,6,FALSE),AK228)","v":-14160.23},{"$f":"IFERROR(VLOOKUP($A229,'[3]TexttoColumn Amazon Balance'!$A$14:$B$30,2,FALSE),IF(AL230>0,AL230-600,0))","v":9954.2599999999984},56697.71,86078.399999999994,259,89,132,0,null,null,null,null,null,{"$f":"IFERROR(VLOOKUP($A229,'[2]export-1'!$A$446:$G$451,7,FALSE),0)","v":0},{"$f":"IFERROR(VLOOKUP($A229,[3]Sheet4!$A$4:$B$56,2,FALSE),0)","v":0},{"$f":"IFERROR(VLOOKUP($A229,'[3]headphones purchased'!$A$2:$G$27,6,FALSE),0)","v":0},{"$f":"ROUND(IFERROR(VLOOKUP($A229,'[4]download-1'!$A$471:$F$474,5,FALSE)/-9.5,0),0)","v":0},{"$f":"ROUND(IFERROR(VLOOKUP($A229,'[4]download-1'!$A$467:$F$469,5,FALSE)/-49,0),0)","v":0},{"$f":"IFERROR(VLOOKUP($A229,[5]Sheet8!$A$4:$B$89,2,FALSE),0)","v":0},null,null,1,{"$f":"IFERROR(VLOOKUP($A229,[3]Paypal!$A$2:$AA$1843,25,FALSE),0)","v":0},{"$f":"IFERROR(VLOOKUP($A229,'[3]Paypal Money Sent Pivot'!$A$4:$B$97,2,FALSE),0)","v":1377.81},{"$f":"$BH229+$BI228-IFERROR(VLOOKUP($A229,[2]Sheet2!$A$4:$B$82,2,FALSE),0)","v":4837.550000000002},{"$f":"IFERROR(VLOOKUP($A229,'[3]TexttoColumn Amazon Balance'!$A$14:$B$30,2,FALSE),0)","v":0},{"$f":"$BJ228+$BK228-IFERROR(VLOOKUP($A229,[2]Amazon!$A$2:$F$17,5,FALSE),0)","v":9095.5},{"$f":"IFERROR(VLOOKUP($A229,'[4]Payment Pivot'!$A$4:$B$39,2,FALSE),0)","v":0},{"$f":"$BL229+$BM228-IFERROR(VLOOKUP($A229,'[2]Myaccountaccess Pivot'!$A$4:$B$31,2,FALSE),0)","v":0},null,{"$f":"IFERROR(VLOOKUP($A229,'[6]export-2'!$A$2:$F$15,6,FALSE),BO228)","v":15151.190000000002},474.31209633447764,{"$f":"OFFSET(A229,0,'Cool Graph'!$H$1)","v":70.78},{"$f":"OFFSET(A229,0,'Cool Graph'!$I$1)","v":474.31209633447764},474.37209633448987]
["2012-02-14",196.07,16.21,165.89000000000001,260.35999999999996,8,646.53,1,1,0,8,3,0,0,245.82,2,0,14.54,1,7,2,0,0,14,14,0,0,21,1319.98,2530,3849.98,768.70000000001164,{"$f":"$BH230+$BI229-IFERROR(VLOOKUP($A230,[2]Sheet2!$A$4:$B$82,2,FALSE),0)","v":5014.9300000000012},{"$f":"$BJ229+$BK229-IFERROR(VLOOKUP($A230,[2]Amazon!$A$2:$F$17,5,FALSE),0)","v":0},{"$f":"$BL230+$BM229-IFERROR(VLOOKUP($A230,'[2]Myaccountaccess Pivot'!$A$4:$B$31,2,FALSE),0)","v":0},{"$f":"IFERROR(VLOOKUP($A230,'[2]export-1'!$A$2:$F$441,6,FALSE),AJ229)","v":46509.77},{"$f":"IFERROR(VLOOKUP($A230,'[7]download-1'!$A$2:$F$513,6,FALSE),AK229)","v":-14799.55},{"$f":"IFERROR(VLOOKUP($A230,'[3]TexttoColumn Amazon Balance'!$A$14:$B$30,2,FALSE),IF(AL231>0,AL231-600,0))","v":10554.259999999998},47279.409999999996,86847.1,470,73,132,0,null,null,null,null,null,{"$f":"IFERROR(VLOOKUP($A230,'[2]export-1'!$A$446:$G$451,7,FALSE),0)","v":234},{"$f":"IFERROR(VLOOKUP($A230,[3]Sheet4!$A$4:$B$56,2,FALSE),0)","v":0},{"$f":"IFERROR(VLOOKUP($A230,'[3]headphones purchased'!$A$2:$G$27,6,FALSE),0)","v":0},{"$f":"ROUND(IFERROR(VLOOKUP($A230,'[4]download-1'!$A$471:$F$474,5,FALSE)/-9.5,0),0)","v":0},{"$f":"ROUND(IFERROR(VLOOKUP($A230,'[4]download-1'!$A$467:$F$469,5,FALSE)/-49,0),0)","v":0},{"$f":"IFERROR(VLOOKUP($A230,[5]Sheet8!$A$4:$B$89,2,FALSE),0)","v":2},null,null,0,{"$f":"IFERROR(VLOOKUP($A230,[3]Paypal!$A$2:$AA$1843,25,FALSE),0)","v":0},{"$f":"IFERROR(VLOOKUP($A230,'[3]Paypal Money Sent Pivot'!$A$4:$B$97,2,FALSE),0)","v":2087.02},{"$f":"$BH230+$BI229-IFERROR(VLOOKUP($A230,[2]Sheet2!$A$4:$B$82,2,FALSE),0)","v":5014.9300000000012},{"$f":"IFERROR(VLOOKUP($A230,'[3]TexttoColumn Amazon Balance'!$A$14:$B$30,2,FALSE),0)","v":0},{"$f":"$BJ229+$BK229-IFERROR(VLOOKUP($A230,[2]Amazon!$A$2:$F$17,5,FALSE),0)","v":0},{"$f":"IFERROR(VLOOKUP($A230,'[4]Payment Pivot'!$A$4:$B$39,2,FALSE),0)","v":0},{"$f":"$BL230+$BM229-IFERROR(VLOOKUP($A230,'[2]Myaccountaccess Pivot'!$A$4:$B$31,2,FALSE),0)","v":0},null,{"$f":"IFERROR(VLOOKUP($A230,'[6]export-2'!$A$2:$F$15,6,FALSE),BO229)","v":15151.190000000002},983.76005898451717,{"$f":"OFFSET(A230,0,'Cool Graph'!$H$1)","v":196.07},{"$f":"OFFSET(A230,0,'Cool Graph'!$I$1)","v":983.76005898451717},215.06005898450553]
["2012-02-15",171.78,30.87,155.97999999999999,129.25,13.97,501.85,0,1,0,2,0,1,2,105.13000000000001,0,0,24.12,0,7,3,0,0,4,4,0,0,11,1226.53,715,1941.53,106.02999999999884,{"$f":"$BH231+$BI230-IFERROR(VLOOKUP($A231,[2]Sheet2!$A$4:$B$82,2,FALSE),0)","v":4702.2600000000011},{"$f":"$BJ230+$BK230-IFERROR(VLOOKUP($A231,[2]Amazon!$A$2:$F$17,5,FALSE),0)","v":0},{"$f":"$BL231+$BM230-IFERROR(VLOOKUP($A231,'[2]Myaccountaccess Pivot'!$A$4:$B$31,2,FALSE),0)","v":0},{"$f":"IFERROR(VLOOKUP($A231,'[2]export-1'!$A$2:$F$441,6,FALSE),AJ230)","v":47296.6},{"$f":"IFERROR(VLOOKUP($A231,'[7]download-1'!$A$2:$F$513,6,FALSE),AK230)","v":-15064.18},{"$f":"IFERROR(VLOOKUP($A231,'[3]TexttoColumn Amazon Balance'!$A$14:$B$30,2,FALSE),IF(AL232>0,AL232-600,0))","v":11154.259999999998},48088.939999999995,86953.13,457,66,132,0,null,null,null,null,null,{"$f":"IFERROR(VLOOKUP($A231,'[2]export-1'!$A$446:$G$451,7,FALSE),0)","v":0},{"$f":"IFERROR(VLOOKUP($A231,[3]Sheet4!$A$4:$B$56,2,FALSE),0)","v":0},{"$f":"IFERROR(VLOOKUP($A231,'[3]headphones purchased'!$A$2:$G$27,6,FALSE),0)","v":0},{"$f":"ROUND(IFERROR(VLOOKUP($A231,'[4]download-1'!$A$471:$F$474,5,FALSE)/-9.5,0),0)","v":0},{"$f":"ROUND(IFERROR(VLOOKUP($A231,'[4]download-1'!$A$467:$F$469,5,FALSE)/-49,0),0)","v":0},{"$f":"IFERROR(VLOOKUP($A231,[5]Sheet8!$A$4:$B$89,2,FALSE),0)","v":3},null,null,1,{"$f":"IFERROR(VLOOKUP($A231,[3]Paypal!$A$2:$AA$1843,25,FALSE),0)","v":0},{"$f":"IFERROR(VLOOKUP($A231,'[3]Paypal Money Sent Pivot'!$A$4:$B$97,2,FALSE),0)","v":1237.6099999999999},{"$f":"$BH231+$BI230-IFERROR(VLOOKUP($A231,[2]Sheet2!$A$4:$B$82,2,FALSE),0)","v":4702.2600000000011},{"$f":"IFERROR(VLOOKUP($A231,'[3]TexttoColumn Amazon Balance'!$A$14:$B$30,2,FALSE),0)","v":0},{"$f":"$BJ230+$BK230-IFERROR(VLOOKUP($A231,[2]Amazon!$A$2:$F$17,5,FALSE),0)","v":0},{"$f":"IFERROR(VLOOKUP($A231,'[4]Payment Pivot'!$A$4:$B$39,2,FALSE),0)","v":0},{"$f":"$BL231+$BM230-IFERROR(VLOOKUP($A231,'[2]Myaccountaccess Pivot'!$A$4:$B$31,2,FALSE),0)","v":0},null,{"$f":"IFERROR(VLOOKUP($A231,'[6]export-2'!$A$2:$F$15,6,FALSE),BO230)","v":15151.190000000002},320.29896135050296,{"$f":"OFFSET(A231,0,'Cool Graph'!$H$1)","v":171.78},{"$f":"OFFSET(A231,0,'Cool Graph'!$I$1)","v":320.29896135050296},214.26896135050413]
["2012-02-16",89.57,18.68,171.01,369.40999999999997,12.7,661.37,0,1,0,2,3,1,0,357.38,3,0,12.03,0,7,3,0,0,13,13,0,0,20,1223.8599999999999,2155,3378.8599999999997,711.43999999998778,{"$f":"$BH232+$BI231-IFERROR(VLOOKUP($A232,[2]Sheet2!$A$4:$B$82,2,FALSE),0)","v":5426.6700000000019},{"$f":"$BJ231+$BK231-IFERROR(VLOOKUP($A232,[2]Amazon!$A$2:$F$17,5,FALSE),0)","v":0},{"$f":"$BL232+$BM231-IFERROR(VLOOKUP($A232,'[2]Myaccountaccess Pivot'!$A$4:$B$31,2,FALSE),0)","v":0},{"$f":"IFERROR(VLOOKUP($A232,'[2]export-1'!$A$2:$F$441,6,FALSE),AJ231)","v":48484.409999999996},{"$f":"IFERROR(VLOOKUP($A232,'[7]download-1'!$A$2:$F$513,6,FALSE),AK231)","v":-15634.960000000001},{"$f":"IFERROR(VLOOKUP($A232,'[3]TexttoColumn Amazon Balance'!$A$14:$B$30,2,FALSE),IF(AL233>0,AL233-600,0))","v":11754.259999999998},50030.37999999999,87664.569999999992,435,50,132,0,null,null,null,null,null,{"$f":"IFERROR(VLOOKUP($A232,'[2]export-1'!$A$446:$G$451,7,FALSE),0)","v":0},{"$f":"IFERROR(VLOOKUP($A232,[3]Sheet4!$A$4:$B$56,2,FALSE),0)","v":0},{"$f":"IFERROR(VLOOKUP($A232,'[3]headphones purchased'!$A$2:$G$27,6,FALSE),0)","v":0},{"$f":"ROUND(IFERROR(VLOOKUP($A232,'[4]download-1'!$A$471:$F$474,5,FALSE)/-9.5,0),0)","v":0},{"$f":"ROUND(IFERROR(VLOOKUP($A232,'[4]download-1'!$A$467:$F$469,5,FALSE)/-49,0),0)","v":0},{"$f":"IFERROR(VLOOKUP($A232,[5]Sheet8!$A$4:$B$89,2,FALSE),0)","v":2},null,null,0,{"$f":"IFERROR(VLOOKUP($A232,[3]Paypal!$A$2:$AA$1843,25,FALSE),0)","v":0},{"$f":"IFERROR(VLOOKUP($A232,'[3]Paypal Money Sent Pivot'!$A$4:$B$97,2,FALSE),0)","v":2102.2199999999998},{"$f":"$BH232+$BI231-IFERROR(VLOOKUP($A232,[2]Sheet2!$A$4:$B$82,2,FALSE),0)","v":5426.6700000000019},{"$f":"IFERROR(VLOOKUP($A232,'[3]TexttoColumn Amazon Balance'!$A$14:$B$30,2,FALSE),0)","v":0},{"$f":"$BJ231+$BK231-IFERROR(VLOOKUP($A232,[2]Amazon!$A$2:$F$17,5,FALSE),0)","v":0},{"$f":"IFERROR(VLOOKUP($A232,'[4]Payment Pivot'!$A$4:$B$39,2,FALSE),0)","v":0},{"$f":"$BL232+$BM231-IFERROR(VLOOKUP($A232,'[2]Myaccountaccess Pivot'!$A$4:$B$31,2,FALSE),0)","v":0},null,{"$f":"IFERROR(VLOOKUP($A232,'[6]export-2'!$A$2:$F$15,6,FALSE),BO231)","v":15151.190000000002},769.42233364859692,{"$f":"OFFSET(A232,0,'Cool Graph'!$H$1)","v":89.57},{"$f":"OFFSET(A232,0,'Cool Graph'!$I$1)","v":769.42233364859692},57.982333648609142]
["2012-02-17",68.23,24.55,142.51000000000002,128.78,18.420000000000002,382.49000000000007,0,1,1,3,3,0,0,119.87,2,0,8.91,1,16,5,0,0,9,9,0,0,25,2795.66,1590,4385.66,682.02000000000407,{"$f":"$BH233+$BI232-IFERROR(VLOOKUP($A233,[2]Sheet2!$A$4:$B$82,2,FALSE),0)","v":4720.8200000000015},{"$f":"$BJ232+$BK232-IFERROR(VLOOKUP($A233,[2]Amazon!$A$2:$F$17,5,FALSE),0)","v":0},{"$f":"$BL233+$BM232-IFERROR(VLOOKUP($A233,'[2]Myaccountaccess Pivot'!$A$4:$B$31,2,FALSE),0)","v":0},{"$f":"IFERROR(VLOOKUP($A233,'[2]export-1'!$A$2:$F$441,6,FALSE),AJ232)","v":50571.429999999993},{"$f":"IFERROR(VLOOKUP($A233,'[7]download-1'!$A$2:$F$513,6,FALSE),AK232)","v":-16754.11},{"$f":"IFERROR(VLOOKUP($A233,'[3]TexttoColumn Amazon Balance'!$A$14:$B$30,2,FALSE),IF(AL234>0,AL234-600,0))","v":12354.259999999998},50892.399999999987,88346.59,341,{"$f":"AP232+AZ233+BA233-Y233-U233-AT233+124","v":69},{"$f":"BD233-V233-Z233+AQ232-AU233","v":-1},0,69,91,133,null,null,{"$f":"IFERROR(VLOOKUP($A233,'[2]export-1'!$A$446:$G$451,7,FALSE),0)","v":0},{"$f":"IFERROR(VLOOKUP($A233,[3]Sheet4!$A$4:$B$56,2,FALSE),0)","v":0},{"$f":"IFERROR(VLOOKUP($A233,'[3]headphones purchased'!$A$2:$G$27,6,FALSE),0)","v":0},{"$f":"ROUND(IFERROR(VLOOKUP($A233,'[4]download-1'!$A$471:$F$474,5,FALSE)/-9.5,0),0)","v":0},{"$f":"ROUND(IFERROR(VLOOKUP($A233,'[4]download-1'!$A$467:$F$469,5,FALSE)/-49,0),0)","v":0},{"$f":"IFERROR(VLOOKUP($A233,[5]Sheet8!$A$4:$B$89,2,FALSE),0)","v":1},null,null,1,{"$f":"IFERROR(VLOOKUP($A233,[3]Paypal!$A$2:$AA$1843,25,FALSE),0)","v":0},{"$f":"IFERROR(VLOOKUP($A233,'[3]Paypal Money Sent Pivot'!$A$4:$B$97,2,FALSE),0)","v":1381.17},{"$f":"$BH233+$BI232-IFERROR(VLOOKUP($A233,[2]Sheet2!$A$4:$B$82,2,FALSE),0)","v":4720.8200000000015},{"$f":"IFERROR(VLOOKUP($A233,'[3]TexttoColumn Amazon Balance'!$A$14:$B$30,2,FALSE),0)","v":0},{"$f":"$BJ232+$BK232-IFERROR(VLOOKUP($A233,[2]Amazon!$A$2:$F$17,5,FALSE),0)","v":0},{"$f":"IFERROR(VLOOKUP($A233,'[4]Payment Pivot'!$A$4:$B$39,2,FALSE),0)","v":0},{"$f":"$BL233+$BM232-IFERROR(VLOOKUP($A233,'[2]Myaccountaccess Pivot'!$A$4:$B$31,2,FALSE),0)","v":0},null,{"$f":"IFERROR(VLOOKUP($A233,'[6]export-2'!$A$2:$F$15,6,FALSE),BO232)","v":15151.190000000002},1474.6359850923996,{"$f":"OFFSET(A233,0,'Cool Graph'!$H$1)","v":68.23},{"$f":"OFFSET(A233,0,'Cool Graph'!$I$1)","v":1474.6359850923996},792.61598509239548]
["2012-02-18",87.01,27.56,135.79,126.11999999999999,17.48,393.96000000000004,0,0,0,7,2,1,1,116.61999999999999,2,0,9.5,0,9,0,0,0,8,8,0,0,17,1448.81,1455,2903.81,-3490.4600000000064,{"$f":"$BH234+$BI233-IFERROR(VLOOKUP($A234,[2]Sheet2!$A$4:$B$82,2,FALSE),0)","v":6483.1100000000015},{"$f":"$BJ233+$BK233-IFERROR(VLOOKUP($A234,[2]Amazon!$A$2:$F$17,5,FALSE),0)","v":0},{"$f":"$BL234+$BM233-IFERROR(VLOOKUP($A234,'[2]Myaccountaccess Pivot'!$A$4:$B$31,2,FALSE),0)","v":0},{"$f":"IFERROR(VLOOKUP($A234,'[2]export-1'!$A$2:$F$441,6,FALSE),AJ233)","v":50571.429999999993},{"$f":"IFERROR(VLOOKUP($A234,'[7]download-1'!$A$2:$F$513,6,FALSE),AK233)","v":-16754.11},{"$f":"IFERROR(VLOOKUP($A234,'[3]TexttoColumn Amazon Balance'!$A$14:$B$30,2,FALSE),IF(AL235>0,AL235-600,0))","v":12954.259999999998},53254.689999999988,84856.12999999999,324,61,-1,0,null,null,null,null,null,{"$f":"IFERROR(VLOOKUP($A234,'[2]export-1'!$A$446:$G$451,7,FALSE),0)","v":0},{"$f":"IFERROR(VLOOKUP($A234,[3]Sheet4!$A$4:$B$56,2,FALSE),0)","v":0},{"$f":"IFERROR(VLOOKUP($A234,'[3]headphones purchased'!$A$2:$G$27,6,FALSE),0)","v":0},{"$f":"ROUND(IFERROR(VLOOKUP($A234,'[4]download-1'!$A$471:$F$474,5,FALSE)/-9.5,0),0)","v":0},{"$f":"ROUND(IFERROR(VLOOKUP($A234,'[4]download-1'!$A$467:$F$469,5,FALSE)/-49,0),0)","v":0},{"$f":"IFERROR(VLOOKUP($A234,[5]Sheet8!$A$4:$B$89,2,FALSE),0)","v":0},null,null,0,{"$f":"IFERROR(VLOOKUP($A234,[3]Paypal!$A$2:$AA$1843,25,FALSE),0)","v":0},{"$f":"IFERROR(VLOOKUP($A234,'[3]Paypal Money Sent Pivot'!$A$4:$B$97,2,FALSE),0)","v":1762.29},{"$f":"$BH234+$BI233-IFERROR(VLOOKUP($A234,[2]Sheet2!$A$4:$B$82,2,FALSE),0)","v":6483.1100000000015},{"$f":"IFERROR(VLOOKUP($A234,'[3]TexttoColumn Amazon Balance'!$A$14:$B$30,2,FALSE),0)","v":0},{"$f":"$BJ233+$BK233-IFERROR(VLOOKUP($A234,[2]Amazon!$A$2:$F$17,5,FALSE),0)","v":0},{"$f":"IFERROR(VLOOKUP($A234,'[4]Payment Pivot'!$A$4:$B$39,2,FALSE),0)","v":0},{"$f":"$BL234+$BM233-IFERROR(VLOOKUP($A234,'[2]Myaccountaccess Pivot'!$A$4:$B$31,2,FALSE),0)","v":0},null,{"$f":"IFERROR(VLOOKUP($A234,'[6]export-2'!$A$2:$F$15,6,FALSE),BO233)","v":15151.190000000002},835.67043345155821,{"$f":"OFFSET(A234,0,'Cool Graph'!$H$1)","v":87.01},{"$f":"OFFSET(A234,0,'Cool Graph'!$I$1)","v":835.67043345155821},4326.1304334515644]
["2012-02-19",293.63,20.9,192.3,140.09,8.2100000000000009,655.13,2,4,0,8,0,0,0,131.88999999999999,0,0,8.1999999999999993,0,10,4,0,0,18,18,1,0,28,1885.93,3230,5115.93,2214.5500000000029,{"$f":"$BH235+$BI234-IFERROR(VLOOKUP($A235,[2]Sheet2!$A$4:$B$82,2,FALSE),0)","v":9634.9100000000017},{"$f":"$BJ234+$BK234-IFERROR(VLOOKUP($A235,[2]Amazon!$A$2:$F$17,5,FALSE),0)","v":0},{"$f":"$BL235+$BM234-IFERROR(VLOOKUP($A235,'[2]Myaccountaccess Pivot'!$A$4:$B$31,2,FALSE),0)","v":0},{"$f":"IFERROR(VLOOKUP($A235,'[2]export-1'!$A$2:$F$441,6,FALSE),AJ234)","v":50571.429999999993},{"$f":"IFERROR(VLOOKUP($A235,'[7]download-1'!$A$2:$F$513,6,FALSE),AK234)","v":-16754.11},{"$f":"IFERROR(VLOOKUP($A235,'[3]TexttoColumn Amazon Balance'!$A$14:$B$30,2,FALSE),IF(AL236>0,AL236-600,0))","v":13554.259999999998},57006.489999999991,87070.68,297,39,-2,0,null,null,null,null,null,{"$f":"IFERROR(VLOOKUP($A235,'[2]export-1'!$A$446:$G$451,7,FALSE),0)","v":0},{"$f":"IFERROR(VLOOKUP($A235,[3]Sheet4!$A$4:$B$56,2,FALSE),0)","v":0},{"$f":"IFERROR(VLOOKUP($A235,'[3]headphones purchased'!$A$2:$G$27,6,FALSE),0)","v":0},{"$f":"ROUND(IFERROR(VLOOKUP($A235,'[4]download-1'!$A$471:$F$474,5,FALSE)/-9.5,0),0)","v":0},{"$f":"ROUND(IFERROR(VLOOKUP($A235,'[4]download-1'!$A$467:$F$469,5,FALSE)/-49,0),0)","v":0},{"$f":"IFERROR(VLOOKUP($A235,[5]Sheet8!$A$4:$B$89,2,FALSE),0)","v":0},null,null,1,{"$f":"IFERROR(VLOOKUP($A235,[3]Paypal!$A$2:$AA$1843,25,FALSE),0)","v":0},{"$f":"IFERROR(VLOOKUP($A235,'[3]Paypal Money Sent Pivot'!$A$4:$B$97,2,FALSE),0)","v":3151.8},{"$f":"$BH235+$BI234-IFERROR(VLOOKUP($A235,[2]Sheet2!$A$4:$B$82,2,FALSE),0)","v":9634.9100000000017},{"$f":"IFERROR(VLOOKUP($A235,'[3]TexttoColumn Amazon Balance'!$A$14:$B$30,2,FALSE),0)","v":0},{"$f":"$BJ234+$BK234-IFERROR(VLOOKUP($A235,[2]Amazon!$A$2:$F$17,5,FALSE),0)","v":0},{"$f":"IFERROR(VLOOKUP($A235,'[4]Payment Pivot'!$A$4:$B$39,2,FALSE),0)","v":0},{"$f":"$BL235+$BM234-IFERROR(VLOOKUP($A235,'[2]Myaccountaccess Pivot'!$A$4:$B$31,2,FALSE),0)","v":0},null,{"$f":"IFERROR(VLOOKUP($A235,'[6]export-2'!$A$2:$F$15,6,FALSE),BO234)","v":15151.190000000002},1511.2318568046226,{"$f":"OFFSET(A235,0,'Cool Graph'!$H$1)","v":293.63},{"$f":"OFFSET(A235,0,'Cool Graph'!$I$1)","v":1511.2318568046226},-703.31814319538034]
["2012-02-20",347.23,23.35,237.52,166.46999999999997,14.41,788.9799999999999,0,0,0,6,4,1,0,159.23999999999998,4,1,7.23,0,10,5,0,0,14,14,1,0,24,1899.34,2565,4464.34,1667.8000000000029,{"$f":"$BH236+$BI235-IFERROR(VLOOKUP($A236,[2]Sheet2!$A$4:$B$82,2,FALSE),0)","v":12113.460000000003},{"$f":"$BJ235+$BK235-IFERROR(VLOOKUP($A236,[2]Amazon!$A$2:$F$17,5,FALSE),0)","v":0},{"$f":"$BL236+$BM235-IFERROR(VLOOKUP($A236,'[2]Myaccountaccess Pivot'!$A$4:$B$31,2,FALSE),0)","v":0},{"$f":"IFERROR(VLOOKUP($A236,'[2]export-1'!$A$2:$F$441,6,FALSE),AJ235)","v":50571.429999999993},{"$f":"IFERROR(VLOOKUP($A236,'[7]download-1'!$A$2:$F$513,6,FALSE),AK235)","v":-16754.11},{"$f":"IFERROR(VLOOKUP($A236,'[3]TexttoColumn Amazon Balance'!$A$14:$B$30,2,FALSE),IF(AL237>0,AL237-600,0))","v":14154.259999999998},60085.039999999994,88738.48,272,20,-3,0,null,null,null,null,null,{"$f":"IFERROR(VLOOKUP($A236,'[2]export-1'!$A$446:$G$451,7,FALSE),0)","v":0},{"$f":"IFERROR(VLOOKUP($A236,[3]Sheet4!$A$4:$B$56,2,FALSE),0)","v":0},{"$f":"IFERROR(VLOOKUP($A236,'[3]headphones purchased'!$A$2:$G$27,6,FALSE),0)","v":0},{"$f":"ROUND(IFERROR(VLOOKUP($A236,'[4]download-1'!$A$471:$F$474,5,FALSE)/-9.5,0),0)","v":0},{"$f":"ROUND(IFERROR(VLOOKUP($A236,'[4]download-1'!$A$467:$F$469,5,FALSE)/-49,0),0)","v":0},{"$f":"IFERROR(VLOOKUP($A236,[5]Sheet8!$A$4:$B$89,2,FALSE),0)","v":1},null,null,0,{"$f":"IFERROR(VLOOKUP($A236,[3]Paypal!$A$2:$AA$1843,25,FALSE),0)","v":0},{"$f":"IFERROR(VLOOKUP($A236,'[3]Paypal Money Sent Pivot'!$A$4:$B$97,2,FALSE),0)","v":2478.5500000000002},{"$f":"$BH236+$BI235-IFERROR(VLOOKUP($A236,[2]Sheet2!$A$4:$B$82,2,FALSE),0)","v":12113.460000000003},{"$f":"IFERROR(VLOOKUP($A236,'[3]TexttoColumn Amazon Balance'!$A$14:$B$30,2,FALSE),0)","v":0},{"$f":"$BJ235+$BK235-IFERROR(VLOOKUP($A236,[2]Amazon!$A$2:$F$17,5,FALSE),0)","v":0},{"$f":"IFERROR(VLOOKUP($A236,'[4]Payment Pivot'!$A$4:$B$39,2,FALSE),0)","v":0},{"$f":"$BL236+$BM235-IFERROR(VLOOKUP($A236,'[2]Myaccountaccess Pivot'!$A$4:$B$31,2,FALSE),0)","v":0},null,{"$f":"IFERROR(VLOOKUP($A236,'[6]export-2'!$A$2:$F$15,6,FALSE),BO235)","v":15151.190000000002},1101.4633586478212,{"$f":"OFFSET(A236,0,'Cool Graph'!$H$1)","v":347.23},{"$f":"OFFSET(A236,0,'Cool Graph'!$I$1)","v":1101.4633586478212},-566.33664135218169]
["2012-02-21",214.52,17.96,173.19,153.26999999999998,15.91,574.85,0,0,0,6,1,11,2,146.94999999999999,1,1,6.32,0,7,4,0,0,9,8,0,0,16,1262.23,1665,2927.23,-13101.449999999983,{"$f":"$BH237+$BI236-IFERROR(VLOOKUP($A237,[2]Sheet2!$A$4:$B$82,2,FALSE),0)","v":7094.7700000000032},{"$f":"$BJ236+$BK236-IFERROR(VLOOKUP($A237,[2]Amazon!$A$2:$F$17,5,FALSE),0)","v":0},{"$f":"$BL237+$BM236-IFERROR(VLOOKUP($A237,'[2]Myaccountaccess Pivot'!$A$4:$B$31,2,FALSE),0)","v":33508.22},{"$f":"IFERROR(VLOOKUP($A237,'[2]export-1'!$A$2:$F$441,6,FALSE),AJ236)","v":45034.159999999996},{"$f":"IFERROR(VLOOKUP($A237,'[7]download-1'!$A$2:$F$513,6,FALSE),AK236)","v":12503.620000000004},{"$f":"IFERROR(VLOOKUP($A237,'[3]TexttoColumn Amazon Balance'!$A$14:$B$30,2,FALSE),IF(AL238>0,AL238-600,0))","v":14754.259999999998},45878.590000000011,75637.030000000013,255,224,-3,0,null,null,null,null,null,{"$f":"IFERROR(VLOOKUP($A237,'[2]export-1'!$A$446:$G$451,7,FALSE),0)","v":0},{"$f":"IFERROR(VLOOKUP($A237,[3]Sheet4!$A$4:$B$56,2,FALSE),0)","v":0},{"$f":"IFERROR(VLOOKUP($A237,'[3]headphones purchased'!$A$2:$G$27,6,FALSE),0)","v":0},{"$f":"ROUND(IFERROR(VLOOKUP($A237,'[4]download-1'!$A$471:$F$474,5,FALSE)/-9.5,0),0)","v":216},{"$f":"ROUND(IFERROR(VLOOKUP($A237,'[4]download-1'!$A$467:$F$469,5,FALSE)/-49,0),0)","v":0},{"$f":"IFERROR(VLOOKUP($A237,[5]Sheet8!$A$4:$B$89,2,FALSE),0)","v":2},null,null,1,{"$f":"IFERROR(VLOOKUP($A237,[3]Paypal!$A$2:$AA$1843,25,FALSE),0)","v":0},{"$f":"IFERROR(VLOOKUP($A237,'[3]Paypal Money Sent Pivot'!$A$4:$B$97,2,FALSE),0)","v":1464.6},{"$f":"$BH237+$BI236-IFERROR(VLOOKUP($A237,[2]Sheet2!$A$4:$B$82,2,FALSE),0)","v":7094.7700000000032},{"$f":"IFERROR(VLOOKUP($A237,'[3]TexttoColumn Amazon Balance'!$A$14:$B$30,2,FALSE),0)","v":0},{"$f":"$BJ236+$BK236-IFERROR(VLOOKUP($A237,[2]Amazon!$A$2:$F$17,5,FALSE),0)","v":0},{"$f":"IFERROR(VLOOKUP($A237,'[4]Payment Pivot'!$A$4:$B$39,2,FALSE),0)","v":33508.22},{"$f":"$BL237+$BM236-IFERROR(VLOOKUP($A237,'[2]Myaccountaccess Pivot'!$A$4:$B$31,2,FALSE),0)","v":33508.22},null,{"$f":"IFERROR(VLOOKUP($A237,'[6]export-2'!$A$2:$F$15,6,FALSE),BO236)","v":15151.190000000002},664.69772995216806,{"$f":"OFFSET(A237,0,'Cool Graph'!$H$1)","v":214.52},{"$f":"OFFSET(A237,0,'Cool Graph'!$I$1)","v":664.69772995216806},13766.14772995215]
["2012-02-22",136.09,26.63,177.79,167.76000000000002,18.71,526.98,0,0,0,4,0,0,0,161.61000000000001,0,0,6.15,0,9,1,0,0,6,8,0,0,15,1498.55,1140,2638.55,18.439999999987776,{"$f":"$BH238+$BI237-IFERROR(VLOOKUP($A238,[2]Sheet2!$A$4:$B$82,2,FALSE),0)","v":4915.8300000000027},{"$f":"$BJ237+$BK237-IFERROR(VLOOKUP($A238,[2]Amazon!$A$2:$F$17,5,FALSE),0)","v":0},{"$f":"$BL238+$BM237-IFERROR(VLOOKUP($A238,'[2]Myaccountaccess Pivot'!$A$4:$B$31,2,FALSE),0)","v":0},{"$f":"IFERROR(VLOOKUP($A238,'[2]export-1'!$A$2:$F$441,6,FALSE),AJ237)","v":14677.739999999998},{"$f":"IFERROR(VLOOKUP($A238,'[7]download-1'!$A$2:$F$513,6,FALSE),AK237)","v":11818.700000000004},{"$f":"IFERROR(VLOOKUP($A238,'[3]TexttoColumn Amazon Balance'!$A$14:$B$30,2,FALSE),IF(AL239>0,AL239-600,0))","v":15354.259999999998},46766.53,75655.47,239,215,-3,0,null,null,null,null,null,{"$f":"IFERROR(VLOOKUP($A238,'[2]export-1'!$A$446:$G$451,7,FALSE),0)","v":0},{"$f":"IFERROR(VLOOKUP($A238,[3]Sheet4!$A$4:$B$56,2,FALSE),0)","v":0},{"$f":"IFERROR(VLOOKUP($A238,'[3]headphones purchased'!$A$2:$G$27,6,FALSE),0)","v":0},{"$f":"ROUND(IFERROR(VLOOKUP($A238,'[4]download-1'!$A$471:$F$474,5,FALSE)/-9.5,0),0)","v":0},{"$f":"ROUND(IFERROR(VLOOKUP($A238,'[4]download-1'!$A$467:$F$469,5,FALSE)/-49,0),0)","v":0},{"$f":"IFERROR(VLOOKUP($A238,[5]Sheet8!$A$4:$B$89,2,FALSE),0)","v":1},null,null,0,{"$f":"IFERROR(VLOOKUP($A238,[3]Paypal!$A$2:$AA$1843,25,FALSE),0)","v":0},{"$f":"IFERROR(VLOOKUP($A238,'[3]Paypal Money Sent Pivot'!$A$4:$B$97,2,FALSE),0)","v":972.86},{"$f":"$BH238+$BI237-IFERROR(VLOOKUP($A238,[2]Sheet2!$A$4:$B$82,2,FALSE),0)","v":4915.8300000000027},{"$f":"IFERROR(VLOOKUP($A238,'[3]TexttoColumn Amazon Balance'!$A$14:$B$30,2,FALSE),0)","v":0},{"$f":"$BJ237+$BK237-IFERROR(VLOOKUP($A238,[2]Amazon!$A$2:$F$17,5,FALSE),0)","v":0},{"$f":"IFERROR(VLOOKUP($A238,'[4]Payment Pivot'!$A$4:$B$39,2,FALSE),0)","v":0},{"$f":"$BL238+$BM237-IFERROR(VLOOKUP($A238,'[2]Myaccountaccess Pivot'!$A$4:$B$31,2,FALSE),0)","v":0},null,{"$f":"IFERROR(VLOOKUP($A238,'[6]export-2'!$A$2:$F$15,6,FALSE),BO237)","v":15151.190000000002},590.32498213850408,{"$f":"OFFSET(A238,0,'Cool Graph'!$H$1)","v":136.09},{"$f":"OFFSET(A238,0,'Cool Graph'!$I$1)","v":590.32498213850408},571.88498213851631]
["2012-02-23",77.59,20.83,168.75,157.02999999999997,16.12,440.32,1,0,0,7,2,3,1,151.13999999999999,2,3,5.89,0,11,2,0,0,11,9,1,0,22,1865.87,1915,3780.87,600.44999999999709,{"$f":"$BH239+$BI238-IFERROR(VLOOKUP($A239,[2]Sheet2!$A$4:$B$82,2,FALSE),0)","v":3971.0000000000027},{"$f":"$BJ238+$BK238-IFERROR(VLOOKUP($A239,[2]Amazon!$A$2:$F$17,5,FALSE),0)","v":0},{"$f":"$BL239+$BM238-IFERROR(VLOOKUP($A239,'[2]Myaccountaccess Pivot'!$A$4:$B$31,2,FALSE),0)","v":0},{"$f":"IFERROR(VLOOKUP($A239,'[2]export-1'!$A$2:$F$441,6,FALSE),AJ238)","v":6181.7699999999968},{"$f":"IFERROR(VLOOKUP($A239,'[7]download-1'!$A$2:$F$513,6,FALSE),AK238)","v":11618.700000000004},{"$f":"IFERROR(VLOOKUP($A239,'[3]TexttoColumn Amazon Balance'!$A$14:$B$30,2,FALSE),IF(AL240>0,AL240-600,0))","v":15954.259999999998},37725.729999999996,76255.92,438,204,-4,0,null,null,null,null,null,{"$f":"IFERROR(VLOOKUP($A239,'[2]export-1'!$A$446:$G$451,7,FALSE),0)","v":222},{"$f":"IFERROR(VLOOKUP($A239,[3]Sheet4!$A$4:$B$56,2,FALSE),0)","v":0},{"$f":"IFERROR(VLOOKUP($A239,'[3]headphones purchased'!$A$2:$G$27,6,FALSE),0)","v":0},{"$f":"ROUND(IFERROR(VLOOKUP($A239,'[4]download-1'!$A$471:$F$474,5,FALSE)/-9.5,0),0)","v":0},{"$f":"ROUND(IFERROR(VLOOKUP($A239,'[4]download-1'!$A$467:$F$469,5,FALSE)/-49,0),0)","v":0},{"$f":"IFERROR(VLOOKUP($A239,[5]Sheet8!$A$4:$B$89,2,FALSE),0)","v":2},null,null,1,{"$f":"IFERROR(VLOOKUP($A239,[3]Paypal!$A$2:$AA$1843,25,FALSE),0)","v":0},{"$f":"IFERROR(VLOOKUP($A239,'[3]Paypal Money Sent Pivot'!$A$4:$B$97,2,FALSE),0)","v":1533.72},{"$f":"$BH239+$BI238-IFERROR(VLOOKUP($A239,[2]Sheet2!$A$4:$B$82,2,FALSE),0)","v":3971.0000000000027},{"$f":"IFERROR(VLOOKUP($A239,'[3]TexttoColumn Amazon Balance'!$A$14:$B$30,2,FALSE),0)","v":0},{"$f":"$BJ238+$BK238-IFERROR(VLOOKUP($A239,[2]Amazon!$A$2:$F$17,5,FALSE),0)","v":0},{"$f":"IFERROR(VLOOKUP($A239,'[4]Payment Pivot'!$A$4:$B$39,2,FALSE),0)","v":0},{"$f":"$BL239+$BM238-IFERROR(VLOOKUP($A239,'[2]Myaccountaccess Pivot'!$A$4:$B$31,2,FALSE),0)","v":0},null,{"$f":"IFERROR(VLOOKUP($A239,'[6]export-2'!$A$2:$F$15,6,FALSE),BO238)","v":15151.190000000002},1160.7051417702926,{"$f":"OFFSET(A239,0,'Cool Graph'!$H$1)","v":77.59},{"$f":"OFFSET(A239,0,'Cool Graph'!$I$1)","v":1160.7051417702926},560.2551417702955]
["2012-02-24",117.96,9.93,127.53000000000002,182.85000000000002,11.42,449.69000000000005,1,2,0,4,0,1,0,176.20000000000002,0,0,6.65,0,6,0,0,0,11,11,0,0,17,854.35,2155,3009.35,1947.3000000000029,{"$f":"$BH240+$BI239-IFERROR(VLOOKUP($A240,[2]Sheet2!$A$4:$B$82,2,FALSE),0)","v":4933.2400000000034},{"$f":"$BJ239+$BK239-IFERROR(VLOOKUP($A240,[2]Amazon!$A$2:$F$17,5,FALSE),0)","v":0},{"$f":"$BL240+$BM239-IFERROR(VLOOKUP($A240,'[2]Myaccountaccess Pivot'!$A$4:$B$31,2,FALSE),0)","v":0},{"$f":"IFERROR(VLOOKUP($A240,'[2]export-1'!$A$2:$F$441,6,FALSE),AJ239)","v":7646.3699999999972},{"$f":"IFERROR(VLOOKUP($A240,'[7]download-1'!$A$2:$F$513,6,FALSE),AK239)","v":11525.660000000003},{"$f":"IFERROR(VLOOKUP($A240,'[3]TexttoColumn Amazon Balance'!$A$14:$B$30,2,FALSE),IF(AL241>0,AL241-600,0))","v":16554.259999999998},40659.530000000006,78203.22,420,193,-4,0,null,null,null,null,null,{"$f":"IFERROR(VLOOKUP($A240,'[2]export-1'!$A$446:$G$451,7,FALSE),0)","v":0},{"$f":"IFERROR(VLOOKUP($A240,[3]Sheet4!$A$4:$B$56,2,FALSE),0)","v":0},{"$f":"IFERROR(VLOOKUP($A240,'[3]headphones purchased'!$A$2:$G$27,6,FALSE),0)","v":0},{"$f":"ROUND(IFERROR(VLOOKUP($A240,'[4]download-1'!$A$471:$F$474,5,FALSE)/-9.5,0),0)","v":0},{"$f":"ROUND(IFERROR(VLOOKUP($A240,'[4]download-1'!$A$467:$F$469,5,FALSE)/-49,0),0)","v":0},{"$f":"IFERROR(VLOOKUP($A240,[5]Sheet8!$A$4:$B$89,2,FALSE),0)","v":1},null,null,0,{"$f":"IFERROR(VLOOKUP($A240,[3]Paypal!$A$2:$AA$1843,25,FALSE),0)","v":0},{"$f":"IFERROR(VLOOKUP($A240,'[3]Paypal Money Sent Pivot'!$A$4:$B$97,2,FALSE),0)","v":2426.84},{"$f":"$BH240+$BI239-IFERROR(VLOOKUP($A240,[2]Sheet2!$A$4:$B$82,2,FALSE),0)","v":4933.2400000000034},{"$f":"IFERROR(VLOOKUP($A240,'[3]TexttoColumn Amazon Balance'!$A$14:$B$30,2,FALSE),0)","v":0},{"$f":"$BJ239+$BK239-IFERROR(VLOOKUP($A240,[2]Amazon!$A$2:$F$17,5,FALSE),0)","v":0},{"$f":"IFERROR(VLOOKUP($A240,'[4]Payment Pivot'!$A$4:$B$39,2,FALSE),0)","v":0},{"$f":"$BL240+$BM239-IFERROR(VLOOKUP($A240,'[2]Myaccountaccess Pivot'!$A$4:$B$31,2,FALSE),0)","v":0},null,{"$f":"IFERROR(VLOOKUP($A240,'[6]export-2'!$A$2:$F$15,6,FALSE),BO239)","v":15151.190000000002},824.63178582877208,{"$f":"OFFSET(A240,0,'Cool Graph'!$H$1)","v":117.96},{"$f":"OFFSET(A240,0,'Cool Graph'!$I$1)","v":824.63178582877208},-1122.6682141712308]
["2012-02-25",109.07,0,150.92000000000002,185.41,15.52,460.91999999999996,0,1,0,3,2,1,1,179.69,1,0,5.72,1,10,1,0,0,11,11,0,0,21,1658.27,1975,3633.27,1261.1199999999953,{"$f":"$BH241+$BI240-IFERROR(VLOOKUP($A241,[2]Sheet2!$A$4:$B$82,2,FALSE),0)","v":6688.3600000000033},{"$f":"$BJ240+$BK240-IFERROR(VLOOKUP($A241,[2]Amazon!$A$2:$F$17,5,FALSE),0)","v":0},{"$f":"$BL241+$BM240-IFERROR(VLOOKUP($A241,'[2]Myaccountaccess Pivot'!$A$4:$B$31,2,FALSE),0)","v":0},{"$f":"IFERROR(VLOOKUP($A241,'[2]export-1'!$A$2:$F$441,6,FALSE),AJ240)","v":7646.3699999999972},{"$f":"IFERROR(VLOOKUP($A241,'[7]download-1'!$A$2:$F$513,6,FALSE),AK240)","v":11525.660000000003},{"$f":"IFERROR(VLOOKUP($A241,'[3]TexttoColumn Amazon Balance'!$A$14:$B$30,2,FALSE),IF(AL242>0,AL242-600,0))","v":17154.259999999998},43014.65,79464.34,400,181,-4,0,null,null,null,null,null,{"$f":"IFERROR(VLOOKUP($A241,'[2]export-1'!$A$446:$G$451,7,FALSE),0)","v":0},{"$f":"IFERROR(VLOOKUP($A241,[3]Sheet4!$A$4:$B$56,2,FALSE),0)","v":0},{"$f":"IFERROR(VLOOKUP($A241,'[3]headphones purchased'!$A$2:$G$27,6,FALSE),0)","v":0},{"$f":"ROUND(IFERROR(VLOOKUP($A241,'[4]download-1'!$A$471:$F$474,5,FALSE)/-9.5,0),0)","v":0},{"$f":"ROUND(IFERROR(VLOOKUP($A241,'[4]download-1'!$A$467:$F$469,5,FALSE)/-49,0),0)","v":0},{"$f":"IFERROR(VLOOKUP($A241,[5]Sheet8!$A$4:$B$89,2,FALSE),0)","v":0},null,null,1,{"$f":"IFERROR(VLOOKUP($A241,[3]Paypal!$A$2:$AA$1843,25,FALSE),0)","v":0},{"$f":"IFERROR(VLOOKUP($A241,'[3]Paypal Money Sent Pivot'!$A$4:$B$97,2,FALSE),0)","v":1755.12},{"$f":"$BH241+$BI240-IFERROR(VLOOKUP($A241,[2]Sheet2!$A$4:$B$82,2,FALSE),0)","v":6688.3600000000033},{"$f":"IFERROR(VLOOKUP($A241,'[3]TexttoColumn Amazon Balance'!$A$14:$B$30,2,FALSE),0)","v":17154.259999999998},{"$f":"$BJ240+$BK240-IFERROR(VLOOKUP($A241,[2]Amazon!$A$2:$F$17,5,FALSE),0)","v":0},{"$f":"IFERROR(VLOOKUP($A241,'[4]Payment Pivot'!$A$4:$B$39,2,FALSE),0)","v":0},{"$f":"$BL241+$BM240-IFERROR(VLOOKUP($A241,'[2]Myaccountaccess Pivot'!$A$4:$B$31,2,FALSE),0)","v":0},null,{"$f":"IFERROR(VLOOKUP($A241,'[6]export-2'!$A$2:$F$15,6,FALSE),BO240)","v":15151.190000000002},1077.6033072916421,{"$f":"OFFSET(A241,0,'Cool Graph'!$H$1)","v":109.07},{"$f":"OFFSET(A241,0,'Cool Graph'!$I$1)","v":1077.6033072916421},-183.51669270835328]
["2012-02-26",88.09,4.59,188.51,149.38,13.67,444.24,1,0,0,6,2,3,1,143.85,2,1,5.53,0,6,5,0,0,12,9,0,0,18,1133.21,2100,3233.21,3482.2600000000093,{"$f":"$BH242+$BI241-IFERROR(VLOOKUP($A242,[2]Sheet2!$A$4:$B$82,2,FALSE),0)","v":8563.7600000000039},{"$f":"$BJ241+$BK241-IFERROR(VLOOKUP($A242,[2]Amazon!$A$2:$F$17,5,FALSE),0)","v":17154.259999999998},{"$f":"$BL242+$BM241-IFERROR(VLOOKUP($A242,'[2]Myaccountaccess Pivot'!$A$4:$B$31,2,FALSE),0)","v":0},{"$f":"IFERROR(VLOOKUP($A242,'[2]export-1'!$A$2:$F$441,6,FALSE),AJ241)","v":7646.3699999999972},{"$f":"IFERROR(VLOOKUP($A242,'[7]download-1'!$A$2:$F$513,6,FALSE),AK241)","v":11525.660000000003},{"$f":"IFERROR(VLOOKUP($A242,'[3]TexttoColumn Amazon Balance'!$A$14:$B$30,2,FALSE),IF(AL243>0,AL243-1000,0))","v":2621.8600000000006},47511.909999999996,82946.600000000006,382,167,-4,0,null,null,null,null,null,{"$f":"IFERROR(VLOOKUP($A242,'[2]export-1'!$A$446:$G$451,7,FALSE),0)","v":0},{"$f":"IFERROR(VLOOKUP($A242,[3]Sheet4!$A$4:$B$56,2,FALSE),0)","v":0},{"$f":"IFERROR(VLOOKUP($A242,'[3]headphones purchased'!$A$2:$G$27,6,FALSE),0)","v":0},{"$f":"ROUND(IFERROR(VLOOKUP($A242,'[4]download-1'!$A$471:$F$474,5,FALSE)/-9.5,0),0)","v":0},{"$f":"ROUND(IFERROR(VLOOKUP($A242,'[4]download-1'!$A$467:$F$469,5,FALSE)/-49,0),0)","v":0},{"$f":"IFERROR(VLOOKUP($A242,[5]Sheet8!$A$4:$B$89,2,FALSE),0)","v":0},null,null,0,{"$f":"IFERROR(VLOOKUP($A242,[3]Paypal!$A$2:$AA$1843,25,FALSE),0)","v":0},{"$f":"IFERROR(VLOOKUP($A242,'[3]Paypal Money Sent Pivot'!$A$4:$B$97,2,FALSE),0)","v":1875.4},{"$f":"$BH242+$BI241-IFERROR(VLOOKUP($A242,[2]Sheet2!$A$4:$B$82,2,FALSE),0)","v":8563.7600000000039},{"$f":"IFERROR(VLOOKUP($A242,'[3]TexttoColumn Amazon Balance'!$A$14:$B$30,2,FALSE),0)","v":0},{"$f":"$BJ241+$BK241-IFERROR(VLOOKUP($A242,[2]Amazon!$A$2:$F$17,5,FALSE),0)","v":17154.259999999998},{"$f":"IFERROR(VLOOKUP($A242,'[4]Payment Pivot'!$A$4:$B$39,2,FALSE),0)","v":0},{"$f":"$BL242+$BM241-IFERROR(VLOOKUP($A242,'[2]Myaccountaccess Pivot'!$A$4:$B$31,2,FALSE),0)","v":0},null,{"$f":"IFERROR(VLOOKUP($A242,'[6]export-2'!$A$2:$F$15,6,FALSE),BO241)","v":15151.190000000002},924.87623478805881,{"$f":"OFFSET(A242,0,'Cool Graph'!$H$1)","v":88.09},{"$f":"OFFSET(A242,0,'Cool Graph'!$I$1)","v":924.87623478805881},-2557.3837652119505]
["2012-02-27",88.65,14.65,235.8,191.44000000000003,5.6,536.1400000000001,0,4,0,9,0,0,0,184.44000000000003,0,0,7,0,10,5,0,0,14,11,0,0,24,1792.39,2490,4282.3900000000003,347.16000000000349,{"$f":"$BH243+$BI242-IFERROR(VLOOKUP($A243,[2]Sheet2!$A$4:$B$82,2,FALSE),0)","v":6009.9400000000041},{"$f":"$BJ242+$BK242-IFERROR(VLOOKUP($A243,[2]Amazon!$A$2:$F$17,5,FALSE),0)","v":17154.259999999998},{"$f":"$BL243+$BM242-IFERROR(VLOOKUP($A243,'[2]Myaccountaccess Pivot'!$A$4:$B$31,2,FALSE),0)","v":0},{"$f":"IFERROR(VLOOKUP($A243,'[2]export-1'!$A$2:$F$441,6,FALSE),AJ242)","v":12514.799999999997},{"$f":"IFERROR(VLOOKUP($A243,'[7]download-1'!$A$2:$F$513,6,FALSE),AK242)","v":8438.9600000000046},{"$f":"IFERROR(VLOOKUP($A243,'[3]TexttoColumn Amazon Balance'!$A$14:$B$30,2,FALSE),IF(AL244>0,AL244-1000,0))","v":3621.8600000000006},47739.820000000007,83293.760000000009,359,151,{"$f":"BD243-V243-Z243+AQ242-AU243","v":129},100,null,null,null,null,null,{"$f":"IFERROR(VLOOKUP($A243,'[2]export-1'!$A$446:$G$451,7,FALSE),0)","v":0},{"$f":"IFERROR(VLOOKUP($A243,[3]Sheet4!$A$4:$B$56,2,FALSE),0)","v":0},{"$f":"IFERROR(VLOOKUP($A243,'[3]headphones purchased'!$A$2:$G$27,6,FALSE),0)","v":0},{"$f":"ROUND(IFERROR(VLOOKUP($A243,'[4]download-1'!$A$471:$F$474,5,FALSE)/-9.5,0),0)","v":0},{"$f":"ROUND(IFERROR(VLOOKUP($A243,'[4]download-1'!$A$467:$F$469,5,FALSE)/-49,0),0)","v":0},{"$f":"IFERROR(VLOOKUP($A243,[5]Sheet8!$A$4:$B$89,2,FALSE),0)","v":0},{"$f":"ROUND((('[4]download-1'!$E$350+800)/5.25),0)","v":133},100,1,{"$f":"IFERROR(VLOOKUP($A243,[3]Paypal!$A$2:$AA$1843,25,FALSE),0)","v":0},{"$f":"IFERROR(VLOOKUP($A243,'[3]Paypal Money Sent Pivot'!$A$4:$B$97,2,FALSE),0)","v":2379.6},{"$f":"$BH243+$BI242-IFERROR(VLOOKUP($A243,[2]Sheet2!$A$4:$B$82,2,FALSE),0)","v":6009.9400000000041},{"$f":"IFERROR(VLOOKUP($A243,'[3]TexttoColumn Amazon Balance'!$A$14:$B$30,2,FALSE),0)","v":0},{"$f":"$BJ242+$BK242-IFERROR(VLOOKUP($A243,[2]Amazon!$A$2:$F$17,5,FALSE),0)","v":17154.259999999998},{"$f":"IFERROR(VLOOKUP($A243,'[4]Payment Pivot'!$A$4:$B$39,2,FALSE),0)","v":0},{"$f":"$BL243+$BM242-IFERROR(VLOOKUP($A243,'[2]Myaccountaccess Pivot'!$A$4:$B$31,2,FALSE),0)","v":0},null,{"$f":"IFERROR(VLOOKUP($A243,'[6]export-2'!$A$2:$F$15,6,FALSE),BO242)","v":15151.190000000002},1277.2558736655012,{"$f":"OFFSET(A243,0,'Cool Graph'!$H$1)","v":88.65},{"$f":"OFFSET(A243,0,'Cool Graph'!$I$1)","v":1277.2558736655012},930.09587366549772]
["2012-02-28",70.3,14.85,196.21999999999997,216.37,15.33,513.06999999999994,0,1,0,4,0,0,2,209,0,0,7.37,0,8,3,0,0,6,5,1,0,14,1390.4,1060,2450.4,652.19000000000233,{"$f":"$BH244+$BI243-IFERROR(VLOOKUP($A244,[2]Sheet2!$A$4:$B$82,2,FALSE),0)","v":5460.5500000000038},{"$f":"$BJ243+$BK243-IFERROR(VLOOKUP($A244,[2]Amazon!$A$2:$F$17,5,FALSE),0)","v":0},{"$f":"$BL244+$BM243-IFERROR(VLOOKUP($A244,'[2]Myaccountaccess Pivot'!$A$4:$B$31,2,FALSE),0)","v":0},{"$f":"IFERROR(VLOOKUP($A244,'[2]export-1'!$A$2:$F$441,6,FALSE),AJ243)","v":25044.179999999997},{"$f":"IFERROR(VLOOKUP($A244,'[7]download-1'!$A$2:$F$513,6,FALSE),AK243)","v":8152.6700000000037},{"$f":"IFERROR(VLOOKUP($A244,'[3]TexttoColumn Amazon Balance'!$A$14:$B$30,2,FALSE),IF(AL245>0,AL245-1000,0))","v":4621.8600000000006},43279.26,83945.950000000012,465,143,128,100,null,null,null,null,null,{"$f":"IFERROR(VLOOKUP($A244,'[2]export-1'!$A$446:$G$451,7,FALSE),0)","v":120},{"$f":"IFERROR(VLOOKUP($A244,[3]Sheet4!$A$4:$B$56,2,FALSE),0)","v":0},{"$f":"IFERROR(VLOOKUP($A244,'[3]headphones purchased'!$A$2:$G$27,6,FALSE),0)","v":0},{"$f":"ROUND(IFERROR(VLOOKUP($A244,'[4]download-1'!$A$471:$F$474,5,FALSE)/-9.5,0),0)","v":0},{"$f":"ROUND(IFERROR(VLOOKUP($A244,'[4]download-1'!$A$467:$F$469,5,FALSE)/-49,0),0)","v":0},{"$f":"IFERROR(VLOOKUP($A244,[5]Sheet8!$A$4:$B$89,2,FALSE),0)","v":0},null,null,0,{"$f":"IFERROR(VLOOKUP($A244,[3]Paypal!$A$2:$AA$1843,25,FALSE),0)","v":0},{"$f":"IFERROR(VLOOKUP($A244,'[3]Paypal Money Sent Pivot'!$A$4:$B$97,2,FALSE),0)","v":1205.73},{"$f":"$BH244+$BI243-IFERROR(VLOOKUP($A244,[2]Sheet2!$A$4:$B$82,2,FALSE),0)","v":5460.5500000000038},{"$f":"IFERROR(VLOOKUP($A244,'[3]TexttoColumn Amazon Balance'!$A$14:$B$30,2,FALSE),0)","v":0},{"$f":"$BJ243+$BK243-IFERROR(VLOOKUP($A244,[2]Amazon!$A$2:$F$17,5,FALSE),0)","v":0},{"$f":"IFERROR(VLOOKUP($A244,'[4]Payment Pivot'!$A$4:$B$39,2,FALSE),0)","v":0},{"$f":"$BL244+$BM243-IFERROR(VLOOKUP($A244,'[2]Myaccountaccess Pivot'!$A$4:$B$31,2,FALSE),0)","v":0},null,{"$f":"IFERROR(VLOOKUP($A244,'[6]export-2'!$A$2:$F$15,6,FALSE),BO243)","v":15151.190000000002},524.56208134475014,{"$f":"OFFSET(A244,0,'Cool Graph'!$H$1)","v":70.3},{"$f":"OFFSET(A244,0,'Cool Graph'!$I$1)","v":524.56208134475014},-127.62791865525219]
["2012-02-29",74.3,20.190000000000001,160.12000000000003,194.2,10.82,459.63,0,0,0,5,2,1,0,183.79,1,1,10.41,1,9,3,0,0,6,6,0,0,15,1681.99,1090,2771.99,-108.11000000000058,{"$f":"$BH245+$BI244-IFERROR(VLOOKUP($A245,[2]Sheet2!$A$4:$B$82,2,FALSE),0)","v":4471.2900000000045},{"$f":"$BJ244+$BK244-IFERROR(VLOOKUP($A245,[2]Amazon!$A$2:$F$17,5,FALSE),0)","v":0},{"$f":"$BL245+$BM244-IFERROR(VLOOKUP($A245,'[2]Myaccountaccess Pivot'!$A$4:$B$31,2,FALSE),0)","v":0},{"$f":"IFERROR(VLOOKUP($A245,'[2]export-1'!$A$2:$F$441,6,FALSE),AJ244)","v":26490.71},{"$f":"IFERROR(VLOOKUP($A245,'[7]download-1'!$A$2:$F$513,6,FALSE),AK244)","v":7358.7900000000045},{"$f":"IFERROR(VLOOKUP($A245,'[3]TexttoColumn Amazon Balance'!$A$14:$B$30,2,FALSE),IF(AL246>0,AL246-1000,0))","v":5621.8600000000006},43942.650000000009,83837.840000000011,451,134,128,100,null,null,null,null,null,{"$f":"IFERROR(VLOOKUP($A245,'[2]export-1'!$A$446:$G$451,7,FALSE),0)","v":0},{"$f":"IFERROR(VLOOKUP($A245,[3]Sheet4!$A$4:$B$56,2,FALSE),0)","v":0},{"$f":"IFERROR(VLOOKUP($A245,'[3]headphones purchased'!$A$2:$G$27,6,FALSE),0)","v":0},{"$f":"ROUND(IFERROR(VLOOKUP($A245,'[4]download-1'!$A$471:$F$474,5,FALSE)/-9.5,0),0)","v":0},{"$f":"ROUND(IFERROR(VLOOKUP($A245,'[4]download-1'!$A$467:$F$469,5,FALSE)/-49,0),0)","v":0},{"$f":"IFERROR(VLOOKUP($A245,[5]Sheet8!$A$4:$B$89,2,FALSE),0)","v":0},null,null,1,{"$f":"IFERROR(VLOOKUP($A245,[3]Paypal!$A$2:$AA$1843,25,FALSE),0)","v":0},{"$f":"IFERROR(VLOOKUP($A245,'[3]Paypal Money Sent Pivot'!$A$4:$B$97,2,FALSE),0)","v":886.14},{"$f":"$BH245+$BI244-IFERROR(VLOOKUP($A245,[2]Sheet2!$A$4:$B$82,2,FALSE),0)","v":4471.2900000000045},{"$f":"IFERROR(VLOOKUP($A245,'[3]TexttoColumn Amazon Balance'!$A$14:$B$30,2,FALSE),0)","v":0},{"$f":"$BJ244+$BK244-IFERROR(VLOOKUP($A245,[2]Amazon!$A$2:$F$17,5,FALSE),0)","v":0},{"$f":"IFERROR(VLOOKUP($A245,'[4]Payment Pivot'!$A$4:$B$39,2,FALSE),0)","v":0},{"$f":"$BL245+$BM244-IFERROR(VLOOKUP($A245,'[2]Myaccountaccess Pivot'!$A$4:$B$31,2,FALSE),0)","v":0},null,{"$f":"IFERROR(VLOOKUP($A245,'[6]export-2'!$A$2:$F$15,6,FALSE),BO244)","v":15151.190000000002},714.18070566716995,{"$f":"OFFSET(A245,0,'Cool Graph'!$H$1)","v":74.3},{"$f":"OFFSET(A245,0,'Cool Graph'!$I$1)","v":714.18070566716995},822.29070566717053]
["2012-03-01",84.22,16.88,197.06,163.31000000000003,23.85,485.32000000000005,1,2,0,6,1,0,0,159.07000000000002,1,0,4.24,0,8,3,0,0,12,10,0,0,20,1386.78,2145,3531.7799999999997,1056.4099999999889,{"$f":"$BH246+$BI245-IFERROR(VLOOKUP($A246,[2]Sheet2!$A$4:$B$82,2,FALSE),0)","v":4181.9400000000041},{"$f":"$BJ245+$BK245-IFERROR(VLOOKUP($A246,[2]Amazon!$A$2:$F$17,5,FALSE),0)","v":0},{"$f":"$BL246+$BM245-IFERROR(VLOOKUP($A246,'[2]Myaccountaccess Pivot'!$A$4:$B$31,2,FALSE),0)","v":0},{"$f":"IFERROR(VLOOKUP($A246,'[2]export-1'!$A$2:$F$441,6,FALSE),AJ245)","v":28806.78},{"$f":"IFERROR(VLOOKUP($A246,'[7]download-1'!$A$2:$F$513,6,FALSE),AK245)","v":6491.9800000000041},{"$f":"IFERROR(VLOOKUP($A246,'[3]TexttoColumn Amazon Balance'!$A$14:$B$30,2,FALSE),IF(AL247>0,AL247-1000,0))","v":6621.8600000000006},46102.560000000005,84894.25,431,121,128,100,null,null,null,null,null,{"$f":"IFERROR(VLOOKUP($A246,'[2]export-1'!$A$446:$G$451,7,FALSE),0)","v":0},{"$f":"IFERROR(VLOOKUP($A246,[3]Sheet4!$A$4:$B$56,2,FALSE),0)","v":0},{"$f":"IFERROR(VLOOKUP($A246,'[3]headphones purchased'!$A$2:$G$27,6,FALSE),0)","v":0},{"$f":"ROUND(IFERROR(VLOOKUP($A246,'[4]download-1'!$A$471:$F$474,5,FALSE)/-9.5,0),0)","v":0},{"$f":"ROUND(IFERROR(VLOOKUP($A246,'[4]download-1'!$A$467:$F$469,5,FALSE)/-49,0),0)","v":0},{"$f":"IFERROR(VLOOKUP($A246,[5]Sheet8!$A$4:$B$89,2,FALSE),0)","v":0},null,null,0,{"$f":"IFERROR(VLOOKUP($A246,[3]Paypal!$A$2:$AA$1843,25,FALSE),0)","v":0},{"$f":"IFERROR(VLOOKUP($A246,'[3]Paypal Money Sent Pivot'!$A$4:$B$97,2,FALSE),0)","v":2090.25},{"$f":"$BH246+$BI245-IFERROR(VLOOKUP($A246,[2]Sheet2!$A$4:$B$82,2,FALSE),0)","v":4181.9400000000041},{"$f":"IFERROR(VLOOKUP($A246,'[3]TexttoColumn Amazon Balance'!$A$14:$B$30,2,FALSE),0)","v":0},{"$f":"$BJ245+$BK245-IFERROR(VLOOKUP($A246,[2]Amazon!$A$2:$F$17,5,FALSE),0)","v":0},{"$f":"IFERROR(VLOOKUP($A246,'[4]Payment Pivot'!$A$4:$B$39,2,FALSE),0)","v":0},{"$f":"$BL246+$BM245-IFERROR(VLOOKUP($A246,'[2]Myaccountaccess Pivot'!$A$4:$B$31,2,FALSE),0)","v":0},null,{"$f":"IFERROR(VLOOKUP($A246,'[6]export-2'!$A$2:$F$15,6,FALSE),BO245)","v":15151.190000000002},1010.2269442751227,{"$f":"OFFSET(A246,0,'Cool Graph'!$H$1)","v":84.22},{"$f":"OFFSET(A246,0,'Cool Graph'!$I$1)","v":1010.2269442751227},-46.183055724866222]
["2012-03-02",25.92,18.28,153.97999999999999,86.22,15.09,299.48999999999995,0,1,0,2,0,0,0,80.37,0,0,5.85,0,7,1,0,0,5,5,1,0,12,1164.3699999999999,960,2124.37,56.200000000011642,{"$f":"$BH247+$BI246-IFERROR(VLOOKUP($A247,[2]Sheet2!$A$4:$B$82,2,FALSE),0)","v":3977.4900000000039},{"$f":"$BJ246+$BK246-IFERROR(VLOOKUP($A247,[2]Amazon!$A$2:$F$17,5,FALSE),0)","v":0},{"$f":"$BL247+$BM246-IFERROR(VLOOKUP($A247,'[2]Myaccountaccess Pivot'!$A$4:$B$31,2,FALSE),0)","v":0},{"$f":"IFERROR(VLOOKUP($A247,'[2]export-1'!$A$2:$F$441,6,FALSE),AJ246)","v":30012.51},{"$f":"IFERROR(VLOOKUP($A247,'[7]download-1'!$A$2:$F$513,6,FALSE),AK246)","v":-143.84999999999704},{"$f":"IFERROR(VLOOKUP($A247,'[3]TexttoColumn Amazon Balance'!$A$14:$B$30,2,FALSE),IF(AL248>0,AL248-1000,0))","v":7621.8600000000006},41468.010000000009,84950.450000000012,528,115,127,100,null,null,null,null,null,{"$f":"IFERROR(VLOOKUP($A247,'[2]export-1'!$A$446:$G$451,7,FALSE),0)","v":0},{"$f":"IFERROR(VLOOKUP($A247,[3]Sheet4!$A$4:$B$56,2,FALSE),0)","v":0},{"$f":"IFERROR(VLOOKUP($A247,'[3]headphones purchased'!$A$2:$G$27,6,FALSE),0)","v":0},{"$f":"ROUND(IFERROR(VLOOKUP($A247,'[4]download-1'!$A$471:$F$474,5,FALSE)/-9.5,0),0)","v":0},{"$f":"ROUND(IFERROR(VLOOKUP($A247,'[4]download-1'!$A$467:$F$469,5,FALSE)/-49,0),0)","v":108},{"$f":"IFERROR(VLOOKUP($A247,[5]Sheet8!$A$4:$B$89,2,FALSE),0)","v":0},null,null,1,{"$f":"IFERROR(VLOOKUP($A247,[3]Paypal!$A$2:$AA$1843,25,FALSE),0)","v":0},{"$f":"IFERROR(VLOOKUP($A247,'[3]Paypal Money Sent Pivot'!$A$4:$B$97,2,FALSE),0)","v":1001.28},{"$f":"$BH247+$BI246-IFERROR(VLOOKUP($A247,[2]Sheet2!$A$4:$B$82,2,FALSE),0)","v":3977.4900000000039},{"$f":"IFERROR(VLOOKUP($A247,'[3]TexttoColumn Amazon Balance'!$A$14:$B$30,2,FALSE),0)","v":0},{"$f":"$BJ246+$BK246-IFERROR(VLOOKUP($A247,[2]Amazon!$A$2:$F$17,5,FALSE),0)","v":0},{"$f":"IFERROR(VLOOKUP($A247,'[4]Payment Pivot'!$A$4:$B$39,2,FALSE),0)","v":0},{"$f":"$BL247+$BM246-IFERROR(VLOOKUP($A247,'[2]Myaccountaccess Pivot'!$A$4:$B$31,2,FALSE),0)","v":0},null,{"$f":"IFERROR(VLOOKUP($A247,'[6]export-2'!$A$2:$F$15,6,FALSE),BO246)","v":15151.190000000002},600.08332053801291,{"$f":"OFFSET(A247,0,'Cool Graph'!$H$1)","v":25.92},{"$f":"OFFSET(A247,0,'Cool Graph'!$I$1)","v":600.08332053801291},543.88332053800127]
["2012-03-03",32.75,24.5,215.73000000000002,77.97999999999999,19.09,370.05,0,0,0,3,1,0,0,74.97999999999999,1,0,3,0,6,1,0,0,3,3,0,0,9,1006.6,555,1561.6,1060.5199999999895,{"$f":"$BH248+$BI247-IFERROR(VLOOKUP($A248,[2]Sheet2!$A$4:$B$82,2,FALSE),0)","v":4517.0100000000039},{"$f":"$BJ247+$BK247-IFERROR(VLOOKUP($A248,[2]Amazon!$A$2:$F$17,5,FALSE),0)","v":0},{"$f":"$BL248+$BM247-IFERROR(VLOOKUP($A248,'[2]Myaccountaccess Pivot'!$A$4:$B$31,2,FALSE),0)","v":0},{"$f":"IFERROR(VLOOKUP($A248,'[2]export-1'!$A$2:$F$441,6,FALSE),AJ247)","v":30012.51},{"$f":"IFERROR(VLOOKUP($A248,'[7]download-1'!$A$2:$F$513,6,FALSE),AK247)","v":-143.84999999999704},{"$f":"IFERROR(VLOOKUP($A248,'[3]TexttoColumn Amazon Balance'!$A$14:$B$30,2,FALSE),IF(AL249>0,AL249-1000,0))","v":8621.86},43007.530000000006,86010.97,519,111,127,100,null,null,null,null,null,{"$f":"IFERROR(VLOOKUP($A248,'[2]export-1'!$A$446:$G$451,7,FALSE),0)","v":0},{"$f":"IFERROR(VLOOKUP($A248,[3]Sheet4!$A$4:$B$56,2,FALSE),0)","v":0},{"$f":"IFERROR(VLOOKUP($A248,'[3]headphones purchased'!$A$2:$G$27,6,FALSE),0)","v":0},{"$f":"ROUND(IFERROR(VLOOKUP($A248,'[4]download-1'!$A$471:$F$474,5,FALSE)/-9.5,0),0)","v":0},{"$f":"ROUND(IFERROR(VLOOKUP($A248,'[4]download-1'!$A$467:$F$469,5,FALSE)/-49,0),0)","v":0},{"$f":"IFERROR(VLOOKUP($A248,[5]Sheet8!$A$4:$B$89,2,FALSE),0)","v":0},null,null,null,{"$f":"IFERROR(VLOOKUP($A248,[3]Paypal!$A$2:$AA$1843,25,FALSE),0)","v":0},{"$f":"IFERROR(VLOOKUP($A248,'[3]Paypal Money Sent Pivot'!$A$4:$B$97,2,FALSE),0)","v":539.52},{"$f":"$BH248+$BI247-IFERROR(VLOOKUP($A248,[2]Sheet2!$A$4:$B$82,2,FALSE),0)","v":4517.0100000000039},{"$f":"IFERROR(VLOOKUP($A248,'[3]TexttoColumn Amazon Balance'!$A$14:$B$30,2,FALSE),0)","v":0},{"$f":"$BJ247+$BK247-IFERROR(VLOOKUP($A248,[2]Amazon!$A$2:$F$17,5,FALSE),0)","v":0},{"$f":"IFERROR(VLOOKUP($A248,'[4]Payment Pivot'!$A$4:$B$39,2,FALSE),0)","v":0},{"$f":"$BL248+$BM247-IFERROR(VLOOKUP($A248,'[2]Myaccountaccess Pivot'!$A$4:$B$31,2,FALSE),0)","v":0},null,{"$f":"IFERROR(VLOOKUP($A248,'[6]export-2'!$A$2:$F$15,6,FALSE),BO247)","v":15151.190000000002},291.21602115081674,{"$f":"OFFSET(A248,0,'Cool Graph'!$H$1)","v":32.75},{"$f":"OFFSET(A248,0,'Cool Graph'!$I$1)","v":291.21602115081674},-769.30397884917284]
["2012-03-04",85.71,32.03,274.13,100.27000000000001,11.59,503.72999999999996,0,0,0,5,2,0,0,94.79,2,0,5.48,0,5,1,0,0,11,11,0,0,16,871.89,1935,2806.89,1813.4100000000035,{"$f":"$BH249+$BI248-IFERROR(VLOOKUP($A249,[2]Sheet2!$A$4:$B$82,2,FALSE),0)","v":6228.4200000000037},{"$f":"$BJ248+$BK248-IFERROR(VLOOKUP($A249,[2]Amazon!$A$2:$F$17,5,FALSE),0)","v":0},{"$f":"$BL249+$BM248-IFERROR(VLOOKUP($A249,'[2]Myaccountaccess Pivot'!$A$4:$B$31,2,FALSE),0)","v":0},{"$f":"IFERROR(VLOOKUP($A249,'[2]export-1'!$A$2:$F$441,6,FALSE),AJ248)","v":30012.51},{"$f":"IFERROR(VLOOKUP($A249,'[7]download-1'!$A$2:$F$513,6,FALSE),AK248)","v":-143.84999999999704},{"$f":"IFERROR(VLOOKUP($A249,'[3]TexttoColumn Amazon Balance'!$A$14:$B$30,2,FALSE),IF(AL250>0,AL250-1000,0))","v":9621.86},45718.94000000001,87824.38,503,99,127,100,null,null,null,null,null,{"$f":"IFERROR(VLOOKUP($A249,'[2]export-1'!$A$446:$G$451,7,FALSE),0)","v":0},{"$f":"IFERROR(VLOOKUP($A249,[3]Sheet4!$A$4:$B$56,2,FALSE),0)","v":0},{"$f":"IFERROR(VLOOKUP($A249,'[3]headphones purchased'!$A$2:$G$27,6,FALSE),0)","v":0},{"$f":"ROUND(IFERROR(VLOOKUP($A249,'[4]download-1'!$A$471:$F$474,5,FALSE)/-9.5,0),0)","v":0},{"$f":"ROUND(IFERROR(VLOOKUP($A249,'[4]download-1'!$A$467:$F$469,5,FALSE)/-49,0),0)","v":0},{"$f":"IFERROR(VLOOKUP($A249,[5]Sheet8!$A$4:$B$89,2,FALSE),0)","v":0},null,null,null,{"$f":"IFERROR(VLOOKUP($A249,[3]Paypal!$A$2:$AA$1843,25,FALSE),0)","v":0},{"$f":"IFERROR(VLOOKUP($A249,'[3]Paypal Money Sent Pivot'!$A$4:$B$97,2,FALSE),0)","v":1711.41},{"$f":"$BH249+$BI248-IFERROR(VLOOKUP($A249,[2]Sheet2!$A$4:$B$82,2,FALSE),0)","v":6228.4200000000037},{"$f":"IFERROR(VLOOKUP($A249,'[3]TexttoColumn Amazon Balance'!$A$14:$B$30,2,FALSE),0)","v":0},{"$f":"$BJ248+$BK248-IFERROR(VLOOKUP($A249,[2]Amazon!$A$2:$F$17,5,FALSE),0)","v":0},{"$f":"IFERROR(VLOOKUP($A249,'[4]Payment Pivot'!$A$4:$B$39,2,FALSE),0)","v":0},{"$f":"$BL249+$BM248-IFERROR(VLOOKUP($A249,'[2]Myaccountaccess Pivot'!$A$4:$B$31,2,FALSE),0)","v":0},null,{"$f":"IFERROR(VLOOKUP($A249,'[6]export-2'!$A$2:$F$15,6,FALSE),BO248)","v":15151.190000000002},684.85925596056359,{"$f":"OFFSET(A249,0,'Cool Graph'!$H$1)","v":85.71},{"$f":"OFFSET(A249,0,'Cool Graph'!$I$1)","v":684.85925596056359},-1128.5507440394399]
["2012-03-05",44.82,31.19,255.67000000000002,111.66999999999999,20.74,464.09000000000003,1,0,0,8,3,3,1,109.27999999999999,3,2,2.39,0,16,1,0,0,13,11,1,0,29,2658.23,2390,5048.2299999999996,-7123.7699999999895,{"$f":"$BH250+$BI249-IFERROR(VLOOKUP($A250,[2]Sheet2!$A$4:$B$82,2,FALSE),0)","v":4553.9800000000032},{"$f":"$BJ249+$BK249-IFERROR(VLOOKUP($A250,[2]Amazon!$A$2:$F$17,5,FALSE),0)","v":0},{"$f":"$BL250+$BM249-IFERROR(VLOOKUP($A250,'[2]Myaccountaccess Pivot'!$A$4:$B$31,2,FALSE),0)","v":0},{"$f":"IFERROR(VLOOKUP($A250,'[2]export-1'!$A$2:$F$441,6,FALSE),AJ249)","v":26894.559999999998},{"$f":"IFERROR(VLOOKUP($A250,'[7]download-1'!$A$2:$F$513,6,FALSE),AK249)","v":-1934.9799999999971},{"$f":"IFERROR(VLOOKUP($A250,'[3]TexttoColumn Amazon Balance'!$A$14:$B$30,2,FALSE),IF(AL251>0,AL251-1000,0))","v":10621.86},40135.420000000006,80700.610000000015,474,87,126,100,null,null,null,null,null,{"$f":"IFERROR(VLOOKUP($A250,'[2]export-1'!$A$446:$G$451,7,FALSE),0)","v":0},{"$f":"IFERROR(VLOOKUP($A250,[3]Sheet4!$A$4:$B$56,2,FALSE),0)","v":0},{"$f":"IFERROR(VLOOKUP($A250,'[3]headphones purchased'!$A$2:$G$27,6,FALSE),0)","v":0},{"$f":"ROUND(IFERROR(VLOOKUP($A250,'[4]download-1'!$A$471:$F$474,5,FALSE)/-9.5,0),0)","v":0},{"$f":"ROUND(IFERROR(VLOOKUP($A250,'[4]download-1'!$A$467:$F$469,5,FALSE)/-49,0),0)","v":0},{"$f":"IFERROR(VLOOKUP($A250,[5]Sheet8!$A$4:$B$89,2,FALSE),0)","v":0},null,null,null,{"$f":"IFERROR(VLOOKUP($A250,[3]Paypal!$A$2:$AA$1843,25,FALSE),0)","v":0},{"$f":"IFERROR(VLOOKUP($A250,'[3]Paypal Money Sent Pivot'!$A$4:$B$97,2,FALSE),0)","v":2303.23},{"$f":"$BH250+$BI249-IFERROR(VLOOKUP($A250,[2]Sheet2!$A$4:$B$82,2,FALSE),0)","v":4553.9800000000032},{"$f":"IFERROR(VLOOKUP($A250,'[3]TexttoColumn Amazon Balance'!$A$14:$B$30,2,FALSE),0)","v":0},{"$f":"$BJ249+$BK249-IFERROR(VLOOKUP($A250,[2]Amazon!$A$2:$F$17,5,FALSE),0)","v":0},{"$f":"IFERROR(VLOOKUP($A250,'[4]Payment Pivot'!$A$4:$B$39,2,FALSE),0)","v":0},{"$f":"$BL250+$BM249-IFERROR(VLOOKUP($A250,'[2]Myaccountaccess Pivot'!$A$4:$B$31,2,FALSE),0)","v":0},null,{"$f":"IFERROR(VLOOKUP($A250,'[6]export-2'!$A$2:$F$15,6,FALSE),BO249)","v":15151.190000000002},1673.6040099604174,{"$f":"OFFSET(A250,0,'Cool Graph'!$H$1)","v":44.82},{"$f":"OFFSET(A250,0,'Cool Graph'!$I$1)","v":1673.6040099604174},8797.3740099604074]
["2012-03-06",17.190000000000001,20.079999999999998,233.77,86.899999999999991,17.350000000000001,375.29,0,0,0,4,1,2,2,82.27,1,1,4.63,0,7,2,0,0,5,5,0,0,12,1192.71,885,2077.71,1019.9099999999889,{"$f":"$BH251+$BI250-IFERROR(VLOOKUP($A251,[2]Sheet2!$A$4:$B$82,2,FALSE),0)","v":4843.720000000003},{"$f":"$BJ250+$BK250-IFERROR(VLOOKUP($A251,[2]Amazon!$A$2:$F$17,5,FALSE),0)","v":0},{"$f":"$BL251+$BM250-IFERROR(VLOOKUP($A251,'[2]Myaccountaccess Pivot'!$A$4:$B$31,2,FALSE),0)","v":0},{"$f":"IFERROR(VLOOKUP($A251,'[2]export-1'!$A$2:$F$441,6,FALSE),AJ250)","v":19807.829999999998},{"$f":"IFERROR(VLOOKUP($A251,'[7]download-1'!$A$2:$F$513,6,FALSE),AK250)","v":-2063.5799999999972},{"$f":"IFERROR(VLOOKUP($A251,'[3]TexttoColumn Amazon Balance'!$A$14:$B$30,2,FALSE),IF(AL252>0,AL252-1000,0))","v":11621.86},34209.83,81720.52,462,80,126,100,null,null,null,null,null,{"$f":"IFERROR(VLOOKUP($A251,'[2]export-1'!$A$446:$G$451,7,FALSE),0)","v":0},{"$f":"IFERROR(VLOOKUP($A251,[3]Sheet4!$A$4:$B$56,2,FALSE),0)","v":0},{"$f":"IFERROR(VLOOKUP($A251,'[3]headphones purchased'!$A$2:$G$27,6,FALSE),0)","v":0},{"$f":"ROUND(IFERROR(VLOOKUP($A251,'[4]download-1'!$A$471:$F$474,5,FALSE)/-9.5,0),0)","v":0},{"$f":"ROUND(IFERROR(VLOOKUP($A251,'[4]download-1'!$A$467:$F$469,5,FALSE)/-49,0),0)","v":0},{"$f":"IFERROR(VLOOKUP($A251,[5]Sheet8!$A$4:$B$89,2,FALSE),0)","v":0},null,null,null,{"$f":"IFERROR(VLOOKUP($A251,[3]Paypal!$A$2:$AA$1843,25,FALSE),0)","v":0},{"$f":"IFERROR(VLOOKUP($A251,'[3]Paypal Money Sent Pivot'!$A$4:$B$97,2,FALSE),0)","v":829.26},{"$f":"$BH251+$BI250-IFERROR(VLOOKUP($A251,[2]Sheet2!$A$4:$B$82,2,FALSE),0)","v":4843.720000000003},{"$f":"IFERROR(VLOOKUP($A251,'[3]TexttoColumn Amazon Balance'!$A$14:$B$30,2,FALSE),0)","v":0},{"$f":"$BJ250+$BK250-IFERROR(VLOOKUP($A251,[2]Amazon!$A$2:$F$17,5,FALSE),0)","v":0},{"$f":"IFERROR(VLOOKUP($A251,'[4]Payment Pivot'!$A$4:$B$39,2,FALSE),0)","v":0},{"$f":"$BL251+$BM250-IFERROR(VLOOKUP($A251,'[2]Myaccountaccess Pivot'!$A$4:$B$31,2,FALSE),0)","v":0},1900,{"$f":"IFERROR(VLOOKUP($A251,'[6]export-2'!$A$2:$F$15,6,FALSE),BO250)","v":15151.190000000002},504.52494928615755,{"$f":"OFFSET(A251,0,'Cool Graph'!$H$1)","v":17.190000000000001},{"$f":"OFFSET(A251,0,'Cool Graph'!$I$1)","v":504.52494928615755},-515.38505071383133]
["2012-03-07",218.9,55.26,244.78,114.57,14.64,648.15,0,2,0,6,0,0,0,110.39999999999999,0,0,4.17,0,13,2,0,0,9,8,1,1,22,2171.8200000000002,1820,{"$f":"SUM(AC252,AD252)","v":3991.82},464.47000000000116,{"$f":"$BH252+$BI251-IFERROR(VLOOKUP($A252,[2]Sheet2!$A$4:$B$82,2,FALSE),0)","v":4917.5300000000034},{"$f":"$BJ251+$BK251-IFERROR(VLOOKUP($A252,[2]Amazon!$A$2:$F$17,5,FALSE),0)","v":0},{"$f":"$BL252+$BM251-IFERROR(VLOOKUP($A252,'[2]Myaccountaccess Pivot'!$A$4:$B$31,2,FALSE),0)","v":0},{"$f":"IFERROR(VLOOKUP($A252,'[2]export-1'!$A$2:$F$441,6,FALSE),AJ251)","v":21519.239999999998},{"$f":"IFERROR(VLOOKUP($A252,'[7]download-1'!$A$2:$F$513,6,FALSE),AK251)","v":-3199.0799999999972},{"$f":"IFERROR(VLOOKUP($A252,'[3]TexttoColumn Amazon Balance'!$A$14:$B$30,2,FALSE),IF(AL253>0,AL253-1000,0))","v":12621.86},35859.550000000003,82184.990000000005,440,70,125,99,null,null,null,null,null,{"$f":"IFERROR(VLOOKUP($A252,'[2]export-1'!$A$446:$G$451,7,FALSE),0)","v":0},{"$f":"IFERROR(VLOOKUP($A252,[3]Sheet4!$A$4:$B$56,2,FALSE),0)","v":0},{"$f":"IFERROR(VLOOKUP($A252,'[3]headphones purchased'!$A$2:$G$27,6,FALSE),0)","v":0},{"$f":"ROUND(IFERROR(VLOOKUP($A252,'[4]download-1'!$A$471:$F$474,5,FALSE)/-9.5,0),0)","v":0},{"$f":"ROUND(IFERROR(VLOOKUP($A252,'[4]download-1'!$A$467:$F$469,5,FALSE)/-49,0),0)","v":0},{"$f":"IFERROR(VLOOKUP($A252,[5]Sheet8!$A$4:$B$89,2,FALSE),0)","v":0},null,null,null,{"$f":"IFERROR(VLOOKUP($A252,[3]Paypal!$A$2:$AA$1843,25,FALSE),0)","v":0},{"$f":"IFERROR(VLOOKUP($A252,'[3]Paypal Money Sent Pivot'!$A$4:$B$97,2,FALSE),0)","v":1785.22},{"$f":"$BH252+$BI251-IFERROR(VLOOKUP($A252,[2]Sheet2!$A$4:$B$82,2,FALSE),0)","v":4917.5300000000034},{"$f":"IFERROR(VLOOKUP($A252,'[3]TexttoColumn Amazon Balance'!$A$14:$B$30,2,FALSE),0)","v":0},{"$f":"$BJ251+$BK251-IFERROR(VLOOKUP($A252,[2]Amazon!$A$2:$F$17,5,FALSE),0)","v":0},{"$f":"IFERROR(VLOOKUP($A252,'[4]Payment Pivot'!$A$4:$B$39,2,FALSE),0)","v":0},{"$f":"$BL252+$BM251-IFERROR(VLOOKUP($A252,'[2]Myaccountaccess Pivot'!$A$4:$B$31,2,FALSE),0)","v":0},1900,{"$f":"IFERROR(VLOOKUP($A252,'[6]export-2'!$A$2:$F$15,6,FALSE),BO251)","v":15151.190000000002},1042.2027974835128,{"$f":"OFFSET(A252,0,'Cool Graph'!$H$1)","v":218.9},{"$f":"OFFSET(A252,0,'Cool Graph'!$I$1)","v":1042.2027974835128},577.7327974835116]
["2012-03-08",176.62,46.72,198.28,91.35,6.28,519.25,2,2,0,7,2,2,0,84.89,2,1,6.46,0,6,1,0,0,10,9,0,1,16,1042.3599999999999,1806.24,2848.6,1283.9699999999866,{"$f":"$BH253+$BI252-IFERROR(VLOOKUP($A253,[2]Sheet2!$A$4:$B$82,2,FALSE),0)","v":4523.8700000000026},{"$f":"$BJ252+$BK252-IFERROR(VLOOKUP($A253,[2]Amazon!$A$2:$F$17,5,FALSE),0)","v":0},{"$f":"$BL253+$BM252-IFERROR(VLOOKUP($A253,'[2]Myaccountaccess Pivot'!$A$4:$B$31,2,FALSE),0)","v":3199.08},{"$f":"IFERROR(VLOOKUP($A253,'[2]export-1'!$A$2:$F$441,6,FALSE),AJ252)","v":23812.839999999997},{"$f":"IFERROR(VLOOKUP($A253,'[7]download-1'!$A$2:$F$513,6,FALSE),AK252)","v":-729.96999999999741},{"$f":"IFERROR(VLOOKUP($A253,'[3]TexttoColumn Amazon Balance'!$A$14:$B$30,2,FALSE),IF(AL254>0,AL254-1000,0))","v":13621.86},38029.519999999997,83468.959999999992,424,60,125,98,null,null,null,null,null,{"$f":"IFERROR(VLOOKUP($A253,'[2]export-1'!$A$446:$G$451,7,FALSE),0)","v":0},{"$f":"IFERROR(VLOOKUP($A253,[3]Sheet4!$A$4:$B$56,2,FALSE),0)","v":0},{"$f":"IFERROR(VLOOKUP($A253,'[3]headphones purchased'!$A$2:$G$27,6,FALSE),0)","v":0},{"$f":"ROUND(IFERROR(VLOOKUP($A253,'[4]download-1'!$A$471:$F$474,5,FALSE)/-9.5,0),0)","v":0},{"$f":"ROUND(IFERROR(VLOOKUP($A253,'[4]download-1'!$A$467:$F$469,5,FALSE)/-49,0),0)","v":0},{"$f":"IFERROR(VLOOKUP($A253,[5]Sheet8!$A$4:$B$89,2,FALSE),0)","v":0},null,null,null,{"$f":"IFERROR(VLOOKUP($A253,[3]Paypal!$A$2:$AA$1843,25,FALSE),0)","v":0},{"$f":"IFERROR(VLOOKUP($A253,'[3]Paypal Money Sent Pivot'!$A$4:$B$97,2,FALSE),0)","v":1909.57},{"$f":"$BH253+$BI252-IFERROR(VLOOKUP($A253,[2]Sheet2!$A$4:$B$82,2,FALSE),0)","v":4523.8700000000026},{"$f":"IFERROR(VLOOKUP($A253,'[3]TexttoColumn Amazon Balance'!$A$14:$B$30,2,FALSE),0)","v":0},{"$f":"$BJ252+$BK252-IFERROR(VLOOKUP($A253,[2]Amazon!$A$2:$F$17,5,FALSE),0)","v":0},{"$f":"IFERROR(VLOOKUP($A253,'[4]Payment Pivot'!$A$4:$B$39,2,FALSE),0)","v":3199.08},{"$f":"$BL253+$BM252-IFERROR(VLOOKUP($A253,'[2]Myaccountaccess Pivot'!$A$4:$B$31,2,FALSE),0)","v":3199.08},1900,{"$f":"IFERROR(VLOOKUP($A253,'[6]export-2'!$A$2:$F$15,6,FALSE),BO252)","v":15151.190000000002},687.00152910490328,{"$f":"OFFSET(A253,0,'Cool Graph'!$H$1)","v":176.62},{"$f":"OFFSET(A253,0,'Cool Graph'!$I$1)","v":687.00152910490328},-596.96847089508333]
["2012-03-09",52.34,22.76,154.5,82.18,16.28,328.06000000000006,2,3,1,1,2,2,0,78.650000000000006,2,1,3.53,0,4,0,0,0,11,12,0,1,15,662.83,2095,2757.83,1732.390000000014,{"$f":"$BH254+$BI253-IFERROR(VLOOKUP($A254,[2]Sheet2!$A$4:$B$82,2,FALSE),0)","v":5731.7500000000027},{"$f":"$BJ253+$BK253-IFERROR(VLOOKUP($A254,[2]Amazon!$A$2:$F$17,5,FALSE),0)","v":0},{"$f":"$BL254+$BM253-IFERROR(VLOOKUP($A254,'[2]Myaccountaccess Pivot'!$A$4:$B$31,2,FALSE),0)","v":0},{"$f":"IFERROR(VLOOKUP($A254,'[2]export-1'!$A$2:$F$441,6,FALSE),AJ253)","v":21443.019999999997},{"$f":"IFERROR(VLOOKUP($A254,'[7]download-1'!$A$2:$F$513,6,FALSE),AK253)","v":-9850.2199999999975},{"$f":"IFERROR(VLOOKUP($A254,'[3]TexttoColumn Amazon Balance'!$A$14:$B$30,2,FALSE),IF(AL255>0,AL255-1000,0))","v":14621.86},31946.410000000003,85201.35,547,249,125,97,null,null,null,null,null,{"$f":"IFERROR(VLOOKUP($A254,'[2]export-1'!$A$446:$G$451,7,FALSE),0)","v":0},{"$f":"IFERROR(VLOOKUP($A254,[3]Sheet4!$A$4:$B$56,2,FALSE),0)","v":0},{"$f":"IFERROR(VLOOKUP($A254,'[3]headphones purchased'!$A$2:$G$27,6,FALSE),0)","v":0},{"$f":"ROUND(IFERROR(VLOOKUP($A254,'[4]download-1'!$A$471:$F$474,5,FALSE)/-9.5,0),0)","v":201},{"$f":"ROUND(IFERROR(VLOOKUP($A254,'[4]download-1'!$A$467:$F$469,5,FALSE)/-49,0),0)","v":138},{"$f":"IFERROR(VLOOKUP($A254,[5]Sheet8!$A$4:$B$89,2,FALSE),0)","v":0},null,null,null,{"$f":"IFERROR(VLOOKUP($A254,[3]Paypal!$A$2:$AA$1843,25,FALSE),0)","v":0},{"$f":"IFERROR(VLOOKUP($A254,'[3]Paypal Money Sent Pivot'!$A$4:$B$97,2,FALSE),0)","v":2037.14},{"$f":"$BH254+$BI253-IFERROR(VLOOKUP($A254,[2]Sheet2!$A$4:$B$82,2,FALSE),0)","v":5731.7500000000027},{"$f":"IFERROR(VLOOKUP($A254,'[3]TexttoColumn Amazon Balance'!$A$14:$B$30,2,FALSE),0)","v":0},{"$f":"$BJ253+$BK253-IFERROR(VLOOKUP($A254,[2]Amazon!$A$2:$F$17,5,FALSE),0)","v":0},{"$f":"IFERROR(VLOOKUP($A254,'[4]Payment Pivot'!$A$4:$B$39,2,FALSE),0)","v":0},{"$f":"$BL254+$BM253-IFERROR(VLOOKUP($A254,'[2]Myaccountaccess Pivot'!$A$4:$B$31,2,FALSE),0)","v":0},1900,{"$f":"IFERROR(VLOOKUP($A254,'[6]export-2'!$A$2:$F$15,6,FALSE),BO253)","v":15151.190000000002},839.75459471718557,{"$f":"OFFSET(A254,0,'Cool Graph'!$H$1)","v":52.34},{"$f":"OFFSET(A254,0,'Cool Graph'!$I$1)","v":839.75459471718557},-892.6354052828284]
["2012-03-10",20.78,40.590000000000003,192.75,86.03,11.42,351.57,0,0,0,2,2,0,1,79.040000000000006,2,0,6.99,0,7,2,0,0,7,6,1,0,14,1229.1300000000001,1235,2464.13,1436.570000000007,{"$f":"$BH255+$BI254-IFERROR(VLOOKUP($A255,[2]Sheet2!$A$4:$B$82,2,FALSE),0)","v":6935.5700000000024},{"$f":"$BJ254+$BK254-IFERROR(VLOOKUP($A255,[2]Amazon!$A$2:$F$17,5,FALSE),0)","v":0},{"$f":"$BL255+$BM254-IFERROR(VLOOKUP($A255,'[2]Myaccountaccess Pivot'!$A$4:$B$31,2,FALSE),0)","v":0},{"$f":"IFERROR(VLOOKUP($A255,'[2]export-1'!$A$2:$F$441,6,FALSE),AJ254)","v":21443.019999999997},{"$f":"IFERROR(VLOOKUP($A255,'[7]download-1'!$A$2:$F$513,6,FALSE),AK254)","v":-9850.2199999999975},{"$f":"IFERROR(VLOOKUP($A255,'[3]TexttoColumn Amazon Balance'!$A$14:$B$30,2,FALSE),IF(AL256>0,AL256-1000,0))","v":15621.86},34150.230000000003,86637.920000000013,533,241,124,97,null,null,null,null,null,{"$f":"IFERROR(VLOOKUP($A255,'[2]export-1'!$A$446:$G$451,7,FALSE),0)","v":0},{"$f":"IFERROR(VLOOKUP($A255,[3]Sheet4!$A$4:$B$56,2,FALSE),0)","v":0},{"$f":"IFERROR(VLOOKUP($A255,'[3]headphones purchased'!$A$2:$G$27,6,FALSE),0)","v":0},{"$f":"ROUND(IFERROR(VLOOKUP($A255,'[4]download-1'!$A$471:$F$474,5,FALSE)/-9.5,0),0)","v":0},{"$f":"ROUND(IFERROR(VLOOKUP($A255,'[4]download-1'!$A$467:$F$469,5,FALSE)/-49,0),0)","v":0},{"$f":"IFERROR(VLOOKUP($A255,[5]Sheet8!$A$4:$B$89,2,FALSE),0)","v":0},null,null,null,{"$f":"IFERROR(VLOOKUP($A255,[3]Paypal!$A$2:$AA$1843,25,FALSE),0)","v":0},{"$f":"IFERROR(VLOOKUP($A255,'[3]Paypal Money Sent Pivot'!$A$4:$B$97,2,FALSE),0)","v":1203.82},{"$f":"$BH255+$BI254-IFERROR(VLOOKUP($A255,[2]Sheet2!$A$4:$B$82,2,FALSE),0)","v":6935.5700000000024},{"$f":"IFERROR(VLOOKUP($A255,'[3]TexttoColumn Amazon Balance'!$A$14:$B$30,2,FALSE),0)","v":15621.86},{"$f":"$BJ254+$BK254-IFERROR(VLOOKUP($A255,[2]Amazon!$A$2:$F$17,5,FALSE),0)","v":0},{"$f":"IFERROR(VLOOKUP($A255,'[4]Payment Pivot'!$A$4:$B$39,2,FALSE),0)","v":0},{"$f":"$BL255+$BM254-IFERROR(VLOOKUP($A255,'[2]Myaccountaccess Pivot'!$A$4:$B$31,2,FALSE),0)","v":0},1900,{"$f":"IFERROR(VLOOKUP($A255,'[6]export-2'!$A$2:$F$15,6,FALSE),BO254)","v":15151.190000000002},691.87610700458663,{"$f":"OFFSET(A255,0,'Cool Graph'!$H$1)","v":20.78},{"$f":"OFFSET(A255,0,'Cool Graph'!$I$1)","v":691.87610700458663},-744.69389299542036]
["2012-03-11",21.61,41.88,206.93,95.77000000000001,4.4800000000000004,370.67000000000007,0,4,0,1,0,0,0,87.110000000000014,0,0,8.66,0,3,1,0,0,8,3,0,3,11,532.55999999999995,1480,2012.56,1591.3799999999901,{"$f":"$BH256+$BI255-IFERROR(VLOOKUP($A256,[2]Sheet2!$A$4:$B$82,2,FALSE),0)","v":8378.1100000000024},{"$f":"$BJ255+$BK255-IFERROR(VLOOKUP($A256,[2]Amazon!$A$2:$F$17,5,FALSE),0)","v":15621.86},{"$f":"$BL256+$BM255-IFERROR(VLOOKUP($A256,'[2]Myaccountaccess Pivot'!$A$4:$B$31,2,FALSE),0)","v":0},{"$f":"IFERROR(VLOOKUP($A256,'[2]export-1'!$A$2:$F$441,6,FALSE),AJ255)","v":21443.019999999997},{"$f":"IFERROR(VLOOKUP($A256,'[7]download-1'!$A$2:$F$513,6,FALSE),AK255)","v":-9850.2199999999975},{"$f":"IFERROR(VLOOKUP($A256,'[3]TexttoColumn Amazon Balance'!$A$14:$B$30,2,FALSE),IF(AL257>0,AL257-743,0))","v":746.84000000000015},36339.61,88229.3,522,237,124,94,null,null,null,null,null,{"$f":"IFERROR(VLOOKUP($A256,'[2]export-1'!$A$446:$G$451,7,FALSE),0)","v":0},{"$f":"IFERROR(VLOOKUP($A256,[3]Sheet4!$A$4:$B$56,2,FALSE),0)","v":0},{"$f":"IFERROR(VLOOKUP($A256,'[3]headphones purchased'!$A$2:$G$27,6,FALSE),0)","v":0},{"$f":"ROUND(IFERROR(VLOOKUP($A256,'[4]download-1'!$A$471:$F$474,5,FALSE)/-9.5,0),0)","v":0},{"$f":"ROUND(IFERROR(VLOOKUP($A256,'[4]download-1'!$A$467:$F$469,5,FALSE)/-49,0),0)","v":0},{"$f":"IFERROR(VLOOKUP($A256,[5]Sheet8!$A$4:$B$89,2,FALSE),0)","v":0},null,null,null,{"$f":"IFERROR(VLOOKUP($A256,[3]Paypal!$A$2:$AA$1843,25,FALSE),0)","v":0},{"$f":"IFERROR(VLOOKUP($A256,'[3]Paypal Money Sent Pivot'!$A$4:$B$97,2,FALSE),0)","v":1442.54},{"$f":"$BH256+$BI255-IFERROR(VLOOKUP($A256,[2]Sheet2!$A$4:$B$82,2,FALSE),0)","v":8378.1100000000024},{"$f":"IFERROR(VLOOKUP($A256,'[3]TexttoColumn Amazon Balance'!$A$14:$B$30,2,FALSE),0)","v":0},{"$f":"$BJ255+$BK255-IFERROR(VLOOKUP($A256,[2]Amazon!$A$2:$F$17,5,FALSE),0)","v":15621.86},{"$f":"IFERROR(VLOOKUP($A256,'[4]Payment Pivot'!$A$4:$B$39,2,FALSE),0)","v":0},{"$f":"$BL256+$BM255-IFERROR(VLOOKUP($A256,'[2]Myaccountaccess Pivot'!$A$4:$B$31,2,FALSE),0)","v":0},1900,{"$f":"IFERROR(VLOOKUP($A256,'[6]export-2'!$A$2:$F$15,6,FALSE),BO255)","v":15151.190000000002},481.55691055794557,{"$f":"OFFSET(A256,0,'Cool Graph'!$H$1)","v":21.61},{"$f":"OFFSET(A256,0,'Cool Graph'!$I$1)","v":481.55691055794557},-1109.8230894420444]
["2012-03-12",19.37,56.06,206.39,100.65,9.6999999999999993,392.17,0,2,0,6,0,0,0,93.5,0,0,7.15,0,3,2,0,0,12,11,1,0,15,562.98,2175,2737.98,191.27999999999884,{"$f":"$BH257+$BI256-IFERROR(VLOOKUP($A257,[2]Sheet2!$A$4:$B$82,2,FALSE),0)","v":4366.6400000000031},{"$f":"$BJ256+$BK256-IFERROR(VLOOKUP($A257,[2]Amazon!$A$2:$F$17,5,FALSE),0)","v":15621.86},{"$f":"$BL257+$BM256-IFERROR(VLOOKUP($A257,'[2]Myaccountaccess Pivot'!$A$4:$B$31,2,FALSE),0)","v":0},{"$f":"IFERROR(VLOOKUP($A257,'[2]export-1'!$A$2:$F$441,6,FALSE),AJ256)","v":27174.949999999997},{"$f":"IFERROR(VLOOKUP($A257,'[7]download-1'!$A$2:$F$513,6,FALSE),AK256)","v":-11258.65},{"$f":"IFERROR(VLOOKUP($A257,'[3]TexttoColumn Amazon Balance'!$A$14:$B$30,2,FALSE),IF(AL258>0,AL258-743,0))","v":1489.8400000000001},37394.639999999999,88420.58,507,224,123,94,null,null,null,null,null,{"$f":"IFERROR(VLOOKUP($A257,'[2]export-1'!$A$446:$G$451,7,FALSE),0)","v":0},{"$f":"IFERROR(VLOOKUP($A257,[3]Sheet4!$A$4:$B$56,2,FALSE),0)","v":0},{"$f":"IFERROR(VLOOKUP($A257,'[3]headphones purchased'!$A$2:$G$27,6,FALSE),0)","v":0},{"$f":"ROUND(IFERROR(VLOOKUP($A257,'[4]download-1'!$A$471:$F$474,5,FALSE)/-9.5,0),0)","v":0},{"$f":"ROUND(IFERROR(VLOOKUP($A257,'[4]download-1'!$A$467:$F$469,5,FALSE)/-49,0),0)","v":0},{"$f":"IFERROR(VLOOKUP($A257,[5]Sheet8!$A$4:$B$89,2,FALSE),0)","v":0},null,null,null,{"$f":"IFERROR(VLOOKUP($A257,[3]Paypal!$A$2:$AA$1843,25,FALSE),0)","v":0},{"$f":"IFERROR(VLOOKUP($A257,'[3]Paypal Money Sent Pivot'!$A$4:$B$97,2,FALSE),0)","v":1720.46},{"$f":"$BH257+$BI256-IFERROR(VLOOKUP($A257,[2]Sheet2!$A$4:$B$82,2,FALSE),0)","v":4366.6400000000031},{"$f":"IFERROR(VLOOKUP($A257,'[3]TexttoColumn Amazon Balance'!$A$14:$B$30,2,FALSE),0)","v":0},{"$f":"$BJ256+$BK256-IFERROR(VLOOKUP($A257,[2]Amazon!$A$2:$F$17,5,FALSE),0)","v":15621.86},{"$f":"IFERROR(VLOOKUP($A257,'[4]Payment Pivot'!$A$4:$B$39,2,FALSE),0)","v":0},{"$f":"$BL257+$BM256-IFERROR(VLOOKUP($A257,'[2]Myaccountaccess Pivot'!$A$4:$B$31,2,FALSE),0)","v":0},1900,{"$f":"IFERROR(VLOOKUP($A257,'[6]export-2'!$A$2:$F$15,6,FALSE),BO256)","v":15151.190000000002},767.23902957896598,{"$f":"OFFSET(A257,0,'Cool Graph'!$H$1)","v":19.37},{"$f":"OFFSET(A257,0,'Cool Graph'!$I$1)","v":767.23902957896598},575.95902957896715]
["2012-03-13",26.23,27.4,191.65,108.12,8.09,361.48999999999995,0,2,0,6,2,0,0,99.95,1,0,8.17,1,4,1,0,0,16,13,0,4,20,700.1,2925,3625.1,701.1200000000099,{"$f":"$BH258+$BI257-IFERROR(VLOOKUP($A258,[2]Sheet2!$A$4:$B$82,2,FALSE),0)","v":5484.7700000000032},{"$f":"$BJ257+$BK257-IFERROR(VLOOKUP($A258,[2]Amazon!$A$2:$F$17,5,FALSE),0)","v":0},{"$f":"$BL258+$BM257-IFERROR(VLOOKUP($A258,'[2]Myaccountaccess Pivot'!$A$4:$B$31,2,FALSE),0)","v":21108.87},{"$f":"IFERROR(VLOOKUP($A258,'[2]export-1'!$A$2:$F$441,6,FALSE),AJ257)","v":43852.1},{"$f":"IFERROR(VLOOKUP($A258,'[7]download-1'!$A$2:$F$513,6,FALSE),AK257)","v":8775.92},{"$f":"IFERROR(VLOOKUP($A258,'[3]TexttoColumn Amazon Balance'!$A$14:$B$30,2,FALSE),IF(AL259>0,AL259-743,0))","v":2232.84},39236.760000000009,89121.700000000012,487,210,123,90,null,null,null,null,null,{"$f":"IFERROR(VLOOKUP($A258,'[2]export-1'!$A$446:$G$451,7,FALSE),0)","v":0},{"$f":"IFERROR(VLOOKUP($A258,[3]Sheet4!$A$4:$B$56,2,FALSE),0)","v":0},{"$f":"IFERROR(VLOOKUP($A258,'[3]headphones purchased'!$A$2:$G$27,6,FALSE),0)","v":0},{"$f":"ROUND(IFERROR(VLOOKUP($A258,'[4]download-1'!$A$471:$F$474,5,FALSE)/-9.5,0),0)","v":0},{"$f":"ROUND(IFERROR(VLOOKUP($A258,'[4]download-1'!$A$467:$F$469,5,FALSE)/-49,0),0)","v":0},{"$f":"IFERROR(VLOOKUP($A258,[5]Sheet8!$A$4:$B$89,2,FALSE),0)","v":0},null,null,null,{"$f":"IFERROR(VLOOKUP($A258,[3]Paypal!$A$2:$AA$1843,25,FALSE),0)","v":0},{"$f":"IFERROR(VLOOKUP($A258,'[3]Paypal Money Sent Pivot'!$A$4:$B$97,2,FALSE),0)","v":2321.9499999999998},{"$f":"$BH258+$BI257-IFERROR(VLOOKUP($A258,[2]Sheet2!$A$4:$B$82,2,FALSE),0)","v":5484.7700000000032},{"$f":"IFERROR(VLOOKUP($A258,'[3]TexttoColumn Amazon Balance'!$A$14:$B$30,2,FALSE),0)","v":0},{"$f":"$BJ257+$BK257-IFERROR(VLOOKUP($A258,[2]Amazon!$A$2:$F$17,5,FALSE),0)","v":0},{"$f":"IFERROR(VLOOKUP($A258,'[4]Payment Pivot'!$A$4:$B$39,2,FALSE),0)","v":21108.87},{"$f":"$BL258+$BM257-IFERROR(VLOOKUP($A258,'[2]Myaccountaccess Pivot'!$A$4:$B$31,2,FALSE),0)","v":21108.87},1900,{"$f":"IFERROR(VLOOKUP($A258,'[6]export-2'!$A$2:$F$15,6,FALSE),BO257)","v":15151.190000000002},{"$f":"($AG$286*AE258)-G258","v":1173.5736867788332},{"$f":"OFFSET(A258,0,'Cool Graph'!$H$1)","v":26.23},{"$f":"OFFSET(A258,0,'Cool Graph'!$I$1)","v":1173.5736867788332},472.45368677882334]
["2012-03-14",10.36,34.159999999999997,161.16999999999999,100.91000000000001,9.48,316.08000000000004,0,0,1,2,0,0,3,94.48,0,0,6.43,0,8,1,0,0,2,2,0,1,{"$f":"SUM(X259,T259)","v":10},1364.43,390,{"$f":"SUM(AC259,AD259)","v":1754.43},-144.60000000000582,{"$f":"$BH259+$BI258-IFERROR(VLOOKUP($A259,[2]Sheet2!$A$4:$B$82,2,FALSE),0)","v":4585.4000000000033},{"$f":"$BJ258+$BK258-IFERROR(VLOOKUP($A259,[2]Amazon!$A$2:$F$17,5,FALSE),0)","v":0},{"$f":"$BL259+$BM258-IFERROR(VLOOKUP($A259,'[2]Myaccountaccess Pivot'!$A$4:$B$31,2,FALSE),0)","v":0},{"$f":"IFERROR(VLOOKUP($A259,'[2]export-1'!$A$2:$F$441,6,FALSE),AJ258)","v":23588.269999999997},{"$f":"IFERROR(VLOOKUP($A259,'[7]download-1'!$A$2:$F$513,6,FALSE),AK258)","v":8468.15},{"$f":"IFERROR(VLOOKUP($A259,'[3]TexttoColumn Amazon Balance'!$A$14:$B$30,2,FALSE),IF(AL260>0,AL260-743,0))","v":2975.84},{"$f":"AL259+AK259+AJ259-AI259+AH259+AG259+BG259","v":39617.659999999996},88977.1,477,207,123,89,null,null,null,null,null,{"$f":"IFERROR(VLOOKUP($A259,'[2]export-1'!$A$446:$G$451,7,FALSE),0)","v":0},{"$f":"IFERROR(VLOOKUP($A259,[3]Sheet4!$A$4:$B$56,2,FALSE),0)","v":0},{"$f":"IFERROR(VLOOKUP($A259,'[3]headphones purchased'!$A$2:$G$27,6,FALSE),0)","v":0},{"$f":"ROUND(IFERROR(VLOOKUP($A259,'[4]download-1'!$A$471:$F$474,5,FALSE)/-9.5,0),0)","v":0},{"$f":"ROUND(IFERROR(VLOOKUP($A259,'[4]download-1'!$A$467:$F$469,5,FALSE)/-49,0),0)","v":0},{"$f":"IFERROR(VLOOKUP($A259,[5]Sheet8!$A$4:$B$89,2,FALSE),0)","v":0},null,null,null,{"$f":"IFERROR(VLOOKUP($A259,[3]Paypal!$A$2:$AA$1843,25,FALSE),0)","v":0},{"$f":"IFERROR(VLOOKUP($A259,'[3]Paypal Money Sent Pivot'!$A$4:$B$97,2,FALSE),0)","v":543.16999999999996},{"$f":"$BH259+$BI258-IFERROR(VLOOKUP($A259,[2]Sheet2!$A$4:$B$82,2,FALSE),0)","v":4585.4000000000033},{"$f":"IFERROR(VLOOKUP($A259,'[3]TexttoColumn Amazon Balance'!$A$14:$B$30,2,FALSE),0)","v":0},{"$f":"$BJ258+$BK258-IFERROR(VLOOKUP($A259,[2]Amazon!$A$2:$F$17,5,FALSE),0)","v":0},{"$f":"IFERROR(VLOOKUP($A259,'[4]Payment Pivot'!$A$4:$B$39,2,FALSE),0)","v":0},{"$f":"$BL259+$BM258-IFERROR(VLOOKUP($A259,'[2]Myaccountaccess Pivot'!$A$4:$B$31,2,FALSE),0)","v":0},1900,{"$f":"IFERROR(VLOOKUP($A259,'[6]export-2'!$A$2:$F$15,6,FALSE),BO258)","v":15151.190000000002},426.84068742804016,{"$f":"OFFSET(A259,0,'Cool Graph'!$H$1)","v":10.36},{"$f":"OFFSET(A259,0,'Cool Graph'!$I$1)","v":426.84068742804016},571.44068742804598]
["2012-03-15",45.53,23.38,156.11000000000001,107.63,9.6300000000000008,342.28,1,1,0,0,0,0,0,99.3,0,0,8.33,0,4,2,0,0,5,5,0,0,9,731.97,895,1626.97,{"$f":"AN260-AN259","v":-335.57000000000698},{"$f":"$BH260+$BI259-IFERROR(VLOOKUP($A260,[2]Sheet2!$A$4:$B$82,2,FALSE),0)","v":2864.9400000000032},{"$f":"$BJ259+$BK259-IFERROR(VLOOKUP($A260,[2]Amazon!$A$2:$F$17,5,FALSE),0)","v":0},{"$f":"$BL260+$BM259-IFERROR(VLOOKUP($A260,'[2]Myaccountaccess Pivot'!$A$4:$B$31,2,FALSE),0)","v":0},{"$f":"IFERROR(VLOOKUP($A260,'[2]export-1'!$A$2:$F$441,6,FALSE),AJ259)","v":25283.259999999995},{"$f":"IFERROR(VLOOKUP($A260,'[7]download-1'!$A$2:$F$513,6,FALSE),AK259)","v":7922.55},{"$f":"IFERROR(VLOOKUP($A260,'[3]TexttoColumn Amazon Balance'!$A$14:$B$30,2,FALSE),IF(AL261>0,AL261-743,0))","v":3718.84},39789.589999999997,88641.53,{"$f":"AX260+AY260+AO259-AB260+BB260-BC260-AS260+BF260","v":468},200,{"$f":"BD260-V260-Z260+AQ259-AU260","v":123},{"$f":"BE260-W260-AA260+AR259","v":89},null,null,null,null,null,{"$f":"IFERROR(VLOOKUP($A260,'[2]export-1'!$A$446:$G$451,7,FALSE),0)","v":0},{"$f":"IFERROR(VLOOKUP($A260,[3]Sheet4!$A$4:$B$56,2,FALSE),0)","v":0},{"$f":"IFERROR(VLOOKUP($A260,'[3]headphones purchased'!$A$2:$G$27,6,FALSE),0)","v":0},{"$f":"ROUND(IFERROR(VLOOKUP($A260,'[4]download-1'!$A$471:$F$474,5,FALSE)/-9.5,0),0)","v":0},{"$f":"ROUND(IFERROR(VLOOKUP($A260,'[4]download-1'!$A$467:$F$469,5,FALSE)/-49,0),0)","v":0},{"$f":"IFERROR(VLOOKUP($A260,[5]Sheet8!$A$4:$B$89,2,FALSE),0)","v":0},null,null,null,{"$f":"IFERROR(VLOOKUP($A260,[3]Paypal!$A$2:$AA$1843,25,FALSE),0)","v":0},{"$f":"IFERROR(VLOOKUP($A260,'[3]Paypal Money Sent Pivot'!$A$4:$B$97,2,FALSE),0)","v":0},{"$f":"$BH260+$BI259-IFERROR(VLOOKUP($A260,[2]Sheet2!$A$4:$B$82,2,FALSE),0)","v":2864.9400000000032},{"$f":"IFERROR(VLOOKUP($A260,'[3]TexttoColumn Amazon Balance'!$A$14:$B$30,2,FALSE),0)","v":0},{"$f":"$BJ259+$BK259-IFERROR(VLOOKUP($A260,[2]Amazon!$A$2:$F$17,5,FALSE),0)","v":0},{"$f":"IFERROR(VLOOKUP($A260,'[4]Payment Pivot'!$A$4:$B$39,2,FALSE),0)","v":0},{"$f":"$BL260+$BM259-IFERROR(VLOOKUP($A260,'[2]Myaccountaccess Pivot'!$A$4:$B$31,2,FALSE),0)","v":0},1900,{"$f":"IFERROR(VLOOKUP($A260,'[6]export-2'!$A$2:$F$15,6,FALSE),BO259)","v":15151.190000000002},346.66721979491842,{"$f":"OFFSET(A260,0,'Cool Graph'!$H$1)","v":45.53},{"$f":"OFFSET(A260,0,'Cool Graph'!$I$1)","v":346.66721979491842},682.23721979492541]
["2012-03-16",122.35,38.380000000000003,183.53,68.100000000000009,9.06,421.42,0,1,0,5,0,2,1,62.57,0,2,5.53,0,6,0,0,0,10,9,0,0,16,1014.17,1745,2759.17,410.51000000000931,{"$f":"$BH261+$BI260-IFERROR(VLOOKUP($A261,[2]Sheet2!$A$4:$B$82,2,FALSE),0)","v":1400.5300000000034},{"$f":"$BJ260+$BK260-IFERROR(VLOOKUP($A261,[2]Amazon!$A$2:$F$17,5,FALSE),0)","v":0},{"$f":"$BL261+$BM260-IFERROR(VLOOKUP($A261,'[2]Myaccountaccess Pivot'!$A$4:$B$31,2,FALSE),0)","v":0},{"$f":"IFERROR(VLOOKUP($A261,'[2]export-1'!$A$2:$F$441,6,FALSE),AJ260)","v":27605.209999999995},{"$f":"IFERROR(VLOOKUP($A261,'[7]download-1'!$A$2:$F$513,6,FALSE),AK260)","v":-4745.9799999999996},{"$f":"IFERROR(VLOOKUP($A261,'[3]TexttoColumn Amazon Balance'!$A$14:$B$30,2,FALSE),IF(AL262>0,AL262-743,0))","v":4461.84},28721.599999999999,89052.040000000008,704,191,123,89,null,null,null,null,null,{"$f":"IFERROR(VLOOKUP($A261,'[2]export-1'!$A$446:$G$451,7,FALSE),0)","v":0},{"$f":"IFERROR(VLOOKUP($A261,[3]Sheet4!$A$4:$B$56,2,FALSE),0)","v":0},{"$f":"IFERROR(VLOOKUP($A261,'[3]headphones purchased'!$A$2:$G$27,6,FALSE),0)","v":0},{"$f":"ROUND(IFERROR(VLOOKUP($A261,'[4]download-1'!$A$471:$F$474,5,FALSE)/-9.5,0),0)","v":0},{"$f":"ROUND(IFERROR(VLOOKUP($A261,'[4]download-1'!$A$467:$F$469,5,FALSE)/-49,0),0)","v":252},{"$f":"IFERROR(VLOOKUP($A261,[5]Sheet8!$A$4:$B$89,2,FALSE),0)","v":0},null,null,null,{"$f":"IFERROR(VLOOKUP($A261,[3]Paypal!$A$2:$AA$1843,25,FALSE),0)","v":0},{"$f":"IFERROR(VLOOKUP($A261,'[3]Paypal Money Sent Pivot'!$A$4:$B$97,2,FALSE),0)","v":857.54},{"$f":"$BH261+$BI260-IFERROR(VLOOKUP($A261,[2]Sheet2!$A$4:$B$82,2,FALSE),0)","v":1400.5300000000034},{"$f":"IFERROR(VLOOKUP($A261,'[3]TexttoColumn Amazon Balance'!$A$14:$B$30,2,FALSE),0)","v":0},{"$f":"$BJ260+$BK260-IFERROR(VLOOKUP($A261,[2]Amazon!$A$2:$F$17,5,FALSE),0)","v":0},{"$f":"IFERROR(VLOOKUP($A261,'[4]Payment Pivot'!$A$4:$B$39,2,FALSE),0)","v":0},{"$f":"$BL261+$BM260-IFERROR(VLOOKUP($A261,'[2]Myaccountaccess Pivot'!$A$4:$B$31,2,FALSE),0)","v":0},1900,{"$f":"IFERROR(VLOOKUP($A261,'[6]export-2'!$A$2:$F$15,6,FALSE),BO260)","v":15151.190000000002},746.96202329578591,{"$f":"OFFSET(A261,0,'Cool Graph'!$H$1)","v":122.35},{"$f":"OFFSET(A261,0,'Cool Graph'!$I$1)","v":746.96202329578591},336.4520232957766]
["2012-03-17",64.09,42.47,177.28,76.28,11.77,371.89,0,0,0,6,0,0,0,72.05,0,0,4.2300000000000004,0,7,0,0,0,6,6,0,0,13,1157.55,1060,2217.5500000000002,3090.3299999999872,{"$f":"$BH262+$BI261-IFERROR(VLOOKUP($A262,[2]Sheet2!$A$4:$B$82,2,FALSE),0)","v":4441.8600000000033},{"$f":"$BJ261+$BK261-IFERROR(VLOOKUP($A262,[2]Amazon!$A$2:$F$17,5,FALSE),0)","v":0},{"$f":"$BL262+$BM261-IFERROR(VLOOKUP($A262,'[2]Myaccountaccess Pivot'!$A$4:$B$31,2,FALSE),0)","v":0},{"$f":"IFERROR(VLOOKUP($A262,'[2]export-1'!$A$2:$F$441,6,FALSE),AJ261)","v":27605.209999999995},{"$f":"IFERROR(VLOOKUP($A262,'[7]download-1'!$A$2:$F$513,6,FALSE),AK261)","v":-4745.9799999999996},{"$f":"IFERROR(VLOOKUP($A262,'[3]TexttoColumn Amazon Balance'!$A$14:$B$30,2,FALSE),IF(AL263>0,AL263-743,0))","v":5204.84},32505.93,92142.37,691,{"$f":"AP261+AZ262+BA262-Y262-U262-AT262","v":185},123,89,null,null,null,null,null,{"$f":"IFERROR(VLOOKUP($A262,'[2]export-1'!$A$446:$G$451,7,FALSE),0)","v":0},{"$f":"IFERROR(VLOOKUP($A262,[3]Sheet4!$A$4:$B$56,2,FALSE),0)","v":0},{"$f":"IFERROR(VLOOKUP($A262,'[3]headphones purchased'!$A$2:$G$27,6,FALSE),0)","v":0},{"$f":"ROUND(IFERROR(VLOOKUP($A262,'[4]download-1'!$A$471:$F$474,5,FALSE)/-9.5,0),0)","v":0},{"$f":"ROUND(IFERROR(VLOOKUP($A262,'[4]download-1'!$A$467:$F$469,5,FALSE)/-49,0),0)","v":0},{"$f":"IFERROR(VLOOKUP($A262,[5]Sheet8!$A$4:$B$89,2,FALSE),0)","v":0},null,null,null,{"$f":"IFERROR(VLOOKUP($A262,[3]Paypal!$A$2:$AA$1843,25,FALSE),0)","v":0},{"$f":"IFERROR(VLOOKUP($A262,'[3]Paypal Money Sent Pivot'!$A$4:$B$97,2,FALSE),0)","v":3041.33},{"$f":"$BH262+$BI261-IFERROR(VLOOKUP($A262,[2]Sheet2!$A$4:$B$82,2,FALSE),0)","v":4441.8600000000033},{"$f":"IFERROR(VLOOKUP($A262,'[3]TexttoColumn Amazon Balance'!$A$14:$B$30,2,FALSE),0)","v":0},{"$f":"$BJ261+$BK261-IFERROR(VLOOKUP($A262,[2]Amazon!$A$2:$F$17,5,FALSE),0)","v":0},{"$f":"IFERROR(VLOOKUP($A262,'[4]Payment Pivot'!$A$4:$B$39,2,FALSE),0)","v":0},{"$f":"$BL262+$BM261-IFERROR(VLOOKUP($A262,'[2]Myaccountaccess Pivot'!$A$4:$B$31,2,FALSE),0)","v":0},1900,{"$f":"IFERROR(VLOOKUP($A262,'[6]export-2'!$A$2:$F$15,6,FALSE),BO261)","v":15151.190000000002},567.14077945888448,{"$f":"OFFSET(A262,0,'Cool Graph'!$H$1)","v":64.09},{"$f":"OFFSET(A262,0,'Cool Graph'!$I$1)","v":567.14077945888448},-2523.1892205411027]
["2012-03-18",144.12,66.739999999999995,210.91000000000003,90.83,11.27,523.87,0,0,0,6,1,0,0,86.37,1,0,4.46,0,11,1,0,0,13,9,1,1,24,1884.58,2280,4164.58,1354.7100000000064,{"$f":"$BH263+$BI262-IFERROR(VLOOKUP($A263,[2]Sheet2!$A$4:$B$82,2,FALSE),0)","v":6336.8200000000033},{"$f":"$BJ262+$BK262-IFERROR(VLOOKUP($A263,[2]Amazon!$A$2:$F$17,5,FALSE),0)","v":0},{"$f":"$BL263+$BM262-IFERROR(VLOOKUP($A263,'[2]Myaccountaccess Pivot'!$A$4:$B$31,2,FALSE),0)","v":0},{"$f":"IFERROR(VLOOKUP($A263,'[2]export-1'!$A$2:$F$441,6,FALSE),AJ262)","v":27605.209999999995},{"$f":"IFERROR(VLOOKUP($A263,'[7]download-1'!$A$2:$F$513,6,FALSE),AK262)","v":-4745.9799999999996},{"$f":"IFERROR(VLOOKUP($A263,'[3]TexttoColumn Amazon Balance'!$A$14:$B$30,2,FALSE),IF(AL264>0,AL264-743,0))","v":5947.84},35143.89,93497.08,667,175,122,88,null,null,null,null,null,{"$f":"IFERROR(VLOOKUP($A263,'[2]export-1'!$A$446:$G$451,7,FALSE),0)","v":0},{"$f":"IFERROR(VLOOKUP($A263,[3]Sheet4!$A$4:$B$56,2,FALSE),0)","v":0},{"$f":"IFERROR(VLOOKUP($A263,'[3]headphones purchased'!$A$2:$G$27,6,FALSE),0)","v":0},{"$f":"ROUND(IFERROR(VLOOKUP($A263,'[4]download-1'!$A$471:$F$474,5,FALSE)/-9.5,0),0)","v":0},{"$f":"ROUND(IFERROR(VLOOKUP($A263,'[4]download-1'!$A$467:$F$469,5,FALSE)/-49,0),0)","v":0},{"$f":"IFERROR(VLOOKUP($A263,[5]Sheet8!$A$4:$B$89,2,FALSE),0)","v":0},null,null,null,{"$f":"IFERROR(VLOOKUP($A263,[3]Paypal!$A$2:$AA$1843,25,FALSE),0)","v":0},{"$f":"IFERROR(VLOOKUP($A263,'[3]Paypal Money Sent Pivot'!$A$4:$B$97,2,FALSE),0)","v":1894.96},{"$f":"$BH263+$BI262-IFERROR(VLOOKUP($A263,[2]Sheet2!$A$4:$B$82,2,FALSE),0)","v":6336.8200000000033},{"$f":"IFERROR(VLOOKUP($A263,'[3]TexttoColumn Amazon Balance'!$A$14:$B$30,2,FALSE),0)","v":0},{"$f":"$BJ262+$BK262-IFERROR(VLOOKUP($A263,[2]Amazon!$A$2:$F$17,5,FALSE),0)","v":0},{"$f":"IFERROR(VLOOKUP($A263,'[4]Payment Pivot'!$A$4:$B$39,2,FALSE),0)","v":0},{"$f":"$BL263+$BM262-IFERROR(VLOOKUP($A263,'[2]Myaccountaccess Pivot'!$A$4:$B$31,2,FALSE),0)","v":0},1900,{"$f":"IFERROR(VLOOKUP($A263,'[6]export-2'!$A$2:$F$15,6,FALSE),BO262)","v":15151.190000000002},1239.638738706627,{"$f":"OFFSET(A263,0,'Cool Graph'!$H$1)","v":144.12},{"$f":"OFFSET(A263,0,'Cool Graph'!$I$1)","v":1239.638738706627},-115.07126129337939]
["2012-03-19",54.56,73.56,209.29000000000002,97.39,17.39,452.19,1,1,0,10,1,3,1,90.7,0,2,6.69,1,1,0,0,0,13,10,1,2,14,168.99,2375,2543.9899999999998,-198.86000000000058,{"$f":"$BH264+$BI263-IFERROR(VLOOKUP($A264,[2]Sheet2!$A$4:$B$82,2,FALSE),0)","v":5583.5000000000027},{"$f":"$BJ263+$BK263-IFERROR(VLOOKUP($A264,[2]Amazon!$A$2:$F$17,5,FALSE),0)","v":0},{"$f":"$BL264+$BM263-IFERROR(VLOOKUP($A264,'[2]Myaccountaccess Pivot'!$A$4:$B$31,2,FALSE),0)","v":0},{"$f":"IFERROR(VLOOKUP($A264,'[2]export-1'!$A$2:$F$441,6,FALSE),AJ263)","v":30536.909999999993},{"$f":"IFERROR(VLOOKUP($A264,'[7]download-1'!$A$2:$F$513,6,FALSE),AK263)","v":-7065.97},{"$f":"IFERROR(VLOOKUP($A264,'[3]TexttoColumn Amazon Balance'!$A$14:$B$30,2,FALSE),IF(AL265>0,AL265-743,0))","v":6690.84},35745.279999999992,93298.22,653,165,121,86,null,null,null,null,null,{"$f":"IFERROR(VLOOKUP($A264,'[2]export-1'!$A$446:$G$451,7,FALSE),0)","v":0},{"$f":"IFERROR(VLOOKUP($A264,[3]Sheet4!$A$4:$B$56,2,FALSE),0)","v":0},{"$f":"IFERROR(VLOOKUP($A264,'[3]headphones purchased'!$A$2:$G$27,6,FALSE),0)","v":0},{"$f":"ROUND(IFERROR(VLOOKUP($A264,'[4]download-1'!$A$471:$F$474,5,FALSE)/-9.5,0),0)","v":0},{"$f":"ROUND(IFERROR(VLOOKUP($A264,'[4]download-1'!$A$467:$F$469,5,FALSE)/-49,0),0)","v":0},{"$f":"IFERROR(VLOOKUP($A264,[5]Sheet8!$A$4:$B$89,2,FALSE),0)","v":0},null,null,null,{"$f":"IFERROR(VLOOKUP($A264,[3]Paypal!$A$2:$AA$1843,25,FALSE),0)","v":0},{"$f":"IFERROR(VLOOKUP($A264,'[3]Paypal Money Sent Pivot'!$A$4:$B$97,2,FALSE),0)","v":2484.9699999999998},{"$f":"$BH264+$BI263-IFERROR(VLOOKUP($A264,[2]Sheet2!$A$4:$B$82,2,FALSE),0)","v":5583.5000000000027},{"$f":"IFERROR(VLOOKUP($A264,'[3]TexttoColumn Amazon Balance'!$A$14:$B$30,2,FALSE),0)","v":0},{"$f":"$BJ263+$BK263-IFERROR(VLOOKUP($A264,[2]Amazon!$A$2:$F$17,5,FALSE),0)","v":0},{"$f":"IFERROR(VLOOKUP($A264,'[4]Payment Pivot'!$A$4:$B$39,2,FALSE),0)","v":0},{"$f":"$BL264+$BM263-IFERROR(VLOOKUP($A264,'[2]Myaccountaccess Pivot'!$A$4:$B$31,2,FALSE),0)","v":0},1900,{"$f":"IFERROR(VLOOKUP($A264,'[6]export-2'!$A$2:$F$15,6,FALSE),BO263)","v":15151.190000000002},625.07315647250653,{"$f":"OFFSET(A264,0,'Cool Graph'!$H$1)","v":54.56},{"$f":"OFFSET(A264,0,'Cool Graph'!$I$1)","v":625.07315647250653},823.93315647250711]
["2012-03-20",34.19,65.02,240.25000000000003,109.89999999999999,10.07,459.43,1,1,0,5,0,0,0,106.53999999999999,0,0,3.36,0,1,0,0,0,9,9,1,0,10,165,1700,1865,1400.7499999999854,{"$f":"$BH265+$BI264-IFERROR(VLOOKUP($A265,[2]Sheet2!$A$4:$B$82,2,FALSE),0)","v":5808.4100000000026},{"$f":"$BJ264+$BK264-IFERROR(VLOOKUP($A265,[2]Amazon!$A$2:$F$17,5,FALSE),0)","v":0},{"$f":"$BL265+$BM264-IFERROR(VLOOKUP($A265,'[2]Myaccountaccess Pivot'!$A$4:$B$31,2,FALSE),0)","v":21303.91},{"$f":"IFERROR(VLOOKUP($A265,'[2]export-1'!$A$2:$F$441,6,FALSE),AJ264)","v":31740.659999999993},{"$f":"IFERROR(VLOOKUP($A265,'[7]download-1'!$A$2:$F$513,6,FALSE),AK264)","v":14047.779999999997},{"$f":"IFERROR(VLOOKUP($A265,'[3]TexttoColumn Amazon Balance'!$A$14:$B$30,2,FALSE),IF(AL266>0,AL266-743,0))","v":7433.84},37726.779999999984,94698.969999999987,643,156,120,86,null,null,null,null,null,{"$f":"IFERROR(VLOOKUP($A265,'[2]export-1'!$A$446:$G$451,7,FALSE),0)","v":0},{"$f":"IFERROR(VLOOKUP($A265,[3]Sheet4!$A$4:$B$56,2,FALSE),0)","v":0},{"$f":"IFERROR(VLOOKUP($A265,'[3]headphones purchased'!$A$2:$G$27,6,FALSE),0)","v":0},{"$f":"ROUND(IFERROR(VLOOKUP($A265,'[4]download-1'!$A$471:$F$474,5,FALSE)/-9.5,0),0)","v":0},{"$f":"ROUND(IFERROR(VLOOKUP($A265,'[4]download-1'!$A$467:$F$469,5,FALSE)/-49,0),0)","v":0},{"$f":"IFERROR(VLOOKUP($A265,[5]Sheet8!$A$4:$B$89,2,FALSE),0)","v":0},null,null,null,{"$f":"IFERROR(VLOOKUP($A265,[3]Paypal!$A$2:$AA$1843,25,FALSE),0)","v":0},{"$f":"IFERROR(VLOOKUP($A265,'[3]Paypal Money Sent Pivot'!$A$4:$B$97,2,FALSE),0)","v":1428.66},{"$f":"$BH265+$BI264-IFERROR(VLOOKUP($A265,[2]Sheet2!$A$4:$B$82,2,FALSE),0)","v":5808.4100000000026},{"$f":"IFERROR(VLOOKUP($A265,'[3]TexttoColumn Amazon Balance'!$A$14:$B$30,2,FALSE),0)","v":0},{"$f":"$BJ264+$BK264-IFERROR(VLOOKUP($A265,[2]Amazon!$A$2:$F$17,5,FALSE),0)","v":0},{"$f":"IFERROR(VLOOKUP($A265,'[4]Payment Pivot'!$A$4:$B$39,2,FALSE),0)","v":21303.91},{"$f":"$BL265+$BM264-IFERROR(VLOOKUP($A265,'[2]Myaccountaccess Pivot'!$A$4:$B$31,2,FALSE),0)","v":21303.91},1900,{"$f":"IFERROR(VLOOKUP($A265,'[6]export-2'!$A$2:$F$15,6,FALSE),BO264)","v":15151.190000000002},330.31201424582054,{"$f":"OFFSET(A265,0,'Cool Graph'!$H$1)","v":34.19},{"$f":"OFFSET(A265,0,'Cool Graph'!$I$1)","v":330.31201424582054},-1070.4379857541649]
["2012-03-21",33.159999999999997,47.44,229.97,91.72999999999999,14.49,416.78999999999996,0,3,0,5,2,0,0,88.539999999999992,2,0,3.19,0,2,1,0,0,14,12,1,1,16,363.99,2630,2993.99,2905.8899999999994,{"$f":"$BH266+$BI265-IFERROR(VLOOKUP($A266,[2]Sheet2!$A$4:$B$82,2,FALSE),0)","v":7550.6500000000024},{"$f":"$BJ265+$BK265-IFERROR(VLOOKUP($A266,[2]Amazon!$A$2:$F$17,5,FALSE),0)","v":0},{"$f":"$BL266+$BM265-IFERROR(VLOOKUP($A266,'[2]Myaccountaccess Pivot'!$A$4:$B$31,2,FALSE),0)","v":0},{"$f":"IFERROR(VLOOKUP($A266,'[2]export-1'!$A$2:$F$441,6,FALSE),AJ265)","v":12331.709999999995},{"$f":"IFERROR(VLOOKUP($A266,'[7]download-1'!$A$2:$F$513,6,FALSE),AK265)","v":13493.219999999998},{"$f":"IFERROR(VLOOKUP($A266,'[3]TexttoColumn Amazon Balance'!$A$14:$B$30,2,FALSE),IF(AL267>0,AL267-743,0))","v":8176.84},41552.419999999991,97604.859999999986,627,143,119,85,null,null,null,null,null,{"$f":"IFERROR(VLOOKUP($A266,'[2]export-1'!$A$446:$G$451,7,FALSE),0)","v":0},{"$f":"IFERROR(VLOOKUP($A266,[3]Sheet4!$A$4:$B$56,2,FALSE),0)","v":0},{"$f":"IFERROR(VLOOKUP($A266,'[3]headphones purchased'!$A$2:$G$27,6,FALSE),0)","v":0},{"$f":"ROUND(IFERROR(VLOOKUP($A266,'[4]download-1'!$A$471:$F$474,5,FALSE)/-9.5,0),0)","v":0},{"$f":"ROUND(IFERROR(VLOOKUP($A266,'[4]download-1'!$A$467:$F$469,5,FALSE)/-49,0),0)","v":0},{"$f":"IFERROR(VLOOKUP($A266,[5]Sheet8!$A$4:$B$89,2,FALSE),0)","v":0},null,null,null,{"$f":"IFERROR(VLOOKUP($A266,[3]Paypal!$A$2:$AA$1843,25,FALSE),0)","v":0},{"$f":"IFERROR(VLOOKUP($A266,'[3]Paypal Money Sent Pivot'!$A$4:$B$97,2,FALSE),0)","v":3637.2},{"$f":"$BH266+$BI265-IFERROR(VLOOKUP($A266,[2]Sheet2!$A$4:$B$82,2,FALSE),0)","v":7550.6500000000024},{"$f":"IFERROR(VLOOKUP($A266,'[3]TexttoColumn Amazon Balance'!$A$14:$B$30,2,FALSE),0)","v":0},{"$f":"$BJ265+$BK265-IFERROR(VLOOKUP($A266,[2]Amazon!$A$2:$F$17,5,FALSE),0)","v":0},{"$f":"IFERROR(VLOOKUP($A266,'[4]Payment Pivot'!$A$4:$B$39,2,FALSE),0)","v":0},{"$f":"$BL266+$BM265-IFERROR(VLOOKUP($A266,'[2]Myaccountaccess Pivot'!$A$4:$B$31,2,FALSE),0)","v":0},1900,{"$f":"IFERROR(VLOOKUP($A266,'[6]export-2'!$A$2:$F$15,6,FALSE),BO265)","v":15151.190000000002},851.02752988302632,{"$f":"OFFSET(A266,0,'Cool Graph'!$H$1)","v":33.159999999999997},{"$f":"OFFSET(A266,0,'Cool Graph'!$I$1)","v":851.02752988302632},-2054.8624701169729]
["2012-03-22",179.91,40.03,182.54000000000002,97.210000000000008,15.41,515.1,1,2,0,4,2,0,0,94.95,2,0,2.2599999999999998,0,0,0,0,0,10,10,1,1,{"$f":"SUM(X267,T267)","v":10},1032.6500000000001,1690,2722.65,2496.7100000000064,{"$f":"$BH267+$BI266-IFERROR(VLOOKUP($A267,[2]Sheet2!$A$4:$B$82,2,FALSE),0)","v":7112.9100000000035},{"$f":"$BJ266+$BK266-IFERROR(VLOOKUP($A267,[2]Amazon!$A$2:$F$17,5,FALSE),0)","v":0},{"$f":"$BL267+$BM266-IFERROR(VLOOKUP($A267,'[2]Myaccountaccess Pivot'!$A$4:$B$31,2,FALSE),0)","v":0},{"$f":"IFERROR(VLOOKUP($A267,'[2]export-1'!$A$2:$F$441,6,FALSE),AJ266)","v":14816.679999999995},{"$f":"IFERROR(VLOOKUP($A267,'[7]download-1'!$A$2:$F$513,6,FALSE),AK266)","v":12929.129999999997},{"$f":"'[3]TexttoColumn Amazon Balance'!$B$30","v":8919.84},43778.559999999998,100101.56999999999,{"$f":"AX267+AY267+AO266-AB267+BB267-BC267-AS267+BF267","v":634.7106122448979},133,118,84,null,null,null,null,null,{"$f":"IFERROR(VLOOKUP($A267,'[2]export-1'!$A$446:$G$451,7,FALSE),0)","v":0},{"$f":"IFERROR(VLOOKUP($A267,[3]Sheet4!$A$4:$B$56,2,FALSE),0)","v":0},{"$f":"IFERROR(VLOOKUP($A267,'[3]headphones purchased'!$A$2:$G$27,6,FALSE),0)","v":0},{"$f":"ROUND(IFERROR(VLOOKUP($A267,'[4]download-1'!$A$471:$F$474,5,FALSE)/-9.5,0),0)","v":0},{"$f":"17.7106122448979","v":17.710612244897899},{"$f":"IFERROR(VLOOKUP($A267,[5]Sheet8!$A$4:$B$89,2,FALSE),0)","v":0},null,null,null,{"$f":"IFERROR(VLOOKUP($A267,[3]Paypal!$A$2:$AA$1843,25,FALSE),0)","v":0},{"$f":"IFERROR(VLOOKUP($A267,'[3]Paypal Money Sent Pivot'!$A$4:$B$97,2,FALSE),0)","v":2047.23},{"$f":"$BH267+$BI266-IFERROR(VLOOKUP($A267,[2]Sheet2!$A$4:$B$82,2,FALSE),0)","v":7112.9100000000035},{"$f":"IFERROR(VLOOKUP($A267,'[3]TexttoColumn Amazon Balance'!$A$14:$B$30,2,FALSE),0)","v":0},{"$f":"$BJ266+$BK266-IFERROR(VLOOKUP($A267,[2]Amazon!$A$2:$F$17,5,FALSE),0)","v":0},{"$f":"IFERROR(VLOOKUP($A267,'[4]Payment Pivot'!$A$4:$B$39,2,FALSE),0)","v":0},{"$f":"$BL267+$BM266-IFERROR(VLOOKUP($A267,'[2]Myaccountaccess Pivot'!$A$4:$B$31,2,FALSE),0)","v":0},1900,{"$f":"IFERROR(VLOOKUP($A267,'[6]export-2'!$A$2:$F$15,6,FALSE),BO266)","v":15151.190000000002},637.81747725811454,{"$f":"OFFSET(A267,0,'Cool Graph'!$H$1)","v":179.91},{"$f":"OFFSET(A267,0,'Cool Graph'!$I$1)","v":637.81747725811454},-1858.8925227418918]
["2012-03-23",223.03,48.93,188.91,108.95,5.94,{"$f":"SUM(B268:E268)","v":569.82000000000005},{"$f":"H269+H270","v":0},3,0,7,0,0,0,106.55,0,0,2.4,0,10,1,0,null,11,1,1,0,{"$f":"SUM(X268,T268)","v":21},1717.97,2050,3767.9700000000003,{"$f":"AN268-AN267","v":2948.0436956521735},7919.99,"$9,231.1",0,13785.79,{"$f":"IFERROR(VLOOKUP($A268,'[7]download-1'!$A$2:$F$513,6,FALSE),AK267)","v":12668.929999999998},0,{"$f":"AL268+AK268+AJ268-AI268+AH268+AG268+BG268","v":43605.81},{"$f":"AM268+(AO268*49)+(AP268*9.5)+(AQ268*5.25)+(AR268*7)+(AS268*49)+(AT268*9.5)+(AU268*5.25)+BO268+(BN268*4)","v":103049.61369565217},{"$f":"AX268+AY268+AO267-AB268+BB268-BC268-AS268+BF268","v":698.89517746228921},131,117,84,null,null,null,null,null,null,null,null,null,85.184565217391295,null,null,null,null,null,null,{"$f":"$BH268+$BI267-IFERROR(VLOOKUP($A268,[2]Sheet2!$A$4:$B$82,2,FALSE),0)","v":7112.9100000000035},null,null,{"$f":"IFERROR(VLOOKUP($A268,'[4]Payment Pivot'!$A$4:$B$39,2,FALSE),0)","v":0},{"$f":"$BL268+$BM267-IFERROR(VLOOKUP($A268,'[2]Myaccountaccess Pivot'!$A$4:$B$31,2,FALSE),0)","v":0},1900,{"$f":"IFERROR(VLOOKUP($A268,'[6]export-2'!$A$2:$F$15,6,FALSE),BO267)","v":15151.190000000002},1025.7425830658576,{"$f":"OFFSET(A268,0,'Cool Graph'!$H$1)","v":223.03},{"$f":"OFFSET(A268,0,'Cool Graph'!$I$1)","v":1025.7425830658576},-1922.3011125863159]
["2012-03-24",287.08999999999997,36.770000000000003,194.88,113.19,9.74,631.93000000000006,{"$f":"H270+H272","v":0},1,0,2,0,0,1,107.2,0,0,5.99,0,6,0,0,null,2,2,1,2,{"$f":"SUM(X269,T269)","v":8},1007.27,675,1682.27,1132.8890000000101,8778.0400000000009,"$9,231.1",0,{"$f":"IFERROR(VLOOKUP($A269,#REF!,10,FALSE),AJ268)","v":13785.79},{"$f":"IFERROR(VLOOKUP($A269,'[7]download-1'!$A$2:$F$513,6,FALSE),AK268)","v":12668.929999999998},{"$f":"AC269*0.7","v":705.08899999999994},45168.949000000001,104182.50269565218,{"$f":"AX269+AY269+AO268-AB269+BB269-BC269-AS269+BF269","v":690.89517746228921},129,116,82,null,null,null,null,null,null,null,null,null,null,null,null,null,null,null,null,{"$f":"$BH269+$BI268-IFERROR(VLOOKUP($A269,[2]Sheet2!$A$4:$B$82,2,FALSE),0)","v":7112.9100000000035},null,null,{"$f":"IFERROR(VLOOKUP($A269,'[4]Payment Pivot'!$A$4:$B$39,2,FALSE),0)","v":0},{"$f":"$BL269+$BM268-IFERROR(VLOOKUP($A269,'[2]Myaccountaccess Pivot'!$A$4:$B$31,2,FALSE),0)","v":0},1900,15151.190000000002,80.434235016255457,{"$f":"OFFSET(A269,0,'Cool Graph'!$H$1)","v":287.08999999999997},{"$f":"OFFSET(A269,0,'Cool Graph'!$I$1)","v":80.434235016255457},-1052.4547649837546]
["2012-03-25",227.4,74.05,196.84,136.88,10.01,635.16999999999996,{"$f":"H272+H283","v":0},0,0,5,1,0,0,134.59,1,0,2.29,0,9,2,1,null,12,1,1,0,21,1598.24,2270,3868.24,2267.5280000000057,{"$f":"10994.8","v":10994.8},"$9,231.1",0,13785.79,{"$f":"IFERROR(VLOOKUP($A270,'[7]download-1'!$A$2:$F$513,6,FALSE),AK269)","v":12668.929999999998},{"$f":"(AC270*0.7)+AL269","v":1823.857},{"$f":"AL270+AK270+AJ270-AI270+AH270+AG270+BG270","v":48504.476999999999},{"$f":"AM270+(AO270*49)+(AP270*9.5)+(AQ270*5.25)+(AR270*7)+(AS270*49)+(AT270*9.5)+(AU270*5.25)+BO270+(BN270*4)","v":106450.03069565218},{"$f":"AX270+AY270+AO269-AB270+BB270-BC270-AS270+BF270","v":669.89517746228921},126,114,82,null,null,null,null,null,null,null,null,null,null,null,null,null,null,null,null,{"$f":"$BH270+$BI269-IFERROR(VLOOKUP($A270,[2]Sheet2!$A$4:$B$82,2,FALSE),0)","v":7112.9100000000035},null,null,{"$f":"IFERROR(VLOOKUP($A270,'[4]Payment Pivot'!$A$4:$B$39,2,FALSE),0)","v":0},{"$f":"$BL270+$BM269-IFERROR(VLOOKUP($A270,'[2]Myaccountaccess Pivot'!$A$4:$B$31,2,FALSE),0)","v":0},1900,15151.190000000002,1002.8523320033527,{"$f":"OFFSET(A270,0,'Cool Graph'!$H$1)","v":227.4},{"$f":"OFFSET(A270,0,'Cool Graph'!$I$1)","v":1002.8523320033527},-1264.6756679966529]
["2012-03-26",359.44,63.76,194.37,123.5,11.06,741.06999999999994,{"$f":"H272+H283","v":0},3,0,4,0,2,1,134.59,1,0,5.91,0,2,0,0,null,7,6,0,1,9,335.06,1260,1595.06,140.34669565215881,4298.8500000000004,"$9,231.1",0,21705.96,{"$f":"IFERROR(VLOOKUP($A271,'[7]download-1'!$A$2:$F$513,6,FALSE),AK270)","v":-7868.93},3799.62,{"$f":"AL271+AK271+AJ271-AI271+AH271+AG271+BG271","v":31166.6},{"$f":"AM271+(AO271*49)+(AP271*9.5)+(AQ271*5.25)+(AR271*7)+(AS271*49)+(AT271*9.5)+(AU271*5.25)+BO271+(BN271*4)","v":106590.37739130434},{"$f":"AX271+AY271+AO270-AB271+BB271-BC271-AS271+BF271","v":1027.8997426796805},120,114,81,null,null,null,null,null,null,null,null,null,{"$f":"(12963.72/46)+(3918.49/46)","v":367.0045652173913},null,null,null,null,null,null,{"$f":"$BH271+$BI270-IFERROR(VLOOKUP($A271,[2]Sheet2!$A$4:$B$82,2,FALSE),0)","v":7112.9100000000035},null,null,{"$f":"IFERROR(VLOOKUP($A271,'[4]Payment Pivot'!$A$4:$B$39,2,FALSE),0)","v":0},{"$f":"$BL271+$BM270-IFERROR(VLOOKUP($A271,'[2]Myaccountaccess Pivot'!$A$4:$B$31,2,FALSE),0)","v":0},1900,15151.190000000002,-65.635202550703184,{"$f":"OFFSET(A271,0,'Cool Graph'!$H$1)","v":359.44},{"$f":"OFFSET(A271,0,'Cool Graph'!$I$1)","v":-65.635202550703184},-205.981898202862]
["2012-03-27",302.83,55.16,225.05,111.77,8.44,{"$f":"SUM(B272:E272)","v":694.81},null,null,null,2,1,1,1,108.95,1,1,2.82,0,7,1,1,null,6,5,null,null,13,1246.4499999999998,1065,2311.4499999999998,176.46260869565594,4495.42,0,23606.79,31795.14,{"$f":"IFERROR(VLOOKUP($A272,'[7]download-1'!$A$2:$F$513,6,FALSE),AK271)","v":11113.78},{"$f":"AL271+(AC272*0.3)","v":4173.5550000000003},27971.104999999996,106766.84,{"$f":"AX272+AY272+AO271-AB272+BB272-BC272-AS272+BF272","v":1097.9856122448978},114,113,81,null,null,null,null,null,null,null,null,0,{"$f":"3821.95/46","v":83.085869565217394},null,0,null,null,null,null,null,null,null,null,null,1900,15151.190000000002,283.98312537721279,{"$f":"OFFSET(A272,0,'Cool Graph'!$H$1)","v":302.83},{"$f":"OFFSET(A272,0,'Cool Graph'!$I$1)","v":283.98312537721279},107.52051668155684]
["2012-03-28",176.95,35.81,203.88,80.45,16.579999999999998,{"$f":"SUM(B273:E273)","v":497.09},{"$f":"H274+H279","v":0},3,0,3,0,0,1,77.61,0,0,2.84,0,10,0,0,null,9,2,2,null,19,1686.6999999999998,1630,3316.7,10707.719999999987,4067.41,0,0,9701.36,{"$f":"IFERROR(VLOOKUP($A273,'[7]download-1'!$A$2:$F$513,6,FALSE),AK272)","v":3844.9900000000021},{"$f":"AL272+(AC273*0.3)","v":4679.5650000000005},22293.325000000001,{"$f":"AM273+(AO273*49)+(AP273*9.5)+(AQ273*5.25)+(AR273*7)+(AS273*49)+(AT273*9.5)+(AU273*5.25)+BO273+(BN273*4)","v":117474.55999999998},1432.9856122448978,112,111,81,null,null,null,null,null,null,null,null,0,{"$f":"(17346/49)","v":354},null,0,null,null,null,null,null,null,null,null,null,1900,15151.190000000002,907.38042286815721,{"$f":"OFFSET(A273,0,'Cool Graph'!$H$1)","v":176.95},{"$f":"OFFSET(A273,0,'Cool Graph'!$I$1)","v":907.38042286815721},-9800.3395771318301]
["2012-03-29",107.99,35.81,174.16,53.01,10.48,{"$f":"SUM(B274:E274)","v":370.97},{"$f":"H275+H279","v":0},0,0,4,0,1,3,47.44,0,0,5.57,0,2,0,0,null,14,11,4,1,16,337.98,2580,2917.98,1025.3439999999973,5358.15,0,0,11162.21,{"$f":"IFERROR(VLOOKUP($A274,'[7]download-1'!$A$2:$F$513,6,FALSE),AK273)","v":-14412.149999999998},{"$f":"AL273+AC274*0.3","v":4780.9590000000007},6889.1690000000017,118499.90399999998,{"$f":"AX274+AY274+AO273-AB274+BB274-BC274+BF274-AS274","v":1628.9856122448978},{"$f":"AP273+AZ274+BA274-Y274-U274-AT274","v":14},{"$f":"BD274-V274-Z274+AQ273-AU274","v":-24},80,142,87,131,null,null,null,null,null,0,{"$f":"(17346/49)","v":354},null,0,null,null,null,null,null,null,null,null,null,1900,15151.190000000002,864.66077894317391,{"$f":"OFFSET(A274,0,'Cool Graph'!$H$1)","v":107.99},{"$f":"OFFSET(A274,0,'Cool Graph'!$I$1)","v":864.66077894317391},-160.68322105682341]
["2012-03-30",62.92,37.82,145.13,62.86,7.96,{"$f":"SUM(B275:E275)","v":308.73},{"$f":"H276+H279","v":0},0,1,8,0,0,0,58.19,0,0,4.67,0,5,0,0,null,12,10,2,0,17,831.57999999999993,2240,3071.58,-15.728999999992084,6486.05,0,0,19047.95,{"$f":"IFERROR(VLOOKUP($A275,'[7]download-1'!$A$2:$F$513,6,FALSE),AK274)","v":-16505.98},5293.92,14321.940000000002,{"$f":"AM275+(AO275*49)+(AP275*9.5)+(AQ275*5.25)+(AR275*7)+(AS275*49)+(AT275*9.5)+(AU275*5.25)+BO275+(BN275*4)","v":118484.17499999999},{"$f":"AX275+AY275+AO274-AB275+BB275-BC275+BF275-(AS275-AS274+T273)","v":1609.9856122448978},{"$f":"AP274+AZ275+BA275-Y275-U275-(AT275-AT274+U274)","v":4},{"$f":"BD275-V275-Z275+AQ274-(AU275-AU274+V274)","v":-26},{"$f":"BE275-W275-AA275+AR274-(AV275-AV274+W274)","v":80},154,87,131,null,null,null,null,null,0,{"$f":"920/46","v":20},null,0,null,null,null,null,null,null,null,null,null,1900,{"$f":"15151.19-7000","v":8151.1900000000005},991.94333840063132,{"$f":"OFFSET(A275,0,'Cool Graph'!$H$1)","v":62.92},{"$f":"OFFSET(A275,0,'Cool Graph'!$I$1)","v":991.94333840063132},1007.6723384006234]
["2012-03-31",86.19,74.08,140.69999999999999,79.650000000000006,6.2,{"$f":"SUM(B276:E276)","v":380.62},{"$f":"H277+H279","v":0},3,0,3,0,0,0,72.680000000000007,0,0,6.97,0,2,0,0,null,8,6,2,0,10,333.99,1435,1768.99,1852.1100000000006,7887.08,0,0,18841.82,{"$f":"IFERROR(VLOOKUP($A276,'[7]download-1'!$A$2:$F$513,6,FALSE),AK275)","v":-16505.98},6606.63,{"$f":"AL276+AK276+AJ276-AI276+AH276+AG276+BG276","v":16829.550000000003},{"$f":"AM276+(AO276*49)+(AP276*9.5)+(AQ276*5.25)+(AR276*7)+(AS276*49)+(AT276*9.5)+(AU276*5.25)+BO276+(BN276*4)","v":120336.28499999999},{"$f":"AX276+AY276+AO275-AB276+BB276-BC276+BF276-(AS276-AS275+T274)","v":1575.9856122448978},{"$f":"AP275+AZ276+BA276-Y276-U276-(AT276-AT275+U275)","v":-2},{"$f":"BD276-V276-Z276+AQ275-(AU276-AU275+V275)","v":-124},{"$f":"BE276-W276-AA276+AR275-(AV276-AV275+W275)","v":80},176,87,227,null,null,null,null,null,0,0,null,0,null,null,null,null,null,null,null,null,null,1900,{"$f":"15151.19-7000","v":8151.1900000000005},368.46618004327831,{"$f":"OFFSET(A276,0,'Cool Graph'!$H$1)","v":86.19},{"$f":"OFFSET(A276,0,'Cool Graph'!$I$1)","v":368.46618004327831},{"$f":"BP276-AF276","v":-1483.6438199567224}]
["2012-04-01",null,null,null,null,null,null,{"$f":"H278+H279","v":0},0,0,null,null,null,null,null,null,null,null,null,null,null,null,null,null,null,null,null,null,null,null,null,null,null,null,null,null,null,null,null,null,null,null,null,null,176,87,227]
["2012-04-02",null,null,null,null,null,null,null,null,null,null,null,null,null,null,null,null,null,null,null,null,null,null,null,null,null,null,null,null,null,null,null,null,null,null,null,null,7800.55,null,null,null,null,null,null,175,86,227,null,null,null,null,null,null,{"$f":"(2818.2/46)","v":61.265217391304347}]
[]
[]
[null,null,null,null,null,null,null,null,null,null,null,null,null,null,null,null,null,null,null,null,null,null,null,null,null,null,null,null,null,null,null,null,null,null,null,null,null,null,null,null,null,null,null,null,142,87,131]
[]
[]
[null,null,null,null,null,null,{"$f":"SUM(G2:G267)","v":68997.039999999994},null,null,null,null,null,null,null,null,null,null,null,null,null,null,null,null,null,null,null,null,null,null,null,{"$f":"SUM(AE2:AE267)","v":445405.01999999996},{"$f":"SUM(AF2:AF267)+10000","v":109611.56999999999},{"$f":"AF284+G284+10000","v":188608.61},null,null,null,null,6449.7356562512614]
[null,null,null,null,null,null,null,null,null,null,null,null,null,null,null,null,null,null,null,null,null,null,null,null,null,null,null,null,null,null,null,"Profit after Advertising","Profit before Advertising"]
[null,null,null,null,null,null,null,null,null,null,null,null,null,null,null,null,null,null,null,null,null,null,null,null,null,null,null,null,null,null,null,{"$f":"AF284/AE284","v":0.24609415044311805},{"$f":"AG284/AE284","v":0.42345416313448825}]

{"sheet":"OldSchoolJustValues","index":16,"n_rows":271,"n_cols":72,"rows_kept":271,"cut":false,"hidden":false,"merged":[]}
["Date","Facebook Spend","Amazon Ads Spend","adWords Search Spend","Adwords Display Spend","Adcenter Spend","Total Ad Spend","Facebook Conv.","Amazon Ads Conv.","Lava Conv.","adWords Search Conv.","adwords display Conv.","adwords display view-through conv.","Adcenter Conv.","Adwords Content Spend","Adwords Content Conv.","Adwords Content View Through","Adwords Retargeting Spend","Adwords Retargeting Conv.","Amazon iPods Sold","Amazon Pyle Sold","Amazon Aquavibe Sold","Amazon Discovery Sold","Magento iPods Sold","Magento Pyle Sold","Magento Aquavibe Sold","Magento Discovery Sold","Total iPods sold","Amazon Revenue","Magento Revenue","Total Revenue","Estimated Profit","Paypal Amount Sent","Amazon Amount Sent","myAccountAccess Amount Sent","Umpqua Balance","myAccountAccess Balance","Amazon Balance","Total Balance","Actual Balance","iPod inventory","Pyle","Aquavibe","Discovery","Amazon iPod","Amazon Pyle","Amazon Aquavibe","Amazon Discovery","=IFERROR(VLOOKUP($A266,'1861740736.csv'!$A$11:$J$251,10,FALSE),0)","iPods Umpqua","iPods End of Year","headphones End of Year","headphones myaccountaccess","iPods myaccountaccess","Yield Loss","Aquavibe purchased","Discovery Purchased","Missing iPods","Paypal Balance","Paypal Amount Sent before","Paypal Calculated stuff","Amazon Amount","Amazon Calculated Stuff","MyAccountAccess",null,"SwimBuds Inventory","Savings Balance","Estimated Profit (new way)",{"$f":"OFFSET(A1,0,'Cool Graph'!$H$1)","v":"Facebook Spend"},{"$f":"OFFSET(A1,0,'Cool Graph'!$I$1)","v":"Estimated Profit (new way)"}]
["2011-07-01",0,0,0,0,0,0,0,0,0,0,0,0,0,0,0,0,0,0,0,0,0,0,0,0,0,0,0,0,0,0,0,0,0,0,0,0,0,0,490,10,0,0,0,null,null,null,null,38260.25,0,0,0,0,0,0,null,null,0,0,0,0,0,0,0,0,null,0,0,{"$f":"OFFSET(A2,0,'Cool Graph'!$H$1)","v":0},{"$f":"OFFSET(A2,0,'Cool Graph'!$I$1)","v":0},null,{"$f":"NewDate","v":{"$error":"#VALUE!"}}]
["2011-07-02",0,0,0,0,0,0,0,0,0,0,0,0,0,0,0,0,0,0,0,0,0,0,0,0,0,0,0,0,0,0,49,0,0,0,0,0,0,0,539,11,0,0,0,null,null,null,null,null,0,0,0,0,0,0,null,null,1,0,0,0,0,0,0,0,null,0,0,{"$f":"OFFSET(A3,0,'Cool Graph'!$H$1)","v":0},{"$f":"OFFSET(A3,0,'Cool Graph'!$I$1)","v":0},null,{"$f":"NewDate","v":"2011-09-27"}]
["2011-07-03",0,0,0,0,0,0,0,0,0,0,0,0,0,0,0,0,0,0,0,0,0,0,0,0,0,0,0,0,0,0,0,0,0,0,0,0,0,0,539,11,0,0,0,null,null,null,null,null,0,0,0,0,0,0,null,null,0,0,0,0,0,0,0,0,null,0,0,{"$f":"OFFSET(A4,0,'Cool Graph'!$H$1)","v":0},{"$f":"OFFSET(A4,0,'Cool Graph'!$I$1)","v":0},null,{"$f":"NewDate","v":"2011-09-28"}]
["2011-07-04",0,0,0,0,0,0,0,0,0,0,0,0,0,0,0,0,0,0,0,0,0,0,0,0,0,0,0,0,0,0,49,0,0,0,0,0,0,0,588,12,0,0,0,null,null,null,null,null,0,0,0,0,0,0,null,null,1,0,0,0,0,0,0,0,null,0,0,{"$f":"OFFSET(A5,0,'Cool Graph'!$H$1)","v":0},{"$f":"OFFSET(A5,0,'Cool Graph'!$I$1)","v":0},null,{"$f":"NewDate","v":"2011-09-29"}]
["2011-07-05",0,0,0,0,0,0,0,0,0,0,0,0,0,0,0,0,0,0,0,0,0,0,0,0,0,0,0,0,0,0,123.5,0,0,0,0,0,0,0,711.5,12,13,0,0,null,null,null,null,null,0,0,13,0,0,0,null,null,0,0,0,0,0,0,0,0,null,0,0,{"$f":"OFFSET(A6,0,'Cool Graph'!$H$1)","v":0},{"$f":"OFFSET(A6,0,'Cool Graph'!$I$1)","v":0},null,{"$f":"NewDate","v":"2011-09-30"}]
["2011-07-06",0,0,0,0,0,0,0,0,0,0,0,0,0,0,0,0,0,0,0,0,0,0,0,0,0,0,0,0,0,0,2549,0,0,0,2500,0,0,2500,3260.5,13,13,0,0,null,null,null,null,null,0,0,0,0,0,0,null,null,1,0,0,0,0,0,0,0,null,0,0,{"$f":"OFFSET(A7,0,'Cool Graph'!$H$1)","v":0},{"$f":"OFFSET(A7,0,'Cool Graph'!$I$1)","v":0},null,{"$f":"NewDate","v":"2011-10-01"}]
["2011-07-07",0,0,0,0,0,0,0,0,0,0,0,0,0,0,0,0,0,0,0,0,0,0,0,0,0,0,0,0,0,0,0,0,0,0,2500,0,0,2500,3260.5,13,13,0,0,null,null,null,null,null,0,0,0,0,0,0,null,null,0,0,0,0,0,0,0,0,null,0,0,{"$f":"OFFSET(A8,0,'Cool Graph'!$H$1)","v":0},{"$f":"OFFSET(A8,0,'Cool Graph'!$I$1)","v":0},null,{"$f":"NewDate","v":"2011-10-02"}]
["2011-07-08",0,0,0,0,0,0,0,0,0,0,0,0,0,0,0,0,0,0,0,0,0,0,0,0,0,0,0,0,0,0,0,0,0,0,2500,0,0,2500,3260.5,13,13,0,0,null,null,null,null,null,0,0,0,0,0,1,null,null,1,0,0,0,0,0,0,0,null,0,0,{"$f":"OFFSET(A9,0,'Cool Graph'!$H$1)","v":0},{"$f":"OFFSET(A9,0,'Cool Graph'!$I$1)","v":0},null,{"$f":"NewDate","v":"2011-10-03"}]
["2011-07-09",0,0,0,0,0,0,0,0,0,0,0,0,0,0,0,0,0,0,0,0,0,0,0,0,0,0,0,0,0,0,0,0,0,0,2500,0,0,2500,3260.5,13,13,0,0,null,null,null,null,null,0,0,0,0,0,0,null,null,0,0,0,0,0,0,0,0,null,0,0,{"$f":"OFFSET(A10,0,'Cool Graph'!$H$1)","v":0},{"$f":"OFFSET(A10,0,'Cool Graph'!$I$1)","v":0},null,{"$f":"NewDate","v":"2011-10-04"}]
["2011-07-10",0,0,0,0,0,0,0,0,0,0,0,0,0,0,0,0,0,0,0,0,0,0,0,0,0,0,0,0,0,0,49,0,0,0,2500,0,0,2500,3309.5,14,13,0,0,null,null,null,null,null,0,0,0,0,0,0,null,null,1,0,0,0,0,0,0,0,null,0,0,{"$f":"OFFSET(A11,0,'Cool Graph'!$H$1)","v":0},{"$f":"OFFSET(A11,0,'Cool Graph'!$I$1)","v":0},null,{"$f":"NewDate","v":"2011-10-05"}]
["2011-07-11",0,0,0,0,0,0,0,0,0,0,0,0,0,0,0,0,0,0,0,0,0,0,0,0,0,0,0,0,0,0,0,0,0,0,2500,0,0,2500,3309.5,14,13,0,0,null,null,null,null,null,0,0,0,0,0,0,null,null,0,0,0,0,0,0,0,0,null,0,0,{"$f":"OFFSET(A12,0,'Cool Graph'!$H$1)","v":0},{"$f":"OFFSET(A12,0,'Cool Graph'!$I$1)","v":0},null,{"$f":"NewDate","v":"2011-10-06"}]
["2011-07-12",0,0,0,0,0,0,0,0,0,0,0,0,0,0,0,0,0,0,0,0,0,0,0,0,0,0,0,0,0,0,-147,0,0,0,2304,0,0,2304,3162.5,15,13,0,0,null,null,null,null,null,0,0,0,0,0,0,null,null,1,0,0,0,0,0,0,0,null,0,0,{"$f":"OFFSET(A13,0,'Cool Graph'!$H$1)","v":0},{"$f":"OFFSET(A13,0,'Cool Graph'!$I$1)","v":0}]
["2011-07-13",0,0,0,0,0,0,0,0,0,0,0,0,0,0,0,0,0,0,0,0,0,0,0,0,0,0,0,0,0,0,0,0,0,0,2304,0,0,2304,3162.5,15,13,0,0,null,null,null,null,null,0,0,0,0,0,0,null,null,0,0,0,0,0,0,0,0,null,0,0,{"$f":"OFFSET(A14,0,'Cool Graph'!$H$1)","v":0},{"$f":"OFFSET(A14,0,'Cool Graph'!$I$1)","v":0}]
["2011-07-14",0,0,0,0,0,0,0,0,0,0,0,0,0,0,0,0,0,0,0,0,0,0,0,0,0,0,0,0,0,0,-120,-0.18,0,0,2135.1799999999998,0,0,2135,3042.5,16,13,0,0,null,null,null,null,null,0,0,0,0,0,0,null,null,1,0,0,-0.18,0,0,0,0,null,0,0,{"$f":"OFFSET(A15,0,'Cool Graph'!$H$1)","v":0},{"$f":"OFFSET(A15,0,'Cool Graph'!$I$1)","v":0}]
["2011-07-15",0,0,0,0,0,0,0,0,0,0,0,0,0,0,0,0,0,0,0,0,0,0,0,0,0,0,0,0,0,0,0.11000000000012733,-0.18,0,0,2135.29,0,0,2135.11,3042.61,16,13,0,0,null,null,null,null,null,0,0,0,0,0,0,null,null,0,0,0,-0.18,0,0,0,0,null,0,0,{"$f":"OFFSET(A16,0,'Cool Graph'!$H$1)","v":0},{"$f":"OFFSET(A16,0,'Cool Graph'!$I$1)","v":0}]
["2011-07-16",0,0,54.46,0,0,54.46,0,0,0,2,0,0,0,0,0,0,0,0,0,0,0,0,0,0,0,0,0,0,0,0,48.699999999999818,-0.18,0,0,2135.29,0,0,2134.81,3091.31,17,13,0,0,null,null,null,null,null,0,0,0,0,0,0,null,null,1,-0.3,0,-0.18,0,0,0,0,null,0,-54.46,{"$f":"OFFSET(A17,0,'Cool Graph'!$H$1)","v":0},{"$f":"OFFSET(A17,0,'Cool Graph'!$I$1)","v":-54.46}]
["2011-07-17",0,0,24.31,0,0,24.31,0,0,0,0,0,0,0,0,0,0,0,0,0,0,0,0,0,0,0,0,0,0,0,0,0.3000000000001819,-0.18,0,0,2135.29,0,0,2135.11,3091.61,17,13,0,0,null,null,null,null,null,0,0,0,0,0,0,null,null,0,0,0,-0.18,0,0,0,0,null,0,-24.31,{"$f":"OFFSET(A18,0,'Cool Graph'!$H$1)","v":0},{"$f":"OFFSET(A18,0,'Cool Graph'!$I$1)","v":-24.31}]
["2011-07-18",0,0,93.06,21.35,0,114.41,0,0,0,0,2,0,0,21.35,2,0,0,0,0,0,0,0,1,1,0,0,1,0,165,165,114.97000000000025,-0.18,0,0,2105.98,0,0,2259.5800000000004,3206.5800000000004,17,12,0,0,null,null,null,null,null,0,0,0,0,0,0,null,null,1,153.78,0,-0.18,0,0,0,0,null,0,-47.516686291049098,{"$f":"OFFSET(A19,0,'Cool Graph'!$H$1)","v":0},{"$f":"OFFSET(A19,0,'Cool Graph'!$I$1)","v":-47.516686291049098}]
["2011-07-19",0,0,57.19,3.64,0,60.83,0,0,0,2,0,0,0,3.64,0,0,0,0,0,0,0,0,3,3,0,0,3,0,495,495,304.23,-0.18,0,0,2105.98,0,0,2739.3100000000004,3510.8100000000004,14,9,0,0,null,null,null,null,null,0,0,0,0,0,0,null,null,0,633.51,0,-0.18,0,0,0,0,null,0,139.84994112685268,{"$f":"OFFSET(A20,0,'Cool Graph'!$H$1)","v":0},{"$f":"OFFSET(A20,0,'Cool Graph'!$I$1)","v":139.84994112685268}]
["2011-07-20",0,0,55.79,7.29,0,63.08,0,0,0,1,0,0,0,7.29,0,0,0,0,0,0,0,0,0,0,0,0,0,0,0,0,72.359999999999673,-0.18,0,0,2081.7800000000002,-50,0,2664.67,3583.17,17,9,0,0,null,null,null,null,null,0,3,0,0,0,1,null,null,1,633.07000000000005,0,-0.18,0,0,0,0,null,0,-63.08,{"$f":"OFFSET(A21,0,'Cool Graph'!$H$1)","v":0},{"$f":"OFFSET(A21,0,'Cool Graph'!$I$1)","v":-63.08}]
["2011-07-21",0,0,44.32,0,0,44.32,0,0,0,0,0,0,0,0,0,0,0,0,0,0,0,0,0,0,0,0,0,0,0,0,-927.06,-0.18,0,0,1787.7900000000002,-50,0,1737.6100000000001,2656.11,17,9,0,0,null,null,null,null,null,0,0,0,0,0,0,null,null,0,0,0,-0.18,0,0,0,0,null,0,-44.32,{"$f":"OFFSET(A22,0,'Cool Graph'!$H$1)","v":0},{"$f":"OFFSET(A22,0,'Cool Graph'!$I$1)","v":-44.32}]
["2011-07-22",0,0,70.02,0,0,70.02,0,0,0,2,0,0,0,0,0,0,0,0,0,0,0,0,3,3,0,0,3,0,495,495,825.57000000000016,-0.18,0,0,1787.7900000000002,-50,0,2591.6800000000003,3481.6800000000003,17,6,0,0,null,null,null,null,null,0,3,0,0,0,1,null,null,1,854.07,0,-0.18,0,0,0,0,null,0,130.65994112685269,{"$f":"OFFSET(A23,0,'Cool Graph'!$H$1)","v":0},{"$f":"OFFSET(A23,0,'Cool Graph'!$I$1)","v":130.65994112685269}]
["2011-07-23",0,0,51.29,0,0,51.29,0,0,0,0,0,0,0,0,0,0,0,0,0,0,0,0,0,0,0,0,0,0,0,0,-903.07000000000016,-0.18,0,0,1787.7900000000002,-50,0,1737.6100000000001,2578.61,16,6,0,0,null,null,null,null,null,0,0,0,0,0,1,null,null,0,0,0,-0.18,0,0,0,0,null,0,-51.29,{"$f":"OFFSET(A24,0,'Cool Graph'!$H$1)","v":0},{"$f":"OFFSET(A24,0,'Cool Graph'!$I$1)","v":-51.29}]
["2011-07-24",0,0,21.55,0,0,21.55,0,0,0,0,0,0,0,0,0,0,0,0,0,0,0,0,0,0,0,0,0,0,0,0,49,-0.18,0,0,1787.7900000000002,-50,0,1737.6100000000001,2627.61,17,6,0,0,null,null,null,null,null,0,0,0,0,0,0,null,null,1,0,0,-0.18,0,0,0,0,null,0,-21.55,{"$f":"OFFSET(A25,0,'Cool Graph'!$H$1)","v":0},{"$f":"OFFSET(A25,0,'Cool Graph'!$I$1)","v":-21.55}]
["2011-07-25",0,0,113.04,0,0.3,113.34,0,0,0,1,0,0,0,0,0,0,0,0,0,0,0,0,0,0,0,0,0,0,0,0,-275,-0.18,0,0,1787.7900000000002,-325,0,1462.6100000000001,2352.61,17,6,0,0,null,null,null,null,null,0,0,0,0,0,0,null,null,0,0,0,-0.18,0,0,0,0,null,0,-113.34,{"$f":"OFFSET(A26,0,'Cool Graph'!$H$1)","v":0},{"$f":"OFFSET(A26,0,'Cool Graph'!$I$1)","v":-113.34}]
["2011-07-26",0,0,72.34,0,4.46,76.8,0,0,0,2,0,0,0,0,0,0,0,0,0,0,0,0,2,2,0,0,2,0,330,330,1126.96,-0.18,0,0,1537.8000000000002,-325,0,2314.5700000000002,3479.57,23,4,0,0,null,null,null,null,null,0,7,0,0,0,0,null,null,1,1101.95,0,-0.18,0,0,0,0,null,0,56.986627417901801,{"$f":"OFFSET(A27,0,'Cool Graph'!$H$1)","v":0},{"$f":"OFFSET(A27,0,'Cool Graph'!$I$1)","v":56.986627417901801}]
["2011-07-27",0,0,54.28,0,3.99,58.27,0,0,0,0,0,0,0,0,0,0,0,0,0,0,0,0,0,0,0,0,0,0,0,0,-21.029999999999745,799.82,0,0,1537.8000000000002,-325,0,2293.5400000000004,3458.5400000000004,23,4,0,0,null,null,null,null,null,0,0,0,0,0,0,null,null,0,280.92,800,799.82,0,0,0,0,null,0,-58.27,{"$f":"OFFSET(A28,0,'Cool Graph'!$H$1)","v":0},{"$f":"OFFSET(A28,0,'Cool Graph'!$I$1)","v":-58.27}]
["2011-07-28",0,0,100.48,0,3.75,104.23,0,0,0,0,0,0,0,0,0,0,0,0,0,0,0,0,0,0,0,0,0,0,0,0,-305.9699999999998,799.82,0,0,1199.9300000000003,-675,0,1449.5700000000004,3152.5700000000006,27,40,0,0,null,null,null,null,null,0,3,36,0,0,0,null,null,1,124.82,0,799.82,0,0,0,0,null,0,-104.23,{"$f":"OFFSET(A29,0,'Cool Graph'!$H$1)","v":0},{"$f":"OFFSET(A29,0,'Cool Graph'!$I$1)","v":-104.23}]
["2011-07-29",0,0,73.44,0,4.5599999999999996,78,0,0,0,0,0,0,0,0,0,0,0,0,0,0,0,0,3,3,0,0,3,0,495,495,293.21000000000004,-0.17999999999994998,0,0,1999.9300000000003,-675,0,1918.2800000000004,3445.7800000000007,24,37,0,0,null,null,null,null,null,0,0,0,0,0,0,null,null,0,593.53,0,-0.17999999999994998,0,0,0,0,null,0,122.6799411268527,{"$f":"OFFSET(A30,0,'Cool Graph'!$H$1)","v":0},{"$f":"OFFSET(A30,0,'Cool Graph'!$I$1)","v":122.6799411268527}]
["2011-07-30",0,0,54.06,0,3.86,57.92,0,0,0,1,0,0,0,0,0,0,0,0,2,0,0,0,0,0,0,0,2,339.24,0,339.24,105.07999999999993,-0.17999999999994998,0,0,1999.9300000000003,-675,0,2072.3600000000006,3550.8600000000006,23,37,0,0,null,null,null,null,null,0,0,0,0,0,0,null,null,1,747.61,0,-0.17999999999994998,0,0,0,0,null,0,79.612652985603049,{"$f":"OFFSET(A31,0,'Cool Graph'!$H$1)","v":0},{"$f":"OFFSET(A31,0,'Cool Graph'!$I$1)","v":79.612652985603049}]
["2011-07-31",0,0,50.42,0,0,50.42,0,0,0,0,0,0,0,0,0,0,0,0,0,0,0,0,4,4,0,0,4,0,660,660,365.17999999999938,-0.17999999999994998,0,0,1999.9300000000003,-675,-41.07000000000005,2671.54,3916.04,19,33,0,0,null,null,null,null,null,0,0,0,0,0,0,null,null,0,1387.86,0,-0.17999999999994998,0,0,0,0,null,0,217.15325483580358,{"$f":"OFFSET(A32,0,'Cool Graph'!$H$1)","v":0},{"$f":"OFFSET(A32,0,'Cool Graph'!$I$1)","v":217.15325483580358}]
["2011-08-01",0,0,99.45,0,0.14000000000000001,99.59,0,0,0,0,0,0,0,0,0,0,0,0,0,0,0,0,0,0,0,0,0,0,0,0,-127.91999999999962,-0.17999999999994998,0,625,1899.9500000000003,-70.289999999999992,8.92999999999995,2102.6200000000003,3788.1200000000003,28,33,0,0,null,null,null,null,null,0,10,0,0,0,2,null,null,1,889.21,0,-0.17999999999994998,0,0,625,625,null,0,-99.59,{"$f":"OFFSET(A33,0,'Cool Graph'!$H$1)","v":0},{"$f":"OFFSET(A33,0,'Cool Graph'!$I$1)","v":-99.59}]
["2011-08-02",0,0.55000000000000004,111.41,0,6.92,118.88,0,0,0,0,0,0,0,0,0,0,0,0,1,0,0,0,0,0,0,0,1,169.62,0,169.62,-437.23,-0.17999999999994998,0,0,1009.2000000000003,-70.289999999999992,58.92999999999995,1714.3900000000003,3350.8900000000003,27,33,0,0,null,null,null,null,null,0,0,0,0,0,0,null,null,0,716.73,0,-0.17999999999994998,0,0,0,0,null,0,-50.11367350719847,{"$f":"OFFSET(A34,0,'Cool Graph'!$H$1)","v":0},{"$f":"OFFSET(A34,0,'Cool Graph'!$I$1)","v":-50.11367350719847}]
["2011-08-03",0,4.17,83.23,0,6.05,93.45,0,0,0,1,0,0,0,0,0,0,0,0,0,0,0,0,6,6,0,0,6,0,990,990,207.22000000000025,-0.17999999999994998,0,0,1009.2000000000003,-70.289999999999992,108.92999999999995,1635.6100000000004,3558.1100000000006,34,27,0,0,null,null,null,null,null,0,12,0,0,0,0,null,null,1,587.95000000000005,0,-0.17999999999994998,0,0,0,0,null,0,307.9098822537054,{"$f":"OFFSET(A35,0,'Cool Graph'!$H$1)","v":0},{"$f":"OFFSET(A35,0,'Cool Graph'!$I$1)","v":307.9098822537054}]
["2011-08-04",0,7.41,58.4,0,6.63,72.44,0,0,0,1,0,0,0,0,0,0,0,0,0,0,0,0,1,1,0,0,1,0,165,165,-609.74000000000024,-0.17999999999994998,0,0,926.57000000000028,-571.75,158.92999999999995,1084.3700000000003,2948.3700000000003,33,26,0,0,null,null,null,null,null,0,0,0,0,0,0,null,null,0,570.79999999999995,0,-0.17999999999994998,0,0,0,0,null,0,-5.5466862910490988,{"$f":"OFFSET(A36,0,'Cool Graph'!$H$1)","v":0},{"$f":"OFFSET(A36,0,'Cool Graph'!$I$1)","v":-5.5466862910490988}]
["2011-08-05",0,6.3,45.02,0,5.69,57.01,0,0,0,2,0,0,0,0,0,0,0,0,1,0,0,0,0,0,0,0,1,165,0,165,209.90999999999985,-0.17999999999994998,0,0,926.57000000000028,-571.75,208.92999999999995,1294.2800000000002,3158.28,33,26,0,0,null,null,null,null,null,0,0,0,0,0,0,null,null,1,730.71,0,-0.17999999999994998,0,0,0,0,null,0,9.8833137089509009,{"$f":"OFFSET(A37,0,'Cool Graph'!$H$1)","v":0},{"$f":"OFFSET(A37,0,'Cool Graph'!$I$1)","v":9.8833137089509009}]
["2011-08-06",0,3.37,44.28,0,1.99,49.64,0,0,0,0,0,0,0,0,0,0,0,0,0,0,0,0,2,2,0,0,2,0,330,330,237.93000000000029,-0.17999999999994998,0,0,926.57000000000028,-571.75,258.92999999999995,1649.2100000000005,3396.2100000000005,31,24,0,0,null,null,null,null,null,0,0,0,0,0,0,null,null,0,1035.6400000000001,0,-0.17999999999994998,0,0,0,0,null,0,84.146627417901797,{"$f":"OFFSET(A38,0,'Cool Graph'!$H$1)","v":0},{"$f":"OFFSET(A38,0,'Cool Graph'!$I$1)","v":84.146627417901797}]
["2011-08-07",0,8.42,75.05,0,0,83.47,0,0,0,1,0,0,0,0,0,0,0,0,0,0,0,0,1,1,0,0,1,0,165,165,520.22999999999956,-0.17999999999994998,0,0,926.57000000000028,-571.75,308.92999999999995,2178.94,3916.44,31,23,0,0,null,null,null,null,null,0,0,0,0,0,0,null,null,1,1515.37,0,-0.17999999999994998,0,0,0,0,null,0,-16.5766862910491,{"$f":"OFFSET(A39,0,'Cool Graph'!$H$1)","v":0},{"$f":"OFFSET(A39,0,'Cool Graph'!$I$1)","v":-16.5766862910491}]
["2011-08-08",0,3.85,73.22,0,0,77.069999999999993,0,0,0,3,0,0,0,0,0,0,0,0,0,0,0,0,3,3,0,0,3,0,495,495,358.23,-0.17999999999994998,0,0,793.52000000000021,-571.75,358.92999999999995,2418.67,4274.67,34,20,0,0,null,null,null,null,null,0,6,0,0,0,0,null,null,0,1838.15,0,-0.17999999999994998,0,0,0,0,null,0,123.6099411268527,{"$f":"OFFSET(A40,0,'Cool Graph'!$H$1)","v":0},{"$f":"OFFSET(A40,0,'Cool Graph'!$I$1)","v":123.6099411268527}]
["2011-08-09",0,9.61,75.989999999999995,0,4.7,90.3,0,0,0,1,0,0,0,0,0,0,0,0,0,0,0,0,6,6,0,0,6,0,990,990,376.61999999999989,-0.17999999999994998,0,0,793.52000000000021,-571.75,408.92999999999995,3097.29,4651.29,29,14,0,0,null,null,null,null,null,0,0,0,0,0,0,null,null,1,2466.77,0,-0.17999999999994998,0,0,0,0,null,0,311.05988225370538,{"$f":"OFFSET(A41,0,'Cool Graph'!$H$1)","v":0},{"$f":"OFFSET(A41,0,'Cool Graph'!$I$1)","v":311.05988225370538}]
["2011-08-10",0,6.79,82.63,0,3.79,93.210000000000008,0,0,0,2,0,0,0,0,0,0,0,0,0,0,0,0,1,1,0,0,1,0,165,165,222.47000000000025,-0.17999999999994998,0,0,573.52000000000021,-571.75,458.92999999999995,2643.26,4873.76,43,13,0,0,null,null,null,null,null,0,15,0,0,0,0,null,null,0,2182.7399999999998,0,-0.17999999999994998,0,0,0,0,null,0,-26.316686291049109,{"$f":"OFFSET(A42,0,'Cool Graph'!$H$1)","v":0},{"$f":"OFFSET(A42,0,'Cool Graph'!$I$1)","v":-26.316686291049109}]
["2011-08-11",0,7.38,62.85,0,1.62,71.850000000000009,0,0,0,0,0,0,1,0,0,0,0,0,0,0,0,0,1,1,0,0,1,0,165,165,-315.94999999999982,-0.17999999999994998,0,0,573.52000000000021,-1071.75,508.92999999999995,2336.8100000000004,4557.8100000000004,43,12,0,0,null,null,null,null,null,0,0,0,0,0,0,null,null,1,2326.29,0,-0.17999999999994998,0,0,0,0,null,0,-4.9566862910491096,{"$f":"OFFSET(A43,0,'Cool Graph'!$H$1)","v":0},{"$f":"OFFSET(A43,0,'Cool Graph'!$I$1)","v":-4.9566862910491096}]
["2011-08-12",0,5.59,73.69,12.42,4.25,95.95,0,0,0,2,0,0,0,12.42,0,0,0,0,0,0,0,0,3,3,0,0,3,0,495,495,785.55000000000018,999.82,0,0,494.49000000000024,-1071.75,558.92999999999995,2765.86,5343.3600000000006,40,65,0,0,null,null,null,null,null,0,0,56,0,0,0,null,null,0,1784.37,1000,999.82,0,0,0,0,null,0,104.72994112685269,{"$f":"OFFSET(A44,0,'Cool Graph'!$H$1)","v":0},{"$f":"OFFSET(A44,0,'Cool Graph'!$I$1)","v":104.72994112685269}]
["2011-08-13",0,6.5,39.65,18.87,5.63,70.649999999999991,0,0,0,1,0,0,0,18.87,0,0,0,0,1,0,0,0,1,1,0,0,2,165,165,330,151.40999999999985,999.82,0,0,494.49000000000024,-1071.75,608.92999999999995,2975.7700000000004,5494.77,39,64,0,0,null,null,null,null,null,0,0,0,0,0,0,null,null,1,1944.28,0,999.82,608.92999999999995,0,0,0,null,0,63.136627417901806,{"$f":"OFFSET(A45,0,'Cool Graph'!$H$1)","v":0},{"$f":"OFFSET(A45,0,'Cool Graph'!$I$1)","v":63.136627417901806}]
["2011-08-14",0,10.48,64.149999999999991,4.54,0,79.17,0,0,0,1,0,0,0,4.54,0,0,0,0,1,0,0,0,1,1,0,0,2,165,165,330,1177.4399999999996,999.82,608.92999999999995,0,494.49000000000024,-1071.75,965.11999999999989,4260.71,6672.21,37,63,0,0,null,null,null,null,null,0,0,0,0,0,0,null,null,0,2264.1,0,999.82,0,608.92999999999995,0,0,null,0,54.616627417901796,{"$f":"OFFSET(A46,0,'Cool Graph'!$H$1)","v":0},{"$f":"OFFSET(A46,0,'Cool Graph'!$I$1)","v":54.616627417901796}]
["2011-08-15",0,8.4700000000000006,66.88,3.87,0,79.22,0,0,0,1,0,0,0,3.87,0,0,0,0,1,0,0,0,1,1,0,0,2,165,165,330,-182.35999999999967,-0.17999999999994998,608.92999999999995,0,1173.7000000000003,-1083.7,1015.1199999999999,3548.8500000000004,6489.85,48,62,0,0,null,null,null,null,null,0,12,0,0,0,0,null,null,1,1834.98,0,-0.17999999999994998,0,608.92999999999995,0,0,null,0,54.566627417901799,{"$f":"OFFSET(A47,0,'Cool Graph'!$H$1)","v":0},{"$f":"OFFSET(A47,0,'Cool Graph'!$I$1)","v":54.566627417901799}]
["2011-08-16",0,4.5599999999999996,76.72999999999999,4.3600000000000003,4.71,90.359999999999985,0,0,0,0,0,0,0,4.3600000000000003,0,0,0,0,0,0,0,0,1,1,0,0,1,0,165,165,250.52999999999975,-0.17999999999994998,0,0,1782.63,-1083.7,1065.1199999999999,3612.88,6740.38,52,61,0,0,null,null,null,null,null,0,6,0,0,0,1,null,null,0,1849.01,0,-0.17999999999994998,0,0,0,0,null,0,-23.466686291049086,{"$f":"OFFSET(A48,0,'Cool Graph'!$H$1)","v":0},{"$f":"OFFSET(A48,0,'Cool Graph'!$I$1)","v":-23.466686291049086}]
["2011-08-17",0,12.62,67.03,4.08,2.34,86.070000000000007,0,0,0,0,0,0,0,4.08,0,0,0,0,0,0,0,0,0,0,0,0,0,0,0,0,-1617.5500000000002,-0.17999999999994998,0,0,1682.63,-1133.8600000000001,1115.1199999999999,1995.33,5122.83,52,61,0,0,null,null,null,null,null,0,0,0,0,0,1,null,null,1,331.62,0,-0.17999999999994998,0,0,0,0,null,0,-86.070000000000007,{"$f":"OFFSET(A49,0,'Cool Graph'!$H$1)","v":0},{"$f":"OFFSET(A49,0,'Cool Graph'!$I$1)","v":-86.070000000000007}]
["2011-08-18",0,9.11,77.89,3.34,2.85,93.19,0,0,0,2,0,0,0,3.34,0,0,0,0,4,0,0,0,0,0,0,0,4,660,0,660,778.51000000000022,1489.8200000000002,0,0,1622.63,-1633.8600000000001,1165.1199999999999,2969.84,5901.34,48,61,0,0,null,null,null,null,null,0,0,0,0,0,0,null,null,0,326.13,1490,1489.8200000000002,0,0,0,0,null,0,174.3832548358036,{"$f":"OFFSET(A50,0,'Cool Graph'!$H$1)","v":0},{"$f":"OFFSET(A50,0,'Cool Graph'!$I$1)","v":174.3832548358036}]
["2011-08-19",0,9.1199999999999992,43.87,2.68,2.85,58.519999999999996,0,1,0,1,0,0,0,2.68,0,0,0,0,2,0,0,0,6,6,0,0,8,330,990,1320,437.30000000000018,1489.8200000000002,0,0,1622.63,-1633.8600000000001,1215.1199999999999,3807.1400000000003,6338.64,41,55,0,0,null,null,null,null,null,0,0,0,0,0,0,null,null,1,1113.43,0,1489.8200000000002,0,0,0,0,null,0,476.62650967160721,{"$f":"OFFSET(A51,0,'Cool Graph'!$H$1)","v":0},{"$f":"OFFSET(A51,0,'Cool Graph'!$I$1)","v":476.62650967160721}]
["2011-08-20",0,4.38,59.42,3,2.4300000000000002,69.230000000000018,0,0,0,2,0,0,0,3,0,0,0,0,0,0,0,0,2,2,0,0,2,0,330,330,252.51999999999953,1489.8200000000002,0,0,1622.63,-1633.8600000000001,1265.1199999999999,4176.66,6591.16,39,53,0,0,null,null,null,null,null,0,0,0,0,0,0,null,null,0,1432.95,0,1489.8200000000002,0,0,0,0,null,0,64.55662741790178,{"$f":"OFFSET(A52,0,'Cool Graph'!$H$1)","v":0},{"$f":"OFFSET(A52,0,'Cool Graph'!$I$1)","v":64.55662741790178}]
["2011-08-21",0,15.39,93,1.51,0,109.9,0,0,0,3,0,0,0,1.51,0,0,0,0,0,0,0,0,3,3,0,0,3,0,495,495,402.28999999999996,2589.8200000000002,0,0,1622.63,-1633.8600000000001,1315.12,4411.45,6993.45,43,50,0,0,null,null,null,null,null,0,6,0,0,0,0,null,null,1,517.74,1100,2589.8200000000002,0,0,0,0,null,0,90.779941126852691,{"$f":"OFFSET(A53,0,'Cool Graph'!$H$1)","v":0},{"$f":"OFFSET(A53,0,'Cool Graph'!$I$1)","v":90.779941126852691}]
["2011-08-22",0,24,69.56,2.09,0.23,95.88000000000001,0,0,0,4,0,0,0,2.09,0,0,0,0,0,0,0,0,2,2,0,0,2,0,330,330,174.22000000000025,1099.8200000000002,0,0,3112.63,-1684.41,1365.12,4408.67,7167.67,47,48,0,0,null,null,null,null,null,0,6,0,0,0,0,null,null,0,515.51,0,1099.8200000000002,0,0,0,0,null,0,37.906627417901788,{"$f":"OFFSET(A54,0,'Cool Graph'!$H$1)","v":0},{"$f":"OFFSET(A54,0,'Cool Graph'!$I$1)","v":37.906627417901788}]
["2011-08-23",0,6.19,57.04,2.99,4.83,71.05,0,0,0,2,0,0,0,2.99,0,0,0,0,1,1,0,0,2,2,0,0,3,330,348.87,678.87,142.92000000000007,-0.17999999999983629,0,0,4139.37,-1684.41,1415.12,4090.09,7310.59,57,45,0,0,null,null,null,null,null,0,12,0,0,0,0,null,null,1,220.19,0,-0.17999999999983629,0,0,0,0,null,0,204.1734174399727,{"$f":"OFFSET(A55,0,'Cool Graph'!$H$1)","v":0},{"$f":"OFFSET(A55,0,'Cool Graph'!$I$1)","v":204.1734174399727}]
["2011-08-24",0,0,69.12,3.83,1.75,74.7,0,0,0,2,1,0,0,3.83,1,0,0,0,0,0,0,0,5,5,0,0,5,0,825,825,-203.64999999999964,-0.17999999999983629,0,0,3411.58,-1684.41,1465.12,3296.94,7106.9400000000005,70,40,0,0,null,null,null,null,null,0,18,0,0,0,0,null,null,0,104.83,0,-0.17999999999983629,0,0,0,0,null,0,259.76656854475448,{"$f":"OFFSET(A56,0,'Cool Graph'!$H$1)","v":0},{"$f":"OFFSET(A56,0,'Cool Graph'!$I$1)","v":259.76656854475448}]
["2011-08-25",0,3.2,68.22999999999999,2.2400000000000002,2.84,76.509999999999991,0,0,0,1,0,0,0,2.2400000000000002,0,0,0,0,0,0,0,0,1,1,0,0,1,0,165,165,-303.6200000000008,-0.17999999999983629,0,0,3411.58,-2184.41,1515.12,2974.32,6803.32,70,42,0,0,null,null,null,null,null,0,0,3,0,0,0,null,null,1,232.21,0,-0.17999999999983629,0,0,0,0,null,0,-9.616686291049092,{"$f":"OFFSET(A57,0,'Cool Graph'!$H$1)","v":0},{"$f":"OFFSET(A57,0,'Cool Graph'!$I$1)","v":-9.616686291049092}]
["2011-08-26",0,9.6,44.62,0.67,1.58,56.47,0,0,0,1,0,0,0,0.67,0,0,0,0,0,0,0,0,3,3,0,0,3,0,495,495,246.40000000000055,-0.17999999999983629,0,0,1882.5500000000002,-2264.41,1565.12,1864.2200000000003,7049.72,67,95,0,0,null,null,null,null,null,0,0,56,0,0,0,null,null,0,681.14,0,-0.17999999999983629,0,0,0,0,null,1000,144.2099411268527,{"$f":"OFFSET(A58,0,'Cool Graph'!$H$1)","v":0},{"$f":"OFFSET(A58,0,'Cool Graph'!$I$1)","v":144.2099411268527}]
["2011-08-27",0,13.6,52.629999999999995,2.59,3.5,72.319999999999993,0,0,0,1,0,0,0,2.59,0,0,0,0,0,0,0,0,1,1,0,0,1,0,165,165,200.40999999999985,-0.17999999999983629,0,0,1882.5500000000002,-2264.41,1615.12,2074.13,7250.13,67,94,0,0,null,null,null,null,null,0,0,0,0,0,0,null,null,1,841.05,0,-0.17999999999983629,1615.12,0,0,0,null,1000,-5.4266862910490943,{"$f":"OFFSET(A59,0,'Cool Graph'!$H$1)","v":0},{"$f":"OFFSET(A59,0,'Cool Graph'!$I$1)","v":-5.4266862910490943}]
["2011-08-28",0,14.4,57.97,3.51,0,75.88000000000001,0,0,0,0,0,0,0,3.51,0,0,0,0,0,0,0,0,0,0,0,0,0,0,0,0,-218.35999999999967,-0.17999999999983629,1615.12,0,1882.5500000000002,-2264.41,622.69000000000005,1855.7700000000004,7031.77,67,94,0,0,null,null,null,null,null,0,0,0,0,0,0,null,null,0,0,0,-0.17999999999983629,0,1615.12,0,0,null,1000,-75.88000000000001,{"$f":"OFFSET(A60,0,'Cool Graph'!$H$1)","v":0},{"$f":"OFFSET(A60,0,'Cool Graph'!$I$1)","v":-75.88000000000001}]
["2011-08-29",0,34.4,71.61,4.01,0,110.02,0,0,0,2,0,0,0,4.01,0,0,0,0,0,0,0,0,2,2,0,0,2,0,330,330,59.779999999999745,-0.17999999999983629,1615.12,500,1036.7900000000002,-1764.4099999999999,672.69,1444.5500000000004,7091.55,77,92,0,0,null,null,null,null,null,0,12,0,0,0,1,null,null,1,384.54,0,-0.17999999999983629,0,1615.12,500,500,null,1000,23.766627417901802,{"$f":"OFFSET(A61,0,'Cool Graph'!$H$1)","v":0},{"$f":"OFFSET(A61,0,'Cool Graph'!$I$1)","v":23.766627417901802}]
["2011-08-30",0,17.600000000000001,52.89,2.92,5.61,79.02000000000001,1,0,0,0,0,0,0,2.92,0,0,0,0,0,0,0,0,2,2,0,0,2,0,330,330,351.71000000000004,-0.17999999999983629,0,0,2101.91,-1764.4099999999999,722.69,1913.2600000000002,7443.26,75,90,0,0,null,null,null,null,null,0,0,0,0,0,0,null,null,0,853.25,0,-0.17999999999983629,0,0,0,0,null,1000,54.766627417901788,{"$f":"OFFSET(A62,0,'Cool Graph'!$H$1)","v":0},{"$f":"OFFSET(A62,0,'Cool Graph'!$I$1)","v":54.766627417901788}]
["2011-08-31",0,16,48.830000000000005,2.5099999999999998,4.6100000000000003,71.950000000000017,0,0,0,1,0,0,0,2.5099999999999998,0,0,0,0,1,0,0,0,2,2,0,0,3,165,330,495,124.23999999999978,-0.17999999999983629,0,0,1996.9099999999999,-1764.4099999999999,772.69,2154.5,7567.5,73,88,0,0,null,null,null,null,null,0,0,0,0,0,0,null,null,1,1149.49,0,-0.17999999999983629,0,0,0,0,null,1000,128.72994112685268,{"$f":"OFFSET(A63,0,'Cool Graph'!$H$1)","v":0},{"$f":"OFFSET(A63,0,'Cool Graph'!$I$1)","v":128.72994112685268}]
["2011-09-01",0,10.15,44.49,2.69,4.57,61.9,0,1,0,0,0,0,0,2.69,0,0,0,0,0,0,0,0,1,1,0,0,1,0,165,165,-10.699999999999818,-0.17999999999983629,0,0,1846.4599999999998,-1764.4099999999999,822.69,2202.3000000000002,7556.8,72,87,0,0,null,null,null,null,null,0,0,0,0,0,0,null,null,0,1297.74,0,-0.17999999999983629,0,0,0,0,null,1000,4.9933137089509003,{"$f":"OFFSET(A64,0,'Cool Graph'!$H$1)","v":0},{"$f":"OFFSET(A64,0,'Cool Graph'!$I$1)","v":4.9933137089509003}]
["2011-09-02",0,13.6,37.49,7.55,5.4,64.040000000000006,0,0,0,1,0,0,0,3.45,0,0,4.0999999999999996,0,0,0,0,0,5,5,0,0,5,0,825,825,612.0600000000004,999.82000000000016,0,0,767.05,0,872.69,2975.8600000000006,8168.8600000000006,86,82,0,0,null,null,null,null,null,0,18,0,0,0,0,null,null,1,336.3,1000,999.82000000000016,0,0,1764.41,0,null,200,270.42656854475445,{"$f":"OFFSET(A65,0,'Cool Graph'!$H$1)","v":0},{"$f":"OFFSET(A65,0,'Cool Graph'!$I$1)","v":270.42656854475445}]
["2011-09-03",0,1.6,68.039999999999992,11.73,1.51,82.88,0,0,0,1,0,0,0,3.06,0,0,8.67,0,1,0,0,0,2,2,0,0,3,165.06,330,495.06,192.15999999999985,999.82000000000016,0,0,767.05,0,922.69,3334.0200000000004,8361.02,83,80,0,0,null,null,null,null,null,0,0,0,0,0,0,null,null,0,644.46,0,999.82000000000016,0,0,0,0,null,200,117.82426596820142,{"$f":"OFFSET(A66,0,'Cool Graph'!$H$1)","v":0},{"$f":"OFFSET(A66,0,'Cool Graph'!$I$1)","v":117.82426596820142}]
["2011-09-04",0,0,48.32,24.630000000000003,0,72.95,0,0,0,0,0,0,0,9.5500000000000007,0,0,15.08,0,0,0,0,0,2,2,0,0,2,0,330,330,461.72999999999956,999.82000000000016,0,0,767.05,0,972.69,3863.7500000000005,8822.75,82,78,0,0,null,null,null,null,null,0,0,0,0,0,0,null,null,1,1124.19,0,999.82000000000016,0,0,0,0,null,200,60.836627417901795,{"$f":"OFFSET(A67,0,'Cool Graph'!$H$1)","v":0},{"$f":"OFFSET(A67,0,'Cool Graph'!$I$1)","v":60.836627417901795}]
["2011-09-05",0,0,65.63,44.89,0,110.52,0,0,0,2,0,0,0,22.5,0,0,22.39,0,0,0,0,0,4,4,0,0,4,0,660,660,401.73999999999978,1799.8200000000002,0,0,767.05,0,1022.69,3617.4900000000002,9224.49,96,74,0,0,null,null,null,null,null,0,18,0,0,0,0,null,null,0,27.93,800,1799.8200000000002,0,0,0,0,null,200,157.05325483580361,{"$f":"OFFSET(A68,0,'Cool Graph'!$H$1)","v":0},{"$f":"OFFSET(A68,0,'Cool Graph'!$I$1)","v":157.05325483580361}]
["2011-09-06",0,3.86,68.3,22.67,2.82,97.649999999999991,0,0,0,4,1,1,0,16.920000000000002,1,0,5.75,0,1,0,0,0,4,4,0,0,5,163.99,660,823.99,-292.90999999999985,799.82000000000016,0,0,1037.74,-200,1072.69,3520.58,8931.58,92,74,0,0,null,null,null,null,null,0,0,4,0,0,0,null,null,1,810.33,0,799.82000000000016,0,0,0,0,null,200,236.40710038205123,{"$f":"OFFSET(A69,0,'Cool Graph'!$H$1)","v":0},{"$f":"OFFSET(A69,0,'Cool Graph'!$I$1)","v":236.40710038205123}]
["2011-09-07",0,8.69,47.9,15.129999999999999,5.59,77.31,0,0,0,2,0,0,0,8.4499999999999993,0,0,6.68,0,0,0,0,0,2,2,0,0,2,0,330,330,147.80999999999949,1599.8200000000002,0,0,1017.74,-250.67000000000002,1122.69,3785.39,9079.39,90,72,0,0,null,null,null,null,null,0,0,0,0,0,0,null,null,0,295.81,800,1599.8200000000002,0,0,0,0,null,200,56.476627417901796,{"$f":"OFFSET(A70,0,'Cool Graph'!$H$1)","v":0},{"$f":"OFFSET(A70,0,'Cool Graph'!$I$1)","v":56.476627417901796}]
["2011-09-08",0,11.16,54.05,15.149999999999999,1.42,81.779999999999987,0,1,0,1,0,0,0,10.01,0,0,5.14,0,4,2,0,0,8,8,0,0,12,985.43,1320,2305.4299999999998,-512.18999999999869,1389.8200000000002,0,0,1279.24,-250.67000000000002,1172.69,3613.2000000000003,8567.2000000000007,85,62,0,0,null,null,null,null,null,0,6,0,0,0,0,null,null,1,22.12,590,1389.8200000000002,0,0,0,0,null,200,852.87364984258579,{"$f":"OFFSET(A71,0,'Cool Graph'!$H$1)","v":0},{"$f":"OFFSET(A71,0,'Cool Graph'!$I$1)","v":852.87364984258579}]
["2011-09-09",0,18.53,41.220000000000006,14.290000000000001,6.69,80.73,0,0,0,2,1,0,0,11.38,1,0,2.91,0,1,0,0,0,3,3,0,0,4,160,495,655,177.43999999999869,589.82000000000016,0,0,2079.2399999999998,-899.63000000000011,1222.69,3483.14,8744.64,81,115,0,0,null,null,null,null,null,0,0,56,0,0,0,null,null,0,491.02,0,589.82000000000016,0,0,0,0,null,200,184.81618472341114,{"$f":"OFFSET(A72,0,'Cool Graph'!$H$1)","v":0},{"$f":"OFFSET(A72,0,'Cool Graph'!$I$1)","v":184.81618472341114}]
["2011-09-10",0,10.7,32.239999999999995,24.439999999999998,5.15,72.53,0,0,0,0,0,0,0,22.22,0,0,2.2200000000000002,0,2,0,0,0,0,0,0,0,2,339.11,0,339.11,-490.02000000000044,589.82000000000016,0,0,2079.2399999999998,-899.63000000000011,1272.69,3042.12,8254.619999999999,80,115,0,0,null,null,null,null,null,0,0,0,0,0,0,null,null,1,0,0,589.82000000000016,1272.69,0,0,0,null,200,64.949949162680838,{"$f":"OFFSET(A73,0,'Cool Graph'!$H$1)","v":0},{"$f":"OFFSET(A73,0,'Cool Graph'!$I$1)","v":64.949949162680838}]
["2011-09-11",0,20.54,46.77,7.26,0,74.570000000000007,0,1,0,0,0,0,0,5.47,0,0,1.79,0,2,0,0,0,3,3,0,0,5,329.05,495,824.05,767.71000000000095,589.82000000000016,1272.69,0,2079.2399999999998,-899.63000000000011,70.460000000000036,4083.33,9022.33,75,112,0,0,null,null,null,null,null,0,0,0,0,0,0,null,null,0,970.75,0,589.82000000000016,0,1272.69,0,0,null,200,259.5114252233999,{"$f":"OFFSET(A74,0,'Cool Graph'!$H$1)","v":0},{"$f":"OFFSET(A74,0,'Cool Graph'!$I$1)","v":259.5114252233999}]
["2011-09-12",0,15.52,40.119999999999997,6.0200000000000005,0,61.660000000000004,0,0,0,2,0,0,0,4.6900000000000004,0,0,1.33,0,2,0,0,0,4,4,0,0,6,330.06,660,990.06,545.43000000000029,-0.17999999999983629,1272.69,0,2669.24,-899.63000000000011,120.46000000000004,4911.76,9567.76,70,108,0,0,null,null,null,null,null,0,0,0,0,0,0,null,null,1,1749.18,0,-0.17999999999983629,0,1272.69,0,0,null,200,339.72420709505406,{"$f":"OFFSET(A75,0,'Cool Graph'!$H$1)","v":0},{"$f":"OFFSET(A75,0,'Cool Graph'!$I$1)","v":339.72420709505406}]
["2011-09-13",0,13.97,51.980000000000004,7.35,2.56,75.86,0,0,0,0,1,0,0,5.05,0,0,2.2999999999999998,1,0,0,0,0,2,2,0,0,2,0,330,330,182.44999999999891,-0.17999999999983629,0,0,3897.1299999999997,-899.63000000000011,170.46000000000004,3447.2099999999996,9750.2099999999991,104,106,0,0,null,null,null,null,null,0,36,0,0,0,0,null,null,0,279.43,0,-0.17999999999983629,0,0,0,0,null,200,57.926627417901798,{"$f":"OFFSET(A76,0,'Cool Graph'!$H$1)","v":0},{"$f":"OFFSET(A76,0,'Cool Graph'!$I$1)","v":57.926627417901798}]
["2011-09-14",0,9.32,43.54,10.24,2.56,65.66,0,0,0,3,0,0,0,8.65,0,0,1.59,0,0,0,0,0,5,5,0,0,5,0,825,825,706.31999999999971,999.82000000000016,0,0,3897.1299999999997,-911.58000000000015,220.46000000000004,4397.03,10456.529999999999,100,101,0,0,null,null,null,null,null,0,0,0,0,0,0,null,null,1,191.2,1000,999.82000000000016,0,0,0,0,null,200,268.80656854475444,{"$f":"OFFSET(A77,0,'Cool Graph'!$H$1)","v":0},{"$f":"OFFSET(A77,0,'Cool Graph'!$I$1)","v":268.80656854475444}]
["2011-09-15",0,21.62,28.740000000000002,11.93,2.09,64.38,0,0,0,0,0,0,0,10.79,0,0,1.1399999999999999,0,0,0,0,0,3,3,0,0,3,0,495,495,-74.579999999999927,999.82000000000016,0,899.63,2727.1299999999997,-11.950000000000159,270.46000000000004,3697.9499999999994,10381.949999999999,97,98,0,0,null,null,null,null,null,0,0,0,0,0,0,null,null,0,612.12,0,999.82000000000016,0,0,899.63,899.63,null,1000,136.2999411268527,{"$f":"OFFSET(A78,0,'Cool Graph'!$H$1)","v":0},{"$f":"OFFSET(A78,0,'Cool Graph'!$I$1)","v":136.2999411268527}]
["2011-09-16",0,31.5,32.510000000000005,11.33,5.61,80.95,0,2,0,1,0,0,0,10.3,0,0,1.03,0,0,0,0,0,6,6,0,0,6,0,990,990,326.56000000000131,1069.8200000000002,0,0,1474.5899999999997,-11.950000000000159,320.46000000000004,3631.0099999999998,10708.51,106,93,0,0,null,null,null,null,null,0,14,1,0,0,0,null,null,1,778.09,70,1069.8200000000002,0,0,0,0,null,1000,320.4098822537054,{"$f":"OFFSET(A79,0,'Cool Graph'!$H$1)","v":0},{"$f":"OFFSET(A79,0,'Cool Graph'!$I$1)","v":320.4098822537054}]
["2011-09-17",0,28.76,37.79,5.41,1.1499999999999999,73.11,0,0,0,0,1,0,0,4.29,1,0,1.1200000000000001,0,0,0,0,0,2,2,0,0,2,0,330,330,252.81999999999971,1069.8200000000002,0,0,1474.5899999999997,-11.950000000000159,370.46000000000004,4000.83,10961.33,104,91,0,0,null,null,null,null,null,0,0,0,0,0,0,null,null,0,1097.9100000000001,0,1069.8200000000002,0,0,0,0,null,1000,60.676627417901798,{"$f":"OFFSET(A80,0,'Cool Graph'!$H$1)","v":0},{"$f":"OFFSET(A80,0,'Cool Graph'!$I$1)","v":60.676627417901798}]
["2011-09-18",0,21.15,46.18,8.73,0,76.06,0,0,0,2,1,0,0,5.49,0,0,3.24,1,0,0,0,0,6,6,0,0,6,0,990,990,707.45999999999913,1069.8200000000002,0,0,1474.5899999999997,-11.950000000000159,420.46000000000004,5010.2899999999991,11668.789999999999,99,85,0,0,null,null,null,null,null,0,0,0,0,0,0,null,null,1,2057.37,0,1069.8200000000002,0,0,0,0,null,1000,325.29988225370539,{"$f":"OFFSET(A81,0,'Cool Graph'!$H$1)","v":0},{"$f":"OFFSET(A81,0,'Cool Graph'!$I$1)","v":325.29988225370539}]
["2011-09-19",0,29.98,46.889999999999993,11.99,0,88.859999999999985,0,1,0,2,0,0,0,7.57,0,0,4.42,0,0,0,0,0,7,7,0,0,7,0,1155,1155,-139.53999999999905,999.82000000000016,0,11.95,2267.9399999999996,-1099.4900000000002,470.46000000000004,2965.25,11529.25,128,136,0,0,null,null,null,null,null,0,36,58,0,0,0,null,null,0,338.47,1000,999.82000000000016,0,0,11.95,11.95,null,1000,379.39319596265625,{"$f":"OFFSET(A82,0,'Cool Graph'!$H$1)","v":0},{"$f":"OFFSET(A82,0,'Cool Graph'!$I$1)","v":379.39319596265625}]
["2011-09-20",0,20,46.900000000000006,6.42,2.33,75.650000000000006,0,0,0,3,0,1,0,3.57,0,0,2.85,0,0,0,0,0,6,6,0,0,6,0,990,990,539.5,2099.8200000000002,0,0,1950.7999999999997,-1099.4900000000002,520.46,3806.7499999999995,12068.75,123,130,0,0,null,null,null,null,null,0,0,0,0,0,0,null,null,1,335.16,1100,2099.8200000000002,0,0,0,0,null,1000,325.70988225370536,{"$f":"OFFSET(A83,0,'Cool Graph'!$H$1)","v":0},{"$f":"OFFSET(A83,0,'Cool Graph'!$I$1)","v":325.70988225370536}]
["2011-09-21",0,19.34,39.86,7.12,4.18,70.5,0,0,0,2,0,0,0,4.88,0,0,2.2400000000000002,0,0,0,0,0,4,4,0,0,4,0,660,660,428.46999999999935,1099.8200000000002,0,0,2910.7999999999997,-1099.4900000000002,570.46,4420.2199999999993,12497.22,120,126,0,0,null,null,null,null,null,0,3,0,0,0,2,null,null,0,938.63,0,1099.8200000000002,0,0,0,0,null,1000,197.0732548358036,{"$f":"OFFSET(A84,0,'Cool Graph'!$H$1)","v":0},{"$f":"OFFSET(A84,0,'Cool Graph'!$I$1)","v":197.0732548358036}]
["2011-09-22",0,16.73,37.039999999999992,6.46,2.39,62.62,0,0,0,0,0,0,0,5.16,0,0,1.3,0,0,0,0,0,6,6,0,0,6,0,990,990,566.86000000000058,-0.17999999999983629,0,0,3968.2,-1099.4900000000002,620.46,4015.08,13064.08,141,120,0,0,null,null,null,null,null,0,27,0,0,0,1,null,null,1,526.09,0,-0.17999999999983629,0,0,0,0,null,1000,338.73988225370539,{"$f":"OFFSET(A85,0,'Cool Graph'!$H$1)","v":0},{"$f":"OFFSET(A85,0,'Cool Graph'!$I$1)","v":338.73988225370539}]
["2011-09-23",0,20.010000000000002,40.93,8.75,1.55,71.239999999999995,0,0,0,1,0,1,0,6.15,0,0,2.6,0,0,0,0,0,3,3,0,0,3,0,495,495,100.1299999999992,-0.17999999999983629,0,0,3962.25,-1099.4900000000002,670.46,4339.71,13164.21,137,117,0,0,null,null,null,null,null,0,0,0,0,0,1,null,null,0,806.67,0,-0.17999999999983629,0,0,0,0,null,1000,129.43994112685272,{"$f":"OFFSET(A86,0,'Cool Graph'!$H$1)","v":0},{"$f":"OFFSET(A86,0,'Cool Graph'!$I$1)","v":129.43994112685272}]
["2011-09-24",0,13.6,37.019999999999996,12.5,3.25,66.37,0,0,0,1,0,0,0,10.039999999999999,0,0,2.46,0,0,0,0,0,2,2,0,0,2,0,330,330,296.48000000000138,-0.17999999999983629,0,0,3962.25,-1099.4900000000002,720.46,4704.1900000000005,13460.69,136,115,0,0,null,null,null,null,null,0,0,0,0,0,0,null,null,1,1121.1500000000001,0,-0.17999999999983629,720.46,0,0,0,null,1000,67.416627417901793,{"$f":"OFFSET(A87,0,'Cool Graph'!$H$1)","v":0},{"$f":"OFFSET(A87,0,'Cool Graph'!$I$1)","v":67.416627417901793}]
["2011-09-25",0,18.91,48.45,33.89,0,101.25,0,0,0,2,1,1,0,26.7,0,1,7.19,1,0,0,0,0,5,5,0,0,5,0,825,825,3651.8000000000011,-0.17999999999983629,720.46,0,3962.25,-1099.4900000000002,3144.75,8648.4900000000016,17112.490000000002,131,110,0,0,null,null,null,null,null,0,0,0,0,0,0,null,null,0,1920.7,0,-0.17999999999983629,0,720.46,0,0,null,1000,233.21656854475447,{"$f":"OFFSET(A88,0,'Cool Graph'!$H$1)","v":0},{"$f":"OFFSET(A88,0,'Cool Graph'!$I$1)","v":233.21656854475447}]
["2011-09-26",0,15.32,64.110000000000014,21.669999999999998,0,101.10000000000001,0,0,0,0,0,0,0,16.189999999999998,0,0,5.48,0,1,1,0,0,3,3,0,0,4,335.13,495,830.13,-487.28000000000247,999.82000000000016,720.46,1099.49,3252.25,-40.200000000000003,3194.75,7366.21,16625.21,148,106,0,0,null,null,null,null,null,0,21,0,0,0,1,null,null,1,338.62,1000,999.82000000000016,0,720.46,1099.49,1099.49,null,1000,235.44634248006912,{"$f":"OFFSET(A89,0,'Cool Graph'!$H$1)","v":0},{"$f":"OFFSET(A89,0,'Cool Graph'!$I$1)","v":235.44634248006912}]
["2011-09-27",0,22.22,82.21,31.26,3.38,139.07,0,0,0,1,0,0,0,28.32,0,0,2.94,0,2,1,0,0,4,4,0,0,6,366.92,660,1026.92,322.31999999999971,999.82000000000016,0,0,2873.2200000000003,-40.200000000000003,3244.75,8030.0300000000007,16947.53,142,101,0,0,null,null,null,null,null,0,0,0,0,0,0,null,null,0,952.44,0,999.82000000000016,0,0,0,0,null,1000,277.25776796361129,{"$f":"OFFSET(A90,0,'Cool Graph'!$H$1)","v":0},{"$f":"OFFSET(A90,0,'Cool Graph'!$I$1)","v":277.25776796361129}]
["2011-09-28",30,15.32,71.760000000000005,49.86,6.94,173.88,0,0,0,2,0,0,0,45.680000000000007,0,0,4.18,0,2,0,0,0,10,10,0,0,12,337.27,1650,1987.27,422.02999999999884,999.82000000000016,0,0,2873.2200000000003,-540.20000000000005,3294.75,9135.06,17369.559999999998,130,91,0,0,null,null,null,null,null,0,0,0,0,0,1,null,null,1,2507.4699999999998,0,999.82000000000016,0,0,0,0,null,1000,631.78712445082942,{"$f":"OFFSET(A91,0,'Cool Graph'!$H$1)","v":30},{"$f":"OFFSET(A91,0,'Cool Graph'!$I$1)","v":631.78712445082942}]
["2011-09-29",30,0,63.08,71.540000000000006,4.0599999999999996,168.68,0,0,0,3,0,1,0,65.81,0,0,5.73,0,7,3,0,0,8,8,0,0,15,1256.05,1320,2576.0500000000002,45.010000000002037,-0.17999999999983629,0,540.20000000000005,3469.4700000000003,0,3344.75,10019.57,17414.57,115,80,0,0,null,null,null,null,null,0,0,0,0,0,0,null,null,0,3745.73,0,-0.17999999999983629,0,0,540.20000000000005,540.20000000000005,null,1000,875.68679260571503,{"$f":"OFFSET(A92,0,'Cool Graph'!$H$1)","v":30},{"$f":"OFFSET(A92,0,'Cool Graph'!$I$1)","v":875.68679260571503}]
["2011-09-30",30,14.11,58.15,136.94999999999999,1.04,240.24999999999997,1,0,0,4,1,1,0,131.19999999999999,0,0,5.75,1,1,0,0,0,7,7,0,0,8,165,1155,1320,480.9900000000016,-0.17999999999983629,0,0,2713.2700000000004,0,3394.75,10910.02,17895.560000000001,108,73,0,0,null,null,null,null,null,0,0,0,0,0,0,null,null,1,4802.18,0,-0.17999999999983629,0,0,0,0,null,1000.04,294.89650967160719,{"$f":"OFFSET(A93,0,'Cool Graph'!$H$1)","v":30},{"$f":"OFFSET(A93,0,'Cool Graph'!$I$1)","v":294.89650967160719}]
["2011-10-01",30,15.02,53.090000000000011,133.18,0.69,231.98000000000002,0,0,0,2,1,0,0,123.88,1,0,9.3000000000000007,0,0,0,0,0,3,3,0,0,3,0,495,495,324.22999999999956,-0.17999999999983629,0,0,2713.2700000000004,0,3444.75,11409.75,18219.79,105,70,0,0,null,null,null,null,null,0,0,0,0,0,0,null,null,0,5251.91,0,-0.17999999999983629,0,0,0,0,null,1000.04,-31.300058873147321,{"$f":"OFFSET(A94,0,'Cool Graph'!$H$1)","v":30},{"$f":"OFFSET(A94,0,'Cool Graph'!$I$1)","v":-31.300058873147321}]
["2011-10-02",30,14.33,52.75,104.99,1.7,203.76999999999998,1,0,0,2,1,2,0,96.289999999999992,1,0,8.6999999999999993,0,4,0,0,0,7,7,0,0,11,660,1155,1815,742.77999999999884,-0.17999999999983629,0,0,2713.2700000000004,0,3494.75,12709.029999999999,18962.57,95,63,0,0,null,null,null,null,null,0,0,0,0,0,0,null,null,1,6501.19,0,-0.17999999999983629,0,0,0,0,null,1000.04,532.05645079845988,{"$f":"OFFSET(A95,0,'Cool Graph'!$H$1)","v":30},{"$f":"OFFSET(A95,0,'Cool Graph'!$I$1)","v":532.05645079845988}]
["2011-10-03",60,17.440000000000001,47.660000000000004,179.63999999999996,2.36,307.09999999999997,0,0,0,3,1,5,0,170.24999999999997,1,3,9.39,0,1,0,0,0,4,4,0,0,5,165,660,825,4.5300000000024738,-0.17999999999983629,0,0,2713.2700000000004,-500,3544.75,12310.560000000001,18967.100000000002,104,59,0,0,null,null,null,null,null,0,15,0,0,0,1,null,null,0,6552.72,0,-0.17999999999983629,0,0,0,0,null,1000.04,27.3665685447545,{"$f":"OFFSET(A96,0,'Cool Graph'!$H$1)","v":60},{"$f":"OFFSET(A96,0,'Cool Graph'!$I$1)","v":27.3665685447545}]
["2011-10-04",250,18.440000000000001,84.830000000000013,259.40000000000003,1.84,614.5100000000001,1,0,0,0,1,0,0,250.85,0,0,8.5500000000000007,1,1,0,0,0,6,6,0,0,7,165,990,1155,107.55999999999767,-0.17999999999983629,0,0,2461.3100000000004,-548.63,3594.75,10466.119999999999,19074.66,145,53,0,0,null,null,null,null,null,0,48,0,0,0,1,null,null,1,4958.87,0,-0.17999999999983629,0,0,0,0,null,1000.04,-146.25680403734384,{"$f":"OFFSET(A97,0,'Cool Graph'!$H$1)","v":250},{"$f":"OFFSET(A97,0,'Cool Graph'!$I$1)","v":-146.25680403734384}]
["2011-10-05",250,14.65,131.12,233.75000000000003,5.41,634.92999999999995,1,0,0,5,1,0,0,229.01000000000002,1,0,4.74,0,1,0,0,0,15,15,0,0,16,160,2475,2635,418.65999999999985,4499.82,0,0,2110.34,-1648.2600000000002,3644.75,9448.7799999999988,19493.32,165,101,0,0,null,null,null,null,null,0,36,63,0,0,0,null,null,0,842.13,4500,4499.82,0,0,0,0,null,1000.04,433.33594923082194,{"$f":"OFFSET(A98,0,'Cool Graph'!$H$1)","v":250},{"$f":"OFFSET(A98,0,'Cool Graph'!$I$1)","v":433.33594923082194}]
["2011-10-06",250,12.88,105.41999999999999,200.66000000000003,2.77,571.73,1,0,0,2,2,1,0,195.61,2,1,5.05,0,10,0,0,0,11,11,0,0,21,249.5,1815,2064.5,310.08000000000175,4499.82,0,0,2070.34,-2148.2600000000002,3694.75,10843.36,19803.400000000001,145,90,0,0,null,null,null,null,null,0,0,0,0,0,0,null,null,1,2726.71,0,4499.82,0,0,0,0,null,1000.04,265.24724940684314,{"$f":"OFFSET(A99,0,'Cool Graph'!$H$1)","v":250},{"$f":"OFFSET(A99,0,'Cool Graph'!$I$1)","v":265.24724940684314}]
["2011-10-07",62.16,6.17,85.029999999999987,181.43,4.6100000000000003,339.4,0,0,0,1,3,0,0,170.94,3,0,10.49,0,1,0,0,0,16,16,0,0,17,165,2640,2805,617.83000000000175,4499.82,0,0,1991.0000000000002,-2372.8099999999986,3744.75,9619.19,20421.230000000003,176,124,0,0,null,null,null,null,null,0,48,50,0,0,0,null,null,0,1756.43,0,4499.82,0,0,0,0,null,1000.04,797.78633305216533,{"$f":"OFFSET(A100,0,'Cool Graph'!$H$1)","v":62.16},{"$f":"OFFSET(A100,0,'Cool Graph'!$I$1)","v":797.78633305216533}]
["2011-10-08",17.72,8.74,93.100000000000009,171.55,2.58,293.69,0,0,0,0,1,1,0,160.94999999999999,1,1,10.6,0,0,0,0,0,4,4,0,0,4,0,660,660,464.2599999999984,4499.82,0,0,1991.0000000000002,-2372.8099999999986,3794.75,8210.4500000000007,20885.490000000002,215,120,0,0,null,null,null,null,null,0,42,0,0,0,0,null,null,1,297.69,0,4499.82,3794.75,0,0,0,null,1000.04,-26.116745164196402,{"$f":"OFFSET(A101,0,'Cool Graph'!$H$1)","v":17.72},{"$f":"OFFSET(A101,0,'Cool Graph'!$I$1)","v":-26.116745164196402}]
["2011-10-09",36.869999999999997,6.75,95.99,135.27000000000001,1.88,276.76,0,0,0,2,0,0,0,124,0,0,11.27,0,1,0,0,0,8,8,0,0,9,160,1320,1480,1130.7400000000016,4499.82,3794.75,0,1991.0000000000002,-2372.8099999999986,208.54999999999995,9858.1900000000023,22016.230000000003,206,112,0,0,null,null,null,null,null,0,0,0,0,0,0,null,null,0,1736.88,0,4499.82,0,3794.75,0,0,null,1000.04,323.25275326816563,{"$f":"OFFSET(A102,0,'Cool Graph'!$H$1)","v":36.869999999999997},{"$f":"OFFSET(A102,0,'Cool Graph'!$I$1)","v":323.25275326816563}]
["2011-10-10",245.04,10.75,113.08000000000001,134.49,3.25,506.61,1,0,0,6,3,0,0,120.55000000000001,2,0,13.94,1,0,0,0,0,11,11,0,0,11,0,1815,1815,1496.0999999999985,4499.82,3794.75,0,1991.0000000000002,-2372.8099999999986,258.54999999999995,11948.79,23512.33,196,101,0,0,null,null,null,null,null,0,0,0,0,0,0,null,null,1,3777.48,0,4499.82,0,3794.75,0,0,null,1000.04,229.21645079845985,{"$f":"OFFSET(A103,0,'Cool Graph'!$H$1)","v":245.04},{"$f":"OFFSET(A103,0,'Cool Graph'!$I$1)","v":229.21645079845985}]
["2011-10-11",73.53,3.05,82.5,123.39000000000001,4.0599999999999996,286.53000000000003,0,0,0,2,1,1,0,108.5,1,0,14.89,0,0,0,0,0,6,6,0,0,6,0,990,990,-1055.8300000000017,-0.18000000000029104,0,2372.81,9939.51,-1740.9499999999998,308.54999999999995,8891.9600000000009,22456.5,238,95,0,0,null,null,null,null,null,0,48,0,0,0,0,null,null,0,2757.84,0,-0.18000000000029104,0,0,2372.81,2372.81,null,1000.04,114.82988225370536,{"$f":"OFFSET(A104,0,'Cool Graph'!$H$1)","v":73.53},{"$f":"OFFSET(A104,0,'Cool Graph'!$I$1)","v":114.82988225370536}]
["2011-10-12",4.16,5.01,66.53,80.13,3.03,158.85999999999999,0,0,0,2,2,0,0,65.58,2,0,14.55,0,0,0,0,0,11,11,0,0,11,0,1815,1815,528.30000000000291,-0.18000000000029104,0,0,7561.7000000000007,-2345.66,358.54999999999995,10014.760000000002,22984.800000000003,228,84,0,0,null,null,null,null,null,0,0,0,0,0,0,null,null,1,4440.3500000000004,0,-0.18000000000029104,0,0,0,0,null,1000.04,576.96645079845985,{"$f":"OFFSET(A105,0,'Cool Graph'!$H$1)","v":4.16},{"$f":"OFFSET(A105,0,'Cool Graph'!$I$1)","v":576.96645079845985}]
["2011-10-13",0,3.85,64.63,67.169999999999987,2.75,138.39999999999998,0,0,0,2,0,0,0,56.349999999999994,0,0,10.82,0,0,0,0,0,0,0,0,0,0,0,0,0,-93.970000000001164,-0.18000000000029104,0,1740.95,7554.0000000000009,-861.69999999999982,408.54999999999995,9920.7900000000009,22890.83,228,84,0,0,null,null,null,null,null,0,0,0,0,0,0,null,null,0,4561.07,0,-0.18000000000029104,0,0,1740.95,1740.95,null,1000.04,-138.39999999999998,{"$f":"OFFSET(A106,0,'Cool Graph'!$H$1)","v":0},{"$f":"OFFSET(A106,0,'Cool Graph'!$I$1)","v":-138.39999999999998}]
["2011-10-14",0,4.95,59.99,66.11,3.11,134.16000000000003,1,0,0,2,0,2,0,57.03,0,0,9.08,0,0,0,0,0,4,4,0,0,4,0,660,660,-1089.5400000000009,-0.18000000000029104,0,0,4349.380000000001,-935.22999999999979,458.54999999999995,9016.25,21801.29,225,80,0,0,null,null,null,null,null,0,0,0,0,0,0,null,null,1,5143.7299999999996,0,-0.18000000000029104,0,0,0,0,null,1000.04,133.41325483580357,{"$f":"OFFSET(A107,0,'Cool Graph'!$H$1)","v":0},{"$f":"OFFSET(A107,0,'Cool Graph'!$I$1)","v":133.41325483580357}]
["2011-10-15",0,10.5,51.47,54.58,2.02,118.57,0,1,0,3,0,0,0,45.88,0,0,8.6999999999999993,0,1,0,0,0,5,5,0,0,6,160,825,985,453.27000000000044,-0.18000000000029104,0,0,4349.380000000001,-935.22999999999979,508.54999999999995,9811.02,22254.560000000001,219,75,0,0,null,null,null,null,null,0,0,0,0,0,0,null,null,0,5888.5,0,-0.18000000000029104,0,0,0,0,null,1000.04,280.76281214131296,{"$f":"OFFSET(A108,0,'Cool Graph'!$H$1)","v":0},{"$f":"OFFSET(A108,0,'Cool Graph'!$I$1)","v":280.76281214131296}]
["2011-10-16",0,11.16,76.5,65.460000000000008,2.2200000000000002,155.34,0,0,0,3,0,0,0,52.83,0,0,12.63,0,0,0,0,0,6,6,0,0,6,0,990,990,867.36999999999898,-0.18000000000029104,0,0,4349.380000000001,-935.22999999999979,558.54999999999995,10980.390000000001,23121.93,214,69,0,0,null,null,null,null,null,0,0,0,0,0,0,null,null,1,7007.87,0,-0.18000000000029104,0,0,0,0,null,1000.04,246.01988225370539,{"$f":"OFFSET(A109,0,'Cool Graph'!$H$1)","v":0},{"$f":"OFFSET(A109,0,'Cool Graph'!$I$1)","v":246.01988225370539}]
["2011-10-17",0,6.69,73.78,80.31,2.5299999999999998,163.31,0,0,0,4,0,1,0,69.97,0,0,10.34,0,0,0,0,0,7,7,0,0,7,0,1155,1155,-2123.2900000000009,4499.82,0,0,1655.3900000000012,-1505.2299999999998,608.54999999999995,9315.6,20998.639999999999,206,62,0,0,null,null,null,null,null,0,0,0,0,0,1,null,null,0,4057.07,4500,4499.82,0,0,0,0,null,1000.04,304.94319596265626,{"$f":"OFFSET(A110,0,'Cool Graph'!$H$1)","v":0},{"$f":"OFFSET(A110,0,'Cool Graph'!$I$1)","v":304.94319596265626}]
["2011-10-18",0,6.42,117.96,89.960000000000008,2.2000000000000002,216.54,0,0,0,5,0,1,0,78.95,0,1,11.01,0,1,0,0,0,10,10,0,0,11,160,1650,1810,1501.0200000000041,4499.82,0,0,1650.3900000000012,-1505.2299999999998,658.55,11080.12,22499.660000000003,195,91,0,0,null,null,null,null,null,0,0,39,0,0,1,null,null,1,5776.59,0,4499.82,0,0,0,0,null,1000.04,517.2593806860674,{"$f":"OFFSET(A111,0,'Cool Graph'!$H$1)","v":0},{"$f":"OFFSET(A111,0,'Cool Graph'!$I$1)","v":517.2593806860674}]
["2011-10-19",0,3.33,96.65,98.429999999999993,3.5,201.91,0,1,0,6,1,0,0,91.22,1,0,7.21,0,1,0,0,0,13,13,0,0,14,165,2145,2310,722.5099999999984,6999.82,0,0,6135.8900000000012,-2093.2199999999998,708.55,12710.130000000001,23222.170000000002,179,78,0,0,null,null,null,null,null,0,0,0,0,0,2,null,null,0,959.09,7000,6999.82,0,0,0,0,null,1000.04,734.59639192531256,{"$f":"OFFSET(A112,0,'Cool Graph'!$H$1)","v":0},{"$f":"OFFSET(A112,0,'Cool Graph'!$I$1)","v":734.59639192531256}]
["2011-10-20",0,2.33,80.72999999999999,97.83,1.75,182.64,0,0,0,7,0,0,0,88.78,0,0,9.0500000000000007,0,1,0,0,0,12,12,0,0,13,165,2015,2180,1357.9600000000028,6999.82,0,1505.23,2615.3400000000011,-587.98999999999978,758.55,11270.090000000002,24580.130000000005,167,66,0,0,null,null,null,null,null,0,0,0,0,0,0,null,null,1,2989.6,0,6999.82,0,0,1505.23,1505.23,null,4500.04,701.16256900310884,{"$f":"OFFSET(A113,0,'Cool Graph'!$H$1)","v":0},{"$f":"OFFSET(A113,0,'Cool Graph'!$I$1)","v":701.16256900310884}]
["2011-10-21",0,3.62,107.16000000000001,88.38,1.46,200.62000000000003,0,0,0,4,1,1,0,76.02,1,1,12.36,0,0,0,0,0,11,11,0,0,11,0,1815,1815,722.22999999999593,6999.82,0,0,819.79000000000087,-592.14999999999975,808.55,12635.82,25302.36,156,55,0,0,null,null,null,null,null,0,0,0,0,0,0,null,null,0,4599.8100000000004,0,6999.82,0,0,0,0,null,4500.04,535.20645079845985,{"$f":"OFFSET(A114,0,'Cool Graph'!$H$1)","v":0},{"$f":"OFFSET(A114,0,'Cool Graph'!$I$1)","v":535.20645079845985}]
["2011-10-22",0,6.03,104.46000000000001,84.570000000000007,5.17,200.23,0,0,0,2,0,0,0,74.760000000000005,0,0,9.81,0,0,0,0,0,4,4,0,0,4,0,660,660,498.81000000000131,6999.82,0,0,819.79000000000087,-592.14999999999975,858.55,13319.630000000001,25801.170000000002,153,51,0,0,null,null,null,null,null,0,0,0,0,0,0,null,null,1,5233.62,0,6999.82,858.55,0,0,0,null,4500.04,67.343254835803606,{"$f":"OFFSET(A115,0,'Cool Graph'!$H$1)","v":0},{"$f":"OFFSET(A115,0,'Cool Graph'!$I$1)","v":67.343254835803606}]
["2011-10-23",0,7.58,120.91,105.63999999999999,0.96,235.09,0,0,0,4,1,0,0,92.429999999999993,0,0,13.21,1,1,0,0,0,12,12,0,0,13,165,1980,2145,1884.25,6999.82,858.55,0,819.79000000000087,-592.14999999999975,396.51,15954.880000000001,27685.420000000002,140,39,0,0,null,null,null,null,null,0,0,0,0,0,0,null,null,0,7472.36,0,6999.82,0,858.55,0,0,null,4500.04,634.52307821636168,{"$f":"OFFSET(A116,0,'Cool Graph'!$H$1)","v":0},{"$f":"OFFSET(A116,0,'Cool Graph'!$I$1)","v":634.52307821636168}]
["2011-10-24",0,5.86,115.85,121.72,3.6,247.03,0,0,0,2,1,1,0,109.59,1,0,12.13,0,5,1,0,0,5,5,0,0,10,170.05,825,995.05,-1343.3899999999994,-0.18000000000029104,858.55,592.15,7631.1200000000008,-1030.4000000000001,496.51,13548.490000000002,26342.030000000002,170,33,0,0,null,null,null,null,null,0,42,0,0,0,3,null,null,1,6185.04,0,-0.18000000000029104,0,858.55,592.15,592.15,null,4150.04,156.37722306722176,{"$f":"OFFSET(A117,0,'Cool Graph'!$H$1)","v":0},{"$f":"OFFSET(A117,0,'Cool Graph'!$I$1)","v":156.37722306722176}]
["2011-10-25",0,3.78,127.49000000000001,117.95,2.27,251.49000000000004,0,1,0,4,0,4,0,105,0,3,12.95,0,0,0,0,0,5,5,0,0,5,0,825,825,-2341.16,-0.18000000000029104,0,0,7860.6200000000008,-1030.4000000000001,596.51,9406.83,24000.870000000003,205,42,0,0,null,null,null,null,null,0,42,14,0,0,2,null,null,0,1980.28,0,-0.18000000000029104,0,0,0,0,null,4150.04,82.976568544754429,{"$f":"OFFSET(A118,0,'Cool Graph'!$H$1)","v":0},{"$f":"OFFSET(A118,0,'Cool Graph'!$I$1)","v":82.976568544754429}]
["2011-10-26",0,3.33,112.52,95.57,2.5099999999999998,213.92999999999998,0,0,0,3,1,2,0,80.77,1,0,14.8,0,0,0,0,0,5,5,0,0,5,0,825,825,-680.2300000000032,-0.18000000000029104,0,0,7128.880000000001,-1530.4,696.51,9019.1,23320.639999999999,200,37,0,0,null,null,null,null,null,0,0,0,0,0,1,null,null,1,2724.29,0,-0.18000000000029104,0,0,0,0,null,4150.04,120.53656854475449,{"$f":"OFFSET(A119,0,'Cool Graph'!$H$1)","v":0},{"$f":"OFFSET(A119,0,'Cool Graph'!$I$1)","v":120.53656854475449}]
["2011-10-27",0,1.1000000000000001,89.71,92.64,2.99,186.44,0,0,0,6,0,2,0,79.739999999999995,0,0,12.9,0,2,0,0,0,9,9,0,0,11,330,1485,1815,109.4800000000032,999.81999999999971,0,0,6428.8500000000013,-1530.4,796.51,7695.0800000000008,23430.120000000003,231,28,0,0,null,null,null,null,null,0,42,0,0,0,0,null,null,0,1000.3,1000,999.81999999999971,0,0,0,0,null,4150.04,549.38645079845992,{"$f":"OFFSET(A120,0,'Cool Graph'!$H$1)","v":0},{"$f":"OFFSET(A120,0,'Cool Graph'!$I$1)","v":549.38645079845992}]
["2011-10-28",0,4.33,85.610000000000014,84.080000000000013,2.1,176.12000000000003,0,1,0,2,1,0,0,69.12,1,0,14.96,0,0,0,0,0,6,6,0,0,6,0,990,990,577.68000000000029,999.81999999999971,0,0,6197.630000000001,-1530.4,896.51,8574.76,24007.800000000003,226,22,0,0,null,null,null,null,null,0,0,0,0,0,0,null,null,1,2011.2,0,999.81999999999971,0,0,0,0,null,4150.04,225.23988225370536,{"$f":"OFFSET(A121,0,'Cool Graph'!$H$1)","v":0},{"$f":"OFFSET(A121,0,'Cool Graph'!$I$1)","v":225.23988225370536}]
["2011-10-29",0,2.9,70.3,89.86,2.4,165.46,0,0,0,1,0,0,0,79.459999999999994,0,0,10.4,0,1,0,0,0,4,4,0,0,5,165,660,825,251.79999999999927,2999.8199999999997,0,0,6197.630000000001,-1530.4,996.51,9109.5600000000013,24259.600000000002,221,18,0,0,null,null,null,null,null,0,0,0,0,0,0,null,null,0,446,2000,2999.8199999999997,0,0,0,0,null,4150.04,169.00656854475446,{"$f":"OFFSET(A122,0,'Cool Graph'!$H$1)","v":0},{"$f":"OFFSET(A122,0,'Cool Graph'!$I$1)","v":169.00656854475446}]
["2011-10-30",0,5.91,90.95,127.87,4.33,229.06000000000003,0,0,0,4,1,0,0,114.26,0,0,13.61,1,1,0,0,0,5,5,0,0,6,165,825,990,766.95999999999913,2999.8199999999997,0,0,6197.630000000001,-1530.4,1096.51,10169.02,25026.560000000001,216,13,0,0,null,null,null,null,null,0,0,0,0,0,0,null,null,1,1405.46,0,2999.8199999999997,0,0,0,0,null,4150.04,172.29988225370536,{"$f":"OFFSET(A123,0,'Cool Graph'!$H$1)","v":0},{"$f":"OFFSET(A123,0,'Cool Graph'!$I$1)","v":172.29988225370536}]
["2011-10-31",0,0.55000000000000004,96.61999999999999,101.97,2.62,201.76,0,0,0,2,0,1,0,88.6,0,0,13.37,0,3,0,0,0,1,1,0,0,4,495,165,660,-394.22999999999956,1999.8199999999997,0,0,7257.1400000000012,-2317.0899999999997,1196.51,10176.290000000001,24632.33,208,12,0,0,null,null,null,null,null,0,0,0,0,0,4,null,null,0,2039.91,0,1999.8199999999997,0,0,0,0,null,4150.04,65.813254835803605,{"$f":"OFFSET(A124,0,'Cool Graph'!$H$1)","v":0},{"$f":"OFFSET(A124,0,'Cool Graph'!$I$1)","v":65.813254835803605}]
["2011-11-01",0,3.65,106.69,133.87,0.89,245.1,0,0,0,4,1,2,0,120.95,0,2,12.92,1,0,0,0,0,6,6,0,0,6,0,990,990,577.27999999999884,999.81999999999971,0,0,9257.1400000000012,-2817.0899999999997,1296.51,11055.570000000002,25209.61,203,6,0,0,null,null,null,null,null,0,0,0,0,0,0,null,null,1,2319.19,1000,999.81999999999971,0,0,0,0,null,4150.04,156.2598822537054,{"$f":"OFFSET(A125,0,'Cool Graph'!$H$1)","v":0},{"$f":"OFFSET(A125,0,'Cool Graph'!$I$1)","v":156.2598822537054}]
["2011-11-02",0,1.7,113.47,157.19,2.33,274.69,0,0,0,7,0,1,0,142.54999999999998,0,1,14.64,0,2,0,0,0,11,11,0,0,13,330,1790,2120,479.03000000000247,1999.8199999999997,0,1500,8840.4100000000017,-1317.0899999999997,1396.51,10414.100000000002,25688.640000000003,228,-5,0,0,null,null,null,null,null,0,42,0,0,0,4,null,null,0,994.45,1000,1999.8199999999997,0,0,1500,1500,null,4150.04,584.7877276543993,{"$f":"OFFSET(A126,0,'Cool Graph'!$H$1)","v":0},{"$f":"OFFSET(A126,0,'Cool Graph'!$I$1)","v":584.7877276543993}]
["2011-11-03",0,6.07,112.08000000000001,153.38999999999999,2.3199999999999998,273.85999999999996,0,0,0,3,2,0,0,136.1,1,0,17.29,1,1,0,0,0,9,9,0,0,10,165,1505,1670,426.88000000000102,1999.8199999999997,0,0,6659.090000000002,-1317.0899999999997,1496.51,11367.480000000001,26115.520000000004,219,-14,0,0,null,null,null,null,null,0,0,0,0,0,0,null,null,1,2529.15,0,1999.8199999999997,0,0,0,0,null,4150.04,403.18141753907884,{"$f":"OFFSET(A127,0,'Cool Graph'!$H$1)","v":0},{"$f":"OFFSET(A127,0,'Cool Graph'!$I$1)","v":403.18141753907884}]
["2011-11-04",0,2.34,116.05,231.67999999999998,2.75,352.82,0,0,0,3,1,1,0,220.51,1,1,11.17,0,2,0,0,0,8,8,0,0,10,330,1320,1650,368.58000000000175,4399.82,0,0,7621.1500000000024,-1817.0899999999997,1596.51,12302.060000000003,26484.100000000006,209,-22,0,0,null,null,null,null,null,0,0,0,0,0,0,null,null,0,501.67,3400,4399.82,0,0,0,0,null,4150.04,316.11313708950894,{"$f":"OFFSET(A128,0,'Cool Graph'!$H$1)","v":0},{"$f":"OFFSET(A128,0,'Cool Graph'!$I$1)","v":316.11313708950894}]
["2011-11-05",0,6.87,114.87,116.99999999999999,4.05,242.79000000000002,0,0,0,2,1,0,0,106.58999999999999,1,0,10.41,0,0,0,0,0,4,4,0,0,4,0,660,660,664.18999999999869,4399.82,0,0,7621.1500000000024,-1817.0899999999997,1696.51,13151.250000000004,27148.290000000005,206,-26,0,0,null,null,null,null,null,0,0,0,0,0,0,null,null,1,1250.8599999999999,0,4399.82,1696.51,0,0,0,null,4150.04,24.783254835803575,{"$f":"OFFSET(A129,0,'Cool Graph'!$H$1)","v":0},{"$f":"OFFSET(A129,0,'Cool Graph'!$I$1)","v":24.783254835803575}]
["2011-11-06",0,2,140.97,171.1,3.24,317.31,0,0,0,6,0,1,0,154.38,0,1,16.72,0,1,0,0,0,12,12,0,0,13,165,1980,2145,804.22999999999956,4399.82,1696.51,0,7621.1500000000024,-1817.0899999999997,595.77,14706.480000000003,27952.520000000004,193,-38,0,0,null,null,null,null,null,0,0,0,0,0,0,null,null,0,2210.3200000000002,0,4399.82,0,1696.51,0,0,null,4150.04,552.30307821636165,{"$f":"OFFSET(A130,0,'Cool Graph'!$H$1)","v":0},{"$f":"OFFSET(A130,0,'Cool Graph'!$I$1)","v":552.30307821636165}]
["2011-11-07",0,3.76,177.98,158.4,4.97,345.11,0,0,0,4,0,1,0,146.92000000000002,0,0,11.48,0,3,0,0,0,8,8,0,0,11,495,1340,1835,-303.68000000000029,-0.18000000000029104,1696.51,1817.09,11991.070000000002,-1000,695.77,12616.800000000001,27648.840000000004,231,-46,0,0,null,null,null,null,null,0,48,0,0,0,0,null,null,1,1050.72,0,-0.18000000000029104,0,1696.51,1817.09,1817.09,null,4150.04,398.82473124802971,{"$f":"OFFSET(A131,0,'Cool Graph'!$H$1)","v":0},{"$f":"OFFSET(A131,0,'Cool Graph'!$I$1)","v":398.82473124802971}]
["2011-11-08",0,6.77,124.24999999999999,128.41,3.7,263.12999999999994,0,1,0,1,2,0,0,118.55,2,0,9.86,0,3,1,0,0,9,9,0,0,12,660,1485,2145,359,-0.18000000000029104,0,0,10882.520000000002,-1500,795.77,12757.800000000003,28007.840000000004,218,44,0,0,null,null,null,null,null,0,0,100,0,0,1,null,null,0,2579.69,0,-0.18000000000029104,0,0,0,0,null,4150.04,606.48307821636172,{"$f":"OFFSET(A132,0,'Cool Graph'!$H$1)","v":0},{"$f":"OFFSET(A132,0,'Cool Graph'!$I$1)","v":606.48307821636172}]
["2011-11-09",0,14.26,85.05,109.47,3.04,211.82,0,0,0,3,1,0,0,94.41,1,0,15.06,0,1,0,0,0,9,9,0,0,10,165,1485,1650,-158.44000000000233,-0.18000000000029104,0,0,10169.770000000002,-1677.6299999999999,895.77,11116.86,27849.4,250,35,0,0,null,null,null,null,null,0,42,0,0,0,1,null,null,1,1729.13,0,-0.18000000000029104,0,0,0,0,null,4150.04,457.11313708950894,{"$f":"OFFSET(A133,0,'Cool Graph'!$H$1)","v":0},{"$f":"OFFSET(A133,0,'Cool Graph'!$I$1)","v":457.11313708950894}]
["2011-11-10",0,14.94,83.669999999999987,88.65,2.79,190.04999999999998,0,0,0,2,4,0,0,76.84,3,0,11.81,1,0,0,0,0,4,4,0,0,4,0,660,660,1680.5200000000004,-0.18000000000029104,0,1677.63,5063.4800000000023,-500,995.77,6150.380000000001,29529.920000000002,246,229,0,0,null,null,null,null,null,0,0,198,0,0,0,null,null,0,2268.94,0,-0.18000000000029104,0,0,1677.63,1677.63,null,9150.0400000000009,77.523254835803613,{"$f":"OFFSET(A134,0,'Cool Graph'!$H$1)","v":0},{"$f":"OFFSET(A134,0,'Cool Graph'!$I$1)","v":77.523254835803613}]
["2011-11-11",0,9.9600000000000009,95.71,76.88,6.83,189.38,0,0,0,4,0,1,0,64.75,0,0,12.13,0,0,0,0,0,5,5,0,0,5,0,825,825,515.22999999999956,-0.18000000000029104,0,1677.63,5063.4800000000023,-500,1095.77,6958.1100000000015,30045.15,241,224,0,0,null,null,null,null,null,0,0,0,0,0,1,null,null,1,2976.67,0,-0.18000000000029104,0,0,0,1677.63,null,9150.0400000000009,145.08656854475447,{"$f":"OFFSET(A135,0,'Cool Graph'!$H$1)","v":0},{"$f":"OFFSET(A135,0,'Cool Graph'!$I$1)","v":145.08656854475447}]
["2011-11-12",0,14.75,65.22,51.94,4.26,136.16999999999999,0,0,0,0,0,0,0,41.01,0,0,10.93,0,0,0,0,0,2,2,0,0,2,0,330,330,456.90000000000146,-0.18000000000029104,0,1677.63,5063.4800000000023,-500,1195.77,7532.010000000002,30502.050000000003,239,222,0,0,null,null,null,null,null,0,0,0,0,0,0,null,null,0,3450.57,0,-0.18000000000029104,0,0,0,1677.63,null,9150.0400000000009,-2.3833725820981897,{"$f":"OFFSET(A136,0,'Cool Graph'!$H$1)","v":0},{"$f":"OFFSET(A136,0,'Cool Graph'!$I$1)","v":-2.3833725820981897}]
["2011-11-13",0,12.02,107.52000000000001,77.47,5.09,202.1,0,0,0,2,3,0,0,58.9,3,0,18.57,0,0,0,0,0,5,5,0,0,5,0,825,825,656.04999999999927,-0.18000000000029104,0,1677.63,5063.4800000000023,-500,1295.77,8431.5600000000013,31158.100000000002,235,217,0,0,null,null,null,null,null,0,0,0,0,0,0,null,null,1,4250.12,0,-0.18000000000029104,0,0,0,1677.63,null,9150.0400000000009,132.36656854475447,{"$f":"OFFSET(A137,0,'Cool Graph'!$H$1)","v":0},{"$f":"OFFSET(A137,0,'Cool Graph'!$I$1)","v":132.36656854475447}]
["2011-11-14",0,18.11,137.35999999999999,51.93,4.7300000000000004,212.12999999999997,0,0,0,3,0,0,0,43.04,0,0,8.89,0,0,0,0,0,8,8,0,0,8,0,1320,1320,-44.609999999996944,999.81999999999971,0,0,2940.9600000000028,-1060.1799999999998,1395.77,6551.9500000000025,31113.490000000005,274,209,0,0,null,null,null,null,null,0,48,0,0,0,1,null,null,0,2275.58,1000,999.81999999999971,0,0,0,0,null,9150.0400000000009,323.0165096716072,{"$f":"OFFSET(A138,0,'Cool Graph'!$H$1)","v":0},{"$f":"OFFSET(A138,0,'Cool Graph'!$I$1)","v":323.0165096716072}]
["2011-11-15",0,8.0500000000000007,101.25000000000001,64.349999999999994,7.27,180.92000000000002,0,0,0,4,0,1,0,56.730000000000004,0,1,7.62,0,0,0,0,0,9,9,0,0,9,0,1485,1485,1204.9300000000003,999.81999999999971,0,1060.18,2842.0000000000032,0,1495.77,5882.3800000000028,32318.420000000006,314,200,0,0,null,null,null,null,null,0,48,0,0,0,0,null,null,1,1604.97,0,999.81999999999971,0,0,1060.18,1060.18,null,9150.0400000000009,421.1198233805581,{"$f":"OFFSET(A139,0,'Cool Graph'!$H$1)","v":0},{"$f":"OFFSET(A139,0,'Cool Graph'!$I$1)","v":421.1198233805581}]
["2011-11-16",0,12.62,124.46000000000001,78.22,7.57,222.87,0,1,0,0,1,2,0,61.32,1,1,16.899999999999999,0,1,0,0,0,8,8,0,0,9,160,1320,1480,-250.06999999999971,999.81999999999971,0,0,2399.3200000000033,-544.91999999999996,1595.77,6247.3100000000031,32068.350000000006,303,192,0,0,null,null,null,null,null,0,0,0,0,0,2,null,null,0,1797.32,1000,999.81999999999971,0,0,0,0,null,9150.0400000000009,377.14275326816562,{"$f":"OFFSET(A140,0,'Cool Graph'!$H$1)","v":0},{"$f":"OFFSET(A140,0,'Cool Graph'!$I$1)","v":377.14275326816562}]
["2011-11-17",0,3.3,108.3,69.87,4.18,185.65,0,0,0,3,1,0,0,50.69,1,0,19.18,0,0,0,0,0,11,11,0,0,11,0,1815,1815,1038.2999999999956,1999.8199999999997,0,0,2236.2200000000034,-544.91999999999996,1695.77,7880.1100000000024,33106.65,293,181,0,0,null,null,null,null,null,0,0,0,0,0,0,null,null,1,2493.2199999999998,1000,1999.8199999999997,0,0,0,0,null,9150.0400000000009,550.17645079845988,{"$f":"OFFSET(A141,0,'Cool Graph'!$H$1)","v":0},{"$f":"OFFSET(A141,0,'Cool Graph'!$I$1)","v":550.17645079845988}]
["2011-11-18",0,0.55000000000000004,95.83,38.839999999999996,12.88,148.1,0,1,0,2,0,0,0,30.189999999999998,0,0,8.65,0,1,0,0,0,6,6,0,0,7,160,990,1150,120.06999999999971,999.81999999999971,0,0,3236.2200000000034,-1096.54,1795.77,6097.180000000003,33226.720000000001,333,175,0,0,null,null,null,null,null,0,48,0,0,0,1,null,null,0,1161.9100000000001,0,999.81999999999971,0,0,0,0,null,9150.0400000000009,318.12612585026386,{"$f":"OFFSET(A142,0,'Cool Graph'!$H$1)","v":0},{"$f":"OFFSET(A142,0,'Cool Graph'!$I$1)","v":318.12612585026386}]
["2011-11-19",0,1.54,84.08,58.44,13.55,157.61000000000001,0,0,0,0,1,1,0,42.11,0,0,16.329999999999998,1,1,0,0,0,5,5,0,0,6,160,825,985,553.05000000000291,999.81999999999971,0,0,3236.2200000000034,-1096.54,1895.77,6991.7300000000032,33779.770000000004,327,170,0,0,null,null,null,null,null,0,0,0,0,0,1,null,null,1,1956.46,0,999.81999999999971,1895.77,0,0,0,null,9150.0400000000009,241.72281214131294,{"$f":"OFFSET(A143,0,'Cool Graph'!$H$1)","v":0},{"$f":"OFFSET(A143,0,'Cool Graph'!$I$1)","v":241.72281214131294}]
["2011-11-20",0,2.76,127.65,71.52,9.81,211.74,0,0,0,2,2,3,0,49.16,0,0,22.36,2,0,0,0,0,11,11,0,0,11,0,1815,1815,1896.760000000002,999.81999999999971,1895.77,0,3236.2200000000034,-1096.54,781.25,9531.9900000000034,35676.530000000006,316,159,0,0,null,null,null,null,null,0,0,0,0,0,0,null,null,0,3715.47,0,999.81999999999971,0,1895.77,0,0,null,9150.0400000000009,524.08645079845985,{"$f":"OFFSET(A144,0,'Cool Graph'!$H$1)","v":0},{"$f":"OFFSET(A144,0,'Cool Graph'!$I$1)","v":524.08645079845985}]
["2011-11-21",0,2.2000000000000002,148.03,171.56,10.97,332.76,0,0,0,8,0,0,0,152.86000000000001,0,0,18.7,0,1,0,0,0,13,13,0,0,14,160,2145,2305,1489.8999999999942,999.81999999999971,1895.77,0,4164.6100000000024,-1141.46,881.25,9528.3900000000012,37166.43,349,146,0,0,null,null,null,null,null,0,48,0,0,0,2,null,null,1,2728.4,1000,999.81999999999971,0,1895.77,0,0,null,9150.0400000000009,601.71932181292016,{"$f":"OFFSET(A145,0,'Cool Graph'!$H$1)","v":0},{"$f":"OFFSET(A145,0,'Cool Graph'!$I$1)","v":601.71932181292016}]
["2011-11-22",100,4.4000000000000004,145.68,72.489999999999995,23.74,346.31,0,0,0,4,0,3,0,52.95,0,2,19.54,0,0,0,0,0,10,10,0,0,10,0,1650,1650,695.10000000000582,3999.8199999999997,0,0,5811.6100000000033,-1692.69,981.25,10382.490000000003,37861.530000000006,338,186,0,0,null,null,null,null,null,0,0,50,0,0,1,null,null,0,1282.5,3000,3999.8199999999997,0,0,0,0,null,9150.0400000000009,322.62313708950893,{"$f":"OFFSET(A146,0,'Cool Graph'!$H$1)","v":100},{"$f":"OFFSET(A146,0,'Cool Graph'!$I$1)","v":322.62313708950893}]
["2011-11-23",99.96,2.35,151.52000000000001,47.91,26.99,328.73,0,0,0,3,2,1,0,36.519999999999996,1,0,11.39,1,1,0,0,0,12,12,0,0,13,160,1980,2140,438.48999999999796,2999.8199999999997,0,0,6698.3200000000033,-2192.69,1081.25,9170.9800000000032,38300.020000000004,374,174,0,0,null,null,null,null,null,0,48,0,0,0,0,null,null,1,584.28,0,2999.8199999999997,0,0,0,0,null,9150.0400000000009,538.8560081039692,{"$f":"OFFSET(A147,0,'Cool Graph'!$H$1)","v":99.96},{"$f":"OFFSET(A147,0,'Cool Graph'!$I$1)","v":538.8560081039692}]
["2011-11-24",100,5.5,144.67999999999998,41.110000000000007,13.57,304.85999999999996,0,0,0,6,0,0,0,34.25,0,0,6.86,0,0,0,0,0,11,11,0,0,11,0,1815,1815,1167.1199999999953,2999.8199999999997,0,0,6698.3200000000033,-2192.69,1181.25,11030.600000000002,39467.14,362,163,0,0,null,null,null,null,null,0,0,0,0,0,1,null,null,0,2343.9,0,2999.8199999999997,0,0,0,0,null,9150.0400000000009,430.9664507984599,{"$f":"OFFSET(A148,0,'Cool Graph'!$H$1)","v":100},{"$f":"OFFSET(A148,0,'Cool Graph'!$I$1)","v":430.9664507984599}]
["2011-11-25",100,6.19,289.42,42.84,24.89,463.34000000000003,0,0,0,7,0,1,0,30.08,0,1,12.76,0,1,0,0,0,25,25,0,0,26,160,4125,4285,2283.0600000000049,4999.82,0,0,9378.7500000000036,-2292.69,1281.25,14825.160000000003,41750.200000000004,336,138,0,0,null,null,null,null,null,0,0,0,0,0,1,null,null,1,1458.03,5000,4999.82,0,0,0,0,null,9150.0400000000009,1273.8590863203308,{"$f":"OFFSET(A149,0,'Cool Graph'!$H$1)","v":100},{"$f":"OFFSET(A149,0,'Cool Graph'!$I$1)","v":1273.8590863203308}]
["2011-11-26",100,4.92,190.70999999999998,49.18,30.17,374.98,0,0,0,4,1,0,0,35.86,0,0,13.32,1,1,1,0,0,14,14,0,0,15,320,2310,2630,1265.1199999999953,5999.82,0,0,9378.7500000000036,-2292.69,1381.25,14615.780000000002,43015.32,369,123,0,0,null,null,null,null,null,0,48,0,0,0,0,null,null,0,148.65,1000,5999.82,0,0,0,0,null,9150.0400000000009,691.25887911842938,{"$f":"OFFSET(A150,0,'Cool Graph'!$H$1)","v":100},{"$f":"OFFSET(A150,0,'Cool Graph'!$I$1)","v":691.25887911842938}]
["2011-11-27",100,7.8,240.76,60.46,17.05,426.07,0,0,0,9,0,7,0,37.54,0,2,22.92,0,2,0,0,0,12,12,0,0,14,320,1980,2300,1427.8300000000017,5999.82,0,0,9378.7500000000036,-2292.69,1481.25,16794.610000000004,44443.15,356,111,0,0,null,null,null,null,null,0,0,0,0,0,0,null,null,1,2227.48,0,5999.82,0,0,0,0,null,9150.0400000000009,506.38225170052766,{"$f":"OFFSET(A151,0,'Cool Graph'!$H$1)","v":100},{"$f":"OFFSET(A151,0,'Cool Graph'!$I$1)","v":506.38225170052766}]
["2011-11-28",20.16,4.93,344.94,59.53,14.91,444.46999999999997,0,0,0,14,0,3,0,49.14,0,0,10.39,0,2,0,0,0,30,30,0,0,32,320,4950,5270,755.41999999999825,7999.82,0,2292.69,13352.290000000005,-1402.4,1581.25,19501.030000000002,45198.57,322,81,0,0,null,null,null,null,null,0,0,0,0,0,2,null,null,0,262.76,7000,7999.82,0,0,2292.69,2292.69,null,9150.0400000000009,1692.0618984616438,{"$f":"OFFSET(A152,0,'Cool Graph'!$H$1)","v":20.16},{"$f":"OFFSET(A152,0,'Cool Graph'!$I$1)","v":1692.0618984616438}]
["2011-11-29",0,7.35,99.649999999999991,46.75,29.06,182.81,1,0,0,0,1,1,0,32.43,0,1,14.32,1,3,0,0,0,13,13,0,0,16,480,2265,2745,2690.9500000000044,6999.82,0,2292.69,11934.870000000004,272.23,1681.25,21169.480000000003,47889.520000000004,307,266,0,0,null,null,null,null,null,0,0,198,0,0,0,null,null,1,2574,0,6999.82,0,0,2292.69,2292.69,null,9150.0400000000009,930.05149170345589,{"$f":"OFFSET(A153,0,'Cool Graph'!$H$1)","v":0},{"$f":"OFFSET(A153,0,'Cool Graph'!$I$1)","v":930.05149170345589}]
["2011-11-30",0.09,12.84,257.70999999999998,84.02000000000001,18.04,372.7,0,0,0,5,0,1,0,65.87,0,0,18.149999999999999,0,1,0,0,0,7,7,0,0,8,160,1260,1420,441.13999999999942,6999.82,0,0,9548.6500000000033,172.23000000000002,1781.25,19854.620000000003,48330.66,344,260,0,0,null,null,null,null,null,0,46,1,0,0,1,null,null,0,1352.67,0,6999.82,0,0,0,0,null,9150.0400000000009,202.98791191945617,{"$f":"OFFSET(A154,0,'Cool Graph'!$H$1)","v":0.09},{"$f":"OFFSET(A154,0,'Cool Graph'!$I$1)","v":202.98791191945617}]
["2011-12-01",1.5,18.600000000000001,196.04,58.640000000000008,22.72,297.5,0,0,0,4,0,1,0,40.380000000000003,0,0,18.260000000000002,0,1,0,0,0,6,6,0,0,7,160,1080,1240,-31.360000000000582,-0.18000000000029104,0,0,16511.150000000001,-430.34,1881.25,20321.260000000002,48299.3,335,254,0,0,null,null,null,null,null,0,0,0,0,0,3,null,null,1,2359.38,0,-0.18000000000029104,0,0,0,0,null,9150.0400000000009,205.21338787332797,{"$f":"OFFSET(A155,0,'Cool Graph'!$H$1)","v":1.5},{"$f":"OFFSET(A155,0,'Cool Graph'!$I$1)","v":205.21338787332797}]
["2011-12-02",1.51,21.39,86.62,39.619999999999997,20.69,169.83,0,1,0,2,1,0,0,30.72,0,0,8.9,1,1,0,0,0,4,4,0,0,5,160,700,860,94.019999999996799,-0.18000000000029104,0,0,16029.050000000001,-430.34,1981.25,20747.280000000002,48393.32,329,250,0,0,null,null,null,null,null,0,0,0,0,0,1,null,null,0,3167.5,0,-0.18000000000029104,0,0,0,0,null,9150.0400000000009,178.82605933150163,{"$f":"OFFSET(A156,0,'Cool Graph'!$H$1)","v":1.51},{"$f":"OFFSET(A156,0,'Cool Graph'!$I$1)","v":178.82605933150163}]
["2011-12-03",33,28.27,233.24999999999997,37.57,17.68,349.77,0,0,0,5,0,4,0,30.220000000000002,0,1,7.35,0,1,0,0,0,12,12,0,0,13,160,2100,2260,1343.2900000000081,-0.18000000000029104,0,0,16029.050000000001,-430.34,2081.25,19313.570000000003,49736.610000000008,388,238,0,0,null,null,null,null,null,0,74,0,0,0,3,null,null,1,1633.79,0,-0.18000000000029104,2081.25,0,0,0,null,9150.0400000000009,566.46569080138806,{"$f":"OFFSET(A157,0,'Cool Graph'!$H$1)","v":33},{"$f":"OFFSET(A157,0,'Cool Graph'!$I$1)","v":566.46569080138806}]
["2011-12-04",88.16,25.03,280.36,73.239999999999995,20.36,487.15000000000003,0,0,0,8,2,3,0,59.68,2,2,13.56,0,2,0,0,0,21,21,0,0,23,320,3675,3995,4088.7699999999968,-0.18000000000029104,2081.25,0,16029.050000000001,-430.34,1683.3200000000002,24728.840000000004,53825.380000000005,365,217,0,0,null,null,null,null,null,0,0,0,0,0,0,null,null,0,5365.74,0,-0.18000000000029104,0,2081.25,0,0,null,9150.0400000000009,1132.4790198015687,{"$f":"OFFSET(A158,0,'Cool Graph'!$H$1)","v":88.16},{"$f":"OFFSET(A158,0,'Cool Graph'!$I$1)","v":1132.4790198015687}]
["2011-12-05",8.5399999999999991,23.66,293.92999999999995,79.88,21.69,427.69999999999993,0,0,0,5,0,1,0,69.97,0,0,9.91,0,4,0,0,0,36,36,0,0,40,640,6300,6940,-551.34000000000378,1999.8199999999997,2081.25,0,15738.41,-1518.33,1783.3200000000002,20109.5,53274.04,455,181,0,0,null,null,null,null,null,0,130,0,0,0,1,null,null,1,25.03,2000,1999.8199999999997,0,2081.25,0,0,null,9150.0400000000009,2385.8733160007228,{"$f":"OFFSET(A159,0,'Cool Graph'!$H$1)","v":8.5399999999999991},{"$f":"OFFSET(A159,0,'Cool Graph'!$I$1)","v":2385.8733160007228}]
["2011-12-06",1.21,28.47,277.91000000000003,98.440000000000012,29.34,435.37,0,0,0,9,0,1,0,89.11,0,0,9.33,0,0,0,0,0,25,25,0,0,25,0,4375,4375,1527.739999999998,1999.8199999999997,0,430.34,10909.59,-1244.9000000000001,1883.3200000000002,17148.739999999998,54801.78,429,156,0,0,null,null,null,null,null,0,0,0,0,0,1,null,null,0,4031.25,0,1999.8199999999997,0,0,430.34,430.34,null,15150.04,1338.316348343395,{"$f":"OFFSET(A160,0,'Cool Graph'!$H$1)","v":1.21},{"$f":"OFFSET(A160,0,'Cool Graph'!$I$1)","v":1338.316348343395}]
["2011-12-07",88.83,20.41,372.03000000000003,95.5,25.37,602.14,0,0,0,5,0,1,0,83.64,0,0,11.86,0,0,0,0,0,15,15,0,0,15,0,2625,2625,637.89000000000669,1999.8199999999997,0,0,9480.93,-1833.0600000000002,1983.3200000000002,18523.13,55439.670000000006,413,161,0,0,null,null,null,null,null,0,0,20,0,0,2,null,null,1,6892.12,0,1999.8199999999997,0,0,0,0,null,15150.04,462.07180900603691,{"$f":"OFFSET(A161,0,'Cool Graph'!$H$1)","v":88.83},{"$f":"OFFSET(A161,0,'Cool Graph'!$I$1)","v":462.07180900603691}]
["2011-12-08",50.45,33.49,281.27000000000004,55.22,17.13,437.56000000000006,0,1,0,6,0,2,0,49.150000000000006,0,1,6.07,0,1,0,0,0,13,13,0,0,14,160,2275,2435,938.46999999999389,-0.18000000000029104,0,1244.9000000000001,11478.91,-1088.1600000000001,2083.3200000000002,13215.1,56378.14,543,148,0,0,null,null,null,null,null,0,144,0,0,0,0,null,null,0,1986.11,0,-0.18000000000029104,0,0,1244.9000000000001,1244.9000000000001,null,15150.04,549.62314473512379,{"$f":"OFFSET(A162,0,'Cool Graph'!$H$1)","v":50.45},{"$f":"OFFSET(A162,0,'Cool Graph'!$I$1)","v":549.62314473512379}]
["2011-12-09",99.68,15.05,336.96,79.41,24.34,555.44000000000005,0,0,0,8,1,1,0,67.14,1,1,12.27,0,1,0,0,0,17,17,0,0,18,160,2975,3135,-1912.6899999999951,-0.18000000000029104,0,0,7405.24,-1957.5100000000002,2183.3200000000002,12394.91,54465.450000000004,524,131,0,0,null,null,null,null,null,0,0,0,0,0,2,null,null,1,4764.04,0,-0.18000000000029104,0,0,0,0,null,15150.04,715.53296047006711,{"$f":"OFFSET(A163,0,'Cool Graph'!$H$1)","v":99.68},{"$f":"OFFSET(A163,0,'Cool Graph'!$I$1)","v":715.53296047006711}]
["2011-12-10",100,27.55,388.18,82.43,17.29,615.45000000000005,1,0,0,5,0,1,0,68.56,0,0,13.87,0,3,1,0,0,19,19,0,0,22,640,3325,3965,2085.5599999999977,-0.18000000000029104,0,0,7405.24,-1957.5100000000002,2283.3200000000002,15748.47,56551.01,502,111,0,0,null,null,null,null,null,0,0,0,0,0,0,null,null,0,8017.6,0,-0.18000000000029104,0,0,0,0,null,15150.04,992.01659912721402,{"$f":"OFFSET(A164,0,'Cool Graph'!$H$1)","v":100},{"$f":"OFFSET(A164,0,'Cool Graph'!$I$1)","v":992.01659912721402}]
["2011-12-11",100,31.61,436.90000000000003,112.27000000000001,18.5,699.28,0,0,0,7,0,3,0,91.93,0,0,20.34,0,2,0,0,0,25,25,0,0,27,320,4375,4695,2829.3099999999977,-0.18000000000029104,0,0,7405.24,-1957.5100000000002,2383.3200000000002,20089.28,59380.32,476,86,0,0,null,null,null,null,null,0,0,0,0,0,0,null,null,1,12258.41,0,-0.18000000000029104,0,0,0,0,null,15150.04,1204.138835536512,{"$f":"OFFSET(A165,0,'Cool Graph'!$H$1)","v":100},{"$f":"OFFSET(A165,0,'Cool Graph'!$I$1)","v":1204.138835536512}]
["2011-12-12",100,30.03,467.08,104.1,28.34,729.55000000000007,0,1,0,6,0,3,0,84.55,0,0,19.55,0,0,0,0,0,24,24,0,0,24,0,4200,4200,1230.5500000000029,-0.18000000000029104,0,3915.02,7400.24,631.05999999999995,2483.3200000000002,13021.829999999998,60610.87,650,62,0,0,null,null,null,null,null,0,200,0,0,0,2,null,null,0,6422.41,0,-0.18000000000029104,0,0,3915.02,3915.02,null,15150.04,973.18889440965916,{"$f":"OFFSET(A166,0,'Cool Graph'!$H$1)","v":100},{"$f":"OFFSET(A166,0,'Cool Graph'!$I$1)","v":973.18889440965916}]
["2011-12-13",100,27.26,321.20999999999998,89.740000000000009,34.22,572.43000000000006,0,0,0,12,1,3,0,68.790000000000006,0,1,20.95,1,1,0,0,0,47,47,0,0,48,160,8225,8385,3900.0299999999988,-0.18000000000029104,0,0,3485.2199999999993,-508.22000000000014,2583.3200000000002,17270.36,64510.9,652,15,0,0,null,null,null,null,null,0,50,0,0,0,1,null,null,1,11710.22,0,-0.18000000000029104,0,0,0,0,null,15150.04,2826.9665784821409,{"$f":"OFFSET(A167,0,'Cool Graph'!$H$1)","v":100},{"$f":"OFFSET(A167,0,'Cool Graph'!$I$1)","v":2826.9665784821409}]
["2011-12-14",99.74,45.58,354.17,66.570000000000007,27.89,593.95000000000005,0,0,0,8,0,3,0,49.010000000000005,0,1,17.559999999999999,0,3,0,0,0,22,22,0,0,25,480,3850,4330,-1460.0899999999965,-0.18000000000029104,0,0,3454.9799999999996,-2493.81,2683.32,9189.27,63050.810000000005,753,191,0,0,null,null,null,null,null,0,126,198,0,0,0,null,null,0,5544.96,0,-0.18000000000029104,0,0,0,0,null,15150.04,1161.4927173318629,{"$f":"OFFSET(A168,0,'Cool Graph'!$H$1)","v":99.74},{"$f":"OFFSET(A168,0,'Cool Graph'!$I$1)","v":1161.4927173318629}]
["2011-12-15",31.18,15.3,376.27,62.96,33.840000000000003,519.54999999999995,0,0,0,10,1,5,0,45.06,0,1,17.899999999999999,1,2,0,0,0,37,37,0,0,39,320,6475,6795,3355.7099999999846,5999.82,0,508.22,3358.0899999999992,-2655.4500000000003,2783.32,10348.479999999998,66406.51999999999,805,154,0,0,null,null,null,null,null,0,91,0,0,0,1,null,null,1,1370.92,6000,5999.82,0,0,508.22,508.22,null,15150.04,2235.2382827413412,{"$f":"OFFSET(A169,0,'Cool Graph'!$H$1)","v":31.18},{"$f":"OFFSET(A169,0,'Cool Graph'!$I$1)","v":2235.2382827413412}]
["2011-12-16",30.43,19.84,279.43,38.9,18.149999999999999,386.74999999999994,0,0,0,8,0,0,0,25.369999999999997,0,0,13.53,0,0,0,0,0,15,15,0,0,15,0,2765,2765,967.94000000000233,5999.82,0,0,2391.0999999999995,-3255.4500000000003,2883.32,11703.919999999998,67374.459999999992,800,139,0,0,null,null,null,null,null,0,10,0,0,0,0,null,null,0,3685.13,0,5999.82,0,0,0,0,null,15150.04,734.21977215302559,{"$f":"OFFSET(A170,0,'Cool Graph'!$H$1)","v":30.43},{"$f":"OFFSET(A170,0,'Cool Graph'!$I$1)","v":734.21977215302559}]
["2011-12-17",61.98,20.91,265.94,41.150000000000006,17.95,407.93,0,0,0,5,0,1,0,28.19,0,1,12.96,0,2,0,0,0,8,8,0,0,10,320,1460,1780,1113.1300000000047,5999.82,0,0,2391.0999999999995,-3255.4500000000003,2983.32,13481.05,68487.59,788,131,0,0,null,null,null,null,null,0,0,0,0,0,3,null,null,1,5362.26,0,5999.82,2983.32,0,0,0,null,15150.04,313.70696001171274,{"$f":"OFFSET(A171,0,'Cool Graph'!$H$1)","v":61.98},{"$f":"OFFSET(A171,0,'Cool Graph'!$I$1)","v":313.70696001171274}]
["2011-12-18",2.63,22.13,307.87,57.94,16.14,406.71,0,0,0,4,1,0,0,42.16,1,0,15.780000000000001,0,0,0,0,0,12,12,0,0,12,0,2460,2460,1852.6199999999953,5999.82,2983.32,0,2391.0999999999995,-3255.4500000000003,0,16035.669999999998,70340.209999999992,776,119,0,0,null,null,null,null,null,0,0,0,0,0,0,null,null,0,7916.88,0,5999.82,0,2983.32,0,0,null,15150.04,590.60849529708617,{"$f":"OFFSET(A172,0,'Cool Graph'!$H$1)","v":2.63},{"$f":"OFFSET(A172,0,'Cool Graph'!$I$1)","v":590.60849529708617}]
["2011-12-19",0,34.78,291.06000000000006,62.440000000000005,20.91,409.19000000000005,0,0,0,2,0,0,0,43.970000000000006,0,0,18.47,0,0,0,0,0,20,20,0,0,20,0,4160,4160,1414.7700000000186,9999.82,2983.32,0,8361.0199999999986,-4498.7700000000004,0,18179.439999999999,71754.98000000001,765,99,0,0,null,null,null,null,null,0,10,0,0,0,2,null,null,1,1334.05,10000,9999.82,0,2983.32,0,0,null,15150.04,1277.3323335105194,{"$f":"OFFSET(A173,0,'Cool Graph'!$H$1)","v":0},{"$f":"OFFSET(A173,0,'Cool Graph'!$I$1)","v":1277.3323335105194}]
["2011-12-20",0,25.34,316.42,56.47,24.3,422.53000000000003,0,0,0,2,0,0,0,41.239999999999995,0,0,15.23,0,0,0,0,0,5,5,0,0,5,0,935,935,-565.97000000000116,9999.82,0,3255.45,11127.049999999997,-1901.3400000000006,0,17954.969999999998,71189.010000000009,759,94,0,0,null,null,null,null,null,0,0,0,0,0,1,null,null,0,1984.89,0,9999.82,0,0,3255.45,3255.45,null,15150.04,-43.467888982611612,{"$f":"OFFSET(A174,0,'Cool Graph'!$H$1)","v":0},{"$f":"OFFSET(A174,0,'Cool Graph'!$I$1)","v":-43.467888982611612}]
["2011-12-21",0,19.12,235.74,74.760000000000005,18.12,347.74,0,0,0,0,0,0,0,54.86,0,0,19.899999999999999,0,1,0,0,0,8,8,0,0,9,160,1460,1620,-628.39000000001397,2551.83,0,0,17138.919999999995,-2401.3400000000006,-3.6900000000000546,17794.579999999994,70560.62,751,86,0,0,null,null,null,null,null,0,0,0,0,0,0,null,null,1,508.86,2552.0100000000002,2551.83,0,0,0,0,null,15150.04,309.0307164151543,{"$f":"OFFSET(A175,0,'Cool Graph'!$H$1)","v":0},{"$f":"OFFSET(A175,0,'Cool Graph'!$I$1)","v":309.0307164151543}]
["2011-12-22",0,20.58,220.1,57.550000000000004,20.13,318.36,0,0,0,0,0,0,0,44.800000000000004,0,0,12.75,0,2,1,0,0,4,4,0,0,6,340,700,1040,-430.76000000000931,2551.83,0,0,7003.3999999999942,-2662.8800000000006,196.30999999999995,7852.3199999999933,70129.859999999986,742,81,0,0,null,null,null,null,null,0,0,0,0,0,3,null,null,0,763.66,0,2551.83,0,0,0,0,null,25150.04,103.27058337762986,{"$f":"OFFSET(A176,0,'Cool Graph'!$H$1)","v":0},{"$f":"OFFSET(A176,0,'Cool Graph'!$I$1)","v":103.27058337762986}]
["2011-12-23",0,9.91,197.39,48.83,13.55,269.68,0,0,0,4,0,2,0,36.72,0,0,12.11,0,0,0,0,0,8,8,0,0,8,0,1400,1400,-1336.6900000000023,-0.18000000000029104,0,0,7790.4099999999944,-3360.8700000000003,396.30999999999995,6934.6299999999937,68793.169999999984,735,73,0,0,null,null,null,null,null,0,0,0,0,0,0,null,null,1,2108.96,0,-0.18000000000029104,0,0,0,0,null,25150.04,297.8996314698864,{"$f":"OFFSET(A177,0,'Cool Graph'!$H$1)","v":0},{"$f":"OFFSET(A177,0,'Cool Graph'!$I$1)","v":297.8996314698864}]
["2011-12-24",0,9.6999999999999993,141.82000000000002,38.36,16.329999999999998,206.20999999999998,0,0,0,1,2,1,0,28.01,2,0,10.35,0,0,0,0,0,7,7,0,0,7,0,1225,1225,1147.460000000021,2999.8199999999997,0,0,7790.4099999999944,-3360.8700000000003,596.30999999999995,8491.5899999999929,69940.63,728,66,0,0,null,null,null,null,null,0,0,0,0,0,0,null,null,0,465.92,3000,2999.8199999999997,0,0,0,0,null,25150.04,290.42217753615063,{"$f":"OFFSET(A178,0,'Cool Graph'!$H$1)","v":0},{"$f":"OFFSET(A178,0,'Cool Graph'!$I$1)","v":290.42217753615063}]
["2011-12-25",0,4.1399999999999997,208.71999999999997,35.18,7.76,255.79999999999995,0,0,0,1,0,0,0,24.68,0,0,10.5,0,0,0,0,0,7,7,0,0,7,0,1225,1225,1026.8399999999965,2999.8199999999997,0,0,7790.4099999999944,-3360.8700000000003,796.31,9878.9299999999948,70967.47,722,59,0,0,null,null,null,null,null,0,0,0,0,0,0,null,null,1,1653.26,0,2999.8199999999997,0,0,0,0,null,25150.04,240.83217753615065,{"$f":"OFFSET(A179,0,'Cool Graph'!$H$1)","v":0},{"$f":"OFFSET(A179,0,'Cool Graph'!$I$1)","v":240.83217753615065}]
["2011-12-26",0,6.5,221.85,80.88,8.8000000000000007,318.03000000000003,0,0,0,1,0,2,0,63.66,0,0,17.22,0,1,0,0,0,2,2,0,0,3,160,350,510,105.61999999999534,2999.8199999999997,0,0,7790.4099999999944,-3360.8700000000003,996.31,10248.549999999996,71073.09,717,57,0,0,null,null,null,null,null,0,0,0,0,0,2,null,null,0,1822.88,0,2999.8199999999997,0,0,0,0,null,25150.04,-111.26884853596999,{"$f":"OFFSET(A180,0,'Cool Graph'!$H$1)","v":0},{"$f":"OFFSET(A180,0,'Cool Graph'!$I$1)","v":-111.26884853596999}]
["2011-12-27",0,4.51,171.3,106.21000000000001,17.66,299.68,0,0,0,2,1,2,0,90.18,0,2,16.03,1,3,0,0,0,5,5,0,0,8,480,875,1355,-1614.6700000000128,-0.18000000000029104,0,0,10794.189999999995,-4776.9800000000005,1196.31,9367.3799999999937,69458.419999999984,703,52,0,0,null,null,null,null,null,0,0,0,0,0,7,null,null,1,2154.04,0,-0.18000000000029104,0,0,0,0,null,25150.04,249.6560004583543,{"$f":"OFFSET(A181,0,'Cool Graph'!$H$1)","v":0},{"$f":"OFFSET(A181,0,'Cool Graph'!$I$1)","v":249.6560004583543}]
["2011-12-28",0,6.3,164.07,87.31,14.4,272.08,0,0,0,3,1,1,0,72.89,1,0,14.42,0,2,1,0,0,12,12,0,0,14,340,2100,2440,-460.54999999998836,-0.18000000000029104,0,4776.9799999999996,10794.189999999995,-2385.58,1396.31,7884.3299999999945,68997.87,688,237,0,0,null,null,null,null,null,0,0,0,198,0,1,null,null,0,2856.57,0,-0.18000000000029104,0,0,4776.9799999999996,4776.9799999999996,null,25150.04,717.1302148475163,{"$f":"OFFSET(A182,0,'Cool Graph'!$H$1)","v":0},{"$f":"OFFSET(A182,0,'Cool Graph'!$I$1)","v":717.1302148475163}]
["2011-12-29",41.34,8.08,136.85,89.42,14.64,290.33,0,0,0,0,0,1,0,72.41,0,1,17.010000000000002,0,0,0,0,0,4,4,0,0,4,0,700,700,5285.3000000000029,-0.18000000000029104,0,0,5787.3099999999959,-2401.5699999999997,1596.31,13599.629999999996,74283.17,680,233,0,0,null,null,null,null,null,0,0,0,0,0,5,null,null,1,8617.76,0,-0.18000000000029104,0,0,0,0,null,25150.04,-6.5401842650567801,{"$f":"OFFSET(A183,0,'Cool Graph'!$H$1)","v":41.34},{"$f":"OFFSET(A183,0,'Cool Graph'!$I$1)","v":-6.5401842650567801}]
["2011-12-30",11.86,8.61,152.85999999999999,102.41999999999999,15.03,290.77999999999997,0,0,0,2,1,1,0,90.96,0,0,11.46,1,4,0,0,0,8,8,0,0,12,645,1400,2045,-479.00999999999476,-0.18000000000029104,0,0,5787.3099999999959,-2901.5699999999997,1796.31,14077.469999999996,73804.160000000003,662,225,0,0,null,null,null,null,null,0,0,0,0,0,6,null,null,0,9395.6,0,-0.18000000000029104,0,0,0,0,null,25151.190000000002,538.29167596851266,{"$f":"OFFSET(A184,0,'Cool Graph'!$H$1)","v":11.86},{"$f":"OFFSET(A184,0,'Cool Graph'!$I$1)","v":538.29167596851266}]
["2011-12-31",17.36,4.09,114.99,95.22,11.13,242.79,0,0,0,2,0,2,0,81.89,0,1,13.33,0,3,0,0,0,5,5,0,0,8,502.14,875,1377.1399999999999,11095.229999999996,9999.82,0,0,5787.3099999999959,-2901.5699999999997,1996.31,25563.199999999997,84899.39,655,220,0,0,null,null,null,null,null,0,0,0,0,0,0,null,null,1,10681.33,10000,9999.82,1996.31,0,0,0,null,25151.190000000002,315.5218669160281,{"$f":"OFFSET(A185,0,'Cool Graph'!$H$1)","v":17.36},{"$f":"OFFSET(A185,0,'Cool Graph'!$I$1)","v":315.5218669160281}]
["2012-01-01",36.1,9.48,117.3,170.85000000000002,15.6,349.33000000000004,0,0,0,4,0,1,0,149.71,0,0,21.14,0,4,2,0,0,6,6,0,0,10,711.95,1050,1761.95,-9295.3000000000029,9999.82,1996.31,0,5787.3099999999959,-2901.5699999999997,462.57999999999993,16833.899999999994,75604.09,645,212,0,0,null,null,null,null,null,0,0,0,0,0,0,null,null,0,1489.45,0,9999.82,0,1996.31,0,0,null,25151.190000000002,364.98923690597599,{"$f":"OFFSET(A186,0,'Cool Graph'!$H$1)","v":36.1},{"$f":"OFFSET(A186,0,'Cool Graph'!$I$1)","v":364.98923690597599}]
["2012-01-02",18.57,22.09,160.02000000000001,215.04999999999998,12.44,428.17,0,0,0,3,1,0,0,201.14999999999998,1,0,13.9,0,2,1,0,0,11,11,0,0,13,501.74,1925,2426.7399999999998,1036.3399999999965,9999.82,1996.31,0,5787.3099999999959,-2901.5699999999997,1062.58,18621.239999999994,76640.429999999993,632,200,0,0,null,null,null,null,null,0,0,0,0,0,1,null,null,1,2676.79,0,9999.82,0,1996.31,0,0,null,25151.190000000002,555.66442490945133,{"$f":"OFFSET(A187,0,'Cool Graph'!$H$1)","v":18.57},{"$f":"OFFSET(A187,0,'Cool Graph'!$I$1)","v":555.66442490945133}]
["2012-01-03",0.64,33.770000000000003,143.58999999999997,262.25,11.64,451.89,0,0,0,2,1,0,0,250.71,1,0,11.54,0,0,0,0,0,7,7,0,0,7,0,1225,1225,-13033.099999999991,-0.18000000000029104,0,0,10995.959999999995,-4203.9400000000005,1662.58,12997.639999999996,63607.33,625,193,0,0,null,null,null,null,null,0,0,0,0,0,0,null,null,0,4543.22,0,-0.18000000000029104,0,0,0,0,null,18151.190000000002,44.742177536150621,{"$f":"OFFSET(A188,0,'Cool Graph'!$H$1)","v":0.64},{"$f":"OFFSET(A188,0,'Cool Graph'!$I$1)","v":44.742177536150621}]
["2012-01-04",8.83,27.8,164.06,204.18,11.64,416.51,0,1,0,3,1,1,0,192.8,1,0,11.38,0,2,0,0,0,14,14,0,0,16,332.08,2450,2782.08,-1211.4400000000023,-0.18000000000029104,0,0,7275.4599999999955,-5149.8400000000011,2262.58,10008.199999999993,62395.89,664,179,0,0,null,null,null,null,null,54,0,0,0,0,0,null,null,1,5620.18,0,-0.18000000000029104,0,0,0,0,null,18151.190000000002,711.38424365695823,{"$f":"OFFSET(A189,0,'Cool Graph'!$H$1)","v":8.83},{"$f":"OFFSET(A189,0,'Cool Graph'!$I$1)","v":711.38424365695823}]
["2012-01-05",105.88,42.63,111.34,187.76,10.33,457.94,0,1,0,5,0,1,0,168.35999999999999,0,0,19.399999999999999,0,2,0,0,0,14,14,0,0,16,333.99,2450,2783.99,-707.52999999999884,-0.18000000000029104,0,0,6625.5999999999958,-5677.8000000000011,2862.58,10217.669999999995,61688.36,648,165,0,0,null,null,null,null,null,0,0,0,0,0,0,null,null,0,6407.47,0,-0.18000000000029104,0,0,0,0,null,18151.190000000002,670.72858443989207,{"$f":"OFFSET(A190,0,'Cool Graph'!$H$1)","v":105.88},{"$f":"OFFSET(A190,0,'Cool Graph'!$I$1)","v":670.72858443989207}]
["2012-01-06",102.12,18.440000000000001,128.78,145.60000000000002,15.25,410.19000000000005,1,0,0,1,0,1,0,125.32,0,0,20.28,0,3,2,0,0,3,3,0,0,6,541.24,525,1066.24,7818.2799999999988,5999.82,0,0,6620.5999999999958,-6416.31,3462.58,18377.449999999997,69506.64,642,160,0,0,null,null,null,null,null,0,0,0,0,0,1,null,null,1,8710.76,6000,5999.82,0,0,0,0,null,18151.190000000002,22.078647327465433,{"$f":"OFFSET(A191,0,'Cool Graph'!$H$1)","v":102.12},{"$f":"OFFSET(A191,0,'Cool Graph'!$I$1)","v":22.078647327465433}]
["2012-01-07",98.17,25.48,113.17,139.28,13.5,389.6,0,0,0,6,1,4,0,117.35000000000001,1,3,21.93,0,5,5,0,0,12,12,0,0,17,1079.3599999999999,2100,3179.3599999999997,-6101.2100000000064,5999.82,0,0,6620.5999999999958,-6416.31,4062.58,13270.739999999994,63405.429999999993,625,143,0,0,null,null,null,null,null,0,0,0,0,0,0,null,null,0,3004.05,0,5999.82,0,0,0,0,null,18151.190000000002,899.35712650721268,{"$f":"OFFSET(A192,0,'Cool Graph'!$H$1)","v":98.17},{"$f":"OFFSET(A192,0,'Cool Graph'!$I$1)","v":899.35712650721268}]
["2012-01-08",77.209999999999994,37.14,141.71,161.03,8.3800000000000008,425.47,0,0,0,1,1,0,0,141.91,1,0,19.12,0,3,2,0,0,6,6,0,0,9,544.07000000000005,1050,1594.0700000000002,2133.9300000000076,5999.82,0,0,6620.5999999999958,-6416.31,4662.58,15872.669999999995,65539.360000000001,617,135,0,0,null,null,null,null,null,0,0,0,0,0,0,null,null,1,5005.9799999999996,0,5999.82,0,0,0,0,null,18151.190000000002,220.78833081228709,{"$f":"OFFSET(A193,0,'Cool Graph'!$H$1)","v":77.209999999999994},{"$f":"OFFSET(A193,0,'Cool Graph'!$I$1)","v":220.78833081228709}]
["2012-01-09",41.13,35.04,177.20999999999998,143.66,18.71,415.74999999999994,0,0,0,4,1,3,0,126.56,1,0,17.100000000000001,0,6,6,0,0,9,9,0,0,15,1150,1575,2725,-436.49000000000524,-0.18000000000029104,0,0,12637.549999999996,-7779.59,5262.58,16313.679999999995,65102.869999999995,602,120,0,0,null,null,null,null,null,0,0,0,0,0,0,null,null,0,6193.32,0,-0.18000000000029104,0,0,0,0,null,18151.190000000002,689.00321125388609,{"$f":"OFFSET(A194,0,'Cool Graph'!$H$1)","v":41.13},{"$f":"OFFSET(A194,0,'Cool Graph'!$I$1)","v":689.00321125388609}]
["2012-01-10",32.159999999999997,35.36,136.13,133.44999999999999,15.96,353.05999999999995,0,0,0,4,1,0,0,114.3,1,0,19.149999999999999,0,9,4,0,0,9,9,0,0,18,1607.01,1575,3182.01,1206.1399999999994,5999.82,0,0,10263.829999999996,-7877.76,5862.58,21721.319999999996,66309.009999999995,580,107,0,0,null,null,null,null,null,0,0,0,0,0,5,null,null,1,7472.85,6000,5999.82,0,0,0,0,null,15151.190000000002,936.97147366678109,{"$f":"OFFSET(A195,0,'Cool Graph'!$H$1)","v":32.159999999999997},{"$f":"OFFSET(A195,0,'Cool Graph'!$I$1)","v":936.97147366678109}]
["2012-01-11",162.06,29.77,163.32,117.05,8.15,480.34999999999997,0,1,0,5,1,0,0,99.96,1,0,17.09,0,2,0,0,0,12,12,0,0,14,337.98,2100,2437.98,-3462.6900000000023,7999.82,0,0,10176.979999999996,-8454.9700000000012,6462.58,19254.629999999994,62846.319999999992,562,95,0,0,null,null,null,null,null,0,0,0,0,0,4,null,null,0,3070.22,2000,7999.82,0,0,0,0,null,15151.190000000002,508.04127852210985,{"$f":"OFFSET(A196,0,'Cool Graph'!$H$1)","v":162.06},{"$f":"OFFSET(A196,0,'Cool Graph'!$I$1)","v":508.04127852210985}]
["2012-01-12",84.35,39.75,109.46000000000001,95.73,11.78,341.07,0,0,0,1,0,2,0,74.64,0,0,21.09,0,5,6,0,0,3,3,0,0,8,1338.34,525,1863.34,72.42000000000553,1999.8199999999997,0,0,16176.979999999996,-8496.1,7062.58,19804.549999999996,62918.74,554,86,0,0,null,null,null,null,null,0,0,0,0,0,1,null,null,1,3061.27,0,1999.8199999999997,0,0,0,0,null,15151.190000000002,414.35416464507006,{"$f":"OFFSET(A197,0,'Cool Graph'!$H$1)","v":84.35},{"$f":"OFFSET(A197,0,'Cool Graph'!$I$1)","v":414.35416464507006}]
["2012-01-13",79.14,5.25,125.73999999999998,101.89,9.9499999999999993,321.96999999999997,0,0,0,0,0,0,0,84.850000000000009,0,0,17.04,0,7,5,0,0,6,6,0,0,13,1514.69,1035,2549.69,-280.87000000000262,-0.18000000000029104,0,0,18176.979999999996,-9040.2100000000009,7662.58,20314.179999999993,62637.869999999995,540,75,0,0,null,null,null,null,null,0,0,0,0,0,1,null,null,0,3515.01,0,-0.18000000000029104,0,0,0,0,null,15151.190000000002,711.71007897318191,{"$f":"OFFSET(A198,0,'Cool Graph'!$H$1)","v":79.14},{"$f":"OFFSET(A198,0,'Cool Graph'!$I$1)","v":711.71007897318191}]
["2012-01-14",0.03,9.9499999999999993,118.08999999999999,86.84,10.79,225.7,0,0,0,1,0,0,0,67.959999999999994,0,0,18.88,0,3,1,0,0,6,6,0,0,9,547.89,1050,1597.8899999999999,876.85000000000582,-0.18000000000029104,0,0,18176.979999999996,-9040.2100000000009,8262.58,21698.529999999995,63514.720000000001,531,68,0,0,null,null,null,null,null,0,0,0,0,0,1,null,null,1,4299.3599999999997,0,-0.18000000000029104,8262.58,0,0,0,null,15151.190000000002,422.10701237815482,{"$f":"OFFSET(A199,0,'Cool Graph'!$H$1)","v":0.03},{"$f":"OFFSET(A199,0,'Cool Graph'!$I$1)","v":422.10701237815482}]
["2012-01-15",0,44.28,114.34,156.85,14.6,330.07000000000005,0,1,0,3,2,0,0,132.10999999999999,2,0,24.74,0,3,0,0,0,7,7,0,0,10,515.66,1225,1740.6599999999999,2453.7699999999895,-0.18000000000029104,8262.58,0,18176.979999999996,-9040.2100000000009,2025.7199999999993,24708.799999999992,65968.489999999991,521,61,0,0,null,null,null,null,null,0,0,0,0,0,0,null,null,0,5283.91,0,-0.18000000000029104,0,8262.58,0,0,null,15151.190000000002,375.61797236740881,{"$f":"OFFSET(A200,0,'Cool Graph'!$H$1)","v":0},{"$f":"OFFSET(A200,0,'Cool Graph'!$I$1)","v":375.61797236740881}]
["2012-01-16",0,46.67,148.03,143.81,8.07,346.58,0,0,0,3,0,1,0,121.63,0,0,22.18,0,1,0,0,0,6,6,1,0,7,173.99,1085,1258.99,2283.2100000000064,-0.18000000000029104,8262.58,0,18176.979999999996,-9040.2100000000009,2625.7199999999993,26665.759999999991,68251.7,515,55,129,0,null,null,null,null,null,0,0,0,0,0,0,130,null,1,6640.87,0,-0.18000000000029104,0,8262.58,0,0,null,15151.190000000002,163.83220016019453,{"$f":"OFFSET(A201,0,'Cool Graph'!$H$1)","v":0},{"$f":"OFFSET(A201,0,'Cool Graph'!$I$1)","v":163.83220016019453}]
["2012-01-17",229.19,14.88,121.72,125.14,15.07,505.99999999999994,0,0,0,3,0,3,0,103.4,0,0,21.74,0,5,3,0,0,6,6,0,0,11,958.13,1104.44,2062.5700000000002,-242.05000000000291,-0.18000000000029104,0,0,22029.559999999998,-10379.710000000001,3225.7199999999993,22736.209999999995,68009.649999999994,592,46,129,0,null,null,null,null,null,90,0,0,0,0,2,null,null,0,7860.82,0,-0.18000000000029104,0,0,0,0,null,15151.190000000002,330.1948003434598,{"$f":"OFFSET(A202,0,'Cool Graph'!$H$1)","v":229.19},{"$f":"OFFSET(A202,0,'Cool Graph'!$I$1)","v":330.1948003434598}]
["2012-01-18",110.83,18.27,119.25,102.28,23.22,373.85,0,0,0,8,0,5,0,87,0,1,15.28,0,3,1,0,0,11,10,0,0,14,549.04999999999995,1950,2499.0500000000002,3728.1000000000058,-0.18000000000029104,0,0,22029.559999999998,-10379.710000000001,3825.7199999999993,27205.809999999998,71737.75,579,35,129,0,null,null,null,null,null,0,0,0,0,0,0,null,null,1,11730.42,0,-0.18000000000029104,0,0,0,0,null,15151.190000000002,639.29991287487121,{"$f":"OFFSET(A203,0,'Cool Graph'!$H$1)","v":110.83},{"$f":"OFFSET(A203,0,'Cool Graph'!$I$1)","v":639.29991287487121}]
["2012-01-19",61.26,25.89,103.17999999999998,127.00000000000001,16.39,333.71999999999997,1,0,0,2,4,3,0,104.46000000000001,2,0,22.54,2,4,4,0,0,13,15,0,0,17,819.3,2375,3194.3,-1909.3399999999965,-0.18000000000029104,0,0,21271.57,-14312.920000000002,4425.7199999999993,24992.469999999998,69828.41,560,165,129,0,null,null,null,null,null,0,0,0,149,0,2,null,null,0,13608.28,0,-0.18000000000029104,0,0,0,0,null,15151.190000000002,961.29401200304164,{"$f":"OFFSET(A204,0,'Cool Graph'!$H$1)","v":61.26},{"$f":"OFFSET(A204,0,'Cool Graph'!$I$1)","v":961.29401200304164}]
["2012-01-20",24.42,30.54,111.28,125.33,12.14,303.70999999999998,0,1,0,6,1,0,0,106.61,0,0,18.72,1,7,3,0,0,6,7,0,0,13,1013.1,1075,2088.1,454.80999999999767,15464.71,0,0,21271.57,-15141.720000000001,5025.7199999999993,26620.28,70283.22,538,155,129,0,null,null,null,null,null,0,0,0,0,0,10,null,null,1,0,15464.89,15464.71,0,0,0,0,null,15151.190000000002,542.83502033733566,{"$f":"OFFSET(A205,0,'Cool Graph'!$H$1)","v":24.42},{"$f":"OFFSET(A205,0,'Cool Graph'!$I$1)","v":542.83502033733566}]
["2012-01-21",124.82,35.9,102.72,151.38000000000002,11.5,426.32000000000005,0,0,0,2,1,1,0,129.28,0,0,22.1,1,5,3,0,0,2,2,1,0,7,963.76,365,1328.76,2374.1100000000006,16506.41,0,0,21271.57,-15141.720000000001,5625.7199999999993,29635.139999999996,72657.33,526,150,128,0,null,null,null,null,null,0,0,0,0,0,5,null,null,0,1373.16,1041.7,16506.41,0,0,0,0,null,15151.190000000002,112.3779365085187,{"$f":"OFFSET(A206,0,'Cool Graph'!$H$1)","v":124.82},{"$f":"OFFSET(A206,0,'Cool Graph'!$I$1)","v":112.3779365085187}]
["2012-01-22",46.06,28.71,139.48999999999998,149.79999999999998,11.92,375.97999999999996,1,1,0,6,6,3,0,129.91,5,1,19.89,1,3,1,0,0,12,13,0,0,15,553.36,2315,2868.36,142.09999999999127,17207.810000000001,0,0,21271.57,-15141.720000000001,6225.7199999999993,30596.239999999998,72799.429999999993,512,136,128,0,null,null,null,null,null,0,0,0,0,0,0,null,null,1,1032.8599999999999,701.4,17207.810000000001,0,0,0,0,null,15151.190000000002,786.89336551640235,{"$f":"OFFSET(A207,0,'Cool Graph'!$H$1)","v":46.06},{"$f":"OFFSET(A207,0,'Cool Graph'!$I$1)","v":786.89336551640235}]
["2012-01-23",37.79,18.86,136.69999999999999,103.17000000000002,19.149999999999999,315.66999999999996,0,0,5,4,0,0,1,92.580000000000013,0,0,10.59,0,6,5,0,0,14,14,0,0,20,1192.1300000000001,2525,3717.13,1180.6700000000128,2945.1400000000031,0,0,22778.160000000003,-16549.990000000002,6825.7199999999993,18574.410000000003,73980.100000000006,479,117,128,0,null,null,null,null,null,0,0,0,0,0,13,null,null,0,2575.38,2243.92,2945.1400000000031,0,0,0,0,null,30151.190000000002,1191.3066253754705,{"$f":"OFFSET(A208,0,'Cool Graph'!$H$1)","v":37.79},{"$f":"OFFSET(A208,0,'Cool Graph'!$I$1)","v":1191.3066253754705}]
["2012-01-24",15.02,21.28,145.38,126.12,9.39,317.19,0,0,1,5,3,2,2,116.4,2,0,9.7200000000000006,1,6,6,0,0,9,9,0,0,15,1225.48,1585,2810.48,1542.3999999999942,4689.1100000000033,0,0,23459.560000000005,-17111.910000000003,7425.7199999999993,21239.310000000005,75522.5,459,102,128,0,null,null,null,null,null,0,0,0,0,0,6,null,null,1,2776.83,2445.37,4689.1100000000033,0,0,0,0,null,30151.190000000002,822.21800189534724,{"$f":"OFFSET(A209,0,'Cool Graph'!$H$1)","v":15.02},{"$f":"OFFSET(A209,0,'Cool Graph'!$I$1)","v":822.21800189534724}]
["2012-01-25",31.59,23.7,146.47999999999999,126.47999999999999,17.79,346.04,0,1,1,3,1,3,0,108.44999999999999,0,0,18.03,1,9,8,0,0,12,12,0,0,21,1811.34,2110,3921.34,-389.88999999999942,3979.9600000000028,0,0,26003.480000000003,-17757.970000000005,8025.7199999999993,22117.420000000002,75132.61,437,82,128,0,null,null,null,null,null,0,0,0,0,0,1,null,null,0,1866.23,1534.77,3979.9600000000028,0,0,0,0,null,30151.190000000002,1243.7262229058033,{"$f":"OFFSET(A210,0,'Cool Graph'!$H$1)","v":31.59},{"$f":"OFFSET(A210,0,'Cool Graph'!$I$1)","v":1243.7262229058033}]
["2012-01-26",34.69,30.63,180.57,154.13,25.91,425.93,1,0,0,10,1,1,1,135.30000000000001,1,0,18.829999999999998,0,6,2,0,0,15,13,0,0,21,1065.1099999999999,2765,3830.1099999999997,-511.72000000000116,1534.5900000000029,0,0,11898.86,-1388.7200000000032,8625.7199999999993,22875.200000000001,74620.89,414,67,128,0,null,null,null,null,null,0,0,0,0,0,3,null,null,1,2204.75,0,1534.5900000000029,0,0,16549.990000000002,0,null,30151.190000000002,1126.8503016350903,{"$f":"OFFSET(A211,0,'Cool Graph'!$H$1)","v":34.69},{"$f":"OFFSET(A211,0,'Cool Graph'!$I$1)","v":1126.8503016350903}]
["2012-01-27",20.7,26.09,162.61000000000001,116.9,11.54,337.84000000000003,0,0,0,2,3,2,0,98.820000000000007,1,1,18.079999999999998,2,4,3,0,0,5,6,0,0,9,743.64,905,1648.6399999999999,1232.8300000000017,2153.8600000000029,0,0,13357.670000000002,-1988.7200000000032,9225.7199999999993,22748.530000000002,75853.72,402,272,128,0,null,null,null,null,null,0,0,214,0,0,3,null,null,0,0,2154.04,2153.8600000000029,0,0,0,0,null,30151.190000000002,330.5417740189381,{"$f":"OFFSET(A212,0,'Cool Graph'!$H$1)","v":20.7},{"$f":"OFFSET(A212,0,'Cool Graph'!$I$1)","v":330.5417740189381}]
["2012-01-28",16.059999999999999,22.66,130.84,100.85000000000001,15.96,286.37,0,1,0,7,1,2,2,85.68,0,0,15.17,1,4,1,0,0,6,7,0,0,10,679.11,1115,1794.1100000000001,963.41000000000349,3034.2700000000027,0,0,13357.670000000002,-1988.7200000000032,9825.7199999999993,24228.940000000002,76817.13,393,264,128,0,null,null,null,null,null,0,0,0,0,0,0,null,null,1,null,880.41,3034.2700000000027,9825.7199999999993,0,0,0,null,30151.190000000002,440.98735186888428,{"$f":"OFFSET(A213,0,'Cool Graph'!$H$1)","v":16.059999999999999},{"$f":"OFFSET(A213,0,'Cool Graph'!$I$1)","v":440.98735186888428}]
["2012-01-29",10.58,27.56,113.60000000000001,123.3,14.99,290.03000000000003,0,0,0,4,2,1,0,107.3,2,0,16,0,13,4,0,0,10,11,1,0,23,2225.44,1840,4065.44,1101.1900000000023,4114.7100000000028,9825.7199999999993,0,13357.670000000002,-1988.7200000000032,1295.5,26604.880000000001,77918.320000000007,370,249,127,0,null,null,null,null,null,0,0,0,0,0,0,null,null,0,null,1080.44,4114.7100000000028,0,9825.7199999999993,0,0,null,30151.190000000002,1358.1563835449535,{"$f":"OFFSET(A214,0,'Cool Graph'!$H$1)","v":10.58},{"$f":"OFFSET(A214,0,'Cool Graph'!$I$1)","v":1358.1563835449535}]
["2012-01-30",9.7799999999999994,21.06,189.29,128.13,25.74,374,0,0,0,6,0,1,2,113.57000000000001,0,1,14.56,0,4,3,0,0,7,7,0,0,11,765.48,1240,2005.48,-1313.0599999999977,2863.4100000000026,9825.7199999999993,0,31124.530000000002,-4820.0900000000029,1895.5,40889.07,76605.260000000009,359,239,134,0,null,null,null,null,null,0,0,0,0,0,1,7,null,1,null,1783.15,2863.4100000000026,0,9825.7199999999993,0,0,null,15151.190000000002,439.04971380016275,{"$f":"OFFSET(A215,0,'Cool Graph'!$H$1)","v":9.7799999999999994},{"$f":"OFFSET(A215,0,'Cool Graph'!$I$1)","v":439.04971380016275}]
["2012-01-31",14.3,17.72,207.94,117.85999999999999,15.62,373.43999999999994,1,0,0,4,0,3,1,101.53,0,1,16.329999999999998,0,3,0,0,0,7,9,0,0,10,510,1280,1790,-684.55000000001746,1782.9700000000025,0,0,37007.4,-5356.8500000000031,2495.5,35929.019999999997,75920.709999999992,448,230,134,0,null,null,null,null,null,102,0,0,0,0,3,null,null,0,null,0,1782.9700000000025,0,0,0,0,null,15151.190000000002,352.25110023649768,{"$f":"OFFSET(A216,0,'Cool Graph'!$H$1)","v":14.3},{"$f":"OFFSET(A216,0,'Cool Graph'!$I$1)","v":352.25110023649768}]
["2012-02-01",8.81,8.23,149.98000000000002,86.94,16.8,270.76,0,0,0,3,0,1,0,71.28,0,1,15.66,0,2,1,0,0,6,6,0,0,8,384.87,1060,1444.87,-1353.2399999999907,-0.17999999999756255,0,0,37865.050000000003,-5877.0900000000029,3095.5,35083.279999999999,74567.47,439,223,134,0,null,null,null,null,null,0,0,0,0,0,2,null,null,1,null,0,-0.17999999999756255,0,0,0,0,null,15151.190000000002,315.01055865849628,{"$f":"OFFSET(A217,0,'Cool Graph'!$H$1)","v":8.81},{"$f":"OFFSET(A217,0,'Cool Graph'!$I$1)","v":315.01055865849628}]
["2012-02-02",79.209999999999994,11.64,146.59,119.64,7.59,364.66999999999996,2,0,1,4,3,1,0,102.35000000000001,0,0,17.29,3,5,0,0,0,13,12,0,0,18,869.82,2330,3199.82,-1572.4400000000023,-0.17999999999756255,0,0,37865.050000000003,-7537.1100000000033,3695.5,34604.840000000004,72995.03,419,211,134,0,null,null,null,null,null,0,0,0,0,0,2,null,null,0,581.58000000000004,0,-0.17999999999756255,0,0,0,0,null,15151.190000000002,932.58189740712294,{"$f":"OFFSET(A218,0,'Cool Graph'!$H$1)","v":79.209999999999994},{"$f":"OFFSET(A218,0,'Cool Graph'!$I$1)","v":932.58189740712294}]
["2012-02-03",55.81,7.32,168.15,137.80000000000001,16.55,385.63000000000005,0,0,0,6,0,0,1,119.87,0,0,17.93,0,1,0,0,0,8,8,0,0,9,160,1400,1560,-4837.6899999999878,-0.17999999999756255,0,0,31232.040000000005,-7609.5500000000029,4295.5,30431.150000000005,68157.340000000011,407,203,134,0,null,null,null,null,null,0,0,0,0,0,4,null,null,1,2513.34,0,-0.17999999999756255,0,0,0,0,null,15151.190000000002,246.81587506644479,{"$f":"OFFSET(A219,0,'Cool Graph'!$H$1)","v":55.81},{"$f":"OFFSET(A219,0,'Cool Graph'!$I$1)","v":246.81587506644479}]
["2012-02-04",110.47,4.5599999999999996,148.6,126.25,12.83,402.71,1,0,0,4,0,1,0,104.53,0,0,21.72,0,6,0,0,0,8,9,0,0,14,841.26,1430,2271.2600000000002,6193.6199999999953,4999.8200000000024,0,0,31232.040000000005,-7609.5500000000029,4895.5,37396.270000000004,74350.960000000006,393,194,134,0,null,null,null,null,null,0,0,0,0,0,0,null,null,0,3878.46,5000,4999.8200000000024,0,0,0,0,null,15151.190000000002,518.09065269449593,{"$f":"OFFSET(A220,0,'Cool Graph'!$H$1)","v":110.47},{"$f":"OFFSET(A220,0,'Cool Graph'!$I$1)","v":518.09065269449593}]
["2012-02-05",85.93,7.17,138.07,101.29,5.16,337.62000000000006,0,2,0,7,0,2,2,86.2,0,1,15.09,0,3,0,0,0,12,11,1,0,15,494.1,2120,2614.1,-3799.9099999999889,4999.8200000000024,0,0,31232.040000000005,-7609.5500000000029,5495.5,34392.110000000008,70551.050000000017,379,183,133,0,null,null,null,null,null,0,0,0,0,0,0,null,null,1,274.3,0,4999.8200000000024,0,0,0,0,null,15151.190000000002,722.17279616102132,{"$f":"OFFSET(A221,0,'Cool Graph'!$H$1)","v":85.93},{"$f":"OFFSET(A221,0,'Cool Graph'!$I$1)","v":722.17279616102132}]
["2012-02-06",45.73,10.17,175.83,139.46,20.91,392.10000000000008,0,0,0,5,1,2,2,124.31,0,1,15.15,1,5,3,0,0,8,6,0,0,13,924.53,1400,2324.5299999999997,355.67999999999302,6026.5300000000025,0,0,32033.640000000007,-11025.350000000004,6095.5,35470.290000000008,70906.73000000001,366,174,133,0,null,null,null,null,null,0,0,0,0,0,0,null,null,0,2339.9699999999998,6026.71,6026.5300000000025,0,0,0,0,null,15151.190000000002,550.2970576719249,{"$f":"OFFSET(A222,0,'Cool Graph'!$H$1)","v":45.73},{"$f":"OFFSET(A222,0,'Cool Graph'!$I$1)","v":550.2970576719249}]
["2012-02-07",38.43,4.4000000000000004,159.19999999999999,133.79,9.4,345.21999999999991,1,2,0,7,3,0,0,121.58999999999999,1,0,12.2,2,11,3,0,0,14,13,0,0,25,1876.08,2495,4371.08,-433.41000000000349,9303.3200000000033,0,0,32033.640000000007,-11667.580000000004,6695.5,36364.880000000005,70473.320000000007,342,158,133,0,null,null,null,null,null,0,0,0,0,0,0,null,null,1,0,3276.79,9303.3200000000033,0,0,0,0,null,15151.190000000002,1426.8771253752793,{"$f":"OFFSET(A223,0,'Cool Graph'!$H$1)","v":38.43},{"$f":"OFFSET(A223,0,'Cool Graph'!$I$1)","v":1426.8771253752793}]
["2012-02-08",23.99,8.69,121.55000000000001,138.84,12.06,305.13000000000005,0,1,0,6,1,1,1,125.58,1,0,13.26,0,4,1,0,0,8,9,0,0,12,681.73,1440,2121.73,906.66999999999825,5713.5300000000025,0,0,36990.640000000007,-12045.120000000004,7295.5,37954.550000000003,71379.990000000005,330,148,133,0,null,null,null,null,null,0,0,0,0,0,0,null,null,0,0,1410.21,5713.5300000000025,0,0,0,0,null,15151.190000000002,555.04909391328715,{"$f":"OFFSET(A224,0,'Cool Graph'!$H$1)","v":23.99},{"$f":"OFFSET(A224,0,'Cool Graph'!$I$1)","v":555.04909391328715}]
["2012-02-09",7.16,11.69,140.66,128.24,7.87,295.62,0,0,0,7,0,0,0,116.07000000000001,0,0,12.17,0,3,2,0,0,13,14,0,0,16,548.5,2380,2928.5,789.80000000000291,6634.9100000000026,0,0,37941.590000000004,-12840.650000000003,7895.5,39631.350000000006,72169.790000000008,315,132,133,0,null,null,null,null,null,0,0,0,0,0,0,null,null,1,0,1948.09,6634.9100000000026,0,0,0,0,null,15151.190000000002,891.63496482825883,{"$f":"OFFSET(A225,0,'Cool Graph'!$H$1)","v":7.16},{"$f":"OFFSET(A225,0,'Cool Graph'!$I$1)","v":891.63496482825883}]
["2012-02-10",12.5,9.77,148.55999999999997,143.26,23.76,337.84999999999997,1,2,0,8,2,1,0,129.13,2,0,14.13,0,6,3,0,0,13,12,0,0,19,1063.82,2335,3398.8199999999997,1967.9899999999907,5838.0400000000018,0,0,41218.380000000005,-12879.080000000004,8495.5,42672.840000000004,74137.78,296,117,133,0,null,null,null,null,null,0,0,0,0,0,0,null,null,0,0,2479.92,5838.0400000000018,0,0,0,0,null,15151.190000000002,1040.0792878803422,{"$f":"OFFSET(A226,0,'Cool Graph'!$H$1)","v":12.5},{"$f":"OFFSET(A226,0,'Cool Graph'!$I$1)","v":1040.0792878803422}]
["2012-02-11",91.98,9.08,162.35000000000002,127,11.95,402.36,0,1,0,7,1,1,1,110.91,1,1,16.09,0,3,2,0,0,11,10,0,0,14,561.03,1960,2521.0299999999997,1758.640000000014,7747.6800000000021,0,0,41218.380000000005,-12879.080000000004,9095.5,45182.48,75896.420000000013,283,105,133,0,null,null,null,null,null,0,0,0,0,0,0,null,null,1,0,1909.64,7747.6800000000021,9095.5,0,0,0,null,15151.190000000002,619.70091308894825,{"$f":"OFFSET(A227,0,'Cool Graph'!$H$1)","v":91.98},{"$f":"OFFSET(A227,0,'Cool Graph'!$I$1)","v":619.70091308894825}]
["2012-02-12",115.7,0,141.97,107.24000000000001,16.64,381.55,0,0,0,5,1,2,0,88.25,1,1,18.990000000000002,0,5,1,0,0,8,8,0,0,13,854.6,1415,2269.6,10182.039999999994,9297.9600000000028,9095.5,0,41218.380000000005,-12879.080000000004,9354.2599999999984,56087.020000000004,86078.46,270,96,133,0,null,null,null,null,null,0,0,0,0,0,0,null,null,0,0,1550.28,9297.9600000000028,0,9095.5,0,0,null,15151.190000000002,538.57766541718161,{"$f":"OFFSET(A228,0,'Cool Graph'!$H$1)","v":115.7},{"$f":"OFFSET(A228,0,'Cool Graph'!$I$1)","v":538.57766541718161}]
["2012-02-13",70.78,4.8899999999999997,169.39000000000001,144.62,10.029999999999999,399.71,0,1,0,6,2,2,0,131.44,0,1,13.18,2,4,0,0,0,8,7,1,0,12,649.03,1415,2064.0299999999997,-6.0000000012223609E-2,4837.550000000002,9095.5,0,46970.63,-14160.230000000003,9954.2599999999984,56697.709999999992,86078.399999999994,259,89,132,0,null,null,null,null,null,0,0,0,0,0,0,null,null,1,0,1377.81,4837.550000000002,0,9095.5,0,0,null,15151.190000000002,437.07670481627821,{"$f":"OFFSET(A229,0,'Cool Graph'!$H$1)","v":70.78},{"$f":"OFFSET(A229,0,'Cool Graph'!$I$1)","v":437.07670481627821}]
["2012-02-14",196.07,16.21,165.89000000000001,260.35999999999996,8,646.53,1,1,0,8,3,0,0,245.82,2,0,14.54,1,7,2,0,0,14,14,0,0,21,1319.98,2530,3849.98,768.70000000001164,5014.9300000000012,0,0,46509.77,-14799.550000000003,10554.259999999998,47279.409999999996,86847.1,470,73,132,0,null,null,null,null,null,234,0,0,0,0,2,null,null,0,0,2087.02,5014.9300000000012,0,0,0,0,null,15151.190000000002,914.30587826173814,{"$f":"OFFSET(A230,0,'Cool Graph'!$H$1)","v":196.07},{"$f":"OFFSET(A230,0,'Cool Graph'!$I$1)","v":914.30587826173814}]
["2012-02-15",171.78,30.87,155.97999999999999,129.25,13.97,501.85,0,1,0,2,0,1,2,105.13000000000001,0,0,24.12,0,7,3,0,0,4,4,0,0,11,1226.53,715,1941.53,106.02999999999884,4702.2600000000011,0,0,47296.6,-15064.180000000004,11154.259999999998,48088.939999999995,86953.13,457,66,132,0,null,null,null,null,null,0,0,0,0,0,3,null,null,1,0,1237.6099999999999,4702.2600000000011,0,0,0,0,null,15151.190000000002,285.27348706266321,{"$f":"OFFSET(A231,0,'Cool Graph'!$H$1)","v":171.78},{"$f":"OFFSET(A231,0,'Cool Graph'!$I$1)","v":285.27348706266321}]
["2012-02-16",89.57,18.68,171.01,369.40999999999997,12.7,661.37,0,1,0,2,3,1,0,357.38,3,0,12.03,0,7,3,0,0,13,13,0,0,20,1223.8599999999999,2155,3378.8599999999997,711.43999999998778,5426.6700000000019,0,0,48484.409999999996,-15634.960000000005,11754.259999999998,50030.37999999999,87664.569999999992,435,50,132,0,null,null,null,null,null,0,0,0,0,0,2,null,null,0,0,2102.2199999999998,5426.6700000000019,0,0,0,0,null,15151.190000000002,708.46722399167163,{"$f":"OFFSET(A232,0,'Cool Graph'!$H$1)","v":89.57},{"$f":"OFFSET(A232,0,'Cool Graph'!$I$1)","v":708.46722399167163}]
["2012-02-17",68.23,24.55,142.51000000000002,128.78,18.420000000000002,382.49000000000007,0,1,1,3,3,0,0,119.87,2,0,8.91,1,16,5,0,0,9,9,0,0,25,2795.66,1590,4385.66,682.02000000000407,4720.8200000000015,0,0,50571.429999999993,-16754.110000000004,12354.259999999998,50892.399999999987,88346.59,341,69,-1,0,69,91,133,null,null,0,0,0,0,0,1,null,null,1,0,1381.17,4720.8200000000015,0,0,0,0,null,15151.190000000002,1395.5180618230156,{"$f":"OFFSET(A233,0,'Cool Graph'!$H$1)","v":68.23},{"$f":"OFFSET(A233,0,'Cool Graph'!$I$1)","v":1395.5180618230156}]
["2012-02-18",87.01,27.56,135.79,126.11999999999999,17.48,393.96000000000004,0,0,0,7,2,1,1,116.61999999999999,2,0,9.5,0,9,0,0,0,8,8,0,0,17,1448.81,1455,2903.81,-3490.4600000000064,6483.1100000000015,0,0,50571.429999999993,-16754.110000000004,12954.259999999998,53254.689999999988,84856.12999999999,324,61,-1,0,null,null,null,null,null,0,0,0,0,0,0,null,null,0,0,1762.29,6483.1100000000015,0,0,0,0,null,15151.190000000002,783.2852926132648,{"$f":"OFFSET(A234,0,'Cool Graph'!$H$1)","v":87.01},{"$f":"OFFSET(A234,0,'Cool Graph'!$I$1)","v":783.2852926132648}]
["2012-02-19",293.63,20.9,192.3,140.09,8.2100000000000009,655.13,2,4,0,8,0,0,0,131.88999999999999,0,0,8.1999999999999993,0,10,4,0,0,18,18,1,0,28,1885.93,3230,5115.93,2214.5500000000029,9634.9100000000017,0,0,50571.429999999993,-16754.110000000004,13554.259999999998,57006.489999999991,87070.68,297,39,-2,0,null,null,null,null,null,0,0,0,0,0,0,null,null,1,0,3151.8,9634.9100000000017,0,0,0,0,null,15151.190000000002,1418.9397600183829,{"$f":"OFFSET(A235,0,'Cool Graph'!$H$1)","v":293.63},{"$f":"OFFSET(A235,0,'Cool Graph'!$I$1)","v":1418.9397600183829}]
["2012-02-20",347.23,23.35,237.52,166.46999999999997,14.41,788.9799999999999,0,0,0,6,4,1,0,159.23999999999998,4,1,7.23,0,10,5,0,0,14,14,1,0,24,1899.34,2565,4464.34,1667.8000000000029,12113.460000000003,0,0,50571.429999999993,-16754.110000000004,14154.259999999998,60085.039999999994,88738.48,272,20,-3,0,null,null,null,null,null,0,0,0,0,0,1,null,null,0,0,2478.5500000000002,12113.460000000003,0,0,0,0,null,15151.190000000002,1020.9260371116235,{"$f":"OFFSET(A236,0,'Cool Graph'!$H$1)","v":347.23},{"$f":"OFFSET(A236,0,'Cool Graph'!$I$1)","v":1020.9260371116235}]
["2012-02-21",214.52,17.96,173.19,153.26999999999998,15.91,574.85,0,0,0,6,1,11,2,146.94999999999999,1,1,6.32,0,7,4,0,0,9,8,0,0,16,1262.23,1665,2927.23,-13101.449999999997,7094.7700000000032,0,33508.22,45034.159999999996,12503.619999999999,14754.259999999998,45878.59,75637.03,255,224,-3,0,null,null,null,null,null,0,0,0,216,0,2,null,null,1,0,1464.6,7094.7700000000032,0,0,33508.22,33508.22,null,15151.190000000002,611.89008901971113,{"$f":"OFFSET(A237,0,'Cool Graph'!$H$1)","v":214.52},{"$f":"OFFSET(A237,0,'Cool Graph'!$I$1)","v":611.89008901971113}]
["2012-02-22",136.09,26.63,177.79,167.76000000000002,18.71,526.98,0,0,0,4,0,0,0,161.61000000000001,0,0,6.15,0,9,1,0,0,6,8,0,0,15,1498.55,1140,2638.55,18.440000000002328,4915.8300000000027,0,0,14677.739999999998,11818.699999999999,15354.259999999998,46766.53,75655.47,239,215,-3,0,null,null,null,null,null,0,0,0,0,0,1,null,null,0,0,972.86,4915.8300000000027,0,0,0,0,null,15151.190000000002,542.72516901062068,{"$f":"OFFSET(A238,0,'Cool Graph'!$H$1)","v":136.09},{"$f":"OFFSET(A238,0,'Cool Graph'!$I$1)","v":542.72516901062068}]
["2012-02-23",77.59,20.83,168.75,157.02999999999997,16.12,440.32,1,0,0,7,2,3,1,151.13999999999999,2,3,5.89,0,11,2,0,0,11,9,1,0,22,1865.87,1915,3780.87,600.44999999999709,3971.0000000000027,0,0,6181.7699999999968,11618.699999999999,15954.259999999998,37725.729999999996,76255.92,438,204,-4,0,null,null,null,null,null,222,0,0,0,0,2,null,null,1,0,1533.72,3971.0000000000027,0,0,0,0,null,15151.190000000002,1092.4977151682497,{"$f":"OFFSET(A239,0,'Cool Graph'!$H$1)","v":77.59},{"$f":"OFFSET(A239,0,'Cool Graph'!$I$1)","v":1092.4977151682497}]
["2012-02-24",117.96,9.93,127.53000000000002,182.85000000000002,11.42,449.69000000000005,1,2,0,4,0,1,0,176.20000000000002,0,0,6.65,0,6,0,0,0,11,11,0,0,17,854.35,2155,3009.35,1947.3000000000029,4933.2400000000034,0,0,7646.3699999999972,11525.659999999998,16554.259999999998,40659.53,78203.22,420,193,-4,0,null,null,null,null,null,0,0,0,0,0,1,null,null,0,0,2426.84,4933.2400000000034,0,0,0,0,null,15151.190000000002,770.34268854564471,{"$f":"OFFSET(A240,0,'Cool Graph'!$H$1)","v":117.96},{"$f":"OFFSET(A240,0,'Cool Graph'!$I$1)","v":770.34268854564471}]
["2012-02-25",109.07,0,150.92000000000002,185.41,15.52,460.91999999999996,0,1,0,3,2,1,1,179.69,1,0,5.72,1,10,1,0,0,11,11,0,0,21,1658.27,1975,3633.27,1261.1199999999953,6688.3600000000033,0,0,7646.3699999999972,11525.659999999998,17154.259999999998,43014.649999999994,79464.34,400,181,-4,0,null,null,null,null,null,0,0,0,0,0,0,null,null,1,0,1755.12,6688.3600000000033,17154.259999999998,0,0,0,null,15151.190000000002,1012.0586054504244,{"$f":"OFFSET(A241,0,'Cool Graph'!$H$1)","v":109.07},{"$f":"OFFSET(A241,0,'Cool Graph'!$I$1)","v":1012.0586054504244}]
["2012-02-26",88.09,4.59,188.51,149.38,13.67,444.24,1,0,0,6,2,3,1,143.85,2,1,5.53,0,6,5,0,0,12,9,0,0,18,1133.21,2100,3233.21,3482.2600000000093,8563.7600000000039,17154.259999999998,0,7646.3699999999972,11525.659999999998,2621.8600000000006,47511.909999999996,82946.600000000006,382,167,-4,0,null,null,null,null,null,0,0,0,0,0,0,null,null,0,0,1875.4,8563.7600000000039,0,17154.259999999998,0,0,null,15151.190000000002,866.5486716176797,{"$f":"OFFSET(A242,0,'Cool Graph'!$H$1)","v":88.09},{"$f":"OFFSET(A242,0,'Cool Graph'!$I$1)","v":866.5486716176797}]
["2012-02-27",88.65,14.65,235.8,191.44000000000003,5.6,536.1400000000001,0,4,0,9,0,0,0,184.44000000000003,0,0,7,0,10,5,0,0,14,11,0,0,24,1792.39,2490,4282.3900000000003,347.15999999998894,6009.9400000000041,17154.259999999998,0,12514.799999999997,8438.9599999999991,3621.8600000000006,47739.819999999992,83293.759999999995,359,151,129,100,null,null,null,null,null,0,0,0,0,0,0,133,100,1,0,2379.6,6009.9400000000041,0,17154.259999999998,0,0,null,15151.190000000002,1200.000955721662,{"$f":"OFFSET(A243,0,'Cool Graph'!$H$1)","v":88.65},{"$f":"OFFSET(A243,0,'Cool Graph'!$I$1)","v":1200.000955721662}]
["2012-02-28",70.3,14.85,196.21999999999997,216.37,15.33,513.06999999999994,0,1,0,4,0,0,2,209,0,0,7.37,0,8,3,0,0,6,5,1,0,14,1390.4,1060,2450.4,652.19000000000233,5460.5500000000038,0,0,25044.179999999997,8152.6699999999983,4621.8600000000006,43279.259999999995,83945.95,465,143,128,100,null,null,null,null,null,120,0,0,0,0,0,null,null,0,0,1205.73,5460.5500000000038,0,0,0,0,null,15151.190000000002,480.35652068129275,{"$f":"OFFSET(A244,0,'Cool Graph'!$H$1)","v":70.3},{"$f":"OFFSET(A244,0,'Cool Graph'!$I$1)","v":480.35652068129275}]
["2012-02-29",74.3,20.190000000000001,160.12000000000003,194.2,10.82,459.63,0,0,0,5,2,1,0,183.79,1,1,10.41,1,9,3,0,0,6,6,0,0,15,1681.99,1090,2771.99,-108.10999999998603,4471.2900000000045,0,0,26490.71,7358.7899999999991,5621.8600000000006,43942.650000000009,83837.840000000011,451,134,128,100,null,null,null,null,null,0,0,0,0,0,0,null,null,1,0,886.14,4471.2900000000045,0,0,0,0,null,15151.190000000002,664.17361617015024,{"$f":"OFFSET(A245,0,'Cool Graph'!$H$1)","v":74.3},{"$f":"OFFSET(A245,0,'Cool Graph'!$I$1)","v":664.17361617015024}]
["2012-03-01",84.22,16.88,197.06,163.31000000000003,23.85,485.32000000000005,1,2,0,6,1,0,0,159.07000000000002,1,0,4.24,0,8,3,0,0,12,10,0,0,20,1386.78,2145,3531.7799999999997,1056.4099999999889,4181.9400000000041,0,0,28806.78,6491.9799999999987,6621.8600000000006,46102.559999999998,84894.25,431,121,128,100,null,null,null,null,null,0,0,0,0,0,0,null,null,0,0,2090.25,4181.9400000000041,0,0,0,0,null,15151.190000000002,946.51313630908237,{"$f":"OFFSET(A246,0,'Cool Graph'!$H$1)","v":84.22},{"$f":"OFFSET(A246,0,'Cool Graph'!$I$1)","v":946.51313630908237}]
["2012-03-02",25.92,18.28,153.97999999999999,86.22,15.09,299.48999999999995,0,1,0,2,0,0,0,80.37,0,0,5.85,0,7,1,0,0,5,5,1,0,12,1164.3699999999999,960,2124.37,56.200000000011642,3977.4900000000039,0,0,30012.51,-143.85000000000218,7621.8600000000006,41468.01,84950.450000000012,528,115,127,100,null,null,null,null,null,0,0,0,0,108,0,null,null,1,0,1001.28,3977.4900000000039,0,0,0,0,null,15151.190000000002,561.75938693263038,{"$f":"OFFSET(A247,0,'Cool Graph'!$H$1)","v":25.92},{"$f":"OFFSET(A247,0,'Cool Graph'!$I$1)","v":561.75938693263038}]
["2012-03-03",32.75,24.5,215.73000000000002,77.97999999999999,19.09,370.05,0,0,0,3,1,0,0,74.97999999999999,1,0,3,0,6,1,0,0,3,3,0,0,9,1006.6,555,1561.6,1060.5199999999895,4517.0100000000039,0,0,30012.51,-143.85000000000218,8621.86,43007.53,86010.97,519,111,127,100,null,null,null,null,null,0,0,0,0,0,0,null,null,null,0,539.52,4517.0100000000039,0,0,0,0,null,15151.190000000002,263.04453750241038,{"$f":"OFFSET(A248,0,'Cool Graph'!$H$1)","v":32.75},{"$f":"OFFSET(A248,0,'Cool Graph'!$I$1)","v":263.04453750241038}]
["2012-03-04",85.71,32.03,274.13,100.27000000000001,11.59,503.72999999999996,0,0,0,5,2,0,0,94.79,2,0,5.48,0,5,1,0,0,11,11,0,0,16,871.89,1935,2806.89,1813.4100000000035,6228.4200000000037,0,0,30012.51,-143.85000000000218,9621.86,45718.94,87824.38,503,99,127,100,null,null,null,null,null,0,0,0,0,0,0,null,null,null,0,1711.41,6228.4200000000037,0,0,0,0,null,15151.190000000002,634.22256555464946,{"$f":"OFFSET(A249,0,'Cool Graph'!$H$1)","v":85.71},{"$f":"OFFSET(A249,0,'Cool Graph'!$I$1)","v":634.22256555464946}]
["2012-03-05",44.82,31.19,255.67000000000002,111.66999999999999,20.74,464.09000000000003,1,0,0,8,3,3,1,109.27999999999999,3,2,2.39,0,16,1,0,0,13,11,1,0,29,2658.23,2390,5048.2299999999996,-7123.7700000000041,4553.9800000000032,0,0,26894.559999999998,-1934.9800000000023,10621.86,40135.42,80700.61,474,87,126,100,null,null,null,null,null,0,0,0,0,0,0,null,null,null,0,2303.23,4553.9800000000032,0,0,0,0,null,15151.190000000002,1582.5332306965888,{"$f":"OFFSET(A250,0,'Cool Graph'!$H$1)","v":44.82},{"$f":"OFFSET(A250,0,'Cool Graph'!$I$1)","v":1582.5332306965888}]
["2012-03-06",17.190000000000001,20.079999999999998,233.77,86.899999999999991,17.350000000000001,375.29,0,0,0,4,1,2,2,82.27,1,1,4.63,0,7,2,0,0,5,5,0,0,12,1192.71,885,2077.71,-6580.0899999999965,4843.720000000003,0,0,19807.829999999998,-2063.5800000000022,11621.86,34209.83,74120.52,462,80,126,100,null,null,null,null,null,0,0,0,0,0,0,null,null,null,0,829.26,4843.720000000003,0,0,0,0,1900,15151.190000000002,467.04276864378409,{"$f":"OFFSET(A251,0,'Cool Graph'!$H$1)","v":17.190000000000001},{"$f":"OFFSET(A251,0,'Cool Graph'!$I$1)","v":467.04276864378409}]
["2012-03-07",218.9,55.26,244.78,114.57,14.64,648.15,0,2,0,6,0,0,0,110.39999999999999,0,0,4.17,0,13,2,0,0,9,8,1,1,22,2171.8200000000002,1820,3991.82,464.47000000000116,4917.5300000000034,0,0,21519.239999999998,-3199.0800000000022,12621.86,35859.550000000003,74584.990000000005,440,70,125,99,null,null,null,null,null,0,0,0,0,0,0,null,null,null,0,1785.22,4917.5300000000034,0,0,0,0,1900,15151.190000000002,970.18980321008723,{"$f":"OFFSET(A252,0,'Cool Graph'!$H$1)","v":218.9},{"$f":"OFFSET(A252,0,'Cool Graph'!$I$1)","v":970.18980321008723}]
["2012-03-08",176.62,46.72,198.28,91.35,6.28,519.25,2,2,0,7,2,2,0,84.89,2,1,6.46,0,6,1,0,0,10,9,0,1,16,1042.3599999999999,1806.24,2848.6,1283.9699999999866,4523.8700000000026,0,3199.08,23812.839999999997,-729.97,13621.86,38029.519999999997,75868.959999999992,424,60,125,98,null,null,null,null,null,0,0,0,0,0,0,null,null,null,0,1909.57,4523.8700000000026,0,0,3199.08,3199.08,1900,15151.190000000002,635.61238443222737,{"$f":"OFFSET(A253,0,'Cool Graph'!$H$1)","v":176.62},{"$f":"OFFSET(A253,0,'Cool Graph'!$I$1)","v":635.61238443222737}]
["2012-03-09",52.34,22.76,154.5,82.18,16.28,328.06000000000006,2,3,1,1,2,2,0,78.650000000000006,2,1,3.53,0,4,0,0,0,11,12,0,1,15,662.83,2095,2757.83,1732.390000000014,5731.7500000000027,0,0,21443.019999999997,-9850.2200000000012,14621.86,31946.41,77601.350000000006,547,249,125,97,null,null,null,null,null,0,0,0,201,138,0,null,null,null,0,2037.14,5731.7500000000027,0,0,0,0,1900,15151.190000000002,790.00295361185488,{"$f":"OFFSET(A254,0,'Cool Graph'!$H$1)","v":52.34},{"$f":"OFFSET(A254,0,'Cool Graph'!$I$1)","v":790.00295361185488}]
["2012-03-10",20.78,40.590000000000003,192.75,86.03,11.42,351.57,0,0,0,2,2,0,1,79.040000000000006,2,0,6.99,0,7,2,0,0,7,6,1,0,14,1229.1300000000001,1235,2464.13,1436.5699999999924,6935.5700000000024,0,0,21443.019999999997,-9850.2200000000012,15621.86,34150.229999999996,79037.919999999998,533,241,124,97,null,null,null,null,null,0,0,0,0,0,0,null,null,null,0,1203.82,6935.5700000000024,15621.86,0,0,0,1900,15151.190000000002,647.42285520992232,{"$f":"OFFSET(A255,0,'Cool Graph'!$H$1)","v":20.78},{"$f":"OFFSET(A255,0,'Cool Graph'!$I$1)","v":647.42285520992232}]
["2012-03-11",21.61,41.88,206.93,95.77000000000001,4.4800000000000004,370.67000000000007,0,4,0,1,0,0,0,87.110000000000014,0,0,8.66,0,3,1,0,0,8,3,0,3,11,532.55999999999995,1480,2012.56,1591.3800000000047,8378.1100000000024,15621.86,0,21443.019999999997,-9850.2200000000012,746.84000000000015,36339.61,80629.3,522,237,124,94,null,null,null,null,null,0,0,0,0,0,0,null,null,null,0,1442.54,8378.1100000000024,0,15621.86,0,0,1900,15151.190000000002,445.25004507931033,{"$f":"OFFSET(A256,0,'Cool Graph'!$H$1)","v":21.61},{"$f":"OFFSET(A256,0,'Cool Graph'!$I$1)","v":445.25004507931033}]
["2012-03-12",19.37,56.06,206.39,100.65,9.6999999999999993,392.17,0,2,0,6,0,0,0,93.5,0,0,7.15,0,3,2,0,0,12,11,1,0,15,562.98,2175,2737.98,191.27999999999884,4366.6400000000031,15621.86,0,27174.949999999997,-11258.650000000003,1489.8400000000001,37394.639999999999,80820.58,507,224,123,94,null,null,null,null,null,0,0,0,0,0,0,null,null,null,0,1720.46,4366.6400000000031,0,15621.86,0,0,1900,15151.190000000002,717.84548526565686,{"$f":"OFFSET(A257,0,'Cool Graph'!$H$1)","v":19.37},{"$f":"OFFSET(A257,0,'Cool Graph'!$I$1)","v":717.84548526565686}]
["2012-03-13",26.23,27.4,191.65,108.12,8.09,361.48999999999995,0,2,0,6,2,0,0,99.95,1,0,8.17,1,4,1,0,0,16,13,0,4,20,700.1,2925,3625.1,701.1200000000099,5484.7700000000032,0,21108.87,43852.1,8775.92,2232.84,39236.760000000009,81521.700000000012,487,210,123,90,null,null,null,null,null,0,0,0,0,0,0,null,null,null,0,2321.9499999999998,5484.7700000000032,0,0,21108.87,21108.87,1900,15151.190000000002,1108.1763728867752,{"$f":"OFFSET(A258,0,'Cool Graph'!$H$1)","v":26.23},{"$f":"OFFSET(A258,0,'Cool Graph'!$I$1)","v":1108.1763728867752}]
["2012-03-14",10.36,34.159999999999997,161.16999999999999,100.91000000000001,9.48,316.08000000000004,0,0,1,2,0,0,3,94.48,0,0,6.43,0,8,1,0,0,2,2,0,1,10,1364.43,390,1754.43,-144.60000000000582,4585.4000000000033,0,0,23588.269999999997,8468.15,2975.84,39617.659999999996,81377.100000000006,477,207,123,89,null,null,null,null,null,0,0,0,0,0,0,null,null,null,0,543.16999999999996,4585.4000000000033,0,0,0,0,1900,15151.190000000002,395.19052345693774,{"$f":"OFFSET(A259,0,'Cool Graph'!$H$1)","v":10.36},{"$f":"OFFSET(A259,0,'Cool Graph'!$I$1)","v":395.19052345693774}]
["2012-03-15",45.53,23.38,156.11000000000001,107.63,9.6300000000000008,342.28,1,1,0,0,0,0,0,99.3,0,0,8.33,0,4,2,0,0,5,5,0,0,9,731.97,895,1626.97,-335.57000000000698,2864.9400000000032,0,0,25283.259999999995,7922.5499999999993,3718.84,39789.589999999997,81041.53,468,200,123,89,null,null,null,null,null,0,0,0,0,0,0,null,null,null,0,0,2864.9400000000032,0,0,0,0,1900,15151.190000000002,317.31645215182937,{"$f":"OFFSET(A260,0,'Cool Graph'!$H$1)","v":45.53},{"$f":"OFFSET(A260,0,'Cool Graph'!$I$1)","v":317.31645215182937}]
["2012-03-16",122.35,38.380000000000003,183.53,68.100000000000009,9.06,421.42,0,1,0,5,0,2,1,62.57,0,2,5.53,0,6,0,0,0,10,9,0,0,16,1014.17,1745,2759.17,410.51000000000931,1400.5300000000034,0,0,27605.209999999995,-4745.9800000000005,4461.84,28721.599999999999,81452.040000000008,704,191,123,89,null,null,null,null,null,0,0,0,0,252,0,null,null,null,0,857.54,1400.5300000000034,0,0,0,0,1900,15151.190000000002,697.18620840197605,{"$f":"OFFSET(A261,0,'Cool Graph'!$H$1)","v":122.35},{"$f":"OFFSET(A261,0,'Cool Graph'!$I$1)","v":697.18620840197605}]
["2012-03-17",64.09,42.47,177.28,76.28,11.77,371.89,0,0,0,6,0,0,0,72.05,0,0,4.2300000000000004,0,7,0,0,0,6,6,0,0,13,1157.55,1060,2217.5500000000002,3090.3299999999872,4441.8600000000033,0,0,27605.209999999995,-4745.9800000000005,5204.84,32505.93,84542.37,691,185,123,89,null,null,null,null,null,0,0,0,0,0,0,null,null,null,0,3041.33,4441.8600000000033,0,0,0,0,1900,15151.190000000002,527.13586554717619,{"$f":"OFFSET(A262,0,'Cool Graph'!$H$1)","v":64.09},{"$f":"OFFSET(A262,0,'Cool Graph'!$I$1)","v":527.13586554717619}]
["2012-03-18",144.12,66.739999999999995,210.91000000000003,90.83,11.27,523.87,0,0,0,6,1,0,0,86.37,1,0,4.46,0,11,1,0,0,13,9,1,1,24,1884.58,2280,4164.58,1354.7100000000064,6336.8200000000033,0,0,27605.209999999995,-4745.9800000000005,5947.84,35143.89,85897.08,667,175,122,88,null,null,null,null,null,0,0,0,0,0,0,null,null,null,0,1894.96,6336.8200000000033,0,0,0,0,1900,15151.190000000002,1164.5091297334711,{"$f":"OFFSET(A263,0,'Cool Graph'!$H$1)","v":144.12},{"$f":"OFFSET(A263,0,'Cool Graph'!$I$1)","v":1164.5091297334711}]
["2012-03-19",54.56,73.56,209.29000000000002,97.39,17.39,452.19,1,1,0,10,1,3,1,90.7,0,2,6.69,1,1,0,0,0,13,10,1,2,14,168.99,2375,2543.9899999999998,-198.86000000000058,5583.5000000000027,0,0,30536.909999999993,-7065.9700000000012,6690.84,35745.279999999992,85698.22,653,165,121,86,null,null,null,null,null,0,0,0,0,0,0,null,null,null,0,2484.9699999999998,5583.5000000000027,0,0,0,0,1900,15151.190000000002,579.17921904505442,{"$f":"OFFSET(A264,0,'Cool Graph'!$H$1)","v":54.56},{"$f":"OFFSET(A264,0,'Cool Graph'!$I$1)","v":579.17921904505442}]
["2012-03-20",34.19,65.02,240.25000000000003,109.89999999999999,10.07,459.43,1,1,0,5,0,0,0,106.53999999999999,0,0,3.36,0,1,0,0,0,9,9,1,0,10,165,1700,1865,1400.7499999999854,5808.4100000000026,0,21303.91,31740.659999999993,14047.779999999997,7433.84,37726.779999999984,87098.969999999987,643,156,120,86,null,null,null,null,null,0,0,0,0,0,0,null,null,null,0,1428.66,5808.4100000000026,0,0,21303.91,21303.91,1900,15151.190000000002,296.66715192238433,{"$f":"OFFSET(A265,0,'Cool Graph'!$H$1)","v":34.19},{"$f":"OFFSET(A265,0,'Cool Graph'!$I$1)","v":296.66715192238433}]
["2012-03-21",33.159999999999997,47.44,229.97,91.72999999999999,14.49,416.78999999999996,0,3,0,5,2,0,0,88.539999999999992,2,0,3.19,0,2,1,0,0,14,12,1,1,16,363.99,2630,2993.99,2905.8899999999994,7550.6500000000024,0,0,12331.709999999995,13493.219999999998,8176.84,41552.419999999991,90004.859999999986,627,143,119,85,null,null,null,null,null,0,0,0,0,0,0,null,null,null,0,3637.2,7550.6500000000024,0,0,0,0,1900,15151.190000000002,797.01552916037508,{"$f":"OFFSET(A266,0,'Cool Graph'!$H$1)","v":33.159999999999997},{"$f":"OFFSET(A266,0,'Cool Graph'!$I$1)","v":797.01552916037508}]
["2012-03-22",179.91,40.03,182.54000000000002,97.210000000000008,15.41,515.1,1,2,0,4,2,0,0,94.95,2,0,2.2599999999999998,0,0,0,0,0,10,10,1,1,10,0,1690,1690,1642.890000000014,7112.9100000000035,0,0,14816.679999999995,12929.129999999997,8919.84,43778.559999999998,91647.75,617,133,118,86,null,null,null,null,null,0,0,0,0,0,0,null,null,null,0,2047.23,7112.9100000000035,0,0,0,0,1900,15151.190000000002,170.04969798864852,{"$f":"OFFSET(A267,0,'Cool Graph'!$H$1)","v":179.91},{"$f":"OFFSET(A267,0,'Cool Graph'!$I$1)","v":170.04969798864852}]
[null,null,null,null,null,null,null,null,null,null,null,null,null,null,null,null,null,null,null,null,null,null,null,null,null,null,null,null,null,null,null,null,null,null,null,null,null,null,null,null,null,null,null,null,null,null,null,null,null,null,null,null,null,null,null,null,null,123]
[null,null,null,null,null,null,68997.039999999994,null,null,null,null,null,null,null,null,null,null,null,null,null,null,null,null,null,null,null,null,null,null,null,444372.36999999994,101157.75,180154.78999999998,null,null,null,null,6449.7356562512614,27108.955656251263,null,617,133,232,86,69,91,133,0]
[null,null,null,null,null,null,null,null,null,null,null,null,null,null,null,null,null,null,null,null,null,null,null,null,null,null,null,null,null,null,null,"Profit after Advertising","Profit before Advertising"]
[null,null,null,null,null,null,null,null,null,null,null,null,null,null,null,null,null,null,null,null,null,null,null,null,null,null,null,null,null,null,null,0.22764185361029537,0.40541402247849029]

{"sheet":"Cool Graph","index":17,"n_rows":68,"n_cols":16,"rows_kept":68,"cut":false,"hidden":false,"merged":[[0,2,0,3],[0,4,0,5],[0,11,0,13],[0,14,0,16],[20,12,23,17]]}
[null,null,"T-Test (P-Value)",null,"R-Squared Value",null,null,1,67,null,null,{"$f":"\"Sum of \"&OldSchoolJustValues!$BQ$1","v":"Sum of Facebook Spend"},null,null,{"$f":"\"Sum of \"&OldSchoolJustValues!$BR$1","v":"Sum of Estimated Profit (new way)"}]
[null,null,{"$f":"IFERROR(_xlfn.T.TEST(ChartFirmA,ChartFirmB,2,3),1)","v":1.877625452223311E-35},null,{"$f":"IFERROR(RSQ(ChartFirmA,ChartFirmB),0)","v":3.4172038577198673E-2},null,null,"Facebook Spend","Facebook Spend",null,null,{"$f":"SUM([0]!ChartFirmA)","v":9213.8900000000031},null,null,{"$f":"SUM([0]!ChartFirmB)","v":103177.10719579688}]
[null,null,null,null,null,null,null,"Amazon Ads Spend","Amazon Ads Spend"]
[null,null,null,null,null,null,null,"adWords Search Spend","adWords Search Spend"]
[null,"Y1","Y2","Y3",{"$f":"OFFSET(A5,0,$H$1)","v":"Y1"},null,null,"Adwords Display Spend","Adwords Display Spend"]
[1,5,9,13,{"$f":"OFFSET(A6,0,$H$1)","v":5},null,null,"Adcenter Spend","Adcenter Spend"]
[2,6,10,14,{"$f":"OFFSET(A7,0,$H$1)","v":6},null,null,"Total Ad Spend","Total Ad Spend"]
[3,7,11,15,{"$f":"OFFSET(A8,0,$H$1)","v":7},null,null,"Facebook Conv.","Facebook Conv."]
[4,8,12,16,{"$f":"OFFSET(A9,0,$H$1)","v":8},null,null,"Amazon Ads Conv.","Amazon Ads Conv."]
[null,null,null,null,null,null,null,"Lava Conv.","Lava Conv."]
[null,null,null,null,null,null,null,"adWords Search Conv.","adWords Search Conv."]
[null,null,null,null,null,null,null,"adwords display Conv.","adwords display Conv."]
[null,null,null,null,null,null,null,"adwords display view-through conv.","adwords display view-through conv."]
[null,null,null,null,null,null,null,"Adcenter Conv.","Adcenter Conv."]
[null,null,null,null,null,null,null,"Adwords Content Spend","Adwords Content Spend"]
[null,null,null,null,null,null,null,"Adwords Content Conv.","Adwords Content Conv."]
[null,1,null,null,null,null,null,"Adwords Content View Through","Adwords Content View Through",null,null,null,null,"From",null,"To"]
[null,1,7,0,0,0,0,"Adwords Retargeting Spend","Adwords Retargeting Spend",null,null,null,null,{"$f":"INDEX(AllDates,MIN(N19,P19))","v":"2011-09-26"},null,{"$f":"INDEX(AllDates,MAX(N19,P19))","v":"2012-03-22"}]
[null,0,0,1,3,6,0,"Adwords Retargeting Conv.","Adwords Retargeting Conv.",null,null,null,null,88,null,266]
[null,0,0,0,0,0,1,"Amazon iPods Sold","Amazon iPods Sold",null,null,null,null,{"$f":"P18-N18","v":178}]
[null,{"$f":"StartDate","v":"2011-09-26"},null,null,null,null,null,"Amazon Pyle Sold","Amazon Pyle Sold"]
[null,null,null,null,null,null,null,"Amazon Aquavibe Sold","Amazon Aquavibe Sold"]
[null,null,null,null,null,null,null,"Amazon Discovery Sold","Amazon Discovery Sold"]
[null,null,null,null,null,null,null,"Magento iPods Sold","Magento iPods Sold"]
[null,{"$f":"ADDRESS(2,1,1,1,\"OldSchoolJustValues\")","v":"OldSchoolJustValues!$A$2"},null,{"$f":"ADDRESS(2+N20,1,1,1,)","v":"$A$180"},null,{"$f":"OldSchoolJustValues!$A$2:INDEX(OldSchoolJustValues!$A:$A,MATCH(9.99999E+307,OldSchoolJustValues!$A:$A))","v":40748},null,"Magento Pyle Sold","Magento Pyle Sold"]
[{"$f":"INDIRECT(B26,TRUE)","v":40749},{"$f":"B25&\":\"&D25","v":"OldSchoolJustValues!$A$2:$A$180"},null,null,null,null,null,"Magento Aquavibe Sold","Magento Aquavibe Sold"]
[null,null,null,null,null,null,null,"Magento Discovery Sold","Magento Discovery Sold"]
[null,{"$f":"ADDRESS(2,69,1,1,\"OldSchoolJustValues\")","v":"OldSchoolJustValues!$BQ$2"},null,{"$f":"ADDRESS(2+$N$20,69,1,1,)","v":"$BQ$180"},null,null,null,"Total iPods sold","Total iPods sold"]
[{"$f":"INDIRECT(B29,TRUE)","v":0},{"$f":"B28&\":\"&D28","v":"OldSchoolJustValues!$BQ$2:$BQ$180"},null,null,null,null,null,"Amazon Revenue","Amazon Revenue"]
[null,null,null,null,null,null,null,"Magento Revenue","Magento Revenue"]
[null,{"$f":"ADDRESS(2,70,1,1,\"OldSchoolJustValues\")","v":"OldSchoolJustValues!$BR$2"},null,{"$f":"ADDRESS(2+$N$20,70,1,1,)","v":"$BR$180"},null,null,null,"Total Revenue","Total Revenue"]
[{"$f":"INDIRECT(B32,TRUE)","v":217.15325483580358},{"$f":"B31&\":\"&D31","v":"OldSchoolJustValues!$BR$2:$BR$180"},null,null,null,null,null,"Estimated Profit","Estimated Profit"]
[null,null,null,null,null,null,null,"Paypal Amount Sent","Paypal Amount Sent"]
[null,null,null,null,null,null,null,"Amazon Amount Sent","Amazon Amount Sent"]
[null,null,null,null,null,null,null,"myAccountAccess Amount Sent","myAccountAccess Amount Sent"]
[null,null,null,null,null,35,1,"Umpqua Balance","Umpqua Balance"]
[null,null,null,null,null,36,1,"myAccountAccess Balance","myAccountAccess Balance"]
[null,null,null,null,null,37,1,"Amazon Balance","Amazon Balance"]
[null,null,null,null,null,38,1,"Total Balance","Total Balance"]
[null,null,null,null,null,39,1,"Actual Balance","Actual Balance"]
[null,null,null,null,null,40,1,"iPod inventory","iPod inventory"]
[null,null,null,null,null,41,1,"Pyle","Pyle"]
[null,null,null,null,null,42,1,"Aquavibe","Aquavibe"]
[null,null,null,null,null,43,1,"Discovery","Discovery"]
[null,null,null,null,null,44,1,"Amazon iPod","Amazon iPod"]
[null,null,null,null,null,45,1,"Amazon Pyle","Amazon Pyle"]
[null,null,null,null,null,46,1,"Amazon Aquavibe","Amazon Aquavibe"]
[null,null,null,null,null,47,1,"Amazon Discovery","Amazon Discovery"]
[null,null,null,null,null,null,null,"=IFERROR(VLOOKUP($A266,'1861740736.csv'!$A$11:$J$251,10,FALSE),0)","=IFERROR(VLOOKUP($A266,'1861740736.csv'!$A$11:$J$251,10,FALSE),0)"]
[null,null,null,null,null,null,null,"iPods Umpqua","iPods Umpqua"]
[null,null,null,null,null,null,null,"iPods End of Year","iPods End of Year"]
[null,null,null,null,null,null,null,"headphones End of Year","headphones End of Year"]
[null,null,null,null,null,null,null,"headphones myaccountaccess","headphones myaccountaccess"]
[null,null,null,null,null,null,null,"iPods myaccountaccess","iPods myaccountaccess"]
[null,null,null,null,null,null,null,"Yield Loss","Yield Loss"]
[null,null,null,null,null,null,null,"Aquavibe purchased","Aquavibe purchased"]
[null,null,null,null,null,null,null,"Discovery Purchased","Discovery Purchased"]
[null,null,null,null,null,null,null,"Missing iPods","Missing iPods"]
[null,null,null,null,null,58,1,"Paypal Balance","Paypal Balance"]
[null,null,null,null,null,null,null,"Paypal Amount Sent before","Paypal Amount Sent before"]
[null,null,null,null,null,null,null,"Paypal Calculated stuff","Paypal Calculated stuff"]
[null,null,null,null,null,null,null,"Amazon Amount","Amazon Amount"]
[null,null,null,null,null,null,null,"Amazon Calculated Stuff","Amazon Calculated Stuff"]
[null,null,null,null,null,null,null,"MyAccountAccess","MyAccountAccess"]
[]
[null,null,null,null,null,null,null,"SwimBuds Inventory","SwimBuds Inventory"]
[null,null,null,null,null,66,1,"Savings Balance","Savings Balance"]
[null,null,null,null,null,null,null,"Estimated Profit (new way)","Estimated Profit (new way)"]

{"sheet":"Data1","index":18,"n_rows":267,"n_cols":15,"rows_kept":267,"cut":false,"hidden":false,"merged":[]}
["Date",{"$f":"OFFSET(OldSchoolJustValues!$A1,0,'Cool Graph'!$H$1)","v":"Facebook Spend"},{"$f":"OFFSET(OldSchoolJustValues!$A1,0,'Cool Graph'!$I$1)","v":"Estimated Profit (new way)"},null,"Date",{"$f":"OFFSET(OldSchoolJustValues!$A1,0,'Cool Graph'!$H$1)","v":"Facebook Spend"},{"$f":"OFFSET(OldSchoolJustValues!$A1,0,'Cool Graph'!$I$1)","v":"Estimated Profit (new way)"},"Weekly1","Monthly1","Daily1","Running Total Data","Weekly2","Monthly2","Daily2","Running Total Data"]
["2011-07-01",{"$f":"OFFSET(OldSchoolJustValues!A2,0,'Cool Graph'!$H$1)","v":0},{"$f":"OFFSET(OldSchoolJustValues!A2,0,'Cool Graph'!$I$1)","v":0},null,{"$f":"StartDate","v":"2011-09-26"},{"$f":"IF($E2>EndDate,NA(),IF($K$2=TRUE,N2,IF('Cool Graph'!$B$17=1,N2,IF('Cool Graph'!$B$17=2,L2,IF('Cool Graph'!$B$17=3,M2,)))))","v":0},{"$f":"IF($E2>EndDate,NA(),IF($O$2=TRUE,J2,IF('Cool Graph'!$B$17=1,Data1!J2,IF('Cool Graph'!$B$17=2,Data1!H2,IF('Cool Graph'!$B$17=3,Data1!I2,)))))","v":235.44634248006912},{"$f":"SUM(VLOOKUP($E2,AllData,COLUMN()-COLUMN($E2)),VLOOKUP($E2-1,AllData,COLUMN()-COLUMN($E2)),VLOOKUP($E2-2,AllData,COLUMN()-COLUMN($E2)),VLOOKUP($E2-3,AllData,COLUMN()-COLUMN($E2)),VLOOKUP($E2-4,AllData,COLUMN()-COLUMN($E2)),VLOOKUP($E2-5,AllData,COLUMN()-COLUMN($E2)),VLOOKUP($E2-6,AllData,COLUMN()-COLUMN($E2)))","v":1527.0424989127928},{"$f":"SUM(VLOOKUP($E2,AllData,COLUMN()-1-COLUMN($E2)),VLOOKUP($E2-1,AllData,COLUMN()-1-COLUMN($E2)),VLOOKUP($E2-2,AllData,COLUMN()-1-COLUMN($E2)),VLOOKUP($E2-3,AllData,COLUMN()-1-COLUMN($E2)),VLOOKUP($E2-4,AllData,COLUMN()-1-COLUMN($E2)),VLOOKUP($E2-5,AllData,COLUMN()-1-COLUMN($E2)),VLOOKUP($E2-6,AllData,COLUMN()-1-COLUMN($E2)),VLOOKUP($E2-7,AllData,COLUMN()-1-COLUMN($E2)),VLOOKUP($E2-8,AllData,COLUMN()-1-COLUMN($E2)),VLOOKUP($E2-9,AllData,COLUMN()-1-COLUMN($E2)),VLOOKUP($E2-10,AllData,COLUMN()-1-COLUMN($E2)),VLOOKUP($E2-11,AllData,COLUMN()-1-COLUMN($E2)),VLOOKUP($E2-12,AllData,COLUMN()-1-COLUMN($E2)),VLOOKUP($E2-13,AllData,COLUMN()-1-COLUMN($E2)),VLOOKUP($E2-14,AllData,COLUMN()-1-COLUMN($E2)),VLOOKUP($E2-15,AllData,COLUMN()-1-COLUMN($E2)),VLOOKUP($E2-16,AllData,COLUMN()-1-COLUMN($E2)),VLOOKUP($E2-17,AllData,COLUMN()-1-COLUMN($E2)),VLOOKUP($E2-18,AllData,COLUMN()-1-COLUMN($E2)),VLOOKUP($E2-19,AllData,COLUMN()-1-COLUMN($E2)),VLOOKUP($E2-20,AllData,COLUMN()-1-COLUMN($E2)),VLOOKUP($E2-21,AllData,COLUMN()-1-COLUMN($E2)),VLOOKUP($E2-22,AllData,COLUMN()-1-COLUMN($E2)),VLOOKUP($E2-23,AllData,COLUMN()-1-COLUMN($E2)),VLOOKUP($E2-24,AllData,COLUMN()-1-COLUMN($E2)),VLOOKUP($E2-25,AllData,COLUMN()-1-COLUMN($E2)),VLOOKUP($E2-26,AllData,COLUMN()-1-COLUMN($E2)),VLOOKUP($E2-27,AllData,COLUMN()-1-COLUMN($E2)),VLOOKUP($E2-28,AllData,COLUMN()-1-COLUMN($E2)),VLOOKUP($E2-29,AllData,COLUMN()-1-COLUMN($E2)))","v":5813.1315941756229},{"$f":"VLOOKUP($E2,AllData,COLUMN()-2-COLUMN($E2))","v":235.44634248006912},{"$f":"OR('Cool Graph'!$H$1=35,'Cool Graph'!$H$1=36,'Cool Graph'!$H$1=37,'Cool Graph'!$H$1=38,'Cool Graph'!$H$1=39,'Cool Graph'!$H$1=40,'Cool Graph'!$H$1=41,'Cool Graph'!$H$1=42,'Cool Graph'!$H$1=43,'Cool Graph'!$H$1=44,'Cool Graph'!$H$1=45,'Cool Graph'!$H$1=46,'Cool Graph'!$H$1=47,'Cool Graph'!$H$1=58,'Cool Graph'!$H$1=66)","v":false},{"$f":"SUM(VLOOKUP($E2,AllData,COLUMN()-5-COLUMN($E2)),VLOOKUP($E2-1,AllData,COLUMN()-5-COLUMN($E2)),VLOOKUP($E2-2,AllData,COLUMN()-5-COLUMN($E2)),VLOOKUP($E2-3,AllData,COLUMN()-5-COLUMN($E2)),VLOOKUP($E2-4,AllData,COLUMN()-5-COLUMN($E2)),VLOOKUP($E2-5,AllData,COLUMN()-5-COLUMN($E2)),VLOOKUP($E2-6,AllData,COLUMN()-5-COLUMN($E2)))","v":0},{"$f":"SUM(VLOOKUP($E2,AllData,COLUMN()-6-COLUMN($E2)),VLOOKUP($E2-1,AllData,COLUMN()-6-COLUMN($E2)),VLOOKUP($E2-2,AllData,COLUMN()-6-COLUMN($E2)),VLOOKUP($E2-3,AllData,COLUMN()-6-COLUMN($E2)),VLOOKUP($E2-4,AllData,COLUMN()-6-COLUMN($E2)),VLOOKUP($E2-5,AllData,COLUMN()-6-COLUMN($E2)),VLOOKUP($E2-6,AllData,COLUMN()-6-COLUMN($E2)),VLOOKUP($E2-7,AllData,COLUMN()-6-COLUMN($E2)),VLOOKUP($E2-8,AllData,COLUMN()-6-COLUMN($E2)),VLOOKUP($E2-9,AllData,COLUMN()-6-COLUMN($E2)),VLOOKUP($E2-10,AllData,COLUMN()-6-COLUMN($E2)),VLOOKUP($E2-11,AllData,COLUMN()-6-COLUMN($E2)),VLOOKUP($E2-12,AllData,COLUMN()-6-COLUMN($E2)),VLOOKUP($E2-13,AllData,COLUMN()-6-COLUMN($E2)),VLOOKUP($E2-14,AllData,COLUMN()-6-COLUMN($E2)),VLOOKUP($E2-15,AllData,COLUMN()-6-COLUMN($E2)),VLOOKUP($E2-16,AllData,COLUMN()-6-COLUMN($E2)),VLOOKUP($E2-17,AllData,COLUMN()-6-COLUMN($E2)),VLOOKUP($E2-18,AllData,COLUMN()-6-COLUMN($E2)),VLOOKUP($E2-19,AllData,COLUMN()-6-COLUMN($E2)),VLOOKUP($E2-20,AllData,COLUMN()-6-COLUMN($E2)),VLOOKUP($E2-21,AllData,COLUMN()-6-COLUMN($E2)),VLOOKUP($E2-22,AllData,COLUMN()-6-COLUMN($E2)),VLOOKUP($E2-23,AllData,COLUMN()-6-COLUMN($E2)),VLOOKUP($E2-24,AllData,COLUMN()-6-COLUMN($E2)),VLOOKUP($E2-25,AllData,COLUMN()-6-COLUMN($E2)),VLOOKUP($E2-26,AllData,COLUMN()-6-COLUMN($E2)),VLOOKUP($E2-27,AllData,COLUMN()-6-COLUMN($E2)),VLOOKUP($E2-28,AllData,COLUMN()-6-COLUMN($E2)),VLOOKUP($E2-29,AllData,COLUMN()-6-COLUMN($E2)))","v":0},{"$f":"VLOOKUP($E2,AllData,COLUMN()-7-COLUMN($E2))","v":0},{"$f":"OR('Cool Graph'!$I$1=35,'Cool Graph'!$I$1=36,'Cool Graph'!$I$1=37,'Cool Graph'!$I$1=38,'Cool Graph'!$I$1=39,'Cool Graph'!$I$1=40,'Cool Graph'!$I$1=41,'Cool Graph'!$I$1=42,'Cool Graph'!$I$1=43,'Cool Graph'!$I$1=44,'Cool Graph'!$I$1=45,'Cool Graph'!$I$1=46,'Cool Graph'!$I$1=47,'Cool Graph'!$I$1=58,'Cool Graph'!$I$1=66)","v":false}]
["2011-07-02",{"$f":"OFFSET(OldSchoolJustValues!A3,0,'Cool Graph'!$H$1)","v":0},{"$f":"OFFSET(OldSchoolJustValues!A3,0,'Cool Graph'!$I$1)","v":0},null,{"$f":"IF(NewDate>EndDate,NA(),NewDate)","v":"2011-09-27"},{"$f":"IF($E3>EndDate,NA(),IF($K$2=TRUE,N3,IF('Cool Graph'!$B$17=1,N3,IF('Cool Graph'!$B$17=2,L3,IF('Cool Graph'!$B$17=3,M3,)))))","v":0},{"$f":"IF($E3>EndDate,NA(),IF($O$2=TRUE,J3,IF('Cool Graph'!$B$17=1,Data1!J3,IF('Cool Graph'!$B$17=2,Data1!H3,IF('Cool Graph'!$B$17=3,Data1!I3,)))))","v":277.25776796361129},{"$f":"SUM(VLOOKUP($E3,AllData,COLUMN()-COLUMN($E3)),VLOOKUP($E3-1,AllData,COLUMN()-COLUMN($E3)),VLOOKUP($E3-2,AllData,COLUMN()-COLUMN($E3)),VLOOKUP($E3-3,AllData,COLUMN()-COLUMN($E3)),VLOOKUP($E3-4,AllData,COLUMN()-COLUMN($E3)),VLOOKUP($E3-5,AllData,COLUMN()-COLUMN($E3)),VLOOKUP($E3-6,AllData,COLUMN()-COLUMN($E3)))","v":1478.5903846226984},{"$f":"SUM(VLOOKUP($E3,AllData,COLUMN()-1-COLUMN($E3)),VLOOKUP($E3-1,AllData,COLUMN()-1-COLUMN($E3)),VLOOKUP($E3-2,AllData,COLUMN()-1-COLUMN($E3)),VLOOKUP($E3-3,AllData,COLUMN()-1-COLUMN($E3)),VLOOKUP($E3-4,AllData,COLUMN()-1-COLUMN($E3)),VLOOKUP($E3-5,AllData,COLUMN()-1-COLUMN($E3)),VLOOKUP($E3-6,AllData,COLUMN()-1-COLUMN($E3)),VLOOKUP($E3-7,AllData,COLUMN()-1-COLUMN($E3)),VLOOKUP($E3-8,AllData,COLUMN()-1-COLUMN($E3)),VLOOKUP($E3-9,AllData,COLUMN()-1-COLUMN($E3)),VLOOKUP($E3-10,AllData,COLUMN()-1-COLUMN($E3)),VLOOKUP($E3-11,AllData,COLUMN()-1-COLUMN($E3)),VLOOKUP($E3-12,AllData,COLUMN()-1-COLUMN($E3)),VLOOKUP($E3-13,AllData,COLUMN()-1-COLUMN($E3)),VLOOKUP($E3-14,AllData,COLUMN()-1-COLUMN($E3)),VLOOKUP($E3-15,AllData,COLUMN()-1-COLUMN($E3)),VLOOKUP($E3-16,AllData,COLUMN()-1-COLUMN($E3)),VLOOKUP($E3-17,AllData,COLUMN()-1-COLUMN($E3)),VLOOKUP($E3-18,AllData,COLUMN()-1-COLUMN($E3)),VLOOKUP($E3-19,AllData,COLUMN()-1-COLUMN($E3)),VLOOKUP($E3-20,AllData,COLUMN()-1-COLUMN($E3)),VLOOKUP($E3-21,AllData,COLUMN()-1-COLUMN($E3)),VLOOKUP($E3-22,AllData,COLUMN()-1-COLUMN($E3)),VLOOKUP($E3-23,AllData,COLUMN()-1-COLUMN($E3)),VLOOKUP($E3-24,AllData,COLUMN()-1-COLUMN($E3)),VLOOKUP($E3-25,AllData,COLUMN()-1-COLUMN($E3)),VLOOKUP($E3-26,AllData,COLUMN()-1-COLUMN($E3)),VLOOKUP($E3-27,AllData,COLUMN()-1-COLUMN($E3)),VLOOKUP($E3-28,AllData,COLUMN()-1-COLUMN($E3)),VLOOKUP($E3-29,AllData,COLUMN()-1-COLUMN($E3)))","v":6166.2693621392336},{"$f":"VLOOKUP($E3,AllData,COLUMN()-2-COLUMN($E3))","v":277.25776796361129},{"$f":"OR('Cool Graph'!$H$1=35,'Cool Graph'!$H$1=36,'Cool Graph'!$H$1=37,'Cool Graph'!$H$1=38,'Cool Graph'!$H$1=39,'Cool Graph'!$H$1=40,'Cool Graph'!$H$1=41,'Cool Graph'!$H$1=42,'Cool Graph'!$H$1=43,'Cool Graph'!$H$1=44,'Cool Graph'!$H$1=45,'Cool Graph'!$H$1=46,'Cool Graph'!$H$1=47,'Cool Graph'!$H$1=58,'Cool Graph'!$H$1=66)","v":false},{"$f":"SUM(VLOOKUP($E3,AllData,COLUMN()-5-COLUMN($E3)),VLOOKUP($E3-1,AllData,COLUMN()-5-COLUMN($E3)),VLOOKUP($E3-2,AllData,COLUMN()-5-COLUMN($E3)),VLOOKUP($E3-3,AllData,COLUMN()-5-COLUMN($E3)),VLOOKUP($E3-4,AllData,COLUMN()-5-COLUMN($E3)),VLOOKUP($E3-5,AllData,COLUMN()-5-COLUMN($E3)),VLOOKUP($E3-6,AllData,COLUMN()-5-COLUMN($E3)))","v":0},{"$f":"SUM(VLOOKUP($E3,AllData,COLUMN()-6-COLUMN($E3)),VLOOKUP($E3-1,AllData,COLUMN()-6-COLUMN($E3)),VLOOKUP($E3-2,AllData,COLUMN()-6-COLUMN($E3)),VLOOKUP($E3-3,AllData,COLUMN()-6-COLUMN($E3)),VLOOKUP($E3-4,AllData,COLUMN()-6-COLUMN($E3)),VLOOKUP($E3-5,AllData,COLUMN()-6-COLUMN($E3)),VLOOKUP($E3-6,AllData,COLUMN()-6-COLUMN($E3)),VLOOKUP($E3-7,AllData,COLUMN()-6-COLUMN($E3)),VLOOKUP($E3-8,AllData,COLUMN()-6-COLUMN($E3)),VLOOKUP($E3-9,AllData,COLUMN()-6-COLUMN($E3)),VLOOKUP($E3-10,AllData,COLUMN()-6-COLUMN($E3)),VLOOKUP($E3-11,AllData,COLUMN()-6-COLUMN($E3)),VLOOKUP($E3-12,AllData,COLUMN()-6-COLUMN($E3)),VLOOKUP($E3-13,AllData,COLUMN()-6-COLUMN($E3)),VLOOKUP($E3-14,AllData,COLUMN()-6-COLUMN($E3)),VLOOKUP($E3-15,AllData,COLUMN()-6-COLUMN($E3)),VLOOKUP($E3-16,AllData,COLUMN()-6-COLUMN($E3)),VLOOKUP($E3-17,AllData,COLUMN()-6-COLUMN($E3)),VLOOKUP($E3-18,AllData,COLUMN()-6-COLUMN($E3)),VLOOKUP($E3-19,AllData,COLUMN()-6-COLUMN($E3)),VLOOKUP($E3-20,AllData,COLUMN()-6-COLUMN($E3)),VLOOKUP($E3-21,AllData,COLUMN()-6-COLUMN($E3)),VLOOKUP($E3-22,AllData,COLUMN()-6-COLUMN($E3)),VLOOKUP($E3-23,AllData,COLUMN()-6-COLUMN($E3)),VLOOKUP($E3-24,AllData,COLUMN()-6-COLUMN($E3)),VLOOKUP($E3-25,AllData,COLUMN()-6-COLUMN($E3)),VLOOKUP($E3-26,AllData,COLUMN()-6-COLUMN($E3)),VLOOKUP($E3-27,AllData,COLUMN()-6-COLUMN($E3)),VLOOKUP($E3-28,AllData,COLUMN()-6-COLUMN($E3)),VLOOKUP($E3-29,AllData,COLUMN()-6-COLUMN($E3)))","v":0},{"$f":"VLOOKUP($E3,AllData,COLUMN()-7-COLUMN($E3))","v":0},{"$f":"OR('Cool Graph'!$I$1=35,'Cool Graph'!$I$1=36,'Cool Graph'!$I$1=37,'Cool Graph'!$I$1=38,'Cool Graph'!$I$1=39,'Cool Graph'!$I$1=40,'Cool Graph'!$I$1=41,'Cool Graph'!$I$1=42,'Cool Graph'!$I$1=43,'Cool Graph'!$I$1=44,'Cool Graph'!$I$1=45,'Cool Graph'!$I$1=46,'Cool Graph'!$I$1=47,'Cool Graph'!$I$1=58,'Cool Graph'!$I$1=66)","v":false}]
["2011-07-03",{"$f":"OFFSET(OldSchoolJustValues!A4,0,'Cool Graph'!$H$1)","v":0},{"$f":"OFFSET(OldSchoolJustValues!A4,0,'Cool Graph'!$I$1)","v":0},null,{"$f":"IF(NewDate>EndDate,NA(),NewDate)","v":"2011-09-28"},{"$f":"IF($E4>EndDate,NA(),IF($K$2=TRUE,N4,IF('Cool Graph'!$B$17=1,N4,IF('Cool Graph'!$B$17=2,L4,IF('Cool Graph'!$B$17=3,M4,)))))","v":30},{"$f":"IF($E4>EndDate,NA(),IF($O$2=TRUE,J4,IF('Cool Graph'!$B$17=1,Data1!J4,IF('Cool Graph'!$B$17=2,Data1!H4,IF('Cool Graph'!$B$17=3,Data1!I4,)))))","v":631.78712445082942},{"$f":"SUM(VLOOKUP($E4,AllData,COLUMN()-COLUMN($E4)),VLOOKUP($E4-1,AllData,COLUMN()-COLUMN($E4)),VLOOKUP($E4-2,AllData,COLUMN()-COLUMN($E4)),VLOOKUP($E4-3,AllData,COLUMN()-COLUMN($E4)),VLOOKUP($E4-4,AllData,COLUMN()-COLUMN($E4)),VLOOKUP($E4-5,AllData,COLUMN()-COLUMN($E4)),VLOOKUP($E4-6,AllData,COLUMN()-COLUMN($E4)))","v":1913.3042542377243},{"$f":"SUM(VLOOKUP($E4,AllData,COLUMN()-1-COLUMN($E4)),VLOOKUP($E4-1,AllData,COLUMN()-1-COLUMN($E4)),VLOOKUP($E4-2,AllData,COLUMN()-1-COLUMN($E4)),VLOOKUP($E4-3,AllData,COLUMN()-1-COLUMN($E4)),VLOOKUP($E4-4,AllData,COLUMN()-1-COLUMN($E4)),VLOOKUP($E4-5,AllData,COLUMN()-1-COLUMN($E4)),VLOOKUP($E4-6,AllData,COLUMN()-1-COLUMN($E4)),VLOOKUP($E4-7,AllData,COLUMN()-1-COLUMN($E4)),VLOOKUP($E4-8,AllData,COLUMN()-1-COLUMN($E4)),VLOOKUP($E4-9,AllData,COLUMN()-1-COLUMN($E4)),VLOOKUP($E4-10,AllData,COLUMN()-1-COLUMN($E4)),VLOOKUP($E4-11,AllData,COLUMN()-1-COLUMN($E4)),VLOOKUP($E4-12,AllData,COLUMN()-1-COLUMN($E4)),VLOOKUP($E4-13,AllData,COLUMN()-1-COLUMN($E4)),VLOOKUP($E4-14,AllData,COLUMN()-1-COLUMN($E4)),VLOOKUP($E4-15,AllData,COLUMN()-1-COLUMN($E4)),VLOOKUP($E4-16,AllData,COLUMN()-1-COLUMN($E4)),VLOOKUP($E4-17,AllData,COLUMN()-1-COLUMN($E4)),VLOOKUP($E4-18,AllData,COLUMN()-1-COLUMN($E4)),VLOOKUP($E4-19,AllData,COLUMN()-1-COLUMN($E4)),VLOOKUP($E4-20,AllData,COLUMN()-1-COLUMN($E4)),VLOOKUP($E4-21,AllData,COLUMN()-1-COLUMN($E4)),VLOOKUP($E4-22,AllData,COLUMN()-1-COLUMN($E4)),VLOOKUP($E4-23,AllData,COLUMN()-1-COLUMN($E4)),VLOOKUP($E4-24,AllData,COLUMN()-1-COLUMN($E4)),VLOOKUP($E4-25,AllData,COLUMN()-1-COLUMN($E4)),VLOOKUP($E4-26,AllData,COLUMN()-1-COLUMN($E4)),VLOOKUP($E4-27,AllData,COLUMN()-1-COLUMN($E4)),VLOOKUP($E4-28,AllData,COLUMN()-1-COLUMN($E4)),VLOOKUP($E4-29,AllData,COLUMN()-1-COLUMN($E4)))","v":6774.2898591721632},{"$f":"VLOOKUP($E4,AllData,COLUMN()-2-COLUMN($E4))","v":631.78712445082942},{"$f":"OR('Cool Graph'!$H$1=35,'Cool Graph'!$H$1=36,'Cool Graph'!$H$1=37,'Cool Graph'!$H$1=38,'Cool Graph'!$H$1=39,'Cool Graph'!$H$1=40,'Cool Graph'!$H$1=41,'Cool Graph'!$H$1=42,'Cool Graph'!$H$1=43,'Cool Graph'!$H$1=44,'Cool Graph'!$H$1=45,'Cool Graph'!$H$1=46,'Cool Graph'!$H$1=47,'Cool Graph'!$H$1=58,'Cool Graph'!$H$1=66)","v":false},{"$f":"SUM(VLOOKUP($E4,AllData,COLUMN()-5-COLUMN($E4)),VLOOKUP($E4-1,AllData,COLUMN()-5-COLUMN($E4)),VLOOKUP($E4-2,AllData,COLUMN()-5-COLUMN($E4)),VLOOKUP($E4-3,AllData,COLUMN()-5-COLUMN($E4)),VLOOKUP($E4-4,AllData,COLUMN()-5-COLUMN($E4)),VLOOKUP($E4-5,AllData,COLUMN()-5-COLUMN($E4)),VLOOKUP($E4-6,AllData,COLUMN()-5-COLUMN($E4)))","v":30},{"$f":"SUM(VLOOKUP($E4,AllData,COLUMN()-6-COLUMN($E4)),VLOOKUP($E4-1,AllData,COLUMN()-6-COLUMN($E4)),VLOOKUP($E4-2,AllData,COLUMN()-6-COLUMN($E4)),VLOOKUP($E4-3,AllData,COLUMN()-6-COLUMN($E4)),VLOOKUP($E4-4,AllData,COLUMN()-6-COLUMN($E4)),VLOOKUP($E4-5,AllData,COLUMN()-6-COLUMN($E4)),VLOOKUP($E4-6,AllData,COLUMN()-6-COLUMN($E4)),VLOOKUP($E4-7,AllData,COLUMN()-6-COLUMN($E4)),VLOOKUP($E4-8,AllData,COLUMN()-6-COLUMN($E4)),VLOOKUP($E4-9,AllData,COLUMN()-6-COLUMN($E4)),VLOOKUP($E4-10,AllData,COLUMN()-6-COLUMN($E4)),VLOOKUP($E4-11,AllData,COLUMN()-6-COLUMN($E4)),VLOOKUP($E4-12,AllData,COLUMN()-6-COLUMN($E4)),VLOOKUP($E4-13,AllData,COLUMN()-6-COLUMN($E4)),VLOOKUP($E4-14,AllData,COLUMN()-6-COLUMN($E4)),VLOOKUP($E4-15,AllData,COLUMN()-6-COLUMN($E4)),VLOOKUP($E4-16,AllData,COLUMN()-6-COLUMN($E4)),VLOOKUP($E4-17,AllData,COLUMN()-6-COLUMN($E4)),VLOOKUP($E4-18,AllData,COLUMN()-6-COLUMN($E4)),VLOOKUP($E4-19,AllData,COLUMN()-6-COLUMN($E4)),VLOOKUP($E4-20,AllData,COLUMN()-6-COLUMN($E4)),VLOOKUP($E4-21,AllData,COLUMN()-6-COLUMN($E4)),VLOOKUP($E4-22,AllData,COLUMN()-6-COLUMN($E4)),VLOOKUP($E4-23,AllData,COLUMN()-6-COLUMN($E4)),VLOOKUP($E4-24,AllData,COLUMN()-6-COLUMN($E4)),VLOOKUP($E4-25,AllData,COLUMN()-6-COLUMN($E4)),VLOOKUP($E4-26,AllData,COLUMN()-6-COLUMN($E4)),VLOOKUP($E4-27,AllData,COLUMN()-6-COLUMN($E4)),VLOOKUP($E4-28,AllData,COLUMN()-6-COLUMN($E4)),VLOOKUP($E4-29,AllData,COLUMN()-6-COLUMN($E4)))","v":30},{"$f":"VLOOKUP($E4,AllData,COLUMN()-7-COLUMN($E4))","v":30},{"$f":"OR('Cool Graph'!$I$1=35,'Cool Graph'!$I$1=36,'Cool Graph'!$I$1=37,'Cool Graph'!$I$1=38,'Cool Graph'!$I$1=39,'Cool Graph'!$I$1=40,'Cool Graph'!$I$1=41,'Cool Graph'!$I$1=42,'Cool Graph'!$I$1=43,'Cool Graph'!$I$1=44,'Cool Graph'!$I$1=45,'Cool Graph'!$I$1=46,'Cool Graph'!$I$1=47,'Cool Graph'!$I$1=58,'Cool Graph'!$I$1=66)","v":false}]
["2011-07-04",{"$f":"OFFSET(OldSchoolJustValues!A5,0,'Cool Graph'!$H$1)","v":0},{"$f":"OFFSET(OldSchoolJustValues!A5,0,'Cool Graph'!$I$1)","v":0},null,{"$f":"IF(NewDate>EndDate,NA(),NewDate)","v":"2011-09-29"},{"$f":"IF($E5>EndDate,NA(),IF($K$2=TRUE,N5,IF('Cool Graph'!$B$17=1,N5,IF('Cool Graph'!$B$17=2,L5,IF('Cool Graph'!$B$17=3,M5,)))))","v":30},{"$f":"IF($E5>EndDate,NA(),IF($O$2=TRUE,J5,IF('Cool Graph'!$B$17=1,Data1!J5,IF('Cool Graph'!$B$17=2,Data1!H5,IF('Cool Graph'!$B$17=3,Data1!I5,)))))","v":875.68679260571503},{"$f":"SUM(VLOOKUP($E5,AllData,COLUMN()-COLUMN($E5)),VLOOKUP($E5-1,AllData,COLUMN()-COLUMN($E5)),VLOOKUP($E5-2,AllData,COLUMN()-COLUMN($E5)),VLOOKUP($E5-3,AllData,COLUMN()-COLUMN($E5)),VLOOKUP($E5-4,AllData,COLUMN()-COLUMN($E5)),VLOOKUP($E5-5,AllData,COLUMN()-COLUMN($E5)),VLOOKUP($E5-6,AllData,COLUMN()-COLUMN($E5)))","v":2450.2511645897339},{"$f":"SUM(VLOOKUP($E5,AllData,COLUMN()-1-COLUMN($E5)),VLOOKUP($E5-1,AllData,COLUMN()-1-COLUMN($E5)),VLOOKUP($E5-2,AllData,COLUMN()-1-COLUMN($E5)),VLOOKUP($E5-3,AllData,COLUMN()-1-COLUMN($E5)),VLOOKUP($E5-4,AllData,COLUMN()-1-COLUMN($E5)),VLOOKUP($E5-5,AllData,COLUMN()-1-COLUMN($E5)),VLOOKUP($E5-6,AllData,COLUMN()-1-COLUMN($E5)),VLOOKUP($E5-7,AllData,COLUMN()-1-COLUMN($E5)),VLOOKUP($E5-8,AllData,COLUMN()-1-COLUMN($E5)),VLOOKUP($E5-9,AllData,COLUMN()-1-COLUMN($E5)),VLOOKUP($E5-10,AllData,COLUMN()-1-COLUMN($E5)),VLOOKUP($E5-11,AllData,COLUMN()-1-COLUMN($E5)),VLOOKUP($E5-12,AllData,COLUMN()-1-COLUMN($E5)),VLOOKUP($E5-13,AllData,COLUMN()-1-COLUMN($E5)),VLOOKUP($E5-14,AllData,COLUMN()-1-COLUMN($E5)),VLOOKUP($E5-15,AllData,COLUMN()-1-COLUMN($E5)),VLOOKUP($E5-16,AllData,COLUMN()-1-COLUMN($E5)),VLOOKUP($E5-17,AllData,COLUMN()-1-COLUMN($E5)),VLOOKUP($E5-18,AllData,COLUMN()-1-COLUMN($E5)),VLOOKUP($E5-19,AllData,COLUMN()-1-COLUMN($E5)),VLOOKUP($E5-20,AllData,COLUMN()-1-COLUMN($E5)),VLOOKUP($E5-21,AllData,COLUMN()-1-COLUMN($E5)),VLOOKUP($E5-22,AllData,COLUMN()-1-COLUMN($E5)),VLOOKUP($E5-23,AllData,COLUMN()-1-COLUMN($E5)),VLOOKUP($E5-24,AllData,COLUMN()-1-COLUMN($E5)),VLOOKUP($E5-25,AllData,COLUMN()-1-COLUMN($E5)),VLOOKUP($E5-26,AllData,COLUMN()-1-COLUMN($E5)),VLOOKUP($E5-27,AllData,COLUMN()-1-COLUMN($E5)),VLOOKUP($E5-28,AllData,COLUMN()-1-COLUMN($E5)),VLOOKUP($E5-29,AllData,COLUMN()-1-COLUMN($E5)))","v":7595.2100243599762},{"$f":"VLOOKUP($E5,AllData,COLUMN()-2-COLUMN($E5))","v":875.68679260571503},{"$f":"OR('Cool Graph'!$H$1=35,'Cool Graph'!$H$1=36,'Cool Graph'!$H$1=37,'Cool Graph'!$H$1=38,'Cool Graph'!$H$1=39,'Cool Graph'!$H$1=40,'Cool Graph'!$H$1=41,'Cool Graph'!$H$1=42,'Cool Graph'!$H$1=43,'Cool Graph'!$H$1=44,'Cool Graph'!$H$1=45,'Cool Graph'!$H$1=46,'Cool Graph'!$H$1=47,'Cool Graph'!$H$1=58,'Cool Graph'!$H$1=66)","v":false},{"$f":"SUM(VLOOKUP($E5,AllData,COLUMN()-5-COLUMN($E5)),VLOOKUP($E5-1,AllData,COLUMN()-5-COLUMN($E5)),VLOOKUP($E5-2,AllData,COLUMN()-5-COLUMN($E5)),VLOOKUP($E5-3,AllData,COLUMN()-5-COLUMN($E5)),VLOOKUP($E5-4,AllData,COLUMN()-5-COLUMN($E5)),VLOOKUP($E5-5,AllData,COLUMN()-5-COLUMN($E5)),VLOOKUP($E5-6,AllData,COLUMN()-5-COLUMN($E5)))","v":60},{"$f":"SUM(VLOOKUP($E5,AllData,COLUMN()-6-COLUMN($E5)),VLOOKUP($E5-1,AllData,COLUMN()-6-COLUMN($E5)),VLOOKUP($E5-2,AllData,COLUMN()-6-COLUMN($E5)),VLOOKUP($E5-3,AllData,COLUMN()-6-COLUMN($E5)),VLOOKUP($E5-4,AllData,COLUMN()-6-COLUMN($E5)),VLOOKUP($E5-5,AllData,COLUMN()-6-COLUMN($E5)),VLOOKUP($E5-6,AllData,COLUMN()-6-COLUMN($E5)),VLOOKUP($E5-7,AllData,COLUMN()-6-COLUMN($E5)),VLOOKUP($E5-8,AllData,COLUMN()-6-COLUMN($E5)),VLOOKUP($E5-9,AllData,COLUMN()-6-COLUMN($E5)),VLOOKUP($E5-10,AllData,COLUMN()-6-COLUMN($E5)),VLOOKUP($E5-11,AllData,COLUMN()-6-COLUMN($E5)),VLOOKUP($E5-12,AllData,COLUMN()-6-COLUMN($E5)),VLOOKUP($E5-13,AllData,COLUMN()-6-COLUMN($E5)),VLOOKUP($E5-14,AllData,COLUMN()-6-COLUMN($E5)),VLOOKUP($E5-15,AllData,COLUMN()-6-COLUMN($E5)),VLOOKUP($E5-16,AllData,COLUMN()-6-COLUMN($E5)),VLOOKUP($E5-17,AllData,COLUMN()-6-COLUMN($E5)),VLOOKUP($E5-18,AllData,COLUMN()-6-COLUMN($E5)),VLOOKUP($E5-19,AllData,COLUMN()-6-COLUMN($E5)),VLOOKUP($E5-20,AllData,COLUMN()-6-COLUMN($E5)),VLOOKUP($E5-21,AllData,COLUMN()-6-COLUMN($E5)),VLOOKUP($E5-22,AllData,COLUMN()-6-COLUMN($E5)),VLOOKUP($E5-23,AllData,COLUMN()-6-COLUMN($E5)),VLOOKUP($E5-24,AllData,COLUMN()-6-COLUMN($E5)),VLOOKUP($E5-25,AllData,COLUMN()-6-COLUMN($E5)),VLOOKUP($E5-26,AllData,COLUMN()-6-COLUMN($E5)),VLOOKUP($E5-27,AllData,COLUMN()-6-COLUMN($E5)),VLOOKUP($E5-28,AllData,COLUMN()-6-COLUMN($E5)),VLOOKUP($E5-29,AllData,COLUMN()-6-COLUMN($E5)))","v":60},{"$f":"VLOOKUP($E5,AllData,COLUMN()-7-COLUMN($E5))","v":30},{"$f":"OR('Cool Graph'!$I$1=35,'Cool Graph'!$I$1=36,'Cool Graph'!$I$1=37,'Cool Graph'!$I$1=38,'Cool Graph'!$I$1=39,'Cool Graph'!$I$1=40,'Cool Graph'!$I$1=41,'Cool Graph'!$I$1=42,'Cool Graph'!$I$1=43,'Cool Graph'!$I$1=44,'Cool Graph'!$I$1=45,'Cool Graph'!$I$1=46,'Cool Graph'!$I$1=47,'Cool Graph'!$I$1=58,'Cool Graph'!$I$1=66)","v":false}]
["2011-07-05",{"$f":"OFFSET(OldSchoolJustValues!A6,0,'Cool Graph'!$H$1)","v":0},{"$f":"OFFSET(OldSchoolJustValues!A6,0,'Cool Graph'!$I$1)","v":0},null,{"$f":"IF(NewDate>EndDate,NA(),NewDate)","v":"2011-09-30"},{"$f":"IF($E6>EndDate,NA(),IF($K$2=TRUE,N6,IF('Cool Graph'!$B$17=1,N6,IF('Cool Graph'!$B$17=2,L6,IF('Cool Graph'!$B$17=3,M6,)))))","v":30},{"$f":"IF($E6>EndDate,NA(),IF($O$2=TRUE,J6,IF('Cool Graph'!$B$17=1,Data1!J6,IF('Cool Graph'!$B$17=2,Data1!H6,IF('Cool Graph'!$B$17=3,Data1!I6,)))))","v":294.89650967160719},{"$f":"SUM(VLOOKUP($E6,AllData,COLUMN()-COLUMN($E6)),VLOOKUP($E6-1,AllData,COLUMN()-COLUMN($E6)),VLOOKUP($E6-2,AllData,COLUMN()-COLUMN($E6)),VLOOKUP($E6-3,AllData,COLUMN()-COLUMN($E6)),VLOOKUP($E6-4,AllData,COLUMN()-COLUMN($E6)),VLOOKUP($E6-5,AllData,COLUMN()-COLUMN($E6)),VLOOKUP($E6-6,AllData,COLUMN()-COLUMN($E6)))","v":2615.7077331344885},{"$f":"SUM(VLOOKUP($E6,AllData,COLUMN()-1-COLUMN($E6)),VLOOKUP($E6-1,AllData,COLUMN()-1-COLUMN($E6)),VLOOKUP($E6-2,AllData,COLUMN()-1-COLUMN($E6)),VLOOKUP($E6-3,AllData,COLUMN()-1-COLUMN($E6)),VLOOKUP($E6-4,AllData,COLUMN()-1-COLUMN($E6)),VLOOKUP($E6-5,AllData,COLUMN()-1-COLUMN($E6)),VLOOKUP($E6-6,AllData,COLUMN()-1-COLUMN($E6)),VLOOKUP($E6-7,AllData,COLUMN()-1-COLUMN($E6)),VLOOKUP($E6-8,AllData,COLUMN()-1-COLUMN($E6)),VLOOKUP($E6-9,AllData,COLUMN()-1-COLUMN($E6)),VLOOKUP($E6-10,AllData,COLUMN()-1-COLUMN($E6)),VLOOKUP($E6-11,AllData,COLUMN()-1-COLUMN($E6)),VLOOKUP($E6-12,AllData,COLUMN()-1-COLUMN($E6)),VLOOKUP($E6-13,AllData,COLUMN()-1-COLUMN($E6)),VLOOKUP($E6-14,AllData,COLUMN()-1-COLUMN($E6)),VLOOKUP($E6-15,AllData,COLUMN()-1-COLUMN($E6)),VLOOKUP($E6-16,AllData,COLUMN()-1-COLUMN($E6)),VLOOKUP($E6-17,AllData,COLUMN()-1-COLUMN($E6)),VLOOKUP($E6-18,AllData,COLUMN()-1-COLUMN($E6)),VLOOKUP($E6-19,AllData,COLUMN()-1-COLUMN($E6)),VLOOKUP($E6-20,AllData,COLUMN()-1-COLUMN($E6)),VLOOKUP($E6-21,AllData,COLUMN()-1-COLUMN($E6)),VLOOKUP($E6-22,AllData,COLUMN()-1-COLUMN($E6)),VLOOKUP($E6-23,AllData,COLUMN()-1-COLUMN($E6)),VLOOKUP($E6-24,AllData,COLUMN()-1-COLUMN($E6)),VLOOKUP($E6-25,AllData,COLUMN()-1-COLUMN($E6)),VLOOKUP($E6-26,AllData,COLUMN()-1-COLUMN($E6)),VLOOKUP($E6-27,AllData,COLUMN()-1-COLUMN($E6)),VLOOKUP($E6-28,AllData,COLUMN()-1-COLUMN($E6)),VLOOKUP($E6-29,AllData,COLUMN()-1-COLUMN($E6)))","v":7761.3765929047313},{"$f":"VLOOKUP($E6,AllData,COLUMN()-2-COLUMN($E6))","v":294.89650967160719},{"$f":"OR('Cool Graph'!$H$1=35,'Cool Graph'!$H$1=36,'Cool Graph'!$H$1=37,'Cool Graph'!$H$1=38,'Cool Graph'!$H$1=39,'Cool Graph'!$H$1=40,'Cool Graph'!$H$1=41,'Cool Graph'!$H$1=42,'Cool Graph'!$H$1=43,'Cool Graph'!$H$1=44,'Cool Graph'!$H$1=45,'Cool Graph'!$H$1=46,'Cool Graph'!$H$1=47,'Cool Graph'!$H$1=58,'Cool Graph'!$H$1=66)","v":false},{"$f":"SUM(VLOOKUP($E6,AllData,COLUMN()-5-COLUMN($E6)),VLOOKUP($E6-1,AllData,COLUMN()-5-COLUMN($E6)),VLOOKUP($E6-2,AllData,COLUMN()-5-COLUMN($E6)),VLOOKUP($E6-3,AllData,COLUMN()-5-COLUMN($E6)),VLOOKUP($E6-4,AllData,COLUMN()-5-COLUMN($E6)),VLOOKUP($E6-5,AllData,COLUMN()-5-COLUMN($E6)),VLOOKUP($E6-6,AllData,COLUMN()-5-COLUMN($E6)))","v":90},{"$f":"SUM(VLOOKUP($E6,AllData,COLUMN()-6-COLUMN($E6)),VLOOKUP($E6-1,AllData,COLUMN()-6-COLUMN($E6)),VLOOKUP($E6-2,AllData,COLUMN()-6-COLUMN($E6)),VLOOKUP($E6-3,AllData,COLUMN()-6-COLUMN($E6)),VLOOKUP($E6-4,AllData,COLUMN()-6-COLUMN($E6)),VLOOKUP($E6-5,AllData,COLUMN()-6-COLUMN($E6)),VLOOKUP($E6-6,AllData,COLUMN()-6-COLUMN($E6)),VLOOKUP($E6-7,AllData,COLUMN()-6-COLUMN($E6)),VLOOKUP($E6-8,AllData,COLUMN()-6-COLUMN($E6)),VLOOKUP($E6-9,AllData,COLUMN()-6-COLUMN($E6)),VLOOKUP($E6-10,AllData,COLUMN()-6-COLUMN($E6)),VLOOKUP($E6-11,AllData,COLUMN()-6-COLUMN($E6)),VLOOKUP($E6-12,AllData,COLUMN()-6-COLUMN($E6)),VLOOKUP($E6-13,AllData,COLUMN()-6-COLUMN($E6)),VLOOKUP($E6-14,AllData,COLUMN()-6-COLUMN($E6)),VLOOKUP($E6-15,AllData,COLUMN()-6-COLUMN($E6)),VLOOKUP($E6-16,AllData,COLUMN()-6-COLUMN($E6)),VLOOKUP($E6-17,AllData,COLUMN()-6-COLUMN($E6)),VLOOKUP($E6-18,AllData,COLUMN()-6-COLUMN($E6)),VLOOKUP($E6-19,AllData,COLUMN()-6-COLUMN($E6)),VLOOKUP($E6-20,AllData,COLUMN()-6-COLUMN($E6)),VLOOKUP($E6-21,AllData,COLUMN()-6-COLUMN($E6)),VLOOKUP($E6-22,AllData,COLUMN()-6-COLUMN($E6)),VLOOKUP($E6-23,AllData,COLUMN()-6-COLUMN($E6)),VLOOKUP($E6-24,AllData,COLUMN()-6-COLUMN($E6)),VLOOKUP($E6-25,AllData,COLUMN()-6-COLUMN($E6)),VLOOKUP($E6-26,AllData,COLUMN()-6-COLUMN($E6)),VLOOKUP($E6-27,AllData,COLUMN()-6-COLUMN($E6)),VLOOKUP($E6-28,AllData,COLUMN()-6-COLUMN($E6)),VLOOKUP($E6-29,AllData,COLUMN()-6-COLUMN($E6)))","v":90},{"$f":"VLOOKUP($E6,AllData,COLUMN()-7-COLUMN($E6))","v":30},{"$f":"OR('Cool Graph'!$I$1=35,'Cool Graph'!$I$1=36,'Cool Graph'!$I$1=37,'Cool Graph'!$I$1=38,'Cool Graph'!$I$1=39,'Cool Graph'!$I$1=40,'Cool Graph'!$I$1=41,'Cool Graph'!$I$1=42,'Cool Graph'!$I$1=43,'Cool Graph'!$I$1=44,'Cool Graph'!$I$1=45,'Cool Graph'!$I$1=46,'Cool Graph'!$I$1=47,'Cool Graph'!$I$1=58,'Cool Graph'!$I$1=66)","v":false}]
["2011-07-06",{"$f":"OFFSET(OldSchoolJustValues!A7,0,'Cool Graph'!$H$1)","v":0},{"$f":"OFFSET(OldSchoolJustValues!A7,0,'Cool Graph'!$I$1)","v":0},null,{"$f":"IF(NewDate>EndDate,NA(),NewDate)","v":"2011-10-01"},{"$f":"IF($E7>EndDate,NA(),IF($K$2=TRUE,N7,IF('Cool Graph'!$B$17=1,N7,IF('Cool Graph'!$B$17=2,L7,IF('Cool Graph'!$B$17=3,M7,)))))","v":30},{"$f":"IF($E7>EndDate,NA(),IF($O$2=TRUE,J7,IF('Cool Graph'!$B$17=1,Data1!J7,IF('Cool Graph'!$B$17=2,Data1!H7,IF('Cool Graph'!$B$17=3,Data1!I7,)))))","v":-31.300058873147321},{"$f":"SUM(VLOOKUP($E7,AllData,COLUMN()-COLUMN($E7)),VLOOKUP($E7-1,AllData,COLUMN()-COLUMN($E7)),VLOOKUP($E7-2,AllData,COLUMN()-COLUMN($E7)),VLOOKUP($E7-3,AllData,COLUMN()-COLUMN($E7)),VLOOKUP($E7-4,AllData,COLUMN()-COLUMN($E7)),VLOOKUP($E7-5,AllData,COLUMN()-COLUMN($E7)),VLOOKUP($E7-6,AllData,COLUMN()-COLUMN($E7)))","v":2516.9910468434391},{"$f":"SUM(VLOOKUP($E7,AllData,COLUMN()-1-COLUMN($E7)),VLOOKUP($E7-1,AllData,COLUMN()-1-COLUMN($E7)),VLOOKUP($E7-2,AllData,COLUMN()-1-COLUMN($E7)),VLOOKUP($E7-3,AllData,COLUMN()-1-COLUMN($E7)),VLOOKUP($E7-4,AllData,COLUMN()-1-COLUMN($E7)),VLOOKUP($E7-5,AllData,COLUMN()-1-COLUMN($E7)),VLOOKUP($E7-6,AllData,COLUMN()-1-COLUMN($E7)),VLOOKUP($E7-7,AllData,COLUMN()-1-COLUMN($E7)),VLOOKUP($E7-8,AllData,COLUMN()-1-COLUMN($E7)),VLOOKUP($E7-9,AllData,COLUMN()-1-COLUMN($E7)),VLOOKUP($E7-10,AllData,COLUMN()-1-COLUMN($E7)),VLOOKUP($E7-11,AllData,COLUMN()-1-COLUMN($E7)),VLOOKUP($E7-12,AllData,COLUMN()-1-COLUMN($E7)),VLOOKUP($E7-13,AllData,COLUMN()-1-COLUMN($E7)),VLOOKUP($E7-14,AllData,COLUMN()-1-COLUMN($E7)),VLOOKUP($E7-15,AllData,COLUMN()-1-COLUMN($E7)),VLOOKUP($E7-16,AllData,COLUMN()-1-COLUMN($E7)),VLOOKUP($E7-17,AllData,COLUMN()-1-COLUMN($E7)),VLOOKUP($E7-18,AllData,COLUMN()-1-COLUMN($E7)),VLOOKUP($E7-19,AllData,COLUMN()-1-COLUMN($E7)),VLOOKUP($E7-20,AllData,COLUMN()-1-COLUMN($E7)),VLOOKUP($E7-21,AllData,COLUMN()-1-COLUMN($E7)),VLOOKUP($E7-22,AllData,COLUMN()-1-COLUMN($E7)),VLOOKUP($E7-23,AllData,COLUMN()-1-COLUMN($E7)),VLOOKUP($E7-24,AllData,COLUMN()-1-COLUMN($E7)),VLOOKUP($E7-25,AllData,COLUMN()-1-COLUMN($E7)),VLOOKUP($E7-26,AllData,COLUMN()-1-COLUMN($E7)),VLOOKUP($E7-27,AllData,COLUMN()-1-COLUMN($E7)),VLOOKUP($E7-28,AllData,COLUMN()-1-COLUMN($E7)),VLOOKUP($E7-29,AllData,COLUMN()-1-COLUMN($E7)))","v":7725.0832203226319},{"$f":"VLOOKUP($E7,AllData,COLUMN()-2-COLUMN($E7))","v":-31.300058873147321},{"$f":"OR('Cool Graph'!$H$1=35,'Cool Graph'!$H$1=36,'Cool Graph'!$H$1=37,'Cool Graph'!$H$1=38,'Cool Graph'!$H$1=39,'Cool Graph'!$H$1=40,'Cool Graph'!$H$1=41,'Cool Graph'!$H$1=42,'Cool Graph'!$H$1=43,'Cool Graph'!$H$1=44,'Cool Graph'!$H$1=45,'Cool Graph'!$H$1=46,'Cool Graph'!$H$1=47,'Cool Graph'!$H$1=58,'Cool Graph'!$H$1=66)","v":false},{"$f":"SUM(VLOOKUP($E7,AllData,COLUMN()-5-COLUMN($E7)),VLOOKUP($E7-1,AllData,COLUMN()-5-COLUMN($E7)),VLOOKUP($E7-2,AllData,COLUMN()-5-COLUMN($E7)),VLOOKUP($E7-3,AllData,COLUMN()-5-COLUMN($E7)),VLOOKUP($E7-4,AllData,COLUMN()-5-COLUMN($E7)),VLOOKUP($E7-5,AllData,COLUMN()-5-COLUMN($E7)),VLOOKUP($E7-6,AllData,COLUMN()-5-COLUMN($E7)))","v":120},{"$f":"SUM(VLOOKUP($E7,AllData,COLUMN()-6-COLUMN($E7)),VLOOKUP($E7-1,AllData,COLUMN()-6-COLUMN($E7)),VLOOKUP($E7-2,AllData,COLUMN()-6-COLUMN($E7)),VLOOKUP($E7-3,AllData,COLUMN()-6-COLUMN($E7)),VLOOKUP($E7-4,AllData,COLUMN()-6-COLUMN($E7)),VLOOKUP($E7-5,AllData,COLUMN()-6-COLUMN($E7)),VLOOKUP($E7-6,AllData,COLUMN()-6-COLUMN($E7)),VLOOKUP($E7-7,AllData,COLUMN()-6-COLUMN($E7)),VLOOKUP($E7-8,AllData,COLUMN()-6-COLUMN($E7)),VLOOKUP($E7-9,AllData,COLUMN()-6-COLUMN($E7)),VLOOKUP($E7-10,AllData,COLUMN()-6-COLUMN($E7)),VLOOKUP($E7-11,AllData,COLUMN()-6-COLUMN($E7)),VLOOKUP($E7-12,AllData,COLUMN()-6-COLUMN($E7)),VLOOKUP($E7-13,AllData,COLUMN()-6-COLUMN($E7)),VLOOKUP($E7-14,AllData,COLUMN()-6-COLUMN($E7)),VLOOKUP($E7-15,AllData,COLUMN()-6-COLUMN($E7)),VLOOKUP($E7-16,AllData,COLUMN()-6-COLUMN($E7)),VLOOKUP($E7-17,AllData,COLUMN()-6-COLUMN($E7)),VLOOKUP($E7-18,AllData,COLUMN()-6-COLUMN($E7)),VLOOKUP($E7-19,AllData,COLUMN()-6-COLUMN($E7)),VLOOKUP($E7-20,AllData,COLUMN()-6-COLUMN($E7)),VLOOKUP($E7-21,AllData,COLUMN()-6-COLUMN($E7)),VLOOKUP($E7-22,AllData,COLUMN()-6-COLUMN($E7)),VLOOKUP($E7-23,AllData,COLUMN()-6-COLUMN($E7)),VLOOKUP($E7-24,AllData,COLUMN()-6-COLUMN($E7)),VLOOKUP($E7-25,AllData,COLUMN()-6-COLUMN($E7)),VLOOKUP($E7-26,AllData,COLUMN()-6-COLUMN($E7)),VLOOKUP($E7-27,AllData,COLUMN()-6-COLUMN($E7)),VLOOKUP($E7-28,AllData,COLUMN()-6-COLUMN($E7)),VLOOKUP($E7-29,AllData,COLUMN()-6-COLUMN($E7)))","v":120},{"$f":"VLOOKUP($E7,AllData,COLUMN()-7-COLUMN($E7))","v":30},{"$f":"OR('Cool Graph'!$I$1=35,'Cool Graph'!$I$1=36,'Cool Graph'!$I$1=37,'Cool Graph'!$I$1=38,'Cool Graph'!$I$1=39,'Cool Graph'!$I$1=40,'Cool Graph'!$I$1=41,'Cool Graph'!$I$1=42,'Cool Graph'!$I$1=43,'Cool Graph'!$I$1=44,'Cool Graph'!$I$1=45,'Cool Graph'!$I$1=46,'Cool Graph'!$I$1=47,'Cool Graph'!$I$1=58,'Cool Graph'!$I$1=66)","v":false}]
["2011-07-07",{"$f":"OFFSET(OldSchoolJustValues!A8,0,'Cool Graph'!$H$1)","v":0},{"$f":"OFFSET(OldSchoolJustValues!A8,0,'Cool Graph'!$I$1)","v":0},null,{"$f":"IF(NewDate>EndDate,NA(),NewDate)","v":"2011-10-02"},{"$f":"IF($E8>EndDate,NA(),IF($K$2=TRUE,N8,IF('Cool Graph'!$B$17=1,N8,IF('Cool Graph'!$B$17=2,L8,IF('Cool Graph'!$B$17=3,M8,)))))","v":30},{"$f":"IF($E8>EndDate,NA(),IF($O$2=TRUE,J8,IF('Cool Graph'!$B$17=1,Data1!J8,IF('Cool Graph'!$B$17=2,Data1!H8,IF('Cool Graph'!$B$17=3,Data1!I8,)))))","v":532.05645079845988},{"$f":"SUM(VLOOKUP($E8,AllData,COLUMN()-COLUMN($E8)),VLOOKUP($E8-1,AllData,COLUMN()-COLUMN($E8)),VLOOKUP($E8-2,AllData,COLUMN()-COLUMN($E8)),VLOOKUP($E8-3,AllData,COLUMN()-COLUMN($E8)),VLOOKUP($E8-4,AllData,COLUMN()-COLUMN($E8)),VLOOKUP($E8-5,AllData,COLUMN()-COLUMN($E8)),VLOOKUP($E8-6,AllData,COLUMN()-COLUMN($E8)))","v":2815.8309290971451},{"$f":"SUM(VLOOKUP($E8,AllData,COLUMN()-1-COLUMN($E8)),VLOOKUP($E8-1,AllData,COLUMN()-1-COLUMN($E8)),VLOOKUP($E8-2,AllData,COLUMN()-1-COLUMN($E8)),VLOOKUP($E8-3,AllData,COLUMN()-1-COLUMN($E8)),VLOOKUP($E8-4,AllData,COLUMN()-1-COLUMN($E8)),VLOOKUP($E8-5,AllData,COLUMN()-1-COLUMN($E8)),VLOOKUP($E8-6,AllData,COLUMN()-1-COLUMN($E8)),VLOOKUP($E8-7,AllData,COLUMN()-1-COLUMN($E8)),VLOOKUP($E8-8,AllData,COLUMN()-1-COLUMN($E8)),VLOOKUP($E8-9,AllData,COLUMN()-1-COLUMN($E8)),VLOOKUP($E8-10,AllData,COLUMN()-1-COLUMN($E8)),VLOOKUP($E8-11,AllData,COLUMN()-1-COLUMN($E8)),VLOOKUP($E8-12,AllData,COLUMN()-1-COLUMN($E8)),VLOOKUP($E8-13,AllData,COLUMN()-1-COLUMN($E8)),VLOOKUP($E8-14,AllData,COLUMN()-1-COLUMN($E8)),VLOOKUP($E8-15,AllData,COLUMN()-1-COLUMN($E8)),VLOOKUP($E8-16,AllData,COLUMN()-1-COLUMN($E8)),VLOOKUP($E8-17,AllData,COLUMN()-1-COLUMN($E8)),VLOOKUP($E8-18,AllData,COLUMN()-1-COLUMN($E8)),VLOOKUP($E8-19,AllData,COLUMN()-1-COLUMN($E8)),VLOOKUP($E8-20,AllData,COLUMN()-1-COLUMN($E8)),VLOOKUP($E8-21,AllData,COLUMN()-1-COLUMN($E8)),VLOOKUP($E8-22,AllData,COLUMN()-1-COLUMN($E8)),VLOOKUP($E8-23,AllData,COLUMN()-1-COLUMN($E8)),VLOOKUP($E8-24,AllData,COLUMN()-1-COLUMN($E8)),VLOOKUP($E8-25,AllData,COLUMN()-1-COLUMN($E8)),VLOOKUP($E8-26,AllData,COLUMN()-1-COLUMN($E8)),VLOOKUP($E8-27,AllData,COLUMN()-1-COLUMN($E8)),VLOOKUP($E8-28,AllData,COLUMN()-1-COLUMN($E8)),VLOOKUP($E8-29,AllData,COLUMN()-1-COLUMN($E8)))","v":7986.7131025763374},{"$f":"VLOOKUP($E8,AllData,COLUMN()-2-COLUMN($E8))","v":532.05645079845988},{"$f":"OR('Cool Graph'!$H$1=35,'Cool Graph'!$H$1=36,'Cool Graph'!$H$1=37,'Cool Graph'!$H$1=38,'Cool Graph'!$H$1=39,'Cool Graph'!$H$1=40,'Cool Graph'!$H$1=41,'Cool Graph'!$H$1=42,'Cool Graph'!$H$1=43,'Cool Graph'!$H$1=44,'Cool Graph'!$H$1=45,'Cool Graph'!$H$1=46,'Cool Graph'!$H$1=47,'Cool Graph'!$H$1=58,'Cool Graph'!$H$1=66)","v":false},{"$f":"SUM(VLOOKUP($E8,AllData,COLUMN()-5-COLUMN($E8)),VLOOKUP($E8-1,AllData,COLUMN()-5-COLUMN($E8)),VLOOKUP($E8-2,AllData,COLUMN()-5-COLUMN($E8)),VLOOKUP($E8-3,AllData,COLUMN()-5-COLUMN($E8)),VLOOKUP($E8-4,AllData,COLUMN()-5-COLUMN($E8)),VLOOKUP($E8-5,AllData,COLUMN()-5-COLUMN($E8)),VLOOKUP($E8-6,AllData,COLUMN()-5-COLUMN($E8)))","v":150},{"$f":"SUM(VLOOKUP($E8,AllData,COLUMN()-6-COLUMN($E8)),VLOOKUP($E8-1,AllData,COLUMN()-6-COLUMN($E8)),VLOOKUP($E8-2,AllData,COLUMN()-6-COLUMN($E8)),VLOOKUP($E8-3,AllData,COLUMN()-6-COLUMN($E8)),VLOOKUP($E8-4,AllData,COLUMN()-6-COLUMN($E8)),VLOOKUP($E8-5,AllData,COLUMN()-6-COLUMN($E8)),VLOOKUP($E8-6,AllData,COLUMN()-6-COLUMN($E8)),VLOOKUP($E8-7,AllData,COLUMN()-6-COLUMN($E8)),VLOOKUP($E8-8,AllData,COLUMN()-6-COLUMN($E8)),VLOOKUP($E8-9,AllData,COLUMN()-6-COLUMN($E8)),VLOOKUP($E8-10,AllData,COLUMN()-6-COLUMN($E8)),VLOOKUP($E8-11,AllData,COLUMN()-6-COLUMN($E8)),VLOOKUP($E8-12,AllData,COLUMN()-6-COLUMN($E8)),VLOOKUP($E8-13,AllData,COLUMN()-6-COLUMN($E8)),VLOOKUP($E8-14,AllData,COLUMN()-6-COLUMN($E8)),VLOOKUP($E8-15,AllData,COLUMN()-6-COLUMN($E8)),VLOOKUP($E8-16,AllData,COLUMN()-6-COLUMN($E8)),VLOOKUP($E8-17,AllData,COLUMN()-6-COLUMN($E8)),VLOOKUP($E8-18,AllData,COLUMN()-6-COLUMN($E8)),VLOOKUP($E8-19,AllData,COLUMN()-6-COLUMN($E8)),VLOOKUP($E8-20,AllData,COLUMN()-6-COLUMN($E8)),VLOOKUP($E8-21,AllData,COLUMN()-6-COLUMN($E8)),VLOOKUP($E8-22,AllData,COLUMN()-6-COLUMN($E8)),VLOOKUP($E8-23,AllData,COLUMN()-6-COLUMN($E8)),VLOOKUP($E8-24,AllData,COLUMN()-6-COLUMN($E8)),VLOOKUP($E8-25,AllData,COLUMN()-6-COLUMN($E8)),VLOOKUP($E8-26,AllData,COLUMN()-6-COLUMN($E8)),VLOOKUP($E8-27,AllData,COLUMN()-6-COLUMN($E8)),VLOOKUP($E8-28,AllData,COLUMN()-6-COLUMN($E8)),VLOOKUP($E8-29,AllData,COLUMN()-6-COLUMN($E8)))","v":150},{"$f":"VLOOKUP($E8,AllData,COLUMN()-7-COLUMN($E8))","v":30},{"$f":"OR('Cool Graph'!$I$1=35,'Cool Graph'!$I$1=36,'Cool Graph'!$I$1=37,'Cool Graph'!$I$1=38,'Cool Graph'!$I$1=39,'Cool Graph'!$I$1=40,'Cool Graph'!$I$1=41,'Cool Graph'!$I$1=42,'Cool Graph'!$I$1=43,'Cool Graph'!$I$1=44,'Cool Graph'!$I$1=45,'Cool Graph'!$I$1=46,'Cool Graph'!$I$1=47,'Cool Graph'!$I$1=58,'Cool Graph'!$I$1=66)","v":false}]
["2011-07-08",{"$f":"OFFSET(OldSchoolJustValues!A9,0,'Cool Graph'!$H$1)","v":0},{"$f":"OFFSET(OldSchoolJustValues!A9,0,'Cool Graph'!$I$1)","v":0},null,{"$f":"IF(NewDate>EndDate,NA(),NewDate)","v":"2011-10-03"},{"$f":"IF($E9>EndDate,NA(),IF($K$2=TRUE,N9,IF('Cool Graph'!$B$17=1,N9,IF('Cool Graph'!$B$17=2,L9,IF('Cool Graph'!$B$17=3,M9,)))))","v":60},{"$f":"IF($E9>EndDate,NA(),IF($O$2=TRUE,J9,IF('Cool Graph'!$B$17=1,Data1!J9,IF('Cool Graph'!$B$17=2,Data1!H9,IF('Cool Graph'!$B$17=3,Data1!I9,)))))","v":27.3665685447545},{"$f":"SUM(VLOOKUP($E9,AllData,COLUMN()-COLUMN($E9)),VLOOKUP($E9-1,AllData,COLUMN()-COLUMN($E9)),VLOOKUP($E9-2,AllData,COLUMN()-COLUMN($E9)),VLOOKUP($E9-3,AllData,COLUMN()-COLUMN($E9)),VLOOKUP($E9-4,AllData,COLUMN()-COLUMN($E9)),VLOOKUP($E9-5,AllData,COLUMN()-COLUMN($E9)),VLOOKUP($E9-6,AllData,COLUMN()-COLUMN($E9)))","v":2607.75115516183},{"$f":"SUM(VLOOKUP($E9,AllData,COLUMN()-1-COLUMN($E9)),VLOOKUP($E9-1,AllData,COLUMN()-1-COLUMN($E9)),VLOOKUP($E9-2,AllData,COLUMN()-1-COLUMN($E9)),VLOOKUP($E9-3,AllData,COLUMN()-1-COLUMN($E9)),VLOOKUP($E9-4,AllData,COLUMN()-1-COLUMN($E9)),VLOOKUP($E9-5,AllData,COLUMN()-1-COLUMN($E9)),VLOOKUP($E9-6,AllData,COLUMN()-1-COLUMN($E9)),VLOOKUP($E9-7,AllData,COLUMN()-1-COLUMN($E9)),VLOOKUP($E9-8,AllData,COLUMN()-1-COLUMN($E9)),VLOOKUP($E9-9,AllData,COLUMN()-1-COLUMN($E9)),VLOOKUP($E9-10,AllData,COLUMN()-1-COLUMN($E9)),VLOOKUP($E9-11,AllData,COLUMN()-1-COLUMN($E9)),VLOOKUP($E9-12,AllData,COLUMN()-1-COLUMN($E9)),VLOOKUP($E9-13,AllData,COLUMN()-1-COLUMN($E9)),VLOOKUP($E9-14,AllData,COLUMN()-1-COLUMN($E9)),VLOOKUP($E9-15,AllData,COLUMN()-1-COLUMN($E9)),VLOOKUP($E9-16,AllData,COLUMN()-1-COLUMN($E9)),VLOOKUP($E9-17,AllData,COLUMN()-1-COLUMN($E9)),VLOOKUP($E9-18,AllData,COLUMN()-1-COLUMN($E9)),VLOOKUP($E9-19,AllData,COLUMN()-1-COLUMN($E9)),VLOOKUP($E9-20,AllData,COLUMN()-1-COLUMN($E9)),VLOOKUP($E9-21,AllData,COLUMN()-1-COLUMN($E9)),VLOOKUP($E9-22,AllData,COLUMN()-1-COLUMN($E9)),VLOOKUP($E9-23,AllData,COLUMN()-1-COLUMN($E9)),VLOOKUP($E9-24,AllData,COLUMN()-1-COLUMN($E9)),VLOOKUP($E9-25,AllData,COLUMN()-1-COLUMN($E9)),VLOOKUP($E9-26,AllData,COLUMN()-1-COLUMN($E9)),VLOOKUP($E9-27,AllData,COLUMN()-1-COLUMN($E9)),VLOOKUP($E9-28,AllData,COLUMN()-1-COLUMN($E9)),VLOOKUP($E9-29,AllData,COLUMN()-1-COLUMN($E9)))","v":7896.2554051528905},{"$f":"VLOOKUP($E9,AllData,COLUMN()-2-COLUMN($E9))","v":27.3665685447545},{"$f":"OR('Cool Graph'!$H$1=35,'Cool Graph'!$H$1=36,'Cool Graph'!$H$1=37,'Cool Graph'!$H$1=38,'Cool Graph'!$H$1=39,'Cool Graph'!$H$1=40,'Cool Graph'!$H$1=41,'Cool Graph'!$H$1=42,'Cool Graph'!$H$1=43,'Cool Graph'!$H$1=44,'Cool Graph'!$H$1=45,'Cool Graph'!$H$1=46,'Cool Graph'!$H$1=47,'Cool Graph'!$H$1=58,'Cool Graph'!$H$1=66)","v":false},{"$f":"SUM(VLOOKUP($E9,AllData,COLUMN()-5-COLUMN($E9)),VLOOKUP($E9-1,AllData,COLUMN()-5-COLUMN($E9)),VLOOKUP($E9-2,AllData,COLUMN()-5-COLUMN($E9)),VLOOKUP($E9-3,AllData,COLUMN()-5-COLUMN($E9)),VLOOKUP($E9-4,AllData,COLUMN()-5-COLUMN($E9)),VLOOKUP($E9-5,AllData,COLUMN()-5-COLUMN($E9)),VLOOKUP($E9-6,AllData,COLUMN()-5-COLUMN($E9)))","v":210},{"$f":"SUM(VLOOKUP($E9,AllData,COLUMN()-6-COLUMN($E9)),VLOOKUP($E9-1,AllData,COLUMN()-6-COLUMN($E9)),VLOOKUP($E9-2,AllData,COLUMN()-6-COLUMN($E9)),VLOOKUP($E9-3,AllData,COLUMN()-6-COLUMN($E9)),VLOOKUP($E9-4,AllData,COLUMN()-6-COLUMN($E9)),VLOOKUP($E9-5,AllData,COLUMN()-6-COLUMN($E9)),VLOOKUP($E9-6,AllData,COLUMN()-6-COLUMN($E9)),VLOOKUP($E9-7,AllData,COLUMN()-6-COLUMN($E9)),VLOOKUP($E9-8,AllData,COLUMN()-6-COLUMN($E9)),VLOOKUP($E9-9,AllData,COLUMN()-6-COLUMN($E9)),VLOOKUP($E9-10,AllData,COLUMN()-6-COLUMN($E9)),VLOOKUP($E9-11,AllData,COLUMN()-6-COLUMN($E9)),VLOOKUP($E9-12,AllData,COLUMN()-6-COLUMN($E9)),VLOOKUP($E9-13,AllData,COLUMN()-6-COLUMN($E9)),VLOOKUP($E9-14,AllData,COLUMN()-6-COLUMN($E9)),VLOOKUP($E9-15,AllData,COLUMN()-6-COLUMN($E9)),VLOOKUP($E9-16,AllData,COLUMN()-6-COLUMN($E9)),VLOOKUP($E9-17,AllData,COLUMN()-6-COLUMN($E9)),VLOOKUP($E9-18,AllData,COLUMN()-6-COLUMN($E9)),VLOOKUP($E9-19,AllData,COLUMN()-6-COLUMN($E9)),VLOOKUP($E9-20,AllData,COLUMN()-6-COLUMN($E9)),VLOOKUP($E9-21,AllData,COLUMN()-6-COLUMN($E9)),VLOOKUP($E9-22,AllData,COLUMN()-6-COLUMN($E9)),VLOOKUP($E9-23,AllData,COLUMN()-6-COLUMN($E9)),VLOOKUP($E9-24,AllData,COLUMN()-6-COLUMN($E9)),VLOOKUP($E9-25,AllData,COLUMN()-6-COLUMN($E9)),VLOOKUP($E9-26,AllData,COLUMN()-6-COLUMN($E9)),VLOOKUP($E9-27,AllData,COLUMN()-6-COLUMN($E9)),VLOOKUP($E9-28,AllData,COLUMN()-6-COLUMN($E9)),VLOOKUP($E9-29,AllData,COLUMN()-6-COLUMN($E9)))","v":210},{"$f":"VLOOKUP($E9,AllData,COLUMN()-7-COLUMN($E9))","v":60},{"$f":"OR('Cool Graph'!$I$1=35,'Cool Graph'!$I$1=36,'Cool Graph'!$I$1=37,'Cool Graph'!$I$1=38,'Cool Graph'!$I$1=39,'Cool Graph'!$I$1=40,'Cool Graph'!$I$1=41,'Cool Graph'!$I$1=42,'Cool Graph'!$I$1=43,'Cool Graph'!$I$1=44,'Cool Graph'!$I$1=45,'Cool Graph'!$I$1=46,'Cool Graph'!$I$1=47,'Cool Graph'!$I$1=58,'Cool Graph'!$I$1=66)","v":false}]
["2011-07-09",{"$f":"OFFSET(OldSchoolJustValues!A10,0,'Cool Graph'!$H$1)","v":0},{"$f":"OFFSET(OldSchoolJustValues!A10,0,'Cool Graph'!$I$1)","v":0},null,{"$f":"IF(NewDate>EndDate,NA(),NewDate)","v":"2011-10-04"},{"$f":"IF($E10>EndDate,NA(),IF($K$2=TRUE,N10,IF('Cool Graph'!$B$17=1,N10,IF('Cool Graph'!$B$17=2,L10,IF('Cool Graph'!$B$17=3,M10,)))))","v":250},{"$f":"IF($E10>EndDate,NA(),IF($O$2=TRUE,J10,IF('Cool Graph'!$B$17=1,Data1!J10,IF('Cool Graph'!$B$17=2,Data1!H10,IF('Cool Graph'!$B$17=3,Data1!I10,)))))","v":-146.25680403734384},{"$f":"SUM(VLOOKUP($E10,AllData,COLUMN()-COLUMN($E10)),VLOOKUP($E10-1,AllData,COLUMN()-COLUMN($E10)),VLOOKUP($E10-2,AllData,COLUMN()-COLUMN($E10)),VLOOKUP($E10-3,AllData,COLUMN()-COLUMN($E10)),VLOOKUP($E10-4,AllData,COLUMN()-COLUMN($E10)),VLOOKUP($E10-5,AllData,COLUMN()-COLUMN($E10)),VLOOKUP($E10-6,AllData,COLUMN()-COLUMN($E10)))","v":2184.2365831608749},{"$f":"SUM(VLOOKUP($E10,AllData,COLUMN()-1-COLUMN($E10)),VLOOKUP($E10-1,AllData,COLUMN()-1-COLUMN($E10)),VLOOKUP($E10-2,AllData,COLUMN()-1-COLUMN($E10)),VLOOKUP($E10-3,AllData,COLUMN()-1-COLUMN($E10)),VLOOKUP($E10-4,AllData,COLUMN()-1-COLUMN($E10)),VLOOKUP($E10-5,AllData,COLUMN()-1-COLUMN($E10)),VLOOKUP($E10-6,AllData,COLUMN()-1-COLUMN($E10)),VLOOKUP($E10-7,AllData,COLUMN()-1-COLUMN($E10)),VLOOKUP($E10-8,AllData,COLUMN()-1-COLUMN($E10)),VLOOKUP($E10-9,AllData,COLUMN()-1-COLUMN($E10)),VLOOKUP($E10-10,AllData,COLUMN()-1-COLUMN($E10)),VLOOKUP($E10-11,AllData,COLUMN()-1-COLUMN($E10)),VLOOKUP($E10-12,AllData,COLUMN()-1-COLUMN($E10)),VLOOKUP($E10-13,AllData,COLUMN()-1-COLUMN($E10)),VLOOKUP($E10-14,AllData,COLUMN()-1-COLUMN($E10)),VLOOKUP($E10-15,AllData,COLUMN()-1-COLUMN($E10)),VLOOKUP($E10-16,AllData,COLUMN()-1-COLUMN($E10)),VLOOKUP($E10-17,AllData,COLUMN()-1-COLUMN($E10)),VLOOKUP($E10-18,AllData,COLUMN()-1-COLUMN($E10)),VLOOKUP($E10-19,AllData,COLUMN()-1-COLUMN($E10)),VLOOKUP($E10-20,AllData,COLUMN()-1-COLUMN($E10)),VLOOKUP($E10-21,AllData,COLUMN()-1-COLUMN($E10)),VLOOKUP($E10-22,AllData,COLUMN()-1-COLUMN($E10)),VLOOKUP($E10-23,AllData,COLUMN()-1-COLUMN($E10)),VLOOKUP($E10-24,AllData,COLUMN()-1-COLUMN($E10)),VLOOKUP($E10-25,AllData,COLUMN()-1-COLUMN($E10)),VLOOKUP($E10-26,AllData,COLUMN()-1-COLUMN($E10)),VLOOKUP($E10-27,AllData,COLUMN()-1-COLUMN($E10)),VLOOKUP($E10-28,AllData,COLUMN()-1-COLUMN($E10)),VLOOKUP($E10-29,AllData,COLUMN()-1-COLUMN($E10)))","v":7689.1619736976463},{"$f":"VLOOKUP($E10,AllData,COLUMN()-2-COLUMN($E10))","v":-146.25680403734384},{"$f":"OR('Cool Graph'!$H$1=35,'Cool Graph'!$H$1=36,'Cool Graph'!$H$1=37,'Cool Graph'!$H$1=38,'Cool Graph'!$H$1=39,'Cool Graph'!$H$1=40,'Cool Graph'!$H$1=41,'Cool Graph'!$H$1=42,'Cool Graph'!$H$1=43,'Cool Graph'!$H$1=44,'Cool Graph'!$H$1=45,'Cool Graph'!$H$1=46,'Cool Graph'!$H$1=47,'Cool Graph'!$H$1=58,'Cool Graph'!$H$1=66)","v":false},{"$f":"SUM(VLOOKUP($E10,AllData,COLUMN()-5-COLUMN($E10)),VLOOKUP($E10-1,AllData,COLUMN()-5-COLUMN($E10)),VLOOKUP($E10-2,AllData,COLUMN()-5-COLUMN($E10)),VLOOKUP($E10-3,AllData,COLUMN()-5-COLUMN($E10)),VLOOKUP($E10-4,AllData,COLUMN()-5-COLUMN($E10)),VLOOKUP($E10-5,AllData,COLUMN()-5-COLUMN($E10)),VLOOKUP($E10-6,AllData,COLUMN()-5-COLUMN($E10)))","v":460},{"$f":"SUM(VLOOKUP($E10,AllData,COLUMN()-6-COLUMN($E10)),VLOOKUP($E10-1,AllData,COLUMN()-6-COLUMN($E10)),VLOOKUP($E10-2,AllData,COLUMN()-6-COLUMN($E10)),VLOOKUP($E10-3,AllData,COLUMN()-6-COLUMN($E10)),VLOOKUP($E10-4,AllData,COLUMN()-6-COLUMN($E10)),VLOOKUP($E10-5,AllData,COLUMN()-6-COLUMN($E10)),VLOOKUP($E10-6,AllData,COLUMN()-6-COLUMN($E10)),VLOOKUP($E10-7,AllData,COLUMN()-6-COLUMN($E10)),VLOOKUP($E10-8,AllData,COLUMN()-6-COLUMN($E10)),VLOOKUP($E10-9,AllData,COLUMN()-6-COLUMN($E10)),VLOOKUP($E10-10,AllData,COLUMN()-6-COLUMN($E10)),VLOOKUP($E10-11,AllData,COLUMN()-6-COLUMN($E10)),VLOOKUP($E10-12,AllData,COLUMN()-6-COLUMN($E10)),VLOOKUP($E10-13,AllData,COLUMN()-6-COLUMN($E10)),VLOOKUP($E10-14,AllData,COLUMN()-6-COLUMN($E10)),VLOOKUP($E10-15,AllData,COLUMN()-6-COLUMN($E10)),VLOOKUP($E10-16,AllData,COLUMN()-6-COLUMN($E10)),VLOOKUP($E10-17,AllData,COLUMN()-6-COLUMN($E10)),VLOOKUP($E10-18,AllData,COLUMN()-6-COLUMN($E10)),VLOOKUP($E10-19,AllData,COLUMN()-6-COLUMN($E10)),VLOOKUP($E10-20,AllData,COLUMN()-6-COLUMN($E10)),VLOOKUP($E10-21,AllData,COLUMN()-6-COLUMN($E10)),VLOOKUP($E10-22,AllData,COLUMN()-6-COLUMN($E10)),VLOOKUP($E10-23,AllData,COLUMN()-6-COLUMN($E10)),VLOOKUP($E10-24,AllData,COLUMN()-6-COLUMN($E10)),VLOOKUP($E10-25,AllData,COLUMN()-6-COLUMN($E10)),VLOOKUP($E10-26,AllData,COLUMN()-6-COLUMN($E10)),VLOOKUP($E10-27,AllData,COLUMN()-6-COLUMN($E10)),VLOOKUP($E10-28,AllData,COLUMN()-6-COLUMN($E10)),VLOOKUP($E10-29,AllData,COLUMN()-6-COLUMN($E10)))","v":460},{"$f":"VLOOKUP($E10,AllData,COLUMN()-7-COLUMN($E10))","v":250},{"$f":"OR('Cool Graph'!$I$1=35,'Cool Graph'!$I$1=36,'Cool Graph'!$I$1=37,'Cool Graph'!$I$1=38,'Cool Graph'!$I$1=39,'Cool Graph'!$I$1=40,'Cool Graph'!$I$1=41,'Cool Graph'!$I$1=42,'Cool Graph'!$I$1=43,'Cool Graph'!$I$1=44,'Cool Graph'!$I$1=45,'Cool Graph'!$I$1=46,'Cool Graph'!$I$1=47,'Cool Graph'!$I$1=58,'Cool Graph'!$I$1=66)","v":false}]
["2011-07-10",{"$f":"OFFSET(OldSchoolJustValues!A11,0,'Cool Graph'!$H$1)","v":0},{"$f":"OFFSET(OldSchoolJustValues!A11,0,'Cool Graph'!$I$1)","v":0},null,{"$f":"IF(NewDate>EndDate,NA(),NewDate)","v":"2011-10-05"},{"$f":"IF($E11>EndDate,NA(),IF($K$2=TRUE,N11,IF('Cool Graph'!$B$17=1,N11,IF('Cool Graph'!$B$17=2,L11,IF('Cool Graph'!$B$17=3,M11,)))))","v":250},{"$f":"IF($E11>EndDate,NA(),IF($O$2=TRUE,J11,IF('Cool Graph'!$B$17=1,Data1!J11,IF('Cool Graph'!$B$17=2,Data1!H11,IF('Cool Graph'!$B$17=3,Data1!I11,)))))","v":433.33594923082194},{"$f":"SUM(VLOOKUP($E11,AllData,COLUMN()-COLUMN($E11)),VLOOKUP($E11-1,AllData,COLUMN()-COLUMN($E11)),VLOOKUP($E11-2,AllData,COLUMN()-COLUMN($E11)),VLOOKUP($E11-3,AllData,COLUMN()-COLUMN($E11)),VLOOKUP($E11-4,AllData,COLUMN()-COLUMN($E11)),VLOOKUP($E11-5,AllData,COLUMN()-COLUMN($E11)),VLOOKUP($E11-6,AllData,COLUMN()-COLUMN($E11)))","v":1985.7854079408673},{"$f":"SUM(VLOOKUP($E11,AllData,COLUMN()-1-COLUMN($E11)),VLOOKUP($E11-1,AllData,COLUMN()-1-COLUMN($E11)),VLOOKUP($E11-2,AllData,COLUMN()-1-COLUMN($E11)),VLOOKUP($E11-3,AllData,COLUMN()-1-COLUMN($E11)),VLOOKUP($E11-4,AllData,COLUMN()-1-COLUMN($E11)),VLOOKUP($E11-5,AllData,COLUMN()-1-COLUMN($E11)),VLOOKUP($E11-6,AllData,COLUMN()-1-COLUMN($E11)),VLOOKUP($E11-7,AllData,COLUMN()-1-COLUMN($E11)),VLOOKUP($E11-8,AllData,COLUMN()-1-COLUMN($E11)),VLOOKUP($E11-9,AllData,COLUMN()-1-COLUMN($E11)),VLOOKUP($E11-10,AllData,COLUMN()-1-COLUMN($E11)),VLOOKUP($E11-11,AllData,COLUMN()-1-COLUMN($E11)),VLOOKUP($E11-12,AllData,COLUMN()-1-COLUMN($E11)),VLOOKUP($E11-13,AllData,COLUMN()-1-COLUMN($E11)),VLOOKUP($E11-14,AllData,COLUMN()-1-COLUMN($E11)),VLOOKUP($E11-15,AllData,COLUMN()-1-COLUMN($E11)),VLOOKUP($E11-16,AllData,COLUMN()-1-COLUMN($E11)),VLOOKUP($E11-17,AllData,COLUMN()-1-COLUMN($E11)),VLOOKUP($E11-18,AllData,COLUMN()-1-COLUMN($E11)),VLOOKUP($E11-19,AllData,COLUMN()-1-COLUMN($E11)),VLOOKUP($E11-20,AllData,COLUMN()-1-COLUMN($E11)),VLOOKUP($E11-21,AllData,COLUMN()-1-COLUMN($E11)),VLOOKUP($E11-22,AllData,COLUMN()-1-COLUMN($E11)),VLOOKUP($E11-23,AllData,COLUMN()-1-COLUMN($E11)),VLOOKUP($E11-24,AllData,COLUMN()-1-COLUMN($E11)),VLOOKUP($E11-25,AllData,COLUMN()-1-COLUMN($E11)),VLOOKUP($E11-26,AllData,COLUMN()-1-COLUMN($E11)),VLOOKUP($E11-27,AllData,COLUMN()-1-COLUMN($E11)),VLOOKUP($E11-28,AllData,COLUMN()-1-COLUMN($E11)),VLOOKUP($E11-29,AllData,COLUMN()-1-COLUMN($E11)))","v":7965.444668092664},{"$f":"VLOOKUP($E11,AllData,COLUMN()-2-COLUMN($E11))","v":433.33594923082194},{"$f":"OR('Cool Graph'!$H$1=35,'Cool Graph'!$H$1=36,'Cool Graph'!$H$1=37,'Cool Graph'!$H$1=38,'Cool Graph'!$H$1=39,'Cool Graph'!$H$1=40,'Cool Graph'!$H$1=41,'Cool Graph'!$H$1=42,'Cool Graph'!$H$1=43,'Cool Graph'!$H$1=44,'Cool Graph'!$H$1=45,'Cool Graph'!$H$1=46,'Cool Graph'!$H$1=47,'Cool Graph'!$H$1=58,'Cool Graph'!$H$1=66)","v":false},{"$f":"SUM(VLOOKUP($E11,AllData,COLUMN()-5-COLUMN($E11)),VLOOKUP($E11-1,AllData,COLUMN()-5-COLUMN($E11)),VLOOKUP($E11-2,AllData,COLUMN()-5-COLUMN($E11)),VLOOKUP($E11-3,AllData,COLUMN()-5-COLUMN($E11)),VLOOKUP($E11-4,AllData,COLUMN()-5-COLUMN($E11)),VLOOKUP($E11-5,AllData,COLUMN()-5-COLUMN($E11)),VLOOKUP($E11-6,AllData,COLUMN()-5-COLUMN($E11)))","v":680},{"$f":"SUM(VLOOKUP($E11,AllData,COLUMN()-6-COLUMN($E11)),VLOOKUP($E11-1,AllData,COLUMN()-6-COLUMN($E11)),VLOOKUP($E11-2,AllData,COLUMN()-6-COLUMN($E11)),VLOOKUP($E11-3,AllData,COLUMN()-6-COLUMN($E11)),VLOOKUP($E11-4,AllData,COLUMN()-6-COLUMN($E11)),VLOOKUP($E11-5,AllData,COLUMN()-6-COLUMN($E11)),VLOOKUP($E11-6,AllData,COLUMN()-6-COLUMN($E11)),VLOOKUP($E11-7,AllData,COLUMN()-6-COLUMN($E11)),VLOOKUP($E11-8,AllData,COLUMN()-6-COLUMN($E11)),VLOOKUP($E11-9,AllData,COLUMN()-6-COLUMN($E11)),VLOOKUP($E11-10,AllData,COLUMN()-6-COLUMN($E11)),VLOOKUP($E11-11,AllData,COLUMN()-6-COLUMN($E11)),VLOOKUP($E11-12,AllData,COLUMN()-6-COLUMN($E11)),VLOOKUP($E11-13,AllData,COLUMN()-6-COLUMN($E11)),VLOOKUP($E11-14,AllData,COLUMN()-6-COLUMN($E11)),VLOOKUP($E11-15,AllData,COLUMN()-6-COLUMN($E11)),VLOOKUP($E11-16,AllData,COLUMN()-6-COLUMN($E11)),VLOOKUP($E11-17,AllData,COLUMN()-6-COLUMN($E11)),VLOOKUP($E11-18,AllData,COLUMN()-6-COLUMN($E11)),VLOOKUP($E11-19,AllData,COLUMN()-6-COLUMN($E11)),VLOOKUP($E11-20,AllData,COLUMN()-6-COLUMN($E11)),VLOOKUP($E11-21,AllData,COLUMN()-6-COLUMN($E11)),VLOOKUP($E11-22,AllData,COLUMN()-6-COLUMN($E11)),VLOOKUP($E11-23,AllData,COLUMN()-6-COLUMN($E11)),VLOOKUP($E11-24,AllData,COLUMN()-6-COLUMN($E11)),VLOOKUP($E11-25,AllData,COLUMN()-6-COLUMN($E11)),VLOOKUP($E11-26,AllData,COLUMN()-6-COLUMN($E11)),VLOOKUP($E11-27,AllData,COLUMN()-6-COLUMN($E11)),VLOOKUP($E11-28,AllData,COLUMN()-6-COLUMN($E11)),VLOOKUP($E11-29,AllData,COLUMN()-6-COLUMN($E11)))","v":710},{"$f":"VLOOKUP($E11,AllData,COLUMN()-7-COLUMN($E11))","v":250},{"$f":"OR('Cool Graph'!$I$1=35,'Cool Graph'!$I$1=36,'Cool Graph'!$I$1=37,'Cool Graph'!$I$1=38,'Cool Graph'!$I$1=39,'Cool Graph'!$I$1=40,'Cool Graph'!$I$1=41,'Cool Graph'!$I$1=42,'Cool Graph'!$I$1=43,'Cool Graph'!$I$1=44,'Cool Graph'!$I$1=45,'Cool Graph'!$I$1=46,'Cool Graph'!$I$1=47,'Cool Graph'!$I$1=58,'Cool Graph'!$I$1=66)","v":false}]
["2011-07-11",{"$f":"OFFSET(OldSchoolJustValues!A12,0,'Cool Graph'!$H$1)","v":0},{"$f":"OFFSET(OldSchoolJustValues!A12,0,'Cool Graph'!$I$1)","v":0},null,{"$f":"IF(NewDate>EndDate,NA(),NewDate)","v":"2011-10-06"},{"$f":"IF($E12>EndDate,NA(),IF($K$2=TRUE,N12,IF('Cool Graph'!$B$17=1,N12,IF('Cool Graph'!$B$17=2,L12,IF('Cool Graph'!$B$17=3,M12,)))))","v":250},{"$f":"IF($E12>EndDate,NA(),IF($O$2=TRUE,J12,IF('Cool Graph'!$B$17=1,Data1!J12,IF('Cool Graph'!$B$17=2,Data1!H12,IF('Cool Graph'!$B$17=3,Data1!I12,)))))","v":265.24724940684314},{"$f":"SUM(VLOOKUP($E12,AllData,COLUMN()-COLUMN($E12)),VLOOKUP($E12-1,AllData,COLUMN()-COLUMN($E12)),VLOOKUP($E12-2,AllData,COLUMN()-COLUMN($E12)),VLOOKUP($E12-3,AllData,COLUMN()-COLUMN($E12)),VLOOKUP($E12-4,AllData,COLUMN()-COLUMN($E12)),VLOOKUP($E12-5,AllData,COLUMN()-COLUMN($E12)),VLOOKUP($E12-6,AllData,COLUMN()-COLUMN($E12)))","v":1375.3458647419957},{"$f":"SUM(VLOOKUP($E12,AllData,COLUMN()-1-COLUMN($E12)),VLOOKUP($E12-1,AllData,COLUMN()-1-COLUMN($E12)),VLOOKUP($E12-2,AllData,COLUMN()-1-COLUMN($E12)),VLOOKUP($E12-3,AllData,COLUMN()-1-COLUMN($E12)),VLOOKUP($E12-4,AllData,COLUMN()-1-COLUMN($E12)),VLOOKUP($E12-5,AllData,COLUMN()-1-COLUMN($E12)),VLOOKUP($E12-6,AllData,COLUMN()-1-COLUMN($E12)),VLOOKUP($E12-7,AllData,COLUMN()-1-COLUMN($E12)),VLOOKUP($E12-8,AllData,COLUMN()-1-COLUMN($E12)),VLOOKUP($E12-9,AllData,COLUMN()-1-COLUMN($E12)),VLOOKUP($E12-10,AllData,COLUMN()-1-COLUMN($E12)),VLOOKUP($E12-11,AllData,COLUMN()-1-COLUMN($E12)),VLOOKUP($E12-12,AllData,COLUMN()-1-COLUMN($E12)),VLOOKUP($E12-13,AllData,COLUMN()-1-COLUMN($E12)),VLOOKUP($E12-14,AllData,COLUMN()-1-COLUMN($E12)),VLOOKUP($E12-15,AllData,COLUMN()-1-COLUMN($E12)),VLOOKUP($E12-16,AllData,COLUMN()-1-COLUMN($E12)),VLOOKUP($E12-17,AllData,COLUMN()-1-COLUMN($E12)),VLOOKUP($E12-18,AllData,COLUMN()-1-COLUMN($E12)),VLOOKUP($E12-19,AllData,COLUMN()-1-COLUMN($E12)),VLOOKUP($E12-20,AllData,COLUMN()-1-COLUMN($E12)),VLOOKUP($E12-21,AllData,COLUMN()-1-COLUMN($E12)),VLOOKUP($E12-22,AllData,COLUMN()-1-COLUMN($E12)),VLOOKUP($E12-23,AllData,COLUMN()-1-COLUMN($E12)),VLOOKUP($E12-24,AllData,COLUMN()-1-COLUMN($E12)),VLOOKUP($E12-25,AllData,COLUMN()-1-COLUMN($E12)),VLOOKUP($E12-26,AllData,COLUMN()-1-COLUMN($E12)),VLOOKUP($E12-27,AllData,COLUMN()-1-COLUMN($E12)),VLOOKUP($E12-28,AllData,COLUMN()-1-COLUMN($E12)),VLOOKUP($E12-29,AllData,COLUMN()-1-COLUMN($E12)))","v":7994.2848171174574},{"$f":"VLOOKUP($E12,AllData,COLUMN()-2-COLUMN($E12))","v":265.24724940684314},{"$f":"OR('Cool Graph'!$H$1=35,'Cool Graph'!$H$1=36,'Cool Graph'!$H$1=37,'Cool Graph'!$H$1=38,'Cool Graph'!$H$1=39,'Cool Graph'!$H$1=40,'Cool Graph'!$H$1=41,'Cool Graph'!$H$1=42,'Cool Graph'!$H$1=43,'Cool Graph'!$H$1=44,'Cool Graph'!$H$1=45,'Cool Graph'!$H$1=46,'Cool Graph'!$H$1=47,'Cool Graph'!$H$1=58,'Cool Graph'!$H$1=66)","v":false},{"$f":"SUM(VLOOKUP($E12,AllData,COLUMN()-5-COLUMN($E12)),VLOOKUP($E12-1,AllData,COLUMN()-5-COLUMN($E12)),VLOOKUP($E12-2,AllData,COLUMN()-5-COLUMN($E12)),VLOOKUP($E12-3,AllData,COLUMN()-5-COLUMN($E12)),VLOOKUP($E12-4,AllData,COLUMN()-5-COLUMN($E12)),VLOOKUP($E12-5,AllData,COLUMN()-5-COLUMN($E12)),VLOOKUP($E12-6,AllData,COLUMN()-5-COLUMN($E12)))","v":900},{"$f":"SUM(VLOOKUP($E12,AllData,COLUMN()-6-COLUMN($E12)),VLOOKUP($E12-1,AllData,COLUMN()-6-COLUMN($E12)),VLOOKUP($E12-2,AllData,COLUMN()-6-COLUMN($E12)),VLOOKUP($E12-3,AllData,COLUMN()-6-COLUMN($E12)),VLOOKUP($E12-4,AllData,COLUMN()-6-COLUMN($E12)),VLOOKUP($E12-5,AllData,COLUMN()-6-COLUMN($E12)),VLOOKUP($E12-6,AllData,COLUMN()-6-COLUMN($E12)),VLOOKUP($E12-7,AllData,COLUMN()-6-COLUMN($E12)),VLOOKUP($E12-8,AllData,COLUMN()-6-COLUMN($E12)),VLOOKUP($E12-9,AllData,COLUMN()-6-COLUMN($E12)),VLOOKUP($E12-10,AllData,COLUMN()-6-COLUMN($E12)),VLOOKUP($E12-11,AllData,COLUMN()-6-COLUMN($E12)),VLOOKUP($E12-12,AllData,COLUMN()-6-COLUMN($E12)),VLOOKUP($E12-13,AllData,COLUMN()-6-COLUMN($E12)),VLOOKUP($E12-14,AllData,COLUMN()-6-COLUMN($E12)),VLOOKUP($E12-15,AllData,COLUMN()-6-COLUMN($E12)),VLOOKUP($E12-16,AllData,COLUMN()-6-COLUMN($E12)),VLOOKUP($E12-17,AllData,COLUMN()-6-COLUMN($E12)),VLOOKUP($E12-18,AllData,COLUMN()-6-COLUMN($E12)),VLOOKUP($E12-19,AllData,COLUMN()-6-COLUMN($E12)),VLOOKUP($E12-20,AllData,COLUMN()-6-COLUMN($E12)),VLOOKUP($E12-21,AllData,COLUMN()-6-COLUMN($E12)),VLOOKUP($E12-22,AllData,COLUMN()-6-COLUMN($E12)),VLOOKUP($E12-23,AllData,COLUMN()-6-COLUMN($E12)),VLOOKUP($E12-24,AllData,COLUMN()-6-COLUMN($E12)),VLOOKUP($E12-25,AllData,COLUMN()-6-COLUMN($E12)),VLOOKUP($E12-26,AllData,COLUMN()-6-COLUMN($E12)),VLOOKUP($E12-27,AllData,COLUMN()-6-COLUMN($E12)),VLOOKUP($E12-28,AllData,COLUMN()-6-COLUMN($E12)),VLOOKUP($E12-29,AllData,COLUMN()-6-COLUMN($E12)))","v":960},{"$f":"VLOOKUP($E12,AllData,COLUMN()-7-COLUMN($E12))","v":250},{"$f":"OR('Cool Graph'!$I$1=35,'Cool Graph'!$I$1=36,'Cool Graph'!$I$1=37,'Cool Graph'!$I$1=38,'Cool Graph'!$I$1=39,'Cool Graph'!$I$1=40,'Cool Graph'!$I$1=41,'Cool Graph'!$I$1=42,'Cool Graph'!$I$1=43,'Cool Graph'!$I$1=44,'Cool Graph'!$I$1=45,'Cool Graph'!$I$1=46,'Cool Graph'!$I$1=47,'Cool Graph'!$I$1=58,'Cool Graph'!$I$1=66)","v":false}]
["2011-07-12",{"$f":"OFFSET(OldSchoolJustValues!A13,0,'Cool Graph'!$H$1)","v":0},{"$f":"OFFSET(OldSchoolJustValues!A13,0,'Cool Graph'!$I$1)","v":0},null,{"$f":"IF(NewDate>EndDate,NA(),NewDate)","v":"2011-10-07"},{"$f":"IF($E13>EndDate,NA(),IF($K$2=TRUE,N13,IF('Cool Graph'!$B$17=1,N13,IF('Cool Graph'!$B$17=2,L13,IF('Cool Graph'!$B$17=3,M13,)))))","v":62.16},{"$f":"IF($E13>EndDate,NA(),IF($O$2=TRUE,J13,IF('Cool Graph'!$B$17=1,Data1!J13,IF('Cool Graph'!$B$17=2,Data1!H13,IF('Cool Graph'!$B$17=3,Data1!I13,)))))","v":797.78633305216533},{"$f":"SUM(VLOOKUP($E13,AllData,COLUMN()-COLUMN($E13)),VLOOKUP($E13-1,AllData,COLUMN()-COLUMN($E13)),VLOOKUP($E13-2,AllData,COLUMN()-COLUMN($E13)),VLOOKUP($E13-3,AllData,COLUMN()-COLUMN($E13)),VLOOKUP($E13-4,AllData,COLUMN()-COLUMN($E13)),VLOOKUP($E13-5,AllData,COLUMN()-COLUMN($E13)),VLOOKUP($E13-6,AllData,COLUMN()-COLUMN($E13)))","v":1878.2356881225535},{"$f":"SUM(VLOOKUP($E13,AllData,COLUMN()-1-COLUMN($E13)),VLOOKUP($E13-1,AllData,COLUMN()-1-COLUMN($E13)),VLOOKUP($E13-2,AllData,COLUMN()-1-COLUMN($E13)),VLOOKUP($E13-3,AllData,COLUMN()-1-COLUMN($E13)),VLOOKUP($E13-4,AllData,COLUMN()-1-COLUMN($E13)),VLOOKUP($E13-5,AllData,COLUMN()-1-COLUMN($E13)),VLOOKUP($E13-6,AllData,COLUMN()-1-COLUMN($E13)),VLOOKUP($E13-7,AllData,COLUMN()-1-COLUMN($E13)),VLOOKUP($E13-8,AllData,COLUMN()-1-COLUMN($E13)),VLOOKUP($E13-9,AllData,COLUMN()-1-COLUMN($E13)),VLOOKUP($E13-10,AllData,COLUMN()-1-COLUMN($E13)),VLOOKUP($E13-11,AllData,COLUMN()-1-COLUMN($E13)),VLOOKUP($E13-12,AllData,COLUMN()-1-COLUMN($E13)),VLOOKUP($E13-13,AllData,COLUMN()-1-COLUMN($E13)),VLOOKUP($E13-14,AllData,COLUMN()-1-COLUMN($E13)),VLOOKUP($E13-15,AllData,COLUMN()-1-COLUMN($E13)),VLOOKUP($E13-16,AllData,COLUMN()-1-COLUMN($E13)),VLOOKUP($E13-17,AllData,COLUMN()-1-COLUMN($E13)),VLOOKUP($E13-18,AllData,COLUMN()-1-COLUMN($E13)),VLOOKUP($E13-19,AllData,COLUMN()-1-COLUMN($E13)),VLOOKUP($E13-20,AllData,COLUMN()-1-COLUMN($E13)),VLOOKUP($E13-21,AllData,COLUMN()-1-COLUMN($E13)),VLOOKUP($E13-22,AllData,COLUMN()-1-COLUMN($E13)),VLOOKUP($E13-23,AllData,COLUMN()-1-COLUMN($E13)),VLOOKUP($E13-24,AllData,COLUMN()-1-COLUMN($E13)),VLOOKUP($E13-25,AllData,COLUMN()-1-COLUMN($E13)),VLOOKUP($E13-26,AllData,COLUMN()-1-COLUMN($E13)),VLOOKUP($E13-27,AllData,COLUMN()-1-COLUMN($E13)),VLOOKUP($E13-28,AllData,COLUMN()-1-COLUMN($E13)),VLOOKUP($E13-29,AllData,COLUMN()-1-COLUMN($E13)))","v":8735.5945227517186},{"$f":"VLOOKUP($E13,AllData,COLUMN()-2-COLUMN($E13))","v":797.78633305216533},{"$f":"OR('Cool Graph'!$H$1=35,'Cool Graph'!$H$1=36,'Cool Graph'!$H$1=37,'Cool Graph'!$H$1=38,'Cool Graph'!$H$1=39,'Cool Graph'!$H$1=40,'Cool Graph'!$H$1=41,'Cool Graph'!$H$1=42,'Cool Graph'!$H$1=43,'Cool Graph'!$H$1=44,'Cool Graph'!$H$1=45,'Cool Graph'!$H$1=46,'Cool Graph'!$H$1=47,'Cool Graph'!$H$1=58,'Cool Graph'!$H$1=66)","v":false},{"$f":"SUM(VLOOKUP($E13,AllData,COLUMN()-5-COLUMN($E13)),VLOOKUP($E13-1,AllData,COLUMN()-5-COLUMN($E13)),VLOOKUP($E13-2,AllData,COLUMN()-5-COLUMN($E13)),VLOOKUP($E13-3,AllData,COLUMN()-5-COLUMN($E13)),VLOOKUP($E13-4,AllData,COLUMN()-5-COLUMN($E13)),VLOOKUP($E13-5,AllData,COLUMN()-5-COLUMN($E13)),VLOOKUP($E13-6,AllData,COLUMN()-5-COLUMN($E13)))","v":932.16},{"$f":"SUM(VLOOKUP($E13,AllData,COLUMN()-6-COLUMN($E13)),VLOOKUP($E13-1,AllData,COLUMN()-6-COLUMN($E13)),VLOOKUP($E13-2,AllData,COLUMN()-6-COLUMN($E13)),VLOOKUP($E13-3,AllData,COLUMN()-6-COLUMN($E13)),VLOOKUP($E13-4,AllData,COLUMN()-6-COLUMN($E13)),VLOOKUP($E13-5,AllData,COLUMN()-6-COLUMN($E13)),VLOOKUP($E13-6,AllData,COLUMN()-6-COLUMN($E13)),VLOOKUP($E13-7,AllData,COLUMN()-6-COLUMN($E13)),VLOOKUP($E13-8,AllData,COLUMN()-6-COLUMN($E13)),VLOOKUP($E13-9,AllData,COLUMN()-6-COLUMN($E13)),VLOOKUP($E13-10,AllData,COLUMN()-6-COLUMN($E13)),VLOOKUP($E13-11,AllData,COLUMN()-6-COLUMN($E13)),VLOOKUP($E13-12,AllData,COLUMN()-6-COLUMN($E13)),VLOOKUP($E13-13,AllData,COLUMN()-6-COLUMN($E13)),VLOOKUP($E13-14,AllData,COLUMN()-6-COLUMN($E13)),VLOOKUP($E13-15,AllData,COLUMN()-6-COLUMN($E13)),VLOOKUP($E13-16,AllData,COLUMN()-6-COLUMN($E13)),VLOOKUP($E13-17,AllData,COLUMN()-6-COLUMN($E13)),VLOOKUP($E13-18,AllData,COLUMN()-6-COLUMN($E13)),VLOOKUP($E13-19,AllData,COLUMN()-6-COLUMN($E13)),VLOOKUP($E13-20,AllData,COLUMN()-6-COLUMN($E13)),VLOOKUP($E13-21,AllData,COLUMN()-6-COLUMN($E13)),VLOOKUP($E13-22,AllData,COLUMN()-6-COLUMN($E13)),VLOOKUP($E13-23,AllData,COLUMN()-6-COLUMN($E13)),VLOOKUP($E13-24,AllData,COLUMN()-6-COLUMN($E13)),VLOOKUP($E13-25,AllData,COLUMN()-6-COLUMN($E13)),VLOOKUP($E13-26,AllData,COLUMN()-6-COLUMN($E13)),VLOOKUP($E13-27,AllData,COLUMN()-6-COLUMN($E13)),VLOOKUP($E13-28,AllData,COLUMN()-6-COLUMN($E13)),VLOOKUP($E13-29,AllData,COLUMN()-6-COLUMN($E13)))","v":1022.16},{"$f":"VLOOKUP($E13,AllData,COLUMN()-7-COLUMN($E13))","v":62.16},{"$f":"OR('Cool Graph'!$I$1=35,'Cool Graph'!$I$1=36,'Cool Graph'!$I$1=37,'Cool Graph'!$I$1=38,'Cool Graph'!$I$1=39,'Cool Graph'!$I$1=40,'Cool Graph'!$I$1=41,'Cool Graph'!$I$1=42,'Cool Graph'!$I$1=43,'Cool Graph'!$I$1=44,'Cool Graph'!$I$1=45,'Cool Graph'!$I$1=46,'Cool Graph'!$I$1=47,'Cool Graph'!$I$1=58,'Cool Graph'!$I$1=66)","v":false}]
["2011-07-13",{"$f":"OFFSET(OldSchoolJustValues!A14,0,'Cool Graph'!$H$1)","v":0},{"$f":"OFFSET(OldSchoolJustValues!A14,0,'Cool Graph'!$I$1)","v":0},null,{"$f":"IF(NewDate>EndDate,NA(),NewDate)","v":"2011-10-08"},{"$f":"IF($E14>EndDate,NA(),IF($K$2=TRUE,N14,IF('Cool Graph'!$B$17=1,N14,IF('Cool Graph'!$B$17=2,L14,IF('Cool Graph'!$B$17=3,M14,)))))","v":17.72},{"$f":"IF($E14>EndDate,NA(),IF($O$2=TRUE,J14,IF('Cool Graph'!$B$17=1,Data1!J14,IF('Cool Graph'!$B$17=2,Data1!H14,IF('Cool Graph'!$B$17=3,Data1!I14,)))))","v":-26.116745164196402},{"$f":"SUM(VLOOKUP($E14,AllData,COLUMN()-COLUMN($E14)),VLOOKUP($E14-1,AllData,COLUMN()-COLUMN($E14)),VLOOKUP($E14-2,AllData,COLUMN()-COLUMN($E14)),VLOOKUP($E14-3,AllData,COLUMN()-COLUMN($E14)),VLOOKUP($E14-4,AllData,COLUMN()-COLUMN($E14)),VLOOKUP($E14-5,AllData,COLUMN()-COLUMN($E14)),VLOOKUP($E14-6,AllData,COLUMN()-COLUMN($E14)))","v":1883.4190018315044},{"$f":"SUM(VLOOKUP($E14,AllData,COLUMN()-1-COLUMN($E14)),VLOOKUP($E14-1,AllData,COLUMN()-1-COLUMN($E14)),VLOOKUP($E14-2,AllData,COLUMN()-1-COLUMN($E14)),VLOOKUP($E14-3,AllData,COLUMN()-1-COLUMN($E14)),VLOOKUP($E14-4,AllData,COLUMN()-1-COLUMN($E14)),VLOOKUP($E14-5,AllData,COLUMN()-1-COLUMN($E14)),VLOOKUP($E14-6,AllData,COLUMN()-1-COLUMN($E14)),VLOOKUP($E14-7,AllData,COLUMN()-1-COLUMN($E14)),VLOOKUP($E14-8,AllData,COLUMN()-1-COLUMN($E14)),VLOOKUP($E14-9,AllData,COLUMN()-1-COLUMN($E14)),VLOOKUP($E14-10,AllData,COLUMN()-1-COLUMN($E14)),VLOOKUP($E14-11,AllData,COLUMN()-1-COLUMN($E14)),VLOOKUP($E14-12,AllData,COLUMN()-1-COLUMN($E14)),VLOOKUP($E14-13,AllData,COLUMN()-1-COLUMN($E14)),VLOOKUP($E14-14,AllData,COLUMN()-1-COLUMN($E14)),VLOOKUP($E14-15,AllData,COLUMN()-1-COLUMN($E14)),VLOOKUP($E14-16,AllData,COLUMN()-1-COLUMN($E14)),VLOOKUP($E14-17,AllData,COLUMN()-1-COLUMN($E14)),VLOOKUP($E14-18,AllData,COLUMN()-1-COLUMN($E14)),VLOOKUP($E14-19,AllData,COLUMN()-1-COLUMN($E14)),VLOOKUP($E14-20,AllData,COLUMN()-1-COLUMN($E14)),VLOOKUP($E14-21,AllData,COLUMN()-1-COLUMN($E14)),VLOOKUP($E14-22,AllData,COLUMN()-1-COLUMN($E14)),VLOOKUP($E14-23,AllData,COLUMN()-1-COLUMN($E14)),VLOOKUP($E14-24,AllData,COLUMN()-1-COLUMN($E14)),VLOOKUP($E14-25,AllData,COLUMN()-1-COLUMN($E14)),VLOOKUP($E14-26,AllData,COLUMN()-1-COLUMN($E14)),VLOOKUP($E14-27,AllData,COLUMN()-1-COLUMN($E14)),VLOOKUP($E14-28,AllData,COLUMN()-1-COLUMN($E14)),VLOOKUP($E14-29,AllData,COLUMN()-1-COLUMN($E14)))","v":7856.6041277449367},{"$f":"VLOOKUP($E14,AllData,COLUMN()-2-COLUMN($E14))","v":-26.116745164196402},{"$f":"OR('Cool Graph'!$H$1=35,'Cool Graph'!$H$1=36,'Cool Graph'!$H$1=37,'Cool Graph'!$H$1=38,'Cool Graph'!$H$1=39,'Cool Graph'!$H$1=40,'Cool Graph'!$H$1=41,'Cool Graph'!$H$1=42,'Cool Graph'!$H$1=43,'Cool Graph'!$H$1=44,'Cool Graph'!$H$1=45,'Cool Graph'!$H$1=46,'Cool Graph'!$H$1=47,'Cool Graph'!$H$1=58,'Cool Graph'!$H$1=66)","v":false},{"$f":"SUM(VLOOKUP($E14,AllData,COLUMN()-5-COLUMN($E14)),VLOOKUP($E14-1,AllData,COLUMN()-5-COLUMN($E14)),VLOOKUP($E14-2,AllData,COLUMN()-5-COLUMN($E14)),VLOOKUP($E14-3,AllData,COLUMN()-5-COLUMN($E14)),VLOOKUP($E14-4,AllData,COLUMN()-5-COLUMN($E14)),VLOOKUP($E14-5,AllData,COLUMN()-5-COLUMN($E14)),VLOOKUP($E14-6,AllData,COLUMN()-5-COLUMN($E14)))","v":919.88},{"$f":"SUM(VLOOKUP($E14,AllData,COLUMN()-6-COLUMN($E14)),VLOOKUP($E14-1,AllData,COLUMN()-6-COLUMN($E14)),VLOOKUP($E14-2,AllData,COLUMN()-6-COLUMN($E14)),VLOOKUP($E14-3,AllData,COLUMN()-6-COLUMN($E14)),VLOOKUP($E14-4,AllData,COLUMN()-6-COLUMN($E14)),VLOOKUP($E14-5,AllData,COLUMN()-6-COLUMN($E14)),VLOOKUP($E14-6,AllData,COLUMN()-6-COLUMN($E14)),VLOOKUP($E14-7,AllData,COLUMN()-6-COLUMN($E14)),VLOOKUP($E14-8,AllData,COLUMN()-6-COLUMN($E14)),VLOOKUP($E14-9,AllData,COLUMN()-6-COLUMN($E14)),VLOOKUP($E14-10,AllData,COLUMN()-6-COLUMN($E14)),VLOOKUP($E14-11,AllData,COLUMN()-6-COLUMN($E14)),VLOOKUP($E14-12,AllData,COLUMN()-6-COLUMN($E14)),VLOOKUP($E14-13,AllData,COLUMN()-6-COLUMN($E14)),VLOOKUP($E14-14,AllData,COLUMN()-6-COLUMN($E14)),VLOOKUP($E14-15,AllData,COLUMN()-6-COLUMN($E14)),VLOOKUP($E14-16,AllData,COLUMN()-6-COLUMN($E14)),VLOOKUP($E14-17,AllData,COLUMN()-6-COLUMN($E14)),VLOOKUP($E14-18,AllData,COLUMN()-6-COLUMN($E14)),VLOOKUP($E14-19,AllData,COLUMN()-6-COLUMN($E14)),VLOOKUP($E14-20,AllData,COLUMN()-6-COLUMN($E14)),VLOOKUP($E14-21,AllData,COLUMN()-6-COLUMN($E14)),VLOOKUP($E14-22,AllData,COLUMN()-6-COLUMN($E14)),VLOOKUP($E14-23,AllData,COLUMN()-6-COLUMN($E14)),VLOOKUP($E14-24,AllData,COLUMN()-6-COLUMN($E14)),VLOOKUP($E14-25,AllData,COLUMN()-6-COLUMN($E14)),VLOOKUP($E14-26,AllData,COLUMN()-6-COLUMN($E14)),VLOOKUP($E14-27,AllData,COLUMN()-6-COLUMN($E14)),VLOOKUP($E14-28,AllData,COLUMN()-6-COLUMN($E14)),VLOOKUP($E14-29,AllData,COLUMN()-6-COLUMN($E14)))","v":1039.8800000000001},{"$f":"VLOOKUP($E14,AllData,COLUMN()-7-COLUMN($E14))","v":17.72},{"$f":"OR('Cool Graph'!$I$1=35,'Cool Graph'!$I$1=36,'Cool Graph'!$I$1=37,'Cool Graph'!$I$1=38,'Cool Graph'!$I$1=39,'Cool Graph'!$I$1=40,'Cool Graph'!$I$1=41,'Cool Graph'!$I$1=42,'Cool Graph'!$I$1=43,'Cool Graph'!$I$1=44,'Cool Graph'!$I$1=45,'Cool Graph'!$I$1=46,'Cool Graph'!$I$1=47,'Cool Graph'!$I$1=58,'Cool Graph'!$I$1=66)","v":false}]
["2011-07-14",{"$f":"OFFSET(OldSchoolJustValues!A15,0,'Cool Graph'!$H$1)","v":0},{"$f":"OFFSET(OldSchoolJustValues!A15,0,'Cool Graph'!$I$1)","v":0},null,{"$f":"IF(NewDate>EndDate,NA(),NewDate)","v":"2011-10-09"},{"$f":"IF($E15>EndDate,NA(),IF($K$2=TRUE,N15,IF('Cool Graph'!$B$17=1,N15,IF('Cool Graph'!$B$17=2,L15,IF('Cool Graph'!$B$17=3,M15,)))))","v":36.869999999999997},{"$f":"IF($E15>EndDate,NA(),IF($O$2=TRUE,J15,IF('Cool Graph'!$B$17=1,Data1!J15,IF('Cool Graph'!$B$17=2,Data1!H15,IF('Cool Graph'!$B$17=3,Data1!I15,)))))","v":323.25275326816563},{"$f":"SUM(VLOOKUP($E15,AllData,COLUMN()-COLUMN($E15)),VLOOKUP($E15-1,AllData,COLUMN()-COLUMN($E15)),VLOOKUP($E15-2,AllData,COLUMN()-COLUMN($E15)),VLOOKUP($E15-3,AllData,COLUMN()-COLUMN($E15)),VLOOKUP($E15-4,AllData,COLUMN()-COLUMN($E15)),VLOOKUP($E15-5,AllData,COLUMN()-COLUMN($E15)),VLOOKUP($E15-6,AllData,COLUMN()-COLUMN($E15)))","v":1674.61530430121},{"$f":"SUM(VLOOKUP($E15,AllData,COLUMN()-1-COLUMN($E15)),VLOOKUP($E15-1,AllData,COLUMN()-1-COLUMN($E15)),VLOOKUP($E15-2,AllData,COLUMN()-1-COLUMN($E15)),VLOOKUP($E15-3,AllData,COLUMN()-1-COLUMN($E15)),VLOOKUP($E15-4,AllData,COLUMN()-1-COLUMN($E15)),VLOOKUP($E15-5,AllData,COLUMN()-1-COLUMN($E15)),VLOOKUP($E15-6,AllData,COLUMN()-1-COLUMN($E15)),VLOOKUP($E15-7,AllData,COLUMN()-1-COLUMN($E15)),VLOOKUP($E15-8,AllData,COLUMN()-1-COLUMN($E15)),VLOOKUP($E15-9,AllData,COLUMN()-1-COLUMN($E15)),VLOOKUP($E15-10,AllData,COLUMN()-1-COLUMN($E15)),VLOOKUP($E15-11,AllData,COLUMN()-1-COLUMN($E15)),VLOOKUP($E15-12,AllData,COLUMN()-1-COLUMN($E15)),VLOOKUP($E15-13,AllData,COLUMN()-1-COLUMN($E15)),VLOOKUP($E15-14,AllData,COLUMN()-1-COLUMN($E15)),VLOOKUP($E15-15,AllData,COLUMN()-1-COLUMN($E15)),VLOOKUP($E15-16,AllData,COLUMN()-1-COLUMN($E15)),VLOOKUP($E15-17,AllData,COLUMN()-1-COLUMN($E15)),VLOOKUP($E15-18,AllData,COLUMN()-1-COLUMN($E15)),VLOOKUP($E15-19,AllData,COLUMN()-1-COLUMN($E15)),VLOOKUP($E15-20,AllData,COLUMN()-1-COLUMN($E15)),VLOOKUP($E15-21,AllData,COLUMN()-1-COLUMN($E15)),VLOOKUP($E15-22,AllData,COLUMN()-1-COLUMN($E15)),VLOOKUP($E15-23,AllData,COLUMN()-1-COLUMN($E15)),VLOOKUP($E15-24,AllData,COLUMN()-1-COLUMN($E15)),VLOOKUP($E15-25,AllData,COLUMN()-1-COLUMN($E15)),VLOOKUP($E15-26,AllData,COLUMN()-1-COLUMN($E15)),VLOOKUP($E15-27,AllData,COLUMN()-1-COLUMN($E15)),VLOOKUP($E15-28,AllData,COLUMN()-1-COLUMN($E15)),VLOOKUP($E15-29,AllData,COLUMN()-1-COLUMN($E15)))","v":7995.0406962896905},{"$f":"VLOOKUP($E15,AllData,COLUMN()-2-COLUMN($E15))","v":323.25275326816563},{"$f":"OR('Cool Graph'!$H$1=35,'Cool Graph'!$H$1=36,'Cool Graph'!$H$1=37,'Cool Graph'!$H$1=38,'Cool Graph'!$H$1=39,'Cool Graph'!$H$1=40,'Cool Graph'!$H$1=41,'Cool Graph'!$H$1=42,'Cool Graph'!$H$1=43,'Cool Graph'!$H$1=44,'Cool Graph'!$H$1=45,'Cool Graph'!$H$1=46,'Cool Graph'!$H$1=47,'Cool Graph'!$H$1=58,'Cool Graph'!$H$1=66)","v":false},{"$f":"SUM(VLOOKUP($E15,AllData,COLUMN()-5-COLUMN($E15)),VLOOKUP($E15-1,AllData,COLUMN()-5-COLUMN($E15)),VLOOKUP($E15-2,AllData,COLUMN()-5-COLUMN($E15)),VLOOKUP($E15-3,AllData,COLUMN()-5-COLUMN($E15)),VLOOKUP($E15-4,AllData,COLUMN()-5-COLUMN($E15)),VLOOKUP($E15-5,AllData,COLUMN()-5-COLUMN($E15)),VLOOKUP($E15-6,AllData,COLUMN()-5-COLUMN($E15)))","v":926.75},{"$f":"SUM(VLOOKUP($E15,AllData,COLUMN()-6-COLUMN($E15)),VLOOKUP($E15-1,AllData,COLUMN()-6-COLUMN($E15)),VLOOKUP($E15-2,AllData,COLUMN()-6-COLUMN($E15)),VLOOKUP($E15-3,AllData,COLUMN()-6-COLUMN($E15)),VLOOKUP($E15-4,AllData,COLUMN()-6-COLUMN($E15)),VLOOKUP($E15-5,AllData,COLUMN()-6-COLUMN($E15)),VLOOKUP($E15-6,AllData,COLUMN()-6-COLUMN($E15)),VLOOKUP($E15-7,AllData,COLUMN()-6-COLUMN($E15)),VLOOKUP($E15-8,AllData,COLUMN()-6-COLUMN($E15)),VLOOKUP($E15-9,AllData,COLUMN()-6-COLUMN($E15)),VLOOKUP($E15-10,AllData,COLUMN()-6-COLUMN($E15)),VLOOKUP($E15-11,AllData,COLUMN()-6-COLUMN($E15)),VLOOKUP($E15-12,AllData,COLUMN()-6-COLUMN($E15)),VLOOKUP($E15-13,AllData,COLUMN()-6-COLUMN($E15)),VLOOKUP($E15-14,AllData,COLUMN()-6-COLUMN($E15)),VLOOKUP($E15-15,AllData,COLUMN()-6-COLUMN($E15)),VLOOKUP($E15-16,AllData,COLUMN()-6-COLUMN($E15)),VLOOKUP($E15-17,AllData,COLUMN()-6-COLUMN($E15)),VLOOKUP($E15-18,AllData,COLUMN()-6-COLUMN($E15)),VLOOKUP($E15-19,AllData,COLUMN()-6-COLUMN($E15)),VLOOKUP($E15-20,AllData,COLUMN()-6-COLUMN($E15)),VLOOKUP($E15-21,AllData,COLUMN()-6-COLUMN($E15)),VLOOKUP($E15-22,AllData,COLUMN()-6-COLUMN($E15)),VLOOKUP($E15-23,AllData,COLUMN()-6-COLUMN($E15)),VLOOKUP($E15-24,AllData,COLUMN()-6-COLUMN($E15)),VLOOKUP($E15-25,AllData,COLUMN()-6-COLUMN($E15)),VLOOKUP($E15-26,AllData,COLUMN()-6-COLUMN($E15)),VLOOKUP($E15-27,AllData,COLUMN()-6-COLUMN($E15)),VLOOKUP($E15-28,AllData,COLUMN()-6-COLUMN($E15)),VLOOKUP($E15-29,AllData,COLUMN()-6-COLUMN($E15)))","v":1076.75},{"$f":"VLOOKUP($E15,AllData,COLUMN()-7-COLUMN($E15))","v":36.869999999999997},{"$f":"OR('Cool Graph'!$I$1=35,'Cool Graph'!$I$1=36,'Cool Graph'!$I$1=37,'Cool Graph'!$I$1=38,'Cool Graph'!$I$1=39,'Cool Graph'!$I$1=40,'Cool Graph'!$I$1=41,'Cool Graph'!$I$1=42,'Cool Graph'!$I$1=43,'Cool Graph'!$I$1=44,'Cool Graph'!$I$1=45,'Cool Graph'!$I$1=46,'Cool Graph'!$I$1=47,'Cool Graph'!$I$1=58,'Cool Graph'!$I$1=66)","v":false}]
["2011-07-15",{"$f":"OFFSET(OldSchoolJustValues!A16,0,'Cool Graph'!$H$1)","v":0},{"$f":"OFFSET(OldSchoolJustValues!A16,0,'Cool Graph'!$I$1)","v":0},null,{"$f":"IF(NewDate>EndDate,NA(),NewDate)","v":"2011-10-10"},{"$f":"IF($E16>EndDate,NA(),IF($K$2=TRUE,N16,IF('Cool Graph'!$B$17=1,N16,IF('Cool Graph'!$B$17=2,L16,IF('Cool Graph'!$B$17=3,M16,)))))","v":245.04},{"$f":"IF($E16>EndDate,NA(),IF($O$2=TRUE,J16,IF('Cool Graph'!$B$17=1,Data1!J16,IF('Cool Graph'!$B$17=2,Data1!H16,IF('Cool Graph'!$B$17=3,Data1!I16,)))))","v":229.21645079845985},{"$f":"SUM(VLOOKUP($E16,AllData,COLUMN()-COLUMN($E16)),VLOOKUP($E16-1,AllData,COLUMN()-COLUMN($E16)),VLOOKUP($E16-2,AllData,COLUMN()-COLUMN($E16)),VLOOKUP($E16-3,AllData,COLUMN()-COLUMN($E16)),VLOOKUP($E16-4,AllData,COLUMN()-COLUMN($E16)),VLOOKUP($E16-5,AllData,COLUMN()-COLUMN($E16)),VLOOKUP($E16-6,AllData,COLUMN()-COLUMN($E16)))","v":1876.4651865549158},{"$f":"SUM(VLOOKUP($E16,AllData,COLUMN()-1-COLUMN($E16)),VLOOKUP($E16-1,AllData,COLUMN()-1-COLUMN($E16)),VLOOKUP($E16-2,AllData,COLUMN()-1-COLUMN($E16)),VLOOKUP($E16-3,AllData,COLUMN()-1-COLUMN($E16)),VLOOKUP($E16-4,AllData,COLUMN()-1-COLUMN($E16)),VLOOKUP($E16-5,AllData,COLUMN()-1-COLUMN($E16)),VLOOKUP($E16-6,AllData,COLUMN()-1-COLUMN($E16)),VLOOKUP($E16-7,AllData,COLUMN()-1-COLUMN($E16)),VLOOKUP($E16-8,AllData,COLUMN()-1-COLUMN($E16)),VLOOKUP($E16-9,AllData,COLUMN()-1-COLUMN($E16)),VLOOKUP($E16-10,AllData,COLUMN()-1-COLUMN($E16)),VLOOKUP($E16-11,AllData,COLUMN()-1-COLUMN($E16)),VLOOKUP($E16-12,AllData,COLUMN()-1-COLUMN($E16)),VLOOKUP($E16-13,AllData,COLUMN()-1-COLUMN($E16)),VLOOKUP($E16-14,AllData,COLUMN()-1-COLUMN($E16)),VLOOKUP($E16-15,AllData,COLUMN()-1-COLUMN($E16)),VLOOKUP($E16-16,AllData,COLUMN()-1-COLUMN($E16)),VLOOKUP($E16-17,AllData,COLUMN()-1-COLUMN($E16)),VLOOKUP($E16-18,AllData,COLUMN()-1-COLUMN($E16)),VLOOKUP($E16-19,AllData,COLUMN()-1-COLUMN($E16)),VLOOKUP($E16-20,AllData,COLUMN()-1-COLUMN($E16)),VLOOKUP($E16-21,AllData,COLUMN()-1-COLUMN($E16)),VLOOKUP($E16-22,AllData,COLUMN()-1-COLUMN($E16)),VLOOKUP($E16-23,AllData,COLUMN()-1-COLUMN($E16)),VLOOKUP($E16-24,AllData,COLUMN()-1-COLUMN($E16)),VLOOKUP($E16-25,AllData,COLUMN()-1-COLUMN($E16)),VLOOKUP($E16-26,AllData,COLUMN()-1-COLUMN($E16)),VLOOKUP($E16-27,AllData,COLUMN()-1-COLUMN($E16)),VLOOKUP($E16-28,AllData,COLUMN()-1-COLUMN($E16)),VLOOKUP($E16-29,AllData,COLUMN()-1-COLUMN($E16)))","v":8159.3071979254692},{"$f":"VLOOKUP($E16,AllData,COLUMN()-2-COLUMN($E16))","v":229.21645079845985},{"$f":"OR('Cool Graph'!$H$1=35,'Cool Graph'!$H$1=36,'Cool Graph'!$H$1=37,'Cool Graph'!$H$1=38,'Cool Graph'!$H$1=39,'Cool Graph'!$H$1=40,'Cool Graph'!$H$1=41,'Cool Graph'!$H$1=42,'Cool Graph'!$H$1=43,'Cool Graph'!$H$1=44,'Cool Graph'!$H$1=45,'Cool Graph'!$H$1=46,'Cool Graph'!$H$1=47,'Cool Graph'!$H$1=58,'Cool Graph'!$H$1=66)","v":false},{"$f":"SUM(VLOOKUP($E16,AllData,COLUMN()-5-COLUMN($E16)),VLOOKUP($E16-1,AllData,COLUMN()-5-COLUMN($E16)),VLOOKUP($E16-2,AllData,COLUMN()-5-COLUMN($E16)),VLOOKUP($E16-3,AllData,COLUMN()-5-COLUMN($E16)),VLOOKUP($E16-4,AllData,COLUMN()-5-COLUMN($E16)),VLOOKUP($E16-5,AllData,COLUMN()-5-COLUMN($E16)),VLOOKUP($E16-6,AllData,COLUMN()-5-COLUMN($E16)))","v":1111.79},{"$f":"SUM(VLOOKUP($E16,AllData,COLUMN()-6-COLUMN($E16)),VLOOKUP($E16-1,AllData,COLUMN()-6-COLUMN($E16)),VLOOKUP($E16-2,AllData,COLUMN()-6-COLUMN($E16)),VLOOKUP($E16-3,AllData,COLUMN()-6-COLUMN($E16)),VLOOKUP($E16-4,AllData,COLUMN()-6-COLUMN($E16)),VLOOKUP($E16-5,AllData,COLUMN()-6-COLUMN($E16)),VLOOKUP($E16-6,AllData,COLUMN()-6-COLUMN($E16)),VLOOKUP($E16-7,AllData,COLUMN()-6-COLUMN($E16)),VLOOKUP($E16-8,AllData,COLUMN()-6-COLUMN($E16)),VLOOKUP($E16-9,AllData,COLUMN()-6-COLUMN($E16)),VLOOKUP($E16-10,AllData,COLUMN()-6-COLUMN($E16)),VLOOKUP($E16-11,AllData,COLUMN()-6-COLUMN($E16)),VLOOKUP($E16-12,AllData,COLUMN()-6-COLUMN($E16)),VLOOKUP($E16-13,AllData,COLUMN()-6-COLUMN($E16)),VLOOKUP($E16-14,AllData,COLUMN()-6-COLUMN($E16)),VLOOKUP($E16-15,AllData,COLUMN()-6-COLUMN($E16)),VLOOKUP($E16-16,AllData,COLUMN()-6-COLUMN($E16)),VLOOKUP($E16-17,AllData,COLUMN()-6-COLUMN($E16)),VLOOKUP($E16-18,AllData,COLUMN()-6-COLUMN($E16)),VLOOKUP($E16-19,AllData,COLUMN()-6-COLUMN($E16)),VLOOKUP($E16-20,AllData,COLUMN()-6-COLUMN($E16)),VLOOKUP($E16-21,AllData,COLUMN()-6-COLUMN($E16)),VLOOKUP($E16-22,AllData,COLUMN()-6-COLUMN($E16)),VLOOKUP($E16-23,AllData,COLUMN()-6-COLUMN($E16)),VLOOKUP($E16-24,AllData,COLUMN()-6-COLUMN($E16)),VLOOKUP($E16-25,AllData,COLUMN()-6-COLUMN($E16)),VLOOKUP($E16-26,AllData,COLUMN()-6-COLUMN($E16)),VLOOKUP($E16-27,AllData,COLUMN()-6-COLUMN($E16)),VLOOKUP($E16-28,AllData,COLUMN()-6-COLUMN($E16)),VLOOKUP($E16-29,AllData,COLUMN()-6-COLUMN($E16)))","v":1321.79},{"$f":"VLOOKUP($E16,AllData,COLUMN()-7-COLUMN($E16))","v":245.04},{"$f":"OR('Cool Graph'!$I$1=35,'Cool Graph'!$I$1=36,'Cool Graph'!$I$1=37,'Cool Graph'!$I$1=38,'Cool Graph'!$I$1=39,'Cool Graph'!$I$1=40,'Cool Graph'!$I$1=41,'Cool Graph'!$I$1=42,'Cool Graph'!$I$1=43,'Cool Graph'!$I$1=44,'Cool Graph'!$I$1=45,'Cool Graph'!$I$1=46,'Cool Graph'!$I$1=47,'Cool Graph'!$I$1=58,'Cool Graph'!$I$1=66)","v":false}]
["2011-07-16",{"$f":"OFFSET(OldSchoolJustValues!A17,0,'Cool Graph'!$H$1)","v":0},{"$f":"OFFSET(OldSchoolJustValues!A17,0,'Cool Graph'!$I$1)","v":-54.46},null,{"$f":"IF(NewDate>EndDate,NA(),NewDate)","v":"2011-10-11"},{"$f":"IF($E17>EndDate,NA(),IF($K$2=TRUE,N17,IF('Cool Graph'!$B$17=1,N17,IF('Cool Graph'!$B$17=2,L17,IF('Cool Graph'!$B$17=3,M17,)))))","v":73.53},{"$f":"IF($E17>EndDate,NA(),IF($O$2=TRUE,J17,IF('Cool Graph'!$B$17=1,Data1!J17,IF('Cool Graph'!$B$17=2,Data1!H17,IF('Cool Graph'!$B$17=3,Data1!I17,)))))","v":114.82988225370536},{"$f":"SUM(VLOOKUP($E17,AllData,COLUMN()-COLUMN($E17)),VLOOKUP($E17-1,AllData,COLUMN()-COLUMN($E17)),VLOOKUP($E17-2,AllData,COLUMN()-COLUMN($E17)),VLOOKUP($E17-3,AllData,COLUMN()-COLUMN($E17)),VLOOKUP($E17-4,AllData,COLUMN()-COLUMN($E17)),VLOOKUP($E17-5,AllData,COLUMN()-COLUMN($E17)),VLOOKUP($E17-6,AllData,COLUMN()-COLUMN($E17)))","v":2137.5518728459651},{"$f":"SUM(VLOOKUP($E17,AllData,COLUMN()-1-COLUMN($E17)),VLOOKUP($E17-1,AllData,COLUMN()-1-COLUMN($E17)),VLOOKUP($E17-2,AllData,COLUMN()-1-COLUMN($E17)),VLOOKUP($E17-3,AllData,COLUMN()-1-COLUMN($E17)),VLOOKUP($E17-4,AllData,COLUMN()-1-COLUMN($E17)),VLOOKUP($E17-5,AllData,COLUMN()-1-COLUMN($E17)),VLOOKUP($E17-6,AllData,COLUMN()-1-COLUMN($E17)),VLOOKUP($E17-7,AllData,COLUMN()-1-COLUMN($E17)),VLOOKUP($E17-8,AllData,COLUMN()-1-COLUMN($E17)),VLOOKUP($E17-9,AllData,COLUMN()-1-COLUMN($E17)),VLOOKUP($E17-10,AllData,COLUMN()-1-COLUMN($E17)),VLOOKUP($E17-11,AllData,COLUMN()-1-COLUMN($E17)),VLOOKUP($E17-12,AllData,COLUMN()-1-COLUMN($E17)),VLOOKUP($E17-13,AllData,COLUMN()-1-COLUMN($E17)),VLOOKUP($E17-14,AllData,COLUMN()-1-COLUMN($E17)),VLOOKUP($E17-15,AllData,COLUMN()-1-COLUMN($E17)),VLOOKUP($E17-16,AllData,COLUMN()-1-COLUMN($E17)),VLOOKUP($E17-17,AllData,COLUMN()-1-COLUMN($E17)),VLOOKUP($E17-18,AllData,COLUMN()-1-COLUMN($E17)),VLOOKUP($E17-19,AllData,COLUMN()-1-COLUMN($E17)),VLOOKUP($E17-20,AllData,COLUMN()-1-COLUMN($E17)),VLOOKUP($E17-21,AllData,COLUMN()-1-COLUMN($E17)),VLOOKUP($E17-22,AllData,COLUMN()-1-COLUMN($E17)),VLOOKUP($E17-23,AllData,COLUMN()-1-COLUMN($E17)),VLOOKUP($E17-24,AllData,COLUMN()-1-COLUMN($E17)),VLOOKUP($E17-25,AllData,COLUMN()-1-COLUMN($E17)),VLOOKUP($E17-26,AllData,COLUMN()-1-COLUMN($E17)),VLOOKUP($E17-27,AllData,COLUMN()-1-COLUMN($E17)),VLOOKUP($E17-28,AllData,COLUMN()-1-COLUMN($E17)),VLOOKUP($E17-29,AllData,COLUMN()-1-COLUMN($E17)))","v":8014.6256549557747},{"$f":"VLOOKUP($E17,AllData,COLUMN()-2-COLUMN($E17))","v":114.82988225370536},{"$f":"OR('Cool Graph'!$H$1=35,'Cool Graph'!$H$1=36,'Cool Graph'!$H$1=37,'Cool Graph'!$H$1=38,'Cool Graph'!$H$1=39,'Cool Graph'!$H$1=40,'Cool Graph'!$H$1=41,'Cool Graph'!$H$1=42,'Cool Graph'!$H$1=43,'Cool Graph'!$H$1=44,'Cool Graph'!$H$1=45,'Cool Graph'!$H$1=46,'Cool Graph'!$H$1=47,'Cool Graph'!$H$1=58,'Cool Graph'!$H$1=66)","v":false},{"$f":"SUM(VLOOKUP($E17,AllData,COLUMN()-5-COLUMN($E17)),VLOOKUP($E17-1,AllData,COLUMN()-5-COLUMN($E17)),VLOOKUP($E17-2,AllData,COLUMN()-5-COLUMN($E17)),VLOOKUP($E17-3,AllData,COLUMN()-5-COLUMN($E17)),VLOOKUP($E17-4,AllData,COLUMN()-5-COLUMN($E17)),VLOOKUP($E17-5,AllData,COLUMN()-5-COLUMN($E17)),VLOOKUP($E17-6,AllData,COLUMN()-5-COLUMN($E17)))","v":935.31999999999994},{"$f":"SUM(VLOOKUP($E17,AllData,COLUMN()-6-COLUMN($E17)),VLOOKUP($E17-1,AllData,COLUMN()-6-COLUMN($E17)),VLOOKUP($E17-2,AllData,COLUMN()-6-COLUMN($E17)),VLOOKUP($E17-3,AllData,COLUMN()-6-COLUMN($E17)),VLOOKUP($E17-4,AllData,COLUMN()-6-COLUMN($E17)),VLOOKUP($E17-5,AllData,COLUMN()-6-COLUMN($E17)),VLOOKUP($E17-6,AllData,COLUMN()-6-COLUMN($E17)),VLOOKUP($E17-7,AllData,COLUMN()-6-COLUMN($E17)),VLOOKUP($E17-8,AllData,COLUMN()-6-COLUMN($E17)),VLOOKUP($E17-9,AllData,COLUMN()-6-COLUMN($E17)),VLOOKUP($E17-10,AllData,COLUMN()-6-COLUMN($E17)),VLOOKUP($E17-11,AllData,COLUMN()-6-COLUMN($E17)),VLOOKUP($E17-12,AllData,COLUMN()-6-COLUMN($E17)),VLOOKUP($E17-13,AllData,COLUMN()-6-COLUMN($E17)),VLOOKUP($E17-14,AllData,COLUMN()-6-COLUMN($E17)),VLOOKUP($E17-15,AllData,COLUMN()-6-COLUMN($E17)),VLOOKUP($E17-16,AllData,COLUMN()-6-COLUMN($E17)),VLOOKUP($E17-17,AllData,COLUMN()-6-COLUMN($E17)),VLOOKUP($E17-18,AllData,COLUMN()-6-COLUMN($E17)),VLOOKUP($E17-19,AllData,COLUMN()-6-COLUMN($E17)),VLOOKUP($E17-20,AllData,COLUMN()-6-COLUMN($E17)),VLOOKUP($E17-21,AllData,COLUMN()-6-COLUMN($E17)),VLOOKUP($E17-22,AllData,COLUMN()-6-COLUMN($E17)),VLOOKUP($E17-23,AllData,COLUMN()-6-COLUMN($E17)),VLOOKUP($E17-24,AllData,COLUMN()-6-COLUMN($E17)),VLOOKUP($E17-25,AllData,COLUMN()-6-COLUMN($E17)),VLOOKUP($E17-26,AllData,COLUMN()-6-COLUMN($E17)),VLOOKUP($E17-27,AllData,COLUMN()-6-COLUMN($E17)),VLOOKUP($E17-28,AllData,COLUMN()-6-COLUMN($E17)),VLOOKUP($E17-29,AllData,COLUMN()-6-COLUMN($E17)))","v":1395.32},{"$f":"VLOOKUP($E17,AllData,COLUMN()-7-COLUMN($E17))","v":73.53},{"$f":"OR('Cool Graph'!$I$1=35,'Cool Graph'!$I$1=36,'Cool Graph'!$I$1=37,'Cool Graph'!$I$1=38,'Cool Graph'!$I$1=39,'Cool Graph'!$I$1=40,'Cool Graph'!$I$1=41,'Cool Graph'!$I$1=42,'Cool Graph'!$I$1=43,'Cool Graph'!$I$1=44,'Cool Graph'!$I$1=45,'Cool Graph'!$I$1=46,'Cool Graph'!$I$1=47,'Cool Graph'!$I$1=58,'Cool Graph'!$I$1=66)","v":false}]
["2011-07-17",{"$f":"OFFSET(OldSchoolJustValues!A18,0,'Cool Graph'!$H$1)","v":0},{"$f":"OFFSET(OldSchoolJustValues!A18,0,'Cool Graph'!$I$1)","v":-24.31},null,{"$f":"IF(NewDate>EndDate,NA(),NewDate)","v":"2011-10-12"},{"$f":"IF($E18>EndDate,NA(),IF($K$2=TRUE,N18,IF('Cool Graph'!$B$17=1,N18,IF('Cool Graph'!$B$17=2,L18,IF('Cool Graph'!$B$17=3,M18,)))))","v":4.16},{"$f":"IF($E18>EndDate,NA(),IF($O$2=TRUE,J18,IF('Cool Graph'!$B$17=1,Data1!J18,IF('Cool Graph'!$B$17=2,Data1!H18,IF('Cool Graph'!$B$17=3,Data1!I18,)))))","v":576.96645079845985},{"$f":"SUM(VLOOKUP($E18,AllData,COLUMN()-COLUMN($E18)),VLOOKUP($E18-1,AllData,COLUMN()-COLUMN($E18)),VLOOKUP($E18-2,AllData,COLUMN()-COLUMN($E18)),VLOOKUP($E18-3,AllData,COLUMN()-COLUMN($E18)),VLOOKUP($E18-4,AllData,COLUMN()-COLUMN($E18)),VLOOKUP($E18-5,AllData,COLUMN()-COLUMN($E18)),VLOOKUP($E18-6,AllData,COLUMN()-COLUMN($E18)))","v":2281.1823744136027},{"$f":"SUM(VLOOKUP($E18,AllData,COLUMN()-1-COLUMN($E18)),VLOOKUP($E18-1,AllData,COLUMN()-1-COLUMN($E18)),VLOOKUP($E18-2,AllData,COLUMN()-1-COLUMN($E18)),VLOOKUP($E18-3,AllData,COLUMN()-1-COLUMN($E18)),VLOOKUP($E18-4,AllData,COLUMN()-1-COLUMN($E18)),VLOOKUP($E18-5,AllData,COLUMN()-1-COLUMN($E18)),VLOOKUP($E18-6,AllData,COLUMN()-1-COLUMN($E18)),VLOOKUP($E18-7,AllData,COLUMN()-1-COLUMN($E18)),VLOOKUP($E18-8,AllData,COLUMN()-1-COLUMN($E18)),VLOOKUP($E18-9,AllData,COLUMN()-1-COLUMN($E18)),VLOOKUP($E18-10,AllData,COLUMN()-1-COLUMN($E18)),VLOOKUP($E18-11,AllData,COLUMN()-1-COLUMN($E18)),VLOOKUP($E18-12,AllData,COLUMN()-1-COLUMN($E18)),VLOOKUP($E18-13,AllData,COLUMN()-1-COLUMN($E18)),VLOOKUP($E18-14,AllData,COLUMN()-1-COLUMN($E18)),VLOOKUP($E18-15,AllData,COLUMN()-1-COLUMN($E18)),VLOOKUP($E18-16,AllData,COLUMN()-1-COLUMN($E18)),VLOOKUP($E18-17,AllData,COLUMN()-1-COLUMN($E18)),VLOOKUP($E18-18,AllData,COLUMN()-1-COLUMN($E18)),VLOOKUP($E18-19,AllData,COLUMN()-1-COLUMN($E18)),VLOOKUP($E18-20,AllData,COLUMN()-1-COLUMN($E18)),VLOOKUP($E18-21,AllData,COLUMN()-1-COLUMN($E18)),VLOOKUP($E18-22,AllData,COLUMN()-1-COLUMN($E18)),VLOOKUP($E18-23,AllData,COLUMN()-1-COLUMN($E18)),VLOOKUP($E18-24,AllData,COLUMN()-1-COLUMN($E18)),VLOOKUP($E18-25,AllData,COLUMN()-1-COLUMN($E18)),VLOOKUP($E18-26,AllData,COLUMN()-1-COLUMN($E18)),VLOOKUP($E18-27,AllData,COLUMN()-1-COLUMN($E18)),VLOOKUP($E18-28,AllData,COLUMN()-1-COLUMN($E18)),VLOOKUP($E18-29,AllData,COLUMN()-1-COLUMN($E18)))","v":8251.8678986591804},{"$f":"VLOOKUP($E18,AllData,COLUMN()-2-COLUMN($E18))","v":576.96645079845985},{"$f":"OR('Cool Graph'!$H$1=35,'Cool Graph'!$H$1=36,'Cool Graph'!$H$1=37,'Cool Graph'!$H$1=38,'Cool Graph'!$H$1=39,'Cool Graph'!$H$1=40,'Cool Graph'!$H$1=41,'Cool Graph'!$H$1=42,'Cool Graph'!$H$1=43,'Cool Graph'!$H$1=44,'Cool Graph'!$H$1=45,'Cool Graph'!$H$1=46,'Cool Graph'!$H$1=47,'Cool Graph'!$H$1=58,'Cool Graph'!$H$1=66)","v":false},{"$f":"SUM(VLOOKUP($E18,AllData,COLUMN()-5-COLUMN($E18)),VLOOKUP($E18-1,AllData,COLUMN()-5-COLUMN($E18)),VLOOKUP($E18-2,AllData,COLUMN()-5-COLUMN($E18)),VLOOKUP($E18-3,AllData,COLUMN()-5-COLUMN($E18)),VLOOKUP($E18-4,AllData,COLUMN()-5-COLUMN($E18)),VLOOKUP($E18-5,AllData,COLUMN()-5-COLUMN($E18)),VLOOKUP($E18-6,AllData,COLUMN()-5-COLUMN($E18)))","v":689.48},{"$f":"SUM(VLOOKUP($E18,AllData,COLUMN()-6-COLUMN($E18)),VLOOKUP($E18-1,AllData,COLUMN()-6-COLUMN($E18)),VLOOKUP($E18-2,AllData,COLUMN()-6-COLUMN($E18)),VLOOKUP($E18-3,AllData,COLUMN()-6-COLUMN($E18)),VLOOKUP($E18-4,AllData,COLUMN()-6-COLUMN($E18)),VLOOKUP($E18-5,AllData,COLUMN()-6-COLUMN($E18)),VLOOKUP($E18-6,AllData,COLUMN()-6-COLUMN($E18)),VLOOKUP($E18-7,AllData,COLUMN()-6-COLUMN($E18)),VLOOKUP($E18-8,AllData,COLUMN()-6-COLUMN($E18)),VLOOKUP($E18-9,AllData,COLUMN()-6-COLUMN($E18)),VLOOKUP($E18-10,AllData,COLUMN()-6-COLUMN($E18)),VLOOKUP($E18-11,AllData,COLUMN()-6-COLUMN($E18)),VLOOKUP($E18-12,AllData,COLUMN()-6-COLUMN($E18)),VLOOKUP($E18-13,AllData,COLUMN()-6-COLUMN($E18)),VLOOKUP($E18-14,AllData,COLUMN()-6-COLUMN($E18)),VLOOKUP($E18-15,AllData,COLUMN()-6-COLUMN($E18)),VLOOKUP($E18-16,AllData,COLUMN()-6-COLUMN($E18)),VLOOKUP($E18-17,AllData,COLUMN()-6-COLUMN($E18)),VLOOKUP($E18-18,AllData,COLUMN()-6-COLUMN($E18)),VLOOKUP($E18-19,AllData,COLUMN()-6-COLUMN($E18)),VLOOKUP($E18-20,AllData,COLUMN()-6-COLUMN($E18)),VLOOKUP($E18-21,AllData,COLUMN()-6-COLUMN($E18)),VLOOKUP($E18-22,AllData,COLUMN()-6-COLUMN($E18)),VLOOKUP($E18-23,AllData,COLUMN()-6-COLUMN($E18)),VLOOKUP($E18-24,AllData,COLUMN()-6-COLUMN($E18)),VLOOKUP($E18-25,AllData,COLUMN()-6-COLUMN($E18)),VLOOKUP($E18-26,AllData,COLUMN()-6-COLUMN($E18)),VLOOKUP($E18-27,AllData,COLUMN()-6-COLUMN($E18)),VLOOKUP($E18-28,AllData,COLUMN()-6-COLUMN($E18)),VLOOKUP($E18-29,AllData,COLUMN()-6-COLUMN($E18)))","v":1399.48},{"$f":"VLOOKUP($E18,AllData,COLUMN()-7-COLUMN($E18))","v":4.16},{"$f":"OR('Cool Graph'!$I$1=35,'Cool Graph'!$I$1=36,'Cool Graph'!$I$1=37,'Cool Graph'!$I$1=38,'Cool Graph'!$I$1=39,'Cool Graph'!$I$1=40,'Cool Graph'!$I$1=41,'Cool Graph'!$I$1=42,'Cool Graph'!$I$1=43,'Cool Graph'!$I$1=44,'Cool Graph'!$I$1=45,'Cool Graph'!$I$1=46,'Cool Graph'!$I$1=47,'Cool Graph'!$I$1=58,'Cool Graph'!$I$1=66)","v":false}]
["2011-07-18",{"$f":"OFFSET(OldSchoolJustValues!A19,0,'Cool Graph'!$H$1)","v":0},{"$f":"OFFSET(OldSchoolJustValues!A19,0,'Cool Graph'!$I$1)","v":-47.516686291049098},null,{"$f":"IF(NewDate>EndDate,NA(),NewDate)","v":"2011-10-13"},{"$f":"IF($E19>EndDate,NA(),IF($K$2=TRUE,N19,IF('Cool Graph'!$B$17=1,N19,IF('Cool Graph'!$B$17=2,L19,IF('Cool Graph'!$B$17=3,M19,)))))","v":0},{"$f":"IF($E19>EndDate,NA(),IF($O$2=TRUE,J19,IF('Cool Graph'!$B$17=1,Data1!J19,IF('Cool Graph'!$B$17=2,Data1!H19,IF('Cool Graph'!$B$17=3,Data1!I19,)))))","v":-138.39999999999998},{"$f":"SUM(VLOOKUP($E19,AllData,COLUMN()-COLUMN($E19)),VLOOKUP($E19-1,AllData,COLUMN()-COLUMN($E19)),VLOOKUP($E19-2,AllData,COLUMN()-COLUMN($E19)),VLOOKUP($E19-3,AllData,COLUMN()-COLUMN($E19)),VLOOKUP($E19-4,AllData,COLUMN()-COLUMN($E19)),VLOOKUP($E19-5,AllData,COLUMN()-COLUMN($E19)),VLOOKUP($E19-6,AllData,COLUMN()-COLUMN($E19)))","v":1877.5351250067597},{"$f":"SUM(VLOOKUP($E19,AllData,COLUMN()-1-COLUMN($E19)),VLOOKUP($E19-1,AllData,COLUMN()-1-COLUMN($E19)),VLOOKUP($E19-2,AllData,COLUMN()-1-COLUMN($E19)),VLOOKUP($E19-3,AllData,COLUMN()-1-COLUMN($E19)),VLOOKUP($E19-4,AllData,COLUMN()-1-COLUMN($E19)),VLOOKUP($E19-5,AllData,COLUMN()-1-COLUMN($E19)),VLOOKUP($E19-6,AllData,COLUMN()-1-COLUMN($E19)),VLOOKUP($E19-7,AllData,COLUMN()-1-COLUMN($E19)),VLOOKUP($E19-8,AllData,COLUMN()-1-COLUMN($E19)),VLOOKUP($E19-9,AllData,COLUMN()-1-COLUMN($E19)),VLOOKUP($E19-10,AllData,COLUMN()-1-COLUMN($E19)),VLOOKUP($E19-11,AllData,COLUMN()-1-COLUMN($E19)),VLOOKUP($E19-12,AllData,COLUMN()-1-COLUMN($E19)),VLOOKUP($E19-13,AllData,COLUMN()-1-COLUMN($E19)),VLOOKUP($E19-14,AllData,COLUMN()-1-COLUMN($E19)),VLOOKUP($E19-15,AllData,COLUMN()-1-COLUMN($E19)),VLOOKUP($E19-16,AllData,COLUMN()-1-COLUMN($E19)),VLOOKUP($E19-17,AllData,COLUMN()-1-COLUMN($E19)),VLOOKUP($E19-18,AllData,COLUMN()-1-COLUMN($E19)),VLOOKUP($E19-19,AllData,COLUMN()-1-COLUMN($E19)),VLOOKUP($E19-20,AllData,COLUMN()-1-COLUMN($E19)),VLOOKUP($E19-21,AllData,COLUMN()-1-COLUMN($E19)),VLOOKUP($E19-22,AllData,COLUMN()-1-COLUMN($E19)),VLOOKUP($E19-23,AllData,COLUMN()-1-COLUMN($E19)),VLOOKUP($E19-24,AllData,COLUMN()-1-COLUMN($E19)),VLOOKUP($E19-25,AllData,COLUMN()-1-COLUMN($E19)),VLOOKUP($E19-26,AllData,COLUMN()-1-COLUMN($E19)),VLOOKUP($E19-27,AllData,COLUMN()-1-COLUMN($E19)),VLOOKUP($E19-28,AllData,COLUMN()-1-COLUMN($E19)),VLOOKUP($E19-29,AllData,COLUMN()-1-COLUMN($E19)))","v":8055.541271241279},{"$f":"VLOOKUP($E19,AllData,COLUMN()-2-COLUMN($E19))","v":-138.39999999999998},{"$f":"OR('Cool Graph'!$H$1=35,'Cool Graph'!$H$1=36,'Cool Graph'!$H$1=37,'Cool Graph'!$H$1=38,'Cool Graph'!$H$1=39,'Cool Graph'!$H$1=40,'Cool Graph'!$H$1=41,'Cool Graph'!$H$1=42,'Cool Graph'!$H$1=43,'Cool Graph'!$H$1=44,'Cool Graph'!$H$1=45,'Cool Graph'!$H$1=46,'Cool Graph'!$H$1=47,'Cool Graph'!$H$1=58,'Cool Graph'!$H$1=66)","v":false},{"$f":"SUM(VLOOKUP($E19,AllData,COLUMN()-5-COLUMN($E19)),VLOOKUP($E19-1,AllData,COLUMN()-5-COLUMN($E19)),VLOOKUP($E19-2,AllData,COLUMN()-5-COLUMN($E19)),VLOOKUP($E19-3,AllData,COLUMN()-5-COLUMN($E19)),VLOOKUP($E19-4,AllData,COLUMN()-5-COLUMN($E19)),VLOOKUP($E19-5,AllData,COLUMN()-5-COLUMN($E19)),VLOOKUP($E19-6,AllData,COLUMN()-5-COLUMN($E19)))","v":439.48},{"$f":"SUM(VLOOKUP($E19,AllData,COLUMN()-6-COLUMN($E19)),VLOOKUP($E19-1,AllData,COLUMN()-6-COLUMN($E19)),VLOOKUP($E19-2,AllData,COLUMN()-6-COLUMN($E19)),VLOOKUP($E19-3,AllData,COLUMN()-6-COLUMN($E19)),VLOOKUP($E19-4,AllData,COLUMN()-6-COLUMN($E19)),VLOOKUP($E19-5,AllData,COLUMN()-6-COLUMN($E19)),VLOOKUP($E19-6,AllData,COLUMN()-6-COLUMN($E19)),VLOOKUP($E19-7,AllData,COLUMN()-6-COLUMN($E19)),VLOOKUP($E19-8,AllData,COLUMN()-6-COLUMN($E19)),VLOOKUP($E19-9,AllData,COLUMN()-6-COLUMN($E19)),VLOOKUP($E19-10,AllData,COLUMN()-6-COLUMN($E19)),VLOOKUP($E19-11,AllData,COLUMN()-6-COLUMN($E19)),VLOOKUP($E19-12,AllData,COLUMN()-6-COLUMN($E19)),VLOOKUP($E19-13,AllData,COLUMN()-6-COLUMN($E19)),VLOOKUP($E19-14,AllData,COLUMN()-6-COLUMN($E19)),VLOOKUP($E19-15,AllData,COLUMN()-6-COLUMN($E19)),VLOOKUP($E19-16,AllData,COLUMN()-6-COLUMN($E19)),VLOOKUP($E19-17,AllData,COLUMN()-6-COLUMN($E19)),VLOOKUP($E19-18,AllData,COLUMN()-6-COLUMN($E19)),VLOOKUP($E19-19,AllData,COLUMN()-6-COLUMN($E19)),VLOOKUP($E19-20,AllData,COLUMN()-6-COLUMN($E19)),VLOOKUP($E19-21,AllData,COLUMN()-6-COLUMN($E19)),VLOOKUP($E19-22,AllData,COLUMN()-6-COLUMN($E19)),VLOOKUP($E19-23,AllData,COLUMN()-6-COLUMN($E19)),VLOOKUP($E19-24,AllData,COLUMN()-6-COLUMN($E19)),VLOOKUP($E19-25,AllData,COLUMN()-6-COLUMN($E19)),VLOOKUP($E19-26,AllData,COLUMN()-6-COLUMN($E19)),VLOOKUP($E19-27,AllData,COLUMN()-6-COLUMN($E19)),VLOOKUP($E19-28,AllData,COLUMN()-6-COLUMN($E19)),VLOOKUP($E19-29,AllData,COLUMN()-6-COLUMN($E19)))","v":1399.48},{"$f":"VLOOKUP($E19,AllData,COLUMN()-7-COLUMN($E19))","v":0},{"$f":"OR('Cool Graph'!$I$1=35,'Cool Graph'!$I$1=36,'Cool Graph'!$I$1=37,'Cool Graph'!$I$1=38,'Cool Graph'!$I$1=39,'Cool Graph'!$I$1=40,'Cool Graph'!$I$1=41,'Cool Graph'!$I$1=42,'Cool Graph'!$I$1=43,'Cool Graph'!$I$1=44,'Cool Graph'!$I$1=45,'Cool Graph'!$I$1=46,'Cool Graph'!$I$1=47,'Cool Graph'!$I$1=58,'Cool Graph'!$I$1=66)","v":false}]
["2011-07-19",{"$f":"OFFSET(OldSchoolJustValues!A20,0,'Cool Graph'!$H$1)","v":0},{"$f":"OFFSET(OldSchoolJustValues!A20,0,'Cool Graph'!$I$1)","v":139.84994112685268},null,{"$f":"IF(NewDate>EndDate,NA(),NewDate)","v":"2011-10-14"},{"$f":"IF($E20>EndDate,NA(),IF($K$2=TRUE,N20,IF('Cool Graph'!$B$17=1,N20,IF('Cool Graph'!$B$17=2,L20,IF('Cool Graph'!$B$17=3,M20,)))))","v":0},{"$f":"IF($E20>EndDate,NA(),IF($O$2=TRUE,J20,IF('Cool Graph'!$B$17=1,Data1!J20,IF('Cool Graph'!$B$17=2,Data1!H20,IF('Cool Graph'!$B$17=3,Data1!I20,)))))","v":133.41325483580357},{"$f":"SUM(VLOOKUP($E20,AllData,COLUMN()-COLUMN($E20)),VLOOKUP($E20-1,AllData,COLUMN()-COLUMN($E20)),VLOOKUP($E20-2,AllData,COLUMN()-COLUMN($E20)),VLOOKUP($E20-3,AllData,COLUMN()-COLUMN($E20)),VLOOKUP($E20-4,AllData,COLUMN()-COLUMN($E20)),VLOOKUP($E20-5,AllData,COLUMN()-COLUMN($E20)),VLOOKUP($E20-6,AllData,COLUMN()-COLUMN($E20)))","v":1213.1620467903979},{"$f":"SUM(VLOOKUP($E20,AllData,COLUMN()-1-COLUMN($E20)),VLOOKUP($E20-1,AllData,COLUMN()-1-COLUMN($E20)),VLOOKUP($E20-2,AllData,COLUMN()-1-COLUMN($E20)),VLOOKUP($E20-3,AllData,COLUMN()-1-COLUMN($E20)),VLOOKUP($E20-4,AllData,COLUMN()-1-COLUMN($E20)),VLOOKUP($E20-5,AllData,COLUMN()-1-COLUMN($E20)),VLOOKUP($E20-6,AllData,COLUMN()-1-COLUMN($E20)),VLOOKUP($E20-7,AllData,COLUMN()-1-COLUMN($E20)),VLOOKUP($E20-8,AllData,COLUMN()-1-COLUMN($E20)),VLOOKUP($E20-9,AllData,COLUMN()-1-COLUMN($E20)),VLOOKUP($E20-10,AllData,COLUMN()-1-COLUMN($E20)),VLOOKUP($E20-11,AllData,COLUMN()-1-COLUMN($E20)),VLOOKUP($E20-12,AllData,COLUMN()-1-COLUMN($E20)),VLOOKUP($E20-13,AllData,COLUMN()-1-COLUMN($E20)),VLOOKUP($E20-14,AllData,COLUMN()-1-COLUMN($E20)),VLOOKUP($E20-15,AllData,COLUMN()-1-COLUMN($E20)),VLOOKUP($E20-16,AllData,COLUMN()-1-COLUMN($E20)),VLOOKUP($E20-17,AllData,COLUMN()-1-COLUMN($E20)),VLOOKUP($E20-18,AllData,COLUMN()-1-COLUMN($E20)),VLOOKUP($E20-19,AllData,COLUMN()-1-COLUMN($E20)),VLOOKUP($E20-20,AllData,COLUMN()-1-COLUMN($E20)),VLOOKUP($E20-21,AllData,COLUMN()-1-COLUMN($E20)),VLOOKUP($E20-22,AllData,COLUMN()-1-COLUMN($E20)),VLOOKUP($E20-23,AllData,COLUMN()-1-COLUMN($E20)),VLOOKUP($E20-24,AllData,COLUMN()-1-COLUMN($E20)),VLOOKUP($E20-25,AllData,COLUMN()-1-COLUMN($E20)),VLOOKUP($E20-26,AllData,COLUMN()-1-COLUMN($E20)),VLOOKUP($E20-27,AllData,COLUMN()-1-COLUMN($E20)),VLOOKUP($E20-28,AllData,COLUMN()-1-COLUMN($E20)),VLOOKUP($E20-29,AllData,COLUMN()-1-COLUMN($E20)))","v":7920.1479575323274},{"$f":"VLOOKUP($E20,AllData,COLUMN()-2-COLUMN($E20))","v":133.41325483580357},{"$f":"OR('Cool Graph'!$H$1=35,'Cool Graph'!$H$1=36,'Cool Graph'!$H$1=37,'Cool Graph'!$H$1=38,'Cool Graph'!$H$1=39,'Cool Graph'!$H$1=40,'Cool Graph'!$H$1=41,'Cool Graph'!$H$1=42,'Cool Graph'!$H$1=43,'Cool Graph'!$H$1=44,'Cool Graph'!$H$1=45,'Cool Graph'!$H$1=46,'Cool Graph'!$H$1=47,'Cool Graph'!$H$1=58,'Cool Graph'!$H$1=66)","v":false},{"$f":"SUM(VLOOKUP($E20,AllData,COLUMN()-5-COLUMN($E20)),VLOOKUP($E20-1,AllData,COLUMN()-5-COLUMN($E20)),VLOOKUP($E20-2,AllData,COLUMN()-5-COLUMN($E20)),VLOOKUP($E20-3,AllData,COLUMN()-5-COLUMN($E20)),VLOOKUP($E20-4,AllData,COLUMN()-5-COLUMN($E20)),VLOOKUP($E20-5,AllData,COLUMN()-5-COLUMN($E20)),VLOOKUP($E20-6,AllData,COLUMN()-5-COLUMN($E20)))","v":377.32000000000005},{"$f":"SUM(VLOOKUP($E20,AllData,COLUMN()-6-COLUMN($E20)),VLOOKUP($E20-1,AllData,COLUMN()-6-COLUMN($E20)),VLOOKUP($E20-2,AllData,COLUMN()-6-COLUMN($E20)),VLOOKUP($E20-3,AllData,COLUMN()-6-COLUMN($E20)),VLOOKUP($E20-4,AllData,COLUMN()-6-COLUMN($E20)),VLOOKUP($E20-5,AllData,COLUMN()-6-COLUMN($E20)),VLOOKUP($E20-6,AllData,COLUMN()-6-COLUMN($E20)),VLOOKUP($E20-7,AllData,COLUMN()-6-COLUMN($E20)),VLOOKUP($E20-8,AllData,COLUMN()-6-COLUMN($E20)),VLOOKUP($E20-9,AllData,COLUMN()-6-COLUMN($E20)),VLOOKUP($E20-10,AllData,COLUMN()-6-COLUMN($E20)),VLOOKUP($E20-11,AllData,COLUMN()-6-COLUMN($E20)),VLOOKUP($E20-12,AllData,COLUMN()-6-COLUMN($E20)),VLOOKUP($E20-13,AllData,COLUMN()-6-COLUMN($E20)),VLOOKUP($E20-14,AllData,COLUMN()-6-COLUMN($E20)),VLOOKUP($E20-15,AllData,COLUMN()-6-COLUMN($E20)),VLOOKUP($E20-16,AllData,COLUMN()-6-COLUMN($E20)),VLOOKUP($E20-17,AllData,COLUMN()-6-COLUMN($E20)),VLOOKUP($E20-18,AllData,COLUMN()-6-COLUMN($E20)),VLOOKUP($E20-19,AllData,COLUMN()-6-COLUMN($E20)),VLOOKUP($E20-20,AllData,COLUMN()-6-COLUMN($E20)),VLOOKUP($E20-21,AllData,COLUMN()-6-COLUMN($E20)),VLOOKUP($E20-22,AllData,COLUMN()-6-COLUMN($E20)),VLOOKUP($E20-23,AllData,COLUMN()-6-COLUMN($E20)),VLOOKUP($E20-24,AllData,COLUMN()-6-COLUMN($E20)),VLOOKUP($E20-25,AllData,COLUMN()-6-COLUMN($E20)),VLOOKUP($E20-26,AllData,COLUMN()-6-COLUMN($E20)),VLOOKUP($E20-27,AllData,COLUMN()-6-COLUMN($E20)),VLOOKUP($E20-28,AllData,COLUMN()-6-COLUMN($E20)),VLOOKUP($E20-29,AllData,COLUMN()-6-COLUMN($E20)))","v":1399.48},{"$f":"VLOOKUP($E20,AllData,COLUMN()-7-COLUMN($E20))","v":0},{"$f":"OR('Cool Graph'!$I$1=35,'Cool Graph'!$I$1=36,'Cool Graph'!$I$1=37,'Cool Graph'!$I$1=38,'Cool Graph'!$I$1=39,'Cool Graph'!$I$1=40,'Cool Graph'!$I$1=41,'Cool Graph'!$I$1=42,'Cool Graph'!$I$1=43,'Cool Graph'!$I$1=44,'Cool Graph'!$I$1=45,'Cool Graph'!$I$1=46,'Cool Graph'!$I$1=47,'Cool Graph'!$I$1=58,'Cool Graph'!$I$1=66)","v":false}]
["2011-07-20",{"$f":"OFFSET(OldSchoolJustValues!A21,0,'Cool Graph'!$H$1)","v":0},{"$f":"OFFSET(OldSchoolJustValues!A21,0,'Cool Graph'!$I$1)","v":-63.08},null,{"$f":"IF(NewDate>EndDate,NA(),NewDate)","v":"2011-10-15"},{"$f":"IF($E21>EndDate,NA(),IF($K$2=TRUE,N21,IF('Cool Graph'!$B$17=1,N21,IF('Cool Graph'!$B$17=2,L21,IF('Cool Graph'!$B$17=3,M21,)))))","v":0},{"$f":"IF($E21>EndDate,NA(),IF($O$2=TRUE,J21,IF('Cool Graph'!$B$17=1,Data1!J21,IF('Cool Graph'!$B$17=2,Data1!H21,IF('Cool Graph'!$B$17=3,Data1!I21,)))))","v":280.76281214131296},{"$f":"SUM(VLOOKUP($E21,AllData,COLUMN()-COLUMN($E21)),VLOOKUP($E21-1,AllData,COLUMN()-COLUMN($E21)),VLOOKUP($E21-2,AllData,COLUMN()-COLUMN($E21)),VLOOKUP($E21-3,AllData,COLUMN()-COLUMN($E21)),VLOOKUP($E21-4,AllData,COLUMN()-COLUMN($E21)),VLOOKUP($E21-5,AllData,COLUMN()-COLUMN($E21)),VLOOKUP($E21-6,AllData,COLUMN()-COLUMN($E21)))","v":1520.0416040959071},{"$f":"SUM(VLOOKUP($E21,AllData,COLUMN()-1-COLUMN($E21)),VLOOKUP($E21-1,AllData,COLUMN()-1-COLUMN($E21)),VLOOKUP($E21-2,AllData,COLUMN()-1-COLUMN($E21)),VLOOKUP($E21-3,AllData,COLUMN()-1-COLUMN($E21)),VLOOKUP($E21-4,AllData,COLUMN()-1-COLUMN($E21)),VLOOKUP($E21-5,AllData,COLUMN()-1-COLUMN($E21)),VLOOKUP($E21-6,AllData,COLUMN()-1-COLUMN($E21)),VLOOKUP($E21-7,AllData,COLUMN()-1-COLUMN($E21)),VLOOKUP($E21-8,AllData,COLUMN()-1-COLUMN($E21)),VLOOKUP($E21-9,AllData,COLUMN()-1-COLUMN($E21)),VLOOKUP($E21-10,AllData,COLUMN()-1-COLUMN($E21)),VLOOKUP($E21-11,AllData,COLUMN()-1-COLUMN($E21)),VLOOKUP($E21-12,AllData,COLUMN()-1-COLUMN($E21)),VLOOKUP($E21-13,AllData,COLUMN()-1-COLUMN($E21)),VLOOKUP($E21-14,AllData,COLUMN()-1-COLUMN($E21)),VLOOKUP($E21-15,AllData,COLUMN()-1-COLUMN($E21)),VLOOKUP($E21-16,AllData,COLUMN()-1-COLUMN($E21)),VLOOKUP($E21-17,AllData,COLUMN()-1-COLUMN($E21)),VLOOKUP($E21-18,AllData,COLUMN()-1-COLUMN($E21)),VLOOKUP($E21-19,AllData,COLUMN()-1-COLUMN($E21)),VLOOKUP($E21-20,AllData,COLUMN()-1-COLUMN($E21)),VLOOKUP($E21-21,AllData,COLUMN()-1-COLUMN($E21)),VLOOKUP($E21-22,AllData,COLUMN()-1-COLUMN($E21)),VLOOKUP($E21-23,AllData,COLUMN()-1-COLUMN($E21)),VLOOKUP($E21-24,AllData,COLUMN()-1-COLUMN($E21)),VLOOKUP($E21-25,AllData,COLUMN()-1-COLUMN($E21)),VLOOKUP($E21-26,AllData,COLUMN()-1-COLUMN($E21)),VLOOKUP($E21-27,AllData,COLUMN()-1-COLUMN($E21)),VLOOKUP($E21-28,AllData,COLUMN()-1-COLUMN($E21)),VLOOKUP($E21-29,AllData,COLUMN()-1-COLUMN($E21)))","v":8064.6108285467881},{"$f":"VLOOKUP($E21,AllData,COLUMN()-2-COLUMN($E21))","v":280.76281214131296},{"$f":"OR('Cool Graph'!$H$1=35,'Cool Graph'!$H$1=36,'Cool Graph'!$H$1=37,'Cool Graph'!$H$1=38,'Cool Graph'!$H$1=39,'Cool Graph'!$H$1=40,'Cool Graph'!$H$1=41,'Cool Graph'!$H$1=42,'Cool Graph'!$H$1=43,'Cool Graph'!$H$1=44,'Cool Graph'!$H$1=45,'Cool Graph'!$H$1=46,'Cool Graph'!$H$1=47,'Cool Graph'!$H$1=58,'Cool Graph'!$H$1=66)","v":false},{"$f":"SUM(VLOOKUP($E21,AllData,COLUMN()-5-COLUMN($E21)),VLOOKUP($E21-1,AllData,COLUMN()-5-COLUMN($E21)),VLOOKUP($E21-2,AllData,COLUMN()-5-COLUMN($E21)),VLOOKUP($E21-3,AllData,COLUMN()-5-COLUMN($E21)),VLOOKUP($E21-4,AllData,COLUMN()-5-COLUMN($E21)),VLOOKUP($E21-5,AllData,COLUMN()-5-COLUMN($E21)),VLOOKUP($E21-6,AllData,COLUMN()-5-COLUMN($E21)))","v":359.6},{"$f":"SUM(VLOOKUP($E21,AllData,COLUMN()-6-COLUMN($E21)),VLOOKUP($E21-1,AllData,COLUMN()-6-COLUMN($E21)),VLOOKUP($E21-2,AllData,COLUMN()-6-COLUMN($E21)),VLOOKUP($E21-3,AllData,COLUMN()-6-COLUMN($E21)),VLOOKUP($E21-4,AllData,COLUMN()-6-COLUMN($E21)),VLOOKUP($E21-5,AllData,COLUMN()-6-COLUMN($E21)),VLOOKUP($E21-6,AllData,COLUMN()-6-COLUMN($E21)),VLOOKUP($E21-7,AllData,COLUMN()-6-COLUMN($E21)),VLOOKUP($E21-8,AllData,COLUMN()-6-COLUMN($E21)),VLOOKUP($E21-9,AllData,COLUMN()-6-COLUMN($E21)),VLOOKUP($E21-10,AllData,COLUMN()-6-COLUMN($E21)),VLOOKUP($E21-11,AllData,COLUMN()-6-COLUMN($E21)),VLOOKUP($E21-12,AllData,COLUMN()-6-COLUMN($E21)),VLOOKUP($E21-13,AllData,COLUMN()-6-COLUMN($E21)),VLOOKUP($E21-14,AllData,COLUMN()-6-COLUMN($E21)),VLOOKUP($E21-15,AllData,COLUMN()-6-COLUMN($E21)),VLOOKUP($E21-16,AllData,COLUMN()-6-COLUMN($E21)),VLOOKUP($E21-17,AllData,COLUMN()-6-COLUMN($E21)),VLOOKUP($E21-18,AllData,COLUMN()-6-COLUMN($E21)),VLOOKUP($E21-19,AllData,COLUMN()-6-COLUMN($E21)),VLOOKUP($E21-20,AllData,COLUMN()-6-COLUMN($E21)),VLOOKUP($E21-21,AllData,COLUMN()-6-COLUMN($E21)),VLOOKUP($E21-22,AllData,COLUMN()-6-COLUMN($E21)),VLOOKUP($E21-23,AllData,COLUMN()-6-COLUMN($E21)),VLOOKUP($E21-24,AllData,COLUMN()-6-COLUMN($E21)),VLOOKUP($E21-25,AllData,COLUMN()-6-COLUMN($E21)),VLOOKUP($E21-26,AllData,COLUMN()-6-COLUMN($E21)),VLOOKUP($E21-27,AllData,COLUMN()-6-COLUMN($E21)),VLOOKUP($E21-28,AllData,COLUMN()-6-COLUMN($E21)),VLOOKUP($E21-29,AllData,COLUMN()-6-COLUMN($E21)))","v":1399.48},{"$f":"VLOOKUP($E21,AllData,COLUMN()-7-COLUMN($E21))","v":0},{"$f":"OR('Cool Graph'!$I$1=35,'Cool Graph'!$I$1=36,'Cool Graph'!$I$1=37,'Cool Graph'!$I$1=38,'Cool Graph'!$I$1=39,'Cool Graph'!$I$1=40,'Cool Graph'!$I$1=41,'Cool Graph'!$I$1=42,'Cool Graph'!$I$1=43,'Cool Graph'!$I$1=44,'Cool Graph'!$I$1=45,'Cool Graph'!$I$1=46,'Cool Graph'!$I$1=47,'Cool Graph'!$I$1=58,'Cool Graph'!$I$1=66)","v":false}]
["2011-07-21",{"$f":"OFFSET(OldSchoolJustValues!A22,0,'Cool Graph'!$H$1)","v":0},{"$f":"OFFSET(OldSchoolJustValues!A22,0,'Cool Graph'!$I$1)","v":-44.32},null,{"$f":"IF(NewDate>EndDate,NA(),NewDate)","v":"2011-10-16"},{"$f":"IF($E22>EndDate,NA(),IF($K$2=TRUE,N22,IF('Cool Graph'!$B$17=1,N22,IF('Cool Graph'!$B$17=2,L22,IF('Cool Graph'!$B$17=3,M22,)))))","v":0},{"$f":"IF($E22>EndDate,NA(),IF($O$2=TRUE,J22,IF('Cool Graph'!$B$17=1,Data1!J22,IF('Cool Graph'!$B$17=2,Data1!H22,IF('Cool Graph'!$B$17=3,Data1!I22,)))))","v":246.01988225370539},{"$f":"SUM(VLOOKUP($E22,AllData,COLUMN()-COLUMN($E22)),VLOOKUP($E22-1,AllData,COLUMN()-COLUMN($E22)),VLOOKUP($E22-2,AllData,COLUMN()-COLUMN($E22)),VLOOKUP($E22-3,AllData,COLUMN()-COLUMN($E22)),VLOOKUP($E22-4,AllData,COLUMN()-COLUMN($E22)),VLOOKUP($E22-5,AllData,COLUMN()-COLUMN($E22)),VLOOKUP($E22-6,AllData,COLUMN()-COLUMN($E22)))","v":1442.8087330814469},{"$f":"SUM(VLOOKUP($E22,AllData,COLUMN()-1-COLUMN($E22)),VLOOKUP($E22-1,AllData,COLUMN()-1-COLUMN($E22)),VLOOKUP($E22-2,AllData,COLUMN()-1-COLUMN($E22)),VLOOKUP($E22-3,AllData,COLUMN()-1-COLUMN($E22)),VLOOKUP($E22-4,AllData,COLUMN()-1-COLUMN($E22)),VLOOKUP($E22-5,AllData,COLUMN()-1-COLUMN($E22)),VLOOKUP($E22-6,AllData,COLUMN()-1-COLUMN($E22)),VLOOKUP($E22-7,AllData,COLUMN()-1-COLUMN($E22)),VLOOKUP($E22-8,AllData,COLUMN()-1-COLUMN($E22)),VLOOKUP($E22-9,AllData,COLUMN()-1-COLUMN($E22)),VLOOKUP($E22-10,AllData,COLUMN()-1-COLUMN($E22)),VLOOKUP($E22-11,AllData,COLUMN()-1-COLUMN($E22)),VLOOKUP($E22-12,AllData,COLUMN()-1-COLUMN($E22)),VLOOKUP($E22-13,AllData,COLUMN()-1-COLUMN($E22)),VLOOKUP($E22-14,AllData,COLUMN()-1-COLUMN($E22)),VLOOKUP($E22-15,AllData,COLUMN()-1-COLUMN($E22)),VLOOKUP($E22-16,AllData,COLUMN()-1-COLUMN($E22)),VLOOKUP($E22-17,AllData,COLUMN()-1-COLUMN($E22)),VLOOKUP($E22-18,AllData,COLUMN()-1-COLUMN($E22)),VLOOKUP($E22-19,AllData,COLUMN()-1-COLUMN($E22)),VLOOKUP($E22-20,AllData,COLUMN()-1-COLUMN($E22)),VLOOKUP($E22-21,AllData,COLUMN()-1-COLUMN($E22)),VLOOKUP($E22-22,AllData,COLUMN()-1-COLUMN($E22)),VLOOKUP($E22-23,AllData,COLUMN()-1-COLUMN($E22)),VLOOKUP($E22-24,AllData,COLUMN()-1-COLUMN($E22)),VLOOKUP($E22-25,AllData,COLUMN()-1-COLUMN($E22)),VLOOKUP($E22-26,AllData,COLUMN()-1-COLUMN($E22)),VLOOKUP($E22-27,AllData,COLUMN()-1-COLUMN($E22)),VLOOKUP($E22-28,AllData,COLUMN()-1-COLUMN($E22)),VLOOKUP($E22-29,AllData,COLUMN()-1-COLUMN($E22)))","v":7990.2208285467877},{"$f":"VLOOKUP($E22,AllData,COLUMN()-2-COLUMN($E22))","v":246.01988225370539},{"$f":"OR('Cool Graph'!$H$1=35,'Cool Graph'!$H$1=36,'Cool Graph'!$H$1=37,'Cool Graph'!$H$1=38,'Cool Graph'!$H$1=39,'Cool Graph'!$H$1=40,'Cool Graph'!$H$1=41,'Cool Graph'!$H$1=42,'Cool Graph'!$H$1=43,'Cool Graph'!$H$1=44,'Cool Graph'!$H$1=45,'Cool Graph'!$H$1=46,'Cool Graph'!$H$1=47,'Cool Graph'!$H$1=58,'Cool Graph'!$H$1=66)","v":false},{"$f":"SUM(VLOOKUP($E22,AllData,COLUMN()-5-COLUMN($E22)),VLOOKUP($E22-1,AllData,COLUMN()-5-COLUMN($E22)),VLOOKUP($E22-2,AllData,COLUMN()-5-COLUMN($E22)),VLOOKUP($E22-3,AllData,COLUMN()-5-COLUMN($E22)),VLOOKUP($E22-4,AllData,COLUMN()-5-COLUMN($E22)),VLOOKUP($E22-5,AllData,COLUMN()-5-COLUMN($E22)),VLOOKUP($E22-6,AllData,COLUMN()-5-COLUMN($E22)))","v":322.73},{"$f":"SUM(VLOOKUP($E22,AllData,COLUMN()-6-COLUMN($E22)),VLOOKUP($E22-1,AllData,COLUMN()-6-COLUMN($E22)),VLOOKUP($E22-2,AllData,COLUMN()-6-COLUMN($E22)),VLOOKUP($E22-3,AllData,COLUMN()-6-COLUMN($E22)),VLOOKUP($E22-4,AllData,COLUMN()-6-COLUMN($E22)),VLOOKUP($E22-5,AllData,COLUMN()-6-COLUMN($E22)),VLOOKUP($E22-6,AllData,COLUMN()-6-COLUMN($E22)),VLOOKUP($E22-7,AllData,COLUMN()-6-COLUMN($E22)),VLOOKUP($E22-8,AllData,COLUMN()-6-COLUMN($E22)),VLOOKUP($E22-9,AllData,COLUMN()-6-COLUMN($E22)),VLOOKUP($E22-10,AllData,COLUMN()-6-COLUMN($E22)),VLOOKUP($E22-11,AllData,COLUMN()-6-COLUMN($E22)),VLOOKUP($E22-12,AllData,COLUMN()-6-COLUMN($E22)),VLOOKUP($E22-13,AllData,COLUMN()-6-COLUMN($E22)),VLOOKUP($E22-14,AllData,COLUMN()-6-COLUMN($E22)),VLOOKUP($E22-15,AllData,COLUMN()-6-COLUMN($E22)),VLOOKUP($E22-16,AllData,COLUMN()-6-COLUMN($E22)),VLOOKUP($E22-17,AllData,COLUMN()-6-COLUMN($E22)),VLOOKUP($E22-18,AllData,COLUMN()-6-COLUMN($E22)),VLOOKUP($E22-19,AllData,COLUMN()-6-COLUMN($E22)),VLOOKUP($E22-20,AllData,COLUMN()-6-COLUMN($E22)),VLOOKUP($E22-21,AllData,COLUMN()-6-COLUMN($E22)),VLOOKUP($E22-22,AllData,COLUMN()-6-COLUMN($E22)),VLOOKUP($E22-23,AllData,COLUMN()-6-COLUMN($E22)),VLOOKUP($E22-24,AllData,COLUMN()-6-COLUMN($E22)),VLOOKUP($E22-25,AllData,COLUMN()-6-COLUMN($E22)),VLOOKUP($E22-26,AllData,COLUMN()-6-COLUMN($E22)),VLOOKUP($E22-27,AllData,COLUMN()-6-COLUMN($E22)),VLOOKUP($E22-28,AllData,COLUMN()-6-COLUMN($E22)),VLOOKUP($E22-29,AllData,COLUMN()-6-COLUMN($E22)))","v":1399.48},{"$f":"VLOOKUP($E22,AllData,COLUMN()-7-COLUMN($E22))","v":0},{"$f":"OR('Cool Graph'!$I$1=35,'Cool Graph'!$I$1=36,'Cool Graph'!$I$1=37,'Cool Graph'!$I$1=38,'Cool Graph'!$I$1=39,'Cool Graph'!$I$1=40,'Cool Graph'!$I$1=41,'Cool Graph'!$I$1=42,'Cool Graph'!$I$1=43,'Cool Graph'!$I$1=44,'Cool Graph'!$I$1=45,'Cool Graph'!$I$1=46,'Cool Graph'!$I$1=47,'Cool Graph'!$I$1=58,'Cool Graph'!$I$1=66)","v":false}]
["2011-07-22",{"$f":"OFFSET(OldSchoolJustValues!A23,0,'Cool Graph'!$H$1)","v":0},{"$f":"OFFSET(OldSchoolJustValues!A23,0,'Cool Graph'!$I$1)","v":130.65994112685269},null,{"$f":"IF(NewDate>EndDate,NA(),NewDate)","v":"2011-10-17"},{"$f":"IF($E23>EndDate,NA(),IF($K$2=TRUE,N23,IF('Cool Graph'!$B$17=1,N23,IF('Cool Graph'!$B$17=2,L23,IF('Cool Graph'!$B$17=3,M23,)))))","v":0},{"$f":"IF($E23>EndDate,NA(),IF($O$2=TRUE,J23,IF('Cool Graph'!$B$17=1,Data1!J23,IF('Cool Graph'!$B$17=2,Data1!H23,IF('Cool Graph'!$B$17=3,Data1!I23,)))))","v":304.94319596265626},{"$f":"SUM(VLOOKUP($E23,AllData,COLUMN()-COLUMN($E23)),VLOOKUP($E23-1,AllData,COLUMN()-COLUMN($E23)),VLOOKUP($E23-2,AllData,COLUMN()-COLUMN($E23)),VLOOKUP($E23-3,AllData,COLUMN()-COLUMN($E23)),VLOOKUP($E23-4,AllData,COLUMN()-COLUMN($E23)),VLOOKUP($E23-5,AllData,COLUMN()-COLUMN($E23)),VLOOKUP($E23-6,AllData,COLUMN()-COLUMN($E23)))","v":1518.5354782456434},{"$f":"SUM(VLOOKUP($E23,AllData,COLUMN()-1-COLUMN($E23)),VLOOKUP($E23-1,AllData,COLUMN()-1-COLUMN($E23)),VLOOKUP($E23-2,AllData,COLUMN()-1-COLUMN($E23)),VLOOKUP($E23-3,AllData,COLUMN()-1-COLUMN($E23)),VLOOKUP($E23-4,AllData,COLUMN()-1-COLUMN($E23)),VLOOKUP($E23-5,AllData,COLUMN()-1-COLUMN($E23)),VLOOKUP($E23-6,AllData,COLUMN()-1-COLUMN($E23)),VLOOKUP($E23-7,AllData,COLUMN()-1-COLUMN($E23)),VLOOKUP($E23-8,AllData,COLUMN()-1-COLUMN($E23)),VLOOKUP($E23-9,AllData,COLUMN()-1-COLUMN($E23)),VLOOKUP($E23-10,AllData,COLUMN()-1-COLUMN($E23)),VLOOKUP($E23-11,AllData,COLUMN()-1-COLUMN($E23)),VLOOKUP($E23-12,AllData,COLUMN()-1-COLUMN($E23)),VLOOKUP($E23-13,AllData,COLUMN()-1-COLUMN($E23)),VLOOKUP($E23-14,AllData,COLUMN()-1-COLUMN($E23)),VLOOKUP($E23-15,AllData,COLUMN()-1-COLUMN($E23)),VLOOKUP($E23-16,AllData,COLUMN()-1-COLUMN($E23)),VLOOKUP($E23-17,AllData,COLUMN()-1-COLUMN($E23)),VLOOKUP($E23-18,AllData,COLUMN()-1-COLUMN($E23)),VLOOKUP($E23-19,AllData,COLUMN()-1-COLUMN($E23)),VLOOKUP($E23-20,AllData,COLUMN()-1-COLUMN($E23)),VLOOKUP($E23-21,AllData,COLUMN()-1-COLUMN($E23)),VLOOKUP($E23-22,AllData,COLUMN()-1-COLUMN($E23)),VLOOKUP($E23-23,AllData,COLUMN()-1-COLUMN($E23)),VLOOKUP($E23-24,AllData,COLUMN()-1-COLUMN($E23)),VLOOKUP($E23-25,AllData,COLUMN()-1-COLUMN($E23)),VLOOKUP($E23-26,AllData,COLUMN()-1-COLUMN($E23)),VLOOKUP($E23-27,AllData,COLUMN()-1-COLUMN($E23)),VLOOKUP($E23-28,AllData,COLUMN()-1-COLUMN($E23)),VLOOKUP($E23-29,AllData,COLUMN()-1-COLUMN($E23)))","v":8234.4873970915414},{"$f":"VLOOKUP($E23,AllData,COLUMN()-2-COLUMN($E23))","v":304.94319596265626},{"$f":"OR('Cool Graph'!$H$1=35,'Cool Graph'!$H$1=36,'Cool Graph'!$H$1=37,'Cool Graph'!$H$1=38,'Cool Graph'!$H$1=39,'Cool Graph'!$H$1=40,'Cool Graph'!$H$1=41,'Cool Graph'!$H$1=42,'Cool Graph'!$H$1=43,'Cool Graph'!$H$1=44,'Cool Graph'!$H$1=45,'Cool Graph'!$H$1=46,'Cool Graph'!$H$1=47,'Cool Graph'!$H$1=58,'Cool Graph'!$H$1=66)","v":false},{"$f":"SUM(VLOOKUP($E23,AllData,COLUMN()-5-COLUMN($E23)),VLOOKUP($E23-1,AllData,COLUMN()-5-COLUMN($E23)),VLOOKUP($E23-2,AllData,COLUMN()-5-COLUMN($E23)),VLOOKUP($E23-3,AllData,COLUMN()-5-COLUMN($E23)),VLOOKUP($E23-4,AllData,COLUMN()-5-COLUMN($E23)),VLOOKUP($E23-5,AllData,COLUMN()-5-COLUMN($E23)),VLOOKUP($E23-6,AllData,COLUMN()-5-COLUMN($E23)))","v":77.69},{"$f":"SUM(VLOOKUP($E23,AllData,COLUMN()-6-COLUMN($E23)),VLOOKUP($E23-1,AllData,COLUMN()-6-COLUMN($E23)),VLOOKUP($E23-2,AllData,COLUMN()-6-COLUMN($E23)),VLOOKUP($E23-3,AllData,COLUMN()-6-COLUMN($E23)),VLOOKUP($E23-4,AllData,COLUMN()-6-COLUMN($E23)),VLOOKUP($E23-5,AllData,COLUMN()-6-COLUMN($E23)),VLOOKUP($E23-6,AllData,COLUMN()-6-COLUMN($E23)),VLOOKUP($E23-7,AllData,COLUMN()-6-COLUMN($E23)),VLOOKUP($E23-8,AllData,COLUMN()-6-COLUMN($E23)),VLOOKUP($E23-9,AllData,COLUMN()-6-COLUMN($E23)),VLOOKUP($E23-10,AllData,COLUMN()-6-COLUMN($E23)),VLOOKUP($E23-11,AllData,COLUMN()-6-COLUMN($E23)),VLOOKUP($E23-12,AllData,COLUMN()-6-COLUMN($E23)),VLOOKUP($E23-13,AllData,COLUMN()-6-COLUMN($E23)),VLOOKUP($E23-14,AllData,COLUMN()-6-COLUMN($E23)),VLOOKUP($E23-15,AllData,COLUMN()-6-COLUMN($E23)),VLOOKUP($E23-16,AllData,COLUMN()-6-COLUMN($E23)),VLOOKUP($E23-17,AllData,COLUMN()-6-COLUMN($E23)),VLOOKUP($E23-18,AllData,COLUMN()-6-COLUMN($E23)),VLOOKUP($E23-19,AllData,COLUMN()-6-COLUMN($E23)),VLOOKUP($E23-20,AllData,COLUMN()-6-COLUMN($E23)),VLOOKUP($E23-21,AllData,COLUMN()-6-COLUMN($E23)),VLOOKUP($E23-22,AllData,COLUMN()-6-COLUMN($E23)),VLOOKUP($E23-23,AllData,COLUMN()-6-COLUMN($E23)),VLOOKUP($E23-24,AllData,COLUMN()-6-COLUMN($E23)),VLOOKUP($E23-25,AllData,COLUMN()-6-COLUMN($E23)),VLOOKUP($E23-26,AllData,COLUMN()-6-COLUMN($E23)),VLOOKUP($E23-27,AllData,COLUMN()-6-COLUMN($E23)),VLOOKUP($E23-28,AllData,COLUMN()-6-COLUMN($E23)),VLOOKUP($E23-29,AllData,COLUMN()-6-COLUMN($E23)))","v":1399.48},{"$f":"VLOOKUP($E23,AllData,COLUMN()-7-COLUMN($E23))","v":0},{"$f":"OR('Cool Graph'!$I$1=35,'Cool Graph'!$I$1=36,'Cool Graph'!$I$1=37,'Cool Graph'!$I$1=38,'Cool Graph'!$I$1=39,'Cool Graph'!$I$1=40,'Cool Graph'!$I$1=41,'Cool Graph'!$I$1=42,'Cool Graph'!$I$1=43,'Cool Graph'!$I$1=44,'Cool Graph'!$I$1=45,'Cool Graph'!$I$1=46,'Cool Graph'!$I$1=47,'Cool Graph'!$I$1=58,'Cool Graph'!$I$1=66)","v":false}]
["2011-07-23",{"$f":"OFFSET(OldSchoolJustValues!A24,0,'Cool Graph'!$H$1)","v":0},{"$f":"OFFSET(OldSchoolJustValues!A24,0,'Cool Graph'!$I$1)","v":-51.29},null,{"$f":"IF(NewDate>EndDate,NA(),NewDate)","v":"2011-10-18"},{"$f":"IF($E24>EndDate,NA(),IF($K$2=TRUE,N24,IF('Cool Graph'!$B$17=1,N24,IF('Cool Graph'!$B$17=2,L24,IF('Cool Graph'!$B$17=3,M24,)))))","v":0},{"$f":"IF($E24>EndDate,NA(),IF($O$2=TRUE,J24,IF('Cool Graph'!$B$17=1,Data1!J24,IF('Cool Graph'!$B$17=2,Data1!H24,IF('Cool Graph'!$B$17=3,Data1!I24,)))))","v":517.2593806860674},{"$f":"SUM(VLOOKUP($E24,AllData,COLUMN()-COLUMN($E24)),VLOOKUP($E24-1,AllData,COLUMN()-COLUMN($E24)),VLOOKUP($E24-2,AllData,COLUMN()-COLUMN($E24)),VLOOKUP($E24-3,AllData,COLUMN()-COLUMN($E24)),VLOOKUP($E24-4,AllData,COLUMN()-COLUMN($E24)),VLOOKUP($E24-5,AllData,COLUMN()-COLUMN($E24)),VLOOKUP($E24-6,AllData,COLUMN()-COLUMN($E24)))","v":1920.9649766780053},{"$f":"SUM(VLOOKUP($E24,AllData,COLUMN()-1-COLUMN($E24)),VLOOKUP($E24-1,AllData,COLUMN()-1-COLUMN($E24)),VLOOKUP($E24-2,AllData,COLUMN()-1-COLUMN($E24)),VLOOKUP($E24-3,AllData,COLUMN()-1-COLUMN($E24)),VLOOKUP($E24-4,AllData,COLUMN()-1-COLUMN($E24)),VLOOKUP($E24-5,AllData,COLUMN()-1-COLUMN($E24)),VLOOKUP($E24-6,AllData,COLUMN()-1-COLUMN($E24)),VLOOKUP($E24-7,AllData,COLUMN()-1-COLUMN($E24)),VLOOKUP($E24-8,AllData,COLUMN()-1-COLUMN($E24)),VLOOKUP($E24-9,AllData,COLUMN()-1-COLUMN($E24)),VLOOKUP($E24-10,AllData,COLUMN()-1-COLUMN($E24)),VLOOKUP($E24-11,AllData,COLUMN()-1-COLUMN($E24)),VLOOKUP($E24-12,AllData,COLUMN()-1-COLUMN($E24)),VLOOKUP($E24-13,AllData,COLUMN()-1-COLUMN($E24)),VLOOKUP($E24-14,AllData,COLUMN()-1-COLUMN($E24)),VLOOKUP($E24-15,AllData,COLUMN()-1-COLUMN($E24)),VLOOKUP($E24-16,AllData,COLUMN()-1-COLUMN($E24)),VLOOKUP($E24-17,AllData,COLUMN()-1-COLUMN($E24)),VLOOKUP($E24-18,AllData,COLUMN()-1-COLUMN($E24)),VLOOKUP($E24-19,AllData,COLUMN()-1-COLUMN($E24)),VLOOKUP($E24-20,AllData,COLUMN()-1-COLUMN($E24)),VLOOKUP($E24-21,AllData,COLUMN()-1-COLUMN($E24)),VLOOKUP($E24-22,AllData,COLUMN()-1-COLUMN($E24)),VLOOKUP($E24-23,AllData,COLUMN()-1-COLUMN($E24)),VLOOKUP($E24-24,AllData,COLUMN()-1-COLUMN($E24)),VLOOKUP($E24-25,AllData,COLUMN()-1-COLUMN($E24)),VLOOKUP($E24-26,AllData,COLUMN()-1-COLUMN($E24)),VLOOKUP($E24-27,AllData,COLUMN()-1-COLUMN($E24)),VLOOKUP($E24-28,AllData,COLUMN()-1-COLUMN($E24)),VLOOKUP($E24-29,AllData,COLUMN()-1-COLUMN($E24)))","v":8426.4468955239045},{"$f":"VLOOKUP($E24,AllData,COLUMN()-2-COLUMN($E24))","v":517.2593806860674},{"$f":"OR('Cool Graph'!$H$1=35,'Cool Graph'!$H$1=36,'Cool Graph'!$H$1=37,'Cool Graph'!$H$1=38,'Cool Graph'!$H$1=39,'Cool Graph'!$H$1=40,'Cool Graph'!$H$1=41,'Cool Graph'!$H$1=42,'Cool Graph'!$H$1=43,'Cool Graph'!$H$1=44,'Cool Graph'!$H$1=45,'Cool Graph'!$H$1=46,'Cool Graph'!$H$1=47,'Cool Graph'!$H$1=58,'Cool Graph'!$H$1=66)","v":false},{"$f":"SUM(VLOOKUP($E24,AllData,COLUMN()-5-COLUMN($E24)),VLOOKUP($E24-1,AllData,COLUMN()-5-COLUMN($E24)),VLOOKUP($E24-2,AllData,COLUMN()-5-COLUMN($E24)),VLOOKUP($E24-3,AllData,COLUMN()-5-COLUMN($E24)),VLOOKUP($E24-4,AllData,COLUMN()-5-COLUMN($E24)),VLOOKUP($E24-5,AllData,COLUMN()-5-COLUMN($E24)),VLOOKUP($E24-6,AllData,COLUMN()-5-COLUMN($E24)))","v":4.16},{"$f":"SUM(VLOOKUP($E24,AllData,COLUMN()-6-COLUMN($E24)),VLOOKUP($E24-1,AllData,COLUMN()-6-COLUMN($E24)),VLOOKUP($E24-2,AllData,COLUMN()-6-COLUMN($E24)),VLOOKUP($E24-3,AllData,COLUMN()-6-COLUMN($E24)),VLOOKUP($E24-4,AllData,COLUMN()-6-COLUMN($E24)),VLOOKUP($E24-5,AllData,COLUMN()-6-COLUMN($E24)),VLOOKUP($E24-6,AllData,COLUMN()-6-COLUMN($E24)),VLOOKUP($E24-7,AllData,COLUMN()-6-COLUMN($E24)),VLOOKUP($E24-8,AllData,COLUMN()-6-COLUMN($E24)),VLOOKUP($E24-9,AllData,COLUMN()-6-COLUMN($E24)),VLOOKUP($E24-10,AllData,COLUMN()-6-COLUMN($E24)),VLOOKUP($E24-11,AllData,COLUMN()-6-COLUMN($E24)),VLOOKUP($E24-12,AllData,COLUMN()-6-COLUMN($E24)),VLOOKUP($E24-13,AllData,COLUMN()-6-COLUMN($E24)),VLOOKUP($E24-14,AllData,COLUMN()-6-COLUMN($E24)),VLOOKUP($E24-15,AllData,COLUMN()-6-COLUMN($E24)),VLOOKUP($E24-16,AllData,COLUMN()-6-COLUMN($E24)),VLOOKUP($E24-17,AllData,COLUMN()-6-COLUMN($E24)),VLOOKUP($E24-18,AllData,COLUMN()-6-COLUMN($E24)),VLOOKUP($E24-19,AllData,COLUMN()-6-COLUMN($E24)),VLOOKUP($E24-20,AllData,COLUMN()-6-COLUMN($E24)),VLOOKUP($E24-21,AllData,COLUMN()-6-COLUMN($E24)),VLOOKUP($E24-22,AllData,COLUMN()-6-COLUMN($E24)),VLOOKUP($E24-23,AllData,COLUMN()-6-COLUMN($E24)),VLOOKUP($E24-24,AllData,COLUMN()-6-COLUMN($E24)),VLOOKUP($E24-25,AllData,COLUMN()-6-COLUMN($E24)),VLOOKUP($E24-26,AllData,COLUMN()-6-COLUMN($E24)),VLOOKUP($E24-27,AllData,COLUMN()-6-COLUMN($E24)),VLOOKUP($E24-28,AllData,COLUMN()-6-COLUMN($E24)),VLOOKUP($E24-29,AllData,COLUMN()-6-COLUMN($E24)))","v":1399.48},{"$f":"VLOOKUP($E24,AllData,COLUMN()-7-COLUMN($E24))","v":0},{"$f":"OR('Cool Graph'!$I$1=35,'Cool Graph'!$I$1=36,'Cool Graph'!$I$1=37,'Cool Graph'!$I$1=38,'Cool Graph'!$I$1=39,'Cool Graph'!$I$1=40,'Cool Graph'!$I$1=41,'Cool Graph'!$I$1=42,'Cool Graph'!$I$1=43,'Cool Graph'!$I$1=44,'Cool Graph'!$I$1=45,'Cool Graph'!$I$1=46,'Cool Graph'!$I$1=47,'Cool Graph'!$I$1=58,'Cool Graph'!$I$1=66)","v":false}]
["2011-07-24",{"$f":"OFFSET(OldSchoolJustValues!A25,0,'Cool Graph'!$H$1)","v":0},{"$f":"OFFSET(OldSchoolJustValues!A25,0,'Cool Graph'!$I$1)","v":-21.55},null,{"$f":"IF(NewDate>EndDate,NA(),NewDate)","v":"2011-10-19"},{"$f":"IF($E25>EndDate,NA(),IF($K$2=TRUE,N25,IF('Cool Graph'!$B$17=1,N25,IF('Cool Graph'!$B$17=2,L25,IF('Cool Graph'!$B$17=3,M25,)))))","v":0},{"$f":"IF($E25>EndDate,NA(),IF($O$2=TRUE,J25,IF('Cool Graph'!$B$17=1,Data1!J25,IF('Cool Graph'!$B$17=2,Data1!H25,IF('Cool Graph'!$B$17=3,Data1!I25,)))))","v":734.59639192531256},{"$f":"SUM(VLOOKUP($E25,AllData,COLUMN()-COLUMN($E25)),VLOOKUP($E25-1,AllData,COLUMN()-COLUMN($E25)),VLOOKUP($E25-2,AllData,COLUMN()-COLUMN($E25)),VLOOKUP($E25-3,AllData,COLUMN()-COLUMN($E25)),VLOOKUP($E25-4,AllData,COLUMN()-COLUMN($E25)),VLOOKUP($E25-5,AllData,COLUMN()-COLUMN($E25)),VLOOKUP($E25-6,AllData,COLUMN()-COLUMN($E25)))","v":2078.5949178048581},{"$f":"SUM(VLOOKUP($E25,AllData,COLUMN()-1-COLUMN($E25)),VLOOKUP($E25-1,AllData,COLUMN()-1-COLUMN($E25)),VLOOKUP($E25-2,AllData,COLUMN()-1-COLUMN($E25)),VLOOKUP($E25-3,AllData,COLUMN()-1-COLUMN($E25)),VLOOKUP($E25-4,AllData,COLUMN()-1-COLUMN($E25)),VLOOKUP($E25-5,AllData,COLUMN()-1-COLUMN($E25)),VLOOKUP($E25-6,AllData,COLUMN()-1-COLUMN($E25)),VLOOKUP($E25-7,AllData,COLUMN()-1-COLUMN($E25)),VLOOKUP($E25-8,AllData,COLUMN()-1-COLUMN($E25)),VLOOKUP($E25-9,AllData,COLUMN()-1-COLUMN($E25)),VLOOKUP($E25-10,AllData,COLUMN()-1-COLUMN($E25)),VLOOKUP($E25-11,AllData,COLUMN()-1-COLUMN($E25)),VLOOKUP($E25-12,AllData,COLUMN()-1-COLUMN($E25)),VLOOKUP($E25-13,AllData,COLUMN()-1-COLUMN($E25)),VLOOKUP($E25-14,AllData,COLUMN()-1-COLUMN($E25)),VLOOKUP($E25-15,AllData,COLUMN()-1-COLUMN($E25)),VLOOKUP($E25-16,AllData,COLUMN()-1-COLUMN($E25)),VLOOKUP($E25-17,AllData,COLUMN()-1-COLUMN($E25)),VLOOKUP($E25-18,AllData,COLUMN()-1-COLUMN($E25)),VLOOKUP($E25-19,AllData,COLUMN()-1-COLUMN($E25)),VLOOKUP($E25-20,AllData,COLUMN()-1-COLUMN($E25)),VLOOKUP($E25-21,AllData,COLUMN()-1-COLUMN($E25)),VLOOKUP($E25-22,AllData,COLUMN()-1-COLUMN($E25)),VLOOKUP($E25-23,AllData,COLUMN()-1-COLUMN($E25)),VLOOKUP($E25-24,AllData,COLUMN()-1-COLUMN($E25)),VLOOKUP($E25-25,AllData,COLUMN()-1-COLUMN($E25)),VLOOKUP($E25-26,AllData,COLUMN()-1-COLUMN($E25)),VLOOKUP($E25-27,AllData,COLUMN()-1-COLUMN($E25)),VLOOKUP($E25-28,AllData,COLUMN()-1-COLUMN($E25)),VLOOKUP($E25-29,AllData,COLUMN()-1-COLUMN($E25)))","v":8781.6500914865592},{"$f":"VLOOKUP($E25,AllData,COLUMN()-2-COLUMN($E25))","v":734.59639192531256},{"$f":"OR('Cool Graph'!$H$1=35,'Cool Graph'!$H$1=36,'Cool Graph'!$H$1=37,'Cool Graph'!$H$1=38,'Cool Graph'!$H$1=39,'Cool Graph'!$H$1=40,'Cool Graph'!$H$1=41,'Cool Graph'!$H$1=42,'Cool Graph'!$H$1=43,'Cool Graph'!$H$1=44,'Cool Graph'!$H$1=45,'Cool Graph'!$H$1=46,'Cool Graph'!$H$1=47,'Cool Graph'!$H$1=58,'Cool Graph'!$H$1=66)","v":false},{"$f":"SUM(VLOOKUP($E25,AllData,COLUMN()-5-COLUMN($E25)),VLOOKUP($E25-1,AllData,COLUMN()-5-COLUMN($E25)),VLOOKUP($E25-2,AllData,COLUMN()-5-COLUMN($E25)),VLOOKUP($E25-3,AllData,COLUMN()-5-COLUMN($E25)),VLOOKUP($E25-4,AllData,COLUMN()-5-COLUMN($E25)),VLOOKUP($E25-5,AllData,COLUMN()-5-COLUMN($E25)),VLOOKUP($E25-6,AllData,COLUMN()-5-COLUMN($E25)))","v":0},{"$f":"SUM(VLOOKUP($E25,AllData,COLUMN()-6-COLUMN($E25)),VLOOKUP($E25-1,AllData,COLUMN()-6-COLUMN($E25)),VLOOKUP($E25-2,AllData,COLUMN()-6-COLUMN($E25)),VLOOKUP($E25-3,AllData,COLUMN()-6-COLUMN($E25)),VLOOKUP($E25-4,AllData,COLUMN()-6-COLUMN($E25)),VLOOKUP($E25-5,AllData,COLUMN()-6-COLUMN($E25)),VLOOKUP($E25-6,AllData,COLUMN()-6-COLUMN($E25)),VLOOKUP($E25-7,AllData,COLUMN()-6-COLUMN($E25)),VLOOKUP($E25-8,AllData,COLUMN()-6-COLUMN($E25)),VLOOKUP($E25-9,AllData,COLUMN()-6-COLUMN($E25)),VLOOKUP($E25-10,AllData,COLUMN()-6-COLUMN($E25)),VLOOKUP($E25-11,AllData,COLUMN()-6-COLUMN($E25)),VLOOKUP($E25-12,AllData,COLUMN()-6-COLUMN($E25)),VLOOKUP($E25-13,AllData,COLUMN()-6-COLUMN($E25)),VLOOKUP($E25-14,AllData,COLUMN()-6-COLUMN($E25)),VLOOKUP($E25-15,AllData,COLUMN()-6-COLUMN($E25)),VLOOKUP($E25-16,AllData,COLUMN()-6-COLUMN($E25)),VLOOKUP($E25-17,AllData,COLUMN()-6-COLUMN($E25)),VLOOKUP($E25-18,AllData,COLUMN()-6-COLUMN($E25)),VLOOKUP($E25-19,AllData,COLUMN()-6-COLUMN($E25)),VLOOKUP($E25-20,AllData,COLUMN()-6-COLUMN($E25)),VLOOKUP($E25-21,AllData,COLUMN()-6-COLUMN($E25)),VLOOKUP($E25-22,AllData,COLUMN()-6-COLUMN($E25)),VLOOKUP($E25-23,AllData,COLUMN()-6-COLUMN($E25)),VLOOKUP($E25-24,AllData,COLUMN()-6-COLUMN($E25)),VLOOKUP($E25-25,AllData,COLUMN()-6-COLUMN($E25)),VLOOKUP($E25-26,AllData,COLUMN()-6-COLUMN($E25)),VLOOKUP($E25-27,AllData,COLUMN()-6-COLUMN($E25)),VLOOKUP($E25-28,AllData,COLUMN()-6-COLUMN($E25)),VLOOKUP($E25-29,AllData,COLUMN()-6-COLUMN($E25)))","v":1399.48},{"$f":"VLOOKUP($E25,AllData,COLUMN()-7-COLUMN($E25))","v":0},{"$f":"OR('Cool Graph'!$I$1=35,'Cool Graph'!$I$1=36,'Cool Graph'!$I$1=37,'Cool Graph'!$I$1=38,'Cool Graph'!$I$1=39,'Cool Graph'!$I$1=40,'Cool Graph'!$I$1=41,'Cool Graph'!$I$1=42,'Cool Graph'!$I$1=43,'Cool Graph'!$I$1=44,'Cool Graph'!$I$1=45,'Cool Graph'!$I$1=46,'Cool Graph'!$I$1=47,'Cool Graph'!$I$1=58,'Cool Graph'!$I$1=66)","v":false}]
["2011-07-25",{"$f":"OFFSET(OldSchoolJustValues!A26,0,'Cool Graph'!$H$1)","v":0},{"$f":"OFFSET(OldSchoolJustValues!A26,0,'Cool Graph'!$I$1)","v":-113.34},null,{"$f":"IF(NewDate>EndDate,NA(),NewDate)","v":"2011-10-20"},{"$f":"IF($E26>EndDate,NA(),IF($K$2=TRUE,N26,IF('Cool Graph'!$B$17=1,N26,IF('Cool Graph'!$B$17=2,L26,IF('Cool Graph'!$B$17=3,M26,)))))","v":0},{"$f":"IF($E26>EndDate,NA(),IF($O$2=TRUE,J26,IF('Cool Graph'!$B$17=1,Data1!J26,IF('Cool Graph'!$B$17=2,Data1!H26,IF('Cool Graph'!$B$17=3,Data1!I26,)))))","v":701.16256900310884},{"$f":"SUM(VLOOKUP($E26,AllData,COLUMN()-COLUMN($E26)),VLOOKUP($E26-1,AllData,COLUMN()-COLUMN($E26)),VLOOKUP($E26-2,AllData,COLUMN()-COLUMN($E26)),VLOOKUP($E26-3,AllData,COLUMN()-COLUMN($E26)),VLOOKUP($E26-4,AllData,COLUMN()-COLUMN($E26)),VLOOKUP($E26-5,AllData,COLUMN()-COLUMN($E26)),VLOOKUP($E26-6,AllData,COLUMN()-COLUMN($E26)))","v":2918.157486807967},{"$f":"SUM(VLOOKUP($E26,AllData,COLUMN()-1-COLUMN($E26)),VLOOKUP($E26-1,AllData,COLUMN()-1-COLUMN($E26)),VLOOKUP($E26-2,AllData,COLUMN()-1-COLUMN($E26)),VLOOKUP($E26-3,AllData,COLUMN()-1-COLUMN($E26)),VLOOKUP($E26-4,AllData,COLUMN()-1-COLUMN($E26)),VLOOKUP($E26-5,AllData,COLUMN()-1-COLUMN($E26)),VLOOKUP($E26-6,AllData,COLUMN()-1-COLUMN($E26)),VLOOKUP($E26-7,AllData,COLUMN()-1-COLUMN($E26)),VLOOKUP($E26-8,AllData,COLUMN()-1-COLUMN($E26)),VLOOKUP($E26-9,AllData,COLUMN()-1-COLUMN($E26)),VLOOKUP($E26-10,AllData,COLUMN()-1-COLUMN($E26)),VLOOKUP($E26-11,AllData,COLUMN()-1-COLUMN($E26)),VLOOKUP($E26-12,AllData,COLUMN()-1-COLUMN($E26)),VLOOKUP($E26-13,AllData,COLUMN()-1-COLUMN($E26)),VLOOKUP($E26-14,AllData,COLUMN()-1-COLUMN($E26)),VLOOKUP($E26-15,AllData,COLUMN()-1-COLUMN($E26)),VLOOKUP($E26-16,AllData,COLUMN()-1-COLUMN($E26)),VLOOKUP($E26-17,AllData,COLUMN()-1-COLUMN($E26)),VLOOKUP($E26-18,AllData,COLUMN()-1-COLUMN($E26)),VLOOKUP($E26-19,AllData,COLUMN()-1-COLUMN($E26)),VLOOKUP($E26-20,AllData,COLUMN()-1-COLUMN($E26)),VLOOKUP($E26-21,AllData,COLUMN()-1-COLUMN($E26)),VLOOKUP($E26-22,AllData,COLUMN()-1-COLUMN($E26)),VLOOKUP($E26-23,AllData,COLUMN()-1-COLUMN($E26)),VLOOKUP($E26-24,AllData,COLUMN()-1-COLUMN($E26)),VLOOKUP($E26-25,AllData,COLUMN()-1-COLUMN($E26)),VLOOKUP($E26-26,AllData,COLUMN()-1-COLUMN($E26)),VLOOKUP($E26-27,AllData,COLUMN()-1-COLUMN($E26)),VLOOKUP($E26-28,AllData,COLUMN()-1-COLUMN($E26)),VLOOKUP($E26-29,AllData,COLUMN()-1-COLUMN($E26)))","v":9157.1027782359652},{"$f":"VLOOKUP($E26,AllData,COLUMN()-2-COLUMN($E26))","v":701.16256900310884},{"$f":"OR('Cool Graph'!$H$1=35,'Cool Graph'!$H$1=36,'Cool Graph'!$H$1=37,'Cool Graph'!$H$1=38,'Cool Graph'!$H$1=39,'Cool Graph'!$H$1=40,'Cool Graph'!$H$1=41,'Cool Graph'!$H$1=42,'Cool Graph'!$H$1=43,'Cool Graph'!$H$1=44,'Cool Graph'!$H$1=45,'Cool Graph'!$H$1=46,'Cool Graph'!$H$1=47,'Cool Graph'!$H$1=58,'Cool Graph'!$H$1=66)","v":false},{"$f":"SUM(VLOOKUP($E26,AllData,COLUMN()-5-COLUMN($E26)),VLOOKUP($E26-1,AllData,COLUMN()-5-COLUMN($E26)),VLOOKUP($E26-2,AllData,COLUMN()-5-COLUMN($E26)),VLOOKUP($E26-3,AllData,COLUMN()-5-COLUMN($E26)),VLOOKUP($E26-4,AllData,COLUMN()-5-COLUMN($E26)),VLOOKUP($E26-5,AllData,COLUMN()-5-COLUMN($E26)),VLOOKUP($E26-6,AllData,COLUMN()-5-COLUMN($E26)))","v":0},{"$f":"SUM(VLOOKUP($E26,AllData,COLUMN()-6-COLUMN($E26)),VLOOKUP($E26-1,AllData,COLUMN()-6-COLUMN($E26)),VLOOKUP($E26-2,AllData,COLUMN()-6-COLUMN($E26)),VLOOKUP($E26-3,AllData,COLUMN()-6-COLUMN($E26)),VLOOKUP($E26-4,AllData,COLUMN()-6-COLUMN($E26)),VLOOKUP($E26-5,AllData,COLUMN()-6-COLUMN($E26)),VLOOKUP($E26-6,AllData,COLUMN()-6-COLUMN($E26)),VLOOKUP($E26-7,AllData,COLUMN()-6-COLUMN($E26)),VLOOKUP($E26-8,AllData,COLUMN()-6-COLUMN($E26)),VLOOKUP($E26-9,AllData,COLUMN()-6-COLUMN($E26)),VLOOKUP($E26-10,AllData,COLUMN()-6-COLUMN($E26)),VLOOKUP($E26-11,AllData,COLUMN()-6-COLUMN($E26)),VLOOKUP($E26-12,AllData,COLUMN()-6-COLUMN($E26)),VLOOKUP($E26-13,AllData,COLUMN()-6-COLUMN($E26)),VLOOKUP($E26-14,AllData,COLUMN()-6-COLUMN($E26)),VLOOKUP($E26-15,AllData,COLUMN()-6-COLUMN($E26)),VLOOKUP($E26-16,AllData,COLUMN()-6-COLUMN($E26)),VLOOKUP($E26-17,AllData,COLUMN()-6-COLUMN($E26)),VLOOKUP($E26-18,AllData,COLUMN()-6-COLUMN($E26)),VLOOKUP($E26-19,AllData,COLUMN()-6-COLUMN($E26)),VLOOKUP($E26-20,AllData,COLUMN()-6-COLUMN($E26)),VLOOKUP($E26-21,AllData,COLUMN()-6-COLUMN($E26)),VLOOKUP($E26-22,AllData,COLUMN()-6-COLUMN($E26)),VLOOKUP($E26-23,AllData,COLUMN()-6-COLUMN($E26)),VLOOKUP($E26-24,AllData,COLUMN()-6-COLUMN($E26)),VLOOKUP($E26-25,AllData,COLUMN()-6-COLUMN($E26)),VLOOKUP($E26-26,AllData,COLUMN()-6-COLUMN($E26)),VLOOKUP($E26-27,AllData,COLUMN()-6-COLUMN($E26)),VLOOKUP($E26-28,AllData,COLUMN()-6-COLUMN($E26)),VLOOKUP($E26-29,AllData,COLUMN()-6-COLUMN($E26)))","v":1399.48},{"$f":"VLOOKUP($E26,AllData,COLUMN()-7-COLUMN($E26))","v":0},{"$f":"OR('Cool Graph'!$I$1=35,'Cool Graph'!$I$1=36,'Cool Graph'!$I$1=37,'Cool Graph'!$I$1=38,'Cool Graph'!$I$1=39,'Cool Graph'!$I$1=40,'Cool Graph'!$I$1=41,'Cool Graph'!$I$1=42,'Cool Graph'!$I$1=43,'Cool Graph'!$I$1=44,'Cool Graph'!$I$1=45,'Cool Graph'!$I$1=46,'Cool Graph'!$I$1=47,'Cool Graph'!$I$1=58,'Cool Graph'!$I$1=66)","v":false}]
["2011-07-26",{"$f":"OFFSET(OldSchoolJustValues!A27,0,'Cool Graph'!$H$1)","v":0},{"$f":"OFFSET(OldSchoolJustValues!A27,0,'Cool Graph'!$I$1)","v":56.986627417901801},null,{"$f":"IF(NewDate>EndDate,NA(),NewDate)","v":"2011-10-21"},{"$f":"IF($E27>EndDate,NA(),IF($K$2=TRUE,N27,IF('Cool Graph'!$B$17=1,N27,IF('Cool Graph'!$B$17=2,L27,IF('Cool Graph'!$B$17=3,M27,)))))","v":0},{"$f":"IF($E27>EndDate,NA(),IF($O$2=TRUE,J27,IF('Cool Graph'!$B$17=1,Data1!J27,IF('Cool Graph'!$B$17=2,Data1!H27,IF('Cool Graph'!$B$17=3,Data1!I27,)))))","v":535.20645079845985},{"$f":"SUM(VLOOKUP($E27,AllData,COLUMN()-COLUMN($E27)),VLOOKUP($E27-1,AllData,COLUMN()-COLUMN($E27)),VLOOKUP($E27-2,AllData,COLUMN()-COLUMN($E27)),VLOOKUP($E27-3,AllData,COLUMN()-COLUMN($E27)),VLOOKUP($E27-4,AllData,COLUMN()-COLUMN($E27)),VLOOKUP($E27-5,AllData,COLUMN()-COLUMN($E27)),VLOOKUP($E27-6,AllData,COLUMN()-COLUMN($E27)))","v":3319.9506827706236},{"$f":"SUM(VLOOKUP($E27,AllData,COLUMN()-1-COLUMN($E27)),VLOOKUP($E27-1,AllData,COLUMN()-1-COLUMN($E27)),VLOOKUP($E27-2,AllData,COLUMN()-1-COLUMN($E27)),VLOOKUP($E27-3,AllData,COLUMN()-1-COLUMN($E27)),VLOOKUP($E27-4,AllData,COLUMN()-1-COLUMN($E27)),VLOOKUP($E27-5,AllData,COLUMN()-1-COLUMN($E27)),VLOOKUP($E27-6,AllData,COLUMN()-1-COLUMN($E27)),VLOOKUP($E27-7,AllData,COLUMN()-1-COLUMN($E27)),VLOOKUP($E27-8,AllData,COLUMN()-1-COLUMN($E27)),VLOOKUP($E27-9,AllData,COLUMN()-1-COLUMN($E27)),VLOOKUP($E27-10,AllData,COLUMN()-1-COLUMN($E27)),VLOOKUP($E27-11,AllData,COLUMN()-1-COLUMN($E27)),VLOOKUP($E27-12,AllData,COLUMN()-1-COLUMN($E27)),VLOOKUP($E27-13,AllData,COLUMN()-1-COLUMN($E27)),VLOOKUP($E27-14,AllData,COLUMN()-1-COLUMN($E27)),VLOOKUP($E27-15,AllData,COLUMN()-1-COLUMN($E27)),VLOOKUP($E27-16,AllData,COLUMN()-1-COLUMN($E27)),VLOOKUP($E27-17,AllData,COLUMN()-1-COLUMN($E27)),VLOOKUP($E27-18,AllData,COLUMN()-1-COLUMN($E27)),VLOOKUP($E27-19,AllData,COLUMN()-1-COLUMN($E27)),VLOOKUP($E27-20,AllData,COLUMN()-1-COLUMN($E27)),VLOOKUP($E27-21,AllData,COLUMN()-1-COLUMN($E27)),VLOOKUP($E27-22,AllData,COLUMN()-1-COLUMN($E27)),VLOOKUP($E27-23,AllData,COLUMN()-1-COLUMN($E27)),VLOOKUP($E27-24,AllData,COLUMN()-1-COLUMN($E27)),VLOOKUP($E27-25,AllData,COLUMN()-1-COLUMN($E27)),VLOOKUP($E27-26,AllData,COLUMN()-1-COLUMN($E27)),VLOOKUP($E27-27,AllData,COLUMN()-1-COLUMN($E27)),VLOOKUP($E27-28,AllData,COLUMN()-1-COLUMN($E27)),VLOOKUP($E27-29,AllData,COLUMN()-1-COLUMN($E27)))","v":9495.2359741986202},{"$f":"VLOOKUP($E27,AllData,COLUMN()-2-COLUMN($E27))","v":535.20645079845985},{"$f":"OR('Cool Graph'!$H$1=35,'Cool Graph'!$H$1=36,'Cool Graph'!$H$1=37,'Cool Graph'!$H$1=38,'Cool Graph'!$H$1=39,'Cool Graph'!$H$1=40,'Cool Graph'!$H$1=41,'Cool Graph'!$H$1=42,'Cool Graph'!$H$1=43,'Cool Graph'!$H$1=44,'Cool Graph'!$H$1=45,'Cool Graph'!$H$1=46,'Cool Graph'!$H$1=47,'Cool Graph'!$H$1=58,'Cool Graph'!$H$1=66)","v":false},{"$f":"SUM(VLOOKUP($E27,AllData,COLUMN()-5-COLUMN($E27)),VLOOKUP($E27-1,AllData,COLUMN()-5-COLUMN($E27)),VLOOKUP($E27-2,AllData,COLUMN()-5-COLUMN($E27)),VLOOKUP($E27-3,AllData,COLUMN()-5-COLUMN($E27)),VLOOKUP($E27-4,AllData,COLUMN()-5-COLUMN($E27)),VLOOKUP($E27-5,AllData,COLUMN()-5-COLUMN($E27)),VLOOKUP($E27-6,AllData,COLUMN()-5-COLUMN($E27)))","v":0},{"$f":"SUM(VLOOKUP($E27,AllData,COLUMN()-6-COLUMN($E27)),VLOOKUP($E27-1,AllData,COLUMN()-6-COLUMN($E27)),VLOOKUP($E27-2,AllData,COLUMN()-6-COLUMN($E27)),VLOOKUP($E27-3,AllData,COLUMN()-6-COLUMN($E27)),VLOOKUP($E27-4,AllData,COLUMN()-6-COLUMN($E27)),VLOOKUP($E27-5,AllData,COLUMN()-6-COLUMN($E27)),VLOOKUP($E27-6,AllData,COLUMN()-6-COLUMN($E27)),VLOOKUP($E27-7,AllData,COLUMN()-6-COLUMN($E27)),VLOOKUP($E27-8,AllData,COLUMN()-6-COLUMN($E27)),VLOOKUP($E27-9,AllData,COLUMN()-6-COLUMN($E27)),VLOOKUP($E27-10,AllData,COLUMN()-6-COLUMN($E27)),VLOOKUP($E27-11,AllData,COLUMN()-6-COLUMN($E27)),VLOOKUP($E27-12,AllData,COLUMN()-6-COLUMN($E27)),VLOOKUP($E27-13,AllData,COLUMN()-6-COLUMN($E27)),VLOOKUP($E27-14,AllData,COLUMN()-6-COLUMN($E27)),VLOOKUP($E27-15,AllData,COLUMN()-6-COLUMN($E27)),VLOOKUP($E27-16,AllData,COLUMN()-6-COLUMN($E27)),VLOOKUP($E27-17,AllData,COLUMN()-6-COLUMN($E27)),VLOOKUP($E27-18,AllData,COLUMN()-6-COLUMN($E27)),VLOOKUP($E27-19,AllData,COLUMN()-6-COLUMN($E27)),VLOOKUP($E27-20,AllData,COLUMN()-6-COLUMN($E27)),VLOOKUP($E27-21,AllData,COLUMN()-6-COLUMN($E27)),VLOOKUP($E27-22,AllData,COLUMN()-6-COLUMN($E27)),VLOOKUP($E27-23,AllData,COLUMN()-6-COLUMN($E27)),VLOOKUP($E27-24,AllData,COLUMN()-6-COLUMN($E27)),VLOOKUP($E27-25,AllData,COLUMN()-6-COLUMN($E27)),VLOOKUP($E27-26,AllData,COLUMN()-6-COLUMN($E27)),VLOOKUP($E27-27,AllData,COLUMN()-6-COLUMN($E27)),VLOOKUP($E27-28,AllData,COLUMN()-6-COLUMN($E27)),VLOOKUP($E27-29,AllData,COLUMN()-6-COLUMN($E27)))","v":1399.48},{"$f":"VLOOKUP($E27,AllData,COLUMN()-7-COLUMN($E27))","v":0},{"$f":"OR('Cool Graph'!$I$1=35,'Cool Graph'!$I$1=36,'Cool Graph'!$I$1=37,'Cool Graph'!$I$1=38,'Cool Graph'!$I$1=39,'Cool Graph'!$I$1=40,'Cool Graph'!$I$1=41,'Cool Graph'!$I$1=42,'Cool Graph'!$I$1=43,'Cool Graph'!$I$1=44,'Cool Graph'!$I$1=45,'Cool Graph'!$I$1=46,'Cool Graph'!$I$1=47,'Cool Graph'!$I$1=58,'Cool Graph'!$I$1=66)","v":false}]
["2011-07-27",{"$f":"OFFSET(OldSchoolJustValues!A28,0,'Cool Graph'!$H$1)","v":0},{"$f":"OFFSET(OldSchoolJustValues!A28,0,'Cool Graph'!$I$1)","v":-58.27},null,{"$f":"IF(NewDate>EndDate,NA(),NewDate)","v":"2011-10-22"},{"$f":"IF($E28>EndDate,NA(),IF($K$2=TRUE,N28,IF('Cool Graph'!$B$17=1,N28,IF('Cool Graph'!$B$17=2,L28,IF('Cool Graph'!$B$17=3,M28,)))))","v":0},{"$f":"IF($E28>EndDate,NA(),IF($O$2=TRUE,J28,IF('Cool Graph'!$B$17=1,Data1!J28,IF('Cool Graph'!$B$17=2,Data1!H28,IF('Cool Graph'!$B$17=3,Data1!I28,)))))","v":67.343254835803606},{"$f":"SUM(VLOOKUP($E28,AllData,COLUMN()-COLUMN($E28)),VLOOKUP($E28-1,AllData,COLUMN()-COLUMN($E28)),VLOOKUP($E28-2,AllData,COLUMN()-COLUMN($E28)),VLOOKUP($E28-3,AllData,COLUMN()-COLUMN($E28)),VLOOKUP($E28-4,AllData,COLUMN()-COLUMN($E28)),VLOOKUP($E28-5,AllData,COLUMN()-COLUMN($E28)),VLOOKUP($E28-6,AllData,COLUMN()-COLUMN($E28)))","v":3106.5311254651137},{"$f":"SUM(VLOOKUP($E28,AllData,COLUMN()-1-COLUMN($E28)),VLOOKUP($E28-1,AllData,COLUMN()-1-COLUMN($E28)),VLOOKUP($E28-2,AllData,COLUMN()-1-COLUMN($E28)),VLOOKUP($E28-3,AllData,COLUMN()-1-COLUMN($E28)),VLOOKUP($E28-4,AllData,COLUMN()-1-COLUMN($E28)),VLOOKUP($E28-5,AllData,COLUMN()-1-COLUMN($E28)),VLOOKUP($E28-6,AllData,COLUMN()-1-COLUMN($E28)),VLOOKUP($E28-7,AllData,COLUMN()-1-COLUMN($E28)),VLOOKUP($E28-8,AllData,COLUMN()-1-COLUMN($E28)),VLOOKUP($E28-9,AllData,COLUMN()-1-COLUMN($E28)),VLOOKUP($E28-10,AllData,COLUMN()-1-COLUMN($E28)),VLOOKUP($E28-11,AllData,COLUMN()-1-COLUMN($E28)),VLOOKUP($E28-12,AllData,COLUMN()-1-COLUMN($E28)),VLOOKUP($E28-13,AllData,COLUMN()-1-COLUMN($E28)),VLOOKUP($E28-14,AllData,COLUMN()-1-COLUMN($E28)),VLOOKUP($E28-15,AllData,COLUMN()-1-COLUMN($E28)),VLOOKUP($E28-16,AllData,COLUMN()-1-COLUMN($E28)),VLOOKUP($E28-17,AllData,COLUMN()-1-COLUMN($E28)),VLOOKUP($E28-18,AllData,COLUMN()-1-COLUMN($E28)),VLOOKUP($E28-19,AllData,COLUMN()-1-COLUMN($E28)),VLOOKUP($E28-20,AllData,COLUMN()-1-COLUMN($E28)),VLOOKUP($E28-21,AllData,COLUMN()-1-COLUMN($E28)),VLOOKUP($E28-22,AllData,COLUMN()-1-COLUMN($E28)),VLOOKUP($E28-23,AllData,COLUMN()-1-COLUMN($E28)),VLOOKUP($E28-24,AllData,COLUMN()-1-COLUMN($E28)),VLOOKUP($E28-25,AllData,COLUMN()-1-COLUMN($E28)),VLOOKUP($E28-26,AllData,COLUMN()-1-COLUMN($E28)),VLOOKUP($E28-27,AllData,COLUMN()-1-COLUMN($E28)),VLOOKUP($E28-28,AllData,COLUMN()-1-COLUMN($E28)),VLOOKUP($E28-29,AllData,COLUMN()-1-COLUMN($E28)))","v":9223.8393467807182},{"$f":"VLOOKUP($E28,AllData,COLUMN()-2-COLUMN($E28))","v":67.343254835803606},{"$f":"OR('Cool Graph'!$H$1=35,'Cool Graph'!$H$1=36,'Cool Graph'!$H$1=37,'Cool Graph'!$H$1=38,'Cool Graph'!$H$1=39,'Cool Graph'!$H$1=40,'Cool Graph'!$H$1=41,'Cool Graph'!$H$1=42,'Cool Graph'!$H$1=43,'Cool Graph'!$H$1=44,'Cool Graph'!$H$1=45,'Cool Graph'!$H$1=46,'Cool Graph'!$H$1=47,'Cool Graph'!$H$1=58,'Cool Graph'!$H$1=66)","v":false},{"$f":"SUM(VLOOKUP($E28,AllData,COLUMN()-5-COLUMN($E28)),VLOOKUP($E28-1,AllData,COLUMN()-5-COLUMN($E28)),VLOOKUP($E28-2,AllData,COLUMN()-5-COLUMN($E28)),VLOOKUP($E28-3,AllData,COLUMN()-5-COLUMN($E28)),VLOOKUP($E28-4,AllData,COLUMN()-5-COLUMN($E28)),VLOOKUP($E28-5,AllData,COLUMN()-5-COLUMN($E28)),VLOOKUP($E28-6,AllData,COLUMN()-5-COLUMN($E28)))","v":0},{"$f":"SUM(VLOOKUP($E28,AllData,COLUMN()-6-COLUMN($E28)),VLOOKUP($E28-1,AllData,COLUMN()-6-COLUMN($E28)),VLOOKUP($E28-2,AllData,COLUMN()-6-COLUMN($E28)),VLOOKUP($E28-3,AllData,COLUMN()-6-COLUMN($E28)),VLOOKUP($E28-4,AllData,COLUMN()-6-COLUMN($E28)),VLOOKUP($E28-5,AllData,COLUMN()-6-COLUMN($E28)),VLOOKUP($E28-6,AllData,COLUMN()-6-COLUMN($E28)),VLOOKUP($E28-7,AllData,COLUMN()-6-COLUMN($E28)),VLOOKUP($E28-8,AllData,COLUMN()-6-COLUMN($E28)),VLOOKUP($E28-9,AllData,COLUMN()-6-COLUMN($E28)),VLOOKUP($E28-10,AllData,COLUMN()-6-COLUMN($E28)),VLOOKUP($E28-11,AllData,COLUMN()-6-COLUMN($E28)),VLOOKUP($E28-12,AllData,COLUMN()-6-COLUMN($E28)),VLOOKUP($E28-13,AllData,COLUMN()-6-COLUMN($E28)),VLOOKUP($E28-14,AllData,COLUMN()-6-COLUMN($E28)),VLOOKUP($E28-15,AllData,COLUMN()-6-COLUMN($E28)),VLOOKUP($E28-16,AllData,COLUMN()-6-COLUMN($E28)),VLOOKUP($E28-17,AllData,COLUMN()-6-COLUMN($E28)),VLOOKUP($E28-18,AllData,COLUMN()-6-COLUMN($E28)),VLOOKUP($E28-19,AllData,COLUMN()-6-COLUMN($E28)),VLOOKUP($E28-20,AllData,COLUMN()-6-COLUMN($E28)),VLOOKUP($E28-21,AllData,COLUMN()-6-COLUMN($E28)),VLOOKUP($E28-22,AllData,COLUMN()-6-COLUMN($E28)),VLOOKUP($E28-23,AllData,COLUMN()-6-COLUMN($E28)),VLOOKUP($E28-24,AllData,COLUMN()-6-COLUMN($E28)),VLOOKUP($E28-25,AllData,COLUMN()-6-COLUMN($E28)),VLOOKUP($E28-26,AllData,COLUMN()-6-COLUMN($E28)),VLOOKUP($E28-27,AllData,COLUMN()-6-COLUMN($E28)),VLOOKUP($E28-28,AllData,COLUMN()-6-COLUMN($E28)),VLOOKUP($E28-29,AllData,COLUMN()-6-COLUMN($E28)))","v":1399.48},{"$f":"VLOOKUP($E28,AllData,COLUMN()-7-COLUMN($E28))","v":0},{"$f":"OR('Cool Graph'!$I$1=35,'Cool Graph'!$I$1=36,'Cool Graph'!$I$1=37,'Cool Graph'!$I$1=38,'Cool Graph'!$I$1=39,'Cool Graph'!$I$1=40,'Cool Graph'!$I$1=41,'Cool Graph'!$I$1=42,'Cool Graph'!$I$1=43,'Cool Graph'!$I$1=44,'Cool Graph'!$I$1=45,'Cool Graph'!$I$1=46,'Cool Graph'!$I$1=47,'Cool Graph'!$I$1=58,'Cool Graph'!$I$1=66)","v":false}]
["2011-07-28",{"$f":"OFFSET(OldSchoolJustValues!A29,0,'Cool Graph'!$H$1)","v":0},{"$f":"OFFSET(OldSchoolJustValues!A29,0,'Cool Graph'!$I$1)","v":-104.23},null,{"$f":"IF(NewDate>EndDate,NA(),NewDate)","v":"2011-10-23"},{"$f":"IF($E29>EndDate,NA(),IF($K$2=TRUE,N29,IF('Cool Graph'!$B$17=1,N29,IF('Cool Graph'!$B$17=2,L29,IF('Cool Graph'!$B$17=3,M29,)))))","v":0},{"$f":"IF($E29>EndDate,NA(),IF($O$2=TRUE,J29,IF('Cool Graph'!$B$17=1,Data1!J29,IF('Cool Graph'!$B$17=2,Data1!H29,IF('Cool Graph'!$B$17=3,Data1!I29,)))))","v":634.52307821636168},{"$f":"SUM(VLOOKUP($E29,AllData,COLUMN()-COLUMN($E29)),VLOOKUP($E29-1,AllData,COLUMN()-COLUMN($E29)),VLOOKUP($E29-2,AllData,COLUMN()-COLUMN($E29)),VLOOKUP($E29-3,AllData,COLUMN()-COLUMN($E29)),VLOOKUP($E29-4,AllData,COLUMN()-COLUMN($E29)),VLOOKUP($E29-5,AllData,COLUMN()-COLUMN($E29)),VLOOKUP($E29-6,AllData,COLUMN()-COLUMN($E29)))","v":3495.03432142777},{"$f":"SUM(VLOOKUP($E29,AllData,COLUMN()-1-COLUMN($E29)),VLOOKUP($E29-1,AllData,COLUMN()-1-COLUMN($E29)),VLOOKUP($E29-2,AllData,COLUMN()-1-COLUMN($E29)),VLOOKUP($E29-3,AllData,COLUMN()-1-COLUMN($E29)),VLOOKUP($E29-4,AllData,COLUMN()-1-COLUMN($E29)),VLOOKUP($E29-5,AllData,COLUMN()-1-COLUMN($E29)),VLOOKUP($E29-6,AllData,COLUMN()-1-COLUMN($E29)),VLOOKUP($E29-7,AllData,COLUMN()-1-COLUMN($E29)),VLOOKUP($E29-8,AllData,COLUMN()-1-COLUMN($E29)),VLOOKUP($E29-9,AllData,COLUMN()-1-COLUMN($E29)),VLOOKUP($E29-10,AllData,COLUMN()-1-COLUMN($E29)),VLOOKUP($E29-11,AllData,COLUMN()-1-COLUMN($E29)),VLOOKUP($E29-12,AllData,COLUMN()-1-COLUMN($E29)),VLOOKUP($E29-13,AllData,COLUMN()-1-COLUMN($E29)),VLOOKUP($E29-14,AllData,COLUMN()-1-COLUMN($E29)),VLOOKUP($E29-15,AllData,COLUMN()-1-COLUMN($E29)),VLOOKUP($E29-16,AllData,COLUMN()-1-COLUMN($E29)),VLOOKUP($E29-17,AllData,COLUMN()-1-COLUMN($E29)),VLOOKUP($E29-18,AllData,COLUMN()-1-COLUMN($E29)),VLOOKUP($E29-19,AllData,COLUMN()-1-COLUMN($E29)),VLOOKUP($E29-20,AllData,COLUMN()-1-COLUMN($E29)),VLOOKUP($E29-21,AllData,COLUMN()-1-COLUMN($E29)),VLOOKUP($E29-22,AllData,COLUMN()-1-COLUMN($E29)),VLOOKUP($E29-23,AllData,COLUMN()-1-COLUMN($E29)),VLOOKUP($E29-24,AllData,COLUMN()-1-COLUMN($E29)),VLOOKUP($E29-25,AllData,COLUMN()-1-COLUMN($E29)),VLOOKUP($E29-26,AllData,COLUMN()-1-COLUMN($E29)),VLOOKUP($E29-27,AllData,COLUMN()-1-COLUMN($E29)),VLOOKUP($E29-28,AllData,COLUMN()-1-COLUMN($E29)),VLOOKUP($E29-29,AllData,COLUMN()-1-COLUMN($E29)))","v":9728.9224838702285},{"$f":"VLOOKUP($E29,AllData,COLUMN()-2-COLUMN($E29))","v":634.52307821636168},{"$f":"OR('Cool Graph'!$H$1=35,'Cool Graph'!$H$1=36,'Cool Graph'!$H$1=37,'Cool Graph'!$H$1=38,'Cool Graph'!$H$1=39,'Cool Graph'!$H$1=40,'Cool Graph'!$H$1=41,'Cool Graph'!$H$1=42,'Cool Graph'!$H$1=43,'Cool Graph'!$H$1=44,'Cool Graph'!$H$1=45,'Cool Graph'!$H$1=46,'Cool Graph'!$H$1=47,'Cool Graph'!$H$1=58,'Cool Graph'!$H$1=66)","v":false},{"$f":"SUM(VLOOKUP($E29,AllData,COLUMN()-5-COLUMN($E29)),VLOOKUP($E29-1,AllData,COLUMN()-5-COLUMN($E29)),VLOOKUP($E29-2,AllData,COLUMN()-5-COLUMN($E29)),VLOOKUP($E29-3,AllData,COLUMN()-5-COLUMN($E29)),VLOOKUP($E29-4,AllData,COLUMN()-5-COLUMN($E29)),VLOOKUP($E29-5,AllData,COLUMN()-5-COLUMN($E29)),VLOOKUP($E29-6,AllData,COLUMN()-5-COLUMN($E29)))","v":0},{"$f":"SUM(VLOOKUP($E29,AllData,COLUMN()-6-COLUMN($E29)),VLOOKUP($E29-1,AllData,COLUMN()-6-COLUMN($E29)),VLOOKUP($E29-2,AllData,COLUMN()-6-COLUMN($E29)),VLOOKUP($E29-3,AllData,COLUMN()-6-COLUMN($E29)),VLOOKUP($E29-4,AllData,COLUMN()-6-COLUMN($E29)),VLOOKUP($E29-5,AllData,COLUMN()-6-COLUMN($E29)),VLOOKUP($E29-6,AllData,COLUMN()-6-COLUMN($E29)),VLOOKUP($E29-7,AllData,COLUMN()-6-COLUMN($E29)),VLOOKUP($E29-8,AllData,COLUMN()-6-COLUMN($E29)),VLOOKUP($E29-9,AllData,COLUMN()-6-COLUMN($E29)),VLOOKUP($E29-10,AllData,COLUMN()-6-COLUMN($E29)),VLOOKUP($E29-11,AllData,COLUMN()-6-COLUMN($E29)),VLOOKUP($E29-12,AllData,COLUMN()-6-COLUMN($E29)),VLOOKUP($E29-13,AllData,COLUMN()-6-COLUMN($E29)),VLOOKUP($E29-14,AllData,COLUMN()-6-COLUMN($E29)),VLOOKUP($E29-15,AllData,COLUMN()-6-COLUMN($E29)),VLOOKUP($E29-16,AllData,COLUMN()-6-COLUMN($E29)),VLOOKUP($E29-17,AllData,COLUMN()-6-COLUMN($E29)),VLOOKUP($E29-18,AllData,COLUMN()-6-COLUMN($E29)),VLOOKUP($E29-19,AllData,COLUMN()-6-COLUMN($E29)),VLOOKUP($E29-20,AllData,COLUMN()-6-COLUMN($E29)),VLOOKUP($E29-21,AllData,COLUMN()-6-COLUMN($E29)),VLOOKUP($E29-22,AllData,COLUMN()-6-COLUMN($E29)),VLOOKUP($E29-23,AllData,COLUMN()-6-COLUMN($E29)),VLOOKUP($E29-24,AllData,COLUMN()-6-COLUMN($E29)),VLOOKUP($E29-25,AllData,COLUMN()-6-COLUMN($E29)),VLOOKUP($E29-26,AllData,COLUMN()-6-COLUMN($E29)),VLOOKUP($E29-27,AllData,COLUMN()-6-COLUMN($E29)),VLOOKUP($E29-28,AllData,COLUMN()-6-COLUMN($E29)),VLOOKUP($E29-29,AllData,COLUMN()-6-COLUMN($E29)))","v":1399.48},{"$f":"VLOOKUP($E29,AllData,COLUMN()-7-COLUMN($E29))","v":0},{"$f":"OR('Cool Graph'!$I$1=35,'Cool Graph'!$I$1=36,'Cool Graph'!$I$1=37,'Cool Graph'!$I$1=38,'Cool Graph'!$I$1=39,'Cool Graph'!$I$1=40,'Cool Graph'!$I$1=41,'Cool Graph'!$I$1=42,'Cool Graph'!$I$1=43,'Cool Graph'!$I$1=44,'Cool Graph'!$I$1=45,'Cool Graph'!$I$1=46,'Cool Graph'!$I$1=47,'Cool Graph'!$I$1=58,'Cool Graph'!$I$1=66)","v":false}]
["2011-07-29",{"$f":"OFFSET(OldSchoolJustValues!A30,0,'Cool Graph'!$H$1)","v":0},{"$f":"OFFSET(OldSchoolJustValues!A30,0,'Cool Graph'!$I$1)","v":122.6799411268527},null,{"$f":"IF(NewDate>EndDate,NA(),NewDate)","v":"2011-10-24"},{"$f":"IF($E30>EndDate,NA(),IF($K$2=TRUE,N30,IF('Cool Graph'!$B$17=1,N30,IF('Cool Graph'!$B$17=2,L30,IF('Cool Graph'!$B$17=3,M30,)))))","v":0},{"$f":"IF($E30>EndDate,NA(),IF($O$2=TRUE,J30,IF('Cool Graph'!$B$17=1,Data1!J30,IF('Cool Graph'!$B$17=2,Data1!H30,IF('Cool Graph'!$B$17=3,Data1!I30,)))))","v":156.37722306722176},{"$f":"SUM(VLOOKUP($E30,AllData,COLUMN()-COLUMN($E30)),VLOOKUP($E30-1,AllData,COLUMN()-COLUMN($E30)),VLOOKUP($E30-2,AllData,COLUMN()-COLUMN($E30)),VLOOKUP($E30-3,AllData,COLUMN()-COLUMN($E30)),VLOOKUP($E30-4,AllData,COLUMN()-COLUMN($E30)),VLOOKUP($E30-5,AllData,COLUMN()-COLUMN($E30)),VLOOKUP($E30-6,AllData,COLUMN()-COLUMN($E30)))","v":3346.4683485323358},{"$f":"SUM(VLOOKUP($E30,AllData,COLUMN()-1-COLUMN($E30)),VLOOKUP($E30-1,AllData,COLUMN()-1-COLUMN($E30)),VLOOKUP($E30-2,AllData,COLUMN()-1-COLUMN($E30)),VLOOKUP($E30-3,AllData,COLUMN()-1-COLUMN($E30)),VLOOKUP($E30-4,AllData,COLUMN()-1-COLUMN($E30)),VLOOKUP($E30-5,AllData,COLUMN()-1-COLUMN($E30)),VLOOKUP($E30-6,AllData,COLUMN()-1-COLUMN($E30)),VLOOKUP($E30-7,AllData,COLUMN()-1-COLUMN($E30)),VLOOKUP($E30-8,AllData,COLUMN()-1-COLUMN($E30)),VLOOKUP($E30-9,AllData,COLUMN()-1-COLUMN($E30)),VLOOKUP($E30-10,AllData,COLUMN()-1-COLUMN($E30)),VLOOKUP($E30-11,AllData,COLUMN()-1-COLUMN($E30)),VLOOKUP($E30-12,AllData,COLUMN()-1-COLUMN($E30)),VLOOKUP($E30-13,AllData,COLUMN()-1-COLUMN($E30)),VLOOKUP($E30-14,AllData,COLUMN()-1-COLUMN($E30)),VLOOKUP($E30-15,AllData,COLUMN()-1-COLUMN($E30)),VLOOKUP($E30-16,AllData,COLUMN()-1-COLUMN($E30)),VLOOKUP($E30-17,AllData,COLUMN()-1-COLUMN($E30)),VLOOKUP($E30-18,AllData,COLUMN()-1-COLUMN($E30)),VLOOKUP($E30-19,AllData,COLUMN()-1-COLUMN($E30)),VLOOKUP($E30-20,AllData,COLUMN()-1-COLUMN($E30)),VLOOKUP($E30-21,AllData,COLUMN()-1-COLUMN($E30)),VLOOKUP($E30-22,AllData,COLUMN()-1-COLUMN($E30)),VLOOKUP($E30-23,AllData,COLUMN()-1-COLUMN($E30)),VLOOKUP($E30-24,AllData,COLUMN()-1-COLUMN($E30)),VLOOKUP($E30-25,AllData,COLUMN()-1-COLUMN($E30)),VLOOKUP($E30-26,AllData,COLUMN()-1-COLUMN($E30)),VLOOKUP($E30-27,AllData,COLUMN()-1-COLUMN($E30)),VLOOKUP($E30-28,AllData,COLUMN()-1-COLUMN($E30)),VLOOKUP($E30-29,AllData,COLUMN()-1-COLUMN($E30)))","v":9817.8830795195481},{"$f":"VLOOKUP($E30,AllData,COLUMN()-2-COLUMN($E30))","v":156.37722306722176},{"$f":"OR('Cool Graph'!$H$1=35,'Cool Graph'!$H$1=36,'Cool Graph'!$H$1=37,'Cool Graph'!$H$1=38,'Cool Graph'!$H$1=39,'Cool Graph'!$H$1=40,'Cool Graph'!$H$1=41,'Cool Graph'!$H$1=42,'Cool Graph'!$H$1=43,'Cool Graph'!$H$1=44,'Cool Graph'!$H$1=45,'Cool Graph'!$H$1=46,'Cool Graph'!$H$1=47,'Cool Graph'!$H$1=58,'Cool Graph'!$H$1=66)","v":false},{"$f":"SUM(VLOOKUP($E30,AllData,COLUMN()-5-COLUMN($E30)),VLOOKUP($E30-1,AllData,COLUMN()-5-COLUMN($E30)),VLOOKUP($E30-2,AllData,COLUMN()-5-COLUMN($E30)),VLOOKUP($E30-3,AllData,COLUMN()-5-COLUMN($E30)),VLOOKUP($E30-4,AllData,COLUMN()-5-COLUMN($E30)),VLOOKUP($E30-5,AllData,COLUMN()-5-COLUMN($E30)),VLOOKUP($E30-6,AllData,COLUMN()-5-COLUMN($E30)))","v":0},{"$f":"SUM(VLOOKUP($E30,AllData,COLUMN()-6-COLUMN($E30)),VLOOKUP($E30-1,AllData,COLUMN()-6-COLUMN($E30)),VLOOKUP($E30-2,AllData,COLUMN()-6-COLUMN($E30)),VLOOKUP($E30-3,AllData,COLUMN()-6-COLUMN($E30)),VLOOKUP($E30-4,AllData,COLUMN()-6-COLUMN($E30)),VLOOKUP($E30-5,AllData,COLUMN()-6-COLUMN($E30)),VLOOKUP($E30-6,AllData,COLUMN()-6-COLUMN($E30)),VLOOKUP($E30-7,AllData,COLUMN()-6-COLUMN($E30)),VLOOKUP($E30-8,AllData,COLUMN()-6-COLUMN($E30)),VLOOKUP($E30-9,AllData,COLUMN()-6-COLUMN($E30)),VLOOKUP($E30-10,AllData,COLUMN()-6-COLUMN($E30)),VLOOKUP($E30-11,AllData,COLUMN()-6-COLUMN($E30)),VLOOKUP($E30-12,AllData,COLUMN()-6-COLUMN($E30)),VLOOKUP($E30-13,AllData,COLUMN()-6-COLUMN($E30)),VLOOKUP($E30-14,AllData,COLUMN()-6-COLUMN($E30)),VLOOKUP($E30-15,AllData,COLUMN()-6-COLUMN($E30)),VLOOKUP($E30-16,AllData,COLUMN()-6-COLUMN($E30)),VLOOKUP($E30-17,AllData,COLUMN()-6-COLUMN($E30)),VLOOKUP($E30-18,AllData,COLUMN()-6-COLUMN($E30)),VLOOKUP($E30-19,AllData,COLUMN()-6-COLUMN($E30)),VLOOKUP($E30-20,AllData,COLUMN()-6-COLUMN($E30)),VLOOKUP($E30-21,AllData,COLUMN()-6-COLUMN($E30)),VLOOKUP($E30-22,AllData,COLUMN()-6-COLUMN($E30)),VLOOKUP($E30-23,AllData,COLUMN()-6-COLUMN($E30)),VLOOKUP($E30-24,AllData,COLUMN()-6-COLUMN($E30)),VLOOKUP($E30-25,AllData,COLUMN()-6-COLUMN($E30)),VLOOKUP($E30-26,AllData,COLUMN()-6-COLUMN($E30)),VLOOKUP($E30-27,AllData,COLUMN()-6-COLUMN($E30)),VLOOKUP($E30-28,AllData,COLUMN()-6-COLUMN($E30)),VLOOKUP($E30-29,AllData,COLUMN()-6-COLUMN($E30)))","v":1399.48},{"$f":"VLOOKUP($E30,AllData,COLUMN()-7-COLUMN($E30))","v":0},{"$f":"OR('Cool Graph'!$I$1=35,'Cool Graph'!$I$1=36,'Cool Graph'!$I$1=37,'Cool Graph'!$I$1=38,'Cool Graph'!$I$1=39,'Cool Graph'!$I$1=40,'Cool Graph'!$I$1=41,'Cool Graph'!$I$1=42,'Cool Graph'!$I$1=43,'Cool Graph'!$I$1=44,'Cool Graph'!$I$1=45,'Cool Graph'!$I$1=46,'Cool Graph'!$I$1=47,'Cool Graph'!$I$1=58,'Cool Graph'!$I$1=66)","v":false}]
["2011-07-30",{"$f":"OFFSET(OldSchoolJustValues!A31,0,'Cool Graph'!$H$1)","v":0},{"$f":"OFFSET(OldSchoolJustValues!A31,0,'Cool Graph'!$I$1)","v":79.612652985603049},null,{"$f":"IF(NewDate>EndDate,NA(),NewDate)","v":"2011-10-25"},{"$f":"IF($E31>EndDate,NA(),IF($K$2=TRUE,N31,IF('Cool Graph'!$B$17=1,N31,IF('Cool Graph'!$B$17=2,L31,IF('Cool Graph'!$B$17=3,M31,)))))","v":0},{"$f":"IF($E31>EndDate,NA(),IF($O$2=TRUE,J31,IF('Cool Graph'!$B$17=1,Data1!J31,IF('Cool Graph'!$B$17=2,Data1!H31,IF('Cool Graph'!$B$17=3,Data1!I31,)))))","v":82.976568544754429},{"$f":"SUM(VLOOKUP($E31,AllData,COLUMN()-COLUMN($E31)),VLOOKUP($E31-1,AllData,COLUMN()-COLUMN($E31)),VLOOKUP($E31-2,AllData,COLUMN()-COLUMN($E31)),VLOOKUP($E31-3,AllData,COLUMN()-COLUMN($E31)),VLOOKUP($E31-4,AllData,COLUMN()-COLUMN($E31)),VLOOKUP($E31-5,AllData,COLUMN()-COLUMN($E31)),VLOOKUP($E31-6,AllData,COLUMN()-COLUMN($E31)))","v":2912.1855363910227},{"$f":"SUM(VLOOKUP($E31,AllData,COLUMN()-1-COLUMN($E31)),VLOOKUP($E31-1,AllData,COLUMN()-1-COLUMN($E31)),VLOOKUP($E31-2,AllData,COLUMN()-1-COLUMN($E31)),VLOOKUP($E31-3,AllData,COLUMN()-1-COLUMN($E31)),VLOOKUP($E31-4,AllData,COLUMN()-1-COLUMN($E31)),VLOOKUP($E31-5,AllData,COLUMN()-1-COLUMN($E31)),VLOOKUP($E31-6,AllData,COLUMN()-1-COLUMN($E31)),VLOOKUP($E31-7,AllData,COLUMN()-1-COLUMN($E31)),VLOOKUP($E31-8,AllData,COLUMN()-1-COLUMN($E31)),VLOOKUP($E31-9,AllData,COLUMN()-1-COLUMN($E31)),VLOOKUP($E31-10,AllData,COLUMN()-1-COLUMN($E31)),VLOOKUP($E31-11,AllData,COLUMN()-1-COLUMN($E31)),VLOOKUP($E31-12,AllData,COLUMN()-1-COLUMN($E31)),VLOOKUP($E31-13,AllData,COLUMN()-1-COLUMN($E31)),VLOOKUP($E31-14,AllData,COLUMN()-1-COLUMN($E31)),VLOOKUP($E31-15,AllData,COLUMN()-1-COLUMN($E31)),VLOOKUP($E31-16,AllData,COLUMN()-1-COLUMN($E31)),VLOOKUP($E31-17,AllData,COLUMN()-1-COLUMN($E31)),VLOOKUP($E31-18,AllData,COLUMN()-1-COLUMN($E31)),VLOOKUP($E31-19,AllData,COLUMN()-1-COLUMN($E31)),VLOOKUP($E31-20,AllData,COLUMN()-1-COLUMN($E31)),VLOOKUP($E31-21,AllData,COLUMN()-1-COLUMN($E31)),VLOOKUP($E31-22,AllData,COLUMN()-1-COLUMN($E31)),VLOOKUP($E31-23,AllData,COLUMN()-1-COLUMN($E31)),VLOOKUP($E31-24,AllData,COLUMN()-1-COLUMN($E31)),VLOOKUP($E31-25,AllData,COLUMN()-1-COLUMN($E31)),VLOOKUP($E31-26,AllData,COLUMN()-1-COLUMN($E31)),VLOOKUP($E31-27,AllData,COLUMN()-1-COLUMN($E31)),VLOOKUP($E31-28,AllData,COLUMN()-1-COLUMN($E31)),VLOOKUP($E31-29,AllData,COLUMN()-1-COLUMN($E31)))","v":9667.6430795195483},{"$f":"VLOOKUP($E31,AllData,COLUMN()-2-COLUMN($E31))","v":82.976568544754429},{"$f":"OR('Cool Graph'!$H$1=35,'Cool Graph'!$H$1=36,'Cool Graph'!$H$1=37,'Cool Graph'!$H$1=38,'Cool Graph'!$H$1=39,'Cool Graph'!$H$1=40,'Cool Graph'!$H$1=41,'Cool Graph'!$H$1=42,'Cool Graph'!$H$1=43,'Cool Graph'!$H$1=44,'Cool Graph'!$H$1=45,'Cool Graph'!$H$1=46,'Cool Graph'!$H$1=47,'Cool Graph'!$H$1=58,'Cool Graph'!$H$1=66)","v":false},{"$f":"SUM(VLOOKUP($E31,AllData,COLUMN()-5-COLUMN($E31)),VLOOKUP($E31-1,AllData,COLUMN()-5-COLUMN($E31)),VLOOKUP($E31-2,AllData,COLUMN()-5-COLUMN($E31)),VLOOKUP($E31-3,AllData,COLUMN()-5-COLUMN($E31)),VLOOKUP($E31-4,AllData,COLUMN()-5-COLUMN($E31)),VLOOKUP($E31-5,AllData,COLUMN()-5-COLUMN($E31)),VLOOKUP($E31-6,AllData,COLUMN()-5-COLUMN($E31)))","v":0},{"$f":"SUM(VLOOKUP($E31,AllData,COLUMN()-6-COLUMN($E31)),VLOOKUP($E31-1,AllData,COLUMN()-6-COLUMN($E31)),VLOOKUP($E31-2,AllData,COLUMN()-6-COLUMN($E31)),VLOOKUP($E31-3,AllData,COLUMN()-6-COLUMN($E31)),VLOOKUP($E31-4,AllData,COLUMN()-6-COLUMN($E31)),VLOOKUP($E31-5,AllData,COLUMN()-6-COLUMN($E31)),VLOOKUP($E31-6,AllData,COLUMN()-6-COLUMN($E31)),VLOOKUP($E31-7,AllData,COLUMN()-6-COLUMN($E31)),VLOOKUP($E31-8,AllData,COLUMN()-6-COLUMN($E31)),VLOOKUP($E31-9,AllData,COLUMN()-6-COLUMN($E31)),VLOOKUP($E31-10,AllData,COLUMN()-6-COLUMN($E31)),VLOOKUP($E31-11,AllData,COLUMN()-6-COLUMN($E31)),VLOOKUP($E31-12,AllData,COLUMN()-6-COLUMN($E31)),VLOOKUP($E31-13,AllData,COLUMN()-6-COLUMN($E31)),VLOOKUP($E31-14,AllData,COLUMN()-6-COLUMN($E31)),VLOOKUP($E31-15,AllData,COLUMN()-6-COLUMN($E31)),VLOOKUP($E31-16,AllData,COLUMN()-6-COLUMN($E31)),VLOOKUP($E31-17,AllData,COLUMN()-6-COLUMN($E31)),VLOOKUP($E31-18,AllData,COLUMN()-6-COLUMN($E31)),VLOOKUP($E31-19,AllData,COLUMN()-6-COLUMN($E31)),VLOOKUP($E31-20,AllData,COLUMN()-6-COLUMN($E31)),VLOOKUP($E31-21,AllData,COLUMN()-6-COLUMN($E31)),VLOOKUP($E31-22,AllData,COLUMN()-6-COLUMN($E31)),VLOOKUP($E31-23,AllData,COLUMN()-6-COLUMN($E31)),VLOOKUP($E31-24,AllData,COLUMN()-6-COLUMN($E31)),VLOOKUP($E31-25,AllData,COLUMN()-6-COLUMN($E31)),VLOOKUP($E31-26,AllData,COLUMN()-6-COLUMN($E31)),VLOOKUP($E31-27,AllData,COLUMN()-6-COLUMN($E31)),VLOOKUP($E31-28,AllData,COLUMN()-6-COLUMN($E31)),VLOOKUP($E31-29,AllData,COLUMN()-6-COLUMN($E31)))","v":1399.48},{"$f":"VLOOKUP($E31,AllData,COLUMN()-7-COLUMN($E31))","v":0},{"$f":"OR('Cool Graph'!$I$1=35,'Cool Graph'!$I$1=36,'Cool Graph'!$I$1=37,'Cool Graph'!$I$1=38,'Cool Graph'!$I$1=39,'Cool Graph'!$I$1=40,'Cool Graph'!$I$1=41,'Cool Graph'!$I$1=42,'Cool Graph'!$I$1=43,'Cool Graph'!$I$1=44,'Cool Graph'!$I$1=45,'Cool Graph'!$I$1=46,'Cool Graph'!$I$1=47,'Cool Graph'!$I$1=58,'Cool Graph'!$I$1=66)","v":false}]
["2011-07-31",{"$f":"OFFSET(OldSchoolJustValues!A32,0,'Cool Graph'!$H$1)","v":0},{"$f":"OFFSET(OldSchoolJustValues!A32,0,'Cool Graph'!$I$1)","v":217.15325483580358},null,{"$f":"IF(NewDate>EndDate,NA(),NewDate)","v":"2011-10-26"},{"$f":"IF($E32>EndDate,NA(),IF($K$2=TRUE,N32,IF('Cool Graph'!$B$17=1,N32,IF('Cool Graph'!$B$17=2,L32,IF('Cool Graph'!$B$17=3,M32,)))))","v":0},{"$f":"IF($E32>EndDate,NA(),IF($O$2=TRUE,J32,IF('Cool Graph'!$B$17=1,Data1!J32,IF('Cool Graph'!$B$17=2,Data1!H32,IF('Cool Graph'!$B$17=3,Data1!I32,)))))","v":120.53656854475449},{"$f":"SUM(VLOOKUP($E32,AllData,COLUMN()-COLUMN($E32)),VLOOKUP($E32-1,AllData,COLUMN()-COLUMN($E32)),VLOOKUP($E32-2,AllData,COLUMN()-COLUMN($E32)),VLOOKUP($E32-3,AllData,COLUMN()-COLUMN($E32)),VLOOKUP($E32-4,AllData,COLUMN()-COLUMN($E32)),VLOOKUP($E32-5,AllData,COLUMN()-COLUMN($E32)),VLOOKUP($E32-6,AllData,COLUMN()-COLUMN($E32)))","v":2298.1257130104646},{"$f":"SUM(VLOOKUP($E32,AllData,COLUMN()-1-COLUMN($E32)),VLOOKUP($E32-1,AllData,COLUMN()-1-COLUMN($E32)),VLOOKUP($E32-2,AllData,COLUMN()-1-COLUMN($E32)),VLOOKUP($E32-3,AllData,COLUMN()-1-COLUMN($E32)),VLOOKUP($E32-4,AllData,COLUMN()-1-COLUMN($E32)),VLOOKUP($E32-5,AllData,COLUMN()-1-COLUMN($E32)),VLOOKUP($E32-6,AllData,COLUMN()-1-COLUMN($E32)),VLOOKUP($E32-7,AllData,COLUMN()-1-COLUMN($E32)),VLOOKUP($E32-8,AllData,COLUMN()-1-COLUMN($E32)),VLOOKUP($E32-9,AllData,COLUMN()-1-COLUMN($E32)),VLOOKUP($E32-10,AllData,COLUMN()-1-COLUMN($E32)),VLOOKUP($E32-11,AllData,COLUMN()-1-COLUMN($E32)),VLOOKUP($E32-12,AllData,COLUMN()-1-COLUMN($E32)),VLOOKUP($E32-13,AllData,COLUMN()-1-COLUMN($E32)),VLOOKUP($E32-14,AllData,COLUMN()-1-COLUMN($E32)),VLOOKUP($E32-15,AllData,COLUMN()-1-COLUMN($E32)),VLOOKUP($E32-16,AllData,COLUMN()-1-COLUMN($E32)),VLOOKUP($E32-17,AllData,COLUMN()-1-COLUMN($E32)),VLOOKUP($E32-18,AllData,COLUMN()-1-COLUMN($E32)),VLOOKUP($E32-19,AllData,COLUMN()-1-COLUMN($E32)),VLOOKUP($E32-20,AllData,COLUMN()-1-COLUMN($E32)),VLOOKUP($E32-21,AllData,COLUMN()-1-COLUMN($E32)),VLOOKUP($E32-22,AllData,COLUMN()-1-COLUMN($E32)),VLOOKUP($E32-23,AllData,COLUMN()-1-COLUMN($E32)),VLOOKUP($E32-24,AllData,COLUMN()-1-COLUMN($E32)),VLOOKUP($E32-25,AllData,COLUMN()-1-COLUMN($E32)),VLOOKUP($E32-26,AllData,COLUMN()-1-COLUMN($E32)),VLOOKUP($E32-27,AllData,COLUMN()-1-COLUMN($E32)),VLOOKUP($E32-28,AllData,COLUMN()-1-COLUMN($E32)),VLOOKUP($E32-29,AllData,COLUMN()-1-COLUMN($E32)))","v":9552.7333055842337},{"$f":"VLOOKUP($E32,AllData,COLUMN()-2-COLUMN($E32))","v":120.53656854475449},{"$f":"OR('Cool Graph'!$H$1=35,'Cool Graph'!$H$1=36,'Cool Graph'!$H$1=37,'Cool Graph'!$H$1=38,'Cool Graph'!$H$1=39,'Cool Graph'!$H$1=40,'Cool Graph'!$H$1=41,'Cool Graph'!$H$1=42,'Cool Graph'!$H$1=43,'Cool Graph'!$H$1=44,'Cool Graph'!$H$1=45,'Cool Graph'!$H$1=46,'Cool Graph'!$H$1=47,'Cool Graph'!$H$1=58,'Cool Graph'!$H$1=66)","v":false},{"$f":"SUM(VLOOKUP($E32,AllData,COLUMN()-5-COLUMN($E32)),VLOOKUP($E32-1,AllData,COLUMN()-5-COLUMN($E32)),VLOOKUP($E32-2,AllData,COLUMN()-5-COLUMN($E32)),VLOOKUP($E32-3,AllData,COLUMN()-5-COLUMN($E32)),VLOOKUP($E32-4,AllData,COLUMN()-5-COLUMN($E32)),VLOOKUP($E32-5,AllData,COLUMN()-5-COLUMN($E32)),VLOOKUP($E32-6,AllData,COLUMN()-5-COLUMN($E32)))","v":0},{"$f":"SUM(VLOOKUP($E32,AllData,COLUMN()-6-COLUMN($E32)),VLOOKUP($E32-1,AllData,COLUMN()-6-COLUMN($E32)),VLOOKUP($E32-2,AllData,COLUMN()-6-COLUMN($E32)),VLOOKUP($E32-3,AllData,COLUMN()-6-COLUMN($E32)),VLOOKUP($E32-4,AllData,COLUMN()-6-COLUMN($E32)),VLOOKUP($E32-5,AllData,COLUMN()-6-COLUMN($E32)),VLOOKUP($E32-6,AllData,COLUMN()-6-COLUMN($E32)),VLOOKUP($E32-7,AllData,COLUMN()-6-COLUMN($E32)),VLOOKUP($E32-8,AllData,COLUMN()-6-COLUMN($E32)),VLOOKUP($E32-9,AllData,COLUMN()-6-COLUMN($E32)),VLOOKUP($E32-10,AllData,COLUMN()-6-COLUMN($E32)),VLOOKUP($E32-11,AllData,COLUMN()-6-COLUMN($E32)),VLOOKUP($E32-12,AllData,COLUMN()-6-COLUMN($E32)),VLOOKUP($E32-13,AllData,COLUMN()-6-COLUMN($E32)),VLOOKUP($E32-14,AllData,COLUMN()-6-COLUMN($E32)),VLOOKUP($E32-15,AllData,COLUMN()-6-COLUMN($E32)),VLOOKUP($E32-16,AllData,COLUMN()-6-COLUMN($E32)),VLOOKUP($E32-17,AllData,COLUMN()-6-COLUMN($E32)),VLOOKUP($E32-18,AllData,COLUMN()-6-COLUMN($E32)),VLOOKUP($E32-19,AllData,COLUMN()-6-COLUMN($E32)),VLOOKUP($E32-20,AllData,COLUMN()-6-COLUMN($E32)),VLOOKUP($E32-21,AllData,COLUMN()-6-COLUMN($E32)),VLOOKUP($E32-22,AllData,COLUMN()-6-COLUMN($E32)),VLOOKUP($E32-23,AllData,COLUMN()-6-COLUMN($E32)),VLOOKUP($E32-24,AllData,COLUMN()-6-COLUMN($E32)),VLOOKUP($E32-25,AllData,COLUMN()-6-COLUMN($E32)),VLOOKUP($E32-26,AllData,COLUMN()-6-COLUMN($E32)),VLOOKUP($E32-27,AllData,COLUMN()-6-COLUMN($E32)),VLOOKUP($E32-28,AllData,COLUMN()-6-COLUMN($E32)),VLOOKUP($E32-29,AllData,COLUMN()-6-COLUMN($E32)))","v":1399.48},{"$f":"VLOOKUP($E32,AllData,COLUMN()-7-COLUMN($E32))","v":0},{"$f":"OR('Cool Graph'!$I$1=35,'Cool Graph'!$I$1=36,'Cool Graph'!$I$1=37,'Cool Graph'!$I$1=38,'Cool Graph'!$I$1=39,'Cool Graph'!$I$1=40,'Cool Graph'!$I$1=41,'Cool Graph'!$I$1=42,'Cool Graph'!$I$1=43,'Cool Graph'!$I$1=44,'Cool Graph'!$I$1=45,'Cool Graph'!$I$1=46,'Cool Graph'!$I$1=47,'Cool Graph'!$I$1=58,'Cool Graph'!$I$1=66)","v":false}]
["2011-08-01",{"$f":"OFFSET(OldSchoolJustValues!A33,0,'Cool Graph'!$H$1)","v":0},{"$f":"OFFSET(OldSchoolJustValues!A33,0,'Cool Graph'!$I$1)","v":-99.59},null,{"$f":"IF(NewDate>EndDate,NA(),NewDate)","v":"2011-10-27"},{"$f":"IF($E33>EndDate,NA(),IF($K$2=TRUE,N33,IF('Cool Graph'!$B$17=1,N33,IF('Cool Graph'!$B$17=2,L33,IF('Cool Graph'!$B$17=3,M33,)))))","v":0},{"$f":"IF($E33>EndDate,NA(),IF($O$2=TRUE,J33,IF('Cool Graph'!$B$17=1,Data1!J33,IF('Cool Graph'!$B$17=2,Data1!H33,IF('Cool Graph'!$B$17=3,Data1!I33,)))))","v":549.38645079845992},{"$f":"SUM(VLOOKUP($E33,AllData,COLUMN()-COLUMN($E33)),VLOOKUP($E33-1,AllData,COLUMN()-COLUMN($E33)),VLOOKUP($E33-2,AllData,COLUMN()-COLUMN($E33)),VLOOKUP($E33-3,AllData,COLUMN()-COLUMN($E33)),VLOOKUP($E33-4,AllData,COLUMN()-COLUMN($E33)),VLOOKUP($E33-5,AllData,COLUMN()-COLUMN($E33)),VLOOKUP($E33-6,AllData,COLUMN()-COLUMN($E33)))","v":2146.3495948058157},{"$f":"SUM(VLOOKUP($E33,AllData,COLUMN()-1-COLUMN($E33)),VLOOKUP($E33-1,AllData,COLUMN()-1-COLUMN($E33)),VLOOKUP($E33-2,AllData,COLUMN()-1-COLUMN($E33)),VLOOKUP($E33-3,AllData,COLUMN()-1-COLUMN($E33)),VLOOKUP($E33-4,AllData,COLUMN()-1-COLUMN($E33)),VLOOKUP($E33-5,AllData,COLUMN()-1-COLUMN($E33)),VLOOKUP($E33-6,AllData,COLUMN()-1-COLUMN($E33)),VLOOKUP($E33-7,AllData,COLUMN()-1-COLUMN($E33)),VLOOKUP($E33-8,AllData,COLUMN()-1-COLUMN($E33)),VLOOKUP($E33-9,AllData,COLUMN()-1-COLUMN($E33)),VLOOKUP($E33-10,AllData,COLUMN()-1-COLUMN($E33)),VLOOKUP($E33-11,AllData,COLUMN()-1-COLUMN($E33)),VLOOKUP($E33-12,AllData,COLUMN()-1-COLUMN($E33)),VLOOKUP($E33-13,AllData,COLUMN()-1-COLUMN($E33)),VLOOKUP($E33-14,AllData,COLUMN()-1-COLUMN($E33)),VLOOKUP($E33-15,AllData,COLUMN()-1-COLUMN($E33)),VLOOKUP($E33-16,AllData,COLUMN()-1-COLUMN($E33)),VLOOKUP($E33-17,AllData,COLUMN()-1-COLUMN($E33)),VLOOKUP($E33-18,AllData,COLUMN()-1-COLUMN($E33)),VLOOKUP($E33-19,AllData,COLUMN()-1-COLUMN($E33)),VLOOKUP($E33-20,AllData,COLUMN()-1-COLUMN($E33)),VLOOKUP($E33-21,AllData,COLUMN()-1-COLUMN($E33)),VLOOKUP($E33-22,AllData,COLUMN()-1-COLUMN($E33)),VLOOKUP($E33-23,AllData,COLUMN()-1-COLUMN($E33)),VLOOKUP($E33-24,AllData,COLUMN()-1-COLUMN($E33)),VLOOKUP($E33-25,AllData,COLUMN()-1-COLUMN($E33)),VLOOKUP($E33-26,AllData,COLUMN()-1-COLUMN($E33)),VLOOKUP($E33-27,AllData,COLUMN()-1-COLUMN($E33)),VLOOKUP($E33-28,AllData,COLUMN()-1-COLUMN($E33)),VLOOKUP($E33-29,AllData,COLUMN()-1-COLUMN($E33)))","v":9824.8619884190812},{"$f":"VLOOKUP($E33,AllData,COLUMN()-2-COLUMN($E33))","v":549.38645079845992},{"$f":"OR('Cool Graph'!$H$1=35,'Cool Graph'!$H$1=36,'Cool Graph'!$H$1=37,'Cool Graph'!$H$1=38,'Cool Graph'!$H$1=39,'Cool Graph'!$H$1=40,'Cool Graph'!$H$1=41,'Cool Graph'!$H$1=42,'Cool Graph'!$H$1=43,'Cool Graph'!$H$1=44,'Cool Graph'!$H$1=45,'Cool Graph'!$H$1=46,'Cool Graph'!$H$1=47,'Cool Graph'!$H$1=58,'Cool Graph'!$H$1=66)","v":false},{"$f":"SUM(VLOOKUP($E33,AllData,COLUMN()-5-COLUMN($E33)),VLOOKUP($E33-1,AllData,COLUMN()-5-COLUMN($E33)),VLOOKUP($E33-2,AllData,COLUMN()-5-COLUMN($E33)),VLOOKUP($E33-3,AllData,COLUMN()-5-COLUMN($E33)),VLOOKUP($E33-4,AllData,COLUMN()-5-COLUMN($E33)),VLOOKUP($E33-5,AllData,COLUMN()-5-COLUMN($E33)),VLOOKUP($E33-6,AllData,COLUMN()-5-COLUMN($E33)))","v":0},{"$f":"SUM(VLOOKUP($E33,AllData,COLUMN()-6-COLUMN($E33)),VLOOKUP($E33-1,AllData,COLUMN()-6-COLUMN($E33)),VLOOKUP($E33-2,AllData,COLUMN()-6-COLUMN($E33)),VLOOKUP($E33-3,AllData,COLUMN()-6-COLUMN($E33)),VLOOKUP($E33-4,AllData,COLUMN()-6-COLUMN($E33)),VLOOKUP($E33-5,AllData,COLUMN()-6-COLUMN($E33)),VLOOKUP($E33-6,AllData,COLUMN()-6-COLUMN($E33)),VLOOKUP($E33-7,AllData,COLUMN()-6-COLUMN($E33)),VLOOKUP($E33-8,AllData,COLUMN()-6-COLUMN($E33)),VLOOKUP($E33-9,AllData,COLUMN()-6-COLUMN($E33)),VLOOKUP($E33-10,AllData,COLUMN()-6-COLUMN($E33)),VLOOKUP($E33-11,AllData,COLUMN()-6-COLUMN($E33)),VLOOKUP($E33-12,AllData,COLUMN()-6-COLUMN($E33)),VLOOKUP($E33-13,AllData,COLUMN()-6-COLUMN($E33)),VLOOKUP($E33-14,AllData,COLUMN()-6-COLUMN($E33)),VLOOKUP($E33-15,AllData,COLUMN()-6-COLUMN($E33)),VLOOKUP($E33-16,AllData,COLUMN()-6-COLUMN($E33)),VLOOKUP($E33-17,AllData,COLUMN()-6-COLUMN($E33)),VLOOKUP($E33-18,AllData,COLUMN()-6-COLUMN($E33)),VLOOKUP($E33-19,AllData,COLUMN()-6-COLUMN($E33)),VLOOKUP($E33-20,AllData,COLUMN()-6-COLUMN($E33)),VLOOKUP($E33-21,AllData,COLUMN()-6-COLUMN($E33)),VLOOKUP($E33-22,AllData,COLUMN()-6-COLUMN($E33)),VLOOKUP($E33-23,AllData,COLUMN()-6-COLUMN($E33)),VLOOKUP($E33-24,AllData,COLUMN()-6-COLUMN($E33)),VLOOKUP($E33-25,AllData,COLUMN()-6-COLUMN($E33)),VLOOKUP($E33-26,AllData,COLUMN()-6-COLUMN($E33)),VLOOKUP($E33-27,AllData,COLUMN()-6-COLUMN($E33)),VLOOKUP($E33-28,AllData,COLUMN()-6-COLUMN($E33)),VLOOKUP($E33-29,AllData,COLUMN()-6-COLUMN($E33)))","v":1399.48},{"$f":"VLOOKUP($E33,AllData,COLUMN()-7-COLUMN($E33))","v":0},{"$f":"OR('Cool Graph'!$I$1=35,'Cool Graph'!$I$1=36,'Cool Graph'!$I$1=37,'Cool Graph'!$I$1=38,'Cool Graph'!$I$1=39,'Cool Graph'!$I$1=40,'Cool Graph'!$I$1=41,'Cool Graph'!$I$1=42,'Cool Graph'!$I$1=43,'Cool Graph'!$I$1=44,'Cool Graph'!$I$1=45,'Cool Graph'!$I$1=46,'Cool Graph'!$I$1=47,'Cool Graph'!$I$1=58,'Cool Graph'!$I$1=66)","v":false}]
["2011-08-02",{"$f":"OFFSET(OldSchoolJustValues!A34,0,'Cool Graph'!$H$1)","v":0},{"$f":"OFFSET(OldSchoolJustValues!A34,0,'Cool Graph'!$I$1)","v":-50.11367350719847},null,{"$f":"IF(NewDate>EndDate,NA(),NewDate)","v":"2011-10-28"},{"$f":"IF($E34>EndDate,NA(),IF($K$2=TRUE,N34,IF('Cool Graph'!$B$17=1,N34,IF('Cool Graph'!$B$17=2,L34,IF('Cool Graph'!$B$17=3,M34,)))))","v":0},{"$f":"IF($E34>EndDate,NA(),IF($O$2=TRUE,J34,IF('Cool Graph'!$B$17=1,Data1!J34,IF('Cool Graph'!$B$17=2,Data1!H34,IF('Cool Graph'!$B$17=3,Data1!I34,)))))","v":225.23988225370536},{"$f":"SUM(VLOOKUP($E34,AllData,COLUMN()-COLUMN($E34)),VLOOKUP($E34-1,AllData,COLUMN()-COLUMN($E34)),VLOOKUP($E34-2,AllData,COLUMN()-COLUMN($E34)),VLOOKUP($E34-3,AllData,COLUMN()-COLUMN($E34)),VLOOKUP($E34-4,AllData,COLUMN()-COLUMN($E34)),VLOOKUP($E34-5,AllData,COLUMN()-COLUMN($E34)),VLOOKUP($E34-6,AllData,COLUMN()-COLUMN($E34)))","v":1836.3830262610613},{"$f":"SUM(VLOOKUP($E34,AllData,COLUMN()-1-COLUMN($E34)),VLOOKUP($E34-1,AllData,COLUMN()-1-COLUMN($E34)),VLOOKUP($E34-2,AllData,COLUMN()-1-COLUMN($E34)),VLOOKUP($E34-3,AllData,COLUMN()-1-COLUMN($E34)),VLOOKUP($E34-4,AllData,COLUMN()-1-COLUMN($E34)),VLOOKUP($E34-5,AllData,COLUMN()-1-COLUMN($E34)),VLOOKUP($E34-6,AllData,COLUMN()-1-COLUMN($E34)),VLOOKUP($E34-7,AllData,COLUMN()-1-COLUMN($E34)),VLOOKUP($E34-8,AllData,COLUMN()-1-COLUMN($E34)),VLOOKUP($E34-9,AllData,COLUMN()-1-COLUMN($E34)),VLOOKUP($E34-10,AllData,COLUMN()-1-COLUMN($E34)),VLOOKUP($E34-11,AllData,COLUMN()-1-COLUMN($E34)),VLOOKUP($E34-12,AllData,COLUMN()-1-COLUMN($E34)),VLOOKUP($E34-13,AllData,COLUMN()-1-COLUMN($E34)),VLOOKUP($E34-14,AllData,COLUMN()-1-COLUMN($E34)),VLOOKUP($E34-15,AllData,COLUMN()-1-COLUMN($E34)),VLOOKUP($E34-16,AllData,COLUMN()-1-COLUMN($E34)),VLOOKUP($E34-17,AllData,COLUMN()-1-COLUMN($E34)),VLOOKUP($E34-18,AllData,COLUMN()-1-COLUMN($E34)),VLOOKUP($E34-19,AllData,COLUMN()-1-COLUMN($E34)),VLOOKUP($E34-20,AllData,COLUMN()-1-COLUMN($E34)),VLOOKUP($E34-21,AllData,COLUMN()-1-COLUMN($E34)),VLOOKUP($E34-22,AllData,COLUMN()-1-COLUMN($E34)),VLOOKUP($E34-23,AllData,COLUMN()-1-COLUMN($E34)),VLOOKUP($E34-24,AllData,COLUMN()-1-COLUMN($E34)),VLOOKUP($E34-25,AllData,COLUMN()-1-COLUMN($E34)),VLOOKUP($E34-26,AllData,COLUMN()-1-COLUMN($E34)),VLOOKUP($E34-27,AllData,COLUMN()-1-COLUMN($E34)),VLOOKUP($E34-28,AllData,COLUMN()-1-COLUMN($E34)),VLOOKUP($E34-29,AllData,COLUMN()-1-COLUMN($E34)))","v":9418.3147462219586},{"$f":"VLOOKUP($E34,AllData,COLUMN()-2-COLUMN($E34))","v":225.23988225370536},{"$f":"OR('Cool Graph'!$H$1=35,'Cool Graph'!$H$1=36,'Cool Graph'!$H$1=37,'Cool Graph'!$H$1=38,'Cool Graph'!$H$1=39,'Cool Graph'!$H$1=40,'Cool Graph'!$H$1=41,'Cool Graph'!$H$1=42,'Cool Graph'!$H$1=43,'Cool Graph'!$H$1=44,'Cool Graph'!$H$1=45,'Cool Graph'!$H$1=46,'Cool Graph'!$H$1=47,'Cool Graph'!$H$1=58,'Cool Graph'!$H$1=66)","v":false},{"$f":"SUM(VLOOKUP($E34,AllData,COLUMN()-5-COLUMN($E34)),VLOOKUP($E34-1,AllData,COLUMN()-5-COLUMN($E34)),VLOOKUP($E34-2,AllData,COLUMN()-5-COLUMN($E34)),VLOOKUP($E34-3,AllData,COLUMN()-5-COLUMN($E34)),VLOOKUP($E34-4,AllData,COLUMN()-5-COLUMN($E34)),VLOOKUP($E34-5,AllData,COLUMN()-5-COLUMN($E34)),VLOOKUP($E34-6,AllData,COLUMN()-5-COLUMN($E34)))","v":0},{"$f":"SUM(VLOOKUP($E34,AllData,COLUMN()-6-COLUMN($E34)),VLOOKUP($E34-1,AllData,COLUMN()-6-COLUMN($E34)),VLOOKUP($E34-2,AllData,COLUMN()-6-COLUMN($E34)),VLOOKUP($E34-3,AllData,COLUMN()-6-COLUMN($E34)),VLOOKUP($E34-4,AllData,COLUMN()-6-COLUMN($E34)),VLOOKUP($E34-5,AllData,COLUMN()-6-COLUMN($E34)),VLOOKUP($E34-6,AllData,COLUMN()-6-COLUMN($E34)),VLOOKUP($E34-7,AllData,COLUMN()-6-COLUMN($E34)),VLOOKUP($E34-8,AllData,COLUMN()-6-COLUMN($E34)),VLOOKUP($E34-9,AllData,COLUMN()-6-COLUMN($E34)),VLOOKUP($E34-10,AllData,COLUMN()-6-COLUMN($E34)),VLOOKUP($E34-11,AllData,COLUMN()-6-COLUMN($E34)),VLOOKUP($E34-12,AllData,COLUMN()-6-COLUMN($E34)),VLOOKUP($E34-13,AllData,COLUMN()-6-COLUMN($E34)),VLOOKUP($E34-14,AllData,COLUMN()-6-COLUMN($E34)),VLOOKUP($E34-15,AllData,COLUMN()-6-COLUMN($E34)),VLOOKUP($E34-16,AllData,COLUMN()-6-COLUMN($E34)),VLOOKUP($E34-17,AllData,COLUMN()-6-COLUMN($E34)),VLOOKUP($E34-18,AllData,COLUMN()-6-COLUMN($E34)),VLOOKUP($E34-19,AllData,COLUMN()-6-COLUMN($E34)),VLOOKUP($E34-20,AllData,COLUMN()-6-COLUMN($E34)),VLOOKUP($E34-21,AllData,COLUMN()-6-COLUMN($E34)),VLOOKUP($E34-22,AllData,COLUMN()-6-COLUMN($E34)),VLOOKUP($E34-23,AllData,COLUMN()-6-COLUMN($E34)),VLOOKUP($E34-24,AllData,COLUMN()-6-COLUMN($E34)),VLOOKUP($E34-25,AllData,COLUMN()-6-COLUMN($E34)),VLOOKUP($E34-26,AllData,COLUMN()-6-COLUMN($E34)),VLOOKUP($E34-27,AllData,COLUMN()-6-COLUMN($E34)),VLOOKUP($E34-28,AllData,COLUMN()-6-COLUMN($E34)),VLOOKUP($E34-29,AllData,COLUMN()-6-COLUMN($E34)))","v":1369.48},{"$f":"VLOOKUP($E34,AllData,COLUMN()-7-COLUMN($E34))","v":0},{"$f":"OR('Cool Graph'!$I$1=35,'Cool Graph'!$I$1=36,'Cool Graph'!$I$1=37,'Cool Graph'!$I$1=38,'Cool Graph'!$I$1=39,'Cool Graph'!$I$1=40,'Cool Graph'!$I$1=41,'Cool Graph'!$I$1=42,'Cool Graph'!$I$1=43,'Cool Graph'!$I$1=44,'Cool Graph'!$I$1=45,'Cool Graph'!$I$1=46,'Cool Graph'!$I$1=47,'Cool Graph'!$I$1=58,'Cool Graph'!$I$1=66)","v":false}]
["2011-08-03",{"$f":"OFFSET(OldSchoolJustValues!A35,0,'Cool Graph'!$H$1)","v":0},{"$f":"OFFSET(OldSchoolJustValues!A35,0,'Cool Graph'!$I$1)","v":307.9098822537054},null,{"$f":"IF(NewDate>EndDate,NA(),NewDate)","v":"2011-10-29"},{"$f":"IF($E35>EndDate,NA(),IF($K$2=TRUE,N35,IF('Cool Graph'!$B$17=1,N35,IF('Cool Graph'!$B$17=2,L35,IF('Cool Graph'!$B$17=3,M35,)))))","v":0},{"$f":"IF($E35>EndDate,NA(),IF($O$2=TRUE,J35,IF('Cool Graph'!$B$17=1,Data1!J35,IF('Cool Graph'!$B$17=2,Data1!H35,IF('Cool Graph'!$B$17=3,Data1!I35,)))))","v":169.00656854475446},{"$f":"SUM(VLOOKUP($E35,AllData,COLUMN()-COLUMN($E35)),VLOOKUP($E35-1,AllData,COLUMN()-COLUMN($E35)),VLOOKUP($E35-2,AllData,COLUMN()-COLUMN($E35)),VLOOKUP($E35-3,AllData,COLUMN()-COLUMN($E35)),VLOOKUP($E35-4,AllData,COLUMN()-COLUMN($E35)),VLOOKUP($E35-5,AllData,COLUMN()-COLUMN($E35)),VLOOKUP($E35-6,AllData,COLUMN()-COLUMN($E35)))","v":1938.0463399700122},{"$f":"SUM(VLOOKUP($E35,AllData,COLUMN()-1-COLUMN($E35)),VLOOKUP($E35-1,AllData,COLUMN()-1-COLUMN($E35)),VLOOKUP($E35-2,AllData,COLUMN()-1-COLUMN($E35)),VLOOKUP($E35-3,AllData,COLUMN()-1-COLUMN($E35)),VLOOKUP($E35-4,AllData,COLUMN()-1-COLUMN($E35)),VLOOKUP($E35-5,AllData,COLUMN()-1-COLUMN($E35)),VLOOKUP($E35-6,AllData,COLUMN()-1-COLUMN($E35)),VLOOKUP($E35-7,AllData,COLUMN()-1-COLUMN($E35)),VLOOKUP($E35-8,AllData,COLUMN()-1-COLUMN($E35)),VLOOKUP($E35-9,AllData,COLUMN()-1-COLUMN($E35)),VLOOKUP($E35-10,AllData,COLUMN()-1-COLUMN($E35)),VLOOKUP($E35-11,AllData,COLUMN()-1-COLUMN($E35)),VLOOKUP($E35-12,AllData,COLUMN()-1-COLUMN($E35)),VLOOKUP($E35-13,AllData,COLUMN()-1-COLUMN($E35)),VLOOKUP($E35-14,AllData,COLUMN()-1-COLUMN($E35)),VLOOKUP($E35-15,AllData,COLUMN()-1-COLUMN($E35)),VLOOKUP($E35-16,AllData,COLUMN()-1-COLUMN($E35)),VLOOKUP($E35-17,AllData,COLUMN()-1-COLUMN($E35)),VLOOKUP($E35-18,AllData,COLUMN()-1-COLUMN($E35)),VLOOKUP($E35-19,AllData,COLUMN()-1-COLUMN($E35)),VLOOKUP($E35-20,AllData,COLUMN()-1-COLUMN($E35)),VLOOKUP($E35-21,AllData,COLUMN()-1-COLUMN($E35)),VLOOKUP($E35-22,AllData,COLUMN()-1-COLUMN($E35)),VLOOKUP($E35-23,AllData,COLUMN()-1-COLUMN($E35)),VLOOKUP($E35-24,AllData,COLUMN()-1-COLUMN($E35)),VLOOKUP($E35-25,AllData,COLUMN()-1-COLUMN($E35)),VLOOKUP($E35-26,AllData,COLUMN()-1-COLUMN($E35)),VLOOKUP($E35-27,AllData,COLUMN()-1-COLUMN($E35)),VLOOKUP($E35-28,AllData,COLUMN()-1-COLUMN($E35)),VLOOKUP($E35-29,AllData,COLUMN()-1-COLUMN($E35)))","v":8711.634522160999},{"$f":"VLOOKUP($E35,AllData,COLUMN()-2-COLUMN($E35))","v":169.00656854475446},{"$f":"OR('Cool Graph'!$H$1=35,'Cool Graph'!$H$1=36,'Cool Graph'!$H$1=37,'Cool Graph'!$H$1=38,'Cool Graph'!$H$1=39,'Cool Graph'!$H$1=40,'Cool Graph'!$H$1=41,'Cool Graph'!$H$1=42,'Cool Graph'!$H$1=43,'Cool Graph'!$H$1=44,'Cool Graph'!$H$1=45,'Cool Graph'!$H$1=46,'Cool Graph'!$H$1=47,'Cool Graph'!$H$1=58,'Cool Graph'!$H$1=66)","v":false},{"$f":"SUM(VLOOKUP($E35,AllData,COLUMN()-5-COLUMN($E35)),VLOOKUP($E35-1,AllData,COLUMN()-5-COLUMN($E35)),VLOOKUP($E35-2,AllData,COLUMN()-5-COLUMN($E35)),VLOOKUP($E35-3,AllData,COLUMN()-5-COLUMN($E35)),VLOOKUP($E35-4,AllData,COLUMN()-5-COLUMN($E35)),VLOOKUP($E35-5,AllData,COLUMN()-5-COLUMN($E35)),VLOOKUP($E35-6,AllData,COLUMN()-5-COLUMN($E35)))","v":0},{"$f":"SUM(VLOOKUP($E35,AllData,COLUMN()-6-COLUMN($E35)),VLOOKUP($E35-1,AllData,COLUMN()-6-COLUMN($E35)),VLOOKUP($E35-2,AllData,COLUMN()-6-COLUMN($E35)),VLOOKUP($E35-3,AllData,COLUMN()-6-COLUMN($E35)),VLOOKUP($E35-4,AllData,COLUMN()-6-COLUMN($E35)),VLOOKUP($E35-5,AllData,COLUMN()-6-COLUMN($E35)),VLOOKUP($E35-6,AllData,COLUMN()-6-COLUMN($E35)),VLOOKUP($E35-7,AllData,COLUMN()-6-COLUMN($E35)),VLOOKUP($E35-8,AllData,COLUMN()-6-COLUMN($E35)),VLOOKUP($E35-9,AllData,COLUMN()-6-COLUMN($E35)),VLOOKUP($E35-10,AllData,COLUMN()-6-COLUMN($E35)),VLOOKUP($E35-11,AllData,COLUMN()-6-COLUMN($E35)),VLOOKUP($E35-12,AllData,COLUMN()-6-COLUMN($E35)),VLOOKUP($E35-13,AllData,COLUMN()-6-COLUMN($E35)),VLOOKUP($E35-14,AllData,COLUMN()-6-COLUMN($E35)),VLOOKUP($E35-15,AllData,COLUMN()-6-COLUMN($E35)),VLOOKUP($E35-16,AllData,COLUMN()-6-COLUMN($E35)),VLOOKUP($E35-17,AllData,COLUMN()-6-COLUMN($E35)),VLOOKUP($E35-18,AllData,COLUMN()-6-COLUMN($E35)),VLOOKUP($E35-19,AllData,COLUMN()-6-COLUMN($E35)),VLOOKUP($E35-20,AllData,COLUMN()-6-COLUMN($E35)),VLOOKUP($E35-21,AllData,COLUMN()-6-COLUMN($E35)),VLOOKUP($E35-22,AllData,COLUMN()-6-COLUMN($E35)),VLOOKUP($E35-23,AllData,COLUMN()-6-COLUMN($E35)),VLOOKUP($E35-24,AllData,COLUMN()-6-COLUMN($E35)),VLOOKUP($E35-25,AllData,COLUMN()-6-COLUMN($E35)),VLOOKUP($E35-26,AllData,COLUMN()-6-COLUMN($E35)),VLOOKUP($E35-27,AllData,COLUMN()-6-COLUMN($E35)),VLOOKUP($E35-28,AllData,COLUMN()-6-COLUMN($E35)),VLOOKUP($E35-29,AllData,COLUMN()-6-COLUMN($E35)))","v":1339.48},{"$f":"VLOOKUP($E35,AllData,COLUMN()-7-COLUMN($E35))","v":0},{"$f":"OR('Cool Graph'!$I$1=35,'Cool Graph'!$I$1=36,'Cool Graph'!$I$1=37,'Cool Graph'!$I$1=38,'Cool Graph'!$I$1=39,'Cool Graph'!$I$1=40,'Cool Graph'!$I$1=41,'Cool Graph'!$I$1=42,'Cool Graph'!$I$1=43,'Cool Graph'!$I$1=44,'Cool Graph'!$I$1=45,'Cool Graph'!$I$1=46,'Cool Graph'!$I$1=47,'Cool Graph'!$I$1=58,'Cool Graph'!$I$1=66)","v":false}]
["2011-08-04",{"$f":"OFFSET(OldSchoolJustValues!A36,0,'Cool Graph'!$H$1)","v":0},{"$f":"OFFSET(OldSchoolJustValues!A36,0,'Cool Graph'!$I$1)","v":-5.5466862910490988},null,{"$f":"IF(NewDate>EndDate,NA(),NewDate)","v":"2011-10-30"},{"$f":"IF($E36>EndDate,NA(),IF($K$2=TRUE,N36,IF('Cool Graph'!$B$17=1,N36,IF('Cool Graph'!$B$17=2,L36,IF('Cool Graph'!$B$17=3,M36,)))))","v":0},{"$f":"IF($E36>EndDate,NA(),IF($O$2=TRUE,J36,IF('Cool Graph'!$B$17=1,Data1!J36,IF('Cool Graph'!$B$17=2,Data1!H36,IF('Cool Graph'!$B$17=3,Data1!I36,)))))","v":172.29988225370536},{"$f":"SUM(VLOOKUP($E36,AllData,COLUMN()-COLUMN($E36)),VLOOKUP($E36-1,AllData,COLUMN()-COLUMN($E36)),VLOOKUP($E36-2,AllData,COLUMN()-COLUMN($E36)),VLOOKUP($E36-3,AllData,COLUMN()-COLUMN($E36)),VLOOKUP($E36-4,AllData,COLUMN()-COLUMN($E36)),VLOOKUP($E36-5,AllData,COLUMN()-COLUMN($E36)),VLOOKUP($E36-6,AllData,COLUMN()-COLUMN($E36)))","v":1475.8231440073559},{"$f":"SUM(VLOOKUP($E36,AllData,COLUMN()-1-COLUMN($E36)),VLOOKUP($E36-1,AllData,COLUMN()-1-COLUMN($E36)),VLOOKUP($E36-2,AllData,COLUMN()-1-COLUMN($E36)),VLOOKUP($E36-3,AllData,COLUMN()-1-COLUMN($E36)),VLOOKUP($E36-4,AllData,COLUMN()-1-COLUMN($E36)),VLOOKUP($E36-5,AllData,COLUMN()-1-COLUMN($E36)),VLOOKUP($E36-6,AllData,COLUMN()-1-COLUMN($E36)),VLOOKUP($E36-7,AllData,COLUMN()-1-COLUMN($E36)),VLOOKUP($E36-8,AllData,COLUMN()-1-COLUMN($E36)),VLOOKUP($E36-9,AllData,COLUMN()-1-COLUMN($E36)),VLOOKUP($E36-10,AllData,COLUMN()-1-COLUMN($E36)),VLOOKUP($E36-11,AllData,COLUMN()-1-COLUMN($E36)),VLOOKUP($E36-12,AllData,COLUMN()-1-COLUMN($E36)),VLOOKUP($E36-13,AllData,COLUMN()-1-COLUMN($E36)),VLOOKUP($E36-14,AllData,COLUMN()-1-COLUMN($E36)),VLOOKUP($E36-15,AllData,COLUMN()-1-COLUMN($E36)),VLOOKUP($E36-16,AllData,COLUMN()-1-COLUMN($E36)),VLOOKUP($E36-17,AllData,COLUMN()-1-COLUMN($E36)),VLOOKUP($E36-18,AllData,COLUMN()-1-COLUMN($E36)),VLOOKUP($E36-19,AllData,COLUMN()-1-COLUMN($E36)),VLOOKUP($E36-20,AllData,COLUMN()-1-COLUMN($E36)),VLOOKUP($E36-21,AllData,COLUMN()-1-COLUMN($E36)),VLOOKUP($E36-22,AllData,COLUMN()-1-COLUMN($E36)),VLOOKUP($E36-23,AllData,COLUMN()-1-COLUMN($E36)),VLOOKUP($E36-24,AllData,COLUMN()-1-COLUMN($E36)),VLOOKUP($E36-25,AllData,COLUMN()-1-COLUMN($E36)),VLOOKUP($E36-26,AllData,COLUMN()-1-COLUMN($E36)),VLOOKUP($E36-27,AllData,COLUMN()-1-COLUMN($E36)),VLOOKUP($E36-28,AllData,COLUMN()-1-COLUMN($E36)),VLOOKUP($E36-29,AllData,COLUMN()-1-COLUMN($E36)))","v":8589.0378947430981},{"$f":"VLOOKUP($E36,AllData,COLUMN()-2-COLUMN($E36))","v":172.29988225370536},{"$f":"OR('Cool Graph'!$H$1=35,'Cool Graph'!$H$1=36,'Cool Graph'!$H$1=37,'Cool Graph'!$H$1=38,'Cool Graph'!$H$1=39,'Cool Graph'!$H$1=40,'Cool Graph'!$H$1=41,'Cool Graph'!$H$1=42,'Cool Graph'!$H$1=43,'Cool Graph'!$H$1=44,'Cool Graph'!$H$1=45,'Cool Graph'!$H$1=46,'Cool Graph'!$H$1=47,'Cool Graph'!$H$1=58,'Cool Graph'!$H$1=66)","v":false},{"$f":"SUM(VLOOKUP($E36,AllData,COLUMN()-5-COLUMN($E36)),VLOOKUP($E36-1,AllData,COLUMN()-5-COLUMN($E36)),VLOOKUP($E36-2,AllData,COLUMN()-5-COLUMN($E36)),VLOOKUP($E36-3,AllData,COLUMN()-5-COLUMN($E36)),VLOOKUP($E36-4,AllData,COLUMN()-5-COLUMN($E36)),VLOOKUP($E36-5,AllData,COLUMN()-5-COLUMN($E36)),VLOOKUP($E36-6,AllData,COLUMN()-5-COLUMN($E36)))","v":0},{"$f":"SUM(VLOOKUP($E36,AllData,COLUMN()-6-COLUMN($E36)),VLOOKUP($E36-1,AllData,COLUMN()-6-COLUMN($E36)),VLOOKUP($E36-2,AllData,COLUMN()-6-COLUMN($E36)),VLOOKUP($E36-3,AllData,COLUMN()-6-COLUMN($E36)),VLOOKUP($E36-4,AllData,COLUMN()-6-COLUMN($E36)),VLOOKUP($E36-5,AllData,COLUMN()-6-COLUMN($E36)),VLOOKUP($E36-6,AllData,COLUMN()-6-COLUMN($E36)),VLOOKUP($E36-7,AllData,COLUMN()-6-COLUMN($E36)),VLOOKUP($E36-8,AllData,COLUMN()-6-COLUMN($E36)),VLOOKUP($E36-9,AllData,COLUMN()-6-COLUMN($E36)),VLOOKUP($E36-10,AllData,COLUMN()-6-COLUMN($E36)),VLOOKUP($E36-11,AllData,COLUMN()-6-COLUMN($E36)),VLOOKUP($E36-12,AllData,COLUMN()-6-COLUMN($E36)),VLOOKUP($E36-13,AllData,COLUMN()-6-COLUMN($E36)),VLOOKUP($E36-14,AllData,COLUMN()-6-COLUMN($E36)),VLOOKUP($E36-15,AllData,COLUMN()-6-COLUMN($E36)),VLOOKUP($E36-16,AllData,COLUMN()-6-COLUMN($E36)),VLOOKUP($E36-17,AllData,COLUMN()-6-COLUMN($E36)),VLOOKUP($E36-18,AllData,COLUMN()-6-COLUMN($E36)),VLOOKUP($E36-19,AllData,COLUMN()-6-COLUMN($E36)),VLOOKUP($E36-20,AllData,COLUMN()-6-COLUMN($E36)),VLOOKUP($E36-21,AllData,COLUMN()-6-COLUMN($E36)),VLOOKUP($E36-22,AllData,COLUMN()-6-COLUMN($E36)),VLOOKUP($E36-23,AllData,COLUMN()-6-COLUMN($E36)),VLOOKUP($E36-24,AllData,COLUMN()-6-COLUMN($E36)),VLOOKUP($E36-25,AllData,COLUMN()-6-COLUMN($E36)),VLOOKUP($E36-26,AllData,COLUMN()-6-COLUMN($E36)),VLOOKUP($E36-27,AllData,COLUMN()-6-COLUMN($E36)),VLOOKUP($E36-28,AllData,COLUMN()-6-COLUMN($E36)),VLOOKUP($E36-29,AllData,COLUMN()-6-COLUMN($E36)))","v":1309.48},{"$f":"VLOOKUP($E36,AllData,COLUMN()-7-COLUMN($E36))","v":0},{"$f":"OR('Cool Graph'!$I$1=35,'Cool Graph'!$I$1=36,'Cool Graph'!$I$1=37,'Cool Graph'!$I$1=38,'Cool Graph'!$I$1=39,'Cool Graph'!$I$1=40,'Cool Graph'!$I$1=41,'Cool Graph'!$I$1=42,'Cool Graph'!$I$1=43,'Cool Graph'!$I$1=44,'Cool Graph'!$I$1=45,'Cool Graph'!$I$1=46,'Cool Graph'!$I$1=47,'Cool Graph'!$I$1=58,'Cool Graph'!$I$1=66)","v":false}]
["2011-08-05",{"$f":"OFFSET(OldSchoolJustValues!A37,0,'Cool Graph'!$H$1)","v":0},{"$f":"OFFSET(OldSchoolJustValues!A37,0,'Cool Graph'!$I$1)","v":9.8833137089509009},null,{"$f":"IF(NewDate>EndDate,NA(),NewDate)","v":"2011-10-31"},{"$f":"IF($E37>EndDate,NA(),IF($K$2=TRUE,N37,IF('Cool Graph'!$B$17=1,N37,IF('Cool Graph'!$B$17=2,L37,IF('Cool Graph'!$B$17=3,M37,)))))","v":0},{"$f":"IF($E37>EndDate,NA(),IF($O$2=TRUE,J37,IF('Cool Graph'!$B$17=1,Data1!J37,IF('Cool Graph'!$B$17=2,Data1!H37,IF('Cool Graph'!$B$17=3,Data1!I37,)))))","v":65.813254835803605},{"$f":"SUM(VLOOKUP($E37,AllData,COLUMN()-COLUMN($E37)),VLOOKUP($E37-1,AllData,COLUMN()-COLUMN($E37)),VLOOKUP($E37-2,AllData,COLUMN()-COLUMN($E37)),VLOOKUP($E37-3,AllData,COLUMN()-COLUMN($E37)),VLOOKUP($E37-4,AllData,COLUMN()-COLUMN($E37)),VLOOKUP($E37-5,AllData,COLUMN()-COLUMN($E37)),VLOOKUP($E37-6,AllData,COLUMN()-COLUMN($E37)))","v":1385.2591757759376},{"$f":"SUM(VLOOKUP($E37,AllData,COLUMN()-1-COLUMN($E37)),VLOOKUP($E37-1,AllData,COLUMN()-1-COLUMN($E37)),VLOOKUP($E37-2,AllData,COLUMN()-1-COLUMN($E37)),VLOOKUP($E37-3,AllData,COLUMN()-1-COLUMN($E37)),VLOOKUP($E37-4,AllData,COLUMN()-1-COLUMN($E37)),VLOOKUP($E37-5,AllData,COLUMN()-1-COLUMN($E37)),VLOOKUP($E37-6,AllData,COLUMN()-1-COLUMN($E37)),VLOOKUP($E37-7,AllData,COLUMN()-1-COLUMN($E37)),VLOOKUP($E37-8,AllData,COLUMN()-1-COLUMN($E37)),VLOOKUP($E37-9,AllData,COLUMN()-1-COLUMN($E37)),VLOOKUP($E37-10,AllData,COLUMN()-1-COLUMN($E37)),VLOOKUP($E37-11,AllData,COLUMN()-1-COLUMN($E37)),VLOOKUP($E37-12,AllData,COLUMN()-1-COLUMN($E37)),VLOOKUP($E37-13,AllData,COLUMN()-1-COLUMN($E37)),VLOOKUP($E37-14,AllData,COLUMN()-1-COLUMN($E37)),VLOOKUP($E37-15,AllData,COLUMN()-1-COLUMN($E37)),VLOOKUP($E37-16,AllData,COLUMN()-1-COLUMN($E37)),VLOOKUP($E37-17,AllData,COLUMN()-1-COLUMN($E37)),VLOOKUP($E37-18,AllData,COLUMN()-1-COLUMN($E37)),VLOOKUP($E37-19,AllData,COLUMN()-1-COLUMN($E37)),VLOOKUP($E37-20,AllData,COLUMN()-1-COLUMN($E37)),VLOOKUP($E37-21,AllData,COLUMN()-1-COLUMN($E37)),VLOOKUP($E37-22,AllData,COLUMN()-1-COLUMN($E37)),VLOOKUP($E37-23,AllData,COLUMN()-1-COLUMN($E37)),VLOOKUP($E37-24,AllData,COLUMN()-1-COLUMN($E37)),VLOOKUP($E37-25,AllData,COLUMN()-1-COLUMN($E37)),VLOOKUP($E37-26,AllData,COLUMN()-1-COLUMN($E37)),VLOOKUP($E37-27,AllData,COLUMN()-1-COLUMN($E37)),VLOOKUP($E37-28,AllData,COLUMN()-1-COLUMN($E37)),VLOOKUP($E37-29,AllData,COLUMN()-1-COLUMN($E37)))","v":8686.1512084520491},{"$f":"VLOOKUP($E37,AllData,COLUMN()-2-COLUMN($E37))","v":65.813254835803605},{"$f":"OR('Cool Graph'!$H$1=35,'Cool Graph'!$H$1=36,'Cool Graph'!$H$1=37,'Cool Graph'!$H$1=38,'Cool Graph'!$H$1=39,'Cool Graph'!$H$1=40,'Cool Graph'!$H$1=41,'Cool Graph'!$H$1=42,'Cool Graph'!$H$1=43,'Cool Graph'!$H$1=44,'Cool Graph'!$H$1=45,'Cool Graph'!$H$1=46,'Cool Graph'!$H$1=47,'Cool Graph'!$H$1=58,'Cool Graph'!$H$1=66)","v":false},{"$f":"SUM(VLOOKUP($E37,AllData,COLUMN()-5-COLUMN($E37)),VLOOKUP($E37-1,AllData,COLUMN()-5-COLUMN($E37)),VLOOKUP($E37-2,AllData,COLUMN()-5-COLUMN($E37)),VLOOKUP($E37-3,AllData,COLUMN()-5-COLUMN($E37)),VLOOKUP($E37-4,AllData,COLUMN()-5-COLUMN($E37)),VLOOKUP($E37-5,AllData,COLUMN()-5-COLUMN($E37)),VLOOKUP($E37-6,AllData,COLUMN()-5-COLUMN($E37)))","v":0},{"$f":"SUM(VLOOKUP($E37,AllData,COLUMN()-6-COLUMN($E37)),VLOOKUP($E37-1,AllData,COLUMN()-6-COLUMN($E37)),VLOOKUP($E37-2,AllData,COLUMN()-6-COLUMN($E37)),VLOOKUP($E37-3,AllData,COLUMN()-6-COLUMN($E37)),VLOOKUP($E37-4,AllData,COLUMN()-6-COLUMN($E37)),VLOOKUP($E37-5,AllData,COLUMN()-6-COLUMN($E37)),VLOOKUP($E37-6,AllData,COLUMN()-6-COLUMN($E37)),VLOOKUP($E37-7,AllData,COLUMN()-6-COLUMN($E37)),VLOOKUP($E37-8,AllData,COLUMN()-6-COLUMN($E37)),VLOOKUP($E37-9,AllData,COLUMN()-6-COLUMN($E37)),VLOOKUP($E37-10,AllData,COLUMN()-6-COLUMN($E37)),VLOOKUP($E37-11,AllData,COLUMN()-6-COLUMN($E37)),VLOOKUP($E37-12,AllData,COLUMN()-6-COLUMN($E37)),VLOOKUP($E37-13,AllData,COLUMN()-6-COLUMN($E37)),VLOOKUP($E37-14,AllData,COLUMN()-6-COLUMN($E37)),VLOOKUP($E37-15,AllData,COLUMN()-6-COLUMN($E37)),VLOOKUP($E37-16,AllData,COLUMN()-6-COLUMN($E37)),VLOOKUP($E37-17,AllData,COLUMN()-6-COLUMN($E37)),VLOOKUP($E37-18,AllData,COLUMN()-6-COLUMN($E37)),VLOOKUP($E37-19,AllData,COLUMN()-6-COLUMN($E37)),VLOOKUP($E37-20,AllData,COLUMN()-6-COLUMN($E37)),VLOOKUP($E37-21,AllData,COLUMN()-6-COLUMN($E37)),VLOOKUP($E37-22,AllData,COLUMN()-6-COLUMN($E37)),VLOOKUP($E37-23,AllData,COLUMN()-6-COLUMN($E37)),VLOOKUP($E37-24,AllData,COLUMN()-6-COLUMN($E37)),VLOOKUP($E37-25,AllData,COLUMN()-6-COLUMN($E37)),VLOOKUP($E37-26,AllData,COLUMN()-6-COLUMN($E37)),VLOOKUP($E37-27,AllData,COLUMN()-6-COLUMN($E37)),VLOOKUP($E37-28,AllData,COLUMN()-6-COLUMN($E37)),VLOOKUP($E37-29,AllData,COLUMN()-6-COLUMN($E37)))","v":1279.48},{"$f":"VLOOKUP($E37,AllData,COLUMN()-7-COLUMN($E37))","v":0},{"$f":"OR('Cool Graph'!$I$1=35,'Cool Graph'!$I$1=36,'Cool Graph'!$I$1=37,'Cool Graph'!$I$1=38,'Cool Graph'!$I$1=39,'Cool Graph'!$I$1=40,'Cool Graph'!$I$1=41,'Cool Graph'!$I$1=42,'Cool Graph'!$I$1=43,'Cool Graph'!$I$1=44,'Cool Graph'!$I$1=45,'Cool Graph'!$I$1=46,'Cool Graph'!$I$1=47,'Cool Graph'!$I$1=58,'Cool Graph'!$I$1=66)","v":false}]
["2011-08-06",{"$f":"OFFSET(OldSchoolJustValues!A38,0,'Cool Graph'!$H$1)","v":0},{"$f":"OFFSET(OldSchoolJustValues!A38,0,'Cool Graph'!$I$1)","v":84.146627417901797},null,{"$f":"IF(NewDate>EndDate,NA(),NewDate)","v":"2011-11-01"},{"$f":"IF($E38>EndDate,NA(),IF($K$2=TRUE,N38,IF('Cool Graph'!$B$17=1,N38,IF('Cool Graph'!$B$17=2,L38,IF('Cool Graph'!$B$17=3,M38,)))))","v":0},{"$f":"IF($E38>EndDate,NA(),IF($O$2=TRUE,J38,IF('Cool Graph'!$B$17=1,Data1!J38,IF('Cool Graph'!$B$17=2,Data1!H38,IF('Cool Graph'!$B$17=3,Data1!I38,)))))","v":156.2598822537054},{"$f":"SUM(VLOOKUP($E38,AllData,COLUMN()-COLUMN($E38)),VLOOKUP($E38-1,AllData,COLUMN()-COLUMN($E38)),VLOOKUP($E38-2,AllData,COLUMN()-COLUMN($E38)),VLOOKUP($E38-3,AllData,COLUMN()-COLUMN($E38)),VLOOKUP($E38-4,AllData,COLUMN()-COLUMN($E38)),VLOOKUP($E38-5,AllData,COLUMN()-COLUMN($E38)),VLOOKUP($E38-6,AllData,COLUMN()-COLUMN($E38)))","v":1458.5424894848886},{"$f":"SUM(VLOOKUP($E38,AllData,COLUMN()-1-COLUMN($E38)),VLOOKUP($E38-1,AllData,COLUMN()-1-COLUMN($E38)),VLOOKUP($E38-2,AllData,COLUMN()-1-COLUMN($E38)),VLOOKUP($E38-3,AllData,COLUMN()-1-COLUMN($E38)),VLOOKUP($E38-4,AllData,COLUMN()-1-COLUMN($E38)),VLOOKUP($E38-5,AllData,COLUMN()-1-COLUMN($E38)),VLOOKUP($E38-6,AllData,COLUMN()-1-COLUMN($E38)),VLOOKUP($E38-7,AllData,COLUMN()-1-COLUMN($E38)),VLOOKUP($E38-8,AllData,COLUMN()-1-COLUMN($E38)),VLOOKUP($E38-9,AllData,COLUMN()-1-COLUMN($E38)),VLOOKUP($E38-10,AllData,COLUMN()-1-COLUMN($E38)),VLOOKUP($E38-11,AllData,COLUMN()-1-COLUMN($E38)),VLOOKUP($E38-12,AllData,COLUMN()-1-COLUMN($E38)),VLOOKUP($E38-13,AllData,COLUMN()-1-COLUMN($E38)),VLOOKUP($E38-14,AllData,COLUMN()-1-COLUMN($E38)),VLOOKUP($E38-15,AllData,COLUMN()-1-COLUMN($E38)),VLOOKUP($E38-16,AllData,COLUMN()-1-COLUMN($E38)),VLOOKUP($E38-17,AllData,COLUMN()-1-COLUMN($E38)),VLOOKUP($E38-18,AllData,COLUMN()-1-COLUMN($E38)),VLOOKUP($E38-19,AllData,COLUMN()-1-COLUMN($E38)),VLOOKUP($E38-20,AllData,COLUMN()-1-COLUMN($E38)),VLOOKUP($E38-21,AllData,COLUMN()-1-COLUMN($E38)),VLOOKUP($E38-22,AllData,COLUMN()-1-COLUMN($E38)),VLOOKUP($E38-23,AllData,COLUMN()-1-COLUMN($E38)),VLOOKUP($E38-24,AllData,COLUMN()-1-COLUMN($E38)),VLOOKUP($E38-25,AllData,COLUMN()-1-COLUMN($E38)),VLOOKUP($E38-26,AllData,COLUMN()-1-COLUMN($E38)),VLOOKUP($E38-27,AllData,COLUMN()-1-COLUMN($E38)),VLOOKUP($E38-28,AllData,COLUMN()-1-COLUMN($E38)),VLOOKUP($E38-29,AllData,COLUMN()-1-COLUMN($E38)))","v":8310.3546399072929},{"$f":"VLOOKUP($E38,AllData,COLUMN()-2-COLUMN($E38))","v":156.2598822537054},{"$f":"OR('Cool Graph'!$H$1=35,'Cool Graph'!$H$1=36,'Cool Graph'!$H$1=37,'Cool Graph'!$H$1=38,'Cool Graph'!$H$1=39,'Cool Graph'!$H$1=40,'Cool Graph'!$H$1=41,'Cool Graph'!$H$1=42,'Cool Graph'!$H$1=43,'Cool Graph'!$H$1=44,'Cool Graph'!$H$1=45,'Cool Graph'!$H$1=46,'Cool Graph'!$H$1=47,'Cool Graph'!$H$1=58,'Cool Graph'!$H$1=66)","v":false},{"$f":"SUM(VLOOKUP($E38,AllData,COLUMN()-5-COLUMN($E38)),VLOOKUP($E38-1,AllData,COLUMN()-5-COLUMN($E38)),VLOOKUP($E38-2,AllData,COLUMN()-5-COLUMN($E38)),VLOOKUP($E38-3,AllData,COLUMN()-5-COLUMN($E38)),VLOOKUP($E38-4,AllData,COLUMN()-5-COLUMN($E38)),VLOOKUP($E38-5,AllData,COLUMN()-5-COLUMN($E38)),VLOOKUP($E38-6,AllData,COLUMN()-5-COLUMN($E38)))","v":0},{"$f":"SUM(VLOOKUP($E38,AllData,COLUMN()-6-COLUMN($E38)),VLOOKUP($E38-1,AllData,COLUMN()-6-COLUMN($E38)),VLOOKUP($E38-2,AllData,COLUMN()-6-COLUMN($E38)),VLOOKUP($E38-3,AllData,COLUMN()-6-COLUMN($E38)),VLOOKUP($E38-4,AllData,COLUMN()-6-COLUMN($E38)),VLOOKUP($E38-5,AllData,COLUMN()-6-COLUMN($E38)),VLOOKUP($E38-6,AllData,COLUMN()-6-COLUMN($E38)),VLOOKUP($E38-7,AllData,COLUMN()-6-COLUMN($E38)),VLOOKUP($E38-8,AllData,COLUMN()-6-COLUMN($E38)),VLOOKUP($E38-9,AllData,COLUMN()-6-COLUMN($E38)),VLOOKUP($E38-10,AllData,COLUMN()-6-COLUMN($E38)),VLOOKUP($E38-11,AllData,COLUMN()-6-COLUMN($E38)),VLOOKUP($E38-12,AllData,COLUMN()-6-COLUMN($E38)),VLOOKUP($E38-13,AllData,COLUMN()-6-COLUMN($E38)),VLOOKUP($E38-14,AllData,COLUMN()-6-COLUMN($E38)),VLOOKUP($E38-15,AllData,COLUMN()-6-COLUMN($E38)),VLOOKUP($E38-16,AllData,COLUMN()-6-COLUMN($E38)),VLOOKUP($E38-17,AllData,COLUMN()-6-COLUMN($E38)),VLOOKUP($E38-18,AllData,COLUMN()-6-COLUMN($E38)),VLOOKUP($E38-19,AllData,COLUMN()-6-COLUMN($E38)),VLOOKUP($E38-20,AllData,COLUMN()-6-COLUMN($E38)),VLOOKUP($E38-21,AllData,COLUMN()-6-COLUMN($E38)),VLOOKUP($E38-22,AllData,COLUMN()-6-COLUMN($E38)),VLOOKUP($E38-23,AllData,COLUMN()-6-COLUMN($E38)),VLOOKUP($E38-24,AllData,COLUMN()-6-COLUMN($E38)),VLOOKUP($E38-25,AllData,COLUMN()-6-COLUMN($E38)),VLOOKUP($E38-26,AllData,COLUMN()-6-COLUMN($E38)),VLOOKUP($E38-27,AllData,COLUMN()-6-COLUMN($E38)),VLOOKUP($E38-28,AllData,COLUMN()-6-COLUMN($E38)),VLOOKUP($E38-29,AllData,COLUMN()-6-COLUMN($E38)))","v":1249.48},{"$f":"VLOOKUP($E38,AllData,COLUMN()-7-COLUMN($E38))","v":0},{"$f":"OR('Cool Graph'!$I$1=35,'Cool Graph'!$I$1=36,'Cool Graph'!$I$1=37,'Cool Graph'!$I$1=38,'Cool Graph'!$I$1=39,'Cool Graph'!$I$1=40,'Cool Graph'!$I$1=41,'Cool Graph'!$I$1=42,'Cool Graph'!$I$1=43,'Cool Graph'!$I$1=44,'Cool Graph'!$I$1=45,'Cool Graph'!$I$1=46,'Cool Graph'!$I$1=47,'Cool Graph'!$I$1=58,'Cool Graph'!$I$1=66)","v":false}]
["2011-08-07",{"$f":"OFFSET(OldSchoolJustValues!A39,0,'Cool Graph'!$H$1)","v":0},{"$f":"OFFSET(OldSchoolJustValues!A39,0,'Cool Graph'!$I$1)","v":-16.5766862910491},null,{"$f":"IF(NewDate>EndDate,NA(),NewDate)","v":"2011-11-02"},{"$f":"IF($E39>EndDate,NA(),IF($K$2=TRUE,N39,IF('Cool Graph'!$B$17=1,N39,IF('Cool Graph'!$B$17=2,L39,IF('Cool Graph'!$B$17=3,M39,)))))","v":0},{"$f":"IF($E39>EndDate,NA(),IF($O$2=TRUE,J39,IF('Cool Graph'!$B$17=1,Data1!J39,IF('Cool Graph'!$B$17=2,Data1!H39,IF('Cool Graph'!$B$17=3,Data1!I39,)))))","v":584.7877276543993},{"$f":"SUM(VLOOKUP($E39,AllData,COLUMN()-COLUMN($E39)),VLOOKUP($E39-1,AllData,COLUMN()-COLUMN($E39)),VLOOKUP($E39-2,AllData,COLUMN()-COLUMN($E39)),VLOOKUP($E39-3,AllData,COLUMN()-COLUMN($E39)),VLOOKUP($E39-4,AllData,COLUMN()-COLUMN($E39)),VLOOKUP($E39-5,AllData,COLUMN()-COLUMN($E39)),VLOOKUP($E39-6,AllData,COLUMN()-COLUMN($E39)))","v":1922.7936485945336},{"$f":"SUM(VLOOKUP($E39,AllData,COLUMN()-1-COLUMN($E39)),VLOOKUP($E39-1,AllData,COLUMN()-1-COLUMN($E39)),VLOOKUP($E39-2,AllData,COLUMN()-1-COLUMN($E39)),VLOOKUP($E39-3,AllData,COLUMN()-1-COLUMN($E39)),VLOOKUP($E39-4,AllData,COLUMN()-1-COLUMN($E39)),VLOOKUP($E39-5,AllData,COLUMN()-1-COLUMN($E39)),VLOOKUP($E39-6,AllData,COLUMN()-1-COLUMN($E39)),VLOOKUP($E39-7,AllData,COLUMN()-1-COLUMN($E39)),VLOOKUP($E39-8,AllData,COLUMN()-1-COLUMN($E39)),VLOOKUP($E39-9,AllData,COLUMN()-1-COLUMN($E39)),VLOOKUP($E39-10,AllData,COLUMN()-1-COLUMN($E39)),VLOOKUP($E39-11,AllData,COLUMN()-1-COLUMN($E39)),VLOOKUP($E39-12,AllData,COLUMN()-1-COLUMN($E39)),VLOOKUP($E39-13,AllData,COLUMN()-1-COLUMN($E39)),VLOOKUP($E39-14,AllData,COLUMN()-1-COLUMN($E39)),VLOOKUP($E39-15,AllData,COLUMN()-1-COLUMN($E39)),VLOOKUP($E39-16,AllData,COLUMN()-1-COLUMN($E39)),VLOOKUP($E39-17,AllData,COLUMN()-1-COLUMN($E39)),VLOOKUP($E39-18,AllData,COLUMN()-1-COLUMN($E39)),VLOOKUP($E39-19,AllData,COLUMN()-1-COLUMN($E39)),VLOOKUP($E39-20,AllData,COLUMN()-1-COLUMN($E39)),VLOOKUP($E39-21,AllData,COLUMN()-1-COLUMN($E39)),VLOOKUP($E39-22,AllData,COLUMN()-1-COLUMN($E39)),VLOOKUP($E39-23,AllData,COLUMN()-1-COLUMN($E39)),VLOOKUP($E39-24,AllData,COLUMN()-1-COLUMN($E39)),VLOOKUP($E39-25,AllData,COLUMN()-1-COLUMN($E39)),VLOOKUP($E39-26,AllData,COLUMN()-1-COLUMN($E39)),VLOOKUP($E39-27,AllData,COLUMN()-1-COLUMN($E39)),VLOOKUP($E39-28,AllData,COLUMN()-1-COLUMN($E39)),VLOOKUP($E39-29,AllData,COLUMN()-1-COLUMN($E39)))","v":8867.7757990169375},{"$f":"VLOOKUP($E39,AllData,COLUMN()-2-COLUMN($E39))","v":584.7877276543993},{"$f":"OR('Cool Graph'!$H$1=35,'Cool Graph'!$H$1=36,'Cool Graph'!$H$1=37,'Cool Graph'!$H$1=38,'Cool Graph'!$H$1=39,'Cool Graph'!$H$1=40,'Cool Graph'!$H$1=41,'Cool Graph'!$H$1=42,'Cool Graph'!$H$1=43,'Cool Graph'!$H$1=44,'Cool Graph'!$H$1=45,'Cool Graph'!$H$1=46,'Cool Graph'!$H$1=47,'Cool Graph'!$H$1=58,'Cool Graph'!$H$1=66)","v":false},{"$f":"SUM(VLOOKUP($E39,AllData,COLUMN()-5-COLUMN($E39)),VLOOKUP($E39-1,AllData,COLUMN()-5-COLUMN($E39)),VLOOKUP($E39-2,AllData,COLUMN()-5-COLUMN($E39)),VLOOKUP($E39-3,AllData,COLUMN()-5-COLUMN($E39)),VLOOKUP($E39-4,AllData,COLUMN()-5-COLUMN($E39)),VLOOKUP($E39-5,AllData,COLUMN()-5-COLUMN($E39)),VLOOKUP($E39-6,AllData,COLUMN()-5-COLUMN($E39)))","v":0},{"$f":"SUM(VLOOKUP($E39,AllData,COLUMN()-6-COLUMN($E39)),VLOOKUP($E39-1,AllData,COLUMN()-6-COLUMN($E39)),VLOOKUP($E39-2,AllData,COLUMN()-6-COLUMN($E39)),VLOOKUP($E39-3,AllData,COLUMN()-6-COLUMN($E39)),VLOOKUP($E39-4,AllData,COLUMN()-6-COLUMN($E39)),VLOOKUP($E39-5,AllData,COLUMN()-6-COLUMN($E39)),VLOOKUP($E39-6,AllData,COLUMN()-6-COLUMN($E39)),VLOOKUP($E39-7,AllData,COLUMN()-6-COLUMN($E39)),VLOOKUP($E39-8,AllData,COLUMN()-6-COLUMN($E39)),VLOOKUP($E39-9,AllData,COLUMN()-6-COLUMN($E39)),VLOOKUP($E39-10,AllData,COLUMN()-6-COLUMN($E39)),VLOOKUP($E39-11,AllData,COLUMN()-6-COLUMN($E39)),VLOOKUP($E39-12,AllData,COLUMN()-6-COLUMN($E39)),VLOOKUP($E39-13,AllData,COLUMN()-6-COLUMN($E39)),VLOOKUP($E39-14,AllData,COLUMN()-6-COLUMN($E39)),VLOOKUP($E39-15,AllData,COLUMN()-6-COLUMN($E39)),VLOOKUP($E39-16,AllData,COLUMN()-6-COLUMN($E39)),VLOOKUP($E39-17,AllData,COLUMN()-6-COLUMN($E39)),VLOOKUP($E39-18,AllData,COLUMN()-6-COLUMN($E39)),VLOOKUP($E39-19,AllData,COLUMN()-6-COLUMN($E39)),VLOOKUP($E39-20,AllData,COLUMN()-6-COLUMN($E39)),VLOOKUP($E39-21,AllData,COLUMN()-6-COLUMN($E39)),VLOOKUP($E39-22,AllData,COLUMN()-6-COLUMN($E39)),VLOOKUP($E39-23,AllData,COLUMN()-6-COLUMN($E39)),VLOOKUP($E39-24,AllData,COLUMN()-6-COLUMN($E39)),VLOOKUP($E39-25,AllData,COLUMN()-6-COLUMN($E39)),VLOOKUP($E39-26,AllData,COLUMN()-6-COLUMN($E39)),VLOOKUP($E39-27,AllData,COLUMN()-6-COLUMN($E39)),VLOOKUP($E39-28,AllData,COLUMN()-6-COLUMN($E39)),VLOOKUP($E39-29,AllData,COLUMN()-6-COLUMN($E39)))","v":1189.48},{"$f":"VLOOKUP($E39,AllData,COLUMN()-7-COLUMN($E39))","v":0},{"$f":"OR('Cool Graph'!$I$1=35,'Cool Graph'!$I$1=36,'Cool Graph'!$I$1=37,'Cool Graph'!$I$1=38,'Cool Graph'!$I$1=39,'Cool Graph'!$I$1=40,'Cool Graph'!$I$1=41,'Cool Graph'!$I$1=42,'Cool Graph'!$I$1=43,'Cool Graph'!$I$1=44,'Cool Graph'!$I$1=45,'Cool Graph'!$I$1=46,'Cool Graph'!$I$1=47,'Cool Graph'!$I$1=58,'Cool Graph'!$I$1=66)","v":false}]
["2011-08-08",{"$f":"OFFSET(OldSchoolJustValues!A40,0,'Cool Graph'!$H$1)","v":0},{"$f":"OFFSET(OldSchoolJustValues!A40,0,'Cool Graph'!$I$1)","v":123.6099411268527},null,{"$f":"IF(NewDate>EndDate,NA(),NewDate)","v":"2011-11-03"},{"$f":"IF($E40>EndDate,NA(),IF($K$2=TRUE,N40,IF('Cool Graph'!$B$17=1,N40,IF('Cool Graph'!$B$17=2,L40,IF('Cool Graph'!$B$17=3,M40,)))))","v":0},{"$f":"IF($E40>EndDate,NA(),IF($O$2=TRUE,J40,IF('Cool Graph'!$B$17=1,Data1!J40,IF('Cool Graph'!$B$17=2,Data1!H40,IF('Cool Graph'!$B$17=3,Data1!I40,)))))","v":403.18141753907884},{"$f":"SUM(VLOOKUP($E40,AllData,COLUMN()-COLUMN($E40)),VLOOKUP($E40-1,AllData,COLUMN()-COLUMN($E40)),VLOOKUP($E40-2,AllData,COLUMN()-COLUMN($E40)),VLOOKUP($E40-3,AllData,COLUMN()-COLUMN($E40)),VLOOKUP($E40-4,AllData,COLUMN()-COLUMN($E40)),VLOOKUP($E40-5,AllData,COLUMN()-COLUMN($E40)),VLOOKUP($E40-6,AllData,COLUMN()-COLUMN($E40)))","v":1776.5886153351526},{"$f":"SUM(VLOOKUP($E40,AllData,COLUMN()-1-COLUMN($E40)),VLOOKUP($E40-1,AllData,COLUMN()-1-COLUMN($E40)),VLOOKUP($E40-2,AllData,COLUMN()-1-COLUMN($E40)),VLOOKUP($E40-3,AllData,COLUMN()-1-COLUMN($E40)),VLOOKUP($E40-4,AllData,COLUMN()-1-COLUMN($E40)),VLOOKUP($E40-5,AllData,COLUMN()-1-COLUMN($E40)),VLOOKUP($E40-6,AllData,COLUMN()-1-COLUMN($E40)),VLOOKUP($E40-7,AllData,COLUMN()-1-COLUMN($E40)),VLOOKUP($E40-8,AllData,COLUMN()-1-COLUMN($E40)),VLOOKUP($E40-9,AllData,COLUMN()-1-COLUMN($E40)),VLOOKUP($E40-10,AllData,COLUMN()-1-COLUMN($E40)),VLOOKUP($E40-11,AllData,COLUMN()-1-COLUMN($E40)),VLOOKUP($E40-12,AllData,COLUMN()-1-COLUMN($E40)),VLOOKUP($E40-13,AllData,COLUMN()-1-COLUMN($E40)),VLOOKUP($E40-14,AllData,COLUMN()-1-COLUMN($E40)),VLOOKUP($E40-15,AllData,COLUMN()-1-COLUMN($E40)),VLOOKUP($E40-16,AllData,COLUMN()-1-COLUMN($E40)),VLOOKUP($E40-17,AllData,COLUMN()-1-COLUMN($E40)),VLOOKUP($E40-18,AllData,COLUMN()-1-COLUMN($E40)),VLOOKUP($E40-19,AllData,COLUMN()-1-COLUMN($E40)),VLOOKUP($E40-20,AllData,COLUMN()-1-COLUMN($E40)),VLOOKUP($E40-21,AllData,COLUMN()-1-COLUMN($E40)),VLOOKUP($E40-22,AllData,COLUMN()-1-COLUMN($E40)),VLOOKUP($E40-23,AllData,COLUMN()-1-COLUMN($E40)),VLOOKUP($E40-24,AllData,COLUMN()-1-COLUMN($E40)),VLOOKUP($E40-25,AllData,COLUMN()-1-COLUMN($E40)),VLOOKUP($E40-26,AllData,COLUMN()-1-COLUMN($E40)),VLOOKUP($E40-27,AllData,COLUMN()-1-COLUMN($E40)),VLOOKUP($E40-28,AllData,COLUMN()-1-COLUMN($E40)),VLOOKUP($E40-29,AllData,COLUMN()-1-COLUMN($E40)))","v":9417.2140205933611},{"$f":"VLOOKUP($E40,AllData,COLUMN()-2-COLUMN($E40))","v":403.18141753907884},{"$f":"OR('Cool Graph'!$H$1=35,'Cool Graph'!$H$1=36,'Cool Graph'!$H$1=37,'Cool Graph'!$H$1=38,'Cool Graph'!$H$1=39,'Cool Graph'!$H$1=40,'Cool Graph'!$H$1=41,'Cool Graph'!$H$1=42,'Cool Graph'!$H$1=43,'Cool Graph'!$H$1=44,'Cool Graph'!$H$1=45,'Cool Graph'!$H$1=46,'Cool Graph'!$H$1=47,'Cool Graph'!$H$1=58,'Cool Graph'!$H$1=66)","v":false},{"$f":"SUM(VLOOKUP($E40,AllData,COLUMN()-5-COLUMN($E40)),VLOOKUP($E40-1,AllData,COLUMN()-5-COLUMN($E40)),VLOOKUP($E40-2,AllData,COLUMN()-5-COLUMN($E40)),VLOOKUP($E40-3,AllData,COLUMN()-5-COLUMN($E40)),VLOOKUP($E40-4,AllData,COLUMN()-5-COLUMN($E40)),VLOOKUP($E40-5,AllData,COLUMN()-5-COLUMN($E40)),VLOOKUP($E40-6,AllData,COLUMN()-5-COLUMN($E40)))","v":0},{"$f":"SUM(VLOOKUP($E40,AllData,COLUMN()-6-COLUMN($E40)),VLOOKUP($E40-1,AllData,COLUMN()-6-COLUMN($E40)),VLOOKUP($E40-2,AllData,COLUMN()-6-COLUMN($E40)),VLOOKUP($E40-3,AllData,COLUMN()-6-COLUMN($E40)),VLOOKUP($E40-4,AllData,COLUMN()-6-COLUMN($E40)),VLOOKUP($E40-5,AllData,COLUMN()-6-COLUMN($E40)),VLOOKUP($E40-6,AllData,COLUMN()-6-COLUMN($E40)),VLOOKUP($E40-7,AllData,COLUMN()-6-COLUMN($E40)),VLOOKUP($E40-8,AllData,COLUMN()-6-COLUMN($E40)),VLOOKUP($E40-9,AllData,COLUMN()-6-COLUMN($E40)),VLOOKUP($E40-10,AllData,COLUMN()-6-COLUMN($E40)),VLOOKUP($E40-11,AllData,COLUMN()-6-COLUMN($E40)),VLOOKUP($E40-12,AllData,COLUMN()-6-COLUMN($E40)),VLOOKUP($E40-13,AllData,COLUMN()-6-COLUMN($E40)),VLOOKUP($E40-14,AllData,COLUMN()-6-COLUMN($E40)),VLOOKUP($E40-15,AllData,COLUMN()-6-COLUMN($E40)),VLOOKUP($E40-16,AllData,COLUMN()-6-COLUMN($E40)),VLOOKUP($E40-17,AllData,COLUMN()-6-COLUMN($E40)),VLOOKUP($E40-18,AllData,COLUMN()-6-COLUMN($E40)),VLOOKUP($E40-19,AllData,COLUMN()-6-COLUMN($E40)),VLOOKUP($E40-20,AllData,COLUMN()-6-COLUMN($E40)),VLOOKUP($E40-21,AllData,COLUMN()-6-COLUMN($E40)),VLOOKUP($E40-22,AllData,COLUMN()-6-COLUMN($E40)),VLOOKUP($E40-23,AllData,COLUMN()-6-COLUMN($E40)),VLOOKUP($E40-24,AllData,COLUMN()-6-COLUMN($E40)),VLOOKUP($E40-25,AllData,COLUMN()-6-COLUMN($E40)),VLOOKUP($E40-26,AllData,COLUMN()-6-COLUMN($E40)),VLOOKUP($E40-27,AllData,COLUMN()-6-COLUMN($E40)),VLOOKUP($E40-28,AllData,COLUMN()-6-COLUMN($E40)),VLOOKUP($E40-29,AllData,COLUMN()-6-COLUMN($E40)))","v":939.48},{"$f":"VLOOKUP($E40,AllData,COLUMN()-7-COLUMN($E40))","v":0},{"$f":"OR('Cool Graph'!$I$1=35,'Cool Graph'!$I$1=36,'Cool Graph'!$I$1=37,'Cool Graph'!$I$1=38,'Cool Graph'!$I$1=39,'Cool Graph'!$I$1=40,'Cool Graph'!$I$1=41,'Cool Graph'!$I$1=42,'Cool Graph'!$I$1=43,'Cool Graph'!$I$1=44,'Cool Graph'!$I$1=45,'Cool Graph'!$I$1=46,'Cool Graph'!$I$1=47,'Cool Graph'!$I$1=58,'Cool Graph'!$I$1=66)","v":false}]
["2011-08-09",{"$f":"OFFSET(OldSchoolJustValues!A41,0,'Cool Graph'!$H$1)","v":0},{"$f":"OFFSET(OldSchoolJustValues!A41,0,'Cool Graph'!$I$1)","v":311.05988225370538},null,{"$f":"IF(NewDate>EndDate,NA(),NewDate)","v":"2011-11-04"},{"$f":"IF($E41>EndDate,NA(),IF($K$2=TRUE,N41,IF('Cool Graph'!$B$17=1,N41,IF('Cool Graph'!$B$17=2,L41,IF('Cool Graph'!$B$17=3,M41,)))))","v":0},{"$f":"IF($E41>EndDate,NA(),IF($O$2=TRUE,J41,IF('Cool Graph'!$B$17=1,Data1!J41,IF('Cool Graph'!$B$17=2,Data1!H41,IF('Cool Graph'!$B$17=3,Data1!I41,)))))","v":316.11313708950894},{"$f":"SUM(VLOOKUP($E41,AllData,COLUMN()-COLUMN($E41)),VLOOKUP($E41-1,AllData,COLUMN()-COLUMN($E41)),VLOOKUP($E41-2,AllData,COLUMN()-COLUMN($E41)),VLOOKUP($E41-3,AllData,COLUMN()-COLUMN($E41)),VLOOKUP($E41-4,AllData,COLUMN()-COLUMN($E41)),VLOOKUP($E41-5,AllData,COLUMN()-COLUMN($E41)),VLOOKUP($E41-6,AllData,COLUMN()-COLUMN($E41)))","v":1867.4618701709558},{"$f":"SUM(VLOOKUP($E41,AllData,COLUMN()-1-COLUMN($E41)),VLOOKUP($E41-1,AllData,COLUMN()-1-COLUMN($E41)),VLOOKUP($E41-2,AllData,COLUMN()-1-COLUMN($E41)),VLOOKUP($E41-3,AllData,COLUMN()-1-COLUMN($E41)),VLOOKUP($E41-4,AllData,COLUMN()-1-COLUMN($E41)),VLOOKUP($E41-5,AllData,COLUMN()-1-COLUMN($E41)),VLOOKUP($E41-6,AllData,COLUMN()-1-COLUMN($E41)),VLOOKUP($E41-7,AllData,COLUMN()-1-COLUMN($E41)),VLOOKUP($E41-8,AllData,COLUMN()-1-COLUMN($E41)),VLOOKUP($E41-9,AllData,COLUMN()-1-COLUMN($E41)),VLOOKUP($E41-10,AllData,COLUMN()-1-COLUMN($E41)),VLOOKUP($E41-11,AllData,COLUMN()-1-COLUMN($E41)),VLOOKUP($E41-12,AllData,COLUMN()-1-COLUMN($E41)),VLOOKUP($E41-13,AllData,COLUMN()-1-COLUMN($E41)),VLOOKUP($E41-14,AllData,COLUMN()-1-COLUMN($E41)),VLOOKUP($E41-15,AllData,COLUMN()-1-COLUMN($E41)),VLOOKUP($E41-16,AllData,COLUMN()-1-COLUMN($E41)),VLOOKUP($E41-17,AllData,COLUMN()-1-COLUMN($E41)),VLOOKUP($E41-18,AllData,COLUMN()-1-COLUMN($E41)),VLOOKUP($E41-19,AllData,COLUMN()-1-COLUMN($E41)),VLOOKUP($E41-20,AllData,COLUMN()-1-COLUMN($E41)),VLOOKUP($E41-21,AllData,COLUMN()-1-COLUMN($E41)),VLOOKUP($E41-22,AllData,COLUMN()-1-COLUMN($E41)),VLOOKUP($E41-23,AllData,COLUMN()-1-COLUMN($E41)),VLOOKUP($E41-24,AllData,COLUMN()-1-COLUMN($E41)),VLOOKUP($E41-25,AllData,COLUMN()-1-COLUMN($E41)),VLOOKUP($E41-26,AllData,COLUMN()-1-COLUMN($E41)),VLOOKUP($E41-27,AllData,COLUMN()-1-COLUMN($E41)),VLOOKUP($E41-28,AllData,COLUMN()-1-COLUMN($E41)),VLOOKUP($E41-29,AllData,COLUMN()-1-COLUMN($E41)))","v":9299.9912084520474},{"$f":"VLOOKUP($E41,AllData,COLUMN()-2-COLUMN($E41))","v":316.11313708950894},{"$f":"OR('Cool Graph'!$H$1=35,'Cool Graph'!$H$1=36,'Cool Graph'!$H$1=37,'Cool Graph'!$H$1=38,'Cool Graph'!$H$1=39,'Cool Graph'!$H$1=40,'Cool Graph'!$H$1=41,'Cool Graph'!$H$1=42,'Cool Graph'!$H$1=43,'Cool Graph'!$H$1=44,'Cool Graph'!$H$1=45,'Cool Graph'!$H$1=46,'Cool Graph'!$H$1=47,'Cool Graph'!$H$1=58,'Cool Graph'!$H$1=66)","v":false},{"$f":"SUM(VLOOKUP($E41,AllData,COLUMN()-5-COLUMN($E41)),VLOOKUP($E41-1,AllData,COLUMN()-5-COLUMN($E41)),VLOOKUP($E41-2,AllData,COLUMN()-5-COLUMN($E41)),VLOOKUP($E41-3,AllData,COLUMN()-5-COLUMN($E41)),VLOOKUP($E41-4,AllData,COLUMN()-5-COLUMN($E41)),VLOOKUP($E41-5,AllData,COLUMN()-5-COLUMN($E41)),VLOOKUP($E41-6,AllData,COLUMN()-5-COLUMN($E41)))","v":0},{"$f":"SUM(VLOOKUP($E41,AllData,COLUMN()-6-COLUMN($E41)),VLOOKUP($E41-1,AllData,COLUMN()-6-COLUMN($E41)),VLOOKUP($E41-2,AllData,COLUMN()-6-COLUMN($E41)),VLOOKUP($E41-3,AllData,COLUMN()-6-COLUMN($E41)),VLOOKUP($E41-4,AllData,COLUMN()-6-COLUMN($E41)),VLOOKUP($E41-5,AllData,COLUMN()-6-COLUMN($E41)),VLOOKUP($E41-6,AllData,COLUMN()-6-COLUMN($E41)),VLOOKUP($E41-7,AllData,COLUMN()-6-COLUMN($E41)),VLOOKUP($E41-8,AllData,COLUMN()-6-COLUMN($E41)),VLOOKUP($E41-9,AllData,COLUMN()-6-COLUMN($E41)),VLOOKUP($E41-10,AllData,COLUMN()-6-COLUMN($E41)),VLOOKUP($E41-11,AllData,COLUMN()-6-COLUMN($E41)),VLOOKUP($E41-12,AllData,COLUMN()-6-COLUMN($E41)),VLOOKUP($E41-13,AllData,COLUMN()-6-COLUMN($E41)),VLOOKUP($E41-14,AllData,COLUMN()-6-COLUMN($E41)),VLOOKUP($E41-15,AllData,COLUMN()-6-COLUMN($E41)),VLOOKUP($E41-16,AllData,COLUMN()-6-COLUMN($E41)),VLOOKUP($E41-17,AllData,COLUMN()-6-COLUMN($E41)),VLOOKUP($E41-18,AllData,COLUMN()-6-COLUMN($E41)),VLOOKUP($E41-19,AllData,COLUMN()-6-COLUMN($E41)),VLOOKUP($E41-20,AllData,COLUMN()-6-COLUMN($E41)),VLOOKUP($E41-21,AllData,COLUMN()-6-COLUMN($E41)),VLOOKUP($E41-22,AllData,COLUMN()-6-COLUMN($E41)),VLOOKUP($E41-23,AllData,COLUMN()-6-COLUMN($E41)),VLOOKUP($E41-24,AllData,COLUMN()-6-COLUMN($E41)),VLOOKUP($E41-25,AllData,COLUMN()-6-COLUMN($E41)),VLOOKUP($E41-26,AllData,COLUMN()-6-COLUMN($E41)),VLOOKUP($E41-27,AllData,COLUMN()-6-COLUMN($E41)),VLOOKUP($E41-28,AllData,COLUMN()-6-COLUMN($E41)),VLOOKUP($E41-29,AllData,COLUMN()-6-COLUMN($E41)))","v":689.48},{"$f":"VLOOKUP($E41,AllData,COLUMN()-7-COLUMN($E41))","v":0},{"$f":"OR('Cool Graph'!$I$1=35,'Cool Graph'!$I$1=36,'Cool Graph'!$I$1=37,'Cool Graph'!$I$1=38,'Cool Graph'!$I$1=39,'Cool Graph'!$I$1=40,'Cool Graph'!$I$1=41,'Cool Graph'!$I$1=42,'Cool Graph'!$I$1=43,'Cool Graph'!$I$1=44,'Cool Graph'!$I$1=45,'Cool Graph'!$I$1=46,'Cool Graph'!$I$1=47,'Cool Graph'!$I$1=58,'Cool Graph'!$I$1=66)","v":false}]
["2011-08-10",{"$f":"OFFSET(OldSchoolJustValues!A42,0,'Cool Graph'!$H$1)","v":0},{"$f":"OFFSET(OldSchoolJustValues!A42,0,'Cool Graph'!$I$1)","v":-26.316686291049109},null,{"$f":"IF(NewDate>EndDate,NA(),NewDate)","v":"2011-11-05"},{"$f":"IF($E42>EndDate,NA(),IF($K$2=TRUE,N42,IF('Cool Graph'!$B$17=1,N42,IF('Cool Graph'!$B$17=2,L42,IF('Cool Graph'!$B$17=3,M42,)))))","v":0},{"$f":"IF($E42>EndDate,NA(),IF($O$2=TRUE,J42,IF('Cool Graph'!$B$17=1,Data1!J42,IF('Cool Graph'!$B$17=2,Data1!H42,IF('Cool Graph'!$B$17=3,Data1!I42,)))))","v":24.783254835803575},{"$f":"SUM(VLOOKUP($E42,AllData,COLUMN()-COLUMN($E42)),VLOOKUP($E42-1,AllData,COLUMN()-COLUMN($E42)),VLOOKUP($E42-2,AllData,COLUMN()-COLUMN($E42)),VLOOKUP($E42-3,AllData,COLUMN()-COLUMN($E42)),VLOOKUP($E42-4,AllData,COLUMN()-COLUMN($E42)),VLOOKUP($E42-5,AllData,COLUMN()-COLUMN($E42)),VLOOKUP($E42-6,AllData,COLUMN()-COLUMN($E42)))","v":1723.2385564620051},{"$f":"SUM(VLOOKUP($E42,AllData,COLUMN()-1-COLUMN($E42)),VLOOKUP($E42-1,AllData,COLUMN()-1-COLUMN($E42)),VLOOKUP($E42-2,AllData,COLUMN()-1-COLUMN($E42)),VLOOKUP($E42-3,AllData,COLUMN()-1-COLUMN($E42)),VLOOKUP($E42-4,AllData,COLUMN()-1-COLUMN($E42)),VLOOKUP($E42-5,AllData,COLUMN()-1-COLUMN($E42)),VLOOKUP($E42-6,AllData,COLUMN()-1-COLUMN($E42)),VLOOKUP($E42-7,AllData,COLUMN()-1-COLUMN($E42)),VLOOKUP($E42-8,AllData,COLUMN()-1-COLUMN($E42)),VLOOKUP($E42-9,AllData,COLUMN()-1-COLUMN($E42)),VLOOKUP($E42-10,AllData,COLUMN()-1-COLUMN($E42)),VLOOKUP($E42-11,AllData,COLUMN()-1-COLUMN($E42)),VLOOKUP($E42-12,AllData,COLUMN()-1-COLUMN($E42)),VLOOKUP($E42-13,AllData,COLUMN()-1-COLUMN($E42)),VLOOKUP($E42-14,AllData,COLUMN()-1-COLUMN($E42)),VLOOKUP($E42-15,AllData,COLUMN()-1-COLUMN($E42)),VLOOKUP($E42-16,AllData,COLUMN()-1-COLUMN($E42)),VLOOKUP($E42-17,AllData,COLUMN()-1-COLUMN($E42)),VLOOKUP($E42-18,AllData,COLUMN()-1-COLUMN($E42)),VLOOKUP($E42-19,AllData,COLUMN()-1-COLUMN($E42)),VLOOKUP($E42-20,AllData,COLUMN()-1-COLUMN($E42)),VLOOKUP($E42-21,AllData,COLUMN()-1-COLUMN($E42)),VLOOKUP($E42-22,AllData,COLUMN()-1-COLUMN($E42)),VLOOKUP($E42-23,AllData,COLUMN()-1-COLUMN($E42)),VLOOKUP($E42-24,AllData,COLUMN()-1-COLUMN($E42)),VLOOKUP($E42-25,AllData,COLUMN()-1-COLUMN($E42)),VLOOKUP($E42-26,AllData,COLUMN()-1-COLUMN($E42)),VLOOKUP($E42-27,AllData,COLUMN()-1-COLUMN($E42)),VLOOKUP($E42-28,AllData,COLUMN()-1-COLUMN($E42)),VLOOKUP($E42-29,AllData,COLUMN()-1-COLUMN($E42)))","v":9059.5272138810087},{"$f":"VLOOKUP($E42,AllData,COLUMN()-2-COLUMN($E42))","v":24.783254835803575},{"$f":"OR('Cool Graph'!$H$1=35,'Cool Graph'!$H$1=36,'Cool Graph'!$H$1=37,'Cool Graph'!$H$1=38,'Cool Graph'!$H$1=39,'Cool Graph'!$H$1=40,'Cool Graph'!$H$1=41,'Cool Graph'!$H$1=42,'Cool Graph'!$H$1=43,'Cool Graph'!$H$1=44,'Cool Graph'!$H$1=45,'Cool Graph'!$H$1=46,'Cool Graph'!$H$1=47,'Cool Graph'!$H$1=58,'Cool Graph'!$H$1=66)","v":false},{"$f":"SUM(VLOOKUP($E42,AllData,COLUMN()-5-COLUMN($E42)),VLOOKUP($E42-1,AllData,COLUMN()-5-COLUMN($E42)),VLOOKUP($E42-2,AllData,COLUMN()-5-COLUMN($E42)),VLOOKUP($E42-3,AllData,COLUMN()-5-COLUMN($E42)),VLOOKUP($E42-4,AllData,COLUMN()-5-COLUMN($E42)),VLOOKUP($E42-5,AllData,COLUMN()-5-COLUMN($E42)),VLOOKUP($E42-6,AllData,COLUMN()-5-COLUMN($E42)))","v":0},{"$f":"SUM(VLOOKUP($E42,AllData,COLUMN()-6-COLUMN($E42)),VLOOKUP($E42-1,AllData,COLUMN()-6-COLUMN($E42)),VLOOKUP($E42-2,AllData,COLUMN()-6-COLUMN($E42)),VLOOKUP($E42-3,AllData,COLUMN()-6-COLUMN($E42)),VLOOKUP($E42-4,AllData,COLUMN()-6-COLUMN($E42)),VLOOKUP($E42-5,AllData,COLUMN()-6-COLUMN($E42)),VLOOKUP($E42-6,AllData,COLUMN()-6-COLUMN($E42)),VLOOKUP($E42-7,AllData,COLUMN()-6-COLUMN($E42)),VLOOKUP($E42-8,AllData,COLUMN()-6-COLUMN($E42)),VLOOKUP($E42-9,AllData,COLUMN()-6-COLUMN($E42)),VLOOKUP($E42-10,AllData,COLUMN()-6-COLUMN($E42)),VLOOKUP($E42-11,AllData,COLUMN()-6-COLUMN($E42)),VLOOKUP($E42-12,AllData,COLUMN()-6-COLUMN($E42)),VLOOKUP($E42-13,AllData,COLUMN()-6-COLUMN($E42)),VLOOKUP($E42-14,AllData,COLUMN()-6-COLUMN($E42)),VLOOKUP($E42-15,AllData,COLUMN()-6-COLUMN($E42)),VLOOKUP($E42-16,AllData,COLUMN()-6-COLUMN($E42)),VLOOKUP($E42-17,AllData,COLUMN()-6-COLUMN($E42)),VLOOKUP($E42-18,AllData,COLUMN()-6-COLUMN($E42)),VLOOKUP($E42-19,AllData,COLUMN()-6-COLUMN($E42)),VLOOKUP($E42-20,AllData,COLUMN()-6-COLUMN($E42)),VLOOKUP($E42-21,AllData,COLUMN()-6-COLUMN($E42)),VLOOKUP($E42-22,AllData,COLUMN()-6-COLUMN($E42)),VLOOKUP($E42-23,AllData,COLUMN()-6-COLUMN($E42)),VLOOKUP($E42-24,AllData,COLUMN()-6-COLUMN($E42)),VLOOKUP($E42-25,AllData,COLUMN()-6-COLUMN($E42)),VLOOKUP($E42-26,AllData,COLUMN()-6-COLUMN($E42)),VLOOKUP($E42-27,AllData,COLUMN()-6-COLUMN($E42)),VLOOKUP($E42-28,AllData,COLUMN()-6-COLUMN($E42)),VLOOKUP($E42-29,AllData,COLUMN()-6-COLUMN($E42)))","v":439.48},{"$f":"VLOOKUP($E42,AllData,COLUMN()-7-COLUMN($E42))","v":0},{"$f":"OR('Cool Graph'!$I$1=35,'Cool Graph'!$I$1=36,'Cool Graph'!$I$1=37,'Cool Graph'!$I$1=38,'Cool Graph'!$I$1=39,'Cool Graph'!$I$1=40,'Cool Graph'!$I$1=41,'Cool Graph'!$I$1=42,'Cool Graph'!$I$1=43,'Cool Graph'!$I$1=44,'Cool Graph'!$I$1=45,'Cool Graph'!$I$1=46,'Cool Graph'!$I$1=47,'Cool Graph'!$I$1=58,'Cool Graph'!$I$1=66)","v":false}]
["2011-08-11",{"$f":"OFFSET(OldSchoolJustValues!A43,0,'Cool Graph'!$H$1)","v":0},{"$f":"OFFSET(OldSchoolJustValues!A43,0,'Cool Graph'!$I$1)","v":-4.9566862910491096},null,{"$f":"IF(NewDate>EndDate,NA(),NewDate)","v":"2011-11-06"},{"$f":"IF($E43>EndDate,NA(),IF($K$2=TRUE,N43,IF('Cool Graph'!$B$17=1,N43,IF('Cool Graph'!$B$17=2,L43,IF('Cool Graph'!$B$17=3,M43,)))))","v":0},{"$f":"IF($E43>EndDate,NA(),IF($O$2=TRUE,J43,IF('Cool Graph'!$B$17=1,Data1!J43,IF('Cool Graph'!$B$17=2,Data1!H43,IF('Cool Graph'!$B$17=3,Data1!I43,)))))","v":552.30307821636165},{"$f":"SUM(VLOOKUP($E43,AllData,COLUMN()-COLUMN($E43)),VLOOKUP($E43-1,AllData,COLUMN()-COLUMN($E43)),VLOOKUP($E43-2,AllData,COLUMN()-COLUMN($E43)),VLOOKUP($E43-3,AllData,COLUMN()-COLUMN($E43)),VLOOKUP($E43-4,AllData,COLUMN()-COLUMN($E43)),VLOOKUP($E43-5,AllData,COLUMN()-COLUMN($E43)),VLOOKUP($E43-6,AllData,COLUMN()-COLUMN($E43)))","v":2103.2417524246612},{"$f":"SUM(VLOOKUP($E43,AllData,COLUMN()-1-COLUMN($E43)),VLOOKUP($E43-1,AllData,COLUMN()-1-COLUMN($E43)),VLOOKUP($E43-2,AllData,COLUMN()-1-COLUMN($E43)),VLOOKUP($E43-3,AllData,COLUMN()-1-COLUMN($E43)),VLOOKUP($E43-4,AllData,COLUMN()-1-COLUMN($E43)),VLOOKUP($E43-5,AllData,COLUMN()-1-COLUMN($E43)),VLOOKUP($E43-6,AllData,COLUMN()-1-COLUMN($E43)),VLOOKUP($E43-7,AllData,COLUMN()-1-COLUMN($E43)),VLOOKUP($E43-8,AllData,COLUMN()-1-COLUMN($E43)),VLOOKUP($E43-9,AllData,COLUMN()-1-COLUMN($E43)),VLOOKUP($E43-10,AllData,COLUMN()-1-COLUMN($E43)),VLOOKUP($E43-11,AllData,COLUMN()-1-COLUMN($E43)),VLOOKUP($E43-12,AllData,COLUMN()-1-COLUMN($E43)),VLOOKUP($E43-13,AllData,COLUMN()-1-COLUMN($E43)),VLOOKUP($E43-14,AllData,COLUMN()-1-COLUMN($E43)),VLOOKUP($E43-15,AllData,COLUMN()-1-COLUMN($E43)),VLOOKUP($E43-16,AllData,COLUMN()-1-COLUMN($E43)),VLOOKUP($E43-17,AllData,COLUMN()-1-COLUMN($E43)),VLOOKUP($E43-18,AllData,COLUMN()-1-COLUMN($E43)),VLOOKUP($E43-19,AllData,COLUMN()-1-COLUMN($E43)),VLOOKUP($E43-20,AllData,COLUMN()-1-COLUMN($E43)),VLOOKUP($E43-21,AllData,COLUMN()-1-COLUMN($E43)),VLOOKUP($E43-22,AllData,COLUMN()-1-COLUMN($E43)),VLOOKUP($E43-23,AllData,COLUMN()-1-COLUMN($E43)),VLOOKUP($E43-24,AllData,COLUMN()-1-COLUMN($E43)),VLOOKUP($E43-25,AllData,COLUMN()-1-COLUMN($E43)),VLOOKUP($E43-26,AllData,COLUMN()-1-COLUMN($E43)),VLOOKUP($E43-27,AllData,COLUMN()-1-COLUMN($E43)),VLOOKUP($E43-28,AllData,COLUMN()-1-COLUMN($E43)),VLOOKUP($E43-29,AllData,COLUMN()-1-COLUMN($E43)))","v":8814.0439590452024},{"$f":"VLOOKUP($E43,AllData,COLUMN()-2-COLUMN($E43))","v":552.30307821636165},{"$f":"OR('Cool Graph'!$H$1=35,'Cool Graph'!$H$1=36,'Cool Graph'!$H$1=37,'Cool Graph'!$H$1=38,'Cool Graph'!$H$1=39,'Cool Graph'!$H$1=40,'Cool Graph'!$H$1=41,'Cool Graph'!$H$1=42,'Cool Graph'!$H$1=43,'Cool Graph'!$H$1=44,'Cool Graph'!$H$1=45,'Cool Graph'!$H$1=46,'Cool Graph'!$H$1=47,'Cool Graph'!$H$1=58,'Cool Graph'!$H$1=66)","v":false},{"$f":"SUM(VLOOKUP($E43,AllData,COLUMN()-5-COLUMN($E43)),VLOOKUP($E43-1,AllData,COLUMN()-5-COLUMN($E43)),VLOOKUP($E43-2,AllData,COLUMN()-5-COLUMN($E43)),VLOOKUP($E43-3,AllData,COLUMN()-5-COLUMN($E43)),VLOOKUP($E43-4,AllData,COLUMN()-5-COLUMN($E43)),VLOOKUP($E43-5,AllData,COLUMN()-5-COLUMN($E43)),VLOOKUP($E43-6,AllData,COLUMN()-5-COLUMN($E43)))","v":0},{"$f":"SUM(VLOOKUP($E43,AllData,COLUMN()-6-COLUMN($E43)),VLOOKUP($E43-1,AllData,COLUMN()-6-COLUMN($E43)),VLOOKUP($E43-2,AllData,COLUMN()-6-COLUMN($E43)),VLOOKUP($E43-3,AllData,COLUMN()-6-COLUMN($E43)),VLOOKUP($E43-4,AllData,COLUMN()-6-COLUMN($E43)),VLOOKUP($E43-5,AllData,COLUMN()-6-COLUMN($E43)),VLOOKUP($E43-6,AllData,COLUMN()-6-COLUMN($E43)),VLOOKUP($E43-7,AllData,COLUMN()-6-COLUMN($E43)),VLOOKUP($E43-8,AllData,COLUMN()-6-COLUMN($E43)),VLOOKUP($E43-9,AllData,COLUMN()-6-COLUMN($E43)),VLOOKUP($E43-10,AllData,COLUMN()-6-COLUMN($E43)),VLOOKUP($E43-11,AllData,COLUMN()-6-COLUMN($E43)),VLOOKUP($E43-12,AllData,COLUMN()-6-COLUMN($E43)),VLOOKUP($E43-13,AllData,COLUMN()-6-COLUMN($E43)),VLOOKUP($E43-14,AllData,COLUMN()-6-COLUMN($E43)),VLOOKUP($E43-15,AllData,COLUMN()-6-COLUMN($E43)),VLOOKUP($E43-16,AllData,COLUMN()-6-COLUMN($E43)),VLOOKUP($E43-17,AllData,COLUMN()-6-COLUMN($E43)),VLOOKUP($E43-18,AllData,COLUMN()-6-COLUMN($E43)),VLOOKUP($E43-19,AllData,COLUMN()-6-COLUMN($E43)),VLOOKUP($E43-20,AllData,COLUMN()-6-COLUMN($E43)),VLOOKUP($E43-21,AllData,COLUMN()-6-COLUMN($E43)),VLOOKUP($E43-22,AllData,COLUMN()-6-COLUMN($E43)),VLOOKUP($E43-23,AllData,COLUMN()-6-COLUMN($E43)),VLOOKUP($E43-24,AllData,COLUMN()-6-COLUMN($E43)),VLOOKUP($E43-25,AllData,COLUMN()-6-COLUMN($E43)),VLOOKUP($E43-26,AllData,COLUMN()-6-COLUMN($E43)),VLOOKUP($E43-27,AllData,COLUMN()-6-COLUMN($E43)),VLOOKUP($E43-28,AllData,COLUMN()-6-COLUMN($E43)),VLOOKUP($E43-29,AllData,COLUMN()-6-COLUMN($E43)))","v":377.32000000000005},{"$f":"VLOOKUP($E43,AllData,COLUMN()-7-COLUMN($E43))","v":0},{"$f":"OR('Cool Graph'!$I$1=35,'Cool Graph'!$I$1=36,'Cool Graph'!$I$1=37,'Cool Graph'!$I$1=38,'Cool Graph'!$I$1=39,'Cool Graph'!$I$1=40,'Cool Graph'!$I$1=41,'Cool Graph'!$I$1=42,'Cool Graph'!$I$1=43,'Cool Graph'!$I$1=44,'Cool Graph'!$I$1=45,'Cool Graph'!$I$1=46,'Cool Graph'!$I$1=47,'Cool Graph'!$I$1=58,'Cool Graph'!$I$1=66)","v":false}]
["2011-08-12",{"$f":"OFFSET(OldSchoolJustValues!A44,0,'Cool Graph'!$H$1)","v":0},{"$f":"OFFSET(OldSchoolJustValues!A44,0,'Cool Graph'!$I$1)","v":104.72994112685269},null,{"$f":"IF(NewDate>EndDate,NA(),NewDate)","v":"2011-11-07"},{"$f":"IF($E44>EndDate,NA(),IF($K$2=TRUE,N44,IF('Cool Graph'!$B$17=1,N44,IF('Cool Graph'!$B$17=2,L44,IF('Cool Graph'!$B$17=3,M44,)))))","v":0},{"$f":"IF($E44>EndDate,NA(),IF($O$2=TRUE,J44,IF('Cool Graph'!$B$17=1,Data1!J44,IF('Cool Graph'!$B$17=2,Data1!H44,IF('Cool Graph'!$B$17=3,Data1!I44,)))))","v":398.82473124802971},{"$f":"SUM(VLOOKUP($E44,AllData,COLUMN()-COLUMN($E44)),VLOOKUP($E44-1,AllData,COLUMN()-COLUMN($E44)),VLOOKUP($E44-2,AllData,COLUMN()-COLUMN($E44)),VLOOKUP($E44-3,AllData,COLUMN()-COLUMN($E44)),VLOOKUP($E44-4,AllData,COLUMN()-COLUMN($E44)),VLOOKUP($E44-5,AllData,COLUMN()-COLUMN($E44)),VLOOKUP($E44-6,AllData,COLUMN()-COLUMN($E44)))","v":2436.253228836887},{"$f":"SUM(VLOOKUP($E44,AllData,COLUMN()-1-COLUMN($E44)),VLOOKUP($E44-1,AllData,COLUMN()-1-COLUMN($E44)),VLOOKUP($E44-2,AllData,COLUMN()-1-COLUMN($E44)),VLOOKUP($E44-3,AllData,COLUMN()-1-COLUMN($E44)),VLOOKUP($E44-4,AllData,COLUMN()-1-COLUMN($E44)),VLOOKUP($E44-5,AllData,COLUMN()-1-COLUMN($E44)),VLOOKUP($E44-6,AllData,COLUMN()-1-COLUMN($E44)),VLOOKUP($E44-7,AllData,COLUMN()-1-COLUMN($E44)),VLOOKUP($E44-8,AllData,COLUMN()-1-COLUMN($E44)),VLOOKUP($E44-9,AllData,COLUMN()-1-COLUMN($E44)),VLOOKUP($E44-10,AllData,COLUMN()-1-COLUMN($E44)),VLOOKUP($E44-11,AllData,COLUMN()-1-COLUMN($E44)),VLOOKUP($E44-12,AllData,COLUMN()-1-COLUMN($E44)),VLOOKUP($E44-13,AllData,COLUMN()-1-COLUMN($E44)),VLOOKUP($E44-14,AllData,COLUMN()-1-COLUMN($E44)),VLOOKUP($E44-15,AllData,COLUMN()-1-COLUMN($E44)),VLOOKUP($E44-16,AllData,COLUMN()-1-COLUMN($E44)),VLOOKUP($E44-17,AllData,COLUMN()-1-COLUMN($E44)),VLOOKUP($E44-18,AllData,COLUMN()-1-COLUMN($E44)),VLOOKUP($E44-19,AllData,COLUMN()-1-COLUMN($E44)),VLOOKUP($E44-20,AllData,COLUMN()-1-COLUMN($E44)),VLOOKUP($E44-21,AllData,COLUMN()-1-COLUMN($E44)),VLOOKUP($E44-22,AllData,COLUMN()-1-COLUMN($E44)),VLOOKUP($E44-23,AllData,COLUMN()-1-COLUMN($E44)),VLOOKUP($E44-24,AllData,COLUMN()-1-COLUMN($E44)),VLOOKUP($E44-25,AllData,COLUMN()-1-COLUMN($E44)),VLOOKUP($E44-26,AllData,COLUMN()-1-COLUMN($E44)),VLOOKUP($E44-27,AllData,COLUMN()-1-COLUMN($E44)),VLOOKUP($E44-28,AllData,COLUMN()-1-COLUMN($E44)),VLOOKUP($E44-29,AllData,COLUMN()-1-COLUMN($E44)))","v":9238.9854354574272},{"$f":"VLOOKUP($E44,AllData,COLUMN()-2-COLUMN($E44))","v":398.82473124802971},{"$f":"OR('Cool Graph'!$H$1=35,'Cool Graph'!$H$1=36,'Cool Graph'!$H$1=37,'Cool Graph'!$H$1=38,'Cool Graph'!$H$1=39,'Cool Graph'!$H$1=40,'Cool Graph'!$H$1=41,'Cool Graph'!$H$1=42,'Cool Graph'!$H$1=43,'Cool Graph'!$H$1=44,'Cool Graph'!$H$1=45,'Cool Graph'!$H$1=46,'Cool Graph'!$H$1=47,'Cool Graph'!$H$1=58,'Cool Graph'!$H$1=66)","v":false},{"$f":"SUM(VLOOKUP($E44,AllData,COLUMN()-5-COLUMN($E44)),VLOOKUP($E44-1,AllData,COLUMN()-5-COLUMN($E44)),VLOOKUP($E44-2,AllData,COLUMN()-5-COLUMN($E44)),VLOOKUP($E44-3,AllData,COLUMN()-5-COLUMN($E44)),VLOOKUP($E44-4,AllData,COLUMN()-5-COLUMN($E44)),VLOOKUP($E44-5,AllData,COLUMN()-5-COLUMN($E44)),VLOOKUP($E44-6,AllData,COLUMN()-5-COLUMN($E44)))","v":0},{"$f":"SUM(VLOOKUP($E44,AllData,COLUMN()-6-COLUMN($E44)),VLOOKUP($E44-1,AllData,COLUMN()-6-COLUMN($E44)),VLOOKUP($E44-2,AllData,COLUMN()-6-COLUMN($E44)),VLOOKUP($E44-3,AllData,COLUMN()-6-COLUMN($E44)),VLOOKUP($E44-4,AllData,COLUMN()-6-COLUMN($E44)),VLOOKUP($E44-5,AllData,COLUMN()-6-COLUMN($E44)),VLOOKUP($E44-6,AllData,COLUMN()-6-COLUMN($E44)),VLOOKUP($E44-7,AllData,COLUMN()-6-COLUMN($E44)),VLOOKUP($E44-8,AllData,COLUMN()-6-COLUMN($E44)),VLOOKUP($E44-9,AllData,COLUMN()-6-COLUMN($E44)),VLOOKUP($E44-10,AllData,COLUMN()-6-COLUMN($E44)),VLOOKUP($E44-11,AllData,COLUMN()-6-COLUMN($E44)),VLOOKUP($E44-12,AllData,COLUMN()-6-COLUMN($E44)),VLOOKUP($E44-13,AllData,COLUMN()-6-COLUMN($E44)),VLOOKUP($E44-14,AllData,COLUMN()-6-COLUMN($E44)),VLOOKUP($E44-15,AllData,COLUMN()-6-COLUMN($E44)),VLOOKUP($E44-16,AllData,COLUMN()-6-COLUMN($E44)),VLOOKUP($E44-17,AllData,COLUMN()-6-COLUMN($E44)),VLOOKUP($E44-18,AllData,COLUMN()-6-COLUMN($E44)),VLOOKUP($E44-19,AllData,COLUMN()-6-COLUMN($E44)),VLOOKUP($E44-20,AllData,COLUMN()-6-COLUMN($E44)),VLOOKUP($E44-21,AllData,COLUMN()-6-COLUMN($E44)),VLOOKUP($E44-22,AllData,COLUMN()-6-COLUMN($E44)),VLOOKUP($E44-23,AllData,COLUMN()-6-COLUMN($E44)),VLOOKUP($E44-24,AllData,COLUMN()-6-COLUMN($E44)),VLOOKUP($E44-25,AllData,COLUMN()-6-COLUMN($E44)),VLOOKUP($E44-26,AllData,COLUMN()-6-COLUMN($E44)),VLOOKUP($E44-27,AllData,COLUMN()-6-COLUMN($E44)),VLOOKUP($E44-28,AllData,COLUMN()-6-COLUMN($E44)),VLOOKUP($E44-29,AllData,COLUMN()-6-COLUMN($E44)))","v":359.6},{"$f":"VLOOKUP($E44,AllData,COLUMN()-7-COLUMN($E44))","v":0},{"$f":"OR('Cool Graph'!$I$1=35,'Cool Graph'!$I$1=36,'Cool Graph'!$I$1=37,'Cool Graph'!$I$1=38,'Cool Graph'!$I$1=39,'Cool Graph'!$I$1=40,'Cool Graph'!$I$1=41,'Cool Graph'!$I$1=42,'Cool Graph'!$I$1=43,'Cool Graph'!$I$1=44,'Cool Graph'!$I$1=45,'Cool Graph'!$I$1=46,'Cool Graph'!$I$1=47,'Cool Graph'!$I$1=58,'Cool Graph'!$I$1=66)","v":false}]
["2011-08-13",{"$f":"OFFSET(OldSchoolJustValues!A45,0,'Cool Graph'!$H$1)","v":0},{"$f":"OFFSET(OldSchoolJustValues!A45,0,'Cool Graph'!$I$1)","v":63.136627417901806},null,{"$f":"IF(NewDate>EndDate,NA(),NewDate)","v":"2011-11-08"},{"$f":"IF($E45>EndDate,NA(),IF($K$2=TRUE,N45,IF('Cool Graph'!$B$17=1,N45,IF('Cool Graph'!$B$17=2,L45,IF('Cool Graph'!$B$17=3,M45,)))))","v":0},{"$f":"IF($E45>EndDate,NA(),IF($O$2=TRUE,J45,IF('Cool Graph'!$B$17=1,Data1!J45,IF('Cool Graph'!$B$17=2,Data1!H45,IF('Cool Graph'!$B$17=3,Data1!I45,)))))","v":606.48307821636172},{"$f":"SUM(VLOOKUP($E45,AllData,COLUMN()-COLUMN($E45)),VLOOKUP($E45-1,AllData,COLUMN()-COLUMN($E45)),VLOOKUP($E45-2,AllData,COLUMN()-COLUMN($E45)),VLOOKUP($E45-3,AllData,COLUMN()-COLUMN($E45)),VLOOKUP($E45-4,AllData,COLUMN()-COLUMN($E45)),VLOOKUP($E45-5,AllData,COLUMN()-COLUMN($E45)),VLOOKUP($E45-6,AllData,COLUMN()-COLUMN($E45)))","v":2886.4764247995436},{"$f":"SUM(VLOOKUP($E45,AllData,COLUMN()-1-COLUMN($E45)),VLOOKUP($E45-1,AllData,COLUMN()-1-COLUMN($E45)),VLOOKUP($E45-2,AllData,COLUMN()-1-COLUMN($E45)),VLOOKUP($E45-3,AllData,COLUMN()-1-COLUMN($E45)),VLOOKUP($E45-4,AllData,COLUMN()-1-COLUMN($E45)),VLOOKUP($E45-5,AllData,COLUMN()-1-COLUMN($E45)),VLOOKUP($E45-6,AllData,COLUMN()-1-COLUMN($E45)),VLOOKUP($E45-7,AllData,COLUMN()-1-COLUMN($E45)),VLOOKUP($E45-8,AllData,COLUMN()-1-COLUMN($E45)),VLOOKUP($E45-9,AllData,COLUMN()-1-COLUMN($E45)),VLOOKUP($E45-10,AllData,COLUMN()-1-COLUMN($E45)),VLOOKUP($E45-11,AllData,COLUMN()-1-COLUMN($E45)),VLOOKUP($E45-12,AllData,COLUMN()-1-COLUMN($E45)),VLOOKUP($E45-13,AllData,COLUMN()-1-COLUMN($E45)),VLOOKUP($E45-14,AllData,COLUMN()-1-COLUMN($E45)),VLOOKUP($E45-15,AllData,COLUMN()-1-COLUMN($E45)),VLOOKUP($E45-16,AllData,COLUMN()-1-COLUMN($E45)),VLOOKUP($E45-17,AllData,COLUMN()-1-COLUMN($E45)),VLOOKUP($E45-18,AllData,COLUMN()-1-COLUMN($E45)),VLOOKUP($E45-19,AllData,COLUMN()-1-COLUMN($E45)),VLOOKUP($E45-20,AllData,COLUMN()-1-COLUMN($E45)),VLOOKUP($E45-21,AllData,COLUMN()-1-COLUMN($E45)),VLOOKUP($E45-22,AllData,COLUMN()-1-COLUMN($E45)),VLOOKUP($E45-23,AllData,COLUMN()-1-COLUMN($E45)),VLOOKUP($E45-24,AllData,COLUMN()-1-COLUMN($E45)),VLOOKUP($E45-25,AllData,COLUMN()-1-COLUMN($E45)),VLOOKUP($E45-26,AllData,COLUMN()-1-COLUMN($E45)),VLOOKUP($E45-27,AllData,COLUMN()-1-COLUMN($E45)),VLOOKUP($E45-28,AllData,COLUMN()-1-COLUMN($E45)),VLOOKUP($E45-29,AllData,COLUMN()-1-COLUMN($E45)))","v":9522.2157604056247},{"$f":"VLOOKUP($E45,AllData,COLUMN()-2-COLUMN($E45))","v":606.48307821636172},{"$f":"OR('Cool Graph'!$H$1=35,'Cool Graph'!$H$1=36,'Cool Graph'!$H$1=37,'Cool Graph'!$H$1=38,'Cool Graph'!$H$1=39,'Cool Graph'!$H$1=40,'Cool Graph'!$H$1=41,'Cool Graph'!$H$1=42,'Cool Graph'!$H$1=43,'Cool Graph'!$H$1=44,'Cool Graph'!$H$1=45,'Cool Graph'!$H$1=46,'Cool Graph'!$H$1=47,'Cool Graph'!$H$1=58,'Cool Graph'!$H$1=66)","v":false},{"$f":"SUM(VLOOKUP($E45,AllData,COLUMN()-5-COLUMN($E45)),VLOOKUP($E45-1,AllData,COLUMN()-5-COLUMN($E45)),VLOOKUP($E45-2,AllData,COLUMN()-5-COLUMN($E45)),VLOOKUP($E45-3,AllData,COLUMN()-5-COLUMN($E45)),VLOOKUP($E45-4,AllData,COLUMN()-5-COLUMN($E45)),VLOOKUP($E45-5,AllData,COLUMN()-5-COLUMN($E45)),VLOOKUP($E45-6,AllData,COLUMN()-5-COLUMN($E45)))","v":0},{"$f":"SUM(VLOOKUP($E45,AllData,COLUMN()-6-COLUMN($E45)),VLOOKUP($E45-1,AllData,COLUMN()-6-COLUMN($E45)),VLOOKUP($E45-2,AllData,COLUMN()-6-COLUMN($E45)),VLOOKUP($E45-3,AllData,COLUMN()-6-COLUMN($E45)),VLOOKUP($E45-4,AllData,COLUMN()-6-COLUMN($E45)),VLOOKUP($E45-5,AllData,COLUMN()-6-COLUMN($E45)),VLOOKUP($E45-6,AllData,COLUMN()-6-COLUMN($E45)),VLOOKUP($E45-7,AllData,COLUMN()-6-COLUMN($E45)),VLOOKUP($E45-8,AllData,COLUMN()-6-COLUMN($E45)),VLOOKUP($E45-9,AllData,COLUMN()-6-COLUMN($E45)),VLOOKUP($E45-10,AllData,COLUMN()-6-COLUMN($E45)),VLOOKUP($E45-11,AllData,COLUMN()-6-COLUMN($E45)),VLOOKUP($E45-12,AllData,COLUMN()-6-COLUMN($E45)),VLOOKUP($E45-13,AllData,COLUMN()-6-COLUMN($E45)),VLOOKUP($E45-14,AllData,COLUMN()-6-COLUMN($E45)),VLOOKUP($E45-15,AllData,COLUMN()-6-COLUMN($E45)),VLOOKUP($E45-16,AllData,COLUMN()-6-COLUMN($E45)),VLOOKUP($E45-17,AllData,COLUMN()-6-COLUMN($E45)),VLOOKUP($E45-18,AllData,COLUMN()-6-COLUMN($E45)),VLOOKUP($E45-19,AllData,COLUMN()-6-COLUMN($E45)),VLOOKUP($E45-20,AllData,COLUMN()-6-COLUMN($E45)),VLOOKUP($E45-21,AllData,COLUMN()-6-COLUMN($E45)),VLOOKUP($E45-22,AllData,COLUMN()-6-COLUMN($E45)),VLOOKUP($E45-23,AllData,COLUMN()-6-COLUMN($E45)),VLOOKUP($E45-24,AllData,COLUMN()-6-COLUMN($E45)),VLOOKUP($E45-25,AllData,COLUMN()-6-COLUMN($E45)),VLOOKUP($E45-26,AllData,COLUMN()-6-COLUMN($E45)),VLOOKUP($E45-27,AllData,COLUMN()-6-COLUMN($E45)),VLOOKUP($E45-28,AllData,COLUMN()-6-COLUMN($E45)),VLOOKUP($E45-29,AllData,COLUMN()-6-COLUMN($E45)))","v":322.73},{"$f":"VLOOKUP($E45,AllData,COLUMN()-7-COLUMN($E45))","v":0},{"$f":"OR('Cool Graph'!$I$1=35,'Cool Graph'!$I$1=36,'Cool Graph'!$I$1=37,'Cool Graph'!$I$1=38,'Cool Graph'!$I$1=39,'Cool Graph'!$I$1=40,'Cool Graph'!$I$1=41,'Cool Graph'!$I$1=42,'Cool Graph'!$I$1=43,'Cool Graph'!$I$1=44,'Cool Graph'!$I$1=45,'Cool Graph'!$I$1=46,'Cool Graph'!$I$1=47,'Cool Graph'!$I$1=58,'Cool Graph'!$I$1=66)","v":false}]
["2011-08-14",{"$f":"OFFSET(OldSchoolJustValues!A46,0,'Cool Graph'!$H$1)","v":0},{"$f":"OFFSET(OldSchoolJustValues!A46,0,'Cool Graph'!$I$1)","v":54.616627417901796},null,{"$f":"IF(NewDate>EndDate,NA(),NewDate)","v":"2011-11-09"},{"$f":"IF($E46>EndDate,NA(),IF($K$2=TRUE,N46,IF('Cool Graph'!$B$17=1,N46,IF('Cool Graph'!$B$17=2,L46,IF('Cool Graph'!$B$17=3,M46,)))))","v":0},{"$f":"IF($E46>EndDate,NA(),IF($O$2=TRUE,J46,IF('Cool Graph'!$B$17=1,Data1!J46,IF('Cool Graph'!$B$17=2,Data1!H46,IF('Cool Graph'!$B$17=3,Data1!I46,)))))","v":457.11313708950894},{"$f":"SUM(VLOOKUP($E46,AllData,COLUMN()-COLUMN($E46)),VLOOKUP($E46-1,AllData,COLUMN()-COLUMN($E46)),VLOOKUP($E46-2,AllData,COLUMN()-COLUMN($E46)),VLOOKUP($E46-3,AllData,COLUMN()-COLUMN($E46)),VLOOKUP($E46-4,AllData,COLUMN()-COLUMN($E46)),VLOOKUP($E46-5,AllData,COLUMN()-COLUMN($E46)),VLOOKUP($E46-6,AllData,COLUMN()-COLUMN($E46)))","v":2758.8018342346531},{"$f":"SUM(VLOOKUP($E46,AllData,COLUMN()-1-COLUMN($E46)),VLOOKUP($E46-1,AllData,COLUMN()-1-COLUMN($E46)),VLOOKUP($E46-2,AllData,COLUMN()-1-COLUMN($E46)),VLOOKUP($E46-3,AllData,COLUMN()-1-COLUMN($E46)),VLOOKUP($E46-4,AllData,COLUMN()-1-COLUMN($E46)),VLOOKUP($E46-5,AllData,COLUMN()-1-COLUMN($E46)),VLOOKUP($E46-6,AllData,COLUMN()-1-COLUMN($E46)),VLOOKUP($E46-7,AllData,COLUMN()-1-COLUMN($E46)),VLOOKUP($E46-8,AllData,COLUMN()-1-COLUMN($E46)),VLOOKUP($E46-9,AllData,COLUMN()-1-COLUMN($E46)),VLOOKUP($E46-10,AllData,COLUMN()-1-COLUMN($E46)),VLOOKUP($E46-11,AllData,COLUMN()-1-COLUMN($E46)),VLOOKUP($E46-12,AllData,COLUMN()-1-COLUMN($E46)),VLOOKUP($E46-13,AllData,COLUMN()-1-COLUMN($E46)),VLOOKUP($E46-14,AllData,COLUMN()-1-COLUMN($E46)),VLOOKUP($E46-15,AllData,COLUMN()-1-COLUMN($E46)),VLOOKUP($E46-16,AllData,COLUMN()-1-COLUMN($E46)),VLOOKUP($E46-17,AllData,COLUMN()-1-COLUMN($E46)),VLOOKUP($E46-18,AllData,COLUMN()-1-COLUMN($E46)),VLOOKUP($E46-19,AllData,COLUMN()-1-COLUMN($E46)),VLOOKUP($E46-20,AllData,COLUMN()-1-COLUMN($E46)),VLOOKUP($E46-21,AllData,COLUMN()-1-COLUMN($E46)),VLOOKUP($E46-22,AllData,COLUMN()-1-COLUMN($E46)),VLOOKUP($E46-23,AllData,COLUMN()-1-COLUMN($E46)),VLOOKUP($E46-24,AllData,COLUMN()-1-COLUMN($E46)),VLOOKUP($E46-25,AllData,COLUMN()-1-COLUMN($E46)),VLOOKUP($E46-26,AllData,COLUMN()-1-COLUMN($E46)),VLOOKUP($E46-27,AllData,COLUMN()-1-COLUMN($E46)),VLOOKUP($E46-28,AllData,COLUMN()-1-COLUMN($E46)),VLOOKUP($E46-29,AllData,COLUMN()-1-COLUMN($E46)))","v":9750.1124466966739},{"$f":"VLOOKUP($E46,AllData,COLUMN()-2-COLUMN($E46))","v":457.11313708950894},{"$f":"OR('Cool Graph'!$H$1=35,'Cool Graph'!$H$1=36,'Cool Graph'!$H$1=37,'Cool Graph'!$H$1=38,'Cool Graph'!$H$1=39,'Cool Graph'!$H$1=40,'Cool Graph'!$H$1=41,'Cool Graph'!$H$1=42,'Cool Graph'!$H$1=43,'Cool Graph'!$H$1=44,'Cool Graph'!$H$1=45,'Cool Graph'!$H$1=46,'Cool Graph'!$H$1=47,'Cool Graph'!$H$1=58,'Cool Graph'!$H$1=66)","v":false},{"$f":"SUM(VLOOKUP($E46,AllData,COLUMN()-5-COLUMN($E46)),VLOOKUP($E46-1,AllData,COLUMN()-5-COLUMN($E46)),VLOOKUP($E46-2,AllData,COLUMN()-5-COLUMN($E46)),VLOOKUP($E46-3,AllData,COLUMN()-5-COLUMN($E46)),VLOOKUP($E46-4,AllData,COLUMN()-5-COLUMN($E46)),VLOOKUP($E46-5,AllData,COLUMN()-5-COLUMN($E46)),VLOOKUP($E46-6,AllData,COLUMN()-5-COLUMN($E46)))","v":0},{"$f":"SUM(VLOOKUP($E46,AllData,COLUMN()-6-COLUMN($E46)),VLOOKUP($E46-1,AllData,COLUMN()-6-COLUMN($E46)),VLOOKUP($E46-2,AllData,COLUMN()-6-COLUMN($E46)),VLOOKUP($E46-3,AllData,COLUMN()-6-COLUMN($E46)),VLOOKUP($E46-4,AllData,COLUMN()-6-COLUMN($E46)),VLOOKUP($E46-5,AllData,COLUMN()-6-COLUMN($E46)),VLOOKUP($E46-6,AllData,COLUMN()-6-COLUMN($E46)),VLOOKUP($E46-7,AllData,COLUMN()-6-COLUMN($E46)),VLOOKUP($E46-8,AllData,COLUMN()-6-COLUMN($E46)),VLOOKUP($E46-9,AllData,COLUMN()-6-COLUMN($E46)),VLOOKUP($E46-10,AllData,COLUMN()-6-COLUMN($E46)),VLOOKUP($E46-11,AllData,COLUMN()-6-COLUMN($E46)),VLOOKUP($E46-12,AllData,COLUMN()-6-COLUMN($E46)),VLOOKUP($E46-13,AllData,COLUMN()-6-COLUMN($E46)),VLOOKUP($E46-14,AllData,COLUMN()-6-COLUMN($E46)),VLOOKUP($E46-15,AllData,COLUMN()-6-COLUMN($E46)),VLOOKUP($E46-16,AllData,COLUMN()-6-COLUMN($E46)),VLOOKUP($E46-17,AllData,COLUMN()-6-COLUMN($E46)),VLOOKUP($E46-18,AllData,COLUMN()-6-COLUMN($E46)),VLOOKUP($E46-19,AllData,COLUMN()-6-COLUMN($E46)),VLOOKUP($E46-20,AllData,COLUMN()-6-COLUMN($E46)),VLOOKUP($E46-21,AllData,COLUMN()-6-COLUMN($E46)),VLOOKUP($E46-22,AllData,COLUMN()-6-COLUMN($E46)),VLOOKUP($E46-23,AllData,COLUMN()-6-COLUMN($E46)),VLOOKUP($E46-24,AllData,COLUMN()-6-COLUMN($E46)),VLOOKUP($E46-25,AllData,COLUMN()-6-COLUMN($E46)),VLOOKUP($E46-26,AllData,COLUMN()-6-COLUMN($E46)),VLOOKUP($E46-27,AllData,COLUMN()-6-COLUMN($E46)),VLOOKUP($E46-28,AllData,COLUMN()-6-COLUMN($E46)),VLOOKUP($E46-29,AllData,COLUMN()-6-COLUMN($E46)))","v":77.69},{"$f":"VLOOKUP($E46,AllData,COLUMN()-7-COLUMN($E46))","v":0},{"$f":"OR('Cool Graph'!$I$1=35,'Cool Graph'!$I$1=36,'Cool Graph'!$I$1=37,'Cool Graph'!$I$1=38,'Cool Graph'!$I$1=39,'Cool Graph'!$I$1=40,'Cool Graph'!$I$1=41,'Cool Graph'!$I$1=42,'Cool Graph'!$I$1=43,'Cool Graph'!$I$1=44,'Cool Graph'!$I$1=45,'Cool Graph'!$I$1=46,'Cool Graph'!$I$1=47,'Cool Graph'!$I$1=58,'Cool Graph'!$I$1=66)","v":false}]
["2011-08-15",{"$f":"OFFSET(OldSchoolJustValues!A47,0,'Cool Graph'!$H$1)","v":0},{"$f":"OFFSET(OldSchoolJustValues!A47,0,'Cool Graph'!$I$1)","v":54.566627417901799},null,{"$f":"IF(NewDate>EndDate,NA(),NewDate)","v":"2011-11-10"},{"$f":"IF($E47>EndDate,NA(),IF($K$2=TRUE,N47,IF('Cool Graph'!$B$17=1,N47,IF('Cool Graph'!$B$17=2,L47,IF('Cool Graph'!$B$17=3,M47,)))))","v":0},{"$f":"IF($E47>EndDate,NA(),IF($O$2=TRUE,J47,IF('Cool Graph'!$B$17=1,Data1!J47,IF('Cool Graph'!$B$17=2,Data1!H47,IF('Cool Graph'!$B$17=3,Data1!I47,)))))","v":77.523254835803613},{"$f":"SUM(VLOOKUP($E47,AllData,COLUMN()-COLUMN($E47)),VLOOKUP($E47-1,AllData,COLUMN()-COLUMN($E47)),VLOOKUP($E47-2,AllData,COLUMN()-COLUMN($E47)),VLOOKUP($E47-3,AllData,COLUMN()-COLUMN($E47)),VLOOKUP($E47-4,AllData,COLUMN()-COLUMN($E47)),VLOOKUP($E47-5,AllData,COLUMN()-COLUMN($E47)),VLOOKUP($E47-6,AllData,COLUMN()-COLUMN($E47)))","v":2433.1436715313785},{"$f":"SUM(VLOOKUP($E47,AllData,COLUMN()-1-COLUMN($E47)),VLOOKUP($E47-1,AllData,COLUMN()-1-COLUMN($E47)),VLOOKUP($E47-2,AllData,COLUMN()-1-COLUMN($E47)),VLOOKUP($E47-3,AllData,COLUMN()-1-COLUMN($E47)),VLOOKUP($E47-4,AllData,COLUMN()-1-COLUMN($E47)),VLOOKUP($E47-5,AllData,COLUMN()-1-COLUMN($E47)),VLOOKUP($E47-6,AllData,COLUMN()-1-COLUMN($E47)),VLOOKUP($E47-7,AllData,COLUMN()-1-COLUMN($E47)),VLOOKUP($E47-8,AllData,COLUMN()-1-COLUMN($E47)),VLOOKUP($E47-9,AllData,COLUMN()-1-COLUMN($E47)),VLOOKUP($E47-10,AllData,COLUMN()-1-COLUMN($E47)),VLOOKUP($E47-11,AllData,COLUMN()-1-COLUMN($E47)),VLOOKUP($E47-12,AllData,COLUMN()-1-COLUMN($E47)),VLOOKUP($E47-13,AllData,COLUMN()-1-COLUMN($E47)),VLOOKUP($E47-14,AllData,COLUMN()-1-COLUMN($E47)),VLOOKUP($E47-15,AllData,COLUMN()-1-COLUMN($E47)),VLOOKUP($E47-16,AllData,COLUMN()-1-COLUMN($E47)),VLOOKUP($E47-17,AllData,COLUMN()-1-COLUMN($E47)),VLOOKUP($E47-18,AllData,COLUMN()-1-COLUMN($E47)),VLOOKUP($E47-19,AllData,COLUMN()-1-COLUMN($E47)),VLOOKUP($E47-20,AllData,COLUMN()-1-COLUMN($E47)),VLOOKUP($E47-21,AllData,COLUMN()-1-COLUMN($E47)),VLOOKUP($E47-22,AllData,COLUMN()-1-COLUMN($E47)),VLOOKUP($E47-23,AllData,COLUMN()-1-COLUMN($E47)),VLOOKUP($E47-24,AllData,COLUMN()-1-COLUMN($E47)),VLOOKUP($E47-25,AllData,COLUMN()-1-COLUMN($E47)),VLOOKUP($E47-26,AllData,COLUMN()-1-COLUMN($E47)),VLOOKUP($E47-27,AllData,COLUMN()-1-COLUMN($E47)),VLOOKUP($E47-28,AllData,COLUMN()-1-COLUMN($E47)),VLOOKUP($E47-29,AllData,COLUMN()-1-COLUMN($E47)))","v":9712.8058192787721},{"$f":"VLOOKUP($E47,AllData,COLUMN()-2-COLUMN($E47))","v":77.523254835803613},{"$f":"OR('Cool Graph'!$H$1=35,'Cool Graph'!$H$1=36,'Cool Graph'!$H$1=37,'Cool Graph'!$H$1=38,'Cool Graph'!$H$1=39,'Cool Graph'!$H$1=40,'Cool Graph'!$H$1=41,'Cool Graph'!$H$1=42,'Cool Graph'!$H$1=43,'Cool Graph'!$H$1=44,'Cool Graph'!$H$1=45,'Cool Graph'!$H$1=46,'Cool Graph'!$H$1=47,'Cool Graph'!$H$1=58,'Cool Graph'!$H$1=66)","v":false},{"$f":"SUM(VLOOKUP($E47,AllData,COLUMN()-5-COLUMN($E47)),VLOOKUP($E47-1,AllData,COLUMN()-5-COLUMN($E47)),VLOOKUP($E47-2,AllData,COLUMN()-5-COLUMN($E47)),VLOOKUP($E47-3,AllData,COLUMN()-5-COLUMN($E47)),VLOOKUP($E47-4,AllData,COLUMN()-5-COLUMN($E47)),VLOOKUP($E47-5,AllData,COLUMN()-5-COLUMN($E47)),VLOOKUP($E47-6,AllData,COLUMN()-5-COLUMN($E47)))","v":0},{"$f":"SUM(VLOOKUP($E47,AllData,COLUMN()-6-COLUMN($E47)),VLOOKUP($E47-1,AllData,COLUMN()-6-COLUMN($E47)),VLOOKUP($E47-2,AllData,COLUMN()-6-COLUMN($E47)),VLOOKUP($E47-3,AllData,COLUMN()-6-COLUMN($E47)),VLOOKUP($E47-4,AllData,COLUMN()-6-COLUMN($E47)),VLOOKUP($E47-5,AllData,COLUMN()-6-COLUMN($E47)),VLOOKUP($E47-6,AllData,COLUMN()-6-COLUMN($E47)),VLOOKUP($E47-7,AllData,COLUMN()-6-COLUMN($E47)),VLOOKUP($E47-8,AllData,COLUMN()-6-COLUMN($E47)),VLOOKUP($E47-9,AllData,COLUMN()-6-COLUMN($E47)),VLOOKUP($E47-10,AllData,COLUMN()-6-COLUMN($E47)),VLOOKUP($E47-11,AllData,COLUMN()-6-COLUMN($E47)),VLOOKUP($E47-12,AllData,COLUMN()-6-COLUMN($E47)),VLOOKUP($E47-13,AllData,COLUMN()-6-COLUMN($E47)),VLOOKUP($E47-14,AllData,COLUMN()-6-COLUMN($E47)),VLOOKUP($E47-15,AllData,COLUMN()-6-COLUMN($E47)),VLOOKUP($E47-16,AllData,COLUMN()-6-COLUMN($E47)),VLOOKUP($E47-17,AllData,COLUMN()-6-COLUMN($E47)),VLOOKUP($E47-18,AllData,COLUMN()-6-COLUMN($E47)),VLOOKUP($E47-19,AllData,COLUMN()-6-COLUMN($E47)),VLOOKUP($E47-20,AllData,COLUMN()-6-COLUMN($E47)),VLOOKUP($E47-21,AllData,COLUMN()-6-COLUMN($E47)),VLOOKUP($E47-22,AllData,COLUMN()-6-COLUMN($E47)),VLOOKUP($E47-23,AllData,COLUMN()-6-COLUMN($E47)),VLOOKUP($E47-24,AllData,COLUMN()-6-COLUMN($E47)),VLOOKUP($E47-25,AllData,COLUMN()-6-COLUMN($E47)),VLOOKUP($E47-26,AllData,COLUMN()-6-COLUMN($E47)),VLOOKUP($E47-27,AllData,COLUMN()-6-COLUMN($E47)),VLOOKUP($E47-28,AllData,COLUMN()-6-COLUMN($E47)),VLOOKUP($E47-29,AllData,COLUMN()-6-COLUMN($E47)))","v":4.16},{"$f":"VLOOKUP($E47,AllData,COLUMN()-7-COLUMN($E47))","v":0},{"$f":"OR('Cool Graph'!$I$1=35,'Cool Graph'!$I$1=36,'Cool Graph'!$I$1=37,'Cool Graph'!$I$1=38,'Cool Graph'!$I$1=39,'Cool Graph'!$I$1=40,'Cool Graph'!$I$1=41,'Cool Graph'!$I$1=42,'Cool Graph'!$I$1=43,'Cool Graph'!$I$1=44,'Cool Graph'!$I$1=45,'Cool Graph'!$I$1=46,'Cool Graph'!$I$1=47,'Cool Graph'!$I$1=58,'Cool Graph'!$I$1=66)","v":false}]
["2011-08-16",{"$f":"OFFSET(OldSchoolJustValues!A48,0,'Cool Graph'!$H$1)","v":0},{"$f":"OFFSET(OldSchoolJustValues!A48,0,'Cool Graph'!$I$1)","v":-23.466686291049086},null,{"$f":"IF(NewDate>EndDate,NA(),NewDate)","v":"2011-11-11"},{"$f":"IF($E48>EndDate,NA(),IF($K$2=TRUE,N48,IF('Cool Graph'!$B$17=1,N48,IF('Cool Graph'!$B$17=2,L48,IF('Cool Graph'!$B$17=3,M48,)))))","v":0},{"$f":"IF($E48>EndDate,NA(),IF($O$2=TRUE,J48,IF('Cool Graph'!$B$17=1,Data1!J48,IF('Cool Graph'!$B$17=2,Data1!H48,IF('Cool Graph'!$B$17=3,Data1!I48,)))))","v":145.08656854475447},{"$f":"SUM(VLOOKUP($E48,AllData,COLUMN()-COLUMN($E48)),VLOOKUP($E48-1,AllData,COLUMN()-COLUMN($E48)),VLOOKUP($E48-2,AllData,COLUMN()-COLUMN($E48)),VLOOKUP($E48-3,AllData,COLUMN()-COLUMN($E48)),VLOOKUP($E48-4,AllData,COLUMN()-COLUMN($E48)),VLOOKUP($E48-5,AllData,COLUMN()-COLUMN($E48)),VLOOKUP($E48-6,AllData,COLUMN()-COLUMN($E48)))","v":2262.1171029866236},{"$f":"SUM(VLOOKUP($E48,AllData,COLUMN()-1-COLUMN($E48)),VLOOKUP($E48-1,AllData,COLUMN()-1-COLUMN($E48)),VLOOKUP($E48-2,AllData,COLUMN()-1-COLUMN($E48)),VLOOKUP($E48-3,AllData,COLUMN()-1-COLUMN($E48)),VLOOKUP($E48-4,AllData,COLUMN()-1-COLUMN($E48)),VLOOKUP($E48-5,AllData,COLUMN()-1-COLUMN($E48)),VLOOKUP($E48-6,AllData,COLUMN()-1-COLUMN($E48)),VLOOKUP($E48-7,AllData,COLUMN()-1-COLUMN($E48)),VLOOKUP($E48-8,AllData,COLUMN()-1-COLUMN($E48)),VLOOKUP($E48-9,AllData,COLUMN()-1-COLUMN($E48)),VLOOKUP($E48-10,AllData,COLUMN()-1-COLUMN($E48)),VLOOKUP($E48-11,AllData,COLUMN()-1-COLUMN($E48)),VLOOKUP($E48-12,AllData,COLUMN()-1-COLUMN($E48)),VLOOKUP($E48-13,AllData,COLUMN()-1-COLUMN($E48)),VLOOKUP($E48-14,AllData,COLUMN()-1-COLUMN($E48)),VLOOKUP($E48-15,AllData,COLUMN()-1-COLUMN($E48)),VLOOKUP($E48-16,AllData,COLUMN()-1-COLUMN($E48)),VLOOKUP($E48-17,AllData,COLUMN()-1-COLUMN($E48)),VLOOKUP($E48-18,AllData,COLUMN()-1-COLUMN($E48)),VLOOKUP($E48-19,AllData,COLUMN()-1-COLUMN($E48)),VLOOKUP($E48-20,AllData,COLUMN()-1-COLUMN($E48)),VLOOKUP($E48-21,AllData,COLUMN()-1-COLUMN($E48)),VLOOKUP($E48-22,AllData,COLUMN()-1-COLUMN($E48)),VLOOKUP($E48-23,AllData,COLUMN()-1-COLUMN($E48)),VLOOKUP($E48-24,AllData,COLUMN()-1-COLUMN($E48)),VLOOKUP($E48-25,AllData,COLUMN()-1-COLUMN($E48)),VLOOKUP($E48-26,AllData,COLUMN()-1-COLUMN($E48)),VLOOKUP($E48-27,AllData,COLUMN()-1-COLUMN($E48)),VLOOKUP($E48-28,AllData,COLUMN()-1-COLUMN($E48)),VLOOKUP($E48-29,AllData,COLUMN()-1-COLUMN($E48)))","v":9280.9259370250657},{"$f":"VLOOKUP($E48,AllData,COLUMN()-2-COLUMN($E48))","v":145.08656854475447},{"$f":"OR('Cool Graph'!$H$1=35,'Cool Graph'!$H$1=36,'Cool Graph'!$H$1=37,'Cool Graph'!$H$1=38,'Cool Graph'!$H$1=39,'Cool Graph'!$H$1=40,'Cool Graph'!$H$1=41,'Cool Graph'!$H$1=42,'Cool Graph'!$H$1=43,'Cool Graph'!$H$1=44,'Cool Graph'!$H$1=45,'Cool Graph'!$H$1=46,'Cool Graph'!$H$1=47,'Cool Graph'!$H$1=58,'Cool Graph'!$H$1=66)","v":false},{"$f":"SUM(VLOOKUP($E48,AllData,COLUMN()-5-COLUMN($E48)),VLOOKUP($E48-1,AllData,COLUMN()-5-COLUMN($E48)),VLOOKUP($E48-2,AllData,COLUMN()-5-COLUMN($E48)),VLOOKUP($E48-3,AllData,COLUMN()-5-COLUMN($E48)),VLOOKUP($E48-4,AllData,COLUMN()-5-COLUMN($E48)),VLOOKUP($E48-5,AllData,COLUMN()-5-COLUMN($E48)),VLOOKUP($E48-6,AllData,COLUMN()-5-COLUMN($E48)))","v":0},{"$f":"SUM(VLOOKUP($E48,AllData,COLUMN()-6-COLUMN($E48)),VLOOKUP($E48-1,AllData,COLUMN()-6-COLUMN($E48)),VLOOKUP($E48-2,AllData,COLUMN()-6-COLUMN($E48)),VLOOKUP($E48-3,AllData,COLUMN()-6-COLUMN($E48)),VLOOKUP($E48-4,AllData,COLUMN()-6-COLUMN($E48)),VLOOKUP($E48-5,AllData,COLUMN()-6-COLUMN($E48)),VLOOKUP($E48-6,AllData,COLUMN()-6-COLUMN($E48)),VLOOKUP($E48-7,AllData,COLUMN()-6-COLUMN($E48)),VLOOKUP($E48-8,AllData,COLUMN()-6-COLUMN($E48)),VLOOKUP($E48-9,AllData,COLUMN()-6-COLUMN($E48)),VLOOKUP($E48-10,AllData,COLUMN()-6-COLUMN($E48)),VLOOKUP($E48-11,AllData,COLUMN()-6-COLUMN($E48)),VLOOKUP($E48-12,AllData,COLUMN()-6-COLUMN($E48)),VLOOKUP($E48-13,AllData,COLUMN()-6-COLUMN($E48)),VLOOKUP($E48-14,AllData,COLUMN()-6-COLUMN($E48)),VLOOKUP($E48-15,AllData,COLUMN()-6-COLUMN($E48)),VLOOKUP($E48-16,AllData,COLUMN()-6-COLUMN($E48)),VLOOKUP($E48-17,AllData,COLUMN()-6-COLUMN($E48)),VLOOKUP($E48-18,AllData,COLUMN()-6-COLUMN($E48)),VLOOKUP($E48-19,AllData,COLUMN()-6-COLUMN($E48)),VLOOKUP($E48-20,AllData,COLUMN()-6-COLUMN($E48)),VLOOKUP($E48-21,AllData,COLUMN()-6-COLUMN($E48)),VLOOKUP($E48-22,AllData,COLUMN()-6-COLUMN($E48)),VLOOKUP($E48-23,AllData,COLUMN()-6-COLUMN($E48)),VLOOKUP($E48-24,AllData,COLUMN()-6-COLUMN($E48)),VLOOKUP($E48-25,AllData,COLUMN()-6-COLUMN($E48)),VLOOKUP($E48-26,AllData,COLUMN()-6-COLUMN($E48)),VLOOKUP($E48-27,AllData,COLUMN()-6-COLUMN($E48)),VLOOKUP($E48-28,AllData,COLUMN()-6-COLUMN($E48)),VLOOKUP($E48-29,AllData,COLUMN()-6-COLUMN($E48)))","v":0},{"$f":"VLOOKUP($E48,AllData,COLUMN()-7-COLUMN($E48))","v":0},{"$f":"OR('Cool Graph'!$I$1=35,'Cool Graph'!$I$1=36,'Cool Graph'!$I$1=37,'Cool Graph'!$I$1=38,'Cool Graph'!$I$1=39,'Cool Graph'!$I$1=40,'Cool Graph'!$I$1=41,'Cool Graph'!$I$1=42,'Cool Graph'!$I$1=43,'Cool Graph'!$I$1=44,'Cool Graph'!$I$1=45,'Cool Graph'!$I$1=46,'Cool Graph'!$I$1=47,'Cool Graph'!$I$1=58,'Cool Graph'!$I$1=66)","v":false}]
["2011-08-17",{"$f":"OFFSET(OldSchoolJustValues!A49,0,'Cool Graph'!$H$1)","v":0},{"$f":"OFFSET(OldSchoolJustValues!A49,0,'Cool Graph'!$I$1)","v":-86.070000000000007},null,{"$f":"IF(NewDate>EndDate,NA(),NewDate)","v":"2011-11-12"},{"$f":"IF($E49>EndDate,NA(),IF($K$2=TRUE,N49,IF('Cool Graph'!$B$17=1,N49,IF('Cool Graph'!$B$17=2,L49,IF('Cool Graph'!$B$17=3,M49,)))))","v":0},{"$f":"IF($E49>EndDate,NA(),IF($O$2=TRUE,J49,IF('Cool Graph'!$B$17=1,Data1!J49,IF('Cool Graph'!$B$17=2,Data1!H49,IF('Cool Graph'!$B$17=3,Data1!I49,)))))","v":-2.3833725820981897},{"$f":"SUM(VLOOKUP($E49,AllData,COLUMN()-COLUMN($E49)),VLOOKUP($E49-1,AllData,COLUMN()-COLUMN($E49)),VLOOKUP($E49-2,AllData,COLUMN()-COLUMN($E49)),VLOOKUP($E49-3,AllData,COLUMN()-COLUMN($E49)),VLOOKUP($E49-4,AllData,COLUMN()-COLUMN($E49)),VLOOKUP($E49-5,AllData,COLUMN()-COLUMN($E49)),VLOOKUP($E49-6,AllData,COLUMN()-COLUMN($E49)))","v":2234.9504755687221},{"$f":"SUM(VLOOKUP($E49,AllData,COLUMN()-1-COLUMN($E49)),VLOOKUP($E49-1,AllData,COLUMN()-1-COLUMN($E49)),VLOOKUP($E49-2,AllData,COLUMN()-1-COLUMN($E49)),VLOOKUP($E49-3,AllData,COLUMN()-1-COLUMN($E49)),VLOOKUP($E49-4,AllData,COLUMN()-1-COLUMN($E49)),VLOOKUP($E49-5,AllData,COLUMN()-1-COLUMN($E49)),VLOOKUP($E49-6,AllData,COLUMN()-1-COLUMN($E49)),VLOOKUP($E49-7,AllData,COLUMN()-1-COLUMN($E49)),VLOOKUP($E49-8,AllData,COLUMN()-1-COLUMN($E49)),VLOOKUP($E49-9,AllData,COLUMN()-1-COLUMN($E49)),VLOOKUP($E49-10,AllData,COLUMN()-1-COLUMN($E49)),VLOOKUP($E49-11,AllData,COLUMN()-1-COLUMN($E49)),VLOOKUP($E49-12,AllData,COLUMN()-1-COLUMN($E49)),VLOOKUP($E49-13,AllData,COLUMN()-1-COLUMN($E49)),VLOOKUP($E49-14,AllData,COLUMN()-1-COLUMN($E49)),VLOOKUP($E49-15,AllData,COLUMN()-1-COLUMN($E49)),VLOOKUP($E49-16,AllData,COLUMN()-1-COLUMN($E49)),VLOOKUP($E49-17,AllData,COLUMN()-1-COLUMN($E49)),VLOOKUP($E49-18,AllData,COLUMN()-1-COLUMN($E49)),VLOOKUP($E49-19,AllData,COLUMN()-1-COLUMN($E49)),VLOOKUP($E49-20,AllData,COLUMN()-1-COLUMN($E49)),VLOOKUP($E49-21,AllData,COLUMN()-1-COLUMN($E49)),VLOOKUP($E49-22,AllData,COLUMN()-1-COLUMN($E49)),VLOOKUP($E49-23,AllData,COLUMN()-1-COLUMN($E49)),VLOOKUP($E49-24,AllData,COLUMN()-1-COLUMN($E49)),VLOOKUP($E49-25,AllData,COLUMN()-1-COLUMN($E49)),VLOOKUP($E49-26,AllData,COLUMN()-1-COLUMN($E49)),VLOOKUP($E49-27,AllData,COLUMN()-1-COLUMN($E49)),VLOOKUP($E49-28,AllData,COLUMN()-1-COLUMN($E49)),VLOOKUP($E49-29,AllData,COLUMN()-1-COLUMN($E49)))","v":9416.9425644429684},{"$f":"VLOOKUP($E49,AllData,COLUMN()-2-COLUMN($E49))","v":-2.3833725820981897},{"$f":"OR('Cool Graph'!$H$1=35,'Cool Graph'!$H$1=36,'Cool Graph'!$H$1=37,'Cool Graph'!$H$1=38,'Cool Graph'!$H$1=39,'Cool Graph'!$H$1=40,'Cool Graph'!$H$1=41,'Cool Graph'!$H$1=42,'Cool Graph'!$H$1=43,'Cool Graph'!$H$1=44,'Cool Graph'!$H$1=45,'Cool Graph'!$H$1=46,'Cool Graph'!$H$1=47,'Cool Graph'!$H$1=58,'Cool Graph'!$H$1=66)","v":false},{"$f":"SUM(VLOOKUP($E49,AllData,COLUMN()-5-COLUMN($E49)),VLOOKUP($E49-1,AllData,COLUMN()-5-COLUMN($E49)),VLOOKUP($E49-2,AllData,COLUMN()-5-COLUMN($E49)),VLOOKUP($E49-3,AllData,COLUMN()-5-COLUMN($E49)),VLOOKUP($E49-4,AllData,COLUMN()-5-COLUMN($E49)),VLOOKUP($E49-5,AllData,COLUMN()-5-COLUMN($E49)),VLOOKUP($E49-6,AllData,COLUMN()-5-COLUMN($E49)))","v":0},{"$f":"SUM(VLOOKUP($E49,AllData,COLUMN()-6-COLUMN($E49)),VLOOKUP($E49-1,AllData,COLUMN()-6-COLUMN($E49)),VLOOKUP($E49-2,AllData,COLUMN()-6-COLUMN($E49)),VLOOKUP($E49-3,AllData,COLUMN()-6-COLUMN($E49)),VLOOKUP($E49-4,AllData,COLUMN()-6-COLUMN($E49)),VLOOKUP($E49-5,AllData,COLUMN()-6-COLUMN($E49)),VLOOKUP($E49-6,AllData,COLUMN()-6-COLUMN($E49)),VLOOKUP($E49-7,AllData,COLUMN()-6-COLUMN($E49)),VLOOKUP($E49-8,AllData,COLUMN()-6-COLUMN($E49)),VLOOKUP($E49-9,AllData,COLUMN()-6-COLUMN($E49)),VLOOKUP($E49-10,AllData,COLUMN()-6-COLUMN($E49)),VLOOKUP($E49-11,AllData,COLUMN()-6-COLUMN($E49)),VLOOKUP($E49-12,AllData,COLUMN()-6-COLUMN($E49)),VLOOKUP($E49-13,AllData,COLUMN()-6-COLUMN($E49)),VLOOKUP($E49-14,AllData,COLUMN()-6-COLUMN($E49)),VLOOKUP($E49-15,AllData,COLUMN()-6-COLUMN($E49)),VLOOKUP($E49-16,AllData,COLUMN()-6-COLUMN($E49)),VLOOKUP($E49-17,AllData,COLUMN()-6-COLUMN($E49)),VLOOKUP($E49-18,AllData,COLUMN()-6-COLUMN($E49)),VLOOKUP($E49-19,AllData,COLUMN()-6-COLUMN($E49)),VLOOKUP($E49-20,AllData,COLUMN()-6-COLUMN($E49)),VLOOKUP($E49-21,AllData,COLUMN()-6-COLUMN($E49)),VLOOKUP($E49-22,AllData,COLUMN()-6-COLUMN($E49)),VLOOKUP($E49-23,AllData,COLUMN()-6-COLUMN($E49)),VLOOKUP($E49-24,AllData,COLUMN()-6-COLUMN($E49)),VLOOKUP($E49-25,AllData,COLUMN()-6-COLUMN($E49)),VLOOKUP($E49-26,AllData,COLUMN()-6-COLUMN($E49)),VLOOKUP($E49-27,AllData,COLUMN()-6-COLUMN($E49)),VLOOKUP($E49-28,AllData,COLUMN()-6-COLUMN($E49)),VLOOKUP($E49-29,AllData,COLUMN()-6-COLUMN($E49)))","v":0},{"$f":"VLOOKUP($E49,AllData,COLUMN()-7-COLUMN($E49))","v":0},{"$f":"OR('Cool Graph'!$I$1=35,'Cool Graph'!$I$1=36,'Cool Graph'!$I$1=37,'Cool Graph'!$I$1=38,'Cool Graph'!$I$1=39,'Cool Graph'!$I$1=40,'Cool Graph'!$I$1=41,'Cool Graph'!$I$1=42,'Cool Graph'!$I$1=43,'Cool Graph'!$I$1=44,'Cool Graph'!$I$1=45,'Cool Graph'!$I$1=46,'Cool Graph'!$I$1=47,'Cool Graph'!$I$1=58,'Cool Graph'!$I$1=66)","v":false}]
["2011-08-18",{"$f":"OFFSET(OldSchoolJustValues!A50,0,'Cool Graph'!$H$1)","v":0},{"$f":"OFFSET(OldSchoolJustValues!A50,0,'Cool Graph'!$I$1)","v":174.3832548358036},null,{"$f":"IF(NewDate>EndDate,NA(),NewDate)","v":"2011-11-13"},{"$f":"IF($E50>EndDate,NA(),IF($K$2=TRUE,N50,IF('Cool Graph'!$B$17=1,N50,IF('Cool Graph'!$B$17=2,L50,IF('Cool Graph'!$B$17=3,M50,)))))","v":0},{"$f":"IF($E50>EndDate,NA(),IF($O$2=TRUE,J50,IF('Cool Graph'!$B$17=1,Data1!J50,IF('Cool Graph'!$B$17=2,Data1!H50,IF('Cool Graph'!$B$17=3,Data1!I50,)))))","v":132.36656854475447},{"$f":"SUM(VLOOKUP($E50,AllData,COLUMN()-COLUMN($E50)),VLOOKUP($E50-1,AllData,COLUMN()-COLUMN($E50)),VLOOKUP($E50-2,AllData,COLUMN()-COLUMN($E50)),VLOOKUP($E50-3,AllData,COLUMN()-COLUMN($E50)),VLOOKUP($E50-4,AllData,COLUMN()-COLUMN($E50)),VLOOKUP($E50-5,AllData,COLUMN()-COLUMN($E50)),VLOOKUP($E50-6,AllData,COLUMN()-COLUMN($E50)))","v":1815.0139658971148},{"$f":"SUM(VLOOKUP($E50,AllData,COLUMN()-1-COLUMN($E50)),VLOOKUP($E50-1,AllData,COLUMN()-1-COLUMN($E50)),VLOOKUP($E50-2,AllData,COLUMN()-1-COLUMN($E50)),VLOOKUP($E50-3,AllData,COLUMN()-1-COLUMN($E50)),VLOOKUP($E50-4,AllData,COLUMN()-1-COLUMN($E50)),VLOOKUP($E50-5,AllData,COLUMN()-1-COLUMN($E50)),VLOOKUP($E50-6,AllData,COLUMN()-1-COLUMN($E50)),VLOOKUP($E50-7,AllData,COLUMN()-1-COLUMN($E50)),VLOOKUP($E50-8,AllData,COLUMN()-1-COLUMN($E50)),VLOOKUP($E50-9,AllData,COLUMN()-1-COLUMN($E50)),VLOOKUP($E50-10,AllData,COLUMN()-1-COLUMN($E50)),VLOOKUP($E50-11,AllData,COLUMN()-1-COLUMN($E50)),VLOOKUP($E50-12,AllData,COLUMN()-1-COLUMN($E50)),VLOOKUP($E50-13,AllData,COLUMN()-1-COLUMN($E50)),VLOOKUP($E50-14,AllData,COLUMN()-1-COLUMN($E50)),VLOOKUP($E50-15,AllData,COLUMN()-1-COLUMN($E50)),VLOOKUP($E50-16,AllData,COLUMN()-1-COLUMN($E50)),VLOOKUP($E50-17,AllData,COLUMN()-1-COLUMN($E50)),VLOOKUP($E50-18,AllData,COLUMN()-1-COLUMN($E50)),VLOOKUP($E50-19,AllData,COLUMN()-1-COLUMN($E50)),VLOOKUP($E50-20,AllData,COLUMN()-1-COLUMN($E50)),VLOOKUP($E50-21,AllData,COLUMN()-1-COLUMN($E50)),VLOOKUP($E50-22,AllData,COLUMN()-1-COLUMN($E50)),VLOOKUP($E50-23,AllData,COLUMN()-1-COLUMN($E50)),VLOOKUP($E50-24,AllData,COLUMN()-1-COLUMN($E50)),VLOOKUP($E50-25,AllData,COLUMN()-1-COLUMN($E50)),VLOOKUP($E50-26,AllData,COLUMN()-1-COLUMN($E50)),VLOOKUP($E50-27,AllData,COLUMN()-1-COLUMN($E50)),VLOOKUP($E50-28,AllData,COLUMN()-1-COLUMN($E50)),VLOOKUP($E50-29,AllData,COLUMN()-1-COLUMN($E50)))","v":9415.8958781519195},{"$f":"VLOOKUP($E50,AllData,COLUMN()-2-COLUMN($E50))","v":132.36656854475447},{"$f":"OR('Cool Graph'!$H$1=35,'Cool Graph'!$H$1=36,'Cool Graph'!$H$1=37,'Cool Graph'!$H$1=38,'Cool Graph'!$H$1=39,'Cool Graph'!$H$1=40,'Cool Graph'!$H$1=41,'Cool Graph'!$H$1=42,'Cool Graph'!$H$1=43,'Cool Graph'!$H$1=44,'Cool Graph'!$H$1=45,'Cool Graph'!$H$1=46,'Cool Graph'!$H$1=47,'Cool Graph'!$H$1=58,'Cool Graph'!$H$1=66)","v":false},{"$f":"SUM(VLOOKUP($E50,AllData,COLUMN()-5-COLUMN($E50)),VLOOKUP($E50-1,AllData,COLUMN()-5-COLUMN($E50)),VLOOKUP($E50-2,AllData,COLUMN()-5-COLUMN($E50)),VLOOKUP($E50-3,AllData,COLUMN()-5-COLUMN($E50)),VLOOKUP($E50-4,AllData,COLUMN()-5-COLUMN($E50)),VLOOKUP($E50-5,AllData,COLUMN()-5-COLUMN($E50)),VLOOKUP($E50-6,AllData,COLUMN()-5-COLUMN($E50)))","v":0},{"$f":"SUM(VLOOKUP($E50,AllData,COLUMN()-6-COLUMN($E50)),VLOOKUP($E50-1,AllData,COLUMN()-6-COLUMN($E50)),VLOOKUP($E50-2,AllData,COLUMN()-6-COLUMN($E50)),VLOOKUP($E50-3,AllData,COLUMN()-6-COLUMN($E50)),VLOOKUP($E50-4,AllData,COLUMN()-6-COLUMN($E50)),VLOOKUP($E50-5,AllData,COLUMN()-6-COLUMN($E50)),VLOOKUP($E50-6,AllData,COLUMN()-6-COLUMN($E50)),VLOOKUP($E50-7,AllData,COLUMN()-6-COLUMN($E50)),VLOOKUP($E50-8,AllData,COLUMN()-6-COLUMN($E50)),VLOOKUP($E50-9,AllData,COLUMN()-6-COLUMN($E50)),VLOOKUP($E50-10,AllData,COLUMN()-6-COLUMN($E50)),VLOOKUP($E50-11,AllData,COLUMN()-6-COLUMN($E50)),VLOOKUP($E50-12,AllData,COLUMN()-6-COLUMN($E50)),VLOOKUP($E50-13,AllData,COLUMN()-6-COLUMN($E50)),VLOOKUP($E50-14,AllData,COLUMN()-6-COLUMN($E50)),VLOOKUP($E50-15,AllData,COLUMN()-6-COLUMN($E50)),VLOOKUP($E50-16,AllData,COLUMN()-6-COLUMN($E50)),VLOOKUP($E50-17,AllData,COLUMN()-6-COLUMN($E50)),VLOOKUP($E50-18,AllData,COLUMN()-6-COLUMN($E50)),VLOOKUP($E50-19,AllData,COLUMN()-6-COLUMN($E50)),VLOOKUP($E50-20,AllData,COLUMN()-6-COLUMN($E50)),VLOOKUP($E50-21,AllData,COLUMN()-6-COLUMN($E50)),VLOOKUP($E50-22,AllData,COLUMN()-6-COLUMN($E50)),VLOOKUP($E50-23,AllData,COLUMN()-6-COLUMN($E50)),VLOOKUP($E50-24,AllData,COLUMN()-6-COLUMN($E50)),VLOOKUP($E50-25,AllData,COLUMN()-6-COLUMN($E50)),VLOOKUP($E50-26,AllData,COLUMN()-6-COLUMN($E50)),VLOOKUP($E50-27,AllData,COLUMN()-6-COLUMN($E50)),VLOOKUP($E50-28,AllData,COLUMN()-6-COLUMN($E50)),VLOOKUP($E50-29,AllData,COLUMN()-6-COLUMN($E50)))","v":0},{"$f":"VLOOKUP($E50,AllData,COLUMN()-7-COLUMN($E50))","v":0},{"$f":"OR('Cool Graph'!$I$1=35,'Cool Graph'!$I$1=36,'Cool Graph'!$I$1=37,'Cool Graph'!$I$1=38,'Cool Graph'!$I$1=39,'Cool Graph'!$I$1=40,'Cool Graph'!$I$1=41,'Cool Graph'!$I$1=42,'Cool Graph'!$I$1=43,'Cool Graph'!$I$1=44,'Cool Graph'!$I$1=45,'Cool Graph'!$I$1=46,'Cool Graph'!$I$1=47,'Cool Graph'!$I$1=58,'Cool Graph'!$I$1=66)","v":false}]
["2011-08-19",{"$f":"OFFSET(OldSchoolJustValues!A51,0,'Cool Graph'!$H$1)","v":0},{"$f":"OFFSET(OldSchoolJustValues!A51,0,'Cool Graph'!$I$1)","v":476.62650967160721},null,{"$f":"IF(NewDate>EndDate,NA(),NewDate)","v":"2011-11-14"},{"$f":"IF($E51>EndDate,NA(),IF($K$2=TRUE,N51,IF('Cool Graph'!$B$17=1,N51,IF('Cool Graph'!$B$17=2,L51,IF('Cool Graph'!$B$17=3,M51,)))))","v":0},{"$f":"IF($E51>EndDate,NA(),IF($O$2=TRUE,J51,IF('Cool Graph'!$B$17=1,Data1!J51,IF('Cool Graph'!$B$17=2,Data1!H51,IF('Cool Graph'!$B$17=3,Data1!I51,)))))","v":323.0165096716072},{"$f":"SUM(VLOOKUP($E51,AllData,COLUMN()-COLUMN($E51)),VLOOKUP($E51-1,AllData,COLUMN()-COLUMN($E51)),VLOOKUP($E51-2,AllData,COLUMN()-COLUMN($E51)),VLOOKUP($E51-3,AllData,COLUMN()-COLUMN($E51)),VLOOKUP($E51-4,AllData,COLUMN()-COLUMN($E51)),VLOOKUP($E51-5,AllData,COLUMN()-COLUMN($E51)),VLOOKUP($E51-6,AllData,COLUMN()-COLUMN($E51)))","v":1739.2057443206922},{"$f":"SUM(VLOOKUP($E51,AllData,COLUMN()-1-COLUMN($E51)),VLOOKUP($E51-1,AllData,COLUMN()-1-COLUMN($E51)),VLOOKUP($E51-2,AllData,COLUMN()-1-COLUMN($E51)),VLOOKUP($E51-3,AllData,COLUMN()-1-COLUMN($E51)),VLOOKUP($E51-4,AllData,COLUMN()-1-COLUMN($E51)),VLOOKUP($E51-5,AllData,COLUMN()-1-COLUMN($E51)),VLOOKUP($E51-6,AllData,COLUMN()-1-COLUMN($E51)),VLOOKUP($E51-7,AllData,COLUMN()-1-COLUMN($E51)),VLOOKUP($E51-8,AllData,COLUMN()-1-COLUMN($E51)),VLOOKUP($E51-9,AllData,COLUMN()-1-COLUMN($E51)),VLOOKUP($E51-10,AllData,COLUMN()-1-COLUMN($E51)),VLOOKUP($E51-11,AllData,COLUMN()-1-COLUMN($E51)),VLOOKUP($E51-12,AllData,COLUMN()-1-COLUMN($E51)),VLOOKUP($E51-13,AllData,COLUMN()-1-COLUMN($E51)),VLOOKUP($E51-14,AllData,COLUMN()-1-COLUMN($E51)),VLOOKUP($E51-15,AllData,COLUMN()-1-COLUMN($E51)),VLOOKUP($E51-16,AllData,COLUMN()-1-COLUMN($E51)),VLOOKUP($E51-17,AllData,COLUMN()-1-COLUMN($E51)),VLOOKUP($E51-18,AllData,COLUMN()-1-COLUMN($E51)),VLOOKUP($E51-19,AllData,COLUMN()-1-COLUMN($E51)),VLOOKUP($E51-20,AllData,COLUMN()-1-COLUMN($E51)),VLOOKUP($E51-21,AllData,COLUMN()-1-COLUMN($E51)),VLOOKUP($E51-22,AllData,COLUMN()-1-COLUMN($E51)),VLOOKUP($E51-23,AllData,COLUMN()-1-COLUMN($E51)),VLOOKUP($E51-24,AllData,COLUMN()-1-COLUMN($E51)),VLOOKUP($E51-25,AllData,COLUMN()-1-COLUMN($E51)),VLOOKUP($E51-26,AllData,COLUMN()-1-COLUMN($E51)),VLOOKUP($E51-27,AllData,COLUMN()-1-COLUMN($E51)),VLOOKUP($E51-28,AllData,COLUMN()-1-COLUMN($E51)),VLOOKUP($E51-29,AllData,COLUMN()-1-COLUMN($E51)))","v":9458.1495756822151},{"$f":"VLOOKUP($E51,AllData,COLUMN()-2-COLUMN($E51))","v":323.0165096716072},{"$f":"OR('Cool Graph'!$H$1=35,'Cool Graph'!$H$1=36,'Cool Graph'!$H$1=37,'Cool Graph'!$H$1=38,'Cool Graph'!$H$1=39,'Cool Graph'!$H$1=40,'Cool Graph'!$H$1=41,'Cool Graph'!$H$1=42,'Cool Graph'!$H$1=43,'Cool Graph'!$H$1=44,'Cool Graph'!$H$1=45,'Cool Graph'!$H$1=46,'Cool Graph'!$H$1=47,'Cool Graph'!$H$1=58,'Cool Graph'!$H$1=66)","v":false},{"$f":"SUM(VLOOKUP($E51,AllData,COLUMN()-5-COLUMN($E51)),VLOOKUP($E51-1,AllData,COLUMN()-5-COLUMN($E51)),VLOOKUP($E51-2,AllData,COLUMN()-5-COLUMN($E51)),VLOOKUP($E51-3,AllData,COLUMN()-5-COLUMN($E51)),VLOOKUP($E51-4,AllData,COLUMN()-5-COLUMN($E51)),VLOOKUP($E51-5,AllData,COLUMN()-5-COLUMN($E51)),VLOOKUP($E51-6,AllData,COLUMN()-5-COLUMN($E51)))","v":0},{"$f":"SUM(VLOOKUP($E51,AllData,COLUMN()-6-COLUMN($E51)),VLOOKUP($E51-1,AllData,COLUMN()-6-COLUMN($E51)),VLOOKUP($E51-2,AllData,COLUMN()-6-COLUMN($E51)),VLOOKUP($E51-3,AllData,COLUMN()-6-COLUMN($E51)),VLOOKUP($E51-4,AllData,COLUMN()-6-COLUMN($E51)),VLOOKUP($E51-5,AllData,COLUMN()-6-COLUMN($E51)),VLOOKUP($E51-6,AllData,COLUMN()-6-COLUMN($E51)),VLOOKUP($E51-7,AllData,COLUMN()-6-COLUMN($E51)),VLOOKUP($E51-8,AllData,COLUMN()-6-COLUMN($E51)),VLOOKUP($E51-9,AllData,COLUMN()-6-COLUMN($E51)),VLOOKUP($E51-10,AllData,COLUMN()-6-COLUMN($E51)),VLOOKUP($E51-11,AllData,COLUMN()-6-COLUMN($E51)),VLOOKUP($E51-12,AllData,COLUMN()-6-COLUMN($E51)),VLOOKUP($E51-13,AllData,COLUMN()-6-COLUMN($E51)),VLOOKUP($E51-14,AllData,COLUMN()-6-COLUMN($E51)),VLOOKUP($E51-15,AllData,COLUMN()-6-COLUMN($E51)),VLOOKUP($E51-16,AllData,COLUMN()-6-COLUMN($E51)),VLOOKUP($E51-17,AllData,COLUMN()-6-COLUMN($E51)),VLOOKUP($E51-18,AllData,COLUMN()-6-COLUMN($E51)),VLOOKUP($E51-19,AllData,COLUMN()-6-COLUMN($E51)),VLOOKUP($E51-20,AllData,COLUMN()-6-COLUMN($E51)),VLOOKUP($E51-21,AllData,COLUMN()-6-COLUMN($E51)),VLOOKUP($E51-22,AllData,COLUMN()-6-COLUMN($E51)),VLOOKUP($E51-23,AllData,COLUMN()-6-COLUMN($E51)),VLOOKUP($E51-24,AllData,COLUMN()-6-COLUMN($E51)),VLOOKUP($E51-25,AllData,COLUMN()-6-COLUMN($E51)),VLOOKUP($E51-26,AllData,COLUMN()-6-COLUMN($E51)),VLOOKUP($E51-27,AllData,COLUMN()-6-COLUMN($E51)),VLOOKUP($E51-28,AllData,COLUMN()-6-COLUMN($E51)),VLOOKUP($E51-29,AllData,COLUMN()-6-COLUMN($E51)))","v":0},{"$f":"VLOOKUP($E51,AllData,COLUMN()-7-COLUMN($E51))","v":0},{"$f":"OR('Cool Graph'!$I$1=35,'Cool Graph'!$I$1=36,'Cool Graph'!$I$1=37,'Cool Graph'!$I$1=38,'Cool Graph'!$I$1=39,'Cool Graph'!$I$1=40,'Cool Graph'!$I$1=41,'Cool Graph'!$I$1=42,'Cool Graph'!$I$1=43,'Cool Graph'!$I$1=44,'Cool Graph'!$I$1=45,'Cool Graph'!$I$1=46,'Cool Graph'!$I$1=47,'Cool Graph'!$I$1=58,'Cool Graph'!$I$1=66)","v":false}]
["2011-08-20",{"$f":"OFFSET(OldSchoolJustValues!A52,0,'Cool Graph'!$H$1)","v":0},{"$f":"OFFSET(OldSchoolJustValues!A52,0,'Cool Graph'!$I$1)","v":64.55662741790178},null,{"$f":"IF(NewDate>EndDate,NA(),NewDate)","v":"2011-11-15"},{"$f":"IF($E52>EndDate,NA(),IF($K$2=TRUE,N52,IF('Cool Graph'!$B$17=1,N52,IF('Cool Graph'!$B$17=2,L52,IF('Cool Graph'!$B$17=3,M52,)))))","v":0},{"$f":"IF($E52>EndDate,NA(),IF($O$2=TRUE,J52,IF('Cool Graph'!$B$17=1,Data1!J52,IF('Cool Graph'!$B$17=2,Data1!H52,IF('Cool Graph'!$B$17=3,Data1!I52,)))))","v":421.1198233805581},{"$f":"SUM(VLOOKUP($E52,AllData,COLUMN()-COLUMN($E52)),VLOOKUP($E52-1,AllData,COLUMN()-COLUMN($E52)),VLOOKUP($E52-2,AllData,COLUMN()-COLUMN($E52)),VLOOKUP($E52-3,AllData,COLUMN()-COLUMN($E52)),VLOOKUP($E52-4,AllData,COLUMN()-COLUMN($E52)),VLOOKUP($E52-5,AllData,COLUMN()-COLUMN($E52)),VLOOKUP($E52-6,AllData,COLUMN()-COLUMN($E52)))","v":1553.8424894848886},{"$f":"SUM(VLOOKUP($E52,AllData,COLUMN()-1-COLUMN($E52)),VLOOKUP($E52-1,AllData,COLUMN()-1-COLUMN($E52)),VLOOKUP($E52-2,AllData,COLUMN()-1-COLUMN($E52)),VLOOKUP($E52-3,AllData,COLUMN()-1-COLUMN($E52)),VLOOKUP($E52-4,AllData,COLUMN()-1-COLUMN($E52)),VLOOKUP($E52-5,AllData,COLUMN()-1-COLUMN($E52)),VLOOKUP($E52-6,AllData,COLUMN()-1-COLUMN($E52)),VLOOKUP($E52-7,AllData,COLUMN()-1-COLUMN($E52)),VLOOKUP($E52-8,AllData,COLUMN()-1-COLUMN($E52)),VLOOKUP($E52-9,AllData,COLUMN()-1-COLUMN($E52)),VLOOKUP($E52-10,AllData,COLUMN()-1-COLUMN($E52)),VLOOKUP($E52-11,AllData,COLUMN()-1-COLUMN($E52)),VLOOKUP($E52-12,AllData,COLUMN()-1-COLUMN($E52)),VLOOKUP($E52-13,AllData,COLUMN()-1-COLUMN($E52)),VLOOKUP($E52-14,AllData,COLUMN()-1-COLUMN($E52)),VLOOKUP($E52-15,AllData,COLUMN()-1-COLUMN($E52)),VLOOKUP($E52-16,AllData,COLUMN()-1-COLUMN($E52)),VLOOKUP($E52-17,AllData,COLUMN()-1-COLUMN($E52)),VLOOKUP($E52-18,AllData,COLUMN()-1-COLUMN($E52)),VLOOKUP($E52-19,AllData,COLUMN()-1-COLUMN($E52)),VLOOKUP($E52-20,AllData,COLUMN()-1-COLUMN($E52)),VLOOKUP($E52-21,AllData,COLUMN()-1-COLUMN($E52)),VLOOKUP($E52-22,AllData,COLUMN()-1-COLUMN($E52)),VLOOKUP($E52-23,AllData,COLUMN()-1-COLUMN($E52)),VLOOKUP($E52-24,AllData,COLUMN()-1-COLUMN($E52)),VLOOKUP($E52-25,AllData,COLUMN()-1-COLUMN($E52)),VLOOKUP($E52-26,AllData,COLUMN()-1-COLUMN($E52)),VLOOKUP($E52-27,AllData,COLUMN()-1-COLUMN($E52)),VLOOKUP($E52-28,AllData,COLUMN()-1-COLUMN($E52)),VLOOKUP($E52-29,AllData,COLUMN()-1-COLUMN($E52)))","v":9633.2495168090663},{"$f":"VLOOKUP($E52,AllData,COLUMN()-2-COLUMN($E52))","v":421.1198233805581},{"$f":"OR('Cool Graph'!$H$1=35,'Cool Graph'!$H$1=36,'Cool Graph'!$H$1=37,'Cool Graph'!$H$1=38,'Cool Graph'!$H$1=39,'Cool Graph'!$H$1=40,'Cool Graph'!$H$1=41,'Cool Graph'!$H$1=42,'Cool Graph'!$H$1=43,'Cool Graph'!$H$1=44,'Cool Graph'!$H$1=45,'Cool Graph'!$H$1=46,'Cool Graph'!$H$1=47,'Cool Graph'!$H$1=58,'Cool Graph'!$H$1=66)","v":false},{"$f":"SUM(VLOOKUP($E52,AllData,COLUMN()-5-COLUMN($E52)),VLOOKUP($E52-1,AllData,COLUMN()-5-COLUMN($E52)),VLOOKUP($E52-2,AllData,COLUMN()-5-COLUMN($E52)),VLOOKUP($E52-3,AllData,COLUMN()-5-COLUMN($E52)),VLOOKUP($E52-4,AllData,COLUMN()-5-COLUMN($E52)),VLOOKUP($E52-5,AllData,COLUMN()-5-COLUMN($E52)),VLOOKUP($E52-6,AllData,COLUMN()-5-COLUMN($E52)))","v":0},{"$f":"SUM(VLOOKUP($E52,AllData,COLUMN()-6-COLUMN($E52)),VLOOKUP($E52-1,AllData,COLUMN()-6-COLUMN($E52)),VLOOKUP($E52-2,AllData,COLUMN()-6-COLUMN($E52)),VLOOKUP($E52-3,AllData,COLUMN()-6-COLUMN($E52)),VLOOKUP($E52-4,AllData,COLUMN()-6-COLUMN($E52)),VLOOKUP($E52-5,AllData,COLUMN()-6-COLUMN($E52)),VLOOKUP($E52-6,AllData,COLUMN()-6-COLUMN($E52)),VLOOKUP($E52-7,AllData,COLUMN()-6-COLUMN($E52)),VLOOKUP($E52-8,AllData,COLUMN()-6-COLUMN($E52)),VLOOKUP($E52-9,AllData,COLUMN()-6-COLUMN($E52)),VLOOKUP($E52-10,AllData,COLUMN()-6-COLUMN($E52)),VLOOKUP($E52-11,AllData,COLUMN()-6-COLUMN($E52)),VLOOKUP($E52-12,AllData,COLUMN()-6-COLUMN($E52)),VLOOKUP($E52-13,AllData,COLUMN()-6-COLUMN($E52)),VLOOKUP($E52-14,AllData,COLUMN()-6-COLUMN($E52)),VLOOKUP($E52-15,AllData,COLUMN()-6-COLUMN($E52)),VLOOKUP($E52-16,AllData,COLUMN()-6-COLUMN($E52)),VLOOKUP($E52-17,AllData,COLUMN()-6-COLUMN($E52)),VLOOKUP($E52-18,AllData,COLUMN()-6-COLUMN($E52)),VLOOKUP($E52-19,AllData,COLUMN()-6-COLUMN($E52)),VLOOKUP($E52-20,AllData,COLUMN()-6-COLUMN($E52)),VLOOKUP($E52-21,AllData,COLUMN()-6-COLUMN($E52)),VLOOKUP($E52-22,AllData,COLUMN()-6-COLUMN($E52)),VLOOKUP($E52-23,AllData,COLUMN()-6-COLUMN($E52)),VLOOKUP($E52-24,AllData,COLUMN()-6-COLUMN($E52)),VLOOKUP($E52-25,AllData,COLUMN()-6-COLUMN($E52)),VLOOKUP($E52-26,AllData,COLUMN()-6-COLUMN($E52)),VLOOKUP($E52-27,AllData,COLUMN()-6-COLUMN($E52)),VLOOKUP($E52-28,AllData,COLUMN()-6-COLUMN($E52)),VLOOKUP($E52-29,AllData,COLUMN()-6-COLUMN($E52)))","v":0},{"$f":"VLOOKUP($E52,AllData,COLUMN()-7-COLUMN($E52))","v":0},{"$f":"OR('Cool Graph'!$I$1=35,'Cool Graph'!$I$1=36,'Cool Graph'!$I$1=37,'Cool Graph'!$I$1=38,'Cool Graph'!$I$1=39,'Cool Graph'!$I$1=40,'Cool Graph'!$I$1=41,'Cool Graph'!$I$1=42,'Cool Graph'!$I$1=43,'Cool Graph'!$I$1=44,'Cool Graph'!$I$1=45,'Cool Graph'!$I$1=46,'Cool Graph'!$I$1=47,'Cool Graph'!$I$1=58,'Cool Graph'!$I$1=66)","v":false}]
["2011-08-21",{"$f":"OFFSET(OldSchoolJustValues!A53,0,'Cool Graph'!$H$1)","v":0},{"$f":"OFFSET(OldSchoolJustValues!A53,0,'Cool Graph'!$I$1)","v":90.779941126852691},null,{"$f":"IF(NewDate>EndDate,NA(),NewDate)","v":"2011-11-16"},{"$f":"IF($E53>EndDate,NA(),IF($K$2=TRUE,N53,IF('Cool Graph'!$B$17=1,N53,IF('Cool Graph'!$B$17=2,L53,IF('Cool Graph'!$B$17=3,M53,)))))","v":0},{"$f":"IF($E53>EndDate,NA(),IF($O$2=TRUE,J53,IF('Cool Graph'!$B$17=1,Data1!J53,IF('Cool Graph'!$B$17=2,Data1!H53,IF('Cool Graph'!$B$17=3,Data1!I53,)))))","v":377.14275326816562},{"$f":"SUM(VLOOKUP($E53,AllData,COLUMN()-COLUMN($E53)),VLOOKUP($E53-1,AllData,COLUMN()-COLUMN($E53)),VLOOKUP($E53-2,AllData,COLUMN()-COLUMN($E53)),VLOOKUP($E53-3,AllData,COLUMN()-COLUMN($E53)),VLOOKUP($E53-4,AllData,COLUMN()-COLUMN($E53)),VLOOKUP($E53-5,AllData,COLUMN()-COLUMN($E53)),VLOOKUP($E53-6,AllData,COLUMN()-COLUMN($E53)))","v":1473.8721056635452},{"$f":"SUM(VLOOKUP($E53,AllData,COLUMN()-1-COLUMN($E53)),VLOOKUP($E53-1,AllData,COLUMN()-1-COLUMN($E53)),VLOOKUP($E53-2,AllData,COLUMN()-1-COLUMN($E53)),VLOOKUP($E53-3,AllData,COLUMN()-1-COLUMN($E53)),VLOOKUP($E53-4,AllData,COLUMN()-1-COLUMN($E53)),VLOOKUP($E53-5,AllData,COLUMN()-1-COLUMN($E53)),VLOOKUP($E53-6,AllData,COLUMN()-1-COLUMN($E53)),VLOOKUP($E53-7,AllData,COLUMN()-1-COLUMN($E53)),VLOOKUP($E53-8,AllData,COLUMN()-1-COLUMN($E53)),VLOOKUP($E53-9,AllData,COLUMN()-1-COLUMN($E53)),VLOOKUP($E53-10,AllData,COLUMN()-1-COLUMN($E53)),VLOOKUP($E53-11,AllData,COLUMN()-1-COLUMN($E53)),VLOOKUP($E53-12,AllData,COLUMN()-1-COLUMN($E53)),VLOOKUP($E53-13,AllData,COLUMN()-1-COLUMN($E53)),VLOOKUP($E53-14,AllData,COLUMN()-1-COLUMN($E53)),VLOOKUP($E53-15,AllData,COLUMN()-1-COLUMN($E53)),VLOOKUP($E53-16,AllData,COLUMN()-1-COLUMN($E53)),VLOOKUP($E53-17,AllData,COLUMN()-1-COLUMN($E53)),VLOOKUP($E53-18,AllData,COLUMN()-1-COLUMN($E53)),VLOOKUP($E53-19,AllData,COLUMN()-1-COLUMN($E53)),VLOOKUP($E53-20,AllData,COLUMN()-1-COLUMN($E53)),VLOOKUP($E53-21,AllData,COLUMN()-1-COLUMN($E53)),VLOOKUP($E53-22,AllData,COLUMN()-1-COLUMN($E53)),VLOOKUP($E53-23,AllData,COLUMN()-1-COLUMN($E53)),VLOOKUP($E53-24,AllData,COLUMN()-1-COLUMN($E53)),VLOOKUP($E53-25,AllData,COLUMN()-1-COLUMN($E53)),VLOOKUP($E53-26,AllData,COLUMN()-1-COLUMN($E53)),VLOOKUP($E53-27,AllData,COLUMN()-1-COLUMN($E53)),VLOOKUP($E53-28,AllData,COLUMN()-1-COLUMN($E53)),VLOOKUP($E53-29,AllData,COLUMN()-1-COLUMN($E53)))","v":9705.4490741145764},{"$f":"VLOOKUP($E53,AllData,COLUMN()-2-COLUMN($E53))","v":377.14275326816562},{"$f":"OR('Cool Graph'!$H$1=35,'Cool Graph'!$H$1=36,'Cool Graph'!$H$1=37,'Cool Graph'!$H$1=38,'Cool Graph'!$H$1=39,'Cool Graph'!$H$1=40,'Cool Graph'!$H$1=41,'Cool Graph'!$H$1=42,'Cool Graph'!$H$1=43,'Cool Graph'!$H$1=44,'Cool Graph'!$H$1=45,'Cool Graph'!$H$1=46,'Cool Graph'!$H$1=47,'Cool Graph'!$H$1=58,'Cool Graph'!$H$1=66)","v":false},{"$f":"SUM(VLOOKUP($E53,AllData,COLUMN()-5-COLUMN($E53)),VLOOKUP($E53-1,AllData,COLUMN()-5-COLUMN($E53)),VLOOKUP($E53-2,AllData,COLUMN()-5-COLUMN($E53)),VLOOKUP($E53-3,AllData,COLUMN()-5-COLUMN($E53)),VLOOKUP($E53-4,AllData,COLUMN()-5-COLUMN($E53)),VLOOKUP($E53-5,AllData,COLUMN()-5-COLUMN($E53)),VLOOKUP($E53-6,AllData,COLUMN()-5-COLUMN($E53)))","v":0},{"$f":"SUM(VLOOKUP($E53,AllData,COLUMN()-6-COLUMN($E53)),VLOOKUP($E53-1,AllData,COLUMN()-6-COLUMN($E53)),VLOOKUP($E53-2,AllData,COLUMN()-6-COLUMN($E53)),VLOOKUP($E53-3,AllData,COLUMN()-6-COLUMN($E53)),VLOOKUP($E53-4,AllData,COLUMN()-6-COLUMN($E53)),VLOOKUP($E53-5,AllData,COLUMN()-6-COLUMN($E53)),VLOOKUP($E53-6,AllData,COLUMN()-6-COLUMN($E53)),VLOOKUP($E53-7,AllData,COLUMN()-6-COLUMN($E53)),VLOOKUP($E53-8,AllData,COLUMN()-6-COLUMN($E53)),VLOOKUP($E53-9,AllData,COLUMN()-6-COLUMN($E53)),VLOOKUP($E53-10,AllData,COLUMN()-6-COLUMN($E53)),VLOOKUP($E53-11,AllData,COLUMN()-6-COLUMN($E53)),VLOOKUP($E53-12,AllData,COLUMN()-6-COLUMN($E53)),VLOOKUP($E53-13,AllData,COLUMN()-6-COLUMN($E53)),VLOOKUP($E53-14,AllData,COLUMN()-6-COLUMN($E53)),VLOOKUP($E53-15,AllData,COLUMN()-6-COLUMN($E53)),VLOOKUP($E53-16,AllData,COLUMN()-6-COLUMN($E53)),VLOOKUP($E53-17,AllData,COLUMN()-6-COLUMN($E53)),VLOOKUP($E53-18,AllData,COLUMN()-6-COLUMN($E53)),VLOOKUP($E53-19,AllData,COLUMN()-6-COLUMN($E53)),VLOOKUP($E53-20,AllData,COLUMN()-6-COLUMN($E53)),VLOOKUP($E53-21,AllData,COLUMN()-6-COLUMN($E53)),VLOOKUP($E53-22,AllData,COLUMN()-6-COLUMN($E53)),VLOOKUP($E53-23,AllData,COLUMN()-6-COLUMN($E53)),VLOOKUP($E53-24,AllData,COLUMN()-6-COLUMN($E53)),VLOOKUP($E53-25,AllData,COLUMN()-6-COLUMN($E53)),VLOOKUP($E53-26,AllData,COLUMN()-6-COLUMN($E53)),VLOOKUP($E53-27,AllData,COLUMN()-6-COLUMN($E53)),VLOOKUP($E53-28,AllData,COLUMN()-6-COLUMN($E53)),VLOOKUP($E53-29,AllData,COLUMN()-6-COLUMN($E53)))","v":0},{"$f":"VLOOKUP($E53,AllData,COLUMN()-7-COLUMN($E53))","v":0},{"$f":"OR('Cool Graph'!$I$1=35,'Cool Graph'!$I$1=36,'Cool Graph'!$I$1=37,'Cool Graph'!$I$1=38,'Cool Graph'!$I$1=39,'Cool Graph'!$I$1=40,'Cool Graph'!$I$1=41,'Cool Graph'!$I$1=42,'Cool Graph'!$I$1=43,'Cool Graph'!$I$1=44,'Cool Graph'!$I$1=45,'Cool Graph'!$I$1=46,'Cool Graph'!$I$1=47,'Cool Graph'!$I$1=58,'Cool Graph'!$I$1=66)","v":false}]
["2011-08-22",{"$f":"OFFSET(OldSchoolJustValues!A54,0,'Cool Graph'!$H$1)","v":0},{"$f":"OFFSET(OldSchoolJustValues!A54,0,'Cool Graph'!$I$1)","v":37.906627417901788},null,{"$f":"IF(NewDate>EndDate,NA(),NewDate)","v":"2011-11-17"},{"$f":"IF($E54>EndDate,NA(),IF($K$2=TRUE,N54,IF('Cool Graph'!$B$17=1,N54,IF('Cool Graph'!$B$17=2,L54,IF('Cool Graph'!$B$17=3,M54,)))))","v":0},{"$f":"IF($E54>EndDate,NA(),IF($O$2=TRUE,J54,IF('Cool Graph'!$B$17=1,Data1!J54,IF('Cool Graph'!$B$17=2,Data1!H54,IF('Cool Graph'!$B$17=3,Data1!I54,)))))","v":550.17645079845988},{"$f":"SUM(VLOOKUP($E54,AllData,COLUMN()-COLUMN($E54)),VLOOKUP($E54-1,AllData,COLUMN()-COLUMN($E54)),VLOOKUP($E54-2,AllData,COLUMN()-COLUMN($E54)),VLOOKUP($E54-3,AllData,COLUMN()-COLUMN($E54)),VLOOKUP($E54-4,AllData,COLUMN()-COLUMN($E54)),VLOOKUP($E54-5,AllData,COLUMN()-COLUMN($E54)),VLOOKUP($E54-6,AllData,COLUMN()-COLUMN($E54)))","v":1946.5253016262016},{"$f":"SUM(VLOOKUP($E54,AllData,COLUMN()-1-COLUMN($E54)),VLOOKUP($E54-1,AllData,COLUMN()-1-COLUMN($E54)),VLOOKUP($E54-2,AllData,COLUMN()-1-COLUMN($E54)),VLOOKUP($E54-3,AllData,COLUMN()-1-COLUMN($E54)),VLOOKUP($E54-4,AllData,COLUMN()-1-COLUMN($E54)),VLOOKUP($E54-5,AllData,COLUMN()-1-COLUMN($E54)),VLOOKUP($E54-6,AllData,COLUMN()-1-COLUMN($E54)),VLOOKUP($E54-7,AllData,COLUMN()-1-COLUMN($E54)),VLOOKUP($E54-8,AllData,COLUMN()-1-COLUMN($E54)),VLOOKUP($E54-9,AllData,COLUMN()-1-COLUMN($E54)),VLOOKUP($E54-10,AllData,COLUMN()-1-COLUMN($E54)),VLOOKUP($E54-11,AllData,COLUMN()-1-COLUMN($E54)),VLOOKUP($E54-12,AllData,COLUMN()-1-COLUMN($E54)),VLOOKUP($E54-13,AllData,COLUMN()-1-COLUMN($E54)),VLOOKUP($E54-14,AllData,COLUMN()-1-COLUMN($E54)),VLOOKUP($E54-15,AllData,COLUMN()-1-COLUMN($E54)),VLOOKUP($E54-16,AllData,COLUMN()-1-COLUMN($E54)),VLOOKUP($E54-17,AllData,COLUMN()-1-COLUMN($E54)),VLOOKUP($E54-18,AllData,COLUMN()-1-COLUMN($E54)),VLOOKUP($E54-19,AllData,COLUMN()-1-COLUMN($E54)),VLOOKUP($E54-20,AllData,COLUMN()-1-COLUMN($E54)),VLOOKUP($E54-21,AllData,COLUMN()-1-COLUMN($E54)),VLOOKUP($E54-22,AllData,COLUMN()-1-COLUMN($E54)),VLOOKUP($E54-23,AllData,COLUMN()-1-COLUMN($E54)),VLOOKUP($E54-24,AllData,COLUMN()-1-COLUMN($E54)),VLOOKUP($E54-25,AllData,COLUMN()-1-COLUMN($E54)),VLOOKUP($E54-26,AllData,COLUMN()-1-COLUMN($E54)),VLOOKUP($E54-27,AllData,COLUMN()-1-COLUMN($E54)),VLOOKUP($E54-28,AllData,COLUMN()-1-COLUMN($E54)),VLOOKUP($E54-29,AllData,COLUMN()-1-COLUMN($E54)))","v":9738.3661442269695},{"$f":"VLOOKUP($E54,AllData,COLUMN()-2-COLUMN($E54))","v":550.17645079845988},{"$f":"OR('Cool Graph'!$H$1=35,'Cool Graph'!$H$1=36,'Cool Graph'!$H$1=37,'Cool Graph'!$H$1=38,'Cool Graph'!$H$1=39,'Cool Graph'!$H$1=40,'Cool Graph'!$H$1=41,'Cool Graph'!$H$1=42,'Cool Graph'!$H$1=43,'Cool Graph'!$H$1=44,'Cool Graph'!$H$1=45,'Cool Graph'!$H$1=46,'Cool Graph'!$H$1=47,'Cool Graph'!$H$1=58,'Cool Graph'!$H$1=66)","v":false},{"$f":"SUM(VLOOKUP($E54,AllData,COLUMN()-5-COLUMN($E54)),VLOOKUP($E54-1,AllData,COLUMN()-5-COLUMN($E54)),VLOOKUP($E54-2,AllData,COLUMN()-5-COLUMN($E54)),VLOOKUP($E54-3,AllData,COLUMN()-5-COLUMN($E54)),VLOOKUP($E54-4,AllData,COLUMN()-5-COLUMN($E54)),VLOOKUP($E54-5,AllData,COLUMN()-5-COLUMN($E54)),VLOOKUP($E54-6,AllData,COLUMN()-5-COLUMN($E54)))","v":0},{"$f":"SUM(VLOOKUP($E54,AllData,COLUMN()-6-COLUMN($E54)),VLOOKUP($E54-1,AllData,COLUMN()-6-COLUMN($E54)),VLOOKUP($E54-2,AllData,COLUMN()-6-COLUMN($E54)),VLOOKUP($E54-3,AllData,COLUMN()-6-COLUMN($E54)),VLOOKUP($E54-4,AllData,COLUMN()-6-COLUMN($E54)),VLOOKUP($E54-5,AllData,COLUMN()-6-COLUMN($E54)),VLOOKUP($E54-6,AllData,COLUMN()-6-COLUMN($E54)),VLOOKUP($E54-7,AllData,COLUMN()-6-COLUMN($E54)),VLOOKUP($E54-8,AllData,COLUMN()-6-COLUMN($E54)),VLOOKUP($E54-9,AllData,COLUMN()-6-COLUMN($E54)),VLOOKUP($E54-10,AllData,COLUMN()-6-COLUMN($E54)),VLOOKUP($E54-11,AllData,COLUMN()-6-COLUMN($E54)),VLOOKUP($E54-12,AllData,COLUMN()-6-COLUMN($E54)),VLOOKUP($E54-13,AllData,COLUMN()-6-COLUMN($E54)),VLOOKUP($E54-14,AllData,COLUMN()-6-COLUMN($E54)),VLOOKUP($E54-15,AllData,COLUMN()-6-COLUMN($E54)),VLOOKUP($E54-16,AllData,COLUMN()-6-COLUMN($E54)),VLOOKUP($E54-17,AllData,COLUMN()-6-COLUMN($E54)),VLOOKUP($E54-18,AllData,COLUMN()-6-COLUMN($E54)),VLOOKUP($E54-19,AllData,COLUMN()-6-COLUMN($E54)),VLOOKUP($E54-20,AllData,COLUMN()-6-COLUMN($E54)),VLOOKUP($E54-21,AllData,COLUMN()-6-COLUMN($E54)),VLOOKUP($E54-22,AllData,COLUMN()-6-COLUMN($E54)),VLOOKUP($E54-23,AllData,COLUMN()-6-COLUMN($E54)),VLOOKUP($E54-24,AllData,COLUMN()-6-COLUMN($E54)),VLOOKUP($E54-25,AllData,COLUMN()-6-COLUMN($E54)),VLOOKUP($E54-26,AllData,COLUMN()-6-COLUMN($E54)),VLOOKUP($E54-27,AllData,COLUMN()-6-COLUMN($E54)),VLOOKUP($E54-28,AllData,COLUMN()-6-COLUMN($E54)),VLOOKUP($E54-29,AllData,COLUMN()-6-COLUMN($E54)))","v":0},{"$f":"VLOOKUP($E54,AllData,COLUMN()-7-COLUMN($E54))","v":0},{"$f":"OR('Cool Graph'!$I$1=35,'Cool Graph'!$I$1=36,'Cool Graph'!$I$1=37,'Cool Graph'!$I$1=38,'Cool Graph'!$I$1=39,'Cool Graph'!$I$1=40,'Cool Graph'!$I$1=41,'Cool Graph'!$I$1=42,'Cool Graph'!$I$1=43,'Cool Graph'!$I$1=44,'Cool Graph'!$I$1=45,'Cool Graph'!$I$1=46,'Cool Graph'!$I$1=47,'Cool Graph'!$I$1=58,'Cool Graph'!$I$1=66)","v":false}]
["2011-08-23",{"$f":"OFFSET(OldSchoolJustValues!A55,0,'Cool Graph'!$H$1)","v":0},{"$f":"OFFSET(OldSchoolJustValues!A55,0,'Cool Graph'!$I$1)","v":204.1734174399727},null,{"$f":"IF(NewDate>EndDate,NA(),NewDate)","v":"2011-11-18"},{"$f":"IF($E55>EndDate,NA(),IF($K$2=TRUE,N55,IF('Cool Graph'!$B$17=1,N55,IF('Cool Graph'!$B$17=2,L55,IF('Cool Graph'!$B$17=3,M55,)))))","v":0},{"$f":"IF($E55>EndDate,NA(),IF($O$2=TRUE,J55,IF('Cool Graph'!$B$17=1,Data1!J55,IF('Cool Graph'!$B$17=2,Data1!H55,IF('Cool Graph'!$B$17=3,Data1!I55,)))))","v":318.12612585026386},{"$f":"SUM(VLOOKUP($E55,AllData,COLUMN()-COLUMN($E55)),VLOOKUP($E55-1,AllData,COLUMN()-COLUMN($E55)),VLOOKUP($E55-2,AllData,COLUMN()-COLUMN($E55)),VLOOKUP($E55-3,AllData,COLUMN()-COLUMN($E55)),VLOOKUP($E55-4,AllData,COLUMN()-COLUMN($E55)),VLOOKUP($E55-5,AllData,COLUMN()-COLUMN($E55)),VLOOKUP($E55-6,AllData,COLUMN()-COLUMN($E55)))","v":2119.5648589317111},{"$f":"SUM(VLOOKUP($E55,AllData,COLUMN()-1-COLUMN($E55)),VLOOKUP($E55-1,AllData,COLUMN()-1-COLUMN($E55)),VLOOKUP($E55-2,AllData,COLUMN()-1-COLUMN($E55)),VLOOKUP($E55-3,AllData,COLUMN()-1-COLUMN($E55)),VLOOKUP($E55-4,AllData,COLUMN()-1-COLUMN($E55)),VLOOKUP($E55-5,AllData,COLUMN()-1-COLUMN($E55)),VLOOKUP($E55-6,AllData,COLUMN()-1-COLUMN($E55)),VLOOKUP($E55-7,AllData,COLUMN()-1-COLUMN($E55)),VLOOKUP($E55-8,AllData,COLUMN()-1-COLUMN($E55)),VLOOKUP($E55-9,AllData,COLUMN()-1-COLUMN($E55)),VLOOKUP($E55-10,AllData,COLUMN()-1-COLUMN($E55)),VLOOKUP($E55-11,AllData,COLUMN()-1-COLUMN($E55)),VLOOKUP($E55-12,AllData,COLUMN()-1-COLUMN($E55)),VLOOKUP($E55-13,AllData,COLUMN()-1-COLUMN($E55)),VLOOKUP($E55-14,AllData,COLUMN()-1-COLUMN($E55)),VLOOKUP($E55-15,AllData,COLUMN()-1-COLUMN($E55)),VLOOKUP($E55-16,AllData,COLUMN()-1-COLUMN($E55)),VLOOKUP($E55-17,AllData,COLUMN()-1-COLUMN($E55)),VLOOKUP($E55-18,AllData,COLUMN()-1-COLUMN($E55)),VLOOKUP($E55-19,AllData,COLUMN()-1-COLUMN($E55)),VLOOKUP($E55-20,AllData,COLUMN()-1-COLUMN($E55)),VLOOKUP($E55-21,AllData,COLUMN()-1-COLUMN($E55)),VLOOKUP($E55-22,AllData,COLUMN()-1-COLUMN($E55)),VLOOKUP($E55-23,AllData,COLUMN()-1-COLUMN($E55)),VLOOKUP($E55-24,AllData,COLUMN()-1-COLUMN($E55)),VLOOKUP($E55-25,AllData,COLUMN()-1-COLUMN($E55)),VLOOKUP($E55-26,AllData,COLUMN()-1-COLUMN($E55)),VLOOKUP($E55-27,AllData,COLUMN()-1-COLUMN($E55)),VLOOKUP($E55-28,AllData,COLUMN()-1-COLUMN($E55)),VLOOKUP($E55-29,AllData,COLUMN()-1-COLUMN($E55)))","v":9321.8958781519214},{"$f":"VLOOKUP($E55,AllData,COLUMN()-2-COLUMN($E55))","v":318.12612585026386},{"$f":"OR('Cool Graph'!$H$1=35,'Cool Graph'!$H$1=36,'Cool Graph'!$H$1=37,'Cool Graph'!$H$1=38,'Cool Graph'!$H$1=39,'Cool Graph'!$H$1=40,'Cool Graph'!$H$1=41,'Cool Graph'!$H$1=42,'Cool Graph'!$H$1=43,'Cool Graph'!$H$1=44,'Cool Graph'!$H$1=45,'Cool Graph'!$H$1=46,'Cool Graph'!$H$1=47,'Cool Graph'!$H$1=58,'Cool Graph'!$H$1=66)","v":false},{"$f":"SUM(VLOOKUP($E55,AllData,COLUMN()-5-COLUMN($E55)),VLOOKUP($E55-1,AllData,COLUMN()-5-COLUMN($E55)),VLOOKUP($E55-2,AllData,COLUMN()-5-COLUMN($E55)),VLOOKUP($E55-3,AllData,COLUMN()-5-COLUMN($E55)),VLOOKUP($E55-4,AllData,COLUMN()-5-COLUMN($E55)),VLOOKUP($E55-5,AllData,COLUMN()-5-COLUMN($E55)),VLOOKUP($E55-6,AllData,COLUMN()-5-COLUMN($E55)))","v":0},{"$f":"SUM(VLOOKUP($E55,AllData,COLUMN()-6-COLUMN($E55)),VLOOKUP($E55-1,AllData,COLUMN()-6-COLUMN($E55)),VLOOKUP($E55-2,AllData,COLUMN()-6-COLUMN($E55)),VLOOKUP($E55-3,AllData,COLUMN()-6-COLUMN($E55)),VLOOKUP($E55-4,AllData,COLUMN()-6-COLUMN($E55)),VLOOKUP($E55-5,AllData,COLUMN()-6-COLUMN($E55)),VLOOKUP($E55-6,AllData,COLUMN()-6-COLUMN($E55)),VLOOKUP($E55-7,AllData,COLUMN()-6-COLUMN($E55)),VLOOKUP($E55-8,AllData,COLUMN()-6-COLUMN($E55)),VLOOKUP($E55-9,AllData,COLUMN()-6-COLUMN($E55)),VLOOKUP($E55-10,AllData,COLUMN()-6-COLUMN($E55)),VLOOKUP($E55-11,AllData,COLUMN()-6-COLUMN($E55)),VLOOKUP($E55-12,AllData,COLUMN()-6-COLUMN($E55)),VLOOKUP($E55-13,AllData,COLUMN()-6-COLUMN($E55)),VLOOKUP($E55-14,AllData,COLUMN()-6-COLUMN($E55)),VLOOKUP($E55-15,AllData,COLUMN()-6-COLUMN($E55)),VLOOKUP($E55-16,AllData,COLUMN()-6-COLUMN($E55)),VLOOKUP($E55-17,AllData,COLUMN()-6-COLUMN($E55)),VLOOKUP($E55-18,AllData,COLUMN()-6-COLUMN($E55)),VLOOKUP($E55-19,AllData,COLUMN()-6-COLUMN($E55)),VLOOKUP($E55-20,AllData,COLUMN()-6-COLUMN($E55)),VLOOKUP($E55-21,AllData,COLUMN()-6-COLUMN($E55)),VLOOKUP($E55-22,AllData,COLUMN()-6-COLUMN($E55)),VLOOKUP($E55-23,AllData,COLUMN()-6-COLUMN($E55)),VLOOKUP($E55-24,AllData,COLUMN()-6-COLUMN($E55)),VLOOKUP($E55-25,AllData,COLUMN()-6-COLUMN($E55)),VLOOKUP($E55-26,AllData,COLUMN()-6-COLUMN($E55)),VLOOKUP($E55-27,AllData,COLUMN()-6-COLUMN($E55)),VLOOKUP($E55-28,AllData,COLUMN()-6-COLUMN($E55)),VLOOKUP($E55-29,AllData,COLUMN()-6-COLUMN($E55)))","v":0},{"$f":"VLOOKUP($E55,AllData,COLUMN()-7-COLUMN($E55))","v":0},{"$f":"OR('Cool Graph'!$I$1=35,'Cool Graph'!$I$1=36,'Cool Graph'!$I$1=37,'Cool Graph'!$I$1=38,'Cool Graph'!$I$1=39,'Cool Graph'!$I$1=40,'Cool Graph'!$I$1=41,'Cool Graph'!$I$1=42,'Cool Graph'!$I$1=43,'Cool Graph'!$I$1=44,'Cool Graph'!$I$1=45,'Cool Graph'!$I$1=46,'Cool Graph'!$I$1=47,'Cool Graph'!$I$1=58,'Cool Graph'!$I$1=66)","v":false}]
["2011-08-24",{"$f":"OFFSET(OldSchoolJustValues!A56,0,'Cool Graph'!$H$1)","v":0},{"$f":"OFFSET(OldSchoolJustValues!A56,0,'Cool Graph'!$I$1)","v":259.76656854475448},null,{"$f":"IF(NewDate>EndDate,NA(),NewDate)","v":"2011-11-19"},{"$f":"IF($E56>EndDate,NA(),IF($K$2=TRUE,N56,IF('Cool Graph'!$B$17=1,N56,IF('Cool Graph'!$B$17=2,L56,IF('Cool Graph'!$B$17=3,M56,)))))","v":0},{"$f":"IF($E56>EndDate,NA(),IF($O$2=TRUE,J56,IF('Cool Graph'!$B$17=1,Data1!J56,IF('Cool Graph'!$B$17=2,Data1!H56,IF('Cool Graph'!$B$17=3,Data1!I56,)))))","v":241.72281214131294},{"$f":"SUM(VLOOKUP($E56,AllData,COLUMN()-COLUMN($E56)),VLOOKUP($E56-1,AllData,COLUMN()-COLUMN($E56)),VLOOKUP($E56-2,AllData,COLUMN()-COLUMN($E56)),VLOOKUP($E56-3,AllData,COLUMN()-COLUMN($E56)),VLOOKUP($E56-4,AllData,COLUMN()-COLUMN($E56)),VLOOKUP($E56-5,AllData,COLUMN()-COLUMN($E56)),VLOOKUP($E56-6,AllData,COLUMN()-COLUMN($E56)))","v":2363.671043655122},{"$f":"SUM(VLOOKUP($E56,AllData,COLUMN()-1-COLUMN($E56)),VLOOKUP($E56-1,AllData,COLUMN()-1-COLUMN($E56)),VLOOKUP($E56-2,AllData,COLUMN()-1-COLUMN($E56)),VLOOKUP($E56-3,AllData,COLUMN()-1-COLUMN($E56)),VLOOKUP($E56-4,AllData,COLUMN()-1-COLUMN($E56)),VLOOKUP($E56-5,AllData,COLUMN()-1-COLUMN($E56)),VLOOKUP($E56-6,AllData,COLUMN()-1-COLUMN($E56)),VLOOKUP($E56-7,AllData,COLUMN()-1-COLUMN($E56)),VLOOKUP($E56-8,AllData,COLUMN()-1-COLUMN($E56)),VLOOKUP($E56-9,AllData,COLUMN()-1-COLUMN($E56)),VLOOKUP($E56-10,AllData,COLUMN()-1-COLUMN($E56)),VLOOKUP($E56-11,AllData,COLUMN()-1-COLUMN($E56)),VLOOKUP($E56-12,AllData,COLUMN()-1-COLUMN($E56)),VLOOKUP($E56-13,AllData,COLUMN()-1-COLUMN($E56)),VLOOKUP($E56-14,AllData,COLUMN()-1-COLUMN($E56)),VLOOKUP($E56-15,AllData,COLUMN()-1-COLUMN($E56)),VLOOKUP($E56-16,AllData,COLUMN()-1-COLUMN($E56)),VLOOKUP($E56-17,AllData,COLUMN()-1-COLUMN($E56)),VLOOKUP($E56-18,AllData,COLUMN()-1-COLUMN($E56)),VLOOKUP($E56-19,AllData,COLUMN()-1-COLUMN($E56)),VLOOKUP($E56-20,AllData,COLUMN()-1-COLUMN($E56)),VLOOKUP($E56-21,AllData,COLUMN()-1-COLUMN($E56)),VLOOKUP($E56-22,AllData,COLUMN()-1-COLUMN($E56)),VLOOKUP($E56-23,AllData,COLUMN()-1-COLUMN($E56)),VLOOKUP($E56-24,AllData,COLUMN()-1-COLUMN($E56)),VLOOKUP($E56-25,AllData,COLUMN()-1-COLUMN($E56)),VLOOKUP($E56-26,AllData,COLUMN()-1-COLUMN($E56)),VLOOKUP($E56-27,AllData,COLUMN()-1-COLUMN($E56)),VLOOKUP($E56-28,AllData,COLUMN()-1-COLUMN($E56)),VLOOKUP($E56-29,AllData,COLUMN()-1-COLUMN($E56)))","v":8862.4561212901262},{"$f":"VLOOKUP($E56,AllData,COLUMN()-2-COLUMN($E56))","v":241.72281214131294},{"$f":"OR('Cool Graph'!$H$1=35,'Cool Graph'!$H$1=36,'Cool Graph'!$H$1=37,'Cool Graph'!$H$1=38,'Cool Graph'!$H$1=39,'Cool Graph'!$H$1=40,'Cool Graph'!$H$1=41,'Cool Graph'!$H$1=42,'Cool Graph'!$H$1=43,'Cool Graph'!$H$1=44,'Cool Graph'!$H$1=45,'Cool Graph'!$H$1=46,'Cool Graph'!$H$1=47,'Cool Graph'!$H$1=58,'Cool Graph'!$H$1=66)","v":false},{"$f":"SUM(VLOOKUP($E56,AllData,COLUMN()-5-COLUMN($E56)),VLOOKUP($E56-1,AllData,COLUMN()-5-COLUMN($E56)),VLOOKUP($E56-2,AllData,COLUMN()-5-COLUMN($E56)),VLOOKUP($E56-3,AllData,COLUMN()-5-COLUMN($E56)),VLOOKUP($E56-4,AllData,COLUMN()-5-COLUMN($E56)),VLOOKUP($E56-5,AllData,COLUMN()-5-COLUMN($E56)),VLOOKUP($E56-6,AllData,COLUMN()-5-COLUMN($E56)))","v":0},{"$f":"SUM(VLOOKUP($E56,AllData,COLUMN()-6-COLUMN($E56)),VLOOKUP($E56-1,AllData,COLUMN()-6-COLUMN($E56)),VLOOKUP($E56-2,AllData,COLUMN()-6-COLUMN($E56)),VLOOKUP($E56-3,AllData,COLUMN()-6-COLUMN($E56)),VLOOKUP($E56-4,AllData,COLUMN()-6-COLUMN($E56)),VLOOKUP($E56-5,AllData,COLUMN()-6-COLUMN($E56)),VLOOKUP($E56-6,AllData,COLUMN()-6-COLUMN($E56)),VLOOKUP($E56-7,AllData,COLUMN()-6-COLUMN($E56)),VLOOKUP($E56-8,AllData,COLUMN()-6-COLUMN($E56)),VLOOKUP($E56-9,AllData,COLUMN()-6-COLUMN($E56)),VLOOKUP($E56-10,AllData,COLUMN()-6-COLUMN($E56)),VLOOKUP($E56-11,AllData,COLUMN()-6-COLUMN($E56)),VLOOKUP($E56-12,AllData,COLUMN()-6-COLUMN($E56)),VLOOKUP($E56-13,AllData,COLUMN()-6-COLUMN($E56)),VLOOKUP($E56-14,AllData,COLUMN()-6-COLUMN($E56)),VLOOKUP($E56-15,AllData,COLUMN()-6-COLUMN($E56)),VLOOKUP($E56-16,AllData,COLUMN()-6-COLUMN($E56)),VLOOKUP($E56-17,AllData,COLUMN()-6-COLUMN($E56)),VLOOKUP($E56-18,AllData,COLUMN()-6-COLUMN($E56)),VLOOKUP($E56-19,AllData,COLUMN()-6-COLUMN($E56)),VLOOKUP($E56-20,AllData,COLUMN()-6-COLUMN($E56)),VLOOKUP($E56-21,AllData,COLUMN()-6-COLUMN($E56)),VLOOKUP($E56-22,AllData,COLUMN()-6-COLUMN($E56)),VLOOKUP($E56-23,AllData,COLUMN()-6-COLUMN($E56)),VLOOKUP($E56-24,AllData,COLUMN()-6-COLUMN($E56)),VLOOKUP($E56-25,AllData,COLUMN()-6-COLUMN($E56)),VLOOKUP($E56-26,AllData,COLUMN()-6-COLUMN($E56)),VLOOKUP($E56-27,AllData,COLUMN()-6-COLUMN($E56)),VLOOKUP($E56-28,AllData,COLUMN()-6-COLUMN($E56)),VLOOKUP($E56-29,AllData,COLUMN()-6-COLUMN($E56)))","v":0},{"$f":"VLOOKUP($E56,AllData,COLUMN()-7-COLUMN($E56))","v":0},{"$f":"OR('Cool Graph'!$I$1=35,'Cool Graph'!$I$1=36,'Cool Graph'!$I$1=37,'Cool Graph'!$I$1=38,'Cool Graph'!$I$1=39,'Cool Graph'!$I$1=40,'Cool Graph'!$I$1=41,'Cool Graph'!$I$1=42,'Cool Graph'!$I$1=43,'Cool Graph'!$I$1=44,'Cool Graph'!$I$1=45,'Cool Graph'!$I$1=46,'Cool Graph'!$I$1=47,'Cool Graph'!$I$1=58,'Cool Graph'!$I$1=66)","v":false}]
["2011-08-25",{"$f":"OFFSET(OldSchoolJustValues!A57,0,'Cool Graph'!$H$1)","v":0},{"$f":"OFFSET(OldSchoolJustValues!A57,0,'Cool Graph'!$I$1)","v":-9.616686291049092},null,{"$f":"IF(NewDate>EndDate,NA(),NewDate)","v":"2011-11-20"},{"$f":"IF($E57>EndDate,NA(),IF($K$2=TRUE,N57,IF('Cool Graph'!$B$17=1,N57,IF('Cool Graph'!$B$17=2,L57,IF('Cool Graph'!$B$17=3,M57,)))))","v":0},{"$f":"IF($E57>EndDate,NA(),IF($O$2=TRUE,J57,IF('Cool Graph'!$B$17=1,Data1!J57,IF('Cool Graph'!$B$17=2,Data1!H57,IF('Cool Graph'!$B$17=3,Data1!I57,)))))","v":524.08645079845985},{"$f":"SUM(VLOOKUP($E57,AllData,COLUMN()-COLUMN($E57)),VLOOKUP($E57-1,AllData,COLUMN()-COLUMN($E57)),VLOOKUP($E57-2,AllData,COLUMN()-COLUMN($E57)),VLOOKUP($E57-3,AllData,COLUMN()-COLUMN($E57)),VLOOKUP($E57-4,AllData,COLUMN()-COLUMN($E57)),VLOOKUP($E57-5,AllData,COLUMN()-COLUMN($E57)),VLOOKUP($E57-6,AllData,COLUMN()-COLUMN($E57)))","v":2755.3909259088273},{"$f":"SUM(VLOOKUP($E57,AllData,COLUMN()-1-COLUMN($E57)),VLOOKUP($E57-1,AllData,COLUMN()-1-COLUMN($E57)),VLOOKUP($E57-2,AllData,COLUMN()-1-COLUMN($E57)),VLOOKUP($E57-3,AllData,COLUMN()-1-COLUMN($E57)),VLOOKUP($E57-4,AllData,COLUMN()-1-COLUMN($E57)),VLOOKUP($E57-5,AllData,COLUMN()-1-COLUMN($E57)),VLOOKUP($E57-6,AllData,COLUMN()-1-COLUMN($E57)),VLOOKUP($E57-7,AllData,COLUMN()-1-COLUMN($E57)),VLOOKUP($E57-8,AllData,COLUMN()-1-COLUMN($E57)),VLOOKUP($E57-9,AllData,COLUMN()-1-COLUMN($E57)),VLOOKUP($E57-10,AllData,COLUMN()-1-COLUMN($E57)),VLOOKUP($E57-11,AllData,COLUMN()-1-COLUMN($E57)),VLOOKUP($E57-12,AllData,COLUMN()-1-COLUMN($E57)),VLOOKUP($E57-13,AllData,COLUMN()-1-COLUMN($E57)),VLOOKUP($E57-14,AllData,COLUMN()-1-COLUMN($E57)),VLOOKUP($E57-15,AllData,COLUMN()-1-COLUMN($E57)),VLOOKUP($E57-16,AllData,COLUMN()-1-COLUMN($E57)),VLOOKUP($E57-17,AllData,COLUMN()-1-COLUMN($E57)),VLOOKUP($E57-18,AllData,COLUMN()-1-COLUMN($E57)),VLOOKUP($E57-19,AllData,COLUMN()-1-COLUMN($E57)),VLOOKUP($E57-20,AllData,COLUMN()-1-COLUMN($E57)),VLOOKUP($E57-21,AllData,COLUMN()-1-COLUMN($E57)),VLOOKUP($E57-22,AllData,COLUMN()-1-COLUMN($E57)),VLOOKUP($E57-23,AllData,COLUMN()-1-COLUMN($E57)),VLOOKUP($E57-24,AllData,COLUMN()-1-COLUMN($E57)),VLOOKUP($E57-25,AllData,COLUMN()-1-COLUMN($E57)),VLOOKUP($E57-26,AllData,COLUMN()-1-COLUMN($E57)),VLOOKUP($E57-27,AllData,COLUMN()-1-COLUMN($E57)),VLOOKUP($E57-28,AllData,COLUMN()-1-COLUMN($E57)),VLOOKUP($E57-29,AllData,COLUMN()-1-COLUMN($E57)))","v":8851.3361212901254},{"$f":"VLOOKUP($E57,AllData,COLUMN()-2-COLUMN($E57))","v":524.08645079845985},{"$f":"OR('Cool Graph'!$H$1=35,'Cool Graph'!$H$1=36,'Cool Graph'!$H$1=37,'Cool Graph'!$H$1=38,'Cool Graph'!$H$1=39,'Cool Graph'!$H$1=40,'Cool Graph'!$H$1=41,'Cool Graph'!$H$1=42,'Cool Graph'!$H$1=43,'Cool Graph'!$H$1=44,'Cool Graph'!$H$1=45,'Cool Graph'!$H$1=46,'Cool Graph'!$H$1=47,'Cool Graph'!$H$1=58,'Cool Graph'!$H$1=66)","v":false},{"$f":"SUM(VLOOKUP($E57,AllData,COLUMN()-5-COLUMN($E57)),VLOOKUP($E57-1,AllData,COLUMN()-5-COLUMN($E57)),VLOOKUP($E57-2,AllData,COLUMN()-5-COLUMN($E57)),VLOOKUP($E57-3,AllData,COLUMN()-5-COLUMN($E57)),VLOOKUP($E57-4,AllData,COLUMN()-5-COLUMN($E57)),VLOOKUP($E57-5,AllData,COLUMN()-5-COLUMN($E57)),VLOOKUP($E57-6,AllData,COLUMN()-5-COLUMN($E57)))","v":0},{"$f":"SUM(VLOOKUP($E57,AllData,COLUMN()-6-COLUMN($E57)),VLOOKUP($E57-1,AllData,COLUMN()-6-COLUMN($E57)),VLOOKUP($E57-2,AllData,COLUMN()-6-COLUMN($E57)),VLOOKUP($E57-3,AllData,COLUMN()-6-COLUMN($E57)),VLOOKUP($E57-4,AllData,COLUMN()-6-COLUMN($E57)),VLOOKUP($E57-5,AllData,COLUMN()-6-COLUMN($E57)),VLOOKUP($E57-6,AllData,COLUMN()-6-COLUMN($E57)),VLOOKUP($E57-7,AllData,COLUMN()-6-COLUMN($E57)),VLOOKUP($E57-8,AllData,COLUMN()-6-COLUMN($E57)),VLOOKUP($E57-9,AllData,COLUMN()-6-COLUMN($E57)),VLOOKUP($E57-10,AllData,COLUMN()-6-COLUMN($E57)),VLOOKUP($E57-11,AllData,COLUMN()-6-COLUMN($E57)),VLOOKUP($E57-12,AllData,COLUMN()-6-COLUMN($E57)),VLOOKUP($E57-13,AllData,COLUMN()-6-COLUMN($E57)),VLOOKUP($E57-14,AllData,COLUMN()-6-COLUMN($E57)),VLOOKUP($E57-15,AllData,COLUMN()-6-COLUMN($E57)),VLOOKUP($E57-16,AllData,COLUMN()-6-COLUMN($E57)),VLOOKUP($E57-17,AllData,COLUMN()-6-COLUMN($E57)),VLOOKUP($E57-18,AllData,COLUMN()-6-COLUMN($E57)),VLOOKUP($E57-19,AllData,COLUMN()-6-COLUMN($E57)),VLOOKUP($E57-20,AllData,COLUMN()-6-COLUMN($E57)),VLOOKUP($E57-21,AllData,COLUMN()-6-COLUMN($E57)),VLOOKUP($E57-22,AllData,COLUMN()-6-COLUMN($E57)),VLOOKUP($E57-23,AllData,COLUMN()-6-COLUMN($E57)),VLOOKUP($E57-24,AllData,COLUMN()-6-COLUMN($E57)),VLOOKUP($E57-25,AllData,COLUMN()-6-COLUMN($E57)),VLOOKUP($E57-26,AllData,COLUMN()-6-COLUMN($E57)),VLOOKUP($E57-27,AllData,COLUMN()-6-COLUMN($E57)),VLOOKUP($E57-28,AllData,COLUMN()-6-COLUMN($E57)),VLOOKUP($E57-29,AllData,COLUMN()-6-COLUMN($E57)))","v":0},{"$f":"VLOOKUP($E57,AllData,COLUMN()-7-COLUMN($E57))","v":0},{"$f":"OR('Cool Graph'!$I$1=35,'Cool Graph'!$I$1=36,'Cool Graph'!$I$1=37,'Cool Graph'!$I$1=38,'Cool Graph'!$I$1=39,'Cool Graph'!$I$1=40,'Cool Graph'!$I$1=41,'Cool Graph'!$I$1=42,'Cool Graph'!$I$1=43,'Cool Graph'!$I$1=44,'Cool Graph'!$I$1=45,'Cool Graph'!$I$1=46,'Cool Graph'!$I$1=47,'Cool Graph'!$I$1=58,'Cool Graph'!$I$1=66)","v":false}]
["2011-08-26",{"$f":"OFFSET(OldSchoolJustValues!A58,0,'Cool Graph'!$H$1)","v":0},{"$f":"OFFSET(OldSchoolJustValues!A58,0,'Cool Graph'!$I$1)","v":144.2099411268527},null,{"$f":"IF(NewDate>EndDate,NA(),NewDate)","v":"2011-11-21"},{"$f":"IF($E58>EndDate,NA(),IF($K$2=TRUE,N58,IF('Cool Graph'!$B$17=1,N58,IF('Cool Graph'!$B$17=2,L58,IF('Cool Graph'!$B$17=3,M58,)))))","v":0},{"$f":"IF($E58>EndDate,NA(),IF($O$2=TRUE,J58,IF('Cool Graph'!$B$17=1,Data1!J58,IF('Cool Graph'!$B$17=2,Data1!H58,IF('Cool Graph'!$B$17=3,Data1!I58,)))))","v":601.71932181292016},{"$f":"SUM(VLOOKUP($E58,AllData,COLUMN()-COLUMN($E58)),VLOOKUP($E58-1,AllData,COLUMN()-COLUMN($E58)),VLOOKUP($E58-2,AllData,COLUMN()-COLUMN($E58)),VLOOKUP($E58-3,AllData,COLUMN()-COLUMN($E58)),VLOOKUP($E58-4,AllData,COLUMN()-COLUMN($E58)),VLOOKUP($E58-5,AllData,COLUMN()-COLUMN($E58)),VLOOKUP($E58-6,AllData,COLUMN()-COLUMN($E58)))","v":3034.09373805014},{"$f":"SUM(VLOOKUP($E58,AllData,COLUMN()-1-COLUMN($E58)),VLOOKUP($E58-1,AllData,COLUMN()-1-COLUMN($E58)),VLOOKUP($E58-2,AllData,COLUMN()-1-COLUMN($E58)),VLOOKUP($E58-3,AllData,COLUMN()-1-COLUMN($E58)),VLOOKUP($E58-4,AllData,COLUMN()-1-COLUMN($E58)),VLOOKUP($E58-5,AllData,COLUMN()-1-COLUMN($E58)),VLOOKUP($E58-6,AllData,COLUMN()-1-COLUMN($E58)),VLOOKUP($E58-7,AllData,COLUMN()-1-COLUMN($E58)),VLOOKUP($E58-8,AllData,COLUMN()-1-COLUMN($E58)),VLOOKUP($E58-9,AllData,COLUMN()-1-COLUMN($E58)),VLOOKUP($E58-10,AllData,COLUMN()-1-COLUMN($E58)),VLOOKUP($E58-11,AllData,COLUMN()-1-COLUMN($E58)),VLOOKUP($E58-12,AllData,COLUMN()-1-COLUMN($E58)),VLOOKUP($E58-13,AllData,COLUMN()-1-COLUMN($E58)),VLOOKUP($E58-14,AllData,COLUMN()-1-COLUMN($E58)),VLOOKUP($E58-15,AllData,COLUMN()-1-COLUMN($E58)),VLOOKUP($E58-16,AllData,COLUMN()-1-COLUMN($E58)),VLOOKUP($E58-17,AllData,COLUMN()-1-COLUMN($E58)),VLOOKUP($E58-18,AllData,COLUMN()-1-COLUMN($E58)),VLOOKUP($E58-19,AllData,COLUMN()-1-COLUMN($E58)),VLOOKUP($E58-20,AllData,COLUMN()-1-COLUMN($E58)),VLOOKUP($E58-21,AllData,COLUMN()-1-COLUMN($E58)),VLOOKUP($E58-22,AllData,COLUMN()-1-COLUMN($E58)),VLOOKUP($E58-23,AllData,COLUMN()-1-COLUMN($E58)),VLOOKUP($E58-24,AllData,COLUMN()-1-COLUMN($E58)),VLOOKUP($E58-25,AllData,COLUMN()-1-COLUMN($E58)),VLOOKUP($E58-26,AllData,COLUMN()-1-COLUMN($E58)),VLOOKUP($E58-27,AllData,COLUMN()-1-COLUMN($E58)),VLOOKUP($E58-28,AllData,COLUMN()-1-COLUMN($E58)),VLOOKUP($E58-29,AllData,COLUMN()-1-COLUMN($E58)))","v":9385.7121882672418},{"$f":"VLOOKUP($E58,AllData,COLUMN()-2-COLUMN($E58))","v":601.71932181292016},{"$f":"OR('Cool Graph'!$H$1=35,'Cool Graph'!$H$1=36,'Cool Graph'!$H$1=37,'Cool Graph'!$H$1=38,'Cool Graph'!$H$1=39,'Cool Graph'!$H$1=40,'Cool Graph'!$H$1=41,'Cool Graph'!$H$1=42,'Cool Graph'!$H$1=43,'Cool Graph'!$H$1=44,'Cool Graph'!$H$1=45,'Cool Graph'!$H$1=46,'Cool Graph'!$H$1=47,'Cool Graph'!$H$1=58,'Cool Graph'!$H$1=66)","v":false},{"$f":"SUM(VLOOKUP($E58,AllData,COLUMN()-5-COLUMN($E58)),VLOOKUP($E58-1,AllData,COLUMN()-5-COLUMN($E58)),VLOOKUP($E58-2,AllData,COLUMN()-5-COLUMN($E58)),VLOOKUP($E58-3,AllData,COLUMN()-5-COLUMN($E58)),VLOOKUP($E58-4,AllData,COLUMN()-5-COLUMN($E58)),VLOOKUP($E58-5,AllData,COLUMN()-5-COLUMN($E58)),VLOOKUP($E58-6,AllData,COLUMN()-5-COLUMN($E58)))","v":0},{"$f":"SUM(VLOOKUP($E58,AllData,COLUMN()-6-COLUMN($E58)),VLOOKUP($E58-1,AllData,COLUMN()-6-COLUMN($E58)),VLOOKUP($E58-2,AllData,COLUMN()-6-COLUMN($E58)),VLOOKUP($E58-3,AllData,COLUMN()-6-COLUMN($E58)),VLOOKUP($E58-4,AllData,COLUMN()-6-COLUMN($E58)),VLOOKUP($E58-5,AllData,COLUMN()-6-COLUMN($E58)),VLOOKUP($E58-6,AllData,COLUMN()-6-COLUMN($E58)),VLOOKUP($E58-7,AllData,COLUMN()-6-COLUMN($E58)),VLOOKUP($E58-8,AllData,COLUMN()-6-COLUMN($E58)),VLOOKUP($E58-9,AllData,COLUMN()-6-COLUMN($E58)),VLOOKUP($E58-10,AllData,COLUMN()-6-COLUMN($E58)),VLOOKUP($E58-11,AllData,COLUMN()-6-COLUMN($E58)),VLOOKUP($E58-12,AllData,COLUMN()-6-COLUMN($E58)),VLOOKUP($E58-13,AllData,COLUMN()-6-COLUMN($E58)),VLOOKUP($E58-14,AllData,COLUMN()-6-COLUMN($E58)),VLOOKUP($E58-15,AllData,COLUMN()-6-COLUMN($E58)),VLOOKUP($E58-16,AllData,COLUMN()-6-COLUMN($E58)),VLOOKUP($E58-17,AllData,COLUMN()-6-COLUMN($E58)),VLOOKUP($E58-18,AllData,COLUMN()-6-COLUMN($E58)),VLOOKUP($E58-19,AllData,COLUMN()-6-COLUMN($E58)),VLOOKUP($E58-20,AllData,COLUMN()-6-COLUMN($E58)),VLOOKUP($E58-21,AllData,COLUMN()-6-COLUMN($E58)),VLOOKUP($E58-22,AllData,COLUMN()-6-COLUMN($E58)),VLOOKUP($E58-23,AllData,COLUMN()-6-COLUMN($E58)),VLOOKUP($E58-24,AllData,COLUMN()-6-COLUMN($E58)),VLOOKUP($E58-25,AllData,COLUMN()-6-COLUMN($E58)),VLOOKUP($E58-26,AllData,COLUMN()-6-COLUMN($E58)),VLOOKUP($E58-27,AllData,COLUMN()-6-COLUMN($E58)),VLOOKUP($E58-28,AllData,COLUMN()-6-COLUMN($E58)),VLOOKUP($E58-29,AllData,COLUMN()-6-COLUMN($E58)))","v":0},{"$f":"VLOOKUP($E58,AllData,COLUMN()-7-COLUMN($E58))","v":0},{"$f":"OR('Cool Graph'!$I$1=35,'Cool Graph'!$I$1=36,'Cool Graph'!$I$1=37,'Cool Graph'!$I$1=38,'Cool Graph'!$I$1=39,'Cool Graph'!$I$1=40,'Cool Graph'!$I$1=41,'Cool Graph'!$I$1=42,'Cool Graph'!$I$1=43,'Cool Graph'!$I$1=44,'Cool Graph'!$I$1=45,'Cool Graph'!$I$1=46,'Cool Graph'!$I$1=47,'Cool Graph'!$I$1=58,'Cool Graph'!$I$1=66)","v":false}]
["2011-08-27",{"$f":"OFFSET(OldSchoolJustValues!A59,0,'Cool Graph'!$H$1)","v":0},{"$f":"OFFSET(OldSchoolJustValues!A59,0,'Cool Graph'!$I$1)","v":-5.4266862910490943},null,{"$f":"IF(NewDate>EndDate,NA(),NewDate)","v":"2011-11-22"},{"$f":"IF($E59>EndDate,NA(),IF($K$2=TRUE,N59,IF('Cool Graph'!$B$17=1,N59,IF('Cool Graph'!$B$17=2,L59,IF('Cool Graph'!$B$17=3,M59,)))))","v":100},{"$f":"IF($E59>EndDate,NA(),IF($O$2=TRUE,J59,IF('Cool Graph'!$B$17=1,Data1!J59,IF('Cool Graph'!$B$17=2,Data1!H59,IF('Cool Graph'!$B$17=3,Data1!I59,)))))","v":322.62313708950893},{"$f":"SUM(VLOOKUP($E59,AllData,COLUMN()-COLUMN($E59)),VLOOKUP($E59-1,AllData,COLUMN()-COLUMN($E59)),VLOOKUP($E59-2,AllData,COLUMN()-COLUMN($E59)),VLOOKUP($E59-3,AllData,COLUMN()-COLUMN($E59)),VLOOKUP($E59-4,AllData,COLUMN()-COLUMN($E59)),VLOOKUP($E59-5,AllData,COLUMN()-COLUMN($E59)),VLOOKUP($E59-6,AllData,COLUMN()-COLUMN($E59)))","v":2935.5970517590913},{"$f":"SUM(VLOOKUP($E59,AllData,COLUMN()-1-COLUMN($E59)),VLOOKUP($E59-1,AllData,COLUMN()-1-COLUMN($E59)),VLOOKUP($E59-2,AllData,COLUMN()-1-COLUMN($E59)),VLOOKUP($E59-3,AllData,COLUMN()-1-COLUMN($E59)),VLOOKUP($E59-4,AllData,COLUMN()-1-COLUMN($E59)),VLOOKUP($E59-5,AllData,COLUMN()-1-COLUMN($E59)),VLOOKUP($E59-6,AllData,COLUMN()-1-COLUMN($E59)),VLOOKUP($E59-7,AllData,COLUMN()-1-COLUMN($E59)),VLOOKUP($E59-8,AllData,COLUMN()-1-COLUMN($E59)),VLOOKUP($E59-9,AllData,COLUMN()-1-COLUMN($E59)),VLOOKUP($E59-10,AllData,COLUMN()-1-COLUMN($E59)),VLOOKUP($E59-11,AllData,COLUMN()-1-COLUMN($E59)),VLOOKUP($E59-12,AllData,COLUMN()-1-COLUMN($E59)),VLOOKUP($E59-13,AllData,COLUMN()-1-COLUMN($E59)),VLOOKUP($E59-14,AllData,COLUMN()-1-COLUMN($E59)),VLOOKUP($E59-15,AllData,COLUMN()-1-COLUMN($E59)),VLOOKUP($E59-16,AllData,COLUMN()-1-COLUMN($E59)),VLOOKUP($E59-17,AllData,COLUMN()-1-COLUMN($E59)),VLOOKUP($E59-18,AllData,COLUMN()-1-COLUMN($E59)),VLOOKUP($E59-19,AllData,COLUMN()-1-COLUMN($E59)),VLOOKUP($E59-20,AllData,COLUMN()-1-COLUMN($E59)),VLOOKUP($E59-21,AllData,COLUMN()-1-COLUMN($E59)),VLOOKUP($E59-22,AllData,COLUMN()-1-COLUMN($E59)),VLOOKUP($E59-23,AllData,COLUMN()-1-COLUMN($E59)),VLOOKUP($E59-24,AllData,COLUMN()-1-COLUMN($E59)),VLOOKUP($E59-25,AllData,COLUMN()-1-COLUMN($E59)),VLOOKUP($E59-26,AllData,COLUMN()-1-COLUMN($E59)),VLOOKUP($E59-27,AllData,COLUMN()-1-COLUMN($E59)),VLOOKUP($E59-28,AllData,COLUMN()-1-COLUMN($E59)),VLOOKUP($E59-29,AllData,COLUMN()-1-COLUMN($E59)))","v":9073.8122471403894},{"$f":"VLOOKUP($E59,AllData,COLUMN()-2-COLUMN($E59))","v":322.62313708950893},{"$f":"OR('Cool Graph'!$H$1=35,'Cool Graph'!$H$1=36,'Cool Graph'!$H$1=37,'Cool Graph'!$H$1=38,'Cool Graph'!$H$1=39,'Cool Graph'!$H$1=40,'Cool Graph'!$H$1=41,'Cool Graph'!$H$1=42,'Cool Graph'!$H$1=43,'Cool Graph'!$H$1=44,'Cool Graph'!$H$1=45,'Cool Graph'!$H$1=46,'Cool Graph'!$H$1=47,'Cool Graph'!$H$1=58,'Cool Graph'!$H$1=66)","v":false},{"$f":"SUM(VLOOKUP($E59,AllData,COLUMN()-5-COLUMN($E59)),VLOOKUP($E59-1,AllData,COLUMN()-5-COLUMN($E59)),VLOOKUP($E59-2,AllData,COLUMN()-5-COLUMN($E59)),VLOOKUP($E59-3,AllData,COLUMN()-5-COLUMN($E59)),VLOOKUP($E59-4,AllData,COLUMN()-5-COLUMN($E59)),VLOOKUP($E59-5,AllData,COLUMN()-5-COLUMN($E59)),VLOOKUP($E59-6,AllData,COLUMN()-5-COLUMN($E59)))","v":100},{"$f":"SUM(VLOOKUP($E59,AllData,COLUMN()-6-COLUMN($E59)),VLOOKUP($E59-1,AllData,COLUMN()-6-COLUMN($E59)),VLOOKUP($E59-2,AllData,COLUMN()-6-COLUMN($E59)),VLOOKUP($E59-3,AllData,COLUMN()-6-COLUMN($E59)),VLOOKUP($E59-4,AllData,COLUMN()-6-COLUMN($E59)),VLOOKUP($E59-5,AllData,COLUMN()-6-COLUMN($E59)),VLOOKUP($E59-6,AllData,COLUMN()-6-COLUMN($E59)),VLOOKUP($E59-7,AllData,COLUMN()-6-COLUMN($E59)),VLOOKUP($E59-8,AllData,COLUMN()-6-COLUMN($E59)),VLOOKUP($E59-9,AllData,COLUMN()-6-COLUMN($E59)),VLOOKUP($E59-10,AllData,COLUMN()-6-COLUMN($E59)),VLOOKUP($E59-11,AllData,COLUMN()-6-COLUMN($E59)),VLOOKUP($E59-12,AllData,COLUMN()-6-COLUMN($E59)),VLOOKUP($E59-13,AllData,COLUMN()-6-COLUMN($E59)),VLOOKUP($E59-14,AllData,COLUMN()-6-COLUMN($E59)),VLOOKUP($E59-15,AllData,COLUMN()-6-COLUMN($E59)),VLOOKUP($E59-16,AllData,COLUMN()-6-COLUMN($E59)),VLOOKUP($E59-17,AllData,COLUMN()-6-COLUMN($E59)),VLOOKUP($E59-18,AllData,COLUMN()-6-COLUMN($E59)),VLOOKUP($E59-19,AllData,COLUMN()-6-COLUMN($E59)),VLOOKUP($E59-20,AllData,COLUMN()-6-COLUMN($E59)),VLOOKUP($E59-21,AllData,COLUMN()-6-COLUMN($E59)),VLOOKUP($E59-22,AllData,COLUMN()-6-COLUMN($E59)),VLOOKUP($E59-23,AllData,COLUMN()-6-COLUMN($E59)),VLOOKUP($E59-24,AllData,COLUMN()-6-COLUMN($E59)),VLOOKUP($E59-25,AllData,COLUMN()-6-COLUMN($E59)),VLOOKUP($E59-26,AllData,COLUMN()-6-COLUMN($E59)),VLOOKUP($E59-27,AllData,COLUMN()-6-COLUMN($E59)),VLOOKUP($E59-28,AllData,COLUMN()-6-COLUMN($E59)),VLOOKUP($E59-29,AllData,COLUMN()-6-COLUMN($E59)))","v":100},{"$f":"VLOOKUP($E59,AllData,COLUMN()-7-COLUMN($E59))","v":100},{"$f":"OR('Cool Graph'!$I$1=35,'Cool Graph'!$I$1=36,'Cool Graph'!$I$1=37,'Cool Graph'!$I$1=38,'Cool Graph'!$I$1=39,'Cool Graph'!$I$1=40,'Cool Graph'!$I$1=41,'Cool Graph'!$I$1=42,'Cool Graph'!$I$1=43,'Cool Graph'!$I$1=44,'Cool Graph'!$I$1=45,'Cool Graph'!$I$1=46,'Cool Graph'!$I$1=47,'Cool Graph'!$I$1=58,'Cool Graph'!$I$1=66)","v":false}]
["2011-08-28",{"$f":"OFFSET(OldSchoolJustValues!A60,0,'Cool Graph'!$H$1)","v":0},{"$f":"OFFSET(OldSchoolJustValues!A60,0,'Cool Graph'!$I$1)","v":-75.88000000000001},null,{"$f":"IF(NewDate>EndDate,NA(),NewDate)","v":"2011-11-23"},{"$f":"IF($E60>EndDate,NA(),IF($K$2=TRUE,N60,IF('Cool Graph'!$B$17=1,N60,IF('Cool Graph'!$B$17=2,L60,IF('Cool Graph'!$B$17=3,M60,)))))","v":99.96},{"$f":"IF($E60>EndDate,NA(),IF($O$2=TRUE,J60,IF('Cool Graph'!$B$17=1,Data1!J60,IF('Cool Graph'!$B$17=2,Data1!H60,IF('Cool Graph'!$B$17=3,Data1!I60,)))))","v":538.8560081039692},{"$f":"SUM(VLOOKUP($E60,AllData,COLUMN()-COLUMN($E60)),VLOOKUP($E60-1,AllData,COLUMN()-COLUMN($E60)),VLOOKUP($E60-2,AllData,COLUMN()-COLUMN($E60)),VLOOKUP($E60-3,AllData,COLUMN()-COLUMN($E60)),VLOOKUP($E60-4,AllData,COLUMN()-COLUMN($E60)),VLOOKUP($E60-5,AllData,COLUMN()-COLUMN($E60)),VLOOKUP($E60-6,AllData,COLUMN()-COLUMN($E60)))","v":3097.3103065948944},{"$f":"SUM(VLOOKUP($E60,AllData,COLUMN()-1-COLUMN($E60)),VLOOKUP($E60-1,AllData,COLUMN()-1-COLUMN($E60)),VLOOKUP($E60-2,AllData,COLUMN()-1-COLUMN($E60)),VLOOKUP($E60-3,AllData,COLUMN()-1-COLUMN($E60)),VLOOKUP($E60-4,AllData,COLUMN()-1-COLUMN($E60)),VLOOKUP($E60-5,AllData,COLUMN()-1-COLUMN($E60)),VLOOKUP($E60-6,AllData,COLUMN()-1-COLUMN($E60)),VLOOKUP($E60-7,AllData,COLUMN()-1-COLUMN($E60)),VLOOKUP($E60-8,AllData,COLUMN()-1-COLUMN($E60)),VLOOKUP($E60-9,AllData,COLUMN()-1-COLUMN($E60)),VLOOKUP($E60-10,AllData,COLUMN()-1-COLUMN($E60)),VLOOKUP($E60-11,AllData,COLUMN()-1-COLUMN($E60)),VLOOKUP($E60-12,AllData,COLUMN()-1-COLUMN($E60)),VLOOKUP($E60-13,AllData,COLUMN()-1-COLUMN($E60)),VLOOKUP($E60-14,AllData,COLUMN()-1-COLUMN($E60)),VLOOKUP($E60-15,AllData,COLUMN()-1-COLUMN($E60)),VLOOKUP($E60-16,AllData,COLUMN()-1-COLUMN($E60)),VLOOKUP($E60-17,AllData,COLUMN()-1-COLUMN($E60)),VLOOKUP($E60-18,AllData,COLUMN()-1-COLUMN($E60)),VLOOKUP($E60-19,AllData,COLUMN()-1-COLUMN($E60)),VLOOKUP($E60-20,AllData,COLUMN()-1-COLUMN($E60)),VLOOKUP($E60-21,AllData,COLUMN()-1-COLUMN($E60)),VLOOKUP($E60-22,AllData,COLUMN()-1-COLUMN($E60)),VLOOKUP($E60-23,AllData,COLUMN()-1-COLUMN($E60)),VLOOKUP($E60-24,AllData,COLUMN()-1-COLUMN($E60)),VLOOKUP($E60-25,AllData,COLUMN()-1-COLUMN($E60)),VLOOKUP($E60-26,AllData,COLUMN()-1-COLUMN($E60)),VLOOKUP($E60-27,AllData,COLUMN()-1-COLUMN($E60)),VLOOKUP($E60-28,AllData,COLUMN()-1-COLUMN($E60)),VLOOKUP($E60-29,AllData,COLUMN()-1-COLUMN($E60)))","v":9456.291032177136},{"$f":"VLOOKUP($E60,AllData,COLUMN()-2-COLUMN($E60))","v":538.8560081039692},{"$f":"OR('Cool Graph'!$H$1=35,'Cool Graph'!$H$1=36,'Cool Graph'!$H$1=37,'Cool Graph'!$H$1=38,'Cool Graph'!$H$1=39,'Cool Graph'!$H$1=40,'Cool Graph'!$H$1=41,'Cool Graph'!$H$1=42,'Cool Graph'!$H$1=43,'Cool Graph'!$H$1=44,'Cool Graph'!$H$1=45,'Cool Graph'!$H$1=46,'Cool Graph'!$H$1=47,'Cool Graph'!$H$1=58,'Cool Graph'!$H$1=66)","v":false},{"$f":"SUM(VLOOKUP($E60,AllData,COLUMN()-5-COLUMN($E60)),VLOOKUP($E60-1,AllData,COLUMN()-5-COLUMN($E60)),VLOOKUP($E60-2,AllData,COLUMN()-5-COLUMN($E60)),VLOOKUP($E60-3,AllData,COLUMN()-5-COLUMN($E60)),VLOOKUP($E60-4,AllData,COLUMN()-5-COLUMN($E60)),VLOOKUP($E60-5,AllData,COLUMN()-5-COLUMN($E60)),VLOOKUP($E60-6,AllData,COLUMN()-5-COLUMN($E60)))","v":199.95999999999998},{"$f":"SUM(VLOOKUP($E60,AllData,COLUMN()-6-COLUMN($E60)),VLOOKUP($E60-1,AllData,COLUMN()-6-COLUMN($E60)),VLOOKUP($E60-2,AllData,COLUMN()-6-COLUMN($E60)),VLOOKUP($E60-3,AllData,COLUMN()-6-COLUMN($E60)),VLOOKUP($E60-4,AllData,COLUMN()-6-COLUMN($E60)),VLOOKUP($E60-5,AllData,COLUMN()-6-COLUMN($E60)),VLOOKUP($E60-6,AllData,COLUMN()-6-COLUMN($E60)),VLOOKUP($E60-7,AllData,COLUMN()-6-COLUMN($E60)),VLOOKUP($E60-8,AllData,COLUMN()-6-COLUMN($E60)),VLOOKUP($E60-9,AllData,COLUMN()-6-COLUMN($E60)),VLOOKUP($E60-10,AllData,COLUMN()-6-COLUMN($E60)),VLOOKUP($E60-11,AllData,COLUMN()-6-COLUMN($E60)),VLOOKUP($E60-12,AllData,COLUMN()-6-COLUMN($E60)),VLOOKUP($E60-13,AllData,COLUMN()-6-COLUMN($E60)),VLOOKUP($E60-14,AllData,COLUMN()-6-COLUMN($E60)),VLOOKUP($E60-15,AllData,COLUMN()-6-COLUMN($E60)),VLOOKUP($E60-16,AllData,COLUMN()-6-COLUMN($E60)),VLOOKUP($E60-17,AllData,COLUMN()-6-COLUMN($E60)),VLOOKUP($E60-18,AllData,COLUMN()-6-COLUMN($E60)),VLOOKUP($E60-19,AllData,COLUMN()-6-COLUMN($E60)),VLOOKUP($E60-20,AllData,COLUMN()-6-COLUMN($E60)),VLOOKUP($E60-21,AllData,COLUMN()-6-COLUMN($E60)),VLOOKUP($E60-22,AllData,COLUMN()-6-COLUMN($E60)),VLOOKUP($E60-23,AllData,COLUMN()-6-COLUMN($E60)),VLOOKUP($E60-24,AllData,COLUMN()-6-COLUMN($E60)),VLOOKUP($E60-25,AllData,COLUMN()-6-COLUMN($E60)),VLOOKUP($E60-26,AllData,COLUMN()-6-COLUMN($E60)),VLOOKUP($E60-27,AllData,COLUMN()-6-COLUMN($E60)),VLOOKUP($E60-28,AllData,COLUMN()-6-COLUMN($E60)),VLOOKUP($E60-29,AllData,COLUMN()-6-COLUMN($E60)))","v":199.95999999999998},{"$f":"VLOOKUP($E60,AllData,COLUMN()-7-COLUMN($E60))","v":99.96},{"$f":"OR('Cool Graph'!$I$1=35,'Cool Graph'!$I$1=36,'Cool Graph'!$I$1=37,'Cool Graph'!$I$1=38,'Cool Graph'!$I$1=39,'Cool Graph'!$I$1=40,'Cool Graph'!$I$1=41,'Cool Graph'!$I$1=42,'Cool Graph'!$I$1=43,'Cool Graph'!$I$1=44,'Cool Graph'!$I$1=45,'Cool Graph'!$I$1=46,'Cool Graph'!$I$1=47,'Cool Graph'!$I$1=58,'Cool Graph'!$I$1=66)","v":false}]
["2011-08-29",{"$f":"OFFSET(OldSchoolJustValues!A61,0,'Cool Graph'!$H$1)","v":0},{"$f":"OFFSET(OldSchoolJustValues!A61,0,'Cool Graph'!$I$1)","v":23.766627417901802},null,{"$f":"IF(NewDate>EndDate,NA(),NewDate)","v":"2011-11-24"},{"$f":"IF($E61>EndDate,NA(),IF($K$2=TRUE,N61,IF('Cool Graph'!$B$17=1,N61,IF('Cool Graph'!$B$17=2,L61,IF('Cool Graph'!$B$17=3,M61,)))))","v":100},{"$f":"IF($E61>EndDate,NA(),IF($O$2=TRUE,J61,IF('Cool Graph'!$B$17=1,Data1!J61,IF('Cool Graph'!$B$17=2,Data1!H61,IF('Cool Graph'!$B$17=3,Data1!I61,)))))","v":430.9664507984599},{"$f":"SUM(VLOOKUP($E61,AllData,COLUMN()-COLUMN($E61)),VLOOKUP($E61-1,AllData,COLUMN()-COLUMN($E61)),VLOOKUP($E61-2,AllData,COLUMN()-COLUMN($E61)),VLOOKUP($E61-3,AllData,COLUMN()-COLUMN($E61)),VLOOKUP($E61-4,AllData,COLUMN()-COLUMN($E61)),VLOOKUP($E61-5,AllData,COLUMN()-COLUMN($E61)),VLOOKUP($E61-6,AllData,COLUMN()-COLUMN($E61)))","v":2978.1003065948944},{"$f":"SUM(VLOOKUP($E61,AllData,COLUMN()-1-COLUMN($E61)),VLOOKUP($E61-1,AllData,COLUMN()-1-COLUMN($E61)),VLOOKUP($E61-2,AllData,COLUMN()-1-COLUMN($E61)),VLOOKUP($E61-3,AllData,COLUMN()-1-COLUMN($E61)),VLOOKUP($E61-4,AllData,COLUMN()-1-COLUMN($E61)),VLOOKUP($E61-5,AllData,COLUMN()-1-COLUMN($E61)),VLOOKUP($E61-6,AllData,COLUMN()-1-COLUMN($E61)),VLOOKUP($E61-7,AllData,COLUMN()-1-COLUMN($E61)),VLOOKUP($E61-8,AllData,COLUMN()-1-COLUMN($E61)),VLOOKUP($E61-9,AllData,COLUMN()-1-COLUMN($E61)),VLOOKUP($E61-10,AllData,COLUMN()-1-COLUMN($E61)),VLOOKUP($E61-11,AllData,COLUMN()-1-COLUMN($E61)),VLOOKUP($E61-12,AllData,COLUMN()-1-COLUMN($E61)),VLOOKUP($E61-13,AllData,COLUMN()-1-COLUMN($E61)),VLOOKUP($E61-14,AllData,COLUMN()-1-COLUMN($E61)),VLOOKUP($E61-15,AllData,COLUMN()-1-COLUMN($E61)),VLOOKUP($E61-16,AllData,COLUMN()-1-COLUMN($E61)),VLOOKUP($E61-17,AllData,COLUMN()-1-COLUMN($E61)),VLOOKUP($E61-18,AllData,COLUMN()-1-COLUMN($E61)),VLOOKUP($E61-19,AllData,COLUMN()-1-COLUMN($E61)),VLOOKUP($E61-20,AllData,COLUMN()-1-COLUMN($E61)),VLOOKUP($E61-21,AllData,COLUMN()-1-COLUMN($E61)),VLOOKUP($E61-22,AllData,COLUMN()-1-COLUMN($E61)),VLOOKUP($E61-23,AllData,COLUMN()-1-COLUMN($E61)),VLOOKUP($E61-24,AllData,COLUMN()-1-COLUMN($E61)),VLOOKUP($E61-25,AllData,COLUMN()-1-COLUMN($E61)),VLOOKUP($E61-26,AllData,COLUMN()-1-COLUMN($E61)),VLOOKUP($E61-27,AllData,COLUMN()-1-COLUMN($E61)),VLOOKUP($E61-28,AllData,COLUMN()-1-COLUMN($E61)),VLOOKUP($E61-29,AllData,COLUMN()-1-COLUMN($E61)))","v":9804.2809144308412},{"$f":"VLOOKUP($E61,AllData,COLUMN()-2-COLUMN($E61))","v":430.9664507984599},{"$f":"OR('Cool Graph'!$H$1=35,'Cool Graph'!$H$1=36,'Cool Graph'!$H$1=37,'Cool Graph'!$H$1=38,'Cool Graph'!$H$1=39,'Cool Graph'!$H$1=40,'Cool Graph'!$H$1=41,'Cool Graph'!$H$1=42,'Cool Graph'!$H$1=43,'Cool Graph'!$H$1=44,'Cool Graph'!$H$1=45,'Cool Graph'!$H$1=46,'Cool Graph'!$H$1=47,'Cool Graph'!$H$1=58,'Cool Graph'!$H$1=66)","v":false},{"$f":"SUM(VLOOKUP($E61,AllData,COLUMN()-5-COLUMN($E61)),VLOOKUP($E61-1,AllData,COLUMN()-5-COLUMN($E61)),VLOOKUP($E61-2,AllData,COLUMN()-5-COLUMN($E61)),VLOOKUP($E61-3,AllData,COLUMN()-5-COLUMN($E61)),VLOOKUP($E61-4,AllData,COLUMN()-5-COLUMN($E61)),VLOOKUP($E61-5,AllData,COLUMN()-5-COLUMN($E61)),VLOOKUP($E61-6,AllData,COLUMN()-5-COLUMN($E61)))","v":299.95999999999998},{"$f":"SUM(VLOOKUP($E61,AllData,COLUMN()-6-COLUMN($E61)),VLOOKUP($E61-1,AllData,COLUMN()-6-COLUMN($E61)),VLOOKUP($E61-2,AllData,COLUMN()-6-COLUMN($E61)),VLOOKUP($E61-3,AllData,COLUMN()-6-COLUMN($E61)),VLOOKUP($E61-4,AllData,COLUMN()-6-COLUMN($E61)),VLOOKUP($E61-5,AllData,COLUMN()-6-COLUMN($E61)),VLOOKUP($E61-6,AllData,COLUMN()-6-COLUMN($E61)),VLOOKUP($E61-7,AllData,COLUMN()-6-COLUMN($E61)),VLOOKUP($E61-8,AllData,COLUMN()-6-COLUMN($E61)),VLOOKUP($E61-9,AllData,COLUMN()-6-COLUMN($E61)),VLOOKUP($E61-10,AllData,COLUMN()-6-COLUMN($E61)),VLOOKUP($E61-11,AllData,COLUMN()-6-COLUMN($E61)),VLOOKUP($E61-12,AllData,COLUMN()-6-COLUMN($E61)),VLOOKUP($E61-13,AllData,COLUMN()-6-COLUMN($E61)),VLOOKUP($E61-14,AllData,COLUMN()-6-COLUMN($E61)),VLOOKUP($E61-15,AllData,COLUMN()-6-COLUMN($E61)),VLOOKUP($E61-16,AllData,COLUMN()-6-COLUMN($E61)),VLOOKUP($E61-17,AllData,COLUMN()-6-COLUMN($E61)),VLOOKUP($E61-18,AllData,COLUMN()-6-COLUMN($E61)),VLOOKUP($E61-19,AllData,COLUMN()-6-COLUMN($E61)),VLOOKUP($E61-20,AllData,COLUMN()-6-COLUMN($E61)),VLOOKUP($E61-21,AllData,COLUMN()-6-COLUMN($E61)),VLOOKUP($E61-22,AllData,COLUMN()-6-COLUMN($E61)),VLOOKUP($E61-23,AllData,COLUMN()-6-COLUMN($E61)),VLOOKUP($E61-24,AllData,COLUMN()-6-COLUMN($E61)),VLOOKUP($E61-25,AllData,COLUMN()-6-COLUMN($E61)),VLOOKUP($E61-26,AllData,COLUMN()-6-COLUMN($E61)),VLOOKUP($E61-27,AllData,COLUMN()-6-COLUMN($E61)),VLOOKUP($E61-28,AllData,COLUMN()-6-COLUMN($E61)),VLOOKUP($E61-29,AllData,COLUMN()-6-COLUMN($E61)))","v":299.95999999999998},{"$f":"VLOOKUP($E61,AllData,COLUMN()-7-COLUMN($E61))","v":100},{"$f":"OR('Cool Graph'!$I$1=35,'Cool Graph'!$I$1=36,'Cool Graph'!$I$1=37,'Cool Graph'!$I$1=38,'Cool Graph'!$I$1=39,'Cool Graph'!$I$1=40,'Cool Graph'!$I$1=41,'Cool Graph'!$I$1=42,'Cool Graph'!$I$1=43,'Cool Graph'!$I$1=44,'Cool Graph'!$I$1=45,'Cool Graph'!$I$1=46,'Cool Graph'!$I$1=47,'Cool Graph'!$I$1=58,'Cool Graph'!$I$1=66)","v":false}]
["2011-08-30",{"$f":"OFFSET(OldSchoolJustValues!A62,0,'Cool Graph'!$H$1)","v":0},{"$f":"OFFSET(OldSchoolJustValues!A62,0,'Cool Graph'!$I$1)","v":54.766627417901788},null,{"$f":"IF(NewDate>EndDate,NA(),NewDate)","v":"2011-11-25"},{"$f":"IF($E62>EndDate,NA(),IF($K$2=TRUE,N62,IF('Cool Graph'!$B$17=1,N62,IF('Cool Graph'!$B$17=2,L62,IF('Cool Graph'!$B$17=3,M62,)))))","v":100},{"$f":"IF($E62>EndDate,NA(),IF($O$2=TRUE,J62,IF('Cool Graph'!$B$17=1,Data1!J62,IF('Cool Graph'!$B$17=2,Data1!H62,IF('Cool Graph'!$B$17=3,Data1!I62,)))))","v":1273.8590863203308},{"$f":"SUM(VLOOKUP($E62,AllData,COLUMN()-COLUMN($E62)),VLOOKUP($E62-1,AllData,COLUMN()-COLUMN($E62)),VLOOKUP($E62-2,AllData,COLUMN()-COLUMN($E62)),VLOOKUP($E62-3,AllData,COLUMN()-COLUMN($E62)),VLOOKUP($E62-4,AllData,COLUMN()-COLUMN($E62)),VLOOKUP($E62-5,AllData,COLUMN()-COLUMN($E62)),VLOOKUP($E62-6,AllData,COLUMN()-COLUMN($E62)))","v":3933.8332670649615},{"$f":"SUM(VLOOKUP($E62,AllData,COLUMN()-1-COLUMN($E62)),VLOOKUP($E62-1,AllData,COLUMN()-1-COLUMN($E62)),VLOOKUP($E62-2,AllData,COLUMN()-1-COLUMN($E62)),VLOOKUP($E62-3,AllData,COLUMN()-1-COLUMN($E62)),VLOOKUP($E62-4,AllData,COLUMN()-1-COLUMN($E62)),VLOOKUP($E62-5,AllData,COLUMN()-1-COLUMN($E62)),VLOOKUP($E62-6,AllData,COLUMN()-1-COLUMN($E62)),VLOOKUP($E62-7,AllData,COLUMN()-1-COLUMN($E62)),VLOOKUP($E62-8,AllData,COLUMN()-1-COLUMN($E62)),VLOOKUP($E62-9,AllData,COLUMN()-1-COLUMN($E62)),VLOOKUP($E62-10,AllData,COLUMN()-1-COLUMN($E62)),VLOOKUP($E62-11,AllData,COLUMN()-1-COLUMN($E62)),VLOOKUP($E62-12,AllData,COLUMN()-1-COLUMN($E62)),VLOOKUP($E62-13,AllData,COLUMN()-1-COLUMN($E62)),VLOOKUP($E62-14,AllData,COLUMN()-1-COLUMN($E62)),VLOOKUP($E62-15,AllData,COLUMN()-1-COLUMN($E62)),VLOOKUP($E62-16,AllData,COLUMN()-1-COLUMN($E62)),VLOOKUP($E62-17,AllData,COLUMN()-1-COLUMN($E62)),VLOOKUP($E62-18,AllData,COLUMN()-1-COLUMN($E62)),VLOOKUP($E62-19,AllData,COLUMN()-1-COLUMN($E62)),VLOOKUP($E62-20,AllData,COLUMN()-1-COLUMN($E62)),VLOOKUP($E62-21,AllData,COLUMN()-1-COLUMN($E62)),VLOOKUP($E62-22,AllData,COLUMN()-1-COLUMN($E62)),VLOOKUP($E62-23,AllData,COLUMN()-1-COLUMN($E62)),VLOOKUP($E62-24,AllData,COLUMN()-1-COLUMN($E62)),VLOOKUP($E62-25,AllData,COLUMN()-1-COLUMN($E62)),VLOOKUP($E62-26,AllData,COLUMN()-1-COLUMN($E62)),VLOOKUP($E62-27,AllData,COLUMN()-1-COLUMN($E62)),VLOOKUP($E62-28,AllData,COLUMN()-1-COLUMN($E62)),VLOOKUP($E62-29,AllData,COLUMN()-1-COLUMN($E62)))","v":10957.603432206419},{"$f":"VLOOKUP($E62,AllData,COLUMN()-2-COLUMN($E62))","v":1273.8590863203308},{"$f":"OR('Cool Graph'!$H$1=35,'Cool Graph'!$H$1=36,'Cool Graph'!$H$1=37,'Cool Graph'!$H$1=38,'Cool Graph'!$H$1=39,'Cool Graph'!$H$1=40,'Cool Graph'!$H$1=41,'Cool Graph'!$H$1=42,'Cool Graph'!$H$1=43,'Cool Graph'!$H$1=44,'Cool Graph'!$H$1=45,'Cool Graph'!$H$1=46,'Cool Graph'!$H$1=47,'Cool Graph'!$H$1=58,'Cool Graph'!$H$1=66)","v":false},{"$f":"SUM(VLOOKUP($E62,AllData,COLUMN()-5-COLUMN($E62)),VLOOKUP($E62-1,AllData,COLUMN()-5-COLUMN($E62)),VLOOKUP($E62-2,AllData,COLUMN()-5-COLUMN($E62)),VLOOKUP($E62-3,AllData,COLUMN()-5-COLUMN($E62)),VLOOKUP($E62-4,AllData,COLUMN()-5-COLUMN($E62)),VLOOKUP($E62-5,AllData,COLUMN()-5-COLUMN($E62)),VLOOKUP($E62-6,AllData,COLUMN()-5-COLUMN($E62)))","v":399.96},{"$f":"SUM(VLOOKUP($E62,AllData,COLUMN()-6-COLUMN($E62)),VLOOKUP($E62-1,AllData,COLUMN()-6-COLUMN($E62)),VLOOKUP($E62-2,AllData,COLUMN()-6-COLUMN($E62)),VLOOKUP($E62-3,AllData,COLUMN()-6-COLUMN($E62)),VLOOKUP($E62-4,AllData,COLUMN()-6-COLUMN($E62)),VLOOKUP($E62-5,AllData,COLUMN()-6-COLUMN($E62)),VLOOKUP($E62-6,AllData,COLUMN()-6-COLUMN($E62)),VLOOKUP($E62-7,AllData,COLUMN()-6-COLUMN($E62)),VLOOKUP($E62-8,AllData,COLUMN()-6-COLUMN($E62)),VLOOKUP($E62-9,AllData,COLUMN()-6-COLUMN($E62)),VLOOKUP($E62-10,AllData,COLUMN()-6-COLUMN($E62)),VLOOKUP($E62-11,AllData,COLUMN()-6-COLUMN($E62)),VLOOKUP($E62-12,AllData,COLUMN()-6-COLUMN($E62)),VLOOKUP($E62-13,AllData,COLUMN()-6-COLUMN($E62)),VLOOKUP($E62-14,AllData,COLUMN()-6-COLUMN($E62)),VLOOKUP($E62-15,AllData,COLUMN()-6-COLUMN($E62)),VLOOKUP($E62-16,AllData,COLUMN()-6-COLUMN($E62)),VLOOKUP($E62-17,AllData,COLUMN()-6-COLUMN($E62)),VLOOKUP($E62-18,AllData,COLUMN()-6-COLUMN($E62)),VLOOKUP($E62-19,AllData,COLUMN()-6-COLUMN($E62)),VLOOKUP($E62-20,AllData,COLUMN()-6-COLUMN($E62)),VLOOKUP($E62-21,AllData,COLUMN()-6-COLUMN($E62)),VLOOKUP($E62-22,AllData,COLUMN()-6-COLUMN($E62)),VLOOKUP($E62-23,AllData,COLUMN()-6-COLUMN($E62)),VLOOKUP($E62-24,AllData,COLUMN()-6-COLUMN($E62)),VLOOKUP($E62-25,AllData,COLUMN()-6-COLUMN($E62)),VLOOKUP($E62-26,AllData,COLUMN()-6-COLUMN($E62)),VLOOKUP($E62-27,AllData,COLUMN()-6-COLUMN($E62)),VLOOKUP($E62-28,AllData,COLUMN()-6-COLUMN($E62)),VLOOKUP($E62-29,AllData,COLUMN()-6-COLUMN($E62)))","v":399.96},{"$f":"VLOOKUP($E62,AllData,COLUMN()-7-COLUMN($E62))","v":100},{"$f":"OR('Cool Graph'!$I$1=35,'Cool Graph'!$I$1=36,'Cool Graph'!$I$1=37,'Cool Graph'!$I$1=38,'Cool Graph'!$I$1=39,'Cool Graph'!$I$1=40,'Cool Graph'!$I$1=41,'Cool Graph'!$I$1=42,'Cool Graph'!$I$1=43,'Cool Graph'!$I$1=44,'Cool Graph'!$I$1=45,'Cool Graph'!$I$1=46,'Cool Graph'!$I$1=47,'Cool Graph'!$I$1=58,'Cool Graph'!$I$1=66)","v":false}]
["2011-08-31",{"$f":"OFFSET(OldSchoolJustValues!A63,0,'Cool Graph'!$H$1)","v":0},{"$f":"OFFSET(OldSchoolJustValues!A63,0,'Cool Graph'!$I$1)","v":128.72994112685268},null,{"$f":"IF(NewDate>EndDate,NA(),NewDate)","v":"2011-11-26"},{"$f":"IF($E63>EndDate,NA(),IF($K$2=TRUE,N63,IF('Cool Graph'!$B$17=1,N63,IF('Cool Graph'!$B$17=2,L63,IF('Cool Graph'!$B$17=3,M63,)))))","v":100},{"$f":"IF($E63>EndDate,NA(),IF($O$2=TRUE,J63,IF('Cool Graph'!$B$17=1,Data1!J63,IF('Cool Graph'!$B$17=2,Data1!H63,IF('Cool Graph'!$B$17=3,Data1!I63,)))))","v":691.25887911842938},{"$f":"SUM(VLOOKUP($E63,AllData,COLUMN()-COLUMN($E63)),VLOOKUP($E63-1,AllData,COLUMN()-COLUMN($E63)),VLOOKUP($E63-2,AllData,COLUMN()-COLUMN($E63)),VLOOKUP($E63-3,AllData,COLUMN()-COLUMN($E63)),VLOOKUP($E63-4,AllData,COLUMN()-COLUMN($E63)),VLOOKUP($E63-5,AllData,COLUMN()-COLUMN($E63)),VLOOKUP($E63-6,AllData,COLUMN()-COLUMN($E63)))","v":4383.3693340420778},{"$f":"SUM(VLOOKUP($E63,AllData,COLUMN()-1-COLUMN($E63)),VLOOKUP($E63-1,AllData,COLUMN()-1-COLUMN($E63)),VLOOKUP($E63-2,AllData,COLUMN()-1-COLUMN($E63)),VLOOKUP($E63-3,AllData,COLUMN()-1-COLUMN($E63)),VLOOKUP($E63-4,AllData,COLUMN()-1-COLUMN($E63)),VLOOKUP($E63-5,AllData,COLUMN()-1-COLUMN($E63)),VLOOKUP($E63-6,AllData,COLUMN()-1-COLUMN($E63)),VLOOKUP($E63-7,AllData,COLUMN()-1-COLUMN($E63)),VLOOKUP($E63-8,AllData,COLUMN()-1-COLUMN($E63)),VLOOKUP($E63-9,AllData,COLUMN()-1-COLUMN($E63)),VLOOKUP($E63-10,AllData,COLUMN()-1-COLUMN($E63)),VLOOKUP($E63-11,AllData,COLUMN()-1-COLUMN($E63)),VLOOKUP($E63-12,AllData,COLUMN()-1-COLUMN($E63)),VLOOKUP($E63-13,AllData,COLUMN()-1-COLUMN($E63)),VLOOKUP($E63-14,AllData,COLUMN()-1-COLUMN($E63)),VLOOKUP($E63-15,AllData,COLUMN()-1-COLUMN($E63)),VLOOKUP($E63-16,AllData,COLUMN()-1-COLUMN($E63)),VLOOKUP($E63-17,AllData,COLUMN()-1-COLUMN($E63)),VLOOKUP($E63-18,AllData,COLUMN()-1-COLUMN($E63)),VLOOKUP($E63-19,AllData,COLUMN()-1-COLUMN($E63)),VLOOKUP($E63-20,AllData,COLUMN()-1-COLUMN($E63)),VLOOKUP($E63-21,AllData,COLUMN()-1-COLUMN($E63)),VLOOKUP($E63-22,AllData,COLUMN()-1-COLUMN($E63)),VLOOKUP($E63-23,AllData,COLUMN()-1-COLUMN($E63)),VLOOKUP($E63-24,AllData,COLUMN()-1-COLUMN($E63)),VLOOKUP($E63-25,AllData,COLUMN()-1-COLUMN($E63)),VLOOKUP($E63-26,AllData,COLUMN()-1-COLUMN($E63)),VLOOKUP($E63-27,AllData,COLUMN()-1-COLUMN($E63)),VLOOKUP($E63-28,AllData,COLUMN()-1-COLUMN($E63)),VLOOKUP($E63-29,AllData,COLUMN()-1-COLUMN($E63)))","v":11099.475860526387},{"$f":"VLOOKUP($E63,AllData,COLUMN()-2-COLUMN($E63))","v":691.25887911842938},{"$f":"OR('Cool Graph'!$H$1=35,'Cool Graph'!$H$1=36,'Cool Graph'!$H$1=37,'Cool Graph'!$H$1=38,'Cool Graph'!$H$1=39,'Cool Graph'!$H$1=40,'Cool Graph'!$H$1=41,'Cool Graph'!$H$1=42,'Cool Graph'!$H$1=43,'Cool Graph'!$H$1=44,'Cool Graph'!$H$1=45,'Cool Graph'!$H$1=46,'Cool Graph'!$H$1=47,'Cool Graph'!$H$1=58,'Cool Graph'!$H$1=66)","v":false},{"$f":"SUM(VLOOKUP($E63,AllData,COLUMN()-5-COLUMN($E63)),VLOOKUP($E63-1,AllData,COLUMN()-5-COLUMN($E63)),VLOOKUP($E63-2,AllData,COLUMN()-5-COLUMN($E63)),VLOOKUP($E63-3,AllData,COLUMN()-5-COLUMN($E63)),VLOOKUP($E63-4,AllData,COLUMN()-5-COLUMN($E63)),VLOOKUP($E63-5,AllData,COLUMN()-5-COLUMN($E63)),VLOOKUP($E63-6,AllData,COLUMN()-5-COLUMN($E63)))","v":499.96},{"$f":"SUM(VLOOKUP($E63,AllData,COLUMN()-6-COLUMN($E63)),VLOOKUP($E63-1,AllData,COLUMN()-6-COLUMN($E63)),VLOOKUP($E63-2,AllData,COLUMN()-6-COLUMN($E63)),VLOOKUP($E63-3,AllData,COLUMN()-6-COLUMN($E63)),VLOOKUP($E63-4,AllData,COLUMN()-6-COLUMN($E63)),VLOOKUP($E63-5,AllData,COLUMN()-6-COLUMN($E63)),VLOOKUP($E63-6,AllData,COLUMN()-6-COLUMN($E63)),VLOOKUP($E63-7,AllData,COLUMN()-6-COLUMN($E63)),VLOOKUP($E63-8,AllData,COLUMN()-6-COLUMN($E63)),VLOOKUP($E63-9,AllData,COLUMN()-6-COLUMN($E63)),VLOOKUP($E63-10,AllData,COLUMN()-6-COLUMN($E63)),VLOOKUP($E63-11,AllData,COLUMN()-6-COLUMN($E63)),VLOOKUP($E63-12,AllData,COLUMN()-6-COLUMN($E63)),VLOOKUP($E63-13,AllData,COLUMN()-6-COLUMN($E63)),VLOOKUP($E63-14,AllData,COLUMN()-6-COLUMN($E63)),VLOOKUP($E63-15,AllData,COLUMN()-6-COLUMN($E63)),VLOOKUP($E63-16,AllData,COLUMN()-6-COLUMN($E63)),VLOOKUP($E63-17,AllData,COLUMN()-6-COLUMN($E63)),VLOOKUP($E63-18,AllData,COLUMN()-6-COLUMN($E63)),VLOOKUP($E63-19,AllData,COLUMN()-6-COLUMN($E63)),VLOOKUP($E63-20,AllData,COLUMN()-6-COLUMN($E63)),VLOOKUP($E63-21,AllData,COLUMN()-6-COLUMN($E63)),VLOOKUP($E63-22,AllData,COLUMN()-6-COLUMN($E63)),VLOOKUP($E63-23,AllData,COLUMN()-6-COLUMN($E63)),VLOOKUP($E63-24,AllData,COLUMN()-6-COLUMN($E63)),VLOOKUP($E63-25,AllData,COLUMN()-6-COLUMN($E63)),VLOOKUP($E63-26,AllData,COLUMN()-6-COLUMN($E63)),VLOOKUP($E63-27,AllData,COLUMN()-6-COLUMN($E63)),VLOOKUP($E63-28,AllData,COLUMN()-6-COLUMN($E63)),VLOOKUP($E63-29,AllData,COLUMN()-6-COLUMN($E63)))","v":499.96},{"$f":"VLOOKUP($E63,AllData,COLUMN()-7-COLUMN($E63))","v":100},{"$f":"OR('Cool Graph'!$I$1=35,'Cool Graph'!$I$1=36,'Cool Graph'!$I$1=37,'Cool Graph'!$I$1=38,'Cool Graph'!$I$1=39,'Cool Graph'!$I$1=40,'Cool Graph'!$I$1=41,'Cool Graph'!$I$1=42,'Cool Graph'!$I$1=43,'Cool Graph'!$I$1=44,'Cool Graph'!$I$1=45,'Cool Graph'!$I$1=46,'Cool Graph'!$I$1=47,'Cool Graph'!$I$1=58,'Cool Graph'!$I$1=66)","v":false}]
["2011-09-01",{"$f":"OFFSET(OldSchoolJustValues!A64,0,'Cool Graph'!$H$1)","v":0},{"$f":"OFFSET(OldSchoolJustValues!A64,0,'Cool Graph'!$I$1)","v":4.9933137089509003},null,{"$f":"IF(NewDate>EndDate,NA(),NewDate)","v":"2011-11-27"},{"$f":"IF($E64>EndDate,NA(),IF($K$2=TRUE,N64,IF('Cool Graph'!$B$17=1,N64,IF('Cool Graph'!$B$17=2,L64,IF('Cool Graph'!$B$17=3,M64,)))))","v":100},{"$f":"IF($E64>EndDate,NA(),IF($O$2=TRUE,J64,IF('Cool Graph'!$B$17=1,Data1!J64,IF('Cool Graph'!$B$17=2,Data1!H64,IF('Cool Graph'!$B$17=3,Data1!I64,)))))","v":506.38225170052766},{"$f":"SUM(VLOOKUP($E64,AllData,COLUMN()-COLUMN($E64)),VLOOKUP($E64-1,AllData,COLUMN()-COLUMN($E64)),VLOOKUP($E64-2,AllData,COLUMN()-COLUMN($E64)),VLOOKUP($E64-3,AllData,COLUMN()-COLUMN($E64)),VLOOKUP($E64-4,AllData,COLUMN()-COLUMN($E64)),VLOOKUP($E64-5,AllData,COLUMN()-COLUMN($E64)),VLOOKUP($E64-6,AllData,COLUMN()-COLUMN($E64)))","v":4365.6651349441463},{"$f":"SUM(VLOOKUP($E64,AllData,COLUMN()-1-COLUMN($E64)),VLOOKUP($E64-1,AllData,COLUMN()-1-COLUMN($E64)),VLOOKUP($E64-2,AllData,COLUMN()-1-COLUMN($E64)),VLOOKUP($E64-3,AllData,COLUMN()-1-COLUMN($E64)),VLOOKUP($E64-4,AllData,COLUMN()-1-COLUMN($E64)),VLOOKUP($E64-5,AllData,COLUMN()-1-COLUMN($E64)),VLOOKUP($E64-6,AllData,COLUMN()-1-COLUMN($E64)),VLOOKUP($E64-7,AllData,COLUMN()-1-COLUMN($E64)),VLOOKUP($E64-8,AllData,COLUMN()-1-COLUMN($E64)),VLOOKUP($E64-9,AllData,COLUMN()-1-COLUMN($E64)),VLOOKUP($E64-10,AllData,COLUMN()-1-COLUMN($E64)),VLOOKUP($E64-11,AllData,COLUMN()-1-COLUMN($E64)),VLOOKUP($E64-12,AllData,COLUMN()-1-COLUMN($E64)),VLOOKUP($E64-13,AllData,COLUMN()-1-COLUMN($E64)),VLOOKUP($E64-14,AllData,COLUMN()-1-COLUMN($E64)),VLOOKUP($E64-15,AllData,COLUMN()-1-COLUMN($E64)),VLOOKUP($E64-16,AllData,COLUMN()-1-COLUMN($E64)),VLOOKUP($E64-17,AllData,COLUMN()-1-COLUMN($E64)),VLOOKUP($E64-18,AllData,COLUMN()-1-COLUMN($E64)),VLOOKUP($E64-19,AllData,COLUMN()-1-COLUMN($E64)),VLOOKUP($E64-20,AllData,COLUMN()-1-COLUMN($E64)),VLOOKUP($E64-21,AllData,COLUMN()-1-COLUMN($E64)),VLOOKUP($E64-22,AllData,COLUMN()-1-COLUMN($E64)),VLOOKUP($E64-23,AllData,COLUMN()-1-COLUMN($E64)),VLOOKUP($E64-24,AllData,COLUMN()-1-COLUMN($E64)),VLOOKUP($E64-25,AllData,COLUMN()-1-COLUMN($E64)),VLOOKUP($E64-26,AllData,COLUMN()-1-COLUMN($E64)),VLOOKUP($E64-27,AllData,COLUMN()-1-COLUMN($E64)),VLOOKUP($E64-28,AllData,COLUMN()-1-COLUMN($E64)),VLOOKUP($E64-29,AllData,COLUMN()-1-COLUMN($E64)))","v":11380.61822997321},{"$f":"VLOOKUP($E64,AllData,COLUMN()-2-COLUMN($E64))","v":506.38225170052766},{"$f":"OR('Cool Graph'!$H$1=35,'Cool Graph'!$H$1=36,'Cool Graph'!$H$1=37,'Cool Graph'!$H$1=38,'Cool Graph'!$H$1=39,'Cool Graph'!$H$1=40,'Cool Graph'!$H$1=41,'Cool Graph'!$H$1=42,'Cool Graph'!$H$1=43,'Cool Graph'!$H$1=44,'Cool Graph'!$H$1=45,'Cool Graph'!$H$1=46,'Cool Graph'!$H$1=47,'Cool Graph'!$H$1=58,'Cool Graph'!$H$1=66)","v":false},{"$f":"SUM(VLOOKUP($E64,AllData,COLUMN()-5-COLUMN($E64)),VLOOKUP($E64-1,AllData,COLUMN()-5-COLUMN($E64)),VLOOKUP($E64-2,AllData,COLUMN()-5-COLUMN($E64)),VLOOKUP($E64-3,AllData,COLUMN()-5-COLUMN($E64)),VLOOKUP($E64-4,AllData,COLUMN()-5-COLUMN($E64)),VLOOKUP($E64-5,AllData,COLUMN()-5-COLUMN($E64)),VLOOKUP($E64-6,AllData,COLUMN()-5-COLUMN($E64)))","v":599.96},{"$f":"SUM(VLOOKUP($E64,AllData,COLUMN()-6-COLUMN($E64)),VLOOKUP($E64-1,AllData,COLUMN()-6-COLUMN($E64)),VLOOKUP($E64-2,AllData,COLUMN()-6-COLUMN($E64)),VLOOKUP($E64-3,AllData,COLUMN()-6-COLUMN($E64)),VLOOKUP($E64-4,AllData,COLUMN()-6-COLUMN($E64)),VLOOKUP($E64-5,AllData,COLUMN()-6-COLUMN($E64)),VLOOKUP($E64-6,AllData,COLUMN()-6-COLUMN($E64)),VLOOKUP($E64-7,AllData,COLUMN()-6-COLUMN($E64)),VLOOKUP($E64-8,AllData,COLUMN()-6-COLUMN($E64)),VLOOKUP($E64-9,AllData,COLUMN()-6-COLUMN($E64)),VLOOKUP($E64-10,AllData,COLUMN()-6-COLUMN($E64)),VLOOKUP($E64-11,AllData,COLUMN()-6-COLUMN($E64)),VLOOKUP($E64-12,AllData,COLUMN()-6-COLUMN($E64)),VLOOKUP($E64-13,AllData,COLUMN()-6-COLUMN($E64)),VLOOKUP($E64-14,AllData,COLUMN()-6-COLUMN($E64)),VLOOKUP($E64-15,AllData,COLUMN()-6-COLUMN($E64)),VLOOKUP($E64-16,AllData,COLUMN()-6-COLUMN($E64)),VLOOKUP($E64-17,AllData,COLUMN()-6-COLUMN($E64)),VLOOKUP($E64-18,AllData,COLUMN()-6-COLUMN($E64)),VLOOKUP($E64-19,AllData,COLUMN()-6-COLUMN($E64)),VLOOKUP($E64-20,AllData,COLUMN()-6-COLUMN($E64)),VLOOKUP($E64-21,AllData,COLUMN()-6-COLUMN($E64)),VLOOKUP($E64-22,AllData,COLUMN()-6-COLUMN($E64)),VLOOKUP($E64-23,AllData,COLUMN()-6-COLUMN($E64)),VLOOKUP($E64-24,AllData,COLUMN()-6-COLUMN($E64)),VLOOKUP($E64-25,AllData,COLUMN()-6-COLUMN($E64)),VLOOKUP($E64-26,AllData,COLUMN()-6-COLUMN($E64)),VLOOKUP($E64-27,AllData,COLUMN()-6-COLUMN($E64)),VLOOKUP($E64-28,AllData,COLUMN()-6-COLUMN($E64)),VLOOKUP($E64-29,AllData,COLUMN()-6-COLUMN($E64)))","v":599.96},{"$f":"VLOOKUP($E64,AllData,COLUMN()-7-COLUMN($E64))","v":100},{"$f":"OR('Cool Graph'!$I$1=35,'Cool Graph'!$I$1=36,'Cool Graph'!$I$1=37,'Cool Graph'!$I$1=38,'Cool Graph'!$I$1=39,'Cool Graph'!$I$1=40,'Cool Graph'!$I$1=41,'Cool Graph'!$I$1=42,'Cool Graph'!$I$1=43,'Cool Graph'!$I$1=44,'Cool Graph'!$I$1=45,'Cool Graph'!$I$1=46,'Cool Graph'!$I$1=47,'Cool Graph'!$I$1=58,'Cool Graph'!$I$1=66)","v":false}]
["2011-09-02",{"$f":"OFFSET(OldSchoolJustValues!A65,0,'Cool Graph'!$H$1)","v":0},{"$f":"OFFSET(OldSchoolJustValues!A65,0,'Cool Graph'!$I$1)","v":270.42656854475445},null,{"$f":"IF(NewDate>EndDate,NA(),NewDate)","v":"2011-11-28"},{"$f":"IF($E65>EndDate,NA(),IF($K$2=TRUE,N65,IF('Cool Graph'!$B$17=1,N65,IF('Cool Graph'!$B$17=2,L65,IF('Cool Graph'!$B$17=3,M65,)))))","v":20.16},{"$f":"IF($E65>EndDate,NA(),IF($O$2=TRUE,J65,IF('Cool Graph'!$B$17=1,Data1!J65,IF('Cool Graph'!$B$17=2,Data1!H65,IF('Cool Graph'!$B$17=3,Data1!I65,)))))","v":1692.0618984616438},{"$f":"SUM(VLOOKUP($E65,AllData,COLUMN()-COLUMN($E65)),VLOOKUP($E65-1,AllData,COLUMN()-COLUMN($E65)),VLOOKUP($E65-2,AllData,COLUMN()-COLUMN($E65)),VLOOKUP($E65-3,AllData,COLUMN()-COLUMN($E65)),VLOOKUP($E65-4,AllData,COLUMN()-COLUMN($E65)),VLOOKUP($E65-5,AllData,COLUMN()-COLUMN($E65)),VLOOKUP($E65-6,AllData,COLUMN()-COLUMN($E65)))","v":5456.0077115928698},{"$f":"SUM(VLOOKUP($E65,AllData,COLUMN()-1-COLUMN($E65)),VLOOKUP($E65-1,AllData,COLUMN()-1-COLUMN($E65)),VLOOKUP($E65-2,AllData,COLUMN()-1-COLUMN($E65)),VLOOKUP($E65-3,AllData,COLUMN()-1-COLUMN($E65)),VLOOKUP($E65-4,AllData,COLUMN()-1-COLUMN($E65)),VLOOKUP($E65-5,AllData,COLUMN()-1-COLUMN($E65)),VLOOKUP($E65-6,AllData,COLUMN()-1-COLUMN($E65)),VLOOKUP($E65-7,AllData,COLUMN()-1-COLUMN($E65)),VLOOKUP($E65-8,AllData,COLUMN()-1-COLUMN($E65)),VLOOKUP($E65-9,AllData,COLUMN()-1-COLUMN($E65)),VLOOKUP($E65-10,AllData,COLUMN()-1-COLUMN($E65)),VLOOKUP($E65-11,AllData,COLUMN()-1-COLUMN($E65)),VLOOKUP($E65-12,AllData,COLUMN()-1-COLUMN($E65)),VLOOKUP($E65-13,AllData,COLUMN()-1-COLUMN($E65)),VLOOKUP($E65-14,AllData,COLUMN()-1-COLUMN($E65)),VLOOKUP($E65-15,AllData,COLUMN()-1-COLUMN($E65)),VLOOKUP($E65-16,AllData,COLUMN()-1-COLUMN($E65)),VLOOKUP($E65-17,AllData,COLUMN()-1-COLUMN($E65)),VLOOKUP($E65-18,AllData,COLUMN()-1-COLUMN($E65)),VLOOKUP($E65-19,AllData,COLUMN()-1-COLUMN($E65)),VLOOKUP($E65-20,AllData,COLUMN()-1-COLUMN($E65)),VLOOKUP($E65-21,AllData,COLUMN()-1-COLUMN($E65)),VLOOKUP($E65-22,AllData,COLUMN()-1-COLUMN($E65)),VLOOKUP($E65-23,AllData,COLUMN()-1-COLUMN($E65)),VLOOKUP($E65-24,AllData,COLUMN()-1-COLUMN($E65)),VLOOKUP($E65-25,AllData,COLUMN()-1-COLUMN($E65)),VLOOKUP($E65-26,AllData,COLUMN()-1-COLUMN($E65)),VLOOKUP($E65-27,AllData,COLUMN()-1-COLUMN($E65)),VLOOKUP($E65-28,AllData,COLUMN()-1-COLUMN($E65)),VLOOKUP($E65-29,AllData,COLUMN()-1-COLUMN($E65)))","v":12903.673559890098},{"$f":"VLOOKUP($E65,AllData,COLUMN()-2-COLUMN($E65))","v":1692.0618984616438},{"$f":"OR('Cool Graph'!$H$1=35,'Cool Graph'!$H$1=36,'Cool Graph'!$H$1=37,'Cool Graph'!$H$1=38,'Cool Graph'!$H$1=39,'Cool Graph'!$H$1=40,'Cool Graph'!$H$1=41,'Cool Graph'!$H$1=42,'Cool Graph'!$H$1=43,'Cool Graph'!$H$1=44,'Cool Graph'!$H$1=45,'Cool Graph'!$H$1=46,'Cool Graph'!$H$1=47,'Cool Graph'!$H$1=58,'Cool Graph'!$H$1=66)","v":false},{"$f":"SUM(VLOOKUP($E65,AllData,COLUMN()-5-COLUMN($E65)),VLOOKUP($E65-1,AllData,COLUMN()-5-COLUMN($E65)),VLOOKUP($E65-2,AllData,COLUMN()-5-COLUMN($E65)),VLOOKUP($E65-3,AllData,COLUMN()-5-COLUMN($E65)),VLOOKUP($E65-4,AllData,COLUMN()-5-COLUMN($E65)),VLOOKUP($E65-5,AllData,COLUMN()-5-COLUMN($E65)),VLOOKUP($E65-6,AllData,COLUMN()-5-COLUMN($E65)))","v":620.12},{"$f":"SUM(VLOOKUP($E65,AllData,COLUMN()-6-COLUMN($E65)),VLOOKUP($E65-1,AllData,COLUMN()-6-COLUMN($E65)),VLOOKUP($E65-2,AllData,COLUMN()-6-COLUMN($E65)),VLOOKUP($E65-3,AllData,COLUMN()-6-COLUMN($E65)),VLOOKUP($E65-4,AllData,COLUMN()-6-COLUMN($E65)),VLOOKUP($E65-5,AllData,COLUMN()-6-COLUMN($E65)),VLOOKUP($E65-6,AllData,COLUMN()-6-COLUMN($E65)),VLOOKUP($E65-7,AllData,COLUMN()-6-COLUMN($E65)),VLOOKUP($E65-8,AllData,COLUMN()-6-COLUMN($E65)),VLOOKUP($E65-9,AllData,COLUMN()-6-COLUMN($E65)),VLOOKUP($E65-10,AllData,COLUMN()-6-COLUMN($E65)),VLOOKUP($E65-11,AllData,COLUMN()-6-COLUMN($E65)),VLOOKUP($E65-12,AllData,COLUMN()-6-COLUMN($E65)),VLOOKUP($E65-13,AllData,COLUMN()-6-COLUMN($E65)),VLOOKUP($E65-14,AllData,COLUMN()-6-COLUMN($E65)),VLOOKUP($E65-15,AllData,COLUMN()-6-COLUMN($E65)),VLOOKUP($E65-16,AllData,COLUMN()-6-COLUMN($E65)),VLOOKUP($E65-17,AllData,COLUMN()-6-COLUMN($E65)),VLOOKUP($E65-18,AllData,COLUMN()-6-COLUMN($E65)),VLOOKUP($E65-19,AllData,COLUMN()-6-COLUMN($E65)),VLOOKUP($E65-20,AllData,COLUMN()-6-COLUMN($E65)),VLOOKUP($E65-21,AllData,COLUMN()-6-COLUMN($E65)),VLOOKUP($E65-22,AllData,COLUMN()-6-COLUMN($E65)),VLOOKUP($E65-23,AllData,COLUMN()-6-COLUMN($E65)),VLOOKUP($E65-24,AllData,COLUMN()-6-COLUMN($E65)),VLOOKUP($E65-25,AllData,COLUMN()-6-COLUMN($E65)),VLOOKUP($E65-26,AllData,COLUMN()-6-COLUMN($E65)),VLOOKUP($E65-27,AllData,COLUMN()-6-COLUMN($E65)),VLOOKUP($E65-28,AllData,COLUMN()-6-COLUMN($E65)),VLOOKUP($E65-29,AllData,COLUMN()-6-COLUMN($E65)))","v":620.12},{"$f":"VLOOKUP($E65,AllData,COLUMN()-7-COLUMN($E65))","v":20.16},{"$f":"OR('Cool Graph'!$I$1=35,'Cool Graph'!$I$1=36,'Cool Graph'!$I$1=37,'Cool Graph'!$I$1=38,'Cool Graph'!$I$1=39,'Cool Graph'!$I$1=40,'Cool Graph'!$I$1=41,'Cool Graph'!$I$1=42,'Cool Graph'!$I$1=43,'Cool Graph'!$I$1=44,'Cool Graph'!$I$1=45,'Cool Graph'!$I$1=46,'Cool Graph'!$I$1=47,'Cool Graph'!$I$1=58,'Cool Graph'!$I$1=66)","v":false}]
["2011-09-03",{"$f":"OFFSET(OldSchoolJustValues!A66,0,'Cool Graph'!$H$1)","v":0},{"$f":"OFFSET(OldSchoolJustValues!A66,0,'Cool Graph'!$I$1)","v":117.82426596820142},null,{"$f":"IF(NewDate>EndDate,NA(),NewDate)","v":"2011-11-29"},{"$f":"IF($E66>EndDate,NA(),IF($K$2=TRUE,N66,IF('Cool Graph'!$B$17=1,N66,IF('Cool Graph'!$B$17=2,L66,IF('Cool Graph'!$B$17=3,M66,)))))","v":0},{"$f":"IF($E66>EndDate,NA(),IF($O$2=TRUE,J66,IF('Cool Graph'!$B$17=1,Data1!J66,IF('Cool Graph'!$B$17=2,Data1!H66,IF('Cool Graph'!$B$17=3,Data1!I66,)))))","v":930.05149170345589},{"$f":"SUM(VLOOKUP($E66,AllData,COLUMN()-COLUMN($E66)),VLOOKUP($E66-1,AllData,COLUMN()-COLUMN($E66)),VLOOKUP($E66-2,AllData,COLUMN()-COLUMN($E66)),VLOOKUP($E66-3,AllData,COLUMN()-COLUMN($E66)),VLOOKUP($E66-4,AllData,COLUMN()-COLUMN($E66)),VLOOKUP($E66-5,AllData,COLUMN()-COLUMN($E66)),VLOOKUP($E66-6,AllData,COLUMN()-COLUMN($E66)))","v":6063.4360662068166},{"$f":"SUM(VLOOKUP($E66,AllData,COLUMN()-1-COLUMN($E66)),VLOOKUP($E66-1,AllData,COLUMN()-1-COLUMN($E66)),VLOOKUP($E66-2,AllData,COLUMN()-1-COLUMN($E66)),VLOOKUP($E66-3,AllData,COLUMN()-1-COLUMN($E66)),VLOOKUP($E66-4,AllData,COLUMN()-1-COLUMN($E66)),VLOOKUP($E66-5,AllData,COLUMN()-1-COLUMN($E66)),VLOOKUP($E66-6,AllData,COLUMN()-1-COLUMN($E66)),VLOOKUP($E66-7,AllData,COLUMN()-1-COLUMN($E66)),VLOOKUP($E66-8,AllData,COLUMN()-1-COLUMN($E66)),VLOOKUP($E66-9,AllData,COLUMN()-1-COLUMN($E66)),VLOOKUP($E66-10,AllData,COLUMN()-1-COLUMN($E66)),VLOOKUP($E66-11,AllData,COLUMN()-1-COLUMN($E66)),VLOOKUP($E66-12,AllData,COLUMN()-1-COLUMN($E66)),VLOOKUP($E66-13,AllData,COLUMN()-1-COLUMN($E66)),VLOOKUP($E66-14,AllData,COLUMN()-1-COLUMN($E66)),VLOOKUP($E66-15,AllData,COLUMN()-1-COLUMN($E66)),VLOOKUP($E66-16,AllData,COLUMN()-1-COLUMN($E66)),VLOOKUP($E66-17,AllData,COLUMN()-1-COLUMN($E66)),VLOOKUP($E66-18,AllData,COLUMN()-1-COLUMN($E66)),VLOOKUP($E66-19,AllData,COLUMN()-1-COLUMN($E66)),VLOOKUP($E66-20,AllData,COLUMN()-1-COLUMN($E66)),VLOOKUP($E66-21,AllData,COLUMN()-1-COLUMN($E66)),VLOOKUP($E66-22,AllData,COLUMN()-1-COLUMN($E66)),VLOOKUP($E66-23,AllData,COLUMN()-1-COLUMN($E66)),VLOOKUP($E66-24,AllData,COLUMN()-1-COLUMN($E66)),VLOOKUP($E66-25,AllData,COLUMN()-1-COLUMN($E66)),VLOOKUP($E66-26,AllData,COLUMN()-1-COLUMN($E66)),VLOOKUP($E66-27,AllData,COLUMN()-1-COLUMN($E66)),VLOOKUP($E66-28,AllData,COLUMN()-1-COLUMN($E66)),VLOOKUP($E66-29,AllData,COLUMN()-1-COLUMN($E66)))","v":13661.425169339849},{"$f":"VLOOKUP($E66,AllData,COLUMN()-2-COLUMN($E66))","v":930.05149170345589},{"$f":"OR('Cool Graph'!$H$1=35,'Cool Graph'!$H$1=36,'Cool Graph'!$H$1=37,'Cool Graph'!$H$1=38,'Cool Graph'!$H$1=39,'Cool Graph'!$H$1=40,'Cool Graph'!$H$1=41,'Cool Graph'!$H$1=42,'Cool Graph'!$H$1=43,'Cool Graph'!$H$1=44,'Cool Graph'!$H$1=45,'Cool Graph'!$H$1=46,'Cool Graph'!$H$1=47,'Cool Graph'!$H$1=58,'Cool Graph'!$H$1=66)","v":false},{"$f":"SUM(VLOOKUP($E66,AllData,COLUMN()-5-COLUMN($E66)),VLOOKUP($E66-1,AllData,COLUMN()-5-COLUMN($E66)),VLOOKUP($E66-2,AllData,COLUMN()-5-COLUMN($E66)),VLOOKUP($E66-3,AllData,COLUMN()-5-COLUMN($E66)),VLOOKUP($E66-4,AllData,COLUMN()-5-COLUMN($E66)),VLOOKUP($E66-5,AllData,COLUMN()-5-COLUMN($E66)),VLOOKUP($E66-6,AllData,COLUMN()-5-COLUMN($E66)))","v":520.12},{"$f":"SUM(VLOOKUP($E66,AllData,COLUMN()-6-COLUMN($E66)),VLOOKUP($E66-1,AllData,COLUMN()-6-COLUMN($E66)),VLOOKUP($E66-2,AllData,COLUMN()-6-COLUMN($E66)),VLOOKUP($E66-3,AllData,COLUMN()-6-COLUMN($E66)),VLOOKUP($E66-4,AllData,COLUMN()-6-COLUMN($E66)),VLOOKUP($E66-5,AllData,COLUMN()-6-COLUMN($E66)),VLOOKUP($E66-6,AllData,COLUMN()-6-COLUMN($E66)),VLOOKUP($E66-7,AllData,COLUMN()-6-COLUMN($E66)),VLOOKUP($E66-8,AllData,COLUMN()-6-COLUMN($E66)),VLOOKUP($E66-9,AllData,COLUMN()-6-COLUMN($E66)),VLOOKUP($E66-10,AllData,COLUMN()-6-COLUMN($E66)),VLOOKUP($E66-11,AllData,COLUMN()-6-COLUMN($E66)),VLOOKUP($E66-12,AllData,COLUMN()-6-COLUMN($E66)),VLOOKUP($E66-13,AllData,COLUMN()-6-COLUMN($E66)),VLOOKUP($E66-14,AllData,COLUMN()-6-COLUMN($E66)),VLOOKUP($E66-15,AllData,COLUMN()-6-COLUMN($E66)),VLOOKUP($E66-16,AllData,COLUMN()-6-COLUMN($E66)),VLOOKUP($E66-17,AllData,COLUMN()-6-COLUMN($E66)),VLOOKUP($E66-18,AllData,COLUMN()-6-COLUMN($E66)),VLOOKUP($E66-19,AllData,COLUMN()-6-COLUMN($E66)),VLOOKUP($E66-20,AllData,COLUMN()-6-COLUMN($E66)),VLOOKUP($E66-21,AllData,COLUMN()-6-COLUMN($E66)),VLOOKUP($E66-22,AllData,COLUMN()-6-COLUMN($E66)),VLOOKUP($E66-23,AllData,COLUMN()-6-COLUMN($E66)),VLOOKUP($E66-24,AllData,COLUMN()-6-COLUMN($E66)),VLOOKUP($E66-25,AllData,COLUMN()-6-COLUMN($E66)),VLOOKUP($E66-26,AllData,COLUMN()-6-COLUMN($E66)),VLOOKUP($E66-27,AllData,COLUMN()-6-COLUMN($E66)),VLOOKUP($E66-28,AllData,COLUMN()-6-COLUMN($E66)),VLOOKUP($E66-29,AllData,COLUMN()-6-COLUMN($E66)))","v":620.12},{"$f":"VLOOKUP($E66,AllData,COLUMN()-7-COLUMN($E66))","v":0},{"$f":"OR('Cool Graph'!$I$1=35,'Cool Graph'!$I$1=36,'Cool Graph'!$I$1=37,'Cool Graph'!$I$1=38,'Cool Graph'!$I$1=39,'Cool Graph'!$I$1=40,'Cool Graph'!$I$1=41,'Cool Graph'!$I$1=42,'Cool Graph'!$I$1=43,'Cool Graph'!$I$1=44,'Cool Graph'!$I$1=45,'Cool Graph'!$I$1=46,'Cool Graph'!$I$1=47,'Cool Graph'!$I$1=58,'Cool Graph'!$I$1=66)","v":false}]
["2011-09-04",{"$f":"OFFSET(OldSchoolJustValues!A67,0,'Cool Graph'!$H$1)","v":0},{"$f":"OFFSET(OldSchoolJustValues!A67,0,'Cool Graph'!$I$1)","v":60.836627417901795},null,{"$f":"IF(NewDate>EndDate,NA(),NewDate)","v":"2011-11-30"},{"$f":"IF($E67>EndDate,NA(),IF($K$2=TRUE,N67,IF('Cool Graph'!$B$17=1,N67,IF('Cool Graph'!$B$17=2,L67,IF('Cool Graph'!$B$17=3,M67,)))))","v":0.09},{"$f":"IF($E67>EndDate,NA(),IF($O$2=TRUE,J67,IF('Cool Graph'!$B$17=1,Data1!J67,IF('Cool Graph'!$B$17=2,Data1!H67,IF('Cool Graph'!$B$17=3,Data1!I67,)))))","v":202.98791191945617},{"$f":"SUM(VLOOKUP($E67,AllData,COLUMN()-COLUMN($E67)),VLOOKUP($E67-1,AllData,COLUMN()-COLUMN($E67)),VLOOKUP($E67-2,AllData,COLUMN()-COLUMN($E67)),VLOOKUP($E67-3,AllData,COLUMN()-COLUMN($E67)),VLOOKUP($E67-4,AllData,COLUMN()-COLUMN($E67)),VLOOKUP($E67-5,AllData,COLUMN()-COLUMN($E67)),VLOOKUP($E67-6,AllData,COLUMN()-COLUMN($E67)))","v":5727.5679700223036},{"$f":"SUM(VLOOKUP($E67,AllData,COLUMN()-1-COLUMN($E67)),VLOOKUP($E67-1,AllData,COLUMN()-1-COLUMN($E67)),VLOOKUP($E67-2,AllData,COLUMN()-1-COLUMN($E67)),VLOOKUP($E67-3,AllData,COLUMN()-1-COLUMN($E67)),VLOOKUP($E67-4,AllData,COLUMN()-1-COLUMN($E67)),VLOOKUP($E67-5,AllData,COLUMN()-1-COLUMN($E67)),VLOOKUP($E67-6,AllData,COLUMN()-1-COLUMN($E67)),VLOOKUP($E67-7,AllData,COLUMN()-1-COLUMN($E67)),VLOOKUP($E67-8,AllData,COLUMN()-1-COLUMN($E67)),VLOOKUP($E67-9,AllData,COLUMN()-1-COLUMN($E67)),VLOOKUP($E67-10,AllData,COLUMN()-1-COLUMN($E67)),VLOOKUP($E67-11,AllData,COLUMN()-1-COLUMN($E67)),VLOOKUP($E67-12,AllData,COLUMN()-1-COLUMN($E67)),VLOOKUP($E67-13,AllData,COLUMN()-1-COLUMN($E67)),VLOOKUP($E67-14,AllData,COLUMN()-1-COLUMN($E67)),VLOOKUP($E67-15,AllData,COLUMN()-1-COLUMN($E67)),VLOOKUP($E67-16,AllData,COLUMN()-1-COLUMN($E67)),VLOOKUP($E67-17,AllData,COLUMN()-1-COLUMN($E67)),VLOOKUP($E67-18,AllData,COLUMN()-1-COLUMN($E67)),VLOOKUP($E67-19,AllData,COLUMN()-1-COLUMN($E67)),VLOOKUP($E67-20,AllData,COLUMN()-1-COLUMN($E67)),VLOOKUP($E67-21,AllData,COLUMN()-1-COLUMN($E67)),VLOOKUP($E67-22,AllData,COLUMN()-1-COLUMN($E67)),VLOOKUP($E67-23,AllData,COLUMN()-1-COLUMN($E67)),VLOOKUP($E67-24,AllData,COLUMN()-1-COLUMN($E67)),VLOOKUP($E67-25,AllData,COLUMN()-1-COLUMN($E67)),VLOOKUP($E67-26,AllData,COLUMN()-1-COLUMN($E67)),VLOOKUP($E67-27,AllData,COLUMN()-1-COLUMN($E67)),VLOOKUP($E67-28,AllData,COLUMN()-1-COLUMN($E67)),VLOOKUP($E67-29,AllData,COLUMN()-1-COLUMN($E67)))","v":13798.599826423504},{"$f":"VLOOKUP($E67,AllData,COLUMN()-2-COLUMN($E67))","v":202.98791191945617},{"$f":"OR('Cool Graph'!$H$1=35,'Cool Graph'!$H$1=36,'Cool Graph'!$H$1=37,'Cool Graph'!$H$1=38,'Cool Graph'!$H$1=39,'Cool Graph'!$H$1=40,'Cool Graph'!$H$1=41,'Cool Graph'!$H$1=42,'Cool Graph'!$H$1=43,'Cool Graph'!$H$1=44,'Cool Graph'!$H$1=45,'Cool Graph'!$H$1=46,'Cool Graph'!$H$1=47,'Cool Graph'!$H$1=58,'Cool Graph'!$H$1=66)","v":false},{"$f":"SUM(VLOOKUP($E67,AllData,COLUMN()-5-COLUMN($E67)),VLOOKUP($E67-1,AllData,COLUMN()-5-COLUMN($E67)),VLOOKUP($E67-2,AllData,COLUMN()-5-COLUMN($E67)),VLOOKUP($E67-3,AllData,COLUMN()-5-COLUMN($E67)),VLOOKUP($E67-4,AllData,COLUMN()-5-COLUMN($E67)),VLOOKUP($E67-5,AllData,COLUMN()-5-COLUMN($E67)),VLOOKUP($E67-6,AllData,COLUMN()-5-COLUMN($E67)))","v":420.25},{"$f":"SUM(VLOOKUP($E67,AllData,COLUMN()-6-COLUMN($E67)),VLOOKUP($E67-1,AllData,COLUMN()-6-COLUMN($E67)),VLOOKUP($E67-2,AllData,COLUMN()-6-COLUMN($E67)),VLOOKUP($E67-3,AllData,COLUMN()-6-COLUMN($E67)),VLOOKUP($E67-4,AllData,COLUMN()-6-COLUMN($E67)),VLOOKUP($E67-5,AllData,COLUMN()-6-COLUMN($E67)),VLOOKUP($E67-6,AllData,COLUMN()-6-COLUMN($E67)),VLOOKUP($E67-7,AllData,COLUMN()-6-COLUMN($E67)),VLOOKUP($E67-8,AllData,COLUMN()-6-COLUMN($E67)),VLOOKUP($E67-9,AllData,COLUMN()-6-COLUMN($E67)),VLOOKUP($E67-10,AllData,COLUMN()-6-COLUMN($E67)),VLOOKUP($E67-11,AllData,COLUMN()-6-COLUMN($E67)),VLOOKUP($E67-12,AllData,COLUMN()-6-COLUMN($E67)),VLOOKUP($E67-13,AllData,COLUMN()-6-COLUMN($E67)),VLOOKUP($E67-14,AllData,COLUMN()-6-COLUMN($E67)),VLOOKUP($E67-15,AllData,COLUMN()-6-COLUMN($E67)),VLOOKUP($E67-16,AllData,COLUMN()-6-COLUMN($E67)),VLOOKUP($E67-17,AllData,COLUMN()-6-COLUMN($E67)),VLOOKUP($E67-18,AllData,COLUMN()-6-COLUMN($E67)),VLOOKUP($E67-19,AllData,COLUMN()-6-COLUMN($E67)),VLOOKUP($E67-20,AllData,COLUMN()-6-COLUMN($E67)),VLOOKUP($E67-21,AllData,COLUMN()-6-COLUMN($E67)),VLOOKUP($E67-22,AllData,COLUMN()-6-COLUMN($E67)),VLOOKUP($E67-23,AllData,COLUMN()-6-COLUMN($E67)),VLOOKUP($E67-24,AllData,COLUMN()-6-COLUMN($E67)),VLOOKUP($E67-25,AllData,COLUMN()-6-COLUMN($E67)),VLOOKUP($E67-26,AllData,COLUMN()-6-COLUMN($E67)),VLOOKUP($E67-27,AllData,COLUMN()-6-COLUMN($E67)),VLOOKUP($E67-28,AllData,COLUMN()-6-COLUMN($E67)),VLOOKUP($E67-29,AllData,COLUMN()-6-COLUMN($E67)))","v":620.21},{"$f":"VLOOKUP($E67,AllData,COLUMN()-7-COLUMN($E67))","v":0.09},{"$f":"OR('Cool Graph'!$I$1=35,'Cool Graph'!$I$1=36,'Cool Graph'!$I$1=37,'Cool Graph'!$I$1=38,'Cool Graph'!$I$1=39,'Cool Graph'!$I$1=40,'Cool Graph'!$I$1=41,'Cool Graph'!$I$1=42,'Cool Graph'!$I$1=43,'Cool Graph'!$I$1=44,'Cool Graph'!$I$1=45,'Cool Graph'!$I$1=46,'Cool Graph'!$I$1=47,'Cool Graph'!$I$1=58,'Cool Graph'!$I$1=66)","v":false}]
["2011-09-05",{"$f":"OFFSET(OldSchoolJustValues!A68,0,'Cool Graph'!$H$1)","v":0},{"$f":"OFFSET(OldSchoolJustValues!A68,0,'Cool Graph'!$I$1)","v":157.05325483580361},null,{"$f":"IF(NewDate>EndDate,NA(),NewDate)","v":"2011-12-01"},{"$f":"IF($E68>EndDate,NA(),IF($K$2=TRUE,N68,IF('Cool Graph'!$B$17=1,N68,IF('Cool Graph'!$B$17=2,L68,IF('Cool Graph'!$B$17=3,M68,)))))","v":1.5},{"$f":"IF($E68>EndDate,NA(),IF($O$2=TRUE,J68,IF('Cool Graph'!$B$17=1,Data1!J68,IF('Cool Graph'!$B$17=2,Data1!H68,IF('Cool Graph'!$B$17=3,Data1!I68,)))))","v":205.21338787332797},{"$f":"SUM(VLOOKUP($E68,AllData,COLUMN()-COLUMN($E68)),VLOOKUP($E68-1,AllData,COLUMN()-COLUMN($E68)),VLOOKUP($E68-2,AllData,COLUMN()-COLUMN($E68)),VLOOKUP($E68-3,AllData,COLUMN()-COLUMN($E68)),VLOOKUP($E68-4,AllData,COLUMN()-COLUMN($E68)),VLOOKUP($E68-5,AllData,COLUMN()-COLUMN($E68)),VLOOKUP($E68-6,AllData,COLUMN()-COLUMN($E68)))","v":5501.8149070971713},{"$f":"SUM(VLOOKUP($E68,AllData,COLUMN()-1-COLUMN($E68)),VLOOKUP($E68-1,AllData,COLUMN()-1-COLUMN($E68)),VLOOKUP($E68-2,AllData,COLUMN()-1-COLUMN($E68)),VLOOKUP($E68-3,AllData,COLUMN()-1-COLUMN($E68)),VLOOKUP($E68-4,AllData,COLUMN()-1-COLUMN($E68)),VLOOKUP($E68-5,AllData,COLUMN()-1-COLUMN($E68)),VLOOKUP($E68-6,AllData,COLUMN()-1-COLUMN($E68)),VLOOKUP($E68-7,AllData,COLUMN()-1-COLUMN($E68)),VLOOKUP($E68-8,AllData,COLUMN()-1-COLUMN($E68)),VLOOKUP($E68-9,AllData,COLUMN()-1-COLUMN($E68)),VLOOKUP($E68-10,AllData,COLUMN()-1-COLUMN($E68)),VLOOKUP($E68-11,AllData,COLUMN()-1-COLUMN($E68)),VLOOKUP($E68-12,AllData,COLUMN()-1-COLUMN($E68)),VLOOKUP($E68-13,AllData,COLUMN()-1-COLUMN($E68)),VLOOKUP($E68-14,AllData,COLUMN()-1-COLUMN($E68)),VLOOKUP($E68-15,AllData,COLUMN()-1-COLUMN($E68)),VLOOKUP($E68-16,AllData,COLUMN()-1-COLUMN($E68)),VLOOKUP($E68-17,AllData,COLUMN()-1-COLUMN($E68)),VLOOKUP($E68-18,AllData,COLUMN()-1-COLUMN($E68)),VLOOKUP($E68-19,AllData,COLUMN()-1-COLUMN($E68)),VLOOKUP($E68-20,AllData,COLUMN()-1-COLUMN($E68)),VLOOKUP($E68-21,AllData,COLUMN()-1-COLUMN($E68)),VLOOKUP($E68-22,AllData,COLUMN()-1-COLUMN($E68)),VLOOKUP($E68-23,AllData,COLUMN()-1-COLUMN($E68)),VLOOKUP($E68-24,AllData,COLUMN()-1-COLUMN($E68)),VLOOKUP($E68-25,AllData,COLUMN()-1-COLUMN($E68)),VLOOKUP($E68-26,AllData,COLUMN()-1-COLUMN($E68)),VLOOKUP($E68-27,AllData,COLUMN()-1-COLUMN($E68)),VLOOKUP($E68-28,AllData,COLUMN()-1-COLUMN($E68)),VLOOKUP($E68-29,AllData,COLUMN()-1-COLUMN($E68)))","v":13847.553332043124},{"$f":"VLOOKUP($E68,AllData,COLUMN()-2-COLUMN($E68))","v":205.21338787332797},{"$f":"OR('Cool Graph'!$H$1=35,'Cool Graph'!$H$1=36,'Cool Graph'!$H$1=37,'Cool Graph'!$H$1=38,'Cool Graph'!$H$1=39,'Cool Graph'!$H$1=40,'Cool Graph'!$H$1=41,'Cool Graph'!$H$1=42,'Cool Graph'!$H$1=43,'Cool Graph'!$H$1=44,'Cool Graph'!$H$1=45,'Cool Graph'!$H$1=46,'Cool Graph'!$H$1=47,'Cool Graph'!$H$1=58,'Cool Graph'!$H$1=66)","v":false},{"$f":"SUM(VLOOKUP($E68,AllData,COLUMN()-5-COLUMN($E68)),VLOOKUP($E68-1,AllData,COLUMN()-5-COLUMN($E68)),VLOOKUP($E68-2,AllData,COLUMN()-5-COLUMN($E68)),VLOOKUP($E68-3,AllData,COLUMN()-5-COLUMN($E68)),VLOOKUP($E68-4,AllData,COLUMN()-5-COLUMN($E68)),VLOOKUP($E68-5,AllData,COLUMN()-5-COLUMN($E68)),VLOOKUP($E68-6,AllData,COLUMN()-5-COLUMN($E68)))","v":321.75},{"$f":"SUM(VLOOKUP($E68,AllData,COLUMN()-6-COLUMN($E68)),VLOOKUP($E68-1,AllData,COLUMN()-6-COLUMN($E68)),VLOOKUP($E68-2,AllData,COLUMN()-6-COLUMN($E68)),VLOOKUP($E68-3,AllData,COLUMN()-6-COLUMN($E68)),VLOOKUP($E68-4,AllData,COLUMN()-6-COLUMN($E68)),VLOOKUP($E68-5,AllData,COLUMN()-6-COLUMN($E68)),VLOOKUP($E68-6,AllData,COLUMN()-6-COLUMN($E68)),VLOOKUP($E68-7,AllData,COLUMN()-6-COLUMN($E68)),VLOOKUP($E68-8,AllData,COLUMN()-6-COLUMN($E68)),VLOOKUP($E68-9,AllData,COLUMN()-6-COLUMN($E68)),VLOOKUP($E68-10,AllData,COLUMN()-6-COLUMN($E68)),VLOOKUP($E68-11,AllData,COLUMN()-6-COLUMN($E68)),VLOOKUP($E68-12,AllData,COLUMN()-6-COLUMN($E68)),VLOOKUP($E68-13,AllData,COLUMN()-6-COLUMN($E68)),VLOOKUP($E68-14,AllData,COLUMN()-6-COLUMN($E68)),VLOOKUP($E68-15,AllData,COLUMN()-6-COLUMN($E68)),VLOOKUP($E68-16,AllData,COLUMN()-6-COLUMN($E68)),VLOOKUP($E68-17,AllData,COLUMN()-6-COLUMN($E68)),VLOOKUP($E68-18,AllData,COLUMN()-6-COLUMN($E68)),VLOOKUP($E68-19,AllData,COLUMN()-6-COLUMN($E68)),VLOOKUP($E68-20,AllData,COLUMN()-6-COLUMN($E68)),VLOOKUP($E68-21,AllData,COLUMN()-6-COLUMN($E68)),VLOOKUP($E68-22,AllData,COLUMN()-6-COLUMN($E68)),VLOOKUP($E68-23,AllData,COLUMN()-6-COLUMN($E68)),VLOOKUP($E68-24,AllData,COLUMN()-6-COLUMN($E68)),VLOOKUP($E68-25,AllData,COLUMN()-6-COLUMN($E68)),VLOOKUP($E68-26,AllData,COLUMN()-6-COLUMN($E68)),VLOOKUP($E68-27,AllData,COLUMN()-6-COLUMN($E68)),VLOOKUP($E68-28,AllData,COLUMN()-6-COLUMN($E68)),VLOOKUP($E68-29,AllData,COLUMN()-6-COLUMN($E68)))","v":621.71},{"$f":"VLOOKUP($E68,AllData,COLUMN()-7-COLUMN($E68))","v":1.5},{"$f":"OR('Cool Graph'!$I$1=35,'Cool Graph'!$I$1=36,'Cool Graph'!$I$1=37,'Cool Graph'!$I$1=38,'Cool Graph'!$I$1=39,'Cool Graph'!$I$1=40,'Cool Graph'!$I$1=41,'Cool Graph'!$I$1=42,'Cool Graph'!$I$1=43,'Cool Graph'!$I$1=44,'Cool Graph'!$I$1=45,'Cool Graph'!$I$1=46,'Cool Graph'!$I$1=47,'Cool Graph'!$I$1=58,'Cool Graph'!$I$1=66)","v":false}]
["2011-09-06",{"$f":"OFFSET(OldSchoolJustValues!A69,0,'Cool Graph'!$H$1)","v":0},{"$f":"OFFSET(OldSchoolJustValues!A69,0,'Cool Graph'!$I$1)","v":236.40710038205123},null,{"$f":"IF(NewDate>EndDate,NA(),NewDate)","v":"2011-12-02"},{"$f":"IF($E69>EndDate,NA(),IF($K$2=TRUE,N69,IF('Cool Graph'!$B$17=1,N69,IF('Cool Graph'!$B$17=2,L69,IF('Cool Graph'!$B$17=3,M69,)))))","v":1.51},{"$f":"IF($E69>EndDate,NA(),IF($O$2=TRUE,J69,IF('Cool Graph'!$B$17=1,Data1!J69,IF('Cool Graph'!$B$17=2,Data1!H69,IF('Cool Graph'!$B$17=3,Data1!I69,)))))","v":178.82605933150163},{"$f":"SUM(VLOOKUP($E69,AllData,COLUMN()-COLUMN($E69)),VLOOKUP($E69-1,AllData,COLUMN()-COLUMN($E69)),VLOOKUP($E69-2,AllData,COLUMN()-COLUMN($E69)),VLOOKUP($E69-3,AllData,COLUMN()-COLUMN($E69)),VLOOKUP($E69-4,AllData,COLUMN()-COLUMN($E69)),VLOOKUP($E69-5,AllData,COLUMN()-COLUMN($E69)),VLOOKUP($E69-6,AllData,COLUMN()-COLUMN($E69)))","v":4406.7818801083431},{"$f":"SUM(VLOOKUP($E69,AllData,COLUMN()-1-COLUMN($E69)),VLOOKUP($E69-1,AllData,COLUMN()-1-COLUMN($E69)),VLOOKUP($E69-2,AllData,COLUMN()-1-COLUMN($E69)),VLOOKUP($E69-3,AllData,COLUMN()-1-COLUMN($E69)),VLOOKUP($E69-4,AllData,COLUMN()-1-COLUMN($E69)),VLOOKUP($E69-5,AllData,COLUMN()-1-COLUMN($E69)),VLOOKUP($E69-6,AllData,COLUMN()-1-COLUMN($E69)),VLOOKUP($E69-7,AllData,COLUMN()-1-COLUMN($E69)),VLOOKUP($E69-8,AllData,COLUMN()-1-COLUMN($E69)),VLOOKUP($E69-9,AllData,COLUMN()-1-COLUMN($E69)),VLOOKUP($E69-10,AllData,COLUMN()-1-COLUMN($E69)),VLOOKUP($E69-11,AllData,COLUMN()-1-COLUMN($E69)),VLOOKUP($E69-12,AllData,COLUMN()-1-COLUMN($E69)),VLOOKUP($E69-13,AllData,COLUMN()-1-COLUMN($E69)),VLOOKUP($E69-14,AllData,COLUMN()-1-COLUMN($E69)),VLOOKUP($E69-15,AllData,COLUMN()-1-COLUMN($E69)),VLOOKUP($E69-16,AllData,COLUMN()-1-COLUMN($E69)),VLOOKUP($E69-17,AllData,COLUMN()-1-COLUMN($E69)),VLOOKUP($E69-18,AllData,COLUMN()-1-COLUMN($E69)),VLOOKUP($E69-19,AllData,COLUMN()-1-COLUMN($E69)),VLOOKUP($E69-20,AllData,COLUMN()-1-COLUMN($E69)),VLOOKUP($E69-21,AllData,COLUMN()-1-COLUMN($E69)),VLOOKUP($E69-22,AllData,COLUMN()-1-COLUMN($E69)),VLOOKUP($E69-23,AllData,COLUMN()-1-COLUMN($E69)),VLOOKUP($E69-24,AllData,COLUMN()-1-COLUMN($E69)),VLOOKUP($E69-25,AllData,COLUMN()-1-COLUMN($E69)),VLOOKUP($E69-26,AllData,COLUMN()-1-COLUMN($E69)),VLOOKUP($E69-27,AllData,COLUMN()-1-COLUMN($E69)),VLOOKUP($E69-28,AllData,COLUMN()-1-COLUMN($E69)),VLOOKUP($E69-29,AllData,COLUMN()-1-COLUMN($E69)))","v":13441.591663720228},{"$f":"VLOOKUP($E69,AllData,COLUMN()-2-COLUMN($E69))","v":178.82605933150163},{"$f":"OR('Cool Graph'!$H$1=35,'Cool Graph'!$H$1=36,'Cool Graph'!$H$1=37,'Cool Graph'!$H$1=38,'Cool Graph'!$H$1=39,'Cool Graph'!$H$1=40,'Cool Graph'!$H$1=41,'Cool Graph'!$H$1=42,'Cool Graph'!$H$1=43,'Cool Graph'!$H$1=44,'Cool Graph'!$H$1=45,'Cool Graph'!$H$1=46,'Cool Graph'!$H$1=47,'Cool Graph'!$H$1=58,'Cool Graph'!$H$1=66)","v":false},{"$f":"SUM(VLOOKUP($E69,AllData,COLUMN()-5-COLUMN($E69)),VLOOKUP($E69-1,AllData,COLUMN()-5-COLUMN($E69)),VLOOKUP($E69-2,AllData,COLUMN()-5-COLUMN($E69)),VLOOKUP($E69-3,AllData,COLUMN()-5-COLUMN($E69)),VLOOKUP($E69-4,AllData,COLUMN()-5-COLUMN($E69)),VLOOKUP($E69-5,AllData,COLUMN()-5-COLUMN($E69)),VLOOKUP($E69-6,AllData,COLUMN()-5-COLUMN($E69)))","v":223.26},{"$f":"SUM(VLOOKUP($E69,AllData,COLUMN()-6-COLUMN($E69)),VLOOKUP($E69-1,AllData,COLUMN()-6-COLUMN($E69)),VLOOKUP($E69-2,AllData,COLUMN()-6-COLUMN($E69)),VLOOKUP($E69-3,AllData,COLUMN()-6-COLUMN($E69)),VLOOKUP($E69-4,AllData,COLUMN()-6-COLUMN($E69)),VLOOKUP($E69-5,AllData,COLUMN()-6-COLUMN($E69)),VLOOKUP($E69-6,AllData,COLUMN()-6-COLUMN($E69)),VLOOKUP($E69-7,AllData,COLUMN()-6-COLUMN($E69)),VLOOKUP($E69-8,AllData,COLUMN()-6-COLUMN($E69)),VLOOKUP($E69-9,AllData,COLUMN()-6-COLUMN($E69)),VLOOKUP($E69-10,AllData,COLUMN()-6-COLUMN($E69)),VLOOKUP($E69-11,AllData,COLUMN()-6-COLUMN($E69)),VLOOKUP($E69-12,AllData,COLUMN()-6-COLUMN($E69)),VLOOKUP($E69-13,AllData,COLUMN()-6-COLUMN($E69)),VLOOKUP($E69-14,AllData,COLUMN()-6-COLUMN($E69)),VLOOKUP($E69-15,AllData,COLUMN()-6-COLUMN($E69)),VLOOKUP($E69-16,AllData,COLUMN()-6-COLUMN($E69)),VLOOKUP($E69-17,AllData,COLUMN()-6-COLUMN($E69)),VLOOKUP($E69-18,AllData,COLUMN()-6-COLUMN($E69)),VLOOKUP($E69-19,AllData,COLUMN()-6-COLUMN($E69)),VLOOKUP($E69-20,AllData,COLUMN()-6-COLUMN($E69)),VLOOKUP($E69-21,AllData,COLUMN()-6-COLUMN($E69)),VLOOKUP($E69-22,AllData,COLUMN()-6-COLUMN($E69)),VLOOKUP($E69-23,AllData,COLUMN()-6-COLUMN($E69)),VLOOKUP($E69-24,AllData,COLUMN()-6-COLUMN($E69)),VLOOKUP($E69-25,AllData,COLUMN()-6-COLUMN($E69)),VLOOKUP($E69-26,AllData,COLUMN()-6-COLUMN($E69)),VLOOKUP($E69-27,AllData,COLUMN()-6-COLUMN($E69)),VLOOKUP($E69-28,AllData,COLUMN()-6-COLUMN($E69)),VLOOKUP($E69-29,AllData,COLUMN()-6-COLUMN($E69)))","v":623.22},{"$f":"VLOOKUP($E69,AllData,COLUMN()-7-COLUMN($E69))","v":1.51},{"$f":"OR('Cool Graph'!$I$1=35,'Cool Graph'!$I$1=36,'Cool Graph'!$I$1=37,'Cool Graph'!$I$1=38,'Cool Graph'!$I$1=39,'Cool Graph'!$I$1=40,'Cool Graph'!$I$1=41,'Cool Graph'!$I$1=42,'Cool Graph'!$I$1=43,'Cool Graph'!$I$1=44,'Cool Graph'!$I$1=45,'Cool Graph'!$I$1=46,'Cool Graph'!$I$1=47,'Cool Graph'!$I$1=58,'Cool Graph'!$I$1=66)","v":false}]
["2011-09-07",{"$f":"OFFSET(OldSchoolJustValues!A70,0,'Cool Graph'!$H$1)","v":0},{"$f":"OFFSET(OldSchoolJustValues!A70,0,'Cool Graph'!$I$1)","v":56.476627417901796},null,{"$f":"IF(NewDate>EndDate,NA(),NewDate)","v":"2011-12-03"},{"$f":"IF($E70>EndDate,NA(),IF($K$2=TRUE,N70,IF('Cool Graph'!$B$17=1,N70,IF('Cool Graph'!$B$17=2,L70,IF('Cool Graph'!$B$17=3,M70,)))))","v":33},{"$f":"IF($E70>EndDate,NA(),IF($O$2=TRUE,J70,IF('Cool Graph'!$B$17=1,Data1!J70,IF('Cool Graph'!$B$17=2,Data1!H70,IF('Cool Graph'!$B$17=3,Data1!I70,)))))","v":566.46569080138806},{"$f":"SUM(VLOOKUP($E70,AllData,COLUMN()-COLUMN($E70)),VLOOKUP($E70-1,AllData,COLUMN()-COLUMN($E70)),VLOOKUP($E70-2,AllData,COLUMN()-COLUMN($E70)),VLOOKUP($E70-3,AllData,COLUMN()-COLUMN($E70)),VLOOKUP($E70-4,AllData,COLUMN()-COLUMN($E70)),VLOOKUP($E70-5,AllData,COLUMN()-COLUMN($E70)),VLOOKUP($E70-6,AllData,COLUMN()-COLUMN($E70)))","v":4281.9886917913009},{"$f":"SUM(VLOOKUP($E70,AllData,COLUMN()-1-COLUMN($E70)),VLOOKUP($E70-1,AllData,COLUMN()-1-COLUMN($E70)),VLOOKUP($E70-2,AllData,COLUMN()-1-COLUMN($E70)),VLOOKUP($E70-3,AllData,COLUMN()-1-COLUMN($E70)),VLOOKUP($E70-4,AllData,COLUMN()-1-COLUMN($E70)),VLOOKUP($E70-5,AllData,COLUMN()-1-COLUMN($E70)),VLOOKUP($E70-6,AllData,COLUMN()-1-COLUMN($E70)),VLOOKUP($E70-7,AllData,COLUMN()-1-COLUMN($E70)),VLOOKUP($E70-8,AllData,COLUMN()-1-COLUMN($E70)),VLOOKUP($E70-9,AllData,COLUMN()-1-COLUMN($E70)),VLOOKUP($E70-10,AllData,COLUMN()-1-COLUMN($E70)),VLOOKUP($E70-11,AllData,COLUMN()-1-COLUMN($E70)),VLOOKUP($E70-12,AllData,COLUMN()-1-COLUMN($E70)),VLOOKUP($E70-13,AllData,COLUMN()-1-COLUMN($E70)),VLOOKUP($E70-14,AllData,COLUMN()-1-COLUMN($E70)),VLOOKUP($E70-15,AllData,COLUMN()-1-COLUMN($E70)),VLOOKUP($E70-16,AllData,COLUMN()-1-COLUMN($E70)),VLOOKUP($E70-17,AllData,COLUMN()-1-COLUMN($E70)),VLOOKUP($E70-18,AllData,COLUMN()-1-COLUMN($E70)),VLOOKUP($E70-19,AllData,COLUMN()-1-COLUMN($E70)),VLOOKUP($E70-20,AllData,COLUMN()-1-COLUMN($E70)),VLOOKUP($E70-21,AllData,COLUMN()-1-COLUMN($E70)),VLOOKUP($E70-22,AllData,COLUMN()-1-COLUMN($E70)),VLOOKUP($E70-23,AllData,COLUMN()-1-COLUMN($E70)),VLOOKUP($E70-24,AllData,COLUMN()-1-COLUMN($E70)),VLOOKUP($E70-25,AllData,COLUMN()-1-COLUMN($E70)),VLOOKUP($E70-26,AllData,COLUMN()-1-COLUMN($E70)),VLOOKUP($E70-27,AllData,COLUMN()-1-COLUMN($E70)),VLOOKUP($E70-28,AllData,COLUMN()-1-COLUMN($E70)),VLOOKUP($E70-29,AllData,COLUMN()-1-COLUMN($E70)))","v":13604.875936982538},{"$f":"VLOOKUP($E70,AllData,COLUMN()-2-COLUMN($E70))","v":566.46569080138806},{"$f":"OR('Cool Graph'!$H$1=35,'Cool Graph'!$H$1=36,'Cool Graph'!$H$1=37,'Cool Graph'!$H$1=38,'Cool Graph'!$H$1=39,'Cool Graph'!$H$1=40,'Cool Graph'!$H$1=41,'Cool Graph'!$H$1=42,'Cool Graph'!$H$1=43,'Cool Graph'!$H$1=44,'Cool Graph'!$H$1=45,'Cool Graph'!$H$1=46,'Cool Graph'!$H$1=47,'Cool Graph'!$H$1=58,'Cool Graph'!$H$1=66)","v":false},{"$f":"SUM(VLOOKUP($E70,AllData,COLUMN()-5-COLUMN($E70)),VLOOKUP($E70-1,AllData,COLUMN()-5-COLUMN($E70)),VLOOKUP($E70-2,AllData,COLUMN()-5-COLUMN($E70)),VLOOKUP($E70-3,AllData,COLUMN()-5-COLUMN($E70)),VLOOKUP($E70-4,AllData,COLUMN()-5-COLUMN($E70)),VLOOKUP($E70-5,AllData,COLUMN()-5-COLUMN($E70)),VLOOKUP($E70-6,AllData,COLUMN()-5-COLUMN($E70)))","v":156.26},{"$f":"SUM(VLOOKUP($E70,AllData,COLUMN()-6-COLUMN($E70)),VLOOKUP($E70-1,AllData,COLUMN()-6-COLUMN($E70)),VLOOKUP($E70-2,AllData,COLUMN()-6-COLUMN($E70)),VLOOKUP($E70-3,AllData,COLUMN()-6-COLUMN($E70)),VLOOKUP($E70-4,AllData,COLUMN()-6-COLUMN($E70)),VLOOKUP($E70-5,AllData,COLUMN()-6-COLUMN($E70)),VLOOKUP($E70-6,AllData,COLUMN()-6-COLUMN($E70)),VLOOKUP($E70-7,AllData,COLUMN()-6-COLUMN($E70)),VLOOKUP($E70-8,AllData,COLUMN()-6-COLUMN($E70)),VLOOKUP($E70-9,AllData,COLUMN()-6-COLUMN($E70)),VLOOKUP($E70-10,AllData,COLUMN()-6-COLUMN($E70)),VLOOKUP($E70-11,AllData,COLUMN()-6-COLUMN($E70)),VLOOKUP($E70-12,AllData,COLUMN()-6-COLUMN($E70)),VLOOKUP($E70-13,AllData,COLUMN()-6-COLUMN($E70)),VLOOKUP($E70-14,AllData,COLUMN()-6-COLUMN($E70)),VLOOKUP($E70-15,AllData,COLUMN()-6-COLUMN($E70)),VLOOKUP($E70-16,AllData,COLUMN()-6-COLUMN($E70)),VLOOKUP($E70-17,AllData,COLUMN()-6-COLUMN($E70)),VLOOKUP($E70-18,AllData,COLUMN()-6-COLUMN($E70)),VLOOKUP($E70-19,AllData,COLUMN()-6-COLUMN($E70)),VLOOKUP($E70-20,AllData,COLUMN()-6-COLUMN($E70)),VLOOKUP($E70-21,AllData,COLUMN()-6-COLUMN($E70)),VLOOKUP($E70-22,AllData,COLUMN()-6-COLUMN($E70)),VLOOKUP($E70-23,AllData,COLUMN()-6-COLUMN($E70)),VLOOKUP($E70-24,AllData,COLUMN()-6-COLUMN($E70)),VLOOKUP($E70-25,AllData,COLUMN()-6-COLUMN($E70)),VLOOKUP($E70-26,AllData,COLUMN()-6-COLUMN($E70)),VLOOKUP($E70-27,AllData,COLUMN()-6-COLUMN($E70)),VLOOKUP($E70-28,AllData,COLUMN()-6-COLUMN($E70)),VLOOKUP($E70-29,AllData,COLUMN()-6-COLUMN($E70)))","v":656.22},{"$f":"VLOOKUP($E70,AllData,COLUMN()-7-COLUMN($E70))","v":33},{"$f":"OR('Cool Graph'!$I$1=35,'Cool Graph'!$I$1=36,'Cool Graph'!$I$1=37,'Cool Graph'!$I$1=38,'Cool Graph'!$I$1=39,'Cool Graph'!$I$1=40,'Cool Graph'!$I$1=41,'Cool Graph'!$I$1=42,'Cool Graph'!$I$1=43,'Cool Graph'!$I$1=44,'Cool Graph'!$I$1=45,'Cool Graph'!$I$1=46,'Cool Graph'!$I$1=47,'Cool Graph'!$I$1=58,'Cool Graph'!$I$1=66)","v":false}]
["2011-09-08",{"$f":"OFFSET(OldSchoolJustValues!A71,0,'Cool Graph'!$H$1)","v":0},{"$f":"OFFSET(OldSchoolJustValues!A71,0,'Cool Graph'!$I$1)","v":852.87364984258579},null,{"$f":"IF(NewDate>EndDate,NA(),NewDate)","v":"2011-12-04"},{"$f":"IF($E71>EndDate,NA(),IF($K$2=TRUE,N71,IF('Cool Graph'!$B$17=1,N71,IF('Cool Graph'!$B$17=2,L71,IF('Cool Graph'!$B$17=3,M71,)))))","v":88.16},{"$f":"IF($E71>EndDate,NA(),IF($O$2=TRUE,J71,IF('Cool Graph'!$B$17=1,Data1!J71,IF('Cool Graph'!$B$17=2,Data1!H71,IF('Cool Graph'!$B$17=3,Data1!I71,)))))","v":1132.4790198015687},{"$f":"SUM(VLOOKUP($E71,AllData,COLUMN()-COLUMN($E71)),VLOOKUP($E71-1,AllData,COLUMN()-COLUMN($E71)),VLOOKUP($E71-2,AllData,COLUMN()-COLUMN($E71)),VLOOKUP($E71-3,AllData,COLUMN()-COLUMN($E71)),VLOOKUP($E71-4,AllData,COLUMN()-COLUMN($E71)),VLOOKUP($E71-5,AllData,COLUMN()-COLUMN($E71)),VLOOKUP($E71-6,AllData,COLUMN()-COLUMN($E71)))","v":4908.0854598923424},{"$f":"SUM(VLOOKUP($E71,AllData,COLUMN()-1-COLUMN($E71)),VLOOKUP($E71-1,AllData,COLUMN()-1-COLUMN($E71)),VLOOKUP($E71-2,AllData,COLUMN()-1-COLUMN($E71)),VLOOKUP($E71-3,AllData,COLUMN()-1-COLUMN($E71)),VLOOKUP($E71-4,AllData,COLUMN()-1-COLUMN($E71)),VLOOKUP($E71-5,AllData,COLUMN()-1-COLUMN($E71)),VLOOKUP($E71-6,AllData,COLUMN()-1-COLUMN($E71)),VLOOKUP($E71-7,AllData,COLUMN()-1-COLUMN($E71)),VLOOKUP($E71-8,AllData,COLUMN()-1-COLUMN($E71)),VLOOKUP($E71-9,AllData,COLUMN()-1-COLUMN($E71)),VLOOKUP($E71-10,AllData,COLUMN()-1-COLUMN($E71)),VLOOKUP($E71-11,AllData,COLUMN()-1-COLUMN($E71)),VLOOKUP($E71-12,AllData,COLUMN()-1-COLUMN($E71)),VLOOKUP($E71-13,AllData,COLUMN()-1-COLUMN($E71)),VLOOKUP($E71-14,AllData,COLUMN()-1-COLUMN($E71)),VLOOKUP($E71-15,AllData,COLUMN()-1-COLUMN($E71)),VLOOKUP($E71-16,AllData,COLUMN()-1-COLUMN($E71)),VLOOKUP($E71-17,AllData,COLUMN()-1-COLUMN($E71)),VLOOKUP($E71-18,AllData,COLUMN()-1-COLUMN($E71)),VLOOKUP($E71-19,AllData,COLUMN()-1-COLUMN($E71)),VLOOKUP($E71-20,AllData,COLUMN()-1-COLUMN($E71)),VLOOKUP($E71-21,AllData,COLUMN()-1-COLUMN($E71)),VLOOKUP($E71-22,AllData,COLUMN()-1-COLUMN($E71)),VLOOKUP($E71-23,AllData,COLUMN()-1-COLUMN($E71)),VLOOKUP($E71-24,AllData,COLUMN()-1-COLUMN($E71)),VLOOKUP($E71-25,AllData,COLUMN()-1-COLUMN($E71)),VLOOKUP($E71-26,AllData,COLUMN()-1-COLUMN($E71)),VLOOKUP($E71-27,AllData,COLUMN()-1-COLUMN($E71)),VLOOKUP($E71-28,AllData,COLUMN()-1-COLUMN($E71)),VLOOKUP($E71-29,AllData,COLUMN()-1-COLUMN($E71)))","v":14421.241819694598},{"$f":"VLOOKUP($E71,AllData,COLUMN()-2-COLUMN($E71))","v":1132.4790198015687},{"$f":"OR('Cool Graph'!$H$1=35,'Cool Graph'!$H$1=36,'Cool Graph'!$H$1=37,'Cool Graph'!$H$1=38,'Cool Graph'!$H$1=39,'Cool Graph'!$H$1=40,'Cool Graph'!$H$1=41,'Cool Graph'!$H$1=42,'Cool Graph'!$H$1=43,'Cool Graph'!$H$1=44,'Cool Graph'!$H$1=45,'Cool Graph'!$H$1=46,'Cool Graph'!$H$1=47,'Cool Graph'!$H$1=58,'Cool Graph'!$H$1=66)","v":false},{"$f":"SUM(VLOOKUP($E71,AllData,COLUMN()-5-COLUMN($E71)),VLOOKUP($E71-1,AllData,COLUMN()-5-COLUMN($E71)),VLOOKUP($E71-2,AllData,COLUMN()-5-COLUMN($E71)),VLOOKUP($E71-3,AllData,COLUMN()-5-COLUMN($E71)),VLOOKUP($E71-4,AllData,COLUMN()-5-COLUMN($E71)),VLOOKUP($E71-5,AllData,COLUMN()-5-COLUMN($E71)),VLOOKUP($E71-6,AllData,COLUMN()-5-COLUMN($E71)))","v":144.42000000000002},{"$f":"SUM(VLOOKUP($E71,AllData,COLUMN()-6-COLUMN($E71)),VLOOKUP($E71-1,AllData,COLUMN()-6-COLUMN($E71)),VLOOKUP($E71-2,AllData,COLUMN()-6-COLUMN($E71)),VLOOKUP($E71-3,AllData,COLUMN()-6-COLUMN($E71)),VLOOKUP($E71-4,AllData,COLUMN()-6-COLUMN($E71)),VLOOKUP($E71-5,AllData,COLUMN()-6-COLUMN($E71)),VLOOKUP($E71-6,AllData,COLUMN()-6-COLUMN($E71)),VLOOKUP($E71-7,AllData,COLUMN()-6-COLUMN($E71)),VLOOKUP($E71-8,AllData,COLUMN()-6-COLUMN($E71)),VLOOKUP($E71-9,AllData,COLUMN()-6-COLUMN($E71)),VLOOKUP($E71-10,AllData,COLUMN()-6-COLUMN($E71)),VLOOKUP($E71-11,AllData,COLUMN()-6-COLUMN($E71)),VLOOKUP($E71-12,AllData,COLUMN()-6-COLUMN($E71)),VLOOKUP($E71-13,AllData,COLUMN()-6-COLUMN($E71)),VLOOKUP($E71-14,AllData,COLUMN()-6-COLUMN($E71)),VLOOKUP($E71-15,AllData,COLUMN()-6-COLUMN($E71)),VLOOKUP($E71-16,AllData,COLUMN()-6-COLUMN($E71)),VLOOKUP($E71-17,AllData,COLUMN()-6-COLUMN($E71)),VLOOKUP($E71-18,AllData,COLUMN()-6-COLUMN($E71)),VLOOKUP($E71-19,AllData,COLUMN()-6-COLUMN($E71)),VLOOKUP($E71-20,AllData,COLUMN()-6-COLUMN($E71)),VLOOKUP($E71-21,AllData,COLUMN()-6-COLUMN($E71)),VLOOKUP($E71-22,AllData,COLUMN()-6-COLUMN($E71)),VLOOKUP($E71-23,AllData,COLUMN()-6-COLUMN($E71)),VLOOKUP($E71-24,AllData,COLUMN()-6-COLUMN($E71)),VLOOKUP($E71-25,AllData,COLUMN()-6-COLUMN($E71)),VLOOKUP($E71-26,AllData,COLUMN()-6-COLUMN($E71)),VLOOKUP($E71-27,AllData,COLUMN()-6-COLUMN($E71)),VLOOKUP($E71-28,AllData,COLUMN()-6-COLUMN($E71)),VLOOKUP($E71-29,AllData,COLUMN()-6-COLUMN($E71)))","v":744.38000000000011},{"$f":"VLOOKUP($E71,AllData,COLUMN()-7-COLUMN($E71))","v":88.16},{"$f":"OR('Cool Graph'!$I$1=35,'Cool Graph'!$I$1=36,'Cool Graph'!$I$1=37,'Cool Graph'!$I$1=38,'Cool Graph'!$I$1=39,'Cool Graph'!$I$1=40,'Cool Graph'!$I$1=41,'Cool Graph'!$I$1=42,'Cool Graph'!$I$1=43,'Cool Graph'!$I$1=44,'Cool Graph'!$I$1=45,'Cool Graph'!$I$1=46,'Cool Graph'!$I$1=47,'Cool Graph'!$I$1=58,'Cool Graph'!$I$1=66)","v":false}]
["2011-09-09",{"$f":"OFFSET(OldSchoolJustValues!A72,0,'Cool Graph'!$H$1)","v":0},{"$f":"OFFSET(OldSchoolJustValues!A72,0,'Cool Graph'!$I$1)","v":184.81618472341114},null,{"$f":"IF(NewDate>EndDate,NA(),NewDate)","v":"2011-12-05"},{"$f":"IF($E72>EndDate,NA(),IF($K$2=TRUE,N72,IF('Cool Graph'!$B$17=1,N72,IF('Cool Graph'!$B$17=2,L72,IF('Cool Graph'!$B$17=3,M72,)))))","v":8.5399999999999991},{"$f":"IF($E72>EndDate,NA(),IF($O$2=TRUE,J72,IF('Cool Graph'!$B$17=1,Data1!J72,IF('Cool Graph'!$B$17=2,Data1!H72,IF('Cool Graph'!$B$17=3,Data1!I72,)))))","v":2385.8733160007228},{"$f":"SUM(VLOOKUP($E72,AllData,COLUMN()-COLUMN($E72)),VLOOKUP($E72-1,AllData,COLUMN()-COLUMN($E72)),VLOOKUP($E72-2,AllData,COLUMN()-COLUMN($E72)),VLOOKUP($E72-3,AllData,COLUMN()-COLUMN($E72)),VLOOKUP($E72-4,AllData,COLUMN()-COLUMN($E72)),VLOOKUP($E72-5,AllData,COLUMN()-COLUMN($E72)),VLOOKUP($E72-6,AllData,COLUMN()-COLUMN($E72)))","v":5601.8968774314208},{"$f":"SUM(VLOOKUP($E72,AllData,COLUMN()-1-COLUMN($E72)),VLOOKUP($E72-1,AllData,COLUMN()-1-COLUMN($E72)),VLOOKUP($E72-2,AllData,COLUMN()-1-COLUMN($E72)),VLOOKUP($E72-3,AllData,COLUMN()-1-COLUMN($E72)),VLOOKUP($E72-4,AllData,COLUMN()-1-COLUMN($E72)),VLOOKUP($E72-5,AllData,COLUMN()-1-COLUMN($E72)),VLOOKUP($E72-6,AllData,COLUMN()-1-COLUMN($E72)),VLOOKUP($E72-7,AllData,COLUMN()-1-COLUMN($E72)),VLOOKUP($E72-8,AllData,COLUMN()-1-COLUMN($E72)),VLOOKUP($E72-9,AllData,COLUMN()-1-COLUMN($E72)),VLOOKUP($E72-10,AllData,COLUMN()-1-COLUMN($E72)),VLOOKUP($E72-11,AllData,COLUMN()-1-COLUMN($E72)),VLOOKUP($E72-12,AllData,COLUMN()-1-COLUMN($E72)),VLOOKUP($E72-13,AllData,COLUMN()-1-COLUMN($E72)),VLOOKUP($E72-14,AllData,COLUMN()-1-COLUMN($E72)),VLOOKUP($E72-15,AllData,COLUMN()-1-COLUMN($E72)),VLOOKUP($E72-16,AllData,COLUMN()-1-COLUMN($E72)),VLOOKUP($E72-17,AllData,COLUMN()-1-COLUMN($E72)),VLOOKUP($E72-18,AllData,COLUMN()-1-COLUMN($E72)),VLOOKUP($E72-19,AllData,COLUMN()-1-COLUMN($E72)),VLOOKUP($E72-20,AllData,COLUMN()-1-COLUMN($E72)),VLOOKUP($E72-21,AllData,COLUMN()-1-COLUMN($E72)),VLOOKUP($E72-22,AllData,COLUMN()-1-COLUMN($E72)),VLOOKUP($E72-23,AllData,COLUMN()-1-COLUMN($E72)),VLOOKUP($E72-24,AllData,COLUMN()-1-COLUMN($E72)),VLOOKUP($E72-25,AllData,COLUMN()-1-COLUMN($E72)),VLOOKUP($E72-26,AllData,COLUMN()-1-COLUMN($E72)),VLOOKUP($E72-27,AllData,COLUMN()-1-COLUMN($E72)),VLOOKUP($E72-28,AllData,COLUMN()-1-COLUMN($E72)),VLOOKUP($E72-29,AllData,COLUMN()-1-COLUMN($E72)))","v":16782.331880859514},{"$f":"VLOOKUP($E72,AllData,COLUMN()-2-COLUMN($E72))","v":2385.8733160007228},{"$f":"OR('Cool Graph'!$H$1=35,'Cool Graph'!$H$1=36,'Cool Graph'!$H$1=37,'Cool Graph'!$H$1=38,'Cool Graph'!$H$1=39,'Cool Graph'!$H$1=40,'Cool Graph'!$H$1=41,'Cool Graph'!$H$1=42,'Cool Graph'!$H$1=43,'Cool Graph'!$H$1=44,'Cool Graph'!$H$1=45,'Cool Graph'!$H$1=46,'Cool Graph'!$H$1=47,'Cool Graph'!$H$1=58,'Cool Graph'!$H$1=66)","v":false},{"$f":"SUM(VLOOKUP($E72,AllData,COLUMN()-5-COLUMN($E72)),VLOOKUP($E72-1,AllData,COLUMN()-5-COLUMN($E72)),VLOOKUP($E72-2,AllData,COLUMN()-5-COLUMN($E72)),VLOOKUP($E72-3,AllData,COLUMN()-5-COLUMN($E72)),VLOOKUP($E72-4,AllData,COLUMN()-5-COLUMN($E72)),VLOOKUP($E72-5,AllData,COLUMN()-5-COLUMN($E72)),VLOOKUP($E72-6,AllData,COLUMN()-5-COLUMN($E72)))","v":132.79999999999998},{"$f":"SUM(VLOOKUP($E72,AllData,COLUMN()-6-COLUMN($E72)),VLOOKUP($E72-1,AllData,COLUMN()-6-COLUMN($E72)),VLOOKUP($E72-2,AllData,COLUMN()-6-COLUMN($E72)),VLOOKUP($E72-3,AllData,COLUMN()-6-COLUMN($E72)),VLOOKUP($E72-4,AllData,COLUMN()-6-COLUMN($E72)),VLOOKUP($E72-5,AllData,COLUMN()-6-COLUMN($E72)),VLOOKUP($E72-6,AllData,COLUMN()-6-COLUMN($E72)),VLOOKUP($E72-7,AllData,COLUMN()-6-COLUMN($E72)),VLOOKUP($E72-8,AllData,COLUMN()-6-COLUMN($E72)),VLOOKUP($E72-9,AllData,COLUMN()-6-COLUMN($E72)),VLOOKUP($E72-10,AllData,COLUMN()-6-COLUMN($E72)),VLOOKUP($E72-11,AllData,COLUMN()-6-COLUMN($E72)),VLOOKUP($E72-12,AllData,COLUMN()-6-COLUMN($E72)),VLOOKUP($E72-13,AllData,COLUMN()-6-COLUMN($E72)),VLOOKUP($E72-14,AllData,COLUMN()-6-COLUMN($E72)),VLOOKUP($E72-15,AllData,COLUMN()-6-COLUMN($E72)),VLOOKUP($E72-16,AllData,COLUMN()-6-COLUMN($E72)),VLOOKUP($E72-17,AllData,COLUMN()-6-COLUMN($E72)),VLOOKUP($E72-18,AllData,COLUMN()-6-COLUMN($E72)),VLOOKUP($E72-19,AllData,COLUMN()-6-COLUMN($E72)),VLOOKUP($E72-20,AllData,COLUMN()-6-COLUMN($E72)),VLOOKUP($E72-21,AllData,COLUMN()-6-COLUMN($E72)),VLOOKUP($E72-22,AllData,COLUMN()-6-COLUMN($E72)),VLOOKUP($E72-23,AllData,COLUMN()-6-COLUMN($E72)),VLOOKUP($E72-24,AllData,COLUMN()-6-COLUMN($E72)),VLOOKUP($E72-25,AllData,COLUMN()-6-COLUMN($E72)),VLOOKUP($E72-26,AllData,COLUMN()-6-COLUMN($E72)),VLOOKUP($E72-27,AllData,COLUMN()-6-COLUMN($E72)),VLOOKUP($E72-28,AllData,COLUMN()-6-COLUMN($E72)),VLOOKUP($E72-29,AllData,COLUMN()-6-COLUMN($E72)))","v":752.92000000000007},{"$f":"VLOOKUP($E72,AllData,COLUMN()-7-COLUMN($E72))","v":8.5399999999999991},{"$f":"OR('Cool Graph'!$I$1=35,'Cool Graph'!$I$1=36,'Cool Graph'!$I$1=37,'Cool Graph'!$I$1=38,'Cool Graph'!$I$1=39,'Cool Graph'!$I$1=40,'Cool Graph'!$I$1=41,'Cool Graph'!$I$1=42,'Cool Graph'!$I$1=43,'Cool Graph'!$I$1=44,'Cool Graph'!$I$1=45,'Cool Graph'!$I$1=46,'Cool Graph'!$I$1=47,'Cool Graph'!$I$1=58,'Cool Graph'!$I$1=66)","v":false}]
["2011-09-10",{"$f":"OFFSET(OldSchoolJustValues!A73,0,'Cool Graph'!$H$1)","v":0},{"$f":"OFFSET(OldSchoolJustValues!A73,0,'Cool Graph'!$I$1)","v":64.949949162680838},null,{"$f":"IF(NewDate>EndDate,NA(),NewDate)","v":"2011-12-06"},{"$f":"IF($E73>EndDate,NA(),IF($K$2=TRUE,N73,IF('Cool Graph'!$B$17=1,N73,IF('Cool Graph'!$B$17=2,L73,IF('Cool Graph'!$B$17=3,M73,)))))","v":1.21},{"$f":"IF($E73>EndDate,NA(),IF($O$2=TRUE,J73,IF('Cool Graph'!$B$17=1,Data1!J73,IF('Cool Graph'!$B$17=2,Data1!H73,IF('Cool Graph'!$B$17=3,Data1!I73,)))))","v":1338.316348343395},{"$f":"SUM(VLOOKUP($E73,AllData,COLUMN()-COLUMN($E73)),VLOOKUP($E73-1,AllData,COLUMN()-COLUMN($E73)),VLOOKUP($E73-2,AllData,COLUMN()-COLUMN($E73)),VLOOKUP($E73-3,AllData,COLUMN()-COLUMN($E73)),VLOOKUP($E73-4,AllData,COLUMN()-COLUMN($E73)),VLOOKUP($E73-5,AllData,COLUMN()-COLUMN($E73)),VLOOKUP($E73-6,AllData,COLUMN()-COLUMN($E73)))","v":6010.161734071361},{"$f":"SUM(VLOOKUP($E73,AllData,COLUMN()-1-COLUMN($E73)),VLOOKUP($E73-1,AllData,COLUMN()-1-COLUMN($E73)),VLOOKUP($E73-2,AllData,COLUMN()-1-COLUMN($E73)),VLOOKUP($E73-3,AllData,COLUMN()-1-COLUMN($E73)),VLOOKUP($E73-4,AllData,COLUMN()-1-COLUMN($E73)),VLOOKUP($E73-5,AllData,COLUMN()-1-COLUMN($E73)),VLOOKUP($E73-6,AllData,COLUMN()-1-COLUMN($E73)),VLOOKUP($E73-7,AllData,COLUMN()-1-COLUMN($E73)),VLOOKUP($E73-8,AllData,COLUMN()-1-COLUMN($E73)),VLOOKUP($E73-9,AllData,COLUMN()-1-COLUMN($E73)),VLOOKUP($E73-10,AllData,COLUMN()-1-COLUMN($E73)),VLOOKUP($E73-11,AllData,COLUMN()-1-COLUMN($E73)),VLOOKUP($E73-12,AllData,COLUMN()-1-COLUMN($E73)),VLOOKUP($E73-13,AllData,COLUMN()-1-COLUMN($E73)),VLOOKUP($E73-14,AllData,COLUMN()-1-COLUMN($E73)),VLOOKUP($E73-15,AllData,COLUMN()-1-COLUMN($E73)),VLOOKUP($E73-16,AllData,COLUMN()-1-COLUMN($E73)),VLOOKUP($E73-17,AllData,COLUMN()-1-COLUMN($E73)),VLOOKUP($E73-18,AllData,COLUMN()-1-COLUMN($E73)),VLOOKUP($E73-19,AllData,COLUMN()-1-COLUMN($E73)),VLOOKUP($E73-20,AllData,COLUMN()-1-COLUMN($E73)),VLOOKUP($E73-21,AllData,COLUMN()-1-COLUMN($E73)),VLOOKUP($E73-22,AllData,COLUMN()-1-COLUMN($E73)),VLOOKUP($E73-23,AllData,COLUMN()-1-COLUMN($E73)),VLOOKUP($E73-24,AllData,COLUMN()-1-COLUMN($E73)),VLOOKUP($E73-25,AllData,COLUMN()-1-COLUMN($E73)),VLOOKUP($E73-26,AllData,COLUMN()-1-COLUMN($E73)),VLOOKUP($E73-27,AllData,COLUMN()-1-COLUMN($E73)),VLOOKUP($E73-28,AllData,COLUMN()-1-COLUMN($E73)),VLOOKUP($E73-29,AllData,COLUMN()-1-COLUMN($E73)))","v":17568.345150986552},{"$f":"VLOOKUP($E73,AllData,COLUMN()-2-COLUMN($E73))","v":1338.316348343395},{"$f":"OR('Cool Graph'!$H$1=35,'Cool Graph'!$H$1=36,'Cool Graph'!$H$1=37,'Cool Graph'!$H$1=38,'Cool Graph'!$H$1=39,'Cool Graph'!$H$1=40,'Cool Graph'!$H$1=41,'Cool Graph'!$H$1=42,'Cool Graph'!$H$1=43,'Cool Graph'!$H$1=44,'Cool Graph'!$H$1=45,'Cool Graph'!$H$1=46,'Cool Graph'!$H$1=47,'Cool Graph'!$H$1=58,'Cool Graph'!$H$1=66)","v":false},{"$f":"SUM(VLOOKUP($E73,AllData,COLUMN()-5-COLUMN($E73)),VLOOKUP($E73-1,AllData,COLUMN()-5-COLUMN($E73)),VLOOKUP($E73-2,AllData,COLUMN()-5-COLUMN($E73)),VLOOKUP($E73-3,AllData,COLUMN()-5-COLUMN($E73)),VLOOKUP($E73-4,AllData,COLUMN()-5-COLUMN($E73)),VLOOKUP($E73-5,AllData,COLUMN()-5-COLUMN($E73)),VLOOKUP($E73-6,AllData,COLUMN()-5-COLUMN($E73)))","v":134.01},{"$f":"SUM(VLOOKUP($E73,AllData,COLUMN()-6-COLUMN($E73)),VLOOKUP($E73-1,AllData,COLUMN()-6-COLUMN($E73)),VLOOKUP($E73-2,AllData,COLUMN()-6-COLUMN($E73)),VLOOKUP($E73-3,AllData,COLUMN()-6-COLUMN($E73)),VLOOKUP($E73-4,AllData,COLUMN()-6-COLUMN($E73)),VLOOKUP($E73-5,AllData,COLUMN()-6-COLUMN($E73)),VLOOKUP($E73-6,AllData,COLUMN()-6-COLUMN($E73)),VLOOKUP($E73-7,AllData,COLUMN()-6-COLUMN($E73)),VLOOKUP($E73-8,AllData,COLUMN()-6-COLUMN($E73)),VLOOKUP($E73-9,AllData,COLUMN()-6-COLUMN($E73)),VLOOKUP($E73-10,AllData,COLUMN()-6-COLUMN($E73)),VLOOKUP($E73-11,AllData,COLUMN()-6-COLUMN($E73)),VLOOKUP($E73-12,AllData,COLUMN()-6-COLUMN($E73)),VLOOKUP($E73-13,AllData,COLUMN()-6-COLUMN($E73)),VLOOKUP($E73-14,AllData,COLUMN()-6-COLUMN($E73)),VLOOKUP($E73-15,AllData,COLUMN()-6-COLUMN($E73)),VLOOKUP($E73-16,AllData,COLUMN()-6-COLUMN($E73)),VLOOKUP($E73-17,AllData,COLUMN()-6-COLUMN($E73)),VLOOKUP($E73-18,AllData,COLUMN()-6-COLUMN($E73)),VLOOKUP($E73-19,AllData,COLUMN()-6-COLUMN($E73)),VLOOKUP($E73-20,AllData,COLUMN()-6-COLUMN($E73)),VLOOKUP($E73-21,AllData,COLUMN()-6-COLUMN($E73)),VLOOKUP($E73-22,AllData,COLUMN()-6-COLUMN($E73)),VLOOKUP($E73-23,AllData,COLUMN()-6-COLUMN($E73)),VLOOKUP($E73-24,AllData,COLUMN()-6-COLUMN($E73)),VLOOKUP($E73-25,AllData,COLUMN()-6-COLUMN($E73)),VLOOKUP($E73-26,AllData,COLUMN()-6-COLUMN($E73)),VLOOKUP($E73-27,AllData,COLUMN()-6-COLUMN($E73)),VLOOKUP($E73-28,AllData,COLUMN()-6-COLUMN($E73)),VLOOKUP($E73-29,AllData,COLUMN()-6-COLUMN($E73)))","v":754.13},{"$f":"VLOOKUP($E73,AllData,COLUMN()-7-COLUMN($E73))","v":1.21},{"$f":"OR('Cool Graph'!$I$1=35,'Cool Graph'!$I$1=36,'Cool Graph'!$I$1=37,'Cool Graph'!$I$1=38,'Cool Graph'!$I$1=39,'Cool Graph'!$I$1=40,'Cool Graph'!$I$1=41,'Cool Graph'!$I$1=42,'Cool Graph'!$I$1=43,'Cool Graph'!$I$1=44,'Cool Graph'!$I$1=45,'Cool Graph'!$I$1=46,'Cool Graph'!$I$1=47,'Cool Graph'!$I$1=58,'Cool Graph'!$I$1=66)","v":false}]
["2011-09-11",{"$f":"OFFSET(OldSchoolJustValues!A74,0,'Cool Graph'!$H$1)","v":0},{"$f":"OFFSET(OldSchoolJustValues!A74,0,'Cool Graph'!$I$1)","v":259.5114252233999},null,{"$f":"IF(NewDate>EndDate,NA(),NewDate)","v":"2011-12-07"},{"$f":"IF($E74>EndDate,NA(),IF($K$2=TRUE,N74,IF('Cool Graph'!$B$17=1,N74,IF('Cool Graph'!$B$17=2,L74,IF('Cool Graph'!$B$17=3,M74,)))))","v":88.83},{"$f":"IF($E74>EndDate,NA(),IF($O$2=TRUE,J74,IF('Cool Graph'!$B$17=1,Data1!J74,IF('Cool Graph'!$B$17=2,Data1!H74,IF('Cool Graph'!$B$17=3,Data1!I74,)))))","v":462.07180900603691},{"$f":"SUM(VLOOKUP($E74,AllData,COLUMN()-COLUMN($E74)),VLOOKUP($E74-1,AllData,COLUMN()-COLUMN($E74)),VLOOKUP($E74-2,AllData,COLUMN()-COLUMN($E74)),VLOOKUP($E74-3,AllData,COLUMN()-COLUMN($E74)),VLOOKUP($E74-4,AllData,COLUMN()-COLUMN($E74)),VLOOKUP($E74-5,AllData,COLUMN()-COLUMN($E74)),VLOOKUP($E74-6,AllData,COLUMN()-COLUMN($E74)))","v":6269.2456311579408},{"$f":"SUM(VLOOKUP($E74,AllData,COLUMN()-1-COLUMN($E74)),VLOOKUP($E74-1,AllData,COLUMN()-1-COLUMN($E74)),VLOOKUP($E74-2,AllData,COLUMN()-1-COLUMN($E74)),VLOOKUP($E74-3,AllData,COLUMN()-1-COLUMN($E74)),VLOOKUP($E74-4,AllData,COLUMN()-1-COLUMN($E74)),VLOOKUP($E74-5,AllData,COLUMN()-1-COLUMN($E74)),VLOOKUP($E74-6,AllData,COLUMN()-1-COLUMN($E74)),VLOOKUP($E74-7,AllData,COLUMN()-1-COLUMN($E74)),VLOOKUP($E74-8,AllData,COLUMN()-1-COLUMN($E74)),VLOOKUP($E74-9,AllData,COLUMN()-1-COLUMN($E74)),VLOOKUP($E74-10,AllData,COLUMN()-1-COLUMN($E74)),VLOOKUP($E74-11,AllData,COLUMN()-1-COLUMN($E74)),VLOOKUP($E74-12,AllData,COLUMN()-1-COLUMN($E74)),VLOOKUP($E74-13,AllData,COLUMN()-1-COLUMN($E74)),VLOOKUP($E74-14,AllData,COLUMN()-1-COLUMN($E74)),VLOOKUP($E74-15,AllData,COLUMN()-1-COLUMN($E74)),VLOOKUP($E74-16,AllData,COLUMN()-1-COLUMN($E74)),VLOOKUP($E74-17,AllData,COLUMN()-1-COLUMN($E74)),VLOOKUP($E74-18,AllData,COLUMN()-1-COLUMN($E74)),VLOOKUP($E74-19,AllData,COLUMN()-1-COLUMN($E74)),VLOOKUP($E74-20,AllData,COLUMN()-1-COLUMN($E74)),VLOOKUP($E74-21,AllData,COLUMN()-1-COLUMN($E74)),VLOOKUP($E74-22,AllData,COLUMN()-1-COLUMN($E74)),VLOOKUP($E74-23,AllData,COLUMN()-1-COLUMN($E74)),VLOOKUP($E74-24,AllData,COLUMN()-1-COLUMN($E74)),VLOOKUP($E74-25,AllData,COLUMN()-1-COLUMN($E74)),VLOOKUP($E74-26,AllData,COLUMN()-1-COLUMN($E74)),VLOOKUP($E74-27,AllData,COLUMN()-1-COLUMN($E74)),VLOOKUP($E74-28,AllData,COLUMN()-1-COLUMN($E74)),VLOOKUP($E74-29,AllData,COLUMN()-1-COLUMN($E74)))","v":17631.592228744557},{"$f":"VLOOKUP($E74,AllData,COLUMN()-2-COLUMN($E74))","v":462.07180900603691},{"$f":"OR('Cool Graph'!$H$1=35,'Cool Graph'!$H$1=36,'Cool Graph'!$H$1=37,'Cool Graph'!$H$1=38,'Cool Graph'!$H$1=39,'Cool Graph'!$H$1=40,'Cool Graph'!$H$1=41,'Cool Graph'!$H$1=42,'Cool Graph'!$H$1=43,'Cool Graph'!$H$1=44,'Cool Graph'!$H$1=45,'Cool Graph'!$H$1=46,'Cool Graph'!$H$1=47,'Cool Graph'!$H$1=58,'Cool Graph'!$H$1=66)","v":false},{"$f":"SUM(VLOOKUP($E74,AllData,COLUMN()-5-COLUMN($E74)),VLOOKUP($E74-1,AllData,COLUMN()-5-COLUMN($E74)),VLOOKUP($E74-2,AllData,COLUMN()-5-COLUMN($E74)),VLOOKUP($E74-3,AllData,COLUMN()-5-COLUMN($E74)),VLOOKUP($E74-4,AllData,COLUMN()-5-COLUMN($E74)),VLOOKUP($E74-5,AllData,COLUMN()-5-COLUMN($E74)),VLOOKUP($E74-6,AllData,COLUMN()-5-COLUMN($E74)))","v":222.74999999999997},{"$f":"SUM(VLOOKUP($E74,AllData,COLUMN()-6-COLUMN($E74)),VLOOKUP($E74-1,AllData,COLUMN()-6-COLUMN($E74)),VLOOKUP($E74-2,AllData,COLUMN()-6-COLUMN($E74)),VLOOKUP($E74-3,AllData,COLUMN()-6-COLUMN($E74)),VLOOKUP($E74-4,AllData,COLUMN()-6-COLUMN($E74)),VLOOKUP($E74-5,AllData,COLUMN()-6-COLUMN($E74)),VLOOKUP($E74-6,AllData,COLUMN()-6-COLUMN($E74)),VLOOKUP($E74-7,AllData,COLUMN()-6-COLUMN($E74)),VLOOKUP($E74-8,AllData,COLUMN()-6-COLUMN($E74)),VLOOKUP($E74-9,AllData,COLUMN()-6-COLUMN($E74)),VLOOKUP($E74-10,AllData,COLUMN()-6-COLUMN($E74)),VLOOKUP($E74-11,AllData,COLUMN()-6-COLUMN($E74)),VLOOKUP($E74-12,AllData,COLUMN()-6-COLUMN($E74)),VLOOKUP($E74-13,AllData,COLUMN()-6-COLUMN($E74)),VLOOKUP($E74-14,AllData,COLUMN()-6-COLUMN($E74)),VLOOKUP($E74-15,AllData,COLUMN()-6-COLUMN($E74)),VLOOKUP($E74-16,AllData,COLUMN()-6-COLUMN($E74)),VLOOKUP($E74-17,AllData,COLUMN()-6-COLUMN($E74)),VLOOKUP($E74-18,AllData,COLUMN()-6-COLUMN($E74)),VLOOKUP($E74-19,AllData,COLUMN()-6-COLUMN($E74)),VLOOKUP($E74-20,AllData,COLUMN()-6-COLUMN($E74)),VLOOKUP($E74-21,AllData,COLUMN()-6-COLUMN($E74)),VLOOKUP($E74-22,AllData,COLUMN()-6-COLUMN($E74)),VLOOKUP($E74-23,AllData,COLUMN()-6-COLUMN($E74)),VLOOKUP($E74-24,AllData,COLUMN()-6-COLUMN($E74)),VLOOKUP($E74-25,AllData,COLUMN()-6-COLUMN($E74)),VLOOKUP($E74-26,AllData,COLUMN()-6-COLUMN($E74)),VLOOKUP($E74-27,AllData,COLUMN()-6-COLUMN($E74)),VLOOKUP($E74-28,AllData,COLUMN()-6-COLUMN($E74)),VLOOKUP($E74-29,AllData,COLUMN()-6-COLUMN($E74)))","v":842.96},{"$f":"VLOOKUP($E74,AllData,COLUMN()-7-COLUMN($E74))","v":88.83},{"$f":"OR('Cool Graph'!$I$1=35,'Cool Graph'!$I$1=36,'Cool Graph'!$I$1=37,'Cool Graph'!$I$1=38,'Cool Graph'!$I$1=39,'Cool Graph'!$I$1=40,'Cool Graph'!$I$1=41,'Cool Graph'!$I$1=42,'Cool Graph'!$I$1=43,'Cool Graph'!$I$1=44,'Cool Graph'!$I$1=45,'Cool Graph'!$I$1=46,'Cool Graph'!$I$1=47,'Cool Graph'!$I$1=58,'Cool Graph'!$I$1=66)","v":false}]
["2011-09-12",{"$f":"OFFSET(OldSchoolJustValues!A75,0,'Cool Graph'!$H$1)","v":0},{"$f":"OFFSET(OldSchoolJustValues!A75,0,'Cool Graph'!$I$1)","v":339.72420709505406},null,{"$f":"IF(NewDate>EndDate,NA(),NewDate)","v":"2011-12-08"},{"$f":"IF($E75>EndDate,NA(),IF($K$2=TRUE,N75,IF('Cool Graph'!$B$17=1,N75,IF('Cool Graph'!$B$17=2,L75,IF('Cool Graph'!$B$17=3,M75,)))))","v":50.45},{"$f":"IF($E75>EndDate,NA(),IF($O$2=TRUE,J75,IF('Cool Graph'!$B$17=1,Data1!J75,IF('Cool Graph'!$B$17=2,Data1!H75,IF('Cool Graph'!$B$17=3,Data1!I75,)))))","v":549.62314473512379},{"$f":"SUM(VLOOKUP($E75,AllData,COLUMN()-COLUMN($E75)),VLOOKUP($E75-1,AllData,COLUMN()-COLUMN($E75)),VLOOKUP($E75-2,AllData,COLUMN()-COLUMN($E75)),VLOOKUP($E75-3,AllData,COLUMN()-COLUMN($E75)),VLOOKUP($E75-4,AllData,COLUMN()-COLUMN($E75)),VLOOKUP($E75-5,AllData,COLUMN()-COLUMN($E75)),VLOOKUP($E75-6,AllData,COLUMN()-COLUMN($E75)))","v":6613.6553880197362},{"$f":"SUM(VLOOKUP($E75,AllData,COLUMN()-1-COLUMN($E75)),VLOOKUP($E75-1,AllData,COLUMN()-1-COLUMN($E75)),VLOOKUP($E75-2,AllData,COLUMN()-1-COLUMN($E75)),VLOOKUP($E75-3,AllData,COLUMN()-1-COLUMN($E75)),VLOOKUP($E75-4,AllData,COLUMN()-1-COLUMN($E75)),VLOOKUP($E75-5,AllData,COLUMN()-1-COLUMN($E75)),VLOOKUP($E75-6,AllData,COLUMN()-1-COLUMN($E75)),VLOOKUP($E75-7,AllData,COLUMN()-1-COLUMN($E75)),VLOOKUP($E75-8,AllData,COLUMN()-1-COLUMN($E75)),VLOOKUP($E75-9,AllData,COLUMN()-1-COLUMN($E75)),VLOOKUP($E75-10,AllData,COLUMN()-1-COLUMN($E75)),VLOOKUP($E75-11,AllData,COLUMN()-1-COLUMN($E75)),VLOOKUP($E75-12,AllData,COLUMN()-1-COLUMN($E75)),VLOOKUP($E75-13,AllData,COLUMN()-1-COLUMN($E75)),VLOOKUP($E75-14,AllData,COLUMN()-1-COLUMN($E75)),VLOOKUP($E75-15,AllData,COLUMN()-1-COLUMN($E75)),VLOOKUP($E75-16,AllData,COLUMN()-1-COLUMN($E75)),VLOOKUP($E75-17,AllData,COLUMN()-1-COLUMN($E75)),VLOOKUP($E75-18,AllData,COLUMN()-1-COLUMN($E75)),VLOOKUP($E75-19,AllData,COLUMN()-1-COLUMN($E75)),VLOOKUP($E75-20,AllData,COLUMN()-1-COLUMN($E75)),VLOOKUP($E75-21,AllData,COLUMN()-1-COLUMN($E75)),VLOOKUP($E75-22,AllData,COLUMN()-1-COLUMN($E75)),VLOOKUP($E75-23,AllData,COLUMN()-1-COLUMN($E75)),VLOOKUP($E75-24,AllData,COLUMN()-1-COLUMN($E75)),VLOOKUP($E75-25,AllData,COLUMN()-1-COLUMN($E75)),VLOOKUP($E75-26,AllData,COLUMN()-1-COLUMN($E75)),VLOOKUP($E75-27,AllData,COLUMN()-1-COLUMN($E75)),VLOOKUP($E75-28,AllData,COLUMN()-1-COLUMN($E75)),VLOOKUP($E75-29,AllData,COLUMN()-1-COLUMN($E75)))","v":17574.732295263322},{"$f":"VLOOKUP($E75,AllData,COLUMN()-2-COLUMN($E75))","v":549.62314473512379},{"$f":"OR('Cool Graph'!$H$1=35,'Cool Graph'!$H$1=36,'Cool Graph'!$H$1=37,'Cool Graph'!$H$1=38,'Cool Graph'!$H$1=39,'Cool Graph'!$H$1=40,'Cool Graph'!$H$1=41,'Cool Graph'!$H$1=42,'Cool Graph'!$H$1=43,'Cool Graph'!$H$1=44,'Cool Graph'!$H$1=45,'Cool Graph'!$H$1=46,'Cool Graph'!$H$1=47,'Cool Graph'!$H$1=58,'Cool Graph'!$H$1=66)","v":false},{"$f":"SUM(VLOOKUP($E75,AllData,COLUMN()-5-COLUMN($E75)),VLOOKUP($E75-1,AllData,COLUMN()-5-COLUMN($E75)),VLOOKUP($E75-2,AllData,COLUMN()-5-COLUMN($E75)),VLOOKUP($E75-3,AllData,COLUMN()-5-COLUMN($E75)),VLOOKUP($E75-4,AllData,COLUMN()-5-COLUMN($E75)),VLOOKUP($E75-5,AllData,COLUMN()-5-COLUMN($E75)),VLOOKUP($E75-6,AllData,COLUMN()-5-COLUMN($E75)))","v":271.7},{"$f":"SUM(VLOOKUP($E75,AllData,COLUMN()-6-COLUMN($E75)),VLOOKUP($E75-1,AllData,COLUMN()-6-COLUMN($E75)),VLOOKUP($E75-2,AllData,COLUMN()-6-COLUMN($E75)),VLOOKUP($E75-3,AllData,COLUMN()-6-COLUMN($E75)),VLOOKUP($E75-4,AllData,COLUMN()-6-COLUMN($E75)),VLOOKUP($E75-5,AllData,COLUMN()-6-COLUMN($E75)),VLOOKUP($E75-6,AllData,COLUMN()-6-COLUMN($E75)),VLOOKUP($E75-7,AllData,COLUMN()-6-COLUMN($E75)),VLOOKUP($E75-8,AllData,COLUMN()-6-COLUMN($E75)),VLOOKUP($E75-9,AllData,COLUMN()-6-COLUMN($E75)),VLOOKUP($E75-10,AllData,COLUMN()-6-COLUMN($E75)),VLOOKUP($E75-11,AllData,COLUMN()-6-COLUMN($E75)),VLOOKUP($E75-12,AllData,COLUMN()-6-COLUMN($E75)),VLOOKUP($E75-13,AllData,COLUMN()-6-COLUMN($E75)),VLOOKUP($E75-14,AllData,COLUMN()-6-COLUMN($E75)),VLOOKUP($E75-15,AllData,COLUMN()-6-COLUMN($E75)),VLOOKUP($E75-16,AllData,COLUMN()-6-COLUMN($E75)),VLOOKUP($E75-17,AllData,COLUMN()-6-COLUMN($E75)),VLOOKUP($E75-18,AllData,COLUMN()-6-COLUMN($E75)),VLOOKUP($E75-19,AllData,COLUMN()-6-COLUMN($E75)),VLOOKUP($E75-20,AllData,COLUMN()-6-COLUMN($E75)),VLOOKUP($E75-21,AllData,COLUMN()-6-COLUMN($E75)),VLOOKUP($E75-22,AllData,COLUMN()-6-COLUMN($E75)),VLOOKUP($E75-23,AllData,COLUMN()-6-COLUMN($E75)),VLOOKUP($E75-24,AllData,COLUMN()-6-COLUMN($E75)),VLOOKUP($E75-25,AllData,COLUMN()-6-COLUMN($E75)),VLOOKUP($E75-26,AllData,COLUMN()-6-COLUMN($E75)),VLOOKUP($E75-27,AllData,COLUMN()-6-COLUMN($E75)),VLOOKUP($E75-28,AllData,COLUMN()-6-COLUMN($E75)),VLOOKUP($E75-29,AllData,COLUMN()-6-COLUMN($E75)))","v":893.41000000000008},{"$f":"VLOOKUP($E75,AllData,COLUMN()-7-COLUMN($E75))","v":50.45},{"$f":"OR('Cool Graph'!$I$1=35,'Cool Graph'!$I$1=36,'Cool Graph'!$I$1=37,'Cool Graph'!$I$1=38,'Cool Graph'!$I$1=39,'Cool Graph'!$I$1=40,'Cool Graph'!$I$1=41,'Cool Graph'!$I$1=42,'Cool Graph'!$I$1=43,'Cool Graph'!$I$1=44,'Cool Graph'!$I$1=45,'Cool Graph'!$I$1=46,'Cool Graph'!$I$1=47,'Cool Graph'!$I$1=58,'Cool Graph'!$I$1=66)","v":false}]
["2011-09-13",{"$f":"OFFSET(OldSchoolJustValues!A76,0,'Cool Graph'!$H$1)","v":0},{"$f":"OFFSET(OldSchoolJustValues!A76,0,'Cool Graph'!$I$1)","v":57.926627417901798},null,{"$f":"IF(NewDate>EndDate,NA(),NewDate)","v":"2011-12-09"},{"$f":"IF($E76>EndDate,NA(),IF($K$2=TRUE,N76,IF('Cool Graph'!$B$17=1,N76,IF('Cool Graph'!$B$17=2,L76,IF('Cool Graph'!$B$17=3,M76,)))))","v":99.68},{"$f":"IF($E76>EndDate,NA(),IF($O$2=TRUE,J76,IF('Cool Graph'!$B$17=1,Data1!J76,IF('Cool Graph'!$B$17=2,Data1!H76,IF('Cool Graph'!$B$17=3,Data1!I76,)))))","v":715.53296047006711},{"$f":"SUM(VLOOKUP($E76,AllData,COLUMN()-COLUMN($E76)),VLOOKUP($E76-1,AllData,COLUMN()-COLUMN($E76)),VLOOKUP($E76-2,AllData,COLUMN()-COLUMN($E76)),VLOOKUP($E76-3,AllData,COLUMN()-COLUMN($E76)),VLOOKUP($E76-4,AllData,COLUMN()-COLUMN($E76)),VLOOKUP($E76-5,AllData,COLUMN()-COLUMN($E76)),VLOOKUP($E76-6,AllData,COLUMN()-COLUMN($E76)))","v":7150.3622891583018},{"$f":"SUM(VLOOKUP($E76,AllData,COLUMN()-1-COLUMN($E76)),VLOOKUP($E76-1,AllData,COLUMN()-1-COLUMN($E76)),VLOOKUP($E76-2,AllData,COLUMN()-1-COLUMN($E76)),VLOOKUP($E76-3,AllData,COLUMN()-1-COLUMN($E76)),VLOOKUP($E76-4,AllData,COLUMN()-1-COLUMN($E76)),VLOOKUP($E76-5,AllData,COLUMN()-1-COLUMN($E76)),VLOOKUP($E76-6,AllData,COLUMN()-1-COLUMN($E76)),VLOOKUP($E76-7,AllData,COLUMN()-1-COLUMN($E76)),VLOOKUP($E76-8,AllData,COLUMN()-1-COLUMN($E76)),VLOOKUP($E76-9,AllData,COLUMN()-1-COLUMN($E76)),VLOOKUP($E76-10,AllData,COLUMN()-1-COLUMN($E76)),VLOOKUP($E76-11,AllData,COLUMN()-1-COLUMN($E76)),VLOOKUP($E76-12,AllData,COLUMN()-1-COLUMN($E76)),VLOOKUP($E76-13,AllData,COLUMN()-1-COLUMN($E76)),VLOOKUP($E76-14,AllData,COLUMN()-1-COLUMN($E76)),VLOOKUP($E76-15,AllData,COLUMN()-1-COLUMN($E76)),VLOOKUP($E76-16,AllData,COLUMN()-1-COLUMN($E76)),VLOOKUP($E76-17,AllData,COLUMN()-1-COLUMN($E76)),VLOOKUP($E76-18,AllData,COLUMN()-1-COLUMN($E76)),VLOOKUP($E76-19,AllData,COLUMN()-1-COLUMN($E76)),VLOOKUP($E76-20,AllData,COLUMN()-1-COLUMN($E76)),VLOOKUP($E76-21,AllData,COLUMN()-1-COLUMN($E76)),VLOOKUP($E76-22,AllData,COLUMN()-1-COLUMN($E76)),VLOOKUP($E76-23,AllData,COLUMN()-1-COLUMN($E76)),VLOOKUP($E76-24,AllData,COLUMN()-1-COLUMN($E76)),VLOOKUP($E76-25,AllData,COLUMN()-1-COLUMN($E76)),VLOOKUP($E76-26,AllData,COLUMN()-1-COLUMN($E76)),VLOOKUP($E76-27,AllData,COLUMN()-1-COLUMN($E76)),VLOOKUP($E76-28,AllData,COLUMN()-1-COLUMN($E76)),VLOOKUP($E76-29,AllData,COLUMN()-1-COLUMN($E76)))","v":17833.15211864388},{"$f":"VLOOKUP($E76,AllData,COLUMN()-2-COLUMN($E76))","v":715.53296047006711},{"$f":"OR('Cool Graph'!$H$1=35,'Cool Graph'!$H$1=36,'Cool Graph'!$H$1=37,'Cool Graph'!$H$1=38,'Cool Graph'!$H$1=39,'Cool Graph'!$H$1=40,'Cool Graph'!$H$1=41,'Cool Graph'!$H$1=42,'Cool Graph'!$H$1=43,'Cool Graph'!$H$1=44,'Cool Graph'!$H$1=45,'Cool Graph'!$H$1=46,'Cool Graph'!$H$1=47,'Cool Graph'!$H$1=58,'Cool Graph'!$H$1=66)","v":false},{"$f":"SUM(VLOOKUP($E76,AllData,COLUMN()-5-COLUMN($E76)),VLOOKUP($E76-1,AllData,COLUMN()-5-COLUMN($E76)),VLOOKUP($E76-2,AllData,COLUMN()-5-COLUMN($E76)),VLOOKUP($E76-3,AllData,COLUMN()-5-COLUMN($E76)),VLOOKUP($E76-4,AllData,COLUMN()-5-COLUMN($E76)),VLOOKUP($E76-5,AllData,COLUMN()-5-COLUMN($E76)),VLOOKUP($E76-6,AllData,COLUMN()-5-COLUMN($E76)))","v":369.87},{"$f":"SUM(VLOOKUP($E76,AllData,COLUMN()-6-COLUMN($E76)),VLOOKUP($E76-1,AllData,COLUMN()-6-COLUMN($E76)),VLOOKUP($E76-2,AllData,COLUMN()-6-COLUMN($E76)),VLOOKUP($E76-3,AllData,COLUMN()-6-COLUMN($E76)),VLOOKUP($E76-4,AllData,COLUMN()-6-COLUMN($E76)),VLOOKUP($E76-5,AllData,COLUMN()-6-COLUMN($E76)),VLOOKUP($E76-6,AllData,COLUMN()-6-COLUMN($E76)),VLOOKUP($E76-7,AllData,COLUMN()-6-COLUMN($E76)),VLOOKUP($E76-8,AllData,COLUMN()-6-COLUMN($E76)),VLOOKUP($E76-9,AllData,COLUMN()-6-COLUMN($E76)),VLOOKUP($E76-10,AllData,COLUMN()-6-COLUMN($E76)),VLOOKUP($E76-11,AllData,COLUMN()-6-COLUMN($E76)),VLOOKUP($E76-12,AllData,COLUMN()-6-COLUMN($E76)),VLOOKUP($E76-13,AllData,COLUMN()-6-COLUMN($E76)),VLOOKUP($E76-14,AllData,COLUMN()-6-COLUMN($E76)),VLOOKUP($E76-15,AllData,COLUMN()-6-COLUMN($E76)),VLOOKUP($E76-16,AllData,COLUMN()-6-COLUMN($E76)),VLOOKUP($E76-17,AllData,COLUMN()-6-COLUMN($E76)),VLOOKUP($E76-18,AllData,COLUMN()-6-COLUMN($E76)),VLOOKUP($E76-19,AllData,COLUMN()-6-COLUMN($E76)),VLOOKUP($E76-20,AllData,COLUMN()-6-COLUMN($E76)),VLOOKUP($E76-21,AllData,COLUMN()-6-COLUMN($E76)),VLOOKUP($E76-22,AllData,COLUMN()-6-COLUMN($E76)),VLOOKUP($E76-23,AllData,COLUMN()-6-COLUMN($E76)),VLOOKUP($E76-24,AllData,COLUMN()-6-COLUMN($E76)),VLOOKUP($E76-25,AllData,COLUMN()-6-COLUMN($E76)),VLOOKUP($E76-26,AllData,COLUMN()-6-COLUMN($E76)),VLOOKUP($E76-27,AllData,COLUMN()-6-COLUMN($E76)),VLOOKUP($E76-28,AllData,COLUMN()-6-COLUMN($E76)),VLOOKUP($E76-29,AllData,COLUMN()-6-COLUMN($E76)))","v":993.09},{"$f":"VLOOKUP($E76,AllData,COLUMN()-7-COLUMN($E76))","v":99.68},{"$f":"OR('Cool Graph'!$I$1=35,'Cool Graph'!$I$1=36,'Cool Graph'!$I$1=37,'Cool Graph'!$I$1=38,'Cool Graph'!$I$1=39,'Cool Graph'!$I$1=40,'Cool Graph'!$I$1=41,'Cool Graph'!$I$1=42,'Cool Graph'!$I$1=43,'Cool Graph'!$I$1=44,'Cool Graph'!$I$1=45,'Cool Graph'!$I$1=46,'Cool Graph'!$I$1=47,'Cool Graph'!$I$1=58,'Cool Graph'!$I$1=66)","v":false}]
["2011-09-14",{"$f":"OFFSET(OldSchoolJustValues!A77,0,'Cool Graph'!$H$1)","v":0},{"$f":"OFFSET(OldSchoolJustValues!A77,0,'Cool Graph'!$I$1)","v":268.80656854475444},null,{"$f":"IF(NewDate>EndDate,NA(),NewDate)","v":"2011-12-10"},{"$f":"IF($E77>EndDate,NA(),IF($K$2=TRUE,N77,IF('Cool Graph'!$B$17=1,N77,IF('Cool Graph'!$B$17=2,L77,IF('Cool Graph'!$B$17=3,M77,)))))","v":100},{"$f":"IF($E77>EndDate,NA(),IF($O$2=TRUE,J77,IF('Cool Graph'!$B$17=1,Data1!J77,IF('Cool Graph'!$B$17=2,Data1!H77,IF('Cool Graph'!$B$17=3,Data1!I77,)))))","v":992.01659912721402},{"$f":"SUM(VLOOKUP($E77,AllData,COLUMN()-COLUMN($E77)),VLOOKUP($E77-1,AllData,COLUMN()-COLUMN($E77)),VLOOKUP($E77-2,AllData,COLUMN()-COLUMN($E77)),VLOOKUP($E77-3,AllData,COLUMN()-COLUMN($E77)),VLOOKUP($E77-4,AllData,COLUMN()-COLUMN($E77)),VLOOKUP($E77-5,AllData,COLUMN()-COLUMN($E77)),VLOOKUP($E77-6,AllData,COLUMN()-COLUMN($E77)))","v":7575.9131974841284},{"$f":"SUM(VLOOKUP($E77,AllData,COLUMN()-1-COLUMN($E77)),VLOOKUP($E77-1,AllData,COLUMN()-1-COLUMN($E77)),VLOOKUP($E77-2,AllData,COLUMN()-1-COLUMN($E77)),VLOOKUP($E77-3,AllData,COLUMN()-1-COLUMN($E77)),VLOOKUP($E77-4,AllData,COLUMN()-1-COLUMN($E77)),VLOOKUP($E77-5,AllData,COLUMN()-1-COLUMN($E77)),VLOOKUP($E77-6,AllData,COLUMN()-1-COLUMN($E77)),VLOOKUP($E77-7,AllData,COLUMN()-1-COLUMN($E77)),VLOOKUP($E77-8,AllData,COLUMN()-1-COLUMN($E77)),VLOOKUP($E77-9,AllData,COLUMN()-1-COLUMN($E77)),VLOOKUP($E77-10,AllData,COLUMN()-1-COLUMN($E77)),VLOOKUP($E77-11,AllData,COLUMN()-1-COLUMN($E77)),VLOOKUP($E77-12,AllData,COLUMN()-1-COLUMN($E77)),VLOOKUP($E77-13,AllData,COLUMN()-1-COLUMN($E77)),VLOOKUP($E77-14,AllData,COLUMN()-1-COLUMN($E77)),VLOOKUP($E77-15,AllData,COLUMN()-1-COLUMN($E77)),VLOOKUP($E77-16,AllData,COLUMN()-1-COLUMN($E77)),VLOOKUP($E77-17,AllData,COLUMN()-1-COLUMN($E77)),VLOOKUP($E77-18,AllData,COLUMN()-1-COLUMN($E77)),VLOOKUP($E77-19,AllData,COLUMN()-1-COLUMN($E77)),VLOOKUP($E77-20,AllData,COLUMN()-1-COLUMN($E77)),VLOOKUP($E77-21,AllData,COLUMN()-1-COLUMN($E77)),VLOOKUP($E77-22,AllData,COLUMN()-1-COLUMN($E77)),VLOOKUP($E77-23,AllData,COLUMN()-1-COLUMN($E77)),VLOOKUP($E77-24,AllData,COLUMN()-1-COLUMN($E77)),VLOOKUP($E77-25,AllData,COLUMN()-1-COLUMN($E77)),VLOOKUP($E77-26,AllData,COLUMN()-1-COLUMN($E77)),VLOOKUP($E77-27,AllData,COLUMN()-1-COLUMN($E77)),VLOOKUP($E77-28,AllData,COLUMN()-1-COLUMN($E77)),VLOOKUP($E77-29,AllData,COLUMN()-1-COLUMN($E77)))","v":18747.645462935285},{"$f":"VLOOKUP($E77,AllData,COLUMN()-2-COLUMN($E77))","v":992.01659912721402},{"$f":"OR('Cool Graph'!$H$1=35,'Cool Graph'!$H$1=36,'Cool Graph'!$H$1=37,'Cool Graph'!$H$1=38,'Cool Graph'!$H$1=39,'Cool Graph'!$H$1=40,'Cool Graph'!$H$1=41,'Cool Graph'!$H$1=42,'Cool Graph'!$H$1=43,'Cool Graph'!$H$1=44,'Cool Graph'!$H$1=45,'Cool Graph'!$H$1=46,'Cool Graph'!$H$1=47,'Cool Graph'!$H$1=58,'Cool Graph'!$H$1=66)","v":false},{"$f":"SUM(VLOOKUP($E77,AllData,COLUMN()-5-COLUMN($E77)),VLOOKUP($E77-1,AllData,COLUMN()-5-COLUMN($E77)),VLOOKUP($E77-2,AllData,COLUMN()-5-COLUMN($E77)),VLOOKUP($E77-3,AllData,COLUMN()-5-COLUMN($E77)),VLOOKUP($E77-4,AllData,COLUMN()-5-COLUMN($E77)),VLOOKUP($E77-5,AllData,COLUMN()-5-COLUMN($E77)),VLOOKUP($E77-6,AllData,COLUMN()-5-COLUMN($E77)))","v":436.87},{"$f":"SUM(VLOOKUP($E77,AllData,COLUMN()-6-COLUMN($E77)),VLOOKUP($E77-1,AllData,COLUMN()-6-COLUMN($E77)),VLOOKUP($E77-2,AllData,COLUMN()-6-COLUMN($E77)),VLOOKUP($E77-3,AllData,COLUMN()-6-COLUMN($E77)),VLOOKUP($E77-4,AllData,COLUMN()-6-COLUMN($E77)),VLOOKUP($E77-5,AllData,COLUMN()-6-COLUMN($E77)),VLOOKUP($E77-6,AllData,COLUMN()-6-COLUMN($E77)),VLOOKUP($E77-7,AllData,COLUMN()-6-COLUMN($E77)),VLOOKUP($E77-8,AllData,COLUMN()-6-COLUMN($E77)),VLOOKUP($E77-9,AllData,COLUMN()-6-COLUMN($E77)),VLOOKUP($E77-10,AllData,COLUMN()-6-COLUMN($E77)),VLOOKUP($E77-11,AllData,COLUMN()-6-COLUMN($E77)),VLOOKUP($E77-12,AllData,COLUMN()-6-COLUMN($E77)),VLOOKUP($E77-13,AllData,COLUMN()-6-COLUMN($E77)),VLOOKUP($E77-14,AllData,COLUMN()-6-COLUMN($E77)),VLOOKUP($E77-15,AllData,COLUMN()-6-COLUMN($E77)),VLOOKUP($E77-16,AllData,COLUMN()-6-COLUMN($E77)),VLOOKUP($E77-17,AllData,COLUMN()-6-COLUMN($E77)),VLOOKUP($E77-18,AllData,COLUMN()-6-COLUMN($E77)),VLOOKUP($E77-19,AllData,COLUMN()-6-COLUMN($E77)),VLOOKUP($E77-20,AllData,COLUMN()-6-COLUMN($E77)),VLOOKUP($E77-21,AllData,COLUMN()-6-COLUMN($E77)),VLOOKUP($E77-22,AllData,COLUMN()-6-COLUMN($E77)),VLOOKUP($E77-23,AllData,COLUMN()-6-COLUMN($E77)),VLOOKUP($E77-24,AllData,COLUMN()-6-COLUMN($E77)),VLOOKUP($E77-25,AllData,COLUMN()-6-COLUMN($E77)),VLOOKUP($E77-26,AllData,COLUMN()-6-COLUMN($E77)),VLOOKUP($E77-27,AllData,COLUMN()-6-COLUMN($E77)),VLOOKUP($E77-28,AllData,COLUMN()-6-COLUMN($E77)),VLOOKUP($E77-29,AllData,COLUMN()-6-COLUMN($E77)))","v":1093.0900000000001},{"$f":"VLOOKUP($E77,AllData,COLUMN()-7-COLUMN($E77))","v":100},{"$f":"OR('Cool Graph'!$I$1=35,'Cool Graph'!$I$1=36,'Cool Graph'!$I$1=37,'Cool Graph'!$I$1=38,'Cool Graph'!$I$1=39,'Cool Graph'!$I$1=40,'Cool Graph'!$I$1=41,'Cool Graph'!$I$1=42,'Cool Graph'!$I$1=43,'Cool Graph'!$I$1=44,'Cool Graph'!$I$1=45,'Cool Graph'!$I$1=46,'Cool Graph'!$I$1=47,'Cool Graph'!$I$1=58,'Cool Graph'!$I$1=66)","v":false}]
["2011-09-15",{"$f":"OFFSET(OldSchoolJustValues!A78,0,'Cool Graph'!$H$1)","v":0},{"$f":"OFFSET(OldSchoolJustValues!A78,0,'Cool Graph'!$I$1)","v":136.2999411268527},null,{"$f":"IF(NewDate>EndDate,NA(),NewDate)","v":"2011-12-11"},{"$f":"IF($E78>EndDate,NA(),IF($K$2=TRUE,N78,IF('Cool Graph'!$B$17=1,N78,IF('Cool Graph'!$B$17=2,L78,IF('Cool Graph'!$B$17=3,M78,)))))","v":100},{"$f":"IF($E78>EndDate,NA(),IF($O$2=TRUE,J78,IF('Cool Graph'!$B$17=1,Data1!J78,IF('Cool Graph'!$B$17=2,Data1!H78,IF('Cool Graph'!$B$17=3,Data1!I78,)))))","v":1204.138835536512},{"$f":"SUM(VLOOKUP($E78,AllData,COLUMN()-COLUMN($E78)),VLOOKUP($E78-1,AllData,COLUMN()-COLUMN($E78)),VLOOKUP($E78-2,AllData,COLUMN()-COLUMN($E78)),VLOOKUP($E78-3,AllData,COLUMN()-COLUMN($E78)),VLOOKUP($E78-4,AllData,COLUMN()-COLUMN($E78)),VLOOKUP($E78-5,AllData,COLUMN()-COLUMN($E78)),VLOOKUP($E78-6,AllData,COLUMN()-COLUMN($E78)))","v":7647.5730132190711},{"$f":"SUM(VLOOKUP($E78,AllData,COLUMN()-1-COLUMN($E78)),VLOOKUP($E78-1,AllData,COLUMN()-1-COLUMN($E78)),VLOOKUP($E78-2,AllData,COLUMN()-1-COLUMN($E78)),VLOOKUP($E78-3,AllData,COLUMN()-1-COLUMN($E78)),VLOOKUP($E78-4,AllData,COLUMN()-1-COLUMN($E78)),VLOOKUP($E78-5,AllData,COLUMN()-1-COLUMN($E78)),VLOOKUP($E78-6,AllData,COLUMN()-1-COLUMN($E78)),VLOOKUP($E78-7,AllData,COLUMN()-1-COLUMN($E78)),VLOOKUP($E78-8,AllData,COLUMN()-1-COLUMN($E78)),VLOOKUP($E78-9,AllData,COLUMN()-1-COLUMN($E78)),VLOOKUP($E78-10,AllData,COLUMN()-1-COLUMN($E78)),VLOOKUP($E78-11,AllData,COLUMN()-1-COLUMN($E78)),VLOOKUP($E78-12,AllData,COLUMN()-1-COLUMN($E78)),VLOOKUP($E78-13,AllData,COLUMN()-1-COLUMN($E78)),VLOOKUP($E78-14,AllData,COLUMN()-1-COLUMN($E78)),VLOOKUP($E78-15,AllData,COLUMN()-1-COLUMN($E78)),VLOOKUP($E78-16,AllData,COLUMN()-1-COLUMN($E78)),VLOOKUP($E78-17,AllData,COLUMN()-1-COLUMN($E78)),VLOOKUP($E78-18,AllData,COLUMN()-1-COLUMN($E78)),VLOOKUP($E78-19,AllData,COLUMN()-1-COLUMN($E78)),VLOOKUP($E78-20,AllData,COLUMN()-1-COLUMN($E78)),VLOOKUP($E78-21,AllData,COLUMN()-1-COLUMN($E78)),VLOOKUP($E78-22,AllData,COLUMN()-1-COLUMN($E78)),VLOOKUP($E78-23,AllData,COLUMN()-1-COLUMN($E78)),VLOOKUP($E78-24,AllData,COLUMN()-1-COLUMN($E78)),VLOOKUP($E78-25,AllData,COLUMN()-1-COLUMN($E78)),VLOOKUP($E78-26,AllData,COLUMN()-1-COLUMN($E78)),VLOOKUP($E78-27,AllData,COLUMN()-1-COLUMN($E78)),VLOOKUP($E78-28,AllData,COLUMN()-1-COLUMN($E78)),VLOOKUP($E78-29,AllData,COLUMN()-1-COLUMN($E78)))","v":19806.697729927044},{"$f":"VLOOKUP($E78,AllData,COLUMN()-2-COLUMN($E78))","v":1204.138835536512},{"$f":"OR('Cool Graph'!$H$1=35,'Cool Graph'!$H$1=36,'Cool Graph'!$H$1=37,'Cool Graph'!$H$1=38,'Cool Graph'!$H$1=39,'Cool Graph'!$H$1=40,'Cool Graph'!$H$1=41,'Cool Graph'!$H$1=42,'Cool Graph'!$H$1=43,'Cool Graph'!$H$1=44,'Cool Graph'!$H$1=45,'Cool Graph'!$H$1=46,'Cool Graph'!$H$1=47,'Cool Graph'!$H$1=58,'Cool Graph'!$H$1=66)","v":false},{"$f":"SUM(VLOOKUP($E78,AllData,COLUMN()-5-COLUMN($E78)),VLOOKUP($E78-1,AllData,COLUMN()-5-COLUMN($E78)),VLOOKUP($E78-2,AllData,COLUMN()-5-COLUMN($E78)),VLOOKUP($E78-3,AllData,COLUMN()-5-COLUMN($E78)),VLOOKUP($E78-4,AllData,COLUMN()-5-COLUMN($E78)),VLOOKUP($E78-5,AllData,COLUMN()-5-COLUMN($E78)),VLOOKUP($E78-6,AllData,COLUMN()-5-COLUMN($E78)))","v":448.71},{"$f":"SUM(VLOOKUP($E78,AllData,COLUMN()-6-COLUMN($E78)),VLOOKUP($E78-1,AllData,COLUMN()-6-COLUMN($E78)),VLOOKUP($E78-2,AllData,COLUMN()-6-COLUMN($E78)),VLOOKUP($E78-3,AllData,COLUMN()-6-COLUMN($E78)),VLOOKUP($E78-4,AllData,COLUMN()-6-COLUMN($E78)),VLOOKUP($E78-5,AllData,COLUMN()-6-COLUMN($E78)),VLOOKUP($E78-6,AllData,COLUMN()-6-COLUMN($E78)),VLOOKUP($E78-7,AllData,COLUMN()-6-COLUMN($E78)),VLOOKUP($E78-8,AllData,COLUMN()-6-COLUMN($E78)),VLOOKUP($E78-9,AllData,COLUMN()-6-COLUMN($E78)),VLOOKUP($E78-10,AllData,COLUMN()-6-COLUMN($E78)),VLOOKUP($E78-11,AllData,COLUMN()-6-COLUMN($E78)),VLOOKUP($E78-12,AllData,COLUMN()-6-COLUMN($E78)),VLOOKUP($E78-13,AllData,COLUMN()-6-COLUMN($E78)),VLOOKUP($E78-14,AllData,COLUMN()-6-COLUMN($E78)),VLOOKUP($E78-15,AllData,COLUMN()-6-COLUMN($E78)),VLOOKUP($E78-16,AllData,COLUMN()-6-COLUMN($E78)),VLOOKUP($E78-17,AllData,COLUMN()-6-COLUMN($E78)),VLOOKUP($E78-18,AllData,COLUMN()-6-COLUMN($E78)),VLOOKUP($E78-19,AllData,COLUMN()-6-COLUMN($E78)),VLOOKUP($E78-20,AllData,COLUMN()-6-COLUMN($E78)),VLOOKUP($E78-21,AllData,COLUMN()-6-COLUMN($E78)),VLOOKUP($E78-22,AllData,COLUMN()-6-COLUMN($E78)),VLOOKUP($E78-23,AllData,COLUMN()-6-COLUMN($E78)),VLOOKUP($E78-24,AllData,COLUMN()-6-COLUMN($E78)),VLOOKUP($E78-25,AllData,COLUMN()-6-COLUMN($E78)),VLOOKUP($E78-26,AllData,COLUMN()-6-COLUMN($E78)),VLOOKUP($E78-27,AllData,COLUMN()-6-COLUMN($E78)),VLOOKUP($E78-28,AllData,COLUMN()-6-COLUMN($E78)),VLOOKUP($E78-29,AllData,COLUMN()-6-COLUMN($E78)))","v":1193.0899999999999},{"$f":"VLOOKUP($E78,AllData,COLUMN()-7-COLUMN($E78))","v":100},{"$f":"OR('Cool Graph'!$I$1=35,'Cool Graph'!$I$1=36,'Cool Graph'!$I$1=37,'Cool Graph'!$I$1=38,'Cool Graph'!$I$1=39,'Cool Graph'!$I$1=40,'Cool Graph'!$I$1=41,'Cool Graph'!$I$1=42,'Cool Graph'!$I$1=43,'Cool Graph'!$I$1=44,'Cool Graph'!$I$1=45,'Cool Graph'!$I$1=46,'Cool Graph'!$I$1=47,'Cool Graph'!$I$1=58,'Cool Graph'!$I$1=66)","v":false}]
["2011-09-16",{"$f":"OFFSET(OldSchoolJustValues!A79,0,'Cool Graph'!$H$1)","v":0},{"$f":"OFFSET(OldSchoolJustValues!A79,0,'Cool Graph'!$I$1)","v":320.4098822537054},null,{"$f":"IF(NewDate>EndDate,NA(),NewDate)","v":"2011-12-12"},{"$f":"IF($E79>EndDate,NA(),IF($K$2=TRUE,N79,IF('Cool Graph'!$B$17=1,N79,IF('Cool Graph'!$B$17=2,L79,IF('Cool Graph'!$B$17=3,M79,)))))","v":100},{"$f":"IF($E79>EndDate,NA(),IF($O$2=TRUE,J79,IF('Cool Graph'!$B$17=1,Data1!J79,IF('Cool Graph'!$B$17=2,Data1!H79,IF('Cool Graph'!$B$17=3,Data1!I79,)))))","v":973.18889440965916},{"$f":"SUM(VLOOKUP($E79,AllData,COLUMN()-COLUMN($E79)),VLOOKUP($E79-1,AllData,COLUMN()-COLUMN($E79)),VLOOKUP($E79-2,AllData,COLUMN()-COLUMN($E79)),VLOOKUP($E79-3,AllData,COLUMN()-COLUMN($E79)),VLOOKUP($E79-4,AllData,COLUMN()-COLUMN($E79)),VLOOKUP($E79-5,AllData,COLUMN()-COLUMN($E79)),VLOOKUP($E79-6,AllData,COLUMN()-COLUMN($E79)))","v":6234.8885916280087},{"$f":"SUM(VLOOKUP($E79,AllData,COLUMN()-1-COLUMN($E79)),VLOOKUP($E79-1,AllData,COLUMN()-1-COLUMN($E79)),VLOOKUP($E79-2,AllData,COLUMN()-1-COLUMN($E79)),VLOOKUP($E79-3,AllData,COLUMN()-1-COLUMN($E79)),VLOOKUP($E79-4,AllData,COLUMN()-1-COLUMN($E79)),VLOOKUP($E79-5,AllData,COLUMN()-1-COLUMN($E79)),VLOOKUP($E79-6,AllData,COLUMN()-1-COLUMN($E79)),VLOOKUP($E79-7,AllData,COLUMN()-1-COLUMN($E79)),VLOOKUP($E79-8,AllData,COLUMN()-1-COLUMN($E79)),VLOOKUP($E79-9,AllData,COLUMN()-1-COLUMN($E79)),VLOOKUP($E79-10,AllData,COLUMN()-1-COLUMN($E79)),VLOOKUP($E79-11,AllData,COLUMN()-1-COLUMN($E79)),VLOOKUP($E79-12,AllData,COLUMN()-1-COLUMN($E79)),VLOOKUP($E79-13,AllData,COLUMN()-1-COLUMN($E79)),VLOOKUP($E79-14,AllData,COLUMN()-1-COLUMN($E79)),VLOOKUP($E79-15,AllData,COLUMN()-1-COLUMN($E79)),VLOOKUP($E79-16,AllData,COLUMN()-1-COLUMN($E79)),VLOOKUP($E79-17,AllData,COLUMN()-1-COLUMN($E79)),VLOOKUP($E79-18,AllData,COLUMN()-1-COLUMN($E79)),VLOOKUP($E79-19,AllData,COLUMN()-1-COLUMN($E79)),VLOOKUP($E79-20,AllData,COLUMN()-1-COLUMN($E79)),VLOOKUP($E79-21,AllData,COLUMN()-1-COLUMN($E79)),VLOOKUP($E79-22,AllData,COLUMN()-1-COLUMN($E79)),VLOOKUP($E79-23,AllData,COLUMN()-1-COLUMN($E79)),VLOOKUP($E79-24,AllData,COLUMN()-1-COLUMN($E79)),VLOOKUP($E79-25,AllData,COLUMN()-1-COLUMN($E79)),VLOOKUP($E79-26,AllData,COLUMN()-1-COLUMN($E79)),VLOOKUP($E79-27,AllData,COLUMN()-1-COLUMN($E79)),VLOOKUP($E79-28,AllData,COLUMN()-1-COLUMN($E79)),VLOOKUP($E79-29,AllData,COLUMN()-1-COLUMN($E79)))","v":20782.269996918803},{"$f":"VLOOKUP($E79,AllData,COLUMN()-2-COLUMN($E79))","v":973.18889440965916},{"$f":"OR('Cool Graph'!$H$1=35,'Cool Graph'!$H$1=36,'Cool Graph'!$H$1=37,'Cool Graph'!$H$1=38,'Cool Graph'!$H$1=39,'Cool Graph'!$H$1=40,'Cool Graph'!$H$1=41,'Cool Graph'!$H$1=42,'Cool Graph'!$H$1=43,'Cool Graph'!$H$1=44,'Cool Graph'!$H$1=45,'Cool Graph'!$H$1=46,'Cool Graph'!$H$1=47,'Cool Graph'!$H$1=58,'Cool Graph'!$H$1=66)","v":false},{"$f":"SUM(VLOOKUP($E79,AllData,COLUMN()-5-COLUMN($E79)),VLOOKUP($E79-1,AllData,COLUMN()-5-COLUMN($E79)),VLOOKUP($E79-2,AllData,COLUMN()-5-COLUMN($E79)),VLOOKUP($E79-3,AllData,COLUMN()-5-COLUMN($E79)),VLOOKUP($E79-4,AllData,COLUMN()-5-COLUMN($E79)),VLOOKUP($E79-5,AllData,COLUMN()-5-COLUMN($E79)),VLOOKUP($E79-6,AllData,COLUMN()-5-COLUMN($E79)))","v":540.17000000000007},{"$f":"SUM(VLOOKUP($E79,AllData,COLUMN()-6-COLUMN($E79)),VLOOKUP($E79-1,AllData,COLUMN()-6-COLUMN($E79)),VLOOKUP($E79-2,AllData,COLUMN()-6-COLUMN($E79)),VLOOKUP($E79-3,AllData,COLUMN()-6-COLUMN($E79)),VLOOKUP($E79-4,AllData,COLUMN()-6-COLUMN($E79)),VLOOKUP($E79-5,AllData,COLUMN()-6-COLUMN($E79)),VLOOKUP($E79-6,AllData,COLUMN()-6-COLUMN($E79)),VLOOKUP($E79-7,AllData,COLUMN()-6-COLUMN($E79)),VLOOKUP($E79-8,AllData,COLUMN()-6-COLUMN($E79)),VLOOKUP($E79-9,AllData,COLUMN()-6-COLUMN($E79)),VLOOKUP($E79-10,AllData,COLUMN()-6-COLUMN($E79)),VLOOKUP($E79-11,AllData,COLUMN()-6-COLUMN($E79)),VLOOKUP($E79-12,AllData,COLUMN()-6-COLUMN($E79)),VLOOKUP($E79-13,AllData,COLUMN()-6-COLUMN($E79)),VLOOKUP($E79-14,AllData,COLUMN()-6-COLUMN($E79)),VLOOKUP($E79-15,AllData,COLUMN()-6-COLUMN($E79)),VLOOKUP($E79-16,AllData,COLUMN()-6-COLUMN($E79)),VLOOKUP($E79-17,AllData,COLUMN()-6-COLUMN($E79)),VLOOKUP($E79-18,AllData,COLUMN()-6-COLUMN($E79)),VLOOKUP($E79-19,AllData,COLUMN()-6-COLUMN($E79)),VLOOKUP($E79-20,AllData,COLUMN()-6-COLUMN($E79)),VLOOKUP($E79-21,AllData,COLUMN()-6-COLUMN($E79)),VLOOKUP($E79-22,AllData,COLUMN()-6-COLUMN($E79)),VLOOKUP($E79-23,AllData,COLUMN()-6-COLUMN($E79)),VLOOKUP($E79-24,AllData,COLUMN()-6-COLUMN($E79)),VLOOKUP($E79-25,AllData,COLUMN()-6-COLUMN($E79)),VLOOKUP($E79-26,AllData,COLUMN()-6-COLUMN($E79)),VLOOKUP($E79-27,AllData,COLUMN()-6-COLUMN($E79)),VLOOKUP($E79-28,AllData,COLUMN()-6-COLUMN($E79)),VLOOKUP($E79-29,AllData,COLUMN()-6-COLUMN($E79)))","v":1293.0900000000001},{"$f":"VLOOKUP($E79,AllData,COLUMN()-7-COLUMN($E79))","v":100},{"$f":"OR('Cool Graph'!$I$1=35,'Cool Graph'!$I$1=36,'Cool Graph'!$I$1=37,'Cool Graph'!$I$1=38,'Cool Graph'!$I$1=39,'Cool Graph'!$I$1=40,'Cool Graph'!$I$1=41,'Cool Graph'!$I$1=42,'Cool Graph'!$I$1=43,'Cool Graph'!$I$1=44,'Cool Graph'!$I$1=45,'Cool Graph'!$I$1=46,'Cool Graph'!$I$1=47,'Cool Graph'!$I$1=58,'Cool Graph'!$I$1=66)","v":false}]
["2011-09-17",{"$f":"OFFSET(OldSchoolJustValues!A80,0,'Cool Graph'!$H$1)","v":0},{"$f":"OFFSET(OldSchoolJustValues!A80,0,'Cool Graph'!$I$1)","v":60.676627417901798},null,{"$f":"IF(NewDate>EndDate,NA(),NewDate)","v":"2011-12-13"},{"$f":"IF($E80>EndDate,NA(),IF($K$2=TRUE,N80,IF('Cool Graph'!$B$17=1,N80,IF('Cool Graph'!$B$17=2,L80,IF('Cool Graph'!$B$17=3,M80,)))))","v":100},{"$f":"IF($E80>EndDate,NA(),IF($O$2=TRUE,J80,IF('Cool Graph'!$B$17=1,Data1!J80,IF('Cool Graph'!$B$17=2,Data1!H80,IF('Cool Graph'!$B$17=3,Data1!I80,)))))","v":2826.9665784821409},{"$f":"SUM(VLOOKUP($E80,AllData,COLUMN()-COLUMN($E80)),VLOOKUP($E80-1,AllData,COLUMN()-COLUMN($E80)),VLOOKUP($E80-2,AllData,COLUMN()-COLUMN($E80)),VLOOKUP($E80-3,AllData,COLUMN()-COLUMN($E80)),VLOOKUP($E80-4,AllData,COLUMN()-COLUMN($E80)),VLOOKUP($E80-5,AllData,COLUMN()-COLUMN($E80)),VLOOKUP($E80-6,AllData,COLUMN()-COLUMN($E80)))","v":7723.5388217667551},{"$f":"SUM(VLOOKUP($E80,AllData,COLUMN()-1-COLUMN($E80)),VLOOKUP($E80-1,AllData,COLUMN()-1-COLUMN($E80)),VLOOKUP($E80-2,AllData,COLUMN()-1-COLUMN($E80)),VLOOKUP($E80-3,AllData,COLUMN()-1-COLUMN($E80)),VLOOKUP($E80-4,AllData,COLUMN()-1-COLUMN($E80)),VLOOKUP($E80-5,AllData,COLUMN()-1-COLUMN($E80)),VLOOKUP($E80-6,AllData,COLUMN()-1-COLUMN($E80)),VLOOKUP($E80-7,AllData,COLUMN()-1-COLUMN($E80)),VLOOKUP($E80-8,AllData,COLUMN()-1-COLUMN($E80)),VLOOKUP($E80-9,AllData,COLUMN()-1-COLUMN($E80)),VLOOKUP($E80-10,AllData,COLUMN()-1-COLUMN($E80)),VLOOKUP($E80-11,AllData,COLUMN()-1-COLUMN($E80)),VLOOKUP($E80-12,AllData,COLUMN()-1-COLUMN($E80)),VLOOKUP($E80-13,AllData,COLUMN()-1-COLUMN($E80)),VLOOKUP($E80-14,AllData,COLUMN()-1-COLUMN($E80)),VLOOKUP($E80-15,AllData,COLUMN()-1-COLUMN($E80)),VLOOKUP($E80-16,AllData,COLUMN()-1-COLUMN($E80)),VLOOKUP($E80-17,AllData,COLUMN()-1-COLUMN($E80)),VLOOKUP($E80-18,AllData,COLUMN()-1-COLUMN($E80)),VLOOKUP($E80-19,AllData,COLUMN()-1-COLUMN($E80)),VLOOKUP($E80-20,AllData,COLUMN()-1-COLUMN($E80)),VLOOKUP($E80-21,AllData,COLUMN()-1-COLUMN($E80)),VLOOKUP($E80-22,AllData,COLUMN()-1-COLUMN($E80)),VLOOKUP($E80-23,AllData,COLUMN()-1-COLUMN($E80)),VLOOKUP($E80-24,AllData,COLUMN()-1-COLUMN($E80)),VLOOKUP($E80-25,AllData,COLUMN()-1-COLUMN($E80)),VLOOKUP($E80-26,AllData,COLUMN()-1-COLUMN($E80)),VLOOKUP($E80-27,AllData,COLUMN()-1-COLUMN($E80)),VLOOKUP($E80-28,AllData,COLUMN()-1-COLUMN($E80)),VLOOKUP($E80-29,AllData,COLUMN()-1-COLUMN($E80)))","v":23476.870006856185},{"$f":"VLOOKUP($E80,AllData,COLUMN()-2-COLUMN($E80))","v":2826.9665784821409},{"$f":"OR('Cool Graph'!$H$1=35,'Cool Graph'!$H$1=36,'Cool Graph'!$H$1=37,'Cool Graph'!$H$1=38,'Cool Graph'!$H$1=39,'Cool Graph'!$H$1=40,'Cool Graph'!$H$1=41,'Cool Graph'!$H$1=42,'Cool Graph'!$H$1=43,'Cool Graph'!$H$1=44,'Cool Graph'!$H$1=45,'Cool Graph'!$H$1=46,'Cool Graph'!$H$1=47,'Cool Graph'!$H$1=58,'Cool Graph'!$H$1=66)","v":false},{"$f":"SUM(VLOOKUP($E80,AllData,COLUMN()-5-COLUMN($E80)),VLOOKUP($E80-1,AllData,COLUMN()-5-COLUMN($E80)),VLOOKUP($E80-2,AllData,COLUMN()-5-COLUMN($E80)),VLOOKUP($E80-3,AllData,COLUMN()-5-COLUMN($E80)),VLOOKUP($E80-4,AllData,COLUMN()-5-COLUMN($E80)),VLOOKUP($E80-5,AllData,COLUMN()-5-COLUMN($E80)),VLOOKUP($E80-6,AllData,COLUMN()-5-COLUMN($E80)))","v":638.96},{"$f":"SUM(VLOOKUP($E80,AllData,COLUMN()-6-COLUMN($E80)),VLOOKUP($E80-1,AllData,COLUMN()-6-COLUMN($E80)),VLOOKUP($E80-2,AllData,COLUMN()-6-COLUMN($E80)),VLOOKUP($E80-3,AllData,COLUMN()-6-COLUMN($E80)),VLOOKUP($E80-4,AllData,COLUMN()-6-COLUMN($E80)),VLOOKUP($E80-5,AllData,COLUMN()-6-COLUMN($E80)),VLOOKUP($E80-6,AllData,COLUMN()-6-COLUMN($E80)),VLOOKUP($E80-7,AllData,COLUMN()-6-COLUMN($E80)),VLOOKUP($E80-8,AllData,COLUMN()-6-COLUMN($E80)),VLOOKUP($E80-9,AllData,COLUMN()-6-COLUMN($E80)),VLOOKUP($E80-10,AllData,COLUMN()-6-COLUMN($E80)),VLOOKUP($E80-11,AllData,COLUMN()-6-COLUMN($E80)),VLOOKUP($E80-12,AllData,COLUMN()-6-COLUMN($E80)),VLOOKUP($E80-13,AllData,COLUMN()-6-COLUMN($E80)),VLOOKUP($E80-14,AllData,COLUMN()-6-COLUMN($E80)),VLOOKUP($E80-15,AllData,COLUMN()-6-COLUMN($E80)),VLOOKUP($E80-16,AllData,COLUMN()-6-COLUMN($E80)),VLOOKUP($E80-17,AllData,COLUMN()-6-COLUMN($E80)),VLOOKUP($E80-18,AllData,COLUMN()-6-COLUMN($E80)),VLOOKUP($E80-19,AllData,COLUMN()-6-COLUMN($E80)),VLOOKUP($E80-20,AllData,COLUMN()-6-COLUMN($E80)),VLOOKUP($E80-21,AllData,COLUMN()-6-COLUMN($E80)),VLOOKUP($E80-22,AllData,COLUMN()-6-COLUMN($E80)),VLOOKUP($E80-23,AllData,COLUMN()-6-COLUMN($E80)),VLOOKUP($E80-24,AllData,COLUMN()-6-COLUMN($E80)),VLOOKUP($E80-25,AllData,COLUMN()-6-COLUMN($E80)),VLOOKUP($E80-26,AllData,COLUMN()-6-COLUMN($E80)),VLOOKUP($E80-27,AllData,COLUMN()-6-COLUMN($E80)),VLOOKUP($E80-28,AllData,COLUMN()-6-COLUMN($E80)),VLOOKUP($E80-29,AllData,COLUMN()-6-COLUMN($E80)))","v":1393.0900000000001},{"$f":"VLOOKUP($E80,AllData,COLUMN()-7-COLUMN($E80))","v":100},{"$f":"OR('Cool Graph'!$I$1=35,'Cool Graph'!$I$1=36,'Cool Graph'!$I$1=37,'Cool Graph'!$I$1=38,'Cool Graph'!$I$1=39,'Cool Graph'!$I$1=40,'Cool Graph'!$I$1=41,'Cool Graph'!$I$1=42,'Cool Graph'!$I$1=43,'Cool Graph'!$I$1=44,'Cool Graph'!$I$1=45,'Cool Graph'!$I$1=46,'Cool Graph'!$I$1=47,'Cool Graph'!$I$1=58,'Cool Graph'!$I$1=66)","v":false}]
["2011-09-18",{"$f":"OFFSET(OldSchoolJustValues!A81,0,'Cool Graph'!$H$1)","v":0},{"$f":"OFFSET(OldSchoolJustValues!A81,0,'Cool Graph'!$I$1)","v":325.29988225370539},null,{"$f":"IF(NewDate>EndDate,NA(),NewDate)","v":"2011-12-14"},{"$f":"IF($E81>EndDate,NA(),IF($K$2=TRUE,N81,IF('Cool Graph'!$B$17=1,N81,IF('Cool Graph'!$B$17=2,L81,IF('Cool Graph'!$B$17=3,M81,)))))","v":99.74},{"$f":"IF($E81>EndDate,NA(),IF($O$2=TRUE,J81,IF('Cool Graph'!$B$17=1,Data1!J81,IF('Cool Graph'!$B$17=2,Data1!H81,IF('Cool Graph'!$B$17=3,Data1!I81,)))))","v":1161.4927173318629},{"$f":"SUM(VLOOKUP($E81,AllData,COLUMN()-COLUMN($E81)),VLOOKUP($E81-1,AllData,COLUMN()-COLUMN($E81)),VLOOKUP($E81-2,AllData,COLUMN()-COLUMN($E81)),VLOOKUP($E81-3,AllData,COLUMN()-COLUMN($E81)),VLOOKUP($E81-4,AllData,COLUMN()-COLUMN($E81)),VLOOKUP($E81-5,AllData,COLUMN()-COLUMN($E81)),VLOOKUP($E81-6,AllData,COLUMN()-COLUMN($E81)))","v":8422.9597300925816},{"$f":"SUM(VLOOKUP($E81,AllData,COLUMN()-1-COLUMN($E81)),VLOOKUP($E81-1,AllData,COLUMN()-1-COLUMN($E81)),VLOOKUP($E81-2,AllData,COLUMN()-1-COLUMN($E81)),VLOOKUP($E81-3,AllData,COLUMN()-1-COLUMN($E81)),VLOOKUP($E81-4,AllData,COLUMN()-1-COLUMN($E81)),VLOOKUP($E81-5,AllData,COLUMN()-1-COLUMN($E81)),VLOOKUP($E81-6,AllData,COLUMN()-1-COLUMN($E81)),VLOOKUP($E81-7,AllData,COLUMN()-1-COLUMN($E81)),VLOOKUP($E81-8,AllData,COLUMN()-1-COLUMN($E81)),VLOOKUP($E81-9,AllData,COLUMN()-1-COLUMN($E81)),VLOOKUP($E81-10,AllData,COLUMN()-1-COLUMN($E81)),VLOOKUP($E81-11,AllData,COLUMN()-1-COLUMN($E81)),VLOOKUP($E81-12,AllData,COLUMN()-1-COLUMN($E81)),VLOOKUP($E81-13,AllData,COLUMN()-1-COLUMN($E81)),VLOOKUP($E81-14,AllData,COLUMN()-1-COLUMN($E81)),VLOOKUP($E81-15,AllData,COLUMN()-1-COLUMN($E81)),VLOOKUP($E81-16,AllData,COLUMN()-1-COLUMN($E81)),VLOOKUP($E81-17,AllData,COLUMN()-1-COLUMN($E81)),VLOOKUP($E81-18,AllData,COLUMN()-1-COLUMN($E81)),VLOOKUP($E81-19,AllData,COLUMN()-1-COLUMN($E81)),VLOOKUP($E81-20,AllData,COLUMN()-1-COLUMN($E81)),VLOOKUP($E81-21,AllData,COLUMN()-1-COLUMN($E81)),VLOOKUP($E81-22,AllData,COLUMN()-1-COLUMN($E81)),VLOOKUP($E81-23,AllData,COLUMN()-1-COLUMN($E81)),VLOOKUP($E81-24,AllData,COLUMN()-1-COLUMN($E81)),VLOOKUP($E81-25,AllData,COLUMN()-1-COLUMN($E81)),VLOOKUP($E81-26,AllData,COLUMN()-1-COLUMN($E81)),VLOOKUP($E81-27,AllData,COLUMN()-1-COLUMN($E81)),VLOOKUP($E81-28,AllData,COLUMN()-1-COLUMN($E81)),VLOOKUP($E81-29,AllData,COLUMN()-1-COLUMN($E81)))","v":24315.346214516441},{"$f":"VLOOKUP($E81,AllData,COLUMN()-2-COLUMN($E81))","v":1161.4927173318629},{"$f":"OR('Cool Graph'!$H$1=35,'Cool Graph'!$H$1=36,'Cool Graph'!$H$1=37,'Cool Graph'!$H$1=38,'Cool Graph'!$H$1=39,'Cool Graph'!$H$1=40,'Cool Graph'!$H$1=41,'Cool Graph'!$H$1=42,'Cool Graph'!$H$1=43,'Cool Graph'!$H$1=44,'Cool Graph'!$H$1=45,'Cool Graph'!$H$1=46,'Cool Graph'!$H$1=47,'Cool Graph'!$H$1=58,'Cool Graph'!$H$1=66)","v":false},{"$f":"SUM(VLOOKUP($E81,AllData,COLUMN()-5-COLUMN($E81)),VLOOKUP($E81-1,AllData,COLUMN()-5-COLUMN($E81)),VLOOKUP($E81-2,AllData,COLUMN()-5-COLUMN($E81)),VLOOKUP($E81-3,AllData,COLUMN()-5-COLUMN($E81)),VLOOKUP($E81-4,AllData,COLUMN()-5-COLUMN($E81)),VLOOKUP($E81-5,AllData,COLUMN()-5-COLUMN($E81)),VLOOKUP($E81-6,AllData,COLUMN()-5-COLUMN($E81)))","v":649.87000000000012},{"$f":"SUM(VLOOKUP($E81,AllData,COLUMN()-6-COLUMN($E81)),VLOOKUP($E81-1,AllData,COLUMN()-6-COLUMN($E81)),VLOOKUP($E81-2,AllData,COLUMN()-6-COLUMN($E81)),VLOOKUP($E81-3,AllData,COLUMN()-6-COLUMN($E81)),VLOOKUP($E81-4,AllData,COLUMN()-6-COLUMN($E81)),VLOOKUP($E81-5,AllData,COLUMN()-6-COLUMN($E81)),VLOOKUP($E81-6,AllData,COLUMN()-6-COLUMN($E81)),VLOOKUP($E81-7,AllData,COLUMN()-6-COLUMN($E81)),VLOOKUP($E81-8,AllData,COLUMN()-6-COLUMN($E81)),VLOOKUP($E81-9,AllData,COLUMN()-6-COLUMN($E81)),VLOOKUP($E81-10,AllData,COLUMN()-6-COLUMN($E81)),VLOOKUP($E81-11,AllData,COLUMN()-6-COLUMN($E81)),VLOOKUP($E81-12,AllData,COLUMN()-6-COLUMN($E81)),VLOOKUP($E81-13,AllData,COLUMN()-6-COLUMN($E81)),VLOOKUP($E81-14,AllData,COLUMN()-6-COLUMN($E81)),VLOOKUP($E81-15,AllData,COLUMN()-6-COLUMN($E81)),VLOOKUP($E81-16,AllData,COLUMN()-6-COLUMN($E81)),VLOOKUP($E81-17,AllData,COLUMN()-6-COLUMN($E81)),VLOOKUP($E81-18,AllData,COLUMN()-6-COLUMN($E81)),VLOOKUP($E81-19,AllData,COLUMN()-6-COLUMN($E81)),VLOOKUP($E81-20,AllData,COLUMN()-6-COLUMN($E81)),VLOOKUP($E81-21,AllData,COLUMN()-6-COLUMN($E81)),VLOOKUP($E81-22,AllData,COLUMN()-6-COLUMN($E81)),VLOOKUP($E81-23,AllData,COLUMN()-6-COLUMN($E81)),VLOOKUP($E81-24,AllData,COLUMN()-6-COLUMN($E81)),VLOOKUP($E81-25,AllData,COLUMN()-6-COLUMN($E81)),VLOOKUP($E81-26,AllData,COLUMN()-6-COLUMN($E81)),VLOOKUP($E81-27,AllData,COLUMN()-6-COLUMN($E81)),VLOOKUP($E81-28,AllData,COLUMN()-6-COLUMN($E81)),VLOOKUP($E81-29,AllData,COLUMN()-6-COLUMN($E81)))","v":1492.8300000000002},{"$f":"VLOOKUP($E81,AllData,COLUMN()-7-COLUMN($E81))","v":99.74},{"$f":"OR('Cool Graph'!$I$1=35,'Cool Graph'!$I$1=36,'Cool Graph'!$I$1=37,'Cool Graph'!$I$1=38,'Cool Graph'!$I$1=39,'Cool Graph'!$I$1=40,'Cool Graph'!$I$1=41,'Cool Graph'!$I$1=42,'Cool Graph'!$I$1=43,'Cool Graph'!$I$1=44,'Cool Graph'!$I$1=45,'Cool Graph'!$I$1=46,'Cool Graph'!$I$1=47,'Cool Graph'!$I$1=58,'Cool Graph'!$I$1=66)","v":false}]
["2011-09-19",{"$f":"OFFSET(OldSchoolJustValues!A82,0,'Cool Graph'!$H$1)","v":0},{"$f":"OFFSET(OldSchoolJustValues!A82,0,'Cool Graph'!$I$1)","v":379.39319596265625},null,{"$f":"IF(NewDate>EndDate,NA(),NewDate)","v":"2011-12-15"},{"$f":"IF($E82>EndDate,NA(),IF($K$2=TRUE,N82,IF('Cool Graph'!$B$17=1,N82,IF('Cool Graph'!$B$17=2,L82,IF('Cool Graph'!$B$17=3,M82,)))))","v":31.18},{"$f":"IF($E82>EndDate,NA(),IF($O$2=TRUE,J82,IF('Cool Graph'!$B$17=1,Data1!J82,IF('Cool Graph'!$B$17=2,Data1!H82,IF('Cool Graph'!$B$17=3,Data1!I82,)))))","v":2235.2382827413412},{"$f":"SUM(VLOOKUP($E82,AllData,COLUMN()-COLUMN($E82)),VLOOKUP($E82-1,AllData,COLUMN()-COLUMN($E82)),VLOOKUP($E82-2,AllData,COLUMN()-COLUMN($E82)),VLOOKUP($E82-3,AllData,COLUMN()-COLUMN($E82)),VLOOKUP($E82-4,AllData,COLUMN()-COLUMN($E82)),VLOOKUP($E82-5,AllData,COLUMN()-COLUMN($E82)),VLOOKUP($E82-6,AllData,COLUMN()-COLUMN($E82)))","v":10108.574868098796},{"$f":"SUM(VLOOKUP($E82,AllData,COLUMN()-1-COLUMN($E82)),VLOOKUP($E82-1,AllData,COLUMN()-1-COLUMN($E82)),VLOOKUP($E82-2,AllData,COLUMN()-1-COLUMN($E82)),VLOOKUP($E82-3,AllData,COLUMN()-1-COLUMN($E82)),VLOOKUP($E82-4,AllData,COLUMN()-1-COLUMN($E82)),VLOOKUP($E82-5,AllData,COLUMN()-1-COLUMN($E82)),VLOOKUP($E82-6,AllData,COLUMN()-1-COLUMN($E82)),VLOOKUP($E82-7,AllData,COLUMN()-1-COLUMN($E82)),VLOOKUP($E82-8,AllData,COLUMN()-1-COLUMN($E82)),VLOOKUP($E82-9,AllData,COLUMN()-1-COLUMN($E82)),VLOOKUP($E82-10,AllData,COLUMN()-1-COLUMN($E82)),VLOOKUP($E82-11,AllData,COLUMN()-1-COLUMN($E82)),VLOOKUP($E82-12,AllData,COLUMN()-1-COLUMN($E82)),VLOOKUP($E82-13,AllData,COLUMN()-1-COLUMN($E82)),VLOOKUP($E82-14,AllData,COLUMN()-1-COLUMN($E82)),VLOOKUP($E82-15,AllData,COLUMN()-1-COLUMN($E82)),VLOOKUP($E82-16,AllData,COLUMN()-1-COLUMN($E82)),VLOOKUP($E82-17,AllData,COLUMN()-1-COLUMN($E82)),VLOOKUP($E82-18,AllData,COLUMN()-1-COLUMN($E82)),VLOOKUP($E82-19,AllData,COLUMN()-1-COLUMN($E82)),VLOOKUP($E82-20,AllData,COLUMN()-1-COLUMN($E82)),VLOOKUP($E82-21,AllData,COLUMN()-1-COLUMN($E82)),VLOOKUP($E82-22,AllData,COLUMN()-1-COLUMN($E82)),VLOOKUP($E82-23,AllData,COLUMN()-1-COLUMN($E82)),VLOOKUP($E82-24,AllData,COLUMN()-1-COLUMN($E82)),VLOOKUP($E82-25,AllData,COLUMN()-1-COLUMN($E82)),VLOOKUP($E82-26,AllData,COLUMN()-1-COLUMN($E82)),VLOOKUP($E82-27,AllData,COLUMN()-1-COLUMN($E82)),VLOOKUP($E82-28,AllData,COLUMN()-1-COLUMN($E82)),VLOOKUP($E82-29,AllData,COLUMN()-1-COLUMN($E82)))","v":26129.464673877228},{"$f":"VLOOKUP($E82,AllData,COLUMN()-2-COLUMN($E82))","v":2235.2382827413412},{"$f":"OR('Cool Graph'!$H$1=35,'Cool Graph'!$H$1=36,'Cool Graph'!$H$1=37,'Cool Graph'!$H$1=38,'Cool Graph'!$H$1=39,'Cool Graph'!$H$1=40,'Cool Graph'!$H$1=41,'Cool Graph'!$H$1=42,'Cool Graph'!$H$1=43,'Cool Graph'!$H$1=44,'Cool Graph'!$H$1=45,'Cool Graph'!$H$1=46,'Cool Graph'!$H$1=47,'Cool Graph'!$H$1=58,'Cool Graph'!$H$1=66)","v":false},{"$f":"SUM(VLOOKUP($E82,AllData,COLUMN()-5-COLUMN($E82)),VLOOKUP($E82-1,AllData,COLUMN()-5-COLUMN($E82)),VLOOKUP($E82-2,AllData,COLUMN()-5-COLUMN($E82)),VLOOKUP($E82-3,AllData,COLUMN()-5-COLUMN($E82)),VLOOKUP($E82-4,AllData,COLUMN()-5-COLUMN($E82)),VLOOKUP($E82-5,AllData,COLUMN()-5-COLUMN($E82)),VLOOKUP($E82-6,AllData,COLUMN()-5-COLUMN($E82)))","v":630.59999999999991},{"$f":"SUM(VLOOKUP($E82,AllData,COLUMN()-6-COLUMN($E82)),VLOOKUP($E82-1,AllData,COLUMN()-6-COLUMN($E82)),VLOOKUP($E82-2,AllData,COLUMN()-6-COLUMN($E82)),VLOOKUP($E82-3,AllData,COLUMN()-6-COLUMN($E82)),VLOOKUP($E82-4,AllData,COLUMN()-6-COLUMN($E82)),VLOOKUP($E82-5,AllData,COLUMN()-6-COLUMN($E82)),VLOOKUP($E82-6,AllData,COLUMN()-6-COLUMN($E82)),VLOOKUP($E82-7,AllData,COLUMN()-6-COLUMN($E82)),VLOOKUP($E82-8,AllData,COLUMN()-6-COLUMN($E82)),VLOOKUP($E82-9,AllData,COLUMN()-6-COLUMN($E82)),VLOOKUP($E82-10,AllData,COLUMN()-6-COLUMN($E82)),VLOOKUP($E82-11,AllData,COLUMN()-6-COLUMN($E82)),VLOOKUP($E82-12,AllData,COLUMN()-6-COLUMN($E82)),VLOOKUP($E82-13,AllData,COLUMN()-6-COLUMN($E82)),VLOOKUP($E82-14,AllData,COLUMN()-6-COLUMN($E82)),VLOOKUP($E82-15,AllData,COLUMN()-6-COLUMN($E82)),VLOOKUP($E82-16,AllData,COLUMN()-6-COLUMN($E82)),VLOOKUP($E82-17,AllData,COLUMN()-6-COLUMN($E82)),VLOOKUP($E82-18,AllData,COLUMN()-6-COLUMN($E82)),VLOOKUP($E82-19,AllData,COLUMN()-6-COLUMN($E82)),VLOOKUP($E82-20,AllData,COLUMN()-6-COLUMN($E82)),VLOOKUP($E82-21,AllData,COLUMN()-6-COLUMN($E82)),VLOOKUP($E82-22,AllData,COLUMN()-6-COLUMN($E82)),VLOOKUP($E82-23,AllData,COLUMN()-6-COLUMN($E82)),VLOOKUP($E82-24,AllData,COLUMN()-6-COLUMN($E82)),VLOOKUP($E82-25,AllData,COLUMN()-6-COLUMN($E82)),VLOOKUP($E82-26,AllData,COLUMN()-6-COLUMN($E82)),VLOOKUP($E82-27,AllData,COLUMN()-6-COLUMN($E82)),VLOOKUP($E82-28,AllData,COLUMN()-6-COLUMN($E82)),VLOOKUP($E82-29,AllData,COLUMN()-6-COLUMN($E82)))","v":1524.01},{"$f":"VLOOKUP($E82,AllData,COLUMN()-7-COLUMN($E82))","v":31.18},{"$f":"OR('Cool Graph'!$I$1=35,'Cool Graph'!$I$1=36,'Cool Graph'!$I$1=37,'Cool Graph'!$I$1=38,'Cool Graph'!$I$1=39,'Cool Graph'!$I$1=40,'Cool Graph'!$I$1=41,'Cool Graph'!$I$1=42,'Cool Graph'!$I$1=43,'Cool Graph'!$I$1=44,'Cool Graph'!$I$1=45,'Cool Graph'!$I$1=46,'Cool Graph'!$I$1=47,'Cool Graph'!$I$1=58,'Cool Graph'!$I$1=66)","v":false}]
["2011-09-20",{"$f":"OFFSET(OldSchoolJustValues!A83,0,'Cool Graph'!$H$1)","v":0},{"$f":"OFFSET(OldSchoolJustValues!A83,0,'Cool Graph'!$I$1)","v":325.70988225370536},null,{"$f":"IF(NewDate>EndDate,NA(),NewDate)","v":"2011-12-16"},{"$f":"IF($E83>EndDate,NA(),IF($K$2=TRUE,N83,IF('Cool Graph'!$B$17=1,N83,IF('Cool Graph'!$B$17=2,L83,IF('Cool Graph'!$B$17=3,M83,)))))","v":30.43},{"$f":"IF($E83>EndDate,NA(),IF($O$2=TRUE,J83,IF('Cool Graph'!$B$17=1,Data1!J83,IF('Cool Graph'!$B$17=2,Data1!H83,IF('Cool Graph'!$B$17=3,Data1!I83,)))))","v":734.21977215302559},{"$f":"SUM(VLOOKUP($E83,AllData,COLUMN()-COLUMN($E83)),VLOOKUP($E83-1,AllData,COLUMN()-COLUMN($E83)),VLOOKUP($E83-2,AllData,COLUMN()-COLUMN($E83)),VLOOKUP($E83-3,AllData,COLUMN()-COLUMN($E83)),VLOOKUP($E83-4,AllData,COLUMN()-COLUMN($E83)),VLOOKUP($E83-5,AllData,COLUMN()-COLUMN($E83)),VLOOKUP($E83-6,AllData,COLUMN()-COLUMN($E83)))","v":10127.261679781755},{"$f":"SUM(VLOOKUP($E83,AllData,COLUMN()-1-COLUMN($E83)),VLOOKUP($E83-1,AllData,COLUMN()-1-COLUMN($E83)),VLOOKUP($E83-2,AllData,COLUMN()-1-COLUMN($E83)),VLOOKUP($E83-3,AllData,COLUMN()-1-COLUMN($E83)),VLOOKUP($E83-4,AllData,COLUMN()-1-COLUMN($E83)),VLOOKUP($E83-5,AllData,COLUMN()-1-COLUMN($E83)),VLOOKUP($E83-6,AllData,COLUMN()-1-COLUMN($E83)),VLOOKUP($E83-7,AllData,COLUMN()-1-COLUMN($E83)),VLOOKUP($E83-8,AllData,COLUMN()-1-COLUMN($E83)),VLOOKUP($E83-9,AllData,COLUMN()-1-COLUMN($E83)),VLOOKUP($E83-10,AllData,COLUMN()-1-COLUMN($E83)),VLOOKUP($E83-11,AllData,COLUMN()-1-COLUMN($E83)),VLOOKUP($E83-12,AllData,COLUMN()-1-COLUMN($E83)),VLOOKUP($E83-13,AllData,COLUMN()-1-COLUMN($E83)),VLOOKUP($E83-14,AllData,COLUMN()-1-COLUMN($E83)),VLOOKUP($E83-15,AllData,COLUMN()-1-COLUMN($E83)),VLOOKUP($E83-16,AllData,COLUMN()-1-COLUMN($E83)),VLOOKUP($E83-17,AllData,COLUMN()-1-COLUMN($E83)),VLOOKUP($E83-18,AllData,COLUMN()-1-COLUMN($E83)),VLOOKUP($E83-19,AllData,COLUMN()-1-COLUMN($E83)),VLOOKUP($E83-20,AllData,COLUMN()-1-COLUMN($E83)),VLOOKUP($E83-21,AllData,COLUMN()-1-COLUMN($E83)),VLOOKUP($E83-22,AllData,COLUMN()-1-COLUMN($E83)),VLOOKUP($E83-23,AllData,COLUMN()-1-COLUMN($E83)),VLOOKUP($E83-24,AllData,COLUMN()-1-COLUMN($E83)),VLOOKUP($E83-25,AllData,COLUMN()-1-COLUMN($E83)),VLOOKUP($E83-26,AllData,COLUMN()-1-COLUMN($E83)),VLOOKUP($E83-27,AllData,COLUMN()-1-COLUMN($E83)),VLOOKUP($E83-28,AllData,COLUMN()-1-COLUMN($E83)),VLOOKUP($E83-29,AllData,COLUMN()-1-COLUMN($E83)))","v":26486.541692762086},{"$f":"VLOOKUP($E83,AllData,COLUMN()-2-COLUMN($E83))","v":734.21977215302559},{"$f":"OR('Cool Graph'!$H$1=35,'Cool Graph'!$H$1=36,'Cool Graph'!$H$1=37,'Cool Graph'!$H$1=38,'Cool Graph'!$H$1=39,'Cool Graph'!$H$1=40,'Cool Graph'!$H$1=41,'Cool Graph'!$H$1=42,'Cool Graph'!$H$1=43,'Cool Graph'!$H$1=44,'Cool Graph'!$H$1=45,'Cool Graph'!$H$1=46,'Cool Graph'!$H$1=47,'Cool Graph'!$H$1=58,'Cool Graph'!$H$1=66)","v":false},{"$f":"SUM(VLOOKUP($E83,AllData,COLUMN()-5-COLUMN($E83)),VLOOKUP($E83-1,AllData,COLUMN()-5-COLUMN($E83)),VLOOKUP($E83-2,AllData,COLUMN()-5-COLUMN($E83)),VLOOKUP($E83-3,AllData,COLUMN()-5-COLUMN($E83)),VLOOKUP($E83-4,AllData,COLUMN()-5-COLUMN($E83)),VLOOKUP($E83-5,AllData,COLUMN()-5-COLUMN($E83)),VLOOKUP($E83-6,AllData,COLUMN()-5-COLUMN($E83)))","v":561.35},{"$f":"SUM(VLOOKUP($E83,AllData,COLUMN()-6-COLUMN($E83)),VLOOKUP($E83-1,AllData,COLUMN()-6-COLUMN($E83)),VLOOKUP($E83-2,AllData,COLUMN()-6-COLUMN($E83)),VLOOKUP($E83-3,AllData,COLUMN()-6-COLUMN($E83)),VLOOKUP($E83-4,AllData,COLUMN()-6-COLUMN($E83)),VLOOKUP($E83-5,AllData,COLUMN()-6-COLUMN($E83)),VLOOKUP($E83-6,AllData,COLUMN()-6-COLUMN($E83)),VLOOKUP($E83-7,AllData,COLUMN()-6-COLUMN($E83)),VLOOKUP($E83-8,AllData,COLUMN()-6-COLUMN($E83)),VLOOKUP($E83-9,AllData,COLUMN()-6-COLUMN($E83)),VLOOKUP($E83-10,AllData,COLUMN()-6-COLUMN($E83)),VLOOKUP($E83-11,AllData,COLUMN()-6-COLUMN($E83)),VLOOKUP($E83-12,AllData,COLUMN()-6-COLUMN($E83)),VLOOKUP($E83-13,AllData,COLUMN()-6-COLUMN($E83)),VLOOKUP($E83-14,AllData,COLUMN()-6-COLUMN($E83)),VLOOKUP($E83-15,AllData,COLUMN()-6-COLUMN($E83)),VLOOKUP($E83-16,AllData,COLUMN()-6-COLUMN($E83)),VLOOKUP($E83-17,AllData,COLUMN()-6-COLUMN($E83)),VLOOKUP($E83-18,AllData,COLUMN()-6-COLUMN($E83)),VLOOKUP($E83-19,AllData,COLUMN()-6-COLUMN($E83)),VLOOKUP($E83-20,AllData,COLUMN()-6-COLUMN($E83)),VLOOKUP($E83-21,AllData,COLUMN()-6-COLUMN($E83)),VLOOKUP($E83-22,AllData,COLUMN()-6-COLUMN($E83)),VLOOKUP($E83-23,AllData,COLUMN()-6-COLUMN($E83)),VLOOKUP($E83-24,AllData,COLUMN()-6-COLUMN($E83)),VLOOKUP($E83-25,AllData,COLUMN()-6-COLUMN($E83)),VLOOKUP($E83-26,AllData,COLUMN()-6-COLUMN($E83)),VLOOKUP($E83-27,AllData,COLUMN()-6-COLUMN($E83)),VLOOKUP($E83-28,AllData,COLUMN()-6-COLUMN($E83)),VLOOKUP($E83-29,AllData,COLUMN()-6-COLUMN($E83)))","v":1554.44},{"$f":"VLOOKUP($E83,AllData,COLUMN()-7-COLUMN($E83))","v":30.43},{"$f":"OR('Cool Graph'!$I$1=35,'Cool Graph'!$I$1=36,'Cool Graph'!$I$1=37,'Cool Graph'!$I$1=38,'Cool Graph'!$I$1=39,'Cool Graph'!$I$1=40,'Cool Graph'!$I$1=41,'Cool Graph'!$I$1=42,'Cool Graph'!$I$1=43,'Cool Graph'!$I$1=44,'Cool Graph'!$I$1=45,'Cool Graph'!$I$1=46,'Cool Graph'!$I$1=47,'Cool Graph'!$I$1=58,'Cool Graph'!$I$1=66)","v":false}]
["2011-09-21",{"$f":"OFFSET(OldSchoolJustValues!A84,0,'Cool Graph'!$H$1)","v":0},{"$f":"OFFSET(OldSchoolJustValues!A84,0,'Cool Graph'!$I$1)","v":197.0732548358036},null,{"$f":"IF(NewDate>EndDate,NA(),NewDate)","v":"2011-12-17"},{"$f":"IF($E84>EndDate,NA(),IF($K$2=TRUE,N84,IF('Cool Graph'!$B$17=1,N84,IF('Cool Graph'!$B$17=2,L84,IF('Cool Graph'!$B$17=3,M84,)))))","v":61.98},{"$f":"IF($E84>EndDate,NA(),IF($O$2=TRUE,J84,IF('Cool Graph'!$B$17=1,Data1!J84,IF('Cool Graph'!$B$17=2,Data1!H84,IF('Cool Graph'!$B$17=3,Data1!I84,)))))","v":313.70696001171274},{"$f":"SUM(VLOOKUP($E84,AllData,COLUMN()-COLUMN($E84)),VLOOKUP($E84-1,AllData,COLUMN()-COLUMN($E84)),VLOOKUP($E84-2,AllData,COLUMN()-COLUMN($E84)),VLOOKUP($E84-3,AllData,COLUMN()-COLUMN($E84)),VLOOKUP($E84-4,AllData,COLUMN()-COLUMN($E84)),VLOOKUP($E84-5,AllData,COLUMN()-COLUMN($E84)),VLOOKUP($E84-6,AllData,COLUMN()-COLUMN($E84)))","v":9448.9520406662559},{"$f":"SUM(VLOOKUP($E84,AllData,COLUMN()-1-COLUMN($E84)),VLOOKUP($E84-1,AllData,COLUMN()-1-COLUMN($E84)),VLOOKUP($E84-2,AllData,COLUMN()-1-COLUMN($E84)),VLOOKUP($E84-3,AllData,COLUMN()-1-COLUMN($E84)),VLOOKUP($E84-4,AllData,COLUMN()-1-COLUMN($E84)),VLOOKUP($E84-5,AllData,COLUMN()-1-COLUMN($E84)),VLOOKUP($E84-6,AllData,COLUMN()-1-COLUMN($E84)),VLOOKUP($E84-7,AllData,COLUMN()-1-COLUMN($E84)),VLOOKUP($E84-8,AllData,COLUMN()-1-COLUMN($E84)),VLOOKUP($E84-9,AllData,COLUMN()-1-COLUMN($E84)),VLOOKUP($E84-10,AllData,COLUMN()-1-COLUMN($E84)),VLOOKUP($E84-11,AllData,COLUMN()-1-COLUMN($E84)),VLOOKUP($E84-12,AllData,COLUMN()-1-COLUMN($E84)),VLOOKUP($E84-13,AllData,COLUMN()-1-COLUMN($E84)),VLOOKUP($E84-14,AllData,COLUMN()-1-COLUMN($E84)),VLOOKUP($E84-15,AllData,COLUMN()-1-COLUMN($E84)),VLOOKUP($E84-16,AllData,COLUMN()-1-COLUMN($E84)),VLOOKUP($E84-17,AllData,COLUMN()-1-COLUMN($E84)),VLOOKUP($E84-18,AllData,COLUMN()-1-COLUMN($E84)),VLOOKUP($E84-19,AllData,COLUMN()-1-COLUMN($E84)),VLOOKUP($E84-20,AllData,COLUMN()-1-COLUMN($E84)),VLOOKUP($E84-21,AllData,COLUMN()-1-COLUMN($E84)),VLOOKUP($E84-22,AllData,COLUMN()-1-COLUMN($E84)),VLOOKUP($E84-23,AllData,COLUMN()-1-COLUMN($E84)),VLOOKUP($E84-24,AllData,COLUMN()-1-COLUMN($E84)),VLOOKUP($E84-25,AllData,COLUMN()-1-COLUMN($E84)),VLOOKUP($E84-26,AllData,COLUMN()-1-COLUMN($E84)),VLOOKUP($E84-27,AllData,COLUMN()-1-COLUMN($E84)),VLOOKUP($E84-28,AllData,COLUMN()-1-COLUMN($E84)),VLOOKUP($E84-29,AllData,COLUMN()-1-COLUMN($E84)))","v":26250.072201975341},{"$f":"VLOOKUP($E84,AllData,COLUMN()-2-COLUMN($E84))","v":313.70696001171274},{"$f":"OR('Cool Graph'!$H$1=35,'Cool Graph'!$H$1=36,'Cool Graph'!$H$1=37,'Cool Graph'!$H$1=38,'Cool Graph'!$H$1=39,'Cool Graph'!$H$1=40,'Cool Graph'!$H$1=41,'Cool Graph'!$H$1=42,'Cool Graph'!$H$1=43,'Cool Graph'!$H$1=44,'Cool Graph'!$H$1=45,'Cool Graph'!$H$1=46,'Cool Graph'!$H$1=47,'Cool Graph'!$H$1=58,'Cool Graph'!$H$1=66)","v":false},{"$f":"SUM(VLOOKUP($E84,AllData,COLUMN()-5-COLUMN($E84)),VLOOKUP($E84-1,AllData,COLUMN()-5-COLUMN($E84)),VLOOKUP($E84-2,AllData,COLUMN()-5-COLUMN($E84)),VLOOKUP($E84-3,AllData,COLUMN()-5-COLUMN($E84)),VLOOKUP($E84-4,AllData,COLUMN()-5-COLUMN($E84)),VLOOKUP($E84-5,AllData,COLUMN()-5-COLUMN($E84)),VLOOKUP($E84-6,AllData,COLUMN()-5-COLUMN($E84)))","v":523.32999999999993},{"$f":"SUM(VLOOKUP($E84,AllData,COLUMN()-6-COLUMN($E84)),VLOOKUP($E84-1,AllData,COLUMN()-6-COLUMN($E84)),VLOOKUP($E84-2,AllData,COLUMN()-6-COLUMN($E84)),VLOOKUP($E84-3,AllData,COLUMN()-6-COLUMN($E84)),VLOOKUP($E84-4,AllData,COLUMN()-6-COLUMN($E84)),VLOOKUP($E84-5,AllData,COLUMN()-6-COLUMN($E84)),VLOOKUP($E84-6,AllData,COLUMN()-6-COLUMN($E84)),VLOOKUP($E84-7,AllData,COLUMN()-6-COLUMN($E84)),VLOOKUP($E84-8,AllData,COLUMN()-6-COLUMN($E84)),VLOOKUP($E84-9,AllData,COLUMN()-6-COLUMN($E84)),VLOOKUP($E84-10,AllData,COLUMN()-6-COLUMN($E84)),VLOOKUP($E84-11,AllData,COLUMN()-6-COLUMN($E84)),VLOOKUP($E84-12,AllData,COLUMN()-6-COLUMN($E84)),VLOOKUP($E84-13,AllData,COLUMN()-6-COLUMN($E84)),VLOOKUP($E84-14,AllData,COLUMN()-6-COLUMN($E84)),VLOOKUP($E84-15,AllData,COLUMN()-6-COLUMN($E84)),VLOOKUP($E84-16,AllData,COLUMN()-6-COLUMN($E84)),VLOOKUP($E84-17,AllData,COLUMN()-6-COLUMN($E84)),VLOOKUP($E84-18,AllData,COLUMN()-6-COLUMN($E84)),VLOOKUP($E84-19,AllData,COLUMN()-6-COLUMN($E84)),VLOOKUP($E84-20,AllData,COLUMN()-6-COLUMN($E84)),VLOOKUP($E84-21,AllData,COLUMN()-6-COLUMN($E84)),VLOOKUP($E84-22,AllData,COLUMN()-6-COLUMN($E84)),VLOOKUP($E84-23,AllData,COLUMN()-6-COLUMN($E84)),VLOOKUP($E84-24,AllData,COLUMN()-6-COLUMN($E84)),VLOOKUP($E84-25,AllData,COLUMN()-6-COLUMN($E84)),VLOOKUP($E84-26,AllData,COLUMN()-6-COLUMN($E84)),VLOOKUP($E84-27,AllData,COLUMN()-6-COLUMN($E84)),VLOOKUP($E84-28,AllData,COLUMN()-6-COLUMN($E84)),VLOOKUP($E84-29,AllData,COLUMN()-6-COLUMN($E84)))","v":1616.42},{"$f":"VLOOKUP($E84,AllData,COLUMN()-7-COLUMN($E84))","v":61.98},{"$f":"OR('Cool Graph'!$I$1=35,'Cool Graph'!$I$1=36,'Cool Graph'!$I$1=37,'Cool Graph'!$I$1=38,'Cool Graph'!$I$1=39,'Cool Graph'!$I$1=40,'Cool Graph'!$I$1=41,'Cool Graph'!$I$1=42,'Cool Graph'!$I$1=43,'Cool Graph'!$I$1=44,'Cool Graph'!$I$1=45,'Cool Graph'!$I$1=46,'Cool Graph'!$I$1=47,'Cool Graph'!$I$1=58,'Cool Graph'!$I$1=66)","v":false}]
["2011-09-22",{"$f":"OFFSET(OldSchoolJustValues!A85,0,'Cool Graph'!$H$1)","v":0},{"$f":"OFFSET(OldSchoolJustValues!A85,0,'Cool Graph'!$I$1)","v":338.73988225370539},null,{"$f":"IF(NewDate>EndDate,NA(),NewDate)","v":"2011-12-18"},{"$f":"IF($E85>EndDate,NA(),IF($K$2=TRUE,N85,IF('Cool Graph'!$B$17=1,N85,IF('Cool Graph'!$B$17=2,L85,IF('Cool Graph'!$B$17=3,M85,)))))","v":2.63},{"$f":"IF($E85>EndDate,NA(),IF($O$2=TRUE,J85,IF('Cool Graph'!$B$17=1,Data1!J85,IF('Cool Graph'!$B$17=2,Data1!H85,IF('Cool Graph'!$B$17=3,Data1!I85,)))))","v":590.60849529708617},{"$f":"SUM(VLOOKUP($E85,AllData,COLUMN()-COLUMN($E85)),VLOOKUP($E85-1,AllData,COLUMN()-COLUMN($E85)),VLOOKUP($E85-2,AllData,COLUMN()-COLUMN($E85)),VLOOKUP($E85-3,AllData,COLUMN()-COLUMN($E85)),VLOOKUP($E85-4,AllData,COLUMN()-COLUMN($E85)),VLOOKUP($E85-5,AllData,COLUMN()-COLUMN($E85)),VLOOKUP($E85-6,AllData,COLUMN()-COLUMN($E85)))","v":8835.4217004268285},{"$f":"SUM(VLOOKUP($E85,AllData,COLUMN()-1-COLUMN($E85)),VLOOKUP($E85-1,AllData,COLUMN()-1-COLUMN($E85)),VLOOKUP($E85-2,AllData,COLUMN()-1-COLUMN($E85)),VLOOKUP($E85-3,AllData,COLUMN()-1-COLUMN($E85)),VLOOKUP($E85-4,AllData,COLUMN()-1-COLUMN($E85)),VLOOKUP($E85-5,AllData,COLUMN()-1-COLUMN($E85)),VLOOKUP($E85-6,AllData,COLUMN()-1-COLUMN($E85)),VLOOKUP($E85-7,AllData,COLUMN()-1-COLUMN($E85)),VLOOKUP($E85-8,AllData,COLUMN()-1-COLUMN($E85)),VLOOKUP($E85-9,AllData,COLUMN()-1-COLUMN($E85)),VLOOKUP($E85-10,AllData,COLUMN()-1-COLUMN($E85)),VLOOKUP($E85-11,AllData,COLUMN()-1-COLUMN($E85)),VLOOKUP($E85-12,AllData,COLUMN()-1-COLUMN($E85)),VLOOKUP($E85-13,AllData,COLUMN()-1-COLUMN($E85)),VLOOKUP($E85-14,AllData,COLUMN()-1-COLUMN($E85)),VLOOKUP($E85-15,AllData,COLUMN()-1-COLUMN($E85)),VLOOKUP($E85-16,AllData,COLUMN()-1-COLUMN($E85)),VLOOKUP($E85-17,AllData,COLUMN()-1-COLUMN($E85)),VLOOKUP($E85-18,AllData,COLUMN()-1-COLUMN($E85)),VLOOKUP($E85-19,AllData,COLUMN()-1-COLUMN($E85)),VLOOKUP($E85-20,AllData,COLUMN()-1-COLUMN($E85)),VLOOKUP($E85-21,AllData,COLUMN()-1-COLUMN($E85)),VLOOKUP($E85-22,AllData,COLUMN()-1-COLUMN($E85)),VLOOKUP($E85-23,AllData,COLUMN()-1-COLUMN($E85)),VLOOKUP($E85-24,AllData,COLUMN()-1-COLUMN($E85)),VLOOKUP($E85-25,AllData,COLUMN()-1-COLUMN($E85)),VLOOKUP($E85-26,AllData,COLUMN()-1-COLUMN($E85)),VLOOKUP($E85-27,AllData,COLUMN()-1-COLUMN($E85)),VLOOKUP($E85-28,AllData,COLUMN()-1-COLUMN($E85)),VLOOKUP($E85-29,AllData,COLUMN()-1-COLUMN($E85)))","v":26522.554571422163},{"$f":"VLOOKUP($E85,AllData,COLUMN()-2-COLUMN($E85))","v":590.60849529708617},{"$f":"OR('Cool Graph'!$H$1=35,'Cool Graph'!$H$1=36,'Cool Graph'!$H$1=37,'Cool Graph'!$H$1=38,'Cool Graph'!$H$1=39,'Cool Graph'!$H$1=40,'Cool Graph'!$H$1=41,'Cool Graph'!$H$1=42,'Cool Graph'!$H$1=43,'Cool Graph'!$H$1=44,'Cool Graph'!$H$1=45,'Cool Graph'!$H$1=46,'Cool Graph'!$H$1=47,'Cool Graph'!$H$1=58,'Cool Graph'!$H$1=66)","v":false},{"$f":"SUM(VLOOKUP($E85,AllData,COLUMN()-5-COLUMN($E85)),VLOOKUP($E85-1,AllData,COLUMN()-5-COLUMN($E85)),VLOOKUP($E85-2,AllData,COLUMN()-5-COLUMN($E85)),VLOOKUP($E85-3,AllData,COLUMN()-5-COLUMN($E85)),VLOOKUP($E85-4,AllData,COLUMN()-5-COLUMN($E85)),VLOOKUP($E85-5,AllData,COLUMN()-5-COLUMN($E85)),VLOOKUP($E85-6,AllData,COLUMN()-5-COLUMN($E85)))","v":425.96},{"$f":"SUM(VLOOKUP($E85,AllData,COLUMN()-6-COLUMN($E85)),VLOOKUP($E85-1,AllData,COLUMN()-6-COLUMN($E85)),VLOOKUP($E85-2,AllData,COLUMN()-6-COLUMN($E85)),VLOOKUP($E85-3,AllData,COLUMN()-6-COLUMN($E85)),VLOOKUP($E85-4,AllData,COLUMN()-6-COLUMN($E85)),VLOOKUP($E85-5,AllData,COLUMN()-6-COLUMN($E85)),VLOOKUP($E85-6,AllData,COLUMN()-6-COLUMN($E85)),VLOOKUP($E85-7,AllData,COLUMN()-6-COLUMN($E85)),VLOOKUP($E85-8,AllData,COLUMN()-6-COLUMN($E85)),VLOOKUP($E85-9,AllData,COLUMN()-6-COLUMN($E85)),VLOOKUP($E85-10,AllData,COLUMN()-6-COLUMN($E85)),VLOOKUP($E85-11,AllData,COLUMN()-6-COLUMN($E85)),VLOOKUP($E85-12,AllData,COLUMN()-6-COLUMN($E85)),VLOOKUP($E85-13,AllData,COLUMN()-6-COLUMN($E85)),VLOOKUP($E85-14,AllData,COLUMN()-6-COLUMN($E85)),VLOOKUP($E85-15,AllData,COLUMN()-6-COLUMN($E85)),VLOOKUP($E85-16,AllData,COLUMN()-6-COLUMN($E85)),VLOOKUP($E85-17,AllData,COLUMN()-6-COLUMN($E85)),VLOOKUP($E85-18,AllData,COLUMN()-6-COLUMN($E85)),VLOOKUP($E85-19,AllData,COLUMN()-6-COLUMN($E85)),VLOOKUP($E85-20,AllData,COLUMN()-6-COLUMN($E85)),VLOOKUP($E85-21,AllData,COLUMN()-6-COLUMN($E85)),VLOOKUP($E85-22,AllData,COLUMN()-6-COLUMN($E85)),VLOOKUP($E85-23,AllData,COLUMN()-6-COLUMN($E85)),VLOOKUP($E85-24,AllData,COLUMN()-6-COLUMN($E85)),VLOOKUP($E85-25,AllData,COLUMN()-6-COLUMN($E85)),VLOOKUP($E85-26,AllData,COLUMN()-6-COLUMN($E85)),VLOOKUP($E85-27,AllData,COLUMN()-6-COLUMN($E85)),VLOOKUP($E85-28,AllData,COLUMN()-6-COLUMN($E85)),VLOOKUP($E85-29,AllData,COLUMN()-6-COLUMN($E85)))","v":1619.0500000000002},{"$f":"VLOOKUP($E85,AllData,COLUMN()-7-COLUMN($E85))","v":2.63},{"$f":"OR('Cool Graph'!$I$1=35,'Cool Graph'!$I$1=36,'Cool Graph'!$I$1=37,'Cool Graph'!$I$1=38,'Cool Graph'!$I$1=39,'Cool Graph'!$I$1=40,'Cool Graph'!$I$1=41,'Cool Graph'!$I$1=42,'Cool Graph'!$I$1=43,'Cool Graph'!$I$1=44,'Cool Graph'!$I$1=45,'Cool Graph'!$I$1=46,'Cool Graph'!$I$1=47,'Cool Graph'!$I$1=58,'Cool Graph'!$I$1=66)","v":false}]
["2011-09-23",{"$f":"OFFSET(OldSchoolJustValues!A86,0,'Cool Graph'!$H$1)","v":0},{"$f":"OFFSET(OldSchoolJustValues!A86,0,'Cool Graph'!$I$1)","v":129.43994112685272},null,{"$f":"IF(NewDate>EndDate,NA(),NewDate)","v":"2011-12-19"},{"$f":"IF($E86>EndDate,NA(),IF($K$2=TRUE,N86,IF('Cool Graph'!$B$17=1,N86,IF('Cool Graph'!$B$17=2,L86,IF('Cool Graph'!$B$17=3,M86,)))))","v":0},{"$f":"IF($E86>EndDate,NA(),IF($O$2=TRUE,J86,IF('Cool Graph'!$B$17=1,Data1!J86,IF('Cool Graph'!$B$17=2,Data1!H86,IF('Cool Graph'!$B$17=3,Data1!I86,)))))","v":1277.3323335105194},{"$f":"SUM(VLOOKUP($E86,AllData,COLUMN()-COLUMN($E86)),VLOOKUP($E86-1,AllData,COLUMN()-COLUMN($E86)),VLOOKUP($E86-2,AllData,COLUMN()-COLUMN($E86)),VLOOKUP($E86-3,AllData,COLUMN()-COLUMN($E86)),VLOOKUP($E86-4,AllData,COLUMN()-COLUMN($E86)),VLOOKUP($E86-5,AllData,COLUMN()-COLUMN($E86)),VLOOKUP($E86-6,AllData,COLUMN()-COLUMN($E86)))","v":9139.5651395276891},{"$f":"SUM(VLOOKUP($E86,AllData,COLUMN()-1-COLUMN($E86)),VLOOKUP($E86-1,AllData,COLUMN()-1-COLUMN($E86)),VLOOKUP($E86-2,AllData,COLUMN()-1-COLUMN($E86)),VLOOKUP($E86-3,AllData,COLUMN()-1-COLUMN($E86)),VLOOKUP($E86-4,AllData,COLUMN()-1-COLUMN($E86)),VLOOKUP($E86-5,AllData,COLUMN()-1-COLUMN($E86)),VLOOKUP($E86-6,AllData,COLUMN()-1-COLUMN($E86)),VLOOKUP($E86-7,AllData,COLUMN()-1-COLUMN($E86)),VLOOKUP($E86-8,AllData,COLUMN()-1-COLUMN($E86)),VLOOKUP($E86-9,AllData,COLUMN()-1-COLUMN($E86)),VLOOKUP($E86-10,AllData,COLUMN()-1-COLUMN($E86)),VLOOKUP($E86-11,AllData,COLUMN()-1-COLUMN($E86)),VLOOKUP($E86-12,AllData,COLUMN()-1-COLUMN($E86)),VLOOKUP($E86-13,AllData,COLUMN()-1-COLUMN($E86)),VLOOKUP($E86-14,AllData,COLUMN()-1-COLUMN($E86)),VLOOKUP($E86-15,AllData,COLUMN()-1-COLUMN($E86)),VLOOKUP($E86-16,AllData,COLUMN()-1-COLUMN($E86)),VLOOKUP($E86-17,AllData,COLUMN()-1-COLUMN($E86)),VLOOKUP($E86-18,AllData,COLUMN()-1-COLUMN($E86)),VLOOKUP($E86-19,AllData,COLUMN()-1-COLUMN($E86)),VLOOKUP($E86-20,AllData,COLUMN()-1-COLUMN($E86)),VLOOKUP($E86-21,AllData,COLUMN()-1-COLUMN($E86)),VLOOKUP($E86-22,AllData,COLUMN()-1-COLUMN($E86)),VLOOKUP($E86-23,AllData,COLUMN()-1-COLUMN($E86)),VLOOKUP($E86-24,AllData,COLUMN()-1-COLUMN($E86)),VLOOKUP($E86-25,AllData,COLUMN()-1-COLUMN($E86)),VLOOKUP($E86-26,AllData,COLUMN()-1-COLUMN($E86)),VLOOKUP($E86-27,AllData,COLUMN()-1-COLUMN($E86)),VLOOKUP($E86-28,AllData,COLUMN()-1-COLUMN($E86)),VLOOKUP($E86-29,AllData,COLUMN()-1-COLUMN($E86)))","v":27558.164092791369},{"$f":"VLOOKUP($E86,AllData,COLUMN()-2-COLUMN($E86))","v":1277.3323335105194},{"$f":"OR('Cool Graph'!$H$1=35,'Cool Graph'!$H$1=36,'Cool Graph'!$H$1=37,'Cool Graph'!$H$1=38,'Cool Graph'!$H$1=39,'Cool Graph'!$H$1=40,'Cool Graph'!$H$1=41,'Cool Graph'!$H$1=42,'Cool Graph'!$H$1=43,'Cool Graph'!$H$1=44,'Cool Graph'!$H$1=45,'Cool Graph'!$H$1=46,'Cool Graph'!$H$1=47,'Cool Graph'!$H$1=58,'Cool Graph'!$H$1=66)","v":false},{"$f":"SUM(VLOOKUP($E86,AllData,COLUMN()-5-COLUMN($E86)),VLOOKUP($E86-1,AllData,COLUMN()-5-COLUMN($E86)),VLOOKUP($E86-2,AllData,COLUMN()-5-COLUMN($E86)),VLOOKUP($E86-3,AllData,COLUMN()-5-COLUMN($E86)),VLOOKUP($E86-4,AllData,COLUMN()-5-COLUMN($E86)),VLOOKUP($E86-5,AllData,COLUMN()-5-COLUMN($E86)),VLOOKUP($E86-6,AllData,COLUMN()-5-COLUMN($E86)))","v":325.95999999999998},{"$f":"SUM(VLOOKUP($E86,AllData,COLUMN()-6-COLUMN($E86)),VLOOKUP($E86-1,AllData,COLUMN()-6-COLUMN($E86)),VLOOKUP($E86-2,AllData,COLUMN()-6-COLUMN($E86)),VLOOKUP($E86-3,AllData,COLUMN()-6-COLUMN($E86)),VLOOKUP($E86-4,AllData,COLUMN()-6-COLUMN($E86)),VLOOKUP($E86-5,AllData,COLUMN()-6-COLUMN($E86)),VLOOKUP($E86-6,AllData,COLUMN()-6-COLUMN($E86)),VLOOKUP($E86-7,AllData,COLUMN()-6-COLUMN($E86)),VLOOKUP($E86-8,AllData,COLUMN()-6-COLUMN($E86)),VLOOKUP($E86-9,AllData,COLUMN()-6-COLUMN($E86)),VLOOKUP($E86-10,AllData,COLUMN()-6-COLUMN($E86)),VLOOKUP($E86-11,AllData,COLUMN()-6-COLUMN($E86)),VLOOKUP($E86-12,AllData,COLUMN()-6-COLUMN($E86)),VLOOKUP($E86-13,AllData,COLUMN()-6-COLUMN($E86)),VLOOKUP($E86-14,AllData,COLUMN()-6-COLUMN($E86)),VLOOKUP($E86-15,AllData,COLUMN()-6-COLUMN($E86)),VLOOKUP($E86-16,AllData,COLUMN()-6-COLUMN($E86)),VLOOKUP($E86-17,AllData,COLUMN()-6-COLUMN($E86)),VLOOKUP($E86-18,AllData,COLUMN()-6-COLUMN($E86)),VLOOKUP($E86-19,AllData,COLUMN()-6-COLUMN($E86)),VLOOKUP($E86-20,AllData,COLUMN()-6-COLUMN($E86)),VLOOKUP($E86-21,AllData,COLUMN()-6-COLUMN($E86)),VLOOKUP($E86-22,AllData,COLUMN()-6-COLUMN($E86)),VLOOKUP($E86-23,AllData,COLUMN()-6-COLUMN($E86)),VLOOKUP($E86-24,AllData,COLUMN()-6-COLUMN($E86)),VLOOKUP($E86-25,AllData,COLUMN()-6-COLUMN($E86)),VLOOKUP($E86-26,AllData,COLUMN()-6-COLUMN($E86)),VLOOKUP($E86-27,AllData,COLUMN()-6-COLUMN($E86)),VLOOKUP($E86-28,AllData,COLUMN()-6-COLUMN($E86)),VLOOKUP($E86-29,AllData,COLUMN()-6-COLUMN($E86)))","v":1619.0500000000002},{"$f":"VLOOKUP($E86,AllData,COLUMN()-7-COLUMN($E86))","v":0},{"$f":"OR('Cool Graph'!$I$1=35,'Cool Graph'!$I$1=36,'Cool Graph'!$I$1=37,'Cool Graph'!$I$1=38,'Cool Graph'!$I$1=39,'Cool Graph'!$I$1=40,'Cool Graph'!$I$1=41,'Cool Graph'!$I$1=42,'Cool Graph'!$I$1=43,'Cool Graph'!$I$1=44,'Cool Graph'!$I$1=45,'Cool Graph'!$I$1=46,'Cool Graph'!$I$1=47,'Cool Graph'!$I$1=58,'Cool Graph'!$I$1=66)","v":false}]
["2011-09-24",{"$f":"OFFSET(OldSchoolJustValues!A87,0,'Cool Graph'!$H$1)","v":0},{"$f":"OFFSET(OldSchoolJustValues!A87,0,'Cool Graph'!$I$1)","v":67.416627417901793},null,{"$f":"IF(NewDate>EndDate,NA(),NewDate)","v":"2011-12-20"},{"$f":"IF($E87>EndDate,NA(),IF($K$2=TRUE,N87,IF('Cool Graph'!$B$17=1,N87,IF('Cool Graph'!$B$17=2,L87,IF('Cool Graph'!$B$17=3,M87,)))))","v":0},{"$f":"IF($E87>EndDate,NA(),IF($O$2=TRUE,J87,IF('Cool Graph'!$B$17=1,Data1!J87,IF('Cool Graph'!$B$17=2,Data1!H87,IF('Cool Graph'!$B$17=3,Data1!I87,)))))","v":-43.467888982611612},{"$f":"SUM(VLOOKUP($E87,AllData,COLUMN()-COLUMN($E87)),VLOOKUP($E87-1,AllData,COLUMN()-COLUMN($E87)),VLOOKUP($E87-2,AllData,COLUMN()-COLUMN($E87)),VLOOKUP($E87-3,AllData,COLUMN()-COLUMN($E87)),VLOOKUP($E87-4,AllData,COLUMN()-COLUMN($E87)),VLOOKUP($E87-5,AllData,COLUMN()-COLUMN($E87)),VLOOKUP($E87-6,AllData,COLUMN()-COLUMN($E87)))","v":6269.1306720629364},{"$f":"SUM(VLOOKUP($E87,AllData,COLUMN()-1-COLUMN($E87)),VLOOKUP($E87-1,AllData,COLUMN()-1-COLUMN($E87)),VLOOKUP($E87-2,AllData,COLUMN()-1-COLUMN($E87)),VLOOKUP($E87-3,AllData,COLUMN()-1-COLUMN($E87)),VLOOKUP($E87-4,AllData,COLUMN()-1-COLUMN($E87)),VLOOKUP($E87-5,AllData,COLUMN()-1-COLUMN($E87)),VLOOKUP($E87-6,AllData,COLUMN()-1-COLUMN($E87)),VLOOKUP($E87-7,AllData,COLUMN()-1-COLUMN($E87)),VLOOKUP($E87-8,AllData,COLUMN()-1-COLUMN($E87)),VLOOKUP($E87-9,AllData,COLUMN()-1-COLUMN($E87)),VLOOKUP($E87-10,AllData,COLUMN()-1-COLUMN($E87)),VLOOKUP($E87-11,AllData,COLUMN()-1-COLUMN($E87)),VLOOKUP($E87-12,AllData,COLUMN()-1-COLUMN($E87)),VLOOKUP($E87-13,AllData,COLUMN()-1-COLUMN($E87)),VLOOKUP($E87-14,AllData,COLUMN()-1-COLUMN($E87)),VLOOKUP($E87-15,AllData,COLUMN()-1-COLUMN($E87)),VLOOKUP($E87-16,AllData,COLUMN()-1-COLUMN($E87)),VLOOKUP($E87-17,AllData,COLUMN()-1-COLUMN($E87)),VLOOKUP($E87-18,AllData,COLUMN()-1-COLUMN($E87)),VLOOKUP($E87-19,AllData,COLUMN()-1-COLUMN($E87)),VLOOKUP($E87-20,AllData,COLUMN()-1-COLUMN($E87)),VLOOKUP($E87-21,AllData,COLUMN()-1-COLUMN($E87)),VLOOKUP($E87-22,AllData,COLUMN()-1-COLUMN($E87)),VLOOKUP($E87-23,AllData,COLUMN()-1-COLUMN($E87)),VLOOKUP($E87-24,AllData,COLUMN()-1-COLUMN($E87)),VLOOKUP($E87-25,AllData,COLUMN()-1-COLUMN($E87)),VLOOKUP($E87-26,AllData,COLUMN()-1-COLUMN($E87)),VLOOKUP($E87-27,AllData,COLUMN()-1-COLUMN($E87)),VLOOKUP($E87-28,AllData,COLUMN()-1-COLUMN($E87)),VLOOKUP($E87-29,AllData,COLUMN()-1-COLUMN($E87)))","v":26990.6097530103},{"$f":"VLOOKUP($E87,AllData,COLUMN()-2-COLUMN($E87))","v":-43.467888982611612},{"$f":"OR('Cool Graph'!$H$1=35,'Cool Graph'!$H$1=36,'Cool Graph'!$H$1=37,'Cool Graph'!$H$1=38,'Cool Graph'!$H$1=39,'Cool Graph'!$H$1=40,'Cool Graph'!$H$1=41,'Cool Graph'!$H$1=42,'Cool Graph'!$H$1=43,'Cool Graph'!$H$1=44,'Cool Graph'!$H$1=45,'Cool Graph'!$H$1=46,'Cool Graph'!$H$1=47,'Cool Graph'!$H$1=58,'Cool Graph'!$H$1=66)","v":false},{"$f":"SUM(VLOOKUP($E87,AllData,COLUMN()-5-COLUMN($E87)),VLOOKUP($E87-1,AllData,COLUMN()-5-COLUMN($E87)),VLOOKUP($E87-2,AllData,COLUMN()-5-COLUMN($E87)),VLOOKUP($E87-3,AllData,COLUMN()-5-COLUMN($E87)),VLOOKUP($E87-4,AllData,COLUMN()-5-COLUMN($E87)),VLOOKUP($E87-5,AllData,COLUMN()-5-COLUMN($E87)),VLOOKUP($E87-6,AllData,COLUMN()-5-COLUMN($E87)))","v":225.95999999999998},{"$f":"SUM(VLOOKUP($E87,AllData,COLUMN()-6-COLUMN($E87)),VLOOKUP($E87-1,AllData,COLUMN()-6-COLUMN($E87)),VLOOKUP($E87-2,AllData,COLUMN()-6-COLUMN($E87)),VLOOKUP($E87-3,AllData,COLUMN()-6-COLUMN($E87)),VLOOKUP($E87-4,AllData,COLUMN()-6-COLUMN($E87)),VLOOKUP($E87-5,AllData,COLUMN()-6-COLUMN($E87)),VLOOKUP($E87-6,AllData,COLUMN()-6-COLUMN($E87)),VLOOKUP($E87-7,AllData,COLUMN()-6-COLUMN($E87)),VLOOKUP($E87-8,AllData,COLUMN()-6-COLUMN($E87)),VLOOKUP($E87-9,AllData,COLUMN()-6-COLUMN($E87)),VLOOKUP($E87-10,AllData,COLUMN()-6-COLUMN($E87)),VLOOKUP($E87-11,AllData,COLUMN()-6-COLUMN($E87)),VLOOKUP($E87-12,AllData,COLUMN()-6-COLUMN($E87)),VLOOKUP($E87-13,AllData,COLUMN()-6-COLUMN($E87)),VLOOKUP($E87-14,AllData,COLUMN()-6-COLUMN($E87)),VLOOKUP($E87-15,AllData,COLUMN()-6-COLUMN($E87)),VLOOKUP($E87-16,AllData,COLUMN()-6-COLUMN($E87)),VLOOKUP($E87-17,AllData,COLUMN()-6-COLUMN($E87)),VLOOKUP($E87-18,AllData,COLUMN()-6-COLUMN($E87)),VLOOKUP($E87-19,AllData,COLUMN()-6-COLUMN($E87)),VLOOKUP($E87-20,AllData,COLUMN()-6-COLUMN($E87)),VLOOKUP($E87-21,AllData,COLUMN()-6-COLUMN($E87)),VLOOKUP($E87-22,AllData,COLUMN()-6-COLUMN($E87)),VLOOKUP($E87-23,AllData,COLUMN()-6-COLUMN($E87)),VLOOKUP($E87-24,AllData,COLUMN()-6-COLUMN($E87)),VLOOKUP($E87-25,AllData,COLUMN()-6-COLUMN($E87)),VLOOKUP($E87-26,AllData,COLUMN()-6-COLUMN($E87)),VLOOKUP($E87-27,AllData,COLUMN()-6-COLUMN($E87)),VLOOKUP($E87-28,AllData,COLUMN()-6-COLUMN($E87)),VLOOKUP($E87-29,AllData,COLUMN()-6-COLUMN($E87)))","v":1619.0500000000002},{"$f":"VLOOKUP($E87,AllData,COLUMN()-7-COLUMN($E87))","v":0},{"$f":"OR('Cool Graph'!$I$1=35,'Cool Graph'!$I$1=36,'Cool Graph'!$I$1=37,'Cool Graph'!$I$1=38,'Cool Graph'!$I$1=39,'Cool Graph'!$I$1=40,'Cool Graph'!$I$1=41,'Cool Graph'!$I$1=42,'Cool Graph'!$I$1=43,'Cool Graph'!$I$1=44,'Cool Graph'!$I$1=45,'Cool Graph'!$I$1=46,'Cool Graph'!$I$1=47,'Cool Graph'!$I$1=58,'Cool Graph'!$I$1=66)","v":false}]
["2011-09-25",{"$f":"OFFSET(OldSchoolJustValues!A88,0,'Cool Graph'!$H$1)","v":0},{"$f":"OFFSET(OldSchoolJustValues!A88,0,'Cool Graph'!$I$1)","v":233.21656854475447},null,{"$f":"IF(NewDate>EndDate,NA(),NewDate)","v":"2011-12-21"},{"$f":"IF($E88>EndDate,NA(),IF($K$2=TRUE,N88,IF('Cool Graph'!$B$17=1,N88,IF('Cool Graph'!$B$17=2,L88,IF('Cool Graph'!$B$17=3,M88,)))))","v":0},{"$f":"IF($E88>EndDate,NA(),IF($O$2=TRUE,J88,IF('Cool Graph'!$B$17=1,Data1!J88,IF('Cool Graph'!$B$17=2,Data1!H88,IF('Cool Graph'!$B$17=3,Data1!I88,)))))","v":309.0307164151543},{"$f":"SUM(VLOOKUP($E88,AllData,COLUMN()-COLUMN($E88)),VLOOKUP($E88-1,AllData,COLUMN()-COLUMN($E88)),VLOOKUP($E88-2,AllData,COLUMN()-COLUMN($E88)),VLOOKUP($E88-3,AllData,COLUMN()-COLUMN($E88)),VLOOKUP($E88-4,AllData,COLUMN()-COLUMN($E88)),VLOOKUP($E88-5,AllData,COLUMN()-COLUMN($E88)),VLOOKUP($E88-6,AllData,COLUMN()-COLUMN($E88)))","v":5416.668671146228},{"$f":"SUM(VLOOKUP($E88,AllData,COLUMN()-1-COLUMN($E88)),VLOOKUP($E88-1,AllData,COLUMN()-1-COLUMN($E88)),VLOOKUP($E88-2,AllData,COLUMN()-1-COLUMN($E88)),VLOOKUP($E88-3,AllData,COLUMN()-1-COLUMN($E88)),VLOOKUP($E88-4,AllData,COLUMN()-1-COLUMN($E88)),VLOOKUP($E88-5,AllData,COLUMN()-1-COLUMN($E88)),VLOOKUP($E88-6,AllData,COLUMN()-1-COLUMN($E88)),VLOOKUP($E88-7,AllData,COLUMN()-1-COLUMN($E88)),VLOOKUP($E88-8,AllData,COLUMN()-1-COLUMN($E88)),VLOOKUP($E88-9,AllData,COLUMN()-1-COLUMN($E88)),VLOOKUP($E88-10,AllData,COLUMN()-1-COLUMN($E88)),VLOOKUP($E88-11,AllData,COLUMN()-1-COLUMN($E88)),VLOOKUP($E88-12,AllData,COLUMN()-1-COLUMN($E88)),VLOOKUP($E88-13,AllData,COLUMN()-1-COLUMN($E88)),VLOOKUP($E88-14,AllData,COLUMN()-1-COLUMN($E88)),VLOOKUP($E88-15,AllData,COLUMN()-1-COLUMN($E88)),VLOOKUP($E88-16,AllData,COLUMN()-1-COLUMN($E88)),VLOOKUP($E88-17,AllData,COLUMN()-1-COLUMN($E88)),VLOOKUP($E88-18,AllData,COLUMN()-1-COLUMN($E88)),VLOOKUP($E88-19,AllData,COLUMN()-1-COLUMN($E88)),VLOOKUP($E88-20,AllData,COLUMN()-1-COLUMN($E88)),VLOOKUP($E88-21,AllData,COLUMN()-1-COLUMN($E88)),VLOOKUP($E88-22,AllData,COLUMN()-1-COLUMN($E88)),VLOOKUP($E88-23,AllData,COLUMN()-1-COLUMN($E88)),VLOOKUP($E88-24,AllData,COLUMN()-1-COLUMN($E88)),VLOOKUP($E88-25,AllData,COLUMN()-1-COLUMN($E88)),VLOOKUP($E88-26,AllData,COLUMN()-1-COLUMN($E88)),VLOOKUP($E88-27,AllData,COLUMN()-1-COLUMN($E88)),VLOOKUP($E88-28,AllData,COLUMN()-1-COLUMN($E88)),VLOOKUP($E88-29,AllData,COLUMN()-1-COLUMN($E88)))","v":26697.921147612531},{"$f":"VLOOKUP($E88,AllData,COLUMN()-2-COLUMN($E88))","v":309.0307164151543},{"$f":"OR('Cool Graph'!$H$1=35,'Cool Graph'!$H$1=36,'Cool Graph'!$H$1=37,'Cool Graph'!$H$1=38,'Cool Graph'!$H$1=39,'Cool Graph'!$H$1=40,'Cool Graph'!$H$1=41,'Cool Graph'!$H$1=42,'Cool Graph'!$H$1=43,'Cool Graph'!$H$1=44,'Cool Graph'!$H$1=45,'Cool Graph'!$H$1=46,'Cool Graph'!$H$1=47,'Cool Graph'!$H$1=58,'Cool Graph'!$H$1=66)","v":false},{"$f":"SUM(VLOOKUP($E88,AllData,COLUMN()-5-COLUMN($E88)),VLOOKUP($E88-1,AllData,COLUMN()-5-COLUMN($E88)),VLOOKUP($E88-2,AllData,COLUMN()-5-COLUMN($E88)),VLOOKUP($E88-3,AllData,COLUMN()-5-COLUMN($E88)),VLOOKUP($E88-4,AllData,COLUMN()-5-COLUMN($E88)),VLOOKUP($E88-5,AllData,COLUMN()-5-COLUMN($E88)),VLOOKUP($E88-6,AllData,COLUMN()-5-COLUMN($E88)))","v":126.22},{"$f":"SUM(VLOOKUP($E88,AllData,COLUMN()-6-COLUMN($E88)),VLOOKUP($E88-1,AllData,COLUMN()-6-COLUMN($E88)),VLOOKUP($E88-2,AllData,COLUMN()-6-COLUMN($E88)),VLOOKUP($E88-3,AllData,COLUMN()-6-COLUMN($E88)),VLOOKUP($E88-4,AllData,COLUMN()-6-COLUMN($E88)),VLOOKUP($E88-5,AllData,COLUMN()-6-COLUMN($E88)),VLOOKUP($E88-6,AllData,COLUMN()-6-COLUMN($E88)),VLOOKUP($E88-7,AllData,COLUMN()-6-COLUMN($E88)),VLOOKUP($E88-8,AllData,COLUMN()-6-COLUMN($E88)),VLOOKUP($E88-9,AllData,COLUMN()-6-COLUMN($E88)),VLOOKUP($E88-10,AllData,COLUMN()-6-COLUMN($E88)),VLOOKUP($E88-11,AllData,COLUMN()-6-COLUMN($E88)),VLOOKUP($E88-12,AllData,COLUMN()-6-COLUMN($E88)),VLOOKUP($E88-13,AllData,COLUMN()-6-COLUMN($E88)),VLOOKUP($E88-14,AllData,COLUMN()-6-COLUMN($E88)),VLOOKUP($E88-15,AllData,COLUMN()-6-COLUMN($E88)),VLOOKUP($E88-16,AllData,COLUMN()-6-COLUMN($E88)),VLOOKUP($E88-17,AllData,COLUMN()-6-COLUMN($E88)),VLOOKUP($E88-18,AllData,COLUMN()-6-COLUMN($E88)),VLOOKUP($E88-19,AllData,COLUMN()-6-COLUMN($E88)),VLOOKUP($E88-20,AllData,COLUMN()-6-COLUMN($E88)),VLOOKUP($E88-21,AllData,COLUMN()-6-COLUMN($E88)),VLOOKUP($E88-22,AllData,COLUMN()-6-COLUMN($E88)),VLOOKUP($E88-23,AllData,COLUMN()-6-COLUMN($E88)),VLOOKUP($E88-24,AllData,COLUMN()-6-COLUMN($E88)),VLOOKUP($E88-25,AllData,COLUMN()-6-COLUMN($E88)),VLOOKUP($E88-26,AllData,COLUMN()-6-COLUMN($E88)),VLOOKUP($E88-27,AllData,COLUMN()-6-COLUMN($E88)),VLOOKUP($E88-28,AllData,COLUMN()-6-COLUMN($E88)),VLOOKUP($E88-29,AllData,COLUMN()-6-COLUMN($E88)))","v":1619.0500000000002},{"$f":"VLOOKUP($E88,AllData,COLUMN()-7-COLUMN($E88))","v":0},{"$f":"OR('Cool Graph'!$I$1=35,'Cool Graph'!$I$1=36,'Cool Graph'!$I$1=37,'Cool Graph'!$I$1=38,'Cool Graph'!$I$1=39,'Cool Graph'!$I$1=40,'Cool Graph'!$I$1=41,'Cool Graph'!$I$1=42,'Cool Graph'!$I$1=43,'Cool Graph'!$I$1=44,'Cool Graph'!$I$1=45,'Cool Graph'!$I$1=46,'Cool Graph'!$I$1=47,'Cool Graph'!$I$1=58,'Cool Graph'!$I$1=66)","v":false}]
["2011-09-26",{"$f":"OFFSET(OldSchoolJustValues!A89,0,'Cool Graph'!$H$1)","v":0},{"$f":"OFFSET(OldSchoolJustValues!A89,0,'Cool Graph'!$I$1)","v":235.44634248006912},null,{"$f":"IF(NewDate>EndDate,NA(),NewDate)","v":"2011-12-22"},{"$f":"IF($E89>EndDate,NA(),IF($K$2=TRUE,N89,IF('Cool Graph'!$B$17=1,N89,IF('Cool Graph'!$B$17=2,L89,IF('Cool Graph'!$B$17=3,M89,)))))","v":0},{"$f":"IF($E89>EndDate,NA(),IF($O$2=TRUE,J89,IF('Cool Graph'!$B$17=1,Data1!J89,IF('Cool Graph'!$B$17=2,Data1!H89,IF('Cool Graph'!$B$17=3,Data1!I89,)))))","v":103.27058337762986},{"$f":"SUM(VLOOKUP($E89,AllData,COLUMN()-COLUMN($E89)),VLOOKUP($E89-1,AllData,COLUMN()-COLUMN($E89)),VLOOKUP($E89-2,AllData,COLUMN()-COLUMN($E89)),VLOOKUP($E89-3,AllData,COLUMN()-COLUMN($E89)),VLOOKUP($E89-4,AllData,COLUMN()-COLUMN($E89)),VLOOKUP($E89-5,AllData,COLUMN()-COLUMN($E89)),VLOOKUP($E89-6,AllData,COLUMN()-COLUMN($E89)))","v":3284.7009717825167},{"$f":"SUM(VLOOKUP($E89,AllData,COLUMN()-1-COLUMN($E89)),VLOOKUP($E89-1,AllData,COLUMN()-1-COLUMN($E89)),VLOOKUP($E89-2,AllData,COLUMN()-1-COLUMN($E89)),VLOOKUP($E89-3,AllData,COLUMN()-1-COLUMN($E89)),VLOOKUP($E89-4,AllData,COLUMN()-1-COLUMN($E89)),VLOOKUP($E89-5,AllData,COLUMN()-1-COLUMN($E89)),VLOOKUP($E89-6,AllData,COLUMN()-1-COLUMN($E89)),VLOOKUP($E89-7,AllData,COLUMN()-1-COLUMN($E89)),VLOOKUP($E89-8,AllData,COLUMN()-1-COLUMN($E89)),VLOOKUP($E89-9,AllData,COLUMN()-1-COLUMN($E89)),VLOOKUP($E89-10,AllData,COLUMN()-1-COLUMN($E89)),VLOOKUP($E89-11,AllData,COLUMN()-1-COLUMN($E89)),VLOOKUP($E89-12,AllData,COLUMN()-1-COLUMN($E89)),VLOOKUP($E89-13,AllData,COLUMN()-1-COLUMN($E89)),VLOOKUP($E89-14,AllData,COLUMN()-1-COLUMN($E89)),VLOOKUP($E89-15,AllData,COLUMN()-1-COLUMN($E89)),VLOOKUP($E89-16,AllData,COLUMN()-1-COLUMN($E89)),VLOOKUP($E89-17,AllData,COLUMN()-1-COLUMN($E89)),VLOOKUP($E89-18,AllData,COLUMN()-1-COLUMN($E89)),VLOOKUP($E89-19,AllData,COLUMN()-1-COLUMN($E89)),VLOOKUP($E89-20,AllData,COLUMN()-1-COLUMN($E89)),VLOOKUP($E89-21,AllData,COLUMN()-1-COLUMN($E89)),VLOOKUP($E89-22,AllData,COLUMN()-1-COLUMN($E89)),VLOOKUP($E89-23,AllData,COLUMN()-1-COLUMN($E89)),VLOOKUP($E89-24,AllData,COLUMN()-1-COLUMN($E89)),VLOOKUP($E89-25,AllData,COLUMN()-1-COLUMN($E89)),VLOOKUP($E89-26,AllData,COLUMN()-1-COLUMN($E89)),VLOOKUP($E89-27,AllData,COLUMN()-1-COLUMN($E89)),VLOOKUP($E89-28,AllData,COLUMN()-1-COLUMN($E89)),VLOOKUP($E89-29,AllData,COLUMN()-1-COLUMN($E89)))","v":26478.568593900654},{"$f":"VLOOKUP($E89,AllData,COLUMN()-2-COLUMN($E89))","v":103.27058337762986},{"$f":"OR('Cool Graph'!$H$1=35,'Cool Graph'!$H$1=36,'Cool Graph'!$H$1=37,'Cool Graph'!$H$1=38,'Cool Graph'!$H$1=39,'Cool Graph'!$H$1=40,'Cool Graph'!$H$1=41,'Cool Graph'!$H$1=42,'Cool Graph'!$H$1=43,'Cool Graph'!$H$1=44,'Cool Graph'!$H$1=45,'Cool Graph'!$H$1=46,'Cool Graph'!$H$1=47,'Cool Graph'!$H$1=58,'Cool Graph'!$H$1=66)","v":false},{"$f":"SUM(VLOOKUP($E89,AllData,COLUMN()-5-COLUMN($E89)),VLOOKUP($E89-1,AllData,COLUMN()-5-COLUMN($E89)),VLOOKUP($E89-2,AllData,COLUMN()-5-COLUMN($E89)),VLOOKUP($E89-3,AllData,COLUMN()-5-COLUMN($E89)),VLOOKUP($E89-4,AllData,COLUMN()-5-COLUMN($E89)),VLOOKUP($E89-5,AllData,COLUMN()-5-COLUMN($E89)),VLOOKUP($E89-6,AllData,COLUMN()-5-COLUMN($E89)))","v":95.039999999999992},{"$f":"SUM(VLOOKUP($E89,AllData,COLUMN()-6-COLUMN($E89)),VLOOKUP($E89-1,AllData,COLUMN()-6-COLUMN($E89)),VLOOKUP($E89-2,AllData,COLUMN()-6-COLUMN($E89)),VLOOKUP($E89-3,AllData,COLUMN()-6-COLUMN($E89)),VLOOKUP($E89-4,AllData,COLUMN()-6-COLUMN($E89)),VLOOKUP($E89-5,AllData,COLUMN()-6-COLUMN($E89)),VLOOKUP($E89-6,AllData,COLUMN()-6-COLUMN($E89)),VLOOKUP($E89-7,AllData,COLUMN()-6-COLUMN($E89)),VLOOKUP($E89-8,AllData,COLUMN()-6-COLUMN($E89)),VLOOKUP($E89-9,AllData,COLUMN()-6-COLUMN($E89)),VLOOKUP($E89-10,AllData,COLUMN()-6-COLUMN($E89)),VLOOKUP($E89-11,AllData,COLUMN()-6-COLUMN($E89)),VLOOKUP($E89-12,AllData,COLUMN()-6-COLUMN($E89)),VLOOKUP($E89-13,AllData,COLUMN()-6-COLUMN($E89)),VLOOKUP($E89-14,AllData,COLUMN()-6-COLUMN($E89)),VLOOKUP($E89-15,AllData,COLUMN()-6-COLUMN($E89)),VLOOKUP($E89-16,AllData,COLUMN()-6-COLUMN($E89)),VLOOKUP($E89-17,AllData,COLUMN()-6-COLUMN($E89)),VLOOKUP($E89-18,AllData,COLUMN()-6-COLUMN($E89)),VLOOKUP($E89-19,AllData,COLUMN()-6-COLUMN($E89)),VLOOKUP($E89-20,AllData,COLUMN()-6-COLUMN($E89)),VLOOKUP($E89-21,AllData,COLUMN()-6-COLUMN($E89)),VLOOKUP($E89-22,AllData,COLUMN()-6-COLUMN($E89)),VLOOKUP($E89-23,AllData,COLUMN()-6-COLUMN($E89)),VLOOKUP($E89-24,AllData,COLUMN()-6-COLUMN($E89)),VLOOKUP($E89-25,AllData,COLUMN()-6-COLUMN($E89)),VLOOKUP($E89-26,AllData,COLUMN()-6-COLUMN($E89)),VLOOKUP($E89-27,AllData,COLUMN()-6-COLUMN($E89)),VLOOKUP($E89-28,AllData,COLUMN()-6-COLUMN($E89)),VLOOKUP($E89-29,AllData,COLUMN()-6-COLUMN($E89)))","v":1519.0500000000002},{"$f":"VLOOKUP($E89,AllData,COLUMN()-7-COLUMN($E89))","v":0},{"$f":"OR('Cool Graph'!$I$1=35,'Cool Graph'!$I$1=36,'Cool Graph'!$I$1=37,'Cool Graph'!$I$1=38,'Cool Graph'!$I$1=39,'Cool Graph'!$I$1=40,'Cool Graph'!$I$1=41,'Cool Graph'!$I$1=42,'Cool Graph'!$I$1=43,'Cool Graph'!$I$1=44,'Cool Graph'!$I$1=45,'Cool Graph'!$I$1=46,'Cool Graph'!$I$1=47,'Cool Graph'!$I$1=58,'Cool Graph'!$I$1=66)","v":false}]
["2011-09-27",{"$f":"OFFSET(OldSchoolJustValues!A90,0,'Cool Graph'!$H$1)","v":0},{"$f":"OFFSET(OldSchoolJustValues!A90,0,'Cool Graph'!$I$1)","v":277.25776796361129},null,{"$f":"IF(NewDate>EndDate,NA(),NewDate)","v":"2011-12-23"},{"$f":"IF($E90>EndDate,NA(),IF($K$2=TRUE,N90,IF('Cool Graph'!$B$17=1,N90,IF('Cool Graph'!$B$17=2,L90,IF('Cool Graph'!$B$17=3,M90,)))))","v":0},{"$f":"IF($E90>EndDate,NA(),IF($O$2=TRUE,J90,IF('Cool Graph'!$B$17=1,Data1!J90,IF('Cool Graph'!$B$17=2,Data1!H90,IF('Cool Graph'!$B$17=3,Data1!I90,)))))","v":297.8996314698864},{"$f":"SUM(VLOOKUP($E90,AllData,COLUMN()-COLUMN($E90)),VLOOKUP($E90-1,AllData,COLUMN()-COLUMN($E90)),VLOOKUP($E90-2,AllData,COLUMN()-COLUMN($E90)),VLOOKUP($E90-3,AllData,COLUMN()-COLUMN($E90)),VLOOKUP($E90-4,AllData,COLUMN()-COLUMN($E90)),VLOOKUP($E90-5,AllData,COLUMN()-COLUMN($E90)),VLOOKUP($E90-6,AllData,COLUMN()-COLUMN($E90)))","v":2848.3808310993772},{"$f":"SUM(VLOOKUP($E90,AllData,COLUMN()-1-COLUMN($E90)),VLOOKUP($E90-1,AllData,COLUMN()-1-COLUMN($E90)),VLOOKUP($E90-2,AllData,COLUMN()-1-COLUMN($E90)),VLOOKUP($E90-3,AllData,COLUMN()-1-COLUMN($E90)),VLOOKUP($E90-4,AllData,COLUMN()-1-COLUMN($E90)),VLOOKUP($E90-5,AllData,COLUMN()-1-COLUMN($E90)),VLOOKUP($E90-6,AllData,COLUMN()-1-COLUMN($E90)),VLOOKUP($E90-7,AllData,COLUMN()-1-COLUMN($E90)),VLOOKUP($E90-8,AllData,COLUMN()-1-COLUMN($E90)),VLOOKUP($E90-9,AllData,COLUMN()-1-COLUMN($E90)),VLOOKUP($E90-10,AllData,COLUMN()-1-COLUMN($E90)),VLOOKUP($E90-11,AllData,COLUMN()-1-COLUMN($E90)),VLOOKUP($E90-12,AllData,COLUMN()-1-COLUMN($E90)),VLOOKUP($E90-13,AllData,COLUMN()-1-COLUMN($E90)),VLOOKUP($E90-14,AllData,COLUMN()-1-COLUMN($E90)),VLOOKUP($E90-15,AllData,COLUMN()-1-COLUMN($E90)),VLOOKUP($E90-16,AllData,COLUMN()-1-COLUMN($E90)),VLOOKUP($E90-17,AllData,COLUMN()-1-COLUMN($E90)),VLOOKUP($E90-18,AllData,COLUMN()-1-COLUMN($E90)),VLOOKUP($E90-19,AllData,COLUMN()-1-COLUMN($E90)),VLOOKUP($E90-20,AllData,COLUMN()-1-COLUMN($E90)),VLOOKUP($E90-21,AllData,COLUMN()-1-COLUMN($E90)),VLOOKUP($E90-22,AllData,COLUMN()-1-COLUMN($E90)),VLOOKUP($E90-23,AllData,COLUMN()-1-COLUMN($E90)),VLOOKUP($E90-24,AllData,COLUMN()-1-COLUMN($E90)),VLOOKUP($E90-25,AllData,COLUMN()-1-COLUMN($E90)),VLOOKUP($E90-26,AllData,COLUMN()-1-COLUMN($E90)),VLOOKUP($E90-27,AllData,COLUMN()-1-COLUMN($E90)),VLOOKUP($E90-28,AllData,COLUMN()-1-COLUMN($E90)),VLOOKUP($E90-29,AllData,COLUMN()-1-COLUMN($E90)))","v":26237.612217266571},{"$f":"VLOOKUP($E90,AllData,COLUMN()-2-COLUMN($E90))","v":297.8996314698864},{"$f":"OR('Cool Graph'!$H$1=35,'Cool Graph'!$H$1=36,'Cool Graph'!$H$1=37,'Cool Graph'!$H$1=38,'Cool Graph'!$H$1=39,'Cool Graph'!$H$1=40,'Cool Graph'!$H$1=41,'Cool Graph'!$H$1=42,'Cool Graph'!$H$1=43,'Cool Graph'!$H$1=44,'Cool Graph'!$H$1=45,'Cool Graph'!$H$1=46,'Cool Graph'!$H$1=47,'Cool Graph'!$H$1=58,'Cool Graph'!$H$1=66)","v":false},{"$f":"SUM(VLOOKUP($E90,AllData,COLUMN()-5-COLUMN($E90)),VLOOKUP($E90-1,AllData,COLUMN()-5-COLUMN($E90)),VLOOKUP($E90-2,AllData,COLUMN()-5-COLUMN($E90)),VLOOKUP($E90-3,AllData,COLUMN()-5-COLUMN($E90)),VLOOKUP($E90-4,AllData,COLUMN()-5-COLUMN($E90)),VLOOKUP($E90-5,AllData,COLUMN()-5-COLUMN($E90)),VLOOKUP($E90-6,AllData,COLUMN()-5-COLUMN($E90)))","v":64.61},{"$f":"SUM(VLOOKUP($E90,AllData,COLUMN()-6-COLUMN($E90)),VLOOKUP($E90-1,AllData,COLUMN()-6-COLUMN($E90)),VLOOKUP($E90-2,AllData,COLUMN()-6-COLUMN($E90)),VLOOKUP($E90-3,AllData,COLUMN()-6-COLUMN($E90)),VLOOKUP($E90-4,AllData,COLUMN()-6-COLUMN($E90)),VLOOKUP($E90-5,AllData,COLUMN()-6-COLUMN($E90)),VLOOKUP($E90-6,AllData,COLUMN()-6-COLUMN($E90)),VLOOKUP($E90-7,AllData,COLUMN()-6-COLUMN($E90)),VLOOKUP($E90-8,AllData,COLUMN()-6-COLUMN($E90)),VLOOKUP($E90-9,AllData,COLUMN()-6-COLUMN($E90)),VLOOKUP($E90-10,AllData,COLUMN()-6-COLUMN($E90)),VLOOKUP($E90-11,AllData,COLUMN()-6-COLUMN($E90)),VLOOKUP($E90-12,AllData,COLUMN()-6-COLUMN($E90)),VLOOKUP($E90-13,AllData,COLUMN()-6-COLUMN($E90)),VLOOKUP($E90-14,AllData,COLUMN()-6-COLUMN($E90)),VLOOKUP($E90-15,AllData,COLUMN()-6-COLUMN($E90)),VLOOKUP($E90-16,AllData,COLUMN()-6-COLUMN($E90)),VLOOKUP($E90-17,AllData,COLUMN()-6-COLUMN($E90)),VLOOKUP($E90-18,AllData,COLUMN()-6-COLUMN($E90)),VLOOKUP($E90-19,AllData,COLUMN()-6-COLUMN($E90)),VLOOKUP($E90-20,AllData,COLUMN()-6-COLUMN($E90)),VLOOKUP($E90-21,AllData,COLUMN()-6-COLUMN($E90)),VLOOKUP($E90-22,AllData,COLUMN()-6-COLUMN($E90)),VLOOKUP($E90-23,AllData,COLUMN()-6-COLUMN($E90)),VLOOKUP($E90-24,AllData,COLUMN()-6-COLUMN($E90)),VLOOKUP($E90-25,AllData,COLUMN()-6-COLUMN($E90)),VLOOKUP($E90-26,AllData,COLUMN()-6-COLUMN($E90)),VLOOKUP($E90-27,AllData,COLUMN()-6-COLUMN($E90)),VLOOKUP($E90-28,AllData,COLUMN()-6-COLUMN($E90)),VLOOKUP($E90-29,AllData,COLUMN()-6-COLUMN($E90)))","v":1419.0900000000001},{"$f":"VLOOKUP($E90,AllData,COLUMN()-7-COLUMN($E90))","v":0},{"$f":"OR('Cool Graph'!$I$1=35,'Cool Graph'!$I$1=36,'Cool Graph'!$I$1=37,'Cool Graph'!$I$1=38,'Cool Graph'!$I$1=39,'Cool Graph'!$I$1=40,'Cool Graph'!$I$1=41,'Cool Graph'!$I$1=42,'Cool Graph'!$I$1=43,'Cool Graph'!$I$1=44,'Cool Graph'!$I$1=45,'Cool Graph'!$I$1=46,'Cool Graph'!$I$1=47,'Cool Graph'!$I$1=58,'Cool Graph'!$I$1=66)","v":false}]
["2011-09-28",{"$f":"OFFSET(OldSchoolJustValues!A91,0,'Cool Graph'!$H$1)","v":30},{"$f":"OFFSET(OldSchoolJustValues!A91,0,'Cool Graph'!$I$1)","v":631.78712445082942},null,{"$f":"IF(NewDate>EndDate,NA(),NewDate)","v":"2011-12-24"},{"$f":"IF($E91>EndDate,NA(),IF($K$2=TRUE,N91,IF('Cool Graph'!$B$17=1,N91,IF('Cool Graph'!$B$17=2,L91,IF('Cool Graph'!$B$17=3,M91,)))))","v":0},{"$f":"IF($E91>EndDate,NA(),IF($O$2=TRUE,J91,IF('Cool Graph'!$B$17=1,Data1!J91,IF('Cool Graph'!$B$17=2,Data1!H91,IF('Cool Graph'!$B$17=3,Data1!I91,)))))","v":290.42217753615063},{"$f":"SUM(VLOOKUP($E91,AllData,COLUMN()-COLUMN($E91)),VLOOKUP($E91-1,AllData,COLUMN()-COLUMN($E91)),VLOOKUP($E91-2,AllData,COLUMN()-COLUMN($E91)),VLOOKUP($E91-3,AllData,COLUMN()-COLUMN($E91)),VLOOKUP($E91-4,AllData,COLUMN()-COLUMN($E91)),VLOOKUP($E91-5,AllData,COLUMN()-COLUMN($E91)),VLOOKUP($E91-6,AllData,COLUMN()-COLUMN($E91)))","v":2825.0960486238155},{"$f":"SUM(VLOOKUP($E91,AllData,COLUMN()-1-COLUMN($E91)),VLOOKUP($E91-1,AllData,COLUMN()-1-COLUMN($E91)),VLOOKUP($E91-2,AllData,COLUMN()-1-COLUMN($E91)),VLOOKUP($E91-3,AllData,COLUMN()-1-COLUMN($E91)),VLOOKUP($E91-4,AllData,COLUMN()-1-COLUMN($E91)),VLOOKUP($E91-5,AllData,COLUMN()-1-COLUMN($E91)),VLOOKUP($E91-6,AllData,COLUMN()-1-COLUMN($E91)),VLOOKUP($E91-7,AllData,COLUMN()-1-COLUMN($E91)),VLOOKUP($E91-8,AllData,COLUMN()-1-COLUMN($E91)),VLOOKUP($E91-9,AllData,COLUMN()-1-COLUMN($E91)),VLOOKUP($E91-10,AllData,COLUMN()-1-COLUMN($E91)),VLOOKUP($E91-11,AllData,COLUMN()-1-COLUMN($E91)),VLOOKUP($E91-12,AllData,COLUMN()-1-COLUMN($E91)),VLOOKUP($E91-13,AllData,COLUMN()-1-COLUMN($E91)),VLOOKUP($E91-14,AllData,COLUMN()-1-COLUMN($E91)),VLOOKUP($E91-15,AllData,COLUMN()-1-COLUMN($E91)),VLOOKUP($E91-16,AllData,COLUMN()-1-COLUMN($E91)),VLOOKUP($E91-17,AllData,COLUMN()-1-COLUMN($E91)),VLOOKUP($E91-18,AllData,COLUMN()-1-COLUMN($E91)),VLOOKUP($E91-19,AllData,COLUMN()-1-COLUMN($E91)),VLOOKUP($E91-20,AllData,COLUMN()-1-COLUMN($E91)),VLOOKUP($E91-21,AllData,COLUMN()-1-COLUMN($E91)),VLOOKUP($E91-22,AllData,COLUMN()-1-COLUMN($E91)),VLOOKUP($E91-23,AllData,COLUMN()-1-COLUMN($E91)),VLOOKUP($E91-24,AllData,COLUMN()-1-COLUMN($E91)),VLOOKUP($E91-25,AllData,COLUMN()-1-COLUMN($E91)),VLOOKUP($E91-26,AllData,COLUMN()-1-COLUMN($E91)),VLOOKUP($E91-27,AllData,COLUMN()-1-COLUMN($E91)),VLOOKUP($E91-28,AllData,COLUMN()-1-COLUMN($E91)),VLOOKUP($E91-29,AllData,COLUMN()-1-COLUMN($E91)))","v":26097.067944004262},{"$f":"VLOOKUP($E91,AllData,COLUMN()-2-COLUMN($E91))","v":290.42217753615063},{"$f":"OR('Cool Graph'!$H$1=35,'Cool Graph'!$H$1=36,'Cool Graph'!$H$1=37,'Cool Graph'!$H$1=38,'Cool Graph'!$H$1=39,'Cool Graph'!$H$1=40,'Cool Graph'!$H$1=41,'Cool Graph'!$H$1=42,'Cool Graph'!$H$1=43,'Cool Graph'!$H$1=44,'Cool Graph'!$H$1=45,'Cool Graph'!$H$1=46,'Cool Graph'!$H$1=47,'Cool Graph'!$H$1=58,'Cool Graph'!$H$1=66)","v":false},{"$f":"SUM(VLOOKUP($E91,AllData,COLUMN()-5-COLUMN($E91)),VLOOKUP($E91-1,AllData,COLUMN()-5-COLUMN($E91)),VLOOKUP($E91-2,AllData,COLUMN()-5-COLUMN($E91)),VLOOKUP($E91-3,AllData,COLUMN()-5-COLUMN($E91)),VLOOKUP($E91-4,AllData,COLUMN()-5-COLUMN($E91)),VLOOKUP($E91-5,AllData,COLUMN()-5-COLUMN($E91)),VLOOKUP($E91-6,AllData,COLUMN()-5-COLUMN($E91)))","v":2.63},{"$f":"SUM(VLOOKUP($E91,AllData,COLUMN()-6-COLUMN($E91)),VLOOKUP($E91-1,AllData,COLUMN()-6-COLUMN($E91)),VLOOKUP($E91-2,AllData,COLUMN()-6-COLUMN($E91)),VLOOKUP($E91-3,AllData,COLUMN()-6-COLUMN($E91)),VLOOKUP($E91-4,AllData,COLUMN()-6-COLUMN($E91)),VLOOKUP($E91-5,AllData,COLUMN()-6-COLUMN($E91)),VLOOKUP($E91-6,AllData,COLUMN()-6-COLUMN($E91)),VLOOKUP($E91-7,AllData,COLUMN()-6-COLUMN($E91)),VLOOKUP($E91-8,AllData,COLUMN()-6-COLUMN($E91)),VLOOKUP($E91-9,AllData,COLUMN()-6-COLUMN($E91)),VLOOKUP($E91-10,AllData,COLUMN()-6-COLUMN($E91)),VLOOKUP($E91-11,AllData,COLUMN()-6-COLUMN($E91)),VLOOKUP($E91-12,AllData,COLUMN()-6-COLUMN($E91)),VLOOKUP($E91-13,AllData,COLUMN()-6-COLUMN($E91)),VLOOKUP($E91-14,AllData,COLUMN()-6-COLUMN($E91)),VLOOKUP($E91-15,AllData,COLUMN()-6-COLUMN($E91)),VLOOKUP($E91-16,AllData,COLUMN()-6-COLUMN($E91)),VLOOKUP($E91-17,AllData,COLUMN()-6-COLUMN($E91)),VLOOKUP($E91-18,AllData,COLUMN()-6-COLUMN($E91)),VLOOKUP($E91-19,AllData,COLUMN()-6-COLUMN($E91)),VLOOKUP($E91-20,AllData,COLUMN()-6-COLUMN($E91)),VLOOKUP($E91-21,AllData,COLUMN()-6-COLUMN($E91)),VLOOKUP($E91-22,AllData,COLUMN()-6-COLUMN($E91)),VLOOKUP($E91-23,AllData,COLUMN()-6-COLUMN($E91)),VLOOKUP($E91-24,AllData,COLUMN()-6-COLUMN($E91)),VLOOKUP($E91-25,AllData,COLUMN()-6-COLUMN($E91)),VLOOKUP($E91-26,AllData,COLUMN()-6-COLUMN($E91)),VLOOKUP($E91-27,AllData,COLUMN()-6-COLUMN($E91)),VLOOKUP($E91-28,AllData,COLUMN()-6-COLUMN($E91)),VLOOKUP($E91-29,AllData,COLUMN()-6-COLUMN($E91)))","v":1319.0900000000001},{"$f":"VLOOKUP($E91,AllData,COLUMN()-7-COLUMN($E91))","v":0},{"$f":"OR('Cool Graph'!$I$1=35,'Cool Graph'!$I$1=36,'Cool Graph'!$I$1=37,'Cool Graph'!$I$1=38,'Cool Graph'!$I$1=39,'Cool Graph'!$I$1=40,'Cool Graph'!$I$1=41,'Cool Graph'!$I$1=42,'Cool Graph'!$I$1=43,'Cool Graph'!$I$1=44,'Cool Graph'!$I$1=45,'Cool Graph'!$I$1=46,'Cool Graph'!$I$1=47,'Cool Graph'!$I$1=58,'Cool Graph'!$I$1=66)","v":false}]
["2011-09-29",{"$f":"OFFSET(OldSchoolJustValues!A92,0,'Cool Graph'!$H$1)","v":30},{"$f":"OFFSET(OldSchoolJustValues!A92,0,'Cool Graph'!$I$1)","v":875.68679260571503},null,{"$f":"IF(NewDate>EndDate,NA(),NewDate)","v":"2011-12-25"},{"$f":"IF($E92>EndDate,NA(),IF($K$2=TRUE,N92,IF('Cool Graph'!$B$17=1,N92,IF('Cool Graph'!$B$17=2,L92,IF('Cool Graph'!$B$17=3,M92,)))))","v":0},{"$f":"IF($E92>EndDate,NA(),IF($O$2=TRUE,J92,IF('Cool Graph'!$B$17=1,Data1!J92,IF('Cool Graph'!$B$17=2,Data1!H92,IF('Cool Graph'!$B$17=3,Data1!I92,)))))","v":240.83217753615065},{"$f":"SUM(VLOOKUP($E92,AllData,COLUMN()-COLUMN($E92)),VLOOKUP($E92-1,AllData,COLUMN()-COLUMN($E92)),VLOOKUP($E92-2,AllData,COLUMN()-COLUMN($E92)),VLOOKUP($E92-3,AllData,COLUMN()-COLUMN($E92)),VLOOKUP($E92-4,AllData,COLUMN()-COLUMN($E92)),VLOOKUP($E92-5,AllData,COLUMN()-COLUMN($E92)),VLOOKUP($E92-6,AllData,COLUMN()-COLUMN($E92)))","v":2475.3197308628796},{"$f":"SUM(VLOOKUP($E92,AllData,COLUMN()-1-COLUMN($E92)),VLOOKUP($E92-1,AllData,COLUMN()-1-COLUMN($E92)),VLOOKUP($E92-2,AllData,COLUMN()-1-COLUMN($E92)),VLOOKUP($E92-3,AllData,COLUMN()-1-COLUMN($E92)),VLOOKUP($E92-4,AllData,COLUMN()-1-COLUMN($E92)),VLOOKUP($E92-5,AllData,COLUMN()-1-COLUMN($E92)),VLOOKUP($E92-6,AllData,COLUMN()-1-COLUMN($E92)),VLOOKUP($E92-7,AllData,COLUMN()-1-COLUMN($E92)),VLOOKUP($E92-8,AllData,COLUMN()-1-COLUMN($E92)),VLOOKUP($E92-9,AllData,COLUMN()-1-COLUMN($E92)),VLOOKUP($E92-10,AllData,COLUMN()-1-COLUMN($E92)),VLOOKUP($E92-11,AllData,COLUMN()-1-COLUMN($E92)),VLOOKUP($E92-12,AllData,COLUMN()-1-COLUMN($E92)),VLOOKUP($E92-13,AllData,COLUMN()-1-COLUMN($E92)),VLOOKUP($E92-14,AllData,COLUMN()-1-COLUMN($E92)),VLOOKUP($E92-15,AllData,COLUMN()-1-COLUMN($E92)),VLOOKUP($E92-16,AllData,COLUMN()-1-COLUMN($E92)),VLOOKUP($E92-17,AllData,COLUMN()-1-COLUMN($E92)),VLOOKUP($E92-18,AllData,COLUMN()-1-COLUMN($E92)),VLOOKUP($E92-19,AllData,COLUMN()-1-COLUMN($E92)),VLOOKUP($E92-20,AllData,COLUMN()-1-COLUMN($E92)),VLOOKUP($E92-21,AllData,COLUMN()-1-COLUMN($E92)),VLOOKUP($E92-22,AllData,COLUMN()-1-COLUMN($E92)),VLOOKUP($E92-23,AllData,COLUMN()-1-COLUMN($E92)),VLOOKUP($E92-24,AllData,COLUMN()-1-COLUMN($E92)),VLOOKUP($E92-25,AllData,COLUMN()-1-COLUMN($E92)),VLOOKUP($E92-26,AllData,COLUMN()-1-COLUMN($E92)),VLOOKUP($E92-27,AllData,COLUMN()-1-COLUMN($E92)),VLOOKUP($E92-28,AllData,COLUMN()-1-COLUMN($E92)),VLOOKUP($E92-29,AllData,COLUMN()-1-COLUMN($E92)))","v":25064.041035220082},{"$f":"VLOOKUP($E92,AllData,COLUMN()-2-COLUMN($E92))","v":240.83217753615065},{"$f":"OR('Cool Graph'!$H$1=35,'Cool Graph'!$H$1=36,'Cool Graph'!$H$1=37,'Cool Graph'!$H$1=38,'Cool Graph'!$H$1=39,'Cool Graph'!$H$1=40,'Cool Graph'!$H$1=41,'Cool Graph'!$H$1=42,'Cool Graph'!$H$1=43,'Cool Graph'!$H$1=44,'Cool Graph'!$H$1=45,'Cool Graph'!$H$1=46,'Cool Graph'!$H$1=47,'Cool Graph'!$H$1=58,'Cool Graph'!$H$1=66)","v":false},{"$f":"SUM(VLOOKUP($E92,AllData,COLUMN()-5-COLUMN($E92)),VLOOKUP($E92-1,AllData,COLUMN()-5-COLUMN($E92)),VLOOKUP($E92-2,AllData,COLUMN()-5-COLUMN($E92)),VLOOKUP($E92-3,AllData,COLUMN()-5-COLUMN($E92)),VLOOKUP($E92-4,AllData,COLUMN()-5-COLUMN($E92)),VLOOKUP($E92-5,AllData,COLUMN()-5-COLUMN($E92)),VLOOKUP($E92-6,AllData,COLUMN()-5-COLUMN($E92)))","v":0},{"$f":"SUM(VLOOKUP($E92,AllData,COLUMN()-6-COLUMN($E92)),VLOOKUP($E92-1,AllData,COLUMN()-6-COLUMN($E92)),VLOOKUP($E92-2,AllData,COLUMN()-6-COLUMN($E92)),VLOOKUP($E92-3,AllData,COLUMN()-6-COLUMN($E92)),VLOOKUP($E92-4,AllData,COLUMN()-6-COLUMN($E92)),VLOOKUP($E92-5,AllData,COLUMN()-6-COLUMN($E92)),VLOOKUP($E92-6,AllData,COLUMN()-6-COLUMN($E92)),VLOOKUP($E92-7,AllData,COLUMN()-6-COLUMN($E92)),VLOOKUP($E92-8,AllData,COLUMN()-6-COLUMN($E92)),VLOOKUP($E92-9,AllData,COLUMN()-6-COLUMN($E92)),VLOOKUP($E92-10,AllData,COLUMN()-6-COLUMN($E92)),VLOOKUP($E92-11,AllData,COLUMN()-6-COLUMN($E92)),VLOOKUP($E92-12,AllData,COLUMN()-6-COLUMN($E92)),VLOOKUP($E92-13,AllData,COLUMN()-6-COLUMN($E92)),VLOOKUP($E92-14,AllData,COLUMN()-6-COLUMN($E92)),VLOOKUP($E92-15,AllData,COLUMN()-6-COLUMN($E92)),VLOOKUP($E92-16,AllData,COLUMN()-6-COLUMN($E92)),VLOOKUP($E92-17,AllData,COLUMN()-6-COLUMN($E92)),VLOOKUP($E92-18,AllData,COLUMN()-6-COLUMN($E92)),VLOOKUP($E92-19,AllData,COLUMN()-6-COLUMN($E92)),VLOOKUP($E92-20,AllData,COLUMN()-6-COLUMN($E92)),VLOOKUP($E92-21,AllData,COLUMN()-6-COLUMN($E92)),VLOOKUP($E92-22,AllData,COLUMN()-6-COLUMN($E92)),VLOOKUP($E92-23,AllData,COLUMN()-6-COLUMN($E92)),VLOOKUP($E92-24,AllData,COLUMN()-6-COLUMN($E92)),VLOOKUP($E92-25,AllData,COLUMN()-6-COLUMN($E92)),VLOOKUP($E92-26,AllData,COLUMN()-6-COLUMN($E92)),VLOOKUP($E92-27,AllData,COLUMN()-6-COLUMN($E92)),VLOOKUP($E92-28,AllData,COLUMN()-6-COLUMN($E92)),VLOOKUP($E92-29,AllData,COLUMN()-6-COLUMN($E92)))","v":1219.0900000000001},{"$f":"VLOOKUP($E92,AllData,COLUMN()-7-COLUMN($E92))","v":0},{"$f":"OR('Cool Graph'!$I$1=35,'Cool Graph'!$I$1=36,'Cool Graph'!$I$1=37,'Cool Graph'!$I$1=38,'Cool Graph'!$I$1=39,'Cool Graph'!$I$1=40,'Cool Graph'!$I$1=41,'Cool Graph'!$I$1=42,'Cool Graph'!$I$1=43,'Cool Graph'!$I$1=44,'Cool Graph'!$I$1=45,'Cool Graph'!$I$1=46,'Cool Graph'!$I$1=47,'Cool Graph'!$I$1=58,'Cool Graph'!$I$1=66)","v":false}]
["2011-09-30",{"$f":"OFFSET(OldSchoolJustValues!A93,0,'Cool Graph'!$H$1)","v":30},{"$f":"OFFSET(OldSchoolJustValues!A93,0,'Cool Graph'!$I$1)","v":294.89650967160719},null,{"$f":"IF(NewDate>EndDate,NA(),NewDate)","v":"2011-12-26"},{"$f":"IF($E93>EndDate,NA(),IF($K$2=TRUE,N93,IF('Cool Graph'!$B$17=1,N93,IF('Cool Graph'!$B$17=2,L93,IF('Cool Graph'!$B$17=3,M93,)))))","v":0},{"$f":"IF($E93>EndDate,NA(),IF($O$2=TRUE,J93,IF('Cool Graph'!$B$17=1,Data1!J93,IF('Cool Graph'!$B$17=2,Data1!H93,IF('Cool Graph'!$B$17=3,Data1!I93,)))))","v":-111.26884853596999},{"$f":"SUM(VLOOKUP($E93,AllData,COLUMN()-COLUMN($E93)),VLOOKUP($E93-1,AllData,COLUMN()-COLUMN($E93)),VLOOKUP($E93-2,AllData,COLUMN()-COLUMN($E93)),VLOOKUP($E93-3,AllData,COLUMN()-COLUMN($E93)),VLOOKUP($E93-4,AllData,COLUMN()-COLUMN($E93)),VLOOKUP($E93-5,AllData,COLUMN()-COLUMN($E93)),VLOOKUP($E93-6,AllData,COLUMN()-COLUMN($E93)))","v":1086.7185488163902},{"$f":"SUM(VLOOKUP($E93,AllData,COLUMN()-1-COLUMN($E93)),VLOOKUP($E93-1,AllData,COLUMN()-1-COLUMN($E93)),VLOOKUP($E93-2,AllData,COLUMN()-1-COLUMN($E93)),VLOOKUP($E93-3,AllData,COLUMN()-1-COLUMN($E93)),VLOOKUP($E93-4,AllData,COLUMN()-1-COLUMN($E93)),VLOOKUP($E93-5,AllData,COLUMN()-1-COLUMN($E93)),VLOOKUP($E93-6,AllData,COLUMN()-1-COLUMN($E93)),VLOOKUP($E93-7,AllData,COLUMN()-1-COLUMN($E93)),VLOOKUP($E93-8,AllData,COLUMN()-1-COLUMN($E93)),VLOOKUP($E93-9,AllData,COLUMN()-1-COLUMN($E93)),VLOOKUP($E93-10,AllData,COLUMN()-1-COLUMN($E93)),VLOOKUP($E93-11,AllData,COLUMN()-1-COLUMN($E93)),VLOOKUP($E93-12,AllData,COLUMN()-1-COLUMN($E93)),VLOOKUP($E93-13,AllData,COLUMN()-1-COLUMN($E93)),VLOOKUP($E93-14,AllData,COLUMN()-1-COLUMN($E93)),VLOOKUP($E93-15,AllData,COLUMN()-1-COLUMN($E93)),VLOOKUP($E93-16,AllData,COLUMN()-1-COLUMN($E93)),VLOOKUP($E93-17,AllData,COLUMN()-1-COLUMN($E93)),VLOOKUP($E93-18,AllData,COLUMN()-1-COLUMN($E93)),VLOOKUP($E93-19,AllData,COLUMN()-1-COLUMN($E93)),VLOOKUP($E93-20,AllData,COLUMN()-1-COLUMN($E93)),VLOOKUP($E93-21,AllData,COLUMN()-1-COLUMN($E93)),VLOOKUP($E93-22,AllData,COLUMN()-1-COLUMN($E93)),VLOOKUP($E93-23,AllData,COLUMN()-1-COLUMN($E93)),VLOOKUP($E93-24,AllData,COLUMN()-1-COLUMN($E93)),VLOOKUP($E93-25,AllData,COLUMN()-1-COLUMN($E93)),VLOOKUP($E93-26,AllData,COLUMN()-1-COLUMN($E93)),VLOOKUP($E93-27,AllData,COLUMN()-1-COLUMN($E93)),VLOOKUP($E93-28,AllData,COLUMN()-1-COLUMN($E93)),VLOOKUP($E93-29,AllData,COLUMN()-1-COLUMN($E93)))","v":24261.513307565685},{"$f":"VLOOKUP($E93,AllData,COLUMN()-2-COLUMN($E93))","v":-111.26884853596999},{"$f":"OR('Cool Graph'!$H$1=35,'Cool Graph'!$H$1=36,'Cool Graph'!$H$1=37,'Cool Graph'!$H$1=38,'Cool Graph'!$H$1=39,'Cool Graph'!$H$1=40,'Cool Graph'!$H$1=41,'Cool Graph'!$H$1=42,'Cool Graph'!$H$1=43,'Cool Graph'!$H$1=44,'Cool Graph'!$H$1=45,'Cool Graph'!$H$1=46,'Cool Graph'!$H$1=47,'Cool Graph'!$H$1=58,'Cool Graph'!$H$1=66)","v":false},{"$f":"SUM(VLOOKUP($E93,AllData,COLUMN()-5-COLUMN($E93)),VLOOKUP($E93-1,AllData,COLUMN()-5-COLUMN($E93)),VLOOKUP($E93-2,AllData,COLUMN()-5-COLUMN($E93)),VLOOKUP($E93-3,AllData,COLUMN()-5-COLUMN($E93)),VLOOKUP($E93-4,AllData,COLUMN()-5-COLUMN($E93)),VLOOKUP($E93-5,AllData,COLUMN()-5-COLUMN($E93)),VLOOKUP($E93-6,AllData,COLUMN()-5-COLUMN($E93)))","v":0},{"$f":"SUM(VLOOKUP($E93,AllData,COLUMN()-6-COLUMN($E93)),VLOOKUP($E93-1,AllData,COLUMN()-6-COLUMN($E93)),VLOOKUP($E93-2,AllData,COLUMN()-6-COLUMN($E93)),VLOOKUP($E93-3,AllData,COLUMN()-6-COLUMN($E93)),VLOOKUP($E93-4,AllData,COLUMN()-6-COLUMN($E93)),VLOOKUP($E93-5,AllData,COLUMN()-6-COLUMN($E93)),VLOOKUP($E93-6,AllData,COLUMN()-6-COLUMN($E93)),VLOOKUP($E93-7,AllData,COLUMN()-6-COLUMN($E93)),VLOOKUP($E93-8,AllData,COLUMN()-6-COLUMN($E93)),VLOOKUP($E93-9,AllData,COLUMN()-6-COLUMN($E93)),VLOOKUP($E93-10,AllData,COLUMN()-6-COLUMN($E93)),VLOOKUP($E93-11,AllData,COLUMN()-6-COLUMN($E93)),VLOOKUP($E93-12,AllData,COLUMN()-6-COLUMN($E93)),VLOOKUP($E93-13,AllData,COLUMN()-6-COLUMN($E93)),VLOOKUP($E93-14,AllData,COLUMN()-6-COLUMN($E93)),VLOOKUP($E93-15,AllData,COLUMN()-6-COLUMN($E93)),VLOOKUP($E93-16,AllData,COLUMN()-6-COLUMN($E93)),VLOOKUP($E93-17,AllData,COLUMN()-6-COLUMN($E93)),VLOOKUP($E93-18,AllData,COLUMN()-6-COLUMN($E93)),VLOOKUP($E93-19,AllData,COLUMN()-6-COLUMN($E93)),VLOOKUP($E93-20,AllData,COLUMN()-6-COLUMN($E93)),VLOOKUP($E93-21,AllData,COLUMN()-6-COLUMN($E93)),VLOOKUP($E93-22,AllData,COLUMN()-6-COLUMN($E93)),VLOOKUP($E93-23,AllData,COLUMN()-6-COLUMN($E93)),VLOOKUP($E93-24,AllData,COLUMN()-6-COLUMN($E93)),VLOOKUP($E93-25,AllData,COLUMN()-6-COLUMN($E93)),VLOOKUP($E93-26,AllData,COLUMN()-6-COLUMN($E93)),VLOOKUP($E93-27,AllData,COLUMN()-6-COLUMN($E93)),VLOOKUP($E93-28,AllData,COLUMN()-6-COLUMN($E93)),VLOOKUP($E93-29,AllData,COLUMN()-6-COLUMN($E93)))","v":1119.0900000000001},{"$f":"VLOOKUP($E93,AllData,COLUMN()-7-COLUMN($E93))","v":0},{"$f":"OR('Cool Graph'!$I$1=35,'Cool Graph'!$I$1=36,'Cool Graph'!$I$1=37,'Cool Graph'!$I$1=38,'Cool Graph'!$I$1=39,'Cool Graph'!$I$1=40,'Cool Graph'!$I$1=41,'Cool Graph'!$I$1=42,'Cool Graph'!$I$1=43,'Cool Graph'!$I$1=44,'Cool Graph'!$I$1=45,'Cool Graph'!$I$1=46,'Cool Graph'!$I$1=47,'Cool Graph'!$I$1=58,'Cool Graph'!$I$1=66)","v":false}]
["2011-10-01",{"$f":"OFFSET(OldSchoolJustValues!A94,0,'Cool Graph'!$H$1)","v":30},{"$f":"OFFSET(OldSchoolJustValues!A94,0,'Cool Graph'!$I$1)","v":-31.300058873147321},null,{"$f":"IF(NewDate>EndDate,NA(),NewDate)","v":"2011-12-27"},{"$f":"IF($E94>EndDate,NA(),IF($K$2=TRUE,N94,IF('Cool Graph'!$B$17=1,N94,IF('Cool Graph'!$B$17=2,L94,IF('Cool Graph'!$B$17=3,M94,)))))","v":0},{"$f":"IF($E94>EndDate,NA(),IF($O$2=TRUE,J94,IF('Cool Graph'!$B$17=1,Data1!J94,IF('Cool Graph'!$B$17=2,Data1!H94,IF('Cool Graph'!$B$17=3,Data1!I94,)))))","v":249.6560004583543},{"$f":"SUM(VLOOKUP($E94,AllData,COLUMN()-COLUMN($E94)),VLOOKUP($E94-1,AllData,COLUMN()-COLUMN($E94)),VLOOKUP($E94-2,AllData,COLUMN()-COLUMN($E94)),VLOOKUP($E94-3,AllData,COLUMN()-COLUMN($E94)),VLOOKUP($E94-4,AllData,COLUMN()-COLUMN($E94)),VLOOKUP($E94-5,AllData,COLUMN()-COLUMN($E94)),VLOOKUP($E94-6,AllData,COLUMN()-COLUMN($E94)))","v":1379.8424382573562},{"$f":"SUM(VLOOKUP($E94,AllData,COLUMN()-1-COLUMN($E94)),VLOOKUP($E94-1,AllData,COLUMN()-1-COLUMN($E94)),VLOOKUP($E94-2,AllData,COLUMN()-1-COLUMN($E94)),VLOOKUP($E94-3,AllData,COLUMN()-1-COLUMN($E94)),VLOOKUP($E94-4,AllData,COLUMN()-1-COLUMN($E94)),VLOOKUP($E94-5,AllData,COLUMN()-1-COLUMN($E94)),VLOOKUP($E94-6,AllData,COLUMN()-1-COLUMN($E94)),VLOOKUP($E94-7,AllData,COLUMN()-1-COLUMN($E94)),VLOOKUP($E94-8,AllData,COLUMN()-1-COLUMN($E94)),VLOOKUP($E94-9,AllData,COLUMN()-1-COLUMN($E94)),VLOOKUP($E94-10,AllData,COLUMN()-1-COLUMN($E94)),VLOOKUP($E94-11,AllData,COLUMN()-1-COLUMN($E94)),VLOOKUP($E94-12,AllData,COLUMN()-1-COLUMN($E94)),VLOOKUP($E94-13,AllData,COLUMN()-1-COLUMN($E94)),VLOOKUP($E94-14,AllData,COLUMN()-1-COLUMN($E94)),VLOOKUP($E94-15,AllData,COLUMN()-1-COLUMN($E94)),VLOOKUP($E94-16,AllData,COLUMN()-1-COLUMN($E94)),VLOOKUP($E94-17,AllData,COLUMN()-1-COLUMN($E94)),VLOOKUP($E94-18,AllData,COLUMN()-1-COLUMN($E94)),VLOOKUP($E94-19,AllData,COLUMN()-1-COLUMN($E94)),VLOOKUP($E94-20,AllData,COLUMN()-1-COLUMN($E94)),VLOOKUP($E94-21,AllData,COLUMN()-1-COLUMN($E94)),VLOOKUP($E94-22,AllData,COLUMN()-1-COLUMN($E94)),VLOOKUP($E94-23,AllData,COLUMN()-1-COLUMN($E94)),VLOOKUP($E94-24,AllData,COLUMN()-1-COLUMN($E94)),VLOOKUP($E94-25,AllData,COLUMN()-1-COLUMN($E94)),VLOOKUP($E94-26,AllData,COLUMN()-1-COLUMN($E94)),VLOOKUP($E94-27,AllData,COLUMN()-1-COLUMN($E94)),VLOOKUP($E94-28,AllData,COLUMN()-1-COLUMN($E94)),VLOOKUP($E94-29,AllData,COLUMN()-1-COLUMN($E94)))","v":24004.787056323512},{"$f":"VLOOKUP($E94,AllData,COLUMN()-2-COLUMN($E94))","v":249.6560004583543},{"$f":"OR('Cool Graph'!$H$1=35,'Cool Graph'!$H$1=36,'Cool Graph'!$H$1=37,'Cool Graph'!$H$1=38,'Cool Graph'!$H$1=39,'Cool Graph'!$H$1=40,'Cool Graph'!$H$1=41,'Cool Graph'!$H$1=42,'Cool Graph'!$H$1=43,'Cool Graph'!$H$1=44,'Cool Graph'!$H$1=45,'Cool Graph'!$H$1=46,'Cool Graph'!$H$1=47,'Cool Graph'!$H$1=58,'Cool Graph'!$H$1=66)","v":false},{"$f":"SUM(VLOOKUP($E94,AllData,COLUMN()-5-COLUMN($E94)),VLOOKUP($E94-1,AllData,COLUMN()-5-COLUMN($E94)),VLOOKUP($E94-2,AllData,COLUMN()-5-COLUMN($E94)),VLOOKUP($E94-3,AllData,COLUMN()-5-COLUMN($E94)),VLOOKUP($E94-4,AllData,COLUMN()-5-COLUMN($E94)),VLOOKUP($E94-5,AllData,COLUMN()-5-COLUMN($E94)),VLOOKUP($E94-6,AllData,COLUMN()-5-COLUMN($E94)))","v":0},{"$f":"SUM(VLOOKUP($E94,AllData,COLUMN()-6-COLUMN($E94)),VLOOKUP($E94-1,AllData,COLUMN()-6-COLUMN($E94)),VLOOKUP($E94-2,AllData,COLUMN()-6-COLUMN($E94)),VLOOKUP($E94-3,AllData,COLUMN()-6-COLUMN($E94)),VLOOKUP($E94-4,AllData,COLUMN()-6-COLUMN($E94)),VLOOKUP($E94-5,AllData,COLUMN()-6-COLUMN($E94)),VLOOKUP($E94-6,AllData,COLUMN()-6-COLUMN($E94)),VLOOKUP($E94-7,AllData,COLUMN()-6-COLUMN($E94)),VLOOKUP($E94-8,AllData,COLUMN()-6-COLUMN($E94)),VLOOKUP($E94-9,AllData,COLUMN()-6-COLUMN($E94)),VLOOKUP($E94-10,AllData,COLUMN()-6-COLUMN($E94)),VLOOKUP($E94-11,AllData,COLUMN()-6-COLUMN($E94)),VLOOKUP($E94-12,AllData,COLUMN()-6-COLUMN($E94)),VLOOKUP($E94-13,AllData,COLUMN()-6-COLUMN($E94)),VLOOKUP($E94-14,AllData,COLUMN()-6-COLUMN($E94)),VLOOKUP($E94-15,AllData,COLUMN()-6-COLUMN($E94)),VLOOKUP($E94-16,AllData,COLUMN()-6-COLUMN($E94)),VLOOKUP($E94-17,AllData,COLUMN()-6-COLUMN($E94)),VLOOKUP($E94-18,AllData,COLUMN()-6-COLUMN($E94)),VLOOKUP($E94-19,AllData,COLUMN()-6-COLUMN($E94)),VLOOKUP($E94-20,AllData,COLUMN()-6-COLUMN($E94)),VLOOKUP($E94-21,AllData,COLUMN()-6-COLUMN($E94)),VLOOKUP($E94-22,AllData,COLUMN()-6-COLUMN($E94)),VLOOKUP($E94-23,AllData,COLUMN()-6-COLUMN($E94)),VLOOKUP($E94-24,AllData,COLUMN()-6-COLUMN($E94)),VLOOKUP($E94-25,AllData,COLUMN()-6-COLUMN($E94)),VLOOKUP($E94-26,AllData,COLUMN()-6-COLUMN($E94)),VLOOKUP($E94-27,AllData,COLUMN()-6-COLUMN($E94)),VLOOKUP($E94-28,AllData,COLUMN()-6-COLUMN($E94)),VLOOKUP($E94-29,AllData,COLUMN()-6-COLUMN($E94)))","v":1019.0900000000001},{"$f":"VLOOKUP($E94,AllData,COLUMN()-7-COLUMN($E94))","v":0},{"$f":"OR('Cool Graph'!$I$1=35,'Cool Graph'!$I$1=36,'Cool Graph'!$I$1=37,'Cool Graph'!$I$1=38,'Cool Graph'!$I$1=39,'Cool Graph'!$I$1=40,'Cool Graph'!$I$1=41,'Cool Graph'!$I$1=42,'Cool Graph'!$I$1=43,'Cool Graph'!$I$1=44,'Cool Graph'!$I$1=45,'Cool Graph'!$I$1=46,'Cool Graph'!$I$1=47,'Cool Graph'!$I$1=58,'Cool Graph'!$I$1=66)","v":false}]
["2011-10-02",{"$f":"OFFSET(OldSchoolJustValues!A95,0,'Cool Graph'!$H$1)","v":30},{"$f":"OFFSET(OldSchoolJustValues!A95,0,'Cool Graph'!$I$1)","v":532.05645079845988},null,{"$f":"IF(NewDate>EndDate,NA(),NewDate)","v":"2011-12-28"},{"$f":"IF($E95>EndDate,NA(),IF($K$2=TRUE,N95,IF('Cool Graph'!$B$17=1,N95,IF('Cool Graph'!$B$17=2,L95,IF('Cool Graph'!$B$17=3,M95,)))))","v":0},{"$f":"IF($E95>EndDate,NA(),IF($O$2=TRUE,J95,IF('Cool Graph'!$B$17=1,Data1!J95,IF('Cool Graph'!$B$17=2,Data1!H95,IF('Cool Graph'!$B$17=3,Data1!I95,)))))","v":717.1302148475163},{"$f":"SUM(VLOOKUP($E95,AllData,COLUMN()-COLUMN($E95)),VLOOKUP($E95-1,AllData,COLUMN()-COLUMN($E95)),VLOOKUP($E95-2,AllData,COLUMN()-COLUMN($E95)),VLOOKUP($E95-3,AllData,COLUMN()-COLUMN($E95)),VLOOKUP($E95-4,AllData,COLUMN()-COLUMN($E95)),VLOOKUP($E95-5,AllData,COLUMN()-COLUMN($E95)),VLOOKUP($E95-6,AllData,COLUMN()-COLUMN($E95)))","v":1787.9419366897184},{"$f":"SUM(VLOOKUP($E95,AllData,COLUMN()-1-COLUMN($E95)),VLOOKUP($E95-1,AllData,COLUMN()-1-COLUMN($E95)),VLOOKUP($E95-2,AllData,COLUMN()-1-COLUMN($E95)),VLOOKUP($E95-3,AllData,COLUMN()-1-COLUMN($E95)),VLOOKUP($E95-4,AllData,COLUMN()-1-COLUMN($E95)),VLOOKUP($E95-5,AllData,COLUMN()-1-COLUMN($E95)),VLOOKUP($E95-6,AllData,COLUMN()-1-COLUMN($E95)),VLOOKUP($E95-7,AllData,COLUMN()-1-COLUMN($E95)),VLOOKUP($E95-8,AllData,COLUMN()-1-COLUMN($E95)),VLOOKUP($E95-9,AllData,COLUMN()-1-COLUMN($E95)),VLOOKUP($E95-10,AllData,COLUMN()-1-COLUMN($E95)),VLOOKUP($E95-11,AllData,COLUMN()-1-COLUMN($E95)),VLOOKUP($E95-12,AllData,COLUMN()-1-COLUMN($E95)),VLOOKUP($E95-13,AllData,COLUMN()-1-COLUMN($E95)),VLOOKUP($E95-14,AllData,COLUMN()-1-COLUMN($E95)),VLOOKUP($E95-15,AllData,COLUMN()-1-COLUMN($E95)),VLOOKUP($E95-16,AllData,COLUMN()-1-COLUMN($E95)),VLOOKUP($E95-17,AllData,COLUMN()-1-COLUMN($E95)),VLOOKUP($E95-18,AllData,COLUMN()-1-COLUMN($E95)),VLOOKUP($E95-19,AllData,COLUMN()-1-COLUMN($E95)),VLOOKUP($E95-20,AllData,COLUMN()-1-COLUMN($E95)),VLOOKUP($E95-21,AllData,COLUMN()-1-COLUMN($E95)),VLOOKUP($E95-22,AllData,COLUMN()-1-COLUMN($E95)),VLOOKUP($E95-23,AllData,COLUMN()-1-COLUMN($E95)),VLOOKUP($E95-24,AllData,COLUMN()-1-COLUMN($E95)),VLOOKUP($E95-25,AllData,COLUMN()-1-COLUMN($E95)),VLOOKUP($E95-26,AllData,COLUMN()-1-COLUMN($E95)),VLOOKUP($E95-27,AllData,COLUMN()-1-COLUMN($E95)),VLOOKUP($E95-28,AllData,COLUMN()-1-COLUMN($E95)),VLOOKUP($E95-29,AllData,COLUMN()-1-COLUMN($E95)))","v":23029.855372709382},{"$f":"VLOOKUP($E95,AllData,COLUMN()-2-COLUMN($E95))","v":717.1302148475163},{"$f":"OR('Cool Graph'!$H$1=35,'Cool Graph'!$H$1=36,'Cool Graph'!$H$1=37,'Cool Graph'!$H$1=38,'Cool Graph'!$H$1=39,'Cool Graph'!$H$1=40,'Cool Graph'!$H$1=41,'Cool Graph'!$H$1=42,'Cool Graph'!$H$1=43,'Cool Graph'!$H$1=44,'Cool Graph'!$H$1=45,'Cool Graph'!$H$1=46,'Cool Graph'!$H$1=47,'Cool Graph'!$H$1=58,'Cool Graph'!$H$1=66)","v":false},{"$f":"SUM(VLOOKUP($E95,AllData,COLUMN()-5-COLUMN($E95)),VLOOKUP($E95-1,AllData,COLUMN()-5-COLUMN($E95)),VLOOKUP($E95-2,AllData,COLUMN()-5-COLUMN($E95)),VLOOKUP($E95-3,AllData,COLUMN()-5-COLUMN($E95)),VLOOKUP($E95-4,AllData,COLUMN()-5-COLUMN($E95)),VLOOKUP($E95-5,AllData,COLUMN()-5-COLUMN($E95)),VLOOKUP($E95-6,AllData,COLUMN()-5-COLUMN($E95)))","v":0},{"$f":"SUM(VLOOKUP($E95,AllData,COLUMN()-6-COLUMN($E95)),VLOOKUP($E95-1,AllData,COLUMN()-6-COLUMN($E95)),VLOOKUP($E95-2,AllData,COLUMN()-6-COLUMN($E95)),VLOOKUP($E95-3,AllData,COLUMN()-6-COLUMN($E95)),VLOOKUP($E95-4,AllData,COLUMN()-6-COLUMN($E95)),VLOOKUP($E95-5,AllData,COLUMN()-6-COLUMN($E95)),VLOOKUP($E95-6,AllData,COLUMN()-6-COLUMN($E95)),VLOOKUP($E95-7,AllData,COLUMN()-6-COLUMN($E95)),VLOOKUP($E95-8,AllData,COLUMN()-6-COLUMN($E95)),VLOOKUP($E95-9,AllData,COLUMN()-6-COLUMN($E95)),VLOOKUP($E95-10,AllData,COLUMN()-6-COLUMN($E95)),VLOOKUP($E95-11,AllData,COLUMN()-6-COLUMN($E95)),VLOOKUP($E95-12,AllData,COLUMN()-6-COLUMN($E95)),VLOOKUP($E95-13,AllData,COLUMN()-6-COLUMN($E95)),VLOOKUP($E95-14,AllData,COLUMN()-6-COLUMN($E95)),VLOOKUP($E95-15,AllData,COLUMN()-6-COLUMN($E95)),VLOOKUP($E95-16,AllData,COLUMN()-6-COLUMN($E95)),VLOOKUP($E95-17,AllData,COLUMN()-6-COLUMN($E95)),VLOOKUP($E95-18,AllData,COLUMN()-6-COLUMN($E95)),VLOOKUP($E95-19,AllData,COLUMN()-6-COLUMN($E95)),VLOOKUP($E95-20,AllData,COLUMN()-6-COLUMN($E95)),VLOOKUP($E95-21,AllData,COLUMN()-6-COLUMN($E95)),VLOOKUP($E95-22,AllData,COLUMN()-6-COLUMN($E95)),VLOOKUP($E95-23,AllData,COLUMN()-6-COLUMN($E95)),VLOOKUP($E95-24,AllData,COLUMN()-6-COLUMN($E95)),VLOOKUP($E95-25,AllData,COLUMN()-6-COLUMN($E95)),VLOOKUP($E95-26,AllData,COLUMN()-6-COLUMN($E95)),VLOOKUP($E95-27,AllData,COLUMN()-6-COLUMN($E95)),VLOOKUP($E95-28,AllData,COLUMN()-6-COLUMN($E95)),VLOOKUP($E95-29,AllData,COLUMN()-6-COLUMN($E95)))","v":998.93000000000018},{"$f":"VLOOKUP($E95,AllData,COLUMN()-7-COLUMN($E95))","v":0},{"$f":"OR('Cool Graph'!$I$1=35,'Cool Graph'!$I$1=36,'Cool Graph'!$I$1=37,'Cool Graph'!$I$1=38,'Cool Graph'!$I$1=39,'Cool Graph'!$I$1=40,'Cool Graph'!$I$1=41,'Cool Graph'!$I$1=42,'Cool Graph'!$I$1=43,'Cool Graph'!$I$1=44,'Cool Graph'!$I$1=45,'Cool Graph'!$I$1=46,'Cool Graph'!$I$1=47,'Cool Graph'!$I$1=58,'Cool Graph'!$I$1=66)","v":false}]
["2011-10-03",{"$f":"OFFSET(OldSchoolJustValues!A96,0,'Cool Graph'!$H$1)","v":60},{"$f":"OFFSET(OldSchoolJustValues!A96,0,'Cool Graph'!$I$1)","v":27.3665685447545},null,{"$f":"IF(NewDate>EndDate,NA(),NewDate)","v":"2011-12-29"},{"$f":"IF($E96>EndDate,NA(),IF($K$2=TRUE,N96,IF('Cool Graph'!$B$17=1,N96,IF('Cool Graph'!$B$17=2,L96,IF('Cool Graph'!$B$17=3,M96,)))))","v":41.34},{"$f":"IF($E96>EndDate,NA(),IF($O$2=TRUE,J96,IF('Cool Graph'!$B$17=1,Data1!J96,IF('Cool Graph'!$B$17=2,Data1!H96,IF('Cool Graph'!$B$17=3,Data1!I96,)))))","v":-6.5401842650567801},{"$f":"SUM(VLOOKUP($E96,AllData,COLUMN()-COLUMN($E96)),VLOOKUP($E96-1,AllData,COLUMN()-COLUMN($E96)),VLOOKUP($E96-2,AllData,COLUMN()-COLUMN($E96)),VLOOKUP($E96-3,AllData,COLUMN()-COLUMN($E96)),VLOOKUP($E96-4,AllData,COLUMN()-COLUMN($E96)),VLOOKUP($E96-5,AllData,COLUMN()-COLUMN($E96)),VLOOKUP($E96-6,AllData,COLUMN()-COLUMN($E96)))","v":1678.1311690470318},{"$f":"SUM(VLOOKUP($E96,AllData,COLUMN()-1-COLUMN($E96)),VLOOKUP($E96-1,AllData,COLUMN()-1-COLUMN($E96)),VLOOKUP($E96-2,AllData,COLUMN()-1-COLUMN($E96)),VLOOKUP($E96-3,AllData,COLUMN()-1-COLUMN($E96)),VLOOKUP($E96-4,AllData,COLUMN()-1-COLUMN($E96)),VLOOKUP($E96-5,AllData,COLUMN()-1-COLUMN($E96)),VLOOKUP($E96-6,AllData,COLUMN()-1-COLUMN($E96)),VLOOKUP($E96-7,AllData,COLUMN()-1-COLUMN($E96)),VLOOKUP($E96-8,AllData,COLUMN()-1-COLUMN($E96)),VLOOKUP($E96-9,AllData,COLUMN()-1-COLUMN($E96)),VLOOKUP($E96-10,AllData,COLUMN()-1-COLUMN($E96)),VLOOKUP($E96-11,AllData,COLUMN()-1-COLUMN($E96)),VLOOKUP($E96-12,AllData,COLUMN()-1-COLUMN($E96)),VLOOKUP($E96-13,AllData,COLUMN()-1-COLUMN($E96)),VLOOKUP($E96-14,AllData,COLUMN()-1-COLUMN($E96)),VLOOKUP($E96-15,AllData,COLUMN()-1-COLUMN($E96)),VLOOKUP($E96-16,AllData,COLUMN()-1-COLUMN($E96)),VLOOKUP($E96-17,AllData,COLUMN()-1-COLUMN($E96)),VLOOKUP($E96-18,AllData,COLUMN()-1-COLUMN($E96)),VLOOKUP($E96-19,AllData,COLUMN()-1-COLUMN($E96)),VLOOKUP($E96-20,AllData,COLUMN()-1-COLUMN($E96)),VLOOKUP($E96-21,AllData,COLUMN()-1-COLUMN($E96)),VLOOKUP($E96-22,AllData,COLUMN()-1-COLUMN($E96)),VLOOKUP($E96-23,AllData,COLUMN()-1-COLUMN($E96)),VLOOKUP($E96-24,AllData,COLUMN()-1-COLUMN($E96)),VLOOKUP($E96-25,AllData,COLUMN()-1-COLUMN($E96)),VLOOKUP($E96-26,AllData,COLUMN()-1-COLUMN($E96)),VLOOKUP($E96-27,AllData,COLUMN()-1-COLUMN($E96)),VLOOKUP($E96-28,AllData,COLUMN()-1-COLUMN($E96)),VLOOKUP($E96-29,AllData,COLUMN()-1-COLUMN($E96)))","v":22093.263696740869},{"$f":"VLOOKUP($E96,AllData,COLUMN()-2-COLUMN($E96))","v":-6.5401842650567801},{"$f":"OR('Cool Graph'!$H$1=35,'Cool Graph'!$H$1=36,'Cool Graph'!$H$1=37,'Cool Graph'!$H$1=38,'Cool Graph'!$H$1=39,'Cool Graph'!$H$1=40,'Cool Graph'!$H$1=41,'Cool Graph'!$H$1=42,'Cool Graph'!$H$1=43,'Cool Graph'!$H$1=44,'Cool Graph'!$H$1=45,'Cool Graph'!$H$1=46,'Cool Graph'!$H$1=47,'Cool Graph'!$H$1=58,'Cool Graph'!$H$1=66)","v":false},{"$f":"SUM(VLOOKUP($E96,AllData,COLUMN()-5-COLUMN($E96)),VLOOKUP($E96-1,AllData,COLUMN()-5-COLUMN($E96)),VLOOKUP($E96-2,AllData,COLUMN()-5-COLUMN($E96)),VLOOKUP($E96-3,AllData,COLUMN()-5-COLUMN($E96)),VLOOKUP($E96-4,AllData,COLUMN()-5-COLUMN($E96)),VLOOKUP($E96-5,AllData,COLUMN()-5-COLUMN($E96)),VLOOKUP($E96-6,AllData,COLUMN()-5-COLUMN($E96)))","v":41.34},{"$f":"SUM(VLOOKUP($E96,AllData,COLUMN()-6-COLUMN($E96)),VLOOKUP($E96-1,AllData,COLUMN()-6-COLUMN($E96)),VLOOKUP($E96-2,AllData,COLUMN()-6-COLUMN($E96)),VLOOKUP($E96-3,AllData,COLUMN()-6-COLUMN($E96)),VLOOKUP($E96-4,AllData,COLUMN()-6-COLUMN($E96)),VLOOKUP($E96-5,AllData,COLUMN()-6-COLUMN($E96)),VLOOKUP($E96-6,AllData,COLUMN()-6-COLUMN($E96)),VLOOKUP($E96-7,AllData,COLUMN()-6-COLUMN($E96)),VLOOKUP($E96-8,AllData,COLUMN()-6-COLUMN($E96)),VLOOKUP($E96-9,AllData,COLUMN()-6-COLUMN($E96)),VLOOKUP($E96-10,AllData,COLUMN()-6-COLUMN($E96)),VLOOKUP($E96-11,AllData,COLUMN()-6-COLUMN($E96)),VLOOKUP($E96-12,AllData,COLUMN()-6-COLUMN($E96)),VLOOKUP($E96-13,AllData,COLUMN()-6-COLUMN($E96)),VLOOKUP($E96-14,AllData,COLUMN()-6-COLUMN($E96)),VLOOKUP($E96-15,AllData,COLUMN()-6-COLUMN($E96)),VLOOKUP($E96-16,AllData,COLUMN()-6-COLUMN($E96)),VLOOKUP($E96-17,AllData,COLUMN()-6-COLUMN($E96)),VLOOKUP($E96-18,AllData,COLUMN()-6-COLUMN($E96)),VLOOKUP($E96-19,AllData,COLUMN()-6-COLUMN($E96)),VLOOKUP($E96-20,AllData,COLUMN()-6-COLUMN($E96)),VLOOKUP($E96-21,AllData,COLUMN()-6-COLUMN($E96)),VLOOKUP($E96-22,AllData,COLUMN()-6-COLUMN($E96)),VLOOKUP($E96-23,AllData,COLUMN()-6-COLUMN($E96)),VLOOKUP($E96-24,AllData,COLUMN()-6-COLUMN($E96)),VLOOKUP($E96-25,AllData,COLUMN()-6-COLUMN($E96)),VLOOKUP($E96-26,AllData,COLUMN()-6-COLUMN($E96)),VLOOKUP($E96-27,AllData,COLUMN()-6-COLUMN($E96)),VLOOKUP($E96-28,AllData,COLUMN()-6-COLUMN($E96)),VLOOKUP($E96-29,AllData,COLUMN()-6-COLUMN($E96)))","v":1040.27},{"$f":"VLOOKUP($E96,AllData,COLUMN()-7-COLUMN($E96))","v":41.34},{"$f":"OR('Cool Graph'!$I$1=35,'Cool Graph'!$I$1=36,'Cool Graph'!$I$1=37,'Cool Graph'!$I$1=38,'Cool Graph'!$I$1=39,'Cool Graph'!$I$1=40,'Cool Graph'!$I$1=41,'Cool Graph'!$I$1=42,'Cool Graph'!$I$1=43,'Cool Graph'!$I$1=44,'Cool Graph'!$I$1=45,'Cool Graph'!$I$1=46,'Cool Graph'!$I$1=47,'Cool Graph'!$I$1=58,'Cool Graph'!$I$1=66)","v":false}]
["2011-10-04",{"$f":"OFFSET(OldSchoolJustValues!A97,0,'Cool Graph'!$H$1)","v":250},{"$f":"OFFSET(OldSchoolJustValues!A97,0,'Cool Graph'!$I$1)","v":-146.25680403734384},null,{"$f":"IF(NewDate>EndDate,NA(),NewDate)","v":"2011-12-30"},{"$f":"IF($E97>EndDate,NA(),IF($K$2=TRUE,N97,IF('Cool Graph'!$B$17=1,N97,IF('Cool Graph'!$B$17=2,L97,IF('Cool Graph'!$B$17=3,M97,)))))","v":11.86},{"$f":"IF($E97>EndDate,NA(),IF($O$2=TRUE,J97,IF('Cool Graph'!$B$17=1,Data1!J97,IF('Cool Graph'!$B$17=2,Data1!H97,IF('Cool Graph'!$B$17=3,Data1!I97,)))))","v":538.29167596851266},{"$f":"SUM(VLOOKUP($E97,AllData,COLUMN()-COLUMN($E97)),VLOOKUP($E97-1,AllData,COLUMN()-COLUMN($E97)),VLOOKUP($E97-2,AllData,COLUMN()-COLUMN($E97)),VLOOKUP($E97-3,AllData,COLUMN()-COLUMN($E97)),VLOOKUP($E97-4,AllData,COLUMN()-COLUMN($E97)),VLOOKUP($E97-5,AllData,COLUMN()-COLUMN($E97)),VLOOKUP($E97-6,AllData,COLUMN()-COLUMN($E97)))","v":1918.5232135456581},{"$f":"SUM(VLOOKUP($E97,AllData,COLUMN()-1-COLUMN($E97)),VLOOKUP($E97-1,AllData,COLUMN()-1-COLUMN($E97)),VLOOKUP($E97-2,AllData,COLUMN()-1-COLUMN($E97)),VLOOKUP($E97-3,AllData,COLUMN()-1-COLUMN($E97)),VLOOKUP($E97-4,AllData,COLUMN()-1-COLUMN($E97)),VLOOKUP($E97-5,AllData,COLUMN()-1-COLUMN($E97)),VLOOKUP($E97-6,AllData,COLUMN()-1-COLUMN($E97)),VLOOKUP($E97-7,AllData,COLUMN()-1-COLUMN($E97)),VLOOKUP($E97-8,AllData,COLUMN()-1-COLUMN($E97)),VLOOKUP($E97-9,AllData,COLUMN()-1-COLUMN($E97)),VLOOKUP($E97-10,AllData,COLUMN()-1-COLUMN($E97)),VLOOKUP($E97-11,AllData,COLUMN()-1-COLUMN($E97)),VLOOKUP($E97-12,AllData,COLUMN()-1-COLUMN($E97)),VLOOKUP($E97-13,AllData,COLUMN()-1-COLUMN($E97)),VLOOKUP($E97-14,AllData,COLUMN()-1-COLUMN($E97)),VLOOKUP($E97-15,AllData,COLUMN()-1-COLUMN($E97)),VLOOKUP($E97-16,AllData,COLUMN()-1-COLUMN($E97)),VLOOKUP($E97-17,AllData,COLUMN()-1-COLUMN($E97)),VLOOKUP($E97-18,AllData,COLUMN()-1-COLUMN($E97)),VLOOKUP($E97-19,AllData,COLUMN()-1-COLUMN($E97)),VLOOKUP($E97-20,AllData,COLUMN()-1-COLUMN($E97)),VLOOKUP($E97-21,AllData,COLUMN()-1-COLUMN($E97)),VLOOKUP($E97-22,AllData,COLUMN()-1-COLUMN($E97)),VLOOKUP($E97-23,AllData,COLUMN()-1-COLUMN($E97)),VLOOKUP($E97-24,AllData,COLUMN()-1-COLUMN($E97)),VLOOKUP($E97-25,AllData,COLUMN()-1-COLUMN($E97)),VLOOKUP($E97-26,AllData,COLUMN()-1-COLUMN($E97)),VLOOKUP($E97-27,AllData,COLUMN()-1-COLUMN($E97)),VLOOKUP($E97-28,AllData,COLUMN()-1-COLUMN($E97)),VLOOKUP($E97-29,AllData,COLUMN()-1-COLUMN($E97)))","v":22428.567460789927},{"$f":"VLOOKUP($E97,AllData,COLUMN()-2-COLUMN($E97))","v":538.29167596851266},{"$f":"OR('Cool Graph'!$H$1=35,'Cool Graph'!$H$1=36,'Cool Graph'!$H$1=37,'Cool Graph'!$H$1=38,'Cool Graph'!$H$1=39,'Cool Graph'!$H$1=40,'Cool Graph'!$H$1=41,'Cool Graph'!$H$1=42,'Cool Graph'!$H$1=43,'Cool Graph'!$H$1=44,'Cool Graph'!$H$1=45,'Cool Graph'!$H$1=46,'Cool Graph'!$H$1=47,'Cool Graph'!$H$1=58,'Cool Graph'!$H$1=66)","v":false},{"$f":"SUM(VLOOKUP($E97,AllData,COLUMN()-5-COLUMN($E97)),VLOOKUP($E97-1,AllData,COLUMN()-5-COLUMN($E97)),VLOOKUP($E97-2,AllData,COLUMN()-5-COLUMN($E97)),VLOOKUP($E97-3,AllData,COLUMN()-5-COLUMN($E97)),VLOOKUP($E97-4,AllData,COLUMN()-5-COLUMN($E97)),VLOOKUP($E97-5,AllData,COLUMN()-5-COLUMN($E97)),VLOOKUP($E97-6,AllData,COLUMN()-5-COLUMN($E97)))","v":53.2},{"$f":"SUM(VLOOKUP($E97,AllData,COLUMN()-6-COLUMN($E97)),VLOOKUP($E97-1,AllData,COLUMN()-6-COLUMN($E97)),VLOOKUP($E97-2,AllData,COLUMN()-6-COLUMN($E97)),VLOOKUP($E97-3,AllData,COLUMN()-6-COLUMN($E97)),VLOOKUP($E97-4,AllData,COLUMN()-6-COLUMN($E97)),VLOOKUP($E97-5,AllData,COLUMN()-6-COLUMN($E97)),VLOOKUP($E97-6,AllData,COLUMN()-6-COLUMN($E97)),VLOOKUP($E97-7,AllData,COLUMN()-6-COLUMN($E97)),VLOOKUP($E97-8,AllData,COLUMN()-6-COLUMN($E97)),VLOOKUP($E97-9,AllData,COLUMN()-6-COLUMN($E97)),VLOOKUP($E97-10,AllData,COLUMN()-6-COLUMN($E97)),VLOOKUP($E97-11,AllData,COLUMN()-6-COLUMN($E97)),VLOOKUP($E97-12,AllData,COLUMN()-6-COLUMN($E97)),VLOOKUP($E97-13,AllData,COLUMN()-6-COLUMN($E97)),VLOOKUP($E97-14,AllData,COLUMN()-6-COLUMN($E97)),VLOOKUP($E97-15,AllData,COLUMN()-6-COLUMN($E97)),VLOOKUP($E97-16,AllData,COLUMN()-6-COLUMN($E97)),VLOOKUP($E97-17,AllData,COLUMN()-6-COLUMN($E97)),VLOOKUP($E97-18,AllData,COLUMN()-6-COLUMN($E97)),VLOOKUP($E97-19,AllData,COLUMN()-6-COLUMN($E97)),VLOOKUP($E97-20,AllData,COLUMN()-6-COLUMN($E97)),VLOOKUP($E97-21,AllData,COLUMN()-6-COLUMN($E97)),VLOOKUP($E97-22,AllData,COLUMN()-6-COLUMN($E97)),VLOOKUP($E97-23,AllData,COLUMN()-6-COLUMN($E97)),VLOOKUP($E97-24,AllData,COLUMN()-6-COLUMN($E97)),VLOOKUP($E97-25,AllData,COLUMN()-6-COLUMN($E97)),VLOOKUP($E97-26,AllData,COLUMN()-6-COLUMN($E97)),VLOOKUP($E97-27,AllData,COLUMN()-6-COLUMN($E97)),VLOOKUP($E97-28,AllData,COLUMN()-6-COLUMN($E97)),VLOOKUP($E97-29,AllData,COLUMN()-6-COLUMN($E97)))","v":1052.0400000000002},{"$f":"VLOOKUP($E97,AllData,COLUMN()-7-COLUMN($E97))","v":11.86},{"$f":"OR('Cool Graph'!$I$1=35,'Cool Graph'!$I$1=36,'Cool Graph'!$I$1=37,'Cool Graph'!$I$1=38,'Cool Graph'!$I$1=39,'Cool Graph'!$I$1=40,'Cool Graph'!$I$1=41,'Cool Graph'!$I$1=42,'Cool Graph'!$I$1=43,'Cool Graph'!$I$1=44,'Cool Graph'!$I$1=45,'Cool Graph'!$I$1=46,'Cool Graph'!$I$1=47,'Cool Graph'!$I$1=58,'Cool Graph'!$I$1=66)","v":false}]
["2011-10-05",{"$f":"OFFSET(OldSchoolJustValues!A98,0,'Cool Graph'!$H$1)","v":250},{"$f":"OFFSET(OldSchoolJustValues!A98,0,'Cool Graph'!$I$1)","v":433.33594923082194},null,{"$f":"IF(NewDate>EndDate,NA(),NewDate)","v":"2011-12-31"},{"$f":"IF($E98>EndDate,NA(),IF($K$2=TRUE,N98,IF('Cool Graph'!$B$17=1,N98,IF('Cool Graph'!$B$17=2,L98,IF('Cool Graph'!$B$17=3,M98,)))))","v":17.36},{"$f":"IF($E98>EndDate,NA(),IF($O$2=TRUE,J98,IF('Cool Graph'!$B$17=1,Data1!J98,IF('Cool Graph'!$B$17=2,Data1!H98,IF('Cool Graph'!$B$17=3,Data1!I98,)))))","v":315.5218669160281},{"$f":"SUM(VLOOKUP($E98,AllData,COLUMN()-COLUMN($E98)),VLOOKUP($E98-1,AllData,COLUMN()-COLUMN($E98)),VLOOKUP($E98-2,AllData,COLUMN()-COLUMN($E98)),VLOOKUP($E98-3,AllData,COLUMN()-COLUMN($E98)),VLOOKUP($E98-4,AllData,COLUMN()-COLUMN($E98)),VLOOKUP($E98-5,AllData,COLUMN()-COLUMN($E98)),VLOOKUP($E98-6,AllData,COLUMN()-COLUMN($E98)))","v":1943.6229029255355},{"$f":"SUM(VLOOKUP($E98,AllData,COLUMN()-1-COLUMN($E98)),VLOOKUP($E98-1,AllData,COLUMN()-1-COLUMN($E98)),VLOOKUP($E98-2,AllData,COLUMN()-1-COLUMN($E98)),VLOOKUP($E98-3,AllData,COLUMN()-1-COLUMN($E98)),VLOOKUP($E98-4,AllData,COLUMN()-1-COLUMN($E98)),VLOOKUP($E98-5,AllData,COLUMN()-1-COLUMN($E98)),VLOOKUP($E98-6,AllData,COLUMN()-1-COLUMN($E98)),VLOOKUP($E98-7,AllData,COLUMN()-1-COLUMN($E98)),VLOOKUP($E98-8,AllData,COLUMN()-1-COLUMN($E98)),VLOOKUP($E98-9,AllData,COLUMN()-1-COLUMN($E98)),VLOOKUP($E98-10,AllData,COLUMN()-1-COLUMN($E98)),VLOOKUP($E98-11,AllData,COLUMN()-1-COLUMN($E98)),VLOOKUP($E98-12,AllData,COLUMN()-1-COLUMN($E98)),VLOOKUP($E98-13,AllData,COLUMN()-1-COLUMN($E98)),VLOOKUP($E98-14,AllData,COLUMN()-1-COLUMN($E98)),VLOOKUP($E98-15,AllData,COLUMN()-1-COLUMN($E98)),VLOOKUP($E98-16,AllData,COLUMN()-1-COLUMN($E98)),VLOOKUP($E98-17,AllData,COLUMN()-1-COLUMN($E98)),VLOOKUP($E98-18,AllData,COLUMN()-1-COLUMN($E98)),VLOOKUP($E98-19,AllData,COLUMN()-1-COLUMN($E98)),VLOOKUP($E98-20,AllData,COLUMN()-1-COLUMN($E98)),VLOOKUP($E98-21,AllData,COLUMN()-1-COLUMN($E98)),VLOOKUP($E98-22,AllData,COLUMN()-1-COLUMN($E98)),VLOOKUP($E98-23,AllData,COLUMN()-1-COLUMN($E98)),VLOOKUP($E98-24,AllData,COLUMN()-1-COLUMN($E98)),VLOOKUP($E98-25,AllData,COLUMN()-1-COLUMN($E98)),VLOOKUP($E98-26,AllData,COLUMN()-1-COLUMN($E98)),VLOOKUP($E98-27,AllData,COLUMN()-1-COLUMN($E98)),VLOOKUP($E98-28,AllData,COLUMN()-1-COLUMN($E98)),VLOOKUP($E98-29,AllData,COLUMN()-1-COLUMN($E98)))","v":22538.875939832626},{"$f":"VLOOKUP($E98,AllData,COLUMN()-2-COLUMN($E98))","v":315.5218669160281},{"$f":"OR('Cool Graph'!$H$1=35,'Cool Graph'!$H$1=36,'Cool Graph'!$H$1=37,'Cool Graph'!$H$1=38,'Cool Graph'!$H$1=39,'Cool Graph'!$H$1=40,'Cool Graph'!$H$1=41,'Cool Graph'!$H$1=42,'Cool Graph'!$H$1=43,'Cool Graph'!$H$1=44,'Cool Graph'!$H$1=45,'Cool Graph'!$H$1=46,'Cool Graph'!$H$1=47,'Cool Graph'!$H$1=58,'Cool Graph'!$H$1=66)","v":false},{"$f":"SUM(VLOOKUP($E98,AllData,COLUMN()-5-COLUMN($E98)),VLOOKUP($E98-1,AllData,COLUMN()-5-COLUMN($E98)),VLOOKUP($E98-2,AllData,COLUMN()-5-COLUMN($E98)),VLOOKUP($E98-3,AllData,COLUMN()-5-COLUMN($E98)),VLOOKUP($E98-4,AllData,COLUMN()-5-COLUMN($E98)),VLOOKUP($E98-5,AllData,COLUMN()-5-COLUMN($E98)),VLOOKUP($E98-6,AllData,COLUMN()-5-COLUMN($E98)))","v":70.56},{"$f":"SUM(VLOOKUP($E98,AllData,COLUMN()-6-COLUMN($E98)),VLOOKUP($E98-1,AllData,COLUMN()-6-COLUMN($E98)),VLOOKUP($E98-2,AllData,COLUMN()-6-COLUMN($E98)),VLOOKUP($E98-3,AllData,COLUMN()-6-COLUMN($E98)),VLOOKUP($E98-4,AllData,COLUMN()-6-COLUMN($E98)),VLOOKUP($E98-5,AllData,COLUMN()-6-COLUMN($E98)),VLOOKUP($E98-6,AllData,COLUMN()-6-COLUMN($E98)),VLOOKUP($E98-7,AllData,COLUMN()-6-COLUMN($E98)),VLOOKUP($E98-8,AllData,COLUMN()-6-COLUMN($E98)),VLOOKUP($E98-9,AllData,COLUMN()-6-COLUMN($E98)),VLOOKUP($E98-10,AllData,COLUMN()-6-COLUMN($E98)),VLOOKUP($E98-11,AllData,COLUMN()-6-COLUMN($E98)),VLOOKUP($E98-12,AllData,COLUMN()-6-COLUMN($E98)),VLOOKUP($E98-13,AllData,COLUMN()-6-COLUMN($E98)),VLOOKUP($E98-14,AllData,COLUMN()-6-COLUMN($E98)),VLOOKUP($E98-15,AllData,COLUMN()-6-COLUMN($E98)),VLOOKUP($E98-16,AllData,COLUMN()-6-COLUMN($E98)),VLOOKUP($E98-17,AllData,COLUMN()-6-COLUMN($E98)),VLOOKUP($E98-18,AllData,COLUMN()-6-COLUMN($E98)),VLOOKUP($E98-19,AllData,COLUMN()-6-COLUMN($E98)),VLOOKUP($E98-20,AllData,COLUMN()-6-COLUMN($E98)),VLOOKUP($E98-21,AllData,COLUMN()-6-COLUMN($E98)),VLOOKUP($E98-22,AllData,COLUMN()-6-COLUMN($E98)),VLOOKUP($E98-23,AllData,COLUMN()-6-COLUMN($E98)),VLOOKUP($E98-24,AllData,COLUMN()-6-COLUMN($E98)),VLOOKUP($E98-25,AllData,COLUMN()-6-COLUMN($E98)),VLOOKUP($E98-26,AllData,COLUMN()-6-COLUMN($E98)),VLOOKUP($E98-27,AllData,COLUMN()-6-COLUMN($E98)),VLOOKUP($E98-28,AllData,COLUMN()-6-COLUMN($E98)),VLOOKUP($E98-29,AllData,COLUMN()-6-COLUMN($E98)))","v":1067.9000000000001},{"$f":"VLOOKUP($E98,AllData,COLUMN()-7-COLUMN($E98))","v":17.36},{"$f":"OR('Cool Graph'!$I$1=35,'Cool Graph'!$I$1=36,'Cool Graph'!$I$1=37,'Cool Graph'!$I$1=38,'Cool Graph'!$I$1=39,'Cool Graph'!$I$1=40,'Cool Graph'!$I$1=41,'Cool Graph'!$I$1=42,'Cool Graph'!$I$1=43,'Cool Graph'!$I$1=44,'Cool Graph'!$I$1=45,'Cool Graph'!$I$1=46,'Cool Graph'!$I$1=47,'Cool Graph'!$I$1=58,'Cool Graph'!$I$1=66)","v":false}]
["2011-10-06",{"$f":"OFFSET(OldSchoolJustValues!A99,0,'Cool Graph'!$H$1)","v":250},{"$f":"OFFSET(OldSchoolJustValues!A99,0,'Cool Graph'!$I$1)","v":265.24724940684314},null,{"$f":"IF(NewDate>EndDate,NA(),NewDate)","v":"2012-01-01"},{"$f":"IF($E99>EndDate,NA(),IF($K$2=TRUE,N99,IF('Cool Graph'!$B$17=1,N99,IF('Cool Graph'!$B$17=2,L99,IF('Cool Graph'!$B$17=3,M99,)))))","v":36.1},{"$f":"IF($E99>EndDate,NA(),IF($O$2=TRUE,J99,IF('Cool Graph'!$B$17=1,Data1!J99,IF('Cool Graph'!$B$17=2,Data1!H99,IF('Cool Graph'!$B$17=3,Data1!I99,)))))","v":364.98923690597599},{"$f":"SUM(VLOOKUP($E99,AllData,COLUMN()-COLUMN($E99)),VLOOKUP($E99-1,AllData,COLUMN()-COLUMN($E99)),VLOOKUP($E99-2,AllData,COLUMN()-COLUMN($E99)),VLOOKUP($E99-3,AllData,COLUMN()-COLUMN($E99)),VLOOKUP($E99-4,AllData,COLUMN()-COLUMN($E99)),VLOOKUP($E99-5,AllData,COLUMN()-COLUMN($E99)),VLOOKUP($E99-6,AllData,COLUMN()-COLUMN($E99)))","v":2067.7799622953607},{"$f":"SUM(VLOOKUP($E99,AllData,COLUMN()-1-COLUMN($E99)),VLOOKUP($E99-1,AllData,COLUMN()-1-COLUMN($E99)),VLOOKUP($E99-2,AllData,COLUMN()-1-COLUMN($E99)),VLOOKUP($E99-3,AllData,COLUMN()-1-COLUMN($E99)),VLOOKUP($E99-4,AllData,COLUMN()-1-COLUMN($E99)),VLOOKUP($E99-5,AllData,COLUMN()-1-COLUMN($E99)),VLOOKUP($E99-6,AllData,COLUMN()-1-COLUMN($E99)),VLOOKUP($E99-7,AllData,COLUMN()-1-COLUMN($E99)),VLOOKUP($E99-8,AllData,COLUMN()-1-COLUMN($E99)),VLOOKUP($E99-9,AllData,COLUMN()-1-COLUMN($E99)),VLOOKUP($E99-10,AllData,COLUMN()-1-COLUMN($E99)),VLOOKUP($E99-11,AllData,COLUMN()-1-COLUMN($E99)),VLOOKUP($E99-12,AllData,COLUMN()-1-COLUMN($E99)),VLOOKUP($E99-13,AllData,COLUMN()-1-COLUMN($E99)),VLOOKUP($E99-14,AllData,COLUMN()-1-COLUMN($E99)),VLOOKUP($E99-15,AllData,COLUMN()-1-COLUMN($E99)),VLOOKUP($E99-16,AllData,COLUMN()-1-COLUMN($E99)),VLOOKUP($E99-17,AllData,COLUMN()-1-COLUMN($E99)),VLOOKUP($E99-18,AllData,COLUMN()-1-COLUMN($E99)),VLOOKUP($E99-19,AllData,COLUMN()-1-COLUMN($E99)),VLOOKUP($E99-20,AllData,COLUMN()-1-COLUMN($E99)),VLOOKUP($E99-21,AllData,COLUMN()-1-COLUMN($E99)),VLOOKUP($E99-22,AllData,COLUMN()-1-COLUMN($E99)),VLOOKUP($E99-23,AllData,COLUMN()-1-COLUMN($E99)),VLOOKUP($E99-24,AllData,COLUMN()-1-COLUMN($E99)),VLOOKUP($E99-25,AllData,COLUMN()-1-COLUMN($E99)),VLOOKUP($E99-26,AllData,COLUMN()-1-COLUMN($E99)),VLOOKUP($E99-27,AllData,COLUMN()-1-COLUMN($E99)),VLOOKUP($E99-28,AllData,COLUMN()-1-COLUMN($E99)),VLOOKUP($E99-29,AllData,COLUMN()-1-COLUMN($E99)))","v":22725.039117407101},{"$f":"VLOOKUP($E99,AllData,COLUMN()-2-COLUMN($E99))","v":364.98923690597599},{"$f":"OR('Cool Graph'!$H$1=35,'Cool Graph'!$H$1=36,'Cool Graph'!$H$1=37,'Cool Graph'!$H$1=38,'Cool Graph'!$H$1=39,'Cool Graph'!$H$1=40,'Cool Graph'!$H$1=41,'Cool Graph'!$H$1=42,'Cool Graph'!$H$1=43,'Cool Graph'!$H$1=44,'Cool Graph'!$H$1=45,'Cool Graph'!$H$1=46,'Cool Graph'!$H$1=47,'Cool Graph'!$H$1=58,'Cool Graph'!$H$1=66)","v":false},{"$f":"SUM(VLOOKUP($E99,AllData,COLUMN()-5-COLUMN($E99)),VLOOKUP($E99-1,AllData,COLUMN()-5-COLUMN($E99)),VLOOKUP($E99-2,AllData,COLUMN()-5-COLUMN($E99)),VLOOKUP($E99-3,AllData,COLUMN()-5-COLUMN($E99)),VLOOKUP($E99-4,AllData,COLUMN()-5-COLUMN($E99)),VLOOKUP($E99-5,AllData,COLUMN()-5-COLUMN($E99)),VLOOKUP($E99-6,AllData,COLUMN()-5-COLUMN($E99)))","v":106.66},{"$f":"SUM(VLOOKUP($E99,AllData,COLUMN()-6-COLUMN($E99)),VLOOKUP($E99-1,AllData,COLUMN()-6-COLUMN($E99)),VLOOKUP($E99-2,AllData,COLUMN()-6-COLUMN($E99)),VLOOKUP($E99-3,AllData,COLUMN()-6-COLUMN($E99)),VLOOKUP($E99-4,AllData,COLUMN()-6-COLUMN($E99)),VLOOKUP($E99-5,AllData,COLUMN()-6-COLUMN($E99)),VLOOKUP($E99-6,AllData,COLUMN()-6-COLUMN($E99)),VLOOKUP($E99-7,AllData,COLUMN()-6-COLUMN($E99)),VLOOKUP($E99-8,AllData,COLUMN()-6-COLUMN($E99)),VLOOKUP($E99-9,AllData,COLUMN()-6-COLUMN($E99)),VLOOKUP($E99-10,AllData,COLUMN()-6-COLUMN($E99)),VLOOKUP($E99-11,AllData,COLUMN()-6-COLUMN($E99)),VLOOKUP($E99-12,AllData,COLUMN()-6-COLUMN($E99)),VLOOKUP($E99-13,AllData,COLUMN()-6-COLUMN($E99)),VLOOKUP($E99-14,AllData,COLUMN()-6-COLUMN($E99)),VLOOKUP($E99-15,AllData,COLUMN()-6-COLUMN($E99)),VLOOKUP($E99-16,AllData,COLUMN()-6-COLUMN($E99)),VLOOKUP($E99-17,AllData,COLUMN()-6-COLUMN($E99)),VLOOKUP($E99-18,AllData,COLUMN()-6-COLUMN($E99)),VLOOKUP($E99-19,AllData,COLUMN()-6-COLUMN($E99)),VLOOKUP($E99-20,AllData,COLUMN()-6-COLUMN($E99)),VLOOKUP($E99-21,AllData,COLUMN()-6-COLUMN($E99)),VLOOKUP($E99-22,AllData,COLUMN()-6-COLUMN($E99)),VLOOKUP($E99-23,AllData,COLUMN()-6-COLUMN($E99)),VLOOKUP($E99-24,AllData,COLUMN()-6-COLUMN($E99)),VLOOKUP($E99-25,AllData,COLUMN()-6-COLUMN($E99)),VLOOKUP($E99-26,AllData,COLUMN()-6-COLUMN($E99)),VLOOKUP($E99-27,AllData,COLUMN()-6-COLUMN($E99)),VLOOKUP($E99-28,AllData,COLUMN()-6-COLUMN($E99)),VLOOKUP($E99-29,AllData,COLUMN()-6-COLUMN($E99)))","v":1102.49},{"$f":"VLOOKUP($E99,AllData,COLUMN()-7-COLUMN($E99))","v":36.1},{"$f":"OR('Cool Graph'!$I$1=35,'Cool Graph'!$I$1=36,'Cool Graph'!$I$1=37,'Cool Graph'!$I$1=38,'Cool Graph'!$I$1=39,'Cool Graph'!$I$1=40,'Cool Graph'!$I$1=41,'Cool Graph'!$I$1=42,'Cool Graph'!$I$1=43,'Cool Graph'!$I$1=44,'Cool Graph'!$I$1=45,'Cool Graph'!$I$1=46,'Cool Graph'!$I$1=47,'Cool Graph'!$I$1=58,'Cool Graph'!$I$1=66)","v":false}]
["2011-10-07",{"$f":"OFFSET(OldSchoolJustValues!A100,0,'Cool Graph'!$H$1)","v":62.16},{"$f":"OFFSET(OldSchoolJustValues!A100,0,'Cool Graph'!$I$1)","v":797.78633305216533},null,{"$f":"IF(NewDate>EndDate,NA(),NewDate)","v":"2012-01-02"},{"$f":"IF($E100>EndDate,NA(),IF($K$2=TRUE,N100,IF('Cool Graph'!$B$17=1,N100,IF('Cool Graph'!$B$17=2,L100,IF('Cool Graph'!$B$17=3,M100,)))))","v":18.57},{"$f":"IF($E100>EndDate,NA(),IF($O$2=TRUE,J100,IF('Cool Graph'!$B$17=1,Data1!J100,IF('Cool Graph'!$B$17=2,Data1!H100,IF('Cool Graph'!$B$17=3,Data1!I100,)))))","v":555.66442490945133},{"$f":"SUM(VLOOKUP($E100,AllData,COLUMN()-COLUMN($E100)),VLOOKUP($E100-1,AllData,COLUMN()-COLUMN($E100)),VLOOKUP($E100-2,AllData,COLUMN()-COLUMN($E100)),VLOOKUP($E100-3,AllData,COLUMN()-COLUMN($E100)),VLOOKUP($E100-4,AllData,COLUMN()-COLUMN($E100)),VLOOKUP($E100-5,AllData,COLUMN()-COLUMN($E100)),VLOOKUP($E100-6,AllData,COLUMN()-COLUMN($E100)))","v":2734.7132357407818},{"$f":"SUM(VLOOKUP($E100,AllData,COLUMN()-1-COLUMN($E100)),VLOOKUP($E100-1,AllData,COLUMN()-1-COLUMN($E100)),VLOOKUP($E100-2,AllData,COLUMN()-1-COLUMN($E100)),VLOOKUP($E100-3,AllData,COLUMN()-1-COLUMN($E100)),VLOOKUP($E100-4,AllData,COLUMN()-1-COLUMN($E100)),VLOOKUP($E100-5,AllData,COLUMN()-1-COLUMN($E100)),VLOOKUP($E100-6,AllData,COLUMN()-1-COLUMN($E100)),VLOOKUP($E100-7,AllData,COLUMN()-1-COLUMN($E100)),VLOOKUP($E100-8,AllData,COLUMN()-1-COLUMN($E100)),VLOOKUP($E100-9,AllData,COLUMN()-1-COLUMN($E100)),VLOOKUP($E100-10,AllData,COLUMN()-1-COLUMN($E100)),VLOOKUP($E100-11,AllData,COLUMN()-1-COLUMN($E100)),VLOOKUP($E100-12,AllData,COLUMN()-1-COLUMN($E100)),VLOOKUP($E100-13,AllData,COLUMN()-1-COLUMN($E100)),VLOOKUP($E100-14,AllData,COLUMN()-1-COLUMN($E100)),VLOOKUP($E100-15,AllData,COLUMN()-1-COLUMN($E100)),VLOOKUP($E100-16,AllData,COLUMN()-1-COLUMN($E100)),VLOOKUP($E100-17,AllData,COLUMN()-1-COLUMN($E100)),VLOOKUP($E100-18,AllData,COLUMN()-1-COLUMN($E100)),VLOOKUP($E100-19,AllData,COLUMN()-1-COLUMN($E100)),VLOOKUP($E100-20,AllData,COLUMN()-1-COLUMN($E100)),VLOOKUP($E100-21,AllData,COLUMN()-1-COLUMN($E100)),VLOOKUP($E100-22,AllData,COLUMN()-1-COLUMN($E100)),VLOOKUP($E100-23,AllData,COLUMN()-1-COLUMN($E100)),VLOOKUP($E100-24,AllData,COLUMN()-1-COLUMN($E100)),VLOOKUP($E100-25,AllData,COLUMN()-1-COLUMN($E100)),VLOOKUP($E100-26,AllData,COLUMN()-1-COLUMN($E100)),VLOOKUP($E100-27,AllData,COLUMN()-1-COLUMN($E100)),VLOOKUP($E100-28,AllData,COLUMN()-1-COLUMN($E100)),VLOOKUP($E100-29,AllData,COLUMN()-1-COLUMN($E100)))","v":22714.237851515158},{"$f":"VLOOKUP($E100,AllData,COLUMN()-2-COLUMN($E100))","v":555.66442490945133},{"$f":"OR('Cool Graph'!$H$1=35,'Cool Graph'!$H$1=36,'Cool Graph'!$H$1=37,'Cool Graph'!$H$1=38,'Cool Graph'!$H$1=39,'Cool Graph'!$H$1=40,'Cool Graph'!$H$1=41,'Cool Graph'!$H$1=42,'Cool Graph'!$H$1=43,'Cool Graph'!$H$1=44,'Cool Graph'!$H$1=45,'Cool Graph'!$H$1=46,'Cool Graph'!$H$1=47,'Cool Graph'!$H$1=58,'Cool Graph'!$H$1=66)","v":false},{"$f":"SUM(VLOOKUP($E100,AllData,COLUMN()-5-COLUMN($E100)),VLOOKUP($E100-1,AllData,COLUMN()-5-COLUMN($E100)),VLOOKUP($E100-2,AllData,COLUMN()-5-COLUMN($E100)),VLOOKUP($E100-3,AllData,COLUMN()-5-COLUMN($E100)),VLOOKUP($E100-4,AllData,COLUMN()-5-COLUMN($E100)),VLOOKUP($E100-5,AllData,COLUMN()-5-COLUMN($E100)),VLOOKUP($E100-6,AllData,COLUMN()-5-COLUMN($E100)))","v":125.23},{"$f":"SUM(VLOOKUP($E100,AllData,COLUMN()-6-COLUMN($E100)),VLOOKUP($E100-1,AllData,COLUMN()-6-COLUMN($E100)),VLOOKUP($E100-2,AllData,COLUMN()-6-COLUMN($E100)),VLOOKUP($E100-3,AllData,COLUMN()-6-COLUMN($E100)),VLOOKUP($E100-4,AllData,COLUMN()-6-COLUMN($E100)),VLOOKUP($E100-5,AllData,COLUMN()-6-COLUMN($E100)),VLOOKUP($E100-6,AllData,COLUMN()-6-COLUMN($E100)),VLOOKUP($E100-7,AllData,COLUMN()-6-COLUMN($E100)),VLOOKUP($E100-8,AllData,COLUMN()-6-COLUMN($E100)),VLOOKUP($E100-9,AllData,COLUMN()-6-COLUMN($E100)),VLOOKUP($E100-10,AllData,COLUMN()-6-COLUMN($E100)),VLOOKUP($E100-11,AllData,COLUMN()-6-COLUMN($E100)),VLOOKUP($E100-12,AllData,COLUMN()-6-COLUMN($E100)),VLOOKUP($E100-13,AllData,COLUMN()-6-COLUMN($E100)),VLOOKUP($E100-14,AllData,COLUMN()-6-COLUMN($E100)),VLOOKUP($E100-15,AllData,COLUMN()-6-COLUMN($E100)),VLOOKUP($E100-16,AllData,COLUMN()-6-COLUMN($E100)),VLOOKUP($E100-17,AllData,COLUMN()-6-COLUMN($E100)),VLOOKUP($E100-18,AllData,COLUMN()-6-COLUMN($E100)),VLOOKUP($E100-19,AllData,COLUMN()-6-COLUMN($E100)),VLOOKUP($E100-20,AllData,COLUMN()-6-COLUMN($E100)),VLOOKUP($E100-21,AllData,COLUMN()-6-COLUMN($E100)),VLOOKUP($E100-22,AllData,COLUMN()-6-COLUMN($E100)),VLOOKUP($E100-23,AllData,COLUMN()-6-COLUMN($E100)),VLOOKUP($E100-24,AllData,COLUMN()-6-COLUMN($E100)),VLOOKUP($E100-25,AllData,COLUMN()-6-COLUMN($E100)),VLOOKUP($E100-26,AllData,COLUMN()-6-COLUMN($E100)),VLOOKUP($E100-27,AllData,COLUMN()-6-COLUMN($E100)),VLOOKUP($E100-28,AllData,COLUMN()-6-COLUMN($E100)),VLOOKUP($E100-29,AllData,COLUMN()-6-COLUMN($E100)))","v":1088.0600000000002},{"$f":"VLOOKUP($E100,AllData,COLUMN()-7-COLUMN($E100))","v":18.57},{"$f":"OR('Cool Graph'!$I$1=35,'Cool Graph'!$I$1=36,'Cool Graph'!$I$1=37,'Cool Graph'!$I$1=38,'Cool Graph'!$I$1=39,'Cool Graph'!$I$1=40,'Cool Graph'!$I$1=41,'Cool Graph'!$I$1=42,'Cool Graph'!$I$1=43,'Cool Graph'!$I$1=44,'Cool Graph'!$I$1=45,'Cool Graph'!$I$1=46,'Cool Graph'!$I$1=47,'Cool Graph'!$I$1=58,'Cool Graph'!$I$1=66)","v":false}]
["2011-10-08",{"$f":"OFFSET(OldSchoolJustValues!A101,0,'Cool Graph'!$H$1)","v":17.72},{"$f":"OFFSET(OldSchoolJustValues!A101,0,'Cool Graph'!$I$1)","v":-26.116745164196402},null,{"$f":"IF(NewDate>EndDate,NA(),NewDate)","v":"2012-01-03"},{"$f":"IF($E101>EndDate,NA(),IF($K$2=TRUE,N101,IF('Cool Graph'!$B$17=1,N101,IF('Cool Graph'!$B$17=2,L101,IF('Cool Graph'!$B$17=3,M101,)))))","v":0.64},{"$f":"IF($E101>EndDate,NA(),IF($O$2=TRUE,J101,IF('Cool Graph'!$B$17=1,Data1!J101,IF('Cool Graph'!$B$17=2,Data1!H101,IF('Cool Graph'!$B$17=3,Data1!I101,)))))","v":44.742177536150621},{"$f":"SUM(VLOOKUP($E101,AllData,COLUMN()-COLUMN($E101)),VLOOKUP($E101-1,AllData,COLUMN()-COLUMN($E101)),VLOOKUP($E101-2,AllData,COLUMN()-COLUMN($E101)),VLOOKUP($E101-3,AllData,COLUMN()-COLUMN($E101)),VLOOKUP($E101-4,AllData,COLUMN()-COLUMN($E101)),VLOOKUP($E101-5,AllData,COLUMN()-COLUMN($E101)),VLOOKUP($E101-6,AllData,COLUMN()-COLUMN($E101)))","v":2529.7994128185783},{"$f":"SUM(VLOOKUP($E101,AllData,COLUMN()-1-COLUMN($E101)),VLOOKUP($E101-1,AllData,COLUMN()-1-COLUMN($E101)),VLOOKUP($E101-2,AllData,COLUMN()-1-COLUMN($E101)),VLOOKUP($E101-3,AllData,COLUMN()-1-COLUMN($E101)),VLOOKUP($E101-4,AllData,COLUMN()-1-COLUMN($E101)),VLOOKUP($E101-5,AllData,COLUMN()-1-COLUMN($E101)),VLOOKUP($E101-6,AllData,COLUMN()-1-COLUMN($E101)),VLOOKUP($E101-7,AllData,COLUMN()-1-COLUMN($E101)),VLOOKUP($E101-8,AllData,COLUMN()-1-COLUMN($E101)),VLOOKUP($E101-9,AllData,COLUMN()-1-COLUMN($E101)),VLOOKUP($E101-10,AllData,COLUMN()-1-COLUMN($E101)),VLOOKUP($E101-11,AllData,COLUMN()-1-COLUMN($E101)),VLOOKUP($E101-12,AllData,COLUMN()-1-COLUMN($E101)),VLOOKUP($E101-13,AllData,COLUMN()-1-COLUMN($E101)),VLOOKUP($E101-14,AllData,COLUMN()-1-COLUMN($E101)),VLOOKUP($E101-15,AllData,COLUMN()-1-COLUMN($E101)),VLOOKUP($E101-16,AllData,COLUMN()-1-COLUMN($E101)),VLOOKUP($E101-17,AllData,COLUMN()-1-COLUMN($E101)),VLOOKUP($E101-18,AllData,COLUMN()-1-COLUMN($E101)),VLOOKUP($E101-19,AllData,COLUMN()-1-COLUMN($E101)),VLOOKUP($E101-20,AllData,COLUMN()-1-COLUMN($E101)),VLOOKUP($E101-21,AllData,COLUMN()-1-COLUMN($E101)),VLOOKUP($E101-22,AllData,COLUMN()-1-COLUMN($E101)),VLOOKUP($E101-23,AllData,COLUMN()-1-COLUMN($E101)),VLOOKUP($E101-24,AllData,COLUMN()-1-COLUMN($E101)),VLOOKUP($E101-25,AllData,COLUMN()-1-COLUMN($E101)),VLOOKUP($E101-26,AllData,COLUMN()-1-COLUMN($E101)),VLOOKUP($E101-27,AllData,COLUMN()-1-COLUMN($E101)),VLOOKUP($E101-28,AllData,COLUMN()-1-COLUMN($E101)),VLOOKUP($E101-29,AllData,COLUMN()-1-COLUMN($E101)))","v":21626.50100924974},{"$f":"VLOOKUP($E101,AllData,COLUMN()-2-COLUMN($E101))","v":44.742177536150621},{"$f":"OR('Cool Graph'!$H$1=35,'Cool Graph'!$H$1=36,'Cool Graph'!$H$1=37,'Cool Graph'!$H$1=38,'Cool Graph'!$H$1=39,'Cool Graph'!$H$1=40,'Cool Graph'!$H$1=41,'Cool Graph'!$H$1=42,'Cool Graph'!$H$1=43,'Cool Graph'!$H$1=44,'Cool Graph'!$H$1=45,'Cool Graph'!$H$1=46,'Cool Graph'!$H$1=47,'Cool Graph'!$H$1=58,'Cool Graph'!$H$1=66)","v":false},{"$f":"SUM(VLOOKUP($E101,AllData,COLUMN()-5-COLUMN($E101)),VLOOKUP($E101-1,AllData,COLUMN()-5-COLUMN($E101)),VLOOKUP($E101-2,AllData,COLUMN()-5-COLUMN($E101)),VLOOKUP($E101-3,AllData,COLUMN()-5-COLUMN($E101)),VLOOKUP($E101-4,AllData,COLUMN()-5-COLUMN($E101)),VLOOKUP($E101-5,AllData,COLUMN()-5-COLUMN($E101)),VLOOKUP($E101-6,AllData,COLUMN()-5-COLUMN($E101)))","v":125.87},{"$f":"SUM(VLOOKUP($E101,AllData,COLUMN()-6-COLUMN($E101)),VLOOKUP($E101-1,AllData,COLUMN()-6-COLUMN($E101)),VLOOKUP($E101-2,AllData,COLUMN()-6-COLUMN($E101)),VLOOKUP($E101-3,AllData,COLUMN()-6-COLUMN($E101)),VLOOKUP($E101-4,AllData,COLUMN()-6-COLUMN($E101)),VLOOKUP($E101-5,AllData,COLUMN()-6-COLUMN($E101)),VLOOKUP($E101-6,AllData,COLUMN()-6-COLUMN($E101)),VLOOKUP($E101-7,AllData,COLUMN()-6-COLUMN($E101)),VLOOKUP($E101-8,AllData,COLUMN()-6-COLUMN($E101)),VLOOKUP($E101-9,AllData,COLUMN()-6-COLUMN($E101)),VLOOKUP($E101-10,AllData,COLUMN()-6-COLUMN($E101)),VLOOKUP($E101-11,AllData,COLUMN()-6-COLUMN($E101)),VLOOKUP($E101-12,AllData,COLUMN()-6-COLUMN($E101)),VLOOKUP($E101-13,AllData,COLUMN()-6-COLUMN($E101)),VLOOKUP($E101-14,AllData,COLUMN()-6-COLUMN($E101)),VLOOKUP($E101-15,AllData,COLUMN()-6-COLUMN($E101)),VLOOKUP($E101-16,AllData,COLUMN()-6-COLUMN($E101)),VLOOKUP($E101-17,AllData,COLUMN()-6-COLUMN($E101)),VLOOKUP($E101-18,AllData,COLUMN()-6-COLUMN($E101)),VLOOKUP($E101-19,AllData,COLUMN()-6-COLUMN($E101)),VLOOKUP($E101-20,AllData,COLUMN()-6-COLUMN($E101)),VLOOKUP($E101-21,AllData,COLUMN()-6-COLUMN($E101)),VLOOKUP($E101-22,AllData,COLUMN()-6-COLUMN($E101)),VLOOKUP($E101-23,AllData,COLUMN()-6-COLUMN($E101)),VLOOKUP($E101-24,AllData,COLUMN()-6-COLUMN($E101)),VLOOKUP($E101-25,AllData,COLUMN()-6-COLUMN($E101)),VLOOKUP($E101-26,AllData,COLUMN()-6-COLUMN($E101)),VLOOKUP($E101-27,AllData,COLUMN()-6-COLUMN($E101)),VLOOKUP($E101-28,AllData,COLUMN()-6-COLUMN($E101)),VLOOKUP($E101-29,AllData,COLUMN()-6-COLUMN($E101)))","v":1000.5400000000001},{"$f":"VLOOKUP($E101,AllData,COLUMN()-7-COLUMN($E101))","v":0.64},{"$f":"OR('Cool Graph'!$I$1=35,'Cool Graph'!$I$1=36,'Cool Graph'!$I$1=37,'Cool Graph'!$I$1=38,'Cool Graph'!$I$1=39,'Cool Graph'!$I$1=40,'Cool Graph'!$I$1=41,'Cool Graph'!$I$1=42,'Cool Graph'!$I$1=43,'Cool Graph'!$I$1=44,'Cool Graph'!$I$1=45,'Cool Graph'!$I$1=46,'Cool Graph'!$I$1=47,'Cool Graph'!$I$1=58,'Cool Graph'!$I$1=66)","v":false}]
["2011-10-09",{"$f":"OFFSET(OldSchoolJustValues!A102,0,'Cool Graph'!$H$1)","v":36.869999999999997},{"$f":"OFFSET(OldSchoolJustValues!A102,0,'Cool Graph'!$I$1)","v":323.25275326816563},null,{"$f":"IF(NewDate>EndDate,NA(),NewDate)","v":"2012-01-04"},{"$f":"IF($E102>EndDate,NA(),IF($K$2=TRUE,N102,IF('Cool Graph'!$B$17=1,N102,IF('Cool Graph'!$B$17=2,L102,IF('Cool Graph'!$B$17=3,M102,)))))","v":8.83},{"$f":"IF($E102>EndDate,NA(),IF($O$2=TRUE,J102,IF('Cool Graph'!$B$17=1,Data1!J102,IF('Cool Graph'!$B$17=2,Data1!H102,IF('Cool Graph'!$B$17=3,Data1!I102,)))))","v":711.38424365695823},{"$f":"SUM(VLOOKUP($E102,AllData,COLUMN()-COLUMN($E102)),VLOOKUP($E102-1,AllData,COLUMN()-COLUMN($E102)),VLOOKUP($E102-2,AllData,COLUMN()-COLUMN($E102)),VLOOKUP($E102-3,AllData,COLUMN()-COLUMN($E102)),VLOOKUP($E102-4,AllData,COLUMN()-COLUMN($E102)),VLOOKUP($E102-5,AllData,COLUMN()-COLUMN($E102)),VLOOKUP($E102-6,AllData,COLUMN()-COLUMN($E102)))","v":2524.0534416280202},{"$f":"SUM(VLOOKUP($E102,AllData,COLUMN()-1-COLUMN($E102)),VLOOKUP($E102-1,AllData,COLUMN()-1-COLUMN($E102)),VLOOKUP($E102-2,AllData,COLUMN()-1-COLUMN($E102)),VLOOKUP($E102-3,AllData,COLUMN()-1-COLUMN($E102)),VLOOKUP($E102-4,AllData,COLUMN()-1-COLUMN($E102)),VLOOKUP($E102-5,AllData,COLUMN()-1-COLUMN($E102)),VLOOKUP($E102-6,AllData,COLUMN()-1-COLUMN($E102)),VLOOKUP($E102-7,AllData,COLUMN()-1-COLUMN($E102)),VLOOKUP($E102-8,AllData,COLUMN()-1-COLUMN($E102)),VLOOKUP($E102-9,AllData,COLUMN()-1-COLUMN($E102)),VLOOKUP($E102-10,AllData,COLUMN()-1-COLUMN($E102)),VLOOKUP($E102-11,AllData,COLUMN()-1-COLUMN($E102)),VLOOKUP($E102-12,AllData,COLUMN()-1-COLUMN($E102)),VLOOKUP($E102-13,AllData,COLUMN()-1-COLUMN($E102)),VLOOKUP($E102-14,AllData,COLUMN()-1-COLUMN($E102)),VLOOKUP($E102-15,AllData,COLUMN()-1-COLUMN($E102)),VLOOKUP($E102-16,AllData,COLUMN()-1-COLUMN($E102)),VLOOKUP($E102-17,AllData,COLUMN()-1-COLUMN($E102)),VLOOKUP($E102-18,AllData,COLUMN()-1-COLUMN($E102)),VLOOKUP($E102-19,AllData,COLUMN()-1-COLUMN($E102)),VLOOKUP($E102-20,AllData,COLUMN()-1-COLUMN($E102)),VLOOKUP($E102-21,AllData,COLUMN()-1-COLUMN($E102)),VLOOKUP($E102-22,AllData,COLUMN()-1-COLUMN($E102)),VLOOKUP($E102-23,AllData,COLUMN()-1-COLUMN($E102)),VLOOKUP($E102-24,AllData,COLUMN()-1-COLUMN($E102)),VLOOKUP($E102-25,AllData,COLUMN()-1-COLUMN($E102)),VLOOKUP($E102-26,AllData,COLUMN()-1-COLUMN($E102)),VLOOKUP($E102-27,AllData,COLUMN()-1-COLUMN($E102)),VLOOKUP($E102-28,AllData,COLUMN()-1-COLUMN($E102)),VLOOKUP($E102-29,AllData,COLUMN()-1-COLUMN($E102)))","v":19952.011936905979},{"$f":"VLOOKUP($E102,AllData,COLUMN()-2-COLUMN($E102))","v":711.38424365695823},{"$f":"OR('Cool Graph'!$H$1=35,'Cool Graph'!$H$1=36,'Cool Graph'!$H$1=37,'Cool Graph'!$H$1=38,'Cool Graph'!$H$1=39,'Cool Graph'!$H$1=40,'Cool Graph'!$H$1=41,'Cool Graph'!$H$1=42,'Cool Graph'!$H$1=43,'Cool Graph'!$H$1=44,'Cool Graph'!$H$1=45,'Cool Graph'!$H$1=46,'Cool Graph'!$H$1=47,'Cool Graph'!$H$1=58,'Cool Graph'!$H$1=66)","v":false},{"$f":"SUM(VLOOKUP($E102,AllData,COLUMN()-5-COLUMN($E102)),VLOOKUP($E102-1,AllData,COLUMN()-5-COLUMN($E102)),VLOOKUP($E102-2,AllData,COLUMN()-5-COLUMN($E102)),VLOOKUP($E102-3,AllData,COLUMN()-5-COLUMN($E102)),VLOOKUP($E102-4,AllData,COLUMN()-5-COLUMN($E102)),VLOOKUP($E102-5,AllData,COLUMN()-5-COLUMN($E102)),VLOOKUP($E102-6,AllData,COLUMN()-5-COLUMN($E102)))","v":134.69999999999999},{"$f":"SUM(VLOOKUP($E102,AllData,COLUMN()-6-COLUMN($E102)),VLOOKUP($E102-1,AllData,COLUMN()-6-COLUMN($E102)),VLOOKUP($E102-2,AllData,COLUMN()-6-COLUMN($E102)),VLOOKUP($E102-3,AllData,COLUMN()-6-COLUMN($E102)),VLOOKUP($E102-4,AllData,COLUMN()-6-COLUMN($E102)),VLOOKUP($E102-5,AllData,COLUMN()-6-COLUMN($E102)),VLOOKUP($E102-6,AllData,COLUMN()-6-COLUMN($E102)),VLOOKUP($E102-7,AllData,COLUMN()-6-COLUMN($E102)),VLOOKUP($E102-8,AllData,COLUMN()-6-COLUMN($E102)),VLOOKUP($E102-9,AllData,COLUMN()-6-COLUMN($E102)),VLOOKUP($E102-10,AllData,COLUMN()-6-COLUMN($E102)),VLOOKUP($E102-11,AllData,COLUMN()-6-COLUMN($E102)),VLOOKUP($E102-12,AllData,COLUMN()-6-COLUMN($E102)),VLOOKUP($E102-13,AllData,COLUMN()-6-COLUMN($E102)),VLOOKUP($E102-14,AllData,COLUMN()-6-COLUMN($E102)),VLOOKUP($E102-15,AllData,COLUMN()-6-COLUMN($E102)),VLOOKUP($E102-16,AllData,COLUMN()-6-COLUMN($E102)),VLOOKUP($E102-17,AllData,COLUMN()-6-COLUMN($E102)),VLOOKUP($E102-18,AllData,COLUMN()-6-COLUMN($E102)),VLOOKUP($E102-19,AllData,COLUMN()-6-COLUMN($E102)),VLOOKUP($E102-20,AllData,COLUMN()-6-COLUMN($E102)),VLOOKUP($E102-21,AllData,COLUMN()-6-COLUMN($E102)),VLOOKUP($E102-22,AllData,COLUMN()-6-COLUMN($E102)),VLOOKUP($E102-23,AllData,COLUMN()-6-COLUMN($E102)),VLOOKUP($E102-24,AllData,COLUMN()-6-COLUMN($E102)),VLOOKUP($E102-25,AllData,COLUMN()-6-COLUMN($E102)),VLOOKUP($E102-26,AllData,COLUMN()-6-COLUMN($E102)),VLOOKUP($E102-27,AllData,COLUMN()-6-COLUMN($E102)),VLOOKUP($E102-28,AllData,COLUMN()-6-COLUMN($E102)),VLOOKUP($E102-29,AllData,COLUMN()-6-COLUMN($E102)))","v":1000.83},{"$f":"VLOOKUP($E102,AllData,COLUMN()-7-COLUMN($E102))","v":8.83},{"$f":"OR('Cool Graph'!$I$1=35,'Cool Graph'!$I$1=36,'Cool Graph'!$I$1=37,'Cool Graph'!$I$1=38,'Cool Graph'!$I$1=39,'Cool Graph'!$I$1=40,'Cool Graph'!$I$1=41,'Cool Graph'!$I$1=42,'Cool Graph'!$I$1=43,'Cool Graph'!$I$1=44,'Cool Graph'!$I$1=45,'Cool Graph'!$I$1=46,'Cool Graph'!$I$1=47,'Cool Graph'!$I$1=58,'Cool Graph'!$I$1=66)","v":false}]
["2011-10-10",{"$f":"OFFSET(OldSchoolJustValues!A103,0,'Cool Graph'!$H$1)","v":245.04},{"$f":"OFFSET(OldSchoolJustValues!A103,0,'Cool Graph'!$I$1)","v":229.21645079845985},null,{"$f":"IF(NewDate>EndDate,NA(),NewDate)","v":"2012-01-05"},{"$f":"IF($E103>EndDate,NA(),IF($K$2=TRUE,N103,IF('Cool Graph'!$B$17=1,N103,IF('Cool Graph'!$B$17=2,L103,IF('Cool Graph'!$B$17=3,M103,)))))","v":105.88},{"$f":"IF($E103>EndDate,NA(),IF($O$2=TRUE,J103,IF('Cool Graph'!$B$17=1,Data1!J103,IF('Cool Graph'!$B$17=2,Data1!H103,IF('Cool Graph'!$B$17=3,Data1!I103,)))))","v":670.72858443989207},{"$f":"SUM(VLOOKUP($E103,AllData,COLUMN()-COLUMN($E103)),VLOOKUP($E103-1,AllData,COLUMN()-COLUMN($E103)),VLOOKUP($E103-2,AllData,COLUMN()-COLUMN($E103)),VLOOKUP($E103-3,AllData,COLUMN()-COLUMN($E103)),VLOOKUP($E103-4,AllData,COLUMN()-COLUMN($E103)),VLOOKUP($E103-5,AllData,COLUMN()-COLUMN($E103)),VLOOKUP($E103-6,AllData,COLUMN()-COLUMN($E103)))","v":3201.322210332969},{"$f":"SUM(VLOOKUP($E103,AllData,COLUMN()-1-COLUMN($E103)),VLOOKUP($E103-1,AllData,COLUMN()-1-COLUMN($E103)),VLOOKUP($E103-2,AllData,COLUMN()-1-COLUMN($E103)),VLOOKUP($E103-3,AllData,COLUMN()-1-COLUMN($E103)),VLOOKUP($E103-4,AllData,COLUMN()-1-COLUMN($E103)),VLOOKUP($E103-5,AllData,COLUMN()-1-COLUMN($E103)),VLOOKUP($E103-6,AllData,COLUMN()-1-COLUMN($E103)),VLOOKUP($E103-7,AllData,COLUMN()-1-COLUMN($E103)),VLOOKUP($E103-8,AllData,COLUMN()-1-COLUMN($E103)),VLOOKUP($E103-9,AllData,COLUMN()-1-COLUMN($E103)),VLOOKUP($E103-10,AllData,COLUMN()-1-COLUMN($E103)),VLOOKUP($E103-11,AllData,COLUMN()-1-COLUMN($E103)),VLOOKUP($E103-12,AllData,COLUMN()-1-COLUMN($E103)),VLOOKUP($E103-13,AllData,COLUMN()-1-COLUMN($E103)),VLOOKUP($E103-14,AllData,COLUMN()-1-COLUMN($E103)),VLOOKUP($E103-15,AllData,COLUMN()-1-COLUMN($E103)),VLOOKUP($E103-16,AllData,COLUMN()-1-COLUMN($E103)),VLOOKUP($E103-17,AllData,COLUMN()-1-COLUMN($E103)),VLOOKUP($E103-18,AllData,COLUMN()-1-COLUMN($E103)),VLOOKUP($E103-19,AllData,COLUMN()-1-COLUMN($E103)),VLOOKUP($E103-20,AllData,COLUMN()-1-COLUMN($E103)),VLOOKUP($E103-21,AllData,COLUMN()-1-COLUMN($E103)),VLOOKUP($E103-22,AllData,COLUMN()-1-COLUMN($E103)),VLOOKUP($E103-23,AllData,COLUMN()-1-COLUMN($E103)),VLOOKUP($E103-24,AllData,COLUMN()-1-COLUMN($E103)),VLOOKUP($E103-25,AllData,COLUMN()-1-COLUMN($E103)),VLOOKUP($E103-26,AllData,COLUMN()-1-COLUMN($E103)),VLOOKUP($E103-27,AllData,COLUMN()-1-COLUMN($E103)),VLOOKUP($E103-28,AllData,COLUMN()-1-COLUMN($E103)),VLOOKUP($E103-29,AllData,COLUMN()-1-COLUMN($E103)))","v":19284.424173002477},{"$f":"VLOOKUP($E103,AllData,COLUMN()-2-COLUMN($E103))","v":670.72858443989207},{"$f":"OR('Cool Graph'!$H$1=35,'Cool Graph'!$H$1=36,'Cool Graph'!$H$1=37,'Cool Graph'!$H$1=38,'Cool Graph'!$H$1=39,'Cool Graph'!$H$1=40,'Cool Graph'!$H$1=41,'Cool Graph'!$H$1=42,'Cool Graph'!$H$1=43,'Cool Graph'!$H$1=44,'Cool Graph'!$H$1=45,'Cool Graph'!$H$1=46,'Cool Graph'!$H$1=47,'Cool Graph'!$H$1=58,'Cool Graph'!$H$1=66)","v":false},{"$f":"SUM(VLOOKUP($E103,AllData,COLUMN()-5-COLUMN($E103)),VLOOKUP($E103-1,AllData,COLUMN()-5-COLUMN($E103)),VLOOKUP($E103-2,AllData,COLUMN()-5-COLUMN($E103)),VLOOKUP($E103-3,AllData,COLUMN()-5-COLUMN($E103)),VLOOKUP($E103-4,AllData,COLUMN()-5-COLUMN($E103)),VLOOKUP($E103-5,AllData,COLUMN()-5-COLUMN($E103)),VLOOKUP($E103-6,AllData,COLUMN()-5-COLUMN($E103)))","v":199.24},{"$f":"SUM(VLOOKUP($E103,AllData,COLUMN()-6-COLUMN($E103)),VLOOKUP($E103-1,AllData,COLUMN()-6-COLUMN($E103)),VLOOKUP($E103-2,AllData,COLUMN()-6-COLUMN($E103)),VLOOKUP($E103-3,AllData,COLUMN()-6-COLUMN($E103)),VLOOKUP($E103-4,AllData,COLUMN()-6-COLUMN($E103)),VLOOKUP($E103-5,AllData,COLUMN()-6-COLUMN($E103)),VLOOKUP($E103-6,AllData,COLUMN()-6-COLUMN($E103)),VLOOKUP($E103-7,AllData,COLUMN()-6-COLUMN($E103)),VLOOKUP($E103-8,AllData,COLUMN()-6-COLUMN($E103)),VLOOKUP($E103-9,AllData,COLUMN()-6-COLUMN($E103)),VLOOKUP($E103-10,AllData,COLUMN()-6-COLUMN($E103)),VLOOKUP($E103-11,AllData,COLUMN()-6-COLUMN($E103)),VLOOKUP($E103-12,AllData,COLUMN()-6-COLUMN($E103)),VLOOKUP($E103-13,AllData,COLUMN()-6-COLUMN($E103)),VLOOKUP($E103-14,AllData,COLUMN()-6-COLUMN($E103)),VLOOKUP($E103-15,AllData,COLUMN()-6-COLUMN($E103)),VLOOKUP($E103-16,AllData,COLUMN()-6-COLUMN($E103)),VLOOKUP($E103-17,AllData,COLUMN()-6-COLUMN($E103)),VLOOKUP($E103-18,AllData,COLUMN()-6-COLUMN($E103)),VLOOKUP($E103-19,AllData,COLUMN()-6-COLUMN($E103)),VLOOKUP($E103-20,AllData,COLUMN()-6-COLUMN($E103)),VLOOKUP($E103-21,AllData,COLUMN()-6-COLUMN($E103)),VLOOKUP($E103-22,AllData,COLUMN()-6-COLUMN($E103)),VLOOKUP($E103-23,AllData,COLUMN()-6-COLUMN($E103)),VLOOKUP($E103-24,AllData,COLUMN()-6-COLUMN($E103)),VLOOKUP($E103-25,AllData,COLUMN()-6-COLUMN($E103)),VLOOKUP($E103-26,AllData,COLUMN()-6-COLUMN($E103)),VLOOKUP($E103-27,AllData,COLUMN()-6-COLUMN($E103)),VLOOKUP($E103-28,AllData,COLUMN()-6-COLUMN($E103)),VLOOKUP($E103-29,AllData,COLUMN()-6-COLUMN($E103)))","v":1105.5},{"$f":"VLOOKUP($E103,AllData,COLUMN()-7-COLUMN($E103))","v":105.88},{"$f":"OR('Cool Graph'!$I$1=35,'Cool Graph'!$I$1=36,'Cool Graph'!$I$1=37,'Cool Graph'!$I$1=38,'Cool Graph'!$I$1=39,'Cool Graph'!$I$1=40,'Cool Graph'!$I$1=41,'Cool Graph'!$I$1=42,'Cool Graph'!$I$1=43,'Cool Graph'!$I$1=44,'Cool Graph'!$I$1=45,'Cool Graph'!$I$1=46,'Cool Graph'!$I$1=47,'Cool Graph'!$I$1=58,'Cool Graph'!$I$1=66)","v":false}]
["2011-10-11",{"$f":"OFFSET(OldSchoolJustValues!A104,0,'Cool Graph'!$H$1)","v":73.53},{"$f":"OFFSET(OldSchoolJustValues!A104,0,'Cool Graph'!$I$1)","v":114.82988225370536},null,{"$f":"IF(NewDate>EndDate,NA(),NewDate)","v":"2012-01-06"},{"$f":"IF($E104>EndDate,NA(),IF($K$2=TRUE,N104,IF('Cool Graph'!$B$17=1,N104,IF('Cool Graph'!$B$17=2,L104,IF('Cool Graph'!$B$17=3,M104,)))))","v":102.12},{"$f":"IF($E104>EndDate,NA(),IF($O$2=TRUE,J104,IF('Cool Graph'!$B$17=1,Data1!J104,IF('Cool Graph'!$B$17=2,Data1!H104,IF('Cool Graph'!$B$17=3,Data1!I104,)))))","v":22.078647327465433},{"$f":"SUM(VLOOKUP($E104,AllData,COLUMN()-COLUMN($E104)),VLOOKUP($E104-1,AllData,COLUMN()-COLUMN($E104)),VLOOKUP($E104-2,AllData,COLUMN()-COLUMN($E104)),VLOOKUP($E104-3,AllData,COLUMN()-COLUMN($E104)),VLOOKUP($E104-4,AllData,COLUMN()-COLUMN($E104)),VLOOKUP($E104-5,AllData,COLUMN()-COLUMN($E104)),VLOOKUP($E104-6,AllData,COLUMN()-COLUMN($E104)))","v":2685.109181691922},{"$f":"SUM(VLOOKUP($E104,AllData,COLUMN()-1-COLUMN($E104)),VLOOKUP($E104-1,AllData,COLUMN()-1-COLUMN($E104)),VLOOKUP($E104-2,AllData,COLUMN()-1-COLUMN($E104)),VLOOKUP($E104-3,AllData,COLUMN()-1-COLUMN($E104)),VLOOKUP($E104-4,AllData,COLUMN()-1-COLUMN($E104)),VLOOKUP($E104-5,AllData,COLUMN()-1-COLUMN($E104)),VLOOKUP($E104-6,AllData,COLUMN()-1-COLUMN($E104)),VLOOKUP($E104-7,AllData,COLUMN()-1-COLUMN($E104)),VLOOKUP($E104-8,AllData,COLUMN()-1-COLUMN($E104)),VLOOKUP($E104-9,AllData,COLUMN()-1-COLUMN($E104)),VLOOKUP($E104-10,AllData,COLUMN()-1-COLUMN($E104)),VLOOKUP($E104-11,AllData,COLUMN()-1-COLUMN($E104)),VLOOKUP($E104-12,AllData,COLUMN()-1-COLUMN($E104)),VLOOKUP($E104-13,AllData,COLUMN()-1-COLUMN($E104)),VLOOKUP($E104-14,AllData,COLUMN()-1-COLUMN($E104)),VLOOKUP($E104-15,AllData,COLUMN()-1-COLUMN($E104)),VLOOKUP($E104-16,AllData,COLUMN()-1-COLUMN($E104)),VLOOKUP($E104-17,AllData,COLUMN()-1-COLUMN($E104)),VLOOKUP($E104-18,AllData,COLUMN()-1-COLUMN($E104)),VLOOKUP($E104-19,AllData,COLUMN()-1-COLUMN($E104)),VLOOKUP($E104-20,AllData,COLUMN()-1-COLUMN($E104)),VLOOKUP($E104-21,AllData,COLUMN()-1-COLUMN($E104)),VLOOKUP($E104-22,AllData,COLUMN()-1-COLUMN($E104)),VLOOKUP($E104-23,AllData,COLUMN()-1-COLUMN($E104)),VLOOKUP($E104-24,AllData,COLUMN()-1-COLUMN($E104)),VLOOKUP($E104-25,AllData,COLUMN()-1-COLUMN($E104)),VLOOKUP($E104-26,AllData,COLUMN()-1-COLUMN($E104)),VLOOKUP($E104-27,AllData,COLUMN()-1-COLUMN($E104)),VLOOKUP($E104-28,AllData,COLUMN()-1-COLUMN($E104)),VLOOKUP($E104-29,AllData,COLUMN()-1-COLUMN($E104)))","v":18844.431011323904},{"$f":"VLOOKUP($E104,AllData,COLUMN()-2-COLUMN($E104))","v":22.078647327465433},{"$f":"OR('Cool Graph'!$H$1=35,'Cool Graph'!$H$1=36,'Cool Graph'!$H$1=37,'Cool Graph'!$H$1=38,'Cool Graph'!$H$1=39,'Cool Graph'!$H$1=40,'Cool Graph'!$H$1=41,'Cool Graph'!$H$1=42,'Cool Graph'!$H$1=43,'Cool Graph'!$H$1=44,'Cool Graph'!$H$1=45,'Cool Graph'!$H$1=46,'Cool Graph'!$H$1=47,'Cool Graph'!$H$1=58,'Cool Graph'!$H$1=66)","v":false},{"$f":"SUM(VLOOKUP($E104,AllData,COLUMN()-5-COLUMN($E104)),VLOOKUP($E104-1,AllData,COLUMN()-5-COLUMN($E104)),VLOOKUP($E104-2,AllData,COLUMN()-5-COLUMN($E104)),VLOOKUP($E104-3,AllData,COLUMN()-5-COLUMN($E104)),VLOOKUP($E104-4,AllData,COLUMN()-5-COLUMN($E104)),VLOOKUP($E104-5,AllData,COLUMN()-5-COLUMN($E104)),VLOOKUP($E104-6,AllData,COLUMN()-5-COLUMN($E104)))","v":289.5},{"$f":"SUM(VLOOKUP($E104,AllData,COLUMN()-6-COLUMN($E104)),VLOOKUP($E104-1,AllData,COLUMN()-6-COLUMN($E104)),VLOOKUP($E104-2,AllData,COLUMN()-6-COLUMN($E104)),VLOOKUP($E104-3,AllData,COLUMN()-6-COLUMN($E104)),VLOOKUP($E104-4,AllData,COLUMN()-6-COLUMN($E104)),VLOOKUP($E104-5,AllData,COLUMN()-6-COLUMN($E104)),VLOOKUP($E104-6,AllData,COLUMN()-6-COLUMN($E104)),VLOOKUP($E104-7,AllData,COLUMN()-6-COLUMN($E104)),VLOOKUP($E104-8,AllData,COLUMN()-6-COLUMN($E104)),VLOOKUP($E104-9,AllData,COLUMN()-6-COLUMN($E104)),VLOOKUP($E104-10,AllData,COLUMN()-6-COLUMN($E104)),VLOOKUP($E104-11,AllData,COLUMN()-6-COLUMN($E104)),VLOOKUP($E104-12,AllData,COLUMN()-6-COLUMN($E104)),VLOOKUP($E104-13,AllData,COLUMN()-6-COLUMN($E104)),VLOOKUP($E104-14,AllData,COLUMN()-6-COLUMN($E104)),VLOOKUP($E104-15,AllData,COLUMN()-6-COLUMN($E104)),VLOOKUP($E104-16,AllData,COLUMN()-6-COLUMN($E104)),VLOOKUP($E104-17,AllData,COLUMN()-6-COLUMN($E104)),VLOOKUP($E104-18,AllData,COLUMN()-6-COLUMN($E104)),VLOOKUP($E104-19,AllData,COLUMN()-6-COLUMN($E104)),VLOOKUP($E104-20,AllData,COLUMN()-6-COLUMN($E104)),VLOOKUP($E104-21,AllData,COLUMN()-6-COLUMN($E104)),VLOOKUP($E104-22,AllData,COLUMN()-6-COLUMN($E104)),VLOOKUP($E104-23,AllData,COLUMN()-6-COLUMN($E104)),VLOOKUP($E104-24,AllData,COLUMN()-6-COLUMN($E104)),VLOOKUP($E104-25,AllData,COLUMN()-6-COLUMN($E104)),VLOOKUP($E104-26,AllData,COLUMN()-6-COLUMN($E104)),VLOOKUP($E104-27,AllData,COLUMN()-6-COLUMN($E104)),VLOOKUP($E104-28,AllData,COLUMN()-6-COLUMN($E104)),VLOOKUP($E104-29,AllData,COLUMN()-6-COLUMN($E104)))","v":1118.7900000000002},{"$f":"VLOOKUP($E104,AllData,COLUMN()-7-COLUMN($E104))","v":102.12},{"$f":"OR('Cool Graph'!$I$1=35,'Cool Graph'!$I$1=36,'Cool Graph'!$I$1=37,'Cool Graph'!$I$1=38,'Cool Graph'!$I$1=39,'Cool Graph'!$I$1=40,'Cool Graph'!$I$1=41,'Cool Graph'!$I$1=42,'Cool Graph'!$I$1=43,'Cool Graph'!$I$1=44,'Cool Graph'!$I$1=45,'Cool Graph'!$I$1=46,'Cool Graph'!$I$1=47,'Cool Graph'!$I$1=58,'Cool Graph'!$I$1=66)","v":false}]
["2011-10-12",{"$f":"OFFSET(OldSchoolJustValues!A105,0,'Cool Graph'!$H$1)","v":4.16},{"$f":"OFFSET(OldSchoolJustValues!A105,0,'Cool Graph'!$I$1)","v":576.96645079845985},null,{"$f":"IF(NewDate>EndDate,NA(),NewDate)","v":"2012-01-07"},{"$f":"IF($E105>EndDate,NA(),IF($K$2=TRUE,N105,IF('Cool Graph'!$B$17=1,N105,IF('Cool Graph'!$B$17=2,L105,IF('Cool Graph'!$B$17=3,M105,)))))","v":98.17},{"$f":"IF($E105>EndDate,NA(),IF($O$2=TRUE,J105,IF('Cool Graph'!$B$17=1,Data1!J105,IF('Cool Graph'!$B$17=2,Data1!H105,IF('Cool Graph'!$B$17=3,Data1!I105,)))))","v":899.35712650721268},{"$f":"SUM(VLOOKUP($E105,AllData,COLUMN()-COLUMN($E105)),VLOOKUP($E105-1,AllData,COLUMN()-COLUMN($E105)),VLOOKUP($E105-2,AllData,COLUMN()-COLUMN($E105)),VLOOKUP($E105-3,AllData,COLUMN()-COLUMN($E105)),VLOOKUP($E105-4,AllData,COLUMN()-COLUMN($E105)),VLOOKUP($E105-5,AllData,COLUMN()-COLUMN($E105)),VLOOKUP($E105-6,AllData,COLUMN()-COLUMN($E105)))","v":3268.9444412831072},{"$f":"SUM(VLOOKUP($E105,AllData,COLUMN()-1-COLUMN($E105)),VLOOKUP($E105-1,AllData,COLUMN()-1-COLUMN($E105)),VLOOKUP($E105-2,AllData,COLUMN()-1-COLUMN($E105)),VLOOKUP($E105-3,AllData,COLUMN()-1-COLUMN($E105)),VLOOKUP($E105-4,AllData,COLUMN()-1-COLUMN($E105)),VLOOKUP($E105-5,AllData,COLUMN()-1-COLUMN($E105)),VLOOKUP($E105-6,AllData,COLUMN()-1-COLUMN($E105)),VLOOKUP($E105-7,AllData,COLUMN()-1-COLUMN($E105)),VLOOKUP($E105-8,AllData,COLUMN()-1-COLUMN($E105)),VLOOKUP($E105-9,AllData,COLUMN()-1-COLUMN($E105)),VLOOKUP($E105-10,AllData,COLUMN()-1-COLUMN($E105)),VLOOKUP($E105-11,AllData,COLUMN()-1-COLUMN($E105)),VLOOKUP($E105-12,AllData,COLUMN()-1-COLUMN($E105)),VLOOKUP($E105-13,AllData,COLUMN()-1-COLUMN($E105)),VLOOKUP($E105-14,AllData,COLUMN()-1-COLUMN($E105)),VLOOKUP($E105-15,AllData,COLUMN()-1-COLUMN($E105)),VLOOKUP($E105-16,AllData,COLUMN()-1-COLUMN($E105)),VLOOKUP($E105-17,AllData,COLUMN()-1-COLUMN($E105)),VLOOKUP($E105-18,AllData,COLUMN()-1-COLUMN($E105)),VLOOKUP($E105-19,AllData,COLUMN()-1-COLUMN($E105)),VLOOKUP($E105-20,AllData,COLUMN()-1-COLUMN($E105)),VLOOKUP($E105-21,AllData,COLUMN()-1-COLUMN($E105)),VLOOKUP($E105-22,AllData,COLUMN()-1-COLUMN($E105)),VLOOKUP($E105-23,AllData,COLUMN()-1-COLUMN($E105)),VLOOKUP($E105-24,AllData,COLUMN()-1-COLUMN($E105)),VLOOKUP($E105-25,AllData,COLUMN()-1-COLUMN($E105)),VLOOKUP($E105-26,AllData,COLUMN()-1-COLUMN($E105)),VLOOKUP($E105-27,AllData,COLUMN()-1-COLUMN($E105)),VLOOKUP($E105-28,AllData,COLUMN()-1-COLUMN($E105)),VLOOKUP($E105-29,AllData,COLUMN()-1-COLUMN($E105)))","v":19194.164993095994},{"$f":"VLOOKUP($E105,AllData,COLUMN()-2-COLUMN($E105))","v":899.35712650721268},{"$f":"OR('Cool Graph'!$H$1=35,'Cool Graph'!$H$1=36,'Cool Graph'!$H$1=37,'Cool Graph'!$H$1=38,'Cool Graph'!$H$1=39,'Cool Graph'!$H$1=40,'Cool Graph'!$H$1=41,'Cool Graph'!$H$1=42,'Cool Graph'!$H$1=43,'Cool Graph'!$H$1=44,'Cool Graph'!$H$1=45,'Cool Graph'!$H$1=46,'Cool Graph'!$H$1=47,'Cool Graph'!$H$1=58,'Cool Graph'!$H$1=66)","v":false},{"$f":"SUM(VLOOKUP($E105,AllData,COLUMN()-5-COLUMN($E105)),VLOOKUP($E105-1,AllData,COLUMN()-5-COLUMN($E105)),VLOOKUP($E105-2,AllData,COLUMN()-5-COLUMN($E105)),VLOOKUP($E105-3,AllData,COLUMN()-5-COLUMN($E105)),VLOOKUP($E105-4,AllData,COLUMN()-5-COLUMN($E105)),VLOOKUP($E105-5,AllData,COLUMN()-5-COLUMN($E105)),VLOOKUP($E105-6,AllData,COLUMN()-5-COLUMN($E105)))","v":370.31},{"$f":"SUM(VLOOKUP($E105,AllData,COLUMN()-6-COLUMN($E105)),VLOOKUP($E105-1,AllData,COLUMN()-6-COLUMN($E105)),VLOOKUP($E105-2,AllData,COLUMN()-6-COLUMN($E105)),VLOOKUP($E105-3,AllData,COLUMN()-6-COLUMN($E105)),VLOOKUP($E105-4,AllData,COLUMN()-6-COLUMN($E105)),VLOOKUP($E105-5,AllData,COLUMN()-6-COLUMN($E105)),VLOOKUP($E105-6,AllData,COLUMN()-6-COLUMN($E105)),VLOOKUP($E105-7,AllData,COLUMN()-6-COLUMN($E105)),VLOOKUP($E105-8,AllData,COLUMN()-6-COLUMN($E105)),VLOOKUP($E105-9,AllData,COLUMN()-6-COLUMN($E105)),VLOOKUP($E105-10,AllData,COLUMN()-6-COLUMN($E105)),VLOOKUP($E105-11,AllData,COLUMN()-6-COLUMN($E105)),VLOOKUP($E105-12,AllData,COLUMN()-6-COLUMN($E105)),VLOOKUP($E105-13,AllData,COLUMN()-6-COLUMN($E105)),VLOOKUP($E105-14,AllData,COLUMN()-6-COLUMN($E105)),VLOOKUP($E105-15,AllData,COLUMN()-6-COLUMN($E105)),VLOOKUP($E105-16,AllData,COLUMN()-6-COLUMN($E105)),VLOOKUP($E105-17,AllData,COLUMN()-6-COLUMN($E105)),VLOOKUP($E105-18,AllData,COLUMN()-6-COLUMN($E105)),VLOOKUP($E105-19,AllData,COLUMN()-6-COLUMN($E105)),VLOOKUP($E105-20,AllData,COLUMN()-6-COLUMN($E105)),VLOOKUP($E105-21,AllData,COLUMN()-6-COLUMN($E105)),VLOOKUP($E105-22,AllData,COLUMN()-6-COLUMN($E105)),VLOOKUP($E105-23,AllData,COLUMN()-6-COLUMN($E105)),VLOOKUP($E105-24,AllData,COLUMN()-6-COLUMN($E105)),VLOOKUP($E105-25,AllData,COLUMN()-6-COLUMN($E105)),VLOOKUP($E105-26,AllData,COLUMN()-6-COLUMN($E105)),VLOOKUP($E105-27,AllData,COLUMN()-6-COLUMN($E105)),VLOOKUP($E105-28,AllData,COLUMN()-6-COLUMN($E105)),VLOOKUP($E105-29,AllData,COLUMN()-6-COLUMN($E105)))","v":1166.51},{"$f":"VLOOKUP($E105,AllData,COLUMN()-7-COLUMN($E105))","v":98.17},{"$f":"OR('Cool Graph'!$I$1=35,'Cool Graph'!$I$1=36,'Cool Graph'!$I$1=37,'Cool Graph'!$I$1=38,'Cool Graph'!$I$1=39,'Cool Graph'!$I$1=40,'Cool Graph'!$I$1=41,'Cool Graph'!$I$1=42,'Cool Graph'!$I$1=43,'Cool Graph'!$I$1=44,'Cool Graph'!$I$1=45,'Cool Graph'!$I$1=46,'Cool Graph'!$I$1=47,'Cool Graph'!$I$1=58,'Cool Graph'!$I$1=66)","v":false}]
["2011-10-13",{"$f":"OFFSET(OldSchoolJustValues!A106,0,'Cool Graph'!$H$1)","v":0},{"$f":"OFFSET(OldSchoolJustValues!A106,0,'Cool Graph'!$I$1)","v":-138.39999999999998},null,{"$f":"IF(NewDate>EndDate,NA(),NewDate)","v":"2012-01-08"},{"$f":"IF($E106>EndDate,NA(),IF($K$2=TRUE,N106,IF('Cool Graph'!$B$17=1,N106,IF('Cool Graph'!$B$17=2,L106,IF('Cool Graph'!$B$17=3,M106,)))))","v":77.209999999999994},{"$f":"IF($E106>EndDate,NA(),IF($O$2=TRUE,J106,IF('Cool Graph'!$B$17=1,Data1!J106,IF('Cool Graph'!$B$17=2,Data1!H106,IF('Cool Graph'!$B$17=3,Data1!I106,)))))","v":220.78833081228709},{"$f":"SUM(VLOOKUP($E106,AllData,COLUMN()-COLUMN($E106)),VLOOKUP($E106-1,AllData,COLUMN()-COLUMN($E106)),VLOOKUP($E106-2,AllData,COLUMN()-COLUMN($E106)),VLOOKUP($E106-3,AllData,COLUMN()-COLUMN($E106)),VLOOKUP($E106-4,AllData,COLUMN()-COLUMN($E106)),VLOOKUP($E106-5,AllData,COLUMN()-COLUMN($E106)),VLOOKUP($E106-6,AllData,COLUMN()-COLUMN($E106)))","v":3124.7435351894173},{"$f":"SUM(VLOOKUP($E106,AllData,COLUMN()-1-COLUMN($E106)),VLOOKUP($E106-1,AllData,COLUMN()-1-COLUMN($E106)),VLOOKUP($E106-2,AllData,COLUMN()-1-COLUMN($E106)),VLOOKUP($E106-3,AllData,COLUMN()-1-COLUMN($E106)),VLOOKUP($E106-4,AllData,COLUMN()-1-COLUMN($E106)),VLOOKUP($E106-5,AllData,COLUMN()-1-COLUMN($E106)),VLOOKUP($E106-6,AllData,COLUMN()-1-COLUMN($E106)),VLOOKUP($E106-7,AllData,COLUMN()-1-COLUMN($E106)),VLOOKUP($E106-8,AllData,COLUMN()-1-COLUMN($E106)),VLOOKUP($E106-9,AllData,COLUMN()-1-COLUMN($E106)),VLOOKUP($E106-10,AllData,COLUMN()-1-COLUMN($E106)),VLOOKUP($E106-11,AllData,COLUMN()-1-COLUMN($E106)),VLOOKUP($E106-12,AllData,COLUMN()-1-COLUMN($E106)),VLOOKUP($E106-13,AllData,COLUMN()-1-COLUMN($E106)),VLOOKUP($E106-14,AllData,COLUMN()-1-COLUMN($E106)),VLOOKUP($E106-15,AllData,COLUMN()-1-COLUMN($E106)),VLOOKUP($E106-16,AllData,COLUMN()-1-COLUMN($E106)),VLOOKUP($E106-17,AllData,COLUMN()-1-COLUMN($E106)),VLOOKUP($E106-18,AllData,COLUMN()-1-COLUMN($E106)),VLOOKUP($E106-19,AllData,COLUMN()-1-COLUMN($E106)),VLOOKUP($E106-20,AllData,COLUMN()-1-COLUMN($E106)),VLOOKUP($E106-21,AllData,COLUMN()-1-COLUMN($E106)),VLOOKUP($E106-22,AllData,COLUMN()-1-COLUMN($E106)),VLOOKUP($E106-23,AllData,COLUMN()-1-COLUMN($E106)),VLOOKUP($E106-24,AllData,COLUMN()-1-COLUMN($E106)),VLOOKUP($E106-25,AllData,COLUMN()-1-COLUMN($E106)),VLOOKUP($E106-26,AllData,COLUMN()-1-COLUMN($E106)),VLOOKUP($E106-27,AllData,COLUMN()-1-COLUMN($E106)),VLOOKUP($E106-28,AllData,COLUMN()-1-COLUMN($E106)),VLOOKUP($E106-29,AllData,COLUMN()-1-COLUMN($E106)))","v":18699.420363438214},{"$f":"VLOOKUP($E106,AllData,COLUMN()-2-COLUMN($E106))","v":220.78833081228709},{"$f":"OR('Cool Graph'!$H$1=35,'Cool Graph'!$H$1=36,'Cool Graph'!$H$1=37,'Cool Graph'!$H$1=38,'Cool Graph'!$H$1=39,'Cool Graph'!$H$1=40,'Cool Graph'!$H$1=41,'Cool Graph'!$H$1=42,'Cool Graph'!$H$1=43,'Cool Graph'!$H$1=44,'Cool Graph'!$H$1=45,'Cool Graph'!$H$1=46,'Cool Graph'!$H$1=47,'Cool Graph'!$H$1=58,'Cool Graph'!$H$1=66)","v":false},{"$f":"SUM(VLOOKUP($E106,AllData,COLUMN()-5-COLUMN($E106)),VLOOKUP($E106-1,AllData,COLUMN()-5-COLUMN($E106)),VLOOKUP($E106-2,AllData,COLUMN()-5-COLUMN($E106)),VLOOKUP($E106-3,AllData,COLUMN()-5-COLUMN($E106)),VLOOKUP($E106-4,AllData,COLUMN()-5-COLUMN($E106)),VLOOKUP($E106-5,AllData,COLUMN()-5-COLUMN($E106)),VLOOKUP($E106-6,AllData,COLUMN()-5-COLUMN($E106)))","v":411.41999999999996},{"$f":"SUM(VLOOKUP($E106,AllData,COLUMN()-6-COLUMN($E106)),VLOOKUP($E106-1,AllData,COLUMN()-6-COLUMN($E106)),VLOOKUP($E106-2,AllData,COLUMN()-6-COLUMN($E106)),VLOOKUP($E106-3,AllData,COLUMN()-6-COLUMN($E106)),VLOOKUP($E106-4,AllData,COLUMN()-6-COLUMN($E106)),VLOOKUP($E106-5,AllData,COLUMN()-6-COLUMN($E106)),VLOOKUP($E106-6,AllData,COLUMN()-6-COLUMN($E106)),VLOOKUP($E106-7,AllData,COLUMN()-6-COLUMN($E106)),VLOOKUP($E106-8,AllData,COLUMN()-6-COLUMN($E106)),VLOOKUP($E106-9,AllData,COLUMN()-6-COLUMN($E106)),VLOOKUP($E106-10,AllData,COLUMN()-6-COLUMN($E106)),VLOOKUP($E106-11,AllData,COLUMN()-6-COLUMN($E106)),VLOOKUP($E106-12,AllData,COLUMN()-6-COLUMN($E106)),VLOOKUP($E106-13,AllData,COLUMN()-6-COLUMN($E106)),VLOOKUP($E106-14,AllData,COLUMN()-6-COLUMN($E106)),VLOOKUP($E106-15,AllData,COLUMN()-6-COLUMN($E106)),VLOOKUP($E106-16,AllData,COLUMN()-6-COLUMN($E106)),VLOOKUP($E106-17,AllData,COLUMN()-6-COLUMN($E106)),VLOOKUP($E106-18,AllData,COLUMN()-6-COLUMN($E106)),VLOOKUP($E106-19,AllData,COLUMN()-6-COLUMN($E106)),VLOOKUP($E106-20,AllData,COLUMN()-6-COLUMN($E106)),VLOOKUP($E106-21,AllData,COLUMN()-6-COLUMN($E106)),VLOOKUP($E106-22,AllData,COLUMN()-6-COLUMN($E106)),VLOOKUP($E106-23,AllData,COLUMN()-6-COLUMN($E106)),VLOOKUP($E106-24,AllData,COLUMN()-6-COLUMN($E106)),VLOOKUP($E106-25,AllData,COLUMN()-6-COLUMN($E106)),VLOOKUP($E106-26,AllData,COLUMN()-6-COLUMN($E106)),VLOOKUP($E106-27,AllData,COLUMN()-6-COLUMN($E106)),VLOOKUP($E106-28,AllData,COLUMN()-6-COLUMN($E106)),VLOOKUP($E106-29,AllData,COLUMN()-6-COLUMN($E106)))","v":1144.04},{"$f":"VLOOKUP($E106,AllData,COLUMN()-7-COLUMN($E106))","v":77.209999999999994},{"$f":"OR('Cool Graph'!$I$1=35,'Cool Graph'!$I$1=36,'Cool Graph'!$I$1=37,'Cool Graph'!$I$1=38,'Cool Graph'!$I$1=39,'Cool Graph'!$I$1=40,'Cool Graph'!$I$1=41,'Cool Graph'!$I$1=42,'Cool Graph'!$I$1=43,'Cool Graph'!$I$1=44,'Cool Graph'!$I$1=45,'Cool Graph'!$I$1=46,'Cool Graph'!$I$1=47,'Cool Graph'!$I$1=58,'Cool Graph'!$I$1=66)","v":false}]
["2011-10-14",{"$f":"OFFSET(OldSchoolJustValues!A107,0,'Cool Graph'!$H$1)","v":0},{"$f":"OFFSET(OldSchoolJustValues!A107,0,'Cool Graph'!$I$1)","v":133.41325483580357},null,{"$f":"IF(NewDate>EndDate,NA(),NewDate)","v":"2012-01-09"},{"$f":"IF($E107>EndDate,NA(),IF($K$2=TRUE,N107,IF('Cool Graph'!$B$17=1,N107,IF('Cool Graph'!$B$17=2,L107,IF('Cool Graph'!$B$17=3,M107,)))))","v":41.13},{"$f":"IF($E107>EndDate,NA(),IF($O$2=TRUE,J107,IF('Cool Graph'!$B$17=1,Data1!J107,IF('Cool Graph'!$B$17=2,Data1!H107,IF('Cool Graph'!$B$17=3,Data1!I107,)))))","v":689.00321125388609},{"$f":"SUM(VLOOKUP($E107,AllData,COLUMN()-COLUMN($E107)),VLOOKUP($E107-1,AllData,COLUMN()-COLUMN($E107)),VLOOKUP($E107-2,AllData,COLUMN()-COLUMN($E107)),VLOOKUP($E107-3,AllData,COLUMN()-COLUMN($E107)),VLOOKUP($E107-4,AllData,COLUMN()-COLUMN($E107)),VLOOKUP($E107-5,AllData,COLUMN()-COLUMN($E107)),VLOOKUP($E107-6,AllData,COLUMN()-COLUMN($E107)))","v":3258.0823215338523},{"$f":"SUM(VLOOKUP($E107,AllData,COLUMN()-1-COLUMN($E107)),VLOOKUP($E107-1,AllData,COLUMN()-1-COLUMN($E107)),VLOOKUP($E107-2,AllData,COLUMN()-1-COLUMN($E107)),VLOOKUP($E107-3,AllData,COLUMN()-1-COLUMN($E107)),VLOOKUP($E107-4,AllData,COLUMN()-1-COLUMN($E107)),VLOOKUP($E107-5,AllData,COLUMN()-1-COLUMN($E107)),VLOOKUP($E107-6,AllData,COLUMN()-1-COLUMN($E107)),VLOOKUP($E107-7,AllData,COLUMN()-1-COLUMN($E107)),VLOOKUP($E107-8,AllData,COLUMN()-1-COLUMN($E107)),VLOOKUP($E107-9,AllData,COLUMN()-1-COLUMN($E107)),VLOOKUP($E107-10,AllData,COLUMN()-1-COLUMN($E107)),VLOOKUP($E107-11,AllData,COLUMN()-1-COLUMN($E107)),VLOOKUP($E107-12,AllData,COLUMN()-1-COLUMN($E107)),VLOOKUP($E107-13,AllData,COLUMN()-1-COLUMN($E107)),VLOOKUP($E107-14,AllData,COLUMN()-1-COLUMN($E107)),VLOOKUP($E107-15,AllData,COLUMN()-1-COLUMN($E107)),VLOOKUP($E107-16,AllData,COLUMN()-1-COLUMN($E107)),VLOOKUP($E107-17,AllData,COLUMN()-1-COLUMN($E107)),VLOOKUP($E107-18,AllData,COLUMN()-1-COLUMN($E107)),VLOOKUP($E107-19,AllData,COLUMN()-1-COLUMN($E107)),VLOOKUP($E107-20,AllData,COLUMN()-1-COLUMN($E107)),VLOOKUP($E107-21,AllData,COLUMN()-1-COLUMN($E107)),VLOOKUP($E107-22,AllData,COLUMN()-1-COLUMN($E107)),VLOOKUP($E107-23,AllData,COLUMN()-1-COLUMN($E107)),VLOOKUP($E107-24,AllData,COLUMN()-1-COLUMN($E107)),VLOOKUP($E107-25,AllData,COLUMN()-1-COLUMN($E107)),VLOOKUP($E107-26,AllData,COLUMN()-1-COLUMN($E107)),VLOOKUP($E107-27,AllData,COLUMN()-1-COLUMN($E107)),VLOOKUP($E107-28,AllData,COLUMN()-1-COLUMN($E107)),VLOOKUP($E107-29,AllData,COLUMN()-1-COLUMN($E107)))","v":18396.406975564885},{"$f":"VLOOKUP($E107,AllData,COLUMN()-2-COLUMN($E107))","v":689.00321125388609},{"$f":"OR('Cool Graph'!$H$1=35,'Cool Graph'!$H$1=36,'Cool Graph'!$H$1=37,'Cool Graph'!$H$1=38,'Cool Graph'!$H$1=39,'Cool Graph'!$H$1=40,'Cool Graph'!$H$1=41,'Cool Graph'!$H$1=42,'Cool Graph'!$H$1=43,'Cool Graph'!$H$1=44,'Cool Graph'!$H$1=45,'Cool Graph'!$H$1=46,'Cool Graph'!$H$1=47,'Cool Graph'!$H$1=58,'Cool Graph'!$H$1=66)","v":false},{"$f":"SUM(VLOOKUP($E107,AllData,COLUMN()-5-COLUMN($E107)),VLOOKUP($E107-1,AllData,COLUMN()-5-COLUMN($E107)),VLOOKUP($E107-2,AllData,COLUMN()-5-COLUMN($E107)),VLOOKUP($E107-3,AllData,COLUMN()-5-COLUMN($E107)),VLOOKUP($E107-4,AllData,COLUMN()-5-COLUMN($E107)),VLOOKUP($E107-5,AllData,COLUMN()-5-COLUMN($E107)),VLOOKUP($E107-6,AllData,COLUMN()-5-COLUMN($E107)))","v":433.97999999999996},{"$f":"SUM(VLOOKUP($E107,AllData,COLUMN()-6-COLUMN($E107)),VLOOKUP($E107-1,AllData,COLUMN()-6-COLUMN($E107)),VLOOKUP($E107-2,AllData,COLUMN()-6-COLUMN($E107)),VLOOKUP($E107-3,AllData,COLUMN()-6-COLUMN($E107)),VLOOKUP($E107-4,AllData,COLUMN()-6-COLUMN($E107)),VLOOKUP($E107-5,AllData,COLUMN()-6-COLUMN($E107)),VLOOKUP($E107-6,AllData,COLUMN()-6-COLUMN($E107)),VLOOKUP($E107-7,AllData,COLUMN()-6-COLUMN($E107)),VLOOKUP($E107-8,AllData,COLUMN()-6-COLUMN($E107)),VLOOKUP($E107-9,AllData,COLUMN()-6-COLUMN($E107)),VLOOKUP($E107-10,AllData,COLUMN()-6-COLUMN($E107)),VLOOKUP($E107-11,AllData,COLUMN()-6-COLUMN($E107)),VLOOKUP($E107-12,AllData,COLUMN()-6-COLUMN($E107)),VLOOKUP($E107-13,AllData,COLUMN()-6-COLUMN($E107)),VLOOKUP($E107-14,AllData,COLUMN()-6-COLUMN($E107)),VLOOKUP($E107-15,AllData,COLUMN()-6-COLUMN($E107)),VLOOKUP($E107-16,AllData,COLUMN()-6-COLUMN($E107)),VLOOKUP($E107-17,AllData,COLUMN()-6-COLUMN($E107)),VLOOKUP($E107-18,AllData,COLUMN()-6-COLUMN($E107)),VLOOKUP($E107-19,AllData,COLUMN()-6-COLUMN($E107)),VLOOKUP($E107-20,AllData,COLUMN()-6-COLUMN($E107)),VLOOKUP($E107-21,AllData,COLUMN()-6-COLUMN($E107)),VLOOKUP($E107-22,AllData,COLUMN()-6-COLUMN($E107)),VLOOKUP($E107-23,AllData,COLUMN()-6-COLUMN($E107)),VLOOKUP($E107-24,AllData,COLUMN()-6-COLUMN($E107)),VLOOKUP($E107-25,AllData,COLUMN()-6-COLUMN($E107)),VLOOKUP($E107-26,AllData,COLUMN()-6-COLUMN($E107)),VLOOKUP($E107-27,AllData,COLUMN()-6-COLUMN($E107)),VLOOKUP($E107-28,AllData,COLUMN()-6-COLUMN($E107)),VLOOKUP($E107-29,AllData,COLUMN()-6-COLUMN($E107)))","v":1085.17},{"$f":"VLOOKUP($E107,AllData,COLUMN()-7-COLUMN($E107))","v":41.13},{"$f":"OR('Cool Graph'!$I$1=35,'Cool Graph'!$I$1=36,'Cool Graph'!$I$1=37,'Cool Graph'!$I$1=38,'Cool Graph'!$I$1=39,'Cool Graph'!$I$1=40,'Cool Graph'!$I$1=41,'Cool Graph'!$I$1=42,'Cool Graph'!$I$1=43,'Cool Graph'!$I$1=44,'Cool Graph'!$I$1=45,'Cool Graph'!$I$1=46,'Cool Graph'!$I$1=47,'Cool Graph'!$I$1=58,'Cool Graph'!$I$1=66)","v":false}]
["2011-10-15",{"$f":"OFFSET(OldSchoolJustValues!A108,0,'Cool Graph'!$H$1)","v":0},{"$f":"OFFSET(OldSchoolJustValues!A108,0,'Cool Graph'!$I$1)","v":280.76281214131296},null,{"$f":"IF(NewDate>EndDate,NA(),NewDate)","v":"2012-01-10"},{"$f":"IF($E108>EndDate,NA(),IF($K$2=TRUE,N108,IF('Cool Graph'!$B$17=1,N108,IF('Cool Graph'!$B$17=2,L108,IF('Cool Graph'!$B$17=3,M108,)))))","v":32.159999999999997},{"$f":"IF($E108>EndDate,NA(),IF($O$2=TRUE,J108,IF('Cool Graph'!$B$17=1,Data1!J108,IF('Cool Graph'!$B$17=2,Data1!H108,IF('Cool Graph'!$B$17=3,Data1!I108,)))))","v":936.97147366678109},{"$f":"SUM(VLOOKUP($E108,AllData,COLUMN()-COLUMN($E108)),VLOOKUP($E108-1,AllData,COLUMN()-COLUMN($E108)),VLOOKUP($E108-2,AllData,COLUMN()-COLUMN($E108)),VLOOKUP($E108-3,AllData,COLUMN()-COLUMN($E108)),VLOOKUP($E108-4,AllData,COLUMN()-COLUMN($E108)),VLOOKUP($E108-5,AllData,COLUMN()-COLUMN($E108)),VLOOKUP($E108-6,AllData,COLUMN()-COLUMN($E108)))","v":4150.3116176644826},{"$f":"SUM(VLOOKUP($E108,AllData,COLUMN()-1-COLUMN($E108)),VLOOKUP($E108-1,AllData,COLUMN()-1-COLUMN($E108)),VLOOKUP($E108-2,AllData,COLUMN()-1-COLUMN($E108)),VLOOKUP($E108-3,AllData,COLUMN()-1-COLUMN($E108)),VLOOKUP($E108-4,AllData,COLUMN()-1-COLUMN($E108)),VLOOKUP($E108-5,AllData,COLUMN()-1-COLUMN($E108)),VLOOKUP($E108-6,AllData,COLUMN()-1-COLUMN($E108)),VLOOKUP($E108-7,AllData,COLUMN()-1-COLUMN($E108)),VLOOKUP($E108-8,AllData,COLUMN()-1-COLUMN($E108)),VLOOKUP($E108-9,AllData,COLUMN()-1-COLUMN($E108)),VLOOKUP($E108-10,AllData,COLUMN()-1-COLUMN($E108)),VLOOKUP($E108-11,AllData,COLUMN()-1-COLUMN($E108)),VLOOKUP($E108-12,AllData,COLUMN()-1-COLUMN($E108)),VLOOKUP($E108-13,AllData,COLUMN()-1-COLUMN($E108)),VLOOKUP($E108-14,AllData,COLUMN()-1-COLUMN($E108)),VLOOKUP($E108-15,AllData,COLUMN()-1-COLUMN($E108)),VLOOKUP($E108-16,AllData,COLUMN()-1-COLUMN($E108)),VLOOKUP($E108-17,AllData,COLUMN()-1-COLUMN($E108)),VLOOKUP($E108-18,AllData,COLUMN()-1-COLUMN($E108)),VLOOKUP($E108-19,AllData,COLUMN()-1-COLUMN($E108)),VLOOKUP($E108-20,AllData,COLUMN()-1-COLUMN($E108)),VLOOKUP($E108-21,AllData,COLUMN()-1-COLUMN($E108)),VLOOKUP($E108-22,AllData,COLUMN()-1-COLUMN($E108)),VLOOKUP($E108-23,AllData,COLUMN()-1-COLUMN($E108)),VLOOKUP($E108-24,AllData,COLUMN()-1-COLUMN($E108)),VLOOKUP($E108-25,AllData,COLUMN()-1-COLUMN($E108)),VLOOKUP($E108-26,AllData,COLUMN()-1-COLUMN($E108)),VLOOKUP($E108-27,AllData,COLUMN()-1-COLUMN($E108)),VLOOKUP($E108-28,AllData,COLUMN()-1-COLUMN($E108)),VLOOKUP($E108-29,AllData,COLUMN()-1-COLUMN($E108)))","v":18129.239613695154},{"$f":"VLOOKUP($E108,AllData,COLUMN()-2-COLUMN($E108))","v":936.97147366678109},{"$f":"OR('Cool Graph'!$H$1=35,'Cool Graph'!$H$1=36,'Cool Graph'!$H$1=37,'Cool Graph'!$H$1=38,'Cool Graph'!$H$1=39,'Cool Graph'!$H$1=40,'Cool Graph'!$H$1=41,'Cool Graph'!$H$1=42,'Cool Graph'!$H$1=43,'Cool Graph'!$H$1=44,'Cool Graph'!$H$1=45,'Cool Graph'!$H$1=46,'Cool Graph'!$H$1=47,'Cool Graph'!$H$1=58,'Cool Graph'!$H$1=66)","v":false},{"$f":"SUM(VLOOKUP($E108,AllData,COLUMN()-5-COLUMN($E108)),VLOOKUP($E108-1,AllData,COLUMN()-5-COLUMN($E108)),VLOOKUP($E108-2,AllData,COLUMN()-5-COLUMN($E108)),VLOOKUP($E108-3,AllData,COLUMN()-5-COLUMN($E108)),VLOOKUP($E108-4,AllData,COLUMN()-5-COLUMN($E108)),VLOOKUP($E108-5,AllData,COLUMN()-5-COLUMN($E108)),VLOOKUP($E108-6,AllData,COLUMN()-5-COLUMN($E108)))","v":465.5},{"$f":"SUM(VLOOKUP($E108,AllData,COLUMN()-6-COLUMN($E108)),VLOOKUP($E108-1,AllData,COLUMN()-6-COLUMN($E108)),VLOOKUP($E108-2,AllData,COLUMN()-6-COLUMN($E108)),VLOOKUP($E108-3,AllData,COLUMN()-6-COLUMN($E108)),VLOOKUP($E108-4,AllData,COLUMN()-6-COLUMN($E108)),VLOOKUP($E108-5,AllData,COLUMN()-6-COLUMN($E108)),VLOOKUP($E108-6,AllData,COLUMN()-6-COLUMN($E108)),VLOOKUP($E108-7,AllData,COLUMN()-6-COLUMN($E108)),VLOOKUP($E108-8,AllData,COLUMN()-6-COLUMN($E108)),VLOOKUP($E108-9,AllData,COLUMN()-6-COLUMN($E108)),VLOOKUP($E108-10,AllData,COLUMN()-6-COLUMN($E108)),VLOOKUP($E108-11,AllData,COLUMN()-6-COLUMN($E108)),VLOOKUP($E108-12,AllData,COLUMN()-6-COLUMN($E108)),VLOOKUP($E108-13,AllData,COLUMN()-6-COLUMN($E108)),VLOOKUP($E108-14,AllData,COLUMN()-6-COLUMN($E108)),VLOOKUP($E108-15,AllData,COLUMN()-6-COLUMN($E108)),VLOOKUP($E108-16,AllData,COLUMN()-6-COLUMN($E108)),VLOOKUP($E108-17,AllData,COLUMN()-6-COLUMN($E108)),VLOOKUP($E108-18,AllData,COLUMN()-6-COLUMN($E108)),VLOOKUP($E108-19,AllData,COLUMN()-6-COLUMN($E108)),VLOOKUP($E108-20,AllData,COLUMN()-6-COLUMN($E108)),VLOOKUP($E108-21,AllData,COLUMN()-6-COLUMN($E108)),VLOOKUP($E108-22,AllData,COLUMN()-6-COLUMN($E108)),VLOOKUP($E108-23,AllData,COLUMN()-6-COLUMN($E108)),VLOOKUP($E108-24,AllData,COLUMN()-6-COLUMN($E108)),VLOOKUP($E108-25,AllData,COLUMN()-6-COLUMN($E108)),VLOOKUP($E108-26,AllData,COLUMN()-6-COLUMN($E108)),VLOOKUP($E108-27,AllData,COLUMN()-6-COLUMN($E108)),VLOOKUP($E108-28,AllData,COLUMN()-6-COLUMN($E108)),VLOOKUP($E108-29,AllData,COLUMN()-6-COLUMN($E108)))","v":1017.3299999999999},{"$f":"VLOOKUP($E108,AllData,COLUMN()-7-COLUMN($E108))","v":32.159999999999997},{"$f":"OR('Cool Graph'!$I$1=35,'Cool Graph'!$I$1=36,'Cool Graph'!$I$1=37,'Cool Graph'!$I$1=38,'Cool Graph'!$I$1=39,'Cool Graph'!$I$1=40,'Cool Graph'!$I$1=41,'Cool Graph'!$I$1=42,'Cool Graph'!$I$1=43,'Cool Graph'!$I$1=44,'Cool Graph'!$I$1=45,'Cool Graph'!$I$1=46,'Cool Graph'!$I$1=47,'Cool Graph'!$I$1=58,'Cool Graph'!$I$1=66)","v":false}]
["2011-10-16",{"$f":"OFFSET(OldSchoolJustValues!A109,0,'Cool Graph'!$H$1)","v":0},{"$f":"OFFSET(OldSchoolJustValues!A109,0,'Cool Graph'!$I$1)","v":246.01988225370539},null,{"$f":"IF(NewDate>EndDate,NA(),NewDate)","v":"2012-01-11"},{"$f":"IF($E109>EndDate,NA(),IF($K$2=TRUE,N109,IF('Cool Graph'!$B$17=1,N109,IF('Cool Graph'!$B$17=2,L109,IF('Cool Graph'!$B$17=3,M109,)))))","v":162.06},{"$f":"IF($E109>EndDate,NA(),IF($O$2=TRUE,J109,IF('Cool Graph'!$B$17=1,Data1!J109,IF('Cool Graph'!$B$17=2,Data1!H109,IF('Cool Graph'!$B$17=3,Data1!I109,)))))","v":508.04127852210985},{"$f":"SUM(VLOOKUP($E109,AllData,COLUMN()-COLUMN($E109)),VLOOKUP($E109-1,AllData,COLUMN()-COLUMN($E109)),VLOOKUP($E109-2,AllData,COLUMN()-COLUMN($E109)),VLOOKUP($E109-3,AllData,COLUMN()-COLUMN($E109)),VLOOKUP($E109-4,AllData,COLUMN()-COLUMN($E109)),VLOOKUP($E109-5,AllData,COLUMN()-COLUMN($E109)),VLOOKUP($E109-6,AllData,COLUMN()-COLUMN($E109)))","v":3946.9686525296347},{"$f":"SUM(VLOOKUP($E109,AllData,COLUMN()-1-COLUMN($E109)),VLOOKUP($E109-1,AllData,COLUMN()-1-COLUMN($E109)),VLOOKUP($E109-2,AllData,COLUMN()-1-COLUMN($E109)),VLOOKUP($E109-3,AllData,COLUMN()-1-COLUMN($E109)),VLOOKUP($E109-4,AllData,COLUMN()-1-COLUMN($E109)),VLOOKUP($E109-5,AllData,COLUMN()-1-COLUMN($E109)),VLOOKUP($E109-6,AllData,COLUMN()-1-COLUMN($E109)),VLOOKUP($E109-7,AllData,COLUMN()-1-COLUMN($E109)),VLOOKUP($E109-8,AllData,COLUMN()-1-COLUMN($E109)),VLOOKUP($E109-9,AllData,COLUMN()-1-COLUMN($E109)),VLOOKUP($E109-10,AllData,COLUMN()-1-COLUMN($E109)),VLOOKUP($E109-11,AllData,COLUMN()-1-COLUMN($E109)),VLOOKUP($E109-12,AllData,COLUMN()-1-COLUMN($E109)),VLOOKUP($E109-13,AllData,COLUMN()-1-COLUMN($E109)),VLOOKUP($E109-14,AllData,COLUMN()-1-COLUMN($E109)),VLOOKUP($E109-15,AllData,COLUMN()-1-COLUMN($E109)),VLOOKUP($E109-16,AllData,COLUMN()-1-COLUMN($E109)),VLOOKUP($E109-17,AllData,COLUMN()-1-COLUMN($E109)),VLOOKUP($E109-18,AllData,COLUMN()-1-COLUMN($E109)),VLOOKUP($E109-19,AllData,COLUMN()-1-COLUMN($E109)),VLOOKUP($E109-20,AllData,COLUMN()-1-COLUMN($E109)),VLOOKUP($E109-21,AllData,COLUMN()-1-COLUMN($E109)),VLOOKUP($E109-22,AllData,COLUMN()-1-COLUMN($E109)),VLOOKUP($E109-23,AllData,COLUMN()-1-COLUMN($E109)),VLOOKUP($E109-24,AllData,COLUMN()-1-COLUMN($E109)),VLOOKUP($E109-25,AllData,COLUMN()-1-COLUMN($E109)),VLOOKUP($E109-26,AllData,COLUMN()-1-COLUMN($E109)),VLOOKUP($E109-27,AllData,COLUMN()-1-COLUMN($E109)),VLOOKUP($E109-28,AllData,COLUMN()-1-COLUMN($E109)),VLOOKUP($E109-29,AllData,COLUMN()-1-COLUMN($E109)))","v":17664.091997807605},{"$f":"VLOOKUP($E109,AllData,COLUMN()-2-COLUMN($E109))","v":508.04127852210985},{"$f":"OR('Cool Graph'!$H$1=35,'Cool Graph'!$H$1=36,'Cool Graph'!$H$1=37,'Cool Graph'!$H$1=38,'Cool Graph'!$H$1=39,'Cool Graph'!$H$1=40,'Cool Graph'!$H$1=41,'Cool Graph'!$H$1=42,'Cool Graph'!$H$1=43,'Cool Graph'!$H$1=44,'Cool Graph'!$H$1=45,'Cool Graph'!$H$1=46,'Cool Graph'!$H$1=47,'Cool Graph'!$H$1=58,'Cool Graph'!$H$1=66)","v":false},{"$f":"SUM(VLOOKUP($E109,AllData,COLUMN()-5-COLUMN($E109)),VLOOKUP($E109-1,AllData,COLUMN()-5-COLUMN($E109)),VLOOKUP($E109-2,AllData,COLUMN()-5-COLUMN($E109)),VLOOKUP($E109-3,AllData,COLUMN()-5-COLUMN($E109)),VLOOKUP($E109-4,AllData,COLUMN()-5-COLUMN($E109)),VLOOKUP($E109-5,AllData,COLUMN()-5-COLUMN($E109)),VLOOKUP($E109-6,AllData,COLUMN()-5-COLUMN($E109)))","v":618.73},{"$f":"SUM(VLOOKUP($E109,AllData,COLUMN()-6-COLUMN($E109)),VLOOKUP($E109-1,AllData,COLUMN()-6-COLUMN($E109)),VLOOKUP($E109-2,AllData,COLUMN()-6-COLUMN($E109)),VLOOKUP($E109-3,AllData,COLUMN()-6-COLUMN($E109)),VLOOKUP($E109-4,AllData,COLUMN()-6-COLUMN($E109)),VLOOKUP($E109-5,AllData,COLUMN()-6-COLUMN($E109)),VLOOKUP($E109-6,AllData,COLUMN()-6-COLUMN($E109)),VLOOKUP($E109-7,AllData,COLUMN()-6-COLUMN($E109)),VLOOKUP($E109-8,AllData,COLUMN()-6-COLUMN($E109)),VLOOKUP($E109-9,AllData,COLUMN()-6-COLUMN($E109)),VLOOKUP($E109-10,AllData,COLUMN()-6-COLUMN($E109)),VLOOKUP($E109-11,AllData,COLUMN()-6-COLUMN($E109)),VLOOKUP($E109-12,AllData,COLUMN()-6-COLUMN($E109)),VLOOKUP($E109-13,AllData,COLUMN()-6-COLUMN($E109)),VLOOKUP($E109-14,AllData,COLUMN()-6-COLUMN($E109)),VLOOKUP($E109-15,AllData,COLUMN()-6-COLUMN($E109)),VLOOKUP($E109-16,AllData,COLUMN()-6-COLUMN($E109)),VLOOKUP($E109-17,AllData,COLUMN()-6-COLUMN($E109)),VLOOKUP($E109-18,AllData,COLUMN()-6-COLUMN($E109)),VLOOKUP($E109-19,AllData,COLUMN()-6-COLUMN($E109)),VLOOKUP($E109-20,AllData,COLUMN()-6-COLUMN($E109)),VLOOKUP($E109-21,AllData,COLUMN()-6-COLUMN($E109)),VLOOKUP($E109-22,AllData,COLUMN()-6-COLUMN($E109)),VLOOKUP($E109-23,AllData,COLUMN()-6-COLUMN($E109)),VLOOKUP($E109-24,AllData,COLUMN()-6-COLUMN($E109)),VLOOKUP($E109-25,AllData,COLUMN()-6-COLUMN($E109)),VLOOKUP($E109-26,AllData,COLUMN()-6-COLUMN($E109)),VLOOKUP($E109-27,AllData,COLUMN()-6-COLUMN($E109)),VLOOKUP($E109-28,AllData,COLUMN()-6-COLUMN($E109)),VLOOKUP($E109-29,AllData,COLUMN()-6-COLUMN($E109)))","v":1079.3900000000001},{"$f":"VLOOKUP($E109,AllData,COLUMN()-7-COLUMN($E109))","v":162.06},{"$f":"OR('Cool Graph'!$I$1=35,'Cool Graph'!$I$1=36,'Cool Graph'!$I$1=37,'Cool Graph'!$I$1=38,'Cool Graph'!$I$1=39,'Cool Graph'!$I$1=40,'Cool Graph'!$I$1=41,'Cool Graph'!$I$1=42,'Cool Graph'!$I$1=43,'Cool Graph'!$I$1=44,'Cool Graph'!$I$1=45,'Cool Graph'!$I$1=46,'Cool Graph'!$I$1=47,'Cool Graph'!$I$1=58,'Cool Graph'!$I$1=66)","v":false}]
["2011-10-17",{"$f":"OFFSET(OldSchoolJustValues!A110,0,'Cool Graph'!$H$1)","v":0},{"$f":"OFFSET(OldSchoolJustValues!A110,0,'Cool Graph'!$I$1)","v":304.94319596265626},null,{"$f":"IF(NewDate>EndDate,NA(),NewDate)","v":"2012-01-12"},{"$f":"IF($E110>EndDate,NA(),IF($K$2=TRUE,N110,IF('Cool Graph'!$B$17=1,N110,IF('Cool Graph'!$B$17=2,L110,IF('Cool Graph'!$B$17=3,M110,)))))","v":84.35},{"$f":"IF($E110>EndDate,NA(),IF($O$2=TRUE,J110,IF('Cool Graph'!$B$17=1,Data1!J110,IF('Cool Graph'!$B$17=2,Data1!H110,IF('Cool Graph'!$B$17=3,Data1!I110,)))))","v":414.35416464507006},{"$f":"SUM(VLOOKUP($E110,AllData,COLUMN()-COLUMN($E110)),VLOOKUP($E110-1,AllData,COLUMN()-COLUMN($E110)),VLOOKUP($E110-2,AllData,COLUMN()-COLUMN($E110)),VLOOKUP($E110-3,AllData,COLUMN()-COLUMN($E110)),VLOOKUP($E110-4,AllData,COLUMN()-COLUMN($E110)),VLOOKUP($E110-5,AllData,COLUMN()-COLUMN($E110)),VLOOKUP($E110-6,AllData,COLUMN()-COLUMN($E110)))","v":3690.5942327348121},{"$f":"SUM(VLOOKUP($E110,AllData,COLUMN()-1-COLUMN($E110)),VLOOKUP($E110-1,AllData,COLUMN()-1-COLUMN($E110)),VLOOKUP($E110-2,AllData,COLUMN()-1-COLUMN($E110)),VLOOKUP($E110-3,AllData,COLUMN()-1-COLUMN($E110)),VLOOKUP($E110-4,AllData,COLUMN()-1-COLUMN($E110)),VLOOKUP($E110-5,AllData,COLUMN()-1-COLUMN($E110)),VLOOKUP($E110-6,AllData,COLUMN()-1-COLUMN($E110)),VLOOKUP($E110-7,AllData,COLUMN()-1-COLUMN($E110)),VLOOKUP($E110-8,AllData,COLUMN()-1-COLUMN($E110)),VLOOKUP($E110-9,AllData,COLUMN()-1-COLUMN($E110)),VLOOKUP($E110-10,AllData,COLUMN()-1-COLUMN($E110)),VLOOKUP($E110-11,AllData,COLUMN()-1-COLUMN($E110)),VLOOKUP($E110-12,AllData,COLUMN()-1-COLUMN($E110)),VLOOKUP($E110-13,AllData,COLUMN()-1-COLUMN($E110)),VLOOKUP($E110-14,AllData,COLUMN()-1-COLUMN($E110)),VLOOKUP($E110-15,AllData,COLUMN()-1-COLUMN($E110)),VLOOKUP($E110-16,AllData,COLUMN()-1-COLUMN($E110)),VLOOKUP($E110-17,AllData,COLUMN()-1-COLUMN($E110)),VLOOKUP($E110-18,AllData,COLUMN()-1-COLUMN($E110)),VLOOKUP($E110-19,AllData,COLUMN()-1-COLUMN($E110)),VLOOKUP($E110-20,AllData,COLUMN()-1-COLUMN($E110)),VLOOKUP($E110-21,AllData,COLUMN()-1-COLUMN($E110)),VLOOKUP($E110-22,AllData,COLUMN()-1-COLUMN($E110)),VLOOKUP($E110-23,AllData,COLUMN()-1-COLUMN($E110)),VLOOKUP($E110-24,AllData,COLUMN()-1-COLUMN($E110)),VLOOKUP($E110-25,AllData,COLUMN()-1-COLUMN($E110)),VLOOKUP($E110-26,AllData,COLUMN()-1-COLUMN($E110)),VLOOKUP($E110-27,AllData,COLUMN()-1-COLUMN($E110)),VLOOKUP($E110-28,AllData,COLUMN()-1-COLUMN($E110)),VLOOKUP($E110-29,AllData,COLUMN()-1-COLUMN($E110)))","v":15251.479583970535},{"$f":"VLOOKUP($E110,AllData,COLUMN()-2-COLUMN($E110))","v":414.35416464507006},{"$f":"OR('Cool Graph'!$H$1=35,'Cool Graph'!$H$1=36,'Cool Graph'!$H$1=37,'Cool Graph'!$H$1=38,'Cool Graph'!$H$1=39,'Cool Graph'!$H$1=40,'Cool Graph'!$H$1=41,'Cool Graph'!$H$1=42,'Cool Graph'!$H$1=43,'Cool Graph'!$H$1=44,'Cool Graph'!$H$1=45,'Cool Graph'!$H$1=46,'Cool Graph'!$H$1=47,'Cool Graph'!$H$1=58,'Cool Graph'!$H$1=66)","v":false},{"$f":"SUM(VLOOKUP($E110,AllData,COLUMN()-5-COLUMN($E110)),VLOOKUP($E110-1,AllData,COLUMN()-5-COLUMN($E110)),VLOOKUP($E110-2,AllData,COLUMN()-5-COLUMN($E110)),VLOOKUP($E110-3,AllData,COLUMN()-5-COLUMN($E110)),VLOOKUP($E110-4,AllData,COLUMN()-5-COLUMN($E110)),VLOOKUP($E110-5,AllData,COLUMN()-5-COLUMN($E110)),VLOOKUP($E110-6,AllData,COLUMN()-5-COLUMN($E110)))","v":597.20000000000005},{"$f":"SUM(VLOOKUP($E110,AllData,COLUMN()-6-COLUMN($E110)),VLOOKUP($E110-1,AllData,COLUMN()-6-COLUMN($E110)),VLOOKUP($E110-2,AllData,COLUMN()-6-COLUMN($E110)),VLOOKUP($E110-3,AllData,COLUMN()-6-COLUMN($E110)),VLOOKUP($E110-4,AllData,COLUMN()-6-COLUMN($E110)),VLOOKUP($E110-5,AllData,COLUMN()-6-COLUMN($E110)),VLOOKUP($E110-6,AllData,COLUMN()-6-COLUMN($E110)),VLOOKUP($E110-7,AllData,COLUMN()-6-COLUMN($E110)),VLOOKUP($E110-8,AllData,COLUMN()-6-COLUMN($E110)),VLOOKUP($E110-9,AllData,COLUMN()-6-COLUMN($E110)),VLOOKUP($E110-10,AllData,COLUMN()-6-COLUMN($E110)),VLOOKUP($E110-11,AllData,COLUMN()-6-COLUMN($E110)),VLOOKUP($E110-12,AllData,COLUMN()-6-COLUMN($E110)),VLOOKUP($E110-13,AllData,COLUMN()-6-COLUMN($E110)),VLOOKUP($E110-14,AllData,COLUMN()-6-COLUMN($E110)),VLOOKUP($E110-15,AllData,COLUMN()-6-COLUMN($E110)),VLOOKUP($E110-16,AllData,COLUMN()-6-COLUMN($E110)),VLOOKUP($E110-17,AllData,COLUMN()-6-COLUMN($E110)),VLOOKUP($E110-18,AllData,COLUMN()-6-COLUMN($E110)),VLOOKUP($E110-19,AllData,COLUMN()-6-COLUMN($E110)),VLOOKUP($E110-20,AllData,COLUMN()-6-COLUMN($E110)),VLOOKUP($E110-21,AllData,COLUMN()-6-COLUMN($E110)),VLOOKUP($E110-22,AllData,COLUMN()-6-COLUMN($E110)),VLOOKUP($E110-23,AllData,COLUMN()-6-COLUMN($E110)),VLOOKUP($E110-24,AllData,COLUMN()-6-COLUMN($E110)),VLOOKUP($E110-25,AllData,COLUMN()-6-COLUMN($E110)),VLOOKUP($E110-26,AllData,COLUMN()-6-COLUMN($E110)),VLOOKUP($E110-27,AllData,COLUMN()-6-COLUMN($E110)),VLOOKUP($E110-28,AllData,COLUMN()-6-COLUMN($E110)),VLOOKUP($E110-29,AllData,COLUMN()-6-COLUMN($E110)))","v":1063.74},{"$f":"VLOOKUP($E110,AllData,COLUMN()-7-COLUMN($E110))","v":84.35},{"$f":"OR('Cool Graph'!$I$1=35,'Cool Graph'!$I$1=36,'Cool Graph'!$I$1=37,'Cool Graph'!$I$1=38,'Cool Graph'!$I$1=39,'Cool Graph'!$I$1=40,'Cool Graph'!$I$1=41,'Cool Graph'!$I$1=42,'Cool Graph'!$I$1=43,'Cool Graph'!$I$1=44,'Cool Graph'!$I$1=45,'Cool Graph'!$I$1=46,'Cool Graph'!$I$1=47,'Cool Graph'!$I$1=58,'Cool Graph'!$I$1=66)","v":false}]
["2011-10-18",{"$f":"OFFSET(OldSchoolJustValues!A111,0,'Cool Graph'!$H$1)","v":0},{"$f":"OFFSET(OldSchoolJustValues!A111,0,'Cool Graph'!$I$1)","v":517.2593806860674},null,{"$f":"IF(NewDate>EndDate,NA(),NewDate)","v":"2012-01-13"},{"$f":"IF($E111>EndDate,NA(),IF($K$2=TRUE,N111,IF('Cool Graph'!$B$17=1,N111,IF('Cool Graph'!$B$17=2,L111,IF('Cool Graph'!$B$17=3,M111,)))))","v":79.14},{"$f":"IF($E111>EndDate,NA(),IF($O$2=TRUE,J111,IF('Cool Graph'!$B$17=1,Data1!J111,IF('Cool Graph'!$B$17=2,Data1!H111,IF('Cool Graph'!$B$17=3,Data1!I111,)))))","v":711.71007897318191},{"$f":"SUM(VLOOKUP($E111,AllData,COLUMN()-COLUMN($E111)),VLOOKUP($E111-1,AllData,COLUMN()-COLUMN($E111)),VLOOKUP($E111-2,AllData,COLUMN()-COLUMN($E111)),VLOOKUP($E111-3,AllData,COLUMN()-COLUMN($E111)),VLOOKUP($E111-4,AllData,COLUMN()-COLUMN($E111)),VLOOKUP($E111-5,AllData,COLUMN()-COLUMN($E111)),VLOOKUP($E111-6,AllData,COLUMN()-COLUMN($E111)))","v":4380.2256643805285},{"$f":"SUM(VLOOKUP($E111,AllData,COLUMN()-1-COLUMN($E111)),VLOOKUP($E111-1,AllData,COLUMN()-1-COLUMN($E111)),VLOOKUP($E111-2,AllData,COLUMN()-1-COLUMN($E111)),VLOOKUP($E111-3,AllData,COLUMN()-1-COLUMN($E111)),VLOOKUP($E111-4,AllData,COLUMN()-1-COLUMN($E111)),VLOOKUP($E111-5,AllData,COLUMN()-1-COLUMN($E111)),VLOOKUP($E111-6,AllData,COLUMN()-1-COLUMN($E111)),VLOOKUP($E111-7,AllData,COLUMN()-1-COLUMN($E111)),VLOOKUP($E111-8,AllData,COLUMN()-1-COLUMN($E111)),VLOOKUP($E111-9,AllData,COLUMN()-1-COLUMN($E111)),VLOOKUP($E111-10,AllData,COLUMN()-1-COLUMN($E111)),VLOOKUP($E111-11,AllData,COLUMN()-1-COLUMN($E111)),VLOOKUP($E111-12,AllData,COLUMN()-1-COLUMN($E111)),VLOOKUP($E111-13,AllData,COLUMN()-1-COLUMN($E111)),VLOOKUP($E111-14,AllData,COLUMN()-1-COLUMN($E111)),VLOOKUP($E111-15,AllData,COLUMN()-1-COLUMN($E111)),VLOOKUP($E111-16,AllData,COLUMN()-1-COLUMN($E111)),VLOOKUP($E111-17,AllData,COLUMN()-1-COLUMN($E111)),VLOOKUP($E111-18,AllData,COLUMN()-1-COLUMN($E111)),VLOOKUP($E111-19,AllData,COLUMN()-1-COLUMN($E111)),VLOOKUP($E111-20,AllData,COLUMN()-1-COLUMN($E111)),VLOOKUP($E111-21,AllData,COLUMN()-1-COLUMN($E111)),VLOOKUP($E111-22,AllData,COLUMN()-1-COLUMN($E111)),VLOOKUP($E111-23,AllData,COLUMN()-1-COLUMN($E111)),VLOOKUP($E111-24,AllData,COLUMN()-1-COLUMN($E111)),VLOOKUP($E111-25,AllData,COLUMN()-1-COLUMN($E111)),VLOOKUP($E111-26,AllData,COLUMN()-1-COLUMN($E111)),VLOOKUP($E111-27,AllData,COLUMN()-1-COLUMN($E111)),VLOOKUP($E111-28,AllData,COLUMN()-1-COLUMN($E111)),VLOOKUP($E111-29,AllData,COLUMN()-1-COLUMN($E111)))","v":14801.696945611853},{"$f":"VLOOKUP($E111,AllData,COLUMN()-2-COLUMN($E111))","v":711.71007897318191},{"$f":"OR('Cool Graph'!$H$1=35,'Cool Graph'!$H$1=36,'Cool Graph'!$H$1=37,'Cool Graph'!$H$1=38,'Cool Graph'!$H$1=39,'Cool Graph'!$H$1=40,'Cool Graph'!$H$1=41,'Cool Graph'!$H$1=42,'Cool Graph'!$H$1=43,'Cool Graph'!$H$1=44,'Cool Graph'!$H$1=45,'Cool Graph'!$H$1=46,'Cool Graph'!$H$1=47,'Cool Graph'!$H$1=58,'Cool Graph'!$H$1=66)","v":false},{"$f":"SUM(VLOOKUP($E111,AllData,COLUMN()-5-COLUMN($E111)),VLOOKUP($E111-1,AllData,COLUMN()-5-COLUMN($E111)),VLOOKUP($E111-2,AllData,COLUMN()-5-COLUMN($E111)),VLOOKUP($E111-3,AllData,COLUMN()-5-COLUMN($E111)),VLOOKUP($E111-4,AllData,COLUMN()-5-COLUMN($E111)),VLOOKUP($E111-5,AllData,COLUMN()-5-COLUMN($E111)),VLOOKUP($E111-6,AllData,COLUMN()-5-COLUMN($E111)))","v":574.22},{"$f":"SUM(VLOOKUP($E111,AllData,COLUMN()-6-COLUMN($E111)),VLOOKUP($E111-1,AllData,COLUMN()-6-COLUMN($E111)),VLOOKUP($E111-2,AllData,COLUMN()-6-COLUMN($E111)),VLOOKUP($E111-3,AllData,COLUMN()-6-COLUMN($E111)),VLOOKUP($E111-4,AllData,COLUMN()-6-COLUMN($E111)),VLOOKUP($E111-5,AllData,COLUMN()-6-COLUMN($E111)),VLOOKUP($E111-6,AllData,COLUMN()-6-COLUMN($E111)),VLOOKUP($E111-7,AllData,COLUMN()-6-COLUMN($E111)),VLOOKUP($E111-8,AllData,COLUMN()-6-COLUMN($E111)),VLOOKUP($E111-9,AllData,COLUMN()-6-COLUMN($E111)),VLOOKUP($E111-10,AllData,COLUMN()-6-COLUMN($E111)),VLOOKUP($E111-11,AllData,COLUMN()-6-COLUMN($E111)),VLOOKUP($E111-12,AllData,COLUMN()-6-COLUMN($E111)),VLOOKUP($E111-13,AllData,COLUMN()-6-COLUMN($E111)),VLOOKUP($E111-14,AllData,COLUMN()-6-COLUMN($E111)),VLOOKUP($E111-15,AllData,COLUMN()-6-COLUMN($E111)),VLOOKUP($E111-16,AllData,COLUMN()-6-COLUMN($E111)),VLOOKUP($E111-17,AllData,COLUMN()-6-COLUMN($E111)),VLOOKUP($E111-18,AllData,COLUMN()-6-COLUMN($E111)),VLOOKUP($E111-19,AllData,COLUMN()-6-COLUMN($E111)),VLOOKUP($E111-20,AllData,COLUMN()-6-COLUMN($E111)),VLOOKUP($E111-21,AllData,COLUMN()-6-COLUMN($E111)),VLOOKUP($E111-22,AllData,COLUMN()-6-COLUMN($E111)),VLOOKUP($E111-23,AllData,COLUMN()-6-COLUMN($E111)),VLOOKUP($E111-24,AllData,COLUMN()-6-COLUMN($E111)),VLOOKUP($E111-25,AllData,COLUMN()-6-COLUMN($E111)),VLOOKUP($E111-26,AllData,COLUMN()-6-COLUMN($E111)),VLOOKUP($E111-27,AllData,COLUMN()-6-COLUMN($E111)),VLOOKUP($E111-28,AllData,COLUMN()-6-COLUMN($E111)),VLOOKUP($E111-29,AllData,COLUMN()-6-COLUMN($E111)))","v":1043.1400000000001},{"$f":"VLOOKUP($E111,AllData,COLUMN()-7-COLUMN($E111))","v":79.14},{"$f":"OR('Cool Graph'!$I$1=35,'Cool Graph'!$I$1=36,'Cool Graph'!$I$1=37,'Cool Graph'!$I$1=38,'Cool Graph'!$I$1=39,'Cool Graph'!$I$1=40,'Cool Graph'!$I$1=41,'Cool Graph'!$I$1=42,'Cool Graph'!$I$1=43,'Cool Graph'!$I$1=44,'Cool Graph'!$I$1=45,'Cool Graph'!$I$1=46,'Cool Graph'!$I$1=47,'Cool Graph'!$I$1=58,'Cool Graph'!$I$1=66)","v":false}]
["2011-10-19",{"$f":"OFFSET(OldSchoolJustValues!A112,0,'Cool Graph'!$H$1)","v":0},{"$f":"OFFSET(OldSchoolJustValues!A112,0,'Cool Graph'!$I$1)","v":734.59639192531256},null,{"$f":"IF(NewDate>EndDate,NA(),NewDate)","v":"2012-01-14"},{"$f":"IF($E112>EndDate,NA(),IF($K$2=TRUE,N112,IF('Cool Graph'!$B$17=1,N112,IF('Cool Graph'!$B$17=2,L112,IF('Cool Graph'!$B$17=3,M112,)))))","v":0.03},{"$f":"IF($E112>EndDate,NA(),IF($O$2=TRUE,J112,IF('Cool Graph'!$B$17=1,Data1!J112,IF('Cool Graph'!$B$17=2,Data1!H112,IF('Cool Graph'!$B$17=3,Data1!I112,)))))","v":422.10701237815482},{"$f":"SUM(VLOOKUP($E112,AllData,COLUMN()-COLUMN($E112)),VLOOKUP($E112-1,AllData,COLUMN()-COLUMN($E112)),VLOOKUP($E112-2,AllData,COLUMN()-COLUMN($E112)),VLOOKUP($E112-3,AllData,COLUMN()-COLUMN($E112)),VLOOKUP($E112-4,AllData,COLUMN()-COLUMN($E112)),VLOOKUP($E112-5,AllData,COLUMN()-COLUMN($E112)),VLOOKUP($E112-6,AllData,COLUMN()-COLUMN($E112)))","v":3902.9755502514708},{"$f":"SUM(VLOOKUP($E112,AllData,COLUMN()-1-COLUMN($E112)),VLOOKUP($E112-1,AllData,COLUMN()-1-COLUMN($E112)),VLOOKUP($E112-2,AllData,COLUMN()-1-COLUMN($E112)),VLOOKUP($E112-3,AllData,COLUMN()-1-COLUMN($E112)),VLOOKUP($E112-4,AllData,COLUMN()-1-COLUMN($E112)),VLOOKUP($E112-5,AllData,COLUMN()-1-COLUMN($E112)),VLOOKUP($E112-6,AllData,COLUMN()-1-COLUMN($E112)),VLOOKUP($E112-7,AllData,COLUMN()-1-COLUMN($E112)),VLOOKUP($E112-8,AllData,COLUMN()-1-COLUMN($E112)),VLOOKUP($E112-9,AllData,COLUMN()-1-COLUMN($E112)),VLOOKUP($E112-10,AllData,COLUMN()-1-COLUMN($E112)),VLOOKUP($E112-11,AllData,COLUMN()-1-COLUMN($E112)),VLOOKUP($E112-12,AllData,COLUMN()-1-COLUMN($E112)),VLOOKUP($E112-13,AllData,COLUMN()-1-COLUMN($E112)),VLOOKUP($E112-14,AllData,COLUMN()-1-COLUMN($E112)),VLOOKUP($E112-15,AllData,COLUMN()-1-COLUMN($E112)),VLOOKUP($E112-16,AllData,COLUMN()-1-COLUMN($E112)),VLOOKUP($E112-17,AllData,COLUMN()-1-COLUMN($E112)),VLOOKUP($E112-18,AllData,COLUMN()-1-COLUMN($E112)),VLOOKUP($E112-19,AllData,COLUMN()-1-COLUMN($E112)),VLOOKUP($E112-20,AllData,COLUMN()-1-COLUMN($E112)),VLOOKUP($E112-21,AllData,COLUMN()-1-COLUMN($E112)),VLOOKUP($E112-22,AllData,COLUMN()-1-COLUMN($E112)),VLOOKUP($E112-23,AllData,COLUMN()-1-COLUMN($E112)),VLOOKUP($E112-24,AllData,COLUMN()-1-COLUMN($E112)),VLOOKUP($E112-25,AllData,COLUMN()-1-COLUMN($E112)),VLOOKUP($E112-26,AllData,COLUMN()-1-COLUMN($E112)),VLOOKUP($E112-27,AllData,COLUMN()-1-COLUMN($E112)),VLOOKUP($E112-28,AllData,COLUMN()-1-COLUMN($E112)),VLOOKUP($E112-29,AllData,COLUMN()-1-COLUMN($E112)))","v":12988.565675248665},{"$f":"VLOOKUP($E112,AllData,COLUMN()-2-COLUMN($E112))","v":422.10701237815482},{"$f":"OR('Cool Graph'!$H$1=35,'Cool Graph'!$H$1=36,'Cool Graph'!$H$1=37,'Cool Graph'!$H$1=38,'Cool Graph'!$H$1=39,'Cool Graph'!$H$1=40,'Cool Graph'!$H$1=41,'Cool Graph'!$H$1=42,'Cool Graph'!$H$1=43,'Cool Graph'!$H$1=44,'Cool Graph'!$H$1=45,'Cool Graph'!$H$1=46,'Cool Graph'!$H$1=47,'Cool Graph'!$H$1=58,'Cool Graph'!$H$1=66)","v":false},{"$f":"SUM(VLOOKUP($E112,AllData,COLUMN()-5-COLUMN($E112)),VLOOKUP($E112-1,AllData,COLUMN()-5-COLUMN($E112)),VLOOKUP($E112-2,AllData,COLUMN()-5-COLUMN($E112)),VLOOKUP($E112-3,AllData,COLUMN()-5-COLUMN($E112)),VLOOKUP($E112-4,AllData,COLUMN()-5-COLUMN($E112)),VLOOKUP($E112-5,AllData,COLUMN()-5-COLUMN($E112)),VLOOKUP($E112-6,AllData,COLUMN()-5-COLUMN($E112)))","v":476.08},{"$f":"SUM(VLOOKUP($E112,AllData,COLUMN()-6-COLUMN($E112)),VLOOKUP($E112-1,AllData,COLUMN()-6-COLUMN($E112)),VLOOKUP($E112-2,AllData,COLUMN()-6-COLUMN($E112)),VLOOKUP($E112-3,AllData,COLUMN()-6-COLUMN($E112)),VLOOKUP($E112-4,AllData,COLUMN()-6-COLUMN($E112)),VLOOKUP($E112-5,AllData,COLUMN()-6-COLUMN($E112)),VLOOKUP($E112-6,AllData,COLUMN()-6-COLUMN($E112)),VLOOKUP($E112-7,AllData,COLUMN()-6-COLUMN($E112)),VLOOKUP($E112-8,AllData,COLUMN()-6-COLUMN($E112)),VLOOKUP($E112-9,AllData,COLUMN()-6-COLUMN($E112)),VLOOKUP($E112-10,AllData,COLUMN()-6-COLUMN($E112)),VLOOKUP($E112-11,AllData,COLUMN()-6-COLUMN($E112)),VLOOKUP($E112-12,AllData,COLUMN()-6-COLUMN($E112)),VLOOKUP($E112-13,AllData,COLUMN()-6-COLUMN($E112)),VLOOKUP($E112-14,AllData,COLUMN()-6-COLUMN($E112)),VLOOKUP($E112-15,AllData,COLUMN()-6-COLUMN($E112)),VLOOKUP($E112-16,AllData,COLUMN()-6-COLUMN($E112)),VLOOKUP($E112-17,AllData,COLUMN()-6-COLUMN($E112)),VLOOKUP($E112-18,AllData,COLUMN()-6-COLUMN($E112)),VLOOKUP($E112-19,AllData,COLUMN()-6-COLUMN($E112)),VLOOKUP($E112-20,AllData,COLUMN()-6-COLUMN($E112)),VLOOKUP($E112-21,AllData,COLUMN()-6-COLUMN($E112)),VLOOKUP($E112-22,AllData,COLUMN()-6-COLUMN($E112)),VLOOKUP($E112-23,AllData,COLUMN()-6-COLUMN($E112)),VLOOKUP($E112-24,AllData,COLUMN()-6-COLUMN($E112)),VLOOKUP($E112-25,AllData,COLUMN()-6-COLUMN($E112)),VLOOKUP($E112-26,AllData,COLUMN()-6-COLUMN($E112)),VLOOKUP($E112-27,AllData,COLUMN()-6-COLUMN($E112)),VLOOKUP($E112-28,AllData,COLUMN()-6-COLUMN($E112)),VLOOKUP($E112-29,AllData,COLUMN()-6-COLUMN($E112)))","v":1011.9900000000001},{"$f":"VLOOKUP($E112,AllData,COLUMN()-7-COLUMN($E112))","v":0.03},{"$f":"OR('Cool Graph'!$I$1=35,'Cool Graph'!$I$1=36,'Cool Graph'!$I$1=37,'Cool Graph'!$I$1=38,'Cool Graph'!$I$1=39,'Cool Graph'!$I$1=40,'Cool Graph'!$I$1=41,'Cool Graph'!$I$1=42,'Cool Graph'!$I$1=43,'Cool Graph'!$I$1=44,'Cool Graph'!$I$1=45,'Cool Graph'!$I$1=46,'Cool Graph'!$I$1=47,'Cool Graph'!$I$1=58,'Cool Graph'!$I$1=66)","v":false}]
["2011-10-20",{"$f":"OFFSET(OldSchoolJustValues!A113,0,'Cool Graph'!$H$1)","v":0},{"$f":"OFFSET(OldSchoolJustValues!A113,0,'Cool Graph'!$I$1)","v":701.16256900310884},null,{"$f":"IF(NewDate>EndDate,NA(),NewDate)","v":"2012-01-15"},{"$f":"IF($E113>EndDate,NA(),IF($K$2=TRUE,N113,IF('Cool Graph'!$B$17=1,N113,IF('Cool Graph'!$B$17=2,L113,IF('Cool Graph'!$B$17=3,M113,)))))","v":0},{"$f":"IF($E113>EndDate,NA(),IF($O$2=TRUE,J113,IF('Cool Graph'!$B$17=1,Data1!J113,IF('Cool Graph'!$B$17=2,Data1!H113,IF('Cool Graph'!$B$17=3,Data1!I113,)))))","v":375.61797236740881},{"$f":"SUM(VLOOKUP($E113,AllData,COLUMN()-COLUMN($E113)),VLOOKUP($E113-1,AllData,COLUMN()-COLUMN($E113)),VLOOKUP($E113-2,AllData,COLUMN()-COLUMN($E113)),VLOOKUP($E113-3,AllData,COLUMN()-COLUMN($E113)),VLOOKUP($E113-4,AllData,COLUMN()-COLUMN($E113)),VLOOKUP($E113-5,AllData,COLUMN()-COLUMN($E113)),VLOOKUP($E113-6,AllData,COLUMN()-COLUMN($E113)))","v":4057.8051918065926},{"$f":"SUM(VLOOKUP($E113,AllData,COLUMN()-1-COLUMN($E113)),VLOOKUP($E113-1,AllData,COLUMN()-1-COLUMN($E113)),VLOOKUP($E113-2,AllData,COLUMN()-1-COLUMN($E113)),VLOOKUP($E113-3,AllData,COLUMN()-1-COLUMN($E113)),VLOOKUP($E113-4,AllData,COLUMN()-1-COLUMN($E113)),VLOOKUP($E113-5,AllData,COLUMN()-1-COLUMN($E113)),VLOOKUP($E113-6,AllData,COLUMN()-1-COLUMN($E113)),VLOOKUP($E113-7,AllData,COLUMN()-1-COLUMN($E113)),VLOOKUP($E113-8,AllData,COLUMN()-1-COLUMN($E113)),VLOOKUP($E113-9,AllData,COLUMN()-1-COLUMN($E113)),VLOOKUP($E113-10,AllData,COLUMN()-1-COLUMN($E113)),VLOOKUP($E113-11,AllData,COLUMN()-1-COLUMN($E113)),VLOOKUP($E113-12,AllData,COLUMN()-1-COLUMN($E113)),VLOOKUP($E113-13,AllData,COLUMN()-1-COLUMN($E113)),VLOOKUP($E113-14,AllData,COLUMN()-1-COLUMN($E113)),VLOOKUP($E113-15,AllData,COLUMN()-1-COLUMN($E113)),VLOOKUP($E113-16,AllData,COLUMN()-1-COLUMN($E113)),VLOOKUP($E113-17,AllData,COLUMN()-1-COLUMN($E113)),VLOOKUP($E113-18,AllData,COLUMN()-1-COLUMN($E113)),VLOOKUP($E113-19,AllData,COLUMN()-1-COLUMN($E113)),VLOOKUP($E113-20,AllData,COLUMN()-1-COLUMN($E113)),VLOOKUP($E113-21,AllData,COLUMN()-1-COLUMN($E113)),VLOOKUP($E113-22,AllData,COLUMN()-1-COLUMN($E113)),VLOOKUP($E113-23,AllData,COLUMN()-1-COLUMN($E113)),VLOOKUP($E113-24,AllData,COLUMN()-1-COLUMN($E113)),VLOOKUP($E113-25,AllData,COLUMN()-1-COLUMN($E113)),VLOOKUP($E113-26,AllData,COLUMN()-1-COLUMN($E113)),VLOOKUP($E113-27,AllData,COLUMN()-1-COLUMN($E113)),VLOOKUP($E113-28,AllData,COLUMN()-1-COLUMN($E113)),VLOOKUP($E113-29,AllData,COLUMN()-1-COLUMN($E113)))","v":12629.963875463049},{"$f":"VLOOKUP($E113,AllData,COLUMN()-2-COLUMN($E113))","v":375.61797236740881},{"$f":"OR('Cool Graph'!$H$1=35,'Cool Graph'!$H$1=36,'Cool Graph'!$H$1=37,'Cool Graph'!$H$1=38,'Cool Graph'!$H$1=39,'Cool Graph'!$H$1=40,'Cool Graph'!$H$1=41,'Cool Graph'!$H$1=42,'Cool Graph'!$H$1=43,'Cool Graph'!$H$1=44,'Cool Graph'!$H$1=45,'Cool Graph'!$H$1=46,'Cool Graph'!$H$1=47,'Cool Graph'!$H$1=58,'Cool Graph'!$H$1=66)","v":false},{"$f":"SUM(VLOOKUP($E113,AllData,COLUMN()-5-COLUMN($E113)),VLOOKUP($E113-1,AllData,COLUMN()-5-COLUMN($E113)),VLOOKUP($E113-2,AllData,COLUMN()-5-COLUMN($E113)),VLOOKUP($E113-3,AllData,COLUMN()-5-COLUMN($E113)),VLOOKUP($E113-4,AllData,COLUMN()-5-COLUMN($E113)),VLOOKUP($E113-5,AllData,COLUMN()-5-COLUMN($E113)),VLOOKUP($E113-6,AllData,COLUMN()-5-COLUMN($E113)))","v":398.87},{"$f":"SUM(VLOOKUP($E113,AllData,COLUMN()-6-COLUMN($E113)),VLOOKUP($E113-1,AllData,COLUMN()-6-COLUMN($E113)),VLOOKUP($E113-2,AllData,COLUMN()-6-COLUMN($E113)),VLOOKUP($E113-3,AllData,COLUMN()-6-COLUMN($E113)),VLOOKUP($E113-4,AllData,COLUMN()-6-COLUMN($E113)),VLOOKUP($E113-5,AllData,COLUMN()-6-COLUMN($E113)),VLOOKUP($E113-6,AllData,COLUMN()-6-COLUMN($E113)),VLOOKUP($E113-7,AllData,COLUMN()-6-COLUMN($E113)),VLOOKUP($E113-8,AllData,COLUMN()-6-COLUMN($E113)),VLOOKUP($E113-9,AllData,COLUMN()-6-COLUMN($E113)),VLOOKUP($E113-10,AllData,COLUMN()-6-COLUMN($E113)),VLOOKUP($E113-11,AllData,COLUMN()-6-COLUMN($E113)),VLOOKUP($E113-12,AllData,COLUMN()-6-COLUMN($E113)),VLOOKUP($E113-13,AllData,COLUMN()-6-COLUMN($E113)),VLOOKUP($E113-14,AllData,COLUMN()-6-COLUMN($E113)),VLOOKUP($E113-15,AllData,COLUMN()-6-COLUMN($E113)),VLOOKUP($E113-16,AllData,COLUMN()-6-COLUMN($E113)),VLOOKUP($E113-17,AllData,COLUMN()-6-COLUMN($E113)),VLOOKUP($E113-18,AllData,COLUMN()-6-COLUMN($E113)),VLOOKUP($E113-19,AllData,COLUMN()-6-COLUMN($E113)),VLOOKUP($E113-20,AllData,COLUMN()-6-COLUMN($E113)),VLOOKUP($E113-21,AllData,COLUMN()-6-COLUMN($E113)),VLOOKUP($E113-22,AllData,COLUMN()-6-COLUMN($E113)),VLOOKUP($E113-23,AllData,COLUMN()-6-COLUMN($E113)),VLOOKUP($E113-24,AllData,COLUMN()-6-COLUMN($E113)),VLOOKUP($E113-25,AllData,COLUMN()-6-COLUMN($E113)),VLOOKUP($E113-26,AllData,COLUMN()-6-COLUMN($E113)),VLOOKUP($E113-27,AllData,COLUMN()-6-COLUMN($E113)),VLOOKUP($E113-28,AllData,COLUMN()-6-COLUMN($E113)),VLOOKUP($E113-29,AllData,COLUMN()-6-COLUMN($E113)))","v":981.56000000000017},{"$f":"VLOOKUP($E113,AllData,COLUMN()-7-COLUMN($E113))","v":0},{"$f":"OR('Cool Graph'!$I$1=35,'Cool Graph'!$I$1=36,'Cool Graph'!$I$1=37,'Cool Graph'!$I$1=38,'Cool Graph'!$I$1=39,'Cool Graph'!$I$1=40,'Cool Graph'!$I$1=41,'Cool Graph'!$I$1=42,'Cool Graph'!$I$1=43,'Cool Graph'!$I$1=44,'Cool Graph'!$I$1=45,'Cool Graph'!$I$1=46,'Cool Graph'!$I$1=47,'Cool Graph'!$I$1=58,'Cool Graph'!$I$1=66)","v":false}]
["2011-10-21",{"$f":"OFFSET(OldSchoolJustValues!A114,0,'Cool Graph'!$H$1)","v":0},{"$f":"OFFSET(OldSchoolJustValues!A114,0,'Cool Graph'!$I$1)","v":535.20645079845985},null,{"$f":"IF(NewDate>EndDate,NA(),NewDate)","v":"2012-01-16"},{"$f":"IF($E114>EndDate,NA(),IF($K$2=TRUE,N114,IF('Cool Graph'!$B$17=1,N114,IF('Cool Graph'!$B$17=2,L114,IF('Cool Graph'!$B$17=3,M114,)))))","v":0},{"$f":"IF($E114>EndDate,NA(),IF($O$2=TRUE,J114,IF('Cool Graph'!$B$17=1,Data1!J114,IF('Cool Graph'!$B$17=2,Data1!H114,IF('Cool Graph'!$B$17=3,Data1!I114,)))))","v":163.83220016019453},{"$f":"SUM(VLOOKUP($E114,AllData,COLUMN()-COLUMN($E114)),VLOOKUP($E114-1,AllData,COLUMN()-COLUMN($E114)),VLOOKUP($E114-2,AllData,COLUMN()-COLUMN($E114)),VLOOKUP($E114-3,AllData,COLUMN()-COLUMN($E114)),VLOOKUP($E114-4,AllData,COLUMN()-COLUMN($E114)),VLOOKUP($E114-5,AllData,COLUMN()-COLUMN($E114)),VLOOKUP($E114-6,AllData,COLUMN()-COLUMN($E114)))","v":3532.6341807129011},{"$f":"SUM(VLOOKUP($E114,AllData,COLUMN()-1-COLUMN($E114)),VLOOKUP($E114-1,AllData,COLUMN()-1-COLUMN($E114)),VLOOKUP($E114-2,AllData,COLUMN()-1-COLUMN($E114)),VLOOKUP($E114-3,AllData,COLUMN()-1-COLUMN($E114)),VLOOKUP($E114-4,AllData,COLUMN()-1-COLUMN($E114)),VLOOKUP($E114-5,AllData,COLUMN()-1-COLUMN($E114)),VLOOKUP($E114-6,AllData,COLUMN()-1-COLUMN($E114)),VLOOKUP($E114-7,AllData,COLUMN()-1-COLUMN($E114)),VLOOKUP($E114-8,AllData,COLUMN()-1-COLUMN($E114)),VLOOKUP($E114-9,AllData,COLUMN()-1-COLUMN($E114)),VLOOKUP($E114-10,AllData,COLUMN()-1-COLUMN($E114)),VLOOKUP($E114-11,AllData,COLUMN()-1-COLUMN($E114)),VLOOKUP($E114-12,AllData,COLUMN()-1-COLUMN($E114)),VLOOKUP($E114-13,AllData,COLUMN()-1-COLUMN($E114)),VLOOKUP($E114-14,AllData,COLUMN()-1-COLUMN($E114)),VLOOKUP($E114-15,AllData,COLUMN()-1-COLUMN($E114)),VLOOKUP($E114-16,AllData,COLUMN()-1-COLUMN($E114)),VLOOKUP($E114-17,AllData,COLUMN()-1-COLUMN($E114)),VLOOKUP($E114-18,AllData,COLUMN()-1-COLUMN($E114)),VLOOKUP($E114-19,AllData,COLUMN()-1-COLUMN($E114)),VLOOKUP($E114-20,AllData,COLUMN()-1-COLUMN($E114)),VLOOKUP($E114-21,AllData,COLUMN()-1-COLUMN($E114)),VLOOKUP($E114-22,AllData,COLUMN()-1-COLUMN($E114)),VLOOKUP($E114-23,AllData,COLUMN()-1-COLUMN($E114)),VLOOKUP($E114-24,AllData,COLUMN()-1-COLUMN($E114)),VLOOKUP($E114-25,AllData,COLUMN()-1-COLUMN($E114)),VLOOKUP($E114-26,AllData,COLUMN()-1-COLUMN($E114)),VLOOKUP($E114-27,AllData,COLUMN()-1-COLUMN($E114)),VLOOKUP($E114-28,AllData,COLUMN()-1-COLUMN($E114)),VLOOKUP($E114-29,AllData,COLUMN()-1-COLUMN($E114)))","v":12480.089115611532},{"$f":"VLOOKUP($E114,AllData,COLUMN()-2-COLUMN($E114))","v":163.83220016019453},{"$f":"OR('Cool Graph'!$H$1=35,'Cool Graph'!$H$1=36,'Cool Graph'!$H$1=37,'Cool Graph'!$H$1=38,'Cool Graph'!$H$1=39,'Cool Graph'!$H$1=40,'Cool Graph'!$H$1=41,'Cool Graph'!$H$1=42,'Cool Graph'!$H$1=43,'Cool Graph'!$H$1=44,'Cool Graph'!$H$1=45,'Cool Graph'!$H$1=46,'Cool Graph'!$H$1=47,'Cool Graph'!$H$1=58,'Cool Graph'!$H$1=66)","v":false},{"$f":"SUM(VLOOKUP($E114,AllData,COLUMN()-5-COLUMN($E114)),VLOOKUP($E114-1,AllData,COLUMN()-5-COLUMN($E114)),VLOOKUP($E114-2,AllData,COLUMN()-5-COLUMN($E114)),VLOOKUP($E114-3,AllData,COLUMN()-5-COLUMN($E114)),VLOOKUP($E114-4,AllData,COLUMN()-5-COLUMN($E114)),VLOOKUP($E114-5,AllData,COLUMN()-5-COLUMN($E114)),VLOOKUP($E114-6,AllData,COLUMN()-5-COLUMN($E114)))","v":357.74},{"$f":"SUM(VLOOKUP($E114,AllData,COLUMN()-6-COLUMN($E114)),VLOOKUP($E114-1,AllData,COLUMN()-6-COLUMN($E114)),VLOOKUP($E114-2,AllData,COLUMN()-6-COLUMN($E114)),VLOOKUP($E114-3,AllData,COLUMN()-6-COLUMN($E114)),VLOOKUP($E114-4,AllData,COLUMN()-6-COLUMN($E114)),VLOOKUP($E114-5,AllData,COLUMN()-6-COLUMN($E114)),VLOOKUP($E114-6,AllData,COLUMN()-6-COLUMN($E114)),VLOOKUP($E114-7,AllData,COLUMN()-6-COLUMN($E114)),VLOOKUP($E114-8,AllData,COLUMN()-6-COLUMN($E114)),VLOOKUP($E114-9,AllData,COLUMN()-6-COLUMN($E114)),VLOOKUP($E114-10,AllData,COLUMN()-6-COLUMN($E114)),VLOOKUP($E114-11,AllData,COLUMN()-6-COLUMN($E114)),VLOOKUP($E114-12,AllData,COLUMN()-6-COLUMN($E114)),VLOOKUP($E114-13,AllData,COLUMN()-6-COLUMN($E114)),VLOOKUP($E114-14,AllData,COLUMN()-6-COLUMN($E114)),VLOOKUP($E114-15,AllData,COLUMN()-6-COLUMN($E114)),VLOOKUP($E114-16,AllData,COLUMN()-6-COLUMN($E114)),VLOOKUP($E114-17,AllData,COLUMN()-6-COLUMN($E114)),VLOOKUP($E114-18,AllData,COLUMN()-6-COLUMN($E114)),VLOOKUP($E114-19,AllData,COLUMN()-6-COLUMN($E114)),VLOOKUP($E114-20,AllData,COLUMN()-6-COLUMN($E114)),VLOOKUP($E114-21,AllData,COLUMN()-6-COLUMN($E114)),VLOOKUP($E114-22,AllData,COLUMN()-6-COLUMN($E114)),VLOOKUP($E114-23,AllData,COLUMN()-6-COLUMN($E114)),VLOOKUP($E114-24,AllData,COLUMN()-6-COLUMN($E114)),VLOOKUP($E114-25,AllData,COLUMN()-6-COLUMN($E114)),VLOOKUP($E114-26,AllData,COLUMN()-6-COLUMN($E114)),VLOOKUP($E114-27,AllData,COLUMN()-6-COLUMN($E114)),VLOOKUP($E114-28,AllData,COLUMN()-6-COLUMN($E114)),VLOOKUP($E114-29,AllData,COLUMN()-6-COLUMN($E114)))","v":919.58000000000015},{"$f":"VLOOKUP($E114,AllData,COLUMN()-7-COLUMN($E114))","v":0},{"$f":"OR('Cool Graph'!$I$1=35,'Cool Graph'!$I$1=36,'Cool Graph'!$I$1=37,'Cool Graph'!$I$1=38,'Cool Graph'!$I$1=39,'Cool Graph'!$I$1=40,'Cool Graph'!$I$1=41,'Cool Graph'!$I$1=42,'Cool Graph'!$I$1=43,'Cool Graph'!$I$1=44,'Cool Graph'!$I$1=45,'Cool Graph'!$I$1=46,'Cool Graph'!$I$1=47,'Cool Graph'!$I$1=58,'Cool Graph'!$I$1=66)","v":false}]
["2011-10-22",{"$f":"OFFSET(OldSchoolJustValues!A115,0,'Cool Graph'!$H$1)","v":0},{"$f":"OFFSET(OldSchoolJustValues!A115,0,'Cool Graph'!$I$1)","v":67.343254835803606},null,{"$f":"IF(NewDate>EndDate,NA(),NewDate)","v":"2012-01-17"},{"$f":"IF($E115>EndDate,NA(),IF($K$2=TRUE,N115,IF('Cool Graph'!$B$17=1,N115,IF('Cool Graph'!$B$17=2,L115,IF('Cool Graph'!$B$17=3,M115,)))))","v":229.19},{"$f":"IF($E115>EndDate,NA(),IF($O$2=TRUE,J115,IF('Cool Graph'!$B$17=1,Data1!J115,IF('Cool Graph'!$B$17=2,Data1!H115,IF('Cool Graph'!$B$17=3,Data1!I115,)))))","v":330.1948003434598},{"$f":"SUM(VLOOKUP($E115,AllData,COLUMN()-COLUMN($E115)),VLOOKUP($E115-1,AllData,COLUMN()-COLUMN($E115)),VLOOKUP($E115-2,AllData,COLUMN()-COLUMN($E115)),VLOOKUP($E115-3,AllData,COLUMN()-COLUMN($E115)),VLOOKUP($E115-4,AllData,COLUMN()-COLUMN($E115)),VLOOKUP($E115-5,AllData,COLUMN()-COLUMN($E115)),VLOOKUP($E115-6,AllData,COLUMN()-COLUMN($E115)))","v":2925.8575073895795},{"$f":"SUM(VLOOKUP($E115,AllData,COLUMN()-1-COLUMN($E115)),VLOOKUP($E115-1,AllData,COLUMN()-1-COLUMN($E115)),VLOOKUP($E115-2,AllData,COLUMN()-1-COLUMN($E115)),VLOOKUP($E115-3,AllData,COLUMN()-1-COLUMN($E115)),VLOOKUP($E115-4,AllData,COLUMN()-1-COLUMN($E115)),VLOOKUP($E115-5,AllData,COLUMN()-1-COLUMN($E115)),VLOOKUP($E115-6,AllData,COLUMN()-1-COLUMN($E115)),VLOOKUP($E115-7,AllData,COLUMN()-1-COLUMN($E115)),VLOOKUP($E115-8,AllData,COLUMN()-1-COLUMN($E115)),VLOOKUP($E115-9,AllData,COLUMN()-1-COLUMN($E115)),VLOOKUP($E115-10,AllData,COLUMN()-1-COLUMN($E115)),VLOOKUP($E115-11,AllData,COLUMN()-1-COLUMN($E115)),VLOOKUP($E115-12,AllData,COLUMN()-1-COLUMN($E115)),VLOOKUP($E115-13,AllData,COLUMN()-1-COLUMN($E115)),VLOOKUP($E115-14,AllData,COLUMN()-1-COLUMN($E115)),VLOOKUP($E115-15,AllData,COLUMN()-1-COLUMN($E115)),VLOOKUP($E115-16,AllData,COLUMN()-1-COLUMN($E115)),VLOOKUP($E115-17,AllData,COLUMN()-1-COLUMN($E115)),VLOOKUP($E115-18,AllData,COLUMN()-1-COLUMN($E115)),VLOOKUP($E115-19,AllData,COLUMN()-1-COLUMN($E115)),VLOOKUP($E115-20,AllData,COLUMN()-1-COLUMN($E115)),VLOOKUP($E115-21,AllData,COLUMN()-1-COLUMN($E115)),VLOOKUP($E115-22,AllData,COLUMN()-1-COLUMN($E115)),VLOOKUP($E115-23,AllData,COLUMN()-1-COLUMN($E115)),VLOOKUP($E115-24,AllData,COLUMN()-1-COLUMN($E115)),VLOOKUP($E115-25,AllData,COLUMN()-1-COLUMN($E115)),VLOOKUP($E115-26,AllData,COLUMN()-1-COLUMN($E115)),VLOOKUP($E115-27,AllData,COLUMN()-1-COLUMN($E115)),VLOOKUP($E115-28,AllData,COLUMN()-1-COLUMN($E115)),VLOOKUP($E115-29,AllData,COLUMN()-1-COLUMN($E115)))","v":12219.675420657904},{"$f":"VLOOKUP($E115,AllData,COLUMN()-2-COLUMN($E115))","v":330.1948003434598},{"$f":"OR('Cool Graph'!$H$1=35,'Cool Graph'!$H$1=36,'Cool Graph'!$H$1=37,'Cool Graph'!$H$1=38,'Cool Graph'!$H$1=39,'Cool Graph'!$H$1=40,'Cool Graph'!$H$1=41,'Cool Graph'!$H$1=42,'Cool Graph'!$H$1=43,'Cool Graph'!$H$1=44,'Cool Graph'!$H$1=45,'Cool Graph'!$H$1=46,'Cool Graph'!$H$1=47,'Cool Graph'!$H$1=58,'Cool Graph'!$H$1=66)","v":false},{"$f":"SUM(VLOOKUP($E115,AllData,COLUMN()-5-COLUMN($E115)),VLOOKUP($E115-1,AllData,COLUMN()-5-COLUMN($E115)),VLOOKUP($E115-2,AllData,COLUMN()-5-COLUMN($E115)),VLOOKUP($E115-3,AllData,COLUMN()-5-COLUMN($E115)),VLOOKUP($E115-4,AllData,COLUMN()-5-COLUMN($E115)),VLOOKUP($E115-5,AllData,COLUMN()-5-COLUMN($E115)),VLOOKUP($E115-6,AllData,COLUMN()-5-COLUMN($E115)))","v":554.77},{"$f":"SUM(VLOOKUP($E115,AllData,COLUMN()-6-COLUMN($E115)),VLOOKUP($E115-1,AllData,COLUMN()-6-COLUMN($E115)),VLOOKUP($E115-2,AllData,COLUMN()-6-COLUMN($E115)),VLOOKUP($E115-3,AllData,COLUMN()-6-COLUMN($E115)),VLOOKUP($E115-4,AllData,COLUMN()-6-COLUMN($E115)),VLOOKUP($E115-5,AllData,COLUMN()-6-COLUMN($E115)),VLOOKUP($E115-6,AllData,COLUMN()-6-COLUMN($E115)),VLOOKUP($E115-7,AllData,COLUMN()-6-COLUMN($E115)),VLOOKUP($E115-8,AllData,COLUMN()-6-COLUMN($E115)),VLOOKUP($E115-9,AllData,COLUMN()-6-COLUMN($E115)),VLOOKUP($E115-10,AllData,COLUMN()-6-COLUMN($E115)),VLOOKUP($E115-11,AllData,COLUMN()-6-COLUMN($E115)),VLOOKUP($E115-12,AllData,COLUMN()-6-COLUMN($E115)),VLOOKUP($E115-13,AllData,COLUMN()-6-COLUMN($E115)),VLOOKUP($E115-14,AllData,COLUMN()-6-COLUMN($E115)),VLOOKUP($E115-15,AllData,COLUMN()-6-COLUMN($E115)),VLOOKUP($E115-16,AllData,COLUMN()-6-COLUMN($E115)),VLOOKUP($E115-17,AllData,COLUMN()-6-COLUMN($E115)),VLOOKUP($E115-18,AllData,COLUMN()-6-COLUMN($E115)),VLOOKUP($E115-19,AllData,COLUMN()-6-COLUMN($E115)),VLOOKUP($E115-20,AllData,COLUMN()-6-COLUMN($E115)),VLOOKUP($E115-21,AllData,COLUMN()-6-COLUMN($E115)),VLOOKUP($E115-22,AllData,COLUMN()-6-COLUMN($E115)),VLOOKUP($E115-23,AllData,COLUMN()-6-COLUMN($E115)),VLOOKUP($E115-24,AllData,COLUMN()-6-COLUMN($E115)),VLOOKUP($E115-25,AllData,COLUMN()-6-COLUMN($E115)),VLOOKUP($E115-26,AllData,COLUMN()-6-COLUMN($E115)),VLOOKUP($E115-27,AllData,COLUMN()-6-COLUMN($E115)),VLOOKUP($E115-28,AllData,COLUMN()-6-COLUMN($E115)),VLOOKUP($E115-29,AllData,COLUMN()-6-COLUMN($E115)))","v":1146.1399999999996},{"$f":"VLOOKUP($E115,AllData,COLUMN()-7-COLUMN($E115))","v":229.19},{"$f":"OR('Cool Graph'!$I$1=35,'Cool Graph'!$I$1=36,'Cool Graph'!$I$1=37,'Cool Graph'!$I$1=38,'Cool Graph'!$I$1=39,'Cool Graph'!$I$1=40,'Cool Graph'!$I$1=41,'Cool Graph'!$I$1=42,'Cool Graph'!$I$1=43,'Cool Graph'!$I$1=44,'Cool Graph'!$I$1=45,'Cool Graph'!$I$1=46,'Cool Graph'!$I$1=47,'Cool Graph'!$I$1=58,'Cool Graph'!$I$1=66)","v":false}]
["2011-10-23",{"$f":"OFFSET(OldSchoolJustValues!A116,0,'Cool Graph'!$H$1)","v":0},{"$f":"OFFSET(OldSchoolJustValues!A116,0,'Cool Graph'!$I$1)","v":634.52307821636168},null,{"$f":"IF(NewDate>EndDate,NA(),NewDate)","v":"2012-01-18"},{"$f":"IF($E116>EndDate,NA(),IF($K$2=TRUE,N116,IF('Cool Graph'!$B$17=1,N116,IF('Cool Graph'!$B$17=2,L116,IF('Cool Graph'!$B$17=3,M116,)))))","v":110.83},{"$f":"IF($E116>EndDate,NA(),IF($O$2=TRUE,J116,IF('Cool Graph'!$B$17=1,Data1!J116,IF('Cool Graph'!$B$17=2,Data1!H116,IF('Cool Graph'!$B$17=3,Data1!I116,)))))","v":639.29991287487121},{"$f":"SUM(VLOOKUP($E116,AllData,COLUMN()-COLUMN($E116)),VLOOKUP($E116-1,AllData,COLUMN()-COLUMN($E116)),VLOOKUP($E116-2,AllData,COLUMN()-COLUMN($E116)),VLOOKUP($E116-3,AllData,COLUMN()-COLUMN($E116)),VLOOKUP($E116-4,AllData,COLUMN()-COLUMN($E116)),VLOOKUP($E116-5,AllData,COLUMN()-COLUMN($E116)),VLOOKUP($E116-6,AllData,COLUMN()-COLUMN($E116)))","v":3057.1161417423414},{"$f":"SUM(VLOOKUP($E116,AllData,COLUMN()-1-COLUMN($E116)),VLOOKUP($E116-1,AllData,COLUMN()-1-COLUMN($E116)),VLOOKUP($E116-2,AllData,COLUMN()-1-COLUMN($E116)),VLOOKUP($E116-3,AllData,COLUMN()-1-COLUMN($E116)),VLOOKUP($E116-4,AllData,COLUMN()-1-COLUMN($E116)),VLOOKUP($E116-5,AllData,COLUMN()-1-COLUMN($E116)),VLOOKUP($E116-6,AllData,COLUMN()-1-COLUMN($E116)),VLOOKUP($E116-7,AllData,COLUMN()-1-COLUMN($E116)),VLOOKUP($E116-8,AllData,COLUMN()-1-COLUMN($E116)),VLOOKUP($E116-9,AllData,COLUMN()-1-COLUMN($E116)),VLOOKUP($E116-10,AllData,COLUMN()-1-COLUMN($E116)),VLOOKUP($E116-11,AllData,COLUMN()-1-COLUMN($E116)),VLOOKUP($E116-12,AllData,COLUMN()-1-COLUMN($E116)),VLOOKUP($E116-13,AllData,COLUMN()-1-COLUMN($E116)),VLOOKUP($E116-14,AllData,COLUMN()-1-COLUMN($E116)),VLOOKUP($E116-15,AllData,COLUMN()-1-COLUMN($E116)),VLOOKUP($E116-16,AllData,COLUMN()-1-COLUMN($E116)),VLOOKUP($E116-17,AllData,COLUMN()-1-COLUMN($E116)),VLOOKUP($E116-18,AllData,COLUMN()-1-COLUMN($E116)),VLOOKUP($E116-19,AllData,COLUMN()-1-COLUMN($E116)),VLOOKUP($E116-20,AllData,COLUMN()-1-COLUMN($E116)),VLOOKUP($E116-21,AllData,COLUMN()-1-COLUMN($E116)),VLOOKUP($E116-22,AllData,COLUMN()-1-COLUMN($E116)),VLOOKUP($E116-23,AllData,COLUMN()-1-COLUMN($E116)),VLOOKUP($E116-24,AllData,COLUMN()-1-COLUMN($E116)),VLOOKUP($E116-25,AllData,COLUMN()-1-COLUMN($E116)),VLOOKUP($E116-26,AllData,COLUMN()-1-COLUMN($E116)),VLOOKUP($E116-27,AllData,COLUMN()-1-COLUMN($E116)),VLOOKUP($E116-28,AllData,COLUMN()-1-COLUMN($E116)),VLOOKUP($E116-29,AllData,COLUMN()-1-COLUMN($E116)))","v":11581.643000022257},{"$f":"VLOOKUP($E116,AllData,COLUMN()-2-COLUMN($E116))","v":639.29991287487121},{"$f":"OR('Cool Graph'!$H$1=35,'Cool Graph'!$H$1=36,'Cool Graph'!$H$1=37,'Cool Graph'!$H$1=38,'Cool Graph'!$H$1=39,'Cool Graph'!$H$1=40,'Cool Graph'!$H$1=41,'Cool Graph'!$H$1=42,'Cool Graph'!$H$1=43,'Cool Graph'!$H$1=44,'Cool Graph'!$H$1=45,'Cool Graph'!$H$1=46,'Cool Graph'!$H$1=47,'Cool Graph'!$H$1=58,'Cool Graph'!$H$1=66)","v":false},{"$f":"SUM(VLOOKUP($E116,AllData,COLUMN()-5-COLUMN($E116)),VLOOKUP($E116-1,AllData,COLUMN()-5-COLUMN($E116)),VLOOKUP($E116-2,AllData,COLUMN()-5-COLUMN($E116)),VLOOKUP($E116-3,AllData,COLUMN()-5-COLUMN($E116)),VLOOKUP($E116-4,AllData,COLUMN()-5-COLUMN($E116)),VLOOKUP($E116-5,AllData,COLUMN()-5-COLUMN($E116)),VLOOKUP($E116-6,AllData,COLUMN()-5-COLUMN($E116)))","v":503.53999999999996},{"$f":"SUM(VLOOKUP($E116,AllData,COLUMN()-6-COLUMN($E116)),VLOOKUP($E116-1,AllData,COLUMN()-6-COLUMN($E116)),VLOOKUP($E116-2,AllData,COLUMN()-6-COLUMN($E116)),VLOOKUP($E116-3,AllData,COLUMN()-6-COLUMN($E116)),VLOOKUP($E116-4,AllData,COLUMN()-6-COLUMN($E116)),VLOOKUP($E116-5,AllData,COLUMN()-6-COLUMN($E116)),VLOOKUP($E116-6,AllData,COLUMN()-6-COLUMN($E116)),VLOOKUP($E116-7,AllData,COLUMN()-6-COLUMN($E116)),VLOOKUP($E116-8,AllData,COLUMN()-6-COLUMN($E116)),VLOOKUP($E116-9,AllData,COLUMN()-6-COLUMN($E116)),VLOOKUP($E116-10,AllData,COLUMN()-6-COLUMN($E116)),VLOOKUP($E116-11,AllData,COLUMN()-6-COLUMN($E116)),VLOOKUP($E116-12,AllData,COLUMN()-6-COLUMN($E116)),VLOOKUP($E116-13,AllData,COLUMN()-6-COLUMN($E116)),VLOOKUP($E116-14,AllData,COLUMN()-6-COLUMN($E116)),VLOOKUP($E116-15,AllData,COLUMN()-6-COLUMN($E116)),VLOOKUP($E116-16,AllData,COLUMN()-6-COLUMN($E116)),VLOOKUP($E116-17,AllData,COLUMN()-6-COLUMN($E116)),VLOOKUP($E116-18,AllData,COLUMN()-6-COLUMN($E116)),VLOOKUP($E116-19,AllData,COLUMN()-6-COLUMN($E116)),VLOOKUP($E116-20,AllData,COLUMN()-6-COLUMN($E116)),VLOOKUP($E116-21,AllData,COLUMN()-6-COLUMN($E116)),VLOOKUP($E116-22,AllData,COLUMN()-6-COLUMN($E116)),VLOOKUP($E116-23,AllData,COLUMN()-6-COLUMN($E116)),VLOOKUP($E116-24,AllData,COLUMN()-6-COLUMN($E116)),VLOOKUP($E116-25,AllData,COLUMN()-6-COLUMN($E116)),VLOOKUP($E116-26,AllData,COLUMN()-6-COLUMN($E116)),VLOOKUP($E116-27,AllData,COLUMN()-6-COLUMN($E116)),VLOOKUP($E116-28,AllData,COLUMN()-6-COLUMN($E116)),VLOOKUP($E116-29,AllData,COLUMN()-6-COLUMN($E116)))","v":1256.9699999999996},{"$f":"VLOOKUP($E116,AllData,COLUMN()-7-COLUMN($E116))","v":110.83},{"$f":"OR('Cool Graph'!$I$1=35,'Cool Graph'!$I$1=36,'Cool Graph'!$I$1=37,'Cool Graph'!$I$1=38,'Cool Graph'!$I$1=39,'Cool Graph'!$I$1=40,'Cool Graph'!$I$1=41,'Cool Graph'!$I$1=42,'Cool Graph'!$I$1=43,'Cool Graph'!$I$1=44,'Cool Graph'!$I$1=45,'Cool Graph'!$I$1=46,'Cool Graph'!$I$1=47,'Cool Graph'!$I$1=58,'Cool Graph'!$I$1=66)","v":false}]
["2011-10-24",{"$f":"OFFSET(OldSchoolJustValues!A117,0,'Cool Graph'!$H$1)","v":0},{"$f":"OFFSET(OldSchoolJustValues!A117,0,'Cool Graph'!$I$1)","v":156.37722306722176},null,{"$f":"IF(NewDate>EndDate,NA(),NewDate)","v":"2012-01-19"},{"$f":"IF($E117>EndDate,NA(),IF($K$2=TRUE,N117,IF('Cool Graph'!$B$17=1,N117,IF('Cool Graph'!$B$17=2,L117,IF('Cool Graph'!$B$17=3,M117,)))))","v":61.26},{"$f":"IF($E117>EndDate,NA(),IF($O$2=TRUE,J117,IF('Cool Graph'!$B$17=1,Data1!J117,IF('Cool Graph'!$B$17=2,Data1!H117,IF('Cool Graph'!$B$17=3,Data1!I117,)))))","v":961.29401200304164},{"$f":"SUM(VLOOKUP($E117,AllData,COLUMN()-COLUMN($E117)),VLOOKUP($E117-1,AllData,COLUMN()-COLUMN($E117)),VLOOKUP($E117-2,AllData,COLUMN()-COLUMN($E117)),VLOOKUP($E117-3,AllData,COLUMN()-COLUMN($E117)),VLOOKUP($E117-4,AllData,COLUMN()-COLUMN($E117)),VLOOKUP($E117-5,AllData,COLUMN()-COLUMN($E117)),VLOOKUP($E117-6,AllData,COLUMN()-COLUMN($E117)))","v":3604.0559891003122},{"$f":"SUM(VLOOKUP($E117,AllData,COLUMN()-1-COLUMN($E117)),VLOOKUP($E117-1,AllData,COLUMN()-1-COLUMN($E117)),VLOOKUP($E117-2,AllData,COLUMN()-1-COLUMN($E117)),VLOOKUP($E117-3,AllData,COLUMN()-1-COLUMN($E117)),VLOOKUP($E117-4,AllData,COLUMN()-1-COLUMN($E117)),VLOOKUP($E117-5,AllData,COLUMN()-1-COLUMN($E117)),VLOOKUP($E117-6,AllData,COLUMN()-1-COLUMN($E117)),VLOOKUP($E117-7,AllData,COLUMN()-1-COLUMN($E117)),VLOOKUP($E117-8,AllData,COLUMN()-1-COLUMN($E117)),VLOOKUP($E117-9,AllData,COLUMN()-1-COLUMN($E117)),VLOOKUP($E117-10,AllData,COLUMN()-1-COLUMN($E117)),VLOOKUP($E117-11,AllData,COLUMN()-1-COLUMN($E117)),VLOOKUP($E117-12,AllData,COLUMN()-1-COLUMN($E117)),VLOOKUP($E117-13,AllData,COLUMN()-1-COLUMN($E117)),VLOOKUP($E117-14,AllData,COLUMN()-1-COLUMN($E117)),VLOOKUP($E117-15,AllData,COLUMN()-1-COLUMN($E117)),VLOOKUP($E117-16,AllData,COLUMN()-1-COLUMN($E117)),VLOOKUP($E117-17,AllData,COLUMN()-1-COLUMN($E117)),VLOOKUP($E117-18,AllData,COLUMN()-1-COLUMN($E117)),VLOOKUP($E117-19,AllData,COLUMN()-1-COLUMN($E117)),VLOOKUP($E117-20,AllData,COLUMN()-1-COLUMN($E117)),VLOOKUP($E117-21,AllData,COLUMN()-1-COLUMN($E117)),VLOOKUP($E117-22,AllData,COLUMN()-1-COLUMN($E117)),VLOOKUP($E117-23,AllData,COLUMN()-1-COLUMN($E117)),VLOOKUP($E117-24,AllData,COLUMN()-1-COLUMN($E117)),VLOOKUP($E117-25,AllData,COLUMN()-1-COLUMN($E117)),VLOOKUP($E117-26,AllData,COLUMN()-1-COLUMN($E117)),VLOOKUP($E117-27,AllData,COLUMN()-1-COLUMN($E117)),VLOOKUP($E117-28,AllData,COLUMN()-1-COLUMN($E117)),VLOOKUP($E117-29,AllData,COLUMN()-1-COLUMN($E117)))","v":12586.404901007909},{"$f":"VLOOKUP($E117,AllData,COLUMN()-2-COLUMN($E117))","v":961.29401200304164},{"$f":"OR('Cool Graph'!$H$1=35,'Cool Graph'!$H$1=36,'Cool Graph'!$H$1=37,'Cool Graph'!$H$1=38,'Cool Graph'!$H$1=39,'Cool Graph'!$H$1=40,'Cool Graph'!$H$1=41,'Cool Graph'!$H$1=42,'Cool Graph'!$H$1=43,'Cool Graph'!$H$1=44,'Cool Graph'!$H$1=45,'Cool Graph'!$H$1=46,'Cool Graph'!$H$1=47,'Cool Graph'!$H$1=58,'Cool Graph'!$H$1=66)","v":false},{"$f":"SUM(VLOOKUP($E117,AllData,COLUMN()-5-COLUMN($E117)),VLOOKUP($E117-1,AllData,COLUMN()-5-COLUMN($E117)),VLOOKUP($E117-2,AllData,COLUMN()-5-COLUMN($E117)),VLOOKUP($E117-3,AllData,COLUMN()-5-COLUMN($E117)),VLOOKUP($E117-4,AllData,COLUMN()-5-COLUMN($E117)),VLOOKUP($E117-5,AllData,COLUMN()-5-COLUMN($E117)),VLOOKUP($E117-6,AllData,COLUMN()-5-COLUMN($E117)))","v":480.44999999999993},{"$f":"SUM(VLOOKUP($E117,AllData,COLUMN()-6-COLUMN($E117)),VLOOKUP($E117-1,AllData,COLUMN()-6-COLUMN($E117)),VLOOKUP($E117-2,AllData,COLUMN()-6-COLUMN($E117)),VLOOKUP($E117-3,AllData,COLUMN()-6-COLUMN($E117)),VLOOKUP($E117-4,AllData,COLUMN()-6-COLUMN($E117)),VLOOKUP($E117-5,AllData,COLUMN()-6-COLUMN($E117)),VLOOKUP($E117-6,AllData,COLUMN()-6-COLUMN($E117)),VLOOKUP($E117-7,AllData,COLUMN()-6-COLUMN($E117)),VLOOKUP($E117-8,AllData,COLUMN()-6-COLUMN($E117)),VLOOKUP($E117-9,AllData,COLUMN()-6-COLUMN($E117)),VLOOKUP($E117-10,AllData,COLUMN()-6-COLUMN($E117)),VLOOKUP($E117-11,AllData,COLUMN()-6-COLUMN($E117)),VLOOKUP($E117-12,AllData,COLUMN()-6-COLUMN($E117)),VLOOKUP($E117-13,AllData,COLUMN()-6-COLUMN($E117)),VLOOKUP($E117-14,AllData,COLUMN()-6-COLUMN($E117)),VLOOKUP($E117-15,AllData,COLUMN()-6-COLUMN($E117)),VLOOKUP($E117-16,AllData,COLUMN()-6-COLUMN($E117)),VLOOKUP($E117-17,AllData,COLUMN()-6-COLUMN($E117)),VLOOKUP($E117-18,AllData,COLUMN()-6-COLUMN($E117)),VLOOKUP($E117-19,AllData,COLUMN()-6-COLUMN($E117)),VLOOKUP($E117-20,AllData,COLUMN()-6-COLUMN($E117)),VLOOKUP($E117-21,AllData,COLUMN()-6-COLUMN($E117)),VLOOKUP($E117-22,AllData,COLUMN()-6-COLUMN($E117)),VLOOKUP($E117-23,AllData,COLUMN()-6-COLUMN($E117)),VLOOKUP($E117-24,AllData,COLUMN()-6-COLUMN($E117)),VLOOKUP($E117-25,AllData,COLUMN()-6-COLUMN($E117)),VLOOKUP($E117-26,AllData,COLUMN()-6-COLUMN($E117)),VLOOKUP($E117-27,AllData,COLUMN()-6-COLUMN($E117)),VLOOKUP($E117-28,AllData,COLUMN()-6-COLUMN($E117)),VLOOKUP($E117-29,AllData,COLUMN()-6-COLUMN($E117)))","v":1318.2299999999993},{"$f":"VLOOKUP($E117,AllData,COLUMN()-7-COLUMN($E117))","v":61.26},{"$f":"OR('Cool Graph'!$I$1=35,'Cool Graph'!$I$1=36,'Cool Graph'!$I$1=37,'Cool Graph'!$I$1=38,'Cool Graph'!$I$1=39,'Cool Graph'!$I$1=40,'Cool Graph'!$I$1=41,'Cool Graph'!$I$1=42,'Cool Graph'!$I$1=43,'Cool Graph'!$I$1=44,'Cool Graph'!$I$1=45,'Cool Graph'!$I$1=46,'Cool Graph'!$I$1=47,'Cool Graph'!$I$1=58,'Cool Graph'!$I$1=66)","v":false}]
["2011-10-25",{"$f":"OFFSET(OldSchoolJustValues!A118,0,'Cool Graph'!$H$1)","v":0},{"$f":"OFFSET(OldSchoolJustValues!A118,0,'Cool Graph'!$I$1)","v":82.976568544754429},null,{"$f":"IF(NewDate>EndDate,NA(),NewDate)","v":"2012-01-20"},{"$f":"IF($E118>EndDate,NA(),IF($K$2=TRUE,N118,IF('Cool Graph'!$B$17=1,N118,IF('Cool Graph'!$B$17=2,L118,IF('Cool Graph'!$B$17=3,M118,)))))","v":24.42},{"$f":"IF($E118>EndDate,NA(),IF($O$2=TRUE,J118,IF('Cool Graph'!$B$17=1,Data1!J118,IF('Cool Graph'!$B$17=2,Data1!H118,IF('Cool Graph'!$B$17=3,Data1!I118,)))))","v":542.83502033733566},{"$f":"SUM(VLOOKUP($E118,AllData,COLUMN()-COLUMN($E118)),VLOOKUP($E118-1,AllData,COLUMN()-COLUMN($E118)),VLOOKUP($E118-2,AllData,COLUMN()-COLUMN($E118)),VLOOKUP($E118-3,AllData,COLUMN()-COLUMN($E118)),VLOOKUP($E118-4,AllData,COLUMN()-COLUMN($E118)),VLOOKUP($E118-5,AllData,COLUMN()-COLUMN($E118)),VLOOKUP($E118-6,AllData,COLUMN()-COLUMN($E118)))","v":3435.1809304644667},{"$f":"SUM(VLOOKUP($E118,AllData,COLUMN()-1-COLUMN($E118)),VLOOKUP($E118-1,AllData,COLUMN()-1-COLUMN($E118)),VLOOKUP($E118-2,AllData,COLUMN()-1-COLUMN($E118)),VLOOKUP($E118-3,AllData,COLUMN()-1-COLUMN($E118)),VLOOKUP($E118-4,AllData,COLUMN()-1-COLUMN($E118)),VLOOKUP($E118-5,AllData,COLUMN()-1-COLUMN($E118)),VLOOKUP($E118-6,AllData,COLUMN()-1-COLUMN($E118)),VLOOKUP($E118-7,AllData,COLUMN()-1-COLUMN($E118)),VLOOKUP($E118-8,AllData,COLUMN()-1-COLUMN($E118)),VLOOKUP($E118-9,AllData,COLUMN()-1-COLUMN($E118)),VLOOKUP($E118-10,AllData,COLUMN()-1-COLUMN($E118)),VLOOKUP($E118-11,AllData,COLUMN()-1-COLUMN($E118)),VLOOKUP($E118-12,AllData,COLUMN()-1-COLUMN($E118)),VLOOKUP($E118-13,AllData,COLUMN()-1-COLUMN($E118)),VLOOKUP($E118-14,AllData,COLUMN()-1-COLUMN($E118)),VLOOKUP($E118-15,AllData,COLUMN()-1-COLUMN($E118)),VLOOKUP($E118-16,AllData,COLUMN()-1-COLUMN($E118)),VLOOKUP($E118-17,AllData,COLUMN()-1-COLUMN($E118)),VLOOKUP($E118-18,AllData,COLUMN()-1-COLUMN($E118)),VLOOKUP($E118-19,AllData,COLUMN()-1-COLUMN($E118)),VLOOKUP($E118-20,AllData,COLUMN()-1-COLUMN($E118)),VLOOKUP($E118-21,AllData,COLUMN()-1-COLUMN($E118)),VLOOKUP($E118-22,AllData,COLUMN()-1-COLUMN($E118)),VLOOKUP($E118-23,AllData,COLUMN()-1-COLUMN($E118)),VLOOKUP($E118-24,AllData,COLUMN()-1-COLUMN($E118)),VLOOKUP($E118-25,AllData,COLUMN()-1-COLUMN($E118)),VLOOKUP($E118-26,AllData,COLUMN()-1-COLUMN($E118)),VLOOKUP($E118-27,AllData,COLUMN()-1-COLUMN($E118)),VLOOKUP($E118-28,AllData,COLUMN()-1-COLUMN($E118)),VLOOKUP($E118-29,AllData,COLUMN()-1-COLUMN($E118)))","v":12820.209204930092},{"$f":"VLOOKUP($E118,AllData,COLUMN()-2-COLUMN($E118))","v":542.83502033733566},{"$f":"OR('Cool Graph'!$H$1=35,'Cool Graph'!$H$1=36,'Cool Graph'!$H$1=37,'Cool Graph'!$H$1=38,'Cool Graph'!$H$1=39,'Cool Graph'!$H$1=40,'Cool Graph'!$H$1=41,'Cool Graph'!$H$1=42,'Cool Graph'!$H$1=43,'Cool Graph'!$H$1=44,'Cool Graph'!$H$1=45,'Cool Graph'!$H$1=46,'Cool Graph'!$H$1=47,'Cool Graph'!$H$1=58,'Cool Graph'!$H$1=66)","v":false},{"$f":"SUM(VLOOKUP($E118,AllData,COLUMN()-5-COLUMN($E118)),VLOOKUP($E118-1,AllData,COLUMN()-5-COLUMN($E118)),VLOOKUP($E118-2,AllData,COLUMN()-5-COLUMN($E118)),VLOOKUP($E118-3,AllData,COLUMN()-5-COLUMN($E118)),VLOOKUP($E118-4,AllData,COLUMN()-5-COLUMN($E118)),VLOOKUP($E118-5,AllData,COLUMN()-5-COLUMN($E118)),VLOOKUP($E118-6,AllData,COLUMN()-5-COLUMN($E118)))","v":425.72999999999996},{"$f":"SUM(VLOOKUP($E118,AllData,COLUMN()-6-COLUMN($E118)),VLOOKUP($E118-1,AllData,COLUMN()-6-COLUMN($E118)),VLOOKUP($E118-2,AllData,COLUMN()-6-COLUMN($E118)),VLOOKUP($E118-3,AllData,COLUMN()-6-COLUMN($E118)),VLOOKUP($E118-4,AllData,COLUMN()-6-COLUMN($E118)),VLOOKUP($E118-5,AllData,COLUMN()-6-COLUMN($E118)),VLOOKUP($E118-6,AllData,COLUMN()-6-COLUMN($E118)),VLOOKUP($E118-7,AllData,COLUMN()-6-COLUMN($E118)),VLOOKUP($E118-8,AllData,COLUMN()-6-COLUMN($E118)),VLOOKUP($E118-9,AllData,COLUMN()-6-COLUMN($E118)),VLOOKUP($E118-10,AllData,COLUMN()-6-COLUMN($E118)),VLOOKUP($E118-11,AllData,COLUMN()-6-COLUMN($E118)),VLOOKUP($E118-12,AllData,COLUMN()-6-COLUMN($E118)),VLOOKUP($E118-13,AllData,COLUMN()-6-COLUMN($E118)),VLOOKUP($E118-14,AllData,COLUMN()-6-COLUMN($E118)),VLOOKUP($E118-15,AllData,COLUMN()-6-COLUMN($E118)),VLOOKUP($E118-16,AllData,COLUMN()-6-COLUMN($E118)),VLOOKUP($E118-17,AllData,COLUMN()-6-COLUMN($E118)),VLOOKUP($E118-18,AllData,COLUMN()-6-COLUMN($E118)),VLOOKUP($E118-19,AllData,COLUMN()-6-COLUMN($E118)),VLOOKUP($E118-20,AllData,COLUMN()-6-COLUMN($E118)),VLOOKUP($E118-21,AllData,COLUMN()-6-COLUMN($E118)),VLOOKUP($E118-22,AllData,COLUMN()-6-COLUMN($E118)),VLOOKUP($E118-23,AllData,COLUMN()-6-COLUMN($E118)),VLOOKUP($E118-24,AllData,COLUMN()-6-COLUMN($E118)),VLOOKUP($E118-25,AllData,COLUMN()-6-COLUMN($E118)),VLOOKUP($E118-26,AllData,COLUMN()-6-COLUMN($E118)),VLOOKUP($E118-27,AllData,COLUMN()-6-COLUMN($E118)),VLOOKUP($E118-28,AllData,COLUMN()-6-COLUMN($E118)),VLOOKUP($E118-29,AllData,COLUMN()-6-COLUMN($E118)))","v":1342.6499999999994},{"$f":"VLOOKUP($E118,AllData,COLUMN()-7-COLUMN($E118))","v":24.42},{"$f":"OR('Cool Graph'!$I$1=35,'Cool Graph'!$I$1=36,'Cool Graph'!$I$1=37,'Cool Graph'!$I$1=38,'Cool Graph'!$I$1=39,'Cool Graph'!$I$1=40,'Cool Graph'!$I$1=41,'Cool Graph'!$I$1=42,'Cool Graph'!$I$1=43,'Cool Graph'!$I$1=44,'Cool Graph'!$I$1=45,'Cool Graph'!$I$1=46,'Cool Graph'!$I$1=47,'Cool Graph'!$I$1=58,'Cool Graph'!$I$1=66)","v":false}]
["2011-10-26",{"$f":"OFFSET(OldSchoolJustValues!A119,0,'Cool Graph'!$H$1)","v":0},{"$f":"OFFSET(OldSchoolJustValues!A119,0,'Cool Graph'!$I$1)","v":120.53656854475449},null,{"$f":"IF(NewDate>EndDate,NA(),NewDate)","v":"2012-01-21"},{"$f":"IF($E119>EndDate,NA(),IF($K$2=TRUE,N119,IF('Cool Graph'!$B$17=1,N119,IF('Cool Graph'!$B$17=2,L119,IF('Cool Graph'!$B$17=3,M119,)))))","v":124.82},{"$f":"IF($E119>EndDate,NA(),IF($O$2=TRUE,J119,IF('Cool Graph'!$B$17=1,Data1!J119,IF('Cool Graph'!$B$17=2,Data1!H119,IF('Cool Graph'!$B$17=3,Data1!I119,)))))","v":112.3779365085187},{"$f":"SUM(VLOOKUP($E119,AllData,COLUMN()-COLUMN($E119)),VLOOKUP($E119-1,AllData,COLUMN()-COLUMN($E119)),VLOOKUP($E119-2,AllData,COLUMN()-COLUMN($E119)),VLOOKUP($E119-3,AllData,COLUMN()-COLUMN($E119)),VLOOKUP($E119-4,AllData,COLUMN()-COLUMN($E119)),VLOOKUP($E119-5,AllData,COLUMN()-COLUMN($E119)),VLOOKUP($E119-6,AllData,COLUMN()-COLUMN($E119)))","v":3125.4518545948304},{"$f":"SUM(VLOOKUP($E119,AllData,COLUMN()-1-COLUMN($E119)),VLOOKUP($E119-1,AllData,COLUMN()-1-COLUMN($E119)),VLOOKUP($E119-2,AllData,COLUMN()-1-COLUMN($E119)),VLOOKUP($E119-3,AllData,COLUMN()-1-COLUMN($E119)),VLOOKUP($E119-4,AllData,COLUMN()-1-COLUMN($E119)),VLOOKUP($E119-5,AllData,COLUMN()-1-COLUMN($E119)),VLOOKUP($E119-6,AllData,COLUMN()-1-COLUMN($E119)),VLOOKUP($E119-7,AllData,COLUMN()-1-COLUMN($E119)),VLOOKUP($E119-8,AllData,COLUMN()-1-COLUMN($E119)),VLOOKUP($E119-9,AllData,COLUMN()-1-COLUMN($E119)),VLOOKUP($E119-10,AllData,COLUMN()-1-COLUMN($E119)),VLOOKUP($E119-11,AllData,COLUMN()-1-COLUMN($E119)),VLOOKUP($E119-12,AllData,COLUMN()-1-COLUMN($E119)),VLOOKUP($E119-13,AllData,COLUMN()-1-COLUMN($E119)),VLOOKUP($E119-14,AllData,COLUMN()-1-COLUMN($E119)),VLOOKUP($E119-15,AllData,COLUMN()-1-COLUMN($E119)),VLOOKUP($E119-16,AllData,COLUMN()-1-COLUMN($E119)),VLOOKUP($E119-17,AllData,COLUMN()-1-COLUMN($E119)),VLOOKUP($E119-18,AllData,COLUMN()-1-COLUMN($E119)),VLOOKUP($E119-19,AllData,COLUMN()-1-COLUMN($E119)),VLOOKUP($E119-20,AllData,COLUMN()-1-COLUMN($E119)),VLOOKUP($E119-21,AllData,COLUMN()-1-COLUMN($E119)),VLOOKUP($E119-22,AllData,COLUMN()-1-COLUMN($E119)),VLOOKUP($E119-23,AllData,COLUMN()-1-COLUMN($E119)),VLOOKUP($E119-24,AllData,COLUMN()-1-COLUMN($E119)),VLOOKUP($E119-25,AllData,COLUMN()-1-COLUMN($E119)),VLOOKUP($E119-26,AllData,COLUMN()-1-COLUMN($E119)),VLOOKUP($E119-27,AllData,COLUMN()-1-COLUMN($E119)),VLOOKUP($E119-28,AllData,COLUMN()-1-COLUMN($E119)),VLOOKUP($E119-29,AllData,COLUMN()-1-COLUMN($E119)))","v":12829.31655806098},{"$f":"VLOOKUP($E119,AllData,COLUMN()-2-COLUMN($E119))","v":112.3779365085187},{"$f":"OR('Cool Graph'!$H$1=35,'Cool Graph'!$H$1=36,'Cool Graph'!$H$1=37,'Cool Graph'!$H$1=38,'Cool Graph'!$H$1=39,'Cool Graph'!$H$1=40,'Cool Graph'!$H$1=41,'Cool Graph'!$H$1=42,'Cool Graph'!$H$1=43,'Cool Graph'!$H$1=44,'Cool Graph'!$H$1=45,'Cool Graph'!$H$1=46,'Cool Graph'!$H$1=47,'Cool Graph'!$H$1=58,'Cool Graph'!$H$1=66)","v":false},{"$f":"SUM(VLOOKUP($E119,AllData,COLUMN()-5-COLUMN($E119)),VLOOKUP($E119-1,AllData,COLUMN()-5-COLUMN($E119)),VLOOKUP($E119-2,AllData,COLUMN()-5-COLUMN($E119)),VLOOKUP($E119-3,AllData,COLUMN()-5-COLUMN($E119)),VLOOKUP($E119-4,AllData,COLUMN()-5-COLUMN($E119)),VLOOKUP($E119-5,AllData,COLUMN()-5-COLUMN($E119)),VLOOKUP($E119-6,AllData,COLUMN()-5-COLUMN($E119)))","v":550.52},{"$f":"SUM(VLOOKUP($E119,AllData,COLUMN()-6-COLUMN($E119)),VLOOKUP($E119-1,AllData,COLUMN()-6-COLUMN($E119)),VLOOKUP($E119-2,AllData,COLUMN()-6-COLUMN($E119)),VLOOKUP($E119-3,AllData,COLUMN()-6-COLUMN($E119)),VLOOKUP($E119-4,AllData,COLUMN()-6-COLUMN($E119)),VLOOKUP($E119-5,AllData,COLUMN()-6-COLUMN($E119)),VLOOKUP($E119-6,AllData,COLUMN()-6-COLUMN($E119)),VLOOKUP($E119-7,AllData,COLUMN()-6-COLUMN($E119)),VLOOKUP($E119-8,AllData,COLUMN()-6-COLUMN($E119)),VLOOKUP($E119-9,AllData,COLUMN()-6-COLUMN($E119)),VLOOKUP($E119-10,AllData,COLUMN()-6-COLUMN($E119)),VLOOKUP($E119-11,AllData,COLUMN()-6-COLUMN($E119)),VLOOKUP($E119-12,AllData,COLUMN()-6-COLUMN($E119)),VLOOKUP($E119-13,AllData,COLUMN()-6-COLUMN($E119)),VLOOKUP($E119-14,AllData,COLUMN()-6-COLUMN($E119)),VLOOKUP($E119-15,AllData,COLUMN()-6-COLUMN($E119)),VLOOKUP($E119-16,AllData,COLUMN()-6-COLUMN($E119)),VLOOKUP($E119-17,AllData,COLUMN()-6-COLUMN($E119)),VLOOKUP($E119-18,AllData,COLUMN()-6-COLUMN($E119)),VLOOKUP($E119-19,AllData,COLUMN()-6-COLUMN($E119)),VLOOKUP($E119-20,AllData,COLUMN()-6-COLUMN($E119)),VLOOKUP($E119-21,AllData,COLUMN()-6-COLUMN($E119)),VLOOKUP($E119-22,AllData,COLUMN()-6-COLUMN($E119)),VLOOKUP($E119-23,AllData,COLUMN()-6-COLUMN($E119)),VLOOKUP($E119-24,AllData,COLUMN()-6-COLUMN($E119)),VLOOKUP($E119-25,AllData,COLUMN()-6-COLUMN($E119)),VLOOKUP($E119-26,AllData,COLUMN()-6-COLUMN($E119)),VLOOKUP($E119-27,AllData,COLUMN()-6-COLUMN($E119)),VLOOKUP($E119-28,AllData,COLUMN()-6-COLUMN($E119)),VLOOKUP($E119-29,AllData,COLUMN()-6-COLUMN($E119)))","v":1467.4699999999996},{"$f":"VLOOKUP($E119,AllData,COLUMN()-7-COLUMN($E119))","v":124.82},{"$f":"OR('Cool Graph'!$I$1=35,'Cool Graph'!$I$1=36,'Cool Graph'!$I$1=37,'Cool Graph'!$I$1=38,'Cool Graph'!$I$1=39,'Cool Graph'!$I$1=40,'Cool Graph'!$I$1=41,'Cool Graph'!$I$1=42,'Cool Graph'!$I$1=43,'Cool Graph'!$I$1=44,'Cool Graph'!$I$1=45,'Cool Graph'!$I$1=46,'Cool Graph'!$I$1=47,'Cool Graph'!$I$1=58,'Cool Graph'!$I$1=66)","v":false}]
["2011-10-27",{"$f":"OFFSET(OldSchoolJustValues!A120,0,'Cool Graph'!$H$1)","v":0},{"$f":"OFFSET(OldSchoolJustValues!A120,0,'Cool Graph'!$I$1)","v":549.38645079845992},null,{"$f":"IF(NewDate>EndDate,NA(),NewDate)","v":"2012-01-22"},{"$f":"IF($E120>EndDate,NA(),IF($K$2=TRUE,N120,IF('Cool Graph'!$B$17=1,N120,IF('Cool Graph'!$B$17=2,L120,IF('Cool Graph'!$B$17=3,M120,)))))","v":46.06},{"$f":"IF($E120>EndDate,NA(),IF($O$2=TRUE,J120,IF('Cool Graph'!$B$17=1,Data1!J120,IF('Cool Graph'!$B$17=2,Data1!H120,IF('Cool Graph'!$B$17=3,Data1!I120,)))))","v":786.89336551640235},{"$f":"SUM(VLOOKUP($E120,AllData,COLUMN()-COLUMN($E120)),VLOOKUP($E120-1,AllData,COLUMN()-COLUMN($E120)),VLOOKUP($E120-2,AllData,COLUMN()-COLUMN($E120)),VLOOKUP($E120-3,AllData,COLUMN()-COLUMN($E120)),VLOOKUP($E120-4,AllData,COLUMN()-COLUMN($E120)),VLOOKUP($E120-5,AllData,COLUMN()-COLUMN($E120)),VLOOKUP($E120-6,AllData,COLUMN()-COLUMN($E120)))","v":3536.7272477438241},{"$f":"SUM(VLOOKUP($E120,AllData,COLUMN()-1-COLUMN($E120)),VLOOKUP($E120-1,AllData,COLUMN()-1-COLUMN($E120)),VLOOKUP($E120-2,AllData,COLUMN()-1-COLUMN($E120)),VLOOKUP($E120-3,AllData,COLUMN()-1-COLUMN($E120)),VLOOKUP($E120-4,AllData,COLUMN()-1-COLUMN($E120)),VLOOKUP($E120-5,AllData,COLUMN()-1-COLUMN($E120)),VLOOKUP($E120-6,AllData,COLUMN()-1-COLUMN($E120)),VLOOKUP($E120-7,AllData,COLUMN()-1-COLUMN($E120)),VLOOKUP($E120-8,AllData,COLUMN()-1-COLUMN($E120)),VLOOKUP($E120-9,AllData,COLUMN()-1-COLUMN($E120)),VLOOKUP($E120-10,AllData,COLUMN()-1-COLUMN($E120)),VLOOKUP($E120-11,AllData,COLUMN()-1-COLUMN($E120)),VLOOKUP($E120-12,AllData,COLUMN()-1-COLUMN($E120)),VLOOKUP($E120-13,AllData,COLUMN()-1-COLUMN($E120)),VLOOKUP($E120-14,AllData,COLUMN()-1-COLUMN($E120)),VLOOKUP($E120-15,AllData,COLUMN()-1-COLUMN($E120)),VLOOKUP($E120-16,AllData,COLUMN()-1-COLUMN($E120)),VLOOKUP($E120-17,AllData,COLUMN()-1-COLUMN($E120)),VLOOKUP($E120-18,AllData,COLUMN()-1-COLUMN($E120)),VLOOKUP($E120-19,AllData,COLUMN()-1-COLUMN($E120)),VLOOKUP($E120-20,AllData,COLUMN()-1-COLUMN($E120)),VLOOKUP($E120-21,AllData,COLUMN()-1-COLUMN($E120)),VLOOKUP($E120-22,AllData,COLUMN()-1-COLUMN($E120)),VLOOKUP($E120-23,AllData,COLUMN()-1-COLUMN($E120)),VLOOKUP($E120-24,AllData,COLUMN()-1-COLUMN($E120)),VLOOKUP($E120-25,AllData,COLUMN()-1-COLUMN($E120)),VLOOKUP($E120-26,AllData,COLUMN()-1-COLUMN($E120)),VLOOKUP($E120-27,AllData,COLUMN()-1-COLUMN($E120)),VLOOKUP($E120-28,AllData,COLUMN()-1-COLUMN($E120)),VLOOKUP($E120-29,AllData,COLUMN()-1-COLUMN($E120)))","v":13318.310292107497},{"$f":"VLOOKUP($E120,AllData,COLUMN()-2-COLUMN($E120))","v":786.89336551640235},{"$f":"OR('Cool Graph'!$H$1=35,'Cool Graph'!$H$1=36,'Cool Graph'!$H$1=37,'Cool Graph'!$H$1=38,'Cool Graph'!$H$1=39,'Cool Graph'!$H$1=40,'Cool Graph'!$H$1=41,'Cool Graph'!$H$1=42,'Cool Graph'!$H$1=43,'Cool Graph'!$H$1=44,'Cool Graph'!$H$1=45,'Cool Graph'!$H$1=46,'Cool Graph'!$H$1=47,'Cool Graph'!$H$1=58,'Cool Graph'!$H$1=66)","v":false},{"$f":"SUM(VLOOKUP($E120,AllData,COLUMN()-5-COLUMN($E120)),VLOOKUP($E120-1,AllData,COLUMN()-5-COLUMN($E120)),VLOOKUP($E120-2,AllData,COLUMN()-5-COLUMN($E120)),VLOOKUP($E120-3,AllData,COLUMN()-5-COLUMN($E120)),VLOOKUP($E120-4,AllData,COLUMN()-5-COLUMN($E120)),VLOOKUP($E120-5,AllData,COLUMN()-5-COLUMN($E120)),VLOOKUP($E120-6,AllData,COLUMN()-5-COLUMN($E120)))","v":596.57999999999993},{"$f":"SUM(VLOOKUP($E120,AllData,COLUMN()-6-COLUMN($E120)),VLOOKUP($E120-1,AllData,COLUMN()-6-COLUMN($E120)),VLOOKUP($E120-2,AllData,COLUMN()-6-COLUMN($E120)),VLOOKUP($E120-3,AllData,COLUMN()-6-COLUMN($E120)),VLOOKUP($E120-4,AllData,COLUMN()-6-COLUMN($E120)),VLOOKUP($E120-5,AllData,COLUMN()-6-COLUMN($E120)),VLOOKUP($E120-6,AllData,COLUMN()-6-COLUMN($E120)),VLOOKUP($E120-7,AllData,COLUMN()-6-COLUMN($E120)),VLOOKUP($E120-8,AllData,COLUMN()-6-COLUMN($E120)),VLOOKUP($E120-9,AllData,COLUMN()-6-COLUMN($E120)),VLOOKUP($E120-10,AllData,COLUMN()-6-COLUMN($E120)),VLOOKUP($E120-11,AllData,COLUMN()-6-COLUMN($E120)),VLOOKUP($E120-12,AllData,COLUMN()-6-COLUMN($E120)),VLOOKUP($E120-13,AllData,COLUMN()-6-COLUMN($E120)),VLOOKUP($E120-14,AllData,COLUMN()-6-COLUMN($E120)),VLOOKUP($E120-15,AllData,COLUMN()-6-COLUMN($E120)),VLOOKUP($E120-16,AllData,COLUMN()-6-COLUMN($E120)),VLOOKUP($E120-17,AllData,COLUMN()-6-COLUMN($E120)),VLOOKUP($E120-18,AllData,COLUMN()-6-COLUMN($E120)),VLOOKUP($E120-19,AllData,COLUMN()-6-COLUMN($E120)),VLOOKUP($E120-20,AllData,COLUMN()-6-COLUMN($E120)),VLOOKUP($E120-21,AllData,COLUMN()-6-COLUMN($E120)),VLOOKUP($E120-22,AllData,COLUMN()-6-COLUMN($E120)),VLOOKUP($E120-23,AllData,COLUMN()-6-COLUMN($E120)),VLOOKUP($E120-24,AllData,COLUMN()-6-COLUMN($E120)),VLOOKUP($E120-25,AllData,COLUMN()-6-COLUMN($E120)),VLOOKUP($E120-26,AllData,COLUMN()-6-COLUMN($E120)),VLOOKUP($E120-27,AllData,COLUMN()-6-COLUMN($E120)),VLOOKUP($E120-28,AllData,COLUMN()-6-COLUMN($E120)),VLOOKUP($E120-29,AllData,COLUMN()-6-COLUMN($E120)))","v":1513.5299999999995},{"$f":"VLOOKUP($E120,AllData,COLUMN()-7-COLUMN($E120))","v":46.06},{"$f":"OR('Cool Graph'!$I$1=35,'Cool Graph'!$I$1=36,'Cool Graph'!$I$1=37,'Cool Graph'!$I$1=38,'Cool Graph'!$I$1=39,'Cool Graph'!$I$1=40,'Cool Graph'!$I$1=41,'Cool Graph'!$I$1=42,'Cool Graph'!$I$1=43,'Cool Graph'!$I$1=44,'Cool Graph'!$I$1=45,'Cool Graph'!$I$1=46,'Cool Graph'!$I$1=47,'Cool Graph'!$I$1=58,'Cool Graph'!$I$1=66)","v":false}]
["2011-10-28",{"$f":"OFFSET(OldSchoolJustValues!A121,0,'Cool Graph'!$H$1)","v":0},{"$f":"OFFSET(OldSchoolJustValues!A121,0,'Cool Graph'!$I$1)","v":225.23988225370536},null,{"$f":"IF(NewDate>EndDate,NA(),NewDate)","v":"2012-01-23"},{"$f":"IF($E121>EndDate,NA(),IF($K$2=TRUE,N121,IF('Cool Graph'!$B$17=1,N121,IF('Cool Graph'!$B$17=2,L121,IF('Cool Graph'!$B$17=3,M121,)))))","v":37.79},{"$f":"IF($E121>EndDate,NA(),IF($O$2=TRUE,J121,IF('Cool Graph'!$B$17=1,Data1!J121,IF('Cool Graph'!$B$17=2,Data1!H121,IF('Cool Graph'!$B$17=3,Data1!I121,)))))","v":1191.3066253754705},{"$f":"SUM(VLOOKUP($E121,AllData,COLUMN()-COLUMN($E121)),VLOOKUP($E121-1,AllData,COLUMN()-COLUMN($E121)),VLOOKUP($E121-2,AllData,COLUMN()-COLUMN($E121)),VLOOKUP($E121-3,AllData,COLUMN()-COLUMN($E121)),VLOOKUP($E121-4,AllData,COLUMN()-COLUMN($E121)),VLOOKUP($E121-5,AllData,COLUMN()-COLUMN($E121)),VLOOKUP($E121-6,AllData,COLUMN()-COLUMN($E121)))","v":4564.2016729591005},{"$f":"SUM(VLOOKUP($E121,AllData,COLUMN()-1-COLUMN($E121)),VLOOKUP($E121-1,AllData,COLUMN()-1-COLUMN($E121)),VLOOKUP($E121-2,AllData,COLUMN()-1-COLUMN($E121)),VLOOKUP($E121-3,AllData,COLUMN()-1-COLUMN($E121)),VLOOKUP($E121-4,AllData,COLUMN()-1-COLUMN($E121)),VLOOKUP($E121-5,AllData,COLUMN()-1-COLUMN($E121)),VLOOKUP($E121-6,AllData,COLUMN()-1-COLUMN($E121)),VLOOKUP($E121-7,AllData,COLUMN()-1-COLUMN($E121)),VLOOKUP($E121-8,AllData,COLUMN()-1-COLUMN($E121)),VLOOKUP($E121-9,AllData,COLUMN()-1-COLUMN($E121)),VLOOKUP($E121-10,AllData,COLUMN()-1-COLUMN($E121)),VLOOKUP($E121-11,AllData,COLUMN()-1-COLUMN($E121)),VLOOKUP($E121-12,AllData,COLUMN()-1-COLUMN($E121)),VLOOKUP($E121-13,AllData,COLUMN()-1-COLUMN($E121)),VLOOKUP($E121-14,AllData,COLUMN()-1-COLUMN($E121)),VLOOKUP($E121-15,AllData,COLUMN()-1-COLUMN($E121)),VLOOKUP($E121-16,AllData,COLUMN()-1-COLUMN($E121)),VLOOKUP($E121-17,AllData,COLUMN()-1-COLUMN($E121)),VLOOKUP($E121-18,AllData,COLUMN()-1-COLUMN($E121)),VLOOKUP($E121-19,AllData,COLUMN()-1-COLUMN($E121)),VLOOKUP($E121-20,AllData,COLUMN()-1-COLUMN($E121)),VLOOKUP($E121-21,AllData,COLUMN()-1-COLUMN($E121)),VLOOKUP($E121-22,AllData,COLUMN()-1-COLUMN($E121)),VLOOKUP($E121-23,AllData,COLUMN()-1-COLUMN($E121)),VLOOKUP($E121-24,AllData,COLUMN()-1-COLUMN($E121)),VLOOKUP($E121-25,AllData,COLUMN()-1-COLUMN($E121)),VLOOKUP($E121-26,AllData,COLUMN()-1-COLUMN($E121)),VLOOKUP($E121-27,AllData,COLUMN()-1-COLUMN($E121)),VLOOKUP($E121-28,AllData,COLUMN()-1-COLUMN($E121)),VLOOKUP($E121-29,AllData,COLUMN()-1-COLUMN($E121)))","v":14219.194739946815},{"$f":"VLOOKUP($E121,AllData,COLUMN()-2-COLUMN($E121))","v":1191.3066253754705},{"$f":"OR('Cool Graph'!$H$1=35,'Cool Graph'!$H$1=36,'Cool Graph'!$H$1=37,'Cool Graph'!$H$1=38,'Cool Graph'!$H$1=39,'Cool Graph'!$H$1=40,'Cool Graph'!$H$1=41,'Cool Graph'!$H$1=42,'Cool Graph'!$H$1=43,'Cool Graph'!$H$1=44,'Cool Graph'!$H$1=45,'Cool Graph'!$H$1=46,'Cool Graph'!$H$1=47,'Cool Graph'!$H$1=58,'Cool Graph'!$H$1=66)","v":false},{"$f":"SUM(VLOOKUP($E121,AllData,COLUMN()-5-COLUMN($E121)),VLOOKUP($E121-1,AllData,COLUMN()-5-COLUMN($E121)),VLOOKUP($E121-2,AllData,COLUMN()-5-COLUMN($E121)),VLOOKUP($E121-3,AllData,COLUMN()-5-COLUMN($E121)),VLOOKUP($E121-4,AllData,COLUMN()-5-COLUMN($E121)),VLOOKUP($E121-5,AllData,COLUMN()-5-COLUMN($E121)),VLOOKUP($E121-6,AllData,COLUMN()-5-COLUMN($E121)))","v":634.36999999999989},{"$f":"SUM(VLOOKUP($E121,AllData,COLUMN()-6-COLUMN($E121)),VLOOKUP($E121-1,AllData,COLUMN()-6-COLUMN($E121)),VLOOKUP($E121-2,AllData,COLUMN()-6-COLUMN($E121)),VLOOKUP($E121-3,AllData,COLUMN()-6-COLUMN($E121)),VLOOKUP($E121-4,AllData,COLUMN()-6-COLUMN($E121)),VLOOKUP($E121-5,AllData,COLUMN()-6-COLUMN($E121)),VLOOKUP($E121-6,AllData,COLUMN()-6-COLUMN($E121)),VLOOKUP($E121-7,AllData,COLUMN()-6-COLUMN($E121)),VLOOKUP($E121-8,AllData,COLUMN()-6-COLUMN($E121)),VLOOKUP($E121-9,AllData,COLUMN()-6-COLUMN($E121)),VLOOKUP($E121-10,AllData,COLUMN()-6-COLUMN($E121)),VLOOKUP($E121-11,AllData,COLUMN()-6-COLUMN($E121)),VLOOKUP($E121-12,AllData,COLUMN()-6-COLUMN($E121)),VLOOKUP($E121-13,AllData,COLUMN()-6-COLUMN($E121)),VLOOKUP($E121-14,AllData,COLUMN()-6-COLUMN($E121)),VLOOKUP($E121-15,AllData,COLUMN()-6-COLUMN($E121)),VLOOKUP($E121-16,AllData,COLUMN()-6-COLUMN($E121)),VLOOKUP($E121-17,AllData,COLUMN()-6-COLUMN($E121)),VLOOKUP($E121-18,AllData,COLUMN()-6-COLUMN($E121)),VLOOKUP($E121-19,AllData,COLUMN()-6-COLUMN($E121)),VLOOKUP($E121-20,AllData,COLUMN()-6-COLUMN($E121)),VLOOKUP($E121-21,AllData,COLUMN()-6-COLUMN($E121)),VLOOKUP($E121-22,AllData,COLUMN()-6-COLUMN($E121)),VLOOKUP($E121-23,AllData,COLUMN()-6-COLUMN($E121)),VLOOKUP($E121-24,AllData,COLUMN()-6-COLUMN($E121)),VLOOKUP($E121-25,AllData,COLUMN()-6-COLUMN($E121)),VLOOKUP($E121-26,AllData,COLUMN()-6-COLUMN($E121)),VLOOKUP($E121-27,AllData,COLUMN()-6-COLUMN($E121)),VLOOKUP($E121-28,AllData,COLUMN()-6-COLUMN($E121)),VLOOKUP($E121-29,AllData,COLUMN()-6-COLUMN($E121)))","v":1551.3199999999995},{"$f":"VLOOKUP($E121,AllData,COLUMN()-7-COLUMN($E121))","v":37.79},{"$f":"OR('Cool Graph'!$I$1=35,'Cool Graph'!$I$1=36,'Cool Graph'!$I$1=37,'Cool Graph'!$I$1=38,'Cool Graph'!$I$1=39,'Cool Graph'!$I$1=40,'Cool Graph'!$I$1=41,'Cool Graph'!$I$1=42,'Cool Graph'!$I$1=43,'Cool Graph'!$I$1=44,'Cool Graph'!$I$1=45,'Cool Graph'!$I$1=46,'Cool Graph'!$I$1=47,'Cool Graph'!$I$1=58,'Cool Graph'!$I$1=66)","v":false}]
["2011-10-29",{"$f":"OFFSET(OldSchoolJustValues!A122,0,'Cool Graph'!$H$1)","v":0},{"$f":"OFFSET(OldSchoolJustValues!A122,0,'Cool Graph'!$I$1)","v":169.00656854475446},null,{"$f":"IF(NewDate>EndDate,NA(),NewDate)","v":"2012-01-24"},{"$f":"IF($E122>EndDate,NA(),IF($K$2=TRUE,N122,IF('Cool Graph'!$B$17=1,N122,IF('Cool Graph'!$B$17=2,L122,IF('Cool Graph'!$B$17=3,M122,)))))","v":15.02},{"$f":"IF($E122>EndDate,NA(),IF($O$2=TRUE,J122,IF('Cool Graph'!$B$17=1,Data1!J122,IF('Cool Graph'!$B$17=2,Data1!H122,IF('Cool Graph'!$B$17=3,Data1!I122,)))))","v":822.21800189534724},{"$f":"SUM(VLOOKUP($E122,AllData,COLUMN()-COLUMN($E122)),VLOOKUP($E122-1,AllData,COLUMN()-COLUMN($E122)),VLOOKUP($E122-2,AllData,COLUMN()-COLUMN($E122)),VLOOKUP($E122-3,AllData,COLUMN()-COLUMN($E122)),VLOOKUP($E122-4,AllData,COLUMN()-COLUMN($E122)),VLOOKUP($E122-5,AllData,COLUMN()-COLUMN($E122)),VLOOKUP($E122-6,AllData,COLUMN()-COLUMN($E122)))","v":5056.2248745109873},{"$f":"SUM(VLOOKUP($E122,AllData,COLUMN()-1-COLUMN($E122)),VLOOKUP($E122-1,AllData,COLUMN()-1-COLUMN($E122)),VLOOKUP($E122-2,AllData,COLUMN()-1-COLUMN($E122)),VLOOKUP($E122-3,AllData,COLUMN()-1-COLUMN($E122)),VLOOKUP($E122-4,AllData,COLUMN()-1-COLUMN($E122)),VLOOKUP($E122-5,AllData,COLUMN()-1-COLUMN($E122)),VLOOKUP($E122-6,AllData,COLUMN()-1-COLUMN($E122)),VLOOKUP($E122-7,AllData,COLUMN()-1-COLUMN($E122)),VLOOKUP($E122-8,AllData,COLUMN()-1-COLUMN($E122)),VLOOKUP($E122-9,AllData,COLUMN()-1-COLUMN($E122)),VLOOKUP($E122-10,AllData,COLUMN()-1-COLUMN($E122)),VLOOKUP($E122-11,AllData,COLUMN()-1-COLUMN($E122)),VLOOKUP($E122-12,AllData,COLUMN()-1-COLUMN($E122)),VLOOKUP($E122-13,AllData,COLUMN()-1-COLUMN($E122)),VLOOKUP($E122-14,AllData,COLUMN()-1-COLUMN($E122)),VLOOKUP($E122-15,AllData,COLUMN()-1-COLUMN($E122)),VLOOKUP($E122-16,AllData,COLUMN()-1-COLUMN($E122)),VLOOKUP($E122-17,AllData,COLUMN()-1-COLUMN($E122)),VLOOKUP($E122-18,AllData,COLUMN()-1-COLUMN($E122)),VLOOKUP($E122-19,AllData,COLUMN()-1-COLUMN($E122)),VLOOKUP($E122-20,AllData,COLUMN()-1-COLUMN($E122)),VLOOKUP($E122-21,AllData,COLUMN()-1-COLUMN($E122)),VLOOKUP($E122-22,AllData,COLUMN()-1-COLUMN($E122)),VLOOKUP($E122-23,AllData,COLUMN()-1-COLUMN($E122)),VLOOKUP($E122-24,AllData,COLUMN()-1-COLUMN($E122)),VLOOKUP($E122-25,AllData,COLUMN()-1-COLUMN($E122)),VLOOKUP($E122-26,AllData,COLUMN()-1-COLUMN($E122)),VLOOKUP($E122-27,AllData,COLUMN()-1-COLUMN($E122)),VLOOKUP($E122-28,AllData,COLUMN()-1-COLUMN($E122)),VLOOKUP($E122-29,AllData,COLUMN()-1-COLUMN($E122)))","v":14800.580564306012},{"$f":"VLOOKUP($E122,AllData,COLUMN()-2-COLUMN($E122))","v":822.21800189534724},{"$f":"OR('Cool Graph'!$H$1=35,'Cool Graph'!$H$1=36,'Cool Graph'!$H$1=37,'Cool Graph'!$H$1=38,'Cool Graph'!$H$1=39,'Cool Graph'!$H$1=40,'Cool Graph'!$H$1=41,'Cool Graph'!$H$1=42,'Cool Graph'!$H$1=43,'Cool Graph'!$H$1=44,'Cool Graph'!$H$1=45,'Cool Graph'!$H$1=46,'Cool Graph'!$H$1=47,'Cool Graph'!$H$1=58,'Cool Graph'!$H$1=66)","v":false},{"$f":"SUM(VLOOKUP($E122,AllData,COLUMN()-5-COLUMN($E122)),VLOOKUP($E122-1,AllData,COLUMN()-5-COLUMN($E122)),VLOOKUP($E122-2,AllData,COLUMN()-5-COLUMN($E122)),VLOOKUP($E122-3,AllData,COLUMN()-5-COLUMN($E122)),VLOOKUP($E122-4,AllData,COLUMN()-5-COLUMN($E122)),VLOOKUP($E122-5,AllData,COLUMN()-5-COLUMN($E122)),VLOOKUP($E122-6,AllData,COLUMN()-5-COLUMN($E122)))","v":420.2},{"$f":"SUM(VLOOKUP($E122,AllData,COLUMN()-6-COLUMN($E122)),VLOOKUP($E122-1,AllData,COLUMN()-6-COLUMN($E122)),VLOOKUP($E122-2,AllData,COLUMN()-6-COLUMN($E122)),VLOOKUP($E122-3,AllData,COLUMN()-6-COLUMN($E122)),VLOOKUP($E122-4,AllData,COLUMN()-6-COLUMN($E122)),VLOOKUP($E122-5,AllData,COLUMN()-6-COLUMN($E122)),VLOOKUP($E122-6,AllData,COLUMN()-6-COLUMN($E122)),VLOOKUP($E122-7,AllData,COLUMN()-6-COLUMN($E122)),VLOOKUP($E122-8,AllData,COLUMN()-6-COLUMN($E122)),VLOOKUP($E122-9,AllData,COLUMN()-6-COLUMN($E122)),VLOOKUP($E122-10,AllData,COLUMN()-6-COLUMN($E122)),VLOOKUP($E122-11,AllData,COLUMN()-6-COLUMN($E122)),VLOOKUP($E122-12,AllData,COLUMN()-6-COLUMN($E122)),VLOOKUP($E122-13,AllData,COLUMN()-6-COLUMN($E122)),VLOOKUP($E122-14,AllData,COLUMN()-6-COLUMN($E122)),VLOOKUP($E122-15,AllData,COLUMN()-6-COLUMN($E122)),VLOOKUP($E122-16,AllData,COLUMN()-6-COLUMN($E122)),VLOOKUP($E122-17,AllData,COLUMN()-6-COLUMN($E122)),VLOOKUP($E122-18,AllData,COLUMN()-6-COLUMN($E122)),VLOOKUP($E122-19,AllData,COLUMN()-6-COLUMN($E122)),VLOOKUP($E122-20,AllData,COLUMN()-6-COLUMN($E122)),VLOOKUP($E122-21,AllData,COLUMN()-6-COLUMN($E122)),VLOOKUP($E122-22,AllData,COLUMN()-6-COLUMN($E122)),VLOOKUP($E122-23,AllData,COLUMN()-6-COLUMN($E122)),VLOOKUP($E122-24,AllData,COLUMN()-6-COLUMN($E122)),VLOOKUP($E122-25,AllData,COLUMN()-6-COLUMN($E122)),VLOOKUP($E122-26,AllData,COLUMN()-6-COLUMN($E122)),VLOOKUP($E122-27,AllData,COLUMN()-6-COLUMN($E122)),VLOOKUP($E122-28,AllData,COLUMN()-6-COLUMN($E122)),VLOOKUP($E122-29,AllData,COLUMN()-6-COLUMN($E122)))","v":1566.34},{"$f":"VLOOKUP($E122,AllData,COLUMN()-7-COLUMN($E122))","v":15.02},{"$f":"OR('Cool Graph'!$I$1=35,'Cool Graph'!$I$1=36,'Cool Graph'!$I$1=37,'Cool Graph'!$I$1=38,'Cool Graph'!$I$1=39,'Cool Graph'!$I$1=40,'Cool Graph'!$I$1=41,'Cool Graph'!$I$1=42,'Cool Graph'!$I$1=43,'Cool Graph'!$I$1=44,'Cool Graph'!$I$1=45,'Cool Graph'!$I$1=46,'Cool Graph'!$I$1=47,'Cool Graph'!$I$1=58,'Cool Graph'!$I$1=66)","v":false}]
["2011-10-30",{"$f":"OFFSET(OldSchoolJustValues!A123,0,'Cool Graph'!$H$1)","v":0},{"$f":"OFFSET(OldSchoolJustValues!A123,0,'Cool Graph'!$I$1)","v":172.29988225370536},null,{"$f":"IF(NewDate>EndDate,NA(),NewDate)","v":"2012-01-25"},{"$f":"IF($E123>EndDate,NA(),IF($K$2=TRUE,N123,IF('Cool Graph'!$B$17=1,N123,IF('Cool Graph'!$B$17=2,L123,IF('Cool Graph'!$B$17=3,M123,)))))","v":31.59},{"$f":"IF($E123>EndDate,NA(),IF($O$2=TRUE,J123,IF('Cool Graph'!$B$17=1,Data1!J123,IF('Cool Graph'!$B$17=2,Data1!H123,IF('Cool Graph'!$B$17=3,Data1!I123,)))))","v":1243.7262229058033},{"$f":"SUM(VLOOKUP($E123,AllData,COLUMN()-COLUMN($E123)),VLOOKUP($E123-1,AllData,COLUMN()-COLUMN($E123)),VLOOKUP($E123-2,AllData,COLUMN()-COLUMN($E123)),VLOOKUP($E123-3,AllData,COLUMN()-COLUMN($E123)),VLOOKUP($E123-4,AllData,COLUMN()-COLUMN($E123)),VLOOKUP($E123-5,AllData,COLUMN()-COLUMN($E123)),VLOOKUP($E123-6,AllData,COLUMN()-COLUMN($E123)))","v":5660.6511845419191},{"$f":"SUM(VLOOKUP($E123,AllData,COLUMN()-1-COLUMN($E123)),VLOOKUP($E123-1,AllData,COLUMN()-1-COLUMN($E123)),VLOOKUP($E123-2,AllData,COLUMN()-1-COLUMN($E123)),VLOOKUP($E123-3,AllData,COLUMN()-1-COLUMN($E123)),VLOOKUP($E123-4,AllData,COLUMN()-1-COLUMN($E123)),VLOOKUP($E123-5,AllData,COLUMN()-1-COLUMN($E123)),VLOOKUP($E123-6,AllData,COLUMN()-1-COLUMN($E123)),VLOOKUP($E123-7,AllData,COLUMN()-1-COLUMN($E123)),VLOOKUP($E123-8,AllData,COLUMN()-1-COLUMN($E123)),VLOOKUP($E123-9,AllData,COLUMN()-1-COLUMN($E123)),VLOOKUP($E123-10,AllData,COLUMN()-1-COLUMN($E123)),VLOOKUP($E123-11,AllData,COLUMN()-1-COLUMN($E123)),VLOOKUP($E123-12,AllData,COLUMN()-1-COLUMN($E123)),VLOOKUP($E123-13,AllData,COLUMN()-1-COLUMN($E123)),VLOOKUP($E123-14,AllData,COLUMN()-1-COLUMN($E123)),VLOOKUP($E123-15,AllData,COLUMN()-1-COLUMN($E123)),VLOOKUP($E123-16,AllData,COLUMN()-1-COLUMN($E123)),VLOOKUP($E123-17,AllData,COLUMN()-1-COLUMN($E123)),VLOOKUP($E123-18,AllData,COLUMN()-1-COLUMN($E123)),VLOOKUP($E123-19,AllData,COLUMN()-1-COLUMN($E123)),VLOOKUP($E123-20,AllData,COLUMN()-1-COLUMN($E123)),VLOOKUP($E123-21,AllData,COLUMN()-1-COLUMN($E123)),VLOOKUP($E123-22,AllData,COLUMN()-1-COLUMN($E123)),VLOOKUP($E123-23,AllData,COLUMN()-1-COLUMN($E123)),VLOOKUP($E123-24,AllData,COLUMN()-1-COLUMN($E123)),VLOOKUP($E123-25,AllData,COLUMN()-1-COLUMN($E123)),VLOOKUP($E123-26,AllData,COLUMN()-1-COLUMN($E123)),VLOOKUP($E123-27,AllData,COLUMN()-1-COLUMN($E123)),VLOOKUP($E123-28,AllData,COLUMN()-1-COLUMN($E123)),VLOOKUP($E123-29,AllData,COLUMN()-1-COLUMN($E123)))","v":16155.575635747786},{"$f":"VLOOKUP($E123,AllData,COLUMN()-2-COLUMN($E123))","v":1243.7262229058033},{"$f":"OR('Cool Graph'!$H$1=35,'Cool Graph'!$H$1=36,'Cool Graph'!$H$1=37,'Cool Graph'!$H$1=38,'Cool Graph'!$H$1=39,'Cool Graph'!$H$1=40,'Cool Graph'!$H$1=41,'Cool Graph'!$H$1=42,'Cool Graph'!$H$1=43,'Cool Graph'!$H$1=44,'Cool Graph'!$H$1=45,'Cool Graph'!$H$1=46,'Cool Graph'!$H$1=47,'Cool Graph'!$H$1=58,'Cool Graph'!$H$1=66)","v":false},{"$f":"SUM(VLOOKUP($E123,AllData,COLUMN()-5-COLUMN($E123)),VLOOKUP($E123-1,AllData,COLUMN()-5-COLUMN($E123)),VLOOKUP($E123-2,AllData,COLUMN()-5-COLUMN($E123)),VLOOKUP($E123-3,AllData,COLUMN()-5-COLUMN($E123)),VLOOKUP($E123-4,AllData,COLUMN()-5-COLUMN($E123)),VLOOKUP($E123-5,AllData,COLUMN()-5-COLUMN($E123)),VLOOKUP($E123-6,AllData,COLUMN()-5-COLUMN($E123)))","v":340.96},{"$f":"SUM(VLOOKUP($E123,AllData,COLUMN()-6-COLUMN($E123)),VLOOKUP($E123-1,AllData,COLUMN()-6-COLUMN($E123)),VLOOKUP($E123-2,AllData,COLUMN()-6-COLUMN($E123)),VLOOKUP($E123-3,AllData,COLUMN()-6-COLUMN($E123)),VLOOKUP($E123-4,AllData,COLUMN()-6-COLUMN($E123)),VLOOKUP($E123-5,AllData,COLUMN()-6-COLUMN($E123)),VLOOKUP($E123-6,AllData,COLUMN()-6-COLUMN($E123)),VLOOKUP($E123-7,AllData,COLUMN()-6-COLUMN($E123)),VLOOKUP($E123-8,AllData,COLUMN()-6-COLUMN($E123)),VLOOKUP($E123-9,AllData,COLUMN()-6-COLUMN($E123)),VLOOKUP($E123-10,AllData,COLUMN()-6-COLUMN($E123)),VLOOKUP($E123-11,AllData,COLUMN()-6-COLUMN($E123)),VLOOKUP($E123-12,AllData,COLUMN()-6-COLUMN($E123)),VLOOKUP($E123-13,AllData,COLUMN()-6-COLUMN($E123)),VLOOKUP($E123-14,AllData,COLUMN()-6-COLUMN($E123)),VLOOKUP($E123-15,AllData,COLUMN()-6-COLUMN($E123)),VLOOKUP($E123-16,AllData,COLUMN()-6-COLUMN($E123)),VLOOKUP($E123-17,AllData,COLUMN()-6-COLUMN($E123)),VLOOKUP($E123-18,AllData,COLUMN()-6-COLUMN($E123)),VLOOKUP($E123-19,AllData,COLUMN()-6-COLUMN($E123)),VLOOKUP($E123-20,AllData,COLUMN()-6-COLUMN($E123)),VLOOKUP($E123-21,AllData,COLUMN()-6-COLUMN($E123)),VLOOKUP($E123-22,AllData,COLUMN()-6-COLUMN($E123)),VLOOKUP($E123-23,AllData,COLUMN()-6-COLUMN($E123)),VLOOKUP($E123-24,AllData,COLUMN()-6-COLUMN($E123)),VLOOKUP($E123-25,AllData,COLUMN()-6-COLUMN($E123)),VLOOKUP($E123-26,AllData,COLUMN()-6-COLUMN($E123)),VLOOKUP($E123-27,AllData,COLUMN()-6-COLUMN($E123)),VLOOKUP($E123-28,AllData,COLUMN()-6-COLUMN($E123)),VLOOKUP($E123-29,AllData,COLUMN()-6-COLUMN($E123)))","v":1597.93},{"$f":"VLOOKUP($E123,AllData,COLUMN()-7-COLUMN($E123))","v":31.59},{"$f":"OR('Cool Graph'!$I$1=35,'Cool Graph'!$I$1=36,'Cool Graph'!$I$1=37,'Cool Graph'!$I$1=38,'Cool Graph'!$I$1=39,'Cool Graph'!$I$1=40,'Cool Graph'!$I$1=41,'Cool Graph'!$I$1=42,'Cool Graph'!$I$1=43,'Cool Graph'!$I$1=44,'Cool Graph'!$I$1=45,'Cool Graph'!$I$1=46,'Cool Graph'!$I$1=47,'Cool Graph'!$I$1=58,'Cool Graph'!$I$1=66)","v":false}]
["2011-10-31",{"$f":"OFFSET(OldSchoolJustValues!A124,0,'Cool Graph'!$H$1)","v":0},{"$f":"OFFSET(OldSchoolJustValues!A124,0,'Cool Graph'!$I$1)","v":65.813254835803605},null,{"$f":"IF(NewDate>EndDate,NA(),NewDate)","v":"2012-01-26"},{"$f":"IF($E124>EndDate,NA(),IF($K$2=TRUE,N124,IF('Cool Graph'!$B$17=1,N124,IF('Cool Graph'!$B$17=2,L124,IF('Cool Graph'!$B$17=3,M124,)))))","v":34.69},{"$f":"IF($E124>EndDate,NA(),IF($O$2=TRUE,J124,IF('Cool Graph'!$B$17=1,Data1!J124,IF('Cool Graph'!$B$17=2,Data1!H124,IF('Cool Graph'!$B$17=3,Data1!I124,)))))","v":1126.8503016350903},{"$f":"SUM(VLOOKUP($E124,AllData,COLUMN()-COLUMN($E124)),VLOOKUP($E124-1,AllData,COLUMN()-COLUMN($E124)),VLOOKUP($E124-2,AllData,COLUMN()-COLUMN($E124)),VLOOKUP($E124-3,AllData,COLUMN()-COLUMN($E124)),VLOOKUP($E124-4,AllData,COLUMN()-COLUMN($E124)),VLOOKUP($E124-5,AllData,COLUMN()-COLUMN($E124)),VLOOKUP($E124-6,AllData,COLUMN()-COLUMN($E124)))","v":5826.207474173968},{"$f":"SUM(VLOOKUP($E124,AllData,COLUMN()-1-COLUMN($E124)),VLOOKUP($E124-1,AllData,COLUMN()-1-COLUMN($E124)),VLOOKUP($E124-2,AllData,COLUMN()-1-COLUMN($E124)),VLOOKUP($E124-3,AllData,COLUMN()-1-COLUMN($E124)),VLOOKUP($E124-4,AllData,COLUMN()-1-COLUMN($E124)),VLOOKUP($E124-5,AllData,COLUMN()-1-COLUMN($E124)),VLOOKUP($E124-6,AllData,COLUMN()-1-COLUMN($E124)),VLOOKUP($E124-7,AllData,COLUMN()-1-COLUMN($E124)),VLOOKUP($E124-8,AllData,COLUMN()-1-COLUMN($E124)),VLOOKUP($E124-9,AllData,COLUMN()-1-COLUMN($E124)),VLOOKUP($E124-10,AllData,COLUMN()-1-COLUMN($E124)),VLOOKUP($E124-11,AllData,COLUMN()-1-COLUMN($E124)),VLOOKUP($E124-12,AllData,COLUMN()-1-COLUMN($E124)),VLOOKUP($E124-13,AllData,COLUMN()-1-COLUMN($E124)),VLOOKUP($E124-14,AllData,COLUMN()-1-COLUMN($E124)),VLOOKUP($E124-15,AllData,COLUMN()-1-COLUMN($E124)),VLOOKUP($E124-16,AllData,COLUMN()-1-COLUMN($E124)),VLOOKUP($E124-17,AllData,COLUMN()-1-COLUMN($E124)),VLOOKUP($E124-18,AllData,COLUMN()-1-COLUMN($E124)),VLOOKUP($E124-19,AllData,COLUMN()-1-COLUMN($E124)),VLOOKUP($E124-20,AllData,COLUMN()-1-COLUMN($E124)),VLOOKUP($E124-21,AllData,COLUMN()-1-COLUMN($E124)),VLOOKUP($E124-22,AllData,COLUMN()-1-COLUMN($E124)),VLOOKUP($E124-23,AllData,COLUMN()-1-COLUMN($E124)),VLOOKUP($E124-24,AllData,COLUMN()-1-COLUMN($E124)),VLOOKUP($E124-25,AllData,COLUMN()-1-COLUMN($E124)),VLOOKUP($E124-26,AllData,COLUMN()-1-COLUMN($E124)),VLOOKUP($E124-27,AllData,COLUMN()-1-COLUMN($E124)),VLOOKUP($E124-28,AllData,COLUMN()-1-COLUMN($E124)),VLOOKUP($E124-29,AllData,COLUMN()-1-COLUMN($E124)))","v":17032.769936924524},{"$f":"VLOOKUP($E124,AllData,COLUMN()-2-COLUMN($E124))","v":1126.8503016350903},{"$f":"OR('Cool Graph'!$H$1=35,'Cool Graph'!$H$1=36,'Cool Graph'!$H$1=37,'Cool Graph'!$H$1=38,'Cool Graph'!$H$1=39,'Cool Graph'!$H$1=40,'Cool Graph'!$H$1=41,'Cool Graph'!$H$1=42,'Cool Graph'!$H$1=43,'Cool Graph'!$H$1=44,'Cool Graph'!$H$1=45,'Cool Graph'!$H$1=46,'Cool Graph'!$H$1=47,'Cool Graph'!$H$1=58,'Cool Graph'!$H$1=66)","v":false},{"$f":"SUM(VLOOKUP($E124,AllData,COLUMN()-5-COLUMN($E124)),VLOOKUP($E124-1,AllData,COLUMN()-5-COLUMN($E124)),VLOOKUP($E124-2,AllData,COLUMN()-5-COLUMN($E124)),VLOOKUP($E124-3,AllData,COLUMN()-5-COLUMN($E124)),VLOOKUP($E124-4,AllData,COLUMN()-5-COLUMN($E124)),VLOOKUP($E124-5,AllData,COLUMN()-5-COLUMN($E124)),VLOOKUP($E124-6,AllData,COLUMN()-5-COLUMN($E124)))","v":314.39000000000004},{"$f":"SUM(VLOOKUP($E124,AllData,COLUMN()-6-COLUMN($E124)),VLOOKUP($E124-1,AllData,COLUMN()-6-COLUMN($E124)),VLOOKUP($E124-2,AllData,COLUMN()-6-COLUMN($E124)),VLOOKUP($E124-3,AllData,COLUMN()-6-COLUMN($E124)),VLOOKUP($E124-4,AllData,COLUMN()-6-COLUMN($E124)),VLOOKUP($E124-5,AllData,COLUMN()-6-COLUMN($E124)),VLOOKUP($E124-6,AllData,COLUMN()-6-COLUMN($E124)),VLOOKUP($E124-7,AllData,COLUMN()-6-COLUMN($E124)),VLOOKUP($E124-8,AllData,COLUMN()-6-COLUMN($E124)),VLOOKUP($E124-9,AllData,COLUMN()-6-COLUMN($E124)),VLOOKUP($E124-10,AllData,COLUMN()-6-COLUMN($E124)),VLOOKUP($E124-11,AllData,COLUMN()-6-COLUMN($E124)),VLOOKUP($E124-12,AllData,COLUMN()-6-COLUMN($E124)),VLOOKUP($E124-13,AllData,COLUMN()-6-COLUMN($E124)),VLOOKUP($E124-14,AllData,COLUMN()-6-COLUMN($E124)),VLOOKUP($E124-15,AllData,COLUMN()-6-COLUMN($E124)),VLOOKUP($E124-16,AllData,COLUMN()-6-COLUMN($E124)),VLOOKUP($E124-17,AllData,COLUMN()-6-COLUMN($E124)),VLOOKUP($E124-18,AllData,COLUMN()-6-COLUMN($E124)),VLOOKUP($E124-19,AllData,COLUMN()-6-COLUMN($E124)),VLOOKUP($E124-20,AllData,COLUMN()-6-COLUMN($E124)),VLOOKUP($E124-21,AllData,COLUMN()-6-COLUMN($E124)),VLOOKUP($E124-22,AllData,COLUMN()-6-COLUMN($E124)),VLOOKUP($E124-23,AllData,COLUMN()-6-COLUMN($E124)),VLOOKUP($E124-24,AllData,COLUMN()-6-COLUMN($E124)),VLOOKUP($E124-25,AllData,COLUMN()-6-COLUMN($E124)),VLOOKUP($E124-26,AllData,COLUMN()-6-COLUMN($E124)),VLOOKUP($E124-27,AllData,COLUMN()-6-COLUMN($E124)),VLOOKUP($E124-28,AllData,COLUMN()-6-COLUMN($E124)),VLOOKUP($E124-29,AllData,COLUMN()-6-COLUMN($E124)))","v":1632.6200000000001},{"$f":"VLOOKUP($E124,AllData,COLUMN()-7-COLUMN($E124))","v":34.69},{"$f":"OR('Cool Graph'!$I$1=35,'Cool Graph'!$I$1=36,'Cool Graph'!$I$1=37,'Cool Graph'!$I$1=38,'Cool Graph'!$I$1=39,'Cool Graph'!$I$1=40,'Cool Graph'!$I$1=41,'Cool Graph'!$I$1=42,'Cool Graph'!$I$1=43,'Cool Graph'!$I$1=44,'Cool Graph'!$I$1=45,'Cool Graph'!$I$1=46,'Cool Graph'!$I$1=47,'Cool Graph'!$I$1=58,'Cool Graph'!$I$1=66)","v":false}]
["2011-11-01",{"$f":"OFFSET(OldSchoolJustValues!A125,0,'Cool Graph'!$H$1)","v":0},{"$f":"OFFSET(OldSchoolJustValues!A125,0,'Cool Graph'!$I$1)","v":156.2598822537054},null,{"$f":"IF(NewDate>EndDate,NA(),NewDate)","v":"2012-01-27"},{"$f":"IF($E125>EndDate,NA(),IF($K$2=TRUE,N125,IF('Cool Graph'!$B$17=1,N125,IF('Cool Graph'!$B$17=2,L125,IF('Cool Graph'!$B$17=3,M125,)))))","v":20.7},{"$f":"IF($E125>EndDate,NA(),IF($O$2=TRUE,J125,IF('Cool Graph'!$B$17=1,Data1!J125,IF('Cool Graph'!$B$17=2,Data1!H125,IF('Cool Graph'!$B$17=3,Data1!I125,)))))","v":330.5417740189381},{"$f":"SUM(VLOOKUP($E125,AllData,COLUMN()-COLUMN($E125)),VLOOKUP($E125-1,AllData,COLUMN()-COLUMN($E125)),VLOOKUP($E125-2,AllData,COLUMN()-COLUMN($E125)),VLOOKUP($E125-3,AllData,COLUMN()-COLUMN($E125)),VLOOKUP($E125-4,AllData,COLUMN()-COLUMN($E125)),VLOOKUP($E125-5,AllData,COLUMN()-COLUMN($E125)),VLOOKUP($E125-6,AllData,COLUMN()-COLUMN($E125)))","v":5613.9142278555692},{"$f":"SUM(VLOOKUP($E125,AllData,COLUMN()-1-COLUMN($E125)),VLOOKUP($E125-1,AllData,COLUMN()-1-COLUMN($E125)),VLOOKUP($E125-2,AllData,COLUMN()-1-COLUMN($E125)),VLOOKUP($E125-3,AllData,COLUMN()-1-COLUMN($E125)),VLOOKUP($E125-4,AllData,COLUMN()-1-COLUMN($E125)),VLOOKUP($E125-5,AllData,COLUMN()-1-COLUMN($E125)),VLOOKUP($E125-6,AllData,COLUMN()-1-COLUMN($E125)),VLOOKUP($E125-7,AllData,COLUMN()-1-COLUMN($E125)),VLOOKUP($E125-8,AllData,COLUMN()-1-COLUMN($E125)),VLOOKUP($E125-9,AllData,COLUMN()-1-COLUMN($E125)),VLOOKUP($E125-10,AllData,COLUMN()-1-COLUMN($E125)),VLOOKUP($E125-11,AllData,COLUMN()-1-COLUMN($E125)),VLOOKUP($E125-12,AllData,COLUMN()-1-COLUMN($E125)),VLOOKUP($E125-13,AllData,COLUMN()-1-COLUMN($E125)),VLOOKUP($E125-14,AllData,COLUMN()-1-COLUMN($E125)),VLOOKUP($E125-15,AllData,COLUMN()-1-COLUMN($E125)),VLOOKUP($E125-16,AllData,COLUMN()-1-COLUMN($E125)),VLOOKUP($E125-17,AllData,COLUMN()-1-COLUMN($E125)),VLOOKUP($E125-18,AllData,COLUMN()-1-COLUMN($E125)),VLOOKUP($E125-19,AllData,COLUMN()-1-COLUMN($E125)),VLOOKUP($E125-20,AllData,COLUMN()-1-COLUMN($E125)),VLOOKUP($E125-21,AllData,COLUMN()-1-COLUMN($E125)),VLOOKUP($E125-22,AllData,COLUMN()-1-COLUMN($E125)),VLOOKUP($E125-23,AllData,COLUMN()-1-COLUMN($E125)),VLOOKUP($E125-24,AllData,COLUMN()-1-COLUMN($E125)),VLOOKUP($E125-25,AllData,COLUMN()-1-COLUMN($E125)),VLOOKUP($E125-26,AllData,COLUMN()-1-COLUMN($E125)),VLOOKUP($E125-27,AllData,COLUMN()-1-COLUMN($E125)),VLOOKUP($E125-28,AllData,COLUMN()-1-COLUMN($E125)),VLOOKUP($E125-29,AllData,COLUMN()-1-COLUMN($E125)))","v":16646.181496095945},{"$f":"VLOOKUP($E125,AllData,COLUMN()-2-COLUMN($E125))","v":330.5417740189381},{"$f":"OR('Cool Graph'!$H$1=35,'Cool Graph'!$H$1=36,'Cool Graph'!$H$1=37,'Cool Graph'!$H$1=38,'Cool Graph'!$H$1=39,'Cool Graph'!$H$1=40,'Cool Graph'!$H$1=41,'Cool Graph'!$H$1=42,'Cool Graph'!$H$1=43,'Cool Graph'!$H$1=44,'Cool Graph'!$H$1=45,'Cool Graph'!$H$1=46,'Cool Graph'!$H$1=47,'Cool Graph'!$H$1=58,'Cool Graph'!$H$1=66)","v":false},{"$f":"SUM(VLOOKUP($E125,AllData,COLUMN()-5-COLUMN($E125)),VLOOKUP($E125-1,AllData,COLUMN()-5-COLUMN($E125)),VLOOKUP($E125-2,AllData,COLUMN()-5-COLUMN($E125)),VLOOKUP($E125-3,AllData,COLUMN()-5-COLUMN($E125)),VLOOKUP($E125-4,AllData,COLUMN()-5-COLUMN($E125)),VLOOKUP($E125-5,AllData,COLUMN()-5-COLUMN($E125)),VLOOKUP($E125-6,AllData,COLUMN()-5-COLUMN($E125)))","v":310.66999999999996},{"$f":"SUM(VLOOKUP($E125,AllData,COLUMN()-6-COLUMN($E125)),VLOOKUP($E125-1,AllData,COLUMN()-6-COLUMN($E125)),VLOOKUP($E125-2,AllData,COLUMN()-6-COLUMN($E125)),VLOOKUP($E125-3,AllData,COLUMN()-6-COLUMN($E125)),VLOOKUP($E125-4,AllData,COLUMN()-6-COLUMN($E125)),VLOOKUP($E125-5,AllData,COLUMN()-6-COLUMN($E125)),VLOOKUP($E125-6,AllData,COLUMN()-6-COLUMN($E125)),VLOOKUP($E125-7,AllData,COLUMN()-6-COLUMN($E125)),VLOOKUP($E125-8,AllData,COLUMN()-6-COLUMN($E125)),VLOOKUP($E125-9,AllData,COLUMN()-6-COLUMN($E125)),VLOOKUP($E125-10,AllData,COLUMN()-6-COLUMN($E125)),VLOOKUP($E125-11,AllData,COLUMN()-6-COLUMN($E125)),VLOOKUP($E125-12,AllData,COLUMN()-6-COLUMN($E125)),VLOOKUP($E125-13,AllData,COLUMN()-6-COLUMN($E125)),VLOOKUP($E125-14,AllData,COLUMN()-6-COLUMN($E125)),VLOOKUP($E125-15,AllData,COLUMN()-6-COLUMN($E125)),VLOOKUP($E125-16,AllData,COLUMN()-6-COLUMN($E125)),VLOOKUP($E125-17,AllData,COLUMN()-6-COLUMN($E125)),VLOOKUP($E125-18,AllData,COLUMN()-6-COLUMN($E125)),VLOOKUP($E125-19,AllData,COLUMN()-6-COLUMN($E125)),VLOOKUP($E125-20,AllData,COLUMN()-6-COLUMN($E125)),VLOOKUP($E125-21,AllData,COLUMN()-6-COLUMN($E125)),VLOOKUP($E125-22,AllData,COLUMN()-6-COLUMN($E125)),VLOOKUP($E125-23,AllData,COLUMN()-6-COLUMN($E125)),VLOOKUP($E125-24,AllData,COLUMN()-6-COLUMN($E125)),VLOOKUP($E125-25,AllData,COLUMN()-6-COLUMN($E125)),VLOOKUP($E125-26,AllData,COLUMN()-6-COLUMN($E125)),VLOOKUP($E125-27,AllData,COLUMN()-6-COLUMN($E125)),VLOOKUP($E125-28,AllData,COLUMN()-6-COLUMN($E125)),VLOOKUP($E125-29,AllData,COLUMN()-6-COLUMN($E125)))","v":1653.32},{"$f":"VLOOKUP($E125,AllData,COLUMN()-7-COLUMN($E125))","v":20.7},{"$f":"OR('Cool Graph'!$I$1=35,'Cool Graph'!$I$1=36,'Cool Graph'!$I$1=37,'Cool Graph'!$I$1=38,'Cool Graph'!$I$1=39,'Cool Graph'!$I$1=40,'Cool Graph'!$I$1=41,'Cool Graph'!$I$1=42,'Cool Graph'!$I$1=43,'Cool Graph'!$I$1=44,'Cool Graph'!$I$1=45,'Cool Graph'!$I$1=46,'Cool Graph'!$I$1=47,'Cool Graph'!$I$1=58,'Cool Graph'!$I$1=66)","v":false}]
["2011-11-02",{"$f":"OFFSET(OldSchoolJustValues!A126,0,'Cool Graph'!$H$1)","v":0},{"$f":"OFFSET(OldSchoolJustValues!A126,0,'Cool Graph'!$I$1)","v":584.7877276543993},null,{"$f":"IF(NewDate>EndDate,NA(),NewDate)","v":"2012-01-28"},{"$f":"IF($E126>EndDate,NA(),IF($K$2=TRUE,N126,IF('Cool Graph'!$B$17=1,N126,IF('Cool Graph'!$B$17=2,L126,IF('Cool Graph'!$B$17=3,M126,)))))","v":16.059999999999999},{"$f":"IF($E126>EndDate,NA(),IF($O$2=TRUE,J126,IF('Cool Graph'!$B$17=1,Data1!J126,IF('Cool Graph'!$B$17=2,Data1!H126,IF('Cool Graph'!$B$17=3,Data1!I126,)))))","v":440.98735186888428},{"$f":"SUM(VLOOKUP($E126,AllData,COLUMN()-COLUMN($E126)),VLOOKUP($E126-1,AllData,COLUMN()-COLUMN($E126)),VLOOKUP($E126-2,AllData,COLUMN()-COLUMN($E126)),VLOOKUP($E126-3,AllData,COLUMN()-COLUMN($E126)),VLOOKUP($E126-4,AllData,COLUMN()-COLUMN($E126)),VLOOKUP($E126-5,AllData,COLUMN()-COLUMN($E126)),VLOOKUP($E126-6,AllData,COLUMN()-COLUMN($E126)))","v":5942.5236432159363},{"$f":"SUM(VLOOKUP($E126,AllData,COLUMN()-1-COLUMN($E126)),VLOOKUP($E126-1,AllData,COLUMN()-1-COLUMN($E126)),VLOOKUP($E126-2,AllData,COLUMN()-1-COLUMN($E126)),VLOOKUP($E126-3,AllData,COLUMN()-1-COLUMN($E126)),VLOOKUP($E126-4,AllData,COLUMN()-1-COLUMN($E126)),VLOOKUP($E126-5,AllData,COLUMN()-1-COLUMN($E126)),VLOOKUP($E126-6,AllData,COLUMN()-1-COLUMN($E126)),VLOOKUP($E126-7,AllData,COLUMN()-1-COLUMN($E126)),VLOOKUP($E126-8,AllData,COLUMN()-1-COLUMN($E126)),VLOOKUP($E126-9,AllData,COLUMN()-1-COLUMN($E126)),VLOOKUP($E126-10,AllData,COLUMN()-1-COLUMN($E126)),VLOOKUP($E126-11,AllData,COLUMN()-1-COLUMN($E126)),VLOOKUP($E126-12,AllData,COLUMN()-1-COLUMN($E126)),VLOOKUP($E126-13,AllData,COLUMN()-1-COLUMN($E126)),VLOOKUP($E126-14,AllData,COLUMN()-1-COLUMN($E126)),VLOOKUP($E126-15,AllData,COLUMN()-1-COLUMN($E126)),VLOOKUP($E126-16,AllData,COLUMN()-1-COLUMN($E126)),VLOOKUP($E126-17,AllData,COLUMN()-1-COLUMN($E126)),VLOOKUP($E126-18,AllData,COLUMN()-1-COLUMN($E126)),VLOOKUP($E126-19,AllData,COLUMN()-1-COLUMN($E126)),VLOOKUP($E126-20,AllData,COLUMN()-1-COLUMN($E126)),VLOOKUP($E126-21,AllData,COLUMN()-1-COLUMN($E126)),VLOOKUP($E126-22,AllData,COLUMN()-1-COLUMN($E126)),VLOOKUP($E126-23,AllData,COLUMN()-1-COLUMN($E126)),VLOOKUP($E126-24,AllData,COLUMN()-1-COLUMN($E126)),VLOOKUP($E126-25,AllData,COLUMN()-1-COLUMN($E126)),VLOOKUP($E126-26,AllData,COLUMN()-1-COLUMN($E126)),VLOOKUP($E126-27,AllData,COLUMN()-1-COLUMN($E126)),VLOOKUP($E126-28,AllData,COLUMN()-1-COLUMN($E126)),VLOOKUP($E126-29,AllData,COLUMN()-1-COLUMN($E126)))","v":17093.709032229886},{"$f":"VLOOKUP($E126,AllData,COLUMN()-2-COLUMN($E126))","v":440.98735186888428},{"$f":"OR('Cool Graph'!$H$1=35,'Cool Graph'!$H$1=36,'Cool Graph'!$H$1=37,'Cool Graph'!$H$1=38,'Cool Graph'!$H$1=39,'Cool Graph'!$H$1=40,'Cool Graph'!$H$1=41,'Cool Graph'!$H$1=42,'Cool Graph'!$H$1=43,'Cool Graph'!$H$1=44,'Cool Graph'!$H$1=45,'Cool Graph'!$H$1=46,'Cool Graph'!$H$1=47,'Cool Graph'!$H$1=58,'Cool Graph'!$H$1=66)","v":false},{"$f":"SUM(VLOOKUP($E126,AllData,COLUMN()-5-COLUMN($E126)),VLOOKUP($E126-1,AllData,COLUMN()-5-COLUMN($E126)),VLOOKUP($E126-2,AllData,COLUMN()-5-COLUMN($E126)),VLOOKUP($E126-3,AllData,COLUMN()-5-COLUMN($E126)),VLOOKUP($E126-4,AllData,COLUMN()-5-COLUMN($E126)),VLOOKUP($E126-5,AllData,COLUMN()-5-COLUMN($E126)),VLOOKUP($E126-6,AllData,COLUMN()-5-COLUMN($E126)))","v":201.91},{"$f":"SUM(VLOOKUP($E126,AllData,COLUMN()-6-COLUMN($E126)),VLOOKUP($E126-1,AllData,COLUMN()-6-COLUMN($E126)),VLOOKUP($E126-2,AllData,COLUMN()-6-COLUMN($E126)),VLOOKUP($E126-3,AllData,COLUMN()-6-COLUMN($E126)),VLOOKUP($E126-4,AllData,COLUMN()-6-COLUMN($E126)),VLOOKUP($E126-5,AllData,COLUMN()-6-COLUMN($E126)),VLOOKUP($E126-6,AllData,COLUMN()-6-COLUMN($E126)),VLOOKUP($E126-7,AllData,COLUMN()-6-COLUMN($E126)),VLOOKUP($E126-8,AllData,COLUMN()-6-COLUMN($E126)),VLOOKUP($E126-9,AllData,COLUMN()-6-COLUMN($E126)),VLOOKUP($E126-10,AllData,COLUMN()-6-COLUMN($E126)),VLOOKUP($E126-11,AllData,COLUMN()-6-COLUMN($E126)),VLOOKUP($E126-12,AllData,COLUMN()-6-COLUMN($E126)),VLOOKUP($E126-13,AllData,COLUMN()-6-COLUMN($E126)),VLOOKUP($E126-14,AllData,COLUMN()-6-COLUMN($E126)),VLOOKUP($E126-15,AllData,COLUMN()-6-COLUMN($E126)),VLOOKUP($E126-16,AllData,COLUMN()-6-COLUMN($E126)),VLOOKUP($E126-17,AllData,COLUMN()-6-COLUMN($E126)),VLOOKUP($E126-18,AllData,COLUMN()-6-COLUMN($E126)),VLOOKUP($E126-19,AllData,COLUMN()-6-COLUMN($E126)),VLOOKUP($E126-20,AllData,COLUMN()-6-COLUMN($E126)),VLOOKUP($E126-21,AllData,COLUMN()-6-COLUMN($E126)),VLOOKUP($E126-22,AllData,COLUMN()-6-COLUMN($E126)),VLOOKUP($E126-23,AllData,COLUMN()-6-COLUMN($E126)),VLOOKUP($E126-24,AllData,COLUMN()-6-COLUMN($E126)),VLOOKUP($E126-25,AllData,COLUMN()-6-COLUMN($E126)),VLOOKUP($E126-26,AllData,COLUMN()-6-COLUMN($E126)),VLOOKUP($E126-27,AllData,COLUMN()-6-COLUMN($E126)),VLOOKUP($E126-28,AllData,COLUMN()-6-COLUMN($E126)),VLOOKUP($E126-29,AllData,COLUMN()-6-COLUMN($E126)))","v":1628.04},{"$f":"VLOOKUP($E126,AllData,COLUMN()-7-COLUMN($E126))","v":16.059999999999999},{"$f":"OR('Cool Graph'!$I$1=35,'Cool Graph'!$I$1=36,'Cool Graph'!$I$1=37,'Cool Graph'!$I$1=38,'Cool Graph'!$I$1=39,'Cool Graph'!$I$1=40,'Cool Graph'!$I$1=41,'Cool Graph'!$I$1=42,'Cool Graph'!$I$1=43,'Cool Graph'!$I$1=44,'Cool Graph'!$I$1=45,'Cool Graph'!$I$1=46,'Cool Graph'!$I$1=47,'Cool Graph'!$I$1=58,'Cool Graph'!$I$1=66)","v":false}]
["2011-11-03",{"$f":"OFFSET(OldSchoolJustValues!A127,0,'Cool Graph'!$H$1)","v":0},{"$f":"OFFSET(OldSchoolJustValues!A127,0,'Cool Graph'!$I$1)","v":403.18141753907884},null,{"$f":"IF(NewDate>EndDate,NA(),NewDate)","v":"2012-01-29"},{"$f":"IF($E127>EndDate,NA(),IF($K$2=TRUE,N127,IF('Cool Graph'!$B$17=1,N127,IF('Cool Graph'!$B$17=2,L127,IF('Cool Graph'!$B$17=3,M127,)))))","v":10.58},{"$f":"IF($E127>EndDate,NA(),IF($O$2=TRUE,J127,IF('Cool Graph'!$B$17=1,Data1!J127,IF('Cool Graph'!$B$17=2,Data1!H127,IF('Cool Graph'!$B$17=3,Data1!I127,)))))","v":1358.1563835449535},{"$f":"SUM(VLOOKUP($E127,AllData,COLUMN()-COLUMN($E127)),VLOOKUP($E127-1,AllData,COLUMN()-COLUMN($E127)),VLOOKUP($E127-2,AllData,COLUMN()-COLUMN($E127)),VLOOKUP($E127-3,AllData,COLUMN()-COLUMN($E127)),VLOOKUP($E127-4,AllData,COLUMN()-COLUMN($E127)),VLOOKUP($E127-5,AllData,COLUMN()-COLUMN($E127)),VLOOKUP($E127-6,AllData,COLUMN()-COLUMN($E127)))","v":6513.7866612444877},{"$f":"SUM(VLOOKUP($E127,AllData,COLUMN()-1-COLUMN($E127)),VLOOKUP($E127-1,AllData,COLUMN()-1-COLUMN($E127)),VLOOKUP($E127-2,AllData,COLUMN()-1-COLUMN($E127)),VLOOKUP($E127-3,AllData,COLUMN()-1-COLUMN($E127)),VLOOKUP($E127-4,AllData,COLUMN()-1-COLUMN($E127)),VLOOKUP($E127-5,AllData,COLUMN()-1-COLUMN($E127)),VLOOKUP($E127-6,AllData,COLUMN()-1-COLUMN($E127)),VLOOKUP($E127-7,AllData,COLUMN()-1-COLUMN($E127)),VLOOKUP($E127-8,AllData,COLUMN()-1-COLUMN($E127)),VLOOKUP($E127-9,AllData,COLUMN()-1-COLUMN($E127)),VLOOKUP($E127-10,AllData,COLUMN()-1-COLUMN($E127)),VLOOKUP($E127-11,AllData,COLUMN()-1-COLUMN($E127)),VLOOKUP($E127-12,AllData,COLUMN()-1-COLUMN($E127)),VLOOKUP($E127-13,AllData,COLUMN()-1-COLUMN($E127)),VLOOKUP($E127-14,AllData,COLUMN()-1-COLUMN($E127)),VLOOKUP($E127-15,AllData,COLUMN()-1-COLUMN($E127)),VLOOKUP($E127-16,AllData,COLUMN()-1-COLUMN($E127)),VLOOKUP($E127-17,AllData,COLUMN()-1-COLUMN($E127)),VLOOKUP($E127-18,AllData,COLUMN()-1-COLUMN($E127)),VLOOKUP($E127-19,AllData,COLUMN()-1-COLUMN($E127)),VLOOKUP($E127-20,AllData,COLUMN()-1-COLUMN($E127)),VLOOKUP($E127-21,AllData,COLUMN()-1-COLUMN($E127)),VLOOKUP($E127-22,AllData,COLUMN()-1-COLUMN($E127)),VLOOKUP($E127-23,AllData,COLUMN()-1-COLUMN($E127)),VLOOKUP($E127-24,AllData,COLUMN()-1-COLUMN($E127)),VLOOKUP($E127-25,AllData,COLUMN()-1-COLUMN($E127)),VLOOKUP($E127-26,AllData,COLUMN()-1-COLUMN($E127)),VLOOKUP($E127-27,AllData,COLUMN()-1-COLUMN($E127)),VLOOKUP($E127-28,AllData,COLUMN()-1-COLUMN($E127)),VLOOKUP($E127-29,AllData,COLUMN()-1-COLUMN($E127)))","v":17913.573739806325},{"$f":"VLOOKUP($E127,AllData,COLUMN()-2-COLUMN($E127))","v":1358.1563835449535},{"$f":"OR('Cool Graph'!$H$1=35,'Cool Graph'!$H$1=36,'Cool Graph'!$H$1=37,'Cool Graph'!$H$1=38,'Cool Graph'!$H$1=39,'Cool Graph'!$H$1=40,'Cool Graph'!$H$1=41,'Cool Graph'!$H$1=42,'Cool Graph'!$H$1=43,'Cool Graph'!$H$1=44,'Cool Graph'!$H$1=45,'Cool Graph'!$H$1=46,'Cool Graph'!$H$1=47,'Cool Graph'!$H$1=58,'Cool Graph'!$H$1=66)","v":false},{"$f":"SUM(VLOOKUP($E127,AllData,COLUMN()-5-COLUMN($E127)),VLOOKUP($E127-1,AllData,COLUMN()-5-COLUMN($E127)),VLOOKUP($E127-2,AllData,COLUMN()-5-COLUMN($E127)),VLOOKUP($E127-3,AllData,COLUMN()-5-COLUMN($E127)),VLOOKUP($E127-4,AllData,COLUMN()-5-COLUMN($E127)),VLOOKUP($E127-5,AllData,COLUMN()-5-COLUMN($E127)),VLOOKUP($E127-6,AllData,COLUMN()-5-COLUMN($E127)))","v":166.43},{"$f":"SUM(VLOOKUP($E127,AllData,COLUMN()-6-COLUMN($E127)),VLOOKUP($E127-1,AllData,COLUMN()-6-COLUMN($E127)),VLOOKUP($E127-2,AllData,COLUMN()-6-COLUMN($E127)),VLOOKUP($E127-3,AllData,COLUMN()-6-COLUMN($E127)),VLOOKUP($E127-4,AllData,COLUMN()-6-COLUMN($E127)),VLOOKUP($E127-5,AllData,COLUMN()-6-COLUMN($E127)),VLOOKUP($E127-6,AllData,COLUMN()-6-COLUMN($E127)),VLOOKUP($E127-7,AllData,COLUMN()-6-COLUMN($E127)),VLOOKUP($E127-8,AllData,COLUMN()-6-COLUMN($E127)),VLOOKUP($E127-9,AllData,COLUMN()-6-COLUMN($E127)),VLOOKUP($E127-10,AllData,COLUMN()-6-COLUMN($E127)),VLOOKUP($E127-11,AllData,COLUMN()-6-COLUMN($E127)),VLOOKUP($E127-12,AllData,COLUMN()-6-COLUMN($E127)),VLOOKUP($E127-13,AllData,COLUMN()-6-COLUMN($E127)),VLOOKUP($E127-14,AllData,COLUMN()-6-COLUMN($E127)),VLOOKUP($E127-15,AllData,COLUMN()-6-COLUMN($E127)),VLOOKUP($E127-16,AllData,COLUMN()-6-COLUMN($E127)),VLOOKUP($E127-17,AllData,COLUMN()-6-COLUMN($E127)),VLOOKUP($E127-18,AllData,COLUMN()-6-COLUMN($E127)),VLOOKUP($E127-19,AllData,COLUMN()-6-COLUMN($E127)),VLOOKUP($E127-20,AllData,COLUMN()-6-COLUMN($E127)),VLOOKUP($E127-21,AllData,COLUMN()-6-COLUMN($E127)),VLOOKUP($E127-22,AllData,COLUMN()-6-COLUMN($E127)),VLOOKUP($E127-23,AllData,COLUMN()-6-COLUMN($E127)),VLOOKUP($E127-24,AllData,COLUMN()-6-COLUMN($E127)),VLOOKUP($E127-25,AllData,COLUMN()-6-COLUMN($E127)),VLOOKUP($E127-26,AllData,COLUMN()-6-COLUMN($E127)),VLOOKUP($E127-27,AllData,COLUMN()-6-COLUMN($E127)),VLOOKUP($E127-28,AllData,COLUMN()-6-COLUMN($E127)),VLOOKUP($E127-29,AllData,COLUMN()-6-COLUMN($E127)))","v":1626.76},{"$f":"VLOOKUP($E127,AllData,COLUMN()-7-COLUMN($E127))","v":10.58},{"$f":"OR('Cool Graph'!$I$1=35,'Cool Graph'!$I$1=36,'Cool Graph'!$I$1=37,'Cool Graph'!$I$1=38,'Cool Graph'!$I$1=39,'Cool Graph'!$I$1=40,'Cool Graph'!$I$1=41,'Cool Graph'!$I$1=42,'Cool Graph'!$I$1=43,'Cool Graph'!$I$1=44,'Cool Graph'!$I$1=45,'Cool Graph'!$I$1=46,'Cool Graph'!$I$1=47,'Cool Graph'!$I$1=58,'Cool Graph'!$I$1=66)","v":false}]
["2011-11-04",{"$f":"OFFSET(OldSchoolJustValues!A128,0,'Cool Graph'!$H$1)","v":0},{"$f":"OFFSET(OldSchoolJustValues!A128,0,'Cool Graph'!$I$1)","v":316.11313708950894},null,{"$f":"IF(NewDate>EndDate,NA(),NewDate)","v":"2012-01-30"},{"$f":"IF($E128>EndDate,NA(),IF($K$2=TRUE,N128,IF('Cool Graph'!$B$17=1,N128,IF('Cool Graph'!$B$17=2,L128,IF('Cool Graph'!$B$17=3,M128,)))))","v":9.7799999999999994},{"$f":"IF($E128>EndDate,NA(),IF($O$2=TRUE,J128,IF('Cool Graph'!$B$17=1,Data1!J128,IF('Cool Graph'!$B$17=2,Data1!H128,IF('Cool Graph'!$B$17=3,Data1!I128,)))))","v":439.04971380016275},{"$f":"SUM(VLOOKUP($E128,AllData,COLUMN()-COLUMN($E128)),VLOOKUP($E128-1,AllData,COLUMN()-COLUMN($E128)),VLOOKUP($E128-2,AllData,COLUMN()-COLUMN($E128)),VLOOKUP($E128-3,AllData,COLUMN()-COLUMN($E128)),VLOOKUP($E128-4,AllData,COLUMN()-COLUMN($E128)),VLOOKUP($E128-5,AllData,COLUMN()-COLUMN($E128)),VLOOKUP($E128-6,AllData,COLUMN()-COLUMN($E128)))","v":5761.5297496691801},{"$f":"SUM(VLOOKUP($E128,AllData,COLUMN()-1-COLUMN($E128)),VLOOKUP($E128-1,AllData,COLUMN()-1-COLUMN($E128)),VLOOKUP($E128-2,AllData,COLUMN()-1-COLUMN($E128)),VLOOKUP($E128-3,AllData,COLUMN()-1-COLUMN($E128)),VLOOKUP($E128-4,AllData,COLUMN()-1-COLUMN($E128)),VLOOKUP($E128-5,AllData,COLUMN()-1-COLUMN($E128)),VLOOKUP($E128-6,AllData,COLUMN()-1-COLUMN($E128)),VLOOKUP($E128-7,AllData,COLUMN()-1-COLUMN($E128)),VLOOKUP($E128-8,AllData,COLUMN()-1-COLUMN($E128)),VLOOKUP($E128-9,AllData,COLUMN()-1-COLUMN($E128)),VLOOKUP($E128-10,AllData,COLUMN()-1-COLUMN($E128)),VLOOKUP($E128-11,AllData,COLUMN()-1-COLUMN($E128)),VLOOKUP($E128-12,AllData,COLUMN()-1-COLUMN($E128)),VLOOKUP($E128-13,AllData,COLUMN()-1-COLUMN($E128)),VLOOKUP($E128-14,AllData,COLUMN()-1-COLUMN($E128)),VLOOKUP($E128-15,AllData,COLUMN()-1-COLUMN($E128)),VLOOKUP($E128-16,AllData,COLUMN()-1-COLUMN($E128)),VLOOKUP($E128-17,AllData,COLUMN()-1-COLUMN($E128)),VLOOKUP($E128-18,AllData,COLUMN()-1-COLUMN($E128)),VLOOKUP($E128-19,AllData,COLUMN()-1-COLUMN($E128)),VLOOKUP($E128-20,AllData,COLUMN()-1-COLUMN($E128)),VLOOKUP($E128-21,AllData,COLUMN()-1-COLUMN($E128)),VLOOKUP($E128-22,AllData,COLUMN()-1-COLUMN($E128)),VLOOKUP($E128-23,AllData,COLUMN()-1-COLUMN($E128)),VLOOKUP($E128-24,AllData,COLUMN()-1-COLUMN($E128)),VLOOKUP($E128-25,AllData,COLUMN()-1-COLUMN($E128)),VLOOKUP($E128-26,AllData,COLUMN()-1-COLUMN($E128)),VLOOKUP($E128-27,AllData,COLUMN()-1-COLUMN($E128)),VLOOKUP($E128-28,AllData,COLUMN()-1-COLUMN($E128)),VLOOKUP($E128-29,AllData,COLUMN()-1-COLUMN($E128)))","v":18037.101586690456},{"$f":"VLOOKUP($E128,AllData,COLUMN()-2-COLUMN($E128))","v":439.04971380016275},{"$f":"OR('Cool Graph'!$H$1=35,'Cool Graph'!$H$1=36,'Cool Graph'!$H$1=37,'Cool Graph'!$H$1=38,'Cool Graph'!$H$1=39,'Cool Graph'!$H$1=40,'Cool Graph'!$H$1=41,'Cool Graph'!$H$1=42,'Cool Graph'!$H$1=43,'Cool Graph'!$H$1=44,'Cool Graph'!$H$1=45,'Cool Graph'!$H$1=46,'Cool Graph'!$H$1=47,'Cool Graph'!$H$1=58,'Cool Graph'!$H$1=66)","v":false},{"$f":"SUM(VLOOKUP($E128,AllData,COLUMN()-5-COLUMN($E128)),VLOOKUP($E128-1,AllData,COLUMN()-5-COLUMN($E128)),VLOOKUP($E128-2,AllData,COLUMN()-5-COLUMN($E128)),VLOOKUP($E128-3,AllData,COLUMN()-5-COLUMN($E128)),VLOOKUP($E128-4,AllData,COLUMN()-5-COLUMN($E128)),VLOOKUP($E128-5,AllData,COLUMN()-5-COLUMN($E128)),VLOOKUP($E128-6,AllData,COLUMN()-5-COLUMN($E128)))","v":138.42000000000002},{"$f":"SUM(VLOOKUP($E128,AllData,COLUMN()-6-COLUMN($E128)),VLOOKUP($E128-1,AllData,COLUMN()-6-COLUMN($E128)),VLOOKUP($E128-2,AllData,COLUMN()-6-COLUMN($E128)),VLOOKUP($E128-3,AllData,COLUMN()-6-COLUMN($E128)),VLOOKUP($E128-4,AllData,COLUMN()-6-COLUMN($E128)),VLOOKUP($E128-5,AllData,COLUMN()-6-COLUMN($E128)),VLOOKUP($E128-6,AllData,COLUMN()-6-COLUMN($E128)),VLOOKUP($E128-7,AllData,COLUMN()-6-COLUMN($E128)),VLOOKUP($E128-8,AllData,COLUMN()-6-COLUMN($E128)),VLOOKUP($E128-9,AllData,COLUMN()-6-COLUMN($E128)),VLOOKUP($E128-10,AllData,COLUMN()-6-COLUMN($E128)),VLOOKUP($E128-11,AllData,COLUMN()-6-COLUMN($E128)),VLOOKUP($E128-12,AllData,COLUMN()-6-COLUMN($E128)),VLOOKUP($E128-13,AllData,COLUMN()-6-COLUMN($E128)),VLOOKUP($E128-14,AllData,COLUMN()-6-COLUMN($E128)),VLOOKUP($E128-15,AllData,COLUMN()-6-COLUMN($E128)),VLOOKUP($E128-16,AllData,COLUMN()-6-COLUMN($E128)),VLOOKUP($E128-17,AllData,COLUMN()-6-COLUMN($E128)),VLOOKUP($E128-18,AllData,COLUMN()-6-COLUMN($E128)),VLOOKUP($E128-19,AllData,COLUMN()-6-COLUMN($E128)),VLOOKUP($E128-20,AllData,COLUMN()-6-COLUMN($E128)),VLOOKUP($E128-21,AllData,COLUMN()-6-COLUMN($E128)),VLOOKUP($E128-22,AllData,COLUMN()-6-COLUMN($E128)),VLOOKUP($E128-23,AllData,COLUMN()-6-COLUMN($E128)),VLOOKUP($E128-24,AllData,COLUMN()-6-COLUMN($E128)),VLOOKUP($E128-25,AllData,COLUMN()-6-COLUMN($E128)),VLOOKUP($E128-26,AllData,COLUMN()-6-COLUMN($E128)),VLOOKUP($E128-27,AllData,COLUMN()-6-COLUMN($E128)),VLOOKUP($E128-28,AllData,COLUMN()-6-COLUMN($E128)),VLOOKUP($E128-29,AllData,COLUMN()-6-COLUMN($E128)))","v":1619.1800000000003},{"$f":"VLOOKUP($E128,AllData,COLUMN()-7-COLUMN($E128))","v":9.7799999999999994},{"$f":"OR('Cool Graph'!$I$1=35,'Cool Graph'!$I$1=36,'Cool Graph'!$I$1=37,'Cool Graph'!$I$1=38,'Cool Graph'!$I$1=39,'Cool Graph'!$I$1=40,'Cool Graph'!$I$1=41,'Cool Graph'!$I$1=42,'Cool Graph'!$I$1=43,'Cool Graph'!$I$1=44,'Cool Graph'!$I$1=45,'Cool Graph'!$I$1=46,'Cool Graph'!$I$1=47,'Cool Graph'!$I$1=58,'Cool Graph'!$I$1=66)","v":false}]
["2011-11-05",{"$f":"OFFSET(OldSchoolJustValues!A129,0,'Cool Graph'!$H$1)","v":0},{"$f":"OFFSET(OldSchoolJustValues!A129,0,'Cool Graph'!$I$1)","v":24.783254835803575},null,{"$f":"IF(NewDate>EndDate,NA(),NewDate)","v":"2012-01-31"},{"$f":"IF($E129>EndDate,NA(),IF($K$2=TRUE,N129,IF('Cool Graph'!$B$17=1,N129,IF('Cool Graph'!$B$17=2,L129,IF('Cool Graph'!$B$17=3,M129,)))))","v":14.3},{"$f":"IF($E129>EndDate,NA(),IF($O$2=TRUE,J129,IF('Cool Graph'!$B$17=1,Data1!J129,IF('Cool Graph'!$B$17=2,Data1!H129,IF('Cool Graph'!$B$17=3,Data1!I129,)))))","v":352.25110023649768},{"$f":"SUM(VLOOKUP($E129,AllData,COLUMN()-COLUMN($E129)),VLOOKUP($E129-1,AllData,COLUMN()-COLUMN($E129)),VLOOKUP($E129-2,AllData,COLUMN()-COLUMN($E129)),VLOOKUP($E129-3,AllData,COLUMN()-COLUMN($E129)),VLOOKUP($E129-4,AllData,COLUMN()-COLUMN($E129)),VLOOKUP($E129-5,AllData,COLUMN()-COLUMN($E129)),VLOOKUP($E129-6,AllData,COLUMN()-COLUMN($E129)))","v":5291.5628480103296},{"$f":"SUM(VLOOKUP($E129,AllData,COLUMN()-1-COLUMN($E129)),VLOOKUP($E129-1,AllData,COLUMN()-1-COLUMN($E129)),VLOOKUP($E129-2,AllData,COLUMN()-1-COLUMN($E129)),VLOOKUP($E129-3,AllData,COLUMN()-1-COLUMN($E129)),VLOOKUP($E129-4,AllData,COLUMN()-1-COLUMN($E129)),VLOOKUP($E129-5,AllData,COLUMN()-1-COLUMN($E129)),VLOOKUP($E129-6,AllData,COLUMN()-1-COLUMN($E129)),VLOOKUP($E129-7,AllData,COLUMN()-1-COLUMN($E129)),VLOOKUP($E129-8,AllData,COLUMN()-1-COLUMN($E129)),VLOOKUP($E129-9,AllData,COLUMN()-1-COLUMN($E129)),VLOOKUP($E129-10,AllData,COLUMN()-1-COLUMN($E129)),VLOOKUP($E129-11,AllData,COLUMN()-1-COLUMN($E129)),VLOOKUP($E129-12,AllData,COLUMN()-1-COLUMN($E129)),VLOOKUP($E129-13,AllData,COLUMN()-1-COLUMN($E129)),VLOOKUP($E129-14,AllData,COLUMN()-1-COLUMN($E129)),VLOOKUP($E129-15,AllData,COLUMN()-1-COLUMN($E129)),VLOOKUP($E129-16,AllData,COLUMN()-1-COLUMN($E129)),VLOOKUP($E129-17,AllData,COLUMN()-1-COLUMN($E129)),VLOOKUP($E129-18,AllData,COLUMN()-1-COLUMN($E129)),VLOOKUP($E129-19,AllData,COLUMN()-1-COLUMN($E129)),VLOOKUP($E129-20,AllData,COLUMN()-1-COLUMN($E129)),VLOOKUP($E129-21,AllData,COLUMN()-1-COLUMN($E129)),VLOOKUP($E129-22,AllData,COLUMN()-1-COLUMN($E129)),VLOOKUP($E129-23,AllData,COLUMN()-1-COLUMN($E129)),VLOOKUP($E129-24,AllData,COLUMN()-1-COLUMN($E129)),VLOOKUP($E129-25,AllData,COLUMN()-1-COLUMN($E129)),VLOOKUP($E129-26,AllData,COLUMN()-1-COLUMN($E129)),VLOOKUP($E129-27,AllData,COLUMN()-1-COLUMN($E129)),VLOOKUP($E129-28,AllData,COLUMN()-1-COLUMN($E129)),VLOOKUP($E129-29,AllData,COLUMN()-1-COLUMN($E129)))","v":18024.363450020981},{"$f":"VLOOKUP($E129,AllData,COLUMN()-2-COLUMN($E129))","v":352.25110023649768},{"$f":"OR('Cool Graph'!$H$1=35,'Cool Graph'!$H$1=36,'Cool Graph'!$H$1=37,'Cool Graph'!$H$1=38,'Cool Graph'!$H$1=39,'Cool Graph'!$H$1=40,'Cool Graph'!$H$1=41,'Cool Graph'!$H$1=42,'Cool Graph'!$H$1=43,'Cool Graph'!$H$1=44,'Cool Graph'!$H$1=45,'Cool Graph'!$H$1=46,'Cool Graph'!$H$1=47,'Cool Graph'!$H$1=58,'Cool Graph'!$H$1=66)","v":false},{"$f":"SUM(VLOOKUP($E129,AllData,COLUMN()-5-COLUMN($E129)),VLOOKUP($E129-1,AllData,COLUMN()-5-COLUMN($E129)),VLOOKUP($E129-2,AllData,COLUMN()-5-COLUMN($E129)),VLOOKUP($E129-3,AllData,COLUMN()-5-COLUMN($E129)),VLOOKUP($E129-4,AllData,COLUMN()-5-COLUMN($E129)),VLOOKUP($E129-5,AllData,COLUMN()-5-COLUMN($E129)),VLOOKUP($E129-6,AllData,COLUMN()-5-COLUMN($E129)))","v":137.69999999999999},{"$f":"SUM(VLOOKUP($E129,AllData,COLUMN()-6-COLUMN($E129)),VLOOKUP($E129-1,AllData,COLUMN()-6-COLUMN($E129)),VLOOKUP($E129-2,AllData,COLUMN()-6-COLUMN($E129)),VLOOKUP($E129-3,AllData,COLUMN()-6-COLUMN($E129)),VLOOKUP($E129-4,AllData,COLUMN()-6-COLUMN($E129)),VLOOKUP($E129-5,AllData,COLUMN()-6-COLUMN($E129)),VLOOKUP($E129-6,AllData,COLUMN()-6-COLUMN($E129)),VLOOKUP($E129-7,AllData,COLUMN()-6-COLUMN($E129)),VLOOKUP($E129-8,AllData,COLUMN()-6-COLUMN($E129)),VLOOKUP($E129-9,AllData,COLUMN()-6-COLUMN($E129)),VLOOKUP($E129-10,AllData,COLUMN()-6-COLUMN($E129)),VLOOKUP($E129-11,AllData,COLUMN()-6-COLUMN($E129)),VLOOKUP($E129-12,AllData,COLUMN()-6-COLUMN($E129)),VLOOKUP($E129-13,AllData,COLUMN()-6-COLUMN($E129)),VLOOKUP($E129-14,AllData,COLUMN()-6-COLUMN($E129)),VLOOKUP($E129-15,AllData,COLUMN()-6-COLUMN($E129)),VLOOKUP($E129-16,AllData,COLUMN()-6-COLUMN($E129)),VLOOKUP($E129-17,AllData,COLUMN()-6-COLUMN($E129)),VLOOKUP($E129-18,AllData,COLUMN()-6-COLUMN($E129)),VLOOKUP($E129-19,AllData,COLUMN()-6-COLUMN($E129)),VLOOKUP($E129-20,AllData,COLUMN()-6-COLUMN($E129)),VLOOKUP($E129-21,AllData,COLUMN()-6-COLUMN($E129)),VLOOKUP($E129-22,AllData,COLUMN()-6-COLUMN($E129)),VLOOKUP($E129-23,AllData,COLUMN()-6-COLUMN($E129)),VLOOKUP($E129-24,AllData,COLUMN()-6-COLUMN($E129)),VLOOKUP($E129-25,AllData,COLUMN()-6-COLUMN($E129)),VLOOKUP($E129-26,AllData,COLUMN()-6-COLUMN($E129)),VLOOKUP($E129-27,AllData,COLUMN()-6-COLUMN($E129)),VLOOKUP($E129-28,AllData,COLUMN()-6-COLUMN($E129)),VLOOKUP($E129-29,AllData,COLUMN()-6-COLUMN($E129)))","v":1597.38},{"$f":"VLOOKUP($E129,AllData,COLUMN()-7-COLUMN($E129))","v":14.3},{"$f":"OR('Cool Graph'!$I$1=35,'Cool Graph'!$I$1=36,'Cool Graph'!$I$1=37,'Cool Graph'!$I$1=38,'Cool Graph'!$I$1=39,'Cool Graph'!$I$1=40,'Cool Graph'!$I$1=41,'Cool Graph'!$I$1=42,'Cool Graph'!$I$1=43,'Cool Graph'!$I$1=44,'Cool Graph'!$I$1=45,'Cool Graph'!$I$1=46,'Cool Graph'!$I$1=47,'Cool Graph'!$I$1=58,'Cool Graph'!$I$1=66)","v":false}]
["2011-11-06",{"$f":"OFFSET(OldSchoolJustValues!A130,0,'Cool Graph'!$H$1)","v":0},{"$f":"OFFSET(OldSchoolJustValues!A130,0,'Cool Graph'!$I$1)","v":552.30307821636165},null,{"$f":"IF(NewDate>EndDate,NA(),NewDate)","v":"2012-02-01"},{"$f":"IF($E130>EndDate,NA(),IF($K$2=TRUE,N130,IF('Cool Graph'!$B$17=1,N130,IF('Cool Graph'!$B$17=2,L130,IF('Cool Graph'!$B$17=3,M130,)))))","v":8.81},{"$f":"IF($E130>EndDate,NA(),IF($O$2=TRUE,J130,IF('Cool Graph'!$B$17=1,Data1!J130,IF('Cool Graph'!$B$17=2,Data1!H130,IF('Cool Graph'!$B$17=3,Data1!I130,)))))","v":315.01055865849628},{"$f":"SUM(VLOOKUP($E130,AllData,COLUMN()-COLUMN($E130)),VLOOKUP($E130-1,AllData,COLUMN()-COLUMN($E130)),VLOOKUP($E130-2,AllData,COLUMN()-COLUMN($E130)),VLOOKUP($E130-3,AllData,COLUMN()-COLUMN($E130)),VLOOKUP($E130-4,AllData,COLUMN()-COLUMN($E130)),VLOOKUP($E130-5,AllData,COLUMN()-COLUMN($E130)),VLOOKUP($E130-6,AllData,COLUMN()-COLUMN($E130)))","v":4362.8471837630232},{"$f":"SUM(VLOOKUP($E130,AllData,COLUMN()-1-COLUMN($E130)),VLOOKUP($E130-1,AllData,COLUMN()-1-COLUMN($E130)),VLOOKUP($E130-2,AllData,COLUMN()-1-COLUMN($E130)),VLOOKUP($E130-3,AllData,COLUMN()-1-COLUMN($E130)),VLOOKUP($E130-4,AllData,COLUMN()-1-COLUMN($E130)),VLOOKUP($E130-5,AllData,COLUMN()-1-COLUMN($E130)),VLOOKUP($E130-6,AllData,COLUMN()-1-COLUMN($E130)),VLOOKUP($E130-7,AllData,COLUMN()-1-COLUMN($E130)),VLOOKUP($E130-8,AllData,COLUMN()-1-COLUMN($E130)),VLOOKUP($E130-9,AllData,COLUMN()-1-COLUMN($E130)),VLOOKUP($E130-10,AllData,COLUMN()-1-COLUMN($E130)),VLOOKUP($E130-11,AllData,COLUMN()-1-COLUMN($E130)),VLOOKUP($E130-12,AllData,COLUMN()-1-COLUMN($E130)),VLOOKUP($E130-13,AllData,COLUMN()-1-COLUMN($E130)),VLOOKUP($E130-14,AllData,COLUMN()-1-COLUMN($E130)),VLOOKUP($E130-15,AllData,COLUMN()-1-COLUMN($E130)),VLOOKUP($E130-16,AllData,COLUMN()-1-COLUMN($E130)),VLOOKUP($E130-17,AllData,COLUMN()-1-COLUMN($E130)),VLOOKUP($E130-18,AllData,COLUMN()-1-COLUMN($E130)),VLOOKUP($E130-19,AllData,COLUMN()-1-COLUMN($E130)),VLOOKUP($E130-20,AllData,COLUMN()-1-COLUMN($E130)),VLOOKUP($E130-21,AllData,COLUMN()-1-COLUMN($E130)),VLOOKUP($E130-22,AllData,COLUMN()-1-COLUMN($E130)),VLOOKUP($E130-23,AllData,COLUMN()-1-COLUMN($E130)),VLOOKUP($E130-24,AllData,COLUMN()-1-COLUMN($E130)),VLOOKUP($E130-25,AllData,COLUMN()-1-COLUMN($E130)),VLOOKUP($E130-26,AllData,COLUMN()-1-COLUMN($E130)),VLOOKUP($E130-27,AllData,COLUMN()-1-COLUMN($E130)),VLOOKUP($E130-28,AllData,COLUMN()-1-COLUMN($E130)),VLOOKUP($E130-29,AllData,COLUMN()-1-COLUMN($E130)))","v":17783.709583770029},{"$f":"VLOOKUP($E130,AllData,COLUMN()-2-COLUMN($E130))","v":315.01055865849628},{"$f":"OR('Cool Graph'!$H$1=35,'Cool Graph'!$H$1=36,'Cool Graph'!$H$1=37,'Cool Graph'!$H$1=38,'Cool Graph'!$H$1=39,'Cool Graph'!$H$1=40,'Cool Graph'!$H$1=41,'Cool Graph'!$H$1=42,'Cool Graph'!$H$1=43,'Cool Graph'!$H$1=44,'Cool Graph'!$H$1=45,'Cool Graph'!$H$1=46,'Cool Graph'!$H$1=47,'Cool Graph'!$H$1=58,'Cool Graph'!$H$1=66)","v":false},{"$f":"SUM(VLOOKUP($E130,AllData,COLUMN()-5-COLUMN($E130)),VLOOKUP($E130-1,AllData,COLUMN()-5-COLUMN($E130)),VLOOKUP($E130-2,AllData,COLUMN()-5-COLUMN($E130)),VLOOKUP($E130-3,AllData,COLUMN()-5-COLUMN($E130)),VLOOKUP($E130-4,AllData,COLUMN()-5-COLUMN($E130)),VLOOKUP($E130-5,AllData,COLUMN()-5-COLUMN($E130)),VLOOKUP($E130-6,AllData,COLUMN()-5-COLUMN($E130)))","v":114.92},{"$f":"SUM(VLOOKUP($E130,AllData,COLUMN()-6-COLUMN($E130)),VLOOKUP($E130-1,AllData,COLUMN()-6-COLUMN($E130)),VLOOKUP($E130-2,AllData,COLUMN()-6-COLUMN($E130)),VLOOKUP($E130-3,AllData,COLUMN()-6-COLUMN($E130)),VLOOKUP($E130-4,AllData,COLUMN()-6-COLUMN($E130)),VLOOKUP($E130-5,AllData,COLUMN()-6-COLUMN($E130)),VLOOKUP($E130-6,AllData,COLUMN()-6-COLUMN($E130)),VLOOKUP($E130-7,AllData,COLUMN()-6-COLUMN($E130)),VLOOKUP($E130-8,AllData,COLUMN()-6-COLUMN($E130)),VLOOKUP($E130-9,AllData,COLUMN()-6-COLUMN($E130)),VLOOKUP($E130-10,AllData,COLUMN()-6-COLUMN($E130)),VLOOKUP($E130-11,AllData,COLUMN()-6-COLUMN($E130)),VLOOKUP($E130-12,AllData,COLUMN()-6-COLUMN($E130)),VLOOKUP($E130-13,AllData,COLUMN()-6-COLUMN($E130)),VLOOKUP($E130-14,AllData,COLUMN()-6-COLUMN($E130)),VLOOKUP($E130-15,AllData,COLUMN()-6-COLUMN($E130)),VLOOKUP($E130-16,AllData,COLUMN()-6-COLUMN($E130)),VLOOKUP($E130-17,AllData,COLUMN()-6-COLUMN($E130)),VLOOKUP($E130-18,AllData,COLUMN()-6-COLUMN($E130)),VLOOKUP($E130-19,AllData,COLUMN()-6-COLUMN($E130)),VLOOKUP($E130-20,AllData,COLUMN()-6-COLUMN($E130)),VLOOKUP($E130-21,AllData,COLUMN()-6-COLUMN($E130)),VLOOKUP($E130-22,AllData,COLUMN()-6-COLUMN($E130)),VLOOKUP($E130-23,AllData,COLUMN()-6-COLUMN($E130)),VLOOKUP($E130-24,AllData,COLUMN()-6-COLUMN($E130)),VLOOKUP($E130-25,AllData,COLUMN()-6-COLUMN($E130)),VLOOKUP($E130-26,AllData,COLUMN()-6-COLUMN($E130)),VLOOKUP($E130-27,AllData,COLUMN()-6-COLUMN($E130)),VLOOKUP($E130-28,AllData,COLUMN()-6-COLUMN($E130)),VLOOKUP($E130-29,AllData,COLUMN()-6-COLUMN($E130)))","v":1587.6200000000006},{"$f":"VLOOKUP($E130,AllData,COLUMN()-7-COLUMN($E130))","v":8.81},{"$f":"OR('Cool Graph'!$I$1=35,'Cool Graph'!$I$1=36,'Cool Graph'!$I$1=37,'Cool Graph'!$I$1=38,'Cool Graph'!$I$1=39,'Cool Graph'!$I$1=40,'Cool Graph'!$I$1=41,'Cool Graph'!$I$1=42,'Cool Graph'!$I$1=43,'Cool Graph'!$I$1=44,'Cool Graph'!$I$1=45,'Cool Graph'!$I$1=46,'Cool Graph'!$I$1=47,'Cool Graph'!$I$1=58,'Cool Graph'!$I$1=66)","v":false}]
["2011-11-07",{"$f":"OFFSET(OldSchoolJustValues!A131,0,'Cool Graph'!$H$1)","v":0},{"$f":"OFFSET(OldSchoolJustValues!A131,0,'Cool Graph'!$I$1)","v":398.82473124802971},null,{"$f":"IF(NewDate>EndDate,NA(),NewDate)","v":"2012-02-02"},{"$f":"IF($E131>EndDate,NA(),IF($K$2=TRUE,N131,IF('Cool Graph'!$B$17=1,N131,IF('Cool Graph'!$B$17=2,L131,IF('Cool Graph'!$B$17=3,M131,)))))","v":79.209999999999994},{"$f":"IF($E131>EndDate,NA(),IF($O$2=TRUE,J131,IF('Cool Graph'!$B$17=1,Data1!J131,IF('Cool Graph'!$B$17=2,Data1!H131,IF('Cool Graph'!$B$17=3,Data1!I131,)))))","v":932.58189740712294},{"$f":"SUM(VLOOKUP($E131,AllData,COLUMN()-COLUMN($E131)),VLOOKUP($E131-1,AllData,COLUMN()-COLUMN($E131)),VLOOKUP($E131-2,AllData,COLUMN()-COLUMN($E131)),VLOOKUP($E131-3,AllData,COLUMN()-COLUMN($E131)),VLOOKUP($E131-4,AllData,COLUMN()-COLUMN($E131)),VLOOKUP($E131-5,AllData,COLUMN()-COLUMN($E131)),VLOOKUP($E131-6,AllData,COLUMN()-COLUMN($E131)))","v":4168.5787795350552},{"$f":"SUM(VLOOKUP($E131,AllData,COLUMN()-1-COLUMN($E131)),VLOOKUP($E131-1,AllData,COLUMN()-1-COLUMN($E131)),VLOOKUP($E131-2,AllData,COLUMN()-1-COLUMN($E131)),VLOOKUP($E131-3,AllData,COLUMN()-1-COLUMN($E131)),VLOOKUP($E131-4,AllData,COLUMN()-1-COLUMN($E131)),VLOOKUP($E131-5,AllData,COLUMN()-1-COLUMN($E131)),VLOOKUP($E131-6,AllData,COLUMN()-1-COLUMN($E131)),VLOOKUP($E131-7,AllData,COLUMN()-1-COLUMN($E131)),VLOOKUP($E131-8,AllData,COLUMN()-1-COLUMN($E131)),VLOOKUP($E131-9,AllData,COLUMN()-1-COLUMN($E131)),VLOOKUP($E131-10,AllData,COLUMN()-1-COLUMN($E131)),VLOOKUP($E131-11,AllData,COLUMN()-1-COLUMN($E131)),VLOOKUP($E131-12,AllData,COLUMN()-1-COLUMN($E131)),VLOOKUP($E131-13,AllData,COLUMN()-1-COLUMN($E131)),VLOOKUP($E131-14,AllData,COLUMN()-1-COLUMN($E131)),VLOOKUP($E131-15,AllData,COLUMN()-1-COLUMN($E131)),VLOOKUP($E131-16,AllData,COLUMN()-1-COLUMN($E131)),VLOOKUP($E131-17,AllData,COLUMN()-1-COLUMN($E131)),VLOOKUP($E131-18,AllData,COLUMN()-1-COLUMN($E131)),VLOOKUP($E131-19,AllData,COLUMN()-1-COLUMN($E131)),VLOOKUP($E131-20,AllData,COLUMN()-1-COLUMN($E131)),VLOOKUP($E131-21,AllData,COLUMN()-1-COLUMN($E131)),VLOOKUP($E131-22,AllData,COLUMN()-1-COLUMN($E131)),VLOOKUP($E131-23,AllData,COLUMN()-1-COLUMN($E131)),VLOOKUP($E131-24,AllData,COLUMN()-1-COLUMN($E131)),VLOOKUP($E131-25,AllData,COLUMN()-1-COLUMN($E131)),VLOOKUP($E131-26,AllData,COLUMN()-1-COLUMN($E131)),VLOOKUP($E131-27,AllData,COLUMN()-1-COLUMN($E131)),VLOOKUP($E131-28,AllData,COLUMN()-1-COLUMN($E131)),VLOOKUP($E131-29,AllData,COLUMN()-1-COLUMN($E131)))","v":18671.549303640993},{"$f":"VLOOKUP($E131,AllData,COLUMN()-2-COLUMN($E131))","v":932.58189740712294},{"$f":"OR('Cool Graph'!$H$1=35,'Cool Graph'!$H$1=36,'Cool Graph'!$H$1=37,'Cool Graph'!$H$1=38,'Cool Graph'!$H$1=39,'Cool Graph'!$H$1=40,'Cool Graph'!$H$1=41,'Cool Graph'!$H$1=42,'Cool Graph'!$H$1=43,'Cool Graph'!$H$1=44,'Cool Graph'!$H$1=45,'Cool Graph'!$H$1=46,'Cool Graph'!$H$1=47,'Cool Graph'!$H$1=58,'Cool Graph'!$H$1=66)","v":false},{"$f":"SUM(VLOOKUP($E131,AllData,COLUMN()-5-COLUMN($E131)),VLOOKUP($E131-1,AllData,COLUMN()-5-COLUMN($E131)),VLOOKUP($E131-2,AllData,COLUMN()-5-COLUMN($E131)),VLOOKUP($E131-3,AllData,COLUMN()-5-COLUMN($E131)),VLOOKUP($E131-4,AllData,COLUMN()-5-COLUMN($E131)),VLOOKUP($E131-5,AllData,COLUMN()-5-COLUMN($E131)),VLOOKUP($E131-6,AllData,COLUMN()-5-COLUMN($E131)))","v":159.43999999999997},{"$f":"SUM(VLOOKUP($E131,AllData,COLUMN()-6-COLUMN($E131)),VLOOKUP($E131-1,AllData,COLUMN()-6-COLUMN($E131)),VLOOKUP($E131-2,AllData,COLUMN()-6-COLUMN($E131)),VLOOKUP($E131-3,AllData,COLUMN()-6-COLUMN($E131)),VLOOKUP($E131-4,AllData,COLUMN()-6-COLUMN($E131)),VLOOKUP($E131-5,AllData,COLUMN()-6-COLUMN($E131)),VLOOKUP($E131-6,AllData,COLUMN()-6-COLUMN($E131)),VLOOKUP($E131-7,AllData,COLUMN()-6-COLUMN($E131)),VLOOKUP($E131-8,AllData,COLUMN()-6-COLUMN($E131)),VLOOKUP($E131-9,AllData,COLUMN()-6-COLUMN($E131)),VLOOKUP($E131-10,AllData,COLUMN()-6-COLUMN($E131)),VLOOKUP($E131-11,AllData,COLUMN()-6-COLUMN($E131)),VLOOKUP($E131-12,AllData,COLUMN()-6-COLUMN($E131)),VLOOKUP($E131-13,AllData,COLUMN()-6-COLUMN($E131)),VLOOKUP($E131-14,AllData,COLUMN()-6-COLUMN($E131)),VLOOKUP($E131-15,AllData,COLUMN()-6-COLUMN($E131)),VLOOKUP($E131-16,AllData,COLUMN()-6-COLUMN($E131)),VLOOKUP($E131-17,AllData,COLUMN()-6-COLUMN($E131)),VLOOKUP($E131-18,AllData,COLUMN()-6-COLUMN($E131)),VLOOKUP($E131-19,AllData,COLUMN()-6-COLUMN($E131)),VLOOKUP($E131-20,AllData,COLUMN()-6-COLUMN($E131)),VLOOKUP($E131-21,AllData,COLUMN()-6-COLUMN($E131)),VLOOKUP($E131-22,AllData,COLUMN()-6-COLUMN($E131)),VLOOKUP($E131-23,AllData,COLUMN()-6-COLUMN($E131)),VLOOKUP($E131-24,AllData,COLUMN()-6-COLUMN($E131)),VLOOKUP($E131-25,AllData,COLUMN()-6-COLUMN($E131)),VLOOKUP($E131-26,AllData,COLUMN()-6-COLUMN($E131)),VLOOKUP($E131-27,AllData,COLUMN()-6-COLUMN($E131)),VLOOKUP($E131-28,AllData,COLUMN()-6-COLUMN($E131)),VLOOKUP($E131-29,AllData,COLUMN()-6-COLUMN($E131)))","v":1666.1900000000005},{"$f":"VLOOKUP($E131,AllData,COLUMN()-7-COLUMN($E131))","v":79.209999999999994},{"$f":"OR('Cool Graph'!$I$1=35,'Cool Graph'!$I$1=36,'Cool Graph'!$I$1=37,'Cool Graph'!$I$1=38,'Cool Graph'!$I$1=39,'Cool Graph'!$I$1=40,'Cool Graph'!$I$1=41,'Cool Graph'!$I$1=42,'Cool Graph'!$I$1=43,'Cool Graph'!$I$1=44,'Cool Graph'!$I$1=45,'Cool Graph'!$I$1=46,'Cool Graph'!$I$1=47,'Cool Graph'!$I$1=58,'Cool Graph'!$I$1=66)","v":false}]
["2011-11-08",{"$f":"OFFSET(OldSchoolJustValues!A132,0,'Cool Graph'!$H$1)","v":0},{"$f":"OFFSET(OldSchoolJustValues!A132,0,'Cool Graph'!$I$1)","v":606.48307821636172},null,{"$f":"IF(NewDate>EndDate,NA(),NewDate)","v":"2012-02-03"},{"$f":"IF($E132>EndDate,NA(),IF($K$2=TRUE,N132,IF('Cool Graph'!$B$17=1,N132,IF('Cool Graph'!$B$17=2,L132,IF('Cool Graph'!$B$17=3,M132,)))))","v":55.81},{"$f":"IF($E132>EndDate,NA(),IF($O$2=TRUE,J132,IF('Cool Graph'!$B$17=1,Data1!J132,IF('Cool Graph'!$B$17=2,Data1!H132,IF('Cool Graph'!$B$17=3,Data1!I132,)))))","v":246.81587506644479},{"$f":"SUM(VLOOKUP($E132,AllData,COLUMN()-COLUMN($E132)),VLOOKUP($E132-1,AllData,COLUMN()-COLUMN($E132)),VLOOKUP($E132-2,AllData,COLUMN()-COLUMN($E132)),VLOOKUP($E132-3,AllData,COLUMN()-COLUMN($E132)),VLOOKUP($E132-4,AllData,COLUMN()-COLUMN($E132)),VLOOKUP($E132-5,AllData,COLUMN()-COLUMN($E132)),VLOOKUP($E132-6,AllData,COLUMN()-COLUMN($E132)))","v":4084.8528805825622},{"$f":"SUM(VLOOKUP($E132,AllData,COLUMN()-1-COLUMN($E132)),VLOOKUP($E132-1,AllData,COLUMN()-1-COLUMN($E132)),VLOOKUP($E132-2,AllData,COLUMN()-1-COLUMN($E132)),VLOOKUP($E132-3,AllData,COLUMN()-1-COLUMN($E132)),VLOOKUP($E132-4,AllData,COLUMN()-1-COLUMN($E132)),VLOOKUP($E132-5,AllData,COLUMN()-1-COLUMN($E132)),VLOOKUP($E132-6,AllData,COLUMN()-1-COLUMN($E132)),VLOOKUP($E132-7,AllData,COLUMN()-1-COLUMN($E132)),VLOOKUP($E132-8,AllData,COLUMN()-1-COLUMN($E132)),VLOOKUP($E132-9,AllData,COLUMN()-1-COLUMN($E132)),VLOOKUP($E132-10,AllData,COLUMN()-1-COLUMN($E132)),VLOOKUP($E132-11,AllData,COLUMN()-1-COLUMN($E132)),VLOOKUP($E132-12,AllData,COLUMN()-1-COLUMN($E132)),VLOOKUP($E132-13,AllData,COLUMN()-1-COLUMN($E132)),VLOOKUP($E132-14,AllData,COLUMN()-1-COLUMN($E132)),VLOOKUP($E132-15,AllData,COLUMN()-1-COLUMN($E132)),VLOOKUP($E132-16,AllData,COLUMN()-1-COLUMN($E132)),VLOOKUP($E132-17,AllData,COLUMN()-1-COLUMN($E132)),VLOOKUP($E132-18,AllData,COLUMN()-1-COLUMN($E132)),VLOOKUP($E132-19,AllData,COLUMN()-1-COLUMN($E132)),VLOOKUP($E132-20,AllData,COLUMN()-1-COLUMN($E132)),VLOOKUP($E132-21,AllData,COLUMN()-1-COLUMN($E132)),VLOOKUP($E132-22,AllData,COLUMN()-1-COLUMN($E132)),VLOOKUP($E132-23,AllData,COLUMN()-1-COLUMN($E132)),VLOOKUP($E132-24,AllData,COLUMN()-1-COLUMN($E132)),VLOOKUP($E132-25,AllData,COLUMN()-1-COLUMN($E132)),VLOOKUP($E132-26,AllData,COLUMN()-1-COLUMN($E132)),VLOOKUP($E132-27,AllData,COLUMN()-1-COLUMN($E132)),VLOOKUP($E132-28,AllData,COLUMN()-1-COLUMN($E132)),VLOOKUP($E132-29,AllData,COLUMN()-1-COLUMN($E132)))","v":18206.98093505048},{"$f":"VLOOKUP($E132,AllData,COLUMN()-2-COLUMN($E132))","v":246.81587506644479},{"$f":"OR('Cool Graph'!$H$1=35,'Cool Graph'!$H$1=36,'Cool Graph'!$H$1=37,'Cool Graph'!$H$1=38,'Cool Graph'!$H$1=39,'Cool Graph'!$H$1=40,'Cool Graph'!$H$1=41,'Cool Graph'!$H$1=42,'Cool Graph'!$H$1=43,'Cool Graph'!$H$1=44,'Cool Graph'!$H$1=45,'Cool Graph'!$H$1=46,'Cool Graph'!$H$1=47,'Cool Graph'!$H$1=58,'Cool Graph'!$H$1=66)","v":false},{"$f":"SUM(VLOOKUP($E132,AllData,COLUMN()-5-COLUMN($E132)),VLOOKUP($E132-1,AllData,COLUMN()-5-COLUMN($E132)),VLOOKUP($E132-2,AllData,COLUMN()-5-COLUMN($E132)),VLOOKUP($E132-3,AllData,COLUMN()-5-COLUMN($E132)),VLOOKUP($E132-4,AllData,COLUMN()-5-COLUMN($E132)),VLOOKUP($E132-5,AllData,COLUMN()-5-COLUMN($E132)),VLOOKUP($E132-6,AllData,COLUMN()-5-COLUMN($E132)))","v":194.55},{"$f":"SUM(VLOOKUP($E132,AllData,COLUMN()-6-COLUMN($E132)),VLOOKUP($E132-1,AllData,COLUMN()-6-COLUMN($E132)),VLOOKUP($E132-2,AllData,COLUMN()-6-COLUMN($E132)),VLOOKUP($E132-3,AllData,COLUMN()-6-COLUMN($E132)),VLOOKUP($E132-4,AllData,COLUMN()-6-COLUMN($E132)),VLOOKUP($E132-5,AllData,COLUMN()-6-COLUMN($E132)),VLOOKUP($E132-6,AllData,COLUMN()-6-COLUMN($E132)),VLOOKUP($E132-7,AllData,COLUMN()-6-COLUMN($E132)),VLOOKUP($E132-8,AllData,COLUMN()-6-COLUMN($E132)),VLOOKUP($E132-9,AllData,COLUMN()-6-COLUMN($E132)),VLOOKUP($E132-10,AllData,COLUMN()-6-COLUMN($E132)),VLOOKUP($E132-11,AllData,COLUMN()-6-COLUMN($E132)),VLOOKUP($E132-12,AllData,COLUMN()-6-COLUMN($E132)),VLOOKUP($E132-13,AllData,COLUMN()-6-COLUMN($E132)),VLOOKUP($E132-14,AllData,COLUMN()-6-COLUMN($E132)),VLOOKUP($E132-15,AllData,COLUMN()-6-COLUMN($E132)),VLOOKUP($E132-16,AllData,COLUMN()-6-COLUMN($E132)),VLOOKUP($E132-17,AllData,COLUMN()-6-COLUMN($E132)),VLOOKUP($E132-18,AllData,COLUMN()-6-COLUMN($E132)),VLOOKUP($E132-19,AllData,COLUMN()-6-COLUMN($E132)),VLOOKUP($E132-20,AllData,COLUMN()-6-COLUMN($E132)),VLOOKUP($E132-21,AllData,COLUMN()-6-COLUMN($E132)),VLOOKUP($E132-22,AllData,COLUMN()-6-COLUMN($E132)),VLOOKUP($E132-23,AllData,COLUMN()-6-COLUMN($E132)),VLOOKUP($E132-24,AllData,COLUMN()-6-COLUMN($E132)),VLOOKUP($E132-25,AllData,COLUMN()-6-COLUMN($E132)),VLOOKUP($E132-26,AllData,COLUMN()-6-COLUMN($E132)),VLOOKUP($E132-27,AllData,COLUMN()-6-COLUMN($E132)),VLOOKUP($E132-28,AllData,COLUMN()-6-COLUMN($E132)),VLOOKUP($E132-29,AllData,COLUMN()-6-COLUMN($E132)))","v":1713.1700000000005},{"$f":"VLOOKUP($E132,AllData,COLUMN()-7-COLUMN($E132))","v":55.81},{"$f":"OR('Cool Graph'!$I$1=35,'Cool Graph'!$I$1=36,'Cool Graph'!$I$1=37,'Cool Graph'!$I$1=38,'Cool Graph'!$I$1=39,'Cool Graph'!$I$1=40,'Cool Graph'!$I$1=41,'Cool Graph'!$I$1=42,'Cool Graph'!$I$1=43,'Cool Graph'!$I$1=44,'Cool Graph'!$I$1=45,'Cool Graph'!$I$1=46,'Cool Graph'!$I$1=47,'Cool Graph'!$I$1=58,'Cool Graph'!$I$1=66)","v":false}]
["2011-11-09",{"$f":"OFFSET(OldSchoolJustValues!A133,0,'Cool Graph'!$H$1)","v":0},{"$f":"OFFSET(OldSchoolJustValues!A133,0,'Cool Graph'!$I$1)","v":457.11313708950894},null,{"$f":"IF(NewDate>EndDate,NA(),NewDate)","v":"2012-02-04"},{"$f":"IF($E133>EndDate,NA(),IF($K$2=TRUE,N133,IF('Cool Graph'!$B$17=1,N133,IF('Cool Graph'!$B$17=2,L133,IF('Cool Graph'!$B$17=3,M133,)))))","v":110.47},{"$f":"IF($E133>EndDate,NA(),IF($O$2=TRUE,J133,IF('Cool Graph'!$B$17=1,Data1!J133,IF('Cool Graph'!$B$17=2,Data1!H133,IF('Cool Graph'!$B$17=3,Data1!I133,)))))","v":518.09065269449593},{"$f":"SUM(VLOOKUP($E133,AllData,COLUMN()-COLUMN($E133)),VLOOKUP($E133-1,AllData,COLUMN()-COLUMN($E133)),VLOOKUP($E133-2,AllData,COLUMN()-COLUMN($E133)),VLOOKUP($E133-3,AllData,COLUMN()-COLUMN($E133)),VLOOKUP($E133-4,AllData,COLUMN()-COLUMN($E133)),VLOOKUP($E133-5,AllData,COLUMN()-COLUMN($E133)),VLOOKUP($E133-6,AllData,COLUMN()-COLUMN($E133)))","v":4161.9561814081744},{"$f":"SUM(VLOOKUP($E133,AllData,COLUMN()-1-COLUMN($E133)),VLOOKUP($E133-1,AllData,COLUMN()-1-COLUMN($E133)),VLOOKUP($E133-2,AllData,COLUMN()-1-COLUMN($E133)),VLOOKUP($E133-3,AllData,COLUMN()-1-COLUMN($E133)),VLOOKUP($E133-4,AllData,COLUMN()-1-COLUMN($E133)),VLOOKUP($E133-5,AllData,COLUMN()-1-COLUMN($E133)),VLOOKUP($E133-6,AllData,COLUMN()-1-COLUMN($E133)),VLOOKUP($E133-7,AllData,COLUMN()-1-COLUMN($E133)),VLOOKUP($E133-8,AllData,COLUMN()-1-COLUMN($E133)),VLOOKUP($E133-9,AllData,COLUMN()-1-COLUMN($E133)),VLOOKUP($E133-10,AllData,COLUMN()-1-COLUMN($E133)),VLOOKUP($E133-11,AllData,COLUMN()-1-COLUMN($E133)),VLOOKUP($E133-12,AllData,COLUMN()-1-COLUMN($E133)),VLOOKUP($E133-13,AllData,COLUMN()-1-COLUMN($E133)),VLOOKUP($E133-14,AllData,COLUMN()-1-COLUMN($E133)),VLOOKUP($E133-15,AllData,COLUMN()-1-COLUMN($E133)),VLOOKUP($E133-16,AllData,COLUMN()-1-COLUMN($E133)),VLOOKUP($E133-17,AllData,COLUMN()-1-COLUMN($E133)),VLOOKUP($E133-18,AllData,COLUMN()-1-COLUMN($E133)),VLOOKUP($E133-19,AllData,COLUMN()-1-COLUMN($E133)),VLOOKUP($E133-20,AllData,COLUMN()-1-COLUMN($E133)),VLOOKUP($E133-21,AllData,COLUMN()-1-COLUMN($E133)),VLOOKUP($E133-22,AllData,COLUMN()-1-COLUMN($E133)),VLOOKUP($E133-23,AllData,COLUMN()-1-COLUMN($E133)),VLOOKUP($E133-24,AllData,COLUMN()-1-COLUMN($E133)),VLOOKUP($E133-25,AllData,COLUMN()-1-COLUMN($E133)),VLOOKUP($E133-26,AllData,COLUMN()-1-COLUMN($E133)),VLOOKUP($E133-27,AllData,COLUMN()-1-COLUMN($E133)),VLOOKUP($E133-28,AllData,COLUMN()-1-COLUMN($E133)),VLOOKUP($E133-29,AllData,COLUMN()-1-COLUMN($E133)))","v":18054.343003305086},{"$f":"VLOOKUP($E133,AllData,COLUMN()-2-COLUMN($E133))","v":518.09065269449593},{"$f":"OR('Cool Graph'!$H$1=35,'Cool Graph'!$H$1=36,'Cool Graph'!$H$1=37,'Cool Graph'!$H$1=38,'Cool Graph'!$H$1=39,'Cool Graph'!$H$1=40,'Cool Graph'!$H$1=41,'Cool Graph'!$H$1=42,'Cool Graph'!$H$1=43,'Cool Graph'!$H$1=44,'Cool Graph'!$H$1=45,'Cool Graph'!$H$1=46,'Cool Graph'!$H$1=47,'Cool Graph'!$H$1=58,'Cool Graph'!$H$1=66)","v":false},{"$f":"SUM(VLOOKUP($E133,AllData,COLUMN()-5-COLUMN($E133)),VLOOKUP($E133-1,AllData,COLUMN()-5-COLUMN($E133)),VLOOKUP($E133-2,AllData,COLUMN()-5-COLUMN($E133)),VLOOKUP($E133-3,AllData,COLUMN()-5-COLUMN($E133)),VLOOKUP($E133-4,AllData,COLUMN()-5-COLUMN($E133)),VLOOKUP($E133-5,AllData,COLUMN()-5-COLUMN($E133)),VLOOKUP($E133-6,AllData,COLUMN()-5-COLUMN($E133)))","v":288.95999999999998},{"$f":"SUM(VLOOKUP($E133,AllData,COLUMN()-6-COLUMN($E133)),VLOOKUP($E133-1,AllData,COLUMN()-6-COLUMN($E133)),VLOOKUP($E133-2,AllData,COLUMN()-6-COLUMN($E133)),VLOOKUP($E133-3,AllData,COLUMN()-6-COLUMN($E133)),VLOOKUP($E133-4,AllData,COLUMN()-6-COLUMN($E133)),VLOOKUP($E133-5,AllData,COLUMN()-6-COLUMN($E133)),VLOOKUP($E133-6,AllData,COLUMN()-6-COLUMN($E133)),VLOOKUP($E133-7,AllData,COLUMN()-6-COLUMN($E133)),VLOOKUP($E133-8,AllData,COLUMN()-6-COLUMN($E133)),VLOOKUP($E133-9,AllData,COLUMN()-6-COLUMN($E133)),VLOOKUP($E133-10,AllData,COLUMN()-6-COLUMN($E133)),VLOOKUP($E133-11,AllData,COLUMN()-6-COLUMN($E133)),VLOOKUP($E133-12,AllData,COLUMN()-6-COLUMN($E133)),VLOOKUP($E133-13,AllData,COLUMN()-6-COLUMN($E133)),VLOOKUP($E133-14,AllData,COLUMN()-6-COLUMN($E133)),VLOOKUP($E133-15,AllData,COLUMN()-6-COLUMN($E133)),VLOOKUP($E133-16,AllData,COLUMN()-6-COLUMN($E133)),VLOOKUP($E133-17,AllData,COLUMN()-6-COLUMN($E133)),VLOOKUP($E133-18,AllData,COLUMN()-6-COLUMN($E133)),VLOOKUP($E133-19,AllData,COLUMN()-6-COLUMN($E133)),VLOOKUP($E133-20,AllData,COLUMN()-6-COLUMN($E133)),VLOOKUP($E133-21,AllData,COLUMN()-6-COLUMN($E133)),VLOOKUP($E133-22,AllData,COLUMN()-6-COLUMN($E133)),VLOOKUP($E133-23,AllData,COLUMN()-6-COLUMN($E133)),VLOOKUP($E133-24,AllData,COLUMN()-6-COLUMN($E133)),VLOOKUP($E133-25,AllData,COLUMN()-6-COLUMN($E133)),VLOOKUP($E133-26,AllData,COLUMN()-6-COLUMN($E133)),VLOOKUP($E133-27,AllData,COLUMN()-6-COLUMN($E133)),VLOOKUP($E133-28,AllData,COLUMN()-6-COLUMN($E133)),VLOOKUP($E133-29,AllData,COLUMN()-6-COLUMN($E133)))","v":1717.7600000000002},{"$f":"VLOOKUP($E133,AllData,COLUMN()-7-COLUMN($E133))","v":110.47},{"$f":"OR('Cool Graph'!$I$1=35,'Cool Graph'!$I$1=36,'Cool Graph'!$I$1=37,'Cool Graph'!$I$1=38,'Cool Graph'!$I$1=39,'Cool Graph'!$I$1=40,'Cool Graph'!$I$1=41,'Cool Graph'!$I$1=42,'Cool Graph'!$I$1=43,'Cool Graph'!$I$1=44,'Cool Graph'!$I$1=45,'Cool Graph'!$I$1=46,'Cool Graph'!$I$1=47,'Cool Graph'!$I$1=58,'Cool Graph'!$I$1=66)","v":false}]
["2011-11-10",{"$f":"OFFSET(OldSchoolJustValues!A134,0,'Cool Graph'!$H$1)","v":0},{"$f":"OFFSET(OldSchoolJustValues!A134,0,'Cool Graph'!$I$1)","v":77.523254835803613},null,{"$f":"IF(NewDate>EndDate,NA(),NewDate)","v":"2012-02-05"},{"$f":"IF($E134>EndDate,NA(),IF($K$2=TRUE,N134,IF('Cool Graph'!$B$17=1,N134,IF('Cool Graph'!$B$17=2,L134,IF('Cool Graph'!$B$17=3,M134,)))))","v":85.93},{"$f":"IF($E134>EndDate,NA(),IF($O$2=TRUE,J134,IF('Cool Graph'!$B$17=1,Data1!J134,IF('Cool Graph'!$B$17=2,Data1!H134,IF('Cool Graph'!$B$17=3,Data1!I134,)))))","v":722.17279616102132},{"$f":"SUM(VLOOKUP($E134,AllData,COLUMN()-COLUMN($E134)),VLOOKUP($E134-1,AllData,COLUMN()-COLUMN($E134)),VLOOKUP($E134-2,AllData,COLUMN()-COLUMN($E134)),VLOOKUP($E134-3,AllData,COLUMN()-COLUMN($E134)),VLOOKUP($E134-4,AllData,COLUMN()-COLUMN($E134)),VLOOKUP($E134-5,AllData,COLUMN()-COLUMN($E134)),VLOOKUP($E134-6,AllData,COLUMN()-COLUMN($E134)))","v":3525.972594024242},{"$f":"SUM(VLOOKUP($E134,AllData,COLUMN()-1-COLUMN($E134)),VLOOKUP($E134-1,AllData,COLUMN()-1-COLUMN($E134)),VLOOKUP($E134-2,AllData,COLUMN()-1-COLUMN($E134)),VLOOKUP($E134-3,AllData,COLUMN()-1-COLUMN($E134)),VLOOKUP($E134-4,AllData,COLUMN()-1-COLUMN($E134)),VLOOKUP($E134-5,AllData,COLUMN()-1-COLUMN($E134)),VLOOKUP($E134-6,AllData,COLUMN()-1-COLUMN($E134)),VLOOKUP($E134-7,AllData,COLUMN()-1-COLUMN($E134)),VLOOKUP($E134-8,AllData,COLUMN()-1-COLUMN($E134)),VLOOKUP($E134-9,AllData,COLUMN()-1-COLUMN($E134)),VLOOKUP($E134-10,AllData,COLUMN()-1-COLUMN($E134)),VLOOKUP($E134-11,AllData,COLUMN()-1-COLUMN($E134)),VLOOKUP($E134-12,AllData,COLUMN()-1-COLUMN($E134)),VLOOKUP($E134-13,AllData,COLUMN()-1-COLUMN($E134)),VLOOKUP($E134-14,AllData,COLUMN()-1-COLUMN($E134)),VLOOKUP($E134-15,AllData,COLUMN()-1-COLUMN($E134)),VLOOKUP($E134-16,AllData,COLUMN()-1-COLUMN($E134)),VLOOKUP($E134-17,AllData,COLUMN()-1-COLUMN($E134)),VLOOKUP($E134-18,AllData,COLUMN()-1-COLUMN($E134)),VLOOKUP($E134-19,AllData,COLUMN()-1-COLUMN($E134)),VLOOKUP($E134-20,AllData,COLUMN()-1-COLUMN($E134)),VLOOKUP($E134-21,AllData,COLUMN()-1-COLUMN($E134)),VLOOKUP($E134-22,AllData,COLUMN()-1-COLUMN($E134)),VLOOKUP($E134-23,AllData,COLUMN()-1-COLUMN($E134)),VLOOKUP($E134-24,AllData,COLUMN()-1-COLUMN($E134)),VLOOKUP($E134-25,AllData,COLUMN()-1-COLUMN($E134)),VLOOKUP($E134-26,AllData,COLUMN()-1-COLUMN($E134)),VLOOKUP($E134-27,AllData,COLUMN()-1-COLUMN($E134)),VLOOKUP($E134-28,AllData,COLUMN()-1-COLUMN($E134)),VLOOKUP($E134-29,AllData,COLUMN()-1-COLUMN($E134)))","v":18754.437152138646},{"$f":"VLOOKUP($E134,AllData,COLUMN()-2-COLUMN($E134))","v":722.17279616102132},{"$f":"OR('Cool Graph'!$H$1=35,'Cool Graph'!$H$1=36,'Cool Graph'!$H$1=37,'Cool Graph'!$H$1=38,'Cool Graph'!$H$1=39,'Cool Graph'!$H$1=40,'Cool Graph'!$H$1=41,'Cool Graph'!$H$1=42,'Cool Graph'!$H$1=43,'Cool Graph'!$H$1=44,'Cool Graph'!$H$1=45,'Cool Graph'!$H$1=46,'Cool Graph'!$H$1=47,'Cool Graph'!$H$1=58,'Cool Graph'!$H$1=66)","v":false},{"$f":"SUM(VLOOKUP($E134,AllData,COLUMN()-5-COLUMN($E134)),VLOOKUP($E134-1,AllData,COLUMN()-5-COLUMN($E134)),VLOOKUP($E134-2,AllData,COLUMN()-5-COLUMN($E134)),VLOOKUP($E134-3,AllData,COLUMN()-5-COLUMN($E134)),VLOOKUP($E134-4,AllData,COLUMN()-5-COLUMN($E134)),VLOOKUP($E134-5,AllData,COLUMN()-5-COLUMN($E134)),VLOOKUP($E134-6,AllData,COLUMN()-5-COLUMN($E134)))","v":364.31},{"$f":"SUM(VLOOKUP($E134,AllData,COLUMN()-6-COLUMN($E134)),VLOOKUP($E134-1,AllData,COLUMN()-6-COLUMN($E134)),VLOOKUP($E134-2,AllData,COLUMN()-6-COLUMN($E134)),VLOOKUP($E134-3,AllData,COLUMN()-6-COLUMN($E134)),VLOOKUP($E134-4,AllData,COLUMN()-6-COLUMN($E134)),VLOOKUP($E134-5,AllData,COLUMN()-6-COLUMN($E134)),VLOOKUP($E134-6,AllData,COLUMN()-6-COLUMN($E134)),VLOOKUP($E134-7,AllData,COLUMN()-6-COLUMN($E134)),VLOOKUP($E134-8,AllData,COLUMN()-6-COLUMN($E134)),VLOOKUP($E134-9,AllData,COLUMN()-6-COLUMN($E134)),VLOOKUP($E134-10,AllData,COLUMN()-6-COLUMN($E134)),VLOOKUP($E134-11,AllData,COLUMN()-6-COLUMN($E134)),VLOOKUP($E134-12,AllData,COLUMN()-6-COLUMN($E134)),VLOOKUP($E134-13,AllData,COLUMN()-6-COLUMN($E134)),VLOOKUP($E134-14,AllData,COLUMN()-6-COLUMN($E134)),VLOOKUP($E134-15,AllData,COLUMN()-6-COLUMN($E134)),VLOOKUP($E134-16,AllData,COLUMN()-6-COLUMN($E134)),VLOOKUP($E134-17,AllData,COLUMN()-6-COLUMN($E134)),VLOOKUP($E134-18,AllData,COLUMN()-6-COLUMN($E134)),VLOOKUP($E134-19,AllData,COLUMN()-6-COLUMN($E134)),VLOOKUP($E134-20,AllData,COLUMN()-6-COLUMN($E134)),VLOOKUP($E134-21,AllData,COLUMN()-6-COLUMN($E134)),VLOOKUP($E134-22,AllData,COLUMN()-6-COLUMN($E134)),VLOOKUP($E134-23,AllData,COLUMN()-6-COLUMN($E134)),VLOOKUP($E134-24,AllData,COLUMN()-6-COLUMN($E134)),VLOOKUP($E134-25,AllData,COLUMN()-6-COLUMN($E134)),VLOOKUP($E134-26,AllData,COLUMN()-6-COLUMN($E134)),VLOOKUP($E134-27,AllData,COLUMN()-6-COLUMN($E134)),VLOOKUP($E134-28,AllData,COLUMN()-6-COLUMN($E134)),VLOOKUP($E134-29,AllData,COLUMN()-6-COLUMN($E134)))","v":1701.5700000000002},{"$f":"VLOOKUP($E134,AllData,COLUMN()-7-COLUMN($E134))","v":85.93},{"$f":"OR('Cool Graph'!$I$1=35,'Cool Graph'!$I$1=36,'Cool Graph'!$I$1=37,'Cool Graph'!$I$1=38,'Cool Graph'!$I$1=39,'Cool Graph'!$I$1=40,'Cool Graph'!$I$1=41,'Cool Graph'!$I$1=42,'Cool Graph'!$I$1=43,'Cool Graph'!$I$1=44,'Cool Graph'!$I$1=45,'Cool Graph'!$I$1=46,'Cool Graph'!$I$1=47,'Cool Graph'!$I$1=58,'Cool Graph'!$I$1=66)","v":false}]
["2011-11-11",{"$f":"OFFSET(OldSchoolJustValues!A135,0,'Cool Graph'!$H$1)","v":0},{"$f":"OFFSET(OldSchoolJustValues!A135,0,'Cool Graph'!$I$1)","v":145.08656854475447},null,{"$f":"IF(NewDate>EndDate,NA(),NewDate)","v":"2012-02-06"},{"$f":"IF($E135>EndDate,NA(),IF($K$2=TRUE,N135,IF('Cool Graph'!$B$17=1,N135,IF('Cool Graph'!$B$17=2,L135,IF('Cool Graph'!$B$17=3,M135,)))))","v":45.73},{"$f":"IF($E135>EndDate,NA(),IF($O$2=TRUE,J135,IF('Cool Graph'!$B$17=1,Data1!J135,IF('Cool Graph'!$B$17=2,Data1!H135,IF('Cool Graph'!$B$17=3,Data1!I135,)))))","v":550.2970576719249},{"$f":"SUM(VLOOKUP($E135,AllData,COLUMN()-COLUMN($E135)),VLOOKUP($E135-1,AllData,COLUMN()-COLUMN($E135)),VLOOKUP($E135-2,AllData,COLUMN()-COLUMN($E135)),VLOOKUP($E135-3,AllData,COLUMN()-COLUMN($E135)),VLOOKUP($E135-4,AllData,COLUMN()-COLUMN($E135)),VLOOKUP($E135-5,AllData,COLUMN()-COLUMN($E135)),VLOOKUP($E135-6,AllData,COLUMN()-COLUMN($E135)))","v":3637.219937896004},{"$f":"SUM(VLOOKUP($E135,AllData,COLUMN()-1-COLUMN($E135)),VLOOKUP($E135-1,AllData,COLUMN()-1-COLUMN($E135)),VLOOKUP($E135-2,AllData,COLUMN()-1-COLUMN($E135)),VLOOKUP($E135-3,AllData,COLUMN()-1-COLUMN($E135)),VLOOKUP($E135-4,AllData,COLUMN()-1-COLUMN($E135)),VLOOKUP($E135-5,AllData,COLUMN()-1-COLUMN($E135)),VLOOKUP($E135-6,AllData,COLUMN()-1-COLUMN($E135)),VLOOKUP($E135-7,AllData,COLUMN()-1-COLUMN($E135)),VLOOKUP($E135-8,AllData,COLUMN()-1-COLUMN($E135)),VLOOKUP($E135-9,AllData,COLUMN()-1-COLUMN($E135)),VLOOKUP($E135-10,AllData,COLUMN()-1-COLUMN($E135)),VLOOKUP($E135-11,AllData,COLUMN()-1-COLUMN($E135)),VLOOKUP($E135-12,AllData,COLUMN()-1-COLUMN($E135)),VLOOKUP($E135-13,AllData,COLUMN()-1-COLUMN($E135)),VLOOKUP($E135-14,AllData,COLUMN()-1-COLUMN($E135)),VLOOKUP($E135-15,AllData,COLUMN()-1-COLUMN($E135)),VLOOKUP($E135-16,AllData,COLUMN()-1-COLUMN($E135)),VLOOKUP($E135-17,AllData,COLUMN()-1-COLUMN($E135)),VLOOKUP($E135-18,AllData,COLUMN()-1-COLUMN($E135)),VLOOKUP($E135-19,AllData,COLUMN()-1-COLUMN($E135)),VLOOKUP($E135-20,AllData,COLUMN()-1-COLUMN($E135)),VLOOKUP($E135-21,AllData,COLUMN()-1-COLUMN($E135)),VLOOKUP($E135-22,AllData,COLUMN()-1-COLUMN($E135)),VLOOKUP($E135-23,AllData,COLUMN()-1-COLUMN($E135)),VLOOKUP($E135-24,AllData,COLUMN()-1-COLUMN($E135)),VLOOKUP($E135-25,AllData,COLUMN()-1-COLUMN($E135)),VLOOKUP($E135-26,AllData,COLUMN()-1-COLUMN($E135)),VLOOKUP($E135-27,AllData,COLUMN()-1-COLUMN($E135)),VLOOKUP($E135-28,AllData,COLUMN()-1-COLUMN($E135)),VLOOKUP($E135-29,AllData,COLUMN()-1-COLUMN($E135)))","v":18405.377083303356},{"$f":"VLOOKUP($E135,AllData,COLUMN()-2-COLUMN($E135))","v":550.2970576719249},{"$f":"OR('Cool Graph'!$H$1=35,'Cool Graph'!$H$1=36,'Cool Graph'!$H$1=37,'Cool Graph'!$H$1=38,'Cool Graph'!$H$1=39,'Cool Graph'!$H$1=40,'Cool Graph'!$H$1=41,'Cool Graph'!$H$1=42,'Cool Graph'!$H$1=43,'Cool Graph'!$H$1=44,'Cool Graph'!$H$1=45,'Cool Graph'!$H$1=46,'Cool Graph'!$H$1=47,'Cool Graph'!$H$1=58,'Cool Graph'!$H$1=66)","v":false},{"$f":"SUM(VLOOKUP($E135,AllData,COLUMN()-5-COLUMN($E135)),VLOOKUP($E135-1,AllData,COLUMN()-5-COLUMN($E135)),VLOOKUP($E135-2,AllData,COLUMN()-5-COLUMN($E135)),VLOOKUP($E135-3,AllData,COLUMN()-5-COLUMN($E135)),VLOOKUP($E135-4,AllData,COLUMN()-5-COLUMN($E135)),VLOOKUP($E135-5,AllData,COLUMN()-5-COLUMN($E135)),VLOOKUP($E135-6,AllData,COLUMN()-5-COLUMN($E135)))","v":400.26},{"$f":"SUM(VLOOKUP($E135,AllData,COLUMN()-6-COLUMN($E135)),VLOOKUP($E135-1,AllData,COLUMN()-6-COLUMN($E135)),VLOOKUP($E135-2,AllData,COLUMN()-6-COLUMN($E135)),VLOOKUP($E135-3,AllData,COLUMN()-6-COLUMN($E135)),VLOOKUP($E135-4,AllData,COLUMN()-6-COLUMN($E135)),VLOOKUP($E135-5,AllData,COLUMN()-6-COLUMN($E135)),VLOOKUP($E135-6,AllData,COLUMN()-6-COLUMN($E135)),VLOOKUP($E135-7,AllData,COLUMN()-6-COLUMN($E135)),VLOOKUP($E135-8,AllData,COLUMN()-6-COLUMN($E135)),VLOOKUP($E135-9,AllData,COLUMN()-6-COLUMN($E135)),VLOOKUP($E135-10,AllData,COLUMN()-6-COLUMN($E135)),VLOOKUP($E135-11,AllData,COLUMN()-6-COLUMN($E135)),VLOOKUP($E135-12,AllData,COLUMN()-6-COLUMN($E135)),VLOOKUP($E135-13,AllData,COLUMN()-6-COLUMN($E135)),VLOOKUP($E135-14,AllData,COLUMN()-6-COLUMN($E135)),VLOOKUP($E135-15,AllData,COLUMN()-6-COLUMN($E135)),VLOOKUP($E135-16,AllData,COLUMN()-6-COLUMN($E135)),VLOOKUP($E135-17,AllData,COLUMN()-6-COLUMN($E135)),VLOOKUP($E135-18,AllData,COLUMN()-6-COLUMN($E135)),VLOOKUP($E135-19,AllData,COLUMN()-6-COLUMN($E135)),VLOOKUP($E135-20,AllData,COLUMN()-6-COLUMN($E135)),VLOOKUP($E135-21,AllData,COLUMN()-6-COLUMN($E135)),VLOOKUP($E135-22,AllData,COLUMN()-6-COLUMN($E135)),VLOOKUP($E135-23,AllData,COLUMN()-6-COLUMN($E135)),VLOOKUP($E135-24,AllData,COLUMN()-6-COLUMN($E135)),VLOOKUP($E135-25,AllData,COLUMN()-6-COLUMN($E135)),VLOOKUP($E135-26,AllData,COLUMN()-6-COLUMN($E135)),VLOOKUP($E135-27,AllData,COLUMN()-6-COLUMN($E135)),VLOOKUP($E135-28,AllData,COLUMN()-6-COLUMN($E135)),VLOOKUP($E135-29,AllData,COLUMN()-6-COLUMN($E135)))","v":1649.13},{"$f":"VLOOKUP($E135,AllData,COLUMN()-7-COLUMN($E135))","v":45.73},{"$f":"OR('Cool Graph'!$I$1=35,'Cool Graph'!$I$1=36,'Cool Graph'!$I$1=37,'Cool Graph'!$I$1=38,'Cool Graph'!$I$1=39,'Cool Graph'!$I$1=40,'Cool Graph'!$I$1=41,'Cool Graph'!$I$1=42,'Cool Graph'!$I$1=43,'Cool Graph'!$I$1=44,'Cool Graph'!$I$1=45,'Cool Graph'!$I$1=46,'Cool Graph'!$I$1=47,'Cool Graph'!$I$1=58,'Cool Graph'!$I$1=66)","v":false}]
["2011-11-12",{"$f":"OFFSET(OldSchoolJustValues!A136,0,'Cool Graph'!$H$1)","v":0},{"$f":"OFFSET(OldSchoolJustValues!A136,0,'Cool Graph'!$I$1)","v":-2.3833725820981897},null,{"$f":"IF(NewDate>EndDate,NA(),NewDate)","v":"2012-02-07"},{"$f":"IF($E136>EndDate,NA(),IF($K$2=TRUE,N136,IF('Cool Graph'!$B$17=1,N136,IF('Cool Graph'!$B$17=2,L136,IF('Cool Graph'!$B$17=3,M136,)))))","v":38.43},{"$f":"IF($E136>EndDate,NA(),IF($O$2=TRUE,J136,IF('Cool Graph'!$B$17=1,Data1!J136,IF('Cool Graph'!$B$17=2,Data1!H136,IF('Cool Graph'!$B$17=3,Data1!I136,)))))","v":1426.8771253752793},{"$f":"SUM(VLOOKUP($E136,AllData,COLUMN()-COLUMN($E136)),VLOOKUP($E136-1,AllData,COLUMN()-COLUMN($E136)),VLOOKUP($E136-2,AllData,COLUMN()-COLUMN($E136)),VLOOKUP($E136-3,AllData,COLUMN()-COLUMN($E136)),VLOOKUP($E136-4,AllData,COLUMN()-COLUMN($E136)),VLOOKUP($E136-5,AllData,COLUMN()-COLUMN($E136)),VLOOKUP($E136-6,AllData,COLUMN()-COLUMN($E136)))","v":4711.8459630347852},{"$f":"SUM(VLOOKUP($E136,AllData,COLUMN()-1-COLUMN($E136)),VLOOKUP($E136-1,AllData,COLUMN()-1-COLUMN($E136)),VLOOKUP($E136-2,AllData,COLUMN()-1-COLUMN($E136)),VLOOKUP($E136-3,AllData,COLUMN()-1-COLUMN($E136)),VLOOKUP($E136-4,AllData,COLUMN()-1-COLUMN($E136)),VLOOKUP($E136-5,AllData,COLUMN()-1-COLUMN($E136)),VLOOKUP($E136-6,AllData,COLUMN()-1-COLUMN($E136)),VLOOKUP($E136-7,AllData,COLUMN()-1-COLUMN($E136)),VLOOKUP($E136-8,AllData,COLUMN()-1-COLUMN($E136)),VLOOKUP($E136-9,AllData,COLUMN()-1-COLUMN($E136)),VLOOKUP($E136-10,AllData,COLUMN()-1-COLUMN($E136)),VLOOKUP($E136-11,AllData,COLUMN()-1-COLUMN($E136)),VLOOKUP($E136-12,AllData,COLUMN()-1-COLUMN($E136)),VLOOKUP($E136-13,AllData,COLUMN()-1-COLUMN($E136)),VLOOKUP($E136-14,AllData,COLUMN()-1-COLUMN($E136)),VLOOKUP($E136-15,AllData,COLUMN()-1-COLUMN($E136)),VLOOKUP($E136-16,AllData,COLUMN()-1-COLUMN($E136)),VLOOKUP($E136-17,AllData,COLUMN()-1-COLUMN($E136)),VLOOKUP($E136-18,AllData,COLUMN()-1-COLUMN($E136)),VLOOKUP($E136-19,AllData,COLUMN()-1-COLUMN($E136)),VLOOKUP($E136-20,AllData,COLUMN()-1-COLUMN($E136)),VLOOKUP($E136-21,AllData,COLUMN()-1-COLUMN($E136)),VLOOKUP($E136-22,AllData,COLUMN()-1-COLUMN($E136)),VLOOKUP($E136-23,AllData,COLUMN()-1-COLUMN($E136)),VLOOKUP($E136-24,AllData,COLUMN()-1-COLUMN($E136)),VLOOKUP($E136-25,AllData,COLUMN()-1-COLUMN($E136)),VLOOKUP($E136-26,AllData,COLUMN()-1-COLUMN($E136)),VLOOKUP($E136-27,AllData,COLUMN()-1-COLUMN($E136)),VLOOKUP($E136-28,AllData,COLUMN()-1-COLUMN($E136)),VLOOKUP($E136-29,AllData,COLUMN()-1-COLUMN($E136)))","v":19611.465877866347},{"$f":"VLOOKUP($E136,AllData,COLUMN()-2-COLUMN($E136))","v":1426.8771253752793},{"$f":"OR('Cool Graph'!$H$1=35,'Cool Graph'!$H$1=36,'Cool Graph'!$H$1=37,'Cool Graph'!$H$1=38,'Cool Graph'!$H$1=39,'Cool Graph'!$H$1=40,'Cool Graph'!$H$1=41,'Cool Graph'!$H$1=42,'Cool Graph'!$H$1=43,'Cool Graph'!$H$1=44,'Cool Graph'!$H$1=45,'Cool Graph'!$H$1=46,'Cool Graph'!$H$1=47,'Cool Graph'!$H$1=58,'Cool Graph'!$H$1=66)","v":false},{"$f":"SUM(VLOOKUP($E136,AllData,COLUMN()-5-COLUMN($E136)),VLOOKUP($E136-1,AllData,COLUMN()-5-COLUMN($E136)),VLOOKUP($E136-2,AllData,COLUMN()-5-COLUMN($E136)),VLOOKUP($E136-3,AllData,COLUMN()-5-COLUMN($E136)),VLOOKUP($E136-4,AllData,COLUMN()-5-COLUMN($E136)),VLOOKUP($E136-5,AllData,COLUMN()-5-COLUMN($E136)),VLOOKUP($E136-6,AllData,COLUMN()-5-COLUMN($E136)))","v":424.39},{"$f":"SUM(VLOOKUP($E136,AllData,COLUMN()-6-COLUMN($E136)),VLOOKUP($E136-1,AllData,COLUMN()-6-COLUMN($E136)),VLOOKUP($E136-2,AllData,COLUMN()-6-COLUMN($E136)),VLOOKUP($E136-3,AllData,COLUMN()-6-COLUMN($E136)),VLOOKUP($E136-4,AllData,COLUMN()-6-COLUMN($E136)),VLOOKUP($E136-5,AllData,COLUMN()-6-COLUMN($E136)),VLOOKUP($E136-6,AllData,COLUMN()-6-COLUMN($E136)),VLOOKUP($E136-7,AllData,COLUMN()-6-COLUMN($E136)),VLOOKUP($E136-8,AllData,COLUMN()-6-COLUMN($E136)),VLOOKUP($E136-9,AllData,COLUMN()-6-COLUMN($E136)),VLOOKUP($E136-10,AllData,COLUMN()-6-COLUMN($E136)),VLOOKUP($E136-11,AllData,COLUMN()-6-COLUMN($E136)),VLOOKUP($E136-12,AllData,COLUMN()-6-COLUMN($E136)),VLOOKUP($E136-13,AllData,COLUMN()-6-COLUMN($E136)),VLOOKUP($E136-14,AllData,COLUMN()-6-COLUMN($E136)),VLOOKUP($E136-15,AllData,COLUMN()-6-COLUMN($E136)),VLOOKUP($E136-16,AllData,COLUMN()-6-COLUMN($E136)),VLOOKUP($E136-17,AllData,COLUMN()-6-COLUMN($E136)),VLOOKUP($E136-18,AllData,COLUMN()-6-COLUMN($E136)),VLOOKUP($E136-19,AllData,COLUMN()-6-COLUMN($E136)),VLOOKUP($E136-20,AllData,COLUMN()-6-COLUMN($E136)),VLOOKUP($E136-21,AllData,COLUMN()-6-COLUMN($E136)),VLOOKUP($E136-22,AllData,COLUMN()-6-COLUMN($E136)),VLOOKUP($E136-23,AllData,COLUMN()-6-COLUMN($E136)),VLOOKUP($E136-24,AllData,COLUMN()-6-COLUMN($E136)),VLOOKUP($E136-25,AllData,COLUMN()-6-COLUMN($E136)),VLOOKUP($E136-26,AllData,COLUMN()-6-COLUMN($E136)),VLOOKUP($E136-27,AllData,COLUMN()-6-COLUMN($E136)),VLOOKUP($E136-28,AllData,COLUMN()-6-COLUMN($E136)),VLOOKUP($E136-29,AllData,COLUMN()-6-COLUMN($E136)))","v":1610.3500000000001},{"$f":"VLOOKUP($E136,AllData,COLUMN()-7-COLUMN($E136))","v":38.43},{"$f":"OR('Cool Graph'!$I$1=35,'Cool Graph'!$I$1=36,'Cool Graph'!$I$1=37,'Cool Graph'!$I$1=38,'Cool Graph'!$I$1=39,'Cool Graph'!$I$1=40,'Cool Graph'!$I$1=41,'Cool Graph'!$I$1=42,'Cool Graph'!$I$1=43,'Cool Graph'!$I$1=44,'Cool Graph'!$I$1=45,'Cool Graph'!$I$1=46,'Cool Graph'!$I$1=47,'Cool Graph'!$I$1=58,'Cool Graph'!$I$1=66)","v":false}]
["2011-11-13",{"$f":"OFFSET(OldSchoolJustValues!A137,0,'Cool Graph'!$H$1)","v":0},{"$f":"OFFSET(OldSchoolJustValues!A137,0,'Cool Graph'!$I$1)","v":132.36656854475447},null,{"$f":"IF(NewDate>EndDate,NA(),NewDate)","v":"2012-02-08"},{"$f":"IF($E137>EndDate,NA(),IF($K$2=TRUE,N137,IF('Cool Graph'!$B$17=1,N137,IF('Cool Graph'!$B$17=2,L137,IF('Cool Graph'!$B$17=3,M137,)))))","v":23.99},{"$f":"IF($E137>EndDate,NA(),IF($O$2=TRUE,J137,IF('Cool Graph'!$B$17=1,Data1!J137,IF('Cool Graph'!$B$17=2,Data1!H137,IF('Cool Graph'!$B$17=3,Data1!I137,)))))","v":555.04909391328715},{"$f":"SUM(VLOOKUP($E137,AllData,COLUMN()-COLUMN($E137)),VLOOKUP($E137-1,AllData,COLUMN()-COLUMN($E137)),VLOOKUP($E137-2,AllData,COLUMN()-COLUMN($E137)),VLOOKUP($E137-3,AllData,COLUMN()-COLUMN($E137)),VLOOKUP($E137-4,AllData,COLUMN()-COLUMN($E137)),VLOOKUP($E137-5,AllData,COLUMN()-COLUMN($E137)),VLOOKUP($E137-6,AllData,COLUMN()-COLUMN($E137)))","v":4951.8844982895762},{"$f":"SUM(VLOOKUP($E137,AllData,COLUMN()-1-COLUMN($E137)),VLOOKUP($E137-1,AllData,COLUMN()-1-COLUMN($E137)),VLOOKUP($E137-2,AllData,COLUMN()-1-COLUMN($E137)),VLOOKUP($E137-3,AllData,COLUMN()-1-COLUMN($E137)),VLOOKUP($E137-4,AllData,COLUMN()-1-COLUMN($E137)),VLOOKUP($E137-5,AllData,COLUMN()-1-COLUMN($E137)),VLOOKUP($E137-6,AllData,COLUMN()-1-COLUMN($E137)),VLOOKUP($E137-7,AllData,COLUMN()-1-COLUMN($E137)),VLOOKUP($E137-8,AllData,COLUMN()-1-COLUMN($E137)),VLOOKUP($E137-9,AllData,COLUMN()-1-COLUMN($E137)),VLOOKUP($E137-10,AllData,COLUMN()-1-COLUMN($E137)),VLOOKUP($E137-11,AllData,COLUMN()-1-COLUMN($E137)),VLOOKUP($E137-12,AllData,COLUMN()-1-COLUMN($E137)),VLOOKUP($E137-13,AllData,COLUMN()-1-COLUMN($E137)),VLOOKUP($E137-14,AllData,COLUMN()-1-COLUMN($E137)),VLOOKUP($E137-15,AllData,COLUMN()-1-COLUMN($E137)),VLOOKUP($E137-16,AllData,COLUMN()-1-COLUMN($E137)),VLOOKUP($E137-17,AllData,COLUMN()-1-COLUMN($E137)),VLOOKUP($E137-18,AllData,COLUMN()-1-COLUMN($E137)),VLOOKUP($E137-19,AllData,COLUMN()-1-COLUMN($E137)),VLOOKUP($E137-20,AllData,COLUMN()-1-COLUMN($E137)),VLOOKUP($E137-21,AllData,COLUMN()-1-COLUMN($E137)),VLOOKUP($E137-22,AllData,COLUMN()-1-COLUMN($E137)),VLOOKUP($E137-23,AllData,COLUMN()-1-COLUMN($E137)),VLOOKUP($E137-24,AllData,COLUMN()-1-COLUMN($E137)),VLOOKUP($E137-25,AllData,COLUMN()-1-COLUMN($E137)),VLOOKUP($E137-26,AllData,COLUMN()-1-COLUMN($E137)),VLOOKUP($E137-27,AllData,COLUMN()-1-COLUMN($E137)),VLOOKUP($E137-28,AllData,COLUMN()-1-COLUMN($E137)),VLOOKUP($E137-29,AllData,COLUMN()-1-COLUMN($E137)))","v":19477.511760525744},{"$f":"VLOOKUP($E137,AllData,COLUMN()-2-COLUMN($E137))","v":555.04909391328715},{"$f":"OR('Cool Graph'!$H$1=35,'Cool Graph'!$H$1=36,'Cool Graph'!$H$1=37,'Cool Graph'!$H$1=38,'Cool Graph'!$H$1=39,'Cool Graph'!$H$1=40,'Cool Graph'!$H$1=41,'Cool Graph'!$H$1=42,'Cool Graph'!$H$1=43,'Cool Graph'!$H$1=44,'Cool Graph'!$H$1=45,'Cool Graph'!$H$1=46,'Cool Graph'!$H$1=47,'Cool Graph'!$H$1=58,'Cool Graph'!$H$1=66)","v":false},{"$f":"SUM(VLOOKUP($E137,AllData,COLUMN()-5-COLUMN($E137)),VLOOKUP($E137-1,AllData,COLUMN()-5-COLUMN($E137)),VLOOKUP($E137-2,AllData,COLUMN()-5-COLUMN($E137)),VLOOKUP($E137-3,AllData,COLUMN()-5-COLUMN($E137)),VLOOKUP($E137-4,AllData,COLUMN()-5-COLUMN($E137)),VLOOKUP($E137-5,AllData,COLUMN()-5-COLUMN($E137)),VLOOKUP($E137-6,AllData,COLUMN()-5-COLUMN($E137)))","v":439.57},{"$f":"SUM(VLOOKUP($E137,AllData,COLUMN()-6-COLUMN($E137)),VLOOKUP($E137-1,AllData,COLUMN()-6-COLUMN($E137)),VLOOKUP($E137-2,AllData,COLUMN()-6-COLUMN($E137)),VLOOKUP($E137-3,AllData,COLUMN()-6-COLUMN($E137)),VLOOKUP($E137-4,AllData,COLUMN()-6-COLUMN($E137)),VLOOKUP($E137-5,AllData,COLUMN()-6-COLUMN($E137)),VLOOKUP($E137-6,AllData,COLUMN()-6-COLUMN($E137)),VLOOKUP($E137-7,AllData,COLUMN()-6-COLUMN($E137)),VLOOKUP($E137-8,AllData,COLUMN()-6-COLUMN($E137)),VLOOKUP($E137-9,AllData,COLUMN()-6-COLUMN($E137)),VLOOKUP($E137-10,AllData,COLUMN()-6-COLUMN($E137)),VLOOKUP($E137-11,AllData,COLUMN()-6-COLUMN($E137)),VLOOKUP($E137-12,AllData,COLUMN()-6-COLUMN($E137)),VLOOKUP($E137-13,AllData,COLUMN()-6-COLUMN($E137)),VLOOKUP($E137-14,AllData,COLUMN()-6-COLUMN($E137)),VLOOKUP($E137-15,AllData,COLUMN()-6-COLUMN($E137)),VLOOKUP($E137-16,AllData,COLUMN()-6-COLUMN($E137)),VLOOKUP($E137-17,AllData,COLUMN()-6-COLUMN($E137)),VLOOKUP($E137-18,AllData,COLUMN()-6-COLUMN($E137)),VLOOKUP($E137-19,AllData,COLUMN()-6-COLUMN($E137)),VLOOKUP($E137-20,AllData,COLUMN()-6-COLUMN($E137)),VLOOKUP($E137-21,AllData,COLUMN()-6-COLUMN($E137)),VLOOKUP($E137-22,AllData,COLUMN()-6-COLUMN($E137)),VLOOKUP($E137-23,AllData,COLUMN()-6-COLUMN($E137)),VLOOKUP($E137-24,AllData,COLUMN()-6-COLUMN($E137)),VLOOKUP($E137-25,AllData,COLUMN()-6-COLUMN($E137)),VLOOKUP($E137-26,AllData,COLUMN()-6-COLUMN($E137)),VLOOKUP($E137-27,AllData,COLUMN()-6-COLUMN($E137)),VLOOKUP($E137-28,AllData,COLUMN()-6-COLUMN($E137)),VLOOKUP($E137-29,AllData,COLUMN()-6-COLUMN($E137)))","v":1593.21},{"$f":"VLOOKUP($E137,AllData,COLUMN()-7-COLUMN($E137))","v":23.99},{"$f":"OR('Cool Graph'!$I$1=35,'Cool Graph'!$I$1=36,'Cool Graph'!$I$1=37,'Cool Graph'!$I$1=38,'Cool Graph'!$I$1=39,'Cool Graph'!$I$1=40,'Cool Graph'!$I$1=41,'Cool Graph'!$I$1=42,'Cool Graph'!$I$1=43,'Cool Graph'!$I$1=44,'Cool Graph'!$I$1=45,'Cool Graph'!$I$1=46,'Cool Graph'!$I$1=47,'Cool Graph'!$I$1=58,'Cool Graph'!$I$1=66)","v":false}]
["2011-11-14",{"$f":"OFFSET(OldSchoolJustValues!A138,0,'Cool Graph'!$H$1)","v":0},{"$f":"OFFSET(OldSchoolJustValues!A138,0,'Cool Graph'!$I$1)","v":323.0165096716072},null,{"$f":"IF(NewDate>EndDate,NA(),NewDate)","v":"2012-02-09"},{"$f":"IF($E138>EndDate,NA(),IF($K$2=TRUE,N138,IF('Cool Graph'!$B$17=1,N138,IF('Cool Graph'!$B$17=2,L138,IF('Cool Graph'!$B$17=3,M138,)))))","v":7.16},{"$f":"IF($E138>EndDate,NA(),IF($O$2=TRUE,J138,IF('Cool Graph'!$B$17=1,Data1!J138,IF('Cool Graph'!$B$17=2,Data1!H138,IF('Cool Graph'!$B$17=3,Data1!I138,)))))","v":891.63496482825883},{"$f":"SUM(VLOOKUP($E138,AllData,COLUMN()-COLUMN($E138)),VLOOKUP($E138-1,AllData,COLUMN()-COLUMN($E138)),VLOOKUP($E138-2,AllData,COLUMN()-COLUMN($E138)),VLOOKUP($E138-3,AllData,COLUMN()-COLUMN($E138)),VLOOKUP($E138-4,AllData,COLUMN()-COLUMN($E138)),VLOOKUP($E138-5,AllData,COLUMN()-COLUMN($E138)),VLOOKUP($E138-6,AllData,COLUMN()-COLUMN($E138)))","v":4910.937565710713},{"$f":"SUM(VLOOKUP($E138,AllData,COLUMN()-1-COLUMN($E138)),VLOOKUP($E138-1,AllData,COLUMN()-1-COLUMN($E138)),VLOOKUP($E138-2,AllData,COLUMN()-1-COLUMN($E138)),VLOOKUP($E138-3,AllData,COLUMN()-1-COLUMN($E138)),VLOOKUP($E138-4,AllData,COLUMN()-1-COLUMN($E138)),VLOOKUP($E138-5,AllData,COLUMN()-1-COLUMN($E138)),VLOOKUP($E138-6,AllData,COLUMN()-1-COLUMN($E138)),VLOOKUP($E138-7,AllData,COLUMN()-1-COLUMN($E138)),VLOOKUP($E138-8,AllData,COLUMN()-1-COLUMN($E138)),VLOOKUP($E138-9,AllData,COLUMN()-1-COLUMN($E138)),VLOOKUP($E138-10,AllData,COLUMN()-1-COLUMN($E138)),VLOOKUP($E138-11,AllData,COLUMN()-1-COLUMN($E138)),VLOOKUP($E138-12,AllData,COLUMN()-1-COLUMN($E138)),VLOOKUP($E138-13,AllData,COLUMN()-1-COLUMN($E138)),VLOOKUP($E138-14,AllData,COLUMN()-1-COLUMN($E138)),VLOOKUP($E138-15,AllData,COLUMN()-1-COLUMN($E138)),VLOOKUP($E138-16,AllData,COLUMN()-1-COLUMN($E138)),VLOOKUP($E138-17,AllData,COLUMN()-1-COLUMN($E138)),VLOOKUP($E138-18,AllData,COLUMN()-1-COLUMN($E138)),VLOOKUP($E138-19,AllData,COLUMN()-1-COLUMN($E138)),VLOOKUP($E138-20,AllData,COLUMN()-1-COLUMN($E138)),VLOOKUP($E138-21,AllData,COLUMN()-1-COLUMN($E138)),VLOOKUP($E138-22,AllData,COLUMN()-1-COLUMN($E138)),VLOOKUP($E138-23,AllData,COLUMN()-1-COLUMN($E138)),VLOOKUP($E138-24,AllData,COLUMN()-1-COLUMN($E138)),VLOOKUP($E138-25,AllData,COLUMN()-1-COLUMN($E138)),VLOOKUP($E138-26,AllData,COLUMN()-1-COLUMN($E138)),VLOOKUP($E138-27,AllData,COLUMN()-1-COLUMN($E138)),VLOOKUP($E138-28,AllData,COLUMN()-1-COLUMN($E138)),VLOOKUP($E138-29,AllData,COLUMN()-1-COLUMN($E138)))","v":19432.175251687226},{"$f":"VLOOKUP($E138,AllData,COLUMN()-2-COLUMN($E138))","v":891.63496482825883},{"$f":"OR('Cool Graph'!$H$1=35,'Cool Graph'!$H$1=36,'Cool Graph'!$H$1=37,'Cool Graph'!$H$1=38,'Cool Graph'!$H$1=39,'Cool Graph'!$H$1=40,'Cool Graph'!$H$1=41,'Cool Graph'!$H$1=42,'Cool Graph'!$H$1=43,'Cool Graph'!$H$1=44,'Cool Graph'!$H$1=45,'Cool Graph'!$H$1=46,'Cool Graph'!$H$1=47,'Cool Graph'!$H$1=58,'Cool Graph'!$H$1=66)","v":false},{"$f":"SUM(VLOOKUP($E138,AllData,COLUMN()-5-COLUMN($E138)),VLOOKUP($E138-1,AllData,COLUMN()-5-COLUMN($E138)),VLOOKUP($E138-2,AllData,COLUMN()-5-COLUMN($E138)),VLOOKUP($E138-3,AllData,COLUMN()-5-COLUMN($E138)),VLOOKUP($E138-4,AllData,COLUMN()-5-COLUMN($E138)),VLOOKUP($E138-5,AllData,COLUMN()-5-COLUMN($E138)),VLOOKUP($E138-6,AllData,COLUMN()-5-COLUMN($E138)))","v":367.52000000000004},{"$f":"SUM(VLOOKUP($E138,AllData,COLUMN()-6-COLUMN($E138)),VLOOKUP($E138-1,AllData,COLUMN()-6-COLUMN($E138)),VLOOKUP($E138-2,AllData,COLUMN()-6-COLUMN($E138)),VLOOKUP($E138-3,AllData,COLUMN()-6-COLUMN($E138)),VLOOKUP($E138-4,AllData,COLUMN()-6-COLUMN($E138)),VLOOKUP($E138-5,AllData,COLUMN()-6-COLUMN($E138)),VLOOKUP($E138-6,AllData,COLUMN()-6-COLUMN($E138)),VLOOKUP($E138-7,AllData,COLUMN()-6-COLUMN($E138)),VLOOKUP($E138-8,AllData,COLUMN()-6-COLUMN($E138)),VLOOKUP($E138-9,AllData,COLUMN()-6-COLUMN($E138)),VLOOKUP($E138-10,AllData,COLUMN()-6-COLUMN($E138)),VLOOKUP($E138-11,AllData,COLUMN()-6-COLUMN($E138)),VLOOKUP($E138-12,AllData,COLUMN()-6-COLUMN($E138)),VLOOKUP($E138-13,AllData,COLUMN()-6-COLUMN($E138)),VLOOKUP($E138-14,AllData,COLUMN()-6-COLUMN($E138)),VLOOKUP($E138-15,AllData,COLUMN()-6-COLUMN($E138)),VLOOKUP($E138-16,AllData,COLUMN()-6-COLUMN($E138)),VLOOKUP($E138-17,AllData,COLUMN()-6-COLUMN($E138)),VLOOKUP($E138-18,AllData,COLUMN()-6-COLUMN($E138)),VLOOKUP($E138-19,AllData,COLUMN()-6-COLUMN($E138)),VLOOKUP($E138-20,AllData,COLUMN()-6-COLUMN($E138)),VLOOKUP($E138-21,AllData,COLUMN()-6-COLUMN($E138)),VLOOKUP($E138-22,AllData,COLUMN()-6-COLUMN($E138)),VLOOKUP($E138-23,AllData,COLUMN()-6-COLUMN($E138)),VLOOKUP($E138-24,AllData,COLUMN()-6-COLUMN($E138)),VLOOKUP($E138-25,AllData,COLUMN()-6-COLUMN($E138)),VLOOKUP($E138-26,AllData,COLUMN()-6-COLUMN($E138)),VLOOKUP($E138-27,AllData,COLUMN()-6-COLUMN($E138)),VLOOKUP($E138-28,AllData,COLUMN()-6-COLUMN($E138)),VLOOKUP($E138-29,AllData,COLUMN()-6-COLUMN($E138)))","v":1568.21},{"$f":"VLOOKUP($E138,AllData,COLUMN()-7-COLUMN($E138))","v":7.16},{"$f":"OR('Cool Graph'!$I$1=35,'Cool Graph'!$I$1=36,'Cool Graph'!$I$1=37,'Cool Graph'!$I$1=38,'Cool Graph'!$I$1=39,'Cool Graph'!$I$1=40,'Cool Graph'!$I$1=41,'Cool Graph'!$I$1=42,'Cool Graph'!$I$1=43,'Cool Graph'!$I$1=44,'Cool Graph'!$I$1=45,'Cool Graph'!$I$1=46,'Cool Graph'!$I$1=47,'Cool Graph'!$I$1=58,'Cool Graph'!$I$1=66)","v":false}]
["2011-11-15",{"$f":"OFFSET(OldSchoolJustValues!A139,0,'Cool Graph'!$H$1)","v":0},{"$f":"OFFSET(OldSchoolJustValues!A139,0,'Cool Graph'!$I$1)","v":421.1198233805581},null,{"$f":"IF(NewDate>EndDate,NA(),NewDate)","v":"2012-02-10"},{"$f":"IF($E139>EndDate,NA(),IF($K$2=TRUE,N139,IF('Cool Graph'!$B$17=1,N139,IF('Cool Graph'!$B$17=2,L139,IF('Cool Graph'!$B$17=3,M139,)))))","v":12.5},{"$f":"IF($E139>EndDate,NA(),IF($O$2=TRUE,J139,IF('Cool Graph'!$B$17=1,Data1!J139,IF('Cool Graph'!$B$17=2,Data1!H139,IF('Cool Graph'!$B$17=3,Data1!I139,)))))","v":1040.0792878803422},{"$f":"SUM(VLOOKUP($E139,AllData,COLUMN()-COLUMN($E139)),VLOOKUP($E139-1,AllData,COLUMN()-COLUMN($E139)),VLOOKUP($E139-2,AllData,COLUMN()-COLUMN($E139)),VLOOKUP($E139-3,AllData,COLUMN()-COLUMN($E139)),VLOOKUP($E139-4,AllData,COLUMN()-COLUMN($E139)),VLOOKUP($E139-5,AllData,COLUMN()-COLUMN($E139)),VLOOKUP($E139-6,AllData,COLUMN()-COLUMN($E139)))","v":5704.20097852461},{"$f":"SUM(VLOOKUP($E139,AllData,COLUMN()-1-COLUMN($E139)),VLOOKUP($E139-1,AllData,COLUMN()-1-COLUMN($E139)),VLOOKUP($E139-2,AllData,COLUMN()-1-COLUMN($E139)),VLOOKUP($E139-3,AllData,COLUMN()-1-COLUMN($E139)),VLOOKUP($E139-4,AllData,COLUMN()-1-COLUMN($E139)),VLOOKUP($E139-5,AllData,COLUMN()-1-COLUMN($E139)),VLOOKUP($E139-6,AllData,COLUMN()-1-COLUMN($E139)),VLOOKUP($E139-7,AllData,COLUMN()-1-COLUMN($E139)),VLOOKUP($E139-8,AllData,COLUMN()-1-COLUMN($E139)),VLOOKUP($E139-9,AllData,COLUMN()-1-COLUMN($E139)),VLOOKUP($E139-10,AllData,COLUMN()-1-COLUMN($E139)),VLOOKUP($E139-11,AllData,COLUMN()-1-COLUMN($E139)),VLOOKUP($E139-12,AllData,COLUMN()-1-COLUMN($E139)),VLOOKUP($E139-13,AllData,COLUMN()-1-COLUMN($E139)),VLOOKUP($E139-14,AllData,COLUMN()-1-COLUMN($E139)),VLOOKUP($E139-15,AllData,COLUMN()-1-COLUMN($E139)),VLOOKUP($E139-16,AllData,COLUMN()-1-COLUMN($E139)),VLOOKUP($E139-17,AllData,COLUMN()-1-COLUMN($E139)),VLOOKUP($E139-18,AllData,COLUMN()-1-COLUMN($E139)),VLOOKUP($E139-19,AllData,COLUMN()-1-COLUMN($E139)),VLOOKUP($E139-20,AllData,COLUMN()-1-COLUMN($E139)),VLOOKUP($E139-21,AllData,COLUMN()-1-COLUMN($E139)),VLOOKUP($E139-22,AllData,COLUMN()-1-COLUMN($E139)),VLOOKUP($E139-23,AllData,COLUMN()-1-COLUMN($E139)),VLOOKUP($E139-24,AllData,COLUMN()-1-COLUMN($E139)),VLOOKUP($E139-25,AllData,COLUMN()-1-COLUMN($E139)),VLOOKUP($E139-26,AllData,COLUMN()-1-COLUMN($E139)),VLOOKUP($E139-27,AllData,COLUMN()-1-COLUMN($E139)),VLOOKUP($E139-28,AllData,COLUMN()-1-COLUMN($E139)),VLOOKUP($E139-29,AllData,COLUMN()-1-COLUMN($E139)))","v":19964.213261045461},{"$f":"VLOOKUP($E139,AllData,COLUMN()-2-COLUMN($E139))","v":1040.0792878803422},{"$f":"OR('Cool Graph'!$H$1=35,'Cool Graph'!$H$1=36,'Cool Graph'!$H$1=37,'Cool Graph'!$H$1=38,'Cool Graph'!$H$1=39,'Cool Graph'!$H$1=40,'Cool Graph'!$H$1=41,'Cool Graph'!$H$1=42,'Cool Graph'!$H$1=43,'Cool Graph'!$H$1=44,'Cool Graph'!$H$1=45,'Cool Graph'!$H$1=46,'Cool Graph'!$H$1=47,'Cool Graph'!$H$1=58,'Cool Graph'!$H$1=66)","v":false},{"$f":"SUM(VLOOKUP($E139,AllData,COLUMN()-5-COLUMN($E139)),VLOOKUP($E139-1,AllData,COLUMN()-5-COLUMN($E139)),VLOOKUP($E139-2,AllData,COLUMN()-5-COLUMN($E139)),VLOOKUP($E139-3,AllData,COLUMN()-5-COLUMN($E139)),VLOOKUP($E139-4,AllData,COLUMN()-5-COLUMN($E139)),VLOOKUP($E139-5,AllData,COLUMN()-5-COLUMN($E139)),VLOOKUP($E139-6,AllData,COLUMN()-5-COLUMN($E139)))","v":324.21000000000004},{"$f":"SUM(VLOOKUP($E139,AllData,COLUMN()-6-COLUMN($E139)),VLOOKUP($E139-1,AllData,COLUMN()-6-COLUMN($E139)),VLOOKUP($E139-2,AllData,COLUMN()-6-COLUMN($E139)),VLOOKUP($E139-3,AllData,COLUMN()-6-COLUMN($E139)),VLOOKUP($E139-4,AllData,COLUMN()-6-COLUMN($E139)),VLOOKUP($E139-5,AllData,COLUMN()-6-COLUMN($E139)),VLOOKUP($E139-6,AllData,COLUMN()-6-COLUMN($E139)),VLOOKUP($E139-7,AllData,COLUMN()-6-COLUMN($E139)),VLOOKUP($E139-8,AllData,COLUMN()-6-COLUMN($E139)),VLOOKUP($E139-9,AllData,COLUMN()-6-COLUMN($E139)),VLOOKUP($E139-10,AllData,COLUMN()-6-COLUMN($E139)),VLOOKUP($E139-11,AllData,COLUMN()-6-COLUMN($E139)),VLOOKUP($E139-12,AllData,COLUMN()-6-COLUMN($E139)),VLOOKUP($E139-13,AllData,COLUMN()-6-COLUMN($E139)),VLOOKUP($E139-14,AllData,COLUMN()-6-COLUMN($E139)),VLOOKUP($E139-15,AllData,COLUMN()-6-COLUMN($E139)),VLOOKUP($E139-16,AllData,COLUMN()-6-COLUMN($E139)),VLOOKUP($E139-17,AllData,COLUMN()-6-COLUMN($E139)),VLOOKUP($E139-18,AllData,COLUMN()-6-COLUMN($E139)),VLOOKUP($E139-19,AllData,COLUMN()-6-COLUMN($E139)),VLOOKUP($E139-20,AllData,COLUMN()-6-COLUMN($E139)),VLOOKUP($E139-21,AllData,COLUMN()-6-COLUMN($E139)),VLOOKUP($E139-22,AllData,COLUMN()-6-COLUMN($E139)),VLOOKUP($E139-23,AllData,COLUMN()-6-COLUMN($E139)),VLOOKUP($E139-24,AllData,COLUMN()-6-COLUMN($E139)),VLOOKUP($E139-25,AllData,COLUMN()-6-COLUMN($E139)),VLOOKUP($E139-26,AllData,COLUMN()-6-COLUMN($E139)),VLOOKUP($E139-27,AllData,COLUMN()-6-COLUMN($E139)),VLOOKUP($E139-28,AllData,COLUMN()-6-COLUMN($E139)),VLOOKUP($E139-29,AllData,COLUMN()-6-COLUMN($E139)))","v":1418.65},{"$f":"VLOOKUP($E139,AllData,COLUMN()-7-COLUMN($E139))","v":12.5},{"$f":"OR('Cool Graph'!$I$1=35,'Cool Graph'!$I$1=36,'Cool Graph'!$I$1=37,'Cool Graph'!$I$1=38,'Cool Graph'!$I$1=39,'Cool Graph'!$I$1=40,'Cool Graph'!$I$1=41,'Cool Graph'!$I$1=42,'Cool Graph'!$I$1=43,'Cool Graph'!$I$1=44,'Cool Graph'!$I$1=45,'Cool Graph'!$I$1=46,'Cool Graph'!$I$1=47,'Cool Graph'!$I$1=58,'Cool Graph'!$I$1=66)","v":false}]
["2011-11-16",{"$f":"OFFSET(OldSchoolJustValues!A140,0,'Cool Graph'!$H$1)","v":0},{"$f":"OFFSET(OldSchoolJustValues!A140,0,'Cool Graph'!$I$1)","v":377.14275326816562},null,{"$f":"IF(NewDate>EndDate,NA(),NewDate)","v":"2012-02-11"},{"$f":"IF($E140>EndDate,NA(),IF($K$2=TRUE,N140,IF('Cool Graph'!$B$17=1,N140,IF('Cool Graph'!$B$17=2,L140,IF('Cool Graph'!$B$17=3,M140,)))))","v":91.98},{"$f":"IF($E140>EndDate,NA(),IF($O$2=TRUE,J140,IF('Cool Graph'!$B$17=1,Data1!J140,IF('Cool Graph'!$B$17=2,Data1!H140,IF('Cool Graph'!$B$17=3,Data1!I140,)))))","v":619.70091308894825},{"$f":"SUM(VLOOKUP($E140,AllData,COLUMN()-COLUMN($E140)),VLOOKUP($E140-1,AllData,COLUMN()-COLUMN($E140)),VLOOKUP($E140-2,AllData,COLUMN()-COLUMN($E140)),VLOOKUP($E140-3,AllData,COLUMN()-COLUMN($E140)),VLOOKUP($E140-4,AllData,COLUMN()-COLUMN($E140)),VLOOKUP($E140-5,AllData,COLUMN()-COLUMN($E140)),VLOOKUP($E140-6,AllData,COLUMN()-COLUMN($E140)))","v":5805.8112389190628},{"$f":"SUM(VLOOKUP($E140,AllData,COLUMN()-1-COLUMN($E140)),VLOOKUP($E140-1,AllData,COLUMN()-1-COLUMN($E140)),VLOOKUP($E140-2,AllData,COLUMN()-1-COLUMN($E140)),VLOOKUP($E140-3,AllData,COLUMN()-1-COLUMN($E140)),VLOOKUP($E140-4,AllData,COLUMN()-1-COLUMN($E140)),VLOOKUP($E140-5,AllData,COLUMN()-1-COLUMN($E140)),VLOOKUP($E140-6,AllData,COLUMN()-1-COLUMN($E140)),VLOOKUP($E140-7,AllData,COLUMN()-1-COLUMN($E140)),VLOOKUP($E140-8,AllData,COLUMN()-1-COLUMN($E140)),VLOOKUP($E140-9,AllData,COLUMN()-1-COLUMN($E140)),VLOOKUP($E140-10,AllData,COLUMN()-1-COLUMN($E140)),VLOOKUP($E140-11,AllData,COLUMN()-1-COLUMN($E140)),VLOOKUP($E140-12,AllData,COLUMN()-1-COLUMN($E140)),VLOOKUP($E140-13,AllData,COLUMN()-1-COLUMN($E140)),VLOOKUP($E140-14,AllData,COLUMN()-1-COLUMN($E140)),VLOOKUP($E140-15,AllData,COLUMN()-1-COLUMN($E140)),VLOOKUP($E140-16,AllData,COLUMN()-1-COLUMN($E140)),VLOOKUP($E140-17,AllData,COLUMN()-1-COLUMN($E140)),VLOOKUP($E140-18,AllData,COLUMN()-1-COLUMN($E140)),VLOOKUP($E140-19,AllData,COLUMN()-1-COLUMN($E140)),VLOOKUP($E140-20,AllData,COLUMN()-1-COLUMN($E140)),VLOOKUP($E140-21,AllData,COLUMN()-1-COLUMN($E140)),VLOOKUP($E140-22,AllData,COLUMN()-1-COLUMN($E140)),VLOOKUP($E140-23,AllData,COLUMN()-1-COLUMN($E140)),VLOOKUP($E140-24,AllData,COLUMN()-1-COLUMN($E140)),VLOOKUP($E140-25,AllData,COLUMN()-1-COLUMN($E140)),VLOOKUP($E140-26,AllData,COLUMN()-1-COLUMN($E140)),VLOOKUP($E140-27,AllData,COLUMN()-1-COLUMN($E140)),VLOOKUP($E140-28,AllData,COLUMN()-1-COLUMN($E140)),VLOOKUP($E140-29,AllData,COLUMN()-1-COLUMN($E140)))","v":20169.560009489342},{"$f":"VLOOKUP($E140,AllData,COLUMN()-2-COLUMN($E140))","v":619.70091308894825},{"$f":"OR('Cool Graph'!$H$1=35,'Cool Graph'!$H$1=36,'Cool Graph'!$H$1=37,'Cool Graph'!$H$1=38,'Cool Graph'!$H$1=39,'Cool Graph'!$H$1=40,'Cool Graph'!$H$1=41,'Cool Graph'!$H$1=42,'Cool Graph'!$H$1=43,'Cool Graph'!$H$1=44,'Cool Graph'!$H$1=45,'Cool Graph'!$H$1=46,'Cool Graph'!$H$1=47,'Cool Graph'!$H$1=58,'Cool Graph'!$H$1=66)","v":false},{"$f":"SUM(VLOOKUP($E140,AllData,COLUMN()-5-COLUMN($E140)),VLOOKUP($E140-1,AllData,COLUMN()-5-COLUMN($E140)),VLOOKUP($E140-2,AllData,COLUMN()-5-COLUMN($E140)),VLOOKUP($E140-3,AllData,COLUMN()-5-COLUMN($E140)),VLOOKUP($E140-4,AllData,COLUMN()-5-COLUMN($E140)),VLOOKUP($E140-5,AllData,COLUMN()-5-COLUMN($E140)),VLOOKUP($E140-6,AllData,COLUMN()-5-COLUMN($E140)))","v":305.72000000000003},{"$f":"SUM(VLOOKUP($E140,AllData,COLUMN()-6-COLUMN($E140)),VLOOKUP($E140-1,AllData,COLUMN()-6-COLUMN($E140)),VLOOKUP($E140-2,AllData,COLUMN()-6-COLUMN($E140)),VLOOKUP($E140-3,AllData,COLUMN()-6-COLUMN($E140)),VLOOKUP($E140-4,AllData,COLUMN()-6-COLUMN($E140)),VLOOKUP($E140-5,AllData,COLUMN()-6-COLUMN($E140)),VLOOKUP($E140-6,AllData,COLUMN()-6-COLUMN($E140)),VLOOKUP($E140-7,AllData,COLUMN()-6-COLUMN($E140)),VLOOKUP($E140-8,AllData,COLUMN()-6-COLUMN($E140)),VLOOKUP($E140-9,AllData,COLUMN()-6-COLUMN($E140)),VLOOKUP($E140-10,AllData,COLUMN()-6-COLUMN($E140)),VLOOKUP($E140-11,AllData,COLUMN()-6-COLUMN($E140)),VLOOKUP($E140-12,AllData,COLUMN()-6-COLUMN($E140)),VLOOKUP($E140-13,AllData,COLUMN()-6-COLUMN($E140)),VLOOKUP($E140-14,AllData,COLUMN()-6-COLUMN($E140)),VLOOKUP($E140-15,AllData,COLUMN()-6-COLUMN($E140)),VLOOKUP($E140-16,AllData,COLUMN()-6-COLUMN($E140)),VLOOKUP($E140-17,AllData,COLUMN()-6-COLUMN($E140)),VLOOKUP($E140-18,AllData,COLUMN()-6-COLUMN($E140)),VLOOKUP($E140-19,AllData,COLUMN()-6-COLUMN($E140)),VLOOKUP($E140-20,AllData,COLUMN()-6-COLUMN($E140)),VLOOKUP($E140-21,AllData,COLUMN()-6-COLUMN($E140)),VLOOKUP($E140-22,AllData,COLUMN()-6-COLUMN($E140)),VLOOKUP($E140-23,AllData,COLUMN()-6-COLUMN($E140)),VLOOKUP($E140-24,AllData,COLUMN()-6-COLUMN($E140)),VLOOKUP($E140-25,AllData,COLUMN()-6-COLUMN($E140)),VLOOKUP($E140-26,AllData,COLUMN()-6-COLUMN($E140)),VLOOKUP($E140-27,AllData,COLUMN()-6-COLUMN($E140)),VLOOKUP($E140-28,AllData,COLUMN()-6-COLUMN($E140)),VLOOKUP($E140-29,AllData,COLUMN()-6-COLUMN($E140)))","v":1426.28},{"$f":"VLOOKUP($E140,AllData,COLUMN()-7-COLUMN($E140))","v":91.98},{"$f":"OR('Cool Graph'!$I$1=35,'Cool Graph'!$I$1=36,'Cool Graph'!$I$1=37,'Cool Graph'!$I$1=38,'Cool Graph'!$I$1=39,'Cool Graph'!$I$1=40,'Cool Graph'!$I$1=41,'Cool Graph'!$I$1=42,'Cool Graph'!$I$1=43,'Cool Graph'!$I$1=44,'Cool Graph'!$I$1=45,'Cool Graph'!$I$1=46,'Cool Graph'!$I$1=47,'Cool Graph'!$I$1=58,'Cool Graph'!$I$1=66)","v":false}]
["2011-11-17",{"$f":"OFFSET(OldSchoolJustValues!A141,0,'Cool Graph'!$H$1)","v":0},{"$f":"OFFSET(OldSchoolJustValues!A141,0,'Cool Graph'!$I$1)","v":550.17645079845988},null,{"$f":"IF(NewDate>EndDate,NA(),NewDate)","v":"2012-02-12"},{"$f":"IF($E141>EndDate,NA(),IF($K$2=TRUE,N141,IF('Cool Graph'!$B$17=1,N141,IF('Cool Graph'!$B$17=2,L141,IF('Cool Graph'!$B$17=3,M141,)))))","v":115.7},{"$f":"IF($E141>EndDate,NA(),IF($O$2=TRUE,J141,IF('Cool Graph'!$B$17=1,Data1!J141,IF('Cool Graph'!$B$17=2,Data1!H141,IF('Cool Graph'!$B$17=3,Data1!I141,)))))","v":538.57766541718161},{"$f":"SUM(VLOOKUP($E141,AllData,COLUMN()-COLUMN($E141)),VLOOKUP($E141-1,AllData,COLUMN()-COLUMN($E141)),VLOOKUP($E141-2,AllData,COLUMN()-COLUMN($E141)),VLOOKUP($E141-3,AllData,COLUMN()-COLUMN($E141)),VLOOKUP($E141-4,AllData,COLUMN()-COLUMN($E141)),VLOOKUP($E141-5,AllData,COLUMN()-COLUMN($E141)),VLOOKUP($E141-6,AllData,COLUMN()-COLUMN($E141)))","v":5622.216108175222},{"$f":"SUM(VLOOKUP($E141,AllData,COLUMN()-1-COLUMN($E141)),VLOOKUP($E141-1,AllData,COLUMN()-1-COLUMN($E141)),VLOOKUP($E141-2,AllData,COLUMN()-1-COLUMN($E141)),VLOOKUP($E141-3,AllData,COLUMN()-1-COLUMN($E141)),VLOOKUP($E141-4,AllData,COLUMN()-1-COLUMN($E141)),VLOOKUP($E141-5,AllData,COLUMN()-1-COLUMN($E141)),VLOOKUP($E141-6,AllData,COLUMN()-1-COLUMN($E141)),VLOOKUP($E141-7,AllData,COLUMN()-1-COLUMN($E141)),VLOOKUP($E141-8,AllData,COLUMN()-1-COLUMN($E141)),VLOOKUP($E141-9,AllData,COLUMN()-1-COLUMN($E141)),VLOOKUP($E141-10,AllData,COLUMN()-1-COLUMN($E141)),VLOOKUP($E141-11,AllData,COLUMN()-1-COLUMN($E141)),VLOOKUP($E141-12,AllData,COLUMN()-1-COLUMN($E141)),VLOOKUP($E141-13,AllData,COLUMN()-1-COLUMN($E141)),VLOOKUP($E141-14,AllData,COLUMN()-1-COLUMN($E141)),VLOOKUP($E141-15,AllData,COLUMN()-1-COLUMN($E141)),VLOOKUP($E141-16,AllData,COLUMN()-1-COLUMN($E141)),VLOOKUP($E141-17,AllData,COLUMN()-1-COLUMN($E141)),VLOOKUP($E141-18,AllData,COLUMN()-1-COLUMN($E141)),VLOOKUP($E141-19,AllData,COLUMN()-1-COLUMN($E141)),VLOOKUP($E141-20,AllData,COLUMN()-1-COLUMN($E141)),VLOOKUP($E141-21,AllData,COLUMN()-1-COLUMN($E141)),VLOOKUP($E141-22,AllData,COLUMN()-1-COLUMN($E141)),VLOOKUP($E141-23,AllData,COLUMN()-1-COLUMN($E141)),VLOOKUP($E141-24,AllData,COLUMN()-1-COLUMN($E141)),VLOOKUP($E141-25,AllData,COLUMN()-1-COLUMN($E141)),VLOOKUP($E141-26,AllData,COLUMN()-1-COLUMN($E141)),VLOOKUP($E141-27,AllData,COLUMN()-1-COLUMN($E141)),VLOOKUP($E141-28,AllData,COLUMN()-1-COLUMN($E141)),VLOOKUP($E141-29,AllData,COLUMN()-1-COLUMN($E141)))","v":19996.427595933339},{"$f":"VLOOKUP($E141,AllData,COLUMN()-2-COLUMN($E141))","v":538.57766541718161},{"$f":"OR('Cool Graph'!$H$1=35,'Cool Graph'!$H$1=36,'Cool Graph'!$H$1=37,'Cool Graph'!$H$1=38,'Cool Graph'!$H$1=39,'Cool Graph'!$H$1=40,'Cool Graph'!$H$1=41,'Cool Graph'!$H$1=42,'Cool Graph'!$H$1=43,'Cool Graph'!$H$1=44,'Cool Graph'!$H$1=45,'Cool Graph'!$H$1=46,'Cool Graph'!$H$1=47,'Cool Graph'!$H$1=58,'Cool Graph'!$H$1=66)","v":false},{"$f":"SUM(VLOOKUP($E141,AllData,COLUMN()-5-COLUMN($E141)),VLOOKUP($E141-1,AllData,COLUMN()-5-COLUMN($E141)),VLOOKUP($E141-2,AllData,COLUMN()-5-COLUMN($E141)),VLOOKUP($E141-3,AllData,COLUMN()-5-COLUMN($E141)),VLOOKUP($E141-4,AllData,COLUMN()-5-COLUMN($E141)),VLOOKUP($E141-5,AllData,COLUMN()-5-COLUMN($E141)),VLOOKUP($E141-6,AllData,COLUMN()-5-COLUMN($E141)))","v":335.49},{"$f":"SUM(VLOOKUP($E141,AllData,COLUMN()-6-COLUMN($E141)),VLOOKUP($E141-1,AllData,COLUMN()-6-COLUMN($E141)),VLOOKUP($E141-2,AllData,COLUMN()-6-COLUMN($E141)),VLOOKUP($E141-3,AllData,COLUMN()-6-COLUMN($E141)),VLOOKUP($E141-4,AllData,COLUMN()-6-COLUMN($E141)),VLOOKUP($E141-5,AllData,COLUMN()-6-COLUMN($E141)),VLOOKUP($E141-6,AllData,COLUMN()-6-COLUMN($E141)),VLOOKUP($E141-7,AllData,COLUMN()-6-COLUMN($E141)),VLOOKUP($E141-8,AllData,COLUMN()-6-COLUMN($E141)),VLOOKUP($E141-9,AllData,COLUMN()-6-COLUMN($E141)),VLOOKUP($E141-10,AllData,COLUMN()-6-COLUMN($E141)),VLOOKUP($E141-11,AllData,COLUMN()-6-COLUMN($E141)),VLOOKUP($E141-12,AllData,COLUMN()-6-COLUMN($E141)),VLOOKUP($E141-13,AllData,COLUMN()-6-COLUMN($E141)),VLOOKUP($E141-14,AllData,COLUMN()-6-COLUMN($E141)),VLOOKUP($E141-15,AllData,COLUMN()-6-COLUMN($E141)),VLOOKUP($E141-16,AllData,COLUMN()-6-COLUMN($E141)),VLOOKUP($E141-17,AllData,COLUMN()-6-COLUMN($E141)),VLOOKUP($E141-18,AllData,COLUMN()-6-COLUMN($E141)),VLOOKUP($E141-19,AllData,COLUMN()-6-COLUMN($E141)),VLOOKUP($E141-20,AllData,COLUMN()-6-COLUMN($E141)),VLOOKUP($E141-21,AllData,COLUMN()-6-COLUMN($E141)),VLOOKUP($E141-22,AllData,COLUMN()-6-COLUMN($E141)),VLOOKUP($E141-23,AllData,COLUMN()-6-COLUMN($E141)),VLOOKUP($E141-24,AllData,COLUMN()-6-COLUMN($E141)),VLOOKUP($E141-25,AllData,COLUMN()-6-COLUMN($E141)),VLOOKUP($E141-26,AllData,COLUMN()-6-COLUMN($E141)),VLOOKUP($E141-27,AllData,COLUMN()-6-COLUMN($E141)),VLOOKUP($E141-28,AllData,COLUMN()-6-COLUMN($E141)),VLOOKUP($E141-29,AllData,COLUMN()-6-COLUMN($E141)))","v":1462.84},{"$f":"VLOOKUP($E141,AllData,COLUMN()-7-COLUMN($E141))","v":115.7},{"$f":"OR('Cool Graph'!$I$1=35,'Cool Graph'!$I$1=36,'Cool Graph'!$I$1=37,'Cool Graph'!$I$1=38,'Cool Graph'!$I$1=39,'Cool Graph'!$I$1=40,'Cool Graph'!$I$1=41,'Cool Graph'!$I$1=42,'Cool Graph'!$I$1=43,'Cool Graph'!$I$1=44,'Cool Graph'!$I$1=45,'Cool Graph'!$I$1=46,'Cool Graph'!$I$1=47,'Cool Graph'!$I$1=58,'Cool Graph'!$I$1=66)","v":false}]
["2011-11-18",{"$f":"OFFSET(OldSchoolJustValues!A142,0,'Cool Graph'!$H$1)","v":0},{"$f":"OFFSET(OldSchoolJustValues!A142,0,'Cool Graph'!$I$1)","v":318.12612585026386},null,{"$f":"IF(NewDate>EndDate,NA(),NewDate)","v":"2012-02-13"},{"$f":"IF($E142>EndDate,NA(),IF($K$2=TRUE,N142,IF('Cool Graph'!$B$17=1,N142,IF('Cool Graph'!$B$17=2,L142,IF('Cool Graph'!$B$17=3,M142,)))))","v":70.78},{"$f":"IF($E142>EndDate,NA(),IF($O$2=TRUE,J142,IF('Cool Graph'!$B$17=1,Data1!J142,IF('Cool Graph'!$B$17=2,Data1!H142,IF('Cool Graph'!$B$17=3,Data1!I142,)))))","v":437.07670481627821},{"$f":"SUM(VLOOKUP($E142,AllData,COLUMN()-COLUMN($E142)),VLOOKUP($E142-1,AllData,COLUMN()-COLUMN($E142)),VLOOKUP($E142-2,AllData,COLUMN()-COLUMN($E142)),VLOOKUP($E142-3,AllData,COLUMN()-COLUMN($E142)),VLOOKUP($E142-4,AllData,COLUMN()-COLUMN($E142)),VLOOKUP($E142-5,AllData,COLUMN()-COLUMN($E142)),VLOOKUP($E142-6,AllData,COLUMN()-COLUMN($E142)))","v":5508.9957553195754},{"$f":"SUM(VLOOKUP($E142,AllData,COLUMN()-1-COLUMN($E142)),VLOOKUP($E142-1,AllData,COLUMN()-1-COLUMN($E142)),VLOOKUP($E142-2,AllData,COLUMN()-1-COLUMN($E142)),VLOOKUP($E142-3,AllData,COLUMN()-1-COLUMN($E142)),VLOOKUP($E142-4,AllData,COLUMN()-1-COLUMN($E142)),VLOOKUP($E142-5,AllData,COLUMN()-1-COLUMN($E142)),VLOOKUP($E142-6,AllData,COLUMN()-1-COLUMN($E142)),VLOOKUP($E142-7,AllData,COLUMN()-1-COLUMN($E142)),VLOOKUP($E142-8,AllData,COLUMN()-1-COLUMN($E142)),VLOOKUP($E142-9,AllData,COLUMN()-1-COLUMN($E142)),VLOOKUP($E142-10,AllData,COLUMN()-1-COLUMN($E142)),VLOOKUP($E142-11,AllData,COLUMN()-1-COLUMN($E142)),VLOOKUP($E142-12,AllData,COLUMN()-1-COLUMN($E142)),VLOOKUP($E142-13,AllData,COLUMN()-1-COLUMN($E142)),VLOOKUP($E142-14,AllData,COLUMN()-1-COLUMN($E142)),VLOOKUP($E142-15,AllData,COLUMN()-1-COLUMN($E142)),VLOOKUP($E142-16,AllData,COLUMN()-1-COLUMN($E142)),VLOOKUP($E142-17,AllData,COLUMN()-1-COLUMN($E142)),VLOOKUP($E142-18,AllData,COLUMN()-1-COLUMN($E142)),VLOOKUP($E142-19,AllData,COLUMN()-1-COLUMN($E142)),VLOOKUP($E142-20,AllData,COLUMN()-1-COLUMN($E142)),VLOOKUP($E142-21,AllData,COLUMN()-1-COLUMN($E142)),VLOOKUP($E142-22,AllData,COLUMN()-1-COLUMN($E142)),VLOOKUP($E142-23,AllData,COLUMN()-1-COLUMN($E142)),VLOOKUP($E142-24,AllData,COLUMN()-1-COLUMN($E142)),VLOOKUP($E142-25,AllData,COLUMN()-1-COLUMN($E142)),VLOOKUP($E142-26,AllData,COLUMN()-1-COLUMN($E142)),VLOOKUP($E142-27,AllData,COLUMN()-1-COLUMN($E142)),VLOOKUP($E142-28,AllData,COLUMN()-1-COLUMN($E142)),VLOOKUP($E142-29,AllData,COLUMN()-1-COLUMN($E142)))","v":20011.39728837146},{"$f":"VLOOKUP($E142,AllData,COLUMN()-2-COLUMN($E142))","v":437.07670481627821},{"$f":"OR('Cool Graph'!$H$1=35,'Cool Graph'!$H$1=36,'Cool Graph'!$H$1=37,'Cool Graph'!$H$1=38,'Cool Graph'!$H$1=39,'Cool Graph'!$H$1=40,'Cool Graph'!$H$1=41,'Cool Graph'!$H$1=42,'Cool Graph'!$H$1=43,'Cool Graph'!$H$1=44,'Cool Graph'!$H$1=45,'Cool Graph'!$H$1=46,'Cool Graph'!$H$1=47,'Cool Graph'!$H$1=58,'Cool Graph'!$H$1=66)","v":false},{"$f":"SUM(VLOOKUP($E142,AllData,COLUMN()-5-COLUMN($E142)),VLOOKUP($E142-1,AllData,COLUMN()-5-COLUMN($E142)),VLOOKUP($E142-2,AllData,COLUMN()-5-COLUMN($E142)),VLOOKUP($E142-3,AllData,COLUMN()-5-COLUMN($E142)),VLOOKUP($E142-4,AllData,COLUMN()-5-COLUMN($E142)),VLOOKUP($E142-5,AllData,COLUMN()-5-COLUMN($E142)),VLOOKUP($E142-6,AllData,COLUMN()-5-COLUMN($E142)))","v":360.54000000000008},{"$f":"SUM(VLOOKUP($E142,AllData,COLUMN()-6-COLUMN($E142)),VLOOKUP($E142-1,AllData,COLUMN()-6-COLUMN($E142)),VLOOKUP($E142-2,AllData,COLUMN()-6-COLUMN($E142)),VLOOKUP($E142-3,AllData,COLUMN()-6-COLUMN($E142)),VLOOKUP($E142-4,AllData,COLUMN()-6-COLUMN($E142)),VLOOKUP($E142-5,AllData,COLUMN()-6-COLUMN($E142)),VLOOKUP($E142-6,AllData,COLUMN()-6-COLUMN($E142)),VLOOKUP($E142-7,AllData,COLUMN()-6-COLUMN($E142)),VLOOKUP($E142-8,AllData,COLUMN()-6-COLUMN($E142)),VLOOKUP($E142-9,AllData,COLUMN()-6-COLUMN($E142)),VLOOKUP($E142-10,AllData,COLUMN()-6-COLUMN($E142)),VLOOKUP($E142-11,AllData,COLUMN()-6-COLUMN($E142)),VLOOKUP($E142-12,AllData,COLUMN()-6-COLUMN($E142)),VLOOKUP($E142-13,AllData,COLUMN()-6-COLUMN($E142)),VLOOKUP($E142-14,AllData,COLUMN()-6-COLUMN($E142)),VLOOKUP($E142-15,AllData,COLUMN()-6-COLUMN($E142)),VLOOKUP($E142-16,AllData,COLUMN()-6-COLUMN($E142)),VLOOKUP($E142-17,AllData,COLUMN()-6-COLUMN($E142)),VLOOKUP($E142-18,AllData,COLUMN()-6-COLUMN($E142)),VLOOKUP($E142-19,AllData,COLUMN()-6-COLUMN($E142)),VLOOKUP($E142-20,AllData,COLUMN()-6-COLUMN($E142)),VLOOKUP($E142-21,AllData,COLUMN()-6-COLUMN($E142)),VLOOKUP($E142-22,AllData,COLUMN()-6-COLUMN($E142)),VLOOKUP($E142-23,AllData,COLUMN()-6-COLUMN($E142)),VLOOKUP($E142-24,AllData,COLUMN()-6-COLUMN($E142)),VLOOKUP($E142-25,AllData,COLUMN()-6-COLUMN($E142)),VLOOKUP($E142-26,AllData,COLUMN()-6-COLUMN($E142)),VLOOKUP($E142-27,AllData,COLUMN()-6-COLUMN($E142)),VLOOKUP($E142-28,AllData,COLUMN()-6-COLUMN($E142)),VLOOKUP($E142-29,AllData,COLUMN()-6-COLUMN($E142)))","v":1533.59},{"$f":"VLOOKUP($E142,AllData,COLUMN()-7-COLUMN($E142))","v":70.78},{"$f":"OR('Cool Graph'!$I$1=35,'Cool Graph'!$I$1=36,'Cool Graph'!$I$1=37,'Cool Graph'!$I$1=38,'Cool Graph'!$I$1=39,'Cool Graph'!$I$1=40,'Cool Graph'!$I$1=41,'Cool Graph'!$I$1=42,'Cool Graph'!$I$1=43,'Cool Graph'!$I$1=44,'Cool Graph'!$I$1=45,'Cool Graph'!$I$1=46,'Cool Graph'!$I$1=47,'Cool Graph'!$I$1=58,'Cool Graph'!$I$1=66)","v":false}]
["2011-11-19",{"$f":"OFFSET(OldSchoolJustValues!A143,0,'Cool Graph'!$H$1)","v":0},{"$f":"OFFSET(OldSchoolJustValues!A143,0,'Cool Graph'!$I$1)","v":241.72281214131294},null,{"$f":"IF(NewDate>EndDate,NA(),NewDate)","v":"2012-02-14"},{"$f":"IF($E143>EndDate,NA(),IF($K$2=TRUE,N143,IF('Cool Graph'!$B$17=1,N143,IF('Cool Graph'!$B$17=2,L143,IF('Cool Graph'!$B$17=3,M143,)))))","v":196.07},{"$f":"IF($E143>EndDate,NA(),IF($O$2=TRUE,J143,IF('Cool Graph'!$B$17=1,Data1!J143,IF('Cool Graph'!$B$17=2,Data1!H143,IF('Cool Graph'!$B$17=3,Data1!I143,)))))","v":914.30587826173814},{"$f":"SUM(VLOOKUP($E143,AllData,COLUMN()-COLUMN($E143)),VLOOKUP($E143-1,AllData,COLUMN()-COLUMN($E143)),VLOOKUP($E143-2,AllData,COLUMN()-COLUMN($E143)),VLOOKUP($E143-3,AllData,COLUMN()-COLUMN($E143)),VLOOKUP($E143-4,AllData,COLUMN()-COLUMN($E143)),VLOOKUP($E143-5,AllData,COLUMN()-COLUMN($E143)),VLOOKUP($E143-6,AllData,COLUMN()-COLUMN($E143)))","v":4996.4245082060343},{"$f":"SUM(VLOOKUP($E143,AllData,COLUMN()-1-COLUMN($E143)),VLOOKUP($E143-1,AllData,COLUMN()-1-COLUMN($E143)),VLOOKUP($E143-2,AllData,COLUMN()-1-COLUMN($E143)),VLOOKUP($E143-3,AllData,COLUMN()-1-COLUMN($E143)),VLOOKUP($E143-4,AllData,COLUMN()-1-COLUMN($E143)),VLOOKUP($E143-5,AllData,COLUMN()-1-COLUMN($E143)),VLOOKUP($E143-6,AllData,COLUMN()-1-COLUMN($E143)),VLOOKUP($E143-7,AllData,COLUMN()-1-COLUMN($E143)),VLOOKUP($E143-8,AllData,COLUMN()-1-COLUMN($E143)),VLOOKUP($E143-9,AllData,COLUMN()-1-COLUMN($E143)),VLOOKUP($E143-10,AllData,COLUMN()-1-COLUMN($E143)),VLOOKUP($E143-11,AllData,COLUMN()-1-COLUMN($E143)),VLOOKUP($E143-12,AllData,COLUMN()-1-COLUMN($E143)),VLOOKUP($E143-13,AllData,COLUMN()-1-COLUMN($E143)),VLOOKUP($E143-14,AllData,COLUMN()-1-COLUMN($E143)),VLOOKUP($E143-15,AllData,COLUMN()-1-COLUMN($E143)),VLOOKUP($E143-16,AllData,COLUMN()-1-COLUMN($E143)),VLOOKUP($E143-17,AllData,COLUMN()-1-COLUMN($E143)),VLOOKUP($E143-18,AllData,COLUMN()-1-COLUMN($E143)),VLOOKUP($E143-19,AllData,COLUMN()-1-COLUMN($E143)),VLOOKUP($E143-20,AllData,COLUMN()-1-COLUMN($E143)),VLOOKUP($E143-21,AllData,COLUMN()-1-COLUMN($E143)),VLOOKUP($E143-22,AllData,COLUMN()-1-COLUMN($E143)),VLOOKUP($E143-23,AllData,COLUMN()-1-COLUMN($E143)),VLOOKUP($E143-24,AllData,COLUMN()-1-COLUMN($E143)),VLOOKUP($E143-25,AllData,COLUMN()-1-COLUMN($E143)),VLOOKUP($E143-26,AllData,COLUMN()-1-COLUMN($E143)),VLOOKUP($E143-27,AllData,COLUMN()-1-COLUMN($E143)),VLOOKUP($E143-28,AllData,COLUMN()-1-COLUMN($E143)),VLOOKUP($E143-29,AllData,COLUMN()-1-COLUMN($E143)))","v":20550.085194265786},{"$f":"VLOOKUP($E143,AllData,COLUMN()-2-COLUMN($E143))","v":914.30587826173814},{"$f":"OR('Cool Graph'!$H$1=35,'Cool Graph'!$H$1=36,'Cool Graph'!$H$1=37,'Cool Graph'!$H$1=38,'Cool Graph'!$H$1=39,'Cool Graph'!$H$1=40,'Cool Graph'!$H$1=41,'Cool Graph'!$H$1=42,'Cool Graph'!$H$1=43,'Cool Graph'!$H$1=44,'Cool Graph'!$H$1=45,'Cool Graph'!$H$1=46,'Cool Graph'!$H$1=47,'Cool Graph'!$H$1=58,'Cool Graph'!$H$1=66)","v":false},{"$f":"SUM(VLOOKUP($E143,AllData,COLUMN()-5-COLUMN($E143)),VLOOKUP($E143-1,AllData,COLUMN()-5-COLUMN($E143)),VLOOKUP($E143-2,AllData,COLUMN()-5-COLUMN($E143)),VLOOKUP($E143-3,AllData,COLUMN()-5-COLUMN($E143)),VLOOKUP($E143-4,AllData,COLUMN()-5-COLUMN($E143)),VLOOKUP($E143-5,AllData,COLUMN()-5-COLUMN($E143)),VLOOKUP($E143-6,AllData,COLUMN()-5-COLUMN($E143)))","v":518.18000000000006},{"$f":"SUM(VLOOKUP($E143,AllData,COLUMN()-6-COLUMN($E143)),VLOOKUP($E143-1,AllData,COLUMN()-6-COLUMN($E143)),VLOOKUP($E143-2,AllData,COLUMN()-6-COLUMN($E143)),VLOOKUP($E143-3,AllData,COLUMN()-6-COLUMN($E143)),VLOOKUP($E143-4,AllData,COLUMN()-6-COLUMN($E143)),VLOOKUP($E143-5,AllData,COLUMN()-6-COLUMN($E143)),VLOOKUP($E143-6,AllData,COLUMN()-6-COLUMN($E143)),VLOOKUP($E143-7,AllData,COLUMN()-6-COLUMN($E143)),VLOOKUP($E143-8,AllData,COLUMN()-6-COLUMN($E143)),VLOOKUP($E143-9,AllData,COLUMN()-6-COLUMN($E143)),VLOOKUP($E143-10,AllData,COLUMN()-6-COLUMN($E143)),VLOOKUP($E143-11,AllData,COLUMN()-6-COLUMN($E143)),VLOOKUP($E143-12,AllData,COLUMN()-6-COLUMN($E143)),VLOOKUP($E143-13,AllData,COLUMN()-6-COLUMN($E143)),VLOOKUP($E143-14,AllData,COLUMN()-6-COLUMN($E143)),VLOOKUP($E143-15,AllData,COLUMN()-6-COLUMN($E143)),VLOOKUP($E143-16,AllData,COLUMN()-6-COLUMN($E143)),VLOOKUP($E143-17,AllData,COLUMN()-6-COLUMN($E143)),VLOOKUP($E143-18,AllData,COLUMN()-6-COLUMN($E143)),VLOOKUP($E143-19,AllData,COLUMN()-6-COLUMN($E143)),VLOOKUP($E143-20,AllData,COLUMN()-6-COLUMN($E143)),VLOOKUP($E143-21,AllData,COLUMN()-6-COLUMN($E143)),VLOOKUP($E143-22,AllData,COLUMN()-6-COLUMN($E143)),VLOOKUP($E143-23,AllData,COLUMN()-6-COLUMN($E143)),VLOOKUP($E143-24,AllData,COLUMN()-6-COLUMN($E143)),VLOOKUP($E143-25,AllData,COLUMN()-6-COLUMN($E143)),VLOOKUP($E143-26,AllData,COLUMN()-6-COLUMN($E143)),VLOOKUP($E143-27,AllData,COLUMN()-6-COLUMN($E143)),VLOOKUP($E143-28,AllData,COLUMN()-6-COLUMN($E143)),VLOOKUP($E143-29,AllData,COLUMN()-6-COLUMN($E143)))","v":1729.6599999999996},{"$f":"VLOOKUP($E143,AllData,COLUMN()-7-COLUMN($E143))","v":196.07},{"$f":"OR('Cool Graph'!$I$1=35,'Cool Graph'!$I$1=36,'Cool Graph'!$I$1=37,'Cool Graph'!$I$1=38,'Cool Graph'!$I$1=39,'Cool Graph'!$I$1=40,'Cool Graph'!$I$1=41,'Cool Graph'!$I$1=42,'Cool Graph'!$I$1=43,'Cool Graph'!$I$1=44,'Cool Graph'!$I$1=45,'Cool Graph'!$I$1=46,'Cool Graph'!$I$1=47,'Cool Graph'!$I$1=58,'Cool Graph'!$I$1=66)","v":false}]
["2011-11-20",{"$f":"OFFSET(OldSchoolJustValues!A144,0,'Cool Graph'!$H$1)","v":0},{"$f":"OFFSET(OldSchoolJustValues!A144,0,'Cool Graph'!$I$1)","v":524.08645079845985},null,{"$f":"IF(NewDate>EndDate,NA(),NewDate)","v":"2012-02-15"},{"$f":"IF($E144>EndDate,NA(),IF($K$2=TRUE,N144,IF('Cool Graph'!$B$17=1,N144,IF('Cool Graph'!$B$17=2,L144,IF('Cool Graph'!$B$17=3,M144,)))))","v":171.78},{"$f":"IF($E144>EndDate,NA(),IF($O$2=TRUE,J144,IF('Cool Graph'!$B$17=1,Data1!J144,IF('Cool Graph'!$B$17=2,Data1!H144,IF('Cool Graph'!$B$17=3,Data1!I144,)))))","v":285.27348706266321},{"$f":"SUM(VLOOKUP($E144,AllData,COLUMN()-COLUMN($E144)),VLOOKUP($E144-1,AllData,COLUMN()-COLUMN($E144)),VLOOKUP($E144-2,AllData,COLUMN()-COLUMN($E144)),VLOOKUP($E144-3,AllData,COLUMN()-COLUMN($E144)),VLOOKUP($E144-4,AllData,COLUMN()-COLUMN($E144)),VLOOKUP($E144-5,AllData,COLUMN()-COLUMN($E144)),VLOOKUP($E144-6,AllData,COLUMN()-COLUMN($E144)))","v":4726.6489013554101},{"$f":"SUM(VLOOKUP($E144,AllData,COLUMN()-1-COLUMN($E144)),VLOOKUP($E144-1,AllData,COLUMN()-1-COLUMN($E144)),VLOOKUP($E144-2,AllData,COLUMN()-1-COLUMN($E144)),VLOOKUP($E144-3,AllData,COLUMN()-1-COLUMN($E144)),VLOOKUP($E144-4,AllData,COLUMN()-1-COLUMN($E144)),VLOOKUP($E144-5,AllData,COLUMN()-1-COLUMN($E144)),VLOOKUP($E144-6,AllData,COLUMN()-1-COLUMN($E144)),VLOOKUP($E144-7,AllData,COLUMN()-1-COLUMN($E144)),VLOOKUP($E144-8,AllData,COLUMN()-1-COLUMN($E144)),VLOOKUP($E144-9,AllData,COLUMN()-1-COLUMN($E144)),VLOOKUP($E144-10,AllData,COLUMN()-1-COLUMN($E144)),VLOOKUP($E144-11,AllData,COLUMN()-1-COLUMN($E144)),VLOOKUP($E144-12,AllData,COLUMN()-1-COLUMN($E144)),VLOOKUP($E144-13,AllData,COLUMN()-1-COLUMN($E144)),VLOOKUP($E144-14,AllData,COLUMN()-1-COLUMN($E144)),VLOOKUP($E144-15,AllData,COLUMN()-1-COLUMN($E144)),VLOOKUP($E144-16,AllData,COLUMN()-1-COLUMN($E144)),VLOOKUP($E144-17,AllData,COLUMN()-1-COLUMN($E144)),VLOOKUP($E144-18,AllData,COLUMN()-1-COLUMN($E144)),VLOOKUP($E144-19,AllData,COLUMN()-1-COLUMN($E144)),VLOOKUP($E144-20,AllData,COLUMN()-1-COLUMN($E144)),VLOOKUP($E144-21,AllData,COLUMN()-1-COLUMN($E144)),VLOOKUP($E144-22,AllData,COLUMN()-1-COLUMN($E144)),VLOOKUP($E144-23,AllData,COLUMN()-1-COLUMN($E144)),VLOOKUP($E144-24,AllData,COLUMN()-1-COLUMN($E144)),VLOOKUP($E144-25,AllData,COLUMN()-1-COLUMN($E144)),VLOOKUP($E144-26,AllData,COLUMN()-1-COLUMN($E144)),VLOOKUP($E144-27,AllData,COLUMN()-1-COLUMN($E144)),VLOOKUP($E144-28,AllData,COLUMN()-1-COLUMN($E144)),VLOOKUP($E144-29,AllData,COLUMN()-1-COLUMN($E144)))","v":20671.526481168257},{"$f":"VLOOKUP($E144,AllData,COLUMN()-2-COLUMN($E144))","v":285.27348706266321},{"$f":"OR('Cool Graph'!$H$1=35,'Cool Graph'!$H$1=36,'Cool Graph'!$H$1=37,'Cool Graph'!$H$1=38,'Cool Graph'!$H$1=39,'Cool Graph'!$H$1=40,'Cool Graph'!$H$1=41,'Cool Graph'!$H$1=42,'Cool Graph'!$H$1=43,'Cool Graph'!$H$1=44,'Cool Graph'!$H$1=45,'Cool Graph'!$H$1=46,'Cool Graph'!$H$1=47,'Cool Graph'!$H$1=58,'Cool Graph'!$H$1=66)","v":false},{"$f":"SUM(VLOOKUP($E144,AllData,COLUMN()-5-COLUMN($E144)),VLOOKUP($E144-1,AllData,COLUMN()-5-COLUMN($E144)),VLOOKUP($E144-2,AllData,COLUMN()-5-COLUMN($E144)),VLOOKUP($E144-3,AllData,COLUMN()-5-COLUMN($E144)),VLOOKUP($E144-4,AllData,COLUMN()-5-COLUMN($E144)),VLOOKUP($E144-5,AllData,COLUMN()-5-COLUMN($E144)),VLOOKUP($E144-6,AllData,COLUMN()-5-COLUMN($E144)))","v":665.97},{"$f":"SUM(VLOOKUP($E144,AllData,COLUMN()-6-COLUMN($E144)),VLOOKUP($E144-1,AllData,COLUMN()-6-COLUMN($E144)),VLOOKUP($E144-2,AllData,COLUMN()-6-COLUMN($E144)),VLOOKUP($E144-3,AllData,COLUMN()-6-COLUMN($E144)),VLOOKUP($E144-4,AllData,COLUMN()-6-COLUMN($E144)),VLOOKUP($E144-5,AllData,COLUMN()-6-COLUMN($E144)),VLOOKUP($E144-6,AllData,COLUMN()-6-COLUMN($E144)),VLOOKUP($E144-7,AllData,COLUMN()-6-COLUMN($E144)),VLOOKUP($E144-8,AllData,COLUMN()-6-COLUMN($E144)),VLOOKUP($E144-9,AllData,COLUMN()-6-COLUMN($E144)),VLOOKUP($E144-10,AllData,COLUMN()-6-COLUMN($E144)),VLOOKUP($E144-11,AllData,COLUMN()-6-COLUMN($E144)),VLOOKUP($E144-12,AllData,COLUMN()-6-COLUMN($E144)),VLOOKUP($E144-13,AllData,COLUMN()-6-COLUMN($E144)),VLOOKUP($E144-14,AllData,COLUMN()-6-COLUMN($E144)),VLOOKUP($E144-15,AllData,COLUMN()-6-COLUMN($E144)),VLOOKUP($E144-16,AllData,COLUMN()-6-COLUMN($E144)),VLOOKUP($E144-17,AllData,COLUMN()-6-COLUMN($E144)),VLOOKUP($E144-18,AllData,COLUMN()-6-COLUMN($E144)),VLOOKUP($E144-19,AllData,COLUMN()-6-COLUMN($E144)),VLOOKUP($E144-20,AllData,COLUMN()-6-COLUMN($E144)),VLOOKUP($E144-21,AllData,COLUMN()-6-COLUMN($E144)),VLOOKUP($E144-22,AllData,COLUMN()-6-COLUMN($E144)),VLOOKUP($E144-23,AllData,COLUMN()-6-COLUMN($E144)),VLOOKUP($E144-24,AllData,COLUMN()-6-COLUMN($E144)),VLOOKUP($E144-25,AllData,COLUMN()-6-COLUMN($E144)),VLOOKUP($E144-26,AllData,COLUMN()-6-COLUMN($E144)),VLOOKUP($E144-27,AllData,COLUMN()-6-COLUMN($E144)),VLOOKUP($E144-28,AllData,COLUMN()-6-COLUMN($E144)),VLOOKUP($E144-29,AllData,COLUMN()-6-COLUMN($E144)))","v":1901.4399999999996},{"$f":"VLOOKUP($E144,AllData,COLUMN()-7-COLUMN($E144))","v":171.78},{"$f":"OR('Cool Graph'!$I$1=35,'Cool Graph'!$I$1=36,'Cool Graph'!$I$1=37,'Cool Graph'!$I$1=38,'Cool Graph'!$I$1=39,'Cool Graph'!$I$1=40,'Cool Graph'!$I$1=41,'Cool Graph'!$I$1=42,'Cool Graph'!$I$1=43,'Cool Graph'!$I$1=44,'Cool Graph'!$I$1=45,'Cool Graph'!$I$1=46,'Cool Graph'!$I$1=47,'Cool Graph'!$I$1=58,'Cool Graph'!$I$1=66)","v":false}]
["2011-11-21",{"$f":"OFFSET(OldSchoolJustValues!A145,0,'Cool Graph'!$H$1)","v":0},{"$f":"OFFSET(OldSchoolJustValues!A145,0,'Cool Graph'!$I$1)","v":601.71932181292016},null,{"$f":"IF(NewDate>EndDate,NA(),NewDate)","v":"2012-02-16"},{"$f":"IF($E145>EndDate,NA(),IF($K$2=TRUE,N145,IF('Cool Graph'!$B$17=1,N145,IF('Cool Graph'!$B$17=2,L145,IF('Cool Graph'!$B$17=3,M145,)))))","v":89.57},{"$f":"IF($E145>EndDate,NA(),IF($O$2=TRUE,J145,IF('Cool Graph'!$B$17=1,Data1!J145,IF('Cool Graph'!$B$17=2,Data1!H145,IF('Cool Graph'!$B$17=3,Data1!I145,)))))","v":708.46722399167163},{"$f":"SUM(VLOOKUP($E145,AllData,COLUMN()-COLUMN($E145)),VLOOKUP($E145-1,AllData,COLUMN()-COLUMN($E145)),VLOOKUP($E145-2,AllData,COLUMN()-COLUMN($E145)),VLOOKUP($E145-3,AllData,COLUMN()-COLUMN($E145)),VLOOKUP($E145-4,AllData,COLUMN()-COLUMN($E145)),VLOOKUP($E145-5,AllData,COLUMN()-COLUMN($E145)),VLOOKUP($E145-6,AllData,COLUMN()-COLUMN($E145)))","v":4543.4811605188233},{"$f":"SUM(VLOOKUP($E145,AllData,COLUMN()-1-COLUMN($E145)),VLOOKUP($E145-1,AllData,COLUMN()-1-COLUMN($E145)),VLOOKUP($E145-2,AllData,COLUMN()-1-COLUMN($E145)),VLOOKUP($E145-3,AllData,COLUMN()-1-COLUMN($E145)),VLOOKUP($E145-4,AllData,COLUMN()-1-COLUMN($E145)),VLOOKUP($E145-5,AllData,COLUMN()-1-COLUMN($E145)),VLOOKUP($E145-6,AllData,COLUMN()-1-COLUMN($E145)),VLOOKUP($E145-7,AllData,COLUMN()-1-COLUMN($E145)),VLOOKUP($E145-8,AllData,COLUMN()-1-COLUMN($E145)),VLOOKUP($E145-9,AllData,COLUMN()-1-COLUMN($E145)),VLOOKUP($E145-10,AllData,COLUMN()-1-COLUMN($E145)),VLOOKUP($E145-11,AllData,COLUMN()-1-COLUMN($E145)),VLOOKUP($E145-12,AllData,COLUMN()-1-COLUMN($E145)),VLOOKUP($E145-13,AllData,COLUMN()-1-COLUMN($E145)),VLOOKUP($E145-14,AllData,COLUMN()-1-COLUMN($E145)),VLOOKUP($E145-15,AllData,COLUMN()-1-COLUMN($E145)),VLOOKUP($E145-16,AllData,COLUMN()-1-COLUMN($E145)),VLOOKUP($E145-17,AllData,COLUMN()-1-COLUMN($E145)),VLOOKUP($E145-18,AllData,COLUMN()-1-COLUMN($E145)),VLOOKUP($E145-19,AllData,COLUMN()-1-COLUMN($E145)),VLOOKUP($E145-20,AllData,COLUMN()-1-COLUMN($E145)),VLOOKUP($E145-21,AllData,COLUMN()-1-COLUMN($E145)),VLOOKUP($E145-22,AllData,COLUMN()-1-COLUMN($E145)),VLOOKUP($E145-23,AllData,COLUMN()-1-COLUMN($E145)),VLOOKUP($E145-24,AllData,COLUMN()-1-COLUMN($E145)),VLOOKUP($E145-25,AllData,COLUMN()-1-COLUMN($E145)),VLOOKUP($E145-26,AllData,COLUMN()-1-COLUMN($E145)),VLOOKUP($E145-27,AllData,COLUMN()-1-COLUMN($E145)),VLOOKUP($E145-28,AllData,COLUMN()-1-COLUMN($E145)),VLOOKUP($E145-29,AllData,COLUMN()-1-COLUMN($E145)))","v":21049.798904816467},{"$f":"VLOOKUP($E145,AllData,COLUMN()-2-COLUMN($E145))","v":708.46722399167163},{"$f":"OR('Cool Graph'!$H$1=35,'Cool Graph'!$H$1=36,'Cool Graph'!$H$1=37,'Cool Graph'!$H$1=38,'Cool Graph'!$H$1=39,'Cool Graph'!$H$1=40,'Cool Graph'!$H$1=41,'Cool Graph'!$H$1=42,'Cool Graph'!$H$1=43,'Cool Graph'!$H$1=44,'Cool Graph'!$H$1=45,'Cool Graph'!$H$1=46,'Cool Graph'!$H$1=47,'Cool Graph'!$H$1=58,'Cool Graph'!$H$1=66)","v":false},{"$f":"SUM(VLOOKUP($E145,AllData,COLUMN()-5-COLUMN($E145)),VLOOKUP($E145-1,AllData,COLUMN()-5-COLUMN($E145)),VLOOKUP($E145-2,AllData,COLUMN()-5-COLUMN($E145)),VLOOKUP($E145-3,AllData,COLUMN()-5-COLUMN($E145)),VLOOKUP($E145-4,AllData,COLUMN()-5-COLUMN($E145)),VLOOKUP($E145-5,AllData,COLUMN()-5-COLUMN($E145)),VLOOKUP($E145-6,AllData,COLUMN()-5-COLUMN($E145)))","v":748.38000000000011},{"$f":"SUM(VLOOKUP($E145,AllData,COLUMN()-6-COLUMN($E145)),VLOOKUP($E145-1,AllData,COLUMN()-6-COLUMN($E145)),VLOOKUP($E145-2,AllData,COLUMN()-6-COLUMN($E145)),VLOOKUP($E145-3,AllData,COLUMN()-6-COLUMN($E145)),VLOOKUP($E145-4,AllData,COLUMN()-6-COLUMN($E145)),VLOOKUP($E145-5,AllData,COLUMN()-6-COLUMN($E145)),VLOOKUP($E145-6,AllData,COLUMN()-6-COLUMN($E145)),VLOOKUP($E145-7,AllData,COLUMN()-6-COLUMN($E145)),VLOOKUP($E145-8,AllData,COLUMN()-6-COLUMN($E145)),VLOOKUP($E145-9,AllData,COLUMN()-6-COLUMN($E145)),VLOOKUP($E145-10,AllData,COLUMN()-6-COLUMN($E145)),VLOOKUP($E145-11,AllData,COLUMN()-6-COLUMN($E145)),VLOOKUP($E145-12,AllData,COLUMN()-6-COLUMN($E145)),VLOOKUP($E145-13,AllData,COLUMN()-6-COLUMN($E145)),VLOOKUP($E145-14,AllData,COLUMN()-6-COLUMN($E145)),VLOOKUP($E145-15,AllData,COLUMN()-6-COLUMN($E145)),VLOOKUP($E145-16,AllData,COLUMN()-6-COLUMN($E145)),VLOOKUP($E145-17,AllData,COLUMN()-6-COLUMN($E145)),VLOOKUP($E145-18,AllData,COLUMN()-6-COLUMN($E145)),VLOOKUP($E145-19,AllData,COLUMN()-6-COLUMN($E145)),VLOOKUP($E145-20,AllData,COLUMN()-6-COLUMN($E145)),VLOOKUP($E145-21,AllData,COLUMN()-6-COLUMN($E145)),VLOOKUP($E145-22,AllData,COLUMN()-6-COLUMN($E145)),VLOOKUP($E145-23,AllData,COLUMN()-6-COLUMN($E145)),VLOOKUP($E145-24,AllData,COLUMN()-6-COLUMN($E145)),VLOOKUP($E145-25,AllData,COLUMN()-6-COLUMN($E145)),VLOOKUP($E145-26,AllData,COLUMN()-6-COLUMN($E145)),VLOOKUP($E145-27,AllData,COLUMN()-6-COLUMN($E145)),VLOOKUP($E145-28,AllData,COLUMN()-6-COLUMN($E145)),VLOOKUP($E145-29,AllData,COLUMN()-6-COLUMN($E145)))","v":1761.8199999999997},{"$f":"VLOOKUP($E145,AllData,COLUMN()-7-COLUMN($E145))","v":89.57},{"$f":"OR('Cool Graph'!$I$1=35,'Cool Graph'!$I$1=36,'Cool Graph'!$I$1=37,'Cool Graph'!$I$1=38,'Cool Graph'!$I$1=39,'Cool Graph'!$I$1=40,'Cool Graph'!$I$1=41,'Cool Graph'!$I$1=42,'Cool Graph'!$I$1=43,'Cool Graph'!$I$1=44,'Cool Graph'!$I$1=45,'Cool Graph'!$I$1=46,'Cool Graph'!$I$1=47,'Cool Graph'!$I$1=58,'Cool Graph'!$I$1=66)","v":false}]
["2011-11-22",{"$f":"OFFSET(OldSchoolJustValues!A146,0,'Cool Graph'!$H$1)","v":100},{"$f":"OFFSET(OldSchoolJustValues!A146,0,'Cool Graph'!$I$1)","v":322.62313708950893},null,{"$f":"IF(NewDate>EndDate,NA(),NewDate)","v":"2012-02-17"},{"$f":"IF($E146>EndDate,NA(),IF($K$2=TRUE,N146,IF('Cool Graph'!$B$17=1,N146,IF('Cool Graph'!$B$17=2,L146,IF('Cool Graph'!$B$17=3,M146,)))))","v":68.23},{"$f":"IF($E146>EndDate,NA(),IF($O$2=TRUE,J146,IF('Cool Graph'!$B$17=1,Data1!J146,IF('Cool Graph'!$B$17=2,Data1!H146,IF('Cool Graph'!$B$17=3,Data1!I146,)))))","v":1395.5180618230156},{"$f":"SUM(VLOOKUP($E146,AllData,COLUMN()-COLUMN($E146)),VLOOKUP($E146-1,AllData,COLUMN()-COLUMN($E146)),VLOOKUP($E146-2,AllData,COLUMN()-COLUMN($E146)),VLOOKUP($E146-3,AllData,COLUMN()-COLUMN($E146)),VLOOKUP($E146-4,AllData,COLUMN()-COLUMN($E146)),VLOOKUP($E146-5,AllData,COLUMN()-COLUMN($E146)),VLOOKUP($E146-6,AllData,COLUMN()-COLUMN($E146)))","v":4898.9199344614972},{"$f":"SUM(VLOOKUP($E146,AllData,COLUMN()-1-COLUMN($E146)),VLOOKUP($E146-1,AllData,COLUMN()-1-COLUMN($E146)),VLOOKUP($E146-2,AllData,COLUMN()-1-COLUMN($E146)),VLOOKUP($E146-3,AllData,COLUMN()-1-COLUMN($E146)),VLOOKUP($E146-4,AllData,COLUMN()-1-COLUMN($E146)),VLOOKUP($E146-5,AllData,COLUMN()-1-COLUMN($E146)),VLOOKUP($E146-6,AllData,COLUMN()-1-COLUMN($E146)),VLOOKUP($E146-7,AllData,COLUMN()-1-COLUMN($E146)),VLOOKUP($E146-8,AllData,COLUMN()-1-COLUMN($E146)),VLOOKUP($E146-9,AllData,COLUMN()-1-COLUMN($E146)),VLOOKUP($E146-10,AllData,COLUMN()-1-COLUMN($E146)),VLOOKUP($E146-11,AllData,COLUMN()-1-COLUMN($E146)),VLOOKUP($E146-12,AllData,COLUMN()-1-COLUMN($E146)),VLOOKUP($E146-13,AllData,COLUMN()-1-COLUMN($E146)),VLOOKUP($E146-14,AllData,COLUMN()-1-COLUMN($E146)),VLOOKUP($E146-15,AllData,COLUMN()-1-COLUMN($E146)),VLOOKUP($E146-16,AllData,COLUMN()-1-COLUMN($E146)),VLOOKUP($E146-17,AllData,COLUMN()-1-COLUMN($E146)),VLOOKUP($E146-18,AllData,COLUMN()-1-COLUMN($E146)),VLOOKUP($E146-19,AllData,COLUMN()-1-COLUMN($E146)),VLOOKUP($E146-20,AllData,COLUMN()-1-COLUMN($E146)),VLOOKUP($E146-21,AllData,COLUMN()-1-COLUMN($E146)),VLOOKUP($E146-22,AllData,COLUMN()-1-COLUMN($E146)),VLOOKUP($E146-23,AllData,COLUMN()-1-COLUMN($E146)),VLOOKUP($E146-24,AllData,COLUMN()-1-COLUMN($E146)),VLOOKUP($E146-25,AllData,COLUMN()-1-COLUMN($E146)),VLOOKUP($E146-26,AllData,COLUMN()-1-COLUMN($E146)),VLOOKUP($E146-27,AllData,COLUMN()-1-COLUMN($E146)),VLOOKUP($E146-28,AllData,COLUMN()-1-COLUMN($E146)),VLOOKUP($E146-29,AllData,COLUMN()-1-COLUMN($E146)))","v":21806.017053764612},{"$f":"VLOOKUP($E146,AllData,COLUMN()-2-COLUMN($E146))","v":1395.5180618230156},{"$f":"OR('Cool Graph'!$H$1=35,'Cool Graph'!$H$1=36,'Cool Graph'!$H$1=37,'Cool Graph'!$H$1=38,'Cool Graph'!$H$1=39,'Cool Graph'!$H$1=40,'Cool Graph'!$H$1=41,'Cool Graph'!$H$1=42,'Cool Graph'!$H$1=43,'Cool Graph'!$H$1=44,'Cool Graph'!$H$1=45,'Cool Graph'!$H$1=46,'Cool Graph'!$H$1=47,'Cool Graph'!$H$1=58,'Cool Graph'!$H$1=66)","v":false},{"$f":"SUM(VLOOKUP($E146,AllData,COLUMN()-5-COLUMN($E146)),VLOOKUP($E146-1,AllData,COLUMN()-5-COLUMN($E146)),VLOOKUP($E146-2,AllData,COLUMN()-5-COLUMN($E146)),VLOOKUP($E146-3,AllData,COLUMN()-5-COLUMN($E146)),VLOOKUP($E146-4,AllData,COLUMN()-5-COLUMN($E146)),VLOOKUP($E146-5,AllData,COLUMN()-5-COLUMN($E146)),VLOOKUP($E146-6,AllData,COLUMN()-5-COLUMN($E146)))","v":804.11000000000013},{"$f":"SUM(VLOOKUP($E146,AllData,COLUMN()-6-COLUMN($E146)),VLOOKUP($E146-1,AllData,COLUMN()-6-COLUMN($E146)),VLOOKUP($E146-2,AllData,COLUMN()-6-COLUMN($E146)),VLOOKUP($E146-3,AllData,COLUMN()-6-COLUMN($E146)),VLOOKUP($E146-4,AllData,COLUMN()-6-COLUMN($E146)),VLOOKUP($E146-5,AllData,COLUMN()-6-COLUMN($E146)),VLOOKUP($E146-6,AllData,COLUMN()-6-COLUMN($E146)),VLOOKUP($E146-7,AllData,COLUMN()-6-COLUMN($E146)),VLOOKUP($E146-8,AllData,COLUMN()-6-COLUMN($E146)),VLOOKUP($E146-9,AllData,COLUMN()-6-COLUMN($E146)),VLOOKUP($E146-10,AllData,COLUMN()-6-COLUMN($E146)),VLOOKUP($E146-11,AllData,COLUMN()-6-COLUMN($E146)),VLOOKUP($E146-12,AllData,COLUMN()-6-COLUMN($E146)),VLOOKUP($E146-13,AllData,COLUMN()-6-COLUMN($E146)),VLOOKUP($E146-14,AllData,COLUMN()-6-COLUMN($E146)),VLOOKUP($E146-15,AllData,COLUMN()-6-COLUMN($E146)),VLOOKUP($E146-16,AllData,COLUMN()-6-COLUMN($E146)),VLOOKUP($E146-17,AllData,COLUMN()-6-COLUMN($E146)),VLOOKUP($E146-18,AllData,COLUMN()-6-COLUMN($E146)),VLOOKUP($E146-19,AllData,COLUMN()-6-COLUMN($E146)),VLOOKUP($E146-20,AllData,COLUMN()-6-COLUMN($E146)),VLOOKUP($E146-21,AllData,COLUMN()-6-COLUMN($E146)),VLOOKUP($E146-22,AllData,COLUMN()-6-COLUMN($E146)),VLOOKUP($E146-23,AllData,COLUMN()-6-COLUMN($E146)),VLOOKUP($E146-24,AllData,COLUMN()-6-COLUMN($E146)),VLOOKUP($E146-25,AllData,COLUMN()-6-COLUMN($E146)),VLOOKUP($E146-26,AllData,COLUMN()-6-COLUMN($E146)),VLOOKUP($E146-27,AllData,COLUMN()-6-COLUMN($E146)),VLOOKUP($E146-28,AllData,COLUMN()-6-COLUMN($E146)),VLOOKUP($E146-29,AllData,COLUMN()-6-COLUMN($E146)))","v":1719.2199999999998},{"$f":"VLOOKUP($E146,AllData,COLUMN()-7-COLUMN($E146))","v":68.23},{"$f":"OR('Cool Graph'!$I$1=35,'Cool Graph'!$I$1=36,'Cool Graph'!$I$1=37,'Cool Graph'!$I$1=38,'Cool Graph'!$I$1=39,'Cool Graph'!$I$1=40,'Cool Graph'!$I$1=41,'Cool Graph'!$I$1=42,'Cool Graph'!$I$1=43,'Cool Graph'!$I$1=44,'Cool Graph'!$I$1=45,'Cool Graph'!$I$1=46,'Cool Graph'!$I$1=47,'Cool Graph'!$I$1=58,'Cool Graph'!$I$1=66)","v":false}]
["2011-11-23",{"$f":"OFFSET(OldSchoolJustValues!A147,0,'Cool Graph'!$H$1)","v":99.96},{"$f":"OFFSET(OldSchoolJustValues!A147,0,'Cool Graph'!$I$1)","v":538.8560081039692},null,{"$f":"IF(NewDate>EndDate,NA(),NewDate)","v":"2012-02-18"},{"$f":"IF($E147>EndDate,NA(),IF($K$2=TRUE,N147,IF('Cool Graph'!$B$17=1,N147,IF('Cool Graph'!$B$17=2,L147,IF('Cool Graph'!$B$17=3,M147,)))))","v":87.01},{"$f":"IF($E147>EndDate,NA(),IF($O$2=TRUE,J147,IF('Cool Graph'!$B$17=1,Data1!J147,IF('Cool Graph'!$B$17=2,Data1!H147,IF('Cool Graph'!$B$17=3,Data1!I147,)))))","v":783.2852926132648},{"$f":"SUM(VLOOKUP($E147,AllData,COLUMN()-COLUMN($E147)),VLOOKUP($E147-1,AllData,COLUMN()-COLUMN($E147)),VLOOKUP($E147-2,AllData,COLUMN()-COLUMN($E147)),VLOOKUP($E147-3,AllData,COLUMN()-COLUMN($E147)),VLOOKUP($E147-4,AllData,COLUMN()-COLUMN($E147)),VLOOKUP($E147-5,AllData,COLUMN()-COLUMN($E147)),VLOOKUP($E147-6,AllData,COLUMN()-COLUMN($E147)))","v":5062.5043139858135},{"$f":"SUM(VLOOKUP($E147,AllData,COLUMN()-1-COLUMN($E147)),VLOOKUP($E147-1,AllData,COLUMN()-1-COLUMN($E147)),VLOOKUP($E147-2,AllData,COLUMN()-1-COLUMN($E147)),VLOOKUP($E147-3,AllData,COLUMN()-1-COLUMN($E147)),VLOOKUP($E147-4,AllData,COLUMN()-1-COLUMN($E147)),VLOOKUP($E147-5,AllData,COLUMN()-1-COLUMN($E147)),VLOOKUP($E147-6,AllData,COLUMN()-1-COLUMN($E147)),VLOOKUP($E147-7,AllData,COLUMN()-1-COLUMN($E147)),VLOOKUP($E147-8,AllData,COLUMN()-1-COLUMN($E147)),VLOOKUP($E147-9,AllData,COLUMN()-1-COLUMN($E147)),VLOOKUP($E147-10,AllData,COLUMN()-1-COLUMN($E147)),VLOOKUP($E147-11,AllData,COLUMN()-1-COLUMN($E147)),VLOOKUP($E147-12,AllData,COLUMN()-1-COLUMN($E147)),VLOOKUP($E147-13,AllData,COLUMN()-1-COLUMN($E147)),VLOOKUP($E147-14,AllData,COLUMN()-1-COLUMN($E147)),VLOOKUP($E147-15,AllData,COLUMN()-1-COLUMN($E147)),VLOOKUP($E147-16,AllData,COLUMN()-1-COLUMN($E147)),VLOOKUP($E147-17,AllData,COLUMN()-1-COLUMN($E147)),VLOOKUP($E147-18,AllData,COLUMN()-1-COLUMN($E147)),VLOOKUP($E147-19,AllData,COLUMN()-1-COLUMN($E147)),VLOOKUP($E147-20,AllData,COLUMN()-1-COLUMN($E147)),VLOOKUP($E147-21,AllData,COLUMN()-1-COLUMN($E147)),VLOOKUP($E147-22,AllData,COLUMN()-1-COLUMN($E147)),VLOOKUP($E147-23,AllData,COLUMN()-1-COLUMN($E147)),VLOOKUP($E147-24,AllData,COLUMN()-1-COLUMN($E147)),VLOOKUP($E147-25,AllData,COLUMN()-1-COLUMN($E147)),VLOOKUP($E147-26,AllData,COLUMN()-1-COLUMN($E147)),VLOOKUP($E147-27,AllData,COLUMN()-1-COLUMN($E147)),VLOOKUP($E147-28,AllData,COLUMN()-1-COLUMN($E147)),VLOOKUP($E147-29,AllData,COLUMN()-1-COLUMN($E147)))","v":21628.008334374841},{"$f":"VLOOKUP($E147,AllData,COLUMN()-2-COLUMN($E147))","v":783.2852926132648},{"$f":"OR('Cool Graph'!$H$1=35,'Cool Graph'!$H$1=36,'Cool Graph'!$H$1=37,'Cool Graph'!$H$1=38,'Cool Graph'!$H$1=39,'Cool Graph'!$H$1=40,'Cool Graph'!$H$1=41,'Cool Graph'!$H$1=42,'Cool Graph'!$H$1=43,'Cool Graph'!$H$1=44,'Cool Graph'!$H$1=45,'Cool Graph'!$H$1=46,'Cool Graph'!$H$1=47,'Cool Graph'!$H$1=58,'Cool Graph'!$H$1=66)","v":false},{"$f":"SUM(VLOOKUP($E147,AllData,COLUMN()-5-COLUMN($E147)),VLOOKUP($E147-1,AllData,COLUMN()-5-COLUMN($E147)),VLOOKUP($E147-2,AllData,COLUMN()-5-COLUMN($E147)),VLOOKUP($E147-3,AllData,COLUMN()-5-COLUMN($E147)),VLOOKUP($E147-4,AllData,COLUMN()-5-COLUMN($E147)),VLOOKUP($E147-5,AllData,COLUMN()-5-COLUMN($E147)),VLOOKUP($E147-6,AllData,COLUMN()-5-COLUMN($E147)))","v":799.1400000000001},{"$f":"SUM(VLOOKUP($E147,AllData,COLUMN()-6-COLUMN($E147)),VLOOKUP($E147-1,AllData,COLUMN()-6-COLUMN($E147)),VLOOKUP($E147-2,AllData,COLUMN()-6-COLUMN($E147)),VLOOKUP($E147-3,AllData,COLUMN()-6-COLUMN($E147)),VLOOKUP($E147-4,AllData,COLUMN()-6-COLUMN($E147)),VLOOKUP($E147-5,AllData,COLUMN()-6-COLUMN($E147)),VLOOKUP($E147-6,AllData,COLUMN()-6-COLUMN($E147)),VLOOKUP($E147-7,AllData,COLUMN()-6-COLUMN($E147)),VLOOKUP($E147-8,AllData,COLUMN()-6-COLUMN($E147)),VLOOKUP($E147-9,AllData,COLUMN()-6-COLUMN($E147)),VLOOKUP($E147-10,AllData,COLUMN()-6-COLUMN($E147)),VLOOKUP($E147-11,AllData,COLUMN()-6-COLUMN($E147)),VLOOKUP($E147-12,AllData,COLUMN()-6-COLUMN($E147)),VLOOKUP($E147-13,AllData,COLUMN()-6-COLUMN($E147)),VLOOKUP($E147-14,AllData,COLUMN()-6-COLUMN($E147)),VLOOKUP($E147-15,AllData,COLUMN()-6-COLUMN($E147)),VLOOKUP($E147-16,AllData,COLUMN()-6-COLUMN($E147)),VLOOKUP($E147-17,AllData,COLUMN()-6-COLUMN($E147)),VLOOKUP($E147-18,AllData,COLUMN()-6-COLUMN($E147)),VLOOKUP($E147-19,AllData,COLUMN()-6-COLUMN($E147)),VLOOKUP($E147-20,AllData,COLUMN()-6-COLUMN($E147)),VLOOKUP($E147-21,AllData,COLUMN()-6-COLUMN($E147)),VLOOKUP($E147-22,AllData,COLUMN()-6-COLUMN($E147)),VLOOKUP($E147-23,AllData,COLUMN()-6-COLUMN($E147)),VLOOKUP($E147-24,AllData,COLUMN()-6-COLUMN($E147)),VLOOKUP($E147-25,AllData,COLUMN()-6-COLUMN($E147)),VLOOKUP($E147-26,AllData,COLUMN()-6-COLUMN($E147)),VLOOKUP($E147-27,AllData,COLUMN()-6-COLUMN($E147)),VLOOKUP($E147-28,AllData,COLUMN()-6-COLUMN($E147)),VLOOKUP($E147-29,AllData,COLUMN()-6-COLUMN($E147)))","v":1744.9699999999998},{"$f":"VLOOKUP($E147,AllData,COLUMN()-7-COLUMN($E147))","v":87.01},{"$f":"OR('Cool Graph'!$I$1=35,'Cool Graph'!$I$1=36,'Cool Graph'!$I$1=37,'Cool Graph'!$I$1=38,'Cool Graph'!$I$1=39,'Cool Graph'!$I$1=40,'Cool Graph'!$I$1=41,'Cool Graph'!$I$1=42,'Cool Graph'!$I$1=43,'Cool Graph'!$I$1=44,'Cool Graph'!$I$1=45,'Cool Graph'!$I$1=46,'Cool Graph'!$I$1=47,'Cool Graph'!$I$1=58,'Cool Graph'!$I$1=66)","v":false}]
["2011-11-24",{"$f":"OFFSET(OldSchoolJustValues!A148,0,'Cool Graph'!$H$1)","v":100},{"$f":"OFFSET(OldSchoolJustValues!A148,0,'Cool Graph'!$I$1)","v":430.9664507984599},null,{"$f":"IF(NewDate>EndDate,NA(),NewDate)","v":"2012-02-19"},{"$f":"IF($E148>EndDate,NA(),IF($K$2=TRUE,N148,IF('Cool Graph'!$B$17=1,N148,IF('Cool Graph'!$B$17=2,L148,IF('Cool Graph'!$B$17=3,M148,)))))","v":293.63},{"$f":"IF($E148>EndDate,NA(),IF($O$2=TRUE,J148,IF('Cool Graph'!$B$17=1,Data1!J148,IF('Cool Graph'!$B$17=2,Data1!H148,IF('Cool Graph'!$B$17=3,Data1!I148,)))))","v":1418.9397600183829},{"$f":"SUM(VLOOKUP($E148,AllData,COLUMN()-COLUMN($E148)),VLOOKUP($E148-1,AllData,COLUMN()-COLUMN($E148)),VLOOKUP($E148-2,AllData,COLUMN()-COLUMN($E148)),VLOOKUP($E148-3,AllData,COLUMN()-COLUMN($E148)),VLOOKUP($E148-4,AllData,COLUMN()-COLUMN($E148)),VLOOKUP($E148-5,AllData,COLUMN()-COLUMN($E148)),VLOOKUP($E148-6,AllData,COLUMN()-COLUMN($E148)))","v":5942.8664085870141},{"$f":"SUM(VLOOKUP($E148,AllData,COLUMN()-1-COLUMN($E148)),VLOOKUP($E148-1,AllData,COLUMN()-1-COLUMN($E148)),VLOOKUP($E148-2,AllData,COLUMN()-1-COLUMN($E148)),VLOOKUP($E148-3,AllData,COLUMN()-1-COLUMN($E148)),VLOOKUP($E148-4,AllData,COLUMN()-1-COLUMN($E148)),VLOOKUP($E148-5,AllData,COLUMN()-1-COLUMN($E148)),VLOOKUP($E148-6,AllData,COLUMN()-1-COLUMN($E148)),VLOOKUP($E148-7,AllData,COLUMN()-1-COLUMN($E148)),VLOOKUP($E148-8,AllData,COLUMN()-1-COLUMN($E148)),VLOOKUP($E148-9,AllData,COLUMN()-1-COLUMN($E148)),VLOOKUP($E148-10,AllData,COLUMN()-1-COLUMN($E148)),VLOOKUP($E148-11,AllData,COLUMN()-1-COLUMN($E148)),VLOOKUP($E148-12,AllData,COLUMN()-1-COLUMN($E148)),VLOOKUP($E148-13,AllData,COLUMN()-1-COLUMN($E148)),VLOOKUP($E148-14,AllData,COLUMN()-1-COLUMN($E148)),VLOOKUP($E148-15,AllData,COLUMN()-1-COLUMN($E148)),VLOOKUP($E148-16,AllData,COLUMN()-1-COLUMN($E148)),VLOOKUP($E148-17,AllData,COLUMN()-1-COLUMN($E148)),VLOOKUP($E148-18,AllData,COLUMN()-1-COLUMN($E148)),VLOOKUP($E148-19,AllData,COLUMN()-1-COLUMN($E148)),VLOOKUP($E148-20,AllData,COLUMN()-1-COLUMN($E148)),VLOOKUP($E148-21,AllData,COLUMN()-1-COLUMN($E148)),VLOOKUP($E148-22,AllData,COLUMN()-1-COLUMN($E148)),VLOOKUP($E148-23,AllData,COLUMN()-1-COLUMN($E148)),VLOOKUP($E148-24,AllData,COLUMN()-1-COLUMN($E148)),VLOOKUP($E148-25,AllData,COLUMN()-1-COLUMN($E148)),VLOOKUP($E148-26,AllData,COLUMN()-1-COLUMN($E148)),VLOOKUP($E148-27,AllData,COLUMN()-1-COLUMN($E148)),VLOOKUP($E148-28,AllData,COLUMN()-1-COLUMN($E148)),VLOOKUP($E148-29,AllData,COLUMN()-1-COLUMN($E148)))","v":22504.113074055884},{"$f":"VLOOKUP($E148,AllData,COLUMN()-2-COLUMN($E148))","v":1418.9397600183829},{"$f":"OR('Cool Graph'!$H$1=35,'Cool Graph'!$H$1=36,'Cool Graph'!$H$1=37,'Cool Graph'!$H$1=38,'Cool Graph'!$H$1=39,'Cool Graph'!$H$1=40,'Cool Graph'!$H$1=41,'Cool Graph'!$H$1=42,'Cool Graph'!$H$1=43,'Cool Graph'!$H$1=44,'Cool Graph'!$H$1=45,'Cool Graph'!$H$1=46,'Cool Graph'!$H$1=47,'Cool Graph'!$H$1=58,'Cool Graph'!$H$1=66)","v":false},{"$f":"SUM(VLOOKUP($E148,AllData,COLUMN()-5-COLUMN($E148)),VLOOKUP($E148-1,AllData,COLUMN()-5-COLUMN($E148)),VLOOKUP($E148-2,AllData,COLUMN()-5-COLUMN($E148)),VLOOKUP($E148-3,AllData,COLUMN()-5-COLUMN($E148)),VLOOKUP($E148-4,AllData,COLUMN()-5-COLUMN($E148)),VLOOKUP($E148-5,AllData,COLUMN()-5-COLUMN($E148)),VLOOKUP($E148-6,AllData,COLUMN()-5-COLUMN($E148)))","v":977.06999999999994},{"$f":"SUM(VLOOKUP($E148,AllData,COLUMN()-6-COLUMN($E148)),VLOOKUP($E148-1,AllData,COLUMN()-6-COLUMN($E148)),VLOOKUP($E148-2,AllData,COLUMN()-6-COLUMN($E148)),VLOOKUP($E148-3,AllData,COLUMN()-6-COLUMN($E148)),VLOOKUP($E148-4,AllData,COLUMN()-6-COLUMN($E148)),VLOOKUP($E148-5,AllData,COLUMN()-6-COLUMN($E148)),VLOOKUP($E148-6,AllData,COLUMN()-6-COLUMN($E148)),VLOOKUP($E148-7,AllData,COLUMN()-6-COLUMN($E148)),VLOOKUP($E148-8,AllData,COLUMN()-6-COLUMN($E148)),VLOOKUP($E148-9,AllData,COLUMN()-6-COLUMN($E148)),VLOOKUP($E148-10,AllData,COLUMN()-6-COLUMN($E148)),VLOOKUP($E148-11,AllData,COLUMN()-6-COLUMN($E148)),VLOOKUP($E148-12,AllData,COLUMN()-6-COLUMN($E148)),VLOOKUP($E148-13,AllData,COLUMN()-6-COLUMN($E148)),VLOOKUP($E148-14,AllData,COLUMN()-6-COLUMN($E148)),VLOOKUP($E148-15,AllData,COLUMN()-6-COLUMN($E148)),VLOOKUP($E148-16,AllData,COLUMN()-6-COLUMN($E148)),VLOOKUP($E148-17,AllData,COLUMN()-6-COLUMN($E148)),VLOOKUP($E148-18,AllData,COLUMN()-6-COLUMN($E148)),VLOOKUP($E148-19,AllData,COLUMN()-6-COLUMN($E148)),VLOOKUP($E148-20,AllData,COLUMN()-6-COLUMN($E148)),VLOOKUP($E148-21,AllData,COLUMN()-6-COLUMN($E148)),VLOOKUP($E148-22,AllData,COLUMN()-6-COLUMN($E148)),VLOOKUP($E148-23,AllData,COLUMN()-6-COLUMN($E148)),VLOOKUP($E148-24,AllData,COLUMN()-6-COLUMN($E148)),VLOOKUP($E148-25,AllData,COLUMN()-6-COLUMN($E148)),VLOOKUP($E148-26,AllData,COLUMN()-6-COLUMN($E148)),VLOOKUP($E148-27,AllData,COLUMN()-6-COLUMN($E148)),VLOOKUP($E148-28,AllData,COLUMN()-6-COLUMN($E148)),VLOOKUP($E148-29,AllData,COLUMN()-6-COLUMN($E148)))","v":2014.1799999999998},{"$f":"VLOOKUP($E148,AllData,COLUMN()-7-COLUMN($E148))","v":293.63},{"$f":"OR('Cool Graph'!$I$1=35,'Cool Graph'!$I$1=36,'Cool Graph'!$I$1=37,'Cool Graph'!$I$1=38,'Cool Graph'!$I$1=39,'Cool Graph'!$I$1=40,'Cool Graph'!$I$1=41,'Cool Graph'!$I$1=42,'Cool Graph'!$I$1=43,'Cool Graph'!$I$1=44,'Cool Graph'!$I$1=45,'Cool Graph'!$I$1=46,'Cool Graph'!$I$1=47,'Cool Graph'!$I$1=58,'Cool Graph'!$I$1=66)","v":false}]
["2011-11-25",{"$f":"OFFSET(OldSchoolJustValues!A149,0,'Cool Graph'!$H$1)","v":100},{"$f":"OFFSET(OldSchoolJustValues!A149,0,'Cool Graph'!$I$1)","v":1273.8590863203308},null,{"$f":"IF(NewDate>EndDate,NA(),NewDate)","v":"2012-02-20"},{"$f":"IF($E149>EndDate,NA(),IF($K$2=TRUE,N149,IF('Cool Graph'!$B$17=1,N149,IF('Cool Graph'!$B$17=2,L149,IF('Cool Graph'!$B$17=3,M149,)))))","v":347.23},{"$f":"IF($E149>EndDate,NA(),IF($O$2=TRUE,J149,IF('Cool Graph'!$B$17=1,Data1!J149,IF('Cool Graph'!$B$17=2,Data1!H149,IF('Cool Graph'!$B$17=3,Data1!I149,)))))","v":1020.9260371116235},{"$f":"SUM(VLOOKUP($E149,AllData,COLUMN()-COLUMN($E149)),VLOOKUP($E149-1,AllData,COLUMN()-COLUMN($E149)),VLOOKUP($E149-2,AllData,COLUMN()-COLUMN($E149)),VLOOKUP($E149-3,AllData,COLUMN()-COLUMN($E149)),VLOOKUP($E149-4,AllData,COLUMN()-COLUMN($E149)),VLOOKUP($E149-5,AllData,COLUMN()-COLUMN($E149)),VLOOKUP($E149-6,AllData,COLUMN()-COLUMN($E149)))","v":6526.7157408823596},{"$f":"SUM(VLOOKUP($E149,AllData,COLUMN()-1-COLUMN($E149)),VLOOKUP($E149-1,AllData,COLUMN()-1-COLUMN($E149)),VLOOKUP($E149-2,AllData,COLUMN()-1-COLUMN($E149)),VLOOKUP($E149-3,AllData,COLUMN()-1-COLUMN($E149)),VLOOKUP($E149-4,AllData,COLUMN()-1-COLUMN($E149)),VLOOKUP($E149-5,AllData,COLUMN()-1-COLUMN($E149)),VLOOKUP($E149-6,AllData,COLUMN()-1-COLUMN($E149)),VLOOKUP($E149-7,AllData,COLUMN()-1-COLUMN($E149)),VLOOKUP($E149-8,AllData,COLUMN()-1-COLUMN($E149)),VLOOKUP($E149-9,AllData,COLUMN()-1-COLUMN($E149)),VLOOKUP($E149-10,AllData,COLUMN()-1-COLUMN($E149)),VLOOKUP($E149-11,AllData,COLUMN()-1-COLUMN($E149)),VLOOKUP($E149-12,AllData,COLUMN()-1-COLUMN($E149)),VLOOKUP($E149-13,AllData,COLUMN()-1-COLUMN($E149)),VLOOKUP($E149-14,AllData,COLUMN()-1-COLUMN($E149)),VLOOKUP($E149-15,AllData,COLUMN()-1-COLUMN($E149)),VLOOKUP($E149-16,AllData,COLUMN()-1-COLUMN($E149)),VLOOKUP($E149-17,AllData,COLUMN()-1-COLUMN($E149)),VLOOKUP($E149-18,AllData,COLUMN()-1-COLUMN($E149)),VLOOKUP($E149-19,AllData,COLUMN()-1-COLUMN($E149)),VLOOKUP($E149-20,AllData,COLUMN()-1-COLUMN($E149)),VLOOKUP($E149-21,AllData,COLUMN()-1-COLUMN($E149)),VLOOKUP($E149-22,AllData,COLUMN()-1-COLUMN($E149)),VLOOKUP($E149-23,AllData,COLUMN()-1-COLUMN($E149)),VLOOKUP($E149-24,AllData,COLUMN()-1-COLUMN($E149)),VLOOKUP($E149-25,AllData,COLUMN()-1-COLUMN($E149)),VLOOKUP($E149-26,AllData,COLUMN()-1-COLUMN($E149)),VLOOKUP($E149-27,AllData,COLUMN()-1-COLUMN($E149)),VLOOKUP($E149-28,AllData,COLUMN()-1-COLUMN($E149)),VLOOKUP($E149-29,AllData,COLUMN()-1-COLUMN($E149)))","v":23412.661174658988},{"$f":"VLOOKUP($E149,AllData,COLUMN()-2-COLUMN($E149))","v":1020.9260371116235},{"$f":"OR('Cool Graph'!$H$1=35,'Cool Graph'!$H$1=36,'Cool Graph'!$H$1=37,'Cool Graph'!$H$1=38,'Cool Graph'!$H$1=39,'Cool Graph'!$H$1=40,'Cool Graph'!$H$1=41,'Cool Graph'!$H$1=42,'Cool Graph'!$H$1=43,'Cool Graph'!$H$1=44,'Cool Graph'!$H$1=45,'Cool Graph'!$H$1=46,'Cool Graph'!$H$1=47,'Cool Graph'!$H$1=58,'Cool Graph'!$H$1=66)","v":false},{"$f":"SUM(VLOOKUP($E149,AllData,COLUMN()-5-COLUMN($E149)),VLOOKUP($E149-1,AllData,COLUMN()-5-COLUMN($E149)),VLOOKUP($E149-2,AllData,COLUMN()-5-COLUMN($E149)),VLOOKUP($E149-3,AllData,COLUMN()-5-COLUMN($E149)),VLOOKUP($E149-4,AllData,COLUMN()-5-COLUMN($E149)),VLOOKUP($E149-5,AllData,COLUMN()-5-COLUMN($E149)),VLOOKUP($E149-6,AllData,COLUMN()-5-COLUMN($E149)))","v":1253.52},{"$f":"SUM(VLOOKUP($E149,AllData,COLUMN()-6-COLUMN($E149)),VLOOKUP($E149-1,AllData,COLUMN()-6-COLUMN($E149)),VLOOKUP($E149-2,AllData,COLUMN()-6-COLUMN($E149)),VLOOKUP($E149-3,AllData,COLUMN()-6-COLUMN($E149)),VLOOKUP($E149-4,AllData,COLUMN()-6-COLUMN($E149)),VLOOKUP($E149-5,AllData,COLUMN()-6-COLUMN($E149)),VLOOKUP($E149-6,AllData,COLUMN()-6-COLUMN($E149)),VLOOKUP($E149-7,AllData,COLUMN()-6-COLUMN($E149)),VLOOKUP($E149-8,AllData,COLUMN()-6-COLUMN($E149)),VLOOKUP($E149-9,AllData,COLUMN()-6-COLUMN($E149)),VLOOKUP($E149-10,AllData,COLUMN()-6-COLUMN($E149)),VLOOKUP($E149-11,AllData,COLUMN()-6-COLUMN($E149)),VLOOKUP($E149-12,AllData,COLUMN()-6-COLUMN($E149)),VLOOKUP($E149-13,AllData,COLUMN()-6-COLUMN($E149)),VLOOKUP($E149-14,AllData,COLUMN()-6-COLUMN($E149)),VLOOKUP($E149-15,AllData,COLUMN()-6-COLUMN($E149)),VLOOKUP($E149-16,AllData,COLUMN()-6-COLUMN($E149)),VLOOKUP($E149-17,AllData,COLUMN()-6-COLUMN($E149)),VLOOKUP($E149-18,AllData,COLUMN()-6-COLUMN($E149)),VLOOKUP($E149-19,AllData,COLUMN()-6-COLUMN($E149)),VLOOKUP($E149-20,AllData,COLUMN()-6-COLUMN($E149)),VLOOKUP($E149-21,AllData,COLUMN()-6-COLUMN($E149)),VLOOKUP($E149-22,AllData,COLUMN()-6-COLUMN($E149)),VLOOKUP($E149-23,AllData,COLUMN()-6-COLUMN($E149)),VLOOKUP($E149-24,AllData,COLUMN()-6-COLUMN($E149)),VLOOKUP($E149-25,AllData,COLUMN()-6-COLUMN($E149)),VLOOKUP($E149-26,AllData,COLUMN()-6-COLUMN($E149)),VLOOKUP($E149-27,AllData,COLUMN()-6-COLUMN($E149)),VLOOKUP($E149-28,AllData,COLUMN()-6-COLUMN($E149)),VLOOKUP($E149-29,AllData,COLUMN()-6-COLUMN($E149)))","v":2236.59},{"$f":"VLOOKUP($E149,AllData,COLUMN()-7-COLUMN($E149))","v":347.23},{"$f":"OR('Cool Graph'!$I$1=35,'Cool Graph'!$I$1=36,'Cool Graph'!$I$1=37,'Cool Graph'!$I$1=38,'Cool Graph'!$I$1=39,'Cool Graph'!$I$1=40,'Cool Graph'!$I$1=41,'Cool Graph'!$I$1=42,'Cool Graph'!$I$1=43,'Cool Graph'!$I$1=44,'Cool Graph'!$I$1=45,'Cool Graph'!$I$1=46,'Cool Graph'!$I$1=47,'Cool Graph'!$I$1=58,'Cool Graph'!$I$1=66)","v":false}]
["2011-11-26",{"$f":"OFFSET(OldSchoolJustValues!A150,0,'Cool Graph'!$H$1)","v":100},{"$f":"OFFSET(OldSchoolJustValues!A150,0,'Cool Graph'!$I$1)","v":691.25887911842938},null,{"$f":"IF(NewDate>EndDate,NA(),NewDate)","v":"2012-02-21"},{"$f":"IF($E150>EndDate,NA(),IF($K$2=TRUE,N150,IF('Cool Graph'!$B$17=1,N150,IF('Cool Graph'!$B$17=2,L150,IF('Cool Graph'!$B$17=3,M150,)))))","v":214.52},{"$f":"IF($E150>EndDate,NA(),IF($O$2=TRUE,J150,IF('Cool Graph'!$B$17=1,Data1!J150,IF('Cool Graph'!$B$17=2,Data1!H150,IF('Cool Graph'!$B$17=3,Data1!I150,)))))","v":611.89008901971113},{"$f":"SUM(VLOOKUP($E150,AllData,COLUMN()-COLUMN($E150)),VLOOKUP($E150-1,AllData,COLUMN()-COLUMN($E150)),VLOOKUP($E150-2,AllData,COLUMN()-COLUMN($E150)),VLOOKUP($E150-3,AllData,COLUMN()-COLUMN($E150)),VLOOKUP($E150-4,AllData,COLUMN()-COLUMN($E150)),VLOOKUP($E150-5,AllData,COLUMN()-COLUMN($E150)),VLOOKUP($E150-6,AllData,COLUMN()-COLUMN($E150)))","v":6224.2999516403324},{"$f":"SUM(VLOOKUP($E150,AllData,COLUMN()-1-COLUMN($E150)),VLOOKUP($E150-1,AllData,COLUMN()-1-COLUMN($E150)),VLOOKUP($E150-2,AllData,COLUMN()-1-COLUMN($E150)),VLOOKUP($E150-3,AllData,COLUMN()-1-COLUMN($E150)),VLOOKUP($E150-4,AllData,COLUMN()-1-COLUMN($E150)),VLOOKUP($E150-5,AllData,COLUMN()-1-COLUMN($E150)),VLOOKUP($E150-6,AllData,COLUMN()-1-COLUMN($E150)),VLOOKUP($E150-7,AllData,COLUMN()-1-COLUMN($E150)),VLOOKUP($E150-8,AllData,COLUMN()-1-COLUMN($E150)),VLOOKUP($E150-9,AllData,COLUMN()-1-COLUMN($E150)),VLOOKUP($E150-10,AllData,COLUMN()-1-COLUMN($E150)),VLOOKUP($E150-11,AllData,COLUMN()-1-COLUMN($E150)),VLOOKUP($E150-12,AllData,COLUMN()-1-COLUMN($E150)),VLOOKUP($E150-13,AllData,COLUMN()-1-COLUMN($E150)),VLOOKUP($E150-14,AllData,COLUMN()-1-COLUMN($E150)),VLOOKUP($E150-15,AllData,COLUMN()-1-COLUMN($E150)),VLOOKUP($E150-16,AllData,COLUMN()-1-COLUMN($E150)),VLOOKUP($E150-17,AllData,COLUMN()-1-COLUMN($E150)),VLOOKUP($E150-18,AllData,COLUMN()-1-COLUMN($E150)),VLOOKUP($E150-19,AllData,COLUMN()-1-COLUMN($E150)),VLOOKUP($E150-20,AllData,COLUMN()-1-COLUMN($E150)),VLOOKUP($E150-21,AllData,COLUMN()-1-COLUMN($E150)),VLOOKUP($E150-22,AllData,COLUMN()-1-COLUMN($E150)),VLOOKUP($E150-23,AllData,COLUMN()-1-COLUMN($E150)),VLOOKUP($E150-24,AllData,COLUMN()-1-COLUMN($E150)),VLOOKUP($E150-25,AllData,COLUMN()-1-COLUMN($E150)),VLOOKUP($E150-26,AllData,COLUMN()-1-COLUMN($E150)),VLOOKUP($E150-27,AllData,COLUMN()-1-COLUMN($E150)),VLOOKUP($E150-28,AllData,COLUMN()-1-COLUMN($E150)),VLOOKUP($E150-29,AllData,COLUMN()-1-COLUMN($E150)))","v":23237.657898162299},{"$f":"VLOOKUP($E150,AllData,COLUMN()-2-COLUMN($E150))","v":611.89008901971113},{"$f":"OR('Cool Graph'!$H$1=35,'Cool Graph'!$H$1=36,'Cool Graph'!$H$1=37,'Cool Graph'!$H$1=38,'Cool Graph'!$H$1=39,'Cool Graph'!$H$1=40,'Cool Graph'!$H$1=41,'Cool Graph'!$H$1=42,'Cool Graph'!$H$1=43,'Cool Graph'!$H$1=44,'Cool Graph'!$H$1=45,'Cool Graph'!$H$1=46,'Cool Graph'!$H$1=47,'Cool Graph'!$H$1=58,'Cool Graph'!$H$1=66)","v":false},{"$f":"SUM(VLOOKUP($E150,AllData,COLUMN()-5-COLUMN($E150)),VLOOKUP($E150-1,AllData,COLUMN()-5-COLUMN($E150)),VLOOKUP($E150-2,AllData,COLUMN()-5-COLUMN($E150)),VLOOKUP($E150-3,AllData,COLUMN()-5-COLUMN($E150)),VLOOKUP($E150-4,AllData,COLUMN()-5-COLUMN($E150)),VLOOKUP($E150-5,AllData,COLUMN()-5-COLUMN($E150)),VLOOKUP($E150-6,AllData,COLUMN()-5-COLUMN($E150)))","v":1271.97},{"$f":"SUM(VLOOKUP($E150,AllData,COLUMN()-6-COLUMN($E150)),VLOOKUP($E150-1,AllData,COLUMN()-6-COLUMN($E150)),VLOOKUP($E150-2,AllData,COLUMN()-6-COLUMN($E150)),VLOOKUP($E150-3,AllData,COLUMN()-6-COLUMN($E150)),VLOOKUP($E150-4,AllData,COLUMN()-6-COLUMN($E150)),VLOOKUP($E150-5,AllData,COLUMN()-6-COLUMN($E150)),VLOOKUP($E150-6,AllData,COLUMN()-6-COLUMN($E150)),VLOOKUP($E150-7,AllData,COLUMN()-6-COLUMN($E150)),VLOOKUP($E150-8,AllData,COLUMN()-6-COLUMN($E150)),VLOOKUP($E150-9,AllData,COLUMN()-6-COLUMN($E150)),VLOOKUP($E150-10,AllData,COLUMN()-6-COLUMN($E150)),VLOOKUP($E150-11,AllData,COLUMN()-6-COLUMN($E150)),VLOOKUP($E150-12,AllData,COLUMN()-6-COLUMN($E150)),VLOOKUP($E150-13,AllData,COLUMN()-6-COLUMN($E150)),VLOOKUP($E150-14,AllData,COLUMN()-6-COLUMN($E150)),VLOOKUP($E150-15,AllData,COLUMN()-6-COLUMN($E150)),VLOOKUP($E150-16,AllData,COLUMN()-6-COLUMN($E150)),VLOOKUP($E150-17,AllData,COLUMN()-6-COLUMN($E150)),VLOOKUP($E150-18,AllData,COLUMN()-6-COLUMN($E150)),VLOOKUP($E150-19,AllData,COLUMN()-6-COLUMN($E150)),VLOOKUP($E150-20,AllData,COLUMN()-6-COLUMN($E150)),VLOOKUP($E150-21,AllData,COLUMN()-6-COLUMN($E150)),VLOOKUP($E150-22,AllData,COLUMN()-6-COLUMN($E150)),VLOOKUP($E150-23,AllData,COLUMN()-6-COLUMN($E150)),VLOOKUP($E150-24,AllData,COLUMN()-6-COLUMN($E150)),VLOOKUP($E150-25,AllData,COLUMN()-6-COLUMN($E150)),VLOOKUP($E150-26,AllData,COLUMN()-6-COLUMN($E150)),VLOOKUP($E150-27,AllData,COLUMN()-6-COLUMN($E150)),VLOOKUP($E150-28,AllData,COLUMN()-6-COLUMN($E150)),VLOOKUP($E150-29,AllData,COLUMN()-6-COLUMN($E150)))","v":2405.0500000000002},{"$f":"VLOOKUP($E150,AllData,COLUMN()-7-COLUMN($E150))","v":214.52},{"$f":"OR('Cool Graph'!$I$1=35,'Cool Graph'!$I$1=36,'Cool Graph'!$I$1=37,'Cool Graph'!$I$1=38,'Cool Graph'!$I$1=39,'Cool Graph'!$I$1=40,'Cool Graph'!$I$1=41,'Cool Graph'!$I$1=42,'Cool Graph'!$I$1=43,'Cool Graph'!$I$1=44,'Cool Graph'!$I$1=45,'Cool Graph'!$I$1=46,'Cool Graph'!$I$1=47,'Cool Graph'!$I$1=58,'Cool Graph'!$I$1=66)","v":false}]
["2011-11-27",{"$f":"OFFSET(OldSchoolJustValues!A151,0,'Cool Graph'!$H$1)","v":100},{"$f":"OFFSET(OldSchoolJustValues!A151,0,'Cool Graph'!$I$1)","v":506.38225170052766},null,{"$f":"IF(NewDate>EndDate,NA(),NewDate)","v":"2012-02-22"},{"$f":"IF($E151>EndDate,NA(),IF($K$2=TRUE,N151,IF('Cool Graph'!$B$17=1,N151,IF('Cool Graph'!$B$17=2,L151,IF('Cool Graph'!$B$17=3,M151,)))))","v":136.09},{"$f":"IF($E151>EndDate,NA(),IF($O$2=TRUE,J151,IF('Cool Graph'!$B$17=1,Data1!J151,IF('Cool Graph'!$B$17=2,Data1!H151,IF('Cool Graph'!$B$17=3,Data1!I151,)))))","v":542.72516901062068},{"$f":"SUM(VLOOKUP($E151,AllData,COLUMN()-COLUMN($E151)),VLOOKUP($E151-1,AllData,COLUMN()-COLUMN($E151)),VLOOKUP($E151-2,AllData,COLUMN()-COLUMN($E151)),VLOOKUP($E151-3,AllData,COLUMN()-COLUMN($E151)),VLOOKUP($E151-4,AllData,COLUMN()-COLUMN($E151)),VLOOKUP($E151-5,AllData,COLUMN()-COLUMN($E151)),VLOOKUP($E151-6,AllData,COLUMN()-COLUMN($E151)))","v":6481.751633588291},{"$f":"SUM(VLOOKUP($E151,AllData,COLUMN()-1-COLUMN($E151)),VLOOKUP($E151-1,AllData,COLUMN()-1-COLUMN($E151)),VLOOKUP($E151-2,AllData,COLUMN()-1-COLUMN($E151)),VLOOKUP($E151-3,AllData,COLUMN()-1-COLUMN($E151)),VLOOKUP($E151-4,AllData,COLUMN()-1-COLUMN($E151)),VLOOKUP($E151-5,AllData,COLUMN()-1-COLUMN($E151)),VLOOKUP($E151-6,AllData,COLUMN()-1-COLUMN($E151)),VLOOKUP($E151-7,AllData,COLUMN()-1-COLUMN($E151)),VLOOKUP($E151-8,AllData,COLUMN()-1-COLUMN($E151)),VLOOKUP($E151-9,AllData,COLUMN()-1-COLUMN($E151)),VLOOKUP($E151-10,AllData,COLUMN()-1-COLUMN($E151)),VLOOKUP($E151-11,AllData,COLUMN()-1-COLUMN($E151)),VLOOKUP($E151-12,AllData,COLUMN()-1-COLUMN($E151)),VLOOKUP($E151-13,AllData,COLUMN()-1-COLUMN($E151)),VLOOKUP($E151-14,AllData,COLUMN()-1-COLUMN($E151)),VLOOKUP($E151-15,AllData,COLUMN()-1-COLUMN($E151)),VLOOKUP($E151-16,AllData,COLUMN()-1-COLUMN($E151)),VLOOKUP($E151-17,AllData,COLUMN()-1-COLUMN($E151)),VLOOKUP($E151-18,AllData,COLUMN()-1-COLUMN($E151)),VLOOKUP($E151-19,AllData,COLUMN()-1-COLUMN($E151)),VLOOKUP($E151-20,AllData,COLUMN()-1-COLUMN($E151)),VLOOKUP($E151-21,AllData,COLUMN()-1-COLUMN($E151)),VLOOKUP($E151-22,AllData,COLUMN()-1-COLUMN($E151)),VLOOKUP($E151-23,AllData,COLUMN()-1-COLUMN($E151)),VLOOKUP($E151-24,AllData,COLUMN()-1-COLUMN($E151)),VLOOKUP($E151-25,AllData,COLUMN()-1-COLUMN($E151)),VLOOKUP($E151-26,AllData,COLUMN()-1-COLUMN($E151)),VLOOKUP($E151-27,AllData,COLUMN()-1-COLUMN($E151)),VLOOKUP($E151-28,AllData,COLUMN()-1-COLUMN($E151)),VLOOKUP($E151-29,AllData,COLUMN()-1-COLUMN($E151)))","v":22589.076441797453},{"$f":"VLOOKUP($E151,AllData,COLUMN()-2-COLUMN($E151))","v":542.72516901062068},{"$f":"OR('Cool Graph'!$H$1=35,'Cool Graph'!$H$1=36,'Cool Graph'!$H$1=37,'Cool Graph'!$H$1=38,'Cool Graph'!$H$1=39,'Cool Graph'!$H$1=40,'Cool Graph'!$H$1=41,'Cool Graph'!$H$1=42,'Cool Graph'!$H$1=43,'Cool Graph'!$H$1=44,'Cool Graph'!$H$1=45,'Cool Graph'!$H$1=46,'Cool Graph'!$H$1=47,'Cool Graph'!$H$1=58,'Cool Graph'!$H$1=66)","v":false},{"$f":"SUM(VLOOKUP($E151,AllData,COLUMN()-5-COLUMN($E151)),VLOOKUP($E151-1,AllData,COLUMN()-5-COLUMN($E151)),VLOOKUP($E151-2,AllData,COLUMN()-5-COLUMN($E151)),VLOOKUP($E151-3,AllData,COLUMN()-5-COLUMN($E151)),VLOOKUP($E151-4,AllData,COLUMN()-5-COLUMN($E151)),VLOOKUP($E151-5,AllData,COLUMN()-5-COLUMN($E151)),VLOOKUP($E151-6,AllData,COLUMN()-5-COLUMN($E151)))","v":1236.28},{"$f":"SUM(VLOOKUP($E151,AllData,COLUMN()-6-COLUMN($E151)),VLOOKUP($E151-1,AllData,COLUMN()-6-COLUMN($E151)),VLOOKUP($E151-2,AllData,COLUMN()-6-COLUMN($E151)),VLOOKUP($E151-3,AllData,COLUMN()-6-COLUMN($E151)),VLOOKUP($E151-4,AllData,COLUMN()-6-COLUMN($E151)),VLOOKUP($E151-5,AllData,COLUMN()-6-COLUMN($E151)),VLOOKUP($E151-6,AllData,COLUMN()-6-COLUMN($E151)),VLOOKUP($E151-7,AllData,COLUMN()-6-COLUMN($E151)),VLOOKUP($E151-8,AllData,COLUMN()-6-COLUMN($E151)),VLOOKUP($E151-9,AllData,COLUMN()-6-COLUMN($E151)),VLOOKUP($E151-10,AllData,COLUMN()-6-COLUMN($E151)),VLOOKUP($E151-11,AllData,COLUMN()-6-COLUMN($E151)),VLOOKUP($E151-12,AllData,COLUMN()-6-COLUMN($E151)),VLOOKUP($E151-13,AllData,COLUMN()-6-COLUMN($E151)),VLOOKUP($E151-14,AllData,COLUMN()-6-COLUMN($E151)),VLOOKUP($E151-15,AllData,COLUMN()-6-COLUMN($E151)),VLOOKUP($E151-16,AllData,COLUMN()-6-COLUMN($E151)),VLOOKUP($E151-17,AllData,COLUMN()-6-COLUMN($E151)),VLOOKUP($E151-18,AllData,COLUMN()-6-COLUMN($E151)),VLOOKUP($E151-19,AllData,COLUMN()-6-COLUMN($E151)),VLOOKUP($E151-20,AllData,COLUMN()-6-COLUMN($E151)),VLOOKUP($E151-21,AllData,COLUMN()-6-COLUMN($E151)),VLOOKUP($E151-22,AllData,COLUMN()-6-COLUMN($E151)),VLOOKUP($E151-23,AllData,COLUMN()-6-COLUMN($E151)),VLOOKUP($E151-24,AllData,COLUMN()-6-COLUMN($E151)),VLOOKUP($E151-25,AllData,COLUMN()-6-COLUMN($E151)),VLOOKUP($E151-26,AllData,COLUMN()-6-COLUMN($E151)),VLOOKUP($E151-27,AllData,COLUMN()-6-COLUMN($E151)),VLOOKUP($E151-28,AllData,COLUMN()-6-COLUMN($E151)),VLOOKUP($E151-29,AllData,COLUMN()-6-COLUMN($E151)))","v":2503.35},{"$f":"VLOOKUP($E151,AllData,COLUMN()-7-COLUMN($E151))","v":136.09},{"$f":"OR('Cool Graph'!$I$1=35,'Cool Graph'!$I$1=36,'Cool Graph'!$I$1=37,'Cool Graph'!$I$1=38,'Cool Graph'!$I$1=39,'Cool Graph'!$I$1=40,'Cool Graph'!$I$1=41,'Cool Graph'!$I$1=42,'Cool Graph'!$I$1=43,'Cool Graph'!$I$1=44,'Cool Graph'!$I$1=45,'Cool Graph'!$I$1=46,'Cool Graph'!$I$1=47,'Cool Graph'!$I$1=58,'Cool Graph'!$I$1=66)","v":false}]
["2011-11-28",{"$f":"OFFSET(OldSchoolJustValues!A152,0,'Cool Graph'!$H$1)","v":20.16},{"$f":"OFFSET(OldSchoolJustValues!A152,0,'Cool Graph'!$I$1)","v":1692.0618984616438},null,{"$f":"IF(NewDate>EndDate,NA(),NewDate)","v":"2012-02-23"},{"$f":"IF($E152>EndDate,NA(),IF($K$2=TRUE,N152,IF('Cool Graph'!$B$17=1,N152,IF('Cool Graph'!$B$17=2,L152,IF('Cool Graph'!$B$17=3,M152,)))))","v":77.59},{"$f":"IF($E152>EndDate,NA(),IF($O$2=TRUE,J152,IF('Cool Graph'!$B$17=1,Data1!J152,IF('Cool Graph'!$B$17=2,Data1!H152,IF('Cool Graph'!$B$17=3,Data1!I152,)))))","v":1092.4977151682497},{"$f":"SUM(VLOOKUP($E152,AllData,COLUMN()-COLUMN($E152)),VLOOKUP($E152-1,AllData,COLUMN()-COLUMN($E152)),VLOOKUP($E152-2,AllData,COLUMN()-COLUMN($E152)),VLOOKUP($E152-3,AllData,COLUMN()-COLUMN($E152)),VLOOKUP($E152-4,AllData,COLUMN()-COLUMN($E152)),VLOOKUP($E152-5,AllData,COLUMN()-COLUMN($E152)),VLOOKUP($E152-6,AllData,COLUMN()-COLUMN($E152)))","v":6865.7821247648681},{"$f":"SUM(VLOOKUP($E152,AllData,COLUMN()-1-COLUMN($E152)),VLOOKUP($E152-1,AllData,COLUMN()-1-COLUMN($E152)),VLOOKUP($E152-2,AllData,COLUMN()-1-COLUMN($E152)),VLOOKUP($E152-3,AllData,COLUMN()-1-COLUMN($E152)),VLOOKUP($E152-4,AllData,COLUMN()-1-COLUMN($E152)),VLOOKUP($E152-5,AllData,COLUMN()-1-COLUMN($E152)),VLOOKUP($E152-6,AllData,COLUMN()-1-COLUMN($E152)),VLOOKUP($E152-7,AllData,COLUMN()-1-COLUMN($E152)),VLOOKUP($E152-8,AllData,COLUMN()-1-COLUMN($E152)),VLOOKUP($E152-9,AllData,COLUMN()-1-COLUMN($E152)),VLOOKUP($E152-10,AllData,COLUMN()-1-COLUMN($E152)),VLOOKUP($E152-11,AllData,COLUMN()-1-COLUMN($E152)),VLOOKUP($E152-12,AllData,COLUMN()-1-COLUMN($E152)),VLOOKUP($E152-13,AllData,COLUMN()-1-COLUMN($E152)),VLOOKUP($E152-14,AllData,COLUMN()-1-COLUMN($E152)),VLOOKUP($E152-15,AllData,COLUMN()-1-COLUMN($E152)),VLOOKUP($E152-16,AllData,COLUMN()-1-COLUMN($E152)),VLOOKUP($E152-17,AllData,COLUMN()-1-COLUMN($E152)),VLOOKUP($E152-18,AllData,COLUMN()-1-COLUMN($E152)),VLOOKUP($E152-19,AllData,COLUMN()-1-COLUMN($E152)),VLOOKUP($E152-20,AllData,COLUMN()-1-COLUMN($E152)),VLOOKUP($E152-21,AllData,COLUMN()-1-COLUMN($E152)),VLOOKUP($E152-22,AllData,COLUMN()-1-COLUMN($E152)),VLOOKUP($E152-23,AllData,COLUMN()-1-COLUMN($E152)),VLOOKUP($E152-24,AllData,COLUMN()-1-COLUMN($E152)),VLOOKUP($E152-25,AllData,COLUMN()-1-COLUMN($E152)),VLOOKUP($E152-26,AllData,COLUMN()-1-COLUMN($E152)),VLOOKUP($E152-27,AllData,COLUMN()-1-COLUMN($E152)),VLOOKUP($E152-28,AllData,COLUMN()-1-COLUMN($E152)),VLOOKUP($E152-29,AllData,COLUMN()-1-COLUMN($E152)))","v":22859.356155070356},{"$f":"VLOOKUP($E152,AllData,COLUMN()-2-COLUMN($E152))","v":1092.4977151682497},{"$f":"OR('Cool Graph'!$H$1=35,'Cool Graph'!$H$1=36,'Cool Graph'!$H$1=37,'Cool Graph'!$H$1=38,'Cool Graph'!$H$1=39,'Cool Graph'!$H$1=40,'Cool Graph'!$H$1=41,'Cool Graph'!$H$1=42,'Cool Graph'!$H$1=43,'Cool Graph'!$H$1=44,'Cool Graph'!$H$1=45,'Cool Graph'!$H$1=46,'Cool Graph'!$H$1=47,'Cool Graph'!$H$1=58,'Cool Graph'!$H$1=66)","v":false},{"$f":"SUM(VLOOKUP($E152,AllData,COLUMN()-5-COLUMN($E152)),VLOOKUP($E152-1,AllData,COLUMN()-5-COLUMN($E152)),VLOOKUP($E152-2,AllData,COLUMN()-5-COLUMN($E152)),VLOOKUP($E152-3,AllData,COLUMN()-5-COLUMN($E152)),VLOOKUP($E152-4,AllData,COLUMN()-5-COLUMN($E152)),VLOOKUP($E152-5,AllData,COLUMN()-5-COLUMN($E152)),VLOOKUP($E152-6,AllData,COLUMN()-5-COLUMN($E152)))","v":1224.3},{"$f":"SUM(VLOOKUP($E152,AllData,COLUMN()-6-COLUMN($E152)),VLOOKUP($E152-1,AllData,COLUMN()-6-COLUMN($E152)),VLOOKUP($E152-2,AllData,COLUMN()-6-COLUMN($E152)),VLOOKUP($E152-3,AllData,COLUMN()-6-COLUMN($E152)),VLOOKUP($E152-4,AllData,COLUMN()-6-COLUMN($E152)),VLOOKUP($E152-5,AllData,COLUMN()-6-COLUMN($E152)),VLOOKUP($E152-6,AllData,COLUMN()-6-COLUMN($E152)),VLOOKUP($E152-7,AllData,COLUMN()-6-COLUMN($E152)),VLOOKUP($E152-8,AllData,COLUMN()-6-COLUMN($E152)),VLOOKUP($E152-9,AllData,COLUMN()-6-COLUMN($E152)),VLOOKUP($E152-10,AllData,COLUMN()-6-COLUMN($E152)),VLOOKUP($E152-11,AllData,COLUMN()-6-COLUMN($E152)),VLOOKUP($E152-12,AllData,COLUMN()-6-COLUMN($E152)),VLOOKUP($E152-13,AllData,COLUMN()-6-COLUMN($E152)),VLOOKUP($E152-14,AllData,COLUMN()-6-COLUMN($E152)),VLOOKUP($E152-15,AllData,COLUMN()-6-COLUMN($E152)),VLOOKUP($E152-16,AllData,COLUMN()-6-COLUMN($E152)),VLOOKUP($E152-17,AllData,COLUMN()-6-COLUMN($E152)),VLOOKUP($E152-18,AllData,COLUMN()-6-COLUMN($E152)),VLOOKUP($E152-19,AllData,COLUMN()-6-COLUMN($E152)),VLOOKUP($E152-20,AllData,COLUMN()-6-COLUMN($E152)),VLOOKUP($E152-21,AllData,COLUMN()-6-COLUMN($E152)),VLOOKUP($E152-22,AllData,COLUMN()-6-COLUMN($E152)),VLOOKUP($E152-23,AllData,COLUMN()-6-COLUMN($E152)),VLOOKUP($E152-24,AllData,COLUMN()-6-COLUMN($E152)),VLOOKUP($E152-25,AllData,COLUMN()-6-COLUMN($E152)),VLOOKUP($E152-26,AllData,COLUMN()-6-COLUMN($E152)),VLOOKUP($E152-27,AllData,COLUMN()-6-COLUMN($E152)),VLOOKUP($E152-28,AllData,COLUMN()-6-COLUMN($E152)),VLOOKUP($E152-29,AllData,COLUMN()-6-COLUMN($E152)))","v":2565.9199999999996},{"$f":"VLOOKUP($E152,AllData,COLUMN()-7-COLUMN($E152))","v":77.59},{"$f":"OR('Cool Graph'!$I$1=35,'Cool Graph'!$I$1=36,'Cool Graph'!$I$1=37,'Cool Graph'!$I$1=38,'Cool Graph'!$I$1=39,'Cool Graph'!$I$1=40,'Cool Graph'!$I$1=41,'Cool Graph'!$I$1=42,'Cool Graph'!$I$1=43,'Cool Graph'!$I$1=44,'Cool Graph'!$I$1=45,'Cool Graph'!$I$1=46,'Cool Graph'!$I$1=47,'Cool Graph'!$I$1=58,'Cool Graph'!$I$1=66)","v":false}]
["2011-11-29",{"$f":"OFFSET(OldSchoolJustValues!A153,0,'Cool Graph'!$H$1)","v":0},{"$f":"OFFSET(OldSchoolJustValues!A153,0,'Cool Graph'!$I$1)","v":930.05149170345589},null,{"$f":"IF(NewDate>EndDate,NA(),NewDate)","v":"2012-02-24"},{"$f":"IF($E153>EndDate,NA(),IF($K$2=TRUE,N153,IF('Cool Graph'!$B$17=1,N153,IF('Cool Graph'!$B$17=2,L153,IF('Cool Graph'!$B$17=3,M153,)))))","v":117.96},{"$f":"IF($E153>EndDate,NA(),IF($O$2=TRUE,J153,IF('Cool Graph'!$B$17=1,Data1!J153,IF('Cool Graph'!$B$17=2,Data1!H153,IF('Cool Graph'!$B$17=3,Data1!I153,)))))","v":770.34268854564471},{"$f":"SUM(VLOOKUP($E153,AllData,COLUMN()-COLUMN($E153)),VLOOKUP($E153-1,AllData,COLUMN()-COLUMN($E153)),VLOOKUP($E153-2,AllData,COLUMN()-COLUMN($E153)),VLOOKUP($E153-3,AllData,COLUMN()-COLUMN($E153)),VLOOKUP($E153-4,AllData,COLUMN()-COLUMN($E153)),VLOOKUP($E153-5,AllData,COLUMN()-COLUMN($E153)),VLOOKUP($E153-6,AllData,COLUMN()-COLUMN($E153)))","v":6240.6067514874967},{"$f":"SUM(VLOOKUP($E153,AllData,COLUMN()-1-COLUMN($E153)),VLOOKUP($E153-1,AllData,COLUMN()-1-COLUMN($E153)),VLOOKUP($E153-2,AllData,COLUMN()-1-COLUMN($E153)),VLOOKUP($E153-3,AllData,COLUMN()-1-COLUMN($E153)),VLOOKUP($E153-4,AllData,COLUMN()-1-COLUMN($E153)),VLOOKUP($E153-5,AllData,COLUMN()-1-COLUMN($E153)),VLOOKUP($E153-6,AllData,COLUMN()-1-COLUMN($E153)),VLOOKUP($E153-7,AllData,COLUMN()-1-COLUMN($E153)),VLOOKUP($E153-8,AllData,COLUMN()-1-COLUMN($E153)),VLOOKUP($E153-9,AllData,COLUMN()-1-COLUMN($E153)),VLOOKUP($E153-10,AllData,COLUMN()-1-COLUMN($E153)),VLOOKUP($E153-11,AllData,COLUMN()-1-COLUMN($E153)),VLOOKUP($E153-12,AllData,COLUMN()-1-COLUMN($E153)),VLOOKUP($E153-13,AllData,COLUMN()-1-COLUMN($E153)),VLOOKUP($E153-14,AllData,COLUMN()-1-COLUMN($E153)),VLOOKUP($E153-15,AllData,COLUMN()-1-COLUMN($E153)),VLOOKUP($E153-16,AllData,COLUMN()-1-COLUMN($E153)),VLOOKUP($E153-17,AllData,COLUMN()-1-COLUMN($E153)),VLOOKUP($E153-18,AllData,COLUMN()-1-COLUMN($E153)),VLOOKUP($E153-19,AllData,COLUMN()-1-COLUMN($E153)),VLOOKUP($E153-20,AllData,COLUMN()-1-COLUMN($E153)),VLOOKUP($E153-21,AllData,COLUMN()-1-COLUMN($E153)),VLOOKUP($E153-22,AllData,COLUMN()-1-COLUMN($E153)),VLOOKUP($E153-23,AllData,COLUMN()-1-COLUMN($E153)),VLOOKUP($E153-24,AllData,COLUMN()-1-COLUMN($E153)),VLOOKUP($E153-25,AllData,COLUMN()-1-COLUMN($E153)),VLOOKUP($E153-26,AllData,COLUMN()-1-COLUMN($E153)),VLOOKUP($E153-27,AllData,COLUMN()-1-COLUMN($E153)),VLOOKUP($E153-28,AllData,COLUMN()-1-COLUMN($E153)),VLOOKUP($E153-29,AllData,COLUMN()-1-COLUMN($E153)))","v":22385.972620710196},{"$f":"VLOOKUP($E153,AllData,COLUMN()-2-COLUMN($E153))","v":770.34268854564471},{"$f":"OR('Cool Graph'!$H$1=35,'Cool Graph'!$H$1=36,'Cool Graph'!$H$1=37,'Cool Graph'!$H$1=38,'Cool Graph'!$H$1=39,'Cool Graph'!$H$1=40,'Cool Graph'!$H$1=41,'Cool Graph'!$H$1=42,'Cool Graph'!$H$1=43,'Cool Graph'!$H$1=44,'Cool Graph'!$H$1=45,'Cool Graph'!$H$1=46,'Cool Graph'!$H$1=47,'Cool Graph'!$H$1=58,'Cool Graph'!$H$1=66)","v":false},{"$f":"SUM(VLOOKUP($E153,AllData,COLUMN()-5-COLUMN($E153)),VLOOKUP($E153-1,AllData,COLUMN()-5-COLUMN($E153)),VLOOKUP($E153-2,AllData,COLUMN()-5-COLUMN($E153)),VLOOKUP($E153-3,AllData,COLUMN()-5-COLUMN($E153)),VLOOKUP($E153-4,AllData,COLUMN()-5-COLUMN($E153)),VLOOKUP($E153-5,AllData,COLUMN()-5-COLUMN($E153)),VLOOKUP($E153-6,AllData,COLUMN()-5-COLUMN($E153)))","v":1274.03},{"$f":"SUM(VLOOKUP($E153,AllData,COLUMN()-6-COLUMN($E153)),VLOOKUP($E153-1,AllData,COLUMN()-6-COLUMN($E153)),VLOOKUP($E153-2,AllData,COLUMN()-6-COLUMN($E153)),VLOOKUP($E153-3,AllData,COLUMN()-6-COLUMN($E153)),VLOOKUP($E153-4,AllData,COLUMN()-6-COLUMN($E153)),VLOOKUP($E153-5,AllData,COLUMN()-6-COLUMN($E153)),VLOOKUP($E153-6,AllData,COLUMN()-6-COLUMN($E153)),VLOOKUP($E153-7,AllData,COLUMN()-6-COLUMN($E153)),VLOOKUP($E153-8,AllData,COLUMN()-6-COLUMN($E153)),VLOOKUP($E153-9,AllData,COLUMN()-6-COLUMN($E153)),VLOOKUP($E153-10,AllData,COLUMN()-6-COLUMN($E153)),VLOOKUP($E153-11,AllData,COLUMN()-6-COLUMN($E153)),VLOOKUP($E153-12,AllData,COLUMN()-6-COLUMN($E153)),VLOOKUP($E153-13,AllData,COLUMN()-6-COLUMN($E153)),VLOOKUP($E153-14,AllData,COLUMN()-6-COLUMN($E153)),VLOOKUP($E153-15,AllData,COLUMN()-6-COLUMN($E153)),VLOOKUP($E153-16,AllData,COLUMN()-6-COLUMN($E153)),VLOOKUP($E153-17,AllData,COLUMN()-6-COLUMN($E153)),VLOOKUP($E153-18,AllData,COLUMN()-6-COLUMN($E153)),VLOOKUP($E153-19,AllData,COLUMN()-6-COLUMN($E153)),VLOOKUP($E153-20,AllData,COLUMN()-6-COLUMN($E153)),VLOOKUP($E153-21,AllData,COLUMN()-6-COLUMN($E153)),VLOOKUP($E153-22,AllData,COLUMN()-6-COLUMN($E153)),VLOOKUP($E153-23,AllData,COLUMN()-6-COLUMN($E153)),VLOOKUP($E153-24,AllData,COLUMN()-6-COLUMN($E153)),VLOOKUP($E153-25,AllData,COLUMN()-6-COLUMN($E153)),VLOOKUP($E153-26,AllData,COLUMN()-6-COLUMN($E153)),VLOOKUP($E153-27,AllData,COLUMN()-6-COLUMN($E153)),VLOOKUP($E153-28,AllData,COLUMN()-6-COLUMN($E153)),VLOOKUP($E153-29,AllData,COLUMN()-6-COLUMN($E153)))","v":2652.2899999999991},{"$f":"VLOOKUP($E153,AllData,COLUMN()-7-COLUMN($E153))","v":117.96},{"$f":"OR('Cool Graph'!$I$1=35,'Cool Graph'!$I$1=36,'Cool Graph'!$I$1=37,'Cool Graph'!$I$1=38,'Cool Graph'!$I$1=39,'Cool Graph'!$I$1=40,'Cool Graph'!$I$1=41,'Cool Graph'!$I$1=42,'Cool Graph'!$I$1=43,'Cool Graph'!$I$1=44,'Cool Graph'!$I$1=45,'Cool Graph'!$I$1=46,'Cool Graph'!$I$1=47,'Cool Graph'!$I$1=58,'Cool Graph'!$I$1=66)","v":false}]
["2011-11-30",{"$f":"OFFSET(OldSchoolJustValues!A154,0,'Cool Graph'!$H$1)","v":0.09},{"$f":"OFFSET(OldSchoolJustValues!A154,0,'Cool Graph'!$I$1)","v":202.98791191945617},null,{"$f":"IF(NewDate>EndDate,NA(),NewDate)","v":"2012-02-25"},{"$f":"IF($E154>EndDate,NA(),IF($K$2=TRUE,N154,IF('Cool Graph'!$B$17=1,N154,IF('Cool Graph'!$B$17=2,L154,IF('Cool Graph'!$B$17=3,M154,)))))","v":109.07},{"$f":"IF($E154>EndDate,NA(),IF($O$2=TRUE,J154,IF('Cool Graph'!$B$17=1,Data1!J154,IF('Cool Graph'!$B$17=2,Data1!H154,IF('Cool Graph'!$B$17=3,Data1!I154,)))))","v":1012.0586054504244},{"$f":"SUM(VLOOKUP($E154,AllData,COLUMN()-COLUMN($E154)),VLOOKUP($E154-1,AllData,COLUMN()-COLUMN($E154)),VLOOKUP($E154-2,AllData,COLUMN()-COLUMN($E154)),VLOOKUP($E154-3,AllData,COLUMN()-COLUMN($E154)),VLOOKUP($E154-4,AllData,COLUMN()-COLUMN($E154)),VLOOKUP($E154-5,AllData,COLUMN()-COLUMN($E154)),VLOOKUP($E154-6,AllData,COLUMN()-COLUMN($E154)))","v":6469.3800643246568},{"$f":"SUM(VLOOKUP($E154,AllData,COLUMN()-1-COLUMN($E154)),VLOOKUP($E154-1,AllData,COLUMN()-1-COLUMN($E154)),VLOOKUP($E154-2,AllData,COLUMN()-1-COLUMN($E154)),VLOOKUP($E154-3,AllData,COLUMN()-1-COLUMN($E154)),VLOOKUP($E154-4,AllData,COLUMN()-1-COLUMN($E154)),VLOOKUP($E154-5,AllData,COLUMN()-1-COLUMN($E154)),VLOOKUP($E154-6,AllData,COLUMN()-1-COLUMN($E154)),VLOOKUP($E154-7,AllData,COLUMN()-1-COLUMN($E154)),VLOOKUP($E154-8,AllData,COLUMN()-1-COLUMN($E154)),VLOOKUP($E154-9,AllData,COLUMN()-1-COLUMN($E154)),VLOOKUP($E154-10,AllData,COLUMN()-1-COLUMN($E154)),VLOOKUP($E154-11,AllData,COLUMN()-1-COLUMN($E154)),VLOOKUP($E154-12,AllData,COLUMN()-1-COLUMN($E154)),VLOOKUP($E154-13,AllData,COLUMN()-1-COLUMN($E154)),VLOOKUP($E154-14,AllData,COLUMN()-1-COLUMN($E154)),VLOOKUP($E154-15,AllData,COLUMN()-1-COLUMN($E154)),VLOOKUP($E154-16,AllData,COLUMN()-1-COLUMN($E154)),VLOOKUP($E154-17,AllData,COLUMN()-1-COLUMN($E154)),VLOOKUP($E154-18,AllData,COLUMN()-1-COLUMN($E154)),VLOOKUP($E154-19,AllData,COLUMN()-1-COLUMN($E154)),VLOOKUP($E154-20,AllData,COLUMN()-1-COLUMN($E154)),VLOOKUP($E154-21,AllData,COLUMN()-1-COLUMN($E154)),VLOOKUP($E154-22,AllData,COLUMN()-1-COLUMN($E154)),VLOOKUP($E154-23,AllData,COLUMN()-1-COLUMN($E154)),VLOOKUP($E154-24,AllData,COLUMN()-1-COLUMN($E154)),VLOOKUP($E154-25,AllData,COLUMN()-1-COLUMN($E154)),VLOOKUP($E154-26,AllData,COLUMN()-1-COLUMN($E154)),VLOOKUP($E154-27,AllData,COLUMN()-1-COLUMN($E154)),VLOOKUP($E154-28,AllData,COLUMN()-1-COLUMN($E154)),VLOOKUP($E154-29,AllData,COLUMN()-1-COLUMN($E154)))","v":22271.180924525528},{"$f":"VLOOKUP($E154,AllData,COLUMN()-2-COLUMN($E154))","v":1012.0586054504244},{"$f":"OR('Cool Graph'!$H$1=35,'Cool Graph'!$H$1=36,'Cool Graph'!$H$1=37,'Cool Graph'!$H$1=38,'Cool Graph'!$H$1=39,'Cool Graph'!$H$1=40,'Cool Graph'!$H$1=41,'Cool Graph'!$H$1=42,'Cool Graph'!$H$1=43,'Cool Graph'!$H$1=44,'Cool Graph'!$H$1=45,'Cool Graph'!$H$1=46,'Cool Graph'!$H$1=47,'Cool Graph'!$H$1=58,'Cool Graph'!$H$1=66)","v":false},{"$f":"SUM(VLOOKUP($E154,AllData,COLUMN()-5-COLUMN($E154)),VLOOKUP($E154-1,AllData,COLUMN()-5-COLUMN($E154)),VLOOKUP($E154-2,AllData,COLUMN()-5-COLUMN($E154)),VLOOKUP($E154-3,AllData,COLUMN()-5-COLUMN($E154)),VLOOKUP($E154-4,AllData,COLUMN()-5-COLUMN($E154)),VLOOKUP($E154-5,AllData,COLUMN()-5-COLUMN($E154)),VLOOKUP($E154-6,AllData,COLUMN()-5-COLUMN($E154)))","v":1296.0900000000001},{"$f":"SUM(VLOOKUP($E154,AllData,COLUMN()-6-COLUMN($E154)),VLOOKUP($E154-1,AllData,COLUMN()-6-COLUMN($E154)),VLOOKUP($E154-2,AllData,COLUMN()-6-COLUMN($E154)),VLOOKUP($E154-3,AllData,COLUMN()-6-COLUMN($E154)),VLOOKUP($E154-4,AllData,COLUMN()-6-COLUMN($E154)),VLOOKUP($E154-5,AllData,COLUMN()-6-COLUMN($E154)),VLOOKUP($E154-6,AllData,COLUMN()-6-COLUMN($E154)),VLOOKUP($E154-7,AllData,COLUMN()-6-COLUMN($E154)),VLOOKUP($E154-8,AllData,COLUMN()-6-COLUMN($E154)),VLOOKUP($E154-9,AllData,COLUMN()-6-COLUMN($E154)),VLOOKUP($E154-10,AllData,COLUMN()-6-COLUMN($E154)),VLOOKUP($E154-11,AllData,COLUMN()-6-COLUMN($E154)),VLOOKUP($E154-12,AllData,COLUMN()-6-COLUMN($E154)),VLOOKUP($E154-13,AllData,COLUMN()-6-COLUMN($E154)),VLOOKUP($E154-14,AllData,COLUMN()-6-COLUMN($E154)),VLOOKUP($E154-15,AllData,COLUMN()-6-COLUMN($E154)),VLOOKUP($E154-16,AllData,COLUMN()-6-COLUMN($E154)),VLOOKUP($E154-17,AllData,COLUMN()-6-COLUMN($E154)),VLOOKUP($E154-18,AllData,COLUMN()-6-COLUMN($E154)),VLOOKUP($E154-19,AllData,COLUMN()-6-COLUMN($E154)),VLOOKUP($E154-20,AllData,COLUMN()-6-COLUMN($E154)),VLOOKUP($E154-21,AllData,COLUMN()-6-COLUMN($E154)),VLOOKUP($E154-22,AllData,COLUMN()-6-COLUMN($E154)),VLOOKUP($E154-23,AllData,COLUMN()-6-COLUMN($E154)),VLOOKUP($E154-24,AllData,COLUMN()-6-COLUMN($E154)),VLOOKUP($E154-25,AllData,COLUMN()-6-COLUMN($E154)),VLOOKUP($E154-26,AllData,COLUMN()-6-COLUMN($E154)),VLOOKUP($E154-27,AllData,COLUMN()-6-COLUMN($E154)),VLOOKUP($E154-28,AllData,COLUMN()-6-COLUMN($E154)),VLOOKUP($E154-29,AllData,COLUMN()-6-COLUMN($E154)))","v":2726.6699999999992},{"$f":"VLOOKUP($E154,AllData,COLUMN()-7-COLUMN($E154))","v":109.07},{"$f":"OR('Cool Graph'!$I$1=35,'Cool Graph'!$I$1=36,'Cool Graph'!$I$1=37,'Cool Graph'!$I$1=38,'Cool Graph'!$I$1=39,'Cool Graph'!$I$1=40,'Cool Graph'!$I$1=41,'Cool Graph'!$I$1=42,'Cool Graph'!$I$1=43,'Cool Graph'!$I$1=44,'Cool Graph'!$I$1=45,'Cool Graph'!$I$1=46,'Cool Graph'!$I$1=47,'Cool Graph'!$I$1=58,'Cool Graph'!$I$1=66)","v":false}]
["2011-12-01",{"$f":"OFFSET(OldSchoolJustValues!A155,0,'Cool Graph'!$H$1)","v":1.5},{"$f":"OFFSET(OldSchoolJustValues!A155,0,'Cool Graph'!$I$1)","v":205.21338787332797},null,{"$f":"IF(NewDate>EndDate,NA(),NewDate)","v":"2012-02-26"},{"$f":"IF($E155>EndDate,NA(),IF($K$2=TRUE,N155,IF('Cool Graph'!$B$17=1,N155,IF('Cool Graph'!$B$17=2,L155,IF('Cool Graph'!$B$17=3,M155,)))))","v":88.09},{"$f":"IF($E155>EndDate,NA(),IF($O$2=TRUE,J155,IF('Cool Graph'!$B$17=1,Data1!J155,IF('Cool Graph'!$B$17=2,Data1!H155,IF('Cool Graph'!$B$17=3,Data1!I155,)))))","v":866.5486716176797},{"$f":"SUM(VLOOKUP($E155,AllData,COLUMN()-COLUMN($E155)),VLOOKUP($E155-1,AllData,COLUMN()-COLUMN($E155)),VLOOKUP($E155-2,AllData,COLUMN()-COLUMN($E155)),VLOOKUP($E155-3,AllData,COLUMN()-COLUMN($E155)),VLOOKUP($E155-4,AllData,COLUMN()-COLUMN($E155)),VLOOKUP($E155-5,AllData,COLUMN()-COLUMN($E155)),VLOOKUP($E155-6,AllData,COLUMN()-COLUMN($E155)))","v":5916.9889759239531},{"$f":"SUM(VLOOKUP($E155,AllData,COLUMN()-1-COLUMN($E155)),VLOOKUP($E155-1,AllData,COLUMN()-1-COLUMN($E155)),VLOOKUP($E155-2,AllData,COLUMN()-1-COLUMN($E155)),VLOOKUP($E155-3,AllData,COLUMN()-1-COLUMN($E155)),VLOOKUP($E155-4,AllData,COLUMN()-1-COLUMN($E155)),VLOOKUP($E155-5,AllData,COLUMN()-1-COLUMN($E155)),VLOOKUP($E155-6,AllData,COLUMN()-1-COLUMN($E155)),VLOOKUP($E155-7,AllData,COLUMN()-1-COLUMN($E155)),VLOOKUP($E155-8,AllData,COLUMN()-1-COLUMN($E155)),VLOOKUP($E155-9,AllData,COLUMN()-1-COLUMN($E155)),VLOOKUP($E155-10,AllData,COLUMN()-1-COLUMN($E155)),VLOOKUP($E155-11,AllData,COLUMN()-1-COLUMN($E155)),VLOOKUP($E155-12,AllData,COLUMN()-1-COLUMN($E155)),VLOOKUP($E155-13,AllData,COLUMN()-1-COLUMN($E155)),VLOOKUP($E155-14,AllData,COLUMN()-1-COLUMN($E155)),VLOOKUP($E155-15,AllData,COLUMN()-1-COLUMN($E155)),VLOOKUP($E155-16,AllData,COLUMN()-1-COLUMN($E155)),VLOOKUP($E155-17,AllData,COLUMN()-1-COLUMN($E155)),VLOOKUP($E155-18,AllData,COLUMN()-1-COLUMN($E155)),VLOOKUP($E155-19,AllData,COLUMN()-1-COLUMN($E155)),VLOOKUP($E155-20,AllData,COLUMN()-1-COLUMN($E155)),VLOOKUP($E155-21,AllData,COLUMN()-1-COLUMN($E155)),VLOOKUP($E155-22,AllData,COLUMN()-1-COLUMN($E155)),VLOOKUP($E155-23,AllData,COLUMN()-1-COLUMN($E155)),VLOOKUP($E155-24,AllData,COLUMN()-1-COLUMN($E155)),VLOOKUP($E155-25,AllData,COLUMN()-1-COLUMN($E155)),VLOOKUP($E155-26,AllData,COLUMN()-1-COLUMN($E155)),VLOOKUP($E155-27,AllData,COLUMN()-1-COLUMN($E155)),VLOOKUP($E155-28,AllData,COLUMN()-1-COLUMN($E155)),VLOOKUP($E155-29,AllData,COLUMN()-1-COLUMN($E155)))","v":22807.187822124273},{"$f":"VLOOKUP($E155,AllData,COLUMN()-2-COLUMN($E155))","v":866.5486716176797},{"$f":"OR('Cool Graph'!$H$1=35,'Cool Graph'!$H$1=36,'Cool Graph'!$H$1=37,'Cool Graph'!$H$1=38,'Cool Graph'!$H$1=39,'Cool Graph'!$H$1=40,'Cool Graph'!$H$1=41,'Cool Graph'!$H$1=42,'Cool Graph'!$H$1=43,'Cool Graph'!$H$1=44,'Cool Graph'!$H$1=45,'Cool Graph'!$H$1=46,'Cool Graph'!$H$1=47,'Cool Graph'!$H$1=58,'Cool Graph'!$H$1=66)","v":false},{"$f":"SUM(VLOOKUP($E155,AllData,COLUMN()-5-COLUMN($E155)),VLOOKUP($E155-1,AllData,COLUMN()-5-COLUMN($E155)),VLOOKUP($E155-2,AllData,COLUMN()-5-COLUMN($E155)),VLOOKUP($E155-3,AllData,COLUMN()-5-COLUMN($E155)),VLOOKUP($E155-4,AllData,COLUMN()-5-COLUMN($E155)),VLOOKUP($E155-5,AllData,COLUMN()-5-COLUMN($E155)),VLOOKUP($E155-6,AllData,COLUMN()-5-COLUMN($E155)))","v":1090.5500000000002},{"$f":"SUM(VLOOKUP($E155,AllData,COLUMN()-6-COLUMN($E155)),VLOOKUP($E155-1,AllData,COLUMN()-6-COLUMN($E155)),VLOOKUP($E155-2,AllData,COLUMN()-6-COLUMN($E155)),VLOOKUP($E155-3,AllData,COLUMN()-6-COLUMN($E155)),VLOOKUP($E155-4,AllData,COLUMN()-6-COLUMN($E155)),VLOOKUP($E155-5,AllData,COLUMN()-6-COLUMN($E155)),VLOOKUP($E155-6,AllData,COLUMN()-6-COLUMN($E155)),VLOOKUP($E155-7,AllData,COLUMN()-6-COLUMN($E155)),VLOOKUP($E155-8,AllData,COLUMN()-6-COLUMN($E155)),VLOOKUP($E155-9,AllData,COLUMN()-6-COLUMN($E155)),VLOOKUP($E155-10,AllData,COLUMN()-6-COLUMN($E155)),VLOOKUP($E155-11,AllData,COLUMN()-6-COLUMN($E155)),VLOOKUP($E155-12,AllData,COLUMN()-6-COLUMN($E155)),VLOOKUP($E155-13,AllData,COLUMN()-6-COLUMN($E155)),VLOOKUP($E155-14,AllData,COLUMN()-6-COLUMN($E155)),VLOOKUP($E155-15,AllData,COLUMN()-6-COLUMN($E155)),VLOOKUP($E155-16,AllData,COLUMN()-6-COLUMN($E155)),VLOOKUP($E155-17,AllData,COLUMN()-6-COLUMN($E155)),VLOOKUP($E155-18,AllData,COLUMN()-6-COLUMN($E155)),VLOOKUP($E155-19,AllData,COLUMN()-6-COLUMN($E155)),VLOOKUP($E155-20,AllData,COLUMN()-6-COLUMN($E155)),VLOOKUP($E155-21,AllData,COLUMN()-6-COLUMN($E155)),VLOOKUP($E155-22,AllData,COLUMN()-6-COLUMN($E155)),VLOOKUP($E155-23,AllData,COLUMN()-6-COLUMN($E155)),VLOOKUP($E155-24,AllData,COLUMN()-6-COLUMN($E155)),VLOOKUP($E155-25,AllData,COLUMN()-6-COLUMN($E155)),VLOOKUP($E155-26,AllData,COLUMN()-6-COLUMN($E155)),VLOOKUP($E155-27,AllData,COLUMN()-6-COLUMN($E155)),VLOOKUP($E155-28,AllData,COLUMN()-6-COLUMN($E155)),VLOOKUP($E155-29,AllData,COLUMN()-6-COLUMN($E155)))","v":2794.0599999999995},{"$f":"VLOOKUP($E155,AllData,COLUMN()-7-COLUMN($E155))","v":88.09},{"$f":"OR('Cool Graph'!$I$1=35,'Cool Graph'!$I$1=36,'Cool Graph'!$I$1=37,'Cool Graph'!$I$1=38,'Cool Graph'!$I$1=39,'Cool Graph'!$I$1=40,'Cool Graph'!$I$1=41,'Cool Graph'!$I$1=42,'Cool Graph'!$I$1=43,'Cool Graph'!$I$1=44,'Cool Graph'!$I$1=45,'Cool Graph'!$I$1=46,'Cool Graph'!$I$1=47,'Cool Graph'!$I$1=58,'Cool Graph'!$I$1=66)","v":false}]
["2011-12-02",{"$f":"OFFSET(OldSchoolJustValues!A156,0,'Cool Graph'!$H$1)","v":1.51},{"$f":"OFFSET(OldSchoolJustValues!A156,0,'Cool Graph'!$I$1)","v":178.82605933150163},null,{"$f":"IF(NewDate>EndDate,NA(),NewDate)","v":"2012-02-27"},{"$f":"IF($E156>EndDate,NA(),IF($K$2=TRUE,N156,IF('Cool Graph'!$B$17=1,N156,IF('Cool Graph'!$B$17=2,L156,IF('Cool Graph'!$B$17=3,M156,)))))","v":88.65},{"$f":"IF($E156>EndDate,NA(),IF($O$2=TRUE,J156,IF('Cool Graph'!$B$17=1,Data1!J156,IF('Cool Graph'!$B$17=2,Data1!H156,IF('Cool Graph'!$B$17=3,Data1!I156,)))))","v":1200.000955721662},{"$f":"SUM(VLOOKUP($E156,AllData,COLUMN()-COLUMN($E156)),VLOOKUP($E156-1,AllData,COLUMN()-COLUMN($E156)),VLOOKUP($E156-2,AllData,COLUMN()-COLUMN($E156)),VLOOKUP($E156-3,AllData,COLUMN()-COLUMN($E156)),VLOOKUP($E156-4,AllData,COLUMN()-COLUMN($E156)),VLOOKUP($E156-5,AllData,COLUMN()-COLUMN($E156)),VLOOKUP($E156-6,AllData,COLUMN()-COLUMN($E156)))","v":6096.0638945339924},{"$f":"SUM(VLOOKUP($E156,AllData,COLUMN()-1-COLUMN($E156)),VLOOKUP($E156-1,AllData,COLUMN()-1-COLUMN($E156)),VLOOKUP($E156-2,AllData,COLUMN()-1-COLUMN($E156)),VLOOKUP($E156-3,AllData,COLUMN()-1-COLUMN($E156)),VLOOKUP($E156-4,AllData,COLUMN()-1-COLUMN($E156)),VLOOKUP($E156-5,AllData,COLUMN()-1-COLUMN($E156)),VLOOKUP($E156-6,AllData,COLUMN()-1-COLUMN($E156)),VLOOKUP($E156-7,AllData,COLUMN()-1-COLUMN($E156)),VLOOKUP($E156-8,AllData,COLUMN()-1-COLUMN($E156)),VLOOKUP($E156-9,AllData,COLUMN()-1-COLUMN($E156)),VLOOKUP($E156-10,AllData,COLUMN()-1-COLUMN($E156)),VLOOKUP($E156-11,AllData,COLUMN()-1-COLUMN($E156)),VLOOKUP($E156-12,AllData,COLUMN()-1-COLUMN($E156)),VLOOKUP($E156-13,AllData,COLUMN()-1-COLUMN($E156)),VLOOKUP($E156-14,AllData,COLUMN()-1-COLUMN($E156)),VLOOKUP($E156-15,AllData,COLUMN()-1-COLUMN($E156)),VLOOKUP($E156-16,AllData,COLUMN()-1-COLUMN($E156)),VLOOKUP($E156-17,AllData,COLUMN()-1-COLUMN($E156)),VLOOKUP($E156-18,AllData,COLUMN()-1-COLUMN($E156)),VLOOKUP($E156-19,AllData,COLUMN()-1-COLUMN($E156)),VLOOKUP($E156-20,AllData,COLUMN()-1-COLUMN($E156)),VLOOKUP($E156-21,AllData,COLUMN()-1-COLUMN($E156)),VLOOKUP($E156-22,AllData,COLUMN()-1-COLUMN($E156)),VLOOKUP($E156-23,AllData,COLUMN()-1-COLUMN($E156)),VLOOKUP($E156-24,AllData,COLUMN()-1-COLUMN($E156)),VLOOKUP($E156-25,AllData,COLUMN()-1-COLUMN($E156)),VLOOKUP($E156-26,AllData,COLUMN()-1-COLUMN($E156)),VLOOKUP($E156-27,AllData,COLUMN()-1-COLUMN($E156)),VLOOKUP($E156-28,AllData,COLUMN()-1-COLUMN($E156)),VLOOKUP($E156-29,AllData,COLUMN()-1-COLUMN($E156)))","v":23566.201425977051},{"$f":"VLOOKUP($E156,AllData,COLUMN()-2-COLUMN($E156))","v":1200.000955721662},{"$f":"OR('Cool Graph'!$H$1=35,'Cool Graph'!$H$1=36,'Cool Graph'!$H$1=37,'Cool Graph'!$H$1=38,'Cool Graph'!$H$1=39,'Cool Graph'!$H$1=40,'Cool Graph'!$H$1=41,'Cool Graph'!$H$1=42,'Cool Graph'!$H$1=43,'Cool Graph'!$H$1=44,'Cool Graph'!$H$1=45,'Cool Graph'!$H$1=46,'Cool Graph'!$H$1=47,'Cool Graph'!$H$1=58,'Cool Graph'!$H$1=66)","v":false},{"$f":"SUM(VLOOKUP($E156,AllData,COLUMN()-5-COLUMN($E156)),VLOOKUP($E156-1,AllData,COLUMN()-5-COLUMN($E156)),VLOOKUP($E156-2,AllData,COLUMN()-5-COLUMN($E156)),VLOOKUP($E156-3,AllData,COLUMN()-5-COLUMN($E156)),VLOOKUP($E156-4,AllData,COLUMN()-5-COLUMN($E156)),VLOOKUP($E156-5,AllData,COLUMN()-5-COLUMN($E156)),VLOOKUP($E156-6,AllData,COLUMN()-5-COLUMN($E156)))","v":831.97},{"$f":"SUM(VLOOKUP($E156,AllData,COLUMN()-6-COLUMN($E156)),VLOOKUP($E156-1,AllData,COLUMN()-6-COLUMN($E156)),VLOOKUP($E156-2,AllData,COLUMN()-6-COLUMN($E156)),VLOOKUP($E156-3,AllData,COLUMN()-6-COLUMN($E156)),VLOOKUP($E156-4,AllData,COLUMN()-6-COLUMN($E156)),VLOOKUP($E156-5,AllData,COLUMN()-6-COLUMN($E156)),VLOOKUP($E156-6,AllData,COLUMN()-6-COLUMN($E156)),VLOOKUP($E156-7,AllData,COLUMN()-6-COLUMN($E156)),VLOOKUP($E156-8,AllData,COLUMN()-6-COLUMN($E156)),VLOOKUP($E156-9,AllData,COLUMN()-6-COLUMN($E156)),VLOOKUP($E156-10,AllData,COLUMN()-6-COLUMN($E156)),VLOOKUP($E156-11,AllData,COLUMN()-6-COLUMN($E156)),VLOOKUP($E156-12,AllData,COLUMN()-6-COLUMN($E156)),VLOOKUP($E156-13,AllData,COLUMN()-6-COLUMN($E156)),VLOOKUP($E156-14,AllData,COLUMN()-6-COLUMN($E156)),VLOOKUP($E156-15,AllData,COLUMN()-6-COLUMN($E156)),VLOOKUP($E156-16,AllData,COLUMN()-6-COLUMN($E156)),VLOOKUP($E156-17,AllData,COLUMN()-6-COLUMN($E156)),VLOOKUP($E156-18,AllData,COLUMN()-6-COLUMN($E156)),VLOOKUP($E156-19,AllData,COLUMN()-6-COLUMN($E156)),VLOOKUP($E156-20,AllData,COLUMN()-6-COLUMN($E156)),VLOOKUP($E156-21,AllData,COLUMN()-6-COLUMN($E156)),VLOOKUP($E156-22,AllData,COLUMN()-6-COLUMN($E156)),VLOOKUP($E156-23,AllData,COLUMN()-6-COLUMN($E156)),VLOOKUP($E156-24,AllData,COLUMN()-6-COLUMN($E156)),VLOOKUP($E156-25,AllData,COLUMN()-6-COLUMN($E156)),VLOOKUP($E156-26,AllData,COLUMN()-6-COLUMN($E156)),VLOOKUP($E156-27,AllData,COLUMN()-6-COLUMN($E156)),VLOOKUP($E156-28,AllData,COLUMN()-6-COLUMN($E156)),VLOOKUP($E156-29,AllData,COLUMN()-6-COLUMN($E156)))","v":2866.6499999999992},{"$f":"VLOOKUP($E156,AllData,COLUMN()-7-COLUMN($E156))","v":88.65},{"$f":"OR('Cool Graph'!$I$1=35,'Cool Graph'!$I$1=36,'Cool Graph'!$I$1=37,'Cool Graph'!$I$1=38,'Cool Graph'!$I$1=39,'Cool Graph'!$I$1=40,'Cool Graph'!$I$1=41,'Cool Graph'!$I$1=42,'Cool Graph'!$I$1=43,'Cool Graph'!$I$1=44,'Cool Graph'!$I$1=45,'Cool Graph'!$I$1=46,'Cool Graph'!$I$1=47,'Cool Graph'!$I$1=58,'Cool Graph'!$I$1=66)","v":false}]
["2011-12-03",{"$f":"OFFSET(OldSchoolJustValues!A157,0,'Cool Graph'!$H$1)","v":33},{"$f":"OFFSET(OldSchoolJustValues!A157,0,'Cool Graph'!$I$1)","v":566.46569080138806},null,{"$f":"IF(NewDate>EndDate,NA(),NewDate)","v":"2012-02-28"},{"$f":"IF($E157>EndDate,NA(),IF($K$2=TRUE,N157,IF('Cool Graph'!$B$17=1,N157,IF('Cool Graph'!$B$17=2,L157,IF('Cool Graph'!$B$17=3,M157,)))))","v":70.3},{"$f":"IF($E157>EndDate,NA(),IF($O$2=TRUE,J157,IF('Cool Graph'!$B$17=1,Data1!J157,IF('Cool Graph'!$B$17=2,Data1!H157,IF('Cool Graph'!$B$17=3,Data1!I157,)))))","v":480.35652068129275},{"$f":"SUM(VLOOKUP($E157,AllData,COLUMN()-COLUMN($E157)),VLOOKUP($E157-1,AllData,COLUMN()-COLUMN($E157)),VLOOKUP($E157-2,AllData,COLUMN()-COLUMN($E157)),VLOOKUP($E157-3,AllData,COLUMN()-COLUMN($E157)),VLOOKUP($E157-4,AllData,COLUMN()-COLUMN($E157)),VLOOKUP($E157-5,AllData,COLUMN()-COLUMN($E157)),VLOOKUP($E157-6,AllData,COLUMN()-COLUMN($E157)))","v":5964.5303261955733},{"$f":"SUM(VLOOKUP($E157,AllData,COLUMN()-1-COLUMN($E157)),VLOOKUP($E157-1,AllData,COLUMN()-1-COLUMN($E157)),VLOOKUP($E157-2,AllData,COLUMN()-1-COLUMN($E157)),VLOOKUP($E157-3,AllData,COLUMN()-1-COLUMN($E157)),VLOOKUP($E157-4,AllData,COLUMN()-1-COLUMN($E157)),VLOOKUP($E157-5,AllData,COLUMN()-1-COLUMN($E157)),VLOOKUP($E157-6,AllData,COLUMN()-1-COLUMN($E157)),VLOOKUP($E157-7,AllData,COLUMN()-1-COLUMN($E157)),VLOOKUP($E157-8,AllData,COLUMN()-1-COLUMN($E157)),VLOOKUP($E157-9,AllData,COLUMN()-1-COLUMN($E157)),VLOOKUP($E157-10,AllData,COLUMN()-1-COLUMN($E157)),VLOOKUP($E157-11,AllData,COLUMN()-1-COLUMN($E157)),VLOOKUP($E157-12,AllData,COLUMN()-1-COLUMN($E157)),VLOOKUP($E157-13,AllData,COLUMN()-1-COLUMN($E157)),VLOOKUP($E157-14,AllData,COLUMN()-1-COLUMN($E157)),VLOOKUP($E157-15,AllData,COLUMN()-1-COLUMN($E157)),VLOOKUP($E157-16,AllData,COLUMN()-1-COLUMN($E157)),VLOOKUP($E157-17,AllData,COLUMN()-1-COLUMN($E157)),VLOOKUP($E157-18,AllData,COLUMN()-1-COLUMN($E157)),VLOOKUP($E157-19,AllData,COLUMN()-1-COLUMN($E157)),VLOOKUP($E157-20,AllData,COLUMN()-1-COLUMN($E157)),VLOOKUP($E157-21,AllData,COLUMN()-1-COLUMN($E157)),VLOOKUP($E157-22,AllData,COLUMN()-1-COLUMN($E157)),VLOOKUP($E157-23,AllData,COLUMN()-1-COLUMN($E157)),VLOOKUP($E157-24,AllData,COLUMN()-1-COLUMN($E157)),VLOOKUP($E157-25,AllData,COLUMN()-1-COLUMN($E157)),VLOOKUP($E157-26,AllData,COLUMN()-1-COLUMN($E157)),VLOOKUP($E157-27,AllData,COLUMN()-1-COLUMN($E157)),VLOOKUP($E157-28,AllData,COLUMN()-1-COLUMN($E157)),VLOOKUP($E157-29,AllData,COLUMN()-1-COLUMN($E157)))","v":22688.401563113384},{"$f":"VLOOKUP($E157,AllData,COLUMN()-2-COLUMN($E157))","v":480.35652068129275},{"$f":"OR('Cool Graph'!$H$1=35,'Cool Graph'!$H$1=36,'Cool Graph'!$H$1=37,'Cool Graph'!$H$1=38,'Cool Graph'!$H$1=39,'Cool Graph'!$H$1=40,'Cool Graph'!$H$1=41,'Cool Graph'!$H$1=42,'Cool Graph'!$H$1=43,'Cool Graph'!$H$1=44,'Cool Graph'!$H$1=45,'Cool Graph'!$H$1=46,'Cool Graph'!$H$1=47,'Cool Graph'!$H$1=58,'Cool Graph'!$H$1=66)","v":false},{"$f":"SUM(VLOOKUP($E157,AllData,COLUMN()-5-COLUMN($E157)),VLOOKUP($E157-1,AllData,COLUMN()-5-COLUMN($E157)),VLOOKUP($E157-2,AllData,COLUMN()-5-COLUMN($E157)),VLOOKUP($E157-3,AllData,COLUMN()-5-COLUMN($E157)),VLOOKUP($E157-4,AllData,COLUMN()-5-COLUMN($E157)),VLOOKUP($E157-5,AllData,COLUMN()-5-COLUMN($E157)),VLOOKUP($E157-6,AllData,COLUMN()-5-COLUMN($E157)))","v":687.75},{"$f":"SUM(VLOOKUP($E157,AllData,COLUMN()-6-COLUMN($E157)),VLOOKUP($E157-1,AllData,COLUMN()-6-COLUMN($E157)),VLOOKUP($E157-2,AllData,COLUMN()-6-COLUMN($E157)),VLOOKUP($E157-3,AllData,COLUMN()-6-COLUMN($E157)),VLOOKUP($E157-4,AllData,COLUMN()-6-COLUMN($E157)),VLOOKUP($E157-5,AllData,COLUMN()-6-COLUMN($E157)),VLOOKUP($E157-6,AllData,COLUMN()-6-COLUMN($E157)),VLOOKUP($E157-7,AllData,COLUMN()-6-COLUMN($E157)),VLOOKUP($E157-8,AllData,COLUMN()-6-COLUMN($E157)),VLOOKUP($E157-9,AllData,COLUMN()-6-COLUMN($E157)),VLOOKUP($E157-10,AllData,COLUMN()-6-COLUMN($E157)),VLOOKUP($E157-11,AllData,COLUMN()-6-COLUMN($E157)),VLOOKUP($E157-12,AllData,COLUMN()-6-COLUMN($E157)),VLOOKUP($E157-13,AllData,COLUMN()-6-COLUMN($E157)),VLOOKUP($E157-14,AllData,COLUMN()-6-COLUMN($E157)),VLOOKUP($E157-15,AllData,COLUMN()-6-COLUMN($E157)),VLOOKUP($E157-16,AllData,COLUMN()-6-COLUMN($E157)),VLOOKUP($E157-17,AllData,COLUMN()-6-COLUMN($E157)),VLOOKUP($E157-18,AllData,COLUMN()-6-COLUMN($E157)),VLOOKUP($E157-19,AllData,COLUMN()-6-COLUMN($E157)),VLOOKUP($E157-20,AllData,COLUMN()-6-COLUMN($E157)),VLOOKUP($E157-21,AllData,COLUMN()-6-COLUMN($E157)),VLOOKUP($E157-22,AllData,COLUMN()-6-COLUMN($E157)),VLOOKUP($E157-23,AllData,COLUMN()-6-COLUMN($E157)),VLOOKUP($E157-24,AllData,COLUMN()-6-COLUMN($E157)),VLOOKUP($E157-25,AllData,COLUMN()-6-COLUMN($E157)),VLOOKUP($E157-26,AllData,COLUMN()-6-COLUMN($E157)),VLOOKUP($E157-27,AllData,COLUMN()-6-COLUMN($E157)),VLOOKUP($E157-28,AllData,COLUMN()-6-COLUMN($E157)),VLOOKUP($E157-29,AllData,COLUMN()-6-COLUMN($E157)))","v":2926.3699999999994},{"$f":"VLOOKUP($E157,AllData,COLUMN()-7-COLUMN($E157))","v":70.3},{"$f":"OR('Cool Graph'!$I$1=35,'Cool Graph'!$I$1=36,'Cool Graph'!$I$1=37,'Cool Graph'!$I$1=38,'Cool Graph'!$I$1=39,'Cool Graph'!$I$1=40,'Cool Graph'!$I$1=41,'Cool Graph'!$I$1=42,'Cool Graph'!$I$1=43,'Cool Graph'!$I$1=44,'Cool Graph'!$I$1=45,'Cool Graph'!$I$1=46,'Cool Graph'!$I$1=47,'Cool Graph'!$I$1=58,'Cool Graph'!$I$1=66)","v":false}]
["2011-12-04",{"$f":"OFFSET(OldSchoolJustValues!A158,0,'Cool Graph'!$H$1)","v":88.16},{"$f":"OFFSET(OldSchoolJustValues!A158,0,'Cool Graph'!$I$1)","v":1132.4790198015687},null,{"$f":"IF(NewDate>EndDate,NA(),NewDate)","v":"2012-02-29"},{"$f":"IF($E158>EndDate,NA(),IF($K$2=TRUE,N158,IF('Cool Graph'!$B$17=1,N158,IF('Cool Graph'!$B$17=2,L158,IF('Cool Graph'!$B$17=3,M158,)))))","v":74.3},{"$f":"IF($E158>EndDate,NA(),IF($O$2=TRUE,J158,IF('Cool Graph'!$B$17=1,Data1!J158,IF('Cool Graph'!$B$17=2,Data1!H158,IF('Cool Graph'!$B$17=3,Data1!I158,)))))","v":664.17361617015024},{"$f":"SUM(VLOOKUP($E158,AllData,COLUMN()-COLUMN($E158)),VLOOKUP($E158-1,AllData,COLUMN()-COLUMN($E158)),VLOOKUP($E158-2,AllData,COLUMN()-COLUMN($E158)),VLOOKUP($E158-3,AllData,COLUMN()-COLUMN($E158)),VLOOKUP($E158-4,AllData,COLUMN()-COLUMN($E158)),VLOOKUP($E158-5,AllData,COLUMN()-COLUMN($E158)),VLOOKUP($E158-6,AllData,COLUMN()-COLUMN($E158)))","v":6085.9787733551029},{"$f":"SUM(VLOOKUP($E158,AllData,COLUMN()-1-COLUMN($E158)),VLOOKUP($E158-1,AllData,COLUMN()-1-COLUMN($E158)),VLOOKUP($E158-2,AllData,COLUMN()-1-COLUMN($E158)),VLOOKUP($E158-3,AllData,COLUMN()-1-COLUMN($E158)),VLOOKUP($E158-4,AllData,COLUMN()-1-COLUMN($E158)),VLOOKUP($E158-5,AllData,COLUMN()-1-COLUMN($E158)),VLOOKUP($E158-6,AllData,COLUMN()-1-COLUMN($E158)),VLOOKUP($E158-7,AllData,COLUMN()-1-COLUMN($E158)),VLOOKUP($E158-8,AllData,COLUMN()-1-COLUMN($E158)),VLOOKUP($E158-9,AllData,COLUMN()-1-COLUMN($E158)),VLOOKUP($E158-10,AllData,COLUMN()-1-COLUMN($E158)),VLOOKUP($E158-11,AllData,COLUMN()-1-COLUMN($E158)),VLOOKUP($E158-12,AllData,COLUMN()-1-COLUMN($E158)),VLOOKUP($E158-13,AllData,COLUMN()-1-COLUMN($E158)),VLOOKUP($E158-14,AllData,COLUMN()-1-COLUMN($E158)),VLOOKUP($E158-15,AllData,COLUMN()-1-COLUMN($E158)),VLOOKUP($E158-16,AllData,COLUMN()-1-COLUMN($E158)),VLOOKUP($E158-17,AllData,COLUMN()-1-COLUMN($E158)),VLOOKUP($E158-18,AllData,COLUMN()-1-COLUMN($E158)),VLOOKUP($E158-19,AllData,COLUMN()-1-COLUMN($E158)),VLOOKUP($E158-20,AllData,COLUMN()-1-COLUMN($E158)),VLOOKUP($E158-21,AllData,COLUMN()-1-COLUMN($E158)),VLOOKUP($E158-22,AllData,COLUMN()-1-COLUMN($E158)),VLOOKUP($E158-23,AllData,COLUMN()-1-COLUMN($E158)),VLOOKUP($E158-24,AllData,COLUMN()-1-COLUMN($E158)),VLOOKUP($E158-25,AllData,COLUMN()-1-COLUMN($E158)),VLOOKUP($E158-26,AllData,COLUMN()-1-COLUMN($E158)),VLOOKUP($E158-27,AllData,COLUMN()-1-COLUMN($E158)),VLOOKUP($E158-28,AllData,COLUMN()-1-COLUMN($E158)),VLOOKUP($E158-29,AllData,COLUMN()-1-COLUMN($E158)))","v":22913.525465483377},{"$f":"VLOOKUP($E158,AllData,COLUMN()-2-COLUMN($E158))","v":664.17361617015024},{"$f":"OR('Cool Graph'!$H$1=35,'Cool Graph'!$H$1=36,'Cool Graph'!$H$1=37,'Cool Graph'!$H$1=38,'Cool Graph'!$H$1=39,'Cool Graph'!$H$1=40,'Cool Graph'!$H$1=41,'Cool Graph'!$H$1=42,'Cool Graph'!$H$1=43,'Cool Graph'!$H$1=44,'Cool Graph'!$H$1=45,'Cool Graph'!$H$1=46,'Cool Graph'!$H$1=47,'Cool Graph'!$H$1=58,'Cool Graph'!$H$1=66)","v":false},{"$f":"SUM(VLOOKUP($E158,AllData,COLUMN()-5-COLUMN($E158)),VLOOKUP($E158-1,AllData,COLUMN()-5-COLUMN($E158)),VLOOKUP($E158-2,AllData,COLUMN()-5-COLUMN($E158)),VLOOKUP($E158-3,AllData,COLUMN()-5-COLUMN($E158)),VLOOKUP($E158-4,AllData,COLUMN()-5-COLUMN($E158)),VLOOKUP($E158-5,AllData,COLUMN()-5-COLUMN($E158)),VLOOKUP($E158-6,AllData,COLUMN()-5-COLUMN($E158)))","v":625.96},{"$f":"SUM(VLOOKUP($E158,AllData,COLUMN()-6-COLUMN($E158)),VLOOKUP($E158-1,AllData,COLUMN()-6-COLUMN($E158)),VLOOKUP($E158-2,AllData,COLUMN()-6-COLUMN($E158)),VLOOKUP($E158-3,AllData,COLUMN()-6-COLUMN($E158)),VLOOKUP($E158-4,AllData,COLUMN()-6-COLUMN($E158)),VLOOKUP($E158-5,AllData,COLUMN()-6-COLUMN($E158)),VLOOKUP($E158-6,AllData,COLUMN()-6-COLUMN($E158)),VLOOKUP($E158-7,AllData,COLUMN()-6-COLUMN($E158)),VLOOKUP($E158-8,AllData,COLUMN()-6-COLUMN($E158)),VLOOKUP($E158-9,AllData,COLUMN()-6-COLUMN($E158)),VLOOKUP($E158-10,AllData,COLUMN()-6-COLUMN($E158)),VLOOKUP($E158-11,AllData,COLUMN()-6-COLUMN($E158)),VLOOKUP($E158-12,AllData,COLUMN()-6-COLUMN($E158)),VLOOKUP($E158-13,AllData,COLUMN()-6-COLUMN($E158)),VLOOKUP($E158-14,AllData,COLUMN()-6-COLUMN($E158)),VLOOKUP($E158-15,AllData,COLUMN()-6-COLUMN($E158)),VLOOKUP($E158-16,AllData,COLUMN()-6-COLUMN($E158)),VLOOKUP($E158-17,AllData,COLUMN()-6-COLUMN($E158)),VLOOKUP($E158-18,AllData,COLUMN()-6-COLUMN($E158)),VLOOKUP($E158-19,AllData,COLUMN()-6-COLUMN($E158)),VLOOKUP($E158-20,AllData,COLUMN()-6-COLUMN($E158)),VLOOKUP($E158-21,AllData,COLUMN()-6-COLUMN($E158)),VLOOKUP($E158-22,AllData,COLUMN()-6-COLUMN($E158)),VLOOKUP($E158-23,AllData,COLUMN()-6-COLUMN($E158)),VLOOKUP($E158-24,AllData,COLUMN()-6-COLUMN($E158)),VLOOKUP($E158-25,AllData,COLUMN()-6-COLUMN($E158)),VLOOKUP($E158-26,AllData,COLUMN()-6-COLUMN($E158)),VLOOKUP($E158-27,AllData,COLUMN()-6-COLUMN($E158)),VLOOKUP($E158-28,AllData,COLUMN()-6-COLUMN($E158)),VLOOKUP($E158-29,AllData,COLUMN()-6-COLUMN($E158)))","v":2990.8899999999994},{"$f":"VLOOKUP($E158,AllData,COLUMN()-7-COLUMN($E158))","v":74.3},{"$f":"OR('Cool Graph'!$I$1=35,'Cool Graph'!$I$1=36,'Cool Graph'!$I$1=37,'Cool Graph'!$I$1=38,'Cool Graph'!$I$1=39,'Cool Graph'!$I$1=40,'Cool Graph'!$I$1=41,'Cool Graph'!$I$1=42,'Cool Graph'!$I$1=43,'Cool Graph'!$I$1=44,'Cool Graph'!$I$1=45,'Cool Graph'!$I$1=46,'Cool Graph'!$I$1=47,'Cool Graph'!$I$1=58,'Cool Graph'!$I$1=66)","v":false}]
["2011-12-05",{"$f":"OFFSET(OldSchoolJustValues!A159,0,'Cool Graph'!$H$1)","v":8.5399999999999991},{"$f":"OFFSET(OldSchoolJustValues!A159,0,'Cool Graph'!$I$1)","v":2385.8733160007228},null,{"$f":"IF(NewDate>EndDate,NA(),NewDate)","v":"2012-03-01"},{"$f":"IF($E159>EndDate,NA(),IF($K$2=TRUE,N159,IF('Cool Graph'!$B$17=1,N159,IF('Cool Graph'!$B$17=2,L159,IF('Cool Graph'!$B$17=3,M159,)))))","v":84.22},{"$f":"IF($E159>EndDate,NA(),IF($O$2=TRUE,J159,IF('Cool Graph'!$B$17=1,Data1!J159,IF('Cool Graph'!$B$17=2,Data1!H159,IF('Cool Graph'!$B$17=3,Data1!I159,)))))","v":946.51313630908237},{"$f":"SUM(VLOOKUP($E159,AllData,COLUMN()-COLUMN($E159)),VLOOKUP($E159-1,AllData,COLUMN()-COLUMN($E159)),VLOOKUP($E159-2,AllData,COLUMN()-COLUMN($E159)),VLOOKUP($E159-3,AllData,COLUMN()-COLUMN($E159)),VLOOKUP($E159-4,AllData,COLUMN()-COLUMN($E159)),VLOOKUP($E159-5,AllData,COLUMN()-COLUMN($E159)),VLOOKUP($E159-6,AllData,COLUMN()-COLUMN($E159)))","v":5939.9941944959364},{"$f":"SUM(VLOOKUP($E159,AllData,COLUMN()-1-COLUMN($E159)),VLOOKUP($E159-1,AllData,COLUMN()-1-COLUMN($E159)),VLOOKUP($E159-2,AllData,COLUMN()-1-COLUMN($E159)),VLOOKUP($E159-3,AllData,COLUMN()-1-COLUMN($E159)),VLOOKUP($E159-4,AllData,COLUMN()-1-COLUMN($E159)),VLOOKUP($E159-5,AllData,COLUMN()-1-COLUMN($E159)),VLOOKUP($E159-6,AllData,COLUMN()-1-COLUMN($E159)),VLOOKUP($E159-7,AllData,COLUMN()-1-COLUMN($E159)),VLOOKUP($E159-8,AllData,COLUMN()-1-COLUMN($E159)),VLOOKUP($E159-9,AllData,COLUMN()-1-COLUMN($E159)),VLOOKUP($E159-10,AllData,COLUMN()-1-COLUMN($E159)),VLOOKUP($E159-11,AllData,COLUMN()-1-COLUMN($E159)),VLOOKUP($E159-12,AllData,COLUMN()-1-COLUMN($E159)),VLOOKUP($E159-13,AllData,COLUMN()-1-COLUMN($E159)),VLOOKUP($E159-14,AllData,COLUMN()-1-COLUMN($E159)),VLOOKUP($E159-15,AllData,COLUMN()-1-COLUMN($E159)),VLOOKUP($E159-16,AllData,COLUMN()-1-COLUMN($E159)),VLOOKUP($E159-17,AllData,COLUMN()-1-COLUMN($E159)),VLOOKUP($E159-18,AllData,COLUMN()-1-COLUMN($E159)),VLOOKUP($E159-19,AllData,COLUMN()-1-COLUMN($E159)),VLOOKUP($E159-20,AllData,COLUMN()-1-COLUMN($E159)),VLOOKUP($E159-21,AllData,COLUMN()-1-COLUMN($E159)),VLOOKUP($E159-22,AllData,COLUMN()-1-COLUMN($E159)),VLOOKUP($E159-23,AllData,COLUMN()-1-COLUMN($E159)),VLOOKUP($E159-24,AllData,COLUMN()-1-COLUMN($E159)),VLOOKUP($E159-25,AllData,COLUMN()-1-COLUMN($E159)),VLOOKUP($E159-26,AllData,COLUMN()-1-COLUMN($E159)),VLOOKUP($E159-27,AllData,COLUMN()-1-COLUMN($E159)),VLOOKUP($E159-28,AllData,COLUMN()-1-COLUMN($E159)),VLOOKUP($E159-29,AllData,COLUMN()-1-COLUMN($E159)))","v":23507.787501555955},{"$f":"VLOOKUP($E159,AllData,COLUMN()-2-COLUMN($E159))","v":946.51313630908237},{"$f":"OR('Cool Graph'!$H$1=35,'Cool Graph'!$H$1=36,'Cool Graph'!$H$1=37,'Cool Graph'!$H$1=38,'Cool Graph'!$H$1=39,'Cool Graph'!$H$1=40,'Cool Graph'!$H$1=41,'Cool Graph'!$H$1=42,'Cool Graph'!$H$1=43,'Cool Graph'!$H$1=44,'Cool Graph'!$H$1=45,'Cool Graph'!$H$1=46,'Cool Graph'!$H$1=47,'Cool Graph'!$H$1=58,'Cool Graph'!$H$1=66)","v":false},{"$f":"SUM(VLOOKUP($E159,AllData,COLUMN()-5-COLUMN($E159)),VLOOKUP($E159-1,AllData,COLUMN()-5-COLUMN($E159)),VLOOKUP($E159-2,AllData,COLUMN()-5-COLUMN($E159)),VLOOKUP($E159-3,AllData,COLUMN()-5-COLUMN($E159)),VLOOKUP($E159-4,AllData,COLUMN()-5-COLUMN($E159)),VLOOKUP($E159-5,AllData,COLUMN()-5-COLUMN($E159)),VLOOKUP($E159-6,AllData,COLUMN()-5-COLUMN($E159)))","v":632.59000000000015},{"$f":"SUM(VLOOKUP($E159,AllData,COLUMN()-6-COLUMN($E159)),VLOOKUP($E159-1,AllData,COLUMN()-6-COLUMN($E159)),VLOOKUP($E159-2,AllData,COLUMN()-6-COLUMN($E159)),VLOOKUP($E159-3,AllData,COLUMN()-6-COLUMN($E159)),VLOOKUP($E159-4,AllData,COLUMN()-6-COLUMN($E159)),VLOOKUP($E159-5,AllData,COLUMN()-6-COLUMN($E159)),VLOOKUP($E159-6,AllData,COLUMN()-6-COLUMN($E159)),VLOOKUP($E159-7,AllData,COLUMN()-6-COLUMN($E159)),VLOOKUP($E159-8,AllData,COLUMN()-6-COLUMN($E159)),VLOOKUP($E159-9,AllData,COLUMN()-6-COLUMN($E159)),VLOOKUP($E159-10,AllData,COLUMN()-6-COLUMN($E159)),VLOOKUP($E159-11,AllData,COLUMN()-6-COLUMN($E159)),VLOOKUP($E159-12,AllData,COLUMN()-6-COLUMN($E159)),VLOOKUP($E159-13,AllData,COLUMN()-6-COLUMN($E159)),VLOOKUP($E159-14,AllData,COLUMN()-6-COLUMN($E159)),VLOOKUP($E159-15,AllData,COLUMN()-6-COLUMN($E159)),VLOOKUP($E159-16,AllData,COLUMN()-6-COLUMN($E159)),VLOOKUP($E159-17,AllData,COLUMN()-6-COLUMN($E159)),VLOOKUP($E159-18,AllData,COLUMN()-6-COLUMN($E159)),VLOOKUP($E159-19,AllData,COLUMN()-6-COLUMN($E159)),VLOOKUP($E159-20,AllData,COLUMN()-6-COLUMN($E159)),VLOOKUP($E159-21,AllData,COLUMN()-6-COLUMN($E159)),VLOOKUP($E159-22,AllData,COLUMN()-6-COLUMN($E159)),VLOOKUP($E159-23,AllData,COLUMN()-6-COLUMN($E159)),VLOOKUP($E159-24,AllData,COLUMN()-6-COLUMN($E159)),VLOOKUP($E159-25,AllData,COLUMN()-6-COLUMN($E159)),VLOOKUP($E159-26,AllData,COLUMN()-6-COLUMN($E159)),VLOOKUP($E159-27,AllData,COLUMN()-6-COLUMN($E159)),VLOOKUP($E159-28,AllData,COLUMN()-6-COLUMN($E159)),VLOOKUP($E159-29,AllData,COLUMN()-6-COLUMN($E159)))","v":3060.8099999999995},{"$f":"VLOOKUP($E159,AllData,COLUMN()-7-COLUMN($E159))","v":84.22},{"$f":"OR('Cool Graph'!$I$1=35,'Cool Graph'!$I$1=36,'Cool Graph'!$I$1=37,'Cool Graph'!$I$1=38,'Cool Graph'!$I$1=39,'Cool Graph'!$I$1=40,'Cool Graph'!$I$1=41,'Cool Graph'!$I$1=42,'Cool Graph'!$I$1=43,'Cool Graph'!$I$1=44,'Cool Graph'!$I$1=45,'Cool Graph'!$I$1=46,'Cool Graph'!$I$1=47,'Cool Graph'!$I$1=58,'Cool Graph'!$I$1=66)","v":false}]
["2011-12-06",{"$f":"OFFSET(OldSchoolJustValues!A160,0,'Cool Graph'!$H$1)","v":1.21},{"$f":"OFFSET(OldSchoolJustValues!A160,0,'Cool Graph'!$I$1)","v":1338.316348343395},null,{"$f":"IF(NewDate>EndDate,NA(),NewDate)","v":"2012-03-02"},{"$f":"IF($E160>EndDate,NA(),IF($K$2=TRUE,N160,IF('Cool Graph'!$B$17=1,N160,IF('Cool Graph'!$B$17=2,L160,IF('Cool Graph'!$B$17=3,M160,)))))","v":25.92},{"$f":"IF($E160>EndDate,NA(),IF($O$2=TRUE,J160,IF('Cool Graph'!$B$17=1,Data1!J160,IF('Cool Graph'!$B$17=2,Data1!H160,IF('Cool Graph'!$B$17=3,Data1!I160,)))))","v":561.75938693263038},{"$f":"SUM(VLOOKUP($E160,AllData,COLUMN()-COLUMN($E160)),VLOOKUP($E160-1,AllData,COLUMN()-COLUMN($E160)),VLOOKUP($E160-2,AllData,COLUMN()-COLUMN($E160)),VLOOKUP($E160-3,AllData,COLUMN()-COLUMN($E160)),VLOOKUP($E160-4,AllData,COLUMN()-COLUMN($E160)),VLOOKUP($E160-5,AllData,COLUMN()-COLUMN($E160)),VLOOKUP($E160-6,AllData,COLUMN()-COLUMN($E160)))","v":5731.4108928829219},{"$f":"SUM(VLOOKUP($E160,AllData,COLUMN()-1-COLUMN($E160)),VLOOKUP($E160-1,AllData,COLUMN()-1-COLUMN($E160)),VLOOKUP($E160-2,AllData,COLUMN()-1-COLUMN($E160)),VLOOKUP($E160-3,AllData,COLUMN()-1-COLUMN($E160)),VLOOKUP($E160-4,AllData,COLUMN()-1-COLUMN($E160)),VLOOKUP($E160-5,AllData,COLUMN()-1-COLUMN($E160)),VLOOKUP($E160-6,AllData,COLUMN()-1-COLUMN($E160)),VLOOKUP($E160-7,AllData,COLUMN()-1-COLUMN($E160)),VLOOKUP($E160-8,AllData,COLUMN()-1-COLUMN($E160)),VLOOKUP($E160-9,AllData,COLUMN()-1-COLUMN($E160)),VLOOKUP($E160-10,AllData,COLUMN()-1-COLUMN($E160)),VLOOKUP($E160-11,AllData,COLUMN()-1-COLUMN($E160)),VLOOKUP($E160-12,AllData,COLUMN()-1-COLUMN($E160)),VLOOKUP($E160-13,AllData,COLUMN()-1-COLUMN($E160)),VLOOKUP($E160-14,AllData,COLUMN()-1-COLUMN($E160)),VLOOKUP($E160-15,AllData,COLUMN()-1-COLUMN($E160)),VLOOKUP($E160-16,AllData,COLUMN()-1-COLUMN($E160)),VLOOKUP($E160-17,AllData,COLUMN()-1-COLUMN($E160)),VLOOKUP($E160-18,AllData,COLUMN()-1-COLUMN($E160)),VLOOKUP($E160-19,AllData,COLUMN()-1-COLUMN($E160)),VLOOKUP($E160-20,AllData,COLUMN()-1-COLUMN($E160)),VLOOKUP($E160-21,AllData,COLUMN()-1-COLUMN($E160)),VLOOKUP($E160-22,AllData,COLUMN()-1-COLUMN($E160)),VLOOKUP($E160-23,AllData,COLUMN()-1-COLUMN($E160)),VLOOKUP($E160-24,AllData,COLUMN()-1-COLUMN($E160)),VLOOKUP($E160-25,AllData,COLUMN()-1-COLUMN($E160)),VLOOKUP($E160-26,AllData,COLUMN()-1-COLUMN($E160)),VLOOKUP($E160-27,AllData,COLUMN()-1-COLUMN($E160)),VLOOKUP($E160-28,AllData,COLUMN()-1-COLUMN($E160)),VLOOKUP($E160-29,AllData,COLUMN()-1-COLUMN($E160)))","v":23754.536329830087},{"$f":"VLOOKUP($E160,AllData,COLUMN()-2-COLUMN($E160))","v":561.75938693263038},{"$f":"OR('Cool Graph'!$H$1=35,'Cool Graph'!$H$1=36,'Cool Graph'!$H$1=37,'Cool Graph'!$H$1=38,'Cool Graph'!$H$1=39,'Cool Graph'!$H$1=40,'Cool Graph'!$H$1=41,'Cool Graph'!$H$1=42,'Cool Graph'!$H$1=43,'Cool Graph'!$H$1=44,'Cool Graph'!$H$1=45,'Cool Graph'!$H$1=46,'Cool Graph'!$H$1=47,'Cool Graph'!$H$1=58,'Cool Graph'!$H$1=66)","v":false},{"$f":"SUM(VLOOKUP($E160,AllData,COLUMN()-5-COLUMN($E160)),VLOOKUP($E160-1,AllData,COLUMN()-5-COLUMN($E160)),VLOOKUP($E160-2,AllData,COLUMN()-5-COLUMN($E160)),VLOOKUP($E160-3,AllData,COLUMN()-5-COLUMN($E160)),VLOOKUP($E160-4,AllData,COLUMN()-5-COLUMN($E160)),VLOOKUP($E160-5,AllData,COLUMN()-5-COLUMN($E160)),VLOOKUP($E160-6,AllData,COLUMN()-5-COLUMN($E160)))","v":540.54999999999995},{"$f":"SUM(VLOOKUP($E160,AllData,COLUMN()-6-COLUMN($E160)),VLOOKUP($E160-1,AllData,COLUMN()-6-COLUMN($E160)),VLOOKUP($E160-2,AllData,COLUMN()-6-COLUMN($E160)),VLOOKUP($E160-3,AllData,COLUMN()-6-COLUMN($E160)),VLOOKUP($E160-4,AllData,COLUMN()-6-COLUMN($E160)),VLOOKUP($E160-5,AllData,COLUMN()-6-COLUMN($E160)),VLOOKUP($E160-6,AllData,COLUMN()-6-COLUMN($E160)),VLOOKUP($E160-7,AllData,COLUMN()-6-COLUMN($E160)),VLOOKUP($E160-8,AllData,COLUMN()-6-COLUMN($E160)),VLOOKUP($E160-9,AllData,COLUMN()-6-COLUMN($E160)),VLOOKUP($E160-10,AllData,COLUMN()-6-COLUMN($E160)),VLOOKUP($E160-11,AllData,COLUMN()-6-COLUMN($E160)),VLOOKUP($E160-12,AllData,COLUMN()-6-COLUMN($E160)),VLOOKUP($E160-13,AllData,COLUMN()-6-COLUMN($E160)),VLOOKUP($E160-14,AllData,COLUMN()-6-COLUMN($E160)),VLOOKUP($E160-15,AllData,COLUMN()-6-COLUMN($E160)),VLOOKUP($E160-16,AllData,COLUMN()-6-COLUMN($E160)),VLOOKUP($E160-17,AllData,COLUMN()-6-COLUMN($E160)),VLOOKUP($E160-18,AllData,COLUMN()-6-COLUMN($E160)),VLOOKUP($E160-19,AllData,COLUMN()-6-COLUMN($E160)),VLOOKUP($E160-20,AllData,COLUMN()-6-COLUMN($E160)),VLOOKUP($E160-21,AllData,COLUMN()-6-COLUMN($E160)),VLOOKUP($E160-22,AllData,COLUMN()-6-COLUMN($E160)),VLOOKUP($E160-23,AllData,COLUMN()-6-COLUMN($E160)),VLOOKUP($E160-24,AllData,COLUMN()-6-COLUMN($E160)),VLOOKUP($E160-25,AllData,COLUMN()-6-COLUMN($E160)),VLOOKUP($E160-26,AllData,COLUMN()-6-COLUMN($E160)),VLOOKUP($E160-27,AllData,COLUMN()-6-COLUMN($E160)),VLOOKUP($E160-28,AllData,COLUMN()-6-COLUMN($E160)),VLOOKUP($E160-29,AllData,COLUMN()-6-COLUMN($E160)))","v":3077.9199999999996},{"$f":"VLOOKUP($E160,AllData,COLUMN()-7-COLUMN($E160))","v":25.92},{"$f":"OR('Cool Graph'!$I$1=35,'Cool Graph'!$I$1=36,'Cool Graph'!$I$1=37,'Cool Graph'!$I$1=38,'Cool Graph'!$I$1=39,'Cool Graph'!$I$1=40,'Cool Graph'!$I$1=41,'Cool Graph'!$I$1=42,'Cool Graph'!$I$1=43,'Cool Graph'!$I$1=44,'Cool Graph'!$I$1=45,'Cool Graph'!$I$1=46,'Cool Graph'!$I$1=47,'Cool Graph'!$I$1=58,'Cool Graph'!$I$1=66)","v":false}]
["2011-12-07",{"$f":"OFFSET(OldSchoolJustValues!A161,0,'Cool Graph'!$H$1)","v":88.83},{"$f":"OFFSET(OldSchoolJustValues!A161,0,'Cool Graph'!$I$1)","v":462.07180900603691},null,{"$f":"IF(NewDate>EndDate,NA(),NewDate)","v":"2012-03-03"},{"$f":"IF($E161>EndDate,NA(),IF($K$2=TRUE,N161,IF('Cool Graph'!$B$17=1,N161,IF('Cool Graph'!$B$17=2,L161,IF('Cool Graph'!$B$17=3,M161,)))))","v":32.75},{"$f":"IF($E161>EndDate,NA(),IF($O$2=TRUE,J161,IF('Cool Graph'!$B$17=1,Data1!J161,IF('Cool Graph'!$B$17=2,Data1!H161,IF('Cool Graph'!$B$17=3,Data1!I161,)))))","v":263.04453750241038},{"$f":"SUM(VLOOKUP($E161,AllData,COLUMN()-COLUMN($E161)),VLOOKUP($E161-1,AllData,COLUMN()-COLUMN($E161)),VLOOKUP($E161-2,AllData,COLUMN()-COLUMN($E161)),VLOOKUP($E161-3,AllData,COLUMN()-COLUMN($E161)),VLOOKUP($E161-4,AllData,COLUMN()-COLUMN($E161)),VLOOKUP($E161-5,AllData,COLUMN()-COLUMN($E161)),VLOOKUP($E161-6,AllData,COLUMN()-COLUMN($E161)))","v":4982.3968249349073},{"$f":"SUM(VLOOKUP($E161,AllData,COLUMN()-1-COLUMN($E161)),VLOOKUP($E161-1,AllData,COLUMN()-1-COLUMN($E161)),VLOOKUP($E161-2,AllData,COLUMN()-1-COLUMN($E161)),VLOOKUP($E161-3,AllData,COLUMN()-1-COLUMN($E161)),VLOOKUP($E161-4,AllData,COLUMN()-1-COLUMN($E161)),VLOOKUP($E161-5,AllData,COLUMN()-1-COLUMN($E161)),VLOOKUP($E161-6,AllData,COLUMN()-1-COLUMN($E161)),VLOOKUP($E161-7,AllData,COLUMN()-1-COLUMN($E161)),VLOOKUP($E161-8,AllData,COLUMN()-1-COLUMN($E161)),VLOOKUP($E161-9,AllData,COLUMN()-1-COLUMN($E161)),VLOOKUP($E161-10,AllData,COLUMN()-1-COLUMN($E161)),VLOOKUP($E161-11,AllData,COLUMN()-1-COLUMN($E161)),VLOOKUP($E161-12,AllData,COLUMN()-1-COLUMN($E161)),VLOOKUP($E161-13,AllData,COLUMN()-1-COLUMN($E161)),VLOOKUP($E161-14,AllData,COLUMN()-1-COLUMN($E161)),VLOOKUP($E161-15,AllData,COLUMN()-1-COLUMN($E161)),VLOOKUP($E161-16,AllData,COLUMN()-1-COLUMN($E161)),VLOOKUP($E161-17,AllData,COLUMN()-1-COLUMN($E161)),VLOOKUP($E161-18,AllData,COLUMN()-1-COLUMN($E161)),VLOOKUP($E161-19,AllData,COLUMN()-1-COLUMN($E161)),VLOOKUP($E161-20,AllData,COLUMN()-1-COLUMN($E161)),VLOOKUP($E161-21,AllData,COLUMN()-1-COLUMN($E161)),VLOOKUP($E161-22,AllData,COLUMN()-1-COLUMN($E161)),VLOOKUP($E161-23,AllData,COLUMN()-1-COLUMN($E161)),VLOOKUP($E161-24,AllData,COLUMN()-1-COLUMN($E161)),VLOOKUP($E161-25,AllData,COLUMN()-1-COLUMN($E161)),VLOOKUP($E161-26,AllData,COLUMN()-1-COLUMN($E161)),VLOOKUP($E161-27,AllData,COLUMN()-1-COLUMN($E161)),VLOOKUP($E161-28,AllData,COLUMN()-1-COLUMN($E161)),VLOOKUP($E161-29,AllData,COLUMN()-1-COLUMN($E161)))","v":23084.998969925378},{"$f":"VLOOKUP($E161,AllData,COLUMN()-2-COLUMN($E161))","v":263.04453750241038},{"$f":"OR('Cool Graph'!$H$1=35,'Cool Graph'!$H$1=36,'Cool Graph'!$H$1=37,'Cool Graph'!$H$1=38,'Cool Graph'!$H$1=39,'Cool Graph'!$H$1=40,'Cool Graph'!$H$1=41,'Cool Graph'!$H$1=42,'Cool Graph'!$H$1=43,'Cool Graph'!$H$1=44,'Cool Graph'!$H$1=45,'Cool Graph'!$H$1=46,'Cool Graph'!$H$1=47,'Cool Graph'!$H$1=58,'Cool Graph'!$H$1=66)","v":false},{"$f":"SUM(VLOOKUP($E161,AllData,COLUMN()-5-COLUMN($E161)),VLOOKUP($E161-1,AllData,COLUMN()-5-COLUMN($E161)),VLOOKUP($E161-2,AllData,COLUMN()-5-COLUMN($E161)),VLOOKUP($E161-3,AllData,COLUMN()-5-COLUMN($E161)),VLOOKUP($E161-4,AllData,COLUMN()-5-COLUMN($E161)),VLOOKUP($E161-5,AllData,COLUMN()-5-COLUMN($E161)),VLOOKUP($E161-6,AllData,COLUMN()-5-COLUMN($E161)))","v":464.23},{"$f":"SUM(VLOOKUP($E161,AllData,COLUMN()-6-COLUMN($E161)),VLOOKUP($E161-1,AllData,COLUMN()-6-COLUMN($E161)),VLOOKUP($E161-2,AllData,COLUMN()-6-COLUMN($E161)),VLOOKUP($E161-3,AllData,COLUMN()-6-COLUMN($E161)),VLOOKUP($E161-4,AllData,COLUMN()-6-COLUMN($E161)),VLOOKUP($E161-5,AllData,COLUMN()-6-COLUMN($E161)),VLOOKUP($E161-6,AllData,COLUMN()-6-COLUMN($E161)),VLOOKUP($E161-7,AllData,COLUMN()-6-COLUMN($E161)),VLOOKUP($E161-8,AllData,COLUMN()-6-COLUMN($E161)),VLOOKUP($E161-9,AllData,COLUMN()-6-COLUMN($E161)),VLOOKUP($E161-10,AllData,COLUMN()-6-COLUMN($E161)),VLOOKUP($E161-11,AllData,COLUMN()-6-COLUMN($E161)),VLOOKUP($E161-12,AllData,COLUMN()-6-COLUMN($E161)),VLOOKUP($E161-13,AllData,COLUMN()-6-COLUMN($E161)),VLOOKUP($E161-14,AllData,COLUMN()-6-COLUMN($E161)),VLOOKUP($E161-15,AllData,COLUMN()-6-COLUMN($E161)),VLOOKUP($E161-16,AllData,COLUMN()-6-COLUMN($E161)),VLOOKUP($E161-17,AllData,COLUMN()-6-COLUMN($E161)),VLOOKUP($E161-18,AllData,COLUMN()-6-COLUMN($E161)),VLOOKUP($E161-19,AllData,COLUMN()-6-COLUMN($E161)),VLOOKUP($E161-20,AllData,COLUMN()-6-COLUMN($E161)),VLOOKUP($E161-21,AllData,COLUMN()-6-COLUMN($E161)),VLOOKUP($E161-22,AllData,COLUMN()-6-COLUMN($E161)),VLOOKUP($E161-23,AllData,COLUMN()-6-COLUMN($E161)),VLOOKUP($E161-24,AllData,COLUMN()-6-COLUMN($E161)),VLOOKUP($E161-25,AllData,COLUMN()-6-COLUMN($E161)),VLOOKUP($E161-26,AllData,COLUMN()-6-COLUMN($E161)),VLOOKUP($E161-27,AllData,COLUMN()-6-COLUMN($E161)),VLOOKUP($E161-28,AllData,COLUMN()-6-COLUMN($E161)),VLOOKUP($E161-29,AllData,COLUMN()-6-COLUMN($E161)))","v":3031.4599999999996},{"$f":"VLOOKUP($E161,AllData,COLUMN()-7-COLUMN($E161))","v":32.75},{"$f":"OR('Cool Graph'!$I$1=35,'Cool Graph'!$I$1=36,'Cool Graph'!$I$1=37,'Cool Graph'!$I$1=38,'Cool Graph'!$I$1=39,'Cool Graph'!$I$1=40,'Cool Graph'!$I$1=41,'Cool Graph'!$I$1=42,'Cool Graph'!$I$1=43,'Cool Graph'!$I$1=44,'Cool Graph'!$I$1=45,'Cool Graph'!$I$1=46,'Cool Graph'!$I$1=47,'Cool Graph'!$I$1=58,'Cool Graph'!$I$1=66)","v":false}]
["2011-12-08",{"$f":"OFFSET(OldSchoolJustValues!A162,0,'Cool Graph'!$H$1)","v":50.45},{"$f":"OFFSET(OldSchoolJustValues!A162,0,'Cool Graph'!$I$1)","v":549.62314473512379},null,{"$f":"IF(NewDate>EndDate,NA(),NewDate)","v":"2012-03-04"},{"$f":"IF($E162>EndDate,NA(),IF($K$2=TRUE,N162,IF('Cool Graph'!$B$17=1,N162,IF('Cool Graph'!$B$17=2,L162,IF('Cool Graph'!$B$17=3,M162,)))))","v":85.71},{"$f":"IF($E162>EndDate,NA(),IF($O$2=TRUE,J162,IF('Cool Graph'!$B$17=1,Data1!J162,IF('Cool Graph'!$B$17=2,Data1!H162,IF('Cool Graph'!$B$17=3,Data1!I162,)))))","v":634.22256555464946},{"$f":"SUM(VLOOKUP($E162,AllData,COLUMN()-COLUMN($E162)),VLOOKUP($E162-1,AllData,COLUMN()-COLUMN($E162)),VLOOKUP($E162-2,AllData,COLUMN()-COLUMN($E162)),VLOOKUP($E162-3,AllData,COLUMN()-COLUMN($E162)),VLOOKUP($E162-4,AllData,COLUMN()-COLUMN($E162)),VLOOKUP($E162-5,AllData,COLUMN()-COLUMN($E162)),VLOOKUP($E162-6,AllData,COLUMN()-COLUMN($E162)))","v":4750.070718871877},{"$f":"SUM(VLOOKUP($E162,AllData,COLUMN()-1-COLUMN($E162)),VLOOKUP($E162-1,AllData,COLUMN()-1-COLUMN($E162)),VLOOKUP($E162-2,AllData,COLUMN()-1-COLUMN($E162)),VLOOKUP($E162-3,AllData,COLUMN()-1-COLUMN($E162)),VLOOKUP($E162-4,AllData,COLUMN()-1-COLUMN($E162)),VLOOKUP($E162-5,AllData,COLUMN()-1-COLUMN($E162)),VLOOKUP($E162-6,AllData,COLUMN()-1-COLUMN($E162)),VLOOKUP($E162-7,AllData,COLUMN()-1-COLUMN($E162)),VLOOKUP($E162-8,AllData,COLUMN()-1-COLUMN($E162)),VLOOKUP($E162-9,AllData,COLUMN()-1-COLUMN($E162)),VLOOKUP($E162-10,AllData,COLUMN()-1-COLUMN($E162)),VLOOKUP($E162-11,AllData,COLUMN()-1-COLUMN($E162)),VLOOKUP($E162-12,AllData,COLUMN()-1-COLUMN($E162)),VLOOKUP($E162-13,AllData,COLUMN()-1-COLUMN($E162)),VLOOKUP($E162-14,AllData,COLUMN()-1-COLUMN($E162)),VLOOKUP($E162-15,AllData,COLUMN()-1-COLUMN($E162)),VLOOKUP($E162-16,AllData,COLUMN()-1-COLUMN($E162)),VLOOKUP($E162-17,AllData,COLUMN()-1-COLUMN($E162)),VLOOKUP($E162-18,AllData,COLUMN()-1-COLUMN($E162)),VLOOKUP($E162-19,AllData,COLUMN()-1-COLUMN($E162)),VLOOKUP($E162-20,AllData,COLUMN()-1-COLUMN($E162)),VLOOKUP($E162-21,AllData,COLUMN()-1-COLUMN($E162)),VLOOKUP($E162-22,AllData,COLUMN()-1-COLUMN($E162)),VLOOKUP($E162-23,AllData,COLUMN()-1-COLUMN($E162)),VLOOKUP($E162-24,AllData,COLUMN()-1-COLUMN($E162)),VLOOKUP($E162-25,AllData,COLUMN()-1-COLUMN($E162)),VLOOKUP($E162-26,AllData,COLUMN()-1-COLUMN($E162)),VLOOKUP($E162-27,AllData,COLUMN()-1-COLUMN($E162)),VLOOKUP($E162-28,AllData,COLUMN()-1-COLUMN($E162)),VLOOKUP($E162-29,AllData,COLUMN()-1-COLUMN($E162)))","v":23472.405660413584},{"$f":"VLOOKUP($E162,AllData,COLUMN()-2-COLUMN($E162))","v":634.22256555464946},{"$f":"OR('Cool Graph'!$H$1=35,'Cool Graph'!$H$1=36,'Cool Graph'!$H$1=37,'Cool Graph'!$H$1=38,'Cool Graph'!$H$1=39,'Cool Graph'!$H$1=40,'Cool Graph'!$H$1=41,'Cool Graph'!$H$1=42,'Cool Graph'!$H$1=43,'Cool Graph'!$H$1=44,'Cool Graph'!$H$1=45,'Cool Graph'!$H$1=46,'Cool Graph'!$H$1=47,'Cool Graph'!$H$1=58,'Cool Graph'!$H$1=66)","v":false},{"$f":"SUM(VLOOKUP($E162,AllData,COLUMN()-5-COLUMN($E162)),VLOOKUP($E162-1,AllData,COLUMN()-5-COLUMN($E162)),VLOOKUP($E162-2,AllData,COLUMN()-5-COLUMN($E162)),VLOOKUP($E162-3,AllData,COLUMN()-5-COLUMN($E162)),VLOOKUP($E162-4,AllData,COLUMN()-5-COLUMN($E162)),VLOOKUP($E162-5,AllData,COLUMN()-5-COLUMN($E162)),VLOOKUP($E162-6,AllData,COLUMN()-5-COLUMN($E162)))","v":461.85},{"$f":"SUM(VLOOKUP($E162,AllData,COLUMN()-6-COLUMN($E162)),VLOOKUP($E162-1,AllData,COLUMN()-6-COLUMN($E162)),VLOOKUP($E162-2,AllData,COLUMN()-6-COLUMN($E162)),VLOOKUP($E162-3,AllData,COLUMN()-6-COLUMN($E162)),VLOOKUP($E162-4,AllData,COLUMN()-6-COLUMN($E162)),VLOOKUP($E162-5,AllData,COLUMN()-6-COLUMN($E162)),VLOOKUP($E162-6,AllData,COLUMN()-6-COLUMN($E162)),VLOOKUP($E162-7,AllData,COLUMN()-6-COLUMN($E162)),VLOOKUP($E162-8,AllData,COLUMN()-6-COLUMN($E162)),VLOOKUP($E162-9,AllData,COLUMN()-6-COLUMN($E162)),VLOOKUP($E162-10,AllData,COLUMN()-6-COLUMN($E162)),VLOOKUP($E162-11,AllData,COLUMN()-6-COLUMN($E162)),VLOOKUP($E162-12,AllData,COLUMN()-6-COLUMN($E162)),VLOOKUP($E162-13,AllData,COLUMN()-6-COLUMN($E162)),VLOOKUP($E162-14,AllData,COLUMN()-6-COLUMN($E162)),VLOOKUP($E162-15,AllData,COLUMN()-6-COLUMN($E162)),VLOOKUP($E162-16,AllData,COLUMN()-6-COLUMN($E162)),VLOOKUP($E162-17,AllData,COLUMN()-6-COLUMN($E162)),VLOOKUP($E162-18,AllData,COLUMN()-6-COLUMN($E162)),VLOOKUP($E162-19,AllData,COLUMN()-6-COLUMN($E162)),VLOOKUP($E162-20,AllData,COLUMN()-6-COLUMN($E162)),VLOOKUP($E162-21,AllData,COLUMN()-6-COLUMN($E162)),VLOOKUP($E162-22,AllData,COLUMN()-6-COLUMN($E162)),VLOOKUP($E162-23,AllData,COLUMN()-6-COLUMN($E162)),VLOOKUP($E162-24,AllData,COLUMN()-6-COLUMN($E162)),VLOOKUP($E162-25,AllData,COLUMN()-6-COLUMN($E162)),VLOOKUP($E162-26,AllData,COLUMN()-6-COLUMN($E162)),VLOOKUP($E162-27,AllData,COLUMN()-6-COLUMN($E162)),VLOOKUP($E162-28,AllData,COLUMN()-6-COLUMN($E162)),VLOOKUP($E162-29,AllData,COLUMN()-6-COLUMN($E162)))","v":3061.3599999999997},{"$f":"VLOOKUP($E162,AllData,COLUMN()-7-COLUMN($E162))","v":85.71},{"$f":"OR('Cool Graph'!$I$1=35,'Cool Graph'!$I$1=36,'Cool Graph'!$I$1=37,'Cool Graph'!$I$1=38,'Cool Graph'!$I$1=39,'Cool Graph'!$I$1=40,'Cool Graph'!$I$1=41,'Cool Graph'!$I$1=42,'Cool Graph'!$I$1=43,'Cool Graph'!$I$1=44,'Cool Graph'!$I$1=45,'Cool Graph'!$I$1=46,'Cool Graph'!$I$1=47,'Cool Graph'!$I$1=58,'Cool Graph'!$I$1=66)","v":false}]
["2011-12-09",{"$f":"OFFSET(OldSchoolJustValues!A163,0,'Cool Graph'!$H$1)","v":99.68},{"$f":"OFFSET(OldSchoolJustValues!A163,0,'Cool Graph'!$I$1)","v":715.53296047006711},null,{"$f":"IF(NewDate>EndDate,NA(),NewDate)","v":"2012-03-05"},{"$f":"IF($E163>EndDate,NA(),IF($K$2=TRUE,N163,IF('Cool Graph'!$B$17=1,N163,IF('Cool Graph'!$B$17=2,L163,IF('Cool Graph'!$B$17=3,M163,)))))","v":44.82},{"$f":"IF($E163>EndDate,NA(),IF($O$2=TRUE,J163,IF('Cool Graph'!$B$17=1,Data1!J163,IF('Cool Graph'!$B$17=2,Data1!H163,IF('Cool Graph'!$B$17=3,Data1!I163,)))))","v":1582.5332306965888},{"$f":"SUM(VLOOKUP($E163,AllData,COLUMN()-COLUMN($E163)),VLOOKUP($E163-1,AllData,COLUMN()-COLUMN($E163)),VLOOKUP($E163-2,AllData,COLUMN()-COLUMN($E163)),VLOOKUP($E163-3,AllData,COLUMN()-COLUMN($E163)),VLOOKUP($E163-4,AllData,COLUMN()-COLUMN($E163)),VLOOKUP($E163-5,AllData,COLUMN()-COLUMN($E163)),VLOOKUP($E163-6,AllData,COLUMN()-COLUMN($E163)))","v":5132.6029938468046},{"$f":"SUM(VLOOKUP($E163,AllData,COLUMN()-1-COLUMN($E163)),VLOOKUP($E163-1,AllData,COLUMN()-1-COLUMN($E163)),VLOOKUP($E163-2,AllData,COLUMN()-1-COLUMN($E163)),VLOOKUP($E163-3,AllData,COLUMN()-1-COLUMN($E163)),VLOOKUP($E163-4,AllData,COLUMN()-1-COLUMN($E163)),VLOOKUP($E163-5,AllData,COLUMN()-1-COLUMN($E163)),VLOOKUP($E163-6,AllData,COLUMN()-1-COLUMN($E163)),VLOOKUP($E163-7,AllData,COLUMN()-1-COLUMN($E163)),VLOOKUP($E163-8,AllData,COLUMN()-1-COLUMN($E163)),VLOOKUP($E163-9,AllData,COLUMN()-1-COLUMN($E163)),VLOOKUP($E163-10,AllData,COLUMN()-1-COLUMN($E163)),VLOOKUP($E163-11,AllData,COLUMN()-1-COLUMN($E163)),VLOOKUP($E163-12,AllData,COLUMN()-1-COLUMN($E163)),VLOOKUP($E163-13,AllData,COLUMN()-1-COLUMN($E163)),VLOOKUP($E163-14,AllData,COLUMN()-1-COLUMN($E163)),VLOOKUP($E163-15,AllData,COLUMN()-1-COLUMN($E163)),VLOOKUP($E163-16,AllData,COLUMN()-1-COLUMN($E163)),VLOOKUP($E163-17,AllData,COLUMN()-1-COLUMN($E163)),VLOOKUP($E163-18,AllData,COLUMN()-1-COLUMN($E163)),VLOOKUP($E163-19,AllData,COLUMN()-1-COLUMN($E163)),VLOOKUP($E163-20,AllData,COLUMN()-1-COLUMN($E163)),VLOOKUP($E163-21,AllData,COLUMN()-1-COLUMN($E163)),VLOOKUP($E163-22,AllData,COLUMN()-1-COLUMN($E163)),VLOOKUP($E163-23,AllData,COLUMN()-1-COLUMN($E163)),VLOOKUP($E163-24,AllData,COLUMN()-1-COLUMN($E163)),VLOOKUP($E163-25,AllData,COLUMN()-1-COLUMN($E163)),VLOOKUP($E163-26,AllData,COLUMN()-1-COLUMN($E163)),VLOOKUP($E163-27,AllData,COLUMN()-1-COLUMN($E163)),VLOOKUP($E163-28,AllData,COLUMN()-1-COLUMN($E163)),VLOOKUP($E163-29,AllData,COLUMN()-1-COLUMN($E163)))","v":24536.848238415674},{"$f":"VLOOKUP($E163,AllData,COLUMN()-2-COLUMN($E163))","v":1582.5332306965888},{"$f":"OR('Cool Graph'!$H$1=35,'Cool Graph'!$H$1=36,'Cool Graph'!$H$1=37,'Cool Graph'!$H$1=38,'Cool Graph'!$H$1=39,'Cool Graph'!$H$1=40,'Cool Graph'!$H$1=41,'Cool Graph'!$H$1=42,'Cool Graph'!$H$1=43,'Cool Graph'!$H$1=44,'Cool Graph'!$H$1=45,'Cool Graph'!$H$1=46,'Cool Graph'!$H$1=47,'Cool Graph'!$H$1=58,'Cool Graph'!$H$1=66)","v":false},{"$f":"SUM(VLOOKUP($E163,AllData,COLUMN()-5-COLUMN($E163)),VLOOKUP($E163-1,AllData,COLUMN()-5-COLUMN($E163)),VLOOKUP($E163-2,AllData,COLUMN()-5-COLUMN($E163)),VLOOKUP($E163-3,AllData,COLUMN()-5-COLUMN($E163)),VLOOKUP($E163-4,AllData,COLUMN()-5-COLUMN($E163)),VLOOKUP($E163-5,AllData,COLUMN()-5-COLUMN($E163)),VLOOKUP($E163-6,AllData,COLUMN()-5-COLUMN($E163)))","v":418.02},{"$f":"SUM(VLOOKUP($E163,AllData,COLUMN()-6-COLUMN($E163)),VLOOKUP($E163-1,AllData,COLUMN()-6-COLUMN($E163)),VLOOKUP($E163-2,AllData,COLUMN()-6-COLUMN($E163)),VLOOKUP($E163-3,AllData,COLUMN()-6-COLUMN($E163)),VLOOKUP($E163-4,AllData,COLUMN()-6-COLUMN($E163)),VLOOKUP($E163-5,AllData,COLUMN()-6-COLUMN($E163)),VLOOKUP($E163-6,AllData,COLUMN()-6-COLUMN($E163)),VLOOKUP($E163-7,AllData,COLUMN()-6-COLUMN($E163)),VLOOKUP($E163-8,AllData,COLUMN()-6-COLUMN($E163)),VLOOKUP($E163-9,AllData,COLUMN()-6-COLUMN($E163)),VLOOKUP($E163-10,AllData,COLUMN()-6-COLUMN($E163)),VLOOKUP($E163-11,AllData,COLUMN()-6-COLUMN($E163)),VLOOKUP($E163-12,AllData,COLUMN()-6-COLUMN($E163)),VLOOKUP($E163-13,AllData,COLUMN()-6-COLUMN($E163)),VLOOKUP($E163-14,AllData,COLUMN()-6-COLUMN($E163)),VLOOKUP($E163-15,AllData,COLUMN()-6-COLUMN($E163)),VLOOKUP($E163-16,AllData,COLUMN()-6-COLUMN($E163)),VLOOKUP($E163-17,AllData,COLUMN()-6-COLUMN($E163)),VLOOKUP($E163-18,AllData,COLUMN()-6-COLUMN($E163)),VLOOKUP($E163-19,AllData,COLUMN()-6-COLUMN($E163)),VLOOKUP($E163-20,AllData,COLUMN()-6-COLUMN($E163)),VLOOKUP($E163-21,AllData,COLUMN()-6-COLUMN($E163)),VLOOKUP($E163-22,AllData,COLUMN()-6-COLUMN($E163)),VLOOKUP($E163-23,AllData,COLUMN()-6-COLUMN($E163)),VLOOKUP($E163-24,AllData,COLUMN()-6-COLUMN($E163)),VLOOKUP($E163-25,AllData,COLUMN()-6-COLUMN($E163)),VLOOKUP($E163-26,AllData,COLUMN()-6-COLUMN($E163)),VLOOKUP($E163-27,AllData,COLUMN()-6-COLUMN($E163)),VLOOKUP($E163-28,AllData,COLUMN()-6-COLUMN($E163)),VLOOKUP($E163-29,AllData,COLUMN()-6-COLUMN($E163)))","v":2995.7099999999996},{"$f":"VLOOKUP($E163,AllData,COLUMN()-7-COLUMN($E163))","v":44.82},{"$f":"OR('Cool Graph'!$I$1=35,'Cool Graph'!$I$1=36,'Cool Graph'!$I$1=37,'Cool Graph'!$I$1=38,'Cool Graph'!$I$1=39,'Cool Graph'!$I$1=40,'Cool Graph'!$I$1=41,'Cool Graph'!$I$1=42,'Cool Graph'!$I$1=43,'Cool Graph'!$I$1=44,'Cool Graph'!$I$1=45,'Cool Graph'!$I$1=46,'Cool Graph'!$I$1=47,'Cool Graph'!$I$1=58,'Cool Graph'!$I$1=66)","v":false}]
["2011-12-10",{"$f":"OFFSET(OldSchoolJustValues!A164,0,'Cool Graph'!$H$1)","v":100},{"$f":"OFFSET(OldSchoolJustValues!A164,0,'Cool Graph'!$I$1)","v":992.01659912721402},null,{"$f":"IF(NewDate>EndDate,NA(),NewDate)","v":"2012-03-06"},{"$f":"IF($E164>EndDate,NA(),IF($K$2=TRUE,N164,IF('Cool Graph'!$B$17=1,N164,IF('Cool Graph'!$B$17=2,L164,IF('Cool Graph'!$B$17=3,M164,)))))","v":17.190000000000001},{"$f":"IF($E164>EndDate,NA(),IF($O$2=TRUE,J164,IF('Cool Graph'!$B$17=1,Data1!J164,IF('Cool Graph'!$B$17=2,Data1!H164,IF('Cool Graph'!$B$17=3,Data1!I164,)))))","v":467.04276864378409},{"$f":"SUM(VLOOKUP($E164,AllData,COLUMN()-COLUMN($E164)),VLOOKUP($E164-1,AllData,COLUMN()-COLUMN($E164)),VLOOKUP($E164-2,AllData,COLUMN()-COLUMN($E164)),VLOOKUP($E164-3,AllData,COLUMN()-COLUMN($E164)),VLOOKUP($E164-4,AllData,COLUMN()-COLUMN($E164)),VLOOKUP($E164-5,AllData,COLUMN()-COLUMN($E164)),VLOOKUP($E164-6,AllData,COLUMN()-COLUMN($E164)))","v":5119.2892418092961},{"$f":"SUM(VLOOKUP($E164,AllData,COLUMN()-1-COLUMN($E164)),VLOOKUP($E164-1,AllData,COLUMN()-1-COLUMN($E164)),VLOOKUP($E164-2,AllData,COLUMN()-1-COLUMN($E164)),VLOOKUP($E164-3,AllData,COLUMN()-1-COLUMN($E164)),VLOOKUP($E164-4,AllData,COLUMN()-1-COLUMN($E164)),VLOOKUP($E164-5,AllData,COLUMN()-1-COLUMN($E164)),VLOOKUP($E164-6,AllData,COLUMN()-1-COLUMN($E164)),VLOOKUP($E164-7,AllData,COLUMN()-1-COLUMN($E164)),VLOOKUP($E164-8,AllData,COLUMN()-1-COLUMN($E164)),VLOOKUP($E164-9,AllData,COLUMN()-1-COLUMN($E164)),VLOOKUP($E164-10,AllData,COLUMN()-1-COLUMN($E164)),VLOOKUP($E164-11,AllData,COLUMN()-1-COLUMN($E164)),VLOOKUP($E164-12,AllData,COLUMN()-1-COLUMN($E164)),VLOOKUP($E164-13,AllData,COLUMN()-1-COLUMN($E164)),VLOOKUP($E164-14,AllData,COLUMN()-1-COLUMN($E164)),VLOOKUP($E164-15,AllData,COLUMN()-1-COLUMN($E164)),VLOOKUP($E164-16,AllData,COLUMN()-1-COLUMN($E164)),VLOOKUP($E164-17,AllData,COLUMN()-1-COLUMN($E164)),VLOOKUP($E164-18,AllData,COLUMN()-1-COLUMN($E164)),VLOOKUP($E164-19,AllData,COLUMN()-1-COLUMN($E164)),VLOOKUP($E164-20,AllData,COLUMN()-1-COLUMN($E164)),VLOOKUP($E164-21,AllData,COLUMN()-1-COLUMN($E164)),VLOOKUP($E164-22,AllData,COLUMN()-1-COLUMN($E164)),VLOOKUP($E164-23,AllData,COLUMN()-1-COLUMN($E164)),VLOOKUP($E164-24,AllData,COLUMN()-1-COLUMN($E164)),VLOOKUP($E164-25,AllData,COLUMN()-1-COLUMN($E164)),VLOOKUP($E164-26,AllData,COLUMN()-1-COLUMN($E164)),VLOOKUP($E164-27,AllData,COLUMN()-1-COLUMN($E164)),VLOOKUP($E164-28,AllData,COLUMN()-1-COLUMN($E164)),VLOOKUP($E164-29,AllData,COLUMN()-1-COLUMN($E164)))","v":24281.718210898438},{"$f":"VLOOKUP($E164,AllData,COLUMN()-2-COLUMN($E164))","v":467.04276864378409},{"$f":"OR('Cool Graph'!$H$1=35,'Cool Graph'!$H$1=36,'Cool Graph'!$H$1=37,'Cool Graph'!$H$1=38,'Cool Graph'!$H$1=39,'Cool Graph'!$H$1=40,'Cool Graph'!$H$1=41,'Cool Graph'!$H$1=42,'Cool Graph'!$H$1=43,'Cool Graph'!$H$1=44,'Cool Graph'!$H$1=45,'Cool Graph'!$H$1=46,'Cool Graph'!$H$1=47,'Cool Graph'!$H$1=58,'Cool Graph'!$H$1=66)","v":false},{"$f":"SUM(VLOOKUP($E164,AllData,COLUMN()-5-COLUMN($E164)),VLOOKUP($E164-1,AllData,COLUMN()-5-COLUMN($E164)),VLOOKUP($E164-2,AllData,COLUMN()-5-COLUMN($E164)),VLOOKUP($E164-3,AllData,COLUMN()-5-COLUMN($E164)),VLOOKUP($E164-4,AllData,COLUMN()-5-COLUMN($E164)),VLOOKUP($E164-5,AllData,COLUMN()-5-COLUMN($E164)),VLOOKUP($E164-6,AllData,COLUMN()-5-COLUMN($E164)))","v":364.91},{"$f":"SUM(VLOOKUP($E164,AllData,COLUMN()-6-COLUMN($E164)),VLOOKUP($E164-1,AllData,COLUMN()-6-COLUMN($E164)),VLOOKUP($E164-2,AllData,COLUMN()-6-COLUMN($E164)),VLOOKUP($E164-3,AllData,COLUMN()-6-COLUMN($E164)),VLOOKUP($E164-4,AllData,COLUMN()-6-COLUMN($E164)),VLOOKUP($E164-5,AllData,COLUMN()-6-COLUMN($E164)),VLOOKUP($E164-6,AllData,COLUMN()-6-COLUMN($E164)),VLOOKUP($E164-7,AllData,COLUMN()-6-COLUMN($E164)),VLOOKUP($E164-8,AllData,COLUMN()-6-COLUMN($E164)),VLOOKUP($E164-9,AllData,COLUMN()-6-COLUMN($E164)),VLOOKUP($E164-10,AllData,COLUMN()-6-COLUMN($E164)),VLOOKUP($E164-11,AllData,COLUMN()-6-COLUMN($E164)),VLOOKUP($E164-12,AllData,COLUMN()-6-COLUMN($E164)),VLOOKUP($E164-13,AllData,COLUMN()-6-COLUMN($E164)),VLOOKUP($E164-14,AllData,COLUMN()-6-COLUMN($E164)),VLOOKUP($E164-15,AllData,COLUMN()-6-COLUMN($E164)),VLOOKUP($E164-16,AllData,COLUMN()-6-COLUMN($E164)),VLOOKUP($E164-17,AllData,COLUMN()-6-COLUMN($E164)),VLOOKUP($E164-18,AllData,COLUMN()-6-COLUMN($E164)),VLOOKUP($E164-19,AllData,COLUMN()-6-COLUMN($E164)),VLOOKUP($E164-20,AllData,COLUMN()-6-COLUMN($E164)),VLOOKUP($E164-21,AllData,COLUMN()-6-COLUMN($E164)),VLOOKUP($E164-22,AllData,COLUMN()-6-COLUMN($E164)),VLOOKUP($E164-23,AllData,COLUMN()-6-COLUMN($E164)),VLOOKUP($E164-24,AllData,COLUMN()-6-COLUMN($E164)),VLOOKUP($E164-25,AllData,COLUMN()-6-COLUMN($E164)),VLOOKUP($E164-26,AllData,COLUMN()-6-COLUMN($E164)),VLOOKUP($E164-27,AllData,COLUMN()-6-COLUMN($E164)),VLOOKUP($E164-28,AllData,COLUMN()-6-COLUMN($E164)),VLOOKUP($E164-29,AllData,COLUMN()-6-COLUMN($E164)))","v":2926.97},{"$f":"VLOOKUP($E164,AllData,COLUMN()-7-COLUMN($E164))","v":17.190000000000001},{"$f":"OR('Cool Graph'!$I$1=35,'Cool Graph'!$I$1=36,'Cool Graph'!$I$1=37,'Cool Graph'!$I$1=38,'Cool Graph'!$I$1=39,'Cool Graph'!$I$1=40,'Cool Graph'!$I$1=41,'Cool Graph'!$I$1=42,'Cool Graph'!$I$1=43,'Cool Graph'!$I$1=44,'Cool Graph'!$I$1=45,'Cool Graph'!$I$1=46,'Cool Graph'!$I$1=47,'Cool Graph'!$I$1=58,'Cool Graph'!$I$1=66)","v":false}]
["2011-12-11",{"$f":"OFFSET(OldSchoolJustValues!A165,0,'Cool Graph'!$H$1)","v":100},{"$f":"OFFSET(OldSchoolJustValues!A165,0,'Cool Graph'!$I$1)","v":1204.138835536512},null,{"$f":"IF(NewDate>EndDate,NA(),NewDate)","v":"2012-03-07"},{"$f":"IF($E165>EndDate,NA(),IF($K$2=TRUE,N165,IF('Cool Graph'!$B$17=1,N165,IF('Cool Graph'!$B$17=2,L165,IF('Cool Graph'!$B$17=3,M165,)))))","v":218.9},{"$f":"IF($E165>EndDate,NA(),IF($O$2=TRUE,J165,IF('Cool Graph'!$B$17=1,Data1!J165,IF('Cool Graph'!$B$17=2,Data1!H165,IF('Cool Graph'!$B$17=3,Data1!I165,)))))","v":970.18980321008723},{"$f":"SUM(VLOOKUP($E165,AllData,COLUMN()-COLUMN($E165)),VLOOKUP($E165-1,AllData,COLUMN()-COLUMN($E165)),VLOOKUP($E165-2,AllData,COLUMN()-COLUMN($E165)),VLOOKUP($E165-3,AllData,COLUMN()-COLUMN($E165)),VLOOKUP($E165-4,AllData,COLUMN()-COLUMN($E165)),VLOOKUP($E165-5,AllData,COLUMN()-COLUMN($E165)),VLOOKUP($E165-6,AllData,COLUMN()-COLUMN($E165)))","v":5425.3054288492331},{"$f":"SUM(VLOOKUP($E165,AllData,COLUMN()-1-COLUMN($E165)),VLOOKUP($E165-1,AllData,COLUMN()-1-COLUMN($E165)),VLOOKUP($E165-2,AllData,COLUMN()-1-COLUMN($E165)),VLOOKUP($E165-3,AllData,COLUMN()-1-COLUMN($E165)),VLOOKUP($E165-4,AllData,COLUMN()-1-COLUMN($E165)),VLOOKUP($E165-5,AllData,COLUMN()-1-COLUMN($E165)),VLOOKUP($E165-6,AllData,COLUMN()-1-COLUMN($E165)),VLOOKUP($E165-7,AllData,COLUMN()-1-COLUMN($E165)),VLOOKUP($E165-8,AllData,COLUMN()-1-COLUMN($E165)),VLOOKUP($E165-9,AllData,COLUMN()-1-COLUMN($E165)),VLOOKUP($E165-10,AllData,COLUMN()-1-COLUMN($E165)),VLOOKUP($E165-11,AllData,COLUMN()-1-COLUMN($E165)),VLOOKUP($E165-12,AllData,COLUMN()-1-COLUMN($E165)),VLOOKUP($E165-13,AllData,COLUMN()-1-COLUMN($E165)),VLOOKUP($E165-14,AllData,COLUMN()-1-COLUMN($E165)),VLOOKUP($E165-15,AllData,COLUMN()-1-COLUMN($E165)),VLOOKUP($E165-16,AllData,COLUMN()-1-COLUMN($E165)),VLOOKUP($E165-17,AllData,COLUMN()-1-COLUMN($E165)),VLOOKUP($E165-18,AllData,COLUMN()-1-COLUMN($E165)),VLOOKUP($E165-19,AllData,COLUMN()-1-COLUMN($E165)),VLOOKUP($E165-20,AllData,COLUMN()-1-COLUMN($E165)),VLOOKUP($E165-21,AllData,COLUMN()-1-COLUMN($E165)),VLOOKUP($E165-22,AllData,COLUMN()-1-COLUMN($E165)),VLOOKUP($E165-23,AllData,COLUMN()-1-COLUMN($E165)),VLOOKUP($E165-24,AllData,COLUMN()-1-COLUMN($E165)),VLOOKUP($E165-25,AllData,COLUMN()-1-COLUMN($E165)),VLOOKUP($E165-26,AllData,COLUMN()-1-COLUMN($E165)),VLOOKUP($E165-27,AllData,COLUMN()-1-COLUMN($E165)),VLOOKUP($E165-28,AllData,COLUMN()-1-COLUMN($E165)),VLOOKUP($E165-29,AllData,COLUMN()-1-COLUMN($E165)))","v":24701.610956436602},{"$f":"VLOOKUP($E165,AllData,COLUMN()-2-COLUMN($E165))","v":970.18980321008723},{"$f":"OR('Cool Graph'!$H$1=35,'Cool Graph'!$H$1=36,'Cool Graph'!$H$1=37,'Cool Graph'!$H$1=38,'Cool Graph'!$H$1=39,'Cool Graph'!$H$1=40,'Cool Graph'!$H$1=41,'Cool Graph'!$H$1=42,'Cool Graph'!$H$1=43,'Cool Graph'!$H$1=44,'Cool Graph'!$H$1=45,'Cool Graph'!$H$1=46,'Cool Graph'!$H$1=47,'Cool Graph'!$H$1=58,'Cool Graph'!$H$1=66)","v":false},{"$f":"SUM(VLOOKUP($E165,AllData,COLUMN()-5-COLUMN($E165)),VLOOKUP($E165-1,AllData,COLUMN()-5-COLUMN($E165)),VLOOKUP($E165-2,AllData,COLUMN()-5-COLUMN($E165)),VLOOKUP($E165-3,AllData,COLUMN()-5-COLUMN($E165)),VLOOKUP($E165-4,AllData,COLUMN()-5-COLUMN($E165)),VLOOKUP($E165-5,AllData,COLUMN()-5-COLUMN($E165)),VLOOKUP($E165-6,AllData,COLUMN()-5-COLUMN($E165)))","v":509.51},{"$f":"SUM(VLOOKUP($E165,AllData,COLUMN()-6-COLUMN($E165)),VLOOKUP($E165-1,AllData,COLUMN()-6-COLUMN($E165)),VLOOKUP($E165-2,AllData,COLUMN()-6-COLUMN($E165)),VLOOKUP($E165-3,AllData,COLUMN()-6-COLUMN($E165)),VLOOKUP($E165-4,AllData,COLUMN()-6-COLUMN($E165)),VLOOKUP($E165-5,AllData,COLUMN()-6-COLUMN($E165)),VLOOKUP($E165-6,AllData,COLUMN()-6-COLUMN($E165)),VLOOKUP($E165-7,AllData,COLUMN()-6-COLUMN($E165)),VLOOKUP($E165-8,AllData,COLUMN()-6-COLUMN($E165)),VLOOKUP($E165-9,AllData,COLUMN()-6-COLUMN($E165)),VLOOKUP($E165-10,AllData,COLUMN()-6-COLUMN($E165)),VLOOKUP($E165-11,AllData,COLUMN()-6-COLUMN($E165)),VLOOKUP($E165-12,AllData,COLUMN()-6-COLUMN($E165)),VLOOKUP($E165-13,AllData,COLUMN()-6-COLUMN($E165)),VLOOKUP($E165-14,AllData,COLUMN()-6-COLUMN($E165)),VLOOKUP($E165-15,AllData,COLUMN()-6-COLUMN($E165)),VLOOKUP($E165-16,AllData,COLUMN()-6-COLUMN($E165)),VLOOKUP($E165-17,AllData,COLUMN()-6-COLUMN($E165)),VLOOKUP($E165-18,AllData,COLUMN()-6-COLUMN($E165)),VLOOKUP($E165-19,AllData,COLUMN()-6-COLUMN($E165)),VLOOKUP($E165-20,AllData,COLUMN()-6-COLUMN($E165)),VLOOKUP($E165-21,AllData,COLUMN()-6-COLUMN($E165)),VLOOKUP($E165-22,AllData,COLUMN()-6-COLUMN($E165)),VLOOKUP($E165-23,AllData,COLUMN()-6-COLUMN($E165)),VLOOKUP($E165-24,AllData,COLUMN()-6-COLUMN($E165)),VLOOKUP($E165-25,AllData,COLUMN()-6-COLUMN($E165)),VLOOKUP($E165-26,AllData,COLUMN()-6-COLUMN($E165)),VLOOKUP($E165-27,AllData,COLUMN()-6-COLUMN($E165)),VLOOKUP($E165-28,AllData,COLUMN()-6-COLUMN($E165)),VLOOKUP($E165-29,AllData,COLUMN()-6-COLUMN($E165)))","v":3100.14},{"$f":"VLOOKUP($E165,AllData,COLUMN()-7-COLUMN($E165))","v":218.9},{"$f":"OR('Cool Graph'!$I$1=35,'Cool Graph'!$I$1=36,'Cool Graph'!$I$1=37,'Cool Graph'!$I$1=38,'Cool Graph'!$I$1=39,'Cool Graph'!$I$1=40,'Cool Graph'!$I$1=41,'Cool Graph'!$I$1=42,'Cool Graph'!$I$1=43,'Cool Graph'!$I$1=44,'Cool Graph'!$I$1=45,'Cool Graph'!$I$1=46,'Cool Graph'!$I$1=47,'Cool Graph'!$I$1=58,'Cool Graph'!$I$1=66)","v":false}]
["2011-12-12",{"$f":"OFFSET(OldSchoolJustValues!A166,0,'Cool Graph'!$H$1)","v":100},{"$f":"OFFSET(OldSchoolJustValues!A166,0,'Cool Graph'!$I$1)","v":973.18889440965916},null,{"$f":"IF(NewDate>EndDate,NA(),NewDate)","v":"2012-03-08"},{"$f":"IF($E166>EndDate,NA(),IF($K$2=TRUE,N166,IF('Cool Graph'!$B$17=1,N166,IF('Cool Graph'!$B$17=2,L166,IF('Cool Graph'!$B$17=3,M166,)))))","v":176.62},{"$f":"IF($E166>EndDate,NA(),IF($O$2=TRUE,J166,IF('Cool Graph'!$B$17=1,Data1!J166,IF('Cool Graph'!$B$17=2,Data1!H166,IF('Cool Graph'!$B$17=3,Data1!I166,)))))","v":635.61238443222737},{"$f":"SUM(VLOOKUP($E166,AllData,COLUMN()-COLUMN($E166)),VLOOKUP($E166-1,AllData,COLUMN()-COLUMN($E166)),VLOOKUP($E166-2,AllData,COLUMN()-COLUMN($E166)),VLOOKUP($E166-3,AllData,COLUMN()-COLUMN($E166)),VLOOKUP($E166-4,AllData,COLUMN()-COLUMN($E166)),VLOOKUP($E166-5,AllData,COLUMN()-COLUMN($E166)),VLOOKUP($E166-6,AllData,COLUMN()-COLUMN($E166)))","v":5114.4046769723773},{"$f":"SUM(VLOOKUP($E166,AllData,COLUMN()-1-COLUMN($E166)),VLOOKUP($E166-1,AllData,COLUMN()-1-COLUMN($E166)),VLOOKUP($E166-2,AllData,COLUMN()-1-COLUMN($E166)),VLOOKUP($E166-3,AllData,COLUMN()-1-COLUMN($E166)),VLOOKUP($E166-4,AllData,COLUMN()-1-COLUMN($E166)),VLOOKUP($E166-5,AllData,COLUMN()-1-COLUMN($E166)),VLOOKUP($E166-6,AllData,COLUMN()-1-COLUMN($E166)),VLOOKUP($E166-7,AllData,COLUMN()-1-COLUMN($E166)),VLOOKUP($E166-8,AllData,COLUMN()-1-COLUMN($E166)),VLOOKUP($E166-9,AllData,COLUMN()-1-COLUMN($E166)),VLOOKUP($E166-10,AllData,COLUMN()-1-COLUMN($E166)),VLOOKUP($E166-11,AllData,COLUMN()-1-COLUMN($E166)),VLOOKUP($E166-12,AllData,COLUMN()-1-COLUMN($E166)),VLOOKUP($E166-13,AllData,COLUMN()-1-COLUMN($E166)),VLOOKUP($E166-14,AllData,COLUMN()-1-COLUMN($E166)),VLOOKUP($E166-15,AllData,COLUMN()-1-COLUMN($E166)),VLOOKUP($E166-16,AllData,COLUMN()-1-COLUMN($E166)),VLOOKUP($E166-17,AllData,COLUMN()-1-COLUMN($E166)),VLOOKUP($E166-18,AllData,COLUMN()-1-COLUMN($E166)),VLOOKUP($E166-19,AllData,COLUMN()-1-COLUMN($E166)),VLOOKUP($E166-20,AllData,COLUMN()-1-COLUMN($E166)),VLOOKUP($E166-21,AllData,COLUMN()-1-COLUMN($E166)),VLOOKUP($E166-22,AllData,COLUMN()-1-COLUMN($E166)),VLOOKUP($E166-23,AllData,COLUMN()-1-COLUMN($E166)),VLOOKUP($E166-24,AllData,COLUMN()-1-COLUMN($E166)),VLOOKUP($E166-25,AllData,COLUMN()-1-COLUMN($E166)),VLOOKUP($E166-26,AllData,COLUMN()-1-COLUMN($E166)),VLOOKUP($E166-27,AllData,COLUMN()-1-COLUMN($E166)),VLOOKUP($E166-28,AllData,COLUMN()-1-COLUMN($E166)),VLOOKUP($E166-29,AllData,COLUMN()-1-COLUMN($E166)))","v":23910.346215493551},{"$f":"VLOOKUP($E166,AllData,COLUMN()-2-COLUMN($E166))","v":635.61238443222737},{"$f":"OR('Cool Graph'!$H$1=35,'Cool Graph'!$H$1=36,'Cool Graph'!$H$1=37,'Cool Graph'!$H$1=38,'Cool Graph'!$H$1=39,'Cool Graph'!$H$1=40,'Cool Graph'!$H$1=41,'Cool Graph'!$H$1=42,'Cool Graph'!$H$1=43,'Cool Graph'!$H$1=44,'Cool Graph'!$H$1=45,'Cool Graph'!$H$1=46,'Cool Graph'!$H$1=47,'Cool Graph'!$H$1=58,'Cool Graph'!$H$1=66)","v":false},{"$f":"SUM(VLOOKUP($E166,AllData,COLUMN()-5-COLUMN($E166)),VLOOKUP($E166-1,AllData,COLUMN()-5-COLUMN($E166)),VLOOKUP($E166-2,AllData,COLUMN()-5-COLUMN($E166)),VLOOKUP($E166-3,AllData,COLUMN()-5-COLUMN($E166)),VLOOKUP($E166-4,AllData,COLUMN()-5-COLUMN($E166)),VLOOKUP($E166-5,AllData,COLUMN()-5-COLUMN($E166)),VLOOKUP($E166-6,AllData,COLUMN()-5-COLUMN($E166)))","v":601.91},{"$f":"SUM(VLOOKUP($E166,AllData,COLUMN()-6-COLUMN($E166)),VLOOKUP($E166-1,AllData,COLUMN()-6-COLUMN($E166)),VLOOKUP($E166-2,AllData,COLUMN()-6-COLUMN($E166)),VLOOKUP($E166-3,AllData,COLUMN()-6-COLUMN($E166)),VLOOKUP($E166-4,AllData,COLUMN()-6-COLUMN($E166)),VLOOKUP($E166-5,AllData,COLUMN()-6-COLUMN($E166)),VLOOKUP($E166-6,AllData,COLUMN()-6-COLUMN($E166)),VLOOKUP($E166-7,AllData,COLUMN()-6-COLUMN($E166)),VLOOKUP($E166-8,AllData,COLUMN()-6-COLUMN($E166)),VLOOKUP($E166-9,AllData,COLUMN()-6-COLUMN($E166)),VLOOKUP($E166-10,AllData,COLUMN()-6-COLUMN($E166)),VLOOKUP($E166-11,AllData,COLUMN()-6-COLUMN($E166)),VLOOKUP($E166-12,AllData,COLUMN()-6-COLUMN($E166)),VLOOKUP($E166-13,AllData,COLUMN()-6-COLUMN($E166)),VLOOKUP($E166-14,AllData,COLUMN()-6-COLUMN($E166)),VLOOKUP($E166-15,AllData,COLUMN()-6-COLUMN($E166)),VLOOKUP($E166-16,AllData,COLUMN()-6-COLUMN($E166)),VLOOKUP($E166-17,AllData,COLUMN()-6-COLUMN($E166)),VLOOKUP($E166-18,AllData,COLUMN()-6-COLUMN($E166)),VLOOKUP($E166-19,AllData,COLUMN()-6-COLUMN($E166)),VLOOKUP($E166-20,AllData,COLUMN()-6-COLUMN($E166)),VLOOKUP($E166-21,AllData,COLUMN()-6-COLUMN($E166)),VLOOKUP($E166-22,AllData,COLUMN()-6-COLUMN($E166)),VLOOKUP($E166-23,AllData,COLUMN()-6-COLUMN($E166)),VLOOKUP($E166-24,AllData,COLUMN()-6-COLUMN($E166)),VLOOKUP($E166-25,AllData,COLUMN()-6-COLUMN($E166)),VLOOKUP($E166-26,AllData,COLUMN()-6-COLUMN($E166)),VLOOKUP($E166-27,AllData,COLUMN()-6-COLUMN($E166)),VLOOKUP($E166-28,AllData,COLUMN()-6-COLUMN($E166)),VLOOKUP($E166-29,AllData,COLUMN()-6-COLUMN($E166)))","v":3238.3300000000004},{"$f":"VLOOKUP($E166,AllData,COLUMN()-7-COLUMN($E166))","v":176.62},{"$f":"OR('Cool Graph'!$I$1=35,'Cool Graph'!$I$1=36,'Cool Graph'!$I$1=37,'Cool Graph'!$I$1=38,'Cool Graph'!$I$1=39,'Cool Graph'!$I$1=40,'Cool Graph'!$I$1=41,'Cool Graph'!$I$1=42,'Cool Graph'!$I$1=43,'Cool Graph'!$I$1=44,'Cool Graph'!$I$1=45,'Cool Graph'!$I$1=46,'Cool Graph'!$I$1=47,'Cool Graph'!$I$1=58,'Cool Graph'!$I$1=66)","v":false}]
["2011-12-13",{"$f":"OFFSET(OldSchoolJustValues!A167,0,'Cool Graph'!$H$1)","v":100},{"$f":"OFFSET(OldSchoolJustValues!A167,0,'Cool Graph'!$I$1)","v":2826.9665784821409},null,{"$f":"IF(NewDate>EndDate,NA(),NewDate)","v":"2012-03-09"},{"$f":"IF($E167>EndDate,NA(),IF($K$2=TRUE,N167,IF('Cool Graph'!$B$17=1,N167,IF('Cool Graph'!$B$17=2,L167,IF('Cool Graph'!$B$17=3,M167,)))))","v":52.34},{"$f":"IF($E167>EndDate,NA(),IF($O$2=TRUE,J167,IF('Cool Graph'!$B$17=1,Data1!J167,IF('Cool Graph'!$B$17=2,Data1!H167,IF('Cool Graph'!$B$17=3,Data1!I167,)))))","v":790.00295361185488},{"$f":"SUM(VLOOKUP($E167,AllData,COLUMN()-COLUMN($E167)),VLOOKUP($E167-1,AllData,COLUMN()-COLUMN($E167)),VLOOKUP($E167-2,AllData,COLUMN()-COLUMN($E167)),VLOOKUP($E167-3,AllData,COLUMN()-COLUMN($E167)),VLOOKUP($E167-4,AllData,COLUMN()-COLUMN($E167)),VLOOKUP($E167-5,AllData,COLUMN()-COLUMN($E167)),VLOOKUP($E167-6,AllData,COLUMN()-COLUMN($E167)))","v":5342.6482436516017},{"$f":"SUM(VLOOKUP($E167,AllData,COLUMN()-1-COLUMN($E167)),VLOOKUP($E167-1,AllData,COLUMN()-1-COLUMN($E167)),VLOOKUP($E167-2,AllData,COLUMN()-1-COLUMN($E167)),VLOOKUP($E167-3,AllData,COLUMN()-1-COLUMN($E167)),VLOOKUP($E167-4,AllData,COLUMN()-1-COLUMN($E167)),VLOOKUP($E167-5,AllData,COLUMN()-1-COLUMN($E167)),VLOOKUP($E167-6,AllData,COLUMN()-1-COLUMN($E167)),VLOOKUP($E167-7,AllData,COLUMN()-1-COLUMN($E167)),VLOOKUP($E167-8,AllData,COLUMN()-1-COLUMN($E167)),VLOOKUP($E167-9,AllData,COLUMN()-1-COLUMN($E167)),VLOOKUP($E167-10,AllData,COLUMN()-1-COLUMN($E167)),VLOOKUP($E167-11,AllData,COLUMN()-1-COLUMN($E167)),VLOOKUP($E167-12,AllData,COLUMN()-1-COLUMN($E167)),VLOOKUP($E167-13,AllData,COLUMN()-1-COLUMN($E167)),VLOOKUP($E167-14,AllData,COLUMN()-1-COLUMN($E167)),VLOOKUP($E167-15,AllData,COLUMN()-1-COLUMN($E167)),VLOOKUP($E167-16,AllData,COLUMN()-1-COLUMN($E167)),VLOOKUP($E167-17,AllData,COLUMN()-1-COLUMN($E167)),VLOOKUP($E167-18,AllData,COLUMN()-1-COLUMN($E167)),VLOOKUP($E167-19,AllData,COLUMN()-1-COLUMN($E167)),VLOOKUP($E167-20,AllData,COLUMN()-1-COLUMN($E167)),VLOOKUP($E167-21,AllData,COLUMN()-1-COLUMN($E167)),VLOOKUP($E167-22,AllData,COLUMN()-1-COLUMN($E167)),VLOOKUP($E167-23,AllData,COLUMN()-1-COLUMN($E167)),VLOOKUP($E167-24,AllData,COLUMN()-1-COLUMN($E167)),VLOOKUP($E167-25,AllData,COLUMN()-1-COLUMN($E167)),VLOOKUP($E167-26,AllData,COLUMN()-1-COLUMN($E167)),VLOOKUP($E167-27,AllData,COLUMN()-1-COLUMN($E167)),VLOOKUP($E167-28,AllData,COLUMN()-1-COLUMN($E167)),VLOOKUP($E167-29,AllData,COLUMN()-1-COLUMN($E167)))","v":24145.300075192117},{"$f":"VLOOKUP($E167,AllData,COLUMN()-2-COLUMN($E167))","v":790.00295361185488},{"$f":"OR('Cool Graph'!$H$1=35,'Cool Graph'!$H$1=36,'Cool Graph'!$H$1=37,'Cool Graph'!$H$1=38,'Cool Graph'!$H$1=39,'Cool Graph'!$H$1=40,'Cool Graph'!$H$1=41,'Cool Graph'!$H$1=42,'Cool Graph'!$H$1=43,'Cool Graph'!$H$1=44,'Cool Graph'!$H$1=45,'Cool Graph'!$H$1=46,'Cool Graph'!$H$1=47,'Cool Graph'!$H$1=58,'Cool Graph'!$H$1=66)","v":false},{"$f":"SUM(VLOOKUP($E167,AllData,COLUMN()-5-COLUMN($E167)),VLOOKUP($E167-1,AllData,COLUMN()-5-COLUMN($E167)),VLOOKUP($E167-2,AllData,COLUMN()-5-COLUMN($E167)),VLOOKUP($E167-3,AllData,COLUMN()-5-COLUMN($E167)),VLOOKUP($E167-4,AllData,COLUMN()-5-COLUMN($E167)),VLOOKUP($E167-5,AllData,COLUMN()-5-COLUMN($E167)),VLOOKUP($E167-6,AllData,COLUMN()-5-COLUMN($E167)))","v":628.33000000000004},{"$f":"SUM(VLOOKUP($E167,AllData,COLUMN()-6-COLUMN($E167)),VLOOKUP($E167-1,AllData,COLUMN()-6-COLUMN($E167)),VLOOKUP($E167-2,AllData,COLUMN()-6-COLUMN($E167)),VLOOKUP($E167-3,AllData,COLUMN()-6-COLUMN($E167)),VLOOKUP($E167-4,AllData,COLUMN()-6-COLUMN($E167)),VLOOKUP($E167-5,AllData,COLUMN()-6-COLUMN($E167)),VLOOKUP($E167-6,AllData,COLUMN()-6-COLUMN($E167)),VLOOKUP($E167-7,AllData,COLUMN()-6-COLUMN($E167)),VLOOKUP($E167-8,AllData,COLUMN()-6-COLUMN($E167)),VLOOKUP($E167-9,AllData,COLUMN()-6-COLUMN($E167)),VLOOKUP($E167-10,AllData,COLUMN()-6-COLUMN($E167)),VLOOKUP($E167-11,AllData,COLUMN()-6-COLUMN($E167)),VLOOKUP($E167-12,AllData,COLUMN()-6-COLUMN($E167)),VLOOKUP($E167-13,AllData,COLUMN()-6-COLUMN($E167)),VLOOKUP($E167-14,AllData,COLUMN()-6-COLUMN($E167)),VLOOKUP($E167-15,AllData,COLUMN()-6-COLUMN($E167)),VLOOKUP($E167-16,AllData,COLUMN()-6-COLUMN($E167)),VLOOKUP($E167-17,AllData,COLUMN()-6-COLUMN($E167)),VLOOKUP($E167-18,AllData,COLUMN()-6-COLUMN($E167)),VLOOKUP($E167-19,AllData,COLUMN()-6-COLUMN($E167)),VLOOKUP($E167-20,AllData,COLUMN()-6-COLUMN($E167)),VLOOKUP($E167-21,AllData,COLUMN()-6-COLUMN($E167)),VLOOKUP($E167-22,AllData,COLUMN()-6-COLUMN($E167)),VLOOKUP($E167-23,AllData,COLUMN()-6-COLUMN($E167)),VLOOKUP($E167-24,AllData,COLUMN()-6-COLUMN($E167)),VLOOKUP($E167-25,AllData,COLUMN()-6-COLUMN($E167)),VLOOKUP($E167-26,AllData,COLUMN()-6-COLUMN($E167)),VLOOKUP($E167-27,AllData,COLUMN()-6-COLUMN($E167)),VLOOKUP($E167-28,AllData,COLUMN()-6-COLUMN($E167)),VLOOKUP($E167-29,AllData,COLUMN()-6-COLUMN($E167)))","v":3266.6800000000003},{"$f":"VLOOKUP($E167,AllData,COLUMN()-7-COLUMN($E167))","v":52.34},{"$f":"OR('Cool Graph'!$I$1=35,'Cool Graph'!$I$1=36,'Cool Graph'!$I$1=37,'Cool Graph'!$I$1=38,'Cool Graph'!$I$1=39,'Cool Graph'!$I$1=40,'Cool Graph'!$I$1=41,'Cool Graph'!$I$1=42,'Cool Graph'!$I$1=43,'Cool Graph'!$I$1=44,'Cool Graph'!$I$1=45,'Cool Graph'!$I$1=46,'Cool Graph'!$I$1=47,'Cool Graph'!$I$1=58,'Cool Graph'!$I$1=66)","v":false}]
["2011-12-14",{"$f":"OFFSET(OldSchoolJustValues!A168,0,'Cool Graph'!$H$1)","v":99.74},{"$f":"OFFSET(OldSchoolJustValues!A168,0,'Cool Graph'!$I$1)","v":1161.4927173318629},null,{"$f":"IF(NewDate>EndDate,NA(),NewDate)","v":"2012-03-10"},{"$f":"IF($E168>EndDate,NA(),IF($K$2=TRUE,N168,IF('Cool Graph'!$B$17=1,N168,IF('Cool Graph'!$B$17=2,L168,IF('Cool Graph'!$B$17=3,M168,)))))","v":20.78},{"$f":"IF($E168>EndDate,NA(),IF($O$2=TRUE,J168,IF('Cool Graph'!$B$17=1,Data1!J168,IF('Cool Graph'!$B$17=2,Data1!H168,IF('Cool Graph'!$B$17=3,Data1!I168,)))))","v":647.42285520992232},{"$f":"SUM(VLOOKUP($E168,AllData,COLUMN()-COLUMN($E168)),VLOOKUP($E168-1,AllData,COLUMN()-COLUMN($E168)),VLOOKUP($E168-2,AllData,COLUMN()-COLUMN($E168)),VLOOKUP($E168-3,AllData,COLUMN()-COLUMN($E168)),VLOOKUP($E168-4,AllData,COLUMN()-COLUMN($E168)),VLOOKUP($E168-5,AllData,COLUMN()-COLUMN($E168)),VLOOKUP($E168-6,AllData,COLUMN()-COLUMN($E168)))","v":5727.0265613591146},{"$f":"SUM(VLOOKUP($E168,AllData,COLUMN()-1-COLUMN($E168)),VLOOKUP($E168-1,AllData,COLUMN()-1-COLUMN($E168)),VLOOKUP($E168-2,AllData,COLUMN()-1-COLUMN($E168)),VLOOKUP($E168-3,AllData,COLUMN()-1-COLUMN($E168)),VLOOKUP($E168-4,AllData,COLUMN()-1-COLUMN($E168)),VLOOKUP($E168-5,AllData,COLUMN()-1-COLUMN($E168)),VLOOKUP($E168-6,AllData,COLUMN()-1-COLUMN($E168)),VLOOKUP($E168-7,AllData,COLUMN()-1-COLUMN($E168)),VLOOKUP($E168-8,AllData,COLUMN()-1-COLUMN($E168)),VLOOKUP($E168-9,AllData,COLUMN()-1-COLUMN($E168)),VLOOKUP($E168-10,AllData,COLUMN()-1-COLUMN($E168)),VLOOKUP($E168-11,AllData,COLUMN()-1-COLUMN($E168)),VLOOKUP($E168-12,AllData,COLUMN()-1-COLUMN($E168)),VLOOKUP($E168-13,AllData,COLUMN()-1-COLUMN($E168)),VLOOKUP($E168-14,AllData,COLUMN()-1-COLUMN($E168)),VLOOKUP($E168-15,AllData,COLUMN()-1-COLUMN($E168)),VLOOKUP($E168-16,AllData,COLUMN()-1-COLUMN($E168)),VLOOKUP($E168-17,AllData,COLUMN()-1-COLUMN($E168)),VLOOKUP($E168-18,AllData,COLUMN()-1-COLUMN($E168)),VLOOKUP($E168-19,AllData,COLUMN()-1-COLUMN($E168)),VLOOKUP($E168-20,AllData,COLUMN()-1-COLUMN($E168)),VLOOKUP($E168-21,AllData,COLUMN()-1-COLUMN($E168)),VLOOKUP($E168-22,AllData,COLUMN()-1-COLUMN($E168)),VLOOKUP($E168-23,AllData,COLUMN()-1-COLUMN($E168)),VLOOKUP($E168-24,AllData,COLUMN()-1-COLUMN($E168)),VLOOKUP($E168-25,AllData,COLUMN()-1-COLUMN($E168)),VLOOKUP($E168-26,AllData,COLUMN()-1-COLUMN($E168)),VLOOKUP($E168-27,AllData,COLUMN()-1-COLUMN($E168)),VLOOKUP($E168-28,AllData,COLUMN()-1-COLUMN($E168)),VLOOKUP($E168-29,AllData,COLUMN()-1-COLUMN($E168)))","v":23901.087965573781},{"$f":"VLOOKUP($E168,AllData,COLUMN()-2-COLUMN($E168))","v":647.42285520992232},{"$f":"OR('Cool Graph'!$H$1=35,'Cool Graph'!$H$1=36,'Cool Graph'!$H$1=37,'Cool Graph'!$H$1=38,'Cool Graph'!$H$1=39,'Cool Graph'!$H$1=40,'Cool Graph'!$H$1=41,'Cool Graph'!$H$1=42,'Cool Graph'!$H$1=43,'Cool Graph'!$H$1=44,'Cool Graph'!$H$1=45,'Cool Graph'!$H$1=46,'Cool Graph'!$H$1=47,'Cool Graph'!$H$1=58,'Cool Graph'!$H$1=66)","v":false},{"$f":"SUM(VLOOKUP($E168,AllData,COLUMN()-5-COLUMN($E168)),VLOOKUP($E168-1,AllData,COLUMN()-5-COLUMN($E168)),VLOOKUP($E168-2,AllData,COLUMN()-5-COLUMN($E168)),VLOOKUP($E168-3,AllData,COLUMN()-5-COLUMN($E168)),VLOOKUP($E168-4,AllData,COLUMN()-5-COLUMN($E168)),VLOOKUP($E168-5,AllData,COLUMN()-5-COLUMN($E168)),VLOOKUP($E168-6,AllData,COLUMN()-5-COLUMN($E168)))","v":616.36},{"$f":"SUM(VLOOKUP($E168,AllData,COLUMN()-6-COLUMN($E168)),VLOOKUP($E168-1,AllData,COLUMN()-6-COLUMN($E168)),VLOOKUP($E168-2,AllData,COLUMN()-6-COLUMN($E168)),VLOOKUP($E168-3,AllData,COLUMN()-6-COLUMN($E168)),VLOOKUP($E168-4,AllData,COLUMN()-6-COLUMN($E168)),VLOOKUP($E168-5,AllData,COLUMN()-6-COLUMN($E168)),VLOOKUP($E168-6,AllData,COLUMN()-6-COLUMN($E168)),VLOOKUP($E168-7,AllData,COLUMN()-6-COLUMN($E168)),VLOOKUP($E168-8,AllData,COLUMN()-6-COLUMN($E168)),VLOOKUP($E168-9,AllData,COLUMN()-6-COLUMN($E168)),VLOOKUP($E168-10,AllData,COLUMN()-6-COLUMN($E168)),VLOOKUP($E168-11,AllData,COLUMN()-6-COLUMN($E168)),VLOOKUP($E168-12,AllData,COLUMN()-6-COLUMN($E168)),VLOOKUP($E168-13,AllData,COLUMN()-6-COLUMN($E168)),VLOOKUP($E168-14,AllData,COLUMN()-6-COLUMN($E168)),VLOOKUP($E168-15,AllData,COLUMN()-6-COLUMN($E168)),VLOOKUP($E168-16,AllData,COLUMN()-6-COLUMN($E168)),VLOOKUP($E168-17,AllData,COLUMN()-6-COLUMN($E168)),VLOOKUP($E168-18,AllData,COLUMN()-6-COLUMN($E168)),VLOOKUP($E168-19,AllData,COLUMN()-6-COLUMN($E168)),VLOOKUP($E168-20,AllData,COLUMN()-6-COLUMN($E168)),VLOOKUP($E168-21,AllData,COLUMN()-6-COLUMN($E168)),VLOOKUP($E168-22,AllData,COLUMN()-6-COLUMN($E168)),VLOOKUP($E168-23,AllData,COLUMN()-6-COLUMN($E168)),VLOOKUP($E168-24,AllData,COLUMN()-6-COLUMN($E168)),VLOOKUP($E168-25,AllData,COLUMN()-6-COLUMN($E168)),VLOOKUP($E168-26,AllData,COLUMN()-6-COLUMN($E168)),VLOOKUP($E168-27,AllData,COLUMN()-6-COLUMN($E168)),VLOOKUP($E168-28,AllData,COLUMN()-6-COLUMN($E168)),VLOOKUP($E168-29,AllData,COLUMN()-6-COLUMN($E168)))","v":3280.3000000000006},{"$f":"VLOOKUP($E168,AllData,COLUMN()-7-COLUMN($E168))","v":20.78},{"$f":"OR('Cool Graph'!$I$1=35,'Cool Graph'!$I$1=36,'Cool Graph'!$I$1=37,'Cool Graph'!$I$1=38,'Cool Graph'!$I$1=39,'Cool Graph'!$I$1=40,'Cool Graph'!$I$1=41,'Cool Graph'!$I$1=42,'Cool Graph'!$I$1=43,'Cool Graph'!$I$1=44,'Cool Graph'!$I$1=45,'Cool Graph'!$I$1=46,'Cool Graph'!$I$1=47,'Cool Graph'!$I$1=58,'Cool Graph'!$I$1=66)","v":false}]
["2011-12-15",{"$f":"OFFSET(OldSchoolJustValues!A169,0,'Cool Graph'!$H$1)","v":31.18},{"$f":"OFFSET(OldSchoolJustValues!A169,0,'Cool Graph'!$I$1)","v":2235.2382827413412},null,{"$f":"IF(NewDate>EndDate,NA(),NewDate)","v":"2012-03-11"},{"$f":"IF($E169>EndDate,NA(),IF($K$2=TRUE,N169,IF('Cool Graph'!$B$17=1,N169,IF('Cool Graph'!$B$17=2,L169,IF('Cool Graph'!$B$17=3,M169,)))))","v":21.61},{"$f":"IF($E169>EndDate,NA(),IF($O$2=TRUE,J169,IF('Cool Graph'!$B$17=1,Data1!J169,IF('Cool Graph'!$B$17=2,Data1!H169,IF('Cool Graph'!$B$17=3,Data1!I169,)))))","v":445.25004507931033},{"$f":"SUM(VLOOKUP($E169,AllData,COLUMN()-COLUMN($E169)),VLOOKUP($E169-1,AllData,COLUMN()-COLUMN($E169)),VLOOKUP($E169-2,AllData,COLUMN()-COLUMN($E169)),VLOOKUP($E169-3,AllData,COLUMN()-COLUMN($E169)),VLOOKUP($E169-4,AllData,COLUMN()-COLUMN($E169)),VLOOKUP($E169-5,AllData,COLUMN()-COLUMN($E169)),VLOOKUP($E169-6,AllData,COLUMN()-COLUMN($E169)))","v":5538.0540408837751},{"$f":"SUM(VLOOKUP($E169,AllData,COLUMN()-1-COLUMN($E169)),VLOOKUP($E169-1,AllData,COLUMN()-1-COLUMN($E169)),VLOOKUP($E169-2,AllData,COLUMN()-1-COLUMN($E169)),VLOOKUP($E169-3,AllData,COLUMN()-1-COLUMN($E169)),VLOOKUP($E169-4,AllData,COLUMN()-1-COLUMN($E169)),VLOOKUP($E169-5,AllData,COLUMN()-1-COLUMN($E169)),VLOOKUP($E169-6,AllData,COLUMN()-1-COLUMN($E169)),VLOOKUP($E169-7,AllData,COLUMN()-1-COLUMN($E169)),VLOOKUP($E169-8,AllData,COLUMN()-1-COLUMN($E169)),VLOOKUP($E169-9,AllData,COLUMN()-1-COLUMN($E169)),VLOOKUP($E169-10,AllData,COLUMN()-1-COLUMN($E169)),VLOOKUP($E169-11,AllData,COLUMN()-1-COLUMN($E169)),VLOOKUP($E169-12,AllData,COLUMN()-1-COLUMN($E169)),VLOOKUP($E169-13,AllData,COLUMN()-1-COLUMN($E169)),VLOOKUP($E169-14,AllData,COLUMN()-1-COLUMN($E169)),VLOOKUP($E169-15,AllData,COLUMN()-1-COLUMN($E169)),VLOOKUP($E169-16,AllData,COLUMN()-1-COLUMN($E169)),VLOOKUP($E169-17,AllData,COLUMN()-1-COLUMN($E169)),VLOOKUP($E169-18,AllData,COLUMN()-1-COLUMN($E169)),VLOOKUP($E169-19,AllData,COLUMN()-1-COLUMN($E169)),VLOOKUP($E169-20,AllData,COLUMN()-1-COLUMN($E169)),VLOOKUP($E169-21,AllData,COLUMN()-1-COLUMN($E169)),VLOOKUP($E169-22,AllData,COLUMN()-1-COLUMN($E169)),VLOOKUP($E169-23,AllData,COLUMN()-1-COLUMN($E169)),VLOOKUP($E169-24,AllData,COLUMN()-1-COLUMN($E169)),VLOOKUP($E169-25,AllData,COLUMN()-1-COLUMN($E169)),VLOOKUP($E169-26,AllData,COLUMN()-1-COLUMN($E169)),VLOOKUP($E169-27,AllData,COLUMN()-1-COLUMN($E169)),VLOOKUP($E169-28,AllData,COLUMN()-1-COLUMN($E169)),VLOOKUP($E169-29,AllData,COLUMN()-1-COLUMN($E169)))","v":23306.258722772749},{"$f":"VLOOKUP($E169,AllData,COLUMN()-2-COLUMN($E169))","v":445.25004507931033},{"$f":"OR('Cool Graph'!$H$1=35,'Cool Graph'!$H$1=36,'Cool Graph'!$H$1=37,'Cool Graph'!$H$1=38,'Cool Graph'!$H$1=39,'Cool Graph'!$H$1=40,'Cool Graph'!$H$1=41,'Cool Graph'!$H$1=42,'Cool Graph'!$H$1=43,'Cool Graph'!$H$1=44,'Cool Graph'!$H$1=45,'Cool Graph'!$H$1=46,'Cool Graph'!$H$1=47,'Cool Graph'!$H$1=58,'Cool Graph'!$H$1=66)","v":false},{"$f":"SUM(VLOOKUP($E169,AllData,COLUMN()-5-COLUMN($E169)),VLOOKUP($E169-1,AllData,COLUMN()-5-COLUMN($E169)),VLOOKUP($E169-2,AllData,COLUMN()-5-COLUMN($E169)),VLOOKUP($E169-3,AllData,COLUMN()-5-COLUMN($E169)),VLOOKUP($E169-4,AllData,COLUMN()-5-COLUMN($E169)),VLOOKUP($E169-5,AllData,COLUMN()-5-COLUMN($E169)),VLOOKUP($E169-6,AllData,COLUMN()-5-COLUMN($E169)))","v":552.26},{"$f":"SUM(VLOOKUP($E169,AllData,COLUMN()-6-COLUMN($E169)),VLOOKUP($E169-1,AllData,COLUMN()-6-COLUMN($E169)),VLOOKUP($E169-2,AllData,COLUMN()-6-COLUMN($E169)),VLOOKUP($E169-3,AllData,COLUMN()-6-COLUMN($E169)),VLOOKUP($E169-4,AllData,COLUMN()-6-COLUMN($E169)),VLOOKUP($E169-5,AllData,COLUMN()-6-COLUMN($E169)),VLOOKUP($E169-6,AllData,COLUMN()-6-COLUMN($E169)),VLOOKUP($E169-7,AllData,COLUMN()-6-COLUMN($E169)),VLOOKUP($E169-8,AllData,COLUMN()-6-COLUMN($E169)),VLOOKUP($E169-9,AllData,COLUMN()-6-COLUMN($E169)),VLOOKUP($E169-10,AllData,COLUMN()-6-COLUMN($E169)),VLOOKUP($E169-11,AllData,COLUMN()-6-COLUMN($E169)),VLOOKUP($E169-12,AllData,COLUMN()-6-COLUMN($E169)),VLOOKUP($E169-13,AllData,COLUMN()-6-COLUMN($E169)),VLOOKUP($E169-14,AllData,COLUMN()-6-COLUMN($E169)),VLOOKUP($E169-15,AllData,COLUMN()-6-COLUMN($E169)),VLOOKUP($E169-16,AllData,COLUMN()-6-COLUMN($E169)),VLOOKUP($E169-17,AllData,COLUMN()-6-COLUMN($E169)),VLOOKUP($E169-18,AllData,COLUMN()-6-COLUMN($E169)),VLOOKUP($E169-19,AllData,COLUMN()-6-COLUMN($E169)),VLOOKUP($E169-20,AllData,COLUMN()-6-COLUMN($E169)),VLOOKUP($E169-21,AllData,COLUMN()-6-COLUMN($E169)),VLOOKUP($E169-22,AllData,COLUMN()-6-COLUMN($E169)),VLOOKUP($E169-23,AllData,COLUMN()-6-COLUMN($E169)),VLOOKUP($E169-24,AllData,COLUMN()-6-COLUMN($E169)),VLOOKUP($E169-25,AllData,COLUMN()-6-COLUMN($E169)),VLOOKUP($E169-26,AllData,COLUMN()-6-COLUMN($E169)),VLOOKUP($E169-27,AllData,COLUMN()-6-COLUMN($E169)),VLOOKUP($E169-28,AllData,COLUMN()-6-COLUMN($E169)),VLOOKUP($E169-29,AllData,COLUMN()-6-COLUMN($E169)))","v":3289.4100000000008},{"$f":"VLOOKUP($E169,AllData,COLUMN()-7-COLUMN($E169))","v":21.61},{"$f":"OR('Cool Graph'!$I$1=35,'Cool Graph'!$I$1=36,'Cool Graph'!$I$1=37,'Cool Graph'!$I$1=38,'Cool Graph'!$I$1=39,'Cool Graph'!$I$1=40,'Cool Graph'!$I$1=41,'Cool Graph'!$I$1=42,'Cool Graph'!$I$1=43,'Cool Graph'!$I$1=44,'Cool Graph'!$I$1=45,'Cool Graph'!$I$1=46,'Cool Graph'!$I$1=47,'Cool Graph'!$I$1=58,'Cool Graph'!$I$1=66)","v":false}]
["2011-12-16",{"$f":"OFFSET(OldSchoolJustValues!A170,0,'Cool Graph'!$H$1)","v":30.43},{"$f":"OFFSET(OldSchoolJustValues!A170,0,'Cool Graph'!$I$1)","v":734.21977215302559},null,{"$f":"IF(NewDate>EndDate,NA(),NewDate)","v":"2012-03-12"},{"$f":"IF($E170>EndDate,NA(),IF($K$2=TRUE,N170,IF('Cool Graph'!$B$17=1,N170,IF('Cool Graph'!$B$17=2,L170,IF('Cool Graph'!$B$17=3,M170,)))))","v":19.37},{"$f":"IF($E170>EndDate,NA(),IF($O$2=TRUE,J170,IF('Cool Graph'!$B$17=1,Data1!J170,IF('Cool Graph'!$B$17=2,Data1!H170,IF('Cool Graph'!$B$17=3,Data1!I170,)))))","v":717.84548526565686},{"$f":"SUM(VLOOKUP($E170,AllData,COLUMN()-COLUMN($E170)),VLOOKUP($E170-1,AllData,COLUMN()-COLUMN($E170)),VLOOKUP($E170-2,AllData,COLUMN()-COLUMN($E170)),VLOOKUP($E170-3,AllData,COLUMN()-COLUMN($E170)),VLOOKUP($E170-4,AllData,COLUMN()-COLUMN($E170)),VLOOKUP($E170-5,AllData,COLUMN()-COLUMN($E170)),VLOOKUP($E170-6,AllData,COLUMN()-COLUMN($E170)))","v":4673.3662954528436},{"$f":"SUM(VLOOKUP($E170,AllData,COLUMN()-1-COLUMN($E170)),VLOOKUP($E170-1,AllData,COLUMN()-1-COLUMN($E170)),VLOOKUP($E170-2,AllData,COLUMN()-1-COLUMN($E170)),VLOOKUP($E170-3,AllData,COLUMN()-1-COLUMN($E170)),VLOOKUP($E170-4,AllData,COLUMN()-1-COLUMN($E170)),VLOOKUP($E170-5,AllData,COLUMN()-1-COLUMN($E170)),VLOOKUP($E170-6,AllData,COLUMN()-1-COLUMN($E170)),VLOOKUP($E170-7,AllData,COLUMN()-1-COLUMN($E170)),VLOOKUP($E170-8,AllData,COLUMN()-1-COLUMN($E170)),VLOOKUP($E170-9,AllData,COLUMN()-1-COLUMN($E170)),VLOOKUP($E170-10,AllData,COLUMN()-1-COLUMN($E170)),VLOOKUP($E170-11,AllData,COLUMN()-1-COLUMN($E170)),VLOOKUP($E170-12,AllData,COLUMN()-1-COLUMN($E170)),VLOOKUP($E170-13,AllData,COLUMN()-1-COLUMN($E170)),VLOOKUP($E170-14,AllData,COLUMN()-1-COLUMN($E170)),VLOOKUP($E170-15,AllData,COLUMN()-1-COLUMN($E170)),VLOOKUP($E170-16,AllData,COLUMN()-1-COLUMN($E170)),VLOOKUP($E170-17,AllData,COLUMN()-1-COLUMN($E170)),VLOOKUP($E170-18,AllData,COLUMN()-1-COLUMN($E170)),VLOOKUP($E170-19,AllData,COLUMN()-1-COLUMN($E170)),VLOOKUP($E170-20,AllData,COLUMN()-1-COLUMN($E170)),VLOOKUP($E170-21,AllData,COLUMN()-1-COLUMN($E170)),VLOOKUP($E170-22,AllData,COLUMN()-1-COLUMN($E170)),VLOOKUP($E170-23,AllData,COLUMN()-1-COLUMN($E170)),VLOOKUP($E170-24,AllData,COLUMN()-1-COLUMN($E170)),VLOOKUP($E170-25,AllData,COLUMN()-1-COLUMN($E170)),VLOOKUP($E170-26,AllData,COLUMN()-1-COLUMN($E170)),VLOOKUP($E170-27,AllData,COLUMN()-1-COLUMN($E170)),VLOOKUP($E170-28,AllData,COLUMN()-1-COLUMN($E170)),VLOOKUP($E170-29,AllData,COLUMN()-1-COLUMN($E170)))","v":23404.403294949461},{"$f":"VLOOKUP($E170,AllData,COLUMN()-2-COLUMN($E170))","v":717.84548526565686},{"$f":"OR('Cool Graph'!$H$1=35,'Cool Graph'!$H$1=36,'Cool Graph'!$H$1=37,'Cool Graph'!$H$1=38,'Cool Graph'!$H$1=39,'Cool Graph'!$H$1=40,'Cool Graph'!$H$1=41,'Cool Graph'!$H$1=42,'Cool Graph'!$H$1=43,'Cool Graph'!$H$1=44,'Cool Graph'!$H$1=45,'Cool Graph'!$H$1=46,'Cool Graph'!$H$1=47,'Cool Graph'!$H$1=58,'Cool Graph'!$H$1=66)","v":false},{"$f":"SUM(VLOOKUP($E170,AllData,COLUMN()-5-COLUMN($E170)),VLOOKUP($E170-1,AllData,COLUMN()-5-COLUMN($E170)),VLOOKUP($E170-2,AllData,COLUMN()-5-COLUMN($E170)),VLOOKUP($E170-3,AllData,COLUMN()-5-COLUMN($E170)),VLOOKUP($E170-4,AllData,COLUMN()-5-COLUMN($E170)),VLOOKUP($E170-5,AllData,COLUMN()-5-COLUMN($E170)),VLOOKUP($E170-6,AllData,COLUMN()-5-COLUMN($E170)))","v":526.81000000000006},{"$f":"SUM(VLOOKUP($E170,AllData,COLUMN()-6-COLUMN($E170)),VLOOKUP($E170-1,AllData,COLUMN()-6-COLUMN($E170)),VLOOKUP($E170-2,AllData,COLUMN()-6-COLUMN($E170)),VLOOKUP($E170-3,AllData,COLUMN()-6-COLUMN($E170)),VLOOKUP($E170-4,AllData,COLUMN()-6-COLUMN($E170)),VLOOKUP($E170-5,AllData,COLUMN()-6-COLUMN($E170)),VLOOKUP($E170-6,AllData,COLUMN()-6-COLUMN($E170)),VLOOKUP($E170-7,AllData,COLUMN()-6-COLUMN($E170)),VLOOKUP($E170-8,AllData,COLUMN()-6-COLUMN($E170)),VLOOKUP($E170-9,AllData,COLUMN()-6-COLUMN($E170)),VLOOKUP($E170-10,AllData,COLUMN()-6-COLUMN($E170)),VLOOKUP($E170-11,AllData,COLUMN()-6-COLUMN($E170)),VLOOKUP($E170-12,AllData,COLUMN()-6-COLUMN($E170)),VLOOKUP($E170-13,AllData,COLUMN()-6-COLUMN($E170)),VLOOKUP($E170-14,AllData,COLUMN()-6-COLUMN($E170)),VLOOKUP($E170-15,AllData,COLUMN()-6-COLUMN($E170)),VLOOKUP($E170-16,AllData,COLUMN()-6-COLUMN($E170)),VLOOKUP($E170-17,AllData,COLUMN()-6-COLUMN($E170)),VLOOKUP($E170-18,AllData,COLUMN()-6-COLUMN($E170)),VLOOKUP($E170-19,AllData,COLUMN()-6-COLUMN($E170)),VLOOKUP($E170-20,AllData,COLUMN()-6-COLUMN($E170)),VLOOKUP($E170-21,AllData,COLUMN()-6-COLUMN($E170)),VLOOKUP($E170-22,AllData,COLUMN()-6-COLUMN($E170)),VLOOKUP($E170-23,AllData,COLUMN()-6-COLUMN($E170)),VLOOKUP($E170-24,AllData,COLUMN()-6-COLUMN($E170)),VLOOKUP($E170-25,AllData,COLUMN()-6-COLUMN($E170)),VLOOKUP($E170-26,AllData,COLUMN()-6-COLUMN($E170)),VLOOKUP($E170-27,AllData,COLUMN()-6-COLUMN($E170)),VLOOKUP($E170-28,AllData,COLUMN()-6-COLUMN($E170)),VLOOKUP($E170-29,AllData,COLUMN()-6-COLUMN($E170)))","v":3216.8000000000006},{"$f":"VLOOKUP($E170,AllData,COLUMN()-7-COLUMN($E170))","v":19.37},{"$f":"OR('Cool Graph'!$I$1=35,'Cool Graph'!$I$1=36,'Cool Graph'!$I$1=37,'Cool Graph'!$I$1=38,'Cool Graph'!$I$1=39,'Cool Graph'!$I$1=40,'Cool Graph'!$I$1=41,'Cool Graph'!$I$1=42,'Cool Graph'!$I$1=43,'Cool Graph'!$I$1=44,'Cool Graph'!$I$1=45,'Cool Graph'!$I$1=46,'Cool Graph'!$I$1=47,'Cool Graph'!$I$1=58,'Cool Graph'!$I$1=66)","v":false}]
["2011-12-17",{"$f":"OFFSET(OldSchoolJustValues!A171,0,'Cool Graph'!$H$1)","v":61.98},{"$f":"OFFSET(OldSchoolJustValues!A171,0,'Cool Graph'!$I$1)","v":313.70696001171274},null,{"$f":"IF(NewDate>EndDate,NA(),NewDate)","v":"2012-03-13"},{"$f":"IF($E171>EndDate,NA(),IF($K$2=TRUE,N171,IF('Cool Graph'!$B$17=1,N171,IF('Cool Graph'!$B$17=2,L171,IF('Cool Graph'!$B$17=3,M171,)))))","v":26.23},{"$f":"IF($E171>EndDate,NA(),IF($O$2=TRUE,J171,IF('Cool Graph'!$B$17=1,Data1!J171,IF('Cool Graph'!$B$17=2,Data1!H171,IF('Cool Graph'!$B$17=3,Data1!I171,)))))","v":1108.1763728867752},{"$f":"SUM(VLOOKUP($E171,AllData,COLUMN()-COLUMN($E171)),VLOOKUP($E171-1,AllData,COLUMN()-COLUMN($E171)),VLOOKUP($E171-2,AllData,COLUMN()-COLUMN($E171)),VLOOKUP($E171-3,AllData,COLUMN()-COLUMN($E171)),VLOOKUP($E171-4,AllData,COLUMN()-COLUMN($E171)),VLOOKUP($E171-5,AllData,COLUMN()-COLUMN($E171)),VLOOKUP($E171-6,AllData,COLUMN()-COLUMN($E171)))","v":5314.4998996958348},{"$f":"SUM(VLOOKUP($E171,AllData,COLUMN()-1-COLUMN($E171)),VLOOKUP($E171-1,AllData,COLUMN()-1-COLUMN($E171)),VLOOKUP($E171-2,AllData,COLUMN()-1-COLUMN($E171)),VLOOKUP($E171-3,AllData,COLUMN()-1-COLUMN($E171)),VLOOKUP($E171-4,AllData,COLUMN()-1-COLUMN($E171)),VLOOKUP($E171-5,AllData,COLUMN()-1-COLUMN($E171)),VLOOKUP($E171-6,AllData,COLUMN()-1-COLUMN($E171)),VLOOKUP($E171-7,AllData,COLUMN()-1-COLUMN($E171)),VLOOKUP($E171-8,AllData,COLUMN()-1-COLUMN($E171)),VLOOKUP($E171-9,AllData,COLUMN()-1-COLUMN($E171)),VLOOKUP($E171-10,AllData,COLUMN()-1-COLUMN($E171)),VLOOKUP($E171-11,AllData,COLUMN()-1-COLUMN($E171)),VLOOKUP($E171-12,AllData,COLUMN()-1-COLUMN($E171)),VLOOKUP($E171-13,AllData,COLUMN()-1-COLUMN($E171)),VLOOKUP($E171-14,AllData,COLUMN()-1-COLUMN($E171)),VLOOKUP($E171-15,AllData,COLUMN()-1-COLUMN($E171)),VLOOKUP($E171-16,AllData,COLUMN()-1-COLUMN($E171)),VLOOKUP($E171-17,AllData,COLUMN()-1-COLUMN($E171)),VLOOKUP($E171-18,AllData,COLUMN()-1-COLUMN($E171)),VLOOKUP($E171-19,AllData,COLUMN()-1-COLUMN($E171)),VLOOKUP($E171-20,AllData,COLUMN()-1-COLUMN($E171)),VLOOKUP($E171-21,AllData,COLUMN()-1-COLUMN($E171)),VLOOKUP($E171-22,AllData,COLUMN()-1-COLUMN($E171)),VLOOKUP($E171-23,AllData,COLUMN()-1-COLUMN($E171)),VLOOKUP($E171-24,AllData,COLUMN()-1-COLUMN($E171)),VLOOKUP($E171-25,AllData,COLUMN()-1-COLUMN($E171)),VLOOKUP($E171-26,AllData,COLUMN()-1-COLUMN($E171)),VLOOKUP($E171-27,AllData,COLUMN()-1-COLUMN($E171)),VLOOKUP($E171-28,AllData,COLUMN()-1-COLUMN($E171)),VLOOKUP($E171-29,AllData,COLUMN()-1-COLUMN($E171)))","v":23974.002002419056},{"$f":"VLOOKUP($E171,AllData,COLUMN()-2-COLUMN($E171))","v":1108.1763728867752},{"$f":"OR('Cool Graph'!$H$1=35,'Cool Graph'!$H$1=36,'Cool Graph'!$H$1=37,'Cool Graph'!$H$1=38,'Cool Graph'!$H$1=39,'Cool Graph'!$H$1=40,'Cool Graph'!$H$1=41,'Cool Graph'!$H$1=42,'Cool Graph'!$H$1=43,'Cool Graph'!$H$1=44,'Cool Graph'!$H$1=45,'Cool Graph'!$H$1=46,'Cool Graph'!$H$1=47,'Cool Graph'!$H$1=58,'Cool Graph'!$H$1=66)","v":false},{"$f":"SUM(VLOOKUP($E171,AllData,COLUMN()-5-COLUMN($E171)),VLOOKUP($E171-1,AllData,COLUMN()-5-COLUMN($E171)),VLOOKUP($E171-2,AllData,COLUMN()-5-COLUMN($E171)),VLOOKUP($E171-3,AllData,COLUMN()-5-COLUMN($E171)),VLOOKUP($E171-4,AllData,COLUMN()-5-COLUMN($E171)),VLOOKUP($E171-5,AllData,COLUMN()-5-COLUMN($E171)),VLOOKUP($E171-6,AllData,COLUMN()-5-COLUMN($E171)))","v":535.85},{"$f":"SUM(VLOOKUP($E171,AllData,COLUMN()-6-COLUMN($E171)),VLOOKUP($E171-1,AllData,COLUMN()-6-COLUMN($E171)),VLOOKUP($E171-2,AllData,COLUMN()-6-COLUMN($E171)),VLOOKUP($E171-3,AllData,COLUMN()-6-COLUMN($E171)),VLOOKUP($E171-4,AllData,COLUMN()-6-COLUMN($E171)),VLOOKUP($E171-5,AllData,COLUMN()-6-COLUMN($E171)),VLOOKUP($E171-6,AllData,COLUMN()-6-COLUMN($E171)),VLOOKUP($E171-7,AllData,COLUMN()-6-COLUMN($E171)),VLOOKUP($E171-8,AllData,COLUMN()-6-COLUMN($E171)),VLOOKUP($E171-9,AllData,COLUMN()-6-COLUMN($E171)),VLOOKUP($E171-10,AllData,COLUMN()-6-COLUMN($E171)),VLOOKUP($E171-11,AllData,COLUMN()-6-COLUMN($E171)),VLOOKUP($E171-12,AllData,COLUMN()-6-COLUMN($E171)),VLOOKUP($E171-13,AllData,COLUMN()-6-COLUMN($E171)),VLOOKUP($E171-14,AllData,COLUMN()-6-COLUMN($E171)),VLOOKUP($E171-15,AllData,COLUMN()-6-COLUMN($E171)),VLOOKUP($E171-16,AllData,COLUMN()-6-COLUMN($E171)),VLOOKUP($E171-17,AllData,COLUMN()-6-COLUMN($E171)),VLOOKUP($E171-18,AllData,COLUMN()-6-COLUMN($E171)),VLOOKUP($E171-19,AllData,COLUMN()-6-COLUMN($E171)),VLOOKUP($E171-20,AllData,COLUMN()-6-COLUMN($E171)),VLOOKUP($E171-21,AllData,COLUMN()-6-COLUMN($E171)),VLOOKUP($E171-22,AllData,COLUMN()-6-COLUMN($E171)),VLOOKUP($E171-23,AllData,COLUMN()-6-COLUMN($E171)),VLOOKUP($E171-24,AllData,COLUMN()-6-COLUMN($E171)),VLOOKUP($E171-25,AllData,COLUMN()-6-COLUMN($E171)),VLOOKUP($E171-26,AllData,COLUMN()-6-COLUMN($E171)),VLOOKUP($E171-27,AllData,COLUMN()-6-COLUMN($E171)),VLOOKUP($E171-28,AllData,COLUMN()-6-COLUMN($E171)),VLOOKUP($E171-29,AllData,COLUMN()-6-COLUMN($E171)))","v":3127.3300000000008},{"$f":"VLOOKUP($E171,AllData,COLUMN()-7-COLUMN($E171))","v":26.23},{"$f":"OR('Cool Graph'!$I$1=35,'Cool Graph'!$I$1=36,'Cool Graph'!$I$1=37,'Cool Graph'!$I$1=38,'Cool Graph'!$I$1=39,'Cool Graph'!$I$1=40,'Cool Graph'!$I$1=41,'Cool Graph'!$I$1=42,'Cool Graph'!$I$1=43,'Cool Graph'!$I$1=44,'Cool Graph'!$I$1=45,'Cool Graph'!$I$1=46,'Cool Graph'!$I$1=47,'Cool Graph'!$I$1=58,'Cool Graph'!$I$1=66)","v":false}]
["2011-12-18",{"$f":"OFFSET(OldSchoolJustValues!A172,0,'Cool Graph'!$H$1)","v":2.63},{"$f":"OFFSET(OldSchoolJustValues!A172,0,'Cool Graph'!$I$1)","v":590.60849529708617},null,{"$f":"IF(NewDate>EndDate,NA(),NewDate)","v":"2012-03-14"},{"$f":"IF($E172>EndDate,NA(),IF($K$2=TRUE,N172,IF('Cool Graph'!$B$17=1,N172,IF('Cool Graph'!$B$17=2,L172,IF('Cool Graph'!$B$17=3,M172,)))))","v":10.36},{"$f":"IF($E172>EndDate,NA(),IF($O$2=TRUE,J172,IF('Cool Graph'!$B$17=1,Data1!J172,IF('Cool Graph'!$B$17=2,Data1!H172,IF('Cool Graph'!$B$17=3,Data1!I172,)))))","v":395.19052345693774},{"$f":"SUM(VLOOKUP($E172,AllData,COLUMN()-COLUMN($E172)),VLOOKUP($E172-1,AllData,COLUMN()-COLUMN($E172)),VLOOKUP($E172-2,AllData,COLUMN()-COLUMN($E172)),VLOOKUP($E172-3,AllData,COLUMN()-COLUMN($E172)),VLOOKUP($E172-4,AllData,COLUMN()-COLUMN($E172)),VLOOKUP($E172-5,AllData,COLUMN()-COLUMN($E172)),VLOOKUP($E172-6,AllData,COLUMN()-COLUMN($E172)))","v":4739.5006199426844},{"$f":"SUM(VLOOKUP($E172,AllData,COLUMN()-1-COLUMN($E172)),VLOOKUP($E172-1,AllData,COLUMN()-1-COLUMN($E172)),VLOOKUP($E172-2,AllData,COLUMN()-1-COLUMN($E172)),VLOOKUP($E172-3,AllData,COLUMN()-1-COLUMN($E172)),VLOOKUP($E172-4,AllData,COLUMN()-1-COLUMN($E172)),VLOOKUP($E172-5,AllData,COLUMN()-1-COLUMN($E172)),VLOOKUP($E172-6,AllData,COLUMN()-1-COLUMN($E172)),VLOOKUP($E172-7,AllData,COLUMN()-1-COLUMN($E172)),VLOOKUP($E172-8,AllData,COLUMN()-1-COLUMN($E172)),VLOOKUP($E172-9,AllData,COLUMN()-1-COLUMN($E172)),VLOOKUP($E172-10,AllData,COLUMN()-1-COLUMN($E172)),VLOOKUP($E172-11,AllData,COLUMN()-1-COLUMN($E172)),VLOOKUP($E172-12,AllData,COLUMN()-1-COLUMN($E172)),VLOOKUP($E172-13,AllData,COLUMN()-1-COLUMN($E172)),VLOOKUP($E172-14,AllData,COLUMN()-1-COLUMN($E172)),VLOOKUP($E172-15,AllData,COLUMN()-1-COLUMN($E172)),VLOOKUP($E172-16,AllData,COLUMN()-1-COLUMN($E172)),VLOOKUP($E172-17,AllData,COLUMN()-1-COLUMN($E172)),VLOOKUP($E172-18,AllData,COLUMN()-1-COLUMN($E172)),VLOOKUP($E172-19,AllData,COLUMN()-1-COLUMN($E172)),VLOOKUP($E172-20,AllData,COLUMN()-1-COLUMN($E172)),VLOOKUP($E172-21,AllData,COLUMN()-1-COLUMN($E172)),VLOOKUP($E172-22,AllData,COLUMN()-1-COLUMN($E172)),VLOOKUP($E172-23,AllData,COLUMN()-1-COLUMN($E172)),VLOOKUP($E172-24,AllData,COLUMN()-1-COLUMN($E172)),VLOOKUP($E172-25,AllData,COLUMN()-1-COLUMN($E172)),VLOOKUP($E172-26,AllData,COLUMN()-1-COLUMN($E172)),VLOOKUP($E172-27,AllData,COLUMN()-1-COLUMN($E172)),VLOOKUP($E172-28,AllData,COLUMN()-1-COLUMN($E172)),VLOOKUP($E172-29,AllData,COLUMN()-1-COLUMN($E172)))","v":23932.115821059713},{"$f":"VLOOKUP($E172,AllData,COLUMN()-2-COLUMN($E172))","v":395.19052345693774},{"$f":"OR('Cool Graph'!$H$1=35,'Cool Graph'!$H$1=36,'Cool Graph'!$H$1=37,'Cool Graph'!$H$1=38,'Cool Graph'!$H$1=39,'Cool Graph'!$H$1=40,'Cool Graph'!$H$1=41,'Cool Graph'!$H$1=42,'Cool Graph'!$H$1=43,'Cool Graph'!$H$1=44,'Cool Graph'!$H$1=45,'Cool Graph'!$H$1=46,'Cool Graph'!$H$1=47,'Cool Graph'!$H$1=58,'Cool Graph'!$H$1=66)","v":false},{"$f":"SUM(VLOOKUP($E172,AllData,COLUMN()-5-COLUMN($E172)),VLOOKUP($E172-1,AllData,COLUMN()-5-COLUMN($E172)),VLOOKUP($E172-2,AllData,COLUMN()-5-COLUMN($E172)),VLOOKUP($E172-3,AllData,COLUMN()-5-COLUMN($E172)),VLOOKUP($E172-4,AllData,COLUMN()-5-COLUMN($E172)),VLOOKUP($E172-5,AllData,COLUMN()-5-COLUMN($E172)),VLOOKUP($E172-6,AllData,COLUMN()-5-COLUMN($E172)))","v":327.31},{"$f":"SUM(VLOOKUP($E172,AllData,COLUMN()-6-COLUMN($E172)),VLOOKUP($E172-1,AllData,COLUMN()-6-COLUMN($E172)),VLOOKUP($E172-2,AllData,COLUMN()-6-COLUMN($E172)),VLOOKUP($E172-3,AllData,COLUMN()-6-COLUMN($E172)),VLOOKUP($E172-4,AllData,COLUMN()-6-COLUMN($E172)),VLOOKUP($E172-5,AllData,COLUMN()-6-COLUMN($E172)),VLOOKUP($E172-6,AllData,COLUMN()-6-COLUMN($E172)),VLOOKUP($E172-7,AllData,COLUMN()-6-COLUMN($E172)),VLOOKUP($E172-8,AllData,COLUMN()-6-COLUMN($E172)),VLOOKUP($E172-9,AllData,COLUMN()-6-COLUMN($E172)),VLOOKUP($E172-10,AllData,COLUMN()-6-COLUMN($E172)),VLOOKUP($E172-11,AllData,COLUMN()-6-COLUMN($E172)),VLOOKUP($E172-12,AllData,COLUMN()-6-COLUMN($E172)),VLOOKUP($E172-13,AllData,COLUMN()-6-COLUMN($E172)),VLOOKUP($E172-14,AllData,COLUMN()-6-COLUMN($E172)),VLOOKUP($E172-15,AllData,COLUMN()-6-COLUMN($E172)),VLOOKUP($E172-16,AllData,COLUMN()-6-COLUMN($E172)),VLOOKUP($E172-17,AllData,COLUMN()-6-COLUMN($E172)),VLOOKUP($E172-18,AllData,COLUMN()-6-COLUMN($E172)),VLOOKUP($E172-19,AllData,COLUMN()-6-COLUMN($E172)),VLOOKUP($E172-20,AllData,COLUMN()-6-COLUMN($E172)),VLOOKUP($E172-21,AllData,COLUMN()-6-COLUMN($E172)),VLOOKUP($E172-22,AllData,COLUMN()-6-COLUMN($E172)),VLOOKUP($E172-23,AllData,COLUMN()-6-COLUMN($E172)),VLOOKUP($E172-24,AllData,COLUMN()-6-COLUMN($E172)),VLOOKUP($E172-25,AllData,COLUMN()-6-COLUMN($E172)),VLOOKUP($E172-26,AllData,COLUMN()-6-COLUMN($E172)),VLOOKUP($E172-27,AllData,COLUMN()-6-COLUMN($E172)),VLOOKUP($E172-28,AllData,COLUMN()-6-COLUMN($E172)),VLOOKUP($E172-29,AllData,COLUMN()-6-COLUMN($E172)))","v":3066.9100000000008},{"$f":"VLOOKUP($E172,AllData,COLUMN()-7-COLUMN($E172))","v":10.36},{"$f":"OR('Cool Graph'!$I$1=35,'Cool Graph'!$I$1=36,'Cool Graph'!$I$1=37,'Cool Graph'!$I$1=38,'Cool Graph'!$I$1=39,'Cool Graph'!$I$1=40,'Cool Graph'!$I$1=41,'Cool Graph'!$I$1=42,'Cool Graph'!$I$1=43,'Cool Graph'!$I$1=44,'Cool Graph'!$I$1=45,'Cool Graph'!$I$1=46,'Cool Graph'!$I$1=47,'Cool Graph'!$I$1=58,'Cool Graph'!$I$1=66)","v":false}]
["2011-12-19",{"$f":"OFFSET(OldSchoolJustValues!A173,0,'Cool Graph'!$H$1)","v":0},{"$f":"OFFSET(OldSchoolJustValues!A173,0,'Cool Graph'!$I$1)","v":1277.3323335105194},null,{"$f":"IF(NewDate>EndDate,NA(),NewDate)","v":"2012-03-15"},{"$f":"IF($E173>EndDate,NA(),IF($K$2=TRUE,N173,IF('Cool Graph'!$B$17=1,N173,IF('Cool Graph'!$B$17=2,L173,IF('Cool Graph'!$B$17=3,M173,)))))","v":45.53},{"$f":"IF($E173>EndDate,NA(),IF($O$2=TRUE,J173,IF('Cool Graph'!$B$17=1,Data1!J173,IF('Cool Graph'!$B$17=2,Data1!H173,IF('Cool Graph'!$B$17=3,Data1!I173,)))))","v":317.31645215182937},{"$f":"SUM(VLOOKUP($E173,AllData,COLUMN()-COLUMN($E173)),VLOOKUP($E173-1,AllData,COLUMN()-COLUMN($E173)),VLOOKUP($E173-2,AllData,COLUMN()-COLUMN($E173)),VLOOKUP($E173-3,AllData,COLUMN()-COLUMN($E173)),VLOOKUP($E173-4,AllData,COLUMN()-COLUMN($E173)),VLOOKUP($E173-5,AllData,COLUMN()-COLUMN($E173)),VLOOKUP($E173-6,AllData,COLUMN()-COLUMN($E173)))","v":4421.2046876622862},{"$f":"SUM(VLOOKUP($E173,AllData,COLUMN()-1-COLUMN($E173)),VLOOKUP($E173-1,AllData,COLUMN()-1-COLUMN($E173)),VLOOKUP($E173-2,AllData,COLUMN()-1-COLUMN($E173)),VLOOKUP($E173-3,AllData,COLUMN()-1-COLUMN($E173)),VLOOKUP($E173-4,AllData,COLUMN()-1-COLUMN($E173)),VLOOKUP($E173-5,AllData,COLUMN()-1-COLUMN($E173)),VLOOKUP($E173-6,AllData,COLUMN()-1-COLUMN($E173)),VLOOKUP($E173-7,AllData,COLUMN()-1-COLUMN($E173)),VLOOKUP($E173-8,AllData,COLUMN()-1-COLUMN($E173)),VLOOKUP($E173-9,AllData,COLUMN()-1-COLUMN($E173)),VLOOKUP($E173-10,AllData,COLUMN()-1-COLUMN($E173)),VLOOKUP($E173-11,AllData,COLUMN()-1-COLUMN($E173)),VLOOKUP($E173-12,AllData,COLUMN()-1-COLUMN($E173)),VLOOKUP($E173-13,AllData,COLUMN()-1-COLUMN($E173)),VLOOKUP($E173-14,AllData,COLUMN()-1-COLUMN($E173)),VLOOKUP($E173-15,AllData,COLUMN()-1-COLUMN($E173)),VLOOKUP($E173-16,AllData,COLUMN()-1-COLUMN($E173)),VLOOKUP($E173-17,AllData,COLUMN()-1-COLUMN($E173)),VLOOKUP($E173-18,AllData,COLUMN()-1-COLUMN($E173)),VLOOKUP($E173-19,AllData,COLUMN()-1-COLUMN($E173)),VLOOKUP($E173-20,AllData,COLUMN()-1-COLUMN($E173)),VLOOKUP($E173-21,AllData,COLUMN()-1-COLUMN($E173)),VLOOKUP($E173-22,AllData,COLUMN()-1-COLUMN($E173)),VLOOKUP($E173-23,AllData,COLUMN()-1-COLUMN($E173)),VLOOKUP($E173-24,AllData,COLUMN()-1-COLUMN($E173)),VLOOKUP($E173-25,AllData,COLUMN()-1-COLUMN($E173)),VLOOKUP($E173-26,AllData,COLUMN()-1-COLUMN($E173)),VLOOKUP($E173-27,AllData,COLUMN()-1-COLUMN($E173)),VLOOKUP($E173-28,AllData,COLUMN()-1-COLUMN($E173)),VLOOKUP($E173-29,AllData,COLUMN()-1-COLUMN($E173)))","v":23335.126394949806},{"$f":"VLOOKUP($E173,AllData,COLUMN()-2-COLUMN($E173))","v":317.31645215182937},{"$f":"OR('Cool Graph'!$H$1=35,'Cool Graph'!$H$1=36,'Cool Graph'!$H$1=37,'Cool Graph'!$H$1=38,'Cool Graph'!$H$1=39,'Cool Graph'!$H$1=40,'Cool Graph'!$H$1=41,'Cool Graph'!$H$1=42,'Cool Graph'!$H$1=43,'Cool Graph'!$H$1=44,'Cool Graph'!$H$1=45,'Cool Graph'!$H$1=46,'Cool Graph'!$H$1=47,'Cool Graph'!$H$1=58,'Cool Graph'!$H$1=66)","v":false},{"$f":"SUM(VLOOKUP($E173,AllData,COLUMN()-5-COLUMN($E173)),VLOOKUP($E173-1,AllData,COLUMN()-5-COLUMN($E173)),VLOOKUP($E173-2,AllData,COLUMN()-5-COLUMN($E173)),VLOOKUP($E173-3,AllData,COLUMN()-5-COLUMN($E173)),VLOOKUP($E173-4,AllData,COLUMN()-5-COLUMN($E173)),VLOOKUP($E173-5,AllData,COLUMN()-5-COLUMN($E173)),VLOOKUP($E173-6,AllData,COLUMN()-5-COLUMN($E173)))","v":196.22},{"$f":"SUM(VLOOKUP($E173,AllData,COLUMN()-6-COLUMN($E173)),VLOOKUP($E173-1,AllData,COLUMN()-6-COLUMN($E173)),VLOOKUP($E173-2,AllData,COLUMN()-6-COLUMN($E173)),VLOOKUP($E173-3,AllData,COLUMN()-6-COLUMN($E173)),VLOOKUP($E173-4,AllData,COLUMN()-6-COLUMN($E173)),VLOOKUP($E173-5,AllData,COLUMN()-6-COLUMN($E173)),VLOOKUP($E173-6,AllData,COLUMN()-6-COLUMN($E173)),VLOOKUP($E173-7,AllData,COLUMN()-6-COLUMN($E173)),VLOOKUP($E173-8,AllData,COLUMN()-6-COLUMN($E173)),VLOOKUP($E173-9,AllData,COLUMN()-6-COLUMN($E173)),VLOOKUP($E173-10,AllData,COLUMN()-6-COLUMN($E173)),VLOOKUP($E173-11,AllData,COLUMN()-6-COLUMN($E173)),VLOOKUP($E173-12,AllData,COLUMN()-6-COLUMN($E173)),VLOOKUP($E173-13,AllData,COLUMN()-6-COLUMN($E173)),VLOOKUP($E173-14,AllData,COLUMN()-6-COLUMN($E173)),VLOOKUP($E173-15,AllData,COLUMN()-6-COLUMN($E173)),VLOOKUP($E173-16,AllData,COLUMN()-6-COLUMN($E173)),VLOOKUP($E173-17,AllData,COLUMN()-6-COLUMN($E173)),VLOOKUP($E173-18,AllData,COLUMN()-6-COLUMN($E173)),VLOOKUP($E173-19,AllData,COLUMN()-6-COLUMN($E173)),VLOOKUP($E173-20,AllData,COLUMN()-6-COLUMN($E173)),VLOOKUP($E173-21,AllData,COLUMN()-6-COLUMN($E173)),VLOOKUP($E173-22,AllData,COLUMN()-6-COLUMN($E173)),VLOOKUP($E173-23,AllData,COLUMN()-6-COLUMN($E173)),VLOOKUP($E173-24,AllData,COLUMN()-6-COLUMN($E173)),VLOOKUP($E173-25,AllData,COLUMN()-6-COLUMN($E173)),VLOOKUP($E173-26,AllData,COLUMN()-6-COLUMN($E173)),VLOOKUP($E173-27,AllData,COLUMN()-6-COLUMN($E173)),VLOOKUP($E173-28,AllData,COLUMN()-6-COLUMN($E173)),VLOOKUP($E173-29,AllData,COLUMN()-6-COLUMN($E173)))","v":2916.3700000000003},{"$f":"VLOOKUP($E173,AllData,COLUMN()-7-COLUMN($E173))","v":45.53},{"$f":"OR('Cool Graph'!$I$1=35,'Cool Graph'!$I$1=36,'Cool Graph'!$I$1=37,'Cool Graph'!$I$1=38,'Cool Graph'!$I$1=39,'Cool Graph'!$I$1=40,'Cool Graph'!$I$1=41,'Cool Graph'!$I$1=42,'Cool Graph'!$I$1=43,'Cool Graph'!$I$1=44,'Cool Graph'!$I$1=45,'Cool Graph'!$I$1=46,'Cool Graph'!$I$1=47,'Cool Graph'!$I$1=58,'Cool Graph'!$I$1=66)","v":false}]
["2011-12-20",{"$f":"OFFSET(OldSchoolJustValues!A174,0,'Cool Graph'!$H$1)","v":0},{"$f":"OFFSET(OldSchoolJustValues!A174,0,'Cool Graph'!$I$1)","v":-43.467888982611612},null,{"$f":"IF(NewDate>EndDate,NA(),NewDate)","v":"2012-03-16"},{"$f":"IF($E174>EndDate,NA(),IF($K$2=TRUE,N174,IF('Cool Graph'!$B$17=1,N174,IF('Cool Graph'!$B$17=2,L174,IF('Cool Graph'!$B$17=3,M174,)))))","v":122.35},{"$f":"IF($E174>EndDate,NA(),IF($O$2=TRUE,J174,IF('Cool Graph'!$B$17=1,Data1!J174,IF('Cool Graph'!$B$17=2,Data1!H174,IF('Cool Graph'!$B$17=3,Data1!I174,)))))","v":697.18620840197605},{"$f":"SUM(VLOOKUP($E174,AllData,COLUMN()-COLUMN($E174)),VLOOKUP($E174-1,AllData,COLUMN()-COLUMN($E174)),VLOOKUP($E174-2,AllData,COLUMN()-COLUMN($E174)),VLOOKUP($E174-3,AllData,COLUMN()-COLUMN($E174)),VLOOKUP($E174-4,AllData,COLUMN()-COLUMN($E174)),VLOOKUP($E174-5,AllData,COLUMN()-COLUMN($E174)),VLOOKUP($E174-6,AllData,COLUMN()-COLUMN($E174)))","v":4328.3879424524075},{"$f":"SUM(VLOOKUP($E174,AllData,COLUMN()-1-COLUMN($E174)),VLOOKUP($E174-1,AllData,COLUMN()-1-COLUMN($E174)),VLOOKUP($E174-2,AllData,COLUMN()-1-COLUMN($E174)),VLOOKUP($E174-3,AllData,COLUMN()-1-COLUMN($E174)),VLOOKUP($E174-4,AllData,COLUMN()-1-COLUMN($E174)),VLOOKUP($E174-5,AllData,COLUMN()-1-COLUMN($E174)),VLOOKUP($E174-6,AllData,COLUMN()-1-COLUMN($E174)),VLOOKUP($E174-7,AllData,COLUMN()-1-COLUMN($E174)),VLOOKUP($E174-8,AllData,COLUMN()-1-COLUMN($E174)),VLOOKUP($E174-9,AllData,COLUMN()-1-COLUMN($E174)),VLOOKUP($E174-10,AllData,COLUMN()-1-COLUMN($E174)),VLOOKUP($E174-11,AllData,COLUMN()-1-COLUMN($E174)),VLOOKUP($E174-12,AllData,COLUMN()-1-COLUMN($E174)),VLOOKUP($E174-13,AllData,COLUMN()-1-COLUMN($E174)),VLOOKUP($E174-14,AllData,COLUMN()-1-COLUMN($E174)),VLOOKUP($E174-15,AllData,COLUMN()-1-COLUMN($E174)),VLOOKUP($E174-16,AllData,COLUMN()-1-COLUMN($E174)),VLOOKUP($E174-17,AllData,COLUMN()-1-COLUMN($E174)),VLOOKUP($E174-18,AllData,COLUMN()-1-COLUMN($E174)),VLOOKUP($E174-19,AllData,COLUMN()-1-COLUMN($E174)),VLOOKUP($E174-20,AllData,COLUMN()-1-COLUMN($E174)),VLOOKUP($E174-21,AllData,COLUMN()-1-COLUMN($E174)),VLOOKUP($E174-22,AllData,COLUMN()-1-COLUMN($E174)),VLOOKUP($E174-23,AllData,COLUMN()-1-COLUMN($E174)),VLOOKUP($E174-24,AllData,COLUMN()-1-COLUMN($E174)),VLOOKUP($E174-25,AllData,COLUMN()-1-COLUMN($E174)),VLOOKUP($E174-26,AllData,COLUMN()-1-COLUMN($E174)),VLOOKUP($E174-27,AllData,COLUMN()-1-COLUMN($E174)),VLOOKUP($E174-28,AllData,COLUMN()-1-COLUMN($E174)),VLOOKUP($E174-29,AllData,COLUMN()-1-COLUMN($E174)))","v":23747.039116289117},{"$f":"VLOOKUP($E174,AllData,COLUMN()-2-COLUMN($E174))","v":697.18620840197605},{"$f":"OR('Cool Graph'!$H$1=35,'Cool Graph'!$H$1=36,'Cool Graph'!$H$1=37,'Cool Graph'!$H$1=38,'Cool Graph'!$H$1=39,'Cool Graph'!$H$1=40,'Cool Graph'!$H$1=41,'Cool Graph'!$H$1=42,'Cool Graph'!$H$1=43,'Cool Graph'!$H$1=44,'Cool Graph'!$H$1=45,'Cool Graph'!$H$1=46,'Cool Graph'!$H$1=47,'Cool Graph'!$H$1=58,'Cool Graph'!$H$1=66)","v":false},{"$f":"SUM(VLOOKUP($E174,AllData,COLUMN()-5-COLUMN($E174)),VLOOKUP($E174-1,AllData,COLUMN()-5-COLUMN($E174)),VLOOKUP($E174-2,AllData,COLUMN()-5-COLUMN($E174)),VLOOKUP($E174-3,AllData,COLUMN()-5-COLUMN($E174)),VLOOKUP($E174-4,AllData,COLUMN()-5-COLUMN($E174)),VLOOKUP($E174-5,AllData,COLUMN()-5-COLUMN($E174)),VLOOKUP($E174-6,AllData,COLUMN()-5-COLUMN($E174)))","v":266.23},{"$f":"SUM(VLOOKUP($E174,AllData,COLUMN()-6-COLUMN($E174)),VLOOKUP($E174-1,AllData,COLUMN()-6-COLUMN($E174)),VLOOKUP($E174-2,AllData,COLUMN()-6-COLUMN($E174)),VLOOKUP($E174-3,AllData,COLUMN()-6-COLUMN($E174)),VLOOKUP($E174-4,AllData,COLUMN()-6-COLUMN($E174)),VLOOKUP($E174-5,AllData,COLUMN()-6-COLUMN($E174)),VLOOKUP($E174-6,AllData,COLUMN()-6-COLUMN($E174)),VLOOKUP($E174-7,AllData,COLUMN()-6-COLUMN($E174)),VLOOKUP($E174-8,AllData,COLUMN()-6-COLUMN($E174)),VLOOKUP($E174-9,AllData,COLUMN()-6-COLUMN($E174)),VLOOKUP($E174-10,AllData,COLUMN()-6-COLUMN($E174)),VLOOKUP($E174-11,AllData,COLUMN()-6-COLUMN($E174)),VLOOKUP($E174-12,AllData,COLUMN()-6-COLUMN($E174)),VLOOKUP($E174-13,AllData,COLUMN()-6-COLUMN($E174)),VLOOKUP($E174-14,AllData,COLUMN()-6-COLUMN($E174)),VLOOKUP($E174-15,AllData,COLUMN()-6-COLUMN($E174)),VLOOKUP($E174-16,AllData,COLUMN()-6-COLUMN($E174)),VLOOKUP($E174-17,AllData,COLUMN()-6-COLUMN($E174)),VLOOKUP($E174-18,AllData,COLUMN()-6-COLUMN($E174)),VLOOKUP($E174-19,AllData,COLUMN()-6-COLUMN($E174)),VLOOKUP($E174-20,AllData,COLUMN()-6-COLUMN($E174)),VLOOKUP($E174-21,AllData,COLUMN()-6-COLUMN($E174)),VLOOKUP($E174-22,AllData,COLUMN()-6-COLUMN($E174)),VLOOKUP($E174-23,AllData,COLUMN()-6-COLUMN($E174)),VLOOKUP($E174-24,AllData,COLUMN()-6-COLUMN($E174)),VLOOKUP($E174-25,AllData,COLUMN()-6-COLUMN($E174)),VLOOKUP($E174-26,AllData,COLUMN()-6-COLUMN($E174)),VLOOKUP($E174-27,AllData,COLUMN()-6-COLUMN($E174)),VLOOKUP($E174-28,AllData,COLUMN()-6-COLUMN($E174)),VLOOKUP($E174-29,AllData,COLUMN()-6-COLUMN($E174)))","v":2866.9400000000005},{"$f":"VLOOKUP($E174,AllData,COLUMN()-7-COLUMN($E174))","v":122.35},{"$f":"OR('Cool Graph'!$I$1=35,'Cool Graph'!$I$1=36,'Cool Graph'!$I$1=37,'Cool Graph'!$I$1=38,'Cool Graph'!$I$1=39,'Cool Graph'!$I$1=40,'Cool Graph'!$I$1=41,'Cool Graph'!$I$1=42,'Cool Graph'!$I$1=43,'Cool Graph'!$I$1=44,'Cool Graph'!$I$1=45,'Cool Graph'!$I$1=46,'Cool Graph'!$I$1=47,'Cool Graph'!$I$1=58,'Cool Graph'!$I$1=66)","v":false}]
["2011-12-21",{"$f":"OFFSET(OldSchoolJustValues!A175,0,'Cool Graph'!$H$1)","v":0},{"$f":"OFFSET(OldSchoolJustValues!A175,0,'Cool Graph'!$I$1)","v":309.0307164151543},null,{"$f":"IF(NewDate>EndDate,NA(),NewDate)","v":"2012-03-17"},{"$f":"IF($E175>EndDate,NA(),IF($K$2=TRUE,N175,IF('Cool Graph'!$B$17=1,N175,IF('Cool Graph'!$B$17=2,L175,IF('Cool Graph'!$B$17=3,M175,)))))","v":64.09},{"$f":"IF($E175>EndDate,NA(),IF($O$2=TRUE,J175,IF('Cool Graph'!$B$17=1,Data1!J175,IF('Cool Graph'!$B$17=2,Data1!H175,IF('Cool Graph'!$B$17=3,Data1!I175,)))))","v":527.13586554717619},{"$f":"SUM(VLOOKUP($E175,AllData,COLUMN()-COLUMN($E175)),VLOOKUP($E175-1,AllData,COLUMN()-COLUMN($E175)),VLOOKUP($E175-2,AllData,COLUMN()-COLUMN($E175)),VLOOKUP($E175-3,AllData,COLUMN()-COLUMN($E175)),VLOOKUP($E175-4,AllData,COLUMN()-COLUMN($E175)),VLOOKUP($E175-5,AllData,COLUMN()-COLUMN($E175)),VLOOKUP($E175-6,AllData,COLUMN()-COLUMN($E175)))","v":4208.1009527896613},{"$f":"SUM(VLOOKUP($E175,AllData,COLUMN()-1-COLUMN($E175)),VLOOKUP($E175-1,AllData,COLUMN()-1-COLUMN($E175)),VLOOKUP($E175-2,AllData,COLUMN()-1-COLUMN($E175)),VLOOKUP($E175-3,AllData,COLUMN()-1-COLUMN($E175)),VLOOKUP($E175-4,AllData,COLUMN()-1-COLUMN($E175)),VLOOKUP($E175-5,AllData,COLUMN()-1-COLUMN($E175)),VLOOKUP($E175-6,AllData,COLUMN()-1-COLUMN($E175)),VLOOKUP($E175-7,AllData,COLUMN()-1-COLUMN($E175)),VLOOKUP($E175-8,AllData,COLUMN()-1-COLUMN($E175)),VLOOKUP($E175-9,AllData,COLUMN()-1-COLUMN($E175)),VLOOKUP($E175-10,AllData,COLUMN()-1-COLUMN($E175)),VLOOKUP($E175-11,AllData,COLUMN()-1-COLUMN($E175)),VLOOKUP($E175-12,AllData,COLUMN()-1-COLUMN($E175)),VLOOKUP($E175-13,AllData,COLUMN()-1-COLUMN($E175)),VLOOKUP($E175-14,AllData,COLUMN()-1-COLUMN($E175)),VLOOKUP($E175-15,AllData,COLUMN()-1-COLUMN($E175)),VLOOKUP($E175-16,AllData,COLUMN()-1-COLUMN($E175)),VLOOKUP($E175-17,AllData,COLUMN()-1-COLUMN($E175)),VLOOKUP($E175-18,AllData,COLUMN()-1-COLUMN($E175)),VLOOKUP($E175-19,AllData,COLUMN()-1-COLUMN($E175)),VLOOKUP($E175-20,AllData,COLUMN()-1-COLUMN($E175)),VLOOKUP($E175-21,AllData,COLUMN()-1-COLUMN($E175)),VLOOKUP($E175-22,AllData,COLUMN()-1-COLUMN($E175)),VLOOKUP($E175-23,AllData,COLUMN()-1-COLUMN($E175)),VLOOKUP($E175-24,AllData,COLUMN()-1-COLUMN($E175)),VLOOKUP($E175-25,AllData,COLUMN()-1-COLUMN($E175)),VLOOKUP($E175-26,AllData,COLUMN()-1-COLUMN($E175)),VLOOKUP($E175-27,AllData,COLUMN()-1-COLUMN($E175)),VLOOKUP($E175-28,AllData,COLUMN()-1-COLUMN($E175)),VLOOKUP($E175-29,AllData,COLUMN()-1-COLUMN($E175)))","v":23565.707757844622},{"$f":"VLOOKUP($E175,AllData,COLUMN()-2-COLUMN($E175))","v":527.13586554717619},{"$f":"OR('Cool Graph'!$H$1=35,'Cool Graph'!$H$1=36,'Cool Graph'!$H$1=37,'Cool Graph'!$H$1=38,'Cool Graph'!$H$1=39,'Cool Graph'!$H$1=40,'Cool Graph'!$H$1=41,'Cool Graph'!$H$1=42,'Cool Graph'!$H$1=43,'Cool Graph'!$H$1=44,'Cool Graph'!$H$1=45,'Cool Graph'!$H$1=46,'Cool Graph'!$H$1=47,'Cool Graph'!$H$1=58,'Cool Graph'!$H$1=66)","v":false},{"$f":"SUM(VLOOKUP($E175,AllData,COLUMN()-5-COLUMN($E175)),VLOOKUP($E175-1,AllData,COLUMN()-5-COLUMN($E175)),VLOOKUP($E175-2,AllData,COLUMN()-5-COLUMN($E175)),VLOOKUP($E175-3,AllData,COLUMN()-5-COLUMN($E175)),VLOOKUP($E175-4,AllData,COLUMN()-5-COLUMN($E175)),VLOOKUP($E175-5,AllData,COLUMN()-5-COLUMN($E175)),VLOOKUP($E175-6,AllData,COLUMN()-5-COLUMN($E175)))","v":309.54000000000002},{"$f":"SUM(VLOOKUP($E175,AllData,COLUMN()-6-COLUMN($E175)),VLOOKUP($E175-1,AllData,COLUMN()-6-COLUMN($E175)),VLOOKUP($E175-2,AllData,COLUMN()-6-COLUMN($E175)),VLOOKUP($E175-3,AllData,COLUMN()-6-COLUMN($E175)),VLOOKUP($E175-4,AllData,COLUMN()-6-COLUMN($E175)),VLOOKUP($E175-5,AllData,COLUMN()-6-COLUMN($E175)),VLOOKUP($E175-6,AllData,COLUMN()-6-COLUMN($E175)),VLOOKUP($E175-7,AllData,COLUMN()-6-COLUMN($E175)),VLOOKUP($E175-8,AllData,COLUMN()-6-COLUMN($E175)),VLOOKUP($E175-9,AllData,COLUMN()-6-COLUMN($E175)),VLOOKUP($E175-10,AllData,COLUMN()-6-COLUMN($E175)),VLOOKUP($E175-11,AllData,COLUMN()-6-COLUMN($E175)),VLOOKUP($E175-12,AllData,COLUMN()-6-COLUMN($E175)),VLOOKUP($E175-13,AllData,COLUMN()-6-COLUMN($E175)),VLOOKUP($E175-14,AllData,COLUMN()-6-COLUMN($E175)),VLOOKUP($E175-15,AllData,COLUMN()-6-COLUMN($E175)),VLOOKUP($E175-16,AllData,COLUMN()-6-COLUMN($E175)),VLOOKUP($E175-17,AllData,COLUMN()-6-COLUMN($E175)),VLOOKUP($E175-18,AllData,COLUMN()-6-COLUMN($E175)),VLOOKUP($E175-19,AllData,COLUMN()-6-COLUMN($E175)),VLOOKUP($E175-20,AllData,COLUMN()-6-COLUMN($E175)),VLOOKUP($E175-21,AllData,COLUMN()-6-COLUMN($E175)),VLOOKUP($E175-22,AllData,COLUMN()-6-COLUMN($E175)),VLOOKUP($E175-23,AllData,COLUMN()-6-COLUMN($E175)),VLOOKUP($E175-24,AllData,COLUMN()-6-COLUMN($E175)),VLOOKUP($E175-25,AllData,COLUMN()-6-COLUMN($E175)),VLOOKUP($E175-26,AllData,COLUMN()-6-COLUMN($E175)),VLOOKUP($E175-27,AllData,COLUMN()-6-COLUMN($E175)),VLOOKUP($E175-28,AllData,COLUMN()-6-COLUMN($E175)),VLOOKUP($E175-29,AllData,COLUMN()-6-COLUMN($E175)))","v":2841.4600000000005},{"$f":"VLOOKUP($E175,AllData,COLUMN()-7-COLUMN($E175))","v":64.09},{"$f":"OR('Cool Graph'!$I$1=35,'Cool Graph'!$I$1=36,'Cool Graph'!$I$1=37,'Cool Graph'!$I$1=38,'Cool Graph'!$I$1=39,'Cool Graph'!$I$1=40,'Cool Graph'!$I$1=41,'Cool Graph'!$I$1=42,'Cool Graph'!$I$1=43,'Cool Graph'!$I$1=44,'Cool Graph'!$I$1=45,'Cool Graph'!$I$1=46,'Cool Graph'!$I$1=47,'Cool Graph'!$I$1=58,'Cool Graph'!$I$1=66)","v":false}]
["2011-12-22",{"$f":"OFFSET(OldSchoolJustValues!A176,0,'Cool Graph'!$H$1)","v":0},{"$f":"OFFSET(OldSchoolJustValues!A176,0,'Cool Graph'!$I$1)","v":103.27058337762986},null,{"$f":"IF(NewDate>EndDate,NA(),NewDate)","v":"2012-03-18"},{"$f":"IF($E176>EndDate,NA(),IF($K$2=TRUE,N176,IF('Cool Graph'!$B$17=1,N176,IF('Cool Graph'!$B$17=2,L176,IF('Cool Graph'!$B$17=3,M176,)))))","v":144.12},{"$f":"IF($E176>EndDate,NA(),IF($O$2=TRUE,J176,IF('Cool Graph'!$B$17=1,Data1!J176,IF('Cool Graph'!$B$17=2,Data1!H176,IF('Cool Graph'!$B$17=3,Data1!I176,)))))","v":1164.5091297334711},{"$f":"SUM(VLOOKUP($E176,AllData,COLUMN()-COLUMN($E176)),VLOOKUP($E176-1,AllData,COLUMN()-COLUMN($E176)),VLOOKUP($E176-2,AllData,COLUMN()-COLUMN($E176)),VLOOKUP($E176-3,AllData,COLUMN()-COLUMN($E176)),VLOOKUP($E176-4,AllData,COLUMN()-COLUMN($E176)),VLOOKUP($E176-5,AllData,COLUMN()-COLUMN($E176)),VLOOKUP($E176-6,AllData,COLUMN()-COLUMN($E176)))","v":4927.3600374438229},{"$f":"SUM(VLOOKUP($E176,AllData,COLUMN()-1-COLUMN($E176)),VLOOKUP($E176-1,AllData,COLUMN()-1-COLUMN($E176)),VLOOKUP($E176-2,AllData,COLUMN()-1-COLUMN($E176)),VLOOKUP($E176-3,AllData,COLUMN()-1-COLUMN($E176)),VLOOKUP($E176-4,AllData,COLUMN()-1-COLUMN($E176)),VLOOKUP($E176-5,AllData,COLUMN()-1-COLUMN($E176)),VLOOKUP($E176-6,AllData,COLUMN()-1-COLUMN($E176)),VLOOKUP($E176-7,AllData,COLUMN()-1-COLUMN($E176)),VLOOKUP($E176-8,AllData,COLUMN()-1-COLUMN($E176)),VLOOKUP($E176-9,AllData,COLUMN()-1-COLUMN($E176)),VLOOKUP($E176-10,AllData,COLUMN()-1-COLUMN($E176)),VLOOKUP($E176-11,AllData,COLUMN()-1-COLUMN($E176)),VLOOKUP($E176-12,AllData,COLUMN()-1-COLUMN($E176)),VLOOKUP($E176-13,AllData,COLUMN()-1-COLUMN($E176)),VLOOKUP($E176-14,AllData,COLUMN()-1-COLUMN($E176)),VLOOKUP($E176-15,AllData,COLUMN()-1-COLUMN($E176)),VLOOKUP($E176-16,AllData,COLUMN()-1-COLUMN($E176)),VLOOKUP($E176-17,AllData,COLUMN()-1-COLUMN($E176)),VLOOKUP($E176-18,AllData,COLUMN()-1-COLUMN($E176)),VLOOKUP($E176-19,AllData,COLUMN()-1-COLUMN($E176)),VLOOKUP($E176-20,AllData,COLUMN()-1-COLUMN($E176)),VLOOKUP($E176-21,AllData,COLUMN()-1-COLUMN($E176)),VLOOKUP($E176-22,AllData,COLUMN()-1-COLUMN($E176)),VLOOKUP($E176-23,AllData,COLUMN()-1-COLUMN($E176)),VLOOKUP($E176-24,AllData,COLUMN()-1-COLUMN($E176)),VLOOKUP($E176-25,AllData,COLUMN()-1-COLUMN($E176)),VLOOKUP($E176-26,AllData,COLUMN()-1-COLUMN($E176)),VLOOKUP($E176-27,AllData,COLUMN()-1-COLUMN($E176)),VLOOKUP($E176-28,AllData,COLUMN()-1-COLUMN($E176)),VLOOKUP($E176-29,AllData,COLUMN()-1-COLUMN($E176)))","v":23334.69882575508},{"$f":"VLOOKUP($E176,AllData,COLUMN()-2-COLUMN($E176))","v":1164.5091297334711},{"$f":"OR('Cool Graph'!$H$1=35,'Cool Graph'!$H$1=36,'Cool Graph'!$H$1=37,'Cool Graph'!$H$1=38,'Cool Graph'!$H$1=39,'Cool Graph'!$H$1=40,'Cool Graph'!$H$1=41,'Cool Graph'!$H$1=42,'Cool Graph'!$H$1=43,'Cool Graph'!$H$1=44,'Cool Graph'!$H$1=45,'Cool Graph'!$H$1=46,'Cool Graph'!$H$1=47,'Cool Graph'!$H$1=58,'Cool Graph'!$H$1=66)","v":false},{"$f":"SUM(VLOOKUP($E176,AllData,COLUMN()-5-COLUMN($E176)),VLOOKUP($E176-1,AllData,COLUMN()-5-COLUMN($E176)),VLOOKUP($E176-2,AllData,COLUMN()-5-COLUMN($E176)),VLOOKUP($E176-3,AllData,COLUMN()-5-COLUMN($E176)),VLOOKUP($E176-4,AllData,COLUMN()-5-COLUMN($E176)),VLOOKUP($E176-5,AllData,COLUMN()-5-COLUMN($E176)),VLOOKUP($E176-6,AllData,COLUMN()-5-COLUMN($E176)))","v":432.05000000000007},{"$f":"SUM(VLOOKUP($E176,AllData,COLUMN()-6-COLUMN($E176)),VLOOKUP($E176-1,AllData,COLUMN()-6-COLUMN($E176)),VLOOKUP($E176-2,AllData,COLUMN()-6-COLUMN($E176)),VLOOKUP($E176-3,AllData,COLUMN()-6-COLUMN($E176)),VLOOKUP($E176-4,AllData,COLUMN()-6-COLUMN($E176)),VLOOKUP($E176-5,AllData,COLUMN()-6-COLUMN($E176)),VLOOKUP($E176-6,AllData,COLUMN()-6-COLUMN($E176)),VLOOKUP($E176-7,AllData,COLUMN()-6-COLUMN($E176)),VLOOKUP($E176-8,AllData,COLUMN()-6-COLUMN($E176)),VLOOKUP($E176-9,AllData,COLUMN()-6-COLUMN($E176)),VLOOKUP($E176-10,AllData,COLUMN()-6-COLUMN($E176)),VLOOKUP($E176-11,AllData,COLUMN()-6-COLUMN($E176)),VLOOKUP($E176-12,AllData,COLUMN()-6-COLUMN($E176)),VLOOKUP($E176-13,AllData,COLUMN()-6-COLUMN($E176)),VLOOKUP($E176-14,AllData,COLUMN()-6-COLUMN($E176)),VLOOKUP($E176-15,AllData,COLUMN()-6-COLUMN($E176)),VLOOKUP($E176-16,AllData,COLUMN()-6-COLUMN($E176)),VLOOKUP($E176-17,AllData,COLUMN()-6-COLUMN($E176)),VLOOKUP($E176-18,AllData,COLUMN()-6-COLUMN($E176)),VLOOKUP($E176-19,AllData,COLUMN()-6-COLUMN($E176)),VLOOKUP($E176-20,AllData,COLUMN()-6-COLUMN($E176)),VLOOKUP($E176-21,AllData,COLUMN()-6-COLUMN($E176)),VLOOKUP($E176-22,AllData,COLUMN()-6-COLUMN($E176)),VLOOKUP($E176-23,AllData,COLUMN()-6-COLUMN($E176)),VLOOKUP($E176-24,AllData,COLUMN()-6-COLUMN($E176)),VLOOKUP($E176-25,AllData,COLUMN()-6-COLUMN($E176)),VLOOKUP($E176-26,AllData,COLUMN()-6-COLUMN($E176)),VLOOKUP($E176-27,AllData,COLUMN()-6-COLUMN($E176)),VLOOKUP($E176-28,AllData,COLUMN()-6-COLUMN($E176)),VLOOKUP($E176-29,AllData,COLUMN()-6-COLUMN($E176)))","v":2917.3500000000004},{"$f":"VLOOKUP($E176,AllData,COLUMN()-7-COLUMN($E176))","v":144.12},{"$f":"OR('Cool Graph'!$I$1=35,'Cool Graph'!$I$1=36,'Cool Graph'!$I$1=37,'Cool Graph'!$I$1=38,'Cool Graph'!$I$1=39,'Cool Graph'!$I$1=40,'Cool Graph'!$I$1=41,'Cool Graph'!$I$1=42,'Cool Graph'!$I$1=43,'Cool Graph'!$I$1=44,'Cool Graph'!$I$1=45,'Cool Graph'!$I$1=46,'Cool Graph'!$I$1=47,'Cool Graph'!$I$1=58,'Cool Graph'!$I$1=66)","v":false}]
["2011-12-23",{"$f":"OFFSET(OldSchoolJustValues!A177,0,'Cool Graph'!$H$1)","v":0},{"$f":"OFFSET(OldSchoolJustValues!A177,0,'Cool Graph'!$I$1)","v":297.8996314698864},null,{"$f":"IF(NewDate>EndDate,NA(),NewDate)","v":"2012-03-19"},{"$f":"IF($E177>EndDate,NA(),IF($K$2=TRUE,N177,IF('Cool Graph'!$B$17=1,N177,IF('Cool Graph'!$B$17=2,L177,IF('Cool Graph'!$B$17=3,M177,)))))","v":54.56},{"$f":"IF($E177>EndDate,NA(),IF($O$2=TRUE,J177,IF('Cool Graph'!$B$17=1,Data1!J177,IF('Cool Graph'!$B$17=2,Data1!H177,IF('Cool Graph'!$B$17=3,Data1!I177,)))))","v":579.17921904505442},{"$f":"SUM(VLOOKUP($E177,AllData,COLUMN()-COLUMN($E177)),VLOOKUP($E177-1,AllData,COLUMN()-COLUMN($E177)),VLOOKUP($E177-2,AllData,COLUMN()-COLUMN($E177)),VLOOKUP($E177-3,AllData,COLUMN()-COLUMN($E177)),VLOOKUP($E177-4,AllData,COLUMN()-COLUMN($E177)),VLOOKUP($E177-5,AllData,COLUMN()-COLUMN($E177)),VLOOKUP($E177-6,AllData,COLUMN()-COLUMN($E177)))","v":4788.6937712232202},{"$f":"SUM(VLOOKUP($E177,AllData,COLUMN()-1-COLUMN($E177)),VLOOKUP($E177-1,AllData,COLUMN()-1-COLUMN($E177)),VLOOKUP($E177-2,AllData,COLUMN()-1-COLUMN($E177)),VLOOKUP($E177-3,AllData,COLUMN()-1-COLUMN($E177)),VLOOKUP($E177-4,AllData,COLUMN()-1-COLUMN($E177)),VLOOKUP($E177-5,AllData,COLUMN()-1-COLUMN($E177)),VLOOKUP($E177-6,AllData,COLUMN()-1-COLUMN($E177)),VLOOKUP($E177-7,AllData,COLUMN()-1-COLUMN($E177)),VLOOKUP($E177-8,AllData,COLUMN()-1-COLUMN($E177)),VLOOKUP($E177-9,AllData,COLUMN()-1-COLUMN($E177)),VLOOKUP($E177-10,AllData,COLUMN()-1-COLUMN($E177)),VLOOKUP($E177-11,AllData,COLUMN()-1-COLUMN($E177)),VLOOKUP($E177-12,AllData,COLUMN()-1-COLUMN($E177)),VLOOKUP($E177-13,AllData,COLUMN()-1-COLUMN($E177)),VLOOKUP($E177-14,AllData,COLUMN()-1-COLUMN($E177)),VLOOKUP($E177-15,AllData,COLUMN()-1-COLUMN($E177)),VLOOKUP($E177-16,AllData,COLUMN()-1-COLUMN($E177)),VLOOKUP($E177-17,AllData,COLUMN()-1-COLUMN($E177)),VLOOKUP($E177-18,AllData,COLUMN()-1-COLUMN($E177)),VLOOKUP($E177-19,AllData,COLUMN()-1-COLUMN($E177)),VLOOKUP($E177-20,AllData,COLUMN()-1-COLUMN($E177)),VLOOKUP($E177-21,AllData,COLUMN()-1-COLUMN($E177)),VLOOKUP($E177-22,AllData,COLUMN()-1-COLUMN($E177)),VLOOKUP($E177-23,AllData,COLUMN()-1-COLUMN($E177)),VLOOKUP($E177-24,AllData,COLUMN()-1-COLUMN($E177)),VLOOKUP($E177-25,AllData,COLUMN()-1-COLUMN($E177)),VLOOKUP($E177-26,AllData,COLUMN()-1-COLUMN($E177)),VLOOKUP($E177-27,AllData,COLUMN()-1-COLUMN($E177)),VLOOKUP($E177-28,AllData,COLUMN()-1-COLUMN($E177)),VLOOKUP($E177-29,AllData,COLUMN()-1-COLUMN($E177)))","v":23130.592752186865},{"$f":"VLOOKUP($E177,AllData,COLUMN()-2-COLUMN($E177))","v":579.17921904505442},{"$f":"OR('Cool Graph'!$H$1=35,'Cool Graph'!$H$1=36,'Cool Graph'!$H$1=37,'Cool Graph'!$H$1=38,'Cool Graph'!$H$1=39,'Cool Graph'!$H$1=40,'Cool Graph'!$H$1=41,'Cool Graph'!$H$1=42,'Cool Graph'!$H$1=43,'Cool Graph'!$H$1=44,'Cool Graph'!$H$1=45,'Cool Graph'!$H$1=46,'Cool Graph'!$H$1=47,'Cool Graph'!$H$1=58,'Cool Graph'!$H$1=66)","v":false},{"$f":"SUM(VLOOKUP($E177,AllData,COLUMN()-5-COLUMN($E177)),VLOOKUP($E177-1,AllData,COLUMN()-5-COLUMN($E177)),VLOOKUP($E177-2,AllData,COLUMN()-5-COLUMN($E177)),VLOOKUP($E177-3,AllData,COLUMN()-5-COLUMN($E177)),VLOOKUP($E177-4,AllData,COLUMN()-5-COLUMN($E177)),VLOOKUP($E177-5,AllData,COLUMN()-5-COLUMN($E177)),VLOOKUP($E177-6,AllData,COLUMN()-5-COLUMN($E177)))","v":467.24},{"$f":"SUM(VLOOKUP($E177,AllData,COLUMN()-6-COLUMN($E177)),VLOOKUP($E177-1,AllData,COLUMN()-6-COLUMN($E177)),VLOOKUP($E177-2,AllData,COLUMN()-6-COLUMN($E177)),VLOOKUP($E177-3,AllData,COLUMN()-6-COLUMN($E177)),VLOOKUP($E177-4,AllData,COLUMN()-6-COLUMN($E177)),VLOOKUP($E177-5,AllData,COLUMN()-6-COLUMN($E177)),VLOOKUP($E177-6,AllData,COLUMN()-6-COLUMN($E177)),VLOOKUP($E177-7,AllData,COLUMN()-6-COLUMN($E177)),VLOOKUP($E177-8,AllData,COLUMN()-6-COLUMN($E177)),VLOOKUP($E177-9,AllData,COLUMN()-6-COLUMN($E177)),VLOOKUP($E177-10,AllData,COLUMN()-6-COLUMN($E177)),VLOOKUP($E177-11,AllData,COLUMN()-6-COLUMN($E177)),VLOOKUP($E177-12,AllData,COLUMN()-6-COLUMN($E177)),VLOOKUP($E177-13,AllData,COLUMN()-6-COLUMN($E177)),VLOOKUP($E177-14,AllData,COLUMN()-6-COLUMN($E177)),VLOOKUP($E177-15,AllData,COLUMN()-6-COLUMN($E177)),VLOOKUP($E177-16,AllData,COLUMN()-6-COLUMN($E177)),VLOOKUP($E177-17,AllData,COLUMN()-6-COLUMN($E177)),VLOOKUP($E177-18,AllData,COLUMN()-6-COLUMN($E177)),VLOOKUP($E177-19,AllData,COLUMN()-6-COLUMN($E177)),VLOOKUP($E177-20,AllData,COLUMN()-6-COLUMN($E177)),VLOOKUP($E177-21,AllData,COLUMN()-6-COLUMN($E177)),VLOOKUP($E177-22,AllData,COLUMN()-6-COLUMN($E177)),VLOOKUP($E177-23,AllData,COLUMN()-6-COLUMN($E177)),VLOOKUP($E177-24,AllData,COLUMN()-6-COLUMN($E177)),VLOOKUP($E177-25,AllData,COLUMN()-6-COLUMN($E177)),VLOOKUP($E177-26,AllData,COLUMN()-6-COLUMN($E177)),VLOOKUP($E177-27,AllData,COLUMN()-6-COLUMN($E177)),VLOOKUP($E177-28,AllData,COLUMN()-6-COLUMN($E177)),VLOOKUP($E177-29,AllData,COLUMN()-6-COLUMN($E177)))","v":2884.9},{"$f":"VLOOKUP($E177,AllData,COLUMN()-7-COLUMN($E177))","v":54.56},{"$f":"OR('Cool Graph'!$I$1=35,'Cool Graph'!$I$1=36,'Cool Graph'!$I$1=37,'Cool Graph'!$I$1=38,'Cool Graph'!$I$1=39,'Cool Graph'!$I$1=40,'Cool Graph'!$I$1=41,'Cool Graph'!$I$1=42,'Cool Graph'!$I$1=43,'Cool Graph'!$I$1=44,'Cool Graph'!$I$1=45,'Cool Graph'!$I$1=46,'Cool Graph'!$I$1=47,'Cool Graph'!$I$1=58,'Cool Graph'!$I$1=66)","v":false}]
["2011-12-24",{"$f":"OFFSET(OldSchoolJustValues!A178,0,'Cool Graph'!$H$1)","v":0},{"$f":"OFFSET(OldSchoolJustValues!A178,0,'Cool Graph'!$I$1)","v":290.42217753615063},null,{"$f":"IF(NewDate>EndDate,NA(),NewDate)","v":"2012-03-20"},{"$f":"IF($E178>EndDate,NA(),IF($K$2=TRUE,N178,IF('Cool Graph'!$B$17=1,N178,IF('Cool Graph'!$B$17=2,L178,IF('Cool Graph'!$B$17=3,M178,)))))","v":34.19},{"$f":"IF($E178>EndDate,NA(),IF($O$2=TRUE,J178,IF('Cool Graph'!$B$17=1,Data1!J178,IF('Cool Graph'!$B$17=2,Data1!H178,IF('Cool Graph'!$B$17=3,Data1!I178,)))))","v":296.66715192238433},{"$f":"SUM(VLOOKUP($E178,AllData,COLUMN()-COLUMN($E178)),VLOOKUP($E178-1,AllData,COLUMN()-COLUMN($E178)),VLOOKUP($E178-2,AllData,COLUMN()-COLUMN($E178)),VLOOKUP($E178-3,AllData,COLUMN()-COLUMN($E178)),VLOOKUP($E178-4,AllData,COLUMN()-COLUMN($E178)),VLOOKUP($E178-5,AllData,COLUMN()-COLUMN($E178)),VLOOKUP($E178-6,AllData,COLUMN()-COLUMN($E178)))","v":3977.1845502588294},{"$f":"SUM(VLOOKUP($E178,AllData,COLUMN()-1-COLUMN($E178)),VLOOKUP($E178-1,AllData,COLUMN()-1-COLUMN($E178)),VLOOKUP($E178-2,AllData,COLUMN()-1-COLUMN($E178)),VLOOKUP($E178-3,AllData,COLUMN()-1-COLUMN($E178)),VLOOKUP($E178-4,AllData,COLUMN()-1-COLUMN($E178)),VLOOKUP($E178-5,AllData,COLUMN()-1-COLUMN($E178)),VLOOKUP($E178-6,AllData,COLUMN()-1-COLUMN($E178)),VLOOKUP($E178-7,AllData,COLUMN()-1-COLUMN($E178)),VLOOKUP($E178-8,AllData,COLUMN()-1-COLUMN($E178)),VLOOKUP($E178-9,AllData,COLUMN()-1-COLUMN($E178)),VLOOKUP($E178-10,AllData,COLUMN()-1-COLUMN($E178)),VLOOKUP($E178-11,AllData,COLUMN()-1-COLUMN($E178)),VLOOKUP($E178-12,AllData,COLUMN()-1-COLUMN($E178)),VLOOKUP($E178-13,AllData,COLUMN()-1-COLUMN($E178)),VLOOKUP($E178-14,AllData,COLUMN()-1-COLUMN($E178)),VLOOKUP($E178-15,AllData,COLUMN()-1-COLUMN($E178)),VLOOKUP($E178-16,AllData,COLUMN()-1-COLUMN($E178)),VLOOKUP($E178-17,AllData,COLUMN()-1-COLUMN($E178)),VLOOKUP($E178-18,AllData,COLUMN()-1-COLUMN($E178)),VLOOKUP($E178-19,AllData,COLUMN()-1-COLUMN($E178)),VLOOKUP($E178-20,AllData,COLUMN()-1-COLUMN($E178)),VLOOKUP($E178-21,AllData,COLUMN()-1-COLUMN($E178)),VLOOKUP($E178-22,AllData,COLUMN()-1-COLUMN($E178)),VLOOKUP($E178-23,AllData,COLUMN()-1-COLUMN($E178)),VLOOKUP($E178-24,AllData,COLUMN()-1-COLUMN($E178)),VLOOKUP($E178-25,AllData,COLUMN()-1-COLUMN($E178)),VLOOKUP($E178-26,AllData,COLUMN()-1-COLUMN($E178)),VLOOKUP($E178-27,AllData,COLUMN()-1-COLUMN($E178)),VLOOKUP($E178-28,AllData,COLUMN()-1-COLUMN($E178)),VLOOKUP($E178-29,AllData,COLUMN()-1-COLUMN($E178)))","v":22008.320144090871},{"$f":"VLOOKUP($E178,AllData,COLUMN()-2-COLUMN($E178))","v":296.66715192238433},{"$f":"OR('Cool Graph'!$H$1=35,'Cool Graph'!$H$1=36,'Cool Graph'!$H$1=37,'Cool Graph'!$H$1=38,'Cool Graph'!$H$1=39,'Cool Graph'!$H$1=40,'Cool Graph'!$H$1=41,'Cool Graph'!$H$1=42,'Cool Graph'!$H$1=43,'Cool Graph'!$H$1=44,'Cool Graph'!$H$1=45,'Cool Graph'!$H$1=46,'Cool Graph'!$H$1=47,'Cool Graph'!$H$1=58,'Cool Graph'!$H$1=66)","v":false},{"$f":"SUM(VLOOKUP($E178,AllData,COLUMN()-5-COLUMN($E178)),VLOOKUP($E178-1,AllData,COLUMN()-5-COLUMN($E178)),VLOOKUP($E178-2,AllData,COLUMN()-5-COLUMN($E178)),VLOOKUP($E178-3,AllData,COLUMN()-5-COLUMN($E178)),VLOOKUP($E178-4,AllData,COLUMN()-5-COLUMN($E178)),VLOOKUP($E178-5,AllData,COLUMN()-5-COLUMN($E178)),VLOOKUP($E178-6,AllData,COLUMN()-5-COLUMN($E178)))","v":475.20000000000005},{"$f":"SUM(VLOOKUP($E178,AllData,COLUMN()-6-COLUMN($E178)),VLOOKUP($E178-1,AllData,COLUMN()-6-COLUMN($E178)),VLOOKUP($E178-2,AllData,COLUMN()-6-COLUMN($E178)),VLOOKUP($E178-3,AllData,COLUMN()-6-COLUMN($E178)),VLOOKUP($E178-4,AllData,COLUMN()-6-COLUMN($E178)),VLOOKUP($E178-5,AllData,COLUMN()-6-COLUMN($E178)),VLOOKUP($E178-6,AllData,COLUMN()-6-COLUMN($E178)),VLOOKUP($E178-7,AllData,COLUMN()-6-COLUMN($E178)),VLOOKUP($E178-8,AllData,COLUMN()-6-COLUMN($E178)),VLOOKUP($E178-9,AllData,COLUMN()-6-COLUMN($E178)),VLOOKUP($E178-10,AllData,COLUMN()-6-COLUMN($E178)),VLOOKUP($E178-11,AllData,COLUMN()-6-COLUMN($E178)),VLOOKUP($E178-12,AllData,COLUMN()-6-COLUMN($E178)),VLOOKUP($E178-13,AllData,COLUMN()-6-COLUMN($E178)),VLOOKUP($E178-14,AllData,COLUMN()-6-COLUMN($E178)),VLOOKUP($E178-15,AllData,COLUMN()-6-COLUMN($E178)),VLOOKUP($E178-16,AllData,COLUMN()-6-COLUMN($E178)),VLOOKUP($E178-17,AllData,COLUMN()-6-COLUMN($E178)),VLOOKUP($E178-18,AllData,COLUMN()-6-COLUMN($E178)),VLOOKUP($E178-19,AllData,COLUMN()-6-COLUMN($E178)),VLOOKUP($E178-20,AllData,COLUMN()-6-COLUMN($E178)),VLOOKUP($E178-21,AllData,COLUMN()-6-COLUMN($E178)),VLOOKUP($E178-22,AllData,COLUMN()-6-COLUMN($E178)),VLOOKUP($E178-23,AllData,COLUMN()-6-COLUMN($E178)),VLOOKUP($E178-24,AllData,COLUMN()-6-COLUMN($E178)),VLOOKUP($E178-25,AllData,COLUMN()-6-COLUMN($E178)),VLOOKUP($E178-26,AllData,COLUMN()-6-COLUMN($E178)),VLOOKUP($E178-27,AllData,COLUMN()-6-COLUMN($E178)),VLOOKUP($E178-28,AllData,COLUMN()-6-COLUMN($E178)),VLOOKUP($E178-29,AllData,COLUMN()-6-COLUMN($E178)))","v":2625.46},{"$f":"VLOOKUP($E178,AllData,COLUMN()-7-COLUMN($E178))","v":34.19},{"$f":"OR('Cool Graph'!$I$1=35,'Cool Graph'!$I$1=36,'Cool Graph'!$I$1=37,'Cool Graph'!$I$1=38,'Cool Graph'!$I$1=39,'Cool Graph'!$I$1=40,'Cool Graph'!$I$1=41,'Cool Graph'!$I$1=42,'Cool Graph'!$I$1=43,'Cool Graph'!$I$1=44,'Cool Graph'!$I$1=45,'Cool Graph'!$I$1=46,'Cool Graph'!$I$1=47,'Cool Graph'!$I$1=58,'Cool Graph'!$I$1=66)","v":false}]
["2011-12-25",{"$f":"OFFSET(OldSchoolJustValues!A179,0,'Cool Graph'!$H$1)","v":0},{"$f":"OFFSET(OldSchoolJustValues!A179,0,'Cool Graph'!$I$1)","v":240.83217753615065},null,{"$f":"IF(NewDate>EndDate,NA(),NewDate)","v":"2012-03-21"},{"$f":"IF($E179>EndDate,NA(),IF($K$2=TRUE,N179,IF('Cool Graph'!$B$17=1,N179,IF('Cool Graph'!$B$17=2,L179,IF('Cool Graph'!$B$17=3,M179,)))))","v":33.159999999999997},{"$f":"IF($E179>EndDate,NA(),IF($O$2=TRUE,J179,IF('Cool Graph'!$B$17=1,Data1!J179,IF('Cool Graph'!$B$17=2,Data1!H179,IF('Cool Graph'!$B$17=3,Data1!I179,)))))","v":797.01552916037508},{"$f":"SUM(VLOOKUP($E179,AllData,COLUMN()-COLUMN($E179)),VLOOKUP($E179-1,AllData,COLUMN()-COLUMN($E179)),VLOOKUP($E179-2,AllData,COLUMN()-COLUMN($E179)),VLOOKUP($E179-3,AllData,COLUMN()-COLUMN($E179)),VLOOKUP($E179-4,AllData,COLUMN()-COLUMN($E179)),VLOOKUP($E179-5,AllData,COLUMN()-COLUMN($E179)),VLOOKUP($E179-6,AllData,COLUMN()-COLUMN($E179)))","v":4379.0095559622669},{"$f":"SUM(VLOOKUP($E179,AllData,COLUMN()-1-COLUMN($E179)),VLOOKUP($E179-1,AllData,COLUMN()-1-COLUMN($E179)),VLOOKUP($E179-2,AllData,COLUMN()-1-COLUMN($E179)),VLOOKUP($E179-3,AllData,COLUMN()-1-COLUMN($E179)),VLOOKUP($E179-4,AllData,COLUMN()-1-COLUMN($E179)),VLOOKUP($E179-5,AllData,COLUMN()-1-COLUMN($E179)),VLOOKUP($E179-6,AllData,COLUMN()-1-COLUMN($E179)),VLOOKUP($E179-7,AllData,COLUMN()-1-COLUMN($E179)),VLOOKUP($E179-8,AllData,COLUMN()-1-COLUMN($E179)),VLOOKUP($E179-9,AllData,COLUMN()-1-COLUMN($E179)),VLOOKUP($E179-10,AllData,COLUMN()-1-COLUMN($E179)),VLOOKUP($E179-11,AllData,COLUMN()-1-COLUMN($E179)),VLOOKUP($E179-12,AllData,COLUMN()-1-COLUMN($E179)),VLOOKUP($E179-13,AllData,COLUMN()-1-COLUMN($E179)),VLOOKUP($E179-14,AllData,COLUMN()-1-COLUMN($E179)),VLOOKUP($E179-15,AllData,COLUMN()-1-COLUMN($E179)),VLOOKUP($E179-16,AllData,COLUMN()-1-COLUMN($E179)),VLOOKUP($E179-17,AllData,COLUMN()-1-COLUMN($E179)),VLOOKUP($E179-18,AllData,COLUMN()-1-COLUMN($E179)),VLOOKUP($E179-19,AllData,COLUMN()-1-COLUMN($E179)),VLOOKUP($E179-20,AllData,COLUMN()-1-COLUMN($E179)),VLOOKUP($E179-21,AllData,COLUMN()-1-COLUMN($E179)),VLOOKUP($E179-22,AllData,COLUMN()-1-COLUMN($E179)),VLOOKUP($E179-23,AllData,COLUMN()-1-COLUMN($E179)),VLOOKUP($E179-24,AllData,COLUMN()-1-COLUMN($E179)),VLOOKUP($E179-25,AllData,COLUMN()-1-COLUMN($E179)),VLOOKUP($E179-26,AllData,COLUMN()-1-COLUMN($E179)),VLOOKUP($E179-27,AllData,COLUMN()-1-COLUMN($E179)),VLOOKUP($E179-28,AllData,COLUMN()-1-COLUMN($E179)),VLOOKUP($E179-29,AllData,COLUMN()-1-COLUMN($E179)))","v":21784.409636139619},{"$f":"VLOOKUP($E179,AllData,COLUMN()-2-COLUMN($E179))","v":797.01552916037508},{"$f":"OR('Cool Graph'!$H$1=35,'Cool Graph'!$H$1=36,'Cool Graph'!$H$1=37,'Cool Graph'!$H$1=38,'Cool Graph'!$H$1=39,'Cool Graph'!$H$1=40,'Cool Graph'!$H$1=41,'Cool Graph'!$H$1=42,'Cool Graph'!$H$1=43,'Cool Graph'!$H$1=44,'Cool Graph'!$H$1=45,'Cool Graph'!$H$1=46,'Cool Graph'!$H$1=47,'Cool Graph'!$H$1=58,'Cool Graph'!$H$1=66)","v":false},{"$f":"SUM(VLOOKUP($E179,AllData,COLUMN()-5-COLUMN($E179)),VLOOKUP($E179-1,AllData,COLUMN()-5-COLUMN($E179)),VLOOKUP($E179-2,AllData,COLUMN()-5-COLUMN($E179)),VLOOKUP($E179-3,AllData,COLUMN()-5-COLUMN($E179)),VLOOKUP($E179-4,AllData,COLUMN()-5-COLUMN($E179)),VLOOKUP($E179-5,AllData,COLUMN()-5-COLUMN($E179)),VLOOKUP($E179-6,AllData,COLUMN()-5-COLUMN($E179)))","v":498},{"$f":"SUM(VLOOKUP($E179,AllData,COLUMN()-6-COLUMN($E179)),VLOOKUP($E179-1,AllData,COLUMN()-6-COLUMN($E179)),VLOOKUP($E179-2,AllData,COLUMN()-6-COLUMN($E179)),VLOOKUP($E179-3,AllData,COLUMN()-6-COLUMN($E179)),VLOOKUP($E179-4,AllData,COLUMN()-6-COLUMN($E179)),VLOOKUP($E179-5,AllData,COLUMN()-6-COLUMN($E179)),VLOOKUP($E179-6,AllData,COLUMN()-6-COLUMN($E179)),VLOOKUP($E179-7,AllData,COLUMN()-6-COLUMN($E179)),VLOOKUP($E179-8,AllData,COLUMN()-6-COLUMN($E179)),VLOOKUP($E179-9,AllData,COLUMN()-6-COLUMN($E179)),VLOOKUP($E179-10,AllData,COLUMN()-6-COLUMN($E179)),VLOOKUP($E179-11,AllData,COLUMN()-6-COLUMN($E179)),VLOOKUP($E179-12,AllData,COLUMN()-6-COLUMN($E179)),VLOOKUP($E179-13,AllData,COLUMN()-6-COLUMN($E179)),VLOOKUP($E179-14,AllData,COLUMN()-6-COLUMN($E179)),VLOOKUP($E179-15,AllData,COLUMN()-6-COLUMN($E179)),VLOOKUP($E179-16,AllData,COLUMN()-6-COLUMN($E179)),VLOOKUP($E179-17,AllData,COLUMN()-6-COLUMN($E179)),VLOOKUP($E179-18,AllData,COLUMN()-6-COLUMN($E179)),VLOOKUP($E179-19,AllData,COLUMN()-6-COLUMN($E179)),VLOOKUP($E179-20,AllData,COLUMN()-6-COLUMN($E179)),VLOOKUP($E179-21,AllData,COLUMN()-6-COLUMN($E179)),VLOOKUP($E179-22,AllData,COLUMN()-6-COLUMN($E179)),VLOOKUP($E179-23,AllData,COLUMN()-6-COLUMN($E179)),VLOOKUP($E179-24,AllData,COLUMN()-6-COLUMN($E179)),VLOOKUP($E179-25,AllData,COLUMN()-6-COLUMN($E179)),VLOOKUP($E179-26,AllData,COLUMN()-6-COLUMN($E179)),VLOOKUP($E179-27,AllData,COLUMN()-6-COLUMN($E179)),VLOOKUP($E179-28,AllData,COLUMN()-6-COLUMN($E179)),VLOOKUP($E179-29,AllData,COLUMN()-6-COLUMN($E179)))","v":2311.39},{"$f":"VLOOKUP($E179,AllData,COLUMN()-7-COLUMN($E179))","v":33.159999999999997},{"$f":"OR('Cool Graph'!$I$1=35,'Cool Graph'!$I$1=36,'Cool Graph'!$I$1=37,'Cool Graph'!$I$1=38,'Cool Graph'!$I$1=39,'Cool Graph'!$I$1=40,'Cool Graph'!$I$1=41,'Cool Graph'!$I$1=42,'Cool Graph'!$I$1=43,'Cool Graph'!$I$1=44,'Cool Graph'!$I$1=45,'Cool Graph'!$I$1=46,'Cool Graph'!$I$1=47,'Cool Graph'!$I$1=58,'Cool Graph'!$I$1=66)","v":false}]
["2011-12-26",{"$f":"OFFSET(OldSchoolJustValues!A180,0,'Cool Graph'!$H$1)","v":0},{"$f":"OFFSET(OldSchoolJustValues!A180,0,'Cool Graph'!$I$1)","v":-111.26884853596999},null,{"$f":"IF(NewDate>EndDate,NA(),NewDate)","v":"2012-03-22"},{"$f":"IF($E180>EndDate,NA(),IF($K$2=TRUE,N180,IF('Cool Graph'!$B$17=1,N180,IF('Cool Graph'!$B$17=2,L180,IF('Cool Graph'!$B$17=3,M180,)))))","v":179.91},{"$f":"IF($E180>EndDate,NA(),IF($O$2=TRUE,J180,IF('Cool Graph'!$B$17=1,Data1!J180,IF('Cool Graph'!$B$17=2,Data1!H180,IF('Cool Graph'!$B$17=3,Data1!I180,)))))","v":170.04969798864852},{"$f":"SUM(VLOOKUP($E180,AllData,COLUMN()-COLUMN($E180)),VLOOKUP($E180-1,AllData,COLUMN()-COLUMN($E180)),VLOOKUP($E180-2,AllData,COLUMN()-COLUMN($E180)),VLOOKUP($E180-3,AllData,COLUMN()-COLUMN($E180)),VLOOKUP($E180-4,AllData,COLUMN()-COLUMN($E180)),VLOOKUP($E180-5,AllData,COLUMN()-COLUMN($E180)),VLOOKUP($E180-6,AllData,COLUMN()-COLUMN($E180)))","v":4231.742801799086},{"$f":"SUM(VLOOKUP($E180,AllData,COLUMN()-1-COLUMN($E180)),VLOOKUP($E180-1,AllData,COLUMN()-1-COLUMN($E180)),VLOOKUP($E180-2,AllData,COLUMN()-1-COLUMN($E180)),VLOOKUP($E180-3,AllData,COLUMN()-1-COLUMN($E180)),VLOOKUP($E180-4,AllData,COLUMN()-1-COLUMN($E180)),VLOOKUP($E180-5,AllData,COLUMN()-1-COLUMN($E180)),VLOOKUP($E180-6,AllData,COLUMN()-1-COLUMN($E180)),VLOOKUP($E180-7,AllData,COLUMN()-1-COLUMN($E180)),VLOOKUP($E180-8,AllData,COLUMN()-1-COLUMN($E180)),VLOOKUP($E180-9,AllData,COLUMN()-1-COLUMN($E180)),VLOOKUP($E180-10,AllData,COLUMN()-1-COLUMN($E180)),VLOOKUP($E180-11,AllData,COLUMN()-1-COLUMN($E180)),VLOOKUP($E180-12,AllData,COLUMN()-1-COLUMN($E180)),VLOOKUP($E180-13,AllData,COLUMN()-1-COLUMN($E180)),VLOOKUP($E180-14,AllData,COLUMN()-1-COLUMN($E180)),VLOOKUP($E180-15,AllData,COLUMN()-1-COLUMN($E180)),VLOOKUP($E180-16,AllData,COLUMN()-1-COLUMN($E180)),VLOOKUP($E180-17,AllData,COLUMN()-1-COLUMN($E180)),VLOOKUP($E180-18,AllData,COLUMN()-1-COLUMN($E180)),VLOOKUP($E180-19,AllData,COLUMN()-1-COLUMN($E180)),VLOOKUP($E180-20,AllData,COLUMN()-1-COLUMN($E180)),VLOOKUP($E180-21,AllData,COLUMN()-1-COLUMN($E180)),VLOOKUP($E180-22,AllData,COLUMN()-1-COLUMN($E180)),VLOOKUP($E180-23,AllData,COLUMN()-1-COLUMN($E180)),VLOOKUP($E180-24,AllData,COLUMN()-1-COLUMN($E180)),VLOOKUP($E180-25,AllData,COLUMN()-1-COLUMN($E180)),VLOOKUP($E180-26,AllData,COLUMN()-1-COLUMN($E180)),VLOOKUP($E180-27,AllData,COLUMN()-1-COLUMN($E180)),VLOOKUP($E180-28,AllData,COLUMN()-1-COLUMN($E180)),VLOOKUP($E180-29,AllData,COLUMN()-1-COLUMN($E180)))","v":21342.569245108552},{"$f":"VLOOKUP($E180,AllData,COLUMN()-2-COLUMN($E180))","v":170.04969798864852},{"$f":"OR('Cool Graph'!$H$1=35,'Cool Graph'!$H$1=36,'Cool Graph'!$H$1=37,'Cool Graph'!$H$1=38,'Cool Graph'!$H$1=39,'Cool Graph'!$H$1=40,'Cool Graph'!$H$1=41,'Cool Graph'!$H$1=42,'Cool Graph'!$H$1=43,'Cool Graph'!$H$1=44,'Cool Graph'!$H$1=45,'Cool Graph'!$H$1=46,'Cool Graph'!$H$1=47,'Cool Graph'!$H$1=58,'Cool Graph'!$H$1=66)","v":false},{"$f":"SUM(VLOOKUP($E180,AllData,COLUMN()-5-COLUMN($E180)),VLOOKUP($E180-1,AllData,COLUMN()-5-COLUMN($E180)),VLOOKUP($E180-2,AllData,COLUMN()-5-COLUMN($E180)),VLOOKUP($E180-3,AllData,COLUMN()-5-COLUMN($E180)),VLOOKUP($E180-4,AllData,COLUMN()-5-COLUMN($E180)),VLOOKUP($E180-5,AllData,COLUMN()-5-COLUMN($E180)),VLOOKUP($E180-6,AllData,COLUMN()-5-COLUMN($E180)))","v":632.38},{"$f":"SUM(VLOOKUP($E180,AllData,COLUMN()-6-COLUMN($E180)),VLOOKUP($E180-1,AllData,COLUMN()-6-COLUMN($E180)),VLOOKUP($E180-2,AllData,COLUMN()-6-COLUMN($E180)),VLOOKUP($E180-3,AllData,COLUMN()-6-COLUMN($E180)),VLOOKUP($E180-4,AllData,COLUMN()-6-COLUMN($E180)),VLOOKUP($E180-5,AllData,COLUMN()-6-COLUMN($E180)),VLOOKUP($E180-6,AllData,COLUMN()-6-COLUMN($E180)),VLOOKUP($E180-7,AllData,COLUMN()-6-COLUMN($E180)),VLOOKUP($E180-8,AllData,COLUMN()-6-COLUMN($E180)),VLOOKUP($E180-9,AllData,COLUMN()-6-COLUMN($E180)),VLOOKUP($E180-10,AllData,COLUMN()-6-COLUMN($E180)),VLOOKUP($E180-11,AllData,COLUMN()-6-COLUMN($E180)),VLOOKUP($E180-12,AllData,COLUMN()-6-COLUMN($E180)),VLOOKUP($E180-13,AllData,COLUMN()-6-COLUMN($E180)),VLOOKUP($E180-14,AllData,COLUMN()-6-COLUMN($E180)),VLOOKUP($E180-15,AllData,COLUMN()-6-COLUMN($E180)),VLOOKUP($E180-16,AllData,COLUMN()-6-COLUMN($E180)),VLOOKUP($E180-17,AllData,COLUMN()-6-COLUMN($E180)),VLOOKUP($E180-18,AllData,COLUMN()-6-COLUMN($E180)),VLOOKUP($E180-19,AllData,COLUMN()-6-COLUMN($E180)),VLOOKUP($E180-20,AllData,COLUMN()-6-COLUMN($E180)),VLOOKUP($E180-21,AllData,COLUMN()-6-COLUMN($E180)),VLOOKUP($E180-22,AllData,COLUMN()-6-COLUMN($E180)),VLOOKUP($E180-23,AllData,COLUMN()-6-COLUMN($E180)),VLOOKUP($E180-24,AllData,COLUMN()-6-COLUMN($E180)),VLOOKUP($E180-25,AllData,COLUMN()-6-COLUMN($E180)),VLOOKUP($E180-26,AllData,COLUMN()-6-COLUMN($E180)),VLOOKUP($E180-27,AllData,COLUMN()-6-COLUMN($E180)),VLOOKUP($E180-28,AllData,COLUMN()-6-COLUMN($E180)),VLOOKUP($E180-29,AllData,COLUMN()-6-COLUMN($E180)))","v":2276.7800000000002},{"$f":"VLOOKUP($E180,AllData,COLUMN()-7-COLUMN($E180))","v":179.91},{"$f":"OR('Cool Graph'!$I$1=35,'Cool Graph'!$I$1=36,'Cool Graph'!$I$1=37,'Cool Graph'!$I$1=38,'Cool Graph'!$I$1=39,'Cool Graph'!$I$1=40,'Cool Graph'!$I$1=41,'Cool Graph'!$I$1=42,'Cool Graph'!$I$1=43,'Cool Graph'!$I$1=44,'Cool Graph'!$I$1=45,'Cool Graph'!$I$1=46,'Cool Graph'!$I$1=47,'Cool Graph'!$I$1=58,'Cool Graph'!$I$1=66)","v":false}]
["2011-12-27",{"$f":"OFFSET(OldSchoolJustValues!A181,0,'Cool Graph'!$H$1)","v":0},{"$f":"OFFSET(OldSchoolJustValues!A181,0,'Cool Graph'!$I$1)","v":249.6560004583543},null,{"$f":"IF(NewDate>EndDate,NA(),NewDate)","v":{"$error":"#N/A"}},{"$f":"IF($E181>EndDate,NA(),IF($K$2=TRUE,N181,IF('Cool Graph'!$B$17=1,N181,IF('Cool Graph'!$B$17=2,L181,IF('Cool Graph'!$B$17=3,M181,)))))","v":{"$error":"#N/A"}},{"$f":"IF($E181>EndDate,NA(),IF($O$2=TRUE,J181,IF('Cool Graph'!$B$17=1,Data1!J181,IF('Cool Graph'!$B$17=2,Data1!H181,IF('Cool Graph'!$B$17=3,Data1!I181,)))))","v":{"$error":"#N/A"}},{"$f":"SUM(VLOOKUP($E181,AllData,COLUMN()-COLUMN($E181)),VLOOKUP($E181-1,AllData,COLUMN()-COLUMN($E181)),VLOOKUP($E181-2,AllData,COLUMN()-COLUMN($E181)),VLOOKUP($E181-3,AllData,COLUMN()-COLUMN($E181)),VLOOKUP($E181-4,AllData,COLUMN()-COLUMN($E181)),VLOOKUP($E181-5,AllData,COLUMN()-COLUMN($E181)),VLOOKUP($E181-6,AllData,COLUMN()-COLUMN($E181)))","v":{"$error":"#N/A"}},{"$f":"SUM(VLOOKUP($E181,AllData,COLUMN()-1-COLUMN($E181)),VLOOKUP($E181-1,AllData,COLUMN()-1-COLUMN($E181)),VLOOKUP($E181-2,AllData,COLUMN()-1-COLUMN($E181)),VLOOKUP($E181-3,AllData,COLUMN()-1-COLUMN($E181)),VLOOKUP($E181-4,AllData,COLUMN()-1-COLUMN($E181)),VLOOKUP($E181-5,AllData,COLUMN()-1-COLUMN($E181)),VLOOKUP($E181-6,AllData,COLUMN()-1-COLUMN($E181)),VLOOKUP($E181-7,AllData,COLUMN()-1-COLUMN($E181)),VLOOKUP($E181-8,AllData,COLUMN()-1-COLUMN($E181)),VLOOKUP($E181-9,AllData,COLUMN()-1-COLUMN($E181)),VLOOKUP($E181-10,AllData,COLUMN()-1-COLUMN($E181)),VLOOKUP($E181-11,AllData,COLUMN()-1-COLUMN($E181)),VLOOKUP($E181-12,AllData,COLUMN()-1-COLUMN($E181)),VLOOKUP($E181-13,AllData,COLUMN()-1-COLUMN($E181)),VLOOKUP($E181-14,AllData,COLUMN()-1-COLUMN($E181)),VLOOKUP($E181-15,AllData,COLUMN()-1-COLUMN($E181)),VLOOKUP($E181-16,AllData,COLUMN()-1-COLUMN($E181)),VLOOKUP($E181-17,AllData,COLUMN()-1-COLUMN($E181)),VLOOKUP($E181-18,AllData,COLUMN()-1-COLUMN($E181)),VLOOKUP($E181-19,AllData,COLUMN()-1-COLUMN($E181)),VLOOKUP($E181-20,AllData,COLUMN()-1-COLUMN($E181)),VLOOKUP($E181-21,AllData,COLUMN()-1-COLUMN($E181)),VLOOKUP($E181-22,AllData,COLUMN()-1-COLUMN($E181)),VLOOKUP($E181-23,AllData,COLUMN()-1-COLUMN($E181)),VLOOKUP($E181-24,AllData,COLUMN()-1-COLUMN($E181)),VLOOKUP($E181-25,AllData,COLUMN()-1-COLUMN($E181)),VLOOKUP($E181-26,AllData,COLUMN()-1-COLUMN($E181)),VLOOKUP($E181-27,AllData,COLUMN()-1-COLUMN($E181)),VLOOKUP($E181-28,AllData,COLUMN()-1-COLUMN($E181)),VLOOKUP($E181-29,AllData,COLUMN()-1-COLUMN($E181)))","v":{"$error":"#N/A"}},{"$f":"VLOOKUP($E181,AllData,COLUMN()-2-COLUMN($E181))","v":{"$error":"#N/A"}},{"$f":"OR('Cool Graph'!$H$1=35,'Cool Graph'!$H$1=36,'Cool Graph'!$H$1=37,'Cool Graph'!$H$1=38,'Cool Graph'!$H$1=39,'Cool Graph'!$H$1=40,'Cool Graph'!$H$1=41,'Cool Graph'!$H$1=42,'Cool Graph'!$H$1=43,'Cool Graph'!$H$1=44,'Cool Graph'!$H$1=45,'Cool Graph'!$H$1=46,'Cool Graph'!$H$1=47,'Cool Graph'!$H$1=58,'Cool Graph'!$H$1=66)","v":false},{"$f":"SUM(VLOOKUP($E181,AllData,COLUMN()-5-COLUMN($E181)),VLOOKUP($E181-1,AllData,COLUMN()-5-COLUMN($E181)),VLOOKUP($E181-2,AllData,COLUMN()-5-COLUMN($E181)),VLOOKUP($E181-3,AllData,COLUMN()-5-COLUMN($E181)),VLOOKUP($E181-4,AllData,COLUMN()-5-COLUMN($E181)),VLOOKUP($E181-5,AllData,COLUMN()-5-COLUMN($E181)),VLOOKUP($E181-6,AllData,COLUMN()-5-COLUMN($E181)))","v":{"$error":"#N/A"}},{"$f":"SUM(VLOOKUP($E181,AllData,COLUMN()-6-COLUMN($E181)),VLOOKUP($E181-1,AllData,COLUMN()-6-COLUMN($E181)),VLOOKUP($E181-2,AllData,COLUMN()-6-COLUMN($E181)),VLOOKUP($E181-3,AllData,COLUMN()-6-COLUMN($E181)),VLOOKUP($E181-4,AllData,COLUMN()-6-COLUMN($E181)),VLOOKUP($E181-5,AllData,COLUMN()-6-COLUMN($E181)),VLOOKUP($E181-6,AllData,COLUMN()-6-COLUMN($E181)),VLOOKUP($E181-7,AllData,COLUMN()-6-COLUMN($E181)),VLOOKUP($E181-8,AllData,COLUMN()-6-COLUMN($E181)),VLOOKUP($E181-9,AllData,COLUMN()-6-COLUMN($E181)),VLOOKUP($E181-10,AllData,COLUMN()-6-COLUMN($E181)),VLOOKUP($E181-11,AllData,COLUMN()-6-COLUMN($E181)),VLOOKUP($E181-12,AllData,COLUMN()-6-COLUMN($E181)),VLOOKUP($E181-13,AllData,COLUMN()-6-COLUMN($E181)),VLOOKUP($E181-14,AllData,COLUMN()-6-COLUMN($E181)),VLOOKUP($E181-15,AllData,COLUMN()-6-COLUMN($E181)),VLOOKUP($E181-16,AllData,COLUMN()-6-COLUMN($E181)),VLOOKUP($E181-17,AllData,COLUMN()-6-COLUMN($E181)),VLOOKUP($E181-18,AllData,COLUMN()-6-COLUMN($E181)),VLOOKUP($E181-19,AllData,COLUMN()-6-COLUMN($E181)),VLOOKUP($E181-20,AllData,COLUMN()-6-COLUMN($E181)),VLOOKUP($E181-21,AllData,COLUMN()-6-COLUMN($E181)),VLOOKUP($E181-22,AllData,COLUMN()-6-COLUMN($E181)),VLOOKUP($E181-23,AllData,COLUMN()-6-COLUMN($E181)),VLOOKUP($E181-24,AllData,COLUMN()-6-COLUMN($E181)),VLOOKUP($E181-25,AllData,COLUMN()-6-COLUMN($E181)),VLOOKUP($E181-26,AllData,COLUMN()-6-COLUMN($E181)),VLOOKUP($E181-27,AllData,COLUMN()-6-COLUMN($E181)),VLOOKUP($E181-28,AllData,COLUMN()-6-COLUMN($E181)),VLOOKUP($E181-29,AllData,COLUMN()-6-COLUMN($E181)))","v":{"$error":"#N/A"}},{"$f":"VLOOKUP($E181,AllData,COLUMN()-7-COLUMN($E181))","v":{"$error":"#N/A"}},{"$f":"OR('Cool Graph'!$I$1=35,'Cool Graph'!$I$1=36,'Cool Graph'!$I$1=37,'Cool Graph'!$I$1=38,'Cool Graph'!$I$1=39,'Cool Graph'!$I$1=40,'Cool Graph'!$I$1=41,'Cool Graph'!$I$1=42,'Cool Graph'!$I$1=43,'Cool Graph'!$I$1=44,'Cool Graph'!$I$1=45,'Cool Graph'!$I$1=46,'Cool Graph'!$I$1=47,'Cool Graph'!$I$1=58,'Cool Graph'!$I$1=66)","v":false}]
["2011-12-28",{"$f":"OFFSET(OldSchoolJustValues!A182,0,'Cool Graph'!$H$1)","v":0},{"$f":"OFFSET(OldSchoolJustValues!A182,0,'Cool Graph'!$I$1)","v":717.1302148475163},null,{"$f":"IF(NewDate>EndDate,NA(),NewDate)","v":{"$error":"#N/A"}},{"$f":"IF($E182>EndDate,NA(),IF($K$2=TRUE,N182,IF('Cool Graph'!$B$17=1,N182,IF('Cool Graph'!$B$17=2,L182,IF('Cool Graph'!$B$17=3,M182,)))))","v":{"$error":"#N/A"}},{"$f":"IF($E182>EndDate,NA(),IF($O$2=TRUE,J182,IF('Cool Graph'!$B$17=1,Data1!J182,IF('Cool Graph'!$B$17=2,Data1!H182,IF('Cool Graph'!$B$17=3,Data1!I182,)))))","v":{"$error":"#N/A"}},{"$f":"SUM(VLOOKUP($E182,AllData,COLUMN()-COLUMN($E182)),VLOOKUP($E182-1,AllData,COLUMN()-COLUMN($E182)),VLOOKUP($E182-2,AllData,COLUMN()-COLUMN($E182)),VLOOKUP($E182-3,AllData,COLUMN()-COLUMN($E182)),VLOOKUP($E182-4,AllData,COLUMN()-COLUMN($E182)),VLOOKUP($E182-5,AllData,COLUMN()-COLUMN($E182)),VLOOKUP($E182-6,AllData,COLUMN()-COLUMN($E182)))","v":{"$error":"#N/A"}},{"$f":"SUM(VLOOKUP($E182,AllData,COLUMN()-1-COLUMN($E182)),VLOOKUP($E182-1,AllData,COLUMN()-1-COLUMN($E182)),VLOOKUP($E182-2,AllData,COLUMN()-1-COLUMN($E182)),VLOOKUP($E182-3,AllData,COLUMN()-1-COLUMN($E182)),VLOOKUP($E182-4,AllData,COLUMN()-1-COLUMN($E182)),VLOOKUP($E182-5,AllData,COLUMN()-1-COLUMN($E182)),VLOOKUP($E182-6,AllData,COLUMN()-1-COLUMN($E182)),VLOOKUP($E182-7,AllData,COLUMN()-1-COLUMN($E182)),VLOOKUP($E182-8,AllData,COLUMN()-1-COLUMN($E182)),VLOOKUP($E182-9,AllData,COLUMN()-1-COLUMN($E182)),VLOOKUP($E182-10,AllData,COLUMN()-1-COLUMN($E182)),VLOOKUP($E182-11,AllData,COLUMN()-1-COLUMN($E182)),VLOOKUP($E182-12,AllData,COLUMN()-1-COLUMN($E182)),VLOOKUP($E182-13,AllData,COLUMN()-1-COLUMN($E182)),VLOOKUP($E182-14,AllData,COLUMN()-1-COLUMN($E182)),VLOOKUP($E182-15,AllData,COLUMN()-1-COLUMN($E182)),VLOOKUP($E182-16,AllData,COLUMN()-1-COLUMN($E182)),VLOOKUP($E182-17,AllData,COLUMN()-1-COLUMN($E182)),VLOOKUP($E182-18,AllData,COLUMN()-1-COLUMN($E182)),VLOOKUP($E182-19,AllData,COLUMN()-1-COLUMN($E182)),VLOOKUP($E182-20,AllData,COLUMN()-1-COLUMN($E182)),VLOOKUP($E182-21,AllData,COLUMN()-1-COLUMN($E182)),VLOOKUP($E182-22,AllData,COLUMN()-1-COLUMN($E182)),VLOOKUP($E182-23,AllData,COLUMN()-1-COLUMN($E182)),VLOOKUP($E182-24,AllData,COLUMN()-1-COLUMN($E182)),VLOOKUP($E182-25,AllData,COLUMN()-1-COLUMN($E182)),VLOOKUP($E182-26,AllData,COLUMN()-1-COLUMN($E182)),VLOOKUP($E182-27,AllData,COLUMN()-1-COLUMN($E182)),VLOOKUP($E182-28,AllData,COLUMN()-1-COLUMN($E182)),VLOOKUP($E182-29,AllData,COLUMN()-1-COLUMN($E182)))","v":{"$error":"#N/A"}},{"$f":"VLOOKUP($E182,AllData,COLUMN()-2-COLUMN($E182))","v":{"$error":"#N/A"}},{"$f":"OR('Cool Graph'!$H$1=35,'Cool Graph'!$H$1=36,'Cool Graph'!$H$1=37,'Cool Graph'!$H$1=38,'Cool Graph'!$H$1=39,'Cool Graph'!$H$1=40,'Cool Graph'!$H$1=41,'Cool Graph'!$H$1=42,'Cool Graph'!$H$1=43,'Cool Graph'!$H$1=44,'Cool Graph'!$H$1=45,'Cool Graph'!$H$1=46,'Cool Graph'!$H$1=47,'Cool Graph'!$H$1=58,'Cool Graph'!$H$1=66)","v":false},{"$f":"SUM(VLOOKUP($E182,AllData,COLUMN()-5-COLUMN($E182)),VLOOKUP($E182-1,AllData,COLUMN()-5-COLUMN($E182)),VLOOKUP($E182-2,AllData,COLUMN()-5-COLUMN($E182)),VLOOKUP($E182-3,AllData,COLUMN()-5-COLUMN($E182)),VLOOKUP($E182-4,AllData,COLUMN()-5-COLUMN($E182)),VLOOKUP($E182-5,AllData,COLUMN()-5-COLUMN($E182)),VLOOKUP($E182-6,AllData,COLUMN()-5-COLUMN($E182)))","v":{"$error":"#N/A"}},{"$f":"SUM(VLOOKUP($E182,AllData,COLUMN()-6-COLUMN($E182)),VLOOKUP($E182-1,AllData,COLUMN()-6-COLUMN($E182)),VLOOKUP($E182-2,AllData,COLUMN()-6-COLUMN($E182)),VLOOKUP($E182-3,AllData,COLUMN()-6-COLUMN($E182)),VLOOKUP($E182-4,AllData,COLUMN()-6-COLUMN($E182)),VLOOKUP($E182-5,AllData,COLUMN()-6-COLUMN($E182)),VLOOKUP($E182-6,AllData,COLUMN()-6-COLUMN($E182)),VLOOKUP($E182-7,AllData,COLUMN()-6-COLUMN($E182)),VLOOKUP($E182-8,AllData,COLUMN()-6-COLUMN($E182)),VLOOKUP($E182-9,AllData,COLUMN()-6-COLUMN($E182)),VLOOKUP($E182-10,AllData,COLUMN()-6-COLUMN($E182)),VLOOKUP($E182-11,AllData,COLUMN()-6-COLUMN($E182)),VLOOKUP($E182-12,AllData,COLUMN()-6-COLUMN($E182)),VLOOKUP($E182-13,AllData,COLUMN()-6-COLUMN($E182)),VLOOKUP($E182-14,AllData,COLUMN()-6-COLUMN($E182)),VLOOKUP($E182-15,AllData,COLUMN()-6-COLUMN($E182)),VLOOKUP($E182-16,AllData,COLUMN()-6-COLUMN($E182)),VLOOKUP($E182-17,AllData,COLUMN()-6-COLUMN($E182)),VLOOKUP($E182-18,AllData,COLUMN()-6-COLUMN($E182)),VLOOKUP($E182-19,AllData,COLUMN()-6-COLUMN($E182)),VLOOKUP($E182-20,AllData,COLUMN()-6-COLUMN($E182)),VLOOKUP($E182-21,AllData,COLUMN()-6-COLUMN($E182)),VLOOKUP($E182-22,AllData,COLUMN()-6-COLUMN($E182)),VLOOKUP($E182-23,AllData,COLUMN()-6-COLUMN($E182)),VLOOKUP($E182-24,AllData,COLUMN()-6-COLUMN($E182)),VLOOKUP($E182-25,AllData,COLUMN()-6-COLUMN($E182)),VLOOKUP($E182-26,AllData,COLUMN()-6-COLUMN($E182)),VLOOKUP($E182-27,AllData,COLUMN()-6-COLUMN($E182)),VLOOKUP($E182-28,AllData,COLUMN()-6-COLUMN($E182)),VLOOKUP($E182-29,AllData,COLUMN()-6-COLUMN($E182)))","v":{"$error":"#N/A"}},{"$f":"VLOOKUP($E182,AllData,COLUMN()-7-COLUMN($E182))","v":{"$error":"#N/A"}},{"$f":"OR('Cool Graph'!$I$1=35,'Cool Graph'!$I$1=36,'Cool Graph'!$I$1=37,'Cool Graph'!$I$1=38,'Cool Graph'!$I$1=39,'Cool Graph'!$I$1=40,'Cool Graph'!$I$1=41,'Cool Graph'!$I$1=42,'Cool Graph'!$I$1=43,'Cool Graph'!$I$1=44,'Cool Graph'!$I$1=45,'Cool Graph'!$I$1=46,'Cool Graph'!$I$1=47,'Cool Graph'!$I$1=58,'Cool Graph'!$I$1=66)","v":false}]
["2011-12-29",{"$f":"OFFSET(OldSchoolJustValues!A183,0,'Cool Graph'!$H$1)","v":41.34},{"$f":"OFFSET(OldSchoolJustValues!A183,0,'Cool Graph'!$I$1)","v":-6.5401842650567801},null,{"$f":"IF(NewDate>EndDate,NA(),NewDate)","v":{"$error":"#N/A"}},{"$f":"IF($E183>EndDate,NA(),IF($K$2=TRUE,N183,IF('Cool Graph'!$B$17=1,N183,IF('Cool Graph'!$B$17=2,L183,IF('Cool Graph'!$B$17=3,M183,)))))","v":{"$error":"#N/A"}},{"$f":"IF($E183>EndDate,NA(),IF($O$2=TRUE,J183,IF('Cool Graph'!$B$17=1,Data1!J183,IF('Cool Graph'!$B$17=2,Data1!H183,IF('Cool Graph'!$B$17=3,Data1!I183,)))))","v":{"$error":"#N/A"}},{"$f":"SUM(VLOOKUP($E183,AllData,COLUMN()-COLUMN($E183)),VLOOKUP($E183-1,AllData,COLUMN()-COLUMN($E183)),VLOOKUP($E183-2,AllData,COLUMN()-COLUMN($E183)),VLOOKUP($E183-3,AllData,COLUMN()-COLUMN($E183)),VLOOKUP($E183-4,AllData,COLUMN()-COLUMN($E183)),VLOOKUP($E183-5,AllData,COLUMN()-COLUMN($E183)),VLOOKUP($E183-6,AllData,COLUMN()-COLUMN($E183)))","v":{"$error":"#N/A"}},{"$f":"SUM(VLOOKUP($E183,AllData,COLUMN()-1-COLUMN($E183)),VLOOKUP($E183-1,AllData,COLUMN()-1-COLUMN($E183)),VLOOKUP($E183-2,AllData,COLUMN()-1-COLUMN($E183)),VLOOKUP($E183-3,AllData,COLUMN()-1-COLUMN($E183)),VLOOKUP($E183-4,AllData,COLUMN()-1-COLUMN($E183)),VLOOKUP($E183-5,AllData,COLUMN()-1-COLUMN($E183)),VLOOKUP($E183-6,AllData,COLUMN()-1-COLUMN($E183)),VLOOKUP($E183-7,AllData,COLUMN()-1-COLUMN($E183)),VLOOKUP($E183-8,AllData,COLUMN()-1-COLUMN($E183)),VLOOKUP($E183-9,AllData,COLUMN()-1-COLUMN($E183)),VLOOKUP($E183-10,AllData,COLUMN()-1-COLUMN($E183)),VLOOKUP($E183-11,AllData,COLUMN()-1-COLUMN($E183)),VLOOKUP($E183-12,AllData,COLUMN()-1-COLUMN($E183)),VLOOKUP($E183-13,AllData,COLUMN()-1-COLUMN($E183)),VLOOKUP($E183-14,AllData,COLUMN()-1-COLUMN($E183)),VLOOKUP($E183-15,AllData,COLUMN()-1-COLUMN($E183)),VLOOKUP($E183-16,AllData,COLUMN()-1-COLUMN($E183)),VLOOKUP($E183-17,AllData,COLUMN()-1-COLUMN($E183)),VLOOKUP($E183-18,AllData,COLUMN()-1-COLUMN($E183)),VLOOKUP($E183-19,AllData,COLUMN()-1-COLUMN($E183)),VLOOKUP($E183-20,AllData,COLUMN()-1-COLUMN($E183)),VLOOKUP($E183-21,AllData,COLUMN()-1-COLUMN($E183)),VLOOKUP($E183-22,AllData,COLUMN()-1-COLUMN($E183)),VLOOKUP($E183-23,AllData,COLUMN()-1-COLUMN($E183)),VLOOKUP($E183-24,AllData,COLUMN()-1-COLUMN($E183)),VLOOKUP($E183-25,AllData,COLUMN()-1-COLUMN($E183)),VLOOKUP($E183-26,AllData,COLUMN()-1-COLUMN($E183)),VLOOKUP($E183-27,AllData,COLUMN()-1-COLUMN($E183)),VLOOKUP($E183-28,AllData,COLUMN()-1-COLUMN($E183)),VLOOKUP($E183-29,AllData,COLUMN()-1-COLUMN($E183)))","v":{"$error":"#N/A"}},{"$f":"VLOOKUP($E183,AllData,COLUMN()-2-COLUMN($E183))","v":{"$error":"#N/A"}},{"$f":"OR('Cool Graph'!$H$1=35,'Cool Graph'!$H$1=36,'Cool Graph'!$H$1=37,'Cool Graph'!$H$1=38,'Cool Graph'!$H$1=39,'Cool Graph'!$H$1=40,'Cool Graph'!$H$1=41,'Cool Graph'!$H$1=42,'Cool Graph'!$H$1=43,'Cool Graph'!$H$1=44,'Cool Graph'!$H$1=45,'Cool Graph'!$H$1=46,'Cool Graph'!$H$1=47,'Cool Graph'!$H$1=58,'Cool Graph'!$H$1=66)","v":false},{"$f":"SUM(VLOOKUP($E183,AllData,COLUMN()-5-COLUMN($E183)),VLOOKUP($E183-1,AllData,COLUMN()-5-COLUMN($E183)),VLOOKUP($E183-2,AllData,COLUMN()-5-COLUMN($E183)),VLOOKUP($E183-3,AllData,COLUMN()-5-COLUMN($E183)),VLOOKUP($E183-4,AllData,COLUMN()-5-COLUMN($E183)),VLOOKUP($E183-5,AllData,COLUMN()-5-COLUMN($E183)),VLOOKUP($E183-6,AllData,COLUMN()-5-COLUMN($E183)))","v":{"$error":"#N/A"}},{"$f":"SUM(VLOOKUP($E183,AllData,COLUMN()-6-COLUMN($E183)),VLOOKUP($E183-1,AllData,COLUMN()-6-COLUMN($E183)),VLOOKUP($E183-2,AllData,COLUMN()-6-COLUMN($E183)),VLOOKUP($E183-3,AllData,COLUMN()-6-COLUMN($E183)),VLOOKUP($E183-4,AllData,COLUMN()-6-COLUMN($E183)),VLOOKUP($E183-5,AllData,COLUMN()-6-COLUMN($E183)),VLOOKUP($E183-6,AllData,COLUMN()-6-COLUMN($E183)),VLOOKUP($E183-7,AllData,COLUMN()-6-COLUMN($E183)),VLOOKUP($E183-8,AllData,COLUMN()-6-COLUMN($E183)),VLOOKUP($E183-9,AllData,COLUMN()-6-COLUMN($E183)),VLOOKUP($E183-10,AllData,COLUMN()-6-COLUMN($E183)),VLOOKUP($E183-11,AllData,COLUMN()-6-COLUMN($E183)),VLOOKUP($E183-12,AllData,COLUMN()-6-COLUMN($E183)),VLOOKUP($E183-13,AllData,COLUMN()-6-COLUMN($E183)),VLOOKUP($E183-14,AllData,COLUMN()-6-COLUMN($E183)),VLOOKUP($E183-15,AllData,COLUMN()-6-COLUMN($E183)),VLOOKUP($E183-16,AllData,COLUMN()-6-COLUMN($E183)),VLOOKUP($E183-17,AllData,COLUMN()-6-COLUMN($E183)),VLOOKUP($E183-18,AllData,COLUMN()-6-COLUMN($E183)),VLOOKUP($E183-19,AllData,COLUMN()-6-COLUMN($E183)),VLOOKUP($E183-20,AllData,COLUMN()-6-COLUMN($E183)),VLOOKUP($E183-21,AllData,COLUMN()-6-COLUMN($E183)),VLOOKUP($E183-22,AllData,COLUMN()-6-COLUMN($E183)),VLOOKUP($E183-23,AllData,COLUMN()-6-COLUMN($E183)),VLOOKUP($E183-24,AllData,COLUMN()-6-COLUMN($E183)),VLOOKUP($E183-25,AllData,COLUMN()-6-COLUMN($E183)),VLOOKUP($E183-26,AllData,COLUMN()-6-COLUMN($E183)),VLOOKUP($E183-27,AllData,COLUMN()-6-COLUMN($E183)),VLOOKUP($E183-28,AllData,COLUMN()-6-COLUMN($E183)),VLOOKUP($E183-29,AllData,COLUMN()-6-COLUMN($E183)))","v":{"$error":"#N/A"}},{"$f":"VLOOKUP($E183,AllData,COLUMN()-7-COLUMN($E183))","v":{"$error":"#N/A"}},{"$f":"OR('Cool Graph'!$I$1=35,'Cool Graph'!$I$1=36,'Cool Graph'!$I$1=37,'Cool Graph'!$I$1=38,'Cool Graph'!$I$1=39,'Cool Graph'!$I$1=40,'Cool Graph'!$I$1=41,'Cool Graph'!$I$1=42,'Cool Graph'!$I$1=43,'Cool Graph'!$I$1=44,'Cool Graph'!$I$1=45,'Cool Graph'!$I$1=46,'Cool Graph'!$I$1=47,'Cool Graph'!$I$1=58,'Cool Graph'!$I$1=66)","v":false}]
["2011-12-30",{"$f":"OFFSET(OldSchoolJustValues!A184,0,'Cool Graph'!$H$1)","v":11.86},{"$f":"OFFSET(OldSchoolJustValues!A184,0,'Cool Graph'!$I$1)","v":538.29167596851266},null,{"$f":"IF(NewDate>EndDate,NA(),NewDate)","v":{"$error":"#N/A"}},{"$f":"IF($E184>EndDate,NA(),IF($K$2=TRUE,N184,IF('Cool Graph'!$B$17=1,N184,IF('Cool Graph'!$B$17=2,L184,IF('Cool Graph'!$B$17=3,M184,)))))","v":{"$error":"#N/A"}},{"$f":"IF($E184>EndDate,NA(),IF($O$2=TRUE,J184,IF('Cool Graph'!$B$17=1,Data1!J184,IF('Cool Graph'!$B$17=2,Data1!H184,IF('Cool Graph'!$B$17=3,Data1!I184,)))))","v":{"$error":"#N/A"}},{"$f":"SUM(VLOOKUP($E184,AllData,COLUMN()-COLUMN($E184)),VLOOKUP($E184-1,AllData,COLUMN()-COLUMN($E184)),VLOOKUP($E184-2,AllData,COLUMN()-COLUMN($E184)),VLOOKUP($E184-3,AllData,COLUMN()-COLUMN($E184)),VLOOKUP($E184-4,AllData,COLUMN()-COLUMN($E184)),VLOOKUP($E184-5,AllData,COLUMN()-COLUMN($E184)),VLOOKUP($E184-6,AllData,COLUMN()-COLUMN($E184)))","v":{"$error":"#N/A"}},{"$f":"SUM(VLOOKUP($E184,AllData,COLUMN()-1-COLUMN($E184)),VLOOKUP($E184-1,AllData,COLUMN()-1-COLUMN($E184)),VLOOKUP($E184-2,AllData,COLUMN()-1-COLUMN($E184)),VLOOKUP($E184-3,AllData,COLUMN()-1-COLUMN($E184)),VLOOKUP($E184-4,AllData,COLUMN()-1-COLUMN($E184)),VLOOKUP($E184-5,AllData,COLUMN()-1-COLUMN($E184)),VLOOKUP($E184-6,AllData,COLUMN()-1-COLUMN($E184)),VLOOKUP($E184-7,AllData,COLUMN()-1-COLUMN($E184)),VLOOKUP($E184-8,AllData,COLUMN()-1-COLUMN($E184)),VLOOKUP($E184-9,AllData,COLUMN()-1-COLUMN($E184)),VLOOKUP($E184-10,AllData,COLUMN()-1-COLUMN($E184)),VLOOKUP($E184-11,AllData,COLUMN()-1-COLUMN($E184)),VLOOKUP($E184-12,AllData,COLUMN()-1-COLUMN($E184)),VLOOKUP($E184-13,AllData,COLUMN()-1-COLUMN($E184)),VLOOKUP($E184-14,AllData,COLUMN()-1-COLUMN($E184)),VLOOKUP($E184-15,AllData,COLUMN()-1-COLUMN($E184)),VLOOKUP($E184-16,AllData,COLUMN()-1-COLUMN($E184)),VLOOKUP($E184-17,AllData,COLUMN()-1-COLUMN($E184)),VLOOKUP($E184-18,AllData,COLUMN()-1-COLUMN($E184)),VLOOKUP($E184-19,AllData,COLUMN()-1-COLUMN($E184)),VLOOKUP($E184-20,AllData,COLUMN()-1-COLUMN($E184)),VLOOKUP($E184-21,AllData,COLUMN()-1-COLUMN($E184)),VLOOKUP($E184-22,AllData,COLUMN()-1-COLUMN($E184)),VLOOKUP($E184-23,AllData,COLUMN()-1-COLUMN($E184)),VLOOKUP($E184-24,AllData,COLUMN()-1-COLUMN($E184)),VLOOKUP($E184-25,AllData,COLUMN()-1-COLUMN($E184)),VLOOKUP($E184-26,AllData,COLUMN()-1-COLUMN($E184)),VLOOKUP($E184-27,AllData,COLUMN()-1-COLUMN($E184)),VLOOKUP($E184-28,AllData,COLUMN()-1-COLUMN($E184)),VLOOKUP($E184-29,AllData,COLUMN()-1-COLUMN($E184)))","v":{"$error":"#N/A"}},{"$f":"VLOOKUP($E184,AllData,COLUMN()-2-COLUMN($E184))","v":{"$error":"#N/A"}},{"$f":"OR('Cool Graph'!$H$1=35,'Cool Graph'!$H$1=36,'Cool Graph'!$H$1=37,'Cool Graph'!$H$1=38,'Cool Graph'!$H$1=39,'Cool Graph'!$H$1=40,'Cool Graph'!$H$1=41,'Cool Graph'!$H$1=42,'Cool Graph'!$H$1=43,'Cool Graph'!$H$1=44,'Cool Graph'!$H$1=45,'Cool Graph'!$H$1=46,'Cool Graph'!$H$1=47,'Cool Graph'!$H$1=58,'Cool Graph'!$H$1=66)","v":false},{"$f":"SUM(VLOOKUP($E184,AllData,COLUMN()-5-COLUMN($E184)),VLOOKUP($E184-1,AllData,COLUMN()-5-COLUMN($E184)),VLOOKUP($E184-2,AllData,COLUMN()-5-COLUMN($E184)),VLOOKUP($E184-3,AllData,COLUMN()-5-COLUMN($E184)),VLOOKUP($E184-4,AllData,COLUMN()-5-COLUMN($E184)),VLOOKUP($E184-5,AllData,COLUMN()-5-COLUMN($E184)),VLOOKUP($E184-6,AllData,COLUMN()-5-COLUMN($E184)))","v":{"$error":"#N/A"}},{"$f":"SUM(VLOOKUP($E184,AllData,COLUMN()-6-COLUMN($E184)),VLOOKUP($E184-1,AllData,COLUMN()-6-COLUMN($E184)),VLOOKUP($E184-2,AllData,COLUMN()-6-COLUMN($E184)),VLOOKUP($E184-3,AllData,COLUMN()-6-COLUMN($E184)),VLOOKUP($E184-4,AllData,COLUMN()-6-COLUMN($E184)),VLOOKUP($E184-5,AllData,COLUMN()-6-COLUMN($E184)),VLOOKUP($E184-6,AllData,COLUMN()-6-COLUMN($E184)),VLOOKUP($E184-7,AllData,COLUMN()-6-COLUMN($E184)),VLOOKUP($E184-8,AllData,COLUMN()-6-COLUMN($E184)),VLOOKUP($E184-9,AllData,COLUMN()-6-COLUMN($E184)),VLOOKUP($E184-10,AllData,COLUMN()-6-COLUMN($E184)),VLOOKUP($E184-11,AllData,COLUMN()-6-COLUMN($E184)),VLOOKUP($E184-12,AllData,COLUMN()-6-COLUMN($E184)),VLOOKUP($E184-13,AllData,COLUMN()-6-COLUMN($E184)),VLOOKUP($E184-14,AllData,COLUMN()-6-COLUMN($E184)),VLOOKUP($E184-15,AllData,COLUMN()-6-COLUMN($E184)),VLOOKUP($E184-16,AllData,COLUMN()-6-COLUMN($E184)),VLOOKUP($E184-17,AllData,COLUMN()-6-COLUMN($E184)),VLOOKUP($E184-18,AllData,COLUMN()-6-COLUMN($E184)),VLOOKUP($E184-19,AllData,COLUMN()-6-COLUMN($E184)),VLOOKUP($E184-20,AllData,COLUMN()-6-COLUMN($E184)),VLOOKUP($E184-21,AllData,COLUMN()-6-COLUMN($E184)),VLOOKUP($E184-22,AllData,COLUMN()-6-COLUMN($E184)),VLOOKUP($E184-23,AllData,COLUMN()-6-COLUMN($E184)),VLOOKUP($E184-24,AllData,COLUMN()-6-COLUMN($E184)),VLOOKUP($E184-25,AllData,COLUMN()-6-COLUMN($E184)),VLOOKUP($E184-26,AllData,COLUMN()-6-COLUMN($E184)),VLOOKUP($E184-27,AllData,COLUMN()-6-COLUMN($E184)),VLOOKUP($E184-28,AllData,COLUMN()-6-COLUMN($E184)),VLOOKUP($E184-29,AllData,COLUMN()-6-COLUMN($E184)))","v":{"$error":"#N/A"}},{"$f":"VLOOKUP($E184,AllData,COLUMN()-7-COLUMN($E184))","v":{"$error":"#N/A"}},{"$f":"OR('Cool Graph'!$I$1=35,'Cool Graph'!$I$1=36,'Cool Graph'!$I$1=37,'Cool Graph'!$I$1=38,'Cool Graph'!$I$1=39,'Cool Graph'!$I$1=40,'Cool Graph'!$I$1=41,'Cool Graph'!$I$1=42,'Cool Graph'!$I$1=43,'Cool Graph'!$I$1=44,'Cool Graph'!$I$1=45,'Cool Graph'!$I$1=46,'Cool Graph'!$I$1=47,'Cool Graph'!$I$1=58,'Cool Graph'!$I$1=66)","v":false}]
["2011-12-31",{"$f":"OFFSET(OldSchoolJustValues!A185,0,'Cool Graph'!$H$1)","v":17.36},{"$f":"OFFSET(OldSchoolJustValues!A185,0,'Cool Graph'!$I$1)","v":315.5218669160281},null,{"$f":"IF(NewDate>EndDate,NA(),NewDate)","v":{"$error":"#N/A"}},{"$f":"IF($E185>EndDate,NA(),IF($K$2=TRUE,N185,IF('Cool Graph'!$B$17=1,N185,IF('Cool Graph'!$B$17=2,L185,IF('Cool Graph'!$B$17=3,M185,)))))","v":{"$error":"#N/A"}},{"$f":"IF($E185>EndDate,NA(),IF($O$2=TRUE,J185,IF('Cool Graph'!$B$17=1,Data1!J185,IF('Cool Graph'!$B$17=2,Data1!H185,IF('Cool Graph'!$B$17=3,Data1!I185,)))))","v":{"$error":"#N/A"}},{"$f":"SUM(VLOOKUP($E185,AllData,COLUMN()-COLUMN($E185)),VLOOKUP($E185-1,AllData,COLUMN()-COLUMN($E185)),VLOOKUP($E185-2,AllData,COLUMN()-COLUMN($E185)),VLOOKUP($E185-3,AllData,COLUMN()-COLUMN($E185)),VLOOKUP($E185-4,AllData,COLUMN()-COLUMN($E185)),VLOOKUP($E185-5,AllData,COLUMN()-COLUMN($E185)),VLOOKUP($E185-6,AllData,COLUMN()-COLUMN($E185)))","v":{"$error":"#N/A"}},{"$f":"SUM(VLOOKUP($E185,AllData,COLUMN()-1-COLUMN($E185)),VLOOKUP($E185-1,AllData,COLUMN()-1-COLUMN($E185)),VLOOKUP($E185-2,AllData,COLUMN()-1-COLUMN($E185)),VLOOKUP($E185-3,AllData,COLUMN()-1-COLUMN($E185)),VLOOKUP($E185-4,AllData,COLUMN()-1-COLUMN($E185)),VLOOKUP($E185-5,AllData,COLUMN()-1-COLUMN($E185)),VLOOKUP($E185-6,AllData,COLUMN()-1-COLUMN($E185)),VLOOKUP($E185-7,AllData,COLUMN()-1-COLUMN($E185)),VLOOKUP($E185-8,AllData,COLUMN()-1-COLUMN($E185)),VLOOKUP($E185-9,AllData,COLUMN()-1-COLUMN($E185)),VLOOKUP($E185-10,AllData,COLUMN()-1-COLUMN($E185)),VLOOKUP($E185-11,AllData,COLUMN()-1-COLUMN($E185)),VLOOKUP($E185-12,AllData,COLUMN()-1-COLUMN($E185)),VLOOKUP($E185-13,AllData,COLUMN()-1-COLUMN($E185)),VLOOKUP($E185-14,AllData,COLUMN()-1-COLUMN($E185)),VLOOKUP($E185-15,AllData,COLUMN()-1-COLUMN($E185)),VLOOKUP($E185-16,AllData,COLUMN()-1-COLUMN($E185)),VLOOKUP($E185-17,AllData,COLUMN()-1-COLUMN($E185)),VLOOKUP($E185-18,AllData,COLUMN()-1-COLUMN($E185)),VLOOKUP($E185-19,AllData,COLUMN()-1-COLUMN($E185)),VLOOKUP($E185-20,AllData,COLUMN()-1-COLUMN($E185)),VLOOKUP($E185-21,AllData,COLUMN()-1-COLUMN($E185)),VLOOKUP($E185-22,AllData,COLUMN()-1-COLUMN($E185)),VLOOKUP($E185-23,AllData,COLUMN()-1-COLUMN($E185)),VLOOKUP($E185-24,AllData,COLUMN()-1-COLUMN($E185)),VLOOKUP($E185-25,AllData,COLUMN()-1-COLUMN($E185)),VLOOKUP($E185-26,AllData,COLUMN()-1-COLUMN($E185)),VLOOKUP($E185-27,AllData,COLUMN()-1-COLUMN($E185)),VLOOKUP($E185-28,AllData,COLUMN()-1-COLUMN($E185)),VLOOKUP($E185-29,AllData,COLUMN()-1-COLUMN($E185)))","v":{"$error":"#N/A"}},{"$f":"VLOOKUP($E185,AllData,COLUMN()-2-COLUMN($E185))","v":{"$error":"#N/A"}},{"$f":"OR('Cool Graph'!$H$1=35,'Cool Graph'!$H$1=36,'Cool Graph'!$H$1=37,'Cool Graph'!$H$1=38,'Cool Graph'!$H$1=39,'Cool Graph'!$H$1=40,'Cool Graph'!$H$1=41,'Cool Graph'!$H$1=42,'Cool Graph'!$H$1=43,'Cool Graph'!$H$1=44,'Cool Graph'!$H$1=45,'Cool Graph'!$H$1=46,'Cool Graph'!$H$1=47,'Cool Graph'!$H$1=58,'Cool Graph'!$H$1=66)","v":false},{"$f":"SUM(VLOOKUP($E185,AllData,COLUMN()-5-COLUMN($E185)),VLOOKUP($E185-1,AllData,COLUMN()-5-COLUMN($E185)),VLOOKUP($E185-2,AllData,COLUMN()-5-COLUMN($E185)),VLOOKUP($E185-3,AllData,COLUMN()-5-COLUMN($E185)),VLOOKUP($E185-4,AllData,COLUMN()-5-COLUMN($E185)),VLOOKUP($E185-5,AllData,COLUMN()-5-COLUMN($E185)),VLOOKUP($E185-6,AllData,COLUMN()-5-COLUMN($E185)))","v":{"$error":"#N/A"}},{"$f":"SUM(VLOOKUP($E185,AllData,COLUMN()-6-COLUMN($E185)),VLOOKUP($E185-1,AllData,COLUMN()-6-COLUMN($E185)),VLOOKUP($E185-2,AllData,COLUMN()-6-COLUMN($E185)),VLOOKUP($E185-3,AllData,COLUMN()-6-COLUMN($E185)),VLOOKUP($E185-4,AllData,COLUMN()-6-COLUMN($E185)),VLOOKUP($E185-5,AllData,COLUMN()-6-COLUMN($E185)),VLOOKUP($E185-6,AllData,COLUMN()-6-COLUMN($E185)),VLOOKUP($E185-7,AllData,COLUMN()-6-COLUMN($E185)),VLOOKUP($E185-8,AllData,COLUMN()-6-COLUMN($E185)),VLOOKUP($E185-9,AllData,COLUMN()-6-COLUMN($E185)),VLOOKUP($E185-10,AllData,COLUMN()-6-COLUMN($E185)),VLOOKUP($E185-11,AllData,COLUMN()-6-COLUMN($E185)),VLOOKUP($E185-12,AllData,COLUMN()-6-COLUMN($E185)),VLOOKUP($E185-13,AllData,COLUMN()-6-COLUMN($E185)),VLOOKUP($E185-14,AllData,COLUMN()-6-COLUMN($E185)),VLOOKUP($E185-15,AllData,COLUMN()-6-COLUMN($E185)),VLOOKUP($E185-16,AllData,COLUMN()-6-COLUMN($E185)),VLOOKUP($E185-17,AllData,COLUMN()-6-COLUMN($E185)),VLOOKUP($E185-18,AllData,COLUMN()-6-COLUMN($E185)),VLOOKUP($E185-19,AllData,COLUMN()-6-COLUMN($E185)),VLOOKUP($E185-20,AllData,COLUMN()-6-COLUMN($E185)),VLOOKUP($E185-21,AllData,COLUMN()-6-COLUMN($E185)),VLOOKUP($E185-22,AllData,COLUMN()-6-COLUMN($E185)),VLOOKUP($E185-23,AllData,COLUMN()-6-COLUMN($E185)),VLOOKUP($E185-24,AllData,COLUMN()-6-COLUMN($E185)),VLOOKUP($E185-25,AllData,COLUMN()-6-COLUMN($E185)),VLOOKUP($E185-26,AllData,COLUMN()-6-COLUMN($E185)),VLOOKUP($E185-27,AllData,COLUMN()-6-COLUMN($E185)),VLOOKUP($E185-28,AllData,COLUMN()-6-COLUMN($E185)),VLOOKUP($E185-29,AllData,COLUMN()-6-COLUMN($E185)))","v":{"$error":"#N/A"}},{"$f":"VLOOKUP($E185,AllData,COLUMN()-7-COLUMN($E185))","v":{"$error":"#N/A"}},{"$f":"OR('Cool Graph'!$I$1=35,'Cool Graph'!$I$1=36,'Cool Graph'!$I$1=37,'Cool Graph'!$I$1=38,'Cool Graph'!$I$1=39,'Cool Graph'!$I$1=40,'Cool Graph'!$I$1=41,'Cool Graph'!$I$1=42,'Cool Graph'!$I$1=43,'Cool Graph'!$I$1=44,'Cool Graph'!$I$1=45,'Cool Graph'!$I$1=46,'Cool Graph'!$I$1=47,'Cool Graph'!$I$1=58,'Cool Graph'!$I$1=66)","v":false}]
["2012-01-01",{"$f":"OFFSET(OldSchoolJustValues!A186,0,'Cool Graph'!$H$1)","v":36.1},{"$f":"OFFSET(OldSchoolJustValues!A186,0,'Cool Graph'!$I$1)","v":364.98923690597599},null,{"$f":"IF(NewDate>EndDate,NA(),NewDate)","v":{"$error":"#N/A"}},{"$f":"IF($E186>EndDate,NA(),IF($K$2=TRUE,N186,IF('Cool Graph'!$B$17=1,N186,IF('Cool Graph'!$B$17=2,L186,IF('Cool Graph'!$B$17=3,M186,)))))","v":{"$error":"#N/A"}},{"$f":"IF($E186>EndDate,NA(),IF($O$2=TRUE,J186,IF('Cool Graph'!$B$17=1,Data1!J186,IF('Cool Graph'!$B$17=2,Data1!H186,IF('Cool Graph'!$B$17=3,Data1!I186,)))))","v":{"$error":"#N/A"}},{"$f":"SUM(VLOOKUP($E186,AllData,COLUMN()-COLUMN($E186)),VLOOKUP($E186-1,AllData,COLUMN()-COLUMN($E186)),VLOOKUP($E186-2,AllData,COLUMN()-COLUMN($E186)),VLOOKUP($E186-3,AllData,COLUMN()-COLUMN($E186)),VLOOKUP($E186-4,AllData,COLUMN()-COLUMN($E186)),VLOOKUP($E186-5,AllData,COLUMN()-COLUMN($E186)),VLOOKUP($E186-6,AllData,COLUMN()-COLUMN($E186)))","v":{"$error":"#N/A"}},{"$f":"SUM(VLOOKUP($E186,AllData,COLUMN()-1-COLUMN($E186)),VLOOKUP($E186-1,AllData,COLUMN()-1-COLUMN($E186)),VLOOKUP($E186-2,AllData,COLUMN()-1-COLUMN($E186)),VLOOKUP($E186-3,AllData,COLUMN()-1-COLUMN($E186)),VLOOKUP($E186-4,AllData,COLUMN()-1-COLUMN($E186)),VLOOKUP($E186-5,AllData,COLUMN()-1-COLUMN($E186)),VLOOKUP($E186-6,AllData,COLUMN()-1-COLUMN($E186)),VLOOKUP($E186-7,AllData,COLUMN()-1-COLUMN($E186)),VLOOKUP($E186-8,AllData,COLUMN()-1-COLUMN($E186)),VLOOKUP($E186-9,AllData,COLUMN()-1-COLUMN($E186)),VLOOKUP($E186-10,AllData,COLUMN()-1-COLUMN($E186)),VLOOKUP($E186-11,AllData,COLUMN()-1-COLUMN($E186)),VLOOKUP($E186-12,AllData,COLUMN()-1-COLUMN($E186)),VLOOKUP($E186-13,AllData,COLUMN()-1-COLUMN($E186)),VLOOKUP($E186-14,AllData,COLUMN()-1-COLUMN($E186)),VLOOKUP($E186-15,AllData,COLUMN()-1-COLUMN($E186)),VLOOKUP($E186-16,AllData,COLUMN()-1-COLUMN($E186)),VLOOKUP($E186-17,AllData,COLUMN()-1-COLUMN($E186)),VLOOKUP($E186-18,AllData,COLUMN()-1-COLUMN($E186)),VLOOKUP($E186-19,AllData,COLUMN()-1-COLUMN($E186)),VLOOKUP($E186-20,AllData,COLUMN()-1-COLUMN($E186)),VLOOKUP($E186-21,AllData,COLUMN()-1-COLUMN($E186)),VLOOKUP($E186-22,AllData,COLUMN()-1-COLUMN($E186)),VLOOKUP($E186-23,AllData,COLUMN()-1-COLUMN($E186)),VLOOKUP($E186-24,AllData,COLUMN()-1-COLUMN($E186)),VLOOKUP($E186-25,AllData,COLUMN()-1-COLUMN($E186)),VLOOKUP($E186-26,AllData,COLUMN()-1-COLUMN($E186)),VLOOKUP($E186-27,AllData,COLUMN()-1-COLUMN($E186)),VLOOKUP($E186-28,AllData,COLUMN()-1-COLUMN($E186)),VLOOKUP($E186-29,AllData,COLUMN()-1-COLUMN($E186)))","v":{"$error":"#N/A"}},{"$f":"VLOOKUP($E186,AllData,COLUMN()-2-COLUMN($E186))","v":{"$error":"#N/A"}},{"$f":"OR('Cool Graph'!$H$1=35,'Cool Graph'!$H$1=36,'Cool Graph'!$H$1=37,'Cool Graph'!$H$1=38,'Cool Graph'!$H$1=39,'Cool Graph'!$H$1=40,'Cool Graph'!$H$1=41,'Cool Graph'!$H$1=42,'Cool Graph'!$H$1=43,'Cool Graph'!$H$1=44,'Cool Graph'!$H$1=45,'Cool Graph'!$H$1=46,'Cool Graph'!$H$1=47,'Cool Graph'!$H$1=58,'Cool Graph'!$H$1=66)","v":false},{"$f":"SUM(VLOOKUP($E186,AllData,COLUMN()-5-COLUMN($E186)),VLOOKUP($E186-1,AllData,COLUMN()-5-COLUMN($E186)),VLOOKUP($E186-2,AllData,COLUMN()-5-COLUMN($E186)),VLOOKUP($E186-3,AllData,COLUMN()-5-COLUMN($E186)),VLOOKUP($E186-4,AllData,COLUMN()-5-COLUMN($E186)),VLOOKUP($E186-5,AllData,COLUMN()-5-COLUMN($E186)),VLOOKUP($E186-6,AllData,COLUMN()-5-COLUMN($E186)))","v":{"$error":"#N/A"}},{"$f":"SUM(VLOOKUP($E186,AllData,COLUMN()-6-COLUMN($E186)),VLOOKUP($E186-1,AllData,COLUMN()-6-COLUMN($E186)),VLOOKUP($E186-2,AllData,COLUMN()-6-COLUMN($E186)),VLOOKUP($E186-3,AllData,COLUMN()-6-COLUMN($E186)),VLOOKUP($E186-4,AllData,COLUMN()-6-COLUMN($E186)),VLOOKUP($E186-5,AllData,COLUMN()-6-COLUMN($E186)),VLOOKUP($E186-6,AllData,COLUMN()-6-COLUMN($E186)),VLOOKUP($E186-7,AllData,COLUMN()-6-COLUMN($E186)),VLOOKUP($E186-8,AllData,COLUMN()-6-COLUMN($E186)),VLOOKUP($E186-9,AllData,COLUMN()-6-COLUMN($E186)),VLOOKUP($E186-10,AllData,COLUMN()-6-COLUMN($E186)),VLOOKUP($E186-11,AllData,COLUMN()-6-COLUMN($E186)),VLOOKUP($E186-12,AllData,COLUMN()-6-COLUMN($E186)),VLOOKUP($E186-13,AllData,COLUMN()-6-COLUMN($E186)),VLOOKUP($E186-14,AllData,COLUMN()-6-COLUMN($E186)),VLOOKUP($E186-15,AllData,COLUMN()-6-COLUMN($E186)),VLOOKUP($E186-16,AllData,COLUMN()-6-COLUMN($E186)),VLOOKUP($E186-17,AllData,COLUMN()-6-COLUMN($E186)),VLOOKUP($E186-18,AllData,COLUMN()-6-COLUMN($E186)),VLOOKUP($E186-19,AllData,COLUMN()-6-COLUMN($E186)),VLOOKUP($E186-20,AllData,COLUMN()-6-COLUMN($E186)),VLOOKUP($E186-21,AllData,COLUMN()-6-COLUMN($E186)),VLOOKUP($E186-22,AllData,COLUMN()-6-COLUMN($E186)),VLOOKUP($E186-23,AllData,COLUMN()-6-COLUMN($E186)),VLOOKUP($E186-24,AllData,COLUMN()-6-COLUMN($E186)),VLOOKUP($E186-25,AllData,COLUMN()-6-COLUMN($E186)),VLOOKUP($E186-26,AllData,COLUMN()-6-COLUMN($E186)),VLOOKUP($E186-27,AllData,COLUMN()-6-COLUMN($E186)),VLOOKUP($E186-28,AllData,COLUMN()-6-COLUMN($E186)),VLOOKUP($E186-29,AllData,COLUMN()-6-COLUMN($E186)))","v":{"$error":"#N/A"}},{"$f":"VLOOKUP($E186,AllData,COLUMN()-7-COLUMN($E186))","v":{"$error":"#N/A"}},{"$f":"OR('Cool Graph'!$I$1=35,'Cool Graph'!$I$1=36,'Cool Graph'!$I$1=37,'Cool Graph'!$I$1=38,'Cool Graph'!$I$1=39,'Cool Graph'!$I$1=40,'Cool Graph'!$I$1=41,'Cool Graph'!$I$1=42,'Cool Graph'!$I$1=43,'Cool Graph'!$I$1=44,'Cool Graph'!$I$1=45,'Cool Graph'!$I$1=46,'Cool Graph'!$I$1=47,'Cool Graph'!$I$1=58,'Cool Graph'!$I$1=66)","v":false}]
["2012-01-02",{"$f":"OFFSET(OldSchoolJustValues!A187,0,'Cool Graph'!$H$1)","v":18.57},{"$f":"OFFSET(OldSchoolJustValues!A187,0,'Cool Graph'!$I$1)","v":555.66442490945133},null,{"$f":"IF(NewDate>EndDate,NA(),NewDate)","v":{"$error":"#N/A"}},{"$f":"IF($E187>EndDate,NA(),IF($K$2=TRUE,N187,IF('Cool Graph'!$B$17=1,N187,IF('Cool Graph'!$B$17=2,L187,IF('Cool Graph'!$B$17=3,M187,)))))","v":{"$error":"#N/A"}},{"$f":"IF($E187>EndDate,NA(),IF($O$2=TRUE,J187,IF('Cool Graph'!$B$17=1,Data1!J187,IF('Cool Graph'!$B$17=2,Data1!H187,IF('Cool Graph'!$B$17=3,Data1!I187,)))))","v":{"$error":"#N/A"}},{"$f":"SUM(VLOOKUP($E187,AllData,COLUMN()-COLUMN($E187)),VLOOKUP($E187-1,AllData,COLUMN()-COLUMN($E187)),VLOOKUP($E187-2,AllData,COLUMN()-COLUMN($E187)),VLOOKUP($E187-3,AllData,COLUMN()-COLUMN($E187)),VLOOKUP($E187-4,AllData,COLUMN()-COLUMN($E187)),VLOOKUP($E187-5,AllData,COLUMN()-COLUMN($E187)),VLOOKUP($E187-6,AllData,COLUMN()-COLUMN($E187)))","v":{"$error":"#N/A"}},{"$f":"SUM(VLOOKUP($E187,AllData,COLUMN()-1-COLUMN($E187)),VLOOKUP($E187-1,AllData,COLUMN()-1-COLUMN($E187)),VLOOKUP($E187-2,AllData,COLUMN()-1-COLUMN($E187)),VLOOKUP($E187-3,AllData,COLUMN()-1-COLUMN($E187)),VLOOKUP($E187-4,AllData,COLUMN()-1-COLUMN($E187)),VLOOKUP($E187-5,AllData,COLUMN()-1-COLUMN($E187)),VLOOKUP($E187-6,AllData,COLUMN()-1-COLUMN($E187)),VLOOKUP($E187-7,AllData,COLUMN()-1-COLUMN($E187)),VLOOKUP($E187-8,AllData,COLUMN()-1-COLUMN($E187)),VLOOKUP($E187-9,AllData,COLUMN()-1-COLUMN($E187)),VLOOKUP($E187-10,AllData,COLUMN()-1-COLUMN($E187)),VLOOKUP($E187-11,AllData,COLUMN()-1-COLUMN($E187)),VLOOKUP($E187-12,AllData,COLUMN()-1-COLUMN($E187)),VLOOKUP($E187-13,AllData,COLUMN()-1-COLUMN($E187)),VLOOKUP($E187-14,AllData,COLUMN()-1-COLUMN($E187)),VLOOKUP($E187-15,AllData,COLUMN()-1-COLUMN($E187)),VLOOKUP($E187-16,AllData,COLUMN()-1-COLUMN($E187)),VLOOKUP($E187-17,AllData,COLUMN()-1-COLUMN($E187)),VLOOKUP($E187-18,AllData,COLUMN()-1-COLUMN($E187)),VLOOKUP($E187-19,AllData,COLUMN()-1-COLUMN($E187)),VLOOKUP($E187-20,AllData,COLUMN()-1-COLUMN($E187)),VLOOKUP($E187-21,AllData,COLUMN()-1-COLUMN($E187)),VLOOKUP($E187-22,AllData,COLUMN()-1-COLUMN($E187)),VLOOKUP($E187-23,AllData,COLUMN()-1-COLUMN($E187)),VLOOKUP($E187-24,AllData,COLUMN()-1-COLUMN($E187)),VLOOKUP($E187-25,AllData,COLUMN()-1-COLUMN($E187)),VLOOKUP($E187-26,AllData,COLUMN()-1-COLUMN($E187)),VLOOKUP($E187-27,AllData,COLUMN()-1-COLUMN($E187)),VLOOKUP($E187-28,AllData,COLUMN()-1-COLUMN($E187)),VLOOKUP($E187-29,AllData,COLUMN()-1-COLUMN($E187)))","v":{"$error":"#N/A"}},{"$f":"VLOOKUP($E187,AllData,COLUMN()-2-COLUMN($E187))","v":{"$error":"#N/A"}},{"$f":"OR('Cool Graph'!$H$1=35,'Cool Graph'!$H$1=36,'Cool Graph'!$H$1=37,'Cool Graph'!$H$1=38,'Cool Graph'!$H$1=39,'Cool Graph'!$H$1=40,'Cool Graph'!$H$1=41,'Cool Graph'!$H$1=42,'Cool Graph'!$H$1=43,'Cool Graph'!$H$1=44,'Cool Graph'!$H$1=45,'Cool Graph'!$H$1=46,'Cool Graph'!$H$1=47,'Cool Graph'!$H$1=58,'Cool Graph'!$H$1=66)","v":false},{"$f":"SUM(VLOOKUP($E187,AllData,COLUMN()-5-COLUMN($E187)),VLOOKUP($E187-1,AllData,COLUMN()-5-COLUMN($E187)),VLOOKUP($E187-2,AllData,COLUMN()-5-COLUMN($E187)),VLOOKUP($E187-3,AllData,COLUMN()-5-COLUMN($E187)),VLOOKUP($E187-4,AllData,COLUMN()-5-COLUMN($E187)),VLOOKUP($E187-5,AllData,COLUMN()-5-COLUMN($E187)),VLOOKUP($E187-6,AllData,COLUMN()-5-COLUMN($E187)))","v":{"$error":"#N/A"}},{"$f":"SUM(VLOOKUP($E187,AllData,COLUMN()-6-COLUMN($E187)),VLOOKUP($E187-1,AllData,COLUMN()-6-COLUMN($E187)),VLOOKUP($E187-2,AllData,COLUMN()-6-COLUMN($E187)),VLOOKUP($E187-3,AllData,COLUMN()-6-COLUMN($E187)),VLOOKUP($E187-4,AllData,COLUMN()-6-COLUMN($E187)),VLOOKUP($E187-5,AllData,COLUMN()-6-COLUMN($E187)),VLOOKUP($E187-6,AllData,COLUMN()-6-COLUMN($E187)),VLOOKUP($E187-7,AllData,COLUMN()-6-COLUMN($E187)),VLOOKUP($E187-8,AllData,COLUMN()-6-COLUMN($E187)),VLOOKUP($E187-9,AllData,COLUMN()-6-COLUMN($E187)),VLOOKUP($E187-10,AllData,COLUMN()-6-COLUMN($E187)),VLOOKUP($E187-11,AllData,COLUMN()-6-COLUMN($E187)),VLOOKUP($E187-12,AllData,COLUMN()-6-COLUMN($E187)),VLOOKUP($E187-13,AllData,COLUMN()-6-COLUMN($E187)),VLOOKUP($E187-14,AllData,COLUMN()-6-COLUMN($E187)),VLOOKUP($E187-15,AllData,COLUMN()-6-COLUMN($E187)),VLOOKUP($E187-16,AllData,COLUMN()-6-COLUMN($E187)),VLOOKUP($E187-17,AllData,COLUMN()-6-COLUMN($E187)),VLOOKUP($E187-18,AllData,COLUMN()-6-COLUMN($E187)),VLOOKUP($E187-19,AllData,COLUMN()-6-COLUMN($E187)),VLOOKUP($E187-20,AllData,COLUMN()-6-COLUMN($E187)),VLOOKUP($E187-21,AllData,COLUMN()-6-COLUMN($E187)),VLOOKUP($E187-22,AllData,COLUMN()-6-COLUMN($E187)),VLOOKUP($E187-23,AllData,COLUMN()-6-COLUMN($E187)),VLOOKUP($E187-24,AllData,COLUMN()-6-COLUMN($E187)),VLOOKUP($E187-25,AllData,COLUMN()-6-COLUMN($E187)),VLOOKUP($E187-26,AllData,COLUMN()-6-COLUMN($E187)),VLOOKUP($E187-27,AllData,COLUMN()-6-COLUMN($E187)),VLOOKUP($E187-28,AllData,COLUMN()-6-COLUMN($E187)),VLOOKUP($E187-29,AllData,COLUMN()-6-COLUMN($E187)))","v":{"$error":"#N/A"}},{"$f":"VLOOKUP($E187,AllData,COLUMN()-7-COLUMN($E187))","v":{"$error":"#N/A"}},{"$f":"OR('Cool Graph'!$I$1=35,'Cool Graph'!$I$1=36,'Cool Graph'!$I$1=37,'Cool Graph'!$I$1=38,'Cool Graph'!$I$1=39,'Cool Graph'!$I$1=40,'Cool Graph'!$I$1=41,'Cool Graph'!$I$1=42,'Cool Graph'!$I$1=43,'Cool Graph'!$I$1=44,'Cool Graph'!$I$1=45,'Cool Graph'!$I$1=46,'Cool Graph'!$I$1=47,'Cool Graph'!$I$1=58,'Cool Graph'!$I$1=66)","v":false}]
["2012-01-03",{"$f":"OFFSET(OldSchoolJustValues!A188,0,'Cool Graph'!$H$1)","v":0.64},{"$f":"OFFSET(OldSchoolJustValues!A188,0,'Cool Graph'!$I$1)","v":44.742177536150621},null,{"$f":"IF(NewDate>EndDate,NA(),NewDate)","v":{"$error":"#N/A"}},{"$f":"IF($E188>EndDate,NA(),IF($K$2=TRUE,N188,IF('Cool Graph'!$B$17=1,N188,IF('Cool Graph'!$B$17=2,L188,IF('Cool Graph'!$B$17=3,M188,)))))","v":{"$error":"#N/A"}},{"$f":"IF($E188>EndDate,NA(),IF($O$2=TRUE,J188,IF('Cool Graph'!$B$17=1,Data1!J188,IF('Cool Graph'!$B$17=2,Data1!H188,IF('Cool Graph'!$B$17=3,Data1!I188,)))))","v":{"$error":"#N/A"}},{"$f":"SUM(VLOOKUP($E188,AllData,COLUMN()-COLUMN($E188)),VLOOKUP($E188-1,AllData,COLUMN()-COLUMN($E188)),VLOOKUP($E188-2,AllData,COLUMN()-COLUMN($E188)),VLOOKUP($E188-3,AllData,COLUMN()-COLUMN($E188)),VLOOKUP($E188-4,AllData,COLUMN()-COLUMN($E188)),VLOOKUP($E188-5,AllData,COLUMN()-COLUMN($E188)),VLOOKUP($E188-6,AllData,COLUMN()-COLUMN($E188)))","v":{"$error":"#N/A"}},{"$f":"SUM(VLOOKUP($E188,AllData,COLUMN()-1-COLUMN($E188)),VLOOKUP($E188-1,AllData,COLUMN()-1-COLUMN($E188)),VLOOKUP($E188-2,AllData,COLUMN()-1-COLUMN($E188)),VLOOKUP($E188-3,AllData,COLUMN()-1-COLUMN($E188)),VLOOKUP($E188-4,AllData,COLUMN()-1-COLUMN($E188)),VLOOKUP($E188-5,AllData,COLUMN()-1-COLUMN($E188)),VLOOKUP($E188-6,AllData,COLUMN()-1-COLUMN($E188)),VLOOKUP($E188-7,AllData,COLUMN()-1-COLUMN($E188)),VLOOKUP($E188-8,AllData,COLUMN()-1-COLUMN($E188)),VLOOKUP($E188-9,AllData,COLUMN()-1-COLUMN($E188)),VLOOKUP($E188-10,AllData,COLUMN()-1-COLUMN($E188)),VLOOKUP($E188-11,AllData,COLUMN()-1-COLUMN($E188)),VLOOKUP($E188-12,AllData,COLUMN()-1-COLUMN($E188)),VLOOKUP($E188-13,AllData,COLUMN()-1-COLUMN($E188)),VLOOKUP($E188-14,AllData,COLUMN()-1-COLUMN($E188)),VLOOKUP($E188-15,AllData,COLUMN()-1-COLUMN($E188)),VLOOKUP($E188-16,AllData,COLUMN()-1-COLUMN($E188)),VLOOKUP($E188-17,AllData,COLUMN()-1-COLUMN($E188)),VLOOKUP($E188-18,AllData,COLUMN()-1-COLUMN($E188)),VLOOKUP($E188-19,AllData,COLUMN()-1-COLUMN($E188)),VLOOKUP($E188-20,AllData,COLUMN()-1-COLUMN($E188)),VLOOKUP($E188-21,AllData,COLUMN()-1-COLUMN($E188)),VLOOKUP($E188-22,AllData,COLUMN()-1-COLUMN($E188)),VLOOKUP($E188-23,AllData,COLUMN()-1-COLUMN($E188)),VLOOKUP($E188-24,AllData,COLUMN()-1-COLUMN($E188)),VLOOKUP($E188-25,AllData,COLUMN()-1-COLUMN($E188)),VLOOKUP($E188-26,AllData,COLUMN()-1-COLUMN($E188)),VLOOKUP($E188-27,AllData,COLUMN()-1-COLUMN($E188)),VLOOKUP($E188-28,AllData,COLUMN()-1-COLUMN($E188)),VLOOKUP($E188-29,AllData,COLUMN()-1-COLUMN($E188)))","v":{"$error":"#N/A"}},{"$f":"VLOOKUP($E188,AllData,COLUMN()-2-COLUMN($E188))","v":{"$error":"#N/A"}},{"$f":"OR('Cool Graph'!$H$1=35,'Cool Graph'!$H$1=36,'Cool Graph'!$H$1=37,'Cool Graph'!$H$1=38,'Cool Graph'!$H$1=39,'Cool Graph'!$H$1=40,'Cool Graph'!$H$1=41,'Cool Graph'!$H$1=42,'Cool Graph'!$H$1=43,'Cool Graph'!$H$1=44,'Cool Graph'!$H$1=45,'Cool Graph'!$H$1=46,'Cool Graph'!$H$1=47,'Cool Graph'!$H$1=58,'Cool Graph'!$H$1=66)","v":false},{"$f":"SUM(VLOOKUP($E188,AllData,COLUMN()-5-COLUMN($E188)),VLOOKUP($E188-1,AllData,COLUMN()-5-COLUMN($E188)),VLOOKUP($E188-2,AllData,COLUMN()-5-COLUMN($E188)),VLOOKUP($E188-3,AllData,COLUMN()-5-COLUMN($E188)),VLOOKUP($E188-4,AllData,COLUMN()-5-COLUMN($E188)),VLOOKUP($E188-5,AllData,COLUMN()-5-COLUMN($E188)),VLOOKUP($E188-6,AllData,COLUMN()-5-COLUMN($E188)))","v":{"$error":"#N/A"}},{"$f":"SUM(VLOOKUP($E188,AllData,COLUMN()-6-COLUMN($E188)),VLOOKUP($E188-1,AllData,COLUMN()-6-COLUMN($E188)),VLOOKUP($E188-2,AllData,COLUMN()-6-COLUMN($E188)),VLOOKUP($E188-3,AllData,COLUMN()-6-COLUMN($E188)),VLOOKUP($E188-4,AllData,COLUMN()-6-COLUMN($E188)),VLOOKUP($E188-5,AllData,COLUMN()-6-COLUMN($E188)),VLOOKUP($E188-6,AllData,COLUMN()-6-COLUMN($E188)),VLOOKUP($E188-7,AllData,COLUMN()-6-COLUMN($E188)),VLOOKUP($E188-8,AllData,COLUMN()-6-COLUMN($E188)),VLOOKUP($E188-9,AllData,COLUMN()-6-COLUMN($E188)),VLOOKUP($E188-10,AllData,COLUMN()-6-COLUMN($E188)),VLOOKUP($E188-11,AllData,COLUMN()-6-COLUMN($E188)),VLOOKUP($E188-12,AllData,COLUMN()-6-COLUMN($E188)),VLOOKUP($E188-13,AllData,COLUMN()-6-COLUMN($E188)),VLOOKUP($E188-14,AllData,COLUMN()-6-COLUMN($E188)),VLOOKUP($E188-15,AllData,COLUMN()-6-COLUMN($E188)),VLOOKUP($E188-16,AllData,COLUMN()-6-COLUMN($E188)),VLOOKUP($E188-17,AllData,COLUMN()-6-COLUMN($E188)),VLOOKUP($E188-18,AllData,COLUMN()-6-COLUMN($E188)),VLOOKUP($E188-19,AllData,COLUMN()-6-COLUMN($E188)),VLOOKUP($E188-20,AllData,COLUMN()-6-COLUMN($E188)),VLOOKUP($E188-21,AllData,COLUMN()-6-COLUMN($E188)),VLOOKUP($E188-22,AllData,COLUMN()-6-COLUMN($E188)),VLOOKUP($E188-23,AllData,COLUMN()-6-COLUMN($E188)),VLOOKUP($E188-24,AllData,COLUMN()-6-COLUMN($E188)),VLOOKUP($E188-25,AllData,COLUMN()-6-COLUMN($E188)),VLOOKUP($E188-26,AllData,COLUMN()-6-COLUMN($E188)),VLOOKUP($E188-27,AllData,COLUMN()-6-COLUMN($E188)),VLOOKUP($E188-28,AllData,COLUMN()-6-COLUMN($E188)),VLOOKUP($E188-29,AllData,COLUMN()-6-COLUMN($E188)))","v":{"$error":"#N/A"}},{"$f":"VLOOKUP($E188,AllData,COLUMN()-7-COLUMN($E188))","v":{"$error":"#N/A"}},{"$f":"OR('Cool Graph'!$I$1=35,'Cool Graph'!$I$1=36,'Cool Graph'!$I$1=37,'Cool Graph'!$I$1=38,'Cool Graph'!$I$1=39,'Cool Graph'!$I$1=40,'Cool Graph'!$I$1=41,'Cool Graph'!$I$1=42,'Cool Graph'!$I$1=43,'Cool Graph'!$I$1=44,'Cool Graph'!$I$1=45,'Cool Graph'!$I$1=46,'Cool Graph'!$I$1=47,'Cool Graph'!$I$1=58,'Cool Graph'!$I$1=66)","v":false}]
["2012-01-04",{"$f":"OFFSET(OldSchoolJustValues!A189,0,'Cool Graph'!$H$1)","v":8.83},{"$f":"OFFSET(OldSchoolJustValues!A189,0,'Cool Graph'!$I$1)","v":711.38424365695823},null,{"$f":"IF(NewDate>EndDate,NA(),NewDate)","v":{"$error":"#N/A"}},{"$f":"IF($E189>EndDate,NA(),IF($K$2=TRUE,N189,IF('Cool Graph'!$B$17=1,N189,IF('Cool Graph'!$B$17=2,L189,IF('Cool Graph'!$B$17=3,M189,)))))","v":{"$error":"#N/A"}},{"$f":"IF($E189>EndDate,NA(),IF($O$2=TRUE,J189,IF('Cool Graph'!$B$17=1,Data1!J189,IF('Cool Graph'!$B$17=2,Data1!H189,IF('Cool Graph'!$B$17=3,Data1!I189,)))))","v":{"$error":"#N/A"}},{"$f":"SUM(VLOOKUP($E189,AllData,COLUMN()-COLUMN($E189)),VLOOKUP($E189-1,AllData,COLUMN()-COLUMN($E189)),VLOOKUP($E189-2,AllData,COLUMN()-COLUMN($E189)),VLOOKUP($E189-3,AllData,COLUMN()-COLUMN($E189)),VLOOKUP($E189-4,AllData,COLUMN()-COLUMN($E189)),VLOOKUP($E189-5,AllData,COLUMN()-COLUMN($E189)),VLOOKUP($E189-6,AllData,COLUMN()-COLUMN($E189)))","v":{"$error":"#N/A"}},{"$f":"SUM(VLOOKUP($E189,AllData,COLUMN()-1-COLUMN($E189)),VLOOKUP($E189-1,AllData,COLUMN()-1-COLUMN($E189)),VLOOKUP($E189-2,AllData,COLUMN()-1-COLUMN($E189)),VLOOKUP($E189-3,AllData,COLUMN()-1-COLUMN($E189)),VLOOKUP($E189-4,AllData,COLUMN()-1-COLUMN($E189)),VLOOKUP($E189-5,AllData,COLUMN()-1-COLUMN($E189)),VLOOKUP($E189-6,AllData,COLUMN()-1-COLUMN($E189)),VLOOKUP($E189-7,AllData,COLUMN()-1-COLUMN($E189)),VLOOKUP($E189-8,AllData,COLUMN()-1-COLUMN($E189)),VLOOKUP($E189-9,AllData,COLUMN()-1-COLUMN($E189)),VLOOKUP($E189-10,AllData,COLUMN()-1-COLUMN($E189)),VLOOKUP($E189-11,AllData,COLUMN()-1-COLUMN($E189)),VLOOKUP($E189-12,AllData,COLUMN()-1-COLUMN($E189)),VLOOKUP($E189-13,AllData,COLUMN()-1-COLUMN($E189)),VLOOKUP($E189-14,AllData,COLUMN()-1-COLUMN($E189)),VLOOKUP($E189-15,AllData,COLUMN()-1-COLUMN($E189)),VLOOKUP($E189-16,AllData,COLUMN()-1-COLUMN($E189)),VLOOKUP($E189-17,AllData,COLUMN()-1-COLUMN($E189)),VLOOKUP($E189-18,AllData,COLUMN()-1-COLUMN($E189)),VLOOKUP($E189-19,AllData,COLUMN()-1-COLUMN($E189)),VLOOKUP($E189-20,AllData,COLUMN()-1-COLUMN($E189)),VLOOKUP($E189-21,AllData,COLUMN()-1-COLUMN($E189)),VLOOKUP($E189-22,AllData,COLUMN()-1-COLUMN($E189)),VLOOKUP($E189-23,AllData,COLUMN()-1-COLUMN($E189)),VLOOKUP($E189-24,AllData,COLUMN()-1-COLUMN($E189)),VLOOKUP($E189-25,AllData,COLUMN()-1-COLUMN($E189)),VLOOKUP($E189-26,AllData,COLUMN()-1-COLUMN($E189)),VLOOKUP($E189-27,AllData,COLUMN()-1-COLUMN($E189)),VLOOKUP($E189-28,AllData,COLUMN()-1-COLUMN($E189)),VLOOKUP($E189-29,AllData,COLUMN()-1-COLUMN($E189)))","v":{"$error":"#N/A"}},{"$f":"VLOOKUP($E189,AllData,COLUMN()-2-COLUMN($E189))","v":{"$error":"#N/A"}},{"$f":"OR('Cool Graph'!$H$1=35,'Cool Graph'!$H$1=36,'Cool Graph'!$H$1=37,'Cool Graph'!$H$1=38,'Cool Graph'!$H$1=39,'Cool Graph'!$H$1=40,'Cool Graph'!$H$1=41,'Cool Graph'!$H$1=42,'Cool Graph'!$H$1=43,'Cool Graph'!$H$1=44,'Cool Graph'!$H$1=45,'Cool Graph'!$H$1=46,'Cool Graph'!$H$1=47,'Cool Graph'!$H$1=58,'Cool Graph'!$H$1=66)","v":false},{"$f":"SUM(VLOOKUP($E189,AllData,COLUMN()-5-COLUMN($E189)),VLOOKUP($E189-1,AllData,COLUMN()-5-COLUMN($E189)),VLOOKUP($E189-2,AllData,COLUMN()-5-COLUMN($E189)),VLOOKUP($E189-3,AllData,COLUMN()-5-COLUMN($E189)),VLOOKUP($E189-4,AllData,COLUMN()-5-COLUMN($E189)),VLOOKUP($E189-5,AllData,COLUMN()-5-COLUMN($E189)),VLOOKUP($E189-6,AllData,COLUMN()-5-COLUMN($E189)))","v":{"$error":"#N/A"}},{"$f":"SUM(VLOOKUP($E189,AllData,COLUMN()-6-COLUMN($E189)),VLOOKUP($E189-1,AllData,COLUMN()-6-COLUMN($E189)),VLOOKUP($E189-2,AllData,COLUMN()-6-COLUMN($E189)),VLOOKUP($E189-3,AllData,COLUMN()-6-COLUMN($E189)),VLOOKUP($E189-4,AllData,COLUMN()-6-COLUMN($E189)),VLOOKUP($E189-5,AllData,COLUMN()-6-COLUMN($E189)),VLOOKUP($E189-6,AllData,COLUMN()-6-COLUMN($E189)),VLOOKUP($E189-7,AllData,COLUMN()-6-COLUMN($E189)),VLOOKUP($E189-8,AllData,COLUMN()-6-COLUMN($E189)),VLOOKUP($E189-9,AllData,COLUMN()-6-COLUMN($E189)),VLOOKUP($E189-10,AllData,COLUMN()-6-COLUMN($E189)),VLOOKUP($E189-11,AllData,COLUMN()-6-COLUMN($E189)),VLOOKUP($E189-12,AllData,COLUMN()-6-COLUMN($E189)),VLOOKUP($E189-13,AllData,COLUMN()-6-COLUMN($E189)),VLOOKUP($E189-14,AllData,COLUMN()-6-COLUMN($E189)),VLOOKUP($E189-15,AllData,COLUMN()-6-COLUMN($E189)),VLOOKUP($E189-16,AllData,COLUMN()-6-COLUMN($E189)),VLOOKUP($E189-17,AllData,COLUMN()-6-COLUMN($E189)),VLOOKUP($E189-18,AllData,COLUMN()-6-COLUMN($E189)),VLOOKUP($E189-19,AllData,COLUMN()-6-COLUMN($E189)),VLOOKUP($E189-20,AllData,COLUMN()-6-COLUMN($E189)),VLOOKUP($E189-21,AllData,COLUMN()-6-COLUMN($E189)),VLOOKUP($E189-22,AllData,COLUMN()-6-COLUMN($E189)),VLOOKUP($E189-23,AllData,COLUMN()-6-COLUMN($E189)),VLOOKUP($E189-24,AllData,COLUMN()-6-COLUMN($E189)),VLOOKUP($E189-25,AllData,COLUMN()-6-COLUMN($E189)),VLOOKUP($E189-26,AllData,COLUMN()-6-COLUMN($E189)),VLOOKUP($E189-27,AllData,COLUMN()-6-COLUMN($E189)),VLOOKUP($E189-28,AllData,COLUMN()-6-COLUMN($E189)),VLOOKUP($E189-29,AllData,COLUMN()-6-COLUMN($E189)))","v":{"$error":"#N/A"}},{"$f":"VLOOKUP($E189,AllData,COLUMN()-7-COLUMN($E189))","v":{"$error":"#N/A"}},{"$f":"OR('Cool Graph'!$I$1=35,'Cool Graph'!$I$1=36,'Cool Graph'!$I$1=37,'Cool Graph'!$I$1=38,'Cool Graph'!$I$1=39,'Cool Graph'!$I$1=40,'Cool Graph'!$I$1=41,'Cool Graph'!$I$1=42,'Cool Graph'!$I$1=43,'Cool Graph'!$I$1=44,'Cool Graph'!$I$1=45,'Cool Graph'!$I$1=46,'Cool Graph'!$I$1=47,'Cool Graph'!$I$1=58,'Cool Graph'!$I$1=66)","v":false}]
["2012-01-05",{"$f":"OFFSET(OldSchoolJustValues!A190,0,'Cool Graph'!$H$1)","v":105.88},{"$f":"OFFSET(OldSchoolJustValues!A190,0,'Cool Graph'!$I$1)","v":670.72858443989207},null,{"$f":"IF(NewDate>EndDate,NA(),NewDate)","v":{"$error":"#N/A"}},{"$f":"IF($E190>EndDate,NA(),IF($K$2=TRUE,N190,IF('Cool Graph'!$B$17=1,N190,IF('Cool Graph'!$B$17=2,L190,IF('Cool Graph'!$B$17=3,M190,)))))","v":{"$error":"#N/A"}},{"$f":"IF($E190>EndDate,NA(),IF($O$2=TRUE,J190,IF('Cool Graph'!$B$17=1,Data1!J190,IF('Cool Graph'!$B$17=2,Data1!H190,IF('Cool Graph'!$B$17=3,Data1!I190,)))))","v":{"$error":"#N/A"}},{"$f":"SUM(VLOOKUP($E190,AllData,COLUMN()-COLUMN($E190)),VLOOKUP($E190-1,AllData,COLUMN()-COLUMN($E190)),VLOOKUP($E190-2,AllData,COLUMN()-COLUMN($E190)),VLOOKUP($E190-3,AllData,COLUMN()-COLUMN($E190)),VLOOKUP($E190-4,AllData,COLUMN()-COLUMN($E190)),VLOOKUP($E190-5,AllData,COLUMN()-COLUMN($E190)),VLOOKUP($E190-6,AllData,COLUMN()-COLUMN($E190)))","v":{"$error":"#N/A"}},{"$f":"SUM(VLOOKUP($E190,AllData,COLUMN()-1-COLUMN($E190)),VLOOKUP($E190-1,AllData,COLUMN()-1-COLUMN($E190)),VLOOKUP($E190-2,AllData,COLUMN()-1-COLUMN($E190)),VLOOKUP($E190-3,AllData,COLUMN()-1-COLUMN($E190)),VLOOKUP($E190-4,AllData,COLUMN()-1-COLUMN($E190)),VLOOKUP($E190-5,AllData,COLUMN()-1-COLUMN($E190)),VLOOKUP($E190-6,AllData,COLUMN()-1-COLUMN($E190)),VLOOKUP($E190-7,AllData,COLUMN()-1-COLUMN($E190)),VLOOKUP($E190-8,AllData,COLUMN()-1-COLUMN($E190)),VLOOKUP($E190-9,AllData,COLUMN()-1-COLUMN($E190)),VLOOKUP($E190-10,AllData,COLUMN()-1-COLUMN($E190)),VLOOKUP($E190-11,AllData,COLUMN()-1-COLUMN($E190)),VLOOKUP($E190-12,AllData,COLUMN()-1-COLUMN($E190)),VLOOKUP($E190-13,AllData,COLUMN()-1-COLUMN($E190)),VLOOKUP($E190-14,AllData,COLUMN()-1-COLUMN($E190)),VLOOKUP($E190-15,AllData,COLUMN()-1-COLUMN($E190)),VLOOKUP($E190-16,AllData,COLUMN()-1-COLUMN($E190)),VLOOKUP($E190-17,AllData,COLUMN()-1-COLUMN($E190)),VLOOKUP($E190-18,AllData,COLUMN()-1-COLUMN($E190)),VLOOKUP($E190-19,AllData,COLUMN()-1-COLUMN($E190)),VLOOKUP($E190-20,AllData,COLUMN()-1-COLUMN($E190)),VLOOKUP($E190-21,AllData,COLUMN()-1-COLUMN($E190)),VLOOKUP($E190-22,AllData,COLUMN()-1-COLUMN($E190)),VLOOKUP($E190-23,AllData,COLUMN()-1-COLUMN($E190)),VLOOKUP($E190-24,AllData,COLUMN()-1-COLUMN($E190)),VLOOKUP($E190-25,AllData,COLUMN()-1-COLUMN($E190)),VLOOKUP($E190-26,AllData,COLUMN()-1-COLUMN($E190)),VLOOKUP($E190-27,AllData,COLUMN()-1-COLUMN($E190)),VLOOKUP($E190-28,AllData,COLUMN()-1-COLUMN($E190)),VLOOKUP($E190-29,AllData,COLUMN()-1-COLUMN($E190)))","v":{"$error":"#N/A"}},{"$f":"VLOOKUP($E190,AllData,COLUMN()-2-COLUMN($E190))","v":{"$error":"#N/A"}},{"$f":"OR('Cool Graph'!$H$1=35,'Cool Graph'!$H$1=36,'Cool Graph'!$H$1=37,'Cool Graph'!$H$1=38,'Cool Graph'!$H$1=39,'Cool Graph'!$H$1=40,'Cool Graph'!$H$1=41,'Cool Graph'!$H$1=42,'Cool Graph'!$H$1=43,'Cool Graph'!$H$1=44,'Cool Graph'!$H$1=45,'Cool Graph'!$H$1=46,'Cool Graph'!$H$1=47,'Cool Graph'!$H$1=58,'Cool Graph'!$H$1=66)","v":false},{"$f":"SUM(VLOOKUP($E190,AllData,COLUMN()-5-COLUMN($E190)),VLOOKUP($E190-1,AllData,COLUMN()-5-COLUMN($E190)),VLOOKUP($E190-2,AllData,COLUMN()-5-COLUMN($E190)),VLOOKUP($E190-3,AllData,COLUMN()-5-COLUMN($E190)),VLOOKUP($E190-4,AllData,COLUMN()-5-COLUMN($E190)),VLOOKUP($E190-5,AllData,COLUMN()-5-COLUMN($E190)),VLOOKUP($E190-6,AllData,COLUMN()-5-COLUMN($E190)))","v":{"$error":"#N/A"}},{"$f":"SUM(VLOOKUP($E190,AllData,COLUMN()-6-COLUMN($E190)),VLOOKUP($E190-1,AllData,COLUMN()-6-COLUMN($E190)),VLOOKUP($E190-2,AllData,COLUMN()-6-COLUMN($E190)),VLOOKUP($E190-3,AllData,COLUMN()-6-COLUMN($E190)),VLOOKUP($E190-4,AllData,COLUMN()-6-COLUMN($E190)),VLOOKUP($E190-5,AllData,COLUMN()-6-COLUMN($E190)),VLOOKUP($E190-6,AllData,COLUMN()-6-COLUMN($E190)),VLOOKUP($E190-7,AllData,COLUMN()-6-COLUMN($E190)),VLOOKUP($E190-8,AllData,COLUMN()-6-COLUMN($E190)),VLOOKUP($E190-9,AllData,COLUMN()-6-COLUMN($E190)),VLOOKUP($E190-10,AllData,COLUMN()-6-COLUMN($E190)),VLOOKUP($E190-11,AllData,COLUMN()-6-COLUMN($E190)),VLOOKUP($E190-12,AllData,COLUMN()-6-COLUMN($E190)),VLOOKUP($E190-13,AllData,COLUMN()-6-COLUMN($E190)),VLOOKUP($E190-14,AllData,COLUMN()-6-COLUMN($E190)),VLOOKUP($E190-15,AllData,COLUMN()-6-COLUMN($E190)),VLOOKUP($E190-16,AllData,COLUMN()-6-COLUMN($E190)),VLOOKUP($E190-17,AllData,COLUMN()-6-COLUMN($E190)),VLOOKUP($E190-18,AllData,COLUMN()-6-COLUMN($E190)),VLOOKUP($E190-19,AllData,COLUMN()-6-COLUMN($E190)),VLOOKUP($E190-20,AllData,COLUMN()-6-COLUMN($E190)),VLOOKUP($E190-21,AllData,COLUMN()-6-COLUMN($E190)),VLOOKUP($E190-22,AllData,COLUMN()-6-COLUMN($E190)),VLOOKUP($E190-23,AllData,COLUMN()-6-COLUMN($E190)),VLOOKUP($E190-24,AllData,COLUMN()-6-COLUMN($E190)),VLOOKUP($E190-25,AllData,COLUMN()-6-COLUMN($E190)),VLOOKUP($E190-26,AllData,COLUMN()-6-COLUMN($E190)),VLOOKUP($E190-27,AllData,COLUMN()-6-COLUMN($E190)),VLOOKUP($E190-28,AllData,COLUMN()-6-COLUMN($E190)),VLOOKUP($E190-29,AllData,COLUMN()-6-COLUMN($E190)))","v":{"$error":"#N/A"}},{"$f":"VLOOKUP($E190,AllData,COLUMN()-7-COLUMN($E190))","v":{"$error":"#N/A"}},{"$f":"OR('Cool Graph'!$I$1=35,'Cool Graph'!$I$1=36,'Cool Graph'!$I$1=37,'Cool Graph'!$I$1=38,'Cool Graph'!$I$1=39,'Cool Graph'!$I$1=40,'Cool Graph'!$I$1=41,'Cool Graph'!$I$1=42,'Cool Graph'!$I$1=43,'Cool Graph'!$I$1=44,'Cool Graph'!$I$1=45,'Cool Graph'!$I$1=46,'Cool Graph'!$I$1=47,'Cool Graph'!$I$1=58,'Cool Graph'!$I$1=66)","v":false}]
["2012-01-06",{"$f":"OFFSET(OldSchoolJustValues!A191,0,'Cool Graph'!$H$1)","v":102.12},{"$f":"OFFSET(OldSchoolJustValues!A191,0,'Cool Graph'!$I$1)","v":22.078647327465433},null,{"$f":"IF(NewDate>EndDate,NA(),NewDate)","v":{"$error":"#N/A"}},{"$f":"IF($E191>EndDate,NA(),IF($K$2=TRUE,N191,IF('Cool Graph'!$B$17=1,N191,IF('Cool Graph'!$B$17=2,L191,IF('Cool Graph'!$B$17=3,M191,)))))","v":{"$error":"#N/A"}},{"$f":"IF($E191>EndDate,NA(),IF($O$2=TRUE,J191,IF('Cool Graph'!$B$17=1,Data1!J191,IF('Cool Graph'!$B$17=2,Data1!H191,IF('Cool Graph'!$B$17=3,Data1!I191,)))))","v":{"$error":"#N/A"}},{"$f":"SUM(VLOOKUP($E191,AllData,COLUMN()-COLUMN($E191)),VLOOKUP($E191-1,AllData,COLUMN()-COLUMN($E191)),VLOOKUP($E191-2,AllData,COLUMN()-COLUMN($E191)),VLOOKUP($E191-3,AllData,COLUMN()-COLUMN($E191)),VLOOKUP($E191-4,AllData,COLUMN()-COLUMN($E191)),VLOOKUP($E191-5,AllData,COLUMN()-COLUMN($E191)),VLOOKUP($E191-6,AllData,COLUMN()-COLUMN($E191)))","v":{"$error":"#N/A"}},{"$f":"SUM(VLOOKUP($E191,AllData,COLUMN()-1-COLUMN($E191)),VLOOKUP($E191-1,AllData,COLUMN()-1-COLUMN($E191)),VLOOKUP($E191-2,AllData,COLUMN()-1-COLUMN($E191)),VLOOKUP($E191-3,AllData,COLUMN()-1-COLUMN($E191)),VLOOKUP($E191-4,AllData,COLUMN()-1-COLUMN($E191)),VLOOKUP($E191-5,AllData,COLUMN()-1-COLUMN($E191)),VLOOKUP($E191-6,AllData,COLUMN()-1-COLUMN($E191)),VLOOKUP($E191-7,AllData,COLUMN()-1-COLUMN($E191)),VLOOKUP($E191-8,AllData,COLUMN()-1-COLUMN($E191)),VLOOKUP($E191-9,AllData,COLUMN()-1-COLUMN($E191)),VLOOKUP($E191-10,AllData,COLUMN()-1-COLUMN($E191)),VLOOKUP($E191-11,AllData,COLUMN()-1-COLUMN($E191)),VLOOKUP($E191-12,AllData,COLUMN()-1-COLUMN($E191)),VLOOKUP($E191-13,AllData,COLUMN()-1-COLUMN($E191)),VLOOKUP($E191-14,AllData,COLUMN()-1-COLUMN($E191)),VLOOKUP($E191-15,AllData,COLUMN()-1-COLUMN($E191)),VLOOKUP($E191-16,AllData,COLUMN()-1-COLUMN($E191)),VLOOKUP($E191-17,AllData,COLUMN()-1-COLUMN($E191)),VLOOKUP($E191-18,AllData,COLUMN()-1-COLUMN($E191)),VLOOKUP($E191-19,AllData,COLUMN()-1-COLUMN($E191)),VLOOKUP($E191-20,AllData,COLUMN()-1-COLUMN($E191)),VLOOKUP($E191-21,AllData,COLUMN()-1-COLUMN($E191)),VLOOKUP($E191-22,AllData,COLUMN()-1-COLUMN($E191)),VLOOKUP($E191-23,AllData,COLUMN()-1-COLUMN($E191)),VLOOKUP($E191-24,AllData,COLUMN()-1-COLUMN($E191)),VLOOKUP($E191-25,AllData,COLUMN()-1-COLUMN($E191)),VLOOKUP($E191-26,AllData,COLUMN()-1-COLUMN($E191)),VLOOKUP($E191-27,AllData,COLUMN()-1-COLUMN($E191)),VLOOKUP($E191-28,AllData,COLUMN()-1-COLUMN($E191)),VLOOKUP($E191-29,AllData,COLUMN()-1-COLUMN($E191)))","v":{"$error":"#N/A"}},{"$f":"VLOOKUP($E191,AllData,COLUMN()-2-COLUMN($E191))","v":{"$error":"#N/A"}},{"$f":"OR('Cool Graph'!$H$1=35,'Cool Graph'!$H$1=36,'Cool Graph'!$H$1=37,'Cool Graph'!$H$1=38,'Cool Graph'!$H$1=39,'Cool Graph'!$H$1=40,'Cool Graph'!$H$1=41,'Cool Graph'!$H$1=42,'Cool Graph'!$H$1=43,'Cool Graph'!$H$1=44,'Cool Graph'!$H$1=45,'Cool Graph'!$H$1=46,'Cool Graph'!$H$1=47,'Cool Graph'!$H$1=58,'Cool Graph'!$H$1=66)","v":false},{"$f":"SUM(VLOOKUP($E191,AllData,COLUMN()-5-COLUMN($E191)),VLOOKUP($E191-1,AllData,COLUMN()-5-COLUMN($E191)),VLOOKUP($E191-2,AllData,COLUMN()-5-COLUMN($E191)),VLOOKUP($E191-3,AllData,COLUMN()-5-COLUMN($E191)),VLOOKUP($E191-4,AllData,COLUMN()-5-COLUMN($E191)),VLOOKUP($E191-5,AllData,COLUMN()-5-COLUMN($E191)),VLOOKUP($E191-6,AllData,COLUMN()-5-COLUMN($E191)))","v":{"$error":"#N/A"}},{"$f":"SUM(VLOOKUP($E191,AllData,COLUMN()-6-COLUMN($E191)),VLOOKUP($E191-1,AllData,COLUMN()-6-COLUMN($E191)),VLOOKUP($E191-2,AllData,COLUMN()-6-COLUMN($E191)),VLOOKUP($E191-3,AllData,COLUMN()-6-COLUMN($E191)),VLOOKUP($E191-4,AllData,COLUMN()-6-COLUMN($E191)),VLOOKUP($E191-5,AllData,COLUMN()-6-COLUMN($E191)),VLOOKUP($E191-6,AllData,COLUMN()-6-COLUMN($E191)),VLOOKUP($E191-7,AllData,COLUMN()-6-COLUMN($E191)),VLOOKUP($E191-8,AllData,COLUMN()-6-COLUMN($E191)),VLOOKUP($E191-9,AllData,COLUMN()-6-COLUMN($E191)),VLOOKUP($E191-10,AllData,COLUMN()-6-COLUMN($E191)),VLOOKUP($E191-11,AllData,COLUMN()-6-COLUMN($E191)),VLOOKUP($E191-12,AllData,COLUMN()-6-COLUMN($E191)),VLOOKUP($E191-13,AllData,COLUMN()-6-COLUMN($E191)),VLOOKUP($E191-14,AllData,COLUMN()-6-COLUMN($E191)),VLOOKUP($E191-15,AllData,COLUMN()-6-COLUMN($E191)),VLOOKUP($E191-16,AllData,COLUMN()-6-COLUMN($E191)),VLOOKUP($E191-17,AllData,COLUMN()-6-COLUMN($E191)),VLOOKUP($E191-18,AllData,COLUMN()-6-COLUMN($E191)),VLOOKUP($E191-19,AllData,COLUMN()-6-COLUMN($E191)),VLOOKUP($E191-20,AllData,COLUMN()-6-COLUMN($E191)),VLOOKUP($E191-21,AllData,COLUMN()-6-COLUMN($E191)),VLOOKUP($E191-22,AllData,COLUMN()-6-COLUMN($E191)),VLOOKUP($E191-23,AllData,COLUMN()-6-COLUMN($E191)),VLOOKUP($E191-24,AllData,COLUMN()-6-COLUMN($E191)),VLOOKUP($E191-25,AllData,COLUMN()-6-COLUMN($E191)),VLOOKUP($E191-26,AllData,COLUMN()-6-COLUMN($E191)),VLOOKUP($E191-27,AllData,COLUMN()-6-COLUMN($E191)),VLOOKUP($E191-28,AllData,COLUMN()-6-COLUMN($E191)),VLOOKUP($E191-29,AllData,COLUMN()-6-COLUMN($E191)))","v":{"$error":"#N/A"}},{"$f":"VLOOKUP($E191,AllData,COLUMN()-7-COLUMN($E191))","v":{"$error":"#N/A"}},{"$f":"OR('Cool Graph'!$I$1=35,'Cool Graph'!$I$1=36,'Cool Graph'!$I$1=37,'Cool Graph'!$I$1=38,'Cool Graph'!$I$1=39,'Cool Graph'!$I$1=40,'Cool Graph'!$I$1=41,'Cool Graph'!$I$1=42,'Cool Graph'!$I$1=43,'Cool Graph'!$I$1=44,'Cool Graph'!$I$1=45,'Cool Graph'!$I$1=46,'Cool Graph'!$I$1=47,'Cool Graph'!$I$1=58,'Cool Graph'!$I$1=66)","v":false}]
["2012-01-07",{"$f":"OFFSET(OldSchoolJustValues!A192,0,'Cool Graph'!$H$1)","v":98.17},{"$f":"OFFSET(OldSchoolJustValues!A192,0,'Cool Graph'!$I$1)","v":899.35712650721268},null,{"$f":"IF(NewDate>EndDate,NA(),NewDate)","v":{"$error":"#N/A"}},{"$f":"IF($E192>EndDate,NA(),IF($K$2=TRUE,N192,IF('Cool Graph'!$B$17=1,N192,IF('Cool Graph'!$B$17=2,L192,IF('Cool Graph'!$B$17=3,M192,)))))","v":{"$error":"#N/A"}},{"$f":"IF($E192>EndDate,NA(),IF($O$2=TRUE,J192,IF('Cool Graph'!$B$17=1,Data1!J192,IF('Cool Graph'!$B$17=2,Data1!H192,IF('Cool Graph'!$B$17=3,Data1!I192,)))))","v":{"$error":"#N/A"}},{"$f":"SUM(VLOOKUP($E192,AllData,COLUMN()-COLUMN($E192)),VLOOKUP($E192-1,AllData,COLUMN()-COLUMN($E192)),VLOOKUP($E192-2,AllData,COLUMN()-COLUMN($E192)),VLOOKUP($E192-3,AllData,COLUMN()-COLUMN($E192)),VLOOKUP($E192-4,AllData,COLUMN()-COLUMN($E192)),VLOOKUP($E192-5,AllData,COLUMN()-COLUMN($E192)),VLOOKUP($E192-6,AllData,COLUMN()-COLUMN($E192)))","v":{"$error":"#N/A"}},{"$f":"SUM(VLOOKUP($E192,AllData,COLUMN()-1-COLUMN($E192)),VLOOKUP($E192-1,AllData,COLUMN()-1-COLUMN($E192)),VLOOKUP($E192-2,AllData,COLUMN()-1-COLUMN($E192)),VLOOKUP($E192-3,AllData,COLUMN()-1-COLUMN($E192)),VLOOKUP($E192-4,AllData,COLUMN()-1-COLUMN($E192)),VLOOKUP($E192-5,AllData,COLUMN()-1-COLUMN($E192)),VLOOKUP($E192-6,AllData,COLUMN()-1-COLUMN($E192)),VLOOKUP($E192-7,AllData,COLUMN()-1-COLUMN($E192)),VLOOKUP($E192-8,AllData,COLUMN()-1-COLUMN($E192)),VLOOKUP($E192-9,AllData,COLUMN()-1-COLUMN($E192)),VLOOKUP($E192-10,AllData,COLUMN()-1-COLUMN($E192)),VLOOKUP($E192-11,AllData,COLUMN()-1-COLUMN($E192)),VLOOKUP($E192-12,AllData,COLUMN()-1-COLUMN($E192)),VLOOKUP($E192-13,AllData,COLUMN()-1-COLUMN($E192)),VLOOKUP($E192-14,AllData,COLUMN()-1-COLUMN($E192)),VLOOKUP($E192-15,AllData,COLUMN()-1-COLUMN($E192)),VLOOKUP($E192-16,AllData,COLUMN()-1-COLUMN($E192)),VLOOKUP($E192-17,AllData,COLUMN()-1-COLUMN($E192)),VLOOKUP($E192-18,AllData,COLUMN()-1-COLUMN($E192)),VLOOKUP($E192-19,AllData,COLUMN()-1-COLUMN($E192)),VLOOKUP($E192-20,AllData,COLUMN()-1-COLUMN($E192)),VLOOKUP($E192-21,AllData,COLUMN()-1-COLUMN($E192)),VLOOKUP($E192-22,AllData,COLUMN()-1-COLUMN($E192)),VLOOKUP($E192-23,AllData,COLUMN()-1-COLUMN($E192)),VLOOKUP($E192-24,AllData,COLUMN()-1-COLUMN($E192)),VLOOKUP($E192-25,AllData,COLUMN()-1-COLUMN($E192)),VLOOKUP($E192-26,AllData,COLUMN()-1-COLUMN($E192)),VLOOKUP($E192-27,AllData,COLUMN()-1-COLUMN($E192)),VLOOKUP($E192-28,AllData,COLUMN()-1-COLUMN($E192)),VLOOKUP($E192-29,AllData,COLUMN()-1-COLUMN($E192)))","v":{"$error":"#N/A"}},{"$f":"VLOOKUP($E192,AllData,COLUMN()-2-COLUMN($E192))","v":{"$error":"#N/A"}},{"$f":"OR('Cool Graph'!$H$1=35,'Cool Graph'!$H$1=36,'Cool Graph'!$H$1=37,'Cool Graph'!$H$1=38,'Cool Graph'!$H$1=39,'Cool Graph'!$H$1=40,'Cool Graph'!$H$1=41,'Cool Graph'!$H$1=42,'Cool Graph'!$H$1=43,'Cool Graph'!$H$1=44,'Cool Graph'!$H$1=45,'Cool Graph'!$H$1=46,'Cool Graph'!$H$1=47,'Cool Graph'!$H$1=58,'Cool Graph'!$H$1=66)","v":false},{"$f":"SUM(VLOOKUP($E192,AllData,COLUMN()-5-COLUMN($E192)),VLOOKUP($E192-1,AllData,COLUMN()-5-COLUMN($E192)),VLOOKUP($E192-2,AllData,COLUMN()-5-COLUMN($E192)),VLOOKUP($E192-3,AllData,COLUMN()-5-COLUMN($E192)),VLOOKUP($E192-4,AllData,COLUMN()-5-COLUMN($E192)),VLOOKUP($E192-5,AllData,COLUMN()-5-COLUMN($E192)),VLOOKUP($E192-6,AllData,COLUMN()-5-COLUMN($E192)))","v":{"$error":"#N/A"}},{"$f":"SUM(VLOOKUP($E192,AllData,COLUMN()-6-COLUMN($E192)),VLOOKUP($E192-1,AllData,COLUMN()-6-COLUMN($E192)),VLOOKUP($E192-2,AllData,COLUMN()-6-COLUMN($E192)),VLOOKUP($E192-3,AllData,COLUMN()-6-COLUMN($E192)),VLOOKUP($E192-4,AllData,COLUMN()-6-COLUMN($E192)),VLOOKUP($E192-5,AllData,COLUMN()-6-COLUMN($E192)),VLOOKUP($E192-6,AllData,COLUMN()-6-COLUMN($E192)),VLOOKUP($E192-7,AllData,COLUMN()-6-COLUMN($E192)),VLOOKUP($E192-8,AllData,COLUMN()-6-COLUMN($E192)),VLOOKUP($E192-9,AllData,COLUMN()-6-COLUMN($E192)),VLOOKUP($E192-10,AllData,COLUMN()-6-COLUMN($E192)),VLOOKUP($E192-11,AllData,COLUMN()-6-COLUMN($E192)),VLOOKUP($E192-12,AllData,COLUMN()-6-COLUMN($E192)),VLOOKUP($E192-13,AllData,COLUMN()-6-COLUMN($E192)),VLOOKUP($E192-14,AllData,COLUMN()-6-COLUMN($E192)),VLOOKUP($E192-15,AllData,COLUMN()-6-COLUMN($E192)),VLOOKUP($E192-16,AllData,COLUMN()-6-COLUMN($E192)),VLOOKUP($E192-17,AllData,COLUMN()-6-COLUMN($E192)),VLOOKUP($E192-18,AllData,COLUMN()-6-COLUMN($E192)),VLOOKUP($E192-19,AllData,COLUMN()-6-COLUMN($E192)),VLOOKUP($E192-20,AllData,COLUMN()-6-COLUMN($E192)),VLOOKUP($E192-21,AllData,COLUMN()-6-COLUMN($E192)),VLOOKUP($E192-22,AllData,COLUMN()-6-COLUMN($E192)),VLOOKUP($E192-23,AllData,COLUMN()-6-COLUMN($E192)),VLOOKUP($E192-24,AllData,COLUMN()-6-COLUMN($E192)),VLOOKUP($E192-25,AllData,COLUMN()-6-COLUMN($E192)),VLOOKUP($E192-26,AllData,COLUMN()-6-COLUMN($E192)),VLOOKUP($E192-27,AllData,COLUMN()-6-COLUMN($E192)),VLOOKUP($E192-28,AllData,COLUMN()-6-COLUMN($E192)),VLOOKUP($E192-29,AllData,COLUMN()-6-COLUMN($E192)))","v":{"$error":"#N/A"}},{"$f":"VLOOKUP($E192,AllData,COLUMN()-7-COLUMN($E192))","v":{"$error":"#N/A"}},{"$f":"OR('Cool Graph'!$I$1=35,'Cool Graph'!$I$1=36,'Cool Graph'!$I$1=37,'Cool Graph'!$I$1=38,'Cool Graph'!$I$1=39,'Cool Graph'!$I$1=40,'Cool Graph'!$I$1=41,'Cool Graph'!$I$1=42,'Cool Graph'!$I$1=43,'Cool Graph'!$I$1=44,'Cool Graph'!$I$1=45,'Cool Graph'!$I$1=46,'Cool Graph'!$I$1=47,'Cool Graph'!$I$1=58,'Cool Graph'!$I$1=66)","v":false}]
["2012-01-08",{"$f":"OFFSET(OldSchoolJustValues!A193,0,'Cool Graph'!$H$1)","v":77.209999999999994},{"$f":"OFFSET(OldSchoolJustValues!A193,0,'Cool Graph'!$I$1)","v":220.78833081228709},null,{"$f":"IF(NewDate>EndDate,NA(),NewDate)","v":{"$error":"#N/A"}},{"$f":"IF($E193>EndDate,NA(),IF($K$2=TRUE,N193,IF('Cool Graph'!$B$17=1,N193,IF('Cool Graph'!$B$17=2,L193,IF('Cool Graph'!$B$17=3,M193,)))))","v":{"$error":"#N/A"}},{"$f":"IF($E193>EndDate,NA(),IF($O$2=TRUE,J193,IF('Cool Graph'!$B$17=1,Data1!J193,IF('Cool Graph'!$B$17=2,Data1!H193,IF('Cool Graph'!$B$17=3,Data1!I193,)))))","v":{"$error":"#N/A"}},{"$f":"SUM(VLOOKUP($E193,AllData,COLUMN()-COLUMN($E193)),VLOOKUP($E193-1,AllData,COLUMN()-COLUMN($E193)),VLOOKUP($E193-2,AllData,COLUMN()-COLUMN($E193)),VLOOKUP($E193-3,AllData,COLUMN()-COLUMN($E193)),VLOOKUP($E193-4,AllData,COLUMN()-COLUMN($E193)),VLOOKUP($E193-5,AllData,COLUMN()-COLUMN($E193)),VLOOKUP($E193-6,AllData,COLUMN()-COLUMN($E193)))","v":{"$error":"#N/A"}},{"$f":"SUM(VLOOKUP($E193,AllData,COLUMN()-1-COLUMN($E193)),VLOOKUP($E193-1,AllData,COLUMN()-1-COLUMN($E193)),VLOOKUP($E193-2,AllData,COLUMN()-1-COLUMN($E193)),VLOOKUP($E193-3,AllData,COLUMN()-1-COLUMN($E193)),VLOOKUP($E193-4,AllData,COLUMN()-1-COLUMN($E193)),VLOOKUP($E193-5,AllData,COLUMN()-1-COLUMN($E193)),VLOOKUP($E193-6,AllData,COLUMN()-1-COLUMN($E193)),VLOOKUP($E193-7,AllData,COLUMN()-1-COLUMN($E193)),VLOOKUP($E193-8,AllData,COLUMN()-1-COLUMN($E193)),VLOOKUP($E193-9,AllData,COLUMN()-1-COLUMN($E193)),VLOOKUP($E193-10,AllData,COLUMN()-1-COLUMN($E193)),VLOOKUP($E193-11,AllData,COLUMN()-1-COLUMN($E193)),VLOOKUP($E193-12,AllData,COLUMN()-1-COLUMN($E193)),VLOOKUP($E193-13,AllData,COLUMN()-1-COLUMN($E193)),VLOOKUP($E193-14,AllData,COLUMN()-1-COLUMN($E193)),VLOOKUP($E193-15,AllData,COLUMN()-1-COLUMN($E193)),VLOOKUP($E193-16,AllData,COLUMN()-1-COLUMN($E193)),VLOOKUP($E193-17,AllData,COLUMN()-1-COLUMN($E193)),VLOOKUP($E193-18,AllData,COLUMN()-1-COLUMN($E193)),VLOOKUP($E193-19,AllData,COLUMN()-1-COLUMN($E193)),VLOOKUP($E193-20,AllData,COLUMN()-1-COLUMN($E193)),VLOOKUP($E193-21,AllData,COLUMN()-1-COLUMN($E193)),VLOOKUP($E193-22,AllData,COLUMN()-1-COLUMN($E193)),VLOOKUP($E193-23,AllData,COLUMN()-1-COLUMN($E193)),VLOOKUP($E193-24,AllData,COLUMN()-1-COLUMN($E193)),VLOOKUP($E193-25,AllData,COLUMN()-1-COLUMN($E193)),VLOOKUP($E193-26,AllData,COLUMN()-1-COLUMN($E193)),VLOOKUP($E193-27,AllData,COLUMN()-1-COLUMN($E193)),VLOOKUP($E193-28,AllData,COLUMN()-1-COLUMN($E193)),VLOOKUP($E193-29,AllData,COLUMN()-1-COLUMN($E193)))","v":{"$error":"#N/A"}},{"$f":"VLOOKUP($E193,AllData,COLUMN()-2-COLUMN($E193))","v":{"$error":"#N/A"}},{"$f":"OR('Cool Graph'!$H$1=35,'Cool Graph'!$H$1=36,'Cool Graph'!$H$1=37,'Cool Graph'!$H$1=38,'Cool Graph'!$H$1=39,'Cool Graph'!$H$1=40,'Cool Graph'!$H$1=41,'Cool Graph'!$H$1=42,'Cool Graph'!$H$1=43,'Cool Graph'!$H$1=44,'Cool Graph'!$H$1=45,'Cool Graph'!$H$1=46,'Cool Graph'!$H$1=47,'Cool Graph'!$H$1=58,'Cool Graph'!$H$1=66)","v":false},{"$f":"SUM(VLOOKUP($E193,AllData,COLUMN()-5-COLUMN($E193)),VLOOKUP($E193-1,AllData,COLUMN()-5-COLUMN($E193)),VLOOKUP($E193-2,AllData,COLUMN()-5-COLUMN($E193)),VLOOKUP($E193-3,AllData,COLUMN()-5-COLUMN($E193)),VLOOKUP($E193-4,AllData,COLUMN()-5-COLUMN($E193)),VLOOKUP($E193-5,AllData,COLUMN()-5-COLUMN($E193)),VLOOKUP($E193-6,AllData,COLUMN()-5-COLUMN($E193)))","v":{"$error":"#N/A"}},{"$f":"SUM(VLOOKUP($E193,AllData,COLUMN()-6-COLUMN($E193)),VLOOKUP($E193-1,AllData,COLUMN()-6-COLUMN($E193)),VLOOKUP($E193-2,AllData,COLUMN()-6-COLUMN($E193)),VLOOKUP($E193-3,AllData,COLUMN()-6-COLUMN($E193)),VLOOKUP($E193-4,AllData,COLUMN()-6-COLUMN($E193)),VLOOKUP($E193-5,AllData,COLUMN()-6-COLUMN($E193)),VLOOKUP($E193-6,AllData,COLUMN()-6-COLUMN($E193)),VLOOKUP($E193-7,AllData,COLUMN()-6-COLUMN($E193)),VLOOKUP($E193-8,AllData,COLUMN()-6-COLUMN($E193)),VLOOKUP($E193-9,AllData,COLUMN()-6-COLUMN($E193)),VLOOKUP($E193-10,AllData,COLUMN()-6-COLUMN($E193)),VLOOKUP($E193-11,AllData,COLUMN()-6-COLUMN($E193)),VLOOKUP($E193-12,AllData,COLUMN()-6-COLUMN($E193)),VLOOKUP($E193-13,AllData,COLUMN()-6-COLUMN($E193)),VLOOKUP($E193-14,AllData,COLUMN()-6-COLUMN($E193)),VLOOKUP($E193-15,AllData,COLUMN()-6-COLUMN($E193)),VLOOKUP($E193-16,AllData,COLUMN()-6-COLUMN($E193)),VLOOKUP($E193-17,AllData,COLUMN()-6-COLUMN($E193)),VLOOKUP($E193-18,AllData,COLUMN()-6-COLUMN($E193)),VLOOKUP($E193-19,AllData,COLUMN()-6-COLUMN($E193)),VLOOKUP($E193-20,AllData,COLUMN()-6-COLUMN($E193)),VLOOKUP($E193-21,AllData,COLUMN()-6-COLUMN($E193)),VLOOKUP($E193-22,AllData,COLUMN()-6-COLUMN($E193)),VLOOKUP($E193-23,AllData,COLUMN()-6-COLUMN($E193)),VLOOKUP($E193-24,AllData,COLUMN()-6-COLUMN($E193)),VLOOKUP($E193-25,AllData,COLUMN()-6-COLUMN($E193)),VLOOKUP($E193-26,AllData,COLUMN()-6-COLUMN($E193)),VLOOKUP($E193-27,AllData,COLUMN()-6-COLUMN($E193)),VLOOKUP($E193-28,AllData,COLUMN()-6-COLUMN($E193)),VLOOKUP($E193-29,AllData,COLUMN()-6-COLUMN($E193)))","v":{"$error":"#N/A"}},{"$f":"VLOOKUP($E193,AllData,COLUMN()-7-COLUMN($E193))","v":{"$error":"#N/A"}},{"$f":"OR('Cool Graph'!$I$1=35,'Cool Graph'!$I$1=36,'Cool Graph'!$I$1=37,'Cool Graph'!$I$1=38,'Cool Graph'!$I$1=39,'Cool Graph'!$I$1=40,'Cool Graph'!$I$1=41,'Cool Graph'!$I$1=42,'Cool Graph'!$I$1=43,'Cool Graph'!$I$1=44,'Cool Graph'!$I$1=45,'Cool Graph'!$I$1=46,'Cool Graph'!$I$1=47,'Cool Graph'!$I$1=58,'Cool Graph'!$I$1=66)","v":false}]
["2012-01-09",{"$f":"OFFSET(OldSchoolJustValues!A194,0,'Cool Graph'!$H$1)","v":41.13},{"$f":"OFFSET(OldSchoolJustValues!A194,0,'Cool Graph'!$I$1)","v":689.00321125388609},null,{"$f":"IF(NewDate>EndDate,NA(),NewDate)","v":{"$error":"#N/A"}},{"$f":"IF($E194>EndDate,NA(),IF($K$2=TRUE,N194,IF('Cool Graph'!$B$17=1,N194,IF('Cool Graph'!$B$17=2,L194,IF('Cool Graph'!$B$17=3,M194,)))))","v":{"$error":"#N/A"}},{"$f":"IF($E194>EndDate,NA(),IF($O$2=TRUE,J194,IF('Cool Graph'!$B$17=1,Data1!J194,IF('Cool Graph'!$B$17=2,Data1!H194,IF('Cool Graph'!$B$17=3,Data1!I194,)))))","v":{"$error":"#N/A"}},{"$f":"SUM(VLOOKUP($E194,AllData,COLUMN()-COLUMN($E194)),VLOOKUP($E194-1,AllData,COLUMN()-COLUMN($E194)),VLOOKUP($E194-2,AllData,COLUMN()-COLUMN($E194)),VLOOKUP($E194-3,AllData,COLUMN()-COLUMN($E194)),VLOOKUP($E194-4,AllData,COLUMN()-COLUMN($E194)),VLOOKUP($E194-5,AllData,COLUMN()-COLUMN($E194)),VLOOKUP($E194-6,AllData,COLUMN()-COLUMN($E194)))","v":{"$error":"#N/A"}},{"$f":"SUM(VLOOKUP($E194,AllData,COLUMN()-1-COLUMN($E194)),VLOOKUP($E194-1,AllData,COLUMN()-1-COLUMN($E194)),VLOOKUP($E194-2,AllData,COLUMN()-1-COLUMN($E194)),VLOOKUP($E194-3,AllData,COLUMN()-1-COLUMN($E194)),VLOOKUP($E194-4,AllData,COLUMN()-1-COLUMN($E194)),VLOOKUP($E194-5,AllData,COLUMN()-1-COLUMN($E194)),VLOOKUP($E194-6,AllData,COLUMN()-1-COLUMN($E194)),VLOOKUP($E194-7,AllData,COLUMN()-1-COLUMN($E194)),VLOOKUP($E194-8,AllData,COLUMN()-1-COLUMN($E194)),VLOOKUP($E194-9,AllData,COLUMN()-1-COLUMN($E194)),VLOOKUP($E194-10,AllData,COLUMN()-1-COLUMN($E194)),VLOOKUP($E194-11,AllData,COLUMN()-1-COLUMN($E194)),VLOOKUP($E194-12,AllData,COLUMN()-1-COLUMN($E194)),VLOOKUP($E194-13,AllData,COLUMN()-1-COLUMN($E194)),VLOOKUP($E194-14,AllData,COLUMN()-1-COLUMN($E194)),VLOOKUP($E194-15,AllData,COLUMN()-1-COLUMN($E194)),VLOOKUP($E194-16,AllData,COLUMN()-1-COLUMN($E194)),VLOOKUP($E194-17,AllData,COLUMN()-1-COLUMN($E194)),VLOOKUP($E194-18,AllData,COLUMN()-1-COLUMN($E194)),VLOOKUP($E194-19,AllData,COLUMN()-1-COLUMN($E194)),VLOOKUP($E194-20,AllData,COLUMN()-1-COLUMN($E194)),VLOOKUP($E194-21,AllData,COLUMN()-1-COLUMN($E194)),VLOOKUP($E194-22,AllData,COLUMN()-1-COLUMN($E194)),VLOOKUP($E194-23,AllData,COLUMN()-1-COLUMN($E194)),VLOOKUP($E194-24,AllData,COLUMN()-1-COLUMN($E194)),VLOOKUP($E194-25,AllData,COLUMN()-1-COLUMN($E194)),VLOOKUP($E194-26,AllData,COLUMN()-1-COLUMN($E194)),VLOOKUP($E194-27,AllData,COLUMN()-1-COLUMN($E194)),VLOOKUP($E194-28,AllData,COLUMN()-1-COLUMN($E194)),VLOOKUP($E194-29,AllData,COLUMN()-1-COLUMN($E194)))","v":{"$error":"#N/A"}},{"$f":"VLOOKUP($E194,AllData,COLUMN()-2-COLUMN($E194))","v":{"$error":"#N/A"}},{"$f":"OR('Cool Graph'!$H$1=35,'Cool Graph'!$H$1=36,'Cool Graph'!$H$1=37,'Cool Graph'!$H$1=38,'Cool Graph'!$H$1=39,'Cool Graph'!$H$1=40,'Cool Graph'!$H$1=41,'Cool Graph'!$H$1=42,'Cool Graph'!$H$1=43,'Cool Graph'!$H$1=44,'Cool Graph'!$H$1=45,'Cool Graph'!$H$1=46,'Cool Graph'!$H$1=47,'Cool Graph'!$H$1=58,'Cool Graph'!$H$1=66)","v":false},{"$f":"SUM(VLOOKUP($E194,AllData,COLUMN()-5-COLUMN($E194)),VLOOKUP($E194-1,AllData,COLUMN()-5-COLUMN($E194)),VLOOKUP($E194-2,AllData,COLUMN()-5-COLUMN($E194)),VLOOKUP($E194-3,AllData,COLUMN()-5-COLUMN($E194)),VLOOKUP($E194-4,AllData,COLUMN()-5-COLUMN($E194)),VLOOKUP($E194-5,AllData,COLUMN()-5-COLUMN($E194)),VLOOKUP($E194-6,AllData,COLUMN()-5-COLUMN($E194)))","v":{"$error":"#N/A"}},{"$f":"SUM(VLOOKUP($E194,AllData,COLUMN()-6-COLUMN($E194)),VLOOKUP($E194-1,AllData,COLUMN()-6-COLUMN($E194)),VLOOKUP($E194-2,AllData,COLUMN()-6-COLUMN($E194)),VLOOKUP($E194-3,AllData,COLUMN()-6-COLUMN($E194)),VLOOKUP($E194-4,AllData,COLUMN()-6-COLUMN($E194)),VLOOKUP($E194-5,AllData,COLUMN()-6-COLUMN($E194)),VLOOKUP($E194-6,AllData,COLUMN()-6-COLUMN($E194)),VLOOKUP($E194-7,AllData,COLUMN()-6-COLUMN($E194)),VLOOKUP($E194-8,AllData,COLUMN()-6-COLUMN($E194)),VLOOKUP($E194-9,AllData,COLUMN()-6-COLUMN($E194)),VLOOKUP($E194-10,AllData,COLUMN()-6-COLUMN($E194)),VLOOKUP($E194-11,AllData,COLUMN()-6-COLUMN($E194)),VLOOKUP($E194-12,AllData,COLUMN()-6-COLUMN($E194)),VLOOKUP($E194-13,AllData,COLUMN()-6-COLUMN($E194)),VLOOKUP($E194-14,AllData,COLUMN()-6-COLUMN($E194)),VLOOKUP($E194-15,AllData,COLUMN()-6-COLUMN($E194)),VLOOKUP($E194-16,AllData,COLUMN()-6-COLUMN($E194)),VLOOKUP($E194-17,AllData,COLUMN()-6-COLUMN($E194)),VLOOKUP($E194-18,AllData,COLUMN()-6-COLUMN($E194)),VLOOKUP($E194-19,AllData,COLUMN()-6-COLUMN($E194)),VLOOKUP($E194-20,AllData,COLUMN()-6-COLUMN($E194)),VLOOKUP($E194-21,AllData,COLUMN()-6-COLUMN($E194)),VLOOKUP($E194-22,AllData,COLUMN()-6-COLUMN($E194)),VLOOKUP($E194-23,AllData,COLUMN()-6-COLUMN($E194)),VLOOKUP($E194-24,AllData,COLUMN()-6-COLUMN($E194)),VLOOKUP($E194-25,AllData,COLUMN()-6-COLUMN($E194)),VLOOKUP($E194-26,AllData,COLUMN()-6-COLUMN($E194)),VLOOKUP($E194-27,AllData,COLUMN()-6-COLUMN($E194)),VLOOKUP($E194-28,AllData,COLUMN()-6-COLUMN($E194)),VLOOKUP($E194-29,AllData,COLUMN()-6-COLUMN($E194)))","v":{"$error":"#N/A"}},{"$f":"VLOOKUP($E194,AllData,COLUMN()-7-COLUMN($E194))","v":{"$error":"#N/A"}},{"$f":"OR('Cool Graph'!$I$1=35,'Cool Graph'!$I$1=36,'Cool Graph'!$I$1=37,'Cool Graph'!$I$1=38,'Cool Graph'!$I$1=39,'Cool Graph'!$I$1=40,'Cool Graph'!$I$1=41,'Cool Graph'!$I$1=42,'Cool Graph'!$I$1=43,'Cool Graph'!$I$1=44,'Cool Graph'!$I$1=45,'Cool Graph'!$I$1=46,'Cool Graph'!$I$1=47,'Cool Graph'!$I$1=58,'Cool Graph'!$I$1=66)","v":false}]
["2012-01-10",{"$f":"OFFSET(OldSchoolJustValues!A195,0,'Cool Graph'!$H$1)","v":32.159999999999997},{"$f":"OFFSET(OldSchoolJustValues!A195,0,'Cool Graph'!$I$1)","v":936.97147366678109},null,{"$f":"IF(NewDate>EndDate,NA(),NewDate)","v":{"$error":"#N/A"}},{"$f":"IF($E195>EndDate,NA(),IF($K$2=TRUE,N195,IF('Cool Graph'!$B$17=1,N195,IF('Cool Graph'!$B$17=2,L195,IF('Cool Graph'!$B$17=3,M195,)))))","v":{"$error":"#N/A"}},{"$f":"IF($E195>EndDate,NA(),IF($O$2=TRUE,J195,IF('Cool Graph'!$B$17=1,Data1!J195,IF('Cool Graph'!$B$17=2,Data1!H195,IF('Cool Graph'!$B$17=3,Data1!I195,)))))","v":{"$error":"#N/A"}},{"$f":"SUM(VLOOKUP($E195,AllData,COLUMN()-COLUMN($E195)),VLOOKUP($E195-1,AllData,COLUMN()-COLUMN($E195)),VLOOKUP($E195-2,AllData,COLUMN()-COLUMN($E195)),VLOOKUP($E195-3,AllData,COLUMN()-COLUMN($E195)),VLOOKUP($E195-4,AllData,COLUMN()-COLUMN($E195)),VLOOKUP($E195-5,AllData,COLUMN()-COLUMN($E195)),VLOOKUP($E195-6,AllData,COLUMN()-COLUMN($E195)))","v":{"$error":"#N/A"}},{"$f":"SUM(VLOOKUP($E195,AllData,COLUMN()-1-COLUMN($E195)),VLOOKUP($E195-1,AllData,COLUMN()-1-COLUMN($E195)),VLOOKUP($E195-2,AllData,COLUMN()-1-COLUMN($E195)),VLOOKUP($E195-3,AllData,COLUMN()-1-COLUMN($E195)),VLOOKUP($E195-4,AllData,COLUMN()-1-COLUMN($E195)),VLOOKUP($E195-5,AllData,COLUMN()-1-COLUMN($E195)),VLOOKUP($E195-6,AllData,COLUMN()-1-COLUMN($E195)),VLOOKUP($E195-7,AllData,COLUMN()-1-COLUMN($E195)),VLOOKUP($E195-8,AllData,COLUMN()-1-COLUMN($E195)),VLOOKUP($E195-9,AllData,COLUMN()-1-COLUMN($E195)),VLOOKUP($E195-10,AllData,COLUMN()-1-COLUMN($E195)),VLOOKUP($E195-11,AllData,COLUMN()-1-COLUMN($E195)),VLOOKUP($E195-12,AllData,COLUMN()-1-COLUMN($E195)),VLOOKUP($E195-13,AllData,COLUMN()-1-COLUMN($E195)),VLOOKUP($E195-14,AllData,COLUMN()-1-COLUMN($E195)),VLOOKUP($E195-15,AllData,COLUMN()-1-COLUMN($E195)),VLOOKUP($E195-16,AllData,COLUMN()-1-COLUMN($E195)),VLOOKUP($E195-17,AllData,COLUMN()-1-COLUMN($E195)),VLOOKUP($E195-18,AllData,COLUMN()-1-COLUMN($E195)),VLOOKUP($E195-19,AllData,COLUMN()-1-COLUMN($E195)),VLOOKUP($E195-20,AllData,COLUMN()-1-COLUMN($E195)),VLOOKUP($E195-21,AllData,COLUMN()-1-COLUMN($E195)),VLOOKUP($E195-22,AllData,COLUMN()-1-COLUMN($E195)),VLOOKUP($E195-23,AllData,COLUMN()-1-COLUMN($E195)),VLOOKUP($E195-24,AllData,COLUMN()-1-COLUMN($E195)),VLOOKUP($E195-25,AllData,COLUMN()-1-COLUMN($E195)),VLOOKUP($E195-26,AllData,COLUMN()-1-COLUMN($E195)),VLOOKUP($E195-27,AllData,COLUMN()-1-COLUMN($E195)),VLOOKUP($E195-28,AllData,COLUMN()-1-COLUMN($E195)),VLOOKUP($E195-29,AllData,COLUMN()-1-COLUMN($E195)))","v":{"$error":"#N/A"}},{"$f":"VLOOKUP($E195,AllData,COLUMN()-2-COLUMN($E195))","v":{"$error":"#N/A"}},{"$f":"OR('Cool Graph'!$H$1=35,'Cool Graph'!$H$1=36,'Cool Graph'!$H$1=37,'Cool Graph'!$H$1=38,'Cool Graph'!$H$1=39,'Cool Graph'!$H$1=40,'Cool Graph'!$H$1=41,'Cool Graph'!$H$1=42,'Cool Graph'!$H$1=43,'Cool Graph'!$H$1=44,'Cool Graph'!$H$1=45,'Cool Graph'!$H$1=46,'Cool Graph'!$H$1=47,'Cool Graph'!$H$1=58,'Cool Graph'!$H$1=66)","v":false},{"$f":"SUM(VLOOKUP($E195,AllData,COLUMN()-5-COLUMN($E195)),VLOOKUP($E195-1,AllData,COLUMN()-5-COLUMN($E195)),VLOOKUP($E195-2,AllData,COLUMN()-5-COLUMN($E195)),VLOOKUP($E195-3,AllData,COLUMN()-5-COLUMN($E195)),VLOOKUP($E195-4,AllData,COLUMN()-5-COLUMN($E195)),VLOOKUP($E195-5,AllData,COLUMN()-5-COLUMN($E195)),VLOOKUP($E195-6,AllData,COLUMN()-5-COLUMN($E195)))","v":{"$error":"#N/A"}},{"$f":"SUM(VLOOKUP($E195,AllData,COLUMN()-6-COLUMN($E195)),VLOOKUP($E195-1,AllData,COLUMN()-6-COLUMN($E195)),VLOOKUP($E195-2,AllData,COLUMN()-6-COLUMN($E195)),VLOOKUP($E195-3,AllData,COLUMN()-6-COLUMN($E195)),VLOOKUP($E195-4,AllData,COLUMN()-6-COLUMN($E195)),VLOOKUP($E195-5,AllData,COLUMN()-6-COLUMN($E195)),VLOOKUP($E195-6,AllData,COLUMN()-6-COLUMN($E195)),VLOOKUP($E195-7,AllData,COLUMN()-6-COLUMN($E195)),VLOOKUP($E195-8,AllData,COLUMN()-6-COLUMN($E195)),VLOOKUP($E195-9,AllData,COLUMN()-6-COLUMN($E195)),VLOOKUP($E195-10,AllData,COLUMN()-6-COLUMN($E195)),VLOOKUP($E195-11,AllData,COLUMN()-6-COLUMN($E195)),VLOOKUP($E195-12,AllData,COLUMN()-6-COLUMN($E195)),VLOOKUP($E195-13,AllData,COLUMN()-6-COLUMN($E195)),VLOOKUP($E195-14,AllData,COLUMN()-6-COLUMN($E195)),VLOOKUP($E195-15,AllData,COLUMN()-6-COLUMN($E195)),VLOOKUP($E195-16,AllData,COLUMN()-6-COLUMN($E195)),VLOOKUP($E195-17,AllData,COLUMN()-6-COLUMN($E195)),VLOOKUP($E195-18,AllData,COLUMN()-6-COLUMN($E195)),VLOOKUP($E195-19,AllData,COLUMN()-6-COLUMN($E195)),VLOOKUP($E195-20,AllData,COLUMN()-6-COLUMN($E195)),VLOOKUP($E195-21,AllData,COLUMN()-6-COLUMN($E195)),VLOOKUP($E195-22,AllData,COLUMN()-6-COLUMN($E195)),VLOOKUP($E195-23,AllData,COLUMN()-6-COLUMN($E195)),VLOOKUP($E195-24,AllData,COLUMN()-6-COLUMN($E195)),VLOOKUP($E195-25,AllData,COLUMN()-6-COLUMN($E195)),VLOOKUP($E195-26,AllData,COLUMN()-6-COLUMN($E195)),VLOOKUP($E195-27,AllData,COLUMN()-6-COLUMN($E195)),VLOOKUP($E195-28,AllData,COLUMN()-6-COLUMN($E195)),VLOOKUP($E195-29,AllData,COLUMN()-6-COLUMN($E195)))","v":{"$error":"#N/A"}},{"$f":"VLOOKUP($E195,AllData,COLUMN()-7-COLUMN($E195))","v":{"$error":"#N/A"}},{"$f":"OR('Cool Graph'!$I$1=35,'Cool Graph'!$I$1=36,'Cool Graph'!$I$1=37,'Cool Graph'!$I$1=38,'Cool Graph'!$I$1=39,'Cool Graph'!$I$1=40,'Cool Graph'!$I$1=41,'Cool Graph'!$I$1=42,'Cool Graph'!$I$1=43,'Cool Graph'!$I$1=44,'Cool Graph'!$I$1=45,'Cool Graph'!$I$1=46,'Cool Graph'!$I$1=47,'Cool Graph'!$I$1=58,'Cool Graph'!$I$1=66)","v":false}]
["2012-01-11",{"$f":"OFFSET(OldSchoolJustValues!A196,0,'Cool Graph'!$H$1)","v":162.06},{"$f":"OFFSET(OldSchoolJustValues!A196,0,'Cool Graph'!$I$1)","v":508.04127852210985},null,{"$f":"IF(NewDate>EndDate,NA(),NewDate)","v":{"$error":"#N/A"}},{"$f":"IF($E196>EndDate,NA(),IF($K$2=TRUE,N196,IF('Cool Graph'!$B$17=1,N196,IF('Cool Graph'!$B$17=2,L196,IF('Cool Graph'!$B$17=3,M196,)))))","v":{"$error":"#N/A"}},{"$f":"IF($E196>EndDate,NA(),IF($O$2=TRUE,J196,IF('Cool Graph'!$B$17=1,Data1!J196,IF('Cool Graph'!$B$17=2,Data1!H196,IF('Cool Graph'!$B$17=3,Data1!I196,)))))","v":{"$error":"#N/A"}},{"$f":"SUM(VLOOKUP($E196,AllData,COLUMN()-COLUMN($E196)),VLOOKUP($E196-1,AllData,COLUMN()-COLUMN($E196)),VLOOKUP($E196-2,AllData,COLUMN()-COLUMN($E196)),VLOOKUP($E196-3,AllData,COLUMN()-COLUMN($E196)),VLOOKUP($E196-4,AllData,COLUMN()-COLUMN($E196)),VLOOKUP($E196-5,AllData,COLUMN()-COLUMN($E196)),VLOOKUP($E196-6,AllData,COLUMN()-COLUMN($E196)))","v":{"$error":"#N/A"}},{"$f":"SUM(VLOOKUP($E196,AllData,COLUMN()-1-COLUMN($E196)),VLOOKUP($E196-1,AllData,COLUMN()-1-COLUMN($E196)),VLOOKUP($E196-2,AllData,COLUMN()-1-COLUMN($E196)),VLOOKUP($E196-3,AllData,COLUMN()-1-COLUMN($E196)),VLOOKUP($E196-4,AllData,COLUMN()-1-COLUMN($E196)),VLOOKUP($E196-5,AllData,COLUMN()-1-COLUMN($E196)),VLOOKUP($E196-6,AllData,COLUMN()-1-COLUMN($E196)),VLOOKUP($E196-7,AllData,COLUMN()-1-COLUMN($E196)),VLOOKUP($E196-8,AllData,COLUMN()-1-COLUMN($E196)),VLOOKUP($E196-9,AllData,COLUMN()-1-COLUMN($E196)),VLOOKUP($E196-10,AllData,COLUMN()-1-COLUMN($E196)),VLOOKUP($E196-11,AllData,COLUMN()-1-COLUMN($E196)),VLOOKUP($E196-12,AllData,COLUMN()-1-COLUMN($E196)),VLOOKUP($E196-13,AllData,COLUMN()-1-COLUMN($E196)),VLOOKUP($E196-14,AllData,COLUMN()-1-COLUMN($E196)),VLOOKUP($E196-15,AllData,COLUMN()-1-COLUMN($E196)),VLOOKUP($E196-16,AllData,COLUMN()-1-COLUMN($E196)),VLOOKUP($E196-17,AllData,COLUMN()-1-COLUMN($E196)),VLOOKUP($E196-18,AllData,COLUMN()-1-COLUMN($E196)),VLOOKUP($E196-19,AllData,COLUMN()-1-COLUMN($E196)),VLOOKUP($E196-20,AllData,COLUMN()-1-COLUMN($E196)),VLOOKUP($E196-21,AllData,COLUMN()-1-COLUMN($E196)),VLOOKUP($E196-22,AllData,COLUMN()-1-COLUMN($E196)),VLOOKUP($E196-23,AllData,COLUMN()-1-COLUMN($E196)),VLOOKUP($E196-24,AllData,COLUMN()-1-COLUMN($E196)),VLOOKUP($E196-25,AllData,COLUMN()-1-COLUMN($E196)),VLOOKUP($E196-26,AllData,COLUMN()-1-COLUMN($E196)),VLOOKUP($E196-27,AllData,COLUMN()-1-COLUMN($E196)),VLOOKUP($E196-28,AllData,COLUMN()-1-COLUMN($E196)),VLOOKUP($E196-29,AllData,COLUMN()-1-COLUMN($E196)))","v":{"$error":"#N/A"}},{"$f":"VLOOKUP($E196,AllData,COLUMN()-2-COLUMN($E196))","v":{"$error":"#N/A"}},{"$f":"OR('Cool Graph'!$H$1=35,'Cool Graph'!$H$1=36,'Cool Graph'!$H$1=37,'Cool Graph'!$H$1=38,'Cool Graph'!$H$1=39,'Cool Graph'!$H$1=40,'Cool Graph'!$H$1=41,'Cool Graph'!$H$1=42,'Cool Graph'!$H$1=43,'Cool Graph'!$H$1=44,'Cool Graph'!$H$1=45,'Cool Graph'!$H$1=46,'Cool Graph'!$H$1=47,'Cool Graph'!$H$1=58,'Cool Graph'!$H$1=66)","v":false},{"$f":"SUM(VLOOKUP($E196,AllData,COLUMN()-5-COLUMN($E196)),VLOOKUP($E196-1,AllData,COLUMN()-5-COLUMN($E196)),VLOOKUP($E196-2,AllData,COLUMN()-5-COLUMN($E196)),VLOOKUP($E196-3,AllData,COLUMN()-5-COLUMN($E196)),VLOOKUP($E196-4,AllData,COLUMN()-5-COLUMN($E196)),VLOOKUP($E196-5,AllData,COLUMN()-5-COLUMN($E196)),VLOOKUP($E196-6,AllData,COLUMN()-5-COLUMN($E196)))","v":{"$error":"#N/A"}},{"$f":"SUM(VLOOKUP($E196,AllData,COLUMN()-6-COLUMN($E196)),VLOOKUP($E196-1,AllData,COLUMN()-6-COLUMN($E196)),VLOOKUP($E196-2,AllData,COLUMN()-6-COLUMN($E196)),VLOOKUP($E196-3,AllData,COLUMN()-6-COLUMN($E196)),VLOOKUP($E196-4,AllData,COLUMN()-6-COLUMN($E196)),VLOOKUP($E196-5,AllData,COLUMN()-6-COLUMN($E196)),VLOOKUP($E196-6,AllData,COLUMN()-6-COLUMN($E196)),VLOOKUP($E196-7,AllData,COLUMN()-6-COLUMN($E196)),VLOOKUP($E196-8,AllData,COLUMN()-6-COLUMN($E196)),VLOOKUP($E196-9,AllData,COLUMN()-6-COLUMN($E196)),VLOOKUP($E196-10,AllData,COLUMN()-6-COLUMN($E196)),VLOOKUP($E196-11,AllData,COLUMN()-6-COLUMN($E196)),VLOOKUP($E196-12,AllData,COLUMN()-6-COLUMN($E196)),VLOOKUP($E196-13,AllData,COLUMN()-6-COLUMN($E196)),VLOOKUP($E196-14,AllData,COLUMN()-6-COLUMN($E196)),VLOOKUP($E196-15,AllData,COLUMN()-6-COLUMN($E196)),VLOOKUP($E196-16,AllData,COLUMN()-6-COLUMN($E196)),VLOOKUP($E196-17,AllData,COLUMN()-6-COLUMN($E196)),VLOOKUP($E196-18,AllData,COLUMN()-6-COLUMN($E196)),VLOOKUP($E196-19,AllData,COLUMN()-6-COLUMN($E196)),VLOOKUP($E196-20,AllData,COLUMN()-6-COLUMN($E196)),VLOOKUP($E196-21,AllData,COLUMN()-6-COLUMN($E196)),VLOOKUP($E196-22,AllData,COLUMN()-6-COLUMN($E196)),VLOOKUP($E196-23,AllData,COLUMN()-6-COLUMN($E196)),VLOOKUP($E196-24,AllData,COLUMN()-6-COLUMN($E196)),VLOOKUP($E196-25,AllData,COLUMN()-6-COLUMN($E196)),VLOOKUP($E196-26,AllData,COLUMN()-6-COLUMN($E196)),VLOOKUP($E196-27,AllData,COLUMN()-6-COLUMN($E196)),VLOOKUP($E196-28,AllData,COLUMN()-6-COLUMN($E196)),VLOOKUP($E196-29,AllData,COLUMN()-6-COLUMN($E196)))","v":{"$error":"#N/A"}},{"$f":"VLOOKUP($E196,AllData,COLUMN()-7-COLUMN($E196))","v":{"$error":"#N/A"}},{"$f":"OR('Cool Graph'!$I$1=35,'Cool Graph'!$I$1=36,'Cool Graph'!$I$1=37,'Cool Graph'!$I$1=38,'Cool Graph'!$I$1=39,'Cool Graph'!$I$1=40,'Cool Graph'!$I$1=41,'Cool Graph'!$I$1=42,'Cool Graph'!$I$1=43,'Cool Graph'!$I$1=44,'Cool Graph'!$I$1=45,'Cool Graph'!$I$1=46,'Cool Graph'!$I$1=47,'Cool Graph'!$I$1=58,'Cool Graph'!$I$1=66)","v":false}]
["2012-01-12",{"$f":"OFFSET(OldSchoolJustValues!A197,0,'Cool Graph'!$H$1)","v":84.35},{"$f":"OFFSET(OldSchoolJustValues!A197,0,'Cool Graph'!$I$1)","v":414.35416464507006},null,{"$f":"IF(NewDate>EndDate,NA(),NewDate)","v":{"$error":"#N/A"}},{"$f":"IF($E197>EndDate,NA(),IF($K$2=TRUE,N197,IF('Cool Graph'!$B$17=1,N197,IF('Cool Graph'!$B$17=2,L197,IF('Cool Graph'!$B$17=3,M197,)))))","v":{"$error":"#N/A"}},{"$f":"IF($E197>EndDate,NA(),IF($O$2=TRUE,J197,IF('Cool Graph'!$B$17=1,Data1!J197,IF('Cool Graph'!$B$17=2,Data1!H197,IF('Cool Graph'!$B$17=3,Data1!I197,)))))","v":{"$error":"#N/A"}},{"$f":"SUM(VLOOKUP($E197,AllData,COLUMN()-COLUMN($E197)),VLOOKUP($E197-1,AllData,COLUMN()-COLUMN($E197)),VLOOKUP($E197-2,AllData,COLUMN()-COLUMN($E197)),VLOOKUP($E197-3,AllData,COLUMN()-COLUMN($E197)),VLOOKUP($E197-4,AllData,COLUMN()-COLUMN($E197)),VLOOKUP($E197-5,AllData,COLUMN()-COLUMN($E197)),VLOOKUP($E197-6,AllData,COLUMN()-COLUMN($E197)))","v":{"$error":"#N/A"}},{"$f":"SUM(VLOOKUP($E197,AllData,COLUMN()-1-COLUMN($E197)),VLOOKUP($E197-1,AllData,COLUMN()-1-COLUMN($E197)),VLOOKUP($E197-2,AllData,COLUMN()-1-COLUMN($E197)),VLOOKUP($E197-3,AllData,COLUMN()-1-COLUMN($E197)),VLOOKUP($E197-4,AllData,COLUMN()-1-COLUMN($E197)),VLOOKUP($E197-5,AllData,COLUMN()-1-COLUMN($E197)),VLOOKUP($E197-6,AllData,COLUMN()-1-COLUMN($E197)),VLOOKUP($E197-7,AllData,COLUMN()-1-COLUMN($E197)),VLOOKUP($E197-8,AllData,COLUMN()-1-COLUMN($E197)),VLOOKUP($E197-9,AllData,COLUMN()-1-COLUMN($E197)),VLOOKUP($E197-10,AllData,COLUMN()-1-COLUMN($E197)),VLOOKUP($E197-11,AllData,COLUMN()-1-COLUMN($E197)),VLOOKUP($E197-12,AllData,COLUMN()-1-COLUMN($E197)),VLOOKUP($E197-13,AllData,COLUMN()-1-COLUMN($E197)),VLOOKUP($E197-14,AllData,COLUMN()-1-COLUMN($E197)),VLOOKUP($E197-15,AllData,COLUMN()-1-COLUMN($E197)),VLOOKUP($E197-16,AllData,COLUMN()-1-COLUMN($E197)),VLOOKUP($E197-17,AllData,COLUMN()-1-COLUMN($E197)),VLOOKUP($E197-18,AllData,COLUMN()-1-COLUMN($E197)),VLOOKUP($E197-19,AllData,COLUMN()-1-COLUMN($E197)),VLOOKUP($E197-20,AllData,COLUMN()-1-COLUMN($E197)),VLOOKUP($E197-21,AllData,COLUMN()-1-COLUMN($E197)),VLOOKUP($E197-22,AllData,COLUMN()-1-COLUMN($E197)),VLOOKUP($E197-23,AllData,COLUMN()-1-COLUMN($E197)),VLOOKUP($E197-24,AllData,COLUMN()-1-COLUMN($E197)),VLOOKUP($E197-25,AllData,COLUMN()-1-COLUMN($E197)),VLOOKUP($E197-26,AllData,COLUMN()-1-COLUMN($E197)),VLOOKUP($E197-27,AllData,COLUMN()-1-COLUMN($E197)),VLOOKUP($E197-28,AllData,COLUMN()-1-COLUMN($E197)),VLOOKUP($E197-29,AllData,COLUMN()-1-COLUMN($E197)))","v":{"$error":"#N/A"}},{"$f":"VLOOKUP($E197,AllData,COLUMN()-2-COLUMN($E197))","v":{"$error":"#N/A"}},{"$f":"OR('Cool Graph'!$H$1=35,'Cool Graph'!$H$1=36,'Cool Graph'!$H$1=37,'Cool Graph'!$H$1=38,'Cool Graph'!$H$1=39,'Cool Graph'!$H$1=40,'Cool Graph'!$H$1=41,'Cool Graph'!$H$1=42,'Cool Graph'!$H$1=43,'Cool Graph'!$H$1=44,'Cool Graph'!$H$1=45,'Cool Graph'!$H$1=46,'Cool Graph'!$H$1=47,'Cool Graph'!$H$1=58,'Cool Graph'!$H$1=66)","v":false},{"$f":"SUM(VLOOKUP($E197,AllData,COLUMN()-5-COLUMN($E197)),VLOOKUP($E197-1,AllData,COLUMN()-5-COLUMN($E197)),VLOOKUP($E197-2,AllData,COLUMN()-5-COLUMN($E197)),VLOOKUP($E197-3,AllData,COLUMN()-5-COLUMN($E197)),VLOOKUP($E197-4,AllData,COLUMN()-5-COLUMN($E197)),VLOOKUP($E197-5,AllData,COLUMN()-5-COLUMN($E197)),VLOOKUP($E197-6,AllData,COLUMN()-5-COLUMN($E197)))","v":{"$error":"#N/A"}},{"$f":"SUM(VLOOKUP($E197,AllData,COLUMN()-6-COLUMN($E197)),VLOOKUP($E197-1,AllData,COLUMN()-6-COLUMN($E197)),VLOOKUP($E197-2,AllData,COLUMN()-6-COLUMN($E197)),VLOOKUP($E197-3,AllData,COLUMN()-6-COLUMN($E197)),VLOOKUP($E197-4,AllData,COLUMN()-6-COLUMN($E197)),VLOOKUP($E197-5,AllData,COLUMN()-6-COLUMN($E197)),VLOOKUP($E197-6,AllData,COLUMN()-6-COLUMN($E197)),VLOOKUP($E197-7,AllData,COLUMN()-6-COLUMN($E197)),VLOOKUP($E197-8,AllData,COLUMN()-6-COLUMN($E197)),VLOOKUP($E197-9,AllData,COLUMN()-6-COLUMN($E197)),VLOOKUP($E197-10,AllData,COLUMN()-6-COLUMN($E197)),VLOOKUP($E197-11,AllData,COLUMN()-6-COLUMN($E197)),VLOOKUP($E197-12,AllData,COLUMN()-6-COLUMN($E197)),VLOOKUP($E197-13,AllData,COLUMN()-6-COLUMN($E197)),VLOOKUP($E197-14,AllData,COLUMN()-6-COLUMN($E197)),VLOOKUP($E197-15,AllData,COLUMN()-6-COLUMN($E197)),VLOOKUP($E197-16,AllData,COLUMN()-6-COLUMN($E197)),VLOOKUP($E197-17,AllData,COLUMN()-6-COLUMN($E197)),VLOOKUP($E197-18,AllData,COLUMN()-6-COLUMN($E197)),VLOOKUP($E197-19,AllData,COLUMN()-6-COLUMN($E197)),VLOOKUP($E197-20,AllData,COLUMN()-6-COLUMN($E197)),VLOOKUP($E197-21,AllData,COLUMN()-6-COLUMN($E197)),VLOOKUP($E197-22,AllData,COLUMN()-6-COLUMN($E197)),VLOOKUP($E197-23,AllData,COLUMN()-6-COLUMN($E197)),VLOOKUP($E197-24,AllData,COLUMN()-6-COLUMN($E197)),VLOOKUP($E197-25,AllData,COLUMN()-6-COLUMN($E197)),VLOOKUP($E197-26,AllData,COLUMN()-6-COLUMN($E197)),VLOOKUP($E197-27,AllData,COLUMN()-6-COLUMN($E197)),VLOOKUP($E197-28,AllData,COLUMN()-6-COLUMN($E197)),VLOOKUP($E197-29,AllData,COLUMN()-6-COLUMN($E197)))","v":{"$error":"#N/A"}},{"$f":"VLOOKUP($E197,AllData,COLUMN()-7-COLUMN($E197))","v":{"$error":"#N/A"}},{"$f":"OR('Cool Graph'!$I$1=35,'Cool Graph'!$I$1=36,'Cool Graph'!$I$1=37,'Cool Graph'!$I$1=38,'Cool Graph'!$I$1=39,'Cool Graph'!$I$1=40,'Cool Graph'!$I$1=41,'Cool Graph'!$I$1=42,'Cool Graph'!$I$1=43,'Cool Graph'!$I$1=44,'Cool Graph'!$I$1=45,'Cool Graph'!$I$1=46,'Cool Graph'!$I$1=47,'Cool Graph'!$I$1=58,'Cool Graph'!$I$1=66)","v":false}]
["2012-01-13",{"$f":"OFFSET(OldSchoolJustValues!A198,0,'Cool Graph'!$H$1)","v":79.14},{"$f":"OFFSET(OldSchoolJustValues!A198,0,'Cool Graph'!$I$1)","v":711.71007897318191},null,{"$f":"IF(NewDate>EndDate,NA(),NewDate)","v":{"$error":"#N/A"}},{"$f":"IF($E198>EndDate,NA(),IF($K$2=TRUE,N198,IF('Cool Graph'!$B$17=1,N198,IF('Cool Graph'!$B$17=2,L198,IF('Cool Graph'!$B$17=3,M198,)))))","v":{"$error":"#N/A"}},{"$f":"IF($E198>EndDate,NA(),IF($O$2=TRUE,J198,IF('Cool Graph'!$B$17=1,Data1!J198,IF('Cool Graph'!$B$17=2,Data1!H198,IF('Cool Graph'!$B$17=3,Data1!I198,)))))","v":{"$error":"#N/A"}},{"$f":"SUM(VLOOKUP($E198,AllData,COLUMN()-COLUMN($E198)),VLOOKUP($E198-1,AllData,COLUMN()-COLUMN($E198)),VLOOKUP($E198-2,AllData,COLUMN()-COLUMN($E198)),VLOOKUP($E198-3,AllData,COLUMN()-COLUMN($E198)),VLOOKUP($E198-4,AllData,COLUMN()-COLUMN($E198)),VLOOKUP($E198-5,AllData,COLUMN()-COLUMN($E198)),VLOOKUP($E198-6,AllData,COLUMN()-COLUMN($E198)))","v":{"$error":"#N/A"}},{"$f":"SUM(VLOOKUP($E198,AllData,COLUMN()-1-COLUMN($E198)),VLOOKUP($E198-1,AllData,COLUMN()-1-COLUMN($E198)),VLOOKUP($E198-2,AllData,COLUMN()-1-COLUMN($E198)),VLOOKUP($E198-3,AllData,COLUMN()-1-COLUMN($E198)),VLOOKUP($E198-4,AllData,COLUMN()-1-COLUMN($E198)),VLOOKUP($E198-5,AllData,COLUMN()-1-COLUMN($E198)),VLOOKUP($E198-6,AllData,COLUMN()-1-COLUMN($E198)),VLOOKUP($E198-7,AllData,COLUMN()-1-COLUMN($E198)),VLOOKUP($E198-8,AllData,COLUMN()-1-COLUMN($E198)),VLOOKUP($E198-9,AllData,COLUMN()-1-COLUMN($E198)),VLOOKUP($E198-10,AllData,COLUMN()-1-COLUMN($E198)),VLOOKUP($E198-11,AllData,COLUMN()-1-COLUMN($E198)),VLOOKUP($E198-12,AllData,COLUMN()-1-COLUMN($E198)),VLOOKUP($E198-13,AllData,COLUMN()-1-COLUMN($E198)),VLOOKUP($E198-14,AllData,COLUMN()-1-COLUMN($E198)),VLOOKUP($E198-15,AllData,COLUMN()-1-COLUMN($E198)),VLOOKUP($E198-16,AllData,COLUMN()-1-COLUMN($E198)),VLOOKUP($E198-17,AllData,COLUMN()-1-COLUMN($E198)),VLOOKUP($E198-18,AllData,COLUMN()-1-COLUMN($E198)),VLOOKUP($E198-19,AllData,COLUMN()-1-COLUMN($E198)),VLOOKUP($E198-20,AllData,COLUMN()-1-COLUMN($E198)),VLOOKUP($E198-21,AllData,COLUMN()-1-COLUMN($E198)),VLOOKUP($E198-22,AllData,COLUMN()-1-COLUMN($E198)),VLOOKUP($E198-23,AllData,COLUMN()-1-COLUMN($E198)),VLOOKUP($E198-24,AllData,COLUMN()-1-COLUMN($E198)),VLOOKUP($E198-25,AllData,COLUMN()-1-COLUMN($E198)),VLOOKUP($E198-26,AllData,COLUMN()-1-COLUMN($E198)),VLOOKUP($E198-27,AllData,COLUMN()-1-COLUMN($E198)),VLOOKUP($E198-28,AllData,COLUMN()-1-COLUMN($E198)),VLOOKUP($E198-29,AllData,COLUMN()-1-COLUMN($E198)))","v":{"$error":"#N/A"}},{"$f":"VLOOKUP($E198,AllData,COLUMN()-2-COLUMN($E198))","v":{"$error":"#N/A"}},{"$f":"OR('Cool Graph'!$H$1=35,'Cool Graph'!$H$1=36,'Cool Graph'!$H$1=37,'Cool Graph'!$H$1=38,'Cool Graph'!$H$1=39,'Cool Graph'!$H$1=40,'Cool Graph'!$H$1=41,'Cool Graph'!$H$1=42,'Cool Graph'!$H$1=43,'Cool Graph'!$H$1=44,'Cool Graph'!$H$1=45,'Cool Graph'!$H$1=46,'Cool Graph'!$H$1=47,'Cool Graph'!$H$1=58,'Cool Graph'!$H$1=66)","v":false},{"$f":"SUM(VLOOKUP($E198,AllData,COLUMN()-5-COLUMN($E198)),VLOOKUP($E198-1,AllData,COLUMN()-5-COLUMN($E198)),VLOOKUP($E198-2,AllData,COLUMN()-5-COLUMN($E198)),VLOOKUP($E198-3,AllData,COLUMN()-5-COLUMN($E198)),VLOOKUP($E198-4,AllData,COLUMN()-5-COLUMN($E198)),VLOOKUP($E198-5,AllData,COLUMN()-5-COLUMN($E198)),VLOOKUP($E198-6,AllData,COLUMN()-5-COLUMN($E198)))","v":{"$error":"#N/A"}},{"$f":"SUM(VLOOKUP($E198,AllData,COLUMN()-6-COLUMN($E198)),VLOOKUP($E198-1,AllData,COLUMN()-6-COLUMN($E198)),VLOOKUP($E198-2,AllData,COLUMN()-6-COLUMN($E198)),VLOOKUP($E198-3,AllData,COLUMN()-6-COLUMN($E198)),VLOOKUP($E198-4,AllData,COLUMN()-6-COLUMN($E198)),VLOOKUP($E198-5,AllData,COLUMN()-6-COLUMN($E198)),VLOOKUP($E198-6,AllData,COLUMN()-6-COLUMN($E198)),VLOOKUP($E198-7,AllData,COLUMN()-6-COLUMN($E198)),VLOOKUP($E198-8,AllData,COLUMN()-6-COLUMN($E198)),VLOOKUP($E198-9,AllData,COLUMN()-6-COLUMN($E198)),VLOOKUP($E198-10,AllData,COLUMN()-6-COLUMN($E198)),VLOOKUP($E198-11,AllData,COLUMN()-6-COLUMN($E198)),VLOOKUP($E198-12,AllData,COLUMN()-6-COLUMN($E198)),VLOOKUP($E198-13,AllData,COLUMN()-6-COLUMN($E198)),VLOOKUP($E198-14,AllData,COLUMN()-6-COLUMN($E198)),VLOOKUP($E198-15,AllData,COLUMN()-6-COLUMN($E198)),VLOOKUP($E198-16,AllData,COLUMN()-6-COLUMN($E198)),VLOOKUP($E198-17,AllData,COLUMN()-6-COLUMN($E198)),VLOOKUP($E198-18,AllData,COLUMN()-6-COLUMN($E198)),VLOOKUP($E198-19,AllData,COLUMN()-6-COLUMN($E198)),VLOOKUP($E198-20,AllData,COLUMN()-6-COLUMN($E198)),VLOOKUP($E198-21,AllData,COLUMN()-6-COLUMN($E198)),VLOOKUP($E198-22,AllData,COLUMN()-6-COLUMN($E198)),VLOOKUP($E198-23,AllData,COLUMN()-6-COLUMN($E198)),VLOOKUP($E198-24,AllData,COLUMN()-6-COLUMN($E198)),VLOOKUP($E198-25,AllData,COLUMN()-6-COLUMN($E198)),VLOOKUP($E198-26,AllData,COLUMN()-6-COLUMN($E198)),VLOOKUP($E198-27,AllData,COLUMN()-6-COLUMN($E198)),VLOOKUP($E198-28,AllData,COLUMN()-6-COLUMN($E198)),VLOOKUP($E198-29,AllData,COLUMN()-6-COLUMN($E198)))","v":{"$error":"#N/A"}},{"$f":"VLOOKUP($E198,AllData,COLUMN()-7-COLUMN($E198))","v":{"$error":"#N/A"}},{"$f":"OR('Cool Graph'!$I$1=35,'Cool Graph'!$I$1=36,'Cool Graph'!$I$1=37,'Cool Graph'!$I$1=38,'Cool Graph'!$I$1=39,'Cool Graph'!$I$1=40,'Cool Graph'!$I$1=41,'Cool Graph'!$I$1=42,'Cool Graph'!$I$1=43,'Cool Graph'!$I$1=44,'Cool Graph'!$I$1=45,'Cool Graph'!$I$1=46,'Cool Graph'!$I$1=47,'Cool Graph'!$I$1=58,'Cool Graph'!$I$1=66)","v":false}]
["2012-01-14",{"$f":"OFFSET(OldSchoolJustValues!A199,0,'Cool Graph'!$H$1)","v":0.03},{"$f":"OFFSET(OldSchoolJustValues!A199,0,'Cool Graph'!$I$1)","v":422.10701237815482},null,{"$f":"IF(NewDate>EndDate,NA(),NewDate)","v":{"$error":"#N/A"}},{"$f":"IF($E199>EndDate,NA(),IF($K$2=TRUE,N199,IF('Cool Graph'!$B$17=1,N199,IF('Cool Graph'!$B$17=2,L199,IF('Cool Graph'!$B$17=3,M199,)))))","v":{"$error":"#N/A"}},{"$f":"IF($E199>EndDate,NA(),IF($O$2=TRUE,J199,IF('Cool Graph'!$B$17=1,Data1!J199,IF('Cool Graph'!$B$17=2,Data1!H199,IF('Cool Graph'!$B$17=3,Data1!I199,)))))","v":{"$error":"#N/A"}},{"$f":"SUM(VLOOKUP($E199,AllData,COLUMN()-COLUMN($E199)),VLOOKUP($E199-1,AllData,COLUMN()-COLUMN($E199)),VLOOKUP($E199-2,AllData,COLUMN()-COLUMN($E199)),VLOOKUP($E199-3,AllData,COLUMN()-COLUMN($E199)),VLOOKUP($E199-4,AllData,COLUMN()-COLUMN($E199)),VLOOKUP($E199-5,AllData,COLUMN()-COLUMN($E199)),VLOOKUP($E199-6,AllData,COLUMN()-COLUMN($E199)))","v":{"$error":"#N/A"}},{"$f":"SUM(VLOOKUP($E199,AllData,COLUMN()-1-COLUMN($E199)),VLOOKUP($E199-1,AllData,COLUMN()-1-COLUMN($E199)),VLOOKUP($E199-2,AllData,COLUMN()-1-COLUMN($E199)),VLOOKUP($E199-3,AllData,COLUMN()-1-COLUMN($E199)),VLOOKUP($E199-4,AllData,COLUMN()-1-COLUMN($E199)),VLOOKUP($E199-5,AllData,COLUMN()-1-COLUMN($E199)),VLOOKUP($E199-6,AllData,COLUMN()-1-COLUMN($E199)),VLOOKUP($E199-7,AllData,COLUMN()-1-COLUMN($E199)),VLOOKUP($E199-8,AllData,COLUMN()-1-COLUMN($E199)),VLOOKUP($E199-9,AllData,COLUMN()-1-COLUMN($E199)),VLOOKUP($E199-10,AllData,COLUMN()-1-COLUMN($E199)),VLOOKUP($E199-11,AllData,COLUMN()-1-COLUMN($E199)),VLOOKUP($E199-12,AllData,COLUMN()-1-COLUMN($E199)),VLOOKUP($E199-13,AllData,COLUMN()-1-COLUMN($E199)),VLOOKUP($E199-14,AllData,COLUMN()-1-COLUMN($E199)),VLOOKUP($E199-15,AllData,COLUMN()-1-COLUMN($E199)),VLOOKUP($E199-16,AllData,COLUMN()-1-COLUMN($E199)),VLOOKUP($E199-17,AllData,COLUMN()-1-COLUMN($E199)),VLOOKUP($E199-18,AllData,COLUMN()-1-COLUMN($E199)),VLOOKUP($E199-19,AllData,COLUMN()-1-COLUMN($E199)),VLOOKUP($E199-20,AllData,COLUMN()-1-COLUMN($E199)),VLOOKUP($E199-21,AllData,COLUMN()-1-COLUMN($E199)),VLOOKUP($E199-22,AllData,COLUMN()-1-COLUMN($E199)),VLOOKUP($E199-23,AllData,COLUMN()-1-COLUMN($E199)),VLOOKUP($E199-24,AllData,COLUMN()-1-COLUMN($E199)),VLOOKUP($E199-25,AllData,COLUMN()-1-COLUMN($E199)),VLOOKUP($E199-26,AllData,COLUMN()-1-COLUMN($E199)),VLOOKUP($E199-27,AllData,COLUMN()-1-COLUMN($E199)),VLOOKUP($E199-28,AllData,COLUMN()-1-COLUMN($E199)),VLOOKUP($E199-29,AllData,COLUMN()-1-COLUMN($E199)))","v":{"$error":"#N/A"}},{"$f":"VLOOKUP($E199,AllData,COLUMN()-2-COLUMN($E199))","v":{"$error":"#N/A"}},{"$f":"OR('Cool Graph'!$H$1=35,'Cool Graph'!$H$1=36,'Cool Graph'!$H$1=37,'Cool Graph'!$H$1=38,'Cool Graph'!$H$1=39,'Cool Graph'!$H$1=40,'Cool Graph'!$H$1=41,'Cool Graph'!$H$1=42,'Cool Graph'!$H$1=43,'Cool Graph'!$H$1=44,'Cool Graph'!$H$1=45,'Cool Graph'!$H$1=46,'Cool Graph'!$H$1=47,'Cool Graph'!$H$1=58,'Cool Graph'!$H$1=66)","v":false},{"$f":"SUM(VLOOKUP($E199,AllData,COLUMN()-5-COLUMN($E199)),VLOOKUP($E199-1,AllData,COLUMN()-5-COLUMN($E199)),VLOOKUP($E199-2,AllData,COLUMN()-5-COLUMN($E199)),VLOOKUP($E199-3,AllData,COLUMN()-5-COLUMN($E199)),VLOOKUP($E199-4,AllData,COLUMN()-5-COLUMN($E199)),VLOOKUP($E199-5,AllData,COLUMN()-5-COLUMN($E199)),VLOOKUP($E199-6,AllData,COLUMN()-5-COLUMN($E199)))","v":{"$error":"#N/A"}},{"$f":"SUM(VLOOKUP($E199,AllData,COLUMN()-6-COLUMN($E199)),VLOOKUP($E199-1,AllData,COLUMN()-6-COLUMN($E199)),VLOOKUP($E199-2,AllData,COLUMN()-6-COLUMN($E199)),VLOOKUP($E199-3,AllData,COLUMN()-6-COLUMN($E199)),VLOOKUP($E199-4,AllData,COLUMN()-6-COLUMN($E199)),VLOOKUP($E199-5,AllData,COLUMN()-6-COLUMN($E199)),VLOOKUP($E199-6,AllData,COLUMN()-6-COLUMN($E199)),VLOOKUP($E199-7,AllData,COLUMN()-6-COLUMN($E199)),VLOOKUP($E199-8,AllData,COLUMN()-6-COLUMN($E199)),VLOOKUP($E199-9,AllData,COLUMN()-6-COLUMN($E199)),VLOOKUP($E199-10,AllData,COLUMN()-6-COLUMN($E199)),VLOOKUP($E199-11,AllData,COLUMN()-6-COLUMN($E199)),VLOOKUP($E199-12,AllData,COLUMN()-6-COLUMN($E199)),VLOOKUP($E199-13,AllData,COLUMN()-6-COLUMN($E199)),VLOOKUP($E199-14,AllData,COLUMN()-6-COLUMN($E199)),VLOOKUP($E199-15,AllData,COLUMN()-6-COLUMN($E199)),VLOOKUP($E199-16,AllData,COLUMN()-6-COLUMN($E199)),VLOOKUP($E199-17,AllData,COLUMN()-6-COLUMN($E199)),VLOOKUP($E199-18,AllData,COLUMN()-6-COLUMN($E199)),VLOOKUP($E199-19,AllData,COLUMN()-6-COLUMN($E199)),VLOOKUP($E199-20,AllData,COLUMN()-6-COLUMN($E199)),VLOOKUP($E199-21,AllData,COLUMN()-6-COLUMN($E199)),VLOOKUP($E199-22,AllData,COLUMN()-6-COLUMN($E199)),VLOOKUP($E199-23,AllData,COLUMN()-6-COLUMN($E199)),VLOOKUP($E199-24,AllData,COLUMN()-6-COLUMN($E199)),VLOOKUP($E199-25,AllData,COLUMN()-6-COLUMN($E199)),VLOOKUP($E199-26,AllData,COLUMN()-6-COLUMN($E199)),VLOOKUP($E199-27,AllData,COLUMN()-6-COLUMN($E199)),VLOOKUP($E199-28,AllData,COLUMN()-6-COLUMN($E199)),VLOOKUP($E199-29,AllData,COLUMN()-6-COLUMN($E199)))","v":{"$error":"#N/A"}},{"$f":"VLOOKUP($E199,AllData,COLUMN()-7-COLUMN($E199))","v":{"$error":"#N/A"}},{"$f":"OR('Cool Graph'!$I$1=35,'Cool Graph'!$I$1=36,'Cool Graph'!$I$1=37,'Cool Graph'!$I$1=38,'Cool Graph'!$I$1=39,'Cool Graph'!$I$1=40,'Cool Graph'!$I$1=41,'Cool Graph'!$I$1=42,'Cool Graph'!$I$1=43,'Cool Graph'!$I$1=44,'Cool Graph'!$I$1=45,'Cool Graph'!$I$1=46,'Cool Graph'!$I$1=47,'Cool Graph'!$I$1=58,'Cool Graph'!$I$1=66)","v":false}]
["2012-01-15",{"$f":"OFFSET(OldSchoolJustValues!A200,0,'Cool Graph'!$H$1)","v":0},{"$f":"OFFSET(OldSchoolJustValues!A200,0,'Cool Graph'!$I$1)","v":375.61797236740881},null,{"$f":"IF(NewDate>EndDate,NA(),NewDate)","v":{"$error":"#N/A"}},{"$f":"IF($E200>EndDate,NA(),IF($K$2=TRUE,N200,IF('Cool Graph'!$B$17=1,N200,IF('Cool Graph'!$B$17=2,L200,IF('Cool Graph'!$B$17=3,M200,)))))","v":{"$error":"#N/A"}},{"$f":"IF($E200>EndDate,NA(),IF($O$2=TRUE,J200,IF('Cool Graph'!$B$17=1,Data1!J200,IF('Cool Graph'!$B$17=2,Data1!H200,IF('Cool Graph'!$B$17=3,Data1!I200,)))))","v":{"$error":"#N/A"}},{"$f":"SUM(VLOOKUP($E200,AllData,COLUMN()-COLUMN($E200)),VLOOKUP($E200-1,AllData,COLUMN()-COLUMN($E200)),VLOOKUP($E200-2,AllData,COLUMN()-COLUMN($E200)),VLOOKUP($E200-3,AllData,COLUMN()-COLUMN($E200)),VLOOKUP($E200-4,AllData,COLUMN()-COLUMN($E200)),VLOOKUP($E200-5,AllData,COLUMN()-COLUMN($E200)),VLOOKUP($E200-6,AllData,COLUMN()-COLUMN($E200)))","v":{"$error":"#N/A"}},{"$f":"SUM(VLOOKUP($E200,AllData,COLUMN()-1-COLUMN($E200)),VLOOKUP($E200-1,AllData,COLUMN()-1-COLUMN($E200)),VLOOKUP($E200-2,AllData,COLUMN()-1-COLUMN($E200)),VLOOKUP($E200-3,AllData,COLUMN()-1-COLUMN($E200)),VLOOKUP($E200-4,AllData,COLUMN()-1-COLUMN($E200)),VLOOKUP($E200-5,AllData,COLUMN()-1-COLUMN($E200)),VLOOKUP($E200-6,AllData,COLUMN()-1-COLUMN($E200)),VLOOKUP($E200-7,AllData,COLUMN()-1-COLUMN($E200)),VLOOKUP($E200-8,AllData,COLUMN()-1-COLUMN($E200)),VLOOKUP($E200-9,AllData,COLUMN()-1-COLUMN($E200)),VLOOKUP($E200-10,AllData,COLUMN()-1-COLUMN($E200)),VLOOKUP($E200-11,AllData,COLUMN()-1-COLUMN($E200)),VLOOKUP($E200-12,AllData,COLUMN()-1-COLUMN($E200)),VLOOKUP($E200-13,AllData,COLUMN()-1-COLUMN($E200)),VLOOKUP($E200-14,AllData,COLUMN()-1-COLUMN($E200)),VLOOKUP($E200-15,AllData,COLUMN()-1-COLUMN($E200)),VLOOKUP($E200-16,AllData,COLUMN()-1-COLUMN($E200)),VLOOKUP($E200-17,AllData,COLUMN()-1-COLUMN($E200)),VLOOKUP($E200-18,AllData,COLUMN()-1-COLUMN($E200)),VLOOKUP($E200-19,AllData,COLUMN()-1-COLUMN($E200)),VLOOKUP($E200-20,AllData,COLUMN()-1-COLUMN($E200)),VLOOKUP($E200-21,AllData,COLUMN()-1-COLUMN($E200)),VLOOKUP($E200-22,AllData,COLUMN()-1-COLUMN($E200)),VLOOKUP($E200-23,AllData,COLUMN()-1-COLUMN($E200)),VLOOKUP($E200-24,AllData,COLUMN()-1-COLUMN($E200)),VLOOKUP($E200-25,AllData,COLUMN()-1-COLUMN($E200)),VLOOKUP($E200-26,AllData,COLUMN()-1-COLUMN($E200)),VLOOKUP($E200-27,AllData,COLUMN()-1-COLUMN($E200)),VLOOKUP($E200-28,AllData,COLUMN()-1-COLUMN($E200)),VLOOKUP($E200-29,AllData,COLUMN()-1-COLUMN($E200)))","v":{"$error":"#N/A"}},{"$f":"VLOOKUP($E200,AllData,COLUMN()-2-COLUMN($E200))","v":{"$error":"#N/A"}},{"$f":"OR('Cool Graph'!$H$1=35,'Cool Graph'!$H$1=36,'Cool Graph'!$H$1=37,'Cool Graph'!$H$1=38,'Cool Graph'!$H$1=39,'Cool Graph'!$H$1=40,'Cool Graph'!$H$1=41,'Cool Graph'!$H$1=42,'Cool Graph'!$H$1=43,'Cool Graph'!$H$1=44,'Cool Graph'!$H$1=45,'Cool Graph'!$H$1=46,'Cool Graph'!$H$1=47,'Cool Graph'!$H$1=58,'Cool Graph'!$H$1=66)","v":false},{"$f":"SUM(VLOOKUP($E200,AllData,COLUMN()-5-COLUMN($E200)),VLOOKUP($E200-1,AllData,COLUMN()-5-COLUMN($E200)),VLOOKUP($E200-2,AllData,COLUMN()-5-COLUMN($E200)),VLOOKUP($E200-3,AllData,COLUMN()-5-COLUMN($E200)),VLOOKUP($E200-4,AllData,COLUMN()-5-COLUMN($E200)),VLOOKUP($E200-5,AllData,COLUMN()-5-COLUMN($E200)),VLOOKUP($E200-6,AllData,COLUMN()-5-COLUMN($E200)))","v":{"$error":"#N/A"}},{"$f":"SUM(VLOOKUP($E200,AllData,COLUMN()-6-COLUMN($E200)),VLOOKUP($E200-1,AllData,COLUMN()-6-COLUMN($E200)),VLOOKUP($E200-2,AllData,COLUMN()-6-COLUMN($E200)),VLOOKUP($E200-3,AllData,COLUMN()-6-COLUMN($E200)),VLOOKUP($E200-4,AllData,COLUMN()-6-COLUMN($E200)),VLOOKUP($E200-5,AllData,COLUMN()-6-COLUMN($E200)),VLOOKUP($E200-6,AllData,COLUMN()-6-COLUMN($E200)),VLOOKUP($E200-7,AllData,COLUMN()-6-COLUMN($E200)),VLOOKUP($E200-8,AllData,COLUMN()-6-COLUMN($E200)),VLOOKUP($E200-9,AllData,COLUMN()-6-COLUMN($E200)),VLOOKUP($E200-10,AllData,COLUMN()-6-COLUMN($E200)),VLOOKUP($E200-11,AllData,COLUMN()-6-COLUMN($E200)),VLOOKUP($E200-12,AllData,COLUMN()-6-COLUMN($E200)),VLOOKUP($E200-13,AllData,COLUMN()-6-COLUMN($E200)),VLOOKUP($E200-14,AllData,COLUMN()-6-COLUMN($E200)),VLOOKUP($E200-15,AllData,COLUMN()-6-COLUMN($E200)),VLOOKUP($E200-16,AllData,COLUMN()-6-COLUMN($E200)),VLOOKUP($E200-17,AllData,COLUMN()-6-COLUMN($E200)),VLOOKUP($E200-18,AllData,COLUMN()-6-COLUMN($E200)),VLOOKUP($E200-19,AllData,COLUMN()-6-COLUMN($E200)),VLOOKUP($E200-20,AllData,COLUMN()-6-COLUMN($E200)),VLOOKUP($E200-21,AllData,COLUMN()-6-COLUMN($E200)),VLOOKUP($E200-22,AllData,COLUMN()-6-COLUMN($E200)),VLOOKUP($E200-23,AllData,COLUMN()-6-COLUMN($E200)),VLOOKUP($E200-24,AllData,COLUMN()-6-COLUMN($E200)),VLOOKUP($E200-25,AllData,COLUMN()-6-COLUMN($E200)),VLOOKUP($E200-26,AllData,COLUMN()-6-COLUMN($E200)),VLOOKUP($E200-27,AllData,COLUMN()-6-COLUMN($E200)),VLOOKUP($E200-28,AllData,COLUMN()-6-COLUMN($E200)),VLOOKUP($E200-29,AllData,COLUMN()-6-COLUMN($E200)))","v":{"$error":"#N/A"}},{"$f":"VLOOKUP($E200,AllData,COLUMN()-7-COLUMN($E200))","v":{"$error":"#N/A"}},{"$f":"OR('Cool Graph'!$I$1=35,'Cool Graph'!$I$1=36,'Cool Graph'!$I$1=37,'Cool Graph'!$I$1=38,'Cool Graph'!$I$1=39,'Cool Graph'!$I$1=40,'Cool Graph'!$I$1=41,'Cool Graph'!$I$1=42,'Cool Graph'!$I$1=43,'Cool Graph'!$I$1=44,'Cool Graph'!$I$1=45,'Cool Graph'!$I$1=46,'Cool Graph'!$I$1=47,'Cool Graph'!$I$1=58,'Cool Graph'!$I$1=66)","v":false}]
["2012-01-16",{"$f":"OFFSET(OldSchoolJustValues!A201,0,'Cool Graph'!$H$1)","v":0},{"$f":"OFFSET(OldSchoolJustValues!A201,0,'Cool Graph'!$I$1)","v":163.83220016019453},null,{"$f":"IF(NewDate>EndDate,NA(),NewDate)","v":{"$error":"#N/A"}},{"$f":"IF($E201>EndDate,NA(),IF($K$2=TRUE,N201,IF('Cool Graph'!$B$17=1,N201,IF('Cool Graph'!$B$17=2,L201,IF('Cool Graph'!$B$17=3,M201,)))))","v":{"$error":"#N/A"}},{"$f":"IF($E201>EndDate,NA(),IF($O$2=TRUE,J201,IF('Cool Graph'!$B$17=1,Data1!J201,IF('Cool Graph'!$B$17=2,Data1!H201,IF('Cool Graph'!$B$17=3,Data1!I201,)))))","v":{"$error":"#N/A"}},{"$f":"SUM(VLOOKUP($E201,AllData,COLUMN()-COLUMN($E201)),VLOOKUP($E201-1,AllData,COLUMN()-COLUMN($E201)),VLOOKUP($E201-2,AllData,COLUMN()-COLUMN($E201)),VLOOKUP($E201-3,AllData,COLUMN()-COLUMN($E201)),VLOOKUP($E201-4,AllData,COLUMN()-COLUMN($E201)),VLOOKUP($E201-5,AllData,COLUMN()-COLUMN($E201)),VLOOKUP($E201-6,AllData,COLUMN()-COLUMN($E201)))","v":{"$error":"#N/A"}},{"$f":"SUM(VLOOKUP($E201,AllData,COLUMN()-1-COLUMN($E201)),VLOOKUP($E201-1,AllData,COLUMN()-1-COLUMN($E201)),VLOOKUP($E201-2,AllData,COLUMN()-1-COLUMN($E201)),VLOOKUP($E201-3,AllData,COLUMN()-1-COLUMN($E201)),VLOOKUP($E201-4,AllData,COLUMN()-1-COLUMN($E201)),VLOOKUP($E201-5,AllData,COLUMN()-1-COLUMN($E201)),VLOOKUP($E201-6,AllData,COLUMN()-1-COLUMN($E201)),VLOOKUP($E201-7,AllData,COLUMN()-1-COLUMN($E201)),VLOOKUP($E201-8,AllData,COLUMN()-1-COLUMN($E201)),VLOOKUP($E201-9,AllData,COLUMN()-1-COLUMN($E201)),VLOOKUP($E201-10,AllData,COLUMN()-1-COLUMN($E201)),VLOOKUP($E201-11,AllData,COLUMN()-1-COLUMN($E201)),VLOOKUP($E201-12,AllData,COLUMN()-1-COLUMN($E201)),VLOOKUP($E201-13,AllData,COLUMN()-1-COLUMN($E201)),VLOOKUP($E201-14,AllData,COLUMN()-1-COLUMN($E201)),VLOOKUP($E201-15,AllData,COLUMN()-1-COLUMN($E201)),VLOOKUP($E201-16,AllData,COLUMN()-1-COLUMN($E201)),VLOOKUP($E201-17,AllData,COLUMN()-1-COLUMN($E201)),VLOOKUP($E201-18,AllData,COLUMN()-1-COLUMN($E201)),VLOOKUP($E201-19,AllData,COLUMN()-1-COLUMN($E201)),VLOOKUP($E201-20,AllData,COLUMN()-1-COLUMN($E201)),VLOOKUP($E201-21,AllData,COLUMN()-1-COLUMN($E201)),VLOOKUP($E201-22,AllData,COLUMN()-1-COLUMN($E201)),VLOOKUP($E201-23,AllData,COLUMN()-1-COLUMN($E201)),VLOOKUP($E201-24,AllData,COLUMN()-1-COLUMN($E201)),VLOOKUP($E201-25,AllData,COLUMN()-1-COLUMN($E201)),VLOOKUP($E201-26,AllData,COLUMN()-1-COLUMN($E201)),VLOOKUP($E201-27,AllData,COLUMN()-1-COLUMN($E201)),VLOOKUP($E201-28,AllData,COLUMN()-1-COLUMN($E201)),VLOOKUP($E201-29,AllData,COLUMN()-1-COLUMN($E201)))","v":{"$error":"#N/A"}},{"$f":"VLOOKUP($E201,AllData,COLUMN()-2-COLUMN($E201))","v":{"$error":"#N/A"}},{"$f":"OR('Cool Graph'!$H$1=35,'Cool Graph'!$H$1=36,'Cool Graph'!$H$1=37,'Cool Graph'!$H$1=38,'Cool Graph'!$H$1=39,'Cool Graph'!$H$1=40,'Cool Graph'!$H$1=41,'Cool Graph'!$H$1=42,'Cool Graph'!$H$1=43,'Cool Graph'!$H$1=44,'Cool Graph'!$H$1=45,'Cool Graph'!$H$1=46,'Cool Graph'!$H$1=47,'Cool Graph'!$H$1=58,'Cool Graph'!$H$1=66)","v":false},{"$f":"SUM(VLOOKUP($E201,AllData,COLUMN()-5-COLUMN($E201)),VLOOKUP($E201-1,AllData,COLUMN()-5-COLUMN($E201)),VLOOKUP($E201-2,AllData,COLUMN()-5-COLUMN($E201)),VLOOKUP($E201-3,AllData,COLUMN()-5-COLUMN($E201)),VLOOKUP($E201-4,AllData,COLUMN()-5-COLUMN($E201)),VLOOKUP($E201-5,AllData,COLUMN()-5-COLUMN($E201)),VLOOKUP($E201-6,AllData,COLUMN()-5-COLUMN($E201)))","v":{"$error":"#N/A"}},{"$f":"SUM(VLOOKUP($E201,AllData,COLUMN()-6-COLUMN($E201)),VLOOKUP($E201-1,AllData,COLUMN()-6-COLUMN($E201)),VLOOKUP($E201-2,AllData,COLUMN()-6-COLUMN($E201)),VLOOKUP($E201-3,AllData,COLUMN()-6-COLUMN($E201)),VLOOKUP($E201-4,AllData,COLUMN()-6-COLUMN($E201)),VLOOKUP($E201-5,AllData,COLUMN()-6-COLUMN($E201)),VLOOKUP($E201-6,AllData,COLUMN()-6-COLUMN($E201)),VLOOKUP($E201-7,AllData,COLUMN()-6-COLUMN($E201)),VLOOKUP($E201-8,AllData,COLUMN()-6-COLUMN($E201)),VLOOKUP($E201-9,AllData,COLUMN()-6-COLUMN($E201)),VLOOKUP($E201-10,AllData,COLUMN()-6-COLUMN($E201)),VLOOKUP($E201-11,AllData,COLUMN()-6-COLUMN($E201)),VLOOKUP($E201-12,AllData,COLUMN()-6-COLUMN($E201)),VLOOKUP($E201-13,AllData,COLUMN()-6-COLUMN($E201)),VLOOKUP($E201-14,AllData,COLUMN()-6-COLUMN($E201)),VLOOKUP($E201-15,AllData,COLUMN()-6-COLUMN($E201)),VLOOKUP($E201-16,AllData,COLUMN()-6-COLUMN($E201)),VLOOKUP($E201-17,AllData,COLUMN()-6-COLUMN($E201)),VLOOKUP($E201-18,AllData,COLUMN()-6-COLUMN($E201)),VLOOKUP($E201-19,AllData,COLUMN()-6-COLUMN($E201)),VLOOKUP($E201-20,AllData,COLUMN()-6-COLUMN($E201)),VLOOKUP($E201-21,AllData,COLUMN()-6-COLUMN($E201)),VLOOKUP($E201-22,AllData,COLUMN()-6-COLUMN($E201)),VLOOKUP($E201-23,AllData,COLUMN()-6-COLUMN($E201)),VLOOKUP($E201-24,AllData,COLUMN()-6-COLUMN($E201)),VLOOKUP($E201-25,AllData,COLUMN()-6-COLUMN($E201)),VLOOKUP($E201-26,AllData,COLUMN()-6-COLUMN($E201)),VLOOKUP($E201-27,AllData,COLUMN()-6-COLUMN($E201)),VLOOKUP($E201-28,AllData,COLUMN()-6-COLUMN($E201)),VLOOKUP($E201-29,AllData,COLUMN()-6-COLUMN($E201)))","v":{"$error":"#N/A"}},{"$f":"VLOOKUP($E201,AllData,COLUMN()-7-COLUMN($E201))","v":{"$error":"#N/A"}},{"$f":"OR('Cool Graph'!$I$1=35,'Cool Graph'!$I$1=36,'Cool Graph'!$I$1=37,'Cool Graph'!$I$1=38,'Cool Graph'!$I$1=39,'Cool Graph'!$I$1=40,'Cool Graph'!$I$1=41,'Cool Graph'!$I$1=42,'Cool Graph'!$I$1=43,'Cool Graph'!$I$1=44,'Cool Graph'!$I$1=45,'Cool Graph'!$I$1=46,'Cool Graph'!$I$1=47,'Cool Graph'!$I$1=58,'Cool Graph'!$I$1=66)","v":false}]
["2012-01-17",{"$f":"OFFSET(OldSchoolJustValues!A202,0,'Cool Graph'!$H$1)","v":229.19},{"$f":"OFFSET(OldSchoolJustValues!A202,0,'Cool Graph'!$I$1)","v":330.1948003434598},null,{"$f":"IF(NewDate>EndDate,NA(),NewDate)","v":{"$error":"#N/A"}},{"$f":"IF($E202>EndDate,NA(),IF($K$2=TRUE,N202,IF('Cool Graph'!$B$17=1,N202,IF('Cool Graph'!$B$17=2,L202,IF('Cool Graph'!$B$17=3,M202,)))))","v":{"$error":"#N/A"}},{"$f":"IF($E202>EndDate,NA(),IF($O$2=TRUE,J202,IF('Cool Graph'!$B$17=1,Data1!J202,IF('Cool Graph'!$B$17=2,Data1!H202,IF('Cool Graph'!$B$17=3,Data1!I202,)))))","v":{"$error":"#N/A"}},{"$f":"SUM(VLOOKUP($E202,AllData,COLUMN()-COLUMN($E202)),VLOOKUP($E202-1,AllData,COLUMN()-COLUMN($E202)),VLOOKUP($E202-2,AllData,COLUMN()-COLUMN($E202)),VLOOKUP($E202-3,AllData,COLUMN()-COLUMN($E202)),VLOOKUP($E202-4,AllData,COLUMN()-COLUMN($E202)),VLOOKUP($E202-5,AllData,COLUMN()-COLUMN($E202)),VLOOKUP($E202-6,AllData,COLUMN()-COLUMN($E202)))","v":{"$error":"#N/A"}},{"$f":"SUM(VLOOKUP($E202,AllData,COLUMN()-1-COLUMN($E202)),VLOOKUP($E202-1,AllData,COLUMN()-1-COLUMN($E202)),VLOOKUP($E202-2,AllData,COLUMN()-1-COLUMN($E202)),VLOOKUP($E202-3,AllData,COLUMN()-1-COLUMN($E202)),VLOOKUP($E202-4,AllData,COLUMN()-1-COLUMN($E202)),VLOOKUP($E202-5,AllData,COLUMN()-1-COLUMN($E202)),VLOOKUP($E202-6,AllData,COLUMN()-1-COLUMN($E202)),VLOOKUP($E202-7,AllData,COLUMN()-1-COLUMN($E202)),VLOOKUP($E202-8,AllData,COLUMN()-1-COLUMN($E202)),VLOOKUP($E202-9,AllData,COLUMN()-1-COLUMN($E202)),VLOOKUP($E202-10,AllData,COLUMN()-1-COLUMN($E202)),VLOOKUP($E202-11,AllData,COLUMN()-1-COLUMN($E202)),VLOOKUP($E202-12,AllData,COLUMN()-1-COLUMN($E202)),VLOOKUP($E202-13,AllData,COLUMN()-1-COLUMN($E202)),VLOOKUP($E202-14,AllData,COLUMN()-1-COLUMN($E202)),VLOOKUP($E202-15,AllData,COLUMN()-1-COLUMN($E202)),VLOOKUP($E202-16,AllData,COLUMN()-1-COLUMN($E202)),VLOOKUP($E202-17,AllData,COLUMN()-1-COLUMN($E202)),VLOOKUP($E202-18,AllData,COLUMN()-1-COLUMN($E202)),VLOOKUP($E202-19,AllData,COLUMN()-1-COLUMN($E202)),VLOOKUP($E202-20,AllData,COLUMN()-1-COLUMN($E202)),VLOOKUP($E202-21,AllData,COLUMN()-1-COLUMN($E202)),VLOOKUP($E202-22,AllData,COLUMN()-1-COLUMN($E202)),VLOOKUP($E202-23,AllData,COLUMN()-1-COLUMN($E202)),VLOOKUP($E202-24,AllData,COLUMN()-1-COLUMN($E202)),VLOOKUP($E202-25,AllData,COLUMN()-1-COLUMN($E202)),VLOOKUP($E202-26,AllData,COLUMN()-1-COLUMN($E202)),VLOOKUP($E202-27,AllData,COLUMN()-1-COLUMN($E202)),VLOOKUP($E202-28,AllData,COLUMN()-1-COLUMN($E202)),VLOOKUP($E202-29,AllData,COLUMN()-1-COLUMN($E202)))","v":{"$error":"#N/A"}},{"$f":"VLOOKUP($E202,AllData,COLUMN()-2-COLUMN($E202))","v":{"$error":"#N/A"}},{"$f":"OR('Cool Graph'!$H$1=35,'Cool Graph'!$H$1=36,'Cool Graph'!$H$1=37,'Cool Graph'!$H$1=38,'Cool Graph'!$H$1=39,'Cool Graph'!$H$1=40,'Cool Graph'!$H$1=41,'Cool Graph'!$H$1=42,'Cool Graph'!$H$1=43,'Cool Graph'!$H$1=44,'Cool Graph'!$H$1=45,'Cool Graph'!$H$1=46,'Cool Graph'!$H$1=47,'Cool Graph'!$H$1=58,'Cool Graph'!$H$1=66)","v":false},{"$f":"SUM(VLOOKUP($E202,AllData,COLUMN()-5-COLUMN($E202)),VLOOKUP($E202-1,AllData,COLUMN()-5-COLUMN($E202)),VLOOKUP($E202-2,AllData,COLUMN()-5-COLUMN($E202)),VLOOKUP($E202-3,AllData,COLUMN()-5-COLUMN($E202)),VLOOKUP($E202-4,AllData,COLUMN()-5-COLUMN($E202)),VLOOKUP($E202-5,AllData,COLUMN()-5-COLUMN($E202)),VLOOKUP($E202-6,AllData,COLUMN()-5-COLUMN($E202)))","v":{"$error":"#N/A"}},{"$f":"SUM(VLOOKUP($E202,AllData,COLUMN()-6-COLUMN($E202)),VLOOKUP($E202-1,AllData,COLUMN()-6-COLUMN($E202)),VLOOKUP($E202-2,AllData,COLUMN()-6-COLUMN($E202)),VLOOKUP($E202-3,AllData,COLUMN()-6-COLUMN($E202)),VLOOKUP($E202-4,AllData,COLUMN()-6-COLUMN($E202)),VLOOKUP($E202-5,AllData,COLUMN()-6-COLUMN($E202)),VLOOKUP($E202-6,AllData,COLUMN()-6-COLUMN($E202)),VLOOKUP($E202-7,AllData,COLUMN()-6-COLUMN($E202)),VLOOKUP($E202-8,AllData,COLUMN()-6-COLUMN($E202)),VLOOKUP($E202-9,AllData,COLUMN()-6-COLUMN($E202)),VLOOKUP($E202-10,AllData,COLUMN()-6-COLUMN($E202)),VLOOKUP($E202-11,AllData,COLUMN()-6-COLUMN($E202)),VLOOKUP($E202-12,AllData,COLUMN()-6-COLUMN($E202)),VLOOKUP($E202-13,AllData,COLUMN()-6-COLUMN($E202)),VLOOKUP($E202-14,AllData,COLUMN()-6-COLUMN($E202)),VLOOKUP($E202-15,AllData,COLUMN()-6-COLUMN($E202)),VLOOKUP($E202-16,AllData,COLUMN()-6-COLUMN($E202)),VLOOKUP($E202-17,AllData,COLUMN()-6-COLUMN($E202)),VLOOKUP($E202-18,AllData,COLUMN()-6-COLUMN($E202)),VLOOKUP($E202-19,AllData,COLUMN()-6-COLUMN($E202)),VLOOKUP($E202-20,AllData,COLUMN()-6-COLUMN($E202)),VLOOKUP($E202-21,AllData,COLUMN()-6-COLUMN($E202)),VLOOKUP($E202-22,AllData,COLUMN()-6-COLUMN($E202)),VLOOKUP($E202-23,AllData,COLUMN()-6-COLUMN($E202)),VLOOKUP($E202-24,AllData,COLUMN()-6-COLUMN($E202)),VLOOKUP($E202-25,AllData,COLUMN()-6-COLUMN($E202)),VLOOKUP($E202-26,AllData,COLUMN()-6-COLUMN($E202)),VLOOKUP($E202-27,AllData,COLUMN()-6-COLUMN($E202)),VLOOKUP($E202-28,AllData,COLUMN()-6-COLUMN($E202)),VLOOKUP($E202-29,AllData,COLUMN()-6-COLUMN($E202)))","v":{"$error":"#N/A"}},{"$f":"VLOOKUP($E202,AllData,COLUMN()-7-COLUMN($E202))","v":{"$error":"#N/A"}},{"$f":"OR('Cool Graph'!$I$1=35,'Cool Graph'!$I$1=36,'Cool Graph'!$I$1=37,'Cool Graph'!$I$1=38,'Cool Graph'!$I$1=39,'Cool Graph'!$I$1=40,'Cool Graph'!$I$1=41,'Cool Graph'!$I$1=42,'Cool Graph'!$I$1=43,'Cool Graph'!$I$1=44,'Cool Graph'!$I$1=45,'Cool Graph'!$I$1=46,'Cool Graph'!$I$1=47,'Cool Graph'!$I$1=58,'Cool Graph'!$I$1=66)","v":false}]
["2012-01-18",{"$f":"OFFSET(OldSchoolJustValues!A203,0,'Cool Graph'!$H$1)","v":110.83},{"$f":"OFFSET(OldSchoolJustValues!A203,0,'Cool Graph'!$I$1)","v":639.29991287487121},null,{"$f":"IF(NewDate>EndDate,NA(),NewDate)","v":{"$error":"#N/A"}},{"$f":"IF($E203>EndDate,NA(),IF($K$2=TRUE,N203,IF('Cool Graph'!$B$17=1,N203,IF('Cool Graph'!$B$17=2,L203,IF('Cool Graph'!$B$17=3,M203,)))))","v":{"$error":"#N/A"}},{"$f":"IF($E203>EndDate,NA(),IF($O$2=TRUE,J203,IF('Cool Graph'!$B$17=1,Data1!J203,IF('Cool Graph'!$B$17=2,Data1!H203,IF('Cool Graph'!$B$17=3,Data1!I203,)))))","v":{"$error":"#N/A"}},{"$f":"SUM(VLOOKUP($E203,AllData,COLUMN()-COLUMN($E203)),VLOOKUP($E203-1,AllData,COLUMN()-COLUMN($E203)),VLOOKUP($E203-2,AllData,COLUMN()-COLUMN($E203)),VLOOKUP($E203-3,AllData,COLUMN()-COLUMN($E203)),VLOOKUP($E203-4,AllData,COLUMN()-COLUMN($E203)),VLOOKUP($E203-5,AllData,COLUMN()-COLUMN($E203)),VLOOKUP($E203-6,AllData,COLUMN()-COLUMN($E203)))","v":{"$error":"#N/A"}},{"$f":"SUM(VLOOKUP($E203,AllData,COLUMN()-1-COLUMN($E203)),VLOOKUP($E203-1,AllData,COLUMN()-1-COLUMN($E203)),VLOOKUP($E203-2,AllData,COLUMN()-1-COLUMN($E203)),VLOOKUP($E203-3,AllData,COLUMN()-1-COLUMN($E203)),VLOOKUP($E203-4,AllData,COLUMN()-1-COLUMN($E203)),VLOOKUP($E203-5,AllData,COLUMN()-1-COLUMN($E203)),VLOOKUP($E203-6,AllData,COLUMN()-1-COLUMN($E203)),VLOOKUP($E203-7,AllData,COLUMN()-1-COLUMN($E203)),VLOOKUP($E203-8,AllData,COLUMN()-1-COLUMN($E203)),VLOOKUP($E203-9,AllData,COLUMN()-1-COLUMN($E203)),VLOOKUP($E203-10,AllData,COLUMN()-1-COLUMN($E203)),VLOOKUP($E203-11,AllData,COLUMN()-1-COLUMN($E203)),VLOOKUP($E203-12,AllData,COLUMN()-1-COLUMN($E203)),VLOOKUP($E203-13,AllData,COLUMN()-1-COLUMN($E203)),VLOOKUP($E203-14,AllData,COLUMN()-1-COLUMN($E203)),VLOOKUP($E203-15,AllData,COLUMN()-1-COLUMN($E203)),VLOOKUP($E203-16,AllData,COLUMN()-1-COLUMN($E203)),VLOOKUP($E203-17,AllData,COLUMN()-1-COLUMN($E203)),VLOOKUP($E203-18,AllData,COLUMN()-1-COLUMN($E203)),VLOOKUP($E203-19,AllData,COLUMN()-1-COLUMN($E203)),VLOOKUP($E203-20,AllData,COLUMN()-1-COLUMN($E203)),VLOOKUP($E203-21,AllData,COLUMN()-1-COLUMN($E203)),VLOOKUP($E203-22,AllData,COLUMN()-1-COLUMN($E203)),VLOOKUP($E203-23,AllData,COLUMN()-1-COLUMN($E203)),VLOOKUP($E203-24,AllData,COLUMN()-1-COLUMN($E203)),VLOOKUP($E203-25,AllData,COLUMN()-1-COLUMN($E203)),VLOOKUP($E203-26,AllData,COLUMN()-1-COLUMN($E203)),VLOOKUP($E203-27,AllData,COLUMN()-1-COLUMN($E203)),VLOOKUP($E203-28,AllData,COLUMN()-1-COLUMN($E203)),VLOOKUP($E203-29,AllData,COLUMN()-1-COLUMN($E203)))","v":{"$error":"#N/A"}},{"$f":"VLOOKUP($E203,AllData,COLUMN()-2-COLUMN($E203))","v":{"$error":"#N/A"}},{"$f":"OR('Cool Graph'!$H$1=35,'Cool Graph'!$H$1=36,'Cool Graph'!$H$1=37,'Cool Graph'!$H$1=38,'Cool Graph'!$H$1=39,'Cool Graph'!$H$1=40,'Cool Graph'!$H$1=41,'Cool Graph'!$H$1=42,'Cool Graph'!$H$1=43,'Cool Graph'!$H$1=44,'Cool Graph'!$H$1=45,'Cool Graph'!$H$1=46,'Cool Graph'!$H$1=47,'Cool Graph'!$H$1=58,'Cool Graph'!$H$1=66)","v":false},{"$f":"SUM(VLOOKUP($E203,AllData,COLUMN()-5-COLUMN($E203)),VLOOKUP($E203-1,AllData,COLUMN()-5-COLUMN($E203)),VLOOKUP($E203-2,AllData,COLUMN()-5-COLUMN($E203)),VLOOKUP($E203-3,AllData,COLUMN()-5-COLUMN($E203)),VLOOKUP($E203-4,AllData,COLUMN()-5-COLUMN($E203)),VLOOKUP($E203-5,AllData,COLUMN()-5-COLUMN($E203)),VLOOKUP($E203-6,AllData,COLUMN()-5-COLUMN($E203)))","v":{"$error":"#N/A"}},{"$f":"SUM(VLOOKUP($E203,AllData,COLUMN()-6-COLUMN($E203)),VLOOKUP($E203-1,AllData,COLUMN()-6-COLUMN($E203)),VLOOKUP($E203-2,AllData,COLUMN()-6-COLUMN($E203)),VLOOKUP($E203-3,AllData,COLUMN()-6-COLUMN($E203)),VLOOKUP($E203-4,AllData,COLUMN()-6-COLUMN($E203)),VLOOKUP($E203-5,AllData,COLUMN()-6-COLUMN($E203)),VLOOKUP($E203-6,AllData,COLUMN()-6-COLUMN($E203)),VLOOKUP($E203-7,AllData,COLUMN()-6-COLUMN($E203)),VLOOKUP($E203-8,AllData,COLUMN()-6-COLUMN($E203)),VLOOKUP($E203-9,AllData,COLUMN()-6-COLUMN($E203)),VLOOKUP($E203-10,AllData,COLUMN()-6-COLUMN($E203)),VLOOKUP($E203-11,AllData,COLUMN()-6-COLUMN($E203)),VLOOKUP($E203-12,AllData,COLUMN()-6-COLUMN($E203)),VLOOKUP($E203-13,AllData,COLUMN()-6-COLUMN($E203)),VLOOKUP($E203-14,AllData,COLUMN()-6-COLUMN($E203)),VLOOKUP($E203-15,AllData,COLUMN()-6-COLUMN($E203)),VLOOKUP($E203-16,AllData,COLUMN()-6-COLUMN($E203)),VLOOKUP($E203-17,AllData,COLUMN()-6-COLUMN($E203)),VLOOKUP($E203-18,AllData,COLUMN()-6-COLUMN($E203)),VLOOKUP($E203-19,AllData,COLUMN()-6-COLUMN($E203)),VLOOKUP($E203-20,AllData,COLUMN()-6-COLUMN($E203)),VLOOKUP($E203-21,AllData,COLUMN()-6-COLUMN($E203)),VLOOKUP($E203-22,AllData,COLUMN()-6-COLUMN($E203)),VLOOKUP($E203-23,AllData,COLUMN()-6-COLUMN($E203)),VLOOKUP($E203-24,AllData,COLUMN()-6-COLUMN($E203)),VLOOKUP($E203-25,AllData,COLUMN()-6-COLUMN($E203)),VLOOKUP($E203-26,AllData,COLUMN()-6-COLUMN($E203)),VLOOKUP($E203-27,AllData,COLUMN()-6-COLUMN($E203)),VLOOKUP($E203-28,AllData,COLUMN()-6-COLUMN($E203)),VLOOKUP($E203-29,AllData,COLUMN()-6-COLUMN($E203)))","v":{"$error":"#N/A"}},{"$f":"VLOOKUP($E203,AllData,COLUMN()-7-COLUMN($E203))","v":{"$error":"#N/A"}},{"$f":"OR('Cool Graph'!$I$1=35,'Cool Graph'!$I$1=36,'Cool Graph'!$I$1=37,'Cool Graph'!$I$1=38,'Cool Graph'!$I$1=39,'Cool Graph'!$I$1=40,'Cool Graph'!$I$1=41,'Cool Graph'!$I$1=42,'Cool Graph'!$I$1=43,'Cool Graph'!$I$1=44,'Cool Graph'!$I$1=45,'Cool Graph'!$I$1=46,'Cool Graph'!$I$1=47,'Cool Graph'!$I$1=58,'Cool Graph'!$I$1=66)","v":false}]
["2012-01-19",{"$f":"OFFSET(OldSchoolJustValues!A204,0,'Cool Graph'!$H$1)","v":61.26},{"$f":"OFFSET(OldSchoolJustValues!A204,0,'Cool Graph'!$I$1)","v":961.29401200304164},null,{"$f":"IF(NewDate>EndDate,NA(),NewDate)","v":{"$error":"#N/A"}},{"$f":"IF($E204>EndDate,NA(),IF($K$2=TRUE,N204,IF('Cool Graph'!$B$17=1,N204,IF('Cool Graph'!$B$17=2,L204,IF('Cool Graph'!$B$17=3,M204,)))))","v":{"$error":"#N/A"}},{"$f":"IF($E204>EndDate,NA(),IF($O$2=TRUE,J204,IF('Cool Graph'!$B$17=1,Data1!J204,IF('Cool Graph'!$B$17=2,Data1!H204,IF('Cool Graph'!$B$17=3,Data1!I204,)))))","v":{"$error":"#N/A"}},{"$f":"SUM(VLOOKUP($E204,AllData,COLUMN()-COLUMN($E204)),VLOOKUP($E204-1,AllData,COLUMN()-COLUMN($E204)),VLOOKUP($E204-2,AllData,COLUMN()-COLUMN($E204)),VLOOKUP($E204-3,AllData,COLUMN()-COLUMN($E204)),VLOOKUP($E204-4,AllData,COLUMN()-COLUMN($E204)),VLOOKUP($E204-5,AllData,COLUMN()-COLUMN($E204)),VLOOKUP($E204-6,AllData,COLUMN()-COLUMN($E204)))","v":{"$error":"#N/A"}},{"$f":"SUM(VLOOKUP($E204,AllData,COLUMN()-1-COLUMN($E204)),VLOOKUP($E204-1,AllData,COLUMN()-1-COLUMN($E204)),VLOOKUP($E204-2,AllData,COLUMN()-1-COLUMN($E204)),VLOOKUP($E204-3,AllData,COLUMN()-1-COLUMN($E204)),VLOOKUP($E204-4,AllData,COLUMN()-1-COLUMN($E204)),VLOOKUP($E204-5,AllData,COLUMN()-1-COLUMN($E204)),VLOOKUP($E204-6,AllData,COLUMN()-1-COLUMN($E204)),VLOOKUP($E204-7,AllData,COLUMN()-1-COLUMN($E204)),VLOOKUP($E204-8,AllData,COLUMN()-1-COLUMN($E204)),VLOOKUP($E204-9,AllData,COLUMN()-1-COLUMN($E204)),VLOOKUP($E204-10,AllData,COLUMN()-1-COLUMN($E204)),VLOOKUP($E204-11,AllData,COLUMN()-1-COLUMN($E204)),VLOOKUP($E204-12,AllData,COLUMN()-1-COLUMN($E204)),VLOOKUP($E204-13,AllData,COLUMN()-1-COLUMN($E204)),VLOOKUP($E204-14,AllData,COLUMN()-1-COLUMN($E204)),VLOOKUP($E204-15,AllData,COLUMN()-1-COLUMN($E204)),VLOOKUP($E204-16,AllData,COLUMN()-1-COLUMN($E204)),VLOOKUP($E204-17,AllData,COLUMN()-1-COLUMN($E204)),VLOOKUP($E204-18,AllData,COLUMN()-1-COLUMN($E204)),VLOOKUP($E204-19,AllData,COLUMN()-1-COLUMN($E204)),VLOOKUP($E204-20,AllData,COLUMN()-1-COLUMN($E204)),VLOOKUP($E204-21,AllData,COLUMN()-1-COLUMN($E204)),VLOOKUP($E204-22,AllData,COLUMN()-1-COLUMN($E204)),VLOOKUP($E204-23,AllData,COLUMN()-1-COLUMN($E204)),VLOOKUP($E204-24,AllData,COLUMN()-1-COLUMN($E204)),VLOOKUP($E204-25,AllData,COLUMN()-1-COLUMN($E204)),VLOOKUP($E204-26,AllData,COLUMN()-1-COLUMN($E204)),VLOOKUP($E204-27,AllData,COLUMN()-1-COLUMN($E204)),VLOOKUP($E204-28,AllData,COLUMN()-1-COLUMN($E204)),VLOOKUP($E204-29,AllData,COLUMN()-1-COLUMN($E204)))","v":{"$error":"#N/A"}},{"$f":"VLOOKUP($E204,AllData,COLUMN()-2-COLUMN($E204))","v":{"$error":"#N/A"}},{"$f":"OR('Cool Graph'!$H$1=35,'Cool Graph'!$H$1=36,'Cool Graph'!$H$1=37,'Cool Graph'!$H$1=38,'Cool Graph'!$H$1=39,'Cool Graph'!$H$1=40,'Cool Graph'!$H$1=41,'Cool Graph'!$H$1=42,'Cool Graph'!$H$1=43,'Cool Graph'!$H$1=44,'Cool Graph'!$H$1=45,'Cool Graph'!$H$1=46,'Cool Graph'!$H$1=47,'Cool Graph'!$H$1=58,'Cool Graph'!$H$1=66)","v":false},{"$f":"SUM(VLOOKUP($E204,AllData,COLUMN()-5-COLUMN($E204)),VLOOKUP($E204-1,AllData,COLUMN()-5-COLUMN($E204)),VLOOKUP($E204-2,AllData,COLUMN()-5-COLUMN($E204)),VLOOKUP($E204-3,AllData,COLUMN()-5-COLUMN($E204)),VLOOKUP($E204-4,AllData,COLUMN()-5-COLUMN($E204)),VLOOKUP($E204-5,AllData,COLUMN()-5-COLUMN($E204)),VLOOKUP($E204-6,AllData,COLUMN()-5-COLUMN($E204)))","v":{"$error":"#N/A"}},{"$f":"SUM(VLOOKUP($E204,AllData,COLUMN()-6-COLUMN($E204)),VLOOKUP($E204-1,AllData,COLUMN()-6-COLUMN($E204)),VLOOKUP($E204-2,AllData,COLUMN()-6-COLUMN($E204)),VLOOKUP($E204-3,AllData,COLUMN()-6-COLUMN($E204)),VLOOKUP($E204-4,AllData,COLUMN()-6-COLUMN($E204)),VLOOKUP($E204-5,AllData,COLUMN()-6-COLUMN($E204)),VLOOKUP($E204-6,AllData,COLUMN()-6-COLUMN($E204)),VLOOKUP($E204-7,AllData,COLUMN()-6-COLUMN($E204)),VLOOKUP($E204-8,AllData,COLUMN()-6-COLUMN($E204)),VLOOKUP($E204-9,AllData,COLUMN()-6-COLUMN($E204)),VLOOKUP($E204-10,AllData,COLUMN()-6-COLUMN($E204)),VLOOKUP($E204-11,AllData,COLUMN()-6-COLUMN($E204)),VLOOKUP($E204-12,AllData,COLUMN()-6-COLUMN($E204)),VLOOKUP($E204-13,AllData,COLUMN()-6-COLUMN($E204)),VLOOKUP($E204-14,AllData,COLUMN()-6-COLUMN($E204)),VLOOKUP($E204-15,AllData,COLUMN()-6-COLUMN($E204)),VLOOKUP($E204-16,AllData,COLUMN()-6-COLUMN($E204)),VLOOKUP($E204-17,AllData,COLUMN()-6-COLUMN($E204)),VLOOKUP($E204-18,AllData,COLUMN()-6-COLUMN($E204)),VLOOKUP($E204-19,AllData,COLUMN()-6-COLUMN($E204)),VLOOKUP($E204-20,AllData,COLUMN()-6-COLUMN($E204)),VLOOKUP($E204-21,AllData,COLUMN()-6-COLUMN($E204)),VLOOKUP($E204-22,AllData,COLUMN()-6-COLUMN($E204)),VLOOKUP($E204-23,AllData,COLUMN()-6-COLUMN($E204)),VLOOKUP($E204-24,AllData,COLUMN()-6-COLUMN($E204)),VLOOKUP($E204-25,AllData,COLUMN()-6-COLUMN($E204)),VLOOKUP($E204-26,AllData,COLUMN()-6-COLUMN($E204)),VLOOKUP($E204-27,AllData,COLUMN()-6-COLUMN($E204)),VLOOKUP($E204-28,AllData,COLUMN()-6-COLUMN($E204)),VLOOKUP($E204-29,AllData,COLUMN()-6-COLUMN($E204)))","v":{"$error":"#N/A"}},{"$f":"VLOOKUP($E204,AllData,COLUMN()-7-COLUMN($E204))","v":{"$error":"#N/A"}},{"$f":"OR('Cool Graph'!$I$1=35,'Cool Graph'!$I$1=36,'Cool Graph'!$I$1=37,'Cool Graph'!$I$1=38,'Cool Graph'!$I$1=39,'Cool Graph'!$I$1=40,'Cool Graph'!$I$1=41,'Cool Graph'!$I$1=42,'Cool Graph'!$I$1=43,'Cool Graph'!$I$1=44,'Cool Graph'!$I$1=45,'Cool Graph'!$I$1=46,'Cool Graph'!$I$1=47,'Cool Graph'!$I$1=58,'Cool Graph'!$I$1=66)","v":false}]
["2012-01-20",{"$f":"OFFSET(OldSchoolJustValues!A205,0,'Cool Graph'!$H$1)","v":24.42},{"$f":"OFFSET(OldSchoolJustValues!A205,0,'Cool Graph'!$I$1)","v":542.83502033733566},null,{"$f":"IF(NewDate>EndDate,NA(),NewDate)","v":{"$error":"#N/A"}},{"$f":"IF($E205>EndDate,NA(),IF($K$2=TRUE,N205,IF('Cool Graph'!$B$17=1,N205,IF('Cool Graph'!$B$17=2,L205,IF('Cool Graph'!$B$17=3,M205,)))))","v":{"$error":"#N/A"}},{"$f":"IF($E205>EndDate,NA(),IF($O$2=TRUE,J205,IF('Cool Graph'!$B$17=1,Data1!J205,IF('Cool Graph'!$B$17=2,Data1!H205,IF('Cool Graph'!$B$17=3,Data1!I205,)))))","v":{"$error":"#N/A"}},{"$f":"SUM(VLOOKUP($E205,AllData,COLUMN()-COLUMN($E205)),VLOOKUP($E205-1,AllData,COLUMN()-COLUMN($E205)),VLOOKUP($E205-2,AllData,COLUMN()-COLUMN($E205)),VLOOKUP($E205-3,AllData,COLUMN()-COLUMN($E205)),VLOOKUP($E205-4,AllData,COLUMN()-COLUMN($E205)),VLOOKUP($E205-5,AllData,COLUMN()-COLUMN($E205)),VLOOKUP($E205-6,AllData,COLUMN()-COLUMN($E205)))","v":{"$error":"#N/A"}},{"$f":"SUM(VLOOKUP($E205,AllData,COLUMN()-1-COLUMN($E205)),VLOOKUP($E205-1,AllData,COLUMN()-1-COLUMN($E205)),VLOOKUP($E205-2,AllData,COLUMN()-1-COLUMN($E205)),VLOOKUP($E205-3,AllData,COLUMN()-1-COLUMN($E205)),VLOOKUP($E205-4,AllData,COLUMN()-1-COLUMN($E205)),VLOOKUP($E205-5,AllData,COLUMN()-1-COLUMN($E205)),VLOOKUP($E205-6,AllData,COLUMN()-1-COLUMN($E205)),VLOOKUP($E205-7,AllData,COLUMN()-1-COLUMN($E205)),VLOOKUP($E205-8,AllData,COLUMN()-1-COLUMN($E205)),VLOOKUP($E205-9,AllData,COLUMN()-1-COLUMN($E205)),VLOOKUP($E205-10,AllData,COLUMN()-1-COLUMN($E205)),VLOOKUP($E205-11,AllData,COLUMN()-1-COLUMN($E205)),VLOOKUP($E205-12,AllData,COLUMN()-1-COLUMN($E205)),VLOOKUP($E205-13,AllData,COLUMN()-1-COLUMN($E205)),VLOOKUP($E205-14,AllData,COLUMN()-1-COLUMN($E205)),VLOOKUP($E205-15,AllData,COLUMN()-1-COLUMN($E205)),VLOOKUP($E205-16,AllData,COLUMN()-1-COLUMN($E205)),VLOOKUP($E205-17,AllData,COLUMN()-1-COLUMN($E205)),VLOOKUP($E205-18,AllData,COLUMN()-1-COLUMN($E205)),VLOOKUP($E205-19,AllData,COLUMN()-1-COLUMN($E205)),VLOOKUP($E205-20,AllData,COLUMN()-1-COLUMN($E205)),VLOOKUP($E205-21,AllData,COLUMN()-1-COLUMN($E205)),VLOOKUP($E205-22,AllData,COLUMN()-1-COLUMN($E205)),VLOOKUP($E205-23,AllData,COLUMN()-1-COLUMN($E205)),VLOOKUP($E205-24,AllData,COLUMN()-1-COLUMN($E205)),VLOOKUP($E205-25,AllData,COLUMN()-1-COLUMN($E205)),VLOOKUP($E205-26,AllData,COLUMN()-1-COLUMN($E205)),VLOOKUP($E205-27,AllData,COLUMN()-1-COLUMN($E205)),VLOOKUP($E205-28,AllData,COLUMN()-1-COLUMN($E205)),VLOOKUP($E205-29,AllData,COLUMN()-1-COLUMN($E205)))","v":{"$error":"#N/A"}},{"$f":"VLOOKUP($E205,AllData,COLUMN()-2-COLUMN($E205))","v":{"$error":"#N/A"}},{"$f":"OR('Cool Graph'!$H$1=35,'Cool Graph'!$H$1=36,'Cool Graph'!$H$1=37,'Cool Graph'!$H$1=38,'Cool Graph'!$H$1=39,'Cool Graph'!$H$1=40,'Cool Graph'!$H$1=41,'Cool Graph'!$H$1=42,'Cool Graph'!$H$1=43,'Cool Graph'!$H$1=44,'Cool Graph'!$H$1=45,'Cool Graph'!$H$1=46,'Cool Graph'!$H$1=47,'Cool Graph'!$H$1=58,'Cool Graph'!$H$1=66)","v":false},{"$f":"SUM(VLOOKUP($E205,AllData,COLUMN()-5-COLUMN($E205)),VLOOKUP($E205-1,AllData,COLUMN()-5-COLUMN($E205)),VLOOKUP($E205-2,AllData,COLUMN()-5-COLUMN($E205)),VLOOKUP($E205-3,AllData,COLUMN()-5-COLUMN($E205)),VLOOKUP($E205-4,AllData,COLUMN()-5-COLUMN($E205)),VLOOKUP($E205-5,AllData,COLUMN()-5-COLUMN($E205)),VLOOKUP($E205-6,AllData,COLUMN()-5-COLUMN($E205)))","v":{"$error":"#N/A"}},{"$f":"SUM(VLOOKUP($E205,AllData,COLUMN()-6-COLUMN($E205)),VLOOKUP($E205-1,AllData,COLUMN()-6-COLUMN($E205)),VLOOKUP($E205-2,AllData,COLUMN()-6-COLUMN($E205)),VLOOKUP($E205-3,AllData,COLUMN()-6-COLUMN($E205)),VLOOKUP($E205-4,AllData,COLUMN()-6-COLUMN($E205)),VLOOKUP($E205-5,AllData,COLUMN()-6-COLUMN($E205)),VLOOKUP($E205-6,AllData,COLUMN()-6-COLUMN($E205)),VLOOKUP($E205-7,AllData,COLUMN()-6-COLUMN($E205)),VLOOKUP($E205-8,AllData,COLUMN()-6-COLUMN($E205)),VLOOKUP($E205-9,AllData,COLUMN()-6-COLUMN($E205)),VLOOKUP($E205-10,AllData,COLUMN()-6-COLUMN($E205)),VLOOKUP($E205-11,AllData,COLUMN()-6-COLUMN($E205)),VLOOKUP($E205-12,AllData,COLUMN()-6-COLUMN($E205)),VLOOKUP($E205-13,AllData,COLUMN()-6-COLUMN($E205)),VLOOKUP($E205-14,AllData,COLUMN()-6-COLUMN($E205)),VLOOKUP($E205-15,AllData,COLUMN()-6-COLUMN($E205)),VLOOKUP($E205-16,AllData,COLUMN()-6-COLUMN($E205)),VLOOKUP($E205-17,AllData,COLUMN()-6-COLUMN($E205)),VLOOKUP($E205-18,AllData,COLUMN()-6-COLUMN($E205)),VLOOKUP($E205-19,AllData,COLUMN()-6-COLUMN($E205)),VLOOKUP($E205-20,AllData,COLUMN()-6-COLUMN($E205)),VLOOKUP($E205-21,AllData,COLUMN()-6-COLUMN($E205)),VLOOKUP($E205-22,AllData,COLUMN()-6-COLUMN($E205)),VLOOKUP($E205-23,AllData,COLUMN()-6-COLUMN($E205)),VLOOKUP($E205-24,AllData,COLUMN()-6-COLUMN($E205)),VLOOKUP($E205-25,AllData,COLUMN()-6-COLUMN($E205)),VLOOKUP($E205-26,AllData,COLUMN()-6-COLUMN($E205)),VLOOKUP($E205-27,AllData,COLUMN()-6-COLUMN($E205)),VLOOKUP($E205-28,AllData,COLUMN()-6-COLUMN($E205)),VLOOKUP($E205-29,AllData,COLUMN()-6-COLUMN($E205)))","v":{"$error":"#N/A"}},{"$f":"VLOOKUP($E205,AllData,COLUMN()-7-COLUMN($E205))","v":{"$error":"#N/A"}},{"$f":"OR('Cool Graph'!$I$1=35,'Cool Graph'!$I$1=36,'Cool Graph'!$I$1=37,'Cool Graph'!$I$1=38,'Cool Graph'!$I$1=39,'Cool Graph'!$I$1=40,'Cool Graph'!$I$1=41,'Cool Graph'!$I$1=42,'Cool Graph'!$I$1=43,'Cool Graph'!$I$1=44,'Cool Graph'!$I$1=45,'Cool Graph'!$I$1=46,'Cool Graph'!$I$1=47,'Cool Graph'!$I$1=58,'Cool Graph'!$I$1=66)","v":false}]
["2012-01-21",{"$f":"OFFSET(OldSchoolJustValues!A206,0,'Cool Graph'!$H$1)","v":124.82},{"$f":"OFFSET(OldSchoolJustValues!A206,0,'Cool Graph'!$I$1)","v":112.3779365085187},null,{"$f":"IF(NewDate>EndDate,NA(),NewDate)","v":{"$error":"#N/A"}},{"$f":"IF($E206>EndDate,NA(),IF($K$2=TRUE,N206,IF('Cool Graph'!$B$17=1,N206,IF('Cool Graph'!$B$17=2,L206,IF('Cool Graph'!$B$17=3,M206,)))))","v":{"$error":"#N/A"}},{"$f":"IF($E206>EndDate,NA(),IF($O$2=TRUE,J206,IF('Cool Graph'!$B$17=1,Data1!J206,IF('Cool Graph'!$B$17=2,Data1!H206,IF('Cool Graph'!$B$17=3,Data1!I206,)))))","v":{"$error":"#N/A"}},{"$f":"SUM(VLOOKUP($E206,AllData,COLUMN()-COLUMN($E206)),VLOOKUP($E206-1,AllData,COLUMN()-COLUMN($E206)),VLOOKUP($E206-2,AllData,COLUMN()-COLUMN($E206)),VLOOKUP($E206-3,AllData,COLUMN()-COLUMN($E206)),VLOOKUP($E206-4,AllData,COLUMN()-COLUMN($E206)),VLOOKUP($E206-5,AllData,COLUMN()-COLUMN($E206)),VLOOKUP($E206-6,AllData,COLUMN()-COLUMN($E206)))","v":{"$error":"#N/A"}},{"$f":"SUM(VLOOKUP($E206,AllData,COLUMN()-1-COLUMN($E206)),VLOOKUP($E206-1,AllData,COLUMN()-1-COLUMN($E206)),VLOOKUP($E206-2,AllData,COLUMN()-1-COLUMN($E206)),VLOOKUP($E206-3,AllData,COLUMN()-1-COLUMN($E206)),VLOOKUP($E206-4,AllData,COLUMN()-1-COLUMN($E206)),VLOOKUP($E206-5,AllData,COLUMN()-1-COLUMN($E206)),VLOOKUP($E206-6,AllData,COLUMN()-1-COLUMN($E206)),VLOOKUP($E206-7,AllData,COLUMN()-1-COLUMN($E206)),VLOOKUP($E206-8,AllData,COLUMN()-1-COLUMN($E206)),VLOOKUP($E206-9,AllData,COLUMN()-1-COLUMN($E206)),VLOOKUP($E206-10,AllData,COLUMN()-1-COLUMN($E206)),VLOOKUP($E206-11,AllData,COLUMN()-1-COLUMN($E206)),VLOOKUP($E206-12,AllData,COLUMN()-1-COLUMN($E206)),VLOOKUP($E206-13,AllData,COLUMN()-1-COLUMN($E206)),VLOOKUP($E206-14,AllData,COLUMN()-1-COLUMN($E206)),VLOOKUP($E206-15,AllData,COLUMN()-1-COLUMN($E206)),VLOOKUP($E206-16,AllData,COLUMN()-1-COLUMN($E206)),VLOOKUP($E206-17,AllData,COLUMN()-1-COLUMN($E206)),VLOOKUP($E206-18,AllData,COLUMN()-1-COLUMN($E206)),VLOOKUP($E206-19,AllData,COLUMN()-1-COLUMN($E206)),VLOOKUP($E206-20,AllData,COLUMN()-1-COLUMN($E206)),VLOOKUP($E206-21,AllData,COLUMN()-1-COLUMN($E206)),VLOOKUP($E206-22,AllData,COLUMN()-1-COLUMN($E206)),VLOOKUP($E206-23,AllData,COLUMN()-1-COLUMN($E206)),VLOOKUP($E206-24,AllData,COLUMN()-1-COLUMN($E206)),VLOOKUP($E206-25,AllData,COLUMN()-1-COLUMN($E206)),VLOOKUP($E206-26,AllData,COLUMN()-1-COLUMN($E206)),VLOOKUP($E206-27,AllData,COLUMN()-1-COLUMN($E206)),VLOOKUP($E206-28,AllData,COLUMN()-1-COLUMN($E206)),VLOOKUP($E206-29,AllData,COLUMN()-1-COLUMN($E206)))","v":{"$error":"#N/A"}},{"$f":"VLOOKUP($E206,AllData,COLUMN()-2-COLUMN($E206))","v":{"$error":"#N/A"}},{"$f":"OR('Cool Graph'!$H$1=35,'Cool Graph'!$H$1=36,'Cool Graph'!$H$1=37,'Cool Graph'!$H$1=38,'Cool Graph'!$H$1=39,'Cool Graph'!$H$1=40,'Cool Graph'!$H$1=41,'Cool Graph'!$H$1=42,'Cool Graph'!$H$1=43,'Cool Graph'!$H$1=44,'Cool Graph'!$H$1=45,'Cool Graph'!$H$1=46,'Cool Graph'!$H$1=47,'Cool Graph'!$H$1=58,'Cool Graph'!$H$1=66)","v":false},{"$f":"SUM(VLOOKUP($E206,AllData,COLUMN()-5-COLUMN($E206)),VLOOKUP($E206-1,AllData,COLUMN()-5-COLUMN($E206)),VLOOKUP($E206-2,AllData,COLUMN()-5-COLUMN($E206)),VLOOKUP($E206-3,AllData,COLUMN()-5-COLUMN($E206)),VLOOKUP($E206-4,AllData,COLUMN()-5-COLUMN($E206)),VLOOKUP($E206-5,AllData,COLUMN()-5-COLUMN($E206)),VLOOKUP($E206-6,AllData,COLUMN()-5-COLUMN($E206)))","v":{"$error":"#N/A"}},{"$f":"SUM(VLOOKUP($E206,AllData,COLUMN()-6-COLUMN($E206)),VLOOKUP($E206-1,AllData,COLUMN()-6-COLUMN($E206)),VLOOKUP($E206-2,AllData,COLUMN()-6-COLUMN($E206)),VLOOKUP($E206-3,AllData,COLUMN()-6-COLUMN($E206)),VLOOKUP($E206-4,AllData,COLUMN()-6-COLUMN($E206)),VLOOKUP($E206-5,AllData,COLUMN()-6-COLUMN($E206)),VLOOKUP($E206-6,AllData,COLUMN()-6-COLUMN($E206)),VLOOKUP($E206-7,AllData,COLUMN()-6-COLUMN($E206)),VLOOKUP($E206-8,AllData,COLUMN()-6-COLUMN($E206)),VLOOKUP($E206-9,AllData,COLUMN()-6-COLUMN($E206)),VLOOKUP($E206-10,AllData,COLUMN()-6-COLUMN($E206)),VLOOKUP($E206-11,AllData,COLUMN()-6-COLUMN($E206)),VLOOKUP($E206-12,AllData,COLUMN()-6-COLUMN($E206)),VLOOKUP($E206-13,AllData,COLUMN()-6-COLUMN($E206)),VLOOKUP($E206-14,AllData,COLUMN()-6-COLUMN($E206)),VLOOKUP($E206-15,AllData,COLUMN()-6-COLUMN($E206)),VLOOKUP($E206-16,AllData,COLUMN()-6-COLUMN($E206)),VLOOKUP($E206-17,AllData,COLUMN()-6-COLUMN($E206)),VLOOKUP($E206-18,AllData,COLUMN()-6-COLUMN($E206)),VLOOKUP($E206-19,AllData,COLUMN()-6-COLUMN($E206)),VLOOKUP($E206-20,AllData,COLUMN()-6-COLUMN($E206)),VLOOKUP($E206-21,AllData,COLUMN()-6-COLUMN($E206)),VLOOKUP($E206-22,AllData,COLUMN()-6-COLUMN($E206)),VLOOKUP($E206-23,AllData,COLUMN()-6-COLUMN($E206)),VLOOKUP($E206-24,AllData,COLUMN()-6-COLUMN($E206)),VLOOKUP($E206-25,AllData,COLUMN()-6-COLUMN($E206)),VLOOKUP($E206-26,AllData,COLUMN()-6-COLUMN($E206)),VLOOKUP($E206-27,AllData,COLUMN()-6-COLUMN($E206)),VLOOKUP($E206-28,AllData,COLUMN()-6-COLUMN($E206)),VLOOKUP($E206-29,AllData,COLUMN()-6-COLUMN($E206)))","v":{"$error":"#N/A"}},{"$f":"VLOOKUP($E206,AllData,COLUMN()-7-COLUMN($E206))","v":{"$error":"#N/A"}},{"$f":"OR('Cool Graph'!$I$1=35,'Cool Graph'!$I$1=36,'Cool Graph'!$I$1=37,'Cool Graph'!$I$1=38,'Cool Graph'!$I$1=39,'Cool Graph'!$I$1=40,'Cool Graph'!$I$1=41,'Cool Graph'!$I$1=42,'Cool Graph'!$I$1=43,'Cool Graph'!$I$1=44,'Cool Graph'!$I$1=45,'Cool Graph'!$I$1=46,'Cool Graph'!$I$1=47,'Cool Graph'!$I$1=58,'Cool Graph'!$I$1=66)","v":false}]
["2012-01-22",{"$f":"OFFSET(OldSchoolJustValues!A207,0,'Cool Graph'!$H$1)","v":46.06},{"$f":"OFFSET(OldSchoolJustValues!A207,0,'Cool Graph'!$I$1)","v":786.89336551640235},null,{"$f":"IF(NewDate>EndDate,NA(),NewDate)","v":{"$error":"#N/A"}},{"$f":"IF($E207>EndDate,NA(),IF($K$2=TRUE,N207,IF('Cool Graph'!$B$17=1,N207,IF('Cool Graph'!$B$17=2,L207,IF('Cool Graph'!$B$17=3,M207,)))))","v":{"$error":"#N/A"}},{"$f":"IF($E207>EndDate,NA(),IF($O$2=TRUE,J207,IF('Cool Graph'!$B$17=1,Data1!J207,IF('Cool Graph'!$B$17=2,Data1!H207,IF('Cool Graph'!$B$17=3,Data1!I207,)))))","v":{"$error":"#N/A"}},{"$f":"SUM(VLOOKUP($E207,AllData,COLUMN()-COLUMN($E207)),VLOOKUP($E207-1,AllData,COLUMN()-COLUMN($E207)),VLOOKUP($E207-2,AllData,COLUMN()-COLUMN($E207)),VLOOKUP($E207-3,AllData,COLUMN()-COLUMN($E207)),VLOOKUP($E207-4,AllData,COLUMN()-COLUMN($E207)),VLOOKUP($E207-5,AllData,COLUMN()-COLUMN($E207)),VLOOKUP($E207-6,AllData,COLUMN()-COLUMN($E207)))","v":{"$error":"#N/A"}},{"$f":"SUM(VLOOKUP($E207,AllData,COLUMN()-1-COLUMN($E207)),VLOOKUP($E207-1,AllData,COLUMN()-1-COLUMN($E207)),VLOOKUP($E207-2,AllData,COLUMN()-1-COLUMN($E207)),VLOOKUP($E207-3,AllData,COLUMN()-1-COLUMN($E207)),VLOOKUP($E207-4,AllData,COLUMN()-1-COLUMN($E207)),VLOOKUP($E207-5,AllData,COLUMN()-1-COLUMN($E207)),VLOOKUP($E207-6,AllData,COLUMN()-1-COLUMN($E207)),VLOOKUP($E207-7,AllData,COLUMN()-1-COLUMN($E207)),VLOOKUP($E207-8,AllData,COLUMN()-1-COLUMN($E207)),VLOOKUP($E207-9,AllData,COLUMN()-1-COLUMN($E207)),VLOOKUP($E207-10,AllData,COLUMN()-1-COLUMN($E207)),VLOOKUP($E207-11,AllData,COLUMN()-1-COLUMN($E207)),VLOOKUP($E207-12,AllData,COLUMN()-1-COLUMN($E207)),VLOOKUP($E207-13,AllData,COLUMN()-1-COLUMN($E207)),VLOOKUP($E207-14,AllData,COLUMN()-1-COLUMN($E207)),VLOOKUP($E207-15,AllData,COLUMN()-1-COLUMN($E207)),VLOOKUP($E207-16,AllData,COLUMN()-1-COLUMN($E207)),VLOOKUP($E207-17,AllData,COLUMN()-1-COLUMN($E207)),VLOOKUP($E207-18,AllData,COLUMN()-1-COLUMN($E207)),VLOOKUP($E207-19,AllData,COLUMN()-1-COLUMN($E207)),VLOOKUP($E207-20,AllData,COLUMN()-1-COLUMN($E207)),VLOOKUP($E207-21,AllData,COLUMN()-1-COLUMN($E207)),VLOOKUP($E207-22,AllData,COLUMN()-1-COLUMN($E207)),VLOOKUP($E207-23,AllData,COLUMN()-1-COLUMN($E207)),VLOOKUP($E207-24,AllData,COLUMN()-1-COLUMN($E207)),VLOOKUP($E207-25,AllData,COLUMN()-1-COLUMN($E207)),VLOOKUP($E207-26,AllData,COLUMN()-1-COLUMN($E207)),VLOOKUP($E207-27,AllData,COLUMN()-1-COLUMN($E207)),VLOOKUP($E207-28,AllData,COLUMN()-1-COLUMN($E207)),VLOOKUP($E207-29,AllData,COLUMN()-1-COLUMN($E207)))","v":{"$error":"#N/A"}},{"$f":"VLOOKUP($E207,AllData,COLUMN()-2-COLUMN($E207))","v":{"$error":"#N/A"}},{"$f":"OR('Cool Graph'!$H$1=35,'Cool Graph'!$H$1=36,'Cool Graph'!$H$1=37,'Cool Graph'!$H$1=38,'Cool Graph'!$H$1=39,'Cool Graph'!$H$1=40,'Cool Graph'!$H$1=41,'Cool Graph'!$H$1=42,'Cool Graph'!$H$1=43,'Cool Graph'!$H$1=44,'Cool Graph'!$H$1=45,'Cool Graph'!$H$1=46,'Cool Graph'!$H$1=47,'Cool Graph'!$H$1=58,'Cool Graph'!$H$1=66)","v":false},{"$f":"SUM(VLOOKUP($E207,AllData,COLUMN()-5-COLUMN($E207)),VLOOKUP($E207-1,AllData,COLUMN()-5-COLUMN($E207)),VLOOKUP($E207-2,AllData,COLUMN()-5-COLUMN($E207)),VLOOKUP($E207-3,AllData,COLUMN()-5-COLUMN($E207)),VLOOKUP($E207-4,AllData,COLUMN()-5-COLUMN($E207)),VLOOKUP($E207-5,AllData,COLUMN()-5-COLUMN($E207)),VLOOKUP($E207-6,AllData,COLUMN()-5-COLUMN($E207)))","v":{"$error":"#N/A"}},{"$f":"SUM(VLOOKUP($E207,AllData,COLUMN()-6-COLUMN($E207)),VLOOKUP($E207-1,AllData,COLUMN()-6-COLUMN($E207)),VLOOKUP($E207-2,AllData,COLUMN()-6-COLUMN($E207)),VLOOKUP($E207-3,AllData,COLUMN()-6-COLUMN($E207)),VLOOKUP($E207-4,AllData,COLUMN()-6-COLUMN($E207)),VLOOKUP($E207-5,AllData,COLUMN()-6-COLUMN($E207)),VLOOKUP($E207-6,AllData,COLUMN()-6-COLUMN($E207)),VLOOKUP($E207-7,AllData,COLUMN()-6-COLUMN($E207)),VLOOKUP($E207-8,AllData,COLUMN()-6-COLUMN($E207)),VLOOKUP($E207-9,AllData,COLUMN()-6-COLUMN($E207)),VLOOKUP($E207-10,AllData,COLUMN()-6-COLUMN($E207)),VLOOKUP($E207-11,AllData,COLUMN()-6-COLUMN($E207)),VLOOKUP($E207-12,AllData,COLUMN()-6-COLUMN($E207)),VLOOKUP($E207-13,AllData,COLUMN()-6-COLUMN($E207)),VLOOKUP($E207-14,AllData,COLUMN()-6-COLUMN($E207)),VLOOKUP($E207-15,AllData,COLUMN()-6-COLUMN($E207)),VLOOKUP($E207-16,AllData,COLUMN()-6-COLUMN($E207)),VLOOKUP($E207-17,AllData,COLUMN()-6-COLUMN($E207)),VLOOKUP($E207-18,AllData,COLUMN()-6-COLUMN($E207)),VLOOKUP($E207-19,AllData,COLUMN()-6-COLUMN($E207)),VLOOKUP($E207-20,AllData,COLUMN()-6-COLUMN($E207)),VLOOKUP($E207-21,AllData,COLUMN()-6-COLUMN($E207)),VLOOKUP($E207-22,AllData,COLUMN()-6-COLUMN($E207)),VLOOKUP($E207-23,AllData,COLUMN()-6-COLUMN($E207)),VLOOKUP($E207-24,AllData,COLUMN()-6-COLUMN($E207)),VLOOKUP($E207-25,AllData,COLUMN()-6-COLUMN($E207)),VLOOKUP($E207-26,AllData,COLUMN()-6-COLUMN($E207)),VLOOKUP($E207-27,AllData,COLUMN()-6-COLUMN($E207)),VLOOKUP($E207-28,AllData,COLUMN()-6-COLUMN($E207)),VLOOKUP($E207-29,AllData,COLUMN()-6-COLUMN($E207)))","v":{"$error":"#N/A"}},{"$f":"VLOOKUP($E207,AllData,COLUMN()-7-COLUMN($E207))","v":{"$error":"#N/A"}},{"$f":"OR('Cool Graph'!$I$1=35,'Cool Graph'!$I$1=36,'Cool Graph'!$I$1=37,'Cool Graph'!$I$1=38,'Cool Graph'!$I$1=39,'Cool Graph'!$I$1=40,'Cool Graph'!$I$1=41,'Cool Graph'!$I$1=42,'Cool Graph'!$I$1=43,'Cool Graph'!$I$1=44,'Cool Graph'!$I$1=45,'Cool Graph'!$I$1=46,'Cool Graph'!$I$1=47,'Cool Graph'!$I$1=58,'Cool Graph'!$I$1=66)","v":false}]
["2012-01-23",{"$f":"OFFSET(OldSchoolJustValues!A208,0,'Cool Graph'!$H$1)","v":37.79},{"$f":"OFFSET(OldSchoolJustValues!A208,0,'Cool Graph'!$I$1)","v":1191.3066253754705},null,{"$f":"IF(NewDate>EndDate,NA(),NewDate)","v":{"$error":"#N/A"}},{"$f":"IF($E208>EndDate,NA(),IF($K$2=TRUE,N208,IF('Cool Graph'!$B$17=1,N208,IF('Cool Graph'!$B$17=2,L208,IF('Cool Graph'!$B$17=3,M208,)))))","v":{"$error":"#N/A"}},{"$f":"IF($E208>EndDate,NA(),IF($O$2=TRUE,J208,IF('Cool Graph'!$B$17=1,Data1!J208,IF('Cool Graph'!$B$17=2,Data1!H208,IF('Cool Graph'!$B$17=3,Data1!I208,)))))","v":{"$error":"#N/A"}},{"$f":"SUM(VLOOKUP($E208,AllData,COLUMN()-COLUMN($E208)),VLOOKUP($E208-1,AllData,COLUMN()-COLUMN($E208)),VLOOKUP($E208-2,AllData,COLUMN()-COLUMN($E208)),VLOOKUP($E208-3,AllData,COLUMN()-COLUMN($E208)),VLOOKUP($E208-4,AllData,COLUMN()-COLUMN($E208)),VLOOKUP($E208-5,AllData,COLUMN()-COLUMN($E208)),VLOOKUP($E208-6,AllData,COLUMN()-COLUMN($E208)))","v":{"$error":"#N/A"}},{"$f":"SUM(VLOOKUP($E208,AllData,COLUMN()-1-COLUMN($E208)),VLOOKUP($E208-1,AllData,COLUMN()-1-COLUMN($E208)),VLOOKUP($E208-2,AllData,COLUMN()-1-COLUMN($E208)),VLOOKUP($E208-3,AllData,COLUMN()-1-COLUMN($E208)),VLOOKUP($E208-4,AllData,COLUMN()-1-COLUMN($E208)),VLOOKUP($E208-5,AllData,COLUMN()-1-COLUMN($E208)),VLOOKUP($E208-6,AllData,COLUMN()-1-COLUMN($E208)),VLOOKUP($E208-7,AllData,COLUMN()-1-COLUMN($E208)),VLOOKUP($E208-8,AllData,COLUMN()-1-COLUMN($E208)),VLOOKUP($E208-9,AllData,COLUMN()-1-COLUMN($E208)),VLOOKUP($E208-10,AllData,COLUMN()-1-COLUMN($E208)),VLOOKUP($E208-11,AllData,COLUMN()-1-COLUMN($E208)),VLOOKUP($E208-12,AllData,COLUMN()-1-COLUMN($E208)),VLOOKUP($E208-13,AllData,COLUMN()-1-COLUMN($E208)),VLOOKUP($E208-14,AllData,COLUMN()-1-COLUMN($E208)),VLOOKUP($E208-15,AllData,COLUMN()-1-COLUMN($E208)),VLOOKUP($E208-16,AllData,COLUMN()-1-COLUMN($E208)),VLOOKUP($E208-17,AllData,COLUMN()-1-COLUMN($E208)),VLOOKUP($E208-18,AllData,COLUMN()-1-COLUMN($E208)),VLOOKUP($E208-19,AllData,COLUMN()-1-COLUMN($E208)),VLOOKUP($E208-20,AllData,COLUMN()-1-COLUMN($E208)),VLOOKUP($E208-21,AllData,COLUMN()-1-COLUMN($E208)),VLOOKUP($E208-22,AllData,COLUMN()-1-COLUMN($E208)),VLOOKUP($E208-23,AllData,COLUMN()-1-COLUMN($E208)),VLOOKUP($E208-24,AllData,COLUMN()-1-COLUMN($E208)),VLOOKUP($E208-25,AllData,COLUMN()-1-COLUMN($E208)),VLOOKUP($E208-26,AllData,COLUMN()-1-COLUMN($E208)),VLOOKUP($E208-27,AllData,COLUMN()-1-COLUMN($E208)),VLOOKUP($E208-28,AllData,COLUMN()-1-COLUMN($E208)),VLOOKUP($E208-29,AllData,COLUMN()-1-COLUMN($E208)))","v":{"$error":"#N/A"}},{"$f":"VLOOKUP($E208,AllData,COLUMN()-2-COLUMN($E208))","v":{"$error":"#N/A"}},{"$f":"OR('Cool Graph'!$H$1=35,'Cool Graph'!$H$1=36,'Cool Graph'!$H$1=37,'Cool Graph'!$H$1=38,'Cool Graph'!$H$1=39,'Cool Graph'!$H$1=40,'Cool Graph'!$H$1=41,'Cool Graph'!$H$1=42,'Cool Graph'!$H$1=43,'Cool Graph'!$H$1=44,'Cool Graph'!$H$1=45,'Cool Graph'!$H$1=46,'Cool Graph'!$H$1=47,'Cool Graph'!$H$1=58,'Cool Graph'!$H$1=66)","v":false},{"$f":"SUM(VLOOKUP($E208,AllData,COLUMN()-5-COLUMN($E208)),VLOOKUP($E208-1,AllData,COLUMN()-5-COLUMN($E208)),VLOOKUP($E208-2,AllData,COLUMN()-5-COLUMN($E208)),VLOOKUP($E208-3,AllData,COLUMN()-5-COLUMN($E208)),VLOOKUP($E208-4,AllData,COLUMN()-5-COLUMN($E208)),VLOOKUP($E208-5,AllData,COLUMN()-5-COLUMN($E208)),VLOOKUP($E208-6,AllData,COLUMN()-5-COLUMN($E208)))","v":{"$error":"#N/A"}},{"$f":"SUM(VLOOKUP($E208,AllData,COLUMN()-6-COLUMN($E208)),VLOOKUP($E208-1,AllData,COLUMN()-6-COLUMN($E208)),VLOOKUP($E208-2,AllData,COLUMN()-6-COLUMN($E208)),VLOOKUP($E208-3,AllData,COLUMN()-6-COLUMN($E208)),VLOOKUP($E208-4,AllData,COLUMN()-6-COLUMN($E208)),VLOOKUP($E208-5,AllData,COLUMN()-6-COLUMN($E208)),VLOOKUP($E208-6,AllData,COLUMN()-6-COLUMN($E208)),VLOOKUP($E208-7,AllData,COLUMN()-6-COLUMN($E208)),VLOOKUP($E208-8,AllData,COLUMN()-6-COLUMN($E208)),VLOOKUP($E208-9,AllData,COLUMN()-6-COLUMN($E208)),VLOOKUP($E208-10,AllData,COLUMN()-6-COLUMN($E208)),VLOOKUP($E208-11,AllData,COLUMN()-6-COLUMN($E208)),VLOOKUP($E208-12,AllData,COLUMN()-6-COLUMN($E208)),VLOOKUP($E208-13,AllData,COLUMN()-6-COLUMN($E208)),VLOOKUP($E208-14,AllData,COLUMN()-6-COLUMN($E208)),VLOOKUP($E208-15,AllData,COLUMN()-6-COLUMN($E208)),VLOOKUP($E208-16,AllData,COLUMN()-6-COLUMN($E208)),VLOOKUP($E208-17,AllData,COLUMN()-6-COLUMN($E208)),VLOOKUP($E208-18,AllData,COLUMN()-6-COLUMN($E208)),VLOOKUP($E208-19,AllData,COLUMN()-6-COLUMN($E208)),VLOOKUP($E208-20,AllData,COLUMN()-6-COLUMN($E208)),VLOOKUP($E208-21,AllData,COLUMN()-6-COLUMN($E208)),VLOOKUP($E208-22,AllData,COLUMN()-6-COLUMN($E208)),VLOOKUP($E208-23,AllData,COLUMN()-6-COLUMN($E208)),VLOOKUP($E208-24,AllData,COLUMN()-6-COLUMN($E208)),VLOOKUP($E208-25,AllData,COLUMN()-6-COLUMN($E208)),VLOOKUP($E208-26,AllData,COLUMN()-6-COLUMN($E208)),VLOOKUP($E208-27,AllData,COLUMN()-6-COLUMN($E208)),VLOOKUP($E208-28,AllData,COLUMN()-6-COLUMN($E208)),VLOOKUP($E208-29,AllData,COLUMN()-6-COLUMN($E208)))","v":{"$error":"#N/A"}},{"$f":"VLOOKUP($E208,AllData,COLUMN()-7-COLUMN($E208))","v":{"$error":"#N/A"}},{"$f":"OR('Cool Graph'!$I$1=35,'Cool Graph'!$I$1=36,'Cool Graph'!$I$1=37,'Cool Graph'!$I$1=38,'Cool Graph'!$I$1=39,'Cool Graph'!$I$1=40,'Cool Graph'!$I$1=41,'Cool Graph'!$I$1=42,'Cool Graph'!$I$1=43,'Cool Graph'!$I$1=44,'Cool Graph'!$I$1=45,'Cool Graph'!$I$1=46,'Cool Graph'!$I$1=47,'Cool Graph'!$I$1=58,'Cool Graph'!$I$1=66)","v":false}]
["2012-01-24",{"$f":"OFFSET(OldSchoolJustValues!A209,0,'Cool Graph'!$H$1)","v":15.02},{"$f":"OFFSET(OldSchoolJustValues!A209,0,'Cool Graph'!$I$1)","v":822.21800189534724},null,{"$f":"IF(NewDate>EndDate,NA(),NewDate)","v":{"$error":"#N/A"}},{"$f":"IF($E209>EndDate,NA(),IF($K$2=TRUE,N209,IF('Cool Graph'!$B$17=1,N209,IF('Cool Graph'!$B$17=2,L209,IF('Cool Graph'!$B$17=3,M209,)))))","v":{"$error":"#N/A"}},{"$f":"IF($E209>EndDate,NA(),IF($O$2=TRUE,J209,IF('Cool Graph'!$B$17=1,Data1!J209,IF('Cool Graph'!$B$17=2,Data1!H209,IF('Cool Graph'!$B$17=3,Data1!I209,)))))","v":{"$error":"#N/A"}},{"$f":"SUM(VLOOKUP($E209,AllData,COLUMN()-COLUMN($E209)),VLOOKUP($E209-1,AllData,COLUMN()-COLUMN($E209)),VLOOKUP($E209-2,AllData,COLUMN()-COLUMN($E209)),VLOOKUP($E209-3,AllData,COLUMN()-COLUMN($E209)),VLOOKUP($E209-4,AllData,COLUMN()-COLUMN($E209)),VLOOKUP($E209-5,AllData,COLUMN()-COLUMN($E209)),VLOOKUP($E209-6,AllData,COLUMN()-COLUMN($E209)))","v":{"$error":"#N/A"}},{"$f":"SUM(VLOOKUP($E209,AllData,COLUMN()-1-COLUMN($E209)),VLOOKUP($E209-1,AllData,COLUMN()-1-COLUMN($E209)),VLOOKUP($E209-2,AllData,COLUMN()-1-COLUMN($E209)),VLOOKUP($E209-3,AllData,COLUMN()-1-COLUMN($E209)),VLOOKUP($E209-4,AllData,COLUMN()-1-COLUMN($E209)),VLOOKUP($E209-5,AllData,COLUMN()-1-COLUMN($E209)),VLOOKUP($E209-6,AllData,COLUMN()-1-COLUMN($E209)),VLOOKUP($E209-7,AllData,COLUMN()-1-COLUMN($E209)),VLOOKUP($E209-8,AllData,COLUMN()-1-COLUMN($E209)),VLOOKUP($E209-9,AllData,COLUMN()-1-COLUMN($E209)),VLOOKUP($E209-10,AllData,COLUMN()-1-COLUMN($E209)),VLOOKUP($E209-11,AllData,COLUMN()-1-COLUMN($E209)),VLOOKUP($E209-12,AllData,COLUMN()-1-COLUMN($E209)),VLOOKUP($E209-13,AllData,COLUMN()-1-COLUMN($E209)),VLOOKUP($E209-14,AllData,COLUMN()-1-COLUMN($E209)),VLOOKUP($E209-15,AllData,COLUMN()-1-COLUMN($E209)),VLOOKUP($E209-16,AllData,COLUMN()-1-COLUMN($E209)),VLOOKUP($E209-17,AllData,COLUMN()-1-COLUMN($E209)),VLOOKUP($E209-18,AllData,COLUMN()-1-COLUMN($E209)),VLOOKUP($E209-19,AllData,COLUMN()-1-COLUMN($E209)),VLOOKUP($E209-20,AllData,COLUMN()-1-COLUMN($E209)),VLOOKUP($E209-21,AllData,COLUMN()-1-COLUMN($E209)),VLOOKUP($E209-22,AllData,COLUMN()-1-COLUMN($E209)),VLOOKUP($E209-23,AllData,COLUMN()-1-COLUMN($E209)),VLOOKUP($E209-24,AllData,COLUMN()-1-COLUMN($E209)),VLOOKUP($E209-25,AllData,COLUMN()-1-COLUMN($E209)),VLOOKUP($E209-26,AllData,COLUMN()-1-COLUMN($E209)),VLOOKUP($E209-27,AllData,COLUMN()-1-COLUMN($E209)),VLOOKUP($E209-28,AllData,COLUMN()-1-COLUMN($E209)),VLOOKUP($E209-29,AllData,COLUMN()-1-COLUMN($E209)))","v":{"$error":"#N/A"}},{"$f":"VLOOKUP($E209,AllData,COLUMN()-2-COLUMN($E209))","v":{"$error":"#N/A"}},{"$f":"OR('Cool Graph'!$H$1=35,'Cool Graph'!$H$1=36,'Cool Graph'!$H$1=37,'Cool Graph'!$H$1=38,'Cool Graph'!$H$1=39,'Cool Graph'!$H$1=40,'Cool Graph'!$H$1=41,'Cool Graph'!$H$1=42,'Cool Graph'!$H$1=43,'Cool Graph'!$H$1=44,'Cool Graph'!$H$1=45,'Cool Graph'!$H$1=46,'Cool Graph'!$H$1=47,'Cool Graph'!$H$1=58,'Cool Graph'!$H$1=66)","v":false},{"$f":"SUM(VLOOKUP($E209,AllData,COLUMN()-5-COLUMN($E209)),VLOOKUP($E209-1,AllData,COLUMN()-5-COLUMN($E209)),VLOOKUP($E209-2,AllData,COLUMN()-5-COLUMN($E209)),VLOOKUP($E209-3,AllData,COLUMN()-5-COLUMN($E209)),VLOOKUP($E209-4,AllData,COLUMN()-5-COLUMN($E209)),VLOOKUP($E209-5,AllData,COLUMN()-5-COLUMN($E209)),VLOOKUP($E209-6,AllData,COLUMN()-5-COLUMN($E209)))","v":{"$error":"#N/A"}},{"$f":"SUM(VLOOKUP($E209,AllData,COLUMN()-6-COLUMN($E209)),VLOOKUP($E209-1,AllData,COLUMN()-6-COLUMN($E209)),VLOOKUP($E209-2,AllData,COLUMN()-6-COLUMN($E209)),VLOOKUP($E209-3,AllData,COLUMN()-6-COLUMN($E209)),VLOOKUP($E209-4,AllData,COLUMN()-6-COLUMN($E209)),VLOOKUP($E209-5,AllData,COLUMN()-6-COLUMN($E209)),VLOOKUP($E209-6,AllData,COLUMN()-6-COLUMN($E209)),VLOOKUP($E209-7,AllData,COLUMN()-6-COLUMN($E209)),VLOOKUP($E209-8,AllData,COLUMN()-6-COLUMN($E209)),VLOOKUP($E209-9,AllData,COLUMN()-6-COLUMN($E209)),VLOOKUP($E209-10,AllData,COLUMN()-6-COLUMN($E209)),VLOOKUP($E209-11,AllData,COLUMN()-6-COLUMN($E209)),VLOOKUP($E209-12,AllData,COLUMN()-6-COLUMN($E209)),VLOOKUP($E209-13,AllData,COLUMN()-6-COLUMN($E209)),VLOOKUP($E209-14,AllData,COLUMN()-6-COLUMN($E209)),VLOOKUP($E209-15,AllData,COLUMN()-6-COLUMN($E209)),VLOOKUP($E209-16,AllData,COLUMN()-6-COLUMN($E209)),VLOOKUP($E209-17,AllData,COLUMN()-6-COLUMN($E209)),VLOOKUP($E209-18,AllData,COLUMN()-6-COLUMN($E209)),VLOOKUP($E209-19,AllData,COLUMN()-6-COLUMN($E209)),VLOOKUP($E209-20,AllData,COLUMN()-6-COLUMN($E209)),VLOOKUP($E209-21,AllData,COLUMN()-6-COLUMN($E209)),VLOOKUP($E209-22,AllData,COLUMN()-6-COLUMN($E209)),VLOOKUP($E209-23,AllData,COLUMN()-6-COLUMN($E209)),VLOOKUP($E209-24,AllData,COLUMN()-6-COLUMN($E209)),VLOOKUP($E209-25,AllData,COLUMN()-6-COLUMN($E209)),VLOOKUP($E209-26,AllData,COLUMN()-6-COLUMN($E209)),VLOOKUP($E209-27,AllData,COLUMN()-6-COLUMN($E209)),VLOOKUP($E209-28,AllData,COLUMN()-6-COLUMN($E209)),VLOOKUP($E209-29,AllData,COLUMN()-6-COLUMN($E209)))","v":{"$error":"#N/A"}},{"$f":"VLOOKUP($E209,AllData,COLUMN()-7-COLUMN($E209))","v":{"$error":"#N/A"}},{"$f":"OR('Cool Graph'!$I$1=35,'Cool Graph'!$I$1=36,'Cool Graph'!$I$1=37,'Cool Graph'!$I$1=38,'Cool Graph'!$I$1=39,'Cool Graph'!$I$1=40,'Cool Graph'!$I$1=41,'Cool Graph'!$I$1=42,'Cool Graph'!$I$1=43,'Cool Graph'!$I$1=44,'Cool Graph'!$I$1=45,'Cool Graph'!$I$1=46,'Cool Graph'!$I$1=47,'Cool Graph'!$I$1=58,'Cool Graph'!$I$1=66)","v":false}]
["2012-01-25",{"$f":"OFFSET(OldSchoolJustValues!A210,0,'Cool Graph'!$H$1)","v":31.59},{"$f":"OFFSET(OldSchoolJustValues!A210,0,'Cool Graph'!$I$1)","v":1243.7262229058033},null,{"$f":"IF(NewDate>EndDate,NA(),NewDate)","v":{"$error":"#N/A"}},{"$f":"IF($E210>EndDate,NA(),IF($K$2=TRUE,N210,IF('Cool Graph'!$B$17=1,N210,IF('Cool Graph'!$B$17=2,L210,IF('Cool Graph'!$B$17=3,M210,)))))","v":{"$error":"#N/A"}},{"$f":"IF($E210>EndDate,NA(),IF($O$2=TRUE,J210,IF('Cool Graph'!$B$17=1,Data1!J210,IF('Cool Graph'!$B$17=2,Data1!H210,IF('Cool Graph'!$B$17=3,Data1!I210,)))))","v":{"$error":"#N/A"}},{"$f":"SUM(VLOOKUP($E210,AllData,COLUMN()-COLUMN($E210)),VLOOKUP($E210-1,AllData,COLUMN()-COLUMN($E210)),VLOOKUP($E210-2,AllData,COLUMN()-COLUMN($E210)),VLOOKUP($E210-3,AllData,COLUMN()-COLUMN($E210)),VLOOKUP($E210-4,AllData,COLUMN()-COLUMN($E210)),VLOOKUP($E210-5,AllData,COLUMN()-COLUMN($E210)),VLOOKUP($E210-6,AllData,COLUMN()-COLUMN($E210)))","v":{"$error":"#N/A"}},{"$f":"SUM(VLOOKUP($E210,AllData,COLUMN()-1-COLUMN($E210)),VLOOKUP($E210-1,AllData,COLUMN()-1-COLUMN($E210)),VLOOKUP($E210-2,AllData,COLUMN()-1-COLUMN($E210)),VLOOKUP($E210-3,AllData,COLUMN()-1-COLUMN($E210)),VLOOKUP($E210-4,AllData,COLUMN()-1-COLUMN($E210)),VLOOKUP($E210-5,AllData,COLUMN()-1-COLUMN($E210)),VLOOKUP($E210-6,AllData,COLUMN()-1-COLUMN($E210)),VLOOKUP($E210-7,AllData,COLUMN()-1-COLUMN($E210)),VLOOKUP($E210-8,AllData,COLUMN()-1-COLUMN($E210)),VLOOKUP($E210-9,AllData,COLUMN()-1-COLUMN($E210)),VLOOKUP($E210-10,AllData,COLUMN()-1-COLUMN($E210)),VLOOKUP($E210-11,AllData,COLUMN()-1-COLUMN($E210)),VLOOKUP($E210-12,AllData,COLUMN()-1-COLUMN($E210)),VLOOKUP($E210-13,AllData,COLUMN()-1-COLUMN($E210)),VLOOKUP($E210-14,AllData,COLUMN()-1-COLUMN($E210)),VLOOKUP($E210-15,AllData,COLUMN()-1-COLUMN($E210)),VLOOKUP($E210-16,AllData,COLUMN()-1-COLUMN($E210)),VLOOKUP($E210-17,AllData,COLUMN()-1-COLUMN($E210)),VLOOKUP($E210-18,AllData,COLUMN()-1-COLUMN($E210)),VLOOKUP($E210-19,AllData,COLUMN()-1-COLUMN($E210)),VLOOKUP($E210-20,AllData,COLUMN()-1-COLUMN($E210)),VLOOKUP($E210-21,AllData,COLUMN()-1-COLUMN($E210)),VLOOKUP($E210-22,AllData,COLUMN()-1-COLUMN($E210)),VLOOKUP($E210-23,AllData,COLUMN()-1-COLUMN($E210)),VLOOKUP($E210-24,AllData,COLUMN()-1-COLUMN($E210)),VLOOKUP($E210-25,AllData,COLUMN()-1-COLUMN($E210)),VLOOKUP($E210-26,AllData,COLUMN()-1-COLUMN($E210)),VLOOKUP($E210-27,AllData,COLUMN()-1-COLUMN($E210)),VLOOKUP($E210-28,AllData,COLUMN()-1-COLUMN($E210)),VLOOKUP($E210-29,AllData,COLUMN()-1-COLUMN($E210)))","v":{"$error":"#N/A"}},{"$f":"VLOOKUP($E210,AllData,COLUMN()-2-COLUMN($E210))","v":{"$error":"#N/A"}},{"$f":"OR('Cool Graph'!$H$1=35,'Cool Graph'!$H$1=36,'Cool Graph'!$H$1=37,'Cool Graph'!$H$1=38,'Cool Graph'!$H$1=39,'Cool Graph'!$H$1=40,'Cool Graph'!$H$1=41,'Cool Graph'!$H$1=42,'Cool Graph'!$H$1=43,'Cool Graph'!$H$1=44,'Cool Graph'!$H$1=45,'Cool Graph'!$H$1=46,'Cool Graph'!$H$1=47,'Cool Graph'!$H$1=58,'Cool Graph'!$H$1=66)","v":false},{"$f":"SUM(VLOOKUP($E210,AllData,COLUMN()-5-COLUMN($E210)),VLOOKUP($E210-1,AllData,COLUMN()-5-COLUMN($E210)),VLOOKUP($E210-2,AllData,COLUMN()-5-COLUMN($E210)),VLOOKUP($E210-3,AllData,COLUMN()-5-COLUMN($E210)),VLOOKUP($E210-4,AllData,COLUMN()-5-COLUMN($E210)),VLOOKUP($E210-5,AllData,COLUMN()-5-COLUMN($E210)),VLOOKUP($E210-6,AllData,COLUMN()-5-COLUMN($E210)))","v":{"$error":"#N/A"}},{"$f":"SUM(VLOOKUP($E210,AllData,COLUMN()-6-COLUMN($E210)),VLOOKUP($E210-1,AllData,COLUMN()-6-COLUMN($E210)),VLOOKUP($E210-2,AllData,COLUMN()-6-COLUMN($E210)),VLOOKUP($E210-3,AllData,COLUMN()-6-COLUMN($E210)),VLOOKUP($E210-4,AllData,COLUMN()-6-COLUMN($E210)),VLOOKUP($E210-5,AllData,COLUMN()-6-COLUMN($E210)),VLOOKUP($E210-6,AllData,COLUMN()-6-COLUMN($E210)),VLOOKUP($E210-7,AllData,COLUMN()-6-COLUMN($E210)),VLOOKUP($E210-8,AllData,COLUMN()-6-COLUMN($E210)),VLOOKUP($E210-9,AllData,COLUMN()-6-COLUMN($E210)),VLOOKUP($E210-10,AllData,COLUMN()-6-COLUMN($E210)),VLOOKUP($E210-11,AllData,COLUMN()-6-COLUMN($E210)),VLOOKUP($E210-12,AllData,COLUMN()-6-COLUMN($E210)),VLOOKUP($E210-13,AllData,COLUMN()-6-COLUMN($E210)),VLOOKUP($E210-14,AllData,COLUMN()-6-COLUMN($E210)),VLOOKUP($E210-15,AllData,COLUMN()-6-COLUMN($E210)),VLOOKUP($E210-16,AllData,COLUMN()-6-COLUMN($E210)),VLOOKUP($E210-17,AllData,COLUMN()-6-COLUMN($E210)),VLOOKUP($E210-18,AllData,COLUMN()-6-COLUMN($E210)),VLOOKUP($E210-19,AllData,COLUMN()-6-COLUMN($E210)),VLOOKUP($E210-20,AllData,COLUMN()-6-COLUMN($E210)),VLOOKUP($E210-21,AllData,COLUMN()-6-COLUMN($E210)),VLOOKUP($E210-22,AllData,COLUMN()-6-COLUMN($E210)),VLOOKUP($E210-23,AllData,COLUMN()-6-COLUMN($E210)),VLOOKUP($E210-24,AllData,COLUMN()-6-COLUMN($E210)),VLOOKUP($E210-25,AllData,COLUMN()-6-COLUMN($E210)),VLOOKUP($E210-26,AllData,COLUMN()-6-COLUMN($E210)),VLOOKUP($E210-27,AllData,COLUMN()-6-COLUMN($E210)),VLOOKUP($E210-28,AllData,COLUMN()-6-COLUMN($E210)),VLOOKUP($E210-29,AllData,COLUMN()-6-COLUMN($E210)))","v":{"$error":"#N/A"}},{"$f":"VLOOKUP($E210,AllData,COLUMN()-7-COLUMN($E210))","v":{"$error":"#N/A"}},{"$f":"OR('Cool Graph'!$I$1=35,'Cool Graph'!$I$1=36,'Cool Graph'!$I$1=37,'Cool Graph'!$I$1=38,'Cool Graph'!$I$1=39,'Cool Graph'!$I$1=40,'Cool Graph'!$I$1=41,'Cool Graph'!$I$1=42,'Cool Graph'!$I$1=43,'Cool Graph'!$I$1=44,'Cool Graph'!$I$1=45,'Cool Graph'!$I$1=46,'Cool Graph'!$I$1=47,'Cool Graph'!$I$1=58,'Cool Graph'!$I$1=66)","v":false}]
["2012-01-26",{"$f":"OFFSET(OldSchoolJustValues!A211,0,'Cool Graph'!$H$1)","v":34.69},{"$f":"OFFSET(OldSchoolJustValues!A211,0,'Cool Graph'!$I$1)","v":1126.8503016350903},null,{"$f":"IF(NewDate>EndDate,NA(),NewDate)","v":{"$error":"#N/A"}},{"$f":"IF($E211>EndDate,NA(),IF($K$2=TRUE,N211,IF('Cool Graph'!$B$17=1,N211,IF('Cool Graph'!$B$17=2,L211,IF('Cool Graph'!$B$17=3,M211,)))))","v":{"$error":"#N/A"}},{"$f":"IF($E211>EndDate,NA(),IF($O$2=TRUE,J211,IF('Cool Graph'!$B$17=1,Data1!J211,IF('Cool Graph'!$B$17=2,Data1!H211,IF('Cool Graph'!$B$17=3,Data1!I211,)))))","v":{"$error":"#N/A"}},{"$f":"SUM(VLOOKUP($E211,AllData,COLUMN()-COLUMN($E211)),VLOOKUP($E211-1,AllData,COLUMN()-COLUMN($E211)),VLOOKUP($E211-2,AllData,COLUMN()-COLUMN($E211)),VLOOKUP($E211-3,AllData,COLUMN()-COLUMN($E211)),VLOOKUP($E211-4,AllData,COLUMN()-COLUMN($E211)),VLOOKUP($E211-5,AllData,COLUMN()-COLUMN($E211)),VLOOKUP($E211-6,AllData,COLUMN()-COLUMN($E211)))","v":{"$error":"#N/A"}},{"$f":"SUM(VLOOKUP($E211,AllData,COLUMN()-1-COLUMN($E211)),VLOOKUP($E211-1,AllData,COLUMN()-1-COLUMN($E211)),VLOOKUP($E211-2,AllData,COLUMN()-1-COLUMN($E211)),VLOOKUP($E211-3,AllData,COLUMN()-1-COLUMN($E211)),VLOOKUP($E211-4,AllData,COLUMN()-1-COLUMN($E211)),VLOOKUP($E211-5,AllData,COLUMN()-1-COLUMN($E211)),VLOOKUP($E211-6,AllData,COLUMN()-1-COLUMN($E211)),VLOOKUP($E211-7,AllData,COLUMN()-1-COLUMN($E211)),VLOOKUP($E211-8,AllData,COLUMN()-1-COLUMN($E211)),VLOOKUP($E211-9,AllData,COLUMN()-1-COLUMN($E211)),VLOOKUP($E211-10,AllData,COLUMN()-1-COLUMN($E211)),VLOOKUP($E211-11,AllData,COLUMN()-1-COLUMN($E211)),VLOOKUP($E211-12,AllData,COLUMN()-1-COLUMN($E211)),VLOOKUP($E211-13,AllData,COLUMN()-1-COLUMN($E211)),VLOOKUP($E211-14,AllData,COLUMN()-1-COLUMN($E211)),VLOOKUP($E211-15,AllData,COLUMN()-1-COLUMN($E211)),VLOOKUP($E211-16,AllData,COLUMN()-1-COLUMN($E211)),VLOOKUP($E211-17,AllData,COLUMN()-1-COLUMN($E211)),VLOOKUP($E211-18,AllData,COLUMN()-1-COLUMN($E211)),VLOOKUP($E211-19,AllData,COLUMN()-1-COLUMN($E211)),VLOOKUP($E211-20,AllData,COLUMN()-1-COLUMN($E211)),VLOOKUP($E211-21,AllData,COLUMN()-1-COLUMN($E211)),VLOOKUP($E211-22,AllData,COLUMN()-1-COLUMN($E211)),VLOOKUP($E211-23,AllData,COLUMN()-1-COLUMN($E211)),VLOOKUP($E211-24,AllData,COLUMN()-1-COLUMN($E211)),VLOOKUP($E211-25,AllData,COLUMN()-1-COLUMN($E211)),VLOOKUP($E211-26,AllData,COLUMN()-1-COLUMN($E211)),VLOOKUP($E211-27,AllData,COLUMN()-1-COLUMN($E211)),VLOOKUP($E211-28,AllData,COLUMN()-1-COLUMN($E211)),VLOOKUP($E211-29,AllData,COLUMN()-1-COLUMN($E211)))","v":{"$error":"#N/A"}},{"$f":"VLOOKUP($E211,AllData,COLUMN()-2-COLUMN($E211))","v":{"$error":"#N/A"}},{"$f":"OR('Cool Graph'!$H$1=35,'Cool Graph'!$H$1=36,'Cool Graph'!$H$1=37,'Cool Graph'!$H$1=38,'Cool Graph'!$H$1=39,'Cool Graph'!$H$1=40,'Cool Graph'!$H$1=41,'Cool Graph'!$H$1=42,'Cool Graph'!$H$1=43,'Cool Graph'!$H$1=44,'Cool Graph'!$H$1=45,'Cool Graph'!$H$1=46,'Cool Graph'!$H$1=47,'Cool Graph'!$H$1=58,'Cool Graph'!$H$1=66)","v":false},{"$f":"SUM(VLOOKUP($E211,AllData,COLUMN()-5-COLUMN($E211)),VLOOKUP($E211-1,AllData,COLUMN()-5-COLUMN($E211)),VLOOKUP($E211-2,AllData,COLUMN()-5-COLUMN($E211)),VLOOKUP($E211-3,AllData,COLUMN()-5-COLUMN($E211)),VLOOKUP($E211-4,AllData,COLUMN()-5-COLUMN($E211)),VLOOKUP($E211-5,AllData,COLUMN()-5-COLUMN($E211)),VLOOKUP($E211-6,AllData,COLUMN()-5-COLUMN($E211)))","v":{"$error":"#N/A"}},{"$f":"SUM(VLOOKUP($E211,AllData,COLUMN()-6-COLUMN($E211)),VLOOKUP($E211-1,AllData,COLUMN()-6-COLUMN($E211)),VLOOKUP($E211-2,AllData,COLUMN()-6-COLUMN($E211)),VLOOKUP($E211-3,AllData,COLUMN()-6-COLUMN($E211)),VLOOKUP($E211-4,AllData,COLUMN()-6-COLUMN($E211)),VLOOKUP($E211-5,AllData,COLUMN()-6-COLUMN($E211)),VLOOKUP($E211-6,AllData,COLUMN()-6-COLUMN($E211)),VLOOKUP($E211-7,AllData,COLUMN()-6-COLUMN($E211)),VLOOKUP($E211-8,AllData,COLUMN()-6-COLUMN($E211)),VLOOKUP($E211-9,AllData,COLUMN()-6-COLUMN($E211)),VLOOKUP($E211-10,AllData,COLUMN()-6-COLUMN($E211)),VLOOKUP($E211-11,AllData,COLUMN()-6-COLUMN($E211)),VLOOKUP($E211-12,AllData,COLUMN()-6-COLUMN($E211)),VLOOKUP($E211-13,AllData,COLUMN()-6-COLUMN($E211)),VLOOKUP($E211-14,AllData,COLUMN()-6-COLUMN($E211)),VLOOKUP($E211-15,AllData,COLUMN()-6-COLUMN($E211)),VLOOKUP($E211-16,AllData,COLUMN()-6-COLUMN($E211)),VLOOKUP($E211-17,AllData,COLUMN()-6-COLUMN($E211)),VLOOKUP($E211-18,AllData,COLUMN()-6-COLUMN($E211)),VLOOKUP($E211-19,AllData,COLUMN()-6-COLUMN($E211)),VLOOKUP($E211-20,AllData,COLUMN()-6-COLUMN($E211)),VLOOKUP($E211-21,AllData,COLUMN()-6-COLUMN($E211)),VLOOKUP($E211-22,AllData,COLUMN()-6-COLUMN($E211)),VLOOKUP($E211-23,AllData,COLUMN()-6-COLUMN($E211)),VLOOKUP($E211-24,AllData,COLUMN()-6-COLUMN($E211)),VLOOKUP($E211-25,AllData,COLUMN()-6-COLUMN($E211)),VLOOKUP($E211-26,AllData,COLUMN()-6-COLUMN($E211)),VLOOKUP($E211-27,AllData,COLUMN()-6-COLUMN($E211)),VLOOKUP($E211-28,AllData,COLUMN()-6-COLUMN($E211)),VLOOKUP($E211-29,AllData,COLUMN()-6-COLUMN($E211)))","v":{"$error":"#N/A"}},{"$f":"VLOOKUP($E211,AllData,COLUMN()-7-COLUMN($E211))","v":{"$error":"#N/A"}},{"$f":"OR('Cool Graph'!$I$1=35,'Cool Graph'!$I$1=36,'Cool Graph'!$I$1=37,'Cool Graph'!$I$1=38,'Cool Graph'!$I$1=39,'Cool Graph'!$I$1=40,'Cool Graph'!$I$1=41,'Cool Graph'!$I$1=42,'Cool Graph'!$I$1=43,'Cool Graph'!$I$1=44,'Cool Graph'!$I$1=45,'Cool Graph'!$I$1=46,'Cool Graph'!$I$1=47,'Cool Graph'!$I$1=58,'Cool Graph'!$I$1=66)","v":false}]
["2012-01-27",{"$f":"OFFSET(OldSchoolJustValues!A212,0,'Cool Graph'!$H$1)","v":20.7},{"$f":"OFFSET(OldSchoolJustValues!A212,0,'Cool Graph'!$I$1)","v":330.5417740189381},null,{"$f":"IF(NewDate>EndDate,NA(),NewDate)","v":{"$error":"#N/A"}},{"$f":"IF($E212>EndDate,NA(),IF($K$2=TRUE,N212,IF('Cool Graph'!$B$17=1,N212,IF('Cool Graph'!$B$17=2,L212,IF('Cool Graph'!$B$17=3,M212,)))))","v":{"$error":"#N/A"}},{"$f":"IF($E212>EndDate,NA(),IF($O$2=TRUE,J212,IF('Cool Graph'!$B$17=1,Data1!J212,IF('Cool Graph'!$B$17=2,Data1!H212,IF('Cool Graph'!$B$17=3,Data1!I212,)))))","v":{"$error":"#N/A"}},{"$f":"SUM(VLOOKUP($E212,AllData,COLUMN()-COLUMN($E212)),VLOOKUP($E212-1,AllData,COLUMN()-COLUMN($E212)),VLOOKUP($E212-2,AllData,COLUMN()-COLUMN($E212)),VLOOKUP($E212-3,AllData,COLUMN()-COLUMN($E212)),VLOOKUP($E212-4,AllData,COLUMN()-COLUMN($E212)),VLOOKUP($E212-5,AllData,COLUMN()-COLUMN($E212)),VLOOKUP($E212-6,AllData,COLUMN()-COLUMN($E212)))","v":{"$error":"#N/A"}},{"$f":"SUM(VLOOKUP($E212,AllData,COLUMN()-1-COLUMN($E212)),VLOOKUP($E212-1,AllData,COLUMN()-1-COLUMN($E212)),VLOOKUP($E212-2,AllData,COLUMN()-1-COLUMN($E212)),VLOOKUP($E212-3,AllData,COLUMN()-1-COLUMN($E212)),VLOOKUP($E212-4,AllData,COLUMN()-1-COLUMN($E212)),VLOOKUP($E212-5,AllData,COLUMN()-1-COLUMN($E212)),VLOOKUP($E212-6,AllData,COLUMN()-1-COLUMN($E212)),VLOOKUP($E212-7,AllData,COLUMN()-1-COLUMN($E212)),VLOOKUP($E212-8,AllData,COLUMN()-1-COLUMN($E212)),VLOOKUP($E212-9,AllData,COLUMN()-1-COLUMN($E212)),VLOOKUP($E212-10,AllData,COLUMN()-1-COLUMN($E212)),VLOOKUP($E212-11,AllData,COLUMN()-1-COLUMN($E212)),VLOOKUP($E212-12,AllData,COLUMN()-1-COLUMN($E212)),VLOOKUP($E212-13,AllData,COLUMN()-1-COLUMN($E212)),VLOOKUP($E212-14,AllData,COLUMN()-1-COLUMN($E212)),VLOOKUP($E212-15,AllData,COLUMN()-1-COLUMN($E212)),VLOOKUP($E212-16,AllData,COLUMN()-1-COLUMN($E212)),VLOOKUP($E212-17,AllData,COLUMN()-1-COLUMN($E212)),VLOOKUP($E212-18,AllData,COLUMN()-1-COLUMN($E212)),VLOOKUP($E212-19,AllData,COLUMN()-1-COLUMN($E212)),VLOOKUP($E212-20,AllData,COLUMN()-1-COLUMN($E212)),VLOOKUP($E212-21,AllData,COLUMN()-1-COLUMN($E212)),VLOOKUP($E212-22,AllData,COLUMN()-1-COLUMN($E212)),VLOOKUP($E212-23,AllData,COLUMN()-1-COLUMN($E212)),VLOOKUP($E212-24,AllData,COLUMN()-1-COLUMN($E212)),VLOOKUP($E212-25,AllData,COLUMN()-1-COLUMN($E212)),VLOOKUP($E212-26,AllData,COLUMN()-1-COLUMN($E212)),VLOOKUP($E212-27,AllData,COLUMN()-1-COLUMN($E212)),VLOOKUP($E212-28,AllData,COLUMN()-1-COLUMN($E212)),VLOOKUP($E212-29,AllData,COLUMN()-1-COLUMN($E212)))","v":{"$error":"#N/A"}},{"$f":"VLOOKUP($E212,AllData,COLUMN()-2-COLUMN($E212))","v":{"$error":"#N/A"}},{"$f":"OR('Cool Graph'!$H$1=35,'Cool Graph'!$H$1=36,'Cool Graph'!$H$1=37,'Cool Graph'!$H$1=38,'Cool Graph'!$H$1=39,'Cool Graph'!$H$1=40,'Cool Graph'!$H$1=41,'Cool Graph'!$H$1=42,'Cool Graph'!$H$1=43,'Cool Graph'!$H$1=44,'Cool Graph'!$H$1=45,'Cool Graph'!$H$1=46,'Cool Graph'!$H$1=47,'Cool Graph'!$H$1=58,'Cool Graph'!$H$1=66)","v":false},{"$f":"SUM(VLOOKUP($E212,AllData,COLUMN()-5-COLUMN($E212)),VLOOKUP($E212-1,AllData,COLUMN()-5-COLUMN($E212)),VLOOKUP($E212-2,AllData,COLUMN()-5-COLUMN($E212)),VLOOKUP($E212-3,AllData,COLUMN()-5-COLUMN($E212)),VLOOKUP($E212-4,AllData,COLUMN()-5-COLUMN($E212)),VLOOKUP($E212-5,AllData,COLUMN()-5-COLUMN($E212)),VLOOKUP($E212-6,AllData,COLUMN()-5-COLUMN($E212)))","v":{"$error":"#N/A"}},{"$f":"SUM(VLOOKUP($E212,AllData,COLUMN()-6-COLUMN($E212)),VLOOKUP($E212-1,AllData,COLUMN()-6-COLUMN($E212)),VLOOKUP($E212-2,AllData,COLUMN()-6-COLUMN($E212)),VLOOKUP($E212-3,AllData,COLUMN()-6-COLUMN($E212)),VLOOKUP($E212-4,AllData,COLUMN()-6-COLUMN($E212)),VLOOKUP($E212-5,AllData,COLUMN()-6-COLUMN($E212)),VLOOKUP($E212-6,AllData,COLUMN()-6-COLUMN($E212)),VLOOKUP($E212-7,AllData,COLUMN()-6-COLUMN($E212)),VLOOKUP($E212-8,AllData,COLUMN()-6-COLUMN($E212)),VLOOKUP($E212-9,AllData,COLUMN()-6-COLUMN($E212)),VLOOKUP($E212-10,AllData,COLUMN()-6-COLUMN($E212)),VLOOKUP($E212-11,AllData,COLUMN()-6-COLUMN($E212)),VLOOKUP($E212-12,AllData,COLUMN()-6-COLUMN($E212)),VLOOKUP($E212-13,AllData,COLUMN()-6-COLUMN($E212)),VLOOKUP($E212-14,AllData,COLUMN()-6-COLUMN($E212)),VLOOKUP($E212-15,AllData,COLUMN()-6-COLUMN($E212)),VLOOKUP($E212-16,AllData,COLUMN()-6-COLUMN($E212)),VLOOKUP($E212-17,AllData,COLUMN()-6-COLUMN($E212)),VLOOKUP($E212-18,AllData,COLUMN()-6-COLUMN($E212)),VLOOKUP($E212-19,AllData,COLUMN()-6-COLUMN($E212)),VLOOKUP($E212-20,AllData,COLUMN()-6-COLUMN($E212)),VLOOKUP($E212-21,AllData,COLUMN()-6-COLUMN($E212)),VLOOKUP($E212-22,AllData,COLUMN()-6-COLUMN($E212)),VLOOKUP($E212-23,AllData,COLUMN()-6-COLUMN($E212)),VLOOKUP($E212-24,AllData,COLUMN()-6-COLUMN($E212)),VLOOKUP($E212-25,AllData,COLUMN()-6-COLUMN($E212)),VLOOKUP($E212-26,AllData,COLUMN()-6-COLUMN($E212)),VLOOKUP($E212-27,AllData,COLUMN()-6-COLUMN($E212)),VLOOKUP($E212-28,AllData,COLUMN()-6-COLUMN($E212)),VLOOKUP($E212-29,AllData,COLUMN()-6-COLUMN($E212)))","v":{"$error":"#N/A"}},{"$f":"VLOOKUP($E212,AllData,COLUMN()-7-COLUMN($E212))","v":{"$error":"#N/A"}},{"$f":"OR('Cool Graph'!$I$1=35,'Cool Graph'!$I$1=36,'Cool Graph'!$I$1=37,'Cool Graph'!$I$1=38,'Cool Graph'!$I$1=39,'Cool Graph'!$I$1=40,'Cool Graph'!$I$1=41,'Cool Graph'!$I$1=42,'Cool Graph'!$I$1=43,'Cool Graph'!$I$1=44,'Cool Graph'!$I$1=45,'Cool Graph'!$I$1=46,'Cool Graph'!$I$1=47,'Cool Graph'!$I$1=58,'Cool Graph'!$I$1=66)","v":false}]
["2012-01-28",{"$f":"OFFSET(OldSchoolJustValues!A213,0,'Cool Graph'!$H$1)","v":16.059999999999999},{"$f":"OFFSET(OldSchoolJustValues!A213,0,'Cool Graph'!$I$1)","v":440.98735186888428},null,{"$f":"IF(NewDate>EndDate,NA(),NewDate)","v":{"$error":"#N/A"}},{"$f":"IF($E213>EndDate,NA(),IF($K$2=TRUE,N213,IF('Cool Graph'!$B$17=1,N213,IF('Cool Graph'!$B$17=2,L213,IF('Cool Graph'!$B$17=3,M213,)))))","v":{"$error":"#N/A"}},{"$f":"IF($E213>EndDate,NA(),IF($O$2=TRUE,J213,IF('Cool Graph'!$B$17=1,Data1!J213,IF('Cool Graph'!$B$17=2,Data1!H213,IF('Cool Graph'!$B$17=3,Data1!I213,)))))","v":{"$error":"#N/A"}},{"$f":"SUM(VLOOKUP($E213,AllData,COLUMN()-COLUMN($E213)),VLOOKUP($E213-1,AllData,COLUMN()-COLUMN($E213)),VLOOKUP($E213-2,AllData,COLUMN()-COLUMN($E213)),VLOOKUP($E213-3,AllData,COLUMN()-COLUMN($E213)),VLOOKUP($E213-4,AllData,COLUMN()-COLUMN($E213)),VLOOKUP($E213-5,AllData,COLUMN()-COLUMN($E213)),VLOOKUP($E213-6,AllData,COLUMN()-COLUMN($E213)))","v":{"$error":"#N/A"}},{"$f":"SUM(VLOOKUP($E213,AllData,COLUMN()-1-COLUMN($E213)),VLOOKUP($E213-1,AllData,COLUMN()-1-COLUMN($E213)),VLOOKUP($E213-2,AllData,COLUMN()-1-COLUMN($E213)),VLOOKUP($E213-3,AllData,COLUMN()-1-COLUMN($E213)),VLOOKUP($E213-4,AllData,COLUMN()-1-COLUMN($E213)),VLOOKUP($E213-5,AllData,COLUMN()-1-COLUMN($E213)),VLOOKUP($E213-6,AllData,COLUMN()-1-COLUMN($E213)),VLOOKUP($E213-7,AllData,COLUMN()-1-COLUMN($E213)),VLOOKUP($E213-8,AllData,COLUMN()-1-COLUMN($E213)),VLOOKUP($E213-9,AllData,COLUMN()-1-COLUMN($E213)),VLOOKUP($E213-10,AllData,COLUMN()-1-COLUMN($E213)),VLOOKUP($E213-11,AllData,COLUMN()-1-COLUMN($E213)),VLOOKUP($E213-12,AllData,COLUMN()-1-COLUMN($E213)),VLOOKUP($E213-13,AllData,COLUMN()-1-COLUMN($E213)),VLOOKUP($E213-14,AllData,COLUMN()-1-COLUMN($E213)),VLOOKUP($E213-15,AllData,COLUMN()-1-COLUMN($E213)),VLOOKUP($E213-16,AllData,COLUMN()-1-COLUMN($E213)),VLOOKUP($E213-17,AllData,COLUMN()-1-COLUMN($E213)),VLOOKUP($E213-18,AllData,COLUMN()-1-COLUMN($E213)),VLOOKUP($E213-19,AllData,COLUMN()-1-COLUMN($E213)),VLOOKUP($E213-20,AllData,COLUMN()-1-COLUMN($E213)),VLOOKUP($E213-21,AllData,COLUMN()-1-COLUMN($E213)),VLOOKUP($E213-22,AllData,COLUMN()-1-COLUMN($E213)),VLOOKUP($E213-23,AllData,COLUMN()-1-COLUMN($E213)),VLOOKUP($E213-24,AllData,COLUMN()-1-COLUMN($E213)),VLOOKUP($E213-25,AllData,COLUMN()-1-COLUMN($E213)),VLOOKUP($E213-26,AllData,COLUMN()-1-COLUMN($E213)),VLOOKUP($E213-27,AllData,COLUMN()-1-COLUMN($E213)),VLOOKUP($E213-28,AllData,COLUMN()-1-COLUMN($E213)),VLOOKUP($E213-29,AllData,COLUMN()-1-COLUMN($E213)))","v":{"$error":"#N/A"}},{"$f":"VLOOKUP($E213,AllData,COLUMN()-2-COLUMN($E213))","v":{"$error":"#N/A"}},{"$f":"OR('Cool Graph'!$H$1=35,'Cool Graph'!$H$1=36,'Cool Graph'!$H$1=37,'Cool Graph'!$H$1=38,'Cool Graph'!$H$1=39,'Cool Graph'!$H$1=40,'Cool Graph'!$H$1=41,'Cool Graph'!$H$1=42,'Cool Graph'!$H$1=43,'Cool Graph'!$H$1=44,'Cool Graph'!$H$1=45,'Cool Graph'!$H$1=46,'Cool Graph'!$H$1=47,'Cool Graph'!$H$1=58,'Cool Graph'!$H$1=66)","v":false},{"$f":"SUM(VLOOKUP($E213,AllData,COLUMN()-5-COLUMN($E213)),VLOOKUP($E213-1,AllData,COLUMN()-5-COLUMN($E213)),VLOOKUP($E213-2,AllData,COLUMN()-5-COLUMN($E213)),VLOOKUP($E213-3,AllData,COLUMN()-5-COLUMN($E213)),VLOOKUP($E213-4,AllData,COLUMN()-5-COLUMN($E213)),VLOOKUP($E213-5,AllData,COLUMN()-5-COLUMN($E213)),VLOOKUP($E213-6,AllData,COLUMN()-5-COLUMN($E213)))","v":{"$error":"#N/A"}},{"$f":"SUM(VLOOKUP($E213,AllData,COLUMN()-6-COLUMN($E213)),VLOOKUP($E213-1,AllData,COLUMN()-6-COLUMN($E213)),VLOOKUP($E213-2,AllData,COLUMN()-6-COLUMN($E213)),VLOOKUP($E213-3,AllData,COLUMN()-6-COLUMN($E213)),VLOOKUP($E213-4,AllData,COLUMN()-6-COLUMN($E213)),VLOOKUP($E213-5,AllData,COLUMN()-6-COLUMN($E213)),VLOOKUP($E213-6,AllData,COLUMN()-6-COLUMN($E213)),VLOOKUP($E213-7,AllData,COLUMN()-6-COLUMN($E213)),VLOOKUP($E213-8,AllData,COLUMN()-6-COLUMN($E213)),VLOOKUP($E213-9,AllData,COLUMN()-6-COLUMN($E213)),VLOOKUP($E213-10,AllData,COLUMN()-6-COLUMN($E213)),VLOOKUP($E213-11,AllData,COLUMN()-6-COLUMN($E213)),VLOOKUP($E213-12,AllData,COLUMN()-6-COLUMN($E213)),VLOOKUP($E213-13,AllData,COLUMN()-6-COLUMN($E213)),VLOOKUP($E213-14,AllData,COLUMN()-6-COLUMN($E213)),VLOOKUP($E213-15,AllData,COLUMN()-6-COLUMN($E213)),VLOOKUP($E213-16,AllData,COLUMN()-6-COLUMN($E213)),VLOOKUP($E213-17,AllData,COLUMN()-6-COLUMN($E213)),VLOOKUP($E213-18,AllData,COLUMN()-6-COLUMN($E213)),VLOOKUP($E213-19,AllData,COLUMN()-6-COLUMN($E213)),VLOOKUP($E213-20,AllData,COLUMN()-6-COLUMN($E213)),VLOOKUP($E213-21,AllData,COLUMN()-6-COLUMN($E213)),VLOOKUP($E213-22,AllData,COLUMN()-6-COLUMN($E213)),VLOOKUP($E213-23,AllData,COLUMN()-6-COLUMN($E213)),VLOOKUP($E213-24,AllData,COLUMN()-6-COLUMN($E213)),VLOOKUP($E213-25,AllData,COLUMN()-6-COLUMN($E213)),VLOOKUP($E213-26,AllData,COLUMN()-6-COLUMN($E213)),VLOOKUP($E213-27,AllData,COLUMN()-6-COLUMN($E213)),VLOOKUP($E213-28,AllData,COLUMN()-6-COLUMN($E213)),VLOOKUP($E213-29,AllData,COLUMN()-6-COLUMN($E213)))","v":{"$error":"#N/A"}},{"$f":"VLOOKUP($E213,AllData,COLUMN()-7-COLUMN($E213))","v":{"$error":"#N/A"}},{"$f":"OR('Cool Graph'!$I$1=35,'Cool Graph'!$I$1=36,'Cool Graph'!$I$1=37,'Cool Graph'!$I$1=38,'Cool Graph'!$I$1=39,'Cool Graph'!$I$1=40,'Cool Graph'!$I$1=41,'Cool Graph'!$I$1=42,'Cool Graph'!$I$1=43,'Cool Graph'!$I$1=44,'Cool Graph'!$I$1=45,'Cool Graph'!$I$1=46,'Cool Graph'!$I$1=47,'Cool Graph'!$I$1=58,'Cool Graph'!$I$1=66)","v":false}]
["2012-01-29",{"$f":"OFFSET(OldSchoolJustValues!A214,0,'Cool Graph'!$H$1)","v":10.58},{"$f":"OFFSET(OldSchoolJustValues!A214,0,'Cool Graph'!$I$1)","v":1358.1563835449535},null,{"$f":"IF(NewDate>EndDate,NA(),NewDate)","v":{"$error":"#N/A"}},{"$f":"IF($E214>EndDate,NA(),IF($K$2=TRUE,N214,IF('Cool Graph'!$B$17=1,N214,IF('Cool Graph'!$B$17=2,L214,IF('Cool Graph'!$B$17=3,M214,)))))","v":{"$error":"#N/A"}},{"$f":"IF($E214>EndDate,NA(),IF($O$2=TRUE,J214,IF('Cool Graph'!$B$17=1,Data1!J214,IF('Cool Graph'!$B$17=2,Data1!H214,IF('Cool Graph'!$B$17=3,Data1!I214,)))))","v":{"$error":"#N/A"}},{"$f":"SUM(VLOOKUP($E214,AllData,COLUMN()-COLUMN($E214)),VLOOKUP($E214-1,AllData,COLUMN()-COLUMN($E214)),VLOOKUP($E214-2,AllData,COLUMN()-COLUMN($E214)),VLOOKUP($E214-3,AllData,COLUMN()-COLUMN($E214)),VLOOKUP($E214-4,AllData,COLUMN()-COLUMN($E214)),VLOOKUP($E214-5,AllData,COLUMN()-COLUMN($E214)),VLOOKUP($E214-6,AllData,COLUMN()-COLUMN($E214)))","v":{"$error":"#N/A"}},{"$f":"SUM(VLOOKUP($E214,AllData,COLUMN()-1-COLUMN($E214)),VLOOKUP($E214-1,AllData,COLUMN()-1-COLUMN($E214)),VLOOKUP($E214-2,AllData,COLUMN()-1-COLUMN($E214)),VLOOKUP($E214-3,AllData,COLUMN()-1-COLUMN($E214)),VLOOKUP($E214-4,AllData,COLUMN()-1-COLUMN($E214)),VLOOKUP($E214-5,AllData,COLUMN()-1-COLUMN($E214)),VLOOKUP($E214-6,AllData,COLUMN()-1-COLUMN($E214)),VLOOKUP($E214-7,AllData,COLUMN()-1-COLUMN($E214)),VLOOKUP($E214-8,AllData,COLUMN()-1-COLUMN($E214)),VLOOKUP($E214-9,AllData,COLUMN()-1-COLUMN($E214)),VLOOKUP($E214-10,AllData,COLUMN()-1-COLUMN($E214)),VLOOKUP($E214-11,AllData,COLUMN()-1-COLUMN($E214)),VLOOKUP($E214-12,AllData,COLUMN()-1-COLUMN($E214)),VLOOKUP($E214-13,AllData,COLUMN()-1-COLUMN($E214)),VLOOKUP($E214-14,AllData,COLUMN()-1-COLUMN($E214)),VLOOKUP($E214-15,AllData,COLUMN()-1-COLUMN($E214)),VLOOKUP($E214-16,AllData,COLUMN()-1-COLUMN($E214)),VLOOKUP($E214-17,AllData,COLUMN()-1-COLUMN($E214)),VLOOKUP($E214-18,AllData,COLUMN()-1-COLUMN($E214)),VLOOKUP($E214-19,AllData,COLUMN()-1-COLUMN($E214)),VLOOKUP($E214-20,AllData,COLUMN()-1-COLUMN($E214)),VLOOKUP($E214-21,AllData,COLUMN()-1-COLUMN($E214)),VLOOKUP($E214-22,AllData,COLUMN()-1-COLUMN($E214)),VLOOKUP($E214-23,AllData,COLUMN()-1-COLUMN($E214)),VLOOKUP($E214-24,AllData,COLUMN()-1-COLUMN($E214)),VLOOKUP($E214-25,AllData,COLUMN()-1-COLUMN($E214)),VLOOKUP($E214-26,AllData,COLUMN()-1-COLUMN($E214)),VLOOKUP($E214-27,AllData,COLUMN()-1-COLUMN($E214)),VLOOKUP($E214-28,AllData,COLUMN()-1-COLUMN($E214)),VLOOKUP($E214-29,AllData,COLUMN()-1-COLUMN($E214)))","v":{"$error":"#N/A"}},{"$f":"VLOOKUP($E214,AllData,COLUMN()-2-COLUMN($E214))","v":{"$error":"#N/A"}},{"$f":"OR('Cool Graph'!$H$1=35,'Cool Graph'!$H$1=36,'Cool Graph'!$H$1=37,'Cool Graph'!$H$1=38,'Cool Graph'!$H$1=39,'Cool Graph'!$H$1=40,'Cool Graph'!$H$1=41,'Cool Graph'!$H$1=42,'Cool Graph'!$H$1=43,'Cool Graph'!$H$1=44,'Cool Graph'!$H$1=45,'Cool Graph'!$H$1=46,'Cool Graph'!$H$1=47,'Cool Graph'!$H$1=58,'Cool Graph'!$H$1=66)","v":false},{"$f":"SUM(VLOOKUP($E214,AllData,COLUMN()-5-COLUMN($E214)),VLOOKUP($E214-1,AllData,COLUMN()-5-COLUMN($E214)),VLOOKUP($E214-2,AllData,COLUMN()-5-COLUMN($E214)),VLOOKUP($E214-3,AllData,COLUMN()-5-COLUMN($E214)),VLOOKUP($E214-4,AllData,COLUMN()-5-COLUMN($E214)),VLOOKUP($E214-5,AllData,COLUMN()-5-COLUMN($E214)),VLOOKUP($E214-6,AllData,COLUMN()-5-COLUMN($E214)))","v":{"$error":"#N/A"}},{"$f":"SUM(VLOOKUP($E214,AllData,COLUMN()-6-COLUMN($E214)),VLOOKUP($E214-1,AllData,COLUMN()-6-COLUMN($E214)),VLOOKUP($E214-2,AllData,COLUMN()-6-COLUMN($E214)),VLOOKUP($E214-3,AllData,COLUMN()-6-COLUMN($E214)),VLOOKUP($E214-4,AllData,COLUMN()-6-COLUMN($E214)),VLOOKUP($E214-5,AllData,COLUMN()-6-COLUMN($E214)),VLOOKUP($E214-6,AllData,COLUMN()-6-COLUMN($E214)),VLOOKUP($E214-7,AllData,COLUMN()-6-COLUMN($E214)),VLOOKUP($E214-8,AllData,COLUMN()-6-COLUMN($E214)),VLOOKUP($E214-9,AllData,COLUMN()-6-COLUMN($E214)),VLOOKUP($E214-10,AllData,COLUMN()-6-COLUMN($E214)),VLOOKUP($E214-11,AllData,COLUMN()-6-COLUMN($E214)),VLOOKUP($E214-12,AllData,COLUMN()-6-COLUMN($E214)),VLOOKUP($E214-13,AllData,COLUMN()-6-COLUMN($E214)),VLOOKUP($E214-14,AllData,COLUMN()-6-COLUMN($E214)),VLOOKUP($E214-15,AllData,COLUMN()-6-COLUMN($E214)),VLOOKUP($E214-16,AllData,COLUMN()-6-COLUMN($E214)),VLOOKUP($E214-17,AllData,COLUMN()-6-COLUMN($E214)),VLOOKUP($E214-18,AllData,COLUMN()-6-COLUMN($E214)),VLOOKUP($E214-19,AllData,COLUMN()-6-COLUMN($E214)),VLOOKUP($E214-20,AllData,COLUMN()-6-COLUMN($E214)),VLOOKUP($E214-21,AllData,COLUMN()-6-COLUMN($E214)),VLOOKUP($E214-22,AllData,COLUMN()-6-COLUMN($E214)),VLOOKUP($E214-23,AllData,COLUMN()-6-COLUMN($E214)),VLOOKUP($E214-24,AllData,COLUMN()-6-COLUMN($E214)),VLOOKUP($E214-25,AllData,COLUMN()-6-COLUMN($E214)),VLOOKUP($E214-26,AllData,COLUMN()-6-COLUMN($E214)),VLOOKUP($E214-27,AllData,COLUMN()-6-COLUMN($E214)),VLOOKUP($E214-28,AllData,COLUMN()-6-COLUMN($E214)),VLOOKUP($E214-29,AllData,COLUMN()-6-COLUMN($E214)))","v":{"$error":"#N/A"}},{"$f":"VLOOKUP($E214,AllData,COLUMN()-7-COLUMN($E214))","v":{"$error":"#N/A"}},{"$f":"OR('Cool Graph'!$I$1=35,'Cool Graph'!$I$1=36,'Cool Graph'!$I$1=37,'Cool Graph'!$I$1=38,'Cool Graph'!$I$1=39,'Cool Graph'!$I$1=40,'Cool Graph'!$I$1=41,'Cool Graph'!$I$1=42,'Cool Graph'!$I$1=43,'Cool Graph'!$I$1=44,'Cool Graph'!$I$1=45,'Cool Graph'!$I$1=46,'Cool Graph'!$I$1=47,'Cool Graph'!$I$1=58,'Cool Graph'!$I$1=66)","v":false}]
["2012-01-30",{"$f":"OFFSET(OldSchoolJustValues!A215,0,'Cool Graph'!$H$1)","v":9.7799999999999994},{"$f":"OFFSET(OldSchoolJustValues!A215,0,'Cool Graph'!$I$1)","v":439.04971380016275},null,{"$f":"IF(NewDate>EndDate,NA(),NewDate)","v":{"$error":"#N/A"}},{"$f":"IF($E215>EndDate,NA(),IF($K$2=TRUE,N215,IF('Cool Graph'!$B$17=1,N215,IF('Cool Graph'!$B$17=2,L215,IF('Cool Graph'!$B$17=3,M215,)))))","v":{"$error":"#N/A"}},{"$f":"IF($E215>EndDate,NA(),IF($O$2=TRUE,J215,IF('Cool Graph'!$B$17=1,Data1!J215,IF('Cool Graph'!$B$17=2,Data1!H215,IF('Cool Graph'!$B$17=3,Data1!I215,)))))","v":{"$error":"#N/A"}},{"$f":"SUM(VLOOKUP($E215,AllData,COLUMN()-COLUMN($E215)),VLOOKUP($E215-1,AllData,COLUMN()-COLUMN($E215)),VLOOKUP($E215-2,AllData,COLUMN()-COLUMN($E215)),VLOOKUP($E215-3,AllData,COLUMN()-COLUMN($E215)),VLOOKUP($E215-4,AllData,COLUMN()-COLUMN($E215)),VLOOKUP($E215-5,AllData,COLUMN()-COLUMN($E215)),VLOOKUP($E215-6,AllData,COLUMN()-COLUMN($E215)))","v":{"$error":"#N/A"}},{"$f":"SUM(VLOOKUP($E215,AllData,COLUMN()-1-COLUMN($E215)),VLOOKUP($E215-1,AllData,COLUMN()-1-COLUMN($E215)),VLOOKUP($E215-2,AllData,COLUMN()-1-COLUMN($E215)),VLOOKUP($E215-3,AllData,COLUMN()-1-COLUMN($E215)),VLOOKUP($E215-4,AllData,COLUMN()-1-COLUMN($E215)),VLOOKUP($E215-5,AllData,COLUMN()-1-COLUMN($E215)),VLOOKUP($E215-6,AllData,COLUMN()-1-COLUMN($E215)),VLOOKUP($E215-7,AllData,COLUMN()-1-COLUMN($E215)),VLOOKUP($E215-8,AllData,COLUMN()-1-COLUMN($E215)),VLOOKUP($E215-9,AllData,COLUMN()-1-COLUMN($E215)),VLOOKUP($E215-10,AllData,COLUMN()-1-COLUMN($E215)),VLOOKUP($E215-11,AllData,COLUMN()-1-COLUMN($E215)),VLOOKUP($E215-12,AllData,COLUMN()-1-COLUMN($E215)),VLOOKUP($E215-13,AllData,COLUMN()-1-COLUMN($E215)),VLOOKUP($E215-14,AllData,COLUMN()-1-COLUMN($E215)),VLOOKUP($E215-15,AllData,COLUMN()-1-COLUMN($E215)),VLOOKUP($E215-16,AllData,COLUMN()-1-COLUMN($E215)),VLOOKUP($E215-17,AllData,COLUMN()-1-COLUMN($E215)),VLOOKUP($E215-18,AllData,COLUMN()-1-COLUMN($E215)),VLOOKUP($E215-19,AllData,COLUMN()-1-COLUMN($E215)),VLOOKUP($E215-20,AllData,COLUMN()-1-COLUMN($E215)),VLOOKUP($E215-21,AllData,COLUMN()-1-COLUMN($E215)),VLOOKUP($E215-22,AllData,COLUMN()-1-COLUMN($E215)),VLOOKUP($E215-23,AllData,COLUMN()-1-COLUMN($E215)),VLOOKUP($E215-24,AllData,COLUMN()-1-COLUMN($E215)),VLOOKUP($E215-25,AllData,COLUMN()-1-COLUMN($E215)),VLOOKUP($E215-26,AllData,COLUMN()-1-COLUMN($E215)),VLOOKUP($E215-27,AllData,COLUMN()-1-COLUMN($E215)),VLOOKUP($E215-28,AllData,COLUMN()-1-COLUMN($E215)),VLOOKUP($E215-29,AllData,COLUMN()-1-COLUMN($E215)))","v":{"$error":"#N/A"}},{"$f":"VLOOKUP($E215,AllData,COLUMN()-2-COLUMN($E215))","v":{"$error":"#N/A"}},{"$f":"OR('Cool Graph'!$H$1=35,'Cool Graph'!$H$1=36,'Cool Graph'!$H$1=37,'Cool Graph'!$H$1=38,'Cool Graph'!$H$1=39,'Cool Graph'!$H$1=40,'Cool Graph'!$H$1=41,'Cool Graph'!$H$1=42,'Cool Graph'!$H$1=43,'Cool Graph'!$H$1=44,'Cool Graph'!$H$1=45,'Cool Graph'!$H$1=46,'Cool Graph'!$H$1=47,'Cool Graph'!$H$1=58,'Cool Graph'!$H$1=66)","v":false},{"$f":"SUM(VLOOKUP($E215,AllData,COLUMN()-5-COLUMN($E215)),VLOOKUP($E215-1,AllData,COLUMN()-5-COLUMN($E215)),VLOOKUP($E215-2,AllData,COLUMN()-5-COLUMN($E215)),VLOOKUP($E215-3,AllData,COLUMN()-5-COLUMN($E215)),VLOOKUP($E215-4,AllData,COLUMN()-5-COLUMN($E215)),VLOOKUP($E215-5,AllData,COLUMN()-5-COLUMN($E215)),VLOOKUP($E215-6,AllData,COLUMN()-5-COLUMN($E215)))","v":{"$error":"#N/A"}},{"$f":"SUM(VLOOKUP($E215,AllData,COLUMN()-6-COLUMN($E215)),VLOOKUP($E215-1,AllData,COLUMN()-6-COLUMN($E215)),VLOOKUP($E215-2,AllData,COLUMN()-6-COLUMN($E215)),VLOOKUP($E215-3,AllData,COLUMN()-6-COLUMN($E215)),VLOOKUP($E215-4,AllData,COLUMN()-6-COLUMN($E215)),VLOOKUP($E215-5,AllData,COLUMN()-6-COLUMN($E215)),VLOOKUP($E215-6,AllData,COLUMN()-6-COLUMN($E215)),VLOOKUP($E215-7,AllData,COLUMN()-6-COLUMN($E215)),VLOOKUP($E215-8,AllData,COLUMN()-6-COLUMN($E215)),VLOOKUP($E215-9,AllData,COLUMN()-6-COLUMN($E215)),VLOOKUP($E215-10,AllData,COLUMN()-6-COLUMN($E215)),VLOOKUP($E215-11,AllData,COLUMN()-6-COLUMN($E215)),VLOOKUP($E215-12,AllData,COLUMN()-6-COLUMN($E215)),VLOOKUP($E215-13,AllData,COLUMN()-6-COLUMN($E215)),VLOOKUP($E215-14,AllData,COLUMN()-6-COLUMN($E215)),VLOOKUP($E215-15,AllData,COLUMN()-6-COLUMN($E215)),VLOOKUP($E215-16,AllData,COLUMN()-6-COLUMN($E215)),VLOOKUP($E215-17,AllData,COLUMN()-6-COLUMN($E215)),VLOOKUP($E215-18,AllData,COLUMN()-6-COLUMN($E215)),VLOOKUP($E215-19,AllData,COLUMN()-6-COLUMN($E215)),VLOOKUP($E215-20,AllData,COLUMN()-6-COLUMN($E215)),VLOOKUP($E215-21,AllData,COLUMN()-6-COLUMN($E215)),VLOOKUP($E215-22,AllData,COLUMN()-6-COLUMN($E215)),VLOOKUP($E215-23,AllData,COLUMN()-6-COLUMN($E215)),VLOOKUP($E215-24,AllData,COLUMN()-6-COLUMN($E215)),VLOOKUP($E215-25,AllData,COLUMN()-6-COLUMN($E215)),VLOOKUP($E215-26,AllData,COLUMN()-6-COLUMN($E215)),VLOOKUP($E215-27,AllData,COLUMN()-6-COLUMN($E215)),VLOOKUP($E215-28,AllData,COLUMN()-6-COLUMN($E215)),VLOOKUP($E215-29,AllData,COLUMN()-6-COLUMN($E215)))","v":{"$error":"#N/A"}},{"$f":"VLOOKUP($E215,AllData,COLUMN()-7-COLUMN($E215))","v":{"$error":"#N/A"}},{"$f":"OR('Cool Graph'!$I$1=35,'Cool Graph'!$I$1=36,'Cool Graph'!$I$1=37,'Cool Graph'!$I$1=38,'Cool Graph'!$I$1=39,'Cool Graph'!$I$1=40,'Cool Graph'!$I$1=41,'Cool Graph'!$I$1=42,'Cool Graph'!$I$1=43,'Cool Graph'!$I$1=44,'Cool Graph'!$I$1=45,'Cool Graph'!$I$1=46,'Cool Graph'!$I$1=47,'Cool Graph'!$I$1=58,'Cool Graph'!$I$1=66)","v":false}]
["2012-01-31",{"$f":"OFFSET(OldSchoolJustValues!A216,0,'Cool Graph'!$H$1)","v":14.3},{"$f":"OFFSET(OldSchoolJustValues!A216,0,'Cool Graph'!$I$1)","v":352.25110023649768},null,{"$f":"IF(NewDate>EndDate,NA(),NewDate)","v":{"$error":"#N/A"}},{"$f":"IF($E216>EndDate,NA(),IF($K$2=TRUE,N216,IF('Cool Graph'!$B$17=1,N216,IF('Cool Graph'!$B$17=2,L216,IF('Cool Graph'!$B$17=3,M216,)))))","v":{"$error":"#N/A"}},{"$f":"IF($E216>EndDate,NA(),IF($O$2=TRUE,J216,IF('Cool Graph'!$B$17=1,Data1!J216,IF('Cool Graph'!$B$17=2,Data1!H216,IF('Cool Graph'!$B$17=3,Data1!I216,)))))","v":{"$error":"#N/A"}},{"$f":"SUM(VLOOKUP($E216,AllData,COLUMN()-COLUMN($E216)),VLOOKUP($E216-1,AllData,COLUMN()-COLUMN($E216)),VLOOKUP($E216-2,AllData,COLUMN()-COLUMN($E216)),VLOOKUP($E216-3,AllData,COLUMN()-COLUMN($E216)),VLOOKUP($E216-4,AllData,COLUMN()-COLUMN($E216)),VLOOKUP($E216-5,AllData,COLUMN()-COLUMN($E216)),VLOOKUP($E216-6,AllData,COLUMN()-COLUMN($E216)))","v":{"$error":"#N/A"}},{"$f":"SUM(VLOOKUP($E216,AllData,COLUMN()-1-COLUMN($E216)),VLOOKUP($E216-1,AllData,COLUMN()-1-COLUMN($E216)),VLOOKUP($E216-2,AllData,COLUMN()-1-COLUMN($E216)),VLOOKUP($E216-3,AllData,COLUMN()-1-COLUMN($E216)),VLOOKUP($E216-4,AllData,COLUMN()-1-COLUMN($E216)),VLOOKUP($E216-5,AllData,COLUMN()-1-COLUMN($E216)),VLOOKUP($E216-6,AllData,COLUMN()-1-COLUMN($E216)),VLOOKUP($E216-7,AllData,COLUMN()-1-COLUMN($E216)),VLOOKUP($E216-8,AllData,COLUMN()-1-COLUMN($E216)),VLOOKUP($E216-9,AllData,COLUMN()-1-COLUMN($E216)),VLOOKUP($E216-10,AllData,COLUMN()-1-COLUMN($E216)),VLOOKUP($E216-11,AllData,COLUMN()-1-COLUMN($E216)),VLOOKUP($E216-12,AllData,COLUMN()-1-COLUMN($E216)),VLOOKUP($E216-13,AllData,COLUMN()-1-COLUMN($E216)),VLOOKUP($E216-14,AllData,COLUMN()-1-COLUMN($E216)),VLOOKUP($E216-15,AllData,COLUMN()-1-COLUMN($E216)),VLOOKUP($E216-16,AllData,COLUMN()-1-COLUMN($E216)),VLOOKUP($E216-17,AllData,COLUMN()-1-COLUMN($E216)),VLOOKUP($E216-18,AllData,COLUMN()-1-COLUMN($E216)),VLOOKUP($E216-19,AllData,COLUMN()-1-COLUMN($E216)),VLOOKUP($E216-20,AllData,COLUMN()-1-COLUMN($E216)),VLOOKUP($E216-21,AllData,COLUMN()-1-COLUMN($E216)),VLOOKUP($E216-22,AllData,COLUMN()-1-COLUMN($E216)),VLOOKUP($E216-23,AllData,COLUMN()-1-COLUMN($E216)),VLOOKUP($E216-24,AllData,COLUMN()-1-COLUMN($E216)),VLOOKUP($E216-25,AllData,COLUMN()-1-COLUMN($E216)),VLOOKUP($E216-26,AllData,COLUMN()-1-COLUMN($E216)),VLOOKUP($E216-27,AllData,COLUMN()-1-COLUMN($E216)),VLOOKUP($E216-28,AllData,COLUMN()-1-COLUMN($E216)),VLOOKUP($E216-29,AllData,COLUMN()-1-COLUMN($E216)))","v":{"$error":"#N/A"}},{"$f":"VLOOKUP($E216,AllData,COLUMN()-2-COLUMN($E216))","v":{"$error":"#N/A"}},{"$f":"OR('Cool Graph'!$H$1=35,'Cool Graph'!$H$1=36,'Cool Graph'!$H$1=37,'Cool Graph'!$H$1=38,'Cool Graph'!$H$1=39,'Cool Graph'!$H$1=40,'Cool Graph'!$H$1=41,'Cool Graph'!$H$1=42,'Cool Graph'!$H$1=43,'Cool Graph'!$H$1=44,'Cool Graph'!$H$1=45,'Cool Graph'!$H$1=46,'Cool Graph'!$H$1=47,'Cool Graph'!$H$1=58,'Cool Graph'!$H$1=66)","v":false},{"$f":"SUM(VLOOKUP($E216,AllData,COLUMN()-5-COLUMN($E216)),VLOOKUP($E216-1,AllData,COLUMN()-5-COLUMN($E216)),VLOOKUP($E216-2,AllData,COLUMN()-5-COLUMN($E216)),VLOOKUP($E216-3,AllData,COLUMN()-5-COLUMN($E216)),VLOOKUP($E216-4,AllData,COLUMN()-5-COLUMN($E216)),VLOOKUP($E216-5,AllData,COLUMN()-5-COLUMN($E216)),VLOOKUP($E216-6,AllData,COLUMN()-5-COLUMN($E216)))","v":{"$error":"#N/A"}},{"$f":"SUM(VLOOKUP($E216,AllData,COLUMN()-6-COLUMN($E216)),VLOOKUP($E216-1,AllData,COLUMN()-6-COLUMN($E216)),VLOOKUP($E216-2,AllData,COLUMN()-6-COLUMN($E216)),VLOOKUP($E216-3,AllData,COLUMN()-6-COLUMN($E216)),VLOOKUP($E216-4,AllData,COLUMN()-6-COLUMN($E216)),VLOOKUP($E216-5,AllData,COLUMN()-6-COLUMN($E216)),VLOOKUP($E216-6,AllData,COLUMN()-6-COLUMN($E216)),VLOOKUP($E216-7,AllData,COLUMN()-6-COLUMN($E216)),VLOOKUP($E216-8,AllData,COLUMN()-6-COLUMN($E216)),VLOOKUP($E216-9,AllData,COLUMN()-6-COLUMN($E216)),VLOOKUP($E216-10,AllData,COLUMN()-6-COLUMN($E216)),VLOOKUP($E216-11,AllData,COLUMN()-6-COLUMN($E216)),VLOOKUP($E216-12,AllData,COLUMN()-6-COLUMN($E216)),VLOOKUP($E216-13,AllData,COLUMN()-6-COLUMN($E216)),VLOOKUP($E216-14,AllData,COLUMN()-6-COLUMN($E216)),VLOOKUP($E216-15,AllData,COLUMN()-6-COLUMN($E216)),VLOOKUP($E216-16,AllData,COLUMN()-6-COLUMN($E216)),VLOOKUP($E216-17,AllData,COLUMN()-6-COLUMN($E216)),VLOOKUP($E216-18,AllData,COLUMN()-6-COLUMN($E216)),VLOOKUP($E216-19,AllData,COLUMN()-6-COLUMN($E216)),VLOOKUP($E216-20,AllData,COLUMN()-6-COLUMN($E216)),VLOOKUP($E216-21,AllData,COLUMN()-6-COLUMN($E216)),VLOOKUP($E216-22,AllData,COLUMN()-6-COLUMN($E216)),VLOOKUP($E216-23,AllData,COLUMN()-6-COLUMN($E216)),VLOOKUP($E216-24,AllData,COLUMN()-6-COLUMN($E216)),VLOOKUP($E216-25,AllData,COLUMN()-6-COLUMN($E216)),VLOOKUP($E216-26,AllData,COLUMN()-6-COLUMN($E216)),VLOOKUP($E216-27,AllData,COLUMN()-6-COLUMN($E216)),VLOOKUP($E216-28,AllData,COLUMN()-6-COLUMN($E216)),VLOOKUP($E216-29,AllData,COLUMN()-6-COLUMN($E216)))","v":{"$error":"#N/A"}},{"$f":"VLOOKUP($E216,AllData,COLUMN()-7-COLUMN($E216))","v":{"$error":"#N/A"}},{"$f":"OR('Cool Graph'!$I$1=35,'Cool Graph'!$I$1=36,'Cool Graph'!$I$1=37,'Cool Graph'!$I$1=38,'Cool Graph'!$I$1=39,'Cool Graph'!$I$1=40,'Cool Graph'!$I$1=41,'Cool Graph'!$I$1=42,'Cool Graph'!$I$1=43,'Cool Graph'!$I$1=44,'Cool Graph'!$I$1=45,'Cool Graph'!$I$1=46,'Cool Graph'!$I$1=47,'Cool Graph'!$I$1=58,'Cool Graph'!$I$1=66)","v":false}]
["2012-02-01",{"$f":"OFFSET(OldSchoolJustValues!A217,0,'Cool Graph'!$H$1)","v":8.81},{"$f":"OFFSET(OldSchoolJustValues!A217,0,'Cool Graph'!$I$1)","v":315.01055865849628},null,{"$f":"IF(NewDate>EndDate,NA(),NewDate)","v":{"$error":"#N/A"}},{"$f":"IF($E217>EndDate,NA(),IF($K$2=TRUE,N217,IF('Cool Graph'!$B$17=1,N217,IF('Cool Graph'!$B$17=2,L217,IF('Cool Graph'!$B$17=3,M217,)))))","v":{"$error":"#N/A"}},{"$f":"IF($E217>EndDate,NA(),IF($O$2=TRUE,J217,IF('Cool Graph'!$B$17=1,Data1!J217,IF('Cool Graph'!$B$17=2,Data1!H217,IF('Cool Graph'!$B$17=3,Data1!I217,)))))","v":{"$error":"#N/A"}},{"$f":"SUM(VLOOKUP($E217,AllData,COLUMN()-COLUMN($E217)),VLOOKUP($E217-1,AllData,COLUMN()-COLUMN($E217)),VLOOKUP($E217-2,AllData,COLUMN()-COLUMN($E217)),VLOOKUP($E217-3,AllData,COLUMN()-COLUMN($E217)),VLOOKUP($E217-4,AllData,COLUMN()-COLUMN($E217)),VLOOKUP($E217-5,AllData,COLUMN()-COLUMN($E217)),VLOOKUP($E217-6,AllData,COLUMN()-COLUMN($E217)))","v":{"$error":"#N/A"}},{"$f":"SUM(VLOOKUP($E217,AllData,COLUMN()-1-COLUMN($E217)),VLOOKUP($E217-1,AllData,COLUMN()-1-COLUMN($E217)),VLOOKUP($E217-2,AllData,COLUMN()-1-COLUMN($E217)),VLOOKUP($E217-3,AllData,COLUMN()-1-COLUMN($E217)),VLOOKUP($E217-4,AllData,COLUMN()-1-COLUMN($E217)),VLOOKUP($E217-5,AllData,COLUMN()-1-COLUMN($E217)),VLOOKUP($E217-6,AllData,COLUMN()-1-COLUMN($E217)),VLOOKUP($E217-7,AllData,COLUMN()-1-COLUMN($E217)),VLOOKUP($E217-8,AllData,COLUMN()-1-COLUMN($E217)),VLOOKUP($E217-9,AllData,COLUMN()-1-COLUMN($E217)),VLOOKUP($E217-10,AllData,COLUMN()-1-COLUMN($E217)),VLOOKUP($E217-11,AllData,COLUMN()-1-COLUMN($E217)),VLOOKUP($E217-12,AllData,COLUMN()-1-COLUMN($E217)),VLOOKUP($E217-13,AllData,COLUMN()-1-COLUMN($E217)),VLOOKUP($E217-14,AllData,COLUMN()-1-COLUMN($E217)),VLOOKUP($E217-15,AllData,COLUMN()-1-COLUMN($E217)),VLOOKUP($E217-16,AllData,COLUMN()-1-COLUMN($E217)),VLOOKUP($E217-17,AllData,COLUMN()-1-COLUMN($E217)),VLOOKUP($E217-18,AllData,COLUMN()-1-COLUMN($E217)),VLOOKUP($E217-19,AllData,COLUMN()-1-COLUMN($E217)),VLOOKUP($E217-20,AllData,COLUMN()-1-COLUMN($E217)),VLOOKUP($E217-21,AllData,COLUMN()-1-COLUMN($E217)),VLOOKUP($E217-22,AllData,COLUMN()-1-COLUMN($E217)),VLOOKUP($E217-23,AllData,COLUMN()-1-COLUMN($E217)),VLOOKUP($E217-24,AllData,COLUMN()-1-COLUMN($E217)),VLOOKUP($E217-25,AllData,COLUMN()-1-COLUMN($E217)),VLOOKUP($E217-26,AllData,COLUMN()-1-COLUMN($E217)),VLOOKUP($E217-27,AllData,COLUMN()-1-COLUMN($E217)),VLOOKUP($E217-28,AllData,COLUMN()-1-COLUMN($E217)),VLOOKUP($E217-29,AllData,COLUMN()-1-COLUMN($E217)))","v":{"$error":"#N/A"}},{"$f":"VLOOKUP($E217,AllData,COLUMN()-2-COLUMN($E217))","v":{"$error":"#N/A"}},{"$f":"OR('Cool Graph'!$H$1=35,'Cool Graph'!$H$1=36,'Cool Graph'!$H$1=37,'Cool Graph'!$H$1=38,'Cool Graph'!$H$1=39,'Cool Graph'!$H$1=40,'Cool Graph'!$H$1=41,'Cool Graph'!$H$1=42,'Cool Graph'!$H$1=43,'Cool Graph'!$H$1=44,'Cool Graph'!$H$1=45,'Cool Graph'!$H$1=46,'Cool Graph'!$H$1=47,'Cool Graph'!$H$1=58,'Cool Graph'!$H$1=66)","v":false},{"$f":"SUM(VLOOKUP($E217,AllData,COLUMN()-5-COLUMN($E217)),VLOOKUP($E217-1,AllData,COLUMN()-5-COLUMN($E217)),VLOOKUP($E217-2,AllData,COLUMN()-5-COLUMN($E217)),VLOOKUP($E217-3,AllData,COLUMN()-5-COLUMN($E217)),VLOOKUP($E217-4,AllData,COLUMN()-5-COLUMN($E217)),VLOOKUP($E217-5,AllData,COLUMN()-5-COLUMN($E217)),VLOOKUP($E217-6,AllData,COLUMN()-5-COLUMN($E217)))","v":{"$error":"#N/A"}},{"$f":"SUM(VLOOKUP($E217,AllData,COLUMN()-6-COLUMN($E217)),VLOOKUP($E217-1,AllData,COLUMN()-6-COLUMN($E217)),VLOOKUP($E217-2,AllData,COLUMN()-6-COLUMN($E217)),VLOOKUP($E217-3,AllData,COLUMN()-6-COLUMN($E217)),VLOOKUP($E217-4,AllData,COLUMN()-6-COLUMN($E217)),VLOOKUP($E217-5,AllData,COLUMN()-6-COLUMN($E217)),VLOOKUP($E217-6,AllData,COLUMN()-6-COLUMN($E217)),VLOOKUP($E217-7,AllData,COLUMN()-6-COLUMN($E217)),VLOOKUP($E217-8,AllData,COLUMN()-6-COLUMN($E217)),VLOOKUP($E217-9,AllData,COLUMN()-6-COLUMN($E217)),VLOOKUP($E217-10,AllData,COLUMN()-6-COLUMN($E217)),VLOOKUP($E217-11,AllData,COLUMN()-6-COLUMN($E217)),VLOOKUP($E217-12,AllData,COLUMN()-6-COLUMN($E217)),VLOOKUP($E217-13,AllData,COLUMN()-6-COLUMN($E217)),VLOOKUP($E217-14,AllData,COLUMN()-6-COLUMN($E217)),VLOOKUP($E217-15,AllData,COLUMN()-6-COLUMN($E217)),VLOOKUP($E217-16,AllData,COLUMN()-6-COLUMN($E217)),VLOOKUP($E217-17,AllData,COLUMN()-6-COLUMN($E217)),VLOOKUP($E217-18,AllData,COLUMN()-6-COLUMN($E217)),VLOOKUP($E217-19,AllData,COLUMN()-6-COLUMN($E217)),VLOOKUP($E217-20,AllData,COLUMN()-6-COLUMN($E217)),VLOOKUP($E217-21,AllData,COLUMN()-6-COLUMN($E217)),VLOOKUP($E217-22,AllData,COLUMN()-6-COLUMN($E217)),VLOOKUP($E217-23,AllData,COLUMN()-6-COLUMN($E217)),VLOOKUP($E217-24,AllData,COLUMN()-6-COLUMN($E217)),VLOOKUP($E217-25,AllData,COLUMN()-6-COLUMN($E217)),VLOOKUP($E217-26,AllData,COLUMN()-6-COLUMN($E217)),VLOOKUP($E217-27,AllData,COLUMN()-6-COLUMN($E217)),VLOOKUP($E217-28,AllData,COLUMN()-6-COLUMN($E217)),VLOOKUP($E217-29,AllData,COLUMN()-6-COLUMN($E217)))","v":{"$error":"#N/A"}},{"$f":"VLOOKUP($E217,AllData,COLUMN()-7-COLUMN($E217))","v":{"$error":"#N/A"}},{"$f":"OR('Cool Graph'!$I$1=35,'Cool Graph'!$I$1=36,'Cool Graph'!$I$1=37,'Cool Graph'!$I$1=38,'Cool Graph'!$I$1=39,'Cool Graph'!$I$1=40,'Cool Graph'!$I$1=41,'Cool Graph'!$I$1=42,'Cool Graph'!$I$1=43,'Cool Graph'!$I$1=44,'Cool Graph'!$I$1=45,'Cool Graph'!$I$1=46,'Cool Graph'!$I$1=47,'Cool Graph'!$I$1=58,'Cool Graph'!$I$1=66)","v":false}]
["2012-02-02",{"$f":"OFFSET(OldSchoolJustValues!A218,0,'Cool Graph'!$H$1)","v":79.209999999999994},{"$f":"OFFSET(OldSchoolJustValues!A218,0,'Cool Graph'!$I$1)","v":932.58189740712294},null,{"$f":"IF(NewDate>EndDate,NA(),NewDate)","v":{"$error":"#N/A"}},{"$f":"IF($E218>EndDate,NA(),IF($K$2=TRUE,N218,IF('Cool Graph'!$B$17=1,N218,IF('Cool Graph'!$B$17=2,L218,IF('Cool Graph'!$B$17=3,M218,)))))","v":{"$error":"#N/A"}},{"$f":"IF($E218>EndDate,NA(),IF($O$2=TRUE,J218,IF('Cool Graph'!$B$17=1,Data1!J218,IF('Cool Graph'!$B$17=2,Data1!H218,IF('Cool Graph'!$B$17=3,Data1!I218,)))))","v":{"$error":"#N/A"}},{"$f":"SUM(VLOOKUP($E218,AllData,COLUMN()-COLUMN($E218)),VLOOKUP($E218-1,AllData,COLUMN()-COLUMN($E218)),VLOOKUP($E218-2,AllData,COLUMN()-COLUMN($E218)),VLOOKUP($E218-3,AllData,COLUMN()-COLUMN($E218)),VLOOKUP($E218-4,AllData,COLUMN()-COLUMN($E218)),VLOOKUP($E218-5,AllData,COLUMN()-COLUMN($E218)),VLOOKUP($E218-6,AllData,COLUMN()-COLUMN($E218)))","v":{"$error":"#N/A"}},{"$f":"SUM(VLOOKUP($E218,AllData,COLUMN()-1-COLUMN($E218)),VLOOKUP($E218-1,AllData,COLUMN()-1-COLUMN($E218)),VLOOKUP($E218-2,AllData,COLUMN()-1-COLUMN($E218)),VLOOKUP($E218-3,AllData,COLUMN()-1-COLUMN($E218)),VLOOKUP($E218-4,AllData,COLUMN()-1-COLUMN($E218)),VLOOKUP($E218-5,AllData,COLUMN()-1-COLUMN($E218)),VLOOKUP($E218-6,AllData,COLUMN()-1-COLUMN($E218)),VLOOKUP($E218-7,AllData,COLUMN()-1-COLUMN($E218)),VLOOKUP($E218-8,AllData,COLUMN()-1-COLUMN($E218)),VLOOKUP($E218-9,AllData,COLUMN()-1-COLUMN($E218)),VLOOKUP($E218-10,AllData,COLUMN()-1-COLUMN($E218)),VLOOKUP($E218-11,AllData,COLUMN()-1-COLUMN($E218)),VLOOKUP($E218-12,AllData,COLUMN()-1-COLUMN($E218)),VLOOKUP($E218-13,AllData,COLUMN()-1-COLUMN($E218)),VLOOKUP($E218-14,AllData,COLUMN()-1-COLUMN($E218)),VLOOKUP($E218-15,AllData,COLUMN()-1-COLUMN($E218)),VLOOKUP($E218-16,AllData,COLUMN()-1-COLUMN($E218)),VLOOKUP($E218-17,AllData,COLUMN()-1-COLUMN($E218)),VLOOKUP($E218-18,AllData,COLUMN()-1-COLUMN($E218)),VLOOKUP($E218-19,AllData,COLUMN()-1-COLUMN($E218)),VLOOKUP($E218-20,AllData,COLUMN()-1-COLUMN($E218)),VLOOKUP($E218-21,AllData,COLUMN()-1-COLUMN($E218)),VLOOKUP($E218-22,AllData,COLUMN()-1-COLUMN($E218)),VLOOKUP($E218-23,AllData,COLUMN()-1-COLUMN($E218)),VLOOKUP($E218-24,AllData,COLUMN()-1-COLUMN($E218)),VLOOKUP($E218-25,AllData,COLUMN()-1-COLUMN($E218)),VLOOKUP($E218-26,AllData,COLUMN()-1-COLUMN($E218)),VLOOKUP($E218-27,AllData,COLUMN()-1-COLUMN($E218)),VLOOKUP($E218-28,AllData,COLUMN()-1-COLUMN($E218)),VLOOKUP($E218-29,AllData,COLUMN()-1-COLUMN($E218)))","v":{"$error":"#N/A"}},{"$f":"VLOOKUP($E218,AllData,COLUMN()-2-COLUMN($E218))","v":{"$error":"#N/A"}},{"$f":"OR('Cool Graph'!$H$1=35,'Cool Graph'!$H$1=36,'Cool Graph'!$H$1=37,'Cool Graph'!$H$1=38,'Cool Graph'!$H$1=39,'Cool Graph'!$H$1=40,'Cool Graph'!$H$1=41,'Cool Graph'!$H$1=42,'Cool Graph'!$H$1=43,'Cool Graph'!$H$1=44,'Cool Graph'!$H$1=45,'Cool Graph'!$H$1=46,'Cool Graph'!$H$1=47,'Cool Graph'!$H$1=58,'Cool Graph'!$H$1=66)","v":false},{"$f":"SUM(VLOOKUP($E218,AllData,COLUMN()-5-COLUMN($E218)),VLOOKUP($E218-1,AllData,COLUMN()-5-COLUMN($E218)),VLOOKUP($E218-2,AllData,COLUMN()-5-COLUMN($E218)),VLOOKUP($E218-3,AllData,COLUMN()-5-COLUMN($E218)),VLOOKUP($E218-4,AllData,COLUMN()-5-COLUMN($E218)),VLOOKUP($E218-5,AllData,COLUMN()-5-COLUMN($E218)),VLOOKUP($E218-6,AllData,COLUMN()-5-COLUMN($E218)))","v":{"$error":"#N/A"}},{"$f":"SUM(VLOOKUP($E218,AllData,COLUMN()-6-COLUMN($E218)),VLOOKUP($E218-1,AllData,COLUMN()-6-COLUMN($E218)),VLOOKUP($E218-2,AllData,COLUMN()-6-COLUMN($E218)),VLOOKUP($E218-3,AllData,COLUMN()-6-COLUMN($E218)),VLOOKUP($E218-4,AllData,COLUMN()-6-COLUMN($E218)),VLOOKUP($E218-5,AllData,COLUMN()-6-COLUMN($E218)),VLOOKUP($E218-6,AllData,COLUMN()-6-COLUMN($E218)),VLOOKUP($E218-7,AllData,COLUMN()-6-COLUMN($E218)),VLOOKUP($E218-8,AllData,COLUMN()-6-COLUMN($E218)),VLOOKUP($E218-9,AllData,COLUMN()-6-COLUMN($E218)),VLOOKUP($E218-10,AllData,COLUMN()-6-COLUMN($E218)),VLOOKUP($E218-11,AllData,COLUMN()-6-COLUMN($E218)),VLOOKUP($E218-12,AllData,COLUMN()-6-COLUMN($E218)),VLOOKUP($E218-13,AllData,COLUMN()-6-COLUMN($E218)),VLOOKUP($E218-14,AllData,COLUMN()-6-COLUMN($E218)),VLOOKUP($E218-15,AllData,COLUMN()-6-COLUMN($E218)),VLOOKUP($E218-16,AllData,COLUMN()-6-COLUMN($E218)),VLOOKUP($E218-17,AllData,COLUMN()-6-COLUMN($E218)),VLOOKUP($E218-18,AllData,COLUMN()-6-COLUMN($E218)),VLOOKUP($E218-19,AllData,COLUMN()-6-COLUMN($E218)),VLOOKUP($E218-20,AllData,COLUMN()-6-COLUMN($E218)),VLOOKUP($E218-21,AllData,COLUMN()-6-COLUMN($E218)),VLOOKUP($E218-22,AllData,COLUMN()-6-COLUMN($E218)),VLOOKUP($E218-23,AllData,COLUMN()-6-COLUMN($E218)),VLOOKUP($E218-24,AllData,COLUMN()-6-COLUMN($E218)),VLOOKUP($E218-25,AllData,COLUMN()-6-COLUMN($E218)),VLOOKUP($E218-26,AllData,COLUMN()-6-COLUMN($E218)),VLOOKUP($E218-27,AllData,COLUMN()-6-COLUMN($E218)),VLOOKUP($E218-28,AllData,COLUMN()-6-COLUMN($E218)),VLOOKUP($E218-29,AllData,COLUMN()-6-COLUMN($E218)))","v":{"$error":"#N/A"}},{"$f":"VLOOKUP($E218,AllData,COLUMN()-7-COLUMN($E218))","v":{"$error":"#N/A"}},{"$f":"OR('Cool Graph'!$I$1=35,'Cool Graph'!$I$1=36,'Cool Graph'!$I$1=37,'Cool Graph'!$I$1=38,'Cool Graph'!$I$1=39,'Cool Graph'!$I$1=40,'Cool Graph'!$I$1=41,'Cool Graph'!$I$1=42,'Cool Graph'!$I$1=43,'Cool Graph'!$I$1=44,'Cool Graph'!$I$1=45,'Cool Graph'!$I$1=46,'Cool Graph'!$I$1=47,'Cool Graph'!$I$1=58,'Cool Graph'!$I$1=66)","v":false}]
["2012-02-03",{"$f":"OFFSET(OldSchoolJustValues!A219,0,'Cool Graph'!$H$1)","v":55.81},{"$f":"OFFSET(OldSchoolJustValues!A219,0,'Cool Graph'!$I$1)","v":246.81587506644479},null,{"$f":"IF(NewDate>EndDate,NA(),NewDate)","v":{"$error":"#N/A"}},{"$f":"IF($E219>EndDate,NA(),IF($K$2=TRUE,N219,IF('Cool Graph'!$B$17=1,N219,IF('Cool Graph'!$B$17=2,L219,IF('Cool Graph'!$B$17=3,M219,)))))","v":{"$error":"#N/A"}},{"$f":"IF($E219>EndDate,NA(),IF($O$2=TRUE,J219,IF('Cool Graph'!$B$17=1,Data1!J219,IF('Cool Graph'!$B$17=2,Data1!H219,IF('Cool Graph'!$B$17=3,Data1!I219,)))))","v":{"$error":"#N/A"}},{"$f":"SUM(VLOOKUP($E219,AllData,COLUMN()-COLUMN($E219)),VLOOKUP($E219-1,AllData,COLUMN()-COLUMN($E219)),VLOOKUP($E219-2,AllData,COLUMN()-COLUMN($E219)),VLOOKUP($E219-3,AllData,COLUMN()-COLUMN($E219)),VLOOKUP($E219-4,AllData,COLUMN()-COLUMN($E219)),VLOOKUP($E219-5,AllData,COLUMN()-COLUMN($E219)),VLOOKUP($E219-6,AllData,COLUMN()-COLUMN($E219)))","v":{"$error":"#N/A"}},{"$f":"SUM(VLOOKUP($E219,AllData,COLUMN()-1-COLUMN($E219)),VLOOKUP($E219-1,AllData,COLUMN()-1-COLUMN($E219)),VLOOKUP($E219-2,AllData,COLUMN()-1-COLUMN($E219)),VLOOKUP($E219-3,AllData,COLUMN()-1-COLUMN($E219)),VLOOKUP($E219-4,AllData,COLUMN()-1-COLUMN($E219)),VLOOKUP($E219-5,AllData,COLUMN()-1-COLUMN($E219)),VLOOKUP($E219-6,AllData,COLUMN()-1-COLUMN($E219)),VLOOKUP($E219-7,AllData,COLUMN()-1-COLUMN($E219)),VLOOKUP($E219-8,AllData,COLUMN()-1-COLUMN($E219)),VLOOKUP($E219-9,AllData,COLUMN()-1-COLUMN($E219)),VLOOKUP($E219-10,AllData,COLUMN()-1-COLUMN($E219)),VLOOKUP($E219-11,AllData,COLUMN()-1-COLUMN($E219)),VLOOKUP($E219-12,AllData,COLUMN()-1-COLUMN($E219)),VLOOKUP($E219-13,AllData,COLUMN()-1-COLUMN($E219)),VLOOKUP($E219-14,AllData,COLUMN()-1-COLUMN($E219)),VLOOKUP($E219-15,AllData,COLUMN()-1-COLUMN($E219)),VLOOKUP($E219-16,AllData,COLUMN()-1-COLUMN($E219)),VLOOKUP($E219-17,AllData,COLUMN()-1-COLUMN($E219)),VLOOKUP($E219-18,AllData,COLUMN()-1-COLUMN($E219)),VLOOKUP($E219-19,AllData,COLUMN()-1-COLUMN($E219)),VLOOKUP($E219-20,AllData,COLUMN()-1-COLUMN($E219)),VLOOKUP($E219-21,AllData,COLUMN()-1-COLUMN($E219)),VLOOKUP($E219-22,AllData,COLUMN()-1-COLUMN($E219)),VLOOKUP($E219-23,AllData,COLUMN()-1-COLUMN($E219)),VLOOKUP($E219-24,AllData,COLUMN()-1-COLUMN($E219)),VLOOKUP($E219-25,AllData,COLUMN()-1-COLUMN($E219)),VLOOKUP($E219-26,AllData,COLUMN()-1-COLUMN($E219)),VLOOKUP($E219-27,AllData,COLUMN()-1-COLUMN($E219)),VLOOKUP($E219-28,AllData,COLUMN()-1-COLUMN($E219)),VLOOKUP($E219-29,AllData,COLUMN()-1-COLUMN($E219)))","v":{"$error":"#N/A"}},{"$f":"VLOOKUP($E219,AllData,COLUMN()-2-COLUMN($E219))","v":{"$error":"#N/A"}},{"$f":"OR('Cool Graph'!$H$1=35,'Cool Graph'!$H$1=36,'Cool Graph'!$H$1=37,'Cool Graph'!$H$1=38,'Cool Graph'!$H$1=39,'Cool Graph'!$H$1=40,'Cool Graph'!$H$1=41,'Cool Graph'!$H$1=42,'Cool Graph'!$H$1=43,'Cool Graph'!$H$1=44,'Cool Graph'!$H$1=45,'Cool Graph'!$H$1=46,'Cool Graph'!$H$1=47,'Cool Graph'!$H$1=58,'Cool Graph'!$H$1=66)","v":false},{"$f":"SUM(VLOOKUP($E219,AllData,COLUMN()-5-COLUMN($E219)),VLOOKUP($E219-1,AllData,COLUMN()-5-COLUMN($E219)),VLOOKUP($E219-2,AllData,COLUMN()-5-COLUMN($E219)),VLOOKUP($E219-3,AllData,COLUMN()-5-COLUMN($E219)),VLOOKUP($E219-4,AllData,COLUMN()-5-COLUMN($E219)),VLOOKUP($E219-5,AllData,COLUMN()-5-COLUMN($E219)),VLOOKUP($E219-6,AllData,COLUMN()-5-COLUMN($E219)))","v":{"$error":"#N/A"}},{"$f":"SUM(VLOOKUP($E219,AllData,COLUMN()-6-COLUMN($E219)),VLOOKUP($E219-1,AllData,COLUMN()-6-COLUMN($E219)),VLOOKUP($E219-2,AllData,COLUMN()-6-COLUMN($E219)),VLOOKUP($E219-3,AllData,COLUMN()-6-COLUMN($E219)),VLOOKUP($E219-4,AllData,COLUMN()-6-COLUMN($E219)),VLOOKUP($E219-5,AllData,COLUMN()-6-COLUMN($E219)),VLOOKUP($E219-6,AllData,COLUMN()-6-COLUMN($E219)),VLOOKUP($E219-7,AllData,COLUMN()-6-COLUMN($E219)),VLOOKUP($E219-8,AllData,COLUMN()-6-COLUMN($E219)),VLOOKUP($E219-9,AllData,COLUMN()-6-COLUMN($E219)),VLOOKUP($E219-10,AllData,COLUMN()-6-COLUMN($E219)),VLOOKUP($E219-11,AllData,COLUMN()-6-COLUMN($E219)),VLOOKUP($E219-12,AllData,COLUMN()-6-COLUMN($E219)),VLOOKUP($E219-13,AllData,COLUMN()-6-COLUMN($E219)),VLOOKUP($E219-14,AllData,COLUMN()-6-COLUMN($E219)),VLOOKUP($E219-15,AllData,COLUMN()-6-COLUMN($E219)),VLOOKUP($E219-16,AllData,COLUMN()-6-COLUMN($E219)),VLOOKUP($E219-17,AllData,COLUMN()-6-COLUMN($E219)),VLOOKUP($E219-18,AllData,COLUMN()-6-COLUMN($E219)),VLOOKUP($E219-19,AllData,COLUMN()-6-COLUMN($E219)),VLOOKUP($E219-20,AllData,COLUMN()-6-COLUMN($E219)),VLOOKUP($E219-21,AllData,COLUMN()-6-COLUMN($E219)),VLOOKUP($E219-22,AllData,COLUMN()-6-COLUMN($E219)),VLOOKUP($E219-23,AllData,COLUMN()-6-COLUMN($E219)),VLOOKUP($E219-24,AllData,COLUMN()-6-COLUMN($E219)),VLOOKUP($E219-25,AllData,COLUMN()-6-COLUMN($E219)),VLOOKUP($E219-26,AllData,COLUMN()-6-COLUMN($E219)),VLOOKUP($E219-27,AllData,COLUMN()-6-COLUMN($E219)),VLOOKUP($E219-28,AllData,COLUMN()-6-COLUMN($E219)),VLOOKUP($E219-29,AllData,COLUMN()-6-COLUMN($E219)))","v":{"$error":"#N/A"}},{"$f":"VLOOKUP($E219,AllData,COLUMN()-7-COLUMN($E219))","v":{"$error":"#N/A"}},{"$f":"OR('Cool Graph'!$I$1=35,'Cool Graph'!$I$1=36,'Cool Graph'!$I$1=37,'Cool Graph'!$I$1=38,'Cool Graph'!$I$1=39,'Cool Graph'!$I$1=40,'Cool Graph'!$I$1=41,'Cool Graph'!$I$1=42,'Cool Graph'!$I$1=43,'Cool Graph'!$I$1=44,'Cool Graph'!$I$1=45,'Cool Graph'!$I$1=46,'Cool Graph'!$I$1=47,'Cool Graph'!$I$1=58,'Cool Graph'!$I$1=66)","v":false}]
["2012-02-04",{"$f":"OFFSET(OldSchoolJustValues!A220,0,'Cool Graph'!$H$1)","v":110.47},{"$f":"OFFSET(OldSchoolJustValues!A220,0,'Cool Graph'!$I$1)","v":518.09065269449593},null,{"$f":"IF(NewDate>EndDate,NA(),NewDate)","v":{"$error":"#N/A"}},{"$f":"IF($E220>EndDate,NA(),IF($K$2=TRUE,N220,IF('Cool Graph'!$B$17=1,N220,IF('Cool Graph'!$B$17=2,L220,IF('Cool Graph'!$B$17=3,M220,)))))","v":{"$error":"#N/A"}},{"$f":"IF($E220>EndDate,NA(),IF($O$2=TRUE,J220,IF('Cool Graph'!$B$17=1,Data1!J220,IF('Cool Graph'!$B$17=2,Data1!H220,IF('Cool Graph'!$B$17=3,Data1!I220,)))))","v":{"$error":"#N/A"}},{"$f":"SUM(VLOOKUP($E220,AllData,COLUMN()-COLUMN($E220)),VLOOKUP($E220-1,AllData,COLUMN()-COLUMN($E220)),VLOOKUP($E220-2,AllData,COLUMN()-COLUMN($E220)),VLOOKUP($E220-3,AllData,COLUMN()-COLUMN($E220)),VLOOKUP($E220-4,AllData,COLUMN()-COLUMN($E220)),VLOOKUP($E220-5,AllData,COLUMN()-COLUMN($E220)),VLOOKUP($E220-6,AllData,COLUMN()-COLUMN($E220)))","v":{"$error":"#N/A"}},{"$f":"SUM(VLOOKUP($E220,AllData,COLUMN()-1-COLUMN($E220)),VLOOKUP($E220-1,AllData,COLUMN()-1-COLUMN($E220)),VLOOKUP($E220-2,AllData,COLUMN()-1-COLUMN($E220)),VLOOKUP($E220-3,AllData,COLUMN()-1-COLUMN($E220)),VLOOKUP($E220-4,AllData,COLUMN()-1-COLUMN($E220)),VLOOKUP($E220-5,AllData,COLUMN()-1-COLUMN($E220)),VLOOKUP($E220-6,AllData,COLUMN()-1-COLUMN($E220)),VLOOKUP($E220-7,AllData,COLUMN()-1-COLUMN($E220)),VLOOKUP($E220-8,AllData,COLUMN()-1-COLUMN($E220)),VLOOKUP($E220-9,AllData,COLUMN()-1-COLUMN($E220)),VLOOKUP($E220-10,AllData,COLUMN()-1-COLUMN($E220)),VLOOKUP($E220-11,AllData,COLUMN()-1-COLUMN($E220)),VLOOKUP($E220-12,AllData,COLUMN()-1-COLUMN($E220)),VLOOKUP($E220-13,AllData,COLUMN()-1-COLUMN($E220)),VLOOKUP($E220-14,AllData,COLUMN()-1-COLUMN($E220)),VLOOKUP($E220-15,AllData,COLUMN()-1-COLUMN($E220)),VLOOKUP($E220-16,AllData,COLUMN()-1-COLUMN($E220)),VLOOKUP($E220-17,AllData,COLUMN()-1-COLUMN($E220)),VLOOKUP($E220-18,AllData,COLUMN()-1-COLUMN($E220)),VLOOKUP($E220-19,AllData,COLUMN()-1-COLUMN($E220)),VLOOKUP($E220-20,AllData,COLUMN()-1-COLUMN($E220)),VLOOKUP($E220-21,AllData,COLUMN()-1-COLUMN($E220)),VLOOKUP($E220-22,AllData,COLUMN()-1-COLUMN($E220)),VLOOKUP($E220-23,AllData,COLUMN()-1-COLUMN($E220)),VLOOKUP($E220-24,AllData,COLUMN()-1-COLUMN($E220)),VLOOKUP($E220-25,AllData,COLUMN()-1-COLUMN($E220)),VLOOKUP($E220-26,AllData,COLUMN()-1-COLUMN($E220)),VLOOKUP($E220-27,AllData,COLUMN()-1-COLUMN($E220)),VLOOKUP($E220-28,AllData,COLUMN()-1-COLUMN($E220)),VLOOKUP($E220-29,AllData,COLUMN()-1-COLUMN($E220)))","v":{"$error":"#N/A"}},{"$f":"VLOOKUP($E220,AllData,COLUMN()-2-COLUMN($E220))","v":{"$error":"#N/A"}},{"$f":"OR('Cool Graph'!$H$1=35,'Cool Graph'!$H$1=36,'Cool Graph'!$H$1=37,'Cool Graph'!$H$1=38,'Cool Graph'!$H$1=39,'Cool Graph'!$H$1=40,'Cool Graph'!$H$1=41,'Cool Graph'!$H$1=42,'Cool Graph'!$H$1=43,'Cool Graph'!$H$1=44,'Cool Graph'!$H$1=45,'Cool Graph'!$H$1=46,'Cool Graph'!$H$1=47,'Cool Graph'!$H$1=58,'Cool Graph'!$H$1=66)","v":false},{"$f":"SUM(VLOOKUP($E220,AllData,COLUMN()-5-COLUMN($E220)),VLOOKUP($E220-1,AllData,COLUMN()-5-COLUMN($E220)),VLOOKUP($E220-2,AllData,COLUMN()-5-COLUMN($E220)),VLOOKUP($E220-3,AllData,COLUMN()-5-COLUMN($E220)),VLOOKUP($E220-4,AllData,COLUMN()-5-COLUMN($E220)),VLOOKUP($E220-5,AllData,COLUMN()-5-COLUMN($E220)),VLOOKUP($E220-6,AllData,COLUMN()-5-COLUMN($E220)))","v":{"$error":"#N/A"}},{"$f":"SUM(VLOOKUP($E220,AllData,COLUMN()-6-COLUMN($E220)),VLOOKUP($E220-1,AllData,COLUMN()-6-COLUMN($E220)),VLOOKUP($E220-2,AllData,COLUMN()-6-COLUMN($E220)),VLOOKUP($E220-3,AllData,COLUMN()-6-COLUMN($E220)),VLOOKUP($E220-4,AllData,COLUMN()-6-COLUMN($E220)),VLOOKUP($E220-5,AllData,COLUMN()-6-COLUMN($E220)),VLOOKUP($E220-6,AllData,COLUMN()-6-COLUMN($E220)),VLOOKUP($E220-7,AllData,COLUMN()-6-COLUMN($E220)),VLOOKUP($E220-8,AllData,COLUMN()-6-COLUMN($E220)),VLOOKUP($E220-9,AllData,COLUMN()-6-COLUMN($E220)),VLOOKUP($E220-10,AllData,COLUMN()-6-COLUMN($E220)),VLOOKUP($E220-11,AllData,COLUMN()-6-COLUMN($E220)),VLOOKUP($E220-12,AllData,COLUMN()-6-COLUMN($E220)),VLOOKUP($E220-13,AllData,COLUMN()-6-COLUMN($E220)),VLOOKUP($E220-14,AllData,COLUMN()-6-COLUMN($E220)),VLOOKUP($E220-15,AllData,COLUMN()-6-COLUMN($E220)),VLOOKUP($E220-16,AllData,COLUMN()-6-COLUMN($E220)),VLOOKUP($E220-17,AllData,COLUMN()-6-COLUMN($E220)),VLOOKUP($E220-18,AllData,COLUMN()-6-COLUMN($E220)),VLOOKUP($E220-19,AllData,COLUMN()-6-COLUMN($E220)),VLOOKUP($E220-20,AllData,COLUMN()-6-COLUMN($E220)),VLOOKUP($E220-21,AllData,COLUMN()-6-COLUMN($E220)),VLOOKUP($E220-22,AllData,COLUMN()-6-COLUMN($E220)),VLOOKUP($E220-23,AllData,COLUMN()-6-COLUMN($E220)),VLOOKUP($E220-24,AllData,COLUMN()-6-COLUMN($E220)),VLOOKUP($E220-25,AllData,COLUMN()-6-COLUMN($E220)),VLOOKUP($E220-26,AllData,COLUMN()-6-COLUMN($E220)),VLOOKUP($E220-27,AllData,COLUMN()-6-COLUMN($E220)),VLOOKUP($E220-28,AllData,COLUMN()-6-COLUMN($E220)),VLOOKUP($E220-29,AllData,COLUMN()-6-COLUMN($E220)))","v":{"$error":"#N/A"}},{"$f":"VLOOKUP($E220,AllData,COLUMN()-7-COLUMN($E220))","v":{"$error":"#N/A"}},{"$f":"OR('Cool Graph'!$I$1=35,'Cool Graph'!$I$1=36,'Cool Graph'!$I$1=37,'Cool Graph'!$I$1=38,'Cool Graph'!$I$1=39,'Cool Graph'!$I$1=40,'Cool Graph'!$I$1=41,'Cool Graph'!$I$1=42,'Cool Graph'!$I$1=43,'Cool Graph'!$I$1=44,'Cool Graph'!$I$1=45,'Cool Graph'!$I$1=46,'Cool Graph'!$I$1=47,'Cool Graph'!$I$1=58,'Cool Graph'!$I$1=66)","v":false}]
["2012-02-05",{"$f":"OFFSET(OldSchoolJustValues!A221,0,'Cool Graph'!$H$1)","v":85.93},{"$f":"OFFSET(OldSchoolJustValues!A221,0,'Cool Graph'!$I$1)","v":722.17279616102132},null,{"$f":"IF(NewDate>EndDate,NA(),NewDate)","v":{"$error":"#N/A"}},{"$f":"IF($E221>EndDate,NA(),IF($K$2=TRUE,N221,IF('Cool Graph'!$B$17=1,N221,IF('Cool Graph'!$B$17=2,L221,IF('Cool Graph'!$B$17=3,M221,)))))","v":{"$error":"#N/A"}},{"$f":"IF($E221>EndDate,NA(),IF($O$2=TRUE,J221,IF('Cool Graph'!$B$17=1,Data1!J221,IF('Cool Graph'!$B$17=2,Data1!H221,IF('Cool Graph'!$B$17=3,Data1!I221,)))))","v":{"$error":"#N/A"}},{"$f":"SUM(VLOOKUP($E221,AllData,COLUMN()-COLUMN($E221)),VLOOKUP($E221-1,AllData,COLUMN()-COLUMN($E221)),VLOOKUP($E221-2,AllData,COLUMN()-COLUMN($E221)),VLOOKUP($E221-3,AllData,COLUMN()-COLUMN($E221)),VLOOKUP($E221-4,AllData,COLUMN()-COLUMN($E221)),VLOOKUP($E221-5,AllData,COLUMN()-COLUMN($E221)),VLOOKUP($E221-6,AllData,COLUMN()-COLUMN($E221)))","v":{"$error":"#N/A"}},{"$f":"SUM(VLOOKUP($E221,AllData,COLUMN()-1-COLUMN($E221)),VLOOKUP($E221-1,AllData,COLUMN()-1-COLUMN($E221)),VLOOKUP($E221-2,AllData,COLUMN()-1-COLUMN($E221)),VLOOKUP($E221-3,AllData,COLUMN()-1-COLUMN($E221)),VLOOKUP($E221-4,AllData,COLUMN()-1-COLUMN($E221)),VLOOKUP($E221-5,AllData,COLUMN()-1-COLUMN($E221)),VLOOKUP($E221-6,AllData,COLUMN()-1-COLUMN($E221)),VLOOKUP($E221-7,AllData,COLUMN()-1-COLUMN($E221)),VLOOKUP($E221-8,AllData,COLUMN()-1-COLUMN($E221)),VLOOKUP($E221-9,AllData,COLUMN()-1-COLUMN($E221)),VLOOKUP($E221-10,AllData,COLUMN()-1-COLUMN($E221)),VLOOKUP($E221-11,AllData,COLUMN()-1-COLUMN($E221)),VLOOKUP($E221-12,AllData,COLUMN()-1-COLUMN($E221)),VLOOKUP($E221-13,AllData,COLUMN()-1-COLUMN($E221)),VLOOKUP($E221-14,AllData,COLUMN()-1-COLUMN($E221)),VLOOKUP($E221-15,AllData,COLUMN()-1-COLUMN($E221)),VLOOKUP($E221-16,AllData,COLUMN()-1-COLUMN($E221)),VLOOKUP($E221-17,AllData,COLUMN()-1-COLUMN($E221)),VLOOKUP($E221-18,AllData,COLUMN()-1-COLUMN($E221)),VLOOKUP($E221-19,AllData,COLUMN()-1-COLUMN($E221)),VLOOKUP($E221-20,AllData,COLUMN()-1-COLUMN($E221)),VLOOKUP($E221-21,AllData,COLUMN()-1-COLUMN($E221)),VLOOKUP($E221-22,AllData,COLUMN()-1-COLUMN($E221)),VLOOKUP($E221-23,AllData,COLUMN()-1-COLUMN($E221)),VLOOKUP($E221-24,AllData,COLUMN()-1-COLUMN($E221)),VLOOKUP($E221-25,AllData,COLUMN()-1-COLUMN($E221)),VLOOKUP($E221-26,AllData,COLUMN()-1-COLUMN($E221)),VLOOKUP($E221-27,AllData,COLUMN()-1-COLUMN($E221)),VLOOKUP($E221-28,AllData,COLUMN()-1-COLUMN($E221)),VLOOKUP($E221-29,AllData,COLUMN()-1-COLUMN($E221)))","v":{"$error":"#N/A"}},{"$f":"VLOOKUP($E221,AllData,COLUMN()-2-COLUMN($E221))","v":{"$error":"#N/A"}},{"$f":"OR('Cool Graph'!$H$1=35,'Cool Graph'!$H$1=36,'Cool Graph'!$H$1=37,'Cool Graph'!$H$1=38,'Cool Graph'!$H$1=39,'Cool Graph'!$H$1=40,'Cool Graph'!$H$1=41,'Cool Graph'!$H$1=42,'Cool Graph'!$H$1=43,'Cool Graph'!$H$1=44,'Cool Graph'!$H$1=45,'Cool Graph'!$H$1=46,'Cool Graph'!$H$1=47,'Cool Graph'!$H$1=58,'Cool Graph'!$H$1=66)","v":false},{"$f":"SUM(VLOOKUP($E221,AllData,COLUMN()-5-COLUMN($E221)),VLOOKUP($E221-1,AllData,COLUMN()-5-COLUMN($E221)),VLOOKUP($E221-2,AllData,COLUMN()-5-COLUMN($E221)),VLOOKUP($E221-3,AllData,COLUMN()-5-COLUMN($E221)),VLOOKUP($E221-4,AllData,COLUMN()-5-COLUMN($E221)),VLOOKUP($E221-5,AllData,COLUMN()-5-COLUMN($E221)),VLOOKUP($E221-6,AllData,COLUMN()-5-COLUMN($E221)))","v":{"$error":"#N/A"}},{"$f":"SUM(VLOOKUP($E221,AllData,COLUMN()-6-COLUMN($E221)),VLOOKUP($E221-1,AllData,COLUMN()-6-COLUMN($E221)),VLOOKUP($E221-2,AllData,COLUMN()-6-COLUMN($E221)),VLOOKUP($E221-3,AllData,COLUMN()-6-COLUMN($E221)),VLOOKUP($E221-4,AllData,COLUMN()-6-COLUMN($E221)),VLOOKUP($E221-5,AllData,COLUMN()-6-COLUMN($E221)),VLOOKUP($E221-6,AllData,COLUMN()-6-COLUMN($E221)),VLOOKUP($E221-7,AllData,COLUMN()-6-COLUMN($E221)),VLOOKUP($E221-8,AllData,COLUMN()-6-COLUMN($E221)),VLOOKUP($E221-9,AllData,COLUMN()-6-COLUMN($E221)),VLOOKUP($E221-10,AllData,COLUMN()-6-COLUMN($E221)),VLOOKUP($E221-11,AllData,COLUMN()-6-COLUMN($E221)),VLOOKUP($E221-12,AllData,COLUMN()-6-COLUMN($E221)),VLOOKUP($E221-13,AllData,COLUMN()-6-COLUMN($E221)),VLOOKUP($E221-14,AllData,COLUMN()-6-COLUMN($E221)),VLOOKUP($E221-15,AllData,COLUMN()-6-COLUMN($E221)),VLOOKUP($E221-16,AllData,COLUMN()-6-COLUMN($E221)),VLOOKUP($E221-17,AllData,COLUMN()-6-COLUMN($E221)),VLOOKUP($E221-18,AllData,COLUMN()-6-COLUMN($E221)),VLOOKUP($E221-19,AllData,COLUMN()-6-COLUMN($E221)),VLOOKUP($E221-20,AllData,COLUMN()-6-COLUMN($E221)),VLOOKUP($E221-21,AllData,COLUMN()-6-COLUMN($E221)),VLOOKUP($E221-22,AllData,COLUMN()-6-COLUMN($E221)),VLOOKUP($E221-23,AllData,COLUMN()-6-COLUMN($E221)),VLOOKUP($E221-24,AllData,COLUMN()-6-COLUMN($E221)),VLOOKUP($E221-25,AllData,COLUMN()-6-COLUMN($E221)),VLOOKUP($E221-26,AllData,COLUMN()-6-COLUMN($E221)),VLOOKUP($E221-27,AllData,COLUMN()-6-COLUMN($E221)),VLOOKUP($E221-28,AllData,COLUMN()-6-COLUMN($E221)),VLOOKUP($E221-29,AllData,COLUMN()-6-COLUMN($E221)))","v":{"$error":"#N/A"}},{"$f":"VLOOKUP($E221,AllData,COLUMN()-7-COLUMN($E221))","v":{"$error":"#N/A"}},{"$f":"OR('Cool Graph'!$I$1=35,'Cool Graph'!$I$1=36,'Cool Graph'!$I$1=37,'Cool Graph'!$I$1=38,'Cool Graph'!$I$1=39,'Cool Graph'!$I$1=40,'Cool Graph'!$I$1=41,'Cool Graph'!$I$1=42,'Cool Graph'!$I$1=43,'Cool Graph'!$I$1=44,'Cool Graph'!$I$1=45,'Cool Graph'!$I$1=46,'Cool Graph'!$I$1=47,'Cool Graph'!$I$1=58,'Cool Graph'!$I$1=66)","v":false}]
["2012-02-06",{"$f":"OFFSET(OldSchoolJustValues!A222,0,'Cool Graph'!$H$1)","v":45.73},{"$f":"OFFSET(OldSchoolJustValues!A222,0,'Cool Graph'!$I$1)","v":550.2970576719249},null,{"$f":"IF(NewDate>EndDate,NA(),NewDate)","v":{"$error":"#N/A"}},{"$f":"IF($E222>EndDate,NA(),IF($K$2=TRUE,N222,IF('Cool Graph'!$B$17=1,N222,IF('Cool Graph'!$B$17=2,L222,IF('Cool Graph'!$B$17=3,M222,)))))","v":{"$error":"#N/A"}},{"$f":"IF($E222>EndDate,NA(),IF($O$2=TRUE,J222,IF('Cool Graph'!$B$17=1,Data1!J222,IF('Cool Graph'!$B$17=2,Data1!H222,IF('Cool Graph'!$B$17=3,Data1!I222,)))))","v":{"$error":"#N/A"}},{"$f":"SUM(VLOOKUP($E222,AllData,COLUMN()-COLUMN($E222)),VLOOKUP($E222-1,AllData,COLUMN()-COLUMN($E222)),VLOOKUP($E222-2,AllData,COLUMN()-COLUMN($E222)),VLOOKUP($E222-3,AllData,COLUMN()-COLUMN($E222)),VLOOKUP($E222-4,AllData,COLUMN()-COLUMN($E222)),VLOOKUP($E222-5,AllData,COLUMN()-COLUMN($E222)),VLOOKUP($E222-6,AllData,COLUMN()-COLUMN($E222)))","v":{"$error":"#N/A"}},{"$f":"SUM(VLOOKUP($E222,AllData,COLUMN()-1-COLUMN($E222)),VLOOKUP($E222-1,AllData,COLUMN()-1-COLUMN($E222)),VLOOKUP($E222-2,AllData,COLUMN()-1-COLUMN($E222)),VLOOKUP($E222-3,AllData,COLUMN()-1-COLUMN($E222)),VLOOKUP($E222-4,AllData,COLUMN()-1-COLUMN($E222)),VLOOKUP($E222-5,AllData,COLUMN()-1-COLUMN($E222)),VLOOKUP($E222-6,AllData,COLUMN()-1-COLUMN($E222)),VLOOKUP($E222-7,AllData,COLUMN()-1-COLUMN($E222)),VLOOKUP($E222-8,AllData,COLUMN()-1-COLUMN($E222)),VLOOKUP($E222-9,AllData,COLUMN()-1-COLUMN($E222)),VLOOKUP($E222-10,AllData,COLUMN()-1-COLUMN($E222)),VLOOKUP($E222-11,AllData,COLUMN()-1-COLUMN($E222)),VLOOKUP($E222-12,AllData,COLUMN()-1-COLUMN($E222)),VLOOKUP($E222-13,AllData,COLUMN()-1-COLUMN($E222)),VLOOKUP($E222-14,AllData,COLUMN()-1-COLUMN($E222)),VLOOKUP($E222-15,AllData,COLUMN()-1-COLUMN($E222)),VLOOKUP($E222-16,AllData,COLUMN()-1-COLUMN($E222)),VLOOKUP($E222-17,AllData,COLUMN()-1-COLUMN($E222)),VLOOKUP($E222-18,AllData,COLUMN()-1-COLUMN($E222)),VLOOKUP($E222-19,AllData,COLUMN()-1-COLUMN($E222)),VLOOKUP($E222-20,AllData,COLUMN()-1-COLUMN($E222)),VLOOKUP($E222-21,AllData,COLUMN()-1-COLUMN($E222)),VLOOKUP($E222-22,AllData,COLUMN()-1-COLUMN($E222)),VLOOKUP($E222-23,AllData,COLUMN()-1-COLUMN($E222)),VLOOKUP($E222-24,AllData,COLUMN()-1-COLUMN($E222)),VLOOKUP($E222-25,AllData,COLUMN()-1-COLUMN($E222)),VLOOKUP($E222-26,AllData,COLUMN()-1-COLUMN($E222)),VLOOKUP($E222-27,AllData,COLUMN()-1-COLUMN($E222)),VLOOKUP($E222-28,AllData,COLUMN()-1-COLUMN($E222)),VLOOKUP($E222-29,AllData,COLUMN()-1-COLUMN($E222)))","v":{"$error":"#N/A"}},{"$f":"VLOOKUP($E222,AllData,COLUMN()-2-COLUMN($E222))","v":{"$error":"#N/A"}},{"$f":"OR('Cool Graph'!$H$1=35,'Cool Graph'!$H$1=36,'Cool Graph'!$H$1=37,'Cool Graph'!$H$1=38,'Cool Graph'!$H$1=39,'Cool Graph'!$H$1=40,'Cool Graph'!$H$1=41,'Cool Graph'!$H$1=42,'Cool Graph'!$H$1=43,'Cool Graph'!$H$1=44,'Cool Graph'!$H$1=45,'Cool Graph'!$H$1=46,'Cool Graph'!$H$1=47,'Cool Graph'!$H$1=58,'Cool Graph'!$H$1=66)","v":false},{"$f":"SUM(VLOOKUP($E222,AllData,COLUMN()-5-COLUMN($E222)),VLOOKUP($E222-1,AllData,COLUMN()-5-COLUMN($E222)),VLOOKUP($E222-2,AllData,COLUMN()-5-COLUMN($E222)),VLOOKUP($E222-3,AllData,COLUMN()-5-COLUMN($E222)),VLOOKUP($E222-4,AllData,COLUMN()-5-COLUMN($E222)),VLOOKUP($E222-5,AllData,COLUMN()-5-COLUMN($E222)),VLOOKUP($E222-6,AllData,COLUMN()-5-COLUMN($E222)))","v":{"$error":"#N/A"}},{"$f":"SUM(VLOOKUP($E222,AllData,COLUMN()-6-COLUMN($E222)),VLOOKUP($E222-1,AllData,COLUMN()-6-COLUMN($E222)),VLOOKUP($E222-2,AllData,COLUMN()-6-COLUMN($E222)),VLOOKUP($E222-3,AllData,COLUMN()-6-COLUMN($E222)),VLOOKUP($E222-4,AllData,COLUMN()-6-COLUMN($E222)),VLOOKUP($E222-5,AllData,COLUMN()-6-COLUMN($E222)),VLOOKUP($E222-6,AllData,COLUMN()-6-COLUMN($E222)),VLOOKUP($E222-7,AllData,COLUMN()-6-COLUMN($E222)),VLOOKUP($E222-8,AllData,COLUMN()-6-COLUMN($E222)),VLOOKUP($E222-9,AllData,COLUMN()-6-COLUMN($E222)),VLOOKUP($E222-10,AllData,COLUMN()-6-COLUMN($E222)),VLOOKUP($E222-11,AllData,COLUMN()-6-COLUMN($E222)),VLOOKUP($E222-12,AllData,COLUMN()-6-COLUMN($E222)),VLOOKUP($E222-13,AllData,COLUMN()-6-COLUMN($E222)),VLOOKUP($E222-14,AllData,COLUMN()-6-COLUMN($E222)),VLOOKUP($E222-15,AllData,COLUMN()-6-COLUMN($E222)),VLOOKUP($E222-16,AllData,COLUMN()-6-COLUMN($E222)),VLOOKUP($E222-17,AllData,COLUMN()-6-COLUMN($E222)),VLOOKUP($E222-18,AllData,COLUMN()-6-COLUMN($E222)),VLOOKUP($E222-19,AllData,COLUMN()-6-COLUMN($E222)),VLOOKUP($E222-20,AllData,COLUMN()-6-COLUMN($E222)),VLOOKUP($E222-21,AllData,COLUMN()-6-COLUMN($E222)),VLOOKUP($E222-22,AllData,COLUMN()-6-COLUMN($E222)),VLOOKUP($E222-23,AllData,COLUMN()-6-COLUMN($E222)),VLOOKUP($E222-24,AllData,COLUMN()-6-COLUMN($E222)),VLOOKUP($E222-25,AllData,COLUMN()-6-COLUMN($E222)),VLOOKUP($E222-26,AllData,COLUMN()-6-COLUMN($E222)),VLOOKUP($E222-27,AllData,COLUMN()-6-COLUMN($E222)),VLOOKUP($E222-28,AllData,COLUMN()-6-COLUMN($E222)),VLOOKUP($E222-29,AllData,COLUMN()-6-COLUMN($E222)))","v":{"$error":"#N/A"}},{"$f":"VLOOKUP($E222,AllData,COLUMN()-7-COLUMN($E222))","v":{"$error":"#N/A"}},{"$f":"OR('Cool Graph'!$I$1=35,'Cool Graph'!$I$1=36,'Cool Graph'!$I$1=37,'Cool Graph'!$I$1=38,'Cool Graph'!$I$1=39,'Cool Graph'!$I$1=40,'Cool Graph'!$I$1=41,'Cool Graph'!$I$1=42,'Cool Graph'!$I$1=43,'Cool Graph'!$I$1=44,'Cool Graph'!$I$1=45,'Cool Graph'!$I$1=46,'Cool Graph'!$I$1=47,'Cool Graph'!$I$1=58,'Cool Graph'!$I$1=66)","v":false}]
["2012-02-07",{"$f":"OFFSET(OldSchoolJustValues!A223,0,'Cool Graph'!$H$1)","v":38.43},{"$f":"OFFSET(OldSchoolJustValues!A223,0,'Cool Graph'!$I$1)","v":1426.8771253752793},null,{"$f":"IF(NewDate>EndDate,NA(),NewDate)","v":{"$error":"#N/A"}},{"$f":"IF($E223>EndDate,NA(),IF($K$2=TRUE,N223,IF('Cool Graph'!$B$17=1,N223,IF('Cool Graph'!$B$17=2,L223,IF('Cool Graph'!$B$17=3,M223,)))))","v":{"$error":"#N/A"}},{"$f":"IF($E223>EndDate,NA(),IF($O$2=TRUE,J223,IF('Cool Graph'!$B$17=1,Data1!J223,IF('Cool Graph'!$B$17=2,Data1!H223,IF('Cool Graph'!$B$17=3,Data1!I223,)))))","v":{"$error":"#N/A"}},{"$f":"SUM(VLOOKUP($E223,AllData,COLUMN()-COLUMN($E223)),VLOOKUP($E223-1,AllData,COLUMN()-COLUMN($E223)),VLOOKUP($E223-2,AllData,COLUMN()-COLUMN($E223)),VLOOKUP($E223-3,AllData,COLUMN()-COLUMN($E223)),VLOOKUP($E223-4,AllData,COLUMN()-COLUMN($E223)),VLOOKUP($E223-5,AllData,COLUMN()-COLUMN($E223)),VLOOKUP($E223-6,AllData,COLUMN()-COLUMN($E223)))","v":{"$error":"#N/A"}},{"$f":"SUM(VLOOKUP($E223,AllData,COLUMN()-1-COLUMN($E223)),VLOOKUP($E223-1,AllData,COLUMN()-1-COLUMN($E223)),VLOOKUP($E223-2,AllData,COLUMN()-1-COLUMN($E223)),VLOOKUP($E223-3,AllData,COLUMN()-1-COLUMN($E223)),VLOOKUP($E223-4,AllData,COLUMN()-1-COLUMN($E223)),VLOOKUP($E223-5,AllData,COLUMN()-1-COLUMN($E223)),VLOOKUP($E223-6,AllData,COLUMN()-1-COLUMN($E223)),VLOOKUP($E223-7,AllData,COLUMN()-1-COLUMN($E223)),VLOOKUP($E223-8,AllData,COLUMN()-1-COLUMN($E223)),VLOOKUP($E223-9,AllData,COLUMN()-1-COLUMN($E223)),VLOOKUP($E223-10,AllData,COLUMN()-1-COLUMN($E223)),VLOOKUP($E223-11,AllData,COLUMN()-1-COLUMN($E223)),VLOOKUP($E223-12,AllData,COLUMN()-1-COLUMN($E223)),VLOOKUP($E223-13,AllData,COLUMN()-1-COLUMN($E223)),VLOOKUP($E223-14,AllData,COLUMN()-1-COLUMN($E223)),VLOOKUP($E223-15,AllData,COLUMN()-1-COLUMN($E223)),VLOOKUP($E223-16,AllData,COLUMN()-1-COLUMN($E223)),VLOOKUP($E223-17,AllData,COLUMN()-1-COLUMN($E223)),VLOOKUP($E223-18,AllData,COLUMN()-1-COLUMN($E223)),VLOOKUP($E223-19,AllData,COLUMN()-1-COLUMN($E223)),VLOOKUP($E223-20,AllData,COLUMN()-1-COLUMN($E223)),VLOOKUP($E223-21,AllData,COLUMN()-1-COLUMN($E223)),VLOOKUP($E223-22,AllData,COLUMN()-1-COLUMN($E223)),VLOOKUP($E223-23,AllData,COLUMN()-1-COLUMN($E223)),VLOOKUP($E223-24,AllData,COLUMN()-1-COLUMN($E223)),VLOOKUP($E223-25,AllData,COLUMN()-1-COLUMN($E223)),VLOOKUP($E223-26,AllData,COLUMN()-1-COLUMN($E223)),VLOOKUP($E223-27,AllData,COLUMN()-1-COLUMN($E223)),VLOOKUP($E223-28,AllData,COLUMN()-1-COLUMN($E223)),VLOOKUP($E223-29,AllData,COLUMN()-1-COLUMN($E223)))","v":{"$error":"#N/A"}},{"$f":"VLOOKUP($E223,AllData,COLUMN()-2-COLUMN($E223))","v":{"$error":"#N/A"}},{"$f":"OR('Cool Graph'!$H$1=35,'Cool Graph'!$H$1=36,'Cool Graph'!$H$1=37,'Cool Graph'!$H$1=38,'Cool Graph'!$H$1=39,'Cool Graph'!$H$1=40,'Cool Graph'!$H$1=41,'Cool Graph'!$H$1=42,'Cool Graph'!$H$1=43,'Cool Graph'!$H$1=44,'Cool Graph'!$H$1=45,'Cool Graph'!$H$1=46,'Cool Graph'!$H$1=47,'Cool Graph'!$H$1=58,'Cool Graph'!$H$1=66)","v":false},{"$f":"SUM(VLOOKUP($E223,AllData,COLUMN()-5-COLUMN($E223)),VLOOKUP($E223-1,AllData,COLUMN()-5-COLUMN($E223)),VLOOKUP($E223-2,AllData,COLUMN()-5-COLUMN($E223)),VLOOKUP($E223-3,AllData,COLUMN()-5-COLUMN($E223)),VLOOKUP($E223-4,AllData,COLUMN()-5-COLUMN($E223)),VLOOKUP($E223-5,AllData,COLUMN()-5-COLUMN($E223)),VLOOKUP($E223-6,AllData,COLUMN()-5-COLUMN($E223)))","v":{"$error":"#N/A"}},{"$f":"SUM(VLOOKUP($E223,AllData,COLUMN()-6-COLUMN($E223)),VLOOKUP($E223-1,AllData,COLUMN()-6-COLUMN($E223)),VLOOKUP($E223-2,AllData,COLUMN()-6-COLUMN($E223)),VLOOKUP($E223-3,AllData,COLUMN()-6-COLUMN($E223)),VLOOKUP($E223-4,AllData,COLUMN()-6-COLUMN($E223)),VLOOKUP($E223-5,AllData,COLUMN()-6-COLUMN($E223)),VLOOKUP($E223-6,AllData,COLUMN()-6-COLUMN($E223)),VLOOKUP($E223-7,AllData,COLUMN()-6-COLUMN($E223)),VLOOKUP($E223-8,AllData,COLUMN()-6-COLUMN($E223)),VLOOKUP($E223-9,AllData,COLUMN()-6-COLUMN($E223)),VLOOKUP($E223-10,AllData,COLUMN()-6-COLUMN($E223)),VLOOKUP($E223-11,AllData,COLUMN()-6-COLUMN($E223)),VLOOKUP($E223-12,AllData,COLUMN()-6-COLUMN($E223)),VLOOKUP($E223-13,AllData,COLUMN()-6-COLUMN($E223)),VLOOKUP($E223-14,AllData,COLUMN()-6-COLUMN($E223)),VLOOKUP($E223-15,AllData,COLUMN()-6-COLUMN($E223)),VLOOKUP($E223-16,AllData,COLUMN()-6-COLUMN($E223)),VLOOKUP($E223-17,AllData,COLUMN()-6-COLUMN($E223)),VLOOKUP($E223-18,AllData,COLUMN()-6-COLUMN($E223)),VLOOKUP($E223-19,AllData,COLUMN()-6-COLUMN($E223)),VLOOKUP($E223-20,AllData,COLUMN()-6-COLUMN($E223)),VLOOKUP($E223-21,AllData,COLUMN()-6-COLUMN($E223)),VLOOKUP($E223-22,AllData,COLUMN()-6-COLUMN($E223)),VLOOKUP($E223-23,AllData,COLUMN()-6-COLUMN($E223)),VLOOKUP($E223-24,AllData,COLUMN()-6-COLUMN($E223)),VLOOKUP($E223-25,AllData,COLUMN()-6-COLUMN($E223)),VLOOKUP($E223-26,AllData,COLUMN()-6-COLUMN($E223)),VLOOKUP($E223-27,AllData,COLUMN()-6-COLUMN($E223)),VLOOKUP($E223-28,AllData,COLUMN()-6-COLUMN($E223)),VLOOKUP($E223-29,AllData,COLUMN()-6-COLUMN($E223)))","v":{"$error":"#N/A"}},{"$f":"VLOOKUP($E223,AllData,COLUMN()-7-COLUMN($E223))","v":{"$error":"#N/A"}},{"$f":"OR('Cool Graph'!$I$1=35,'Cool Graph'!$I$1=36,'Cool Graph'!$I$1=37,'Cool Graph'!$I$1=38,'Cool Graph'!$I$1=39,'Cool Graph'!$I$1=40,'Cool Graph'!$I$1=41,'Cool Graph'!$I$1=42,'Cool Graph'!$I$1=43,'Cool Graph'!$I$1=44,'Cool Graph'!$I$1=45,'Cool Graph'!$I$1=46,'Cool Graph'!$I$1=47,'Cool Graph'!$I$1=58,'Cool Graph'!$I$1=66)","v":false}]
["2012-02-08",{"$f":"OFFSET(OldSchoolJustValues!A224,0,'Cool Graph'!$H$1)","v":23.99},{"$f":"OFFSET(OldSchoolJustValues!A224,0,'Cool Graph'!$I$1)","v":555.04909391328715},null,{"$f":"IF(NewDate>EndDate,NA(),NewDate)","v":{"$error":"#N/A"}},{"$f":"IF($E224>EndDate,NA(),IF($K$2=TRUE,N224,IF('Cool Graph'!$B$17=1,N224,IF('Cool Graph'!$B$17=2,L224,IF('Cool Graph'!$B$17=3,M224,)))))","v":{"$error":"#N/A"}},{"$f":"IF($E224>EndDate,NA(),IF($O$2=TRUE,J224,IF('Cool Graph'!$B$17=1,Data1!J224,IF('Cool Graph'!$B$17=2,Data1!H224,IF('Cool Graph'!$B$17=3,Data1!I224,)))))","v":{"$error":"#N/A"}},{"$f":"SUM(VLOOKUP($E224,AllData,COLUMN()-COLUMN($E224)),VLOOKUP($E224-1,AllData,COLUMN()-COLUMN($E224)),VLOOKUP($E224-2,AllData,COLUMN()-COLUMN($E224)),VLOOKUP($E224-3,AllData,COLUMN()-COLUMN($E224)),VLOOKUP($E224-4,AllData,COLUMN()-COLUMN($E224)),VLOOKUP($E224-5,AllData,COLUMN()-COLUMN($E224)),VLOOKUP($E224-6,AllData,COLUMN()-COLUMN($E224)))","v":{"$error":"#N/A"}},{"$f":"SUM(VLOOKUP($E224,AllData,COLUMN()-1-COLUMN($E224)),VLOOKUP($E224-1,AllData,COLUMN()-1-COLUMN($E224)),VLOOKUP($E224-2,AllData,COLUMN()-1-COLUMN($E224)),VLOOKUP($E224-3,AllData,COLUMN()-1-COLUMN($E224)),VLOOKUP($E224-4,AllData,COLUMN()-1-COLUMN($E224)),VLOOKUP($E224-5,AllData,COLUMN()-1-COLUMN($E224)),VLOOKUP($E224-6,AllData,COLUMN()-1-COLUMN($E224)),VLOOKUP($E224-7,AllData,COLUMN()-1-COLUMN($E224)),VLOOKUP($E224-8,AllData,COLUMN()-1-COLUMN($E224)),VLOOKUP($E224-9,AllData,COLUMN()-1-COLUMN($E224)),VLOOKUP($E224-10,AllData,COLUMN()-1-COLUMN($E224)),VLOOKUP($E224-11,AllData,COLUMN()-1-COLUMN($E224)),VLOOKUP($E224-12,AllData,COLUMN()-1-COLUMN($E224)),VLOOKUP($E224-13,AllData,COLUMN()-1-COLUMN($E224)),VLOOKUP($E224-14,AllData,COLUMN()-1-COLUMN($E224)),VLOOKUP($E224-15,AllData,COLUMN()-1-COLUMN($E224)),VLOOKUP($E224-16,AllData,COLUMN()-1-COLUMN($E224)),VLOOKUP($E224-17,AllData,COLUMN()-1-COLUMN($E224)),VLOOKUP($E224-18,AllData,COLUMN()-1-COLUMN($E224)),VLOOKUP($E224-19,AllData,COLUMN()-1-COLUMN($E224)),VLOOKUP($E224-20,AllData,COLUMN()-1-COLUMN($E224)),VLOOKUP($E224-21,AllData,COLUMN()-1-COLUMN($E224)),VLOOKUP($E224-22,AllData,COLUMN()-1-COLUMN($E224)),VLOOKUP($E224-23,AllData,COLUMN()-1-COLUMN($E224)),VLOOKUP($E224-24,AllData,COLUMN()-1-COLUMN($E224)),VLOOKUP($E224-25,AllData,COLUMN()-1-COLUMN($E224)),VLOOKUP($E224-26,AllData,COLUMN()-1-COLUMN($E224)),VLOOKUP($E224-27,AllData,COLUMN()-1-COLUMN($E224)),VLOOKUP($E224-28,AllData,COLUMN()-1-COLUMN($E224)),VLOOKUP($E224-29,AllData,COLUMN()-1-COLUMN($E224)))","v":{"$error":"#N/A"}},{"$f":"VLOOKUP($E224,AllData,COLUMN()-2-COLUMN($E224))","v":{"$error":"#N/A"}},{"$f":"OR('Cool Graph'!$H$1=35,'Cool Graph'!$H$1=36,'Cool Graph'!$H$1=37,'Cool Graph'!$H$1=38,'Cool Graph'!$H$1=39,'Cool Graph'!$H$1=40,'Cool Graph'!$H$1=41,'Cool Graph'!$H$1=42,'Cool Graph'!$H$1=43,'Cool Graph'!$H$1=44,'Cool Graph'!$H$1=45,'Cool Graph'!$H$1=46,'Cool Graph'!$H$1=47,'Cool Graph'!$H$1=58,'Cool Graph'!$H$1=66)","v":false},{"$f":"SUM(VLOOKUP($E224,AllData,COLUMN()-5-COLUMN($E224)),VLOOKUP($E224-1,AllData,COLUMN()-5-COLUMN($E224)),VLOOKUP($E224-2,AllData,COLUMN()-5-COLUMN($E224)),VLOOKUP($E224-3,AllData,COLUMN()-5-COLUMN($E224)),VLOOKUP($E224-4,AllData,COLUMN()-5-COLUMN($E224)),VLOOKUP($E224-5,AllData,COLUMN()-5-COLUMN($E224)),VLOOKUP($E224-6,AllData,COLUMN()-5-COLUMN($E224)))","v":{"$error":"#N/A"}},{"$f":"SUM(VLOOKUP($E224,AllData,COLUMN()-6-COLUMN($E224)),VLOOKUP($E224-1,AllData,COLUMN()-6-COLUMN($E224)),VLOOKUP($E224-2,AllData,COLUMN()-6-COLUMN($E224)),VLOOKUP($E224-3,AllData,COLUMN()-6-COLUMN($E224)),VLOOKUP($E224-4,AllData,COLUMN()-6-COLUMN($E224)),VLOOKUP($E224-5,AllData,COLUMN()-6-COLUMN($E224)),VLOOKUP($E224-6,AllData,COLUMN()-6-COLUMN($E224)),VLOOKUP($E224-7,AllData,COLUMN()-6-COLUMN($E224)),VLOOKUP($E224-8,AllData,COLUMN()-6-COLUMN($E224)),VLOOKUP($E224-9,AllData,COLUMN()-6-COLUMN($E224)),VLOOKUP($E224-10,AllData,COLUMN()-6-COLUMN($E224)),VLOOKUP($E224-11,AllData,COLUMN()-6-COLUMN($E224)),VLOOKUP($E224-12,AllData,COLUMN()-6-COLUMN($E224)),VLOOKUP($E224-13,AllData,COLUMN()-6-COLUMN($E224)),VLOOKUP($E224-14,AllData,COLUMN()-6-COLUMN($E224)),VLOOKUP($E224-15,AllData,COLUMN()-6-COLUMN($E224)),VLOOKUP($E224-16,AllData,COLUMN()-6-COLUMN($E224)),VLOOKUP($E224-17,AllData,COLUMN()-6-COLUMN($E224)),VLOOKUP($E224-18,AllData,COLUMN()-6-COLUMN($E224)),VLOOKUP($E224-19,AllData,COLUMN()-6-COLUMN($E224)),VLOOKUP($E224-20,AllData,COLUMN()-6-COLUMN($E224)),VLOOKUP($E224-21,AllData,COLUMN()-6-COLUMN($E224)),VLOOKUP($E224-22,AllData,COLUMN()-6-COLUMN($E224)),VLOOKUP($E224-23,AllData,COLUMN()-6-COLUMN($E224)),VLOOKUP($E224-24,AllData,COLUMN()-6-COLUMN($E224)),VLOOKUP($E224-25,AllData,COLUMN()-6-COLUMN($E224)),VLOOKUP($E224-26,AllData,COLUMN()-6-COLUMN($E224)),VLOOKUP($E224-27,AllData,COLUMN()-6-COLUMN($E224)),VLOOKUP($E224-28,AllData,COLUMN()-6-COLUMN($E224)),VLOOKUP($E224-29,AllData,COLUMN()-6-COLUMN($E224)))","v":{"$error":"#N/A"}},{"$f":"VLOOKUP($E224,AllData,COLUMN()-7-COLUMN($E224))","v":{"$error":"#N/A"}},{"$f":"OR('Cool Graph'!$I$1=35,'Cool Graph'!$I$1=36,'Cool Graph'!$I$1=37,'Cool Graph'!$I$1=38,'Cool Graph'!$I$1=39,'Cool Graph'!$I$1=40,'Cool Graph'!$I$1=41,'Cool Graph'!$I$1=42,'Cool Graph'!$I$1=43,'Cool Graph'!$I$1=44,'Cool Graph'!$I$1=45,'Cool Graph'!$I$1=46,'Cool Graph'!$I$1=47,'Cool Graph'!$I$1=58,'Cool Graph'!$I$1=66)","v":false}]
["2012-02-09",{"$f":"OFFSET(OldSchoolJustValues!A225,0,'Cool Graph'!$H$1)","v":7.16},{"$f":"OFFSET(OldSchoolJustValues!A225,0,'Cool Graph'!$I$1)","v":891.63496482825883},null,{"$f":"IF(NewDate>EndDate,NA(),NewDate)","v":{"$error":"#N/A"}},{"$f":"IF($E225>EndDate,NA(),IF($K$2=TRUE,N225,IF('Cool Graph'!$B$17=1,N225,IF('Cool Graph'!$B$17=2,L225,IF('Cool Graph'!$B$17=3,M225,)))))","v":{"$error":"#N/A"}},{"$f":"IF($E225>EndDate,NA(),IF($O$2=TRUE,J225,IF('Cool Graph'!$B$17=1,Data1!J225,IF('Cool Graph'!$B$17=2,Data1!H225,IF('Cool Graph'!$B$17=3,Data1!I225,)))))","v":{"$error":"#N/A"}},{"$f":"SUM(VLOOKUP($E225,AllData,COLUMN()-COLUMN($E225)),VLOOKUP($E225-1,AllData,COLUMN()-COLUMN($E225)),VLOOKUP($E225-2,AllData,COLUMN()-COLUMN($E225)),VLOOKUP($E225-3,AllData,COLUMN()-COLUMN($E225)),VLOOKUP($E225-4,AllData,COLUMN()-COLUMN($E225)),VLOOKUP($E225-5,AllData,COLUMN()-COLUMN($E225)),VLOOKUP($E225-6,AllData,COLUMN()-COLUMN($E225)))","v":{"$error":"#N/A"}},{"$f":"SUM(VLOOKUP($E225,AllData,COLUMN()-1-COLUMN($E225)),VLOOKUP($E225-1,AllData,COLUMN()-1-COLUMN($E225)),VLOOKUP($E225-2,AllData,COLUMN()-1-COLUMN($E225)),VLOOKUP($E225-3,AllData,COLUMN()-1-COLUMN($E225)),VLOOKUP($E225-4,AllData,COLUMN()-1-COLUMN($E225)),VLOOKUP($E225-5,AllData,COLUMN()-1-COLUMN($E225)),VLOOKUP($E225-6,AllData,COLUMN()-1-COLUMN($E225)),VLOOKUP($E225-7,AllData,COLUMN()-1-COLUMN($E225)),VLOOKUP($E225-8,AllData,COLUMN()-1-COLUMN($E225)),VLOOKUP($E225-9,AllData,COLUMN()-1-COLUMN($E225)),VLOOKUP($E225-10,AllData,COLUMN()-1-COLUMN($E225)),VLOOKUP($E225-11,AllData,COLUMN()-1-COLUMN($E225)),VLOOKUP($E225-12,AllData,COLUMN()-1-COLUMN($E225)),VLOOKUP($E225-13,AllData,COLUMN()-1-COLUMN($E225)),VLOOKUP($E225-14,AllData,COLUMN()-1-COLUMN($E225)),VLOOKUP($E225-15,AllData,COLUMN()-1-COLUMN($E225)),VLOOKUP($E225-16,AllData,COLUMN()-1-COLUMN($E225)),VLOOKUP($E225-17,AllData,COLUMN()-1-COLUMN($E225)),VLOOKUP($E225-18,AllData,COLUMN()-1-COLUMN($E225)),VLOOKUP($E225-19,AllData,COLUMN()-1-COLUMN($E225)),VLOOKUP($E225-20,AllData,COLUMN()-1-COLUMN($E225)),VLOOKUP($E225-21,AllData,COLUMN()-1-COLUMN($E225)),VLOOKUP($E225-22,AllData,COLUMN()-1-COLUMN($E225)),VLOOKUP($E225-23,AllData,COLUMN()-1-COLUMN($E225)),VLOOKUP($E225-24,AllData,COLUMN()-1-COLUMN($E225)),VLOOKUP($E225-25,AllData,COLUMN()-1-COLUMN($E225)),VLOOKUP($E225-26,AllData,COLUMN()-1-COLUMN($E225)),VLOOKUP($E225-27,AllData,COLUMN()-1-COLUMN($E225)),VLOOKUP($E225-28,AllData,COLUMN()-1-COLUMN($E225)),VLOOKUP($E225-29,AllData,COLUMN()-1-COLUMN($E225)))","v":{"$error":"#N/A"}},{"$f":"VLOOKUP($E225,AllData,COLUMN()-2-COLUMN($E225))","v":{"$error":"#N/A"}},{"$f":"OR('Cool Graph'!$H$1=35,'Cool Graph'!$H$1=36,'Cool Graph'!$H$1=37,'Cool Graph'!$H$1=38,'Cool Graph'!$H$1=39,'Cool Graph'!$H$1=40,'Cool Graph'!$H$1=41,'Cool Graph'!$H$1=42,'Cool Graph'!$H$1=43,'Cool Graph'!$H$1=44,'Cool Graph'!$H$1=45,'Cool Graph'!$H$1=46,'Cool Graph'!$H$1=47,'Cool Graph'!$H$1=58,'Cool Graph'!$H$1=66)","v":false},{"$f":"SUM(VLOOKUP($E225,AllData,COLUMN()-5-COLUMN($E225)),VLOOKUP($E225-1,AllData,COLUMN()-5-COLUMN($E225)),VLOOKUP($E225-2,AllData,COLUMN()-5-COLUMN($E225)),VLOOKUP($E225-3,AllData,COLUMN()-5-COLUMN($E225)),VLOOKUP($E225-4,AllData,COLUMN()-5-COLUMN($E225)),VLOOKUP($E225-5,AllData,COLUMN()-5-COLUMN($E225)),VLOOKUP($E225-6,AllData,COLUMN()-5-COLUMN($E225)))","v":{"$error":"#N/A"}},{"$f":"SUM(VLOOKUP($E225,AllData,COLUMN()-6-COLUMN($E225)),VLOOKUP($E225-1,AllData,COLUMN()-6-COLUMN($E225)),VLOOKUP($E225-2,AllData,COLUMN()-6-COLUMN($E225)),VLOOKUP($E225-3,AllData,COLUMN()-6-COLUMN($E225)),VLOOKUP($E225-4,AllData,COLUMN()-6-COLUMN($E225)),VLOOKUP($E225-5,AllData,COLUMN()-6-COLUMN($E225)),VLOOKUP($E225-6,AllData,COLUMN()-6-COLUMN($E225)),VLOOKUP($E225-7,AllData,COLUMN()-6-COLUMN($E225)),VLOOKUP($E225-8,AllData,COLUMN()-6-COLUMN($E225)),VLOOKUP($E225-9,AllData,COLUMN()-6-COLUMN($E225)),VLOOKUP($E225-10,AllData,COLUMN()-6-COLUMN($E225)),VLOOKUP($E225-11,AllData,COLUMN()-6-COLUMN($E225)),VLOOKUP($E225-12,AllData,COLUMN()-6-COLUMN($E225)),VLOOKUP($E225-13,AllData,COLUMN()-6-COLUMN($E225)),VLOOKUP($E225-14,AllData,COLUMN()-6-COLUMN($E225)),VLOOKUP($E225-15,AllData,COLUMN()-6-COLUMN($E225)),VLOOKUP($E225-16,AllData,COLUMN()-6-COLUMN($E225)),VLOOKUP($E225-17,AllData,COLUMN()-6-COLUMN($E225)),VLOOKUP($E225-18,AllData,COLUMN()-6-COLUMN($E225)),VLOOKUP($E225-19,AllData,COLUMN()-6-COLUMN($E225)),VLOOKUP($E225-20,AllData,COLUMN()-6-COLUMN($E225)),VLOOKUP($E225-21,AllData,COLUMN()-6-COLUMN($E225)),VLOOKUP($E225-22,AllData,COLUMN()-6-COLUMN($E225)),VLOOKUP($E225-23,AllData,COLUMN()-6-COLUMN($E225)),VLOOKUP($E225-24,AllData,COLUMN()-6-COLUMN($E225)),VLOOKUP($E225-25,AllData,COLUMN()-6-COLUMN($E225)),VLOOKUP($E225-26,AllData,COLUMN()-6-COLUMN($E225)),VLOOKUP($E225-27,AllData,COLUMN()-6-COLUMN($E225)),VLOOKUP($E225-28,AllData,COLUMN()-6-COLUMN($E225)),VLOOKUP($E225-29,AllData,COLUMN()-6-COLUMN($E225)))","v":{"$error":"#N/A"}},{"$f":"VLOOKUP($E225,AllData,COLUMN()-7-COLUMN($E225))","v":{"$error":"#N/A"}},{"$f":"OR('Cool Graph'!$I$1=35,'Cool Graph'!$I$1=36,'Cool Graph'!$I$1=37,'Cool Graph'!$I$1=38,'Cool Graph'!$I$1=39,'Cool Graph'!$I$1=40,'Cool Graph'!$I$1=41,'Cool Graph'!$I$1=42,'Cool Graph'!$I$1=43,'Cool Graph'!$I$1=44,'Cool Graph'!$I$1=45,'Cool Graph'!$I$1=46,'Cool Graph'!$I$1=47,'Cool Graph'!$I$1=58,'Cool Graph'!$I$1=66)","v":false}]
["2012-02-10",{"$f":"OFFSET(OldSchoolJustValues!A226,0,'Cool Graph'!$H$1)","v":12.5},{"$f":"OFFSET(OldSchoolJustValues!A226,0,'Cool Graph'!$I$1)","v":1040.0792878803422},null,{"$f":"IF(NewDate>EndDate,NA(),NewDate)","v":{"$error":"#N/A"}},{"$f":"IF($E226>EndDate,NA(),IF($K$2=TRUE,N226,IF('Cool Graph'!$B$17=1,N226,IF('Cool Graph'!$B$17=2,L226,IF('Cool Graph'!$B$17=3,M226,)))))","v":{"$error":"#N/A"}},{"$f":"IF($E226>EndDate,NA(),IF($O$2=TRUE,J226,IF('Cool Graph'!$B$17=1,Data1!J226,IF('Cool Graph'!$B$17=2,Data1!H226,IF('Cool Graph'!$B$17=3,Data1!I226,)))))","v":{"$error":"#N/A"}},{"$f":"SUM(VLOOKUP($E226,AllData,COLUMN()-COLUMN($E226)),VLOOKUP($E226-1,AllData,COLUMN()-COLUMN($E226)),VLOOKUP($E226-2,AllData,COLUMN()-COLUMN($E226)),VLOOKUP($E226-3,AllData,COLUMN()-COLUMN($E226)),VLOOKUP($E226-4,AllData,COLUMN()-COLUMN($E226)),VLOOKUP($E226-5,AllData,COLUMN()-COLUMN($E226)),VLOOKUP($E226-6,AllData,COLUMN()-COLUMN($E226)))","v":{"$error":"#N/A"}},{"$f":"SUM(VLOOKUP($E226,AllData,COLUMN()-1-COLUMN($E226)),VLOOKUP($E226-1,AllData,COLUMN()-1-COLUMN($E226)),VLOOKUP($E226-2,AllData,COLUMN()-1-COLUMN($E226)),VLOOKUP($E226-3,AllData,COLUMN()-1-COLUMN($E226)),VLOOKUP($E226-4,AllData,COLUMN()-1-COLUMN($E226)),VLOOKUP($E226-5,AllData,COLUMN()-1-COLUMN($E226)),VLOOKUP($E226-6,AllData,COLUMN()-1-COLUMN($E226)),VLOOKUP($E226-7,AllData,COLUMN()-1-COLUMN($E226)),VLOOKUP($E226-8,AllData,COLUMN()-1-COLUMN($E226)),VLOOKUP($E226-9,AllData,COLUMN()-1-COLUMN($E226)),VLOOKUP($E226-10,AllData,COLUMN()-1-COLUMN($E226)),VLOOKUP($E226-11,AllData,COLUMN()-1-COLUMN($E226)),VLOOKUP($E226-12,AllData,COLUMN()-1-COLUMN($E226)),VLOOKUP($E226-13,AllData,COLUMN()-1-COLUMN($E226)),VLOOKUP($E226-14,AllData,COLUMN()-1-COLUMN($E226)),VLOOKUP($E226-15,AllData,COLUMN()-1-COLUMN($E226)),VLOOKUP($E226-16,AllData,COLUMN()-1-COLUMN($E226)),VLOOKUP($E226-17,AllData,COLUMN()-1-COLUMN($E226)),VLOOKUP($E226-18,AllData,COLUMN()-1-COLUMN($E226)),VLOOKUP($E226-19,AllData,COLUMN()-1-COLUMN($E226)),VLOOKUP($E226-20,AllData,COLUMN()-1-COLUMN($E226)),VLOOKUP($E226-21,AllData,COLUMN()-1-COLUMN($E226)),VLOOKUP($E226-22,AllData,COLUMN()-1-COLUMN($E226)),VLOOKUP($E226-23,AllData,COLUMN()-1-COLUMN($E226)),VLOOKUP($E226-24,AllData,COLUMN()-1-COLUMN($E226)),VLOOKUP($E226-25,AllData,COLUMN()-1-COLUMN($E226)),VLOOKUP($E226-26,AllData,COLUMN()-1-COLUMN($E226)),VLOOKUP($E226-27,AllData,COLUMN()-1-COLUMN($E226)),VLOOKUP($E226-28,AllData,COLUMN()-1-COLUMN($E226)),VLOOKUP($E226-29,AllData,COLUMN()-1-COLUMN($E226)))","v":{"$error":"#N/A"}},{"$f":"VLOOKUP($E226,AllData,COLUMN()-2-COLUMN($E226))","v":{"$error":"#N/A"}},{"$f":"OR('Cool Graph'!$H$1=35,'Cool Graph'!$H$1=36,'Cool Graph'!$H$1=37,'Cool Graph'!$H$1=38,'Cool Graph'!$H$1=39,'Cool Graph'!$H$1=40,'Cool Graph'!$H$1=41,'Cool Graph'!$H$1=42,'Cool Graph'!$H$1=43,'Cool Graph'!$H$1=44,'Cool Graph'!$H$1=45,'Cool Graph'!$H$1=46,'Cool Graph'!$H$1=47,'Cool Graph'!$H$1=58,'Cool Graph'!$H$1=66)","v":false},{"$f":"SUM(VLOOKUP($E226,AllData,COLUMN()-5-COLUMN($E226)),VLOOKUP($E226-1,AllData,COLUMN()-5-COLUMN($E226)),VLOOKUP($E226-2,AllData,COLUMN()-5-COLUMN($E226)),VLOOKUP($E226-3,AllData,COLUMN()-5-COLUMN($E226)),VLOOKUP($E226-4,AllData,COLUMN()-5-COLUMN($E226)),VLOOKUP($E226-5,AllData,COLUMN()-5-COLUMN($E226)),VLOOKUP($E226-6,AllData,COLUMN()-5-COLUMN($E226)))","v":{"$error":"#N/A"}},{"$f":"SUM(VLOOKUP($E226,AllData,COLUMN()-6-COLUMN($E226)),VLOOKUP($E226-1,AllData,COLUMN()-6-COLUMN($E226)),VLOOKUP($E226-2,AllData,COLUMN()-6-COLUMN($E226)),VLOOKUP($E226-3,AllData,COLUMN()-6-COLUMN($E226)),VLOOKUP($E226-4,AllData,COLUMN()-6-COLUMN($E226)),VLOOKUP($E226-5,AllData,COLUMN()-6-COLUMN($E226)),VLOOKUP($E226-6,AllData,COLUMN()-6-COLUMN($E226)),VLOOKUP($E226-7,AllData,COLUMN()-6-COLUMN($E226)),VLOOKUP($E226-8,AllData,COLUMN()-6-COLUMN($E226)),VLOOKUP($E226-9,AllData,COLUMN()-6-COLUMN($E226)),VLOOKUP($E226-10,AllData,COLUMN()-6-COLUMN($E226)),VLOOKUP($E226-11,AllData,COLUMN()-6-COLUMN($E226)),VLOOKUP($E226-12,AllData,COLUMN()-6-COLUMN($E226)),VLOOKUP($E226-13,AllData,COLUMN()-6-COLUMN($E226)),VLOOKUP($E226-14,AllData,COLUMN()-6-COLUMN($E226)),VLOOKUP($E226-15,AllData,COLUMN()-6-COLUMN($E226)),VLOOKUP($E226-16,AllData,COLUMN()-6-COLUMN($E226)),VLOOKUP($E226-17,AllData,COLUMN()-6-COLUMN($E226)),VLOOKUP($E226-18,AllData,COLUMN()-6-COLUMN($E226)),VLOOKUP($E226-19,AllData,COLUMN()-6-COLUMN($E226)),VLOOKUP($E226-20,AllData,COLUMN()-6-COLUMN($E226)),VLOOKUP($E226-21,AllData,COLUMN()-6-COLUMN($E226)),VLOOKUP($E226-22,AllData,COLUMN()-6-COLUMN($E226)),VLOOKUP($E226-23,AllData,COLUMN()-6-COLUMN($E226)),VLOOKUP($E226-24,AllData,COLUMN()-6-COLUMN($E226)),VLOOKUP($E226-25,AllData,COLUMN()-6-COLUMN($E226)),VLOOKUP($E226-26,AllData,COLUMN()-6-COLUMN($E226)),VLOOKUP($E226-27,AllData,COLUMN()-6-COLUMN($E226)),VLOOKUP($E226-28,AllData,COLUMN()-6-COLUMN($E226)),VLOOKUP($E226-29,AllData,COLUMN()-6-COLUMN($E226)))","v":{"$error":"#N/A"}},{"$f":"VLOOKUP($E226,AllData,COLUMN()-7-COLUMN($E226))","v":{"$error":"#N/A"}},{"$f":"OR('Cool Graph'!$I$1=35,'Cool Graph'!$I$1=36,'Cool Graph'!$I$1=37,'Cool Graph'!$I$1=38,'Cool Graph'!$I$1=39,'Cool Graph'!$I$1=40,'Cool Graph'!$I$1=41,'Cool Graph'!$I$1=42,'Cool Graph'!$I$1=43,'Cool Graph'!$I$1=44,'Cool Graph'!$I$1=45,'Cool Graph'!$I$1=46,'Cool Graph'!$I$1=47,'Cool Graph'!$I$1=58,'Cool Graph'!$I$1=66)","v":false}]
["2012-02-11",{"$f":"OFFSET(OldSchoolJustValues!A227,0,'Cool Graph'!$H$1)","v":91.98},{"$f":"OFFSET(OldSchoolJustValues!A227,0,'Cool Graph'!$I$1)","v":619.70091308894825},null,{"$f":"IF(NewDate>EndDate,NA(),NewDate)","v":{"$error":"#N/A"}},{"$f":"IF($E227>EndDate,NA(),IF($K$2=TRUE,N227,IF('Cool Graph'!$B$17=1,N227,IF('Cool Graph'!$B$17=2,L227,IF('Cool Graph'!$B$17=3,M227,)))))","v":{"$error":"#N/A"}},{"$f":"IF($E227>EndDate,NA(),IF($O$2=TRUE,J227,IF('Cool Graph'!$B$17=1,Data1!J227,IF('Cool Graph'!$B$17=2,Data1!H227,IF('Cool Graph'!$B$17=3,Data1!I227,)))))","v":{"$error":"#N/A"}},{"$f":"SUM(VLOOKUP($E227,AllData,COLUMN()-COLUMN($E227)),VLOOKUP($E227-1,AllData,COLUMN()-COLUMN($E227)),VLOOKUP($E227-2,AllData,COLUMN()-COLUMN($E227)),VLOOKUP($E227-3,AllData,COLUMN()-COLUMN($E227)),VLOOKUP($E227-4,AllData,COLUMN()-COLUMN($E227)),VLOOKUP($E227-5,AllData,COLUMN()-COLUMN($E227)),VLOOKUP($E227-6,AllData,COLUMN()-COLUMN($E227)))","v":{"$error":"#N/A"}},{"$f":"SUM(VLOOKUP($E227,AllData,COLUMN()-1-COLUMN($E227)),VLOOKUP($E227-1,AllData,COLUMN()-1-COLUMN($E227)),VLOOKUP($E227-2,AllData,COLUMN()-1-COLUMN($E227)),VLOOKUP($E227-3,AllData,COLUMN()-1-COLUMN($E227)),VLOOKUP($E227-4,AllData,COLUMN()-1-COLUMN($E227)),VLOOKUP($E227-5,AllData,COLUMN()-1-COLUMN($E227)),VLOOKUP($E227-6,AllData,COLUMN()-1-COLUMN($E227)),VLOOKUP($E227-7,AllData,COLUMN()-1-COLUMN($E227)),VLOOKUP($E227-8,AllData,COLUMN()-1-COLUMN($E227)),VLOOKUP($E227-9,AllData,COLUMN()-1-COLUMN($E227)),VLOOKUP($E227-10,AllData,COLUMN()-1-COLUMN($E227)),VLOOKUP($E227-11,AllData,COLUMN()-1-COLUMN($E227)),VLOOKUP($E227-12,AllData,COLUMN()-1-COLUMN($E227)),VLOOKUP($E227-13,AllData,COLUMN()-1-COLUMN($E227)),VLOOKUP($E227-14,AllData,COLUMN()-1-COLUMN($E227)),VLOOKUP($E227-15,AllData,COLUMN()-1-COLUMN($E227)),VLOOKUP($E227-16,AllData,COLUMN()-1-COLUMN($E227)),VLOOKUP($E227-17,AllData,COLUMN()-1-COLUMN($E227)),VLOOKUP($E227-18,AllData,COLUMN()-1-COLUMN($E227)),VLOOKUP($E227-19,AllData,COLUMN()-1-COLUMN($E227)),VLOOKUP($E227-20,AllData,COLUMN()-1-COLUMN($E227)),VLOOKUP($E227-21,AllData,COLUMN()-1-COLUMN($E227)),VLOOKUP($E227-22,AllData,COLUMN()-1-COLUMN($E227)),VLOOKUP($E227-23,AllData,COLUMN()-1-COLUMN($E227)),VLOOKUP($E227-24,AllData,COLUMN()-1-COLUMN($E227)),VLOOKUP($E227-25,AllData,COLUMN()-1-COLUMN($E227)),VLOOKUP($E227-26,AllData,COLUMN()-1-COLUMN($E227)),VLOOKUP($E227-27,AllData,COLUMN()-1-COLUMN($E227)),VLOOKUP($E227-28,AllData,COLUMN()-1-COLUMN($E227)),VLOOKUP($E227-29,AllData,COLUMN()-1-COLUMN($E227)))","v":{"$error":"#N/A"}},{"$f":"VLOOKUP($E227,AllData,COLUMN()-2-COLUMN($E227))","v":{"$error":"#N/A"}},{"$f":"OR('Cool Graph'!$H$1=35,'Cool Graph'!$H$1=36,'Cool Graph'!$H$1=37,'Cool Graph'!$H$1=38,'Cool Graph'!$H$1=39,'Cool Graph'!$H$1=40,'Cool Graph'!$H$1=41,'Cool Graph'!$H$1=42,'Cool Graph'!$H$1=43,'Cool Graph'!$H$1=44,'Cool Graph'!$H$1=45,'Cool Graph'!$H$1=46,'Cool Graph'!$H$1=47,'Cool Graph'!$H$1=58,'Cool Graph'!$H$1=66)","v":false},{"$f":"SUM(VLOOKUP($E227,AllData,COLUMN()-5-COLUMN($E227)),VLOOKUP($E227-1,AllData,COLUMN()-5-COLUMN($E227)),VLOOKUP($E227-2,AllData,COLUMN()-5-COLUMN($E227)),VLOOKUP($E227-3,AllData,COLUMN()-5-COLUMN($E227)),VLOOKUP($E227-4,AllData,COLUMN()-5-COLUMN($E227)),VLOOKUP($E227-5,AllData,COLUMN()-5-COLUMN($E227)),VLOOKUP($E227-6,AllData,COLUMN()-5-COLUMN($E227)))","v":{"$error":"#N/A"}},{"$f":"SUM(VLOOKUP($E227,AllData,COLUMN()-6-COLUMN($E227)),VLOOKUP($E227-1,AllData,COLUMN()-6-COLUMN($E227)),VLOOKUP($E227-2,AllData,COLUMN()-6-COLUMN($E227)),VLOOKUP($E227-3,AllData,COLUMN()-6-COLUMN($E227)),VLOOKUP($E227-4,AllData,COLUMN()-6-COLUMN($E227)),VLOOKUP($E227-5,AllData,COLUMN()-6-COLUMN($E227)),VLOOKUP($E227-6,AllData,COLUMN()-6-COLUMN($E227)),VLOOKUP($E227-7,AllData,COLUMN()-6-COLUMN($E227)),VLOOKUP($E227-8,AllData,COLUMN()-6-COLUMN($E227)),VLOOKUP($E227-9,AllData,COLUMN()-6-COLUMN($E227)),VLOOKUP($E227-10,AllData,COLUMN()-6-COLUMN($E227)),VLOOKUP($E227-11,AllData,COLUMN()-6-COLUMN($E227)),VLOOKUP($E227-12,AllData,COLUMN()-6-COLUMN($E227)),VLOOKUP($E227-13,AllData,COLUMN()-6-COLUMN($E227)),VLOOKUP($E227-14,AllData,COLUMN()-6-COLUMN($E227)),VLOOKUP($E227-15,AllData,COLUMN()-6-COLUMN($E227)),VLOOKUP($E227-16,AllData,COLUMN()-6-COLUMN($E227)),VLOOKUP($E227-17,AllData,COLUMN()-6-COLUMN($E227)),VLOOKUP($E227-18,AllData,COLUMN()-6-COLUMN($E227)),VLOOKUP($E227-19,AllData,COLUMN()-6-COLUMN($E227)),VLOOKUP($E227-20,AllData,COLUMN()-6-COLUMN($E227)),VLOOKUP($E227-21,AllData,COLUMN()-6-COLUMN($E227)),VLOOKUP($E227-22,AllData,COLUMN()-6-COLUMN($E227)),VLOOKUP($E227-23,AllData,COLUMN()-6-COLUMN($E227)),VLOOKUP($E227-24,AllData,COLUMN()-6-COLUMN($E227)),VLOOKUP($E227-25,AllData,COLUMN()-6-COLUMN($E227)),VLOOKUP($E227-26,AllData,COLUMN()-6-COLUMN($E227)),VLOOKUP($E227-27,AllData,COLUMN()-6-COLUMN($E227)),VLOOKUP($E227-28,AllData,COLUMN()-6-COLUMN($E227)),VLOOKUP($E227-29,AllData,COLUMN()-6-COLUMN($E227)))","v":{"$error":"#N/A"}},{"$f":"VLOOKUP($E227,AllData,COLUMN()-7-COLUMN($E227))","v":{"$error":"#N/A"}},{"$f":"OR('Cool Graph'!$I$1=35,'Cool Graph'!$I$1=36,'Cool Graph'!$I$1=37,'Cool Graph'!$I$1=38,'Cool Graph'!$I$1=39,'Cool Graph'!$I$1=40,'Cool Graph'!$I$1=41,'Cool Graph'!$I$1=42,'Cool Graph'!$I$1=43,'Cool Graph'!$I$1=44,'Cool Graph'!$I$1=45,'Cool Graph'!$I$1=46,'Cool Graph'!$I$1=47,'Cool Graph'!$I$1=58,'Cool Graph'!$I$1=66)","v":false}]
["2012-02-12",{"$f":"OFFSET(OldSchoolJustValues!A228,0,'Cool Graph'!$H$1)","v":115.7},{"$f":"OFFSET(OldSchoolJustValues!A228,0,'Cool Graph'!$I$1)","v":538.57766541718161},null,{"$f":"IF(NewDate>EndDate,NA(),NewDate)","v":{"$error":"#N/A"}},{"$f":"IF($E228>EndDate,NA(),IF($K$2=TRUE,N228,IF('Cool Graph'!$B$17=1,N228,IF('Cool Graph'!$B$17=2,L228,IF('Cool Graph'!$B$17=3,M228,)))))","v":{"$error":"#N/A"}},{"$f":"IF($E228>EndDate,NA(),IF($O$2=TRUE,J228,IF('Cool Graph'!$B$17=1,Data1!J228,IF('Cool Graph'!$B$17=2,Data1!H228,IF('Cool Graph'!$B$17=3,Data1!I228,)))))","v":{"$error":"#N/A"}},{"$f":"SUM(VLOOKUP($E228,AllData,COLUMN()-COLUMN($E228)),VLOOKUP($E228-1,AllData,COLUMN()-COLUMN($E228)),VLOOKUP($E228-2,AllData,COLUMN()-COLUMN($E228)),VLOOKUP($E228-3,AllData,COLUMN()-COLUMN($E228)),VLOOKUP($E228-4,AllData,COLUMN()-COLUMN($E228)),VLOOKUP($E228-5,AllData,COLUMN()-COLUMN($E228)),VLOOKUP($E228-6,AllData,COLUMN()-COLUMN($E228)))","v":{"$error":"#N/A"}},{"$f":"SUM(VLOOKUP($E228,AllData,COLUMN()-1-COLUMN($E228)),VLOOKUP($E228-1,AllData,COLUMN()-1-COLUMN($E228)),VLOOKUP($E228-2,AllData,COLUMN()-1-COLUMN($E228)),VLOOKUP($E228-3,AllData,COLUMN()-1-COLUMN($E228)),VLOOKUP($E228-4,AllData,COLUMN()-1-COLUMN($E228)),VLOOKUP($E228-5,AllData,COLUMN()-1-COLUMN($E228)),VLOOKUP($E228-6,AllData,COLUMN()-1-COLUMN($E228)),VLOOKUP($E228-7,AllData,COLUMN()-1-COLUMN($E228)),VLOOKUP($E228-8,AllData,COLUMN()-1-COLUMN($E228)),VLOOKUP($E228-9,AllData,COLUMN()-1-COLUMN($E228)),VLOOKUP($E228-10,AllData,COLUMN()-1-COLUMN($E228)),VLOOKUP($E228-11,AllData,COLUMN()-1-COLUMN($E228)),VLOOKUP($E228-12,AllData,COLUMN()-1-COLUMN($E228)),VLOOKUP($E228-13,AllData,COLUMN()-1-COLUMN($E228)),VLOOKUP($E228-14,AllData,COLUMN()-1-COLUMN($E228)),VLOOKUP($E228-15,AllData,COLUMN()-1-COLUMN($E228)),VLOOKUP($E228-16,AllData,COLUMN()-1-COLUMN($E228)),VLOOKUP($E228-17,AllData,COLUMN()-1-COLUMN($E228)),VLOOKUP($E228-18,AllData,COLUMN()-1-COLUMN($E228)),VLOOKUP($E228-19,AllData,COLUMN()-1-COLUMN($E228)),VLOOKUP($E228-20,AllData,COLUMN()-1-COLUMN($E228)),VLOOKUP($E228-21,AllData,COLUMN()-1-COLUMN($E228)),VLOOKUP($E228-22,AllData,COLUMN()-1-COLUMN($E228)),VLOOKUP($E228-23,AllData,COLUMN()-1-COLUMN($E228)),VLOOKUP($E228-24,AllData,COLUMN()-1-COLUMN($E228)),VLOOKUP($E228-25,AllData,COLUMN()-1-COLUMN($E228)),VLOOKUP($E228-26,AllData,COLUMN()-1-COLUMN($E228)),VLOOKUP($E228-27,AllData,COLUMN()-1-COLUMN($E228)),VLOOKUP($E228-28,AllData,COLUMN()-1-COLUMN($E228)),VLOOKUP($E228-29,AllData,COLUMN()-1-COLUMN($E228)))","v":{"$error":"#N/A"}},{"$f":"VLOOKUP($E228,AllData,COLUMN()-2-COLUMN($E228))","v":{"$error":"#N/A"}},{"$f":"OR('Cool Graph'!$H$1=35,'Cool Graph'!$H$1=36,'Cool Graph'!$H$1=37,'Cool Graph'!$H$1=38,'Cool Graph'!$H$1=39,'Cool Graph'!$H$1=40,'Cool Graph'!$H$1=41,'Cool Graph'!$H$1=42,'Cool Graph'!$H$1=43,'Cool Graph'!$H$1=44,'Cool Graph'!$H$1=45,'Cool Graph'!$H$1=46,'Cool Graph'!$H$1=47,'Cool Graph'!$H$1=58,'Cool Graph'!$H$1=66)","v":false},{"$f":"SUM(VLOOKUP($E228,AllData,COLUMN()-5-COLUMN($E228)),VLOOKUP($E228-1,AllData,COLUMN()-5-COLUMN($E228)),VLOOKUP($E228-2,AllData,COLUMN()-5-COLUMN($E228)),VLOOKUP($E228-3,AllData,COLUMN()-5-COLUMN($E228)),VLOOKUP($E228-4,AllData,COLUMN()-5-COLUMN($E228)),VLOOKUP($E228-5,AllData,COLUMN()-5-COLUMN($E228)),VLOOKUP($E228-6,AllData,COLUMN()-5-COLUMN($E228)))","v":{"$error":"#N/A"}},{"$f":"SUM(VLOOKUP($E228,AllData,COLUMN()-6-COLUMN($E228)),VLOOKUP($E228-1,AllData,COLUMN()-6-COLUMN($E228)),VLOOKUP($E228-2,AllData,COLUMN()-6-COLUMN($E228)),VLOOKUP($E228-3,AllData,COLUMN()-6-COLUMN($E228)),VLOOKUP($E228-4,AllData,COLUMN()-6-COLUMN($E228)),VLOOKUP($E228-5,AllData,COLUMN()-6-COLUMN($E228)),VLOOKUP($E228-6,AllData,COLUMN()-6-COLUMN($E228)),VLOOKUP($E228-7,AllData,COLUMN()-6-COLUMN($E228)),VLOOKUP($E228-8,AllData,COLUMN()-6-COLUMN($E228)),VLOOKUP($E228-9,AllData,COLUMN()-6-COLUMN($E228)),VLOOKUP($E228-10,AllData,COLUMN()-6-COLUMN($E228)),VLOOKUP($E228-11,AllData,COLUMN()-6-COLUMN($E228)),VLOOKUP($E228-12,AllData,COLUMN()-6-COLUMN($E228)),VLOOKUP($E228-13,AllData,COLUMN()-6-COLUMN($E228)),VLOOKUP($E228-14,AllData,COLUMN()-6-COLUMN($E228)),VLOOKUP($E228-15,AllData,COLUMN()-6-COLUMN($E228)),VLOOKUP($E228-16,AllData,COLUMN()-6-COLUMN($E228)),VLOOKUP($E228-17,AllData,COLUMN()-6-COLUMN($E228)),VLOOKUP($E228-18,AllData,COLUMN()-6-COLUMN($E228)),VLOOKUP($E228-19,AllData,COLUMN()-6-COLUMN($E228)),VLOOKUP($E228-20,AllData,COLUMN()-6-COLUMN($E228)),VLOOKUP($E228-21,AllData,COLUMN()-6-COLUMN($E228)),VLOOKUP($E228-22,AllData,COLUMN()-6-COLUMN($E228)),VLOOKUP($E228-23,AllData,COLUMN()-6-COLUMN($E228)),VLOOKUP($E228-24,AllData,COLUMN()-6-COLUMN($E228)),VLOOKUP($E228-25,AllData,COLUMN()-6-COLUMN($E228)),VLOOKUP($E228-26,AllData,COLUMN()-6-COLUMN($E228)),VLOOKUP($E228-27,AllData,COLUMN()-6-COLUMN($E228)),VLOOKUP($E228-28,AllData,COLUMN()-6-COLUMN($E228)),VLOOKUP($E228-29,AllData,COLUMN()-6-COLUMN($E228)))","v":{"$error":"#N/A"}},{"$f":"VLOOKUP($E228,AllData,COLUMN()-7-COLUMN($E228))","v":{"$error":"#N/A"}},{"$f":"OR('Cool Graph'!$I$1=35,'Cool Graph'!$I$1=36,'Cool Graph'!$I$1=37,'Cool Graph'!$I$1=38,'Cool Graph'!$I$1=39,'Cool Graph'!$I$1=40,'Cool Graph'!$I$1=41,'Cool Graph'!$I$1=42,'Cool Graph'!$I$1=43,'Cool Graph'!$I$1=44,'Cool Graph'!$I$1=45,'Cool Graph'!$I$1=46,'Cool Graph'!$I$1=47,'Cool Graph'!$I$1=58,'Cool Graph'!$I$1=66)","v":false}]
["2012-02-13",{"$f":"OFFSET(OldSchoolJustValues!A229,0,'Cool Graph'!$H$1)","v":70.78},{"$f":"OFFSET(OldSchoolJustValues!A229,0,'Cool Graph'!$I$1)","v":437.07670481627821},null,{"$f":"IF(NewDate>EndDate,NA(),NewDate)","v":{"$error":"#N/A"}},{"$f":"IF($E229>EndDate,NA(),IF($K$2=TRUE,N229,IF('Cool Graph'!$B$17=1,N229,IF('Cool Graph'!$B$17=2,L229,IF('Cool Graph'!$B$17=3,M229,)))))","v":{"$error":"#N/A"}},{"$f":"IF($E229>EndDate,NA(),IF($O$2=TRUE,J229,IF('Cool Graph'!$B$17=1,Data1!J229,IF('Cool Graph'!$B$17=2,Data1!H229,IF('Cool Graph'!$B$17=3,Data1!I229,)))))","v":{"$error":"#N/A"}},{"$f":"SUM(VLOOKUP($E229,AllData,COLUMN()-COLUMN($E229)),VLOOKUP($E229-1,AllData,COLUMN()-COLUMN($E229)),VLOOKUP($E229-2,AllData,COLUMN()-COLUMN($E229)),VLOOKUP($E229-3,AllData,COLUMN()-COLUMN($E229)),VLOOKUP($E229-4,AllData,COLUMN()-COLUMN($E229)),VLOOKUP($E229-5,AllData,COLUMN()-COLUMN($E229)),VLOOKUP($E229-6,AllData,COLUMN()-COLUMN($E229)))","v":{"$error":"#N/A"}},{"$f":"SUM(VLOOKUP($E229,AllData,COLUMN()-1-COLUMN($E229)),VLOOKUP($E229-1,AllData,COLUMN()-1-COLUMN($E229)),VLOOKUP($E229-2,AllData,COLUMN()-1-COLUMN($E229)),VLOOKUP($E229-3,AllData,COLUMN()-1-COLUMN($E229)),VLOOKUP($E229-4,AllData,COLUMN()-1-COLUMN($E229)),VLOOKUP($E229-5,AllData,COLUMN()-1-COLUMN($E229)),VLOOKUP($E229-6,AllData,COLUMN()-1-COLUMN($E229)),VLOOKUP($E229-7,AllData,COLUMN()-1-COLUMN($E229)),VLOOKUP($E229-8,AllData,COLUMN()-1-COLUMN($E229)),VLOOKUP($E229-9,AllData,COLUMN()-1-COLUMN($E229)),VLOOKUP($E229-10,AllData,COLUMN()-1-COLUMN($E229)),VLOOKUP($E229-11,AllData,COLUMN()-1-COLUMN($E229)),VLOOKUP($E229-12,AllData,COLUMN()-1-COLUMN($E229)),VLOOKUP($E229-13,AllData,COLUMN()-1-COLUMN($E229)),VLOOKUP($E229-14,AllData,COLUMN()-1-COLUMN($E229)),VLOOKUP($E229-15,AllData,COLUMN()-1-COLUMN($E229)),VLOOKUP($E229-16,AllData,COLUMN()-1-COLUMN($E229)),VLOOKUP($E229-17,AllData,COLUMN()-1-COLUMN($E229)),VLOOKUP($E229-18,AllData,COLUMN()-1-COLUMN($E229)),VLOOKUP($E229-19,AllData,COLUMN()-1-COLUMN($E229)),VLOOKUP($E229-20,AllData,COLUMN()-1-COLUMN($E229)),VLOOKUP($E229-21,AllData,COLUMN()-1-COLUMN($E229)),VLOOKUP($E229-22,AllData,COLUMN()-1-COLUMN($E229)),VLOOKUP($E229-23,AllData,COLUMN()-1-COLUMN($E229)),VLOOKUP($E229-24,AllData,COLUMN()-1-COLUMN($E229)),VLOOKUP($E229-25,AllData,COLUMN()-1-COLUMN($E229)),VLOOKUP($E229-26,AllData,COLUMN()-1-COLUMN($E229)),VLOOKUP($E229-27,AllData,COLUMN()-1-COLUMN($E229)),VLOOKUP($E229-28,AllData,COLUMN()-1-COLUMN($E229)),VLOOKUP($E229-29,AllData,COLUMN()-1-COLUMN($E229)))","v":{"$error":"#N/A"}},{"$f":"VLOOKUP($E229,AllData,COLUMN()-2-COLUMN($E229))","v":{"$error":"#N/A"}},{"$f":"OR('Cool Graph'!$H$1=35,'Cool Graph'!$H$1=36,'Cool Graph'!$H$1=37,'Cool Graph'!$H$1=38,'Cool Graph'!$H$1=39,'Cool Graph'!$H$1=40,'Cool Graph'!$H$1=41,'Cool Graph'!$H$1=42,'Cool Graph'!$H$1=43,'Cool Graph'!$H$1=44,'Cool Graph'!$H$1=45,'Cool Graph'!$H$1=46,'Cool Graph'!$H$1=47,'Cool Graph'!$H$1=58,'Cool Graph'!$H$1=66)","v":false},{"$f":"SUM(VLOOKUP($E229,AllData,COLUMN()-5-COLUMN($E229)),VLOOKUP($E229-1,AllData,COLUMN()-5-COLUMN($E229)),VLOOKUP($E229-2,AllData,COLUMN()-5-COLUMN($E229)),VLOOKUP($E229-3,AllData,COLUMN()-5-COLUMN($E229)),VLOOKUP($E229-4,AllData,COLUMN()-5-COLUMN($E229)),VLOOKUP($E229-5,AllData,COLUMN()-5-COLUMN($E229)),VLOOKUP($E229-6,AllData,COLUMN()-5-COLUMN($E229)))","v":{"$error":"#N/A"}},{"$f":"SUM(VLOOKUP($E229,AllData,COLUMN()-6-COLUMN($E229)),VLOOKUP($E229-1,AllData,COLUMN()-6-COLUMN($E229)),VLOOKUP($E229-2,AllData,COLUMN()-6-COLUMN($E229)),VLOOKUP($E229-3,AllData,COLUMN()-6-COLUMN($E229)),VLOOKUP($E229-4,AllData,COLUMN()-6-COLUMN($E229)),VLOOKUP($E229-5,AllData,COLUMN()-6-COLUMN($E229)),VLOOKUP($E229-6,AllData,COLUMN()-6-COLUMN($E229)),VLOOKUP($E229-7,AllData,COLUMN()-6-COLUMN($E229)),VLOOKUP($E229-8,AllData,COLUMN()-6-COLUMN($E229)),VLOOKUP($E229-9,AllData,COLUMN()-6-COLUMN($E229)),VLOOKUP($E229-10,AllData,COLUMN()-6-COLUMN($E229)),VLOOKUP($E229-11,AllData,COLUMN()-6-COLUMN($E229)),VLOOKUP($E229-12,AllData,COLUMN()-6-COLUMN($E229)),VLOOKUP($E229-13,AllData,COLUMN()-6-COLUMN($E229)),VLOOKUP($E229-14,AllData,COLUMN()-6-COLUMN($E229)),VLOOKUP($E229-15,AllData,COLUMN()-6-COLUMN($E229)),VLOOKUP($E229-16,AllData,COLUMN()-6-COLUMN($E229)),VLOOKUP($E229-17,AllData,COLUMN()-6-COLUMN($E229)),VLOOKUP($E229-18,AllData,COLUMN()-6-COLUMN($E229)),VLOOKUP($E229-19,AllData,COLUMN()-6-COLUMN($E229)),VLOOKUP($E229-20,AllData,COLUMN()-6-COLUMN($E229)),VLOOKUP($E229-21,AllData,COLUMN()-6-COLUMN($E229)),VLOOKUP($E229-22,AllData,COLUMN()-6-COLUMN($E229)),VLOOKUP($E229-23,AllData,COLUMN()-6-COLUMN($E229)),VLOOKUP($E229-24,AllData,COLUMN()-6-COLUMN($E229)),VLOOKUP($E229-25,AllData,COLUMN()-6-COLUMN($E229)),VLOOKUP($E229-26,AllData,COLUMN()-6-COLUMN($E229)),VLOOKUP($E229-27,AllData,COLUMN()-6-COLUMN($E229)),VLOOKUP($E229-28,AllData,COLUMN()-6-COLUMN($E229)),VLOOKUP($E229-29,AllData,COLUMN()-6-COLUMN($E229)))","v":{"$error":"#N/A"}},{"$f":"VLOOKUP($E229,AllData,COLUMN()-7-COLUMN($E229))","v":{"$error":"#N/A"}},{"$f":"OR('Cool Graph'!$I$1=35,'Cool Graph'!$I$1=36,'Cool Graph'!$I$1=37,'Cool Graph'!$I$1=38,'Cool Graph'!$I$1=39,'Cool Graph'!$I$1=40,'Cool Graph'!$I$1=41,'Cool Graph'!$I$1=42,'Cool Graph'!$I$1=43,'Cool Graph'!$I$1=44,'Cool Graph'!$I$1=45,'Cool Graph'!$I$1=46,'Cool Graph'!$I$1=47,'Cool Graph'!$I$1=58,'Cool Graph'!$I$1=66)","v":false}]
["2012-02-14",{"$f":"OFFSET(OldSchoolJustValues!A230,0,'Cool Graph'!$H$1)","v":196.07},{"$f":"OFFSET(OldSchoolJustValues!A230,0,'Cool Graph'!$I$1)","v":914.30587826173814},null,{"$f":"IF(NewDate>EndDate,NA(),NewDate)","v":{"$error":"#N/A"}},{"$f":"IF($E230>EndDate,NA(),IF($K$2=TRUE,N230,IF('Cool Graph'!$B$17=1,N230,IF('Cool Graph'!$B$17=2,L230,IF('Cool Graph'!$B$17=3,M230,)))))","v":{"$error":"#N/A"}},{"$f":"IF($E230>EndDate,NA(),IF($O$2=TRUE,J230,IF('Cool Graph'!$B$17=1,Data1!J230,IF('Cool Graph'!$B$17=2,Data1!H230,IF('Cool Graph'!$B$17=3,Data1!I230,)))))","v":{"$error":"#N/A"}},{"$f":"SUM(VLOOKUP($E230,AllData,COLUMN()-COLUMN($E230)),VLOOKUP($E230-1,AllData,COLUMN()-COLUMN($E230)),VLOOKUP($E230-2,AllData,COLUMN()-COLUMN($E230)),VLOOKUP($E230-3,AllData,COLUMN()-COLUMN($E230)),VLOOKUP($E230-4,AllData,COLUMN()-COLUMN($E230)),VLOOKUP($E230-5,AllData,COLUMN()-COLUMN($E230)),VLOOKUP($E230-6,AllData,COLUMN()-COLUMN($E230)))","v":{"$error":"#N/A"}},{"$f":"SUM(VLOOKUP($E230,AllData,COLUMN()-1-COLUMN($E230)),VLOOKUP($E230-1,AllData,COLUMN()-1-COLUMN($E230)),VLOOKUP($E230-2,AllData,COLUMN()-1-COLUMN($E230)),VLOOKUP($E230-3,AllData,COLUMN()-1-COLUMN($E230)),VLOOKUP($E230-4,AllData,COLUMN()-1-COLUMN($E230)),VLOOKUP($E230-5,AllData,COLUMN()-1-COLUMN($E230)),VLOOKUP($E230-6,AllData,COLUMN()-1-COLUMN($E230)),VLOOKUP($E230-7,AllData,COLUMN()-1-COLUMN($E230)),VLOOKUP($E230-8,AllData,COLUMN()-1-COLUMN($E230)),VLOOKUP($E230-9,AllData,COLUMN()-1-COLUMN($E230)),VLOOKUP($E230-10,AllData,COLUMN()-1-COLUMN($E230)),VLOOKUP($E230-11,AllData,COLUMN()-1-COLUMN($E230)),VLOOKUP($E230-12,AllData,COLUMN()-1-COLUMN($E230)),VLOOKUP($E230-13,AllData,COLUMN()-1-COLUMN($E230)),VLOOKUP($E230-14,AllData,COLUMN()-1-COLUMN($E230)),VLOOKUP($E230-15,AllData,COLUMN()-1-COLUMN($E230)),VLOOKUP($E230-16,AllData,COLUMN()-1-COLUMN($E230)),VLOOKUP($E230-17,AllData,COLUMN()-1-COLUMN($E230)),VLOOKUP($E230-18,AllData,COLUMN()-1-COLUMN($E230)),VLOOKUP($E230-19,AllData,COLUMN()-1-COLUMN($E230)),VLOOKUP($E230-20,AllData,COLUMN()-1-COLUMN($E230)),VLOOKUP($E230-21,AllData,COLUMN()-1-COLUMN($E230)),VLOOKUP($E230-22,AllData,COLUMN()-1-COLUMN($E230)),VLOOKUP($E230-23,AllData,COLUMN()-1-COLUMN($E230)),VLOOKUP($E230-24,AllData,COLUMN()-1-COLUMN($E230)),VLOOKUP($E230-25,AllData,COLUMN()-1-COLUMN($E230)),VLOOKUP($E230-26,AllData,COLUMN()-1-COLUMN($E230)),VLOOKUP($E230-27,AllData,COLUMN()-1-COLUMN($E230)),VLOOKUP($E230-28,AllData,COLUMN()-1-COLUMN($E230)),VLOOKUP($E230-29,AllData,COLUMN()-1-COLUMN($E230)))","v":{"$error":"#N/A"}},{"$f":"VLOOKUP($E230,AllData,COLUMN()-2-COLUMN($E230))","v":{"$error":"#N/A"}},{"$f":"OR('Cool Graph'!$H$1=35,'Cool Graph'!$H$1=36,'Cool Graph'!$H$1=37,'Cool Graph'!$H$1=38,'Cool Graph'!$H$1=39,'Cool Graph'!$H$1=40,'Cool Graph'!$H$1=41,'Cool Graph'!$H$1=42,'Cool Graph'!$H$1=43,'Cool Graph'!$H$1=44,'Cool Graph'!$H$1=45,'Cool Graph'!$H$1=46,'Cool Graph'!$H$1=47,'Cool Graph'!$H$1=58,'Cool Graph'!$H$1=66)","v":false},{"$f":"SUM(VLOOKUP($E230,AllData,COLUMN()-5-COLUMN($E230)),VLOOKUP($E230-1,AllData,COLUMN()-5-COLUMN($E230)),VLOOKUP($E230-2,AllData,COLUMN()-5-COLUMN($E230)),VLOOKUP($E230-3,AllData,COLUMN()-5-COLUMN($E230)),VLOOKUP($E230-4,AllData,COLUMN()-5-COLUMN($E230)),VLOOKUP($E230-5,AllData,COLUMN()-5-COLUMN($E230)),VLOOKUP($E230-6,AllData,COLUMN()-5-COLUMN($E230)))","v":{"$error":"#N/A"}},{"$f":"SUM(VLOOKUP($E230,AllData,COLUMN()-6-COLUMN($E230)),VLOOKUP($E230-1,AllData,COLUMN()-6-COLUMN($E230)),VLOOKUP($E230-2,AllData,COLUMN()-6-COLUMN($E230)),VLOOKUP($E230-3,AllData,COLUMN()-6-COLUMN($E230)),VLOOKUP($E230-4,AllData,COLUMN()-6-COLUMN($E230)),VLOOKUP($E230-5,AllData,COLUMN()-6-COLUMN($E230)),VLOOKUP($E230-6,AllData,COLUMN()-6-COLUMN($E230)),VLOOKUP($E230-7,AllData,COLUMN()-6-COLUMN($E230)),VLOOKUP($E230-8,AllData,COLUMN()-6-COLUMN($E230)),VLOOKUP($E230-9,AllData,COLUMN()-6-COLUMN($E230)),VLOOKUP($E230-10,AllData,COLUMN()-6-COLUMN($E230)),VLOOKUP($E230-11,AllData,COLUMN()-6-COLUMN($E230)),VLOOKUP($E230-12,AllData,COLUMN()-6-COLUMN($E230)),VLOOKUP($E230-13,AllData,COLUMN()-6-COLUMN($E230)),VLOOKUP($E230-14,AllData,COLUMN()-6-COLUMN($E230)),VLOOKUP($E230-15,AllData,COLUMN()-6-COLUMN($E230)),VLOOKUP($E230-16,AllData,COLUMN()-6-COLUMN($E230)),VLOOKUP($E230-17,AllData,COLUMN()-6-COLUMN($E230)),VLOOKUP($E230-18,AllData,COLUMN()-6-COLUMN($E230)),VLOOKUP($E230-19,AllData,COLUMN()-6-COLUMN($E230)),VLOOKUP($E230-20,AllData,COLUMN()-6-COLUMN($E230)),VLOOKUP($E230-21,AllData,COLUMN()-6-COLUMN($E230)),VLOOKUP($E230-22,AllData,COLUMN()-6-COLUMN($E230)),VLOOKUP($E230-23,AllData,COLUMN()-6-COLUMN($E230)),VLOOKUP($E230-24,AllData,COLUMN()-6-COLUMN($E230)),VLOOKUP($E230-25,AllData,COLUMN()-6-COLUMN($E230)),VLOOKUP($E230-26,AllData,COLUMN()-6-COLUMN($E230)),VLOOKUP($E230-27,AllData,COLUMN()-6-COLUMN($E230)),VLOOKUP($E230-28,AllData,COLUMN()-6-COLUMN($E230)),VLOOKUP($E230-29,AllData,COLUMN()-6-COLUMN($E230)))","v":{"$error":"#N/A"}},{"$f":"VLOOKUP($E230,AllData,COLUMN()-7-COLUMN($E230))","v":{"$error":"#N/A"}},{"$f":"OR('Cool Graph'!$I$1=35,'Cool Graph'!$I$1=36,'Cool Graph'!$I$1=37,'Cool Graph'!$I$1=38,'Cool Graph'!$I$1=39,'Cool Graph'!$I$1=40,'Cool Graph'!$I$1=41,'Cool Graph'!$I$1=42,'Cool Graph'!$I$1=43,'Cool Graph'!$I$1=44,'Cool Graph'!$I$1=45,'Cool Graph'!$I$1=46,'Cool Graph'!$I$1=47,'Cool Graph'!$I$1=58,'Cool Graph'!$I$1=66)","v":false}]
["2012-02-15",{"$f":"OFFSET(OldSchoolJustValues!A231,0,'Cool Graph'!$H$1)","v":171.78},{"$f":"OFFSET(OldSchoolJustValues!A231,0,'Cool Graph'!$I$1)","v":285.27348706266321},null,{"$f":"IF(NewDate>EndDate,NA(),NewDate)","v":{"$error":"#N/A"}},{"$f":"IF($E231>EndDate,NA(),IF($K$2=TRUE,N231,IF('Cool Graph'!$B$17=1,N231,IF('Cool Graph'!$B$17=2,L231,IF('Cool Graph'!$B$17=3,M231,)))))","v":{"$error":"#N/A"}},{"$f":"IF($E231>EndDate,NA(),IF($O$2=TRUE,J231,IF('Cool Graph'!$B$17=1,Data1!J231,IF('Cool Graph'!$B$17=2,Data1!H231,IF('Cool Graph'!$B$17=3,Data1!I231,)))))","v":{"$error":"#N/A"}},{"$f":"SUM(VLOOKUP($E231,AllData,COLUMN()-COLUMN($E231)),VLOOKUP($E231-1,AllData,COLUMN()-COLUMN($E231)),VLOOKUP($E231-2,AllData,COLUMN()-COLUMN($E231)),VLOOKUP($E231-3,AllData,COLUMN()-COLUMN($E231)),VLOOKUP($E231-4,AllData,COLUMN()-COLUMN($E231)),VLOOKUP($E231-5,AllData,COLUMN()-COLUMN($E231)),VLOOKUP($E231-6,AllData,COLUMN()-COLUMN($E231)))","v":{"$error":"#N/A"}},{"$f":"SUM(VLOOKUP($E231,AllData,COLUMN()-1-COLUMN($E231)),VLOOKUP($E231-1,AllData,COLUMN()-1-COLUMN($E231)),VLOOKUP($E231-2,AllData,COLUMN()-1-COLUMN($E231)),VLOOKUP($E231-3,AllData,COLUMN()-1-COLUMN($E231)),VLOOKUP($E231-4,AllData,COLUMN()-1-COLUMN($E231)),VLOOKUP($E231-5,AllData,COLUMN()-1-COLUMN($E231)),VLOOKUP($E231-6,AllData,COLUMN()-1-COLUMN($E231)),VLOOKUP($E231-7,AllData,COLUMN()-1-COLUMN($E231)),VLOOKUP($E231-8,AllData,COLUMN()-1-COLUMN($E231)),VLOOKUP($E231-9,AllData,COLUMN()-1-COLUMN($E231)),VLOOKUP($E231-10,AllData,COLUMN()-1-COLUMN($E231)),VLOOKUP($E231-11,AllData,COLUMN()-1-COLUMN($E231)),VLOOKUP($E231-12,AllData,COLUMN()-1-COLUMN($E231)),VLOOKUP($E231-13,AllData,COLUMN()-1-COLUMN($E231)),VLOOKUP($E231-14,AllData,COLUMN()-1-COLUMN($E231)),VLOOKUP($E231-15,AllData,COLUMN()-1-COLUMN($E231)),VLOOKUP($E231-16,AllData,COLUMN()-1-COLUMN($E231)),VLOOKUP($E231-17,AllData,COLUMN()-1-COLUMN($E231)),VLOOKUP($E231-18,AllData,COLUMN()-1-COLUMN($E231)),VLOOKUP($E231-19,AllData,COLUMN()-1-COLUMN($E231)),VLOOKUP($E231-20,AllData,COLUMN()-1-COLUMN($E231)),VLOOKUP($E231-21,AllData,COLUMN()-1-COLUMN($E231)),VLOOKUP($E231-22,AllData,COLUMN()-1-COLUMN($E231)),VLOOKUP($E231-23,AllData,COLUMN()-1-COLUMN($E231)),VLOOKUP($E231-24,AllData,COLUMN()-1-COLUMN($E231)),VLOOKUP($E231-25,AllData,COLUMN()-1-COLUMN($E231)),VLOOKUP($E231-26,AllData,COLUMN()-1-COLUMN($E231)),VLOOKUP($E231-27,AllData,COLUMN()-1-COLUMN($E231)),VLOOKUP($E231-28,AllData,COLUMN()-1-COLUMN($E231)),VLOOKUP($E231-29,AllData,COLUMN()-1-COLUMN($E231)))","v":{"$error":"#N/A"}},{"$f":"VLOOKUP($E231,AllData,COLUMN()-2-COLUMN($E231))","v":{"$error":"#N/A"}},{"$f":"OR('Cool Graph'!$H$1=35,'Cool Graph'!$H$1=36,'Cool Graph'!$H$1=37,'Cool Graph'!$H$1=38,'Cool Graph'!$H$1=39,'Cool Graph'!$H$1=40,'Cool Graph'!$H$1=41,'Cool Graph'!$H$1=42,'Cool Graph'!$H$1=43,'Cool Graph'!$H$1=44,'Cool Graph'!$H$1=45,'Cool Graph'!$H$1=46,'Cool Graph'!$H$1=47,'Cool Graph'!$H$1=58,'Cool Graph'!$H$1=66)","v":false},{"$f":"SUM(VLOOKUP($E231,AllData,COLUMN()-5-COLUMN($E231)),VLOOKUP($E231-1,AllData,COLUMN()-5-COLUMN($E231)),VLOOKUP($E231-2,AllData,COLUMN()-5-COLUMN($E231)),VLOOKUP($E231-3,AllData,COLUMN()-5-COLUMN($E231)),VLOOKUP($E231-4,AllData,COLUMN()-5-COLUMN($E231)),VLOOKUP($E231-5,AllData,COLUMN()-5-COLUMN($E231)),VLOOKUP($E231-6,AllData,COLUMN()-5-COLUMN($E231)))","v":{"$error":"#N/A"}},{"$f":"SUM(VLOOKUP($E231,AllData,COLUMN()-6-COLUMN($E231)),VLOOKUP($E231-1,AllData,COLUMN()-6-COLUMN($E231)),VLOOKUP($E231-2,AllData,COLUMN()-6-COLUMN($E231)),VLOOKUP($E231-3,AllData,COLUMN()-6-COLUMN($E231)),VLOOKUP($E231-4,AllData,COLUMN()-6-COLUMN($E231)),VLOOKUP($E231-5,AllData,COLUMN()-6-COLUMN($E231)),VLOOKUP($E231-6,AllData,COLUMN()-6-COLUMN($E231)),VLOOKUP($E231-7,AllData,COLUMN()-6-COLUMN($E231)),VLOOKUP($E231-8,AllData,COLUMN()-6-COLUMN($E231)),VLOOKUP($E231-9,AllData,COLUMN()-6-COLUMN($E231)),VLOOKUP($E231-10,AllData,COLUMN()-6-COLUMN($E231)),VLOOKUP($E231-11,AllData,COLUMN()-6-COLUMN($E231)),VLOOKUP($E231-12,AllData,COLUMN()-6-COLUMN($E231)),VLOOKUP($E231-13,AllData,COLUMN()-6-COLUMN($E231)),VLOOKUP($E231-14,AllData,COLUMN()-6-COLUMN($E231)),VLOOKUP($E231-15,AllData,COLUMN()-6-COLUMN($E231)),VLOOKUP($E231-16,AllData,COLUMN()-6-COLUMN($E231)),VLOOKUP($E231-17,AllData,COLUMN()-6-COLUMN($E231)),VLOOKUP($E231-18,AllData,COLUMN()-6-COLUMN($E231)),VLOOKUP($E231-19,AllData,COLUMN()-6-COLUMN($E231)),VLOOKUP($E231-20,AllData,COLUMN()-6-COLUMN($E231)),VLOOKUP($E231-21,AllData,COLUMN()-6-COLUMN($E231)),VLOOKUP($E231-22,AllData,COLUMN()-6-COLUMN($E231)),VLOOKUP($E231-23,AllData,COLUMN()-6-COLUMN($E231)),VLOOKUP($E231-24,AllData,COLUMN()-6-COLUMN($E231)),VLOOKUP($E231-25,AllData,COLUMN()-6-COLUMN($E231)),VLOOKUP($E231-26,AllData,COLUMN()-6-COLUMN($E231)),VLOOKUP($E231-27,AllData,COLUMN()-6-COLUMN($E231)),VLOOKUP($E231-28,AllData,COLUMN()-6-COLUMN($E231)),VLOOKUP($E231-29,AllData,COLUMN()-6-COLUMN($E231)))","v":{"$error":"#N/A"}},{"$f":"VLOOKUP($E231,AllData,COLUMN()-7-COLUMN($E231))","v":{"$error":"#N/A"}},{"$f":"OR('Cool Graph'!$I$1=35,'Cool Graph'!$I$1=36,'Cool Graph'!$I$1=37,'Cool Graph'!$I$1=38,'Cool Graph'!$I$1=39,'Cool Graph'!$I$1=40,'Cool Graph'!$I$1=41,'Cool Graph'!$I$1=42,'Cool Graph'!$I$1=43,'Cool Graph'!$I$1=44,'Cool Graph'!$I$1=45,'Cool Graph'!$I$1=46,'Cool Graph'!$I$1=47,'Cool Graph'!$I$1=58,'Cool Graph'!$I$1=66)","v":false}]
["2012-02-16",{"$f":"OFFSET(OldSchoolJustValues!A232,0,'Cool Graph'!$H$1)","v":89.57},{"$f":"OFFSET(OldSchoolJustValues!A232,0,'Cool Graph'!$I$1)","v":708.46722399167163},null,{"$f":"IF(NewDate>EndDate,NA(),NewDate)","v":{"$error":"#N/A"}},{"$f":"IF($E232>EndDate,NA(),IF($K$2=TRUE,N232,IF('Cool Graph'!$B$17=1,N232,IF('Cool Graph'!$B$17=2,L232,IF('Cool Graph'!$B$17=3,M232,)))))","v":{"$error":"#N/A"}},{"$f":"IF($E232>EndDate,NA(),IF($O$2=TRUE,J232,IF('Cool Graph'!$B$17=1,Data1!J232,IF('Cool Graph'!$B$17=2,Data1!H232,IF('Cool Graph'!$B$17=3,Data1!I232,)))))","v":{"$error":"#N/A"}},{"$f":"SUM(VLOOKUP($E232,AllData,COLUMN()-COLUMN($E232)),VLOOKUP($E232-1,AllData,COLUMN()-COLUMN($E232)),VLOOKUP($E232-2,AllData,COLUMN()-COLUMN($E232)),VLOOKUP($E232-3,AllData,COLUMN()-COLUMN($E232)),VLOOKUP($E232-4,AllData,COLUMN()-COLUMN($E232)),VLOOKUP($E232-5,AllData,COLUMN()-COLUMN($E232)),VLOOKUP($E232-6,AllData,COLUMN()-COLUMN($E232)))","v":{"$error":"#N/A"}},{"$f":"SUM(VLOOKUP($E232,AllData,COLUMN()-1-COLUMN($E232)),VLOOKUP($E232-1,AllData,COLUMN()-1-COLUMN($E232)),VLOOKUP($E232-2,AllData,COLUMN()-1-COLUMN($E232)),VLOOKUP($E232-3,AllData,COLUMN()-1-COLUMN($E232)),VLOOKUP($E232-4,AllData,COLUMN()-1-COLUMN($E232)),VLOOKUP($E232-5,AllData,COLUMN()-1-COLUMN($E232)),VLOOKUP($E232-6,AllData,COLUMN()-1-COLUMN($E232)),VLOOKUP($E232-7,AllData,COLUMN()-1-COLUMN($E232)),VLOOKUP($E232-8,AllData,COLUMN()-1-COLUMN($E232)),VLOOKUP($E232-9,AllData,COLUMN()-1-COLUMN($E232)),VLOOKUP($E232-10,AllData,COLUMN()-1-COLUMN($E232)),VLOOKUP($E232-11,AllData,COLUMN()-1-COLUMN($E232)),VLOOKUP($E232-12,AllData,COLUMN()-1-COLUMN($E232)),VLOOKUP($E232-13,AllData,COLUMN()-1-COLUMN($E232)),VLOOKUP($E232-14,AllData,COLUMN()-1-COLUMN($E232)),VLOOKUP($E232-15,AllData,COLUMN()-1-COLUMN($E232)),VLOOKUP($E232-16,AllData,COLUMN()-1-COLUMN($E232)),VLOOKUP($E232-17,AllData,COLUMN()-1-COLUMN($E232)),VLOOKUP($E232-18,AllData,COLUMN()-1-COLUMN($E232)),VLOOKUP($E232-19,AllData,COLUMN()-1-COLUMN($E232)),VLOOKUP($E232-20,AllData,COLUMN()-1-COLUMN($E232)),VLOOKUP($E232-21,AllData,COLUMN()-1-COLUMN($E232)),VLOOKUP($E232-22,AllData,COLUMN()-1-COLUMN($E232)),VLOOKUP($E232-23,AllData,COLUMN()-1-COLUMN($E232)),VLOOKUP($E232-24,AllData,COLUMN()-1-COLUMN($E232)),VLOOKUP($E232-25,AllData,COLUMN()-1-COLUMN($E232)),VLOOKUP($E232-26,AllData,COLUMN()-1-COLUMN($E232)),VLOOKUP($E232-27,AllData,COLUMN()-1-COLUMN($E232)),VLOOKUP($E232-28,AllData,COLUMN()-1-COLUMN($E232)),VLOOKUP($E232-29,AllData,COLUMN()-1-COLUMN($E232)))","v":{"$error":"#N/A"}},{"$f":"VLOOKUP($E232,AllData,COLUMN()-2-COLUMN($E232))","v":{"$error":"#N/A"}},{"$f":"OR('Cool Graph'!$H$1=35,'Cool Graph'!$H$1=36,'Cool Graph'!$H$1=37,'Cool Graph'!$H$1=38,'Cool Graph'!$H$1=39,'Cool Graph'!$H$1=40,'Cool Graph'!$H$1=41,'Cool Graph'!$H$1=42,'Cool Graph'!$H$1=43,'Cool Graph'!$H$1=44,'Cool Graph'!$H$1=45,'Cool Graph'!$H$1=46,'Cool Graph'!$H$1=47,'Cool Graph'!$H$1=58,'Cool Graph'!$H$1=66)","v":false},{"$f":"SUM(VLOOKUP($E232,AllData,COLUMN()-5-COLUMN($E232)),VLOOKUP($E232-1,AllData,COLUMN()-5-COLUMN($E232)),VLOOKUP($E232-2,AllData,COLUMN()-5-COLUMN($E232)),VLOOKUP($E232-3,AllData,COLUMN()-5-COLUMN($E232)),VLOOKUP($E232-4,AllData,COLUMN()-5-COLUMN($E232)),VLOOKUP($E232-5,AllData,COLUMN()-5-COLUMN($E232)),VLOOKUP($E232-6,AllData,COLUMN()-5-COLUMN($E232)))","v":{"$error":"#N/A"}},{"$f":"SUM(VLOOKUP($E232,AllData,COLUMN()-6-COLUMN($E232)),VLOOKUP($E232-1,AllData,COLUMN()-6-COLUMN($E232)),VLOOKUP($E232-2,AllData,COLUMN()-6-COLUMN($E232)),VLOOKUP($E232-3,AllData,COLUMN()-6-COLUMN($E232)),VLOOKUP($E232-4,AllData,COLUMN()-6-COLUMN($E232)),VLOOKUP($E232-5,AllData,COLUMN()-6-COLUMN($E232)),VLOOKUP($E232-6,AllData,COLUMN()-6-COLUMN($E232)),VLOOKUP($E232-7,AllData,COLUMN()-6-COLUMN($E232)),VLOOKUP($E232-8,AllData,COLUMN()-6-COLUMN($E232)),VLOOKUP($E232-9,AllData,COLUMN()-6-COLUMN($E232)),VLOOKUP($E232-10,AllData,COLUMN()-6-COLUMN($E232)),VLOOKUP($E232-11,AllData,COLUMN()-6-COLUMN($E232)),VLOOKUP($E232-12,AllData,COLUMN()-6-COLUMN($E232)),VLOOKUP($E232-13,AllData,COLUMN()-6-COLUMN($E232)),VLOOKUP($E232-14,AllData,COLUMN()-6-COLUMN($E232)),VLOOKUP($E232-15,AllData,COLUMN()-6-COLUMN($E232)),VLOOKUP($E232-16,AllData,COLUMN()-6-COLUMN($E232)),VLOOKUP($E232-17,AllData,COLUMN()-6-COLUMN($E232)),VLOOKUP($E232-18,AllData,COLUMN()-6-COLUMN($E232)),VLOOKUP($E232-19,AllData,COLUMN()-6-COLUMN($E232)),VLOOKUP($E232-20,AllData,COLUMN()-6-COLUMN($E232)),VLOOKUP($E232-21,AllData,COLUMN()-6-COLUMN($E232)),VLOOKUP($E232-22,AllData,COLUMN()-6-COLUMN($E232)),VLOOKUP($E232-23,AllData,COLUMN()-6-COLUMN($E232)),VLOOKUP($E232-24,AllData,COLUMN()-6-COLUMN($E232)),VLOOKUP($E232-25,AllData,COLUMN()-6-COLUMN($E232)),VLOOKUP($E232-26,AllData,COLUMN()-6-COLUMN($E232)),VLOOKUP($E232-27,AllData,COLUMN()-6-COLUMN($E232)),VLOOKUP($E232-28,AllData,COLUMN()-6-COLUMN($E232)),VLOOKUP($E232-29,AllData,COLUMN()-6-COLUMN($E232)))","v":{"$error":"#N/A"}},{"$f":"VLOOKUP($E232,AllData,COLUMN()-7-COLUMN($E232))","v":{"$error":"#N/A"}},{"$f":"OR('Cool Graph'!$I$1=35,'Cool Graph'!$I$1=36,'Cool Graph'!$I$1=37,'Cool Graph'!$I$1=38,'Cool Graph'!$I$1=39,'Cool Graph'!$I$1=40,'Cool Graph'!$I$1=41,'Cool Graph'!$I$1=42,'Cool Graph'!$I$1=43,'Cool Graph'!$I$1=44,'Cool Graph'!$I$1=45,'Cool Graph'!$I$1=46,'Cool Graph'!$I$1=47,'Cool Graph'!$I$1=58,'Cool Graph'!$I$1=66)","v":false}]
["2012-02-17",{"$f":"OFFSET(OldSchoolJustValues!A233,0,'Cool Graph'!$H$1)","v":68.23},{"$f":"OFFSET(OldSchoolJustValues!A233,0,'Cool Graph'!$I$1)","v":1395.5180618230156},null,{"$f":"IF(NewDate>EndDate,NA(),NewDate)","v":{"$error":"#N/A"}},{"$f":"IF($E233>EndDate,NA(),IF($K$2=TRUE,N233,IF('Cool Graph'!$B$17=1,N233,IF('Cool Graph'!$B$17=2,L233,IF('Cool Graph'!$B$17=3,M233,)))))","v":{"$error":"#N/A"}},{"$f":"IF($E233>EndDate,NA(),IF($O$2=TRUE,J233,IF('Cool Graph'!$B$17=1,Data1!J233,IF('Cool Graph'!$B$17=2,Data1!H233,IF('Cool Graph'!$B$17=3,Data1!I233,)))))","v":{"$error":"#N/A"}},{"$f":"SUM(VLOOKUP($E233,AllData,COLUMN()-COLUMN($E233)),VLOOKUP($E233-1,AllData,COLUMN()-COLUMN($E233)),VLOOKUP($E233-2,AllData,COLUMN()-COLUMN($E233)),VLOOKUP($E233-3,AllData,COLUMN()-COLUMN($E233)),VLOOKUP($E233-4,AllData,COLUMN()-COLUMN($E233)),VLOOKUP($E233-5,AllData,COLUMN()-COLUMN($E233)),VLOOKUP($E233-6,AllData,COLUMN()-COLUMN($E233)))","v":{"$error":"#N/A"}},{"$f":"SUM(VLOOKUP($E233,AllData,COLUMN()-1-COLUMN($E233)),VLOOKUP($E233-1,AllData,COLUMN()-1-COLUMN($E233)),VLOOKUP($E233-2,AllData,COLUMN()-1-COLUMN($E233)),VLOOKUP($E233-3,AllData,COLUMN()-1-COLUMN($E233)),VLOOKUP($E233-4,AllData,COLUMN()-1-COLUMN($E233)),VLOOKUP($E233-5,AllData,COLUMN()-1-COLUMN($E233)),VLOOKUP($E233-6,AllData,COLUMN()-1-COLUMN($E233)),VLOOKUP($E233-7,AllData,COLUMN()-1-COLUMN($E233)),VLOOKUP($E233-8,AllData,COLUMN()-1-COLUMN($E233)),VLOOKUP($E233-9,AllData,COLUMN()-1-COLUMN($E233)),VLOOKUP($E233-10,AllData,COLUMN()-1-COLUMN($E233)),VLOOKUP($E233-11,AllData,COLUMN()-1-COLUMN($E233)),VLOOKUP($E233-12,AllData,COLUMN()-1-COLUMN($E233)),VLOOKUP($E233-13,AllData,COLUMN()-1-COLUMN($E233)),VLOOKUP($E233-14,AllData,COLUMN()-1-COLUMN($E233)),VLOOKUP($E233-15,AllData,COLUMN()-1-COLUMN($E233)),VLOOKUP($E233-16,AllData,COLUMN()-1-COLUMN($E233)),VLOOKUP($E233-17,AllData,COLUMN()-1-COLUMN($E233)),VLOOKUP($E233-18,AllData,COLUMN()-1-COLUMN($E233)),VLOOKUP($E233-19,AllData,COLUMN()-1-COLUMN($E233)),VLOOKUP($E233-20,AllData,COLUMN()-1-COLUMN($E233)),VLOOKUP($E233-21,AllData,COLUMN()-1-COLUMN($E233)),VLOOKUP($E233-22,AllData,COLUMN()-1-COLUMN($E233)),VLOOKUP($E233-23,AllData,COLUMN()-1-COLUMN($E233)),VLOOKUP($E233-24,AllData,COLUMN()-1-COLUMN($E233)),VLOOKUP($E233-25,AllData,COLUMN()-1-COLUMN($E233)),VLOOKUP($E233-26,AllData,COLUMN()-1-COLUMN($E233)),VLOOKUP($E233-27,AllData,COLUMN()-1-COLUMN($E233)),VLOOKUP($E233-28,AllData,COLUMN()-1-COLUMN($E233)),VLOOKUP($E233-29,AllData,COLUMN()-1-COLUMN($E233)))","v":{"$error":"#N/A"}},{"$f":"VLOOKUP($E233,AllData,COLUMN()-2-COLUMN($E233))","v":{"$error":"#N/A"}},{"$f":"OR('Cool Graph'!$H$1=35,'Cool Graph'!$H$1=36,'Cool Graph'!$H$1=37,'Cool Graph'!$H$1=38,'Cool Graph'!$H$1=39,'Cool Graph'!$H$1=40,'Cool Graph'!$H$1=41,'Cool Graph'!$H$1=42,'Cool Graph'!$H$1=43,'Cool Graph'!$H$1=44,'Cool Graph'!$H$1=45,'Cool Graph'!$H$1=46,'Cool Graph'!$H$1=47,'Cool Graph'!$H$1=58,'Cool Graph'!$H$1=66)","v":false},{"$f":"SUM(VLOOKUP($E233,AllData,COLUMN()-5-COLUMN($E233)),VLOOKUP($E233-1,AllData,COLUMN()-5-COLUMN($E233)),VLOOKUP($E233-2,AllData,COLUMN()-5-COLUMN($E233)),VLOOKUP($E233-3,AllData,COLUMN()-5-COLUMN($E233)),VLOOKUP($E233-4,AllData,COLUMN()-5-COLUMN($E233)),VLOOKUP($E233-5,AllData,COLUMN()-5-COLUMN($E233)),VLOOKUP($E233-6,AllData,COLUMN()-5-COLUMN($E233)))","v":{"$error":"#N/A"}},{"$f":"SUM(VLOOKUP($E233,AllData,COLUMN()-6-COLUMN($E233)),VLOOKUP($E233-1,AllData,COLUMN()-6-COLUMN($E233)),VLOOKUP($E233-2,AllData,COLUMN()-6-COLUMN($E233)),VLOOKUP($E233-3,AllData,COLUMN()-6-COLUMN($E233)),VLOOKUP($E233-4,AllData,COLUMN()-6-COLUMN($E233)),VLOOKUP($E233-5,AllData,COLUMN()-6-COLUMN($E233)),VLOOKUP($E233-6,AllData,COLUMN()-6-COLUMN($E233)),VLOOKUP($E233-7,AllData,COLUMN()-6-COLUMN($E233)),VLOOKUP($E233-8,AllData,COLUMN()-6-COLUMN($E233)),VLOOKUP($E233-9,AllData,COLUMN()-6-COLUMN($E233)),VLOOKUP($E233-10,AllData,COLUMN()-6-COLUMN($E233)),VLOOKUP($E233-11,AllData,COLUMN()-6-COLUMN($E233)),VLOOKUP($E233-12,AllData,COLUMN()-6-COLUMN($E233)),VLOOKUP($E233-13,AllData,COLUMN()-6-COLUMN($E233)),VLOOKUP($E233-14,AllData,COLUMN()-6-COLUMN($E233)),VLOOKUP($E233-15,AllData,COLUMN()-6-COLUMN($E233)),VLOOKUP($E233-16,AllData,COLUMN()-6-COLUMN($E233)),VLOOKUP($E233-17,AllData,COLUMN()-6-COLUMN($E233)),VLOOKUP($E233-18,AllData,COLUMN()-6-COLUMN($E233)),VLOOKUP($E233-19,AllData,COLUMN()-6-COLUMN($E233)),VLOOKUP($E233-20,AllData,COLUMN()-6-COLUMN($E233)),VLOOKUP($E233-21,AllData,COLUMN()-6-COLUMN($E233)),VLOOKUP($E233-22,AllData,COLUMN()-6-COLUMN($E233)),VLOOKUP($E233-23,AllData,COLUMN()-6-COLUMN($E233)),VLOOKUP($E233-24,AllData,COLUMN()-6-COLUMN($E233)),VLOOKUP($E233-25,AllData,COLUMN()-6-COLUMN($E233)),VLOOKUP($E233-26,AllData,COLUMN()-6-COLUMN($E233)),VLOOKUP($E233-27,AllData,COLUMN()-6-COLUMN($E233)),VLOOKUP($E233-28,AllData,COLUMN()-6-COLUMN($E233)),VLOOKUP($E233-29,AllData,COLUMN()-6-COLUMN($E233)))","v":{"$error":"#N/A"}},{"$f":"VLOOKUP($E233,AllData,COLUMN()-7-COLUMN($E233))","v":{"$error":"#N/A"}},{"$f":"OR('Cool Graph'!$I$1=35,'Cool Graph'!$I$1=36,'Cool Graph'!$I$1=37,'Cool Graph'!$I$1=38,'Cool Graph'!$I$1=39,'Cool Graph'!$I$1=40,'Cool Graph'!$I$1=41,'Cool Graph'!$I$1=42,'Cool Graph'!$I$1=43,'Cool Graph'!$I$1=44,'Cool Graph'!$I$1=45,'Cool Graph'!$I$1=46,'Cool Graph'!$I$1=47,'Cool Graph'!$I$1=58,'Cool Graph'!$I$1=66)","v":false}]
["2012-02-18",{"$f":"OFFSET(OldSchoolJustValues!A234,0,'Cool Graph'!$H$1)","v":87.01},{"$f":"OFFSET(OldSchoolJustValues!A234,0,'Cool Graph'!$I$1)","v":783.2852926132648},null,{"$f":"IF(NewDate>EndDate,NA(),NewDate)","v":{"$error":"#N/A"}},{"$f":"IF($E234>EndDate,NA(),IF($K$2=TRUE,N234,IF('Cool Graph'!$B$17=1,N234,IF('Cool Graph'!$B$17=2,L234,IF('Cool Graph'!$B$17=3,M234,)))))","v":{"$error":"#N/A"}},{"$f":"IF($E234>EndDate,NA(),IF($O$2=TRUE,J234,IF('Cool Graph'!$B$17=1,Data1!J234,IF('Cool Graph'!$B$17=2,Data1!H234,IF('Cool Graph'!$B$17=3,Data1!I234,)))))","v":{"$error":"#N/A"}},{"$f":"SUM(VLOOKUP($E234,AllData,COLUMN()-COLUMN($E234)),VLOOKUP($E234-1,AllData,COLUMN()-COLUMN($E234)),VLOOKUP($E234-2,AllData,COLUMN()-COLUMN($E234)),VLOOKUP($E234-3,AllData,COLUMN()-COLUMN($E234)),VLOOKUP($E234-4,AllData,COLUMN()-COLUMN($E234)),VLOOKUP($E234-5,AllData,COLUMN()-COLUMN($E234)),VLOOKUP($E234-6,AllData,COLUMN()-COLUMN($E234)))","v":{"$error":"#N/A"}},{"$f":"SUM(VLOOKUP($E234,AllData,COLUMN()-1-COLUMN($E234)),VLOOKUP($E234-1,AllData,COLUMN()-1-COLUMN($E234)),VLOOKUP($E234-2,AllData,COLUMN()-1-COLUMN($E234)),VLOOKUP($E234-3,AllData,COLUMN()-1-COLUMN($E234)),VLOOKUP($E234-4,AllData,COLUMN()-1-COLUMN($E234)),VLOOKUP($E234-5,AllData,COLUMN()-1-COLUMN($E234)),VLOOKUP($E234-6,AllData,COLUMN()-1-COLUMN($E234)),VLOOKUP($E234-7,AllData,COLUMN()-1-COLUMN($E234)),VLOOKUP($E234-8,AllData,COLUMN()-1-COLUMN($E234)),VLOOKUP($E234-9,AllData,COLUMN()-1-COLUMN($E234)),VLOOKUP($E234-10,AllData,COLUMN()-1-COLUMN($E234)),VLOOKUP($E234-11,AllData,COLUMN()-1-COLUMN($E234)),VLOOKUP($E234-12,AllData,COLUMN()-1-COLUMN($E234)),VLOOKUP($E234-13,AllData,COLUMN()-1-COLUMN($E234)),VLOOKUP($E234-14,AllData,COLUMN()-1-COLUMN($E234)),VLOOKUP($E234-15,AllData,COLUMN()-1-COLUMN($E234)),VLOOKUP($E234-16,AllData,COLUMN()-1-COLUMN($E234)),VLOOKUP($E234-17,AllData,COLUMN()-1-COLUMN($E234)),VLOOKUP($E234-18,AllData,COLUMN()-1-COLUMN($E234)),VLOOKUP($E234-19,AllData,COLUMN()-1-COLUMN($E234)),VLOOKUP($E234-20,AllData,COLUMN()-1-COLUMN($E234)),VLOOKUP($E234-21,AllData,COLUMN()-1-COLUMN($E234)),VLOOKUP($E234-22,AllData,COLUMN()-1-COLUMN($E234)),VLOOKUP($E234-23,AllData,COLUMN()-1-COLUMN($E234)),VLOOKUP($E234-24,AllData,COLUMN()-1-COLUMN($E234)),VLOOKUP($E234-25,AllData,COLUMN()-1-COLUMN($E234)),VLOOKUP($E234-26,AllData,COLUMN()-1-COLUMN($E234)),VLOOKUP($E234-27,AllData,COLUMN()-1-COLUMN($E234)),VLOOKUP($E234-28,AllData,COLUMN()-1-COLUMN($E234)),VLOOKUP($E234-29,AllData,COLUMN()-1-COLUMN($E234)))","v":{"$error":"#N/A"}},{"$f":"VLOOKUP($E234,AllData,COLUMN()-2-COLUMN($E234))","v":{"$error":"#N/A"}},{"$f":"OR('Cool Graph'!$H$1=35,'Cool Graph'!$H$1=36,'Cool Graph'!$H$1=37,'Cool Graph'!$H$1=38,'Cool Graph'!$H$1=39,'Cool Graph'!$H$1=40,'Cool Graph'!$H$1=41,'Cool Graph'!$H$1=42,'Cool Graph'!$H$1=43,'Cool Graph'!$H$1=44,'Cool Graph'!$H$1=45,'Cool Graph'!$H$1=46,'Cool Graph'!$H$1=47,'Cool Graph'!$H$1=58,'Cool Graph'!$H$1=66)","v":false},{"$f":"SUM(VLOOKUP($E234,AllData,COLUMN()-5-COLUMN($E234)),VLOOKUP($E234-1,AllData,COLUMN()-5-COLUMN($E234)),VLOOKUP($E234-2,AllData,COLUMN()-5-COLUMN($E234)),VLOOKUP($E234-3,AllData,COLUMN()-5-COLUMN($E234)),VLOOKUP($E234-4,AllData,COLUMN()-5-COLUMN($E234)),VLOOKUP($E234-5,AllData,COLUMN()-5-COLUMN($E234)),VLOOKUP($E234-6,AllData,COLUMN()-5-COLUMN($E234)))","v":{"$error":"#N/A"}},{"$f":"SUM(VLOOKUP($E234,AllData,COLUMN()-6-COLUMN($E234)),VLOOKUP($E234-1,AllData,COLUMN()-6-COLUMN($E234)),VLOOKUP($E234-2,AllData,COLUMN()-6-COLUMN($E234)),VLOOKUP($E234-3,AllData,COLUMN()-6-COLUMN($E234)),VLOOKUP($E234-4,AllData,COLUMN()-6-COLUMN($E234)),VLOOKUP($E234-5,AllData,COLUMN()-6-COLUMN($E234)),VLOOKUP($E234-6,AllData,COLUMN()-6-COLUMN($E234)),VLOOKUP($E234-7,AllData,COLUMN()-6-COLUMN($E234)),VLOOKUP($E234-8,AllData,COLUMN()-6-COLUMN($E234)),VLOOKUP($E234-9,AllData,COLUMN()-6-COLUMN($E234)),VLOOKUP($E234-10,AllData,COLUMN()-6-COLUMN($E234)),VLOOKUP($E234-11,AllData,COLUMN()-6-COLUMN($E234)),VLOOKUP($E234-12,AllData,COLUMN()-6-COLUMN($E234)),VLOOKUP($E234-13,AllData,COLUMN()-6-COLUMN($E234)),VLOOKUP($E234-14,AllData,COLUMN()-6-COLUMN($E234)),VLOOKUP($E234-15,AllData,COLUMN()-6-COLUMN($E234)),VLOOKUP($E234-16,AllData,COLUMN()-6-COLUMN($E234)),VLOOKUP($E234-17,AllData,COLUMN()-6-COLUMN($E234)),VLOOKUP($E234-18,AllData,COLUMN()-6-COLUMN($E234)),VLOOKUP($E234-19,AllData,COLUMN()-6-COLUMN($E234)),VLOOKUP($E234-20,AllData,COLUMN()-6-COLUMN($E234)),VLOOKUP($E234-21,AllData,COLUMN()-6-COLUMN($E234)),VLOOKUP($E234-22,AllData,COLUMN()-6-COLUMN($E234)),VLOOKUP($E234-23,AllData,COLUMN()-6-COLUMN($E234)),VLOOKUP($E234-24,AllData,COLUMN()-6-COLUMN($E234)),VLOOKUP($E234-25,AllData,COLUMN()-6-COLUMN($E234)),VLOOKUP($E234-26,AllData,COLUMN()-6-COLUMN($E234)),VLOOKUP($E234-27,AllData,COLUMN()-6-COLUMN($E234)),VLOOKUP($E234-28,AllData,COLUMN()-6-COLUMN($E234)),VLOOKUP($E234-29,AllData,COLUMN()-6-COLUMN($E234)))","v":{"$error":"#N/A"}},{"$f":"VLOOKUP($E234,AllData,COLUMN()-7-COLUMN($E234))","v":{"$error":"#N/A"}},{"$f":"OR('Cool Graph'!$I$1=35,'Cool Graph'!$I$1=36,'Cool Graph'!$I$1=37,'Cool Graph'!$I$1=38,'Cool Graph'!$I$1=39,'Cool Graph'!$I$1=40,'Cool Graph'!$I$1=41,'Cool Graph'!$I$1=42,'Cool Graph'!$I$1=43,'Cool Graph'!$I$1=44,'Cool Graph'!$I$1=45,'Cool Graph'!$I$1=46,'Cool Graph'!$I$1=47,'Cool Graph'!$I$1=58,'Cool Graph'!$I$1=66)","v":false}]
["2012-02-19",{"$f":"OFFSET(OldSchoolJustValues!A235,0,'Cool Graph'!$H$1)","v":293.63},{"$f":"OFFSET(OldSchoolJustValues!A235,0,'Cool Graph'!$I$1)","v":1418.9397600183829},null,{"$f":"IF(NewDate>EndDate,NA(),NewDate)","v":{"$error":"#N/A"}},{"$f":"IF($E235>EndDate,NA(),IF($K$2=TRUE,N235,IF('Cool Graph'!$B$17=1,N235,IF('Cool Graph'!$B$17=2,L235,IF('Cool Graph'!$B$17=3,M235,)))))","v":{"$error":"#N/A"}},{"$f":"IF($E235>EndDate,NA(),IF($O$2=TRUE,J235,IF('Cool Graph'!$B$17=1,Data1!J235,IF('Cool Graph'!$B$17=2,Data1!H235,IF('Cool Graph'!$B$17=3,Data1!I235,)))))","v":{"$error":"#N/A"}},{"$f":"SUM(VLOOKUP($E235,AllData,COLUMN()-COLUMN($E235)),VLOOKUP($E235-1,AllData,COLUMN()-COLUMN($E235)),VLOOKUP($E235-2,AllData,COLUMN()-COLUMN($E235)),VLOOKUP($E235-3,AllData,COLUMN()-COLUMN($E235)),VLOOKUP($E235-4,AllData,COLUMN()-COLUMN($E235)),VLOOKUP($E235-5,AllData,COLUMN()-COLUMN($E235)),VLOOKUP($E235-6,AllData,COLUMN()-COLUMN($E235)))","v":{"$error":"#N/A"}},{"$f":"SUM(VLOOKUP($E235,AllData,COLUMN()-1-COLUMN($E235)),VLOOKUP($E235-1,AllData,COLUMN()-1-COLUMN($E235)),VLOOKUP($E235-2,AllData,COLUMN()-1-COLUMN($E235)),VLOOKUP($E235-3,AllData,COLUMN()-1-COLUMN($E235)),VLOOKUP($E235-4,AllData,COLUMN()-1-COLUMN($E235)),VLOOKUP($E235-5,AllData,COLUMN()-1-COLUMN($E235)),VLOOKUP($E235-6,AllData,COLUMN()-1-COLUMN($E235)),VLOOKUP($E235-7,AllData,COLUMN()-1-COLUMN($E235)),VLOOKUP($E235-8,AllData,COLUMN()-1-COLUMN($E235)),VLOOKUP($E235-9,AllData,COLUMN()-1-COLUMN($E235)),VLOOKUP($E235-10,AllData,COLUMN()-1-COLUMN($E235)),VLOOKUP($E235-11,AllData,COLUMN()-1-COLUMN($E235)),VLOOKUP($E235-12,AllData,COLUMN()-1-COLUMN($E235)),VLOOKUP($E235-13,AllData,COLUMN()-1-COLUMN($E235)),VLOOKUP($E235-14,AllData,COLUMN()-1-COLUMN($E235)),VLOOKUP($E235-15,AllData,COLUMN()-1-COLUMN($E235)),VLOOKUP($E235-16,AllData,COLUMN()-1-COLUMN($E235)),VLOOKUP($E235-17,AllData,COLUMN()-1-COLUMN($E235)),VLOOKUP($E235-18,AllData,COLUMN()-1-COLUMN($E235)),VLOOKUP($E235-19,AllData,COLUMN()-1-COLUMN($E235)),VLOOKUP($E235-20,AllData,COLUMN()-1-COLUMN($E235)),VLOOKUP($E235-21,AllData,COLUMN()-1-COLUMN($E235)),VLOOKUP($E235-22,AllData,COLUMN()-1-COLUMN($E235)),VLOOKUP($E235-23,AllData,COLUMN()-1-COLUMN($E235)),VLOOKUP($E235-24,AllData,COLUMN()-1-COLUMN($E235)),VLOOKUP($E235-25,AllData,COLUMN()-1-COLUMN($E235)),VLOOKUP($E235-26,AllData,COLUMN()-1-COLUMN($E235)),VLOOKUP($E235-27,AllData,COLUMN()-1-COLUMN($E235)),VLOOKUP($E235-28,AllData,COLUMN()-1-COLUMN($E235)),VLOOKUP($E235-29,AllData,COLUMN()-1-COLUMN($E235)))","v":{"$error":"#N/A"}},{"$f":"VLOOKUP($E235,AllData,COLUMN()-2-COLUMN($E235))","v":{"$error":"#N/A"}},{"$f":"OR('Cool Graph'!$H$1=35,'Cool Graph'!$H$1=36,'Cool Graph'!$H$1=37,'Cool Graph'!$H$1=38,'Cool Graph'!$H$1=39,'Cool Graph'!$H$1=40,'Cool Graph'!$H$1=41,'Cool Graph'!$H$1=42,'Cool Graph'!$H$1=43,'Cool Graph'!$H$1=44,'Cool Graph'!$H$1=45,'Cool Graph'!$H$1=46,'Cool Graph'!$H$1=47,'Cool Graph'!$H$1=58,'Cool Graph'!$H$1=66)","v":false},{"$f":"SUM(VLOOKUP($E235,AllData,COLUMN()-5-COLUMN($E235)),VLOOKUP($E235-1,AllData,COLUMN()-5-COLUMN($E235)),VLOOKUP($E235-2,AllData,COLUMN()-5-COLUMN($E235)),VLOOKUP($E235-3,AllData,COLUMN()-5-COLUMN($E235)),VLOOKUP($E235-4,AllData,COLUMN()-5-COLUMN($E235)),VLOOKUP($E235-5,AllData,COLUMN()-5-COLUMN($E235)),VLOOKUP($E235-6,AllData,COLUMN()-5-COLUMN($E235)))","v":{"$error":"#N/A"}},{"$f":"SUM(VLOOKUP($E235,AllData,COLUMN()-6-COLUMN($E235)),VLOOKUP($E235-1,AllData,COLUMN()-6-COLUMN($E235)),VLOOKUP($E235-2,AllData,COLUMN()-6-COLUMN($E235)),VLOOKUP($E235-3,AllData,COLUMN()-6-COLUMN($E235)),VLOOKUP($E235-4,AllData,COLUMN()-6-COLUMN($E235)),VLOOKUP($E235-5,AllData,COLUMN()-6-COLUMN($E235)),VLOOKUP($E235-6,AllData,COLUMN()-6-COLUMN($E235)),VLOOKUP($E235-7,AllData,COLUMN()-6-COLUMN($E235)),VLOOKUP($E235-8,AllData,COLUMN()-6-COLUMN($E235)),VLOOKUP($E235-9,AllData,COLUMN()-6-COLUMN($E235)),VLOOKUP($E235-10,AllData,COLUMN()-6-COLUMN($E235)),VLOOKUP($E235-11,AllData,COLUMN()-6-COLUMN($E235)),VLOOKUP($E235-12,AllData,COLUMN()-6-COLUMN($E235)),VLOOKUP($E235-13,AllData,COLUMN()-6-COLUMN($E235)),VLOOKUP($E235-14,AllData,COLUMN()-6-COLUMN($E235)),VLOOKUP($E235-15,AllData,COLUMN()-6-COLUMN($E235)),VLOOKUP($E235-16,AllData,COLUMN()-6-COLUMN($E235)),VLOOKUP($E235-17,AllData,COLUMN()-6-COLUMN($E235)),VLOOKUP($E235-18,AllData,COLUMN()-6-COLUMN($E235)),VLOOKUP($E235-19,AllData,COLUMN()-6-COLUMN($E235)),VLOOKUP($E235-20,AllData,COLUMN()-6-COLUMN($E235)),VLOOKUP($E235-21,AllData,COLUMN()-6-COLUMN($E235)),VLOOKUP($E235-22,AllData,COLUMN()-6-COLUMN($E235)),VLOOKUP($E235-23,AllData,COLUMN()-6-COLUMN($E235)),VLOOKUP($E235-24,AllData,COLUMN()-6-COLUMN($E235)),VLOOKUP($E235-25,AllData,COLUMN()-6-COLUMN($E235)),VLOOKUP($E235-26,AllData,COLUMN()-6-COLUMN($E235)),VLOOKUP($E235-27,AllData,COLUMN()-6-COLUMN($E235)),VLOOKUP($E235-28,AllData,COLUMN()-6-COLUMN($E235)),VLOOKUP($E235-29,AllData,COLUMN()-6-COLUMN($E235)))","v":{"$error":"#N/A"}},{"$f":"VLOOKUP($E235,AllData,COLUMN()-7-COLUMN($E235))","v":{"$error":"#N/A"}},{"$f":"OR('Cool Graph'!$I$1=35,'Cool Graph'!$I$1=36,'Cool Graph'!$I$1=37,'Cool Graph'!$I$1=38,'Cool Graph'!$I$1=39,'Cool Graph'!$I$1=40,'Cool Graph'!$I$1=41,'Cool Graph'!$I$1=42,'Cool Graph'!$I$1=43,'Cool Graph'!$I$1=44,'Cool Graph'!$I$1=45,'Cool Graph'!$I$1=46,'Cool Graph'!$I$1=47,'Cool Graph'!$I$1=58,'Cool Graph'!$I$1=66)","v":false}]
["2012-02-20",{"$f":"OFFSET(OldSchoolJustValues!A236,0,'Cool Graph'!$H$1)","v":347.23},{"$f":"OFFSET(OldSchoolJustValues!A236,0,'Cool Graph'!$I$1)","v":1020.9260371116235},null,{"$f":"IF(NewDate>EndDate,NA(),NewDate)","v":{"$error":"#N/A"}},{"$f":"IF($E236>EndDate,NA(),IF($K$2=TRUE,N236,IF('Cool Graph'!$B$17=1,N236,IF('Cool Graph'!$B$17=2,L236,IF('Cool Graph'!$B$17=3,M236,)))))","v":{"$error":"#N/A"}},{"$f":"IF($E236>EndDate,NA(),IF($O$2=TRUE,J236,IF('Cool Graph'!$B$17=1,Data1!J236,IF('Cool Graph'!$B$17=2,Data1!H236,IF('Cool Graph'!$B$17=3,Data1!I236,)))))","v":{"$error":"#N/A"}},{"$f":"SUM(VLOOKUP($E236,AllData,COLUMN()-COLUMN($E236)),VLOOKUP($E236-1,AllData,COLUMN()-COLUMN($E236)),VLOOKUP($E236-2,AllData,COLUMN()-COLUMN($E236)),VLOOKUP($E236-3,AllData,COLUMN()-COLUMN($E236)),VLOOKUP($E236-4,AllData,COLUMN()-COLUMN($E236)),VLOOKUP($E236-5,AllData,COLUMN()-COLUMN($E236)),VLOOKUP($E236-6,AllData,COLUMN()-COLUMN($E236)))","v":{"$error":"#N/A"}},{"$f":"SUM(VLOOKUP($E236,AllData,COLUMN()-1-COLUMN($E236)),VLOOKUP($E236-1,AllData,COLUMN()-1-COLUMN($E236)),VLOOKUP($E236-2,AllData,COLUMN()-1-COLUMN($E236)),VLOOKUP($E236-3,AllData,COLUMN()-1-COLUMN($E236)),VLOOKUP($E236-4,AllData,COLUMN()-1-COLUMN($E236)),VLOOKUP($E236-5,AllData,COLUMN()-1-COLUMN($E236)),VLOOKUP($E236-6,AllData,COLUMN()-1-COLUMN($E236)),VLOOKUP($E236-7,AllData,COLUMN()-1-COLUMN($E236)),VLOOKUP($E236-8,AllData,COLUMN()-1-COLUMN($E236)),VLOOKUP($E236-9,AllData,COLUMN()-1-COLUMN($E236)),VLOOKUP($E236-10,AllData,COLUMN()-1-COLUMN($E236)),VLOOKUP($E236-11,AllData,COLUMN()-1-COLUMN($E236)),VLOOKUP($E236-12,AllData,COLUMN()-1-COLUMN($E236)),VLOOKUP($E236-13,AllData,COLUMN()-1-COLUMN($E236)),VLOOKUP($E236-14,AllData,COLUMN()-1-COLUMN($E236)),VLOOKUP($E236-15,AllData,COLUMN()-1-COLUMN($E236)),VLOOKUP($E236-16,AllData,COLUMN()-1-COLUMN($E236)),VLOOKUP($E236-17,AllData,COLUMN()-1-COLUMN($E236)),VLOOKUP($E236-18,AllData,COLUMN()-1-COLUMN($E236)),VLOOKUP($E236-19,AllData,COLUMN()-1-COLUMN($E236)),VLOOKUP($E236-20,AllData,COLUMN()-1-COLUMN($E236)),VLOOKUP($E236-21,AllData,COLUMN()-1-COLUMN($E236)),VLOOKUP($E236-22,AllData,COLUMN()-1-COLUMN($E236)),VLOOKUP($E236-23,AllData,COLUMN()-1-COLUMN($E236)),VLOOKUP($E236-24,AllData,COLUMN()-1-COLUMN($E236)),VLOOKUP($E236-25,AllData,COLUMN()-1-COLUMN($E236)),VLOOKUP($E236-26,AllData,COLUMN()-1-COLUMN($E236)),VLOOKUP($E236-27,AllData,COLUMN()-1-COLUMN($E236)),VLOOKUP($E236-28,AllData,COLUMN()-1-COLUMN($E236)),VLOOKUP($E236-29,AllData,COLUMN()-1-COLUMN($E236)))","v":{"$error":"#N/A"}},{"$f":"VLOOKUP($E236,AllData,COLUMN()-2-COLUMN($E236))","v":{"$error":"#N/A"}},{"$f":"OR('Cool Graph'!$H$1=35,'Cool Graph'!$H$1=36,'Cool Graph'!$H$1=37,'Cool Graph'!$H$1=38,'Cool Graph'!$H$1=39,'Cool Graph'!$H$1=40,'Cool Graph'!$H$1=41,'Cool Graph'!$H$1=42,'Cool Graph'!$H$1=43,'Cool Graph'!$H$1=44,'Cool Graph'!$H$1=45,'Cool Graph'!$H$1=46,'Cool Graph'!$H$1=47,'Cool Graph'!$H$1=58,'Cool Graph'!$H$1=66)","v":false},{"$f":"SUM(VLOOKUP($E236,AllData,COLUMN()-5-COLUMN($E236)),VLOOKUP($E236-1,AllData,COLUMN()-5-COLUMN($E236)),VLOOKUP($E236-2,AllData,COLUMN()-5-COLUMN($E236)),VLOOKUP($E236-3,AllData,COLUMN()-5-COLUMN($E236)),VLOOKUP($E236-4,AllData,COLUMN()-5-COLUMN($E236)),VLOOKUP($E236-5,AllData,COLUMN()-5-COLUMN($E236)),VLOOKUP($E236-6,AllData,COLUMN()-5-COLUMN($E236)))","v":{"$error":"#N/A"}},{"$f":"SUM(VLOOKUP($E236,AllData,COLUMN()-6-COLUMN($E236)),VLOOKUP($E236-1,AllData,COLUMN()-6-COLUMN($E236)),VLOOKUP($E236-2,AllData,COLUMN()-6-COLUMN($E236)),VLOOKUP($E236-3,AllData,COLUMN()-6-COLUMN($E236)),VLOOKUP($E236-4,AllData,COLUMN()-6-COLUMN($E236)),VLOOKUP($E236-5,AllData,COLUMN()-6-COLUMN($E236)),VLOOKUP($E236-6,AllData,COLUMN()-6-COLUMN($E236)),VLOOKUP($E236-7,AllData,COLUMN()-6-COLUMN($E236)),VLOOKUP($E236-8,AllData,COLUMN()-6-COLUMN($E236)),VLOOKUP($E236-9,AllData,COLUMN()-6-COLUMN($E236)),VLOOKUP($E236-10,AllData,COLUMN()-6-COLUMN($E236)),VLOOKUP($E236-11,AllData,COLUMN()-6-COLUMN($E236)),VLOOKUP($E236-12,AllData,COLUMN()-6-COLUMN($E236)),VLOOKUP($E236-13,AllData,COLUMN()-6-COLUMN($E236)),VLOOKUP($E236-14,AllData,COLUMN()-6-COLUMN($E236)),VLOOKUP($E236-15,AllData,COLUMN()-6-COLUMN($E236)),VLOOKUP($E236-16,AllData,COLUMN()-6-COLUMN($E236)),VLOOKUP($E236-17,AllData,COLUMN()-6-COLUMN($E236)),VLOOKUP($E236-18,AllData,COLUMN()-6-COLUMN($E236)),VLOOKUP($E236-19,AllData,COLUMN()-6-COLUMN($E236)),VLOOKUP($E236-20,AllData,COLUMN()-6-COLUMN($E236)),VLOOKUP($E236-21,AllData,COLUMN()-6-COLUMN($E236)),VLOOKUP($E236-22,AllData,COLUMN()-6-COLUMN($E236)),VLOOKUP($E236-23,AllData,COLUMN()-6-COLUMN($E236)),VLOOKUP($E236-24,AllData,COLUMN()-6-COLUMN($E236)),VLOOKUP($E236-25,AllData,COLUMN()-6-COLUMN($E236)),VLOOKUP($E236-26,AllData,COLUMN()-6-COLUMN($E236)),VLOOKUP($E236-27,AllData,COLUMN()-6-COLUMN($E236)),VLOOKUP($E236-28,AllData,COLUMN()-6-COLUMN($E236)),VLOOKUP($E236-29,AllData,COLUMN()-6-COLUMN($E236)))","v":{"$error":"#N/A"}},{"$f":"VLOOKUP($E236,AllData,COLUMN()-7-COLUMN($E236))","v":{"$error":"#N/A"}},{"$f":"OR('Cool Graph'!$I$1=35,'Cool Graph'!$I$1=36,'Cool Graph'!$I$1=37,'Cool Graph'!$I$1=38,'Cool Graph'!$I$1=39,'Cool Graph'!$I$1=40,'Cool Graph'!$I$1=41,'Cool Graph'!$I$1=42,'Cool Graph'!$I$1=43,'Cool Graph'!$I$1=44,'Cool Graph'!$I$1=45,'Cool Graph'!$I$1=46,'Cool Graph'!$I$1=47,'Cool Graph'!$I$1=58,'Cool Graph'!$I$1=66)","v":false}]
["2012-02-21",{"$f":"OFFSET(OldSchoolJustValues!A237,0,'Cool Graph'!$H$1)","v":214.52},{"$f":"OFFSET(OldSchoolJustValues!A237,0,'Cool Graph'!$I$1)","v":611.89008901971113},null,{"$f":"IF(NewDate>EndDate,NA(),NewDate)","v":{"$error":"#N/A"}},{"$f":"IF($E237>EndDate,NA(),IF($K$2=TRUE,N237,IF('Cool Graph'!$B$17=1,N237,IF('Cool Graph'!$B$17=2,L237,IF('Cool Graph'!$B$17=3,M237,)))))","v":{"$error":"#N/A"}},{"$f":"IF($E237>EndDate,NA(),IF($O$2=TRUE,J237,IF('Cool Graph'!$B$17=1,Data1!J237,IF('Cool Graph'!$B$17=2,Data1!H237,IF('Cool Graph'!$B$17=3,Data1!I237,)))))","v":{"$error":"#N/A"}},{"$f":"SUM(VLOOKUP($E237,AllData,COLUMN()-COLUMN($E237)),VLOOKUP($E237-1,AllData,COLUMN()-COLUMN($E237)),VLOOKUP($E237-2,AllData,COLUMN()-COLUMN($E237)),VLOOKUP($E237-3,AllData,COLUMN()-COLUMN($E237)),VLOOKUP($E237-4,AllData,COLUMN()-COLUMN($E237)),VLOOKUP($E237-5,AllData,COLUMN()-COLUMN($E237)),VLOOKUP($E237-6,AllData,COLUMN()-COLUMN($E237)))","v":{"$error":"#N/A"}},{"$f":"SUM(VLOOKUP($E237,AllData,COLUMN()-1-COLUMN($E237)),VLOOKUP($E237-1,AllData,COLUMN()-1-COLUMN($E237)),VLOOKUP($E237-2,AllData,COLUMN()-1-COLUMN($E237)),VLOOKUP($E237-3,AllData,COLUMN()-1-COLUMN($E237)),VLOOKUP($E237-4,AllData,COLUMN()-1-COLUMN($E237)),VLOOKUP($E237-5,AllData,COLUMN()-1-COLUMN($E237)),VLOOKUP($E237-6,AllData,COLUMN()-1-COLUMN($E237)),VLOOKUP($E237-7,AllData,COLUMN()-1-COLUMN($E237)),VLOOKUP($E237-8,AllData,COLUMN()-1-COLUMN($E237)),VLOOKUP($E237-9,AllData,COLUMN()-1-COLUMN($E237)),VLOOKUP($E237-10,AllData,COLUMN()-1-COLUMN($E237)),VLOOKUP($E237-11,AllData,COLUMN()-1-COLUMN($E237)),VLOOKUP($E237-12,AllData,COLUMN()-1-COLUMN($E237)),VLOOKUP($E237-13,AllData,COLUMN()-1-COLUMN($E237)),VLOOKUP($E237-14,AllData,COLUMN()-1-COLUMN($E237)),VLOOKUP($E237-15,AllData,COLUMN()-1-COLUMN($E237)),VLOOKUP($E237-16,AllData,COLUMN()-1-COLUMN($E237)),VLOOKUP($E237-17,AllData,COLUMN()-1-COLUMN($E237)),VLOOKUP($E237-18,AllData,COLUMN()-1-COLUMN($E237)),VLOOKUP($E237-19,AllData,COLUMN()-1-COLUMN($E237)),VLOOKUP($E237-20,AllData,COLUMN()-1-COLUMN($E237)),VLOOKUP($E237-21,AllData,COLUMN()-1-COLUMN($E237)),VLOOKUP($E237-22,AllData,COLUMN()-1-COLUMN($E237)),VLOOKUP($E237-23,AllData,COLUMN()-1-COLUMN($E237)),VLOOKUP($E237-24,AllData,COLUMN()-1-COLUMN($E237)),VLOOKUP($E237-25,AllData,COLUMN()-1-COLUMN($E237)),VLOOKUP($E237-26,AllData,COLUMN()-1-COLUMN($E237)),VLOOKUP($E237-27,AllData,COLUMN()-1-COLUMN($E237)),VLOOKUP($E237-28,AllData,COLUMN()-1-COLUMN($E237)),VLOOKUP($E237-29,AllData,COLUMN()-1-COLUMN($E237)))","v":{"$error":"#N/A"}},{"$f":"VLOOKUP($E237,AllData,COLUMN()-2-COLUMN($E237))","v":{"$error":"#N/A"}},{"$f":"OR('Cool Graph'!$H$1=35,'Cool Graph'!$H$1=36,'Cool Graph'!$H$1=37,'Cool Graph'!$H$1=38,'Cool Graph'!$H$1=39,'Cool Graph'!$H$1=40,'Cool Graph'!$H$1=41,'Cool Graph'!$H$1=42,'Cool Graph'!$H$1=43,'Cool Graph'!$H$1=44,'Cool Graph'!$H$1=45,'Cool Graph'!$H$1=46,'Cool Graph'!$H$1=47,'Cool Graph'!$H$1=58,'Cool Graph'!$H$1=66)","v":false},{"$f":"SUM(VLOOKUP($E237,AllData,COLUMN()-5-COLUMN($E237)),VLOOKUP($E237-1,AllData,COLUMN()-5-COLUMN($E237)),VLOOKUP($E237-2,AllData,COLUMN()-5-COLUMN($E237)),VLOOKUP($E237-3,AllData,COLUMN()-5-COLUMN($E237)),VLOOKUP($E237-4,AllData,COLUMN()-5-COLUMN($E237)),VLOOKUP($E237-5,AllData,COLUMN()-5-COLUMN($E237)),VLOOKUP($E237-6,AllData,COLUMN()-5-COLUMN($E237)))","v":{"$error":"#N/A"}},{"$f":"SUM(VLOOKUP($E237,AllData,COLUMN()-6-COLUMN($E237)),VLOOKUP($E237-1,AllData,COLUMN()-6-COLUMN($E237)),VLOOKUP($E237-2,AllData,COLUMN()-6-COLUMN($E237)),VLOOKUP($E237-3,AllData,COLUMN()-6-COLUMN($E237)),VLOOKUP($E237-4,AllData,COLUMN()-6-COLUMN($E237)),VLOOKUP($E237-5,AllData,COLUMN()-6-COLUMN($E237)),VLOOKUP($E237-6,AllData,COLUMN()-6-COLUMN($E237)),VLOOKUP($E237-7,AllData,COLUMN()-6-COLUMN($E237)),VLOOKUP($E237-8,AllData,COLUMN()-6-COLUMN($E237)),VLOOKUP($E237-9,AllData,COLUMN()-6-COLUMN($E237)),VLOOKUP($E237-10,AllData,COLUMN()-6-COLUMN($E237)),VLOOKUP($E237-11,AllData,COLUMN()-6-COLUMN($E237)),VLOOKUP($E237-12,AllData,COLUMN()-6-COLUMN($E237)),VLOOKUP($E237-13,AllData,COLUMN()-6-COLUMN($E237)),VLOOKUP($E237-14,AllData,COLUMN()-6-COLUMN($E237)),VLOOKUP($E237-15,AllData,COLUMN()-6-COLUMN($E237)),VLOOKUP($E237-16,AllData,COLUMN()-6-COLUMN($E237)),VLOOKUP($E237-17,AllData,COLUMN()-6-COLUMN($E237)),VLOOKUP($E237-18,AllData,COLUMN()-6-COLUMN($E237)),VLOOKUP($E237-19,AllData,COLUMN()-6-COLUMN($E237)),VLOOKUP($E237-20,AllData,COLUMN()-6-COLUMN($E237)),VLOOKUP($E237-21,AllData,COLUMN()-6-COLUMN($E237)),VLOOKUP($E237-22,AllData,COLUMN()-6-COLUMN($E237)),VLOOKUP($E237-23,AllData,COLUMN()-6-COLUMN($E237)),VLOOKUP($E237-24,AllData,COLUMN()-6-COLUMN($E237)),VLOOKUP($E237-25,AllData,COLUMN()-6-COLUMN($E237)),VLOOKUP($E237-26,AllData,COLUMN()-6-COLUMN($E237)),VLOOKUP($E237-27,AllData,COLUMN()-6-COLUMN($E237)),VLOOKUP($E237-28,AllData,COLUMN()-6-COLUMN($E237)),VLOOKUP($E237-29,AllData,COLUMN()-6-COLUMN($E237)))","v":{"$error":"#N/A"}},{"$f":"VLOOKUP($E237,AllData,COLUMN()-7-COLUMN($E237))","v":{"$error":"#N/A"}},{"$f":"OR('Cool Graph'!$I$1=35,'Cool Graph'!$I$1=36,'Cool Graph'!$I$1=37,'Cool Graph'!$I$1=38,'Cool Graph'!$I$1=39,'Cool Graph'!$I$1=40,'Cool Graph'!$I$1=41,'Cool Graph'!$I$1=42,'Cool Graph'!$I$1=43,'Cool Graph'!$I$1=44,'Cool Graph'!$I$1=45,'Cool Graph'!$I$1=46,'Cool Graph'!$I$1=47,'Cool Graph'!$I$1=58,'Cool Graph'!$I$1=66)","v":false}]
["2012-02-22",{"$f":"OFFSET(OldSchoolJustValues!A238,0,'Cool Graph'!$H$1)","v":136.09},{"$f":"OFFSET(OldSchoolJustValues!A238,0,'Cool Graph'!$I$1)","v":542.72516901062068},null,{"$f":"IF(NewDate>EndDate,NA(),NewDate)","v":{"$error":"#N/A"}},{"$f":"IF($E238>EndDate,NA(),IF($K$2=TRUE,N238,IF('Cool Graph'!$B$17=1,N238,IF('Cool Graph'!$B$17=2,L238,IF('Cool Graph'!$B$17=3,M238,)))))","v":{"$error":"#N/A"}},{"$f":"IF($E238>EndDate,NA(),IF($O$2=TRUE,J238,IF('Cool Graph'!$B$17=1,Data1!J238,IF('Cool Graph'!$B$17=2,Data1!H238,IF('Cool Graph'!$B$17=3,Data1!I238,)))))","v":{"$error":"#N/A"}},{"$f":"SUM(VLOOKUP($E238,AllData,COLUMN()-COLUMN($E238)),VLOOKUP($E238-1,AllData,COLUMN()-COLUMN($E238)),VLOOKUP($E238-2,AllData,COLUMN()-COLUMN($E238)),VLOOKUP($E238-3,AllData,COLUMN()-COLUMN($E238)),VLOOKUP($E238-4,AllData,COLUMN()-COLUMN($E238)),VLOOKUP($E238-5,AllData,COLUMN()-COLUMN($E238)),VLOOKUP($E238-6,AllData,COLUMN()-COLUMN($E238)))","v":{"$error":"#N/A"}},{"$f":"SUM(VLOOKUP($E238,AllData,COLUMN()-1-COLUMN($E238)),VLOOKUP($E238-1,AllData,COLUMN()-1-COLUMN($E238)),VLOOKUP($E238-2,AllData,COLUMN()-1-COLUMN($E238)),VLOOKUP($E238-3,AllData,COLUMN()-1-COLUMN($E238)),VLOOKUP($E238-4,AllData,COLUMN()-1-COLUMN($E238)),VLOOKUP($E238-5,AllData,COLUMN()-1-COLUMN($E238)),VLOOKUP($E238-6,AllData,COLUMN()-1-COLUMN($E238)),VLOOKUP($E238-7,AllData,COLUMN()-1-COLUMN($E238)),VLOOKUP($E238-8,AllData,COLUMN()-1-COLUMN($E238)),VLOOKUP($E238-9,AllData,COLUMN()-1-COLUMN($E238)),VLOOKUP($E238-10,AllData,COLUMN()-1-COLUMN($E238)),VLOOKUP($E238-11,AllData,COLUMN()-1-COLUMN($E238)),VLOOKUP($E238-12,AllData,COLUMN()-1-COLUMN($E238)),VLOOKUP($E238-13,AllData,COLUMN()-1-COLUMN($E238)),VLOOKUP($E238-14,AllData,COLUMN()-1-COLUMN($E238)),VLOOKUP($E238-15,AllData,COLUMN()-1-COLUMN($E238)),VLOOKUP($E238-16,AllData,COLUMN()-1-COLUMN($E238)),VLOOKUP($E238-17,AllData,COLUMN()-1-COLUMN($E238)),VLOOKUP($E238-18,AllData,COLUMN()-1-COLUMN($E238)),VLOOKUP($E238-19,AllData,COLUMN()-1-COLUMN($E238)),VLOOKUP($E238-20,AllData,COLUMN()-1-COLUMN($E238)),VLOOKUP($E238-21,AllData,COLUMN()-1-COLUMN($E238)),VLOOKUP($E238-22,AllData,COLUMN()-1-COLUMN($E238)),VLOOKUP($E238-23,AllData,COLUMN()-1-COLUMN($E238)),VLOOKUP($E238-24,AllData,COLUMN()-1-COLUMN($E238)),VLOOKUP($E238-25,AllData,COLUMN()-1-COLUMN($E238)),VLOOKUP($E238-26,AllData,COLUMN()-1-COLUMN($E238)),VLOOKUP($E238-27,AllData,COLUMN()-1-COLUMN($E238)),VLOOKUP($E238-28,AllData,COLUMN()-1-COLUMN($E238)),VLOOKUP($E238-29,AllData,COLUMN()-1-COLUMN($E238)))","v":{"$error":"#N/A"}},{"$f":"VLOOKUP($E238,AllData,COLUMN()-2-COLUMN($E238))","v":{"$error":"#N/A"}},{"$f":"OR('Cool Graph'!$H$1=35,'Cool Graph'!$H$1=36,'Cool Graph'!$H$1=37,'Cool Graph'!$H$1=38,'Cool Graph'!$H$1=39,'Cool Graph'!$H$1=40,'Cool Graph'!$H$1=41,'Cool Graph'!$H$1=42,'Cool Graph'!$H$1=43,'Cool Graph'!$H$1=44,'Cool Graph'!$H$1=45,'Cool Graph'!$H$1=46,'Cool Graph'!$H$1=47,'Cool Graph'!$H$1=58,'Cool Graph'!$H$1=66)","v":false},{"$f":"SUM(VLOOKUP($E238,AllData,COLUMN()-5-COLUMN($E238)),VLOOKUP($E238-1,AllData,COLUMN()-5-COLUMN($E238)),VLOOKUP($E238-2,AllData,COLUMN()-5-COLUMN($E238)),VLOOKUP($E238-3,AllData,COLUMN()-5-COLUMN($E238)),VLOOKUP($E238-4,AllData,COLUMN()-5-COLUMN($E238)),VLOOKUP($E238-5,AllData,COLUMN()-5-COLUMN($E238)),VLOOKUP($E238-6,AllData,COLUMN()-5-COLUMN($E238)))","v":{"$error":"#N/A"}},{"$f":"SUM(VLOOKUP($E238,AllData,COLUMN()-6-COLUMN($E238)),VLOOKUP($E238-1,AllData,COLUMN()-6-COLUMN($E238)),VLOOKUP($E238-2,AllData,COLUMN()-6-COLUMN($E238)),VLOOKUP($E238-3,AllData,COLUMN()-6-COLUMN($E238)),VLOOKUP($E238-4,AllData,COLUMN()-6-COLUMN($E238)),VLOOKUP($E238-5,AllData,COLUMN()-6-COLUMN($E238)),VLOOKUP($E238-6,AllData,COLUMN()-6-COLUMN($E238)),VLOOKUP($E238-7,AllData,COLUMN()-6-COLUMN($E238)),VLOOKUP($E238-8,AllData,COLUMN()-6-COLUMN($E238)),VLOOKUP($E238-9,AllData,COLUMN()-6-COLUMN($E238)),VLOOKUP($E238-10,AllData,COLUMN()-6-COLUMN($E238)),VLOOKUP($E238-11,AllData,COLUMN()-6-COLUMN($E238)),VLOOKUP($E238-12,AllData,COLUMN()-6-COLUMN($E238)),VLOOKUP($E238-13,AllData,COLUMN()-6-COLUMN($E238)),VLOOKUP($E238-14,AllData,COLUMN()-6-COLUMN($E238)),VLOOKUP($E238-15,AllData,COLUMN()-6-COLUMN($E238)),VLOOKUP($E238-16,AllData,COLUMN()-6-COLUMN($E238)),VLOOKUP($E238-17,AllData,COLUMN()-6-COLUMN($E238)),VLOOKUP($E238-18,AllData,COLUMN()-6-COLUMN($E238)),VLOOKUP($E238-19,AllData,COLUMN()-6-COLUMN($E238)),VLOOKUP($E238-20,AllData,COLUMN()-6-COLUMN($E238)),VLOOKUP($E238-21,AllData,COLUMN()-6-COLUMN($E238)),VLOOKUP($E238-22,AllData,COLUMN()-6-COLUMN($E238)),VLOOKUP($E238-23,AllData,COLUMN()-6-COLUMN($E238)),VLOOKUP($E238-24,AllData,COLUMN()-6-COLUMN($E238)),VLOOKUP($E238-25,AllData,COLUMN()-6-COLUMN($E238)),VLOOKUP($E238-26,AllData,COLUMN()-6-COLUMN($E238)),VLOOKUP($E238-27,AllData,COLUMN()-6-COLUMN($E238)),VLOOKUP($E238-28,AllData,COLUMN()-6-COLUMN($E238)),VLOOKUP($E238-29,AllData,COLUMN()-6-COLUMN($E238)))","v":{"$error":"#N/A"}},{"$f":"VLOOKUP($E238,AllData,COLUMN()-7-COLUMN($E238))","v":{"$error":"#N/A"}},{"$f":"OR('Cool Graph'!$I$1=35,'Cool Graph'!$I$1=36,'Cool Graph'!$I$1=37,'Cool Graph'!$I$1=38,'Cool Graph'!$I$1=39,'Cool Graph'!$I$1=40,'Cool Graph'!$I$1=41,'Cool Graph'!$I$1=42,'Cool Graph'!$I$1=43,'Cool Graph'!$I$1=44,'Cool Graph'!$I$1=45,'Cool Graph'!$I$1=46,'Cool Graph'!$I$1=47,'Cool Graph'!$I$1=58,'Cool Graph'!$I$1=66)","v":false}]
["2012-02-23",{"$f":"OFFSET(OldSchoolJustValues!A239,0,'Cool Graph'!$H$1)","v":77.59},{"$f":"OFFSET(OldSchoolJustValues!A239,0,'Cool Graph'!$I$1)","v":1092.4977151682497},null,{"$f":"IF(NewDate>EndDate,NA(),NewDate)","v":{"$error":"#N/A"}},{"$f":"IF($E239>EndDate,NA(),IF($K$2=TRUE,N239,IF('Cool Graph'!$B$17=1,N239,IF('Cool Graph'!$B$17=2,L239,IF('Cool Graph'!$B$17=3,M239,)))))","v":{"$error":"#N/A"}},{"$f":"IF($E239>EndDate,NA(),IF($O$2=TRUE,J239,IF('Cool Graph'!$B$17=1,Data1!J239,IF('Cool Graph'!$B$17=2,Data1!H239,IF('Cool Graph'!$B$17=3,Data1!I239,)))))","v":{"$error":"#N/A"}},{"$f":"SUM(VLOOKUP($E239,AllData,COLUMN()-COLUMN($E239)),VLOOKUP($E239-1,AllData,COLUMN()-COLUMN($E239)),VLOOKUP($E239-2,AllData,COLUMN()-COLUMN($E239)),VLOOKUP($E239-3,AllData,COLUMN()-COLUMN($E239)),VLOOKUP($E239-4,AllData,COLUMN()-COLUMN($E239)),VLOOKUP($E239-5,AllData,COLUMN()-COLUMN($E239)),VLOOKUP($E239-6,AllData,COLUMN()-COLUMN($E239)))","v":{"$error":"#N/A"}},{"$f":"SUM(VLOOKUP($E239,AllData,COLUMN()-1-COLUMN($E239)),VLOOKUP($E239-1,AllData,COLUMN()-1-COLUMN($E239)),VLOOKUP($E239-2,AllData,COLUMN()-1-COLUMN($E239)),VLOOKUP($E239-3,AllData,COLUMN()-1-COLUMN($E239)),VLOOKUP($E239-4,AllData,COLUMN()-1-COLUMN($E239)),VLOOKUP($E239-5,AllData,COLUMN()-1-COLUMN($E239)),VLOOKUP($E239-6,AllData,COLUMN()-1-COLUMN($E239)),VLOOKUP($E239-7,AllData,COLUMN()-1-COLUMN($E239)),VLOOKUP($E239-8,AllData,COLUMN()-1-COLUMN($E239)),VLOOKUP($E239-9,AllData,COLUMN()-1-COLUMN($E239)),VLOOKUP($E239-10,AllData,COLUMN()-1-COLUMN($E239)),VLOOKUP($E239-11,AllData,COLUMN()-1-COLUMN($E239)),VLOOKUP($E239-12,AllData,COLUMN()-1-COLUMN($E239)),VLOOKUP($E239-13,AllData,COLUMN()-1-COLUMN($E239)),VLOOKUP($E239-14,AllData,COLUMN()-1-COLUMN($E239)),VLOOKUP($E239-15,AllData,COLUMN()-1-COLUMN($E239)),VLOOKUP($E239-16,AllData,COLUMN()-1-COLUMN($E239)),VLOOKUP($E239-17,AllData,COLUMN()-1-COLUMN($E239)),VLOOKUP($E239-18,AllData,COLUMN()-1-COLUMN($E239)),VLOOKUP($E239-19,AllData,COLUMN()-1-COLUMN($E239)),VLOOKUP($E239-20,AllData,COLUMN()-1-COLUMN($E239)),VLOOKUP($E239-21,AllData,COLUMN()-1-COLUMN($E239)),VLOOKUP($E239-22,AllData,COLUMN()-1-COLUMN($E239)),VLOOKUP($E239-23,AllData,COLUMN()-1-COLUMN($E239)),VLOOKUP($E239-24,AllData,COLUMN()-1-COLUMN($E239)),VLOOKUP($E239-25,AllData,COLUMN()-1-COLUMN($E239)),VLOOKUP($E239-26,AllData,COLUMN()-1-COLUMN($E239)),VLOOKUP($E239-27,AllData,COLUMN()-1-COLUMN($E239)),VLOOKUP($E239-28,AllData,COLUMN()-1-COLUMN($E239)),VLOOKUP($E239-29,AllData,COLUMN()-1-COLUMN($E239)))","v":{"$error":"#N/A"}},{"$f":"VLOOKUP($E239,AllData,COLUMN()-2-COLUMN($E239))","v":{"$error":"#N/A"}},{"$f":"OR('Cool Graph'!$H$1=35,'Cool Graph'!$H$1=36,'Cool Graph'!$H$1=37,'Cool Graph'!$H$1=38,'Cool Graph'!$H$1=39,'Cool Graph'!$H$1=40,'Cool Graph'!$H$1=41,'Cool Graph'!$H$1=42,'Cool Graph'!$H$1=43,'Cool Graph'!$H$1=44,'Cool Graph'!$H$1=45,'Cool Graph'!$H$1=46,'Cool Graph'!$H$1=47,'Cool Graph'!$H$1=58,'Cool Graph'!$H$1=66)","v":false},{"$f":"SUM(VLOOKUP($E239,AllData,COLUMN()-5-COLUMN($E239)),VLOOKUP($E239-1,AllData,COLUMN()-5-COLUMN($E239)),VLOOKUP($E239-2,AllData,COLUMN()-5-COLUMN($E239)),VLOOKUP($E239-3,AllData,COLUMN()-5-COLUMN($E239)),VLOOKUP($E239-4,AllData,COLUMN()-5-COLUMN($E239)),VLOOKUP($E239-5,AllData,COLUMN()-5-COLUMN($E239)),VLOOKUP($E239-6,AllData,COLUMN()-5-COLUMN($E239)))","v":{"$error":"#N/A"}},{"$f":"SUM(VLOOKUP($E239,AllData,COLUMN()-6-COLUMN($E239)),VLOOKUP($E239-1,AllData,COLUMN()-6-COLUMN($E239)),VLOOKUP($E239-2,AllData,COLUMN()-6-COLUMN($E239)),VLOOKUP($E239-3,AllData,COLUMN()-6-COLUMN($E239)),VLOOKUP($E239-4,AllData,COLUMN()-6-COLUMN($E239)),VLOOKUP($E239-5,AllData,COLUMN()-6-COLUMN($E239)),VLOOKUP($E239-6,AllData,COLUMN()-6-COLUMN($E239)),VLOOKUP($E239-7,AllData,COLUMN()-6-COLUMN($E239)),VLOOKUP($E239-8,AllData,COLUMN()-6-COLUMN($E239)),VLOOKUP($E239-9,AllData,COLUMN()-6-COLUMN($E239)),VLOOKUP($E239-10,AllData,COLUMN()-6-COLUMN($E239)),VLOOKUP($E239-11,AllData,COLUMN()-6-COLUMN($E239)),VLOOKUP($E239-12,AllData,COLUMN()-6-COLUMN($E239)),VLOOKUP($E239-13,AllData,COLUMN()-6-COLUMN($E239)),VLOOKUP($E239-14,AllData,COLUMN()-6-COLUMN($E239)),VLOOKUP($E239-15,AllData,COLUMN()-6-COLUMN($E239)),VLOOKUP($E239-16,AllData,COLUMN()-6-COLUMN($E239)),VLOOKUP($E239-17,AllData,COLUMN()-6-COLUMN($E239)),VLOOKUP($E239-18,AllData,COLUMN()-6-COLUMN($E239)),VLOOKUP($E239-19,AllData,COLUMN()-6-COLUMN($E239)),VLOOKUP($E239-20,AllData,COLUMN()-6-COLUMN($E239)),VLOOKUP($E239-21,AllData,COLUMN()-6-COLUMN($E239)),VLOOKUP($E239-22,AllData,COLUMN()-6-COLUMN($E239)),VLOOKUP($E239-23,AllData,COLUMN()-6-COLUMN($E239)),VLOOKUP($E239-24,AllData,COLUMN()-6-COLUMN($E239)),VLOOKUP($E239-25,AllData,COLUMN()-6-COLUMN($E239)),VLOOKUP($E239-26,AllData,COLUMN()-6-COLUMN($E239)),VLOOKUP($E239-27,AllData,COLUMN()-6-COLUMN($E239)),VLOOKUP($E239-28,AllData,COLUMN()-6-COLUMN($E239)),VLOOKUP($E239-29,AllData,COLUMN()-6-COLUMN($E239)))","v":{"$error":"#N/A"}},{"$f":"VLOOKUP($E239,AllData,COLUMN()-7-COLUMN($E239))","v":{"$error":"#N/A"}},{"$f":"OR('Cool Graph'!$I$1=35,'Cool Graph'!$I$1=36,'Cool Graph'!$I$1=37,'Cool Graph'!$I$1=38,'Cool Graph'!$I$1=39,'Cool Graph'!$I$1=40,'Cool Graph'!$I$1=41,'Cool Graph'!$I$1=42,'Cool Graph'!$I$1=43,'Cool Graph'!$I$1=44,'Cool Graph'!$I$1=45,'Cool Graph'!$I$1=46,'Cool Graph'!$I$1=47,'Cool Graph'!$I$1=58,'Cool Graph'!$I$1=66)","v":false}]
["2012-02-24",{"$f":"OFFSET(OldSchoolJustValues!A240,0,'Cool Graph'!$H$1)","v":117.96},{"$f":"OFFSET(OldSchoolJustValues!A240,0,'Cool Graph'!$I$1)","v":770.34268854564471},null,{"$f":"IF(NewDate>EndDate,NA(),NewDate)","v":{"$error":"#N/A"}},{"$f":"IF($E240>EndDate,NA(),IF($K$2=TRUE,N240,IF('Cool Graph'!$B$17=1,N240,IF('Cool Graph'!$B$17=2,L240,IF('Cool Graph'!$B$17=3,M240,)))))","v":{"$error":"#N/A"}},{"$f":"IF($E240>EndDate,NA(),IF($O$2=TRUE,J240,IF('Cool Graph'!$B$17=1,Data1!J240,IF('Cool Graph'!$B$17=2,Data1!H240,IF('Cool Graph'!$B$17=3,Data1!I240,)))))","v":{"$error":"#N/A"}},{"$f":"SUM(VLOOKUP($E240,AllData,COLUMN()-COLUMN($E240)),VLOOKUP($E240-1,AllData,COLUMN()-COLUMN($E240)),VLOOKUP($E240-2,AllData,COLUMN()-COLUMN($E240)),VLOOKUP($E240-3,AllData,COLUMN()-COLUMN($E240)),VLOOKUP($E240-4,AllData,COLUMN()-COLUMN($E240)),VLOOKUP($E240-5,AllData,COLUMN()-COLUMN($E240)),VLOOKUP($E240-6,AllData,COLUMN()-COLUMN($E240)))","v":{"$error":"#N/A"}},{"$f":"SUM(VLOOKUP($E240,AllData,COLUMN()-1-COLUMN($E240)),VLOOKUP($E240-1,AllData,COLUMN()-1-COLUMN($E240)),VLOOKUP($E240-2,AllData,COLUMN()-1-COLUMN($E240)),VLOOKUP($E240-3,AllData,COLUMN()-1-COLUMN($E240)),VLOOKUP($E240-4,AllData,COLUMN()-1-COLUMN($E240)),VLOOKUP($E240-5,AllData,COLUMN()-1-COLUMN($E240)),VLOOKUP($E240-6,AllData,COLUMN()-1-COLUMN($E240)),VLOOKUP($E240-7,AllData,COLUMN()-1-COLUMN($E240)),VLOOKUP($E240-8,AllData,COLUMN()-1-COLUMN($E240)),VLOOKUP($E240-9,AllData,COLUMN()-1-COLUMN($E240)),VLOOKUP($E240-10,AllData,COLUMN()-1-COLUMN($E240)),VLOOKUP($E240-11,AllData,COLUMN()-1-COLUMN($E240)),VLOOKUP($E240-12,AllData,COLUMN()-1-COLUMN($E240)),VLOOKUP($E240-13,AllData,COLUMN()-1-COLUMN($E240)),VLOOKUP($E240-14,AllData,COLUMN()-1-COLUMN($E240)),VLOOKUP($E240-15,AllData,COLUMN()-1-COLUMN($E240)),VLOOKUP($E240-16,AllData,COLUMN()-1-COLUMN($E240)),VLOOKUP($E240-17,AllData,COLUMN()-1-COLUMN($E240)),VLOOKUP($E240-18,AllData,COLUMN()-1-COLUMN($E240)),VLOOKUP($E240-19,AllData,COLUMN()-1-COLUMN($E240)),VLOOKUP($E240-20,AllData,COLUMN()-1-COLUMN($E240)),VLOOKUP($E240-21,AllData,COLUMN()-1-COLUMN($E240)),VLOOKUP($E240-22,AllData,COLUMN()-1-COLUMN($E240)),VLOOKUP($E240-23,AllData,COLUMN()-1-COLUMN($E240)),VLOOKUP($E240-24,AllData,COLUMN()-1-COLUMN($E240)),VLOOKUP($E240-25,AllData,COLUMN()-1-COLUMN($E240)),VLOOKUP($E240-26,AllData,COLUMN()-1-COLUMN($E240)),VLOOKUP($E240-27,AllData,COLUMN()-1-COLUMN($E240)),VLOOKUP($E240-28,AllData,COLUMN()-1-COLUMN($E240)),VLOOKUP($E240-29,AllData,COLUMN()-1-COLUMN($E240)))","v":{"$error":"#N/A"}},{"$f":"VLOOKUP($E240,AllData,COLUMN()-2-COLUMN($E240))","v":{"$error":"#N/A"}},{"$f":"OR('Cool Graph'!$H$1=35,'Cool Graph'!$H$1=36,'Cool Graph'!$H$1=37,'Cool Graph'!$H$1=38,'Cool Graph'!$H$1=39,'Cool Graph'!$H$1=40,'Cool Graph'!$H$1=41,'Cool Graph'!$H$1=42,'Cool Graph'!$H$1=43,'Cool Graph'!$H$1=44,'Cool Graph'!$H$1=45,'Cool Graph'!$H$1=46,'Cool Graph'!$H$1=47,'Cool Graph'!$H$1=58,'Cool Graph'!$H$1=66)","v":false},{"$f":"SUM(VLOOKUP($E240,AllData,COLUMN()-5-COLUMN($E240)),VLOOKUP($E240-1,AllData,COLUMN()-5-COLUMN($E240)),VLOOKUP($E240-2,AllData,COLUMN()-5-COLUMN($E240)),VLOOKUP($E240-3,AllData,COLUMN()-5-COLUMN($E240)),VLOOKUP($E240-4,AllData,COLUMN()-5-COLUMN($E240)),VLOOKUP($E240-5,AllData,COLUMN()-5-COLUMN($E240)),VLOOKUP($E240-6,AllData,COLUMN()-5-COLUMN($E240)))","v":{"$error":"#N/A"}},{"$f":"SUM(VLOOKUP($E240,AllData,COLUMN()-6-COLUMN($E240)),VLOOKUP($E240-1,AllData,COLUMN()-6-COLUMN($E240)),VLOOKUP($E240-2,AllData,COLUMN()-6-COLUMN($E240)),VLOOKUP($E240-3,AllData,COLUMN()-6-COLUMN($E240)),VLOOKUP($E240-4,AllData,COLUMN()-6-COLUMN($E240)),VLOOKUP($E240-5,AllData,COLUMN()-6-COLUMN($E240)),VLOOKUP($E240-6,AllData,COLUMN()-6-COLUMN($E240)),VLOOKUP($E240-7,AllData,COLUMN()-6-COLUMN($E240)),VLOOKUP($E240-8,AllData,COLUMN()-6-COLUMN($E240)),VLOOKUP($E240-9,AllData,COLUMN()-6-COLUMN($E240)),VLOOKUP($E240-10,AllData,COLUMN()-6-COLUMN($E240)),VLOOKUP($E240-11,AllData,COLUMN()-6-COLUMN($E240)),VLOOKUP($E240-12,AllData,COLUMN()-6-COLUMN($E240)),VLOOKUP($E240-13,AllData,COLUMN()-6-COLUMN($E240)),VLOOKUP($E240-14,AllData,COLUMN()-6-COLUMN($E240)),VLOOKUP($E240-15,AllData,COLUMN()-6-COLUMN($E240)),VLOOKUP($E240-16,AllData,COLUMN()-6-COLUMN($E240)),VLOOKUP($E240-17,AllData,COLUMN()-6-COLUMN($E240)),VLOOKUP($E240-18,AllData,COLUMN()-6-COLUMN($E240)),VLOOKUP($E240-19,AllData,COLUMN()-6-COLUMN($E240)),VLOOKUP($E240-20,AllData,COLUMN()-6-COLUMN($E240)),VLOOKUP($E240-21,AllData,COLUMN()-6-COLUMN($E240)),VLOOKUP($E240-22,AllData,COLUMN()-6-COLUMN($E240)),VLOOKUP($E240-23,AllData,COLUMN()-6-COLUMN($E240)),VLOOKUP($E240-24,AllData,COLUMN()-6-COLUMN($E240)),VLOOKUP($E240-25,AllData,COLUMN()-6-COLUMN($E240)),VLOOKUP($E240-26,AllData,COLUMN()-6-COLUMN($E240)),VLOOKUP($E240-27,AllData,COLUMN()-6-COLUMN($E240)),VLOOKUP($E240-28,AllData,COLUMN()-6-COLUMN($E240)),VLOOKUP($E240-29,AllData,COLUMN()-6-COLUMN($E240)))","v":{"$error":"#N/A"}},{"$f":"VLOOKUP($E240,AllData,COLUMN()-7-COLUMN($E240))","v":{"$error":"#N/A"}},{"$f":"OR('Cool Graph'!$I$1=35,'Cool Graph'!$I$1=36,'Cool Graph'!$I$1=37,'Cool Graph'!$I$1=38,'Cool Graph'!$I$1=39,'Cool Graph'!$I$1=40,'Cool Graph'!$I$1=41,'Cool Graph'!$I$1=42,'Cool Graph'!$I$1=43,'Cool Graph'!$I$1=44,'Cool Graph'!$I$1=45,'Cool Graph'!$I$1=46,'Cool Graph'!$I$1=47,'Cool Graph'!$I$1=58,'Cool Graph'!$I$1=66)","v":false}]
["2012-02-25",{"$f":"OFFSET(OldSchoolJustValues!A241,0,'Cool Graph'!$H$1)","v":109.07},{"$f":"OFFSET(OldSchoolJustValues!A241,0,'Cool Graph'!$I$1)","v":1012.0586054504244},null,{"$f":"IF(NewDate>EndDate,NA(),NewDate)","v":{"$error":"#N/A"}},{"$f":"IF($E241>EndDate,NA(),IF($K$2=TRUE,N241,IF('Cool Graph'!$B$17=1,N241,IF('Cool Graph'!$B$17=2,L241,IF('Cool Graph'!$B$17=3,M241,)))))","v":{"$error":"#N/A"}},{"$f":"IF($E241>EndDate,NA(),IF($O$2=TRUE,J241,IF('Cool Graph'!$B$17=1,Data1!J241,IF('Cool Graph'!$B$17=2,Data1!H241,IF('Cool Graph'!$B$17=3,Data1!I241,)))))","v":{"$error":"#N/A"}},{"$f":"SUM(VLOOKUP($E241,AllData,COLUMN()-COLUMN($E241)),VLOOKUP($E241-1,AllData,COLUMN()-COLUMN($E241)),VLOOKUP($E241-2,AllData,COLUMN()-COLUMN($E241)),VLOOKUP($E241-3,AllData,COLUMN()-COLUMN($E241)),VLOOKUP($E241-4,AllData,COLUMN()-COLUMN($E241)),VLOOKUP($E241-5,AllData,COLUMN()-COLUMN($E241)),VLOOKUP($E241-6,AllData,COLUMN()-COLUMN($E241)))","v":{"$error":"#N/A"}},{"$f":"SUM(VLOOKUP($E241,AllData,COLUMN()-1-COLUMN($E241)),VLOOKUP($E241-1,AllData,COLUMN()-1-COLUMN($E241)),VLOOKUP($E241-2,AllData,COLUMN()-1-COLUMN($E241)),VLOOKUP($E241-3,AllData,COLUMN()-1-COLUMN($E241)),VLOOKUP($E241-4,AllData,COLUMN()-1-COLUMN($E241)),VLOOKUP($E241-5,AllData,COLUMN()-1-COLUMN($E241)),VLOOKUP($E241-6,AllData,COLUMN()-1-COLUMN($E241)),VLOOKUP($E241-7,AllData,COLUMN()-1-COLUMN($E241)),VLOOKUP($E241-8,AllData,COLUMN()-1-COLUMN($E241)),VLOOKUP($E241-9,AllData,COLUMN()-1-COLUMN($E241)),VLOOKUP($E241-10,AllData,COLUMN()-1-COLUMN($E241)),VLOOKUP($E241-11,AllData,COLUMN()-1-COLUMN($E241)),VLOOKUP($E241-12,AllData,COLUMN()-1-COLUMN($E241)),VLOOKUP($E241-13,AllData,COLUMN()-1-COLUMN($E241)),VLOOKUP($E241-14,AllData,COLUMN()-1-COLUMN($E241)),VLOOKUP($E241-15,AllData,COLUMN()-1-COLUMN($E241)),VLOOKUP($E241-16,AllData,COLUMN()-1-COLUMN($E241)),VLOOKUP($E241-17,AllData,COLUMN()-1-COLUMN($E241)),VLOOKUP($E241-18,AllData,COLUMN()-1-COLUMN($E241)),VLOOKUP($E241-19,AllData,COLUMN()-1-COLUMN($E241)),VLOOKUP($E241-20,AllData,COLUMN()-1-COLUMN($E241)),VLOOKUP($E241-21,AllData,COLUMN()-1-COLUMN($E241)),VLOOKUP($E241-22,AllData,COLUMN()-1-COLUMN($E241)),VLOOKUP($E241-23,AllData,COLUMN()-1-COLUMN($E241)),VLOOKUP($E241-24,AllData,COLUMN()-1-COLUMN($E241)),VLOOKUP($E241-25,AllData,COLUMN()-1-COLUMN($E241)),VLOOKUP($E241-26,AllData,COLUMN()-1-COLUMN($E241)),VLOOKUP($E241-27,AllData,COLUMN()-1-COLUMN($E241)),VLOOKUP($E241-28,AllData,COLUMN()-1-COLUMN($E241)),VLOOKUP($E241-29,AllData,COLUMN()-1-COLUMN($E241)))","v":{"$error":"#N/A"}},{"$f":"VLOOKUP($E241,AllData,COLUMN()-2-COLUMN($E241))","v":{"$error":"#N/A"}},{"$f":"OR('Cool Graph'!$H$1=35,'Cool Graph'!$H$1=36,'Cool Graph'!$H$1=37,'Cool Graph'!$H$1=38,'Cool Graph'!$H$1=39,'Cool Graph'!$H$1=40,'Cool Graph'!$H$1=41,'Cool Graph'!$H$1=42,'Cool Graph'!$H$1=43,'Cool Graph'!$H$1=44,'Cool Graph'!$H$1=45,'Cool Graph'!$H$1=46,'Cool Graph'!$H$1=47,'Cool Graph'!$H$1=58,'Cool Graph'!$H$1=66)","v":false},{"$f":"SUM(VLOOKUP($E241,AllData,COLUMN()-5-COLUMN($E241)),VLOOKUP($E241-1,AllData,COLUMN()-5-COLUMN($E241)),VLOOKUP($E241-2,AllData,COLUMN()-5-COLUMN($E241)),VLOOKUP($E241-3,AllData,COLUMN()-5-COLUMN($E241)),VLOOKUP($E241-4,AllData,COLUMN()-5-COLUMN($E241)),VLOOKUP($E241-5,AllData,COLUMN()-5-COLUMN($E241)),VLOOKUP($E241-6,AllData,COLUMN()-5-COLUMN($E241)))","v":{"$error":"#N/A"}},{"$f":"SUM(VLOOKUP($E241,AllData,COLUMN()-6-COLUMN($E241)),VLOOKUP($E241-1,AllData,COLUMN()-6-COLUMN($E241)),VLOOKUP($E241-2,AllData,COLUMN()-6-COLUMN($E241)),VLOOKUP($E241-3,AllData,COLUMN()-6-COLUMN($E241)),VLOOKUP($E241-4,AllData,COLUMN()-6-COLUMN($E241)),VLOOKUP($E241-5,AllData,COLUMN()-6-COLUMN($E241)),VLOOKUP($E241-6,AllData,COLUMN()-6-COLUMN($E241)),VLOOKUP($E241-7,AllData,COLUMN()-6-COLUMN($E241)),VLOOKUP($E241-8,AllData,COLUMN()-6-COLUMN($E241)),VLOOKUP($E241-9,AllData,COLUMN()-6-COLUMN($E241)),VLOOKUP($E241-10,AllData,COLUMN()-6-COLUMN($E241)),VLOOKUP($E241-11,AllData,COLUMN()-6-COLUMN($E241)),VLOOKUP($E241-12,AllData,COLUMN()-6-COLUMN($E241)),VLOOKUP($E241-13,AllData,COLUMN()-6-COLUMN($E241)),VLOOKUP($E241-14,AllData,COLUMN()-6-COLUMN($E241)),VLOOKUP($E241-15,AllData,COLUMN()-6-COLUMN($E241)),VLOOKUP($E241-16,AllData,COLUMN()-6-COLUMN($E241)),VLOOKUP($E241-17,AllData,COLUMN()-6-COLUMN($E241)),VLOOKUP($E241-18,AllData,COLUMN()-6-COLUMN($E241)),VLOOKUP($E241-19,AllData,COLUMN()-6-COLUMN($E241)),VLOOKUP($E241-20,AllData,COLUMN()-6-COLUMN($E241)),VLOOKUP($E241-21,AllData,COLUMN()-6-COLUMN($E241)),VLOOKUP($E241-22,AllData,COLUMN()-6-COLUMN($E241)),VLOOKUP($E241-23,AllData,COLUMN()-6-COLUMN($E241)),VLOOKUP($E241-24,AllData,COLUMN()-6-COLUMN($E241)),VLOOKUP($E241-25,AllData,COLUMN()-6-COLUMN($E241)),VLOOKUP($E241-26,AllData,COLUMN()-6-COLUMN($E241)),VLOOKUP($E241-27,AllData,COLUMN()-6-COLUMN($E241)),VLOOKUP($E241-28,AllData,COLUMN()-6-COLUMN($E241)),VLOOKUP($E241-29,AllData,COLUMN()-6-COLUMN($E241)))","v":{"$error":"#N/A"}},{"$f":"VLOOKUP($E241,AllData,COLUMN()-7-COLUMN($E241))","v":{"$error":"#N/A"}},{"$f":"OR('Cool Graph'!$I$1=35,'Cool Graph'!$I$1=36,'Cool Graph'!$I$1=37,'Cool Graph'!$I$1=38,'Cool Graph'!$I$1=39,'Cool Graph'!$I$1=40,'Cool Graph'!$I$1=41,'Cool Graph'!$I$1=42,'Cool Graph'!$I$1=43,'Cool Graph'!$I$1=44,'Cool Graph'!$I$1=45,'Cool Graph'!$I$1=46,'Cool Graph'!$I$1=47,'Cool Graph'!$I$1=58,'Cool Graph'!$I$1=66)","v":false}]
["2012-02-26",{"$f":"OFFSET(OldSchoolJustValues!A242,0,'Cool Graph'!$H$1)","v":88.09},{"$f":"OFFSET(OldSchoolJustValues!A242,0,'Cool Graph'!$I$1)","v":866.5486716176797},null,{"$f":"IF(NewDate>EndDate,NA(),NewDate)","v":{"$error":"#N/A"}},{"$f":"IF($E242>EndDate,NA(),IF($K$2=TRUE,N242,IF('Cool Graph'!$B$17=1,N242,IF('Cool Graph'!$B$17=2,L242,IF('Cool Graph'!$B$17=3,M242,)))))","v":{"$error":"#N/A"}},{"$f":"IF($E242>EndDate,NA(),IF($O$2=TRUE,J242,IF('Cool Graph'!$B$17=1,Data1!J242,IF('Cool Graph'!$B$17=2,Data1!H242,IF('Cool Graph'!$B$17=3,Data1!I242,)))))","v":{"$error":"#N/A"}},{"$f":"SUM(VLOOKUP($E242,AllData,COLUMN()-COLUMN($E242)),VLOOKUP($E242-1,AllData,COLUMN()-COLUMN($E242)),VLOOKUP($E242-2,AllData,COLUMN()-COLUMN($E242)),VLOOKUP($E242-3,AllData,COLUMN()-COLUMN($E242)),VLOOKUP($E242-4,AllData,COLUMN()-COLUMN($E242)),VLOOKUP($E242-5,AllData,COLUMN()-COLUMN($E242)),VLOOKUP($E242-6,AllData,COLUMN()-COLUMN($E242)))","v":{"$error":"#N/A"}},{"$f":"SUM(VLOOKUP($E242,AllData,COLUMN()-1-COLUMN($E242)),VLOOKUP($E242-1,AllData,COLUMN()-1-COLUMN($E242)),VLOOKUP($E242-2,AllData,COLUMN()-1-COLUMN($E242)),VLOOKUP($E242-3,AllData,COLUMN()-1-COLUMN($E242)),VLOOKUP($E242-4,AllData,COLUMN()-1-COLUMN($E242)),VLOOKUP($E242-5,AllData,COLUMN()-1-COLUMN($E242)),VLOOKUP($E242-6,AllData,COLUMN()-1-COLUMN($E242)),VLOOKUP($E242-7,AllData,COLUMN()-1-COLUMN($E242)),VLOOKUP($E242-8,AllData,COLUMN()-1-COLUMN($E242)),VLOOKUP($E242-9,AllData,COLUMN()-1-COLUMN($E242)),VLOOKUP($E242-10,AllData,COLUMN()-1-COLUMN($E242)),VLOOKUP($E242-11,AllData,COLUMN()-1-COLUMN($E242)),VLOOKUP($E242-12,AllData,COLUMN()-1-COLUMN($E242)),VLOOKUP($E242-13,AllData,COLUMN()-1-COLUMN($E242)),VLOOKUP($E242-14,AllData,COLUMN()-1-COLUMN($E242)),VLOOKUP($E242-15,AllData,COLUMN()-1-COLUMN($E242)),VLOOKUP($E242-16,AllData,COLUMN()-1-COLUMN($E242)),VLOOKUP($E242-17,AllData,COLUMN()-1-COLUMN($E242)),VLOOKUP($E242-18,AllData,COLUMN()-1-COLUMN($E242)),VLOOKUP($E242-19,AllData,COLUMN()-1-COLUMN($E242)),VLOOKUP($E242-20,AllData,COLUMN()-1-COLUMN($E242)),VLOOKUP($E242-21,AllData,COLUMN()-1-COLUMN($E242)),VLOOKUP($E242-22,AllData,COLUMN()-1-COLUMN($E242)),VLOOKUP($E242-23,AllData,COLUMN()-1-COLUMN($E242)),VLOOKUP($E242-24,AllData,COLUMN()-1-COLUMN($E242)),VLOOKUP($E242-25,AllData,COLUMN()-1-COLUMN($E242)),VLOOKUP($E242-26,AllData,COLUMN()-1-COLUMN($E242)),VLOOKUP($E242-27,AllData,COLUMN()-1-COLUMN($E242)),VLOOKUP($E242-28,AllData,COLUMN()-1-COLUMN($E242)),VLOOKUP($E242-29,AllData,COLUMN()-1-COLUMN($E242)))","v":{"$error":"#N/A"}},{"$f":"VLOOKUP($E242,AllData,COLUMN()-2-COLUMN($E242))","v":{"$error":"#N/A"}},{"$f":"OR('Cool Graph'!$H$1=35,'Cool Graph'!$H$1=36,'Cool Graph'!$H$1=37,'Cool Graph'!$H$1=38,'Cool Graph'!$H$1=39,'Cool Graph'!$H$1=40,'Cool Graph'!$H$1=41,'Cool Graph'!$H$1=42,'Cool Graph'!$H$1=43,'Cool Graph'!$H$1=44,'Cool Graph'!$H$1=45,'Cool Graph'!$H$1=46,'Cool Graph'!$H$1=47,'Cool Graph'!$H$1=58,'Cool Graph'!$H$1=66)","v":false},{"$f":"SUM(VLOOKUP($E242,AllData,COLUMN()-5-COLUMN($E242)),VLOOKUP($E242-1,AllData,COLUMN()-5-COLUMN($E242)),VLOOKUP($E242-2,AllData,COLUMN()-5-COLUMN($E242)),VLOOKUP($E242-3,AllData,COLUMN()-5-COLUMN($E242)),VLOOKUP($E242-4,AllData,COLUMN()-5-COLUMN($E242)),VLOOKUP($E242-5,AllData,COLUMN()-5-COLUMN($E242)),VLOOKUP($E242-6,AllData,COLUMN()-5-COLUMN($E242)))","v":{"$error":"#N/A"}},{"$f":"SUM(VLOOKUP($E242,AllData,COLUMN()-6-COLUMN($E242)),VLOOKUP($E242-1,AllData,COLUMN()-6-COLUMN($E242)),VLOOKUP($E242-2,AllData,COLUMN()-6-COLUMN($E242)),VLOOKUP($E242-3,AllData,COLUMN()-6-COLUMN($E242)),VLOOKUP($E242-4,AllData,COLUMN()-6-COLUMN($E242)),VLOOKUP($E242-5,AllData,COLUMN()-6-COLUMN($E242)),VLOOKUP($E242-6,AllData,COLUMN()-6-COLUMN($E242)),VLOOKUP($E242-7,AllData,COLUMN()-6-COLUMN($E242)),VLOOKUP($E242-8,AllData,COLUMN()-6-COLUMN($E242)),VLOOKUP($E242-9,AllData,COLUMN()-6-COLUMN($E242)),VLOOKUP($E242-10,AllData,COLUMN()-6-COLUMN($E242)),VLOOKUP($E242-11,AllData,COLUMN()-6-COLUMN($E242)),VLOOKUP($E242-12,AllData,COLUMN()-6-COLUMN($E242)),VLOOKUP($E242-13,AllData,COLUMN()-6-COLUMN($E242)),VLOOKUP($E242-14,AllData,COLUMN()-6-COLUMN($E242)),VLOOKUP($E242-15,AllData,COLUMN()-6-COLUMN($E242)),VLOOKUP($E242-16,AllData,COLUMN()-6-COLUMN($E242)),VLOOKUP($E242-17,AllData,COLUMN()-6-COLUMN($E242)),VLOOKUP($E242-18,AllData,COLUMN()-6-COLUMN($E242)),VLOOKUP($E242-19,AllData,COLUMN()-6-COLUMN($E242)),VLOOKUP($E242-20,AllData,COLUMN()-6-COLUMN($E242)),VLOOKUP($E242-21,AllData,COLUMN()-6-COLUMN($E242)),VLOOKUP($E242-22,AllData,COLUMN()-6-COLUMN($E242)),VLOOKUP($E242-23,AllData,COLUMN()-6-COLUMN($E242)),VLOOKUP($E242-24,AllData,COLUMN()-6-COLUMN($E242)),VLOOKUP($E242-25,AllData,COLUMN()-6-COLUMN($E242)),VLOOKUP($E242-26,AllData,COLUMN()-6-COLUMN($E242)),VLOOKUP($E242-27,AllData,COLUMN()-6-COLUMN($E242)),VLOOKUP($E242-28,AllData,COLUMN()-6-COLUMN($E242)),VLOOKUP($E242-29,AllData,COLUMN()-6-COLUMN($E242)))","v":{"$error":"#N/A"}},{"$f":"VLOOKUP($E242,AllData,COLUMN()-7-COLUMN($E242))","v":{"$error":"#N/A"}},{"$f":"OR('Cool Graph'!$I$1=35,'Cool Graph'!$I$1=36,'Cool Graph'!$I$1=37,'Cool Graph'!$I$1=38,'Cool Graph'!$I$1=39,'Cool Graph'!$I$1=40,'Cool Graph'!$I$1=41,'Cool Graph'!$I$1=42,'Cool Graph'!$I$1=43,'Cool Graph'!$I$1=44,'Cool Graph'!$I$1=45,'Cool Graph'!$I$1=46,'Cool Graph'!$I$1=47,'Cool Graph'!$I$1=58,'Cool Graph'!$I$1=66)","v":false}]
["2012-02-27",{"$f":"OFFSET(OldSchoolJustValues!A243,0,'Cool Graph'!$H$1)","v":88.65},{"$f":"OFFSET(OldSchoolJustValues!A243,0,'Cool Graph'!$I$1)","v":1200.000955721662},null,{"$f":"IF(NewDate>EndDate,NA(),NewDate)","v":{"$error":"#N/A"}},{"$f":"IF($E243>EndDate,NA(),IF($K$2=TRUE,N243,IF('Cool Graph'!$B$17=1,N243,IF('Cool Graph'!$B$17=2,L243,IF('Cool Graph'!$B$17=3,M243,)))))","v":{"$error":"#N/A"}},{"$f":"IF($E243>EndDate,NA(),IF($O$2=TRUE,J243,IF('Cool Graph'!$B$17=1,Data1!J243,IF('Cool Graph'!$B$17=2,Data1!H243,IF('Cool Graph'!$B$17=3,Data1!I243,)))))","v":{"$error":"#N/A"}},{"$f":"SUM(VLOOKUP($E243,AllData,COLUMN()-COLUMN($E243)),VLOOKUP($E243-1,AllData,COLUMN()-COLUMN($E243)),VLOOKUP($E243-2,AllData,COLUMN()-COLUMN($E243)),VLOOKUP($E243-3,AllData,COLUMN()-COLUMN($E243)),VLOOKUP($E243-4,AllData,COLUMN()-COLUMN($E243)),VLOOKUP($E243-5,AllData,COLUMN()-COLUMN($E243)),VLOOKUP($E243-6,AllData,COLUMN()-COLUMN($E243)))","v":{"$error":"#N/A"}},{"$f":"SUM(VLOOKUP($E243,AllData,COLUMN()-1-COLUMN($E243)),VLOOKUP($E243-1,AllData,COLUMN()-1-COLUMN($E243)),VLOOKUP($E243-2,AllData,COLUMN()-1-COLUMN($E243)),VLOOKUP($E243-3,AllData,COLUMN()-1-COLUMN($E243)),VLOOKUP($E243-4,AllData,COLUMN()-1-COLUMN($E243)),VLOOKUP($E243-5,AllData,COLUMN()-1-COLUMN($E243)),VLOOKUP($E243-6,AllData,COLUMN()-1-COLUMN($E243)),VLOOKUP($E243-7,AllData,COLUMN()-1-COLUMN($E243)),VLOOKUP($E243-8,AllData,COLUMN()-1-COLUMN($E243)),VLOOKUP($E243-9,AllData,COLUMN()-1-COLUMN($E243)),VLOOKUP($E243-10,AllData,COLUMN()-1-COLUMN($E243)),VLOOKUP($E243-11,AllData,COLUMN()-1-COLUMN($E243)),VLOOKUP($E243-12,AllData,COLUMN()-1-COLUMN($E243)),VLOOKUP($E243-13,AllData,COLUMN()-1-COLUMN($E243)),VLOOKUP($E243-14,AllData,COLUMN()-1-COLUMN($E243)),VLOOKUP($E243-15,AllData,COLUMN()-1-COLUMN($E243)),VLOOKUP($E243-16,AllData,COLUMN()-1-COLUMN($E243)),VLOOKUP($E243-17,AllData,COLUMN()-1-COLUMN($E243)),VLOOKUP($E243-18,AllData,COLUMN()-1-COLUMN($E243)),VLOOKUP($E243-19,AllData,COLUMN()-1-COLUMN($E243)),VLOOKUP($E243-20,AllData,COLUMN()-1-COLUMN($E243)),VLOOKUP($E243-21,AllData,COLUMN()-1-COLUMN($E243)),VLOOKUP($E243-22,AllData,COLUMN()-1-COLUMN($E243)),VLOOKUP($E243-23,AllData,COLUMN()-1-COLUMN($E243)),VLOOKUP($E243-24,AllData,COLUMN()-1-COLUMN($E243)),VLOOKUP($E243-25,AllData,COLUMN()-1-COLUMN($E243)),VLOOKUP($E243-26,AllData,COLUMN()-1-COLUMN($E243)),VLOOKUP($E243-27,AllData,COLUMN()-1-COLUMN($E243)),VLOOKUP($E243-28,AllData,COLUMN()-1-COLUMN($E243)),VLOOKUP($E243-29,AllData,COLUMN()-1-COLUMN($E243)))","v":{"$error":"#N/A"}},{"$f":"VLOOKUP($E243,AllData,COLUMN()-2-COLUMN($E243))","v":{"$error":"#N/A"}},{"$f":"OR('Cool Graph'!$H$1=35,'Cool Graph'!$H$1=36,'Cool Graph'!$H$1=37,'Cool Graph'!$H$1=38,'Cool Graph'!$H$1=39,'Cool Graph'!$H$1=40,'Cool Graph'!$H$1=41,'Cool Graph'!$H$1=42,'Cool Graph'!$H$1=43,'Cool Graph'!$H$1=44,'Cool Graph'!$H$1=45,'Cool Graph'!$H$1=46,'Cool Graph'!$H$1=47,'Cool Graph'!$H$1=58,'Cool Graph'!$H$1=66)","v":false},{"$f":"SUM(VLOOKUP($E243,AllData,COLUMN()-5-COLUMN($E243)),VLOOKUP($E243-1,AllData,COLUMN()-5-COLUMN($E243)),VLOOKUP($E243-2,AllData,COLUMN()-5-COLUMN($E243)),VLOOKUP($E243-3,AllData,COLUMN()-5-COLUMN($E243)),VLOOKUP($E243-4,AllData,COLUMN()-5-COLUMN($E243)),VLOOKUP($E243-5,AllData,COLUMN()-5-COLUMN($E243)),VLOOKUP($E243-6,AllData,COLUMN()-5-COLUMN($E243)))","v":{"$error":"#N/A"}},{"$f":"SUM(VLOOKUP($E243,AllData,COLUMN()-6-COLUMN($E243)),VLOOKUP($E243-1,AllData,COLUMN()-6-COLUMN($E243)),VLOOKUP($E243-2,AllData,COLUMN()-6-COLUMN($E243)),VLOOKUP($E243-3,AllData,COLUMN()-6-COLUMN($E243)),VLOOKUP($E243-4,AllData,COLUMN()-6-COLUMN($E243)),VLOOKUP($E243-5,AllData,COLUMN()-6-COLUMN($E243)),VLOOKUP($E243-6,AllData,COLUMN()-6-COLUMN($E243)),VLOOKUP($E243-7,AllData,COLUMN()-6-COLUMN($E243)),VLOOKUP($E243-8,AllData,COLUMN()-6-COLUMN($E243)),VLOOKUP($E243-9,AllData,COLUMN()-6-COLUMN($E243)),VLOOKUP($E243-10,AllData,COLUMN()-6-COLUMN($E243)),VLOOKUP($E243-11,AllData,COLUMN()-6-COLUMN($E243)),VLOOKUP($E243-12,AllData,COLUMN()-6-COLUMN($E243)),VLOOKUP($E243-13,AllData,COLUMN()-6-COLUMN($E243)),VLOOKUP($E243-14,AllData,COLUMN()-6-COLUMN($E243)),VLOOKUP($E243-15,AllData,COLUMN()-6-COLUMN($E243)),VLOOKUP($E243-16,AllData,COLUMN()-6-COLUMN($E243)),VLOOKUP($E243-17,AllData,COLUMN()-6-COLUMN($E243)),VLOOKUP($E243-18,AllData,COLUMN()-6-COLUMN($E243)),VLOOKUP($E243-19,AllData,COLUMN()-6-COLUMN($E243)),VLOOKUP($E243-20,AllData,COLUMN()-6-COLUMN($E243)),VLOOKUP($E243-21,AllData,COLUMN()-6-COLUMN($E243)),VLOOKUP($E243-22,AllData,COLUMN()-6-COLUMN($E243)),VLOOKUP($E243-23,AllData,COLUMN()-6-COLUMN($E243)),VLOOKUP($E243-24,AllData,COLUMN()-6-COLUMN($E243)),VLOOKUP($E243-25,AllData,COLUMN()-6-COLUMN($E243)),VLOOKUP($E243-26,AllData,COLUMN()-6-COLUMN($E243)),VLOOKUP($E243-27,AllData,COLUMN()-6-COLUMN($E243)),VLOOKUP($E243-28,AllData,COLUMN()-6-COLUMN($E243)),VLOOKUP($E243-29,AllData,COLUMN()-6-COLUMN($E243)))","v":{"$error":"#N/A"}},{"$f":"VLOOKUP($E243,AllData,COLUMN()-7-COLUMN($E243))","v":{"$error":"#N/A"}},{"$f":"OR('Cool Graph'!$I$1=35,'Cool Graph'!$I$1=36,'Cool Graph'!$I$1=37,'Cool Graph'!$I$1=38,'Cool Graph'!$I$1=39,'Cool Graph'!$I$1=40,'Cool Graph'!$I$1=41,'Cool Graph'!$I$1=42,'Cool Graph'!$I$1=43,'Cool Graph'!$I$1=44,'Cool Graph'!$I$1=45,'Cool Graph'!$I$1=46,'Cool Graph'!$I$1=47,'Cool Graph'!$I$1=58,'Cool Graph'!$I$1=66)","v":false}]
["2012-02-28",{"$f":"OFFSET(OldSchoolJustValues!A244,0,'Cool Graph'!$H$1)","v":70.3},{"$f":"OFFSET(OldSchoolJustValues!A244,0,'Cool Graph'!$I$1)","v":480.35652068129275},null,{"$f":"IF(NewDate>EndDate,NA(),NewDate)","v":{"$error":"#N/A"}},{"$f":"IF($E244>EndDate,NA(),IF($K$2=TRUE,N244,IF('Cool Graph'!$B$17=1,N244,IF('Cool Graph'!$B$17=2,L244,IF('Cool Graph'!$B$17=3,M244,)))))","v":{"$error":"#N/A"}},{"$f":"IF($E244>EndDate,NA(),IF($O$2=TRUE,J244,IF('Cool Graph'!$B$17=1,Data1!J244,IF('Cool Graph'!$B$17=2,Data1!H244,IF('Cool Graph'!$B$17=3,Data1!I244,)))))","v":{"$error":"#N/A"}},{"$f":"SUM(VLOOKUP($E244,AllData,COLUMN()-COLUMN($E244)),VLOOKUP($E244-1,AllData,COLUMN()-COLUMN($E244)),VLOOKUP($E244-2,AllData,COLUMN()-COLUMN($E244)),VLOOKUP($E244-3,AllData,COLUMN()-COLUMN($E244)),VLOOKUP($E244-4,AllData,COLUMN()-COLUMN($E244)),VLOOKUP($E244-5,AllData,COLUMN()-COLUMN($E244)),VLOOKUP($E244-6,AllData,COLUMN()-COLUMN($E244)))","v":{"$error":"#N/A"}},{"$f":"SUM(VLOOKUP($E244,AllData,COLUMN()-1-COLUMN($E244)),VLOOKUP($E244-1,AllData,COLUMN()-1-COLUMN($E244)),VLOOKUP($E244-2,AllData,COLUMN()-1-COLUMN($E244)),VLOOKUP($E244-3,AllData,COLUMN()-1-COLUMN($E244)),VLOOKUP($E244-4,AllData,COLUMN()-1-COLUMN($E244)),VLOOKUP($E244-5,AllData,COLUMN()-1-COLUMN($E244)),VLOOKUP($E244-6,AllData,COLUMN()-1-COLUMN($E244)),VLOOKUP($E244-7,AllData,COLUMN()-1-COLUMN($E244)),VLOOKUP($E244-8,AllData,COLUMN()-1-COLUMN($E244)),VLOOKUP($E244-9,AllData,COLUMN()-1-COLUMN($E244)),VLOOKUP($E244-10,AllData,COLUMN()-1-COLUMN($E244)),VLOOKUP($E244-11,AllData,COLUMN()-1-COLUMN($E244)),VLOOKUP($E244-12,AllData,COLUMN()-1-COLUMN($E244)),VLOOKUP($E244-13,AllData,COLUMN()-1-COLUMN($E244)),VLOOKUP($E244-14,AllData,COLUMN()-1-COLUMN($E244)),VLOOKUP($E244-15,AllData,COLUMN()-1-COLUMN($E244)),VLOOKUP($E244-16,AllData,COLUMN()-1-COLUMN($E244)),VLOOKUP($E244-17,AllData,COLUMN()-1-COLUMN($E244)),VLOOKUP($E244-18,AllData,COLUMN()-1-COLUMN($E244)),VLOOKUP($E244-19,AllData,COLUMN()-1-COLUMN($E244)),VLOOKUP($E244-20,AllData,COLUMN()-1-COLUMN($E244)),VLOOKUP($E244-21,AllData,COLUMN()-1-COLUMN($E244)),VLOOKUP($E244-22,AllData,COLUMN()-1-COLUMN($E244)),VLOOKUP($E244-23,AllData,COLUMN()-1-COLUMN($E244)),VLOOKUP($E244-24,AllData,COLUMN()-1-COLUMN($E244)),VLOOKUP($E244-25,AllData,COLUMN()-1-COLUMN($E244)),VLOOKUP($E244-26,AllData,COLUMN()-1-COLUMN($E244)),VLOOKUP($E244-27,AllData,COLUMN()-1-COLUMN($E244)),VLOOKUP($E244-28,AllData,COLUMN()-1-COLUMN($E244)),VLOOKUP($E244-29,AllData,COLUMN()-1-COLUMN($E244)))","v":{"$error":"#N/A"}},{"$f":"VLOOKUP($E244,AllData,COLUMN()-2-COLUMN($E244))","v":{"$error":"#N/A"}},{"$f":"OR('Cool Graph'!$H$1=35,'Cool Graph'!$H$1=36,'Cool Graph'!$H$1=37,'Cool Graph'!$H$1=38,'Cool Graph'!$H$1=39,'Cool Graph'!$H$1=40,'Cool Graph'!$H$1=41,'Cool Graph'!$H$1=42,'Cool Graph'!$H$1=43,'Cool Graph'!$H$1=44,'Cool Graph'!$H$1=45,'Cool Graph'!$H$1=46,'Cool Graph'!$H$1=47,'Cool Graph'!$H$1=58,'Cool Graph'!$H$1=66)","v":false},{"$f":"SUM(VLOOKUP($E244,AllData,COLUMN()-5-COLUMN($E244)),VLOOKUP($E244-1,AllData,COLUMN()-5-COLUMN($E244)),VLOOKUP($E244-2,AllData,COLUMN()-5-COLUMN($E244)),VLOOKUP($E244-3,AllData,COLUMN()-5-COLUMN($E244)),VLOOKUP($E244-4,AllData,COLUMN()-5-COLUMN($E244)),VLOOKUP($E244-5,AllData,COLUMN()-5-COLUMN($E244)),VLOOKUP($E244-6,AllData,COLUMN()-5-COLUMN($E244)))","v":{"$error":"#N/A"}},{"$f":"SUM(VLOOKUP($E244,AllData,COLUMN()-6-COLUMN($E244)),VLOOKUP($E244-1,AllData,COLUMN()-6-COLUMN($E244)),VLOOKUP($E244-2,AllData,COLUMN()-6-COLUMN($E244)),VLOOKUP($E244-3,AllData,COLUMN()-6-COLUMN($E244)),VLOOKUP($E244-4,AllData,COLUMN()-6-COLUMN($E244)),VLOOKUP($E244-5,AllData,COLUMN()-6-COLUMN($E244)),VLOOKUP($E244-6,AllData,COLUMN()-6-COLUMN($E244)),VLOOKUP($E244-7,AllData,COLUMN()-6-COLUMN($E244)),VLOOKUP($E244-8,AllData,COLUMN()-6-COLUMN($E244)),VLOOKUP($E244-9,AllData,COLUMN()-6-COLUMN($E244)),VLOOKUP($E244-10,AllData,COLUMN()-6-COLUMN($E244)),VLOOKUP($E244-11,AllData,COLUMN()-6-COLUMN($E244)),VLOOKUP($E244-12,AllData,COLUMN()-6-COLUMN($E244)),VLOOKUP($E244-13,AllData,COLUMN()-6-COLUMN($E244)),VLOOKUP($E244-14,AllData,COLUMN()-6-COLUMN($E244)),VLOOKUP($E244-15,AllData,COLUMN()-6-COLUMN($E244)),VLOOKUP($E244-16,AllData,COLUMN()-6-COLUMN($E244)),VLOOKUP($E244-17,AllData,COLUMN()-6-COLUMN($E244)),VLOOKUP($E244-18,AllData,COLUMN()-6-COLUMN($E244)),VLOOKUP($E244-19,AllData,COLUMN()-6-COLUMN($E244)),VLOOKUP($E244-20,AllData,COLUMN()-6-COLUMN($E244)),VLOOKUP($E244-21,AllData,COLUMN()-6-COLUMN($E244)),VLOOKUP($E244-22,AllData,COLUMN()-6-COLUMN($E244)),VLOOKUP($E244-23,AllData,COLUMN()-6-COLUMN($E244)),VLOOKUP($E244-24,AllData,COLUMN()-6-COLUMN($E244)),VLOOKUP($E244-25,AllData,COLUMN()-6-COLUMN($E244)),VLOOKUP($E244-26,AllData,COLUMN()-6-COLUMN($E244)),VLOOKUP($E244-27,AllData,COLUMN()-6-COLUMN($E244)),VLOOKUP($E244-28,AllData,COLUMN()-6-COLUMN($E244)),VLOOKUP($E244-29,AllData,COLUMN()-6-COLUMN($E244)))","v":{"$error":"#N/A"}},{"$f":"VLOOKUP($E244,AllData,COLUMN()-7-COLUMN($E244))","v":{"$error":"#N/A"}},{"$f":"OR('Cool Graph'!$I$1=35,'Cool Graph'!$I$1=36,'Cool Graph'!$I$1=37,'Cool Graph'!$I$1=38,'Cool Graph'!$I$1=39,'Cool Graph'!$I$1=40,'Cool Graph'!$I$1=41,'Cool Graph'!$I$1=42,'Cool Graph'!$I$1=43,'Cool Graph'!$I$1=44,'Cool Graph'!$I$1=45,'Cool Graph'!$I$1=46,'Cool Graph'!$I$1=47,'Cool Graph'!$I$1=58,'Cool Graph'!$I$1=66)","v":false}]
["2012-02-29",{"$f":"OFFSET(OldSchoolJustValues!A245,0,'Cool Graph'!$H$1)","v":74.3},{"$f":"OFFSET(OldSchoolJustValues!A245,0,'Cool Graph'!$I$1)","v":664.17361617015024},null,{"$f":"IF(NewDate>EndDate,NA(),NewDate)","v":{"$error":"#N/A"}},{"$f":"IF($E245>EndDate,NA(),IF($K$2=TRUE,N245,IF('Cool Graph'!$B$17=1,N245,IF('Cool Graph'!$B$17=2,L245,IF('Cool Graph'!$B$17=3,M245,)))))","v":{"$error":"#N/A"}},{"$f":"IF($E245>EndDate,NA(),IF($O$2=TRUE,J245,IF('Cool Graph'!$B$17=1,Data1!J245,IF('Cool Graph'!$B$17=2,Data1!H245,IF('Cool Graph'!$B$17=3,Data1!I245,)))))","v":{"$error":"#N/A"}},{"$f":"SUM(VLOOKUP($E245,AllData,COLUMN()-COLUMN($E245)),VLOOKUP($E245-1,AllData,COLUMN()-COLUMN($E245)),VLOOKUP($E245-2,AllData,COLUMN()-COLUMN($E245)),VLOOKUP($E245-3,AllData,COLUMN()-COLUMN($E245)),VLOOKUP($E245-4,AllData,COLUMN()-COLUMN($E245)),VLOOKUP($E245-5,AllData,COLUMN()-COLUMN($E245)),VLOOKUP($E245-6,AllData,COLUMN()-COLUMN($E245)))","v":{"$error":"#N/A"}},{"$f":"SUM(VLOOKUP($E245,AllData,COLUMN()-1-COLUMN($E245)),VLOOKUP($E245-1,AllData,COLUMN()-1-COLUMN($E245)),VLOOKUP($E245-2,AllData,COLUMN()-1-COLUMN($E245)),VLOOKUP($E245-3,AllData,COLUMN()-1-COLUMN($E245)),VLOOKUP($E245-4,AllData,COLUMN()-1-COLUMN($E245)),VLOOKUP($E245-5,AllData,COLUMN()-1-COLUMN($E245)),VLOOKUP($E245-6,AllData,COLUMN()-1-COLUMN($E245)),VLOOKUP($E245-7,AllData,COLUMN()-1-COLUMN($E245)),VLOOKUP($E245-8,AllData,COLUMN()-1-COLUMN($E245)),VLOOKUP($E245-9,AllData,COLUMN()-1-COLUMN($E245)),VLOOKUP($E245-10,AllData,COLUMN()-1-COLUMN($E245)),VLOOKUP($E245-11,AllData,COLUMN()-1-COLUMN($E245)),VLOOKUP($E245-12,AllData,COLUMN()-1-COLUMN($E245)),VLOOKUP($E245-13,AllData,COLUMN()-1-COLUMN($E245)),VLOOKUP($E245-14,AllData,COLUMN()-1-COLUMN($E245)),VLOOKUP($E245-15,AllData,COLUMN()-1-COLUMN($E245)),VLOOKUP($E245-16,AllData,COLUMN()-1-COLUMN($E245)),VLOOKUP($E245-17,AllData,COLUMN()-1-COLUMN($E245)),VLOOKUP($E245-18,AllData,COLUMN()-1-COLUMN($E245)),VLOOKUP($E245-19,AllData,COLUMN()-1-COLUMN($E245)),VLOOKUP($E245-20,AllData,COLUMN()-1-COLUMN($E245)),VLOOKUP($E245-21,AllData,COLUMN()-1-COLUMN($E245)),VLOOKUP($E245-22,AllData,COLUMN()-1-COLUMN($E245)),VLOOKUP($E245-23,AllData,COLUMN()-1-COLUMN($E245)),VLOOKUP($E245-24,AllData,COLUMN()-1-COLUMN($E245)),VLOOKUP($E245-25,AllData,COLUMN()-1-COLUMN($E245)),VLOOKUP($E245-26,AllData,COLUMN()-1-COLUMN($E245)),VLOOKUP($E245-27,AllData,COLUMN()-1-COLUMN($E245)),VLOOKUP($E245-28,AllData,COLUMN()-1-COLUMN($E245)),VLOOKUP($E245-29,AllData,COLUMN()-1-COLUMN($E245)))","v":{"$error":"#N/A"}},{"$f":"VLOOKUP($E245,AllData,COLUMN()-2-COLUMN($E245))","v":{"$error":"#N/A"}},{"$f":"OR('Cool Graph'!$H$1=35,'Cool Graph'!$H$1=36,'Cool Graph'!$H$1=37,'Cool Graph'!$H$1=38,'Cool Graph'!$H$1=39,'Cool Graph'!$H$1=40,'Cool Graph'!$H$1=41,'Cool Graph'!$H$1=42,'Cool Graph'!$H$1=43,'Cool Graph'!$H$1=44,'Cool Graph'!$H$1=45,'Cool Graph'!$H$1=46,'Cool Graph'!$H$1=47,'Cool Graph'!$H$1=58,'Cool Graph'!$H$1=66)","v":false},{"$f":"SUM(VLOOKUP($E245,AllData,COLUMN()-5-COLUMN($E245)),VLOOKUP($E245-1,AllData,COLUMN()-5-COLUMN($E245)),VLOOKUP($E245-2,AllData,COLUMN()-5-COLUMN($E245)),VLOOKUP($E245-3,AllData,COLUMN()-5-COLUMN($E245)),VLOOKUP($E245-4,AllData,COLUMN()-5-COLUMN($E245)),VLOOKUP($E245-5,AllData,COLUMN()-5-COLUMN($E245)),VLOOKUP($E245-6,AllData,COLUMN()-5-COLUMN($E245)))","v":{"$error":"#N/A"}},{"$f":"SUM(VLOOKUP($E245,AllData,COLUMN()-6-COLUMN($E245)),VLOOKUP($E245-1,AllData,COLUMN()-6-COLUMN($E245)),VLOOKUP($E245-2,AllData,COLUMN()-6-COLUMN($E245)),VLOOKUP($E245-3,AllData,COLUMN()-6-COLUMN($E245)),VLOOKUP($E245-4,AllData,COLUMN()-6-COLUMN($E245)),VLOOKUP($E245-5,AllData,COLUMN()-6-COLUMN($E245)),VLOOKUP($E245-6,AllData,COLUMN()-6-COLUMN($E245)),VLOOKUP($E245-7,AllData,COLUMN()-6-COLUMN($E245)),VLOOKUP($E245-8,AllData,COLUMN()-6-COLUMN($E245)),VLOOKUP($E245-9,AllData,COLUMN()-6-COLUMN($E245)),VLOOKUP($E245-10,AllData,COLUMN()-6-COLUMN($E245)),VLOOKUP($E245-11,AllData,COLUMN()-6-COLUMN($E245)),VLOOKUP($E245-12,AllData,COLUMN()-6-COLUMN($E245)),VLOOKUP($E245-13,AllData,COLUMN()-6-COLUMN($E245)),VLOOKUP($E245-14,AllData,COLUMN()-6-COLUMN($E245)),VLOOKUP($E245-15,AllData,COLUMN()-6-COLUMN($E245)),VLOOKUP($E245-16,AllData,COLUMN()-6-COLUMN($E245)),VLOOKUP($E245-17,AllData,COLUMN()-6-COLUMN($E245)),VLOOKUP($E245-18,AllData,COLUMN()-6-COLUMN($E245)),VLOOKUP($E245-19,AllData,COLUMN()-6-COLUMN($E245)),VLOOKUP($E245-20,AllData,COLUMN()-6-COLUMN($E245)),VLOOKUP($E245-21,AllData,COLUMN()-6-COLUMN($E245)),VLOOKUP($E245-22,AllData,COLUMN()-6-COLUMN($E245)),VLOOKUP($E245-23,AllData,COLUMN()-6-COLUMN($E245)),VLOOKUP($E245-24,AllData,COLUMN()-6-COLUMN($E245)),VLOOKUP($E245-25,AllData,COLUMN()-6-COLUMN($E245)),VLOOKUP($E245-26,AllData,COLUMN()-6-COLUMN($E245)),VLOOKUP($E245-27,AllData,COLUMN()-6-COLUMN($E245)),VLOOKUP($E245-28,AllData,COLUMN()-6-COLUMN($E245)),VLOOKUP($E245-29,AllData,COLUMN()-6-COLUMN($E245)))","v":{"$error":"#N/A"}},{"$f":"VLOOKUP($E245,AllData,COLUMN()-7-COLUMN($E245))","v":{"$error":"#N/A"}},{"$f":"OR('Cool Graph'!$I$1=35,'Cool Graph'!$I$1=36,'Cool Graph'!$I$1=37,'Cool Graph'!$I$1=38,'Cool Graph'!$I$1=39,'Cool Graph'!$I$1=40,'Cool Graph'!$I$1=41,'Cool Graph'!$I$1=42,'Cool Graph'!$I$1=43,'Cool Graph'!$I$1=44,'Cool Graph'!$I$1=45,'Cool Graph'!$I$1=46,'Cool Graph'!$I$1=47,'Cool Graph'!$I$1=58,'Cool Graph'!$I$1=66)","v":false}]
["2012-03-01",{"$f":"OFFSET(OldSchoolJustValues!A246,0,'Cool Graph'!$H$1)","v":84.22},{"$f":"OFFSET(OldSchoolJustValues!A246,0,'Cool Graph'!$I$1)","v":946.51313630908237},null,{"$f":"IF(NewDate>EndDate,NA(),NewDate)","v":{"$error":"#N/A"}},{"$f":"IF($E246>EndDate,NA(),IF($K$2=TRUE,N246,IF('Cool Graph'!$B$17=1,N246,IF('Cool Graph'!$B$17=2,L246,IF('Cool Graph'!$B$17=3,M246,)))))","v":{"$error":"#N/A"}},{"$f":"IF($E246>EndDate,NA(),IF($O$2=TRUE,J246,IF('Cool Graph'!$B$17=1,Data1!J246,IF('Cool Graph'!$B$17=2,Data1!H246,IF('Cool Graph'!$B$17=3,Data1!I246,)))))","v":{"$error":"#N/A"}},{"$f":"SUM(VLOOKUP($E246,AllData,COLUMN()-COLUMN($E246)),VLOOKUP($E246-1,AllData,COLUMN()-COLUMN($E246)),VLOOKUP($E246-2,AllData,COLUMN()-COLUMN($E246)),VLOOKUP($E246-3,AllData,COLUMN()-COLUMN($E246)),VLOOKUP($E246-4,AllData,COLUMN()-COLUMN($E246)),VLOOKUP($E246-5,AllData,COLUMN()-COLUMN($E246)),VLOOKUP($E246-6,AllData,COLUMN()-COLUMN($E246)))","v":{"$error":"#N/A"}},{"$f":"SUM(VLOOKUP($E246,AllData,COLUMN()-1-COLUMN($E246)),VLOOKUP($E246-1,AllData,COLUMN()-1-COLUMN($E246)),VLOOKUP($E246-2,AllData,COLUMN()-1-COLUMN($E246)),VLOOKUP($E246-3,AllData,COLUMN()-1-COLUMN($E246)),VLOOKUP($E246-4,AllData,COLUMN()-1-COLUMN($E246)),VLOOKUP($E246-5,AllData,COLUMN()-1-COLUMN($E246)),VLOOKUP($E246-6,AllData,COLUMN()-1-COLUMN($E246)),VLOOKUP($E246-7,AllData,COLUMN()-1-COLUMN($E246)),VLOOKUP($E246-8,AllData,COLUMN()-1-COLUMN($E246)),VLOOKUP($E246-9,AllData,COLUMN()-1-COLUMN($E246)),VLOOKUP($E246-10,AllData,COLUMN()-1-COLUMN($E246)),VLOOKUP($E246-11,AllData,COLUMN()-1-COLUMN($E246)),VLOOKUP($E246-12,AllData,COLUMN()-1-COLUMN($E246)),VLOOKUP($E246-13,AllData,COLUMN()-1-COLUMN($E246)),VLOOKUP($E246-14,AllData,COLUMN()-1-COLUMN($E246)),VLOOKUP($E246-15,AllData,COLUMN()-1-COLUMN($E246)),VLOOKUP($E246-16,AllData,COLUMN()-1-COLUMN($E246)),VLOOKUP($E246-17,AllData,COLUMN()-1-COLUMN($E246)),VLOOKUP($E246-18,AllData,COLUMN()-1-COLUMN($E246)),VLOOKUP($E246-19,AllData,COLUMN()-1-COLUMN($E246)),VLOOKUP($E246-20,AllData,COLUMN()-1-COLUMN($E246)),VLOOKUP($E246-21,AllData,COLUMN()-1-COLUMN($E246)),VLOOKUP($E246-22,AllData,COLUMN()-1-COLUMN($E246)),VLOOKUP($E246-23,AllData,COLUMN()-1-COLUMN($E246)),VLOOKUP($E246-24,AllData,COLUMN()-1-COLUMN($E246)),VLOOKUP($E246-25,AllData,COLUMN()-1-COLUMN($E246)),VLOOKUP($E246-26,AllData,COLUMN()-1-COLUMN($E246)),VLOOKUP($E246-27,AllData,COLUMN()-1-COLUMN($E246)),VLOOKUP($E246-28,AllData,COLUMN()-1-COLUMN($E246)),VLOOKUP($E246-29,AllData,COLUMN()-1-COLUMN($E246)))","v":{"$error":"#N/A"}},{"$f":"VLOOKUP($E246,AllData,COLUMN()-2-COLUMN($E246))","v":{"$error":"#N/A"}},{"$f":"OR('Cool Graph'!$H$1=35,'Cool Graph'!$H$1=36,'Cool Graph'!$H$1=37,'Cool Graph'!$H$1=38,'Cool Graph'!$H$1=39,'Cool Graph'!$H$1=40,'Cool Graph'!$H$1=41,'Cool Graph'!$H$1=42,'Cool Graph'!$H$1=43,'Cool Graph'!$H$1=44,'Cool Graph'!$H$1=45,'Cool Graph'!$H$1=46,'Cool Graph'!$H$1=47,'Cool Graph'!$H$1=58,'Cool Graph'!$H$1=66)","v":false},{"$f":"SUM(VLOOKUP($E246,AllData,COLUMN()-5-COLUMN($E246)),VLOOKUP($E246-1,AllData,COLUMN()-5-COLUMN($E246)),VLOOKUP($E246-2,AllData,COLUMN()-5-COLUMN($E246)),VLOOKUP($E246-3,AllData,COLUMN()-5-COLUMN($E246)),VLOOKUP($E246-4,AllData,COLUMN()-5-COLUMN($E246)),VLOOKUP($E246-5,AllData,COLUMN()-5-COLUMN($E246)),VLOOKUP($E246-6,AllData,COLUMN()-5-COLUMN($E246)))","v":{"$error":"#N/A"}},{"$f":"SUM(VLOOKUP($E246,AllData,COLUMN()-6-COLUMN($E246)),VLOOKUP($E246-1,AllData,COLUMN()-6-COLUMN($E246)),VLOOKUP($E246-2,AllData,COLUMN()-6-COLUMN($E246)),VLOOKUP($E246-3,AllData,COLUMN()-6-COLUMN($E246)),VLOOKUP($E246-4,AllData,COLUMN()-6-COLUMN($E246)),VLOOKUP($E246-5,AllData,COLUMN()-6-COLUMN($E246)),VLOOKUP($E246-6,AllData,COLUMN()-6-COLUMN($E246)),VLOOKUP($E246-7,AllData,COLUMN()-6-COLUMN($E246)),VLOOKUP($E246-8,AllData,COLUMN()-6-COLUMN($E246)),VLOOKUP($E246-9,AllData,COLUMN()-6-COLUMN($E246)),VLOOKUP($E246-10,AllData,COLUMN()-6-COLUMN($E246)),VLOOKUP($E246-11,AllData,COLUMN()-6-COLUMN($E246)),VLOOKUP($E246-12,AllData,COLUMN()-6-COLUMN($E246)),VLOOKUP($E246-13,AllData,COLUMN()-6-COLUMN($E246)),VLOOKUP($E246-14,AllData,COLUMN()-6-COLUMN($E246)),VLOOKUP($E246-15,AllData,COLUMN()-6-COLUMN($E246)),VLOOKUP($E246-16,AllData,COLUMN()-6-COLUMN($E246)),VLOOKUP($E246-17,AllData,COLUMN()-6-COLUMN($E246)),VLOOKUP($E246-18,AllData,COLUMN()-6-COLUMN($E246)),VLOOKUP($E246-19,AllData,COLUMN()-6-COLUMN($E246)),VLOOKUP($E246-20,AllData,COLUMN()-6-COLUMN($E246)),VLOOKUP($E246-21,AllData,COLUMN()-6-COLUMN($E246)),VLOOKUP($E246-22,AllData,COLUMN()-6-COLUMN($E246)),VLOOKUP($E246-23,AllData,COLUMN()-6-COLUMN($E246)),VLOOKUP($E246-24,AllData,COLUMN()-6-COLUMN($E246)),VLOOKUP($E246-25,AllData,COLUMN()-6-COLUMN($E246)),VLOOKUP($E246-26,AllData,COLUMN()-6-COLUMN($E246)),VLOOKUP($E246-27,AllData,COLUMN()-6-COLUMN($E246)),VLOOKUP($E246-28,AllData,COLUMN()-6-COLUMN($E246)),VLOOKUP($E246-29,AllData,COLUMN()-6-COLUMN($E246)))","v":{"$error":"#N/A"}},{"$f":"VLOOKUP($E246,AllData,COLUMN()-7-COLUMN($E246))","v":{"$error":"#N/A"}},{"$f":"OR('Cool Graph'!$I$1=35,'Cool Graph'!$I$1=36,'Cool Graph'!$I$1=37,'Cool Graph'!$I$1=38,'Cool Graph'!$I$1=39,'Cool Graph'!$I$1=40,'Cool Graph'!$I$1=41,'Cool Graph'!$I$1=42,'Cool Graph'!$I$1=43,'Cool Graph'!$I$1=44,'Cool Graph'!$I$1=45,'Cool Graph'!$I$1=46,'Cool Graph'!$I$1=47,'Cool Graph'!$I$1=58,'Cool Graph'!$I$1=66)","v":false}]
["2012-03-02",{"$f":"OFFSET(OldSchoolJustValues!A247,0,'Cool Graph'!$H$1)","v":25.92},{"$f":"OFFSET(OldSchoolJustValues!A247,0,'Cool Graph'!$I$1)","v":561.75938693263038},null,{"$f":"IF(NewDate>EndDate,NA(),NewDate)","v":{"$error":"#N/A"}},{"$f":"IF($E247>EndDate,NA(),IF($K$2=TRUE,N247,IF('Cool Graph'!$B$17=1,N247,IF('Cool Graph'!$B$17=2,L247,IF('Cool Graph'!$B$17=3,M247,)))))","v":{"$error":"#N/A"}},{"$f":"IF($E247>EndDate,NA(),IF($O$2=TRUE,J247,IF('Cool Graph'!$B$17=1,Data1!J247,IF('Cool Graph'!$B$17=2,Data1!H247,IF('Cool Graph'!$B$17=3,Data1!I247,)))))","v":{"$error":"#N/A"}},{"$f":"SUM(VLOOKUP($E247,AllData,COLUMN()-COLUMN($E247)),VLOOKUP($E247-1,AllData,COLUMN()-COLUMN($E247)),VLOOKUP($E247-2,AllData,COLUMN()-COLUMN($E247)),VLOOKUP($E247-3,AllData,COLUMN()-COLUMN($E247)),VLOOKUP($E247-4,AllData,COLUMN()-COLUMN($E247)),VLOOKUP($E247-5,AllData,COLUMN()-COLUMN($E247)),VLOOKUP($E247-6,AllData,COLUMN()-COLUMN($E247)))","v":{"$error":"#N/A"}},{"$f":"SUM(VLOOKUP($E247,AllData,COLUMN()-1-COLUMN($E247)),VLOOKUP($E247-1,AllData,COLUMN()-1-COLUMN($E247)),VLOOKUP($E247-2,AllData,COLUMN()-1-COLUMN($E247)),VLOOKUP($E247-3,AllData,COLUMN()-1-COLUMN($E247)),VLOOKUP($E247-4,AllData,COLUMN()-1-COLUMN($E247)),VLOOKUP($E247-5,AllData,COLUMN()-1-COLUMN($E247)),VLOOKUP($E247-6,AllData,COLUMN()-1-COLUMN($E247)),VLOOKUP($E247-7,AllData,COLUMN()-1-COLUMN($E247)),VLOOKUP($E247-8,AllData,COLUMN()-1-COLUMN($E247)),VLOOKUP($E247-9,AllData,COLUMN()-1-COLUMN($E247)),VLOOKUP($E247-10,AllData,COLUMN()-1-COLUMN($E247)),VLOOKUP($E247-11,AllData,COLUMN()-1-COLUMN($E247)),VLOOKUP($E247-12,AllData,COLUMN()-1-COLUMN($E247)),VLOOKUP($E247-13,AllData,COLUMN()-1-COLUMN($E247)),VLOOKUP($E247-14,AllData,COLUMN()-1-COLUMN($E247)),VLOOKUP($E247-15,AllData,COLUMN()-1-COLUMN($E247)),VLOOKUP($E247-16,AllData,COLUMN()-1-COLUMN($E247)),VLOOKUP($E247-17,AllData,COLUMN()-1-COLUMN($E247)),VLOOKUP($E247-18,AllData,COLUMN()-1-COLUMN($E247)),VLOOKUP($E247-19,AllData,COLUMN()-1-COLUMN($E247)),VLOOKUP($E247-20,AllData,COLUMN()-1-COLUMN($E247)),VLOOKUP($E247-21,AllData,COLUMN()-1-COLUMN($E247)),VLOOKUP($E247-22,AllData,COLUMN()-1-COLUMN($E247)),VLOOKUP($E247-23,AllData,COLUMN()-1-COLUMN($E247)),VLOOKUP($E247-24,AllData,COLUMN()-1-COLUMN($E247)),VLOOKUP($E247-25,AllData,COLUMN()-1-COLUMN($E247)),VLOOKUP($E247-26,AllData,COLUMN()-1-COLUMN($E247)),VLOOKUP($E247-27,AllData,COLUMN()-1-COLUMN($E247)),VLOOKUP($E247-28,AllData,COLUMN()-1-COLUMN($E247)),VLOOKUP($E247-29,AllData,COLUMN()-1-COLUMN($E247)))","v":{"$error":"#N/A"}},{"$f":"VLOOKUP($E247,AllData,COLUMN()-2-COLUMN($E247))","v":{"$error":"#N/A"}},{"$f":"OR('Cool Graph'!$H$1=35,'Cool Graph'!$H$1=36,'Cool Graph'!$H$1=37,'Cool Graph'!$H$1=38,'Cool Graph'!$H$1=39,'Cool Graph'!$H$1=40,'Cool Graph'!$H$1=41,'Cool Graph'!$H$1=42,'Cool Graph'!$H$1=43,'Cool Graph'!$H$1=44,'Cool Graph'!$H$1=45,'Cool Graph'!$H$1=46,'Cool Graph'!$H$1=47,'Cool Graph'!$H$1=58,'Cool Graph'!$H$1=66)","v":false},{"$f":"SUM(VLOOKUP($E247,AllData,COLUMN()-5-COLUMN($E247)),VLOOKUP($E247-1,AllData,COLUMN()-5-COLUMN($E247)),VLOOKUP($E247-2,AllData,COLUMN()-5-COLUMN($E247)),VLOOKUP($E247-3,AllData,COLUMN()-5-COLUMN($E247)),VLOOKUP($E247-4,AllData,COLUMN()-5-COLUMN($E247)),VLOOKUP($E247-5,AllData,COLUMN()-5-COLUMN($E247)),VLOOKUP($E247-6,AllData,COLUMN()-5-COLUMN($E247)))","v":{"$error":"#N/A"}},{"$f":"SUM(VLOOKUP($E247,AllData,COLUMN()-6-COLUMN($E247)),VLOOKUP($E247-1,AllData,COLUMN()-6-COLUMN($E247)),VLOOKUP($E247-2,AllData,COLUMN()-6-COLUMN($E247)),VLOOKUP($E247-3,AllData,COLUMN()-6-COLUMN($E247)),VLOOKUP($E247-4,AllData,COLUMN()-6-COLUMN($E247)),VLOOKUP($E247-5,AllData,COLUMN()-6-COLUMN($E247)),VLOOKUP($E247-6,AllData,COLUMN()-6-COLUMN($E247)),VLOOKUP($E247-7,AllData,COLUMN()-6-COLUMN($E247)),VLOOKUP($E247-8,AllData,COLUMN()-6-COLUMN($E247)),VLOOKUP($E247-9,AllData,COLUMN()-6-COLUMN($E247)),VLOOKUP($E247-10,AllData,COLUMN()-6-COLUMN($E247)),VLOOKUP($E247-11,AllData,COLUMN()-6-COLUMN($E247)),VLOOKUP($E247-12,AllData,COLUMN()-6-COLUMN($E247)),VLOOKUP($E247-13,AllData,COLUMN()-6-COLUMN($E247)),VLOOKUP($E247-14,AllData,COLUMN()-6-COLUMN($E247)),VLOOKUP($E247-15,AllData,COLUMN()-6-COLUMN($E247)),VLOOKUP($E247-16,AllData,COLUMN()-6-COLUMN($E247)),VLOOKUP($E247-17,AllData,COLUMN()-6-COLUMN($E247)),VLOOKUP($E247-18,AllData,COLUMN()-6-COLUMN($E247)),VLOOKUP($E247-19,AllData,COLUMN()-6-COLUMN($E247)),VLOOKUP($E247-20,AllData,COLUMN()-6-COLUMN($E247)),VLOOKUP($E247-21,AllData,COLUMN()-6-COLUMN($E247)),VLOOKUP($E247-22,AllData,COLUMN()-6-COLUMN($E247)),VLOOKUP($E247-23,AllData,COLUMN()-6-COLUMN($E247)),VLOOKUP($E247-24,AllData,COLUMN()-6-COLUMN($E247)),VLOOKUP($E247-25,AllData,COLUMN()-6-COLUMN($E247)),VLOOKUP($E247-26,AllData,COLUMN()-6-COLUMN($E247)),VLOOKUP($E247-27,AllData,COLUMN()-6-COLUMN($E247)),VLOOKUP($E247-28,AllData,COLUMN()-6-COLUMN($E247)),VLOOKUP($E247-29,AllData,COLUMN()-6-COLUMN($E247)))","v":{"$error":"#N/A"}},{"$f":"VLOOKUP($E247,AllData,COLUMN()-7-COLUMN($E247))","v":{"$error":"#N/A"}},{"$f":"OR('Cool Graph'!$I$1=35,'Cool Graph'!$I$1=36,'Cool Graph'!$I$1=37,'Cool Graph'!$I$1=38,'Cool Graph'!$I$1=39,'Cool Graph'!$I$1=40,'Cool Graph'!$I$1=41,'Cool Graph'!$I$1=42,'Cool Graph'!$I$1=43,'Cool Graph'!$I$1=44,'Cool Graph'!$I$1=45,'Cool Graph'!$I$1=46,'Cool Graph'!$I$1=47,'Cool Graph'!$I$1=58,'Cool Graph'!$I$1=66)","v":false}]
["2012-03-03",{"$f":"OFFSET(OldSchoolJustValues!A248,0,'Cool Graph'!$H$1)","v":32.75},{"$f":"OFFSET(OldSchoolJustValues!A248,0,'Cool Graph'!$I$1)","v":263.04453750241038},null,{"$f":"IF(NewDate>EndDate,NA(),NewDate)","v":{"$error":"#N/A"}},{"$f":"IF($E248>EndDate,NA(),IF($K$2=TRUE,N248,IF('Cool Graph'!$B$17=1,N248,IF('Cool Graph'!$B$17=2,L248,IF('Cool Graph'!$B$17=3,M248,)))))","v":{"$error":"#N/A"}},{"$f":"IF($E248>EndDate,NA(),IF($O$2=TRUE,J248,IF('Cool Graph'!$B$17=1,Data1!J248,IF('Cool Graph'!$B$17=2,Data1!H248,IF('Cool Graph'!$B$17=3,Data1!I248,)))))","v":{"$error":"#N/A"}},{"$f":"SUM(VLOOKUP($E248,AllData,COLUMN()-COLUMN($E248)),VLOOKUP($E248-1,AllData,COLUMN()-COLUMN($E248)),VLOOKUP($E248-2,AllData,COLUMN()-COLUMN($E248)),VLOOKUP($E248-3,AllData,COLUMN()-COLUMN($E248)),VLOOKUP($E248-4,AllData,COLUMN()-COLUMN($E248)),VLOOKUP($E248-5,AllData,COLUMN()-COLUMN($E248)),VLOOKUP($E248-6,AllData,COLUMN()-COLUMN($E248)))","v":{"$error":"#N/A"}},{"$f":"SUM(VLOOKUP($E248,AllData,COLUMN()-1-COLUMN($E248)),VLOOKUP($E248-1,AllData,COLUMN()-1-COLUMN($E248)),VLOOKUP($E248-2,AllData,COLUMN()-1-COLUMN($E248)),VLOOKUP($E248-3,AllData,COLUMN()-1-COLUMN($E248)),VLOOKUP($E248-4,AllData,COLUMN()-1-COLUMN($E248)),VLOOKUP($E248-5,AllData,COLUMN()-1-COLUMN($E248)),VLOOKUP($E248-6,AllData,COLUMN()-1-COLUMN($E248)),VLOOKUP($E248-7,AllData,COLUMN()-1-COLUMN($E248)),VLOOKUP($E248-8,AllData,COLUMN()-1-COLUMN($E248)),VLOOKUP($E248-9,AllData,COLUMN()-1-COLUMN($E248)),VLOOKUP($E248-10,AllData,COLUMN()-1-COLUMN($E248)),VLOOKUP($E248-11,AllData,COLUMN()-1-COLUMN($E248)),VLOOKUP($E248-12,AllData,COLUMN()-1-COLUMN($E248)),VLOOKUP($E248-13,AllData,COLUMN()-1-COLUMN($E248)),VLOOKUP($E248-14,AllData,COLUMN()-1-COLUMN($E248)),VLOOKUP($E248-15,AllData,COLUMN()-1-COLUMN($E248)),VLOOKUP($E248-16,AllData,COLUMN()-1-COLUMN($E248)),VLOOKUP($E248-17,AllData,COLUMN()-1-COLUMN($E248)),VLOOKUP($E248-18,AllData,COLUMN()-1-COLUMN($E248)),VLOOKUP($E248-19,AllData,COLUMN()-1-COLUMN($E248)),VLOOKUP($E248-20,AllData,COLUMN()-1-COLUMN($E248)),VLOOKUP($E248-21,AllData,COLUMN()-1-COLUMN($E248)),VLOOKUP($E248-22,AllData,COLUMN()-1-COLUMN($E248)),VLOOKUP($E248-23,AllData,COLUMN()-1-COLUMN($E248)),VLOOKUP($E248-24,AllData,COLUMN()-1-COLUMN($E248)),VLOOKUP($E248-25,AllData,COLUMN()-1-COLUMN($E248)),VLOOKUP($E248-26,AllData,COLUMN()-1-COLUMN($E248)),VLOOKUP($E248-27,AllData,COLUMN()-1-COLUMN($E248)),VLOOKUP($E248-28,AllData,COLUMN()-1-COLUMN($E248)),VLOOKUP($E248-29,AllData,COLUMN()-1-COLUMN($E248)))","v":{"$error":"#N/A"}},{"$f":"VLOOKUP($E248,AllData,COLUMN()-2-COLUMN($E248))","v":{"$error":"#N/A"}},{"$f":"OR('Cool Graph'!$H$1=35,'Cool Graph'!$H$1=36,'Cool Graph'!$H$1=37,'Cool Graph'!$H$1=38,'Cool Graph'!$H$1=39,'Cool Graph'!$H$1=40,'Cool Graph'!$H$1=41,'Cool Graph'!$H$1=42,'Cool Graph'!$H$1=43,'Cool Graph'!$H$1=44,'Cool Graph'!$H$1=45,'Cool Graph'!$H$1=46,'Cool Graph'!$H$1=47,'Cool Graph'!$H$1=58,'Cool Graph'!$H$1=66)","v":false},{"$f":"SUM(VLOOKUP($E248,AllData,COLUMN()-5-COLUMN($E248)),VLOOKUP($E248-1,AllData,COLUMN()-5-COLUMN($E248)),VLOOKUP($E248-2,AllData,COLUMN()-5-COLUMN($E248)),VLOOKUP($E248-3,AllData,COLUMN()-5-COLUMN($E248)),VLOOKUP($E248-4,AllData,COLUMN()-5-COLUMN($E248)),VLOOKUP($E248-5,AllData,COLUMN()-5-COLUMN($E248)),VLOOKUP($E248-6,AllData,COLUMN()-5-COLUMN($E248)))","v":{"$error":"#N/A"}},{"$f":"SUM(VLOOKUP($E248,AllData,COLUMN()-6-COLUMN($E248)),VLOOKUP($E248-1,AllData,COLUMN()-6-COLUMN($E248)),VLOOKUP($E248-2,AllData,COLUMN()-6-COLUMN($E248)),VLOOKUP($E248-3,AllData,COLUMN()-6-COLUMN($E248)),VLOOKUP($E248-4,AllData,COLUMN()-6-COLUMN($E248)),VLOOKUP($E248-5,AllData,COLUMN()-6-COLUMN($E248)),VLOOKUP($E248-6,AllData,COLUMN()-6-COLUMN($E248)),VLOOKUP($E248-7,AllData,COLUMN()-6-COLUMN($E248)),VLOOKUP($E248-8,AllData,COLUMN()-6-COLUMN($E248)),VLOOKUP($E248-9,AllData,COLUMN()-6-COLUMN($E248)),VLOOKUP($E248-10,AllData,COLUMN()-6-COLUMN($E248)),VLOOKUP($E248-11,AllData,COLUMN()-6-COLUMN($E248)),VLOOKUP($E248-12,AllData,COLUMN()-6-COLUMN($E248)),VLOOKUP($E248-13,AllData,COLUMN()-6-COLUMN($E248)),VLOOKUP($E248-14,AllData,COLUMN()-6-COLUMN($E248)),VLOOKUP($E248-15,AllData,COLUMN()-6-COLUMN($E248)),VLOOKUP($E248-16,AllData,COLUMN()-6-COLUMN($E248)),VLOOKUP($E248-17,AllData,COLUMN()-6-COLUMN($E248)),VLOOKUP($E248-18,AllData,COLUMN()-6-COLUMN($E248)),VLOOKUP($E248-19,AllData,COLUMN()-6-COLUMN($E248)),VLOOKUP($E248-20,AllData,COLUMN()-6-COLUMN($E248)),VLOOKUP($E248-21,AllData,COLUMN()-6-COLUMN($E248)),VLOOKUP($E248-22,AllData,COLUMN()-6-COLUMN($E248)),VLOOKUP($E248-23,AllData,COLUMN()-6-COLUMN($E248)),VLOOKUP($E248-24,AllData,COLUMN()-6-COLUMN($E248)),VLOOKUP($E248-25,AllData,COLUMN()-6-COLUMN($E248)),VLOOKUP($E248-26,AllData,COLUMN()-6-COLUMN($E248)),VLOOKUP($E248-27,AllData,COLUMN()-6-COLUMN($E248)),VLOOKUP($E248-28,AllData,COLUMN()-6-COLUMN($E248)),VLOOKUP($E248-29,AllData,COLUMN()-6-COLUMN($E248)))","v":{"$error":"#N/A"}},{"$f":"VLOOKUP($E248,AllData,COLUMN()-7-COLUMN($E248))","v":{"$error":"#N/A"}},{"$f":"OR('Cool Graph'!$I$1=35,'Cool Graph'!$I$1=36,'Cool Graph'!$I$1=37,'Cool Graph'!$I$1=38,'Cool Graph'!$I$1=39,'Cool Graph'!$I$1=40,'Cool Graph'!$I$1=41,'Cool Graph'!$I$1=42,'Cool Graph'!$I$1=43,'Cool Graph'!$I$1=44,'Cool Graph'!$I$1=45,'Cool Graph'!$I$1=46,'Cool Graph'!$I$1=47,'Cool Graph'!$I$1=58,'Cool Graph'!$I$1=66)","v":false}]
["2012-03-04",{"$f":"OFFSET(OldSchoolJustValues!A249,0,'Cool Graph'!$H$1)","v":85.71},{"$f":"OFFSET(OldSchoolJustValues!A249,0,'Cool Graph'!$I$1)","v":634.22256555464946},null,{"$f":"IF(NewDate>EndDate,NA(),NewDate)","v":{"$error":"#N/A"}},{"$f":"IF($E249>EndDate,NA(),IF($K$2=TRUE,N249,IF('Cool Graph'!$B$17=1,N249,IF('Cool Graph'!$B$17=2,L249,IF('Cool Graph'!$B$17=3,M249,)))))","v":{"$error":"#N/A"}},{"$f":"IF($E249>EndDate,NA(),IF($O$2=TRUE,J249,IF('Cool Graph'!$B$17=1,Data1!J249,IF('Cool Graph'!$B$17=2,Data1!H249,IF('Cool Graph'!$B$17=3,Data1!I249,)))))","v":{"$error":"#N/A"}},{"$f":"SUM(VLOOKUP($E249,AllData,COLUMN()-COLUMN($E249)),VLOOKUP($E249-1,AllData,COLUMN()-COLUMN($E249)),VLOOKUP($E249-2,AllData,COLUMN()-COLUMN($E249)),VLOOKUP($E249-3,AllData,COLUMN()-COLUMN($E249)),VLOOKUP($E249-4,AllData,COLUMN()-COLUMN($E249)),VLOOKUP($E249-5,AllData,COLUMN()-COLUMN($E249)),VLOOKUP($E249-6,AllData,COLUMN()-COLUMN($E249)))","v":{"$error":"#N/A"}},{"$f":"SUM(VLOOKUP($E249,AllData,COLUMN()-1-COLUMN($E249)),VLOOKUP($E249-1,AllData,COLUMN()-1-COLUMN($E249)),VLOOKUP($E249-2,AllData,COLUMN()-1-COLUMN($E249)),VLOOKUP($E249-3,AllData,COLUMN()-1-COLUMN($E249)),VLOOKUP($E249-4,AllData,COLUMN()-1-COLUMN($E249)),VLOOKUP($E249-5,AllData,COLUMN()-1-COLUMN($E249)),VLOOKUP($E249-6,AllData,COLUMN()-1-COLUMN($E249)),VLOOKUP($E249-7,AllData,COLUMN()-1-COLUMN($E249)),VLOOKUP($E249-8,AllData,COLUMN()-1-COLUMN($E249)),VLOOKUP($E249-9,AllData,COLUMN()-1-COLUMN($E249)),VLOOKUP($E249-10,AllData,COLUMN()-1-COLUMN($E249)),VLOOKUP($E249-11,AllData,COLUMN()-1-COLUMN($E249)),VLOOKUP($E249-12,AllData,COLUMN()-1-COLUMN($E249)),VLOOKUP($E249-13,AllData,COLUMN()-1-COLUMN($E249)),VLOOKUP($E249-14,AllData,COLUMN()-1-COLUMN($E249)),VLOOKUP($E249-15,AllData,COLUMN()-1-COLUMN($E249)),VLOOKUP($E249-16,AllData,COLUMN()-1-COLUMN($E249)),VLOOKUP($E249-17,AllData,COLUMN()-1-COLUMN($E249)),VLOOKUP($E249-18,AllData,COLUMN()-1-COLUMN($E249)),VLOOKUP($E249-19,AllData,COLUMN()-1-COLUMN($E249)),VLOOKUP($E249-20,AllData,COLUMN()-1-COLUMN($E249)),VLOOKUP($E249-21,AllData,COLUMN()-1-COLUMN($E249)),VLOOKUP($E249-22,AllData,COLUMN()-1-COLUMN($E249)),VLOOKUP($E249-23,AllData,COLUMN()-1-COLUMN($E249)),VLOOKUP($E249-24,AllData,COLUMN()-1-COLUMN($E249)),VLOOKUP($E249-25,AllData,COLUMN()-1-COLUMN($E249)),VLOOKUP($E249-26,AllData,COLUMN()-1-COLUMN($E249)),VLOOKUP($E249-27,AllData,COLUMN()-1-COLUMN($E249)),VLOOKUP($E249-28,AllData,COLUMN()-1-COLUMN($E249)),VLOOKUP($E249-29,AllData,COLUMN()-1-COLUMN($E249)))","v":{"$error":"#N/A"}},{"$f":"VLOOKUP($E249,AllData,COLUMN()-2-COLUMN($E249))","v":{"$error":"#N/A"}},{"$f":"OR('Cool Graph'!$H$1=35,'Cool Graph'!$H$1=36,'Cool Graph'!$H$1=37,'Cool Graph'!$H$1=38,'Cool Graph'!$H$1=39,'Cool Graph'!$H$1=40,'Cool Graph'!$H$1=41,'Cool Graph'!$H$1=42,'Cool Graph'!$H$1=43,'Cool Graph'!$H$1=44,'Cool Graph'!$H$1=45,'Cool Graph'!$H$1=46,'Cool Graph'!$H$1=47,'Cool Graph'!$H$1=58,'Cool Graph'!$H$1=66)","v":false},{"$f":"SUM(VLOOKUP($E249,AllData,COLUMN()-5-COLUMN($E249)),VLOOKUP($E249-1,AllData,COLUMN()-5-COLUMN($E249)),VLOOKUP($E249-2,AllData,COLUMN()-5-COLUMN($E249)),VLOOKUP($E249-3,AllData,COLUMN()-5-COLUMN($E249)),VLOOKUP($E249-4,AllData,COLUMN()-5-COLUMN($E249)),VLOOKUP($E249-5,AllData,COLUMN()-5-COLUMN($E249)),VLOOKUP($E249-6,AllData,COLUMN()-5-COLUMN($E249)))","v":{"$error":"#N/A"}},{"$f":"SUM(VLOOKUP($E249,AllData,COLUMN()-6-COLUMN($E249)),VLOOKUP($E249-1,AllData,COLUMN()-6-COLUMN($E249)),VLOOKUP($E249-2,AllData,COLUMN()-6-COLUMN($E249)),VLOOKUP($E249-3,AllData,COLUMN()-6-COLUMN($E249)),VLOOKUP($E249-4,AllData,COLUMN()-6-COLUMN($E249)),VLOOKUP($E249-5,AllData,COLUMN()-6-COLUMN($E249)),VLOOKUP($E249-6,AllData,COLUMN()-6-COLUMN($E249)),VLOOKUP($E249-7,AllData,COLUMN()-6-COLUMN($E249)),VLOOKUP($E249-8,AllData,COLUMN()-6-COLUMN($E249)),VLOOKUP($E249-9,AllData,COLUMN()-6-COLUMN($E249)),VLOOKUP($E249-10,AllData,COLUMN()-6-COLUMN($E249)),VLOOKUP($E249-11,AllData,COLUMN()-6-COLUMN($E249)),VLOOKUP($E249-12,AllData,COLUMN()-6-COLUMN($E249)),VLOOKUP($E249-13,AllData,COLUMN()-6-COLUMN($E249)),VLOOKUP($E249-14,AllData,COLUMN()-6-COLUMN($E249)),VLOOKUP($E249-15,AllData,COLUMN()-6-COLUMN($E249)),VLOOKUP($E249-16,AllData,COLUMN()-6-COLUMN($E249)),VLOOKUP($E249-17,AllData,COLUMN()-6-COLUMN($E249)),VLOOKUP($E249-18,AllData,COLUMN()-6-COLUMN($E249)),VLOOKUP($E249-19,AllData,COLUMN()-6-COLUMN($E249)),VLOOKUP($E249-20,AllData,COLUMN()-6-COLUMN($E249)),VLOOKUP($E249-21,AllData,COLUMN()-6-COLUMN($E249)),VLOOKUP($E249-22,AllData,COLUMN()-6-COLUMN($E249)),VLOOKUP($E249-23,AllData,COLUMN()-6-COLUMN($E249)),VLOOKUP($E249-24,AllData,COLUMN()-6-COLUMN($E249)),VLOOKUP($E249-25,AllData,COLUMN()-6-COLUMN($E249)),VLOOKUP($E249-26,AllData,COLUMN()-6-COLUMN($E249)),VLOOKUP($E249-27,AllData,COLUMN()-6-COLUMN($E249)),VLOOKUP($E249-28,AllData,COLUMN()-6-COLUMN($E249)),VLOOKUP($E249-29,AllData,COLUMN()-6-COLUMN($E249)))","v":{"$error":"#N/A"}},{"$f":"VLOOKUP($E249,AllData,COLUMN()-7-COLUMN($E249))","v":{"$error":"#N/A"}},{"$f":"OR('Cool Graph'!$I$1=35,'Cool Graph'!$I$1=36,'Cool Graph'!$I$1=37,'Cool Graph'!$I$1=38,'Cool Graph'!$I$1=39,'Cool Graph'!$I$1=40,'Cool Graph'!$I$1=41,'Cool Graph'!$I$1=42,'Cool Graph'!$I$1=43,'Cool Graph'!$I$1=44,'Cool Graph'!$I$1=45,'Cool Graph'!$I$1=46,'Cool Graph'!$I$1=47,'Cool Graph'!$I$1=58,'Cool Graph'!$I$1=66)","v":false}]
["2012-03-05",{"$f":"OFFSET(OldSchoolJustValues!A250,0,'Cool Graph'!$H$1)","v":44.82},{"$f":"OFFSET(OldSchoolJustValues!A250,0,'Cool Graph'!$I$1)","v":1582.5332306965888},null,{"$f":"IF(NewDate>EndDate,NA(),NewDate)","v":{"$error":"#N/A"}},{"$f":"IF($E250>EndDate,NA(),IF($K$2=TRUE,N250,IF('Cool Graph'!$B$17=1,N250,IF('Cool Graph'!$B$17=2,L250,IF('Cool Graph'!$B$17=3,M250,)))))","v":{"$error":"#N/A"}},{"$f":"IF($E250>EndDate,NA(),IF($O$2=TRUE,J250,IF('Cool Graph'!$B$17=1,Data1!J250,IF('Cool Graph'!$B$17=2,Data1!H250,IF('Cool Graph'!$B$17=3,Data1!I250,)))))","v":{"$error":"#N/A"}},{"$f":"SUM(VLOOKUP($E250,AllData,COLUMN()-COLUMN($E250)),VLOOKUP($E250-1,AllData,COLUMN()-COLUMN($E250)),VLOOKUP($E250-2,AllData,COLUMN()-COLUMN($E250)),VLOOKUP($E250-3,AllData,COLUMN()-COLUMN($E250)),VLOOKUP($E250-4,AllData,COLUMN()-COLUMN($E250)),VLOOKUP($E250-5,AllData,COLUMN()-COLUMN($E250)),VLOOKUP($E250-6,AllData,COLUMN()-COLUMN($E250)))","v":{"$error":"#N/A"}},{"$f":"SUM(VLOOKUP($E250,AllData,COLUMN()-1-COLUMN($E250)),VLOOKUP($E250-1,AllData,COLUMN()-1-COLUMN($E250)),VLOOKUP($E250-2,AllData,COLUMN()-1-COLUMN($E250)),VLOOKUP($E250-3,AllData,COLUMN()-1-COLUMN($E250)),VLOOKUP($E250-4,AllData,COLUMN()-1-COLUMN($E250)),VLOOKUP($E250-5,AllData,COLUMN()-1-COLUMN($E250)),VLOOKUP($E250-6,AllData,COLUMN()-1-COLUMN($E250)),VLOOKUP($E250-7,AllData,COLUMN()-1-COLUMN($E250)),VLOOKUP($E250-8,AllData,COLUMN()-1-COLUMN($E250)),VLOOKUP($E250-9,AllData,COLUMN()-1-COLUMN($E250)),VLOOKUP($E250-10,AllData,COLUMN()-1-COLUMN($E250)),VLOOKUP($E250-11,AllData,COLUMN()-1-COLUMN($E250)),VLOOKUP($E250-12,AllData,COLUMN()-1-COLUMN($E250)),VLOOKUP($E250-13,AllData,COLUMN()-1-COLUMN($E250)),VLOOKUP($E250-14,AllData,COLUMN()-1-COLUMN($E250)),VLOOKUP($E250-15,AllData,COLUMN()-1-COLUMN($E250)),VLOOKUP($E250-16,AllData,COLUMN()-1-COLUMN($E250)),VLOOKUP($E250-17,AllData,COLUMN()-1-COLUMN($E250)),VLOOKUP($E250-18,AllData,COLUMN()-1-COLUMN($E250)),VLOOKUP($E250-19,AllData,COLUMN()-1-COLUMN($E250)),VLOOKUP($E250-20,AllData,COLUMN()-1-COLUMN($E250)),VLOOKUP($E250-21,AllData,COLUMN()-1-COLUMN($E250)),VLOOKUP($E250-22,AllData,COLUMN()-1-COLUMN($E250)),VLOOKUP($E250-23,AllData,COLUMN()-1-COLUMN($E250)),VLOOKUP($E250-24,AllData,COLUMN()-1-COLUMN($E250)),VLOOKUP($E250-25,AllData,COLUMN()-1-COLUMN($E250)),VLOOKUP($E250-26,AllData,COLUMN()-1-COLUMN($E250)),VLOOKUP($E250-27,AllData,COLUMN()-1-COLUMN($E250)),VLOOKUP($E250-28,AllData,COLUMN()-1-COLUMN($E250)),VLOOKUP($E250-29,AllData,COLUMN()-1-COLUMN($E250)))","v":{"$error":"#N/A"}},{"$f":"VLOOKUP($E250,AllData,COLUMN()-2-COLUMN($E250))","v":{"$error":"#N/A"}},{"$f":"OR('Cool Graph'!$H$1=35,'Cool Graph'!$H$1=36,'Cool Graph'!$H$1=37,'Cool Graph'!$H$1=38,'Cool Graph'!$H$1=39,'Cool Graph'!$H$1=40,'Cool Graph'!$H$1=41,'Cool Graph'!$H$1=42,'Cool Graph'!$H$1=43,'Cool Graph'!$H$1=44,'Cool Graph'!$H$1=45,'Cool Graph'!$H$1=46,'Cool Graph'!$H$1=47,'Cool Graph'!$H$1=58,'Cool Graph'!$H$1=66)","v":false},{"$f":"SUM(VLOOKUP($E250,AllData,COLUMN()-5-COLUMN($E250)),VLOOKUP($E250-1,AllData,COLUMN()-5-COLUMN($E250)),VLOOKUP($E250-2,AllData,COLUMN()-5-COLUMN($E250)),VLOOKUP($E250-3,AllData,COLUMN()-5-COLUMN($E250)),VLOOKUP($E250-4,AllData,COLUMN()-5-COLUMN($E250)),VLOOKUP($E250-5,AllData,COLUMN()-5-COLUMN($E250)),VLOOKUP($E250-6,AllData,COLUMN()-5-COLUMN($E250)))","v":{"$error":"#N/A"}},{"$f":"SUM(VLOOKUP($E250,AllData,COLUMN()-6-COLUMN($E250)),VLOOKUP($E250-1,AllData,COLUMN()-6-COLUMN($E250)),VLOOKUP($E250-2,AllData,COLUMN()-6-COLUMN($E250)),VLOOKUP($E250-3,AllData,COLUMN()-6-COLUMN($E250)),VLOOKUP($E250-4,AllData,COLUMN()-6-COLUMN($E250)),VLOOKUP($E250-5,AllData,COLUMN()-6-COLUMN($E250)),VLOOKUP($E250-6,AllData,COLUMN()-6-COLUMN($E250)),VLOOKUP($E250-7,AllData,COLUMN()-6-COLUMN($E250)),VLOOKUP($E250-8,AllData,COLUMN()-6-COLUMN($E250)),VLOOKUP($E250-9,AllData,COLUMN()-6-COLUMN($E250)),VLOOKUP($E250-10,AllData,COLUMN()-6-COLUMN($E250)),VLOOKUP($E250-11,AllData,COLUMN()-6-COLUMN($E250)),VLOOKUP($E250-12,AllData,COLUMN()-6-COLUMN($E250)),VLOOKUP($E250-13,AllData,COLUMN()-6-COLUMN($E250)),VLOOKUP($E250-14,AllData,COLUMN()-6-COLUMN($E250)),VLOOKUP($E250-15,AllData,COLUMN()-6-COLUMN($E250)),VLOOKUP($E250-16,AllData,COLUMN()-6-COLUMN($E250)),VLOOKUP($E250-17,AllData,COLUMN()-6-COLUMN($E250)),VLOOKUP($E250-18,AllData,COLUMN()-6-COLUMN($E250)),VLOOKUP($E250-19,AllData,COLUMN()-6-COLUMN($E250)),VLOOKUP($E250-20,AllData,COLUMN()-6-COLUMN($E250)),VLOOKUP($E250-21,AllData,COLUMN()-6-COLUMN($E250)),VLOOKUP($E250-22,AllData,COLUMN()-6-COLUMN($E250)),VLOOKUP($E250-23,AllData,COLUMN()-6-COLUMN($E250)),VLOOKUP($E250-24,AllData,COLUMN()-6-COLUMN($E250)),VLOOKUP($E250-25,AllData,COLUMN()-6-COLUMN($E250)),VLOOKUP($E250-26,AllData,COLUMN()-6-COLUMN($E250)),VLOOKUP($E250-27,AllData,COLUMN()-6-COLUMN($E250)),VLOOKUP($E250-28,AllData,COLUMN()-6-COLUMN($E250)),VLOOKUP($E250-29,AllData,COLUMN()-6-COLUMN($E250)))","v":{"$error":"#N/A"}},{"$f":"VLOOKUP($E250,AllData,COLUMN()-7-COLUMN($E250))","v":{"$error":"#N/A"}},{"$f":"OR('Cool Graph'!$I$1=35,'Cool Graph'!$I$1=36,'Cool Graph'!$I$1=37,'Cool Graph'!$I$1=38,'Cool Graph'!$I$1=39,'Cool Graph'!$I$1=40,'Cool Graph'!$I$1=41,'Cool Graph'!$I$1=42,'Cool Graph'!$I$1=43,'Cool Graph'!$I$1=44,'Cool Graph'!$I$1=45,'Cool Graph'!$I$1=46,'Cool Graph'!$I$1=47,'Cool Graph'!$I$1=58,'Cool Graph'!$I$1=66)","v":false}]
["2012-03-06",{"$f":"OFFSET(OldSchoolJustValues!A251,0,'Cool Graph'!$H$1)","v":17.190000000000001},{"$f":"OFFSET(OldSchoolJustValues!A251,0,'Cool Graph'!$I$1)","v":467.04276864378409},null,{"$f":"IF(NewDate>EndDate,NA(),NewDate)","v":{"$error":"#N/A"}},{"$f":"IF($E251>EndDate,NA(),IF($K$2=TRUE,N251,IF('Cool Graph'!$B$17=1,N251,IF('Cool Graph'!$B$17=2,L251,IF('Cool Graph'!$B$17=3,M251,)))))","v":{"$error":"#N/A"}},{"$f":"IF($E251>EndDate,NA(),IF($O$2=TRUE,J251,IF('Cool Graph'!$B$17=1,Data1!J251,IF('Cool Graph'!$B$17=2,Data1!H251,IF('Cool Graph'!$B$17=3,Data1!I251,)))))","v":{"$error":"#N/A"}},{"$f":"SUM(VLOOKUP($E251,AllData,COLUMN()-COLUMN($E251)),VLOOKUP($E251-1,AllData,COLUMN()-COLUMN($E251)),VLOOKUP($E251-2,AllData,COLUMN()-COLUMN($E251)),VLOOKUP($E251-3,AllData,COLUMN()-COLUMN($E251)),VLOOKUP($E251-4,AllData,COLUMN()-COLUMN($E251)),VLOOKUP($E251-5,AllData,COLUMN()-COLUMN($E251)),VLOOKUP($E251-6,AllData,COLUMN()-COLUMN($E251)))","v":{"$error":"#N/A"}},{"$f":"SUM(VLOOKUP($E251,AllData,COLUMN()-1-COLUMN($E251)),VLOOKUP($E251-1,AllData,COLUMN()-1-COLUMN($E251)),VLOOKUP($E251-2,AllData,COLUMN()-1-COLUMN($E251)),VLOOKUP($E251-3,AllData,COLUMN()-1-COLUMN($E251)),VLOOKUP($E251-4,AllData,COLUMN()-1-COLUMN($E251)),VLOOKUP($E251-5,AllData,COLUMN()-1-COLUMN($E251)),VLOOKUP($E251-6,AllData,COLUMN()-1-COLUMN($E251)),VLOOKUP($E251-7,AllData,COLUMN()-1-COLUMN($E251)),VLOOKUP($E251-8,AllData,COLUMN()-1-COLUMN($E251)),VLOOKUP($E251-9,AllData,COLUMN()-1-COLUMN($E251)),VLOOKUP($E251-10,AllData,COLUMN()-1-COLUMN($E251)),VLOOKUP($E251-11,AllData,COLUMN()-1-COLUMN($E251)),VLOOKUP($E251-12,AllData,COLUMN()-1-COLUMN($E251)),VLOOKUP($E251-13,AllData,COLUMN()-1-COLUMN($E251)),VLOOKUP($E251-14,AllData,COLUMN()-1-COLUMN($E251)),VLOOKUP($E251-15,AllData,COLUMN()-1-COLUMN($E251)),VLOOKUP($E251-16,AllData,COLUMN()-1-COLUMN($E251)),VLOOKUP($E251-17,AllData,COLUMN()-1-COLUMN($E251)),VLOOKUP($E251-18,AllData,COLUMN()-1-COLUMN($E251)),VLOOKUP($E251-19,AllData,COLUMN()-1-COLUMN($E251)),VLOOKUP($E251-20,AllData,COLUMN()-1-COLUMN($E251)),VLOOKUP($E251-21,AllData,COLUMN()-1-COLUMN($E251)),VLOOKUP($E251-22,AllData,COLUMN()-1-COLUMN($E251)),VLOOKUP($E251-23,AllData,COLUMN()-1-COLUMN($E251)),VLOOKUP($E251-24,AllData,COLUMN()-1-COLUMN($E251)),VLOOKUP($E251-25,AllData,COLUMN()-1-COLUMN($E251)),VLOOKUP($E251-26,AllData,COLUMN()-1-COLUMN($E251)),VLOOKUP($E251-27,AllData,COLUMN()-1-COLUMN($E251)),VLOOKUP($E251-28,AllData,COLUMN()-1-COLUMN($E251)),VLOOKUP($E251-29,AllData,COLUMN()-1-COLUMN($E251)))","v":{"$error":"#N/A"}},{"$f":"VLOOKUP($E251,AllData,COLUMN()-2-COLUMN($E251))","v":{"$error":"#N/A"}},{"$f":"OR('Cool Graph'!$H$1=35,'Cool Graph'!$H$1=36,'Cool Graph'!$H$1=37,'Cool Graph'!$H$1=38,'Cool Graph'!$H$1=39,'Cool Graph'!$H$1=40,'Cool Graph'!$H$1=41,'Cool Graph'!$H$1=42,'Cool Graph'!$H$1=43,'Cool Graph'!$H$1=44,'Cool Graph'!$H$1=45,'Cool Graph'!$H$1=46,'Cool Graph'!$H$1=47,'Cool Graph'!$H$1=58,'Cool Graph'!$H$1=66)","v":false},{"$f":"SUM(VLOOKUP($E251,AllData,COLUMN()-5-COLUMN($E251)),VLOOKUP($E251-1,AllData,COLUMN()-5-COLUMN($E251)),VLOOKUP($E251-2,AllData,COLUMN()-5-COLUMN($E251)),VLOOKUP($E251-3,AllData,COLUMN()-5-COLUMN($E251)),VLOOKUP($E251-4,AllData,COLUMN()-5-COLUMN($E251)),VLOOKUP($E251-5,AllData,COLUMN()-5-COLUMN($E251)),VLOOKUP($E251-6,AllData,COLUMN()-5-COLUMN($E251)))","v":{"$error":"#N/A"}},{"$f":"SUM(VLOOKUP($E251,AllData,COLUMN()-6-COLUMN($E251)),VLOOKUP($E251-1,AllData,COLUMN()-6-COLUMN($E251)),VLOOKUP($E251-2,AllData,COLUMN()-6-COLUMN($E251)),VLOOKUP($E251-3,AllData,COLUMN()-6-COLUMN($E251)),VLOOKUP($E251-4,AllData,COLUMN()-6-COLUMN($E251)),VLOOKUP($E251-5,AllData,COLUMN()-6-COLUMN($E251)),VLOOKUP($E251-6,AllData,COLUMN()-6-COLUMN($E251)),VLOOKUP($E251-7,AllData,COLUMN()-6-COLUMN($E251)),VLOOKUP($E251-8,AllData,COLUMN()-6-COLUMN($E251)),VLOOKUP($E251-9,AllData,COLUMN()-6-COLUMN($E251)),VLOOKUP($E251-10,AllData,COLUMN()-6-COLUMN($E251)),VLOOKUP($E251-11,AllData,COLUMN()-6-COLUMN($E251)),VLOOKUP($E251-12,AllData,COLUMN()-6-COLUMN($E251)),VLOOKUP($E251-13,AllData,COLUMN()-6-COLUMN($E251)),VLOOKUP($E251-14,AllData,COLUMN()-6-COLUMN($E251)),VLOOKUP($E251-15,AllData,COLUMN()-6-COLUMN($E251)),VLOOKUP($E251-16,AllData,COLUMN()-6-COLUMN($E251)),VLOOKUP($E251-17,AllData,COLUMN()-6-COLUMN($E251)),VLOOKUP($E251-18,AllData,COLUMN()-6-COLUMN($E251)),VLOOKUP($E251-19,AllData,COLUMN()-6-COLUMN($E251)),VLOOKUP($E251-20,AllData,COLUMN()-6-COLUMN($E251)),VLOOKUP($E251-21,AllData,COLUMN()-6-COLUMN($E251)),VLOOKUP($E251-22,AllData,COLUMN()-6-COLUMN($E251)),VLOOKUP($E251-23,AllData,COLUMN()-6-COLUMN($E251)),VLOOKUP($E251-24,AllData,COLUMN()-6-COLUMN($E251)),VLOOKUP($E251-25,AllData,COLUMN()-6-COLUMN($E251)),VLOOKUP($E251-26,AllData,COLUMN()-6-COLUMN($E251)),VLOOKUP($E251-27,AllData,COLUMN()-6-COLUMN($E251)),VLOOKUP($E251-28,AllData,COLUMN()-6-COLUMN($E251)),VLOOKUP($E251-29,AllData,COLUMN()-6-COLUMN($E251)))","v":{"$error":"#N/A"}},{"$f":"VLOOKUP($E251,AllData,COLUMN()-7-COLUMN($E251))","v":{"$error":"#N/A"}},{"$f":"OR('Cool Graph'!$I$1=35,'Cool Graph'!$I$1=36,'Cool Graph'!$I$1=37,'Cool Graph'!$I$1=38,'Cool Graph'!$I$1=39,'Cool Graph'!$I$1=40,'Cool Graph'!$I$1=41,'Cool Graph'!$I$1=42,'Cool Graph'!$I$1=43,'Cool Graph'!$I$1=44,'Cool Graph'!$I$1=45,'Cool Graph'!$I$1=46,'Cool Graph'!$I$1=47,'Cool Graph'!$I$1=58,'Cool Graph'!$I$1=66)","v":false}]
["2012-03-07",{"$f":"OFFSET(OldSchoolJustValues!A252,0,'Cool Graph'!$H$1)","v":218.9},{"$f":"OFFSET(OldSchoolJustValues!A252,0,'Cool Graph'!$I$1)","v":970.18980321008723},null,{"$f":"IF(NewDate>EndDate,NA(),NewDate)","v":{"$error":"#N/A"}},{"$f":"IF($E252>EndDate,NA(),IF($K$2=TRUE,N252,IF('Cool Graph'!$B$17=1,N252,IF('Cool Graph'!$B$17=2,L252,IF('Cool Graph'!$B$17=3,M252,)))))","v":{"$error":"#N/A"}},{"$f":"IF($E252>EndDate,NA(),IF($O$2=TRUE,J252,IF('Cool Graph'!$B$17=1,Data1!J252,IF('Cool Graph'!$B$17=2,Data1!H252,IF('Cool Graph'!$B$17=3,Data1!I252,)))))","v":{"$error":"#N/A"}},{"$f":"SUM(VLOOKUP($E252,AllData,COLUMN()-COLUMN($E252)),VLOOKUP($E252-1,AllData,COLUMN()-COLUMN($E252)),VLOOKUP($E252-2,AllData,COLUMN()-COLUMN($E252)),VLOOKUP($E252-3,AllData,COLUMN()-COLUMN($E252)),VLOOKUP($E252-4,AllData,COLUMN()-COLUMN($E252)),VLOOKUP($E252-5,AllData,COLUMN()-COLUMN($E252)),VLOOKUP($E252-6,AllData,COLUMN()-COLUMN($E252)))","v":{"$error":"#N/A"}},{"$f":"SUM(VLOOKUP($E252,AllData,COLUMN()-1-COLUMN($E252)),VLOOKUP($E252-1,AllData,COLUMN()-1-COLUMN($E252)),VLOOKUP($E252-2,AllData,COLUMN()-1-COLUMN($E252)),VLOOKUP($E252-3,AllData,COLUMN()-1-COLUMN($E252)),VLOOKUP($E252-4,AllData,COLUMN()-1-COLUMN($E252)),VLOOKUP($E252-5,AllData,COLUMN()-1-COLUMN($E252)),VLOOKUP($E252-6,AllData,COLUMN()-1-COLUMN($E252)),VLOOKUP($E252-7,AllData,COLUMN()-1-COLUMN($E252)),VLOOKUP($E252-8,AllData,COLUMN()-1-COLUMN($E252)),VLOOKUP($E252-9,AllData,COLUMN()-1-COLUMN($E252)),VLOOKUP($E252-10,AllData,COLUMN()-1-COLUMN($E252)),VLOOKUP($E252-11,AllData,COLUMN()-1-COLUMN($E252)),VLOOKUP($E252-12,AllData,COLUMN()-1-COLUMN($E252)),VLOOKUP($E252-13,AllData,COLUMN()-1-COLUMN($E252)),VLOOKUP($E252-14,AllData,COLUMN()-1-COLUMN($E252)),VLOOKUP($E252-15,AllData,COLUMN()-1-COLUMN($E252)),VLOOKUP($E252-16,AllData,COLUMN()-1-COLUMN($E252)),VLOOKUP($E252-17,AllData,COLUMN()-1-COLUMN($E252)),VLOOKUP($E252-18,AllData,COLUMN()-1-COLUMN($E252)),VLOOKUP($E252-19,AllData,COLUMN()-1-COLUMN($E252)),VLOOKUP($E252-20,AllData,COLUMN()-1-COLUMN($E252)),VLOOKUP($E252-21,AllData,COLUMN()-1-COLUMN($E252)),VLOOKUP($E252-22,AllData,COLUMN()-1-COLUMN($E252)),VLOOKUP($E252-23,AllData,COLUMN()-1-COLUMN($E252)),VLOOKUP($E252-24,AllData,COLUMN()-1-COLUMN($E252)),VLOOKUP($E252-25,AllData,COLUMN()-1-COLUMN($E252)),VLOOKUP($E252-26,AllData,COLUMN()-1-COLUMN($E252)),VLOOKUP($E252-27,AllData,COLUMN()-1-COLUMN($E252)),VLOOKUP($E252-28,AllData,COLUMN()-1-COLUMN($E252)),VLOOKUP($E252-29,AllData,COLUMN()-1-COLUMN($E252)))","v":{"$error":"#N/A"}},{"$f":"VLOOKUP($E252,AllData,COLUMN()-2-COLUMN($E252))","v":{"$error":"#N/A"}},{"$f":"OR('Cool Graph'!$H$1=35,'Cool Graph'!$H$1=36,'Cool Graph'!$H$1=37,'Cool Graph'!$H$1=38,'Cool Graph'!$H$1=39,'Cool Graph'!$H$1=40,'Cool Graph'!$H$1=41,'Cool Graph'!$H$1=42,'Cool Graph'!$H$1=43,'Cool Graph'!$H$1=44,'Cool Graph'!$H$1=45,'Cool Graph'!$H$1=46,'Cool Graph'!$H$1=47,'Cool Graph'!$H$1=58,'Cool Graph'!$H$1=66)","v":false},{"$f":"SUM(VLOOKUP($E252,AllData,COLUMN()-5-COLUMN($E252)),VLOOKUP($E252-1,AllData,COLUMN()-5-COLUMN($E252)),VLOOKUP($E252-2,AllData,COLUMN()-5-COLUMN($E252)),VLOOKUP($E252-3,AllData,COLUMN()-5-COLUMN($E252)),VLOOKUP($E252-4,AllData,COLUMN()-5-COLUMN($E252)),VLOOKUP($E252-5,AllData,COLUMN()-5-COLUMN($E252)),VLOOKUP($E252-6,AllData,COLUMN()-5-COLUMN($E252)))","v":{"$error":"#N/A"}},{"$f":"SUM(VLOOKUP($E252,AllData,COLUMN()-6-COLUMN($E252)),VLOOKUP($E252-1,AllData,COLUMN()-6-COLUMN($E252)),VLOOKUP($E252-2,AllData,COLUMN()-6-COLUMN($E252)),VLOOKUP($E252-3,AllData,COLUMN()-6-COLUMN($E252)),VLOOKUP($E252-4,AllData,COLUMN()-6-COLUMN($E252)),VLOOKUP($E252-5,AllData,COLUMN()-6-COLUMN($E252)),VLOOKUP($E252-6,AllData,COLUMN()-6-COLUMN($E252)),VLOOKUP($E252-7,AllData,COLUMN()-6-COLUMN($E252)),VLOOKUP($E252-8,AllData,COLUMN()-6-COLUMN($E252)),VLOOKUP($E252-9,AllData,COLUMN()-6-COLUMN($E252)),VLOOKUP($E252-10,AllData,COLUMN()-6-COLUMN($E252)),VLOOKUP($E252-11,AllData,COLUMN()-6-COLUMN($E252)),VLOOKUP($E252-12,AllData,COLUMN()-6-COLUMN($E252)),VLOOKUP($E252-13,AllData,COLUMN()-6-COLUMN($E252)),VLOOKUP($E252-14,AllData,COLUMN()-6-COLUMN($E252)),VLOOKUP($E252-15,AllData,COLUMN()-6-COLUMN($E252)),VLOOKUP($E252-16,AllData,COLUMN()-6-COLUMN($E252)),VLOOKUP($E252-17,AllData,COLUMN()-6-COLUMN($E252)),VLOOKUP($E252-18,AllData,COLUMN()-6-COLUMN($E252)),VLOOKUP($E252-19,AllData,COLUMN()-6-COLUMN($E252)),VLOOKUP($E252-20,AllData,COLUMN()-6-COLUMN($E252)),VLOOKUP($E252-21,AllData,COLUMN()-6-COLUMN($E252)),VLOOKUP($E252-22,AllData,COLUMN()-6-COLUMN($E252)),VLOOKUP($E252-23,AllData,COLUMN()-6-COLUMN($E252)),VLOOKUP($E252-24,AllData,COLUMN()-6-COLUMN($E252)),VLOOKUP($E252-25,AllData,COLUMN()-6-COLUMN($E252)),VLOOKUP($E252-26,AllData,COLUMN()-6-COLUMN($E252)),VLOOKUP($E252-27,AllData,COLUMN()-6-COLUMN($E252)),VLOOKUP($E252-28,AllData,COLUMN()-6-COLUMN($E252)),VLOOKUP($E252-29,AllData,COLUMN()-6-COLUMN($E252)))","v":{"$error":"#N/A"}},{"$f":"VLOOKUP($E252,AllData,COLUMN()-7-COLUMN($E252))","v":{"$error":"#N/A"}},{"$f":"OR('Cool Graph'!$I$1=35,'Cool Graph'!$I$1=36,'Cool Graph'!$I$1=37,'Cool Graph'!$I$1=38,'Cool Graph'!$I$1=39,'Cool Graph'!$I$1=40,'Cool Graph'!$I$1=41,'Cool Graph'!$I$1=42,'Cool Graph'!$I$1=43,'Cool Graph'!$I$1=44,'Cool Graph'!$I$1=45,'Cool Graph'!$I$1=46,'Cool Graph'!$I$1=47,'Cool Graph'!$I$1=58,'Cool Graph'!$I$1=66)","v":false}]
["2012-03-08",{"$f":"OFFSET(OldSchoolJustValues!A253,0,'Cool Graph'!$H$1)","v":176.62},{"$f":"OFFSET(OldSchoolJustValues!A253,0,'Cool Graph'!$I$1)","v":635.61238443222737},null,{"$f":"IF(NewDate>EndDate,NA(),NewDate)","v":{"$error":"#N/A"}},{"$f":"IF($E253>EndDate,NA(),IF($K$2=TRUE,N253,IF('Cool Graph'!$B$17=1,N253,IF('Cool Graph'!$B$17=2,L253,IF('Cool Graph'!$B$17=3,M253,)))))","v":{"$error":"#N/A"}},{"$f":"IF($E253>EndDate,NA(),IF($O$2=TRUE,J253,IF('Cool Graph'!$B$17=1,Data1!J253,IF('Cool Graph'!$B$17=2,Data1!H253,IF('Cool Graph'!$B$17=3,Data1!I253,)))))","v":{"$error":"#N/A"}},{"$f":"SUM(VLOOKUP($E253,AllData,COLUMN()-COLUMN($E253)),VLOOKUP($E253-1,AllData,COLUMN()-COLUMN($E253)),VLOOKUP($E253-2,AllData,COLUMN()-COLUMN($E253)),VLOOKUP($E253-3,AllData,COLUMN()-COLUMN($E253)),VLOOKUP($E253-4,AllData,COLUMN()-COLUMN($E253)),VLOOKUP($E253-5,AllData,COLUMN()-COLUMN($E253)),VLOOKUP($E253-6,AllData,COLUMN()-COLUMN($E253)))","v":{"$error":"#N/A"}},{"$f":"SUM(VLOOKUP($E253,AllData,COLUMN()-1-COLUMN($E253)),VLOOKUP($E253-1,AllData,COLUMN()-1-COLUMN($E253)),VLOOKUP($E253-2,AllData,COLUMN()-1-COLUMN($E253)),VLOOKUP($E253-3,AllData,COLUMN()-1-COLUMN($E253)),VLOOKUP($E253-4,AllData,COLUMN()-1-COLUMN($E253)),VLOOKUP($E253-5,AllData,COLUMN()-1-COLUMN($E253)),VLOOKUP($E253-6,AllData,COLUMN()-1-COLUMN($E253)),VLOOKUP($E253-7,AllData,COLUMN()-1-COLUMN($E253)),VLOOKUP($E253-8,AllData,COLUMN()-1-COLUMN($E253)),VLOOKUP($E253-9,AllData,COLUMN()-1-COLUMN($E253)),VLOOKUP($E253-10,AllData,COLUMN()-1-COLUMN($E253)),VLOOKUP($E253-11,AllData,COLUMN()-1-COLUMN($E253)),VLOOKUP($E253-12,AllData,COLUMN()-1-COLUMN($E253)),VLOOKUP($E253-13,AllData,COLUMN()-1-COLUMN($E253)),VLOOKUP($E253-14,AllData,COLUMN()-1-COLUMN($E253)),VLOOKUP($E253-15,AllData,COLUMN()-1-COLUMN($E253)),VLOOKUP($E253-16,AllData,COLUMN()-1-COLUMN($E253)),VLOOKUP($E253-17,AllData,COLUMN()-1-COLUMN($E253)),VLOOKUP($E253-18,AllData,COLUMN()-1-COLUMN($E253)),VLOOKUP($E253-19,AllData,COLUMN()-1-COLUMN($E253)),VLOOKUP($E253-20,AllData,COLUMN()-1-COLUMN($E253)),VLOOKUP($E253-21,AllData,COLUMN()-1-COLUMN($E253)),VLOOKUP($E253-22,AllData,COLUMN()-1-COLUMN($E253)),VLOOKUP($E253-23,AllData,COLUMN()-1-COLUMN($E253)),VLOOKUP($E253-24,AllData,COLUMN()-1-COLUMN($E253)),VLOOKUP($E253-25,AllData,COLUMN()-1-COLUMN($E253)),VLOOKUP($E253-26,AllData,COLUMN()-1-COLUMN($E253)),VLOOKUP($E253-27,AllData,COLUMN()-1-COLUMN($E253)),VLOOKUP($E253-28,AllData,COLUMN()-1-COLUMN($E253)),VLOOKUP($E253-29,AllData,COLUMN()-1-COLUMN($E253)))","v":{"$error":"#N/A"}},{"$f":"VLOOKUP($E253,AllData,COLUMN()-2-COLUMN($E253))","v":{"$error":"#N/A"}},{"$f":"OR('Cool Graph'!$H$1=35,'Cool Graph'!$H$1=36,'Cool Graph'!$H$1=37,'Cool Graph'!$H$1=38,'Cool Graph'!$H$1=39,'Cool Graph'!$H$1=40,'Cool Graph'!$H$1=41,'Cool Graph'!$H$1=42,'Cool Graph'!$H$1=43,'Cool Graph'!$H$1=44,'Cool Graph'!$H$1=45,'Cool Graph'!$H$1=46,'Cool Graph'!$H$1=47,'Cool Graph'!$H$1=58,'Cool Graph'!$H$1=66)","v":false},{"$f":"SUM(VLOOKUP($E253,AllData,COLUMN()-5-COLUMN($E253)),VLOOKUP($E253-1,AllData,COLUMN()-5-COLUMN($E253)),VLOOKUP($E253-2,AllData,COLUMN()-5-COLUMN($E253)),VLOOKUP($E253-3,AllData,COLUMN()-5-COLUMN($E253)),VLOOKUP($E253-4,AllData,COLUMN()-5-COLUMN($E253)),VLOOKUP($E253-5,AllData,COLUMN()-5-COLUMN($E253)),VLOOKUP($E253-6,AllData,COLUMN()-5-COLUMN($E253)))","v":{"$error":"#N/A"}},{"$f":"SUM(VLOOKUP($E253,AllData,COLUMN()-6-COLUMN($E253)),VLOOKUP($E253-1,AllData,COLUMN()-6-COLUMN($E253)),VLOOKUP($E253-2,AllData,COLUMN()-6-COLUMN($E253)),VLOOKUP($E253-3,AllData,COLUMN()-6-COLUMN($E253)),VLOOKUP($E253-4,AllData,COLUMN()-6-COLUMN($E253)),VLOOKUP($E253-5,AllData,COLUMN()-6-COLUMN($E253)),VLOOKUP($E253-6,AllData,COLUMN()-6-COLUMN($E253)),VLOOKUP($E253-7,AllData,COLUMN()-6-COLUMN($E253)),VLOOKUP($E253-8,AllData,COLUMN()-6-COLUMN($E253)),VLOOKUP($E253-9,AllData,COLUMN()-6-COLUMN($E253)),VLOOKUP($E253-10,AllData,COLUMN()-6-COLUMN($E253)),VLOOKUP($E253-11,AllData,COLUMN()-6-COLUMN($E253)),VLOOKUP($E253-12,AllData,COLUMN()-6-COLUMN($E253)),VLOOKUP($E253-13,AllData,COLUMN()-6-COLUMN($E253)),VLOOKUP($E253-14,AllData,COLUMN()-6-COLUMN($E253)),VLOOKUP($E253-15,AllData,COLUMN()-6-COLUMN($E253)),VLOOKUP($E253-16,AllData,COLUMN()-6-COLUMN($E253)),VLOOKUP($E253-17,AllData,COLUMN()-6-COLUMN($E253)),VLOOKUP($E253-18,AllData,COLUMN()-6-COLUMN($E253)),VLOOKUP($E253-19,AllData,COLUMN()-6-COLUMN($E253)),VLOOKUP($E253-20,AllData,COLUMN()-6-COLUMN($E253)),VLOOKUP($E253-21,AllData,COLUMN()-6-COLUMN($E253)),VLOOKUP($E253-22,AllData,COLUMN()-6-COLUMN($E253)),VLOOKUP($E253-23,AllData,COLUMN()-6-COLUMN($E253)),VLOOKUP($E253-24,AllData,COLUMN()-6-COLUMN($E253)),VLOOKUP($E253-25,AllData,COLUMN()-6-COLUMN($E253)),VLOOKUP($E253-26,AllData,COLUMN()-6-COLUMN($E253)),VLOOKUP($E253-27,AllData,COLUMN()-6-COLUMN($E253)),VLOOKUP($E253-28,AllData,COLUMN()-6-COLUMN($E253)),VLOOKUP($E253-29,AllData,COLUMN()-6-COLUMN($E253)))","v":{"$error":"#N/A"}},{"$f":"VLOOKUP($E253,AllData,COLUMN()-7-COLUMN($E253))","v":{"$error":"#N/A"}},{"$f":"OR('Cool Graph'!$I$1=35,'Cool Graph'!$I$1=36,'Cool Graph'!$I$1=37,'Cool Graph'!$I$1=38,'Cool Graph'!$I$1=39,'Cool Graph'!$I$1=40,'Cool Graph'!$I$1=41,'Cool Graph'!$I$1=42,'Cool Graph'!$I$1=43,'Cool Graph'!$I$1=44,'Cool Graph'!$I$1=45,'Cool Graph'!$I$1=46,'Cool Graph'!$I$1=47,'Cool Graph'!$I$1=58,'Cool Graph'!$I$1=66)","v":false}]
["2012-03-09",{"$f":"OFFSET(OldSchoolJustValues!A254,0,'Cool Graph'!$H$1)","v":52.34},{"$f":"OFFSET(OldSchoolJustValues!A254,0,'Cool Graph'!$I$1)","v":790.00295361185488},null,{"$f":"IF(NewDate>EndDate,NA(),NewDate)","v":{"$error":"#N/A"}},{"$f":"IF($E254>EndDate,NA(),IF($K$2=TRUE,N254,IF('Cool Graph'!$B$17=1,N254,IF('Cool Graph'!$B$17=2,L254,IF('Cool Graph'!$B$17=3,M254,)))))","v":{"$error":"#N/A"}},{"$f":"IF($E254>EndDate,NA(),IF($O$2=TRUE,J254,IF('Cool Graph'!$B$17=1,Data1!J254,IF('Cool Graph'!$B$17=2,Data1!H254,IF('Cool Graph'!$B$17=3,Data1!I254,)))))","v":{"$error":"#N/A"}},{"$f":"SUM(VLOOKUP($E254,AllData,COLUMN()-COLUMN($E254)),VLOOKUP($E254-1,AllData,COLUMN()-COLUMN($E254)),VLOOKUP($E254-2,AllData,COLUMN()-COLUMN($E254)),VLOOKUP($E254-3,AllData,COLUMN()-COLUMN($E254)),VLOOKUP($E254-4,AllData,COLUMN()-COLUMN($E254)),VLOOKUP($E254-5,AllData,COLUMN()-COLUMN($E254)),VLOOKUP($E254-6,AllData,COLUMN()-COLUMN($E254)))","v":{"$error":"#N/A"}},{"$f":"SUM(VLOOKUP($E254,AllData,COLUMN()-1-COLUMN($E254)),VLOOKUP($E254-1,AllData,COLUMN()-1-COLUMN($E254)),VLOOKUP($E254-2,AllData,COLUMN()-1-COLUMN($E254)),VLOOKUP($E254-3,AllData,COLUMN()-1-COLUMN($E254)),VLOOKUP($E254-4,AllData,COLUMN()-1-COLUMN($E254)),VLOOKUP($E254-5,AllData,COLUMN()-1-COLUMN($E254)),VLOOKUP($E254-6,AllData,COLUMN()-1-COLUMN($E254)),VLOOKUP($E254-7,AllData,COLUMN()-1-COLUMN($E254)),VLOOKUP($E254-8,AllData,COLUMN()-1-COLUMN($E254)),VLOOKUP($E254-9,AllData,COLUMN()-1-COLUMN($E254)),VLOOKUP($E254-10,AllData,COLUMN()-1-COLUMN($E254)),VLOOKUP($E254-11,AllData,COLUMN()-1-COLUMN($E254)),VLOOKUP($E254-12,AllData,COLUMN()-1-COLUMN($E254)),VLOOKUP($E254-13,AllData,COLUMN()-1-COLUMN($E254)),VLOOKUP($E254-14,AllData,COLUMN()-1-COLUMN($E254)),VLOOKUP($E254-15,AllData,COLUMN()-1-COLUMN($E254)),VLOOKUP($E254-16,AllData,COLUMN()-1-COLUMN($E254)),VLOOKUP($E254-17,AllData,COLUMN()-1-COLUMN($E254)),VLOOKUP($E254-18,AllData,COLUMN()-1-COLUMN($E254)),VLOOKUP($E254-19,AllData,COLUMN()-1-COLUMN($E254)),VLOOKUP($E254-20,AllData,COLUMN()-1-COLUMN($E254)),VLOOKUP($E254-21,AllData,COLUMN()-1-COLUMN($E254)),VLOOKUP($E254-22,AllData,COLUMN()-1-COLUMN($E254)),VLOOKUP($E254-23,AllData,COLUMN()-1-COLUMN($E254)),VLOOKUP($E254-24,AllData,COLUMN()-1-COLUMN($E254)),VLOOKUP($E254-25,AllData,COLUMN()-1-COLUMN($E254)),VLOOKUP($E254-26,AllData,COLUMN()-1-COLUMN($E254)),VLOOKUP($E254-27,AllData,COLUMN()-1-COLUMN($E254)),VLOOKUP($E254-28,AllData,COLUMN()-1-COLUMN($E254)),VLOOKUP($E254-29,AllData,COLUMN()-1-COLUMN($E254)))","v":{"$error":"#N/A"}},{"$f":"VLOOKUP($E254,AllData,COLUMN()-2-COLUMN($E254))","v":{"$error":"#N/A"}},{"$f":"OR('Cool Graph'!$H$1=35,'Cool Graph'!$H$1=36,'Cool Graph'!$H$1=37,'Cool Graph'!$H$1=38,'Cool Graph'!$H$1=39,'Cool Graph'!$H$1=40,'Cool Graph'!$H$1=41,'Cool Graph'!$H$1=42,'Cool Graph'!$H$1=43,'Cool Graph'!$H$1=44,'Cool Graph'!$H$1=45,'Cool Graph'!$H$1=46,'Cool Graph'!$H$1=47,'Cool Graph'!$H$1=58,'Cool Graph'!$H$1=66)","v":false},{"$f":"SUM(VLOOKUP($E254,AllData,COLUMN()-5-COLUMN($E254)),VLOOKUP($E254-1,AllData,COLUMN()-5-COLUMN($E254)),VLOOKUP($E254-2,AllData,COLUMN()-5-COLUMN($E254)),VLOOKUP($E254-3,AllData,COLUMN()-5-COLUMN($E254)),VLOOKUP($E254-4,AllData,COLUMN()-5-COLUMN($E254)),VLOOKUP($E254-5,AllData,COLUMN()-5-COLUMN($E254)),VLOOKUP($E254-6,AllData,COLUMN()-5-COLUMN($E254)))","v":{"$error":"#N/A"}},{"$f":"SUM(VLOOKUP($E254,AllData,COLUMN()-6-COLUMN($E254)),VLOOKUP($E254-1,AllData,COLUMN()-6-COLUMN($E254)),VLOOKUP($E254-2,AllData,COLUMN()-6-COLUMN($E254)),VLOOKUP($E254-3,AllData,COLUMN()-6-COLUMN($E254)),VLOOKUP($E254-4,AllData,COLUMN()-6-COLUMN($E254)),VLOOKUP($E254-5,AllData,COLUMN()-6-COLUMN($E254)),VLOOKUP($E254-6,AllData,COLUMN()-6-COLUMN($E254)),VLOOKUP($E254-7,AllData,COLUMN()-6-COLUMN($E254)),VLOOKUP($E254-8,AllData,COLUMN()-6-COLUMN($E254)),VLOOKUP($E254-9,AllData,COLUMN()-6-COLUMN($E254)),VLOOKUP($E254-10,AllData,COLUMN()-6-COLUMN($E254)),VLOOKUP($E254-11,AllData,COLUMN()-6-COLUMN($E254)),VLOOKUP($E254-12,AllData,COLUMN()-6-COLUMN($E254)),VLOOKUP($E254-13,AllData,COLUMN()-6-COLUMN($E254)),VLOOKUP($E254-14,AllData,COLUMN()-6-COLUMN($E254)),VLOOKUP($E254-15,AllData,COLUMN()-6-COLUMN($E254)),VLOOKUP($E254-16,AllData,COLUMN()-6-COLUMN($E254)),VLOOKUP($E254-17,AllData,COLUMN()-6-COLUMN($E254)),VLOOKUP($E254-18,AllData,COLUMN()-6-COLUMN($E254)),VLOOKUP($E254-19,AllData,COLUMN()-6-COLUMN($E254)),VLOOKUP($E254-20,AllData,COLUMN()-6-COLUMN($E254)),VLOOKUP($E254-21,AllData,COLUMN()-6-COLUMN($E254)),VLOOKUP($E254-22,AllData,COLUMN()-6-COLUMN($E254)),VLOOKUP($E254-23,AllData,COLUMN()-6-COLUMN($E254)),VLOOKUP($E254-24,AllData,COLUMN()-6-COLUMN($E254)),VLOOKUP($E254-25,AllData,COLUMN()-6-COLUMN($E254)),VLOOKUP($E254-26,AllData,COLUMN()-6-COLUMN($E254)),VLOOKUP($E254-27,AllData,COLUMN()-6-COLUMN($E254)),VLOOKUP($E254-28,AllData,COLUMN()-6-COLUMN($E254)),VLOOKUP($E254-29,AllData,COLUMN()-6-COLUMN($E254)))","v":{"$error":"#N/A"}},{"$f":"VLOOKUP($E254,AllData,COLUMN()-7-COLUMN($E254))","v":{"$error":"#N/A"}},{"$f":"OR('Cool Graph'!$I$1=35,'Cool Graph'!$I$1=36,'Cool Graph'!$I$1=37,'Cool Graph'!$I$1=38,'Cool Graph'!$I$1=39,'Cool Graph'!$I$1=40,'Cool Graph'!$I$1=41,'Cool Graph'!$I$1=42,'Cool Graph'!$I$1=43,'Cool Graph'!$I$1=44,'Cool Graph'!$I$1=45,'Cool Graph'!$I$1=46,'Cool Graph'!$I$1=47,'Cool Graph'!$I$1=58,'Cool Graph'!$I$1=66)","v":false}]
["2012-03-10",{"$f":"OFFSET(OldSchoolJustValues!A255,0,'Cool Graph'!$H$1)","v":20.78},{"$f":"OFFSET(OldSchoolJustValues!A255,0,'Cool Graph'!$I$1)","v":647.42285520992232},null,{"$f":"IF(NewDate>EndDate,NA(),NewDate)","v":{"$error":"#N/A"}},{"$f":"IF($E255>EndDate,NA(),IF($K$2=TRUE,N255,IF('Cool Graph'!$B$17=1,N255,IF('Cool Graph'!$B$17=2,L255,IF('Cool Graph'!$B$17=3,M255,)))))","v":{"$error":"#N/A"}},{"$f":"IF($E255>EndDate,NA(),IF($O$2=TRUE,J255,IF('Cool Graph'!$B$17=1,Data1!J255,IF('Cool Graph'!$B$17=2,Data1!H255,IF('Cool Graph'!$B$17=3,Data1!I255,)))))","v":{"$error":"#N/A"}},{"$f":"SUM(VLOOKUP($E255,AllData,COLUMN()-COLUMN($E255)),VLOOKUP($E255-1,AllData,COLUMN()-COLUMN($E255)),VLOOKUP($E255-2,AllData,COLUMN()-COLUMN($E255)),VLOOKUP($E255-3,AllData,COLUMN()-COLUMN($E255)),VLOOKUP($E255-4,AllData,COLUMN()-COLUMN($E255)),VLOOKUP($E255-5,AllData,COLUMN()-COLUMN($E255)),VLOOKUP($E255-6,AllData,COLUMN()-COLUMN($E255)))","v":{"$error":"#N/A"}},{"$f":"SUM(VLOOKUP($E255,AllData,COLUMN()-1-COLUMN($E255)),VLOOKUP($E255-1,AllData,COLUMN()-1-COLUMN($E255)),VLOOKUP($E255-2,AllData,COLUMN()-1-COLUMN($E255)),VLOOKUP($E255-3,AllData,COLUMN()-1-COLUMN($E255)),VLOOKUP($E255-4,AllData,COLUMN()-1-COLUMN($E255)),VLOOKUP($E255-5,AllData,COLUMN()-1-COLUMN($E255)),VLOOKUP($E255-6,AllData,COLUMN()-1-COLUMN($E255)),VLOOKUP($E255-7,AllData,COLUMN()-1-COLUMN($E255)),VLOOKUP($E255-8,AllData,COLUMN()-1-COLUMN($E255)),VLOOKUP($E255-9,AllData,COLUMN()-1-COLUMN($E255)),VLOOKUP($E255-10,AllData,COLUMN()-1-COLUMN($E255)),VLOOKUP($E255-11,AllData,COLUMN()-1-COLUMN($E255)),VLOOKUP($E255-12,AllData,COLUMN()-1-COLUMN($E255)),VLOOKUP($E255-13,AllData,COLUMN()-1-COLUMN($E255)),VLOOKUP($E255-14,AllData,COLUMN()-1-COLUMN($E255)),VLOOKUP($E255-15,AllData,COLUMN()-1-COLUMN($E255)),VLOOKUP($E255-16,AllData,COLUMN()-1-COLUMN($E255)),VLOOKUP($E255-17,AllData,COLUMN()-1-COLUMN($E255)),VLOOKUP($E255-18,AllData,COLUMN()-1-COLUMN($E255)),VLOOKUP($E255-19,AllData,COLUMN()-1-COLUMN($E255)),VLOOKUP($E255-20,AllData,COLUMN()-1-COLUMN($E255)),VLOOKUP($E255-21,AllData,COLUMN()-1-COLUMN($E255)),VLOOKUP($E255-22,AllData,COLUMN()-1-COLUMN($E255)),VLOOKUP($E255-23,AllData,COLUMN()-1-COLUMN($E255)),VLOOKUP($E255-24,AllData,COLUMN()-1-COLUMN($E255)),VLOOKUP($E255-25,AllData,COLUMN()-1-COLUMN($E255)),VLOOKUP($E255-26,AllData,COLUMN()-1-COLUMN($E255)),VLOOKUP($E255-27,AllData,COLUMN()-1-COLUMN($E255)),VLOOKUP($E255-28,AllData,COLUMN()-1-COLUMN($E255)),VLOOKUP($E255-29,AllData,COLUMN()-1-COLUMN($E255)))","v":{"$error":"#N/A"}},{"$f":"VLOOKUP($E255,AllData,COLUMN()-2-COLUMN($E255))","v":{"$error":"#N/A"}},{"$f":"OR('Cool Graph'!$H$1=35,'Cool Graph'!$H$1=36,'Cool Graph'!$H$1=37,'Cool Graph'!$H$1=38,'Cool Graph'!$H$1=39,'Cool Graph'!$H$1=40,'Cool Graph'!$H$1=41,'Cool Graph'!$H$1=42,'Cool Graph'!$H$1=43,'Cool Graph'!$H$1=44,'Cool Graph'!$H$1=45,'Cool Graph'!$H$1=46,'Cool Graph'!$H$1=47,'Cool Graph'!$H$1=58,'Cool Graph'!$H$1=66)","v":false},{"$f":"SUM(VLOOKUP($E255,AllData,COLUMN()-5-COLUMN($E255)),VLOOKUP($E255-1,AllData,COLUMN()-5-COLUMN($E255)),VLOOKUP($E255-2,AllData,COLUMN()-5-COLUMN($E255)),VLOOKUP($E255-3,AllData,COLUMN()-5-COLUMN($E255)),VLOOKUP($E255-4,AllData,COLUMN()-5-COLUMN($E255)),VLOOKUP($E255-5,AllData,COLUMN()-5-COLUMN($E255)),VLOOKUP($E255-6,AllData,COLUMN()-5-COLUMN($E255)))","v":{"$error":"#N/A"}},{"$f":"SUM(VLOOKUP($E255,AllData,COLUMN()-6-COLUMN($E255)),VLOOKUP($E255-1,AllData,COLUMN()-6-COLUMN($E255)),VLOOKUP($E255-2,AllData,COLUMN()-6-COLUMN($E255)),VLOOKUP($E255-3,AllData,COLUMN()-6-COLUMN($E255)),VLOOKUP($E255-4,AllData,COLUMN()-6-COLUMN($E255)),VLOOKUP($E255-5,AllData,COLUMN()-6-COLUMN($E255)),VLOOKUP($E255-6,AllData,COLUMN()-6-COLUMN($E255)),VLOOKUP($E255-7,AllData,COLUMN()-6-COLUMN($E255)),VLOOKUP($E255-8,AllData,COLUMN()-6-COLUMN($E255)),VLOOKUP($E255-9,AllData,COLUMN()-6-COLUMN($E255)),VLOOKUP($E255-10,AllData,COLUMN()-6-COLUMN($E255)),VLOOKUP($E255-11,AllData,COLUMN()-6-COLUMN($E255)),VLOOKUP($E255-12,AllData,COLUMN()-6-COLUMN($E255)),VLOOKUP($E255-13,AllData,COLUMN()-6-COLUMN($E255)),VLOOKUP($E255-14,AllData,COLUMN()-6-COLUMN($E255)),VLOOKUP($E255-15,AllData,COLUMN()-6-COLUMN($E255)),VLOOKUP($E255-16,AllData,COLUMN()-6-COLUMN($E255)),VLOOKUP($E255-17,AllData,COLUMN()-6-COLUMN($E255)),VLOOKUP($E255-18,AllData,COLUMN()-6-COLUMN($E255)),VLOOKUP($E255-19,AllData,COLUMN()-6-COLUMN($E255)),VLOOKUP($E255-20,AllData,COLUMN()-6-COLUMN($E255)),VLOOKUP($E255-21,AllData,COLUMN()-6-COLUMN($E255)),VLOOKUP($E255-22,AllData,COLUMN()-6-COLUMN($E255)),VLOOKUP($E255-23,AllData,COLUMN()-6-COLUMN($E255)),VLOOKUP($E255-24,AllData,COLUMN()-6-COLUMN($E255)),VLOOKUP($E255-25,AllData,COLUMN()-6-COLUMN($E255)),VLOOKUP($E255-26,AllData,COLUMN()-6-COLUMN($E255)),VLOOKUP($E255-27,AllData,COLUMN()-6-COLUMN($E255)),VLOOKUP($E255-28,AllData,COLUMN()-6-COLUMN($E255)),VLOOKUP($E255-29,AllData,COLUMN()-6-COLUMN($E255)))","v":{"$error":"#N/A"}},{"$f":"VLOOKUP($E255,AllData,COLUMN()-7-COLUMN($E255))","v":{"$error":"#N/A"}},{"$f":"OR('Cool Graph'!$I$1=35,'Cool Graph'!$I$1=36,'Cool Graph'!$I$1=37,'Cool Graph'!$I$1=38,'Cool Graph'!$I$1=39,'Cool Graph'!$I$1=40,'Cool Graph'!$I$1=41,'Cool Graph'!$I$1=42,'Cool Graph'!$I$1=43,'Cool Graph'!$I$1=44,'Cool Graph'!$I$1=45,'Cool Graph'!$I$1=46,'Cool Graph'!$I$1=47,'Cool Graph'!$I$1=58,'Cool Graph'!$I$1=66)","v":false}]
["2012-03-11",{"$f":"OFFSET(OldSchoolJustValues!A256,0,'Cool Graph'!$H$1)","v":21.61},{"$f":"OFFSET(OldSchoolJustValues!A256,0,'Cool Graph'!$I$1)","v":445.25004507931033},null,{"$f":"IF(NewDate>EndDate,NA(),NewDate)","v":{"$error":"#N/A"}},{"$f":"IF($E256>EndDate,NA(),IF($K$2=TRUE,N256,IF('Cool Graph'!$B$17=1,N256,IF('Cool Graph'!$B$17=2,L256,IF('Cool Graph'!$B$17=3,M256,)))))","v":{"$error":"#N/A"}},{"$f":"IF($E256>EndDate,NA(),IF($O$2=TRUE,J256,IF('Cool Graph'!$B$17=1,Data1!J256,IF('Cool Graph'!$B$17=2,Data1!H256,IF('Cool Graph'!$B$17=3,Data1!I256,)))))","v":{"$error":"#N/A"}},{"$f":"SUM(VLOOKUP($E256,AllData,COLUMN()-COLUMN($E256)),VLOOKUP($E256-1,AllData,COLUMN()-COLUMN($E256)),VLOOKUP($E256-2,AllData,COLUMN()-COLUMN($E256)),VLOOKUP($E256-3,AllData,COLUMN()-COLUMN($E256)),VLOOKUP($E256-4,AllData,COLUMN()-COLUMN($E256)),VLOOKUP($E256-5,AllData,COLUMN()-COLUMN($E256)),VLOOKUP($E256-6,AllData,COLUMN()-COLUMN($E256)))","v":{"$error":"#N/A"}},{"$f":"SUM(VLOOKUP($E256,AllData,COLUMN()-1-COLUMN($E256)),VLOOKUP($E256-1,AllData,COLUMN()-1-COLUMN($E256)),VLOOKUP($E256-2,AllData,COLUMN()-1-COLUMN($E256)),VLOOKUP($E256-3,AllData,COLUMN()-1-COLUMN($E256)),VLOOKUP($E256-4,AllData,COLUMN()-1-COLUMN($E256)),VLOOKUP($E256-5,AllData,COLUMN()-1-COLUMN($E256)),VLOOKUP($E256-6,AllData,COLUMN()-1-COLUMN($E256)),VLOOKUP($E256-7,AllData,COLUMN()-1-COLUMN($E256)),VLOOKUP($E256-8,AllData,COLUMN()-1-COLUMN($E256)),VLOOKUP($E256-9,AllData,COLUMN()-1-COLUMN($E256)),VLOOKUP($E256-10,AllData,COLUMN()-1-COLUMN($E256)),VLOOKUP($E256-11,AllData,COLUMN()-1-COLUMN($E256)),VLOOKUP($E256-12,AllData,COLUMN()-1-COLUMN($E256)),VLOOKUP($E256-13,AllData,COLUMN()-1-COLUMN($E256)),VLOOKUP($E256-14,AllData,COLUMN()-1-COLUMN($E256)),VLOOKUP($E256-15,AllData,COLUMN()-1-COLUMN($E256)),VLOOKUP($E256-16,AllData,COLUMN()-1-COLUMN($E256)),VLOOKUP($E256-17,AllData,COLUMN()-1-COLUMN($E256)),VLOOKUP($E256-18,AllData,COLUMN()-1-COLUMN($E256)),VLOOKUP($E256-19,AllData,COLUMN()-1-COLUMN($E256)),VLOOKUP($E256-20,AllData,COLUMN()-1-COLUMN($E256)),VLOOKUP($E256-21,AllData,COLUMN()-1-COLUMN($E256)),VLOOKUP($E256-22,AllData,COLUMN()-1-COLUMN($E256)),VLOOKUP($E256-23,AllData,COLUMN()-1-COLUMN($E256)),VLOOKUP($E256-24,AllData,COLUMN()-1-COLUMN($E256)),VLOOKUP($E256-25,AllData,COLUMN()-1-COLUMN($E256)),VLOOKUP($E256-26,AllData,COLUMN()-1-COLUMN($E256)),VLOOKUP($E256-27,AllData,COLUMN()-1-COLUMN($E256)),VLOOKUP($E256-28,AllData,COLUMN()-1-COLUMN($E256)),VLOOKUP($E256-29,AllData,COLUMN()-1-COLUMN($E256)))","v":{"$error":"#N/A"}},{"$f":"VLOOKUP($E256,AllData,COLUMN()-2-COLUMN($E256))","v":{"$error":"#N/A"}},{"$f":"OR('Cool Graph'!$H$1=35,'Cool Graph'!$H$1=36,'Cool Graph'!$H$1=37,'Cool Graph'!$H$1=38,'Cool Graph'!$H$1=39,'Cool Graph'!$H$1=40,'Cool Graph'!$H$1=41,'Cool Graph'!$H$1=42,'Cool Graph'!$H$1=43,'Cool Graph'!$H$1=44,'Cool Graph'!$H$1=45,'Cool Graph'!$H$1=46,'Cool Graph'!$H$1=47,'Cool Graph'!$H$1=58,'Cool Graph'!$H$1=66)","v":false},{"$f":"SUM(VLOOKUP($E256,AllData,COLUMN()-5-COLUMN($E256)),VLOOKUP($E256-1,AllData,COLUMN()-5-COLUMN($E256)),VLOOKUP($E256-2,AllData,COLUMN()-5-COLUMN($E256)),VLOOKUP($E256-3,AllData,COLUMN()-5-COLUMN($E256)),VLOOKUP($E256-4,AllData,COLUMN()-5-COLUMN($E256)),VLOOKUP($E256-5,AllData,COLUMN()-5-COLUMN($E256)),VLOOKUP($E256-6,AllData,COLUMN()-5-COLUMN($E256)))","v":{"$error":"#N/A"}},{"$f":"SUM(VLOOKUP($E256,AllData,COLUMN()-6-COLUMN($E256)),VLOOKUP($E256-1,AllData,COLUMN()-6-COLUMN($E256)),VLOOKUP($E256-2,AllData,COLUMN()-6-COLUMN($E256)),VLOOKUP($E256-3,AllData,COLUMN()-6-COLUMN($E256)),VLOOKUP($E256-4,AllData,COLUMN()-6-COLUMN($E256)),VLOOKUP($E256-5,AllData,COLUMN()-6-COLUMN($E256)),VLOOKUP($E256-6,AllData,COLUMN()-6-COLUMN($E256)),VLOOKUP($E256-7,AllData,COLUMN()-6-COLUMN($E256)),VLOOKUP($E256-8,AllData,COLUMN()-6-COLUMN($E256)),VLOOKUP($E256-9,AllData,COLUMN()-6-COLUMN($E256)),VLOOKUP($E256-10,AllData,COLUMN()-6-COLUMN($E256)),VLOOKUP($E256-11,AllData,COLUMN()-6-COLUMN($E256)),VLOOKUP($E256-12,AllData,COLUMN()-6-COLUMN($E256)),VLOOKUP($E256-13,AllData,COLUMN()-6-COLUMN($E256)),VLOOKUP($E256-14,AllData,COLUMN()-6-COLUMN($E256)),VLOOKUP($E256-15,AllData,COLUMN()-6-COLUMN($E256)),VLOOKUP($E256-16,AllData,COLUMN()-6-COLUMN($E256)),VLOOKUP($E256-17,AllData,COLUMN()-6-COLUMN($E256)),VLOOKUP($E256-18,AllData,COLUMN()-6-COLUMN($E256)),VLOOKUP($E256-19,AllData,COLUMN()-6-COLUMN($E256)),VLOOKUP($E256-20,AllData,COLUMN()-6-COLUMN($E256)),VLOOKUP($E256-21,AllData,COLUMN()-6-COLUMN($E256)),VLOOKUP($E256-22,AllData,COLUMN()-6-COLUMN($E256)),VLOOKUP($E256-23,AllData,COLUMN()-6-COLUMN($E256)),VLOOKUP($E256-24,AllData,COLUMN()-6-COLUMN($E256)),VLOOKUP($E256-25,AllData,COLUMN()-6-COLUMN($E256)),VLOOKUP($E256-26,AllData,COLUMN()-6-COLUMN($E256)),VLOOKUP($E256-27,AllData,COLUMN()-6-COLUMN($E256)),VLOOKUP($E256-28,AllData,COLUMN()-6-COLUMN($E256)),VLOOKUP($E256-29,AllData,COLUMN()-6-COLUMN($E256)))","v":{"$error":"#N/A"}},{"$f":"VLOOKUP($E256,AllData,COLUMN()-7-COLUMN($E256))","v":{"$error":"#N/A"}},{"$f":"OR('Cool Graph'!$I$1=35,'Cool Graph'!$I$1=36,'Cool Graph'!$I$1=37,'Cool Graph'!$I$1=38,'Cool Graph'!$I$1=39,'Cool Graph'!$I$1=40,'Cool Graph'!$I$1=41,'Cool Graph'!$I$1=42,'Cool Graph'!$I$1=43,'Cool Graph'!$I$1=44,'Cool Graph'!$I$1=45,'Cool Graph'!$I$1=46,'Cool Graph'!$I$1=47,'Cool Graph'!$I$1=58,'Cool Graph'!$I$1=66)","v":false}]
["2012-03-12",{"$f":"OFFSET(OldSchoolJustValues!A257,0,'Cool Graph'!$H$1)","v":19.37},{"$f":"OFFSET(OldSchoolJustValues!A257,0,'Cool Graph'!$I$1)","v":717.84548526565686},null,{"$f":"IF(NewDate>EndDate,NA(),NewDate)","v":{"$error":"#N/A"}},{"$f":"IF($E257>EndDate,NA(),IF($K$2=TRUE,N257,IF('Cool Graph'!$B$17=1,N257,IF('Cool Graph'!$B$17=2,L257,IF('Cool Graph'!$B$17=3,M257,)))))","v":{"$error":"#N/A"}},{"$f":"IF($E257>EndDate,NA(),IF($O$2=TRUE,J257,IF('Cool Graph'!$B$17=1,Data1!J257,IF('Cool Graph'!$B$17=2,Data1!H257,IF('Cool Graph'!$B$17=3,Data1!I257,)))))","v":{"$error":"#N/A"}},{"$f":"SUM(VLOOKUP($E257,AllData,COLUMN()-COLUMN($E257)),VLOOKUP($E257-1,AllData,COLUMN()-COLUMN($E257)),VLOOKUP($E257-2,AllData,COLUMN()-COLUMN($E257)),VLOOKUP($E257-3,AllData,COLUMN()-COLUMN($E257)),VLOOKUP($E257-4,AllData,COLUMN()-COLUMN($E257)),VLOOKUP($E257-5,AllData,COLUMN()-COLUMN($E257)),VLOOKUP($E257-6,AllData,COLUMN()-COLUMN($E257)))","v":{"$error":"#N/A"}},{"$f":"SUM(VLOOKUP($E257,AllData,COLUMN()-1-COLUMN($E257)),VLOOKUP($E257-1,AllData,COLUMN()-1-COLUMN($E257)),VLOOKUP($E257-2,AllData,COLUMN()-1-COLUMN($E257)),VLOOKUP($E257-3,AllData,COLUMN()-1-COLUMN($E257)),VLOOKUP($E257-4,AllData,COLUMN()-1-COLUMN($E257)),VLOOKUP($E257-5,AllData,COLUMN()-1-COLUMN($E257)),VLOOKUP($E257-6,AllData,COLUMN()-1-COLUMN($E257)),VLOOKUP($E257-7,AllData,COLUMN()-1-COLUMN($E257)),VLOOKUP($E257-8,AllData,COLUMN()-1-COLUMN($E257)),VLOOKUP($E257-9,AllData,COLUMN()-1-COLUMN($E257)),VLOOKUP($E257-10,AllData,COLUMN()-1-COLUMN($E257)),VLOOKUP($E257-11,AllData,COLUMN()-1-COLUMN($E257)),VLOOKUP($E257-12,AllData,COLUMN()-1-COLUMN($E257)),VLOOKUP($E257-13,AllData,COLUMN()-1-COLUMN($E257)),VLOOKUP($E257-14,AllData,COLUMN()-1-COLUMN($E257)),VLOOKUP($E257-15,AllData,COLUMN()-1-COLUMN($E257)),VLOOKUP($E257-16,AllData,COLUMN()-1-COLUMN($E257)),VLOOKUP($E257-17,AllData,COLUMN()-1-COLUMN($E257)),VLOOKUP($E257-18,AllData,COLUMN()-1-COLUMN($E257)),VLOOKUP($E257-19,AllData,COLUMN()-1-COLUMN($E257)),VLOOKUP($E257-20,AllData,COLUMN()-1-COLUMN($E257)),VLOOKUP($E257-21,AllData,COLUMN()-1-COLUMN($E257)),VLOOKUP($E257-22,AllData,COLUMN()-1-COLUMN($E257)),VLOOKUP($E257-23,AllData,COLUMN()-1-COLUMN($E257)),VLOOKUP($E257-24,AllData,COLUMN()-1-COLUMN($E257)),VLOOKUP($E257-25,AllData,COLUMN()-1-COLUMN($E257)),VLOOKUP($E257-26,AllData,COLUMN()-1-COLUMN($E257)),VLOOKUP($E257-27,AllData,COLUMN()-1-COLUMN($E257)),VLOOKUP($E257-28,AllData,COLUMN()-1-COLUMN($E257)),VLOOKUP($E257-29,AllData,COLUMN()-1-COLUMN($E257)))","v":{"$error":"#N/A"}},{"$f":"VLOOKUP($E257,AllData,COLUMN()-2-COLUMN($E257))","v":{"$error":"#N/A"}},{"$f":"OR('Cool Graph'!$H$1=35,'Cool Graph'!$H$1=36,'Cool Graph'!$H$1=37,'Cool Graph'!$H$1=38,'Cool Graph'!$H$1=39,'Cool Graph'!$H$1=40,'Cool Graph'!$H$1=41,'Cool Graph'!$H$1=42,'Cool Graph'!$H$1=43,'Cool Graph'!$H$1=44,'Cool Graph'!$H$1=45,'Cool Graph'!$H$1=46,'Cool Graph'!$H$1=47,'Cool Graph'!$H$1=58,'Cool Graph'!$H$1=66)","v":false},{"$f":"SUM(VLOOKUP($E257,AllData,COLUMN()-5-COLUMN($E257)),VLOOKUP($E257-1,AllData,COLUMN()-5-COLUMN($E257)),VLOOKUP($E257-2,AllData,COLUMN()-5-COLUMN($E257)),VLOOKUP($E257-3,AllData,COLUMN()-5-COLUMN($E257)),VLOOKUP($E257-4,AllData,COLUMN()-5-COLUMN($E257)),VLOOKUP($E257-5,AllData,COLUMN()-5-COLUMN($E257)),VLOOKUP($E257-6,AllData,COLUMN()-5-COLUMN($E257)))","v":{"$error":"#N/A"}},{"$f":"SUM(VLOOKUP($E257,AllData,COLUMN()-6-COLUMN($E257)),VLOOKUP($E257-1,AllData,COLUMN()-6-COLUMN($E257)),VLOOKUP($E257-2,AllData,COLUMN()-6-COLUMN($E257)),VLOOKUP($E257-3,AllData,COLUMN()-6-COLUMN($E257)),VLOOKUP($E257-4,AllData,COLUMN()-6-COLUMN($E257)),VLOOKUP($E257-5,AllData,COLUMN()-6-COLUMN($E257)),VLOOKUP($E257-6,AllData,COLUMN()-6-COLUMN($E257)),VLOOKUP($E257-7,AllData,COLUMN()-6-COLUMN($E257)),VLOOKUP($E257-8,AllData,COLUMN()-6-COLUMN($E257)),VLOOKUP($E257-9,AllData,COLUMN()-6-COLUMN($E257)),VLOOKUP($E257-10,AllData,COLUMN()-6-COLUMN($E257)),VLOOKUP($E257-11,AllData,COLUMN()-6-COLUMN($E257)),VLOOKUP($E257-12,AllData,COLUMN()-6-COLUMN($E257)),VLOOKUP($E257-13,AllData,COLUMN()-6-COLUMN($E257)),VLOOKUP($E257-14,AllData,COLUMN()-6-COLUMN($E257)),VLOOKUP($E257-15,AllData,COLUMN()-6-COLUMN($E257)),VLOOKUP($E257-16,AllData,COLUMN()-6-COLUMN($E257)),VLOOKUP($E257-17,AllData,COLUMN()-6-COLUMN($E257)),VLOOKUP($E257-18,AllData,COLUMN()-6-COLUMN($E257)),VLOOKUP($E257-19,AllData,COLUMN()-6-COLUMN($E257)),VLOOKUP($E257-20,AllData,COLUMN()-6-COLUMN($E257)),VLOOKUP($E257-21,AllData,COLUMN()-6-COLUMN($E257)),VLOOKUP($E257-22,AllData,COLUMN()-6-COLUMN($E257)),VLOOKUP($E257-23,AllData,COLUMN()-6-COLUMN($E257)),VLOOKUP($E257-24,AllData,COLUMN()-6-COLUMN($E257)),VLOOKUP($E257-25,AllData,COLUMN()-6-COLUMN($E257)),VLOOKUP($E257-26,AllData,COLUMN()-6-COLUMN($E257)),VLOOKUP($E257-27,AllData,COLUMN()-6-COLUMN($E257)),VLOOKUP($E257-28,AllData,COLUMN()-6-COLUMN($E257)),VLOOKUP($E257-29,AllData,COLUMN()-6-COLUMN($E257)))","v":{"$error":"#N/A"}},{"$f":"VLOOKUP($E257,AllData,COLUMN()-7-COLUMN($E257))","v":{"$error":"#N/A"}},{"$f":"OR('Cool Graph'!$I$1=35,'Cool Graph'!$I$1=36,'Cool Graph'!$I$1=37,'Cool Graph'!$I$1=38,'Cool Graph'!$I$1=39,'Cool Graph'!$I$1=40,'Cool Graph'!$I$1=41,'Cool Graph'!$I$1=42,'Cool Graph'!$I$1=43,'Cool Graph'!$I$1=44,'Cool Graph'!$I$1=45,'Cool Graph'!$I$1=46,'Cool Graph'!$I$1=47,'Cool Graph'!$I$1=58,'Cool Graph'!$I$1=66)","v":false}]
["2012-03-13",{"$f":"OFFSET(OldSchoolJustValues!A258,0,'Cool Graph'!$H$1)","v":26.23},{"$f":"OFFSET(OldSchoolJustValues!A258,0,'Cool Graph'!$I$1)","v":1108.1763728867752},null,{"$f":"IF(NewDate>EndDate,NA(),NewDate)","v":{"$error":"#N/A"}},{"$f":"IF($E258>EndDate,NA(),IF($K$2=TRUE,N258,IF('Cool Graph'!$B$17=1,N258,IF('Cool Graph'!$B$17=2,L258,IF('Cool Graph'!$B$17=3,M258,)))))","v":{"$error":"#N/A"}},{"$f":"IF($E258>EndDate,NA(),IF($O$2=TRUE,J258,IF('Cool Graph'!$B$17=1,Data1!J258,IF('Cool Graph'!$B$17=2,Data1!H258,IF('Cool Graph'!$B$17=3,Data1!I258,)))))","v":{"$error":"#N/A"}},{"$f":"SUM(VLOOKUP($E258,AllData,COLUMN()-COLUMN($E258)),VLOOKUP($E258-1,AllData,COLUMN()-COLUMN($E258)),VLOOKUP($E258-2,AllData,COLUMN()-COLUMN($E258)),VLOOKUP($E258-3,AllData,COLUMN()-COLUMN($E258)),VLOOKUP($E258-4,AllData,COLUMN()-COLUMN($E258)),VLOOKUP($E258-5,AllData,COLUMN()-COLUMN($E258)),VLOOKUP($E258-6,AllData,COLUMN()-COLUMN($E258)))","v":{"$error":"#N/A"}},{"$f":"SUM(VLOOKUP($E258,AllData,COLUMN()-1-COLUMN($E258)),VLOOKUP($E258-1,AllData,COLUMN()-1-COLUMN($E258)),VLOOKUP($E258-2,AllData,COLUMN()-1-COLUMN($E258)),VLOOKUP($E258-3,AllData,COLUMN()-1-COLUMN($E258)),VLOOKUP($E258-4,AllData,COLUMN()-1-COLUMN($E258)),VLOOKUP($E258-5,AllData,COLUMN()-1-COLUMN($E258)),VLOOKUP($E258-6,AllData,COLUMN()-1-COLUMN($E258)),VLOOKUP($E258-7,AllData,COLUMN()-1-COLUMN($E258)),VLOOKUP($E258-8,AllData,COLUMN()-1-COLUMN($E258)),VLOOKUP($E258-9,AllData,COLUMN()-1-COLUMN($E258)),VLOOKUP($E258-10,AllData,COLUMN()-1-COLUMN($E258)),VLOOKUP($E258-11,AllData,COLUMN()-1-COLUMN($E258)),VLOOKUP($E258-12,AllData,COLUMN()-1-COLUMN($E258)),VLOOKUP($E258-13,AllData,COLUMN()-1-COLUMN($E258)),VLOOKUP($E258-14,AllData,COLUMN()-1-COLUMN($E258)),VLOOKUP($E258-15,AllData,COLUMN()-1-COLUMN($E258)),VLOOKUP($E258-16,AllData,COLUMN()-1-COLUMN($E258)),VLOOKUP($E258-17,AllData,COLUMN()-1-COLUMN($E258)),VLOOKUP($E258-18,AllData,COLUMN()-1-COLUMN($E258)),VLOOKUP($E258-19,AllData,COLUMN()-1-COLUMN($E258)),VLOOKUP($E258-20,AllData,COLUMN()-1-COLUMN($E258)),VLOOKUP($E258-21,AllData,COLUMN()-1-COLUMN($E258)),VLOOKUP($E258-22,AllData,COLUMN()-1-COLUMN($E258)),VLOOKUP($E258-23,AllData,COLUMN()-1-COLUMN($E258)),VLOOKUP($E258-24,AllData,COLUMN()-1-COLUMN($E258)),VLOOKUP($E258-25,AllData,COLUMN()-1-COLUMN($E258)),VLOOKUP($E258-26,AllData,COLUMN()-1-COLUMN($E258)),VLOOKUP($E258-27,AllData,COLUMN()-1-COLUMN($E258)),VLOOKUP($E258-28,AllData,COLUMN()-1-COLUMN($E258)),VLOOKUP($E258-29,AllData,COLUMN()-1-COLUMN($E258)))","v":{"$error":"#N/A"}},{"$f":"VLOOKUP($E258,AllData,COLUMN()-2-COLUMN($E258))","v":{"$error":"#N/A"}},{"$f":"OR('Cool Graph'!$H$1=35,'Cool Graph'!$H$1=36,'Cool Graph'!$H$1=37,'Cool Graph'!$H$1=38,'Cool Graph'!$H$1=39,'Cool Graph'!$H$1=40,'Cool Graph'!$H$1=41,'Cool Graph'!$H$1=42,'Cool Graph'!$H$1=43,'Cool Graph'!$H$1=44,'Cool Graph'!$H$1=45,'Cool Graph'!$H$1=46,'Cool Graph'!$H$1=47,'Cool Graph'!$H$1=58,'Cool Graph'!$H$1=66)","v":false},{"$f":"SUM(VLOOKUP($E258,AllData,COLUMN()-5-COLUMN($E258)),VLOOKUP($E258-1,AllData,COLUMN()-5-COLUMN($E258)),VLOOKUP($E258-2,AllData,COLUMN()-5-COLUMN($E258)),VLOOKUP($E258-3,AllData,COLUMN()-5-COLUMN($E258)),VLOOKUP($E258-4,AllData,COLUMN()-5-COLUMN($E258)),VLOOKUP($E258-5,AllData,COLUMN()-5-COLUMN($E258)),VLOOKUP($E258-6,AllData,COLUMN()-5-COLUMN($E258)))","v":{"$error":"#N/A"}},{"$f":"SUM(VLOOKUP($E258,AllData,COLUMN()-6-COLUMN($E258)),VLOOKUP($E258-1,AllData,COLUMN()-6-COLUMN($E258)),VLOOKUP($E258-2,AllData,COLUMN()-6-COLUMN($E258)),VLOOKUP($E258-3,AllData,COLUMN()-6-COLUMN($E258)),VLOOKUP($E258-4,AllData,COLUMN()-6-COLUMN($E258)),VLOOKUP($E258-5,AllData,COLUMN()-6-COLUMN($E258)),VLOOKUP($E258-6,AllData,COLUMN()-6-COLUMN($E258)),VLOOKUP($E258-7,AllData,COLUMN()-6-COLUMN($E258)),VLOOKUP($E258-8,AllData,COLUMN()-6-COLUMN($E258)),VLOOKUP($E258-9,AllData,COLUMN()-6-COLUMN($E258)),VLOOKUP($E258-10,AllData,COLUMN()-6-COLUMN($E258)),VLOOKUP($E258-11,AllData,COLUMN()-6-COLUMN($E258)),VLOOKUP($E258-12,AllData,COLUMN()-6-COLUMN($E258)),VLOOKUP($E258-13,AllData,COLUMN()-6-COLUMN($E258)),VLOOKUP($E258-14,AllData,COLUMN()-6-COLUMN($E258)),VLOOKUP($E258-15,AllData,COLUMN()-6-COLUMN($E258)),VLOOKUP($E258-16,AllData,COLUMN()-6-COLUMN($E258)),VLOOKUP($E258-17,AllData,COLUMN()-6-COLUMN($E258)),VLOOKUP($E258-18,AllData,COLUMN()-6-COLUMN($E258)),VLOOKUP($E258-19,AllData,COLUMN()-6-COLUMN($E258)),VLOOKUP($E258-20,AllData,COLUMN()-6-COLUMN($E258)),VLOOKUP($E258-21,AllData,COLUMN()-6-COLUMN($E258)),VLOOKUP($E258-22,AllData,COLUMN()-6-COLUMN($E258)),VLOOKUP($E258-23,AllData,COLUMN()-6-COLUMN($E258)),VLOOKUP($E258-24,AllData,COLUMN()-6-COLUMN($E258)),VLOOKUP($E258-25,AllData,COLUMN()-6-COLUMN($E258)),VLOOKUP($E258-26,AllData,COLUMN()-6-COLUMN($E258)),VLOOKUP($E258-27,AllData,COLUMN()-6-COLUMN($E258)),VLOOKUP($E258-28,AllData,COLUMN()-6-COLUMN($E258)),VLOOKUP($E258-29,AllData,COLUMN()-6-COLUMN($E258)))","v":{"$error":"#N/A"}},{"$f":"VLOOKUP($E258,AllData,COLUMN()-7-COLUMN($E258))","v":{"$error":"#N/A"}},{"$f":"OR('Cool Graph'!$I$1=35,'Cool Graph'!$I$1=36,'Cool Graph'!$I$1=37,'Cool Graph'!$I$1=38,'Cool Graph'!$I$1=39,'Cool Graph'!$I$1=40,'Cool Graph'!$I$1=41,'Cool Graph'!$I$1=42,'Cool Graph'!$I$1=43,'Cool Graph'!$I$1=44,'Cool Graph'!$I$1=45,'Cool Graph'!$I$1=46,'Cool Graph'!$I$1=47,'Cool Graph'!$I$1=58,'Cool Graph'!$I$1=66)","v":false}]
["2012-03-14",{"$f":"OFFSET(OldSchoolJustValues!A259,0,'Cool Graph'!$H$1)","v":10.36},{"$f":"OFFSET(OldSchoolJustValues!A259,0,'Cool Graph'!$I$1)","v":395.19052345693774},null,{"$f":"IF(NewDate>EndDate,NA(),NewDate)","v":{"$error":"#N/A"}},{"$f":"IF($E259>EndDate,NA(),IF($K$2=TRUE,N259,IF('Cool Graph'!$B$17=1,N259,IF('Cool Graph'!$B$17=2,L259,IF('Cool Graph'!$B$17=3,M259,)))))","v":{"$error":"#N/A"}},{"$f":"IF($E259>EndDate,NA(),IF($O$2=TRUE,J259,IF('Cool Graph'!$B$17=1,Data1!J259,IF('Cool Graph'!$B$17=2,Data1!H259,IF('Cool Graph'!$B$17=3,Data1!I259,)))))","v":{"$error":"#N/A"}},{"$f":"SUM(VLOOKUP($E259,AllData,COLUMN()-COLUMN($E259)),VLOOKUP($E259-1,AllData,COLUMN()-COLUMN($E259)),VLOOKUP($E259-2,AllData,COLUMN()-COLUMN($E259)),VLOOKUP($E259-3,AllData,COLUMN()-COLUMN($E259)),VLOOKUP($E259-4,AllData,COLUMN()-COLUMN($E259)),VLOOKUP($E259-5,AllData,COLUMN()-COLUMN($E259)),VLOOKUP($E259-6,AllData,COLUMN()-COLUMN($E259)))","v":{"$error":"#N/A"}},{"$f":"SUM(VLOOKUP($E259,AllData,COLUMN()-1-COLUMN($E259)),VLOOKUP($E259-1,AllData,COLUMN()-1-COLUMN($E259)),VLOOKUP($E259-2,AllData,COLUMN()-1-COLUMN($E259)),VLOOKUP($E259-3,AllData,COLUMN()-1-COLUMN($E259)),VLOOKUP($E259-4,AllData,COLUMN()-1-COLUMN($E259)),VLOOKUP($E259-5,AllData,COLUMN()-1-COLUMN($E259)),VLOOKUP($E259-6,AllData,COLUMN()-1-COLUMN($E259)),VLOOKUP($E259-7,AllData,COLUMN()-1-COLUMN($E259)),VLOOKUP($E259-8,AllData,COLUMN()-1-COLUMN($E259)),VLOOKUP($E259-9,AllData,COLUMN()-1-COLUMN($E259)),VLOOKUP($E259-10,AllData,COLUMN()-1-COLUMN($E259)),VLOOKUP($E259-11,AllData,COLUMN()-1-COLUMN($E259)),VLOOKUP($E259-12,AllData,COLUMN()-1-COLUMN($E259)),VLOOKUP($E259-13,AllData,COLUMN()-1-COLUMN($E259)),VLOOKUP($E259-14,AllData,COLUMN()-1-COLUMN($E259)),VLOOKUP($E259-15,AllData,COLUMN()-1-COLUMN($E259)),VLOOKUP($E259-16,AllData,COLUMN()-1-COLUMN($E259)),VLOOKUP($E259-17,AllData,COLUMN()-1-COLUMN($E259)),VLOOKUP($E259-18,AllData,COLUMN()-1-COLUMN($E259)),VLOOKUP($E259-19,AllData,COLUMN()-1-COLUMN($E259)),VLOOKUP($E259-20,AllData,COLUMN()-1-COLUMN($E259)),VLOOKUP($E259-21,AllData,COLUMN()-1-COLUMN($E259)),VLOOKUP($E259-22,AllData,COLUMN()-1-COLUMN($E259)),VLOOKUP($E259-23,AllData,COLUMN()-1-COLUMN($E259)),VLOOKUP($E259-24,AllData,COLUMN()-1-COLUMN($E259)),VLOOKUP($E259-25,AllData,COLUMN()-1-COLUMN($E259)),VLOOKUP($E259-26,AllData,COLUMN()-1-COLUMN($E259)),VLOOKUP($E259-27,AllData,COLUMN()-1-COLUMN($E259)),VLOOKUP($E259-28,AllData,COLUMN()-1-COLUMN($E259)),VLOOKUP($E259-29,AllData,COLUMN()-1-COLUMN($E259)))","v":{"$error":"#N/A"}},{"$f":"VLOOKUP($E259,AllData,COLUMN()-2-COLUMN($E259))","v":{"$error":"#N/A"}},{"$f":"OR('Cool Graph'!$H$1=35,'Cool Graph'!$H$1=36,'Cool Graph'!$H$1=37,'Cool Graph'!$H$1=38,'Cool Graph'!$H$1=39,'Cool Graph'!$H$1=40,'Cool Graph'!$H$1=41,'Cool Graph'!$H$1=42,'Cool Graph'!$H$1=43,'Cool Graph'!$H$1=44,'Cool Graph'!$H$1=45,'Cool Graph'!$H$1=46,'Cool Graph'!$H$1=47,'Cool Graph'!$H$1=58,'Cool Graph'!$H$1=66)","v":false},{"$f":"SUM(VLOOKUP($E259,AllData,COLUMN()-5-COLUMN($E259)),VLOOKUP($E259-1,AllData,COLUMN()-5-COLUMN($E259)),VLOOKUP($E259-2,AllData,COLUMN()-5-COLUMN($E259)),VLOOKUP($E259-3,AllData,COLUMN()-5-COLUMN($E259)),VLOOKUP($E259-4,AllData,COLUMN()-5-COLUMN($E259)),VLOOKUP($E259-5,AllData,COLUMN()-5-COLUMN($E259)),VLOOKUP($E259-6,AllData,COLUMN()-5-COLUMN($E259)))","v":{"$error":"#N/A"}},{"$f":"SUM(VLOOKUP($E259,AllData,COLUMN()-6-COLUMN($E259)),VLOOKUP($E259-1,AllData,COLUMN()-6-COLUMN($E259)),VLOOKUP($E259-2,AllData,COLUMN()-6-COLUMN($E259)),VLOOKUP($E259-3,AllData,COLUMN()-6-COLUMN($E259)),VLOOKUP($E259-4,AllData,COLUMN()-6-COLUMN($E259)),VLOOKUP($E259-5,AllData,COLUMN()-6-COLUMN($E259)),VLOOKUP($E259-6,AllData,COLUMN()-6-COLUMN($E259)),VLOOKUP($E259-7,AllData,COLUMN()-6-COLUMN($E259)),VLOOKUP($E259-8,AllData,COLUMN()-6-COLUMN($E259)),VLOOKUP($E259-9,AllData,COLUMN()-6-COLUMN($E259)),VLOOKUP($E259-10,AllData,COLUMN()-6-COLUMN($E259)),VLOOKUP($E259-11,AllData,COLUMN()-6-COLUMN($E259)),VLOOKUP($E259-12,AllData,COLUMN()-6-COLUMN($E259)),VLOOKUP($E259-13,AllData,COLUMN()-6-COLUMN($E259)),VLOOKUP($E259-14,AllData,COLUMN()-6-COLUMN($E259)),VLOOKUP($E259-15,AllData,COLUMN()-6-COLUMN($E259)),VLOOKUP($E259-16,AllData,COLUMN()-6-COLUMN($E259)),VLOOKUP($E259-17,AllData,COLUMN()-6-COLUMN($E259)),VLOOKUP($E259-18,AllData,COLUMN()-6-COLUMN($E259)),VLOOKUP($E259-19,AllData,COLUMN()-6-COLUMN($E259)),VLOOKUP($E259-20,AllData,COLUMN()-6-COLUMN($E259)),VLOOKUP($E259-21,AllData,COLUMN()-6-COLUMN($E259)),VLOOKUP($E259-22,AllData,COLUMN()-6-COLUMN($E259)),VLOOKUP($E259-23,AllData,COLUMN()-6-COLUMN($E259)),VLOOKUP($E259-24,AllData,COLUMN()-6-COLUMN($E259)),VLOOKUP($E259-25,AllData,COLUMN()-6-COLUMN($E259)),VLOOKUP($E259-26,AllData,COLUMN()-6-COLUMN($E259)),VLOOKUP($E259-27,AllData,COLUMN()-6-COLUMN($E259)),VLOOKUP($E259-28,AllData,COLUMN()-6-COLUMN($E259)),VLOOKUP($E259-29,AllData,COLUMN()-6-COLUMN($E259)))","v":{"$error":"#N/A"}},{"$f":"VLOOKUP($E259,AllData,COLUMN()-7-COLUMN($E259))","v":{"$error":"#N/A"}},{"$f":"OR('Cool Graph'!$I$1=35,'Cool Graph'!$I$1=36,'Cool Graph'!$I$1=37,'Cool Graph'!$I$1=38,'Cool Graph'!$I$1=39,'Cool Graph'!$I$1=40,'Cool Graph'!$I$1=41,'Cool Graph'!$I$1=42,'Cool Graph'!$I$1=43,'Cool Graph'!$I$1=44,'Cool Graph'!$I$1=45,'Cool Graph'!$I$1=46,'Cool Graph'!$I$1=47,'Cool Graph'!$I$1=58,'Cool Graph'!$I$1=66)","v":false}]
["2012-03-15",{"$f":"OFFSET(OldSchoolJustValues!A260,0,'Cool Graph'!$H$1)","v":45.53},{"$f":"OFFSET(OldSchoolJustValues!A260,0,'Cool Graph'!$I$1)","v":317.31645215182937},null,{"$f":"IF(NewDate>EndDate,NA(),NewDate)","v":{"$error":"#N/A"}},{"$f":"IF($E260>EndDate,NA(),IF($K$2=TRUE,N260,IF('Cool Graph'!$B$17=1,N260,IF('Cool Graph'!$B$17=2,L260,IF('Cool Graph'!$B$17=3,M260,)))))","v":{"$error":"#N/A"}},{"$f":"IF($E260>EndDate,NA(),IF($O$2=TRUE,J260,IF('Cool Graph'!$B$17=1,Data1!J260,IF('Cool Graph'!$B$17=2,Data1!H260,IF('Cool Graph'!$B$17=3,Data1!I260,)))))","v":{"$error":"#N/A"}},{"$f":"SUM(VLOOKUP($E260,AllData,COLUMN()-COLUMN($E260)),VLOOKUP($E260-1,AllData,COLUMN()-COLUMN($E260)),VLOOKUP($E260-2,AllData,COLUMN()-COLUMN($E260)),VLOOKUP($E260-3,AllData,COLUMN()-COLUMN($E260)),VLOOKUP($E260-4,AllData,COLUMN()-COLUMN($E260)),VLOOKUP($E260-5,AllData,COLUMN()-COLUMN($E260)),VLOOKUP($E260-6,AllData,COLUMN()-COLUMN($E260)))","v":{"$error":"#N/A"}},{"$f":"SUM(VLOOKUP($E260,AllData,COLUMN()-1-COLUMN($E260)),VLOOKUP($E260-1,AllData,COLUMN()-1-COLUMN($E260)),VLOOKUP($E260-2,AllData,COLUMN()-1-COLUMN($E260)),VLOOKUP($E260-3,AllData,COLUMN()-1-COLUMN($E260)),VLOOKUP($E260-4,AllData,COLUMN()-1-COLUMN($E260)),VLOOKUP($E260-5,AllData,COLUMN()-1-COLUMN($E260)),VLOOKUP($E260-6,AllData,COLUMN()-1-COLUMN($E260)),VLOOKUP($E260-7,AllData,COLUMN()-1-COLUMN($E260)),VLOOKUP($E260-8,AllData,COLUMN()-1-COLUMN($E260)),VLOOKUP($E260-9,AllData,COLUMN()-1-COLUMN($E260)),VLOOKUP($E260-10,AllData,COLUMN()-1-COLUMN($E260)),VLOOKUP($E260-11,AllData,COLUMN()-1-COLUMN($E260)),VLOOKUP($E260-12,AllData,COLUMN()-1-COLUMN($E260)),VLOOKUP($E260-13,AllData,COLUMN()-1-COLUMN($E260)),VLOOKUP($E260-14,AllData,COLUMN()-1-COLUMN($E260)),VLOOKUP($E260-15,AllData,COLUMN()-1-COLUMN($E260)),VLOOKUP($E260-16,AllData,COLUMN()-1-COLUMN($E260)),VLOOKUP($E260-17,AllData,COLUMN()-1-COLUMN($E260)),VLOOKUP($E260-18,AllData,COLUMN()-1-COLUMN($E260)),VLOOKUP($E260-19,AllData,COLUMN()-1-COLUMN($E260)),VLOOKUP($E260-20,AllData,COLUMN()-1-COLUMN($E260)),VLOOKUP($E260-21,AllData,COLUMN()-1-COLUMN($E260)),VLOOKUP($E260-22,AllData,COLUMN()-1-COLUMN($E260)),VLOOKUP($E260-23,AllData,COLUMN()-1-COLUMN($E260)),VLOOKUP($E260-24,AllData,COLUMN()-1-COLUMN($E260)),VLOOKUP($E260-25,AllData,COLUMN()-1-COLUMN($E260)),VLOOKUP($E260-26,AllData,COLUMN()-1-COLUMN($E260)),VLOOKUP($E260-27,AllData,COLUMN()-1-COLUMN($E260)),VLOOKUP($E260-28,AllData,COLUMN()-1-COLUMN($E260)),VLOOKUP($E260-29,AllData,COLUMN()-1-COLUMN($E260)))","v":{"$error":"#N/A"}},{"$f":"VLOOKUP($E260,AllData,COLUMN()-2-COLUMN($E260))","v":{"$error":"#N/A"}},{"$f":"OR('Cool Graph'!$H$1=35,'Cool Graph'!$H$1=36,'Cool Graph'!$H$1=37,'Cool Graph'!$H$1=38,'Cool Graph'!$H$1=39,'Cool Graph'!$H$1=40,'Cool Graph'!$H$1=41,'Cool Graph'!$H$1=42,'Cool Graph'!$H$1=43,'Cool Graph'!$H$1=44,'Cool Graph'!$H$1=45,'Cool Graph'!$H$1=46,'Cool Graph'!$H$1=47,'Cool Graph'!$H$1=58,'Cool Graph'!$H$1=66)","v":false},{"$f":"SUM(VLOOKUP($E260,AllData,COLUMN()-5-COLUMN($E260)),VLOOKUP($E260-1,AllData,COLUMN()-5-COLUMN($E260)),VLOOKUP($E260-2,AllData,COLUMN()-5-COLUMN($E260)),VLOOKUP($E260-3,AllData,COLUMN()-5-COLUMN($E260)),VLOOKUP($E260-4,AllData,COLUMN()-5-COLUMN($E260)),VLOOKUP($E260-5,AllData,COLUMN()-5-COLUMN($E260)),VLOOKUP($E260-6,AllData,COLUMN()-5-COLUMN($E260)))","v":{"$error":"#N/A"}},{"$f":"SUM(VLOOKUP($E260,AllData,COLUMN()-6-COLUMN($E260)),VLOOKUP($E260-1,AllData,COLUMN()-6-COLUMN($E260)),VLOOKUP($E260-2,AllData,COLUMN()-6-COLUMN($E260)),VLOOKUP($E260-3,AllData,COLUMN()-6-COLUMN($E260)),VLOOKUP($E260-4,AllData,COLUMN()-6-COLUMN($E260)),VLOOKUP($E260-5,AllData,COLUMN()-6-COLUMN($E260)),VLOOKUP($E260-6,AllData,COLUMN()-6-COLUMN($E260)),VLOOKUP($E260-7,AllData,COLUMN()-6-COLUMN($E260)),VLOOKUP($E260-8,AllData,COLUMN()-6-COLUMN($E260)),VLOOKUP($E260-9,AllData,COLUMN()-6-COLUMN($E260)),VLOOKUP($E260-10,AllData,COLUMN()-6-COLUMN($E260)),VLOOKUP($E260-11,AllData,COLUMN()-6-COLUMN($E260)),VLOOKUP($E260-12,AllData,COLUMN()-6-COLUMN($E260)),VLOOKUP($E260-13,AllData,COLUMN()-6-COLUMN($E260)),VLOOKUP($E260-14,AllData,COLUMN()-6-COLUMN($E260)),VLOOKUP($E260-15,AllData,COLUMN()-6-COLUMN($E260)),VLOOKUP($E260-16,AllData,COLUMN()-6-COLUMN($E260)),VLOOKUP($E260-17,AllData,COLUMN()-6-COLUMN($E260)),VLOOKUP($E260-18,AllData,COLUMN()-6-COLUMN($E260)),VLOOKUP($E260-19,AllData,COLUMN()-6-COLUMN($E260)),VLOOKUP($E260-20,AllData,COLUMN()-6-COLUMN($E260)),VLOOKUP($E260-21,AllData,COLUMN()-6-COLUMN($E260)),VLOOKUP($E260-22,AllData,COLUMN()-6-COLUMN($E260)),VLOOKUP($E260-23,AllData,COLUMN()-6-COLUMN($E260)),VLOOKUP($E260-24,AllData,COLUMN()-6-COLUMN($E260)),VLOOKUP($E260-25,AllData,COLUMN()-6-COLUMN($E260)),VLOOKUP($E260-26,AllData,COLUMN()-6-COLUMN($E260)),VLOOKUP($E260-27,AllData,COLUMN()-6-COLUMN($E260)),VLOOKUP($E260-28,AllData,COLUMN()-6-COLUMN($E260)),VLOOKUP($E260-29,AllData,COLUMN()-6-COLUMN($E260)))","v":{"$error":"#N/A"}},{"$f":"VLOOKUP($E260,AllData,COLUMN()-7-COLUMN($E260))","v":{"$error":"#N/A"}},{"$f":"OR('Cool Graph'!$I$1=35,'Cool Graph'!$I$1=36,'Cool Graph'!$I$1=37,'Cool Graph'!$I$1=38,'Cool Graph'!$I$1=39,'Cool Graph'!$I$1=40,'Cool Graph'!$I$1=41,'Cool Graph'!$I$1=42,'Cool Graph'!$I$1=43,'Cool Graph'!$I$1=44,'Cool Graph'!$I$1=45,'Cool Graph'!$I$1=46,'Cool Graph'!$I$1=47,'Cool Graph'!$I$1=58,'Cool Graph'!$I$1=66)","v":false}]
["2012-03-16",{"$f":"OFFSET(OldSchoolJustValues!A261,0,'Cool Graph'!$H$1)","v":122.35},{"$f":"OFFSET(OldSchoolJustValues!A261,0,'Cool Graph'!$I$1)","v":697.18620840197605},null,{"$f":"IF(NewDate>EndDate,NA(),NewDate)","v":{"$error":"#N/A"}},{"$f":"IF($E261>EndDate,NA(),IF($K$2=TRUE,N261,IF('Cool Graph'!$B$17=1,N261,IF('Cool Graph'!$B$17=2,L261,IF('Cool Graph'!$B$17=3,M261,)))))","v":{"$error":"#N/A"}},{"$f":"IF($E261>EndDate,NA(),IF($O$2=TRUE,J261,IF('Cool Graph'!$B$17=1,Data1!J261,IF('Cool Graph'!$B$17=2,Data1!H261,IF('Cool Graph'!$B$17=3,Data1!I261,)))))","v":{"$error":"#N/A"}},{"$f":"SUM(VLOOKUP($E261,AllData,COLUMN()-COLUMN($E261)),VLOOKUP($E261-1,AllData,COLUMN()-COLUMN($E261)),VLOOKUP($E261-2,AllData,COLUMN()-COLUMN($E261)),VLOOKUP($E261-3,AllData,COLUMN()-COLUMN($E261)),VLOOKUP($E261-4,AllData,COLUMN()-COLUMN($E261)),VLOOKUP($E261-5,AllData,COLUMN()-COLUMN($E261)),VLOOKUP($E261-6,AllData,COLUMN()-COLUMN($E261)))","v":{"$error":"#N/A"}},{"$f":"SUM(VLOOKUP($E261,AllData,COLUMN()-1-COLUMN($E261)),VLOOKUP($E261-1,AllData,COLUMN()-1-COLUMN($E261)),VLOOKUP($E261-2,AllData,COLUMN()-1-COLUMN($E261)),VLOOKUP($E261-3,AllData,COLUMN()-1-COLUMN($E261)),VLOOKUP($E261-4,AllData,COLUMN()-1-COLUMN($E261)),VLOOKUP($E261-5,AllData,COLUMN()-1-COLUMN($E261)),VLOOKUP($E261-6,AllData,COLUMN()-1-COLUMN($E261)),VLOOKUP($E261-7,AllData,COLUMN()-1-COLUMN($E261)),VLOOKUP($E261-8,AllData,COLUMN()-1-COLUMN($E261)),VLOOKUP($E261-9,AllData,COLUMN()-1-COLUMN($E261)),VLOOKUP($E261-10,AllData,COLUMN()-1-COLUMN($E261)),VLOOKUP($E261-11,AllData,COLUMN()-1-COLUMN($E261)),VLOOKUP($E261-12,AllData,COLUMN()-1-COLUMN($E261)),VLOOKUP($E261-13,AllData,COLUMN()-1-COLUMN($E261)),VLOOKUP($E261-14,AllData,COLUMN()-1-COLUMN($E261)),VLOOKUP($E261-15,AllData,COLUMN()-1-COLUMN($E261)),VLOOKUP($E261-16,AllData,COLUMN()-1-COLUMN($E261)),VLOOKUP($E261-17,AllData,COLUMN()-1-COLUMN($E261)),VLOOKUP($E261-18,AllData,COLUMN()-1-COLUMN($E261)),VLOOKUP($E261-19,AllData,COLUMN()-1-COLUMN($E261)),VLOOKUP($E261-20,AllData,COLUMN()-1-COLUMN($E261)),VLOOKUP($E261-21,AllData,COLUMN()-1-COLUMN($E261)),VLOOKUP($E261-22,AllData,COLUMN()-1-COLUMN($E261)),VLOOKUP($E261-23,AllData,COLUMN()-1-COLUMN($E261)),VLOOKUP($E261-24,AllData,COLUMN()-1-COLUMN($E261)),VLOOKUP($E261-25,AllData,COLUMN()-1-COLUMN($E261)),VLOOKUP($E261-26,AllData,COLUMN()-1-COLUMN($E261)),VLOOKUP($E261-27,AllData,COLUMN()-1-COLUMN($E261)),VLOOKUP($E261-28,AllData,COLUMN()-1-COLUMN($E261)),VLOOKUP($E261-29,AllData,COLUMN()-1-COLUMN($E261)))","v":{"$error":"#N/A"}},{"$f":"VLOOKUP($E261,AllData,COLUMN()-2-COLUMN($E261))","v":{"$error":"#N/A"}},{"$f":"OR('Cool Graph'!$H$1=35,'Cool Graph'!$H$1=36,'Cool Graph'!$H$1=37,'Cool Graph'!$H$1=38,'Cool Graph'!$H$1=39,'Cool Graph'!$H$1=40,'Cool Graph'!$H$1=41,'Cool Graph'!$H$1=42,'Cool Graph'!$H$1=43,'Cool Graph'!$H$1=44,'Cool Graph'!$H$1=45,'Cool Graph'!$H$1=46,'Cool Graph'!$H$1=47,'Cool Graph'!$H$1=58,'Cool Graph'!$H$1=66)","v":false},{"$f":"SUM(VLOOKUP($E261,AllData,COLUMN()-5-COLUMN($E261)),VLOOKUP($E261-1,AllData,COLUMN()-5-COLUMN($E261)),VLOOKUP($E261-2,AllData,COLUMN()-5-COLUMN($E261)),VLOOKUP($E261-3,AllData,COLUMN()-5-COLUMN($E261)),VLOOKUP($E261-4,AllData,COLUMN()-5-COLUMN($E261)),VLOOKUP($E261-5,AllData,COLUMN()-5-COLUMN($E261)),VLOOKUP($E261-6,AllData,COLUMN()-5-COLUMN($E261)))","v":{"$error":"#N/A"}},{"$f":"SUM(VLOOKUP($E261,AllData,COLUMN()-6-COLUMN($E261)),VLOOKUP($E261-1,AllData,COLUMN()-6-COLUMN($E261)),VLOOKUP($E261-2,AllData,COLUMN()-6-COLUMN($E261)),VLOOKUP($E261-3,AllData,COLUMN()-6-COLUMN($E261)),VLOOKUP($E261-4,AllData,COLUMN()-6-COLUMN($E261)),VLOOKUP($E261-5,AllData,COLUMN()-6-COLUMN($E261)),VLOOKUP($E261-6,AllData,COLUMN()-6-COLUMN($E261)),VLOOKUP($E261-7,AllData,COLUMN()-6-COLUMN($E261)),VLOOKUP($E261-8,AllData,COLUMN()-6-COLUMN($E261)),VLOOKUP($E261-9,AllData,COLUMN()-6-COLUMN($E261)),VLOOKUP($E261-10,AllData,COLUMN()-6-COLUMN($E261)),VLOOKUP($E261-11,AllData,COLUMN()-6-COLUMN($E261)),VLOOKUP($E261-12,AllData,COLUMN()-6-COLUMN($E261)),VLOOKUP($E261-13,AllData,COLUMN()-6-COLUMN($E261)),VLOOKUP($E261-14,AllData,COLUMN()-6-COLUMN($E261)),VLOOKUP($E261-15,AllData,COLUMN()-6-COLUMN($E261)),VLOOKUP($E261-16,AllData,COLUMN()-6-COLUMN($E261)),VLOOKUP($E261-17,AllData,COLUMN()-6-COLUMN($E261)),VLOOKUP($E261-18,AllData,COLUMN()-6-COLUMN($E261)),VLOOKUP($E261-19,AllData,COLUMN()-6-COLUMN($E261)),VLOOKUP($E261-20,AllData,COLUMN()-6-COLUMN($E261)),VLOOKUP($E261-21,AllData,COLUMN()-6-COLUMN($E261)),VLOOKUP($E261-22,AllData,COLUMN()-6-COLUMN($E261)),VLOOKUP($E261-23,AllData,COLUMN()-6-COLUMN($E261)),VLOOKUP($E261-24,AllData,COLUMN()-6-COLUMN($E261)),VLOOKUP($E261-25,AllData,COLUMN()-6-COLUMN($E261)),VLOOKUP($E261-26,AllData,COLUMN()-6-COLUMN($E261)),VLOOKUP($E261-27,AllData,COLUMN()-6-COLUMN($E261)),VLOOKUP($E261-28,AllData,COLUMN()-6-COLUMN($E261)),VLOOKUP($E261-29,AllData,COLUMN()-6-COLUMN($E261)))","v":{"$error":"#N/A"}},{"$f":"VLOOKUP($E261,AllData,COLUMN()-7-COLUMN($E261))","v":{"$error":"#N/A"}},{"$f":"OR('Cool Graph'!$I$1=35,'Cool Graph'!$I$1=36,'Cool Graph'!$I$1=37,'Cool Graph'!$I$1=38,'Cool Graph'!$I$1=39,'Cool Graph'!$I$1=40,'Cool Graph'!$I$1=41,'Cool Graph'!$I$1=42,'Cool Graph'!$I$1=43,'Cool Graph'!$I$1=44,'Cool Graph'!$I$1=45,'Cool Graph'!$I$1=46,'Cool Graph'!$I$1=47,'Cool Graph'!$I$1=58,'Cool Graph'!$I$1=66)","v":false}]
["2012-03-17",{"$f":"OFFSET(OldSchoolJustValues!A262,0,'Cool Graph'!$H$1)","v":64.09},{"$f":"OFFSET(OldSchoolJustValues!A262,0,'Cool Graph'!$I$1)","v":527.13586554717619},null,{"$f":"IF(NewDate>EndDate,NA(),NewDate)","v":{"$error":"#N/A"}},{"$f":"IF($E262>EndDate,NA(),IF($K$2=TRUE,N262,IF('Cool Graph'!$B$17=1,N262,IF('Cool Graph'!$B$17=2,L262,IF('Cool Graph'!$B$17=3,M262,)))))","v":{"$error":"#N/A"}},{"$f":"IF($E262>EndDate,NA(),IF($O$2=TRUE,J262,IF('Cool Graph'!$B$17=1,Data1!J262,IF('Cool Graph'!$B$17=2,Data1!H262,IF('Cool Graph'!$B$17=3,Data1!I262,)))))","v":{"$error":"#N/A"}},{"$f":"SUM(VLOOKUP($E262,AllData,COLUMN()-COLUMN($E262)),VLOOKUP($E262-1,AllData,COLUMN()-COLUMN($E262)),VLOOKUP($E262-2,AllData,COLUMN()-COLUMN($E262)),VLOOKUP($E262-3,AllData,COLUMN()-COLUMN($E262)),VLOOKUP($E262-4,AllData,COLUMN()-COLUMN($E262)),VLOOKUP($E262-5,AllData,COLUMN()-COLUMN($E262)),VLOOKUP($E262-6,AllData,COLUMN()-COLUMN($E262)))","v":{"$error":"#N/A"}},{"$f":"SUM(VLOOKUP($E262,AllData,COLUMN()-1-COLUMN($E262)),VLOOKUP($E262-1,AllData,COLUMN()-1-COLUMN($E262)),VLOOKUP($E262-2,AllData,COLUMN()-1-COLUMN($E262)),VLOOKUP($E262-3,AllData,COLUMN()-1-COLUMN($E262)),VLOOKUP($E262-4,AllData,COLUMN()-1-COLUMN($E262)),VLOOKUP($E262-5,AllData,COLUMN()-1-COLUMN($E262)),VLOOKUP($E262-6,AllData,COLUMN()-1-COLUMN($E262)),VLOOKUP($E262-7,AllData,COLUMN()-1-COLUMN($E262)),VLOOKUP($E262-8,AllData,COLUMN()-1-COLUMN($E262)),VLOOKUP($E262-9,AllData,COLUMN()-1-COLUMN($E262)),VLOOKUP($E262-10,AllData,COLUMN()-1-COLUMN($E262)),VLOOKUP($E262-11,AllData,COLUMN()-1-COLUMN($E262)),VLOOKUP($E262-12,AllData,COLUMN()-1-COLUMN($E262)),VLOOKUP($E262-13,AllData,COLUMN()-1-COLUMN($E262)),VLOOKUP($E262-14,AllData,COLUMN()-1-COLUMN($E262)),VLOOKUP($E262-15,AllData,COLUMN()-1-COLUMN($E262)),VLOOKUP($E262-16,AllData,COLUMN()-1-COLUMN($E262)),VLOOKUP($E262-17,AllData,COLUMN()-1-COLUMN($E262)),VLOOKUP($E262-18,AllData,COLUMN()-1-COLUMN($E262)),VLOOKUP($E262-19,AllData,COLUMN()-1-COLUMN($E262)),VLOOKUP($E262-20,AllData,COLUMN()-1-COLUMN($E262)),VLOOKUP($E262-21,AllData,COLUMN()-1-COLUMN($E262)),VLOOKUP($E262-22,AllData,COLUMN()-1-COLUMN($E262)),VLOOKUP($E262-23,AllData,COLUMN()-1-COLUMN($E262)),VLOOKUP($E262-24,AllData,COLUMN()-1-COLUMN($E262)),VLOOKUP($E262-25,AllData,COLUMN()-1-COLUMN($E262)),VLOOKUP($E262-26,AllData,COLUMN()-1-COLUMN($E262)),VLOOKUP($E262-27,AllData,COLUMN()-1-COLUMN($E262)),VLOOKUP($E262-28,AllData,COLUMN()-1-COLUMN($E262)),VLOOKUP($E262-29,AllData,COLUMN()-1-COLUMN($E262)))","v":{"$error":"#N/A"}},{"$f":"VLOOKUP($E262,AllData,COLUMN()-2-COLUMN($E262))","v":{"$error":"#N/A"}},{"$f":"OR('Cool Graph'!$H$1=35,'Cool Graph'!$H$1=36,'Cool Graph'!$H$1=37,'Cool Graph'!$H$1=38,'Cool Graph'!$H$1=39,'Cool Graph'!$H$1=40,'Cool Graph'!$H$1=41,'Cool Graph'!$H$1=42,'Cool Graph'!$H$1=43,'Cool Graph'!$H$1=44,'Cool Graph'!$H$1=45,'Cool Graph'!$H$1=46,'Cool Graph'!$H$1=47,'Cool Graph'!$H$1=58,'Cool Graph'!$H$1=66)","v":false},{"$f":"SUM(VLOOKUP($E262,AllData,COLUMN()-5-COLUMN($E262)),VLOOKUP($E262-1,AllData,COLUMN()-5-COLUMN($E262)),VLOOKUP($E262-2,AllData,COLUMN()-5-COLUMN($E262)),VLOOKUP($E262-3,AllData,COLUMN()-5-COLUMN($E262)),VLOOKUP($E262-4,AllData,COLUMN()-5-COLUMN($E262)),VLOOKUP($E262-5,AllData,COLUMN()-5-COLUMN($E262)),VLOOKUP($E262-6,AllData,COLUMN()-5-COLUMN($E262)))","v":{"$error":"#N/A"}},{"$f":"SUM(VLOOKUP($E262,AllData,COLUMN()-6-COLUMN($E262)),VLOOKUP($E262-1,AllData,COLUMN()-6-COLUMN($E262)),VLOOKUP($E262-2,AllData,COLUMN()-6-COLUMN($E262)),VLOOKUP($E262-3,AllData,COLUMN()-6-COLUMN($E262)),VLOOKUP($E262-4,AllData,COLUMN()-6-COLUMN($E262)),VLOOKUP($E262-5,AllData,COLUMN()-6-COLUMN($E262)),VLOOKUP($E262-6,AllData,COLUMN()-6-COLUMN($E262)),VLOOKUP($E262-7,AllData,COLUMN()-6-COLUMN($E262)),VLOOKUP($E262-8,AllData,COLUMN()-6-COLUMN($E262)),VLOOKUP($E262-9,AllData,COLUMN()-6-COLUMN($E262)),VLOOKUP($E262-10,AllData,COLUMN()-6-COLUMN($E262)),VLOOKUP($E262-11,AllData,COLUMN()-6-COLUMN($E262)),VLOOKUP($E262-12,AllData,COLUMN()-6-COLUMN($E262)),VLOOKUP($E262-13,AllData,COLUMN()-6-COLUMN($E262)),VLOOKUP($E262-14,AllData,COLUMN()-6-COLUMN($E262)),VLOOKUP($E262-15,AllData,COLUMN()-6-COLUMN($E262)),VLOOKUP($E262-16,AllData,COLUMN()-6-COLUMN($E262)),VLOOKUP($E262-17,AllData,COLUMN()-6-COLUMN($E262)),VLOOKUP($E262-18,AllData,COLUMN()-6-COLUMN($E262)),VLOOKUP($E262-19,AllData,COLUMN()-6-COLUMN($E262)),VLOOKUP($E262-20,AllData,COLUMN()-6-COLUMN($E262)),VLOOKUP($E262-21,AllData,COLUMN()-6-COLUMN($E262)),VLOOKUP($E262-22,AllData,COLUMN()-6-COLUMN($E262)),VLOOKUP($E262-23,AllData,COLUMN()-6-COLUMN($E262)),VLOOKUP($E262-24,AllData,COLUMN()-6-COLUMN($E262)),VLOOKUP($E262-25,AllData,COLUMN()-6-COLUMN($E262)),VLOOKUP($E262-26,AllData,COLUMN()-6-COLUMN($E262)),VLOOKUP($E262-27,AllData,COLUMN()-6-COLUMN($E262)),VLOOKUP($E262-28,AllData,COLUMN()-6-COLUMN($E262)),VLOOKUP($E262-29,AllData,COLUMN()-6-COLUMN($E262)))","v":{"$error":"#N/A"}},{"$f":"VLOOKUP($E262,AllData,COLUMN()-7-COLUMN($E262))","v":{"$error":"#N/A"}},{"$f":"OR('Cool Graph'!$I$1=35,'Cool Graph'!$I$1=36,'Cool Graph'!$I$1=37,'Cool Graph'!$I$1=38,'Cool Graph'!$I$1=39,'Cool Graph'!$I$1=40,'Cool Graph'!$I$1=41,'Cool Graph'!$I$1=42,'Cool Graph'!$I$1=43,'Cool Graph'!$I$1=44,'Cool Graph'!$I$1=45,'Cool Graph'!$I$1=46,'Cool Graph'!$I$1=47,'Cool Graph'!$I$1=58,'Cool Graph'!$I$1=66)","v":false}]
["2012-03-18",{"$f":"OFFSET(OldSchoolJustValues!A263,0,'Cool Graph'!$H$1)","v":144.12},{"$f":"OFFSET(OldSchoolJustValues!A263,0,'Cool Graph'!$I$1)","v":1164.5091297334711},null,{"$f":"IF(NewDate>EndDate,NA(),NewDate)","v":{"$error":"#N/A"}},{"$f":"IF($E263>EndDate,NA(),IF($K$2=TRUE,N263,IF('Cool Graph'!$B$17=1,N263,IF('Cool Graph'!$B$17=2,L263,IF('Cool Graph'!$B$17=3,M263,)))))","v":{"$error":"#N/A"}},{"$f":"IF($E263>EndDate,NA(),IF($O$2=TRUE,J263,IF('Cool Graph'!$B$17=1,Data1!J263,IF('Cool Graph'!$B$17=2,Data1!H263,IF('Cool Graph'!$B$17=3,Data1!I263,)))))","v":{"$error":"#N/A"}},{"$f":"SUM(VLOOKUP($E263,AllData,COLUMN()-COLUMN($E263)),VLOOKUP($E263-1,AllData,COLUMN()-COLUMN($E263)),VLOOKUP($E263-2,AllData,COLUMN()-COLUMN($E263)),VLOOKUP($E263-3,AllData,COLUMN()-COLUMN($E263)),VLOOKUP($E263-4,AllData,COLUMN()-COLUMN($E263)),VLOOKUP($E263-5,AllData,COLUMN()-COLUMN($E263)),VLOOKUP($E263-6,AllData,COLUMN()-COLUMN($E263)))","v":{"$error":"#N/A"}},{"$f":"SUM(VLOOKUP($E263,AllData,COLUMN()-1-COLUMN($E263)),VLOOKUP($E263-1,AllData,COLUMN()-1-COLUMN($E263)),VLOOKUP($E263-2,AllData,COLUMN()-1-COLUMN($E263)),VLOOKUP($E263-3,AllData,COLUMN()-1-COLUMN($E263)),VLOOKUP($E263-4,AllData,COLUMN()-1-COLUMN($E263)),VLOOKUP($E263-5,AllData,COLUMN()-1-COLUMN($E263)),VLOOKUP($E263-6,AllData,COLUMN()-1-COLUMN($E263)),VLOOKUP($E263-7,AllData,COLUMN()-1-COLUMN($E263)),VLOOKUP($E263-8,AllData,COLUMN()-1-COLUMN($E263)),VLOOKUP($E263-9,AllData,COLUMN()-1-COLUMN($E263)),VLOOKUP($E263-10,AllData,COLUMN()-1-COLUMN($E263)),VLOOKUP($E263-11,AllData,COLUMN()-1-COLUMN($E263)),VLOOKUP($E263-12,AllData,COLUMN()-1-COLUMN($E263)),VLOOKUP($E263-13,AllData,COLUMN()-1-COLUMN($E263)),VLOOKUP($E263-14,AllData,COLUMN()-1-COLUMN($E263)),VLOOKUP($E263-15,AllData,COLUMN()-1-COLUMN($E263)),VLOOKUP($E263-16,AllData,COLUMN()-1-COLUMN($E263)),VLOOKUP($E263-17,AllData,COLUMN()-1-COLUMN($E263)),VLOOKUP($E263-18,AllData,COLUMN()-1-COLUMN($E263)),VLOOKUP($E263-19,AllData,COLUMN()-1-COLUMN($E263)),VLOOKUP($E263-20,AllData,COLUMN()-1-COLUMN($E263)),VLOOKUP($E263-21,AllData,COLUMN()-1-COLUMN($E263)),VLOOKUP($E263-22,AllData,COLUMN()-1-COLUMN($E263)),VLOOKUP($E263-23,AllData,COLUMN()-1-COLUMN($E263)),VLOOKUP($E263-24,AllData,COLUMN()-1-COLUMN($E263)),VLOOKUP($E263-25,AllData,COLUMN()-1-COLUMN($E263)),VLOOKUP($E263-26,AllData,COLUMN()-1-COLUMN($E263)),VLOOKUP($E263-27,AllData,COLUMN()-1-COLUMN($E263)),VLOOKUP($E263-28,AllData,COLUMN()-1-COLUMN($E263)),VLOOKUP($E263-29,AllData,COLUMN()-1-COLUMN($E263)))","v":{"$error":"#N/A"}},{"$f":"VLOOKUP($E263,AllData,COLUMN()-2-COLUMN($E263))","v":{"$error":"#N/A"}},{"$f":"OR('Cool Graph'!$H$1=35,'Cool Graph'!$H$1=36,'Cool Graph'!$H$1=37,'Cool Graph'!$H$1=38,'Cool Graph'!$H$1=39,'Cool Graph'!$H$1=40,'Cool Graph'!$H$1=41,'Cool Graph'!$H$1=42,'Cool Graph'!$H$1=43,'Cool Graph'!$H$1=44,'Cool Graph'!$H$1=45,'Cool Graph'!$H$1=46,'Cool Graph'!$H$1=47,'Cool Graph'!$H$1=58,'Cool Graph'!$H$1=66)","v":false},{"$f":"SUM(VLOOKUP($E263,AllData,COLUMN()-5-COLUMN($E263)),VLOOKUP($E263-1,AllData,COLUMN()-5-COLUMN($E263)),VLOOKUP($E263-2,AllData,COLUMN()-5-COLUMN($E263)),VLOOKUP($E263-3,AllData,COLUMN()-5-COLUMN($E263)),VLOOKUP($E263-4,AllData,COLUMN()-5-COLUMN($E263)),VLOOKUP($E263-5,AllData,COLUMN()-5-COLUMN($E263)),VLOOKUP($E263-6,AllData,COLUMN()-5-COLUMN($E263)))","v":{"$error":"#N/A"}},{"$f":"SUM(VLOOKUP($E263,AllData,COLUMN()-6-COLUMN($E263)),VLOOKUP($E263-1,AllData,COLUMN()-6-COLUMN($E263)),VLOOKUP($E263-2,AllData,COLUMN()-6-COLUMN($E263)),VLOOKUP($E263-3,AllData,COLUMN()-6-COLUMN($E263)),VLOOKUP($E263-4,AllData,COLUMN()-6-COLUMN($E263)),VLOOKUP($E263-5,AllData,COLUMN()-6-COLUMN($E263)),VLOOKUP($E263-6,AllData,COLUMN()-6-COLUMN($E263)),VLOOKUP($E263-7,AllData,COLUMN()-6-COLUMN($E263)),VLOOKUP($E263-8,AllData,COLUMN()-6-COLUMN($E263)),VLOOKUP($E263-9,AllData,COLUMN()-6-COLUMN($E263)),VLOOKUP($E263-10,AllData,COLUMN()-6-COLUMN($E263)),VLOOKUP($E263-11,AllData,COLUMN()-6-COLUMN($E263)),VLOOKUP($E263-12,AllData,COLUMN()-6-COLUMN($E263)),VLOOKUP($E263-13,AllData,COLUMN()-6-COLUMN($E263)),VLOOKUP($E263-14,AllData,COLUMN()-6-COLUMN($E263)),VLOOKUP($E263-15,AllData,COLUMN()-6-COLUMN($E263)),VLOOKUP($E263-16,AllData,COLUMN()-6-COLUMN($E263)),VLOOKUP($E263-17,AllData,COLUMN()-6-COLUMN($E263)),VLOOKUP($E263-18,AllData,COLUMN()-6-COLUMN($E263)),VLOOKUP($E263-19,AllData,COLUMN()-6-COLUMN($E263)),VLOOKUP($E263-20,AllData,COLUMN()-6-COLUMN($E263)),VLOOKUP($E263-21,AllData,COLUMN()-6-COLUMN($E263)),VLOOKUP($E263-22,AllData,COLUMN()-6-COLUMN($E263)),VLOOKUP($E263-23,AllData,COLUMN()-6-COLUMN($E263)),VLOOKUP($E263-24,AllData,COLUMN()-6-COLUMN($E263)),VLOOKUP($E263-25,AllData,COLUMN()-6-COLUMN($E263)),VLOOKUP($E263-26,AllData,COLUMN()-6-COLUMN($E263)),VLOOKUP($E263-27,AllData,COLUMN()-6-COLUMN($E263)),VLOOKUP($E263-28,AllData,COLUMN()-6-COLUMN($E263)),VLOOKUP($E263-29,AllData,COLUMN()-6-COLUMN($E263)))","v":{"$error":"#N/A"}},{"$f":"VLOOKUP($E263,AllData,COLUMN()-7-COLUMN($E263))","v":{"$error":"#N/A"}},{"$f":"OR('Cool Graph'!$I$1=35,'Cool Graph'!$I$1=36,'Cool Graph'!$I$1=37,'Cool Graph'!$I$1=38,'Cool Graph'!$I$1=39,'Cool Graph'!$I$1=40,'Cool Graph'!$I$1=41,'Cool Graph'!$I$1=42,'Cool Graph'!$I$1=43,'Cool Graph'!$I$1=44,'Cool Graph'!$I$1=45,'Cool Graph'!$I$1=46,'Cool Graph'!$I$1=47,'Cool Graph'!$I$1=58,'Cool Graph'!$I$1=66)","v":false}]
["2012-03-19",{"$f":"OFFSET(OldSchoolJustValues!A264,0,'Cool Graph'!$H$1)","v":54.56},{"$f":"OFFSET(OldSchoolJustValues!A264,0,'Cool Graph'!$I$1)","v":579.17921904505442},null,{"$f":"IF(NewDate>EndDate,NA(),NewDate)","v":{"$error":"#N/A"}},{"$f":"IF($E264>EndDate,NA(),IF($K$2=TRUE,N264,IF('Cool Graph'!$B$17=1,N264,IF('Cool Graph'!$B$17=2,L264,IF('Cool Graph'!$B$17=3,M264,)))))","v":{"$error":"#N/A"}},{"$f":"IF($E264>EndDate,NA(),IF($O$2=TRUE,J264,IF('Cool Graph'!$B$17=1,Data1!J264,IF('Cool Graph'!$B$17=2,Data1!H264,IF('Cool Graph'!$B$17=3,Data1!I264,)))))","v":{"$error":"#N/A"}},{"$f":"SUM(VLOOKUP($E264,AllData,COLUMN()-COLUMN($E264)),VLOOKUP($E264-1,AllData,COLUMN()-COLUMN($E264)),VLOOKUP($E264-2,AllData,COLUMN()-COLUMN($E264)),VLOOKUP($E264-3,AllData,COLUMN()-COLUMN($E264)),VLOOKUP($E264-4,AllData,COLUMN()-COLUMN($E264)),VLOOKUP($E264-5,AllData,COLUMN()-COLUMN($E264)),VLOOKUP($E264-6,AllData,COLUMN()-COLUMN($E264)))","v":{"$error":"#N/A"}},{"$f":"SUM(VLOOKUP($E264,AllData,COLUMN()-1-COLUMN($E264)),VLOOKUP($E264-1,AllData,COLUMN()-1-COLUMN($E264)),VLOOKUP($E264-2,AllData,COLUMN()-1-COLUMN($E264)),VLOOKUP($E264-3,AllData,COLUMN()-1-COLUMN($E264)),VLOOKUP($E264-4,AllData,COLUMN()-1-COLUMN($E264)),VLOOKUP($E264-5,AllData,COLUMN()-1-COLUMN($E264)),VLOOKUP($E264-6,AllData,COLUMN()-1-COLUMN($E264)),VLOOKUP($E264-7,AllData,COLUMN()-1-COLUMN($E264)),VLOOKUP($E264-8,AllData,COLUMN()-1-COLUMN($E264)),VLOOKUP($E264-9,AllData,COLUMN()-1-COLUMN($E264)),VLOOKUP($E264-10,AllData,COLUMN()-1-COLUMN($E264)),VLOOKUP($E264-11,AllData,COLUMN()-1-COLUMN($E264)),VLOOKUP($E264-12,AllData,COLUMN()-1-COLUMN($E264)),VLOOKUP($E264-13,AllData,COLUMN()-1-COLUMN($E264)),VLOOKUP($E264-14,AllData,COLUMN()-1-COLUMN($E264)),VLOOKUP($E264-15,AllData,COLUMN()-1-COLUMN($E264)),VLOOKUP($E264-16,AllData,COLUMN()-1-COLUMN($E264)),VLOOKUP($E264-17,AllData,COLUMN()-1-COLUMN($E264)),VLOOKUP($E264-18,AllData,COLUMN()-1-COLUMN($E264)),VLOOKUP($E264-19,AllData,COLUMN()-1-COLUMN($E264)),VLOOKUP($E264-20,AllData,COLUMN()-1-COLUMN($E264)),VLOOKUP($E264-21,AllData,COLUMN()-1-COLUMN($E264)),VLOOKUP($E264-22,AllData,COLUMN()-1-COLUMN($E264)),VLOOKUP($E264-23,AllData,COLUMN()-1-COLUMN($E264)),VLOOKUP($E264-24,AllData,COLUMN()-1-COLUMN($E264)),VLOOKUP($E264-25,AllData,COLUMN()-1-COLUMN($E264)),VLOOKUP($E264-26,AllData,COLUMN()-1-COLUMN($E264)),VLOOKUP($E264-27,AllData,COLUMN()-1-COLUMN($E264)),VLOOKUP($E264-28,AllData,COLUMN()-1-COLUMN($E264)),VLOOKUP($E264-29,AllData,COLUMN()-1-COLUMN($E264)))","v":{"$error":"#N/A"}},{"$f":"VLOOKUP($E264,AllData,COLUMN()-2-COLUMN($E264))","v":{"$error":"#N/A"}},{"$f":"OR('Cool Graph'!$H$1=35,'Cool Graph'!$H$1=36,'Cool Graph'!$H$1=37,'Cool Graph'!$H$1=38,'Cool Graph'!$H$1=39,'Cool Graph'!$H$1=40,'Cool Graph'!$H$1=41,'Cool Graph'!$H$1=42,'Cool Graph'!$H$1=43,'Cool Graph'!$H$1=44,'Cool Graph'!$H$1=45,'Cool Graph'!$H$1=46,'Cool Graph'!$H$1=47,'Cool Graph'!$H$1=58,'Cool Graph'!$H$1=66)","v":false},{"$f":"SUM(VLOOKUP($E264,AllData,COLUMN()-5-COLUMN($E264)),VLOOKUP($E264-1,AllData,COLUMN()-5-COLUMN($E264)),VLOOKUP($E264-2,AllData,COLUMN()-5-COLUMN($E264)),VLOOKUP($E264-3,AllData,COLUMN()-5-COLUMN($E264)),VLOOKUP($E264-4,AllData,COLUMN()-5-COLUMN($E264)),VLOOKUP($E264-5,AllData,COLUMN()-5-COLUMN($E264)),VLOOKUP($E264-6,AllData,COLUMN()-5-COLUMN($E264)))","v":{"$error":"#N/A"}},{"$f":"SUM(VLOOKUP($E264,AllData,COLUMN()-6-COLUMN($E264)),VLOOKUP($E264-1,AllData,COLUMN()-6-COLUMN($E264)),VLOOKUP($E264-2,AllData,COLUMN()-6-COLUMN($E264)),VLOOKUP($E264-3,AllData,COLUMN()-6-COLUMN($E264)),VLOOKUP($E264-4,AllData,COLUMN()-6-COLUMN($E264)),VLOOKUP($E264-5,AllData,COLUMN()-6-COLUMN($E264)),VLOOKUP($E264-6,AllData,COLUMN()-6-COLUMN($E264)),VLOOKUP($E264-7,AllData,COLUMN()-6-COLUMN($E264)),VLOOKUP($E264-8,AllData,COLUMN()-6-COLUMN($E264)),VLOOKUP($E264-9,AllData,COLUMN()-6-COLUMN($E264)),VLOOKUP($E264-10,AllData,COLUMN()-6-COLUMN($E264)),VLOOKUP($E264-11,AllData,COLUMN()-6-COLUMN($E264)),VLOOKUP($E264-12,AllData,COLUMN()-6-COLUMN($E264)),VLOOKUP($E264-13,AllData,COLUMN()-6-COLUMN($E264)),VLOOKUP($E264-14,AllData,COLUMN()-6-COLUMN($E264)),VLOOKUP($E264-15,AllData,COLUMN()-6-COLUMN($E264)),VLOOKUP($E264-16,AllData,COLUMN()-6-COLUMN($E264)),VLOOKUP($E264-17,AllData,COLUMN()-6-COLUMN($E264)),VLOOKUP($E264-18,AllData,COLUMN()-6-COLUMN($E264)),VLOOKUP($E264-19,AllData,COLUMN()-6-COLUMN($E264)),VLOOKUP($E264-20,AllData,COLUMN()-6-COLUMN($E264)),VLOOKUP($E264-21,AllData,COLUMN()-6-COLUMN($E264)),VLOOKUP($E264-22,AllData,COLUMN()-6-COLUMN($E264)),VLOOKUP($E264-23,AllData,COLUMN()-6-COLUMN($E264)),VLOOKUP($E264-24,AllData,COLUMN()-6-COLUMN($E264)),VLOOKUP($E264-25,AllData,COLUMN()-6-COLUMN($E264)),VLOOKUP($E264-26,AllData,COLUMN()-6-COLUMN($E264)),VLOOKUP($E264-27,AllData,COLUMN()-6-COLUMN($E264)),VLOOKUP($E264-28,AllData,COLUMN()-6-COLUMN($E264)),VLOOKUP($E264-29,AllData,COLUMN()-6-COLUMN($E264)))","v":{"$error":"#N/A"}},{"$f":"VLOOKUP($E264,AllData,COLUMN()-7-COLUMN($E264))","v":{"$error":"#N/A"}},{"$f":"OR('Cool Graph'!$I$1=35,'Cool Graph'!$I$1=36,'Cool Graph'!$I$1=37,'Cool Graph'!$I$1=38,'Cool Graph'!$I$1=39,'Cool Graph'!$I$1=40,'Cool Graph'!$I$1=41,'Cool Graph'!$I$1=42,'Cool Graph'!$I$1=43,'Cool Graph'!$I$1=44,'Cool Graph'!$I$1=45,'Cool Graph'!$I$1=46,'Cool Graph'!$I$1=47,'Cool Graph'!$I$1=58,'Cool Graph'!$I$1=66)","v":false}]
["2012-03-20",{"$f":"OFFSET(OldSchoolJustValues!A265,0,'Cool Graph'!$H$1)","v":34.19},{"$f":"OFFSET(OldSchoolJustValues!A265,0,'Cool Graph'!$I$1)","v":296.66715192238433},null,{"$f":"IF(NewDate>EndDate,NA(),NewDate)","v":{"$error":"#N/A"}},{"$f":"IF($E265>EndDate,NA(),IF($K$2=TRUE,N265,IF('Cool Graph'!$B$17=1,N265,IF('Cool Graph'!$B$17=2,L265,IF('Cool Graph'!$B$17=3,M265,)))))","v":{"$error":"#N/A"}},{"$f":"IF($E265>EndDate,NA(),IF($O$2=TRUE,J265,IF('Cool Graph'!$B$17=1,Data1!J265,IF('Cool Graph'!$B$17=2,Data1!H265,IF('Cool Graph'!$B$17=3,Data1!I265,)))))","v":{"$error":"#N/A"}},{"$f":"SUM(VLOOKUP($E265,AllData,COLUMN()-COLUMN($E265)),VLOOKUP($E265-1,AllData,COLUMN()-COLUMN($E265)),VLOOKUP($E265-2,AllData,COLUMN()-COLUMN($E265)),VLOOKUP($E265-3,AllData,COLUMN()-COLUMN($E265)),VLOOKUP($E265-4,AllData,COLUMN()-COLUMN($E265)),VLOOKUP($E265-5,AllData,COLUMN()-COLUMN($E265)),VLOOKUP($E265-6,AllData,COLUMN()-COLUMN($E265)))","v":{"$error":"#N/A"}},{"$f":"SUM(VLOOKUP($E265,AllData,COLUMN()-1-COLUMN($E265)),VLOOKUP($E265-1,AllData,COLUMN()-1-COLUMN($E265)),VLOOKUP($E265-2,AllData,COLUMN()-1-COLUMN($E265)),VLOOKUP($E265-3,AllData,COLUMN()-1-COLUMN($E265)),VLOOKUP($E265-4,AllData,COLUMN()-1-COLUMN($E265)),VLOOKUP($E265-5,AllData,COLUMN()-1-COLUMN($E265)),VLOOKUP($E265-6,AllData,COLUMN()-1-COLUMN($E265)),VLOOKUP($E265-7,AllData,COLUMN()-1-COLUMN($E265)),VLOOKUP($E265-8,AllData,COLUMN()-1-COLUMN($E265)),VLOOKUP($E265-9,AllData,COLUMN()-1-COLUMN($E265)),VLOOKUP($E265-10,AllData,COLUMN()-1-COLUMN($E265)),VLOOKUP($E265-11,AllData,COLUMN()-1-COLUMN($E265)),VLOOKUP($E265-12,AllData,COLUMN()-1-COLUMN($E265)),VLOOKUP($E265-13,AllData,COLUMN()-1-COLUMN($E265)),VLOOKUP($E265-14,AllData,COLUMN()-1-COLUMN($E265)),VLOOKUP($E265-15,AllData,COLUMN()-1-COLUMN($E265)),VLOOKUP($E265-16,AllData,COLUMN()-1-COLUMN($E265)),VLOOKUP($E265-17,AllData,COLUMN()-1-COLUMN($E265)),VLOOKUP($E265-18,AllData,COLUMN()-1-COLUMN($E265)),VLOOKUP($E265-19,AllData,COLUMN()-1-COLUMN($E265)),VLOOKUP($E265-20,AllData,COLUMN()-1-COLUMN($E265)),VLOOKUP($E265-21,AllData,COLUMN()-1-COLUMN($E265)),VLOOKUP($E265-22,AllData,COLUMN()-1-COLUMN($E265)),VLOOKUP($E265-23,AllData,COLUMN()-1-COLUMN($E265)),VLOOKUP($E265-24,AllData,COLUMN()-1-COLUMN($E265)),VLOOKUP($E265-25,AllData,COLUMN()-1-COLUMN($E265)),VLOOKUP($E265-26,AllData,COLUMN()-1-COLUMN($E265)),VLOOKUP($E265-27,AllData,COLUMN()-1-COLUMN($E265)),VLOOKUP($E265-28,AllData,COLUMN()-1-COLUMN($E265)),VLOOKUP($E265-29,AllData,COLUMN()-1-COLUMN($E265)))","v":{"$error":"#N/A"}},{"$f":"VLOOKUP($E265,AllData,COLUMN()-2-COLUMN($E265))","v":{"$error":"#N/A"}},{"$f":"OR('Cool Graph'!$H$1=35,'Cool Graph'!$H$1=36,'Cool Graph'!$H$1=37,'Cool Graph'!$H$1=38,'Cool Graph'!$H$1=39,'Cool Graph'!$H$1=40,'Cool Graph'!$H$1=41,'Cool Graph'!$H$1=42,'Cool Graph'!$H$1=43,'Cool Graph'!$H$1=44,'Cool Graph'!$H$1=45,'Cool Graph'!$H$1=46,'Cool Graph'!$H$1=47,'Cool Graph'!$H$1=58,'Cool Graph'!$H$1=66)","v":false},{"$f":"SUM(VLOOKUP($E265,AllData,COLUMN()-5-COLUMN($E265)),VLOOKUP($E265-1,AllData,COLUMN()-5-COLUMN($E265)),VLOOKUP($E265-2,AllData,COLUMN()-5-COLUMN($E265)),VLOOKUP($E265-3,AllData,COLUMN()-5-COLUMN($E265)),VLOOKUP($E265-4,AllData,COLUMN()-5-COLUMN($E265)),VLOOKUP($E265-5,AllData,COLUMN()-5-COLUMN($E265)),VLOOKUP($E265-6,AllData,COLUMN()-5-COLUMN($E265)))","v":{"$error":"#N/A"}},{"$f":"SUM(VLOOKUP($E265,AllData,COLUMN()-6-COLUMN($E265)),VLOOKUP($E265-1,AllData,COLUMN()-6-COLUMN($E265)),VLOOKUP($E265-2,AllData,COLUMN()-6-COLUMN($E265)),VLOOKUP($E265-3,AllData,COLUMN()-6-COLUMN($E265)),VLOOKUP($E265-4,AllData,COLUMN()-6-COLUMN($E265)),VLOOKUP($E265-5,AllData,COLUMN()-6-COLUMN($E265)),VLOOKUP($E265-6,AllData,COLUMN()-6-COLUMN($E265)),VLOOKUP($E265-7,AllData,COLUMN()-6-COLUMN($E265)),VLOOKUP($E265-8,AllData,COLUMN()-6-COLUMN($E265)),VLOOKUP($E265-9,AllData,COLUMN()-6-COLUMN($E265)),VLOOKUP($E265-10,AllData,COLUMN()-6-COLUMN($E265)),VLOOKUP($E265-11,AllData,COLUMN()-6-COLUMN($E265)),VLOOKUP($E265-12,AllData,COLUMN()-6-COLUMN($E265)),VLOOKUP($E265-13,AllData,COLUMN()-6-COLUMN($E265)),VLOOKUP($E265-14,AllData,COLUMN()-6-COLUMN($E265)),VLOOKUP($E265-15,AllData,COLUMN()-6-COLUMN($E265)),VLOOKUP($E265-16,AllData,COLUMN()-6-COLUMN($E265)),VLOOKUP($E265-17,AllData,COLUMN()-6-COLUMN($E265)),VLOOKUP($E265-18,AllData,COLUMN()-6-COLUMN($E265)),VLOOKUP($E265-19,AllData,COLUMN()-6-COLUMN($E265)),VLOOKUP($E265-20,AllData,COLUMN()-6-COLUMN($E265)),VLOOKUP($E265-21,AllData,COLUMN()-6-COLUMN($E265)),VLOOKUP($E265-22,AllData,COLUMN()-6-COLUMN($E265)),VLOOKUP($E265-23,AllData,COLUMN()-6-COLUMN($E265)),VLOOKUP($E265-24,AllData,COLUMN()-6-COLUMN($E265)),VLOOKUP($E265-25,AllData,COLUMN()-6-COLUMN($E265)),VLOOKUP($E265-26,AllData,COLUMN()-6-COLUMN($E265)),VLOOKUP($E265-27,AllData,COLUMN()-6-COLUMN($E265)),VLOOKUP($E265-28,AllData,COLUMN()-6-COLUMN($E265)),VLOOKUP($E265-29,AllData,COLUMN()-6-COLUMN($E265)))","v":{"$error":"#N/A"}},{"$f":"VLOOKUP($E265,AllData,COLUMN()-7-COLUMN($E265))","v":{"$error":"#N/A"}},{"$f":"OR('Cool Graph'!$I$1=35,'Cool Graph'!$I$1=36,'Cool Graph'!$I$1=37,'Cool Graph'!$I$1=38,'Cool Graph'!$I$1=39,'Cool Graph'!$I$1=40,'Cool Graph'!$I$1=41,'Cool Graph'!$I$1=42,'Cool Graph'!$I$1=43,'Cool Graph'!$I$1=44,'Cool Graph'!$I$1=45,'Cool Graph'!$I$1=46,'Cool Graph'!$I$1=47,'Cool Graph'!$I$1=58,'Cool Graph'!$I$1=66)","v":false}]
["2012-03-21",{"$f":"OFFSET(OldSchoolJustValues!A266,0,'Cool Graph'!$H$1)","v":33.159999999999997},{"$f":"OFFSET(OldSchoolJustValues!A266,0,'Cool Graph'!$I$1)","v":797.01552916037508},null,{"$f":"IF(NewDate>EndDate,NA(),NewDate)","v":{"$error":"#N/A"}},{"$f":"IF($E266>EndDate,NA(),IF($K$2=TRUE,N266,IF('Cool Graph'!$B$17=1,N266,IF('Cool Graph'!$B$17=2,L266,IF('Cool Graph'!$B$17=3,M266,)))))","v":{"$error":"#N/A"}},{"$f":"IF($E266>EndDate,NA(),IF($O$2=TRUE,J266,IF('Cool Graph'!$B$17=1,Data1!J266,IF('Cool Graph'!$B$17=2,Data1!H266,IF('Cool Graph'!$B$17=3,Data1!I266,)))))","v":{"$error":"#N/A"}},{"$f":"SUM(VLOOKUP($E266,AllData,COLUMN()-COLUMN($E266)),VLOOKUP($E266-1,AllData,COLUMN()-COLUMN($E266)),VLOOKUP($E266-2,AllData,COLUMN()-COLUMN($E266)),VLOOKUP($E266-3,AllData,COLUMN()-COLUMN($E266)),VLOOKUP($E266-4,AllData,COLUMN()-COLUMN($E266)),VLOOKUP($E266-5,AllData,COLUMN()-COLUMN($E266)),VLOOKUP($E266-6,AllData,COLUMN()-COLUMN($E266)))","v":{"$error":"#N/A"}},{"$f":"SUM(VLOOKUP($E266,AllData,COLUMN()-1-COLUMN($E266)),VLOOKUP($E266-1,AllData,COLUMN()-1-COLUMN($E266)),VLOOKUP($E266-2,AllData,COLUMN()-1-COLUMN($E266)),VLOOKUP($E266-3,AllData,COLUMN()-1-COLUMN($E266)),VLOOKUP($E266-4,AllData,COLUMN()-1-COLUMN($E266)),VLOOKUP($E266-5,AllData,COLUMN()-1-COLUMN($E266)),VLOOKUP($E266-6,AllData,COLUMN()-1-COLUMN($E266)),VLOOKUP($E266-7,AllData,COLUMN()-1-COLUMN($E266)),VLOOKUP($E266-8,AllData,COLUMN()-1-COLUMN($E266)),VLOOKUP($E266-9,AllData,COLUMN()-1-COLUMN($E266)),VLOOKUP($E266-10,AllData,COLUMN()-1-COLUMN($E266)),VLOOKUP($E266-11,AllData,COLUMN()-1-COLUMN($E266)),VLOOKUP($E266-12,AllData,COLUMN()-1-COLUMN($E266)),VLOOKUP($E266-13,AllData,COLUMN()-1-COLUMN($E266)),VLOOKUP($E266-14,AllData,COLUMN()-1-COLUMN($E266)),VLOOKUP($E266-15,AllData,COLUMN()-1-COLUMN($E266)),VLOOKUP($E266-16,AllData,COLUMN()-1-COLUMN($E266)),VLOOKUP($E266-17,AllData,COLUMN()-1-COLUMN($E266)),VLOOKUP($E266-18,AllData,COLUMN()-1-COLUMN($E266)),VLOOKUP($E266-19,AllData,COLUMN()-1-COLUMN($E266)),VLOOKUP($E266-20,AllData,COLUMN()-1-COLUMN($E266)),VLOOKUP($E266-21,AllData,COLUMN()-1-COLUMN($E266)),VLOOKUP($E266-22,AllData,COLUMN()-1-COLUMN($E266)),VLOOKUP($E266-23,AllData,COLUMN()-1-COLUMN($E266)),VLOOKUP($E266-24,AllData,COLUMN()-1-COLUMN($E266)),VLOOKUP($E266-25,AllData,COLUMN()-1-COLUMN($E266)),VLOOKUP($E266-26,AllData,COLUMN()-1-COLUMN($E266)),VLOOKUP($E266-27,AllData,COLUMN()-1-COLUMN($E266)),VLOOKUP($E266-28,AllData,COLUMN()-1-COLUMN($E266)),VLOOKUP($E266-29,AllData,COLUMN()-1-COLUMN($E266)))","v":{"$error":"#N/A"}},{"$f":"VLOOKUP($E266,AllData,COLUMN()-2-COLUMN($E266))","v":{"$error":"#N/A"}},{"$f":"OR('Cool Graph'!$H$1=35,'Cool Graph'!$H$1=36,'Cool Graph'!$H$1=37,'Cool Graph'!$H$1=38,'Cool Graph'!$H$1=39,'Cool Graph'!$H$1=40,'Cool Graph'!$H$1=41,'Cool Graph'!$H$1=42,'Cool Graph'!$H$1=43,'Cool Graph'!$H$1=44,'Cool Graph'!$H$1=45,'Cool Graph'!$H$1=46,'Cool Graph'!$H$1=47,'Cool Graph'!$H$1=58,'Cool Graph'!$H$1=66)","v":false},{"$f":"SUM(VLOOKUP($E266,AllData,COLUMN()-5-COLUMN($E266)),VLOOKUP($E266-1,AllData,COLUMN()-5-COLUMN($E266)),VLOOKUP($E266-2,AllData,COLUMN()-5-COLUMN($E266)),VLOOKUP($E266-3,AllData,COLUMN()-5-COLUMN($E266)),VLOOKUP($E266-4,AllData,COLUMN()-5-COLUMN($E266)),VLOOKUP($E266-5,AllData,COLUMN()-5-COLUMN($E266)),VLOOKUP($E266-6,AllData,COLUMN()-5-COLUMN($E266)))","v":{"$error":"#N/A"}},{"$f":"SUM(VLOOKUP($E266,AllData,COLUMN()-6-COLUMN($E266)),VLOOKUP($E266-1,AllData,COLUMN()-6-COLUMN($E266)),VLOOKUP($E266-2,AllData,COLUMN()-6-COLUMN($E266)),VLOOKUP($E266-3,AllData,COLUMN()-6-COLUMN($E266)),VLOOKUP($E266-4,AllData,COLUMN()-6-COLUMN($E266)),VLOOKUP($E266-5,AllData,COLUMN()-6-COLUMN($E266)),VLOOKUP($E266-6,AllData,COLUMN()-6-COLUMN($E266)),VLOOKUP($E266-7,AllData,COLUMN()-6-COLUMN($E266)),VLOOKUP($E266-8,AllData,COLUMN()-6-COLUMN($E266)),VLOOKUP($E266-9,AllData,COLUMN()-6-COLUMN($E266)),VLOOKUP($E266-10,AllData,COLUMN()-6-COLUMN($E266)),VLOOKUP($E266-11,AllData,COLUMN()-6-COLUMN($E266)),VLOOKUP($E266-12,AllData,COLUMN()-6-COLUMN($E266)),VLOOKUP($E266-13,AllData,COLUMN()-6-COLUMN($E266)),VLOOKUP($E266-14,AllData,COLUMN()-6-COLUMN($E266)),VLOOKUP($E266-15,AllData,COLUMN()-6-COLUMN($E266)),VLOOKUP($E266-16,AllData,COLUMN()-6-COLUMN($E266)),VLOOKUP($E266-17,AllData,COLUMN()-6-COLUMN($E266)),VLOOKUP($E266-18,AllData,COLUMN()-6-COLUMN($E266)),VLOOKUP($E266-19,AllData,COLUMN()-6-COLUMN($E266)),VLOOKUP($E266-20,AllData,COLUMN()-6-COLUMN($E266)),VLOOKUP($E266-21,AllData,COLUMN()-6-COLUMN($E266)),VLOOKUP($E266-22,AllData,COLUMN()-6-COLUMN($E266)),VLOOKUP($E266-23,AllData,COLUMN()-6-COLUMN($E266)),VLOOKUP($E266-24,AllData,COLUMN()-6-COLUMN($E266)),VLOOKUP($E266-25,AllData,COLUMN()-6-COLUMN($E266)),VLOOKUP($E266-26,AllData,COLUMN()-6-COLUMN($E266)),VLOOKUP($E266-27,AllData,COLUMN()-6-COLUMN($E266)),VLOOKUP($E266-28,AllData,COLUMN()-6-COLUMN($E266)),VLOOKUP($E266-29,AllData,COLUMN()-6-COLUMN($E266)))","v":{"$error":"#N/A"}},{"$f":"VLOOKUP($E266,AllData,COLUMN()-7-COLUMN($E266))","v":{"$error":"#N/A"}},{"$f":"OR('Cool Graph'!$I$1=35,'Cool Graph'!$I$1=36,'Cool Graph'!$I$1=37,'Cool Graph'!$I$1=38,'Cool Graph'!$I$1=39,'Cool Graph'!$I$1=40,'Cool Graph'!$I$1=41,'Cool Graph'!$I$1=42,'Cool Graph'!$I$1=43,'Cool Graph'!$I$1=44,'Cool Graph'!$I$1=45,'Cool Graph'!$I$1=46,'Cool Graph'!$I$1=47,'Cool Graph'!$I$1=58,'Cool Graph'!$I$1=66)","v":false}]
["2012-03-22",{"$f":"OFFSET(OldSchoolJustValues!A267,0,'Cool Graph'!$H$1)","v":179.91},{"$f":"OFFSET(OldSchoolJustValues!A267,0,'Cool Graph'!$I$1)","v":170.04969798864852},null,{"$f":"IF(NewDate>EndDate,NA(),NewDate)","v":{"$error":"#N/A"}},{"$f":"IF($E267>EndDate,NA(),IF($K$2=TRUE,N267,IF('Cool Graph'!$B$17=1,N267,IF('Cool Graph'!$B$17=2,L267,IF('Cool Graph'!$B$17=3,M267,)))))","v":{"$error":"#N/A"}},{"$f":"IF($E267>EndDate,NA(),IF($O$2=TRUE,J267,IF('Cool Graph'!$B$17=1,Data1!J267,IF('Cool Graph'!$B$17=2,Data1!H267,IF('Cool Graph'!$B$17=3,Data1!I267,)))))","v":{"$error":"#N/A"}},{"$f":"SUM(VLOOKUP($E267,AllData,COLUMN()-COLUMN($E267)),VLOOKUP($E267-1,AllData,COLUMN()-COLUMN($E267)),VLOOKUP($E267-2,AllData,COLUMN()-COLUMN($E267)),VLOOKUP($E267-3,AllData,COLUMN()-COLUMN($E267)),VLOOKUP($E267-4,AllData,COLUMN()-COLUMN($E267)),VLOOKUP($E267-5,AllData,COLUMN()-COLUMN($E267)),VLOOKUP($E267-6,AllData,COLUMN()-COLUMN($E267)))","v":{"$error":"#N/A"}},{"$f":"SUM(VLOOKUP($E267,AllData,COLUMN()-1-COLUMN($E267)),VLOOKUP($E267-1,AllData,COLUMN()-1-COLUMN($E267)),VLOOKUP($E267-2,AllData,COLUMN()-1-COLUMN($E267)),VLOOKUP($E267-3,AllData,COLUMN()-1-COLUMN($E267)),VLOOKUP($E267-4,AllData,COLUMN()-1-COLUMN($E267)),VLOOKUP($E267-5,AllData,COLUMN()-1-COLUMN($E267)),VLOOKUP($E267-6,AllData,COLUMN()-1-COLUMN($E267)),VLOOKUP($E267-7,AllData,COLUMN()-1-COLUMN($E267)),VLOOKUP($E267-8,AllData,COLUMN()-1-COLUMN($E267)),VLOOKUP($E267-9,AllData,COLUMN()-1-COLUMN($E267)),VLOOKUP($E267-10,AllData,COLUMN()-1-COLUMN($E267)),VLOOKUP($E267-11,AllData,COLUMN()-1-COLUMN($E267)),VLOOKUP($E267-12,AllData,COLUMN()-1-COLUMN($E267)),VLOOKUP($E267-13,AllData,COLUMN()-1-COLUMN($E267)),VLOOKUP($E267-14,AllData,COLUMN()-1-COLUMN($E267)),VLOOKUP($E267-15,AllData,COLUMN()-1-COLUMN($E267)),VLOOKUP($E267-16,AllData,COLUMN()-1-COLUMN($E267)),VLOOKUP($E267-17,AllData,COLUMN()-1-COLUMN($E267)),VLOOKUP($E267-18,AllData,COLUMN()-1-COLUMN($E267)),VLOOKUP($E267-19,AllData,COLUMN()-1-COLUMN($E267)),VLOOKUP($E267-20,AllData,COLUMN()-1-COLUMN($E267)),VLOOKUP($E267-21,AllData,COLUMN()-1-COLUMN($E267)),VLOOKUP($E267-22,AllData,COLUMN()-1-COLUMN($E267)),VLOOKUP($E267-23,AllData,COLUMN()-1-COLUMN($E267)),VLOOKUP($E267-24,AllData,COLUMN()-1-COLUMN($E267)),VLOOKUP($E267-25,AllData,COLUMN()-1-COLUMN($E267)),VLOOKUP($E267-26,AllData,COLUMN()-1-COLUMN($E267)),VLOOKUP($E267-27,AllData,COLUMN()-1-COLUMN($E267)),VLOOKUP($E267-28,AllData,COLUMN()-1-COLUMN($E267)),VLOOKUP($E267-29,AllData,COLUMN()-1-COLUMN($E267)))","v":{"$error":"#N/A"}},{"$f":"VLOOKUP($E267,AllData,COLUMN()-2-COLUMN($E267))","v":{"$error":"#N/A"}},{"$f":"OR('Cool Graph'!$H$1=35,'Cool Graph'!$H$1=36,'Cool Graph'!$H$1=37,'Cool Graph'!$H$1=38,'Cool Graph'!$H$1=39,'Cool Graph'!$H$1=40,'Cool Graph'!$H$1=41,'Cool Graph'!$H$1=42,'Cool Graph'!$H$1=43,'Cool Graph'!$H$1=44,'Cool Graph'!$H$1=45,'Cool Graph'!$H$1=46,'Cool Graph'!$H$1=47,'Cool Graph'!$H$1=58,'Cool Graph'!$H$1=66)","v":false},{"$f":"SUM(VLOOKUP($E267,AllData,COLUMN()-5-COLUMN($E267)),VLOOKUP($E267-1,AllData,COLUMN()-5-COLUMN($E267)),VLOOKUP($E267-2,AllData,COLUMN()-5-COLUMN($E267)),VLOOKUP($E267-3,AllData,COLUMN()-5-COLUMN($E267)),VLOOKUP($E267-4,AllData,COLUMN()-5-COLUMN($E267)),VLOOKUP($E267-5,AllData,COLUMN()-5-COLUMN($E267)),VLOOKUP($E267-6,AllData,COLUMN()-5-COLUMN($E267)))","v":{"$error":"#N/A"}},{"$f":"SUM(VLOOKUP($E267,AllData,COLUMN()-6-COLUMN($E267)),VLOOKUP($E267-1,AllData,COLUMN()-6-COLUMN($E267)),VLOOKUP($E267-2,AllData,COLUMN()-6-COLUMN($E267)),VLOOKUP($E267-3,AllData,COLUMN()-6-COLUMN($E267)),VLOOKUP($E267-4,AllData,COLUMN()-6-COLUMN($E267)),VLOOKUP($E267-5,AllData,COLUMN()-6-COLUMN($E267)),VLOOKUP($E267-6,AllData,COLUMN()-6-COLUMN($E267)),VLOOKUP($E267-7,AllData,COLUMN()-6-COLUMN($E267)),VLOOKUP($E267-8,AllData,COLUMN()-6-COLUMN($E267)),VLOOKUP($E267-9,AllData,COLUMN()-6-COLUMN($E267)),VLOOKUP($E267-10,AllData,COLUMN()-6-COLUMN($E267)),VLOOKUP($E267-11,AllData,COLUMN()-6-COLUMN($E267)),VLOOKUP($E267-12,AllData,COLUMN()-6-COLUMN($E267)),VLOOKUP($E267-13,AllData,COLUMN()-6-COLUMN($E267)),VLOOKUP($E267-14,AllData,COLUMN()-6-COLUMN($E267)),VLOOKUP($E267-15,AllData,COLUMN()-6-COLUMN($E267)),VLOOKUP($E267-16,AllData,COLUMN()-6-COLUMN($E267)),VLOOKUP($E267-17,AllData,COLUMN()-6-COLUMN($E267)),VLOOKUP($E267-18,AllData,COLUMN()-6-COLUMN($E267)),VLOOKUP($E267-19,AllData,COLUMN()-6-COLUMN($E267)),VLOOKUP($E267-20,AllData,COLUMN()-6-COLUMN($E267)),VLOOKUP($E267-21,AllData,COLUMN()-6-COLUMN($E267)),VLOOKUP($E267-22,AllData,COLUMN()-6-COLUMN($E267)),VLOOKUP($E267-23,AllData,COLUMN()-6-COLUMN($E267)),VLOOKUP($E267-24,AllData,COLUMN()-6-COLUMN($E267)),VLOOKUP($E267-25,AllData,COLUMN()-6-COLUMN($E267)),VLOOKUP($E267-26,AllData,COLUMN()-6-COLUMN($E267)),VLOOKUP($E267-27,AllData,COLUMN()-6-COLUMN($E267)),VLOOKUP($E267-28,AllData,COLUMN()-6-COLUMN($E267)),VLOOKUP($E267-29,AllData,COLUMN()-6-COLUMN($E267)))","v":{"$error":"#N/A"}},{"$f":"VLOOKUP($E267,AllData,COLUMN()-7-COLUMN($E267))","v":{"$error":"#N/A"}},{"$f":"OR('Cool Graph'!$I$1=35,'Cool Graph'!$I$1=36,'Cool Graph'!$I$1=37,'Cool Graph'!$I$1=38,'Cool Graph'!$I$1=39,'Cool Graph'!$I$1=40,'Cool Graph'!$I$1=41,'Cool Graph'!$I$1=42,'Cool Graph'!$I$1=43,'Cool Graph'!$I$1=44,'Cool Graph'!$I$1=45,'Cool Graph'!$I$1=46,'Cool Graph'!$I$1=47,'Cool Graph'!$I$1=58,'Cool Graph'!$I$1=66)","v":false}]

{"sheet":"Stats","index":19,"n_rows":113,"n_cols":7,"rows_kept":113,"cut":false,"hidden":false,"merged":[]}
["9/20/11 - 3/22/12","chartFirmA","chartFirmB","A","B","P-value","R squared"]
["Daily",1,6,{"$f":"VLOOKUP(\"Date\",OldSchoolData!$A$1:$BL$1,B2 +1,FALSE)","v":"Facebook Spend"},{"$f":"VLOOKUP(\"Date\",OldSchoolData!$A$1:$BZ$1,C2+1,FALSE)","v":"Total Ad Spend"},9.6889771072438678E-77,0.57167523047358448]
[null,4,14,{"$f":"VLOOKUP(\"Date\",OldSchoolData!$A$1:$BL$1,B3 +1,FALSE)","v":"Adwords Display Spend"},{"$f":"VLOOKUP(\"Date\",OldSchoolData!$A$1:$BZ$1,C3+1,FALSE)","v":"Adwords Content Spend"},2.1472700311700982E-2,0.98927408073345124]
[null,11,15,{"$f":"VLOOKUP(\"Date\",OldSchoolData!$A$1:$BL$1,B4 +1,FALSE)","v":"adwords display Conv."},{"$f":"VLOOKUP(\"Date\",OldSchoolData!$A$1:$BZ$1,C4+1,FALSE)","v":"Adwords Content Conv."},2.2439440038113528E-2,0.75865228415024677]
[null,19,28,{"$f":"VLOOKUP(\"Date\",OldSchoolData!$A$1:$BL$1,B5 +1,FALSE)","v":"Amazon iPods Sold"},{"$f":"VLOOKUP(\"Date\",OldSchoolData!$A$1:$BZ$1,C5+1,FALSE)","v":"Amazon Revenue"},1.5297163045104188E-26,0.94261271129125124]
[null,23,29,{"$f":"VLOOKUP(\"Date\",OldSchoolData!$A$1:$BL$1,B6 +1,FALSE)","v":"Magento iPods Sold"},{"$f":"VLOOKUP(\"Date\",OldSchoolData!$A$1:$BZ$1,C6+1,FALSE)","v":"Magento Revenue"},2.4791866535163774E-49,0.99252079620047617]
[null,23,30,{"$f":"VLOOKUP(\"Date\",OldSchoolData!$A$1:$BL$1,B7 +1,FALSE)","v":"Magento iPods Sold"},{"$f":"VLOOKUP(\"Date\",OldSchoolData!$A$1:$BZ$1,C7+1,FALSE)","v":"Total Revenue"},2.0214653909475147E-57,0.7575664848917899]
[null,23,67,{"$f":"VLOOKUP(\"Date\",OldSchoolData!$A$1:$BL$1,B8 +1,FALSE)","v":"Magento iPods Sold"},{"$f":"VLOOKUP(\"Date\",OldSchoolData!$A$1:$BZ$1,C8+1,FALSE)","v":"Estimated Profit (new way)"},5.1601286951120928E-39,0.74186923860464937]
[null,24,25,{"$f":"VLOOKUP(\"Date\",OldSchoolData!$A$1:$BL$1,B9 +1,FALSE)","v":"Magento Pyle Sold"},{"$f":"VLOOKUP(\"Date\",OldSchoolData!$A$1:$BZ$1,C9+1,FALSE)","v":"Magento Aquavibe Sold"},9.6346207851471991E-49,9.961655757162245E-4]
[null,24,27,{"$f":"VLOOKUP(\"Date\",OldSchoolData!$A$1:$BL$1,B10 +1,FALSE)","v":"Magento Pyle Sold"},{"$f":"VLOOKUP(\"Date\",OldSchoolData!$A$1:$BZ$1,C10+1,FALSE)","v":"Total iPods sold"},2.1521603383402928E-6,0.73840838905080786]
[null,24,29,{"$f":"VLOOKUP(\"Date\",OldSchoolData!$A$1:$BL$1,B11 +1,FALSE)","v":"Magento Pyle Sold"},{"$f":"VLOOKUP(\"Date\",OldSchoolData!$A$1:$BZ$1,C11+1,FALSE)","v":"Magento Revenue"},2.4469710165333042E-49,0.97172753287780811]
[null,24,30,{"$f":"VLOOKUP(\"Date\",OldSchoolData!$A$1:$BL$1,B12 +1,FALSE)","v":"Magento Pyle Sold"},{"$f":"VLOOKUP(\"Date\",OldSchoolData!$A$1:$BZ$1,C12+1,FALSE)","v":"Total Revenue"},2.0001285321059932E-57,0.71658263389814547]
[null,24,67,{"$f":"VLOOKUP(\"Date\",OldSchoolData!$A$1:$BL$1,B13 +1,FALSE)","v":"Magento Pyle Sold"},{"$f":"VLOOKUP(\"Date\",OldSchoolData!$A$1:$BZ$1,C13+1,FALSE)","v":"Estimated Profit (new way)"},4.9836074847096996E-39,0.70638960987768618]
[null,27,29,{"$f":"VLOOKUP(\"Date\",OldSchoolData!$A$1:$BL$1,B14 +1,FALSE)","v":"Total iPods sold"},{"$f":"VLOOKUP(\"Date\",OldSchoolData!$A$1:$BZ$1,C14+1,FALSE)","v":"Magento Revenue"},3.1487978910949749E-49,0.79352790594644129]
[null,27,30,{"$f":"VLOOKUP(\"Date\",OldSchoolData!$A$1:$BL$1,B15 +1,FALSE)","v":"Total iPods sold"},{"$f":"VLOOKUP(\"Date\",OldSchoolData!$A$1:$BZ$1,C15+1,FALSE)","v":"Total Revenue"},2.4540151204141159E-57,0.98075816632200197]
[null,27,67,{"$f":"VLOOKUP(\"Date\",OldSchoolData!$A$1:$BL$1,B16 +1,FALSE)","v":"Total iPods sold"},{"$f":"VLOOKUP(\"Date\",OldSchoolData!$A$1:$BZ$1,C16+1,FALSE)","v":"Estimated Profit (new way)"},9.7534290455506829E-39,0.9257738714005872]
[null,29,30,{"$f":"VLOOKUP(\"Date\",OldSchoolData!$A$1:$BL$1,B17 +1,FALSE)","v":"Magento Revenue"},{"$f":"VLOOKUP(\"Date\",OldSchoolData!$A$1:$BZ$1,C17+1,FALSE)","v":"Total Revenue"},1.1531997917030296E-5,0.78529681001629581]
[null,29,67,{"$f":"VLOOKUP(\"Date\",OldSchoolData!$A$1:$BL$1,B18 +1,FALSE)","v":"Magento Revenue"},{"$f":"VLOOKUP(\"Date\",OldSchoolData!$A$1:$BZ$1,C18+1,FALSE)","v":"Estimated Profit (new way)"},3.8111333532948112E-29,0.76249701930282665]
[null,35,38,{"$f":"VLOOKUP(\"Date\",OldSchoolData!$A$1:$BL$1,B19 +1,FALSE)","v":"Umpqua Balance"},{"$f":"VLOOKUP(\"Date\",OldSchoolData!$A$1:$BZ$1,C19+1,FALSE)","v":"Total Balance"},5.1203257542619949E-7,0.72726390022988097]
[null,39,40,{"$f":"VLOOKUP(\"Date\",OldSchoolData!$A$1:$BL$1,B20 +1,FALSE)","v":"Actual Balance"},{"$f":"VLOOKUP(\"Date\",OldSchoolData!$A$1:$BZ$1,C20+1,FALSE)","v":"iPod inventory"},5.1094233273146415E-74,0.50085810372633155]
[null,39,66,{"$f":"VLOOKUP(\"Date\",OldSchoolData!$A$1:$BL$1,B21 +1,FALSE)","v":"Actual Balance"},{"$f":"VLOOKUP(\"Date\",OldSchoolData!$A$1:$BZ$1,C21+1,FALSE)","v":"Savings Balance"},1.7364578548189676E-60,0.67335441899129]
[null,40,66,{"$f":"VLOOKUP(\"Date\",OldSchoolData!$A$1:$BL$1,B22 +1,FALSE)","v":"iPod inventory"},{"$f":"VLOOKUP(\"Date\",OldSchoolData!$A$1:$BZ$1,C22+1,FALSE)","v":"Savings Balance"},5.2955596179945884E-52,0.54368703481807124]
[null,40,67,{"$f":"VLOOKUP(\"Date\",OldSchoolData!$A$1:$BL$1,B23 +1,FALSE)","v":"iPod inventory"},{"$f":"VLOOKUP(\"Date\",OldSchoolData!$A$1:$BZ$1,C23+1,FALSE)","v":"Estimated Profit (new way)"},6.2277927107770824E-6,4.3695830751257381E-2]
[null,43,65,{"$f":"VLOOKUP(\"Date\",OldSchoolData!$A$1:$BL$1,B24 +1,FALSE)","v":"Discovery"},{"$f":"VLOOKUP(\"Date\",OldSchoolData!$A$1:$BZ$1,C24+1,FALSE)","v":"SwimBuds Inventory"},9.261225978544641E-5,0.60138095067208985]
[null,3,57,{"$f":"VLOOKUP(\"Date\",OldSchoolData!$A$1:$BL$1,B25 +1,FALSE)","v":"adWords Search Spend"},{"$f":"VLOOKUP(\"Date\",OldSchoolData!$A$1:$BZ$1,C25+1,FALSE)","v":"Missing iPods"},1.7513870939942248E-7,0.54479596651257856]
[null,4,12,{"$f":"VLOOKUP(\"Date\",OldSchoolData!$A$1:$BL$1,B26 +1,FALSE)","v":"Adwords Display Spend"},{"$f":"VLOOKUP(\"Date\",OldSchoolData!$A$1:$BZ$1,C26+1,FALSE)","v":"adwords display view-through conv."},1.7313511492475279E-5,0.53659805052626086]
[null,4,20,{"$f":"VLOOKUP(\"Date\",OldSchoolData!$A$1:$BL$1,B27 +1,FALSE)","v":"Adwords Display Spend"},{"$f":"VLOOKUP(\"Date\",OldSchoolData!$A$1:$BZ$1,C27+1,FALSE)","v":"Amazon Pyle Sold"},1.781467468110068E-5,0.76517124034420458]
[null,4,27,{"$f":"VLOOKUP(\"Date\",OldSchoolData!$A$1:$BL$1,B28 +1,FALSE)","v":"Adwords Display Spend"},{"$f":"VLOOKUP(\"Date\",OldSchoolData!$A$1:$BZ$1,C28+1,FALSE)","v":"Total iPods sold"},3.7127511756534738E-5,0.559829650672239]
[null,4,30,{"$f":"VLOOKUP(\"Date\",OldSchoolData!$A$1:$BL$1,B29 +1,FALSE)","v":"Adwords Display Spend"},{"$f":"VLOOKUP(\"Date\",OldSchoolData!$A$1:$BZ$1,C29+1,FALSE)","v":"Total Revenue"},4.3239061598775241E-7,0.56388198872858508]
[null,4,53,{"$f":"VLOOKUP(\"Date\",OldSchoolData!$A$1:$BL$1,B30 +1,FALSE)","v":"Adwords Display Spend"},{"$f":"VLOOKUP(\"Date\",OldSchoolData!$A$1:$BZ$1,C30+1,FALSE)","v":"iPods myaccountaccess"},8.078463286737215E-6,0.55422948796516902]
[null,4,57,{"$f":"VLOOKUP(\"Date\",OldSchoolData!$A$1:$BL$1,B31 +1,FALSE)","v":"Adwords Display Spend"},{"$f":"VLOOKUP(\"Date\",OldSchoolData!$A$1:$BZ$1,C31+1,FALSE)","v":"Missing iPods"},1.6675558643821647E-5,0.57070115819056577]
[null,4,67,{"$f":"VLOOKUP(\"Date\",OldSchoolData!$A$1:$BL$1,B32 +1,FALSE)","v":"Adwords Display Spend"},{"$f":"VLOOKUP(\"Date\",OldSchoolData!$A$1:$BZ$1,C32+1,FALSE)","v":"Estimated Profit (new way)"},3.1130998321895277E-7,0.61004339608623592]
[null,5,7,{"$f":"VLOOKUP(\"Date\",OldSchoolData!$A$1:$BL$1,B33 +1,FALSE)","v":"Adcenter Spend"},{"$f":"VLOOKUP(\"Date\",OldSchoolData!$A$1:$BZ$1,C33+1,FALSE)","v":"Facebook Conv."},4.0800818368867443E-6,0.66145481279508134]
[null,5,8,{"$f":"VLOOKUP(\"Date\",OldSchoolData!$A$1:$BL$1,B34 +1,FALSE)","v":"Adcenter Spend"},{"$f":"VLOOKUP(\"Date\",OldSchoolData!$A$1:$BZ$1,C34+1,FALSE)","v":"Amazon Ads Conv."},3.9287547358798066E-6,0.69360844322487247]
[null,6,14,{"$f":"VLOOKUP(\"Date\",OldSchoolData!$A$1:$BL$1,B35 +1,FALSE)","v":"Total Ad Spend"},{"$f":"VLOOKUP(\"Date\",OldSchoolData!$A$1:$BZ$1,C35+1,FALSE)","v":"Adwords Content Spend"},8.5048699412322751E-7,0.51773972261816037]
[null,6,15,{"$f":"VLOOKUP(\"Date\",OldSchoolData!$A$1:$BL$1,B36 +1,FALSE)","v":"Total Ad Spend"},{"$f":"VLOOKUP(\"Date\",OldSchoolData!$A$1:$BZ$1,C36+1,FALSE)","v":"Adwords Content Conv."},7.4715880600748977E-7,0.63123740880751578]
[null,6,19,{"$f":"VLOOKUP(\"Date\",OldSchoolData!$A$1:$BL$1,B37 +1,FALSE)","v":"Total Ad Spend"},{"$f":"VLOOKUP(\"Date\",OldSchoolData!$A$1:$BZ$1,C37+1,FALSE)","v":"Amazon iPods Sold"},8.0734096583312354E-7,0.66798140171177145]
[null,6,27,{"$f":"VLOOKUP(\"Date\",OldSchoolData!$A$1:$BL$1,B38 +1,FALSE)","v":"Total Ad Spend"},{"$f":"VLOOKUP(\"Date\",OldSchoolData!$A$1:$BZ$1,C38+1,FALSE)","v":"Total iPods sold"},9.413070708249488E-7,0.87073378790532197]
[null,6,28,{"$f":"VLOOKUP(\"Date\",OldSchoolData!$A$1:$BL$1,B39 +1,FALSE)","v":"Total Ad Spend"},{"$f":"VLOOKUP(\"Date\",OldSchoolData!$A$1:$BZ$1,C39+1,FALSE)","v":"Amazon Revenue"},1.0402992779037241E-3,0.69630520021984799]
[null,6,30,{"$f":"VLOOKUP(\"Date\",OldSchoolData!$A$1:$BL$1,B40 +1,FALSE)","v":"Total Ad Spend"},{"$f":"VLOOKUP(\"Date\",OldSchoolData!$A$1:$BZ$1,C40+1,FALSE)","v":"Total Revenue"},6.9259668588876477E-7,0.89172732131476906]
[null,6,32,{"$f":"VLOOKUP(\"Date\",OldSchoolData!$A$1:$BL$1,B41 +1,FALSE)","v":"Total Ad Spend"},{"$f":"VLOOKUP(\"Date\",OldSchoolData!$A$1:$BZ$1,C41+1,FALSE)","v":"Paypal Amount Sent"},4.308281021442999E-5,0.58979862852042197]
[null,6,37,{"$f":"VLOOKUP(\"Date\",OldSchoolData!$A$1:$BL$1,B42 +1,FALSE)","v":"Total Ad Spend"},{"$f":"VLOOKUP(\"Date\",OldSchoolData!$A$1:$BZ$1,C42+1,FALSE)","v":"Amazon Balance"},1.2193713277330234E-2,0.59419219917351374]
[null,6,42,{"$f":"VLOOKUP(\"Date\",OldSchoolData!$A$1:$BL$1,B43 +1,FALSE)","v":"Total Ad Spend"},{"$f":"VLOOKUP(\"Date\",OldSchoolData!$A$1:$BZ$1,C43+1,FALSE)","v":"Aquavibe"},8.392062116398754E-7,0.6542926128352442]
[null,6,60,{"$f":"VLOOKUP(\"Date\",OldSchoolData!$A$1:$BL$1,B44 +1,FALSE)","v":"Total Ad Spend"},{"$f":"VLOOKUP(\"Date\",OldSchoolData!$A$1:$BZ$1,C44+1,FALSE)","v":"Paypal Calculated stuff"},4.308281021442999E-5,0.58979862852042197]
[null,6,67,{"$f":"VLOOKUP(\"Date\",OldSchoolData!$A$1:$BL$1,B45 +1,FALSE)","v":"Total Ad Spend"},{"$f":"VLOOKUP(\"Date\",OldSchoolData!$A$1:$BZ$1,C45+1,FALSE)","v":"Estimated Profit (new way)"},2.9202635189323346E-5,0.7252968713984671]
[null,8,26,{"$f":"VLOOKUP(\"Date\",OldSchoolData!$A$1:$BL$1,B46 +1,FALSE)","v":"Amazon Ads Conv."},{"$f":"VLOOKUP(\"Date\",OldSchoolData!$A$1:$BZ$1,C46+1,FALSE)","v":"Magento Discovery Sold"},2.1332156381196066E-2,0.63945070642640023]
[null,9,16,{"$f":"VLOOKUP(\"Date\",OldSchoolData!$A$1:$BL$1,B47 +1,FALSE)","v":"Lava Conv."},{"$f":"VLOOKUP(\"Date\",OldSchoolData!$A$1:$BZ$1,C47+1,FALSE)","v":"Adwords Content View Through"},1.3208042229037264E-4,0.57042253521126796]
[null,10,26,{"$f":"VLOOKUP(\"Date\",OldSchoolData!$A$1:$BL$1,B48 +1,FALSE)","v":"adWords Search Conv."},{"$f":"VLOOKUP(\"Date\",OldSchoolData!$A$1:$BZ$1,C48+1,FALSE)","v":"Magento Discovery Sold"},1.9322421983930563E-9,0.69808779962294631]
[null,11,27,{"$f":"VLOOKUP(\"Date\",OldSchoolData!$A$1:$BL$1,B49 +1,FALSE)","v":"adwords display Conv."},{"$f":"VLOOKUP(\"Date\",OldSchoolData!$A$1:$BZ$1,C49+1,FALSE)","v":"Total iPods sold"},4.8872004423693115E-7,0.50420991121176473]
[null,11,30,{"$f":"VLOOKUP(\"Date\",OldSchoolData!$A$1:$BL$1,B50 +1,FALSE)","v":"adwords display Conv."},{"$f":"VLOOKUP(\"Date\",OldSchoolData!$A$1:$BZ$1,C50+1,FALSE)","v":"Total Revenue"},3.5161629877161381E-7,0.52358435808298254]
[null,11,40,{"$f":"VLOOKUP(\"Date\",OldSchoolData!$A$1:$BL$1,B51 +1,FALSE)","v":"adwords display Conv."},{"$f":"VLOOKUP(\"Date\",OldSchoolData!$A$1:$BZ$1,C51+1,FALSE)","v":"iPod inventory"},1.3969224020994769E-5,0.78382482336563974]
[null,11,42,{"$f":"VLOOKUP(\"Date\",OldSchoolData!$A$1:$BL$1,B52 +1,FALSE)","v":"adwords display Conv."},{"$f":"VLOOKUP(\"Date\",OldSchoolData!$A$1:$BZ$1,C52+1,FALSE)","v":"Aquavibe"},4.0657477700810406E-4,0.56263817168542274]
[null,11,67,{"$f":"VLOOKUP(\"Date\",OldSchoolData!$A$1:$BL$1,B53 +1,FALSE)","v":"adwords display Conv."},{"$f":"VLOOKUP(\"Date\",OldSchoolData!$A$1:$BZ$1,C53+1,FALSE)","v":"Estimated Profit (new way)"},3.3697936062316198E-7,0.55131860516428222]
[null,13,25,{"$f":"VLOOKUP(\"Date\",OldSchoolData!$A$1:$BL$1,B54 +1,FALSE)","v":"Adcenter Conv."},{"$f":"VLOOKUP(\"Date\",OldSchoolData!$A$1:$BZ$1,C54+1,FALSE)","v":"Magento Aquavibe Sold"},9.5040674084686284E-3,0.50000000000000011]
[null,14,20,{"$f":"VLOOKUP(\"Date\",OldSchoolData!$A$1:$BL$1,B55 +1,FALSE)","v":"Adwords Content Spend"},{"$f":"VLOOKUP(\"Date\",OldSchoolData!$A$1:$BZ$1,C55+1,FALSE)","v":"Amazon Pyle Sold"},2.7495515859324123E-5,0.77833769424691657]
[null,14,27,{"$f":"VLOOKUP(\"Date\",OldSchoolData!$A$1:$BL$1,B56 +1,FALSE)","v":"Adwords Content Spend"},{"$f":"VLOOKUP(\"Date\",OldSchoolData!$A$1:$BZ$1,C56+1,FALSE)","v":"Total iPods sold"},6.1104889386897967E-5,0.67667500929222602]
[null,14,28,{"$f":"VLOOKUP(\"Date\",OldSchoolData!$A$1:$BL$1,B57 +1,FALSE)","v":"Adwords Content Spend"},{"$f":"VLOOKUP(\"Date\",OldSchoolData!$A$1:$BZ$1,C57+1,FALSE)","v":"Amazon Revenue"},1.2163008167020378E-4,0.51035126709408529]
[null,14,30,{"$f":"VLOOKUP(\"Date\",OldSchoolData!$A$1:$BL$1,B58 +1,FALSE)","v":"Adwords Content Spend"},{"$f":"VLOOKUP(\"Date\",OldSchoolData!$A$1:$BZ$1,C58+1,FALSE)","v":"Total Revenue"},4.2292209937474444E-7,0.68260289029932031]
[null,14,67,{"$f":"VLOOKUP(\"Date\",OldSchoolData!$A$1:$BL$1,B59 +1,FALSE)","v":"Adwords Content Spend"},{"$f":"VLOOKUP(\"Date\",OldSchoolData!$A$1:$BZ$1,C59+1,FALSE)","v":"Estimated Profit (new way)"},2.8289235069698849E-7,0.71656761717342077]
[null,15,19,{"$f":"VLOOKUP(\"Date\",OldSchoolData!$A$1:$BL$1,B60 +1,FALSE)","v":"Adwords Content Conv."},{"$f":"VLOOKUP(\"Date\",OldSchoolData!$A$1:$BZ$1,C60+1,FALSE)","v":"Amazon iPods Sold"},1.1501477157045474E-4,0.60199450333725935]
[null,15,27,{"$f":"VLOOKUP(\"Date\",OldSchoolData!$A$1:$BL$1,B61 +1,FALSE)","v":"Adwords Content Conv."},{"$f":"VLOOKUP(\"Date\",OldSchoolData!$A$1:$BZ$1,C61+1,FALSE)","v":"Total iPods sold"},3.4688552289154052E-7,0.57255799235693616]
[null,15,28,{"$f":"VLOOKUP(\"Date\",OldSchoolData!$A$1:$BL$1,B62 +1,FALSE)","v":"Adwords Content Conv."},{"$f":"VLOOKUP(\"Date\",OldSchoolData!$A$1:$BZ$1,C62+1,FALSE)","v":"Amazon Revenue"},6.2638442286933632E-5,0.64321017871448094]
[null,15,30,{"$f":"VLOOKUP(\"Date\",OldSchoolData!$A$1:$BL$1,B63 +1,FALSE)","v":"Adwords Content Conv."},{"$f":"VLOOKUP(\"Date\",OldSchoolData!$A$1:$BZ$1,C63+1,FALSE)","v":"Total Revenue"},3.5135776991261257E-7,0.62034507512566539]
[null,15,42,{"$f":"VLOOKUP(\"Date\",OldSchoolData!$A$1:$BL$1,B64 +1,FALSE)","v":"Adwords Content Conv."},{"$f":"VLOOKUP(\"Date\",OldSchoolData!$A$1:$BZ$1,C64+1,FALSE)","v":"Aquavibe"},3.5573096845058048E-4,0.60683558485514966]
[null,15,67,{"$f":"VLOOKUP(\"Date\",OldSchoolData!$A$1:$BL$1,B65 +1,FALSE)","v":"Adwords Content Conv."},{"$f":"VLOOKUP(\"Date\",OldSchoolData!$A$1:$BZ$1,C65+1,FALSE)","v":"Estimated Profit (new way)"},3.359844986304862E-7,0.54190411210717593]
[null,17,18,{"$f":"VLOOKUP(\"Date\",OldSchoolData!$A$1:$BL$1,B66 +1,FALSE)","v":"Adwords Retargeting Spend"},{"$f":"VLOOKUP(\"Date\",OldSchoolData!$A$1:$BZ$1,C66+1,FALSE)","v":"Adwords Retargeting Conv."},1.2498821326074499E-3,0.69667945507479068]
[null,17,25,{"$f":"VLOOKUP(\"Date\",OldSchoolData!$A$1:$BL$1,B67 +1,FALSE)","v":"Adwords Retargeting Spend"},{"$f":"VLOOKUP(\"Date\",OldSchoolData!$A$1:$BZ$1,C67+1,FALSE)","v":"Magento Aquavibe Sold"},1.2441315549205146E-3,0.74672280151522552]
[null,17,35,{"$f":"VLOOKUP(\"Date\",OldSchoolData!$A$1:$BL$1,B68 +1,FALSE)","v":"Adwords Retargeting Spend"},{"$f":"VLOOKUP(\"Date\",OldSchoolData!$A$1:$BZ$1,C68+1,FALSE)","v":"Umpqua Balance"},3.6737651215866795E-4,0.75808829771648789]
[null,17,54,{"$f":"VLOOKUP(\"Date\",OldSchoolData!$A$1:$BL$1,B69 +1,FALSE)","v":"Adwords Retargeting Spend"},{"$f":"VLOOKUP(\"Date\",OldSchoolData!$A$1:$BZ$1,C69+1,FALSE)","v":"Yield Loss"},1.435247468257948E-3,0.60914239801750747]
[null,19,20,{"$f":"VLOOKUP(\"Date\",OldSchoolData!$A$1:$BL$1,B70 +1,FALSE)","v":"Amazon iPods Sold"},{"$f":"VLOOKUP(\"Date\",OldSchoolData!$A$1:$BZ$1,C70+1,FALSE)","v":"Amazon Pyle Sold"},2.4832958322534642E-4,0.56532397100219167]
[null,19,27,{"$f":"VLOOKUP(\"Date\",OldSchoolData!$A$1:$BL$1,B71 +1,FALSE)","v":"Amazon iPods Sold"},{"$f":"VLOOKUP(\"Date\",OldSchoolData!$A$1:$BZ$1,C71+1,FALSE)","v":"Total iPods sold"},1.2194378289265644E-6,0.84183297551218039]
[null,19,28,{"$f":"VLOOKUP(\"Date\",OldSchoolData!$A$1:$BL$1,B72 +1,FALSE)","v":"Amazon iPods Sold"},{"$f":"VLOOKUP(\"Date\",OldSchoolData!$A$1:$BZ$1,C72+1,FALSE)","v":"Amazon Revenue"},6.4684237618279416E-5,0.99513453009455755]
[null,19,30,{"$f":"VLOOKUP(\"Date\",OldSchoolData!$A$1:$BL$1,B73 +1,FALSE)","v":"Amazon iPods Sold"},{"$f":"VLOOKUP(\"Date\",OldSchoolData!$A$1:$BZ$1,C73+1,FALSE)","v":"Total Revenue"},3.5599062826300839E-7,0.83863799600581368]
[null,19,67,{"$f":"VLOOKUP(\"Date\",OldSchoolData!$A$1:$BL$1,B74 +1,FALSE)","v":"Amazon iPods Sold"},{"$f":"VLOOKUP(\"Date\",OldSchoolData!$A$1:$BZ$1,C74+1,FALSE)","v":"Estimated Profit (new way)"},3.5201139952704183E-7,0.85635061946831326]
[null,20,27,{"$f":"VLOOKUP(\"Date\",OldSchoolData!$A$1:$BL$1,B75 +1,FALSE)","v":"Amazon Pyle Sold"},{"$f":"VLOOKUP(\"Date\",OldSchoolData!$A$1:$BZ$1,C75+1,FALSE)","v":"Total iPods sold"},1.6005066019726809E-7,0.55154375126463229]
[null,20,28,{"$f":"VLOOKUP(\"Date\",OldSchoolData!$A$1:$BL$1,B76 +1,FALSE)","v":"Amazon Pyle Sold"},{"$f":"VLOOKUP(\"Date\",OldSchoolData!$A$1:$BZ$1,C76+1,FALSE)","v":"Amazon Revenue"},6.2958765844945406E-5,0.62275123029506396]
[null,20,30,{"$f":"VLOOKUP(\"Date\",OldSchoolData!$A$1:$BL$1,B77 +1,FALSE)","v":"Amazon Pyle Sold"},{"$f":"VLOOKUP(\"Date\",OldSchoolData!$A$1:$BZ$1,C77+1,FALSE)","v":"Total Revenue"},3.5209337757943522E-7,0.58459004990457841]
[null,20,67,{"$f":"VLOOKUP(\"Date\",OldSchoolData!$A$1:$BL$1,B78 +1,FALSE)","v":"Amazon Pyle Sold"},{"$f":"VLOOKUP(\"Date\",OldSchoolData!$A$1:$BZ$1,C78+1,FALSE)","v":"Estimated Profit (new way)"},3.3854144571474992E-7,0.62123165990318341]
[null,23,29,{"$f":"VLOOKUP(\"Date\",OldSchoolData!$A$1:$BL$1,B79 +1,FALSE)","v":"Magento iPods Sold"},{"$f":"VLOOKUP(\"Date\",OldSchoolData!$A$1:$BZ$1,C79+1,FALSE)","v":"Magento Revenue"},1.5291896862621039E-8,0.99294512968417203]
[null,23,32,{"$f":"VLOOKUP(\"Date\",OldSchoolData!$A$1:$BL$1,B80 +1,FALSE)","v":"Magento iPods Sold"},{"$f":"VLOOKUP(\"Date\",OldSchoolData!$A$1:$BZ$1,C80+1,FALSE)","v":"Paypal Amount Sent"},2.5291728312490983E-5,0.62574927456319906]
[null,23,38,{"$f":"VLOOKUP(\"Date\",OldSchoolData!$A$1:$BL$1,B81 +1,FALSE)","v":"Magento iPods Sold"},{"$f":"VLOOKUP(\"Date\",OldSchoolData!$A$1:$BZ$1,C81+1,FALSE)","v":"Total Balance"},5.6922911648793066E-8,0.67424202037585923]
[null,23,59,{"$f":"VLOOKUP(\"Date\",OldSchoolData!$A$1:$BL$1,B82 +1,FALSE)","v":"Magento iPods Sold"},{"$f":"VLOOKUP(\"Date\",OldSchoolData!$A$1:$BZ$1,C82+1,FALSE)","v":"Paypal Amount Sent before"},8.4738086245556375E-6,0.67938908852747648]
[null,23,60,{"$f":"VLOOKUP(\"Date\",OldSchoolData!$A$1:$BL$1,B83 +1,FALSE)","v":"Magento iPods Sold"},{"$f":"VLOOKUP(\"Date\",OldSchoolData!$A$1:$BZ$1,C83+1,FALSE)","v":"Paypal Calculated stuff"},2.5291728312490983E-5,0.62574927456319906]
[null,24,29,{"$f":"VLOOKUP(\"Date\",OldSchoolData!$A$1:$BL$1,B84 +1,FALSE)","v":"Magento Pyle Sold"},{"$f":"VLOOKUP(\"Date\",OldSchoolData!$A$1:$BZ$1,C84+1,FALSE)","v":"Magento Revenue"},1.5249831535166868E-8,0.57265925988812505]
[null,25,35,{"$f":"VLOOKUP(\"Date\",OldSchoolData!$A$1:$BL$1,B85 +1,FALSE)","v":"Magento Aquavibe Sold"},{"$f":"VLOOKUP(\"Date\",OldSchoolData!$A$1:$BZ$1,C85+1,FALSE)","v":"Umpqua Balance"},3.6191079225590721E-4,0.69641022416532783]
[null,25,43,{"$f":"VLOOKUP(\"Date\",OldSchoolData!$A$1:$BL$1,B86 +1,FALSE)","v":"Magento Aquavibe Sold"},{"$f":"VLOOKUP(\"Date\",OldSchoolData!$A$1:$BZ$1,C86+1,FALSE)","v":"Discovery"},3.9794027433428643E-2,0.51521926420642672]
[null,27,28,{"$f":"VLOOKUP(\"Date\",OldSchoolData!$A$1:$BL$1,B87 +1,FALSE)","v":"Total iPods sold"},{"$f":"VLOOKUP(\"Date\",OldSchoolData!$A$1:$BZ$1,C87+1,FALSE)","v":"Amazon Revenue"},6.8393420401116175E-5,0.85438910400644241]
[null,27,30,{"$f":"VLOOKUP(\"Date\",OldSchoolData!$A$1:$BL$1,B88 +1,FALSE)","v":"Total iPods sold"},{"$f":"VLOOKUP(\"Date\",OldSchoolData!$A$1:$BZ$1,C88+1,FALSE)","v":"Total Revenue"},3.6429227783840098E-7,0.99561177407974877]
[null,27,67,{"$f":"VLOOKUP(\"Date\",OldSchoolData!$A$1:$BL$1,B89 +1,FALSE)","v":"Total iPods sold"},{"$f":"VLOOKUP(\"Date\",OldSchoolData!$A$1:$BZ$1,C89+1,FALSE)","v":"Estimated Profit (new way)"},3.8483557031373271E-7,0.9613349526064362]
[null,28,30,{"$f":"VLOOKUP(\"Date\",OldSchoolData!$A$1:$BL$1,B90 +1,FALSE)","v":"Amazon Revenue"},{"$f":"VLOOKUP(\"Date\",OldSchoolData!$A$1:$BZ$1,C90+1,FALSE)","v":"Total Revenue"},7.8611549674623917E-7,0.85821329097820886]
[null,28,67,{"$f":"VLOOKUP(\"Date\",OldSchoolData!$A$1:$BL$1,B91 +1,FALSE)","v":"Amazon Revenue"},{"$f":"VLOOKUP(\"Date\",OldSchoolData!$A$1:$BZ$1,C91+1,FALSE)","v":"Estimated Profit (new way)"},2.2223485455546695E-2,0.86700151735255482]
[null,29,32,{"$f":"VLOOKUP(\"Date\",OldSchoolData!$A$1:$BL$1,B92 +1,FALSE)","v":"Magento Revenue"},{"$f":"VLOOKUP(\"Date\",OldSchoolData!$A$1:$BZ$1,C92+1,FALSE)","v":"Paypal Amount Sent"},3.2449971783668399E-4,0.68015792765946537]
[null,29,38,{"$f":"VLOOKUP(\"Date\",OldSchoolData!$A$1:$BL$1,B93 +1,FALSE)","v":"Magento Revenue"},{"$f":"VLOOKUP(\"Date\",OldSchoolData!$A$1:$BZ$1,C93+1,FALSE)","v":"Total Balance"},2.4542437885885867E-7,0.69012035636506119]
[null,29,60,{"$f":"VLOOKUP(\"Date\",OldSchoolData!$A$1:$BL$1,B94 +1,FALSE)","v":"Magento Revenue"},{"$f":"VLOOKUP(\"Date\",OldSchoolData!$A$1:$BZ$1,C94+1,FALSE)","v":"Paypal Calculated stuff"},3.2449971783668399E-4,0.68015792765946537]
[null,30,42,{"$f":"VLOOKUP(\"Date\",OldSchoolData!$A$1:$BL$1,B95 +1,FALSE)","v":"Total Revenue"},{"$f":"VLOOKUP(\"Date\",OldSchoolData!$A$1:$BZ$1,C95+1,FALSE)","v":"Aquavibe"},3.6284947975070234E-7,0.5766141507523993]
[null,30,67,{"$f":"VLOOKUP(\"Date\",OldSchoolData!$A$1:$BL$1,B96 +1,FALSE)","v":"Total Revenue"},{"$f":"VLOOKUP(\"Date\",OldSchoolData!$A$1:$BZ$1,C96+1,FALSE)","v":"Estimated Profit (new way)"},1.1288178385578911E-6,0.953902675671643]
[null,31,39,{"$f":"VLOOKUP(\"Date\",OldSchoolData!$A$1:$BL$1,B97 +1,FALSE)","v":"Estimated Profit"},{"$f":"VLOOKUP(\"Date\",OldSchoolData!$A$1:$BZ$1,C97+1,FALSE)","v":"Actual Balance"},1.1384610005976044E-10,0.68335462658503865]
[null,32,51,{"$f":"VLOOKUP(\"Date\",OldSchoolData!$A$1:$BL$1,B98 +1,FALSE)","v":"Paypal Amount Sent"},{"$f":"VLOOKUP(\"Date\",OldSchoolData!$A$1:$BZ$1,C98+1,FALSE)","v":"headphones End of Year"},2.509135107471982E-5,0.63332520817349536]
[null,34,35,{"$f":"VLOOKUP(\"Date\",OldSchoolData!$A$1:$BL$1,B99 +1,FALSE)","v":"myAccountAccess Amount Sent"},{"$f":"VLOOKUP(\"Date\",OldSchoolData!$A$1:$BZ$1,C99+1,FALSE)","v":"Umpqua Balance"},1.7756687819623841E-2,0.50997608187608612]
[null,35,36,{"$f":"VLOOKUP(\"Date\",OldSchoolData!$A$1:$BL$1,B100 +1,FALSE)","v":"Umpqua Balance"},{"$f":"VLOOKUP(\"Date\",OldSchoolData!$A$1:$BZ$1,C100+1,FALSE)","v":"myAccountAccess Balance"},3.946885442807139E-4,0.81269615419186469]
[null,35,64,{"$f":"VLOOKUP(\"Date\",OldSchoolData!$A$1:$BL$1,B101 +1,FALSE)","v":"Umpqua Balance"},{"$f":"VLOOKUP(\"Date\",OldSchoolData!$A$1:$BZ$1,C101+1,FALSE)","v":0},1.7756687819623841E-2,0.50997608187608612]
[null,39,40,{"$f":"VLOOKUP(\"Date\",OldSchoolData!$A$1:$BL$1,B102 +1,FALSE)","v":"Actual Balance"},{"$f":"VLOOKUP(\"Date\",OldSchoolData!$A$1:$BZ$1,C102+1,FALSE)","v":"iPod inventory"},5.5803952707391522E-9,0.5398916905035871]
[null,40,53,{"$f":"VLOOKUP(\"Date\",OldSchoolData!$A$1:$BL$1,B103 +1,FALSE)","v":"iPod inventory"},{"$f":"VLOOKUP(\"Date\",OldSchoolData!$A$1:$BZ$1,C103+1,FALSE)","v":"iPods myaccountaccess"},6.1743315148020581E-6,0.55798683730359544]
[null,41,63,{"$f":"VLOOKUP(\"Date\",OldSchoolData!$A$1:$BL$1,B104 +1,FALSE)","v":"Pyle"},{"$f":"VLOOKUP(\"Date\",OldSchoolData!$A$1:$BZ$1,C104+1,FALSE)","v":"MyAccountAccess"},4.3897136347321598E-2,0.60096198126590228]
[null,43,54,{"$f":"VLOOKUP(\"Date\",OldSchoolData!$A$1:$BL$1,B105 +1,FALSE)","v":"Discovery"},{"$f":"VLOOKUP(\"Date\",OldSchoolData!$A$1:$BZ$1,C105+1,FALSE)","v":"Yield Loss"},4.7553203064899012E-2,0.6887809825777591]
[null,51,59,{"$f":"VLOOKUP(\"Date\",OldSchoolData!$A$1:$BL$1,B106 +1,FALSE)","v":"headphones End of Year"},{"$f":"VLOOKUP(\"Date\",OldSchoolData!$A$1:$BZ$1,C106+1,FALSE)","v":"Paypal Amount Sent before"},8.212889824121994E-6,0.68198970247788149]
[null,51,60,{"$f":"VLOOKUP(\"Date\",OldSchoolData!$A$1:$BL$1,B107 +1,FALSE)","v":"headphones End of Year"},{"$f":"VLOOKUP(\"Date\",OldSchoolData!$A$1:$BZ$1,C107+1,FALSE)","v":"Paypal Calculated stuff"},2.509135107471982E-5,0.63332520817349536]
[null,52,63,{"$f":"VLOOKUP(\"Date\",OldSchoolData!$A$1:$BL$1,B108 +1,FALSE)","v":"headphones myaccountaccess"},{"$f":"VLOOKUP(\"Date\",OldSchoolData!$A$1:$BZ$1,C108+1,FALSE)","v":"MyAccountAccess"},4.2598781004949189E-2,0.60104870312138747]
[null,41,63,{"$f":"VLOOKUP(\"Date\",OldSchoolData!$A$1:$BL$1,B109 +1,FALSE)","v":"Pyle"},{"$f":"VLOOKUP(\"Date\",OldSchoolData!$A$1:$BZ$1,C109+1,FALSE)","v":"MyAccountAccess"},4.3897136347321598E-2,0.60096198126590228]
[null,43,54,{"$f":"VLOOKUP(\"Date\",OldSchoolData!$A$1:$BL$1,B110 +1,FALSE)","v":"Discovery"},{"$f":"VLOOKUP(\"Date\",OldSchoolData!$A$1:$BZ$1,C110+1,FALSE)","v":"Yield Loss"},4.7553203064899012E-2,0.6887809825777591]
[null,51,59,{"$f":"VLOOKUP(\"Date\",OldSchoolData!$A$1:$BL$1,B111 +1,FALSE)","v":"headphones End of Year"},{"$f":"VLOOKUP(\"Date\",OldSchoolData!$A$1:$BZ$1,C111+1,FALSE)","v":"Paypal Amount Sent before"},8.212889824121994E-6,0.68198970247788149]
[null,51,60,{"$f":"VLOOKUP(\"Date\",OldSchoolData!$A$1:$BL$1,B112 +1,FALSE)","v":"headphones End of Year"},{"$f":"VLOOKUP(\"Date\",OldSchoolData!$A$1:$BZ$1,C112+1,FALSE)","v":"Paypal Calculated stuff"},2.509135107471982E-5,0.63332520817349536]
[null,52,63,{"$f":"VLOOKUP(\"Date\",OldSchoolData!$A$1:$BL$1,B113 +1,FALSE)","v":"headphones myaccountaccess"},{"$f":"VLOOKUP(\"Date\",OldSchoolData!$A$1:$BZ$1,C113+1,FALSE)","v":"MyAccountAccess"},4.2598781004949189E-2,0.60104870312138747]